{"text_format":"1","workbook":"xlsx","n_sheets":42,"sheets":["Inputs","Summary Table","Unit Costs-earned","Unit Costs-target","Class Summary","Function Summary","Generation Summary","Transmission Summary","Distribution Summary","Retail Summary","Misc Summary","G+T+D+R+M","Generation","Transmission","Distribution","Retail","Misc","Hot Sheet","JAM Download","Func Study","Func Allocation Options","Func Dist Factor Table","Func Factor Table","COS Allocation Options","COS Factor Table","Demand Factors","Dist. Factors","Energy Factor","Cust Factors","Cust Advances","MetersServices","Uncollectables","Revenues","DistInvest","200 Top Hrs","100 S_100W Hrs","ErrorCheck","Message","Dialog","Print Module","Menu_Options","Menu_Unbundle"],"not_rendered":{"charts":0,"images":2,"macros":1,"external_links":3,"defined_names":2785,"comments":4,"pivot_tables":0},"unopened":[{"sheet":"Dialog","index":38,"reason":"not_a_worksheet"},{"sheet":"Print Module","index":39,"reason":"part_missing"},{"sheet":"Menu_Options","index":40,"reason":"part_missing"},{"sheet":"Menu_Unbundle","index":41,"reason":"part_missing"}],"bounds":{"document_bytes":16777216,"sheet_cells":100000,"rows_first":2000,"rows_last":500,"rows_between":2000,"halvings":0,"cell_chars":16384,"cell_head_chars":4096},"cells_cut":0,"cells_raw":0,"read":"whole","date_system":"1900"}

{"sheet":"Inputs","index":0,"n_rows":33,"n_cols":30,"rows_kept":33,"cut":false,"hidden":false,"merged":[]}
[null,null,null,null,null,"INPUTS"]
[]
[null,"Prepared By  :","PacifiCorp",null,null,null,null,null,"Capital","Embedded","Weighted"]
[null,"Jurisdiction    :","State of Washington",null,null,"Effective Tot Tax %",{"$f":"+G5+G7","v":0.35},null,"Structure","Costs","Costs"]
[null,"Test Period    :","12 Months Ending June 2012",null,null,"Effective Fed Tax %",{"$f":"+G6*(1-G7)","v":0.35},"Debt",0.47213763606569903,5.3719999999999997E-2,{"$f":"(I5*J5)","v":2.536323380944935E-2},null,null,3,"FuncFactors",2,"DistFuncFactors",3,"COSFactors",3,"Peak Method",5,"Dist Peak Method",1,"Calculate",3,"Print",2,"ROR - WorkArea"]
[null,"Method  :",{"$f":"IF(COSFacVal=1,$S$6,IF(COSFacVal=2,$S$7,IF(COSFacVal=3,$S$8,IF(COSFacVal=4,$S$9,IF(COSFacVal=5,$S$10,$S$11)))))","v":"WCA Method"},null,null,"Federal Tax Rate",0.35,"Preferred",2.7983964644833865E-3,5.4269999999999999E-2,{"$f":"(I6*J6)","v":1.5186897612751339E-4},null,null,null,"Base Case Option",null,"Base Case Option",null,"Commission Method ",null,"Coincident Peaks ",null,"Distibution Peaks",null,"Entire Model",null,"Input Table"]
[null,null,null,null,null,"State Tax Rate",0,"Common",0.52506396746981765,0.1,{"$f":"(I7*J7)","v":5.2506396746981765E-2},null,null,null,"MSP option",null,"WCA Method",null,"MSP allocation",null,"200 Total Hours",null,"Non Coin Peaks - 12 months",null,"5 Functions",null,"Operating Results - @ earned ROR",null,"Target ROR - %",8.5099999999999995E-2]
[null,"Factor 10:","Demand % =",0.38,null,"Net to Gross Factor",0.61880999999999997,null,{"$f":"SUM(I5:I7)","v":1},null,{"$f":"SUM(K5:K7)","v":7.802149953255863E-2},null,null,null,"WCA Method",null,"Option 3",null,"WCA Method",null,"100 Summer  /  100 Winter Hours",null,"Non Coin Peaks - maximum",null,"Generation",null,"Operating Results - @ target ROR",null,"Target Increase - $",{"$f":"'Summary Table'!$M$64","v":42800673.000000112}]
[null,null,"Energy % =",{"$f":"1-Demand","v":0.62},null,null,null,null,null,null,null,null,null,null,"Option 4",null,"Option 4",null,"Option 4",null,null,null,"Schedule Peaks - 12 months",null,"Gen - Demand",null,"Unit Cost Summary - @ earned ROR"]
[null,null,null,null,null,"Allocation Options:",null,null,"System Peak Method",null,null,null,null,null,"Option 5",null,"Option 5",null,"Option 5",null,null,null,"Schedule Peaks - maximum",null,"Gen - Energy",null,"Unit Cost Summary - @ target ROR",null,"Target ROR - %",{"$f":"ActualROR+((AD11*Net_to_Gross_Factor))/TotalRateBase","v":7.7999997127089077E-2}]
[null,"Factor 11:","Demand % =",0.5,null,null,null,null,null,null,null,null,null,null,null,null,null,null,"Option 6",null,null,null,null,null,"Transmission",null,"Print Func Summaries (12 sheets)",null,"Target Increase - $",42800673]
[null,null,"Energy % =",0.5,null,"Functional Factors -",null,null,null,null,null,null,null,null,null,null,null,null,null,null,null,null,null,null,"Tran - Demand",null,"Factor Summaries (Func, Dist, COS)"]
[null,null,null,null,null,null,null,null,"Select CP months:   1 = include month",null,null,null,null,null,null,null,null,null,null,null,null,null,null,null,"Tran - Energy",null,"Demand Factors (F10-F17)"]
[null,null,null,null,null,"Dist Func Factors -",null,null,"                                0 = exclude month",null,null,null,null,null,null,null,null,null,null,null,null,null,null,null,"Distribution",null,"Distribution Factors (F20-F22)"]
[null,"Demand","Sec voltage =",1.1095699999999999,null,null,null,null,{"$f":"('Demand Factors'!D$94)","v":"2011-07-01"},1,null,null,null,null,null,null,null,null,null,null,null,null,null,null,"Dist - subs",null,"Energy Factor (F30+F34)"]
[null,"Loss Factors","Pri voltage =",1.0837699999999999,null,"COS Factors -",null,null,{"$f":"('Demand Factors'!E$94)","v":"2011-08-01"},1,null,null,null,null,null,null,null,null,null,null,null,null,null,null,"Dist - poles",null,"Customer Factors (F40-F48)"]
[null,null,"Trn voltage =",1.0425899999999999,null,null,null,null,{"$f":"('Demand Factors'!F$94)","v":"2011-09-01"},1,null,null,null,null,null,null,null,null,null,null,null,null,null,null,"Dist - xfmr",null,"Customer Advances Factor(F50)"]
[null,null,null,null,null,null,null,null,{"$f":"('Demand Factors'!G$94)","v":"2011-10-01"},1,null,null,null,null,null,null,null,null,null,null,null,null,null,null,"Dist - service",null,"Meters & Services Factors (F60,F70)"]
[null,null,null,null,null,"Calculate COS Results",null,null,{"$f":"('Demand Factors'!H$94)","v":"2011-11-01"},1,null,null,null,null,null,null,null,null,null,null,null,null,null,null,"Dist - meter",null,"Uncollectables Factor (F80)"]
[null,"Energy","Sec voltage =",1.0967,null,null,null,null,{"$f":"('Demand Factors'!I$94)","v":"2011-12-01"},1,null,null,null,null,null,null,null,null,null,null,null,null,null,null,"Retail",null,"CustSrv / DSM Factor (F90)"]
[null,"Loss Factors","Pri voltage =",1.0708,null,"Select \"Calc\" option -",null,null,{"$f":"('Demand Factors'!J$94)","v":"2012-01-01"},1,null,null,null,null,null,null,null,null,null,null,null,null,null,null,"Misc",null,"Sales Expense Factor (F91)"]
[null,null,"Trn voltage =",1.0452699999999999,null,null,null,null,{"$f":"('Demand Factors'!K$94)","v":"2012-02-01"},1,null,null,null,null,null,null,null,null,null,null,null,null,null,null,null,null,"Revenues"]
[null,null,null,null,null,null,null,null,{"$f":"('Demand Factors'!L$94)","v":"2012-03-01"},1,null,null,null,null,null,null,null,null,null,null,null,null,null,null,null,null,"Transmission Direct Assigments"]
[null,null,null,null,null,"Select Print Option:",null,null,{"$f":"('Demand Factors'!M$94)","v":"2012-04-01"},1,null,null,null,null,null,null,null,null,null,null,null,null,null,null,null,null,"Distribution Direct Assigments"]
[null,null,null,null,null,null,null,null,{"$f":"('Demand Factors'!N$94)","v":"2012-05-01"},1,null,null,null,null,null,null,null,null,null,null,null,null,null,null,null,null,"G+T+D+R+M Study"]
[null,"Dist Plant - split:","Pri","Sec",null,null,null,null,{"$f":"('Demand Factors'!O$94)","v":"2012-06-01"},1,null,null,null,null,null,null,null,null,null,null,null,null,null,null,null,null,"Generation Study"]
[null,"     Acct 364 =",0.97590484689244295,{"$f":"1-C27","v":2.4095153107557055E-2},null,null,null,null,null,null,null,null,null,null,null,null,null,null,null,null,null,null,null,null,null,null,"Transmission Study"]
[null,"     Acct 365 =",0.57467023607358902,{"$f":"1-C28","v":0.42532976392641098},null,"Target Return - RESULTS",null,null,"Distribution Peak Method",null,null,null,null,null,null,null,null,null,null,null,null,null,null,null,null,null,"Distribution Study"]
[null,"     Acct 366 =",0.5038383302090752,{"$f":"1-C29","v":0.4961616697909248},null,"Target ROR - %",{"$f":"ActualROR+((G30*Net_to_Gross_Factor))/TotalRateBase","v":7.7999997127089077E-2},null,null,null,null,null,null,null,null,null,null,null,null,null,null,null,null,null,null,null,"Retail Study"]
[null,"     Acct 367 =",0.42552507376170107,{"$f":"1-C30","v":0.57447492623829888},null,"Target Increase - $",42800673,null,"Select method  -",null,null,null,null,null,null,null,null,null,null,null,null,null,null,null,null,null,"Misc Study"]
[null,"     Acct 368 =",0,{"$f":"1-C31","v":1},null,null,null,null,null,null,null,null,null,null,null,null,null,null,null,null,null,null,null,null,null,null,"Hot Sheet Study"]
[null,null,null,null,null,null,null,null,null,null,null,null,null,null,null,null,null,null,null,null,null,null,null,null,null,null,"JAM Inputs - Functional Allocations"]
[null,null,null,null,null,null,null,null,null,null,null,null,null,null,null,null,null,null,null,null,null,null,null,null,null,null,"JAM Inputs - Distribution Allocations"]

{"sheet":"Summary Table","index":1,"n_rows":78,"n_cols":14,"rows_kept":78,"cut":false,"hidden":false,"merged":[]}
["Summary"]
[{"$f":"Inputs!$C$3","v":"PacifiCorp"}]
["Cost Of Service By Rate Schedule"]
[{"$f":"Inputs!$C$4","v":"State of Washington"}]
[{"$f":"Inputs!$C$5","v":"12 Months Ending June 2012"}]
[{"$f":"+Method&\" - \"&IF(PeakMethod=1,\"(Coincident Peaks)\",IF(PeakMethod=2,\"(200 Top Hours)\",\"(100 Summer, 100 Winter Hours)\"))&\" - \"&TEXT(Demand,\"0%\")&\"D\"&\" / \"&TEXT(Engy,\"0%\")&\"E\"","v":"WCA Method - (100 Summer, 100 Winter Hours) - 38%D / 62%E"}]
[{"$f":"TEXT(ActualROR,\"0.00%\")&\" = Earned Return on Rate Base\"","v":"4.60% = Earned Return on Rate Base"}]
[]
[null,"A","B","C","D","E","F","G","H","I","J","K","L","M"]
[null,null,null,null,"Return on","Rate of","Total","Generation","Transmission ","Distribution","Retail ","Misc","Increase","Percentage"]
["Line","Schedule","Description","Annual","Rate","Return","Cost of","Cost of","Cost of","Cost of","Cost of","Cost of","(Decrease)","Change from"]
["No.","No.",null,"Revenue","Base","Index","Service","Service","Service","Service","Service","Service","to = ROR","Current Revenues"]
[1,"16","Residential",{"$f":"'G+T+D+R+M'!I$102","v":134571287.30000001},{"$f":"'G+T+D+R+M'!I$61","v":3.3804192175316952E-2},{"$f":"(E13/E$23)","v":0.73440668517989716},{"$f":"SUM(H13:L13)","v":139266511.66717687},{"$f":"Generation!$I101","v":84227231.347129241},{"$f":"Transmission!$I$101","v":20583352.860041238},{"$f":"Distribution!$I$101","v":25458119.798439048},{"$f":"Retail!$I$101","v":6907230.9940304905},{"$f":"Misc!$I$101","v":2090576.6675368184},{"$f":"G13-D13","v":4695224.3671768606},{"$f":"'G+T+D+R+M'!I$111","v":3.4890238931204978E-2}]
[{"$f":"A13+1","v":2},"24","Small General Service ",{"$f":"'G+T+D+R+M'!J$102","v":45261337.330470175},{"$f":"'G+T+D+R+M'!J$61","v":7.9942191773102231E-2},1.7367692078430561,{"$f":"SUM(H14:L14)","v":41360461.814219043},{"$f":"Generation!$J101","v":26818105.361543596},{"$f":"Transmission!$J$101","v":6552924.8355040196},{"$f":"Distribution!$J$101","v":6359405.6624110974},{"$f":"Retail!$J$101","v":950656.24375371845},{"$f":"Misc!$J$101","v":679369.71100660937},-3900875.5162511319,{"$f":"'G+T+D+R+M'!J$111","v":-8.6185600035839902E-2}]
[{"$f":"A14+1","v":3},"36","Large General Service <1,000 kW",{"$f":"'G+T+D+R+M'!K$102","v":61297410.543473966},{"$f":"'G+T+D+R+M'!K$61","v":5.4555505514040675E-2},1.1852354807086749,59909802.472995952,{"$f":"Generation!$K101","v":42522559.315059662},{"$f":"Transmission!$K$101","v":10375749.24597818},{"$f":"Distribution!$K$101","v":5872326.8401327133},{"$f":"Retail!$K$101","v":121887.46252785466},{"$f":"Misc!$K$101","v":1017279.6092975416},-1387608.0704780146,{"$f":"'G+T+D+R+M'!K$111","v":-2.2637303242914013E-2}]
[{"$f":"A15+1","v":4},"48T","Large General Service >1,000 kW",{"$f":"'G+T+D+R+M'!L$102","v":23069501.570523299},{"$f":"'G+T+D+R+M'!L$61","v":4.0265530617126052E-2},0.87478129085792711,23432657.01511417,{"$f":"Generation!$L101","v":16801576.538158644},{"$f":"Transmission!$L$101","v":4098721.770645719},{"$f":"Distribution!$L$101","v":2094417.9420481776},{"$f":"Retail!$L$101","v":42648.591003142821},{"$f":"Misc!$L$101","v":395292.17325848679},363155.44459087029,{"$f":"'G+T+D+R+M'!L$111","v":1.5741798472789139E-2}]
[5,"48T","Dedicated Facilities",{"$f":"'G+T+D+R+M'!M$102","v":25058234.385966681},{"$f":"'G+T+D+R+M'!M$61","v":2.065344646468556E-2},0.44870260697268005,{"$f":"SUM(H17:L17)","v":26781574.575081903},{"$f":"Generation!$M101","v":20760759.040774997},{"$f":"Transmission!$M$101","v":5060748.7955728676},{"$f":"Distribution!$M$101","v":450114.64535220171},{"$f":"Retail!$M$101","v":40871.374726633956},{"$f":"Misc!$M$101","v":469080.71865520306},{"$f":"G17-D17","v":1723340.1891152225},{"$f":"'G+T+D+R+M'!M$111","v":6.8773408476071315E-2}]
[6,"40","Agricultural Pumping Service",{"$f":"'G+T+D+R+M'!N$102","v":12299348},{"$f":"'G+T+D+R+M'!N$61","v":8.4590872321736579E-2},1.837763251850286,11071541.690791562,{"$f":"Generation!$N101","v":7078019.0718737999},{"$f":"Transmission!$N$101","v":1729372.5730738174},{"$f":"Distribution!$N$101","v":1897900.5707898003},{"$f":"Retail!$N$101","v":184180.37293647736},{"$f":"Misc!$N$101","v":182069.10211766552},-1227806.3092084378,{"$f":"'G+T+D+R+M'!N$111","v":-9.9826942794726994E-2}]
[7,"15,52,54,57","Street Lighting",{"$f":"'G+T+D+R+M'!O$102","v":1670476.7339375024},{"$f":"'G+T+D+R+M'!O$61","v":0.11529874426805539},2.5049014082086489,1405046.6289922437,{"$f":"Generation!$O101","v":473955.80303656845},{"$f":"Transmission!$O$101","v":116948.53193670018},{"$f":"Distribution!$O$101","v":693838.12431847525},{"$f":"Retail!$O$101","v":103339.61002280226},{"$f":"Misc!$O$101","v":16964.559677697311},-265430.1049452587,{"$f":"'G+T+D+R+M'!O$111","v":-0.15889482298841121}]
[null,null,null,{"$f":"'G+T+D+R+M'!P$102","v":0},{"$f":"'G+T+D+R+M'!P$61","v":0},0,0,{"$f":"Generation!$P101","v":0},{"$f":"Transmission!$P$101","v":0},{"$f":"Distribution!$P$101","v":0},{"$f":"Retail!$P$101","v":0},{"$f":"Misc!$P$101","v":0},0,{"$f":"'G+T+D+R+M'!P$111","v":0}]
[null,null,null,{"$f":"'G+T+D+R+M'!Q$102","v":0},{"$f":"'G+T+D+R+M'!Q$61","v":0},0,0,{"$f":"Generation!$Q101","v":0},{"$f":"Transmission!$Q$101","v":0},{"$f":"Distribution!$Q$101","v":0},{"$f":"Retail!$Q$101","v":0},{"$f":"Misc!$Q$101","v":0},0,{"$f":"'G+T+D+R+M'!Q$111","v":0}]
[]
[8,null,"Total Washington Jurisdiction",{"$f":"SUM(D13:D21)","v":303227595.8643716},{"$f":"'G+T+D+R+M'!H61","v":4.602925444100011E-2},{"$f":"(E23/E$23)","v":1},{"$f":"SUM(G13:G21)","v":303227595.86437172},198682206.47757652,48517818.612752542,42826123.583491512,8350814.6490011187,4850632.5415500216,1.103617250919342E-7,{"$f":"'G+T+D+R+M'!H$111","v":0}]
[]
[]
[]
["Footnotes :"]
[null,"Column C :","Annual revenues based on July 2011 through June 2012 usage priced at current Washington Tariff."]
[null,"Column D :  ","Calculated Return on Ratebase per July 2011 through June 2012 Embedded Cost of Service Study "]
[null,"Column E : ","Rate of Return Index. Rate of return by rate schedule, divided by Washington Jurisdiction's normalized rate of return."]
[null,"Column F : ","Calculated Full Cost of Service at Jurisdictional Rate of Return per the July 2011 through June 2012 Embedded COS Study"]
[null,"Column G : ","Calculated Generation Cost of Service at Jurisdictional Rate of Return per July 2011 through June 2012 Embedded COS Study."]
[null,"Column H : ","Calculated Transmission Cost of Service at Jurisdictional Rate of Return per July 2011 through June 2012 Embedded COS Study."]
[null,"Column I : ","Calculated Distribution Cost of Service at Jurisdictional Rate of Return per the July 2011 through June 2012 Embedded COS Study."]
[null,"Column J :  ","Calculated Retail Cost of Service at Jurisdictional Rate of Return per the July 2011 through June 2012 Embedded COS Study."]
[null,"Column K : ","Calculated Miscellaneous Cost of Service at Jurisdictional Rate of Return per the July 2011 through June 2012 Embedded COS Study."]
[null,"Column L :  ","Increase or Decrease Required to Move From Annual Revenue to Full Cost of Service dollars."]
[null,"Column M : ","Increase or Decrease Required to Move From Annual Revenue to Full Cost of Service percent."]
[]
[]
[]
[{"$f":"Inputs!C3","v":"PacifiCorp"}]
["Cost Of Service By Rate Schedule"]
[{"$f":"Inputs!$C$4","v":"State of Washington"}]
[{"$f":"Inputs!$C$5","v":"12 Months Ending June 2012"}]
[{"$f":"+Method&\" - \"&IF(PeakMethod=1,\"(Coincident Peaks)\",IF(PeakMethod=2,\"(200 Top Hours)\",\"(100 Summer, 100 Winter Hours)\"))&\" - \"&TEXT(Demand,\"0%\")&\"D\"&\" / \"&TEXT(Engy,\"0%\")&\"E\"","v":"WCA Method - (100 Summer, 100 Winter Hours) - 38%D / 62%E"}]
[{"$f":"TEXT(TargetROR,\"0.00%\")&\" = Target Return on Rate Base\"","v":"7.80% = Target Return on Rate Base"}]
[]
[]
[null,"A","B","C","D","E","F","G","H","I","J","K","L","M"]
[null,null,null,null,"Return on","Rate of","Total","Generation","Transmission ","Distribution","Retail ","Misc","Increase","Percentage"]
["Line","Schedule","Description","Annual","Rate","Return","Cost of","Cost of","Cost of","Cost of","Cost of","Cost of","(Decrease)","Change from"]
["No.","No.",null,"Revenue","Base","Index","Service","Service","Service","Service","Service","Service","to = ROR","Current Revenues"]
[1,"16","Residential",{"$f":"'Class Summary'!F$80","v":134571287.30000001},{"$f":"'G+T+D+R+M'!I$61","v":3.3804192175316952E-2},{"$f":"(E54/E$23)","v":0.73440668517989716},{"$f":"SUM(H54:L54)","v":159109207.37552729},{"$f":"'Generation Summary'!F$68","v":94981319.714012802},{"$f":"'Transmission Summary'!$F$68","v":23664031.677903924},{"$f":"'Distribution Summary'!$F$68","v":31481652.331893574},{"$f":"'Retail Summary'!$F$68","v":6843598.4818482306},{"$f":"'Misc Summary'!$F$68","v":2138605.1698687668},{"$f":"G54-D54","v":24537920.075527281},{"$f":"'Class Summary'!F$85","v":0.18234142340352924}]
[{"$f":"A54+1","v":2},"24","Small General Service ",{"$f":"'Class Summary'!G$80","v":45261337.330470175},{"$f":"'G+T+D+R+M'!J$61","v":7.9942191773102231E-2},1.7367692078430561,{"$f":"SUM(H55:L55)","v":47303275.104309745},{"$f":"'Generation Summary'!G$68","v":30244198.379535548},{"$f":"'Transmission Summary'!$G$68","v":7533502.8299022494},{"$f":"'Distribution Summary'!$G$68","v":7884488.1551375668},{"$f":"'Retail Summary'!$G$68","v":946340.41539110185},{"$f":"'Misc Summary'!$G$68","v":694745.32434327772},2041937.7738395706,{"$f":"'Class Summary'!G$85","v":4.5114393305054359E-2}]
[{"$f":"A55+1","v":3},"36","Large General Service <1,000 kW",{"$f":"'Class Summary'!H$80","v":61297410.543473966},{"$f":"'G+T+D+R+M'!K$61","v":5.4555505514040675E-2},1.1852354807086749,68318023.156041741,{"$f":"'Generation Summary'!H$68","v":47960531.952593938},{"$f":"'Transmission Summary'!$H$68","v":11929076.71833723},{"$f":"'Distribution Summary'!$H$68","v":7268107.4982558703},{"$f":"'Retail Summary'!$H$68","v":119063.96659609405},{"$f":"'Misc Summary'!$H$68","v":1041243.0202586004},7020612.612567775,{"$f":"'Class Summary'!H$85","v":0.11453359204445586}]
[{"$f":"A56+1","v":4},"48T","Large General Service >1,000 kW",{"$f":"'Class Summary'!I$80","v":23069501.570523299},{"$f":"'G+T+D+R+M'!L$61","v":4.0265530617126052E-2},0.87478129085792711,26687910.39606481,{"$f":"'Generation Summary'!I$68","v":18950539.903534845},{"$f":"'Transmission Summary'!$I$68","v":4712566.3500768198},{"$f":"'Distribution Summary'!$I$68","v":2577251.2639790121},{"$f":"'Retail Summary'!$I$68","v":42836.639113458266},{"$f":"'Misc Summary'!$I$68","v":404716.23936067225},3618408.8255415112,{"$f":"'Class Summary'!I$85","v":0.15684815792313769}]
[5,"48T","Dedicated Facilities",{"$f":"'Class Summary'!J$80","v":25058234.385966681},{"$f":"'G+T+D+R+M'!M$61","v":2.065344646468556E-2},{"$f":"(E58/E$23)","v":0.44870260697268005},{"$f":"SUM(H58:L58)","v":30290277.013240963},{"$f":"'Generation Summary'!J$68","v":23417960.233375527},{"$f":"'Transmission Summary'!$J$68","v":5819977.3943233769},{"$f":"'Distribution Summary'!$J$68","v":530829.9927283912},{"$f":"'Retail Summary'!$J$68","v":40910.109838756092},{"$f":"'Misc Summary'!$J$68","v":480599.28297490871},{"$f":"G58-D58","v":5232042.6272742823},{"$f":"'Class Summary'!J$85","v":0.20879534234879543}]
[6,"40","Agricultural Pumping Service",{"$f":"'Class Summary'!K$80","v":12299348},{"$f":"'G+T+D+R+M'!N$61","v":8.4590872321736579E-2},1.837763251850286,12716557.271785384,{"$f":"'Generation Summary'!K$68","v":7982318.7210795349},{"$f":"'Transmission Summary'!$K$68","v":1987920.7943562164},{"$f":"'Distribution Summary'!$K$68","v":2377075.5286936136},{"$f":"'Retail Summary'!$K$68","v":183097.74730390648},{"$f":"'Misc Summary'!$K$68","v":186144.48035211215},417209.27178538404,{"$f":"'Class Summary'!K$85","v":3.3921251092771922E-2}]
[7,"15,52,54,57","Street Lighting",{"$f":"'Class Summary'!L$80","v":1670476.7339375024},{"$f":"'G+T+D+R+M'!O$61","v":0.11529874426805539},2.5049014082086489,1603018.5474018056,{"$f":"'Generation Summary'!L$68","v":533970.72600291891},{"$f":"'Transmission Summary'!$L$68","v":134310.07309375983},{"$f":"'Distribution Summary'!$L$68","v":812556.64182666142},{"$f":"'Retail Summary'!$L$68","v":104910.35407571237},{"$f":"'Misc Summary'!$L$68","v":17270.752402753162},-67458.186535696732,{"$f":"'Class Summary'!L$85","v":-4.0382595677755831E-2}]
[null,null,null,{"$f":"'Class Summary'!M$80","v":0},{"$f":"'G+T+D+R+M'!P$61","v":0},0,0,{"$f":"'Generation Summary'!M$68","v":0},{"$f":"'Transmission Summary'!$M$68","v":0},{"$f":"'Distribution Summary'!$M$68","v":0},{"$f":"'Retail Summary'!$M$68","v":0},{"$f":"'Misc Summary'!$M$68","v":0},0,0]
[null,null,null,{"$f":"'Class Summary'!N$80","v":0},{"$f":"'G+T+D+R+M'!Q$61","v":0},0,0,{"$f":"'Generation Summary'!N$68","v":0},{"$f":"'Transmission Summary'!$N$68","v":0},{"$f":"'Distribution Summary'!$N$68","v":0},{"$f":"'Retail Summary'!$N$68","v":0},{"$f":"'Misc Summary'!$N$68","v":0},0,0]
[]
[8,null,"Total Washington Jurisdiction",{"$f":"SUM(D54:D62)","v":303227595.8643716},{"$f":"ActualROR","v":4.602925444100011E-2},{"$f":"(E64/E$23)","v":1},{"$f":"SUM(G54:G62)","v":346028268.86437178},224070839.63013509,55781385.837993577,52931961.412514687,8280757.7141672587,4963324.2695610914,42800673.000000112,{"$f":"'Class Summary'!E$85","v":0.14115032267427283}]
[]
[]
["Footnotes :"]
[null,{"$f":"+$B28","v":"Column C :"},{"$f":"+$C28","v":"Annual revenues based on July 2011 through June 2012 usage priced at current Washington Tariff."}]
[null,"Column D :  ","Calculated Return on Ratebase per July 2011 through June 2012 Embedded Cost of Service Study "]
[null,"Column E : ","Rate of Return Index. Rate of return by rate schedule, divided by Washington Jurisdiction's normalized rate of return."]
[null,"Column F : ","Calculated Full Cost of Service at Jurisdictional Rate of Return per the July 2011 through June 2012 Embedded COS Study"]
[null,"Column G : ","Calculated Generation Cost of Service at Jurisdictional Rate of Return per July 2011 through June 2012 Embedded COS Study."]
[null,"Column H : ","Calculated Transmission Cost of Service at Jurisdictional Rate of Return per July 2011 through June 2012 Embedded COS Study."]
[null,"Column I : ","Calculated Distribution Cost of Service at Jurisdictional Rate of Return per the July 2011 through June 2012 Embedded COS Study."]
[null,"Column J :  ","Calculated Retail Cost of Service at Jurisdictional Rate of Return per the July 2011 through June 2012 Embedded COS Study."]
[null,"Column K : ","Calculated Miscellaneous Cost of Service at Jurisdictional Rate of Return per the July 2011 through June 2012 Embedded COS Study."]
[null,"Column L :  ","Increase or Decrease Required to Move From Annual Revenue to Full Cost of Service dollars."]
[null,"Column M : ","Increase or Decrease Required to Move From Annual Revenue to Full Cost of Service percent."]

{"sheet":"Unit Costs-earned","index":2,"n_rows":151,"n_cols":12,"rows_kept":151,"cut":false,"hidden":false,"merged":[[5,1,5,9],[6,1,6,9],[1,1,1,9],[2,1,2,9],[3,1,3,9],[4,1,4,9]]}
[null,"Unit Costs @ Earned ROR"]
[null,{"$f":"Inputs!$C$3","v":"PacifiCorp"}]
[null,"Cost Of Service By Rate Schedule"]
[null,{"$f":"Inputs!$C$4","v":"State of Washington"}]
[null,{"$f":"Inputs!$C$5","v":"12 Months Ending June 2012"}]
[null,{"$f":"+Method&\" - \"&IF(PeakMethod=1,\"(Coincident Peaks)\",IF(PeakMethod=2,\"(200 Top Hours)\",\"(100 Summer, 100 Winter Hours)\"))&\" - \"&TEXT(Demand,\"0%\")&\"D\"&\" / \"&TEXT(Engy,\"0%\")&\"E\"","v":"WCA Method - (100 Summer, 100 Winter Hours) - 38%D / 62%E"}]
[null,{"$f":"TEXT(ActualROR,\"0.00%\")&\" Actual Return on Rate Base\"","v":"4.60% Actual Return on Rate Base"}]
[]
[null,null,{"$f":"'Hot Sheet'!$H$10","v":"Washington"},null,{"$f":"'Hot Sheet'!$J$10","v":"Small General"},{"$f":"'Hot Sheet'!$K$10","v":"Large General"},{"$f":"'Hot Sheet'!$L$10","v":"Large General"},{"$f":"'Hot Sheet'!$M$10","v":"Large General"},{"$f":"'Hot Sheet'!$N$10","v":"Agricultural"},{"$f":"'Hot Sheet'!$O$10","v":"Street & Area"}]
[null,"Description",{"$f":"'Hot Sheet'!$H$11","v":"Jurisdiction"},{"$f":"'Hot Sheet'!$I$11","v":"Residential"},{"$f":"'Hot Sheet'!$J$11","v":"Service"},{"$f":"'Hot Sheet'!$K$11","v":"Service <1,000 kW"},{"$f":"'Hot Sheet'!$L$11","v":"Service >1,000 kW"},{"$f":"'Hot Sheet'!$M$11","v":"Dedicated Facilities"},{"$f":"'Hot Sheet'!$N$11","v":"Pumping"},{"$f":"'Hot Sheet'!$O$11","v":"Lighting"},{"$f":"'Hot Sheet'!P$11","v":"-"},{"$f":"'Hot Sheet'!Q$11","v":"-"}]
[null,null,{"$f":"'Hot Sheet'!$H$12","v":"Normalized"},{"$f":"'Hot Sheet'!$I$12","v":"Schedule 16"},{"$f":"'Hot Sheet'!$J$12","v":"Schedule 24"},{"$f":"'Hot Sheet'!$K$12","v":"Schedule 36"},{"$f":"'Hot Sheet'!$L$12","v":"Schedule 48T"},{"$f":"'Hot Sheet'!$M$12","v":"Schedule 48T"},{"$f":"'Hot Sheet'!$N$12","v":"Schedule 40"},{"$f":"'Hot Sheet'!$O$12","v":"Sch. 15,51-54,57"},{"$f":"'Hot Sheet'!P$12","v":"-"},{"$f":"'Hot Sheet'!Q$12","v":"-"}]
[]
[14,"UNITS"]
[{"$f":"+A13+1","v":15},"NCP KW",{"$f":"SUM(D14:L14)","v":19104106.171585862},{"$f":"'Dist. Factors'!$P$189","v":13034017.512603801},{"$f":"'Dist. Factors'!$P$192","v":2526803.3718862995},{"$f":"'Dist. Factors'!$P$193+'Dist. Factors'!$P$194","v":2323118.6894201506},{"$f":"+'Dist. Factors'!$P$196+'Dist. Factors'!$P$197","v":810142.81882729987},{"$f":"'Dist. Factors'!$P$204","v":36636},{"$f":"'Dist. Factors'!$P$201","v":336751.77884831082},{"$f":"'Dist. Factors'!$P$204","v":36636},0,0]
[16,"Annual KWH",{"$f":"SUM(D15:L15)","v":3998877844},{"$f":"'Energy Factor'!C27*1000","v":1601807791},{"$f":"'Energy Factor'!D27*1000","v":537395792},{"$f":"('Energy Factor'!E27)*1000","v":860704392.99999988},{"$f":"'Energy Factor'!F27*1000","v":358354770},{"$f":"'Energy Factor'!G27*1000","v":473928141},{"$f":"'Energy Factor'!H27*1000","v":153555066},{"$f":"'Energy Factor'!I27*1000","v":13131891.000000002},0,0]
[17,"Average Customers",{"$f":"SUM(D16:L16)","v":132377.50883838322},{"$f":"'Cust Factors'!D17","v":104296.97777777778},{"$f":"'Cust Factors'!E17","v":18646.79166666606},{"$f":"'Cust Factors'!F17","v":1044.4944444444434},{"$f":"'Cust Factors'!G17","v":57.91161616161623},{"$f":"'Cust Factors'!H17","v":1},{"$f":"'Cust Factors'!I17","v":5260},{"$f":"'Cust Factors'!J17","v":3070.3333333333339},0,0]
[18,null,null,null,null,null,null,null,null,null,0,0]
[19]
[20,"GTDRM TOTAL",{"$f":"+C20/$C20","v":1},0.45928046644365511,0.13640071806894133,0.1975737145632106,7.7277455398865422E-2,{"$f":"+H20/$C20","v":8.8321692815388805E-2},3.6512315639450128E-2,4.6336370704884514E-3,{"$f":"+K20/$C20","v":0},{"$f":"+L20/$C20","v":0}]
[21,"Revenue Requirement",{"$f":"C98+C104+C32+C38+C50+C56+C68+C74+C80+C86+C92","v":303227595.86437172},139266511.66717678,41360461.814219043,59909802.472995959,23432657.015114173,{"$f":"H98+H104+H32+H38+H50+H56+H68+H74+H80+H86+H92","v":26781574.5750819},11071541.690791562,1405046.6289922434,0,0]
[22,"NCP KW",{"$f":"C20/C$14","v":15.872378071022849},10.684849205742363,16.36869028845042,25.788524170475949,28.924106306383703,{"$f":"H20/H$14","v":731.01797617321483},32.877455699435863,38.351529342511284,0,0]
[23,"Per KWH",{"$f":"C20/C$15","v":7.5828171725560653E-2},8.6943335180205014E-2,7.6964617940698435E-2,6.9605549780197257E-2,6.5389549621773346E-2,{"$f":"H20/H$15","v":5.6509779137765739E-2},7.2101442037682831E-2,0.10699499630268354,0,0]
[24,"Per Customer",{"$f":"C20/C$16","v":2290.6277548595931},1335.288084415135,2218.1007088826482,57357.703328773001,404627.9238645272,{"$f":"H20/H$16","v":26781574.5750819},2104.8558347512476,457.62022440307561,0,0]
[25]
[26,"GENERATION-TOTAL",{"$f":"+C26/$C26","v":1},0.42392941391374789,0.13497990503024901,0.2140229871055857,8.4565079259147885E-2,{"$f":"+H26/$C26","v":0.10449229152847202},3.5624826185291204E-2,2.3854969775064364E-3,0,0]
[27,"Revenue Requirement",{"$f":"+C32+C38","v":198682206.47757652},84227231.347129256,26818105.361543603,42522559.315059677,16801576.538158644,{"$f":"+H32+H38","v":20760759.040774997},7078019.0718738018,473955.80303656851,0,0]
[28,"NCP KW",{"$f":"C26/C$14","v":10.399973947647068},6.4621081923268964,10.613451628222046,18.30408386309065,20.739030387851006,{"$f":"H26/H$14","v":566.67646688434866},21.018505369386872,12.936887297646264,0,0]
[29,"Per KWH",{"$f":"C26/C$15","v":4.9684490056550103E-2},5.2582608113390841E-2,4.9903824631257261E-2,4.9404371188168997E-2,4.6885315739368126E-2,{"$f":"H26/H$15","v":4.3805710707469886E-2},4.60943377268569E-2,3.6091969011665455E-2,0,0]
[30,"Per Customer",{"$f":"C26/C$16","v":1500.8758528621599},807.57116017867281,1438.2155301002795,40711.139768366142,290124.46296214254,{"$f":"H26/H$16","v":20760759.040774997},1345.6310022573768,154.36623701115028,0,0]
[31]
[32,"GENERATION-DEMAND",{"$f":"+C32/$C32","v":1},0.43723982104355341,0.13505300688747268,0.2128170298394193,8.1571665116101644E-2,{"$f":"+H32/$C32","v":9.7579177373880457E-2},3.388610193444646E-2,1.8531978051261782E-3,0,0]
[33,"Revenue Requirement",{"$f":"'Generation Summary'!E$129","v":75499238.461479083},{"$f":"'Generation Summary'!F$129","v":33011273.51382168},{"$f":"'Generation Summary'!G$129","v":10196399.171937076},{"$f":"'Generation Summary'!H$129","v":16067523.684510028},{"$f":"'Generation Summary'!I$129","v":6158598.5963004725},{"$f":"'Generation Summary'!J$129","v":7367153.5814255653},{"$f":"'Generation Summary'!K$129","v":2558374.8904787609},{"$f":"'Generation Summary'!L$129","v":139915.02300551097},0,0]
[34,"NCP KW",{"$f":"C32/C$14","v":3.9519901001058861},2.5327013318725418,4.0352958545901023,6.9163593567922588,7.6018677857506454,{"$f":"H32/H$14","v":201.09055523052641},7.5972126984106474,3.8190583853453153,0,0]
[35,"Per KWH",{"$f":"C32/C$15","v":1.888010622148904E-2},2.0608760738523389E-2,1.8973723508309639E-2,1.8667876933341074E-2,1.7185758672335998E-2,{"$f":"H32/H$15","v":1.5544874726959009E-2},1.6660960508321887E-2,1.0654598260487461E-2,0,0]
[36,"Per Customer",{"$f":"C32/C$16","v":570.33282408762079},316.51227309920466,546.81788450313786,15383.06284918173,106344.78891270154,{"$f":"H32/H$16","v":7367153.5814255653},486.38305902638041,45.569978180060019,0,0]
[37]
[38,"GENERATION-ENERGY",{"$f":"+C38/$C38","v":1},0.41577142244709281,0.13493510066614417,0.21476212220420379,8.6399752443595587E-2,{"$f":"+H38/$C38","v":0.10872936149418941},3.6690495887421855E-2,2.7117448573524012E-3,0,0]
[39,"Revenue Requirement",{"$f":"'Generation Summary'!E$197","v":123182968.01609744},{"$f":"'Generation Summary'!F$197","v":51215957.833307572},{"$f":"'Generation Summary'!G$197","v":16621706.189606525},{"$f":"'Generation Summary'!H$197","v":26455035.630549647},{"$f":"'Generation Summary'!I$197","v":10642977.941858172},{"$f":"'Generation Summary'!J$197","v":13393605.459349431},{"$f":"'Generation Summary'!K$197","v":4519644.1813950408},{"$f":"'Generation Summary'!L$197","v":334040.78003105754},0,0]
[40,"NCP KW",{"$f":"C38/C$14","v":6.4479838475411819},3.9294068604543542,6.578155773631944,11.38772450629839,13.137162602100361,{"$f":"H38/H$14","v":365.58591165382222},13.421292670976227,9.1178289123009488,0,0]
[41,"Per KWH",{"$f":"C38/C$15","v":3.0804383835061063E-2},3.1973847374867442E-2,3.0930101122947619E-2,3.0736494254827919E-2,2.9699557067032128E-2,{"$f":"H38/H$15","v":2.8260835980510875E-2},2.9433377218535017E-2,2.5437370751177992E-2,0,0]
[42,"Per Customer",{"$f":"C38/C$16","v":930.54302877453915},491.05888707946809,891.39764559714149,25328.076919184408,183779.67404944103,{"$f":"H38/H$16","v":13393605.459349431},859.24794323099638,108.79625883109027,0,0]
[43]
[44,"TRANSMISSION-TOTAL",{"$f":"+C44/$C44","v":1},0.42424316361640918,0.1350622312146085,0.21385440530195221,8.4478690259343209E-2,{"$f":"+H44/$C44","v":0.10430701421194333},3.5644071034538732E-2,2.4104243612049193E-3,0,0]
[45,"Revenue Requirement",{"$f":"+C50+C56","v":48517818.612752542},20583352.860041238,6552924.8355040196,10375749.245978182,4098721.770645719,{"$f":"+H50+H56","v":5060748.7955728676},1729372.5730738172,116948.53193670019,0,0]
[46,"NCP KW",{"$f":"C44/C$14","v":2.5396539454389453},1.5792024861204372,2.5933655576105061,4.4663018266053225,5.0592582880370545,{"$f":"H44/H$14","v":138.13595358589549},5.1354519313550817,3.1921752357435365,0,0]
[{"$f":"+A45+1","v":47},"Per KWH",{"$f":"C44/C$15","v":1.2132858393148892E-2},1.2850076629475727E-2,1.2193852153393898E-2,1.2054950956870722E-2,1.1437609078416115E-2,{"$f":"H44/H$15","v":1.0678304067140989E-2},1.1262230665016399E-2,8.9056885970725912E-3,0,0]
[48,"Per Customer",{"$f":"C44/C$16","v":366.51104132792585},197.35330110808701,351.42371688628646,9933.7524494895169,70775.468590053759,{"$f":"H44/H$16","v":5060748.7955728676},328.77805571745574,38.089848638595214,0,0]
[49]
[50,"TRANSMISSION-DEMAND",{"$f":"+C50/$C50","v":1},0.43123884366770615,0.13510065207069594,0.21322057862050037,8.2905412491977984E-2,{"$f":"+H50/$C50","v":0.10067362160699202},3.4730232830634374E-2,2.1306587114931354E-3,0,0]
[51,"Revenue Requirement",{"$f":"'Transmission Summary'!E$129","v":18436770.669253405},{"$f":"'Transmission Summary'!F$129","v":7950651.6643755194},{"$f":"'Transmission Summary'!G$129","v":2490819.7394940164},{"$f":"'Transmission Summary'!H$129","v":3931098.9099916806},{"$f":"'Transmission Summary'!I$129","v":1528508.0773544544},{"$f":"'Transmission Summary'!J$129","v":1856096.4740113062},{"$f":"'Transmission Summary'!K$129","v":640313.33798818151},{"$f":"'Transmission Summary'!L$129","v":39282.46603824589},0,0]
[52,"NCP KW",{"$f":"C50/C$14","v":0.9650684781408404},0.60999240308579428,0.9857592273333794,1.6921644717915301,1.8867143444744774,{"$f":"H50/H$14","v":50.663185773864676},1.9014401057599444,1.0722367626991454,0,0]
[53,"Per KWH",{"$f":"C50/C$15","v":4.6104860884701249E-3},4.9635491280835701E-3,4.6349818449899893E-3,4.5673043404481396E-3,4.2653487697525399E-3,{"$f":"H50/H$15","v":3.9164090785892081E-3},4.1699264939144467E-3,2.9913792338244266E-3,0,0]
[54,"Per Customer",{"$f":"C50/C$16","v":139.27419265581173},76.230892148339308,133.5789976109794,3763.6379311549085,26393.807989899415,{"$f":"H50/H$16","v":1856096.4740113062},121.7325737620117,12.794202379192015,0,0]
[55]
[56,"TRANSMISSION-ENERGY",{"$f":"+C56/$C56","v":1},0.41995548889764633,0.13503868294880567,0.21424287970590017,8.5442957244005108E-2,{"$f":"+H56/$C56","v":0.10653393218151246},3.6204165397801379E-2,2.581893624328964E-3,0,0]
[57,"Revenue Requirement",{"$f":"'Transmission Summary'!E$197","v":30081047.943499137},{"$f":"'Transmission Summary'!F$197","v":12632701.195665719},{"$f":"'Transmission Summary'!G$197","v":4062105.0960100028},{"$f":"'Transmission Summary'!H$197","v":6444650.3359865015},{"$f":"'Transmission Summary'!I$197","v":2570213.6932912646},{"$f":"'Transmission Summary'!J$197","v":3204652.3215615619},{"$f":"'Transmission Summary'!K$197","v":1089059.2350856357},{"$f":"'Transmission Summary'!L$197","v":77666.065898454312},{"$f":"'Transmission Summary'!M$197","v":0},{"$f":"'Transmission Summary'!N$197","v":0}]
[58,"NCP KW",{"$f":"C56/C$14","v":1.574585467298105},0.96921008303464284,1.6076063302771264,2.7741373548137926,3.1725439435625775,{"$f":"H56/H$14","v":87.472767812030838},3.2340118255951373,2.1199384730443911,0,0]
[59,"Per KWH",{"$f":"C56/C$15","v":7.5223723046787669E-3},7.886527501392156E-3,7.5588703084039088E-3,7.487646616422582E-3,7.1722603086635753E-3,{"$f":"H56/H$15","v":6.7618949885517813E-3},7.0923041711019527E-3,5.9143093632481646E-3,0,0]
[60,"Per Customer",{"$f":"C56/C$16","v":227.23684867211412},121.12240895974772,217.84471927530706,6170.1145183346089,44381.660600154341,{"$f":"H56/H$16","v":3204652.3215615619},207.04548195544405,25.295646259403203,0,0]
[61,null,null,null,null,null,null,null,null,null,0,0]
[62,"DISTRIBUTION-TOTAL",{"$f":"+C62/$C62","v":1},0.59445305033987628,0.14849360928063318,0.13712020488345955,4.8905148698901328E-2,{"$f":"+H62/$C62","v":1.05102822223609E-2},4.4316422127016829E-2,1.6201282447751909E-2,0,0]
[63,"Revenue Requirement",{"$f":"+C68+C74+C80+C86+C92","v":42826123.583491512},25458119.798439041,6359405.6624110993,5872326.8401327152,2094417.9420481774,{"$f":"+H68+H74+H80+H86+H92","v":450114.64535220171},1897900.5707898005,693838.12431847514,0,0]
[64,"NCP KW",{"$f":"C62/C$14","v":2.2417234912140591},1.953205891723041,2.5167789995719771,2.5277773653478057,2.5852453337547261,{"$f":"H62/H$14","v":12.286129636210331},5.6359036239707772,18.938697573929336,0,0]
[65,"Per KWH",{"$f":"C62/C$15","v":1.0709535338207123E-2},1.5893367444882806E-2,1.1833746666946546E-2,6.8226988126139565E-3,5.8445376408640445E-3,{"$f":"H62/H$15","v":9.4975294018719545E-4},1.2359739214268584E-2,5.2836116620102548E-2,0,0]
[66,"Per Customer",{"$f":"C62/C$16","v":323.51510433526124},244.0925934851328,341.04556837943824,5622.1714451110838,36165.765711031148,{"$f":"H62/H$16","v":450114.64535220171},360.81759900946776,225.9813671648491,0,0]
[67]
[68,"DISTRIBUTION-SUBSTATION",{"$f":"+C68/$C68","v":1},0.51267830693772243,0.13378433719484761,0.17683455377386922,6.7463461391289378E-2,{"$f":"+H68/$C68","v":4.4933411261522463E-2},5.7948961355823919E-2,6.3569680849248989E-3,0,0]
[69,"Revenue Requirement",{"$f":"'Distribution Summary'!E$129","v":5865769.2645024452},{"$f":"'Distribution Summary'!F$129","v":3007252.655412443},{"$f":"'Distribution Summary'!G$129","v":784748.05318936834},{"$f":"'Distribution Summary'!H$129","v":1037270.690428767},{"$f":"'Distribution Summary'!I$129","v":395725.09830597258},{"$f":"'Distribution Summary'!J$129","v":263569.0227270865},{"$f":"'Distribution Summary'!K$129","v":339915.23643083189},{"$f":"'Distribution Summary'!L$129","v":37288.508007975441},0,0]
[70,"NCP KW",{"$f":"C68/C$14","v":0.30704232963418032},0.23072338613205418,0.31056949738180112,0.44649922328663688,0.48846337844331406,{"$f":"H68/H$14","v":7.19426309441769},1.00939403376974,1.0178105690570871,0,0]
[71,"Per KWH",{"$f":"C68/C$15","v":1.4668538258310561E-3},1.8774116796716487E-3,1.4602794902222984E-3,1.2051416245400378E-3,1.1042830497441755E-3,{"$f":"H68/H$15","v":5.5613710165205511E-4},2.2136373959217464E-3,2.8395383428003961E-3,0,0]
[72,"Per Customer",{"$f":"C68/C$16","v":44.310920457521476},28.833555098978032,42.084883406094107,993.08397085872616,6833.2594483567327,{"$f":"H68/H$16","v":263569.0227270865},64.62266852297185,12.1447751627322,0,0]
[73]
[74,"DISTRIBUTION- P & C",{"$f":"+C74/$C74","v":1},0.58270256582260571,0.14792970696916022,0.14027673239079982,5.2841755397948983E-2,{"$f":"+H74/$C74","v":5.8483470780740301E-3},4.5208665889894452E-2,2.5192226451516812E-2,0,0]
[75,"Revenue Requirement",{"$f":"'Distribution Summary'!E$197","v":22573948.340673227},{"$f":"'Distribution Summary'!F$197","v":13153897.618857242},{"$f":"'Distribution Summary'!G$197","v":3339357.5631727511},{"$f":"'Distribution Summary'!H$197","v":3166599.7103883578},{"$f":"'Distribution Summary'!I$197","v":1192847.056583791},{"$f":"'Distribution Summary'!J$197","v":132020.28481877036},{"$f":"'Distribution Summary'!K$197","v":1020538.0883492331},{"$f":"'Distribution Summary'!L$197","v":568688.0185030821},0,0]
[76,"NCP KW",{"$f":"C74/C$14","v":1.1816280823568794},1.0091974792988823,1.3215739698336191,1.363081328909088,1.4723910758234755,{"$f":"H74/H$14","v":3.6035671148261375},3.030535107607947,15.522655816767172,0,0]
[77,"Per KWH",{"$f":"C74/C$15","v":5.6450707476707876E-3},8.2119076288456154E-3,6.2139629913081848E-3,3.6790792938224937E-3,3.3286763744871904E-3,{"$f":"H74/H$15","v":2.7856603859860343E-4},6.6460724151506216E-3,4.3305874112348479E-2,0,0]
[78,"Per Customer",{"$f":"C74/C$16","v":170.52706716390367},126.11964314904532,179.08483254748612,3031.7056516970197,20597.716583402987,{"$f":"H74/H$16","v":132020.28481877036},194.01864797513937,185.22028612628878,0,0]
[{"$f":"+A77+1","v":79}]
[80,"DISTRIBUTION-TRANSFORMER",{"$f":"+C80/$C80","v":1},0.60996599289864406,0.14001319460389841,0.14709340176510102,4.6514752418074783E-2,{"$f":"+H80/$C80","v":2.6694210282844273E-3},4.7590291972846289E-2,6.1529453131509383E-3,0,0]
[81,"Revenue Requirement",{"$f":"'Distribution Summary'!E$265","v":7909732.0563639393},{"$f":"'Distribution Summary'!F$265","v":4824667.5673222635},{"$f":"'Distribution Summary'!G$265","v":1107466.8536723778},{"$f":"'Distribution Summary'!H$265","v":1163469.3952210397},{"$f":"'Distribution Summary'!I$265","v":367919.22829507815},{"$f":"'Distribution Summary'!J$265","v":21114.405079353324},{"$f":"'Distribution Summary'!K$265","v":376426.45798934175},{"$f":"'Distribution Summary'!L$265","v":48668.148784484234},0,0]
[82,"NCP KW",{"$f":"C80/C$14","v":0.4140330871971562},0.37015966586333376,0.43828770611685386,0.50082219239148784,0.45414119553346111,{"$f":"H80/H$14","v":0.57632943223477795},1.117815796776837,1.3284241943575781,0,0]
[83,"Per KWH",{"$f":"C80/C$15","v":1.9779879168431882E-3},3.0120140471474729E-3,2.0608029875908997E-3,1.3517642115962105E-3,1.026689914843545E-3,{"$f":"H80/H$15","v":4.4551912521593276E-5},2.4514102191154135E-3,3.7061036209091462E-3,0,0]
[84,"Per Customer",{"$f":"C80/C$16","v":59.751328800277975},46.258939329977785,59.391817824196593,1113.906733931819,6353.1162257380529,{"$f":"H80/H$16","v":21114.405079353324},71.563965397213266,15.851096119145877,0,0]
[85]
[86,"DISTRIBUTION-METER",{"$f":"+C86/$C86","v":1},0.66982019334717902,0.15851416636194438,8.27277908663763E-2,1.7191135004329058E-2,{"$f":"+H86/$C86","v":9.5417131139856771E-3},5.3864245341173823E-2,8.3407559650118378E-3,0,0]
[87,"Revenue Requirement",{"$f":"'Distribution Summary'!E$333","v":2295342.8216503267},{"$f":"'Distribution Summary'!F$333","v":1537466.9725958812},{"$f":"'Distribution Summary'!G$333","v":363844.3538887747},{"$f":"'Distribution Summary'!H$333","v":189888.64091612631},{"$f":"'Distribution Summary'!I$333","v":39459.548328208359},{"$f":"'Distribution Summary'!J$333","v":21901.502702433809},{"$f":"'Distribution Summary'!K$333","v":123636.90888747539},{"$f":"'Distribution Summary'!L$333","v":19144.894331427065},0,0]
[88,"NCP KW",{"$f":"C86/C$14","v":0.12014918683106265},0.11795802569001934,0.14399393238784505,8.1738673870133782E-2,4.8706903784356138E-2,{"$f":"H86/H$14","v":0.59781369970613085},0.36714552573504711,0.52257054076392251,0,0]
[89,"Per KWH",{"$f":"C86/C$15","v":5.7399673388230834E-4},9.59832372669413E-4,6.7705099166235131E-4,2.2062004383905398E-4,1.1011308243004094E-4,{"$f":"H86/H$15","v":4.621270780886972E-5},8.0516333396304484E-4,1.4578931801541043E-3,0,0]
[90,"Per Customer",{"$f":"C86/C$16","v":17.339371633384189},14.7412418399286,19.512437334686432,181.79957004666144,681.37536030918295,{"$f":"H86/H$16","v":21901.502702433809},23.505115758075171,6.2354449022127003,0,0]
[91]
[92,"DISTRIBUTION-SERVICE",{"$f":"+C92/$C92","v":1},0.70189011916313948,0.18271426494609,7.5358395596966041E-2,2.3549201958205462E-2,{"$f":"+H92/$C92","v":2.7525756149106816E-3},8.9406646439029423E-3,4.7947780767852418E-3,0,0]
[93,"Revenue Requirement",{"$f":"'Distribution Summary'!E$401","v":4181331.1003015735},{"$f":"'Distribution Summary'!F$401","v":2934834.9842512123},{"$f":"'Distribution Summary'!G$401","v":763988.83848782768},{"$f":"'Distribution Summary'!H$401","v":315098.40317842329},{"$f":"'Distribution Summary'!I$401","v":98467.010535127207},{"$f":"'Distribution Summary'!J$401","v":11509.43002455776},{"$f":"'Distribution Summary'!K$401","v":37383.879132918068},{"$f":"'Distribution Summary'!L$401","v":20048.554691506299},0,0]
[94,"NCP KW",{"$f":"C92/C$14","v":0.21887080519478053},0.22516733473875175,0.30235389385185824,0.13563594689045858,0.12154278017011919,{"$f":"H92/H$14","v":0.31415629502559667},0.11101316008120499,0.54723645298357626,0,0]
[95,"Per KWH",{"$f":"C92/C$15","v":1.0456261139797831E-3},1.8322017165486569E-3,1.4216502061628121E-3,3.6609363881615894E-4,2.7477521935909268E-4,{"$f":"H92/H$15","v":2.4285179606073993E-5},2.434558501177556E-4,1.5267073638904173E-3,0,0]
[96,"Per Customer",{"$f":"C92/C$16","v":31.586416280173911},28.139214067203088,40.971597266975017,301.67551857685669,1700.298093224189,{"$f":"H92/H$16","v":11509.43002455776},7.1072013560680736,6.5297648544695344,0,0]
[97]
[98,"RETAIL-TOTAL",{"$f":"+C98/$C98","v":1},0.82713259536381822,0.11383994061794087,1.4595876887584154E-2,5.1071174245550053E-3,{"$f":"+H98/$C98","v":4.8942979151767865E-3},2.2055377909568141E-2,1.2374793881356613E-2,0,0]
[99,"Revenue Requirement",{"$f":"'Retail Summary'!E$61","v":8350814.6490011215},{"$f":"'Retail Summary'!F$61","v":6907230.9940304905},{"$f":"'Retail Summary'!G$61","v":950656.24375371833},{"$f":"'Retail Summary'!H$61","v":121887.46252785466},{"$f":"'Retail Summary'!I$61","v":42648.591003142821},{"$f":"'Retail Summary'!J$61","v":40871.374726633956},{"$f":"'Retail Summary'!K$61","v":184180.37293647736},{"$f":"'Retail Summary'!L$61","v":103339.61002280226},0,0]
[100,"NCP KW",{"$f":"C98/C$14","v":0.43712145305293326},0.52993875352332831,0.37622881714141376,5.2467169707234251E-2,5.2643299443026141E-2,{"$f":"H98/H$14","v":1.115606909232284},0.54693214558917314,2.820712141685835,0,0]
[101,"Per KWH",{"$f":"C98/C$15","v":2.0882895089008179E-3},4.3121472081980219E-3,1.7690057456827245E-3,1.4161361731060047E-4,1.190122040321741E-4,{"$f":"H98/H$15","v":8.6239602992121023E-5},1.1994418532337927E-3,7.8693624568466364E-3,0,0]
[102,"Per Customer",{"$f":"C98/C$16","v":63.083334338890204},66.226568987909758,50.982295547022126,116.6951755235859,736.44276968754798,{"$f":"H98/H$16","v":40871.374726633956},35.015280025946268,33.657456309673947,0,0]
[103]
[104,"MISC - Total",{"$f":"+C104/$C104","v":1},0.43099052538594768,0.14005796258265243,0.20972102103872611,8.1492912495938319E-2,{"$f":"+H104/$C104","v":9.6705061584670793E-2},3.7535125688882891E-2,3.4973912231818487E-3,0,0]
[105,"Revenue Requirement",{"$f":"'Misc Summary'!E$61","v":4850632.5415500216},{"$f":"'Misc Summary'!F$61","v":2090576.6675368184},{"$f":"'Misc Summary'!G$61","v":679369.71100660926},{"$f":"'Misc Summary'!H$61","v":1017279.6092975416},{"$f":"'Misc Summary'!I$61","v":395292.17325848679},{"$f":"'Misc Summary'!J$61","v":469080.71865520306},{"$f":"'Misc Summary'!K$61","v":182069.10211766552},{"$f":"'Misc Summary'!L$61","v":16964.559677697311},0,0]
[106,"NCP KW",{"$f":"C104/C$14","v":0.25390523366984424},0.16039388204866581,0.26886528590447811,0.43789394572494017,0.4879289972978853,{"$f":"H104/H$14","v":12.803819157528197},0.54066262913395979,0.46305709350631374,0,0]
[107,"Per KWH",{"$f":"C104/C$15","v":1.2129984287537095E-3},1.3051357842576621E-3,1.2641887434180156E-3,1.1819152052330024E-3,1.1030749590928755E-3,{"$f":"H104/H$15","v":9.8977181997555834E-4},1.185692578307156E-3,1.2918596169963113E-3,0,0]
[108,"Per Customer",{"$f":"C104/C$16","v":36.642421995356116},20.044460655333111,36.433597969622014,973.94449028268684,6825.7838316121124,{"$f":"H104/H$16","v":469080.71865520306},34.613897741001047,5.5253152788070699,0,0]
[109]
[110,"Classification Revenue Requirement"]
[111,"Generation - Demand",{"$f":"C32","v":75499238.461479083},{"$f":"D32","v":33011273.51382168},10196399.171937076,16067523.684510028,6158598.5963004725,{"$f":"H32","v":7367153.5814255653},2558374.8904787609,139915.02300551097]
[112,"Transmission - Demand",{"$f":"C50","v":18436770.669253405},{"$f":"D50","v":7950651.6643755194},2490819.7394940164,3931098.9099916806,1528508.0773544544,{"$f":"H50","v":1856096.4740113062},640313.33798818151,39282.46603824589]
[113,"Distribution - Substation",{"$f":"C68","v":5865769.2645024452},{"$f":"D68","v":3007252.655412443},784748.05318936834,1037270.690428767,395725.09830597258,{"$f":"H68","v":263569.0227270865},339915.23643083189,37288.508007975441]
[114,"Demand - TOTAL Revenue Requirement",{"$f":"SUM(C110:C112)","v":99801778.395234942},43969177.833609641,13471966.964620462,21035893.284930475,8082831.7719608992,{"$f":"SUM(H110:H112)","v":9486819.0781639591},3538603.4648977742,216485.99705173229]
[115]
[116,"Generation - Energy",{"$f":"C38","v":123182968.01609744},{"$f":"D38","v":51215957.833307572},16621706.189606525,26455035.630549647,10642977.941858172,{"$f":"H38","v":13393605.459349431},4519644.1813950408,334040.78003105754]
[117,"Transmission - Energy",{"$f":"C56","v":30081047.943499137},{"$f":"D56","v":12632701.195665719},4062105.0960100028,6444650.3359865015,2570213.6932912646,{"$f":"H56","v":3204652.3215615619},1089059.2350856357,77666.065898454312]
[118,"MISC - Total",{"$f":"C104","v":4850632.5415500216},{"$f":"D104","v":2090576.6675368184},679369.71100660926,1017279.6092975416,395292.17325848679,{"$f":"H104","v":469080.71865520306},182069.10211766552,16964.559677697311]
[119,"Energy - TOTAL Revenue Requirement",{"$f":"SUM(C115:C117)","v":158114648.50114658},{"$f":"SUM(D115:D117)","v":65939235.696510106},21363180.996623136,33916965.575833693,13608483.808407925,{"$f":"SUM(H115:H117)","v":17067338.499566197},5790772.5185983414,428671.40560720913]
[120]
[121,"Distribution - Meter",{"$f":"C86","v":2295342.8216503267},{"$f":"D86","v":1537466.9725958812},363844.3538887747,189888.64091612631,39459.548328208359,{"$f":"H86","v":21901.502702433809},123636.90888747539,19144.894331427065]
[122,"Distribution - Service",{"$f":"C92","v":4181331.1003015735},{"$f":"D92","v":2934834.9842512123},763988.83848782768,315098.40317842329,98467.010535127207,{"$f":"H92","v":11509.43002455776},37383.879132918068,20048.554691506299]
[123,"Retail Total",{"$f":"C98","v":8350814.6490011215},{"$f":"D98","v":6907230.9940304905},950656.24375371833,121887.46252785466,42648.591003142821,{"$f":"H98","v":40871.374726633956},184180.37293647736,103339.61002280226]
[124,"Customer - TOTAL Revenue Requirement",{"$f":"SUM(C120:C122)","v":14827488.570953023},{"$f":"SUM(D120:D122)","v":11379532.950877585},2078489.4361303207,626874.50662240433,180575.1498664784,{"$f":"SUM(H120:H122)","v":74282.307453625515},345201.16095687082,142533.05904573563]
[125]
[126,"Distribution - P&C",{"$f":"C74","v":22573948.340673227},{"$f":"D74","v":13153897.618857242},3339357.5631727511,3166599.7103883578,1192847.056583791,{"$f":"H74","v":132020.28481877036},1020538.0883492331,568688.0185030821]
[127,"Distribution - Transformer",{"$f":"C80","v":7909732.0563639393},{"$f":"D80","v":4824667.5673222635},1107466.8536723778,1163469.3952210397,367919.22829507815,{"$f":"H80","v":21114.405079353324},376426.45798934175,48668.148784484234]
[128,"Load Size - TOTAL Revenue Requirement",{"$f":"SUM(C125:C126)","v":30483680.397037167},{"$f":"SUM(D125:D126)","v":17978565.186179504},4446824.4168451289,4330069.1056093974,1560766.2848788691,{"$f":"SUM(H125:H126)","v":153134.68989812367},1396964.546338575,617356.16728756635]
[129]
[130]
[131,"Total Classification Revenue Requirement",{"$f":"C113+C118+C123+C127","v":303227595.86437172},{"$f":"D113+D118+D123+D127","v":139266511.66717684},41360461.81421905,59909802.472995967,23432657.01511417,{"$f":"H113+H118+H123+H127","v":26781574.575081903},11071541.69079156,1405046.6289922434]
[132,"GTDRM Revenue Requirement",{"$f":"C20","v":303227595.86437172},{"$f":"D20","v":139266511.66717678},41360461.814219043,59909802.472995959,23432657.015114173,{"$f":"H20","v":26781574.5750819},11071541.690791562,1405046.6289922434]
[133,"Check",{"$f":"C130-C131","v":0},{"$f":"D130-D131","v":0},0,0,0,{"$f":"H130-H131","v":0},0,0]
[134]
[135,"UNITS"]
[136,"NCP KW",{"$f":"C14","v":19104106.171585862},{"$f":"D14","v":13034017.512603801},2526803.3718862995,2323118.6894201506,810142.81882729987,{"$f":"H14","v":36636},336751.77884831082,36636]
[137,"Annual KWH",{"$f":"C15","v":3998877844},1601807791,537395792,860704392.99999988,358354770,{"$f":"H15","v":473928141},153555066,13131891.000000002]
[138,"Average Customers",132377.50883838322,104296.97777777778,18646.79166666606,1044.4944444444434,57.91161616161623,{"$f":"H16","v":1},5260,3070.3333333333339]
[139,"Load Factor",0,0,0,0,0,{"$f":"H17","v":0},0,0]
[140]
[141,"100% Cost Based Rates"]
[142,"Demand Charge",{"$f":"C$113/C135","v":5.2241009078809073},{"$f":"D$113/D135","v":3.37341712109039},5.3316245793052826,9.0550230518704247,9.9770455086684375,{"$f":"H$113/H135","v":258.94800409880878},10.508046837940331,5.9091057171015473]
[143,"Energy Charge",{"$f":"C$118/C136","v":3.9539754568493533E-2},{"$f":"D$118/D136","v":4.1165510660517261E-2},3.9753160174769542E-2,3.9406056076483509E-2,3.7974892334788582E-2,{"$f":"H$118/H136","v":3.6012502789038218E-2},3.771137396794412E-2,3.2643539731422463E-2]
[144,"Customer Charge",{"$f":"C$123/C137/12","v":9.3340935210373583},{"$f":"D$123/D137/12","v":9.0922520745867867},9.2888608457236312,50.014188678925336,259.84301860174338,{"$f":"H$123/H137/12","v":6190.192287802126},5.4689664283407922,3.8685555055296823]
[145,"Load Size Charge",{"$f":"C127/C135","v":1.5956611695540357},{"$f":"D127/D135","v":1.3793571451622157},1.7598616759504728,1.8639035213005759,1.9265322713569364,{"$f":"H127/H135","v":4.1798965470609151},4.1483509043847837,16.851080011124751]
[146]
[147,"Check"]
[{"$f":"+A146+1","v":148},"Demand Revenue Requirement",{"$f":"C141*C135","v":99801778.395234942},{"$f":"D141*D135","v":43969177.833609641},13471966.964620462,21035893.284930475,8082831.7719609002,{"$f":"H141*H135","v":9486819.0781639591},3538603.4648977742,216485.99705173229]
[{"$f":"+A147+1","v":149},"Energy Revenue Requirement",{"$f":"C142*C136","v":158114648.50114658},65939235.696510106,21363180.996623136,33916965.575833693,13608483.808407925,{"$f":"H142*H136","v":17067338.499566197},5790772.5185983414,428671.40560720913]
[{"$f":"+A148+1","v":150},"Customer Revenue Requirement",{"$f":"C143*C137*12","v":14827488.570953021},{"$f":"D143*D137*12","v":11379532.950877585},2078489.4361303209,626874.50662240421,180575.14986647843,{"$f":"H143*H137*12","v":74282.307453625515},345201.16095687082,142533.05904573563]
[{"$f":"+A149+1","v":151},"Load Size Revenue Requirement",{"$f":"C144*C135","v":30483680.397037167},{"$f":"D144*D135","v":17978565.186179504},4446824.4168451289,4330069.1056093974,1560766.2848788691,{"$f":"H144*H135","v":153134.68989812367},1396964.546338575,617356.16728756635]
[{"$f":"+A150+1","v":152},"Total Revenue Requirement",{"$f":"SUM(C147:C150)","v":303227595.86437172},{"$f":"SUM(D147:D150)","v":139266511.66717684},41360461.81421905,59909802.472995967,23432657.01511417,{"$f":"SUM(H147:H150)","v":26781574.575081903},11071541.69079156,1405046.6289922434]

{"sheet":"Unit Costs-target","index":3,"n_rows":151,"n_cols":10,"rows_kept":151,"cut":false,"hidden":false,"merged":[[5,1,5,9],[6,1,6,9],[1,1,1,9],[2,1,2,9],[3,1,3,9],[4,1,4,9]]}
[null,"Unit Costs @ Target ROR"]
[null,{"$f":"Inputs!$C$3","v":"PacifiCorp"}]
[null,"Cost Of Service By Rate Schedule"]
[null,{"$f":"Inputs!$C$4","v":"State of Washington"}]
[null,{"$f":"Inputs!$C$5","v":"12 Months Ending June 2012"}]
[null,{"$f":"+Method&\" - \"&IF(PeakMethod=1,\"(Coincident Peaks)\",IF(PeakMethod=2,\"(200 Top Hours)\",\"(100 Summer, 100 Winter Hours)\"))&\" - \"&TEXT(Demand,\"0%\")&\"D\"&\" / \"&TEXT(Engy,\"0%\")&\"E\"","v":"WCA Method - (100 Summer, 100 Winter Hours) - 38%D / 62%E"}]
[null,{"$f":"TEXT(TargetROR,\"0.00%\")&\" Target Return on Rate Base\"","v":"7.80% Target Return on Rate Base"}]
[]
[null,null,{"$f":"'Hot Sheet'!$H$10","v":"Washington"},null,{"$f":"'Hot Sheet'!$J$10","v":"Small General"},{"$f":"'Hot Sheet'!$K$10","v":"Large General"},{"$f":"'Hot Sheet'!$L$10","v":"Large General"},{"$f":"'Hot Sheet'!$M$10","v":"Large General"},{"$f":"'Hot Sheet'!$N$10","v":"Agricultural"},{"$f":"'Hot Sheet'!$O$10","v":"Street & Area"}]
[null,"Description",{"$f":"'Hot Sheet'!$H$11","v":"Jurisdiction"},{"$f":"'Hot Sheet'!$I$11","v":"Residential"},{"$f":"'Hot Sheet'!$J$11","v":"Service"},{"$f":"'Hot Sheet'!$K$11","v":"Service <1,000 kW"},{"$f":"'Hot Sheet'!$L$11","v":"Service >1,000 kW"},{"$f":"'Hot Sheet'!$M$11","v":"Dedicated Facilities"},{"$f":"'Hot Sheet'!$N$11","v":"Pumping"},{"$f":"'Hot Sheet'!$O$11","v":"Lighting"}]
[null,null,{"$f":"'Hot Sheet'!$H$12","v":"Normalized"},{"$f":"'Hot Sheet'!$I$12","v":"Schedule 16"},{"$f":"'Hot Sheet'!$J$12","v":"Schedule 24"},{"$f":"'Hot Sheet'!$K$12","v":"Schedule 36"},{"$f":"'Hot Sheet'!$L$12","v":"Schedule 48T"},{"$f":"'Hot Sheet'!$M$12","v":"Schedule 48T"},{"$f":"'Hot Sheet'!$N$12","v":"Schedule 40"},{"$f":"'Hot Sheet'!$O$12","v":"Sch. 15,51-54,57"}]
[]
[14,"UNITS"]
[{"$f":"+A13+1","v":15},"NCP KW",{"$f":"SUM(D14:J14)","v":19104106.171585862},{"$f":"'Dist. Factors'!$P$189","v":13034017.512603801},{"$f":"'Dist. Factors'!$P$192","v":2526803.3718862995},{"$f":"'Dist. Factors'!$P$193+'Dist. Factors'!$P$194","v":2323118.6894201506},{"$f":"+'Dist. Factors'!$P$196+'Dist. Factors'!$P$197","v":810142.81882729987},{"$f":"'Dist. Factors'!$P$204","v":36636},{"$f":"'Dist. Factors'!$P$201","v":336751.77884831082},{"$f":"'Dist. Factors'!$P$204","v":36636}]
[{"$f":"+A14+1","v":16},"Annual KWH",{"$f":"SUM(D15:J15)","v":3998877844},{"$f":"'Energy Factor'!C27*1000","v":1601807791},{"$f":"'Energy Factor'!D27*1000","v":537395792},{"$f":"'Energy Factor'!E27*1000","v":860704392.99999988},{"$f":"'Energy Factor'!F27*1000","v":358354770},{"$f":"'Energy Factor'!G27*1000","v":473928141},{"$f":"'Energy Factor'!H27*1000","v":153555066},{"$f":"'Energy Factor'!I27*1000","v":13131891.000000002}]
[{"$f":"+A15+1","v":17},"Average Customers",{"$f":"SUM(D16:J16)","v":132377.50883838322},{"$f":"'Cust Factors'!D17","v":104296.97777777778},{"$f":"'Cust Factors'!E17","v":18646.79166666606},{"$f":"'Cust Factors'!F17","v":1044.4944444444434},{"$f":"'Cust Factors'!G17","v":57.91161616161623},{"$f":"'Cust Factors'!H17","v":1},{"$f":"'Cust Factors'!I17","v":5260},{"$f":"'Cust Factors'!J17","v":3070.3333333333339}]
[{"$f":"+A16+1","v":18}]
[null,"CP Load Factor",null,{"$f":"'Demand Factors'!D27*1000/730/'Demand Factors'!D25","v":3.8073988689514247E-2},{"$f":"'Demand Factors'!E27*1000/730/'Demand Factors'!E25","v":4.3553010500222922E-2},{"$f":"'Demand Factors'!F27*1000/730/'Demand Factors'!F25","v":4.4764989690541795E-2},{"$f":"'Demand Factors'!G27*1000/730/'Demand Factors'!G25","v":5.124392712450565E-2},{"$f":"'Demand Factors'!H27*1000/730/'Demand Factors'!H25","v":5.9289951241530608E-2},{"$f":"'Demand Factors'!I27*1000/730/'Demand Factors'!I25","v":5.4560656571423505E-2},{"$f":"'Demand Factors'!J27*1000/730/'Demand Factors'!J25","v":0.15338462915170195}]
[{"$f":"+A17+1","v":19}]
[{"$f":"+A19+1","v":20},"GTDRM TOTAL",{"$f":"+C21/$C21","v":1},0.45981563268719894,0.13670349899317213,0.19743480317447554,7.7126387632003926E-2,{"$f":"+H21/$C21","v":8.7537001276371013E-2},3.6750053148893819E-2,4.6326230878845354E-3]
[{"$f":"+A20+1","v":21},"Revenue Requirement",{"$f":"C99+C105+C33+C39+C51+C57+C69+C75+C81+C87+C93","v":346028268.86437178},{"$f":"D99+D105+D33+D39+D51+D57+D69+D75+D81+D87+D93","v":159109207.37552729},47303275.104309745,68318023.156041741,26687910.39606481,{"$f":"H99+H105+H33+H39+H51+H57+H69+H75+H81+H87+H93","v":30290277.013240963},12716557.271785384,1603018.5474018061]
[22,"NCP KW",{"$f":"C21/C$14","v":18.112769357355777},12.20722676041135,18.720599960651899,29.407891842622078,32.942229167316654,{"$f":"H21/H$14","v":826.78996105581837},37.762405636804466,43.755282983999514]
[23,"Per KWH",{"$f":"C21/C$15","v":8.6531342632423708E-2},9.9331023528232601E-2,8.802315873792653E-2,7.937454916189994E-2,7.4473434234082633E-2,{"$f":"H21/H$15","v":6.3913227328783934E-2},8.2814312826288539E-2,0.12207065588663552]
[24,"Per Customer",{"$f":"C21/C$16","v":2613.95060158467},1525.5399606548156,2536.8050413128954,65407.742012816016,460838.63937738858,{"$f":"H21/H$16","v":30290277.013240963},2417.5964395029246,522.09919033822791]
[25]
[26,"GENERATION-TOTAL",{"$f":"+C27/$C27","v":1},0.42388969430736595,0.13497605681068742,0.21404182727105633,8.4573878220011819E-2,{"$f":"+H27/$C27","v":0.10451141376553337},3.5624085375212736E-2,2.3830442501323397E-3]
[27,"Revenue Requirement",{"$f":"+C33+C39","v":224070839.63013515},94981319.714012802,30244198.379535552,47960531.952593952,18950539.903534848,{"$f":"+H33+H39","v":23417960.233375527},7982318.7210795358,533970.72600291914]
[28,"NCP KW",{"$f":"C27/C$14","v":11.728936052679751},7.2871867497620402,11.969351757259121,20.644890926586658,23.39160387913601,{"$f":"H27/H$14","v":639.20625159339249},23.703865049737882,14.575028005320426]
[29,"Per KWH",{"$f":"C27/C$15","v":5.6033429469803817E-2},5.9296327716521137E-2,5.6279187202000924E-2,5.5722420313699922E-2,5.2882064060525404E-2,{"$f":"H27/H$15","v":4.9412470388365326E-2},5.1983428023661141E-2,4.0662135103232203E-2]
[30,"Per Customer",{"$f":"C27/C$16","v":1692.6654806874958},910.68141894184555,1621.9518574662684,45917.460076203373,327232.10228926834,{"$f":"H27/H$16","v":23417960.233375527},1517.5510876577064,173.91294951783271]
[31]
[32,"GENERATION-DEMAND",{"$f":"+C33/$C33","v":1},0.44012959243392857,0.1350652476748434,0.21257045055383525,8.0921642772996419E-2,{"$f":"+H33/$C33","v":9.6076790503224194E-2},3.3502684847901081E-2,1.7335912132713086E-3]
[33,"Revenue Requirement",{"$f":"'Generation Summary'!E$136","v":85146919.059451342},{"$f":"'Generation Summary'!F$136","v":37475678.782641023},{"$f":"'Generation Summary'!G$136","v":11500389.711514641},{"$f":"'Generation Summary'!H$136","v":18099718.947738513},{"$f":"'Generation Summary'!I$136","v":6890228.5673501613},{"$f":"'Generation Summary'!J$136","v":8180642.7044698941},{"$f":"'Generation Summary'!K$136","v":2852650.3950185403},{"$f":"'Generation Summary'!L$136","v":147609.95071858817}]
[34,"NCP KW",{"$f":"C33/C$14","v":4.4569957000183047},2.8752208401133661,4.5513591755774074,7.7911296698560824,8.5049554315915845,{"$f":"H33/H$14","v":223.29519337454673},8.471077435060888,4.0290957178345934]
[35,"Per KWH",{"$f":"C33/C$15","v":2.1292703198525446E-2},2.3395864967821863E-2,2.1400222857559405E-2,2.1028960808079106E-2,1.9227394593771312E-2,{"$f":"H33/H$15","v":1.7261356726377415E-2},1.8577377284436453E-2,1.1240570814864983E-2]
[36,"Per Customer",{"$f":"C33/C$16","v":643.21288266124827},359.31701551783453,616.74897843543317,17328.68857657312,118978.35052852485,{"$f":"H33/H$16","v":8180642.7044698941},542.32897243698483,48.07619717248555]
[37]
[38,"GENERATION-ENERGY",{"$f":"+C39/$C39","v":1},0.41393620835882761,0.13492139144233375,0.21494363880741763,8.681234510689223E-2,{"$f":"+H39/$C39","v":0.10968102157146481},3.6924298601629553E-2,2.7810961114342614E-3]
[39,"Revenue Requirement",{"$f":"'Generation Summary'!E$204","v":138923920.57068381},{"$f":"'Generation Summary'!F$204","v":57505640.931371786},{"$f":"'Generation Summary'!G$204","v":18743808.668020912},{"$f":"'Generation Summary'!H$204","v":29860813.004855435},{"$f":"'Generation Summary'!I$204","v":12060311.336184688},{"$f":"'Generation Summary'!J$204","v":15237317.528905634},{"$f":"'Generation Summary'!K$204","v":5129668.3260609955},{"$f":"'Generation Summary'!L$204","v":386360.77528433094}]
[40,"NCP KW",{"$f":"C39/C$14","v":7.2719403526614466},4.411965909648675,7.4179925816817143,12.853761256730573,14.886648447544426,{"$f":"H39/H$14","v":415.91105821884577},15.232787614676996,10.545932287485831]
[41,"Per KWH",{"$f":"C39/C$15","v":3.4740726271278367E-2},3.5900462748699284E-2,3.4878964344441522E-2,3.4693459505620812E-2,3.3654669466754099E-2,{"$f":"H39/H$15","v":3.2151113661987911E-2},3.3406050739224688E-2,2.942156428836722E-2]
[42,"Per Customer",{"$f":"C39/C$16","v":1049.4525980262474},551.36440342401113,1005.2028790308353,28588.771499630249,208253.7517607435,{"$f":"H39/H$16","v":15237317.528905634},975.22211522072155,125.83675234534715]
[43]
[44,"TRANSMISSION-TOTAL",{"$f":"+C45/$C45","v":1},0.42422810624733498,0.13505406358640631,0.21385407585575164,8.4482776454560884E-2,{"$f":"+H45/$C45","v":0.10433547512115234},3.5637708968539322E-2,2.4077937662545334E-3]
[45,"Revenue Requirement",{"$f":"+C51+C57","v":55781385.837993585},23664031.677903928,7533502.8299022503,11929076.71833723,4712566.3500768207,{"$f":"+H51+H57","v":5819977.3943233788},1987920.7943562162,134310.07309375986]
[46,"NCP KW",{"$f":"C45/C$14","v":2.9198636846438277},1.815559297432352,2.9814361155764839,5.1349407039184563,5.8169575049722315,{"$f":"H45/H$14","v":158.85952053508512},5.9032228460823406,3.6660681595632671]
[47,"Per KWH",{"$f":"C45/C$15","v":1.394925977088526E-2},1.4773327867965107E-2,1.4018537067186879E-2,1.38596675180874E-2,1.315056124431334E-2,{"$f":"H45/H$15","v":1.2280295029628508E-2},1.2945979876406137E-2,1.0227778550230111E-2]
[48,"Per Customer",{"$f":"C45/C$16","v":421.38114191358477},226.89086665889897,404.01067189319855,11420.909686774057,81375.148241853167,{"$f":"H45/H$16","v":5819977.3943233788},377.9317099536533,43.744459806891705]
[49]
[50,"TRANSMISSION-DEMAND",{"$f":"+C51/$C51","v":1},0.43958691441961389,0.13513841543581623,0.21246252816549385,8.1028691754836582E-2,{"$f":"+H51/$C51","v":9.6358469367647401E-2},3.3631404281098655E-2,1.7935765754934746E-3]
[51,"Revenue Requirement",{"$f":"'Transmission Summary'!E$136","v":21196925.761838309},{"$f":"'Transmission Summary'!F$136","v":9317891.1908281259},{"$f":"'Transmission Summary'!G$136","v":2864518.9595654611},{"$f":"'Transmission Summary'!H$136","v":4503552.436696454},{"$f":"'Transmission Summary'!I$136","v":1717559.1637061508},{"$f":"'Transmission Summary'!J$136","v":2042503.3217103928},{"$f":"'Transmission Summary'!K$136","v":712882.3798128193},{"$f":"'Transmission Summary'!L$136","v":38018.309518907365}]
[52,"NCP KW",{"$f":"C51/C$14","v":1.1095481553261657},0.71489018499612977,1.1336532915210777,1.9385804337963199,2.1200696022861214,{"$f":"H51/H$14","v":55.751264376853172},2.1169372356424456,1.0377309072744667]
[53,"Per KWH",{"$f":"C51/C$15","v":5.3007184987264918E-3},5.8171094204823521E-3,5.3303710267337953E-3,5.2324032191810302E-3,4.7929016368504062E-3,{"$f":"H51/H$15","v":4.3097320986271483E-3},4.6425194451925099E-3,2.8951130891131643E-3]
[54,"Per Customer",{"$f":"C51/C$16","v":160.12482745628012},89.339992292791621,153.61993691848977,4311.7054960420119,29658.284080915491,{"$f":"H51/H$16","v":2042503.3217103928},135.52896954616335,12.382469716287273]
[55]
[56,"TRANSMISSION-ENERGY",{"$f":"+C57/$C57","v":1},0.41481464378757044,0.13500236406917002,0.21470695986838334,8.6599795971243676E-2,{"$f":"+H57/$C57","v":0.10922460736107939},3.6867379503272617E-2,2.7842494392804518E-3]
[57,"Revenue Requirement",{"$f":"'Transmission Summary'!E$204","v":34584460.076155275},{"$f":"'Transmission Summary'!F$204","v":14346140.487075802},{"$f":"'Transmission Summary'!G$204","v":4668983.8703367896},{"$f":"'Transmission Summary'!H$204","v":7425524.2816407764},{"$f":"'Transmission Summary'!I$204","v":2995007.1863706694},{"$f":"'Transmission Summary'!J$204","v":3777474.0726129855},{"$f":"'Transmission Summary'!K$204","v":1275038.414543397},{"$f":"'Transmission Summary'!L$204","v":96291.763574852492}]
[58,"NCP KW",{"$f":"C57/C$14","v":1.810315529317662},1.1006691124362222,1.8477828240554064,3.1963602701221365,3.6968879026861097,{"$f":"H57/H$14","v":103.10825615823194},3.786285610439895,2.6283372522888002]
[59,"Per KWH",{"$f":"C57/C$15","v":8.6485412721587687E-3},8.9562184474827559E-3,8.6881660404530842E-3,8.6272642989063692E-3,8.3576596074629323E-3,{"$f":"H57/H$15","v":7.9705629310013598E-3},8.3034604312136277E-3,7.3326654611169462E-3]
[60,"Per Customer",{"$f":"C57/C$16","v":261.25631445730465},137.55087436610737,250.39073497470878,7109.2041907320454,51716.864160937672,{"$f":"H57/H$16","v":3777474.0726129855},242.40274040748992,31.361990090604433]
[61]
[62,"DISTRIBUTION-TOTAL",{"$f":"+C63/$C63","v":1},0.59475695764507175,0.14895514817014585,0.13731037551420633,4.8689887833434288E-2,{"$f":"+H63/$C63","v":1.0028534340367131E-2},4.4908132350667089E-2,1.5350964146107555E-2]
[63,"Revenue Requirement",{"$f":"+C69+C75+C81+C87+C93","v":52931961.412514679},31481652.331893563,7884488.1551375668,7268107.4982558703,2577251.2639790117,{"$f":"+H69+H75+H81+H87+H93","v":530829.99272839131},2377075.5286936127,812556.64182666142]
[64,"NCP KW",{"$f":"C63/C$14","v":2.7707112249638799},2.4153452534071733,3.1203409979826287,3.1285992968658811,3.1812307707789613,{"$f":"H63/H$14","v":14.489299943454288},7.0588358488355949,22.179185550460243]
[65,"Per KWH",{"$f":"C63/C$15","v":1.3236703764766133E-2},1.9653826450825126E-2,1.4671659645480751E-2,8.4443713281429373E-3,7.1918988659729899E-3,{"$f":"H63/H$15","v":1.120064302593062E-3},1.5480280726743413E-2,6.1876590494595277E-2]
[66,"Per Customer",{"$f":"C63/C$16","v":399.85615288423463},301.84625674360871,422.83349844210858,6958.4932087615907,44503.183209160925,{"$f":"H63/H$16","v":530829.99272839131},451.91549975163741,264.64769574204581]
[67]
[68,"DISTRIBUTION-SUBSTATION",{"$f":"+C69/$C69","v":1},0.50334152062869464,0.13270988189247193,0.18120427415030527,6.9304884266012931E-2,{"$f":"+H69/$C69","v":4.7492085869113021E-2},6.0283598744035119E-2,5.6637544493671173E-3]
[69,"Revenue Requirement",{"$f":"'Distribution Summary'!E$136","v":7368826.5710968282},{"$f":"'Distribution Summary'!F$136","v":3709036.3715450075},{"$f":"'Distribution Summary'!G$136","v":977916.10393636895},{"$f":"'Distribution Summary'!H$136","v":1335262.8701550835},{"$f":"'Distribution Summary'!I$136","v":510695.67268618662},{"$f":"'Distribution Summary'!J$136","v":349960.94426913222},{"$f":"'Distribution Summary'!K$136","v":444219.38422638539},{"$f":"'Distribution Summary'!L$136","v":41735.224278664296}]
[70,"NCP KW",{"$f":"C69/C$14","v":0.38571951521378772},0.28456585760747949,0.38701709631103542,0.574771696442408,0.6303773369557607,{"$f":"H69/H$14","v":9.5523786513028774},1.319130030272188,1.1391861633001501]
[71,"Per KWH",{"$f":"C69/C$15","v":1.8427235986098374E-3},2.3155314841048912E-3,1.8197315991197211E-3,1.5513605844406136E-3,1.4251119712629656E-3,{"$f":"H69/H$15","v":7.3842617475870082E-4},2.8928995688516416E-3,3.1781579879595627E-3]
[72,"Per Customer",{"$f":"C69/C$16","v":55.665245824298339},35.562261252169094,52.444201738175728,1278.3819744156676,8818.5360128953762,{"$f":"H69/H$16","v":349960.94426913222},84.452354415662626,13.593059693409279]
[73]
[74,"DISTRIBUTION- P & C",{"$f":"+C75/$C75","v":1},0.58054224415482836,0.14763147960452569,0.14159866058455609,5.3628226898209577E-2,{"$f":"+H75/$C75","v":4.8030393101486405E-3},4.6305365794571403E-2,2.5490983653160344E-2]
[75,"Revenue Requirement",{"$f":"'Distribution Summary'!E$204","v":26780868.44137904},{"$f":"'Distribution Summary'!F$204","v":15547425.465373408},{"$f":"'Distribution Summary'!G$204","v":3953699.2330949353},{"$f":"'Distribution Summary'!H$204","v":3792135.1005904805},{"$f":"'Distribution Summary'!I$204","v":1436210.4893053754},{"$f":"'Distribution Summary'!J$204","v":128629.56388386269},{"$f":"'Distribution Summary'!K$204","v":1240097.9094743498},{"$f":"'Distribution Summary'!L$204","v":682670.67965663085}]
[76,"NCP KW",{"$f":"C75/C$14","v":1.4018383378339401},1.1928344771931725,1.5647039564235801,1.632346688897327,1.7727867925612457,{"$f":"H75/H$14","v":3.5110155007059367},3.6825281627775737,18.633875959619797]
[77,"Per KWH",{"$f":"C75/C$15","v":6.6970959069333957E-3},9.7061742068736186E-3,7.3571458726549447E-3,4.4058507559987335E-3,4.0077895134628047E-3,{"$f":"H75/H$15","v":2.7141153427279326E-4},8.0759166192169128E-3,5.1985710181163609E-2]
[78,"Per Customer",{"$f":"C75/C$16","v":202.30678667684563},149.06880138463654,212.03107235668676,3630.5938444770577,24800.041589191471,{"$f":"H75/H$16","v":128629.56388386269},235.76005883542771,222.34415796003606]
[79]
[80,"DISTRIBUTION-TRANSFORMER",{"$f":"+C81/$C81","v":1},0.60876072236253609,0.13882810682513089,0.14970181187250767,4.6285023431242578E-2,{"$f":"+H81/$C81","v":1.6302033383384369E-3},4.9832765998681368E-2,4.9613661715630719E-3]
[81,"Revenue Requirement",{"$f":"'Distribution Summary'!E$272","v":10323832.413334122},{"$f":"'Distribution Summary'!F$272","v":6284743.6774910446},{"$f":"'Distribution Summary'!G$272","v":1433238.1091230982},{"$f":"'Distribution Summary'!H$272","v":1545496.4177442417},{"$f":"'Distribution Summary'!I$272","v":477838.82515139144},{"$f":"'Distribution Summary'!J$272","v":16829.946064663847},{"$f":"'Distribution Summary'!K$272","v":514465.12486328126},{"$f":"'Distribution Summary'!L$272","v":51220.312896402262}]
[{"$f":"+A81+1","v":82},"NCP KW",{"$f":"C81/C$14","v":0.54039860962922637},0.48218008541217189,0.5672139451251258,0.66526795414400319,0.58982047862014497,{"$f":"H81/H$14","v":0.45938274005524204},1.5277280097012378,1.3980869335190049]
[83,"Per KWH",{"$f":"C81/C$15","v":2.5816823659227839E-3},3.9235317200995217E-3,2.6670065721748305E-3,1.7956181359286287E-3,1.333423928336133E-3,{"$f":"H81/H$15","v":3.5511598929644161E-5},3.3503624352144868E-3,3.9004521813653689E-3]
[84,"Per Customer",{"$f":"C81/C$16","v":77.98781306527124},60.258157152758024,76.862450910803418,1479.6597779572455,8251.1740618301483,{"$f":"H81/H$16","v":16829.946064663847},97.807057958798723,16.682329680730295]
[85]
[86,"DISTRIBUTION-METER",{"$f":"+C87/$C87","v":1},0.67291276525246535,0.15927253436442915,8.0682417624098987E-2,1.5807737813333226E-2,{"$f":"+H87/$C87","v":9.5446028767208358E-3},5.4944592471014998E-2,6.835349597937565E-3]
[87,"Revenue Requirement",{"$f":"'Distribution Summary'!E$340","v":2741191.5919538438},{"$f":"'Distribution Summary'!F$340","v":1844582.8142284688},{"$f":"'Distribution Summary'!G$340","v":436596.53202895285},{"$f":"'Distribution Summary'!H$340","v":221165.96480968877},{"$f":"'Distribution Summary'!I$340","v":43332.037981719885},{"$f":"'Distribution Summary'!J$340","v":26163.585154205626},{"$f":"'Distribution Summary'!K$340","v":150613.65490487678},{"$f":"'Distribution Summary'!L$340","v":18737.00284593154}]
[88,"NCP KW",{"$f":"C87/C$14","v":0.14348703714968378},0.1415206640964515,0.17278611263805085,9.5202180507140466E-2,5.3486912399524807E-2,{"$f":"H87/H$14","v":0.71414961115311781},0.4472542221453874,0.51143691576404471]
[89,"Per KWH",{"$f":"C87/C$15","v":6.8549020472500428E-4},1.1515631429641791E-3,8.1243012790273739E-4,2.5695926105223074E-4,1.2091938383217247E-4,{"$f":"H87/H$15","v":5.5205806304305588E-5},9.8084458447549212E-4,1.4268320416253484E-3]
[90,"Per Customer",{"$f":"C87/C$16","v":20.707381608914428},17.68587022874874,23.414029600032197,211.74451045292523,748.24432218903121,{"$f":"H87/H$16","v":26163.585154205626},28.633774696744634,6.1025956506128116]
[91]
[92,"DISTRIBUTION-SERVICE",{"$f":"+C93/$C93","v":1},0.71640551868435065,0.18943366437438075,6.542439853517476E-2,1.909561136581759E-2,{"$f":"+H93/$C93","v":1.6172050646332484E-3},4.8413996317757694E-3,3.1822023438671031E-3]
[93,"Revenue Requirement",{"$f":"'Distribution Summary'!E$408","v":5717242.3947508438},{"$f":"'Distribution Summary'!F$408","v":4095864.0032556374},{"$f":"'Distribution Summary'!G$408","v":1083038.1769542121},{"$f":"'Distribution Summary'!H$408","v":374047.14495637611},{"$f":"'Distribution Summary'!I$408","v":109174.23885433839},{"$f":"'Distribution Summary'!J$408","v":9245.9533565269867},{"$f":"'Distribution Summary'!K$408","v":27679.455224719553},{"$f":"'Distribution Summary'!L$408","v":18193.422149032504}]
[94,"NCP KW",{"$f":"C93/C$14","v":0.29926772513724187},0.31424416909789837,0.42861988748483687,0.16101077687500251,0.13475925024228516,{"$f":"H93/H$14","v":0.25237344023711611},8.2195423939208673E-2,0.49659957825724704]
[95,"Per KWH",{"$f":"C93/C$15","v":1.429711688575112E-3},2.5570258967829163E-3,2.015345473628517E-3,4.3458259072273162E-4,3.0465406907891415E-4,{"$f":"H93/H$15","v":1.9509188327618188E-5},1.8025751898488035E-4,1.3854381024813944E-3]
[96,"Per Customer",{"$f":"C93/C$16","v":43.188925708904968},39.271166725296332,58.081743836410503,358.11310145869487,1885.1872230548968,{"$f":"H93/H$16","v":9245.9533565269867},5.2622538450037171,5.9255527572573552]
[97]
[98,"RETAIL-TOTAL",{"$f":"+C99/$C99","v":1},0.82644592657743843,0.11428186260926838,1.4378390324401314E-2,5.1730337478864477E-3,{"$f":"+H99/$C99","v":4.9403824204111687E-3},2.2111231076191368E-2,1.2669173244403097E-2]
[99,"Revenue Requirement",{"$f":"'Retail Summary'!E$68","v":8280757.7141672578},{"$f":"'Retail Summary'!F$68","v":6843598.4818482306},{"$f":"'Retail Summary'!G$68","v":946340.41539110185},{"$f":"'Retail Summary'!H$68","v":119063.96659609405},{"$f":"'Retail Summary'!I$68","v":42836.639113458266},{"$f":"'Retail Summary'!J$68","v":40910.109838756092},{"$f":"'Retail Summary'!K$68","v":183097.74730390648},{"$f":"'Retail Summary'!L$68","v":104910.35407571237}]
[100,"NCP KW",{"$f":"C99/C$14","v":0.43345433907206238},0.52505671986634361,0.37452079806456939,5.1251779402546306E-2,5.2875416677105491E-2,{"$f":"H99/H$14","v":1.1166642056653591},0.54371723864414245,2.8635864743889172]
[101,"Per KWH",{"$f":"C99/C$15","v":2.0707703603879473E-3},4.2724217726371585E-3,1.7609747405523076E-3,1.3833316939523751E-4,1.1953695806381555E-4,{"$f":"H99/H$15","v":8.6321335028628513E-5},1.1923914467524405E-3,7.9889753940016982E-3]
[102,"Per Customer",{"$f":"C99/C$16","v":62.554113510906539},65.616460109032744,50.750844022289769,113.99195776423974,739.68992669643978,{"$f":"H99/H$16","v":40910.109838756092},34.809457662339632,34.169043776694934]
[103]
[104,"MISC - Total",{"$f":"+C105/$C105","v":1},0.43088161355572369,0.1399758078681235,0.20978742546488463,8.1541365701754048E-2,{"$f":"+H105/$C105","v":9.6830119668447193E-2},3.750399334044982E-2,3.4796744006170728E-3]
[105,"Revenue Requirement",{"$f":"'Misc Summary'!E$68","v":4963324.2695610914},{"$f":"'Misc Summary'!F$68","v":2138605.1698687668},{"$f":"'Misc Summary'!G$68","v":694745.32434327772},{"$f":"'Misc Summary'!H$68","v":1041243.0202586004},{"$f":"'Misc Summary'!I$68","v":404716.23936067225},{"$f":"'Misc Summary'!J$68","v":480599.28297490871},{"$f":"'Misc Summary'!K$68","v":186144.48035211215},{"$f":"'Misc Summary'!L$68","v":17270.752402753162}]
[106,"NCP KW",{"$f":"C105/C$14","v":0.25980405599625489},0.16407873994344038,0.27495029176909763,0.44820913584854083,0.49956159575234921,{"$f":"H105/H$14","v":13.118224778221114},0.55276465350450477,0.47141479426665472]
[107,"Per KWH",{"$f":"C105/C$15","v":1.24117926658054E-3},1.3351197202840718E-3,1.2928000827056676E-3,1.2097568325744568E-3,1.1293731052070893E-3,{"$f":"H105/H$15","v":1.0140762731684016E-3},1.2122327527254108E-3,1.3151763445762045E-3]
[108,"Per Customer",{"$f":"C105/C$16","v":37.493712588448119},20.504958201429616,37.258169489030081,996.88708331275768,6988.5157104097161,{"$f":"H105/H$16","v":480599.28297490871},35.388684477587859,5.6250414947627263]
[109]
[110,"Classification Revenue Requirement"]
[111,"Generation - Demand",{"$f":"C33","v":85146919.059451342},{"$f":"D33","v":37475678.782641023},11500389.711514641,18099718.947738513,6890228.5673501613,{"$f":"H33","v":8180642.7044698941},2852650.3950185403,147609.95071858817]
[112,"Transmission - Demand",{"$f":"C51","v":21196925.761838309},{"$f":"D51","v":9317891.1908281259},2864518.9595654611,4503552.436696454,1717559.1637061508,{"$f":"H51","v":2042503.3217103928},712882.3798128193,38018.309518907365]
[113,"Distribution - Substation",{"$f":"C69","v":7368826.5710968282},{"$f":"D69","v":3709036.3715450075},977916.10393636895,1335262.8701550835,510695.67268618662,{"$f":"H69","v":349960.94426913222},444219.38422638539,41735.224278664296]
[114,"Demand - TOTAL Revenue Requirement",{"$f":"SUM(C111:C113)","v":113712671.39238648},50502606.345014162,15342824.77501647,23938534.254590053,9118483.4037424996,{"$f":"SUM(H111:H113)","v":10573106.970449418},4009752.1590577452,227363.48451615984]
[115]
[116,"Generation - Energy",{"$f":"C39","v":138923920.57068381},{"$f":"D39","v":57505640.931371786},18743808.668020912,29860813.004855435,12060311.336184688,{"$f":"H39","v":15237317.528905634},5129668.3260609955,386360.77528433094]
[117,"Transmission - Energy",{"$f":"C57","v":34584460.076155275},{"$f":"D57","v":14346140.487075802},4668983.8703367896,7425524.2816407764,2995007.1863706694,{"$f":"H57","v":3777474.0726129855},1275038.414543397,96291.763574852492]
[118,"Misc - Total",{"$f":"C105","v":4963324.2695610914},{"$f":"D105","v":2138605.1698687668},694745.32434327772,1041243.0202586004,404716.23936067225,{"$f":"H105","v":480599.28297490871},186144.48035211215,17270.752402753162]
[119,"Energy - TOTAL Revenue Requirement",{"$f":"SUM(C116:C118)","v":178471704.91640016},{"$f":"SUM(D116:D118)","v":73990386.588316351},24107537.86270098,38327580.306754813,15460034.761916028,{"$f":"SUM(H116:H118)","v":19495390.88449353},6590851.2209565043,499923.2912619366]
[120]
[121,"Distribution - Meter",{"$f":"C87","v":2741191.5919538438},{"$f":"D87","v":1844582.8142284688},436596.53202895285,221165.96480968877,43332.037981719885,{"$f":"H87","v":26163.585154205626},150613.65490487678,18737.00284593154]
[122,"Distribution - Service",{"$f":"C93","v":5717242.3947508438},{"$f":"D93","v":4095864.0032556374},1083038.1769542121,374047.14495637611,109174.23885433839,{"$f":"H93","v":9245.9533565269867},27679.455224719553,18193.422149032504]
[123,"Retail Total",{"$f":"C99","v":8280757.7141672578},{"$f":"D99","v":6843598.4818482306},946340.41539110185,119063.96659609405,42836.639113458266,{"$f":"H99","v":40910.109838756092},183097.74730390648,104910.35407571237]
[124,"Customer - TOTAL Revenue Requirement",{"$f":"SUM(C121:C123)","v":16739191.700871946},{"$f":"SUM(D121:D123)","v":12784045.299332336},2465975.1243742667,714277.07636215899,195342.91594951652,{"$f":"SUM(H121:H123)","v":76319.648349488707},361390.8574335028,141840.77907067642]
[125]
[126,"Distribution - P&C",{"$f":"C75","v":26780868.44137904},{"$f":"D75","v":15547425.465373408},3953699.2330949353,3792135.1005904805,1436210.4893053754,{"$f":"H75","v":128629.56388386269},1240097.9094743498,682670.67965663085]
[127,"Distribution - Transformer",{"$f":"C81","v":10323832.413334122},{"$f":"D81","v":6284743.6774910446},1433238.1091230982,1545496.4177442417,477838.82515139144,{"$f":"H81","v":16829.946064663847},514465.12486328126,51220.312896402262]
[128,"Load Size - TOTAL Revenue Requirement",{"$f":"SUM(C126:C127)","v":37104700.854713164},{"$f":"SUM(D126:D127)","v":21832169.142864451},5386937.342218034,5337631.5183347221,1914049.3144567669,{"$f":"SUM(H126:H127)","v":145459.50994852654},1754563.034337631,733890.99255303317]
[129]
[130,"Total Classification Revenue Requirement",{"$f":"C114+C119+C124+C128","v":346028268.86437172},{"$f":"D114+D119+D124+D128","v":159109207.37552732},47303275.104309745,68318023.156041741,26687910.39606481,{"$f":"H114+H119+H124+H128","v":30290277.013240963},12716557.271785384,1603018.5474018059]
[131,"GTDRM Revenue Requirement",{"$f":"C21","v":346028268.86437178},{"$f":"D21","v":159109207.37552729},47303275.104309745,68318023.156041741,26687910.39606481,{"$f":"H21","v":30290277.013240963},12716557.271785384,1603018.5474018061]
[132,"Check",{"$f":"C130-C131","v":0},{"$f":"D130-D131","v":0},0,0,0,{"$f":"H130-H131","v":0},0,0]
[133]
[134,"UNITS"]
[135,"NCP KW",{"$f":"C14","v":19104106.171585862},{"$f":"D14","v":13034017.512603801},2526803.3718862995,2323118.6894201506,810142.81882729987,{"$f":"H14","v":36636},336751.77884831082,36636]
[136,"Annual KWH",{"$f":"C15","v":3998877844},1601807791,537395792,860704392.99999988,358354770,{"$f":"H15","v":473928141},153555066,13131891.000000002]
[137,"Average Customers",132377.50883838322,104296.97777777778,18646.79166666606,1044.4944444444434,57.91161616161623,{"$f":"H16","v":1},5260,3070.3333333333339]
[138,"Load Factor",0,0,0,0,0,{"$f":"H17","v":0},0,0]
[139]
[140,"100% Cost Based Rates"]
[141,"Demand Charge",{"$f":"C114/C135","v":5.9522633705582582},{"$f":"D114/D135","v":3.8746768827169755},6.0720295634095196,10.304481800094811,11.255402370833467,{"$f":"H114/H135","v":288.59883640270277},11.907144700975524,6.2060127884092102]
[142,"Energy Charge",{"$f":"C119/C136","v":4.4630446810017675E-2},{"$f":"D119/D136","v":4.6191800916466109E-2},4.4859930467600277E-2,4.453048063710164E-2,4.3141702179424118E-2,{"$f":"H119/H136","v":4.1135752866157678E-2},4.2921743923163724E-2,3.8069406094060371E-2]
[143,"Customer Charge",{"$f":"C124/C137/12","v":10.537535069060494},{"$f":"D124/D137/12","v":10.214458088589817},11.020551454894372,56.987464139654996,281.09345599503064,{"$f":"H124/H137/12","v":6359.9706957907256},5.7254571836739991,3.8497660153804252]
[144,"Load Size Charge",{"$f":"C128/C135","v":1.9422369474631664},{"$f":"D128/D135","v":1.6750145626053441},2.131917901548706,2.2976146430413302,2.3626072711813908,{"$f":"H128/H135","v":3.9703982407611784},5.210256172478811,20.031962893138804]
[145]
[146,"Check"]
[147,"Demand Revenue Requirement",{"$f":"C141*C135","v":113712671.39238648},{"$f":"D141*D135","v":50502606.345014162},15342824.775016468,23938534.254590049,9118483.4037424996,{"$f":"H141*H135","v":10573106.97044942},4009752.1590577457,227363.48451615984]
[148,"Energy Revenue Requirement",{"$f":"C142*C136","v":178471704.91640016},{"$f":"D142*D136","v":73990386.588316351},24107537.86270098,38327580.306754813,15460034.761916028,{"$f":"H142*H136","v":19495390.88449353},6590851.2209565043,499923.2912619366]
[149,"Customer Revenue Requirement",{"$f":"C143*C137*12","v":16739191.700871944},{"$f":"D143*D137*12","v":12784045.299332336},2465975.1243742667,714277.07636215899,195342.91594951652,{"$f":"H143*H137*12","v":76319.648349488707},361390.85743350285,141840.77907067642]
[{"$f":"+A149+1","v":150},"Load Size Revenue Requirement",{"$f":"C144*C135","v":37104700.854713164},{"$f":"D144*D135","v":21832169.142864451},5386937.342218034,5337631.5183347221,1914049.3144567667,{"$f":"H144*H135","v":145459.50994852654},1754563.034337631,733890.99255303317]
[{"$f":"+A150+1","v":151},"Total Revenue Requirement",{"$f":"SUM(C147:C150)","v":346028268.86437172},{"$f":"SUM(D147:D150)","v":159109207.37552732},47303275.104309745,68318023.156041741,26687910.39606481,{"$f":"SUM(H147:H150)","v":30290277.013240963},12716557.271785384,1603018.5474018059]

{"sheet":"Class Summary","index":4,"n_rows":85,"n_cols":15,"rows_kept":85,"cut":false,"hidden":false,"merged":[]}
[null,null,"Class Summary"]
[null,null,{"$f":"Inputs!$C$3","v":"PacifiCorp"}]
[null,null,"Cost Of Service By Rate Schedule - All Functions"]
[null,null,{"$f":"Inputs!$C$4","v":"State of Washington"}]
[null,null,{"$f":"+Method&\" - \"&IF(PeakMethod=1,\"(Coincident Peaks)\",IF(PeakMethod=2,\"(200 Top Hours)\",\"(100 Summer, 100 Winter Hours)\"))&\" - \"&TEXT(Demand,\"0%\")&\"D\"&\" / \"&TEXT(Engy,\"0%\")&\"E\"","v":"WCA Method - (100 Summer, 100 Winter Hours) - 38%D / 62%E"}]
[null,null,{"$f":"Inputs!$C$5","v":"12 Months Ending June 2012"}]
[]
[]
[null,null,"A","B","C","D","F","G","H","I","J","K","L","M"]
[null,null,null,null,{"$f":"'Hot Sheet'!$H$10","v":"Washington"},null,{"$f":"'Hot Sheet'!$J$10","v":"Small General"},{"$f":"'Hot Sheet'!$K$10","v":"Large General"},{"$f":"'Hot Sheet'!$L$10","v":"Large General"},{"$f":"'Hot Sheet'!$M$10","v":"Large General"},{"$f":"'Hot Sheet'!$N$10","v":"Agricultural"},{"$f":"'Hot Sheet'!$O$10","v":"Street & Area"},null,null,"Chk Total"]
[null,null,null,null,{"$f":"'Hot Sheet'!$H$11","v":"Jurisdiction"},{"$f":"'Hot Sheet'!$I$11","v":"Residential"},{"$f":"'Hot Sheet'!$J$11","v":"Service"},{"$f":"'Hot Sheet'!$K$11","v":"Service <1,000 kW"},{"$f":"'Hot Sheet'!$L$11","v":"Service >1,000 kW"},{"$f":"'Hot Sheet'!$M$11","v":"Dedicated Facilities"},{"$f":"'Hot Sheet'!$N$11","v":"Pumping"},{"$f":"'Hot Sheet'!$O$11","v":"Lighting"}]
[null,null,"DESCRIPTION ",null,{"$f":"'Hot Sheet'!$H$12","v":"Normalized"},{"$f":"'Hot Sheet'!$I$12","v":"Schedule 16"},{"$f":"'Hot Sheet'!$J$12","v":"Schedule 24"},{"$f":"'Hot Sheet'!$K$12","v":"Schedule 36"},{"$f":"'Hot Sheet'!$L$12","v":"Schedule 48T"},{"$f":"'Hot Sheet'!$M$12","v":"Schedule 48T"},{"$f":"'Hot Sheet'!$N$12","v":"Schedule 40"},{"$f":"'Hot Sheet'!$O$12","v":"Sch. 15,51-54,57"},null,null,{"$f":"ROUND(SUM(O14:O68),0)","v":0}]
[]
[14,null,"Operating Revenues",null,{"$f":"'G+T+D+R+M'!H$14","v":327860485.11736882},{"$f":"'G+T+D+R+M'!I$14","v":145225650.00218713},{"$f":"'G+T+D+R+M'!J$14","v":48615379.576557629},{"$f":"'G+T+D+R+M'!K$14","v":66437492.113634937},{"$f":"'G+T+D+R+M'!L$14","v":25046773.595299184},{"$f":"'G+T+D+R+M'!M$14","v":27426673.610700969},{"$f":"'G+T+D+R+M'!N$14","v":13360573.227929227},{"$f":"'G+T+D+R+M'!O$14","v":1747942.9910596947},{"$f":"'G+T+D+R+M'!P$14","v":0},{"$f":"'G+T+D+R+M'!Q$14","v":0},{"$f":"ROUND(SUM(F14:N14)-E14,0)","v":0}]
[{"$f":"A14+1","v":15}]
[{"$f":"A15+1","v":16},null,"Operating Expenses"]
[{"$f":"A16+1","v":17},null,"Operation & Maintenance Expenses",null,{"$f":"'G+T+D+R+M'!$H17","v":217526010.15460241},{"$f":"'G+T+D+R+M'!$I17","v":97622759.806040689},{"$f":"'G+T+D+R+M'!$J17","v":29373033.778226309},{"$f":"'G+T+D+R+M'!$K17","v":43886720.013314724},{"$f":"'G+T+D+R+M'!$L17","v":17255424.608427092},{"$f":"'G+T+D+R+M'!$M17","v":20641897.30835925},{"$f":"'G+T+D+R+M'!$N17","v":7853711.5771936113},{"$f":"'G+T+D+R+M'!$O17","v":892463.0630407359},{"$f":"'G+T+D+R+M'!$P17","v":0},{"$f":"'G+T+D+R+M'!$Q17","v":0},{"$f":"ROUND(SUM(F17:N17)-E17,0)","v":0}]
[18,null,"Depreciation Expense",null,{"$f":"'G+T+D+R+M'!$H18","v":41310105.544159748},{"$f":"'G+T+D+R+M'!$I18","v":19709818.072534334},{"$f":"'G+T+D+R+M'!$J18","v":5764107.5789345615},{"$f":"'G+T+D+R+M'!$K18","v":7865055.4518888313},{"$f":"'G+T+D+R+M'!$L18","v":3024586.2561922176},{"$f":"'G+T+D+R+M'!$M18","v":3064682.9561413042},{"$f":"'G+T+D+R+M'!$N18","v":1623768.8006279345},{"$f":"'G+T+D+R+M'!$O18","v":258086.42784056481},{"$f":"'G+T+D+R+M'!$P18","v":0},{"$f":"'G+T+D+R+M'!$Q18","v":0},0]
[19,null,"Amortization Expense",null,{"$f":"'G+T+D+R+M'!$H19","v":5547662.1601642752},{"$f":"'G+T+D+R+M'!$I19","v":2595895.9347757259},{"$f":"'G+T+D+R+M'!$J19","v":755292.81394347409},{"$f":"'G+T+D+R+M'!$K19","v":1062360.499437979},{"$f":"'G+T+D+R+M'!$L19","v":416648.56525249081},{"$f":"'G+T+D+R+M'!$M19","v":494160.51632998174},{"$f":"'G+T+D+R+M'!$N19","v":196867.71112194128},{"$f":"'G+T+D+R+M'!$O19","v":26436.119302683685},{"$f":"'G+T+D+R+M'!$P19","v":0},{"$f":"'G+T+D+R+M'!$Q19","v":0},0]
[20,null,"Taxes Other Than Income",null,{"$f":"'G+T+D+R+M'!$H20","v":19982776.421377905},{"$f":"'G+T+D+R+M'!$I20","v":9476973.9968923088},{"$f":"'G+T+D+R+M'!$J20","v":2774839.0103689763},{"$f":"'G+T+D+R+M'!$K20","v":3838240.7194688423},{"$f":"'G+T+D+R+M'!$L20","v":1477002.4205355959},{"$f":"'G+T+D+R+M'!$M20","v":1546342.2368163802},{"$f":"'G+T+D+R+M'!$N20","v":773770.12839618407},{"$f":"'G+T+D+R+M'!$O20","v":95607.90889962035},{"$f":"'G+T+D+R+M'!$P20","v":0},{"$f":"'G+T+D+R+M'!$Q20","v":0},0]
[21,null,"Income Taxes - Federal",null,{"$f":"'G+T+D+R+M'!$H21","v":-10210352.282270128},{"$f":"'G+T+D+R+M'!$I21","v":-3923967.6485184063},{"$f":"'G+T+D+R+M'!$J21","v":-1362083.7797038245},{"$f":"'G+T+D+R+M'!$K21","v":-2356542.4394608065},{"$f":"'G+T+D+R+M'!$L21","v":-947011.41225084092},{"$f":"'G+T+D+R+M'!$M21","v":-1263276.424036463},{"$f":"'G+T+D+R+M'!$N21","v":-345877.95782600931},{"$f":"'G+T+D+R+M'!$O21","v":-11592.620473778537},{"$f":"'G+T+D+R+M'!$P21","v":0},{"$f":"'G+T+D+R+M'!$Q21","v":0},0]
[22,null,"Income Taxes - State",null,{"$f":"'G+T+D+R+M'!$H22","v":0},{"$f":"'G+T+D+R+M'!$I22","v":0},{"$f":"'G+T+D+R+M'!$J22","v":0},{"$f":"'G+T+D+R+M'!$K22","v":0},{"$f":"'G+T+D+R+M'!$L22","v":0},{"$f":"'G+T+D+R+M'!$M22","v":0},{"$f":"'G+T+D+R+M'!$N22","v":0},{"$f":"'G+T+D+R+M'!$O22","v":0},{"$f":"'G+T+D+R+M'!$P22","v":0},{"$f":"'G+T+D+R+M'!$Q22","v":0},0]
[23,null,"Income Taxes Deferred",null,{"$f":"'G+T+D+R+M'!$H23","v":16414669.737428367},{"$f":"'G+T+D+R+M'!$I23","v":7115555.0775692817},{"$f":"'G+T+D+R+M'!$J23","v":2229070.8417855999},{"$f":"'G+T+D+R+M'!$K23","v":3444214.1689886129},{"$f":"'G+T+D+R+M'!$L23","v":1354724.3640058474},{"$f":"'G+T+D+R+M'!$M23","v":1628797.7035050574},{"$f":"'G+T+D+R+M'!$N23","v":595135.5823947395},{"$f":"'G+T+D+R+M'!$O23","v":47171.999179228173},{"$f":"'G+T+D+R+M'!$P23","v":0},{"$f":"'G+T+D+R+M'!$Q23","v":0},0]
[24,null,"Investment Tax Credit Adj",null,{"$f":"'G+T+D+R+M'!$H24","v":0},{"$f":"'G+T+D+R+M'!$I24","v":0},{"$f":"'G+T+D+R+M'!$J24","v":0},{"$f":"'G+T+D+R+M'!$K24","v":0},{"$f":"'G+T+D+R+M'!$L24","v":0},{"$f":"'G+T+D+R+M'!$M24","v":0},{"$f":"'G+T+D+R+M'!$N24","v":0},{"$f":"'G+T+D+R+M'!$O24","v":0},{"$f":"'G+T+D+R+M'!$P24","v":0},{"$f":"'G+T+D+R+M'!$Q24","v":0},0]
[25,null,"Misc Revenues & Expense",null,{"$f":"'G+T+D+R+M'!$H25","v":-842347.30266372953},{"$f":"'G+T+D+R+M'!$I25","v":-354408.42053986777},{"$f":"'G+T+D+R+M'!$J25","v":-114325.33017483602},{"$f":"'G+T+D+R+M'!$K25","v":-181213.41340377001},{"$f":"'G+T+D+R+M'!$L25","v":-71614.970843513365},{"$f":"'G+T+D+R+M'!$M25","v":-88562.451659390732},{"$f":"'G+T+D+R+M'!$N25","v":-30185.631758562926},{"$f":"'G+T+D+R+M'!$O25","v":-2037.0842837886614},{"$f":"'G+T+D+R+M'!$P25","v":0},{"$f":"'G+T+D+R+M'!$Q25","v":0},0]
[26]
[27,null,"Total Operating Expenses",null,{"$f":"SUM(E17:E25)","v":289728524.4327988},{"$f":"SUM(F17:F25)","v":132242626.81875405},39419934.913380258,57558835.00023441,22509759.831318893,{"$f":"SUM(J17:J25)","v":26024041.84545612},10667190.210149838,1306135.8135052659,0,0,{"$f":"ROUND(SUM(F27:N27)-E27,0)","v":0}]
[28]
[29,null,"Operating Revenue For Return",null,{"$f":"E14-E27","v":38131960.684570014},{"$f":"F14-F27","v":12983023.183433086},9195444.663177371,8878657.1134005263,2537013.7639802918,{"$f":"J14-J27","v":1402631.765244849},2693383.0177793894,441807.17755442881,0,0,{"$f":"ROUND(SUM(F29:N29)-E29,0)","v":0}]
[30]
[31]
[32,null,"Rate Base :"]
[{"$f":"A32+1","v":33},null,"Electric Plant In Service",null,{"$f":"'G+T+D+R+M'!H33","v":1655504559.0608952},{"$f":"'G+T+D+R+M'!I33","v":783253335.20916152},{"$f":"'G+T+D+R+M'!J33","v":230405466.59949923},{"$f":"'G+T+D+R+M'!K33","v":318245233.62398398},{"$f":"'G+T+D+R+M'!L33","v":122764804.24215172},{"$f":"'G+T+D+R+M'!M33","v":127075789.22731778},{"$f":"'G+T+D+R+M'!N33","v":64536359.709591046},{"$f":"'G+T+D+R+M'!O33","v":9223570.4491897654},{"$f":"'G+T+D+R+M'!P33","v":0},{"$f":"'G+T+D+R+M'!Q33","v":0},{"$f":"ROUND(SUM(F33:N33)-E33,0)","v":0}]
[34,null,"Plant Held For Future Use ",null,{"$f":"'G+T+D+R+M'!H34","v":43755.273337945968},{"$f":"'G+T+D+R+M'!I34","v":18564.269560901212},{"$f":"'G+T+D+R+M'!J34","v":5904.8108331847106},{"$f":"'G+T+D+R+M'!K34","v":9355.6629913654779},{"$f":"'G+T+D+R+M'!L34","v":3696.9943241927531},{"$f":"'G+T+D+R+M'!M34","v":4570.8732519216728},{"$f":"'G+T+D+R+M'!N34","v":1557.6914561549725},{"$f":"'G+T+D+R+M'!O34","v":104.97092022516674},{"$f":"'G+T+D+R+M'!P34","v":0},{"$f":"'G+T+D+R+M'!Q34","v":0},0]
[35,null,"Electric Plant Acquisition Adj",null,{"$f":"'G+T+D+R+M'!H35","v":0},{"$f":"'G+T+D+R+M'!I35","v":0},{"$f":"'G+T+D+R+M'!J35","v":0},{"$f":"'G+T+D+R+M'!K35","v":0},{"$f":"'G+T+D+R+M'!L35","v":0},{"$f":"'G+T+D+R+M'!M35","v":0},{"$f":"'G+T+D+R+M'!N35","v":0},{"$f":"'G+T+D+R+M'!O35","v":0},{"$f":"'G+T+D+R+M'!P35","v":0},{"$f":"'G+T+D+R+M'!Q35","v":0},0]
[36,null,"Nuclear Fuel",null,{"$f":"'G+T+D+R+M'!H36","v":0},{"$f":"'G+T+D+R+M'!I36","v":0},{"$f":"'G+T+D+R+M'!J36","v":0},{"$f":"'G+T+D+R+M'!K36","v":0},{"$f":"'G+T+D+R+M'!L36","v":0},{"$f":"'G+T+D+R+M'!M36","v":0},{"$f":"'G+T+D+R+M'!N36","v":0},{"$f":"'G+T+D+R+M'!O36","v":0},{"$f":"'G+T+D+R+M'!P36","v":0},{"$f":"'G+T+D+R+M'!Q36","v":0},0]
[37,null,"Prepayments",null,{"$f":"'G+T+D+R+M'!H37","v":-1.0372605174779893E-7},{"$f":"'G+T+D+R+M'!I37","v":-5.2916329287063348E-8},{"$f":"'G+T+D+R+M'!J37","v":-1.4046644917511982E-8},{"$f":"'G+T+D+R+M'!K37","v":-1.7393937491645894E-8},{"$f":"'G+T+D+R+M'!L37","v":-6.8365757146545475E-9},{"$f":"'G+T+D+R+M'!M37","v":-8.4041236472997508E-9},{"$f":"'G+T+D+R+M'!N37","v":-3.4321874558261701E-9},{"$f":"'G+T+D+R+M'!O37","v":-6.962532337972223E-10},{"$f":"'G+T+D+R+M'!P37","v":0},{"$f":"'G+T+D+R+M'!Q37","v":0},0]
[38,null,"Fuel Stock",null,{"$f":"'G+T+D+R+M'!H38","v":-1.5174737200140956E-7},{"$f":"'G+T+D+R+M'!I38","v":-6.4382619604148588E-8},{"$f":"'G+T+D+R+M'!J38","v":-2.0478435117537233E-8},{"$f":"'G+T+D+R+M'!K38","v":-3.2446312500563224E-8},{"$f":"'G+T+D+R+M'!L38","v":-1.2821521389373937E-8},{"$f":"'G+T+D+R+M'!M38","v":-1.5852215077562388E-8},{"$f":"'G+T+D+R+M'!N38","v":-5.4022193630218616E-9},{"$f":"'G+T+D+R+M'!O38","v":-3.6404894920230039E-10},{"$f":"'G+T+D+R+M'!P38","v":0},{"$f":"'G+T+D+R+M'!Q38","v":0},0]
[39,null,"Materials & Supplies",null,{"$f":"'G+T+D+R+M'!H39","v":1.4560635463567448E-4},{"$f":"'G+T+D+R+M'!I39","v":6.6961348840347408E-5},{"$f":"'G+T+D+R+M'!J39","v":2.0119481766901012E-5},{"$f":"'G+T+D+R+M'!K39","v":2.8867681504712828E-5},{"$f":"'G+T+D+R+M'!L39","v":1.1206791422810681E-5},{"$f":"'G+T+D+R+M'!M39","v":1.2192477571940411E-5},{"$f":"'G+T+D+R+M'!N39","v":5.5686636863727762E-6},{"$f":"'G+T+D+R+M'!O39","v":6.8990984258938614E-7},{"$f":"'G+T+D+R+M'!P39","v":0},{"$f":"'G+T+D+R+M'!Q39","v":0},0]
[40,null,"Misc Deferred Debits",null,{"$f":"'G+T+D+R+M'!H40","v":14766733.281699954},{"$f":"'G+T+D+R+M'!I40","v":6265156.0889158454},{"$f":"'G+T+D+R+M'!J40","v":1992783.0407795217},{"$f":"'G+T+D+R+M'!K40","v":3157392.6872753608},{"$f":"'G+T+D+R+M'!L40","v":1247678.850219148},{"$f":"'G+T+D+R+M'!M40","v":1542599.57775303},{"$f":"'G+T+D+R+M'!N40","v":525696.96206823189},{"$f":"'G+T+D+R+M'!O40","v":35426.074688816159},{"$f":"'G+T+D+R+M'!P40","v":0},{"$f":"'G+T+D+R+M'!Q40","v":0},0]
[41,null,"Cash Working Capital",null,{"$f":"'G+T+D+R+M'!H41","v":28493963.911447987},{"$f":"'G+T+D+R+M'!I41","v":12900301.860037792},{"$f":"'G+T+D+R+M'!J41","v":3858212.9113307782},{"$f":"'G+T+D+R+M'!K41","v":5692411.9623585427},{"$f":"'G+T+D+R+M'!L41","v":2234162.8952165265},{"$f":"'G+T+D+R+M'!M41","v":2634999.2228814252},{"$f":"'G+T+D+R+M'!N41","v":1041207.7542339552},{"$f":"'G+T+D+R+M'!O41","v":132667.30538896844},{"$f":"'G+T+D+R+M'!P41","v":0},{"$f":"'G+T+D+R+M'!Q41","v":0},0]
[42,null,"Weatherization Loans",null,{"$f":"'G+T+D+R+M'!H42","v":1957722.3254914517},{"$f":"'G+T+D+R+M'!I42","v":830612.68284431647},{"$f":"'G+T+D+R+M'!J42","v":264196.26970777725},{"$f":"'G+T+D+R+M'!K42","v":418596.18077362794},{"$f":"'G+T+D+R+M'!L42","v":165412.93822544997},{"$f":"'G+T+D+R+M'!M42","v":204512.50625643667},{"$f":"'G+T+D+R+M'!N42","v":69695.08146798001},{"$f":"'G+T+D+R+M'!O42","v":4696.6662158632098},{"$f":"'G+T+D+R+M'!P42","v":0},{"$f":"'G+T+D+R+M'!Q42","v":0},0]
[43,null,"Miscellaneous Rate Base",null,{"$f":"'G+T+D+R+M'!H43","v":0},{"$f":"'G+T+D+R+M'!I43","v":0},{"$f":"'G+T+D+R+M'!J43","v":0},{"$f":"'G+T+D+R+M'!K43","v":0},{"$f":"'G+T+D+R+M'!L43","v":0},{"$f":"'G+T+D+R+M'!M43","v":0},{"$f":"'G+T+D+R+M'!N43","v":0},{"$f":"'G+T+D+R+M'!O43","v":0},{"$f":"'G+T+D+R+M'!P43","v":0},{"$f":"'G+T+D+R+M'!Q43","v":0},0]
[44]
[45,null,"Total Rate Base Additions",null,{"$f":"SUM(E33:E43)","v":1700766733.8530178},803267970.11058724,236526563.63217059,327522990.11741161,126415755.92014822,{"$f":"SUM(J33:J43)","v":131462471.40747274},66174517.198822923,9396465.4664043281,0,0,{"$f":"ROUND(SUM(F45:N45)-E45,0)","v":0}]
[46]
[47,null,"Rate Base Deductions :"]
[48,null,"Accum Provision For Depreciation",null,{"$f":"'G+T+D+R+M'!H48","v":-589326216.07470775},{"$f":"'G+T+D+R+M'!I48","v":-282586511.18850887},{"$f":"'G+T+D+R+M'!J48","v":-82264799.760199592},{"$f":"'G+T+D+R+M'!K48","v":-111943878.71252859},{"$f":"'G+T+D+R+M'!L48","v":-43026737.23636134},{"$f":"'G+T+D+R+M'!M48","v":-41797664.285162799},{"$f":"'G+T+D+R+M'!N48","v":-23626273.469023928},{"$f":"'G+T+D+R+M'!O48","v":-4080351.4229226438},{"$f":"'G+T+D+R+M'!P48","v":0},{"$f":"'G+T+D+R+M'!Q48","v":0},{"$f":"ROUND(SUM(F48:N48)-E48,0)","v":0}]
[{"$f":"A48+1","v":49},null,"Accum Provision For Amortization",null,{"$f":"'G+T+D+R+M'!H49","v":-43465840.659182236},{"$f":"'G+T+D+R+M'!I49","v":-22284184.601428013},{"$f":"'G+T+D+R+M'!J49","v":-5978405.9130802341},{"$f":"'G+T+D+R+M'!K49","v":-7337537.6904211864},{"$f":"'G+T+D+R+M'!L49","v":-2846429.7979646795},{"$f":"'G+T+D+R+M'!M49","v":-3158922.4940382428},{"$f":"'G+T+D+R+M'!N49","v":-1546428.9589128513},{"$f":"'G+T+D+R+M'!O49","v":-313931.20333702827},{"$f":"'G+T+D+R+M'!P49","v":0},{"$f":"'G+T+D+R+M'!Q49","v":0},0]
[50,null,"Accum Deferred Income Taxes",null,{"$f":"'G+T+D+R+M'!H50","v":-232193930.1604712},{"$f":"'G+T+D+R+M'!I50","v":-109745158.54624206},{"$f":"'G+T+D+R+M'!J50","v":-32320010.053852111},{"$f":"'G+T+D+R+M'!K50","v":-44603233.549355105},{"$f":"'G+T+D+R+M'!L50","v":-17212790.763391472},{"$f":"'G+T+D+R+M'!M50","v":-18212937.874401737},{"$f":"'G+T+D+R+M'!N50","v":-8944996.805305779},{"$f":"'G+T+D+R+M'!O50","v":-1154802.5679229284},{"$f":"'G+T+D+R+M'!P50","v":0},{"$f":"'G+T+D+R+M'!Q50","v":0},0]
[51,null,"Unamortized ITC",null,{"$f":"'G+T+D+R+M'!H51","v":-523327.7733723424},{"$f":"'G+T+D+R+M'!I51","v":-248490.81035597407},{"$f":"'G+T+D+R+M'!J51","v":-73139.950098601897},{"$f":"'G+T+D+R+M'!K51","v":-100224.46728291819},{"$f":"'G+T+D+R+M'!L51","v":-38555.229405997467},{"$f":"'G+T+D+R+M'!M51","v":-39803.745262313285},{"$f":"'G+T+D+R+M'!N51","v":-20442.811809800358},{"$f":"'G+T+D+R+M'!O51","v":-2670.7591567372119},{"$f":"'G+T+D+R+M'!P51","v":0},{"$f":"'G+T+D+R+M'!Q51","v":0},0]
[52,null,"Customer Advance For Construction",null,{"$f":"'G+T+D+R+M'!H52","v":-143878.99867603625},{"$f":"'G+T+D+R+M'!I52","v":-52992.552346983706},{"$f":"'G+T+D+R+M'!J52","v":-82336.359307061211},{"$f":"'G+T+D+R+M'!K52","v":0},{"$f":"'G+T+D+R+M'!L52","v":0},{"$f":"'G+T+D+R+M'!M52","v":0},{"$f":"'G+T+D+R+M'!N52","v":-8550.0870219913322},{"$f":"'G+T+D+R+M'!O52","v":0},{"$f":"'G+T+D+R+M'!P52","v":0},{"$f":"'G+T+D+R+M'!Q52","v":0},0]
[53,null,"Customer Service Deposits",null,{"$f":"'G+T+D+R+M'!H53","v":-3236612.0862500002},{"$f":"'G+T+D+R+M'!I53","v":-2788224.7747138054},{"$f":"'G+T+D+R+M'!J53","v":-313289.81752265652},{"$f":"'G+T+D+R+M'!K53","v":-70306.17488218419},{"$f":"'G+T+D+R+M'!L53","v":0},{"$f":"'G+T+D+R+M'!M53","v":0},{"$f":"'G+T+D+R+M'!N53","v":-62433.835518408392},{"$f":"'G+T+D+R+M'!O53","v":-2357.4836129454347},{"$f":"'G+T+D+R+M'!P53","v":0},{"$f":"'G+T+D+R+M'!Q53","v":0},0]
[54,null,"Misc Rate Base Deductions",null,{"$f":"'G+T+D+R+M'!H54","v":-3448113.6939195893},{"$f":"'G+T+D+R+M'!I54","v":-1496930.9026307166},{"$f":"'G+T+D+R+M'!J54","v":-468405.24699209916},{"$f":"'G+T+D+R+M'!K54","v":-722417.83895324264},{"$f":"'G+T+D+R+M'!L54","v":-284156.55647371832},{"$f":"'G+T+D+R+M'!M54","v":-340421.14675549557},{"$f":"'G+T+D+R+M'!N54","v":-125277.23482569789},{"$f":"'G+T+D+R+M'!O54","v":-10504.767288619145},{"$f":"'G+T+D+R+M'!P54","v":0},{"$f":"'G+T+D+R+M'!Q54","v":0},0]
[55]
[56,null,"Total Rate Base Deductions",null,{"$f":"SUM(E48:E54)","v":-872337919.44657898},-419202493.37622643,-121500387.10105236,-164777598.43342325,-63408669.583597206,{"$f":"SUM(J48:J54)","v":-63549749.545620583},-34334403.202418454,-5564618.2042409023,0,0,{"$f":"ROUND(SUM(F56:N56)-E56,0)","v":0}]
[57]
[58,null,"Total Rate Base",null,{"$f":"E45+E56","v":828428814.40643883},{"$f":"F45+F56","v":384065476.73436081},115026176.53111823,162745391.68398836,63007086.336551018,{"$f":"J45+J56","v":67912721.861852169},31840113.996404469,3831847.2621634258,0,0,{"$f":"ROUND(SUM(F58:N58)-E58,0)","v":0}]
[59]
[60,null,"Calculated Return On Rate Base",null,{"$f":"'G+T+D+R+M'!H61","v":4.602925444100011E-2},{"$f":"'G+T+D+R+M'!I61","v":3.3804192175316952E-2},{"$f":"'G+T+D+R+M'!J61","v":7.9942191773102231E-2},{"$f":"'G+T+D+R+M'!K61","v":5.4555505514040675E-2},{"$f":"'G+T+D+R+M'!L61","v":4.0265530617126052E-2},{"$f":"'G+T+D+R+M'!M61","v":2.065344646468556E-2},{"$f":"'G+T+D+R+M'!N61","v":8.4590872321736579E-2},{"$f":"'G+T+D+R+M'!O61","v":0.11529874426805539},{"$f":"'G+T+D+R+M'!P61","v":0},{"$f":"'G+T+D+R+M'!Q61","v":0}]
[61]
[62,null,"Return On Rate Base @ Jurisdictional Ave.",{"$f":"ActualROR","v":4.602925444100011E-2},{"$f":"$D$62*E58","v":38131960.684570029},{"$f":"$D$62*F58","v":17678247.550609902},{"$f":"$D$62*G58","v":5294569.1469262363},7491049.0429225238,2900169.2085711681,{"$f":"$D$62*J58","v":3125971.9543600641},1465576.7085709502,176377.07260916999,0,0,{"$f":"ROUND(SUM(F62:N62)-E62,0)","v":0}]
[63,null,"Total Operating Expenses",null,{"$f":"E27","v":289728524.4327988},132242626.81875405,39419934.913380258,57558835.00023441,22509759.831318893,{"$f":"J27","v":26024041.84545612},10667190.210149838,1306135.8135052659,0,0,{"$f":"ROUND(SUM(F63:N63)-E63,0)","v":0}]
[64,null,"Revenue Credits",null,{"$f":"'G+T+D+R+M'!H$99","v":-24632889.252997145},{"$f":"'G+T+D+R+M'!I$99","v":-10654362.702187121},{"$f":"'G+T+D+R+M'!J$99","v":-3354042.2460874543},{"$f":"'G+T+D+R+M'!K$99","v":-5140081.5701609757},{"$f":"'G+T+D+R+M'!L$99","v":-1977272.0247758871},{"$f":"'G+T+D+R+M'!M$99","v":-2368439.2247342882},{"$f":"'G+T+D+R+M'!N$99","v":-1061225.2279292287},{"$f":"'G+T+D+R+M'!O$99","v":-77466.257122192241},{"$f":"'G+T+D+R+M'!P$99","v":0},{"$f":"'G+T+D+R+M'!Q$99","v":0},{"$f":"ROUND(SUM(F64:N64)-E64,0)","v":0}]
[{"$f":"A64+1","v":65}]
[66,null,"Total Revenue Requirements",null,{"$f":"'G+T+D+R+M'!H$101","v":303227595.86437178},{"$f":"'G+T+D+R+M'!I$101","v":139266511.66717684},{"$f":"'G+T+D+R+M'!J$101","v":41360461.814219043},{"$f":"'G+T+D+R+M'!K$101","v":59909802.472995952},{"$f":"'G+T+D+R+M'!L$101","v":23432657.01511417},{"$f":"'G+T+D+R+M'!M$101","v":26781574.575081903},{"$f":"'G+T+D+R+M'!N$101","v":11071541.69079156},{"$f":"'G+T+D+R+M'!O$101","v":1405046.6289922437},{"$f":"'G+T+D+R+M'!P$101","v":0},{"$f":"'G+T+D+R+M'!Q$101","v":0},{"$f":"ROUND(SUM(F66:N66)-E66,0)","v":0}]
[67,null,"Class Revenue",null,{"$f":"'G+T+D+R+M'!H$102","v":303227595.86437166},{"$f":"'G+T+D+R+M'!I$102","v":134571287.30000001},{"$f":"'G+T+D+R+M'!J$102","v":45261337.330470175},{"$f":"'G+T+D+R+M'!K$102","v":61297410.543473966},{"$f":"'G+T+D+R+M'!L$102","v":23069501.570523299},{"$f":"'G+T+D+R+M'!M$102","v":25058234.385966681},{"$f":"'G+T+D+R+M'!N$102","v":12299348},{"$f":"'G+T+D+R+M'!O$102","v":1670476.7339375024},{"$f":"'G+T+D+R+M'!P$102","v":0},{"$f":"'G+T+D+R+M'!Q$102","v":0},{"$f":"ROUND(SUM(F67:N67)-E67,0)","v":0}]
[68,null,null,null,null,null,null,null,null,null,null,null,null,null,{"$f":"ROUND(SUM(-I68,K68:N68),0)","v":0}]
[69,null,"Increase / (Decrease) Required to "]
[70,null,"Earn Equal Rates of Return",null,{"$f":"'G+T+D+R+M'!H$105","v":0},{"$f":"'G+T+D+R+M'!I$105","v":4695224.3671768308},{"$f":"'G+T+D+R+M'!J$105","v":-3900875.5162511319},{"$f":"'G+T+D+R+M'!K$105","v":-1387608.0704780146},{"$f":"'G+T+D+R+M'!L$105","v":363155.44459087029},{"$f":"'G+T+D+R+M'!M$105","v":1723340.1891152225},{"$f":"'G+T+D+R+M'!N$105","v":-1227806.3092084397},{"$f":"'G+T+D+R+M'!O$105","v":-265430.1049452587},{"$f":"'G+T+D+R+M'!P$105","v":0},{"$f":"'G+T+D+R+M'!Q$105","v":0},{"$f":"ROUND(SUM(F70:N70)-E70,0)","v":0}]
[71]
[72,null,"Percent %",null,{"$f":"'G+T+D+R+M'!H$111","v":0},{"$f":"'G+T+D+R+M'!I$111","v":3.4890238931204978E-2},{"$f":"'G+T+D+R+M'!J$111","v":-8.6185600035839902E-2},{"$f":"'G+T+D+R+M'!K$111","v":-2.2637303242914013E-2},{"$f":"'G+T+D+R+M'!L$111","v":1.5741798472789139E-2},{"$f":"'G+T+D+R+M'!M$111","v":6.8773408476071315E-2},{"$f":"'G+T+D+R+M'!N$111","v":-9.9826942794726994E-2},{"$f":"'G+T+D+R+M'!O$111","v":-0.15889482298841121},{"$f":"'G+T+D+R+M'!P$111","v":0},{"$f":"'G+T+D+R+M'!Q$111","v":0}]
[73]
[74]
[75,null,"Return On Rate Base @ Target ROR",{"$f":"TargetROR","v":7.7999997127089077E-2},{"$f":"$D75*E58","v":64617445.143700041},{"$f":"$D75*F58","v":29957106.081894241},8972041.4389672633,12694140.083798079,4914552.5532372324,{"$f":"$D75*J58","v":5297192.1101172687},2483528.8002457372,298884.07544019137,0,0,{"$f":"ROUND(SUM(F75:N75)-E75,0)","v":0}]
[76,null,"Total Operating Expenses Adjusted for Taxes",null,{"$f":"E63+((E75-E62)*(1/Net_to_Gross_Factor))-(E75-E62)","v":306043712.97366881},{"$f":"F63+((F75-F62)*(1/Net_to_Gross_Factor))-(F75-F62)","v":139806463.99582016},41685275.911429934,60763964.642404631,23750629.867603466,{"$f":"J63+((J75-J62)*(1/Net_to_Gross_Factor))-(J75-J62)","v":27361524.127857972},11294253.699468873,1381600.729083807,0,0,{"$f":"ROUND(SUM(F76:N76)-E76,0)","v":0}]
[77,null,"Revenue Credits",null,{"$f":"E64","v":-24632889.252997145},{"$f":"F64","v":-10654362.702187121},-3354042.2460874543,-5140081.5701609757,-1977272.0247758871,{"$f":"J64","v":-2368439.2247342882},-1061225.2279292287,-77466.257122192241,0,0,{"$f":"ROUND(SUM(F77:N77)-E77,0)","v":0}]
[78]
[79,null,"Total Target Revenue Requirements",null,{"$f":"SUM(E75:E77)","v":346028268.86437172},{"$f":"SUM(F75:F77)","v":159109207.37552729},{"$f":"SUM(G75:G77)","v":47303275.104309745},68318023.156041741,26687910.39606481,{"$f":"SUM(J75:J77)","v":30290277.013240952},12716557.271785382,1603018.5474018061,0,0,{"$f":"ROUND(SUM(F79:N79)-E79,0)","v":0}]
[80,null,"Class Revenue",null,{"$f":"E67","v":303227595.86437166},{"$f":"F67","v":134571287.30000001},45261337.330470175,61297410.543473966,23069501.570523299,{"$f":"J67","v":25058234.385966681},12299348,1670476.7339375024,0,0,{"$f":"ROUND(SUM(F80:N80)-E80,0)","v":0}]
[81]
[82,null,"Increase / (Decrease) Required to "]
[83,null,"Earn Target Rate of Return",null,{"$f":"E79-E80","v":42800673.00000006},{"$f":"F79-F80","v":24537920.075527281},2041937.7738395706,7020612.612567775,3618408.8255415112,{"$f":"J79-J80","v":5232042.6272742711},417209.27178538218,-67458.186535696266,0,0,{"$f":"ROUND(SUM(F83:N83)-E83,0)","v":0}]
[84]
[85,null,"Percent %",null,{"$f":"E83/E80","v":0.14115032267427283},{"$f":"F83/F80","v":0.18234142340352924},4.5114393305054359E-2,0.11453359204445586,0.15684815792313769,{"$f":"J83/J80","v":0.20879534234879543},3.3921251092771922E-2,-4.0382595677755831E-2,{"$error":"#DIV/0!"},{"$error":"#DIV/0!"}]

{"sheet":"Function Summary","index":5,"n_rows":68,"n_cols":17,"rows_kept":68,"cut":false,"hidden":false,"merged":[]}
[null,null,"Function Summary"]
[null,null,{"$f":"Inputs!$C$3","v":"PacifiCorp"}]
[null,null,"Cost Of Service - Function Summary"]
[null,null,{"$f":"Inputs!$C$4","v":"State of Washington"}]
[null,null,{"$f":"+Method&\" - \"&IF(PeakMethod=1,\"(Coincident Peaks)\",IF(PeakMethod=2,\"(200 Top Hours)\",\"(100 Summer, 100 Winter Hours)\"))&\" - \"&TEXT(Demand,\"0%\")&\"D\"&\" / \"&TEXT(Engy,\"0%\")&\"E\"","v":"WCA Method - (100 Summer, 100 Winter Hours) - 38%D / 62%E"}]
[null,null,{"$f":"Inputs!$C$5","v":"12 Months Ending June 2012"}]
[]
[]
[null,null,"A","B","C","D","E","F","G","H",null,"I","J","K","L","M"]
[null,null,null,null,{"$f":"'Hot Sheet'!$H$10","v":"Washington"},null,null,null,null,null,null,"Distribution","Distribution","Distribution","Distribution","Distribution","Chk Total"]
[null,null,null,null,{"$f":"'Hot Sheet'!$H$11","v":"Jurisdiction"},"Generation ","Transmission","Distribution","Retail","MISC.",null,"Substations","Poles & Wires","Transformers","Meters","Services"]
[null,null,"DESCRIPTION ",null,{"$f":"'Hot Sheet'!$H$12","v":"Normalized"},"Function","Function","Function","Function","Function",null,"Function","Function","Function","Function","Function",{"$f":"SUM(Q14:Q68)","v":0}]
[]
[14,null,"Operating Expenses"]
[{"$f":"A14+1","v":15},null,"Operation & Maintenance Expenses",null,{"$f":"'Class Summary'!E17","v":217526010.15460241},{"$f":"'Func Study'!$G13","v":160399072.80989745},{"$f":"'Func Study'!$H13","v":32671390.564299166},{"$f":"'Func Study'!$I13","v":14391948.89266945},{"$f":"'Func Study'!$J13","v":8378177.35647838},{"$f":"'Func Study'!$K13","v":1685420.5312579749},null,{"$f":"'Func Study'!$T13","v":2499193.0485723997},{"$f":"'Func Study'!$U13","v":9273227.5783924907},{"$f":"'Func Study'!$V13","v":942194.69195301516},{"$f":"'Func Study'!$W13","v":1209694.9611877},{"$f":"'Func Study'!$X13","v":467638.61256384803},{"$f":"ROUND(SUM(-E15,F15:J15),0)","v":0}]
[{"$f":"A15+1","v":16},null,"Depreciation Expense",null,{"$f":"'Class Summary'!E18","v":41310105.544159748},{"$f":"'Func Study'!$G14","v":23157034.246414285},{"$f":"'Func Study'!$H14","v":5516357.6512353439},{"$f":"'Func Study'!$I14","v":12516369.432388294},{"$f":"'Func Study'!$J14","v":120344.21412182611},{"$f":"'Func Study'!$K14","v":0},null,{"$f":"'Func Study'!$T14","v":1177339.8192863371},{"$f":"'Func Study'!$U14","v":6315400.8115853146},{"$f":"'Func Study'!$V14","v":3125717.8120574378},{"$f":"'Func Study'!$W14","v":477826.39784696285},{"$f":"'Func Study'!$X14","v":1420084.5916122422},{"$f":"ROUND(SUM(-E16,F16:J16),0)","v":0}]
[17,null,"Amortization Expense",null,{"$f":"'Class Summary'!E19","v":5547662.1601642752},{"$f":"'Func Study'!$G15","v":3860505.5878965864},{"$f":"'Func Study'!$H15","v":808907.75049483229},{"$f":"'Func Study'!$I15","v":442417.08881035889},{"$f":"'Func Study'!$J15","v":435831.73296249891},{"$f":"'Func Study'!$K15","v":0},null,{"$f":"'Func Study'!$T15","v":51974.972636044913},{"$f":"'Func Study'!$U15","v":212916.02737197583},{"$f":"'Func Study'!$V15","v":107975.47758126201},{"$f":"'Func Study'!$W15","v":12506.554695404995},{"$f":"'Func Study'!$X15","v":57044.056525671185},0]
[18,null,"Taxes Other Than Income",null,{"$f":"'Class Summary'!E20","v":19982776.421377905},{"$f":"'Func Study'!$G16","v":10113138.541778341},{"$f":"'Func Study'!$H16","v":4248894.6593379853},{"$f":"'Func Study'!$I16","v":5489522.200680973},{"$f":"'Func Study'!$J16","v":131221.01958061196},{"$f":"'Func Study'!$K16","v":0},null,{"$f":"'Func Study'!$T16","v":644906.74836399767},{"$f":"'Func Study'!$U16","v":2641867.343510923},{"$f":"'Func Study'!$V16","v":1339762.4013694965},{"$f":"'Func Study'!$W16","v":155181.64056245438},{"$f":"'Func Study'!$X16","v":707804.06687410071},0]
[19,null,"Income Taxes - Federal",null,{"$f":"'Class Summary'!E21","v":-10210352.282270128},{"$f":"'Func Study'!$G17","v":-11934722.088213939},{"$f":"'Func Study'!$H17","v":-368427.97097115335},{"$f":"'Func Study'!$I17","v":1813833.1650488966},{"$f":"'Func Study'!$J17","v":181641.41151786022},{"$f":"'Func Study'!$K17","v":97323.200348206738},null,{"$f":"'Func Study'!$T17","v":269774.28668410389},{"$f":"'Func Study'!$U17","v":755073.58523569629},{"$f":"'Func Study'!$V17","v":433291.66421544994},{"$f":"'Func Study'!$W17","v":80022.586929930549},{"$f":"'Func Study'!$X17","v":275671.04198371561},0]
[20,null,"Income Taxes - State",null,{"$f":"'Class Summary'!E22","v":0},{"$f":"'Func Study'!$G18","v":0},{"$f":"'Func Study'!$H18","v":0},{"$f":"'Func Study'!$I18","v":0},{"$f":"'Func Study'!$J18","v":0},{"$f":"'Func Study'!$K18","v":0},null,{"$f":"'Func Study'!$T18","v":0},{"$f":"'Func Study'!$U18","v":0},{"$f":"'Func Study'!$V18","v":0},{"$f":"'Func Study'!$W18","v":0},{"$f":"'Func Study'!$X18","v":0},0]
[21,null,"Income Taxes Deferred",null,{"$f":"'Class Summary'!E23","v":16414669.737428367},{"$f":"'Func Study'!$G19","v":12810565.3815352},{"$f":"'Func Study'!$H19","v":2686209.4236197174},{"$f":"'Func Study'!$I19","v":908708.60779814981},{"$f":"'Func Study'!$J19","v":9186.3244753000617},{"$f":"'Func Study'!$K19","v":0},null,{"$f":"'Func Study'!$T19","v":106179.38553305669},{"$f":"'Func Study'!$U19","v":426922.37495807884},{"$f":"'Func Study'!$V19","v":231696.17710846383},{"$f":"'Func Study'!$W19","v":21352.151917695708},{"$f":"'Func Study'!$X19","v":122558.51828085515},0]
[22,null,"Investment Tax Credit Adj",null,{"$f":"'Class Summary'!E24","v":0},{"$f":"'Func Study'!$G20","v":0},{"$f":"'Func Study'!$H20","v":0},{"$f":"'Func Study'!$I20","v":0},{"$f":"'Func Study'!$J20","v":0},{"$f":"'Func Study'!$K20","v":0},null,{"$f":"'Func Study'!$T20","v":0},{"$f":"'Func Study'!$U20","v":0},{"$f":"'Func Study'!$V20","v":0},{"$f":"'Func Study'!$W20","v":0},{"$f":"'Func Study'!$X20","v":0},0]
[23,null,"Misc Revenues & Expense",null,{"$f":"'Class Summary'!E25","v":-842347.30266372953},{"$f":"'Func Study'!$G21","v":-853313.31999234774},{"$f":"'Func Study'!$H21","v":516.47518278949883},{"$f":"'Func Study'!$I21","v":3674.2548731014076},{"$f":"'Func Study'!$J21","v":6775.2872727272734},{"$f":"'Func Study'!$K21","v":0},null,{"$f":"'Func Study'!$T21","v":431.64990981882909},{"$f":"'Func Study'!$U21","v":1768.2584396467771},{"$f":"'Func Study'!$V21","v":896.73169213511289},{"$f":"'Func Study'!$W21","v":103.86639824167921},{"$f":"'Func Study'!$X21","v":473.74843325900923},0]
[24]
[25,null,"Total Operating Expenses",null,{"$f":"SUM(E15:E23)","v":289728524.4327988},197552281.15931556,45563848.553198673,35566473.642269231,9263177.3464092035,1782743.7316061817,null,{"$f":"SUM(L15:L23)","v":4749799.9109857585},{"$f":"SUM(M15:M23)","v":19627175.979494125},{"$f":"SUM(N15:N23)","v":6181534.9559772611},{"$f":"SUM(O15:O23)","v":1956688.1595383903},{"$f":"SUM(P15:P23)","v":3051274.6362736919},{"$f":"ROUND(SUM(-E25,F25:J25),0)","v":0}]
[26]
[27]
[28,null,"Rate Base :"]
[29,null,"Electric Plant In Service",null,{"$f":"'Class Summary'!E33","v":1655504559.0608952},{"$f":"'Func Study'!$G29","v":883089392.36522698},{"$f":"'Func Study'!$H29","v":303513053.25131756},{"$f":"'Func Study'!$I29","v":458649616.57378644},{"$f":"'Func Study'!$J29","v":10252496.870564088},{"$f":"'Func Study'!$K29","v":0},null,{"$f":"'Func Study'!$T29","v":54262544.629029073},{"$f":"'Func Study'!$U29","v":222287090.33499512},{"$f":"'Func Study'!$V29","v":110757425.08891532},{"$f":"'Func Study'!$W29","v":12828781.366160188},{"$f":"'Func Study'!$X29","v":58513775.154686674},{"$f":"ROUND(SUM(-E29,F29:J29),0)","v":0}]
[30,null,"Plant Held For Future Use ",null,{"$f":"'Class Summary'!E34","v":43755.273337945968},{"$f":"'Func Study'!$G30","v":43755.273337945968},{"$f":"'Func Study'!$H30","v":0},{"$f":"'Func Study'!$I30","v":0},{"$f":"'Func Study'!$J30","v":0},{"$f":"'Func Study'!$K30","v":0},null,{"$f":"'Func Study'!$T30","v":0},{"$f":"'Func Study'!$U30","v":0},{"$f":"'Func Study'!$V30","v":0},{"$f":"'Func Study'!$W30","v":0},{"$f":"'Func Study'!$X30","v":0},0]
[{"$f":"A30+1","v":31},null,"Electric Plant Acquisition Adj",null,{"$f":"'Class Summary'!E35","v":0},{"$f":"'Func Study'!$G31","v":0},{"$f":"'Func Study'!$H31","v":0},{"$f":"'Func Study'!$I31","v":0},{"$f":"'Func Study'!$J31","v":0},{"$f":"'Func Study'!$K31","v":0},null,{"$f":"'Func Study'!$T31","v":0},{"$f":"'Func Study'!$U31","v":0},{"$f":"'Func Study'!$V31","v":0},{"$f":"'Func Study'!$W31","v":0},{"$f":"'Func Study'!$X31","v":0},0]
[32,null,"Nuclear Fuel",null,{"$f":"'Class Summary'!E36","v":0},{"$f":"'Func Study'!$G32","v":0},{"$f":"'Func Study'!$H32","v":0},{"$f":"'Func Study'!$I32","v":0},{"$f":"'Func Study'!$J32","v":0},{"$f":"'Func Study'!$K32","v":0},null,{"$f":"'Func Study'!$T32","v":0},{"$f":"'Func Study'!$U32","v":0},{"$f":"'Func Study'!$V32","v":0},{"$f":"'Func Study'!$W32","v":0},{"$f":"'Func Study'!$X32","v":0},0]
[33,null,"Prepayments",null,{"$f":"'Class Summary'!E37","v":-1.0372605174779893E-7},{"$f":"'Func Study'!$G33","v":-6.9763221492845877E-8},{"$f":"'Func Study'!$H33","v":-2.7403410337079778E-8},{"$f":"'Func Study'!$I33","v":-6.4062846943359198E-9},{"$f":"'Func Study'!$J33","v":-1.5313522353733222E-10},{"$f":"'Func Study'!$K33","v":0},null,{"$f":"'Func Study'!$T33","v":-7.5260761871146457E-10},{"$f":"'Func Study'!$U33","v":-3.0830651026605626E-9},{"$f":"'Func Study'!$V33","v":-1.563505720930583E-9},{"$f":"'Func Study'!$W33","v":-1.8109732184958963E-10},{"$f":"'Func Study'!$X33","v":-8.2600893018371983E-10},0]
[34,null,"Fuel Stock",null,{"$f":"'Class Summary'!E38","v":-1.5174737200140956E-7},{"$f":"'Func Study'!$G34","v":-1.5174737200140953E-7},{"$f":"'Func Study'!$H34","v":0},{"$f":"'Func Study'!$I34","v":0},{"$f":"'Func Study'!$J34","v":0},{"$f":"'Func Study'!$K34","v":0},null,{"$f":"'Func Study'!$T34","v":0},{"$f":"'Func Study'!$U34","v":0},{"$f":"'Func Study'!$V34","v":0},{"$f":"'Func Study'!$W34","v":0},{"$f":"'Func Study'!$X34","v":0},0]
[35,null,"Materials & Supplies",null,{"$f":"'Class Summary'!E39","v":1.4560635463567448E-4},{"$f":"'Func Study'!$G35","v":1.1383549273394506E-4},{"$f":"'Func Study'!$H35","v":8.8387352564417842E-7},{"$f":"'Func Study'!$I35","v":3.0886988376085263E-5},{"$f":"'Func Study'!$J35","v":0},{"$f":"'Func Study'!$K35","v":0},null,{"$f":"'Func Study'!$T35","v":3.6285903421443075E-6},{"$f":"'Func Study'!$U35","v":1.4864558871819256E-5},{"$f":"'Func Study'!$V35","v":7.5382199406502808E-6},{"$f":"'Func Study'!$W35","v":8.7313492012834719E-7},{"$f":"'Func Study'!$X35","v":3.9824843013430679E-6},0]
[36,null,"Misc Deferred Debits",null,{"$f":"'Class Summary'!E40","v":14766733.281699954},{"$f":"'Func Study'!$G36","v":14711337.479033785},{"$f":"'Func Study'!$H36","v":55395.802666168427},{"$f":"'Func Study'!$I36","v":0},{"$f":"'Func Study'!$J36","v":0},{"$f":"'Func Study'!$K36","v":0},null,{"$f":"'Func Study'!$T36","v":0},{"$f":"'Func Study'!$U36","v":0},{"$f":"'Func Study'!$V36","v":0},{"$f":"'Func Study'!$W36","v":0},{"$f":"'Func Study'!$X36","v":0},0]
[37,null,"Cash Working Capital",null,{"$f":"'Class Summary'!E41","v":28493963.911447987},{"$f":"'Func Study'!$G37","v":19879156.978276398},{"$f":"'Func Study'!$H37","v":4582113.839411892},{"$f":"'Func Study'!$I37","v":2719707.324459231},{"$f":"'Func Study'!$J37","v":1089502.3312838771},{"$f":"'Func Study'!$K37","v":223483.43801659052},null,{"$f":"'Func Study'!$T37","v":319510.06717873795},{"$f":"'Func Study'!$U37","v":1308876.3833590106},{"$f":"'Func Study'!$V37","v":663766.62354834832},{"$f":"'Func Study'!$W37","v":76882.582678498307},{"$f":"'Func Study'!$X37","v":350671.66769463569},0]
[38,null,"Weatherization Loans",null,{"$f":"'Class Summary'!E42","v":1957722.3254914517},{"$f":"'Func Study'!$G38","v":0},{"$f":"'Func Study'!$H38","v":0},{"$f":"'Func Study'!$I38","v":0},{"$f":"'Func Study'!$J38","v":0},{"$f":"'Func Study'!$K38","v":1957722.3254914517},null,{"$f":"'Func Study'!$T38","v":0},{"$f":"'Func Study'!$U38","v":0},{"$f":"'Func Study'!$V38","v":0},{"$f":"'Func Study'!$W38","v":0},{"$f":"'Func Study'!$X38","v":0},0]
[39,null,"Miscellaneous Rate Base",null,{"$f":"'Class Summary'!E43","v":0},{"$f":"'Func Study'!$G39","v":0},{"$f":"'Func Study'!$H39","v":0},{"$f":"'Func Study'!$I39","v":0},{"$f":"'Func Study'!$J39","v":0},{"$f":"'Func Study'!$K39","v":0},null,{"$f":"'Func Study'!$T39","v":0},{"$f":"'Func Study'!$U39","v":0},{"$f":"'Func Study'!$V39","v":0},{"$f":"'Func Study'!$W39","v":0},{"$f":"'Func Study'!$X39","v":0},0]
[40]
[41,null,"Total Rate Base Additions",null,{"$f":"SUM(E29:E39)","v":1700766733.8530178},{"$f":"SUM(F29:F39)","v":917723642.09598875},{"$f":"SUM(G29:G39)","v":308150562.89339656},{"$f":"SUM(H29:H39)","v":461369323.89827657},{"$f":"SUM(I29:I39)","v":11341999.201847965},{"$f":"SUM(J29:J39)","v":2181205.7635080423},null,54582054.696211442,223595966.71836901,111421191.7124712,12905663.94883956,58864446.822385296,{"$f":"ROUND(SUM(-E41,F41:J41),0)","v":0}]
[42]
[43,null,"Rate Base Deductions :"]
[44,null,"Accum Provision For Depreciation",null,{"$f":"'Class Summary'!E48","v":-589326216.07470775},{"$f":"'Func Study'!$G44","v":-276191532.91767967},{"$f":"'Func Study'!$H44","v":-114462702.38464727},{"$f":"'Func Study'!$I44","v":-198063450.82755744},{"$f":"'Func Study'!$J44","v":-608529.94482340431},{"$f":"'Func Study'!$K44","v":0},null,{"$f":"'Func Study'!$T44","v":-17535884.914982595},{"$f":"'Func Study'!$U44","v":-109584944.25340565},{"$f":"'Func Study'!$V44","v":-48173498.23866608},{"$f":"'Func Study'!$W44","v":-2361424.6741928025},{"$f":"'Func Study'!$X44","v":-20407698.746310279},{"$f":"ROUND(SUM(-E44,F44:J44),0)","v":0}]
[45,null,"Accum Provision For Amortization",null,{"$f":"'Class Summary'!E49","v":-43465840.659182236},{"$f":"'Func Study'!$G45","v":-22439940.159080647},{"$f":"'Func Study'!$H45","v":-6435065.100261936},{"$f":"'Func Study'!$I45","v":-7175315.1321535669},{"$f":"'Func Study'!$J45","v":-7415520.2676860858},{"$f":"'Func Study'!$K45","v":0},null,{"$f":"'Func Study'!$T45","v":-842952.98956803896},{"$f":"'Func Study'!$U45","v":-3453165.873832291},{"$f":"'Func Study'!$V45","v":-1751193.8344733235},{"$f":"'Func Study'!$W45","v":-202836.81039163453},{"$f":"'Func Study'!$X45","v":-925165.62388827908},0]
[46,null,"Accum Deferred Income Taxes",null,{"$f":"'Class Summary'!E50","v":-232193930.1604712},{"$f":"'Func Study'!$G46","v":-124306012.70772502},{"$f":"'Func Study'!$H46","v":-46442324.710822776},{"$f":"'Func Study'!$I46","v":-60008268.201318935},{"$f":"'Func Study'!$J46","v":-1437324.540604491},{"$f":"'Func Study'!$K46","v":0},null,{"$f":"'Func Study'!$T46","v":-7049846.2113721129},{"$f":"'Func Study'!$U46","v":-28881170.911233705},{"$f":"'Func Study'!$V46","v":-14643776.575629249},{"$f":"'Func Study'!$W46","v":-1697110.8747565467},{"$f":"'Func Study'!$X46","v":-7736363.6283273157},0]
[{"$f":"A46+1","v":47},null,"Unamortized ITC",null,{"$f":"'Class Summary'!E51","v":-523327.7733723424},{"$f":"'Func Study'!$G47","v":-266330.54835915519},{"$f":"'Func Study'!$H47","v":-103068.52952258976},{"$f":"'Func Study'!$I47","v":-153928.69549059757},{"$f":"'Func Study'!$J47","v":0},{"$f":"'Func Study'!$K47","v":0},null,{"$f":"'Func Study'!$T47","v":-18083.478098774951},{"$f":"'Func Study'!$U47","v":-74079.160076153959},{"$f":"'Func Study'!$V47","v":-37567.546167237379},{"$f":"'Func Study'!$W47","v":-4351.3636747668588},{"$f":"'Func Study'!$X47","v":-19847.147473664401},0]
[48,null,"Customer Advance For Construction",null,{"$f":"'Class Summary'!E52","v":-143878.99867603625},{"$f":"'Func Study'!$G48","v":0},{"$f":"'Func Study'!$H48","v":18276.841740963751},{"$f":"'Func Study'!$I48","v":-162155.840417},{"$f":"'Func Study'!$J48","v":0},{"$f":"'Func Study'!$K48","v":0},null,{"$f":"'Func Study'!$T48","v":-19049.999608087252},{"$f":"'Func Study'!$U48","v":-78038.525703402527},{"$f":"'Func Study'!$V48","v":-39575.447591088894},{"$f":"'Func Study'!$W48","v":-4583.9343430603258},{"$f":"'Func Study'!$X48","v":-20907.93317136099},0]
[49,null,"Customer Service Deposits",null,{"$f":"'Class Summary'!E53","v":-3236612.0862500002},{"$f":"'Func Study'!$G49","v":0},{"$f":"'Func Study'!$H49","v":0},{"$f":"'Func Study'!$I49","v":0},{"$f":"'Func Study'!$J49","v":-3236612.0862499997},{"$f":"'Func Study'!$K49","v":0},null,{"$f":"'Func Study'!$T49","v":0},{"$f":"'Func Study'!$U49","v":0},{"$f":"'Func Study'!$V49","v":0},{"$f":"'Func Study'!$W49","v":0},{"$f":"'Func Study'!$X49","v":0},0]
[50,null,"Misc Rate Base Deductions",null,{"$f":"'Class Summary'!E54","v":-3448113.6939195893},{"$f":"'Func Study'!$G50","v":-3109906.5318716601},{"$f":"'Func Study'!$H50","v":-135637.7091795431},{"$f":"'Func Study'!$I50","v":-202569.45286838623},{"$f":"'Func Study'!$J50","v":0},{"$f":"'Func Study'!$K50","v":0},null,{"$f":"'Func Study'!$T50","v":-23797.77372082026},{"$f":"'Func Study'!$U50","v":-97487.832777045347},{"$f":"'Func Study'!$V50","v":-49438.717377878129},{"$f":"'Func Study'!$W50","v":-5726.3745139887496},{"$f":"'Func Study'!$X50","v":-26118.754478653733},0]
[51]
[52,null,"Total Rate Base Deductions",null,{"$f":"SUM(E44:E50)","v":-872337919.44657898},{"$f":"SUM(F44:F50)","v":-426313722.86471617},{"$f":"SUM(G44:G50)","v":-167560521.59269318},{"$f":"SUM(H44:H50)","v":-265765688.1498059},{"$f":"SUM(I44:I50)","v":-12697986.839363981},{"$f":"SUM(J44:J50)","v":0},null,-25489615.367350433,-142168886.55702823,-64695050.359904863,-4276034.0318728006,-29136101.83364955,{"$f":"ROUND(SUM(-E52,F52:J52),0)","v":0}]
[53]
[54,null,"Total Rate Base",null,{"$f":"E41+E52","v":828428814.40643883},491409919.23127258,140590041.30070338,{"$f":"H41+H52","v":195603635.74847066},{"$f":"I41+I52","v":-1355987.6375160161},{"$f":"J41+J52","v":2181205.7635080423},null,29092439.328861009,81427080.161340773,46726141.352566339,8629629.9169667587,29728344.988735747,{"$f":"ROUND(SUM(-E54,F54:J54),0)","v":0}]
[55]
[56]
[57,null,"Return On Rate Base",{"$f":"ActualROR","v":4.602925444100011E-2},{"$f":"$D$57*E54","v":38131960.684570029},22619232.20712756,6471254.7829007898,9003489.5194510613,-62415.099986075336,100399.2750766876,null,{"$f":"$D$57*L54","v":1339103.2921775018},{"$f":"$D$57*M54","v":3748027.7911340669},{"$f":"$D$57*N54","v":2150769.4493634133},{"$f":"$D$57*O54","v":397215.43117972958},{"$f":"$D$57*P54","v":1368373.5555963481},{"$f":"ROUND(SUM(-E57,F57:J57),0)","v":0}]
[58,null,"Total Operating Expenses",null,{"$f":"E25","v":289728524.4327988},197552281.15931556,45563848.553198673,35566473.642269231,9263177.3464092035,1782743.7316061817,null,{"$f":"L25","v":4749799.9109857585},{"$f":"M25","v":19627175.979494125},{"$f":"N25","v":6181534.9559772611},{"$f":"O25","v":1956688.1595383903},{"$f":"P25","v":3051274.6362736919},{"$f":"ROUND(SUM(-E58,F58:J58),0)","v":0}]
[59,null,"Revenue Credits",null,{"$f":"'Class Summary'!E64","v":-24632889.252997145},{"$f":"'Func Study'!$G79","v":-21489306.888866592},{"$f":"'Func Study'!$H79","v":-3517284.7233469267},{"$f":"'Func Study'!$I79","v":-1743839.5782287752},{"$f":"'Func Study'!$J79","v":-849947.59742200782},{"$f":"'Func Study'!$K79","v":2967489.5348671526},null,{"$f":"'Func Study'!$T79","v":-223133.93866081559},{"$f":"'Func Study'!$U79","v":-801255.4299549649},{"$f":"'Func Study'!$V79","v":-422572.34897673503},{"$f":"'Func Study'!$W79","v":-58560.769067793255},{"$f":"'Func Study'!$X79","v":-238317.09156846663},{"$f":"ROUND(SUM(-E59,F59:J59),0)","v":0}]
[60]
[61,null,"Total Revenue Requirements",null,{"$f":"E57+E58+E59","v":303227595.86437166},198682206.47757652,48517818.612752534,{"$f":"H57+H58+H59","v":42826123.583491519},{"$f":"I57+I58+I59","v":8350814.6490011215},{"$f":"J57+J58+J59","v":4850632.5415500216},null,5865769.2645024452,22573948.340673227,7909732.0563639393,2295342.8216503267,4181331.1003015735,{"$f":"ROUND(SUM(-E61,F61:J61),0)","v":0}]
[62]
[63]
[64,null,"Return On Rate Base @ Target ROR",{"$f":"TargetROR","v":7.7999997127089077E-2},{"$f":"$D64*E54","v":64617445.143700041},{"$f":"$D64*F54","v":38329972.288262337},10966022.817552198,15257083.026428889,{"$f":"$D64*I54","v":-105767.03183061756},{"$f":"$D64*J54","v":170134.04328721744},null,2269210.184071172,6351312.0186518319,3644638.8912601327,673111.10873124911,2318810.8237145012,{"$f":"ROUND(SUM(-E64,F64:J64),0)","v":0}]
[65,null,"Total Operating Expenses Adjusted for Taxes",null,{"$f":"E58+((E64-E57)*(1/Net_to_Gross_Factor))-(E64-E57)","v":306043712.97366881},{"$f":"F58+((F64-F57)*(1/Net_to_Gross_Factor))-(F64-F57)","v":207230174.23073938},48332647.743788309,39418717.96431458,9236472.3434198834,1825700.6914067212,null,5322750.3256864715,21230811.852682173,7101765.8710507248,2126641.2522903881,3636748.6626048088,{"$f":"ROUND(SUM(-E65,F65:J65),0)","v":0}]
[66,null,"Revenue Credits",null,{"$f":"E59","v":-24632889.252997145},{"$f":"F59","v":-21489306.888866592},-3517284.7233469267,-1743839.5782287752,{"$f":"I59","v":-849947.59742200782},{"$f":"J59","v":2967489.5348671526},null,-223133.93866081559,-801255.4299549649,-422572.34897673503,-58560.769067793255,-238317.09156846663,{"$f":"ROUND(SUM(-E66,F66:J66),0)","v":0}]
[67]
[68,null,"Total Target Revenue Requirements",null,{"$f":"SUM(E64:E66)","v":346028268.86437172},{"$f":"SUM(F64:F66)","v":224070839.63013512},55781385.837993585,52931961.412514701,{"$f":"SUM(I64:I66)","v":8280757.7141672578},{"$f":"SUM(J64:J66)","v":4963324.2695610914},null,7368826.5710968282,26780868.44137904,10323832.413334122,2741191.5919538438,5717242.3947508438,{"$f":"ROUND(SUM(-E68,F68:J68),0)","v":0}]

{"sheet":"Generation Summary","index":6,"n_rows":206,"n_cols":15,"rows_kept":206,"cut":false,"hidden":false,"merged":[]}
[null,null,"Generation Summary"]
[null,null,{"$f":"Inputs!$C$3","v":"PacifiCorp"}]
[null,null,"Cost Of Service By Rate Schedule - Generation Function"]
[null,null,{"$f":"Inputs!$C$4","v":"State of Washington"}]
[null,null,{"$f":"+Method&\" - \"&IF(PeakMethod=1,\"(Coincident Peaks)\",IF(PeakMethod=2,\"(200 Top Hours)\",\"(100 Summer, 100 Winter Hours)\"))&\" - \"&TEXT(Demand,\"0%\")&\"D\"&\" / \"&TEXT(Engy,\"0%\")&\"E\"","v":"WCA Method - (100 Summer, 100 Winter Hours) - 38%D / 62%E"}]
[null,null,{"$f":"Inputs!$C$5","v":"12 Months Ending June 2012"}]
[]
[]
[null,null,"A","B","C","D","E","F","G","H","I","J","K","L"]
[null,null,null,null,{"$f":"'Hot Sheet'!$H$10","v":"Washington"},null,{"$f":"'Hot Sheet'!$J$10","v":"Small General"},{"$f":"'Hot Sheet'!$K$10","v":"Large General"},{"$f":"'Hot Sheet'!$L$10","v":"Large General"},{"$f":"'Hot Sheet'!$M$10","v":"Large General"},{"$f":"'Hot Sheet'!$N$10","v":"Agricultural"},{"$f":"'Hot Sheet'!$O$10","v":"Street & Area"},null,null,"Chk Total"]
[null,null,null,null,{"$f":"'Hot Sheet'!$H$11","v":"Jurisdiction"},{"$f":"'Hot Sheet'!$I$11","v":"Residential"},{"$f":"'Hot Sheet'!$J$11","v":"Service"},{"$f":"'Hot Sheet'!$K$11","v":"Service <1,000 kW"},{"$f":"'Hot Sheet'!$L$11","v":"Service >1,000 kW"},{"$f":"'Hot Sheet'!$M$11","v":"Dedicated Facilities"},{"$f":"'Hot Sheet'!$N$11","v":"Pumping"},{"$f":"'Hot Sheet'!$O$11","v":"Lighting"},{"$f":"'Hot Sheet'!P$11","v":"-"},{"$f":"'Hot Sheet'!Q$11","v":"-"}]
[null,null,"DESCRIPTION ",null,{"$f":"'Hot Sheet'!$H$12","v":"Normalized"},{"$f":"'Hot Sheet'!$I$12","v":"Schedule 16"},{"$f":"'Hot Sheet'!$J$12","v":"Schedule 24"},{"$f":"'Hot Sheet'!$K$12","v":"Schedule 36"},{"$f":"'Hot Sheet'!$L$12","v":"Schedule 48T"},{"$f":"'Hot Sheet'!$M$12","v":"Schedule 48T"},{"$f":"'Hot Sheet'!$N$12","v":"Schedule 40"},{"$f":"'Hot Sheet'!$O$12","v":"Sch. 15,51-54,57"},{"$f":"'Hot Sheet'!P$12","v":"-"},{"$f":"'Hot Sheet'!Q$12","v":"-"},{"$f":"ROUND(SUM(O15:O68),0)","v":0}]
[]
[14,null,"Operating Expenses"]
[{"$f":"A14+1","v":15},null,"Operation & Maintenance Expenses",null,{"$f":"'Function Summary'!$F15","v":160399072.80989745},{"$f":"Generation!$I$17","v":68034893.113898456},{"$f":"Generation!$J$17","v":21652087.013858613},{"$f":"Generation!$K$17","v":34308135.077279501},{"$f":"Generation!$L$17","v":13555375.961335331},{"$f":"Generation!$M$17","v":16748700.603644433},{"$f":"Generation!$N$17","v":5715006.5932602743},{"$f":"Generation!$O$17","v":384874.44662082265},{"$f":"Generation!$P$17","v":0},{"$f":"Generation!$Q$17","v":0},{"$f":"ROUND(SUM(F15:N15)-E15,0)","v":0}]
[{"$f":"A15+1","v":16},null,"Depreciation Expense",null,{"$f":"'Function Summary'!$F16","v":23157034.246414285},{"$f":"Generation!$I$18","v":9824951.2158489581},{"$f":"Generation!$J$18","v":3125061.1926602446},{"$f":"Generation!$K$18","v":4951389.6671530064},{"$f":"Generation!$L$18","v":1956596.7172209588},{"$f":"Generation!$M$18","v":2419088.2688184371},{"$f":"Generation!$N$18","v":824392.39076231001},{"$f":"Generation!$O$18","v":55554.793950372325},{"$f":"Generation!$P$18","v":0},{"$f":"Generation!$Q$18","v":0},0]
[17,null,"Amortization Expense",null,{"$f":"'Function Summary'!$F17","v":3860505.5878965864},{"$f":"Generation!$I$19","v":1656732.0161474964},{"$f":"Generation!$J$19","v":521568.62082130613},{"$f":"Generation!$K$19","v":815911.94657277525},{"$f":"Generation!$L$19","v":322141.13499145419},{"$f":"Generation!$M$19","v":396380.26908622211},{"$f":"Generation!$N$19","v":137476.48798798441},{"$f":"Generation!$O$19","v":10295.112289348039},{"$f":"Generation!$P$19","v":0},{"$f":"Generation!$Q$19","v":0},0]
[18,null,"Taxes Other Than Income",null,{"$f":"'Function Summary'!$F18","v":10113138.541778341},{"$f":"Generation!$I$20","v":4283711.7260824181},{"$f":"Generation!$J$20","v":1364727.0075459059},{"$f":"Generation!$K$20","v":2166125.6964612016},{"$f":"Generation!$L$20","v":856003.71255376493},{"$f":"Generation!$M$20","v":1058451.773778914},{"$f":"Generation!$N$20","v":360212.68182283035},{"$f":"Generation!$O$20","v":23905.943533304882},{"$f":"Generation!$P$20","v":0},{"$f":"Generation!$Q$20","v":0},0]
[19,null,"Income Taxes - Federal",null,{"$f":"'Function Summary'!$F19","v":-11934722.088213939},{"$f":"Generation!$I$21","v":-5055296.0137562659},{"$f":"Generation!$J$21","v":-1610542.3152322543},{"$f":"Generation!$K$21","v":-2556289.3347703861},{"$f":"Generation!$L$21","v":-1010187.5272057825},{"$f":"Generation!$M$21","v":-1249100.6339568153},{"$f":"Generation!$N$21","v":-425094.36931433063},{"$f":"Generation!$O$21","v":-28211.893978104108},{"$f":"Generation!$P$21","v":0},{"$f":"Generation!$Q$21","v":0},0]
[20,null,"Income Taxes - State",null,{"$f":"'Function Summary'!$F20","v":0},{"$f":"Generation!$I$22","v":0},{"$f":"Generation!$J$22","v":0},{"$f":"Generation!$K$22","v":0},{"$f":"Generation!$L$22","v":0},{"$f":"Generation!$M$22","v":0},{"$f":"Generation!$N$22","v":0},{"$f":"Generation!$O$22","v":0},{"$f":"Generation!$P$22","v":0},{"$f":"Generation!$Q$22","v":0},0]
[21,null,"Income Taxes Deferred",null,{"$f":"'Function Summary'!$F21","v":12810565.3815352},{"$f":"Generation!$I$23","v":5426284.720210908},{"$f":"Generation!$J$23","v":1728733.8135327701},{"$f":"Generation!$K$23","v":2743885.5647536819},{"$f":"Generation!$L$23","v":1084321.29958526},{"$f":"Generation!$M$23","v":1340767.319184015},{"$f":"Generation!$N$23","v":456290.40803569026},{"$f":"Generation!$O$23","v":30282.25623287453},{"$f":"Generation!$P$23","v":0},{"$f":"Generation!$Q$23","v":0},0]
[22,null,"Investment Tax Credit Adj",null,{"$f":"'Function Summary'!$F22","v":0},{"$f":"Generation!$I$24","v":0},{"$f":"Generation!$J$24","v":0},{"$f":"Generation!$K$24","v":0},{"$f":"Generation!$L$24","v":0},{"$f":"Generation!$M$24","v":0},{"$f":"Generation!$N$24","v":0},{"$f":"Generation!$O$24","v":0},{"$f":"Generation!$P$24","v":0},{"$f":"Generation!$Q$24","v":0},0]
[23,null,"Misc Revenues & Expense",null,{"$f":"'Function Summary'!$F23","v":-853313.31999234774},{"$f":"Generation!$I$25","v":-362039.5276678013},{"$f":"Generation!$J$25","v":-115155.34818112872},{"$f":"Generation!$K$25","v":-182453.7076075864},{"$f":"Generation!$L$25","v":-72098.612581033347},{"$f":"Generation!$M$25","v":-89140.95907335954},{"$f":"Generation!$N$25","v":-30378.026842826061},{"$f":"Generation!$O$25","v":-2047.138038612326},{"$f":"Generation!$P$25","v":0},{"$f":"Generation!$Q$25","v":0},0]
[24]
[25,null,"Total Operating Expenses",null,{"$f":"SUM(E15:E23)","v":197552281.15931556},{"$f":"SUM(F15:F23)","v":83809237.250764161},26666479.985005457,42246704.909842186,16692152.685899954,{"$f":"SUM(J15:J23)","v":20625146.641481847},7037906.1657119319,474653.520610006,0,0,{"$f":"ROUND(SUM(F25:N25)-E25,0)","v":0}]
[26]
[27]
[28,null,"Rate Base :"]
[29,null,"Electric Plant In Service",null,{"$f":"'Function Summary'!$F29","v":883089392.36522698},{"$f":"Generation!$I$33","v":374672771.43080288},{"$f":"Generation!$J$33","v":119173654.1201432},{"$f":"Generation!$K$33","v":188820366.45977965},{"$f":"Generation!$L$33","v":74614468.66331774},{"$f":"Generation!$M$33","v":92251501.926223978},{"$f":"Generation!$N$33","v":31438057.554435454},{"$f":"Generation!$O$33","v":2118572.2105241641},{"$f":"Generation!$P$33","v":0},{"$f":"Generation!$Q$33","v":0},{"$f":"ROUND(SUM(F29:N29)-E29,0)","v":0}]
[30,null,"Plant Held For Future Use ",null,{"$f":"'Function Summary'!$F30","v":43755.273337945968},{"$f":"Generation!$I$34","v":18564.269560901212},{"$f":"Generation!$J$34","v":5904.8108331847106},{"$f":"Generation!$K$34","v":9355.6629913654779},{"$f":"Generation!$L$34","v":3696.9943241927531},{"$f":"Generation!$M$34","v":4570.8732519216728},{"$f":"Generation!$N$34","v":1557.6914561549725},{"$f":"Generation!$O$34","v":104.97092022516674},{"$f":"Generation!$P$34","v":0},{"$f":"Generation!$Q$34","v":0},0]
[{"$f":"A30+1","v":31},null,"Electric Plant Acquisition Adj",null,{"$f":"'Function Summary'!$F31","v":0},{"$f":"Generation!$I$35","v":0},{"$f":"Generation!$J$35","v":0},{"$f":"Generation!$K$35","v":0},{"$f":"Generation!$L$35","v":0},{"$f":"Generation!$M$35","v":0},{"$f":"Generation!$N$35","v":0},{"$f":"Generation!$O$35","v":0},{"$f":"Generation!$P$35","v":0},{"$f":"Generation!$Q$35","v":0},0]
[32,null,"Nuclear Fuel",null,{"$f":"'Function Summary'!$F32","v":0},{"$f":"Generation!$I$36","v":0},{"$f":"Generation!$J$36","v":0},{"$f":"Generation!$K$36","v":0},{"$f":"Generation!$L$36","v":0},{"$f":"Generation!$M$36","v":0},{"$f":"Generation!$N$36","v":0},{"$f":"Generation!$O$36","v":0},{"$f":"Generation!$P$36","v":0},{"$f":"Generation!$Q$36","v":0},0]
[33,null,"Prepayments",null,{"$f":"'Function Summary'!$F33","v":-6.9763221492845877E-8},{"$f":"Generation!$I$37","v":-3.410007546223269E-8},{"$f":"Generation!$J$37","v":-9.4392276316683756E-9},{"$f":"Generation!$K$37","v":-1.2498943975827898E-8},{"$f":"Generation!$L$37","v":-4.920485076804535E-9},{"$f":"Generation!$M$37","v":-6.0590843849664575E-9},{"$f":"Generation!$N$37","v":-2.3519590189727583E-9},{"$f":"Generation!$O$37","v":-3.9344594237316539E-10},{"$f":"Generation!$P$37","v":0},{"$f":"Generation!$Q$37","v":0},0]
[34,null,"Fuel Stock",null,{"$f":"'Function Summary'!$F34","v":-1.5174737200140953E-7},{"$f":"Generation!$I$38","v":-6.4382619604148588E-8},{"$f":"Generation!$J$38","v":-2.0478435117537233E-8},{"$f":"Generation!$K$38","v":-3.2446312500563224E-8},{"$f":"Generation!$L$38","v":-1.2821521389373937E-8},{"$f":"Generation!$M$38","v":-1.5852215077562388E-8},{"$f":"Generation!$N$38","v":-5.4022193630218616E-9},{"$f":"Generation!$O$38","v":-3.6404894920230039E-10},{"$f":"Generation!$P$38","v":0},{"$f":"Generation!$Q$38","v":0},0]
[35,null,"Materials & Supplies",null,{"$f":"'Function Summary'!$F35","v":1.1383549273394506E-4},{"$f":"Generation!$I$39","v":4.8297556191433271E-5},{"$f":"Generation!$J$39","v":1.5362195214842477E-5},{"$f":"Generation!$K$39","v":2.4340072069695339E-5},{"$f":"Generation!$L$39","v":9.6182502913107519E-6},{"$f":"Generation!$M$39","v":1.1891769132331502E-5},{"$f":"Generation!$N$39","v":4.0525532332826185E-6},{"$f":"Generation!$O$39","v":2.7309660104910322E-7},{"$f":"Generation!$P$39","v":0},{"$f":"Generation!$Q$39","v":0},0]
[36,null,"Misc Deferred Debits",null,{"$f":"'Function Summary'!$F36","v":14711337.479033785},{"$f":"Generation!$I$40","v":6241653.0335173681},{"$f":"Generation!$J$40","v":1985307.3307509322},{"$f":"Generation!$K$40","v":3145548.0701276627},{"$f":"Generation!$L$40","v":1242998.3179674314},{"$f":"Generation!$M$40","v":1536812.6822919992},{"$f":"Generation!$N$40","v":523724.86677691748},{"$f":"Generation!$O$40","v":35293.177601473857},{"$f":"Generation!$P$40","v":0},{"$f":"Generation!$Q$40","v":0},0]
[37,null,"Cash Working Capital",null,{"$f":"'Function Summary'!$F37","v":19879156.978276398},{"$f":"Generation!$I$41","v":8431945.9989296682},{"$f":"Generation!$J$41","v":2683464.6180650229},{"$f":"Generation!$K$41","v":4251999.6586355958},{"$f":"Generation!$L$41","v":1679993.7924473574},{"$f":"Generation!$M$41","v":2075760.4308386976},{"$f":"Generation!$N$41","v":708292.82993396046},{"$f":"Generation!$O$41","v":47699.649426093747},{"$f":"Generation!$P$41","v":0},{"$f":"Generation!$Q$41","v":0},0]
[38,null,"Weatherization Loans",null,{"$f":"'Function Summary'!$F38","v":0},{"$f":"Generation!$I$42","v":0},{"$f":"Generation!$J$42","v":0},{"$f":"Generation!$K$42","v":0},{"$f":"Generation!$L$42","v":0},{"$f":"Generation!$M$42","v":0},{"$f":"Generation!$N$42","v":0},{"$f":"Generation!$O$42","v":0},{"$f":"Generation!$P$42","v":0},{"$f":"Generation!$Q$42","v":0},0]
[39,null,"Miscellaneous Rate Base",null,{"$f":"'Function Summary'!$F39","v":0},{"$f":"Generation!$I$43","v":0},{"$f":"Generation!$J$43","v":0},{"$f":"Generation!$K$43","v":0},{"$f":"Generation!$L$43","v":0},{"$f":"Generation!$M$43","v":0},{"$f":"Generation!$N$43","v":0},{"$f":"Generation!$O$43","v":0},{"$f":"Generation!$P$43","v":0},{"$f":"Generation!$Q$43","v":0},0]
[40]
[41,null,"Total Rate Base Additions",null,{"$f":"SUM(E29:E39)","v":917723642.09598875},389364934.73285896,123848330.87980768,196227269.8515586,77541157.768066317,{"$f":"SUM(J29:J39)","v":95868645.912618473},32671632.942606531,2201670.0084722289,0,0,{"$f":"ROUND(SUM(F41:N41)-E41,0)","v":0}]
[42]
[43,null,"Rate Base Deductions :"]
[44,null,"Accum Provision For Depreciation",null,{"$f":"'Function Summary'!$F44","v":-276191532.91767967},{"$f":"Generation!$I$48","v":-117181168.72271423},{"$f":"Generation!$J$48","v":-37272279.000754721},{"$f":"Generation!$K$48","v":-59054708.288281858},{"$f":"Generation!$L$48","v":-23336125.035727888},{"$f":"Generation!$M$48","v":-28852213.548528817},{"$f":"Generation!$N$48","v":-9832442.0868172925},{"$f":"Generation!$O$48","v":-662596.2348548607},{"$f":"Generation!$P$48","v":0},{"$f":"Generation!$Q$48","v":0},{"$f":"ROUND(SUM(F44:N44)-E44,0)","v":0}]
[45,null,"Accum Provision For Amortization",null,{"$f":"'Function Summary'!$F45","v":-22439940.159080647},{"$f":"Generation!$I$49","v":-9542039.1047978625},{"$f":"Generation!$J$49","v":-3030058.5041279211},{"$f":"Generation!$K$49","v":-4788547.1854013186},{"$f":"Generation!$L$49","v":-1891488.5696934485},{"$f":"Generation!$M$49","v":-2332350.8105443488},{"$f":"Generation!$N$49","v":-800249.68195180094},{"$f":"Generation!$O$49","v":-55206.302563948084},{"$f":"Generation!$P$49","v":0},{"$f":"Generation!$Q$49","v":0},0]
[46,null,"Accum Deferred Income Taxes",null,{"$f":"'Function Summary'!$F46","v":-124306012.70772502},{"$f":"Generation!$I$50","v":-53058428.651886076},{"$f":"Generation!$J$50","v":-16776593.675226895},{"$f":"Generation!$K$50","v":-26407381.237474862},{"$f":"Generation!$L$50","v":-10433995.338633956},{"$f":"Generation!$M$50","v":-12899897.425976548},{"$f":"Generation!$N$50","v":-4415567.4166644961},{"$f":"Generation!$O$50","v":-314148.96186216403},{"$f":"Generation!$P$50","v":0},{"$f":"Generation!$Q$50","v":0},0]
[{"$f":"A46+1","v":47},null,"Unamortized ITC",null,{"$f":"'Function Summary'!$F47","v":-266330.54835915519},{"$f":"Generation!$I$51","v":-112987.67808685378},{"$f":"Generation!$J$51","v":-35940.724405828762},{"$f":"Generation!$K$51","v":-56950.588575807662},{"$f":"Generation!$L$51","v":-22505.004646556459},{"$f":"Generation!$M$51","v":-27827.47984435517},{"$f":"Generation!$N$51","v":-9480.7586579632643},{"$f":"Generation!$O$51","v":-638.31414179006345},{"$f":"Generation!$P$51","v":0},{"$f":"Generation!$Q$51","v":0},0]
[48,null,"Customer Advance For Construction",null,{"$f":"'Function Summary'!$F48","v":0},{"$f":"Generation!$I$52","v":0},{"$f":"Generation!$J$52","v":0},{"$f":"Generation!$K$52","v":0},{"$f":"Generation!$L$52","v":0},{"$f":"Generation!$M$52","v":0},{"$f":"Generation!$N$52","v":0},{"$f":"Generation!$O$52","v":0},{"$f":"Generation!$P$52","v":0},{"$f":"Generation!$Q$52","v":0},0]
[49,null,"Customer Service Deposits",null,{"$f":"'Function Summary'!$F49","v":0},{"$f":"Generation!$I$53","v":0},{"$f":"Generation!$J$53","v":0},{"$f":"Generation!$K$53","v":0},{"$f":"Generation!$L$53","v":0},{"$f":"Generation!$M$53","v":0},{"$f":"Generation!$N$53","v":0},{"$f":"Generation!$O$53","v":0},{"$f":"Generation!$P$53","v":0},{"$f":"Generation!$Q$53","v":0},0]
[50,null,"Misc Rate Base Deductions",null,{"$f":"'Function Summary'!$F50","v":-3109906.5318716601},{"$f":"Generation!$I$54","v":-1319455.6624288047},{"$f":"Generation!$J$54","v":-419684.49466095178},{"$f":"Generation!$K$54","v":-664953.84961074253},{"$f":"Generation!$L$54","v":-262763.91209579451},{"$f":"Generation!$M$54","v":-324874.86645823275},{"$f":"Generation!$N$54","v":-110712.93731208204},{"$f":"Generation!$O$54","v":-7460.8093050516354},{"$f":"Generation!$P$54","v":0},{"$f":"Generation!$Q$54","v":0},0]
[51]
[52,null,"Total Rate Base Deductions",null,{"$f":"SUM(E44:E50)","v":-426313722.86471617},-181214079.8199138,-57534556.399176314,-90972541.149344593,-35946877.860797644,{"$f":"SUM(J44:J50)","v":-44437164.131352298},-15168452.881403634,-1040050.6227278146,0,0,{"$f":"ROUND(SUM(F52:N52)-E52,0)","v":0}]
[53]
[54,null,"Total Rate Base",null,{"$f":"E41+E52","v":491409919.23127258},{"$f":"F41+F52","v":208150854.91294515},66313774.480631366,105254728.702214,41594279.907268673,{"$f":"J41+J52","v":51431481.781266175},17503180.061202899,1161619.3857444143,0,0,{"$f":"ROUND(SUM(F54:N54)-E54,0)","v":0}]
[55]
[56]
[57,null,"Return On Rate Base",{"$f":"ActualROR","v":4.602925444100011E-2},{"$f":"$D$57*E54","v":22619232.20712756},{"$f":"$D$57*F54","v":9581028.6628996506},3052373.598512081,4844796.688552646,1914553.6931418483,{"$f":"$D$57*J54","v":2367352.7611875623},805658.32856374804,53468.474270027902,0,0,{"$f":"ROUND(SUM(F57:N57)-E57,0)","v":0}]
[58,null,"Total Operating Expenses",null,{"$f":"E25","v":197552281.15931556},83809237.250764161,26666479.985005457,42246704.909842186,16692152.685899954,{"$f":"J25","v":20625146.641481847},7037906.1657119319,474653.520610006,0,0,{"$f":"ROUND(SUM(F58:N58)-E58,0)","v":0}]
[59,null,"Revenue Credits",null,{"$f":"'Function Summary'!$F$59","v":-21489306.888866592},{"$f":"Generation!I$99","v":-9163034.566534562},{"$f":"Generation!J$99","v":-2900748.2219739389},{"$f":"Generation!K$99","v":-4568942.2833351716},{"$f":"Generation!L$99","v":-1805129.8408831588},{"$f":"Generation!M$99","v":-2231740.3618944138},{"$f":"Generation!N$99","v":-765545.42240187991},{"$f":"Generation!O$99","v":-54166.191843465436},{"$f":"Generation!P$99","v":0},{"$f":"Generation!Q$99","v":0},{"$f":"ROUND(SUM(F59:N59)-E59,0)","v":0}]
[60]
[61,null,"Total Revenue Requirements",null,{"$f":"E57+E58+E59","v":198682206.47757652},{"$f":"F57+F58+F59","v":84227231.347129241},26818105.361543596,42522559.315059662,16801576.538158644,{"$f":"J57+J58+J59","v":20760759.040774994},7078019.0718737999,473955.80303656845,0,0,{"$f":"ROUND(SUM(F61:N61)-E61,0)","v":0}]
[62,null,null,null,null,null,null,null,null,null,null,null,null,null,{"$f":"ROUND(SUM(F62:N62)-E62,0)","v":0}]
[63]
[64,null,"Return On Rate Base @ Target ROR",{"$f":"TargetROR","v":7.7999997127089077E-2},{"$f":"$D64*E54","v":38329972.288262337},{"$f":"$D64*F54","v":16235766.085210858},5172474.2189756799,8209868.5363852326,3244353.7132702954,{"$f":"$D64*J54","v":4011655.431180696},1365247.994488749,90606.308750835291,0,0,{"$f":"ROUND(SUM(F64:N64)-E64,0)","v":0}]
[65,null,"Total Operating Expenses Adjusted for Taxes",null,{"$f":"E58+((E64-E57)*(1/Net_to_Gross_Factor))-(E64-E57)","v":207230174.23073938},{"$f":"F58+((F64-F57)*(1/Net_to_Gross_Factor))-(F64-F57)","v":87908588.195336506},27972472.382533807,44319605.699543878,17511316.031147707,{"$f":"J58+((J64-J57)*(1/Net_to_Gross_Factor))-(J64-J57)","v":21638045.164089244},7382616.148992666,497530.60909554909,0,0,{"$f":"ROUND(SUM(F65:N65)-E65,0)","v":0}]
[66,null,"Revenue Credits",null,{"$f":"E59","v":-21489306.888866592},{"$f":"F59","v":-9163034.566534562},-2900748.2219739389,-4568942.2833351716,-1805129.8408831588,{"$f":"J59","v":-2231740.3618944138},-765545.42240187991,-54166.191843465436,0,0,{"$f":"ROUND(SUM(F66:N66)-E66,0)","v":0}]
[67]
[68,null,"Total Target Revenue Requirements",null,{"$f":"SUM(E64:E66)","v":224070839.63013512},{"$f":"SUM(F64:F66)","v":94981319.714012802},30244198.379535548,47960531.952593938,18950539.903534845,{"$f":"SUM(J64:J66)","v":23417960.233375527},7982318.7210795349,533970.72600291891,0,0,{"$f":"ROUND(SUM(F68:N68)-E68,0)","v":0}]
[null,null,"Generation Demand Summary"]
[null,null,{"$f":"Inputs!$C$3","v":"PacifiCorp"}]
[null,null,{"$f":"\"Cost Of Service By Rate Schedule - \"&C69","v":"Cost Of Service By Rate Schedule - Generation Demand Summary"}]
[null,null,{"$f":"Inputs!$C$4","v":"State of Washington"}]
[null,null,{"$f":"+Method&\" - \"&IF(PeakMethod=1,\"(Coincident Peaks)\",IF(PeakMethod=2,\"(200 Top Hours)\",\"(100 Summer, 100 Winter Hours)\"))&\" - \"&TEXT(Demand,\"0%\")&\"D\"&\" / \"&TEXT(Engy,\"0%\")&\"E\"","v":"WCA Method - (100 Summer, 100 Winter Hours) - 38%D / 62%E"}]
[null,null,{"$f":"Inputs!$C$5","v":"12 Months Ending June 2012"}]
[]
[]
[null,null,"A","B","C","D","E","F","G","H","I","J","L","M"]
[null,null,null,null,{"$f":"'Hot Sheet'!$H$10","v":"Washington"},null,{"$f":"'Hot Sheet'!$J$10","v":"Small General"},{"$f":"'Hot Sheet'!$K$10","v":"Large General"},{"$f":"'Hot Sheet'!$L$10","v":"Large General"},{"$f":"'Hot Sheet'!M$10","v":"Large General"},{"$f":"'Hot Sheet'!$N$10","v":"Agricultural"},{"$f":"'Hot Sheet'!$O$10","v":"Street & Area"},null,null,"Chk Total"]
[null,null,null,null,{"$f":"'Hot Sheet'!$H$11","v":"Jurisdiction"},{"$f":"'Hot Sheet'!$I$11","v":"Residential"},{"$f":"'Hot Sheet'!$J$11","v":"Service"},{"$f":"'Hot Sheet'!$K$11","v":"Service <1,000 kW"},{"$f":"'Hot Sheet'!$L$11","v":"Service >1,000 kW"},{"$f":"'Hot Sheet'!M$11","v":"Dedicated Facilities"},{"$f":"'Hot Sheet'!$N$11","v":"Pumping"},{"$f":"'Hot Sheet'!$O$11","v":"Lighting"},{"$f":"'Hot Sheet'!P$11","v":"-"},{"$f":"'Hot Sheet'!Q$11","v":"-"}]
[null,null,"DESCRIPTION ",null,{"$f":"'Hot Sheet'!$H$12","v":"Normalized"},{"$f":"'Hot Sheet'!$I$12","v":"Schedule 16"},{"$f":"'Hot Sheet'!$J$12","v":"Schedule 24"},{"$f":"'Hot Sheet'!$K$12","v":"Schedule 36"},{"$f":"'Hot Sheet'!$L$12","v":"Schedule 48T"},{"$f":"'Hot Sheet'!M$12","v":"Schedule 48T"},{"$f":"'Hot Sheet'!$N$12","v":"Schedule 40"},{"$f":"'Hot Sheet'!$O$12","v":"Sch. 15,51-54,57"},{"$f":"'Hot Sheet'!P$12","v":"-"},{"$f":"'Hot Sheet'!Q$12","v":"-"},{"$f":"ROUND(SUM(O83:O136),0)","v":0}]
[13]
[{"$f":"A81+1","v":14},null,"Operating Expenses"]
[{"$f":"A82+1","v":15},null,"Operation & Maintenance Expenses",null,{"$f":"'Func Study'!$N$13","v":60951647.667761035},26282629.425068874,8230151.2010606769,12998189.294536019,5054480.6532614212,6141501.4719427414,2115614.3559960267,129081.26589527001,0,0,{"$f":"ROUND(SUM(F83:N83)-E83,0)","v":0}]
[16,null,"Depreciation Expense",null,{"$f":"'Func Study'!$N$14","v":8799673.0136374291},4042037.2950138478,1189217.867374748,1853572.118062763,674114.78087939054,758996.85911108449,272962.78995790851,8771.3032376863193,0,0,0]
[17,null,"Amortization Expense",null,{"$f":"'Func Study'!$N$15","v":1466992.1234007026},629629.40244124806,198196.46714777837,310040.08550440316,122397.61076774827,150587.50378194437,52231.759913057278,3909.2938445233058,0,0,0]
[18,null,"Taxes Other Than Income",null,{"$f":"'Func Study'!$N$16","v":3842992.6458757706},1627810.4559113197,518596.26286744431,823127.76465525688,325281.41077043081,402211.67403598747,136880.81909267558,9084.2585426558562,0,0,0]
[19,null,"Income Taxes - Federal",null,{"$f":"'Func Study'!$N$17","v":-4535194.3935212968},-1921012.4852273811,-612006.07978825667,-971389.9472127466,-383871.26033819735,-474658.24090358982,-161535.86033944564,-10720.519711679561,0,0,0]
[20,null,"Income Taxes - State",null,{"$f":"'Func Study'!$N$18","v":0},0,0,0,0,0,0,0,0,0,0]
[21,null,"Income Taxes Deferred",null,{"$f":"'Func Study'!$N$19","v":4868014.8449833766},2061988.1936801453,656918.84914245282,1042676.5146063995,412042.09384239878,509491.58128992567,173390.35505356229,11507.257368492323,0,0,0]
[22,null,"Investment Tax Credit Adj",null,{"$f":"'Func Study'!$N$20","v":0},0,0,0,0,0,0,0,0,0,0]
[23,null,"Misc Revenues & Expense",null,{"$f":"'Func Study'!$N$21","v":-324259.06159709214},-149423.5335471984,-43824.105322722156,-68258.903005856962,-24732.828030075187,-27719.723895631159,-9995.8916120674057,-304.07618354085326,0,0,0]
[24]
[25,null,"Total Operating Expenses",null,{"$f":"SUM(E83:E91)","v":75069866.840539917},{"$f":"SUM(F83:F91)","v":32573658.753340855},10137250.462482123,15987956.927146237,6179712.461153117,{"$f":"SUM(J83:J91)","v":7460411.1253624633},2579548.3280617171,151328.7829934074,0,0,{"$f":"ROUND(SUM(F93:N93)-E93,0)","v":0}]
[26]
[27]
[28,null,"Rate Base :"]
[29,null,"Electric Plant In Service",null,{"$f":"'Func Study'!$N$29","v":335573969.09878629},153460743.62652588,45346868.799736194,70747401.42466338,25860541.542751353,29298233.997304618,10498428.353954848,361751.35385003604,0,0,{"$f":"ROUND(SUM(F97:N97)-E97,0)","v":0}]
[30,null,"Plant Held For Future Use ",null,{"$f":"'Func Study'!$N$30","v":16627.003868419466},7661.9776116210587,2247.1648599178511,3500.1058682599687,1268.2230846766297,1421.381885749317,512.55847001944483,15.592088175195451,0,0,0]
[31,null,"Electric Plant Acquisition Adj",null,{"$f":"'Func Study'!$N$31","v":0},0,0,0,0,0,0,0,0,0,0]
[32,null,"Nuclear Fuel",null,{"$f":"'Func Study'!$N$32","v":0},0,0,0,0,0,0,0,0,0,0]
[33,null,"Prepayments",null,{"$f":"'Func Study'!$N$33","v":-2.6510024167281438E-8},-1.2958028675648425E-8,-3.5869065000339836E-9,-4.7495987108146022E-9,-1.8697843291857236E-9,-2.3024520662872544E-9,-8.9374442720964821E-10,-1.4950945810180287E-10,0,0,0]
[34,null,"Fuel Stock",null,{"$f":"'Func Study'!$N$34","v":-5.766400136053562E-8},-2.6572453517021334E-8,-7.7933774819027873E-9,-1.2138693846863653E-8,-4.3983160320998675E-9,-4.9294850498811199E-9,-1.777600615628225E-9,-5.407481713862914E-11,0,0,0]
[35,null,"Materials & Supplies",null,{"$f":"'Func Study'!$N$35","v":4.3257487238899126E-5},1.8352244857080232E-5,5.837629642457571E-6,9.2493022691262267E-6,3.6551209835858867E-6,4.5193015328036879E-6,1.5400781928922842E-6,1.0380976095323949E-7,0,0,0]
[36,null,"Misc Deferred Debits",null,{"$f":"'Func Study'!$N$36","v":5590308.2420328381},2371828.1527365996,754416.78568535426,1195308.2666485116,472339.36082762392,583988.81927095971,199015.44937522861,13411.407488560064,0,0,0]
[37,null,"Cash Working Capital",null,{"$f":"'Func Study'!$N$37","v":7554079.6517450316},3204139.4795932746,1019716.5548647087,1615759.8702815266,638397.64112999581,788788.96371870511,269151.27537490492,18125.866781915622,0,0,0]
[38,null,"Weatherization Loans",null,{"$f":"'Func Study'!$N$38","v":0},0,0,0,0,0,0,0,0,0,0]
[39,null,"Miscellaneous Rate Base",null,{"$f":"'Func Study'!$N$39","v":0},0,0,0,0,0,0,0,0,0,0]
[40]
[41,null,"Total Rate Base Additions",null,{"$f":"SUM(E97:E107)","v":348734983.99647576},159044373.23648572,47123249.305152014,73561969.667470932,26972546.767797299,{"$f":"SUM(J97:J107)","v":30672433.162184544},10967107.63717654,393304.22020879044,0,0,{"$f":"ROUND(SUM(F109:N109)-E109,0)","v":0}]
[42]
[43,null,"Rate Base Deductions :"]
[44,null,"Accum Provision For Depreciation",null,{"$f":"'Func Study'!$N$44","v":-104952782.50871828},-48261226.210789531,-14183964.571566001,-22102625.69105364,-8028341.8174866559,-9025329.1820025686,-3248770.9107224457,-102524.12509743875,0,0,{"$f":"ROUND(SUM(F112:N112)-E112,0)","v":0}]
[45,null,"Accum Provision For Amortization",null,{"$f":"'Func Study'!$N$45","v":-8527177.2604506444},-3627463.6660396485,-1151430.4082155307,-1819513.0407637679,-718430.83475032495,-885520.05687876279,-303900.39797757549,-20918.855825036993,0,0,0]
[46,null,"Accum Deferred Income Taxes",null,{"$f":"'Func Study'!$N$46","v":-47236284.828935511},-20162202.887716714,-6375105.5965862218,-10034804.87024045,-3964918.2286809045,-4901961.021871089,-1677915.618332509,-119376.60550762237,0,0,0]
[47,null,"Unamortized ITC",null,{"$f":"'Func Study'!$N$47","v":-101205.60837647897},-42935.317673004436,-13657.475274214927,-21641.22365880691,-8551.9017656914548,-10574.442340854963,-3602.6882900260402,-242.55937388022411,0,0,0]
[48,null,"Customer Advance For Construction",null,{"$f":"'Func Study'!$N$48","v":0},0,0,0,0,0,0,0,0,0,0]
[49,null,"Customer Service Deposits",null,{"$f":"'Func Study'!$N$49","v":0},0,0,0,0,0,0,0,0,0,0]
[50,null,"Misc Rate Base Deductions",null,{"$f":"'Func Study'!$N$50","v":-1181764.482111231},-539708.48639792833,-159690.53895930288,-249210.99456367627,-91233.445383873302,-103552.3605568863,-37065.82497973182,-1302.8312698318969,0,0,0]
[51]
[52,null,"Total Rate Base Deductions",null,{"$f":"SUM(E112:E118)","v":-161999214.68859217},-72633536.568616807,-21883848.590601269,-34227795.820280343,-12811476.22806745,{"$f":"SUM(J112:J118)","v":-14926937.063650161},-5271255.4403022882,-244364.97707381021,0,0,{"$f":"ROUND(SUM(F120:N120)-E120,0)","v":0}]
[53]
[54,null,"Total Rate Base",null,{"$f":"E109+E120","v":186735769.30788359},{"$f":"F109+F120","v":86410836.667868912},25239400.714550745,39334173.847190589,14161070.539729849,{"$f":"J109+J120","v":15745496.098534383},5695852.1968742516,148939.24313498024,0,0,{"$f":"ROUND(SUM(F122:N122)-E122,0)","v":0}]
[55]
[56]
[57,null,"Return On Rate Base",{"$f":"ActualROR","v":4.602925444100011E-2},{"$f":"$D$57*E122","v":8595308.2387084719},{"$f":"$D$57*F122","v":3977426.38744504},1161750.7974284163,1810522.6962388677,651823.51903017599,{"$f":"$D$57*J122","v":724753.44621921366},262175.83002825436,6855.5623185099839,0,0,{"$f":"ROUND(SUM(F125:N125)-E125,0)","v":0}]
[58,null,"Total Operating Expenses",null,{"$f":"E93","v":75069866.840539917},32573658.753340855,10137250.462482123,15987956.927146237,6179712.461153117,{"$f":"J93","v":7460411.1253624633},2579548.3280617171,151328.7829934074,0,0,{"$f":"ROUND(SUM(F126:N126)-E126,0)","v":0}]
[59,null,"Revenue Credits",null,{"$f":"'Func Study'!$N$79","v":-8165936.6177693047},-3539811.6269642152,-1102602.0879734631,-1730955.9388750773,-672937.38388282061,-818010.99015611131,-283349.26761121058,-18269.322306406419,0,0,{"$f":"ROUND(SUM(F127:N127)-E127,0)","v":0}]
[60]
[61,null,"Total Revenue Requirements",null,{"$f":"E125+E126+E127","v":75499238.461479083},{"$f":"F125+F126+F127","v":33011273.51382168},10196399.171937076,16067523.684510028,6158598.5963004725,{"$f":"J125+J126+J127","v":7367153.5814255653},2558374.8904787609,139915.02300551097,0,0,{"$f":"ROUND(SUM(F129:N129)-E129,0)","v":0}]
[62,null,null,null,null,null,null,null,null,null,null,null,null,null,{"$f":"ROUND(SUM(F130:N130)-E130,0)","v":0}]
[63]
[64,null,"Return On Rate Base @ Target ROR",{"$f":"TargetROR","v":7.7999997127089077E-2},{"$f":"$D132*E122","v":14565389.469539689},{"$f":"$D132*F122","v":6740045.0118431384},1968673.1832244082,3068065.4470772883,1104563.461415434,{"$f":"$D132*J122","v":1228148.6504502741},444276.45499251562,11617.26053663928,0,0,{"$f":"ROUND(SUM(F132:N132)-E132,0)","v":0}]
[65,null,"Total Operating Expenses Adjusted for Taxes",null,{"$f":"E126+((E132-E125)*(1/Net_to_Gross_Factor))-(E132-E125)","v":78747466.207680956},{"$f":"F126+((F132-F125)*(1/Net_to_Gross_Factor))-(F132-F125)","v":34275445.397762105},10634318.616263695,16762609.439536303,6458602.4898175476,{"$f":"J126+((J132-J125)*(1/Net_to_Gross_Factor))-(J132-J125)","v":7770505.044175731},2691723.2076372355,154262.01248835531,0,0,{"$f":"ROUND(SUM(F133:N133)-E133,0)","v":0}]
[66,null,"Revenue Credits",null,{"$f":"E127","v":-8165936.6177693047},{"$f":"F127","v":-3539811.6269642152},-1102602.0879734631,-1730955.9388750773,-672937.38388282061,{"$f":"J127","v":-818010.99015611131},-283349.26761121058,-18269.322306406419,0,0,{"$f":"ROUND(SUM(F134:N134)-E134,0)","v":0}]
[67]
[68,null,"Total Target Revenue Requirements",null,{"$f":"SUM(E132:E134)","v":85146919.059451342},{"$f":"SUM(F132:F134)","v":37475678.782641023},11500389.711514641,18099718.947738513,6890228.5673501613,{"$f":"SUM(J132:J134)","v":8180642.7044698941},2852650.3950185403,147609.95071858817,0,0,{"$f":"ROUND(SUM(F136:N136)-E136,0)","v":0}]
[null,null,"Generation Energy Summary",null,null,null,null,null,null,{"$f":"J136/$E$136","v":9.6076790503224194E-2},null,null,{"$f":"M136/$E$136","v":0},{"$f":"N136/$E$136","v":0}]
[null,null,{"$f":"Inputs!$C$3","v":"PacifiCorp"}]
[null,null,{"$f":"\"Cost Of Service By Rate Schedule - \"&C137","v":"Cost Of Service By Rate Schedule - Generation Energy Summary"}]
[null,null,{"$f":"Inputs!$C$4","v":"State of Washington"}]
[null,null,{"$f":"+Method&\" - \"&IF(PeakMethod=1,\"(Coincident Peaks)\",IF(PeakMethod=2,\"(200 Top Hours)\",\"(100 Summer, 100 Winter Hours)\"))&\" - \"&TEXT(Demand,\"0%\")&\"D\"&\" / \"&TEXT(Engy,\"0%\")&\"E\"","v":"WCA Method - (100 Summer, 100 Winter Hours) - 38%D / 62%E"}]
[null,null,{"$f":"Inputs!$C$5","v":"12 Months Ending June 2012"}]
[]
[]
[null,null,"A","B","C","D","E","F","G","H","I","J","L","M"]
[null,null,null,null,{"$f":"'Hot Sheet'!$H$10","v":"Washington"},null,{"$f":"'Hot Sheet'!$J$10","v":"Small General"},{"$f":"'Hot Sheet'!$K$10","v":"Large General"},{"$f":"'Hot Sheet'!$L$10","v":"Large General"},{"$f":"'Hot Sheet'!M$10","v":"Large General"},{"$f":"'Hot Sheet'!$N$10","v":"Agricultural"},{"$f":"'Hot Sheet'!$O$10","v":"Street & Area"},{"$f":"'Hot Sheet'!P$10","v":0},{"$f":"'Hot Sheet'!Q$10","v":0},"Chk Total"]
[null,null,null,null,{"$f":"'Hot Sheet'!$H$11","v":"Jurisdiction"},{"$f":"'Hot Sheet'!$I$11","v":"Residential"},{"$f":"'Hot Sheet'!$J$11","v":"Service"},{"$f":"'Hot Sheet'!$K$11","v":"Service <1,000 kW"},{"$f":"'Hot Sheet'!$L$11","v":"Service >1,000 kW"},{"$f":"'Hot Sheet'!M$11","v":"Dedicated Facilities"},{"$f":"'Hot Sheet'!$N$11","v":"Pumping"},{"$f":"'Hot Sheet'!$O$11","v":"Lighting"},{"$f":"'Hot Sheet'!P$11","v":"-"},{"$f":"'Hot Sheet'!Q$11","v":"-"}]
[null,null,"DESCRIPTION ",null,{"$f":"'Hot Sheet'!$H$12","v":"Normalized"},{"$f":"'Hot Sheet'!$I$12","v":"Schedule 16"},{"$f":"'Hot Sheet'!$J$12","v":"Schedule 24"},{"$f":"'Hot Sheet'!$K$12","v":"Schedule 36"},{"$f":"'Hot Sheet'!$L$12","v":"Schedule 48T"},{"$f":"'Hot Sheet'!M$12","v":"Schedule 48T"},{"$f":"'Hot Sheet'!$N$12","v":"Schedule 40"},{"$f":"'Hot Sheet'!$O$12","v":"Sch. 15,51-54,57"},{"$f":"'Hot Sheet'!P$12","v":"-"},{"$f":"'Hot Sheet'!Q$12","v":"-"},{"$f":"ROUND(SUM(O151:O204),0)","v":0}]
[13]
[{"$f":"A149+1","v":14},null,"Operating Expenses"]
[{"$f":"A150+1","v":15},null,"Operation & Maintenance Expenses",null,{"$f":"'Func Study'!$O$13","v":99447425.142136425},41752263.688829578,13421935.812797939,21309945.782743488,8500895.3080739118,10607199.131701691,3599392.2372642471,255793.18072555264,0,0,{"$f":"ROUND(SUM(F151:N151)-E151,0)","v":0}]
[16,null,"Depreciation Expense",null,{"$f":"'Func Study'!$O$14","v":14357361.232776858},5782913.9208351085,1935843.3252854964,3097817.5490902439,1282481.9363415684,1660091.4097073523,551429.60080440145,46783.490712686013,0,0,0]
[17,null,"Amortization Expense",null,{"$f":"'Func Study'!$O$15","v":2393513.4644958838},1027102.6137062485,323372.1536735277,505871.86106837197,199743.52422370593,245792.76530427771,85244.728074927145,6385.8184448247339,0,0,0]
[18,null,"Taxes Other Than Income",null,{"$f":"'Func Study'!$O$16","v":6270145.8959025722},2655901.2701711003,846130.74467846169,1342997.9318059452,530722.30178333446,656240.09974292689,223331.86273015488,14821.684990649028,0,0,0]
[19,null,"Income Taxes - Federal",null,{"$f":"'Func Study'!$O$17","v":-7399527.6946926424},-3134283.528528885,-998536.23544399766,-1584899.3875576393,-626316.26686758513,-774442.39305322559,-263558.50897488499,-17491.374266424547,0,0,0]
[20,null,"Income Taxes - State",null,{"$f":"'Func Study'!$O$18","v":0},0,0,0,0,0,0,0,0,0,0]
[21,null,"Income Taxes Deferred",null,{"$f":"'Func Study'!$O$19","v":7942550.5365518238},3364296.5265307627,1071814.9643903174,1701209.0501472831,672279.20574286114,831275.73789408919,282900.05298212799,18774.998864382207,0,0,0]
[22,null,"Investment Tax Credit Adj",null,{"$f":"'Func Study'!$O$20","v":0},0,0,0,0,0,0,0,0,0,0]
[23,null,"Misc Revenues & Expense",null,{"$f":"'Func Study'!$O$21","v":-529054.25839525554},-212615.99412060287,-71331.242858406564,-114194.80460172945,-47365.784550958168,-61421.235177728384,-20382.135230758653,-1743.061855071473,0,0,0]
[24]
[25,null,"Total Operating Expenses",null,{"$f":"SUM(E151:E159)","v":122482414.31877565},{"$f":"SUM(F151:F159)","v":51235578.497423306},16529229.522523338,26258747.982695963,10512440.224746838,{"$f":"SUM(J151:J159)","v":13164735.516119383},4458357.8376502162,323324.73761659861,0,0,{"$f":"ROUND(SUM(F161:N161)-E161,0)","v":0}]
[26]
[27]
[28,null,"Rate Base :"]
[29,null,"Electric Plant In Service",null,{"$f":"'Func Study'!$O$29","v":547515423.26644075},221212027.804277,73826785.320407018,118072965.03511626,48753927.12056639,62953267.928919375,20939629.200480603,1756820.8566741284,0,0,{"$f":"ROUND(SUM(F165:N165)-E165,0)","v":0}]
[30,null,"Plant Held For Future Use ",null,{"$f":"'Func Study'!$O$30","v":27128.269469526498},10902.291949280152,3657.6459732668595,5855.5571231055092,2428.7712395161234,3149.4913661723558,1045.1329861355273,89.378832049971294,0,0,0]
[31,null,"Electric Plant Acquisition Adj",null,{"$f":"'Func Study'!$O$31","v":0},0,0,0,0,0,0,0,0,0,0]
[32,null,"Nuclear Fuel",null,{"$f":"'Func Study'!$O$32","v":0},0,0,0,0,0,0,0,0,0,0]
[33,null,"Prepayments",null,{"$f":"'Func Study'!$O$33","v":-4.3253197325564449E-8},-2.1142046786584269E-8,-5.8523211316343941E-9,-7.7493452650132988E-9,-3.0507007476188126E-9,-3.7566323186792044E-9,-1.4582145917631103E-9,-2.439364842713626E-10,0,0,0]
[34,null,"Fuel Stock",null,{"$f":"'Func Study'!$O$34","v":-9.4083370640873904E-8},-3.7810166087127244E-8,-1.2685057635634444E-8,-2.0307618653699573E-8,-8.423205357274068E-9,-1.0922730027681266E-8,-3.6246187473936356E-9,-3.0997413206367129E-10,0,0,0]
[35,null,"Materials & Supplies",null,{"$f":"'Func Study'!$O$35","v":7.0578005495045934E-5},2.9945311334353042E-5,9.5245655723849073E-6,1.5090769800569112E-5,5.9631293077248639E-6,7.3724675995278151E-6,2.5124750403903346E-6,1.6928684009586372E-7,0,0,0]
[36,null,"Misc Deferred Debits",null,{"$f":"'Func Study'!$O$36","v":9121029.2370009478},3869824.880780769,1230890.5450655781,1950239.8034791511,770658.95713980764,952823.86302103964,324709.41740168887,21881.770112913793,0,0,0]
[37,null,"Cash Working Capital",null,{"$f":"'Func Study'!$O$37","v":12325077.326531367},5227806.519336395,1663748.0632003143,2636239.7883540695,1041596.1513173616,1286971.4671199925,439141.55455905542,29573.782644178122,0,0,0]
[38,null,"Weatherization Loans",null,{"$f":"'Func Study'!$O$38","v":0},0,0,0,0,0,0,0,0,0,0]
[39,null,"Miscellaneous Rate Base",null,{"$f":"'Func Study'!$O$39","v":0},0,0,0,0,0,0,0,0,0,0]
[40]
[41,null,"Total Rate Base Additions",null,{"$f":"SUM(E165:E175)","v":568988658.09951305},{"$f":"SUM(F165:F175)","v":230320561.49637333},76725081.574655682,122665300.18408765,50568611.000269026,{"$f":"SUM(J165:J175)","v":65196212.750433937},21704525.305429991,1808365.788263439,0,0,{"$f":"ROUND(SUM(F177:N177)-E177,0)","v":0}]
[42]
[43,null,"Rate Base Deductions :"]
[44,null,"Accum Provision For Depreciation",null,{"$f":"'Func Study'!$O$44","v":-171238750.40896142},-68919942.511924699,-23088314.429188725,-36952082.597228229,-15307783.21824123,-19826884.366526246,-6583671.1760948449,-560072.109757422,0,0,{"$f":"ROUND(SUM(F180:N180)-E180,0)","v":0}]
[45,null,"Accum Provision For Amortization",null,{"$f":"'Func Study'!$O$45","v":-13912762.898630003},-5914575.4387582159,-1878628.0959123904,-2969034.1446375512,-1173057.7349431238,-1446830.7536655858,-496349.28397422546,-34287.446738911087,0,0,0]
[46,null,"Accum Deferred Income Taxes",null,{"$f":"'Func Study'!$O$46","v":-77069727.878789499},-32896225.764169369,-10401488.078640677,-16372576.367234413,-6469077.1099530533,-7997936.4041054593,-2737651.7983319876,-194772.35635454167,0,0,0]
[47,null,"Unamortized ITC",null,{"$f":"'Func Study'!$O$47","v":-165124.93998267624},-70052.360413849354,-22283.249131613833,-35309.364917000756,-13953.102880865008,-17253.037503500207,-5878.0703679372255,-395.75476790983942,0,0,0]
[48,null,"Customer Advance For Construction",null,{"$f":"'Func Study'!$O$48","v":0},0,0,0,0,0,0,0,0,0,0]
[49,null,"Customer Service Deposits",null,{"$f":"'Func Study'!$O$49","v":0},0,0,0,0,0,0,0,0,0,0]
[50,null,"Misc Rate Base Deductions",null,{"$f":"'Func Study'!$O$50","v":-1928142.0497604292},-779747.17603087646,-259993.95570164893,-415742.85504706635,-171530.46671192127,-221322.50590134645,-73647.112332350211,-6157.9780352197395,0,0,0]
[51]
[52,null,"Total Rate Base Deductions",null,{"$f":"SUM(E180:E186)","v":-264314508.17612404},{"$f":"SUM(F180:F186)","v":-108580543.251297},-35650707.808575056,-56744745.329064265,-23135401.63273019,{"$f":"SUM(J180:J186)","v":-29510227.067702137},-9897197.4411013462,-795685.6456540043,0,0,{"$f":"ROUND(SUM(F188:N188)-E188,0)","v":0}]
[53]
[54,null,"Total Rate Base",null,{"$f":"E177+E188","v":304674149.92338902},{"$f":"F177+F188","v":121740018.24507633},41074373.766080625,65920554.855023384,27433209.367538836,{"$f":"J177+J188","v":35685985.6827318},11807327.864328645,1012680.1426094347,0,0,{"$f":"ROUND(SUM(F190:N190)-E190,0)","v":0}]
[55]
[56]
[57,null,"Return On Rate Base",{"$f":"ActualROR","v":4.602925444100011E-2},{"$f":"$D$57*E190","v":14023923.968419088},{"$f":"$D$57*F190","v":5603602.2754546143},1890622.8010836651,3034273.9923137766,1262730.1741116727,{"$f":"$D$57*J190","v":1642599.3149683489},543482.49853549362,46612.911951517948,0,0,{"$f":"ROUND(SUM(F193:N193)-E193,0)","v":0}]
[58,null,"Total Operating Expenses",null,{"$f":"E161","v":122482414.31877565},{"$f":"F161","v":51235578.497423306},16529229.522523338,26258747.982695963,10512440.224746838,{"$f":"J161","v":13164735.516119383},4458357.8376502162,323324.73761659861,0,0,{"$f":"ROUND(SUM(F194:N194)-E194,0)","v":0}]
[59,null,"Revenue Credits",null,{"$f":"'Func Study'!$O$79","v":-13323370.271097284},-5623222.9395703468,-1798146.134000476,-2837986.3444600934,-1132192.4570003385,-1413729.3717383025,-482196.15479066921,-35896.869537059014,0,0,{"$f":"ROUND(SUM(F195:N195)-E195,0)","v":0}]
[60]
[61,null,"Total Revenue Requirements",null,{"$f":"E193+E194+E195","v":123182968.01609744},{"$f":"F193+F194+F195","v":51215957.833307572},16621706.189606525,26455035.630549647,10642977.941858172,{"$f":"J193+J194+J195","v":13393605.459349431},4519644.1813950408,334040.78003105754,0,0,{"$f":"ROUND(SUM(F197:N197)-E197,0)","v":0}]
[62,null,null,null,null,null,null,null,null,null,null,null,null,null,{"$f":"ROUND(SUM(F198:N198)-E198,0)","v":0}]
[63]
[64,null,"Return On Rate Base @ Target ROR",{"$f":"TargetROR","v":7.7999997127089077E-2},{"$f":"$D200*E190","v":23764582.81872265},{"$f":"$D200*F190","v":9495721.0733677261},3203801.0357512715,5141803.0893079415,2139790.2518548626,{"$f":"$D200*J190","v":2783506.7807304221},920971.5394962331,78989.048214196067,0,0,{"$f":"ROUND(SUM(F200:N200)-E200,0)","v":0}]
[65,null,"Total Operating Expenses Adjusted for Taxes",null,{"$f":"E194+((E200-E193)*(1/Net_to_Gross_Factor))-(E200-E193)","v":128482708.02305841},{"$f":"F194+((F200-F193)*(1/Net_to_Gross_Factor))-(F200-F193)","v":53633142.797574401},17338153.766270116,27556996.260007586,11052713.541330162,{"$f":"J194+((J200-J193)*(1/Net_to_Gross_Factor))-(J200-J193)","v":13867540.119913513},4690892.9413554315,343268.59660719387,0,0,{"$f":"ROUND(SUM(F201:N201)-E201,0)","v":0}]
[66,null,"Revenue Credits",null,{"$f":"E195","v":-13323370.271097284},{"$f":"F195","v":-5623222.9395703468},-1798146.134000476,-2837986.3444600934,-1132192.4570003385,{"$f":"J195","v":-1413729.3717383025},-482196.15479066921,-35896.869537059014,0,0,{"$f":"ROUND(SUM(F202:N202)-E202,0)","v":0}]
[67]
[68,null,"Total Target Revenue Requirements",null,{"$f":"SUM(E200:E202)","v":138923920.57068381},{"$f":"SUM(F200:F202)","v":57505640.931371786},18743808.668020912,29860813.004855435,12060311.336184688,{"$f":"SUM(J200:J202)","v":15237317.528905634},5129668.3260609955,386360.77528433094,0,0,{"$f":"ROUND(SUM(F204:N204)-E204,0)","v":0}]
[]
[null,null,"Check",null,{"$f":"E68-E136-E204","v":0},{"$f":"F68-F136-F204","v":0},{"$f":"G68-G136-G204","v":0},0,0,{"$f":"J68-J136-J204","v":0},0,0,0,0,0]

{"sheet":"Transmission Summary","index":7,"n_rows":207,"n_cols":15,"rows_kept":207,"cut":false,"hidden":false,"merged":[]}
[" ",null,"Transmission Summary"]
[null,null,{"$f":"Inputs!$C$3","v":"PacifiCorp"}]
[null,null,"Cost Of Service By Rate Schedule - Transmission Function"]
[null,null,{"$f":"Inputs!$C$4","v":"State of Washington"}]
[null,null,{"$f":"+Method&\" - \"&IF(PeakMethod=1,\"(Coincident Peaks)\",IF(PeakMethod=2,\"(200 Top Hours)\",\"(100 Summer, 100 Winter Hours)\"))&\" - \"&TEXT(Demand,\"0%\")&\"D\"&\" / \"&TEXT(Engy,\"0%\")&\"E\"","v":"WCA Method - (100 Summer, 100 Winter Hours) - 38%D / 62%E"}]
[null,null,{"$f":"Inputs!$C$5","v":"12 Months Ending June 2012"}]
[]
[]
[null,null,"A","B","C","D","E","F","G","H","I","J","K","L"]
[null,null,null,null,{"$f":"'Hot Sheet'!$H$10","v":"Washington"},null,{"$f":"'Hot Sheet'!$J$10","v":"Small General"},{"$f":"'Hot Sheet'!$K$10","v":"Large General"},{"$f":"'Hot Sheet'!$L$10","v":"Large General"},{"$f":"'Hot Sheet'!M$10","v":"Large General"},{"$f":"'Hot Sheet'!$N$10","v":"Agricultural"},{"$f":"'Hot Sheet'!O$10","v":"Street & Area"},null,null,"Chk Total"]
[null,null,null,null,{"$f":"'Hot Sheet'!$H$11","v":"Jurisdiction"},{"$f":"'Hot Sheet'!$I$11","v":"Residential"},{"$f":"'Hot Sheet'!$J$11","v":"Service"},{"$f":"'Hot Sheet'!$K$11","v":"Service <1,000 kW"},{"$f":"'Hot Sheet'!$L$11","v":"Service >1,000 kW"},{"$f":"'Hot Sheet'!M$11","v":"Dedicated Facilities"},{"$f":"'Hot Sheet'!$N$11","v":"Pumping"},{"$f":"'Hot Sheet'!O$11","v":"Lighting"},{"$f":"'Hot Sheet'!P$11","v":"-"},{"$f":"'Hot Sheet'!Q$11","v":"-"}]
[null,null,"DESCRIPTION ",null,{"$f":"'Hot Sheet'!$H$12","v":"Normalized"},{"$f":"'Hot Sheet'!$I$12","v":"Schedule 16"},{"$f":"'Hot Sheet'!$J$12","v":"Schedule 24"},{"$f":"'Hot Sheet'!$K$12","v":"Schedule 36"},{"$f":"'Hot Sheet'!$L$12","v":"Schedule 48T"},{"$f":"'Hot Sheet'!M$12","v":"Schedule 48T"},{"$f":"'Hot Sheet'!$N$12","v":"Schedule 40"},{"$f":"'Hot Sheet'!O$12","v":"Sch. 15,51-54,57"},{"$f":"'Hot Sheet'!P$12","v":"-"},{"$f":"'Hot Sheet'!Q$12","v":"-"},{"$f":"ROUND(SUM(O15:O68),0)","v":0}]
[]
[14,null,"Operating Expenses"]
[{"$f":"A14+1","v":15},null,"Operation & Maintenance Expenses",null,{"$f":"'Function Summary'!$G15","v":32671390.564299166},{"$f":"Transmission!$I$17","v":13881299.435301738},{"$f":"Transmission!$J$17","v":4414119.5271843234},{"$f":"Transmission!$K$17","v":6976144.8472730126},{"$f":"Transmission!$L$17","v":2755133.2517786631},{"$f":"Transmission!$M$17","v":3399020.8396872724},{"$f":"Transmission!$N$17","v":1165522.9197809845},{"$f":"Transmission!$O$17","v":80149.743293170686},{"$f":"Transmission!$P$17","v":0},{"$f":"Transmission!$Q$17","v":0},{"$f":"ROUND(SUM(F15:N15)-E15,0)","v":0}]
[{"$f":"A15+1","v":16},null,"Depreciation Expense",null,{"$f":"'Function Summary'!$G16","v":5516357.6512353439},{"$f":"Transmission!$I$18","v":2340452.7641943013},{"$f":"Transmission!$J$18","v":744437.09143710125},{"$f":"Transmission!$K$18","v":1179496.302678589},{"$f":"Transmission!$L$18","v":466091.08733753604},{"$f":"Transmission!$M$18","v":576263.60693302366},{"$f":"Transmission!$N$18","v":196382.80204668429},{"$f":"Transmission!$O$18","v":13233.996608110247},{"$f":"Transmission!$P$18","v":0},{"$f":"Transmission!$Q$18","v":0},0]
[17,null,"Amortization Expense",null,{"$f":"'Function Summary'!$G17","v":808907.75049483229},{"$f":"Transmission!$I$19","v":343199.3536894503},{"$f":"Transmission!$J$19","v":109162.77933582637},{"$f":"Transmission!$K$19","v":172958.99962234055},{"$f":"Transmission!$L$19","v":68346.673080463705},{"$f":"Transmission!$M$19","v":84502.152950840886},{"$f":"Transmission!$N$19","v":28797.184788024198},{"$f":"Transmission!$O$19","v":1940.6070278864865},{"$f":"Transmission!$P$19","v":0},{"$f":"Transmission!$Q$19","v":0},0]
[18,null,"Taxes Other Than Income",null,{"$f":"'Function Summary'!$G18","v":4248894.6593379853},{"$f":"Transmission!$I$20","v":1802073.1922004167},{"$f":"Transmission!$J$20","v":573598.68426422344},{"$f":"Transmission!$K$20","v":908634.09077766375},{"$f":"Transmission!$L$20","v":359074.38787720818},{"$f":"Transmission!$M$20","v":444118.1912983057},{"$f":"Transmission!$N$20","v":151240.30968842134},{"$f":"Transmission!$O$20","v":10155.80323174602},{"$f":"Transmission!$P$20","v":0},{"$f":"Transmission!$Q$20","v":0},0]
[19,null,"Income Taxes - Federal",null,{"$f":"'Function Summary'!$G19","v":-368427.97097115335},{"$f":"Transmission!$I$21","v":-156260.44488647205},{"$f":"Transmission!$J$21","v":-49737.594442531576},{"$f":"Transmission!$K$21","v":-78789.012498745476},{"$f":"Transmission!$L$21","v":-31135.873858995863},{"$f":"Transmission!$M$21","v":-38510.148452799622},{"$f":"Transmission!$N$21","v":-13114.272038986201},{"$f":"Transmission!$O$21","v":-880.62479262252509},{"$f":"Transmission!$P$21","v":0},{"$f":"Transmission!$Q$21","v":0},0]
[20,null,"Income Taxes - State",null,{"$f":"'Function Summary'!$G20","v":0},{"$f":"Transmission!$I$22","v":0},{"$f":"Transmission!$J$22","v":0},{"$f":"Transmission!$K$22","v":0},{"$f":"Transmission!$L$22","v":0},{"$f":"Transmission!$M$22","v":0},{"$f":"Transmission!$N$22","v":0},{"$f":"Transmission!$O$22","v":0},{"$f":"Transmission!$P$22","v":0},{"$f":"Transmission!$Q$22","v":0},0]
[21,null,"Income Taxes Deferred",null,{"$f":"'Function Summary'!$G21","v":2686209.4236197174},{"$f":"Transmission!$I$23","v":1139295.3648079981},{"$f":"Transmission!$J$23","v":362636.94786128181},{"$f":"Transmission!$K$23","v":574450.92264287604},{"$f":"Transmission!$L$23","v":227011.74819112214},{"$f":"Transmission!$M$23","v":280777.60601679218},{"$f":"Transmission!$N$23","v":95616.196137821215},{"$f":"Transmission!$O$23","v":6420.6379618256506},{"$f":"Transmission!$P$23","v":0},{"$f":"Transmission!$Q$23","v":0},0]
[22,null,"Investment Tax Credit Adj",null,{"$f":"'Function Summary'!$G22","v":0},{"$f":"Transmission!$I$24","v":0},{"$f":"Transmission!$J$24","v":0},{"$f":"Transmission!$K$24","v":0},{"$f":"Transmission!$L$24","v":0},{"$f":"Transmission!$M$24","v":0},{"$f":"Transmission!$N$24","v":0},{"$f":"Transmission!$O$24","v":0},{"$f":"Transmission!$P$24","v":0},{"$f":"Transmission!$Q$24","v":0},0]
[23,null,"Misc Revenues & Expense",null,{"$f":"'Function Summary'!$G23","v":516.47518278949883},{"$f":"Transmission!$I$25","v":219.12751957385163},{"$f":"Transmission!$J$25","v":69.69875906961137},{"$f":"Transmission!$K$25","v":110.43166651622761},{"$f":"Transmission!$L$25","v":43.638301710785896},{"$f":"Transmission!$M$25","v":53.953327638032732},{"$f":"Transmission!$N$25","v":18.386560480004682},{"$f":"Transmission!$O$25","v":1.2390478009848935},{"$f":"Transmission!$P$25","v":0},{"$f":"Transmission!$Q$25","v":0},0]
[24]
[25,null,"Total Operating Expenses",null,{"$f":"SUM(E15:E23)","v":45563848.553198673},{"$f":"SUM(F15:F23)","v":19350278.792827006},6154287.1343992949,9733006.5821622517,3844564.9127077078,{"$f":"SUM(J15:J23)","v":4746226.2017610734},1624463.5269634298,111021.40237791756,0,0,{"$f":"ROUND(SUM(F25:N25)-E25,0)","v":0}]
[26]
[27]
[28,null,"Rate Base :"]
[29,null,"Electric Plant In Service",null,{"$f":"'Function Summary'!$G29","v":303513053.25131756},{"$f":"Transmission!$I$33","v":128773007.36510786},{"$f":"Transmission!$J$33","v":40959341.083514757},{"$f":"Transmission!$K$33","v":64896539.847166926},{"$f":"Transmission!L$33","v":25644589.773718201},{"$f":"Transmission!$M$33","v":31706342.821823902},{"$f":"Transmission!$N$33","v":10805090.536849117},{"$f":"Transmission!O$33","v":728141.82313679659},{"$f":"Transmission!$P$33","v":0},{"$f":"Transmission!$Q$33","v":0},{"$f":"ROUND(SUM(F29:N29)-E29,0)","v":0}]
[30,null,"Plant Held For Future Use ",null,{"$f":"'Function Summary'!$G30","v":0},{"$f":"Transmission!$I$34","v":0},{"$f":"Transmission!$J$34","v":0},{"$f":"Transmission!$K$34","v":0},{"$f":"Transmission!$L$34","v":0},{"$f":"Transmission!$M$34","v":0},{"$f":"Transmission!$N$34","v":0},{"$f":"Transmission!$O$34","v":0},{"$f":"Transmission!$P$34","v":0},{"$f":"Transmission!Q34","v":0},0]
[{"$f":"A30+1","v":31},null,"Electric Plant Acquisition Adj",null,{"$f":"'Function Summary'!$G31","v":0},{"$f":"Transmission!$I$35","v":0},{"$f":"Transmission!$J$35","v":0},{"$f":"Transmission!$K$35","v":0},{"$f":"Transmission!$L$35","v":0},{"$f":"Transmission!$M$35","v":0},{"$f":"Transmission!$N$35","v":0},{"$f":"Transmission!$O$35","v":0},{"$f":"Transmission!$P$35","v":0},{"$f":"Transmission!$Q$35","v":0},0]
[32,null,"Nuclear Fuel",null,{"$f":"'Function Summary'!$G32","v":0},{"$f":"Transmission!$I$36","v":0},{"$f":"Transmission!$J$36","v":0},{"$f":"Transmission!$K$36","v":0},{"$f":"Transmission!$L$36","v":0},{"$f":"Transmission!$M$36","v":0},{"$f":"Transmission!$N$36","v":0},{"$f":"Transmission!$O$36","v":0},{"$f":"Transmission!$P$36","v":0},{"$f":"Transmission!$Q$36","v":0},0]
[33,null,"Prepayments",null,{"$f":"'Function Summary'!$G33","v":-2.7403410337079778E-8},{"$f":"Transmission!$I$37","v":-1.3523662311584409E-8},{"$f":"Transmission!$J$37","v":-3.7084903873306342E-9},{"$f":"Transmission!$K$37","v":-4.8404001323222611E-9},{"$f":"Transmission!$L$37","v":-1.9048940082123968E-9},{"$f":"Transmission!$M$37","v":-2.3448459223718174E-9},{"$f":"Transmission!$N$37","v":-9.2009309140020893E-10},{"$f":"Transmission!$O$37","v":-1.6102448385805982E-10},{"$f":"Transmission!$P$37","v":0},{"$f":"Transmission!$Q$37","v":0},0]
[34,null,"Fuel Stock",null,{"$f":"'Function Summary'!$G34","v":0},{"$f":"Transmission!$I$38","v":0},{"$f":"Transmission!$J$38","v":0},{"$f":"Transmission!$K$38","v":0},{"$f":"Transmission!$L$38","v":0},{"$f":"Transmission!$M$38","v":0},{"$f":"Transmission!$N$38","v":0},{"$f":"Transmission!$O$38","v":0},{"$f":"Transmission!$P$38","v":0},{"$f":"Transmission!$Q$38","v":0},0]
[35,null,"Materials & Supplies",null,{"$f":"'Function Summary'!$G35","v":8.8387352564417842E-7},{"$f":"Transmission!$I$39","v":3.7500545959503166E-7},{"$f":"Transmission!$J$39","v":1.1927947356376667E-7},{"$f":"Transmission!$K$39","v":1.8898802823260239E-7},{"$f":"Transmission!$L$39","v":7.4680722078290239E-8},{"$f":"Transmission!$M$39","v":9.233341602610902E-8},{"$f":"Transmission!$N$39","v":3.1465972765927223E-8},{"$f":"Transmission!$O$39","v":2.1204533824513744E-9},{"$f":"Transmission!$P$39","v":0},{"$f":"Transmission!$Q$39","v":0},0]
[36,null,"Misc Deferred Debits",null,{"$f":"'Function Summary'!$G36","v":55395.802666168427},{"$f":"Transmission!$I$40","v":23503.055398476852},{"$f":"Transmission!$J$40","v":7475.7100285894203},{"$f":"Transmission!$K$40","v":11844.617147698211},{"$f":"Transmission!$L$40","v":4680.5322517164841},{"$f":"Transmission!$M$40","v":5786.8954610307801},{"$f":"Transmission!$N$40","v":1972.0952913143919},{"$f":"Transmission!$O$40","v":132.8970873423053},{"$f":"Transmission!$P$40","v":0},{"$f":"Transmission!$Q$40","v":0},0]
[37,null,"Cash Working Capital",null,{"$f":"'Function Summary'!$G37","v":4582113.839411892},{"$f":"Transmission!$I$41","v":1946831.5597506305},{"$f":"Transmission!$J$41","v":619073.6857227931},{"$f":"Transmission!$K$41","v":978393.91890962585},{"$f":"Transmission!$L$41","v":386403.3328349918},{"$f":"Transmission!$M$41","v":476707.60751148872},{"$f":"Transmission!$N$41","v":163462.85262543941},{"$f":"Transmission!$O$41","v":11240.882056922817},{"$f":"Transmission!$P$41","v":0},{"$f":"Transmission!$Q$41","v":0},0]
[38,null,"Weatherization Loans",null,{"$f":"'Function Summary'!$G38","v":0},{"$f":"Transmission!$I$42","v":0},{"$f":"Transmission!$J$42","v":0},{"$f":"Transmission!$K$42","v":0},{"$f":"Transmission!$L$42","v":0},{"$f":"Transmission!$M$42","v":0},{"$f":"Transmission!$N$42","v":0},{"$f":"Transmission!$O$42","v":0},{"$f":"Transmission!$P$42","v":0},{"$f":"Transmission!$Q$42","v":0},0]
[39,null,"Miscellaneous Rate Base",null,{"$f":"'Function Summary'!$G39","v":0},{"$f":"Transmission!$I$43","v":0},{"$f":"Transmission!$J$43","v":0},{"$f":"Transmission!$K$43","v":0},{"$f":"Transmission!$L$43","v":0},{"$f":"Transmission!$M$43","v":0},{"$f":"Transmission!$N$43","v":0},{"$f":"Transmission!$O$43","v":0},{"$f":"Transmission!$P$43","v":0},{"$f":"Transmission!$Q$43","v":0},0]
[40]
[41,null,"Total Rate Base Additions",null,{"$f":"SUM(E29:E39)","v":308150562.89339656},130743341.98025733,41585890.479266256,65886778.383224428,26035673.63880498,{"$f":"SUM(J29:J39)","v":32188837.324796513},10970525.484765902,739515.60228106368,0,0,{"$f":"ROUND(SUM(F41:N41)-E41,0)","v":0}]
[42]
[43,null,"Rate Base Deductions :"]
[44,null,"Accum Provision For Depreciation",null,{"$f":"'Function Summary'!$G44","v":-114462702.38464727},{"$f":"Transmission!$I$48","v":-48563665.57982412},{"$f":"Transmission!$J$48","v":-15446837.683226576},{"$f":"Transmission!$K$48","v":-24474180.753500842},{"$f":"Transmission!$L$48","v":-9671244.8298390713},{"$f":"Transmission!$M$48","v":-11957290.282058973},{"$f":"Transmission!$N$48","v":-4074881.9502482475},{"$f":"Transmission!$O$48","v":-274601.30594946601},{"$f":"Transmission!$P$48","v":0},{"$f":"Transmission!$Q$48","v":0},{"$f":"ROUND(SUM(F44:N44)-E44,0)","v":0}]
[45,null,"Accum Provision For Amortization",null,{"$f":"'Function Summary'!$G45","v":-6435065.100261936},{"$f":"Transmission!$I$49","v":-2760391.1897368762},{"$f":"Transmission!$J$49","v":-870918.95541586494},{"$f":"Transmission!$K$49","v":-1362483.3242589124},{"$f":"Transmission!$L$49","v":-537327.42989146011},{"$f":"Transmission!$M$49","v":-655519.28520689695},{"$f":"Transmission!$N$49","v":-231047.81215690105},{"$f":"Transmission!$O$49","v":-17377.103595024892},{"$f":"Transmission!$P$49","v":0},{"$f":"Transmission!$Q$49","v":0},0]
[46,null,"Accum Deferred Income Taxes",null,{"$f":"'Function Summary'!$G46","v":-46442324.710822776},{"$f":"Transmission!$I$50","v":-19696649.941728462},{"$f":"Transmission!$J$50","v":-6266794.5082716057},{"$f":"Transmission!$K$50","v":-9933623.057130469},{"$f":"Transmission!$L$50","v":-3925654.5526383989},{"$f":"Transmission!$M$50","v":-4855825.9635284655},{"$f":"Transmission!$N$50","v":-1652852.5349635417},{"$f":"Transmission!$O$50","v":-110924.15256184468},{"$f":"Transmission!$P$50","v":0},{"$f":"Transmission!$Q$50","v":0},0]
[{"$f":"A46+1","v":47},null,"Unamortized ITC",null,{"$f":"'Function Summary'!$G47","v":-103068.52952258976},{"$f":"Transmission!$I$51","v":-43712.383755002673},{"$f":"Transmission!$J$51","v":-13907.772633493842},{"$f":"Transmission!$K$51","v":-22045.49275265749},{"$f":"Transmission!$L$51","v":-8712.1273565605625},{"$f":"Transmission!$M$51","v":-10776.438498446678},{"$f":"Transmission!$N$51","v":-3668.1427917796718},{"$f":"Transmission!$O$51","v":-246.17173464884945},{"$f":"Transmission!$P$51","v":0},{"$f":"Transmission!$Q$51","v":0},0]
[48,null,"Customer Advance For Construction",null,{"$f":"'Function Summary'!$G48","v":18276.841740963751},{"$f":"Transmission!$I$52","v":6731.6043453732555},{"$f":"Transmission!$J$52","v":10459.126227106039},{"$f":"Transmission!$K$52","v":0},{"$f":"Transmission!$L$52","v":0},{"$f":"Transmission!$M$52","v":0},{"$f":"Transmission!$N$52","v":1086.1111684844589},{"$f":"Transmission!$O$52","v":0},{"$f":"Transmission!$P$52","v":0},{"$f":"Transmission!$Q$52","v":0},0]
[49,null,"Customer Service Deposits",null,{"$f":"'Function Summary'!$G49","v":0},{"$f":"Transmission!$I$53","v":0},{"$f":"Transmission!$J$53","v":0},{"$f":"Transmission!$K$53","v":0},{"$f":"Transmission!$L$53","v":0},{"$f":"Transmission!$M$53","v":0},{"$f":"Transmission!$N$53","v":0},{"$f":"Transmission!$O$53","v":0},{"$f":"Transmission!$P$53","v":0},{"$f":"Transmission!$Q$53","v":0},0]
[50,null,"Misc Rate Base Deductions",null,{"$f":"'Function Summary'!$G50","v":-135637.7091795431},{"$f":"Transmission!$I$54","v":-57547.69205494738},{"$f":"Transmission!$J$54","v":-18304.422609037723},{"$f":"Transmission!$K$54","v":-29001.777367578339},{"$f":"Transmission!$L$54","v":-11460.375006922954},{"$f":"Transmission!$M$54","v":-14169.327021505214},{"$f":"Transmission!$N$54","v":-4828.7139949866787},{"$f":"Transmission!$O$54","v":-325.401124564854},{"$f":"Transmission!$P$54","v":0},{"$f":"Transmission!$Q$54","v":0},0]
[51]
[52,null,"Total Rate Base Deductions",null,{"$f":"SUM(E44:E50)","v":-167560521.59269318},-71115235.182754025,-22606304.215929471,-35821334.405010454,-14154399.314732414,{"$f":"SUM(J44:J50)","v":-17493581.296314288},-5966193.0429869723,-403474.13496554934,0,0,{"$f":"ROUND(SUM(F52:N52)-E52,0)","v":0}]
[53]
[54,null,"Total Rate Base",null,{"$f":"E41+E52","v":140590041.30070338},{"$f":"F41+F52","v":59628106.797503307},18979586.263336785,30065443.978213973,11881274.324072566,{"$f":"J41+J52","v":14695256.028482225},5004332.4417789299,336041.46731551434,0,0,{"$f":"ROUND(SUM(F54:N54)-E54,0)","v":0}]
[55]
[56]
[57,null,"Return On Rate Base",{"$f":"ActualROR","v":4.602925444100011E-2},{"$f":"$D$57*E54","v":6471254.7829007898},{"$f":"$D$57*F54","v":2744637.2996174078},873616.20530003938,1383889.9707548455,546886.1989460577,{"$f":"$D$57*J54","v":676411.67881064909},230345.69126999372,15467.738201792832,0,0,{"$f":"ROUND(SUM(F57:N57)-E57,0)","v":0}]
[58,null,"Total Operating Expenses",null,{"$f":"E25","v":45563848.553198673},19350278.792827006,6154287.1343992949,9733006.5821622517,3844564.9127077078,{"$f":"J25","v":4746226.2017610734},1624463.5269634298,111021.40237791756,0,0,{"$f":"ROUND(SUM(F58:N58)-E58,0)","v":0}]
[59,null,"Revenue Credits",null,{"$f":"'Function Summary'!$G$59","v":-3517284.7233469267},{"$f":"Transmission!$I$99","v":-1511563.2324031766},{"$f":"Transmission!$J99","v":-474978.50419531472},{"$f":"Transmission!$K99","v":-741147.30693891691},{"$f":"Transmission!$L99","v":-292729.34100804641},{"$f":"Transmission!$M99","v":-361889.08499885543},{"$f":"Transmission!$N99","v":-125436.64515960611},{"$f":"Transmission!$O99","v":-9540.6086430102114},{"$f":"Transmission!$P99","v":0},{"$f":"Transmission!$Q99","v":0},{"$f":"ROUND(SUM(F59:N59)-E59,0)","v":0}]
[60]
[61,null,"Total Revenue Requirements",null,{"$f":"E57+E58+E59","v":48517818.612752534},{"$f":"F57+F58+F59","v":20583352.860041235},6552924.8355040196,10375749.24597818,4098721.770645719,{"$f":"J57+J58+J59","v":5060748.7955728676},1729372.5730738174,116948.53193670018,0,0,{"$f":"ROUND(SUM(F61:N61)-E61,0)","v":0}]
[62,null,null,null,null,null,null,null,null,null,null,null,null,null,{"$f":"ROUND(SUM(F62:N62)-E62,0)","v":0}]
[63]
[64,null,"Return On Rate Base @ Target ROR",{"$f":"TargetROR","v":7.7999997127089077E-2},{"$f":"$D64*E54","v":10966022.817552198},{"$f":"$D64*F54","v":4650992.1588990185},1480407.6740136086,2345104.5439253477,926739.36314381741,{"$f":"$D64*J54","v":1146229.928003452},390337.91608175519,26211.233485192915,0,0,{"$f":"ROUND(SUM(F64:N64)-E64,0)","v":0}]
[65,null,"Total Operating Expenses Adjusted for Taxes",null,{"$f":"E58+((E64-E57)*(1/Net_to_Gross_Factor))-(E64-E57)","v":48332647.743788309},{"$f":"F58+((F64-F57)*(1/Net_to_Gross_Factor))-(F64-F57)","v":20524602.751408085},6528073.6600839561,10325119.481350798,4078556.3279410489,{"$f":"J58+((J64-J57)*(1/Net_to_Gross_Factor))-(J64-J57)","v":5035636.5513187805},1723019.5234340676,117639.44825157712,0,0,{"$f":"ROUND(SUM(F65:N65)-E65,0)","v":0}]
[66,null,"Revenue Credits",null,{"$f":"E59","v":-3517284.7233469267},{"$f":"F59","v":-1511563.2324031766},-474978.50419531472,-741147.30693891691,-292729.34100804641,{"$f":"J59","v":-361889.08499885543},-125436.64515960611,-9540.6086430102114,0,0,{"$f":"ROUND(SUM(F66:N66)-E66,0)","v":0}]
[67]
[68,null,"Total Target Revenue Requirements",null,{"$f":"SUM(E64:E66)","v":55781385.837993585},{"$f":"SUM(F64:F66)","v":23664031.677903924},7533502.8299022494,11929076.71833723,4712566.3500768198,{"$f":"SUM(J64:J66)","v":5819977.3943233769},1987920.7943562164,134310.07309375983,0,0,{"$f":"ROUND(SUM(F68:N68)-E68,0)","v":0}]
[null,null,"Transmission Demand Summary"]
[null,null,{"$f":"Inputs!$C$3","v":"PacifiCorp"}]
[null,null,{"$f":"\"Cost Of Service By Rate Schedule - \"&C69","v":"Cost Of Service By Rate Schedule - Transmission Demand Summary"}]
[null,null,{"$f":"Inputs!$C$4","v":"State of Washington"}]
[null,null,{"$f":"+Method&\" - \"&IF(PeakMethod=1,\"(Coincident Peaks)\",IF(PeakMethod=2,\"(200 Top Hours)\",\"(100 Summer, 100 Winter Hours)\"))&\" - \"&TEXT(Demand,\"0%\")&\"D\"&\" / \"&TEXT(Engy,\"0%\")&\"E\"","v":"WCA Method - (100 Summer, 100 Winter Hours) - 38%D / 62%E"}]
[null,null,{"$f":"Inputs!$C$5","v":"12 Months Ending June 2012"}]
[]
[]
[null,null,"A","B","C","D","E","F","G","H","I","J","L","M"]
[null,null,null,null,{"$f":"'Hot Sheet'!$H$10","v":"Washington"},null,{"$f":"'Hot Sheet'!$J$10","v":"Small General"},{"$f":"'Hot Sheet'!$K$10","v":"Large General"},{"$f":"'Hot Sheet'!$L$10","v":"Large General"},{"$f":"'Hot Sheet'!$M$10","v":"Large General"},{"$f":"'Hot Sheet'!$N$10","v":"Agricultural"},{"$f":"'Hot Sheet'!$O$10","v":"Street & Area"},null,null,"Chk Total"]
[null,null,null,null,{"$f":"'Hot Sheet'!$H$11","v":"Jurisdiction"},{"$f":"'Hot Sheet'!$I$11","v":"Residential"},{"$f":"'Hot Sheet'!$J$11","v":"Service"},{"$f":"'Hot Sheet'!$K$11","v":"Service <1,000 kW"},{"$f":"'Hot Sheet'!$L$11","v":"Service >1,000 kW"},{"$f":"'Hot Sheet'!$M$11","v":"Dedicated Facilities"},{"$f":"'Hot Sheet'!$N$11","v":"Pumping"},{"$f":"'Hot Sheet'!$O$11","v":"Lighting"},{"$f":"'Hot Sheet'!P$11","v":"-"},{"$f":"'Hot Sheet'!Q$11","v":"-"}]
[null,null,"DESCRIPTION ",null,{"$f":"'Hot Sheet'!$H$12","v":"Normalized"},{"$f":"'Hot Sheet'!$I$12","v":"Schedule 16"},{"$f":"'Hot Sheet'!$J$12","v":"Schedule 24"},{"$f":"'Hot Sheet'!$K$12","v":"Schedule 36"},{"$f":"'Hot Sheet'!$L$12","v":"Schedule 48T"},{"$f":"'Hot Sheet'!$M$12","v":"Schedule 48T"},{"$f":"'Hot Sheet'!$N$12","v":"Schedule 40"},{"$f":"'Hot Sheet'!$O$12","v":"Sch. 15,51-54,57"},{"$f":"'Hot Sheet'!P$12","v":"-"},{"$f":"'Hot Sheet'!Q$12","v":"-"},{"$f":"ROUND(SUM(O83:O136),0)","v":0}]
[13]
[{"$f":"A81+1","v":14},null,"Operating Expenses"]
[{"$f":"A82+1","v":15},null,"Operation & Maintenance Expenses",null,{"$f":"'Func Study'!$Q$13","v":12415128.414433682},5274893.7854146603,1677365.4203300427,2650935.041963744,1046950.6356758919,1291627.9190811638,442898.70951677411,30456.902451404869,0,0,{"$f":"ROUND(SUM(F83:N83)-E83,0)","v":0}]
[16,null,"Depreciation Expense",null,{"$f":"'Func Study'!$Q$14","v":2096215.9074694307},889372.05039383448,282886.0947460985,448208.59501786384,177114.61318826373,218980.17063454902,74625.464777740039,5028.9187110818948,0,0,0]
[17,null,"Amortization Expense",null,{"$f":"'Func Study'!$Q$15","v":307384.9451880363},131710.82624482544,41488.968789325576,65607.08300241406,25680.483494609362,31438.188095761354,10773.756369411212,685.63919168935558,0,0,0]
[18,null,"Taxes Other Than Income",null,{"$f":"'Func Study'!$Q$16","v":1614579.9705484344},684787.81303615822,217967.5000204049,345280.95449551218,136448.26739333911,168764.91269335616,57471.317681600107,3859.2052280634875,0,0,0]
[19,null,"Income Taxes - Federal",null,{"$f":"'Func Study'!$Q$17","v":-140002.62896903828},-59378.969056859387,-18900.285888162001,-29939.824749523283,-11831.63206641843,-14633.856412063858,-4983.4233748147572,-334.63742119655956,0,0,0]
[20,null,"Income Taxes - State",null,{"$f":"'Func Study'!$Q$18","v":0},0,0,0,0,0,0,0,0,0,0]
[21,null,"Income Taxes Deferred",null,{"$f":"'Func Study'!$Q$19","v":1020759.5809754925},432932.23862703925,137802.04018728709,218291.35060429282,86264.464312626398,106695.49028638101,36334.154532372057,2439.8424254937472,0,0,0]
[22,null,"Investment Tax Credit Adj",null,{"$f":"'Func Study'!$Q$20","v":0},0,0,0,0,0,0,0,0,0,0]
[23,null,"Misc Revenues & Expense",null,{"$f":"'Func Study'!$Q$21","v":196.26056946000955},90.439871256825299,26.524914444488164,41.314284660734927,14.969755631904203,16.777599892614973,6.0500988634899411,0.18404470995202996,0,0,0]
[24]
[25,null,"Total Operating Expenses",null,{"$f":"SUM(E83:E91)","v":17314262.4502155},{"$f":"SUM(F83:F91)","v":7354408.1845309157},2338636.2630994413,3698424.5146189644,1460641.8017539443,{"$f":"SUM(J83:J91)","v":1802889.6019790403},617126.02960194624,42136.054631246749,0,0,{"$f":"ROUND(SUM(F93:N93)-E93,0)","v":0}]
[26]
[27]
[28,null,"Rate Base :"]
[29,null,"Electric Plant In Service",null,{"$f":"'Func Study'!$Q$29","v":115334951.46732558},52738679.269298971,15585445.474800581,24315945.857859008,8889239.8872306291,10072212.412614195,3608898.8232846875,124529.74223752395,0,0,{"$f":"ROUND(SUM(F97:N97)-E97,0)","v":0}]
[30,null,"Plant Held For Future Use ",null,{"$f":"'Func Study'!$Q$30","v":0},0,0,0,0,0,0,0,0,0,0]
[31,null,"Electric Plant Acquisition Adj",null,{"$f":"'Func Study'!$Q$31","v":0},0,0,0,0,0,0,0,0,0,0]
[32,null,"Nuclear Fuel",null,{"$f":"'Func Study'!$Q$32","v":0},0,0,0,0,0,0,0,0,0,0]
[33,null,"Prepayments",null,{"$f":"'Func Study'!$Q$33","v":-1.0413295928090316E-8},-5.1389916784020747E-9,-1.409226347185641E-9,-1.8393520502824595E-9,-7.2385972312071072E-10,-8.9104145050129058E-10,-3.4963537473207942E-10,-6.1189303866062744E-11,0,0,0]
[34,null,"Fuel Stock",null,{"$f":"'Func Study'!$Q$34","v":0},0,0,0,0,0,0,0,0,0,0]
[35,null,"Materials & Supplies",null,{"$f":"'Func Study'!$Q$35","v":3.3587193974478775E-7},1.4249565733619146E-7,4.53261647098343E-8,7.1816032153243344E-8,2.8380117596264506E-8,3.5090031090603798E-8,1.1957907937385385E-8,8.060289212650677E-10,0,0,0]
[36,null,"Misc Deferred Debits",null,{"$f":"'Func Study'!$Q$36","v":21050.405013144002},8931.1610514212025,2840.7698108639797,4500.95451612532,1778.6022556522639,2199.0202751916963,749.39621069946895,50.500893190076006,0,0,0]
[37,null,"Cash Working Capital",null,{"$f":"'Func Study'!$Q$37","v":1741203.2589765189},739795.99270523945,235248.00057466133,371789.68918565783,146833.26647729686,181148.89085436569,62115.88399766697,4271.5351816306702,0,0,0]
[38,null,"Weatherization Loans",null,{"$f":"'Func Study'!$Q$38","v":0},0,0,0,0,0,0,0,0,0,0]
[39,null,"Miscellaneous Rate Base",null,{"$f":"'Func Study'!$Q$39","v":0},0,0,0,0,0,0,0,0,0,0]
[40]
[41,null,"Total Rate Base Additions",null,{"$f":"SUM(E97:E107)","v":117097205.13131557},{"$f":"SUM(F97:F107)","v":53487406.423055768},15823534.24518615,24692236.501560859,9037851.7559636049,{"$f":"SUM(J97:J107)","v":10255560.323743789},3671764.1034930656,128851.77831234544,0,0,{"$f":"ROUND(SUM(F109:N109)-E109,0)","v":0}]
[42]
[43,null,"Rate Base Deductions :"]
[44,null,"Accum Provision For Depreciation",null,{"$f":"'Func Study'!$Q$44","v":-43495826.906165957},-18454192.920333166,-5869798.3196260985,-9300188.6863303185,-3675073.035338847,-4543770.3071824098,-1548455.1410943342,-104348.4962607971,0,0,{"$f":"ROUND(SUM(F112:N112)-E112,0)","v":0}]
[45,null,"Accum Provision For Amortization",null,{"$f":"'Func Study'!$Q$45","v":-2445324.7380995355},-1048948.6521000131,-330949.20305802871,-517743.66321838676,-204184.42335875484,-249097.32837862088,-87798.168619622389,-6603.2993661094588,0,0,0]
[46,null,"Accum Deferred Income Taxes",null,{"$f":"'Func Study'!$Q$46","v":-17648083.390112657},-7484726.9778568149,-2381381.9131432101,-3774776.7617095783,-1491748.7300025916,-1845213.8661408168,-628083.96328614582,-42151.177973500977,0,0,0]
[47,null,"Unamortized ITC",null,{"$f":"'Func Study'!$Q$47","v":-39166.041218584105},-16610.705826901016,-5284.9536007276592,-8377.2872460098461,-3310.6083954930136,-4095.0466294097369,-1393.8942608762752,-93.545259166562786,0,0,0]
[48,null,"Customer Advance For Construction",null,{"$f":"'Func Study'!$Q$48","v":6945.199861566226},2558.0096512418372,3974.4679663002948,0,0,0,412.72224402409438,0,0,0,0]
[49,null,"Customer Service Deposits",null,{"$f":"'Func Study'!$Q$49","v":0},0,0,0,0,0,0,0,0,0,0]
[50,null,"Misc Rate Base Deductions",null,{"$f":"'Func Study'!$Q$50","v":-51542.32948822638},-21868.122980880005,-6955.6805914343349,-11020.675399679769,-4354.9425026307226,-5384.3442681719816,-1834.9113180949378,-123.65242733464453,0,0,0]
[51]
[52,null,"Total Rate Base Deductions",null,{"$f":"SUM(E112:E118)","v":-63672998.205223404},{"$f":"SUM(F112:F118)","v":-27023789.369446531},-8590395.602053199,-13612107.073903972,-5378671.7395983171,{"$f":"SUM(J112:J118)","v":-6647560.8925994281},-2267153.3563350495,-153320.17128690876,0,0,{"$f":"ROUND(SUM(F120:N120)-E120,0)","v":0}]
[53]
[54,null,"Total Rate Base",null,{"$f":"E109+E120","v":53424206.92609217},{"$f":"F109+F120","v":26463617.053609237},7233138.6431329511,11080129.427656887,3659180.0163652878,{"$f":"J109+J120","v":3607999.4311443605},1404610.7471580161,-24468.392974563321,0,0,{"$f":"ROUND(SUM(F122:N122)-E122,0)","v":0}]
[55]
[56]
[57,null,"Return On Rate Base",{"$f":"ActualROR","v":4.602925444100011E-2},{"$f":"$D$57*E122","v":2459076.413909737},{"$f":"$D$57*F122","v":1218100.5627897691},332935.97901179688,510010.0966648318,168429.32801870079,{"$f":"$D$57*J122","v":166073.52383912742},64653.185471499593,-1126.2618859885547,0,0,{"$f":"ROUND(SUM(F125:N125)-E125,0)","v":0}]
[58,null,"Total Operating Expenses",null,{"$f":"E93","v":17314262.4502155},{"$f":"F93","v":7354408.1845309157},2338636.2630994413,3698424.5146189644,1460641.8017539443,{"$f":"J93","v":1802889.6019790403},617126.02960194624,42136.054631246749,0,0,{"$f":"ROUND(SUM(F126:N126)-E126,0)","v":0}]
[59,null,"Revenue Credits",null,{"$f":"'Func Study'!$Q$79","v":-1336568.1948718322},-621857.08294516592,-180752.50261722191,-277335.7012921155,-100563.05241819064,-112866.65180686153,-41465.877085264277,-1727.3267070123056,0,0,{"$f":"ROUND(SUM(F127:N127)-E127,0)","v":0}]
[60]
[61,null,"Total Revenue Requirements",null,{"$f":"E125+E126+E127","v":18436770.669253405},{"$f":"F125+F126+F127","v":7950651.6643755194},2490819.7394940164,3931098.9099916806,1528508.0773544544,{"$f":"J125+J126+J127","v":1856096.4740113062},640313.33798818151,39282.46603824589,0,0,{"$f":"ROUND(SUM(F129:N129)-E129,0)","v":0}]
[62,null,null,null,null,null,null,null,null,null,null,null,null,null,{"$f":"ROUND(SUM(F130:N130)-E130,0)","v":0}]
[63]
[64,null,"Return On Rate Base @ Target ROR",{"$f":"TargetROR","v":7.7999997127089077E-2},{"$f":"$D132*E122","v":4167087.9867522018},{"$f":"$D132*F122","v":2064162.0541539059},564184.79338420718,864250.06352501235,285416.0307639942,{"$f":"$D132*J122","v":281423.94526379916},109559.63424300369,-1908.5345817204256,0,0,{"$f":"ROUND(SUM(F132:N132)-E132,0)","v":0}]
[65,null,"Total Operating Expenses Adjusted for Taxes",null,{"$f":"E126+((E132-E125)*(1/Net_to_Gross_Factor))-(E132-E125)","v":18366405.96995794},{"$f":"F126+((F132-F125)*(1/Net_to_Gross_Factor))-(F132-F125)","v":7875586.2196193859},2481086.6687984755,3916638.0744635565,1532706.1853603474,{"$f":"J126+((J132-J125)*(1/Net_to_Gross_Factor))-(J132-J125)","v":1873946.0282534552},644788.62265507993,41654.170807640097,0,0,{"$f":"ROUND(SUM(F133:N133)-E133,0)","v":0}]
[66,null,"Revenue Credits",null,{"$f":"E127","v":-1336568.1948718322},{"$f":"F127","v":-621857.08294516592},-180752.50261722191,-277335.7012921155,-100563.05241819064,{"$f":"J127","v":-112866.65180686153},-41465.877085264277,-1727.3267070123056,0,0,{"$f":"ROUND(SUM(F134:N134)-E134,0)","v":0}]
[67]
[68,null,"Total Target Revenue Requirements",null,{"$f":"SUM(E132:E134)","v":21196925.761838309},{"$f":"SUM(F132:F134)","v":9317891.1908281259},2864518.9595654611,4503552.436696454,1717559.1637061508,{"$f":"SUM(J132:J134)","v":2042503.3217103928},712882.3798128193,38018.309518907365,0,0,{"$f":"ROUND(SUM(F136:N136)-E136,0)","v":0}]
[null,null,"Transmission Energy Summary"]
[null,null,{"$f":"Inputs!$C$3","v":"PacifiCorp"}]
[null,null,{"$f":"\"Cost Of Service By Rate Schedule - \"&C137","v":"Cost Of Service By Rate Schedule - Transmission Energy Summary"}]
[null,null,{"$f":"Inputs!$C$4","v":"State of Washington"}]
[null,null,{"$f":"+Method&\" - \"&IF(PeakMethod=1,\"(Coincident Peaks)\",IF(PeakMethod=2,\"(200 Top Hours)\",\"(100 Summer, 100 Winter Hours)\"))&\" - \"&TEXT(Demand,\"0%\")&\"D\"&\" / \"&TEXT(Engy,\"0%\")&\"E\"","v":"WCA Method - (100 Summer, 100 Winter Hours) - 38%D / 62%E"}]
[null,null,{"$f":"Inputs!$C$5","v":"12 Months Ending June 2012"}]
[]
[]
[null,null,"A","B","C","D","E","F","G","H","I","J","L","M"]
[null,null,null,null,{"$f":"'Hot Sheet'!$H$10","v":"Washington"},null,{"$f":"'Hot Sheet'!$J$10","v":"Small General"},{"$f":"'Hot Sheet'!$K$10","v":"Large General"},{"$f":"'Hot Sheet'!$L$10","v":"Large General"},{"$f":"'Hot Sheet'!M$10","v":"Large General"},{"$f":"'Hot Sheet'!$N$10","v":"Agricultural"},{"$f":"'Hot Sheet'!$O$10","v":"Street & Area"},null,null,"Chk Total"]
[null,null,null,null,{"$f":"'Hot Sheet'!$H$11","v":"Jurisdiction"},{"$f":"'Hot Sheet'!$I$11","v":"Residential"},{"$f":"'Hot Sheet'!$J$11","v":"Service"},{"$f":"'Hot Sheet'!$K$11","v":"Service <1,000 kW"},{"$f":"'Hot Sheet'!$L$11","v":"Service >1,000 kW"},{"$f":"'Hot Sheet'!M$11","v":"Dedicated Facilities"},{"$f":"'Hot Sheet'!$N$11","v":"Pumping"},{"$f":"'Hot Sheet'!$O$11","v":"Lighting"},{"$f":"'Hot Sheet'!P$11","v":"-"},{"$f":"'Hot Sheet'!Q$11","v":"-"}]
[null,null,"DESCRIPTION ",null,{"$f":"'Hot Sheet'!$H$12","v":"Normalized"},{"$f":"'Hot Sheet'!$I$12","v":"Schedule 16"},{"$f":"'Hot Sheet'!$J$12","v":"Schedule 24"},{"$f":"'Hot Sheet'!$K$12","v":"Schedule 36"},{"$f":"'Hot Sheet'!$L$12","v":"Schedule 48T"},{"$f":"'Hot Sheet'!M$12","v":"Schedule 48T"},{"$f":"'Hot Sheet'!$N$12","v":"Schedule 40"},{"$f":"'Hot Sheet'!$O$12","v":"Sch. 15,51-54,57"},{"$f":"'Hot Sheet'!P$12","v":"-"},{"$f":"'Hot Sheet'!Q$12","v":"-"},{"$f":"ROUND(SUM(O151:O204),0)","v":0}]
[13]
[{"$f":"A149+1","v":14},null,"Operating Expenses"]
[{"$f":"A150+1","v":15},null,"Operation & Maintenance Expenses",null,{"$f":"'Func Study'!$R$13","v":20256262.149865486},8606405.6498870794,2736754.1068542809,4325209.8053092668,1708182.6161027707,2107392.9206061093,722624.21026421047,49692.840841765843,0,0,{"$f":"ROUND(SUM(F151:N151)-E151,0)","v":0}]
[16,null,"Depreciation Expense",null,{"$f":"'Func Study'!$R$14","v":3420141.743765913},1451080.7138004666,461550.99669100274,731287.70766072511,288976.47414927237,357283.43629847467,121757.33726894425,8205.0778970283536,0,0,0]
[17,null,"Amortization Expense",null,{"$f":"'Func Study'!$R$15","v":501522.80530679598},211488.52744462489,67673.810546500797,107351.91661992649,42666.18958585435,53063.964855079532,18023.428418612984,1254.967836197131,0,0,0]
[18,null,"Taxes Other Than Income",null,{"$f":"'Func Study'!$R$16","v":2634314.6887895511},1117285.3791642585,355631.18424381857,563353.13628215156,222626.1204838691,275353.27860494959,93768.992006821238,6296.5980036825331,0,0,0]
[19,null,"Income Taxes - Federal",null,{"$f":"'Func Study'!$R$17","v":-228425.34200211507},-96881.475829612667,-30837.308554369574,-48849.18774922219,-19304.241792577435,-23876.292040735767,-8130.8486641714444,-545.98737142596553,0,0,0]
[20,null,"Income Taxes - State",null,{"$f":"'Func Study'!$R$18","v":0},0,0,0,0,0,0,0,0,0,0]
[21,null,"Income Taxes Deferred",null,{"$f":"'Func Study'!$R$19","v":1665449.8426442249},706363.1261809587,224834.90767399478,356159.57203858311,140747.28387849571,174082.11573041114,59282.041605449136,3980.7955363319043,0,0,0]
[22,null,"Investment Tax Credit Adj",null,{"$f":"'Func Study'!$R$20","v":0},0,0,0,0,0,0,0,0,0,0]
[23,null,"Misc Revenues & Expense",null,{"$f":"'Func Study'!$R$21","v":320.21461332948928},128.68764831702632,43.173844625123216,69.117381855492695,28.668546078881693,37.17572774541776,12.336461616514741,1.0550030910328636,0,0,0]
[24]
[25,null,"Total Operating Expenses",null,{"$f":"SUM(E151:E159)","v":28249586.102983184},{"$f":"SUM(F151:F159)","v":11995870.608296091},3815650.8712998535,6034582.0675432878,2383923.1109537636,{"$f":"SUM(J151:J159)","v":2943336.5997820338},1007337.4973614833,68885.347746670828,0,0,{"$f":"ROUND(SUM(F161:N161)-E161,0)","v":0}]
[26]
[27]
[28,null,"Rate Base :"]
[29,null,"Electric Plant In Service",null,{"$f":"'Func Study'!$R$29","v":188178101.78399199},76034328.095808879,25373895.608714167,40580593.989307933,16755349.886487572,21634130.409209706,7196191.7135644304,603612.0808992727,0,0,{"$f":"ROUND(SUM(F165:N165)-E165,0)","v":0}]
[30,null,"Plant Held For Future Use ",null,{"$f":"'Func Study'!$R$30","v":0},0,0,0,0,0,0,0,0,0,0]
[31,null,"Electric Plant Acquisition Adj",null,{"$f":"'Func Study'!$R$31","v":0},0,0,0,0,0,0,0,0,0,0]
[32,null,"Nuclear Fuel",null,{"$f":"'Func Study'!$R$32","v":0},0,0,0,0,0,0,0,0,0,0]
[33,null,"Prepayments",null,{"$f":"'Func Study'!$R$33","v":-1.6990114408989463E-8},-8.3846706331823333E-9,-2.2992640401449932E-9,-3.0010480820398024E-9,-1.1810342850916861E-9,-1.4538044718705266E-9,-5.7045771666812951E-10,-9.983517999199709E-11,0,0,0]
[34,null,"Fuel Stock",null,{"$f":"'Func Study'!$R$34","v":0},0,0,0,0,0,0,0,0,0,0]
[35,null,"Materials & Supplies",null,{"$f":"'Func Study'!$R$35","v":5.480015858993905E-7},2.3250980225884022E-7,7.3953308853932368E-8,1.1717199607935903E-7,4.6300604482025736E-8,5.7243384935505216E-8,1.950806482854184E-8,1.3144244611863062E-9,0,0,0]
[36,null,"Misc Deferred Debits",null,{"$f":"'Func Study'!$R$36","v":34345.397653024425},14571.894347055648,4634.9402177254406,7343.6626315728909,2901.9299960642202,3587.8751858390838,1222.6990806149231,82.396194152229285,0,0,0]
[37,null,"Cash Working Capital",null,{"$f":"'Func Study'!$R$37","v":2840910.5804353729},1207035.5670453908,383825.68514813163,606604.22972396796,239570.06635769492,295558.71665712295,101346.96862777242,6969.3468752921453,0,0,0]
[38,null,"Weatherization Loans",null,{"$f":"'Func Study'!$R$38","v":0},0,0,0,0,0,0,0,0,0,0]
[39,null,"Miscellaneous Rate Base",null,{"$f":"'Func Study'!$R$39","v":0},0,0,0,0,0,0,0,0,0,0]
[40]
[41,null,"Total Rate Base Additions",null,{"$f":"SUM(E165:E175)","v":191053357.76208088},{"$f":"SUM(F165:F175)","v":77255935.557201549},25762356.234080095,41194541.881663591,16997821.882841375,{"$f":"SUM(J165:J175)","v":21933277.001052726},7298761.3812728366,610663.82396871818,0,0,{"$f":"ROUND(SUM(F177:N177)-E177,0)","v":0}]
[42]
[43,null,"Rate Base Deductions :"]
[44,null,"Accum Provision For Depreciation",null,{"$f":"'Func Study'!$R$44","v":-70966875.478481308},-30109472.659490954,-9577039.3636004776,-15173992.067170521,-5996171.7945002243,-7413519.9748765631,-2526426.8091539135,-170252.80968866896,0,0,{"$f":"ROUND(SUM(F180:N180)-E180,0)","v":0}]
[45,null,"Accum Provision For Amortization",null,{"$f":"'Func Study'!$R$45","v":-3989740.3621623996},-1711442.5376368633,-539969.75235783623,-844739.66104052577,-333143.00653270521,-406421.95682827622,-143249.64353727864,-10773.804228915433,0,0,0]
[46,null,"Accum Deferred Income Taxes",null,{"$f":"'Func Study'!$R$46","v":-28794241.320710123},-12211922.963871643,-3885412.5951283956,-6158846.2954208907,-2433905.8226358071,-3010612.0973876482,-1024768.5716773957,-68772.974588343699,0,0,0]
[47,null,"Unamortized ITC",null,{"$f":"'Func Study'!$R$47","v":-63902.488304005652},-27101.677928101657,-8622.8190327661814,-13668.205506647644,-5401.5189610675488,-6681.3918690369401,-2274.2485309033968,-152.62647548228665,0,0,0]
[48,null,"Customer Advance For Construction",null,{"$f":"'Func Study'!$R$48","v":11331.641879397526},4173.5946941314187,6484.6582608057433,0,0,0,673.38892446036448,0,0,0,0]
[49,null,"Customer Service Deposits",null,{"$f":"'Func Study'!$R$49","v":0},0,0,0,0,0,0,0,0,0,0]
[50,null,"Misc Rate Base Deductions",null,{"$f":"'Func Study'!$R$50","v":-84095.379691316717},-35679.569074067374,-11348.742017603388,-17981.101967898569,-7105.432504292231,-8784.9827533332336,-2993.8026768917407,-201.74869723020947,0,0,0]
[51]
[52,null,"Total Rate Base Deductions",null,{"$f":"SUM(E180:E186)","v":-103887523.38746975},{"$f":"SUM(F180:F186)","v":-44091445.813307501},-14015908.613876272,-22209227.331106484,-8775727.5751340985,{"$f":"SUM(J180:J186)","v":-10846020.403714856},-3699039.6866519228,-250153.96367864058,0,0,{"$f":"ROUND(SUM(F188:N188)-E188,0)","v":0}]
[53]
[54,null,"Total Rate Base",null,{"$f":"E177+E188","v":87165834.374611124},{"$f":"F177+F188","v":33164489.743894048},11746447.620203823,18985314.550557107,8222094.3077072762,{"$f":"J177+J188","v":11087256.59733787},3599721.6946209138,360509.86029007763,0,0,{"$f":"ROUND(SUM(F190:N190)-E190,0)","v":0}]
[55]
[56]
[57,null,"Return On Rate Base",{"$f":"ActualROR","v":4.602925444100011E-2},{"$f":"$D$57*E190","v":4012178.368991049},{"$f":"$D$57*F190","v":1526536.7368276378},540680.22628824203,873879.87409001472,378456.87092735688,{"$f":"$D$57*J190","v":510338.15497152193},165692.50579849415,16594.000087781384,0,0,{"$f":"ROUND(SUM(F193:N193)-E193,0)","v":0}]
[58,null,"Total Operating Expenses",null,{"$f":"E161","v":28249586.102983184},{"$f":"F161","v":11995870.608296091},3815650.8712998535,6034582.0675432878,2383923.1109537636,{"$f":"J161","v":2943336.5997820338},1007337.4973614833,68885.347746670828,0,0,{"$f":"ROUND(SUM(F194:N194)-E194,0)","v":0}]
[59,null,"Revenue Credits",null,{"$f":"'Func Study'!$R$79","v":-2180716.5284750946},-889706.14945801056,-294226.00157809287,-463811.60564680159,-192166.28858985571,-249022.43319199388,-83970.768074341831,-7813.2819359979057,0,0,{"$f":"ROUND(SUM(F195:N195)-E195,0)","v":0}]
[60]
[61,null,"Total Revenue Requirements",null,{"$f":"E193+E194+E195","v":30081047.943499137},{"$f":"F193+F194+F195","v":12632701.195665719},4062105.0960100028,6444650.3359865015,2570213.6932912646,{"$f":"J193+J194+J195","v":3204652.3215615619},1089059.2350856357,77666.065898454312,0,0,{"$f":"ROUND(SUM(F197:N197)-E197,0)","v":0}]
[62,null,null,null,null,null,null,null,null,null,null,null,null,null,{"$f":"ROUND(SUM(F198:N198)-E198,0)","v":0}]
[63]
[64,null,"Return On Rate Base @ Target ROR",{"$f":"TargetROR","v":7.7999997127089077E-2},{"$f":"$D200*E190","v":6798934.8307999903},{"$f":"$D200*F190","v":2586830.104745111},916222.88062940049,1480854.4804003367,641323.33237982297,{"$f":"$D200*J190","v":864805.98273965332},280778.28183875151,28119.768066913341,0,0,{"$f":"ROUND(SUM(F200:N200)-E200,0)","v":0}]
[65,null,"Total Operating Expenses Adjusted for Taxes",null,{"$f":"E194+((E200-E193)*(1/Net_to_Gross_Factor))-(E200-E193)","v":29966241.773830377},{"$f":"F194+((F200-F193)*(1/Net_to_Gross_Factor))-(F200-F193)","v":12649016.531788701},4046986.9912854815,6408481.4068872407,2545850.142580702,{"$f":"J194+((J200-J193)*(1/Net_to_Gross_Factor))-(J200-J193)","v":3161690.5230653258},1078230.9007789874,75985.277443937055,0,0,{"$f":"ROUND(SUM(F201:N201)-E201,0)","v":0}]
[66,null,"Revenue Credits",null,{"$f":"E195","v":-2180716.5284750946},{"$f":"F195","v":-889706.14945801056},-294226.00157809287,-463811.60564680159,-192166.28858985571,{"$f":"J195","v":-249022.43319199388},-83970.768074341831,-7813.2819359979057,0,0,{"$f":"ROUND(SUM(F202:N202)-E202,0)","v":0}]
[67]
[68,null,"Total Target Revenue Requirements",null,{"$f":"SUM(E200:E202)","v":34584460.076155275},{"$f":"SUM(F200:F202)","v":14346140.487075802},4668983.8703367896,7425524.2816407764,2995007.1863706694,{"$f":"SUM(J200:J202)","v":3777474.0726129855},1275038.414543397,96291.763574852492,0,0,{"$f":"ROUND(SUM(F204:N204)-E204,0)","v":0}]
[]
[]
[null,null,"Check",null,{"$f":"E68-E136-E204","v":0},{"$f":"F68-F136-F204","v":0},0,0,0,{"$f":"J68-J136-J204","v":0},0,0,0,0,0]

{"sheet":"Distribution Summary","index":8,"n_rows":411,"n_cols":15,"rows_kept":411,"cut":false,"hidden":false,"merged":[]}
[null,null,"Distribution Summary"]
[null,null,{"$f":"Inputs!$C$3","v":"PacifiCorp"}]
[null,null,"Cost Of Service By Rate Schedule - Distribution Function"]
[null,null,{"$f":"Inputs!$C$4","v":"State of Washington"}]
[null,null,{"$f":"+Method&\" - \"&IF(PeakMethod=1,\"(Coincident Peaks)\",IF(PeakMethod=2,\"(200 Top Hours)\",\"(100 Summer, 100 Winter Hours)\"))&\" - \"&TEXT(Demand,\"0%\")&\"D\"&\" / \"&TEXT(Engy,\"0%\")&\"E\"","v":"WCA Method - (100 Summer, 100 Winter Hours) - 38%D / 62%E"}]
[null,null,{"$f":"Inputs!$C$5","v":"12 Months Ending June 2012"}]
[]
[]
[null,null,"A","B","C","D","E","F","G","H","I","J","K","L"]
[null,null,null,null,{"$f":"'Hot Sheet'!$H$10","v":"Washington"},null,{"$f":"'Hot Sheet'!$J$10","v":"Small General"},{"$f":"'Hot Sheet'!$K$10","v":"Large General"},{"$f":"'Hot Sheet'!$L$10","v":"Large General"},{"$f":"'Hot Sheet'!$M$10","v":"Large General"},{"$f":"'Hot Sheet'!$N$10","v":"Agricultural"},{"$f":"'Hot Sheet'!$O$10","v":"Street & Area"},null,null,"Chk Total"]
[null,null,null,null,{"$f":"'Hot Sheet'!$H$11","v":"Jurisdiction"},{"$f":"'Hot Sheet'!$I$11","v":"Residential"},{"$f":"'Hot Sheet'!$J$11","v":"Service"},{"$f":"'Hot Sheet'!$K$11","v":"Service <1,000 kW"},{"$f":"'Hot Sheet'!$L$11","v":"Service >1,000 kW"},{"$f":"'Hot Sheet'!$M$11","v":"Dedicated Facilities"},{"$f":"'Hot Sheet'!$N$11","v":"Pumping"},{"$f":"'Hot Sheet'!$O$11","v":"Lighting"}]
[null,null,"DESCRIPTION ",null,{"$f":"'Hot Sheet'!$H$12","v":"Normalized"},{"$f":"'Hot Sheet'!$I$12","v":"Schedule 16"},{"$f":"'Hot Sheet'!$J$12","v":"Schedule 24"},{"$f":"'Hot Sheet'!$K$12","v":"Schedule 36"},{"$f":"'Hot Sheet'!$L$12","v":"Schedule 48T"},{"$f":"'Hot Sheet'!$M$12","v":"Schedule 48T"},{"$f":"'Hot Sheet'!$N$12","v":"Schedule 40"},{"$f":"'Hot Sheet'!$O$12","v":"Sch. 15,51-54,57"},null,null,{"$f":"ROUND(SUM(O15:O68),0)","v":0}]
[]
[14,null,"Operating Expenses"]
[{"$f":"A14+1","v":15},null,"Operation & Maintenance Expenses",null,{"$f":"'Function Summary'!$H15","v":14391948.89266945},{"$f":"Distribution!$I$17","v":8095957.8041426744},{"$f":"Distribution!$J$17","v":2121176.1931480584},{"$f":"Distribution!$K$17","v":2082397.4379732881},{"$f":"Distribution!$L$17","v":756115.67261217826},{"$f":"Distribution!$M$17","v":303947.10711001663},{"$f":"Distribution!$N$17","v":724912.88770861574},{"$f":"Distribution!$O$17","v":307441.78997462208},{"$f":"Distribution!$P$17","v":0},{"$f":"Distribution!$Q$17","v":0},{"$f":"ROUND(SUM(F15:N15)-E15,0)","v":0}]
[{"$f":"A15+1","v":16},null,"Depreciation Expense",null,{"$f":"'Function Summary'!$H16","v":12516369.432388294},{"$f":"Distribution!$I$18","v":7447312.0965365376},{"$f":"Distribution!$J$18","v":1878116.8835403353},{"$f":"Distribution!$K$18","v":1733167.8694275671},{"$f":"Distribution!$L$18","v":601693.02956722572},{"$f":"Distribution!$M$18","v":69327.533224695741},{"$f":"Distribution!$N$18","v":600055.64035489957},{"$f":"Distribution!$O$18","v":186696.37973703272},{"$f":"Distribution!$P$18","v":0},{"$f":"Distribution!$Q$18","v":0},0]
[17,null,"Amortization Expense",null,{"$f":"'Function Summary'!$H17","v":442417.08881035889},{"$f":"Distribution!$I$19","v":244305.52191952744},{"$f":"Distribution!$J$19","v":64833.438921067209},{"$f":"Distribution!$K$19","v":69862.170145708573},{"$f":"Distribution!$L$19","v":25416.812356274553},{"$f":"Distribution!$M$19","v":13265.2480821996},{"$f":"Distribution!$N$19","v":19954.06316653507},{"$f":"Distribution!$O$19","v":4779.8342190464246},{"$f":"Distribution!$P$19","v":0},{"$f":"Distribution!$Q$19","v":0},0]
[18,null,"Taxes Other Than Income",null,{"$f":"'Function Summary'!$H18","v":5489522.200680973},{"$f":"Distribution!$I$20","v":3272001.4043723186},{"$f":"Distribution!$J$20","v":828429.50216835761},{"$f":"Distribution!$K$20","v":758192.34779752931},{"$f":"Distribution!$L$20","v":262276.54597382934},{"$f":"Distribution!$M$20","v":43844.825026258906},{"$f":"Distribution!$N$20","v":260289.31137890712},{"$f":"Distribution!$O$20","v":64488.263963772275},{"$f":"Distribution!$P$20","v":0},{"$f":"Distribution!$Q$20","v":0},0]
[19,null,"Income Taxes - Federal",null,{"$f":"'Function Summary'!$H19","v":1813833.1650488966},{"$f":"Distribution!$I$21","v":1081125.906112714},{"$f":"Distribution!$J$21","v":273727.44858405215},{"$f":"Distribution!$K$21","v":250519.87689399437},{"$f":"Distribution!$L$21","v":86660.711098461295},{"$f":"Distribution!$M$21","v":14487.089193031945},{"$f":"Distribution!$N$21","v":86004.094386982237},{"$f":"Distribution!$O$21","v":21308.038779660561},{"$f":"Distribution!$P$21","v":0},{"$f":"Distribution!$Q$21","v":0},0]
[20,null,"Income Taxes - State",null,{"$f":"'Function Summary'!$H20","v":0},{"$f":"Distribution!$I$22","v":0},{"$f":"Distribution!$J$22","v":0},{"$f":"Distribution!$K$22","v":0},{"$f":"Distribution!$L$22","v":0},{"$f":"Distribution!$M$22","v":0},{"$f":"Distribution!$N$22","v":0},{"$f":"Distribution!$O$22","v":0},{"$f":"Distribution!$P$22","v":0},{"$f":"Distribution!$Q$22","v":0},0]
[21,null,"Income Taxes Deferred",null,{"$f":"'Function Summary'!$H21","v":908708.60779814981},{"$f":"Distribution!$I$23","v":541631.08048127126},{"$f":"Distribution!$J$23","v":137134.16068905557},{"$f":"Distribution!$K$23","v":125507.44629921275},{"$f":"Distribution!$L$23","v":43415.974330228753},{"$f":"Distribution!$M$23","v":7257.8575060362855},{"$f":"Distribution!$N$23","v":43087.017252343881},{"$f":"Distribution!$O$23","v":10675.071240001475},{"$f":"Distribution!$P$23","v":0},{"$f":"Distribution!$Q$23","v":0},0]
[22,null,"Investment Tax Credit Adj",null,{"$f":"'Function Summary'!$H22","v":0},{"$f":"Distribution!$I$24","v":0},{"$f":"Distribution!$J$24","v":0},{"$f":"Distribution!$K$24","v":0},{"$f":"Distribution!$L$24","v":0},{"$f":"Distribution!$M$24","v":0},{"$f":"Distribution!$N$24","v":0},{"$f":"Distribution!$O$24","v":0},{"$f":"Distribution!$P$24","v":0},{"$f":"Distribution!$Q$24","v":0},0]
[23,null,"Misc Revenues & Expense",null,{"$f":"'Function Summary'!$H23","v":3674.2548731014076},{"$f":"Distribution!$I$25","v":1558.8945673561968},{"$f":"Distribution!$J$25","v":495.84377661184976},{"$f":"Distribution!$K$25","v":785.62165688284995},{"$f":"Distribution!$L$25","v":310.44713871580939},{"$f":"Distribution!$M$25","v":383.82924020354164},{"$f":"Distribution!$N$25","v":130.80378630848043},{"$f":"Distribution!$O$25","v":8.814707022679606},{"$f":"Distribution!$P$25","v":0},{"$f":"Distribution!$Q$25","v":0},0]
[24]
[25,null,"Total Operating Expenses",null,{"$f":"SUM(E15:E23)","v":35566473.642269231},{"$f":"SUM(F15:F23)","v":20683892.708132401},5303913.4708275385,5020432.7701941831,1775889.1930769139,{"$f":"SUM(J15:J23)","v":452513.48938244261},1734433.8180345921,595398.19262115809,0,0,{"$f":"ROUND(SUM(F25:N25)-E25,0)","v":0}]
[26]
[27]
[28,null,"Rate Base :"]
[29,null,"Electric Plant In Service",null,{"$f":"'Function Summary'!$H29","v":458649616.57378644},{"$f":"Distribution!$I$33","v":271535136.19833577},{"$f":"Distribution!$J$33","v":68867431.723238885},{"$f":"Distribution!$K$33","v":64442996.830431648},{"$f":"Distribution!$L$33","v":22488245.262116887},{"$f":"Distribution!$M$33","v":3117642.2852687975},{"$f":"Distribution!$N$33","v":22042917.057402991},{"$f":"Distribution!$O$33","v":6155247.2169914022},{"$f":"Distribution!$P$33","v":0},{"$f":"Distribution!$Q$33","v":0},{"$f":"ROUND(SUM(F29:N29)-E29,0)","v":0}]
[30,null,"Plant Held For Future Use ",null,{"$f":"'Function Summary'!$H30","v":0},{"$f":"Distribution!$I$34","v":0},{"$f":"Distribution!$J$34","v":0},{"$f":"Distribution!$K$34","v":0},{"$f":"Distribution!$L$34","v":0},{"$f":"Distribution!$M$34","v":0},{"$f":"Distribution!$N$34","v":0},{"$f":"Distribution!$O$34","v":0},{"$f":"Distribution!$P$34","v":0},{"$f":"Distribution!$Q$34","v":0},0]
[{"$f":"A30+1","v":31},null,"Electric Plant Acquisition Adj",null,{"$f":"'Function Summary'!$H31","v":0},{"$f":"Distribution!$I$35","v":0},{"$f":"Distribution!$J$35","v":0},{"$f":"Distribution!$K$35","v":0},{"$f":"Distribution!$L$35","v":0},{"$f":"Distribution!$M$35","v":0},{"$f":"Distribution!$N$35","v":0},{"$f":"Distribution!$O$35","v":0},{"$f":"Distribution!$P$35","v":0},{"$f":"Distribution!$Q$35","v":0},0]
[32,null,"Nuclear Fuel",null,{"$f":"'Function Summary'!$H32","v":0},{"$f":"Distribution!$I$36","v":0},{"$f":"Distribution!$J$36","v":0},{"$f":"Distribution!$K$36","v":0},{"$f":"Distribution!$L$36","v":0},{"$f":"Distribution!$M$36","v":0},{"$f":"Distribution!$N$36","v":0},{"$f":"Distribution!$O$36","v":0},{"$f":"Distribution!$P$36","v":0},{"$f":"Distribution!$Q$36","v":0},0]
[33,null,"Prepayments",null,{"$f":"'Function Summary'!$H33","v":-6.4062846943359198E-9},{"$f":"Distribution!$I$37","v":-5.1690314736969717E-9},{"$f":"Distribution!$J$37","v":-8.7794068734323085E-10},{"$f":"Distribution!$K$37","v":-5.3318854636484715E-11},{"$f":"Distribution!$L$37","v":-1.0935234818579041E-11},{"$f":"Distribution!$M$37","v":-1.8882627602831269E-13},{"$f":"Distribution!$N$37","v":-1.5639684994152107E-10},{"$f":"Distribution!$O$37","v":-1.384727676231039E-10},{"$f":"Distribution!$P$37","v":0},{"$f":"Distribution!$Q$37","v":0},0]
[34,null,"Fuel Stock",null,{"$f":"'Function Summary'!$H34","v":0},{"$f":"Distribution!$I$38","v":0},{"$f":"Distribution!$J$38","v":0},{"$f":"Distribution!$K$38","v":0},{"$f":"Distribution!$L$38","v":0},{"$f":"Distribution!$M$38","v":0},{"$f":"Distribution!$N$38","v":0},{"$f":"Distribution!$O$38","v":0},{"$f":"Distribution!$P$38","v":0},{"$f":"Distribution!$Q$38","v":0},0]
[35,null,"Materials & Supplies",null,{"$f":"'Function Summary'!$H35","v":3.0886988376085263E-5},{"$f":"Distribution!$I$39","v":1.8288787189319099E-5},{"$f":"Distribution!$J$39","v":4.6380070784947705E-6},{"$f":"Distribution!$K$39","v":4.3386214067848872E-6},{"$f":"Distribution!$L$39","v":1.5138604094216387E-6},{"$f":"Distribution!$M$39","v":2.0837502358280016E-7},{"$f":"Distribution!$N$39","v":1.4846444803242308E-6},{"$f":"Distribution!$O$39","v":4.1469278815783158E-7},{"$f":"Distribution!$P$39","v":0},{"$f":"Distribution!$Q$39","v":0},0]
[36,null,"Misc Deferred Debits",null,{"$f":"'Function Summary'!$H36","v":0},{"$f":"Distribution!$I$40","v":0},{"$f":"Distribution!$J$40","v":0},{"$f":"Distribution!$K$40","v":0},{"$f":"Distribution!$L$40","v":0},{"$f":"Distribution!$M$40","v":0},{"$f":"Distribution!$N$40","v":0},{"$f":"Distribution!$O$40","v":0},{"$f":"Distribution!$P$40","v":0},{"$f":"Distribution!$Q$40","v":0},0]
[37,null,"Cash Working Capital",null,{"$f":"'Function Summary'!$H37","v":2719707.324459231},{"$f":"Distribution!$I$41","v":1529927.3157963278},{"$f":"Distribution!$J$41","v":400847.61778939865},{"$f":"Distribution!$K$41","v":393519.43275561545},{"$f":"Distribution!$L$41","v":142886.36989179382},{"$f":"Distribution!$M$41","v":57438.167660278457},{"$f":"Distribution!$N$41","v":136989.84793506496},{"$f":"Distribution!$O$41","v":58098.572630752657},{"$f":"Distribution!$P$41","v":0},{"$f":"Distribution!$Q$41","v":0},0]
[38,null,"Weatherization Loans",null,{"$f":"'Function Summary'!$H38","v":0},{"$f":"Distribution!$I$42","v":0},{"$f":"Distribution!$J$42","v":0},{"$f":"Distribution!$K$42","v":0},{"$f":"Distribution!$L$42","v":0},{"$f":"Distribution!$M$42","v":0},{"$f":"Distribution!$N$42","v":0},{"$f":"Distribution!$O$42","v":0},{"$f":"Distribution!$P$42","v":0},{"$f":"Distribution!$Q$42","v":0},0]
[39,null,"Miscellaneous Rate Base",null,{"$f":"'Function Summary'!$H39","v":0},{"$f":"Distribution!$I$43","v":0},{"$f":"Distribution!$J$43","v":0},{"$f":"Distribution!$K$43","v":0},{"$f":"Distribution!$L$43","v":0},{"$f":"Distribution!$M$43","v":0},{"$f":"Distribution!$N$43","v":0},{"$f":"Distribution!$O$43","v":0},{"$f":"Distribution!$P$43","v":0},{"$f":"Distribution!$Q$43","v":0},0]
[40]
[41,null,"Total Rate Base Additions",null,{"$f":"SUM(E29:E39)","v":461369323.89827657},273065063.51415038,69268279.341032922,64836516.263191596,22631131.632010192,{"$f":"SUM(J29:J39)","v":3175080.452929284},22179906.905339543,6213345.7896225695,0,0,{"$f":"ROUND(SUM(F41:N41)-E41,0)","v":0}]
[42]
[43,null,"Rate Base Deductions :"]
[44,null,"Accum Provision For Depreciation",null,{"$f":"'Function Summary'!$H44","v":-198063450.82755744},{"$f":"Distribution!$I$48","v":-116350673.03778681},{"$f":"Distribution!$J$48","v":-29462287.906706158},{"$f":"Distribution!$K$48","v":-28409924.938031357},{"$f":"Distribution!$L$48","v":-10018328.638025187},{"$f":"Distribution!$M$48","v":-988142.51805659884},{"$f":"Distribution!$N$48","v":-9704093.3693563603},{"$f":"Distribution!$O$48","v":-3130000.4195949091},{"$f":"Distribution!$P$48","v":0},{"$f":"Distribution!$Q$48","v":0},{"$f":"ROUND(SUM(F44:N44)-E44,0)","v":0}]
[45,null,"Accum Provision For Amortization",null,{"$f":"'Function Summary'!$H45","v":-7175315.1321535669},{"$f":"Distribution!$I$49","v":-4070523.1292305761},{"$f":"Distribution!$J$49","v":-1060721.3358633728},{"$f":"Distribution!$K$49","v":-1085050.5066773633},{"$f":"Distribution!$L$49","v":-389300.34376690252},{"$f":"Distribution!$M$49","v":-154239.99323697909},{"$f":"Distribution!$N$49","v":-330951.97345867823},{"$f":"Distribution!$O$49","v":-84527.849919693967},{"$f":"Distribution!$P$49","v":0},{"$f":"Distribution!$Q$49","v":0},0]
[46,null,"Accum Deferred Income Taxes",null,{"$f":"'Function Summary'!$H46","v":-60008268.201318935},{"$f":"Distribution!$I$50","v":-35783886.315698259},{"$f":"Distribution!$J$50","v":-9080018.8113630973},{"$f":"Distribution!$K$50","v":-8275805.034058312},{"$f":"Distribution!$L$50","v":-2860747.5420457977},{"$f":"Distribution!$M$50","v":-467834.52330134669},{"$f":"Distribution!$N$50","v":-2843520.6271592681},{"$f":"Distribution!$O$50","v":-696455.34769283701},{"$f":"Distribution!$P$50","v":0},{"$f":"Distribution!$Q$50","v":0},0]
[{"$f":"A46+1","v":47},null,"Unamortized ITC",null,{"$f":"'Function Summary'!$H47","v":-153928.69549059757},{"$f":"Distribution!$I$51","v":-91790.748514117615},{"$f":"Distribution!$J$51","v":-23291.453059279298},{"$f":"Distribution!$K$51","v":-21228.385954453035},{"$f":"Distribution!$L$51","v":-7338.0974028804449},{"$f":"Distribution!$M$51","v":-1199.8269195114333},{"$f":"Distribution!$N$51","v":-7293.9103600574217},{"$f":"Distribution!$O$51","v":-1786.2732802982991},{"$f":"Distribution!$P$51","v":0},{"$f":"Distribution!$Q$51","v":0},0]
[48,null,"Customer Advance For Construction",null,{"$f":"'Function Summary'!$H48","v":-162155.840417},{"$f":"Distribution!$I$52","v":-59724.156692356963},{"$f":"Distribution!$J$52","v":-92795.485534167252},{"$f":"Distribution!$K$52","v":0},{"$f":"Distribution!$L$52","v":0},{"$f":"Distribution!$M$52","v":0},{"$f":"Distribution!$N$52","v":-9636.1981904757904},{"$f":"Distribution!$O$52","v":0},{"$f":"Distribution!$P$52","v":0},{"$f":"Distribution!$Q$52","v":0},0]
[49,null,"Customer Service Deposits",null,{"$f":"'Function Summary'!$H49","v":0},{"$f":"Distribution!$I$53","v":0},{"$f":"Distribution!$J$53","v":0},{"$f":"Distribution!$K$53","v":0},{"$f":"Distribution!$L$53","v":0},{"$f":"Distribution!$M$53","v":0},{"$f":"Distribution!$N$53","v":0},{"$f":"Distribution!$O$53","v":0},{"$f":"Distribution!$P$53","v":0},{"$f":"Distribution!$Q$53","v":0},0]
[50,null,"Misc Rate Base Deductions",null,{"$f":"'Function Summary'!$H50","v":-202569.45286838623},{"$f":"Distribution!$I$54","v":-119927.54814696456},{"$f":"Distribution!$J$54","v":-30416.329722109633},{"$f":"Distribution!$K$54","v":-28462.211974921731},{"$f":"Distribution!$L$54","v":-9932.2693710008352},{"$f":"Distribution!$M$54","v":-1376.9532757576067},{"$f":"Distribution!$N$54","v":-9735.5835186291661},{"$f":"Distribution!$O$54","v":-2718.556859002656},{"$f":"Distribution!$P$54","v":0},{"$f":"Distribution!$Q$54","v":0},0]
[51]
[52,null,"Total Rate Base Deductions",null,{"$f":"SUM(E44:E50)","v":-265765688.1498059},-156476524.93606907,-39749531.322248183,-37820471.076696403,-13285646.890611768,{"$f":"SUM(J44:J50)","v":-1612793.8147901937},-12905231.662043467,-3915488.4473467409,0,0,{"$f":"ROUND(SUM(F52:N52)-E52,0)","v":0}]
[53]
[54,null,"Total Rate Base",null,{"$f":"E41+E52","v":195603635.74847066},{"$f":"F41+F52","v":116588538.57808131},29518748.018784739,27016045.186495192,9345484.7413984239,{"$f":"J41+J52","v":1562286.6381390903},9274675.2432960756,2297857.3422758286,0,0,{"$f":"ROUND(SUM(F54:N54)-E54,0)","v":0}]
[55,null,null,null,null,null,null,null,null,null,null,null,{"$f":"+M56-M59","v":0},0]
[56]
[57,null,"Return On Rate Base",{"$f":"ActualROR","v":4.602925444100011E-2},{"$f":"$D$57*E54","v":9003489.5194510613},{"$f":"$D$57*F54","v":5366483.5071148621},1358725.9633364107,1243528.4178787435,430165.69503631216,{"$f":"$D$57*J54","v":71910.889176678858},426906.38663131965,105768.66027673439,0,0,{"$f":"ROUND(SUM(F57:N57)-E57,0)","v":0}]
[58,null,"Total Operating Expenses",null,{"$f":"E25","v":35566473.642269231},20683892.708132401,5303913.4708275385,5020432.7701941831,1775889.1930769139,{"$f":"J25","v":452513.48938244261},1734433.8180345921,595398.19262115809,0,0,{"$f":"ROUND(SUM(F58:N58)-E58,0)","v":0}]
[59,null,"Revenue Credits",null,{"$f":"'Function Summary'!$H$59","v":-1743839.5782287752},{"$f":"Distribution!$I$99","v":-592256.41680821485},{"$f":"Distribution!$J$99","v":-303233.7717528505},{"$f":"Distribution!$K$99","v":-391634.34794021328},{"$f":"Distribution!$L$99","v":-111636.9460650486},{"$f":"Distribution!$M$99","v":-74309.7332069197},{"$f":"Distribution!$N$99","v":-263439.63387611113},{"$f":"Distribution!$O$99","v":-7328.7285794173831},{"$f":"Distribution!$P$99","v":0},{"$f":"Distribution!$Q$99","v":0},{"$f":"ROUND(SUM(F59:N59)-E59,0)","v":0}]
[60]
[61,null,"Total Revenue Requirements",null,{"$f":"E57+E58+E59","v":42826123.583491519},{"$f":"F57+F58+F59","v":25458119.798439048},6359405.6624110993,5872326.8401327133,2094417.9420481776,{"$f":"J57+J58+J59","v":450114.64535220183},1897900.5707898007,693838.12431847514,0,0,{"$f":"ROUND(SUM(F61:N61)-E61,0)","v":0}]
[62,null,null,null,null,null,null,null,null,null,null,null,null,null,{"$f":"ROUND(SUM(F62:N62)-E62,0)","v":0}]
[63]
[64,null,"Return On Rate Base @ Target ROR",{"$f":"TargetROR","v":7.7999997127089077E-2},{"$f":"$D64*E54","v":15257083.026428889},{"$f":"$D64*F54","v":9093905.6741418559},2302462.2606604761,2107251.4469319335,728947.78298033192,{"$f":"$D64*J54","v":121858.3532865387},723424.64233177807,179232.86609597516,0,0,{"$f":"ROUND(SUM(F64:N64)-E64,0)","v":0}]
[65,null,"Total Operating Expenses Adjusted for Taxes",null,{"$f":"E58+((E64-E57)*(1/Net_to_Gross_Factor))-(E64-E57)","v":39418717.96431458},{"$f":"F58+((F64-F57)*(1/Net_to_Gross_Factor))-(F64-F57)","v":22980003.074559931},5885259.666229941,5552490.3992641494,1959940.4270637289,{"$f":"J58+((J64-J57)*(1/Net_to_Gross_Factor))-(J64-J57)","v":483281.37264877226},1917090.5202379464,640652.5043101036,0,0,{"$f":"ROUND(SUM(F65:N65)-E65,0)","v":0}]
[66,null,"Revenue Credits",null,{"$f":"E59","v":-1743839.5782287752},{"$f":"F59","v":-592256.41680821485},-303233.7717528505,-391634.34794021328,-111636.9460650486,{"$f":"J59","v":-74309.7332069197},-263439.63387611113,-7328.7285794173831,0,0,{"$f":"ROUND(SUM(F66:N66)-E66,0)","v":0}]
[67]
[68,null,"Total Target Revenue Requirements",null,{"$f":"SUM(E64:E66)","v":52931961.412514701},{"$f":"SUM(F64:F66)","v":31481652.331893574},7884488.1551375668,7268107.4982558703,2577251.2639790121,{"$f":"SUM(J64:J66)","v":530829.9927283912},2377075.5286936136,812556.64182666142,0,0,{"$f":"ROUND(SUM(F68:N68)-E68,0)","v":0}]
[]
[null,null,{"$f":"Inputs!$C$3","v":"PacifiCorp"}]
[null,null,"Cost Of Service By Rate Schedule - Distribution Substations"]
[null,null,{"$f":"Inputs!$C$4","v":"State of Washington"}]
[null,null,{"$f":"+Method&\" - \"&IF(PeakMethod=1,\"(Coincident Peaks)\",IF(PeakMethod=2,\"(200 Top Hours)\",\"(100 Summer, 100 Winter Hours)\"))&\" - \"&TEXT(Demand,\"0%\")&\"D\"&\" / \"&TEXT(Engy,\"0%\")&\"E\"","v":"WCA Method - (100 Summer, 100 Winter Hours) - 38%D / 62%E"}]
[null,null,{"$f":"Inputs!$C$5","v":"12 Months Ending June 2012"}]
[]
[]
[null,null,"A","B","C","D","E","F","G","H","I","J","L","M"]
[null,null,null,null,{"$f":"'Hot Sheet'!$H$10","v":"Washington"},null,{"$f":"'Hot Sheet'!$J$10","v":"Small General"},{"$f":"'Hot Sheet'!$K$10","v":"Large General"},{"$f":"'Hot Sheet'!$L$10","v":"Large General"},{"$f":"'Hot Sheet'!$M$10","v":"Large General"},{"$f":"'Hot Sheet'!$N$10","v":"Agricultural"},{"$f":"'Hot Sheet'!$O$10","v":"Street & Area"}]
[null,null,null,null,{"$f":"'Hot Sheet'!$H$11","v":"Jurisdiction"},{"$f":"'Hot Sheet'!$I$11","v":"Residential"},{"$f":"'Hot Sheet'!$J$11","v":"Service"},{"$f":"'Hot Sheet'!$K$11","v":"Service <1,000 kW"},{"$f":"'Hot Sheet'!$L$11","v":"Service >1,000 kW"},{"$f":"'Hot Sheet'!$M$11","v":"Dedicated Facilities"},{"$f":"'Hot Sheet'!$N$11","v":"Pumping"},{"$f":"'Hot Sheet'!$O$11","v":"Lighting"}]
[null,null,"DESCRIPTION ",null,{"$f":"'Hot Sheet'!$H$12","v":"Normalized"},{"$f":"'Hot Sheet'!$I$12","v":"Schedule 16"},{"$f":"'Hot Sheet'!$J$12","v":"Schedule 24"},{"$f":"'Hot Sheet'!$K$12","v":"Schedule 36"},{"$f":"'Hot Sheet'!$L$12","v":"Schedule 48T"},{"$f":"'Hot Sheet'!$M$12","v":"Schedule 48T"},{"$f":"'Hot Sheet'!$N$12","v":"Schedule 40"},{"$f":"'Hot Sheet'!$O$12","v":"Sch. 15,51-54,57"}]
[13]
[{"$f":"A81+1","v":14},null,"Operating Expenses"]
[15,null,"Operation & Maintenance Expenses",null,{"$f":"'Function Summary'!$L15","v":2499193.0485723997},1235075.7473370594,334388.37239259918,454937.11528817995,172397.59850321995,129664.24315030749,156656.07452666698,16073.897374366461,0,0,{"$f":"ROUND(SUM(F83:N83)-E83,0)","v":0}]
[16,null,"Depreciation Expense",null,{"$f":"'Function Summary'!$L16","v":1177339.8192863371},579892.09309060813,156928.88847943229,219328.85824279726,83236.80025508556,55923.817615902932,76413.289808187983,5616.0717943227846,0,0,0]
[17,null,"Amortization Expense",null,{"$f":"'Function Summary'!$L17","v":51974.972636044913},28700.909476046443,7616.6050070176625,8207.378226238392,2985.9563749336053,1558.3957390448072,2344.1949085812271,561.5329041827739,0,0,0]
[18,null,"Taxes Other Than Income",null,{"$f":"'Function Summary'!$L18","v":644906.74836399767},384393.34229751804,97323.54783553406,89072.116620990098,30812.137787718682,5150.8715160611719,30578.678307276328,7576.053998899295,0,0,0]
[19,null,"Income Taxes - Federal",null,{"$f":"'Function Summary'!$L19","v":269774.28668410389},160797.57265294046,40711.918058699586,37260.219071716529,12889.185163561811,2154.6877786159712,12791.525517472284,3169.1784410972491,0,0,0]
[20,null,"Income Taxes - State",null,{"$f":"'Function Summary'!$L20","v":0},0,0,0,0,0,0,0,0,0,0]
[21,null,"Income Taxes Deferred",null,{"$f":"'Function Summary'!$L21","v":106179.38553305669},63287.675298308139,16023.641454037774,14665.101016445609,5073.002981530728,848.0549690672633,5034.5655109303334,1247.3443027368558,0,0,0]
[22,null,"Investment Tax Credit Adj",null,{"$f":"'Function Summary'!$L22","v":0},0,0,0,0,0,0,0,0,0,0]
[23,null,"Misc Revenues & Expense",null,{"$f":"'Function Summary'!$L23","v":431.64990981882909},183.13827501258194,58.251517341819806,92.294500261207631,36.471198667032205,45.092096939872732,15.366773540224861,1.0355480560899126,0,0,0]
[24]
[25,null,"Total Operating Expenses",null,{"$f":"SUM(E83:E91)","v":4749799.9109857585},2452330.478427493,653051.22474466229,823563.08296662907,307431.15226471738,{"$f":"SUM(J83:J91)","v":195345.16286593952},283833.69535265537,34245.114363661509,0,0,{"$f":"ROUND(SUM(F93:N93)-E93,0)","v":0}]
[26]
[27]
[28,null,"Rate Base :"]
[29,null,"Electric Plant In Service",null,{"$f":"'Function Summary'!$L29","v":54262544.629029073},26729019.364537477,7233355.0560824238,10106055.365673248,3837881.7797656339,2581888.9656981858,3521441.5587631008,252902.53850899905,0,0,{"$f":"ROUND(SUM(F97:N97)-E97,0)","v":0}]
[30,null,"Plant Held For Future Use ",null,{"$f":"'Function Summary'!$L30","v":0},0,0,0,0,0,0,0,0,0,0]
[31,null,"Electric Plant Acquisition Adj",null,{"$f":"'Function Summary'!$L31","v":0},0,0,0,0,0,0,0,0,0,0]
[32,null,"Nuclear Fuel",null,{"$f":"'Function Summary'!$L32","v":0},0,0,0,0,0,0,0,0,0,0]
[33,null,"Prepayments",null,{"$f":"'Function Summary'!$L33","v":-7.5260761871146457E-10},-6.0725563319145564E-10,-1.0314010094735397E-10,-6.2638765111183072E-12,-1.2846667654557909E-12,-2.2183231113264405E-14,-1.837343584067237E-11,-1.6267722224295137E-11,0,0,0]
[34,null,"Fuel Stock",null,{"$f":"'Function Summary'!$L34","v":0},0,0,0,0,0,0,0,0,0,0]
[35,null,"Materials & Supplies",null,{"$f":"'Function Summary'!$L35","v":3.6285903421443075E-6},2.1485589904931631E-6,5.4487111164432948E-7,5.0969940944677911E-7,1.7784768116904419E-7,2.4479809715021268E-8,1.7441540616479972E-7,4.8717933511170019E-8,0,0,0]
[36,null,"Misc Deferred Debits",null,{"$f":"'Function Summary'!$L36","v":0},0,0,0,0,0,0,0,0,0,0]
[37,null,"Cash Working Capital",null,{"$f":"'Function Summary'!$L37","v":319510.06717873795},179735.21454036096,47091.408747003101,46230.496665991646,16786.230353712974,6747.8116644070114,16093.509445999147,6825.3957612632194,0,0,0]
[38,null,"Weatherization Loans",null,{"$f":"'Function Summary'!$L38","v":0},0,0,0,0,0,0,0,0,0,0]
[39,null,"Miscellaneous Rate Base",null,{"$f":"'Function Summary'!$L39","v":0},0,0,0,0,0,0,0,0,0,0]
[40]
[41,null,"Total Rate Base Additions",null,{"$f":"SUM(E97:E107)","v":54582054.696211442},26908754.579079989,7280446.464829972,10152285.86233975,3854668.0101195248,{"$f":"SUM(J97:J107)","v":2588636.7773626177},3537535.0682092747,259727.93427031094,0,0,{"$f":"ROUND(SUM(F109:N109)-E109,0)","v":0}]
[42]
[43,null,"Rate Base Deductions :"]
[44,null,"Accum Provision For Depreciation",null,{"$f":"'Function Summary'!$L44","v":-17535884.914982595},-8611348.9076765273,-2333024.7179967361,-3278934.2556326468,-1245505.6567515593,-843091.38743443822,-1142601.6653208726,-81378.324169811764,0,0,{"$f":"ROUND(SUM(F112:N112)-E112,0)","v":0}]
[45,null,"Accum Provision For Amortization",null,{"$f":"'Function Summary'!$L45","v":-842952.98956803896},-478203.33709314314,-124613.09429573044,-127471.27500189401,-45734.839874507743,-18120.049226471103,-38880.097987655099,-9930.296088637293,0,0,0]
[{"$f":"A113+1","v":46},null,"Accum Deferred Income Taxes",null,{"$f":"'Function Summary'!$L46","v":-7049846.2113721129},-4203932.3075881926,-1066731.5524304789,-972252.36410540203,-336084.60303035827,-54963.00076667752,-334060.75208438135,-81821.631366621426,0,0,0]
[47,null,"Unamortized ITC",null,{"$f":"'Function Summary'!$L47","v":-18083.478098774951},-10783.538346341646,-2736.270062860694,-2493.9018112002514,-862.07658194421253,-140.95515947922095,-856.88550682600248,-209.85063012292133,0,0,0]
[48,null,"Customer Advance For Construction",null,{"$f":"'Function Summary'!$L48","v":-19049.999608087252},-7016.3686898783044,-10901.574426873531,0,0,0,-1132.0564913354174,0,0,0,0]
[49,null,"Customer Service Deposits",null,{"$f":"'Function Summary'!$L49","v":0},0,0,0,0,0,0,0,0,0,0]
[50,null,"Misc Rate Base Deductions",null,{"$f":"'Function Summary'!$L50","v":-23797.77372082026},-14089.03767710994,-3573.2975623670172,-3343.7286352019173,-1166.8388085092165,-161.76388896065245,-1143.7322376884483,-319.37491098306521,0,0,0]
[51]
[52,null,"Total Rate Base Deductions",null,{"$f":"SUM(E112:E118)","v":-25489615.367350433},-13325373.497071192,-3541580.5067750462,-4384495.525186345,-1629354.0150468787,{"$f":"SUM(J112:J118)","v":-916477.15647602675},-1518675.1896287589,-173659.47716617645,0,0,{"$f":"ROUND(SUM(F120:N120)-E120,0)","v":0}]
[53]
[54,null,"Total Rate Base",null,{"$f":"E109+E120","v":29092439.328861009},13583381.082008798,3738865.9580549258,5767790.337153405,2225313.9950726461,{"$f":"J109+J120","v":1672159.6208865908},2018859.8785805157,86068.45710413449,0,0,{"$f":"ROUND(SUM(F122:N122)-E122,0)","v":0}]
[55]
[56]
[57,null,"Return On Rate Base",{"$f":"ActualROR","v":4.602925444100011E-2},{"$f":"$D$125*E122","v":1339103.2921775018},625232.90399285033,172097.21250410384,265487.08899117587,102429.54409031729,{"$f":"$D$125*J122","v":76968.260655755163},92926.615031909154,3961.66691139051,0,0,{"$f":"ROUND(SUM(F125:N125)-E125,0)","v":0}]
[58,null,"Total Operating Expenses",null,{"$f":"E93","v":4749799.9109857585},2452330.478427493,653051.22474466229,823563.08296662907,307431.15226471738,{"$f":"J93","v":195345.16286593952},283833.69535265537,34245.114363661509,0,0,{"$f":"ROUND(SUM(F126:N126)-E126,0)","v":0}]
[59,null,"Revenue Credits",null,{"$f":"'Function Summary'!$L59","v":-223133.93866081559},-70310.727007900539,-40400.384059397809,-51779.481529037832,-14135.598049062055,-8744.4007946081583,-36845.073953732601,-918.27326707657699,0,0,{"$f":"ROUND(SUM(F127:N127)-E127,0)","v":0}]
[60]
[61,null,"Total Revenue Requirements",null,{"$f":"E125+E126+E127","v":5865769.2645024452},3007252.655412443,784748.05318936834,1037270.690428767,395725.09830597258,{"$f":"J125+J126+J127","v":263569.0227270865},339915.23643083189,37288.508007975441,0,0,{"$f":"ROUND(SUM(F129:N129)-E129,0)","v":0}]
[62]
[63]
[64,null,"Return On Rate Base @ Target ROR",{"$f":"TargetROR","v":7.7999997127089077E-2},{"$f":"$D132*E122","v":2269210.184071172},1059503.6853728422,291631.53398685536,449887.62972761772,173574.48522253751,{"$f":"$D132*J122","v":130428.44562518844},157471.06472927562,6713.3394068554799,0,0,{"$f":"ROUND(SUM(F132:N132)-E132,0)","v":0}]
[65,null,"Total Operating Expenses Adjusted for Taxes",null,{"$f":"E126+((E132-E125)*(1/Net_to_Gross_Factor))-(E132-E125)","v":5322750.3256864715},{"$f":"F126+((F132-F125)*(1/Net_to_Gross_Factor))-(F132-F125)","v":2719843.4131800653},726684.9540089115,937154.72195650369,351256.78551271115,{"$f":"J126+((J132-J125)*(1/Net_to_Gross_Factor))-(J132-J125)","v":228276.89943855192},323593.39345084241,35940.158138885396,0,0,{"$f":"ROUND(SUM(F133:N133)-E133,0)","v":0}]
[66,null,"Revenue Credits",null,{"$f":"E127","v":-223133.93866081559},-70310.727007900539,-40400.384059397809,-51779.481529037832,-14135.598049062055,{"$f":"J127","v":-8744.4007946081583},-36845.073953732601,-918.27326707657699,0,0,{"$f":"ROUND(SUM(F134:N134)-E134,0)","v":0}]
[67]
[68,null,"Total Target Revenue Requirements",null,{"$f":"SUM(E132:E134)","v":7368826.5710968282},3709036.3715450075,977916.10393636895,1335262.8701550835,510695.67268618662,{"$f":"SUM(J132:J134)","v":349960.94426913222},444219.38422638539,41735.224278664296,0,0,{"$f":"ROUND(SUM(F136:N136)-E136,0)","v":0}]
[]
[null,null,{"$f":"Inputs!$C$3","v":"PacifiCorp"}]
[null,null,"Cost Of Service By Rate Schedule - Distribution Poles & Wires"]
[null,null,{"$f":"Inputs!$C$4","v":"State of Washington"}]
[null,null,{"$f":"+Method&\" - \"&IF(PeakMethod=1,\"(Coincident Peaks)\",IF(PeakMethod=2,\"(200 Top Hours)\",\"(100 Summer, 100 Winter Hours)\"))&\" - \"&TEXT(Demand,\"0%\")&\"D\"&\" / \"&TEXT(Engy,\"0%\")&\"E\"","v":"WCA Method - (100 Summer, 100 Winter Hours) - 38%D / 62%E"}]
[null,null,{"$f":"Inputs!$C$5","v":"12 Months Ending June 2012"}]
[]
[]
[null,null,"A","B","C","D","E","F","G","H","I","J","L","M"]
[null,null,null,null,{"$f":"'Hot Sheet'!$H$10","v":"Washington"},null,{"$f":"'Hot Sheet'!$J$10","v":"Small General"},{"$f":"'Hot Sheet'!$K$10","v":"Large General"},{"$f":"'Hot Sheet'!$L$10","v":"Large General"},{"$f":"'Hot Sheet'!$M$10","v":"Large General"},{"$f":"'Hot Sheet'!$N$10","v":"Agricultural"},{"$f":"'Hot Sheet'!$O$10","v":"Street & Area"},null,null,"Chk Total"]
[null,null,null,null,{"$f":"'Hot Sheet'!$H$11","v":"Jurisdiction"},{"$f":"'Hot Sheet'!$I$11","v":"Residential"},{"$f":"'Hot Sheet'!$J$11","v":"Service"},{"$f":"'Hot Sheet'!$K$11","v":"Service <1,000 kW"},{"$f":"'Hot Sheet'!$L$11","v":"Service >1,000 kW"},{"$f":"'Hot Sheet'!$M$11","v":"Dedicated Facilities"},{"$f":"'Hot Sheet'!$N$11","v":"Pumping"},{"$f":"'Hot Sheet'!$O$11","v":"Lighting"}]
[null,null,"DESCRIPTION ",null,{"$f":"'Hot Sheet'!$H$12","v":"Normalized"},{"$f":"'Hot Sheet'!$I$12","v":"Schedule 16"},{"$f":"'Hot Sheet'!$J$12","v":"Schedule 24"},{"$f":"'Hot Sheet'!$K$12","v":"Schedule 36"},{"$f":"'Hot Sheet'!$L$12","v":"Schedule 48T"},{"$f":"'Hot Sheet'!$M$12","v":"Schedule 48T"},{"$f":"'Hot Sheet'!$N$12","v":"Schedule 40"},{"$f":"'Hot Sheet'!$O$12","v":"Sch. 15,51-54,57"},null,null,{"$f":"ROUND(SUM(O151:O204),0)","v":0}]
[13]
[{"$f":"A149+1","v":14},null,"Operating Expenses"]
[15,null,"Operation & Maintenance Expenses",null,{"$f":"'Function Summary'!$M15","v":9273227.5783924907},5269978.311802214,1387586.9307285571,1314270.8565916095,487413.68156687525,127723.25125402419,431647.67009109561,254606.87635811503,0,0,{"$f":"ROUND(SUM(F151:N151)-E151,0)","v":0}]
[16,null,"Depreciation Expense",null,{"$f":"'Function Summary'!$M16","v":6315400.8115853146},3637464.4439783921,931941.26866733795,909369.89700046252,345143.82892944652,5939.8188174260176,316827.39671161387,168714.15748063489,0,0,0]
[17,null,"Amortization Expense",null,{"$f":"'Function Summary'!$M17","v":212916.02737197583},117573.58046908473,31201.503298744305,33621.61206522779,12232.00200043949,6383.9846949861494,9603.0193380917117,2300.3255054016036,0,0,0]
[18,null,"Taxes Other Than Income",null,{"$f":"'Function Summary'!$M18","v":2641867.343510923},1574671.4089362454,398686.94727349869,364884.87167383928,126222.24966885953,21100.599867226134,125265.88042791377,31035.385663340239,0,0,0]
[19,null,"Income Taxes - Federal",null,{"$f":"'Function Summary'!$M19","v":755073.58523569629},450057.71740738431,113948.93971640896,104287.94955574334,36075.651878614808,6030.7742671124088,35802.311450169836,8870.2409602626412,0,0,0]
[20,null,"Income Taxes - State",null,{"$f":"'Function Summary'!$M20","v":0},0,0,0,0,0,0,0,0,0,0]
[21,null,"Income Taxes Deferred",null,{"$f":"'Function Summary'!$M21","v":426922.37495807884},254464.88043121784,64427.299430027022,58964.92735863413,20397.353687550261,3409.8298805513296,20242.805644597101,5015.2785255011622,0,0,0]
[22,null,"Investment Tax Credit Adj",null,{"$f":"'Function Summary'!$M22","v":0},0,0,0,0,0,0,0,0,0,0]
[23,null,"Misc Revenues & Expense",null,{"$f":"'Function Summary'!$M23","v":1768.2584396467771},750.22788849711549,238.62795941538806,378.0854004773455,149.40465265956331,184.72025398723355,62.950151000953824,4.2421336091772917,0,0,0]
[24]
[25,null,"Total Operating Expenses",null,{"$f":"SUM(E151:E159)","v":19627175.979494125},11304960.570913035,2928031.5170739894,2785778.1996459942,1027634.1723844454,{"$f":"SUM(J151:J159)","v":170772.97903531344},939452.03381448297,470546.50662686472,0,0,{"$f":"ROUND(SUM(F161:N161)-E161,0)","v":0}]
[26]
[27]
[28,null,"Rate Base :"]
[29,null,"Electric Plant In Service",null,{"$f":"'Function Summary'!$M29","v":222287090.33499512},127292910.22064172,32714217.429774903,32744188.628051631,12411915.724183446,292121.94985629356,11404884.777755236,5426851.6047318829,0,0,{"$f":"ROUND(SUM(F165:N165)-E165,0)","v":0}]
[30,null,"Plant Held For Future Use ",null,{"$f":"'Function Summary'!$M30","v":0},0,0,0,0,0,0,0,0,0,0]
[31,null,"Electric Plant Acquisition Adj",null,{"$f":"'Function Summary'!$M31","v":0},0,0,0,0,0,0,0,0,0,0]
[32,null,"Nuclear Fuel",null,{"$f":"'Function Summary'!$M32","v":0},0,0,0,0,0,0,0,0,0,0]
[33,null,"Prepayments",null,{"$f":"'Function Summary'!$M33","v":-3.0830651026605626E-9},-2.4876291503559567E-9,-4.2251451886721477E-10,-2.5660036649466713E-11,-5.2626510477075467E-12,-9.0873841838930189E-14,-7.5266975045155655E-11,-6.6640896853222341E-11,0,0,0]
[34,null,"Fuel Stock",null,{"$f":"'Function Summary'!$M34","v":0},0,0,0,0,0,0,0,0,0,0]
[35,null,"Materials & Supplies",null,{"$f":"'Function Summary'!$M35","v":1.4864558871819256E-5},8.8015947220123098E-6,2.2320702953214864E-6,2.0879890437496635E-6,7.28554914631546E-7,1.0028180047043601E-7,7.1449456362628046E-7,1.9957353200753325E-7,0,0,0]
[36,null,"Misc Deferred Debits",null,{"$f":"'Function Summary'!$M36","v":0},0,0,0,0,0,0,0,0,0,0]
[37,null,"Cash Working Capital",null,{"$f":"'Function Summary'!$M37","v":1308876.3833590106},736287.21513253939,192910.45603761173,189383.72055495795,68764.970911881072,27642.482144251295,65927.232356812543,27960.306220957213,0,0,0]
[38,null,"Weatherization Loans",null,{"$f":"'Function Summary'!$M38","v":0},0,0,0,0,0,0,0,0,0,0]
[39,null,"Miscellaneous Rate Base",null,{"$f":"'Function Summary'!$M39","v":0},0,0,0,0,0,0,0,0,0,0]
[40]
[41,null,"Total Rate Base Additions",null,{"$f":"SUM(E165:E175)","v":223595966.71836901},128029197.43578306,32907127.885814745,32933572.348608676,12480680.695096055,{"$f":"SUM(J165:J175)","v":319764.43200064515},11470812.010112764,5454811.9109530393,0,0,{"$f":"ROUND(SUM(F177:N177)-E177,0)","v":0}]
[42]
[43,null,"Rate Base Deductions :"]
[44,null,"Accum Provision For Depreciation",null,{"$f":"'Function Summary'!$M44","v":-109584944.25340565},-62389406.357556477,-16065163.889691975,-16296873.240313666,-6197746.1270094784,-84740.039373559208,-5680458.7150311433,-2870555.8844293398,0,0,{"$f":"ROUND(SUM(F180:N180)-E180,0)","v":0}]
[45,null,"Accum Provision For Amortization",null,{"$f":"'Function Summary'!$M45","v":-3453165.873832291},-1958965.0488682149,-510478.86415963556,-522187.43177599518,-187353.25724482423,-74228.974089142532,-159272.73430873736,-40679.563385740606,0,0,0]
[{"$f":"A181+1","v":46},null,"Accum Deferred Income Taxes",null,{"$f":"'Function Summary'!$M46","v":-28881170.911233705},-17222242.688779596,-4370083.7421854995,-3983041.8434264972,-1376846.7083171222,-225184.45654687463,-1368555.418544248,-335216.05343386048,0,0,0]
[47,null,"Unamortized ITC",null,{"$f":"'Function Summary'!$M47","v":-74079.160076153959},-44174.879355764184,-11209.159371391999,-10216.29525454117,-3531.5058730917058,-577.42430773471574,-3510.2405787413195,-859.65533488885558,0,0,0]
[48,null,"Customer Advance For Construction",null,{"$f":"'Function Summary'!$M48","v":-78038.525703402527},-28742.628851140129,-44658.41541319307,0,0,0,-4637.4814390693309,0,0,0,0]
[49,null,"Customer Service Deposits",null,{"$f":"'Function Summary'!$M49","v":0},0,0,0,0,0,0,0,0,0,0]
[50,null,"Misc Rate Base Deductions",null,{"$f":"'Function Summary'!$M50","v":-97487.832777045347},-57715.892468291073,-14638.051412258428,-13697.619864130171,-4779.9675707561319,-662.66748904178826,-4685.3112579996468,-1308.3227145680935,0,0,0]
[51]
[52,null,"Total Rate Base Deductions",null,{"$f":"SUM(E180:E186)","v":-142168886.55702823},-81701247.495879486,-21016232.122233953,-20826016.430634826,-7770257.5660152733,{"$f":"SUM(J180:J186)","v":-385393.56180635293},-7221119.9011599384,-3248619.4792983979,0,0,{"$f":"ROUND(SUM(F188:N188)-E188,0)","v":0}]
[53]
[54,null,"Total Rate Base",null,{"$f":"E177+E188","v":81427080.161340773},46327949.939903572,11890895.763580792,12107555.91797385,4710423.1290807817,{"$f":"J177+J188","v":-65629.12980570778},4249692.1089528259,2206192.4316546414,0,0,{"$f":"ROUND(SUM(F190:N190)-E190,0)","v":0}]
[55]
[56]
[57,null,"Return On Rate Base",{"$f":"ActualROR","v":4.602925444100011E-2},{"$f":"$D$193*E190","v":3748027.7911340669},2132440.9955137372,547329.06663327059,557301.772007055,216817.26473323122,{"$f":"$D$193*J190","v":-3020.8599145683474},195610.15937889999,101549.39278244023,0,0,{"$f":"ROUND(SUM(F193:N193)-E193,0)","v":0}]
[58,null,"Total Operating Expenses",null,{"$f":"E161","v":19627175.979494125},11304960.570913035,2928031.5170739894,2785778.1996459942,1027634.1723844454,{"$f":"J161","v":170772.97903531344},939452.03381448297,470546.50662686472,0,0,{"$f":"ROUND(SUM(F194:N194)-E194,0)","v":0}]
[59,null,"Revenue Credits",null,{"$f":"'Function Summary'!$M59","v":-801255.4299549649},-283503.94756953104,-136003.02053450901,-176480.26126469165,-51604.380533885713,-35731.834301974734,-114524.1048441499,-3407.8809062228629,0,0,{"$f":"ROUND(SUM(F195:N195)-E195,0)","v":0}]
[60]
[61,null,"Total Revenue Requirements",null,{"$f":"E193+E194+E195","v":22573948.340673227},13153897.618857242,3339357.5631727511,3166599.7103883578,1192847.056583791,{"$f":"J193+J194+J195","v":132020.28481877036},1020538.0883492331,568688.0185030821,0,0,{"$f":"ROUND(SUM(F197:N197)-E197,0)","v":0}]
[62]
[63]
[64,null,"Return On Rate Base @ Target ROR",{"$f":"TargetROR","v":7.7999997127089077E-2},{"$f":"$D200*E190","v":6351312.0186518319},3613579.9622164052,927489.83539781743,944389.32681803068,367412.99053567491,{"$f":"$D200*J190","v":-5119.0719362985628},331475.97228933353,172083.00333086771,0,0,{"$f":"ROUND(SUM(F200:N200)-E200,0)","v":0}]
[65,null,"Total Operating Expenses Adjusted for Taxes",null,{"$f":"E194+((E200-E193)*(1/Net_to_Gross_Factor))-(E200-E193)","v":21230811.852682173},{"$f":"F194+((F200-F193)*(1/Net_to_Gross_Factor))-(F200-F193)","v":12217349.450726533},3162212.418231627,3024226.0350371413,1120401.8793035862,{"$f":"J194+((J200-J193)*(1/Net_to_Gross_Factor))-(J200-J193)","v":169480.470122136},1023146.0420291662,513995.55723198596,0,0,{"$f":"ROUND(SUM(F201:N201)-E201,0)","v":0}]
[66,null,"Revenue Credits",null,{"$f":"E195","v":-801255.4299549649},-283503.94756953104,-136003.02053450901,-176480.26126469165,-51604.380533885713,{"$f":"J195","v":-35731.834301974734},-114524.1048441499,-3407.8809062228629,0,0,{"$f":"ROUND(SUM(F202:N202)-E202,0)","v":0}]
[67]
[68,null,"Total Target Revenue Requirements",null,{"$f":"SUM(E200:E202)","v":26780868.44137904},15547425.465373408,3953699.2330949353,3792135.1005904805,1436210.4893053754,{"$f":"SUM(J200:J202)","v":128629.56388386269},1240097.9094743498,682670.67965663085,0,0,{"$f":"ROUND(SUM(F204:N204)-E204,0)","v":0}]
[]
[null,null,{"$f":"Inputs!$C$3","v":"PacifiCorp"}]
[null,null,"Cost Of Service By Rate Schedule - Distribution Transformers"]
[null,null,{"$f":"Inputs!$C$4","v":"State of Washington"}]
[null,null,{"$f":"+Method&\" - \"&IF(PeakMethod=1,\"(Coincident Peaks)\",IF(PeakMethod=2,\"(200 Top Hours)\",\"(100 Summer, 100 Winter Hours)\"))&\" - \"&TEXT(Demand,\"0%\")&\"D\"&\" / \"&TEXT(Engy,\"0%\")&\"E\"","v":"WCA Method - (100 Summer, 100 Winter Hours) - 38%D / 62%E"}]
[null,null,{"$f":"Inputs!$C$5","v":"12 Months Ending June 2012"}]
[]
[]
[null,null,"A","B","C","D","E","F","G","H","I","J","L","M"]
[null,null,null,null,{"$f":"'Hot Sheet'!$H$10","v":"Washington"},null,{"$f":"'Hot Sheet'!$J$10","v":"Small General"},{"$f":"'Hot Sheet'!$K$10","v":"Large General"},{"$f":"'Hot Sheet'!$L$10","v":"Large General"},{"$f":"'Hot Sheet'!$M$10","v":"Large General"},{"$f":"'Hot Sheet'!$N$10","v":"Agricultural"},{"$f":"'Hot Sheet'!$O$10","v":"Street & Area"}]
[null,null,null,null,{"$f":"'Hot Sheet'!$H$11","v":"Jurisdiction"},{"$f":"'Hot Sheet'!$I$11","v":"Residential"},{"$f":"'Hot Sheet'!$J$11","v":"Service"},{"$f":"'Hot Sheet'!$K$11","v":"Service <1,000 kW"},{"$f":"'Hot Sheet'!$L$11","v":"Service >1,000 kW"},{"$f":"'Hot Sheet'!$M$11","v":"Dedicated Facilities"},{"$f":"'Hot Sheet'!$N$11","v":"Pumping"},{"$f":"'Hot Sheet'!$O$11","v":"Lighting"}]
[null,null,"DESCRIPTION ",null,{"$f":"'Hot Sheet'!$H$12","v":"Normalized"},{"$f":"'Hot Sheet'!$I$12","v":"Schedule 16"},{"$f":"'Hot Sheet'!$J$12","v":"Schedule 24"},{"$f":"'Hot Sheet'!$K$12","v":"Schedule 36"},{"$f":"'Hot Sheet'!$L$12","v":"Schedule 48T"},{"$f":"'Hot Sheet'!$M$12","v":"Schedule 48T"},{"$f":"'Hot Sheet'!$N$12","v":"Schedule 40"},{"$f":"'Hot Sheet'!$O$12","v":"Sch. 15,51-54,57"}]
[13]
[{"$f":"A217+1","v":14},null,"Operating Expenses"]
[15,null,"Operation & Maintenance Expenses",null,{"$f":"'Function Summary'!$N15","v":942194.69195301516},530047.79748194339,138104.15190724152,142563.66675461706,51075.983676441363,21801.160954648294,45071.462260443594,13530.468917679895,0,0,{"$f":"ROUND(SUM(F219:N219)-E219,0)","v":0}]
[16,null,"Depreciation Expense",null,{"$f":"'Function Summary'!$N16","v":3125717.8120574378},1883306.6427373874,433859.1034370446,481045.31364421395,143929.35423392095,1920.7277057903173,171733.16754697467,9923.5027521061347,0,0,0]
[17,null,"Amortization Expense",null,{"$f":"'Function Summary'!$N17","v":107975.47758126201},59624.743420134364,15823.126429319565,17050.429056956542,6203.1791315783539,3237.4913472733933,4869.9509006010303,1166.5572953987394,0,0,0]
[18,null,"Taxes Other Than Income",null,{"$f":"'Function Summary'!$N18","v":1339762.4013694965},798558.47167580924,202184.93679700082,185042.9897995831,64010.717547185646,10700.685035487997,63525.716832069265,15738.883682360505,0,0,0]
[19,null,"Income Taxes - Federal",null,{"$f":"'Function Summary'!$N19","v":433291.66421544994},258261.26245375277,65388.495493319366,59844.629853552309,20701.663448156418,3460.7014068558256,20544.809690517264,5090.1018692960006,0,0,0]
[20,null,"Income Taxes - State",null,{"$f":"'Function Summary'!$N20","v":0},0,0,0,0,0,0,0,0,0,0]
[21,null,"Income Taxes Deferred",null,{"$f":"'Function Summary'!$N21","v":231696.17710846383},138101.31176672317,34965.510956940067,32001.012488078937,11069.902047178199,1850.5578396811125,10986.026867913228,2721.8551419491559,0,0,0]
[22,null,"Investment Tax Credit Adj",null,{"$f":"'Function Summary'!$N22","v":0},0,0,0,0,0,0,0,0,0,0]
[23,null,"Misc Revenues & Expense",null,{"$f":"'Function Summary'!$N23","v":896.73169213511289},380.46085846668359,121.01469391547491,191.73733507493273,75.767141266426918,93.676638106525033,31.923724587748826,2.1513007173208658,0,0,0]
[24]
[25,null,"Total Operating Expenses",null,{"$f":"SUM(E219:E227)","v":6181534.9559772611},3668280.6903942167,890446.3397147815,917739.77893207676,297066.56722572737,{"$f":"SUM(J219:J227)","v":43065.000927843459},316763.05782310676,48173.520959507747,0,0,{"$f":"ROUND(SUM(F229:N229)-E229,0)","v":0}]
[26]
[27]
[28,null,"Rate Base :"]
[29,null,"Electric Plant In Service",null,{"$f":"'Function Summary'!$N29","v":110757425.08891532},66711925.855294913,15396848.958449587,17017880.424838666,5106175.8120471099,80797.829370982334,6071056.1866702782,372740.02224378381,0,0,{"$f":"ROUND(SUM(F233:N233)-E233,0)","v":0}]
[30,null,"Plant Held For Future Use ",null,{"$f":"'Function Summary'!$N30","v":0},0,0,0,0,0,0,0,0,0,0]
[31,null,"Electric Plant Acquisition Adj",null,{"$f":"'Function Summary'!$N31","v":0},0,0,0,0,0,0,0,0,0,0]
[32,null,"Nuclear Fuel",null,{"$f":"'Function Summary'!$N32","v":0},0,0,0,0,0,0,0,0,0,0]
[33,null,"Prepayments",null,{"$f":"'Function Summary'!$N33","v":-1.563505720930583E-9},-1.2615440409541811E-9,-2.1426854296882935E-10,-1.3012898775996655E-11,-2.6688327188587357E-12,-4.6084583642264775E-14,-3.8169919272443141E-11,-3.3795401656631651E-11,0,0,0]
[34,null,"Fuel Stock",null,{"$f":"'Function Summary'!$N34","v":0},0,0,0,0,0,0,0,0,0,0]
[35,null,"Materials & Supplies",null,{"$f":"'Function Summary'!$N35","v":7.5382199406502808E-6},4.4635267965321831E-6,1.131943231832099E-6,1.0588757312733264E-6,3.69469907091977E-7,5.0855613981502169E-8,3.6233952271700747E-7,1.0120913722218444E-7,0,0,0]
[36,null,"Misc Deferred Debits",null,{"$f":"'Function Summary'!$N36","v":0},0,0,0,0,0,0,0,0,0,0]
[37,null,"Cash Working Capital",null,{"$f":"'Function Summary'!$N37","v":663766.62354834832},373391.16586099379,97830.111139025408,96041.608165611164,34872.577075187444,14018.250518278692,33433.483083456245,14179.427705795868,0,0,0]
[38,null,"Weatherization Loans",null,{"$f":"'Function Summary'!$N38","v":0},0,0,0,0,0,0,0,0,0,0]
[39,null,"Miscellaneous Rate Base",null,{"$f":"'Function Summary'!$N39","v":0},0,0,0,0,0,0,0,0,0,0]
[40]
[41,null,"Total Rate Base Additions",null,{"$f":"SUM(E233:E243)","v":111421191.7124712},67085317.021160372,15494679.069589745,17113922.033005334,5141048.3891226668,{"$f":"SUM(J233:J243)","v":94816.079889311892},6104489.6697540963,386919.44994968083,0,0,{"$f":"ROUND(SUM(F245:N245)-E245,0)","v":0}]
[42]
[43,null,"Rate Base Deductions :"]
[44,null,"Accum Provision For Depreciation",null,{"$f":"'Function Summary'!$N44","v":-48173498.23866608},-29032734.592280429,-6678780.2160713263,-7423120.7384090489,-2216172.6122817066,-25327.208665110818,-2651506.0398030905,-145856.83115538023,0,0,{"$f":"ROUND(SUM(F248:N248)-E248,0)","v":0}]
[45,null,"Accum Provision For Amortization",null,{"$f":"'Function Summary'!$N45","v":-1751193.8344733235},-993444.17293212272,-258877.64220060612,-264815.37359534157,-95011.905290120747,-37643.520906201244,-80771.512435812634,-20629.707113118398,0,0,0]
[{"$f":"A249+1","v":46},null,"Accum Deferred Income Taxes",null,{"$f":"'Function Summary'!$N46","v":-14643776.575629249},-8732374.1327355485,-2215797.4115942731,-2019531.0286797888,-698099.14471192227,-114144.35153330796,-693895.47062681161,-169935.03574759496,0,0,0]
[47,null,"Unamortized ITC",null,{"$f":"'Function Summary'!$N47","v":-37567.546167237379},-22402.276401673429,-5684.4679630249002,-5180.9597090268435,-1790.922167460549,-292.82748773891393,-1780.1379613971058,-435.95447691563095,0,0,0]
[48,null,"Customer Advance For Construction",null,{"$f":"'Function Summary'!$N48","v":-39575.447591088894},-14576.164676043079,-22647.490617686541,0,0,0,-2351.792297359274,0,0,0,0]
[49,null,"Customer Service Deposits",null,{"$f":"'Function Summary'!$N49","v":0},0,0,0,0,0,0,0,0,0,0]
[50,null,"Misc Rate Base Deductions",null,{"$f":"'Function Summary'!$N50","v":-49438.717377878129},-29269.29048138317,-7423.351880111697,-6946.4336001917345,-2424.0508694709474,-336.05661109700236,-2376.0480924977192,-663.48584312585513,0,0,0]
[51]
[52,null,"Total Rate Base Deductions",null,{"$f":"SUM(E248:E254)","v":-64695050.359904863},-38824800.629507199,-9189210.5803270284,-9719594.533993395,-3013498.6353206811,{"$f":"SUM(J248:J254)","v":-177743.96520345594},-3432681.0012169681,-337521.01433613512,0,0,{"$f":"ROUND(SUM(F256:N256)-E256,0)","v":0}]
[53]
[54,null,"Total Rate Base",null,{"$f":"E245+E256","v":46726141.352566339},28260516.391653173,6305468.4892627168,7394327.4990119394,2127549.7538019856,{"$f":"J245+J256","v":-82927.885314144049},2671808.6685371283,49398.435613545706,0,0,{"$f":"ROUND(SUM(F258:N258)-E258,0)","v":0}]
[55]
[56]
[57,null,"Return On Rate Base",{"$f":"ActualROR","v":4.602925444100011E-2},{"$f":"$D$261*E258","v":2150769.4493634133},1300810.4996254581,290236.01346198219,340355.38187210454,97929.528953638743,{"$f":"$D$261*J258","v":-3817.1087333788128},122981.3610217652,2273.7731618432567,0,0,{"$f":"ROUND(SUM(F261:N261)-E261,0)","v":0}]
[58,null,"Total Operating Expenses",null,{"$f":"E229","v":6181534.9559772611},3668280.6903942167,890446.3397147815,917739.77893207676,297066.56722572737,{"$f":"J229","v":43065.000927843459},316763.05782310676,48173.520959507747,0,0,{"$f":"ROUND(SUM(F262:N262)-E262,0)","v":0}]
[59,null,"Revenue Credits",null,{"$f":"'Function Summary'!$N59","v":-422572.34897673503},-144423.62269741108,-73215.499504385924,-94625.765583141736,-27076.867884287931,-18133.487115111318,-63317.960855530211,-1779.1453368667753,0,0,{"$f":"ROUND(SUM(F263:N263)-E263,0)","v":0}]
[60]
[61,null,"Total Revenue Requirements",null,{"$f":"E261+E262+E263","v":7909732.0563639393},4824667.5673222635,1107466.8536723778,1163469.3952210397,367919.22829507815,{"$f":"J261+J262+J263","v":21114.405079353324},376426.45798934175,48668.148784484234,0,0,{"$f":"ROUND(SUM(F265:N265)-E265,0)","v":0}]
[62]
[63]
[64,null,"Return On Rate Base @ Target ROR",{"$f":"TargetROR","v":7.7999997127089077E-2},{"$f":"$D268*E258","v":3644638.8912601327},2204320.1973590013,491826.5240474426,576757.52367968706,165948.87468429396,{"$f":"$D268*J258","v":-6468.3748162588081},208401.06847002771,3853.0778359392598,0,0,{"$f":"ROUND(SUM(F268:N268)-E268,0)","v":0}]
[65,null,"Total Operating Expenses Adjusted for Taxes",null,{"$f":"E262+((E268-E261)*(1/Net_to_Gross_Factor))-(E268-E261)","v":7101765.8710507248},{"$f":"F262+((F268-F261)*(1/Net_to_Gross_Factor))-(F268-F261)","v":4224847.1028294545},1014627.0845800417,1063364.6596476962,338966.81835138542,{"$f":"J262+((J268-J261)*(1/Net_to_Gross_Factor))-(J268-J261)","v":41431.807996033975},369382.01724878378,49146.380397329784,0,0,{"$f":"ROUND(SUM(F269:N269)-E269,0)","v":0}]
[66,null,"Revenue Credits",null,{"$f":"E263","v":-422572.34897673503},-144423.62269741108,-73215.499504385924,-94625.765583141736,-27076.867884287931,{"$f":"J263","v":-18133.487115111318},-63317.960855530211,-1779.1453368667753,0,0,{"$f":"ROUND(SUM(F270:N270)-E270,0)","v":0}]
[67]
[68,null,"Total Target Revenue Requirements",null,{"$f":"SUM(E268:E270)","v":10323832.413334122},6284743.6774910446,1433238.1091230982,1545496.4177442417,477838.82515139144,{"$f":"SUM(J268:J270)","v":16829.946064663847},514465.12486328126,51220.312896402262,0,0,{"$f":"ROUND(SUM(F272:N272)-E272,0)","v":0}]
[]
[null,null,{"$f":"Inputs!$C$3","v":"PacifiCorp"}]
[null,null,"Cost Of Service By Rate Schedule - Distribution Meters"]
[null,null,{"$f":"Inputs!$C$4","v":"State of Washington"}]
[null,null,{"$f":"+Method&\" - \"&IF(PeakMethod=1,\"(Coincident Peaks)\",IF(PeakMethod=2,\"(200 Top Hours)\",\"(100 Summer, 100 Winter Hours)\"))&\" - \"&TEXT(Demand,\"0%\")&\"D\"&\" / \"&TEXT(Engy,\"0%\")&\"E\"","v":"WCA Method - (100 Summer, 100 Winter Hours) - 38%D / 62%E"}]
[null,null,{"$f":"Inputs!$C$5","v":"12 Months Ending June 2012"}]
[]
[]
[null,null,"A","B","C","D","E","F","G","H","I","J","L","M"]
[null,null,null,null,{"$f":"'Hot Sheet'!$H$10","v":"Washington"},null,{"$f":"'Hot Sheet'!$J$10","v":"Small General"},{"$f":"'Hot Sheet'!$K$10","v":"Large General"},{"$f":"'Hot Sheet'!$L$10","v":"Large General"},{"$f":"'Hot Sheet'!$M$10","v":"Large General"},{"$f":"'Hot Sheet'!$N$10","v":"Agricultural"},{"$f":"'Hot Sheet'!$O$10","v":"Street & Area"}]
[null,null,null,null,{"$f":"'Hot Sheet'!$H$11","v":"Jurisdiction"},{"$f":"'Hot Sheet'!$I$11","v":"Residential"},{"$f":"'Hot Sheet'!$J$11","v":"Service"},{"$f":"'Hot Sheet'!$K$11","v":"Service <1,000 kW"},{"$f":"'Hot Sheet'!$L$11","v":"Service >1,000 kW"},{"$f":"'Hot Sheet'!$M$11","v":"Dedicated Facilities"},{"$f":"'Hot Sheet'!$N$11","v":"Pumping"},{"$f":"'Hot Sheet'!$O$11","v":"Lighting"}]
[null,null,"DESCRIPTION ",null,{"$f":"'Hot Sheet'!$H$12","v":"Normalized"},{"$f":"'Hot Sheet'!$I$12","v":"Schedule 16"},{"$f":"'Hot Sheet'!$J$12","v":"Schedule 24"},{"$f":"'Hot Sheet'!$K$12","v":"Schedule 36"},{"$f":"'Hot Sheet'!$L$12","v":"Schedule 48T"},{"$f":"'Hot Sheet'!$M$12","v":"Schedule 48T"},{"$f":"'Hot Sheet'!$N$12","v":"Schedule 40"},{"$f":"'Hot Sheet'!$O$12","v":"Sch. 15,51-54,57"}]
[13]
[{"$f":"A285+1","v":14},null,"Operating Expenses"]
[15,null,"Operation & Maintenance Expenses",null,{"$f":"'Function Summary'!$O15","v":1209694.9611877},798996.47837595595,192287.44072349116,99980.217036267321,19625.52098312087,13248.939438386957,69400.345533074782,16156.019097402899,0,0,{"$f":"ROUND(SUM(F287:N287)-E287,0)","v":0}]
[16,null,"Depreciation Expense",null,{"$f":"'Function Summary'!$O16","v":477826.39784696285},322099.47942749842,77171.052681317422,38608.54359163723,7072.3990074993008,4528.4377570017368,27907.2497426665,439.23563934222227,0,0,0]
[17,null,"Amortization Expense",null,{"$f":"'Function Summary'!$O17","v":12506.554695404995},6906.198810023212,1832.7568497361822,1974.9125297497692,718.50017089382914,374.99128059056341,564.07536846934261,135.11968594209699,0,0,0]
[18,null,"Taxes Other Than Income",null,{"$f":"'Function Summary'!$O18","v":155181.64056245438},92495.216758603216,23418.622702878522,21433.109857634645,7414.2162464019084,1239.4360800480217,7358.0397134817504,1822.9992034063321,0,0,0]
[19,null,"Income Taxes - Federal",null,{"$f":"'Function Summary'!$O19","v":80022.586929930549},47697.050352352759,12076.29178444034,11052.421475535617,3823.2922525150047,639.14056521279031,3794.3236743202397,940.0668255538003,0,0,0]
[20,null,"Income Taxes - State",null,{"$f":"'Function Summary'!$O20","v":0},0,0,0,0,0,0,0,0,0,0]
[21,null,"Income Taxes Deferred",null,{"$f":"'Function Summary'!$O21","v":21352.151917695708},12726.840061308947,3222.2754434266644,2949.0796468586996,1020.1559351353044,170.5396809670126,1012.4263489498953,250.8348010491909,0,0,0]
[22,null,"Investment Tax Credit Adj",null,{"$f":"'Function Summary'!$O22","v":0},0,0,0,0,0,0,0,0,0,0]
[23,null,"Misc Revenues & Expense",null,{"$f":"'Function Summary'!$O23","v":103.86639824167921},44.067918405762732,14.016857552332134,22.208500689067424,8.775936143925783,10.850352546754831,3.6976526205892202,0.24918028324707825,0,0,0]
[24]
[25,null,"Total Operating Expenses",null,{"$f":"SUM(E287:E295)","v":1956688.1595383903},1280965.3317041483,310022.4570428427,176020.49263837235,39682.860531710146,{"$f":"SUM(J287:J295)","v":20212.335154753833},110040.15803358309,19744.52443297979,0,0,{"$f":"ROUND(SUM(F297:N297)-E297,0)","v":0}]
[26]
[27]
[28,null,"Rate Base :"]
[29,null,"Electric Plant In Service",null,{"$f":"'Function Summary'!$O29","v":12828781.366160188},8603915.1289302856,2065834.5343162441,1068494.4823643928,208184.01016531588,120147.58933820034,743728.62082638603,18477.000219364523,0,0,{"$f":"ROUND(SUM(F301:N301)-E301,0)","v":0}]
[30,null,"Plant Held For Future Use ",null,{"$f":"'Function Summary'!$O30","v":0},0,0,0,0,0,0,0,0,0,0]
[31,null,"Electric Plant Acquisition Adj",null,{"$f":"'Function Summary'!$O31","v":0},0,0,0,0,0,0,0,0,0,0]
[32,null,"Nuclear Fuel",null,{"$f":"'Function Summary'!$O32","v":0},0,0,0,0,0,0,0,0,0,0]
[33,null,"Prepayments",null,{"$f":"'Function Summary'!$O33","v":-1.8109732184958963E-10},-1.4612178526352483E-10,-2.4818239401882892E-11,-1.5072545538433793E-12,-3.0912484129716484E-13,-5.3378728100849055E-15,-4.4211351854473908E-12,-3.9144447307838831E-12,0,0,0]
[34,null,"Fuel Stock",null,{"$f":"'Function Summary'!$O34","v":0},0,0,0,0,0,0,0,0,0,0]
[35,null,"Materials & Supplies",null,{"$f":"'Function Summary'!$O35","v":8.7313492012834719E-7},5.170001862063831E-7,1.3111041745888414E-7,1.2264717457572959E-7,4.2794861433925277E-8,5.8904904342690862E-9,4.1968965182457404E-8,1.172282483669849E-8,0,0,0]
[36,null,"Misc Deferred Debits",null,{"$f":"'Function Summary'!$O36","v":0},0,0,0,0,0,0,0,0,0,0]
[37,null,"Cash Working Capital",null,{"$f":"'Function Summary'!$O37","v":76882.582678498307},43249.051944290339,11331.439908630691,11124.281665287284,4039.2115166364861,1623.7021661589467,3872.5245232321768,1642.3709542624126,0,0,0]
[38,null,"Weatherization Loans",null,{"$f":"'Function Summary'!$O38","v":0},0,0,0,0,0,0,0,0,0,0]
[39,null,"Miscellaneous Rate Base",null,{"$f":"'Function Summary'!$O39","v":0},0,0,0,0,0,0,0,0,0,0]
[40]
[41,null,"Total Rate Base Additions",null,{"$f":"SUM(E301:E311)","v":12905663.94883956},8647164.1808750946,2077165.9742250058,1079618.7640298028,212223.22168199514,{"$f":"SUM(J301:J311)","v":121771.29150436519},747601.14534966019,20119.371173638654,0,0,{"$f":"ROUND(SUM(F313:N313)-E313,0)","v":0}]
[42]
[43,null,"Rate Base Deductions :"]
[44,null,"Accum Provision For Depreciation",null,{"$f":"'Function Summary'!$O44","v":-2361424.6741928025},-1568049.6231918556,-378092.17666373658,-208098.69387364705,-44867.263504729242,-21603.374758065856,-134921.6682890018,-5791.8739117663763,0,0,{"$f":"ROUND(SUM(F316:N316)-E316,0)","v":0}]
[45,null,"Accum Provision For Amortization",null,{"$f":"'Function Summary'!$O45","v":-202836.81039163453},-115068.38556241887,-29985.210198887118,-30672.964160419673,-11005.013516437055,-4360.1636564812752,-9355.5811072826436,-2389.4921897078511,0,0,0]
[{"$f":"A317+1","v":46},null,"Accum Deferred Income Taxes",null,{"$f":"'Function Summary'!$O46","v":-1697110.8747565467},-1011989.3896928444,-256791.6870652978,-234053.89125920189,-80908.725285156645,-13240.135323207924,-80421.439390936604,-19705.606739901174,0,0,0]
[47,null,"Unamortized ITC",null,{"$f":"'Function Summary'!$O47","v":-4351.3636747668588},-2594.8048704693197,-658.41903260250854,-600.09881342611857,-207.43845310340737,-33.917543814229091,-206.18934297210495,-50.495618379169848,0,0,0]
[48,null,"Customer Advance For Construction",null,{"$f":"'Function Summary'!$O48","v":-4583.9343430603258},-1688.3240977838364,-2623.2074769995911,0,0,0,-272.40276827689826,0,0,0,0]
[49,null,"Customer Service Deposits",null,{"$f":"'Function Summary'!$O49","v":0},0,0,0,0,0,0,0,0,0,0]
[50,null,"Misc Rate Base Deductions",null,{"$f":"'Function Summary'!$O50","v":-5726.3745139887496},-3390.1955379231495,-859.83001318038123,-804.58965039922532,-280.77231481255842,-38.924675135370514,-275.21226201913424,-76.850060518930476,0,0,0]
[51]
[52,null,"Total Rate Base Deductions",null,{"$f":"SUM(E316:E322)","v":-4276034.0318728006},-2702780.7229532953,-669010.53045070393,-474230.23775709391,-137269.21307423891,{"$f":"SUM(J316:J322)","v":-39276.515956704658},-225452.49316048916,-28014.3185202735,0,0,{"$f":"ROUND(SUM(F324:N324)-E324,0)","v":0}]
[53]
[54,null,"Total Rate Base",null,{"$f":"E313+E324","v":8629629.9169667587},5944383.4579217993,1408155.443774302,605388.52627270878,74954.00860775623,{"$f":"J313+J324","v":82494.775547660538},522148.65218917106,-7894.9473466348463,0,0,{"$f":"ROUND(SUM(F326:N326)-E326,0)","v":0}]
[55]
[56]
[57,null,"Return On Rate Base",{"$f":"ActualROR","v":4.602925444100011E-2},{"$f":"$D$329*E326","v":397215.43117972958},273615.53867955459,64816.345213966772,27865.582511468594,3450.0771335793238,{"$f":"$D$329*J326","v":3797.1730137364611},24034.113167640622,-363.39854021655401,0,0,{"$f":"ROUND(SUM(F329:N329)-E329,0)","v":0}]
[58,null,"Total Operating Expenses",null,{"$f":"E297","v":1956688.1595383903},1280965.3317041483,310022.4570428427,176020.49263837235,39682.860531710146,{"$f":"J297","v":20212.335154753833},110040.15803358309,19744.52443297979,0,0,{"$f":"ROUND(SUM(F330:N330)-E330,0)","v":0}]
[59,null,"Revenue Credits",null,{"$f":"'Function Summary'!$O59","v":-58560.769067793255},-17113.89778782177,-10994.448368034769,-13997.43423371463,-3673.3893370811156,-2108.005466056487,-10437.362313748323,-236.23156133617158,0,0,{"$f":"ROUND(SUM(F331:N331)-E331,0)","v":0}]
[60]
[61,null,"Total Revenue Requirements",null,{"$f":"E329+E330+E331","v":2295342.8216503267},1537466.9725958812,363844.3538887747,189888.64091612631,39459.548328208359,{"$f":"J329+J330+J331","v":21901.502702433809},123636.90888747539,19144.894331427065,0,0,{"$f":"ROUND(SUM(F333:N333)-E333,0)","v":0}]
[62]
[63]
[64,null,"Return On Rate Base @ Target ROR",{"$f":"TargetROR","v":7.7999997127089077E-2},{"$f":"$D336*E326","v":673111.10873124911},463661.89264021616,109836.1205688904,47220.303310043972,5846.412456068796,{"$f":"$D336*J326","v":6434.5922557173799},40727.593370668779,-615.80587035603753,0,0,{"$f":"ROUND(SUM(F336:N336)-E336,0)","v":0}]
[65,null,"Total Operating Expenses Adjusted for Taxes",null,{"$f":"E330+((E336-E329)*(1/Net_to_Gross_Factor))-(E336-E329)","v":2126641.2522903881},{"$f":"F330+((F336-F329)*(1/Net_to_Gross_Factor))-(F336-F329)","v":1398034.8193760742},337754.85982809722,187943.09573335943,41159.014862732205,{"$f":"J330+((J336-J329)*(1/Net_to_Gross_Factor))-(J336-J329)","v":21836.998364544732},120323.42384795632,19589.04027762375,0,0,{"$f":"ROUND(SUM(F337:N337)-E337,0)","v":0}]
[66,null,"Revenue Credits",null,{"$f":"E331","v":-58560.769067793255},-17113.89778782177,-10994.448368034769,-13997.43423371463,-3673.3893370811156,{"$f":"J331","v":-2108.005466056487},-10437.362313748323,-236.23156133617158,0,0,{"$f":"ROUND(SUM(F338:N338)-E338,0)","v":0}]
[67]
[68,null,"Total Target Revenue Requirements",null,{"$f":"SUM(E336:E338)","v":2741191.5919538438},1844582.8142284688,436596.53202895285,221165.96480968877,43332.037981719885,{"$f":"SUM(J336:J338)","v":26163.585154205626},150613.65490487678,18737.00284593154,0,0,{"$f":"ROUND(SUM(F340:N340)-E340,0)","v":0}]
[]
[null,null,{"$f":"Inputs!$C$3","v":"PacifiCorp"}]
[null,null,"Cost Of Service By Rate Schedule - Distribution Services"]
[null,null,{"$f":"Inputs!$C$4","v":"State of Washington"}]
[null,null,{"$f":"+Method&\" - \"&IF(PeakMethod=1,\"(Coincident Peaks)\",IF(PeakMethod=2,\"(200 Top Hours)\",\"(100 Summer, 100 Winter Hours)\"))&\" - \"&TEXT(Demand,\"0%\")&\"D\"&\" / \"&TEXT(Engy,\"0%\")&\"E\"","v":"WCA Method - (100 Summer, 100 Winter Hours) - 38%D / 62%E"}]
[null,null,{"$f":"Inputs!$C$5","v":"12 Months Ending June 2012"}]
[]
[]
[null,null,"A","B","C","D","E","F","G","H","I","J","L","M"]
[null,null,null,null,{"$f":"'Hot Sheet'!$H$10","v":"Washington"},null,{"$f":"'Hot Sheet'!$J$10","v":"Small General"},{"$f":"'Hot Sheet'!$K$10","v":"Large General"},{"$f":"'Hot Sheet'!$L$10","v":"Large General"},{"$f":"'Hot Sheet'!$M$10","v":"Large General"},{"$f":"'Hot Sheet'!$N$10","v":"Agricultural"},{"$f":"'Hot Sheet'!$O$10","v":"Street & Area"},null,null,"Chk Total"]
[null,null,null,null,{"$f":"'Hot Sheet'!$H$11","v":"Jurisdiction"},{"$f":"'Hot Sheet'!$I$11","v":"Residential"},{"$f":"'Hot Sheet'!$J$11","v":"Service"},{"$f":"'Hot Sheet'!$K$11","v":"Service <1,000 kW"},{"$f":"'Hot Sheet'!$L$11","v":"Service >1,000 kW"},{"$f":"'Hot Sheet'!$M$11","v":"Dedicated Facilities"},{"$f":"'Hot Sheet'!$N$11","v":"Pumping"},{"$f":"'Hot Sheet'!$O$11","v":"Lighting"}]
[null,null,"DESCRIPTION ",null,{"$f":"'Hot Sheet'!$H$12","v":"Normalized"},{"$f":"'Hot Sheet'!$I$12","v":"Schedule 16"},{"$f":"'Hot Sheet'!$J$12","v":"Schedule 24"},{"$f":"'Hot Sheet'!$K$12","v":"Schedule 36"},{"$f":"'Hot Sheet'!$L$12","v":"Schedule 48T"},{"$f":"'Hot Sheet'!$M$12","v":"Schedule 48T"},{"$f":"'Hot Sheet'!$N$12","v":"Schedule 40"},{"$f":"'Hot Sheet'!$O$12","v":"Sch. 15,51-54,57"},null,null,{"$f":"ROUND(SUM(O355:O408),0)","v":0}]
[13]
[{"$f":"A353+1","v":14},null,"Operating Expenses"]
[15,null,"Operation & Maintenance Expenses",null,{"$f":"'Function Summary'!$P15","v":467638.61256384803},261859.4691455008,68809.297396169801,70645.582302614581,25602.887882520859,11509.512312649686,22137.335297334503,7074.5282270578009,0,0,{"$f":"ROUND(SUM(F355:N355)-E355,0)","v":0}]
[16,null,"Depreciation Expense",null,{"$f":"'Function Summary'!$P16","v":1420084.5916122422},1024549.4373026517,278216.57027520321,84815.25694845611,22310.647141273359,1014.7313285747359,7174.5365454564162,2003.4120706266722,0,0,0]
[17,null,"Amortization Expense",null,{"$f":"'Function Summary'!$P17","v":57044.056525671185},31500.089744238685,8359.4473362494882,9007.8382675360735,3277.1746784292736,1710.3850203046841,2572.822650791757,616.29882812121025,0,0,0]
[18,null,"Taxes Other Than Income",null,{"$f":"'Function Summary'!$P18","v":707804.06687410071},421882.96470414218,106815.44755944549,97759.259845482084,33817.22472366353,5653.2325274355771,33560.996098165968,8314.9414157658903,0,0,0]
[19,null,"Income Taxes - Federal",null,{"$f":"'Function Summary'!$P19","v":275671.04198371561},164312.30324628355,41601.803531183868,38074.65693744654,13170.918355613241,2201.7851752349461,13071.124054502603,3238.4506834508661,0,0,0]
[20,null,"Income Taxes - State",null,{"$f":"'Function Summary'!$P20","v":0},0,0,0,0,0,0,0,0,0,0]
[21,null,"Income Taxes Deferred",null,{"$f":"'Function Summary'!$P21","v":122558.51828085515},73050.372923713294,18495.433404624084,16927.325789195442,5855.5596788342737,978.87513576956826,5811.1928799533271,1439.7584687651233,0,0,0]
[22,null,"Investment Tax Credit Adj",null,{"$f":"'Function Summary'!$P22","v":0},0,0,0,0,0,0,0,0,0,0]
[23,null,"Misc Revenues & Expense",null,{"$f":"'Function Summary'!$P23","v":473.74843325900923},200.99962697405297,63.932748386834817,101.29592038029662,40.028209978861163,49.489898623155511,16.865484558963679,1.1365443568444564,0,0,0]
[24]
[25,null,"Total Operating Expenses",null,{"$f":"SUM(E355:E363)","v":3051274.6362736919},1977355.6366935042,522361.93225126277,317331.2160111111,104074.4406703134,{"$f":"SUM(J355:J363)","v":23118.011398592353},84344.873010763535,22688.526238144404,0,0,{"$f":"ROUND(SUM(F365:N365)-E365,0)","v":0}]
[26]
[27]
[28,null,"Rate Base :"]
[29,null,"Electric Plant In Service",null,{"$f":"'Function Summary'!$P29","v":58513775.154686674},42197365.628931358,11457175.744615737,3506377.9295037049,924087.93595538149,42685.951005135445,301805.91338798968,84276.05128737152,0,0,{"$f":"ROUND(SUM(F369:N369)-E369,0)","v":0}]
[30,null,"Plant Held For Future Use ",null,{"$f":"'Function Summary'!$P30","v":0},0,0,0,0,0,0,0,0,0,0]
[31,null,"Electric Plant Acquisition Adj",null,{"$f":"'Function Summary'!$P31","v":0},0,0,0,0,0,0,0,0,0,0]
[32,null,"Nuclear Fuel",null,{"$f":"'Function Summary'!$P32","v":0},0,0,0,0,0,0,0,0,0,0]
[33,null,"Prepayments",null,{"$f":"'Function Summary'!$P33","v":-8.2600893018371983E-10},-6.6648086393185328E-10,-1.1319928515794992E-10,-6.8747881460596591E-12,-1.4099594452598026E-12,-2.4346746623768417E-14,-2.0165384597802522E-11,-1.7854302158170879E-11,0,0,0]
[34,null,"Fuel Stock",null,{"$f":"'Function Summary'!$P34","v":0},0,0,0,0,0,0,0,0,0,0]
[35,null,"Materials & Supplies",null,{"$f":"'Function Summary'!$P35","v":3.9824843013430679E-6},2.3581064940750594E-6,5.9801202223797096E-7,5.5941004773938842E-7,1.9519304509514618E-7,2.6867308981571601E-8,1.9142602263368582E-7,5.3469360580245398E-8,0,0,0]
[36,null,"Misc Deferred Debits",null,{"$f":"'Function Summary'!$P36","v":0},0,0,0,0,0,0,0,0,0,0]
[37,null,"Cash Working Capital",null,{"$f":"'Function Summary'!$P37","v":350671.66769463569},197264.66831814358,51684.201957127712,50739.325703767397,18423.380034375838,7405.9211671825133,17663.098525564852,7491.0719884739401,0,0,0]
[38,null,"Weatherization Loans",null,{"$f":"'Function Summary'!$P38","v":0},0,0,0,0,0,0,0,0,0,0]
[39,null,"Miscellaneous Rate Base",null,{"$f":"'Function Summary'!$P39","v":0},0,0,0,0,0,0,0,0,0,0]
[40]
[41,null,"Total Rate Base Additions",null,{"$f":"SUM(E369:E379)","v":58864446.822385296},42394630.297251858,11508859.946573462,3557117.2552080317,942511.31598995253,{"$f":"SUM(J369:J379)","v":50091.872172344825},319469.01191374596,91767.123275898906,0,0,{"$f":"ROUND(SUM(F381:N381)-E381,0)","v":0}]
[42]
[43,null,"Rate Base Deductions :"]
[44,null,"Accum Provision For Depreciation",null,{"$f":"'Function Summary'!$P44","v":-20407698.746310279},-14749133.557081548,-4007226.9062823807,-1202898.009802347,-314036.97847771499,-13380.507825424747,-94605.280912251837,-26417.505928611172,0,0,{"$f":"ROUND(SUM(F384:N384)-E384,0)","v":0}]
[45,null,"Accum Provision For Amortization",null,{"$f":"'Function Summary'!$P45","v":-925165.62388827908},-524842.18477467657,-136766.52500851348,-139903.46214371279,-50195.327841012724,-19887.28535868293,-42672.047619190496,-10898.791142489823,0,0,0]
[{"$f":"A385+1","v":46},null,"Accum Deferred Income Taxes",null,{"$f":"'Function Summary'!$P46","v":-7736363.6283273157},-4613347.7969020782,-1170614.4180875486,-1066925.9065874212,-368808.3607012385,-60302.579131278675,-366587.54651289078,-89777.020404858864,0,0,0]
[47,null,"Unamortized ITC",null,{"$f":"'Function Summary'!$P47","v":-19847.147473664401},-11835.249539869023,-3003.1366293991941,-2737.1303662586492,-946.15432728056919,-154.70242074435345,-940.45697012088851,-230.31721999172112,0,0,0]
[48,null,"Customer Advance For Construction",null,{"$f":"'Function Summary'!$P48","v":-20907.93317136099},-7700.6703775116084,-11964.797599414513,0,0,0,-1242.4651944348691,0,0,0,0]
[49,null,"Customer Service Deposits",null,{"$f":"'Function Summary'!$P49","v":0},0,0,0,0,0,0,0,0,0,0]
[50,null,"Misc Rate Base Deductions",null,{"$f":"'Function Summary'!$P50","v":-26118.754478653733},-15463.131982257231,-3921.7988541921095,-3669.8402249986843,-1280.6398074519816,-177.54061152279317,-1255.2796684242176,-350.5233298067115,0,0,0]
[51]
[52,null,"Total Rate Base Deductions",null,{"$f":"SUM(E384:E390)","v":-29136101.83364955},-19922322.590657942,-5333497.5824614475,-2416134.349124738,-735267.46115469886,{"$f":"SUM(J384:J390)","v":-93902.615347653496},-507303.07687731308,-127674.1580257583,0,0,{"$f":"ROUND(SUM(F392:N392)-E392,0)","v":0}]
[53]
[54,null,"Total Rate Base",null,{"$f":"E381+E392","v":29728344.988735747},22472307.706593916,6175362.3641120149,1140982.9060832937,207243.85483525367,{"$f":"J381+J392","v":-43810.743175308671},-187834.06496356713,-35907.034749859391,0,0,{"$f":"ROUND(SUM(F394:N394)-E394,0)","v":0}]
[55]
[56]
[57,null,"Return On Rate Base",{"$f":"ActualROR","v":4.602925444100011E-2},{"$f":"$D$397*E394","v":1368373.5555963481},1034383.569303259,284247.32552308787,52518.592496939658,9539.2801255455815,{"$f":"$D$397*J394","v":-2016.575844865592},-8645.861968895375,-1652.7740387231106,0,0,{"$f":"ROUND(SUM(F397:N397)-E397,0)","v":0}]
[58,null,"Total Operating Expenses",null,{"$f":"E365","v":3051274.6362736919},1977355.6366935042,522361.93225126277,317331.2160111111,104074.4406703134,{"$f":"J365","v":23118.011398592353},84344.873010763535,22688.526238144404,0,0,{"$f":"ROUND(SUM(F398:N398)-E398,0)","v":0}]
[59,null,"Revenue Credits",null,{"$f":"'Function Summary'!$P59","v":-238317.09156846663},-76904.2217455504,-42620.419286522971,-54751.405329627436,-15146.710260731776,-9592.0055291690023,-38315.13190895009,-987.19750791499541,0,0,{"$f":"ROUND(SUM(F399:N399)-E399,0)","v":0}]
[60]
[61,null,"Total Revenue Requirements",null,{"$f":"E397+E398+E399","v":4181331.1003015735},2934834.9842512123,763988.83848782768,315098.40317842329,98467.010535127207,{"$f":"J397+J398+J399","v":11509.43002455776},37383.879132918068,20048.554691506299,0,0,{"$f":"ROUND(SUM(F401:N401)-E401,0)","v":0}]
[62]
[63]
[64,null,"Return On Rate Base @ Target ROR",{"$f":"TargetROR","v":7.7999997127089077E-2},{"$f":"$D404*E394","v":2318810.8237145012},1752839.9365533872,481678.24665947119,88996.66339655465,16165.020081756653,{"$f":"$D404*J394","v":-3417.2378418097137},-14651.056527527699,-2800.7486073313203,0,0,{"$f":"ROUND(SUM(F404:N404)-E404,0)","v":0}]
[65,null,"Total Operating Expenses Adjusted for Taxes",null,{"$f":"E398+((E404-E397)*(1/Net_to_Gross_Factor))-(E404-E397)","v":3636748.6626048088},{"$f":"F398+((F404-F397)*(1/Net_to_Gross_Factor))-(F404-F397)","v":2419928.288447801},643980.34958126384,339801.88688944891,108155.92903331351,{"$f":"J398+((J404-J397)*(1/Net_to_Gross_Factor))-(J404-J397)","v":22255.196727505703},80645.643661197348,21981.368264278819,0,0,{"$f":"ROUND(SUM(F405:N405)-E405,0)","v":0}]
[66,null,"Revenue Credits",null,{"$f":"E399","v":-238317.09156846663},-76904.2217455504,-42620.419286522971,-54751.405329627436,-15146.710260731776,{"$f":"J399","v":-9592.0055291690023},-38315.13190895009,-987.19750791499541,0,0,{"$f":"ROUND(SUM(F406:N406)-E406,0)","v":0}]
[67]
[68,null,"Total Target Revenue Requirements",null,{"$f":"SUM(E404:E406)","v":5717242.3947508438},4095864.0032556374,1083038.1769542121,374047.14495637611,109174.23885433839,{"$f":"SUM(J404:J406)","v":9245.9533565269867},27679.455224719553,18193.422149032504,0,0,{"$f":"ROUND(SUM(F408:N408)-E408,0)","v":0}]
[]
[]
[null,null,"Check",null,{"$f":"E68-E136-E204-E272-E340-E408","v":2.1420419216156006E-8},{"$f":"F68-F136-F204-F272-F340-F408","v":1.0244548320770264E-8},0,-6.4028427004814148E-10,4.3655745685100555E-10,{"$f":"J68-J136-J204-J272-J340-J408","v":-1.7280399333685637E-10},6.8394001573324203E-10,-6.5483618527650833E-11,0,0,0]

{"sheet":"Retail Summary","index":9,"n_rows":68,"n_cols":15,"rows_kept":68,"cut":false,"hidden":false,"merged":[]}
[null,null,"Retail Summary"]
[null,null,{"$f":"Inputs!$C$3","v":"PacifiCorp"}]
[null,null,"Cost Of Service By Rate Schedule - Retail Services Function"]
[null,null,{"$f":"Inputs!$C$4","v":"State of Washington"}]
[null,null,{"$f":"+Method&\" - \"&IF(PeakMethod=1,\"(Coincident Peaks)\",IF(PeakMethod=2,\"(200 Top Hours)\",\"(100 Summer, 100 Winter Hours)\"))&\" - \"&TEXT(Demand,\"0%\")&\"D\"&\" / \"&TEXT(Engy,\"0%\")&\"E\"","v":"WCA Method - (100 Summer, 100 Winter Hours) - 38%D / 62%E"}]
[null,null,{"$f":"Inputs!$C$5","v":"12 Months Ending June 2012"}]
[]
[]
[null,null,"A","B","C","D","E","F","G","H","I","J","K","L"]
[null,null,null,null,{"$f":"'Hot Sheet'!$H$10","v":"Washington"},null,{"$f":"'Hot Sheet'!$J$10","v":"Small General"},{"$f":"'Hot Sheet'!$K$10","v":"Large General"},{"$f":"'Hot Sheet'!$L$10","v":"Large General"},{"$f":"'Hot Sheet'!$M$10","v":"Large General"},{"$f":"'Hot Sheet'!$N$10","v":"Agricultural"},{"$f":"'Hot Sheet'!$O$10","v":"Street & Area"},null,null,"Chk Total"]
[null,null,null,null,{"$f":"'Hot Sheet'!$H$11","v":"Jurisdiction"},{"$f":"'Hot Sheet'!$I$11","v":"Residential"},{"$f":"'Hot Sheet'!$J$11","v":"Service"},{"$f":"'Hot Sheet'!$K$11","v":"Service <1,000 kW"},{"$f":"'Hot Sheet'!$L$11","v":"Service >1,000 kW"},{"$f":"'Hot Sheet'!$M$11","v":"Dedicated Facilities"},{"$f":"'Hot Sheet'!$N$11","v":"Pumping"},{"$f":"'Hot Sheet'!$O$11","v":"Lighting"}]
[null,null,"DESCRIPTION ",null,{"$f":"'Hot Sheet'!$H$12","v":"Normalized"},{"$f":"'Hot Sheet'!$I$12","v":"Schedule 16"},{"$f":"'Hot Sheet'!$J$12","v":"Schedule 24"},{"$f":"'Hot Sheet'!$K$12","v":"Schedule 36"},{"$f":"'Hot Sheet'!$L$12","v":"Schedule 48T"},{"$f":"'Hot Sheet'!$M$12","v":"Schedule 48T"},{"$f":"'Hot Sheet'!$N$12","v":"Schedule 40"},{"$f":"'Hot Sheet'!$O$12","v":"Sch. 15,51-54,57"},null,null,{"$f":"ROUND(SUM(O15:O68),0)","v":0}]
[]
[14,null,"Operating Expenses"]
[{"$f":"A14+1","v":15},null,"Operation & Maintenance Expenses",null,{"$f":"'Function Summary'!$I15","v":8378177.35647838},{"$f":"Retail!$I$17","v":6863966.147019322},{"$f":"Retail!$J$17","v":933712.50248767936},{"$f":"Retail!$K$17","v":178952.83033914602},{"$f":"Retail!$L$17","v":60632.969417611501},{"$f":"Retail!$M$17","v":51198.259224410591},{"$f":"Retail!$N$17","v":178992.58855920116},{"$f":"Retail!$O$17","v":110722.05943100933},{"$f":"Retail!$P$17","v":0},{"$f":"Retail!$Q$17","v":0},{"$f":"ROUND(SUM(F15:N15)-E15,0)","v":0}]
[16,null,"Depreciation Expense",null,{"$f":"'Function Summary'!$I16","v":120344.21412182611},{"$f":"Retail!$I$18","v":97101.995954541359},{"$f":"Retail!$J$18","v":16492.41129688028},{"$f":"Retail!$K$18","v":1001.6126296692452},{"$f":"Retail!$L$18","v":205.42206649714637},{"$f":"Retail!$M$18","v":3.5471651477290309},{"$f":"Retail!$N$18","v":2937.9674640408039},{"$f":"Retail!$O$18","v":2601.2575450495383},{"$f":"Retail!$P$18","v":0},{"$f":"Retail!$Q$18","v":0},0]
[17,null,"Amortization Expense",null,{"$f":"'Function Summary'!$I17","v":435831.73296249891},{"$f":"Retail!$I$19","v":351659.04301925196},{"$f":"Retail!$J$19","v":59727.97486527438},{"$f":"Retail!$K$19","v":3627.3830971546568},{"$f":"Retail!$L$19","v":743.94482429838376},{"$f":"Retail!$M$19","v":12.846210719145319},{"$f":"Retail!$N$19","v":10639.975179397616},{"$f":"Retail!$O$19","v":9420.5657664027349},{"$f":"Retail!$P$19","v":0},{"$f":"Retail!$Q$19","v":0},0]
[18,null,"Taxes Other Than Income",null,{"$f":"'Function Summary'!$I18","v":131221.01958061196},{"$f":"Retail!$I$20","v":119187.67423715712},{"$f":"Retail!$J$20","v":8083.816390489852},{"$f":"Retail!$K$20","v":5288.5844324473201},{"$f":"Retail!$L$20","v":-352.22586920649644},{"$f":"Retail!$M$20","v":-72.553287098411602},{"$f":"Retail!$N$20","v":2027.8255060252777},{"$f":"Retail!$O$20","v":-2942.1018292028161},{"$f":"Retail!$P$20","v":0},{"$f":"Retail!$Q$20","v":0},0]
[19,null,"Income Taxes - Federal",null,{"$f":"'Function Summary'!$I19","v":181641.41151786022},{"$f":"Retail!$I$21","v":164984.37104939891},{"$f":"Retail!$J$21","v":11189.943686710552},{"$f":"Retail!$K$21","v":7320.6712180054301},{"$f":"Retail!$L$21","v":-487.56521066710388},{"$f":"Retail!$M$21","v":-100.43117726821262},{"$f":"Retail!$N$21","v":2806.997601478573},{"$f":"Retail!$O$21","v":-4072.5756497980856},{"$f":"Retail!$P$21","v":0},{"$f":"Retail!$Q$21","v":0},0]
[20,null,"Income Taxes - State",null,{"$f":"'Function Summary'!$I20","v":0},{"$f":"Retail!$I$22","v":0},{"$f":"Retail!$J$22","v":0},{"$f":"Retail!$K$22","v":0},{"$f":"Retail!$L$22","v":0},{"$f":"Retail!$M$22","v":0},{"$f":"Retail!$N$22","v":0},{"$f":"Retail!$O$22","v":0},{"$f":"Retail!$P$22","v":0},{"$f":"Retail!$Q$22","v":0},0]
[21,null,"Income Taxes Deferred",null,{"$f":"'Function Summary'!$I21","v":9186.3244753000617},{"$f":"Retail!$I$23","v":8343.9120691046701},{"$f":"Retail!$J$23","v":565.91970249224323},{"$f":"Retail!$K$23","v":370.23529284221422},{"$f":"Retail!$L$23","v":-24.658100763633684},{"$f":"Retail!$M$23","v":-5.0792017861602261},{"$f":"Retail!$N$23","v":141.96096888421107},{"$f":"Retail!$O$23","v":-205.96625547348049},{"$f":"Retail!$P$23","v":0},{"$f":"Retail!$Q$23","v":0},0]
[22,null,"Investment Tax Credit Adj",null,{"$f":"'Function Summary'!$I22","v":0},{"$f":"Retail!$I$24","v":0},{"$f":"Retail!$J$24","v":0},{"$f":"Retail!$K$24","v":0},{"$f":"Retail!$L$24","v":0},{"$f":"Retail!$M$24","v":0},{"$f":"Retail!$N$24","v":0},{"$f":"Retail!$O$24","v":0},{"$f":"Retail!$P$24","v":0},{"$f":"Retail!$Q$24","v":0},0]
[23,null,"Misc Revenues & Expense",null,{"$f":"'Function Summary'!$I23","v":6775.2872727272734},{"$f":"Retail!$I$25","v":5853.0850410034527},{"$f":"Retail!$J$25","v":264.4754706112343},{"$f":"Retail!$K$25","v":344.24088041731272},{"$f":"Retail!$L$25","v":129.55629709338527},{"$f":"Retail!$M$25","v":140.72484612723864},{"$f":"Retail!$N$25","v":43.204737474649839},{"$f":"Retail!$O$25","v":0},{"$f":"Retail!$P$25","v":0},{"$f":"Retail!$Q$25","v":0},0]
[24]
[25,null,"Total Operating Expenses",null,{"$f":"SUM(E15:E23)","v":9263177.3464092035},{"$f":"SUM(F15:F23)","v":7611096.2283897791},1030037.0439001378,196905.55788968221,60847.443424863181,{"$f":"SUM(J15:J23)","v":51177.31378025192},197590.52001650227,115523.23900798721,0,0,{"$f":"ROUND(SUM(F25:N25)-E25,0)","v":0}]
[26]
[27]
[28,null,"Rate Base :"]
[29,null,"Electric Plant In Service",null,{"$f":"'Function Summary'!$I29","v":10252496.870564088},{"$f":"Retail!$I$33","v":8272420.2149150707},{"$f":"Retail!$J$33","v":1405039.6726023769},{"$f":"Retail!$K$33","v":85330.486605745085},{"$f":"Retail!$L$33","v":17500.542998891313},{"$f":"Retail!$M$33","v":302.1940011145926},{"$f":"Retail!$N$33","v":250294.56090348505},{"$f":"Retail!$O$33","v":221609.19853740392},{"$f":"Retail!$P$33","v":0},{"$f":"Retail!$Q$33","v":0},{"$f":"ROUND(SUM(F29:N29)-E29,0)","v":0}]
[30,null,"Plant Held For Future Use ",null,{"$f":"'Function Summary'!$I30","v":0},{"$f":"Retail!$I$34","v":0},{"$f":"Retail!$J$34","v":0},{"$f":"Retail!$K$34","v":0},{"$f":"Retail!$L$34","v":0},{"$f":"Retail!$M$34","v":0},{"$f":"Retail!$N$34","v":0},{"$f":"Retail!$O$34","v":0},{"$f":"Retail!$P$34","v":0},{"$f":"Retail!$Q$34","v":0},0]
[{"$f":"A30+1","v":31},null,"Electric Plant Acquisition Adj",null,{"$f":"'Function Summary'!$I31","v":0},{"$f":"Retail!$I$35","v":0},{"$f":"Retail!$J$35","v":0},{"$f":"Retail!$K$35","v":0},{"$f":"Retail!$L$35","v":0},{"$f":"Retail!$M$35","v":0},{"$f":"Retail!$N$35","v":0},{"$f":"Retail!$O$35","v":0},{"$f":"Retail!$P$35","v":0},{"$f":"Retail!$Q$35","v":0},0]
[32,null,"Nuclear Fuel",null,{"$f":"'Function Summary'!$I32","v":0},{"$f":"Retail!$I$36","v":0},{"$f":"Retail!$J$36","v":0},{"$f":"Retail!$K$36","v":0},{"$f":"Retail!$L$36","v":0},{"$f":"Retail!$M$36","v":0},{"$f":"Retail!$N$36","v":0},{"$f":"Retail!$O$36","v":0},{"$f":"Retail!$P$36","v":0},{"$f":"Retail!$Q$36","v":0},0]
[33,null,"Prepayments",null,{"$f":"'Function Summary'!$I33","v":-1.5313522353733222E-10},{"$f":"Retail!$I$37","v":-1.2356003954927971E-10},{"$f":"Retail!$J$37","v":-2.098621116974279E-11},{"$f":"Retail!$K$37","v":-1.2745288592515476E-12},{"$f":"Retail!$L$37","v":-2.6139481903713726E-13},{"$f":"Retail!$M$37","v":-4.5136854462436765E-15},{"$f":"Retail!$N$37","v":-3.7384955116816107E-12},{"$f":"Retail!$O$37","v":-3.310039942893173E-12},{"$f":"Retail!$P$37","v":0},{"$f":"Retail!$Q$37","v":0},0]
[34,null,"Fuel Stock",null,{"$f":"'Function Summary'!$I34","v":0},{"$f":"Retail!$I$38","v":0},{"$f":"Retail!$J$38","v":0},{"$f":"Retail!$K$38","v":0},{"$f":"Retail!$L$38","v":0},{"$f":"Retail!$M$38","v":0},{"$f":"Retail!$N$38","v":0},{"$f":"Retail!$O$38","v":0},{"$f":"Retail!$P$38","v":0},{"$f":"Retail!$Q$38","v":0},0]
[35,null,"Materials & Supplies",null,{"$f":"'Function Summary'!$I35","v":0},{"$f":"Retail!$I$39","v":0},{"$f":"Retail!$J$39","v":0},{"$f":"Retail!$K$39","v":0},{"$f":"Retail!$L$39","v":0},{"$f":"Retail!$M$39","v":0},{"$f":"Retail!$N$39","v":0},{"$f":"Retail!$O$39","v":0},{"$f":"Retail!$P$39","v":0},{"$f":"Retail!$Q$39","v":0},0]
[36,null,"Misc Deferred Debits",null,{"$f":"'Function Summary'!$I36","v":0},{"$f":"Retail!$I$40","v":0},{"$f":"Retail!$J$40","v":0},{"$f":"Retail!$K$40","v":0},{"$f":"Retail!$L$40","v":0},{"$f":"Retail!$M$40","v":0},{"$f":"Retail!$N$40","v":0},{"$f":"Retail!$O$40","v":0},{"$f":"Retail!$P$40","v":0},{"$f":"Retail!$Q$40","v":0},0]
[37,null,"Cash Working Capital",null,{"$f":"'Function Summary'!$I37","v":1089502.3312838771},{"$f":"Retail!$I$41","v":892593.55595386191},{"$f":"Retail!$J$41","v":121420.4360835859},{"$f":"Retail!$K$41","v":23271.11465282943},{"$f":"Retail!$L$41","v":7884.7413610874937},{"$f":"Retail!$M$41","v":6657.8469766505414},{"$f":"Retail!$N$41","v":23276.2848314488},{"$f":"Retail!$O$41","v":14398.351424413173},{"$f":"Retail!$P$41","v":0},{"$f":"Retail!$Q$41","v":0},0]
[38,null,"Weatherization Loans",null,{"$f":"'Function Summary'!$I38","v":0},{"$f":"Retail!$I$42","v":0},{"$f":"Retail!$J$42","v":0},{"$f":"Retail!$K$42","v":0},{"$f":"Retail!$L$42","v":0},{"$f":"Retail!$M$42","v":0},{"$f":"Retail!$N$42","v":0},{"$f":"Retail!$O$42","v":0},{"$f":"Retail!$P$42","v":0},{"$f":"Retail!$Q$42","v":0},0]
[39,null,"Miscellaneous Rate Base",null,{"$f":"'Function Summary'!$I39","v":0},{"$f":"Retail!$I$43","v":0},{"$f":"Retail!$J$43","v":0},{"$f":"Retail!$K$43","v":0},{"$f":"Retail!$L$43","v":0},{"$f":"Retail!$M$43","v":0},{"$f":"Retail!$N$43","v":0},{"$f":"Retail!$O$43","v":0},{"$f":"Retail!$P$43","v":0},{"$f":"Retail!$Q$43","v":0},0]
[40]
[41,null,"Total Rate Base Additions",null,{"$f":"SUM(E29:E39)","v":11341999.201847965},{"$f":"SUM(F29:F39)","v":9165013.7708689328},1526460.1086859629,108601.60125857452,25385.284359978807,{"$f":"SUM(J29:J39)","v":6960.0409777651339},273570.84573493386,236007.5499618171,0,0,{"$f":"ROUND(SUM(F41:N41)-E41,0)","v":0}]
[42]
[43,null,"Rate Base Deductions :"]
[44,null,"Accum Provision For Depreciation",null,{"$f":"'Function Summary'!$I44","v":-608529.94482340431},{"$f":"Retail!$I$48","v":-491003.84818369744},{"$f":"Retail!$J$48","v":-83395.169512144043},{"$f":"Retail!$K$48","v":-5064.7327145286272},{"$f":"Retail!$L$48","v":-1038.7327691921557},{"$f":"Retail!$M$48","v":-17.936518405794846},{"$f":"Retail!$N$48","v":-14856.062602027974},{"$f":"Retail!$O$48","v":-13153.462523408267},{"$f":"Retail!$P$48","v":0},{"$f":"Retail!$Q$48","v":0},{"$f":"ROUND(SUM(F44:N44)-E44,0)","v":0}]
[45,null,"Accum Provision For Amortization",null,{"$f":"'Function Summary'!$I45","v":-7415520.2676860858},{"$f":"Retail!$I$49","v":-5911231.1776626986},{"$f":"Retail!$J$49","v":-1016707.1176730753},{"$f":"Retail!$K$49","v":-101456.67408359275},{"$f":"Retail!$L$49","v":-28313.454612868347},{"$f":"Retail!$M$49","v":-16812.405050018089},{"$f":"Retail!$N$49","v":-184179.49134547124},{"$f":"Retail!$O$49","v":-156819.9472583613},{"$f":"Retail!$P$49","v":0},{"$f":"Retail!$Q$49","v":0},0]
[46,null,"Accum Deferred Income Taxes",null,{"$f":"'Function Summary'!$I46","v":-1437324.540604491},{"$f":"Retail!$I$50","v":-1206193.6369292643},{"$f":"Retail!$J$50","v":-196603.05899051719},{"$f":"Retail!$K$50","v":13575.779308541547},{"$f":"Retail!$L$50","v":7606.6699266814121},{"$f":"Retail!$M$50","v":10620.038404623519},{"$f":"Retail!$N$50","v":-33056.226518473493},{"$f":"Retail!$O$50","v":-33274.105806082698},{"$f":"Retail!$P$50","v":0},{"$f":"Retail!$Q$50","v":0},0]
[{"$f":"A46+1","v":47},null,"Unamortized ITC",null,{"$f":"'Function Summary'!$I47","v":0},{"$f":"Retail!$I$51","v":0},{"$f":"Retail!$J$51","v":0},{"$f":"Retail!$K$51","v":0},{"$f":"Retail!$L$51","v":0},{"$f":"Retail!$M$51","v":0},{"$f":"Retail!$N$51","v":0},{"$f":"Retail!$O$51","v":0},{"$f":"Retail!$P$51","v":0},{"$f":"Retail!$Q$51","v":0},0]
[48,null,"Customer Advance For Construction",null,{"$f":"'Function Summary'!$I48","v":0},{"$f":"Retail!$I$52","v":0},{"$f":"Retail!$J$52","v":0},{"$f":"Retail!$K$52","v":0},{"$f":"Retail!$L$52","v":0},{"$f":"Retail!$M$52","v":0},{"$f":"Retail!$N$52","v":0},{"$f":"Retail!$O$52","v":0},{"$f":"Retail!$P$52","v":0},{"$f":"Retail!$Q$52","v":0},0]
[49,null,"Customer Service Deposits",null,{"$f":"'Function Summary'!$I49","v":-3236612.0862499997},{"$f":"Retail!$I$53","v":-2788224.7747138054},{"$f":"Retail!$J$53","v":-313289.81752265652},{"$f":"Retail!$K$53","v":-70306.17488218419},{"$f":"Retail!$L$53","v":0},{"$f":"Retail!$M$53","v":0},{"$f":"Retail!$N$53","v":-62433.835518408392},{"$f":"Retail!$O$53","v":-2357.4836129454347},{"$f":"Retail!$P$53","v":0},{"$f":"Retail!$Q$53","v":0},0]
[50,null,"Misc Rate Base Deductions",null,{"$f":"'Function Summary'!$I50","v":0},{"$f":"Retail!$I$54","v":0},{"$f":"Retail!$J$54","v":0},{"$f":"Retail!$K$54","v":0},{"$f":"Retail!$L$54","v":0},{"$f":"Retail!$M$54","v":0},{"$f":"Retail!$N$54","v":0},{"$f":"Retail!$O$54","v":0},{"$f":"Retail!$P$54","v":0},{"$f":"Retail!$Q$54","v":0},0]
[51]
[52,null,"Total Rate Base Deductions",null,{"$f":"SUM(E44:E50)","v":-12697986.839363981},{"$f":"SUM(F44:F50)","v":-10396653.437489465},-1609995.1636983929,-163251.80237176403,-21745.517455379093,{"$f":"SUM(J44:J50)","v":-6210.3031638003631},-294525.61598438106,-205604.9992007977,0,0,{"$f":"ROUND(SUM(F52:N52)-E52,0)","v":0}]
[53]
[54,null,"Total Rate Base",null,{"$f":"E41+E52","v":-1355987.6375160161},{"$f":"F41+F52","v":-1231639.6666205321},-83535.055012430064,-54650.201113189512,3639.7669045997136,{"$f":"J41+J52","v":749.73781396477079},-20954.770249447203,30402.550761019404,0,0,{"$f":"ROUND(SUM(F54:N54)-E54,0)","v":0}]
[55]
[56]
[57,null,"Return On Rate Base",{"$f":"ActualROR","v":4.602925444100011E-2},{"$f":"$D$57*E54","v":-62415.099986075336},{"$f":"$D$57*F54","v":-56691.455594505023},-3845.056301910085,-2515.5080122908275,167.5357569577516,{"$f":"$D$57*J54","v":34.509872603023638},-964.53245156450464,1399.4067446343836,0,0,{"$f":"ROUND(SUM(F57:N57)-E57,0)","v":0}]
[58,null,"Total Operating Expenses",null,{"$f":"E25","v":9263177.3464092035},{"$f":"F25","v":7611096.2283897791},1030037.0439001378,196905.55788968221,60847.443424863181,{"$f":"J25","v":51177.31378025192},197590.52001650227,115523.23900798721,0,0,{"$f":"ROUND(SUM(F58:N58)-E58,0)","v":0}]
[59,null,"Revenue Credits",null,{"$f":"'Function Summary'!$I$59","v":-849947.59742200782},{"$f":"Retail!$I$99","v":-647173.77876478294},{"$f":"Retail!$J$99","v":-75535.743844509314},{"$f":"Retail!$K$99","v":-72502.587349536712},{"$f":"Retail!$L$99","v":-18366.388178678117},{"$f":"Retail!$M$99","v":-10340.448926220992},{"$f":"Retail!$N$99","v":-12445.614628460411},{"$f":"Retail!$O$99","v":-13583.035729819345},{"$f":"Retail!$P$99","v":0},{"$f":"Retail!$Q$99","v":0},{"$f":"ROUND(SUM(F59:N59)-E59,0)","v":0}]
[60]
[61,null,"Total Revenue Requirements",null,{"$f":"E57+E58+E59","v":8350814.6490011215},{"$f":"F57+F58+F59","v":6907230.9940304905},950656.24375371833,121887.46252785466,42648.591003142821,{"$f":"J57+J58+J59","v":40871.374726633956},184180.37293647736,103339.61002280226,0,0,{"$f":"ROUND(SUM(F61:N61)-E61,0)","v":0}]
[62,null,null,null,null,null,null,null,null,null,null,null,null,null,{"$f":"ROUND(SUM(F62:N62)-E62,0)","v":0}]
[63]
[64,null,"Return On Rate Base @ Target ROR",{"$f":"TargetROR","v":7.7999997127089077E-2},{"$f":"$D64*E54","v":-105767.03183061756},{"$f":"$D64*F54","v":-96067.890458010443},-6515.7340509807727,-4262.7155298236221,283.90180810205158,{"$f":"$D64*J54","v":58.479547335322167},-1634.4720192556936,2371.3988720156931,0,0,{"$f":"ROUND(SUM(F64:N64)-E64,0)","v":0}]
[65,null,"Total Operating Expenses Adjusted for Taxes",null,{"$f":"E58+((E64-E57)*(1/Net_to_Gross_Factor))-(E64-E57)","v":9236472.3434198834},{"$f":"F58+((F64-F57)*(1/Net_to_Gross_Factor))-(F64-F57)","v":7586840.1510710232},1028391.893286592,195829.26947545438,60919.125484034324,{"$f":"J58+((J64-J57)*(1/Net_to_Gross_Factor))-(J64-J57)","v":51192.07921764176},197177.83395162257,116121.99093351602,0,0,{"$f":"ROUND(SUM(F65:N65)-E65,0)","v":0}]
[66,null,"Revenue Credits",null,{"$f":"E59","v":-849947.59742200782},{"$f":"F59","v":-647173.77876478294},-75535.743844509314,-72502.587349536712,-18366.388178678117,{"$f":"J59","v":-10340.448926220992},-12445.614628460411,-13583.035729819345,0,0,{"$f":"ROUND(SUM(F66:N66)-E66,0)","v":0}]
[67]
[68,null,"Total Target Revenue Requirements",null,{"$f":"SUM(E64:E66)","v":8280757.7141672578},{"$f":"SUM(F64:F66)","v":6843598.4818482306},946340.41539110185,119063.96659609405,42836.639113458266,{"$f":"SUM(J64:J66)","v":40910.109838756092},183097.74730390648,104910.35407571237,0,0,{"$f":"ROUND(SUM(F68:N68)-E68,0)","v":0}]

{"sheet":"Misc Summary","index":10,"n_rows":68,"n_cols":15,"rows_kept":68,"cut":false,"hidden":false,"merged":[]}
[null,null,"MISC Summary"]
[null,null,{"$f":"Inputs!$C$3","v":"PacifiCorp"}]
[null,null,"Cost Of Service By Rate Schedule - Miscellaneous Function"]
[null,null,{"$f":"Inputs!$C$4","v":"State of Washington"}]
[null,null,{"$f":"+Method&\" - \"&IF(PeakMethod=1,\"(Coincident Peaks)\",IF(PeakMethod=2,\"(200 Top Hours)\",\"(100 Summer, 100 Winter Hours)\"))&\" - \"&TEXT(Demand,\"0%\")&\"D\"&\" / \"&TEXT(Engy,\"0%\")&\"E\"","v":"WCA Method - (100 Summer, 100 Winter Hours) - 38%D / 62%E"}]
[null,null,{"$f":"Inputs!$C$5","v":"12 Months Ending June 2012"}]
[]
[]
[null,null,"A","B","C","D","E","F","G","H","I","J","K","L"]
[null,null,null,null,{"$f":"'Hot Sheet'!$H$10","v":"Washington"},null,{"$f":"'Hot Sheet'!$J$10","v":"Small General"},{"$f":"'Hot Sheet'!$K$10","v":"Large General"},{"$f":"'Hot Sheet'!$L$10","v":"Large General"},{"$f":"'Hot Sheet'!$M$10","v":"Large General"},{"$f":"'Hot Sheet'!$N$10","v":"Agricultural"},{"$f":"'Hot Sheet'!$O$10","v":"Street & Area"},null,null,"Chk Total"]
[null,null,null,null,{"$f":"'Hot Sheet'!$H$11","v":"Jurisdiction"},{"$f":"'Hot Sheet'!$I$11","v":"Residential"},{"$f":"'Hot Sheet'!$J$11","v":"Service"},{"$f":"'Hot Sheet'!$K$11","v":"Service <1,000 kW"},{"$f":"'Hot Sheet'!$L$11","v":"Service >1,000 kW"},{"$f":"'Hot Sheet'!$M$11","v":"Dedicated Facilities"},{"$f":"'Hot Sheet'!$N$11","v":"Pumping"},{"$f":"'Hot Sheet'!$O$11","v":"Lighting"}]
[null,null,"DESCRIPTION ",null,{"$f":"'Hot Sheet'!$H$12","v":"Normalized"},{"$f":"'Hot Sheet'!$I$12","v":"Schedule 16"},{"$f":"'Hot Sheet'!$J$12","v":"Schedule 24"},{"$f":"'Hot Sheet'!$K$12","v":"Schedule 36"},{"$f":"'Hot Sheet'!$L$12","v":"Schedule 48T"},{"$f":"'Hot Sheet'!$M$12","v":"Schedule 48T"},{"$f":"'Hot Sheet'!$N$12","v":"Schedule 40"},{"$f":"'Hot Sheet'!$O$12","v":"Sch. 15,51-54,57"},null,null,{"$f":"ROUND(SUM(O15:O68),0)","v":0}]
[]
[14,null,"Operating Expenses"]
[{"$f":"A14+1","v":15},null,"Operation & Maintenance Expenses",null,{"$f":"'Function Summary'!$J15","v":1685420.5312579749},{"$f":"Misc!$I$17","v":746643.3056784959},{"$f":"Misc!$J$17","v":251938.54154763688},{"$f":"Misc!$K$17","v":341089.82044976793},{"$f":"Misc!$L$17","v":128166.75328330652},{"$f":"Misc!$M$17","v":139030.49869312046},{"$f":"Misc!$N$17","v":69276.58788453626},{"$f":"Misc!$O$17","v":9275.0237211110743},{"$f":"Misc!$P$17","v":0},{"$f":"Misc!$Q$17","v":0},{"$f":"ROUND(SUM(F15:N15)-E15,0)","v":0}]
[16,null,"Depreciation Expense",null,{"$f":"'Function Summary'!$J16","v":0},{"$f":"Misc!$I$18","v":0},{"$f":"Misc!$J$18","v":0},{"$f":"Misc!$K$18","v":0},{"$f":"Misc!$L$18","v":0},{"$f":"Misc!$M$18","v":0},{"$f":"Misc!$N$18","v":0},{"$f":"Misc!$O$18","v":0},{"$f":"Misc!$P$18","v":0},{"$f":"Misc!$Q$18","v":0},0]
[17,null,"Amortization Expense",null,{"$f":"'Function Summary'!$J17","v":0},{"$f":"Misc!$I$19","v":0},{"$f":"Misc!$J$19","v":0},{"$f":"Misc!$K$19","v":0},{"$f":"Misc!$L$19","v":0},{"$f":"Misc!$M$19","v":0},{"$f":"Misc!$N$19","v":0},{"$f":"Misc!$O$19","v":0},{"$f":"Misc!$P$19","v":0},{"$f":"Misc!$Q$19","v":0},0]
[18,null,"Taxes Other Than Income",null,{"$f":"'Function Summary'!$J18","v":0},{"$f":"Misc!$I$20","v":0},{"$f":"Misc!$J$20","v":0},{"$f":"Misc!$K$20","v":0},{"$f":"Misc!$L$20","v":0},{"$f":"Misc!$M$20","v":0},{"$f":"Misc!$N$20","v":0},{"$f":"Misc!$O$20","v":0},{"$f":"Misc!$P$20","v":0},{"$f":"Misc!$Q$20","v":0},0]
[19,null,"Income Taxes - Federal",null,{"$f":"'Function Summary'!$J19","v":97323.200348206738},{"$f":"Misc!$I$21","v":41478.532962218844},{"$f":"Misc!$J$21","v":13278.73770019883},{"$f":"Misc!$K$21","v":20695.359696325322},{"$f":"Misc!$L$21","v":8138.8429261431747},{"$f":"Misc!$M$21","v":9947.7003573882521},{"$f":"Misc!$N$21","v":3519.5915388466815},{"$f":"Misc!$O$21","v":264.43516708562174},{"$f":"Misc!$P$21","v":0},{"$f":"Misc!$Q$21","v":0},0]
[20,null,"Income Taxes - State",null,{"$f":"'Function Summary'!$J20","v":0},{"$f":"Misc!$I$22","v":0},{"$f":"Misc!$J$22","v":0},{"$f":"Misc!$K$22","v":0},{"$f":"Misc!$L$22","v":0},{"$f":"Misc!$M$22","v":0},{"$f":"Misc!$N$22","v":0},{"$f":"Misc!$O$22","v":0},{"$f":"Misc!$P$22","v":0},{"$f":"Misc!$Q$22","v":0},0]
[21,null,"Income Taxes Deferred",null,{"$f":"'Function Summary'!$J21","v":0},{"$f":"Misc!$I$23","v":0},{"$f":"Misc!$J$23","v":0},{"$f":"Misc!$K$23","v":0},{"$f":"Misc!$L$23","v":0},{"$f":"Misc!$M$23","v":0},{"$f":"Misc!$N$23","v":0},{"$f":"Misc!$O$23","v":0},{"$f":"Misc!$P$23","v":0},{"$f":"Misc!$Q$23","v":0},0]
[22,null,"Investment Tax Credit Adj",null,{"$f":"'Function Summary'!$J22","v":0},{"$f":"Misc!$I$24","v":0},{"$f":"Misc!$J$24","v":0},{"$f":"Misc!$K$24","v":0},{"$f":"Misc!$L$24","v":0},{"$f":"Misc!$M$24","v":0},{"$f":"Misc!$N$24","v":0},{"$f":"Misc!$O$24","v":0},{"$f":"Misc!$P$24","v":0},{"$f":"Misc!$Q$24","v":0},0]
[23,null,"Misc Revenues & Expense",null,{"$f":"'Function Summary'!$J23","v":0},{"$f":"Misc!$I$25","v":0},{"$f":"Misc!$J$25","v":0},{"$f":"Misc!$K$25","v":0},{"$f":"Misc!$L$25","v":0},{"$f":"Misc!$M$25","v":0},{"$f":"Misc!$N$25","v":0},{"$f":"Misc!$O$25","v":0},{"$f":"Misc!$P$25","v":0},{"$f":"Misc!$Q$25","v":0},0]
[24]
[25,null,"Total Operating Expenses",null,{"$f":"SUM(E15:E23)","v":1782743.7316061817},{"$f":"SUM(F15:F23)","v":788121.83864071476},265217.27924783569,361785.18014609325,136305.59620944969,{"$f":"SUM(J15:J23)","v":148978.1990505087},72796.179423382942,9539.4588881966956,0,0,{"$f":"ROUND(SUM(F25:N25)-E25,0)","v":0}]
[26]
[27]
[28,null,"Rate Base :"]
[29,null,"Electric Plant In Service",null,{"$f":"'Function Summary'!$J29","v":0},{"$f":"Misc!$I$33","v":0},{"$f":"Misc!$J$33","v":0},{"$f":"Misc!$K$33","v":0},{"$f":"Misc!$L$33","v":0},{"$f":"Misc!$M$33","v":0},{"$f":"Misc!$N$33","v":0},{"$f":"Misc!$O$33","v":0},{"$f":"Misc!$P$33","v":0},{"$f":"Misc!$Q$33","v":0},{"$f":"ROUND(SUM(F29:N29)-E29,0)","v":0}]
[30,null,"Plant Held For Future Use ",null,{"$f":"'Function Summary'!$J30","v":0},{"$f":"Misc!$I$34","v":0},{"$f":"Misc!$J$34","v":0},{"$f":"Misc!$K$34","v":0},{"$f":"Misc!$L$34","v":0},{"$f":"Misc!$M$34","v":0},{"$f":"Misc!$N$34","v":0},{"$f":"Misc!$O$34","v":0},{"$f":"Misc!$P$34","v":0},{"$f":"Misc!$Q$34","v":0},0]
[{"$f":"A30+1","v":31},null,"Electric Plant Acquisition Adj",null,{"$f":"'Function Summary'!$J31","v":0},{"$f":"Misc!$I$35","v":0},{"$f":"Misc!$J$35","v":0},{"$f":"Misc!$K$35","v":0},{"$f":"Misc!$L$35","v":0},{"$f":"Misc!$M$35","v":0},{"$f":"Misc!$N$35","v":0},{"$f":"Misc!$O$35","v":0},{"$f":"Misc!$P$35","v":0},{"$f":"Misc!$Q$35","v":0},0]
[32,null,"Nuclear Fuel",null,{"$f":"'Function Summary'!$J32","v":0},{"$f":"Misc!$I$36","v":0},{"$f":"Misc!$J$36","v":0},{"$f":"Misc!$K$36","v":0},{"$f":"Misc!$L$36","v":0},{"$f":"Misc!$M$36","v":0},{"$f":"Misc!$N$36","v":0},{"$f":"Misc!$O$36","v":0},{"$f":"Misc!$P$36","v":0},{"$f":"Misc!$Q$36","v":0},0]
[33,null,"Prepayments",null,{"$f":"'Function Summary'!$J33","v":0},{"$f":"Misc!$I$37","v":0},{"$f":"Misc!$J$37","v":0},{"$f":"Misc!$K$37","v":0},{"$f":"Misc!$L$37","v":0},{"$f":"Misc!$M$37","v":0},{"$f":"Misc!$N$37","v":0},{"$f":"Misc!$O$37","v":0},{"$f":"Misc!$P$37","v":0},{"$f":"Misc!$Q$37","v":0},0]
[34,null,"Fuel Stock",null,{"$f":"'Function Summary'!$J34","v":0},{"$f":"Misc!$I$38","v":0},{"$f":"Misc!$J$38","v":0},{"$f":"Misc!$K$38","v":0},{"$f":"Misc!$L$38","v":0},{"$f":"Misc!$M$38","v":0},{"$f":"Misc!$N$38","v":0},{"$f":"Misc!$O$38","v":0},{"$f":"Misc!$P$38","v":0},{"$f":"Misc!$Q$38","v":0},0]
[35,null,"Materials & Supplies",null,{"$f":"'Function Summary'!$J35","v":0},{"$f":"Misc!$I$39","v":0},{"$f":"Misc!$J$39","v":0},{"$f":"Misc!$K$39","v":0},{"$f":"Misc!$L$39","v":0},{"$f":"Misc!$M$39","v":0},{"$f":"Misc!$N$39","v":0},{"$f":"Misc!$O$39","v":0},{"$f":"Misc!$P$39","v":0},{"$f":"Misc!$Q$39","v":0},0]
[36,null,"Misc Deferred Debits",null,{"$f":"'Function Summary'!$J36","v":0},{"$f":"Misc!$I$40","v":0},{"$f":"Misc!$J$40","v":0},{"$f":"Misc!$K$40","v":0},{"$f":"Misc!$L$40","v":0},{"$f":"Misc!$M$40","v":0},{"$f":"Misc!$N$40","v":0},{"$f":"Misc!$O$40","v":0},{"$f":"Misc!$P$40","v":0},{"$f":"Misc!$Q$40","v":0},0]
[37,null,"Cash Working Capital",null,{"$f":"'Function Summary'!$J37","v":223483.43801659052},{"$f":"Misc!$I$41","v":99003.429607303144},{"$f":"Misc!$J$41","v":33406.553669977497},{"$f":"Misc!$K$41","v":45227.837404876169},{"$f":"Misc!$L$41","v":16994.658681295776},{"$f":"Misc!$M$41","v":18435.169894310395},{"$f":"Misc!$N$41","v":9185.9389080415222},{"$f":"Misc!$O$41","v":1229.8498507860311},{"$f":"Misc!$P$41","v":0},{"$f":"Misc!$Q$41","v":0},0]
[38,null,"Weatherization Loans",null,{"$f":"'Function Summary'!$J38","v":1957722.3254914517},{"$f":"Misc!$I$42","v":830612.68284431647},{"$f":"Misc!$J$42","v":264196.26970777725},{"$f":"Misc!$K$42","v":418596.18077362794},{"$f":"Misc!$L$42","v":165412.93822544997},{"$f":"Misc!$M$42","v":204512.50625643667},{"$f":"Misc!$N$42","v":69695.08146798001},{"$f":"Misc!$O$42","v":4696.6662158632098},{"$f":"Misc!$P$42","v":0},{"$f":"Misc!$Q$42","v":0},0]
[39,null,"Miscellaneous Rate Base",null,{"$f":"'Function Summary'!$J39","v":0},{"$f":"Misc!$I$43","v":0},{"$f":"Misc!$J$43","v":0},{"$f":"Misc!$K$43","v":0},{"$f":"Misc!$L$43","v":0},{"$f":"Misc!$M$43","v":0},{"$f":"Misc!$N$43","v":0},{"$f":"Misc!$O$43","v":0},{"$f":"Misc!$P$43","v":0},{"$f":"Misc!$Q$43","v":0},0]
[40]
[41,null,"Total Rate Base Additions",null,{"$f":"SUM(E29:E39)","v":2181205.7635080423},{"$f":"SUM(F29:F39)","v":929616.11245161959},297602.82337775477,463824.01817850413,182407.59690674575,{"$f":"SUM(J29:J39)","v":222947.67615074705},78881.020376021537,5926.5160666492411,0,0,{"$f":"ROUND(SUM(F41:N41)-E41,0)","v":0}]
[42]
[43,null,"Rate Base Deductions :"]
[44,null,"Accum Provision For Depreciation",null,{"$f":"'Function Summary'!$J44","v":0},{"$f":"Misc!$I$48","v":0},{"$f":"Misc!$J$48","v":0},{"$f":"Misc!$K$48","v":0},{"$f":"Misc!$L$48","v":0},{"$f":"Misc!$M$48","v":0},{"$f":"Misc!$N$48","v":0},{"$f":"Misc!$O$48","v":0},{"$f":"Misc!$P$48","v":0},{"$f":"Misc!$Q$48","v":0},{"$f":"ROUND(SUM(F44:N44)-E44,0)","v":0}]
[45,null,"Accum Provision For Amortization",null,{"$f":"'Function Summary'!$J45","v":0},{"$f":"Misc!$I$49","v":0},{"$f":"Misc!$J$49","v":0},{"$f":"Misc!$K$49","v":0},{"$f":"Misc!$L$49","v":0},{"$f":"Misc!$M$49","v":0},{"$f":"Misc!$N$49","v":0},{"$f":"Misc!$O$49","v":0},{"$f":"Misc!$P$49","v":0},{"$f":"Misc!$Q$49","v":0},0]
[46,null,"Accum Deferred Income Taxes",null,{"$f":"'Function Summary'!$J46","v":0},{"$f":"Misc!$I$50","v":0},{"$f":"Misc!$J$50","v":0},{"$f":"Misc!$K$50","v":0},{"$f":"Misc!$L$50","v":0},{"$f":"Misc!$M$50","v":0},{"$f":"Misc!$N$50","v":0},{"$f":"Misc!$O$50","v":0},{"$f":"Misc!$P$50","v":0},{"$f":"Misc!$Q$50","v":0},0]
[{"$f":"A46+1","v":47},null,"Unamortized ITC",null,{"$f":"'Function Summary'!$J47","v":0},{"$f":"Misc!$I$51","v":0},{"$f":"Misc!$J$51","v":0},{"$f":"Misc!$K$51","v":0},{"$f":"Misc!$L$51","v":0},{"$f":"Misc!$M$51","v":0},{"$f":"Misc!$N$51","v":0},{"$f":"Misc!$O$51","v":0},{"$f":"Misc!$P$51","v":0},{"$f":"Misc!$Q$51","v":0},0]
[48,null,"Customer Advance For Construction",null,{"$f":"'Function Summary'!$J48","v":0},{"$f":"Misc!$I$52","v":0},{"$f":"Misc!$J$52","v":0},{"$f":"Misc!$K$52","v":0},{"$f":"Misc!$L$52","v":0},{"$f":"Misc!$M$52","v":0},{"$f":"Misc!$N$52","v":0},{"$f":"Misc!$O$52","v":0},{"$f":"Misc!$P$52","v":0},{"$f":"Misc!$Q$52","v":0},0]
[49,null,"Customer Service Deposits",null,{"$f":"'Function Summary'!$J49","v":0},{"$f":"Misc!$I$53","v":0},{"$f":"Misc!$J$53","v":0},{"$f":"Misc!$K$53","v":0},{"$f":"Misc!$L$53","v":0},{"$f":"Misc!$M$53","v":0},{"$f":"Misc!$N$53","v":0},{"$f":"Misc!$O$53","v":0},{"$f":"Misc!$P$53","v":0},{"$f":"Misc!$Q$53","v":0},0]
[50,null,"Misc Rate Base Deductions",null,{"$f":"'Function Summary'!$J50","v":0},{"$f":"Misc!$I$54","v":0},{"$f":"Misc!$J$54","v":0},{"$f":"Misc!$K$54","v":0},{"$f":"Misc!$L$54","v":0},{"$f":"Misc!$M$54","v":0},{"$f":"Misc!$N$54","v":0},{"$f":"Misc!$O$54","v":0},{"$f":"Misc!$P$54","v":0},{"$f":"Misc!$Q$54","v":0},0]
[51]
[52,null,"Total Rate Base Deductions",null,{"$f":"SUM(E44:E50)","v":0},{"$f":"SUM(F44:F50)","v":0},0,0,0,{"$f":"SUM(J44:J50)","v":0},0,0,0,0,{"$f":"ROUND(SUM(F52:N52)-E52,0)","v":0}]
[53]
[54,null,"Total Rate Base",null,{"$f":"E41+E52","v":2181205.7635080423},{"$f":"F41+F52","v":929616.11245161959},297602.82337775477,463824.01817850413,182407.59690674575,{"$f":"J41+J52","v":222947.67615074705},78881.020376021537,5926.5160666492411,0,0,{"$f":"ROUND(SUM(F54:N54)-E54,0)","v":0}]
[55]
[56]
[57,null,"Return On Rate Base",{"$f":"ActualROR","v":4.602925444100011E-2},{"$f":"$D$57*E54","v":100399.2750766876},{"$f":"$D$57*F54","v":42789.536572488971},13698.43607961469,21349.473748585428,8396.0856899919854,{"$f":"$D$57*J54","v":10262.115312572429},3630.8345574536097,272.79311598047309,0,0,{"$f":"ROUND(SUM(F57:N57)-E57,0)","v":0}]
[58,null,"Total Operating Expenses",null,{"$f":"E25","v":1782743.7316061817},{"$f":"F25","v":788121.83864071476},265217.27924783569,361785.18014609325,136305.59620944969,{"$f":"J25","v":148978.1990505087},72796.179423382942,9539.4588881966956,0,0,{"$f":"ROUND(SUM(F58:N58)-E58,0)","v":0}]
[59,null,"Revenue Credits",null,{"$f":"'Function Summary'!$J$59","v":2967489.5348671526},{"$f":"Misc!$I$99","v":1259665.2923236147},{"$f":"Misc!$J$99","v":400453.99567915895},{"$f":"Misc!$K$99","v":634144.95540286286},{"$f":"Misc!$L$99","v":250590.49135904509},{"$f":"Misc!$M$99","v":309840.40429212194},{"$f":"Misc!$N$99","v":105642.08813682896},{"$f":"Misc!$O$99","v":7152.3076735201394},{"$f":"Misc!$P$99","v":0},{"$f":"Misc!$Q$99","v":0},{"$f":"ROUND(SUM(F59:N59)-E59,0)","v":0}]
[60]
[61,null,"Total Revenue Requirements",null,{"$f":"E57+E58+E59","v":4850632.5415500216},{"$f":"F57+F58+F59","v":2090576.6675368184},679369.71100660926,1017279.6092975416,395292.17325848679,{"$f":"J57+J58+J59","v":469080.71865520306},182069.10211766552,16964.559677697311,0,0,{"$f":"ROUND(SUM(F61:N61)-E61,0)","v":0}]
[62,null,null,null,null,null,null,null,null,null,null,null,null,null,{"$f":"ROUND(SUM(F62:N62)-E62,0)","v":0}]
[63]
[64,null,"Return On Rate Base @ Target ROR",{"$f":"TargetROR","v":7.7999997127089077E-2},{"$f":"$D64*E54","v":170134.04328721744},{"$f":"$D64*F54","v":72510.054100522044},23213.019368478472,36178.272085398232,14227.792034685392,{"$f":"$D64*J54","v":17389.918099249455},6152.7193627115348,462.26823617228808,0,0,{"$f":"ROUND(SUM(F64:N64)-E64,0)","v":0}]
[65,null,"Total Operating Expenses Adjusted for Taxes",null,{"$f":"E58+((E64-E57)*(1/Net_to_Gross_Factor))-(E64-E57)","v":1825700.6914067212},{"$f":"F58+((F64-F57)*(1/Net_to_Gross_Factor))-(F64-F57)","v":806429.82344463014},271078.30929564033,370919.79277033923,139897.95596694178,{"$f":"J58+((J64-J57)*(1/Net_to_Gross_Factor))-(J64-J57)","v":153368.96058353729},74349.672852571661,9656.1764930607369,0,0,{"$f":"ROUND(SUM(F65:N65)-E65,0)","v":0}]
[66,null,"Revenue Credits",null,{"$f":"E59","v":2967489.5348671526},{"$f":"F59","v":1259665.2923236147},400453.99567915895,634144.95540286286,250590.49135904509,{"$f":"J59","v":309840.40429212194},105642.08813682896,7152.3076735201394,0,0,{"$f":"ROUND(SUM(F66:N66)-E66,0)","v":0}]
[67]
[68,null,"Total Target Revenue Requirements",null,{"$f":"SUM(E64:E66)","v":4963324.2695610914},{"$f":"SUM(F64:F66)","v":2138605.1698687668},694745.32434327772,1041243.0202586004,404716.23936067225,{"$f":"SUM(J64:J66)","v":480599.28297490871},186144.48035211215,17270.752402753162,0,0,{"$f":"ROUND(SUM(F68:N68)-E68,0)","v":0}]

{"sheet":"G+T+D+R+M","index":11,"n_rows":1357,"n_cols":18,"rows_kept":1357,"cut":false,"hidden":false,"merged":[]}
[1,null,null,null,"Results of Operations - Gen+Tran+Dist+Rtl+Misc - TOTAL Unbundled"]
[2,{"$f":"Inputs!$C$3","v":"PacifiCorp"}]
[3,"Cost Of Service By Rate Schedule"]
[4,{"$f":"Inputs!$C$4","v":"State of Washington"}]
[5,{"$f":"+Method&\" - \"&IF(PeakMethod=1,\"(Coincident Peaks)\",IF(PeakMethod=2,\"(200 Top Hours)\",\"(100 Summer, 100 Winter Hours)\"))&\" - \"&TEXT(Demand,\"0%\")&\"D\"&\" / \"&TEXT(Engy,\"0%\")&\"E\"","v":"WCA Method - (100 Summer, 100 Winter Hours) - 38%D / 62%E"}]
[6,{"$f":"Inputs!$C$5","v":"12 Months Ending June 2012"}]
[7]
[8]
[9,null,"A",null,"B","C",null,"D","E","F","G","H","I","J","K","L","M"]
[10,null,null,null,null,null,null,{"$f":"'Hot Sheet'!$H$10","v":"Washington"},null,{"$f":"'Hot Sheet'!$J$10","v":"Small General"},{"$f":"'Hot Sheet'!$K$10","v":"Large General"},{"$f":"'Hot Sheet'!$L$10","v":"Large General"},{"$f":"'Hot Sheet'!$M$10","v":"Large General"},{"$f":"'Hot Sheet'!$N$10","v":"Agricultural"},{"$f":"'Hot Sheet'!$O$10","v":"Street & Area"},null,null,"Chk Total"]
[11,null,null,null,null,"COS",null,{"$f":"'Hot Sheet'!$H$11","v":"Jurisdiction"},{"$f":"'Hot Sheet'!$I$11","v":"Residential"},{"$f":"'Hot Sheet'!$J$11","v":"Service"},{"$f":"'Hot Sheet'!$K$11","v":"Service <1,000 kW"},{"$f":"'Hot Sheet'!$L$11","v":"Service >1,000 kW"},{"$f":"'Hot Sheet'!$M$11","v":"Dedicated Facilities"},{"$f":"'Hot Sheet'!$N$11","v":"Pumping"},{"$f":"'Hot Sheet'!$O$11","v":"Lighting"}]
[12,null,null,null,"DESCRIPTION ","Factor",null,{"$f":"'Hot Sheet'!$H$12","v":"Normalized"},{"$f":"'Hot Sheet'!$I$12","v":"Schedule 16"},{"$f":"'Hot Sheet'!$J$12","v":"Schedule 24"},{"$f":"'Hot Sheet'!$K$12","v":"Schedule 36"},{"$f":"'Hot Sheet'!$L$12","v":"Schedule 48T"},{"$f":"'Hot Sheet'!$M$12","v":"Schedule 48T"},{"$f":"'Hot Sheet'!$N$12","v":"Schedule 40"},{"$f":"'Hot Sheet'!$O$12","v":"Sch. 15,51-54,57"},null,null,{"$f":"ROUND(SUM(R14:R1328),0)","v":0}]
[13]
[14,null,null,null,"Operating Revenues",null,null,{"$f":"SUM(I14:Q14)","v":327860485.11736882},{"$f":"I186","v":145225650.00218713},{"$f":"J186","v":48615379.576557629},66437492.113634937,25046773.595299184,{"$f":"M186","v":27426673.610700969},13360573.227929227,1747942.9910596947,0,0,{"$f":"ROUND(SUM(I14:Q14)-H14,0)","v":0}]
[15]
[16,null,null,null,"Operating Expenses"]
[17,null,null,null,"Operation & Maintenance Expenses",null,null,{"$f":"SUM(I17:Q17)","v":217526010.15460241},{"$f":"+Distribution!I17+Transmission!I17+Generation!I17+Retail!I17+Misc!I17","v":97622759.806040689},{"$f":"+Distribution!J17+Transmission!J17+Generation!J17+Retail!J17+Misc!J17","v":29373033.778226309},{"$f":"+Distribution!K17+Transmission!K17+Generation!K17+Retail!K17+Misc!K17","v":43886720.013314724},{"$f":"+Distribution!L17+Transmission!L17+Generation!L17+Retail!L17+Misc!L17","v":17255424.608427092},{"$f":"+Distribution!M17+Transmission!M17+Generation!M17+Retail!M17+Misc!M17","v":20641897.30835925},{"$f":"+Distribution!N17+Transmission!N17+Generation!N17+Retail!N17+Misc!N17","v":7853711.5771936113},{"$f":"+Distribution!O17+Transmission!O17+Generation!O17+Retail!O17+Misc!O17","v":892463.0630407359},{"$f":"+Distribution!P17+Transmission!P17+Generation!P17+Retail!P17+Misc!P17","v":0},{"$f":"+Distribution!Q17+Transmission!Q17+Generation!Q17+Retail!Q17+Misc!Q17","v":0},{"$f":"ROUND(SUM(I17:Q17)-H17,0)","v":0}]
[18,null,null,null,"Depreciation Expense",null,null,41310105.544159748,{"$f":"+Distribution!I18+Transmission!I18+Generation!I18+Retail!I18+Misc!I18","v":19709818.072534334},{"$f":"+Distribution!J18+Transmission!J18+Generation!J18+Retail!J18+Misc!J18","v":5764107.5789345615},{"$f":"+Distribution!K18+Transmission!K18+Generation!K18+Retail!K18+Misc!K18","v":7865055.4518888313},{"$f":"+Distribution!L18+Transmission!L18+Generation!L18+Retail!L18+Misc!L18","v":3024586.2561922176},{"$f":"+Distribution!M18+Transmission!M18+Generation!M18+Retail!M18+Misc!M18","v":3064682.9561413042},{"$f":"+Distribution!N18+Transmission!N18+Generation!N18+Retail!N18+Misc!N18","v":1623768.8006279345},{"$f":"+Distribution!O18+Transmission!O18+Generation!O18+Retail!O18+Misc!O18","v":258086.42784056481},{"$f":"+Distribution!P18+Transmission!P18+Generation!P18+Retail!P18+Misc!P18","v":0},{"$f":"+Distribution!Q18+Transmission!Q18+Generation!Q18+Retail!Q18+Misc!Q18","v":0},0]
[19,null,null,null,"Amortization Expense",null,null,5547662.1601642752,{"$f":"+Distribution!I19+Transmission!I19+Generation!I19+Retail!I19+Misc!I19","v":2595895.9347757259},{"$f":"+Distribution!J19+Transmission!J19+Generation!J19+Retail!J19+Misc!J19","v":755292.81394347409},{"$f":"+Distribution!K19+Transmission!K19+Generation!K19+Retail!K19+Misc!K19","v":1062360.499437979},{"$f":"+Distribution!L19+Transmission!L19+Generation!L19+Retail!L19+Misc!L19","v":416648.56525249081},{"$f":"+Distribution!M19+Transmission!M19+Generation!M19+Retail!M19+Misc!M19","v":494160.51632998174},{"$f":"+Distribution!N19+Transmission!N19+Generation!N19+Retail!N19+Misc!N19","v":196867.71112194128},{"$f":"+Distribution!O19+Transmission!O19+Generation!O19+Retail!O19+Misc!O19","v":26436.119302683685},{"$f":"+Distribution!P19+Transmission!P19+Generation!P19+Retail!P19+Misc!P19","v":0},{"$f":"+Distribution!Q19+Transmission!Q19+Generation!Q19+Retail!Q19+Misc!Q19","v":0},0]
[20,null,null,null,"Taxes Other Than Income",null,null,19982776.421377905,{"$f":"+Distribution!I20+Transmission!I20+Generation!I20+Retail!I20+Misc!I20","v":9476973.9968923088},{"$f":"+Distribution!J20+Transmission!J20+Generation!J20+Retail!J20+Misc!J20","v":2774839.0103689763},{"$f":"+Distribution!K20+Transmission!K20+Generation!K20+Retail!K20+Misc!K20","v":3838240.7194688423},{"$f":"+Distribution!L20+Transmission!L20+Generation!L20+Retail!L20+Misc!L20","v":1477002.4205355959},{"$f":"+Distribution!M20+Transmission!M20+Generation!M20+Retail!M20+Misc!M20","v":1546342.2368163802},{"$f":"+Distribution!N20+Transmission!N20+Generation!N20+Retail!N20+Misc!N20","v":773770.12839618407},{"$f":"+Distribution!O20+Transmission!O20+Generation!O20+Retail!O20+Misc!O20","v":95607.90889962035},{"$f":"+Distribution!P20+Transmission!P20+Generation!P20+Retail!P20+Misc!P20","v":0},{"$f":"+Distribution!Q20+Transmission!Q20+Generation!Q20+Retail!Q20+Misc!Q20","v":0},0]
[21,null,null,null,"Income Taxes - Federal",null,null,-10210352.282270128,{"$f":"+Distribution!I21+Transmission!I21+Generation!I21+Retail!I21+Misc!I21","v":-3923967.6485184063},{"$f":"+Distribution!J21+Transmission!J21+Generation!J21+Retail!J21+Misc!J21","v":-1362083.7797038245},{"$f":"+Distribution!K21+Transmission!K21+Generation!K21+Retail!K21+Misc!K21","v":-2356542.4394608065},{"$f":"+Distribution!L21+Transmission!L21+Generation!L21+Retail!L21+Misc!L21","v":-947011.41225084092},{"$f":"+Distribution!M21+Transmission!M21+Generation!M21+Retail!M21+Misc!M21","v":-1263276.424036463},{"$f":"+Distribution!N21+Transmission!N21+Generation!N21+Retail!N21+Misc!N21","v":-345877.95782600931},{"$f":"+Distribution!O21+Transmission!O21+Generation!O21+Retail!O21+Misc!O21","v":-11592.620473778537},{"$f":"+Distribution!P21+Transmission!P21+Generation!P21+Retail!P21+Misc!P21","v":0},{"$f":"+Distribution!Q21+Transmission!Q21+Generation!Q21+Retail!Q21+Misc!Q21","v":0},0]
[22,null,null,null,"Income Taxes - State",null,null,0,{"$f":"+Distribution!I22+Transmission!I22+Generation!I22+Retail!I22+Misc!I22","v":0},{"$f":"+Distribution!J22+Transmission!J22+Generation!J22+Retail!J22+Misc!J22","v":0},{"$f":"+Distribution!K22+Transmission!K22+Generation!K22+Retail!K22+Misc!K22","v":0},{"$f":"+Distribution!L22+Transmission!L22+Generation!L22+Retail!L22+Misc!L22","v":0},{"$f":"+Distribution!M22+Transmission!M22+Generation!M22+Retail!M22+Misc!M22","v":0},{"$f":"+Distribution!N22+Transmission!N22+Generation!N22+Retail!N22+Misc!N22","v":0},{"$f":"+Distribution!O22+Transmission!O22+Generation!O22+Retail!O22+Misc!O22","v":0},{"$f":"+Distribution!P22+Transmission!P22+Generation!P22+Retail!P22+Misc!P22","v":0},{"$f":"+Distribution!Q22+Transmission!Q22+Generation!Q22+Retail!Q22+Misc!Q22","v":0},0]
[23,null,null,null,"Income Taxes Deferred",null,null,16414669.737428367,{"$f":"+Distribution!I23+Transmission!I23+Generation!I23+Retail!I23+Misc!I23","v":7115555.0775692817},{"$f":"+Distribution!J23+Transmission!J23+Generation!J23+Retail!J23+Misc!J23","v":2229070.8417855999},{"$f":"+Distribution!K23+Transmission!K23+Generation!K23+Retail!K23+Misc!K23","v":3444214.1689886129},{"$f":"+Distribution!L23+Transmission!L23+Generation!L23+Retail!L23+Misc!L23","v":1354724.3640058474},{"$f":"+Distribution!M23+Transmission!M23+Generation!M23+Retail!M23+Misc!M23","v":1628797.7035050574},{"$f":"+Distribution!N23+Transmission!N23+Generation!N23+Retail!N23+Misc!N23","v":595135.5823947395},{"$f":"+Distribution!O23+Transmission!O23+Generation!O23+Retail!O23+Misc!O23","v":47171.999179228173},{"$f":"+Distribution!P23+Transmission!P23+Generation!P23+Retail!P23+Misc!P23","v":0},{"$f":"+Distribution!Q23+Transmission!Q23+Generation!Q23+Retail!Q23+Misc!Q23","v":0},0]
[24,null,null,null,"Investment Tax Credit Adj",null,null,0,{"$f":"+Distribution!I24+Transmission!I24+Generation!I24+Retail!I24+Misc!I24","v":0},{"$f":"+Distribution!J24+Transmission!J24+Generation!J24+Retail!J24+Misc!J24","v":0},{"$f":"+Distribution!K24+Transmission!K24+Generation!K24+Retail!K24+Misc!K24","v":0},{"$f":"+Distribution!L24+Transmission!L24+Generation!L24+Retail!L24+Misc!L24","v":0},{"$f":"+Distribution!M24+Transmission!M24+Generation!M24+Retail!M24+Misc!M24","v":0},{"$f":"+Distribution!N24+Transmission!N24+Generation!N24+Retail!N24+Misc!N24","v":0},{"$f":"+Distribution!O24+Transmission!O24+Generation!O24+Retail!O24+Misc!O24","v":0},{"$f":"+Distribution!P24+Transmission!P24+Generation!P24+Retail!P24+Misc!P24","v":0},{"$f":"+Distribution!Q24+Transmission!Q24+Generation!Q24+Retail!Q24+Misc!Q24","v":0},0]
[25,null,null,null,"Misc Revenues & Expense",null,null,-842347.30266372953,{"$f":"+Distribution!I25+Transmission!I25+Generation!I25+Retail!I25+Misc!I25","v":-354408.42053986777},{"$f":"+Distribution!J25+Transmission!J25+Generation!J25+Retail!J25+Misc!J25","v":-114325.33017483602},{"$f":"+Distribution!K25+Transmission!K25+Generation!K25+Retail!K25+Misc!K25","v":-181213.41340377001},{"$f":"+Distribution!L25+Transmission!L25+Generation!L25+Retail!L25+Misc!L25","v":-71614.970843513365},{"$f":"+Distribution!M25+Transmission!M25+Generation!M25+Retail!M25+Misc!M25","v":-88562.451659390732},{"$f":"+Distribution!N25+Transmission!N25+Generation!N25+Retail!N25+Misc!N25","v":-30185.631758562926},{"$f":"+Distribution!O25+Transmission!O25+Generation!O25+Retail!O25+Misc!O25","v":-2037.0842837886614},{"$f":"+Distribution!P25+Transmission!P25+Generation!P25+Retail!P25+Misc!P25","v":0},{"$f":"+Distribution!Q25+Transmission!Q25+Generation!Q25+Retail!Q25+Misc!Q25","v":0},0]
[26]
[27,null,null,null,"Total Operating Expenses",null,null,{"$f":"SUM(H17:H25)","v":289728524.4327988},{"$f":"+Distribution!I27+Transmission!I27+Generation!I27+Retail!I27+Misc!I27","v":132242626.81875408},{"$f":"+Distribution!J27+Transmission!J27+Generation!J27+Retail!J27+Misc!J27","v":39419934.913380265},{"$f":"+Distribution!K27+Transmission!K27+Generation!K27+Retail!K27+Misc!K27","v":57558835.000234395},{"$f":"+Distribution!L27+Transmission!L27+Generation!L27+Retail!L27+Misc!L27","v":22509759.831318885},{"$f":"+Distribution!M27+Transmission!M27+Generation!M27+Retail!M27+Misc!M27","v":26024041.845456123},{"$f":"+Distribution!N27+Transmission!N27+Generation!N27+Retail!N27+Misc!N27","v":10667190.210149838},{"$f":"+Distribution!O27+Transmission!O27+Generation!O27+Retail!O27+Misc!O27","v":1306135.8135052656},{"$f":"+Distribution!P27+Transmission!P27+Generation!P27+Retail!P27+Misc!P27","v":0},{"$f":"+Distribution!Q27+Transmission!Q27+Generation!Q27+Retail!Q27+Misc!Q27","v":0},{"$f":"ROUND(SUM(I27:Q27)-H27,0)","v":0}]
[28]
[29,null,null,null,"Operating Revenue For Return",null,null,{"$f":"H14-H27","v":38131960.684570014},{"$f":"I14-I27","v":12983023.183433056},9195444.6631773636,8878657.1134005412,2537013.7639802992,{"$f":"M14-M27","v":1402631.7652448453},2693383.0177793894,441807.17755442904,0,0,{"$f":"ROUND(SUM(I29:Q29)-H29,0)","v":0}]
[30]
[31]
[32,null,null,null,"Rate Base :"]
[33,null,null,null,"Electric Plant In Service",null,null,{"$f":"SUM(I33:Q33)","v":1655504559.0608952},{"$f":"+Distribution!I33+Transmission!I33+Generation!I33+Retail!I33+Misc!I33","v":783253335.20916152},{"$f":"+Distribution!J33+Transmission!J33+Generation!J33+Retail!J33+Misc!J33","v":230405466.59949923},{"$f":"+Distribution!K33+Transmission!K33+Generation!K33+Retail!K33+Misc!K33","v":318245233.62398398},{"$f":"+Distribution!L33+Transmission!L33+Generation!L33+Retail!L33+Misc!L33","v":122764804.24215172},{"$f":"+Distribution!M33+Transmission!M33+Generation!M33+Retail!M33+Misc!M33","v":127075789.22731778},{"$f":"+Distribution!N33+Transmission!N33+Generation!N33+Retail!N33+Misc!N33","v":64536359.709591046},{"$f":"+Distribution!O33+Transmission!O33+Generation!O33+Retail!O33+Misc!O33","v":9223570.4491897654},{"$f":"+Distribution!P33+Transmission!P33+Generation!P33+Retail!P33+Misc!P33","v":0},{"$f":"+Distribution!Q33+Transmission!Q33+Generation!Q33+Retail!Q33+Misc!Q33","v":0},{"$f":"ROUND(SUM(I33:Q33)-H33,0)","v":0}]
[34,null,null,null,"Plant Held For Future Use ",null,null,43755.273337945968,{"$f":"+Distribution!I34+Transmission!I34+Generation!I34+Retail!I34+Misc!I34","v":18564.269560901212},{"$f":"+Distribution!J34+Transmission!J34+Generation!J34+Retail!J34+Misc!J34","v":5904.8108331847106},{"$f":"+Distribution!K34+Transmission!K34+Generation!K34+Retail!K34+Misc!K34","v":9355.6629913654779},{"$f":"+Distribution!L34+Transmission!L34+Generation!L34+Retail!L34+Misc!L34","v":3696.9943241927531},{"$f":"+Distribution!M34+Transmission!M34+Generation!M34+Retail!M34+Misc!M34","v":4570.8732519216728},{"$f":"+Distribution!N34+Transmission!N34+Generation!N34+Retail!N34+Misc!N34","v":1557.6914561549725},{"$f":"+Distribution!O34+Transmission!O34+Generation!O34+Retail!O34+Misc!O34","v":104.97092022516674},{"$f":"+Distribution!P34+Transmission!P34+Generation!P34+Retail!P34+Misc!P34","v":0},{"$f":"+Distribution!Q34+Transmission!Q34+Generation!Q34+Retail!Q34+Misc!Q34","v":0},0]
[35,null,null,null,"Electric Plant Acquisition Adj",null,null,0,{"$f":"+Distribution!I35+Transmission!I35+Generation!I35+Retail!I35+Misc!I35","v":0},{"$f":"+Distribution!J35+Transmission!J35+Generation!J35+Retail!J35+Misc!J35","v":0},{"$f":"+Distribution!K35+Transmission!K35+Generation!K35+Retail!K35+Misc!K35","v":0},{"$f":"+Distribution!L35+Transmission!L35+Generation!L35+Retail!L35+Misc!L35","v":0},{"$f":"+Distribution!M35+Transmission!M35+Generation!M35+Retail!M35+Misc!M35","v":0},{"$f":"+Distribution!N35+Transmission!N35+Generation!N35+Retail!N35+Misc!N35","v":0},{"$f":"+Distribution!O35+Transmission!O35+Generation!O35+Retail!O35+Misc!O35","v":0},{"$f":"+Distribution!P35+Transmission!P35+Generation!P35+Retail!P35+Misc!P35","v":0},{"$f":"+Distribution!Q35+Transmission!Q35+Generation!Q35+Retail!Q35+Misc!Q35","v":0},0]
[36,null,null,null,"Nuclear Fuel",null,null,0,{"$f":"+Distribution!I36+Transmission!I36+Generation!I36+Retail!I36+Misc!I36","v":0},{"$f":"+Distribution!J36+Transmission!J36+Generation!J36+Retail!J36+Misc!J36","v":0},{"$f":"+Distribution!K36+Transmission!K36+Generation!K36+Retail!K36+Misc!K36","v":0},{"$f":"+Distribution!L36+Transmission!L36+Generation!L36+Retail!L36+Misc!L36","v":0},{"$f":"+Distribution!M36+Transmission!M36+Generation!M36+Retail!M36+Misc!M36","v":0},{"$f":"+Distribution!N36+Transmission!N36+Generation!N36+Retail!N36+Misc!N36","v":0},{"$f":"+Distribution!O36+Transmission!O36+Generation!O36+Retail!O36+Misc!O36","v":0},{"$f":"+Distribution!P36+Transmission!P36+Generation!P36+Retail!P36+Misc!P36","v":0},{"$f":"+Distribution!Q36+Transmission!Q36+Generation!Q36+Retail!Q36+Misc!Q36","v":0},0]
[37,null,null,null,"Prepayments",null,null,-1.0372605174779893E-7,{"$f":"+Distribution!I37+Transmission!I37+Generation!I37+Retail!I37+Misc!I37","v":-5.2916329287063348E-8},{"$f":"+Distribution!J37+Transmission!J37+Generation!J37+Retail!J37+Misc!J37","v":-1.4046644917511982E-8},{"$f":"+Distribution!K37+Transmission!K37+Generation!K37+Retail!K37+Misc!K37","v":-1.7393937491645894E-8},{"$f":"+Distribution!L37+Transmission!L37+Generation!L37+Retail!L37+Misc!L37","v":-6.8365757146545475E-9},{"$f":"+Distribution!M37+Transmission!M37+Generation!M37+Retail!M37+Misc!M37","v":-8.4041236472997508E-9},{"$f":"+Distribution!N37+Transmission!N37+Generation!N37+Retail!N37+Misc!N37","v":-3.4321874558261701E-9},{"$f":"+Distribution!O37+Transmission!O37+Generation!O37+Retail!O37+Misc!O37","v":-6.962532337972223E-10},{"$f":"+Distribution!P37+Transmission!P37+Generation!P37+Retail!P37+Misc!P37","v":0},{"$f":"+Distribution!Q37+Transmission!Q37+Generation!Q37+Retail!Q37+Misc!Q37","v":0},0]
[38,null,null,null,"Fuel Stock",null,null,-1.5174737200140956E-7,{"$f":"+Distribution!I38+Transmission!I38+Generation!I38+Retail!I38+Misc!I38","v":-6.4382619604148588E-8},{"$f":"+Distribution!J38+Transmission!J38+Generation!J38+Retail!J38+Misc!J38","v":-2.0478435117537233E-8},{"$f":"+Distribution!K38+Transmission!K38+Generation!K38+Retail!K38+Misc!K38","v":-3.2446312500563224E-8},{"$f":"+Distribution!L38+Transmission!L38+Generation!L38+Retail!L38+Misc!L38","v":-1.2821521389373937E-8},{"$f":"+Distribution!M38+Transmission!M38+Generation!M38+Retail!M38+Misc!M38","v":-1.5852215077562388E-8},{"$f":"+Distribution!N38+Transmission!N38+Generation!N38+Retail!N38+Misc!N38","v":-5.4022193630218616E-9},{"$f":"+Distribution!O38+Transmission!O38+Generation!O38+Retail!O38+Misc!O38","v":-3.6404894920230039E-10},{"$f":"+Distribution!P38+Transmission!P38+Generation!P38+Retail!P38+Misc!P38","v":0},{"$f":"+Distribution!Q38+Transmission!Q38+Generation!Q38+Retail!Q38+Misc!Q38","v":0},0]
[39,null,null,null,"Materials & Supplies",null,null,1.4560635463567448E-4,{"$f":"+Distribution!I39+Transmission!I39+Generation!I39+Retail!I39+Misc!I39","v":6.6961348840347408E-5},{"$f":"+Distribution!J39+Transmission!J39+Generation!J39+Retail!J39+Misc!J39","v":2.0119481766901012E-5},{"$f":"+Distribution!K39+Transmission!K39+Generation!K39+Retail!K39+Misc!K39","v":2.8867681504712828E-5},{"$f":"+Distribution!L39+Transmission!L39+Generation!L39+Retail!L39+Misc!L39","v":1.1206791422810681E-5},{"$f":"+Distribution!M39+Transmission!M39+Generation!M39+Retail!M39+Misc!M39","v":1.2192477571940411E-5},{"$f":"+Distribution!N39+Transmission!N39+Generation!N39+Retail!N39+Misc!N39","v":5.5686636863727762E-6},{"$f":"+Distribution!O39+Transmission!O39+Generation!O39+Retail!O39+Misc!O39","v":6.8990984258938614E-7},{"$f":"+Distribution!P39+Transmission!P39+Generation!P39+Retail!P39+Misc!P39","v":0},{"$f":"+Distribution!Q39+Transmission!Q39+Generation!Q39+Retail!Q39+Misc!Q39","v":0},0]
[40,null,null,null,"Misc Deferred Debits",null,null,14766733.281699954,{"$f":"+Distribution!I40+Transmission!I40+Generation!I40+Retail!I40+Misc!I40","v":6265156.0889158454},{"$f":"+Distribution!J40+Transmission!J40+Generation!J40+Retail!J40+Misc!J40","v":1992783.0407795217},{"$f":"+Distribution!K40+Transmission!K40+Generation!K40+Retail!K40+Misc!K40","v":3157392.6872753608},{"$f":"+Distribution!L40+Transmission!L40+Generation!L40+Retail!L40+Misc!L40","v":1247678.850219148},{"$f":"+Distribution!M40+Transmission!M40+Generation!M40+Retail!M40+Misc!M40","v":1542599.57775303},{"$f":"+Distribution!N40+Transmission!N40+Generation!N40+Retail!N40+Misc!N40","v":525696.96206823189},{"$f":"+Distribution!O40+Transmission!O40+Generation!O40+Retail!O40+Misc!O40","v":35426.074688816159},{"$f":"+Distribution!P40+Transmission!P40+Generation!P40+Retail!P40+Misc!P40","v":0},{"$f":"+Distribution!Q40+Transmission!Q40+Generation!Q40+Retail!Q40+Misc!Q40","v":0},0]
[41,null,null,null,"Cash Working Capital",null,null,28493963.911447987,{"$f":"+Distribution!I41+Transmission!I41+Generation!I41+Retail!I41+Misc!I41","v":12900301.860037792},{"$f":"+Distribution!J41+Transmission!J41+Generation!J41+Retail!J41+Misc!J41","v":3858212.9113307782},{"$f":"+Distribution!K41+Transmission!K41+Generation!K41+Retail!K41+Misc!K41","v":5692411.9623585427},{"$f":"+Distribution!L41+Transmission!L41+Generation!L41+Retail!L41+Misc!L41","v":2234162.8952165265},{"$f":"+Distribution!M41+Transmission!M41+Generation!M41+Retail!M41+Misc!M41","v":2634999.2228814252},{"$f":"+Distribution!N41+Transmission!N41+Generation!N41+Retail!N41+Misc!N41","v":1041207.7542339552},{"$f":"+Distribution!O41+Transmission!O41+Generation!O41+Retail!O41+Misc!O41","v":132667.30538896844},{"$f":"+Distribution!P41+Transmission!P41+Generation!P41+Retail!P41+Misc!P41","v":0},{"$f":"+Distribution!Q41+Transmission!Q41+Generation!Q41+Retail!Q41+Misc!Q41","v":0},0]
[42,null,null,null,"Weatherization Loans",null,null,1957722.3254914517,{"$f":"+Distribution!I42+Transmission!I42+Generation!I42+Retail!I42+Misc!I42","v":830612.68284431647},{"$f":"+Distribution!J42+Transmission!J42+Generation!J42+Retail!J42+Misc!J42","v":264196.26970777725},{"$f":"+Distribution!K42+Transmission!K42+Generation!K42+Retail!K42+Misc!K42","v":418596.18077362794},{"$f":"+Distribution!L42+Transmission!L42+Generation!L42+Retail!L42+Misc!L42","v":165412.93822544997},{"$f":"+Distribution!M42+Transmission!M42+Generation!M42+Retail!M42+Misc!M42","v":204512.50625643667},{"$f":"+Distribution!N42+Transmission!N42+Generation!N42+Retail!N42+Misc!N42","v":69695.08146798001},{"$f":"+Distribution!O42+Transmission!O42+Generation!O42+Retail!O42+Misc!O42","v":4696.6662158632098},{"$f":"+Distribution!P42+Transmission!P42+Generation!P42+Retail!P42+Misc!P42","v":0},{"$f":"+Distribution!Q42+Transmission!Q42+Generation!Q42+Retail!Q42+Misc!Q42","v":0},0]
[43,null,null,null,"Miscellaneous Rate Base",null,null,0,{"$f":"+Distribution!I43+Transmission!I43+Generation!I43+Retail!I43+Misc!I43","v":0},{"$f":"+Distribution!J43+Transmission!J43+Generation!J43+Retail!J43+Misc!J43","v":0},{"$f":"+Distribution!K43+Transmission!K43+Generation!K43+Retail!K43+Misc!K43","v":0},{"$f":"+Distribution!L43+Transmission!L43+Generation!L43+Retail!L43+Misc!L43","v":0},{"$f":"+Distribution!M43+Transmission!M43+Generation!M43+Retail!M43+Misc!M43","v":0},{"$f":"+Distribution!N43+Transmission!N43+Generation!N43+Retail!N43+Misc!N43","v":0},{"$f":"+Distribution!O43+Transmission!O43+Generation!O43+Retail!O43+Misc!O43","v":0},{"$f":"+Distribution!P43+Transmission!P43+Generation!P43+Retail!P43+Misc!P43","v":0},{"$f":"+Distribution!Q43+Transmission!Q43+Generation!Q43+Retail!Q43+Misc!Q43","v":0},0]
[44]
[45,null,null,null,"Total Rate Base Additions",null,null,{"$f":"SUM(I45:Q45)","v":1700766733.8530178},{"$f":"+Distribution!I45+Transmission!I45+Generation!I45+Retail!I45+Misc!I45","v":803267970.11058724},{"$f":"+Distribution!J45+Transmission!J45+Generation!J45+Retail!J45+Misc!J45","v":236526563.63217059},{"$f":"+Distribution!K45+Transmission!K45+Generation!K45+Retail!K45+Misc!K45","v":327522990.11741173},{"$f":"+Distribution!L45+Transmission!L45+Generation!L45+Retail!L45+Misc!L45","v":126415755.92014821},{"$f":"+Distribution!M45+Transmission!M45+Generation!M45+Retail!M45+Misc!M45","v":131462471.40747279},{"$f":"+Distribution!N45+Transmission!N45+Generation!N45+Retail!N45+Misc!N45","v":66174517.19882293},{"$f":"+Distribution!O45+Transmission!O45+Generation!O45+Retail!O45+Misc!O45","v":9396465.4664043281},{"$f":"+Distribution!P45+Transmission!P45+Generation!P45+Retail!P45+Misc!P45","v":0},{"$f":"+Distribution!Q45+Transmission!Q45+Generation!Q45+Retail!Q45+Misc!Q45","v":0},{"$f":"ROUND(SUM(I45:Q45)-H45,0)","v":0}]
[46]
[47,null,null,null,"Rate Base Deductions :"]
[48,null,null,null,"Accum Provision For Depreciation",null,null,{"$f":"SUM(I48:Q48)","v":-589326216.07470775},{"$f":"+Distribution!I48+Transmission!I48+Generation!I48+Retail!I48+Misc!I48","v":-282586511.18850887},{"$f":"+Distribution!J48+Transmission!J48+Generation!J48+Retail!J48+Misc!J48","v":-82264799.760199592},{"$f":"+Distribution!K48+Transmission!K48+Generation!K48+Retail!K48+Misc!K48","v":-111943878.71252859},{"$f":"+Distribution!L48+Transmission!L48+Generation!L48+Retail!L48+Misc!L48","v":-43026737.23636134},{"$f":"+Distribution!M48+Transmission!M48+Generation!M48+Retail!M48+Misc!M48","v":-41797664.285162799},{"$f":"+Distribution!N48+Transmission!N48+Generation!N48+Retail!N48+Misc!N48","v":-23626273.469023928},{"$f":"+Distribution!O48+Transmission!O48+Generation!O48+Retail!O48+Misc!O48","v":-4080351.4229226438},{"$f":"+Distribution!P48+Transmission!P48+Generation!P48+Retail!P48+Misc!P48","v":0},{"$f":"+Distribution!Q48+Transmission!Q48+Generation!Q48+Retail!Q48+Misc!Q48","v":0},{"$f":"ROUND(SUM(I48:Q48)-H48,0)","v":0}]
[49,null,null,null,"Accum Provision For Amortization",null,null,-43465840.659182236,{"$f":"+Distribution!I49+Transmission!I49+Generation!I49+Retail!I49+Misc!I49","v":-22284184.601428013},{"$f":"+Distribution!J49+Transmission!J49+Generation!J49+Retail!J49+Misc!J49","v":-5978405.9130802341},{"$f":"+Distribution!K49+Transmission!K49+Generation!K49+Retail!K49+Misc!K49","v":-7337537.6904211864},{"$f":"+Distribution!L49+Transmission!L49+Generation!L49+Retail!L49+Misc!L49","v":-2846429.7979646795},{"$f":"+Distribution!M49+Transmission!M49+Generation!M49+Retail!M49+Misc!M49","v":-3158922.4940382428},{"$f":"+Distribution!N49+Transmission!N49+Generation!N49+Retail!N49+Misc!N49","v":-1546428.9589128513},{"$f":"+Distribution!O49+Transmission!O49+Generation!O49+Retail!O49+Misc!O49","v":-313931.20333702827},{"$f":"+Distribution!P49+Transmission!P49+Generation!P49+Retail!P49+Misc!P49","v":0},{"$f":"+Distribution!Q49+Transmission!Q49+Generation!Q49+Retail!Q49+Misc!Q49","v":0},0]
[50,null,null,null,"Accum Deferred Income Taxes",null,null,-232193930.1604712,{"$f":"+Distribution!I50+Transmission!I50+Generation!I50+Retail!I50+Misc!I50","v":-109745158.54624206},{"$f":"+Distribution!J50+Transmission!J50+Generation!J50+Retail!J50+Misc!J50","v":-32320010.053852111},{"$f":"+Distribution!K50+Transmission!K50+Generation!K50+Retail!K50+Misc!K50","v":-44603233.549355105},{"$f":"+Distribution!L50+Transmission!L50+Generation!L50+Retail!L50+Misc!L50","v":-17212790.763391472},{"$f":"+Distribution!M50+Transmission!M50+Generation!M50+Retail!M50+Misc!M50","v":-18212937.874401737},{"$f":"+Distribution!N50+Transmission!N50+Generation!N50+Retail!N50+Misc!N50","v":-8944996.805305779},{"$f":"+Distribution!O50+Transmission!O50+Generation!O50+Retail!O50+Misc!O50","v":-1154802.5679229284},{"$f":"+Distribution!P50+Transmission!P50+Generation!P50+Retail!P50+Misc!P50","v":0},{"$f":"+Distribution!Q50+Transmission!Q50+Generation!Q50+Retail!Q50+Misc!Q50","v":0},0]
[51,null,null,null,"Unamortized ITC",null,null,-523327.7733723424,{"$f":"+Distribution!I51+Transmission!I51+Generation!I51+Retail!I51+Misc!I51","v":-248490.81035597407},{"$f":"+Distribution!J51+Transmission!J51+Generation!J51+Retail!J51+Misc!J51","v":-73139.950098601897},{"$f":"+Distribution!K51+Transmission!K51+Generation!K51+Retail!K51+Misc!K51","v":-100224.46728291819},{"$f":"+Distribution!L51+Transmission!L51+Generation!L51+Retail!L51+Misc!L51","v":-38555.229405997467},{"$f":"+Distribution!M51+Transmission!M51+Generation!M51+Retail!M51+Misc!M51","v":-39803.745262313285},{"$f":"+Distribution!N51+Transmission!N51+Generation!N51+Retail!N51+Misc!N51","v":-20442.811809800358},{"$f":"+Distribution!O51+Transmission!O51+Generation!O51+Retail!O51+Misc!O51","v":-2670.7591567372119},{"$f":"+Distribution!P51+Transmission!P51+Generation!P51+Retail!P51+Misc!P51","v":0},{"$f":"+Distribution!Q51+Transmission!Q51+Generation!Q51+Retail!Q51+Misc!Q51","v":0},0]
[52,null,null,null,"Customer Advance For Construction",null,null,-143878.99867603625,{"$f":"+Distribution!I52+Transmission!I52+Generation!I52+Retail!I52+Misc!I52","v":-52992.552346983706},{"$f":"+Distribution!J52+Transmission!J52+Generation!J52+Retail!J52+Misc!J52","v":-82336.359307061211},{"$f":"+Distribution!K52+Transmission!K52+Generation!K52+Retail!K52+Misc!K52","v":0},{"$f":"+Distribution!L52+Transmission!L52+Generation!L52+Retail!L52+Misc!L52","v":0},{"$f":"+Distribution!M52+Transmission!M52+Generation!M52+Retail!M52+Misc!M52","v":0},{"$f":"+Distribution!N52+Transmission!N52+Generation!N52+Retail!N52+Misc!N52","v":-8550.0870219913322},{"$f":"+Distribution!O52+Transmission!O52+Generation!O52+Retail!O52+Misc!O52","v":0},{"$f":"+Distribution!P52+Transmission!P52+Generation!P52+Retail!P52+Misc!P52","v":0},{"$f":"+Distribution!Q52+Transmission!Q52+Generation!Q52+Retail!Q52+Misc!Q52","v":0},0]
[53,null,null,null,"Customer Service Deposits",null,null,-3236612.0862500002,{"$f":"+Distribution!I53+Transmission!I53+Generation!I53+Retail!I53+Misc!I53","v":-2788224.7747138054},{"$f":"+Distribution!J53+Transmission!J53+Generation!J53+Retail!J53+Misc!J53","v":-313289.81752265652},{"$f":"+Distribution!K53+Transmission!K53+Generation!K53+Retail!K53+Misc!K53","v":-70306.17488218419},{"$f":"+Distribution!L53+Transmission!L53+Generation!L53+Retail!L53+Misc!L53","v":0},{"$f":"+Distribution!M53+Transmission!M53+Generation!M53+Retail!M53+Misc!M53","v":0},{"$f":"+Distribution!N53+Transmission!N53+Generation!N53+Retail!N53+Misc!N53","v":-62433.835518408392},{"$f":"+Distribution!O53+Transmission!O53+Generation!O53+Retail!O53+Misc!O53","v":-2357.4836129454347},{"$f":"+Distribution!P53+Transmission!P53+Generation!P53+Retail!P53+Misc!P53","v":0},{"$f":"+Distribution!Q53+Transmission!Q53+Generation!Q53+Retail!Q53+Misc!Q53","v":0},0]
[54,null,null,null,"Misc Rate Base Deductions",null,null,-3448113.6939195893,{"$f":"+Distribution!I54+Transmission!I54+Generation!I54+Retail!I54+Misc!I54","v":-1496930.9026307166},{"$f":"+Distribution!J54+Transmission!J54+Generation!J54+Retail!J54+Misc!J54","v":-468405.24699209916},{"$f":"+Distribution!K54+Transmission!K54+Generation!K54+Retail!K54+Misc!K54","v":-722417.83895324264},{"$f":"+Distribution!L54+Transmission!L54+Generation!L54+Retail!L54+Misc!L54","v":-284156.55647371832},{"$f":"+Distribution!M54+Transmission!M54+Generation!M54+Retail!M54+Misc!M54","v":-340421.14675549557},{"$f":"+Distribution!N54+Transmission!N54+Generation!N54+Retail!N54+Misc!N54","v":-125277.23482569789},{"$f":"+Distribution!O54+Transmission!O54+Generation!O54+Retail!O54+Misc!O54","v":-10504.767288619145},{"$f":"+Distribution!P54+Transmission!P54+Generation!P54+Retail!P54+Misc!P54","v":0},{"$f":"+Distribution!Q54+Transmission!Q54+Generation!Q54+Retail!Q54+Misc!Q54","v":0},0]
[55]
[56,null,null,null,"Total Rate Base Deductions",null,null,{"$f":"SUM(I56:Q56)","v":-872337919.4465791},{"$f":"+Distribution!I56+Transmission!I56+Generation!I56+Retail!I56+Misc!I56","v":-419202493.37622637},{"$f":"+Distribution!J56+Transmission!J56+Generation!J56+Retail!J56+Misc!J56","v":-121500387.10105236},{"$f":"+Distribution!K56+Transmission!K56+Generation!K56+Retail!K56+Misc!K56","v":-164777598.43342322},{"$f":"+Distribution!L56+Transmission!L56+Generation!L56+Retail!L56+Misc!L56","v":-63408669.583597206},{"$f":"+Distribution!M56+Transmission!M56+Generation!M56+Retail!M56+Misc!M56","v":-63549749.545620576},{"$f":"+Distribution!N56+Transmission!N56+Generation!N56+Retail!N56+Misc!N56","v":-34334403.202418454},{"$f":"+Distribution!O56+Transmission!O56+Generation!O56+Retail!O56+Misc!O56","v":-5564618.2042409023},{"$f":"+Distribution!P56+Transmission!P56+Generation!P56+Retail!P56+Misc!P56","v":0},{"$f":"+Distribution!Q56+Transmission!Q56+Generation!Q56+Retail!Q56+Misc!Q56","v":0},{"$f":"ROUND(SUM(I56:Q56)-H56,0)","v":0}]
[57]
[58,null,null,null,"Total Rate Base",null,null,{"$f":"SUM(I58:Q58)","v":828428814.40643847},{"$f":"+Distribution!I58+Transmission!I58+Generation!I58+Retail!I58+Misc!I58","v":384065476.73436081},{"$f":"+Distribution!J58+Transmission!J58+Generation!J58+Retail!J58+Misc!J58","v":115026176.53111821},{"$f":"+Distribution!K58+Transmission!K58+Generation!K58+Retail!K58+Misc!K58","v":162745391.68398845},{"$f":"+Distribution!L58+Transmission!L58+Generation!L58+Retail!L58+Misc!L58","v":63007086.336551011},{"$f":"+Distribution!M58+Transmission!M58+Generation!M58+Retail!M58+Misc!M58","v":67912721.861852214},{"$f":"+Distribution!N58+Transmission!N58+Generation!N58+Retail!N58+Misc!N58","v":31840113.99640448},{"$f":"+Distribution!O58+Transmission!O58+Generation!O58+Retail!O58+Misc!O58","v":3831847.2621634258},{"$f":"+Distribution!P58+Transmission!P58+Generation!P58+Retail!P58+Misc!P58","v":0},{"$f":"+Distribution!Q58+Transmission!Q58+Generation!Q58+Retail!Q58+Misc!Q58","v":0},{"$f":"ROUND(SUM(I58:Q58)-H58,0)","v":0}]
[59]
[60]
[61,null,null,null,"Return On Rate Base",null,null,{"$f":"IF(ISERROR(H29/H58),1,(H29/H58))","v":4.602925444100011E-2},{"$f":"(I29/I58)","v":3.3804192175316952E-2},7.9942191773102231E-2,5.4555505514040675E-2,4.0265530617126052E-2,{"$f":"(M29/M58)","v":2.065344646468556E-2},8.4590872321736579E-2,0.11529874426805539,0,0]
[62]
[63,null,null,null,"Return On Equity",null,null,{"$f":"(+H61-Inputs!$K$5-Inputs!$K$6)/Inputs!$I$7","v":3.906981420621377E-2},{"$f":"(+I61-Inputs!$K$5-Inputs!$K$6)/Inputs!$I$7","v":1.5786818184617805E-2},{"$f":"(+J61-Inputs!$K$5-Inputs!$K$6)/Inputs!$I$7","v":0.10365801570768424},{"$f":"(+K61-Inputs!$K$5-Inputs!$K$6)/Inputs!$I$7","v":5.5308313896312349E-2},{"$f":"(+L61-Inputs!$K$5-Inputs!$K$6)/Inputs!$I$7","v":2.809263012777027E-2},{"$f":"(+M61-Inputs!$K$5-Inputs!$K$6)/Inputs!$I$7","v":-9.2591695909332566E-3},{"$f":"(+N61-Inputs!$K$5-Inputs!$K$6)/Inputs!$I$7","v":0.11251156658270514},{"$f":"(+O61-Inputs!$K$5-Inputs!$K$6)/Inputs!$I$7","v":0.17099562538090099},0,0]
[{"$f":"+A63+1","v":64}]
[{"$f":"+A64+1","v":65}]
[66]
[67]
[68]
[69]
[70]
[71,{"$f":"Inputs!$C$3","v":"PacifiCorp"}]
[72,"Cost Of Service By Rate Schedule"]
[73,{"$f":"Inputs!$C$4","v":"State of Washington"}]
[74,{"$f":"Inputs!$C$6","v":"WCA Method"}]
[75,{"$f":"Inputs!$C$5","v":"12 Months Ending June 2012"}]
[76]
[77]
[78,null,"A",null,"B","C",null,"D","E","F","G","H","I","J","K","L","M"]
[79,null,null,null,null,null,null,{"$f":"'Hot Sheet'!$H$10","v":"Washington"},null,{"$f":"'Hot Sheet'!$J$10","v":"Small General"},{"$f":"'Hot Sheet'!$K$10","v":"Large General"},{"$f":"'Hot Sheet'!$L$10","v":"Large General"},{"$f":"'Hot Sheet'!$M$10","v":"Large General"},{"$f":"'Hot Sheet'!$N$10","v":"Agricultural"},{"$f":"'Hot Sheet'!$O$10","v":"Street & Area"}]
[80,null,null,null,null,"COS",null,{"$f":"'Hot Sheet'!$H$11","v":"Jurisdiction"},{"$f":"'Hot Sheet'!$I$11","v":"Residential"},{"$f":"'Hot Sheet'!$J$11","v":"Service"},{"$f":"'Hot Sheet'!$K$11","v":"Service <1,000 kW"},{"$f":"'Hot Sheet'!$L$11","v":"Service >1,000 kW"},{"$f":"'Hot Sheet'!$M$11","v":"Dedicated Facilities"},{"$f":"'Hot Sheet'!$N$11","v":"Pumping"},{"$f":"'Hot Sheet'!$O$11","v":"Lighting"}]
[81,null,null,null,"DESCRIPTION ","Factor",null,{"$f":"'Hot Sheet'!$H$12","v":"Normalized"},{"$f":"'Hot Sheet'!$I$12","v":"Schedule 16"},{"$f":"'Hot Sheet'!$J$12","v":"Schedule 24"},{"$f":"'Hot Sheet'!$K$12","v":"Schedule 36"},{"$f":"'Hot Sheet'!$L$12","v":"Schedule 48T"},{"$f":"'Hot Sheet'!$M$12","v":"Schedule 48T"},{"$f":"'Hot Sheet'!$N$12","v":"Schedule 40"},{"$f":"'Hot Sheet'!$O$12","v":"Sch. 15,51-54,57"}]
[82]
[83,null,null,null,"Total Rate Base",null,null,{"$f":"+Distribution!H83+Transmission!H83+Generation!H83+Retail!H83+Misc!H83","v":828428814.40643871},{"$f":"+Distribution!I83+Transmission!I83+Generation!I83+Retail!I83+Misc!I83","v":384065476.73436081},{"$f":"+Distribution!J83+Transmission!J83+Generation!J83+Retail!J83+Misc!J83","v":115026176.53111821},{"$f":"+Distribution!K83+Transmission!K83+Generation!K83+Retail!K83+Misc!K83","v":162745391.68398845},{"$f":"+Distribution!L83+Transmission!L83+Generation!L83+Retail!L83+Misc!L83","v":63007086.336551011},{"$f":"+Distribution!M83+Transmission!M83+Generation!M83+Retail!M83+Misc!M83","v":67912721.861852214},{"$f":"+Distribution!N83+Transmission!N83+Generation!N83+Retail!N83+Misc!N83","v":31840113.99640448},{"$f":"+Distribution!O83+Transmission!O83+Generation!O83+Retail!O83+Misc!O83","v":3831847.2621634258},{"$f":"+Distribution!P83+Transmission!P83+Generation!P83+Retail!P83+Misc!P83","v":0},{"$f":"+Distribution!Q83+Transmission!Q83+Generation!Q83+Retail!Q83+Misc!Q83","v":0},{"$f":"ROUND(SUM(I83:Q83)-H83,0)","v":0}]
[84]
[85]
[86,null,null,null,"Return On Ratebase ($$)",{"$f":"ActualROR","v":4.602925444100011E-2},null,{"$f":"+Distribution!H86+Transmission!H86+Generation!H86+Retail!H86+Misc!H86","v":38131960.684570022},{"$f":"+Distribution!I86+Transmission!I86+Generation!I86+Retail!I86+Misc!I86","v":17678247.550609905},{"$f":"+Distribution!J86+Transmission!J86+Generation!J86+Retail!J86+Misc!J86","v":5294569.1469262354},{"$f":"+Distribution!K86+Transmission!K86+Generation!K86+Retail!K86+Misc!K86","v":7491049.0429225294},{"$f":"+Distribution!L86+Transmission!L86+Generation!L86+Retail!L86+Misc!L86","v":2900169.2085711681},{"$f":"+Distribution!M86+Transmission!M86+Generation!M86+Retail!M86+Misc!M86","v":3125971.954360066},{"$f":"+Distribution!N86+Transmission!N86+Generation!N86+Retail!N86+Misc!N86","v":1465576.7085709507},{"$f":"+Distribution!O86+Transmission!O86+Generation!O86+Retail!O86+Misc!O86","v":176377.07260916999},{"$f":"+Distribution!P86+Transmission!P86+Generation!P86+Retail!P86+Misc!P86","v":0},{"$f":"+Distribution!Q86+Transmission!Q86+Generation!Q86+Retail!Q86+Misc!Q86","v":0},{"$f":"ROUND(SUM(I86:Q86)-H86,0)","v":0}]
[87,null,null,null,"Operating & Maintenance Expense",null,null,{"$f":"+Distribution!H87+Transmission!H87+Generation!H87+Retail!H87+Misc!H87","v":217526010.15460244},{"$f":"+Distribution!I87+Transmission!I87+Generation!I87+Retail!I87+Misc!I87","v":97622759.806040689},{"$f":"+Distribution!J87+Transmission!J87+Generation!J87+Retail!J87+Misc!J87","v":29373033.778226309},{"$f":"+Distribution!K87+Transmission!K87+Generation!K87+Retail!K87+Misc!K87","v":43886720.013314724},{"$f":"+Distribution!L87+Transmission!L87+Generation!L87+Retail!L87+Misc!L87","v":17255424.608427092},{"$f":"+Distribution!M87+Transmission!M87+Generation!M87+Retail!M87+Misc!M87","v":20641897.30835925},{"$f":"+Distribution!N87+Transmission!N87+Generation!N87+Retail!N87+Misc!N87","v":7853711.5771936113},{"$f":"+Distribution!O87+Transmission!O87+Generation!O87+Retail!O87+Misc!O87","v":892463.0630407359},{"$f":"+Distribution!P87+Transmission!P87+Generation!P87+Retail!P87+Misc!P87","v":0},{"$f":"+Distribution!Q87+Transmission!Q87+Generation!Q87+Retail!Q87+Misc!Q87","v":0},0]
[88,null,null,null,"        Bad Debt to Produce ROR","F80",null,{"$f":"+Distribution!H88+Transmission!H88+Generation!H88+Retail!H88+Misc!H88","v":0},{"$f":"+Distribution!I88+Transmission!I88+Generation!I88+Retail!I88+Misc!I88","v":0},{"$f":"+Distribution!J88+Transmission!J88+Generation!J88+Retail!J88+Misc!J88","v":0},{"$f":"+Distribution!K88+Transmission!K88+Generation!K88+Retail!K88+Misc!K88","v":0},{"$f":"+Distribution!L88+Transmission!L88+Generation!L88+Retail!L88+Misc!L88","v":0},{"$f":"+Distribution!M88+Transmission!M88+Generation!M88+Retail!M88+Misc!M88","v":0},{"$f":"+Distribution!N88+Transmission!N88+Generation!N88+Retail!N88+Misc!N88","v":0},{"$f":"+Distribution!O88+Transmission!O88+Generation!O88+Retail!O88+Misc!O88","v":0},{"$f":"+Distribution!P88+Transmission!P88+Generation!P88+Retail!P88+Misc!P88","v":0},{"$f":"+Distribution!Q88+Transmission!Q88+Generation!Q88+Retail!Q88+Misc!Q88","v":0},0]
[89,null,null,null,"Depreciation Expense",null,null,{"$f":"+Distribution!H89+Transmission!H89+Generation!H89+Retail!H89+Misc!H89","v":41310105.544159755},{"$f":"+Distribution!I89+Transmission!I89+Generation!I89+Retail!I89+Misc!I89","v":19709818.072534334},{"$f":"+Distribution!J89+Transmission!J89+Generation!J89+Retail!J89+Misc!J89","v":5764107.5789345615},{"$f":"+Distribution!K89+Transmission!K89+Generation!K89+Retail!K89+Misc!K89","v":7865055.4518888313},{"$f":"+Distribution!L89+Transmission!L89+Generation!L89+Retail!L89+Misc!L89","v":3024586.2561922176},{"$f":"+Distribution!M89+Transmission!M89+Generation!M89+Retail!M89+Misc!M89","v":3064682.9561413042},{"$f":"+Distribution!N89+Transmission!N89+Generation!N89+Retail!N89+Misc!N89","v":1623768.8006279345},{"$f":"+Distribution!O89+Transmission!O89+Generation!O89+Retail!O89+Misc!O89","v":258086.42784056481},{"$f":"+Distribution!P89+Transmission!P89+Generation!P89+Retail!P89+Misc!P89","v":0},{"$f":"+Distribution!Q89+Transmission!Q89+Generation!Q89+Retail!Q89+Misc!Q89","v":0},0]
[90,null,null,null,"Amortization Expense",null,null,{"$f":"+Distribution!H90+Transmission!H90+Generation!H90+Retail!H90+Misc!H90","v":5547662.1601642761},{"$f":"+Distribution!I90+Transmission!I90+Generation!I90+Retail!I90+Misc!I90","v":2595895.9347757259},{"$f":"+Distribution!J90+Transmission!J90+Generation!J90+Retail!J90+Misc!J90","v":755292.81394347409},{"$f":"+Distribution!K90+Transmission!K90+Generation!K90+Retail!K90+Misc!K90","v":1062360.499437979},{"$f":"+Distribution!L90+Transmission!L90+Generation!L90+Retail!L90+Misc!L90","v":416648.56525249081},{"$f":"+Distribution!M90+Transmission!M90+Generation!M90+Retail!M90+Misc!M90","v":494160.51632998174},{"$f":"+Distribution!N90+Transmission!N90+Generation!N90+Retail!N90+Misc!N90","v":196867.71112194128},{"$f":"+Distribution!O90+Transmission!O90+Generation!O90+Retail!O90+Misc!O90","v":26436.119302683685},{"$f":"+Distribution!P90+Transmission!P90+Generation!P90+Retail!P90+Misc!P90","v":0},{"$f":"+Distribution!Q90+Transmission!Q90+Generation!Q90+Retail!Q90+Misc!Q90","v":0},0]
[91,null,null,null,"Taxes Other Than Income",null,null,{"$f":"+Distribution!H91+Transmission!H91+Generation!H91+Retail!H91+Misc!H91","v":19982776.421377912},{"$f":"+Distribution!I91+Transmission!I91+Generation!I91+Retail!I91+Misc!I91","v":9476973.9968923088},{"$f":"+Distribution!J91+Transmission!J91+Generation!J91+Retail!J91+Misc!J91","v":2774839.0103689763},{"$f":"+Distribution!K91+Transmission!K91+Generation!K91+Retail!K91+Misc!K91","v":3838240.7194688423},{"$f":"+Distribution!L91+Transmission!L91+Generation!L91+Retail!L91+Misc!L91","v":1477002.4205355959},{"$f":"+Distribution!M91+Transmission!M91+Generation!M91+Retail!M91+Misc!M91","v":1546342.2368163802},{"$f":"+Distribution!N91+Transmission!N91+Generation!N91+Retail!N91+Misc!N91","v":773770.12839618407},{"$f":"+Distribution!O91+Transmission!O91+Generation!O91+Retail!O91+Misc!O91","v":95607.90889962035},{"$f":"+Distribution!P91+Transmission!P91+Generation!P91+Retail!P91+Misc!P91","v":0},{"$f":"+Distribution!Q91+Transmission!Q91+Generation!Q91+Retail!Q91+Misc!Q91","v":0},0]
[92,null,null,null,"Federal Income Taxes",null,null,{"$f":"+Distribution!H92+Transmission!H92+Generation!H92+Retail!H92+Misc!H92","v":-10210352.28227013},{"$f":"+Distribution!I92+Transmission!I92+Generation!I92+Retail!I92+Misc!I92","v":-3923967.6485184063},{"$f":"+Distribution!J92+Transmission!J92+Generation!J92+Retail!J92+Misc!J92","v":-1362083.7797038245},{"$f":"+Distribution!K92+Transmission!K92+Generation!K92+Retail!K92+Misc!K92","v":-2356542.4394608065},{"$f":"+Distribution!L92+Transmission!L92+Generation!L92+Retail!L92+Misc!L92","v":-947011.41225084092},{"$f":"+Distribution!M92+Transmission!M92+Generation!M92+Retail!M92+Misc!M92","v":-1263276.424036463},{"$f":"+Distribution!N92+Transmission!N92+Generation!N92+Retail!N92+Misc!N92","v":-345877.95782600931},{"$f":"+Distribution!O92+Transmission!O92+Generation!O92+Retail!O92+Misc!O92","v":-11592.620473778537},{"$f":"+Distribution!P92+Transmission!P92+Generation!P92+Retail!P92+Misc!P92","v":0},{"$f":"+Distribution!Q92+Transmission!Q92+Generation!Q92+Retail!Q92+Misc!Q92","v":0},0]
[93,null,null,null,"        FIT Adj to Produce Target ROR","F101",null,{"$f":"+Distribution!H93+Transmission!H93+Generation!H93+Retail!H93+Misc!H93","v":0},{"$f":"+Distribution!I93+Transmission!I93+Generation!I93+Retail!I93+Misc!I93","v":0},{"$f":"+Distribution!J93+Transmission!J93+Generation!J93+Retail!J93+Misc!J93","v":0},{"$f":"+Distribution!K93+Transmission!K93+Generation!K93+Retail!K93+Misc!K93","v":0},{"$f":"+Distribution!L93+Transmission!L93+Generation!L93+Retail!L93+Misc!L93","v":0},{"$f":"+Distribution!M93+Transmission!M93+Generation!M93+Retail!M93+Misc!M93","v":0},{"$f":"+Distribution!N93+Transmission!N93+Generation!N93+Retail!N93+Misc!N93","v":0},{"$f":"+Distribution!O93+Transmission!O93+Generation!O93+Retail!O93+Misc!O93","v":0},{"$f":"+Distribution!P93+Transmission!P93+Generation!P93+Retail!P93+Misc!P93","v":0},{"$f":"+Distribution!Q93+Transmission!Q93+Generation!Q93+Retail!Q93+Misc!Q93","v":0},0]
[94,null,null,null,"State Income Taxes",null,null,{"$f":"+Distribution!H94+Transmission!H94+Generation!H94+Retail!H94+Misc!H94","v":0},{"$f":"+Distribution!I94+Transmission!I94+Generation!I94+Retail!I94+Misc!I94","v":0},{"$f":"+Distribution!J94+Transmission!J94+Generation!J94+Retail!J94+Misc!J94","v":0},{"$f":"+Distribution!K94+Transmission!K94+Generation!K94+Retail!K94+Misc!K94","v":0},{"$f":"+Distribution!L94+Transmission!L94+Generation!L94+Retail!L94+Misc!L94","v":0},{"$f":"+Distribution!M94+Transmission!M94+Generation!M94+Retail!M94+Misc!M94","v":0},{"$f":"+Distribution!N94+Transmission!N94+Generation!N94+Retail!N94+Misc!N94","v":0},{"$f":"+Distribution!O94+Transmission!O94+Generation!O94+Retail!O94+Misc!O94","v":0},{"$f":"+Distribution!P94+Transmission!P94+Generation!P94+Retail!P94+Misc!P94","v":0},{"$f":"+Distribution!Q94+Transmission!Q94+Generation!Q94+Retail!Q94+Misc!Q94","v":0},0]
[95,null,null,null,"        SIT Adj to Produce Target ROR","F101",null,{"$f":"+Distribution!H95+Transmission!H95+Generation!H95+Retail!H95+Misc!H95","v":0},{"$f":"+Distribution!I95+Transmission!I95+Generation!I95+Retail!I95+Misc!I95","v":0},{"$f":"+Distribution!J95+Transmission!J95+Generation!J95+Retail!J95+Misc!J95","v":0},{"$f":"+Distribution!K95+Transmission!K95+Generation!K95+Retail!K95+Misc!K95","v":0},{"$f":"+Distribution!L95+Transmission!L95+Generation!L95+Retail!L95+Misc!L95","v":0},{"$f":"+Distribution!M95+Transmission!M95+Generation!M95+Retail!M95+Misc!M95","v":0},{"$f":"+Distribution!N95+Transmission!N95+Generation!N95+Retail!N95+Misc!N95","v":0},{"$f":"+Distribution!O95+Transmission!O95+Generation!O95+Retail!O95+Misc!O95","v":0},{"$f":"+Distribution!P95+Transmission!P95+Generation!P95+Retail!P95+Misc!P95","v":0},{"$f":"+Distribution!Q95+Transmission!Q95+Generation!Q95+Retail!Q95+Misc!Q95","v":0},0]
[96,null,null,null,"Deferred Income Taxes",null,null,{"$f":"+Distribution!H96+Transmission!H96+Generation!H96+Retail!H96+Misc!H96","v":16414669.737428367},{"$f":"+Distribution!I96+Transmission!I96+Generation!I96+Retail!I96+Misc!I96","v":7115555.0775692817},{"$f":"+Distribution!J96+Transmission!J96+Generation!J96+Retail!J96+Misc!J96","v":2229070.8417855999},{"$f":"+Distribution!K96+Transmission!K96+Generation!K96+Retail!K96+Misc!K96","v":3444214.1689886129},{"$f":"+Distribution!L96+Transmission!L96+Generation!L96+Retail!L96+Misc!L96","v":1354724.3640058474},{"$f":"+Distribution!M96+Transmission!M96+Generation!M96+Retail!M96+Misc!M96","v":1628797.7035050574},{"$f":"+Distribution!N96+Transmission!N96+Generation!N96+Retail!N96+Misc!N96","v":595135.5823947395},{"$f":"+Distribution!O96+Transmission!O96+Generation!O96+Retail!O96+Misc!O96","v":47171.999179228173},{"$f":"+Distribution!P96+Transmission!P96+Generation!P96+Retail!P96+Misc!P96","v":0},{"$f":"+Distribution!Q96+Transmission!Q96+Generation!Q96+Retail!Q96+Misc!Q96","v":0},0]
[97,null,null,null,"Investment Tax Credit",null,null,{"$f":"+Distribution!H97+Transmission!H97+Generation!H97+Retail!H97+Misc!H97","v":0},{"$f":"+Distribution!I97+Transmission!I97+Generation!I97+Retail!I97+Misc!I97","v":0},{"$f":"+Distribution!J97+Transmission!J97+Generation!J97+Retail!J97+Misc!J97","v":0},{"$f":"+Distribution!K97+Transmission!K97+Generation!K97+Retail!K97+Misc!K97","v":0},{"$f":"+Distribution!L97+Transmission!L97+Generation!L97+Retail!L97+Misc!L97","v":0},{"$f":"+Distribution!M97+Transmission!M97+Generation!M97+Retail!M97+Misc!M97","v":0},{"$f":"+Distribution!N97+Transmission!N97+Generation!N97+Retail!N97+Misc!N97","v":0},{"$f":"+Distribution!O97+Transmission!O97+Generation!O97+Retail!O97+Misc!O97","v":0},{"$f":"+Distribution!P97+Transmission!P97+Generation!P97+Retail!P97+Misc!P97","v":0},{"$f":"+Distribution!Q97+Transmission!Q97+Generation!Q97+Retail!Q97+Misc!Q97","v":0},0]
[98,null,null,null,"Misc Revenue & Expenses",null,null,{"$f":"+Distribution!H98+Transmission!H98+Generation!H98+Retail!H98+Misc!H98","v":-842347.30266372964},{"$f":"+Distribution!I98+Transmission!I98+Generation!I98+Retail!I98+Misc!I98","v":-354408.42053986777},{"$f":"+Distribution!J98+Transmission!J98+Generation!J98+Retail!J98+Misc!J98","v":-114325.33017483602},{"$f":"+Distribution!K98+Transmission!K98+Generation!K98+Retail!K98+Misc!K98","v":-181213.41340377001},{"$f":"+Distribution!L98+Transmission!L98+Generation!L98+Retail!L98+Misc!L98","v":-71614.970843513365},{"$f":"+Distribution!M98+Transmission!M98+Generation!M98+Retail!M98+Misc!M98","v":-88562.451659390732},{"$f":"+Distribution!N98+Transmission!N98+Generation!N98+Retail!N98+Misc!N98","v":-30185.631758562926},{"$f":"+Distribution!O98+Transmission!O98+Generation!O98+Retail!O98+Misc!O98","v":-2037.0842837886614},{"$f":"+Distribution!P98+Transmission!P98+Generation!P98+Retail!P98+Misc!P98","v":0},{"$f":"+Distribution!Q98+Transmission!Q98+Generation!Q98+Retail!Q98+Misc!Q98","v":0},0]
[99,null,null,null,"Revenue Credits",null,null,{"$f":"+Distribution!H99+Transmission!H99+Generation!H99+Retail!H99+Misc!H99","v":-24632889.252997145},{"$f":"+Distribution!I99+Transmission!I99+Generation!I99+Retail!I99+Misc!I99","v":-10654362.702187121},{"$f":"+Distribution!J99+Transmission!J99+Generation!J99+Retail!J99+Misc!J99","v":-3354042.2460874543},{"$f":"+Distribution!K99+Transmission!K99+Generation!K99+Retail!K99+Misc!K99","v":-5140081.5701609757},{"$f":"+Distribution!L99+Transmission!L99+Generation!L99+Retail!L99+Misc!L99","v":-1977272.0247758871},{"$f":"+Distribution!M99+Transmission!M99+Generation!M99+Retail!M99+Misc!M99","v":-2368439.2247342882},{"$f":"+Distribution!N99+Transmission!N99+Generation!N99+Retail!N99+Misc!N99","v":-1061225.2279292287},{"$f":"+Distribution!O99+Transmission!O99+Generation!O99+Retail!O99+Misc!O99","v":-77466.257122192241},{"$f":"+Distribution!P99+Transmission!P99+Generation!P99+Retail!P99+Misc!P99","v":0},{"$f":"+Distribution!Q99+Transmission!Q99+Generation!Q99+Retail!Q99+Misc!Q99","v":0},0]
[100]
[101,null,null,null,"Total Revenue Requirements",null,null,{"$f":"+Distribution!H101+Transmission!H101+Generation!H101+Retail!H101+Misc!H101","v":303227595.86437178},{"$f":"+Distribution!I101+Transmission!I101+Generation!I101+Retail!I101+Misc!I101","v":139266511.66717684},{"$f":"+Distribution!J101+Transmission!J101+Generation!J101+Retail!J101+Misc!J101","v":41360461.814219043},{"$f":"+Distribution!K101+Transmission!K101+Generation!K101+Retail!K101+Misc!K101","v":59909802.472995952},{"$f":"+Distribution!L101+Transmission!L101+Generation!L101+Retail!L101+Misc!L101","v":23432657.01511417},{"$f":"+Distribution!M101+Transmission!M101+Generation!M101+Retail!M101+Misc!M101","v":26781574.575081903},{"$f":"+Distribution!N101+Transmission!N101+Generation!N101+Retail!N101+Misc!N101","v":11071541.69079156},{"$f":"+Distribution!O101+Transmission!O101+Generation!O101+Retail!O101+Misc!O101","v":1405046.6289922437},{"$f":"+Distribution!P101+Transmission!P101+Generation!P101+Retail!P101+Misc!P101","v":0},{"$f":"+Distribution!Q101+Transmission!Q101+Generation!Q101+Retail!Q101+Misc!Q101","v":0},{"$f":"ROUND(SUM(I101:Q101)-H101,0)","v":0}]
[102,null,null,null,"Operating Revenues",null,null,{"$f":"H126+H128+H133+H135+H137","v":303227595.86437166},134571287.30000001,45261337.330470175,61297410.543473966,23069501.570523299,{"$f":"M126+M128+M133+M135+M137","v":25058234.385966681},12299348,1670476.7339375024,0,0,{"$f":"ROUND(SUM(I102:Q102)-H102,0)","v":0}]
[103]
[104,null,null,null,"Increase / (Decrease) Required to "]
[105,null,null,null,"Earn Equal Rates of Return",null,null,{"$f":"H101-H102","v":0},4695224.3671768308,-3900875.5162511319,-1387608.0704780146,363155.44459087029,{"$f":"M101-M102","v":1723340.1891152225},-1227806.3092084397,-265430.1049452587,0,0,{"$f":"ROUND(SUM(I105:Q105)-H105,0)","v":0}]
[106]
[107,null,null,null,"Existing Revenues",null,null,{"$f":"H14+H99","v":303227595.86437166},134571287.30000001,45261337.330470175,61297410.543473959,23069501.570523296,25058234.385966681,12299347.999999998,1670476.7339375024,0,0,{"$f":"ROUND(SUM(I107:Q107)-H107,0)","v":0}]
[108]
[109,null,null,null,"Percent Increase / (Decrease) "]
[110,null,null,null,"Over Existing Rates To "]
[111,null,null,null,"Equal Authorized RoE & RoR",null,null,{"$f":"(H105/H107)","v":0},3.4890238931204978E-2,-8.6185600035839902E-2,-2.2637303242914013E-2,1.5741798472789139E-2,{"$f":"(M105/M107)","v":6.8773408476071315E-2},-9.9826942794726994E-2,-0.15889482298841121,0,0]
[112]
[113]
[114]
[115]
[116]
[117]
[118]
[119]
[120,null,null,null,null,"WCA",null,"ELECTRIC REVENUES"]
[121,null,null,null,null,"Method"]
[122,null,"A",null,"B",null,null,"D","E","F","G","H","I","J","K","L","M"]
[123,null,null,null,null,null,null,{"$f":"'Hot Sheet'!$H$10","v":"Washington"},null,{"$f":"'Hot Sheet'!$J$10","v":"Small General"},{"$f":"'Hot Sheet'!$K$10","v":"Large General"},{"$f":"'Hot Sheet'!$L$10","v":"Large General"},{"$f":"'Hot Sheet'!$M$10","v":"Large General"},{"$f":"'Hot Sheet'!$N$10","v":"Agricultural"},{"$f":"'Hot Sheet'!$O$10","v":"Street & Area"}]
[124,null,"FERC",null,null,"COS",null,{"$f":"'Hot Sheet'!$H$11","v":"Jurisdiction"},{"$f":"'Hot Sheet'!$I$11","v":"Residential"},{"$f":"'Hot Sheet'!$J$11","v":"Service"},{"$f":"'Hot Sheet'!$K$11","v":"Service <1,000 kW"},{"$f":"'Hot Sheet'!$L$11","v":"Service >1,000 kW"},{"$f":"'Hot Sheet'!$M$11","v":"Dedicated Facilities"},{"$f":"'Hot Sheet'!$N$11","v":"Pumping"},{"$f":"'Hot Sheet'!$O$11","v":"Lighting"}]
[125,null,"ACCT",null,"DESCRIPTION ","Factor",null,{"$f":"'Hot Sheet'!$H$12","v":"Normalized"},{"$f":"'Hot Sheet'!$I$12","v":"Schedule 16"},{"$f":"'Hot Sheet'!$J$12","v":"Schedule 24"},{"$f":"'Hot Sheet'!$K$12","v":"Schedule 36"},{"$f":"'Hot Sheet'!$L$12","v":"Schedule 48T"},{"$f":"'Hot Sheet'!$M$12","v":"Schedule 48T"},{"$f":"'Hot Sheet'!$N$12","v":"Schedule 40"},{"$f":"'Hot Sheet'!$O$12","v":"Sch. 15,51-54,57"}]
[126,null,"440","Residential Sales",null,"A",null,{"$f":"SUM(I126:Q126)","v":134571287.30000001},{"$f":"ROUND((Revenues!D$28+Revenues!D$32+Revenues!D$33+Revenues!D$34),1)","v":134571287.30000001},0,0,0,0,0,0,0,0,{"$f":"ROUND(SUM(I126:Q126)-H126,0)","v":0}]
[127]
[128,null,"442","Commercial & Industrial Sales",null,"A",null,{"$f":"SUM(I128:Q128)","v":166985831.83043411},0,{"$f":"Revenues!E$28+Revenues!E$32+Revenues!E$33+Revenues!E$34","v":45261337.330470175},{"$f":"Revenues!F$28+Revenues!F$32+Revenues!F$33+Revenues!F$34","v":61297410.543473966},{"$f":"Revenues!G$28+Revenues!G$32+Revenues!G$33+Revenues!G$34","v":23069501.570523299},{"$f":"Revenues!H17+Revenues!H19+Revenues!H32+Revenues!H33+Revenues!H34","v":25058234.385966681},{"$f":"Revenues!I$28+Revenues!I$32+Revenues!I$33+Revenues!I$34","v":12299348},0,0,0,{"$f":"ROUND(SUM(I128:Q128)-H128,0)","v":0}]
[129,null,null,null,"Interruptible Demand",{"$f":"IF(Classification=\"DEMAND\",\"F12\",IF(Classification=\"ENERGY\",\"F30\",\"F10\"))","v":"F10"},null,{"$f":"+Distribution!H129+Transmission!H129+Generation!H129+Retail!H129+Misc!H129","v":0},{"$f":"+Distribution!I129+Transmission!I129+Generation!I129+Retail!I129+Misc!I129","v":0},{"$f":"+Distribution!J129+Transmission!J129+Generation!J129+Retail!J129+Misc!J129","v":0},{"$f":"+Distribution!K129+Transmission!K129+Generation!K129+Retail!K129+Misc!K129","v":0},{"$f":"+Distribution!L129+Transmission!L129+Generation!L129+Retail!L129+Misc!L129","v":0},{"$f":"+Distribution!M129+Transmission!M129+Generation!M129+Retail!M129+Misc!M129","v":0},{"$f":"+Distribution!N129+Transmission!N129+Generation!N129+Retail!N129+Misc!N129","v":0},{"$f":"+Distribution!O129+Transmission!O129+Generation!O129+Retail!O129+Misc!O129","v":0},0,0,{"$f":"ROUND(SUM(I129:Q129)-H129,0)","v":0}]
[130,null,null,null,"Interruptible Energy",{"$f":"IF(Classification=\"DEMAND\",\"F12\",IF(Classification=\"ENERGY\",\"F30\",\"F10\"))","v":"F10"},null,{"$f":"+Distribution!H130+Transmission!H130+Generation!H130+Retail!H130+Misc!H130","v":0},{"$f":"+Distribution!I130+Transmission!I130+Generation!I130+Retail!I130+Misc!I130","v":0},{"$f":"+Distribution!J130+Transmission!J130+Generation!J130+Retail!J130+Misc!J130","v":0},{"$f":"+Distribution!K130+Transmission!K130+Generation!K130+Retail!K130+Misc!K130","v":0},{"$f":"+Distribution!L130+Transmission!L130+Generation!L130+Retail!L130+Misc!L130","v":0},{"$f":"+Distribution!M130+Transmission!M130+Generation!M130+Retail!M130+Misc!M130","v":0},{"$f":"+Distribution!N130+Transmission!N130+Generation!N130+Retail!N130+Misc!N130","v":0},{"$f":"+Distribution!O130+Transmission!O130+Generation!O130+Retail!O130+Misc!O130","v":0},0,0,{"$f":"ROUND(SUM(I130:Q130)-H130,0)","v":0}]
[131,null,null,null,null,null,null,{"$f":"SUM(H128:H130)","v":166985831.83043411},0,45261337.330470175,61297410.543473966,23069501.570523299,{"$f":"SUM(M128:M130)","v":25058234.385966681},12299348,0,0,0,{"$f":"ROUND(SUM(I131:Q131)-H131,0)","v":0}]
[132]
[133,null,"444","Public Street & Highway Lighting",null,"A",null,{"$f":"SUM(I133:Q133)","v":1670476.7339375024},0,0,{"$f":"Revenues!F21+Revenues!F33+Revenues!F34","v":0},0,{"$f":"Revenues!H21+Revenues!H33+Revenues!H34","v":0},0,{"$f":"Revenues!J$28+Revenues!J$32+Revenues!J$33+Revenues!J$34","v":1670476.7339375024},0,0,{"$f":"ROUND(SUM(I133:Q133)-H133,0)","v":0}]
[134]
[{"$f":"+A134+1","v":135},null,"445","Other Sales to Public Authority",null,"A",null,{"$f":"SUM(I135:Q135)","v":0},0,0,0,0,0,0,0,0,0,{"$f":"ROUND(SUM(I135:Q135)-H135,0)","v":0}]
[136]
[137,null,"448","Interdepartmental",null,"A",null,{"$f":"SUM(I137:Q137)","v":0},0,0,0,0,0,0,0,0,0,{"$f":"ROUND(SUM(I137:Q137)-H137,0)","v":0}]
[138,null,null,null,"Demand",{"$f":"IF(Classification=\"DEMAND\",\"F12\",IF(Classification=\"ENERGY\",\"F30\",\"F10\"))","v":"F10"},null,{"$f":"+Distribution!H138+Transmission!H138+Generation!H138+Retail!H138+Misc!H138","v":0},{"$f":"+Distribution!I138+Transmission!I138+Generation!I138+Retail!I138+Misc!I138","v":0},{"$f":"+Distribution!J138+Transmission!J138+Generation!J138+Retail!J138+Misc!J138","v":0},{"$f":"+Distribution!K138+Transmission!K138+Generation!K138+Retail!K138+Misc!K138","v":0},{"$f":"+Distribution!L138+Transmission!L138+Generation!L138+Retail!L138+Misc!L138","v":0},{"$f":"+Distribution!M138+Transmission!M138+Generation!M138+Retail!M138+Misc!M138","v":0},{"$f":"+Distribution!N138+Transmission!N138+Generation!N138+Retail!N138+Misc!N138","v":0},{"$f":"+Distribution!O138+Transmission!O138+Generation!O138+Retail!O138+Misc!O138","v":0},0,0,{"$f":"ROUND(SUM(I138:Q138)-H138,0)","v":0}]
[139,null,null,null,null,null,null,{"$f":"+Distribution!H139+Transmission!H139+Generation!H139+Retail!H139+Misc!H139","v":0},{"$f":"+Distribution!I139+Transmission!I139+Generation!I139+Retail!I139+Misc!I139","v":0},{"$f":"+Distribution!J139+Transmission!J139+Generation!J139+Retail!J139+Misc!J139","v":0},{"$f":"+Distribution!K139+Transmission!K139+Generation!K139+Retail!K139+Misc!K139","v":0},{"$f":"+Distribution!L139+Transmission!L139+Generation!L139+Retail!L139+Misc!L139","v":0},{"$f":"+Distribution!M139+Transmission!M139+Generation!M139+Retail!M139+Misc!M139","v":0},{"$f":"+Distribution!N139+Transmission!N139+Generation!N139+Retail!N139+Misc!N139","v":0},{"$f":"+Distribution!O139+Transmission!O139+Generation!O139+Retail!O139+Misc!O139","v":0},{"$f":"+Distribution!P139+Transmission!P139+Generation!P139+Retail!P139+Misc!P139","v":0},{"$f":"+Distribution!Q139+Transmission!Q139+Generation!Q139+Retail!Q139+Misc!Q139","v":0},{"$f":"ROUND(SUM(I139:Q139)-H139,0)","v":0}]
[140]
[141,null,"Total Sales to Ultimate Customers",null,null,null,null,{"$f":"H126+H131+H133+H135+H139","v":303227595.86437166},{"$f":"I126+I131+I133+I135+I139","v":134571287.30000001},45261337.330470175,61297410.543473966,23069501.570523299,{"$f":"M126+M131+M133+M135+M139","v":25058234.385966681},12299348,1670476.7339375024,{"$f":"P126+P131+P133+P135+P139","v":0},0,{"$f":"ROUND(SUM(I141:Q141)-H141,0)","v":0}]
[142]
[143,null,"447","Sales for Resale",null,{"$f":"IF(Classification=\"DEMAND\",\"F12\",IF(Classification=\"ENERGY\",\"F30\",\"F10\"))","v":"F10"},null,{"$f":"+Distribution!H143+Transmission!H143+Generation!H143+Retail!H143+Misc!H143","v":0},{"$f":"+Distribution!I143+Transmission!I143+Generation!I143+Retail!I143+Misc!I143","v":0},{"$f":"+Distribution!J143+Transmission!J143+Generation!J143+Retail!J143+Misc!J143","v":0},{"$f":"+Distribution!K143+Transmission!K143+Generation!K143+Retail!K143+Misc!K143","v":0},{"$f":"+Distribution!L143+Transmission!L143+Generation!L143+Retail!L143+Misc!L143","v":0},{"$f":"+Distribution!M143+Transmission!M143+Generation!M143+Retail!M143+Misc!M143","v":0},{"$f":"+Distribution!N143+Transmission!N143+Generation!N143+Retail!N143+Misc!N143","v":0},{"$f":"+Distribution!O143+Transmission!O143+Generation!O143+Retail!O143+Misc!O143","v":0},{"$f":"+Distribution!P143+Transmission!P143+Generation!P143+Retail!P143+Misc!P143","v":0},{"$f":"+Distribution!Q143+Transmission!Q143+Generation!Q143+Retail!Q143+Misc!Q143","v":0},{"$f":"ROUND(SUM(I143:Q143)-H143,0)","v":0}]
[144,null,null,null,"Demand",{"$f":"IF(Classification=\"DEMAND\",\"F12\",IF(Classification=\"ENERGY\",\"F30\",\"F10\"))","v":"F10"},null,{"$f":"+Distribution!H144+Transmission!H144+Generation!H144+Retail!H144+Misc!H144","v":0},{"$f":"+Distribution!I144+Transmission!I144+Generation!I144+Retail!I144+Misc!I144","v":0},{"$f":"+Distribution!J144+Transmission!J144+Generation!J144+Retail!J144+Misc!J144","v":0},{"$f":"+Distribution!K144+Transmission!K144+Generation!K144+Retail!K144+Misc!K144","v":0},{"$f":"+Distribution!L144+Transmission!L144+Generation!L144+Retail!L144+Misc!L144","v":0},{"$f":"+Distribution!M144+Transmission!M144+Generation!M144+Retail!M144+Misc!M144","v":0},{"$f":"+Distribution!N144+Transmission!N144+Generation!N144+Retail!N144+Misc!N144","v":0},{"$f":"+Distribution!O144+Transmission!O144+Generation!O144+Retail!O144+Misc!O144","v":0},{"$f":"+Distribution!P144+Transmission!P144+Generation!P144+Retail!P144+Misc!P144","v":0},{"$f":"+Distribution!Q144+Transmission!Q144+Generation!Q144+Retail!Q144+Misc!Q144","v":0},{"$f":"ROUND(SUM(I144:Q144)-H144,0)","v":0}]
[145,null,null,null,"Energy",{"$f":"IF(Classification=\"DEMAND\",\"F12\",IF(Classification=\"ENERGY\",\"F30\",\"F10\"))","v":"F10"},null,{"$f":"+Distribution!H145+Transmission!H145+Generation!H145+Retail!H145+Misc!H145","v":0},{"$f":"+Distribution!I145+Transmission!I145+Generation!I145+Retail!I145+Misc!I145","v":0},{"$f":"+Distribution!J145+Transmission!J145+Generation!J145+Retail!J145+Misc!J145","v":0},{"$f":"+Distribution!K145+Transmission!K145+Generation!K145+Retail!K145+Misc!K145","v":0},{"$f":"+Distribution!L145+Transmission!L145+Generation!L145+Retail!L145+Misc!L145","v":0},{"$f":"+Distribution!M145+Transmission!M145+Generation!M145+Retail!M145+Misc!M145","v":0},{"$f":"+Distribution!N145+Transmission!N145+Generation!N145+Retail!N145+Misc!N145","v":0},{"$f":"+Distribution!O145+Transmission!O145+Generation!O145+Retail!O145+Misc!O145","v":0},{"$f":"+Distribution!P145+Transmission!P145+Generation!P145+Retail!P145+Misc!P145","v":0},{"$f":"+Distribution!Q145+Transmission!Q145+Generation!Q145+Retail!Q145+Misc!Q145","v":0},{"$f":"ROUND(SUM(I145:Q145)-H145,0)","v":0}]
[146,null,null,null,null,null,null,{"$f":"+Distribution!H146+Transmission!H146+Generation!H146+Retail!H146+Misc!H146","v":0},{"$f":"+Distribution!I146+Transmission!I146+Generation!I146+Retail!I146+Misc!I146","v":0},{"$f":"+Distribution!J146+Transmission!J146+Generation!J146+Retail!J146+Misc!J146","v":0},{"$f":"+Distribution!K146+Transmission!K146+Generation!K146+Retail!K146+Misc!K146","v":0},{"$f":"+Distribution!L146+Transmission!L146+Generation!L146+Retail!L146+Misc!L146","v":0},{"$f":"+Distribution!M146+Transmission!M146+Generation!M146+Retail!M146+Misc!M146","v":0},{"$f":"+Distribution!N146+Transmission!N146+Generation!N146+Retail!N146+Misc!N146","v":0},{"$f":"+Distribution!O146+Transmission!O146+Generation!O146+Retail!O146+Misc!O146","v":0},{"$f":"+Distribution!P146+Transmission!P146+Generation!P146+Retail!P146+Misc!P146","v":0},{"$f":"+Distribution!Q146+Transmission!Q146+Generation!Q146+Retail!Q146+Misc!Q146","v":0},{"$f":"ROUND(SUM(I146:Q146)-H146,0)","v":0}]
[147]
[148,null,"447NPC","Sales for Resale",null,"F10",null,{"$f":"+Distribution!H148+Transmission!H148+Generation!H148+Retail!H148+Misc!H148","v":0},{"$f":"+Distribution!I148+Transmission!I148+Generation!I148+Retail!I148+Misc!I148","v":0},{"$f":"+Distribution!J148+Transmission!J148+Generation!J148+Retail!J148+Misc!J148","v":0},{"$f":"+Distribution!K148+Transmission!K148+Generation!K148+Retail!K148+Misc!K148","v":0},{"$f":"+Distribution!L148+Transmission!L148+Generation!L148+Retail!L148+Misc!L148","v":0},{"$f":"+Distribution!M148+Transmission!M148+Generation!M148+Retail!M148+Misc!M148","v":0},{"$f":"+Distribution!N148+Transmission!N148+Generation!N148+Retail!N148+Misc!N148","v":0},{"$f":"+Distribution!O148+Transmission!O148+Generation!O148+Retail!O148+Misc!O148","v":0},{"$f":"+Distribution!P148+Transmission!P148+Generation!P148+Retail!P148+Misc!P148","v":0},{"$f":"+Distribution!Q148+Transmission!Q148+Generation!Q148+Retail!Q148+Misc!Q148","v":0},{"$f":"ROUND(SUM(I148:Q148)-H148,0)","v":0}]
[149,null,null,null,"Demand","F10",null,{"$f":"+Distribution!H149+Transmission!H149+Generation!H149+Retail!H149+Misc!H149","v":16130951.684913587},{"$f":"+Distribution!I149+Transmission!I149+Generation!I149+Retail!I149+Misc!I149","v":6843959.882040292},{"$f":"+Distribution!J149+Transmission!J149+Generation!J149+Retail!J149+Misc!J149","v":2176885.4584220569},{"$f":"+Distribution!K149+Transmission!K149+Generation!K149+Retail!K149+Misc!K149","v":3449087.0741098011},{"$f":"+Distribution!L149+Transmission!L149+Generation!L149+Retail!L149+Misc!L149","v":1362945.1326323857},{"$f":"+Distribution!M149+Transmission!M149+Generation!M149+Retail!M149+Misc!M149","v":1685111.9867343886},{"$f":"+Distribution!N149+Transmission!N149+Generation!N149+Retail!N149+Misc!N149","v":574263.25337219588},{"$f":"+Distribution!O149+Transmission!O149+Generation!O149+Retail!O149+Misc!O149","v":38698.897602466037},{"$f":"+Distribution!P149+Transmission!P149+Generation!P149+Retail!P149+Misc!P149","v":0},{"$f":"+Distribution!Q149+Transmission!Q149+Generation!Q149+Retail!Q149+Misc!Q149","v":0},{"$f":"ROUND(SUM(I149:Q149)-H149,0)","v":0}]
[150,null,null,null,"Energy","F10",null,{"$f":"+Distribution!H150+Transmission!H150+Generation!H150+Retail!H150+Misc!H150","v":870715.40737176989},{"$f":"+Distribution!I150+Transmission!I150+Generation!I150+Retail!I150+Misc!I150","v":369422.79867467633},{"$f":"+Distribution!J150+Transmission!J150+Generation!J150+Retail!J150+Misc!J150","v":117503.77446758791},{"$f":"+Distribution!K150+Transmission!K150+Generation!K150+Retail!K150+Misc!K150","v":186174.58631426736},{"$f":"+Distribution!L150+Transmission!L150+Generation!L150+Retail!L150+Misc!L150","v":73568.959201289428},{"$f":"+Distribution!M150+Transmission!M150+Generation!M150+Retail!M150+Misc!M150","v":90958.859629387443},{"$f":"+Distribution!N150+Transmission!N150+Generation!N150+Retail!N150+Misc!N150","v":30997.54263514726},{"$f":"+Distribution!O150+Transmission!O150+Generation!O150+Retail!O150+Misc!O150","v":2088.8864494141053},{"$f":"+Distribution!P150+Transmission!P150+Generation!P150+Retail!P150+Misc!P150","v":0},{"$f":"+Distribution!Q150+Transmission!Q150+Generation!Q150+Retail!Q150+Misc!Q150","v":0},{"$f":"ROUND(SUM(I150:Q150)-H150,0)","v":0}]
[151,null,null,null,null,null,null,{"$f":"+Distribution!H151+Transmission!H151+Generation!H151+Retail!H151+Misc!H151","v":17001667.092285357},{"$f":"+Distribution!I151+Transmission!I151+Generation!I151+Retail!I151+Misc!I151","v":7213382.6807149686},{"$f":"+Distribution!J151+Transmission!J151+Generation!J151+Retail!J151+Misc!J151","v":2294389.2328896448},{"$f":"+Distribution!K151+Transmission!K151+Generation!K151+Retail!K151+Misc!K151","v":3635261.6604240686},{"$f":"+Distribution!L151+Transmission!L151+Generation!L151+Retail!L151+Misc!L151","v":1436514.091833675},{"$f":"+Distribution!M151+Transmission!M151+Generation!M151+Retail!M151+Misc!M151","v":1776070.8463637761},{"$f":"+Distribution!N151+Transmission!N151+Generation!N151+Retail!N151+Misc!N151","v":605260.7960073431},{"$f":"+Distribution!O151+Transmission!O151+Generation!O151+Retail!O151+Misc!O151","v":40787.784051880139},{"$f":"+Distribution!P151+Transmission!P151+Generation!P151+Retail!P151+Misc!P151","v":0},{"$f":"+Distribution!Q151+Transmission!Q151+Generation!Q151+Retail!Q151+Misc!Q151","v":0},{"$f":"ROUND(SUM(I151:Q151)-H151,0)","v":0}]
[152]
[153,null,"449","Provision for Rate Refund",null,{"$f":"IF(Classification=\"DEMAND\",\"F12\",IF(Classification=\"ENERGY\",\"F30\",\"F10\"))","v":"F10"},null,{"$f":"+Distribution!H153+Transmission!H153+Generation!H153+Retail!H153+Misc!H153","v":0},{"$f":"+Distribution!I153+Transmission!I153+Generation!I153+Retail!I153+Misc!I153","v":0},{"$f":"+Distribution!J153+Transmission!J153+Generation!J153+Retail!J153+Misc!J153","v":0},{"$f":"+Distribution!K153+Transmission!K153+Generation!K153+Retail!K153+Misc!K153","v":0},{"$f":"+Distribution!L153+Transmission!L153+Generation!L153+Retail!L153+Misc!L153","v":0},{"$f":"+Distribution!M153+Transmission!M153+Generation!M153+Retail!M153+Misc!M153","v":0},{"$f":"+Distribution!N153+Transmission!N153+Generation!N153+Retail!N153+Misc!N153","v":0},{"$f":"+Distribution!O153+Transmission!O153+Generation!O153+Retail!O153+Misc!O153","v":0},{"$f":"+Distribution!P153+Transmission!P153+Generation!P153+Retail!P153+Misc!P153","v":0},{"$f":"+Distribution!Q153+Transmission!Q153+Generation!Q153+Retail!Q153+Misc!Q153","v":0},{"$f":"ROUND(SUM(I153:Q153)-H153,0)","v":0}]
[154]
[155,null,"State Revenue Credit",null,null,{"$f":"IF(Function=\"gen\",\"F140G\",IF(Function=\"TRN\",\"F140T\",IF(Function=\"DIS\",\"F140D\",IF(Function=\"RETAIL\",\"F140R\",IF(Function=\"MISC\",\"F140M\",\"ERR\")))))","v":"F140D"},null,{"$f":"+Distribution!H155+Transmission!H155+Generation!H155+Retail!H155+Misc!H155","v":290560.51169386157},{"$f":"+Distribution!I155+Transmission!I155+Generation!I155+Retail!I155+Misc!I155","v":132864.70297731497},{"$f":"+Distribution!J155+Transmission!J155+Generation!J155+Retail!J155+Misc!J155","v":39627.432310212076},{"$f":"+Distribution!K155+Transmission!K155+Generation!K155+Retail!K155+Misc!K155","v":57649.300388785792},{"$f":"+Distribution!L155+Transmission!L155+Generation!L155+Retail!L155+Misc!L155","v":22519.096744883271},{"$f":"+Distribution!M155+Transmission!M155+Generation!M155+Retail!M155+Misc!M155","v":25833.68019671947},{"$f":"+Distribution!N155+Transmission!N155+Generation!N155+Retail!N155+Misc!N155","v":10752.448450556194},{"$f":"+Distribution!O155+Transmission!O155+Generation!O155+Retail!O155+Misc!O155","v":1313.8506253897435},{"$f":"+Distribution!P155+Transmission!P155+Generation!P155+Retail!P155+Misc!P155","v":0},{"$f":"+Distribution!Q155+Transmission!Q155+Generation!Q155+Retail!Q155+Misc!Q155","v":0},{"$f":"ROUND(SUM(I155:Q155)-H155,0)","v":0}]
[156]
[157,null,"AGA Revenue",null,null,"A",null,{"$f":"+Distribution!H157+Transmission!H157+Generation!H157+Retail!H157+Misc!H157","v":545051.91999999993},{"$f":"+Distribution!I157+Transmission!I157+Generation!I157+Retail!I157+Misc!I157","v":358},{"$f":"+Distribution!J157+Transmission!J157+Generation!J157+Retail!J157+Misc!J157","v":146937},{"$f":"+Distribution!K157+Transmission!K157+Generation!K157+Retail!K157+Misc!K157","v":179091},{"$f":"+Distribution!L157+Transmission!L157+Generation!L157+Retail!L157+Misc!L157","v":30700},{"$f":"+Distribution!M157+Transmission!M157+Generation!M157+Retail!M157+Misc!M157","v":0},{"$f":"+Distribution!N157+Transmission!N157+Generation!N157+Retail!N157+Misc!N157","v":186753.91999999998},{"$f":"+Distribution!O157+Transmission!O157+Generation!O157+Retail!O157+Misc!O157","v":1212},{"$f":"+Distribution!P157+Transmission!P157+Generation!P157+Retail!P157+Misc!P157","v":0},{"$f":"+Distribution!Q157+Transmission!Q157+Generation!Q157+Retail!Q157+Misc!Q157","v":0},{"$f":"ROUND(SUM(I157:Q157)-H157,0)","v":0}]
[158]
[159,null,"Total Sales from Electricity",null,null,null,null,{"$f":"H141+H151+H153+H155+H157","v":321064875.38835084},{"$f":"I141+I151+I153+I155+I157","v":141917892.68369231},47742290.995670028,65169412.504286818,24559234.759101856,26860138.912527177,13102115.164457899,1713790.3686147723,{"$f":"P141+P146+P153+P155+P157","v":0},0,{"$f":"ROUND(SUM(I159:Q159)-H159,0)","v":0}]
[160]
[161,null,"Other Electric Operating Revenues"]
[162,null,"450","Forfeited Discounts & Interest",null,"A",null,{"$f":"+Distribution!H162+Transmission!H162+Generation!H162+Retail!H162+Misc!H162","v":678122.06},{"$f":"+Distribution!I162+Transmission!I162+Generation!I162+Retail!I162+Misc!I162","v":519821.37923925405},{"$f":"+Distribution!J162+Transmission!J162+Generation!J162+Retail!J162+Misc!J162","v":51714.786186675177},{"$f":"+Distribution!K162+Transmission!K162+Generation!K162+Retail!K162+Misc!K162","v":64407.624889988481},{"$f":"+Distribution!L162+Transmission!L162+Generation!L162+Retail!L162+Misc!L162","v":16201.340140890432},{"$f":"+Distribution!M162+Transmission!M162+Generation!M162+Retail!M162+Misc!M162","v":10294.166947698966},{"$f":"+Distribution!N162+Transmission!N162+Generation!N162+Retail!N162+Misc!N162","v":5052.6920496343273},{"$f":"+Distribution!O162+Transmission!O162+Generation!O162+Retail!O162+Misc!O162","v":10630.070545858562},{"$f":"+Distribution!P162+Transmission!P162+Generation!P162+Retail!P162+Misc!P162","v":0},{"$f":"+Distribution!Q162+Transmission!Q162+Generation!Q162+Retail!Q162+Misc!Q162","v":0},{"$f":"ROUND(SUM(I162:Q162)-H162,0)","v":0}]
[163,null,null,null,"Customers","F40",null,{"$f":"+Distribution!H163+Transmission!H163+Generation!H163+Retail!H163+Misc!H163","v":0},{"$f":"+Distribution!I163+Transmission!I163+Generation!I163+Retail!I163+Misc!I163","v":0},{"$f":"+Distribution!J163+Transmission!J163+Generation!J163+Retail!J163+Misc!J163","v":0},{"$f":"+Distribution!K163+Transmission!K163+Generation!K163+Retail!K163+Misc!K163","v":0},{"$f":"+Distribution!L163+Transmission!L163+Generation!L163+Retail!L163+Misc!L163","v":0},{"$f":"+Distribution!M163+Transmission!M163+Generation!M163+Retail!M163+Misc!M163","v":0},{"$f":"+Distribution!N163+Transmission!N163+Generation!N163+Retail!N163+Misc!N163","v":0},{"$f":"+Distribution!O163+Transmission!O163+Generation!O163+Retail!O163+Misc!O163","v":0},{"$f":"+Distribution!P163+Transmission!P163+Generation!P163+Retail!P163+Misc!P163","v":0},{"$f":"+Distribution!Q163+Transmission!Q163+Generation!Q163+Retail!Q163+Misc!Q163","v":0},{"$f":"ROUND(SUM(I163:Q163)-H163,0)","v":0}]
[164,null,null,null,null,null,null,{"$f":"+Distribution!H164+Transmission!H164+Generation!H164+Retail!H164+Misc!H164","v":678122.06},{"$f":"+Distribution!I164+Transmission!I164+Generation!I164+Retail!I164+Misc!I164","v":519821.37923925405},{"$f":"+Distribution!J164+Transmission!J164+Generation!J164+Retail!J164+Misc!J164","v":51714.786186675177},{"$f":"+Distribution!K164+Transmission!K164+Generation!K164+Retail!K164+Misc!K164","v":64407.624889988481},{"$f":"+Distribution!L164+Transmission!L164+Generation!L164+Retail!L164+Misc!L164","v":16201.340140890432},{"$f":"+Distribution!M164+Transmission!M164+Generation!M164+Retail!M164+Misc!M164","v":10294.166947698966},{"$f":"+Distribution!N164+Transmission!N164+Generation!N164+Retail!N164+Misc!N164","v":5052.6920496343273},{"$f":"+Distribution!O164+Transmission!O164+Generation!O164+Retail!O164+Misc!O164","v":10630.070545858562},{"$f":"+Distribution!P164+Transmission!P164+Generation!P164+Retail!P164+Misc!P164","v":0},{"$f":"+Distribution!Q164+Transmission!Q164+Generation!Q164+Retail!Q164+Misc!Q164","v":0},{"$f":"ROUND(SUM(I164:Q164)-H164,0)","v":0}]
[165]
[166,null,"451","Misc Electric Revenue",null,"A",null,{"$f":"+Distribution!H166+Transmission!H166+Generation!H166+Retail!H166+Misc!H166","v":162036.34},{"$f":"+Distribution!I166+Transmission!I166+Generation!I166+Retail!I166+Misc!I166","v":119369.12028203883},{"$f":"+Distribution!J166+Transmission!J166+Generation!J166+Retail!J166+Misc!J166","v":22681.179833094691},{"$f":"+Distribution!K166+Transmission!K166+Generation!K166+Retail!K166+Misc!K166","v":7909.7856831597737},{"$f":"+Distribution!L166+Transmission!L166+Generation!L166+Retail!L166+Misc!L166","v":2110.2592502152861},{"$f":"+Distribution!M166+Transmission!M166+Generation!M166+Retail!M166+Misc!M166","v":0.88406038023387246},{"$f":"+Distribution!N166+Transmission!N166+Generation!N166+Retail!N166+Misc!N166","v":7153.6924414558744},{"$f":"+Distribution!O166+Transmission!O166+Generation!O166+Retail!O166+Misc!O166","v":2811.4184496553303},{"$f":"+Distribution!P166+Transmission!P166+Generation!P166+Retail!P166+Misc!P166","v":0},{"$f":"+Distribution!Q166+Transmission!Q166+Generation!Q166+Retail!Q166+Misc!Q166","v":0},{"$f":"ROUND(SUM(I166:Q166)-H166,0)","v":0}]
[167,null,null,null,"Demand",{"$f":"IF(Classification=\"DEMAND\",\"F12\",IF(Classification=\"ENERGY\",\"F30\",\"F10\"))","v":"F10"},null,{"$f":"+Distribution!H167+Transmission!H167+Generation!H167+Retail!H167+Misc!H167","v":0},{"$f":"+Distribution!I167+Transmission!I167+Generation!I167+Retail!I167+Misc!I167","v":0},{"$f":"+Distribution!J167+Transmission!J167+Generation!J167+Retail!J167+Misc!J167","v":0},{"$f":"+Distribution!K167+Transmission!K167+Generation!K167+Retail!K167+Misc!K167","v":0},{"$f":"+Distribution!L167+Transmission!L167+Generation!L167+Retail!L167+Misc!L167","v":0},{"$f":"+Distribution!M167+Transmission!M167+Generation!M167+Retail!M167+Misc!M167","v":0},{"$f":"+Distribution!N167+Transmission!N167+Generation!N167+Retail!N167+Misc!N167","v":0},{"$f":"+Distribution!O167+Transmission!O167+Generation!O167+Retail!O167+Misc!O167","v":0},{"$f":"+Distribution!P167+Transmission!P167+Generation!P167+Retail!P167+Misc!P167","v":0},{"$f":"+Distribution!Q167+Transmission!Q167+Generation!Q167+Retail!Q167+Misc!Q167","v":0},{"$f":"ROUND(SUM(I167:Q167)-H167,0)","v":0}]
[168,null,null,null,"Customer","F40",null,{"$f":"+Distribution!H168+Transmission!H168+Generation!H168+Retail!H168+Misc!H168","v":282.88029474284355},{"$f":"+Distribution!I168+Transmission!I168+Generation!I168+Retail!I168+Misc!I168","v":222.87441479644275},{"$f":"+Distribution!J168+Transmission!J168+Generation!J168+Retail!J168+Misc!J168","v":39.846722974027209},{"$f":"+Distribution!K168+Transmission!K168+Generation!K168+Retail!K168+Misc!K168","v":2.2320022403687614},{"$f":"+Distribution!L168+Transmission!L168+Generation!L168+Retail!L168+Misc!L168","v":0.12375255579732139},{"$f":"+Distribution!M168+Transmission!M168+Generation!M168+Retail!M168+Misc!M168","v":2.1369211222142422E-3},{"$f":"+Distribution!N168+Transmission!N168+Generation!N168+Retail!N168+Misc!N168","v":11.240205102846913},{"$f":"+Distribution!O168+Transmission!O168+Generation!O168+Retail!O168+Misc!O168","v":6.5610601522384631},{"$f":"+Distribution!P168+Transmission!P168+Generation!P168+Retail!P168+Misc!P168","v":0},{"$f":"+Distribution!Q168+Transmission!Q168+Generation!Q168+Retail!Q168+Misc!Q168","v":0},{"$f":"ROUND(SUM(I168:Q168)-H168,0)","v":0}]
[169,null,null,null,null,null,null,{"$f":"+Distribution!H169+Transmission!H169+Generation!H169+Retail!H169+Misc!H169","v":162319.22029474284},{"$f":"+Distribution!I169+Transmission!I169+Generation!I169+Retail!I169+Misc!I169","v":119591.99469683527},{"$f":"+Distribution!J169+Transmission!J169+Generation!J169+Retail!J169+Misc!J169","v":22721.026556068718},{"$f":"+Distribution!K169+Transmission!K169+Generation!K169+Retail!K169+Misc!K169","v":7912.017685400142},{"$f":"+Distribution!L169+Transmission!L169+Generation!L169+Retail!L169+Misc!L169","v":2110.3830027710833},{"$f":"+Distribution!M169+Transmission!M169+Generation!M169+Retail!M169+Misc!M169","v":0.88619730135608665},{"$f":"+Distribution!N169+Transmission!N169+Generation!N169+Retail!N169+Misc!N169","v":7164.9326465587219},{"$f":"+Distribution!O169+Transmission!O169+Generation!O169+Retail!O169+Misc!O169","v":2817.9795098075688},{"$f":"+Distribution!P169+Transmission!P169+Generation!P169+Retail!P169+Misc!P169","v":0},{"$f":"+Distribution!Q169+Transmission!Q169+Generation!Q169+Retail!Q169+Misc!Q169","v":0},{"$f":"ROUND(SUM(I169:Q169)-H169,0)","v":0}]
[170]
[171,null,"453","Water Sales",null,{"$f":"IF(Classification=\"DEMAND\",\"F12\",IF(Classification=\"ENERGY\",\"F30\",\"F10\"))","v":"F10"},null,{"$f":"+Distribution!H171+Transmission!H171+Generation!H171+Retail!H171+Misc!H171","v":1193.8950647294114},{"$f":"+Distribution!I171+Transmission!I171+Generation!I171+Retail!I171+Misc!I171","v":506.53985493093126},{"$f":"+Distribution!J171+Transmission!J171+Generation!J171+Retail!J171+Misc!J171","v":161.11714026903917},{"$f":"+Distribution!K171+Transmission!K171+Generation!K171+Retail!K171+Misc!K171","v":255.27619919988348},{"$f":"+Distribution!L171+Transmission!L171+Generation!L171+Retail!L171+Misc!L171","v":100.87523037271407},{"$f":"+Distribution!M171+Transmission!M171+Generation!M171+Retail!M171+Misc!M171","v":124.71966464074977},{"$f":"+Distribution!N171+Transmission!N171+Generation!N171+Retail!N171+Misc!N171","v":42.502765952596235},{"$f":"+Distribution!O171+Transmission!O171+Generation!O171+Retail!O171+Misc!O171","v":2.8642093634973622},{"$f":"+Distribution!P171+Transmission!P171+Generation!P171+Retail!P171+Misc!P171","v":0},{"$f":"+Distribution!Q171+Transmission!Q171+Generation!Q171+Retail!Q171+Misc!Q171","v":0},{"$f":"ROUND(SUM(I171:Q171)-H171,0)","v":0}]
[172]
[173,null,"454","Rent of Electric Property",null,"A",null,{"$f":"+Distribution!H173+Transmission!H173+Generation!H173+Retail!H173+Misc!H173","v":1090881.68},{"$f":"+Distribution!I173+Transmission!I173+Generation!I173+Retail!I173+Misc!I173","v":514915.82676780707},{"$f":"+Distribution!J173+Transmission!J173+Generation!J173+Retail!J173+Misc!J173","v":140756.31711288399},{"$f":"+Distribution!K173+Transmission!K173+Generation!K173+Retail!K173+Misc!K173","v":206452.27698855338},{"$f":"+Distribution!L173+Transmission!L173+Generation!L173+Retail!L173+Misc!L173","v":78951.94315350971},{"$f":"+Distribution!M173+Transmission!M173+Generation!M173+Retail!M173+Misc!M173","v":73844.454691424136},{"$f":"+Distribution!N173+Transmission!N173+Generation!N173+Retail!N173+Misc!N173","v":72052.137187026543},{"$f":"+Distribution!O173+Transmission!O173+Generation!O173+Retail!O173+Misc!O173","v":3908.7240987951254},{"$f":"+Distribution!P173+Transmission!P173+Generation!P173+Retail!P173+Misc!P173","v":0},{"$f":"+Distribution!Q173+Transmission!Q173+Generation!Q173+Retail!Q173+Misc!Q173","v":0},{"$f":"ROUND(SUM(I173:Q173)-H173,0)","v":0}]
[174,null,null,null,"Demand",{"$f":"IF(Classification=\"DEMAND\",\"F12\",IF(Classification=\"ENERGY\",\"F30\",\"F10\"))","v":"F10"},null,{"$f":"+Distribution!H174+Transmission!H174+Generation!H174+Retail!H174+Misc!H174","v":248032.61219001404},{"$f":"+Distribution!I174+Transmission!I174+Generation!I174+Retail!I174+Misc!I174","v":105234.04200966755},{"$f":"+Distribution!J174+Transmission!J174+Generation!J174+Retail!J174+Misc!J174","v":33472.209032518185},{"$f":"+Distribution!K174+Transmission!K174+Generation!K174+Retail!K174+Misc!K174","v":53033.825491050018},{"$f":"+Distribution!L174+Transmission!L174+Generation!L174+Retail!L174+Misc!L174","v":20956.906208741566},{"$f":"+Distribution!M174+Transmission!M174+Generation!M174+Retail!M174+Misc!M174","v":25910.605652196755},{"$f":"+Distribution!N174+Transmission!N174+Generation!N174+Retail!N174+Misc!N174","v":8829.9821114618044},{"$f":"+Distribution!O174+Transmission!O174+Generation!O174+Retail!O174+Misc!O174","v":595.04168437814906},{"$f":"+Distribution!P174+Transmission!P174+Generation!P174+Retail!P174+Misc!P174","v":0},{"$f":"+Distribution!Q174+Transmission!Q174+Generation!Q174+Retail!Q174+Misc!Q174","v":0},{"$f":"ROUND(SUM(I174:Q174)-H174,0)","v":0}]
[175,null,null,null,"Customer","F40",null,{"$f":"+Distribution!H175+Transmission!H175+Generation!H175+Retail!H175+Misc!H175","v":248334.89694383487},{"$f":"+Distribution!I175+Transmission!I175+Generation!I175+Retail!I175+Misc!I175","v":195656.94697895643},{"$f":"+Distribution!J175+Transmission!J175+Generation!J175+Retail!J175+Misc!J175","v":34980.633247360267},{"$f":"+Distribution!K175+Transmission!K175+Generation!K175+Retail!K175+Misc!K175","v":1959.4296833021358},{"$f":"+Distribution!L175+Transmission!L175+Generation!L175+Retail!L175+Misc!L175","v":108.63986909516416},{"$f":"+Distribution!M175+Transmission!M175+Generation!M175+Retail!M175+Misc!M175","v":1.8759598901881549},{"$f":"+Distribution!N175+Transmission!N175+Generation!N175+Retail!N175+Misc!N175","v":9867.5490223896941},{"$f":"+Distribution!O175+Transmission!O175+Generation!O175+Retail!O175+Misc!O175","v":5759.8221828410324},{"$f":"+Distribution!P175+Transmission!P175+Generation!P175+Retail!P175+Misc!P175","v":0},{"$f":"+Distribution!Q175+Transmission!Q175+Generation!Q175+Retail!Q175+Misc!Q175","v":0},{"$f":"ROUND(SUM(I175:Q175)-H175,0)","v":0}]
[176,null,null,null,null,null,null,{"$f":"+Distribution!H176+Transmission!H176+Generation!H176+Retail!H176+Misc!H176","v":1587249.1891338488},{"$f":"+Distribution!I176+Transmission!I176+Generation!I176+Retail!I176+Misc!I176","v":815806.81575643097},{"$f":"+Distribution!J176+Transmission!J176+Generation!J176+Retail!J176+Misc!J176","v":209209.15939276243},{"$f":"+Distribution!K176+Transmission!K176+Generation!K176+Retail!K176+Misc!K176","v":261445.53216290553},{"$f":"+Distribution!L176+Transmission!L176+Generation!L176+Retail!L176+Misc!L176","v":100017.48923134645},{"$f":"+Distribution!M176+Transmission!M176+Generation!M176+Retail!M176+Misc!M176","v":99756.936303511073},{"$f":"+Distribution!N176+Transmission!N176+Generation!N176+Retail!N176+Misc!N176","v":90749.668320878045},{"$f":"+Distribution!O176+Transmission!O176+Generation!O176+Retail!O176+Misc!O176","v":10263.587966014305},{"$f":"+Distribution!P176+Transmission!P176+Generation!P176+Retail!P176+Misc!P176","v":0},{"$f":"+Distribution!Q176+Transmission!Q176+Generation!Q176+Retail!Q176+Misc!Q176","v":0},{"$f":"ROUND(SUM(I176:Q176)-H176,0)","v":0}]
[177]
[178,null,"456","Other Electric Revenue",null,"A",null,{"$f":"+Distribution!H178+Transmission!H178+Generation!H178+Retail!H178+Misc!H178","v":-2967338},{"$f":"+Distribution!I178+Transmission!I178+Generation!I178+Retail!I178+Misc!I178","v":-1258967.3954232335},{"$f":"+Distribution!J178+Transmission!J178+Generation!J178+Retail!J178+Misc!J178","v":-400444.75171694078},{"$f":"+Distribution!K178+Transmission!K178+Generation!K178+Retail!K178+Misc!K178","v":-634470.13792042457},{"$f":"+Distribution!L178+Transmission!L178+Generation!L178+Retail!L178+Misc!L178","v":-250717.93425291532},{"$f":"+Distribution!M178+Transmission!M178+Generation!M178+Retail!M178+Misc!M178","v":-309981.51443035796},{"$f":"+Distribution!N178+Transmission!N178+Generation!N178+Retail!N178+Misc!N178","v":-105637.48543916573},{"$f":"+Distribution!O178+Transmission!O178+Generation!O178+Retail!O178+Misc!O178","v":-7118.7808169621649},{"$f":"+Distribution!P178+Transmission!P178+Generation!P178+Retail!P178+Misc!P178","v":0},{"$f":"+Distribution!Q178+Transmission!Q178+Generation!Q178+Retail!Q178+Misc!Q178","v":0},{"$f":"ROUND(SUM(I178:Q178)-H178,0)","v":0}]
[179,null,null,null,"Demand",{"$f":"IF(Classification=\"DEMAND\",\"F12\",IF(Classification=\"ENERGY\",\"F30\",\"F10\"))","v":"F10"},null,{"$f":"+Distribution!H179+Transmission!H179+Generation!H179+Retail!H179+Misc!H179","v":6769204.3659553388},{"$f":"+Distribution!I179+Transmission!I179+Generation!I179+Retail!I179+Misc!I179","v":2872004.3317257329},{"$f":"+Distribution!J179+Transmission!J179+Generation!J179+Retail!J179+Misc!J179","v":913509.80631334125},{"$f":"+Distribution!K179+Transmission!K179+Generation!K179+Retail!K179+Misc!K179","v":1447377.4230233375},{"$f":"+Distribution!L179+Transmission!L179+Generation!L179+Retail!L179+Misc!L179","v":571947.29254575586},{"$f":"+Distribution!M179+Transmission!M179+Generation!M179+Retail!M179+Misc!M179","v":707141.62688828399},{"$f":"+Distribution!N179+Transmission!N179+Generation!N179+Retail!N179+Misc!N179","v":240984.25175808894},{"$f":"+Distribution!O179+Transmission!O179+Generation!O179+Retail!O179+Misc!O179","v":16239.633700798293},{"$f":"+Distribution!P179+Transmission!P179+Generation!P179+Retail!P179+Misc!P179","v":0},{"$f":"+Distribution!Q179+Transmission!Q179+Generation!Q179+Retail!Q179+Misc!Q179","v":0},{"$f":"ROUND(SUM(I179:Q179)-H179,0)","v":0}]
[180,null,null,null,"Energy",{"$f":"IF(Classification=\"DEMAND\",\"F12\",IF(Classification=\"ENERGY\",\"F30\",\"F10\"))","v":"F10"},null,{"$f":"+Distribution!H180+Transmission!H180+Generation!H180+Retail!H180+Misc!H180","v":566679.43535846728},{"$f":"+Distribution!I180+Transmission!I180+Generation!I180+Retail!I180+Misc!I180","v":240427.92994028929},{"$f":"+Distribution!J180+Transmission!J180+Generation!J180+Retail!J180+Misc!J180","v":76473.865058587064},{"$f":"+Distribution!K180+Transmission!K180+Generation!K180+Retail!K180+Misc!K180","v":121166.23704766866},{"$f":"+Distribution!L180+Transmission!L180+Generation!L180+Retail!L180+Misc!L180","v":47880.18669146669},{"$f":"+Distribution!M180+Transmission!M180+Generation!M180+Retail!M180+Misc!M180","v":59197.890354572955},{"$f":"+Distribution!N180+Transmission!N180+Generation!N180+Retail!N180+Misc!N180","v":20173.836145850168},{"$f":"+Distribution!O180+Transmission!O180+Generation!O180+Retail!O180+Misc!O180","v":1359.4901200324359},{"$f":"+Distribution!P180+Transmission!P180+Generation!P180+Retail!P180+Misc!P180","v":0},{"$f":"+Distribution!Q180+Transmission!Q180+Generation!Q180+Retail!Q180+Misc!Q180","v":0},{"$f":"ROUND(SUM(I180:Q180)-H180,0)","v":0}]
[181,null,null,null,"Customer","F40",null,{"$f":"+Distribution!H181+Transmission!H181+Generation!H181+Retail!H181+Misc!H181","v":-1820.4367891981283},{"$f":"+Distribution!I181+Transmission!I181+Generation!I181+Retail!I181+Misc!I181","v":-1434.2772954025718},{"$f":"+Distribution!J181+Transmission!J181+Generation!J181+Retail!J181+Misc!J181","v":-256.42804316521057},{"$f":"+Distribution!K181+Transmission!K181+Generation!K181+Retail!K181+Misc!K181","v":-14.363739954505013},{"$f":"+Distribution!L181+Transmission!L181+Generation!L181+Retail!L181+Misc!L181","v":-0.79639235930355401},{"$f":"+Distribution!M181+Transmission!M181+Generation!M181+Retail!M181+Misc!M181","v":-1.3751858644059086E-2},{"$f":"+Distribution!N181+Transmission!N181+Generation!N181+Retail!N181+Misc!N181","v":-72.334776467750785},{"$f":"+Distribution!O181+Transmission!O181+Generation!O181+Retail!O181+Misc!O181","v":-42.222789990142751},{"$f":"+Distribution!P181+Transmission!P181+Generation!P181+Retail!P181+Misc!P181","v":0},{"$f":"+Distribution!Q181+Transmission!Q181+Generation!Q181+Retail!Q181+Misc!Q181","v":0},{"$f":"ROUND(SUM(I181:Q181)-H181,0)","v":0}]
[182,null,null,null,null,null,null,{"$f":"+Distribution!H182+Transmission!H182+Generation!H182+Retail!H182+Misc!H182","v":4366725.3645246085},{"$f":"+Distribution!I182+Transmission!I182+Generation!I182+Retail!I182+Misc!I182","v":1852030.5889473862},{"$f":"+Distribution!J182+Transmission!J182+Generation!J182+Retail!J182+Misc!J182","v":589282.49161182228},{"$f":"+Distribution!K182+Transmission!K182+Generation!K182+Retail!K182+Misc!K182","v":934059.15841062693},{"$f":"+Distribution!L182+Transmission!L182+Generation!L182+Retail!L182+Misc!L182","v":369108.74859194795},{"$f":"+Distribution!M182+Transmission!M182+Generation!M182+Retail!M182+Misc!M182","v":456357.98906064028},{"$f":"+Distribution!N182+Transmission!N182+Generation!N182+Retail!N182+Misc!N182","v":155448.26768830564},{"$f":"+Distribution!O182+Transmission!O182+Generation!O182+Retail!O182+Misc!O182","v":10438.120213878421},{"$f":"+Distribution!P182+Transmission!P182+Generation!P182+Retail!P182+Misc!P182","v":0},{"$f":"+Distribution!Q182+Transmission!Q182+Generation!Q182+Retail!Q182+Misc!Q182","v":0},{"$f":"ROUND(SUM(I182:Q182)-H182,0)","v":0}]
[183]
[184,null,"Total Other Electric Operating Revenues",null,null,null,null,{"$f":"+Distribution!H184+Transmission!H184+Generation!H184+Retail!H184+Misc!H184","v":6795609.7290179301},{"$f":"+Distribution!I184+Transmission!I184+Generation!I184+Retail!I184+Misc!I184","v":3307757.3184948377},{"$f":"+Distribution!J184+Transmission!J184+Generation!J184+Retail!J184+Misc!J184","v":873088.58088759775},{"$f":"+Distribution!K184+Transmission!K184+Generation!K184+Retail!K184+Misc!K184","v":1268079.6093481209},{"$f":"+Distribution!L184+Transmission!L184+Generation!L184+Retail!L184+Misc!L184","v":487538.83619732864},{"$f":"+Distribution!M184+Transmission!M184+Generation!M184+Retail!M184+Misc!M184","v":566534.69817379257},{"$f":"+Distribution!N184+Transmission!N184+Generation!N184+Retail!N184+Misc!N184","v":258458.06347132928},{"$f":"+Distribution!O184+Transmission!O184+Generation!O184+Retail!O184+Misc!O184","v":34152.622444922359},{"$f":"+Distribution!P184+Transmission!P184+Generation!P184+Retail!P184+Misc!P184","v":0},{"$f":"+Distribution!Q184+Transmission!Q184+Generation!Q184+Retail!Q184+Misc!Q184","v":0},{"$f":"ROUND(SUM(I184:Q184)-H184,0)","v":0}]
[185]
[186,null,"Total Electric Operating Revenues",null,null,null,null,{"$f":"H159+H184","v":327860485.11736876},{"$f":"I159+I184","v":145225650.00218713},48615379.576557629,66437492.113634937,25046773.595299184,{"$f":"M159+M184","v":27426673.610700969},13360573.227929227,1747942.9910596947,0,0,{"$f":"ROUND(SUM(I186:Q186)-H186,0)","v":0}]
[187]
[188,null,"Miscellaneous Revenues"]
[189,null,"41160","Gain on Sale of Utility Plant - CR",null,{"$f":"IF(Classification=\"DEMAND\",\"F12\",IF(Classification=\"ENERGY\",\"F30\",\"F10\"))","v":"F10"},null,{"$f":"+Distribution!H189+Transmission!H189+Generation!H189+Retail!H189+Misc!H189","v":0},{"$f":"+Distribution!I189+Transmission!I189+Generation!I189+Retail!I189+Misc!I189","v":0},{"$f":"+Distribution!J189+Transmission!J189+Generation!J189+Retail!J189+Misc!J189","v":0},{"$f":"+Distribution!K189+Transmission!K189+Generation!K189+Retail!K189+Misc!K189","v":0},{"$f":"+Distribution!L189+Transmission!L189+Generation!L189+Retail!L189+Misc!L189","v":0},{"$f":"+Distribution!M189+Transmission!M189+Generation!M189+Retail!M189+Misc!M189","v":0},{"$f":"+Distribution!N189+Transmission!N189+Generation!N189+Retail!N189+Misc!N189","v":0},{"$f":"+Distribution!O189+Transmission!O189+Generation!O189+Retail!O189+Misc!O189","v":0},{"$f":"+Distribution!P189+Transmission!P189+Generation!P189+Retail!P189+Misc!P189","v":0},{"$f":"+Distribution!Q189+Transmission!Q189+Generation!Q189+Retail!Q189+Misc!Q189","v":0},{"$f":"ROUND(SUM(I189:Q189)-H189,0)","v":0}]
[190,null,"41170","Loss on Sale of Utility Plant ",null,"F10",null,{"$f":"+Distribution!H190+Transmission!H190+Generation!H190+Retail!H190+Misc!H190","v":0},{"$f":"+Distribution!I190+Transmission!I190+Generation!I190+Retail!I190+Misc!I190","v":0},{"$f":"+Distribution!J190+Transmission!J190+Generation!J190+Retail!J190+Misc!J190","v":0},{"$f":"+Distribution!K190+Transmission!K190+Generation!K190+Retail!K190+Misc!K190","v":0},{"$f":"+Distribution!L190+Transmission!L190+Generation!L190+Retail!L190+Misc!L190","v":0},{"$f":"+Distribution!M190+Transmission!M190+Generation!M190+Retail!M190+Misc!M190","v":0},{"$f":"+Distribution!N190+Transmission!N190+Generation!N190+Retail!N190+Misc!N190","v":0},{"$f":"+Distribution!O190+Transmission!O190+Generation!O190+Retail!O190+Misc!O190","v":0},{"$f":"+Distribution!P190+Transmission!P190+Generation!P190+Retail!P190+Misc!P190","v":0},{"$f":"+Distribution!Q190+Transmission!Q190+Generation!Q190+Retail!Q190+Misc!Q190","v":0},0]
[191,null,"4118","Gain from Emission Allowances",null,"F10",null,{"$f":"+Distribution!H191+Transmission!H191+Generation!H191+Retail!H191+Misc!H191","v":-854647.89922117116},{"$f":"+Distribution!I191+Transmission!I191+Generation!I191+Retail!I191+Misc!I191","v":-362605.75629955734},{"$f":"+Distribution!J191+Transmission!J191+Generation!J191+Retail!J191+Misc!J191","v":-115335.45076732982},{"$f":"+Distribution!K191+Transmission!K191+Generation!K191+Retail!K191+Misc!K191","v":-182739.06460681511},{"$f":"+Distribution!L191+Transmission!L191+Generation!L191+Retail!L191+Misc!L191","v":-72211.374574223024},{"$f":"+Distribution!M191+Transmission!M191+Generation!M191+Retail!M191+Misc!M191","v":-89280.375240468915},{"$f":"+Distribution!N191+Transmission!N191+Generation!N191+Retail!N191+Misc!N191","v":-30425.537976998254},{"$f":"+Distribution!O191+Transmission!O191+Generation!O191+Retail!O191+Misc!O191","v":-2050.3397557786429},{"$f":"+Distribution!P191+Transmission!P191+Generation!P191+Retail!P191+Misc!P191","v":0},{"$f":"+Distribution!Q191+Transmission!Q191+Generation!Q191+Retail!Q191+Misc!Q191","v":0},0]
[192,null,41181,"Gain from Disposition of NOX Credits",null,"F10",null,{"$f":"+Distribution!H192+Transmission!H192+Generation!H192+Retail!H192+Misc!H192","v":0},{"$f":"+Distribution!I192+Transmission!I192+Generation!I192+Retail!I192+Misc!I192","v":0},{"$f":"+Distribution!J192+Transmission!J192+Generation!J192+Retail!J192+Misc!J192","v":0},{"$f":"+Distribution!K192+Transmission!K192+Generation!K192+Retail!K192+Misc!K192","v":0},{"$f":"+Distribution!L192+Transmission!L192+Generation!L192+Retail!L192+Misc!L192","v":0},{"$f":"+Distribution!M192+Transmission!M192+Generation!M192+Retail!M192+Misc!M192","v":0},{"$f":"+Distribution!N192+Transmission!N192+Generation!N192+Retail!N192+Misc!N192","v":0},{"$f":"+Distribution!O192+Transmission!O192+Generation!O192+Retail!O192+Misc!O192","v":0},{"$f":"+Distribution!P192+Transmission!P192+Generation!P192+Retail!P192+Misc!P192","v":0},{"$f":"+Distribution!Q192+Transmission!Q192+Generation!Q192+Retail!Q192+Misc!Q192","v":0},0]
[193,null,"4194","Impact Housing Interest Income",null,"F10",null,{"$f":"+Distribution!H193+Transmission!H193+Generation!H193+Retail!H193+Misc!H193","v":0},{"$f":"+Distribution!I193+Transmission!I193+Generation!I193+Retail!I193+Misc!I193","v":0},{"$f":"+Distribution!J193+Transmission!J193+Generation!J193+Retail!J193+Misc!J193","v":0},{"$f":"+Distribution!K193+Transmission!K193+Generation!K193+Retail!K193+Misc!K193","v":0},{"$f":"+Distribution!L193+Transmission!L193+Generation!L193+Retail!L193+Misc!L193","v":0},{"$f":"+Distribution!M193+Transmission!M193+Generation!M193+Retail!M193+Misc!M193","v":0},{"$f":"+Distribution!N193+Transmission!N193+Generation!N193+Retail!N193+Misc!N193","v":0},{"$f":"+Distribution!O193+Transmission!O193+Generation!O193+Retail!O193+Misc!O193","v":0},{"$f":"+Distribution!P193+Transmission!P193+Generation!P193+Retail!P193+Misc!P193","v":0},{"$f":"+Distribution!Q193+Transmission!Q193+Generation!Q193+Retail!Q193+Misc!Q193","v":0},0]
[194,null,"421","(Gain)/Loss on Sale of Utility Plant",null,"F10",null,{"$f":"+Distribution!H194+Transmission!H194+Generation!H194+Retail!H194+Misc!H194","v":5525.3092847143307},{"$f":"+Distribution!I194+Transmission!I194+Generation!I194+Retail!I194+Misc!I194","v":2344.2507186861121},{"$f":"+Distribution!J194+Transmission!J194+Generation!J194+Retail!J194+Misc!J194","v":745.64512188255526},{"$f":"+Distribution!K194+Transmission!K194+Generation!K194+Retail!K194+Misc!K194","v":1181.4103226277907},{"$f":"+Distribution!L194+Transmission!L194+Generation!L194+Retail!L194+Misc!L194","v":466.84743361626818},{"$f":"+Distribution!M194+Transmission!M194+Generation!M194+Retail!M194+Misc!M194","v":577.19873495094453},{"$f":"+Distribution!N194+Transmission!N194+Generation!N194+Retail!N194+Misc!N194","v":196.70148096067831},{"$f":"+Distribution!O194+Transmission!O194+Generation!O194+Retail!O194+Misc!O194","v":13.255471989981364},{"$f":"+Distribution!P194+Transmission!P194+Generation!P194+Retail!P194+Misc!P194","v":0},{"$f":"+Distribution!Q194+Transmission!Q194+Generation!Q194+Retail!Q194+Misc!Q194","v":0},0]
[195]
[196,null,"Total Miscellaneous Revenues",null,null,null,null,{"$f":"+Distribution!H196+Transmission!H196+Generation!H196+Retail!H196+Misc!H196","v":-849122.58993645688},{"$f":"+Distribution!I196+Transmission!I196+Generation!I196+Retail!I196+Misc!I196","v":-360261.50558087125},{"$f":"+Distribution!J196+Transmission!J196+Generation!J196+Retail!J196+Misc!J196","v":-114589.80564544725},{"$f":"+Distribution!K196+Transmission!K196+Generation!K196+Retail!K196+Misc!K196","v":-181557.65428418733},{"$f":"+Distribution!L196+Transmission!L196+Generation!L196+Retail!L196+Misc!L196","v":-71744.527140606748},{"$f":"+Distribution!M196+Transmission!M196+Generation!M196+Retail!M196+Misc!M196","v":-88703.176505517971},{"$f":"+Distribution!N196+Transmission!N196+Generation!N196+Retail!N196+Misc!N196","v":-30228.836496037577},{"$f":"+Distribution!O196+Transmission!O196+Generation!O196+Retail!O196+Misc!O196","v":-2037.0842837886614},{"$f":"+Distribution!P196+Transmission!P196+Generation!P196+Retail!P196+Misc!P196","v":0},{"$f":"+Distribution!Q196+Transmission!Q196+Generation!Q196+Retail!Q196+Misc!Q196","v":0},{"$f":"ROUND(SUM(I196:Q196)-H196,0)","v":0}]
[197]
[198,null,"Miscellaneous Expenses"]
[{"$f":"+A198+1","v":199},null,"4311","Interest on Customer Deposits",null,"F80",null,{"$f":"+Distribution!H199+Transmission!H199+Generation!H199+Retail!H199+Misc!H199","v":6775.2872727272734},{"$f":"+Distribution!I199+Transmission!I199+Generation!I199+Retail!I199+Misc!I199","v":5853.0850410034527},{"$f":"+Distribution!J199+Transmission!J199+Generation!J199+Retail!J199+Misc!J199","v":264.4754706112343},{"$f":"+Distribution!K199+Transmission!K199+Generation!K199+Retail!K199+Misc!K199","v":344.24088041731272},{"$f":"+Distribution!L199+Transmission!L199+Generation!L199+Retail!L199+Misc!L199","v":129.55629709338527},{"$f":"+Distribution!M199+Transmission!M199+Generation!M199+Retail!M199+Misc!M199","v":140.72484612723864},{"$f":"+Distribution!N199+Transmission!N199+Generation!N199+Retail!N199+Misc!N199","v":43.204737474649839},{"$f":"+Distribution!O199+Transmission!O199+Generation!O199+Retail!O199+Misc!O199","v":0},{"$f":"+Distribution!P199+Transmission!P199+Generation!P199+Retail!P199+Misc!P199","v":0},{"$f":"+Distribution!Q199+Transmission!Q199+Generation!Q199+Retail!Q199+Misc!Q199","v":0},{"$f":"ROUND(SUM(I199:Q199)-H199,0)","v":0}]
[200]
[201,null,"DFA","Divergence Fairness Adjustment"]
[202,null,null,"Production ",null,"F105",null,{"$f":"+Distribution!H202+Transmission!H202+Generation!H202+Retail!H202+Misc!H202","v":0},{"$f":"+Distribution!I202+Transmission!I202+Generation!I202+Retail!I202+Misc!I202","v":0},{"$f":"+Distribution!J202+Transmission!J202+Generation!J202+Retail!J202+Misc!J202","v":0},{"$f":"+Distribution!K202+Transmission!K202+Generation!K202+Retail!K202+Misc!K202","v":0},{"$f":"+Distribution!L202+Transmission!L202+Generation!L202+Retail!L202+Misc!L202","v":0},{"$f":"+Distribution!M202+Transmission!M202+Generation!M202+Retail!M202+Misc!M202","v":0},{"$f":"+Distribution!N202+Transmission!N202+Generation!N202+Retail!N202+Misc!N202","v":0},{"$f":"+Distribution!O202+Transmission!O202+Generation!O202+Retail!O202+Misc!O202","v":0},{"$f":"+Distribution!P202+Transmission!P202+Generation!P202+Retail!P202+Misc!P202","v":0},{"$f":"+Distribution!Q202+Transmission!Q202+Generation!Q202+Retail!Q202+Misc!Q202","v":0},{"$f":"ROUND(SUM(I202:Q202)-H202,0)","v":0}]
[203,null,null,"Transmission",null,"F105",null,{"$f":"+Distribution!H203+Transmission!H203+Generation!H203+Retail!H203+Misc!H203","v":0},{"$f":"+Distribution!I203+Transmission!I203+Generation!I203+Retail!I203+Misc!I203","v":0},{"$f":"+Distribution!J203+Transmission!J203+Generation!J203+Retail!J203+Misc!J203","v":0},{"$f":"+Distribution!K203+Transmission!K203+Generation!K203+Retail!K203+Misc!K203","v":0},{"$f":"+Distribution!L203+Transmission!L203+Generation!L203+Retail!L203+Misc!L203","v":0},{"$f":"+Distribution!M203+Transmission!M203+Generation!M203+Retail!M203+Misc!M203","v":0},{"$f":"+Distribution!N203+Transmission!N203+Generation!N203+Retail!N203+Misc!N203","v":0},{"$f":"+Distribution!O203+Transmission!O203+Generation!O203+Retail!O203+Misc!O203","v":0},{"$f":"+Distribution!P203+Transmission!P203+Generation!P203+Retail!P203+Misc!P203","v":0},{"$f":"+Distribution!Q203+Transmission!Q203+Generation!Q203+Retail!Q203+Misc!Q203","v":0},{"$f":"ROUND(SUM(I203:Q203)-H203,0)","v":0}]
[204,null,null,"Distribution",null,"F105",null,{"$f":"+Distribution!H204+Transmission!H204+Generation!H204+Retail!H204+Misc!H204","v":0},{"$f":"+Distribution!I204+Transmission!I204+Generation!I204+Retail!I204+Misc!I204","v":0},{"$f":"+Distribution!J204+Transmission!J204+Generation!J204+Retail!J204+Misc!J204","v":0},{"$f":"+Distribution!K204+Transmission!K204+Generation!K204+Retail!K204+Misc!K204","v":0},{"$f":"+Distribution!L204+Transmission!L204+Generation!L204+Retail!L204+Misc!L204","v":0},{"$f":"+Distribution!M204+Transmission!M204+Generation!M204+Retail!M204+Misc!M204","v":0},{"$f":"+Distribution!N204+Transmission!N204+Generation!N204+Retail!N204+Misc!N204","v":0},{"$f":"+Distribution!O204+Transmission!O204+Generation!O204+Retail!O204+Misc!O204","v":0},{"$f":"+Distribution!P204+Transmission!P204+Generation!P204+Retail!P204+Misc!P204","v":0},{"$f":"+Distribution!Q204+Transmission!Q204+Generation!Q204+Retail!Q204+Misc!Q204","v":0},{"$f":"ROUND(SUM(I204:Q204)-H204,0)","v":0}]
[205,null,null,null,"Total DFA",null,null,{"$f":"+Distribution!H205+Transmission!H205+Generation!H205+Retail!H205+Misc!H205","v":0},{"$f":"+Distribution!I205+Transmission!I205+Generation!I205+Retail!I205+Misc!I205","v":0},{"$f":"+Distribution!J205+Transmission!J205+Generation!J205+Retail!J205+Misc!J205","v":0},{"$f":"+Distribution!K205+Transmission!K205+Generation!K205+Retail!K205+Misc!K205","v":0},{"$f":"+Distribution!L205+Transmission!L205+Generation!L205+Retail!L205+Misc!L205","v":0},{"$f":"+Distribution!M205+Transmission!M205+Generation!M205+Retail!M205+Misc!M205","v":0},{"$f":"+Distribution!N205+Transmission!N205+Generation!N205+Retail!N205+Misc!N205","v":0},{"$f":"+Distribution!O205+Transmission!O205+Generation!O205+Retail!O205+Misc!O205","v":0},{"$f":"+Distribution!P205+Transmission!P205+Generation!P205+Retail!P205+Misc!P205","v":0},{"$f":"+Distribution!Q205+Transmission!Q205+Generation!Q205+Retail!Q205+Misc!Q205","v":0},{"$f":"ROUND(SUM(I205:Q205)-H205,0)","v":0}]
[206]
[207,null,"Net Miscellaneous Revenues And Expense",null,null,null,null,{"$f":"+Distribution!H207+Transmission!H207+Generation!H207+Retail!H207+Misc!H207","v":-842347.30266372964},{"$f":"+Distribution!I207+Transmission!I207+Generation!I207+Retail!I207+Misc!I207","v":-354408.42053986777},{"$f":"+Distribution!J207+Transmission!J207+Generation!J207+Retail!J207+Misc!J207","v":-114325.33017483602},{"$f":"+Distribution!K207+Transmission!K207+Generation!K207+Retail!K207+Misc!K207","v":-181213.41340377001},{"$f":"+Distribution!L207+Transmission!L207+Generation!L207+Retail!L207+Misc!L207","v":-71614.970843513365},{"$f":"+Distribution!M207+Transmission!M207+Generation!M207+Retail!M207+Misc!M207","v":-88562.451659390732},{"$f":"+Distribution!N207+Transmission!N207+Generation!N207+Retail!N207+Misc!N207","v":-30185.631758562926},{"$f":"+Distribution!O207+Transmission!O207+Generation!O207+Retail!O207+Misc!O207","v":-2037.0842837886614},{"$f":"+Distribution!P207+Transmission!P207+Generation!P207+Retail!P207+Misc!P207","v":0},{"$f":"+Distribution!Q207+Transmission!Q207+Generation!Q207+Retail!Q207+Misc!Q207","v":0},{"$f":"ROUND(SUM(I207:Q207)-H207,0)","v":0}]
[208]
[209]
[210,null,null,null,null,null,null,"STEAM POWER GENERATION"]
[211]
[212,null,"A",null,"B","C",null,"D","E","F","G","H","I","J","K","L","M"]
[213,null,null,null,null,null,null,{"$f":"'Hot Sheet'!$H$10","v":"Washington"},null,{"$f":"'Hot Sheet'!$J$10","v":"Small General"},{"$f":"'Hot Sheet'!$K$10","v":"Large General"},{"$f":"'Hot Sheet'!$L$10","v":"Large General"},{"$f":"'Hot Sheet'!$M$10","v":"Large General"},{"$f":"'Hot Sheet'!$N$10","v":"Agricultural"},{"$f":"'Hot Sheet'!$O$10","v":"Street & Area"}]
[214,null,"FERC",null,null,"COS",null,{"$f":"'Hot Sheet'!$H$11","v":"Jurisdiction"},{"$f":"'Hot Sheet'!$I$11","v":"Residential"},{"$f":"'Hot Sheet'!$J$11","v":"Service"},{"$f":"'Hot Sheet'!$K$11","v":"Service <1,000 kW"},{"$f":"'Hot Sheet'!$L$11","v":"Service >1,000 kW"},{"$f":"'Hot Sheet'!$M$11","v":"Dedicated Facilities"},{"$f":"'Hot Sheet'!$N$11","v":"Pumping"},{"$f":"'Hot Sheet'!$O$11","v":"Lighting"}]
[215,null,"ACCT",null,"DESCRIPTION ","Factor",null,{"$f":"'Hot Sheet'!$H$12","v":"Normalized"},{"$f":"'Hot Sheet'!$I$12","v":"Schedule 16"},{"$f":"'Hot Sheet'!$J$12","v":"Schedule 24"},{"$f":"'Hot Sheet'!$K$12","v":"Schedule 36"},{"$f":"'Hot Sheet'!$L$12","v":"Schedule 48T"},{"$f":"'Hot Sheet'!$M$12","v":"Schedule 48T"},{"$f":"'Hot Sheet'!$N$12","v":"Schedule 40"},{"$f":"'Hot Sheet'!$O$12","v":"Sch. 15,51-54,57"}]
[216,null,"500","Operation Suprvn & Engineering",null,{"$f":"IF(Classification=\"DEMAND\",\"F12\",IF(Classification=\"ENERGY\",\"F30\",\"F10\"))","v":"F10"},null,{"$f":"+Distribution!H216+Transmission!H216+Generation!H216+Retail!H216+Misc!H216","v":7026.3699678522535},{"$f":"+Distribution!I216+Transmission!I216+Generation!I216+Retail!I216+Misc!I216","v":2981.113273144812},{"$f":"+Distribution!J216+Transmission!J216+Generation!J216+Retail!J216+Misc!J216","v":948.21451996636881},{"$f":"+Distribution!K216+Transmission!K216+Generation!K216+Retail!K216+Misc!K216","v":1502.364045681061},{"$f":"+Distribution!L216+Transmission!L216+Generation!L216+Retail!L216+Misc!L216","v":593.67586828215724},{"$f":"+Distribution!M216+Transmission!M216+Generation!M216+Retail!M216+Misc!M216","v":734.00630584814633},{"$f":"+Distribution!N216+Transmission!N216+Generation!N216+Retail!N216+Misc!N216","v":250.1393690806992},{"$f":"+Distribution!O216+Transmission!O216+Generation!O216+Retail!O216+Misc!O216","v":16.85658584900867},{"$f":"+Distribution!P216+Transmission!P216+Generation!P216+Retail!P216+Misc!P216","v":0},{"$f":"+Distribution!Q216+Transmission!Q216+Generation!Q216+Retail!Q216+Misc!Q216","v":0},{"$f":"ROUND(SUM(I216:Q216)-H216,0)","v":0}]
[217,null,null,null,"JBG",{"$f":"IF(Classification=\"DEMAND\",\"F12\",IF(Classification=\"ENERGY\",\"F30\",\"F10\"))","v":"F10"},null,{"$f":"+Distribution!H217+Transmission!H217+Generation!H217+Retail!H217+Misc!H217","v":3607647.0253847498},{"$f":"+Distribution!I217+Transmission!I217+Generation!I217+Retail!I217+Misc!I217","v":1530634.5212965338},{"$f":"+Distribution!J217+Transmission!J217+Generation!J217+Retail!J217+Misc!J217","v":486854.99170049257},{"$f":"+Distribution!K217+Transmission!K217+Generation!K217+Retail!K217+Misc!K217","v":771379.7032101067},{"$f":"+Distribution!L217+Transmission!L217+Generation!L217+Retail!L217+Misc!L217","v":304819.27226293035},{"$f":"+Distribution!M217+Transmission!M217+Generation!M217+Retail!M217+Misc!M217","v":376871.08393413242},{"$f":"+Distribution!N217+Transmission!N217+Generation!N217+Retail!N217+Misc!N217","v":128432.54125877505},{"$f":"+Distribution!O217+Transmission!O217+Generation!O217+Retail!O217+Misc!O217","v":8654.9117217787698},{"$f":"+Distribution!P217+Transmission!P217+Generation!P217+Retail!P217+Misc!P217","v":0},{"$f":"+Distribution!Q217+Transmission!Q217+Generation!Q217+Retail!Q217+Misc!Q217","v":0},{"$f":"ROUND(SUM(I217:Q217)-H217,0)","v":0}]
[218,null,null,null,"Total 500",null,null,{"$f":"SUM(H216:H217)","v":3614673.395352602},{"$f":"SUM(I216:I217)","v":1533615.6345696785},487803.20622045896,772882.06725578778,305412.9481312125,{"$f":"SUM(M216:M217)","v":377605.09023998055},128682.68062785575,8671.768307627779,0,0,0]
[219]
[220,null,"501","Fuel Related",null,{"$f":"IF(Classification=\"DEMAND\",\"F12\",IF(Classification=\"ENERGY\",\"F30\",\"F10\"))","v":"F10"},null,{"$f":"+Distribution!H220+Transmission!H220+Generation!H220+Retail!H220+Misc!H220","v":4788.4193593390519},{"$f":"+Distribution!I220+Transmission!I220+Generation!I220+Retail!I220+Misc!I220","v":2031.6067293383073},{"$f":"+Distribution!J220+Transmission!J220+Generation!J220+Retail!J220+Misc!J220","v":646.20120844579196},{"$f":"+Distribution!K220+Transmission!K220+Generation!K220+Retail!K220+Misc!K220","v":1023.8500269739003},{"$f":"+Distribution!L220+Transmission!L220+Generation!L220+Retail!L220+Misc!L220","v":404.5857297382891},{"$f":"+Distribution!M220+Transmission!M220+Generation!M220+Retail!M220+Misc!M220","v":500.21988891577689},{"$f":"+Distribution!N220+Transmission!N220+Generation!N220+Retail!N220+Misc!N220","v":170.46813687850806},{"$f":"+Distribution!O220+Transmission!O220+Generation!O220+Retail!O220+Misc!O220","v":11.487639048478165},{"$f":"+Distribution!P220+Transmission!P220+Generation!P220+Retail!P220+Misc!P220","v":0},{"$f":"+Distribution!Q220+Transmission!Q220+Generation!Q220+Retail!Q220+Misc!Q220","v":0},{"$f":"ROUND(SUM(I220:Q220)-H220,0)","v":0}]
[221,null,null,null,"CAEW",{"$f":"IF(Classification=\"DEMAND\",\"F12\",IF(Classification=\"ENERGY\",\"F30\",\"F10\"))","v":"F10"},null,{"$f":"+Distribution!H221+Transmission!H221+Generation!H221+Retail!H221+Misc!H221","v":412249.83472986781},{"$f":"+Distribution!I221+Transmission!I221+Generation!I221+Retail!I221+Misc!I221","v":174907.30772615728},{"$f":"+Distribution!J221+Transmission!J221+Generation!J221+Retail!J221+Misc!J221","v":55633.460938306249},{"$f":"+Distribution!K221+Transmission!K221+Generation!K221+Retail!K221+Misc!K221","v":88146.415911746983},{"$f":"+Distribution!L221+Transmission!L221+Generation!L221+Retail!L221+Misc!L221","v":34832.036983848222},{"$f":"+Distribution!M221+Transmission!M221+Generation!M221+Retail!M221+Misc!M221","v":43065.477573916149},{"$f":"+Distribution!N221+Transmission!N221+Generation!N221+Retail!N221+Misc!N221","v":14676.12921533539},{"$f":"+Distribution!O221+Transmission!O221+Generation!O221+Retail!O221+Misc!O221","v":989.00638055752529},{"$f":"+Distribution!P221+Transmission!P221+Generation!P221+Retail!P221+Misc!P221","v":0},{"$f":"+Distribution!Q221+Transmission!Q221+Generation!Q221+Retail!Q221+Misc!Q221","v":0},{"$f":"ROUND(SUM(I221:Q221)-H221,0)","v":0}]
[222,null,null,null,"JBE",{"$f":"IF(Classification=\"DEMAND\",\"F12\",IF(Classification=\"ENERGY\",\"F30\",\"F10\"))","v":"F10"},null,{"$f":"+Distribution!H222+Transmission!H222+Generation!H222+Retail!H222+Misc!H222","v":293322.24345246662},{"$f":"+Distribution!I222+Transmission!I222+Generation!I222+Retail!I222+Misc!I222","v":124449.30131284386},{"$f":"+Distribution!J222+Transmission!J222+Generation!J222+Retail!J222+Misc!J222","v":39584.082754434807},{"$f":"+Distribution!K222+Transmission!K222+Generation!K222+Retail!K222+Misc!K222","v":62717.561753468879},{"$f":"+Distribution!L222+Transmission!L222+Generation!L222+Retail!L222+Misc!L222","v":24783.542336206105},{"$f":"+Distribution!M222+Transmission!M222+Generation!M222+Retail!M222+Misc!M222","v":30641.764855067318},{"$f":"+Distribution!N222+Transmission!N222+Generation!N222+Retail!N222+Misc!N222","v":10442.29684036445},{"$f":"+Distribution!O222+Transmission!O222+Generation!O222+Retail!O222+Misc!O222","v":703.69360008119247},{"$f":"+Distribution!P222+Transmission!P222+Generation!P222+Retail!P222+Misc!P222","v":0},{"$f":"+Distribution!Q222+Transmission!Q222+Generation!Q222+Retail!Q222+Misc!Q222","v":0},{"$f":"ROUND(SUM(I222:Q222)-H222,0)","v":0}]
[223,null,null,null,"Total 501",null,null,{"$f":"SUM(H220:H222)","v":710360.49754167348},{"$f":"SUM(I220:I222)","v":301388.21576833946},95863.744901186845,151887.82769218978,60020.165049792617,{"$f":"SUM(M220:M222)","v":74207.462317899248},25288.894192578347,1704.1876196871958,0,0,0]
[224]
[225,null,"501NPC","Fuel Related"]
[226,null,null,null,"CAEW","F10",null,{"$f":"+Distribution!H226+Transmission!H226+Generation!H226+Retail!H226+Misc!H226","v":47552446.991143696},{"$f":"+Distribution!I226+Transmission!I226+Generation!I226+Retail!I226+Misc!I226","v":20175315.496394936},{"$f":"+Distribution!J226+Transmission!J226+Generation!J226+Retail!J226+Misc!J226","v":6417242.602258835},{"$f":"+Distribution!K226+Transmission!K226+Generation!K226+Retail!K226+Misc!K226","v":10167566.890231116},{"$f":"+Distribution!L226+Transmission!L226+Generation!L226+Retail!L226+Misc!L226","v":4017827.1832500398},{"$f":"+Distribution!M226+Transmission!M226+Generation!M226+Retail!M226+Misc!M226","v":4967543.1424340736},{"$f":"+Distribution!N226+Transmission!N226+Generation!N226+Retail!N226+Misc!N226","v":1692871.1615001871},{"$f":"+Distribution!O226+Transmission!O226+Generation!O226+Retail!O226+Misc!O226","v":114080.5150745092},{"$f":"+Distribution!P226+Transmission!P226+Generation!P226+Retail!P226+Misc!P226","v":0},{"$f":"+Distribution!Q226+Transmission!Q226+Generation!Q226+Retail!Q226+Misc!Q226","v":0},{"$f":"ROUND(SUM(I226:Q226)-H226,0)","v":0}]
[227,null,null,null,"Total 501NPC",null,null,{"$f":"SUM(H225:H226)","v":47552446.991143696},20175315.496394936,6417242.602258835,10167566.890231116,4017827.1832500398,4967543.1424340736,1692871.1615001871,114080.5150745092,0,0,0]
[228]
[229,null,"502","Steam Expenses",null,{"$f":"IF(Classification=\"DEMAND\",\"F12\",IF(Classification=\"ENERGY\",\"F30\",\"F10\"))","v":"F10"},null,{"$f":"+Distribution!H229+Transmission!H229+Generation!H229+Retail!H229+Misc!H229","v":867177.1405524679},{"$f":"+Distribution!I229+Transmission!I229+Generation!I229+Retail!I229+Misc!I229","v":367921.60044184641},{"$f":"+Distribution!J229+Transmission!J229+Generation!J229+Retail!J229+Misc!J229","v":117026.28239288538},{"$f":"+Distribution!K229+Transmission!K229+Generation!K229+Retail!K229+Misc!K229","v":185418.04134472166},{"$f":"+Distribution!L229+Transmission!L229+Generation!L229+Retail!L229+Misc!L229","v":73270.002039088489},{"$f":"+Distribution!M229+Transmission!M229+Generation!M229+Retail!M229+Misc!M229","v":90589.236314784954},{"$f":"+Distribution!N229+Transmission!N229+Generation!N229+Retail!N229+Misc!N229","v":30871.580035132061},{"$f":"+Distribution!O229+Transmission!O229+Generation!O229+Retail!O229+Misc!O229","v":2080.3979840089037},{"$f":"+Distribution!P229+Transmission!P229+Generation!P229+Retail!P229+Misc!P229","v":0},{"$f":"+Distribution!Q229+Transmission!Q229+Generation!Q229+Retail!Q229+Misc!Q229","v":0},{"$f":"ROUND(SUM(I229:Q229)-H229,0)","v":0}]
[230,null,null,null,"JBG",{"$f":"IF(Classification=\"DEMAND\",\"F12\",IF(Classification=\"ENERGY\",\"F30\",\"F10\"))","v":"F10"},null,{"$f":"+Distribution!H230+Transmission!H230+Generation!H230+Retail!H230+Misc!H230","v":214953.74891334938},{"$f":"+Distribution!I230+Transmission!I230+Generation!I230+Retail!I230+Misc!I230","v":91199.506563087576},{"$f":"+Distribution!J230+Transmission!J230+Generation!J230+Retail!J230+Misc!J230","v":29008.1886910867},{"$f":"+Distribution!K230+Transmission!K230+Generation!K230+Retail!K230+Misc!K230","v":45960.970647619208},{"$f":"+Distribution!L230+Transmission!L230+Generation!L230+Retail!L230+Misc!L230","v":18161.988923228429},{"$f":"+Distribution!M230+Transmission!M230+Generation!M230+Retail!M230+Misc!M230","v":22455.038361198807},{"$f":"+Distribution!N230+Transmission!N230+Generation!N230+Retail!N230+Misc!N230","v":7652.3717624780293},{"$f":"+Distribution!O230+Transmission!O230+Generation!O230+Retail!O230+Misc!O230","v":515.68396465062403},{"$f":"+Distribution!P230+Transmission!P230+Generation!P230+Retail!P230+Misc!P230","v":0},{"$f":"+Distribution!Q230+Transmission!Q230+Generation!Q230+Retail!Q230+Misc!Q230","v":0},{"$f":"ROUND(SUM(I230:Q230)-H230,0)","v":0}]
[231,null,null,null,"Total 502",null,null,{"$f":"SUM(H229:H230)","v":1082130.8894658173},{"$f":"SUM(I229:I230)","v":459121.10700493399},146034.47108397208,231379.01199234085,91431.990962316922,{"$f":"SUM(M229:M230)","v":113044.27467598376},38523.951797610091,2596.0819486595278,0,0,{"$f":"ROUND(SUM(I231:Q231)-H231,0)","v":0}]
[232]
[233,null,"503","Steam From Other Sources",null,{"$f":"IF(Classification=\"DEMAND\",\"F12\",IF(Classification=\"ENERGY\",\"F30\",\"F10\"))","v":"F10"},null,{"$f":"+Distribution!H233+Transmission!H233+Generation!H233+Retail!H233+Misc!H233","v":0},{"$f":"+Distribution!I233+Transmission!I233+Generation!I233+Retail!I233+Misc!I233","v":0},{"$f":"+Distribution!J233+Transmission!J233+Generation!J233+Retail!J233+Misc!J233","v":0},{"$f":"+Distribution!K233+Transmission!K233+Generation!K233+Retail!K233+Misc!K233","v":0},{"$f":"+Distribution!L233+Transmission!L233+Generation!L233+Retail!L233+Misc!L233","v":0},{"$f":"+Distribution!M233+Transmission!M233+Generation!M233+Retail!M233+Misc!M233","v":0},{"$f":"+Distribution!N233+Transmission!N233+Generation!N233+Retail!N233+Misc!N233","v":0},{"$f":"+Distribution!O233+Transmission!O233+Generation!O233+Retail!O233+Misc!O233","v":0},{"$f":"+Distribution!P233+Transmission!P233+Generation!P233+Retail!P233+Misc!P233","v":0},{"$f":"+Distribution!Q233+Transmission!Q233+Generation!Q233+Retail!Q233+Misc!Q233","v":0},{"$f":"ROUND(SUM(I233:Q233)-H233,0)","v":0}]
[234]
[235,null,"503NPC","Steam From Other Sources-NPC",null,"F10",null,{"$f":"+Distribution!H235+Transmission!H235+Generation!H235+Retail!H235+Misc!H235","v":0},{"$f":"+Distribution!I235+Transmission!I235+Generation!I235+Retail!I235+Misc!I235","v":0},{"$f":"+Distribution!J235+Transmission!J235+Generation!J235+Retail!J235+Misc!J235","v":0},{"$f":"+Distribution!K235+Transmission!K235+Generation!K235+Retail!K235+Misc!K235","v":0},{"$f":"+Distribution!L235+Transmission!L235+Generation!L235+Retail!L235+Misc!L235","v":0},{"$f":"+Distribution!M235+Transmission!M235+Generation!M235+Retail!M235+Misc!M235","v":0},{"$f":"+Distribution!N235+Transmission!N235+Generation!N235+Retail!N235+Misc!N235","v":0},{"$f":"+Distribution!O235+Transmission!O235+Generation!O235+Retail!O235+Misc!O235","v":0},{"$f":"+Distribution!P235+Transmission!P235+Generation!P235+Retail!P235+Misc!P235","v":0},{"$f":"+Distribution!Q235+Transmission!Q235+Generation!Q235+Retail!Q235+Misc!Q235","v":0},{"$f":"ROUND(SUM(I235:Q235)-H235,0)","v":0}]
[236]
[237,null,"505","Electric Expenses",null,{"$f":"IF(Classification=\"DEMAND\",\"F12\",IF(Classification=\"ENERGY\",\"F30\",\"F10\"))","v":"F10"},null,{"$f":"+Distribution!H237+Transmission!H237+Generation!H237+Retail!H237+Misc!H237","v":0},{"$f":"+Distribution!I237+Transmission!I237+Generation!I237+Retail!I237+Misc!I237","v":0},{"$f":"+Distribution!J237+Transmission!J237+Generation!J237+Retail!J237+Misc!J237","v":0},{"$f":"+Distribution!K237+Transmission!K237+Generation!K237+Retail!K237+Misc!K237","v":0},{"$f":"+Distribution!L237+Transmission!L237+Generation!L237+Retail!L237+Misc!L237","v":0},{"$f":"+Distribution!M237+Transmission!M237+Generation!M237+Retail!M237+Misc!M237","v":0},{"$f":"+Distribution!N237+Transmission!N237+Generation!N237+Retail!N237+Misc!N237","v":0},{"$f":"+Distribution!O237+Transmission!O237+Generation!O237+Retail!O237+Misc!O237","v":0},{"$f":"+Distribution!P237+Transmission!P237+Generation!P237+Retail!P237+Misc!P237","v":0},{"$f":"+Distribution!Q237+Transmission!Q237+Generation!Q237+Retail!Q237+Misc!Q237","v":0},{"$f":"ROUND(SUM(I237:Q237)-H237,0)","v":0}]
[238,null,null,null,"JBG",{"$f":"IF(Classification=\"DEMAND\",\"F12\",IF(Classification=\"ENERGY\",\"F30\",\"F10\"))","v":"F10"},null,{"$f":"+Distribution!H238+Transmission!H238+Generation!H238+Retail!H238+Misc!H238","v":14367.984125098681},{"$f":"+Distribution!I238+Transmission!I238+Generation!I238+Retail!I238+Misc!I238","v":6095.976781700585},{"$f":"+Distribution!J238+Transmission!J238+Generation!J238+Retail!J238+Misc!J238","v":1938.9715076772811},{"$f":"+Distribution!K238+Transmission!K238+Generation!K238+Retail!K238+Misc!K238","v":3072.1329587292821},{"$f":"+Distribution!L238+Transmission!L238+Generation!L238+Retail!L238+Misc!L238","v":1213.9875198657592},{"$f":"+Distribution!M238+Transmission!M238+Generation!M238+Retail!M238+Misc!M238","v":1500.9444419238491},{"$f":"+Distribution!N238+Transmission!N238+Generation!N238+Retail!N238+Misc!N238","v":511.50145814372218},{"$f":"+Distribution!O238+Transmission!O238+Generation!O238+Retail!O238+Misc!O238","v":34.469457058201463},{"$f":"+Distribution!P238+Transmission!P238+Generation!P238+Retail!P238+Misc!P238","v":0},{"$f":"+Distribution!Q238+Transmission!Q238+Generation!Q238+Retail!Q238+Misc!Q238","v":0},{"$f":"ROUND(SUM(I238:Q238)-H238,0)","v":0}]
[239,null,null,null,"Total 505",null,null,{"$f":"+Distribution!H239+Transmission!H239+Generation!H239+Retail!H239+Misc!H239","v":14367.984125098681},{"$f":"+Distribution!I239+Transmission!I239+Generation!I239+Retail!I239+Misc!I239","v":6095.976781700585},{"$f":"+Distribution!J239+Transmission!J239+Generation!J239+Retail!J239+Misc!J239","v":1938.9715076772811},{"$f":"+Distribution!K239+Transmission!K239+Generation!K239+Retail!K239+Misc!K239","v":3072.1329587292821},{"$f":"+Distribution!L239+Transmission!L239+Generation!L239+Retail!L239+Misc!L239","v":1213.9875198657592},{"$f":"+Distribution!M239+Transmission!M239+Generation!M239+Retail!M239+Misc!M239","v":1500.9444419238491},{"$f":"+Distribution!N239+Transmission!N239+Generation!N239+Retail!N239+Misc!N239","v":511.50145814372218},{"$f":"+Distribution!O239+Transmission!O239+Generation!O239+Retail!O239+Misc!O239","v":34.469457058201463},{"$f":"+Distribution!P239+Transmission!P239+Generation!P239+Retail!P239+Misc!P239","v":0},{"$f":"+Distribution!Q239+Transmission!Q239+Generation!Q239+Retail!Q239+Misc!Q239","v":0},{"$f":"ROUND(SUM(I239:Q239)-H239,0)","v":0}]
[240]
[241,null,"506","Misc. Steam Expense",null,{"$f":"IF(Classification=\"DEMAND\",\"F12\",IF(Classification=\"ENERGY\",\"F30\",\"F10\"))","v":"F10"},null,{"$f":"+Distribution!H241+Transmission!H241+Generation!H241+Retail!H241+Misc!H241","v":-2857179.56565679},{"$f":"+Distribution!I241+Transmission!I241+Generation!I241+Retail!I241+Misc!I241","v":-1212229.9232616622},{"$f":"+Distribution!J241+Transmission!J241+Generation!J241+Retail!J241+Misc!J241","v":-385578.77861576609},{"$f":"+Distribution!K241+Transmission!K241+Generation!K241+Retail!K241+Misc!K241","v":-610916.28695001453},{"$f":"+Distribution!L241+Transmission!L241+Generation!L241+Retail!L241+Misc!L241","v":-241410.36797665525},{"$f":"+Distribution!M241+Transmission!M241+Generation!M241+Retail!M241+Misc!M241","v":-298473.8674063299},{"$f":"+Distribution!N241+Transmission!N241+Generation!N241+Retail!N241+Misc!N241","v":-101715.83579765804},{"$f":"+Distribution!O241+Transmission!O241+Generation!O241+Retail!O241+Misc!O241","v":-6854.5056487039383},{"$f":"+Distribution!P241+Transmission!P241+Generation!P241+Retail!P241+Misc!P241","v":0},{"$f":"+Distribution!Q241+Transmission!Q241+Generation!Q241+Retail!Q241+Misc!Q241","v":0},{"$f":"ROUND(SUM(I241:Q241)-H241,0)","v":0}]
[242,null,null,null,"JBG",{"$f":"IF(Classification=\"DEMAND\",\"F12\",IF(Classification=\"ENERGY\",\"F30\",\"F10\"))","v":"F10"},null,{"$f":"+Distribution!H242+Transmission!H242+Generation!H242+Retail!H242+Misc!H242","v":246721.08759898369},{"$f":"+Distribution!I242+Transmission!I242+Generation!I242+Retail!I242+Misc!I242","v":104677.59488486985},{"$f":"+Distribution!J242+Transmission!J242+Generation!J242+Retail!J242+Misc!J242","v":33295.217689022495},{"$f":"+Distribution!K242+Transmission!K242+Generation!K242+Retail!K242+Misc!K242","v":52753.397987288379},{"$f":"+Distribution!L242+Transmission!L242+Generation!L242+Retail!L242+Misc!L242","v":20846.092160532353},{"$f":"+Distribution!M242+Transmission!M242+Generation!M242+Retail!M242+Misc!M242","v":25773.597876560732},{"$f":"+Distribution!N242+Transmission!N242+Generation!N242+Retail!N242+Misc!N242","v":8783.2917243579159},{"$f":"+Distribution!O242+Transmission!O242+Generation!O242+Retail!O242+Misc!O242","v":591.89527635196498},{"$f":"+Distribution!P242+Transmission!P242+Generation!P242+Retail!P242+Misc!P242","v":0},{"$f":"+Distribution!Q242+Transmission!Q242+Generation!Q242+Retail!Q242+Misc!Q242","v":0},{"$f":"ROUND(SUM(I242:Q242)-H242,0)","v":0}]
[243,null,null,null,"Total 506",null,null,{"$f":"+Distribution!H243+Transmission!H243+Generation!H243+Retail!H243+Misc!H243","v":-2610458.4780578064},{"$f":"+Distribution!I243+Transmission!I243+Generation!I243+Retail!I243+Misc!I243","v":-1107552.3283767924},{"$f":"+Distribution!J243+Transmission!J243+Generation!J243+Retail!J243+Misc!J243","v":-352283.56092674361},{"$f":"+Distribution!K243+Transmission!K243+Generation!K243+Retail!K243+Misc!K243","v":-558162.88896272611},{"$f":"+Distribution!L243+Transmission!L243+Generation!L243+Retail!L243+Misc!L243","v":-220564.27581612288},{"$f":"+Distribution!M243+Transmission!M243+Generation!M243+Retail!M243+Misc!M243","v":-272700.26952976914},{"$f":"+Distribution!N243+Transmission!N243+Generation!N243+Retail!N243+Misc!N243","v":-92932.544073300131},{"$f":"+Distribution!O243+Transmission!O243+Generation!O243+Retail!O243+Misc!O243","v":-6262.6103723519736},{"$f":"+Distribution!P243+Transmission!P243+Generation!P243+Retail!P243+Misc!P243","v":0},{"$f":"+Distribution!Q243+Transmission!Q243+Generation!Q243+Retail!Q243+Misc!Q243","v":0},{"$f":"ROUND(SUM(I243:Q243)-H243,0)","v":0}]
[244]
[245,null,"507","Rents",null,{"$f":"IF(Classification=\"DEMAND\",\"F12\",IF(Classification=\"ENERGY\",\"F30\",\"F10\"))","v":"F10"},null,{"$f":"+Distribution!H245+Transmission!H245+Generation!H245+Retail!H245+Misc!H245","v":51257.14259279886},{"$f":"+Distribution!I245+Transmission!I245+Generation!I245+Retail!I245+Misc!I245","v":21747.125304529938},{"$f":"+Distribution!J245+Transmission!J245+Generation!J245+Retail!J245+Misc!J245","v":6917.1943807187354},{"$f":"+Distribution!K245+Transmission!K245+Generation!K245+Retail!K245+Misc!K245","v":10959.697321390404},{"$f":"+Distribution!L245+Transmission!L245+Generation!L245+Retail!L245+Misc!L245","v":4330.8463365392317},{"$f":"+Distribution!M245+Transmission!M245+Generation!M245+Retail!M245+Misc!M245","v":5354.5523584736875},{"$f":"+Distribution!N245+Transmission!N245+Generation!N245+Retail!N245+Misc!N245","v":1824.758640336905},{"$f":"+Distribution!O245+Transmission!O245+Generation!O245+Retail!O245+Misc!O245","v":122.96825080995521},{"$f":"+Distribution!P245+Transmission!P245+Generation!P245+Retail!P245+Misc!P245","v":0},{"$f":"+Distribution!Q245+Transmission!Q245+Generation!Q245+Retail!Q245+Misc!Q245","v":0},{"$f":"ROUND(SUM(I245:Q245)-H245,0)","v":0}]
[246,null,null,null,"JBG",{"$f":"IF(Classification=\"DEMAND\",\"F12\",IF(Classification=\"ENERGY\",\"F30\",\"F10\"))","v":"F10"},null,{"$f":"+Distribution!H246+Transmission!H246+Generation!H246+Retail!H246+Misc!H246","v":4491.9284726725},{"$f":"+Distribution!I246+Transmission!I246+Generation!I246+Retail!I246+Misc!I246","v":1905.8130518558924},{"$f":"+Distribution!J246+Transmission!J246+Generation!J246+Retail!J246+Misc!J246","v":606.18951463217081},{"$f":"+Distribution!K246+Transmission!K246+Generation!K246+Retail!K246+Misc!K246","v":960.45495241364586},{"$f":"+Distribution!L246+Transmission!L246+Generation!L246+Retail!L246+Misc!L246","v":379.5344606783259},{"$f":"+Distribution!M246+Transmission!M246+Generation!M246+Retail!M246+Misc!M246","v":469.24711329544061},{"$f":"+Distribution!N246+Transmission!N246+Generation!N246+Retail!N246+Misc!N246","v":159.9130360699439},{"$f":"+Distribution!O246+Transmission!O246+Generation!O246+Retail!O246+Misc!O246","v":10.776343727080349},{"$f":"+Distribution!P246+Transmission!P246+Generation!P246+Retail!P246+Misc!P246","v":0},{"$f":"+Distribution!Q246+Transmission!Q246+Generation!Q246+Retail!Q246+Misc!Q246","v":0},{"$f":"ROUND(SUM(I246:Q246)-H246,0)","v":0}]
[247,null,null,null,"Total 507",null,null,{"$f":"+Distribution!H247+Transmission!H247+Generation!H247+Retail!H247+Misc!H247","v":55749.071065471362},{"$f":"+Distribution!I247+Transmission!I247+Generation!I247+Retail!I247+Misc!I247","v":23652.938356385832},{"$f":"+Distribution!J247+Transmission!J247+Generation!J247+Retail!J247+Misc!J247","v":7523.3838953509057},{"$f":"+Distribution!K247+Transmission!K247+Generation!K247+Retail!K247+Misc!K247","v":11920.152273804049},{"$f":"+Distribution!L247+Transmission!L247+Generation!L247+Retail!L247+Misc!L247","v":4710.3807972175573},{"$f":"+Distribution!M247+Transmission!M247+Generation!M247+Retail!M247+Misc!M247","v":5823.7994717691281},{"$f":"+Distribution!N247+Transmission!N247+Generation!N247+Retail!N247+Misc!N247","v":1984.671676406849},{"$f":"+Distribution!O247+Transmission!O247+Generation!O247+Retail!O247+Misc!O247","v":133.74459453703557},{"$f":"+Distribution!P247+Transmission!P247+Generation!P247+Retail!P247+Misc!P247","v":0},{"$f":"+Distribution!Q247+Transmission!Q247+Generation!Q247+Retail!Q247+Misc!Q247","v":0},{"$f":"ROUND(SUM(I247:Q247)-H247,0)","v":0}]
[248]
[249,null,"510","Maint Supervision & Engineering",null,{"$f":"IF(Classification=\"DEMAND\",\"F12\",IF(Classification=\"ENERGY\",\"F30\",\"F10\"))","v":"F10"},null,{"$f":"+Distribution!H249+Transmission!H249+Generation!H249+Retail!H249+Misc!H249","v":107787.92598277348},{"$f":"+Distribution!I249+Transmission!I249+Generation!I249+Retail!I249+Misc!I249","v":45731.724674642588},{"$f":"+Distribution!J249+Transmission!J249+Generation!J249+Retail!J249+Misc!J249","v":14546.071009859921},{"$f":"+Distribution!K249+Transmission!K249+Generation!K249+Retail!K249+Misc!K249","v":23046.993724492055},{"$f":"+Distribution!L249+Transmission!L249+Generation!L249+Retail!L249+Misc!L249","v":9107.2759961309112},{"$f":"+Distribution!M249+Transmission!M249+Generation!M249+Retail!M249+Misc!M249","v":11260.013026304199},{"$f":"+Distribution!N249+Transmission!N249+Generation!N249+Retail!N249+Misc!N249","v":3837.2593420510593},{"$f":"+Distribution!O249+Transmission!O249+Generation!O249+Retail!O249+Misc!O249","v":258.58820929274168},{"$f":"+Distribution!P249+Transmission!P249+Generation!P249+Retail!P249+Misc!P249","v":0},{"$f":"+Distribution!Q249+Transmission!Q249+Generation!Q249+Retail!Q249+Misc!Q249","v":0},{"$f":"ROUND(SUM(I249:Q249)-H249,0)","v":0}]
[250,null,null,null,"JBG",{"$f":"IF(Classification=\"DEMAND\",\"F12\",IF(Classification=\"ENERGY\",\"F30\",\"F10\"))","v":"F10"},null,{"$f":"+Distribution!H250+Transmission!H250+Generation!H250+Retail!H250+Misc!H250","v":51258.22716226639},{"$f":"+Distribution!I250+Transmission!I250+Generation!I250+Retail!I250+Misc!I250","v":21747.585460264705},{"$f":"+Distribution!J250+Transmission!J250+Generation!J250+Retail!J250+Misc!J250","v":6917.3407442779744},{"$f":"+Distribution!K250+Transmission!K250+Generation!K250+Retail!K250+Misc!K250","v":10959.929221814167},{"$f":"+Distribution!L250+Transmission!L250+Generation!L250+Retail!L250+Misc!L250","v":4330.9379745718561},{"$f":"+Distribution!M250+Transmission!M250+Generation!M250+Retail!M250+Misc!M250","v":5354.6656574932294},{"$f":"+Distribution!N250+Transmission!N250+Generation!N250+Retail!N250+Misc!N250","v":1824.7972511022892},{"$f":"+Distribution!O250+Transmission!O250+Generation!O250+Retail!O250+Misc!O250","v":122.97085274216519},{"$f":"+Distribution!P250+Transmission!P250+Generation!P250+Retail!P250+Misc!P250","v":0},{"$f":"+Distribution!Q250+Transmission!Q250+Generation!Q250+Retail!Q250+Misc!Q250","v":0},{"$f":"ROUND(SUM(I250:Q250)-H250,0)","v":0}]
[251,null,null,null,"Total 510",null,null,{"$f":"+Distribution!H251+Transmission!H251+Generation!H251+Retail!H251+Misc!H251","v":159046.15314503986},{"$f":"+Distribution!I251+Transmission!I251+Generation!I251+Retail!I251+Misc!I251","v":67479.310134907297},{"$f":"+Distribution!J251+Transmission!J251+Generation!J251+Retail!J251+Misc!J251","v":21463.411754137895},{"$f":"+Distribution!K251+Transmission!K251+Generation!K251+Retail!K251+Misc!K251","v":34006.922946306222},{"$f":"+Distribution!L251+Transmission!L251+Generation!L251+Retail!L251+Misc!L251","v":13438.213970702767},{"$f":"+Distribution!M251+Transmission!M251+Generation!M251+Retail!M251+Misc!M251","v":16614.678683797429},{"$f":"+Distribution!N251+Transmission!N251+Generation!N251+Retail!N251+Misc!N251","v":5662.0565931533483},{"$f":"+Distribution!O251+Transmission!O251+Generation!O251+Retail!O251+Misc!O251","v":381.5590620349069},{"$f":"+Distribution!P251+Transmission!P251+Generation!P251+Retail!P251+Misc!P251","v":0},{"$f":"+Distribution!Q251+Transmission!Q251+Generation!Q251+Retail!Q251+Misc!Q251","v":0},{"$f":"ROUND(SUM(I251:Q251)-H251,0)","v":0}]
[252]
[253,null,"511","Maintenance of Structures",null,{"$f":"IF(Classification=\"DEMAND\",\"F12\",IF(Classification=\"ENERGY\",\"F30\",\"F10\"))","v":"F10"},null,{"$f":"+Distribution!H253+Transmission!H253+Generation!H253+Retail!H253+Misc!H253","v":1906029.9299606474},{"$f":"+Distribution!I253+Transmission!I253+Generation!I253+Retail!I253+Misc!I253","v":808680.89058991068},{"$f":"+Distribution!J253+Transmission!J253+Generation!J253+Retail!J253+Misc!J253","v":257220.33757804116},{"$f":"+Distribution!K253+Transmission!K253+Generation!K253+Retail!K253+Misc!K253","v":407543.41855986381},{"$f":"+Distribution!L253+Transmission!L253+Generation!L253+Retail!L253+Misc!L253","v":161045.31626122887},{"$f":"+Distribution!M253+Transmission!M253+Generation!M253+Retail!M253+Misc!M253","v":199112.48541244393},{"$f":"+Distribution!N253+Transmission!N253+Generation!N253+Retail!N253+Misc!N253","v":67854.827785992675},{"$f":"+Distribution!O253+Transmission!O253+Generation!O253+Retail!O253+Misc!O253","v":4572.6537731662502},{"$f":"+Distribution!P253+Transmission!P253+Generation!P253+Retail!P253+Misc!P253","v":0},{"$f":"+Distribution!Q253+Transmission!Q253+Generation!Q253+Retail!Q253+Misc!Q253","v":0},{"$f":"ROUND(SUM(I253:Q253)-H253,0)","v":0}]
[254,null,null,null,"JBG",{"$f":"IF(Classification=\"DEMAND\",\"F12\",IF(Classification=\"ENERGY\",\"F30\",\"F10\"))","v":"F10"},null,{"$f":"+Distribution!H254+Transmission!H254+Generation!H254+Retail!H254+Misc!H254","v":84299.326370806361},{"$f":"+Distribution!I254+Transmission!I254+Generation!I254+Retail!I254+Misc!I254","v":35766.098556007833},{"$f":"+Distribution!J254+Transmission!J254+Generation!J254+Retail!J254+Misc!J254","v":11376.264793044444},{"$f":"+Distribution!K254+Transmission!K254+Generation!K254+Retail!K254+Misc!K254","v":18024.709429490133},{"$f":"+Distribution!L254+Transmission!L254+Generation!L254+Retail!L254+Misc!L254","v":7122.6644779263033},{"$f":"+Distribution!M254+Transmission!M254+Generation!M254+Retail!M254+Misc!M254","v":8806.2879435647592},{"$f":"+Distribution!N254+Transmission!N254+Generation!N254+Retail!N254+Misc!N254","v":3001.0631960455926},{"$f":"+Distribution!O254+Transmission!O254+Generation!O254+Retail!O254+Misc!O254","v":202.23797472729061},{"$f":"+Distribution!P254+Transmission!P254+Generation!P254+Retail!P254+Misc!P254","v":0},{"$f":"+Distribution!Q254+Transmission!Q254+Generation!Q254+Retail!Q254+Misc!Q254","v":0},{"$f":"ROUND(SUM(I254:Q254)-H254,0)","v":0}]
[255,null,null,null,"Total 511",null,null,{"$f":"+Distribution!H255+Transmission!H255+Generation!H255+Retail!H255+Misc!H255","v":1990329.2563314538},{"$f":"+Distribution!I255+Transmission!I255+Generation!I255+Retail!I255+Misc!I255","v":844446.98914591852},{"$f":"+Distribution!J255+Transmission!J255+Generation!J255+Retail!J255+Misc!J255","v":268596.60237108561},{"$f":"+Distribution!K255+Transmission!K255+Generation!K255+Retail!K255+Misc!K255","v":425568.12798935396},{"$f":"+Distribution!L255+Transmission!L255+Generation!L255+Retail!L255+Misc!L255","v":168167.98073915517},{"$f":"+Distribution!M255+Transmission!M255+Generation!M255+Retail!M255+Misc!M255","v":207918.77335600869},{"$f":"+Distribution!N255+Transmission!N255+Generation!N255+Retail!N255+Misc!N255","v":70855.890982038269},{"$f":"+Distribution!O255+Transmission!O255+Generation!O255+Retail!O255+Misc!O255","v":4774.8917478935409},{"$f":"+Distribution!P255+Transmission!P255+Generation!P255+Retail!P255+Misc!P255","v":0},{"$f":"+Distribution!Q255+Transmission!Q255+Generation!Q255+Retail!Q255+Misc!Q255","v":0},{"$f":"ROUND(SUM(I255:Q255)-H255,0)","v":0}]
[256]
[257,null,"512","Maintenance of Boiler Plant",null,{"$f":"IF(Classification=\"DEMAND\",\"F12\",IF(Classification=\"ENERGY\",\"F30\",\"F10\"))","v":"F10"},null,{"$f":"+Distribution!H257+Transmission!H257+Generation!H257+Retail!H257+Misc!H257","v":5301481.4858841449},{"$f":"+Distribution!I257+Transmission!I257+Generation!I257+Retail!I257+Misc!I257","v":2249286.1743987557},{"$f":"+Distribution!J257+Transmission!J257+Generation!J257+Retail!J257+Misc!J257","v":715439.37271279341},{"$f":"+Distribution!K257+Transmission!K257+Generation!K257+Retail!K257+Misc!K257","v":1133551.9207894385},{"$f":"+Distribution!L257+Transmission!L257+Generation!L257+Retail!L257+Misc!L257","v":447935.65364678676},{"$f":"+Distribution!M257+Transmission!M257+Generation!M257+Retail!M257+Misc!M257","v":553816.67330074008},{"$f":"+Distribution!N257+Transmission!N257+Generation!N257+Retail!N257+Misc!N257","v":188733.19226562427},{"$f":"+Distribution!O257+Transmission!O257+Generation!O257+Retail!O257+Misc!O257","v":12718.498770006021},{"$f":"+Distribution!P257+Transmission!P257+Generation!P257+Retail!P257+Misc!P257","v":0},{"$f":"+Distribution!Q257+Transmission!Q257+Generation!Q257+Retail!Q257+Misc!Q257","v":0},{"$f":"ROUND(SUM(I257:Q257)-H257,0)","v":0}]
[258,null,null,null,"JBG",{"$f":"IF(Classification=\"DEMAND\",\"F12\",IF(Classification=\"ENERGY\",\"F30\",\"F10\"))","v":"F10"},null,{"$f":"+Distribution!H258+Transmission!H258+Generation!H258+Retail!H258+Misc!H258","v":594620.49854772724},{"$f":"+Distribution!I258+Transmission!I258+Generation!I258+Retail!I258+Misc!I258","v":252282.62514142194},{"$f":"+Distribution!J258+Transmission!J258+Generation!J258+Retail!J258+Misc!J258","v":80244.534969305212},{"$f":"+Distribution!K258+Transmission!K258+Generation!K258+Retail!K258+Misc!K258","v":127140.53799192682},{"$f":"+Distribution!L258+Transmission!L258+Generation!L258+Retail!L258+Misc!L258","v":50240.998180970557},{"$f":"+Distribution!M258+Transmission!M258+Generation!M258+Retail!M258+Misc!M258","v":62116.739869593199},{"$f":"+Distribution!N258+Transmission!N258+Generation!N258+Retail!N258+Misc!N258","v":21168.54037429002},{"$f":"+Distribution!O258+Transmission!O258+Generation!O258+Retail!O258+Misc!O258","v":1426.5220202194828},{"$f":"+Distribution!P258+Transmission!P258+Generation!P258+Retail!P258+Misc!P258","v":0},{"$f":"+Distribution!Q258+Transmission!Q258+Generation!Q258+Retail!Q258+Misc!Q258","v":0},{"$f":"ROUND(SUM(I258:Q258)-H258,0)","v":0}]
[259,null,null,null,"Total 512",null,null,{"$f":"+Distribution!H259+Transmission!H259+Generation!H259+Retail!H259+Misc!H259","v":5896101.9844318721},{"$f":"+Distribution!I259+Transmission!I259+Generation!I259+Retail!I259+Misc!I259","v":2501568.7995401775},{"$f":"+Distribution!J259+Transmission!J259+Generation!J259+Retail!J259+Misc!J259","v":795683.90768209868},{"$f":"+Distribution!K259+Transmission!K259+Generation!K259+Retail!K259+Misc!K259","v":1260692.4587813653},{"$f":"+Distribution!L259+Transmission!L259+Generation!L259+Retail!L259+Misc!L259","v":498176.6518277573},{"$f":"+Distribution!M259+Transmission!M259+Generation!M259+Retail!M259+Misc!M259","v":615933.41317033325},{"$f":"+Distribution!N259+Transmission!N259+Generation!N259+Retail!N259+Misc!N259","v":209901.73263991429},{"$f":"+Distribution!O259+Transmission!O259+Generation!O259+Retail!O259+Misc!O259","v":14145.020790225504},{"$f":"+Distribution!P259+Transmission!P259+Generation!P259+Retail!P259+Misc!P259","v":0},{"$f":"+Distribution!Q259+Transmission!Q259+Generation!Q259+Retail!Q259+Misc!Q259","v":0},{"$f":"ROUND(SUM(I259:Q259)-H259,0)","v":0}]
[260]
[261,null,"513","Maintenance of Electric Plant",null,{"$f":"IF(Classification=\"DEMAND\",\"F12\",IF(Classification=\"ENERGY\",\"F30\",\"F10\"))","v":"F10"},null,{"$f":"+Distribution!H261+Transmission!H261+Generation!H261+Retail!H261+Misc!H261","v":2052737.7911420735},{"$f":"+Distribution!I261+Transmission!I261+Generation!I261+Retail!I261+Misc!I261","v":870925.37162971578},{"$f":"+Distribution!J261+Transmission!J261+Generation!J261+Retail!J261+Misc!J261","v":277018.6864839358},{"$f":"+Distribution!K261+Transmission!K261+Generation!K261+Retail!K261+Misc!K261","v":438912.19317124609},{"$f":"+Distribution!L261+Transmission!L261+Generation!L261+Retail!L261+Misc!L261","v":173441.0365647705},{"$f":"+Distribution!M261+Transmission!M261+Generation!M261+Retail!M261+Misc!M261","v":214438.25045432901},{"$f":"+Distribution!N261+Transmission!N261+Generation!N261+Retail!N261+Misc!N261","v":73077.64013475916},{"$f":"+Distribution!O261+Transmission!O261+Generation!O261+Retail!O261+Misc!O261","v":4924.6127033170742},{"$f":"+Distribution!P261+Transmission!P261+Generation!P261+Retail!P261+Misc!P261","v":0},{"$f":"+Distribution!Q261+Transmission!Q261+Generation!Q261+Retail!Q261+Misc!Q261","v":0},{"$f":"ROUND(SUM(I261:Q261)-H261,0)","v":0}]
[262,null,null,null,"JBG",{"$f":"IF(Classification=\"DEMAND\",\"F12\",IF(Classification=\"ENERGY\",\"F30\",\"F10\"))","v":"F10"},null,{"$f":"+Distribution!H262+Transmission!H262+Generation!H262+Retail!H262+Misc!H262","v":72890.828322092624},{"$f":"+Distribution!I262+Transmission!I262+Generation!I262+Retail!I262+Misc!I262","v":30925.757794665456},{"$f":"+Distribution!J262+Transmission!J262+Generation!J262+Retail!J262+Misc!J262","v":9836.6784134070804},{"$f":"+Distribution!K262+Transmission!K262+Generation!K262+Retail!K262+Misc!K262","v":15585.367726444407},{"$f":"+Distribution!L262+Transmission!L262+Generation!L262+Retail!L262+Misc!L262","v":6158.7314633179494},{"$f":"+Distribution!M262+Transmission!M262+Generation!M262+Retail!M262+Misc!M262","v":7614.5047687070019},{"$f":"+Distribution!N262+Transmission!N262+Generation!N262+Retail!N262+Misc!N262","v":2594.9196941918271},{"$f":"+Distribution!O262+Transmission!O262+Generation!O262+Retail!O262+Misc!O262","v":174.86846135889994},{"$f":"+Distribution!P262+Transmission!P262+Generation!P262+Retail!P262+Misc!P262","v":0},{"$f":"+Distribution!Q262+Transmission!Q262+Generation!Q262+Retail!Q262+Misc!Q262","v":0},{"$f":"ROUND(SUM(I262:Q262)-H262,0)","v":0}]
[263,null,null,null,"Total 513",null,null,{"$f":"+Distribution!H263+Transmission!H263+Generation!H263+Retail!H263+Misc!H263","v":2125628.619464166},{"$f":"+Distribution!I263+Transmission!I263+Generation!I263+Retail!I263+Misc!I263","v":901851.12942438119},{"$f":"+Distribution!J263+Transmission!J263+Generation!J263+Retail!J263+Misc!J263","v":286855.36489734286},{"$f":"+Distribution!K263+Transmission!K263+Generation!K263+Retail!K263+Misc!K263","v":454497.56089769048},{"$f":"+Distribution!L263+Transmission!L263+Generation!L263+Retail!L263+Misc!L263","v":179599.76802808847},{"$f":"+Distribution!M263+Transmission!M263+Generation!M263+Retail!M263+Misc!M263","v":222052.75522303602},{"$f":"+Distribution!N263+Transmission!N263+Generation!N263+Retail!N263+Misc!N263","v":75672.559828950994},{"$f":"+Distribution!O263+Transmission!O263+Generation!O263+Retail!O263+Misc!O263","v":5099.4811646759745},{"$f":"+Distribution!P263+Transmission!P263+Generation!P263+Retail!P263+Misc!P263","v":0},{"$f":"+Distribution!Q263+Transmission!Q263+Generation!Q263+Retail!Q263+Misc!Q263","v":0},{"$f":"ROUND(SUM(I263:Q263)-H263,0)","v":0}]
[264]
[{"$f":"+A264+1","v":265},null,"514","Maint of Misc. Steam Plant",null,{"$f":"IF(Classification=\"DEMAND\",\"F12\",IF(Classification=\"ENERGY\",\"F30\",\"F10\"))","v":"F10"},null,{"$f":"+Distribution!H265+Transmission!H265+Generation!H265+Retail!H265+Misc!H265","v":663511.66890561418},{"$f":"+Distribution!I265+Transmission!I265+Generation!I265+Retail!I265+Misc!I265","v":281511.42796507303},{"$f":"+Distribution!J265+Transmission!J265+Generation!J265+Retail!J265+Misc!J265","v":89541.456186050156},{"$f":"+Distribution!K265+Transmission!K265+Generation!K265+Retail!K265+Misc!K265","v":141870.70703854974},{"$f":"+Distribution!L265+Transmission!L265+Generation!L265+Retail!L265+Misc!L265","v":56061.788370829308},{"$f":"+Distribution!M265+Transmission!M265+Generation!M265+Retail!M265+Misc!M265","v":69313.422323165243},{"$f":"+Distribution!N265+Transmission!N265+Generation!N265+Retail!N265+Misc!N265","v":23621.071904425233},{"$f":"+Distribution!O265+Transmission!O265+Generation!O265+Retail!O265+Misc!O265","v":1591.7951175214409},{"$f":"+Distribution!P265+Transmission!P265+Generation!P265+Retail!P265+Misc!P265","v":0},{"$f":"+Distribution!Q265+Transmission!Q265+Generation!Q265+Retail!Q265+Misc!Q265","v":0},{"$f":"ROUND(SUM(I265:Q265)-H265,0)","v":0}]
[266,null,null,null,"JBG",{"$f":"IF(Classification=\"DEMAND\",\"F12\",IF(Classification=\"ENERGY\",\"F30\",\"F10\"))","v":"F10"},null,{"$f":"+Distribution!H266+Transmission!H266+Generation!H266+Retail!H266+Misc!H266","v":75739.922015921969},{"$f":"+Distribution!I266+Transmission!I266+Generation!I266+Retail!I266+Misc!I266","v":32134.557084479118},{"$f":"+Distribution!J266+Transmission!J266+Generation!J266+Retail!J266+Misc!J266","v":10221.165996838356},{"$f":"+Distribution!K266+Transmission!K266+Generation!K266+Retail!K266+Misc!K266","v":16194.555108829602},{"$f":"+Distribution!L266+Transmission!L266+Generation!L266+Retail!L266+Misc!L266","v":6399.4586354196445},{"$f":"+Distribution!M266+Transmission!M266+Generation!M266+Retail!M266+Misc!M266","v":7912.1339494633576},{"$f":"+Distribution!N266+Transmission!N266+Generation!N266+Retail!N266+Misc!N266","v":2696.3476722639971},{"$f":"+Distribution!O266+Transmission!O266+Generation!O266+Retail!O266+Misc!O266","v":181.7035686278933},{"$f":"+Distribution!P266+Transmission!P266+Generation!P266+Retail!P266+Misc!P266","v":0},{"$f":"+Distribution!Q266+Transmission!Q266+Generation!Q266+Retail!Q266+Misc!Q266","v":0},{"$f":"ROUND(SUM(I266:Q266)-H266,0)","v":0}]
[267,null,null,null,"Total 514",null,null,{"$f":"+Distribution!H267+Transmission!H267+Generation!H267+Retail!H267+Misc!H267","v":739251.59092153609},{"$f":"+Distribution!I267+Transmission!I267+Generation!I267+Retail!I267+Misc!I267","v":313645.98504955217},{"$f":"+Distribution!J267+Transmission!J267+Generation!J267+Retail!J267+Misc!J267","v":99762.622182888517},{"$f":"+Distribution!K267+Transmission!K267+Generation!K267+Retail!K267+Misc!K267","v":158065.26214737934},{"$f":"+Distribution!L267+Transmission!L267+Generation!L267+Retail!L267+Misc!L267","v":62461.247006248952},{"$f":"+Distribution!M267+Transmission!M267+Generation!M267+Retail!M267+Misc!M267","v":77225.556272628601},{"$f":"+Distribution!N267+Transmission!N267+Generation!N267+Retail!N267+Misc!N267","v":26317.41957668923},{"$f":"+Distribution!O267+Transmission!O267+Generation!O267+Retail!O267+Misc!O267","v":1773.4986861493342},{"$f":"+Distribution!P267+Transmission!P267+Generation!P267+Retail!P267+Misc!P267","v":0},{"$f":"+Distribution!Q267+Transmission!Q267+Generation!Q267+Retail!Q267+Misc!Q267","v":0},{"$f":"ROUND(SUM(I267:Q267)-H267,0)","v":0}]
[268]
[269,null,"Total Steam Power Generation",null,null,null,null,{"$f":"+Distribution!H269+Transmission!H269+Generation!H269+Retail!H269+Misc!H269","v":61329627.954930618},{"$f":"+Distribution!I269+Transmission!I269+Generation!I269+Retail!I269+Misc!I269","v":26020629.253794119},{"$f":"+Distribution!J269+Transmission!J269+Generation!J269+Retail!J269+Misc!J269","v":8276484.7278282903},{"$f":"+Distribution!K269+Transmission!K269+Generation!K269+Retail!K269+Misc!K269","v":13113375.526203336},{"$f":"+Distribution!L269+Transmission!L269+Generation!L269+Retail!L269+Misc!L269","v":5181896.2414662745},{"$f":"+Distribution!M269+Transmission!M269+Generation!M269+Retail!M269+Misc!M269","v":6406769.6207576655},{"$f":"+Distribution!N269+Transmission!N269+Generation!N269+Retail!N269+Misc!N269","v":2183339.976800228},{"$f":"+Distribution!O269+Transmission!O269+Generation!O269+Retail!O269+Misc!O269","v":147132.60808070621},{"$f":"+Distribution!P269+Transmission!P269+Generation!P269+Retail!P269+Misc!P269","v":0},{"$f":"+Distribution!Q269+Transmission!Q269+Generation!Q269+Retail!Q269+Misc!Q269","v":0},{"$f":"ROUND(SUM(I269:Q269)-H269,0)","v":0}]
[270]
[271]
[272,null,null,null,null,null,null,"NUCLEAR POWER GENERATION"]
[273]
[274]
[275,null,"517","Operation Super & Engineering",null,{"$f":"IF(Classification=\"DEMAND\",\"F12\",IF(Classification=\"ENERGY\",\"F30\",\"F10\"))","v":"F10"},null,{"$f":"+Distribution!H275+Transmission!H275+Generation!H275+Retail!H275+Misc!H275","v":0},{"$f":"+Distribution!I275+Transmission!I275+Generation!I275+Retail!I275+Misc!I275","v":0},{"$f":"+Distribution!J275+Transmission!J275+Generation!J275+Retail!J275+Misc!J275","v":0},{"$f":"+Distribution!K275+Transmission!K275+Generation!K275+Retail!K275+Misc!K275","v":0},{"$f":"+Distribution!L275+Transmission!L275+Generation!L275+Retail!L275+Misc!L275","v":0},{"$f":"+Distribution!M275+Transmission!M275+Generation!M275+Retail!M275+Misc!M275","v":0},{"$f":"+Distribution!N275+Transmission!N275+Generation!N275+Retail!N275+Misc!N275","v":0},{"$f":"+Distribution!O275+Transmission!O275+Generation!O275+Retail!O275+Misc!O275","v":0},{"$f":"+Distribution!P275+Transmission!P275+Generation!P275+Retail!P275+Misc!P275","v":0},{"$f":"+Distribution!Q275+Transmission!Q275+Generation!Q275+Retail!Q275+Misc!Q275","v":0},{"$f":"ROUND(SUM(I275:Q275)-H275,0)","v":0}]
[276]
[277,null,"518","Nuclear Fuel Expense",null,{"$f":"IF(Classification=\"DEMAND\",\"F12\",IF(Classification=\"ENERGY\",\"F30\",\"F10\"))","v":"F10"},null,{"$f":"+Distribution!H277+Transmission!H277+Generation!H277+Retail!H277+Misc!H277","v":0},{"$f":"+Distribution!I277+Transmission!I277+Generation!I277+Retail!I277+Misc!I277","v":0},{"$f":"+Distribution!J277+Transmission!J277+Generation!J277+Retail!J277+Misc!J277","v":0},{"$f":"+Distribution!K277+Transmission!K277+Generation!K277+Retail!K277+Misc!K277","v":0},{"$f":"+Distribution!L277+Transmission!L277+Generation!L277+Retail!L277+Misc!L277","v":0},{"$f":"+Distribution!M277+Transmission!M277+Generation!M277+Retail!M277+Misc!M277","v":0},{"$f":"+Distribution!N277+Transmission!N277+Generation!N277+Retail!N277+Misc!N277","v":0},{"$f":"+Distribution!O277+Transmission!O277+Generation!O277+Retail!O277+Misc!O277","v":0},{"$f":"+Distribution!P277+Transmission!P277+Generation!P277+Retail!P277+Misc!P277","v":0},{"$f":"+Distribution!Q277+Transmission!Q277+Generation!Q277+Retail!Q277+Misc!Q277","v":0},{"$f":"ROUND(SUM(I277:Q277)-H277,0)","v":0}]
[278]
[279,null,"519","Coolants and Water",null,{"$f":"IF(Classification=\"DEMAND\",\"F12\",IF(Classification=\"ENERGY\",\"F30\",\"F10\"))","v":"F10"},null,{"$f":"+Distribution!H279+Transmission!H279+Generation!H279+Retail!H279+Misc!H279","v":0},{"$f":"+Distribution!I279+Transmission!I279+Generation!I279+Retail!I279+Misc!I279","v":0},{"$f":"+Distribution!J279+Transmission!J279+Generation!J279+Retail!J279+Misc!J279","v":0},{"$f":"+Distribution!K279+Transmission!K279+Generation!K279+Retail!K279+Misc!K279","v":0},{"$f":"+Distribution!L279+Transmission!L279+Generation!L279+Retail!L279+Misc!L279","v":0},{"$f":"+Distribution!M279+Transmission!M279+Generation!M279+Retail!M279+Misc!M279","v":0},{"$f":"+Distribution!N279+Transmission!N279+Generation!N279+Retail!N279+Misc!N279","v":0},{"$f":"+Distribution!O279+Transmission!O279+Generation!O279+Retail!O279+Misc!O279","v":0},{"$f":"+Distribution!P279+Transmission!P279+Generation!P279+Retail!P279+Misc!P279","v":0},{"$f":"+Distribution!Q279+Transmission!Q279+Generation!Q279+Retail!Q279+Misc!Q279","v":0},{"$f":"ROUND(SUM(I279:Q279)-H279,0)","v":0}]
[280]
[281,null,"520","Steam Expenses",null,{"$f":"IF(Classification=\"DEMAND\",\"F12\",IF(Classification=\"ENERGY\",\"F30\",\"F10\"))","v":"F10"},null,{"$f":"+Distribution!H281+Transmission!H281+Generation!H281+Retail!H281+Misc!H281","v":0},{"$f":"+Distribution!I281+Transmission!I281+Generation!I281+Retail!I281+Misc!I281","v":0},{"$f":"+Distribution!J281+Transmission!J281+Generation!J281+Retail!J281+Misc!J281","v":0},{"$f":"+Distribution!K281+Transmission!K281+Generation!K281+Retail!K281+Misc!K281","v":0},{"$f":"+Distribution!L281+Transmission!L281+Generation!L281+Retail!L281+Misc!L281","v":0},{"$f":"+Distribution!M281+Transmission!M281+Generation!M281+Retail!M281+Misc!M281","v":0},{"$f":"+Distribution!N281+Transmission!N281+Generation!N281+Retail!N281+Misc!N281","v":0},{"$f":"+Distribution!O281+Transmission!O281+Generation!O281+Retail!O281+Misc!O281","v":0},{"$f":"+Distribution!P281+Transmission!P281+Generation!P281+Retail!P281+Misc!P281","v":0},{"$f":"+Distribution!Q281+Transmission!Q281+Generation!Q281+Retail!Q281+Misc!Q281","v":0},{"$f":"ROUND(SUM(I281:Q281)-H281,0)","v":0}]
[282]
[283,null,"523","Electric Expenses",null,{"$f":"IF(Classification=\"DEMAND\",\"F12\",IF(Classification=\"ENERGY\",\"F30\",\"F10\"))","v":"F10"},null,{"$f":"+Distribution!H283+Transmission!H283+Generation!H283+Retail!H283+Misc!H283","v":0},{"$f":"+Distribution!I283+Transmission!I283+Generation!I283+Retail!I283+Misc!I283","v":0},{"$f":"+Distribution!J283+Transmission!J283+Generation!J283+Retail!J283+Misc!J283","v":0},{"$f":"+Distribution!K283+Transmission!K283+Generation!K283+Retail!K283+Misc!K283","v":0},{"$f":"+Distribution!L283+Transmission!L283+Generation!L283+Retail!L283+Misc!L283","v":0},{"$f":"+Distribution!M283+Transmission!M283+Generation!M283+Retail!M283+Misc!M283","v":0},{"$f":"+Distribution!N283+Transmission!N283+Generation!N283+Retail!N283+Misc!N283","v":0},{"$f":"+Distribution!O283+Transmission!O283+Generation!O283+Retail!O283+Misc!O283","v":0},{"$f":"+Distribution!P283+Transmission!P283+Generation!P283+Retail!P283+Misc!P283","v":0},{"$f":"+Distribution!Q283+Transmission!Q283+Generation!Q283+Retail!Q283+Misc!Q283","v":0},{"$f":"ROUND(SUM(I283:Q283)-H283,0)","v":0}]
[284]
[285,null,"524","Misc. Nuclear Expenses",null,{"$f":"IF(Classification=\"DEMAND\",\"F12\",IF(Classification=\"ENERGY\",\"F30\",\"F10\"))","v":"F10"},null,{"$f":"+Distribution!H285+Transmission!H285+Generation!H285+Retail!H285+Misc!H285","v":0},{"$f":"+Distribution!I285+Transmission!I285+Generation!I285+Retail!I285+Misc!I285","v":0},{"$f":"+Distribution!J285+Transmission!J285+Generation!J285+Retail!J285+Misc!J285","v":0},{"$f":"+Distribution!K285+Transmission!K285+Generation!K285+Retail!K285+Misc!K285","v":0},{"$f":"+Distribution!L285+Transmission!L285+Generation!L285+Retail!L285+Misc!L285","v":0},{"$f":"+Distribution!M285+Transmission!M285+Generation!M285+Retail!M285+Misc!M285","v":0},{"$f":"+Distribution!N285+Transmission!N285+Generation!N285+Retail!N285+Misc!N285","v":0},{"$f":"+Distribution!O285+Transmission!O285+Generation!O285+Retail!O285+Misc!O285","v":0},{"$f":"+Distribution!P285+Transmission!P285+Generation!P285+Retail!P285+Misc!P285","v":0},{"$f":"+Distribution!Q285+Transmission!Q285+Generation!Q285+Retail!Q285+Misc!Q285","v":0},{"$f":"ROUND(SUM(I285:Q285)-H285,0)","v":0}]
[286]
[287,null,"528","Maint Supervision & Eng",null,{"$f":"IF(Classification=\"DEMAND\",\"F12\",IF(Classification=\"ENERGY\",\"F30\",\"F10\"))","v":"F10"},null,{"$f":"+Distribution!H287+Transmission!H287+Generation!H287+Retail!H287+Misc!H287","v":0},{"$f":"+Distribution!I287+Transmission!I287+Generation!I287+Retail!I287+Misc!I287","v":0},{"$f":"+Distribution!J287+Transmission!J287+Generation!J287+Retail!J287+Misc!J287","v":0},{"$f":"+Distribution!K287+Transmission!K287+Generation!K287+Retail!K287+Misc!K287","v":0},{"$f":"+Distribution!L287+Transmission!L287+Generation!L287+Retail!L287+Misc!L287","v":0},{"$f":"+Distribution!M287+Transmission!M287+Generation!M287+Retail!M287+Misc!M287","v":0},{"$f":"+Distribution!N287+Transmission!N287+Generation!N287+Retail!N287+Misc!N287","v":0},{"$f":"+Distribution!O287+Transmission!O287+Generation!O287+Retail!O287+Misc!O287","v":0},{"$f":"+Distribution!P287+Transmission!P287+Generation!P287+Retail!P287+Misc!P287","v":0},{"$f":"+Distribution!Q287+Transmission!Q287+Generation!Q287+Retail!Q287+Misc!Q287","v":0},{"$f":"ROUND(SUM(I287:Q287)-H287,0)","v":0}]
[288]
[289,null,"529","Maintenance of Structures",null,{"$f":"IF(Classification=\"DEMAND\",\"F12\",IF(Classification=\"ENERGY\",\"F30\",\"F10\"))","v":"F10"},null,{"$f":"+Distribution!H289+Transmission!H289+Generation!H289+Retail!H289+Misc!H289","v":0},{"$f":"+Distribution!I289+Transmission!I289+Generation!I289+Retail!I289+Misc!I289","v":0},{"$f":"+Distribution!J289+Transmission!J289+Generation!J289+Retail!J289+Misc!J289","v":0},{"$f":"+Distribution!K289+Transmission!K289+Generation!K289+Retail!K289+Misc!K289","v":0},{"$f":"+Distribution!L289+Transmission!L289+Generation!L289+Retail!L289+Misc!L289","v":0},{"$f":"+Distribution!M289+Transmission!M289+Generation!M289+Retail!M289+Misc!M289","v":0},{"$f":"+Distribution!N289+Transmission!N289+Generation!N289+Retail!N289+Misc!N289","v":0},{"$f":"+Distribution!O289+Transmission!O289+Generation!O289+Retail!O289+Misc!O289","v":0},{"$f":"+Distribution!P289+Transmission!P289+Generation!P289+Retail!P289+Misc!P289","v":0},{"$f":"+Distribution!Q289+Transmission!Q289+Generation!Q289+Retail!Q289+Misc!Q289","v":0},{"$f":"ROUND(SUM(I289:Q289)-H289,0)","v":0}]
[290]
[291,null,"530","Maintenance of Reactor Plant",null,{"$f":"IF(Classification=\"DEMAND\",\"F12\",IF(Classification=\"ENERGY\",\"F30\",\"F10\"))","v":"F10"},null,{"$f":"+Distribution!H291+Transmission!H291+Generation!H291+Retail!H291+Misc!H291","v":0},{"$f":"+Distribution!I291+Transmission!I291+Generation!I291+Retail!I291+Misc!I291","v":0},{"$f":"+Distribution!J291+Transmission!J291+Generation!J291+Retail!J291+Misc!J291","v":0},{"$f":"+Distribution!K291+Transmission!K291+Generation!K291+Retail!K291+Misc!K291","v":0},{"$f":"+Distribution!L291+Transmission!L291+Generation!L291+Retail!L291+Misc!L291","v":0},{"$f":"+Distribution!M291+Transmission!M291+Generation!M291+Retail!M291+Misc!M291","v":0},{"$f":"+Distribution!N291+Transmission!N291+Generation!N291+Retail!N291+Misc!N291","v":0},{"$f":"+Distribution!O291+Transmission!O291+Generation!O291+Retail!O291+Misc!O291","v":0},{"$f":"+Distribution!P291+Transmission!P291+Generation!P291+Retail!P291+Misc!P291","v":0},{"$f":"+Distribution!Q291+Transmission!Q291+Generation!Q291+Retail!Q291+Misc!Q291","v":0},{"$f":"ROUND(SUM(I291:Q291)-H291,0)","v":0}]
[292]
[293,null,"531","Maintenance of Electric Plant",null,{"$f":"IF(Classification=\"DEMAND\",\"F12\",IF(Classification=\"ENERGY\",\"F30\",\"F10\"))","v":"F10"},null,{"$f":"+Distribution!H293+Transmission!H293+Generation!H293+Retail!H293+Misc!H293","v":0},{"$f":"+Distribution!I293+Transmission!I293+Generation!I293+Retail!I293+Misc!I293","v":0},{"$f":"+Distribution!J293+Transmission!J293+Generation!J293+Retail!J293+Misc!J293","v":0},{"$f":"+Distribution!K293+Transmission!K293+Generation!K293+Retail!K293+Misc!K293","v":0},{"$f":"+Distribution!L293+Transmission!L293+Generation!L293+Retail!L293+Misc!L293","v":0},{"$f":"+Distribution!M293+Transmission!M293+Generation!M293+Retail!M293+Misc!M293","v":0},{"$f":"+Distribution!N293+Transmission!N293+Generation!N293+Retail!N293+Misc!N293","v":0},{"$f":"+Distribution!O293+Transmission!O293+Generation!O293+Retail!O293+Misc!O293","v":0},{"$f":"+Distribution!P293+Transmission!P293+Generation!P293+Retail!P293+Misc!P293","v":0},{"$f":"+Distribution!Q293+Transmission!Q293+Generation!Q293+Retail!Q293+Misc!Q293","v":0},{"$f":"ROUND(SUM(I293:Q293)-H293,0)","v":0}]
[294]
[295,null,"532","Maintenance of Misc Nuclear",null,{"$f":"IF(Classification=\"DEMAND\",\"F12\",IF(Classification=\"ENERGY\",\"F30\",\"F10\"))","v":"F10"},null,{"$f":"+Distribution!H295+Transmission!H295+Generation!H295+Retail!H295+Misc!H295","v":0},{"$f":"+Distribution!I295+Transmission!I295+Generation!I295+Retail!I295+Misc!I295","v":0},{"$f":"+Distribution!J295+Transmission!J295+Generation!J295+Retail!J295+Misc!J295","v":0},{"$f":"+Distribution!K295+Transmission!K295+Generation!K295+Retail!K295+Misc!K295","v":0},{"$f":"+Distribution!L295+Transmission!L295+Generation!L295+Retail!L295+Misc!L295","v":0},{"$f":"+Distribution!M295+Transmission!M295+Generation!M295+Retail!M295+Misc!M295","v":0},{"$f":"+Distribution!N295+Transmission!N295+Generation!N295+Retail!N295+Misc!N295","v":0},{"$f":"+Distribution!O295+Transmission!O295+Generation!O295+Retail!O295+Misc!O295","v":0},{"$f":"+Distribution!P295+Transmission!P295+Generation!P295+Retail!P295+Misc!P295","v":0},{"$f":"+Distribution!Q295+Transmission!Q295+Generation!Q295+Retail!Q295+Misc!Q295","v":0},{"$f":"ROUND(SUM(I295:Q295)-H295,0)","v":0}]
[296]
[297,null,"Total Nuclear Power Generation",null,null,null,null,{"$f":"+Distribution!H297+Transmission!H297+Generation!H297+Retail!H297+Misc!H297","v":0},{"$f":"+Distribution!I297+Transmission!I297+Generation!I297+Retail!I297+Misc!I297","v":0},{"$f":"+Distribution!J297+Transmission!J297+Generation!J297+Retail!J297+Misc!J297","v":0},{"$f":"+Distribution!K297+Transmission!K297+Generation!K297+Retail!K297+Misc!K297","v":0},{"$f":"+Distribution!L297+Transmission!L297+Generation!L297+Retail!L297+Misc!L297","v":0},{"$f":"+Distribution!M297+Transmission!M297+Generation!M297+Retail!M297+Misc!M297","v":0},{"$f":"+Distribution!N297+Transmission!N297+Generation!N297+Retail!N297+Misc!N297","v":0},{"$f":"+Distribution!O297+Transmission!O297+Generation!O297+Retail!O297+Misc!O297","v":0},{"$f":"+Distribution!P297+Transmission!P297+Generation!P297+Retail!P297+Misc!P297","v":0},{"$f":"+Distribution!Q297+Transmission!Q297+Generation!Q297+Retail!Q297+Misc!Q297","v":0},{"$f":"ROUND(SUM(I297:Q297)-H297,0)","v":0}]
[298]
[299]
[300]
[301,null,null,null,null,null,null,"HYDRAULIC POWER GENERATION"]
[302]
[303,null,"A",null,"B","C",null,"D","E","F","G","H","I","J","K","L","M"]
[304,null,null,null,null,null,null,{"$f":"'Hot Sheet'!$H$10","v":"Washington"},null,{"$f":"'Hot Sheet'!$J$10","v":"Small General"},{"$f":"'Hot Sheet'!$K$10","v":"Large General"},{"$f":"'Hot Sheet'!$L$10","v":"Large General"},{"$f":"'Hot Sheet'!$M$10","v":"Large General"},{"$f":"'Hot Sheet'!$N$10","v":"Agricultural"},{"$f":"'Hot Sheet'!$O$10","v":"Street & Area"}]
[305,null,"FERC",null,null,"COS",null,{"$f":"'Hot Sheet'!$H$11","v":"Jurisdiction"},{"$f":"'Hot Sheet'!$I$11","v":"Residential"},{"$f":"'Hot Sheet'!$J$11","v":"Service"},{"$f":"'Hot Sheet'!$K$11","v":"Service <1,000 kW"},{"$f":"'Hot Sheet'!$L$11","v":"Service >1,000 kW"},{"$f":"'Hot Sheet'!$M$11","v":"Dedicated Facilities"},{"$f":"'Hot Sheet'!$N$11","v":"Pumping"},{"$f":"'Hot Sheet'!$O$11","v":"Lighting"}]
[306,null,"ACCT",null,"DESCRIPTION ","Factor",null,{"$f":"'Hot Sheet'!$H$12","v":"Normalized"},{"$f":"'Hot Sheet'!$I$12","v":"Schedule 16"},{"$f":"'Hot Sheet'!$J$12","v":"Schedule 24"},{"$f":"'Hot Sheet'!$K$12","v":"Schedule 36"},{"$f":"'Hot Sheet'!$L$12","v":"Schedule 48T"},{"$f":"'Hot Sheet'!$M$12","v":"Schedule 48T"},{"$f":"'Hot Sheet'!$N$12","v":"Schedule 40"},{"$f":"'Hot Sheet'!$O$12","v":"Sch. 15,51-54,57"}]
[307,null,"535","Operation Super & Engineering",null,{"$f":"IF(Classification=\"DEMAND\",\"F12\",IF(Classification=\"ENERGY\",\"F30\",\"F10\"))","v":"F10"},null,{"$f":"+Distribution!H307+Transmission!H307+Generation!H307+Retail!H307+Misc!H307","v":1324908.6690741614},{"$f":"+Distribution!I307+Transmission!I307+Generation!I307+Retail!I307+Misc!I307","v":562125.65480506758},{"$f":"+Distribution!J307+Transmission!J307+Generation!J307+Retail!J307+Misc!J307","v":178797.5360525242},{"$f":"+Distribution!K307+Transmission!K307+Generation!K307+Retail!K307+Misc!K307","v":283289.25993582443},{"$f":"+Distribution!L307+Transmission!L307+Generation!L307+Retail!L307+Misc!L307","v":111944.9030019678},{"$f":"+Distribution!M307+Transmission!M307+Generation!M307+Retail!M307+Misc!M307","v":138405.93680986747},{"$f":"+Distribution!N307+Transmission!N307+Generation!N307+Retail!N307+Misc!N307","v":47166.861421767986},{"$f":"+Distribution!O307+Transmission!O307+Generation!O307+Retail!O307+Misc!O307","v":3178.517047141921},{"$f":"+Distribution!P307+Transmission!P307+Generation!P307+Retail!P307+Misc!P307","v":0},{"$f":"+Distribution!Q307+Transmission!Q307+Generation!Q307+Retail!Q307+Misc!Q307","v":0},{"$f":"ROUND(SUM(I307:Q307)-H307,0)","v":0}]
[308]
[309,null,"536","Water For Power",null,{"$f":"IF(Classification=\"DEMAND\",\"F12\",IF(Classification=\"ENERGY\",\"F30\",\"F10\"))","v":"F10"},null,{"$f":"+Distribution!H309+Transmission!H309+Generation!H309+Retail!H309+Misc!H309","v":49738.774633946021},{"$f":"+Distribution!I309+Transmission!I309+Generation!I309+Retail!I309+Misc!I309","v":21102.919705285414},{"$f":"+Distribution!J309+Transmission!J309+Generation!J309+Retail!J309+Misc!J309","v":6712.2893512621031},{"$f":"+Distribution!K309+Transmission!K309+Generation!K309+Retail!K309+Misc!K309","v":10635.042992066508},{"$f":"+Distribution!L309+Transmission!L309+Generation!L309+Retail!L309+Misc!L309","v":4202.5555661317485},{"$f":"+Distribution!M309+Transmission!M309+Generation!M309+Retail!M309+Misc!M309","v":5195.9367914746681},{"$f":"+Distribution!N309+Transmission!N309+Generation!N309+Retail!N309+Misc!N309","v":1770.7046117278915},{"$f":"+Distribution!O309+Transmission!O309+Generation!O309+Retail!O309+Misc!O309","v":119.32561599768522},{"$f":"+Distribution!P309+Transmission!P309+Generation!P309+Retail!P309+Misc!P309","v":0},{"$f":"+Distribution!Q309+Transmission!Q309+Generation!Q309+Retail!Q309+Misc!Q309","v":0},{"$f":"ROUND(SUM(I309:Q309)-H309,0)","v":0}]
[310]
[311,null,"537","Hydraulic Expenses",null,{"$f":"IF(Classification=\"DEMAND\",\"F12\",IF(Classification=\"ENERGY\",\"F30\",\"F10\"))","v":"F10"},null,{"$f":"+Distribution!H311+Transmission!H311+Generation!H311+Retail!H311+Misc!H311","v":795689.46794934163},{"$f":"+Distribution!I311+Transmission!I311+Generation!I311+Retail!I311+Misc!I311","v":337591.16657080554},{"$f":"+Distribution!J311+Transmission!J311+Generation!J311+Retail!J311+Misc!J311","v":107378.9610205372},{"$f":"+Distribution!K311+Transmission!K311+Generation!K311+Retail!K311+Misc!K311","v":170132.69350227309},{"$f":"+Distribution!L311+Transmission!L311+Generation!L311+Retail!L311+Misc!L311","v":67229.826771018401},{"$f":"+Distribution!M311+Transmission!M311+Generation!M311+Retail!M311+Misc!M311","v":83121.311522725984},{"$f":"+Distribution!N311+Transmission!N311+Generation!N311+Retail!N311+Misc!N311","v":28326.612804000117},{"$f":"+Distribution!O311+Transmission!O311+Generation!O311+Retail!O311+Misc!O311","v":1908.8957579812629},{"$f":"+Distribution!P311+Transmission!P311+Generation!P311+Retail!P311+Misc!P311","v":0},{"$f":"+Distribution!Q311+Transmission!Q311+Generation!Q311+Retail!Q311+Misc!Q311","v":0},{"$f":"ROUND(SUM(I311:Q311)-H311,0)","v":0}]
[312]
[313,null,"538","Electric Expenses",null,{"$f":"IF(Classification=\"DEMAND\",\"F12\",IF(Classification=\"ENERGY\",\"F30\",\"F10\"))","v":"F10"},null,{"$f":"+Distribution!H313+Transmission!H313+Generation!H313+Retail!H313+Misc!H313","v":0},{"$f":"+Distribution!I313+Transmission!I313+Generation!I313+Retail!I313+Misc!I313","v":0},{"$f":"+Distribution!J313+Transmission!J313+Generation!J313+Retail!J313+Misc!J313","v":0},{"$f":"+Distribution!K313+Transmission!K313+Generation!K313+Retail!K313+Misc!K313","v":0},{"$f":"+Distribution!L313+Transmission!L313+Generation!L313+Retail!L313+Misc!L313","v":0},{"$f":"+Distribution!M313+Transmission!M313+Generation!M313+Retail!M313+Misc!M313","v":0},{"$f":"+Distribution!N313+Transmission!N313+Generation!N313+Retail!N313+Misc!N313","v":0},{"$f":"+Distribution!O313+Transmission!O313+Generation!O313+Retail!O313+Misc!O313","v":0},{"$f":"+Distribution!P313+Transmission!P313+Generation!P313+Retail!P313+Misc!P313","v":0},{"$f":"+Distribution!Q313+Transmission!Q313+Generation!Q313+Retail!Q313+Misc!Q313","v":0},{"$f":"ROUND(SUM(I313:Q313)-H313,0)","v":0}]
[314]
[315,null,"539","Misc. Hydro Expenses",null,{"$f":"IF(Classification=\"DEMAND\",\"F12\",IF(Classification=\"ENERGY\",\"F30\",\"F10\"))","v":"F10"},null,{"$f":"+Distribution!H315+Transmission!H315+Generation!H315+Retail!H315+Misc!H315","v":3250316.327707991},{"$f":"+Distribution!I315+Transmission!I315+Generation!I315+Retail!I315+Misc!I315","v":1379028.0316553551},{"$f":"+Distribution!J315+Transmission!J315+Generation!J315+Retail!J315+Misc!J315","v":438632.91436652828},{"$f":"+Distribution!K315+Transmission!K315+Generation!K315+Retail!K315+Misc!K315","v":694975.98478026327},{"$f":"+Distribution!L315+Transmission!L315+Generation!L315+Retail!L315+Misc!L315","v":274627.49284087936},{"$f":"+Distribution!M315+Transmission!M315+Generation!M315+Retail!M315+Misc!M315","v":339542.70718086133},{"$f":"+Distribution!N315+Transmission!N315+Generation!N315+Retail!N315+Misc!N315","v":115711.53799834583},{"$f":"+Distribution!O315+Transmission!O315+Generation!O315+Retail!O315+Misc!O315","v":7797.6588857577253},{"$f":"+Distribution!P315+Transmission!P315+Generation!P315+Retail!P315+Misc!P315","v":0},{"$f":"+Distribution!Q315+Transmission!Q315+Generation!Q315+Retail!Q315+Misc!Q315","v":0},{"$f":"ROUND(SUM(I315:Q315)-H315,0)","v":0}]
[316]
[317,null,"540","Rents (Hydro Generation)",null,{"$f":"IF(Classification=\"DEMAND\",\"F12\",IF(Classification=\"ENERGY\",\"F30\",\"F10\"))","v":"F10"},null,{"$f":"+Distribution!H317+Transmission!H317+Generation!H317+Retail!H317+Misc!H317","v":-44352.135913791084},{"$f":"+Distribution!I317+Transmission!I317+Generation!I317+Retail!I317+Misc!I317","v":-18817.503443437454},{"$f":"+Distribution!J317+Transmission!J317+Generation!J317+Retail!J317+Misc!J317","v":-5985.3579383656615},{"$f":"+Distribution!K317+Transmission!K317+Generation!K317+Retail!K317+Misc!K317","v":-9483.282925736281},{"$f":"+Distribution!L317+Transmission!L317+Generation!L317+Retail!L317+Misc!L317","v":-3747.4247611867058},{"$f":"+Distribution!M317+Transmission!M317+Generation!M317+Retail!M317+Misc!M317","v":-4633.2242093007362},{"$f":"+Distribution!N317+Transmission!N317+Generation!N317+Retail!N317+Misc!N317","v":-1578.93981467194},{"$f":"+Distribution!O317+Transmission!O317+Generation!O317+Retail!O317+Misc!O317","v":-106.40282109230384},{"$f":"+Distribution!P317+Transmission!P317+Generation!P317+Retail!P317+Misc!P317","v":0},{"$f":"+Distribution!Q317+Transmission!Q317+Generation!Q317+Retail!Q317+Misc!Q317","v":0},{"$f":"ROUND(SUM(I317:Q317)-H317,0)","v":0}]
[318]
[319,null,"541","Maint Supervision & Engineering",null,{"$f":"IF(Classification=\"DEMAND\",\"F12\",IF(Classification=\"ENERGY\",\"F30\",\"F10\"))","v":"F10"},null,{"$f":"+Distribution!H319+Transmission!H319+Generation!H319+Retail!H319+Misc!H319","v":87.7907815933156},{"$f":"+Distribution!I319+Transmission!I319+Generation!I319+Retail!I319+Misc!I319","v":37.247435797575633},{"$f":"+Distribution!J319+Transmission!J319+Generation!J319+Retail!J319+Misc!J319","v":11.847439603500323},{"$f":"+Distribution!K319+Transmission!K319+Generation!K319+Retail!K319+Misc!K319","v":18.771245239218725},{"$f":"+Distribution!L319+Transmission!L319+Generation!L319+Retail!L319+Misc!L319","v":7.4176664092614155},{"$f":"+Distribution!M319+Transmission!M319+Generation!M319+Retail!M319+Misc!M319","v":9.1710211075788344},{"$f":"+Distribution!N319+Transmission!N319+Generation!N319+Retail!N319+Misc!N319","v":3.1253592992294288},{"$f":"+Distribution!O319+Transmission!O319+Generation!O319+Retail!O319+Misc!O319","v":0.21061413695123718},{"$f":"+Distribution!P319+Transmission!P319+Generation!P319+Retail!P319+Misc!P319","v":0},{"$f":"+Distribution!Q319+Transmission!Q319+Generation!Q319+Retail!Q319+Misc!Q319","v":0},{"$f":"ROUND(SUM(I319:Q319)-H319,0)","v":0}]
[320]
[321,null,"542","Maintenance of Structures",null,{"$f":"IF(Classification=\"DEMAND\",\"F12\",IF(Classification=\"ENERGY\",\"F30\",\"F10\"))","v":"F10"},null,{"$f":"+Distribution!H321+Transmission!H321+Generation!H321+Retail!H321+Misc!H321","v":209229.25596829882},{"$f":"+Distribution!I321+Transmission!I321+Generation!I321+Retail!I321+Misc!I321","v":88770.747192517389},{"$f":"+Distribution!J321+Transmission!J321+Generation!J321+Retail!J321+Misc!J321","v":28235.663567192438},{"$f":"+Distribution!K321+Transmission!K321+Generation!K321+Retail!K321+Misc!K321","v":44736.971282406776},{"$f":"+Distribution!L321+Transmission!L321+Generation!L321+Retail!L321+Misc!L321","v":17678.311955579829},{"$f":"+Distribution!M321+Transmission!M321+Generation!M321+Retail!M321+Misc!M321","v":21857.032002485146},{"$f":"+Distribution!N321+Transmission!N321+Generation!N321+Retail!N321+Misc!N321","v":7448.5793262508842},{"$f":"+Distribution!O321+Transmission!O321+Generation!O321+Retail!O321+Misc!O321","v":501.95064186634357},{"$f":"+Distribution!P321+Transmission!P321+Generation!P321+Retail!P321+Misc!P321","v":0},{"$f":"+Distribution!Q321+Transmission!Q321+Generation!Q321+Retail!Q321+Misc!Q321","v":0},{"$f":"ROUND(SUM(I321:Q321)-H321,0)","v":0}]
[322]
[323,null,"543","Maint of Dams & Waterways",null,{"$f":"IF(Classification=\"DEMAND\",\"F12\",IF(Classification=\"ENERGY\",\"F30\",\"F10\"))","v":"F10"},null,{"$f":"+Distribution!H323+Transmission!H323+Generation!H323+Retail!H323+Misc!H323","v":363225.0548296136},{"$f":"+Distribution!I323+Transmission!I323+Generation!I323+Retail!I323+Misc!I323","v":154107.318152263},{"$f":"+Distribution!J323+Transmission!J323+Generation!J323+Retail!J323+Misc!J323","v":49017.525775161717},{"$f":"+Distribution!K323+Transmission!K323+Generation!K323+Retail!K323+Misc!K323","v":77664.037812308103},{"$f":"+Distribution!L323+Transmission!L323+Generation!L323+Retail!L323+Misc!L323","v":30689.8086486213},{"$f":"+Distribution!M323+Transmission!M323+Generation!M323+Retail!M323+Misc!M323","v":37944.127893463236},{"$f":"+Distribution!N323+Transmission!N323+Generation!N323+Retail!N323+Misc!N323","v":12930.84287691644},{"$f":"+Distribution!O323+Transmission!O323+Generation!O323+Retail!O323+Misc!O323","v":871.39367087978644},{"$f":"+Distribution!P323+Transmission!P323+Generation!P323+Retail!P323+Misc!P323","v":0},{"$f":"+Distribution!Q323+Transmission!Q323+Generation!Q323+Retail!Q323+Misc!Q323","v":0},{"$f":"ROUND(SUM(I323:Q323)-H323,0)","v":0}]
[324]
[325,null,"544","Maintenance of Electric Plant",null,{"$f":"IF(Classification=\"DEMAND\",\"F12\",IF(Classification=\"ENERGY\",\"F30\",\"F10\"))","v":"F10"},null,{"$f":"+Distribution!H325+Transmission!H325+Generation!H325+Retail!H325+Misc!H325","v":446990.68112780293},{"$f":"+Distribution!I325+Transmission!I325+Generation!I325+Retail!I325+Misc!I325","v":189646.98109818535},{"$f":"+Distribution!J325+Transmission!J325+Generation!J325+Retail!J325+Misc!J325","v":60321.767295808335},{"$f":"+Distribution!K325+Transmission!K325+Generation!K325+Retail!K325+Misc!K325","v":95574.632584593215},{"$f":"+Distribution!L325+Transmission!L325+Generation!L325+Retail!L325+Misc!L325","v":37767.379450088374},{"$f":"+Distribution!M325+Transmission!M325+Generation!M325+Retail!M325+Misc!M325","v":46694.66311968962},{"$f":"+Distribution!N325+Transmission!N325+Generation!N325+Retail!N325+Misc!N325","v":15912.906304937642},{"$f":"+Distribution!O325+Transmission!O325+Generation!O325+Retail!O325+Misc!O325","v":1072.3512745003959},{"$f":"+Distribution!P325+Transmission!P325+Generation!P325+Retail!P325+Misc!P325","v":0},{"$f":"+Distribution!Q325+Transmission!Q325+Generation!Q325+Retail!Q325+Misc!Q325","v":0},{"$f":"ROUND(SUM(I325:Q325)-H325,0)","v":0}]
[326]
[327,null,"545","Maint of Misc. Hydro Plant",null,{"$f":"IF(Classification=\"DEMAND\",\"F12\",IF(Classification=\"ENERGY\",\"F30\",\"F10\"))","v":"F10"},null,{"$f":"+Distribution!H327+Transmission!H327+Generation!H327+Retail!H327+Misc!H327","v":448827.46446306718},{"$f":"+Distribution!I327+Transmission!I327+Generation!I327+Retail!I327+Misc!I327","v":190426.28238828253},{"$f":"+Distribution!J327+Transmission!J327+Generation!J327+Retail!J327+Misc!J327","v":60569.642747357066},{"$f":"+Distribution!K327+Transmission!K327+Generation!K327+Retail!K327+Misc!K327","v":95967.369838001832},{"$f":"+Distribution!L327+Transmission!L327+Generation!L327+Retail!L327+Misc!L327","v":37922.573945453456},{"$f":"+Distribution!M327+Transmission!M327+Generation!M327+Retail!M327+Misc!M327","v":46886.541793418619},{"$f":"+Distribution!N327+Transmission!N327+Generation!N327+Retail!N327+Misc!N327","v":15978.295948056788},{"$f":"+Distribution!O327+Transmission!O327+Generation!O327+Retail!O327+Misc!O327","v":1076.7578024968677},{"$f":"+Distribution!P327+Transmission!P327+Generation!P327+Retail!P327+Misc!P327","v":0},{"$f":"+Distribution!Q327+Transmission!Q327+Generation!Q327+Retail!Q327+Misc!Q327","v":0},{"$f":"ROUND(SUM(I327:Q327)-H327,0)","v":0}]
[328]
[{"$f":"+A328+1","v":329},null,"Total Hydraulic Power Generation ",null,null,null,null,{"$f":"+Distribution!H329+Transmission!H329+Generation!H329+Retail!H329+Misc!H329","v":6844661.3506220235},{"$f":"+Distribution!I329+Transmission!I329+Generation!I329+Retail!I329+Misc!I329","v":2904018.8455601218},{"$f":"+Distribution!J329+Transmission!J329+Generation!J329+Retail!J329+Misc!J329","v":923692.78967760911},{"$f":"+Distribution!K329+Transmission!K329+Generation!K329+Retail!K329+Misc!K329","v":1463511.4810472403},{"$f":"+Distribution!L329+Transmission!L329+Generation!L329+Retail!L329+Misc!L329","v":578322.84508496302},{"$f":"+Distribution!M329+Transmission!M329+Generation!M329+Retail!M329+Misc!M329","v":715024.20392579283},{"$f":"+Distribution!N329+Transmission!N329+Generation!N329+Retail!N329+Misc!N329","v":243670.52683663089},{"$f":"+Distribution!O329+Transmission!O329+Generation!O329+Retail!O329+Misc!O329","v":16420.658489666635},{"$f":"+Distribution!P329+Transmission!P329+Generation!P329+Retail!P329+Misc!P329","v":0},{"$f":"+Distribution!Q329+Transmission!Q329+Generation!Q329+Retail!Q329+Misc!Q329","v":0},{"$f":"ROUND(SUM(I329:Q329)-H329,0)","v":0}]
[330]
[331]
[332,null,null,null,null,null,null,"OTHER POWER GENERATION"]
[333]
[334]
[335,null,"546","Operation Super & Engineering",null,{"$f":"IF(Classification=\"DEMAND\",\"F12\",IF(Classification=\"ENERGY\",\"F30\",\"F10\"))","v":"F10"},null,{"$f":"+Distribution!H335+Transmission!H335+Generation!H335+Retail!H335+Misc!H335","v":0},{"$f":"+Distribution!I335+Transmission!I335+Generation!I335+Retail!I335+Misc!I335","v":0},{"$f":"+Distribution!J335+Transmission!J335+Generation!J335+Retail!J335+Misc!J335","v":0},{"$f":"+Distribution!K335+Transmission!K335+Generation!K335+Retail!K335+Misc!K335","v":0},{"$f":"+Distribution!L335+Transmission!L335+Generation!L335+Retail!L335+Misc!L335","v":0},{"$f":"+Distribution!M335+Transmission!M335+Generation!M335+Retail!M335+Misc!M335","v":0},{"$f":"+Distribution!N335+Transmission!N335+Generation!N335+Retail!N335+Misc!N335","v":0},{"$f":"+Distribution!O335+Transmission!O335+Generation!O335+Retail!O335+Misc!O335","v":0},{"$f":"+Distribution!P335+Transmission!P335+Generation!P335+Retail!P335+Misc!P335","v":0},{"$f":"+Distribution!Q335+Transmission!Q335+Generation!Q335+Retail!Q335+Misc!Q335","v":0},{"$f":"ROUND(SUM(I335:Q335)-H335,0)","v":0}]
[336,null,null,null,"CAGE",{"$f":"IF(Classification=\"DEMAND\",\"F12\",IF(Classification=\"ENERGY\",\"F30\",\"F10\"))","v":"F10"},null,{"$f":"+Distribution!H336+Transmission!H336+Generation!H336+Retail!H336+Misc!H336","v":33980.406268012215},{"$f":"+Distribution!I336+Transmission!I336+Generation!I336+Retail!I336+Misc!I336","v":14417.037619126184},{"$f":"+Distribution!J336+Transmission!J336+Generation!J336+Retail!J336+Misc!J336","v":4585.684324210768},{"$f":"+Distribution!K336+Transmission!K336+Generation!K336+Retail!K336+Misc!K336","v":7265.6209206560798},{"$f":"+Distribution!L336+Transmission!L336+Generation!L336+Retail!L336+Misc!L336","v":2871.090945686281},{"$f":"+Distribution!M336+Transmission!M336+Generation!M336+Retail!M336+Misc!M336","v":3549.746539126063},{"$f":"+Distribution!N336+Transmission!N336+Generation!N336+Retail!N336+Misc!N336","v":1209.7053562331207},{"$f":"+Distribution!O336+Transmission!O336+Generation!O336+Retail!O336+Misc!O336","v":81.520562973717944},{"$f":"+Distribution!P336+Transmission!P336+Generation!P336+Retail!P336+Misc!P336","v":0},{"$f":"+Distribution!Q336+Transmission!Q336+Generation!Q336+Retail!Q336+Misc!Q336","v":0},{"$f":"ROUND(SUM(I336:Q336)-H336,0)","v":0}]
[337,null,null,null,"Total 546",null,null,{"$f":"+Distribution!H337+Transmission!H337+Generation!H337+Retail!H337+Misc!H337","v":33980.406268012215},{"$f":"+Distribution!I337+Transmission!I337+Generation!I337+Retail!I337+Misc!I337","v":14417.037619126184},{"$f":"+Distribution!J337+Transmission!J337+Generation!J337+Retail!J337+Misc!J337","v":4585.684324210768},{"$f":"+Distribution!K337+Transmission!K337+Generation!K337+Retail!K337+Misc!K337","v":7265.6209206560798},{"$f":"+Distribution!L337+Transmission!L337+Generation!L337+Retail!L337+Misc!L337","v":2871.090945686281},{"$f":"+Distribution!M337+Transmission!M337+Generation!M337+Retail!M337+Misc!M337","v":3549.746539126063},{"$f":"+Distribution!N337+Transmission!N337+Generation!N337+Retail!N337+Misc!N337","v":1209.7053562331207},{"$f":"+Distribution!O337+Transmission!O337+Generation!O337+Retail!O337+Misc!O337","v":81.520562973717944},{"$f":"+Distribution!P337+Transmission!P337+Generation!P337+Retail!P337+Misc!P337","v":0},{"$f":"+Distribution!Q337+Transmission!Q337+Generation!Q337+Retail!Q337+Misc!Q337","v":0},{"$f":"ROUND(SUM(I337:Q337)-H337,0)","v":0}]
[338]
[339,null,"547","Fuel","SE",{"$f":"IF(Classification=\"DEMAND\",\"F12\",IF(Classification=\"ENERGY\",\"F30\",\"F10\"))","v":"F10"},null,{"$f":"+Distribution!H339+Transmission!H339+Generation!H339+Retail!H339+Misc!H339","v":0},{"$f":"+Distribution!I339+Transmission!I339+Generation!I339+Retail!I339+Misc!I339","v":0},{"$f":"+Distribution!J339+Transmission!J339+Generation!J339+Retail!J339+Misc!J339","v":0},{"$f":"+Distribution!K339+Transmission!K339+Generation!K339+Retail!K339+Misc!K339","v":0},{"$f":"+Distribution!L339+Transmission!L339+Generation!L339+Retail!L339+Misc!L339","v":0},{"$f":"+Distribution!M339+Transmission!M339+Generation!M339+Retail!M339+Misc!M339","v":0},{"$f":"+Distribution!N339+Transmission!N339+Generation!N339+Retail!N339+Misc!N339","v":0},{"$f":"+Distribution!O339+Transmission!O339+Generation!O339+Retail!O339+Misc!O339","v":0},{"$f":"+Distribution!P339+Transmission!P339+Generation!P339+Retail!P339+Misc!P339","v":0},{"$f":"+Distribution!Q339+Transmission!Q339+Generation!Q339+Retail!Q339+Misc!Q339","v":0},{"$f":"ROUND(SUM(I339:Q339)-H339,0)","v":0}]
[340,null,null,null,"SSECT",{"$f":"IF(Classification=\"DEMAND\",\"F12\",IF(Classification=\"ENERGY\",\"F30\",\"F10\"))","v":"F10"},null,{"$f":"+Distribution!H340+Transmission!H340+Generation!H340+Retail!H340+Misc!H340","v":0},{"$f":"+Distribution!I340+Transmission!I340+Generation!I340+Retail!I340+Misc!I340","v":0},{"$f":"+Distribution!J340+Transmission!J340+Generation!J340+Retail!J340+Misc!J340","v":0},{"$f":"+Distribution!K340+Transmission!K340+Generation!K340+Retail!K340+Misc!K340","v":0},{"$f":"+Distribution!L340+Transmission!L340+Generation!L340+Retail!L340+Misc!L340","v":0},{"$f":"+Distribution!M340+Transmission!M340+Generation!M340+Retail!M340+Misc!M340","v":0},{"$f":"+Distribution!N340+Transmission!N340+Generation!N340+Retail!N340+Misc!N340","v":0},{"$f":"+Distribution!O340+Transmission!O340+Generation!O340+Retail!O340+Misc!O340","v":0},{"$f":"+Distribution!P340+Transmission!P340+Generation!P340+Retail!P340+Misc!P340","v":0},{"$f":"+Distribution!Q340+Transmission!Q340+Generation!Q340+Retail!Q340+Misc!Q340","v":0},{"$f":"ROUND(SUM(I340:Q340)-H340,0)","v":0}]
[341,null,null,null,"Total 547",null,null,{"$f":"SUM(H339:H340)","v":0},{"$f":"SUM(I339:I340)","v":0},0,0,0,{"$f":"SUM(M339:M340)","v":0},0,0,0,0,{"$f":"ROUND(SUM(I341:Q341)-H341,0)","v":0}]
[342]
[343]
[344,null,"547NPC","Fuel","CAEW","F10",null,{"$f":"+Distribution!H344+Transmission!H344+Generation!H344+Retail!H344+Misc!H344","v":22341081.551404446},{"$f":"+Distribution!I344+Transmission!I344+Generation!I344+Retail!I344+Misc!I344","v":9478762.8681699578},{"$f":"+Distribution!J344+Transmission!J344+Generation!J344+Retail!J344+Misc!J344","v":3014947.6921537351},{"$f":"+Distribution!K344+Transmission!K344+Generation!K344+Retail!K344+Misc!K344","v":4776924.3319133287},{"$f":"+Distribution!L344+Transmission!L344+Generation!L344+Retail!L344+Misc!L344","v":1887654.7988614845},{"$f":"+Distribution!M344+Transmission!M344+Generation!M344+Retail!M344+Misc!M344","v":2333850.1691807541},{"$f":"+Distribution!N344+Transmission!N344+Generation!N344+Retail!N344+Misc!N344","v":795344.40534974483},{"$f":"+Distribution!O344+Transmission!O344+Generation!O344+Retail!O344+Misc!O344","v":53597.28577544092},{"$f":"+Distribution!P344+Transmission!P344+Generation!P344+Retail!P344+Misc!P344","v":0},{"$f":"+Distribution!Q344+Transmission!Q344+Generation!Q344+Retail!Q344+Misc!Q344","v":0},{"$f":"ROUND(SUM(I344:Q344)-H344,0)","v":0}]
[345,null,null,null,"SE","F10",null,{"$f":"+Distribution!H345+Transmission!H345+Generation!H345+Retail!H345+Misc!H345","v":0},{"$f":"+Distribution!I345+Transmission!I345+Generation!I345+Retail!I345+Misc!I345","v":0},{"$f":"+Distribution!J345+Transmission!J345+Generation!J345+Retail!J345+Misc!J345","v":0},{"$f":"+Distribution!K345+Transmission!K345+Generation!K345+Retail!K345+Misc!K345","v":0},{"$f":"+Distribution!L345+Transmission!L345+Generation!L345+Retail!L345+Misc!L345","v":0},{"$f":"+Distribution!M345+Transmission!M345+Generation!M345+Retail!M345+Misc!M345","v":0},{"$f":"+Distribution!N345+Transmission!N345+Generation!N345+Retail!N345+Misc!N345","v":0},{"$f":"+Distribution!O345+Transmission!O345+Generation!O345+Retail!O345+Misc!O345","v":0},{"$f":"+Distribution!P345+Transmission!P345+Generation!P345+Retail!P345+Misc!P345","v":0},{"$f":"+Distribution!Q345+Transmission!Q345+Generation!Q345+Retail!Q345+Misc!Q345","v":0},{"$f":"ROUND(SUM(I345:Q345)-H345,0)","v":0}]
[346,null,null,null,"Total 547NPC",null,null,{"$f":"SUM(H344:H345)","v":22341081.551404446},{"$f":"SUM(I344:I345)","v":9478762.8681699578},3014947.6921537351,4776924.3319133287,1887654.7988614845,{"$f":"SUM(M344:M345)","v":2333850.1691807541},{"$f":"SUM(N344:N345)","v":795344.40534974483},53597.28577544092,0,0,{"$f":"ROUND(SUM(I346:Q346)-H346,0)","v":0}]
[347]
[348,null,"548","Generation Expense",null,{"$f":"IF(Classification=\"DEMAND\",\"F12\",IF(Classification=\"ENERGY\",\"F30\",\"F10\"))","v":"F10"},null,{"$f":"+Distribution!H348+Transmission!H348+Generation!H348+Retail!H348+Misc!H348","v":-1987.2203102535568},{"$f":"+Distribution!I348+Transmission!I348+Generation!I348+Retail!I348+Misc!I348","v":-843.12794098012102},{"$f":"+Distribution!J348+Transmission!J348+Generation!J348+Retail!J348+Misc!J348","v":-268.17704749049403},{"$f":"+Distribution!K348+Transmission!K348+Generation!K348+Retail!K348+Misc!K348","v":-424.90337950204628},{"$f":"+Distribution!L348+Transmission!L348+Generation!L348+Retail!L348+Misc!L348","v":-167.90529797825837},{"$f":"+Distribution!M348+Transmission!M348+Generation!M348+Retail!M348+Misc!M348","v":-207.59399882290569},{"$f":"+Distribution!N348+Transmission!N348+Generation!N348+Retail!N348+Misc!N348","v":-70.745212236969465},{"$f":"+Distribution!O348+Transmission!O348+Generation!O348+Retail!O348+Misc!O348","v":-4.7674332427619035},{"$f":"+Distribution!P348+Transmission!P348+Generation!P348+Retail!P348+Misc!P348","v":0},{"$f":"+Distribution!Q348+Transmission!Q348+Generation!Q348+Retail!Q348+Misc!Q348","v":0},{"$f":"ROUND(SUM(I348:Q348)-H348,0)","v":0}]
[349,null,null,null,"CAGE","F10",null,{"$f":"+Distribution!H349+Transmission!H349+Generation!H349+Retail!H349+Misc!H349","v":2473508.9668660378},{"$f":"+Distribution!I349+Transmission!I349+Generation!I349+Retail!I349+Misc!I349","v":1049448.0714941637},{"$f":"+Distribution!J349+Transmission!J349+Generation!J349+Retail!J349+Misc!J349","v":333802.10953598726},{"$f":"+Distribution!K349+Transmission!K349+Generation!K349+Retail!K349+Misc!K349","v":528880.62477375404},{"$f":"+Distribution!L349+Transmission!L349+Generation!L349+Retail!L349+Misc!L349","v":208993.06332096842},{"$f":"+Distribution!M349+Transmission!M349+Generation!M349+Retail!M349+Misc!M349","v":258393.90575195829},{"$f":"+Distribution!N349+Transmission!N349+Generation!N349+Retail!N349+Misc!N349","v":88057.129814991393},{"$f":"+Distribution!O349+Transmission!O349+Generation!O349+Retail!O349+Misc!O349","v":5934.0621742146841},{"$f":"+Distribution!P349+Transmission!P349+Generation!P349+Retail!P349+Misc!P349","v":0},{"$f":"+Distribution!Q349+Transmission!Q349+Generation!Q349+Retail!Q349+Misc!Q349","v":0},{"$f":"ROUND(SUM(I349:Q349)-H349,0)","v":0}]
[350,null,null,null,"Total 548",null,null,{"$f":"+Distribution!H350+Transmission!H350+Generation!H350+Retail!H350+Misc!H350","v":2471521.7465557843},{"$f":"+Distribution!I350+Transmission!I350+Generation!I350+Retail!I350+Misc!I350","v":1048604.9435531837},{"$f":"+Distribution!J350+Transmission!J350+Generation!J350+Retail!J350+Misc!J350","v":333533.93248849676},{"$f":"+Distribution!K350+Transmission!K350+Generation!K350+Retail!K350+Misc!K350","v":528455.72139425203},{"$f":"+Distribution!L350+Transmission!L350+Generation!L350+Retail!L350+Misc!L350","v":208825.15802299016},{"$f":"+Distribution!M350+Transmission!M350+Generation!M350+Retail!M350+Misc!M350","v":258186.31175313538},{"$f":"+Distribution!N350+Transmission!N350+Generation!N350+Retail!N350+Misc!N350","v":87986.38460275442},{"$f":"+Distribution!O350+Transmission!O350+Generation!O350+Retail!O350+Misc!O350","v":5929.2947409719218},{"$f":"+Distribution!P350+Transmission!P350+Generation!P350+Retail!P350+Misc!P350","v":0},{"$f":"+Distribution!Q350+Transmission!Q350+Generation!Q350+Retail!Q350+Misc!Q350","v":0},{"$f":"ROUND(SUM(I350:Q350)-H350,0)","v":0}]
[351]
[352,null,"549","Miscellaneous Other",null,{"$f":"IF(Classification=\"DEMAND\",\"F12\",IF(Classification=\"ENERGY\",\"F30\",\"F10\"))","v":"F10"},null,{"$f":"+Distribution!H352+Transmission!H352+Generation!H352+Retail!H352+Misc!H352","v":137533.22300106776},{"$f":"+Distribution!I352+Transmission!I352+Generation!I352+Retail!I352+Misc!I352","v":58351.911223398551},{"$f":"+Distribution!J352+Transmission!J352+Generation!J352+Retail!J352+Misc!J352","v":18560.22378896278},{"$f":"+Distribution!K352+Transmission!K352+Generation!K352+Retail!K352+Misc!K352","v":29407.072253355691},{"$f":"+Distribution!L352+Transmission!L352+Generation!L352+Retail!L352+Misc!L352","v":11620.531790437506},{"$f":"+Distribution!M352+Transmission!M352+Generation!M352+Retail!M352+Misc!M352","v":14367.340946787701},{"$f":"+Distribution!N352+Transmission!N352+Generation!N352+Retail!N352+Misc!N352","v":4896.1944484170081},{"$f":"+Distribution!O352+Transmission!O352+Generation!O352+Retail!O352+Misc!O352","v":329.94854970852015},{"$f":"+Distribution!P352+Transmission!P352+Generation!P352+Retail!P352+Misc!P352","v":0},{"$f":"+Distribution!Q352+Transmission!Q352+Generation!Q352+Retail!Q352+Misc!Q352","v":0},{"$f":"ROUND(SUM(I352:Q352)-H352,0)","v":0}]
[353,null,null,null,"CAGE",{"$f":"IF(Classification=\"DEMAND\",\"F12\",IF(Classification=\"ENERGY\",\"F30\",\"F10\"))","v":"F10"},null,{"$f":"+Distribution!H353+Transmission!H353+Generation!H353+Retail!H353+Misc!H353","v":1416409.9515347558},{"$f":"+Distribution!I353+Transmission!I353+Generation!I353+Retail!I353+Misc!I353","v":600947.3634399788},{"$f":"+Distribution!J353+Transmission!J353+Generation!J353+Retail!J353+Misc!J353","v":191145.71085994903},{"$f":"+Distribution!K353+Transmission!K353+Generation!K353+Retail!K353+Misc!K353","v":302853.87687621644},{"$f":"+Distribution!L353+Transmission!L353+Generation!L353+Retail!L353+Misc!L353","v":119676.07906617509},{"$f":"+Distribution!M353+Transmission!M353+Generation!M353+Retail!M353+Misc!M353","v":147964.57357772303},{"$f":"+Distribution!N353+Transmission!N353+Generation!N353+Retail!N353+Misc!N353","v":50424.314867784589},{"$f":"+Distribution!O353+Transmission!O353+Generation!O353+Retail!O353+Misc!O353","v":3398.0328469287724},{"$f":"+Distribution!P353+Transmission!P353+Generation!P353+Retail!P353+Misc!P353","v":0},{"$f":"+Distribution!Q353+Transmission!Q353+Generation!Q353+Retail!Q353+Misc!Q353","v":0},{"$f":"ROUND(SUM(I353:Q353)-H353,0)","v":0}]
[354,null,null,null,"Total 549",null,null,{"$f":"+Distribution!H354+Transmission!H354+Generation!H354+Retail!H354+Misc!H354","v":1553943.1745358235},{"$f":"+Distribution!I354+Transmission!I354+Generation!I354+Retail!I354+Misc!I354","v":659299.27466337732},{"$f":"+Distribution!J354+Transmission!J354+Generation!J354+Retail!J354+Misc!J354","v":209705.93464891182},{"$f":"+Distribution!K354+Transmission!K354+Generation!K354+Retail!K354+Misc!K354","v":332260.94912957214},{"$f":"+Distribution!L354+Transmission!L354+Generation!L354+Retail!L354+Misc!L354","v":131296.61085661259},{"$f":"+Distribution!M354+Transmission!M354+Generation!M354+Retail!M354+Misc!M354","v":162331.91452451074},{"$f":"+Distribution!N354+Transmission!N354+Generation!N354+Retail!N354+Misc!N354","v":55320.509316201598},{"$f":"+Distribution!O354+Transmission!O354+Generation!O354+Retail!O354+Misc!O354","v":3727.9813966372926},{"$f":"+Distribution!P354+Transmission!P354+Generation!P354+Retail!P354+Misc!P354","v":0},{"$f":"+Distribution!Q354+Transmission!Q354+Generation!Q354+Retail!Q354+Misc!Q354","v":0},{"$f":"ROUND(SUM(I354:Q354)-H354,0)","v":0}]
[355]
[356,null,"550","Maint Supervision & Engineering"]
[357,null,null,null,"SG",{"$f":"IF(Classification=\"DEMAND\",\"F12\",IF(Classification=\"ENERGY\",\"F30\",\"F10\"))","v":"F10"},null,{"$f":"+Distribution!H357+Transmission!H357+Generation!H357+Retail!H357+Misc!H357","v":363.54944032853217},{"$f":"+Distribution!I357+Transmission!I357+Generation!I357+Retail!I357+Misc!I357","v":154.24494681697414},{"$f":"+Distribution!J357+Transmission!J357+Generation!J357+Retail!J357+Misc!J357","v":49.061301870293121},{"$f":"+Distribution!K357+Transmission!K357+Generation!K357+Retail!K357+Misc!K357","v":77.733397255768296},{"$f":"+Distribution!L357+Transmission!L357+Generation!L357+Retail!L357+Misc!L357","v":30.717216804412942},{"$f":"+Distribution!M357+Transmission!M357+Generation!M357+Retail!M357+Misc!M357","v":37.978014666124132},{"$f":"+Distribution!N357+Transmission!N357+Generation!N357+Retail!N357+Misc!N357","v":12.942391028296125},{"$f":"+Distribution!O357+Transmission!O357+Generation!O357+Retail!O357+Misc!O357","v":0.87217188666342904},{"$f":"+Distribution!P357+Transmission!P357+Generation!P357+Retail!P357+Misc!P357","v":0},{"$f":"+Distribution!Q357+Transmission!Q357+Generation!Q357+Retail!Q357+Misc!Q357","v":0},{"$f":"ROUND(SUM(I357:Q357)-H357,0)","v":0}]
[358,null,null,null,"CAGE",{"$f":"IF(Classification=\"DEMAND\",\"F12\",IF(Classification=\"ENERGY\",\"F30\",\"F10\"))","v":"F10"},null,{"$f":"+Distribution!H358+Transmission!H358+Generation!H358+Retail!H358+Misc!H358","v":435600.51958666736},{"$f":"+Distribution!I358+Transmission!I358+Generation!I358+Retail!I358+Misc!I358","v":184814.42005900029},{"$f":"+Distribution!J358+Transmission!J358+Generation!J358+Retail!J358+Misc!J358","v":58784.65544324692},{"$f":"+Distribution!K358+Transmission!K358+Generation!K358+Retail!K358+Misc!K358","v":93139.211556068578},{"$f":"+Distribution!L358+Transmission!L358+Generation!L358+Retail!L358+Misc!L358","v":36804.995733639313},{"$f":"+Distribution!M358+Transmission!M358+Generation!M358+Retail!M358+Misc!M358","v":45504.795459137429},{"$f":"+Distribution!N358+Transmission!N358+Generation!N358+Retail!N358+Misc!N358","v":15507.415584314829},{"$f":"+Distribution!O358+Transmission!O358+Generation!O358+Retail!O358+Misc!O358","v":1045.025751259991},{"$f":"+Distribution!P358+Transmission!P358+Generation!P358+Retail!P358+Misc!P358","v":0},{"$f":"+Distribution!Q358+Transmission!Q358+Generation!Q358+Retail!Q358+Misc!Q358","v":0},{"$f":"ROUND(SUM(I358:Q358)-H358,0)","v":0}]
[359,null,null,null,"Total 550",null,null,{"$f":"+Distribution!H359+Transmission!H359+Generation!H359+Retail!H359+Misc!H359","v":435964.06902699592},{"$f":"+Distribution!I359+Transmission!I359+Generation!I359+Retail!I359+Misc!I359","v":184968.66500581725},{"$f":"+Distribution!J359+Transmission!J359+Generation!J359+Retail!J359+Misc!J359","v":58833.716745117214},{"$f":"+Distribution!K359+Transmission!K359+Generation!K359+Retail!K359+Misc!K359","v":93216.944953324346},{"$f":"+Distribution!L359+Transmission!L359+Generation!L359+Retail!L359+Misc!L359","v":36835.712950443725},{"$f":"+Distribution!M359+Transmission!M359+Generation!M359+Retail!M359+Misc!M359","v":45542.773473803551},{"$f":"+Distribution!N359+Transmission!N359+Generation!N359+Retail!N359+Misc!N359","v":15520.357975343126},{"$f":"+Distribution!O359+Transmission!O359+Generation!O359+Retail!O359+Misc!O359","v":1045.8979231466544},{"$f":"+Distribution!P359+Transmission!P359+Generation!P359+Retail!P359+Misc!P359","v":0},{"$f":"+Distribution!Q359+Transmission!Q359+Generation!Q359+Retail!Q359+Misc!Q359","v":0},{"$f":"ROUND(SUM(I359:Q359)-H359,0)","v":0}]
[360]
[361,null,"552","Maintenance of Structures"]
[362,null,null,null,"SG",{"$f":"IF(Classification=\"DEMAND\",\"F12\",IF(Classification=\"ENERGY\",\"F30\",\"F10\"))","v":"F10"},null,{"$f":"+Distribution!H362+Transmission!H362+Generation!H362+Retail!H362+Misc!H362","v":0},{"$f":"+Distribution!I362+Transmission!I362+Generation!I362+Retail!I362+Misc!I362","v":0},{"$f":"+Distribution!J362+Transmission!J362+Generation!J362+Retail!J362+Misc!J362","v":0},{"$f":"+Distribution!K362+Transmission!K362+Generation!K362+Retail!K362+Misc!K362","v":0},{"$f":"+Distribution!L362+Transmission!L362+Generation!L362+Retail!L362+Misc!L362","v":0},{"$f":"+Distribution!M362+Transmission!M362+Generation!M362+Retail!M362+Misc!M362","v":0},{"$f":"+Distribution!N362+Transmission!N362+Generation!N362+Retail!N362+Misc!N362","v":0},{"$f":"+Distribution!O362+Transmission!O362+Generation!O362+Retail!O362+Misc!O362","v":0},{"$f":"+Distribution!P362+Transmission!P362+Generation!P362+Retail!P362+Misc!P362","v":0},{"$f":"+Distribution!Q362+Transmission!Q362+Generation!Q362+Retail!Q362+Misc!Q362","v":0},{"$f":"ROUND(SUM(I362:Q362)-H362,0)","v":0}]
[363,null,null,null,"CAGE",{"$f":"IF(Classification=\"DEMAND\",\"F12\",IF(Classification=\"ENERGY\",\"F30\",\"F10\"))","v":"F10"},null,{"$f":"+Distribution!H363+Transmission!H363+Generation!H363+Retail!H363+Misc!H363","v":703.86259142440781},{"$f":"+Distribution!I363+Transmission!I363+Generation!I363+Retail!I363+Misc!I363","v":298.63131650706265},{"$f":"+Distribution!J363+Transmission!J363+Generation!J363+Retail!J363+Misc!J363","v":94.986847021063838},{"$f":"+Distribution!K363+Transmission!K363+Generation!K363+Retail!K363+Misc!K363","v":150.49845870543615},{"$f":"+Distribution!L363+Transmission!L363+Generation!L363+Retail!L363+Misc!L363","v":59.471140436253393},{"$f":"+Distribution!M363+Transmission!M363+Generation!M363+Retail!M363+Misc!M363","v":73.528661730013297},{"$f":"+Distribution!N363+Transmission!N363+Generation!N363+Retail!N363+Misc!N363","v":25.057568181571945},{"$f":"+Distribution!O363+Transmission!O363+Generation!O363+Retail!O363+Misc!O363","v":1.6885988430065439},{"$f":"+Distribution!P363+Transmission!P363+Generation!P363+Retail!P363+Misc!P363","v":0},{"$f":"+Distribution!Q363+Transmission!Q363+Generation!Q363+Retail!Q363+Misc!Q363","v":0},{"$f":"ROUND(SUM(I363:Q363)-H363,0)","v":0}]
[364,null,null,null,"Total 552",null,null,{"$f":"+Distribution!H364+Transmission!H364+Generation!H364+Retail!H364+Misc!H364","v":703.86259142440781},{"$f":"+Distribution!I364+Transmission!I364+Generation!I364+Retail!I364+Misc!I364","v":298.63131650706265},{"$f":"+Distribution!J364+Transmission!J364+Generation!J364+Retail!J364+Misc!J364","v":94.986847021063838},{"$f":"+Distribution!K364+Transmission!K364+Generation!K364+Retail!K364+Misc!K364","v":150.49845870543615},{"$f":"+Distribution!L364+Transmission!L364+Generation!L364+Retail!L364+Misc!L364","v":59.471140436253393},{"$f":"+Distribution!M364+Transmission!M364+Generation!M364+Retail!M364+Misc!M364","v":73.528661730013297},{"$f":"+Distribution!N364+Transmission!N364+Generation!N364+Retail!N364+Misc!N364","v":25.057568181571945},{"$f":"+Distribution!O364+Transmission!O364+Generation!O364+Retail!O364+Misc!O364","v":1.6885988430065439},{"$f":"+Distribution!P364+Transmission!P364+Generation!P364+Retail!P364+Misc!P364","v":0},{"$f":"+Distribution!Q364+Transmission!Q364+Generation!Q364+Retail!Q364+Misc!Q364","v":0},{"$f":"ROUND(SUM(I364:Q364)-H364,0)","v":0}]
[365]
[366,null,"553","Maint of Generation & Elect Plant"]
[367,null,null,null,"SG",{"$f":"IF(Classification=\"DEMAND\",\"F12\",IF(Classification=\"ENERGY\",\"F30\",\"F10\"))","v":"F10"},null,{"$f":"+Distribution!H367+Transmission!H367+Generation!H367+Retail!H367+Misc!H367","v":0},{"$f":"+Distribution!I367+Transmission!I367+Generation!I367+Retail!I367+Misc!I367","v":0},{"$f":"+Distribution!J367+Transmission!J367+Generation!J367+Retail!J367+Misc!J367","v":0},{"$f":"+Distribution!K367+Transmission!K367+Generation!K367+Retail!K367+Misc!K367","v":0},{"$f":"+Distribution!L367+Transmission!L367+Generation!L367+Retail!L367+Misc!L367","v":0},{"$f":"+Distribution!M367+Transmission!M367+Generation!M367+Retail!M367+Misc!M367","v":0},{"$f":"+Distribution!N367+Transmission!N367+Generation!N367+Retail!N367+Misc!N367","v":0},{"$f":"+Distribution!O367+Transmission!O367+Generation!O367+Retail!O367+Misc!O367","v":0},{"$f":"+Distribution!P367+Transmission!P367+Generation!P367+Retail!P367+Misc!P367","v":0},{"$f":"+Distribution!Q367+Transmission!Q367+Generation!Q367+Retail!Q367+Misc!Q367","v":0},{"$f":"ROUND(SUM(I367:Q367)-H367,0)","v":0}]
[368,null,null,null,"CAGE",{"$f":"IF(Classification=\"DEMAND\",\"F12\",IF(Classification=\"ENERGY\",\"F30\",\"F10\"))","v":"F10"},null,{"$f":"+Distribution!H368+Transmission!H368+Generation!H368+Retail!H368+Misc!H368","v":1293734.1639492284},{"$f":"+Distribution!I368+Transmission!I368+Generation!I368+Retail!I368+Misc!I368","v":548899.0909553325},{"$f":"+Distribution!J368+Transmission!J368+Generation!J368+Retail!J368+Misc!J368","v":174590.51044079667},{"$f":"+Distribution!K368+Transmission!K368+Generation!K368+Retail!K368+Misc!K368","v":276623.59105475416},{"$f":"+Distribution!L368+Transmission!L368+Generation!L368+Retail!L368+Misc!L368","v":109310.88977992161},{"$f":"+Distribution!M368+Transmission!M368+Generation!M368+Retail!M368+Misc!M368","v":135149.30736278603},{"$f":"+Distribution!N368+Transmission!N368+Generation!N368+Retail!N368+Misc!N368","v":46057.046385122914},{"$f":"+Distribution!O368+Transmission!O368+Generation!O368+Retail!O368+Misc!O368","v":3103.727970514431},{"$f":"+Distribution!P368+Transmission!P368+Generation!P368+Retail!P368+Misc!P368","v":0},{"$f":"+Distribution!Q368+Transmission!Q368+Generation!Q368+Retail!Q368+Misc!Q368","v":0},{"$f":"ROUND(SUM(I368:Q368)-H368,0)","v":0}]
[369,null,null,null,"Total 553",null,null,{"$f":"+Distribution!H369+Transmission!H369+Generation!H369+Retail!H369+Misc!H369","v":1293734.1639492284},{"$f":"+Distribution!I369+Transmission!I369+Generation!I369+Retail!I369+Misc!I369","v":548899.0909553325},{"$f":"+Distribution!J369+Transmission!J369+Generation!J369+Retail!J369+Misc!J369","v":174590.51044079667},{"$f":"+Distribution!K369+Transmission!K369+Generation!K369+Retail!K369+Misc!K369","v":276623.59105475416},{"$f":"+Distribution!L369+Transmission!L369+Generation!L369+Retail!L369+Misc!L369","v":109310.88977992161},{"$f":"+Distribution!M369+Transmission!M369+Generation!M369+Retail!M369+Misc!M369","v":135149.30736278603},{"$f":"+Distribution!N369+Transmission!N369+Generation!N369+Retail!N369+Misc!N369","v":46057.046385122914},{"$f":"+Distribution!O369+Transmission!O369+Generation!O369+Retail!O369+Misc!O369","v":3103.727970514431},{"$f":"+Distribution!P369+Transmission!P369+Generation!P369+Retail!P369+Misc!P369","v":0},{"$f":"+Distribution!Q369+Transmission!Q369+Generation!Q369+Retail!Q369+Misc!Q369","v":0},{"$f":"ROUND(SUM(I369:Q369)-H369,0)","v":0}]
[370]
[371,null,"554","Maintenance of Misc. Other"]
[372,null,null,null,"SG",{"$f":"IF(Classification=\"DEMAND\",\"F12\",IF(Classification=\"ENERGY\",\"F30\",\"F10\"))","v":"F10"},null,{"$f":"+Distribution!H372+Transmission!H372+Generation!H372+Retail!H372+Misc!H372","v":0},{"$f":"+Distribution!I372+Transmission!I372+Generation!I372+Retail!I372+Misc!I372","v":0},{"$f":"+Distribution!J372+Transmission!J372+Generation!J372+Retail!J372+Misc!J372","v":0},{"$f":"+Distribution!K372+Transmission!K372+Generation!K372+Retail!K372+Misc!K372","v":0},{"$f":"+Distribution!L372+Transmission!L372+Generation!L372+Retail!L372+Misc!L372","v":0},{"$f":"+Distribution!M372+Transmission!M372+Generation!M372+Retail!M372+Misc!M372","v":0},{"$f":"+Distribution!N372+Transmission!N372+Generation!N372+Retail!N372+Misc!N372","v":0},{"$f":"+Distribution!O372+Transmission!O372+Generation!O372+Retail!O372+Misc!O372","v":0},{"$f":"+Distribution!P372+Transmission!P372+Generation!P372+Retail!P372+Misc!P372","v":0},{"$f":"+Distribution!Q372+Transmission!Q372+Generation!Q372+Retail!Q372+Misc!Q372","v":0},{"$f":"ROUND(SUM(I372:Q372)-H372,0)","v":0}]
[373,null,null,null,"CAGE",{"$f":"IF(Classification=\"DEMAND\",\"F12\",IF(Classification=\"ENERGY\",\"F30\",\"F10\"))","v":"F10"},null,{"$f":"+Distribution!H373+Transmission!H373+Generation!H373+Retail!H373+Misc!H373","v":286438.15081312502},{"$f":"+Distribution!I373+Transmission!I373+Generation!I373+Retail!I373+Misc!I373","v":121528.55275639221},{"$f":"+Distribution!J373+Transmission!J373+Generation!J373+Retail!J373+Misc!J373","v":38655.068679274656},{"$f":"+Distribution!K373+Transmission!K373+Generation!K373+Retail!K373+Misc!K373","v":61245.619154971493},{"$f":"+Distribution!L373+Transmission!L373+Generation!L373+Retail!L373+Misc!L373","v":24201.887841254254},{"$f":"+Distribution!M373+Transmission!M373+Generation!M373+Retail!M373+Misc!M373","v":29922.62148083021},{"$f":"+Distribution!N373+Transmission!N373+Generation!N373+Retail!N373+Misc!N373","v":10197.222556292221},{"$f":"+Distribution!O373+Transmission!O373+Generation!O373+Retail!O373+Misc!O373","v":687.17834410996988},{"$f":"+Distribution!P373+Transmission!P373+Generation!P373+Retail!P373+Misc!P373","v":0},{"$f":"+Distribution!Q373+Transmission!Q373+Generation!Q373+Retail!Q373+Misc!Q373","v":0},{"$f":"ROUND(SUM(I373:Q373)-H373,0)","v":0}]
[374,null,null,null,"Total 554",null,null,{"$f":"+Distribution!H374+Transmission!H374+Generation!H374+Retail!H374+Misc!H374","v":286438.15081312502},{"$f":"+Distribution!I374+Transmission!I374+Generation!I374+Retail!I374+Misc!I374","v":121528.55275639221},{"$f":"+Distribution!J374+Transmission!J374+Generation!J374+Retail!J374+Misc!J374","v":38655.068679274656},{"$f":"+Distribution!K374+Transmission!K374+Generation!K374+Retail!K374+Misc!K374","v":61245.619154971493},{"$f":"+Distribution!L374+Transmission!L374+Generation!L374+Retail!L374+Misc!L374","v":24201.887841254254},{"$f":"+Distribution!M374+Transmission!M374+Generation!M374+Retail!M374+Misc!M374","v":29922.62148083021},{"$f":"+Distribution!N374+Transmission!N374+Generation!N374+Retail!N374+Misc!N374","v":10197.222556292221},{"$f":"+Distribution!O374+Transmission!O374+Generation!O374+Retail!O374+Misc!O374","v":687.17834410996988},{"$f":"+Distribution!P374+Transmission!P374+Generation!P374+Retail!P374+Misc!P374","v":0},{"$f":"+Distribution!Q374+Transmission!Q374+Generation!Q374+Retail!Q374+Misc!Q374","v":0},{"$f":"ROUND(SUM(I374:Q374)-H374,0)","v":0}]
[375]
[376,null,"Total Other Power Generation",null,null,null,null,{"$f":"+Distribution!H376+Transmission!H376+Generation!H376+Retail!H376+Misc!H376","v":28417367.125144839},{"$f":"+Distribution!I376+Transmission!I376+Generation!I376+Retail!I376+Misc!I376","v":12056779.064039694},{"$f":"+Distribution!J376+Transmission!J376+Generation!J376+Retail!J376+Misc!J376","v":3834947.5263275639},{"$f":"+Distribution!K376+Transmission!K376+Generation!K376+Retail!K376+Misc!K376","v":6076143.2769795647},{"$f":"+Distribution!L376+Transmission!L376+Generation!L376+Retail!L376+Misc!L376","v":2401055.6203988292},{"$f":"+Distribution!M376+Transmission!M376+Generation!M376+Retail!M376+Misc!M376","v":2968606.3729766761},{"$f":"+Distribution!N376+Transmission!N376+Generation!N376+Retail!N376+Misc!N376","v":1011660.6891098738},{"$f":"+Distribution!O376+Transmission!O376+Generation!O376+Retail!O376+Misc!O376","v":68174.575312637913},{"$f":"+Distribution!P376+Transmission!P376+Generation!P376+Retail!P376+Misc!P376","v":0},{"$f":"+Distribution!Q376+Transmission!Q376+Generation!Q376+Retail!Q376+Misc!Q376","v":0},{"$f":"ROUND(SUM(I376:Q376)-H376,0)","v":0}]
[377]
[378]
[379,null,null,null,null,null,null,"OTHER POWER SUPPLY"]
[380]
[381]
[382,null,"555","Purchased Power",null,{"$f":"IF(Classification=\"DEMAND\",\"F12\",IF(Classification=\"ENERGY\",\"F30\",\"F10\"))","v":"F10"},null,{"$f":"+Distribution!H382+Transmission!H382+Generation!H382+Retail!H382+Misc!H382","v":0},{"$f":"+Distribution!I382+Transmission!I382+Generation!I382+Retail!I382+Misc!I382","v":0},{"$f":"+Distribution!J382+Transmission!J382+Generation!J382+Retail!J382+Misc!J382","v":0},{"$f":"+Distribution!K382+Transmission!K382+Generation!K382+Retail!K382+Misc!K382","v":0},{"$f":"+Distribution!L382+Transmission!L382+Generation!L382+Retail!L382+Misc!L382","v":0},{"$f":"+Distribution!M382+Transmission!M382+Generation!M382+Retail!M382+Misc!M382","v":0},{"$f":"+Distribution!N382+Transmission!N382+Generation!N382+Retail!N382+Misc!N382","v":0},{"$f":"+Distribution!O382+Transmission!O382+Generation!O382+Retail!O382+Misc!O382","v":0},{"$f":"+Distribution!P382+Transmission!P382+Generation!P382+Retail!P382+Misc!P382","v":0},{"$f":"+Distribution!Q382+Transmission!Q382+Generation!Q382+Retail!Q382+Misc!Q382","v":0},{"$f":"ROUND(SUM(I382:Q382)-H382,0)","v":0}]
[383,null,null,null,"Demand","F10",null,{"$f":"+Distribution!H383+Transmission!H383+Generation!H383+Retail!H383+Misc!H383","v":0},{"$f":"+Distribution!I383+Transmission!I383+Generation!I383+Retail!I383+Misc!I383","v":0},{"$f":"+Distribution!J383+Transmission!J383+Generation!J383+Retail!J383+Misc!J383","v":0},{"$f":"+Distribution!K383+Transmission!K383+Generation!K383+Retail!K383+Misc!K383","v":0},{"$f":"+Distribution!L383+Transmission!L383+Generation!L383+Retail!L383+Misc!L383","v":0},{"$f":"+Distribution!M383+Transmission!M383+Generation!M383+Retail!M383+Misc!M383","v":0},{"$f":"+Distribution!N383+Transmission!N383+Generation!N383+Retail!N383+Misc!N383","v":0},{"$f":"+Distribution!O383+Transmission!O383+Generation!O383+Retail!O383+Misc!O383","v":0},{"$f":"+Distribution!P383+Transmission!P383+Generation!P383+Retail!P383+Misc!P383","v":0},{"$f":"+Distribution!Q383+Transmission!Q383+Generation!Q383+Retail!Q383+Misc!Q383","v":0},{"$f":"ROUND(SUM(I383:Q383)-H383,0)","v":0}]
[384,null,null,null,"Energy",{"$f":"IF(Classification=\"DEMAND\",\"F12\",IF(Classification=\"ENERGY\",\"F30\",\"F10\"))","v":"F10"},null,{"$f":"+Distribution!H384+Transmission!H384+Generation!H384+Retail!H384+Misc!H384","v":0},{"$f":"+Distribution!I384+Transmission!I384+Generation!I384+Retail!I384+Misc!I384","v":0},{"$f":"+Distribution!J384+Transmission!J384+Generation!J384+Retail!J384+Misc!J384","v":0},{"$f":"+Distribution!K384+Transmission!K384+Generation!K384+Retail!K384+Misc!K384","v":0},{"$f":"+Distribution!L384+Transmission!L384+Generation!L384+Retail!L384+Misc!L384","v":0},{"$f":"+Distribution!M384+Transmission!M384+Generation!M384+Retail!M384+Misc!M384","v":0},{"$f":"+Distribution!N384+Transmission!N384+Generation!N384+Retail!N384+Misc!N384","v":0},{"$f":"+Distribution!O384+Transmission!O384+Generation!O384+Retail!O384+Misc!O384","v":0},{"$f":"+Distribution!P384+Transmission!P384+Generation!P384+Retail!P384+Misc!P384","v":0},{"$f":"+Distribution!Q384+Transmission!Q384+Generation!Q384+Retail!Q384+Misc!Q384","v":0},{"$f":"ROUND(SUM(I384:Q384)-H384,0)","v":0}]
[385,null,null,null,"SSGP",{"$f":"IF(Classification=\"DEMAND\",\"F12\",IF(Classification=\"ENERGY\",\"F30\",\"F10\"))","v":"F10"},null,{"$f":"+Distribution!H385+Transmission!H385+Generation!H385+Retail!H385+Misc!H385","v":0},{"$f":"+Distribution!I385+Transmission!I385+Generation!I385+Retail!I385+Misc!I385","v":0},{"$f":"+Distribution!J385+Transmission!J385+Generation!J385+Retail!J385+Misc!J385","v":0},{"$f":"+Distribution!K385+Transmission!K385+Generation!K385+Retail!K385+Misc!K385","v":0},{"$f":"+Distribution!L385+Transmission!L385+Generation!L385+Retail!L385+Misc!L385","v":0},{"$f":"+Distribution!M385+Transmission!M385+Generation!M385+Retail!M385+Misc!M385","v":0},{"$f":"+Distribution!N385+Transmission!N385+Generation!N385+Retail!N385+Misc!N385","v":0},{"$f":"+Distribution!O385+Transmission!O385+Generation!O385+Retail!O385+Misc!O385","v":0},{"$f":"+Distribution!P385+Transmission!P385+Generation!P385+Retail!P385+Misc!P385","v":0},{"$f":"+Distribution!Q385+Transmission!Q385+Generation!Q385+Retail!Q385+Misc!Q385","v":0},{"$f":"ROUND(SUM(I385:Q385)-H385,0)","v":0}]
[386,null,null,null,"Total 555",null,null,{"$f":"+Distribution!H386+Transmission!H386+Generation!H386+Retail!H386+Misc!H386","v":0},{"$f":"+Distribution!I386+Transmission!I386+Generation!I386+Retail!I386+Misc!I386","v":0},{"$f":"+Distribution!J386+Transmission!J386+Generation!J386+Retail!J386+Misc!J386","v":0},{"$f":"+Distribution!K386+Transmission!K386+Generation!K386+Retail!K386+Misc!K386","v":0},{"$f":"+Distribution!L386+Transmission!L386+Generation!L386+Retail!L386+Misc!L386","v":0},{"$f":"+Distribution!M386+Transmission!M386+Generation!M386+Retail!M386+Misc!M386","v":0},{"$f":"+Distribution!N386+Transmission!N386+Generation!N386+Retail!N386+Misc!N386","v":0},{"$f":"+Distribution!O386+Transmission!O386+Generation!O386+Retail!O386+Misc!O386","v":0},{"$f":"+Distribution!P386+Transmission!P386+Generation!P386+Retail!P386+Misc!P386","v":0},{"$f":"+Distribution!Q386+Transmission!Q386+Generation!Q386+Retail!Q386+Misc!Q386","v":0},{"$f":"ROUND(SUM(I386:Q386)-H386,0)","v":0}]
[387]
[388,null,"555NPC","Purchased Power",null,"F10"]
[389,null,null,null,"Demand","F10",null,{"$f":"+Distribution!H389+Transmission!H389+Generation!H389+Retail!H389+Misc!H389","v":52857876.823488072},{"$f":"+Distribution!I389+Transmission!I389+Generation!I389+Retail!I389+Misc!I389","v":22426276.855575223},{"$f":"+Distribution!J389+Transmission!J389+Generation!J389+Retail!J389+Misc!J389","v":7133214.8076377958},{"$f":"+Distribution!K389+Transmission!K389+Generation!K389+Retail!K389+Misc!K389","v":11301963.038379615},{"$f":"+Distribution!L389+Transmission!L389+Generation!L389+Retail!L389+Misc!L389","v":4466096.4427308179},{"$f":"+Distribution!M389+Transmission!M389+Generation!M389+Retail!M389+Misc!M389","v":5521772.2778187552},{"$f":"+Distribution!N389+Transmission!N389+Generation!N389+Retail!N389+Misc!N389","v":1881744.9152359578},{"$f":"+Distribution!O389+Transmission!O389+Generation!O389+Retail!O389+Misc!O389","v":126808.48610990588},{"$f":"+Distribution!P389+Transmission!P389+Generation!P389+Retail!P389+Misc!P389","v":0},{"$f":"+Distribution!Q389+Transmission!Q389+Generation!Q389+Retail!Q389+Misc!Q389","v":0},{"$f":"ROUND(SUM(I389:Q389)-H389,0)","v":0}]
[390,null,null,null,"Energy","F10",null,{"$f":"+Distribution!H390+Transmission!H390+Generation!H390+Retail!H390+Misc!H390","v":2853158.8619296518},{"$f":"+Distribution!I390+Transmission!I390+Generation!I390+Retail!I390+Misc!I390","v":1210524.0390991152},{"$f":"+Distribution!J390+Transmission!J390+Generation!J390+Retail!J390+Misc!J390","v":385036.18127574574},{"$f":"+Distribution!K390+Transmission!K390+Generation!K390+Retail!K390+Misc!K390","v":610056.58830823714},{"$f":"+Distribution!L390+Transmission!L390+Generation!L390+Retail!L390+Misc!L390","v":241070.6484931616},{"$f":"+Distribution!M390+Transmission!M390+Generation!M390+Retail!M390+Misc!M390","v":298053.84655585239},{"$f":"+Distribution!N390+Transmission!N390+Generation!N390+Retail!N390+Misc!N390","v":101572.69840264918},{"$f":"+Distribution!O390+Transmission!O390+Generation!O390+Retail!O390+Misc!O390","v":6844.8597948903725},{"$f":"+Distribution!P390+Transmission!P390+Generation!P390+Retail!P390+Misc!P390","v":0},{"$f":"+Distribution!Q390+Transmission!Q390+Generation!Q390+Retail!Q390+Misc!Q390","v":0},{"$f":"ROUND(SUM(I390:Q390)-H390,0)","v":0}]
[391,null,null,null,"SSGP","F10",null,{"$f":"+Distribution!H391+Transmission!H391+Generation!H391+Retail!H391+Misc!H391","v":0},{"$f":"+Distribution!I391+Transmission!I391+Generation!I391+Retail!I391+Misc!I391","v":0},{"$f":"+Distribution!J391+Transmission!J391+Generation!J391+Retail!J391+Misc!J391","v":0},{"$f":"+Distribution!K391+Transmission!K391+Generation!K391+Retail!K391+Misc!K391","v":0},{"$f":"+Distribution!L391+Transmission!L391+Generation!L391+Retail!L391+Misc!L391","v":0},{"$f":"+Distribution!M391+Transmission!M391+Generation!M391+Retail!M391+Misc!M391","v":0},{"$f":"+Distribution!N391+Transmission!N391+Generation!N391+Retail!N391+Misc!N391","v":0},{"$f":"+Distribution!O391+Transmission!O391+Generation!O391+Retail!O391+Misc!O391","v":0},{"$f":"+Distribution!P391+Transmission!P391+Generation!P391+Retail!P391+Misc!P391","v":0},{"$f":"+Distribution!Q391+Transmission!Q391+Generation!Q391+Retail!Q391+Misc!Q391","v":0},{"$f":"ROUND(SUM(I391:Q391)-H391,0)","v":0}]
[392,null,null,null,"Total 555NPC",null,null,{"$f":"+Distribution!H392+Transmission!H392+Generation!H392+Retail!H392+Misc!H392","v":55711035.685417727},{"$f":"+Distribution!I392+Transmission!I392+Generation!I392+Retail!I392+Misc!I392","v":23636800.894674338},{"$f":"+Distribution!J392+Transmission!J392+Generation!J392+Retail!J392+Misc!J392","v":7518250.9889135417},{"$f":"+Distribution!K392+Transmission!K392+Generation!K392+Retail!K392+Misc!K392","v":11912019.626687853},{"$f":"+Distribution!L392+Transmission!L392+Generation!L392+Retail!L392+Misc!L392","v":4707167.0912239794},{"$f":"+Distribution!M392+Transmission!M392+Generation!M392+Retail!M392+Misc!M392","v":5819826.1243746076},{"$f":"+Distribution!N392+Transmission!N392+Generation!N392+Retail!N392+Misc!N392","v":1983317.6136386071},{"$f":"+Distribution!O392+Transmission!O392+Generation!O392+Retail!O392+Misc!O392","v":133653.34590479624},{"$f":"+Distribution!P392+Transmission!P392+Generation!P392+Retail!P392+Misc!P392","v":0},{"$f":"+Distribution!Q392+Transmission!Q392+Generation!Q392+Retail!Q392+Misc!Q392","v":0},{"$f":"ROUND(SUM(I392:Q392)-H392,0)","v":0}]
[393]
[{"$f":"+A393+1","v":394},null,"556","System Control & Load Dispatch",null,{"$f":"IF(Classification=\"DEMAND\",\"F12\",IF(Classification=\"ENERGY\",\"F30\",\"F10\"))","v":"F10"},null,{"$f":"+Distribution!H394+Transmission!H394+Generation!H394+Retail!H394+Misc!H394","v":142079.36095449454},{"$f":"+Distribution!I394+Transmission!I394+Generation!I394+Retail!I394+Misc!I394","v":60280.72400389758},{"$f":"+Distribution!J394+Transmission!J394+Generation!J394+Retail!J394+Misc!J394","v":19173.728918486595},{"$f":"+Distribution!K394+Transmission!K394+Generation!K394+Retail!K394+Misc!K394","v":30379.118165993874},{"$f":"+Distribution!L394+Transmission!L394+Generation!L394+Retail!L394+Misc!L394","v":12004.646548012119},{"$f":"+Distribution!M394+Transmission!M394+Generation!M394+Retail!M394+Misc!M394","v":14842.251027005243},{"$f":"+Distribution!N394+Transmission!N394+Generation!N394+Retail!N394+Misc!N394","v":5058.0373466171995},{"$f":"+Distribution!O394+Transmission!O394+Generation!O394+Retail!O394+Misc!O394","v":340.85494448192247},{"$f":"+Distribution!P394+Transmission!P394+Generation!P394+Retail!P394+Misc!P394","v":0},{"$f":"+Distribution!Q394+Transmission!Q394+Generation!Q394+Retail!Q394+Misc!Q394","v":0},{"$f":"ROUND(SUM(I394:Q394)-H394,0)","v":0}]
[395]
[396,null,"557","Other Expenses",null,{"$f":"IF(Classification=\"DEMAND\",\"F12\",IF(Classification=\"ENERGY\",\"F30\",\"F10\"))","v":"F10"},null,{"$f":"+Distribution!H396+Transmission!H396+Generation!H396+Retail!H396+Misc!H396","v":-1821437.9350188505},{"$f":"+Distribution!I396+Transmission!I396+Generation!I396+Retail!I396+Misc!I396","v":-772790.62006948818},{"$f":"+Distribution!J396+Transmission!J396+Generation!J396+Retail!J396+Misc!J396","v":-245804.57691588928},{"$f":"+Distribution!K396+Transmission!K396+Generation!K396+Retail!K396+Misc!K396","v":-389456.1313355281},{"$f":"+Distribution!L396+Transmission!L396+Generation!L396+Retail!L396+Misc!L396","v":-153897.9234714151},{"$f":"+Distribution!M396+Transmission!M396+Generation!M396+Retail!M396+Misc!M396","v":-190275.62398959848},{"$f":"+Distribution!N396+Transmission!N396+Generation!N396+Retail!N396+Misc!N396","v":-64843.34556390201},{"$f":"+Distribution!O396+Transmission!O396+Generation!O396+Retail!O396+Misc!O396","v":-4369.713673029285},{"$f":"+Distribution!P396+Transmission!P396+Generation!P396+Retail!P396+Misc!P396","v":0},{"$f":"+Distribution!Q396+Transmission!Q396+Generation!Q396+Retail!Q396+Misc!Q396","v":0},{"$f":"ROUND(SUM(I396:Q396)-H396,0)","v":0}]
[397,null,null,null,"CAGE/JBG",{"$f":"IF(Classification=\"DEMAND\",\"F12\",IF(Classification=\"ENERGY\",\"F30\",\"F10\"))","v":"F10"},null,{"$f":"+Distribution!H397+Transmission!H397+Generation!H397+Retail!H397+Misc!H397","v":5903859.9499454778},{"$f":"+Distribution!I397+Transmission!I397+Generation!I397+Retail!I397+Misc!I397","v":2504860.3105296395},{"$f":"+Distribution!J397+Transmission!J397+Generation!J397+Retail!J397+Misc!J397","v":796730.85163453151},{"$f":"+Distribution!K397+Transmission!K397+Generation!K397+Retail!K397+Misc!K397","v":1262351.2510892856},{"$f":"+Distribution!L397+Transmission!L397+Generation!L397+Retail!L397+Misc!L397","v":498832.14206431829},{"$f":"+Distribution!M397+Transmission!M397+Generation!M397+Retail!M397+Misc!M397","v":616743.84524743608},{"$f":"+Distribution!N397+Transmission!N397+Generation!N397+Retail!N397+Misc!N397","v":210177.91687271185},{"$f":"+Distribution!O397+Transmission!O397+Generation!O397+Retail!O397+Misc!O397","v":14163.632507554947},{"$f":"+Distribution!P397+Transmission!P397+Generation!P397+Retail!P397+Misc!P397","v":0},{"$f":"+Distribution!Q397+Transmission!Q397+Generation!Q397+Retail!Q397+Misc!Q397","v":0},{"$f":"ROUND(SUM(I397:Q397)-H397,0)","v":0}]
[398,null,null,null,"Total 557",null,null,{"$f":"+Distribution!H398+Transmission!H398+Generation!H398+Retail!H398+Misc!H398","v":4082422.0149266273},{"$f":"+Distribution!I398+Transmission!I398+Generation!I398+Retail!I398+Misc!I398","v":1732069.6904601513},{"$f":"+Distribution!J398+Transmission!J398+Generation!J398+Retail!J398+Misc!J398","v":550926.27471864223},{"$f":"+Distribution!K398+Transmission!K398+Generation!K398+Retail!K398+Misc!K398","v":872895.11975375738},{"$f":"+Distribution!L398+Transmission!L398+Generation!L398+Retail!L398+Misc!L398","v":344934.21859290323},{"$f":"+Distribution!M398+Transmission!M398+Generation!M398+Retail!M398+Misc!M398","v":426468.22125783755},{"$f":"+Distribution!N398+Transmission!N398+Generation!N398+Retail!N398+Misc!N398","v":145334.57130880986},{"$f":"+Distribution!O398+Transmission!O398+Generation!O398+Retail!O398+Misc!O398","v":9793.9188345256607},{"$f":"+Distribution!P398+Transmission!P398+Generation!P398+Retail!P398+Misc!P398","v":0},{"$f":"+Distribution!Q398+Transmission!Q398+Generation!Q398+Retail!Q398+Misc!Q398","v":0},{"$f":"ROUND(SUM(I398:Q398)-H398,0)","v":0}]
[399]
[400,null,"Embedded Cost Differentials"]
[401,null,"Company Owned Hydro",null,"DGP",{"$f":"IF(Classification=\"DEMAND\",\"F12\",IF(Classification=\"ENERGY\",\"F30\",\"F10\"))","v":"F10"},null,{"$f":"+Distribution!H401+Transmission!H401+Generation!H401+Retail!H401+Misc!H401","v":0},{"$f":"+Distribution!I401+Transmission!I401+Generation!I401+Retail!I401+Misc!I401","v":0},{"$f":"+Distribution!J401+Transmission!J401+Generation!J401+Retail!J401+Misc!J401","v":0},{"$f":"+Distribution!K401+Transmission!K401+Generation!K401+Retail!K401+Misc!K401","v":0},{"$f":"+Distribution!L401+Transmission!L401+Generation!L401+Retail!L401+Misc!L401","v":0},{"$f":"+Distribution!M401+Transmission!M401+Generation!M401+Retail!M401+Misc!M401","v":0},{"$f":"+Distribution!N401+Transmission!N401+Generation!N401+Retail!N401+Misc!N401","v":0},{"$f":"+Distribution!O401+Transmission!O401+Generation!O401+Retail!O401+Misc!O401","v":0},{"$f":"+Distribution!P401+Transmission!P401+Generation!P401+Retail!P401+Misc!P401","v":0},{"$f":"+Distribution!Q401+Transmission!Q401+Generation!Q401+Retail!Q401+Misc!Q401","v":0},{"$f":"ROUND(SUM(I401:Q401)-H401,0)","v":0}]
[402,null,"Company Owned Hydro",null,"SG","F10",null,{"$f":"+Distribution!H402+Transmission!H402+Generation!H402+Retail!H402+Misc!H402","v":0},{"$f":"+Distribution!I402+Transmission!I402+Generation!I402+Retail!I402+Misc!I402","v":0},{"$f":"+Distribution!J402+Transmission!J402+Generation!J402+Retail!J402+Misc!J402","v":0},{"$f":"+Distribution!K402+Transmission!K402+Generation!K402+Retail!K402+Misc!K402","v":0},{"$f":"+Distribution!L402+Transmission!L402+Generation!L402+Retail!L402+Misc!L402","v":0},{"$f":"+Distribution!M402+Transmission!M402+Generation!M402+Retail!M402+Misc!M402","v":0},{"$f":"+Distribution!N402+Transmission!N402+Generation!N402+Retail!N402+Misc!N402","v":0},{"$f":"+Distribution!O402+Transmission!O402+Generation!O402+Retail!O402+Misc!O402","v":0},{"$f":"+Distribution!P402+Transmission!P402+Generation!P402+Retail!P402+Misc!P402","v":0},{"$f":"+Distribution!Q402+Transmission!Q402+Generation!Q402+Retail!Q402+Misc!Q402","v":0},0]
[403,null,"Mid-C Contract",null,"MC","F10",null,{"$f":"+Distribution!H403+Transmission!H403+Generation!H403+Retail!H403+Misc!H403","v":0},{"$f":"+Distribution!I403+Transmission!I403+Generation!I403+Retail!I403+Misc!I403","v":0},{"$f":"+Distribution!J403+Transmission!J403+Generation!J403+Retail!J403+Misc!J403","v":0},{"$f":"+Distribution!K403+Transmission!K403+Generation!K403+Retail!K403+Misc!K403","v":0},{"$f":"+Distribution!L403+Transmission!L403+Generation!L403+Retail!L403+Misc!L403","v":0},{"$f":"+Distribution!M403+Transmission!M403+Generation!M403+Retail!M403+Misc!M403","v":0},{"$f":"+Distribution!N403+Transmission!N403+Generation!N403+Retail!N403+Misc!N403","v":0},{"$f":"+Distribution!O403+Transmission!O403+Generation!O403+Retail!O403+Misc!O403","v":0},{"$f":"+Distribution!P403+Transmission!P403+Generation!P403+Retail!P403+Misc!P403","v":0},{"$f":"+Distribution!Q403+Transmission!Q403+Generation!Q403+Retail!Q403+Misc!Q403","v":0},0]
[404,null,"Mid-C Contract",null,"SG","F10",null,{"$f":"+Distribution!H404+Transmission!H404+Generation!H404+Retail!H404+Misc!H404","v":0},{"$f":"+Distribution!I404+Transmission!I404+Generation!I404+Retail!I404+Misc!I404","v":0},{"$f":"+Distribution!J404+Transmission!J404+Generation!J404+Retail!J404+Misc!J404","v":0},{"$f":"+Distribution!K404+Transmission!K404+Generation!K404+Retail!K404+Misc!K404","v":0},{"$f":"+Distribution!L404+Transmission!L404+Generation!L404+Retail!L404+Misc!L404","v":0},{"$f":"+Distribution!M404+Transmission!M404+Generation!M404+Retail!M404+Misc!M404","v":0},{"$f":"+Distribution!N404+Transmission!N404+Generation!N404+Retail!N404+Misc!N404","v":0},{"$f":"+Distribution!O404+Transmission!O404+Generation!O404+Retail!O404+Misc!O404","v":0},{"$f":"+Distribution!P404+Transmission!P404+Generation!P404+Retail!P404+Misc!P404","v":0},{"$f":"+Distribution!Q404+Transmission!Q404+Generation!Q404+Retail!Q404+Misc!Q404","v":0},0]
[405,null,"Existing QF Contracts",null,"S ","F10",null,{"$f":"+Distribution!H405+Transmission!H405+Generation!H405+Retail!H405+Misc!H405","v":0},{"$f":"+Distribution!I405+Transmission!I405+Generation!I405+Retail!I405+Misc!I405","v":0},{"$f":"+Distribution!J405+Transmission!J405+Generation!J405+Retail!J405+Misc!J405","v":0},{"$f":"+Distribution!K405+Transmission!K405+Generation!K405+Retail!K405+Misc!K405","v":0},{"$f":"+Distribution!L405+Transmission!L405+Generation!L405+Retail!L405+Misc!L405","v":0},{"$f":"+Distribution!M405+Transmission!M405+Generation!M405+Retail!M405+Misc!M405","v":0},{"$f":"+Distribution!N405+Transmission!N405+Generation!N405+Retail!N405+Misc!N405","v":0},{"$f":"+Distribution!O405+Transmission!O405+Generation!O405+Retail!O405+Misc!O405","v":0},{"$f":"+Distribution!P405+Transmission!P405+Generation!P405+Retail!P405+Misc!P405","v":0},{"$f":"+Distribution!Q405+Transmission!Q405+Generation!Q405+Retail!Q405+Misc!Q405","v":0},0]
[406,null,"Existing QF Contracts",null,"SG","F10",null,{"$f":"+Distribution!H406+Transmission!H406+Generation!H406+Retail!H406+Misc!H406","v":0},{"$f":"+Distribution!I406+Transmission!I406+Generation!I406+Retail!I406+Misc!I406","v":0},{"$f":"+Distribution!J406+Transmission!J406+Generation!J406+Retail!J406+Misc!J406","v":0},{"$f":"+Distribution!K406+Transmission!K406+Generation!K406+Retail!K406+Misc!K406","v":0},{"$f":"+Distribution!L406+Transmission!L406+Generation!L406+Retail!L406+Misc!L406","v":0},{"$f":"+Distribution!M406+Transmission!M406+Generation!M406+Retail!M406+Misc!M406","v":0},{"$f":"+Distribution!N406+Transmission!N406+Generation!N406+Retail!N406+Misc!N406","v":0},{"$f":"+Distribution!O406+Transmission!O406+Generation!O406+Retail!O406+Misc!O406","v":0},{"$f":"+Distribution!P406+Transmission!P406+Generation!P406+Retail!P406+Misc!P406","v":0},{"$f":"+Distribution!Q406+Transmission!Q406+Generation!Q406+Retail!Q406+Misc!Q406","v":0},0]
[407,null,"Total Embedded Cost Differential",null,null,null,null,{"$f":"+Distribution!H407+Transmission!H407+Generation!H407+Retail!H407+Misc!H407","v":0},{"$f":"+Distribution!I407+Transmission!I407+Generation!I407+Retail!I407+Misc!I407","v":0},{"$f":"+Distribution!J407+Transmission!J407+Generation!J407+Retail!J407+Misc!J407","v":0},{"$f":"+Distribution!K407+Transmission!K407+Generation!K407+Retail!K407+Misc!K407","v":0},{"$f":"+Distribution!L407+Transmission!L407+Generation!L407+Retail!L407+Misc!L407","v":0},{"$f":"+Distribution!M407+Transmission!M407+Generation!M407+Retail!M407+Misc!M407","v":0},{"$f":"+Distribution!N407+Transmission!N407+Generation!N407+Retail!N407+Misc!N407","v":0},{"$f":"+Distribution!O407+Transmission!O407+Generation!O407+Retail!O407+Misc!O407","v":0},{"$f":"+Distribution!P407+Transmission!P407+Generation!P407+Retail!P407+Misc!P407","v":0},{"$f":"+Distribution!Q407+Transmission!Q407+Generation!Q407+Retail!Q407+Misc!Q407","v":0},0]
[408]
[409,null,"Total Other Power Supply",null,null,null,null,{"$f":"+Distribution!H409+Transmission!H409+Generation!H409+Retail!H409+Misc!H409","v":59935537.061298847},{"$f":"+Distribution!I409+Transmission!I409+Generation!I409+Retail!I409+Misc!I409","v":25429151.309138387},{"$f":"+Distribution!J409+Transmission!J409+Generation!J409+Retail!J409+Misc!J409","v":8088350.9925506702},{"$f":"+Distribution!K409+Transmission!K409+Generation!K409+Retail!K409+Misc!K409","v":12815293.864607604},{"$f":"+Distribution!L409+Transmission!L409+Generation!L409+Retail!L409+Misc!L409","v":5064105.9563648943},{"$f":"+Distribution!M409+Transmission!M409+Generation!M409+Retail!M409+Misc!M409","v":6261136.5966594508},{"$f":"+Distribution!N409+Transmission!N409+Generation!N409+Retail!N409+Misc!N409","v":2133710.222294034},{"$f":"+Distribution!O409+Transmission!O409+Generation!O409+Retail!O409+Misc!O409","v":143788.11968380382},{"$f":"+Distribution!P409+Transmission!P409+Generation!P409+Retail!P409+Misc!P409","v":0},{"$f":"+Distribution!Q409+Transmission!Q409+Generation!Q409+Retail!Q409+Misc!Q409","v":0},{"$f":"ROUND(SUM(I409:Q409)-H409,0)","v":0}]
[410]
[411,null,"TOTAL PRODUCTION EXPENSE",null,null,null,null,{"$f":"+Distribution!H411+Transmission!H411+Generation!H411+Retail!H411+Misc!H411","v":156527193.49199635},{"$f":"+Distribution!I411+Transmission!I411+Generation!I411+Retail!I411+Misc!I411","v":66410578.472532324},{"$f":"+Distribution!J411+Transmission!J411+Generation!J411+Retail!J411+Misc!J411","v":21123476.036384132},{"$f":"+Distribution!K411+Transmission!K411+Generation!K411+Retail!K411+Misc!K411","v":33468324.148837745},{"$f":"+Distribution!L411+Transmission!L411+Generation!L411+Retail!L411+Misc!L411","v":13225380.663314961},{"$f":"+Distribution!M411+Transmission!M411+Generation!M411+Retail!M411+Misc!M411","v":16351536.794319585},{"$f":"+Distribution!N411+Transmission!N411+Generation!N411+Retail!N411+Misc!N411","v":5572381.4150407668},{"$f":"+Distribution!O411+Transmission!O411+Generation!O411+Retail!O411+Misc!O411","v":375515.96156681457},{"$f":"+Distribution!P411+Transmission!P411+Generation!P411+Retail!P411+Misc!P411","v":0},{"$f":"+Distribution!Q411+Transmission!Q411+Generation!Q411+Retail!Q411+Misc!Q411","v":0},{"$f":"ROUND(SUM(I411:Q411)-H411,0)","v":0}]
[412]
[413,null,null,null,null,null,null,"TRANSMISSION EXPENSE"]
[414]
[415]
[416,null,"A",null,"B","C",null,"D","E","F","G","H","I","J","K"]
[417,null,null,null,null,null,null,{"$f":"'Hot Sheet'!$H$10","v":"Washington"},null,{"$f":"'Hot Sheet'!$J$10","v":"Small General"},{"$f":"'Hot Sheet'!$K$10","v":"Large General"},{"$f":"'Hot Sheet'!$L$10","v":"Large General"},{"$f":"'Hot Sheet'!$M$10","v":"Large General"},{"$f":"'Hot Sheet'!$N$10","v":"Agricultural"},{"$f":"'Hot Sheet'!$O$10","v":"Street & Area"},{"$f":"+Distribution!P413+Transmission!P413+Generation!P413+Retail!P413+Misc!P413","v":0},{"$f":"+Distribution!Q413+Transmission!Q413+Generation!Q413+Retail!Q413+Misc!Q413","v":0}]
[418,null,"FERC",null,null,"COS",null,{"$f":"'Hot Sheet'!$H$11","v":"Jurisdiction"},{"$f":"'Hot Sheet'!$I$11","v":"Residential"},{"$f":"'Hot Sheet'!$J$11","v":"Service"},{"$f":"'Hot Sheet'!$K$11","v":"Service <1,000 kW"},{"$f":"'Hot Sheet'!$L$11","v":"Service >1,000 kW"},{"$f":"'Hot Sheet'!$M$11","v":"Dedicated Facilities"},{"$f":"'Hot Sheet'!$N$11","v":"Pumping"},{"$f":"'Hot Sheet'!$O$11","v":"Lighting"}]
[419,null,"ACCT",null,"DESCRIPTION ","Factor",null,{"$f":"'Hot Sheet'!$H$12","v":"Normalized"},{"$f":"'Hot Sheet'!$I$12","v":"Schedule 16"},{"$f":"'Hot Sheet'!$J$12","v":"Schedule 24"},{"$f":"'Hot Sheet'!$K$12","v":"Schedule 36"},{"$f":"'Hot Sheet'!$L$12","v":"Schedule 48T"},{"$f":"'Hot Sheet'!$M$12","v":"Schedule 48T"},{"$f":"'Hot Sheet'!$N$12","v":"Schedule 40"},{"$f":"'Hot Sheet'!$O$12","v":"Sch. 15,51-54,57"}]
[420,null,"560","Operation Supervision & Eng",null,"F106",null,{"$f":"+Distribution!H420+Transmission!H420+Generation!H420+Retail!H420+Misc!H420","v":413691.74531857861},{"$f":"+Distribution!I420+Transmission!I420+Generation!I420+Retail!I420+Misc!I420","v":175519.07437299786},{"$f":"+Distribution!J420+Transmission!J420+Generation!J420+Retail!J420+Misc!J420","v":55828.047981539748},{"$f":"+Distribution!K420+Transmission!K420+Generation!K420+Retail!K420+Misc!K420","v":88454.722282672141},{"$f":"+Distribution!L420+Transmission!L420+Generation!L420+Retail!L420+Misc!L420","v":34953.867676603477},{"$f":"+Distribution!M420+Transmission!M420+Generation!M420+Retail!M420+Misc!M420","v":43216.106059097743},{"$f":"+Distribution!N420+Transmission!N420+Generation!N420+Retail!N420+Misc!N420","v":14727.461355057767},{"$f":"+Distribution!O420+Transmission!O420+Generation!O420+Retail!O420+Misc!O420","v":992.46559060999994},{"$f":"+Distribution!P420+Transmission!P420+Generation!P420+Retail!P420+Misc!P420","v":0},{"$f":"+Distribution!Q420+Transmission!Q420+Generation!Q420+Retail!Q420+Misc!Q420","v":0},{"$f":"ROUND(SUM(I420:Q420)-H420,0)","v":0}]
[421]
[422,null,"561","Load Dispatching",null,"F106",null,{"$f":"+Distribution!H422+Transmission!H422+Generation!H422+Retail!H422+Misc!H422","v":686316.31312052766},{"$f":"+Distribution!I422+Transmission!I422+Generation!I422+Retail!I422+Misc!I422","v":291186.86889253173},{"$f":"+Distribution!J422+Transmission!J422+Generation!J422+Retail!J422+Misc!J422","v":92618.962048420508},{"$f":"+Distribution!K422+Transmission!K422+Generation!K422+Retail!K422+Misc!K422","v":146746.74939040263},{"$f":"+Distribution!L422+Transmission!L422+Generation!L422+Retail!L422+Misc!L422","v":57988.610758078699},{"$f":"+Distribution!M422+Transmission!M422+Generation!M422+Retail!M422+Misc!M422","v":71695.698339508657},{"$f":"+Distribution!N422+Transmission!N422+Generation!N422+Retail!N422+Misc!N422","v":24432.919180063629},{"$f":"+Distribution!O422+Transmission!O422+Generation!O422+Retail!O422+Misc!O422","v":1646.5045115219812},{"$f":"+Distribution!P422+Transmission!P422+Generation!P422+Retail!P422+Misc!P422","v":0},{"$f":"+Distribution!Q422+Transmission!Q422+Generation!Q422+Retail!Q422+Misc!Q422","v":0},{"$f":"ROUND(SUM(I422:Q422)-H422,0)","v":0}]
[423]
[424,null,"562","Station Expense",null,"F106",null,{"$f":"+Distribution!H424+Transmission!H424+Generation!H424+Retail!H424+Misc!H424","v":174038.91290467483},{"$f":"+Distribution!I424+Transmission!I424+Generation!I424+Retail!I424+Misc!I424","v":73840.363612736241},{"$f":"+Distribution!J424+Transmission!J424+Generation!J424+Retail!J424+Misc!J424","v":23486.697257676351},{"$f":"+Distribution!K424+Transmission!K424+Generation!K424+Retail!K424+Misc!K424","v":37212.644152486107},{"$f":"+Distribution!L424+Transmission!L424+Generation!L424+Retail!L424+Misc!L424","v":14704.990372880718},{"$f":"+Distribution!M424+Transmission!M424+Generation!M424+Retail!M424+Misc!M424","v":18180.890007139154},{"$f":"+Distribution!N424+Transmission!N424+Generation!N424+Retail!N424+Misc!N424","v":6195.8001170799616},{"$f":"+Distribution!O424+Transmission!O424+Generation!O424+Retail!O424+Misc!O424","v":417.52738467634919},{"$f":"+Distribution!P424+Transmission!P424+Generation!P424+Retail!P424+Misc!P424","v":0},{"$f":"+Distribution!Q424+Transmission!Q424+Generation!Q424+Retail!Q424+Misc!Q424","v":0},{"$f":"ROUND(SUM(I424:Q424)-H424,0)","v":0}]
[425]
[426,null,"563","Overhead Line Expense",null,"F106",null,{"$f":"+Distribution!H426+Transmission!H426+Generation!H426+Retail!H426+Misc!H426","v":11508.592390949714},{"$f":"+Distribution!I426+Transmission!I426+Generation!I426+Retail!I426+Misc!I426","v":4882.8082906030959},{"$f":"+Distribution!J426+Transmission!J426+Generation!J426+Retail!J426+Misc!J426","v":1553.0941950682175},{"$f":"+Distribution!K426+Transmission!K426+Generation!K426+Retail!K426+Misc!K426","v":2460.7436704399079},{"$f":"+Distribution!L426+Transmission!L426+Generation!L426+Retail!L426+Misc!L426","v":972.39024014713948},{"$f":"+Distribution!M426+Transmission!M426+Generation!M426+Retail!M426+Misc!M426","v":1202.239481416774},{"$f":"+Distribution!N426+Transmission!N426+Generation!N426+Retail!N426+Misc!N426","v":409.70686895939861},{"$f":"+Distribution!O426+Transmission!O426+Generation!O426+Retail!O426+Misc!O426","v":27.609644315184045},{"$f":"+Distribution!P426+Transmission!P426+Generation!P426+Retail!P426+Misc!P426","v":0},{"$f":"+Distribution!Q426+Transmission!Q426+Generation!Q426+Retail!Q426+Misc!Q426","v":0},{"$f":"ROUND(SUM(I426:Q426)-H426,0)","v":0}]
[427]
[428,null,"564","Underground Line Expense",null,"F106",null,{"$f":"+Distribution!H428+Transmission!H428+Generation!H428+Retail!H428+Misc!H428","v":0},{"$f":"+Distribution!I428+Transmission!I428+Generation!I428+Retail!I428+Misc!I428","v":0},{"$f":"+Distribution!J428+Transmission!J428+Generation!J428+Retail!J428+Misc!J428","v":0},{"$f":"+Distribution!K428+Transmission!K428+Generation!K428+Retail!K428+Misc!K428","v":0},{"$f":"+Distribution!L428+Transmission!L428+Generation!L428+Retail!L428+Misc!L428","v":0},{"$f":"+Distribution!M428+Transmission!M428+Generation!M428+Retail!M428+Misc!M428","v":0},{"$f":"+Distribution!N428+Transmission!N428+Generation!N428+Retail!N428+Misc!N428","v":0},{"$f":"+Distribution!O428+Transmission!O428+Generation!O428+Retail!O428+Misc!O428","v":0},{"$f":"+Distribution!P428+Transmission!P428+Generation!P428+Retail!P428+Misc!P428","v":0},{"$f":"+Distribution!Q428+Transmission!Q428+Generation!Q428+Retail!Q428+Misc!Q428","v":0},{"$f":"ROUND(SUM(I428:Q428)-H428,0)","v":0}]
[429]
[430,null,"565","Transm of Electricity by Others",null,{"$f":"IF(Classification=\"DEMAND\",\"F12\",IF(Classification=\"ENERGY\",\"F30\",\"F10\"))","v":"F10"},null,{"$f":"+Distribution!H430+Transmission!H430+Generation!H430+Retail!H430+Misc!H430","v":0},{"$f":"+Distribution!I430+Transmission!I430+Generation!I430+Retail!I430+Misc!I430","v":0},{"$f":"+Distribution!J430+Transmission!J430+Generation!J430+Retail!J430+Misc!J430","v":0},{"$f":"+Distribution!K430+Transmission!K430+Generation!K430+Retail!K430+Misc!K430","v":0},{"$f":"+Distribution!L430+Transmission!L430+Generation!L430+Retail!L430+Misc!L430","v":0},{"$f":"+Distribution!M430+Transmission!M430+Generation!M430+Retail!M430+Misc!M430","v":0},{"$f":"+Distribution!N430+Transmission!N430+Generation!N430+Retail!N430+Misc!N430","v":0},{"$f":"+Distribution!O430+Transmission!O430+Generation!O430+Retail!O430+Misc!O430","v":0},{"$f":"+Distribution!P430+Transmission!P430+Generation!P430+Retail!P430+Misc!P430","v":0},{"$f":"+Distribution!Q430+Transmission!Q430+Generation!Q430+Retail!Q430+Misc!Q430","v":0},{"$f":"ROUND(SUM(I430:Q430)-H430,0)","v":0}]
[431,null,null,"Energy",null,{"$f":"IF(Classification=\"DEMAND\",\"F12\",IF(Classification=\"ENERGY\",\"F30\",\"F10\"))","v":"F10"},null,{"$f":"+Distribution!H431+Transmission!H431+Generation!H431+Retail!H431+Misc!H431","v":0},{"$f":"+Distribution!I431+Transmission!I431+Generation!I431+Retail!I431+Misc!I431","v":0},{"$f":"+Distribution!J431+Transmission!J431+Generation!J431+Retail!J431+Misc!J431","v":0},{"$f":"+Distribution!K431+Transmission!K431+Generation!K431+Retail!K431+Misc!K431","v":0},{"$f":"+Distribution!L431+Transmission!L431+Generation!L431+Retail!L431+Misc!L431","v":0},{"$f":"+Distribution!M431+Transmission!M431+Generation!M431+Retail!M431+Misc!M431","v":0},{"$f":"+Distribution!N431+Transmission!N431+Generation!N431+Retail!N431+Misc!N431","v":0},{"$f":"+Distribution!O431+Transmission!O431+Generation!O431+Retail!O431+Misc!O431","v":0},{"$f":"+Distribution!P431+Transmission!P431+Generation!P431+Retail!P431+Misc!P431","v":0},{"$f":"+Distribution!Q431+Transmission!Q431+Generation!Q431+Retail!Q431+Misc!Q431","v":0},0]
[432,null,null,null,null,null,null,{"$f":"+Distribution!H432+Transmission!H432+Generation!H432+Retail!H432+Misc!H432","v":0},{"$f":"+Distribution!I432+Transmission!I432+Generation!I432+Retail!I432+Misc!I432","v":0},{"$f":"+Distribution!J432+Transmission!J432+Generation!J432+Retail!J432+Misc!J432","v":0},{"$f":"+Distribution!K432+Transmission!K432+Generation!K432+Retail!K432+Misc!K432","v":0},{"$f":"+Distribution!L432+Transmission!L432+Generation!L432+Retail!L432+Misc!L432","v":0},{"$f":"+Distribution!M432+Transmission!M432+Generation!M432+Retail!M432+Misc!M432","v":0},{"$f":"+Distribution!N432+Transmission!N432+Generation!N432+Retail!N432+Misc!N432","v":0},{"$f":"+Distribution!O432+Transmission!O432+Generation!O432+Retail!O432+Misc!O432","v":0},{"$f":"+Distribution!P432+Transmission!P432+Generation!P432+Retail!P432+Misc!P432","v":0},{"$f":"+Distribution!Q432+Transmission!Q432+Generation!Q432+Retail!Q432+Misc!Q432","v":0},0]
[433,null,"565NPC","Transm of Electricity by Others",null,"F10",null,{"$f":"+Distribution!H433+Transmission!H433+Generation!H433+Retail!H433+Misc!H433","v":0},{"$f":"+Distribution!I433+Transmission!I433+Generation!I433+Retail!I433+Misc!I433","v":0},{"$f":"+Distribution!J433+Transmission!J433+Generation!J433+Retail!J433+Misc!J433","v":0},{"$f":"+Distribution!K433+Transmission!K433+Generation!K433+Retail!K433+Misc!K433","v":0},{"$f":"+Distribution!L433+Transmission!L433+Generation!L433+Retail!L433+Misc!L433","v":0},{"$f":"+Distribution!M433+Transmission!M433+Generation!M433+Retail!M433+Misc!M433","v":0},{"$f":"+Distribution!N433+Transmission!N433+Generation!N433+Retail!N433+Misc!N433","v":0},{"$f":"+Distribution!O433+Transmission!O433+Generation!O433+Retail!O433+Misc!O433","v":0},{"$f":"+Distribution!P433+Transmission!P433+Generation!P433+Retail!P433+Misc!P433","v":0},{"$f":"+Distribution!Q433+Transmission!Q433+Generation!Q433+Retail!Q433+Misc!Q433","v":0},0]
[434,null,null,"Energy",null,"F10",null,{"$f":"+Distribution!H434+Transmission!H434+Generation!H434+Retail!H434+Misc!H434","v":25180047.073464345},{"$f":"+Distribution!I434+Transmission!I434+Generation!I434+Retail!I434+Misc!I434","v":10683265.027682662},{"$f":"+Distribution!J434+Transmission!J434+Generation!J434+Retail!J434+Misc!J434","v":3398068.4703105316},{"$f":"+Distribution!K434+Transmission!K434+Generation!K434+Retail!K434+Misc!K434","v":5383946.1293400703},{"$f":"+Distribution!L434+Transmission!L434+Generation!L434+Retail!L434+Misc!L434","v":2127526.2159720757},{"$f":"+Distribution!M434+Transmission!M434+Generation!M434+Retail!M434+Misc!M434","v":2630421.3154214923},{"$f":"+Distribution!N434+Transmission!N434+Generation!N434+Retail!N434+Misc!N434","v":896411.81964460982},{"$f":"+Distribution!O434+Transmission!O434+Generation!O434+Retail!O434+Misc!O434","v":60408.095092902222},{"$f":"+Distribution!P434+Transmission!P434+Generation!P434+Retail!P434+Misc!P434","v":0},{"$f":"+Distribution!Q434+Transmission!Q434+Generation!Q434+Retail!Q434+Misc!Q434","v":0},0]
[435,null,null,null,null,null,null,null,null,null,null,null,null,null,null,{"$f":"+Distribution!P435+Transmission!P435+Generation!P435+Retail!P435+Misc!P435","v":0},{"$f":"+Distribution!Q435+Transmission!Q435+Generation!Q435+Retail!Q435+Misc!Q435","v":0}]
[436,null,"566","Misc. Transmission Expense",null,"F106",null,{"$f":"+Distribution!H436+Transmission!H436+Generation!H436+Retail!H436+Misc!H436","v":171549.03847368414},{"$f":"+Distribution!I436+Transmission!I436+Generation!I436+Retail!I436+Misc!I436","v":72783.972083589484},{"$f":"+Distribution!J436+Transmission!J436+Generation!J436+Retail!J436+Misc!J436","v":23150.686615031518},{"$f":"+Distribution!K436+Transmission!K436+Generation!K436+Retail!K436+Misc!K436","v":36680.264297668356},{"$f":"+Distribution!L436+Transmission!L436+Generation!L436+Retail!L436+Misc!L436","v":14494.614549874665},{"$f":"+Distribution!M436+Transmission!M436+Generation!M436+Retail!M436+Misc!M436","v":17920.786491173018},{"$f":"+Distribution!N436+Transmission!N436+Generation!N436+Retail!N436+Misc!N436","v":6107.1603753487771},{"$f":"+Distribution!O436+Transmission!O436+Generation!O436+Retail!O436+Misc!O436","v":411.55406099836534},{"$f":"+Distribution!P436+Transmission!P436+Generation!P436+Retail!P436+Misc!P436","v":0},{"$f":"+Distribution!Q436+Transmission!Q436+Generation!Q436+Retail!Q436+Misc!Q436","v":0},{"$f":"ROUND(SUM(I436:Q436)-H436,0)","v":0}]
[437]
[438,null,"567","Rents - Transmission",null,"F106",null,{"$f":"+Distribution!H438+Transmission!H438+Generation!H438+Retail!H438+Misc!H438","v":203773.09014363162},{"$f":"+Distribution!I438+Transmission!I438+Generation!I438+Retail!I438+Misc!I438","v":86455.832316868444},{"$f":"+Distribution!J438+Transmission!J438+Generation!J438+Retail!J438+Misc!J438","v":27499.34941323179},{"$f":"+Distribution!K438+Transmission!K438+Generation!K438+Retail!K438+Misc!K438","v":43570.345072890617},{"$f":"+Distribution!L438+Transmission!L438+Generation!L438+Retail!L438+Misc!L438","v":17217.306628750895},{"$f":"+Distribution!M438+Transmission!M438+Generation!M438+Retail!M438+Misc!M438","v":21287.056305306909},{"$f":"+Distribution!N438+Transmission!N438+Generation!N438+Retail!N438+Misc!N438","v":7254.3393583547577},{"$f":"+Distribution!O438+Transmission!O438+Generation!O438+Retail!O438+Misc!O438","v":488.86104822827303},{"$f":"+Distribution!P438+Transmission!P438+Generation!P438+Retail!P438+Misc!P438","v":0},{"$f":"+Distribution!Q438+Transmission!Q438+Generation!Q438+Retail!Q438+Misc!Q438","v":0},{"$f":"ROUND(SUM(I438:Q438)-H438,0)","v":0}]
[439]
[440,null,"568","Maint Supervision & Engineering",null,"F106",null,{"$f":"+Distribution!H440+Transmission!H440+Generation!H440+Retail!H440+Misc!H440","v":223974.92828903478},{"$f":"+Distribution!I440+Transmission!I440+Generation!I440+Retail!I440+Misc!I440","v":95026.967641755575},{"$f":"+Distribution!J440+Transmission!J440+Generation!J440+Retail!J440+Misc!J440","v":30225.60441362669},{"$f":"+Distribution!K440+Transmission!K440+Generation!K440+Retail!K440+Misc!K440","v":47889.860758114221},{"$f":"+Distribution!L440+Transmission!L440+Generation!L440+Retail!L440+Misc!L440","v":18924.211311644194},{"$f":"+Distribution!M440+Transmission!M440+Generation!M440+Retail!M440+Misc!M440","v":23397.431457240746},{"$f":"+Distribution!N440+Transmission!N440+Generation!N440+Retail!N440+Misc!N440","v":7973.5265163156673},{"$f":"+Distribution!O440+Transmission!O440+Generation!O440+Retail!O440+Misc!O440","v":537.32619033775654},{"$f":"+Distribution!P440+Transmission!P440+Generation!P440+Retail!P440+Misc!P440","v":0},{"$f":"+Distribution!Q440+Transmission!Q440+Generation!Q440+Retail!Q440+Misc!Q440","v":0},{"$f":"ROUND(SUM(I440:Q440)-H440,0)","v":0}]
[441]
[442,null,"569","Maintenance of Structures",null,"F106",null,{"$f":"+Distribution!H442+Transmission!H442+Generation!H442+Retail!H442+Misc!H442","v":357893.5191300243},{"$f":"+Distribution!I442+Transmission!I442+Generation!I442+Retail!I442+Misc!I442","v":151845.28072568143},{"$f":"+Distribution!J442+Transmission!J442+Generation!J442+Retail!J442+Misc!J442","v":48298.030561103871},{"$f":"+Distribution!K442+Transmission!K442+Generation!K442+Retail!K442+Misc!K442","v":76524.059761056094},{"$f":"+Distribution!L442+Transmission!L442+Generation!L442+Retail!L442+Misc!L442","v":30239.333638023691},{"$f":"+Distribution!M442+Transmission!M442+Generation!M442+Retail!M442+Misc!M442","v":37387.17162141126},{"$f":"+Distribution!N442+Transmission!N442+Generation!N442+Retail!N442+Misc!N442","v":12741.039752084098},{"$f":"+Distribution!O442+Transmission!O442+Generation!O442+Retail!O442+Misc!O442","v":858.60307066397547},{"$f":"+Distribution!P442+Transmission!P442+Generation!P442+Retail!P442+Misc!P442","v":0},{"$f":"+Distribution!Q442+Transmission!Q442+Generation!Q442+Retail!Q442+Misc!Q442","v":0},{"$f":"ROUND(SUM(I442:Q442)-H442,0)","v":0}]
[443]
[444,null,"570","Maint of Station Equipment",null,"F106",null,{"$f":"+Distribution!H444+Transmission!H444+Generation!H444+Retail!H444+Misc!H444","v":849725.49116193003},{"$f":"+Distribution!I444+Transmission!I444+Generation!I444+Retail!I444+Misc!I444","v":360517.30151161185},{"$f":"+Distribution!J444+Transmission!J444+Generation!J444+Retail!J444+Misc!J444","v":114671.16767146},{"$f":"+Distribution!K444+Transmission!K444+Generation!K444+Retail!K444+Misc!K444","v":181686.56539026237},{"$f":"+Distribution!L444+Transmission!L444+Generation!L444+Retail!L444+Misc!L444","v":71795.467798465485},{"$f":"+Distribution!M444+Transmission!M444+Generation!M444+Retail!M444+Misc!M444","v":88766.158287480182},{"$f":"+Distribution!N444+Transmission!N444+Generation!N444+Retail!N444+Misc!N444","v":30250.299830995435},{"$f":"+Distribution!O444+Transmission!O444+Generation!O444+Retail!O444+Misc!O444","v":2038.530671654966},{"$f":"+Distribution!P444+Transmission!P444+Generation!P444+Retail!P444+Misc!P444","v":0},{"$f":"+Distribution!Q444+Transmission!Q444+Generation!Q444+Retail!Q444+Misc!Q444","v":0},{"$f":"ROUND(SUM(I444:Q444)-H444,0)","v":0}]
[445]
[446,null,"571","Maintenance of Overhead Lines",null,"F106",null,{"$f":"+Distribution!H446+Transmission!H446+Generation!H446+Retail!H446+Misc!H446","v":2494451.0573639148},{"$f":"+Distribution!I446+Transmission!I446+Generation!I446+Retail!I446+Misc!I446","v":1058333.2774022305},{"$f":"+Distribution!J446+Transmission!J446+Generation!J446+Retail!J446+Misc!J446","v":336628.26221217593},{"$f":"+Distribution!K446+Transmission!K446+Generation!K446+Retail!K446+Misc!K446","v":533358.41970191209},{"$f":"+Distribution!L446+Transmission!L446+Generation!L446+Retail!L446+Misc!L446","v":210762.51380775671},{"$f":"+Distribution!M446+Transmission!M446+Generation!M446+Retail!M446+Misc!M446","v":260581.61100423147},{"$f":"+Distribution!N446+Transmission!N446+Generation!N446+Retail!N446+Misc!N446","v":88802.670019725454},{"$f":"+Distribution!O446+Transmission!O446+Generation!O446+Retail!O446+Misc!O446","v":5984.3032158834731},{"$f":"+Distribution!P446+Transmission!P446+Generation!P446+Retail!P446+Misc!P446","v":0},{"$f":"+Distribution!Q446+Transmission!Q446+Generation!Q446+Retail!Q446+Misc!Q446","v":0},{"$f":"ROUND(SUM(I446:Q446)-H446,0)","v":0}]
[447]
[448,null,"572","Maint of Underground Lines",null,"F106",null,{"$f":"+Distribution!H448+Transmission!H448+Generation!H448+Retail!H448+Misc!H448","v":7773.0297420073148},{"$f":"+Distribution!I448+Transmission!I448+Generation!I448+Retail!I448+Misc!I448","v":3297.9023652992282},{"$f":"+Distribution!J448+Transmission!J448+Generation!J448+Retail!J448+Misc!J448","v":1048.976882689642},{"$f":"+Distribution!K448+Transmission!K448+Generation!K448+Retail!K448+Misc!K448","v":1662.0133104051322},{"$f":"+Distribution!L448+Transmission!L448+Generation!L448+Retail!L448+Misc!L448","v":656.76305153054545},{"$f":"+Distribution!M448+Transmission!M448+Generation!M448+Retail!M448+Misc!M448","v":812.00575436288091},{"$f":"+Distribution!N448+Transmission!N448+Generation!N448+Retail!N448+Misc!N448","v":276.72052061123463},{"$f":"+Distribution!O448+Transmission!O448+Generation!O448+Retail!O448+Misc!O448","v":18.647857108653636},{"$f":"+Distribution!P448+Transmission!P448+Generation!P448+Retail!P448+Misc!P448","v":0},{"$f":"+Distribution!Q448+Transmission!Q448+Generation!Q448+Retail!Q448+Misc!Q448","v":0},{"$f":"ROUND(SUM(I448:Q448)-H448,0)","v":0}]
[449]
[450,null,"573","Maint of Misc Transmission Plant",null,"F106",null,{"$f":"+Distribution!H450+Transmission!H450+Generation!H450+Retail!H450+Misc!H450","v":137427.49336317769},{"$f":"+Distribution!I450+Transmission!I450+Generation!I450+Retail!I450+Misc!I450","v":58307.052778949881},{"$f":"+Distribution!J450+Transmission!J450+Generation!J450+Retail!J450+Misc!J450","v":18545.955485657261},{"$f":"+Distribution!K450+Transmission!K450+Generation!K450+Retail!K450+Misc!K450","v":29384.465358578498},{"$f":"+Distribution!L450+Transmission!L450+Generation!L450+Retail!L450+Misc!L450","v":11611.598424437037},{"$f":"+Distribution!M450+Transmission!M450+Generation!M450+Retail!M450+Misc!M450","v":14356.295951821396},{"$f":"+Distribution!N450+Transmission!N450+Generation!N450+Retail!N450+Misc!N450","v":4892.4304643063006},{"$f":"+Distribution!O450+Transmission!O450+Generation!O450+Retail!O450+Misc!O450","v":329.6948994273605},{"$f":"+Distribution!P450+Transmission!P450+Generation!P450+Retail!P450+Misc!P450","v":0},{"$f":"+Distribution!Q450+Transmission!Q450+Generation!Q450+Retail!Q450+Misc!Q450","v":0},{"$f":"ROUND(SUM(I450:Q450)-H450,0)","v":0}]
[451]
[452]
[453,null,"TOTAL TRANSMISSION EXPENSE",null,null,null,null,{"$f":"+Distribution!H453+Transmission!H453+Generation!H453+Retail!H453+Misc!H453","v":30912170.284866482},{"$f":"+Distribution!I453+Transmission!I453+Generation!I453+Retail!I453+Misc!I453","v":13115261.729677517},{"$f":"+Distribution!J453+Transmission!J453+Generation!J453+Retail!J453+Misc!J453","v":4171623.3050482138},{"$f":"+Distribution!K453+Transmission!K453+Generation!K453+Retail!K453+Misc!K453","v":6609576.9824869605},{"$f":"+Distribution!L453+Transmission!L453+Generation!L453+Retail!L453+Misc!L453","v":2611847.8842302691},{"$f":"+Distribution!M453+Transmission!M453+Generation!M453+Retail!M453+Misc!M453","v":3229224.7661816818},{"$f":"+Distribution!N453+Transmission!N453+Generation!N453+Retail!N453+Misc!N453","v":1100475.8940035121},{"$f":"+Distribution!O453+Transmission!O453+Generation!O453+Retail!O453+Misc!O453","v":74159.723238328545},{"$f":"+Distribution!P453+Transmission!P453+Generation!P453+Retail!P453+Misc!P453","v":0},{"$f":"+Distribution!Q453+Transmission!Q453+Generation!Q453+Retail!Q453+Misc!Q453","v":0},{"$f":"ROUND(SUM(I453:Q453)-H453,0)","v":0}]
[454]
[455]
[456]
[457]
[458]
[459]
[460]
[461]
[462]
[463]
[464]
[465,null,null,null,null,null,null,"DISTRIBUTION EXPENSE"]
[466]
[467,null,"A",null,"B",null,null,"D","E","F","G","H","I","J","K"]
[{"$f":"+A467+1","v":468},null,null,null,null,"C",null,{"$f":"'Hot Sheet'!$H$10","v":"Washington"},null,{"$f":"'Hot Sheet'!$J$10","v":"Small General"},{"$f":"'Hot Sheet'!$K$10","v":"Large General"},{"$f":"'Hot Sheet'!$L$10","v":"Large General"},{"$f":"'Hot Sheet'!$M$10","v":"Large General"},{"$f":"'Hot Sheet'!$N$10","v":"Agricultural"},{"$f":"'Hot Sheet'!$O$10","v":"Street & Area"}]
[469,null,"FERC",null,null,null,null,{"$f":"'Hot Sheet'!$H$11","v":"Jurisdiction"},{"$f":"'Hot Sheet'!$I$11","v":"Residential"},{"$f":"'Hot Sheet'!$J$11","v":"Service"},{"$f":"'Hot Sheet'!$K$11","v":"Service <1,000 kW"},{"$f":"'Hot Sheet'!$L$11","v":"Service >1,000 kW"},{"$f":"'Hot Sheet'!$M$11","v":"Dedicated Facilities"},{"$f":"'Hot Sheet'!$N$11","v":"Pumping"},{"$f":"'Hot Sheet'!$O$11","v":"Lighting"}]
[470,null,"ACCT",null,"DESCRIPTION ","COS",null,{"$f":"'Hot Sheet'!$H$12","v":"Normalized"},{"$f":"'Hot Sheet'!$I$12","v":"Schedule 16"},{"$f":"'Hot Sheet'!$J$12","v":"Schedule 24"},{"$f":"'Hot Sheet'!$K$12","v":"Schedule 36"},{"$f":"'Hot Sheet'!$L$12","v":"Schedule 48T"},{"$f":"'Hot Sheet'!$M$12","v":"Schedule 48T"},{"$f":"'Hot Sheet'!$N$12","v":"Schedule 40"},{"$f":"'Hot Sheet'!$O$12","v":"Sch. 15,51-54,57"}]
[471,null,null,null,null,"Factor"]
[472,null,"580","Operation Supervision & Eng",null,"F131",null,{"$f":"+Distribution!H472+Transmission!H472+Generation!H472+Retail!H472+Misc!H472","v":909810.96730218641},{"$f":"+Distribution!I472+Transmission!I472+Generation!I472+Retail!I472+Misc!I472","v":512588.00171576708},{"$f":"+Distribution!J472+Transmission!J472+Generation!J472+Retail!J472+Misc!J472","v":134168.5533983667},{"$f":"+Distribution!K472+Transmission!K472+Generation!K472+Retail!K472+Misc!K472","v":129687.52926136991},{"$f":"+Distribution!L472+Transmission!L472+Generation!L472+Retail!L472+Misc!L472","v":47121.107689329721},{"$f":"+Distribution!M472+Transmission!M472+Generation!M472+Retail!M472+Misc!M472","v":18143.911433498844},{"$f":"+Distribution!N472+Transmission!N472+Generation!N472+Retail!N472+Misc!N472","v":46755.582895353531},{"$f":"+Distribution!O472+Transmission!O472+Generation!O472+Retail!O472+Misc!O472","v":21346.280908500714},{"$f":"+Distribution!P472+Transmission!P472+Generation!P472+Retail!P472+Misc!P472","v":0},{"$f":"+Distribution!Q472+Transmission!Q472+Generation!Q472+Retail!Q472+Misc!Q472","v":0},{"$f":"ROUND(SUM(I472:Q472)-H472,0)","v":0}]
[473]
[474,null,"581","Load Dispatching",null,"F20",null,{"$f":"+Distribution!H474+Transmission!H474+Generation!H474+Retail!H474+Misc!H474","v":852248.379117648},{"$f":"+Distribution!I474+Transmission!I474+Generation!I474+Retail!I474+Misc!I474","v":402276.60505297629},{"$f":"+Distribution!J474+Transmission!J474+Generation!J474+Retail!J474+Misc!J474","v":109965.49425050851},{"$f":"+Distribution!K474+Transmission!K474+Generation!K474+Retail!K474+Misc!K474","v":161290.28624684791},{"$f":"+Distribution!L474+Transmission!L474+Generation!L474+Retail!L474+Misc!L474","v":61680.993286794714},{"$f":"+Distribution!M474+Transmission!M474+Generation!M474+Retail!M474+Misc!M474","v":57690.781659833927},{"$f":"+Distribution!N474+Transmission!N474+Generation!N474+Retail!N474+Misc!N474","v":56290.538429067565},{"$f":"+Distribution!O474+Transmission!O474+Generation!O474+Retail!O474+Misc!O474","v":3053.6801916191639},{"$f":"+Distribution!P474+Transmission!P474+Generation!P474+Retail!P474+Misc!P474","v":0},{"$f":"+Distribution!Q474+Transmission!Q474+Generation!Q474+Retail!Q474+Misc!Q474","v":0},{"$f":"ROUND(SUM(I474:Q474)-H474,0)","v":0}]
[475]
[476,null,"582","Station Expense",null,"F120",null,{"$f":"+Distribution!H476+Transmission!H476+Generation!H476+Retail!H476+Misc!H476","v":317335.73514141352},{"$f":"+Distribution!I476+Transmission!I476+Generation!I476+Retail!I476+Misc!I476","v":152188.63452664687},{"$f":"+Distribution!J476+Transmission!J476+Generation!J476+Retail!J476+Misc!J476","v":41601.967911678104},{"$f":"+Distribution!K476+Transmission!K476+Generation!K476+Retail!K476+Misc!K476","v":61019.080200021155},{"$f":"+Distribution!L476+Transmission!L476+Generation!L476+Retail!L476+Misc!L476","v":23335.053609016999},{"$f":"+Distribution!M476+Transmission!M476+Generation!M476+Retail!M476+Misc!M476","v":16739.990096897596},{"$f":"+Distribution!N476+Transmission!N476+Generation!N476+Retail!N476+Misc!N476","v":21295.745446497862},{"$f":"+Distribution!O476+Transmission!O476+Generation!O476+Retail!O476+Misc!O476","v":1155.2633506549264},{"$f":"+Distribution!P476+Transmission!P476+Generation!P476+Retail!P476+Misc!P476","v":0},{"$f":"+Distribution!Q476+Transmission!Q476+Generation!Q476+Retail!Q476+Misc!Q476","v":0},{"$f":"ROUND(SUM(I476:Q476)-H476,0)","v":0}]
[477]
[478,null,"583","Overhead Line Expenses",null,"F132",null,{"$f":"+Distribution!H478+Transmission!H478+Generation!H478+Retail!H478+Misc!H478","v":576635.08690863231},{"$f":"+Distribution!I478+Transmission!I478+Generation!I478+Retail!I478+Misc!I478","v":323841.16736707801},{"$f":"+Distribution!J478+Transmission!J478+Generation!J478+Retail!J478+Misc!J478","v":84708.181135687119},{"$f":"+Distribution!K478+Transmission!K478+Generation!K478+Retail!K478+Misc!K478","v":96029.431748288072},{"$f":"+Distribution!L478+Transmission!L478+Generation!L478+Retail!L478+Misc!L478","v":36723.790829756967},{"$f":"+Distribution!M478+Transmission!M478+Generation!M478+Retail!M478+Misc!M478","v":0},{"$f":"+Distribution!N478+Transmission!N478+Generation!N478+Retail!N478+Misc!N478","v":33514.407742296207},{"$f":"+Distribution!O478+Transmission!O478+Generation!O478+Retail!O478+Misc!O478","v":1818.1080855259663},{"$f":"+Distribution!P478+Transmission!P478+Generation!P478+Retail!P478+Misc!P478","v":0},{"$f":"+Distribution!Q478+Transmission!Q478+Generation!Q478+Retail!Q478+Misc!Q478","v":0},{"$f":"ROUND(SUM(I478:Q478)-H478,0)","v":0}]
[479]
[480,null,"584","Underground Line Expense",null,"F133",null,{"$f":"+Distribution!H480+Transmission!H480+Generation!H480+Retail!H480+Misc!H480","v":67.300607506355803},{"$f":"+Distribution!I480+Transmission!I480+Generation!I480+Retail!I480+Misc!I480","v":45.301787558860404},{"$f":"+Distribution!J480+Transmission!J480+Generation!J480+Retail!J480+Misc!J480","v":11.040173384230949},{"$f":"+Distribution!K480+Transmission!K480+Generation!K480+Retail!K480+Misc!K480","v":6.260808395650785},{"$f":"+Distribution!L480+Transmission!L480+Generation!L480+Retail!L480+Misc!L480","v":2.3942723992133228},{"$f":"+Distribution!M480+Transmission!M480+Generation!M480+Retail!M480+Misc!M480","v":0},{"$f":"+Distribution!N480+Transmission!N480+Generation!N480+Retail!N480+Misc!N480","v":2.1850310008938734},{"$f":"+Distribution!O480+Transmission!O480+Generation!O480+Retail!O480+Misc!O480","v":0.1185347675064678},{"$f":"+Distribution!P480+Transmission!P480+Generation!P480+Retail!P480+Misc!P480","v":0},{"$f":"+Distribution!Q480+Transmission!Q480+Generation!Q480+Retail!Q480+Misc!Q480","v":0},{"$f":"ROUND(SUM(I480:Q480)-H480,0)","v":0}]
[481]
[482,null,"585","Street Lighting & Signal Systems",null,"F130",null,{"$f":"+Distribution!H482+Transmission!H482+Generation!H482+Retail!H482+Misc!H482","v":14256.5274335944},{"$f":"+Distribution!I482+Transmission!I482+Generation!I482+Retail!I482+Misc!I482","v":0},{"$f":"+Distribution!J482+Transmission!J482+Generation!J482+Retail!J482+Misc!J482","v":0},{"$f":"+Distribution!K482+Transmission!K482+Generation!K482+Retail!K482+Misc!K482","v":0},{"$f":"+Distribution!L482+Transmission!L482+Generation!L482+Retail!L482+Misc!L482","v":0},{"$f":"+Distribution!M482+Transmission!M482+Generation!M482+Retail!M482+Misc!M482","v":0},{"$f":"+Distribution!N482+Transmission!N482+Generation!N482+Retail!N482+Misc!N482","v":0},{"$f":"+Distribution!O482+Transmission!O482+Generation!O482+Retail!O482+Misc!O482","v":14256.5274335944},{"$f":"+Distribution!P482+Transmission!P482+Generation!P482+Retail!P482+Misc!P482","v":0},{"$f":"+Distribution!Q482+Transmission!Q482+Generation!Q482+Retail!Q482+Misc!Q482","v":0},{"$f":"ROUND(SUM(I482:Q482)-H482,0)","v":0}]
[483]
[484,null,"586","Meter Expenses",null,"F127",null,{"$f":"+Distribution!H484+Transmission!H484+Generation!H484+Retail!H484+Misc!H484","v":636148.15424891119},{"$f":"+Distribution!I484+Transmission!I484+Generation!I484+Retail!I484+Misc!I484","v":432661.70257322217},{"$f":"+Distribution!J484+Transmission!J484+Generation!J484+Retail!J484+Misc!J484","v":103271.7154630173},{"$f":"+Distribution!K484+Transmission!K484+Generation!K484+Retail!K484+Misc!K484","v":48608.12424730062},{"$f":"+Distribution!L484+Transmission!L484+Generation!L484+Retail!L484+Misc!L484","v":7814.5467885586313},{"$f":"+Distribution!M484+Transmission!M484+Generation!M484+Retail!M484+Misc!M484","v":6154.2291130128169},{"$f":"+Distribution!N484+Transmission!N484+Generation!N484+Retail!N484+Misc!N484","v":37637.836063799696},{"$f":"+Distribution!O484+Transmission!O484+Generation!O484+Retail!O484+Misc!O484","v":0},{"$f":"+Distribution!P484+Transmission!P484+Generation!P484+Retail!P484+Misc!P484","v":0},{"$f":"+Distribution!Q484+Transmission!Q484+Generation!Q484+Retail!Q484+Misc!Q484","v":0},{"$f":"ROUND(SUM(I484:Q484)-H484,0)","v":0}]
[485]
[486,null,"587","Customer Installation Expenses",null,"F20",null,{"$f":"+Distribution!H486+Transmission!H486+Generation!H486+Retail!H486+Misc!H486","v":947827.17},{"$f":"+Distribution!I486+Transmission!I486+Generation!I486+Retail!I486+Misc!I486","v":447391.51809162373},{"$f":"+Distribution!J486+Transmission!J486+Generation!J486+Retail!J486+Misc!J486","v":122298.01284106946},{"$f":"+Distribution!K486+Transmission!K486+Generation!K486+Retail!K486+Misc!K486","v":179378.82817696297},{"$f":"+Distribution!L486+Transmission!L486+Generation!L486+Retail!L486+Misc!L486","v":68598.454091915803},{"$f":"+Distribution!M486+Transmission!M486+Generation!M486+Retail!M486+Misc!M486","v":64160.744280136561},{"$f":"+Distribution!N486+Transmission!N486+Generation!N486+Retail!N486+Misc!N486","v":62603.465191963936},{"$f":"+Distribution!O486+Transmission!O486+Generation!O486+Retail!O486+Misc!O486","v":3396.1473263276221},{"$f":"+Distribution!P486+Transmission!P486+Generation!P486+Retail!P486+Misc!P486","v":0},{"$f":"+Distribution!Q486+Transmission!Q486+Generation!Q486+Retail!Q486+Misc!Q486","v":0},{"$f":"ROUND(SUM(I486:Q486)-H486,0)","v":0}]
[487]
[488,null,"588","Misc. Distribution Expenses",null,"F131",null,{"$f":"+Distribution!H488+Transmission!H488+Generation!H488+Retail!H488+Misc!H488","v":277610.63598494366},{"$f":"+Distribution!I488+Transmission!I488+Generation!I488+Retail!I488+Misc!I488","v":156405.98571428491},{"$f":"+Distribution!J488+Transmission!J488+Generation!J488+Retail!J488+Misc!J488","v":40938.852988930048},{"$f":"+Distribution!K488+Transmission!K488+Generation!K488+Retail!K488+Misc!K488","v":39571.55801750948},{"$f":"+Distribution!L488+Transmission!L488+Generation!L488+Retail!L488+Misc!L488","v":14378.064393682987},{"$f":"+Distribution!M488+Transmission!M488+Generation!M488+Retail!M488+Misc!M488","v":5536.2520054510678},{"$f":"+Distribution!N488+Transmission!N488+Generation!N488+Retail!N488+Misc!N488","v":14266.531807056899},{"$f":"+Distribution!O488+Transmission!O488+Generation!O488+Retail!O488+Misc!O488","v":6513.3910580283055},{"$f":"+Distribution!P488+Transmission!P488+Generation!P488+Retail!P488+Misc!P488","v":0},{"$f":"+Distribution!Q488+Transmission!Q488+Generation!Q488+Retail!Q488+Misc!Q488","v":0},{"$f":"ROUND(SUM(I488:Q488)-H488,0)","v":0}]
[489]
[490,null,"589","Rents",null,"F131",null,{"$f":"+Distribution!H490+Transmission!H490+Generation!H490+Retail!H490+Misc!H490","v":119593.14062629984},{"$f":"+Distribution!I490+Transmission!I490+Generation!I490+Retail!I490+Misc!I490","v":67378.841512895044},{"$f":"+Distribution!J490+Transmission!J490+Generation!J490+Retail!J490+Misc!J490","v":17636.233515383265},{"$f":"+Distribution!K490+Transmission!K490+Generation!K490+Retail!K490+Misc!K490","v":17047.210334716652},{"$f":"+Distribution!L490+Transmission!L490+Generation!L490+Retail!L490+Misc!L490","v":6193.9913464301953},{"$f":"+Distribution!M490+Transmission!M490+Generation!M490+Retail!M490+Misc!M490","v":2384.9870242956154},{"$f":"+Distribution!N490+Transmission!N490+Generation!N490+Retail!N490+Misc!N490","v":6145.9437193302301},{"$f":"+Distribution!O490+Transmission!O490+Generation!O490+Retail!O490+Misc!O490","v":2805.9331732488454},{"$f":"+Distribution!P490+Transmission!P490+Generation!P490+Retail!P490+Misc!P490","v":0},{"$f":"+Distribution!Q490+Transmission!Q490+Generation!Q490+Retail!Q490+Misc!Q490","v":0},{"$f":"ROUND(SUM(I490:Q490)-H490,0)","v":0}]
[491]
[492,null,"590","Maint Supervision & Engineering",null,"F131",null,{"$f":"+Distribution!H492+Transmission!H492+Generation!H492+Retail!H492+Misc!H492","v":247117.89510009371},{"$f":"+Distribution!I492+Transmission!I492+Generation!I492+Retail!I492+Misc!I492","v":139226.35865027033},{"$f":"+Distribution!J492+Transmission!J492+Generation!J492+Retail!J492+Misc!J492","v":36442.131053600046},{"$f":"+Distribution!K492+Transmission!K492+Generation!K492+Retail!K492+Misc!K492","v":35225.019705831946},{"$f":"+Distribution!L492+Transmission!L492+Generation!L492+Retail!L492+Misc!L492","v":12798.778389648038},{"$f":"+Distribution!M492+Transmission!M492+Generation!M492+Retail!M492+Misc!M492","v":4928.1503119532508},{"$f":"+Distribution!N492+Transmission!N492+Generation!N492+Retail!N492+Misc!N492","v":12699.496537768262},{"$f":"+Distribution!O492+Transmission!O492+Generation!O492+Retail!O492+Misc!O492","v":5797.9604510218524},{"$f":"+Distribution!P492+Transmission!P492+Generation!P492+Retail!P492+Misc!P492","v":0},{"$f":"+Distribution!Q492+Transmission!Q492+Generation!Q492+Retail!Q492+Misc!Q492","v":0},{"$f":"ROUND(SUM(I492:Q492)-H492,0)","v":0}]
[493]
[494,null,"591","Maintenance of Structures",null,"F119",null,{"$f":"+Distribution!H494+Transmission!H494+Generation!H494+Retail!H494+Misc!H494","v":209228.72693319363},{"$f":"+Distribution!I494+Transmission!I494+Generation!I494+Retail!I494+Misc!I494","v":98759.732505894819},{"$f":"+Distribution!J494+Transmission!J494+Generation!J494+Retail!J494+Misc!J494","v":26996.75462267697},{"$f":"+Distribution!K494+Transmission!K494+Generation!K494+Retail!K494+Misc!K494","v":39597.096439252782},{"$f":"+Distribution!L494+Transmission!L494+Generation!L494+Retail!L494+Misc!L494","v":15142.810497019906},{"$f":"+Distribution!M494+Transmission!M494+Generation!M494+Retail!M494+Misc!M494","v":14163.205349788777},{"$f":"+Distribution!N494+Transmission!N494+Generation!N494+Retail!N494+Misc!N494","v":13819.442761617725},{"$f":"+Distribution!O494+Transmission!O494+Generation!O494+Retail!O494+Misc!O494","v":749.68475694265828},{"$f":"+Distribution!P494+Transmission!P494+Generation!P494+Retail!P494+Misc!P494","v":0},{"$f":"+Distribution!Q494+Transmission!Q494+Generation!Q494+Retail!Q494+Misc!Q494","v":0},{"$f":"ROUND(SUM(I494:Q494)-H494,0)","v":0}]
[495]
[496,null,"592","Maint of Station Equipment",null,"F120",null,{"$f":"+Distribution!H496+Transmission!H496+Generation!H496+Retail!H496+Misc!H496","v":754906.73739222938},{"$f":"+Distribution!I496+Transmission!I496+Generation!I496+Retail!I496+Misc!I496","v":362039.98742055328},{"$f":"+Distribution!J496+Transmission!J496+Generation!J496+Retail!J496+Misc!J496","v":98966.496323856933},{"$f":"+Distribution!K496+Transmission!K496+Generation!K496+Retail!K496+Misc!K496","v":145157.66631812046},{"$f":"+Distribution!L496+Transmission!L496+Generation!L496+Retail!L496+Misc!L496","v":55511.520563562473},{"$f":"+Distribution!M496+Transmission!M496+Generation!M496+Retail!M496+Misc!M496","v":39822.591371235707},{"$f":"+Distribution!N496+Transmission!N496+Generation!N496+Retail!N496+Misc!N496","v":50660.231215961488},{"$f":"+Distribution!O496+Transmission!O496+Generation!O496+Retail!O496+Misc!O496","v":2748.2441789390241},{"$f":"+Distribution!P496+Transmission!P496+Generation!P496+Retail!P496+Misc!P496","v":0},{"$f":"+Distribution!Q496+Transmission!Q496+Generation!Q496+Retail!Q496+Misc!Q496","v":0},{"$f":"ROUND(SUM(I496:Q496)-H496,0)","v":0}]
[497]
[498,null,"593","Maintenance of Overhead Lines",null,"F134",null,{"$f":"+Distribution!H498+Transmission!H498+Generation!H498+Retail!H498+Misc!H498","v":4144263.9697047933},{"$f":"+Distribution!I498+Transmission!I498+Generation!I498+Retail!I498+Misc!I498","v":2482789.0922981719},{"$f":"+Distribution!J498+Transmission!J498+Generation!J498+Retail!J498+Misc!J498","v":662796.49995539675},{"$f":"+Distribution!K498+Transmission!K498+Generation!K498+Retail!K498+Misc!K498","v":580866.55585366394},{"$f":"+Distribution!L498+Transmission!L498+Generation!L498+Retail!L498+Misc!L498","v":212939.50043073238},{"$f":"+Distribution!M498+Transmission!M498+Generation!M498+Retail!M498+Misc!M498","v":0},{"$f":"+Distribution!N498+Transmission!N498+Generation!N498+Retail!N498+Misc!N498","v":194330.18979330824},{"$f":"+Distribution!O498+Transmission!O498+Generation!O498+Retail!O498+Misc!O498","v":10542.131373520206},{"$f":"+Distribution!P498+Transmission!P498+Generation!P498+Retail!P498+Misc!P498","v":0},{"$f":"+Distribution!Q498+Transmission!Q498+Generation!Q498+Retail!Q498+Misc!Q498","v":0},{"$f":"ROUND(SUM(I498:Q498)-H498,0)","v":0}]
[499]
[500,null,"594","Maint of Underground Lines",null,"F135",null,{"$f":"+Distribution!H500+Transmission!H500+Generation!H500+Retail!H500+Misc!H500","v":1028804.6586482538},{"$f":"+Distribution!I500+Transmission!I500+Generation!I500+Retail!I500+Misc!I500","v":698688.40637374064},{"$f":"+Distribution!J500+Transmission!J500+Generation!J500+Retail!J500+Misc!J500","v":171070.61041065073},{"$f":"+Distribution!K500+Transmission!K500+Generation!K500+Retail!K500+Misc!K500","v":96582.179792196039},{"$f":"+Distribution!L500+Transmission!L500+Generation!L500+Retail!L500+Misc!L500","v":37472.533165951638},{"$f":"+Distribution!M500+Transmission!M500+Generation!M500+Retail!M500+Misc!M500","v":0},{"$f":"+Distribution!N500+Transmission!N500+Generation!N500+Retail!N500+Misc!N500","v":23704.968683417039},{"$f":"+Distribution!O500+Transmission!O500+Generation!O500+Retail!O500+Misc!O500","v":1285.9602222977398},{"$f":"+Distribution!P500+Transmission!P500+Generation!P500+Retail!P500+Misc!P500","v":0},{"$f":"+Distribution!Q500+Transmission!Q500+Generation!Q500+Retail!Q500+Misc!Q500","v":0},{"$f":"ROUND(SUM(I500:Q500)-H500,0)","v":0}]
[501]
[502,null,"595","Maint of Line Transformers",null,"F125",null,{"$f":"+Distribution!H502+Transmission!H502+Generation!H502+Retail!H502+Misc!H502","v":56252.998151844738},{"$f":"+Distribution!I502+Transmission!I502+Generation!I502+Retail!I502+Misc!I502","v":33952.176215383966},{"$f":"+Distribution!J502+Transmission!J502+Generation!J502+Retail!J502+Misc!J502","v":7744.6345537012139},{"$f":"+Distribution!K502+Transmission!K502+Generation!K502+Retail!K502+Misc!K502","v":8732.1659974261856},{"$f":"+Distribution!L502+Transmission!L502+Generation!L502+Retail!L502+Misc!L502","v":2573.5854129657337},{"$f":"+Distribution!M502+Transmission!M502+Generation!M502+Retail!M502+Misc!M502","v":0},{"$f":"+Distribution!N502+Transmission!N502+Generation!N502+Retail!N502+Misc!N502","v":3129.1243824536864},{"$f":"+Distribution!O502+Transmission!O502+Generation!O502+Retail!O502+Misc!O502","v":121.31158991396002},{"$f":"+Distribution!P502+Transmission!P502+Generation!P502+Retail!P502+Misc!P502","v":0},{"$f":"+Distribution!Q502+Transmission!Q502+Generation!Q502+Retail!Q502+Misc!Q502","v":0},{"$f":"ROUND(SUM(I502:Q502)-H502,0)","v":0}]
[503]
[504,null,"596","Maint of Street Lighting & Signals",null,"F130",null,{"$f":"+Distribution!H504+Transmission!H504+Generation!H504+Retail!H504+Misc!H504","v":199709.85},{"$f":"+Distribution!I504+Transmission!I504+Generation!I504+Retail!I504+Misc!I504","v":0},{"$f":"+Distribution!J504+Transmission!J504+Generation!J504+Retail!J504+Misc!J504","v":0},{"$f":"+Distribution!K504+Transmission!K504+Generation!K504+Retail!K504+Misc!K504","v":0},{"$f":"+Distribution!L504+Transmission!L504+Generation!L504+Retail!L504+Misc!L504","v":0},{"$f":"+Distribution!M504+Transmission!M504+Generation!M504+Retail!M504+Misc!M504","v":0},{"$f":"+Distribution!N504+Transmission!N504+Generation!N504+Retail!N504+Misc!N504","v":0},{"$f":"+Distribution!O504+Transmission!O504+Generation!O504+Retail!O504+Misc!O504","v":199709.85},{"$f":"+Distribution!P504+Transmission!P504+Generation!P504+Retail!P504+Misc!P504","v":0},{"$f":"+Distribution!Q504+Transmission!Q504+Generation!Q504+Retail!Q504+Misc!Q504","v":0},{"$f":"ROUND(SUM(I504:Q504)-H504,0)","v":0}]
[505]
[506,null,"597","Maintenance of Meters",null,"F127",null,{"$f":"+Distribution!H506+Transmission!H506+Generation!H506+Retail!H506+Misc!H506","v":441912.15099998261},{"$f":"+Distribution!I506+Transmission!I506+Generation!I506+Retail!I506+Misc!I506","v":300556.50144138501},{"$f":"+Distribution!J506+Transmission!J506+Generation!J506+Retail!J506+Misc!J506","v":71739.6185352498},{"$f":"+Distribution!K506+Transmission!K506+Generation!K506+Retail!K506+Misc!K506","v":33766.53787129304},{"$f":"+Distribution!L506+Transmission!L506+Generation!L506+Retail!L506+Misc!L506","v":5428.5203177226094},{"$f":"+Distribution!M506+Transmission!M506+Generation!M506+Retail!M506+Misc!M506","v":4275.1497538953427},{"$f":"+Distribution!N506+Transmission!N506+Generation!N506+Retail!N506+Misc!N506","v":26145.823080436789},{"$f":"+Distribution!O506+Transmission!O506+Generation!O506+Retail!O506+Misc!O506","v":0},{"$f":"+Distribution!P506+Transmission!P506+Generation!P506+Retail!P506+Misc!P506","v":0},{"$f":"+Distribution!Q506+Transmission!Q506+Generation!Q506+Retail!Q506+Misc!Q506","v":0},{"$f":"ROUND(SUM(I506:Q506)-H506,0)","v":0}]
[507]
[508,null,"598","Maint of Misc. Distribution Plant",null,"F131",null,{"$f":"+Distribution!H508+Transmission!H508+Generation!H508+Retail!H508+Misc!H508","v":75725.498082461083},{"$f":"+Distribution!I508+Transmission!I508+Generation!I508+Retail!I508+Misc!I508","v":42663.787463585788},{"$f":"+Distribution!J508+Transmission!J508+Generation!J508+Retail!J508+Misc!J508","v":11167.133501612361},{"$f":"+Distribution!K508+Transmission!K508+Generation!K508+Retail!K508+Misc!K508","v":10794.168350730743},{"$f":"+Distribution!L508+Transmission!L508+Generation!L508+Retail!L508+Misc!L508","v":3921.9898178987414},{"$f":"+Distribution!M508+Transmission!M508+Generation!M508+Retail!M508+Misc!M508","v":1510.1562630530611},{"$f":"+Distribution!N508+Transmission!N508+Generation!N508+Retail!N508+Misc!N508","v":3891.5664133893274},{"$f":"+Distribution!O508+Transmission!O508+Generation!O508+Retail!O508+Misc!O508","v":1776.6962721910704},{"$f":"+Distribution!P508+Transmission!P508+Generation!P508+Retail!P508+Misc!P508","v":0},{"$f":"+Distribution!Q508+Transmission!Q508+Generation!Q508+Retail!Q508+Misc!Q508","v":0},{"$f":"ROUND(SUM(I508:Q508)-H508,0)","v":0}]
[509]
[510,null,"TOTAL DISTRIBUTION EXPENSE",null,null,null,null,{"$f":"+Distribution!H510+Transmission!H510+Generation!H510+Retail!H510+Misc!H510","v":11809455.582383985},{"$f":"+Distribution!I510+Transmission!I510+Generation!I510+Retail!I510+Misc!I510","v":6653453.8007110395},{"$f":"+Distribution!J510+Transmission!J510+Generation!J510+Retail!J510+Misc!J510","v":1741523.9306347691},{"$f":"+Distribution!K510+Transmission!K510+Generation!K510+Retail!K510+Misc!K510","v":1683359.6993699276},{"$f":"+Distribution!L510+Transmission!L510+Generation!L510+Retail!L510+Misc!L510","v":611637.6349033867},{"$f":"+Distribution!M510+Transmission!M510+Generation!M510+Retail!M510+Misc!M510","v":235510.14866305256},{"$f":"+Distribution!N510+Transmission!N510+Generation!N510+Retail!N510+Misc!N510","v":606893.07919471955},{"$f":"+Distribution!O510+Transmission!O510+Generation!O510+Retail!O510+Misc!O510","v":277077.28890709399},{"$f":"+Distribution!P510+Transmission!P510+Generation!P510+Retail!P510+Misc!P510","v":0},{"$f":"+Distribution!Q510+Transmission!Q510+Generation!Q510+Retail!Q510+Misc!Q510","v":0},{"$f":"ROUND(SUM(I510:Q510)-H510,0)","v":0}]
[511]
[512]
[513,null,null,null,null,null,null,"CUSTOMER ACCOUNTS EXPENSE"]
[514]
[515]
[516,null,"901","Supervision",null,"F136",null,{"$f":"+Distribution!H516+Transmission!H516+Generation!H516+Retail!H516+Misc!H516","v":201143.69782696577},{"$f":"+Distribution!I516+Transmission!I516+Generation!I516+Retail!I516+Misc!I516","v":165952.67568493611},{"$f":"+Distribution!J516+Transmission!J516+Generation!J516+Retail!J516+Misc!J516","v":21651.624081844548},{"$f":"+Distribution!K516+Transmission!K516+Generation!K516+Retail!K516+Misc!K516","v":4445.0662838272574},{"$f":"+Distribution!L516+Transmission!L516+Generation!L516+Retail!L516+Misc!L516","v":1551.8779621359222},{"$f":"+Distribution!M516+Transmission!M516+Generation!M516+Retail!M516+Misc!M516","v":1303.9793544743889},{"$f":"+Distribution!N516+Transmission!N516+Generation!N516+Retail!N516+Misc!N516","v":3820.9817143470764},{"$f":"+Distribution!O516+Transmission!O516+Generation!O516+Retail!O516+Misc!O516","v":2417.4927454004232},{"$f":"+Distribution!P516+Transmission!P516+Generation!P516+Retail!P516+Misc!P516","v":0},{"$f":"+Distribution!Q516+Transmission!Q516+Generation!Q516+Retail!Q516+Misc!Q516","v":0},{"$f":"ROUND(SUM(I516:Q516)-H516,0)","v":0}]
[517]
[518,null,"902","Meter Reading Expense",null,"F41",null,{"$f":"+Distribution!H518+Transmission!H518+Generation!H518+Retail!H518+Misc!H518","v":954742.37164868228},{"$f":"+Distribution!I518+Transmission!I518+Generation!I518+Retail!I518+Misc!I518","v":773675.14115286351},{"$f":"+Distribution!J518+Transmission!J518+Generation!J518+Retail!J518+Misc!J518","v":138321.92918853421},{"$f":"+Distribution!K518+Transmission!K518+Generation!K518+Retail!K518+Misc!K518","v":12086.97577027338},{"$f":"+Distribution!L518+Transmission!L518+Generation!L518+Retail!L518+Misc!L518","v":5915.4330601395995},{"$f":"+Distribution!M518+Transmission!M518+Generation!M518+Retail!M518+Misc!M518","v":102.14588112393838},{"$f":"+Distribution!N518+Transmission!N518+Generation!N518+Retail!N518+Misc!N518","v":24640.746595747441},{"$f":"+Distribution!O518+Transmission!O518+Generation!O518+Retail!O518+Misc!O518","v":0},{"$f":"+Distribution!P518+Transmission!P518+Generation!P518+Retail!P518+Misc!P518","v":0},{"$f":"+Distribution!Q518+Transmission!Q518+Generation!Q518+Retail!Q518+Misc!Q518","v":0},{"$f":"ROUND(SUM(I518:Q518)-H518,0)","v":0}]
[519]
[520,null,"903","Customer Receipts & Collections",null,"F42",null,{"$f":"+Distribution!H520+Transmission!H520+Generation!H520+Retail!H520+Misc!H520","v":3981820.0734477621},{"$f":"+Distribution!I520+Transmission!I520+Generation!I520+Retail!I520+Misc!I520","v":3212806.5273851259},{"$f":"+Distribution!J520+Transmission!J520+Generation!J520+Retail!J520+Misc!J520","v":545683.18751906161},{"$f":"+Distribution!K520+Transmission!K520+Generation!K520+Retail!K520+Misc!K520","v":33140.282677806579},{"$f":"+Distribution!L520+Transmission!L520+Generation!L520+Retail!L520+Misc!L520","v":6796.784655383869},{"$f":"+Distribution!M520+Transmission!M520+Generation!M520+Retail!M520+Misc!M520","v":117.36478975851432},{"$f":"+Distribution!N520+Transmission!N520+Generation!N520+Retail!N520+Misc!N520","v":97208.311249692313},{"$f":"+Distribution!O520+Transmission!O520+Generation!O520+Retail!O520+Misc!O520","v":86067.615170933059},{"$f":"+Distribution!P520+Transmission!P520+Generation!P520+Retail!P520+Misc!P520","v":0},{"$f":"+Distribution!Q520+Transmission!Q520+Generation!Q520+Retail!Q520+Misc!Q520","v":0},{"$f":"ROUND(SUM(I520:Q520)-H520,0)","v":0}]
[521]
[522,null,"904","Uncollectible Accounts",null,"F80",null,{"$f":"+Distribution!H522+Transmission!H522+Generation!H522+Retail!H522+Misc!H522","v":2224558.6840435951},{"$f":"+Distribution!I522+Transmission!I522+Generation!I522+Retail!I522+Misc!I522","v":1921768.1306033693},{"$f":"+Distribution!J522+Transmission!J522+Generation!J522+Retail!J522+Misc!J522","v":86836.348214045764},{"$f":"+Distribution!K522+Transmission!K522+Generation!K522+Retail!K522+Misc!K522","v":113026.06208561438},{"$f":"+Distribution!L522+Transmission!L522+Generation!L522+Retail!L522+Misc!L522","v":42537.766174394266},{"$f":"+Distribution!M522+Transmission!M522+Generation!M522+Retail!M522+Misc!M522","v":46204.783046348137},{"$f":"+Distribution!N522+Transmission!N522+Generation!N522+Retail!N522+Misc!N522","v":14185.593919823277},{"$f":"+Distribution!O522+Transmission!O522+Generation!O522+Retail!O522+Misc!O522","v":0},{"$f":"+Distribution!P522+Transmission!P522+Generation!P522+Retail!P522+Misc!P522","v":0},{"$f":"+Distribution!Q522+Transmission!Q522+Generation!Q522+Retail!Q522+Misc!Q522","v":0},{"$f":"ROUND(SUM(I522:Q522)-H522,0)","v":0}]
[523]
[524,null,"905","Misc. Customer Accounts Exp",null,"F136",null,{"$f":"+Distribution!H524+Transmission!H524+Generation!H524+Retail!H524+Misc!H524","v":11842.924124365636},{"$f":"+Distribution!I524+Transmission!I524+Generation!I524+Retail!I524+Misc!I524","v":9770.9496623795058},{"$f":"+Distribution!J524+Transmission!J524+Generation!J524+Retail!J524+Misc!J524","v":1274.8027601200672},{"$f":"+Distribution!K524+Transmission!K524+Generation!K524+Retail!K524+Misc!K524","v":261.71629186427714},{"$f":"+Distribution!L524+Transmission!L524+Generation!L524+Retail!L524+Misc!L524","v":91.371358657536788},{"$f":"+Distribution!M524+Transmission!M524+Generation!M524+Retail!M524+Misc!M524","v":76.775602326175175},{"$f":"+Distribution!N524+Transmission!N524+Generation!N524+Retail!N524+Misc!N524","v":224.97148562183006},{"$f":"+Distribution!O524+Transmission!O524+Generation!O524+Retail!O524+Misc!O524","v":142.33696339624197},{"$f":"+Distribution!P524+Transmission!P524+Generation!P524+Retail!P524+Misc!P524","v":0},{"$f":"+Distribution!Q524+Transmission!Q524+Generation!Q524+Retail!Q524+Misc!Q524","v":0},{"$f":"ROUND(SUM(I524:Q524)-H524,0)","v":0}]
[525]
[526,null,"TOTAL CUSTOMER ACCOUNTS EXPENSE",null,null,null,null,{"$f":"+Distribution!H526+Transmission!H526+Generation!H526+Retail!H526+Misc!H526","v":7374107.7510913704},{"$f":"+Distribution!I526+Transmission!I526+Generation!I526+Retail!I526+Misc!I526","v":6083973.4244886748},{"$f":"+Distribution!J526+Transmission!J526+Generation!J526+Retail!J526+Misc!J526","v":793767.89176360611},{"$f":"+Distribution!K526+Transmission!K526+Generation!K526+Retail!K526+Misc!K526","v":162960.10310938588},{"$f":"+Distribution!L526+Transmission!L526+Generation!L526+Retail!L526+Misc!L526","v":56893.233210711194},{"$f":"+Distribution!M526+Transmission!M526+Generation!M526+Retail!M526+Misc!M526","v":47805.048674031153},{"$f":"+Distribution!N526+Transmission!N526+Generation!N526+Retail!N526+Misc!N526","v":140080.60496523193},{"$f":"+Distribution!O526+Transmission!O526+Generation!O526+Retail!O526+Misc!O526","v":88627.444879729723},{"$f":"+Distribution!P526+Transmission!P526+Generation!P526+Retail!P526+Misc!P526","v":0},{"$f":"+Distribution!Q526+Transmission!Q526+Generation!Q526+Retail!Q526+Misc!Q526","v":0},{"$f":"ROUND(SUM(I526:Q526)-H526,0)","v":0}]
[527]
[528,null,null,null,null,null,null,"CUSTOMER SERVICE EXPENSE"]
[529]
[530,null,"A",null,"B","C",null,"D","E","F","G","H","I","J","K"]
[531,null,null,null,null,null,null,{"$f":"'Hot Sheet'!$H$10","v":"Washington"},null,{"$f":"'Hot Sheet'!$J$10","v":"Small General"},{"$f":"'Hot Sheet'!$K$10","v":"Large General"},{"$f":"'Hot Sheet'!$L$10","v":"Large General"},{"$f":"'Hot Sheet'!$M$10","v":"Large General"},{"$f":"'Hot Sheet'!$N$10","v":"Agricultural"},{"$f":"'Hot Sheet'!$O$10","v":"Street & Area"}]
[532,null,"FERC",null,null,"COS",null,{"$f":"'Hot Sheet'!$H$11","v":"Jurisdiction"},{"$f":"'Hot Sheet'!$I$11","v":"Residential"},{"$f":"'Hot Sheet'!$J$11","v":"Service"},{"$f":"'Hot Sheet'!$K$11","v":"Service <1,000 kW"},{"$f":"'Hot Sheet'!$L$11","v":"Service >1,000 kW"},{"$f":"'Hot Sheet'!$M$11","v":"Dedicated Facilities"},{"$f":"'Hot Sheet'!$N$11","v":"Pumping"},{"$f":"'Hot Sheet'!$O$11","v":"Lighting"}]
[533,null,"ACCT",null,"DESCRIPTION ","Factor",null,{"$f":"'Hot Sheet'!$H$12","v":"Normalized"},{"$f":"'Hot Sheet'!$I$12","v":"Schedule 16"},{"$f":"'Hot Sheet'!$J$12","v":"Schedule 24"},{"$f":"'Hot Sheet'!$K$12","v":"Schedule 36"},{"$f":"'Hot Sheet'!$L$12","v":"Schedule 48T"},{"$f":"'Hot Sheet'!$M$12","v":"Schedule 48T"},{"$f":"'Hot Sheet'!$N$12","v":"Schedule 40"},{"$f":"'Hot Sheet'!$O$12","v":"Sch. 15,51-54,57"}]
[{"$f":"+A533+1","v":534},null,null,null,null,"F40"]
[535,null,"907","Supervision",null,null,null,{"$f":"+Distribution!H534+Transmission!H534+Generation!H534+Retail!H534+Misc!H534","v":20658.756281480728},{"$f":"+Distribution!I534+Transmission!I534+Generation!I534+Retail!I534+Misc!I534","v":16276.525096394451},{"$f":"+Distribution!J534+Transmission!J534+Generation!J534+Retail!J534+Misc!J534","v":2910.0073558832864},{"$f":"+Distribution!K534+Transmission!K534+Generation!K534+Retail!K534+Misc!K534","v":163.00318954847853},{"$f":"+Distribution!L534+Transmission!L534+Generation!L534+Retail!L534+Misc!L534","v":9.0376528055844183},{"$f":"+Distribution!M534+Transmission!M534+Generation!M534+Retail!M534+Misc!M534","v":0.15605941268091508},{"$f":"+Distribution!N534+Transmission!N534+Generation!N534+Retail!N534+Misc!N534","v":820.87251070161324},{"$f":"+Distribution!O534+Transmission!O534+Generation!O534+Retail!O534+Misc!O534","v":479.1544167346363},{"$f":"+Distribution!P534+Transmission!P534+Generation!P534+Retail!P534+Misc!P534","v":0},{"$f":"+Distribution!Q534+Transmission!Q534+Generation!Q534+Retail!Q534+Misc!Q534","v":0},{"$f":"ROUND(SUM(I535:Q535)-H535,0)","v":0}]
[536,null,null,null,null,"F40"]
[537,null,"908","Customer Assistance",null,null,null,{"$f":"+Distribution!H536+Transmission!H536+Generation!H536+Retail!H536+Misc!H536","v":570553.46668870305},{"$f":"+Distribution!I536+Transmission!I536+Generation!I536+Retail!I536+Misc!I536","v":449525.0194571687},{"$f":"+Distribution!J536+Transmission!J536+Generation!J536+Retail!J536+Misc!J536","v":80368.574098393481},{"$f":"+Distribution!K536+Transmission!K536+Generation!K536+Retail!K536+Misc!K536","v":4501.8215816588454},{"$f":"+Distribution!L536+Transmission!L536+Generation!L536+Retail!L536+Misc!L536","v":249.60186705806282},{"$f":"+Distribution!M536+Transmission!M536+Generation!M536+Retail!M536+Misc!M536","v":4.3100483737405817},{"$f":"+Distribution!N536+Transmission!N536+Generation!N536+Retail!N536+Misc!N536","v":22670.854445875459},{"$f":"+Distribution!O536+Transmission!O536+Generation!O536+Retail!O536+Misc!O536","v":13233.285190174834},{"$f":"+Distribution!P536+Transmission!P536+Generation!P536+Retail!P536+Misc!P536","v":0},{"$f":"+Distribution!Q536+Transmission!Q536+Generation!Q536+Retail!Q536+Misc!Q536","v":0},{"$f":"ROUND(SUM(I537:Q537)-H537,0)","v":0}]
[538,null,null,null,null,"F40"]
[539,null,"909","Informational & Instructional Adv",null,null,null,{"$f":"+Distribution!H538+Transmission!H538+Generation!H538+Retail!H538+Misc!H538","v":311648.15496519883},{"$f":"+Distribution!I538+Transmission!I538+Generation!I538+Retail!I538+Misc!I538","v":245539.90310071598},{"$f":"+Distribution!J538+Transmission!J538+Generation!J538+Retail!J538+Misc!J538","v":43898.984577748284},{"$f":"+Distribution!K538+Transmission!K538+Generation!K538+Retail!K538+Misc!K538","v":2458.9884591341342},{"$f":"+Distribution!L538+Transmission!L538+Generation!L538+Retail!L538+Misc!L538","v":136.33772448350689},{"$f":"+Distribution!M538+Transmission!M538+Generation!M538+Retail!M538+Misc!M538","v":2.3542379494819108},{"$f":"+Distribution!N538+Transmission!N538+Generation!N538+Retail!N538+Misc!N538","v":12383.291614274851},{"$f":"+Distribution!O538+Transmission!O538+Generation!O538+Retail!O538+Misc!O538","v":7228.2952508926282},{"$f":"+Distribution!P538+Transmission!P538+Generation!P538+Retail!P538+Misc!P538","v":0},{"$f":"+Distribution!Q538+Transmission!Q538+Generation!Q538+Retail!Q538+Misc!Q538","v":0},{"$f":"ROUND(SUM(I539:Q539)-H539,0)","v":0}]
[540,null,null,null,null,"F40"]
[541,null,"910","Misc. Customer Service",null,null,null,{"$f":"+Distribution!H540+Transmission!H540+Generation!H540+Retail!H540+Misc!H540","v":8169.3380715107123},{"$f":"+Distribution!I540+Transmission!I540+Generation!I540+Retail!I540+Misc!I540","v":6436.4201953954298},{"$f":"+Distribution!J540+Transmission!J540+Generation!J540+Retail!J540+Misc!J540","v":1150.7388710570347},{"$f":"+Distribution!K540+Transmission!K540+Generation!K540+Retail!K540+Misc!K540","v":64.458292842623024},{"$f":"+Distribution!L540+Transmission!L540+Generation!L540+Retail!L540+Misc!L540","v":3.573866700191521},{"$f":"+Distribution!M540+Transmission!M540+Generation!M540+Retail!M540+Misc!M540","v":6.1712432445639065E-2},{"$f":"+Distribution!N540+Transmission!N540+Generation!N540+Retail!N540+Misc!N540","v":324.60739466406147},{"$f":"+Distribution!O540+Transmission!O540+Generation!O540+Retail!O540+Misc!O540","v":189.47773841892717},{"$f":"+Distribution!P540+Transmission!P540+Generation!P540+Retail!P540+Misc!P540","v":0},{"$f":"+Distribution!Q540+Transmission!Q540+Generation!Q540+Retail!Q540+Misc!Q540","v":0},{"$f":"ROUND(SUM(I541:Q541)-H541,0)","v":0}]
[542]
[543,null,"TOTAL CUSTOMER SERVICE EXPENSE",null,null,null,null,{"$f":"+Distribution!H542+Transmission!H542+Generation!H542+Retail!H542+Misc!H542","v":911029.71600689332},{"$f":"+Distribution!I542+Transmission!I542+Generation!I542+Retail!I542+Misc!I542","v":717777.86784967466},{"$f":"+Distribution!J542+Transmission!J542+Generation!J542+Retail!J542+Misc!J542","v":128328.30490308208},{"$f":"+Distribution!K542+Transmission!K542+Generation!K542+Retail!K542+Misc!K542","v":7188.2715231840821},{"$f":"+Distribution!L542+Transmission!L542+Generation!L542+Retail!L542+Misc!L542","v":398.55111104734567},{"$f":"+Distribution!M542+Transmission!M542+Generation!M542+Retail!M542+Misc!M542","v":6.8820581683490465},{"$f":"+Distribution!N542+Transmission!N542+Generation!N542+Retail!N542+Misc!N542","v":36199.625965515988},{"$f":"+Distribution!O542+Transmission!O542+Generation!O542+Retail!O542+Misc!O542","v":21130.212596221023},{"$f":"+Distribution!P542+Transmission!P542+Generation!P542+Retail!P542+Misc!P542","v":0},{"$f":"+Distribution!Q542+Transmission!Q542+Generation!Q542+Retail!Q542+Misc!Q542","v":0},{"$f":"ROUND(SUM(I543:Q543)-H543,0)","v":0}]
[544]
[545]
[546,null,null,null,null,null,null,"SALES EXPENSE"]
[547]
[548,null,"911","Supervision",null,"F40",null,{"$f":"+Distribution!H548+Transmission!H548+Generation!H548+Retail!H548+Misc!H548","v":0},{"$f":"+Distribution!I548+Transmission!I548+Generation!I548+Retail!I548+Misc!I548","v":0},{"$f":"+Distribution!J548+Transmission!J548+Generation!J548+Retail!J548+Misc!J548","v":0},{"$f":"+Distribution!K548+Transmission!K548+Generation!K548+Retail!K548+Misc!K548","v":0},{"$f":"+Distribution!L548+Transmission!L548+Generation!L548+Retail!L548+Misc!L548","v":0},{"$f":"+Distribution!M548+Transmission!M548+Generation!M548+Retail!M548+Misc!M548","v":0},{"$f":"+Distribution!N548+Transmission!N548+Generation!N548+Retail!N548+Misc!N548","v":0},{"$f":"+Distribution!O548+Transmission!O548+Generation!O548+Retail!O548+Misc!O548","v":0},{"$f":"+Distribution!P548+Transmission!P548+Generation!P548+Retail!P548+Misc!P548","v":0},{"$f":"+Distribution!Q548+Transmission!Q548+Generation!Q548+Retail!Q548+Misc!Q548","v":0},{"$f":"ROUND(SUM(I548:Q548)-H548,0)","v":0}]
[549]
[550,null,"912","Demonstration & Selling Expense",null,"F40",null,{"$f":"+Distribution!H550+Transmission!H550+Generation!H550+Retail!H550+Misc!H550","v":0},{"$f":"+Distribution!I550+Transmission!I550+Generation!I550+Retail!I550+Misc!I550","v":0},{"$f":"+Distribution!J550+Transmission!J550+Generation!J550+Retail!J550+Misc!J550","v":0},{"$f":"+Distribution!K550+Transmission!K550+Generation!K550+Retail!K550+Misc!K550","v":0},{"$f":"+Distribution!L550+Transmission!L550+Generation!L550+Retail!L550+Misc!L550","v":0},{"$f":"+Distribution!M550+Transmission!M550+Generation!M550+Retail!M550+Misc!M550","v":0},{"$f":"+Distribution!N550+Transmission!N550+Generation!N550+Retail!N550+Misc!N550","v":0},{"$f":"+Distribution!O550+Transmission!O550+Generation!O550+Retail!O550+Misc!O550","v":0},{"$f":"+Distribution!P550+Transmission!P550+Generation!P550+Retail!P550+Misc!P550","v":0},{"$f":"+Distribution!Q550+Transmission!Q550+Generation!Q550+Retail!Q550+Misc!Q550","v":0},{"$f":"ROUND(SUM(I550:Q550)-H550,0)","v":0}]
[551]
[552,null,"913","Advertising Expense",null,"F40",null,{"$f":"+Distribution!H552+Transmission!H552+Generation!H552+Retail!H552+Misc!H552","v":0},{"$f":"+Distribution!I552+Transmission!I552+Generation!I552+Retail!I552+Misc!I552","v":0},{"$f":"+Distribution!J552+Transmission!J552+Generation!J552+Retail!J552+Misc!J552","v":0},{"$f":"+Distribution!K552+Transmission!K552+Generation!K552+Retail!K552+Misc!K552","v":0},{"$f":"+Distribution!L552+Transmission!L552+Generation!L552+Retail!L552+Misc!L552","v":0},{"$f":"+Distribution!M552+Transmission!M552+Generation!M552+Retail!M552+Misc!M552","v":0},{"$f":"+Distribution!N552+Transmission!N552+Generation!N552+Retail!N552+Misc!N552","v":0},{"$f":"+Distribution!O552+Transmission!O552+Generation!O552+Retail!O552+Misc!O552","v":0},{"$f":"+Distribution!P552+Transmission!P552+Generation!P552+Retail!P552+Misc!P552","v":0},{"$f":"+Distribution!Q552+Transmission!Q552+Generation!Q552+Retail!Q552+Misc!Q552","v":0},{"$f":"ROUND(SUM(I552:Q552)-H552,0)","v":0}]
[553]
[554,null,"916","Misc. Sales Expense",null,"F40",null,{"$f":"+Distribution!H554+Transmission!H554+Generation!H554+Retail!H554+Misc!H554","v":0},{"$f":"+Distribution!I554+Transmission!I554+Generation!I554+Retail!I554+Misc!I554","v":0},{"$f":"+Distribution!J554+Transmission!J554+Generation!J554+Retail!J554+Misc!J554","v":0},{"$f":"+Distribution!K554+Transmission!K554+Generation!K554+Retail!K554+Misc!K554","v":0},{"$f":"+Distribution!L554+Transmission!L554+Generation!L554+Retail!L554+Misc!L554","v":0},{"$f":"+Distribution!M554+Transmission!M554+Generation!M554+Retail!M554+Misc!M554","v":0},{"$f":"+Distribution!N554+Transmission!N554+Generation!N554+Retail!N554+Misc!N554","v":0},{"$f":"+Distribution!O554+Transmission!O554+Generation!O554+Retail!O554+Misc!O554","v":0},{"$f":"+Distribution!P554+Transmission!P554+Generation!P554+Retail!P554+Misc!P554","v":0},{"$f":"+Distribution!Q554+Transmission!Q554+Generation!Q554+Retail!Q554+Misc!Q554","v":0},{"$f":"ROUND(SUM(I554:Q554)-H554,0)","v":0}]
[555]
[556,null,"TOTAL SALES EXPENSE",null,null,null,null,{"$f":"+Distribution!H556+Transmission!H556+Generation!H556+Retail!H556+Misc!H556","v":0},{"$f":"+Distribution!I556+Transmission!I556+Generation!I556+Retail!I556+Misc!I556","v":0},{"$f":"+Distribution!J556+Transmission!J556+Generation!J556+Retail!J556+Misc!J556","v":0},{"$f":"+Distribution!K556+Transmission!K556+Generation!K556+Retail!K556+Misc!K556","v":0},{"$f":"+Distribution!L556+Transmission!L556+Generation!L556+Retail!L556+Misc!L556","v":0},{"$f":"+Distribution!M556+Transmission!M556+Generation!M556+Retail!M556+Misc!M556","v":0},{"$f":"+Distribution!N556+Transmission!N556+Generation!N556+Retail!N556+Misc!N556","v":0},{"$f":"+Distribution!O556+Transmission!O556+Generation!O556+Retail!O556+Misc!O556","v":0},{"$f":"+Distribution!P556+Transmission!P556+Generation!P556+Retail!P556+Misc!P556","v":0},{"$f":"+Distribution!Q556+Transmission!Q556+Generation!Q556+Retail!Q556+Misc!Q556","v":0},{"$f":"ROUND(SUM(I556:Q556)-H556,0)","v":0}]
[557]
[558]
[559,null,null,null,null,null,null,"ADMINISTRATION & GENERAL EXPENSE"]
[560]
[561]
[562,null,"920","Administrative & General Salaries",null,{"$f":"IF(Function=\"gen\",\"F102G\",IF(Function=\"TRN\",\"F102T\",IF(Function=\"DIS\",\"F102D\",IF(Function=\"RETAIL\",\"F102R\",IF(Function=\"MISC\",\"F102M\",\"ERR\")))))","v":"F102D"},null,{"$f":"+Distribution!H562+Transmission!H562+Generation!H562+Retail!H562+Misc!H562","v":4964684.1731721684},{"$f":"+Distribution!I562+Transmission!I562+Generation!I562+Retail!I562+Misc!I562","v":2351364.0152028785},{"$f":"+Distribution!J562+Transmission!J562+Generation!J562+Retail!J562+Misc!J562","v":692187.18487959215},{"$f":"+Distribution!K562+Transmission!K562+Generation!K562+Retail!K562+Misc!K562","v":954482.22709594457},{"$f":"+Distribution!L562+Transmission!L562+Generation!L562+Retail!L562+Misc!L562","v":367695.47922807152},{"$f":"+Distribution!M562+Transmission!M562+Generation!M562+Retail!M562+Misc!M562","v":376011.60740722588},{"$f":"+Distribution!N562+Transmission!N562+Generation!N562+Retail!N562+Misc!N562","v":194938.88721389201},{"$f":"+Distribution!O562+Transmission!O562+Generation!O562+Retail!O562+Misc!O562","v":28004.772144564384},{"$f":"+Distribution!P562+Transmission!P562+Generation!P562+Retail!P562+Misc!P562","v":0},{"$f":"+Distribution!Q562+Transmission!Q562+Generation!Q562+Retail!Q562+Misc!Q562","v":0},{"$f":"ROUND(SUM(I562:Q562)-H562,0)","v":0}]
[563,null,null,null,"Customer - System","F42",null,{"$f":"+Distribution!H563+Transmission!H563+Generation!H563+Retail!H563+Misc!H563","v":0},{"$f":"+Distribution!I563+Transmission!I563+Generation!I563+Retail!I563+Misc!I563","v":0},{"$f":"+Distribution!J563+Transmission!J563+Generation!J563+Retail!J563+Misc!J563","v":0},{"$f":"+Distribution!K563+Transmission!K563+Generation!K563+Retail!K563+Misc!K563","v":0},{"$f":"+Distribution!L563+Transmission!L563+Generation!L563+Retail!L563+Misc!L563","v":0},{"$f":"+Distribution!M563+Transmission!M563+Generation!M563+Retail!M563+Misc!M563","v":0},{"$f":"+Distribution!N563+Transmission!N563+Generation!N563+Retail!N563+Misc!N563","v":0},{"$f":"+Distribution!O563+Transmission!O563+Generation!O563+Retail!O563+Misc!O563","v":0},{"$f":"+Distribution!P563+Transmission!P563+Generation!P563+Retail!P563+Misc!P563","v":0},{"$f":"+Distribution!Q563+Transmission!Q563+Generation!Q563+Retail!Q563+Misc!Q563","v":0},{"$f":"ROUND(SUM(I563:Q563)-H563,0)","v":0}]
[564,null,null,null,{"$f":"D562","v":"Administrative & General Salaries"},null,null,{"$f":"+Distribution!H564+Transmission!H564+Generation!H564+Retail!H564+Misc!H564","v":4964684.1731721684},{"$f":"+Distribution!I564+Transmission!I564+Generation!I564+Retail!I564+Misc!I564","v":2351364.0152028785},{"$f":"+Distribution!J564+Transmission!J564+Generation!J564+Retail!J564+Misc!J564","v":692187.18487959215},{"$f":"+Distribution!K564+Transmission!K564+Generation!K564+Retail!K564+Misc!K564","v":954482.22709594457},{"$f":"+Distribution!L564+Transmission!L564+Generation!L564+Retail!L564+Misc!L564","v":367695.47922807152},{"$f":"+Distribution!M564+Transmission!M564+Generation!M564+Retail!M564+Misc!M564","v":376011.60740722588},{"$f":"+Distribution!N564+Transmission!N564+Generation!N564+Retail!N564+Misc!N564","v":194938.88721389201},{"$f":"+Distribution!O564+Transmission!O564+Generation!O564+Retail!O564+Misc!O564","v":28004.772144564384},{"$f":"+Distribution!P564+Transmission!P564+Generation!P564+Retail!P564+Misc!P564","v":0},{"$f":"+Distribution!Q564+Transmission!Q564+Generation!Q564+Retail!Q564+Misc!Q564","v":0},{"$f":"ROUND(SUM(I564:Q564)-H564,0)","v":0}]
[565]
[566,null,"921","Office Supplies & expenses",null,{"$f":"IF(Function=\"gen\",\"F102G\",IF(Function=\"TRN\",\"F102T\",IF(Function=\"DIS\",\"F102D\",IF(Function=\"RETAIL\",\"F102R\",IF(Function=\"MISC\",\"F102M\",\"ERR\")))))","v":"F102D"},null,{"$f":"+Distribution!H566+Transmission!H566+Generation!H566+Retail!H566+Misc!H566","v":-1105014.7761814166},{"$f":"+Distribution!I566+Transmission!I566+Generation!I566+Retail!I566+Misc!I566","v":-523354.93867282104},{"$f":"+Distribution!J566+Transmission!J566+Generation!J566+Retail!J566+Misc!J566","v":-154063.59004839807},{"$f":"+Distribution!K566+Transmission!K566+Generation!K566+Retail!K566+Misc!K566","v":-212443.91944264545},{"$f":"+Distribution!L566+Transmission!L566+Generation!L566+Retail!L566+Misc!L566","v":-81839.83583038603},{"$f":"+Distribution!M566+Transmission!M566+Generation!M566+Retail!M566+Misc!M566","v":-83690.798388737996},{"$f":"+Distribution!N566+Transmission!N566+Generation!N566+Retail!N566+Misc!N566","v":-43388.530530850971},{"$f":"+Distribution!O566+Transmission!O566+Generation!O566+Retail!O566+Misc!O566","v":-6233.1632675769433},{"$f":"+Distribution!P566+Transmission!P566+Generation!P566+Retail!P566+Misc!P566","v":0},{"$f":"+Distribution!Q566+Transmission!Q566+Generation!Q566+Retail!Q566+Misc!Q566","v":0},{"$f":"ROUND(SUM(I566:Q566)-H566,0)","v":0}]
[567,null,null,null,"Customer - System","F42",null,{"$f":"+Distribution!H567+Transmission!H567+Generation!H567+Retail!H567+Misc!H567","v":4927.3228122879218},{"$f":"+Distribution!I567+Transmission!I567+Generation!I567+Retail!I567+Misc!I567","v":3975.70322160363},{"$f":"+Distribution!J567+Transmission!J567+Generation!J567+Retail!J567+Misc!J567","v":675.25834129831242},{"$f":"+Distribution!K567+Transmission!K567+Generation!K567+Retail!K567+Misc!K567","v":41.009605615513223},{"$f":"+Distribution!L567+Transmission!L567+Generation!L567+Retail!L567+Misc!L567","v":8.4107145639263656},{"$f":"+Distribution!M567+Transmission!M567+Generation!M567+Retail!M567+Misc!M567","v":0.14523363569157269},{"$f":"+Distribution!N567+Transmission!N567+Generation!N567+Retail!N567+Misc!N567","v":120.29090233347966},{"$f":"+Distribution!O567+Transmission!O567+Generation!O567+Retail!O567+Misc!O567","v":106.50479323736828},{"$f":"+Distribution!P567+Transmission!P567+Generation!P567+Retail!P567+Misc!P567","v":0},{"$f":"+Distribution!Q567+Transmission!Q567+Generation!Q567+Retail!Q567+Misc!Q567","v":0},{"$f":"ROUND(SUM(I567:Q567)-H567,0)","v":0}]
[568,null,null,null,{"$f":"D566","v":"Office Supplies & expenses"},null,null,{"$f":"+Distribution!H568+Transmission!H568+Generation!H568+Retail!H568+Misc!H568","v":-1100087.4533691288},{"$f":"+Distribution!I568+Transmission!I568+Generation!I568+Retail!I568+Misc!I568","v":-519379.23545121739},{"$f":"+Distribution!J568+Transmission!J568+Generation!J568+Retail!J568+Misc!J568","v":-153388.33170709974},{"$f":"+Distribution!K568+Transmission!K568+Generation!K568+Retail!K568+Misc!K568","v":-212402.90983702993},{"$f":"+Distribution!L568+Transmission!L568+Generation!L568+Retail!L568+Misc!L568","v":-81831.425115822101},{"$f":"+Distribution!M568+Transmission!M568+Generation!M568+Retail!M568+Misc!M568","v":-83690.653155102307},{"$f":"+Distribution!N568+Transmission!N568+Generation!N568+Retail!N568+Misc!N568","v":-43268.239628517491},{"$f":"+Distribution!O568+Transmission!O568+Generation!O568+Retail!O568+Misc!O568","v":-6126.6584743395752},{"$f":"+Distribution!P568+Transmission!P568+Generation!P568+Retail!P568+Misc!P568","v":0},{"$f":"+Distribution!Q568+Transmission!Q568+Generation!Q568+Retail!Q568+Misc!Q568","v":0},{"$f":"ROUND(SUM(I568:Q568)-H568,0)","v":0}]
[569]
[570,null,"923","Outside Services",null,{"$f":"IF(Function=\"gen\",\"F102G\",IF(Function=\"TRN\",\"F102T\",IF(Function=\"DIS\",\"F102D\",IF(Function=\"RETAIL\",\"F102R\",IF(Function=\"MISC\",\"F102M\",\"ERR\")))))","v":"F102D"},null,{"$f":"+Distribution!H570+Transmission!H570+Generation!H570+Retail!H570+Misc!H570","v":469369.66866175726},{"$f":"+Distribution!I570+Transmission!I570+Generation!I570+Retail!I570+Misc!I570","v":222301.9451434259},{"$f":"+Distribution!J570+Transmission!J570+Generation!J570+Retail!J570+Misc!J570","v":65440.55135963668},{"$f":"+Distribution!K570+Transmission!K570+Generation!K570+Retail!K570+Misc!K570","v":90238.369863778935},{"$f":"+Distribution!L570+Transmission!L570+Generation!L570+Retail!L570+Misc!L570","v":34762.554723281282},{"$f":"+Distribution!M570+Transmission!M570+Generation!M570+Retail!M570+Misc!M570","v":35548.775596925363},{"$f":"+Distribution!N570+Transmission!N570+Generation!N570+Retail!N570+Misc!N570","v":18429.853281566058},{"$f":"+Distribution!O570+Transmission!O570+Generation!O570+Retail!O570+Misc!O570","v":2647.6186931430721},{"$f":"+Distribution!P570+Transmission!P570+Generation!P570+Retail!P570+Misc!P570","v":0},{"$f":"+Distribution!Q570+Transmission!Q570+Generation!Q570+Retail!Q570+Misc!Q570","v":0},{"$f":"ROUND(SUM(I570:Q570)-H570,0)","v":0}]
[571,null,null,null,"Customer - System","F42",null,{"$f":"+Distribution!H571+Transmission!H571+Generation!H571+Retail!H571+Misc!H571","v":-131959.05691119199},{"$f":"+Distribution!I571+Transmission!I571+Generation!I571+Retail!I571+Misc!I571","v":-106473.65063503914},{"$f":"+Distribution!J571+Transmission!J571+Generation!J571+Retail!J571+Misc!J571","v":-18084.151837367845},{"$f":"+Distribution!K571+Transmission!K571+Generation!K571+Retail!K571+Misc!K571","v":-1098.2817825183786},{"$f":"+Distribution!L571+Transmission!L571+Generation!L571+Retail!L571+Misc!L571","v":-225.24807163783137},{"$f":"+Distribution!M571+Transmission!M571+Generation!M571+Retail!M571+Misc!M571","v":-3.889514514829334},{"$f":"+Distribution!N571+Transmission!N571+Generation!N571+Retail!N571+Misc!N571","v":-3221.5210230059379},{"$f":"+Distribution!O571+Transmission!O571+Generation!O571+Retail!O571+Misc!O571","v":-2852.3140471080164},{"$f":"+Distribution!P571+Transmission!P571+Generation!P571+Retail!P571+Misc!P571","v":0},{"$f":"+Distribution!Q571+Transmission!Q571+Generation!Q571+Retail!Q571+Misc!Q571","v":0},{"$f":"ROUND(SUM(I571:Q571)-H571,0)","v":0}]
[572,null,null,null,{"$f":"D570","v":"Outside Services"},null,null,{"$f":"+Distribution!H572+Transmission!H572+Generation!H572+Retail!H572+Misc!H572","v":337410.61175056529},{"$f":"+Distribution!I572+Transmission!I572+Generation!I572+Retail!I572+Misc!I572","v":115828.29450838675},{"$f":"+Distribution!J572+Transmission!J572+Generation!J572+Retail!J572+Misc!J572","v":47356.399522268839},{"$f":"+Distribution!K572+Transmission!K572+Generation!K572+Retail!K572+Misc!K572","v":89140.088081260546},{"$f":"+Distribution!L572+Transmission!L572+Generation!L572+Retail!L572+Misc!L572","v":34537.306651643448},{"$f":"+Distribution!M572+Transmission!M572+Generation!M572+Retail!M572+Misc!M572","v":35544.886082410536},{"$f":"+Distribution!N572+Transmission!N572+Generation!N572+Retail!N572+Misc!N572","v":15208.332258560118},{"$f":"+Distribution!O572+Transmission!O572+Generation!O572+Retail!O572+Misc!O572","v":-204.69535396494439},{"$f":"+Distribution!P572+Transmission!P572+Generation!P572+Retail!P572+Misc!P572","v":0},{"$f":"+Distribution!Q572+Transmission!Q572+Generation!Q572+Retail!Q572+Misc!Q572","v":0},{"$f":"ROUND(SUM(I572:Q572)-H572,0)","v":0}]
[573]
[574,null,"924","Property Insurance",null,{"$f":"IF(Function=\"gen\",\"F102G\",IF(Function=\"TRN\",\"F102T\",IF(Function=\"DIS\",\"F102D\",IF(Function=\"RETAIL\",\"F102R\",IF(Function=\"MISC\",\"F102M\",\"ERR\")))))","v":"F102D"},null,{"$f":"+Distribution!H574+Transmission!H574+Generation!H574+Retail!H574+Misc!H574","v":571302.85521328636},{"$f":"+Distribution!I574+Transmission!I574+Generation!I574+Retail!I574+Misc!I574","v":270579.34174146235},{"$f":"+Distribution!J574+Transmission!J574+Generation!J574+Retail!J574+Misc!J574","v":79652.300382098096},{"$f":"+Distribution!K574+Transmission!K574+Generation!K574+Retail!K574+Misc!K574","v":109835.47040855025},{"$f":"+Distribution!L574+Transmission!L574+Generation!L574+Retail!L574+Misc!L574","v":42311.95173847166},{"$f":"+Distribution!M574+Transmission!M574+Generation!M574+Retail!M574+Misc!M574","v":43268.916493398843},{"$f":"+Distribution!N574+Transmission!N574+Generation!N574+Retail!N574+Misc!N574","v":22432.271414001822},{"$f":"+Distribution!O574+Transmission!O574+Generation!O574+Retail!O574+Misc!O574","v":3222.6030353033511},{"$f":"+Distribution!P574+Transmission!P574+Generation!P574+Retail!P574+Misc!P574","v":0},{"$f":"+Distribution!Q574+Transmission!Q574+Generation!Q574+Retail!Q574+Misc!Q574","v":0},{"$f":"ROUND(SUM(I574:Q574)-H574,0)","v":0}]
[575]
[576,null,"925","Injuries & Damages",null,{"$f":"IF(Function=\"gen\",\"F102G\",IF(Function=\"TRN\",\"F102T\",IF(Function=\"DIS\",\"F102D\",IF(Function=\"RETAIL\",\"F102R\",IF(Function=\"MISC\",\"F102M\",\"ERR\")))))","v":"F102D"},null,{"$f":"+Distribution!H576+Transmission!H576+Generation!H576+Retail!H576+Misc!H576","v":672440.80841598194},{"$f":"+Distribution!I576+Transmission!I576+Generation!I576+Retail!I576+Misc!I576","v":318480.10147501493},{"$f":"+Distribution!J576+Transmission!J576+Generation!J576+Retail!J576+Misc!J576","v":93753.176222328504},{"$f":"+Distribution!K576+Transmission!K576+Generation!K576+Retail!K576+Misc!K576","v":129279.68386697733},{"$f":"+Distribution!L576+Transmission!L576+Generation!L576+Retail!L576+Misc!L576","v":49802.452014796443},{"$f":"+Distribution!M576+Transmission!M576+Generation!M576+Retail!M576+Misc!M576","v":50928.828589946934},{"$f":"+Distribution!N576+Transmission!N576+Generation!N576+Retail!N576+Misc!N576","v":26403.464618790687},{"$f":"+Distribution!O576+Transmission!O576+Generation!O576+Retail!O576+Misc!O576","v":3793.1016281271091},{"$f":"+Distribution!P576+Transmission!P576+Generation!P576+Retail!P576+Misc!P576","v":0},{"$f":"+Distribution!Q576+Transmission!Q576+Generation!Q576+Retail!Q576+Misc!Q576","v":0},{"$f":"ROUND(SUM(I576:Q576)-H576,0)","v":0}]
[577]
[578,null,"926","Employee Pensions & Benefits",null,{"$f":"IF(Function=\"gen\",\"F138G\",IF(Function=\"TRN\",\"F138T\",IF(Function=\"DIS\",\"F138D\",IF(Function=\"RETAIL\",\"F138R\",IF(Function=\"MISC\",\"F138M\",\"ERR\")))))","v":"F138D"},null,{"$f":"+Distribution!H578+Transmission!H578+Generation!H578+Retail!H578+Misc!H578","v":0},{"$f":"+Distribution!I578+Transmission!I578+Generation!I578+Retail!I578+Misc!I578","v":0},{"$f":"+Distribution!J578+Transmission!J578+Generation!J578+Retail!J578+Misc!J578","v":0},{"$f":"+Distribution!K578+Transmission!K578+Generation!K578+Retail!K578+Misc!K578","v":0},{"$f":"+Distribution!L578+Transmission!L578+Generation!L578+Retail!L578+Misc!L578","v":0},{"$f":"+Distribution!M578+Transmission!M578+Generation!M578+Retail!M578+Misc!M578","v":0},{"$f":"+Distribution!N578+Transmission!N578+Generation!N578+Retail!N578+Misc!N578","v":0},{"$f":"+Distribution!O578+Transmission!O578+Generation!O578+Retail!O578+Misc!O578","v":0},{"$f":"+Distribution!P578+Transmission!P578+Generation!P578+Retail!P578+Misc!P578","v":0},{"$f":"+Distribution!Q578+Transmission!Q578+Generation!Q578+Retail!Q578+Misc!Q578","v":0},{"$f":"ROUND(SUM(I578:Q578)-H578,0)","v":0}]
[579]
[580,null,"927","Franchise Requirements",null,"F102",null,{"$f":"+Distribution!H580+Transmission!H580+Generation!H580+Retail!H580+Misc!H580","v":0},{"$f":"+Distribution!I580+Transmission!I580+Generation!I580+Retail!I580+Misc!I580","v":0},{"$f":"+Distribution!J580+Transmission!J580+Generation!J580+Retail!J580+Misc!J580","v":0},{"$f":"+Distribution!K580+Transmission!K580+Generation!K580+Retail!K580+Misc!K580","v":0},{"$f":"+Distribution!L580+Transmission!L580+Generation!L580+Retail!L580+Misc!L580","v":0},{"$f":"+Distribution!M580+Transmission!M580+Generation!M580+Retail!M580+Misc!M580","v":0},{"$f":"+Distribution!N580+Transmission!N580+Generation!N580+Retail!N580+Misc!N580","v":0},{"$f":"+Distribution!O580+Transmission!O580+Generation!O580+Retail!O580+Misc!O580","v":0},{"$f":"+Distribution!P580+Transmission!P580+Generation!P580+Retail!P580+Misc!P580","v":0},{"$f":"+Distribution!Q580+Transmission!Q580+Generation!Q580+Retail!Q580+Misc!Q580","v":0},{"$f":"ROUND(SUM(I580:Q580)-H580,0)","v":0}]
[581]
[582,null,"928","Regulatory Commission Expense",null,"F141",null,{"$f":"+Distribution!H582+Transmission!H582+Generation!H582+Retail!H582+Misc!H582","v":2238133.891468164},{"$f":"+Distribution!I582+Transmission!I582+Generation!I582+Retail!I582+Misc!I582","v":991495.98351551394},{"$f":"+Distribution!J582+Transmission!J582+Generation!J582+Retail!J582+Misc!J582","v":334558.75133071968},{"$f":"+Distribution!K582+Transmission!K582+Generation!K582+Retail!K582+Misc!K582","v":452946.11820921721},{"$f":"+Distribution!L582+Transmission!L582+Generation!L582+Retail!L582+Misc!L582","v":170197.49609238634},{"$f":"+Distribution!M582+Transmission!M582+Generation!M582+Retail!M582+Misc!M582","v":184623.87594183453},{"$f":"+Distribution!N582+Transmission!N582+Generation!N582+Retail!N582+Misc!N582","v":91995.010357400824},{"$f":"+Distribution!O582+Transmission!O582+Generation!O582+Retail!O582+Misc!O582","v":12316.656021091552},{"$f":"+Distribution!P582+Transmission!P582+Generation!P582+Retail!P582+Misc!P582","v":0},{"$f":"+Distribution!Q582+Transmission!Q582+Generation!Q582+Retail!Q582+Misc!Q582","v":0},{"$f":"ROUND(SUM(I582:Q582)-H582,0)","v":0}]
[583]
[584,null,"929","Duplicate Charges",null,{"$f":"IF(Function=\"gen\",\"F138G\",IF(Function=\"TRN\",\"F138T\",IF(Function=\"DIS\",\"F138D\",IF(Function=\"RETAIL\",\"F138R\",IF(Function=\"MISC\",\"F138M\",\"ERR\")))))","v":"F138D"},null,{"$f":"+Distribution!H584+Transmission!H584+Generation!H584+Retail!H584+Misc!H584","v":-433966.34652951593},{"$f":"+Distribution!I584+Transmission!I584+Generation!I584+Retail!I584+Misc!I584","v":-230135.46642940864},{"$f":"+Distribution!J584+Transmission!J584+Generation!J584+Retail!J584+Misc!J584","v":-58948.94657515391},{"$f":"+Distribution!K584+Transmission!K584+Generation!K584+Retail!K584+Misc!K584","v":-69845.477062187725},{"$f":"+Distribution!L584+Transmission!L584+Generation!L584+Retail!L584+Misc!L584","v":-26842.503115820869},{"$f":"+Distribution!M584+Transmission!M584+Generation!M584+Retail!M584+Misc!M584","v":-26383.623170966042},{"$f":"+Distribution!N584+Transmission!N584+Generation!N584+Retail!N584+Misc!N584","v":-16916.515472895499},{"$f":"+Distribution!O584+Transmission!O584+Generation!O584+Retail!O584+Misc!O584","v":-4893.8147030832661},{"$f":"+Distribution!P584+Transmission!P584+Generation!P584+Retail!P584+Misc!P584","v":0},{"$f":"+Distribution!Q584+Transmission!Q584+Generation!Q584+Retail!Q584+Misc!Q584","v":0},{"$f":"ROUND(SUM(I584:Q584)-H584,0)","v":0}]
[585]
[586,null,"930","Misc General Expenses",null,{"$f":"IF(Function=\"gen\",\"F138G\",IF(Function=\"TRN\",\"F138T\",IF(Function=\"DIS\",\"F138D\",IF(Function=\"RETAIL\",\"F138R\",IF(Function=\"MISC\",\"F138M\",\"ERR\")))))","v":"F138D"},null,{"$f":"+Distribution!H586+Transmission!H586+Generation!H586+Retail!H586+Misc!H586","v":785028.30188359064},{"$f":"+Distribution!I586+Transmission!I586+Generation!I586+Retail!I586+Misc!I586","v":414604.93114473886},{"$f":"+Distribution!J586+Transmission!J586+Generation!J586+Retail!J586+Misc!J586","v":106709.39125078965},{"$f":"+Distribution!K586+Transmission!K586+Generation!K586+Retail!K586+Misc!K586","v":127181.4242814125},{"$f":"+Distribution!L586+Transmission!L586+Generation!L586+Retail!L586+Misc!L586","v":48897.243903876923},{"$f":"+Distribution!M586+Transmission!M586+Generation!M586+Retail!M586+Misc!M586","v":48218.346573951269},{"$f":"+Distribution!N586+Transmission!N586+Generation!N586+Retail!N586+Misc!N586","v":30634.331023836381},{"$f":"+Distribution!O586+Transmission!O586+Generation!O586+Retail!O586+Misc!O586","v":8782.6337049851209},{"$f":"+Distribution!P586+Transmission!P586+Generation!P586+Retail!P586+Misc!P586","v":0},{"$f":"+Distribution!Q586+Transmission!Q586+Generation!Q586+Retail!Q586+Misc!Q586","v":0},{"$f":"ROUND(SUM(I586:Q586)-H586,0)","v":0}]
[587]
[588,null,"931","Rents",null,{"$f":"IF(Function=\"gen\",\"F102G\",IF(Function=\"TRN\",\"F102T\",IF(Function=\"DIS\",\"F102D\",IF(Function=\"RETAIL\",\"F102R\",IF(Function=\"MISC\",\"F102M\",\"ERR\")))))","v":"F102D"},null,{"$f":"+Distribution!H588+Transmission!H588+Generation!H588+Retail!H588+Misc!H588","v":390806.60744720505},{"$f":"+Distribution!I588+Transmission!I588+Generation!I588+Retail!I588+Misc!I588","v":185093.06163331008},{"$f":"+Distribution!J588+Transmission!J588+Generation!J588+Retail!J588+Misc!J588","v":54487.116603105562},{"$f":"+Distribution!K588+Transmission!K588+Generation!K588+Retail!K588+Misc!K588","v":75134.278038411489},{"$f":"+Distribution!L588+Transmission!L588+Generation!L588+Retail!L588+Misc!L588","v":28944.00082633688},{"$f":"+Distribution!M588+Transmission!M588+Generation!M588+Retail!M588+Misc!M588","v":29598.624106978488},{"$f":"+Distribution!N588+Transmission!N588+Generation!N588+Retail!N588+Misc!N588","v":15345.065771407837},{"$f":"+Distribution!O588+Transmission!O588+Generation!O588+Retail!O588+Misc!O588","v":2204.4604676547378},{"$f":"+Distribution!P588+Transmission!P588+Generation!P588+Retail!P588+Misc!P588","v":0},{"$f":"+Distribution!Q588+Transmission!Q588+Generation!Q588+Retail!Q588+Misc!Q588","v":0},{"$f":"ROUND(SUM(I588:Q588)-H588,0)","v":0}]
[589]
[590,null,"935","Maintenance of General Plant",null,"F108",null,{"$f":"+Distribution!H590+Transmission!H590+Generation!H590+Retail!H590+Misc!H590","v":1566299.8788050255},{"$f":"+Distribution!I590+Transmission!I590+Generation!I590+Retail!I590+Misc!I590","v":743783.4834407767},{"$f":"+Distribution!J590+Transmission!J590+Generation!J590+Retail!J590+Misc!J590","v":217947.2675838604},{"$f":"+Distribution!K590+Transmission!K590+Generation!K590+Retail!K590+Misc!K590","v":299559.90490495891},{"$f":"+Distribution!L590+Transmission!L590+Generation!L590+Retail!L590+Misc!L590","v":115554.6394327754},{"$f":"+Distribution!M590+Transmission!M590+Generation!M590+Retail!M590+Misc!M590","v":119692.85959305508},{"$f":"+Distribution!N590+Transmission!N590+Generation!N590+Retail!N590+Misc!N590","v":60908.35046738918},{"$f":"+Distribution!O590+Transmission!O590+Generation!O590+Retail!O590+Misc!O590","v":8853.3733822094928},{"$f":"+Distribution!P590+Transmission!P590+Generation!P590+Retail!P590+Misc!P590","v":0},{"$f":"+Distribution!Q590+Transmission!Q590+Generation!Q590+Retail!Q590+Misc!Q590","v":0},{"$f":"ROUND(SUM(I590:Q590)-H590,0)","v":0}]
[591]
[592,null,"TOTAL ADMINISTRATIVE & GEN EXPENSE",null,null,null,null,{"$f":"+Distribution!H592+Transmission!H592+Generation!H592+Retail!H592+Misc!H592","v":9992053.3282573428},{"$f":"+Distribution!I592+Transmission!I592+Generation!I592+Retail!I592+Misc!I592","v":4641714.5107814558},{"$f":"+Distribution!J592+Transmission!J592+Generation!J592+Retail!J592+Misc!J592","v":1414314.3094925091},{"$f":"+Distribution!K592+Transmission!K592+Generation!K592+Retail!K592+Misc!K592","v":1955310.8079875151},{"$f":"+Distribution!L592+Transmission!L592+Generation!L592+Retail!L592+Misc!L592","v":749266.64165671554},{"$f":"+Distribution!M592+Transmission!M592+Generation!M592+Retail!M592+Misc!M592","v":777813.66846273316},{"$f":"+Distribution!N592+Transmission!N592+Generation!N592+Retail!N592+Misc!N592","v":397680.95802386588},{"$f":"+Distribution!O592+Transmission!O592+Generation!O592+Retail!O592+Misc!O592","v":55952.431852547954},{"$f":"+Distribution!P592+Transmission!P592+Generation!P592+Retail!P592+Misc!P592","v":0},{"$f":"+Distribution!Q592+Transmission!Q592+Generation!Q592+Retail!Q592+Misc!Q592","v":0},{"$f":"ROUND(SUM(I592:Q592)-H592,0)","v":0}]
[593]
[594]
[595,null,"TOTAL O & M EXPENSE",null,null,null,null,{"$f":"+Distribution!H595+Transmission!H595+Generation!H595+Retail!H595+Misc!H595","v":217526010.15460244},{"$f":"+Distribution!I595+Transmission!I595+Generation!I595+Retail!I595+Misc!I595","v":97622759.806040689},{"$f":"+Distribution!J595+Transmission!J595+Generation!J595+Retail!J595+Misc!J595","v":29373033.778226309},{"$f":"+Distribution!K595+Transmission!K595+Generation!K595+Retail!K595+Misc!K595","v":43886720.013314724},{"$f":"+Distribution!L595+Transmission!L595+Generation!L595+Retail!L595+Misc!L595","v":17255424.608427092},{"$f":"+Distribution!M595+Transmission!M595+Generation!M595+Retail!M595+Misc!M595","v":20641897.30835925},{"$f":"+Distribution!N595+Transmission!N595+Generation!N595+Retail!N595+Misc!N595","v":7853711.5771936113},{"$f":"+Distribution!O595+Transmission!O595+Generation!O595+Retail!O595+Misc!O595","v":892463.0630407359},{"$f":"+Distribution!P595+Transmission!P595+Generation!P595+Retail!P595+Misc!P595","v":0},{"$f":"+Distribution!Q595+Transmission!Q595+Generation!Q595+Retail!Q595+Misc!Q595","v":0},{"$f":"ROUND(SUM(I595:Q595)-H595,0)","v":0}]
[596]
[597,null,null,null,null,null,null,"DEPRECIATION EXPENSE"]
[598]
[599,null,"A",null,"B","C",null,"D","E","F","G","H","I","J","K","L","M"]
[{"$f":"+A599+1","v":600},null,null,null,null,null,null,{"$f":"'Hot Sheet'!$H$10","v":"Washington"},null,{"$f":"'Hot Sheet'!$J$10","v":"Small General"},{"$f":"'Hot Sheet'!$K$10","v":"Large General"},{"$f":"'Hot Sheet'!$L$10","v":"Large General"},{"$f":"'Hot Sheet'!$M$10","v":"Large General"},{"$f":"'Hot Sheet'!$N$10","v":"Agricultural"},{"$f":"'Hot Sheet'!$O$10","v":"Street & Area"}]
[601,null,"FERC",null,null,"COS",null,{"$f":"'Hot Sheet'!$H$11","v":"Jurisdiction"},{"$f":"'Hot Sheet'!$I$11","v":"Residential"},{"$f":"'Hot Sheet'!$J$11","v":"Service"},{"$f":"'Hot Sheet'!$K$11","v":"Service <1,000 kW"},{"$f":"'Hot Sheet'!$L$11","v":"Service >1,000 kW"},{"$f":"'Hot Sheet'!$M$11","v":"Dedicated Facilities"},{"$f":"'Hot Sheet'!$N$11","v":"Pumping"},{"$f":"'Hot Sheet'!$O$11","v":"Lighting"}]
[602,null,"ACCT",null,"DESCRIPTION ","Factor",null,{"$f":"'Hot Sheet'!$H$12","v":"Normalized"},{"$f":"'Hot Sheet'!$I$12","v":"Schedule 16"},{"$f":"'Hot Sheet'!$J$12","v":"Schedule 24"},{"$f":"'Hot Sheet'!$K$12","v":"Schedule 36"},{"$f":"'Hot Sheet'!$L$12","v":"Schedule 48T"},{"$f":"'Hot Sheet'!$M$12","v":"Schedule 48T"},{"$f":"'Hot Sheet'!$N$12","v":"Schedule 40"},{"$f":"'Hot Sheet'!$O$12","v":"Sch. 15,51-54,57"}]
[603,null,"403SP","Steam Depreciation",null,{"$f":"IF(Classification=\"DEMAND\",\"F12\",IF(Classification=\"ENERGY\",\"F30\",\"F10\"))","v":"F10"},null,{"$f":"+Distribution!H603+Transmission!H603+Generation!H603+Retail!H603+Misc!H603","v":657177.9961168766},{"$f":"+Distribution!I603+Transmission!I603+Generation!I603+Retail!I603+Misc!I603","v":278824.20880288124},{"$f":"+Distribution!J603+Transmission!J603+Generation!J603+Retail!J603+Misc!J603","v":88686.721731349564},{"$f":"+Distribution!K603+Transmission!K603+Generation!K603+Retail!K603+Misc!K603","v":140516.45408596625},{"$f":"+Distribution!L603+Transmission!L603+Generation!L603+Retail!L603+Misc!L603","v":55526.640248901109},{"$f":"+Distribution!M603+Transmission!M603+Generation!M603+Retail!M603+Misc!M603","v":68651.778289705209},{"$f":"+Distribution!N603+Transmission!N603+Generation!N603+Retail!N603+Misc!N603","v":23395.592613897257},{"$f":"+Distribution!O603+Transmission!O603+Generation!O603+Retail!O603+Misc!O603","v":1576.6003441759776},{"$f":"+Distribution!P603+Transmission!P603+Generation!P603+Retail!P603+Misc!P603","v":0},{"$f":"+Distribution!Q603+Transmission!Q603+Generation!Q603+Retail!Q603+Misc!Q603","v":0},{"$f":"ROUND(SUM(I603:Q603)-H603,0)","v":0}]
[604,null,null,null,"JBG","F10",null,{"$f":"+Distribution!H604+Transmission!H604+Generation!H604+Retail!H604+Misc!H604","v":6980936.8357505603},{"$f":"+Distribution!I604+Transmission!I604+Generation!I604+Retail!I604+Misc!I604","v":2961837.1300199004},{"$f":"+Distribution!J604+Transmission!J604+Generation!J604+Retail!J604+Misc!J604","v":942083.28068584693},{"$f":"+Distribution!K604+Transmission!K604+Generation!K604+Retail!K604+Misc!K604","v":1492649.6263628984},{"$f":"+Distribution!L604+Transmission!L604+Generation!L604+Retail!L604+Misc!L604","v":589837.10740382923},{"$f":"+Distribution!M604+Transmission!M604+Generation!M604+Retail!M604+Misc!M604","v":729260.1559002141},{"$f":"+Distribution!N604+Transmission!N604+Generation!N604+Retail!N604+Misc!N604","v":248521.94570970192},{"$f":"+Distribution!O604+Transmission!O604+Generation!O604+Retail!O604+Misc!O604","v":16747.589668169127},{"$f":"+Distribution!P604+Transmission!P604+Generation!P604+Retail!P604+Misc!P604","v":0},{"$f":"+Distribution!Q604+Transmission!Q604+Generation!Q604+Retail!Q604+Misc!Q604","v":0},{"$f":"ROUND(SUM(I604:Q604)-H604,0)","v":0}]
[605,null,null,null,"Total 403SP",null,null,{"$f":"+Distribution!H605+Transmission!H605+Generation!H605+Retail!H605+Misc!H605","v":7638114.8318674369},{"$f":"+Distribution!I605+Transmission!I605+Generation!I605+Retail!I605+Misc!I605","v":3240661.3388227816},{"$f":"+Distribution!J605+Transmission!J605+Generation!J605+Retail!J605+Misc!J605","v":1030770.0024171965},{"$f":"+Distribution!K605+Transmission!K605+Generation!K605+Retail!K605+Misc!K605","v":1633166.0804488647},{"$f":"+Distribution!L605+Transmission!L605+Generation!L605+Retail!L605+Misc!L605","v":645363.74765273032},{"$f":"+Distribution!M605+Transmission!M605+Generation!M605+Retail!M605+Misc!M605","v":797911.93418991927},{"$f":"+Distribution!N605+Transmission!N605+Generation!N605+Retail!N605+Misc!N605","v":271917.53832359915},{"$f":"+Distribution!O605+Transmission!O605+Generation!O605+Retail!O605+Misc!O605","v":18324.190012345105},{"$f":"+Distribution!P605+Transmission!P605+Generation!P605+Retail!P605+Misc!P605","v":0},{"$f":"+Distribution!Q605+Transmission!Q605+Generation!Q605+Retail!Q605+Misc!Q605","v":0},{"$f":"ROUND(SUM(I605:Q605)-H605,0)","v":0}]
[606]
[607,null,"403NP","Nuclear Depreciation",null,{"$f":"IF(Classification=\"DEMAND\",\"F12\",IF(Classification=\"ENERGY\",\"F30\",\"F10\"))","v":"F10"},null,{"$f":"+Distribution!H607+Transmission!H607+Generation!H607+Retail!H607+Misc!H607","v":0},{"$f":"+Distribution!I607+Transmission!I607+Generation!I607+Retail!I607+Misc!I607","v":0},{"$f":"+Distribution!J607+Transmission!J607+Generation!J607+Retail!J607+Misc!J607","v":0},{"$f":"+Distribution!K607+Transmission!K607+Generation!K607+Retail!K607+Misc!K607","v":0},{"$f":"+Distribution!L607+Transmission!L607+Generation!L607+Retail!L607+Misc!L607","v":0},{"$f":"+Distribution!M607+Transmission!M607+Generation!M607+Retail!M607+Misc!M607","v":0},{"$f":"+Distribution!N607+Transmission!N607+Generation!N607+Retail!N607+Misc!N607","v":0},{"$f":"+Distribution!O607+Transmission!O607+Generation!O607+Retail!O607+Misc!O607","v":0},{"$f":"+Distribution!P607+Transmission!P607+Generation!P607+Retail!P607+Misc!P607","v":0},{"$f":"+Distribution!Q607+Transmission!Q607+Generation!Q607+Retail!Q607+Misc!Q607","v":0},{"$f":"ROUND(SUM(I607:Q607)-H607,0)","v":0}]
[608]
[609,null,"403HP","Hydro Depreciation",null,{"$f":"IF(Classification=\"DEMAND\",\"F12\",IF(Classification=\"ENERGY\",\"F30\",\"F10\"))","v":"F10"},null,{"$f":"+Distribution!H609+Transmission!H609+Generation!H609+Retail!H609+Misc!H609","v":5403611.9978192989},{"$f":"+Distribution!I609+Transmission!I609+Generation!I609+Retail!I609+Misc!I609","v":2292617.599603516},{"$f":"+Distribution!J609+Transmission!J609+Generation!J609+Retail!J609+Misc!J609","v":729221.97095222434},{"$f":"+Distribution!K609+Transmission!K609+Generation!K609+Retail!K609+Misc!K609","v":1155389.2578212766},{"$f":"+Distribution!L609+Transmission!L609+Generation!L609+Retail!L609+Misc!L609","v":456564.92034191027},{"$f":"+Distribution!M609+Transmission!M609+Generation!M609+Retail!M609+Misc!M609","v":564485.68733257835},{"$f":"+Distribution!N609+Transmission!N609+Generation!N609+Retail!N609+Misc!N609","v":192369.04718590784},{"$f":"+Distribution!O609+Transmission!O609+Generation!O609+Retail!O609+Misc!O609","v":12963.514581885389},{"$f":"+Distribution!P609+Transmission!P609+Generation!P609+Retail!P609+Misc!P609","v":0},{"$f":"+Distribution!Q609+Transmission!Q609+Generation!Q609+Retail!Q609+Misc!Q609","v":0},{"$f":"ROUND(SUM(I609:Q609)-H609,0)","v":0}]
[610]
[611,null,"403OP","Other Production Depreciation",null,{"$f":"IF(Classification=\"DEMAND\",\"F12\",IF(Classification=\"ENERGY\",\"F30\",\"F10\"))","v":"F10"},null,{"$f":"+Distribution!H611+Transmission!H611+Generation!H611+Retail!H611+Misc!H611","v":0},{"$f":"+Distribution!I611+Transmission!I611+Generation!I611+Retail!I611+Misc!I611","v":0},{"$f":"+Distribution!J611+Transmission!J611+Generation!J611+Retail!J611+Misc!J611","v":0},{"$f":"+Distribution!K611+Transmission!K611+Generation!K611+Retail!K611+Misc!K611","v":0},{"$f":"+Distribution!L611+Transmission!L611+Generation!L611+Retail!L611+Misc!L611","v":0},{"$f":"+Distribution!M611+Transmission!M611+Generation!M611+Retail!M611+Misc!M611","v":0},{"$f":"+Distribution!N611+Transmission!N611+Generation!N611+Retail!N611+Misc!N611","v":0},{"$f":"+Distribution!O611+Transmission!O611+Generation!O611+Retail!O611+Misc!O611","v":0},{"$f":"+Distribution!P611+Transmission!P611+Generation!P611+Retail!P611+Misc!P611","v":0},{"$f":"+Distribution!Q611+Transmission!Q611+Generation!Q611+Retail!Q611+Misc!Q611","v":0},{"$f":"ROUND(SUM(I611:Q611)-H611,0)","v":0}]
[612,null,null,null,"JBG",{"$f":"IF(Classification=\"DEMAND\",\"F12\",IF(Classification=\"ENERGY\",\"F30\",\"F10\"))","v":"F10"},null,{"$f":"+Distribution!H612+Transmission!H612+Generation!H612+Retail!H612+Misc!H612","v":9179801.7903933171},{"$f":"+Distribution!I612+Transmission!I612+Generation!I612+Retail!I612+Misc!I612","v":3894760.6071681115},{"$f":"+Distribution!J612+Transmission!J612+Generation!J612+Retail!J612+Misc!J612","v":1238821.9504366475},{"$f":"+Distribution!K612+Transmission!K612+Generation!K612+Retail!K612+Misc!K612","v":1962806.4305559422},{"$f":"+Distribution!L612+Transmission!L612+Generation!L612+Retail!L612+Misc!L612","v":775624.79964824568},{"$f":"+Distribution!M612+Transmission!M612+Generation!M612+Retail!M612+Misc!M612","v":958963.50909691839},{"$f":"+Distribution!N612+Transmission!N612+Generation!N612+Retail!N612+Misc!N612","v":326801.72530635254},{"$f":"+Distribution!O612+Transmission!O612+Generation!O612+Retail!O612+Misc!O612","v":22022.768181099316},{"$f":"+Distribution!P612+Transmission!P612+Generation!P612+Retail!P612+Misc!P612","v":0},{"$f":"+Distribution!Q612+Transmission!Q612+Generation!Q612+Retail!Q612+Misc!Q612","v":0},{"$f":"ROUND(SUM(I612:Q612)-H612,0)","v":0}]
[613,null,null,null,"SSGCH","F10",null,{"$f":"+Distribution!H613+Transmission!H613+Generation!H613+Retail!H613+Misc!H613","v":0},{"$f":"+Distribution!I613+Transmission!I613+Generation!I613+Retail!I613+Misc!I613","v":0},{"$f":"+Distribution!J613+Transmission!J613+Generation!J613+Retail!J613+Misc!J613","v":0},{"$f":"+Distribution!K613+Transmission!K613+Generation!K613+Retail!K613+Misc!K613","v":0},{"$f":"+Distribution!L613+Transmission!L613+Generation!L613+Retail!L613+Misc!L613","v":0},{"$f":"+Distribution!M613+Transmission!M613+Generation!M613+Retail!M613+Misc!M613","v":0},{"$f":"+Distribution!N613+Transmission!N613+Generation!N613+Retail!N613+Misc!N613","v":0},{"$f":"+Distribution!O613+Transmission!O613+Generation!O613+Retail!O613+Misc!O613","v":0},{"$f":"+Distribution!P613+Transmission!P613+Generation!P613+Retail!P613+Misc!P613","v":0},{"$f":"+Distribution!Q613+Transmission!Q613+Generation!Q613+Retail!Q613+Misc!Q613","v":0},{"$f":"ROUND(SUM(I613:Q613)-H613,0)","v":0}]
[614,null,null,null,"Total 403OP",null,null,{"$f":"+Distribution!H614+Transmission!H614+Generation!H614+Retail!H614+Misc!H614","v":9179801.7903933171},{"$f":"+Distribution!I614+Transmission!I614+Generation!I614+Retail!I614+Misc!I614","v":3894760.6071681115},{"$f":"+Distribution!J614+Transmission!J614+Generation!J614+Retail!J614+Misc!J614","v":1238821.9504366475},{"$f":"+Distribution!K614+Transmission!K614+Generation!K614+Retail!K614+Misc!K614","v":1962806.4305559422},{"$f":"+Distribution!L614+Transmission!L614+Generation!L614+Retail!L614+Misc!L614","v":775624.79964824568},{"$f":"+Distribution!M614+Transmission!M614+Generation!M614+Retail!M614+Misc!M614","v":958963.50909691839},{"$f":"+Distribution!N614+Transmission!N614+Generation!N614+Retail!N614+Misc!N614","v":326801.72530635254},{"$f":"+Distribution!O614+Transmission!O614+Generation!O614+Retail!O614+Misc!O614","v":22022.768181099316},{"$f":"+Distribution!P614+Transmission!P614+Generation!P614+Retail!P614+Misc!P614","v":0},{"$f":"+Distribution!Q614+Transmission!Q614+Generation!Q614+Retail!Q614+Misc!Q614","v":0},{"$f":"ROUND(SUM(I614:Q614)-H614,0)","v":0}]
[615]
[616,null,"403TP","Transmission Depreciation",null,"F106",null,{"$f":"+Distribution!H616+Transmission!H616+Generation!H616+Retail!H616+Misc!H616","v":5024061.0922208102},{"$f":"+Distribution!I616+Transmission!I616+Generation!I616+Retail!I616+Misc!I616","v":2131583.6307560652},{"$f":"+Distribution!J616+Transmission!J616+Generation!J616+Retail!J616+Misc!J616","v":678001.25792380434},{"$f":"+Distribution!K616+Transmission!K616+Generation!K616+Retail!K616+Misc!K616","v":1074234.4600116257},{"$f":"+Distribution!L616+Transmission!L616+Generation!L616+Retail!L616+Misc!L616","v":424495.69904137892},{"$f":"+Distribution!M616+Transmission!M616+Generation!M616+Retail!M616+Misc!M616","v":524836.08741479577},{"$f":"+Distribution!N616+Transmission!N616+Generation!N616+Retail!N616+Misc!N616","v":178857.00263163645},{"$f":"+Distribution!O616+Transmission!O616+Generation!O616+Retail!O616+Misc!O616","v":12052.954441505315},{"$f":"+Distribution!P616+Transmission!P616+Generation!P616+Retail!P616+Misc!P616","v":0},{"$f":"+Distribution!Q616+Transmission!Q616+Generation!Q616+Retail!Q616+Misc!Q616","v":0},{"$f":"ROUND(SUM(I616:Q616)-H616,0)","v":0}]
[617]
[618,null,"403","Distribution Depreciation"]
[619,null,null,null,"Land Rights","F118",null,{"$f":"+Distribution!H619+Transmission!H619+Generation!H619+Retail!H619+Misc!H619","v":4664.91},{"$f":"+Distribution!I619+Transmission!I619+Generation!I619+Retail!I619+Misc!I619","v":2361.7975130837685},{"$f":"+Distribution!J619+Transmission!J619+Generation!J619+Retail!J619+Misc!J619","v":645.61604523752044},{"$f":"+Distribution!K619+Transmission!K619+Generation!K619+Retail!K619+Misc!K619","v":946.94792627129982},{"$f":"+Distribution!L619+Transmission!L619+Generation!L619+Retail!L619+Misc!L619","v":362.13395141411189},{"$f":"+Distribution!M619+Transmission!M619+Generation!M619+Retail!M619+Misc!M619","v":0},{"$f":"+Distribution!N619+Transmission!N619+Generation!N619+Retail!N619+Misc!N619","v":330.48616797989081},{"$f":"+Distribution!O619+Transmission!O619+Generation!O619+Retail!O619+Misc!O619","v":17.928396013408552},{"$f":"+Distribution!P619+Transmission!P619+Generation!P619+Retail!P619+Misc!P619","v":0},{"$f":"+Distribution!Q619+Transmission!Q619+Generation!Q619+Retail!Q619+Misc!Q619","v":0},{"$f":"ROUND(SUM(I619:Q619)-H619,0)","v":0}]
[620,null,null,null,"Structures","F119",null,{"$f":"+Distribution!H620+Transmission!H620+Generation!H620+Retail!H620+Misc!H620","v":39557.75},{"$f":"+Distribution!I620+Transmission!I620+Generation!I620+Retail!I620+Misc!I620","v":18671.971415198961},{"$f":"+Distribution!J620+Transmission!J620+Generation!J620+Retail!J620+Misc!J620","v":5104.1311861357754},{"$f":"+Distribution!K620+Transmission!K620+Generation!K620+Retail!K620+Misc!K620","v":7486.4100385698548},{"$f":"+Distribution!L620+Transmission!L620+Generation!L620+Retail!L620+Misc!L620","v":2862.9697303934454},{"$f":"+Distribution!M620+Transmission!M620+Generation!M620+Retail!M620+Misc!M620","v":2677.7610543149676},{"$f":"+Distribution!N620+Transmission!N620+Generation!N620+Retail!N620+Misc!N620","v":2612.7677108026046},{"$f":"+Distribution!O620+Transmission!O620+Generation!O620+Retail!O620+Misc!O620","v":141.73886458439094},{"$f":"+Distribution!P620+Transmission!P620+Generation!P620+Retail!P620+Misc!P620","v":0},{"$f":"+Distribution!Q620+Transmission!Q620+Generation!Q620+Retail!Q620+Misc!Q620","v":0},0]
[621,null,null,null,"Station Equip","F120",null,{"$f":"+Distribution!H621+Transmission!H621+Generation!H621+Retail!H621+Misc!H621","v":1032646.87},{"$f":"+Distribution!I621+Transmission!I621+Generation!I621+Retail!I621+Misc!I621","v":495239.26772218791},{"$f":"+Distribution!J621+Transmission!J621+Generation!J621+Retail!J621+Misc!J621","v":135377.57394606256},{"$f":"+Distribution!K621+Transmission!K621+Generation!K621+Retail!K621+Misc!K621","v":198563.08382902833},{"$f":"+Distribution!L621+Transmission!L621+Generation!L621+Retail!L621+Misc!L621","v":75934.940197943288},{"$f":"+Distribution!M621+Transmission!M621+Generation!M621+Retail!M621+Misc!M621","v":54473.84729516504},{"$f":"+Distribution!N621+Transmission!N621+Generation!N621+Retail!N621+Misc!N621","v":69298.797596315402},{"$f":"+Distribution!O621+Transmission!O621+Generation!O621+Retail!O621+Misc!O621","v":3759.3594132973963},{"$f":"+Distribution!P621+Transmission!P621+Generation!P621+Retail!P621+Misc!P621","v":0},{"$f":"+Distribution!Q621+Transmission!Q621+Generation!Q621+Retail!Q621+Misc!Q621","v":0},0]
[622,null,null,null,"Poles & Towers","F121",null,{"$f":"+Distribution!H622+Transmission!H622+Generation!H622+Retail!H622+Misc!H622","v":2500805.4182108361},{"$f":"+Distribution!I622+Transmission!I622+Generation!I622+Retail!I622+Misc!I622","v":1284690.521943928},{"$f":"+Distribution!J622+Transmission!J622+Generation!J622+Retail!J622+Misc!J622","v":348959.9373981044},{"$f":"+Distribution!K622+Transmission!K622+Generation!K622+Retail!K622+Misc!K622","v":495416.20084868913},{"$f":"+Distribution!L622+Transmission!L622+Generation!L622+Retail!L622+Misc!L622","v":189458.17550320411},{"$f":"+Distribution!M622+Transmission!M622+Generation!M622+Retail!M622+Misc!M622","v":0},{"$f":"+Distribution!N622+Transmission!N622+Generation!N622+Retail!N622+Misc!N622","v":172900.95604130527},{"$f":"+Distribution!O622+Transmission!O622+Generation!O622+Retail!O622+Misc!O622","v":9379.6264756051205},{"$f":"+Distribution!P622+Transmission!P622+Generation!P622+Retail!P622+Misc!P622","v":0},{"$f":"+Distribution!Q622+Transmission!Q622+Generation!Q622+Retail!Q622+Misc!Q622","v":0},0]
[623,null,null,null,"OH Conductors","F122",null,{"$f":"+Distribution!H623+Transmission!H623+Generation!H623+Retail!H623+Misc!H623","v":1713557.51},{"$f":"+Distribution!I623+Transmission!I623+Generation!I623+Retail!I623+Misc!I623","v":1092016.2259056284},{"$f":"+Distribution!J623+Transmission!J623+Generation!J623+Retail!J623+Misc!J623","v":271655.15600848215},{"$f":"+Distribution!K623+Transmission!K623+Generation!K623+Retail!K623+Misc!K623","v":199894.21098633704},{"$f":"+Distribution!L623+Transmission!L623+Generation!L623+Retail!L623+Misc!L623","v":76443.992833191092},{"$f":"+Distribution!M623+Transmission!M623+Generation!M623+Retail!M623+Misc!M623","v":0},{"$f":"+Distribution!N623+Transmission!N623+Generation!N623+Retail!N623+Misc!N623","v":69763.362860263078},{"$f":"+Distribution!O623+Transmission!O623+Generation!O623+Retail!O623+Misc!O623","v":3784.5614060979974},{"$f":"+Distribution!P623+Transmission!P623+Generation!P623+Retail!P623+Misc!P623","v":0},{"$f":"+Distribution!Q623+Transmission!Q623+Generation!Q623+Retail!Q623+Misc!Q623","v":0},0]
[624,null,null,null,"UG Conduit","F123",null,{"$f":"+Distribution!H624+Transmission!H624+Generation!H624+Retail!H624+Misc!H624","v":709250.08},{"$f":"+Distribution!I624+Transmission!I624+Generation!I624+Retail!I624+Misc!I624","v":467462.82255306293},{"$f":"+Distribution!J624+Transmission!J624+Generation!J624+Retail!J624+Misc!J624","v":114817.60440406138},{"$f":"+Distribution!K624+Transmission!K624+Generation!K624+Retail!K624+Misc!K624","v":72539.310869690264},{"$f":"+Distribution!L624+Transmission!L624+Generation!L624+Retail!L624+Misc!L624","v":27740.646079171558},{"$f":"+Distribution!M624+Transmission!M624+Generation!M624+Retail!M624+Misc!M624","v":0},{"$f":"+Distribution!N624+Transmission!N624+Generation!N624+Retail!N624+Misc!N624","v":25316.3222729923},{"$f":"+Distribution!O624+Transmission!O624+Generation!O624+Retail!O624+Misc!O624","v":1373.3738210214556},{"$f":"+Distribution!P624+Transmission!P624+Generation!P624+Retail!P624+Misc!P624","v":0},{"$f":"+Distribution!Q624+Transmission!Q624+Generation!Q624+Retail!Q624+Misc!Q624","v":0},0]
[625,null,null,null,"UG Conductor","F124",null,{"$f":"+Distribution!H625+Transmission!H625+Generation!H625+Retail!H625+Misc!H625","v":653549.86},{"$f":"+Distribution!I625+Transmission!I625+Generation!I625+Retail!I625+Misc!I625","v":446513.67545046646},{"$f":"+Distribution!J625+Transmission!J625+Generation!J625+Retail!J625+Misc!J625","v":108223.38199818197},{"$f":"+Distribution!K625+Transmission!K625+Generation!K625+Retail!K625+Misc!K625","v":56452.958879531347},{"$f":"+Distribution!L625+Transmission!L625+Generation!L625+Retail!L625+Misc!L625","v":21588.867244856297},{"$f":"+Distribution!M625+Transmission!M625+Generation!M625+Retail!M625+Misc!M625","v":0},{"$f":"+Distribution!N625+Transmission!N625+Generation!N625+Retail!N625+Misc!N625","v":19702.162636002729},{"$f":"+Distribution!O625+Transmission!O625+Generation!O625+Retail!O625+Misc!O625","v":1068.8137909612337},{"$f":"+Distribution!P625+Transmission!P625+Generation!P625+Retail!P625+Misc!P625","v":0},{"$f":"+Distribution!Q625+Transmission!Q625+Generation!Q625+Retail!Q625+Misc!Q625","v":0},0]
[626,null,null,null,"Line Transformer","F125",null,{"$f":"+Distribution!H626+Transmission!H626+Generation!H626+Retail!H626+Misc!H626","v":2843151.39},{"$f":"+Distribution!I626+Transmission!I626+Generation!I626+Retail!I626+Misc!I626","v":1716018.3487416175},{"$f":"+Distribution!J626+Transmission!J626+Generation!J626+Retail!J626+Misc!J626","v":391431.02092018095},{"$f":"+Distribution!K626+Transmission!K626+Generation!K626+Retail!K626+Misc!K626","v":441343.05208546179},{"$f":"+Distribution!L626+Transmission!L626+Generation!L626+Retail!L626+Misc!L626","v":130074.71929595801},{"$f":"+Distribution!M626+Transmission!M626+Generation!M626+Retail!M626+Misc!M626","v":0},{"$f":"+Distribution!N626+Transmission!N626+Generation!N626+Retail!N626+Misc!N626","v":158152.89193015819},{"$f":"+Distribution!O626+Transmission!O626+Generation!O626+Retail!O626+Misc!O626","v":6131.3570266240949},{"$f":"+Distribution!P626+Transmission!P626+Generation!P626+Retail!P626+Misc!P626","v":0},{"$f":"+Distribution!Q626+Transmission!Q626+Generation!Q626+Retail!Q626+Misc!Q626","v":0},0]
[627,null,null,null,"Services","F126",null,{"$f":"+Distribution!H627+Transmission!H627+Generation!H627+Retail!H627+Misc!H627","v":1270803.1499999999},{"$f":"+Distribution!I627+Transmission!I627+Generation!I627+Retail!I627+Misc!I627","v":936170.08383699169},{"$f":"+Distribution!J627+Transmission!J627+Generation!J627+Retail!J627+Misc!J627","v":255801.57391136381},{"$f":"+Distribution!K627+Transmission!K627+Generation!K627+Retail!K627+Misc!K627","v":63840.32723953238},{"$f":"+Distribution!L627+Transmission!L627+Generation!L627+Retail!L627+Misc!L627","v":14991.165012112118},{"$f":"+Distribution!M627+Transmission!M627+Generation!M627+Retail!M627+Misc!M627","v":0},{"$f":"+Distribution!N627+Transmission!N627+Generation!N627+Retail!N627+Misc!N627","v":0},{"$f":"+Distribution!O627+Transmission!O627+Generation!O627+Retail!O627+Misc!O627","v":0},{"$f":"+Distribution!P627+Transmission!P627+Generation!P627+Retail!P627+Misc!P627","v":0},{"$f":"+Distribution!Q627+Transmission!Q627+Generation!Q627+Retail!Q627+Misc!Q627","v":0},0]
[628,null,null,null,"Meters","F127",null,{"$f":"+Distribution!H628+Transmission!H628+Generation!H628+Retail!H628+Misc!H628","v":445097.37},{"$f":"+Distribution!I628+Transmission!I628+Generation!I628+Retail!I628+Misc!I628","v":302722.85571972642},{"$f":"+Distribution!J628+Transmission!J628+Generation!J628+Retail!J628+Misc!J628","v":72256.704104169781},{"$f":"+Distribution!K628+Transmission!K628+Generation!K628+Retail!K628+Misc!K628","v":34009.920674298279},{"$f":"+Distribution!L628+Transmission!L628+Generation!L628+Retail!L628+Misc!L628","v":5467.6480629517537},{"$f":"+Distribution!M628+Transmission!M628+Generation!M628+Retail!M628+Misc!M628","v":4305.9642227738586},{"$f":"+Distribution!N628+Transmission!N628+Generation!N628+Retail!N628+Misc!N628","v":26334.277216079921},{"$f":"+Distribution!O628+Transmission!O628+Generation!O628+Retail!O628+Misc!O628","v":0},{"$f":"+Distribution!P628+Transmission!P628+Generation!P628+Retail!P628+Misc!P628","v":0},{"$f":"+Distribution!Q628+Transmission!Q628+Generation!Q628+Retail!Q628+Misc!Q628","v":0},0]
[629,null,null,null,"Inst Cust Premises","F128",null,{"$f":"+Distribution!H629+Transmission!H629+Generation!H629+Retail!H629+Misc!H629","v":19245.82},{"$f":"+Distribution!I629+Transmission!I629+Generation!I629+Retail!I629+Misc!I629","v":0},{"$f":"+Distribution!J629+Transmission!J629+Generation!J629+Retail!J629+Misc!J629","v":0},{"$f":"+Distribution!K629+Transmission!K629+Generation!K629+Retail!K629+Misc!K629","v":0},{"$f":"+Distribution!L629+Transmission!L629+Generation!L629+Retail!L629+Misc!L629","v":0},{"$f":"+Distribution!M629+Transmission!M629+Generation!M629+Retail!M629+Misc!M629","v":0},{"$f":"+Distribution!N629+Transmission!N629+Generation!N629+Retail!N629+Misc!N629","v":0},{"$f":"+Distribution!O629+Transmission!O629+Generation!O629+Retail!O629+Misc!O629","v":19245.82},{"$f":"+Distribution!P629+Transmission!P629+Generation!P629+Retail!P629+Misc!P629","v":0},{"$f":"+Distribution!Q629+Transmission!Q629+Generation!Q629+Retail!Q629+Misc!Q629","v":0},0]
[630,null,null,null,"Leased Property","F129",null,{"$f":"+Distribution!H630+Transmission!H630+Generation!H630+Retail!H630+Misc!H630","v":0},{"$f":"+Distribution!I630+Transmission!I630+Generation!I630+Retail!I630+Misc!I630","v":0},{"$f":"+Distribution!J630+Transmission!J630+Generation!J630+Retail!J630+Misc!J630","v":0},{"$f":"+Distribution!K630+Transmission!K630+Generation!K630+Retail!K630+Misc!K630","v":0},{"$f":"+Distribution!L630+Transmission!L630+Generation!L630+Retail!L630+Misc!L630","v":0},{"$f":"+Distribution!M630+Transmission!M630+Generation!M630+Retail!M630+Misc!M630","v":0},{"$f":"+Distribution!N630+Transmission!N630+Generation!N630+Retail!N630+Misc!N630","v":0},{"$f":"+Distribution!O630+Transmission!O630+Generation!O630+Retail!O630+Misc!O630","v":0},{"$f":"+Distribution!P630+Transmission!P630+Generation!P630+Retail!P630+Misc!P630","v":0},{"$f":"+Distribution!Q630+Transmission!Q630+Generation!Q630+Retail!Q630+Misc!Q630","v":0},0]
[631,null,null,null,"Street Lighting","F130",null,{"$f":"+Distribution!H631+Transmission!H631+Generation!H631+Retail!H631+Misc!H631","v":126255.92},{"$f":"+Distribution!I631+Transmission!I631+Generation!I631+Retail!I631+Misc!I631","v":0},{"$f":"+Distribution!J631+Transmission!J631+Generation!J631+Retail!J631+Misc!J631","v":0},{"$f":"+Distribution!K631+Transmission!K631+Generation!K631+Retail!K631+Misc!K631","v":0},{"$f":"+Distribution!L631+Transmission!L631+Generation!L631+Retail!L631+Misc!L631","v":0},{"$f":"+Distribution!M631+Transmission!M631+Generation!M631+Retail!M631+Misc!M631","v":0},{"$f":"+Distribution!N631+Transmission!N631+Generation!N631+Retail!N631+Misc!N631","v":0},{"$f":"+Distribution!O631+Transmission!O631+Generation!O631+Retail!O631+Misc!O631","v":126255.92},{"$f":"+Distribution!P631+Transmission!P631+Generation!P631+Retail!P631+Misc!P631","v":0},{"$f":"+Distribution!Q631+Transmission!Q631+Generation!Q631+Retail!Q631+Misc!Q631","v":0},0]
[632,null,null,"Total Distribution Expense",null,null,null,{"$f":"+Distribution!H632+Transmission!H632+Generation!H632+Retail!H632+Misc!H632","v":11358586.048210837},{"$f":"+Distribution!I632+Transmission!I632+Generation!I632+Retail!I632+Misc!I632","v":6761867.5708018914},{"$f":"+Distribution!J632+Transmission!J632+Generation!J632+Retail!J632+Misc!J632","v":1704272.69992198},{"$f":"+Distribution!K632+Transmission!K632+Generation!K632+Retail!K632+Misc!K632","v":1570492.4233774098},{"$f":"+Distribution!L632+Transmission!L632+Generation!L632+Retail!L632+Misc!L632","v":544925.25791119586},{"$f":"+Distribution!M632+Transmission!M632+Generation!M632+Retail!M632+Misc!M632","v":61457.57257225387},{"$f":"+Distribution!N632+Transmission!N632+Generation!N632+Retail!N632+Misc!N632","v":544412.02443189942},{"$f":"+Distribution!O632+Transmission!O632+Generation!O632+Retail!O632+Misc!O632","v":171158.4991942051},{"$f":"+Distribution!P632+Transmission!P632+Generation!P632+Retail!P632+Misc!P632","v":0},{"$f":"+Distribution!Q632+Transmission!Q632+Generation!Q632+Retail!Q632+Misc!Q632","v":0},0]
[633]
[634,null,"403GP","General Depreciation"]
[635,null,null,null,"Situs",{"$f":"IF(Function=\"gen\",\"F107G\",IF(Function=\"TRN\",\"F107T\",IF(Function=\"DIS\",\"F107D\",IF(Function=\"RETAIL\",\"F107R\",IF(Function=\"MISC\",\"F107M\",\"ERR\")))))","v":"F107D"},null,{"$f":"+Distribution!H635+Transmission!H635+Generation!H635+Retail!H635+Misc!H635","v":1154296.2929924203},{"$f":"+Distribution!I635+Transmission!I635+Generation!I635+Retail!I635+Misc!I635","v":634192.87120414176},{"$f":"+Distribution!J635+Transmission!J635+Generation!J635+Retail!J635+Misc!J635","v":168863.34914729639},{"$f":"+Distribution!K635+Transmission!K635+Generation!K635+Retail!K635+Misc!K635","v":183680.96925250709},{"$f":"+Distribution!L635+Transmission!L635+Generation!L635+Retail!L635+Misc!L635","v":66994.186726014013},{"$f":"+Distribution!M635+Transmission!M635+Generation!M635+Retail!M635+Misc!M635","v":36482.774590030218},{"$f":"+Distribution!N635+Transmission!N635+Generation!N635+Retail!N635+Misc!N635","v":51822.571467371585},{"$f":"+Distribution!O635+Transmission!O635+Generation!O635+Retail!O635+Misc!O635","v":12259.570605059187},{"$f":"+Distribution!P635+Transmission!P635+Generation!P635+Retail!P635+Misc!P635","v":0},{"$f":"+Distribution!Q635+Transmission!Q635+Generation!Q635+Retail!Q635+Misc!Q635","v":0},{"$f":"ROUND(SUM(I635:Q635)-H635,0)","v":0}]
[636,null,null,null,"System Generation",{"$f":"IF(Function=\"gen\",\"F105G\",IF(Function=\"TRN\",\"F105T\",IF(Function=\"DIS\",\"F105D\",IF(Function=\"RETAIL\",\"F105R\",IF(Function=\"MISC\",\"F105M\",\"ERR\")))))","v":"F105D"},null,{"$f":"+Distribution!H636+Transmission!H636+Generation!H636+Retail!H636+Misc!H636","v":422361.61981344019},{"$f":"+Distribution!I636+Transmission!I636+Generation!I636+Retail!I636+Misc!I636","v":179197.48556560281},{"$f":"+Distribution!J636+Transmission!J636+Generation!J636+Retail!J636+Misc!J636","v":56998.054815783711},{"$f":"+Distribution!K636+Transmission!K636+Generation!K636+Retail!K636+Misc!K636","v":90308.497102563764},{"$f":"+Distribution!L636+Transmission!L636+Generation!L636+Retail!L636+Misc!L636","v":35686.407422188146},{"$f":"+Distribution!M636+Transmission!M636+Generation!M636+Retail!M636+Misc!M636","v":44121.80026239992},{"$f":"+Distribution!N636+Transmission!N636+Generation!N636+Retail!N636+Misc!N636","v":15036.10962522798},{"$f":"+Distribution!O636+Transmission!O636+Generation!O636+Retail!O636+Misc!O636","v":1013.2650196738573},{"$f":"+Distribution!P636+Transmission!P636+Generation!P636+Retail!P636+Misc!P636","v":0},{"$f":"+Distribution!Q636+Transmission!Q636+Generation!Q636+Retail!Q636+Misc!Q636","v":0},0]
[637,null,null,null,"System Overheads",{"$f":"IF(Function=\"gen\",\"F102G\",IF(Function=\"TRN\",\"F102T\",IF(Function=\"DIS\",\"F102D\",IF(Function=\"RETAIL\",\"F102R\",IF(Function=\"MISC\",\"F102M\",\"ERR\")))))","v":"F102D"},null,{"$f":"+Distribution!H637+Transmission!H637+Generation!H637+Retail!H637+Misc!H637","v":1008697.1826590333},{"$f":"+Distribution!I637+Transmission!I637+Generation!I637+Retail!I637+Misc!I637","v":477737.18827022851},{"$f":"+Distribution!J637+Transmission!J637+Generation!J637+Retail!J637+Misc!J637","v":140634.77935487984},{"$f":"+Distribution!K637+Transmission!K637+Generation!K637+Retail!K637+Misc!K637","v":193926.44119688915},{"$f":"+Distribution!L637+Transmission!L637+Generation!L637+Retail!L637+Misc!L637","v":74706.342042466262},{"$f":"+Distribution!M637+Transmission!M637+Generation!M637+Retail!M637+Misc!M637","v":76395.967157045234},{"$f":"+Distribution!N637+Transmission!N637+Generation!N637+Retail!N637+Misc!N637","v":39606.609295692833},{"$f":"+Distribution!O637+Transmission!O637+Generation!O637+Retail!O637+Misc!O637","v":5689.8553418315596},{"$f":"+Distribution!P637+Transmission!P637+Generation!P637+Retail!P637+Misc!P637","v":0},{"$f":"+Distribution!Q637+Transmission!Q637+Generation!Q637+Retail!Q637+Misc!Q637","v":0},0]
[638,null,null,null,"Customer - System","F42",null,{"$f":"+Distribution!H638+Transmission!H638+Generation!H638+Retail!H638+Misc!H638","v":120344.21412182611},{"$f":"+Distribution!I638+Transmission!I638+Generation!I638+Retail!I638+Misc!I638","v":97101.995954541359},{"$f":"+Distribution!J638+Transmission!J638+Generation!J638+Retail!J638+Misc!J638","v":16492.41129688028},{"$f":"+Distribution!K638+Transmission!K638+Generation!K638+Retail!K638+Misc!K638","v":1001.6126296692452},{"$f":"+Distribution!L638+Transmission!L638+Generation!L638+Retail!L638+Misc!L638","v":205.42206649714637},{"$f":"+Distribution!M638+Transmission!M638+Generation!M638+Retail!M638+Misc!M638","v":3.5471651477290309},{"$f":"+Distribution!N638+Transmission!N638+Generation!N638+Retail!N638+Misc!N638","v":2937.9674640408039},{"$f":"+Distribution!O638+Transmission!O638+Generation!O638+Retail!O638+Misc!O638","v":2601.2575450495383},{"$f":"+Distribution!P638+Transmission!P638+Generation!P638+Retail!P638+Misc!P638","v":0},{"$f":"+Distribution!Q638+Transmission!Q638+Generation!Q638+Retail!Q638+Misc!Q638","v":0},0]
[639,null,null,null,"Energy",{"$f":"IF(Classification=\"DEMAND\",\"F12\",IF(Classification=\"ENERGY\",\"F30\",\"F10\"))","v":"F10"},null,{"$f":"+Distribution!H639+Transmission!H639+Generation!H639+Retail!H639+Misc!H639","v":230.47406133172814},{"$f":"+Distribution!I639+Transmission!I639+Generation!I639+Retail!I639+Misc!I639","v":97.784387456845266},{"$f":"+Distribution!J639+Transmission!J639+Generation!J639+Retail!J639+Misc!J639","v":31.102667868365135},{"$f":"+Distribution!K639+Transmission!K639+Generation!K639+Retail!K639+Misc!K639","v":49.279492083551638},{"$f":"+Distribution!L639+Transmission!L639+Generation!L639+Retail!L639+Misc!L639","v":19.473339591233149},{"$f":"+Distribution!M639+Transmission!M639+Generation!M639+Retail!M639+Misc!M639","v":24.076360215292052},{"$f":"+Distribution!N639+Transmission!N639+Generation!N639+Retail!N639+Misc!N639","v":8.2048962059717567},{"$f":"+Distribution!O639+Transmission!O639+Generation!O639+Retail!O639+Misc!O639","v":0.55291791046913685},{"$f":"+Distribution!P639+Transmission!P639+Generation!P639+Retail!P639+Misc!P639","v":0},{"$f":"+Distribution!Q639+Transmission!Q639+Generation!Q639+Retail!Q639+Misc!Q639","v":0},0]
[640,null,null,null,"SSGCT",{"$f":"IF(Function=\"gen\",\"F105G\",IF(Function=\"TRN\",\"F105T\",IF(Function=\"DIS\",\"F105D\",IF(Function=\"RETAIL\",\"F105R\",IF(Function=\"MISC\",\"F105M\",\"ERR\")))))","v":"F105D"},null,{"$f":"+Distribution!H640+Transmission!H640+Generation!H640+Retail!H640+Misc!H640","v":0},{"$f":"+Distribution!I640+Transmission!I640+Generation!I640+Retail!I640+Misc!I640","v":0},{"$f":"+Distribution!J640+Transmission!J640+Generation!J640+Retail!J640+Misc!J640","v":0},{"$f":"+Distribution!K640+Transmission!K640+Generation!K640+Retail!K640+Misc!K640","v":0},{"$f":"+Distribution!L640+Transmission!L640+Generation!L640+Retail!L640+Misc!L640","v":0},{"$f":"+Distribution!M640+Transmission!M640+Generation!M640+Retail!M640+Misc!M640","v":0},{"$f":"+Distribution!N640+Transmission!N640+Generation!N640+Retail!N640+Misc!N640","v":0},{"$f":"+Distribution!O640+Transmission!O640+Generation!O640+Retail!O640+Misc!O640","v":0},{"$f":"+Distribution!P640+Transmission!P640+Generation!P640+Retail!P640+Misc!P640","v":0},{"$f":"+Distribution!Q640+Transmission!Q640+Generation!Q640+Retail!Q640+Misc!Q640","v":0},0]
[641,null,null,null,"SSGCH","F105D",null,{"$f":"+Distribution!H641+Transmission!H641+Generation!H641+Retail!H641+Misc!H641","v":0},{"$f":"+Distribution!I641+Transmission!I641+Generation!I641+Retail!I641+Misc!I641","v":0},{"$f":"+Distribution!J641+Transmission!J641+Generation!J641+Retail!J641+Misc!J641","v":0},{"$f":"+Distribution!K641+Transmission!K641+Generation!K641+Retail!K641+Misc!K641","v":0},{"$f":"+Distribution!L641+Transmission!L641+Generation!L641+Retail!L641+Misc!L641","v":0},{"$f":"+Distribution!M641+Transmission!M641+Generation!M641+Retail!M641+Misc!M641","v":0},{"$f":"+Distribution!N641+Transmission!N641+Generation!N641+Retail!N641+Misc!N641","v":0},{"$f":"+Distribution!O641+Transmission!O641+Generation!O641+Retail!O641+Misc!O641","v":0},{"$f":"+Distribution!P641+Transmission!P641+Generation!P641+Retail!P641+Misc!P641","v":0},{"$f":"+Distribution!Q641+Transmission!Q641+Generation!Q641+Retail!Q641+Misc!Q641","v":0},0]
[642,null,null,"Total General Expense",null,null,null,{"$f":"+Distribution!H642+Transmission!H642+Generation!H642+Retail!H642+Misc!H642","v":2705929.7836480513},{"$f":"+Distribution!I642+Transmission!I642+Generation!I642+Retail!I642+Misc!I642","v":1388327.3253819712},{"$f":"+Distribution!J642+Transmission!J642+Generation!J642+Retail!J642+Misc!J642","v":383019.6972827086},{"$f":"+Distribution!K642+Transmission!K642+Generation!K642+Retail!K642+Misc!K642","v":468966.79967371281},{"$f":"+Distribution!L642+Transmission!L642+Generation!L642+Retail!L642+Misc!L642","v":177611.83159675679},{"$f":"+Distribution!M642+Transmission!M642+Generation!M642+Retail!M642+Misc!M642","v":157028.16553483839},{"$f":"+Distribution!N642+Transmission!N642+Generation!N642+Retail!N642+Misc!N642","v":109411.46274853915},{"$f":"+Distribution!O642+Transmission!O642+Generation!O642+Retail!O642+Misc!O642","v":21564.501429524611},{"$f":"+Distribution!P642+Transmission!P642+Generation!P642+Retail!P642+Misc!P642","v":0},{"$f":"+Distribution!Q642+Transmission!Q642+Generation!Q642+Retail!Q642+Misc!Q642","v":0},0]
[643]
[644,null,"403GV0","General Vehicles",null,{"$f":"IF(Function=\"gen\",\"F105G\",IF(Function=\"TRN\",\"F105T\",IF(Function=\"DIS\",\"F105D\",IF(Function=\"RETAIL\",\"F105R\",IF(Function=\"MISC\",\"F105M\",\"ERR\")))))","v":"F105D"},null,{"$f":"+Distribution!H644+Transmission!H644+Generation!H644+Retail!H644+Misc!H644","v":0},{"$f":"+Distribution!I644+Transmission!I644+Generation!I644+Retail!I644+Misc!I644","v":0},{"$f":"+Distribution!J644+Transmission!J644+Generation!J644+Retail!J644+Misc!J644","v":0},{"$f":"+Distribution!K644+Transmission!K644+Generation!K644+Retail!K644+Misc!K644","v":0},{"$f":"+Distribution!L644+Transmission!L644+Generation!L644+Retail!L644+Misc!L644","v":0},{"$f":"+Distribution!M644+Transmission!M644+Generation!M644+Retail!M644+Misc!M644","v":0},{"$f":"+Distribution!N644+Transmission!N644+Generation!N644+Retail!N644+Misc!N644","v":0},{"$f":"+Distribution!O644+Transmission!O644+Generation!O644+Retail!O644+Misc!O644","v":0},{"$f":"+Distribution!P644+Transmission!P644+Generation!P644+Retail!P644+Misc!P644","v":0},{"$f":"+Distribution!Q644+Transmission!Q644+Generation!Q644+Retail!Q644+Misc!Q644","v":0},{"$f":"ROUND(SUM(I644:Q644)-H644,0)","v":0}]
[645]
[646,null,"403MP","Mining Depreciation",null,{"$f":"IF(Classification=\"DEMAND\",\"F12\",IF(Classification=\"ENERGY\",\"F30\",\"F10\"))","v":"F10"},null,{"$f":"+Distribution!H646+Transmission!H646+Generation!H646+Retail!H646+Misc!H646","v":0},{"$f":"+Distribution!I646+Transmission!I646+Generation!I646+Retail!I646+Misc!I646","v":0},{"$f":"+Distribution!J646+Transmission!J646+Generation!J646+Retail!J646+Misc!J646","v":0},{"$f":"+Distribution!K646+Transmission!K646+Generation!K646+Retail!K646+Misc!K646","v":0},{"$f":"+Distribution!L646+Transmission!L646+Generation!L646+Retail!L646+Misc!L646","v":0},{"$f":"+Distribution!M646+Transmission!M646+Generation!M646+Retail!M646+Misc!M646","v":0},{"$f":"+Distribution!N646+Transmission!N646+Generation!N646+Retail!N646+Misc!N646","v":0},{"$f":"+Distribution!O646+Transmission!O646+Generation!O646+Retail!O646+Misc!O646","v":0},{"$f":"+Distribution!P646+Transmission!P646+Generation!P646+Retail!P646+Misc!P646","v":0},{"$f":"+Distribution!Q646+Transmission!Q646+Generation!Q646+Retail!Q646+Misc!Q646","v":0},{"$f":"ROUND(SUM(I646:Q646)-H646,0)","v":0}]
[647]
[648,null,"403EP","Experimental Plant Depreciation",null,{"$f":"IF(Classification=\"DEMAND\",\"F12\",IF(Classification=\"ENERGY\",\"F30\",\"F10\"))","v":"F10"},null,{"$f":"+Distribution!H648+Transmission!H648+Generation!H648+Retail!H648+Misc!H648","v":0},{"$f":"+Distribution!I648+Transmission!I648+Generation!I648+Retail!I648+Misc!I648","v":0},{"$f":"+Distribution!J648+Transmission!J648+Generation!J648+Retail!J648+Misc!J648","v":0},{"$f":"+Distribution!K648+Transmission!K648+Generation!K648+Retail!K648+Misc!K648","v":0},{"$f":"+Distribution!L648+Transmission!L648+Generation!L648+Retail!L648+Misc!L648","v":0},{"$f":"+Distribution!M648+Transmission!M648+Generation!M648+Retail!M648+Misc!M648","v":0},{"$f":"+Distribution!N648+Transmission!N648+Generation!N648+Retail!N648+Misc!N648","v":0},{"$f":"+Distribution!O648+Transmission!O648+Generation!O648+Retail!O648+Misc!O648","v":0},{"$f":"+Distribution!P648+Transmission!P648+Generation!P648+Retail!P648+Misc!P648","v":0},{"$f":"+Distribution!Q648+Transmission!Q648+Generation!Q648+Retail!Q648+Misc!Q648","v":0},{"$f":"ROUND(SUM(I648:Q648)-H648,0)","v":0}]
[649]
[650]
[651,null,"TOTAL DEPRECIATION EXPENSE",null,null,null,null,{"$f":"+Distribution!H651+Transmission!H651+Generation!H651+Retail!H651+Misc!H651","v":41310105.544159755},{"$f":"+Distribution!I651+Transmission!I651+Generation!I651+Retail!I651+Misc!I651","v":19709818.072534334},{"$f":"+Distribution!J651+Transmission!J651+Generation!J651+Retail!J651+Misc!J651","v":5764107.5789345615},{"$f":"+Distribution!K651+Transmission!K651+Generation!K651+Retail!K651+Misc!K651","v":7865055.4518888313},{"$f":"+Distribution!L651+Transmission!L651+Generation!L651+Retail!L651+Misc!L651","v":3024586.2561922176},{"$f":"+Distribution!M651+Transmission!M651+Generation!M651+Retail!M651+Misc!M651","v":3064682.9561413042},{"$f":"+Distribution!N651+Transmission!N651+Generation!N651+Retail!N651+Misc!N651","v":1623768.8006279345},{"$f":"+Distribution!O651+Transmission!O651+Generation!O651+Retail!O651+Misc!O651","v":258086.42784056481},{"$f":"+Distribution!P651+Transmission!P651+Generation!P651+Retail!P651+Misc!P651","v":0},{"$f":"+Distribution!Q651+Transmission!Q651+Generation!Q651+Retail!Q651+Misc!Q651","v":0},{"$f":"ROUND(SUM(I651:Q651)-H651,0)","v":0}]
[652]
[653,null,null,null,null,null,null,"AMORTIZATION EXPENSE"]
[654]
[655]
[656,null,"404GP","Amort of LT Plant - Cap. Lease Gen"]
[657,null,null,"Division",null,{"$f":"IF(Classification=\"DEMAND\",\"F12\",IF(Classification=\"ENERGY\",\"F30\",\"F10\"))","v":"F10"},null,{"$f":"+Distribution!H657+Transmission!H657+Generation!H657+Retail!H657+Misc!H657","v":203429.32000000004},{"$f":"+Distribution!I657+Transmission!I657+Generation!I657+Retail!I657+Misc!I657","v":86309.979231593941},{"$f":"+Distribution!J657+Transmission!J657+Generation!J657+Retail!J657+Misc!J657","v":27452.957344039038},{"$f":"+Distribution!K657+Transmission!K657+Generation!K657+Retail!K657+Misc!K657","v":43496.840844372367},{"$f":"+Distribution!L657+Transmission!L657+Generation!L657+Retail!L657+Misc!L657","v":17188.260615027772},{"$f":"+Distribution!M657+Transmission!M657+Generation!M657+Retail!M657+Misc!M657","v":21251.144525206739},{"$f":"+Distribution!N657+Transmission!N657+Generation!N657+Retail!N657+Misc!N657","v":7242.1011119728819},{"$f":"+Distribution!O657+Transmission!O657+Generation!O657+Retail!O657+Misc!O657","v":488.03632778728206},{"$f":"+Distribution!P657+Transmission!P657+Generation!P657+Retail!P657+Misc!P657","v":0},{"$f":"+Distribution!Q657+Transmission!Q657+Generation!Q657+Retail!Q657+Misc!Q657","v":0},{"$f":"ROUND(SUM(I657:Q657)-H657,0)","v":0}]
[658,null,null,"System Overheads",null,{"$f":"IF(Function=\"gen\",\"F102G\",IF(Function=\"TRN\",\"F102T\",IF(Function=\"DIS\",\"F102D\",IF(Function=\"RETAIL\",\"F102R\",IF(Function=\"MISC\",\"F102M\",\"ERR\")))))","v":"F102D"},null,{"$f":"+Distribution!H658+Transmission!H658+Generation!H658+Retail!H658+Misc!H658","v":87010.386173313658},{"$f":"+Distribution!I658+Transmission!I658+Generation!I658+Retail!I658+Misc!I658","v":41209.689047775166},{"$f":"+Distribution!J658+Transmission!J658+Generation!J658+Retail!J658+Misc!J658","v":12131.179378145622},{"$f":"+Distribution!K658+Transmission!K658+Generation!K658+Retail!K658+Misc!K658","v":16728.126962025493},{"$f":"+Distribution!L658+Transmission!L658+Generation!L658+Retail!L658+Misc!L658","v":6444.1814475731499},{"$f":"+Distribution!M658+Transmission!M658+Generation!M658+Retail!M658+Misc!M658","v":6589.9287900214531},{"$f":"+Distribution!N658+Transmission!N658+Generation!N658+Retail!N658+Misc!N658","v":3416.4726828613452},{"$f":"+Distribution!O658+Transmission!O658+Generation!O658+Retail!O658+Misc!O658","v":490.80786491143078},{"$f":"+Distribution!P658+Transmission!P658+Generation!P658+Retail!P658+Misc!P658","v":0},{"$f":"+Distribution!Q658+Transmission!Q658+Generation!Q658+Retail!Q658+Misc!Q658","v":0},{"$f":"ROUND(SUM(I658:Q658)-H658,0)","v":0}]
[659,null,null,"Customer - System",null,"F42",null,{"$f":"+Distribution!H659+Transmission!H659+Generation!H659+Retail!H659+Misc!H659","v":18944.613261818769},{"$f":"+Distribution!I659+Transmission!I659+Generation!I659+Retail!I659+Misc!I659","v":15285.818048944713},{"$f":"+Distribution!J659+Transmission!J659+Generation!J659+Retail!J659+Misc!J659","v":2596.2390967791621},{"$f":"+Distribution!K659+Transmission!K659+Generation!K659+Retail!K659+Misc!K659","v":157.67408550300834},{"$f":"+Distribution!L659+Transmission!L659+Generation!L659+Retail!L659+Misc!L659","v":32.33758792335869},{"$f":"+Distribution!M659+Transmission!M659+Generation!M659+Retail!M659+Misc!M659","v":0.55839553558845445},{"$f":"+Distribution!N659+Transmission!N659+Generation!N659+Retail!N659+Misc!N659","v":462.49549916637824},{"$f":"+Distribution!O659+Transmission!O659+Generation!O659+Retail!O659+Misc!O659","v":409.49054796656009},{"$f":"+Distribution!P659+Transmission!P659+Generation!P659+Retail!P659+Misc!P659","v":0},{"$f":"+Distribution!Q659+Transmission!Q659+Generation!Q659+Retail!Q659+Misc!Q659","v":0},{"$f":"ROUND(SUM(I659:Q659)-H659,0)","v":0}]
[660,null,null,"Total Amort. Cap. Lease General",null,null,null,{"$f":"+Distribution!H660+Transmission!H660+Generation!H660+Retail!H660+Misc!H660","v":309384.31943513243},{"$f":"+Distribution!I660+Transmission!I660+Generation!I660+Retail!I660+Misc!I660","v":142805.48632831383},{"$f":"+Distribution!J660+Transmission!J660+Generation!J660+Retail!J660+Misc!J660","v":42180.375818963825},{"$f":"+Distribution!K660+Transmission!K660+Generation!K660+Retail!K660+Misc!K660","v":60382.641891900865},{"$f":"+Distribution!L660+Transmission!L660+Generation!L660+Retail!L660+Misc!L660","v":23664.77965052428},{"$f":"+Distribution!M660+Transmission!M660+Generation!M660+Retail!M660+Misc!M660","v":27841.631710763777},{"$f":"+Distribution!N660+Transmission!N660+Generation!N660+Retail!N660+Misc!N660","v":11121.069294000605},{"$f":"+Distribution!O660+Transmission!O660+Generation!O660+Retail!O660+Misc!O660","v":1388.3347406652729},{"$f":"+Distribution!P660+Transmission!P660+Generation!P660+Retail!P660+Misc!P660","v":0},{"$f":"+Distribution!Q660+Transmission!Q660+Generation!Q660+Retail!Q660+Misc!Q660","v":0},{"$f":"ROUND(SUM(I660:Q660)-H660,0)","v":0}]
[661]
[662,null,"404SP","Amort of LT Plant - Cap Lease Steam",null,{"$f":"IF(Classification=\"DEMAND\",\"F12\",IF(Classification=\"ENERGY\",\"F30\",\"F10\"))","v":"F10"},null,{"$f":"+Distribution!H662+Transmission!H662+Generation!H662+Retail!H662+Misc!H662","v":0},{"$f":"+Distribution!I662+Transmission!I662+Generation!I662+Retail!I662+Misc!I662","v":0},{"$f":"+Distribution!J662+Transmission!J662+Generation!J662+Retail!J662+Misc!J662","v":0},{"$f":"+Distribution!K662+Transmission!K662+Generation!K662+Retail!K662+Misc!K662","v":0},{"$f":"+Distribution!L662+Transmission!L662+Generation!L662+Retail!L662+Misc!L662","v":0},{"$f":"+Distribution!M662+Transmission!M662+Generation!M662+Retail!M662+Misc!M662","v":0},{"$f":"+Distribution!N662+Transmission!N662+Generation!N662+Retail!N662+Misc!N662","v":0},{"$f":"+Distribution!O662+Transmission!O662+Generation!O662+Retail!O662+Misc!O662","v":0},{"$f":"+Distribution!P662+Transmission!P662+Generation!P662+Retail!P662+Misc!P662","v":0},{"$f":"+Distribution!Q662+Transmission!Q662+Generation!Q662+Retail!Q662+Misc!Q662","v":0},{"$f":"ROUND(SUM(I662:Q662)-H662,0)","v":0}]
[663]
[664,null,"404IP","Amort of LT Plant - Intangible Plant"]
[{"$f":"+A664+1","v":665},null,null,null,"Situs",{"$f":"IF(Function=\"gen\",\"F107G\",IF(Function=\"TRN\",\"F107T\",IF(Function=\"DIS\",\"F107D\",IF(Function=\"RETAIL\",\"F107R\",IF(Function=\"MISC\",\"F107M\",\"ERR\")))))","v":"F107D"},null,{"$f":"+Distribution!H665+Transmission!H665+Generation!H665+Retail!H665+Misc!H665","v":183.85000000000002},{"$f":"+Distribution!I665+Transmission!I665+Generation!I665+Retail!I665+Misc!I665","v":93.926599032590616},{"$f":"+Distribution!J665+Transmission!J665+Generation!J665+Retail!J665+Misc!J665","v":26.253677899811741},{"$f":"+Distribution!K665+Transmission!K665+Generation!K665+Retail!K665+Misc!K665","v":32.351581533857555},{"$f":"+Distribution!L665+Transmission!L665+Generation!L665+Retail!L665+Misc!L665","v":12.167949551006638},{"$f":"+Distribution!M665+Transmission!M665+Generation!M665+Retail!M665+Misc!M665","v":9.9351443530662529},{"$f":"+Distribution!N665+Transmission!N665+Generation!N665+Retail!N665+Misc!N665","v":7.7278280074076537},{"$f":"+Distribution!O665+Transmission!O665+Generation!O665+Retail!O665+Misc!O665","v":1.4872196222595704},{"$f":"+Distribution!P665+Transmission!P665+Generation!P665+Retail!P665+Misc!P665","v":0},{"$f":"+Distribution!Q665+Transmission!Q665+Generation!Q665+Retail!Q665+Misc!Q665","v":0},{"$f":"ROUND(SUM(I665:Q665)-H665,0)","v":0}]
[666,null,null,null,"System Generation",{"$f":"IF(Function=\"gen\",\"F105G\",IF(Function=\"TRN\",\"F105T\",IF(Function=\"DIS\",\"F105D\",IF(Function=\"RETAIL\",\"F105R\",IF(Function=\"MISC\",\"F105M\",\"ERR\")))))","v":"F105D"},null,{"$f":"+Distribution!H666+Transmission!H666+Generation!H666+Retail!H666+Misc!H666","v":3385864.0466433885},{"$f":"+Distribution!I666+Transmission!I666+Generation!I666+Retail!I666+Misc!I666","v":1436537.5430974821},{"$f":"+Distribution!J666+Transmission!J666+Generation!J666+Retail!J666+Misc!J666","v":456925.19271664647},{"$f":"+Distribution!K666+Transmission!K666+Generation!K666+Retail!K666+Misc!K666","v":723958.52061802126},{"$f":"+Distribution!L666+Transmission!L666+Generation!L666+Retail!L666+Misc!L666","v":286080.26434320828},{"$f":"+Distribution!M666+Transmission!M666+Generation!M666+Retail!M666+Misc!M666","v":353702.63341547799},{"$f":"+Distribution!N666+Transmission!N666+Generation!N666+Retail!N666+Misc!N666","v":120537.04833297918},{"$f":"+Distribution!O666+Transmission!O666+Generation!O666+Retail!O666+Misc!O666","v":8122.8441195734486},{"$f":"+Distribution!P666+Transmission!P666+Generation!P666+Retail!P666+Misc!P666","v":0},{"$f":"+Distribution!Q666+Transmission!Q666+Generation!Q666+Retail!Q666+Misc!Q666","v":0},0]
[667,null,null,null,"System Overheads",{"$f":"IF(Function=\"gen\",\"F102G\",IF(Function=\"TRN\",\"F102T\",IF(Function=\"DIS\",\"F102D\",IF(Function=\"RETAIL\",\"F102R\",IF(Function=\"MISC\",\"F102M\",\"ERR\")))))","v":"F102D"},null,{"$f":"+Distribution!H667+Transmission!H667+Generation!H667+Retail!H667+Misc!H667","v":1059718.656618322},{"$f":"+Distribution!I667+Transmission!I667+Generation!I667+Retail!I667+Misc!I667","v":501901.87905131956},{"$f":"+Distribution!J667+Transmission!J667+Generation!J667+Retail!J667+Misc!J667","v":147748.30545169138},{"$f":"+Distribution!K667+Transmission!K667+Generation!K667+Retail!K667+Misc!K667","v":203735.54252050136},{"$f":"+Distribution!L667+Transmission!L667+Generation!L667+Retail!L667+Misc!L667","v":78485.105134740938},{"$f":"+Distribution!M667+Transmission!M667+Generation!M667+Retail!M667+Misc!M667","v":80260.194118225743},{"$f":"+Distribution!N667+Transmission!N667+Generation!N667+Retail!N667+Misc!N667","v":41609.973258174519},{"$f":"+Distribution!O667+Transmission!O667+Generation!O667+Retail!O667+Misc!O667","v":5977.6570836685933},{"$f":"+Distribution!P667+Transmission!P667+Generation!P667+Retail!P667+Misc!P667","v":0},{"$f":"+Distribution!Q667+Transmission!Q667+Generation!Q667+Retail!Q667+Misc!Q667","v":0},0]
[668,null,null,null,"Customer - System","F42",null,{"$f":"+Distribution!H668+Transmission!H668+Generation!H668+Retail!H668+Misc!H668","v":416887.11970068014},{"$f":"+Distribution!I668+Transmission!I668+Generation!I668+Retail!I668+Misc!I668","v":336373.22497030726},{"$f":"+Distribution!J668+Transmission!J668+Generation!J668+Retail!J668+Misc!J668","v":57131.735768495215},{"$f":"+Distribution!K668+Transmission!K668+Generation!K668+Retail!K668+Misc!K668","v":3469.7090116516483},{"$f":"+Distribution!L668+Transmission!L668+Generation!L668+Retail!L668+Misc!L668","v":711.60723637502508},{"$f":"+Distribution!M668+Transmission!M668+Generation!M668+Retail!M668+Misc!M668","v":12.287815183556864},{"$f":"+Distribution!N668+Transmission!N668+Generation!N668+Retail!N668+Misc!N668","v":10177.479680231238},{"$f":"+Distribution!O668+Transmission!O668+Generation!O668+Retail!O668+Misc!O668","v":9011.0752184361754},{"$f":"+Distribution!P668+Transmission!P668+Generation!P668+Retail!P668+Misc!P668","v":0},{"$f":"+Distribution!Q668+Transmission!Q668+Generation!Q668+Retail!Q668+Misc!Q668","v":0},0]
[669,null,null,null,"Energy",{"$f":"IF(Classification=\"DEMAND\",\"F12\",IF(Classification=\"ENERGY\",\"F30\",\"F10\"))","v":"F10"},null,{"$f":"+Distribution!H669+Transmission!H669+Generation!H669+Retail!H669+Misc!H669","v":0},{"$f":"+Distribution!I669+Transmission!I669+Generation!I669+Retail!I669+Misc!I669","v":0},{"$f":"+Distribution!J669+Transmission!J669+Generation!J669+Retail!J669+Misc!J669","v":0},{"$f":"+Distribution!K669+Transmission!K669+Generation!K669+Retail!K669+Misc!K669","v":0},{"$f":"+Distribution!L669+Transmission!L669+Generation!L669+Retail!L669+Misc!L669","v":0},{"$f":"+Distribution!M669+Transmission!M669+Generation!M669+Retail!M669+Misc!M669","v":0},{"$f":"+Distribution!N669+Transmission!N669+Generation!N669+Retail!N669+Misc!N669","v":0},{"$f":"+Distribution!O669+Transmission!O669+Generation!O669+Retail!O669+Misc!O669","v":0},{"$f":"+Distribution!P669+Transmission!P669+Generation!P669+Retail!P669+Misc!P669","v":0},{"$f":"+Distribution!Q669+Transmission!Q669+Generation!Q669+Retail!Q669+Misc!Q669","v":0},0]
[670,null,null,null,"SSGCT",{"$f":"IF(Function=\"gen\",\"F105G\",IF(Function=\"TRN\",\"F105T\",IF(Function=\"DIS\",\"F105D\",IF(Function=\"RETAIL\",\"F105R\",IF(Function=\"MISC\",\"F105M\",\"ERR\")))))","v":"F105D"},null,{"$f":"+Distribution!H670+Transmission!H670+Generation!H670+Retail!H670+Misc!H670","v":0},{"$f":"+Distribution!I670+Transmission!I670+Generation!I670+Retail!I670+Misc!I670","v":0},{"$f":"+Distribution!J670+Transmission!J670+Generation!J670+Retail!J670+Misc!J670","v":0},{"$f":"+Distribution!K670+Transmission!K670+Generation!K670+Retail!K670+Misc!K670","v":0},{"$f":"+Distribution!L670+Transmission!L670+Generation!L670+Retail!L670+Misc!L670","v":0},{"$f":"+Distribution!M670+Transmission!M670+Generation!M670+Retail!M670+Misc!M670","v":0},{"$f":"+Distribution!N670+Transmission!N670+Generation!N670+Retail!N670+Misc!N670","v":0},{"$f":"+Distribution!O670+Transmission!O670+Generation!O670+Retail!O670+Misc!O670","v":0},{"$f":"+Distribution!P670+Transmission!P670+Generation!P670+Retail!P670+Misc!P670","v":0},{"$f":"+Distribution!Q670+Transmission!Q670+Generation!Q670+Retail!Q670+Misc!Q670","v":0},0]
[671,null,null,null,"SSGCH",{"$f":"IF(Function=\"gen\",\"F105G\",IF(Function=\"TRN\",\"F105T\",IF(Function=\"DIS\",\"F105D\",IF(Function=\"RETAIL\",\"F105R\",IF(Function=\"MISC\",\"F105M\",\"ERR\")))))","v":"F105D"},null,{"$f":"+Distribution!H671+Transmission!H671+Generation!H671+Retail!H671+Misc!H671","v":0},{"$f":"+Distribution!I671+Transmission!I671+Generation!I671+Retail!I671+Misc!I671","v":0},{"$f":"+Distribution!J671+Transmission!J671+Generation!J671+Retail!J671+Misc!J671","v":0},{"$f":"+Distribution!K671+Transmission!K671+Generation!K671+Retail!K671+Misc!K671","v":0},{"$f":"+Distribution!L671+Transmission!L671+Generation!L671+Retail!L671+Misc!L671","v":0},{"$f":"+Distribution!M671+Transmission!M671+Generation!M671+Retail!M671+Misc!M671","v":0},{"$f":"+Distribution!N671+Transmission!N671+Generation!N671+Retail!N671+Misc!N671","v":0},{"$f":"+Distribution!O671+Transmission!O671+Generation!O671+Retail!O671+Misc!O671","v":0},{"$f":"+Distribution!P671+Transmission!P671+Generation!P671+Retail!P671+Misc!P671","v":0},{"$f":"+Distribution!Q671+Transmission!Q671+Generation!Q671+Retail!Q671+Misc!Q671","v":0},0]
[672,null,null,"Total Amort. Intangible Plant",null,null,null,{"$f":"+Distribution!H672+Transmission!H672+Generation!H672+Retail!H672+Misc!H672","v":4862653.6729623908},{"$f":"+Distribution!I672+Transmission!I672+Generation!I672+Retail!I672+Misc!I672","v":2274906.5737181413},{"$f":"+Distribution!J672+Transmission!J672+Generation!J672+Retail!J672+Misc!J672","v":661831.48761473293},{"$f":"+Distribution!K672+Transmission!K672+Generation!K672+Retail!K672+Misc!K672","v":931196.12373170815},{"$f":"+Distribution!L672+Transmission!L672+Generation!L672+Retail!L672+Misc!L672","v":365289.14466387528},{"$f":"+Distribution!M672+Transmission!M672+Generation!M672+Retail!M672+Misc!M672","v":433985.05049324036},{"$f":"+Distribution!N672+Transmission!N672+Generation!N672+Retail!N672+Misc!N672","v":172332.22909939234},{"$f":"+Distribution!O672+Transmission!O672+Generation!O672+Retail!O672+Misc!O672","v":23113.063641300476},{"$f":"+Distribution!P672+Transmission!P672+Generation!P672+Retail!P672+Misc!P672","v":0},{"$f":"+Distribution!Q672+Transmission!Q672+Generation!Q672+Retail!Q672+Misc!Q672","v":0},0]
[673]
[674]
[675]
[676,null,null,null,null,null,null,"AMORTIZATION EXPENSE (cont'd)"]
[677,null,"A",null,"B","C",null,"D","E","F","G","H","I","J","K","L","M"]
[678,null,null,null,null,null,null,{"$f":"'Hot Sheet'!$H$10","v":"Washington"},null,{"$f":"'Hot Sheet'!$J$10","v":"Small General"},{"$f":"'Hot Sheet'!$K$10","v":"Large General"},{"$f":"'Hot Sheet'!$L$10","v":"Large General"},{"$f":"'Hot Sheet'!$M$10","v":"Large General"},{"$f":"'Hot Sheet'!$N$10","v":"Agricultural"},{"$f":"'Hot Sheet'!$O$10","v":"Street & Area"}]
[679,null,"FERC",null,null,"COS",null,{"$f":"'Hot Sheet'!$H$11","v":"Jurisdiction"},{"$f":"'Hot Sheet'!$I$11","v":"Residential"},{"$f":"'Hot Sheet'!$J$11","v":"Service"},{"$f":"'Hot Sheet'!$K$11","v":"Service <1,000 kW"},{"$f":"'Hot Sheet'!$L$11","v":"Service >1,000 kW"},{"$f":"'Hot Sheet'!$M$11","v":"Dedicated Facilities"},{"$f":"'Hot Sheet'!$N$11","v":"Pumping"},{"$f":"'Hot Sheet'!$O$11","v":"Lighting"}]
[680,null,"ACCT",null,"DESCRIPTION ","Factor",null,{"$f":"'Hot Sheet'!$H$12","v":"Normalized"},{"$f":"'Hot Sheet'!$I$12","v":"Schedule 16"},{"$f":"'Hot Sheet'!$J$12","v":"Schedule 24"},{"$f":"'Hot Sheet'!$K$12","v":"Schedule 36"},{"$f":"'Hot Sheet'!$L$12","v":"Schedule 48T"},{"$f":"'Hot Sheet'!$M$12","v":"Schedule 48T"},{"$f":"'Hot Sheet'!$N$12","v":"Schedule 40"},{"$f":"'Hot Sheet'!$O$12","v":"Sch. 15,51-54,57"}]
[681,null,"404MP",null,"Amort of LT Plant - Mining Plant",{"$f":"IF(Classification=\"DEMAND\",\"F12\",IF(Classification=\"ENERGY\",\"F30\",\"F10\"))","v":"F10"},null,{"$f":"+Distribution!H681+Transmission!H681+Generation!H681+Retail!H681+Misc!H681","v":0},{"$f":"+Distribution!I681+Transmission!I681+Generation!I681+Retail!I681+Misc!I681","v":0},{"$f":"+Distribution!J681+Transmission!J681+Generation!J681+Retail!J681+Misc!J681","v":0},{"$f":"+Distribution!K681+Transmission!K681+Generation!K681+Retail!K681+Misc!K681","v":0},{"$f":"+Distribution!L681+Transmission!L681+Generation!L681+Retail!L681+Misc!L681","v":0},{"$f":"+Distribution!M681+Transmission!M681+Generation!M681+Retail!M681+Misc!M681","v":0},{"$f":"+Distribution!N681+Transmission!N681+Generation!N681+Retail!N681+Misc!N681","v":0},{"$f":"+Distribution!O681+Transmission!O681+Generation!O681+Retail!O681+Misc!O681","v":0},{"$f":"+Distribution!P681+Transmission!P681+Generation!P681+Retail!P681+Misc!P681","v":0},{"$f":"+Distribution!Q681+Transmission!Q681+Generation!Q681+Retail!Q681+Misc!Q681","v":0},{"$f":"ROUND(SUM(I681:Q681)-H681,0)","v":0}]
[682]
[683,null,"404OP",null,"Amort of LT Plant-Other Plant","F30",null,{"$f":"+Distribution!H683+Transmission!H683+Generation!H683+Retail!H683+Misc!H683","v":0},{"$f":"+Distribution!I683+Transmission!I683+Generation!I683+Retail!I683+Misc!I683","v":0},{"$f":"+Distribution!J683+Transmission!J683+Generation!J683+Retail!J683+Misc!J683","v":0},{"$f":"+Distribution!K683+Transmission!K683+Generation!K683+Retail!K683+Misc!K683","v":0},{"$f":"+Distribution!L683+Transmission!L683+Generation!L683+Retail!L683+Misc!L683","v":0},{"$f":"+Distribution!M683+Transmission!M683+Generation!M683+Retail!M683+Misc!M683","v":0},{"$f":"+Distribution!N683+Transmission!N683+Generation!N683+Retail!N683+Misc!N683","v":0},{"$f":"+Distribution!O683+Transmission!O683+Generation!O683+Retail!O683+Misc!O683","v":0},{"$f":"+Distribution!P683+Transmission!P683+Generation!P683+Retail!P683+Misc!P683","v":0},{"$f":"+Distribution!Q683+Transmission!Q683+Generation!Q683+Retail!Q683+Misc!Q683","v":0},{"$f":"ROUND(SUM(I683:Q683)-H683,0)","v":0}]
[684]
[685,null,"404HP",null,"Amort of Other Electric Plant","F110",null,{"$f":"+Distribution!H685+Transmission!H685+Generation!H685+Retail!H685+Misc!H685","v":52718.945847581628},{"$f":"+Distribution!I685+Transmission!I685+Generation!I685+Retail!I685+Misc!I685","v":25008.151362075758},{"$f":"+Distribution!J685+Transmission!J685+Generation!J685+Retail!J685+Misc!J685","v":7197.2942236672361},{"$f":"+Distribution!K685+Transmission!K685+Generation!K685+Retail!K685+Misc!K685","v":9934.2340354277494},{"$f":"+Distribution!L685+Transmission!L685+Generation!L685+Retail!L685+Misc!L685","v":3886.9497789877819},{"$f":"+Distribution!M685+Transmission!M685+Generation!M685+Retail!M685+Misc!M685","v":4538.061702650044},{"$f":"+Distribution!N685+Transmission!N685+Generation!N685+Retail!N685+Misc!N685","v":1882.716179893376},{"$f":"+Distribution!O685+Transmission!O685+Generation!O685+Retail!O685+Misc!O685","v":271.53856487968983},{"$f":"+Distribution!P685+Transmission!P685+Generation!P685+Retail!P685+Misc!P685","v":0},{"$f":"+Distribution!Q685+Transmission!Q685+Generation!Q685+Retail!Q685+Misc!Q685","v":0},{"$f":"ROUND(SUM(I685:Q685)-H685,0)","v":0}]
[686]
[687,null,"405",null,"Amort of Other Electric Plant","F110",null,{"$f":"+Distribution!H687+Transmission!H687+Generation!H687+Retail!H687+Misc!H687","v":0},{"$f":"+Distribution!I687+Transmission!I687+Generation!I687+Retail!I687+Misc!I687","v":0},{"$f":"+Distribution!J687+Transmission!J687+Generation!J687+Retail!J687+Misc!J687","v":0},{"$f":"+Distribution!K687+Transmission!K687+Generation!K687+Retail!K687+Misc!K687","v":0},{"$f":"+Distribution!L687+Transmission!L687+Generation!L687+Retail!L687+Misc!L687","v":0},{"$f":"+Distribution!M687+Transmission!M687+Generation!M687+Retail!M687+Misc!M687","v":0},{"$f":"+Distribution!N687+Transmission!N687+Generation!N687+Retail!N687+Misc!N687","v":0},{"$f":"+Distribution!O687+Transmission!O687+Generation!O687+Retail!O687+Misc!O687","v":0},{"$f":"+Distribution!P687+Transmission!P687+Generation!P687+Retail!P687+Misc!P687","v":0},{"$f":"+Distribution!Q687+Transmission!Q687+Generation!Q687+Retail!Q687+Misc!Q687","v":0},{"$f":"ROUND(SUM(I687:Q687)-H687,0)","v":0}]
[688]
[689,null,"406",null,"Amort of Plant Acquisition Adj",{"$f":"IF(Classification=\"DEMAND\",\"F12\",IF(Classification=\"ENERGY\",\"F30\",\"F10\"))","v":"F10"},null,{"$f":"+Distribution!H689+Transmission!H689+Generation!H689+Retail!H689+Misc!H689","v":0},{"$f":"+Distribution!I689+Transmission!I689+Generation!I689+Retail!I689+Misc!I689","v":0},{"$f":"+Distribution!J689+Transmission!J689+Generation!J689+Retail!J689+Misc!J689","v":0},{"$f":"+Distribution!K689+Transmission!K689+Generation!K689+Retail!K689+Misc!K689","v":0},{"$f":"+Distribution!L689+Transmission!L689+Generation!L689+Retail!L689+Misc!L689","v":0},{"$f":"+Distribution!M689+Transmission!M689+Generation!M689+Retail!M689+Misc!M689","v":0},{"$f":"+Distribution!N689+Transmission!N689+Generation!N689+Retail!N689+Misc!N689","v":0},{"$f":"+Distribution!O689+Transmission!O689+Generation!O689+Retail!O689+Misc!O689","v":0},{"$f":"+Distribution!P689+Transmission!P689+Generation!P689+Retail!P689+Misc!P689","v":0},{"$f":"+Distribution!Q689+Transmission!Q689+Generation!Q689+Retail!Q689+Misc!Q689","v":0},{"$f":"ROUND(SUM(I689:Q689)-H689,0)","v":0}]
[690]
[691,null,"407",null,"Amort of Prop Losses, Unrec Plant,","F110",null,{"$f":"+Distribution!H691+Transmission!H691+Generation!H691+Retail!H691+Misc!H691","v":322905.22191917192},{"$f":"+Distribution!I691+Transmission!I691+Generation!I691+Retail!I691+Misc!I691","v":153175.72336719531},{"$f":"+Distribution!J691+Transmission!J691+Generation!J691+Retail!J691+Misc!J691","v":44083.656286110163},{"$f":"+Distribution!K691+Transmission!K691+Generation!K691+Retail!K691+Misc!K691","v":60847.49977894219},{"$f":"+Distribution!L691+Transmission!L691+Generation!L691+Retail!L691+Misc!L691","v":23807.691159103513},{"$f":"+Distribution!M691+Transmission!M691+Generation!M691+Retail!M691+Misc!M691","v":27795.772423327544},{"$f":"+Distribution!N691+Transmission!N691+Generation!N691+Retail!N691+Misc!N691","v":11531.696548654985},{"$f":"+Distribution!O691+Transmission!O691+Generation!O691+Retail!O691+Misc!O691","v":1663.1823558382457},{"$f":"+Distribution!P691+Transmission!P691+Generation!P691+Retail!P691+Misc!P691","v":0},{"$f":"+Distribution!Q691+Transmission!Q691+Generation!Q691+Retail!Q691+Misc!Q691","v":0},{"$f":"ROUND(SUM(I691:Q691)-H691,0)","v":0}]
[692]
[693]
[694,null,"TOTAL AMORTIZATION EXPENSE",null,null,null,null,{"$f":"+Distribution!H694+Transmission!H694+Generation!H694+Retail!H694+Misc!H694","v":5547662.1601642761},{"$f":"+Distribution!I694+Transmission!I694+Generation!I694+Retail!I694+Misc!I694","v":2595895.9347757259},{"$f":"+Distribution!J694+Transmission!J694+Generation!J694+Retail!J694+Misc!J694","v":755292.81394347409},{"$f":"+Distribution!K694+Transmission!K694+Generation!K694+Retail!K694+Misc!K694","v":1062360.499437979},{"$f":"+Distribution!L694+Transmission!L694+Generation!L694+Retail!L694+Misc!L694","v":416648.56525249081},{"$f":"+Distribution!M694+Transmission!M694+Generation!M694+Retail!M694+Misc!M694","v":494160.51632998174},{"$f":"+Distribution!N694+Transmission!N694+Generation!N694+Retail!N694+Misc!N694","v":196867.71112194128},{"$f":"+Distribution!O694+Transmission!O694+Generation!O694+Retail!O694+Misc!O694","v":26436.119302683685},{"$f":"+Distribution!P694+Transmission!P694+Generation!P694+Retail!P694+Misc!P694","v":0},{"$f":"+Distribution!Q694+Transmission!Q694+Generation!Q694+Retail!Q694+Misc!Q694","v":0},{"$f":"ROUND(SUM(I694:Q694)-H694,0)","v":0}]
[695]
[696]
[697,null,null,null,null,null,null,"TAX OTHER THAN INCOME"]
[698]
[699]
[700,null,"408","Taxes Other Than Income",null,{"$f":"IF(Function=\"gen\",\"F101G\",IF(Function=\"TRN\",\"F101T\",IF(Function=\"DIS\",\"F101D\",IF(Function=\"RETAIL\",\"F101R\",IF(Function=\"MISC\",\"F101M\",\"ERR\")))))","v":"F101D"},null,{"$f":"+Distribution!H700+Transmission!H700+Generation!H700+Retail!H700+Misc!H700","v":8181123.6413779072},{"$f":"+Distribution!I700+Transmission!I700+Generation!I700+Retail!I700+Misc!I700","v":3879008.7653544778},{"$f":"+Distribution!J700+Transmission!J700+Generation!J700+Retail!J700+Misc!J700","v":1135970.1905481771},{"$f":"+Distribution!K700+Transmission!K700+Generation!K700+Retail!K700+Misc!K700","v":1571822.7141983069},{"$f":"+Distribution!L700+Transmission!L700+Generation!L700+Retail!L700+Misc!L700","v":604898.28961716732},{"$f":"+Distribution!M700+Transmission!M700+Generation!M700+Retail!M700+Misc!M700","v":633595.96983671153},{"$f":"+Distribution!N700+Transmission!N700+Generation!N700+Retail!N700+Misc!N700","v":316730.24831842189},{"$f":"+Distribution!O700+Transmission!O700+Generation!O700+Retail!O700+Misc!O700","v":39097.46350464542},{"$f":"+Distribution!P700+Transmission!P700+Generation!P700+Retail!P700+Misc!P700","v":0},{"$f":"+Distribution!Q700+Transmission!Q700+Generation!Q700+Retail!Q700+Misc!Q700","v":0},{"$f":"ROUND(SUM(I700:Q700)-H700,0)","v":0}]
[701,null,null,null,"Customer - System","F101D",null,{"$f":"+Distribution!H701+Transmission!H701+Generation!H701+Retail!H701+Misc!H701","v":11801652.780000003},{"$f":"+Distribution!I701+Transmission!I701+Generation!I701+Retail!I701+Misc!I701","v":5597965.2315378329},{"$f":"+Distribution!J701+Transmission!J701+Generation!J701+Retail!J701+Misc!J701","v":1638868.8198207999},{"$f":"+Distribution!K701+Transmission!K701+Generation!K701+Retail!K701+Misc!K701","v":2266418.0052705351},{"$f":"+Distribution!L701+Transmission!L701+Generation!L701+Retail!L701+Misc!L701","v":872104.13091842865},{"$f":"+Distribution!M701+Transmission!M701+Generation!M701+Retail!M701+Misc!M701","v":912746.26697966864},{"$f":"+Distribution!N701+Transmission!N701+Generation!N701+Retail!N701+Misc!N701","v":457039.88007776224},{"$f":"+Distribution!O701+Transmission!O701+Generation!O701+Retail!O701+Misc!O701","v":56510.445394974937},{"$f":"+Distribution!P701+Transmission!P701+Generation!P701+Retail!P701+Misc!P701","v":0},{"$f":"+Distribution!Q701+Transmission!Q701+Generation!Q701+Retail!Q701+Misc!Q701","v":0},{"$f":"ROUND(SUM(I701:Q701)-H701,0)","v":0}]
[702,null,null,"Total Taxes Other Than Income",null,null,null,{"$f":"+Distribution!H702+Transmission!H702+Generation!H702+Retail!H702+Misc!H702","v":19982776.421377912},{"$f":"+Distribution!I702+Transmission!I702+Generation!I702+Retail!I702+Misc!I702","v":9476973.9968923088},{"$f":"+Distribution!J702+Transmission!J702+Generation!J702+Retail!J702+Misc!J702","v":2774839.0103689763},{"$f":"+Distribution!K702+Transmission!K702+Generation!K702+Retail!K702+Misc!K702","v":3838240.7194688423},{"$f":"+Distribution!L702+Transmission!L702+Generation!L702+Retail!L702+Misc!L702","v":1477002.4205355959},{"$f":"+Distribution!M702+Transmission!M702+Generation!M702+Retail!M702+Misc!M702","v":1546342.2368163802},{"$f":"+Distribution!N702+Transmission!N702+Generation!N702+Retail!N702+Misc!N702","v":773770.12839618407},{"$f":"+Distribution!O702+Transmission!O702+Generation!O702+Retail!O702+Misc!O702","v":95607.90889962035},{"$f":"+Distribution!P702+Transmission!P702+Generation!P702+Retail!P702+Misc!P702","v":0},{"$f":"+Distribution!Q702+Transmission!Q702+Generation!Q702+Retail!Q702+Misc!Q702","v":0},{"$f":"ROUND(SUM(I702:Q702)-H702,0)","v":0}]
[703]
[704]
[705,null,null,null,null,null,null,"DEFERRED INCOME TAXES"]
[706]
[707]
[708,null,"41140","Deferred I T C - Federal",null,{"$f":"IF(Function=\"gen\",\"F101G\",IF(Function=\"TRN\",\"F101T\",IF(Function=\"DIS\",\"F101D\",IF(Function=\"RETAIL\",\"F101R\",IF(Function=\"MISC\",\"F101M\",\"ERR\")))))","v":"F101D"},null,{"$f":"+Distribution!H708+Transmission!H708+Generation!H708+Retail!H708+Misc!H708","v":0},{"$f":"+Distribution!I708+Transmission!I708+Generation!I708+Retail!I708+Misc!I708","v":0},{"$f":"+Distribution!J708+Transmission!J708+Generation!J708+Retail!J708+Misc!J708","v":0},{"$f":"+Distribution!K708+Transmission!K708+Generation!K708+Retail!K708+Misc!K708","v":0},{"$f":"+Distribution!L708+Transmission!L708+Generation!L708+Retail!L708+Misc!L708","v":0},{"$f":"+Distribution!M708+Transmission!M708+Generation!M708+Retail!M708+Misc!M708","v":0},{"$f":"+Distribution!N708+Transmission!N708+Generation!N708+Retail!N708+Misc!N708","v":0},{"$f":"+Distribution!O708+Transmission!O708+Generation!O708+Retail!O708+Misc!O708","v":0},{"$f":"+Distribution!P708+Transmission!P708+Generation!P708+Retail!P708+Misc!P708","v":0},{"$f":"+Distribution!Q708+Transmission!Q708+Generation!Q708+Retail!Q708+Misc!Q708","v":0},{"$f":"ROUND(SUM(I708:Q708)-H708,0)","v":0}]
[709]
[710,null,"41141","Deferred I T C - Idaho",null,{"$f":"IF(Function=\"gen\",\"F101G\",IF(Function=\"TRN\",\"F101T\",IF(Function=\"DIS\",\"F101D\",IF(Function=\"RETAIL\",\"F101R\",IF(Function=\"MISC\",\"F101M\",\"ERR\")))))","v":"F101D"},null,{"$f":"+Distribution!H710+Transmission!H710+Generation!H710+Retail!H710+Misc!H710","v":0},{"$f":"+Distribution!I710+Transmission!I710+Generation!I710+Retail!I710+Misc!I710","v":0},{"$f":"+Distribution!J710+Transmission!J710+Generation!J710+Retail!J710+Misc!J710","v":0},{"$f":"+Distribution!K710+Transmission!K710+Generation!K710+Retail!K710+Misc!K710","v":0},{"$f":"+Distribution!L710+Transmission!L710+Generation!L710+Retail!L710+Misc!L710","v":0},{"$f":"+Distribution!M710+Transmission!M710+Generation!M710+Retail!M710+Misc!M710","v":0},{"$f":"+Distribution!N710+Transmission!N710+Generation!N710+Retail!N710+Misc!N710","v":0},{"$f":"+Distribution!O710+Transmission!O710+Generation!O710+Retail!O710+Misc!O710","v":0},{"$f":"+Distribution!P710+Transmission!P710+Generation!P710+Retail!P710+Misc!P710","v":0},{"$f":"+Distribution!Q710+Transmission!Q710+Generation!Q710+Retail!Q710+Misc!Q710","v":0},{"$f":"ROUND(SUM(I710:Q710)-H710,0)","v":0}]
[711]
[712,null,"TOTAL DEFERRED ITC",null,null,null,null,{"$f":"+Distribution!H712+Transmission!H712+Generation!H712+Retail!H712+Misc!H712","v":0},{"$f":"+Distribution!I712+Transmission!I712+Generation!I712+Retail!I712+Misc!I712","v":0},{"$f":"+Distribution!J712+Transmission!J712+Generation!J712+Retail!J712+Misc!J712","v":0},{"$f":"+Distribution!K712+Transmission!K712+Generation!K712+Retail!K712+Misc!K712","v":0},{"$f":"+Distribution!L712+Transmission!L712+Generation!L712+Retail!L712+Misc!L712","v":0},{"$f":"+Distribution!M712+Transmission!M712+Generation!M712+Retail!M712+Misc!M712","v":0},{"$f":"+Distribution!N712+Transmission!N712+Generation!N712+Retail!N712+Misc!N712","v":0},{"$f":"+Distribution!O712+Transmission!O712+Generation!O712+Retail!O712+Misc!O712","v":0},{"$f":"+Distribution!P712+Transmission!P712+Generation!P712+Retail!P712+Misc!P712","v":0},{"$f":"+Distribution!Q712+Transmission!Q712+Generation!Q712+Retail!Q712+Misc!Q712","v":0},{"$f":"ROUND(SUM(I712:Q712)-H712,0)","v":0}]
[713]
[714]
[715,null,null,null,null,null,null,"DEFERRED INCOME TAXES"]
[716]
[717]
[718,null,"41010","Deferred Income Tax - Federal-DR",null,{"$f":"IF(Function=\"gen\",\"F101G\",IF(Function=\"TRN\",\"F101T\",IF(Function=\"DIS\",\"F101D\",IF(Function=\"RETAIL\",\"F101R\",IF(Function=\"MISC\",\"F101M\",\"ERR\")))))","v":"F101D"},null,{"$f":"+Distribution!H718+Transmission!H718+Generation!H718+Retail!H718+Misc!H718","v":38443284.936914571},{"$f":"+Distribution!I718+Transmission!I718+Generation!I718+Retail!I718+Misc!I718","v":17619342.677938402},{"$f":"+Distribution!J718+Transmission!J718+Generation!J718+Retail!J718+Misc!J718","v":5290751.9090662925},{"$f":"+Distribution!K718+Transmission!K718+Generation!K718+Retail!K718+Misc!K718","v":7651356.7858848032},{"$f":"+Distribution!L718+Transmission!L718+Generation!L718+Retail!L718+Misc!L718","v":2971202.7873785249},{"$f":"+Distribution!M718+Transmission!M718+Generation!M718+Retail!M718+Misc!M718","v":3305148.6490362943},{"$f":"+Distribution!N718+Transmission!N718+Generation!N718+Retail!N718+Misc!N718","v":1450908.0337171808},{"$f":"+Distribution!O718+Transmission!O718+Generation!O718+Retail!O718+Misc!O718","v":154574.09389307519},{"$f":"+Distribution!P718+Transmission!P718+Generation!P718+Retail!P718+Misc!P718","v":0},{"$f":"+Distribution!Q718+Transmission!Q718+Generation!Q718+Retail!Q718+Misc!Q718","v":0},{"$f":"ROUND(SUM(I718:Q718)-H718,0)","v":0}]
[719]
[720,null,"41011","Deferred Income Tax - State-DR",null,{"$f":"IF(Function=\"gen\",\"F101G\",IF(Function=\"TRN\",\"F101T\",IF(Function=\"DIS\",\"F101D\",IF(Function=\"RETAIL\",\"F101R\",IF(Function=\"MISC\",\"F101M\",\"ERR\")))))","v":"F101D"},null,{"$f":"+Distribution!H720+Transmission!H720+Generation!H720+Retail!H720+Misc!H720","v":0},{"$f":"+Distribution!I720+Transmission!I720+Generation!I720+Retail!I720+Misc!I720","v":0},{"$f":"+Distribution!J720+Transmission!J720+Generation!J720+Retail!J720+Misc!J720","v":0},{"$f":"+Distribution!K720+Transmission!K720+Generation!K720+Retail!K720+Misc!K720","v":0},{"$f":"+Distribution!L720+Transmission!L720+Generation!L720+Retail!L720+Misc!L720","v":0},{"$f":"+Distribution!M720+Transmission!M720+Generation!M720+Retail!M720+Misc!M720","v":0},{"$f":"+Distribution!N720+Transmission!N720+Generation!N720+Retail!N720+Misc!N720","v":0},{"$f":"+Distribution!O720+Transmission!O720+Generation!O720+Retail!O720+Misc!O720","v":0},{"$f":"+Distribution!P720+Transmission!P720+Generation!P720+Retail!P720+Misc!P720","v":0},{"$f":"+Distribution!Q720+Transmission!Q720+Generation!Q720+Retail!Q720+Misc!Q720","v":0},{"$f":"ROUND(SUM(I720:Q720)-H720,0)","v":0}]
[721]
[722,null,"41110","Deferred Income Tax - Federal-CR",null,{"$f":"IF(Function=\"gen\",\"F101G\",IF(Function=\"TRN\",\"F101T\",IF(Function=\"DIS\",\"F101D\",IF(Function=\"RETAIL\",\"F101R\",IF(Function=\"MISC\",\"F101M\",\"ERR\")))))","v":"F101D"},null,{"$f":"+Distribution!H722+Transmission!H722+Generation!H722+Retail!H722+Misc!H722","v":-22028615.199486203},{"$f":"+Distribution!I722+Transmission!I722+Generation!I722+Retail!I722+Misc!I722","v":-10503787.600369118},{"$f":"+Distribution!J722+Transmission!J722+Generation!J722+Retail!J722+Misc!J722","v":-3061681.067280693},{"$f":"+Distribution!K722+Transmission!K722+Generation!K722+Retail!K722+Misc!K722","v":-4207142.6168961907},{"$f":"+Distribution!L722+Transmission!L722+Generation!L722+Retail!L722+Misc!L722","v":-1616478.4233726775},{"$f":"+Distribution!M722+Transmission!M722+Generation!M722+Retail!M722+Misc!M722","v":-1676350.9455312369},{"$f":"+Distribution!N722+Transmission!N722+Generation!N722+Retail!N722+Misc!N722","v":-855772.45132244111},{"$f":"+Distribution!O722+Transmission!O722+Generation!O722+Retail!O722+Misc!O722","v":-107402.09471384702},{"$f":"+Distribution!P722+Transmission!P722+Generation!P722+Retail!P722+Misc!P722","v":0},{"$f":"+Distribution!Q722+Transmission!Q722+Generation!Q722+Retail!Q722+Misc!Q722","v":0},{"$f":"ROUND(SUM(I722:Q722)-H722,0)","v":0}]
[723]
[724,null,"41111","Deferred Income Tax - State-CR",null,{"$f":"IF(Function=\"gen\",\"F101G\",IF(Function=\"TRN\",\"F101T\",IF(Function=\"DIS\",\"F101D\",IF(Function=\"RETAIL\",\"F101R\",IF(Function=\"MISC\",\"F101M\",\"ERR\")))))","v":"F101D"},null,{"$f":"+Distribution!H724+Transmission!H724+Generation!H724+Retail!H724+Misc!H724","v":0},{"$f":"+Distribution!I724+Transmission!I724+Generation!I724+Retail!I724+Misc!I724","v":0},{"$f":"+Distribution!J724+Transmission!J724+Generation!J724+Retail!J724+Misc!J724","v":0},{"$f":"+Distribution!K724+Transmission!K724+Generation!K724+Retail!K724+Misc!K724","v":0},{"$f":"+Distribution!L724+Transmission!L724+Generation!L724+Retail!L724+Misc!L724","v":0},{"$f":"+Distribution!M724+Transmission!M724+Generation!M724+Retail!M724+Misc!M724","v":0},{"$f":"+Distribution!N724+Transmission!N724+Generation!N724+Retail!N724+Misc!N724","v":0},{"$f":"+Distribution!O724+Transmission!O724+Generation!O724+Retail!O724+Misc!O724","v":0},{"$f":"+Distribution!P724+Transmission!P724+Generation!P724+Retail!P724+Misc!P724","v":0},{"$f":"+Distribution!Q724+Transmission!Q724+Generation!Q724+Retail!Q724+Misc!Q724","v":0},{"$f":"ROUND(SUM(I724:Q724)-H724,0)","v":0}]
[725]
[726,null,"TOTAL DEFERRED INCOME TAXES",null,null,null,null,{"$f":"+Distribution!H726+Transmission!H726+Generation!H726+Retail!H726+Misc!H726","v":16414669.737428367},{"$f":"+Distribution!I726+Transmission!I726+Generation!I726+Retail!I726+Misc!I726","v":7115555.0775692817},{"$f":"+Distribution!J726+Transmission!J726+Generation!J726+Retail!J726+Misc!J726","v":2229070.8417855999},{"$f":"+Distribution!K726+Transmission!K726+Generation!K726+Retail!K726+Misc!K726","v":3444214.1689886129},{"$f":"+Distribution!L726+Transmission!L726+Generation!L726+Retail!L726+Misc!L726","v":1354724.3640058474},{"$f":"+Distribution!M726+Transmission!M726+Generation!M726+Retail!M726+Misc!M726","v":1628797.7035050574},{"$f":"+Distribution!N726+Transmission!N726+Generation!N726+Retail!N726+Misc!N726","v":595135.5823947395},{"$f":"+Distribution!O726+Transmission!O726+Generation!O726+Retail!O726+Misc!O726","v":47171.999179228173},{"$f":"+Distribution!P726+Transmission!P726+Generation!P726+Retail!P726+Misc!P726","v":0},{"$f":"+Distribution!Q726+Transmission!Q726+Generation!Q726+Retail!Q726+Misc!Q726","v":0},{"$f":"ROUND(SUM(I726:Q726)-H726,0)","v":0}]
[727]
[728]
[729,null,null,null,null,null,null,"INCOME TAXES"]
[730]
[731]
[732,null,"40911","State Income Taxes",null,{"$f":"IF(Function=\"gen\",\"F101G\",IF(Function=\"TRN\",\"F101T\",IF(Function=\"DIS\",\"F101D\",IF(Function=\"RETAIL\",\"F101R\",IF(Function=\"MISC\",\"F101M\",\"ERR\")))))","v":"F101D"},null,{"$f":"+Distribution!H732+Transmission!H732+Generation!H732+Retail!H732+Misc!H732","v":0},{"$f":"+Distribution!I732+Transmission!I732+Generation!I732+Retail!I732+Misc!I732","v":0},{"$f":"+Distribution!J732+Transmission!J732+Generation!J732+Retail!J732+Misc!J732","v":0},{"$f":"+Distribution!K732+Transmission!K732+Generation!K732+Retail!K732+Misc!K732","v":0},{"$f":"+Distribution!L732+Transmission!L732+Generation!L732+Retail!L732+Misc!L732","v":0},{"$f":"+Distribution!M732+Transmission!M732+Generation!M732+Retail!M732+Misc!M732","v":0},{"$f":"+Distribution!N732+Transmission!N732+Generation!N732+Retail!N732+Misc!N732","v":0},{"$f":"+Distribution!O732+Transmission!O732+Generation!O732+Retail!O732+Misc!O732","v":0},{"$f":"+Distribution!P732+Transmission!P732+Generation!P732+Retail!P732+Misc!P732","v":0},{"$f":"+Distribution!Q732+Transmission!Q732+Generation!Q732+Retail!Q732+Misc!Q732","v":0},{"$f":"ROUND(SUM(I732:Q732)-H732,0)","v":0}]
[733]
[734,null,"40910","Federal Income Tax",null,{"$f":"IF(Function=\"gen\",\"F101G\",IF(Function=\"TRN\",\"F101T\",IF(Function=\"DIS\",\"F101D\",IF(Function=\"RETAIL\",\"F101R\",IF(Function=\"MISC\",\"F101M\",\"ERR\")))))","v":"F101D"},null,{"$f":"+Distribution!H734+Transmission!H734+Generation!H734+Retail!H734+Misc!H734","v":-10210352.28227013},{"$f":"+Distribution!I734+Transmission!I734+Generation!I734+Retail!I734+Misc!I734","v":-3923967.6485184063},{"$f":"+Distribution!J734+Transmission!J734+Generation!J734+Retail!J734+Misc!J734","v":-1362083.7797038245},{"$f":"+Distribution!K734+Transmission!K734+Generation!K734+Retail!K734+Misc!K734","v":-2356542.4394608065},{"$f":"+Distribution!L734+Transmission!L734+Generation!L734+Retail!L734+Misc!L734","v":-947011.41225084092},{"$f":"+Distribution!M734+Transmission!M734+Generation!M734+Retail!M734+Misc!M734","v":-1263276.424036463},{"$f":"+Distribution!N734+Transmission!N734+Generation!N734+Retail!N734+Misc!N734","v":-345877.95782600931},{"$f":"+Distribution!O734+Transmission!O734+Generation!O734+Retail!O734+Misc!O734","v":-11592.620473778537},{"$f":"+Distribution!P734+Transmission!P734+Generation!P734+Retail!P734+Misc!P734","v":0},{"$f":"+Distribution!Q734+Transmission!Q734+Generation!Q734+Retail!Q734+Misc!Q734","v":0},{"$f":"ROUND(SUM(I734:Q734)-H734,0)","v":0}]
[{"$f":"+A734+1","v":735}]
[736]
[737,null,"TOTAL OPERATING EXPENSES",null,null,null,null,{"$f":"+Distribution!H737+Transmission!H737+Generation!H737+Retail!H737+Misc!H737","v":289728524.43279886},{"$f":"+Distribution!I737+Transmission!I737+Generation!I737+Retail!I737+Misc!I737","v":132242626.81875406},{"$f":"+Distribution!J737+Transmission!J737+Generation!J737+Retail!J737+Misc!J737","v":39419934.913380265},{"$f":"+Distribution!K737+Transmission!K737+Generation!K737+Retail!K737+Misc!K737","v":57558835.000234395},{"$f":"+Distribution!L737+Transmission!L737+Generation!L737+Retail!L737+Misc!L737","v":22509759.831318885},{"$f":"+Distribution!M737+Transmission!M737+Generation!M737+Retail!M737+Misc!M737","v":26024041.845456127},{"$f":"+Distribution!N737+Transmission!N737+Generation!N737+Retail!N737+Misc!N737","v":10667190.21014984},{"$f":"+Distribution!O737+Transmission!O737+Generation!O737+Retail!O737+Misc!O737","v":1306135.8135052659},{"$f":"+Distribution!P737+Transmission!P737+Generation!P737+Retail!P737+Misc!P737","v":0},{"$f":"+Distribution!Q737+Transmission!Q737+Generation!Q737+Retail!Q737+Misc!Q737","v":0},{"$f":"ROUND(SUM(I737:Q737)-H737,0)","v":0}]
[738]
[739]
[740,null,null,null,null,null,null,"STEAM PRODUCTION"]
[741]
[742,null,"A",null,"B","C",null,"D","E","F","G","H","I","J","K","L","M"]
[743,null,null,null,null,null,null,{"$f":"'Hot Sheet'!$H$10","v":"Washington"},null,{"$f":"'Hot Sheet'!$J$10","v":"Small General"},{"$f":"'Hot Sheet'!$K$10","v":"Large General"},{"$f":"'Hot Sheet'!$L$10","v":"Large General"},{"$f":"'Hot Sheet'!$M$10","v":"Large General"},{"$f":"'Hot Sheet'!$N$10","v":"Agricultural"},{"$f":"'Hot Sheet'!$O$10","v":"Street & Area"}]
[744,null,"FERC",null,null,"COS",null,{"$f":"'Hot Sheet'!$H$11","v":"Jurisdiction"},{"$f":"'Hot Sheet'!$I$11","v":"Residential"},{"$f":"'Hot Sheet'!$J$11","v":"Service"},{"$f":"'Hot Sheet'!$K$11","v":"Service <1,000 kW"},{"$f":"'Hot Sheet'!$L$11","v":"Service >1,000 kW"},{"$f":"'Hot Sheet'!$M$11","v":"Dedicated Facilities"},{"$f":"'Hot Sheet'!$N$11","v":"Pumping"},{"$f":"'Hot Sheet'!$O$11","v":"Lighting"}]
[745,null,"ACCT",null,"DESCRIPTION ","Factor",null,{"$f":"'Hot Sheet'!$H$12","v":"Normalized"},{"$f":"'Hot Sheet'!$I$12","v":"Schedule 16"},{"$f":"'Hot Sheet'!$J$12","v":"Schedule 24"},{"$f":"'Hot Sheet'!$K$12","v":"Schedule 36"},{"$f":"'Hot Sheet'!$L$12","v":"Schedule 48T"},{"$f":"'Hot Sheet'!$M$12","v":"Schedule 48T"},{"$f":"'Hot Sheet'!$N$12","v":"Schedule 40"},{"$f":"'Hot Sheet'!$O$12","v":"Sch. 15,51-54,57"}]
[746,null,"310","Land and Land Rights",null,{"$f":"IF(Classification=\"DEMAND\",\"F12\",IF(Classification=\"ENERGY\",\"F30\",\"F10\"))","v":"F10"},null,{"$f":"+Distribution!H746+Transmission!H746+Generation!H746+Retail!H746+Misc!H746","v":306781.9222076381},{"$f":"+Distribution!I746+Transmission!I746+Generation!I746+Retail!I746+Misc!I746","v":130159.90681367715},{"$f":"+Distribution!J746+Transmission!J746+Generation!J746+Retail!J746+Misc!J746","v":41400.477690672073},{"$f":"+Distribution!K746+Transmission!K746+Generation!K746+Retail!K746+Misc!K746","v":65595.48271702553},{"$f":"+Distribution!L746+Transmission!L746+Generation!L746+Retail!L746+Misc!L746","v":25920.78482533422},{"$f":"+Distribution!M746+Transmission!M746+Generation!M746+Retail!M746+Misc!M746","v":32047.823620288593},{"$f":"+Distribution!N746+Transmission!N746+Generation!N746+Retail!N746+Misc!N746","v":10921.462550005643},{"$f":"+Distribution!O746+Transmission!O746+Generation!O746+Retail!O746+Misc!O746","v":735.98399063487659},{"$f":"+Distribution!P746+Transmission!P746+Generation!P746+Retail!P746+Misc!P746","v":0},{"$f":"+Distribution!Q746+Transmission!Q746+Generation!Q746+Retail!Q746+Misc!Q746","v":0},{"$f":"ROUND(SUM(I746:Q746)-H746,0)","v":0}]
[747,null,null,null,"JBG","F10",null,{"$f":"+Distribution!H747+Transmission!H747+Generation!H747+Retail!H747+Misc!H747","v":385239.46455809165},{"$f":"+Distribution!I747+Transmission!I747+Generation!I747+Retail!I747+Misc!I747","v":163447.48232555296},{"$f":"+Distribution!J747+Transmission!J747+Generation!J747+Retail!J747+Misc!J747","v":51988.38883084173},{"$f":"+Distribution!K747+Transmission!K747+Generation!K747+Retail!K747+Misc!K747","v":82371.113843641317},{"$f":"+Distribution!L747+Transmission!L747+Generation!L747+Retail!L747+Misc!L747","v":32549.862114361062},{"$f":"+Distribution!M747+Transmission!M747+Generation!M747+Retail!M747+Misc!M747","v":40243.852450262646},{"$f":"+Distribution!N747+Transmission!N747+Generation!N747+Retail!N747+Misc!N747","v":13714.557737557167},{"$f":"+Distribution!O747+Transmission!O747+Generation!O747+Retail!O747+Misc!O747","v":924.20725587476682},{"$f":"+Distribution!P747+Transmission!P747+Generation!P747+Retail!P747+Misc!P747","v":0},{"$f":"+Distribution!Q747+Transmission!Q747+Generation!Q747+Retail!Q747+Misc!Q747","v":0},{"$f":"ROUND(SUM(I747:Q747)-H747,0)","v":0}]
[748,null,null,null,"Total 310",null,null,{"$f":"+Distribution!H748+Transmission!H748+Generation!H748+Retail!H748+Misc!H748","v":692021.38676572975},{"$f":"+Distribution!I748+Transmission!I748+Generation!I748+Retail!I748+Misc!I748","v":293607.38913923013},{"$f":"+Distribution!J748+Transmission!J748+Generation!J748+Retail!J748+Misc!J748","v":93388.866521513803},{"$f":"+Distribution!K748+Transmission!K748+Generation!K748+Retail!K748+Misc!K748","v":147966.59656066686},{"$f":"+Distribution!L748+Transmission!L748+Generation!L748+Retail!L748+Misc!L748","v":58470.646939695282},{"$f":"+Distribution!M748+Transmission!M748+Generation!M748+Retail!M748+Misc!M748","v":72291.676070551242},{"$f":"+Distribution!N748+Transmission!N748+Generation!N748+Retail!N748+Misc!N748","v":24636.020287562809},{"$f":"+Distribution!O748+Transmission!O748+Generation!O748+Retail!O748+Misc!O748","v":1660.1912465096434},{"$f":"+Distribution!P748+Transmission!P748+Generation!P748+Retail!P748+Misc!P748","v":0},{"$f":"+Distribution!Q748+Transmission!Q748+Generation!Q748+Retail!Q748+Misc!Q748","v":0},{"$f":"ROUND(SUM(I748:Q748)-H748,0)","v":0}]
[749]
[750,null,"311","Structures and Improvements",null,{"$f":"IF(Classification=\"DEMAND\",\"F12\",IF(Classification=\"ENERGY\",\"F30\",\"F10\"))","v":"F10"},null,{"$f":"+Distribution!H750+Transmission!H750+Generation!H750+Retail!H750+Misc!H750","v":14718166.427065782},{"$f":"+Distribution!I750+Transmission!I750+Generation!I750+Retail!I750+Misc!I750","v":6244550.3855943223},{"$f":"+Distribution!J750+Transmission!J750+Generation!J750+Retail!J750+Misc!J750","v":1986228.9030150832},{"$f":"+Distribution!K750+Transmission!K750+Generation!K750+Retail!K750+Misc!K750","v":3147008.2218190813},{"$f":"+Distribution!L750+Transmission!L750+Generation!L750+Retail!L750+Misc!L750","v":1243575.313154263},{"$f":"+Distribution!M750+Transmission!M750+Generation!M750+Retail!M750+Misc!M750","v":1537526.0650117719},{"$f":"+Distribution!N750+Transmission!N750+Generation!N750+Retail!N750+Misc!N750","v":523967.97790827311},{"$f":"+Distribution!O750+Transmission!O750+Generation!O750+Retail!O750+Misc!O750","v":35309.56056298691},{"$f":"+Distribution!P750+Transmission!P750+Generation!P750+Retail!P750+Misc!P750","v":0},{"$f":"+Distribution!Q750+Transmission!Q750+Generation!Q750+Retail!Q750+Misc!Q750","v":0},{"$f":"ROUND(SUM(I750:Q750)-H750,0)","v":0}]
[751,null,null,null,"JBG","F10",null,{"$f":"+Distribution!H751+Transmission!H751+Generation!H751+Retail!H751+Misc!H751","v":31619964.235479675},{"$f":"+Distribution!I751+Transmission!I751+Generation!I751+Retail!I751+Misc!I751","v":13415561.023691146},{"$f":"+Distribution!J751+Transmission!J751+Generation!J751+Retail!J751+Misc!J751","v":4267140.6922889156},{"$f":"+Distribution!K751+Transmission!K751+Generation!K751+Retail!K751+Misc!K751","v":6760916.0363678429},{"$f":"+Distribution!L751+Transmission!L751+Generation!L751+Retail!L751+Misc!L751","v":2671651.1952027464},{"$f":"+Distribution!M751+Transmission!M751+Generation!M751+Retail!M751+Misc!M751","v":3303164.1154286247},{"$f":"+Distribution!N751+Transmission!N751+Generation!N751+Retail!N751+Misc!N751","v":1125673.4189069211},{"$f":"+Distribution!O751+Transmission!O751+Generation!O751+Retail!O751+Misc!O751","v":75857.753593477537},{"$f":"+Distribution!P751+Transmission!P751+Generation!P751+Retail!P751+Misc!P751","v":0},{"$f":"+Distribution!Q751+Transmission!Q751+Generation!Q751+Retail!Q751+Misc!Q751","v":0},{"$f":"ROUND(SUM(I751:Q751)-H751,0)","v":0}]
[752,null,null,null,"Total 311",null,null,{"$f":"+Distribution!H752+Transmission!H752+Generation!H752+Retail!H752+Misc!H752","v":46338130.662545457},{"$f":"+Distribution!I752+Transmission!I752+Generation!I752+Retail!I752+Misc!I752","v":19660111.409285467},{"$f":"+Distribution!J752+Transmission!J752+Generation!J752+Retail!J752+Misc!J752","v":6253369.5953039993},{"$f":"+Distribution!K752+Transmission!K752+Generation!K752+Retail!K752+Misc!K752","v":9907924.2581869252},{"$f":"+Distribution!L752+Transmission!L752+Generation!L752+Retail!L752+Misc!L752","v":3915226.5083570094},{"$f":"+Distribution!M752+Transmission!M752+Generation!M752+Retail!M752+Misc!M752","v":4840690.1804403961},{"$f":"+Distribution!N752+Transmission!N752+Generation!N752+Retail!N752+Misc!N752","v":1649641.3968151943},{"$f":"+Distribution!O752+Transmission!O752+Generation!O752+Retail!O752+Misc!O752","v":111167.31415646445},{"$f":"+Distribution!P752+Transmission!P752+Generation!P752+Retail!P752+Misc!P752","v":0},{"$f":"+Distribution!Q752+Transmission!Q752+Generation!Q752+Retail!Q752+Misc!Q752","v":0},{"$f":"ROUND(SUM(I752:Q752)-H752,0)","v":0}]
[753]
[754,null,"312","Boiler Plant Equipment",null,{"$f":"IF(Classification=\"DEMAND\",\"F12\",IF(Classification=\"ENERGY\",\"F30\",\"F10\"))","v":"F10"},null,{"$f":"+Distribution!H754+Transmission!H754+Generation!H754+Retail!H754+Misc!H754","v":-624870.24957361817},{"$f":"+Distribution!I754+Transmission!I754+Generation!I754+Retail!I754+Misc!I754","v":-265116.8389253816},{"$f":"+Distribution!J754+Transmission!J754+Generation!J754+Retail!J754+Misc!J754","v":-84326.764239803611},{"$f":"+Distribution!K754+Transmission!K754+Generation!K754+Retail!K754+Misc!K754","v":-133608.47784423063},{"$f":"+Distribution!L754+Transmission!L754+Generation!L754+Retail!L754+Misc!L754","v":-52796.876577323237},{"$f":"+Distribution!M754+Transmission!M754+Generation!M754+Retail!M754+Misc!M754","v":-65276.765331521347},{"$f":"+Distribution!N754+Transmission!N754+Generation!N754+Retail!N754+Misc!N754","v":-22245.434086275625},{"$f":"+Distribution!O754+Transmission!O754+Generation!O754+Retail!O754+Misc!O754","v":-1499.0925690821314},{"$f":"+Distribution!P754+Transmission!P754+Generation!P754+Retail!P754+Misc!P754","v":0},{"$f":"+Distribution!Q754+Transmission!Q754+Generation!Q754+Retail!Q754+Misc!Q754","v":0},{"$f":"ROUND(SUM(I754:Q754)-H754,0)","v":0}]
[755,null,null,null,"JBG","F10",null,{"$f":"+Distribution!H755+Transmission!H755+Generation!H755+Retail!H755+Misc!H755","v":161979666.17012841},{"$f":"+Distribution!I755+Transmission!I755+Generation!I755+Retail!I755+Misc!I755","v":68723926.438353628},{"$f":"+Distribution!J755+Transmission!J755+Generation!J755+Retail!J755+Misc!J755","v":21859291.797122546},{"$f":"+Distribution!K755+Transmission!K755+Generation!K755+Retail!K755+Misc!K755","v":34634160.697320528},{"$f":"+Distribution!L755+Transmission!L755+Generation!L755+Retail!L755+Misc!L755","v":13686073.946800608},{"$f":"+Distribution!M755+Transmission!M755+Generation!M755+Retail!M755+Misc!M755","v":16921126.688749384},{"$f":"+Distribution!N755+Transmission!N755+Generation!N755+Retail!N755+Misc!N755","v":5766489.9066058081},{"$f":"+Distribution!O755+Transmission!O755+Generation!O755+Retail!O755+Misc!O755","v":388596.69517589349},{"$f":"+Distribution!P755+Transmission!P755+Generation!P755+Retail!P755+Misc!P755","v":0},{"$f":"+Distribution!Q755+Transmission!Q755+Generation!Q755+Retail!Q755+Misc!Q755","v":0},{"$f":"ROUND(SUM(I755:Q755)-H755,0)","v":0}]
[756,null,null,null,"Total 312",null,null,{"$f":"+Distribution!H756+Transmission!H756+Generation!H756+Retail!H756+Misc!H756","v":161354795.92055479},{"$f":"+Distribution!I756+Transmission!I756+Generation!I756+Retail!I756+Misc!I756","v":68458809.599428251},{"$f":"+Distribution!J756+Transmission!J756+Generation!J756+Retail!J756+Misc!J756","v":21774965.032882743},{"$f":"+Distribution!K756+Transmission!K756+Generation!K756+Retail!K756+Misc!K756","v":34500552.219476297},{"$f":"+Distribution!L756+Transmission!L756+Generation!L756+Retail!L756+Misc!L756","v":13633277.070223285},{"$f":"+Distribution!M756+Transmission!M756+Generation!M756+Retail!M756+Misc!M756","v":16855849.923417863},{"$f":"+Distribution!N756+Transmission!N756+Generation!N756+Retail!N756+Misc!N756","v":5744244.4725195328},{"$f":"+Distribution!O756+Transmission!O756+Generation!O756+Retail!O756+Misc!O756","v":387097.60260681133},{"$f":"+Distribution!P756+Transmission!P756+Generation!P756+Retail!P756+Misc!P756","v":0},{"$f":"+Distribution!Q756+Transmission!Q756+Generation!Q756+Retail!Q756+Misc!Q756","v":0},{"$f":"ROUND(SUM(I756:Q756)-H756,0)","v":0}]
[757]
[758,null,"314","Turbogenerator Units",null,{"$f":"IF(Classification=\"DEMAND\",\"F12\",IF(Classification=\"ENERGY\",\"F30\",\"F10\"))","v":"F10"},null,{"$f":"+Distribution!H758+Transmission!H758+Generation!H758+Retail!H758+Misc!H758","v":12119310.181035571},{"$f":"+Distribution!I758+Transmission!I758+Generation!I758+Retail!I758+Misc!I758","v":5141920.5944670364},{"$f":"+Distribution!J758+Transmission!J758+Generation!J758+Retail!J758+Misc!J758","v":1635511.0730309058},{"$f":"+Distribution!K758+Transmission!K758+Generation!K758+Retail!K758+Misc!K758","v":2591326.0983622507},{"$f":"+Distribution!L758+Transmission!L758+Generation!L758+Retail!L758+Misc!L758","v":1023991.3394293349},{"$f":"+Distribution!M758+Transmission!M758+Generation!M758+Retail!M758+Misc!M758","v":1266037.8169823126},{"$f":"+Distribution!N758+Transmission!N758+Generation!N758+Retail!N758+Misc!N758","v":431448.47428296949},{"$f":"+Distribution!O758+Transmission!O758+Generation!O758+Retail!O758+Misc!O758","v":29074.784480760292},{"$f":"+Distribution!P758+Transmission!P758+Generation!P758+Retail!P758+Misc!P758","v":0},{"$f":"+Distribution!Q758+Transmission!Q758+Generation!Q758+Retail!Q758+Misc!Q758","v":0},{"$f":"ROUND(SUM(I758:Q758)-H758,0)","v":0}]
[759,null,null,null,"JBG","F10",null,{"$f":"+Distribution!H759+Transmission!H759+Generation!H759+Retail!H759+Misc!H759","v":39540511.960887395},{"$f":"+Distribution!I759+Transmission!I759+Generation!I759+Retail!I759+Misc!I759","v":16776051.584652511},{"$f":"+Distribution!J759+Transmission!J759+Generation!J759+Retail!J759+Misc!J759","v":5336025.2505573286},{"$f":"+Distribution!K759+Transmission!K759+Generation!K759+Retail!K759+Misc!K759","v":8454471.3400591444},{"$f":"+Distribution!L759+Transmission!L759+Generation!L759+Retail!L759+Misc!L759","v":3340878.4163234448},{"$f":"+Distribution!M759+Transmission!M759+Generation!M759+Retail!M759+Misc!M759","v":4130580.2638551984},{"$f":"+Distribution!N759+Transmission!N759+Generation!N759+Retail!N759+Misc!N759","v":1407645.5922868915},{"$f":"+Distribution!O759+Transmission!O759+Generation!O759+Retail!O759+Misc!O759","v":94859.513152875821},{"$f":"+Distribution!P759+Transmission!P759+Generation!P759+Retail!P759+Misc!P759","v":0},{"$f":"+Distribution!Q759+Transmission!Q759+Generation!Q759+Retail!Q759+Misc!Q759","v":0},{"$f":"ROUND(SUM(I759:Q759)-H759,0)","v":0}]
[760,null,null,null,"Total 314",null,null,{"$f":"+Distribution!H760+Transmission!H760+Generation!H760+Retail!H760+Misc!H760","v":51659822.141922966},{"$f":"+Distribution!I760+Transmission!I760+Generation!I760+Retail!I760+Misc!I760","v":21917972.17911955},{"$f":"+Distribution!J760+Transmission!J760+Generation!J760+Retail!J760+Misc!J760","v":6971536.3235882344},{"$f":"+Distribution!K760+Transmission!K760+Generation!K760+Retail!K760+Misc!K760","v":11045797.438421395},{"$f":"+Distribution!L760+Transmission!L760+Generation!L760+Retail!L760+Misc!L760","v":4364869.7557527795},{"$f":"+Distribution!M760+Transmission!M760+Generation!M760+Retail!M760+Misc!M760","v":5396618.0808375105},{"$f":"+Distribution!N760+Transmission!N760+Generation!N760+Retail!N760+Misc!N760","v":1839094.066569861},{"$f":"+Distribution!O760+Transmission!O760+Generation!O760+Retail!O760+Misc!O760","v":123934.29763363612},{"$f":"+Distribution!P760+Transmission!P760+Generation!P760+Retail!P760+Misc!P760","v":0},{"$f":"+Distribution!Q760+Transmission!Q760+Generation!Q760+Retail!Q760+Misc!Q760","v":0},{"$f":"ROUND(SUM(I760:Q760)-H760,0)","v":0}]
[761]
[762,null,"315","Accessory Electric Equipment",null,{"$f":"IF(Classification=\"DEMAND\",\"F12\",IF(Classification=\"ENERGY\",\"F30\",\"F10\"))","v":"F10"},null,{"$f":"+Distribution!H762+Transmission!H762+Generation!H762+Retail!H762+Misc!H762","v":2998453.4131122138},{"$f":"+Distribution!I762+Transmission!I762+Generation!I762+Retail!I762+Misc!I762","v":1272168.8880079682},{"$f":"+Distribution!J762+Transmission!J762+Generation!J762+Retail!J762+Misc!J762","v":404643.80281199317},{"$f":"+Distribution!K762+Transmission!K762+Generation!K762+Retail!K762+Misc!K762","v":641123.17186827864},{"$f":"+Distribution!L762+Transmission!L762+Generation!L762+Retail!L762+Misc!L762","v":253346.9546405221},{"$f":"+Distribution!M762+Transmission!M762+Generation!M762+Retail!M762+Misc!M762","v":313231.97085920098},{"$f":"+Distribution!N762+Transmission!N762+Generation!N762+Retail!N762+Misc!N762","v":106745.1967951269},{"$f":"+Distribution!O762+Transmission!O762+Generation!O762+Retail!O762+Misc!O762","v":7193.4281291237994},{"$f":"+Distribution!P762+Transmission!P762+Generation!P762+Retail!P762+Misc!P762","v":0},{"$f":"+Distribution!Q762+Transmission!Q762+Generation!Q762+Retail!Q762+Misc!Q762","v":0},{"$f":"ROUND(SUM(I762:Q762)-H762,0)","v":0}]
[763,null,null,null,"JBG","F10",null,{"$f":"+Distribution!H763+Transmission!H763+Generation!H763+Retail!H763+Misc!H763","v":13335680.873541016},{"$f":"+Distribution!I763+Transmission!I763+Generation!I763+Retail!I763+Misc!I763","v":5657996.2968685618},{"$f":"+Distribution!J763+Transmission!J763+Generation!J763+Retail!J763+Misc!J763","v":1799661.3181179524},{"$f":"+Distribution!K763+Transmission!K763+Generation!K763+Retail!K763+Misc!K763","v":2851407.9902924225},{"$f":"+Distribution!L763+Transmission!L763+Generation!L763+Retail!L763+Misc!L763","v":1126765.5927536117},{"$f":"+Distribution!M763+Transmission!M763+Generation!M763+Retail!M763+Misc!M763","v":1393105.3870978644},{"$f":"+Distribution!N763+Transmission!N763+Generation!N763+Retail!N763+Misc!N763","v":474751.37449796754},{"$f":"+Distribution!O763+Transmission!O763+Generation!O763+Retail!O763+Misc!O763","v":31992.91391263585},{"$f":"+Distribution!P763+Transmission!P763+Generation!P763+Retail!P763+Misc!P763","v":0},{"$f":"+Distribution!Q763+Transmission!Q763+Generation!Q763+Retail!Q763+Misc!Q763","v":0},{"$f":"ROUND(SUM(I763:Q763)-H763,0)","v":0}]
[764,null,null,null,"Total 315",null,null,{"$f":"+Distribution!H764+Transmission!H764+Generation!H764+Retail!H764+Misc!H764","v":16334134.28665323},{"$f":"+Distribution!I764+Transmission!I764+Generation!I764+Retail!I764+Misc!I764","v":6930165.1848765295},{"$f":"+Distribution!J764+Transmission!J764+Generation!J764+Retail!J764+Misc!J764","v":2204305.1209299457},{"$f":"+Distribution!K764+Transmission!K764+Generation!K764+Retail!K764+Misc!K764","v":3492531.1621607011},{"$f":"+Distribution!L764+Transmission!L764+Generation!L764+Retail!L764+Misc!L764","v":1380112.5473941339},{"$f":"+Distribution!M764+Transmission!M764+Generation!M764+Retail!M764+Misc!M764","v":1706337.3579570653},{"$f":"+Distribution!N764+Transmission!N764+Generation!N764+Retail!N764+Misc!N764","v":581496.57129309443},{"$f":"+Distribution!O764+Transmission!O764+Generation!O764+Retail!O764+Misc!O764","v":39186.34204175965},{"$f":"+Distribution!P764+Transmission!P764+Generation!P764+Retail!P764+Misc!P764","v":0},{"$f":"+Distribution!Q764+Transmission!Q764+Generation!Q764+Retail!Q764+Misc!Q764","v":0},{"$f":"ROUND(SUM(I764:Q764)-H764,0)","v":0}]
[765]
[766,null,"316","Misc Power Plant Equipment",null,{"$f":"IF(Classification=\"DEMAND\",\"F12\",IF(Classification=\"ENERGY\",\"F30\",\"F10\"))","v":"F10"},null,{"$f":"+Distribution!H766+Transmission!H766+Generation!H766+Retail!H766+Misc!H766","v":498733.58128393465},{"$f":"+Distribution!I766+Transmission!I766+Generation!I766+Retail!I766+Misc!I766","v":211600.20120361639},{"$f":"+Distribution!J766+Transmission!J766+Generation!J766+Retail!J766+Misc!J766","v":67304.515067089058},{"$f":"+Distribution!K766+Transmission!K766+Generation!K766+Retail!K766+Misc!K766","v":106638.19359397725},{"$f":"+Distribution!L766+Transmission!L766+Generation!L766+Retail!L766+Misc!L766","v":42139.268678548426},{"$f":"+Distribution!M766+Transmission!M766+Generation!M766+Retail!M766+Misc!M766","v":52099.959904692383},{"$f":"+Distribution!N766+Transmission!N766+Generation!N766+Retail!N766+Misc!N766","v":17754.957955886595},{"$f":"+Distribution!O766+Transmission!O766+Generation!O766+Retail!O766+Misc!O766","v":1196.4848801245139},{"$f":"+Distribution!P766+Transmission!P766+Generation!P766+Retail!P766+Misc!P766","v":0},{"$f":"+Distribution!Q766+Transmission!Q766+Generation!Q766+Retail!Q766+Misc!Q766","v":0},{"$f":"ROUND(SUM(I766:Q766)-H766,0)","v":0}]
[767,null,null,null,"JBG","F10",null,{"$f":"+Distribution!H767+Transmission!H767+Generation!H767+Retail!H767+Misc!H767","v":867460.91800169577},{"$f":"+Distribution!I767+Transmission!I767+Generation!I767+Retail!I767+Misc!I767","v":368042.00012537901},{"$f":"+Distribution!J767+Transmission!J767+Generation!J767+Retail!J767+Misc!J767","v":117064.57839765426},{"$f":"+Distribution!K767+Transmission!K767+Generation!K767+Retail!K767+Misc!K767","v":185478.71805810931},{"$f":"+Distribution!L767+Transmission!L767+Generation!L767+Retail!L767+Misc!L767","v":73293.979117486015},{"$f":"+Distribution!M767+Transmission!M767+Generation!M767+Retail!M767+Misc!M767","v":90618.880987374607},{"$f":"+Distribution!N767+Transmission!N767+Generation!N767+Retail!N767+Misc!N767","v":30881.682536485387},{"$f":"+Distribution!O767+Transmission!O767+Generation!O767+Retail!O767+Misc!O767","v":2081.0787792071078},{"$f":"+Distribution!P767+Transmission!P767+Generation!P767+Retail!P767+Misc!P767","v":0},{"$f":"+Distribution!Q767+Transmission!Q767+Generation!Q767+Retail!Q767+Misc!Q767","v":0},{"$f":"ROUND(SUM(I767:Q767)-H767,0)","v":0}]
[768,null,null,null,"Total 316",null,null,{"$f":"+Distribution!H768+Transmission!H768+Generation!H768+Retail!H768+Misc!H768","v":1366194.4992856304},{"$f":"+Distribution!I768+Transmission!I768+Generation!I768+Retail!I768+Misc!I768","v":579642.2013289954},{"$f":"+Distribution!J768+Transmission!J768+Generation!J768+Retail!J768+Misc!J768","v":184369.09346474332},{"$f":"+Distribution!K768+Transmission!K768+Generation!K768+Retail!K768+Misc!K768","v":292116.91165208654},{"$f":"+Distribution!L768+Transmission!L768+Generation!L768+Retail!L768+Misc!L768","v":115433.24779603444},{"$f":"+Distribution!M768+Transmission!M768+Generation!M768+Retail!M768+Misc!M768","v":142718.840892067},{"$f":"+Distribution!N768+Transmission!N768+Generation!N768+Retail!N768+Misc!N768","v":48636.640492371982},{"$f":"+Distribution!O768+Transmission!O768+Generation!O768+Retail!O768+Misc!O768","v":3277.5636593316217},{"$f":"+Distribution!P768+Transmission!P768+Generation!P768+Retail!P768+Misc!P768","v":0},{"$f":"+Distribution!Q768+Transmission!Q768+Generation!Q768+Retail!Q768+Misc!Q768","v":0},{"$f":"ROUND(SUM(I768:Q768)-H768,0)","v":0}]
[769]
[770,null,"SP","Unclassified Steam Plant - Acct 300",null,{"$f":"IF(Classification=\"DEMAND\",\"F12\",IF(Classification=\"ENERGY\",\"F30\",\"F10\"))","v":"F10"},null,{"$f":"+Distribution!H770+Transmission!H770+Generation!H770+Retail!H770+Misc!H770","v":197156.55059380142},{"$f":"+Distribution!I770+Transmission!I770+Generation!I770+Retail!I770+Misc!I770","v":83648.599853372667},{"$f":"+Distribution!J770+Transmission!J770+Generation!J770+Retail!J770+Misc!J770","v":26606.441851889907},{"$f":"+Distribution!K770+Transmission!K770+Generation!K770+Retail!K770+Misc!K770","v":42155.61012839264},{"$f":"+Distribution!L770+Transmission!L770+Generation!L770+Retail!L770+Misc!L770","v":16658.258374781799},{"$f":"+Distribution!M770+Transmission!M770+Generation!M770+Retail!M770+Misc!M770","v":20595.862733848335},{"$f":"+Distribution!N770+Transmission!N770+Generation!N770+Retail!N770+Misc!N770","v":7018.7899870486062},{"$f":"+Distribution!O770+Transmission!O770+Generation!O770+Retail!O770+Misc!O770","v":472.98766446747356},{"$f":"+Distribution!P770+Transmission!P770+Generation!P770+Retail!P770+Misc!P770","v":0},{"$f":"+Distribution!Q770+Transmission!Q770+Generation!Q770+Retail!Q770+Misc!Q770","v":0},{"$f":"ROUND(SUM(I770:Q770)-H770,0)","v":0}]
[771]
[772]
[773]
[774,null,"Total Steam Production Plant",null,null,null,null,{"$f":"+Distribution!H774+Transmission!H774+Generation!H774+Retail!H774+Misc!H774","v":277942255.44832158},{"$f":"+Distribution!I774+Transmission!I774+Generation!I774+Retail!I774+Misc!I774","v":117923956.56303141},{"$f":"+Distribution!J774+Transmission!J774+Generation!J774+Retail!J774+Misc!J774","v":37508540.474543072},{"$f":"+Distribution!K774+Transmission!K774+Generation!K774+Retail!K774+Misc!K774","v":59429044.196586475},{"$f":"+Distribution!L774+Transmission!L774+Generation!L774+Retail!L774+Misc!L774","v":23484048.034837715},{"$f":"+Distribution!M774+Transmission!M774+Generation!M774+Retail!M774+Misc!M774","v":29035101.9223493},{"$f":"+Distribution!N774+Transmission!N774+Generation!N774+Retail!N774+Misc!N774","v":9894767.9579646662},{"$f":"+Distribution!O774+Transmission!O774+Generation!O774+Retail!O774+Misc!O774","v":666796.29900898028},{"$f":"+Distribution!P774+Transmission!P774+Generation!P774+Retail!P774+Misc!P774","v":0},{"$f":"+Distribution!Q774+Transmission!Q774+Generation!Q774+Retail!Q774+Misc!Q774","v":0},{"$f":"ROUND(SUM(I774:Q774)-H774,0)","v":0}]
[775]
[776]
[777,null,null,null,null,null,null,"NUCLEAR PRODUCTION"]
[778]
[779]
[780,null,"320","Land and Land Rights",null,{"$f":"IF(Classification=\"DEMAND\",\"F12\",IF(Classification=\"ENERGY\",\"F30\",\"F10\"))","v":"F10"},null,{"$f":"+Distribution!H780+Transmission!H780+Generation!H780+Retail!H780+Misc!H780","v":0},{"$f":"+Distribution!I780+Transmission!I780+Generation!I780+Retail!I780+Misc!I780","v":0},{"$f":"+Distribution!J780+Transmission!J780+Generation!J780+Retail!J780+Misc!J780","v":0},{"$f":"+Distribution!K780+Transmission!K780+Generation!K780+Retail!K780+Misc!K780","v":0},{"$f":"+Distribution!L780+Transmission!L780+Generation!L780+Retail!L780+Misc!L780","v":0},{"$f":"+Distribution!M780+Transmission!M780+Generation!M780+Retail!M780+Misc!M780","v":0},{"$f":"+Distribution!N780+Transmission!N780+Generation!N780+Retail!N780+Misc!N780","v":0},{"$f":"+Distribution!O780+Transmission!O780+Generation!O780+Retail!O780+Misc!O780","v":0},{"$f":"+Distribution!P780+Transmission!P780+Generation!P780+Retail!P780+Misc!P780","v":0},{"$f":"+Distribution!Q780+Transmission!Q780+Generation!Q780+Retail!Q780+Misc!Q780","v":0},{"$f":"ROUND(SUM(I780:Q780)-H780,0)","v":0}]
[781]
[782,null,"321","Structures and Improvements",null,{"$f":"IF(Classification=\"DEMAND\",\"F12\",IF(Classification=\"ENERGY\",\"F30\",\"F10\"))","v":"F10"},null,{"$f":"+Distribution!H782+Transmission!H782+Generation!H782+Retail!H782+Misc!H782","v":0},{"$f":"+Distribution!I782+Transmission!I782+Generation!I782+Retail!I782+Misc!I782","v":0},{"$f":"+Distribution!J782+Transmission!J782+Generation!J782+Retail!J782+Misc!J782","v":0},{"$f":"+Distribution!K782+Transmission!K782+Generation!K782+Retail!K782+Misc!K782","v":0},{"$f":"+Distribution!L782+Transmission!L782+Generation!L782+Retail!L782+Misc!L782","v":0},{"$f":"+Distribution!M782+Transmission!M782+Generation!M782+Retail!M782+Misc!M782","v":0},{"$f":"+Distribution!N782+Transmission!N782+Generation!N782+Retail!N782+Misc!N782","v":0},{"$f":"+Distribution!O782+Transmission!O782+Generation!O782+Retail!O782+Misc!O782","v":0},{"$f":"+Distribution!P782+Transmission!P782+Generation!P782+Retail!P782+Misc!P782","v":0},{"$f":"+Distribution!Q782+Transmission!Q782+Generation!Q782+Retail!Q782+Misc!Q782","v":0},{"$f":"ROUND(SUM(I782:Q782)-H782,0)","v":0}]
[783]
[784,null,"322","Reactor Plant Equipment",null,{"$f":"IF(Classification=\"DEMAND\",\"F12\",IF(Classification=\"ENERGY\",\"F30\",\"F10\"))","v":"F10"},null,{"$f":"+Distribution!H784+Transmission!H784+Generation!H784+Retail!H784+Misc!H784","v":0},{"$f":"+Distribution!I784+Transmission!I784+Generation!I784+Retail!I784+Misc!I784","v":0},{"$f":"+Distribution!J784+Transmission!J784+Generation!J784+Retail!J784+Misc!J784","v":0},{"$f":"+Distribution!K784+Transmission!K784+Generation!K784+Retail!K784+Misc!K784","v":0},{"$f":"+Distribution!L784+Transmission!L784+Generation!L784+Retail!L784+Misc!L784","v":0},{"$f":"+Distribution!M784+Transmission!M784+Generation!M784+Retail!M784+Misc!M784","v":0},{"$f":"+Distribution!N784+Transmission!N784+Generation!N784+Retail!N784+Misc!N784","v":0},{"$f":"+Distribution!O784+Transmission!O784+Generation!O784+Retail!O784+Misc!O784","v":0},{"$f":"+Distribution!P784+Transmission!P784+Generation!P784+Retail!P784+Misc!P784","v":0},{"$f":"+Distribution!Q784+Transmission!Q784+Generation!Q784+Retail!Q784+Misc!Q784","v":0},{"$f":"ROUND(SUM(I784:Q784)-H784,0)","v":0}]
[785]
[786,null,"323","Turbogenerator Units",null,{"$f":"IF(Classification=\"DEMAND\",\"F12\",IF(Classification=\"ENERGY\",\"F30\",\"F10\"))","v":"F10"},null,{"$f":"+Distribution!H786+Transmission!H786+Generation!H786+Retail!H786+Misc!H786","v":0},{"$f":"+Distribution!I786+Transmission!I786+Generation!I786+Retail!I786+Misc!I786","v":0},{"$f":"+Distribution!J786+Transmission!J786+Generation!J786+Retail!J786+Misc!J786","v":0},{"$f":"+Distribution!K786+Transmission!K786+Generation!K786+Retail!K786+Misc!K786","v":0},{"$f":"+Distribution!L786+Transmission!L786+Generation!L786+Retail!L786+Misc!L786","v":0},{"$f":"+Distribution!M786+Transmission!M786+Generation!M786+Retail!M786+Misc!M786","v":0},{"$f":"+Distribution!N786+Transmission!N786+Generation!N786+Retail!N786+Misc!N786","v":0},{"$f":"+Distribution!O786+Transmission!O786+Generation!O786+Retail!O786+Misc!O786","v":0},{"$f":"+Distribution!P786+Transmission!P786+Generation!P786+Retail!P786+Misc!P786","v":0},{"$f":"+Distribution!Q786+Transmission!Q786+Generation!Q786+Retail!Q786+Misc!Q786","v":0},{"$f":"ROUND(SUM(I786:Q786)-H786,0)","v":0}]
[787]
[788,null,"324","Land and Land Rights",null,{"$f":"IF(Classification=\"DEMAND\",\"F12\",IF(Classification=\"ENERGY\",\"F30\",\"F10\"))","v":"F10"},null,{"$f":"+Distribution!H788+Transmission!H788+Generation!H788+Retail!H788+Misc!H788","v":0},{"$f":"+Distribution!I788+Transmission!I788+Generation!I788+Retail!I788+Misc!I788","v":0},{"$f":"+Distribution!J788+Transmission!J788+Generation!J788+Retail!J788+Misc!J788","v":0},{"$f":"+Distribution!K788+Transmission!K788+Generation!K788+Retail!K788+Misc!K788","v":0},{"$f":"+Distribution!L788+Transmission!L788+Generation!L788+Retail!L788+Misc!L788","v":0},{"$f":"+Distribution!M788+Transmission!M788+Generation!M788+Retail!M788+Misc!M788","v":0},{"$f":"+Distribution!N788+Transmission!N788+Generation!N788+Retail!N788+Misc!N788","v":0},{"$f":"+Distribution!O788+Transmission!O788+Generation!O788+Retail!O788+Misc!O788","v":0},{"$f":"+Distribution!P788+Transmission!P788+Generation!P788+Retail!P788+Misc!P788","v":0},{"$f":"+Distribution!Q788+Transmission!Q788+Generation!Q788+Retail!Q788+Misc!Q788","v":0},{"$f":"ROUND(SUM(I788:Q788)-H788,0)","v":0}]
[789]
[790,null,"325","Misc. Power Plant Equipment",null,{"$f":"IF(Classification=\"DEMAND\",\"F12\",IF(Classification=\"ENERGY\",\"F30\",\"F10\"))","v":"F10"},null,{"$f":"+Distribution!H790+Transmission!H790+Generation!H790+Retail!H790+Misc!H790","v":0},{"$f":"+Distribution!I790+Transmission!I790+Generation!I790+Retail!I790+Misc!I790","v":0},{"$f":"+Distribution!J790+Transmission!J790+Generation!J790+Retail!J790+Misc!J790","v":0},{"$f":"+Distribution!K790+Transmission!K790+Generation!K790+Retail!K790+Misc!K790","v":0},{"$f":"+Distribution!L790+Transmission!L790+Generation!L790+Retail!L790+Misc!L790","v":0},{"$f":"+Distribution!M790+Transmission!M790+Generation!M790+Retail!M790+Misc!M790","v":0},{"$f":"+Distribution!N790+Transmission!N790+Generation!N790+Retail!N790+Misc!N790","v":0},{"$f":"+Distribution!O790+Transmission!O790+Generation!O790+Retail!O790+Misc!O790","v":0},{"$f":"+Distribution!P790+Transmission!P790+Generation!P790+Retail!P790+Misc!P790","v":0},{"$f":"+Distribution!Q790+Transmission!Q790+Generation!Q790+Retail!Q790+Misc!Q790","v":0},{"$f":"ROUND(SUM(I790:Q790)-H790,0)","v":0}]
[791]
[792,null,"NP","Unclassified Nuclear Plt - Acct 300",null,{"$f":"IF(Classification=\"DEMAND\",\"F12\",IF(Classification=\"ENERGY\",\"F30\",\"F10\"))","v":"F10"},null,{"$f":"+Distribution!H792+Transmission!H792+Generation!H792+Retail!H792+Misc!H792","v":0},{"$f":"+Distribution!I792+Transmission!I792+Generation!I792+Retail!I792+Misc!I792","v":0},{"$f":"+Distribution!J792+Transmission!J792+Generation!J792+Retail!J792+Misc!J792","v":0},{"$f":"+Distribution!K792+Transmission!K792+Generation!K792+Retail!K792+Misc!K792","v":0},{"$f":"+Distribution!L792+Transmission!L792+Generation!L792+Retail!L792+Misc!L792","v":0},{"$f":"+Distribution!M792+Transmission!M792+Generation!M792+Retail!M792+Misc!M792","v":0},{"$f":"+Distribution!N792+Transmission!N792+Generation!N792+Retail!N792+Misc!N792","v":0},{"$f":"+Distribution!O792+Transmission!O792+Generation!O792+Retail!O792+Misc!O792","v":0},{"$f":"+Distribution!P792+Transmission!P792+Generation!P792+Retail!P792+Misc!P792","v":0},{"$f":"+Distribution!Q792+Transmission!Q792+Generation!Q792+Retail!Q792+Misc!Q792","v":0},{"$f":"ROUND(SUM(I792:Q792)-H792,0)","v":0}]
[793]
[794,null,"Total Nuclear Production Plant",null,null,null,null,{"$f":"+Distribution!H794+Transmission!H794+Generation!H794+Retail!H794+Misc!H794","v":0},{"$f":"+Distribution!I794+Transmission!I794+Generation!I794+Retail!I794+Misc!I794","v":0},{"$f":"+Distribution!J794+Transmission!J794+Generation!J794+Retail!J794+Misc!J794","v":0},{"$f":"+Distribution!K794+Transmission!K794+Generation!K794+Retail!K794+Misc!K794","v":0},{"$f":"+Distribution!L794+Transmission!L794+Generation!L794+Retail!L794+Misc!L794","v":0},{"$f":"+Distribution!M794+Transmission!M794+Generation!M794+Retail!M794+Misc!M794","v":0},{"$f":"+Distribution!N794+Transmission!N794+Generation!N794+Retail!N794+Misc!N794","v":0},{"$f":"+Distribution!O794+Transmission!O794+Generation!O794+Retail!O794+Misc!O794","v":0},{"$f":"+Distribution!P794+Transmission!P794+Generation!P794+Retail!P794+Misc!P794","v":0},{"$f":"+Distribution!Q794+Transmission!Q794+Generation!Q794+Retail!Q794+Misc!Q794","v":0},{"$f":"ROUND(SUM(I794:Q794)-H794,0)","v":0}]
[795]
[796]
[797,null,null,null,null,null,null,"HYDRAULIC PRODUCTION"]
[798]
[799]
[800,null,"330","Land and Land Rights",null,{"$f":"IF(Classification=\"DEMAND\",\"F12\",IF(Classification=\"ENERGY\",\"F30\",\"F10\"))","v":"F10"},null,{"$f":"+Distribution!H800+Transmission!H800+Generation!H800+Retail!H800+Misc!H800","v":6515134.992287498},{"$f":"+Distribution!I800+Transmission!I800+Generation!I800+Retail!I800+Misc!I800","v":2764209.0426068613},{"$f":"+Distribution!J800+Transmission!J800+Generation!J800+Retail!J800+Misc!J800","v":879222.93125654047},{"$f":"+Distribution!K800+Transmission!K800+Generation!K800+Retail!K800+Misc!K800","v":1393052.8295485156},{"$f":"+Distribution!L800+Transmission!L800+Generation!L800+Retail!L800+Misc!L800","v":550480.32500685961},{"$f":"+Distribution!M800+Transmission!M800+Generation!M800+Retail!M800+Misc!M800","v":680600.39389766078},{"$f":"+Distribution!N800+Transmission!N800+Generation!N800+Retail!N800+Misc!N800","v":231939.36042404664},{"$f":"+Distribution!O800+Transmission!O800+Generation!O800+Retail!O800+Misc!O800","v":15630.109547013244},{"$f":"+Distribution!P800+Transmission!P800+Generation!P800+Retail!P800+Misc!P800","v":0},{"$f":"+Distribution!Q800+Transmission!Q800+Generation!Q800+Retail!Q800+Misc!Q800","v":0},{"$f":"ROUND(SUM(I800:Q800)-H800,0)","v":0}]
[801]
[802,null,"331","Structures and Improvements",null,{"$f":"IF(Classification=\"DEMAND\",\"F12\",IF(Classification=\"ENERGY\",\"F30\",\"F10\"))","v":"F10"},null,{"$f":"+Distribution!H802+Transmission!H802+Generation!H802+Retail!H802+Misc!H802","v":28839076.823929302},{"$f":"+Distribution!I802+Transmission!I802+Generation!I802+Retail!I802+Misc!I802","v":12235699.955796342},{"$f":"+Distribution!J802+Transmission!J802+Generation!J802+Retail!J802+Misc!J802","v":3891857.6038537407},{"$f":"+Distribution!K802+Transmission!K802+Generation!K802+Retail!K802+Misc!K802","v":6166312.3816619962},{"$f":"+Distribution!L802+Transmission!L802+Generation!L802+Retail!L802+Misc!L802","v":2436686.9453552919},{"$f":"+Distribution!M802+Transmission!M802+Generation!M802+Retail!M802+Misc!M802","v":3012660.0706272903},{"$f":"+Distribution!N802+Transmission!N802+Generation!N802+Retail!N802+Misc!N802","v":1026673.5902909656},{"$f":"+Distribution!O802+Transmission!O802+Generation!O802+Retail!O802+Misc!O802","v":69186.276343674384},{"$f":"+Distribution!P802+Transmission!P802+Generation!P802+Retail!P802+Misc!P802","v":0},{"$f":"+Distribution!Q802+Transmission!Q802+Generation!Q802+Retail!Q802+Misc!Q802","v":0},{"$f":"ROUND(SUM(I802:Q802)-H802,0)","v":0}]
[803]
[{"$f":"+A803+1","v":804},null,"332","Reservoirs, Dams & Waterways",null,{"$f":"IF(Classification=\"DEMAND\",\"F12\",IF(Classification=\"ENERGY\",\"F30\",\"F10\"))","v":"F10"},null,{"$f":"+Distribution!H804+Transmission!H804+Generation!H804+Retail!H804+Misc!H804","v":103763388.21253854},{"$f":"+Distribution!I804+Transmission!I804+Generation!I804+Retail!I804+Misc!I804","v":44024213.823376201},{"$f":"+Distribution!J804+Transmission!J804+Generation!J804+Retail!J804+Misc!J804","v":14002956.262508193},{"$f":"+Distribution!K804+Transmission!K804+Generation!K804+Retail!K804+Misc!K804","v":22186475.295466807},{"$f":"+Distribution!L804+Transmission!L804+Generation!L804+Retail!L804+Misc!L804","v":8767232.5645851493},{"$f":"+Distribution!M804+Transmission!M804+Generation!M804+Retail!M804+Misc!M804","v":10839591.654387821},{"$f":"+Distribution!N804+Transmission!N804+Generation!N804+Retail!N804+Misc!N804","v":3693985.4547815383},{"$f":"+Distribution!O804+Transmission!O804+Generation!O804+Retail!O804+Misc!O804","v":248933.1574328295},{"$f":"+Distribution!P804+Transmission!P804+Generation!P804+Retail!P804+Misc!P804","v":0},{"$f":"+Distribution!Q804+Transmission!Q804+Generation!Q804+Retail!Q804+Misc!Q804","v":0},{"$f":"ROUND(SUM(I804:Q804)-H804,0)","v":0}]
[805]
[806,null,"333","Water Wheel, Turbines, & Generators",null,{"$f":"IF(Classification=\"DEMAND\",\"F12\",IF(Classification=\"ENERGY\",\"F30\",\"F10\"))","v":"F10"},null,{"$f":"+Distribution!H806+Transmission!H806+Generation!H806+Retail!H806+Misc!H806","v":17793902.257539757},{"$f":"+Distribution!I806+Transmission!I806+Generation!I806+Retail!I806+Misc!I806","v":7549508.2729336601},{"$f":"+Distribution!J806+Transmission!J806+Generation!J806+Retail!J806+Misc!J806","v":2401302.0328644798},{"$f":"+Distribution!K806+Transmission!K806+Generation!K806+Retail!K806+Misc!K806","v":3804655.7619940173},{"$f":"+Distribution!L806+Transmission!L806+Generation!L806+Retail!L806+Misc!L806","v":1503452.0557849002},{"$f":"+Distribution!M806+Transmission!M806+Generation!M806+Retail!M806+Misc!M806","v":1858831.3058431291},{"$f":"+Distribution!N806+Transmission!N806+Generation!N806+Retail!N806+Misc!N806","v":633464.43534130394},{"$f":"+Distribution!O806+Transmission!O806+Generation!O806+Retail!O806+Misc!O806","v":42688.392778265836},{"$f":"+Distribution!P806+Transmission!P806+Generation!P806+Retail!P806+Misc!P806","v":0},{"$f":"+Distribution!Q806+Transmission!Q806+Generation!Q806+Retail!Q806+Misc!Q806","v":0},{"$f":"ROUND(SUM(I806:Q806)-H806,0)","v":0}]
[807]
[808,null,"334","Accessory Electric Equipment",null,{"$f":"IF(Classification=\"DEMAND\",\"F12\",IF(Classification=\"ENERGY\",\"F30\",\"F10\"))","v":"F10"},null,{"$f":"+Distribution!H808+Transmission!H808+Generation!H808+Retail!H808+Misc!H808","v":12476121.21194754},{"$f":"+Distribution!I808+Transmission!I808+Generation!I808+Retail!I808+Misc!I808","v":5293306.6024801182},{"$f":"+Distribution!J808+Transmission!J808+Generation!J808+Retail!J808+Misc!J808","v":1683663.0208991328},{"$f":"+Distribution!K808+Transmission!K808+Generation!K808+Retail!K808+Misc!K808","v":2667618.7027080469},{"$f":"+Distribution!L808+Transmission!L808+Generation!L808+Retail!L808+Misc!L808","v":1054139.2108847948},{"$f":"+Distribution!M808+Transmission!M808+Generation!M808+Retail!M808+Misc!M808","v":1303311.9070008914},{"$f":"+Distribution!N808+Transmission!N808+Generation!N808+Retail!N808+Misc!N808","v":444150.97736232774},{"$f":"+Distribution!O808+Transmission!O808+Generation!O808+Retail!O808+Misc!O808","v":29930.790612227829},{"$f":"+Distribution!P808+Transmission!P808+Generation!P808+Retail!P808+Misc!P808","v":0},{"$f":"+Distribution!Q808+Transmission!Q808+Generation!Q808+Retail!Q808+Misc!Q808","v":0},{"$f":"ROUND(SUM(I808:Q808)-H808,0)","v":0}]
[809]
[810,null,"335","Misc. Power Plant Equipment",null,{"$f":"IF(Classification=\"DEMAND\",\"F12\",IF(Classification=\"ENERGY\",\"F30\",\"F10\"))","v":"F10"},null,{"$f":"+Distribution!H810+Transmission!H810+Generation!H810+Retail!H810+Misc!H810","v":495178.87370834715},{"$f":"+Distribution!I810+Transmission!I810+Generation!I810+Retail!I810+Misc!I810","v":210092.02756855069},{"$f":"+Distribution!J810+Transmission!J810+Generation!J810+Retail!J810+Misc!J810","v":66824.804298537434},{"$f":"+Distribution!K810+Transmission!K810+Generation!K810+Retail!K810+Misc!K810","v":105878.13329557182},{"$f":"+Distribution!L810+Transmission!L810+Generation!L810+Retail!L810+Misc!L810","v":41838.922395036236},{"$f":"+Distribution!M810+Transmission!M810+Generation!M810+Retail!M810+Misc!M810","v":51728.619114516914},{"$f":"+Distribution!N810+Transmission!N810+Generation!N810+Retail!N810+Misc!N810","v":17628.410063547868},{"$f":"+Distribution!O810+Transmission!O810+Generation!O810+Retail!O810+Misc!O810","v":1187.9569725861741},{"$f":"+Distribution!P810+Transmission!P810+Generation!P810+Retail!P810+Misc!P810","v":0},{"$f":"+Distribution!Q810+Transmission!Q810+Generation!Q810+Retail!Q810+Misc!Q810","v":0},{"$f":"ROUND(SUM(I810:Q810)-H810,0)","v":0}]
[811]
[812,null,"336","Roads, Railroads & Bridges",null,{"$f":"IF(Classification=\"DEMAND\",\"F12\",IF(Classification=\"ENERGY\",\"F30\",\"F10\"))","v":"F10"},null,{"$f":"+Distribution!H812+Transmission!H812+Generation!H812+Retail!H812+Misc!H812","v":3412004.7371286065},{"$f":"+Distribution!I812+Transmission!I812+Generation!I812+Retail!I812+Misc!I812","v":1447628.3851298827},{"$f":"+Distribution!J812+Transmission!J812+Generation!J812+Retail!J812+Misc!J812","v":460452.90082103579},{"$f":"+Distribution!K812+Transmission!K812+Generation!K812+Retail!K812+Misc!K812","v":729547.8695555171},{"$f":"+Distribution!L812+Transmission!L812+Generation!L812+Retail!L812+Misc!L812","v":288288.95776417974},{"$f":"+Distribution!M812+Transmission!M812+Generation!M812+Retail!M812+Misc!M812","v":356433.40787557088},{"$f":"+Distribution!N812+Transmission!N812+Generation!N812+Retail!N812+Misc!N812","v":121467.65913987138},{"$f":"+Distribution!O812+Transmission!O812+Generation!O812+Retail!O812+Misc!O812","v":8185.55684254883},{"$f":"+Distribution!P812+Transmission!P812+Generation!P812+Retail!P812+Misc!P812","v":0},{"$f":"+Distribution!Q812+Transmission!Q812+Generation!Q812+Retail!Q812+Misc!Q812","v":0},{"$f":"ROUND(SUM(I812:Q812)-H812,0)","v":0}]
[813]
[814,null,"HP","Unclassified Hydro Plant - Acct 300",null,{"$f":"IF(Classification=\"DEMAND\",\"F12\",IF(Classification=\"ENERGY\",\"F30\",\"F10\"))","v":"F10"},null,{"$f":"+Distribution!H814+Transmission!H814+Generation!H814+Retail!H814+Misc!H814","v":0},{"$f":"+Distribution!I814+Transmission!I814+Generation!I814+Retail!I814+Misc!I814","v":0},{"$f":"+Distribution!J814+Transmission!J814+Generation!J814+Retail!J814+Misc!J814","v":0},{"$f":"+Distribution!K814+Transmission!K814+Generation!K814+Retail!K814+Misc!K814","v":0},{"$f":"+Distribution!L814+Transmission!L814+Generation!L814+Retail!L814+Misc!L814","v":0},{"$f":"+Distribution!M814+Transmission!M814+Generation!M814+Retail!M814+Misc!M814","v":0},{"$f":"+Distribution!N814+Transmission!N814+Generation!N814+Retail!N814+Misc!N814","v":0},{"$f":"+Distribution!O814+Transmission!O814+Generation!O814+Retail!O814+Misc!O814","v":0},{"$f":"+Distribution!P814+Transmission!P814+Generation!P814+Retail!P814+Misc!P814","v":0},{"$f":"+Distribution!Q814+Transmission!Q814+Generation!Q814+Retail!Q814+Misc!Q814","v":0},{"$f":"ROUND(SUM(I814:Q814)-H814,0)","v":0}]
[815]
[816,null,"Total Hydraulic Plant",null,null,null,null,{"$f":"+Distribution!H816+Transmission!H816+Generation!H816+Retail!H816+Misc!H816","v":173294807.10907957},{"$f":"+Distribution!I816+Transmission!I816+Generation!I816+Retail!I816+Misc!I816","v":73524658.109891608},{"$f":"+Distribution!J816+Transmission!J816+Generation!J816+Retail!J816+Misc!J816","v":23386279.556501664},{"$f":"+Distribution!K816+Transmission!K816+Generation!K816+Retail!K816+Misc!K816","v":37053540.974230476},{"$f":"+Distribution!L816+Transmission!L816+Generation!L816+Retail!L816+Misc!L816","v":14642118.981776211},{"$f":"+Distribution!M816+Transmission!M816+Generation!M816+Retail!M816+Misc!M816","v":18103157.358746883},{"$f":"+Distribution!N816+Transmission!N816+Generation!N816+Retail!N816+Misc!N816","v":6169309.8874036018},{"$f":"+Distribution!O816+Transmission!O816+Generation!O816+Retail!O816+Misc!O816","v":415742.24052914575},{"$f":"+Distribution!P816+Transmission!P816+Generation!P816+Retail!P816+Misc!P816","v":0},{"$f":"+Distribution!Q816+Transmission!Q816+Generation!Q816+Retail!Q816+Misc!Q816","v":0},{"$f":"ROUND(SUM(I816:Q816)-H816,0)","v":0}]
[817]
[818,null,null,null,null,null,null,"OTHER PRODUCTION"]
[819,null,"A",null,"B","C",null,"D","E","F","G","H","I","J","K","L","M"]
[820,null,null,null,null,null,null,{"$f":"'Hot Sheet'!$H$10","v":"Washington"},null,{"$f":"'Hot Sheet'!$J$10","v":"Small General"},{"$f":"'Hot Sheet'!$K$10","v":"Large General"},{"$f":"'Hot Sheet'!$L$10","v":"Large General"},{"$f":"'Hot Sheet'!$M$10","v":"Large General"},{"$f":"'Hot Sheet'!$N$10","v":"Agricultural"},{"$f":"'Hot Sheet'!$O$10","v":"Street & Area"}]
[821,null,"FERC",null,null,"COS",null,{"$f":"'Hot Sheet'!$H$11","v":"Jurisdiction"},{"$f":"'Hot Sheet'!$I$11","v":"Residential"},{"$f":"'Hot Sheet'!$J$11","v":"Service"},{"$f":"'Hot Sheet'!$K$11","v":"Service <1,000 kW"},{"$f":"'Hot Sheet'!$L$11","v":"Service >1,000 kW"},{"$f":"'Hot Sheet'!$M$11","v":"Dedicated Facilities"},{"$f":"'Hot Sheet'!$N$11","v":"Pumping"},{"$f":"'Hot Sheet'!$O$11","v":"Lighting"}]
[822,null,"ACCT",null,"DESCRIPTION ","Factor",null,{"$f":"'Hot Sheet'!$H$12","v":"Normalized"},{"$f":"'Hot Sheet'!$I$12","v":"Schedule 16"},{"$f":"'Hot Sheet'!$J$12","v":"Schedule 24"},{"$f":"'Hot Sheet'!$K$12","v":"Schedule 36"},{"$f":"'Hot Sheet'!$L$12","v":"Schedule 48T"},{"$f":"'Hot Sheet'!$M$12","v":"Schedule 48T"},{"$f":"'Hot Sheet'!$N$12","v":"Schedule 40"},{"$f":"'Hot Sheet'!$O$12","v":"Sch. 15,51-54,57"}]
[823,null,"340","Land and Land Rights"]
[824,null,null,null,"SG",{"$f":"IF(Classification=\"DEMAND\",\"F12\",IF(Classification=\"ENERGY\",\"F30\",\"F10\"))","v":"F10"},null,{"$f":"+Distribution!H824+Transmission!H824+Generation!H824+Retail!H824+Misc!H824","v":637169.99365856522},{"$f":"+Distribution!I824+Transmission!I824+Generation!I824+Retail!I824+Misc!I824","v":270335.31311841187},{"$f":"+Distribution!J824+Transmission!J824+Generation!J824+Retail!J824+Misc!J824","v":85986.625019491839},{"$f":"+Distribution!K824+Transmission!K824+Generation!K824+Retail!K824+Misc!K824","v":136238.38395063384},{"$f":"+Distribution!L824+Transmission!L824+Generation!L824+Retail!L824+Misc!L824","v":53836.113236179575},{"$f":"+Distribution!M824+Transmission!M824+Generation!M824+Retail!M824+Misc!M824","v":66561.652088121948},{"$f":"+Distribution!N824+Transmission!N824+Generation!N824+Retail!N824+Misc!N824","v":22683.306022899986},{"$f":"+Distribution!O824+Transmission!O824+Generation!O824+Retail!O824+Misc!O824","v":1528.6002228261486},{"$f":"+Distribution!P824+Transmission!P824+Generation!P824+Retail!P824+Misc!P824","v":0},{"$f":"+Distribution!Q824+Transmission!Q824+Generation!Q824+Retail!Q824+Misc!Q824","v":0},{"$f":"ROUND(SUM(I824:Q824)-H824,0)","v":0}]
[825,null,null,null,"SSGCT",{"$f":"IF(Classification=\"DEMAND\",\"F12\",IF(Classification=\"ENERGY\",\"F30\",\"F10\"))","v":"F10"},null,{"$f":"+Distribution!H825+Transmission!H825+Generation!H825+Retail!H825+Misc!H825","v":0},{"$f":"+Distribution!I825+Transmission!I825+Generation!I825+Retail!I825+Misc!I825","v":0},{"$f":"+Distribution!J825+Transmission!J825+Generation!J825+Retail!J825+Misc!J825","v":0},{"$f":"+Distribution!K825+Transmission!K825+Generation!K825+Retail!K825+Misc!K825","v":0},{"$f":"+Distribution!L825+Transmission!L825+Generation!L825+Retail!L825+Misc!L825","v":0},{"$f":"+Distribution!M825+Transmission!M825+Generation!M825+Retail!M825+Misc!M825","v":0},{"$f":"+Distribution!N825+Transmission!N825+Generation!N825+Retail!N825+Misc!N825","v":0},{"$f":"+Distribution!O825+Transmission!O825+Generation!O825+Retail!O825+Misc!O825","v":0},{"$f":"+Distribution!P825+Transmission!P825+Generation!P825+Retail!P825+Misc!P825","v":0},{"$f":"+Distribution!Q825+Transmission!Q825+Generation!Q825+Retail!Q825+Misc!Q825","v":0},{"$f":"ROUND(SUM(I825:Q825)-H825,0)","v":0}]
[826,null,null,null,"Total 340",null,null,{"$f":"+Distribution!H826+Transmission!H826+Generation!H826+Retail!H826+Misc!H826","v":637169.99365856522},{"$f":"+Distribution!I826+Transmission!I826+Generation!I826+Retail!I826+Misc!I826","v":270335.31311841187},{"$f":"+Distribution!J826+Transmission!J826+Generation!J826+Retail!J826+Misc!J826","v":85986.625019491839},{"$f":"+Distribution!K826+Transmission!K826+Generation!K826+Retail!K826+Misc!K826","v":136238.38395063384},{"$f":"+Distribution!L826+Transmission!L826+Generation!L826+Retail!L826+Misc!L826","v":53836.113236179575},{"$f":"+Distribution!M826+Transmission!M826+Generation!M826+Retail!M826+Misc!M826","v":66561.652088121948},{"$f":"+Distribution!N826+Transmission!N826+Generation!N826+Retail!N826+Misc!N826","v":22683.306022899986},{"$f":"+Distribution!O826+Transmission!O826+Generation!O826+Retail!O826+Misc!O826","v":1528.6002228261486},{"$f":"+Distribution!P826+Transmission!P826+Generation!P826+Retail!P826+Misc!P826","v":0},{"$f":"+Distribution!Q826+Transmission!Q826+Generation!Q826+Retail!Q826+Misc!Q826","v":0},{"$f":"ROUND(SUM(I826:Q826)-H826,0)","v":0}]
[827]
[828,null,"341","Structures and Improvements"]
[829,null,null,null,"SG",{"$f":"IF(Classification=\"DEMAND\",\"F12\",IF(Classification=\"ENERGY\",\"F30\",\"F10\"))","v":"F10"},null,{"$f":"+Distribution!H829+Transmission!H829+Generation!H829+Retail!H829+Misc!H829","v":12828483.809288759},{"$f":"+Distribution!I829+Transmission!I829+Generation!I829+Retail!I829+Misc!I829","v":5442805.2512418162},{"$f":"+Distribution!J829+Transmission!J829+Generation!J829+Retail!J829+Misc!J829","v":1731214.6489262201},{"$f":"+Distribution!K829+Transmission!K829+Generation!K829+Retail!K829+Misc!K829","v":2742960.1520923376},{"$f":"+Distribution!L829+Transmission!L829+Generation!L829+Retail!L829+Misc!L829","v":1083911.2228744577},{"$f":"+Distribution!M829+Transmission!M829+Generation!M829+Retail!M829+Misc!M829","v":1340121.2935798538},{"$f":"+Distribution!N829+Transmission!N829+Generation!N829+Retail!N829+Misc!N829","v":456695.11582782766},{"$f":"+Distribution!O829+Transmission!O829+Generation!O829+Retail!O829+Misc!O829","v":30776.12474624547},{"$f":"+Distribution!P829+Transmission!P829+Generation!P829+Retail!P829+Misc!P829","v":0},{"$f":"+Distribution!Q829+Transmission!Q829+Generation!Q829+Retail!Q829+Misc!Q829","v":0},{"$f":"ROUND(SUM(I829:Q829)-H829,0)","v":0}]
[830,null,null,null,"SSGCT",{"$f":"IF(Classification=\"DEMAND\",\"F12\",IF(Classification=\"ENERGY\",\"F30\",\"F10\"))","v":"F10"},null,{"$f":"+Distribution!H830+Transmission!H830+Generation!H830+Retail!H830+Misc!H830","v":0},{"$f":"+Distribution!I830+Transmission!I830+Generation!I830+Retail!I830+Misc!I830","v":0},{"$f":"+Distribution!J830+Transmission!J830+Generation!J830+Retail!J830+Misc!J830","v":0},{"$f":"+Distribution!K830+Transmission!K830+Generation!K830+Retail!K830+Misc!K830","v":0},{"$f":"+Distribution!L830+Transmission!L830+Generation!L830+Retail!L830+Misc!L830","v":0},{"$f":"+Distribution!M830+Transmission!M830+Generation!M830+Retail!M830+Misc!M830","v":0},{"$f":"+Distribution!N830+Transmission!N830+Generation!N830+Retail!N830+Misc!N830","v":0},{"$f":"+Distribution!O830+Transmission!O830+Generation!O830+Retail!O830+Misc!O830","v":0},{"$f":"+Distribution!P830+Transmission!P830+Generation!P830+Retail!P830+Misc!P830","v":0},{"$f":"+Distribution!Q830+Transmission!Q830+Generation!Q830+Retail!Q830+Misc!Q830","v":0},{"$f":"ROUND(SUM(I830:Q830)-H830,0)","v":0}]
[831,null,null,null,"Total 341",null,null,{"$f":"+Distribution!H831+Transmission!H831+Generation!H831+Retail!H831+Misc!H831","v":12828483.809288759},{"$f":"+Distribution!I831+Transmission!I831+Generation!I831+Retail!I831+Misc!I831","v":5442805.2512418162},{"$f":"+Distribution!J831+Transmission!J831+Generation!J831+Retail!J831+Misc!J831","v":1731214.6489262201},{"$f":"+Distribution!K831+Transmission!K831+Generation!K831+Retail!K831+Misc!K831","v":2742960.1520923376},{"$f":"+Distribution!L831+Transmission!L831+Generation!L831+Retail!L831+Misc!L831","v":1083911.2228744577},{"$f":"+Distribution!M831+Transmission!M831+Generation!M831+Retail!M831+Misc!M831","v":1340121.2935798538},{"$f":"+Distribution!N831+Transmission!N831+Generation!N831+Retail!N831+Misc!N831","v":456695.11582782766},{"$f":"+Distribution!O831+Transmission!O831+Generation!O831+Retail!O831+Misc!O831","v":30776.12474624547},{"$f":"+Distribution!P831+Transmission!P831+Generation!P831+Retail!P831+Misc!P831","v":0},{"$f":"+Distribution!Q831+Transmission!Q831+Generation!Q831+Retail!Q831+Misc!Q831","v":0},{"$f":"ROUND(SUM(I831:Q831)-H831,0)","v":0}]
[832]
[833,null,"342","Fuel Holders, Producers & Access"]
[834,null,null,null,"SG",{"$f":"IF(Classification=\"DEMAND\",\"F12\",IF(Classification=\"ENERGY\",\"F30\",\"F10\"))","v":"F10"},null,{"$f":"+Distribution!H834+Transmission!H834+Generation!H834+Retail!H834+Misc!H834","v":367152.61981028365},{"$f":"+Distribution!I834+Transmission!I834+Generation!I834+Retail!I834+Misc!I834","v":155773.68587109708},{"$f":"+Distribution!J834+Transmission!J834+Generation!J834+Retail!J834+Misc!J834","v":49547.553963233513},{"$f":"+Distribution!K834+Transmission!K834+Generation!K834+Retail!K834+Misc!K834","v":78503.821717942439},{"$f":"+Distribution!L834+Transmission!L834+Generation!L834+Retail!L834+Misc!L834","v":31021.658602552292},{"$f":"+Distribution!M834+Transmission!M834+Generation!M834+Retail!M834+Misc!M834","v":38354.419050295299},{"$f":"+Distribution!N834+Transmission!N834+Generation!N834+Retail!N834+Misc!N834","v":13070.664524621188},{"$f":"+Distribution!O834+Transmission!O834+Generation!O834+Retail!O834+Misc!O834","v":880.81608054183584},{"$f":"+Distribution!P834+Transmission!P834+Generation!P834+Retail!P834+Misc!P834","v":0},{"$f":"+Distribution!Q834+Transmission!Q834+Generation!Q834+Retail!Q834+Misc!Q834","v":0},{"$f":"ROUND(SUM(I834:Q834)-H834,0)","v":0}]
[835,null,null,null,"SSGCT",{"$f":"IF(Classification=\"DEMAND\",\"F12\",IF(Classification=\"ENERGY\",\"F30\",\"F10\"))","v":"F10"},null,{"$f":"+Distribution!H835+Transmission!H835+Generation!H835+Retail!H835+Misc!H835","v":0},{"$f":"+Distribution!I835+Transmission!I835+Generation!I835+Retail!I835+Misc!I835","v":0},{"$f":"+Distribution!J835+Transmission!J835+Generation!J835+Retail!J835+Misc!J835","v":0},{"$f":"+Distribution!K835+Transmission!K835+Generation!K835+Retail!K835+Misc!K835","v":0},{"$f":"+Distribution!L835+Transmission!L835+Generation!L835+Retail!L835+Misc!L835","v":0},{"$f":"+Distribution!M835+Transmission!M835+Generation!M835+Retail!M835+Misc!M835","v":0},{"$f":"+Distribution!N835+Transmission!N835+Generation!N835+Retail!N835+Misc!N835","v":0},{"$f":"+Distribution!O835+Transmission!O835+Generation!O835+Retail!O835+Misc!O835","v":0},{"$f":"+Distribution!P835+Transmission!P835+Generation!P835+Retail!P835+Misc!P835","v":0},{"$f":"+Distribution!Q835+Transmission!Q835+Generation!Q835+Retail!Q835+Misc!Q835","v":0},{"$f":"ROUND(SUM(I835:Q835)-H835,0)","v":0}]
[836,null,null,null,"Total 342",null,null,{"$f":"+Distribution!H836+Transmission!H836+Generation!H836+Retail!H836+Misc!H836","v":367152.61981028365},{"$f":"+Distribution!I836+Transmission!I836+Generation!I836+Retail!I836+Misc!I836","v":155773.68587109708},{"$f":"+Distribution!J836+Transmission!J836+Generation!J836+Retail!J836+Misc!J836","v":49547.553963233513},{"$f":"+Distribution!K836+Transmission!K836+Generation!K836+Retail!K836+Misc!K836","v":78503.821717942439},{"$f":"+Distribution!L836+Transmission!L836+Generation!L836+Retail!L836+Misc!L836","v":31021.658602552292},{"$f":"+Distribution!M836+Transmission!M836+Generation!M836+Retail!M836+Misc!M836","v":38354.419050295299},{"$f":"+Distribution!N836+Transmission!N836+Generation!N836+Retail!N836+Misc!N836","v":13070.664524621188},{"$f":"+Distribution!O836+Transmission!O836+Generation!O836+Retail!O836+Misc!O836","v":880.81608054183584},{"$f":"+Distribution!P836+Transmission!P836+Generation!P836+Retail!P836+Misc!P836","v":0},{"$f":"+Distribution!Q836+Transmission!Q836+Generation!Q836+Retail!Q836+Misc!Q836","v":0},{"$f":"ROUND(SUM(I836:Q836)-H836,0)","v":0}]
[837]
[838,null,"343","Prime Movers",null,{"$f":"IF(Classification=\"DEMAND\",\"F12\",IF(Classification=\"ENERGY\",\"F30\",\"F10\"))","v":"F10"},null,{"$f":"+Distribution!H838+Transmission!H838+Generation!H838+Retail!H838+Misc!H838","v":213520416.54425099},{"$f":"+Distribution!I838+Transmission!I838+Generation!I838+Retail!I838+Misc!I838","v":90591379.440562397},{"$f":"+Distribution!J838+Transmission!J838+Generation!J838+Retail!J838+Misc!J838","v":28814759.285784218},{"$f":"+Distribution!K838+Transmission!K838+Generation!K838+Retail!K838+Misc!K838","v":45654498.454054587},{"$f":"+Distribution!L838+Transmission!L838+Generation!L838+Retail!L838+Misc!L838","v":18040883.026064645},{"$f":"+Distribution!M838+Transmission!M838+Generation!M838+Retail!M838+Misc!M838","v":22305305.995538011},{"$f":"+Distribution!N838+Transmission!N838+Generation!N838+Retail!N838+Misc!N838","v":7601345.0081042051},{"$f":"+Distribution!O838+Transmission!O838+Generation!O838+Retail!O838+Misc!O838","v":512245.33414292033},{"$f":"+Distribution!P838+Transmission!P838+Generation!P838+Retail!P838+Misc!P838","v":0},{"$f":"+Distribution!Q838+Transmission!Q838+Generation!Q838+Retail!Q838+Misc!Q838","v":0},{"$f":"ROUND(SUM(I838:Q838)-H838,0)","v":0}]
[839,null,null,null,"SSGCT","F10",null,{"$f":"+Distribution!H839+Transmission!H839+Generation!H839+Retail!H839+Misc!H839","v":0},{"$f":"+Distribution!I839+Transmission!I839+Generation!I839+Retail!I839+Misc!I839","v":0},{"$f":"+Distribution!J839+Transmission!J839+Generation!J839+Retail!J839+Misc!J839","v":0},{"$f":"+Distribution!K839+Transmission!K839+Generation!K839+Retail!K839+Misc!K839","v":0},{"$f":"+Distribution!L839+Transmission!L839+Generation!L839+Retail!L839+Misc!L839","v":0},{"$f":"+Distribution!M839+Transmission!M839+Generation!M839+Retail!M839+Misc!M839","v":0},{"$f":"+Distribution!N839+Transmission!N839+Generation!N839+Retail!N839+Misc!N839","v":0},{"$f":"+Distribution!O839+Transmission!O839+Generation!O839+Retail!O839+Misc!O839","v":0},{"$f":"+Distribution!P839+Transmission!P839+Generation!P839+Retail!P839+Misc!P839","v":0},{"$f":"+Distribution!Q839+Transmission!Q839+Generation!Q839+Retail!Q839+Misc!Q839","v":0},{"$f":"ROUND(SUM(I839:Q839)-H839,0)","v":0}]
[840,null,null,null,"Total 343",null,null,{"$f":"+Distribution!H840+Transmission!H840+Generation!H840+Retail!H840+Misc!H840","v":213520416.54425099},{"$f":"+Distribution!I840+Transmission!I840+Generation!I840+Retail!I840+Misc!I840","v":90591379.440562397},{"$f":"+Distribution!J840+Transmission!J840+Generation!J840+Retail!J840+Misc!J840","v":28814759.285784218},{"$f":"+Distribution!K840+Transmission!K840+Generation!K840+Retail!K840+Misc!K840","v":45654498.454054587},{"$f":"+Distribution!L840+Transmission!L840+Generation!L840+Retail!L840+Misc!L840","v":18040883.026064645},{"$f":"+Distribution!M840+Transmission!M840+Generation!M840+Retail!M840+Misc!M840","v":22305305.995538011},{"$f":"+Distribution!N840+Transmission!N840+Generation!N840+Retail!N840+Misc!N840","v":7601345.0081042051},{"$f":"+Distribution!O840+Transmission!O840+Generation!O840+Retail!O840+Misc!O840","v":512245.33414292033},{"$f":"+Distribution!P840+Transmission!P840+Generation!P840+Retail!P840+Misc!P840","v":0},{"$f":"+Distribution!Q840+Transmission!Q840+Generation!Q840+Retail!Q840+Misc!Q840","v":0},{"$f":"ROUND(SUM(I840:Q840)-H840,0)","v":0}]
[841]
[842,null,"344","Generators"]
[843,null,null,null,"SG",{"$f":"IF(Classification=\"DEMAND\",\"F12\",IF(Classification=\"ENERGY\",\"F30\",\"F10\"))","v":"F10"},null,{"$f":"+Distribution!H843+Transmission!H843+Generation!H843+Retail!H843+Misc!H843","v":32370717.088822149},{"$f":"+Distribution!I843+Transmission!I843+Generation!I843+Retail!I843+Misc!I843","v":13734086.707108112},{"$f":"+Distribution!J843+Transmission!J843+Generation!J843+Retail!J843+Misc!J843","v":4368455.4194812719},{"$f":"+Distribution!K843+Transmission!K843+Generation!K843+Retail!K843+Misc!K843","v":6921440.4749064762},{"$f":"+Distribution!L843+Transmission!L843+Generation!L843+Retail!L843+Misc!L843","v":2735084.2131213346},{"$f":"+Distribution!M843+Transmission!M843+Generation!M843+Retail!M843+Misc!M843","v":3381591.1454609339},{"$f":"+Distribution!N843+Transmission!N843+Generation!N843+Retail!N843+Misc!N843","v":1152400.2844050131},{"$f":"+Distribution!O843+Transmission!O843+Generation!O843+Retail!O843+Misc!O843","v":77658.844339005678},{"$f":"+Distribution!P843+Transmission!P843+Generation!P843+Retail!P843+Misc!P843","v":0},{"$f":"+Distribution!Q843+Transmission!Q843+Generation!Q843+Retail!Q843+Misc!Q843","v":0},{"$f":"ROUND(SUM(I843:Q843)-H843,0)","v":0}]
[844,null,null,null,"SSGCT",{"$f":"IF(Classification=\"DEMAND\",\"F12\",IF(Classification=\"ENERGY\",\"F30\",\"F10\"))","v":"F10"},null,{"$f":"+Distribution!H844+Transmission!H844+Generation!H844+Retail!H844+Misc!H844","v":0},{"$f":"+Distribution!I844+Transmission!I844+Generation!I844+Retail!I844+Misc!I844","v":0},{"$f":"+Distribution!J844+Transmission!J844+Generation!J844+Retail!J844+Misc!J844","v":0},{"$f":"+Distribution!K844+Transmission!K844+Generation!K844+Retail!K844+Misc!K844","v":0},{"$f":"+Distribution!L844+Transmission!L844+Generation!L844+Retail!L844+Misc!L844","v":0},{"$f":"+Distribution!M844+Transmission!M844+Generation!M844+Retail!M844+Misc!M844","v":0},{"$f":"+Distribution!N844+Transmission!N844+Generation!N844+Retail!N844+Misc!N844","v":0},{"$f":"+Distribution!O844+Transmission!O844+Generation!O844+Retail!O844+Misc!O844","v":0},{"$f":"+Distribution!P844+Transmission!P844+Generation!P844+Retail!P844+Misc!P844","v":0},{"$f":"+Distribution!Q844+Transmission!Q844+Generation!Q844+Retail!Q844+Misc!Q844","v":0},{"$f":"ROUND(SUM(I844:Q844)-H844,0)","v":0}]
[845,null,null,null,"Total 344",null,null,{"$f":"+Distribution!H845+Transmission!H845+Generation!H845+Retail!H845+Misc!H845","v":32370717.088822149},{"$f":"+Distribution!I845+Transmission!I845+Generation!I845+Retail!I845+Misc!I845","v":13734086.707108112},{"$f":"+Distribution!J845+Transmission!J845+Generation!J845+Retail!J845+Misc!J845","v":4368455.4194812719},{"$f":"+Distribution!K845+Transmission!K845+Generation!K845+Retail!K845+Misc!K845","v":6921440.4749064762},{"$f":"+Distribution!L845+Transmission!L845+Generation!L845+Retail!L845+Misc!L845","v":2735084.2131213346},{"$f":"+Distribution!M845+Transmission!M845+Generation!M845+Retail!M845+Misc!M845","v":3381591.1454609339},{"$f":"+Distribution!N845+Transmission!N845+Generation!N845+Retail!N845+Misc!N845","v":1152400.2844050131},{"$f":"+Distribution!O845+Transmission!O845+Generation!O845+Retail!O845+Misc!O845","v":77658.844339005678},{"$f":"+Distribution!P845+Transmission!P845+Generation!P845+Retail!P845+Misc!P845","v":0},{"$f":"+Distribution!Q845+Transmission!Q845+Generation!Q845+Retail!Q845+Misc!Q845","v":0},{"$f":"ROUND(SUM(I845:Q845)-H845,0)","v":0}]
[846]
[847,null,"345","Accessory Electric Plant"]
[848,null,null,null,"SG",{"$f":"IF(Classification=\"DEMAND\",\"F12\",IF(Classification=\"ENERGY\",\"F30\",\"F10\"))","v":"F10"},null,{"$f":"+Distribution!H848+Transmission!H848+Generation!H848+Retail!H848+Misc!H848","v":19621147.05551821},{"$f":"+Distribution!I848+Transmission!I848+Generation!I848+Retail!I848+Misc!I848","v":8324762.5999134602},{"$f":"+Distribution!J848+Transmission!J848+Generation!J848+Retail!J848+Misc!J848","v":2647890.2508068085},{"$f":"+Distribution!K848+Transmission!K848+Generation!K848+Retail!K848+Misc!K848","v":4195353.504882683},{"$f":"+Distribution!L848+Transmission!L848+Generation!L848+Retail!L848+Misc!L848","v":1657840.6158759797},{"$f":"+Distribution!M848+Transmission!M848+Generation!M848+Retail!M848+Misc!M848","v":2049713.540934768},{"$f":"+Distribution!N848+Transmission!N848+Generation!N848+Retail!N848+Misc!N848","v":698514.50572096417},{"$f":"+Distribution!O848+Transmission!O848+Generation!O848+Retail!O848+Misc!O848","v":47072.037383546027},{"$f":"+Distribution!P848+Transmission!P848+Generation!P848+Retail!P848+Misc!P848","v":0},{"$f":"+Distribution!Q848+Transmission!Q848+Generation!Q848+Retail!Q848+Misc!Q848","v":0},{"$f":"ROUND(SUM(I848:Q848)-H848,0)","v":0}]
[849,null,null,null,"SSGCT",{"$f":"IF(Classification=\"DEMAND\",\"F12\",IF(Classification=\"ENERGY\",\"F30\",\"F10\"))","v":"F10"},null,{"$f":"+Distribution!H849+Transmission!H849+Generation!H849+Retail!H849+Misc!H849","v":0},{"$f":"+Distribution!I849+Transmission!I849+Generation!I849+Retail!I849+Misc!I849","v":0},{"$f":"+Distribution!J849+Transmission!J849+Generation!J849+Retail!J849+Misc!J849","v":0},{"$f":"+Distribution!K849+Transmission!K849+Generation!K849+Retail!K849+Misc!K849","v":0},{"$f":"+Distribution!L849+Transmission!L849+Generation!L849+Retail!L849+Misc!L849","v":0},{"$f":"+Distribution!M849+Transmission!M849+Generation!M849+Retail!M849+Misc!M849","v":0},{"$f":"+Distribution!N849+Transmission!N849+Generation!N849+Retail!N849+Misc!N849","v":0},{"$f":"+Distribution!O849+Transmission!O849+Generation!O849+Retail!O849+Misc!O849","v":0},{"$f":"+Distribution!P849+Transmission!P849+Generation!P849+Retail!P849+Misc!P849","v":0},{"$f":"+Distribution!Q849+Transmission!Q849+Generation!Q849+Retail!Q849+Misc!Q849","v":0},{"$f":"ROUND(SUM(I849:Q849)-H849,0)","v":0}]
[850,null,null,null,"Total 345",null,null,{"$f":"+Distribution!H850+Transmission!H850+Generation!H850+Retail!H850+Misc!H850","v":19621147.05551821},{"$f":"+Distribution!I850+Transmission!I850+Generation!I850+Retail!I850+Misc!I850","v":8324762.5999134602},{"$f":"+Distribution!J850+Transmission!J850+Generation!J850+Retail!J850+Misc!J850","v":2647890.2508068085},{"$f":"+Distribution!K850+Transmission!K850+Generation!K850+Retail!K850+Misc!K850","v":4195353.504882683},{"$f":"+Distribution!L850+Transmission!L850+Generation!L850+Retail!L850+Misc!L850","v":1657840.6158759797},{"$f":"+Distribution!M850+Transmission!M850+Generation!M850+Retail!M850+Misc!M850","v":2049713.540934768},{"$f":"+Distribution!N850+Transmission!N850+Generation!N850+Retail!N850+Misc!N850","v":698514.50572096417},{"$f":"+Distribution!O850+Transmission!O850+Generation!O850+Retail!O850+Misc!O850","v":47072.037383546027},{"$f":"+Distribution!P850+Transmission!P850+Generation!P850+Retail!P850+Misc!P850","v":0},{"$f":"+Distribution!Q850+Transmission!Q850+Generation!Q850+Retail!Q850+Misc!Q850","v":0},{"$f":"ROUND(SUM(I850:Q850)-H850,0)","v":0}]
[851]
[852,null,"346","Misc. Power Plant Equipment",null,{"$f":"IF(Classification=\"DEMAND\",\"F12\",IF(Classification=\"ENERGY\",\"F30\",\"F10\"))","v":"F10"},null,{"$f":"+Distribution!H852+Transmission!H852+Generation!H852+Retail!H852+Misc!H852","v":998517.07243625529},{"$f":"+Distribution!I852+Transmission!I852+Generation!I852+Retail!I852+Misc!I852","v":423645.85293980816},{"$f":"+Distribution!J852+Transmission!J852+Generation!J852+Retail!J852+Misc!J852","v":134750.71635144457},{"$f":"+Distribution!K852+Transmission!K852+Generation!K852+Retail!K852+Misc!K852","v":213500.87676716622},{"$f":"+Distribution!L852+Transmission!L852+Generation!L852+Retail!L852+Misc!L852","v":84367.246912042552},{"$f":"+Distribution!M852+Transmission!M852+Generation!M852+Retail!M852+Misc!M852","v":104309.59813083573},{"$f":"+Distribution!N852+Transmission!N852+Generation!N852+Retail!N852+Misc!N852","v":35547.292792477063},{"$f":"+Distribution!O852+Transmission!O852+Generation!O852+Retail!O852+Misc!O852","v":2395.4885424809827},{"$f":"+Distribution!P852+Transmission!P852+Generation!P852+Retail!P852+Misc!P852","v":0},{"$f":"+Distribution!Q852+Transmission!Q852+Generation!Q852+Retail!Q852+Misc!Q852","v":0},{"$f":"ROUND(SUM(I852:Q852)-H852,0)","v":0}]
[853]
[854,null,"OP","Unclassified Other Prod - Acct 300",null,{"$f":"IF(Classification=\"DEMAND\",\"F12\",IF(Classification=\"ENERGY\",\"F30\",\"F10\"))","v":"F10"},null,{"$f":"+Distribution!H854+Transmission!H854+Generation!H854+Retail!H854+Misc!H854","v":0},{"$f":"+Distribution!I854+Transmission!I854+Generation!I854+Retail!I854+Misc!I854","v":0},{"$f":"+Distribution!J854+Transmission!J854+Generation!J854+Retail!J854+Misc!J854","v":0},{"$f":"+Distribution!K854+Transmission!K854+Generation!K854+Retail!K854+Misc!K854","v":0},{"$f":"+Distribution!L854+Transmission!L854+Generation!L854+Retail!L854+Misc!L854","v":0},{"$f":"+Distribution!M854+Transmission!M854+Generation!M854+Retail!M854+Misc!M854","v":0},{"$f":"+Distribution!N854+Transmission!N854+Generation!N854+Retail!N854+Misc!N854","v":0},{"$f":"+Distribution!O854+Transmission!O854+Generation!O854+Retail!O854+Misc!O854","v":0},{"$f":"+Distribution!P854+Transmission!P854+Generation!P854+Retail!P854+Misc!P854","v":0},{"$f":"+Distribution!Q854+Transmission!Q854+Generation!Q854+Retail!Q854+Misc!Q854","v":0},{"$f":"ROUND(SUM(I854:Q854)-H854,0)","v":0}]
[855]
[856,null,"Total Other Production Plant",null,null,null,null,{"$f":"+Distribution!H856+Transmission!H856+Generation!H856+Retail!H856+Misc!H856","v":280343604.18378526},{"$f":"+Distribution!I856+Transmission!I856+Generation!I856+Retail!I856+Misc!I856","v":118942788.85075511},{"$f":"+Distribution!J856+Transmission!J856+Generation!J856+Retail!J856+Misc!J856","v":37832604.500332683},{"$f":"+Distribution!K856+Transmission!K856+Generation!K856+Retail!K856+Misc!K856","v":59942495.668371826},{"$f":"+Distribution!L856+Transmission!L856+Generation!L856+Retail!L856+Misc!L856","v":23686944.096687194},{"$f":"+Distribution!M856+Transmission!M856+Generation!M856+Retail!M856+Misc!M856","v":29285957.644782819},{"$f":"+Distribution!N856+Transmission!N856+Generation!N856+Retail!N856+Misc!N856","v":9980256.1773980074},{"$f":"+Distribution!O856+Transmission!O856+Generation!O856+Retail!O856+Misc!O856","v":672557.24545756646},{"$f":"+Distribution!P856+Transmission!P856+Generation!P856+Retail!P856+Misc!P856","v":0},{"$f":"+Distribution!Q856+Transmission!Q856+Generation!Q856+Retail!Q856+Misc!Q856","v":0},{"$f":"ROUND(SUM(I856:Q856)-H856,0)","v":0}]
[857]
[858,null,"Experimental Plant"]
[859,null,"103","Experimental Plant",null,{"$f":"IF(Classification=\"DEMAND\",\"F12\",IF(Classification=\"ENERGY\",\"F30\",\"F10\"))","v":"F10"},null,{"$f":"+Distribution!H859+Transmission!H859+Generation!H859+Retail!H859+Misc!H859","v":0},{"$f":"+Distribution!I859+Transmission!I859+Generation!I859+Retail!I859+Misc!I859","v":0},{"$f":"+Distribution!J859+Transmission!J859+Generation!J859+Retail!J859+Misc!J859","v":0},{"$f":"+Distribution!K859+Transmission!K859+Generation!K859+Retail!K859+Misc!K859","v":0},{"$f":"+Distribution!L859+Transmission!L859+Generation!L859+Retail!L859+Misc!L859","v":0},{"$f":"+Distribution!M859+Transmission!M859+Generation!M859+Retail!M859+Misc!M859","v":0},{"$f":"+Distribution!N859+Transmission!N859+Generation!N859+Retail!N859+Misc!N859","v":0},{"$f":"+Distribution!O859+Transmission!O859+Generation!O859+Retail!O859+Misc!O859","v":0},{"$f":"+Distribution!P859+Transmission!P859+Generation!P859+Retail!P859+Misc!P859","v":0},{"$f":"+Distribution!Q859+Transmission!Q859+Generation!Q859+Retail!Q859+Misc!Q859","v":0},{"$f":"ROUND(SUM(I859:Q859)-H859,0)","v":0}]
[860]
[861,null,"TOTAL PRODUCTION PLANT",null,null,null,null,{"$f":"+Distribution!H861+Transmission!H861+Generation!H861+Retail!H861+Misc!H861","v":731580666.74118638},{"$f":"+Distribution!I861+Transmission!I861+Generation!I861+Retail!I861+Misc!I861","v":310391403.52367812},{"$f":"+Distribution!J861+Transmission!J861+Generation!J861+Retail!J861+Misc!J861","v":98727424.53137742},{"$f":"+Distribution!K861+Transmission!K861+Generation!K861+Retail!K861+Misc!K861","v":156425080.83918878},{"$f":"+Distribution!L861+Transmission!L861+Generation!L861+Retail!L861+Misc!L861","v":61813111.113301128},{"$f":"+Distribution!M861+Transmission!M861+Generation!M861+Retail!M861+Misc!M861","v":76424216.925879002},{"$f":"+Distribution!N861+Transmission!N861+Generation!N861+Retail!N861+Misc!N861","v":26044334.022766277},{"$f":"+Distribution!O861+Transmission!O861+Generation!O861+Retail!O861+Misc!O861","v":1755095.7849956923},{"$f":"+Distribution!P861+Transmission!P861+Generation!P861+Retail!P861+Misc!P861","v":0},{"$f":"+Distribution!Q861+Transmission!Q861+Generation!Q861+Retail!Q861+Misc!Q861","v":0},{"$f":"ROUND(SUM(I861:Q861)-H861,0)","v":0}]
[862]
[863,null,null,null,null,null,null,"TRANSMISSION PLANT"]
[864,null,"350","Land and Land Rights"]
[865,null,null,null,"Demand",{"$f":"IF(Classification=\"DEMAND\",\"F12\",IF(Classification=\"ENERGY\",\"F30\",\"F10\"))","v":"F10"},null,{"$f":"+Distribution!H865+Transmission!H865+Generation!H865+Retail!H865+Misc!H865","v":6763511.8434239225},{"$f":"+Distribution!I865+Transmission!I865+Generation!I865+Retail!I865+Misc!I865","v":2869589.1366031128},{"$f":"+Distribution!J865+Transmission!J865+Generation!J865+Retail!J865+Misc!J865","v":912741.59562357957},{"$f":"+Distribution!K865+Transmission!K865+Generation!K865+Retail!K865+Misc!K865","v":1446160.2595065346},{"$f":"+Distribution!L865+Transmission!L865+Generation!L865+Retail!L865+Misc!L865","v":571466.31683966343},{"$f":"+Distribution!M865+Transmission!M865+Generation!M865+Retail!M865+Misc!M865","v":706546.960303211},{"$f":"+Distribution!N865+Transmission!N865+Generation!N865+Retail!N865+Misc!N865","v":240781.59747130916},{"$f":"+Distribution!O865+Transmission!O865+Generation!O865+Retail!O865+Misc!O865","v":16225.977076511886},{"$f":"+Distribution!P865+Transmission!P865+Generation!P865+Retail!P865+Misc!P865","v":0},{"$f":"+Distribution!Q865+Transmission!Q865+Generation!Q865+Retail!Q865+Misc!Q865","v":0},{"$f":"ROUND(SUM(I865:Q865)-H865,0)","v":0}]
[866,null,null,null,"Direct Assigned","A",null,{"$f":"+Distribution!H866+Transmission!H866+Generation!H866+Retail!H866+Misc!H866","v":0},{"$f":"+Distribution!I866+Transmission!I866+Generation!I866+Retail!I866+Misc!I866","v":0},{"$f":"+Distribution!J866+Transmission!J866+Generation!J866+Retail!J866+Misc!J866","v":0},{"$f":"+Distribution!K866+Transmission!K866+Generation!K866+Retail!K866+Misc!K866","v":0},{"$f":"+Distribution!L866+Transmission!L866+Generation!L866+Retail!L866+Misc!L866","v":0},{"$f":"+Distribution!M866+Transmission!M866+Generation!M866+Retail!M866+Misc!M866","v":0},{"$f":"+Distribution!N866+Transmission!N866+Generation!N866+Retail!N866+Misc!N866","v":0},{"$f":"+Distribution!O866+Transmission!O866+Generation!O866+Retail!O866+Misc!O866","v":0},{"$f":"+Distribution!P866+Transmission!P866+Generation!P866+Retail!P866+Misc!P866","v":0},{"$f":"+Distribution!Q866+Transmission!Q866+Generation!Q866+Retail!Q866+Misc!Q866","v":0},{"$f":"ROUND(SUM(I866:Q866)-H866,0)","v":0}]
[867,null,null,null,null,null,null,{"$f":"+Distribution!H867+Transmission!H867+Generation!H867+Retail!H867+Misc!H867","v":6763511.8434239225},{"$f":"+Distribution!I867+Transmission!I867+Generation!I867+Retail!I867+Misc!I867","v":2869589.1366031128},{"$f":"+Distribution!J867+Transmission!J867+Generation!J867+Retail!J867+Misc!J867","v":912741.59562357957},{"$f":"+Distribution!K867+Transmission!K867+Generation!K867+Retail!K867+Misc!K867","v":1446160.2595065346},{"$f":"+Distribution!L867+Transmission!L867+Generation!L867+Retail!L867+Misc!L867","v":571466.31683966343},{"$f":"+Distribution!M867+Transmission!M867+Generation!M867+Retail!M867+Misc!M867","v":706546.960303211},{"$f":"+Distribution!N867+Transmission!N867+Generation!N867+Retail!N867+Misc!N867","v":240781.59747130916},{"$f":"+Distribution!O867+Transmission!O867+Generation!O867+Retail!O867+Misc!O867","v":16225.977076511886},{"$f":"+Distribution!P867+Transmission!P867+Generation!P867+Retail!P867+Misc!P867","v":0},{"$f":"+Distribution!Q867+Transmission!Q867+Generation!Q867+Retail!Q867+Misc!Q867","v":0},{"$f":"ROUND(SUM(I867:Q867)-H867,0)","v":0}]
[{"$f":"+A867+1","v":868},null,"352","Structures and Improvements"]
[869,null,null,null,"Demand",{"$f":"IF(Classification=\"DEMAND\",\"F12\",IF(Classification=\"ENERGY\",\"F30\",\"F10\"))","v":"F10"},null,{"$f":"+Distribution!H869+Transmission!H869+Generation!H869+Retail!H869+Misc!H869","v":8046409.0148046054},{"$f":"+Distribution!I869+Transmission!I869+Generation!I869+Retail!I869+Misc!I869","v":3413890.3622973114},{"$f":"+Distribution!J869+Transmission!J869+Generation!J869+Retail!J869+Misc!J869","v":1085869.644828592},{"$f":"+Distribution!K869+Transmission!K869+Generation!K869+Retail!K869+Misc!K869","v":1720466.7069903144},{"$f":"+Distribution!L869+Transmission!L869+Generation!L869+Retail!L869+Misc!L869","v":679861.5615564679},{"$f":"+Distribution!M869+Transmission!M869+Generation!M869+Retail!M869+Misc!M869","v":840564.18653190706},{"$f":"+Distribution!N869+Transmission!N869+Generation!N869+Retail!N869+Misc!N869","v":286452.84599833027},{"$f":"+Distribution!O869+Transmission!O869+Generation!O869+Retail!O869+Misc!O869","v":19303.706601682199},{"$f":"+Distribution!P869+Transmission!P869+Generation!P869+Retail!P869+Misc!P869","v":0},{"$f":"+Distribution!Q869+Transmission!Q869+Generation!Q869+Retail!Q869+Misc!Q869","v":0},{"$f":"ROUND(SUM(I869:Q869)-H869,0)","v":0}]
[870,null,null,null,"Direct Assigned","A",null,{"$f":"+Distribution!H870+Transmission!H870+Generation!H870+Retail!H870+Misc!H870","v":0},{"$f":"+Distribution!I870+Transmission!I870+Generation!I870+Retail!I870+Misc!I870","v":0},{"$f":"+Distribution!J870+Transmission!J870+Generation!J870+Retail!J870+Misc!J870","v":0},{"$f":"+Distribution!K870+Transmission!K870+Generation!K870+Retail!K870+Misc!K870","v":0},{"$f":"+Distribution!L870+Transmission!L870+Generation!L870+Retail!L870+Misc!L870","v":0},{"$f":"+Distribution!M870+Transmission!M870+Generation!M870+Retail!M870+Misc!M870","v":0},{"$f":"+Distribution!N870+Transmission!N870+Generation!N870+Retail!N870+Misc!N870","v":0},{"$f":"+Distribution!O870+Transmission!O870+Generation!O870+Retail!O870+Misc!O870","v":0},{"$f":"+Distribution!P870+Transmission!P870+Generation!P870+Retail!P870+Misc!P870","v":0},{"$f":"+Distribution!Q870+Transmission!Q870+Generation!Q870+Retail!Q870+Misc!Q870","v":0},{"$f":"ROUND(SUM(I870:Q870)-H870,0)","v":0}]
[871,null,null,null,null,null,null,{"$f":"+Distribution!H871+Transmission!H871+Generation!H871+Retail!H871+Misc!H871","v":8046409.0148046054},{"$f":"+Distribution!I871+Transmission!I871+Generation!I871+Retail!I871+Misc!I871","v":3413890.3622973114},{"$f":"+Distribution!J871+Transmission!J871+Generation!J871+Retail!J871+Misc!J871","v":1085869.644828592},{"$f":"+Distribution!K871+Transmission!K871+Generation!K871+Retail!K871+Misc!K871","v":1720466.7069903144},{"$f":"+Distribution!L871+Transmission!L871+Generation!L871+Retail!L871+Misc!L871","v":679861.5615564679},{"$f":"+Distribution!M871+Transmission!M871+Generation!M871+Retail!M871+Misc!M871","v":840564.18653190706},{"$f":"+Distribution!N871+Transmission!N871+Generation!N871+Retail!N871+Misc!N871","v":286452.84599833027},{"$f":"+Distribution!O871+Transmission!O871+Generation!O871+Retail!O871+Misc!O871","v":19303.706601682199},{"$f":"+Distribution!P871+Transmission!P871+Generation!P871+Retail!P871+Misc!P871","v":0},{"$f":"+Distribution!Q871+Transmission!Q871+Generation!Q871+Retail!Q871+Misc!Q871","v":0},{"$f":"ROUND(SUM(I871:Q871)-H871,0)","v":0}]
[872,null,"353","Station Equipment"]
[873,null,null,null,"Demand",{"$f":"IF(Classification=\"DEMAND\",\"F12\",IF(Classification=\"ENERGY\",\"F30\",\"F10\"))","v":"F10"},null,{"$f":"+Distribution!H873+Transmission!H873+Generation!H873+Retail!H873+Misc!H873","v":99887523.767113864},{"$f":"+Distribution!I873+Transmission!I873+Generation!I873+Retail!I873+Misc!I873","v":42379781.350274108},{"$f":"+Distribution!J873+Transmission!J873+Generation!J873+Retail!J873+Misc!J873","v":13479905.105027447},{"$f":"+Distribution!K873+Transmission!K873+Generation!K873+Retail!K873+Misc!K873","v":21357745.892463353},{"$f":"+Distribution!L873+Transmission!L873+Generation!L873+Retail!L873+Misc!L873","v":8439750.9203635622},{"$f":"+Distribution!M873+Transmission!M873+Generation!M873+Retail!M873+Misc!M873","v":10434701.368711056},{"$f":"+Distribution!N873+Transmission!N873+Generation!N873+Retail!N873+Misc!N873","v":3556004.3505333099},{"$f":"+Distribution!O873+Transmission!O873+Generation!O873+Retail!O873+Misc!O873","v":239634.779741028},{"$f":"+Distribution!P873+Transmission!P873+Generation!P873+Retail!P873+Misc!P873","v":0},{"$f":"+Distribution!Q873+Transmission!Q873+Generation!Q873+Retail!Q873+Misc!Q873","v":0},{"$f":"ROUND(SUM(I873:Q873)-H873,0)","v":0}]
[874,null,null,null,"Direct Assigned","A",null,{"$f":"+Distribution!H874+Transmission!H874+Generation!H874+Retail!H874+Misc!H874","v":0},{"$f":"+Distribution!I874+Transmission!I874+Generation!I874+Retail!I874+Misc!I874","v":0},{"$f":"+Distribution!J874+Transmission!J874+Generation!J874+Retail!J874+Misc!J874","v":0},{"$f":"+Distribution!K874+Transmission!K874+Generation!K874+Retail!K874+Misc!K874","v":0},{"$f":"+Distribution!L874+Transmission!L874+Generation!L874+Retail!L874+Misc!L874","v":0},{"$f":"+Distribution!M874+Transmission!M874+Generation!M874+Retail!M874+Misc!M874","v":0},{"$f":"+Distribution!N874+Transmission!N874+Generation!N874+Retail!N874+Misc!N874","v":0},{"$f":"+Distribution!O874+Transmission!O874+Generation!O874+Retail!O874+Misc!O874","v":0},{"$f":"+Distribution!P874+Transmission!P874+Generation!P874+Retail!P874+Misc!P874","v":0},{"$f":"+Distribution!Q874+Transmission!Q874+Generation!Q874+Retail!Q874+Misc!Q874","v":0},{"$f":"ROUND(SUM(I874:Q874)-H874,0)","v":0}]
[875,null,null,null,null,null,null,{"$f":"+Distribution!H875+Transmission!H875+Generation!H875+Retail!H875+Misc!H875","v":99887523.767113864},{"$f":"+Distribution!I875+Transmission!I875+Generation!I875+Retail!I875+Misc!I875","v":42379781.350274108},{"$f":"+Distribution!J875+Transmission!J875+Generation!J875+Retail!J875+Misc!J875","v":13479905.105027447},{"$f":"+Distribution!K875+Transmission!K875+Generation!K875+Retail!K875+Misc!K875","v":21357745.892463353},{"$f":"+Distribution!L875+Transmission!L875+Generation!L875+Retail!L875+Misc!L875","v":8439750.9203635622},{"$f":"+Distribution!M875+Transmission!M875+Generation!M875+Retail!M875+Misc!M875","v":10434701.368711056},{"$f":"+Distribution!N875+Transmission!N875+Generation!N875+Retail!N875+Misc!N875","v":3556004.3505333099},{"$f":"+Distribution!O875+Transmission!O875+Generation!O875+Retail!O875+Misc!O875","v":239634.779741028},{"$f":"+Distribution!P875+Transmission!P875+Generation!P875+Retail!P875+Misc!P875","v":0},{"$f":"+Distribution!Q875+Transmission!Q875+Generation!Q875+Retail!Q875+Misc!Q875","v":0},{"$f":"ROUND(SUM(I875:Q875)-H875,0)","v":0}]
[876,null,"354","Towers and Fixtures"]
[877,null,null,null,"Demand",{"$f":"IF(Classification=\"DEMAND\",\"F12\",IF(Classification=\"ENERGY\",\"F30\",\"F10\"))","v":"F10"},null,{"$f":"+Distribution!H877+Transmission!H877+Generation!H877+Retail!H877+Misc!H877","v":41570903.64456252},{"$f":"+Distribution!I877+Transmission!I877+Generation!I877+Retail!I877+Misc!I877","v":17637496.061043628},{"$f":"+Distribution!J877+Transmission!J877+Generation!J877+Retail!J877+Misc!J877","v":5610028.3110975921},{"$f":"+Distribution!K877+Transmission!K877+Generation!K877+Retail!K877+Misc!K877","v":8888605.5342675019},{"$f":"+Distribution!L877+Transmission!L877+Generation!L877+Retail!L877+Misc!L877","v":3512431.3734369674},{"$f":"+Distribution!M877+Transmission!M877+Generation!M877+Retail!M877+Misc!M877","v":4342684.1391105345},{"$f":"+Distribution!N877+Transmission!N877+Generation!N877+Retail!N877+Misc!N877","v":1479927.7090932797},{"$f":"+Distribution!O877+Transmission!O877+Generation!O877+Retail!O877+Misc!O877","v":99730.516513014096},{"$f":"+Distribution!P877+Transmission!P877+Generation!P877+Retail!P877+Misc!P877","v":0},{"$f":"+Distribution!Q877+Transmission!Q877+Generation!Q877+Retail!Q877+Misc!Q877","v":0},{"$f":"ROUND(SUM(I877:Q877)-H877,0)","v":0}]
[878,null,null,null,"Direct Assigned","A",null,{"$f":"+Distribution!H878+Transmission!H878+Generation!H878+Retail!H878+Misc!H878","v":0},{"$f":"+Distribution!I878+Transmission!I878+Generation!I878+Retail!I878+Misc!I878","v":0},{"$f":"+Distribution!J878+Transmission!J878+Generation!J878+Retail!J878+Misc!J878","v":0},{"$f":"+Distribution!K878+Transmission!K878+Generation!K878+Retail!K878+Misc!K878","v":0},{"$f":"+Distribution!L878+Transmission!L878+Generation!L878+Retail!L878+Misc!L878","v":0},{"$f":"+Distribution!M878+Transmission!M878+Generation!M878+Retail!M878+Misc!M878","v":0},{"$f":"+Distribution!N878+Transmission!N878+Generation!N878+Retail!N878+Misc!N878","v":0},{"$f":"+Distribution!O878+Transmission!O878+Generation!O878+Retail!O878+Misc!O878","v":0},{"$f":"+Distribution!P878+Transmission!P878+Generation!P878+Retail!P878+Misc!P878","v":0},{"$f":"+Distribution!Q878+Transmission!Q878+Generation!Q878+Retail!Q878+Misc!Q878","v":0},{"$f":"ROUND(SUM(I878:Q878)-H878,0)","v":0}]
[879,null,null,null,null,null,null,{"$f":"+Distribution!H879+Transmission!H879+Generation!H879+Retail!H879+Misc!H879","v":41570903.64456252},{"$f":"+Distribution!I879+Transmission!I879+Generation!I879+Retail!I879+Misc!I879","v":17637496.061043628},{"$f":"+Distribution!J879+Transmission!J879+Generation!J879+Retail!J879+Misc!J879","v":5610028.3110975921},{"$f":"+Distribution!K879+Transmission!K879+Generation!K879+Retail!K879+Misc!K879","v":8888605.5342675019},{"$f":"+Distribution!L879+Transmission!L879+Generation!L879+Retail!L879+Misc!L879","v":3512431.3734369674},{"$f":"+Distribution!M879+Transmission!M879+Generation!M879+Retail!M879+Misc!M879","v":4342684.1391105345},{"$f":"+Distribution!N879+Transmission!N879+Generation!N879+Retail!N879+Misc!N879","v":1479927.7090932797},{"$f":"+Distribution!O879+Transmission!O879+Generation!O879+Retail!O879+Misc!O879","v":99730.516513014096},{"$f":"+Distribution!P879+Transmission!P879+Generation!P879+Retail!P879+Misc!P879","v":0},{"$f":"+Distribution!Q879+Transmission!Q879+Generation!Q879+Retail!Q879+Misc!Q879","v":0},{"$f":"ROUND(SUM(I879:Q879)-H879,0)","v":0}]
[880,null,"355","Poles and Fixtures"]
[881,null,null,null,"Demand",{"$f":"IF(Classification=\"DEMAND\",\"F12\",IF(Classification=\"ENERGY\",\"F30\",\"F10\"))","v":"F10"},null,{"$f":"+Distribution!H881+Transmission!H881+Generation!H881+Retail!H881+Misc!H881","v":50306420.034921594},{"$f":"+Distribution!I881+Transmission!I881+Generation!I881+Retail!I881+Misc!I881","v":21343757.470309217},{"$f":"+Distribution!J881+Transmission!J881+Generation!J881+Retail!J881+Misc!J881","v":6788893.5741908448},{"$f":"+Distribution!K881+Transmission!K881+Generation!K881+Retail!K881+Misc!K881","v":10756415.769905388},{"$f":"+Distribution!L881+Transmission!L881+Generation!L881+Retail!L881+Misc!L881","v":4250517.3697148804},{"$f":"+Distribution!M881+Transmission!M881+Generation!M881+Retail!M881+Misc!M881","v":5255235.5909554949},{"$f":"+Distribution!N881+Transmission!N881+Generation!N881+Retail!N881+Misc!N881","v":1790912.8363319531},{"$f":"+Distribution!O881+Transmission!O881+Generation!O881+Retail!O881+Misc!O881","v":120687.42351381641},{"$f":"+Distribution!P881+Transmission!P881+Generation!P881+Retail!P881+Misc!P881","v":0},{"$f":"+Distribution!Q881+Transmission!Q881+Generation!Q881+Retail!Q881+Misc!Q881","v":0},{"$f":"ROUND(SUM(I881:Q881)-H881,0)","v":0}]
[882,null,null,null,"Direct Assigned","A",null,{"$f":"+Distribution!H882+Transmission!H882+Generation!H882+Retail!H882+Misc!H882","v":0},{"$f":"+Distribution!I882+Transmission!I882+Generation!I882+Retail!I882+Misc!I882","v":0},{"$f":"+Distribution!J882+Transmission!J882+Generation!J882+Retail!J882+Misc!J882","v":0},{"$f":"+Distribution!K882+Transmission!K882+Generation!K882+Retail!K882+Misc!K882","v":0},{"$f":"+Distribution!L882+Transmission!L882+Generation!L882+Retail!L882+Misc!L882","v":0},{"$f":"+Distribution!M882+Transmission!M882+Generation!M882+Retail!M882+Misc!M882","v":0},{"$f":"+Distribution!N882+Transmission!N882+Generation!N882+Retail!N882+Misc!N882","v":0},{"$f":"+Distribution!O882+Transmission!O882+Generation!O882+Retail!O882+Misc!O882","v":0},{"$f":"+Distribution!P882+Transmission!P882+Generation!P882+Retail!P882+Misc!P882","v":0},{"$f":"+Distribution!Q882+Transmission!Q882+Generation!Q882+Retail!Q882+Misc!Q882","v":0},{"$f":"ROUND(SUM(I882:Q882)-H882,0)","v":0}]
[883,null,null,null,null,null,null,{"$f":"+Distribution!H883+Transmission!H883+Generation!H883+Retail!H883+Misc!H883","v":50306420.034921594},{"$f":"+Distribution!I883+Transmission!I883+Generation!I883+Retail!I883+Misc!I883","v":21343757.470309217},{"$f":"+Distribution!J883+Transmission!J883+Generation!J883+Retail!J883+Misc!J883","v":6788893.5741908448},{"$f":"+Distribution!K883+Transmission!K883+Generation!K883+Retail!K883+Misc!K883","v":10756415.769905388},{"$f":"+Distribution!L883+Transmission!L883+Generation!L883+Retail!L883+Misc!L883","v":4250517.3697148804},{"$f":"+Distribution!M883+Transmission!M883+Generation!M883+Retail!M883+Misc!M883","v":5255235.5909554949},{"$f":"+Distribution!N883+Transmission!N883+Generation!N883+Retail!N883+Misc!N883","v":1790912.8363319531},{"$f":"+Distribution!O883+Transmission!O883+Generation!O883+Retail!O883+Misc!O883","v":120687.42351381641},{"$f":"+Distribution!P883+Transmission!P883+Generation!P883+Retail!P883+Misc!P883","v":0},{"$f":"+Distribution!Q883+Transmission!Q883+Generation!Q883+Retail!Q883+Misc!Q883","v":0},{"$f":"ROUND(SUM(I883:Q883)-H883,0)","v":0}]
[884,null,"356","Overhead Conductors"]
[885,null,null,null,"Demand",{"$f":"IF(Classification=\"DEMAND\",\"F12\",IF(Classification=\"ENERGY\",\"F30\",\"F10\"))","v":"F10"},null,{"$f":"+Distribution!H885+Transmission!H885+Generation!H885+Retail!H885+Misc!H885","v":65755544.287997507},{"$f":"+Distribution!I885+Transmission!I885+Generation!I885+Retail!I885+Misc!I885","v":27898435.003662303},{"$f":"+Distribution!J885+Transmission!J885+Generation!J885+Retail!J885+Misc!J885","v":8873765.8488582913},{"$f":"+Distribution!K885+Transmission!K885+Generation!K885+Retail!K885+Misc!K885","v":14059715.89803331},{"$f":"+Distribution!L885+Transmission!L885+Generation!L885+Retail!L885+Misc!L885","v":5555853.1685850481},{"$f":"+Distribution!M885+Transmission!M885+Generation!M885+Retail!M885+Misc!M885","v":6869120.8081404744},{"$f":"+Distribution!N885+Transmission!N885+Generation!N885+Retail!N885+Misc!N885","v":2340902.9750799383},{"$f":"+Distribution!O885+Transmission!O885+Generation!O885+Retail!O885+Misc!O885","v":157750.58563813852},{"$f":"+Distribution!P885+Transmission!P885+Generation!P885+Retail!P885+Misc!P885","v":0},{"$f":"+Distribution!Q885+Transmission!Q885+Generation!Q885+Retail!Q885+Misc!Q885","v":0},{"$f":"ROUND(SUM(I885:Q885)-H885,0)","v":0}]
[886,null,null,null,"Direct Assigned","A",null,{"$f":"+Distribution!H886+Transmission!H886+Generation!H886+Retail!H886+Misc!H886","v":0},{"$f":"+Distribution!I886+Transmission!I886+Generation!I886+Retail!I886+Misc!I886","v":0},{"$f":"+Distribution!J886+Transmission!J886+Generation!J886+Retail!J886+Misc!J886","v":0},{"$f":"+Distribution!K886+Transmission!K886+Generation!K886+Retail!K886+Misc!K886","v":0},{"$f":"+Distribution!L886+Transmission!L886+Generation!L886+Retail!L886+Misc!L886","v":0},{"$f":"+Distribution!M886+Transmission!M886+Generation!M886+Retail!M886+Misc!M886","v":0},{"$f":"+Distribution!N886+Transmission!N886+Generation!N886+Retail!N886+Misc!N886","v":0},{"$f":"+Distribution!O886+Transmission!O886+Generation!O886+Retail!O886+Misc!O886","v":0},{"$f":"+Distribution!P886+Transmission!P886+Generation!P886+Retail!P886+Misc!P886","v":0},{"$f":"+Distribution!Q886+Transmission!Q886+Generation!Q886+Retail!Q886+Misc!Q886","v":0},{"$f":"ROUND(SUM(I886:Q886)-H886,0)","v":0}]
[887,null,null,null,null,null,null,{"$f":"+Distribution!H887+Transmission!H887+Generation!H887+Retail!H887+Misc!H887","v":65755544.287997507},{"$f":"+Distribution!I887+Transmission!I887+Generation!I887+Retail!I887+Misc!I887","v":27898435.003662303},{"$f":"+Distribution!J887+Transmission!J887+Generation!J887+Retail!J887+Misc!J887","v":8873765.8488582913},{"$f":"+Distribution!K887+Transmission!K887+Generation!K887+Retail!K887+Misc!K887","v":14059715.89803331},{"$f":"+Distribution!L887+Transmission!L887+Generation!L887+Retail!L887+Misc!L887","v":5555853.1685850481},{"$f":"+Distribution!M887+Transmission!M887+Generation!M887+Retail!M887+Misc!M887","v":6869120.8081404744},{"$f":"+Distribution!N887+Transmission!N887+Generation!N887+Retail!N887+Misc!N887","v":2340902.9750799383},{"$f":"+Distribution!O887+Transmission!O887+Generation!O887+Retail!O887+Misc!O887","v":157750.58563813852},{"$f":"+Distribution!P887+Transmission!P887+Generation!P887+Retail!P887+Misc!P887","v":0},{"$f":"+Distribution!Q887+Transmission!Q887+Generation!Q887+Retail!Q887+Misc!Q887","v":0},{"$f":"ROUND(SUM(I887:Q887)-H887,0)","v":0}]
[888,null,"357","Underground Conduit"]
[889,null,null,null,"Demand",{"$f":"IF(Classification=\"DEMAND\",\"F12\",IF(Classification=\"ENERGY\",\"F30\",\"F10\"))","v":"F10"},null,{"$f":"+Distribution!H889+Transmission!H889+Generation!H889+Retail!H889+Misc!H889","v":36799.829845371649},{"$f":"+Distribution!I889+Transmission!I889+Generation!I889+Retail!I889+Misc!I889","v":15613.248619619913},{"$f":"+Distribution!J889+Transmission!J889+Generation!J889+Retail!J889+Misc!J889","v":4966.167900540996},{"$f":"+Distribution!K889+Transmission!K889+Generation!K889+Retail!K889+Misc!K889","v":7868.4642994633932},{"$f":"+Distribution!L889+Transmission!L889+Generation!L889+Retail!L889+Misc!L889","v":3109.3112141894048},{"$f":"+Distribution!M889+Transmission!M889+Generation!M889+Retail!M889+Misc!M889","v":3844.2762456611913},{"$f":"+Distribution!N889+Transmission!N889+Generation!N889+Retail!N889+Misc!N889","v":1310.0770756328479},{"$f":"+Distribution!O889+Transmission!O889+Generation!O889+Retail!O889+Misc!O889","v":88.284490263900992},{"$f":"+Distribution!P889+Transmission!P889+Generation!P889+Retail!P889+Misc!P889","v":0},{"$f":"+Distribution!Q889+Transmission!Q889+Generation!Q889+Retail!Q889+Misc!Q889","v":0},{"$f":"ROUND(SUM(I889:Q889)-H889,0)","v":0}]
[890,null,null,null,"Direct Assigned","A",null,{"$f":"+Distribution!H890+Transmission!H890+Generation!H890+Retail!H890+Misc!H890","v":0},{"$f":"+Distribution!I890+Transmission!I890+Generation!I890+Retail!I890+Misc!I890","v":0},{"$f":"+Distribution!J890+Transmission!J890+Generation!J890+Retail!J890+Misc!J890","v":0},{"$f":"+Distribution!K890+Transmission!K890+Generation!K890+Retail!K890+Misc!K890","v":0},{"$f":"+Distribution!L890+Transmission!L890+Generation!L890+Retail!L890+Misc!L890","v":0},{"$f":"+Distribution!M890+Transmission!M890+Generation!M890+Retail!M890+Misc!M890","v":0},{"$f":"+Distribution!N890+Transmission!N890+Generation!N890+Retail!N890+Misc!N890","v":0},{"$f":"+Distribution!O890+Transmission!O890+Generation!O890+Retail!O890+Misc!O890","v":0},{"$f":"+Distribution!P890+Transmission!P890+Generation!P890+Retail!P890+Misc!P890","v":0},{"$f":"+Distribution!Q890+Transmission!Q890+Generation!Q890+Retail!Q890+Misc!Q890","v":0},{"$f":"ROUND(SUM(I890:Q890)-H890,0)","v":0}]
[891,null,null,null,null,null,null,{"$f":"+Distribution!H891+Transmission!H891+Generation!H891+Retail!H891+Misc!H891","v":36799.829845371649},{"$f":"+Distribution!I891+Transmission!I891+Generation!I891+Retail!I891+Misc!I891","v":15613.248619619913},{"$f":"+Distribution!J891+Transmission!J891+Generation!J891+Retail!J891+Misc!J891","v":4966.167900540996},{"$f":"+Distribution!K891+Transmission!K891+Generation!K891+Retail!K891+Misc!K891","v":7868.4642994633932},{"$f":"+Distribution!L891+Transmission!L891+Generation!L891+Retail!L891+Misc!L891","v":3109.3112141894048},{"$f":"+Distribution!M891+Transmission!M891+Generation!M891+Retail!M891+Misc!M891","v":3844.2762456611913},{"$f":"+Distribution!N891+Transmission!N891+Generation!N891+Retail!N891+Misc!N891","v":1310.0770756328479},{"$f":"+Distribution!O891+Transmission!O891+Generation!O891+Retail!O891+Misc!O891","v":88.284490263900992},{"$f":"+Distribution!P891+Transmission!P891+Generation!P891+Retail!P891+Misc!P891","v":0},{"$f":"+Distribution!Q891+Transmission!Q891+Generation!Q891+Retail!Q891+Misc!Q891","v":0},{"$f":"ROUND(SUM(I891:Q891)-H891,0)","v":0}]
[892,null,"358","Underground Conductors "]
[893,null,null,null,"Demand",{"$f":"IF(Classification=\"DEMAND\",\"F12\",IF(Classification=\"ENERGY\",\"F30\",\"F10\"))","v":"F10"},null,{"$f":"+Distribution!H893+Transmission!H893+Generation!H893+Retail!H893+Misc!H893","v":68005.859615167239},{"$f":"+Distribution!I893+Transmission!I893+Generation!I893+Retail!I893+Misc!I893","v":28853.187588749632},{"$f":"+Distribution!J893+Transmission!J893+Generation!J893+Retail!J893+Misc!J893","v":9177.4477895314849},{"$f":"+Distribution!K893+Transmission!K893+Generation!K893+Retail!K893+Misc!K893","v":14540.873715576787},{"$f":"+Distribution!L893+Transmission!L893+Generation!L893+Retail!L893+Misc!L893","v":5745.9880336545712},{"$f":"+Distribution!M893+Transmission!M893+Generation!M893+Retail!M893+Misc!M893","v":7104.1988993663208},{"$f":"+Distribution!N893+Transmission!N893+Generation!N893+Retail!N893+Misc!N893","v":2421.014392319034},{"$f":"+Distribution!O893+Transmission!O893+Generation!O893+Retail!O893+Misc!O893","v":163.14919596940913},{"$f":"+Distribution!P893+Transmission!P893+Generation!P893+Retail!P893+Misc!P893","v":0},{"$f":"+Distribution!Q893+Transmission!Q893+Generation!Q893+Retail!Q893+Misc!Q893","v":0},{"$f":"ROUND(SUM(I893:Q893)-H893,0)","v":0}]
[894,null,null,null,"Direct Assigned","A",null,{"$f":"+Distribution!H894+Transmission!H894+Generation!H894+Retail!H894+Misc!H894","v":0},{"$f":"+Distribution!I894+Transmission!I894+Generation!I894+Retail!I894+Misc!I894","v":0},{"$f":"+Distribution!J894+Transmission!J894+Generation!J894+Retail!J894+Misc!J894","v":0},{"$f":"+Distribution!K894+Transmission!K894+Generation!K894+Retail!K894+Misc!K894","v":0},{"$f":"+Distribution!L894+Transmission!L894+Generation!L894+Retail!L894+Misc!L894","v":0},{"$f":"+Distribution!M894+Transmission!M894+Generation!M894+Retail!M894+Misc!M894","v":0},{"$f":"+Distribution!N894+Transmission!N894+Generation!N894+Retail!N894+Misc!N894","v":0},{"$f":"+Distribution!O894+Transmission!O894+Generation!O894+Retail!O894+Misc!O894","v":0},{"$f":"+Distribution!P894+Transmission!P894+Generation!P894+Retail!P894+Misc!P894","v":0},{"$f":"+Distribution!Q894+Transmission!Q894+Generation!Q894+Retail!Q894+Misc!Q894","v":0},{"$f":"ROUND(SUM(I894:Q894)-H894,0)","v":0}]
[895,null,null,null,null,null,null,{"$f":"+Distribution!H895+Transmission!H895+Generation!H895+Retail!H895+Misc!H895","v":68005.859615167239},{"$f":"+Distribution!I895+Transmission!I895+Generation!I895+Retail!I895+Misc!I895","v":28853.187588749632},{"$f":"+Distribution!J895+Transmission!J895+Generation!J895+Retail!J895+Misc!J895","v":9177.4477895314849},{"$f":"+Distribution!K895+Transmission!K895+Generation!K895+Retail!K895+Misc!K895","v":14540.873715576787},{"$f":"+Distribution!L895+Transmission!L895+Generation!L895+Retail!L895+Misc!L895","v":5745.9880336545712},{"$f":"+Distribution!M895+Transmission!M895+Generation!M895+Retail!M895+Misc!M895","v":7104.1988993663208},{"$f":"+Distribution!N895+Transmission!N895+Generation!N895+Retail!N895+Misc!N895","v":2421.014392319034},{"$f":"+Distribution!O895+Transmission!O895+Generation!O895+Retail!O895+Misc!O895","v":163.14919596940913},{"$f":"+Distribution!P895+Transmission!P895+Generation!P895+Retail!P895+Misc!P895","v":0},{"$f":"+Distribution!Q895+Transmission!Q895+Generation!Q895+Retail!Q895+Misc!Q895","v":0},{"$f":"ROUND(SUM(I895:Q895)-H895,0)","v":0}]
[896,null,"359","Roads and Trails"]
[897,null,null,null,"Demand",{"$f":"IF(Classification=\"DEMAND\",\"F12\",IF(Classification=\"ENERGY\",\"F30\",\"F10\"))","v":"F10"},null,{"$f":"+Distribution!H897+Transmission!H897+Generation!H897+Retail!H897+Misc!H897","v":1521577.3966357647},{"$f":"+Distribution!I897+Transmission!I897+Generation!I897+Retail!I897+Misc!I897","v":645567.28353069082},{"$f":"+Distribution!J897+Transmission!J897+Generation!J897+Retail!J897+Misc!J897","v":205338.14577709651},{"$f":"+Distribution!K897+Transmission!K897+Generation!K897+Retail!K897+Misc!K897","v":325340.56474189804},{"$f":"+Distribution!L897+Transmission!L897+Generation!L897+Retail!L897+Misc!L897","v":128561.94396811139},{"$f":"+Distribution!M897+Transmission!M897+Generation!M897+Retail!M897+Misc!M897","v":158950.83934899082},{"$f":"+Distribution!N897+Transmission!N897+Generation!N897+Retail!N897+Misc!N897","v":54168.284867337083},{"$f":"+Distribution!O897+Transmission!O897+Generation!O897+Retail!O897+Misc!O897","v":3650.3344016400943},{"$f":"+Distribution!P897+Transmission!P897+Generation!P897+Retail!P897+Misc!P897","v":0},{"$f":"+Distribution!Q897+Transmission!Q897+Generation!Q897+Retail!Q897+Misc!Q897","v":0},{"$f":"ROUND(SUM(I897:Q897)-H897,0)","v":0}]
[898,null,null,null,"Direct Assigned","A",null,{"$f":"+Distribution!H898+Transmission!H898+Generation!H898+Retail!H898+Misc!H898","v":0},{"$f":"+Distribution!I898+Transmission!I898+Generation!I898+Retail!I898+Misc!I898","v":0},{"$f":"+Distribution!J898+Transmission!J898+Generation!J898+Retail!J898+Misc!J898","v":0},{"$f":"+Distribution!K898+Transmission!K898+Generation!K898+Retail!K898+Misc!K898","v":0},{"$f":"+Distribution!L898+Transmission!L898+Generation!L898+Retail!L898+Misc!L898","v":0},{"$f":"+Distribution!M898+Transmission!M898+Generation!M898+Retail!M898+Misc!M898","v":0},{"$f":"+Distribution!N898+Transmission!N898+Generation!N898+Retail!N898+Misc!N898","v":0},{"$f":"+Distribution!O898+Transmission!O898+Generation!O898+Retail!O898+Misc!O898","v":0},{"$f":"+Distribution!P898+Transmission!P898+Generation!P898+Retail!P898+Misc!P898","v":0},{"$f":"+Distribution!Q898+Transmission!Q898+Generation!Q898+Retail!Q898+Misc!Q898","v":0},{"$f":"ROUND(SUM(I898:Q898)-H898,0)","v":0}]
[899,null,null,null,null,null,null,{"$f":"+Distribution!H899+Transmission!H899+Generation!H899+Retail!H899+Misc!H899","v":1521577.3966357647},{"$f":"+Distribution!I899+Transmission!I899+Generation!I899+Retail!I899+Misc!I899","v":645567.28353069082},{"$f":"+Distribution!J899+Transmission!J899+Generation!J899+Retail!J899+Misc!J899","v":205338.14577709651},{"$f":"+Distribution!K899+Transmission!K899+Generation!K899+Retail!K899+Misc!K899","v":325340.56474189804},{"$f":"+Distribution!L899+Transmission!L899+Generation!L899+Retail!L899+Misc!L899","v":128561.94396811139},{"$f":"+Distribution!M899+Transmission!M899+Generation!M899+Retail!M899+Misc!M899","v":158950.83934899082},{"$f":"+Distribution!N899+Transmission!N899+Generation!N899+Retail!N899+Misc!N899","v":54168.284867337083},{"$f":"+Distribution!O899+Transmission!O899+Generation!O899+Retail!O899+Misc!O899","v":3650.3344016400943},{"$f":"+Distribution!P899+Transmission!P899+Generation!P899+Retail!P899+Misc!P899","v":0},{"$f":"+Distribution!Q899+Transmission!Q899+Generation!Q899+Retail!Q899+Misc!Q899","v":0},{"$f":"ROUND(SUM(I899:Q899)-H899,0)","v":0}]
[900]
[901,null,"TP","Unclassified Trans Plant - Acct 300",null,{"$f":"IF(Classification=\"DEMAND\",\"F12\",IF(Classification=\"ENERGY\",\"F30\",\"F10\"))","v":"F10"},null,{"$f":"+Distribution!H901+Transmission!H901+Generation!H901+Retail!H901+Misc!H901","v":69769.694075125502},{"$f":"+Distribution!I901+Transmission!I901+Generation!I901+Retail!I901+Misc!I901","v":29601.53849316679},{"$f":"+Distribution!J901+Transmission!J901+Generation!J901+Retail!J901+Misc!J901","v":9415.4787291776502},{"$f":"+Distribution!K901+Transmission!K901+Generation!K901+Retail!K901+Misc!K901","v":14918.013189771676},{"$f":"+Distribution!L901+Transmission!L901+Generation!L901+Retail!L901+Misc!L901","v":5895.0188930190398},{"$f":"+Distribution!M901+Transmission!M901+Generation!M901+Retail!M901+Misc!M901","v":7288.4570044767988},{"$f":"+Distribution!N901+Transmission!N901+Generation!N901+Retail!N901+Misc!N901","v":2483.8070492664192},{"$f":"+Distribution!O901+Transmission!O901+Generation!O901+Retail!O901+Misc!O901","v":167.38071624712865},{"$f":"+Distribution!P901+Transmission!P901+Generation!P901+Retail!P901+Misc!P901","v":0},{"$f":"+Distribution!Q901+Transmission!Q901+Generation!Q901+Retail!Q901+Misc!Q901","v":0},{"$f":"ROUND(SUM(I901:Q901)-H901,0)","v":0}]
[902,null,"TS0","Unclassified Trans Sub - Acct 300",null,"F10",null,{"$f":"+Distribution!H902+Transmission!H902+Generation!H902+Retail!H902+Misc!H902","v":0},{"$f":"+Distribution!I902+Transmission!I902+Generation!I902+Retail!I902+Misc!I902","v":0},{"$f":"+Distribution!J902+Transmission!J902+Generation!J902+Retail!J902+Misc!J902","v":0},{"$f":"+Distribution!K902+Transmission!K902+Generation!K902+Retail!K902+Misc!K902","v":0},{"$f":"+Distribution!L902+Transmission!L902+Generation!L902+Retail!L902+Misc!L902","v":0},{"$f":"+Distribution!M902+Transmission!M902+Generation!M902+Retail!M902+Misc!M902","v":0},{"$f":"+Distribution!N902+Transmission!N902+Generation!N902+Retail!N902+Misc!N902","v":0},{"$f":"+Distribution!O902+Transmission!O902+Generation!O902+Retail!O902+Misc!O902","v":0},{"$f":"+Distribution!P902+Transmission!P902+Generation!P902+Retail!P902+Misc!P902","v":0},{"$f":"+Distribution!Q902+Transmission!Q902+Generation!Q902+Retail!Q902+Misc!Q902","v":0},{"$f":"ROUND(SUM(I902:Q902)-H902,0)","v":0}]
[903]
[904,null,"TOTAL TRANSMISSION PLANT",null,null,null,null,{"$f":"+Distribution!H904+Transmission!H904+Generation!H904+Retail!H904+Misc!H904","v":274026465.37299538},{"$f":"+Distribution!I904+Transmission!I904+Generation!I904+Retail!I904+Misc!I904","v":116262584.64242192},{"$f":"+Distribution!J904+Transmission!J904+Generation!J904+Retail!J904+Misc!J904","v":36980101.319822699},{"$f":"+Distribution!K904+Transmission!K904+Generation!K904+Retail!K904+Misc!K904","v":58591777.977113113},{"$f":"+Distribution!L904+Transmission!L904+Generation!L904+Retail!L904+Misc!L904","v":23153192.972605564},{"$f":"+Distribution!M904+Transmission!M904+Generation!M904+Retail!M904+Misc!M904","v":28626040.825251173},{"$f":"+Distribution!N904+Transmission!N904+Generation!N904+Retail!N904+Misc!N904","v":9755365.4978926741},{"$f":"+Distribution!O904+Transmission!O904+Generation!O904+Retail!O904+Misc!O904","v":657402.13788831176},{"$f":"+Distribution!P904+Transmission!P904+Generation!P904+Retail!P904+Misc!P904","v":0},{"$f":"+Distribution!Q904+Transmission!Q904+Generation!Q904+Retail!Q904+Misc!Q904","v":0},{"$f":"ROUND(SUM(I904:Q904)-H904,0)","v":0}]
[905,null,null,null,null,null,null,"DISTRIBUTION PLANT"]
[906,null,"A",null,"B","C",null,"D","E","F","G","H","I","J","K","L","M"]
[907,null,null,null,null,null,null,{"$f":"'Hot Sheet'!$H$10","v":"Washington"},null,{"$f":"'Hot Sheet'!$J$10","v":"Small General"},{"$f":"'Hot Sheet'!$K$10","v":"Large General"},{"$f":"'Hot Sheet'!$L$10","v":"Large General"},{"$f":"'Hot Sheet'!$M$10","v":"Large General"},{"$f":"'Hot Sheet'!$N$10","v":"Agricultural"},{"$f":"'Hot Sheet'!$O$10","v":"Street & Area"}]
[908,null,"FERC",null,null,"COS",null,{"$f":"'Hot Sheet'!$H$11","v":"Jurisdiction"},{"$f":"'Hot Sheet'!$I$11","v":"Residential"},{"$f":"'Hot Sheet'!$J$11","v":"Service"},{"$f":"'Hot Sheet'!$K$11","v":"Service <1,000 kW"},{"$f":"'Hot Sheet'!$L$11","v":"Service >1,000 kW"},{"$f":"'Hot Sheet'!$M$11","v":"Dedicated Facilities"},{"$f":"'Hot Sheet'!$N$11","v":"Pumping"},{"$f":"'Hot Sheet'!$O$11","v":"Lighting"}]
[909,null,"ACCT",null,"DESCRIPTION ","Factor",null,{"$f":"'Hot Sheet'!$H$12","v":"Normalized"},{"$f":"'Hot Sheet'!$I$12","v":"Schedule 16"},{"$f":"'Hot Sheet'!$J$12","v":"Schedule 24"},{"$f":"'Hot Sheet'!$K$12","v":"Schedule 36"},{"$f":"'Hot Sheet'!$L$12","v":"Schedule 48T"},{"$f":"'Hot Sheet'!$M$12","v":"Schedule 48T"},{"$f":"'Hot Sheet'!$N$12","v":"Schedule 40"},{"$f":"'Hot Sheet'!$O$12","v":"Sch. 15,51-54,57"}]
[910]
[911,null,"360","Land and Land Rights"]
[912,null,null,null,"Demand Primary","F20A",null,{"$f":"+Distribution!H912+Transmission!H912+Generation!H912+Retail!H912+Misc!H912","v":1510453.72},{"$f":"+Distribution!I912+Transmission!I912+Generation!I912+Retail!I912+Misc!I912","v":764727.6881063357},{"$f":"+Distribution!J912+Transmission!J912+Generation!J912+Retail!J912+Misc!J912","v":209044.36681966018},{"$f":"+Distribution!K912+Transmission!K912+Generation!K912+Retail!K912+Misc!K912","v":306612.77878517925},{"$f":"+Distribution!L912+Transmission!L912+Generation!L912+Retail!L912+Misc!L912","v":117255.54706344701},{"$f":"+Distribution!M912+Transmission!M912+Generation!M912+Retail!M912+Misc!M912","v":0},{"$f":"+Distribution!N912+Transmission!N912+Generation!N912+Retail!N912+Misc!N912","v":107008.29422942156},{"$f":"+Distribution!O912+Transmission!O912+Generation!O912+Retail!O912+Misc!O912","v":5805.0449959562175},{"$f":"+Distribution!P912+Transmission!P912+Generation!P912+Retail!P912+Misc!P912","v":0},{"$f":"+Distribution!Q912+Transmission!Q912+Generation!Q912+Retail!Q912+Misc!Q912","v":0},{"$f":"ROUND(SUM(I912:Q912)-H912,0)","v":0}]
[913,null,null,null,"Assigned","A",null,{"$f":"+Distribution!H913+Transmission!H913+Generation!H913+Retail!H913+Misc!H913","v":0},{"$f":"+Distribution!I913+Transmission!I913+Generation!I913+Retail!I913+Misc!I913","v":0},{"$f":"+Distribution!J913+Transmission!J913+Generation!J913+Retail!J913+Misc!J913","v":0},{"$f":"+Distribution!K913+Transmission!K913+Generation!K913+Retail!K913+Misc!K913","v":0},{"$f":"+Distribution!L913+Transmission!L913+Generation!L913+Retail!L913+Misc!L913","v":0},{"$f":"+Distribution!M913+Transmission!M913+Generation!M913+Retail!M913+Misc!M913","v":0},{"$f":"+Distribution!N913+Transmission!N913+Generation!N913+Retail!N913+Misc!N913","v":0},{"$f":"+Distribution!O913+Transmission!O913+Generation!O913+Retail!O913+Misc!O913","v":0},{"$f":"+Distribution!P913+Transmission!P913+Generation!P913+Retail!P913+Misc!P913","v":0},{"$f":"+Distribution!Q913+Transmission!Q913+Generation!Q913+Retail!Q913+Misc!Q913","v":0},{"$f":"ROUND(SUM(I913:Q913)-H913,0)","v":0}]
[914,null,null,null,null,null,null,{"$f":"+Distribution!H914+Transmission!H914+Generation!H914+Retail!H914+Misc!H914","v":1510453.72},{"$f":"+Distribution!I914+Transmission!I914+Generation!I914+Retail!I914+Misc!I914","v":764727.6881063357},{"$f":"+Distribution!J914+Transmission!J914+Generation!J914+Retail!J914+Misc!J914","v":209044.36681966018},{"$f":"+Distribution!K914+Transmission!K914+Generation!K914+Retail!K914+Misc!K914","v":306612.77878517925},{"$f":"+Distribution!L914+Transmission!L914+Generation!L914+Retail!L914+Misc!L914","v":117255.54706344701},{"$f":"+Distribution!M914+Transmission!M914+Generation!M914+Retail!M914+Misc!M914","v":0},{"$f":"+Distribution!N914+Transmission!N914+Generation!N914+Retail!N914+Misc!N914","v":107008.29422942156},{"$f":"+Distribution!O914+Transmission!O914+Generation!O914+Retail!O914+Misc!O914","v":5805.0449959562175},{"$f":"+Distribution!P914+Transmission!P914+Generation!P914+Retail!P914+Misc!P914","v":0},{"$f":"+Distribution!Q914+Transmission!Q914+Generation!Q914+Retail!Q914+Misc!Q914","v":0},{"$f":"ROUND(SUM(I914:Q914)-H914,0)","v":0}]
[915,null,"361","Structures and Improvements"]
[916,null,null,null,"Demand Primary","F20",null,{"$f":"+Distribution!H916+Transmission!H916+Generation!H916+Retail!H916+Misc!H916","v":2440663.6},{"$f":"+Distribution!I916+Transmission!I916+Generation!I916+Retail!I916+Misc!I916","v":1152037.236023702},{"$f":"+Distribution!J916+Transmission!J916+Generation!J916+Retail!J916+Misc!J916","v":314918.49752896494},{"$f":"+Distribution!K916+Transmission!K916+Generation!K916+Retail!K916+Misc!K916","v":461902.11717835424},{"$f":"+Distribution!L916+Transmission!L916+Generation!L916+Retail!L916+Misc!L916","v":176641.64440275537},{"$f":"+Distribution!M916+Transmission!M916+Generation!M916+Retail!M916+Misc!M916","v":165214.50119797423},{"$f":"+Distribution!N916+Transmission!N916+Generation!N916+Retail!N916+Misc!N916","v":161204.49335493663},{"$f":"+Distribution!O916+Transmission!O916+Generation!O916+Retail!O916+Misc!O916","v":8745.1103133128672},{"$f":"+Distribution!P916+Transmission!P916+Generation!P916+Retail!P916+Misc!P916","v":0},{"$f":"+Distribution!Q916+Transmission!Q916+Generation!Q916+Retail!Q916+Misc!Q916","v":0},{"$f":"ROUND(SUM(I916:Q916)-H916,0)","v":0}]
[917,null,null,null,"Assigned","A",null,{"$f":"+Distribution!H917+Transmission!H917+Generation!H917+Retail!H917+Misc!H917","v":0},{"$f":"+Distribution!I917+Transmission!I917+Generation!I917+Retail!I917+Misc!I917","v":0},{"$f":"+Distribution!J917+Transmission!J917+Generation!J917+Retail!J917+Misc!J917","v":0},{"$f":"+Distribution!K917+Transmission!K917+Generation!K917+Retail!K917+Misc!K917","v":0},{"$f":"+Distribution!L917+Transmission!L917+Generation!L917+Retail!L917+Misc!L917","v":0},{"$f":"+Distribution!M917+Transmission!M917+Generation!M917+Retail!M917+Misc!M917","v":0},{"$f":"+Distribution!N917+Transmission!N917+Generation!N917+Retail!N917+Misc!N917","v":0},{"$f":"+Distribution!O917+Transmission!O917+Generation!O917+Retail!O917+Misc!O917","v":0},{"$f":"+Distribution!P917+Transmission!P917+Generation!P917+Retail!P917+Misc!P917","v":0},{"$f":"+Distribution!Q917+Transmission!Q917+Generation!Q917+Retail!Q917+Misc!Q917","v":0},{"$f":"ROUND(SUM(I917:Q917)-H917,0)","v":0}]
[918,null,null,null,null,null,null,{"$f":"+Distribution!H918+Transmission!H918+Generation!H918+Retail!H918+Misc!H918","v":2440663.6},{"$f":"+Distribution!I918+Transmission!I918+Generation!I918+Retail!I918+Misc!I918","v":1152037.236023702},{"$f":"+Distribution!J918+Transmission!J918+Generation!J918+Retail!J918+Misc!J918","v":314918.49752896494},{"$f":"+Distribution!K918+Transmission!K918+Generation!K918+Retail!K918+Misc!K918","v":461902.11717835424},{"$f":"+Distribution!L918+Transmission!L918+Generation!L918+Retail!L918+Misc!L918","v":176641.64440275537},{"$f":"+Distribution!M918+Transmission!M918+Generation!M918+Retail!M918+Misc!M918","v":165214.50119797423},{"$f":"+Distribution!N918+Transmission!N918+Generation!N918+Retail!N918+Misc!N918","v":161204.49335493663},{"$f":"+Distribution!O918+Transmission!O918+Generation!O918+Retail!O918+Misc!O918","v":8745.1103133128672},{"$f":"+Distribution!P918+Transmission!P918+Generation!P918+Retail!P918+Misc!P918","v":0},{"$f":"+Distribution!Q918+Transmission!Q918+Generation!Q918+Retail!Q918+Misc!Q918","v":0},{"$f":"ROUND(SUM(I918:Q918)-H918,0)","v":0}]
[919,null,"362","Station Equipment"]
[920,null,null,null,"Demand Primary","F20A",null,{"$f":"+Distribution!H920+Transmission!H920+Generation!H920+Retail!H920+Misc!H920","v":45081829},{"$f":"+Distribution!I920+Transmission!I920+Generation!I920+Retail!I920+Misc!I920","v":22824481.419248756},{"$f":"+Distribution!J920+Transmission!J920+Generation!J920+Retail!J920+Misc!J920","v":6239252.6653363425},{"$f":"+Distribution!K920+Transmission!K920+Generation!K920+Retail!K920+Misc!K920","v":9151332.9269090611},{"$f":"+Distribution!L920+Transmission!L920+Generation!L920+Retail!L920+Misc!L920","v":3499673.2783151874},{"$f":"+Distribution!M920+Transmission!M920+Generation!M920+Retail!M920+Misc!M920","v":0},{"$f":"+Distribution!N920+Transmission!N920+Generation!N920+Retail!N920+Misc!N920","v":3193828.1578282784},{"$f":"+Distribution!O920+Transmission!O920+Generation!O920+Retail!O920+Misc!O920","v":173260.55236237487},{"$f":"+Distribution!P920+Transmission!P920+Generation!P920+Retail!P920+Misc!P920","v":0},{"$f":"+Distribution!Q920+Transmission!Q920+Generation!Q920+Retail!Q920+Misc!Q920","v":0},{"$f":"ROUND(SUM(I920:Q920)-H920,0)","v":0}]
[921,null,null,null,"Assigned","A",null,{"$f":"+Distribution!H921+Transmission!H921+Generation!H921+Retail!H921+Misc!H921","v":2510579.0200000005},{"$f":"+Distribution!I921+Transmission!I921+Generation!I921+Retail!I921+Misc!I921","v":0},{"$f":"+Distribution!J921+Transmission!J921+Generation!J921+Retail!J921+Misc!J921","v":0},{"$f":"+Distribution!K921+Transmission!K921+Generation!K921+Retail!K921+Misc!K921","v":0},{"$f":"+Distribution!L921+Transmission!L921+Generation!L921+Retail!L921+Misc!L921","v":0},{"$f":"+Distribution!M921+Transmission!M921+Generation!M921+Retail!M921+Misc!M921","v":2510579.0200000005},{"$f":"+Distribution!N921+Transmission!N921+Generation!N921+Retail!N921+Misc!N921","v":0},{"$f":"+Distribution!O921+Transmission!O921+Generation!O921+Retail!O921+Misc!O921","v":0},{"$f":"+Distribution!P921+Transmission!P921+Generation!P921+Retail!P921+Misc!P921","v":0},{"$f":"+Distribution!Q921+Transmission!Q921+Generation!Q921+Retail!Q921+Misc!Q921","v":0},{"$f":"ROUND(SUM(I921:Q921)-H921,0)","v":0}]
[922,null,null,null,null,null,null,{"$f":"+Distribution!H922+Transmission!H922+Generation!H922+Retail!H922+Misc!H922","v":47592408.020000003},{"$f":"+Distribution!I922+Transmission!I922+Generation!I922+Retail!I922+Misc!I922","v":22824481.419248756},{"$f":"+Distribution!J922+Transmission!J922+Generation!J922+Retail!J922+Misc!J922","v":6239252.6653363425},{"$f":"+Distribution!K922+Transmission!K922+Generation!K922+Retail!K922+Misc!K922","v":9151332.9269090611},{"$f":"+Distribution!L922+Transmission!L922+Generation!L922+Retail!L922+Misc!L922","v":3499673.2783151874},{"$f":"+Distribution!M922+Transmission!M922+Generation!M922+Retail!M922+Misc!M922","v":2510579.0200000005},{"$f":"+Distribution!N922+Transmission!N922+Generation!N922+Retail!N922+Misc!N922","v":3193828.1578282784},{"$f":"+Distribution!O922+Transmission!O922+Generation!O922+Retail!O922+Misc!O922","v":173260.55236237487},{"$f":"+Distribution!P922+Transmission!P922+Generation!P922+Retail!P922+Misc!P922","v":0},{"$f":"+Distribution!Q922+Transmission!Q922+Generation!Q922+Retail!Q922+Misc!Q922","v":0},{"$f":"ROUND(SUM(I922:Q922)-H922,0)","v":0}]
[923,null,"364","Poles, Towers & Fixtures"]
[924,null,null,null,"Demand Primary","F20A",null,{"$f":"+Distribution!H924+Transmission!H924+Generation!H924+Retail!H924+Misc!H924","v":90412079.795344546},{"$f":"+Distribution!I924+Transmission!I924+Generation!I924+Retail!I924+Misc!I924","v":45774736.321467288},{"$f":"+Distribution!J924+Transmission!J924+Generation!J924+Retail!J924+Misc!J924","v":12512886.507814614},{"$f":"+Distribution!K924+Transmission!K924+Generation!K924+Retail!K924+Misc!K924","v":18353093.944379807},{"$f":"+Distribution!L924+Transmission!L924+Generation!L924+Retail!L924+Misc!L924","v":7018631.3802101463},{"$f":"+Distribution!M924+Transmission!M924+Generation!M924+Retail!M924+Misc!M924","v":0},{"$f":"+Distribution!N924+Transmission!N924+Generation!N924+Retail!N924+Misc!N924","v":6405255.7907131175},{"$f":"+Distribution!O924+Transmission!O924+Generation!O924+Retail!O924+Misc!O924","v":347475.85075957119},{"$f":"+Distribution!P924+Transmission!P924+Generation!P924+Retail!P924+Misc!P924","v":0},{"$f":"+Distribution!Q924+Transmission!Q924+Generation!Q924+Retail!Q924+Misc!Q924","v":0},{"$f":"ROUND(SUM(I924:Q924)-H924,0)","v":0}]
[925,null,null,null,"Demand Secondary","F22",null,{"$f":"+Distribution!H925+Transmission!H925+Generation!H925+Retail!H925+Misc!H925","v":2232280.0346554583},{"$f":"+Distribution!I925+Transmission!I925+Generation!I925+Retail!I925+Misc!I925","v":1817663.3584383933},{"$f":"+Distribution!J925+Transmission!J925+Generation!J925+Retail!J925+Misc!J925","v":414616.67621706467},{"$f":"+Distribution!K925+Transmission!K925+Generation!K925+Retail!K925+Misc!K925","v":0},{"$f":"+Distribution!L925+Transmission!L925+Generation!L925+Retail!L925+Misc!L925","v":0},{"$f":"+Distribution!M925+Transmission!M925+Generation!M925+Retail!M925+Misc!M925","v":0},{"$f":"+Distribution!N925+Transmission!N925+Generation!N925+Retail!N925+Misc!N925","v":0},{"$f":"+Distribution!O925+Transmission!O925+Generation!O925+Retail!O925+Misc!O925","v":0},{"$f":"+Distribution!P925+Transmission!P925+Generation!P925+Retail!P925+Misc!P925","v":0},{"$f":"+Distribution!Q925+Transmission!Q925+Generation!Q925+Retail!Q925+Misc!Q925","v":0},{"$f":"ROUND(SUM(I925:Q925)-H925,0)","v":0}]
[926,null,null,null,"Assigned","A",null,{"$f":"+Distribution!H926+Transmission!H926+Generation!H926+Retail!H926+Misc!H926","v":0},{"$f":"+Distribution!I926+Transmission!I926+Generation!I926+Retail!I926+Misc!I926","v":0},{"$f":"+Distribution!J926+Transmission!J926+Generation!J926+Retail!J926+Misc!J926","v":0},{"$f":"+Distribution!K926+Transmission!K926+Generation!K926+Retail!K926+Misc!K926","v":0},{"$f":"+Distribution!L926+Transmission!L926+Generation!L926+Retail!L926+Misc!L926","v":0},{"$f":"+Distribution!M926+Transmission!M926+Generation!M926+Retail!M926+Misc!M926","v":0},{"$f":"+Distribution!N926+Transmission!N926+Generation!N926+Retail!N926+Misc!N926","v":0},{"$f":"+Distribution!O926+Transmission!O926+Generation!O926+Retail!O926+Misc!O926","v":0},{"$f":"+Distribution!P926+Transmission!P926+Generation!P926+Retail!P926+Misc!P926","v":0},{"$f":"+Distribution!Q926+Transmission!Q926+Generation!Q926+Retail!Q926+Misc!Q926","v":0},{"$f":"ROUND(SUM(I926:Q926)-H926,0)","v":0}]
[927,null,null,null,null,null,null,{"$f":"+Distribution!H927+Transmission!H927+Generation!H927+Retail!H927+Misc!H927","v":92644359.829999998},{"$f":"+Distribution!I927+Transmission!I927+Generation!I927+Retail!I927+Misc!I927","v":47592399.679905683},{"$f":"+Distribution!J927+Transmission!J927+Generation!J927+Retail!J927+Misc!J927","v":12927503.184031678},{"$f":"+Distribution!K927+Transmission!K927+Generation!K927+Retail!K927+Misc!K927","v":18353093.944379807},{"$f":"+Distribution!L927+Transmission!L927+Generation!L927+Retail!L927+Misc!L927","v":7018631.3802101463},{"$f":"+Distribution!M927+Transmission!M927+Generation!M927+Retail!M927+Misc!M927","v":0},{"$f":"+Distribution!N927+Transmission!N927+Generation!N927+Retail!N927+Misc!N927","v":6405255.7907131175},{"$f":"+Distribution!O927+Transmission!O927+Generation!O927+Retail!O927+Misc!O927","v":347475.85075957119},{"$f":"+Distribution!P927+Transmission!P927+Generation!P927+Retail!P927+Misc!P927","v":0},{"$f":"+Distribution!Q927+Transmission!Q927+Generation!Q927+Retail!Q927+Misc!Q927","v":0},{"$f":"ROUND(SUM(I927:Q927)-H927,0)","v":0}]
[928,null,"365","Overhead Conductors"]
[929,null,null,null,"Demand Primary","F20A",null,{"$f":"+Distribution!H929+Transmission!H929+Generation!H929+Retail!H929+Misc!H929","v":33695237.643228479},{"$f":"+Distribution!I929+Transmission!I929+Generation!I929+Retail!I929+Misc!I929","v":17059563.521813627},{"$f":"+Distribution!J929+Transmission!J929+Generation!J929+Retail!J929+Misc!J929","v":4663366.7253086548},{"$f":"+Distribution!K929+Transmission!K929+Generation!K929+Retail!K929+Misc!K929","v":6839925.1885832408},{"$f":"+Distribution!L929+Transmission!L929+Generation!L929+Retail!L929+Misc!L929","v":2615739.5430093734},{"$f":"+Distribution!M929+Transmission!M929+Generation!M929+Retail!M929+Misc!M929","v":0},{"$f":"+Distribution!N929+Transmission!N929+Generation!N929+Retail!N929+Misc!N929","v":2387143.5821660757},{"$f":"+Distribution!O929+Transmission!O929+Generation!O929+Retail!O929+Misc!O929","v":129499.08234750752},{"$f":"+Distribution!P929+Transmission!P929+Generation!P929+Retail!P929+Misc!P929","v":0},{"$f":"+Distribution!Q929+Transmission!Q929+Generation!Q929+Retail!Q929+Misc!Q929","v":0},{"$f":"ROUND(SUM(I929:Q929)-H929,0)","v":0}]
[930,null,null,null,"Demand Secondary","F22",null,{"$f":"+Distribution!H930+Transmission!H930+Generation!H930+Retail!H930+Misc!H930","v":24938802.416771524},{"$f":"+Distribution!I930+Transmission!I930+Generation!I930+Retail!I930+Misc!I930","v":20306747.653771393},{"$f":"+Distribution!J930+Transmission!J930+Generation!J930+Retail!J930+Misc!J930","v":4632054.7630001288},{"$f":"+Distribution!K930+Transmission!K930+Generation!K930+Retail!K930+Misc!K930","v":0},{"$f":"+Distribution!L930+Transmission!L930+Generation!L930+Retail!L930+Misc!L930","v":0},{"$f":"+Distribution!M930+Transmission!M930+Generation!M930+Retail!M930+Misc!M930","v":0},{"$f":"+Distribution!N930+Transmission!N930+Generation!N930+Retail!N930+Misc!N930","v":0},{"$f":"+Distribution!O930+Transmission!O930+Generation!O930+Retail!O930+Misc!O930","v":0},{"$f":"+Distribution!P930+Transmission!P930+Generation!P930+Retail!P930+Misc!P930","v":0},{"$f":"+Distribution!Q930+Transmission!Q930+Generation!Q930+Retail!Q930+Misc!Q930","v":0},{"$f":"ROUND(SUM(I930:Q930)-H930,0)","v":0}]
[931,null,null,null,"Assigned","A",null,{"$f":"+Distribution!H931+Transmission!H931+Generation!H931+Retail!H931+Misc!H931","v":0},{"$f":"+Distribution!I931+Transmission!I931+Generation!I931+Retail!I931+Misc!I931","v":0},{"$f":"+Distribution!J931+Transmission!J931+Generation!J931+Retail!J931+Misc!J931","v":0},{"$f":"+Distribution!K931+Transmission!K931+Generation!K931+Retail!K931+Misc!K931","v":0},{"$f":"+Distribution!L931+Transmission!L931+Generation!L931+Retail!L931+Misc!L931","v":0},{"$f":"+Distribution!M931+Transmission!M931+Generation!M931+Retail!M931+Misc!M931","v":0},{"$f":"+Distribution!N931+Transmission!N931+Generation!N931+Retail!N931+Misc!N931","v":0},{"$f":"+Distribution!O931+Transmission!O931+Generation!O931+Retail!O931+Misc!O931","v":0},{"$f":"+Distribution!P931+Transmission!P931+Generation!P931+Retail!P931+Misc!P931","v":0},{"$f":"+Distribution!Q931+Transmission!Q931+Generation!Q931+Retail!Q931+Misc!Q931","v":0},{"$f":"ROUND(SUM(I931:Q931)-H931,0)","v":0}]
[{"$f":"+A931+1","v":932},null,null,null,null,null,null,{"$f":"+Distribution!H932+Transmission!H932+Generation!H932+Retail!H932+Misc!H932","v":58634040.060000002},{"$f":"+Distribution!I932+Transmission!I932+Generation!I932+Retail!I932+Misc!I932","v":37366311.175585017},{"$f":"+Distribution!J932+Transmission!J932+Generation!J932+Retail!J932+Misc!J932","v":9295421.4883087836},{"$f":"+Distribution!K932+Transmission!K932+Generation!K932+Retail!K932+Misc!K932","v":6839925.1885832408},{"$f":"+Distribution!L932+Transmission!L932+Generation!L932+Retail!L932+Misc!L932","v":2615739.5430093734},{"$f":"+Distribution!M932+Transmission!M932+Generation!M932+Retail!M932+Misc!M932","v":0},{"$f":"+Distribution!N932+Transmission!N932+Generation!N932+Retail!N932+Misc!N932","v":2387143.5821660757},{"$f":"+Distribution!O932+Transmission!O932+Generation!O932+Retail!O932+Misc!O932","v":129499.08234750752},{"$f":"+Distribution!P932+Transmission!P932+Generation!P932+Retail!P932+Misc!P932","v":0},{"$f":"+Distribution!Q932+Transmission!Q932+Generation!Q932+Retail!Q932+Misc!Q932","v":0},{"$f":"ROUND(SUM(I932:Q932)-H932,0)","v":0}]
[933,null,"366","Underground Conduit"]
[934,null,null,null,"Demand Primary","F20A",null,{"$f":"+Distribution!H934+Transmission!H934+Generation!H934+Retail!H934+Misc!H934","v":8245307.0941753099},{"$f":"+Distribution!I934+Transmission!I934+Generation!I934+Retail!I934+Misc!I934","v":4174516.9337961935},{"$f":"+Distribution!J934+Transmission!J934+Generation!J934+Retail!J934+Misc!J934","v":1141137.2476447208},{"$f":"+Distribution!K934+Transmission!K934+Generation!K934+Retail!K934+Misc!K934","v":1673746.4290413633},{"$f":"+Distribution!L934+Transmission!L934+Generation!L934+Retail!L934+Misc!L934","v":640077.86616172956},{"$f":"+Distribution!M934+Transmission!M934+Generation!M934+Retail!M934+Misc!M934","v":0},{"$f":"+Distribution!N934+Transmission!N934+Generation!N934+Retail!N934+Misc!N934","v":584139.87523262121},{"$f":"+Distribution!O934+Transmission!O934+Generation!O934+Retail!O934+Misc!O934","v":31688.742298681409},{"$f":"+Distribution!P934+Transmission!P934+Generation!P934+Retail!P934+Misc!P934","v":0},{"$f":"+Distribution!Q934+Transmission!Q934+Generation!Q934+Retail!Q934+Misc!Q934","v":0},{"$f":"ROUND(SUM(I934:Q934)-H934,0)","v":0}]
[935,null,null,null,"Demand Secondary","F22",null,{"$f":"+Distribution!H935+Transmission!H935+Generation!H935+Retail!H935+Misc!H935","v":8119678.6558246901},{"$f":"+Distribution!I935+Transmission!I935+Generation!I935+Retail!I935+Misc!I935","v":6611555.0674021067},{"$f":"+Distribution!J935+Transmission!J935+Generation!J935+Retail!J935+Misc!J935","v":1508123.5884225825},{"$f":"+Distribution!K935+Transmission!K935+Generation!K935+Retail!K935+Misc!K935","v":0},{"$f":"+Distribution!L935+Transmission!L935+Generation!L935+Retail!L935+Misc!L935","v":0},{"$f":"+Distribution!M935+Transmission!M935+Generation!M935+Retail!M935+Misc!M935","v":0},{"$f":"+Distribution!N935+Transmission!N935+Generation!N935+Retail!N935+Misc!N935","v":0},{"$f":"+Distribution!O935+Transmission!O935+Generation!O935+Retail!O935+Misc!O935","v":0},{"$f":"+Distribution!P935+Transmission!P935+Generation!P935+Retail!P935+Misc!P935","v":0},{"$f":"+Distribution!Q935+Transmission!Q935+Generation!Q935+Retail!Q935+Misc!Q935","v":0},{"$f":"ROUND(SUM(I935:Q935)-H935,0)","v":0}]
[936,null,null,null,"Assigned","A",null,{"$f":"+Distribution!H936+Transmission!H936+Generation!H936+Retail!H936+Misc!H936","v":0},{"$f":"+Distribution!I936+Transmission!I936+Generation!I936+Retail!I936+Misc!I936","v":0},{"$f":"+Distribution!J936+Transmission!J936+Generation!J936+Retail!J936+Misc!J936","v":0},{"$f":"+Distribution!K936+Transmission!K936+Generation!K936+Retail!K936+Misc!K936","v":0},{"$f":"+Distribution!L936+Transmission!L936+Generation!L936+Retail!L936+Misc!L936","v":0},{"$f":"+Distribution!M936+Transmission!M936+Generation!M936+Retail!M936+Misc!M936","v":0},{"$f":"+Distribution!N936+Transmission!N936+Generation!N936+Retail!N936+Misc!N936","v":0},{"$f":"+Distribution!O936+Transmission!O936+Generation!O936+Retail!O936+Misc!O936","v":0},{"$f":"+Distribution!P936+Transmission!P936+Generation!P936+Retail!P936+Misc!P936","v":0},{"$f":"+Distribution!Q936+Transmission!Q936+Generation!Q936+Retail!Q936+Misc!Q936","v":0},{"$f":"ROUND(SUM(I936:Q936)-H936,0)","v":0}]
[937,null,null,null,null,null,null,{"$f":"+Distribution!H937+Transmission!H937+Generation!H937+Retail!H937+Misc!H937","v":16364985.75},{"$f":"+Distribution!I937+Transmission!I937+Generation!I937+Retail!I937+Misc!I937","v":10786072.001198299},{"$f":"+Distribution!J937+Transmission!J937+Generation!J937+Retail!J937+Misc!J937","v":2649260.8360673031},{"$f":"+Distribution!K937+Transmission!K937+Generation!K937+Retail!K937+Misc!K937","v":1673746.4290413633},{"$f":"+Distribution!L937+Transmission!L937+Generation!L937+Retail!L937+Misc!L937","v":640077.86616172956},{"$f":"+Distribution!M937+Transmission!M937+Generation!M937+Retail!M937+Misc!M937","v":0},{"$f":"+Distribution!N937+Transmission!N937+Generation!N937+Retail!N937+Misc!N937","v":584139.87523262121},{"$f":"+Distribution!O937+Transmission!O937+Generation!O937+Retail!O937+Misc!O937","v":31688.742298681409},{"$f":"+Distribution!P937+Transmission!P937+Generation!P937+Retail!P937+Misc!P937","v":0},{"$f":"+Distribution!Q937+Transmission!Q937+Generation!Q937+Retail!Q937+Misc!Q937","v":0},{"$f":"ROUND(SUM(I937:Q937)-H937,0)","v":0}]
[938,null,"367","Underground Conductors "]
[939,null,null,null,"Demand Primary","F20A",null,{"$f":"+Distribution!H939+Transmission!H939+Generation!H939+Retail!H939+Misc!H939","v":9686956.9912418462},{"$f":"+Distribution!I939+Transmission!I939+Generation!I939+Retail!I939+Misc!I939","v":4904409.9310092619},{"$f":"+Distribution!J939+Transmission!J939+Generation!J939+Retail!J939+Misc!J939","v":1340659.27597135},{"$f":"+Distribution!K939+Transmission!K939+Generation!K939+Retail!K939+Misc!K939","v":1966392.4566038221},{"$f":"+Distribution!L939+Transmission!L939+Generation!L939+Retail!L939+Misc!L939","v":751992.21687384462},{"$f":"+Distribution!M939+Transmission!M939+Generation!M939+Retail!M939+Misc!M939","v":0},{"$f":"+Distribution!N939+Transmission!N939+Generation!N939+Retail!N939+Misc!N939","v":686273.75349610834},{"$f":"+Distribution!O939+Transmission!O939+Generation!O939+Retail!O939+Misc!O939","v":37229.357287459017},{"$f":"+Distribution!P939+Transmission!P939+Generation!P939+Retail!P939+Misc!P939","v":0},{"$f":"+Distribution!Q939+Transmission!Q939+Generation!Q939+Retail!Q939+Misc!Q939","v":0},{"$f":"ROUND(SUM(I939:Q939)-H939,0)","v":0}]
[940,null,null,null,"Demand Secondary","F22",null,{"$f":"+Distribution!H940+Transmission!H940+Generation!H940+Retail!H940+Misc!H940","v":13077757.918758152},{"$f":"+Distribution!I940+Transmission!I940+Generation!I940+Retail!I940+Misc!I940","v":10648736.274310302},{"$f":"+Distribution!J940+Transmission!J940+Generation!J940+Retail!J940+Misc!J940","v":2429021.6444478487},{"$f":"+Distribution!K940+Transmission!K940+Generation!K940+Retail!K940+Misc!K940","v":0},{"$f":"+Distribution!L940+Transmission!L940+Generation!L940+Retail!L940+Misc!L940","v":0},{"$f":"+Distribution!M940+Transmission!M940+Generation!M940+Retail!M940+Misc!M940","v":0},{"$f":"+Distribution!N940+Transmission!N940+Generation!N940+Retail!N940+Misc!N940","v":0},{"$f":"+Distribution!O940+Transmission!O940+Generation!O940+Retail!O940+Misc!O940","v":0},{"$f":"+Distribution!P940+Transmission!P940+Generation!P940+Retail!P940+Misc!P940","v":0},{"$f":"+Distribution!Q940+Transmission!Q940+Generation!Q940+Retail!Q940+Misc!Q940","v":0},{"$f":"ROUND(SUM(I940:Q940)-H940,0)","v":0}]
[941,null,null,null,"Assigned","A",null,{"$f":"+Distribution!H941+Transmission!H941+Generation!H941+Retail!H941+Misc!H941","v":0},{"$f":"+Distribution!I941+Transmission!I941+Generation!I941+Retail!I941+Misc!I941","v":0},{"$f":"+Distribution!J941+Transmission!J941+Generation!J941+Retail!J941+Misc!J941","v":0},{"$f":"+Distribution!K941+Transmission!K941+Generation!K941+Retail!K941+Misc!K941","v":0},{"$f":"+Distribution!L941+Transmission!L941+Generation!L941+Retail!L941+Misc!L941","v":0},{"$f":"+Distribution!M941+Transmission!M941+Generation!M941+Retail!M941+Misc!M941","v":0},{"$f":"+Distribution!N941+Transmission!N941+Generation!N941+Retail!N941+Misc!N941","v":0},{"$f":"+Distribution!O941+Transmission!O941+Generation!O941+Retail!O941+Misc!O941","v":0},{"$f":"+Distribution!P941+Transmission!P941+Generation!P941+Retail!P941+Misc!P941","v":0},{"$f":"+Distribution!Q941+Transmission!Q941+Generation!Q941+Retail!Q941+Misc!Q941","v":0},{"$f":"ROUND(SUM(I941:Q941)-H941,0)","v":0}]
[942,null,null,null,null,null,null,{"$f":"+Distribution!H942+Transmission!H942+Generation!H942+Retail!H942+Misc!H942","v":22764714.909999996},{"$f":"+Distribution!I942+Transmission!I942+Generation!I942+Retail!I942+Misc!I942","v":15553146.205319565},{"$f":"+Distribution!J942+Transmission!J942+Generation!J942+Retail!J942+Misc!J942","v":3769680.9204191985},{"$f":"+Distribution!K942+Transmission!K942+Generation!K942+Retail!K942+Misc!K942","v":1966392.4566038221},{"$f":"+Distribution!L942+Transmission!L942+Generation!L942+Retail!L942+Misc!L942","v":751992.21687384462},{"$f":"+Distribution!M942+Transmission!M942+Generation!M942+Retail!M942+Misc!M942","v":0},{"$f":"+Distribution!N942+Transmission!N942+Generation!N942+Retail!N942+Misc!N942","v":686273.75349610834},{"$f":"+Distribution!O942+Transmission!O942+Generation!O942+Retail!O942+Misc!O942","v":37229.357287459017},{"$f":"+Distribution!P942+Transmission!P942+Generation!P942+Retail!P942+Misc!P942","v":0},{"$f":"+Distribution!Q942+Transmission!Q942+Generation!Q942+Retail!Q942+Misc!Q942","v":0},{"$f":"ROUND(SUM(I942:Q942)-H942,0)","v":0}]
[943,null,"368","Line Transformers"]
[944,null,null,null,"Demand Secondary","F21",null,{"$f":"+Distribution!H944+Transmission!H944+Generation!H944+Retail!H944+Misc!H944","v":98870912.760000005},{"$f":"+Distribution!I944+Transmission!I944+Generation!I944+Retail!I944+Misc!I944","v":59674733.132304892},{"$f":"+Distribution!J944+Transmission!J944+Generation!J944+Retail!J944+Misc!J944","v":13612058.245325074},{"$f":"+Distribution!K944+Transmission!K944+Generation!K944+Retail!K944+Misc!K944","v":15347754.802453144},{"$f":"+Distribution!L944+Transmission!L944+Generation!L944+Retail!L944+Misc!L944","v":4523363.1487319972},{"$f":"+Distribution!M944+Transmission!M944+Generation!M944+Retail!M944+Misc!M944","v":0},{"$f":"+Distribution!N944+Transmission!N944+Generation!N944+Retail!N944+Misc!N944","v":5499784.793650534},{"$f":"+Distribution!O944+Transmission!O944+Generation!O944+Retail!O944+Misc!O944","v":213218.63753437478},{"$f":"+Distribution!P944+Transmission!P944+Generation!P944+Retail!P944+Misc!P944","v":0},{"$f":"+Distribution!Q944+Transmission!Q944+Generation!Q944+Retail!Q944+Misc!Q944","v":0},{"$f":"ROUND(SUM(I944:Q944)-H944,0)","v":0}]
[945,null,null,null,"Assigned","A",null,{"$f":"+Distribution!H945+Transmission!H945+Generation!H945+Retail!H945+Misc!H945","v":0},{"$f":"+Distribution!I945+Transmission!I945+Generation!I945+Retail!I945+Misc!I945","v":0},{"$f":"+Distribution!J945+Transmission!J945+Generation!J945+Retail!J945+Misc!J945","v":0},{"$f":"+Distribution!K945+Transmission!K945+Generation!K945+Retail!K945+Misc!K945","v":0},{"$f":"+Distribution!L945+Transmission!L945+Generation!L945+Retail!L945+Misc!L945","v":0},{"$f":"+Distribution!M945+Transmission!M945+Generation!M945+Retail!M945+Misc!M945","v":0},{"$f":"+Distribution!N945+Transmission!N945+Generation!N945+Retail!N945+Misc!N945","v":0},{"$f":"+Distribution!O945+Transmission!O945+Generation!O945+Retail!O945+Misc!O945","v":0},{"$f":"+Distribution!P945+Transmission!P945+Generation!P945+Retail!P945+Misc!P945","v":0},{"$f":"+Distribution!Q945+Transmission!Q945+Generation!Q945+Retail!Q945+Misc!Q945","v":0},{"$f":"ROUND(SUM(I945:Q945)-H945,0)","v":0}]
[946,null,null,null,null,null,null,{"$f":"+Distribution!H946+Transmission!H946+Generation!H946+Retail!H946+Misc!H946","v":98870912.760000005},{"$f":"+Distribution!I946+Transmission!I946+Generation!I946+Retail!I946+Misc!I946","v":59674733.132304892},{"$f":"+Distribution!J946+Transmission!J946+Generation!J946+Retail!J946+Misc!J946","v":13612058.245325074},{"$f":"+Distribution!K946+Transmission!K946+Generation!K946+Retail!K946+Misc!K946","v":15347754.802453144},{"$f":"+Distribution!L946+Transmission!L946+Generation!L946+Retail!L946+Misc!L946","v":4523363.1487319972},{"$f":"+Distribution!M946+Transmission!M946+Generation!M946+Retail!M946+Misc!M946","v":0},{"$f":"+Distribution!N946+Transmission!N946+Generation!N946+Retail!N946+Misc!N946","v":5499784.793650534},{"$f":"+Distribution!O946+Transmission!O946+Generation!O946+Retail!O946+Misc!O946","v":213218.63753437478},{"$f":"+Distribution!P946+Transmission!P946+Generation!P946+Retail!P946+Misc!P946","v":0},{"$f":"+Distribution!Q946+Transmission!Q946+Generation!Q946+Retail!Q946+Misc!Q946","v":0},{"$f":"ROUND(SUM(I946:Q946)-H946,0)","v":0}]
[947,null,"369","Services"]
[948,null,null,null,"Customer","F70",null,{"$f":"+Distribution!H948+Transmission!H948+Generation!H948+Retail!H948+Misc!H948","v":52234063.350000001},{"$f":"+Distribution!I948+Transmission!I948+Generation!I948+Retail!I948+Misc!I948","v":38479576.845175616},{"$f":"+Distribution!J948+Transmission!J948+Generation!J948+Retail!J948+Misc!J948","v":10514260.699397767},{"$f":"+Distribution!K948+Transmission!K948+Generation!K948+Retail!K948+Misc!K948","v":2624041.1013416713},{"$f":"+Distribution!L948+Transmission!L948+Generation!L948+Retail!L948+Misc!L948","v":616184.70408494654},{"$f":"+Distribution!M948+Transmission!M948+Generation!M948+Retail!M948+Misc!M948","v":0},{"$f":"+Distribution!N948+Transmission!N948+Generation!N948+Retail!N948+Misc!N948","v":0},{"$f":"+Distribution!O948+Transmission!O948+Generation!O948+Retail!O948+Misc!O948","v":0},{"$f":"+Distribution!P948+Transmission!P948+Generation!P948+Retail!P948+Misc!P948","v":0},{"$f":"+Distribution!Q948+Transmission!Q948+Generation!Q948+Retail!Q948+Misc!Q948","v":0},{"$f":"ROUND(SUM(I948:Q948)-H948,0)","v":0}]
[949,null,null,null,"Assigned","A",null,{"$f":"+Distribution!H949+Transmission!H949+Generation!H949+Retail!H949+Misc!H949","v":0},{"$f":"+Distribution!I949+Transmission!I949+Generation!I949+Retail!I949+Misc!I949","v":0},{"$f":"+Distribution!J949+Transmission!J949+Generation!J949+Retail!J949+Misc!J949","v":0},{"$f":"+Distribution!K949+Transmission!K949+Generation!K949+Retail!K949+Misc!K949","v":0},{"$f":"+Distribution!L949+Transmission!L949+Generation!L949+Retail!L949+Misc!L949","v":0},{"$f":"+Distribution!M949+Transmission!M949+Generation!M949+Retail!M949+Misc!M949","v":0},{"$f":"+Distribution!N949+Transmission!N949+Generation!N949+Retail!N949+Misc!N949","v":0},{"$f":"+Distribution!O949+Transmission!O949+Generation!O949+Retail!O949+Misc!O949","v":0},{"$f":"+Distribution!P949+Transmission!P949+Generation!P949+Retail!P949+Misc!P949","v":0},{"$f":"+Distribution!Q949+Transmission!Q949+Generation!Q949+Retail!Q949+Misc!Q949","v":0},{"$f":"ROUND(SUM(I949:Q949)-H949,0)","v":0}]
[950,null,null,null,null,null,null,{"$f":"+Distribution!H950+Transmission!H950+Generation!H950+Retail!H950+Misc!H950","v":52234063.350000001},{"$f":"+Distribution!I950+Transmission!I950+Generation!I950+Retail!I950+Misc!I950","v":38479576.845175616},{"$f":"+Distribution!J950+Transmission!J950+Generation!J950+Retail!J950+Misc!J950","v":10514260.699397767},{"$f":"+Distribution!K950+Transmission!K950+Generation!K950+Retail!K950+Misc!K950","v":2624041.1013416713},{"$f":"+Distribution!L950+Transmission!L950+Generation!L950+Retail!L950+Misc!L950","v":616184.70408494654},{"$f":"+Distribution!M950+Transmission!M950+Generation!M950+Retail!M950+Misc!M950","v":0},{"$f":"+Distribution!N950+Transmission!N950+Generation!N950+Retail!N950+Misc!N950","v":0},{"$f":"+Distribution!O950+Transmission!O950+Generation!O950+Retail!O950+Misc!O950","v":0},{"$f":"+Distribution!P950+Transmission!P950+Generation!P950+Retail!P950+Misc!P950","v":0},{"$f":"+Distribution!Q950+Transmission!Q950+Generation!Q950+Retail!Q950+Misc!Q950","v":0},{"$f":"ROUND(SUM(I950:Q950)-H950,0)","v":0}]
[951,null,"370","Meters"]
[952,null,null,null,"Customer","F60A",null,{"$f":"+Distribution!H952+Transmission!H952+Generation!H952+Retail!H952+Misc!H952","v":11341204.639999999},{"$f":"+Distribution!I952+Transmission!I952+Generation!I952+Retail!I952+Misc!I952","v":7788813.0551659521},{"$f":"+Distribution!J952+Transmission!J952+Generation!J952+Retail!J952+Misc!J952","v":1859106.2736633245},{"$f":"+Distribution!K952+Transmission!K952+Generation!K952+Retail!K952+Misc!K952","v":875047.61912785866},{"$f":"+Distribution!L952+Transmission!L952+Generation!L952+Retail!L952+Misc!L952","v":140678.14110871041},{"$f":"+Distribution!M952+Transmission!M952+Generation!M952+Retail!M952+Misc!M952","v":0},{"$f":"+Distribution!N952+Transmission!N952+Generation!N952+Retail!N952+Misc!N952","v":677559.55093415419},{"$f":"+Distribution!O952+Transmission!O952+Generation!O952+Retail!O952+Misc!O952","v":0},{"$f":"+Distribution!P952+Transmission!P952+Generation!P952+Retail!P952+Misc!P952","v":0},{"$f":"+Distribution!Q952+Transmission!Q952+Generation!Q952+Retail!Q952+Misc!Q952","v":0},{"$f":"ROUND(SUM(I952:Q952)-H952,0)","v":0}]
[953,null,null,null,"Assigned","A",null,{"$f":"+Distribution!H953+Transmission!H953+Generation!H953+Retail!H953+Misc!H953","v":110788.96},{"$f":"+Distribution!I953+Transmission!I953+Generation!I953+Retail!I953+Misc!I953","v":0},{"$f":"+Distribution!J953+Transmission!J953+Generation!J953+Retail!J953+Misc!J953","v":0},{"$f":"+Distribution!K953+Transmission!K953+Generation!K953+Retail!K953+Misc!K953","v":0},{"$f":"+Distribution!L953+Transmission!L953+Generation!L953+Retail!L953+Misc!L953","v":0},{"$f":"+Distribution!M953+Transmission!M953+Generation!M953+Retail!M953+Misc!M953","v":110788.96},{"$f":"+Distribution!N953+Transmission!N953+Generation!N953+Retail!N953+Misc!N953","v":0},{"$f":"+Distribution!O953+Transmission!O953+Generation!O953+Retail!O953+Misc!O953","v":0},{"$f":"+Distribution!P953+Transmission!P953+Generation!P953+Retail!P953+Misc!P953","v":0},{"$f":"+Distribution!Q953+Transmission!Q953+Generation!Q953+Retail!Q953+Misc!Q953","v":0},{"$f":"ROUND(SUM(I953:Q953)-H953,0)","v":0}]
[954,null,null,null,null,null,null,{"$f":"+Distribution!H954+Transmission!H954+Generation!H954+Retail!H954+Misc!H954","v":11451993.6},{"$f":"+Distribution!I954+Transmission!I954+Generation!I954+Retail!I954+Misc!I954","v":7788813.0551659521},{"$f":"+Distribution!J954+Transmission!J954+Generation!J954+Retail!J954+Misc!J954","v":1859106.2736633245},{"$f":"+Distribution!K954+Transmission!K954+Generation!K954+Retail!K954+Misc!K954","v":875047.61912785866},{"$f":"+Distribution!L954+Transmission!L954+Generation!L954+Retail!L954+Misc!L954","v":140678.14110871041},{"$f":"+Distribution!M954+Transmission!M954+Generation!M954+Retail!M954+Misc!M954","v":110788.96},{"$f":"+Distribution!N954+Transmission!N954+Generation!N954+Retail!N954+Misc!N954","v":677559.55093415419},{"$f":"+Distribution!O954+Transmission!O954+Generation!O954+Retail!O954+Misc!O954","v":0},{"$f":"+Distribution!P954+Transmission!P954+Generation!P954+Retail!P954+Misc!P954","v":0},{"$f":"+Distribution!Q954+Transmission!Q954+Generation!Q954+Retail!Q954+Misc!Q954","v":0},{"$f":"ROUND(SUM(I954:Q954)-H954,0)","v":0}]
[955,null,"371","Install on Customers' Premises"]
[956,null,null,null,"Demand Primary","F20",null,{"$f":"+Distribution!H956+Transmission!H956+Generation!H956+Retail!H956+Misc!H956","v":0},{"$f":"+Distribution!I956+Transmission!I956+Generation!I956+Retail!I956+Misc!I956","v":0},{"$f":"+Distribution!J956+Transmission!J956+Generation!J956+Retail!J956+Misc!J956","v":0},{"$f":"+Distribution!K956+Transmission!K956+Generation!K956+Retail!K956+Misc!K956","v":0},{"$f":"+Distribution!L956+Transmission!L956+Generation!L956+Retail!L956+Misc!L956","v":0},{"$f":"+Distribution!M956+Transmission!M956+Generation!M956+Retail!M956+Misc!M956","v":0},{"$f":"+Distribution!N956+Transmission!N956+Generation!N956+Retail!N956+Misc!N956","v":0},{"$f":"+Distribution!O956+Transmission!O956+Generation!O956+Retail!O956+Misc!O956","v":0},{"$f":"+Distribution!P956+Transmission!P956+Generation!P956+Retail!P956+Misc!P956","v":0},{"$f":"+Distribution!Q956+Transmission!Q956+Generation!Q956+Retail!Q956+Misc!Q956","v":0},{"$f":"ROUND(SUM(I956:Q956)-H956,0)","v":0}]
[957,null,null,null,"Demand Secondary","F22",null,{"$f":"+Distribution!H957+Transmission!H957+Generation!H957+Retail!H957+Misc!H957","v":0},{"$f":"+Distribution!I957+Transmission!I957+Generation!I957+Retail!I957+Misc!I957","v":0},{"$f":"+Distribution!J957+Transmission!J957+Generation!J957+Retail!J957+Misc!J957","v":0},{"$f":"+Distribution!K957+Transmission!K957+Generation!K957+Retail!K957+Misc!K957","v":0},{"$f":"+Distribution!L957+Transmission!L957+Generation!L957+Retail!L957+Misc!L957","v":0},{"$f":"+Distribution!M957+Transmission!M957+Generation!M957+Retail!M957+Misc!M957","v":0},{"$f":"+Distribution!N957+Transmission!N957+Generation!N957+Retail!N957+Misc!N957","v":0},{"$f":"+Distribution!O957+Transmission!O957+Generation!O957+Retail!O957+Misc!O957","v":0},{"$f":"+Distribution!P957+Transmission!P957+Generation!P957+Retail!P957+Misc!P957","v":0},{"$f":"+Distribution!Q957+Transmission!Q957+Generation!Q957+Retail!Q957+Misc!Q957","v":0},{"$f":"ROUND(SUM(I957:Q957)-H957,0)","v":0}]
[958,null,null,null,"Assigned","A",null,{"$f":"+Distribution!H958+Transmission!H958+Generation!H958+Retail!H958+Misc!H958","v":518187.33},{"$f":"+Distribution!I958+Transmission!I958+Generation!I958+Retail!I958+Misc!I958","v":0},{"$f":"+Distribution!J958+Transmission!J958+Generation!J958+Retail!J958+Misc!J958","v":0},{"$f":"+Distribution!K958+Transmission!K958+Generation!K958+Retail!K958+Misc!K958","v":0},{"$f":"+Distribution!L958+Transmission!L958+Generation!L958+Retail!L958+Misc!L958","v":0},{"$f":"+Distribution!M958+Transmission!M958+Generation!M958+Retail!M958+Misc!M958","v":0},{"$f":"+Distribution!N958+Transmission!N958+Generation!N958+Retail!N958+Misc!N958","v":0},{"$f":"+Distribution!O958+Transmission!O958+Generation!O958+Retail!O958+Misc!O958","v":518187.33},{"$f":"+Distribution!P958+Transmission!P958+Generation!P958+Retail!P958+Misc!P958","v":0},{"$f":"+Distribution!Q958+Transmission!Q958+Generation!Q958+Retail!Q958+Misc!Q958","v":0},{"$f":"ROUND(SUM(I958:Q958)-H958,0)","v":0}]
[959,null,null,null,null,null,null,{"$f":"+Distribution!H959+Transmission!H959+Generation!H959+Retail!H959+Misc!H959","v":518187.33},{"$f":"+Distribution!I959+Transmission!I959+Generation!I959+Retail!I959+Misc!I959","v":0},{"$f":"+Distribution!J959+Transmission!J959+Generation!J959+Retail!J959+Misc!J959","v":0},{"$f":"+Distribution!K959+Transmission!K959+Generation!K959+Retail!K959+Misc!K959","v":0},{"$f":"+Distribution!L959+Transmission!L959+Generation!L959+Retail!L959+Misc!L959","v":0},{"$f":"+Distribution!M959+Transmission!M959+Generation!M959+Retail!M959+Misc!M959","v":0},{"$f":"+Distribution!N959+Transmission!N959+Generation!N959+Retail!N959+Misc!N959","v":0},{"$f":"+Distribution!O959+Transmission!O959+Generation!O959+Retail!O959+Misc!O959","v":518187.33},{"$f":"+Distribution!P959+Transmission!P959+Generation!P959+Retail!P959+Misc!P959","v":0},{"$f":"+Distribution!Q959+Transmission!Q959+Generation!Q959+Retail!Q959+Misc!Q959","v":0},{"$f":"ROUND(SUM(I959:Q959)-H959,0)","v":0}]
[960,null,"372","Leased Property"]
[961,null,null,null,"Demand Primary","F20",null,{"$f":"+Distribution!H961+Transmission!H961+Generation!H961+Retail!H961+Misc!H961","v":0},{"$f":"+Distribution!I961+Transmission!I961+Generation!I961+Retail!I961+Misc!I961","v":0},{"$f":"+Distribution!J961+Transmission!J961+Generation!J961+Retail!J961+Misc!J961","v":0},{"$f":"+Distribution!K961+Transmission!K961+Generation!K961+Retail!K961+Misc!K961","v":0},{"$f":"+Distribution!L961+Transmission!L961+Generation!L961+Retail!L961+Misc!L961","v":0},{"$f":"+Distribution!M961+Transmission!M961+Generation!M961+Retail!M961+Misc!M961","v":0},{"$f":"+Distribution!N961+Transmission!N961+Generation!N961+Retail!N961+Misc!N961","v":0},{"$f":"+Distribution!O961+Transmission!O961+Generation!O961+Retail!O961+Misc!O961","v":0},{"$f":"+Distribution!P961+Transmission!P961+Generation!P961+Retail!P961+Misc!P961","v":0},{"$f":"+Distribution!Q961+Transmission!Q961+Generation!Q961+Retail!Q961+Misc!Q961","v":0},{"$f":"ROUND(SUM(I961:Q961)-H961,0)","v":0}]
[962,null,null,null,"Demand Secondary","F22",null,{"$f":"+Distribution!H962+Transmission!H962+Generation!H962+Retail!H962+Misc!H962","v":0},{"$f":"+Distribution!I962+Transmission!I962+Generation!I962+Retail!I962+Misc!I962","v":0},{"$f":"+Distribution!J962+Transmission!J962+Generation!J962+Retail!J962+Misc!J962","v":0},{"$f":"+Distribution!K962+Transmission!K962+Generation!K962+Retail!K962+Misc!K962","v":0},{"$f":"+Distribution!L962+Transmission!L962+Generation!L962+Retail!L962+Misc!L962","v":0},{"$f":"+Distribution!M962+Transmission!M962+Generation!M962+Retail!M962+Misc!M962","v":0},{"$f":"+Distribution!N962+Transmission!N962+Generation!N962+Retail!N962+Misc!N962","v":0},{"$f":"+Distribution!O962+Transmission!O962+Generation!O962+Retail!O962+Misc!O962","v":0},{"$f":"+Distribution!P962+Transmission!P962+Generation!P962+Retail!P962+Misc!P962","v":0},{"$f":"+Distribution!Q962+Transmission!Q962+Generation!Q962+Retail!Q962+Misc!Q962","v":0},{"$f":"ROUND(SUM(I962:Q962)-H962,0)","v":0}]
[963,null,null,null,"Assigned","A",null,{"$f":"+Distribution!H963+Transmission!H963+Generation!H963+Retail!H963+Misc!H963","v":0},{"$f":"+Distribution!I963+Transmission!I963+Generation!I963+Retail!I963+Misc!I963","v":0},{"$f":"+Distribution!J963+Transmission!J963+Generation!J963+Retail!J963+Misc!J963","v":0},{"$f":"+Distribution!K963+Transmission!K963+Generation!K963+Retail!K963+Misc!K963","v":0},{"$f":"+Distribution!L963+Transmission!L963+Generation!L963+Retail!L963+Misc!L963","v":0},{"$f":"+Distribution!M963+Transmission!M963+Generation!M963+Retail!M963+Misc!M963","v":0},{"$f":"+Distribution!N963+Transmission!N963+Generation!N963+Retail!N963+Misc!N963","v":0},{"$f":"+Distribution!O963+Transmission!O963+Generation!O963+Retail!O963+Misc!O963","v":0},{"$f":"+Distribution!P963+Transmission!P963+Generation!P963+Retail!P963+Misc!P963","v":0},{"$f":"+Distribution!Q963+Transmission!Q963+Generation!Q963+Retail!Q963+Misc!Q963","v":0},{"$f":"ROUND(SUM(I963:Q963)-H963,0)","v":0}]
[964,null,null,null,null,null,null,{"$f":"+Distribution!H964+Transmission!H964+Generation!H964+Retail!H964+Misc!H964","v":0},{"$f":"+Distribution!I964+Transmission!I964+Generation!I964+Retail!I964+Misc!I964","v":0},{"$f":"+Distribution!J964+Transmission!J964+Generation!J964+Retail!J964+Misc!J964","v":0},{"$f":"+Distribution!K964+Transmission!K964+Generation!K964+Retail!K964+Misc!K964","v":0},{"$f":"+Distribution!L964+Transmission!L964+Generation!L964+Retail!L964+Misc!L964","v":0},{"$f":"+Distribution!M964+Transmission!M964+Generation!M964+Retail!M964+Misc!M964","v":0},{"$f":"+Distribution!N964+Transmission!N964+Generation!N964+Retail!N964+Misc!N964","v":0},{"$f":"+Distribution!O964+Transmission!O964+Generation!O964+Retail!O964+Misc!O964","v":0},{"$f":"+Distribution!P964+Transmission!P964+Generation!P964+Retail!P964+Misc!P964","v":0},{"$f":"+Distribution!Q964+Transmission!Q964+Generation!Q964+Retail!Q964+Misc!Q964","v":0},{"$f":"ROUND(SUM(I964:Q964)-H964,0)","v":0}]
[965]
[966,null,"373","Street Lights",null,"A",null,{"$f":"+Distribution!H966+Transmission!H966+Generation!H966+Retail!H966+Misc!H966","v":4036517},{"$f":"+Distribution!I966+Transmission!I966+Generation!I966+Retail!I966+Misc!I966","v":0},{"$f":"+Distribution!J966+Transmission!J966+Generation!J966+Retail!J966+Misc!J966","v":0},{"$f":"+Distribution!K966+Transmission!K966+Generation!K966+Retail!K966+Misc!K966","v":0},{"$f":"+Distribution!L966+Transmission!L966+Generation!L966+Retail!L966+Misc!L966","v":0},{"$f":"+Distribution!M966+Transmission!M966+Generation!M966+Retail!M966+Misc!M966","v":0},{"$f":"+Distribution!N966+Transmission!N966+Generation!N966+Retail!N966+Misc!N966","v":0},{"$f":"+Distribution!O966+Transmission!O966+Generation!O966+Retail!O966+Misc!O966","v":4036517},{"$f":"+Distribution!P966+Transmission!P966+Generation!P966+Retail!P966+Misc!P966","v":0},{"$f":"+Distribution!Q966+Transmission!Q966+Generation!Q966+Retail!Q966+Misc!Q966","v":0},{"$f":"ROUND(SUM(I966:Q966)-H966,0)","v":0}]
[967]
[968]
[969,null,"DP","Unclassified Dist Plant - Acct 300",null,"F22",null,{"$f":"+Distribution!H969+Transmission!H969+Generation!H969+Retail!H969+Misc!H969","v":882700.80000000005},{"$f":"+Distribution!I969+Transmission!I969+Generation!I969+Retail!I969+Misc!I969","v":718750.72827585286},{"$f":"+Distribution!J969+Transmission!J969+Generation!J969+Retail!J969+Misc!J969","v":163950.0717241471},{"$f":"+Distribution!K969+Transmission!K969+Generation!K969+Retail!K969+Misc!K969","v":0},{"$f":"+Distribution!L969+Transmission!L969+Generation!L969+Retail!L969+Misc!L969","v":0},{"$f":"+Distribution!M969+Transmission!M969+Generation!M969+Retail!M969+Misc!M969","v":0},{"$f":"+Distribution!N969+Transmission!N969+Generation!N969+Retail!N969+Misc!N969","v":0},{"$f":"+Distribution!O969+Transmission!O969+Generation!O969+Retail!O969+Misc!O969","v":0},{"$f":"+Distribution!P969+Transmission!P969+Generation!P969+Retail!P969+Misc!P969","v":0},{"$f":"+Distribution!Q969+Transmission!Q969+Generation!Q969+Retail!Q969+Misc!Q969","v":0},{"$f":"ROUND(SUM(I969:Q969)-H969,0)","v":0}]
[970,null,"DS0","Unclassified Dist Sub  - Acct 300",null,"F20",null,{"$f":"+Distribution!H970+Transmission!H970+Generation!H970+Retail!H970+Misc!H970","v":0},{"$f":"+Distribution!I970+Transmission!I970+Generation!I970+Retail!I970+Misc!I970","v":0},{"$f":"+Distribution!J970+Transmission!J970+Generation!J970+Retail!J970+Misc!J970","v":0},{"$f":"+Distribution!K970+Transmission!K970+Generation!K970+Retail!K970+Misc!K970","v":0},{"$f":"+Distribution!L970+Transmission!L970+Generation!L970+Retail!L970+Misc!L970","v":0},{"$f":"+Distribution!M970+Transmission!M970+Generation!M970+Retail!M970+Misc!M970","v":0},{"$f":"+Distribution!N970+Transmission!N970+Generation!N970+Retail!N970+Misc!N970","v":0},{"$f":"+Distribution!O970+Transmission!O970+Generation!O970+Retail!O970+Misc!O970","v":0},{"$f":"+Distribution!P970+Transmission!P970+Generation!P970+Retail!P970+Misc!P970","v":0},{"$f":"+Distribution!Q970+Transmission!Q970+Generation!Q970+Retail!Q970+Misc!Q970","v":0},{"$f":"ROUND(SUM(I970:Q970)-H970,0)","v":0}]
[971,null,"TOTAL DISTRIBUTION PLANT",null,null,null,null,{"$f":"+Distribution!H971+Transmission!H971+Generation!H971+Retail!H971+Misc!H971","v":409946000.73000008},{"$f":"+Distribution!I971+Transmission!I971+Generation!I971+Retail!I971+Misc!I971","v":242701049.16630968},{"$f":"+Distribution!J971+Transmission!J971+Generation!J971+Retail!J971+Misc!J971","v":61554457.248622246},{"$f":"+Distribution!K971+Transmission!K971+Generation!K971+Retail!K971+Misc!K971","v":57599849.364403509},{"$f":"+Distribution!L971+Transmission!L971+Generation!L971+Retail!L971+Misc!L971","v":20100237.469962139},{"$f":"+Distribution!M971+Transmission!M971+Generation!M971+Retail!M971+Misc!M971","v":2786582.4811979746},{"$f":"+Distribution!N971+Transmission!N971+Generation!N971+Retail!N971+Misc!N971","v":19702198.291605249},{"$f":"+Distribution!O971+Transmission!O971+Generation!O971+Retail!O971+Misc!O971","v":5501626.707899238},{"$f":"+Distribution!P971+Transmission!P971+Generation!P971+Retail!P971+Misc!P971","v":0},{"$f":"+Distribution!Q971+Transmission!Q971+Generation!Q971+Retail!Q971+Misc!Q971","v":0},{"$f":"ROUND(SUM(I971:Q971)-H971,0)","v":0}]
[972]
[973,null,null,null,null,null,null,"GENERAL PLANT"]
[974]
[975,null,"A",null,"B","C",null,"D","E","F","G","H","I","J","K","L","M"]
[976,null,null,null,null,null,null,{"$f":"'Hot Sheet'!$H$10","v":"Washington"},null,{"$f":"'Hot Sheet'!$J$10","v":"Small General"},{"$f":"'Hot Sheet'!$K$10","v":"Large General"},{"$f":"'Hot Sheet'!$L$10","v":"Large General"},{"$f":"'Hot Sheet'!$M$10","v":"Large General"},{"$f":"'Hot Sheet'!$N$10","v":"Agricultural"},{"$f":"'Hot Sheet'!$O$10","v":"Street & Area"}]
[977,null,"FERC",null,null,"COS",null,{"$f":"'Hot Sheet'!$H$11","v":"Jurisdiction"},{"$f":"'Hot Sheet'!$I$11","v":"Residential"},{"$f":"'Hot Sheet'!$J$11","v":"Service"},{"$f":"'Hot Sheet'!$K$11","v":"Service <1,000 kW"},{"$f":"'Hot Sheet'!$L$11","v":"Service >1,000 kW"},{"$f":"'Hot Sheet'!$M$11","v":"Dedicated Facilities"},{"$f":"'Hot Sheet'!$N$11","v":"Pumping"},{"$f":"'Hot Sheet'!$O$11","v":"Lighting"}]
[978,null,"ACCT",null,"DESCRIPTION ","Factor",null,{"$f":"'Hot Sheet'!$H$12","v":"Normalized"},{"$f":"'Hot Sheet'!$I$12","v":"Schedule 16"},{"$f":"'Hot Sheet'!$J$12","v":"Schedule 24"},{"$f":"'Hot Sheet'!$K$12","v":"Schedule 36"},{"$f":"'Hot Sheet'!$L$12","v":"Schedule 48T"},{"$f":"'Hot Sheet'!$M$12","v":"Schedule 48T"},{"$f":"'Hot Sheet'!$N$12","v":"Schedule 40"},{"$f":"'Hot Sheet'!$O$12","v":"Sch. 15,51-54,57"}]
[979,null,"389","Land and Land Rights"]
[980,null,null,null,"Situs",{"$f":"IF(Function=\"gen\",\"F107G\",IF(Function=\"TRN\",\"F107T\",IF(Function=\"DIS\",\"F107D\",IF(Function=\"RETAIL\",\"F107R\",IF(Function=\"MISC\",\"F107M\",\"ERR\")))))","v":"F107D"},null,{"$f":"+Distribution!H980+Transmission!H980+Generation!H980+Retail!H980+Misc!H980","v":1098826.3500000001},{"$f":"+Distribution!I980+Transmission!I980+Generation!I980+Retail!I980+Misc!I980","v":603716.60386666702},{"$f":"+Distribution!J980+Transmission!J980+Generation!J980+Retail!J980+Misc!J980","v":160748.58657933658},{"$f":"+Distribution!K980+Transmission!K980+Generation!K980+Retail!K980+Misc!K980","v":174854.14293842833},{"$f":"+Distribution!L980+Transmission!L980+Generation!L980+Retail!L980+Misc!L980","v":63774.767465053126},{"$f":"+Distribution!M980+Transmission!M980+Generation!M980+Retail!M980+Misc!M980","v":34729.587441288691},{"$f":"+Distribution!N980+Transmission!N980+Generation!N980+Retail!N980+Misc!N980","v":49332.227261584034},{"$f":"+Distribution!O980+Transmission!O980+Generation!O980+Retail!O980+Misc!O980","v":11670.434447642239},{"$f":"+Distribution!P980+Transmission!P980+Generation!P980+Retail!P980+Misc!P980","v":0},{"$f":"+Distribution!Q980+Transmission!Q980+Generation!Q980+Retail!Q980+Misc!Q980","v":0},{"$f":"ROUND(SUM(I980:Q980)-H980,0)","v":0}]
[981,null,null,null,"System Generation",{"$f":"IF(Function=\"gen\",\"F105G\",IF(Function=\"TRN\",\"F105T\",IF(Function=\"DIS\",\"F105D\",IF(Function=\"RETAIL\",\"F105R\",IF(Function=\"MISC\",\"F105M\",\"ERR\")))))","v":"F105D"},null,{"$f":"+Distribution!H981+Transmission!H981+Generation!H981+Retail!H981+Misc!H981","v":0},{"$f":"+Distribution!I981+Transmission!I981+Generation!I981+Retail!I981+Misc!I981","v":0},{"$f":"+Distribution!J981+Transmission!J981+Generation!J981+Retail!J981+Misc!J981","v":0},{"$f":"+Distribution!K981+Transmission!K981+Generation!K981+Retail!K981+Misc!K981","v":0},{"$f":"+Distribution!L981+Transmission!L981+Generation!L981+Retail!L981+Misc!L981","v":0},{"$f":"+Distribution!M981+Transmission!M981+Generation!M981+Retail!M981+Misc!M981","v":0},{"$f":"+Distribution!N981+Transmission!N981+Generation!N981+Retail!N981+Misc!N981","v":0},{"$f":"+Distribution!O981+Transmission!O981+Generation!O981+Retail!O981+Misc!O981","v":0},{"$f":"+Distribution!P981+Transmission!P981+Generation!P981+Retail!P981+Misc!P981","v":0},{"$f":"+Distribution!Q981+Transmission!Q981+Generation!Q981+Retail!Q981+Misc!Q981","v":0},{"$f":"ROUND(SUM(I981:Q981)-H981,0)","v":0}]
[982,null,null,null,"System Overheads",{"$f":"IF(Function=\"gen\",\"F102G\",IF(Function=\"TRN\",\"F102T\",IF(Function=\"DIS\",\"F102D\",IF(Function=\"RETAIL\",\"F102R\",IF(Function=\"MISC\",\"F102M\",\"ERR\")))))","v":"F102D"},null,{"$f":"+Distribution!H982+Transmission!H982+Generation!H982+Retail!H982+Misc!H982","v":383425.89821968507},{"$f":"+Distribution!I982+Transmission!I982+Generation!I982+Retail!I982+Misc!I982","v":181597.42455370555},{"$f":"+Distribution!J982+Transmission!J982+Generation!J982+Retail!J982+Misc!J982","v":53458.081892253525},{"$f":"+Distribution!K982+Transmission!K982+Generation!K982+Retail!K982+Misc!K982","v":73715.304437009239},{"$f":"+Distribution!L982+Transmission!L982+Generation!L982+Retail!L982+Misc!L982","v":28397.369193428396},{"$f":"+Distribution!M982+Transmission!M982+Generation!M982+Retail!M982+Misc!M982","v":29039.629366599682},{"$f":"+Distribution!N982+Transmission!N982+Generation!N982+Retail!N982+Misc!N982","v":15055.261386380313},{"$f":"+Distribution!O982+Transmission!O982+Generation!O982+Retail!O982+Misc!O982","v":2162.8273903083668},{"$f":"+Distribution!P982+Transmission!P982+Generation!P982+Retail!P982+Misc!P982","v":0},{"$f":"+Distribution!Q982+Transmission!Q982+Generation!Q982+Retail!Q982+Misc!Q982","v":0},{"$f":"ROUND(SUM(I982:Q982)-H982,0)","v":0}]
[983,null,null,null,"Customer - System","F42",null,{"$f":"+Distribution!H983+Transmission!H983+Generation!H983+Retail!H983+Misc!H983","v":78206.616385561385},{"$f":"+Distribution!I983+Transmission!I983+Generation!I983+Retail!I983+Misc!I983","v":63102.481521892027},{"$f":"+Distribution!J983+Transmission!J983+Generation!J983+Retail!J983+Misc!J983","v":10717.720772702183},{"$f":"+Distribution!K983+Transmission!K983+Generation!K983+Retail!K983+Misc!K983","v":650.90569801867423},{"$f":"+Distribution!L983+Transmission!L983+Generation!L983+Retail!L983+Misc!L983","v":133.49511539797351},{"$f":"+Distribution!M983+Transmission!M983+Generation!M983+Retail!M983+Misc!M983","v":2.3051526489162972},{"$f":"+Distribution!N983+Transmission!N983+Generation!N983+Retail!N983+Misc!N983","v":1909.2608322731824},{"$f":"+Distribution!O983+Transmission!O983+Generation!O983+Retail!O983+Misc!O983","v":1690.4472926284247},{"$f":"+Distribution!P983+Transmission!P983+Generation!P983+Retail!P983+Misc!P983","v":0},{"$f":"+Distribution!Q983+Transmission!Q983+Generation!Q983+Retail!Q983+Misc!Q983","v":0},{"$f":"ROUND(SUM(I983:Q983)-H983,0)","v":0}]
[984,null,null,"Total Land & Land Rights",null,null,null,{"$f":"+Distribution!H984+Transmission!H984+Generation!H984+Retail!H984+Misc!H984","v":1560458.8646052466},{"$f":"+Distribution!I984+Transmission!I984+Generation!I984+Retail!I984+Misc!I984","v":848416.50994226465},{"$f":"+Distribution!J984+Transmission!J984+Generation!J984+Retail!J984+Misc!J984","v":224924.38924429231},{"$f":"+Distribution!K984+Transmission!K984+Generation!K984+Retail!K984+Misc!K984","v":249220.35307345624},{"$f":"+Distribution!L984+Transmission!L984+Generation!L984+Retail!L984+Misc!L984","v":92305.63177387949},{"$f":"+Distribution!M984+Transmission!M984+Generation!M984+Retail!M984+Misc!M984","v":63771.521960537284},{"$f":"+Distribution!N984+Transmission!N984+Generation!N984+Retail!N984+Misc!N984","v":66296.749480237529},{"$f":"+Distribution!O984+Transmission!O984+Generation!O984+Retail!O984+Misc!O984","v":15523.709130579031},{"$f":"+Distribution!P984+Transmission!P984+Generation!P984+Retail!P984+Misc!P984","v":0},{"$f":"+Distribution!Q984+Transmission!Q984+Generation!Q984+Retail!Q984+Misc!Q984","v":0},{"$f":"ROUND(SUM(I984:Q984)-H984,0)","v":0}]
[985]
[986,null,"390","Structures and Improvements"]
[987,null,null,null,"Situs",{"$f":"IF(Function=\"gen\",\"F107G\",IF(Function=\"TRN\",\"F107T\",IF(Function=\"DIS\",\"F107D\",IF(Function=\"RETAIL\",\"F107R\",IF(Function=\"MISC\",\"F107M\",\"ERR\")))))","v":"F107D"},null,{"$f":"+Distribution!H987+Transmission!H987+Generation!H987+Retail!H987+Misc!H987","v":13912659.390000001},{"$f":"+Distribution!I987+Transmission!I987+Generation!I987+Retail!I987+Misc!I987","v":7643886.1132921465},{"$f":"+Distribution!J987+Transmission!J987+Generation!J987+Retail!J987+Misc!J987","v":2035299.1466779395},{"$f":"+Distribution!K987+Transmission!K987+Generation!K987+Retail!K987+Misc!K987","v":2213894.9740627599},{"$f":"+Distribution!L987+Transmission!L987+Generation!L987+Retail!L987+Misc!L987","v":807476.64762292767},{"$f":"+Distribution!M987+Transmission!M987+Generation!M987+Retail!M987+Misc!M987","v":439724.54867493047},{"$f":"+Distribution!N987+Transmission!N987+Generation!N987+Retail!N987+Misc!N987","v":624614.13929552294},{"$f":"+Distribution!O987+Transmission!O987+Generation!O987+Retail!O987+Misc!O987","v":147763.82037377357},{"$f":"+Distribution!P987+Transmission!P987+Generation!P987+Retail!P987+Misc!P987","v":0},{"$f":"+Distribution!Q987+Transmission!Q987+Generation!Q987+Retail!Q987+Misc!Q987","v":0},{"$f":"ROUND(SUM(I987:Q987)-H987,0)","v":0}]
[988,null,null,null,"System Generation",{"$f":"IF(Function=\"gen\",\"F105G\",IF(Function=\"TRN\",\"F105T\",IF(Function=\"DIS\",\"F105D\",IF(Function=\"RETAIL\",\"F105R\",IF(Function=\"MISC\",\"F105M\",\"ERR\")))))","v":"F105D"},null,{"$f":"+Distribution!H988+Transmission!H988+Generation!H988+Retail!H988+Misc!H988","v":750390.95937115303},{"$f":"+Distribution!I988+Transmission!I988+Generation!I988+Retail!I988+Misc!I988","v":318372.14084429952},{"$f":"+Distribution!J988+Transmission!J988+Generation!J988+Retail!J988+Misc!J988","v":101265.88929741688},{"$f":"+Distribution!K988+Transmission!K988+Generation!K988+Retail!K988+Misc!K988","v":160447.05911037276},{"$f":"+Distribution!L988+Transmission!L988+Generation!L988+Retail!L988+Misc!L988","v":63402.440576570261},{"$f":"+Distribution!M988+Transmission!M988+Generation!M988+Retail!M988+Misc!M988","v":78389.224955404221},{"$f":"+Distribution!N988+Transmission!N988+Generation!N988+Retail!N988+Misc!N988","v":26713.982041901461},{"$f":"+Distribution!O988+Transmission!O988+Generation!O988+Retail!O988+Misc!O988","v":1800.2225451880436},{"$f":"+Distribution!P988+Transmission!P988+Generation!P988+Retail!P988+Misc!P988","v":0},{"$f":"+Distribution!Q988+Transmission!Q988+Generation!Q988+Retail!Q988+Misc!Q988","v":0},{"$f":"ROUND(SUM(I988:Q988)-H988,0)","v":0}]
[989,null,null,null,"System Overheads",{"$f":"IF(Function=\"gen\",\"F102G\",IF(Function=\"TRN\",\"F102T\",IF(Function=\"DIS\",\"F102D\",IF(Function=\"RETAIL\",\"F102R\",IF(Function=\"MISC\",\"F102M\",\"ERR\")))))","v":"F102D"},null,{"$f":"+Distribution!H989+Transmission!H989+Generation!H989+Retail!H989+Misc!H989","v":7063921.0498090349},{"$f":"+Distribution!I989+Transmission!I989+Generation!I989+Retail!I989+Misc!I989","v":3345600.4820025228},{"$f":"+Distribution!J989+Transmission!J989+Generation!J989+Retail!J989+Misc!J989","v":984867.40649100405},{"$f":"+Distribution!K989+Transmission!K989+Generation!K989+Retail!K989+Misc!K989","v":1358069.6899282564},{"$f":"+Distribution!L989+Transmission!L989+Generation!L989+Retail!L989+Misc!L989","v":523169.60053054342},{"$f":"+Distribution!M989+Transmission!M989+Generation!M989+Retail!M989+Misc!M989","v":535002.06979718443},{"$f":"+Distribution!N989+Transmission!N989+Generation!N989+Retail!N989+Misc!N989","v":277365.66129577393},{"$f":"+Distribution!O989+Transmission!O989+Generation!O989+Retail!O989+Misc!O989","v":39846.139763749641},{"$f":"+Distribution!P989+Transmission!P989+Generation!P989+Retail!P989+Misc!P989","v":0},{"$f":"+Distribution!Q989+Transmission!Q989+Generation!Q989+Retail!Q989+Misc!Q989","v":0},{"$f":"ROUND(SUM(I989:Q989)-H989,0)","v":0}]
[990,null,null,null,"Customer - System","F42",null,{"$f":"+Distribution!H990+Transmission!H990+Generation!H990+Retail!H990+Misc!H990","v":853641.7740140548},{"$f":"+Distribution!I990+Transmission!I990+Generation!I990+Retail!I990+Misc!I990","v":688776.94446555816},{"$f":"+Distribution!J990+Transmission!J990+Generation!J990+Retail!J990+Misc!J990","v":116986.19115154426},{"$f":"+Distribution!K990+Transmission!K990+Generation!K990+Retail!K990+Misc!K990","v":7104.7734891532891},{"$f":"+Distribution!L990+Transmission!L990+Generation!L990+Retail!L990+Misc!L990","v":1457.1274451860311},{"$f":"+Distribution!M990+Transmission!M990+Generation!M990+Retail!M990+Misc!M990","v":25.161229158577928},{"$f":"+Distribution!N990+Transmission!N990+Generation!N990+Retail!N990+Misc!N990","v":20839.986170506803},{"$f":"+Distribution!O990+Transmission!O990+Generation!O990+Retail!O990+Misc!O990","v":18451.590062947667},{"$f":"+Distribution!P990+Transmission!P990+Generation!P990+Retail!P990+Misc!P990","v":0},{"$f":"+Distribution!Q990+Transmission!Q990+Generation!Q990+Retail!Q990+Misc!Q990","v":0},{"$f":"ROUND(SUM(I990:Q990)-H990,0)","v":0}]
[991,null,null,"Total Structures and Improvements",null,null,null,{"$f":"+Distribution!H991+Transmission!H991+Generation!H991+Retail!H991+Misc!H991","v":22580613.173194245},{"$f":"+Distribution!I991+Transmission!I991+Generation!I991+Retail!I991+Misc!I991","v":11996635.680604529},{"$f":"+Distribution!J991+Transmission!J991+Generation!J991+Retail!J991+Misc!J991","v":3238418.6336179045},{"$f":"+Distribution!K991+Transmission!K991+Generation!K991+Retail!K991+Misc!K991","v":3739516.4965905431},{"$f":"+Distribution!L991+Transmission!L991+Generation!L991+Retail!L991+Misc!L991","v":1395505.8161752275},{"$f":"+Distribution!M991+Transmission!M991+Generation!M991+Retail!M991+Misc!M991","v":1053141.0046566776},{"$f":"+Distribution!N991+Transmission!N991+Generation!N991+Retail!N991+Misc!N991","v":949533.76880370523},{"$f":"+Distribution!O991+Transmission!O991+Generation!O991+Retail!O991+Misc!O991","v":207861.77274565893},{"$f":"+Distribution!P991+Transmission!P991+Generation!P991+Retail!P991+Misc!P991","v":0},{"$f":"+Distribution!Q991+Transmission!Q991+Generation!Q991+Retail!Q991+Misc!Q991","v":0},{"$f":"ROUND(SUM(I991:Q991)-H991,0)","v":0}]
[992]
[993,null,"391","Office Furniture & Equipment"]
[994,null,null,null,"Situs",{"$f":"IF(Function=\"gen\",\"F107G\",IF(Function=\"TRN\",\"F107T\",IF(Function=\"DIS\",\"F107D\",IF(Function=\"RETAIL\",\"F107R\",IF(Function=\"MISC\",\"F107M\",\"ERR\")))))","v":"F107D"},null,{"$f":"+Distribution!H994+Transmission!H994+Generation!H994+Retail!H994+Misc!H994","v":1361940.78},{"$f":"+Distribution!I994+Transmission!I994+Generation!I994+Retail!I994+Misc!I994","v":748276.79766609124},{"$f":"+Distribution!J994+Transmission!J994+Generation!J994+Retail!J994+Misc!J994","v":199239.9030017429},{"$f":"+Distribution!K994+Transmission!K994+Generation!K994+Retail!K994+Misc!K994","v":216723.04074232891},{"$f":"+Distribution!L994+Transmission!L994+Generation!L994+Retail!L994+Misc!L994","v":79045.662261077989},{"$f":"+Distribution!M994+Transmission!M994+Generation!M994+Retail!M994+Misc!M994","v":43045.60170846551},{"$f":"+Distribution!N994+Transmission!N994+Generation!N994+Retail!N994+Misc!N994","v":61144.849753356408},{"$f":"+Distribution!O994+Transmission!O994+Generation!O994+Retail!O994+Misc!O994","v":14464.924866937108},{"$f":"+Distribution!P994+Transmission!P994+Generation!P994+Retail!P994+Misc!P994","v":0},{"$f":"+Distribution!Q994+Transmission!Q994+Generation!Q994+Retail!Q994+Misc!Q994","v":0},{"$f":"ROUND(SUM(I994:Q994)-H994,0)","v":0}]
[995,null,null,null,"System Generation",{"$f":"IF(Function=\"gen\",\"F105G\",IF(Function=\"TRN\",\"F105T\",IF(Function=\"DIS\",\"F105D\",IF(Function=\"RETAIL\",\"F105R\",IF(Function=\"MISC\",\"F105M\",\"ERR\")))))","v":"F105D"},null,{"$f":"+Distribution!H995+Transmission!H995+Generation!H995+Retail!H995+Misc!H995","v":260652.68361920427},{"$f":"+Distribution!I995+Transmission!I995+Generation!I995+Retail!I995+Misc!I995","v":110588.42309374452},{"$f":"+Distribution!J995+Transmission!J995+Generation!J995+Retail!J995+Misc!J995","v":35175.298255960923},{"$f":"+Distribution!K995+Transmission!K995+Generation!K995+Retail!K995+Misc!K995","v":55732.223334586546},{"$f":"+Distribution!L995+Transmission!L995+Generation!L995+Retail!L995+Misc!L995","v":22023.208139580191},{"$f":"+Distribution!M995+Transmission!M995+Generation!M995+Retail!M995+Misc!M995","v":27228.955248312759},{"$f":"+Distribution!N995+Transmission!N995+Generation!N995+Retail!N995+Misc!N995","v":9279.2577288138946},{"$f":"+Distribution!O995+Transmission!O995+Generation!O995+Retail!O995+Misc!O995","v":625.31781820544188},{"$f":"+Distribution!P995+Transmission!P995+Generation!P995+Retail!P995+Misc!P995","v":0},{"$f":"+Distribution!Q995+Transmission!Q995+Generation!Q995+Retail!Q995+Misc!Q995","v":0},0]
[{"$f":"+A995+1","v":996},null,null,null,"System Overheads",{"$f":"IF(Function=\"gen\",\"F102G\",IF(Function=\"TRN\",\"F102T\",IF(Function=\"DIS\",\"F102D\",IF(Function=\"RETAIL\",\"F102R\",IF(Function=\"MISC\",\"F102M\",\"ERR\")))))","v":"F102D"},null,{"$f":"+Distribution!H996+Transmission!H996+Generation!H996+Retail!H996+Misc!H996","v":3788468.7021789225},{"$f":"+Distribution!I996+Transmission!I996+Generation!I996+Retail!I996+Misc!I996","v":1794287.1426067143},{"$f":"+Distribution!J996+Transmission!J996+Generation!J996+Retail!J996+Misc!J996","v":528196.63738854532},{"$f":"+Distribution!K996+Transmission!K996+Generation!K996+Retail!K996+Misc!K996","v":728349.66294111148},{"$f":"+Distribution!L996+Transmission!L996+Generation!L996+Retail!L996+Misc!L996","v":280582.36262351694},{"$f":"+Distribution!M996+Transmission!M996+Generation!M996+Retail!M996+Misc!M996","v":286928.2630335131},{"$f":"+Distribution!N996+Transmission!N996+Generation!N996+Retail!N996+Misc!N996","v":148754.65332481399},{"$f":"+Distribution!O996+Transmission!O996+Generation!O996+Retail!O996+Misc!O996","v":21369.980260707111},{"$f":"+Distribution!P996+Transmission!P996+Generation!P996+Retail!P996+Misc!P996","v":0},{"$f":"+Distribution!Q996+Transmission!Q996+Generation!Q996+Retail!Q996+Misc!Q996","v":0},0]
[997,null,null,null,"Customer - System","F42",null,{"$f":"+Distribution!H997+Transmission!H997+Generation!H997+Retail!H997+Misc!H997","v":598562.21153627359},{"$f":"+Distribution!I997+Transmission!I997+Generation!I997+Retail!I997+Misc!I997","v":482961.19482985104},{"$f":"+Distribution!J997+Transmission!J997+Generation!J997+Retail!J997+Misc!J997","v":82029.154882620205},{"$f":"+Distribution!K997+Transmission!K997+Generation!K997+Retail!K997+Misc!K997","v":4981.7722862070968},{"$f":"+Distribution!L997+Transmission!L997+Generation!L997+Retail!L997+Misc!L997","v":1021.7183045992674},{"$f":"+Distribution!M997+Transmission!M997+Generation!M997+Retail!M997+Misc!M997","v":17.642717857293395},{"$f":"+Distribution!N997+Transmission!N997+Generation!N997+Retail!N997+Misc!N997","v":14612.7199843415},{"$f":"+Distribution!O997+Transmission!O997+Generation!O997+Retail!O997+Misc!O997","v":12938.008530797186},{"$f":"+Distribution!P997+Transmission!P997+Generation!P997+Retail!P997+Misc!P997","v":0},{"$f":"+Distribution!Q997+Transmission!Q997+Generation!Q997+Retail!Q997+Misc!Q997","v":0},0]
[998,null,null,null,"Energy",{"$f":"IF(Classification=\"DEMAND\",\"F12\",IF(Classification=\"ENERGY\",\"F30\",\"F10\"))","v":"F10"},null,{"$f":"+Distribution!H998+Transmission!H998+Generation!H998+Retail!H998+Misc!H998","v":1363.1532752806384},{"$f":"+Distribution!I998+Transmission!I998+Generation!I998+Retail!I998+Misc!I998","v":578.35188594717397},{"$f":"+Distribution!J998+Transmission!J998+Generation!J998+Retail!J998+Misc!J998","v":183.95867773468674},{"$f":"+Distribution!K998+Transmission!K998+Generation!K998+Retail!K998+Misc!K998","v":291.46664335980097},{"$f":"+Distribution!L998+Transmission!L998+Generation!L998+Retail!L998+Misc!L998","v":115.1762870453104},{"$f":"+Distribution!M998+Transmission!M998+Generation!M998+Retail!M998+Misc!M998","v":142.4011409122233},{"$f":"+Distribution!N998+Transmission!N998+Generation!N998+Retail!N998+Misc!N998","v":48.528372658864441},{"$f":"+Distribution!O998+Transmission!O998+Generation!O998+Retail!O998+Misc!O998","v":3.2702676225785381},{"$f":"+Distribution!P998+Transmission!P998+Generation!P998+Retail!P998+Misc!P998","v":0},{"$f":"+Distribution!Q998+Transmission!Q998+Generation!Q998+Retail!Q998+Misc!Q998","v":0},0]
[999,null,null,null,"SSGCH",{"$f":"IF(Function=\"gen\",\"F105G\",IF(Function=\"TRN\",\"F105T\",IF(Function=\"DIS\",\"F105D\",IF(Function=\"RETAIL\",\"F105R\",IF(Function=\"MISC\",\"F105M\",\"ERR\")))))","v":"F105D"},null,{"$f":"+Distribution!H999+Transmission!H999+Generation!H999+Retail!H999+Misc!H999","v":0},{"$f":"+Distribution!I999+Transmission!I999+Generation!I999+Retail!I999+Misc!I999","v":0},{"$f":"+Distribution!J999+Transmission!J999+Generation!J999+Retail!J999+Misc!J999","v":0},{"$f":"+Distribution!K999+Transmission!K999+Generation!K999+Retail!K999+Misc!K999","v":0},{"$f":"+Distribution!L999+Transmission!L999+Generation!L999+Retail!L999+Misc!L999","v":0},{"$f":"+Distribution!M999+Transmission!M999+Generation!M999+Retail!M999+Misc!M999","v":0},{"$f":"+Distribution!N999+Transmission!N999+Generation!N999+Retail!N999+Misc!N999","v":0},{"$f":"+Distribution!O999+Transmission!O999+Generation!O999+Retail!O999+Misc!O999","v":0},{"$f":"+Distribution!P999+Transmission!P999+Generation!P999+Retail!P999+Misc!P999","v":0},{"$f":"+Distribution!Q999+Transmission!Q999+Generation!Q999+Retail!Q999+Misc!Q999","v":0},0]
[1000,null,null,null,"SSGCT",{"$f":"IF(Function=\"gen\",\"F105G\",IF(Function=\"TRN\",\"F105T\",IF(Function=\"DIS\",\"F105D\",IF(Function=\"RETAIL\",\"F105R\",IF(Function=\"MISC\",\"F105M\",\"ERR\")))))","v":"F105D"},null,{"$f":"+Distribution!H1000+Transmission!H1000+Generation!H1000+Retail!H1000+Misc!H1000","v":0},{"$f":"+Distribution!I1000+Transmission!I1000+Generation!I1000+Retail!I1000+Misc!I1000","v":0},{"$f":"+Distribution!J1000+Transmission!J1000+Generation!J1000+Retail!J1000+Misc!J1000","v":0},{"$f":"+Distribution!K1000+Transmission!K1000+Generation!K1000+Retail!K1000+Misc!K1000","v":0},{"$f":"+Distribution!L1000+Transmission!L1000+Generation!L1000+Retail!L1000+Misc!L1000","v":0},{"$f":"+Distribution!M1000+Transmission!M1000+Generation!M1000+Retail!M1000+Misc!M1000","v":0},{"$f":"+Distribution!N1000+Transmission!N1000+Generation!N1000+Retail!N1000+Misc!N1000","v":0},{"$f":"+Distribution!O1000+Transmission!O1000+Generation!O1000+Retail!O1000+Misc!O1000","v":0},{"$f":"+Distribution!P1000+Transmission!P1000+Generation!P1000+Retail!P1000+Misc!P1000","v":0},{"$f":"+Distribution!Q1000+Transmission!Q1000+Generation!Q1000+Retail!Q1000+Misc!Q1000","v":0},0]
[1001,null,null,"Total Office Furniture & Equipment",null,null,null,{"$f":"+Distribution!H1001+Transmission!H1001+Generation!H1001+Retail!H1001+Misc!H1001","v":6010987.5306096803},{"$f":"+Distribution!I1001+Transmission!I1001+Generation!I1001+Retail!I1001+Misc!I1001","v":3136691.9100823482},{"$f":"+Distribution!J1001+Transmission!J1001+Generation!J1001+Retail!J1001+Misc!J1001","v":844824.95220660407},{"$f":"+Distribution!K1001+Transmission!K1001+Generation!K1001+Retail!K1001+Misc!K1001","v":1006078.1659475939},{"$f":"+Distribution!L1001+Transmission!L1001+Generation!L1001+Retail!L1001+Misc!L1001","v":382788.12761581974},{"$f":"+Distribution!M1001+Transmission!M1001+Generation!M1001+Retail!M1001+Misc!M1001","v":357362.8638490609},{"$f":"+Distribution!N1001+Transmission!N1001+Generation!N1001+Retail!N1001+Misc!N1001","v":233840.00916398465},{"$f":"+Distribution!O1001+Transmission!O1001+Generation!O1001+Retail!O1001+Misc!O1001","v":49401.501744269422},{"$f":"+Distribution!P1001+Transmission!P1001+Generation!P1001+Retail!P1001+Misc!P1001","v":0},{"$f":"+Distribution!Q1001+Transmission!Q1001+Generation!Q1001+Retail!Q1001+Misc!Q1001","v":0},0]
[1002]
[1003,null,"392","Transportation Equipment"]
[1004,null,null,null,"Situs",{"$f":"IF(Function=\"gen\",\"F107G\",IF(Function=\"TRN\",\"F107T\",IF(Function=\"DIS\",\"F107D\",IF(Function=\"RETAIL\",\"F107R\",IF(Function=\"MISC\",\"F107M\",\"ERR\")))))","v":"F107D"},null,{"$f":"+Distribution!H1004+Transmission!H1004+Generation!H1004+Retail!H1004+Misc!H1004","v":5157969.76},{"$f":"+Distribution!I1004+Transmission!I1004+Generation!I1004+Retail!I1004+Misc!I1004","v":2833889.0729678692},{"$f":"+Distribution!J1004+Transmission!J1004+Generation!J1004+Retail!J1004+Misc!J1004","v":754565.40384107083},{"$f":"+Distribution!K1004+Transmission!K1004+Generation!K1004+Retail!K1004+Misc!K1004","v":820777.89787906955},{"$f":"+Distribution!L1004+Transmission!L1004+Generation!L1004+Retail!L1004+Misc!L1004","v":299363.33619572903},{"$f":"+Distribution!M1004+Transmission!M1004+Generation!M1004+Retail!M1004+Misc!M1004","v":163023.17631848092},{"$f":"+Distribution!N1004+Transmission!N1004+Generation!N1004+Retail!N1004+Misc!N1004","v":231569.01580372368},{"$f":"+Distribution!O1004+Transmission!O1004+Generation!O1004+Retail!O1004+Misc!O1004","v":54781.856994056398},{"$f":"+Distribution!P1004+Transmission!P1004+Generation!P1004+Retail!P1004+Misc!P1004","v":0},{"$f":"+Distribution!Q1004+Transmission!Q1004+Generation!Q1004+Retail!Q1004+Misc!Q1004","v":0},{"$f":"ROUND(SUM(I1004:Q1004)-H1004,0)","v":0}]
[1005,null,null,null,"System Generation",{"$f":"IF(Function=\"gen\",\"F105G\",IF(Function=\"TRN\",\"F105T\",IF(Function=\"DIS\",\"F105D\",IF(Function=\"RETAIL\",\"F105R\",IF(Function=\"MISC\",\"F105M\",\"ERR\")))))","v":"F105D"},null,{"$f":"+Distribution!H1005+Transmission!H1005+Generation!H1005+Retail!H1005+Misc!H1005","v":1364970.4383902599},{"$f":"+Distribution!I1005+Transmission!I1005+Generation!I1005+Retail!I1005+Misc!I1005","v":579122.86286560365},{"$f":"+Distribution!J1005+Transmission!J1005+Generation!J1005+Retail!J1005+Misc!J1005","v":184203.90542033009},{"$f":"+Distribution!K1005+Transmission!K1005+Generation!K1005+Retail!K1005+Misc!K1005","v":291855.18545671942},{"$f":"+Distribution!L1005+Transmission!L1005+Generation!L1005+Retail!L1005+Misc!L1005","v":115329.82377791214},{"$f":"+Distribution!M1005+Transmission!M1005+Generation!M1005+Retail!M1005+Misc!M1005","v":142590.96996866632},{"$f":"+Distribution!N1005+Transmission!N1005+Generation!N1005+Retail!N1005+Misc!N1005","v":48593.063820280251},{"$f":"+Distribution!O1005+Transmission!O1005+Generation!O1005+Retail!O1005+Misc!O1005","v":3274.6270807481378},{"$f":"+Distribution!P1005+Transmission!P1005+Generation!P1005+Retail!P1005+Misc!P1005","v":0},{"$f":"+Distribution!Q1005+Transmission!Q1005+Generation!Q1005+Retail!Q1005+Misc!Q1005","v":0},0]
[1006,null,null,null,"System Overheads",{"$f":"IF(Function=\"gen\",\"F102G\",IF(Function=\"TRN\",\"F102T\",IF(Function=\"DIS\",\"F102D\",IF(Function=\"RETAIL\",\"F102R\",IF(Function=\"MISC\",\"F102M\",\"ERR\")))))","v":"F102D"},null,{"$f":"+Distribution!H1006+Transmission!H1006+Generation!H1006+Retail!H1006+Misc!H1006","v":505567.10562972917},{"$f":"+Distribution!I1006+Transmission!I1006+Generation!I1006+Retail!I1006+Misc!I1006","v":239445.7044965371},{"$f":"+Distribution!J1006+Transmission!J1006+Generation!J1006+Retail!J1006+Misc!J1006","v":70487.277620716821},{"$f":"+Distribution!K1006+Transmission!K1006+Generation!K1006+Retail!K1006+Misc!K1006","v":97197.485297355321},{"$f":"+Distribution!L1006+Transmission!L1006+Generation!L1006+Retail!L1006+Misc!L1006","v":37443.416882588019},{"$f":"+Distribution!M1006+Transmission!M1006+Generation!M1006+Retail!M1006+Misc!M1006","v":38290.270520589838},{"$f":"+Distribution!N1006+Transmission!N1006+Generation!N1006+Retail!N1006+Misc!N1006","v":19851.149750062832},{"$f":"+Distribution!O1006+Transmission!O1006+Generation!O1006+Retail!O1006+Misc!O1006","v":2851.8010618792464},{"$f":"+Distribution!P1006+Transmission!P1006+Generation!P1006+Retail!P1006+Misc!P1006","v":0},{"$f":"+Distribution!Q1006+Transmission!Q1006+Generation!Q1006+Retail!Q1006+Misc!Q1006","v":0},0]
[1007,null,null,null,"Customer - System","F42",null,{"$f":"+Distribution!H1007+Transmission!H1007+Generation!H1007+Retail!H1007+Misc!H1007","v":0},{"$f":"+Distribution!I1007+Transmission!I1007+Generation!I1007+Retail!I1007+Misc!I1007","v":0},{"$f":"+Distribution!J1007+Transmission!J1007+Generation!J1007+Retail!J1007+Misc!J1007","v":0},{"$f":"+Distribution!K1007+Transmission!K1007+Generation!K1007+Retail!K1007+Misc!K1007","v":0},{"$f":"+Distribution!L1007+Transmission!L1007+Generation!L1007+Retail!L1007+Misc!L1007","v":0},{"$f":"+Distribution!M1007+Transmission!M1007+Generation!M1007+Retail!M1007+Misc!M1007","v":0},{"$f":"+Distribution!N1007+Transmission!N1007+Generation!N1007+Retail!N1007+Misc!N1007","v":0},{"$f":"+Distribution!O1007+Transmission!O1007+Generation!O1007+Retail!O1007+Misc!O1007","v":0},{"$f":"+Distribution!P1007+Transmission!P1007+Generation!P1007+Retail!P1007+Misc!P1007","v":0},{"$f":"+Distribution!Q1007+Transmission!Q1007+Generation!Q1007+Retail!Q1007+Misc!Q1007","v":0},0]
[1008,null,null,null,"Energy",{"$f":"IF(Classification=\"DEMAND\",\"F12\",IF(Classification=\"ENERGY\",\"F30\",\"F10\"))","v":"F10"},null,{"$f":"+Distribution!H1008+Transmission!H1008+Generation!H1008+Retail!H1008+Misc!H1008","v":0},{"$f":"+Distribution!I1008+Transmission!I1008+Generation!I1008+Retail!I1008+Misc!I1008","v":0},{"$f":"+Distribution!J1008+Transmission!J1008+Generation!J1008+Retail!J1008+Misc!J1008","v":0},{"$f":"+Distribution!K1008+Transmission!K1008+Generation!K1008+Retail!K1008+Misc!K1008","v":0},{"$f":"+Distribution!L1008+Transmission!L1008+Generation!L1008+Retail!L1008+Misc!L1008","v":0},{"$f":"+Distribution!M1008+Transmission!M1008+Generation!M1008+Retail!M1008+Misc!M1008","v":0},{"$f":"+Distribution!N1008+Transmission!N1008+Generation!N1008+Retail!N1008+Misc!N1008","v":0},{"$f":"+Distribution!O1008+Transmission!O1008+Generation!O1008+Retail!O1008+Misc!O1008","v":0},{"$f":"+Distribution!P1008+Transmission!P1008+Generation!P1008+Retail!P1008+Misc!P1008","v":0},{"$f":"+Distribution!Q1008+Transmission!Q1008+Generation!Q1008+Retail!Q1008+Misc!Q1008","v":0},0]
[1009,null,null,null,"SSGCH",{"$f":"IF(Function=\"gen\",\"F105G\",IF(Function=\"TRN\",\"F105T\",IF(Function=\"DIS\",\"F105D\",IF(Function=\"RETAIL\",\"F105R\",IF(Function=\"MISC\",\"F105M\",\"ERR\")))))","v":"F105D"},null,{"$f":"+Distribution!H1009+Transmission!H1009+Generation!H1009+Retail!H1009+Misc!H1009","v":0},{"$f":"+Distribution!I1009+Transmission!I1009+Generation!I1009+Retail!I1009+Misc!I1009","v":0},{"$f":"+Distribution!J1009+Transmission!J1009+Generation!J1009+Retail!J1009+Misc!J1009","v":0},{"$f":"+Distribution!K1009+Transmission!K1009+Generation!K1009+Retail!K1009+Misc!K1009","v":0},{"$f":"+Distribution!L1009+Transmission!L1009+Generation!L1009+Retail!L1009+Misc!L1009","v":0},{"$f":"+Distribution!M1009+Transmission!M1009+Generation!M1009+Retail!M1009+Misc!M1009","v":0},{"$f":"+Distribution!N1009+Transmission!N1009+Generation!N1009+Retail!N1009+Misc!N1009","v":0},{"$f":"+Distribution!O1009+Transmission!O1009+Generation!O1009+Retail!O1009+Misc!O1009","v":0},{"$f":"+Distribution!P1009+Transmission!P1009+Generation!P1009+Retail!P1009+Misc!P1009","v":0},{"$f":"+Distribution!Q1009+Transmission!Q1009+Generation!Q1009+Retail!Q1009+Misc!Q1009","v":0},0]
[1010,null,null,null,"SSGCT",{"$f":"IF(Function=\"gen\",\"F105G\",IF(Function=\"TRN\",\"F105T\",IF(Function=\"DIS\",\"F105D\",IF(Function=\"RETAIL\",\"F105R\",IF(Function=\"MISC\",\"F105M\",\"ERR\")))))","v":"F105D"},null,{"$f":"+Distribution!H1010+Transmission!H1010+Generation!H1010+Retail!H1010+Misc!H1010","v":0},{"$f":"+Distribution!I1010+Transmission!I1010+Generation!I1010+Retail!I1010+Misc!I1010","v":0},{"$f":"+Distribution!J1010+Transmission!J1010+Generation!J1010+Retail!J1010+Misc!J1010","v":0},{"$f":"+Distribution!K1010+Transmission!K1010+Generation!K1010+Retail!K1010+Misc!K1010","v":0},{"$f":"+Distribution!L1010+Transmission!L1010+Generation!L1010+Retail!L1010+Misc!L1010","v":0},{"$f":"+Distribution!M1010+Transmission!M1010+Generation!M1010+Retail!M1010+Misc!M1010","v":0},{"$f":"+Distribution!N1010+Transmission!N1010+Generation!N1010+Retail!N1010+Misc!N1010","v":0},{"$f":"+Distribution!O1010+Transmission!O1010+Generation!O1010+Retail!O1010+Misc!O1010","v":0},{"$f":"+Distribution!P1010+Transmission!P1010+Generation!P1010+Retail!P1010+Misc!P1010","v":0},{"$f":"+Distribution!Q1010+Transmission!Q1010+Generation!Q1010+Retail!Q1010+Misc!Q1010","v":0},0]
[1011,null,null,"Total Transportation Equipment",null,null,null,{"$f":"+Distribution!H1011+Transmission!H1011+Generation!H1011+Retail!H1011+Misc!H1011","v":7028507.3040199885},{"$f":"+Distribution!I1011+Transmission!I1011+Generation!I1011+Retail!I1011+Misc!I1011","v":3652457.6403300101},{"$f":"+Distribution!J1011+Transmission!J1011+Generation!J1011+Retail!J1011+Misc!J1011","v":1009256.5868821177},{"$f":"+Distribution!K1011+Transmission!K1011+Generation!K1011+Retail!K1011+Misc!K1011","v":1209830.5686331443},{"$f":"+Distribution!L1011+Transmission!L1011+Generation!L1011+Retail!L1011+Misc!L1011","v":452136.57685622922},{"$f":"+Distribution!M1011+Transmission!M1011+Generation!M1011+Retail!M1011+Misc!M1011","v":343904.41680773709},{"$f":"+Distribution!N1011+Transmission!N1011+Generation!N1011+Retail!N1011+Misc!N1011","v":300013.22937406681},{"$f":"+Distribution!O1011+Transmission!O1011+Generation!O1011+Retail!O1011+Misc!O1011","v":60908.285136683779},{"$f":"+Distribution!P1011+Transmission!P1011+Generation!P1011+Retail!P1011+Misc!P1011","v":0},{"$f":"+Distribution!Q1011+Transmission!Q1011+Generation!Q1011+Retail!Q1011+Misc!Q1011","v":0},0]
[1012]
[1013,null,"393","Stores Equipment"]
[1014,null,null,null,"Situs",{"$f":"IF(Function=\"gen\",\"F107G\",IF(Function=\"TRN\",\"F107T\",IF(Function=\"DIS\",\"F107D\",IF(Function=\"RETAIL\",\"F107R\",IF(Function=\"MISC\",\"F107M\",\"ERR\")))))","v":"F107D"},null,{"$f":"+Distribution!H1014+Transmission!H1014+Generation!H1014+Retail!H1014+Misc!H1014","v":597931.29},{"$f":"+Distribution!I1014+Transmission!I1014+Generation!I1014+Retail!I1014+Misc!I1014","v":328515.09953726101},{"$f":"+Distribution!J1014+Transmission!J1014+Generation!J1014+Retail!J1014+Misc!J1014","v":87472.064843602813},{"$f":"+Distribution!K1014+Transmission!K1014+Generation!K1014+Retail!K1014+Misc!K1014","v":95147.666643613731},{"$f":"+Distribution!L1014+Transmission!L1014+Generation!L1014+Retail!L1014+Misc!L1014","v":34703.325943930307},{"$f":"+Distribution!M1014+Transmission!M1014+Generation!M1014+Retail!M1014+Misc!M1014","v":18898.260876195356},{"$f":"+Distribution!N1014+Transmission!N1014+Generation!N1014+Retail!N1014+Misc!N1014","v":26844.352872582742},{"$f":"+Distribution!O1014+Transmission!O1014+Generation!O1014+Retail!O1014+Misc!O1014","v":6350.5192828140325},{"$f":"+Distribution!P1014+Transmission!P1014+Generation!P1014+Retail!P1014+Misc!P1014","v":0},{"$f":"+Distribution!Q1014+Transmission!Q1014+Generation!Q1014+Retail!Q1014+Misc!Q1014","v":0},{"$f":"ROUND(SUM(I1014:Q1014)-H1014,0)","v":0}]
[1015,null,null,null,"System Generation",{"$f":"IF(Function=\"gen\",\"F105G\",IF(Function=\"TRN\",\"F105T\",IF(Function=\"DIS\",\"F105D\",IF(Function=\"RETAIL\",\"F105R\",IF(Function=\"MISC\",\"F105M\",\"ERR\")))))","v":"F105D"},null,{"$f":"+Distribution!H1015+Transmission!H1015+Generation!H1015+Retail!H1015+Misc!H1015","v":271595.7755212558},{"$f":"+Distribution!I1015+Transmission!I1015+Generation!I1015+Retail!I1015+Misc!I1015","v":115231.30365194277},{"$f":"+Distribution!J1015+Transmission!J1015+Generation!J1015+Retail!J1015+Misc!J1015","v":36652.077685784112},{"$f":"+Distribution!K1015+Transmission!K1015+Generation!K1015+Retail!K1015+Misc!K1015","v":58072.052847897969},{"$f":"+Distribution!L1015+Transmission!L1015+Generation!L1015+Retail!L1015+Misc!L1015","v":22947.817805220624},{"$f":"+Distribution!M1015+Transmission!M1015+Generation!M1015+Retail!M1015+Misc!M1015","v":28372.119997440939},{"$f":"+Distribution!N1015+Transmission!N1015+Generation!N1015+Retail!N1015+Misc!N1015","v":9668.8327322218047},{"$f":"+Distribution!O1015+Transmission!O1015+Generation!O1015+Retail!O1015+Misc!O1015","v":651.57080074756482},{"$f":"+Distribution!P1015+Transmission!P1015+Generation!P1015+Retail!P1015+Misc!P1015","v":0},{"$f":"+Distribution!Q1015+Transmission!Q1015+Generation!Q1015+Retail!Q1015+Misc!Q1015","v":0},{"$f":"ROUND(SUM(I1015:Q1015)-H1015,0)","v":0}]
[1016,null,null,null,"System Overheads",{"$f":"IF(Function=\"gen\",\"F102G\",IF(Function=\"TRN\",\"F102T\",IF(Function=\"DIS\",\"F102D\",IF(Function=\"RETAIL\",\"F102R\",IF(Function=\"MISC\",\"F102M\",\"ERR\")))))","v":"F102D"},null,{"$f":"+Distribution!H1016+Transmission!H1016+Generation!H1016+Retail!H1016+Misc!H1016","v":21834.236139759705},{"$f":"+Distribution!I1016+Transmission!I1016+Generation!I1016+Retail!I1016+Misc!I1016","v":10341.088248050532},{"$f":"+Distribution!J1016+Transmission!J1016+Generation!J1016+Retail!J1016+Misc!J1016","v":3044.177216598227},{"$f":"+Distribution!K1016+Transmission!K1016+Generation!K1016+Retail!K1016+Misc!K1016","v":4197.7273096710815},{"$f":"+Distribution!L1016+Transmission!L1016+Generation!L1016+Retail!L1016+Misc!L1016","v":1617.0917707859219},{"$f":"+Distribution!M1016+Transmission!M1016+Generation!M1016+Retail!M1016+Misc!M1016","v":1653.6653573623564},{"$f":"+Distribution!N1016+Transmission!N1016+Generation!N1016+Retail!N1016+Misc!N1016","v":857.3237587297574},{"$f":"+Distribution!O1016+Transmission!O1016+Generation!O1016+Retail!O1016+Misc!O1016","v":123.16247856183193},{"$f":"+Distribution!P1016+Transmission!P1016+Generation!P1016+Retail!P1016+Misc!P1016","v":0},{"$f":"+Distribution!Q1016+Transmission!Q1016+Generation!Q1016+Retail!Q1016+Misc!Q1016","v":0},{"$f":"ROUND(SUM(I1016:Q1016)-H1016,0)","v":0}]
[1017,null,null,null,"SSGCT",{"$f":"IF(Function=\"gen\",\"F105G\",IF(Function=\"TRN\",\"F105T\",IF(Function=\"DIS\",\"F105D\",IF(Function=\"RETAIL\",\"F105R\",IF(Function=\"MISC\",\"F105M\",\"ERR\")))))","v":"F105D"},null,{"$f":"+Distribution!H1017+Transmission!H1017+Generation!H1017+Retail!H1017+Misc!H1017","v":0},{"$f":"+Distribution!I1017+Transmission!I1017+Generation!I1017+Retail!I1017+Misc!I1017","v":0},{"$f":"+Distribution!J1017+Transmission!J1017+Generation!J1017+Retail!J1017+Misc!J1017","v":0},{"$f":"+Distribution!K1017+Transmission!K1017+Generation!K1017+Retail!K1017+Misc!K1017","v":0},{"$f":"+Distribution!L1017+Transmission!L1017+Generation!L1017+Retail!L1017+Misc!L1017","v":0},{"$f":"+Distribution!M1017+Transmission!M1017+Generation!M1017+Retail!M1017+Misc!M1017","v":0},{"$f":"+Distribution!N1017+Transmission!N1017+Generation!N1017+Retail!N1017+Misc!N1017","v":0},{"$f":"+Distribution!O1017+Transmission!O1017+Generation!O1017+Retail!O1017+Misc!O1017","v":0},{"$f":"+Distribution!P1017+Transmission!P1017+Generation!P1017+Retail!P1017+Misc!P1017","v":0},{"$f":"+Distribution!Q1017+Transmission!Q1017+Generation!Q1017+Retail!Q1017+Misc!Q1017","v":0},{"$f":"ROUND(SUM(I1017:Q1017)-H1017,0)","v":0}]
[1018,null,null,"Total Stores Equipment",null,null,null,{"$f":"+Distribution!H1018+Transmission!H1018+Generation!H1018+Retail!H1018+Misc!H1018","v":891361.30166101549},{"$f":"+Distribution!I1018+Transmission!I1018+Generation!I1018+Retail!I1018+Misc!I1018","v":454087.49143725436},{"$f":"+Distribution!J1018+Transmission!J1018+Generation!J1018+Retail!J1018+Misc!J1018","v":127168.31974598515},{"$f":"+Distribution!K1018+Transmission!K1018+Generation!K1018+Retail!K1018+Misc!K1018","v":157417.44680118276},{"$f":"+Distribution!L1018+Transmission!L1018+Generation!L1018+Retail!L1018+Misc!L1018","v":59268.235519936847},{"$f":"+Distribution!M1018+Transmission!M1018+Generation!M1018+Retail!M1018+Misc!M1018","v":48924.046230998661},{"$f":"+Distribution!N1018+Transmission!N1018+Generation!N1018+Retail!N1018+Misc!N1018","v":37370.509363534307},{"$f":"+Distribution!O1018+Transmission!O1018+Generation!O1018+Retail!O1018+Misc!O1018","v":7125.252562123429},{"$f":"+Distribution!P1018+Transmission!P1018+Generation!P1018+Retail!P1018+Misc!P1018","v":0},{"$f":"+Distribution!Q1018+Transmission!Q1018+Generation!Q1018+Retail!Q1018+Misc!Q1018","v":0},{"$f":"ROUND(SUM(I1018:Q1018)-H1018,0)","v":0}]
[1019]
[1020,null,"394","Tools, Shop & Garage Equipment"]
[1021,null,null,null,"Situs",{"$f":"IF(Function=\"gen\",\"F107G\",IF(Function=\"TRN\",\"F107T\",IF(Function=\"DIS\",\"F107D\",IF(Function=\"RETAIL\",\"F107R\",IF(Function=\"MISC\",\"F107M\",\"ERR\")))))","v":"F107D"},null,{"$f":"+Distribution!H1021+Transmission!H1021+Generation!H1021+Retail!H1021+Misc!H1021","v":2904081.83},{"$f":"+Distribution!I1021+Transmission!I1021+Generation!I1021+Retail!I1021+Misc!I1021","v":1595559.1343058851},{"$f":"+Distribution!J1021+Transmission!J1021+Generation!J1021+Retail!J1021+Misc!J1021","v":424841.51338674501},{"$f":"+Distribution!K1021+Transmission!K1021+Generation!K1021+Retail!K1021+Misc!K1021","v":462121.00702509773},{"$f":"+Distribution!L1021+Transmission!L1021+Generation!L1021+Retail!L1021+Misc!L1021","v":168549.96552251949},{"$f":"+Distribution!M1021+Transmission!M1021+Generation!M1021+Retail!M1021+Misc!M1021","v":91786.626569014014},{"$f":"+Distribution!N1021+Transmission!N1021+Generation!N1021+Retail!N1021+Misc!N1021","v":130379.85922324928},{"$f":"+Distribution!O1021+Transmission!O1021+Generation!O1021+Retail!O1021+Misc!O1021","v":30843.723967489412},{"$f":"+Distribution!P1021+Transmission!P1021+Generation!P1021+Retail!P1021+Misc!P1021","v":0},{"$f":"+Distribution!Q1021+Transmission!Q1021+Generation!Q1021+Retail!Q1021+Misc!Q1021","v":0},{"$f":"ROUND(SUM(I1021:Q1021)-H1021,0)","v":0}]
[1022,null,null,null,"System Generation",{"$f":"IF(Function=\"gen\",\"F105G\",IF(Function=\"TRN\",\"F105T\",IF(Function=\"DIS\",\"F105D\",IF(Function=\"RETAIL\",\"F105R\",IF(Function=\"MISC\",\"F105M\",\"ERR\")))))","v":"F105D"},null,{"$f":"+Distribution!H1022+Transmission!H1022+Generation!H1022+Retail!H1022+Misc!H1022","v":1256119.9990852596},{"$f":"+Distribution!I1022+Transmission!I1022+Generation!I1022+Retail!I1022+Misc!I1022","v":532940.34032772935},{"$f":"+Distribution!J1022+Transmission!J1022+Generation!J1022+Retail!J1022+Misc!J1022","v":169514.44734653781},{"$f":"+Distribution!K1022+Transmission!K1022+Generation!K1022+Retail!K1022+Misc!K1022","v":268581.00730831089},{"$f":"+Distribution!L1022+Transmission!L1022+Generation!L1022+Retail!L1022+Misc!L1022","v":106132.77332896698},{"$f":"+Distribution!M1022+Transmission!M1022+Generation!M1022+Retail!M1022+Misc!M1022","v":131219.96200726327},{"$f":"+Distribution!N1022+Transmission!N1022+Generation!N1022+Retail!N1022+Misc!N1022","v":44717.978913495535},{"$f":"+Distribution!O1022+Transmission!O1022+Generation!O1022+Retail!O1022+Misc!O1022","v":3013.489852955975},{"$f":"+Distribution!P1022+Transmission!P1022+Generation!P1022+Retail!P1022+Misc!P1022","v":0},{"$f":"+Distribution!Q1022+Transmission!Q1022+Generation!Q1022+Retail!Q1022+Misc!Q1022","v":0},0]
[1023,null,null,null,"System Overheads",{"$f":"IF(Function=\"gen\",\"F102G\",IF(Function=\"TRN\",\"F102T\",IF(Function=\"DIS\",\"F102D\",IF(Function=\"RETAIL\",\"F102R\",IF(Function=\"MISC\",\"F102M\",\"ERR\")))))","v":"F102D"},null,{"$f":"+Distribution!H1023+Transmission!H1023+Generation!H1023+Retail!H1023+Misc!H1023","v":258603.51782296374},{"$f":"+Distribution!I1023+Transmission!I1023+Generation!I1023+Retail!I1023+Misc!I1023","v":122479.29270096312},{"$f":"+Distribution!J1023+Transmission!J1023+Generation!J1023+Retail!J1023+Misc!J1023","v":36055.071130025965},{"$f":"+Distribution!K1023+Transmission!K1023+Generation!K1023+Retail!K1023+Misc!K1023","v":49717.656353716331},{"$f":"+Distribution!L1023+Transmission!L1023+Generation!L1023+Retail!L1023+Misc!L1023","v":19152.747908881389},{"$f":"+Distribution!M1023+Transmission!M1023+Generation!M1023+Retail!M1023+Misc!M1023","v":19585.923500073506},{"$f":"+Distribution!N1023+Transmission!N1023+Generation!N1023+Retail!N1023+Misc!N1023","v":10154.096461244972},{"$f":"+Distribution!O1023+Transmission!O1023+Generation!O1023+Retail!O1023+Misc!O1023","v":1458.7297680584497},{"$f":"+Distribution!P1023+Transmission!P1023+Generation!P1023+Retail!P1023+Misc!P1023","v":0},{"$f":"+Distribution!Q1023+Transmission!Q1023+Generation!Q1023+Retail!Q1023+Misc!Q1023","v":0},0]
[1024,null,null,null,"Energy",{"$f":"IF(Classification=\"DEMAND\",\"F12\",IF(Classification=\"ENERGY\",\"F30\",\"F10\"))","v":"F10"},null,{"$f":"+Distribution!H1024+Transmission!H1024+Generation!H1024+Retail!H1024+Misc!H1024","v":0},{"$f":"+Distribution!I1024+Transmission!I1024+Generation!I1024+Retail!I1024+Misc!I1024","v":0},{"$f":"+Distribution!J1024+Transmission!J1024+Generation!J1024+Retail!J1024+Misc!J1024","v":0},{"$f":"+Distribution!K1024+Transmission!K1024+Generation!K1024+Retail!K1024+Misc!K1024","v":0},{"$f":"+Distribution!L1024+Transmission!L1024+Generation!L1024+Retail!L1024+Misc!L1024","v":0},{"$f":"+Distribution!M1024+Transmission!M1024+Generation!M1024+Retail!M1024+Misc!M1024","v":0},{"$f":"+Distribution!N1024+Transmission!N1024+Generation!N1024+Retail!N1024+Misc!N1024","v":0},{"$f":"+Distribution!O1024+Transmission!O1024+Generation!O1024+Retail!O1024+Misc!O1024","v":0},{"$f":"+Distribution!P1024+Transmission!P1024+Generation!P1024+Retail!P1024+Misc!P1024","v":0},{"$f":"+Distribution!Q1024+Transmission!Q1024+Generation!Q1024+Retail!Q1024+Misc!Q1024","v":0},0]
[1025,null,null,null,"SSGCH",{"$f":"IF(Function=\"gen\",\"F105G\",IF(Function=\"TRN\",\"F105T\",IF(Function=\"DIS\",\"F105D\",IF(Function=\"RETAIL\",\"F105R\",IF(Function=\"MISC\",\"F105M\",\"ERR\")))))","v":"F105D"},null,{"$f":"+Distribution!H1025+Transmission!H1025+Generation!H1025+Retail!H1025+Misc!H1025","v":0},{"$f":"+Distribution!I1025+Transmission!I1025+Generation!I1025+Retail!I1025+Misc!I1025","v":0},{"$f":"+Distribution!J1025+Transmission!J1025+Generation!J1025+Retail!J1025+Misc!J1025","v":0},{"$f":"+Distribution!K1025+Transmission!K1025+Generation!K1025+Retail!K1025+Misc!K1025","v":0},{"$f":"+Distribution!L1025+Transmission!L1025+Generation!L1025+Retail!L1025+Misc!L1025","v":0},{"$f":"+Distribution!M1025+Transmission!M1025+Generation!M1025+Retail!M1025+Misc!M1025","v":0},{"$f":"+Distribution!N1025+Transmission!N1025+Generation!N1025+Retail!N1025+Misc!N1025","v":0},{"$f":"+Distribution!O1025+Transmission!O1025+Generation!O1025+Retail!O1025+Misc!O1025","v":0},{"$f":"+Distribution!P1025+Transmission!P1025+Generation!P1025+Retail!P1025+Misc!P1025","v":0},{"$f":"+Distribution!Q1025+Transmission!Q1025+Generation!Q1025+Retail!Q1025+Misc!Q1025","v":0},0]
[1026,null,null,null,"SSGCT",{"$f":"IF(Function=\"gen\",\"F105G\",IF(Function=\"TRN\",\"F105T\",IF(Function=\"DIS\",\"F105D\",IF(Function=\"RETAIL\",\"F105R\",IF(Function=\"MISC\",\"F105M\",\"ERR\")))))","v":"F105D"},null,{"$f":"+Distribution!H1026+Transmission!H1026+Generation!H1026+Retail!H1026+Misc!H1026","v":0},{"$f":"+Distribution!I1026+Transmission!I1026+Generation!I1026+Retail!I1026+Misc!I1026","v":0},{"$f":"+Distribution!J1026+Transmission!J1026+Generation!J1026+Retail!J1026+Misc!J1026","v":0},{"$f":"+Distribution!K1026+Transmission!K1026+Generation!K1026+Retail!K1026+Misc!K1026","v":0},{"$f":"+Distribution!L1026+Transmission!L1026+Generation!L1026+Retail!L1026+Misc!L1026","v":0},{"$f":"+Distribution!M1026+Transmission!M1026+Generation!M1026+Retail!M1026+Misc!M1026","v":0},{"$f":"+Distribution!N1026+Transmission!N1026+Generation!N1026+Retail!N1026+Misc!N1026","v":0},{"$f":"+Distribution!O1026+Transmission!O1026+Generation!O1026+Retail!O1026+Misc!O1026","v":0},{"$f":"+Distribution!P1026+Transmission!P1026+Generation!P1026+Retail!P1026+Misc!P1026","v":0},{"$f":"+Distribution!Q1026+Transmission!Q1026+Generation!Q1026+Retail!Q1026+Misc!Q1026","v":0},0]
[1027,null,null,"Total Tools, Shop & Garage Equipment",null,null,null,{"$f":"+Distribution!H1027+Transmission!H1027+Generation!H1027+Retail!H1027+Misc!H1027","v":4418805.3469082238},{"$f":"+Distribution!I1027+Transmission!I1027+Generation!I1027+Retail!I1027+Misc!I1027","v":2250978.7673345776},{"$f":"+Distribution!J1027+Transmission!J1027+Generation!J1027+Retail!J1027+Misc!J1027","v":630411.03186330874},{"$f":"+Distribution!K1027+Transmission!K1027+Generation!K1027+Retail!K1027+Misc!K1027","v":780419.67068712483},{"$f":"+Distribution!L1027+Transmission!L1027+Generation!L1027+Retail!L1027+Misc!L1027","v":293835.48676036787},{"$f":"+Distribution!M1027+Transmission!M1027+Generation!M1027+Retail!M1027+Misc!M1027","v":242592.5120763508},{"$f":"+Distribution!N1027+Transmission!N1027+Generation!N1027+Retail!N1027+Misc!N1027","v":185251.93459798981},{"$f":"+Distribution!O1027+Transmission!O1027+Generation!O1027+Retail!O1027+Misc!O1027","v":35315.943588503833},{"$f":"+Distribution!P1027+Transmission!P1027+Generation!P1027+Retail!P1027+Misc!P1027","v":0},{"$f":"+Distribution!Q1027+Transmission!Q1027+Generation!Q1027+Retail!Q1027+Misc!Q1027","v":0},0]
[1028]
[1029,null,"395","Laboratory Equipment"]
[1030,null,null,null,"Situs",{"$f":"IF(Function=\"gen\",\"F107G\",IF(Function=\"TRN\",\"F107T\",IF(Function=\"DIS\",\"F107D\",IF(Function=\"RETAIL\",\"F107R\",IF(Function=\"MISC\",\"F107M\",\"ERR\")))))","v":"F107D"},null,{"$f":"+Distribution!H1030+Transmission!H1030+Generation!H1030+Retail!H1030+Misc!H1030","v":1918525.8},{"$f":"+Distribution!I1030+Transmission!I1030+Generation!I1030+Retail!I1030+Misc!I1030","v":1054075.450963276},{"$f":"+Distribution!J1030+Transmission!J1030+Generation!J1030+Retail!J1030+Misc!J1030","v":280663.37384973606},{"$f":"+Distribution!K1030+Transmission!K1030+Generation!K1030+Retail!K1030+Misc!K1030","v":305291.3542383312},{"$f":"+Distribution!L1030+Transmission!L1030+Generation!L1030+Retail!L1030+Misc!L1030","v":111349.29260724864},{"$f":"+Distribution!M1030+Transmission!M1030+Generation!M1030+Retail!M1030+Misc!M1030","v":60637.069296225323},{"$f":"+Distribution!N1030+Transmission!N1030+Generation!N1030+Retail!N1030+Misc!N1030","v":86132.946095452033},{"$f":"+Distribution!O1030+Transmission!O1030+Generation!O1030+Retail!O1030+Misc!O1030","v":20376.312949730756},{"$f":"+Distribution!P1030+Transmission!P1030+Generation!P1030+Retail!P1030+Misc!P1030","v":0},{"$f":"+Distribution!Q1030+Transmission!Q1030+Generation!Q1030+Retail!Q1030+Misc!Q1030","v":0},{"$f":"ROUND(SUM(I1030:Q1030)-H1030,0)","v":0}]
[1031,null,null,null,"System Generation",{"$f":"IF(Function=\"gen\",\"F105G\",IF(Function=\"TRN\",\"F105T\",IF(Function=\"DIS\",\"F105D\",IF(Function=\"RETAIL\",\"F105R\",IF(Function=\"MISC\",\"F105M\",\"ERR\")))))","v":"F105D"},null,{"$f":"+Distribution!H1031+Transmission!H1031+Generation!H1031+Retail!H1031+Misc!H1031","v":423910.44688532391},{"$f":"+Distribution!I1031+Transmission!I1031+Generation!I1031+Retail!I1031+Misc!I1031","v":179854.61420570058},{"$f":"+Distribution!J1031+Transmission!J1031+Generation!J1031+Retail!J1031+Misc!J1031","v":57207.070328088994},{"$f":"+Distribution!K1031+Transmission!K1031+Generation!K1031+Retail!K1031+Misc!K1031","v":90639.664137095373},{"$f":"+Distribution!L1031+Transmission!L1031+Generation!L1031+Retail!L1031+Misc!L1031","v":35817.271760520234},{"$f":"+Distribution!M1031+Transmission!M1031+Generation!M1031+Retail!M1031+Misc!M1031","v":44283.597725760439},{"$f":"+Distribution!N1031+Transmission!N1031+Generation!N1031+Retail!N1031+Misc!N1031","v":15091.248000854184},{"$f":"+Distribution!O1031+Transmission!O1031+Generation!O1031+Retail!O1031+Misc!O1031","v":1016.980727304103},{"$f":"+Distribution!P1031+Transmission!P1031+Generation!P1031+Retail!P1031+Misc!P1031","v":0},{"$f":"+Distribution!Q1031+Transmission!Q1031+Generation!Q1031+Retail!Q1031+Misc!Q1031","v":0},0]
[1032,null,null,null,"System Overheads",{"$f":"IF(Function=\"gen\",\"F102G\",IF(Function=\"TRN\",\"F102T\",IF(Function=\"DIS\",\"F102D\",IF(Function=\"RETAIL\",\"F102R\",IF(Function=\"MISC\",\"F102M\",\"ERR\")))))","v":"F102D"},null,{"$f":"+Distribution!H1032+Transmission!H1032+Generation!H1032+Retail!H1032+Misc!H1032","v":361774.96550747193},{"$f":"+Distribution!I1032+Transmission!I1032+Generation!I1032+Retail!I1032+Misc!I1032","v":171343.15211676451},{"$f":"+Distribution!J1032+Transmission!J1032+Generation!J1032+Retail!J1032+Misc!J1032","v":50439.461242612349},{"$f":"+Distribution!K1032+Transmission!K1032+Generation!K1032+Retail!K1032+Misc!K1032","v":69552.818012287986},{"$f":"+Distribution!L1032+Transmission!L1032+Generation!L1032+Retail!L1032+Misc!L1032","v":26793.853279491552},{"$f":"+Distribution!M1032+Transmission!M1032+Generation!M1032+Retail!M1032+Misc!M1032","v":27399.846909746382},{"$f":"+Distribution!N1032+Transmission!N1032+Generation!N1032+Retail!N1032+Misc!N1032","v":14205.135057525655},{"$f":"+Distribution!O1032+Transmission!O1032+Generation!O1032+Retail!O1032+Misc!O1032","v":2040.6988890435196},{"$f":"+Distribution!P1032+Transmission!P1032+Generation!P1032+Retail!P1032+Misc!P1032","v":0},{"$f":"+Distribution!Q1032+Transmission!Q1032+Generation!Q1032+Retail!Q1032+Misc!Q1032","v":0},0]
[1033,null,null,null,"Energy",{"$f":"IF(Classification=\"DEMAND\",\"F12\",IF(Classification=\"ENERGY\",\"F30\",\"F10\"))","v":"F10"},null,{"$f":"+Distribution!H1033+Transmission!H1033+Generation!H1033+Retail!H1033+Misc!H1033","v":0},{"$f":"+Distribution!I1033+Transmission!I1033+Generation!I1033+Retail!I1033+Misc!I1033","v":0},{"$f":"+Distribution!J1033+Transmission!J1033+Generation!J1033+Retail!J1033+Misc!J1033","v":0},{"$f":"+Distribution!K1033+Transmission!K1033+Generation!K1033+Retail!K1033+Misc!K1033","v":0},{"$f":"+Distribution!L1033+Transmission!L1033+Generation!L1033+Retail!L1033+Misc!L1033","v":0},{"$f":"+Distribution!M1033+Transmission!M1033+Generation!M1033+Retail!M1033+Misc!M1033","v":0},{"$f":"+Distribution!N1033+Transmission!N1033+Generation!N1033+Retail!N1033+Misc!N1033","v":0},{"$f":"+Distribution!O1033+Transmission!O1033+Generation!O1033+Retail!O1033+Misc!O1033","v":0},{"$f":"+Distribution!P1033+Transmission!P1033+Generation!P1033+Retail!P1033+Misc!P1033","v":0},{"$f":"+Distribution!Q1033+Transmission!Q1033+Generation!Q1033+Retail!Q1033+Misc!Q1033","v":0},0]
[1034,null,null,null,"SSGCH",{"$f":"IF(Function=\"gen\",\"F105G\",IF(Function=\"TRN\",\"F105T\",IF(Function=\"DIS\",\"F105D\",IF(Function=\"RETAIL\",\"F105R\",IF(Function=\"MISC\",\"F105M\",\"ERR\")))))","v":"F105D"},null,{"$f":"+Distribution!H1034+Transmission!H1034+Generation!H1034+Retail!H1034+Misc!H1034","v":0},{"$f":"+Distribution!I1034+Transmission!I1034+Generation!I1034+Retail!I1034+Misc!I1034","v":0},{"$f":"+Distribution!J1034+Transmission!J1034+Generation!J1034+Retail!J1034+Misc!J1034","v":0},{"$f":"+Distribution!K1034+Transmission!K1034+Generation!K1034+Retail!K1034+Misc!K1034","v":0},{"$f":"+Distribution!L1034+Transmission!L1034+Generation!L1034+Retail!L1034+Misc!L1034","v":0},{"$f":"+Distribution!M1034+Transmission!M1034+Generation!M1034+Retail!M1034+Misc!M1034","v":0},{"$f":"+Distribution!N1034+Transmission!N1034+Generation!N1034+Retail!N1034+Misc!N1034","v":0},{"$f":"+Distribution!O1034+Transmission!O1034+Generation!O1034+Retail!O1034+Misc!O1034","v":0},{"$f":"+Distribution!P1034+Transmission!P1034+Generation!P1034+Retail!P1034+Misc!P1034","v":0},{"$f":"+Distribution!Q1034+Transmission!Q1034+Generation!Q1034+Retail!Q1034+Misc!Q1034","v":0},0]
[1035,null,null,null,"SSGCT",{"$f":"IF(Function=\"gen\",\"F105G\",IF(Function=\"TRN\",\"F105T\",IF(Function=\"DIS\",\"F105D\",IF(Function=\"RETAIL\",\"F105R\",IF(Function=\"MISC\",\"F105M\",\"ERR\")))))","v":"F105D"},null,{"$f":"+Distribution!H1035+Transmission!H1035+Generation!H1035+Retail!H1035+Misc!H1035","v":0},{"$f":"+Distribution!I1035+Transmission!I1035+Generation!I1035+Retail!I1035+Misc!I1035","v":0},{"$f":"+Distribution!J1035+Transmission!J1035+Generation!J1035+Retail!J1035+Misc!J1035","v":0},{"$f":"+Distribution!K1035+Transmission!K1035+Generation!K1035+Retail!K1035+Misc!K1035","v":0},{"$f":"+Distribution!L1035+Transmission!L1035+Generation!L1035+Retail!L1035+Misc!L1035","v":0},{"$f":"+Distribution!M1035+Transmission!M1035+Generation!M1035+Retail!M1035+Misc!M1035","v":0},{"$f":"+Distribution!N1035+Transmission!N1035+Generation!N1035+Retail!N1035+Misc!N1035","v":0},{"$f":"+Distribution!O1035+Transmission!O1035+Generation!O1035+Retail!O1035+Misc!O1035","v":0},{"$f":"+Distribution!P1035+Transmission!P1035+Generation!P1035+Retail!P1035+Misc!P1035","v":0},{"$f":"+Distribution!Q1035+Transmission!Q1035+Generation!Q1035+Retail!Q1035+Misc!Q1035","v":0},0]
[1036,null,null,"Total Laboratory Equipment",null,null,null,{"$f":"+Distribution!H1036+Transmission!H1036+Generation!H1036+Retail!H1036+Misc!H1036","v":2704211.2123927958},{"$f":"+Distribution!I1036+Transmission!I1036+Generation!I1036+Retail!I1036+Misc!I1036","v":1405273.2172857411},{"$f":"+Distribution!J1036+Transmission!J1036+Generation!J1036+Retail!J1036+Misc!J1036","v":388309.90542043746},{"$f":"+Distribution!K1036+Transmission!K1036+Generation!K1036+Retail!K1036+Misc!K1036","v":465483.8363877146},{"$f":"+Distribution!L1036+Transmission!L1036+Generation!L1036+Retail!L1036+Misc!L1036","v":173960.41764726042},{"$f":"+Distribution!M1036+Transmission!M1036+Generation!M1036+Retail!M1036+Misc!M1036","v":132320.51393173216},{"$f":"+Distribution!N1036+Transmission!N1036+Generation!N1036+Retail!N1036+Misc!N1036","v":115429.32915383187},{"$f":"+Distribution!O1036+Transmission!O1036+Generation!O1036+Retail!O1036+Misc!O1036","v":23433.992566078377},{"$f":"+Distribution!P1036+Transmission!P1036+Generation!P1036+Retail!P1036+Misc!P1036","v":0},{"$f":"+Distribution!Q1036+Transmission!Q1036+Generation!Q1036+Retail!Q1036+Misc!Q1036","v":0},0]
[1037]
[1038,null,"396","Power Operated Equipment"]
[1039,null,null,null,"Situs",{"$f":"IF(Function=\"gen\",\"F107G\",IF(Function=\"TRN\",\"F107T\",IF(Function=\"DIS\",\"F107D\",IF(Function=\"RETAIL\",\"F107R\",IF(Function=\"MISC\",\"F107M\",\"ERR\")))))","v":"F107D"},null,{"$f":"+Distribution!H1039+Transmission!H1039+Generation!H1039+Retail!H1039+Misc!H1039","v":8092450.5},{"$f":"+Distribution!I1039+Transmission!I1039+Generation!I1039+Retail!I1039+Misc!I1039","v":4446149.9606549405},{"$f":"+Distribution!J1039+Transmission!J1039+Generation!J1039+Retail!J1039+Misc!J1039","v":1183854.0091782887},{"$f":"+Distribution!K1039+Transmission!K1039+Generation!K1039+Retail!K1039+Misc!K1039","v":1287736.2255183957},{"$f":"+Distribution!L1039+Transmission!L1039+Generation!L1039+Retail!L1039+Misc!L1039","v":469677.62363903341},{"$f":"+Distribution!M1039+Transmission!M1039+Generation!M1039+Retail!M1039+Misc!M1039","v":255770.59310058446},{"$f":"+Distribution!N1039+Transmission!N1039+Generation!N1039+Retail!N1039+Misc!N1039","v":363313.64566304703},{"$f":"+Distribution!O1039+Transmission!O1039+Generation!O1039+Retail!O1039+Misc!O1039","v":85948.442245710292},{"$f":"+Distribution!P1039+Transmission!P1039+Generation!P1039+Retail!P1039+Misc!P1039","v":0},{"$f":"+Distribution!Q1039+Transmission!Q1039+Generation!Q1039+Retail!Q1039+Misc!Q1039","v":0},{"$f":"ROUND(SUM(I1039:Q1039)-H1039,0)","v":0}]
[1040,null,null,null,"System Generation",{"$f":"IF(Function=\"gen\",\"F105G\",IF(Function=\"TRN\",\"F105T\",IF(Function=\"DIS\",\"F105D\",IF(Function=\"RETAIL\",\"F105R\",IF(Function=\"MISC\",\"F105M\",\"ERR\")))))","v":"F105D"},null,{"$f":"+Distribution!H1040+Transmission!H1040+Generation!H1040+Retail!H1040+Misc!H1040","v":2054027.1535158879},{"$f":"+Distribution!I1040+Transmission!I1040+Generation!I1040+Retail!I1040+Misc!I1040","v":871472.41587931523},{"$f":"+Distribution!J1040+Transmission!J1040+Generation!J1040+Retail!J1040+Misc!J1040","v":277192.68701763143},{"$f":"+Distribution!K1040+Transmission!K1040+Generation!K1040+Retail!K1040+Misc!K1040","v":439187.88199508208},{"$f":"+Distribution!L1040+Transmission!L1040+Generation!L1040+Retail!L1040+Misc!L1040","v":173549.97807088349},{"$f":"+Distribution!M1040+Transmission!M1040+Generation!M1040+Retail!M1040+Misc!M1040","v":214572.94306477127},{"$f":"+Distribution!N1040+Transmission!N1040+Generation!N1040+Retail!N1040+Misc!N1040","v":73123.541545043292},{"$f":"+Distribution!O1040+Transmission!O1040+Generation!O1040+Retail!O1040+Misc!O1040","v":4927.7059431612779},{"$f":"+Distribution!P1040+Transmission!P1040+Generation!P1040+Retail!P1040+Misc!P1040","v":0},{"$f":"+Distribution!Q1040+Transmission!Q1040+Generation!Q1040+Retail!Q1040+Misc!Q1040","v":0},0]
[1041,null,null,null,"System Overheads",{"$f":"IF(Function=\"gen\",\"F102G\",IF(Function=\"TRN\",\"F102T\",IF(Function=\"DIS\",\"F102D\",IF(Function=\"RETAIL\",\"F102R\",IF(Function=\"MISC\",\"F102M\",\"ERR\")))))","v":"F102D"},null,{"$f":"+Distribution!H1041+Transmission!H1041+Generation!H1041+Retail!H1041+Misc!H1041","v":131485.49561286398},{"$f":"+Distribution!I1041+Transmission!I1041+Generation!I1041+Retail!I1041+Misc!I1041","v":62273.903459132023},{"$f":"+Distribution!J1041+Transmission!J1041+Generation!J1041+Retail!J1041+Misc!J1041","v":18331.996938007454},{"$f":"+Distribution!K1041+Transmission!K1041+Generation!K1041+Retail!K1041+Misc!K1041","v":25278.661100247245},{"$f":"+Distribution!L1041+Transmission!L1041+Generation!L1041+Retail!L1041+Misc!L1041","v":9738.1063194643466},{"$f":"+Distribution!M1041+Transmission!M1041+Generation!M1041+Retail!M1041+Misc!M1041","v":9958.3519981572499},{"$f":"+Distribution!N1041+Transmission!N1041+Generation!N1041+Retail!N1041+Misc!N1041","v":5162.7928999079786},{"$f":"+Distribution!O1041+Transmission!O1041+Generation!O1041+Retail!O1041+Misc!O1041","v":741.68289794769203},{"$f":"+Distribution!P1041+Transmission!P1041+Generation!P1041+Retail!P1041+Misc!P1041","v":0},{"$f":"+Distribution!Q1041+Transmission!Q1041+Generation!Q1041+Retail!Q1041+Misc!Q1041","v":0},0]
[1042,null,null,null,"Energy",{"$f":"IF(Classification=\"DEMAND\",\"F12\",IF(Classification=\"ENERGY\",\"F30\",\"F10\"))","v":"F10"},null,{"$f":"+Distribution!H1042+Transmission!H1042+Generation!H1042+Retail!H1042+Misc!H1042","v":0},{"$f":"+Distribution!I1042+Transmission!I1042+Generation!I1042+Retail!I1042+Misc!I1042","v":0},{"$f":"+Distribution!J1042+Transmission!J1042+Generation!J1042+Retail!J1042+Misc!J1042","v":0},{"$f":"+Distribution!K1042+Transmission!K1042+Generation!K1042+Retail!K1042+Misc!K1042","v":0},{"$f":"+Distribution!L1042+Transmission!L1042+Generation!L1042+Retail!L1042+Misc!L1042","v":0},{"$f":"+Distribution!M1042+Transmission!M1042+Generation!M1042+Retail!M1042+Misc!M1042","v":0},{"$f":"+Distribution!N1042+Transmission!N1042+Generation!N1042+Retail!N1042+Misc!N1042","v":0},{"$f":"+Distribution!O1042+Transmission!O1042+Generation!O1042+Retail!O1042+Misc!O1042","v":0},{"$f":"+Distribution!P1042+Transmission!P1042+Generation!P1042+Retail!P1042+Misc!P1042","v":0},{"$f":"+Distribution!Q1042+Transmission!Q1042+Generation!Q1042+Retail!Q1042+Misc!Q1042","v":0},0]
[1043,null,null,null,"SSGCT","F30",null,{"$f":"+Distribution!H1043+Transmission!H1043+Generation!H1043+Retail!H1043+Misc!H1043","v":0},{"$f":"+Distribution!I1043+Transmission!I1043+Generation!I1043+Retail!I1043+Misc!I1043","v":0},{"$f":"+Distribution!J1043+Transmission!J1043+Generation!J1043+Retail!J1043+Misc!J1043","v":0},{"$f":"+Distribution!K1043+Transmission!K1043+Generation!K1043+Retail!K1043+Misc!K1043","v":0},{"$f":"+Distribution!L1043+Transmission!L1043+Generation!L1043+Retail!L1043+Misc!L1043","v":0},{"$f":"+Distribution!M1043+Transmission!M1043+Generation!M1043+Retail!M1043+Misc!M1043","v":0},{"$f":"+Distribution!N1043+Transmission!N1043+Generation!N1043+Retail!N1043+Misc!N1043","v":0},{"$f":"+Distribution!O1043+Transmission!O1043+Generation!O1043+Retail!O1043+Misc!O1043","v":0},{"$f":"+Distribution!P1043+Transmission!P1043+Generation!P1043+Retail!P1043+Misc!P1043","v":0},{"$f":"+Distribution!Q1043+Transmission!Q1043+Generation!Q1043+Retail!Q1043+Misc!Q1043","v":0},0]
[1044,null,null,null,"SSGCH",{"$f":"IF(Function=\"gen\",\"F105G\",IF(Function=\"TRN\",\"F105T\",IF(Function=\"DIS\",\"F105D\",IF(Function=\"RETAIL\",\"F105R\",IF(Function=\"MISC\",\"F105M\",\"ERR\")))))","v":"F105D"},null,{"$f":"+Distribution!H1044+Transmission!H1044+Generation!H1044+Retail!H1044+Misc!H1044","v":0},{"$f":"+Distribution!I1044+Transmission!I1044+Generation!I1044+Retail!I1044+Misc!I1044","v":0},{"$f":"+Distribution!J1044+Transmission!J1044+Generation!J1044+Retail!J1044+Misc!J1044","v":0},{"$f":"+Distribution!K1044+Transmission!K1044+Generation!K1044+Retail!K1044+Misc!K1044","v":0},{"$f":"+Distribution!L1044+Transmission!L1044+Generation!L1044+Retail!L1044+Misc!L1044","v":0},{"$f":"+Distribution!M1044+Transmission!M1044+Generation!M1044+Retail!M1044+Misc!M1044","v":0},{"$f":"+Distribution!N1044+Transmission!N1044+Generation!N1044+Retail!N1044+Misc!N1044","v":0},{"$f":"+Distribution!O1044+Transmission!O1044+Generation!O1044+Retail!O1044+Misc!O1044","v":0},{"$f":"+Distribution!P1044+Transmission!P1044+Generation!P1044+Retail!P1044+Misc!P1044","v":0},{"$f":"+Distribution!Q1044+Transmission!Q1044+Generation!Q1044+Retail!Q1044+Misc!Q1044","v":0},0]
[1045,null,null,"Total Power Operated Equipment",null,null,null,{"$f":"+Distribution!H1045+Transmission!H1045+Generation!H1045+Retail!H1045+Misc!H1045","v":10277963.149128752},{"$f":"+Distribution!I1045+Transmission!I1045+Generation!I1045+Retail!I1045+Misc!I1045","v":5379896.2799933869},{"$f":"+Distribution!J1045+Transmission!J1045+Generation!J1045+Retail!J1045+Misc!J1045","v":1479378.6931339274},{"$f":"+Distribution!K1045+Transmission!K1045+Generation!K1045+Retail!K1045+Misc!K1045","v":1752202.768613725},{"$f":"+Distribution!L1045+Transmission!L1045+Generation!L1045+Retail!L1045+Misc!L1045","v":652965.70802938123},{"$f":"+Distribution!M1045+Transmission!M1045+Generation!M1045+Retail!M1045+Misc!M1045","v":480301.88816351298},{"$f":"+Distribution!N1045+Transmission!N1045+Generation!N1045+Retail!N1045+Misc!N1045","v":441599.9801079983},{"$f":"+Distribution!O1045+Transmission!O1045+Generation!O1045+Retail!O1045+Misc!O1045","v":91617.831086819264},{"$f":"+Distribution!P1045+Transmission!P1045+Generation!P1045+Retail!P1045+Misc!P1045","v":0},{"$f":"+Distribution!Q1045+Transmission!Q1045+Generation!Q1045+Retail!Q1045+Misc!Q1045","v":0},0]
[1046]
[1047,null,"397","Communication Equipment"]
[1048,null,null,null,"Situs",{"$f":"IF(Function=\"gen\",\"F107G\",IF(Function=\"TRN\",\"F107T\",IF(Function=\"DIS\",\"F107D\",IF(Function=\"RETAIL\",\"F107R\",IF(Function=\"MISC\",\"F107M\",\"ERR\")))))","v":"F107D"},null,{"$f":"+Distribution!H1048+Transmission!H1048+Generation!H1048+Retail!H1048+Misc!H1048","v":11881586.869999997},{"$f":"+Distribution!I1048+Transmission!I1048+Generation!I1048+Retail!I1048+Misc!I1048","v":6527975.3017418822},{"$f":"+Distribution!J1048+Transmission!J1048+Generation!J1048+Retail!J1048+Misc!J1048","v":1738171.1820726753},{"$f":"+Distribution!K1048+Transmission!K1048+Generation!K1048+Retail!K1048+Misc!K1048","v":1890694.2747617336},{"$f":"+Distribution!L1048+Transmission!L1048+Generation!L1048+Retail!L1048+Misc!L1048","v":689595.25747637753},{"$f":"+Distribution!M1048+Transmission!M1048+Generation!M1048+Retail!M1048+Misc!M1048","v":375530.31936568732},{"$f":"+Distribution!N1048+Transmission!N1048+Generation!N1048+Retail!N1048+Misc!N1048","v":533428.36536372907},{"$f":"+Distribution!O1048+Transmission!O1048+Generation!O1048+Retail!O1048+Misc!O1048","v":126192.16921791299},{"$f":"+Distribution!P1048+Transmission!P1048+Generation!P1048+Retail!P1048+Misc!P1048","v":0},{"$f":"+Distribution!Q1048+Transmission!Q1048+Generation!Q1048+Retail!Q1048+Misc!Q1048","v":0},{"$f":"ROUND(SUM(I1048:Q1048)-H1048,0)","v":0}]
[1049,null,null,null,"System Generation",{"$f":"IF(Function=\"gen\",\"F105G\",IF(Function=\"TRN\",\"F105T\",IF(Function=\"DIS\",\"F105D\",IF(Function=\"RETAIL\",\"F105R\",IF(Function=\"MISC\",\"F105M\",\"ERR\")))))","v":"F105D"},null,{"$f":"+Distribution!H1049+Transmission!H1049+Generation!H1049+Retail!H1049+Misc!H1049","v":7224750.9578293664},{"$f":"+Distribution!I1049+Transmission!I1049+Generation!I1049+Retail!I1049+Misc!I1049","v":3065281.3720445558},{"$f":"+Distribution!J1049+Transmission!J1049+Generation!J1049+Retail!J1049+Misc!J1049","v":974986.20093993715},{"$f":"+Distribution!K1049+Transmission!K1049+Generation!K1049+Retail!K1049+Misc!K1049","v":1544781.4629323382},{"$f":"+Distribution!L1049+Transmission!L1049+Generation!L1049+Retail!L1049+Misc!L1049","v":610437.58265447035},{"$f":"+Distribution!M1049+Transmission!M1049+Generation!M1049+Retail!M1049+Misc!M1049","v":754730.07904395321},{"$f":"+Distribution!N1049+Transmission!N1049+Generation!N1049+Retail!N1049+Misc!N1049","v":257201.7492140425},{"$f":"+Distribution!O1049+Transmission!O1049+Generation!O1049+Retail!O1049+Misc!O1049","v":17332.511000069666},{"$f":"+Distribution!P1049+Transmission!P1049+Generation!P1049+Retail!P1049+Misc!P1049","v":0},{"$f":"+Distribution!Q1049+Transmission!Q1049+Generation!Q1049+Retail!Q1049+Misc!Q1049","v":0},0]
[1050,null,null,null,"System Overheads",{"$f":"IF(Function=\"gen\",\"F102G\",IF(Function=\"TRN\",\"F102T\",IF(Function=\"DIS\",\"F102D\",IF(Function=\"RETAIL\",\"F102R\",IF(Function=\"MISC\",\"F102M\",\"ERR\")))))","v":"F102D"},null,{"$f":"+Distribution!H1050+Transmission!H1050+Generation!H1050+Retail!H1050+Misc!H1050","v":3991231.5533585837},{"$f":"+Distribution!I1050+Transmission!I1050+Generation!I1050+Retail!I1050+Misc!I1050","v":1890319.2879061326},{"$f":"+Distribution!J1050+Transmission!J1050+Generation!J1050+Retail!J1050+Misc!J1050","v":556466.27998023783},{"$f":"+Distribution!K1050+Transmission!K1050+Generation!K1050+Retail!K1050+Misc!K1050","v":767331.70711868291},{"$f":"+Distribution!L1050+Transmission!L1050+Generation!L1050+Retail!L1050+Misc!L1050","v":295599.42738204298},{"$f":"+Distribution!M1050+Transmission!M1050+Generation!M1050+Retail!M1050+Misc!M1050","v":302284.96709266026},{"$f":"+Distribution!N1050+Transmission!N1050+Generation!N1050+Retail!N1050+Misc!N1050","v":156716.1596761886},{"$f":"+Distribution!O1050+Transmission!O1050+Generation!O1050+Retail!O1050+Misc!O1050","v":22513.724202638565},{"$f":"+Distribution!P1050+Transmission!P1050+Generation!P1050+Retail!P1050+Misc!P1050","v":0},{"$f":"+Distribution!Q1050+Transmission!Q1050+Generation!Q1050+Retail!Q1050+Misc!Q1050","v":0},0]
[1051,null,null,null,"Customer - System","F42",null,{"$f":"+Distribution!H1051+Transmission!H1051+Generation!H1051+Retail!H1051+Misc!H1051","v":197863.12208726082},{"$f":"+Distribution!I1051+Transmission!I1051+Generation!I1051+Retail!I1051+Misc!I1051","v":159649.58698405421},{"$f":"+Distribution!J1051+Transmission!J1051+Generation!J1051+Retail!J1051+Misc!J1051","v":27115.885992196683},{"$f":"+Distribution!K1051+Transmission!K1051+Generation!K1051+Retail!K1051+Misc!K1051","v":1646.7946005926437},{"$f":"+Distribution!L1051+Transmission!L1051+Generation!L1051+Retail!L1051+Misc!L1051","v":337.74329509182996},{"$f":"+Distribution!M1051+Transmission!M1051+Generation!M1051+Retail!M1051+Misc!M1051","v":5.8320474798920552},{"$f":"+Distribution!N1051+Transmission!N1051+Generation!N1051+Retail!N1051+Misc!N1051","v":4830.4392468542947},{"$f":"+Distribution!O1051+Transmission!O1051+Generation!O1051+Retail!O1051+Misc!O1051","v":4276.8399209912523},{"$f":"+Distribution!P1051+Transmission!P1051+Generation!P1051+Retail!P1051+Misc!P1051","v":0},{"$f":"+Distribution!Q1051+Transmission!Q1051+Generation!Q1051+Retail!Q1051+Misc!Q1051","v":0},0]
[1052,null,null,null,"Energy",{"$f":"IF(Classification=\"DEMAND\",\"F12\",IF(Classification=\"ENERGY\",\"F30\",\"F10\"))","v":"F10"},null,{"$f":"+Distribution!H1052+Transmission!H1052+Generation!H1052+Retail!H1052+Misc!H1052","v":0},{"$f":"+Distribution!I1052+Transmission!I1052+Generation!I1052+Retail!I1052+Misc!I1052","v":0},{"$f":"+Distribution!J1052+Transmission!J1052+Generation!J1052+Retail!J1052+Misc!J1052","v":0},{"$f":"+Distribution!K1052+Transmission!K1052+Generation!K1052+Retail!K1052+Misc!K1052","v":0},{"$f":"+Distribution!L1052+Transmission!L1052+Generation!L1052+Retail!L1052+Misc!L1052","v":0},{"$f":"+Distribution!M1052+Transmission!M1052+Generation!M1052+Retail!M1052+Misc!M1052","v":0},{"$f":"+Distribution!N1052+Transmission!N1052+Generation!N1052+Retail!N1052+Misc!N1052","v":0},{"$f":"+Distribution!O1052+Transmission!O1052+Generation!O1052+Retail!O1052+Misc!O1052","v":0},{"$f":"+Distribution!P1052+Transmission!P1052+Generation!P1052+Retail!P1052+Misc!P1052","v":0},{"$f":"+Distribution!Q1052+Transmission!Q1052+Generation!Q1052+Retail!Q1052+Misc!Q1052","v":0},0]
[1053,null,null,null,"SSGCH",{"$f":"IF(Function=\"gen\",\"F105G\",IF(Function=\"TRN\",\"F105T\",IF(Function=\"DIS\",\"F105D\",IF(Function=\"RETAIL\",\"F105R\",IF(Function=\"MISC\",\"F105M\",\"ERR\")))))","v":"F105D"},null,{"$f":"+Distribution!H1053+Transmission!H1053+Generation!H1053+Retail!H1053+Misc!H1053","v":0},{"$f":"+Distribution!I1053+Transmission!I1053+Generation!I1053+Retail!I1053+Misc!I1053","v":0},{"$f":"+Distribution!J1053+Transmission!J1053+Generation!J1053+Retail!J1053+Misc!J1053","v":0},{"$f":"+Distribution!K1053+Transmission!K1053+Generation!K1053+Retail!K1053+Misc!K1053","v":0},{"$f":"+Distribution!L1053+Transmission!L1053+Generation!L1053+Retail!L1053+Misc!L1053","v":0},{"$f":"+Distribution!M1053+Transmission!M1053+Generation!M1053+Retail!M1053+Misc!M1053","v":0},{"$f":"+Distribution!N1053+Transmission!N1053+Generation!N1053+Retail!N1053+Misc!N1053","v":0},{"$f":"+Distribution!O1053+Transmission!O1053+Generation!O1053+Retail!O1053+Misc!O1053","v":0},{"$f":"+Distribution!P1053+Transmission!P1053+Generation!P1053+Retail!P1053+Misc!P1053","v":0},{"$f":"+Distribution!Q1053+Transmission!Q1053+Generation!Q1053+Retail!Q1053+Misc!Q1053","v":0},0]
[1054,null,null,null,"SSGCT",{"$f":"IF(Function=\"gen\",\"F105G\",IF(Function=\"TRN\",\"F105T\",IF(Function=\"DIS\",\"F105D\",IF(Function=\"RETAIL\",\"F105R\",IF(Function=\"MISC\",\"F105M\",\"ERR\")))))","v":"F105D"},null,{"$f":"+Distribution!H1054+Transmission!H1054+Generation!H1054+Retail!H1054+Misc!H1054","v":0},{"$f":"+Distribution!I1054+Transmission!I1054+Generation!I1054+Retail!I1054+Misc!I1054","v":0},{"$f":"+Distribution!J1054+Transmission!J1054+Generation!J1054+Retail!J1054+Misc!J1054","v":0},{"$f":"+Distribution!K1054+Transmission!K1054+Generation!K1054+Retail!K1054+Misc!K1054","v":0},{"$f":"+Distribution!L1054+Transmission!L1054+Generation!L1054+Retail!L1054+Misc!L1054","v":0},{"$f":"+Distribution!M1054+Transmission!M1054+Generation!M1054+Retail!M1054+Misc!M1054","v":0},{"$f":"+Distribution!N1054+Transmission!N1054+Generation!N1054+Retail!N1054+Misc!N1054","v":0},{"$f":"+Distribution!O1054+Transmission!O1054+Generation!O1054+Retail!O1054+Misc!O1054","v":0},{"$f":"+Distribution!P1054+Transmission!P1054+Generation!P1054+Retail!P1054+Misc!P1054","v":0},{"$f":"+Distribution!Q1054+Transmission!Q1054+Generation!Q1054+Retail!Q1054+Misc!Q1054","v":0},0]
[1055,null,null,"Total Communication Equipment",null,null,null,{"$f":"+Distribution!H1055+Transmission!H1055+Generation!H1055+Retail!H1055+Misc!H1055","v":23295432.503275212},{"$f":"+Distribution!I1055+Transmission!I1055+Generation!I1055+Retail!I1055+Misc!I1055","v":11643225.548676627},{"$f":"+Distribution!J1055+Transmission!J1055+Generation!J1055+Retail!J1055+Misc!J1055","v":3296739.5489850473},{"$f":"+Distribution!K1055+Transmission!K1055+Generation!K1055+Retail!K1055+Misc!K1055","v":4204454.2394133471},{"$f":"+Distribution!L1055+Transmission!L1055+Generation!L1055+Retail!L1055+Misc!L1055","v":1595970.0108079829},{"$f":"+Distribution!M1055+Transmission!M1055+Generation!M1055+Retail!M1055+Misc!M1055","v":1432551.1975497806},{"$f":"+Distribution!N1055+Transmission!N1055+Generation!N1055+Retail!N1055+Misc!N1055","v":952176.7135008144},{"$f":"+Distribution!O1055+Transmission!O1055+Generation!O1055+Retail!O1055+Misc!O1055","v":170315.24434161247},{"$f":"+Distribution!P1055+Transmission!P1055+Generation!P1055+Retail!P1055+Misc!P1055","v":0},{"$f":"+Distribution!Q1055+Transmission!Q1055+Generation!Q1055+Retail!Q1055+Misc!Q1055","v":0},0]
[1056]
[1057,null,null,null,null,null,null,"GENERAL PLANT (cont'd)"]
[1058]
[1059,null,"A",null,"B","C",null,"D","E","F","G","H","I","J","K","L","M"]
[{"$f":"+A1059+1","v":1060},null,null,null,null,null,null,{"$f":"'Hot Sheet'!$H$10","v":"Washington"},null,{"$f":"'Hot Sheet'!$J$10","v":"Small General"},{"$f":"'Hot Sheet'!$K$10","v":"Large General"},{"$f":"'Hot Sheet'!$L$10","v":"Large General"},{"$f":"'Hot Sheet'!$M$10","v":"Large General"},{"$f":"'Hot Sheet'!$N$10","v":"Agricultural"},{"$f":"'Hot Sheet'!$O$10","v":"Street & Area"}]
[1061,null,"FERC",null,null,"COS",null,{"$f":"'Hot Sheet'!$H$11","v":"Jurisdiction"},{"$f":"'Hot Sheet'!$I$11","v":"Residential"},{"$f":"'Hot Sheet'!$J$11","v":"Service"},{"$f":"'Hot Sheet'!$K$11","v":"Service <1,000 kW"},{"$f":"'Hot Sheet'!$L$11","v":"Service >1,000 kW"},{"$f":"'Hot Sheet'!$M$11","v":"Dedicated Facilities"},{"$f":"'Hot Sheet'!$N$11","v":"Pumping"},{"$f":"'Hot Sheet'!$O$11","v":"Lighting"}]
[1062,null,"ACCT",null,"DESCRIPTION ","Factor",null,{"$f":"'Hot Sheet'!$H$12","v":"Normalized"},{"$f":"'Hot Sheet'!$I$12","v":"Schedule 16"},{"$f":"'Hot Sheet'!$J$12","v":"Schedule 24"},{"$f":"'Hot Sheet'!$K$12","v":"Schedule 36"},{"$f":"'Hot Sheet'!$L$12","v":"Schedule 48T"},{"$f":"'Hot Sheet'!$M$12","v":"Schedule 48T"},{"$f":"'Hot Sheet'!$N$12","v":"Schedule 40"},{"$f":"'Hot Sheet'!$O$12","v":"Sch. 15,51-54,57"}]
[1063,null,"398","Misc. Equipment"]
[1064,null,null,null,"Situs",{"$f":"IF(Function=\"gen\",\"F107G\",IF(Function=\"TRN\",\"F107T\",IF(Function=\"DIS\",\"F107D\",IF(Function=\"RETAIL\",\"F107R\",IF(Function=\"MISC\",\"F107M\",\"ERR\")))))","v":"F107D"},null,{"$f":"+Distribution!H1064+Transmission!H1064+Generation!H1064+Retail!H1064+Misc!H1064","v":204481.76},{"$f":"+Distribution!I1064+Transmission!I1064+Generation!I1064+Retail!I1064+Misc!I1064","v":112346.26262819316},{"$f":"+Distribution!J1064+Transmission!J1064+Generation!J1064+Retail!J1064+Misc!J1064","v":29913.874836779371},{"$f":"+Distribution!K1064+Transmission!K1064+Generation!K1064+Retail!K1064+Misc!K1064","v":32538.792768612977},{"$f":"+Distribution!L1064+Transmission!L1064+Generation!L1064+Retail!L1064+Misc!L1064","v":11867.914065625382},{"$f":"+Distribution!M1064+Transmission!M1064+Generation!M1064+Retail!M1064+Misc!M1064","v":6462.8657331238992},{"$f":"+Distribution!N1064+Transmission!N1064+Generation!N1064+Retail!N1064+Misc!N1064","v":9180.2864530584684},{"$f":"+Distribution!O1064+Transmission!O1064+Generation!O1064+Retail!O1064+Misc!O1064","v":2171.7635146067555},{"$f":"+Distribution!P1064+Transmission!P1064+Generation!P1064+Retail!P1064+Misc!P1064","v":0},{"$f":"+Distribution!Q1064+Transmission!Q1064+Generation!Q1064+Retail!Q1064+Misc!Q1064","v":0},{"$f":"ROUND(SUM(I1064:Q1064)-H1064,0)","v":0}]
[1065,null,null,null,"System Generation",{"$f":"IF(Function=\"gen\",\"F105G\",IF(Function=\"TRN\",\"F105T\",IF(Function=\"DIS\",\"F105D\",IF(Function=\"RETAIL\",\"F105R\",IF(Function=\"MISC\",\"F105M\",\"ERR\")))))","v":"F105D"},null,{"$f":"+Distribution!H1065+Transmission!H1065+Generation!H1065+Retail!H1065+Misc!H1065","v":108861.799801107},{"$f":"+Distribution!I1065+Transmission!I1065+Generation!I1065+Retail!I1065+Misc!I1065","v":46187.342512610681},{"$f":"+Distribution!J1065+Transmission!J1065+Generation!J1065+Retail!J1065+Misc!J1065","v":14690.991182269634},{"$f":"+Distribution!K1065+Transmission!K1065+Generation!K1065+Retail!K1065+Misc!K1065","v":23276.607226434611},{"$f":"+Distribution!L1065+Transmission!L1065+Generation!L1065+Retail!L1065+Misc!L1065","v":9198.0103261536042},{"$f":"+Distribution!M1065+Transmission!M1065+Generation!M1065+Retail!M1065+Misc!M1065","v":11372.19473007847},{"$f":"+Distribution!N1065+Transmission!N1065+Generation!N1065+Retail!N1065+Misc!N1065","v":3875.4893414133535},{"$f":"+Distribution!O1065+Transmission!O1065+Generation!O1065+Retail!O1065+Misc!O1065","v":261.16448214665672},{"$f":"+Distribution!P1065+Transmission!P1065+Generation!P1065+Retail!P1065+Misc!P1065","v":0},{"$f":"+Distribution!Q1065+Transmission!Q1065+Generation!Q1065+Retail!Q1065+Misc!Q1065","v":0},0]
[1066,null,null,null,"System Overheads",{"$f":"IF(Function=\"gen\",\"F102G\",IF(Function=\"TRN\",\"F102T\",IF(Function=\"DIS\",\"F102D\",IF(Function=\"RETAIL\",\"F102R\",IF(Function=\"MISC\",\"F102M\",\"ERR\")))))","v":"F102D"},null,{"$f":"+Distribution!H1066+Transmission!H1066+Generation!H1066+Retail!H1066+Misc!H1066","v":202854.08909738791},{"$f":"+Distribution!I1066+Transmission!I1066+Generation!I1066+Retail!I1066+Misc!I1066","v":96075.357223698127},{"$f":"+Distribution!J1066+Transmission!J1066+Generation!J1066+Retail!J1066+Misc!J1066","v":28282.363182816211},{"$f":"+Distribution!K1066+Transmission!K1066+Generation!K1066+Retail!K1066+Misc!K1066","v":38999.585065948057},{"$f":"+Distribution!L1066+Transmission!L1066+Generation!L1066+Retail!L1066+Misc!L1066","v":15023.822040301078},{"$f":"+Distribution!M1066+Transmission!M1066+Generation!M1066+Retail!M1066+Misc!M1066","v":15363.614169620274},{"$f":"+Distribution!N1066+Transmission!N1066+Generation!N1066+Retail!N1066+Misc!N1066","v":7965.0888185634367},{"$f":"+Distribution!O1066+Transmission!O1066+Generation!O1066+Retail!O1066+Misc!O1066","v":1144.2585964407335},{"$f":"+Distribution!P1066+Transmission!P1066+Generation!P1066+Retail!P1066+Misc!P1066","v":0},{"$f":"+Distribution!Q1066+Transmission!Q1066+Generation!Q1066+Retail!Q1066+Misc!Q1066","v":0},0]
[1067,null,null,null,"Customer - System","F42",null,{"$f":"+Distribution!H1067+Transmission!H1067+Generation!H1067+Retail!H1067+Misc!H1067","v":14940.554147506919},{"$f":"+Distribution!I1067+Transmission!I1067+Generation!I1067+Retail!I1067+Misc!I1067","v":12055.067532546276},{"$f":"+Distribution!J1067+Transmission!J1067+Generation!J1067+Retail!J1067+Misc!J1067","v":2047.5081897543882},{"$f":"+Distribution!K1067+Transmission!K1067+Generation!K1067+Retail!K1067+Misc!K1067","v":124.34870955450532},{"$f":"+Distribution!L1067+Transmission!L1067+Generation!L1067+Retail!L1067+Misc!L1067","v":25.502842242888971},{"$f":"+Distribution!M1067+Transmission!M1067+Generation!M1067+Retail!M1067+Misc!M1067","v":0.44037524650870014},{"$f":"+Distribution!N1067+Transmission!N1067+Generation!N1067+Retail!N1067+Misc!N1067","v":364.74426544245694},{"$f":"+Distribution!O1067+Transmission!O1067+Generation!O1067+Retail!O1067+Misc!O1067","v":322.94223271989415},{"$f":"+Distribution!P1067+Transmission!P1067+Generation!P1067+Retail!P1067+Misc!P1067","v":0},{"$f":"+Distribution!Q1067+Transmission!Q1067+Generation!Q1067+Retail!Q1067+Misc!Q1067","v":0},0]
[1068,null,null,null,"Energy",{"$f":"IF(Classification=\"DEMAND\",\"F12\",IF(Classification=\"ENERGY\",\"F30\",\"F10\"))","v":"F10"},null,{"$f":"+Distribution!H1068+Transmission!H1068+Generation!H1068+Retail!H1068+Misc!H1068","v":0},{"$f":"+Distribution!I1068+Transmission!I1068+Generation!I1068+Retail!I1068+Misc!I1068","v":0},{"$f":"+Distribution!J1068+Transmission!J1068+Generation!J1068+Retail!J1068+Misc!J1068","v":0},{"$f":"+Distribution!K1068+Transmission!K1068+Generation!K1068+Retail!K1068+Misc!K1068","v":0},{"$f":"+Distribution!L1068+Transmission!L1068+Generation!L1068+Retail!L1068+Misc!L1068","v":0},{"$f":"+Distribution!M1068+Transmission!M1068+Generation!M1068+Retail!M1068+Misc!M1068","v":0},{"$f":"+Distribution!N1068+Transmission!N1068+Generation!N1068+Retail!N1068+Misc!N1068","v":0},{"$f":"+Distribution!O1068+Transmission!O1068+Generation!O1068+Retail!O1068+Misc!O1068","v":0},{"$f":"+Distribution!P1068+Transmission!P1068+Generation!P1068+Retail!P1068+Misc!P1068","v":0},{"$f":"+Distribution!Q1068+Transmission!Q1068+Generation!Q1068+Retail!Q1068+Misc!Q1068","v":0},0]
[1069,null,null,null,"SSGCT",{"$f":"IF(Function=\"gen\",\"F105G\",IF(Function=\"TRN\",\"F105T\",IF(Function=\"DIS\",\"F105D\",IF(Function=\"RETAIL\",\"F105R\",IF(Function=\"MISC\",\"F105M\",\"ERR\")))))","v":"F105D"},null,{"$f":"+Distribution!H1069+Transmission!H1069+Generation!H1069+Retail!H1069+Misc!H1069","v":0},{"$f":"+Distribution!I1069+Transmission!I1069+Generation!I1069+Retail!I1069+Misc!I1069","v":0},{"$f":"+Distribution!J1069+Transmission!J1069+Generation!J1069+Retail!J1069+Misc!J1069","v":0},{"$f":"+Distribution!K1069+Transmission!K1069+Generation!K1069+Retail!K1069+Misc!K1069","v":0},{"$f":"+Distribution!L1069+Transmission!L1069+Generation!L1069+Retail!L1069+Misc!L1069","v":0},{"$f":"+Distribution!M1069+Transmission!M1069+Generation!M1069+Retail!M1069+Misc!M1069","v":0},{"$f":"+Distribution!N1069+Transmission!N1069+Generation!N1069+Retail!N1069+Misc!N1069","v":0},{"$f":"+Distribution!O1069+Transmission!O1069+Generation!O1069+Retail!O1069+Misc!O1069","v":0},{"$f":"+Distribution!P1069+Transmission!P1069+Generation!P1069+Retail!P1069+Misc!P1069","v":0},{"$f":"+Distribution!Q1069+Transmission!Q1069+Generation!Q1069+Retail!Q1069+Misc!Q1069","v":0},0]
[1070,null,null,"Total Misc. Equipment",null,null,null,{"$f":"+Distribution!H1070+Transmission!H1070+Generation!H1070+Retail!H1070+Misc!H1070","v":531138.20304600184},{"$f":"+Distribution!I1070+Transmission!I1070+Generation!I1070+Retail!I1070+Misc!I1070","v":266664.02989704825},{"$f":"+Distribution!J1070+Transmission!J1070+Generation!J1070+Retail!J1070+Misc!J1070","v":74934.737391619594},{"$f":"+Distribution!K1070+Transmission!K1070+Generation!K1070+Retail!K1070+Misc!K1070","v":94939.333770550147},{"$f":"+Distribution!L1070+Transmission!L1070+Generation!L1070+Retail!L1070+Misc!L1070","v":36115.249274322952},{"$f":"+Distribution!M1070+Transmission!M1070+Generation!M1070+Retail!M1070+Misc!M1070","v":33199.115008069151},{"$f":"+Distribution!N1070+Transmission!N1070+Generation!N1070+Retail!N1070+Misc!N1070","v":21385.608878477713},{"$f":"+Distribution!O1070+Transmission!O1070+Generation!O1070+Retail!O1070+Misc!O1070","v":3900.1288259140397},{"$f":"+Distribution!P1070+Transmission!P1070+Generation!P1070+Retail!P1070+Misc!P1070","v":0},{"$f":"+Distribution!Q1070+Transmission!Q1070+Generation!Q1070+Retail!Q1070+Misc!Q1070","v":0},0]
[1071]
[1072,null,"399","Coal Mine",null,{"$f":"IF(Classification=\"DEMAND\",\"F12\",IF(Classification=\"ENERGY\",\"F30\",\"F10\"))","v":"F10"},null,{"$f":"+Distribution!H1072+Transmission!H1072+Generation!H1072+Retail!H1072+Misc!H1072","v":66750666.843093663},{"$f":"+Distribution!I1072+Transmission!I1072+Generation!I1072+Retail!I1072+Misc!I1072","v":28320640.647682745},{"$f":"+Distribution!J1072+Transmission!J1072+Generation!J1072+Retail!J1072+Misc!J1072","v":9008058.472247811},{"$f":"+Distribution!K1072+Transmission!K1072+Generation!K1072+Retail!K1072+Misc!K1072","v":14272490.966050362},{"$f":"+Distribution!L1072+Transmission!L1072+Generation!L1072+Retail!L1072+Misc!L1072","v":5639933.6040939763},{"$f":"+Distribution!M1072+Transmission!M1072+Generation!M1072+Retail!M1072+Misc!M1072","v":6973075.7996758213},{"$f":"+Distribution!N1072+Transmission!N1072+Generation!N1072+Retail!N1072+Misc!N1072","v":2376329.4227660983},{"$f":"+Distribution!O1072+Transmission!O1072+Generation!O1072+Retail!O1072+Misc!O1072","v":160137.93057684955},{"$f":"+Distribution!P1072+Transmission!P1072+Generation!P1072+Retail!P1072+Misc!P1072","v":0},{"$f":"+Distribution!Q1072+Transmission!Q1072+Generation!Q1072+Retail!Q1072+Misc!Q1072","v":0},{"$f":"ROUND(SUM(I1072:Q1072)-H1072,0)","v":0}]
[1073,null,"399L","WIDCO Capital Lease",null,{"$f":"IF(Classification=\"DEMAND\",\"F12\",IF(Classification=\"ENERGY\",\"F30\",\"F10\"))","v":"F10"},null,{"$f":"+Distribution!H1073+Transmission!H1073+Generation!H1073+Retail!H1073+Misc!H1073","v":0},{"$f":"+Distribution!I1073+Transmission!I1073+Generation!I1073+Retail!I1073+Misc!I1073","v":0},{"$f":"+Distribution!J1073+Transmission!J1073+Generation!J1073+Retail!J1073+Misc!J1073","v":0},{"$f":"+Distribution!K1073+Transmission!K1073+Generation!K1073+Retail!K1073+Misc!K1073","v":0},{"$f":"+Distribution!L1073+Transmission!L1073+Generation!L1073+Retail!L1073+Misc!L1073","v":0},{"$f":"+Distribution!M1073+Transmission!M1073+Generation!M1073+Retail!M1073+Misc!M1073","v":0},{"$f":"+Distribution!N1073+Transmission!N1073+Generation!N1073+Retail!N1073+Misc!N1073","v":0},{"$f":"+Distribution!O1073+Transmission!O1073+Generation!O1073+Retail!O1073+Misc!O1073","v":0},{"$f":"+Distribution!P1073+Transmission!P1073+Generation!P1073+Retail!P1073+Misc!P1073","v":0},{"$f":"+Distribution!Q1073+Transmission!Q1073+Generation!Q1073+Retail!Q1073+Misc!Q1073","v":0},{"$f":"ROUND(SUM(I1073:Q1073)-H1073,0)","v":0}]
[1074,null,null,"Remove Capital Lease",null,{"$f":"IF(Classification=\"DEMAND\",\"F12\",IF(Classification=\"ENERGY\",\"F30\",\"F10\"))","v":"F10"},null,{"$f":"+Distribution!H1074+Transmission!H1074+Generation!H1074+Retail!H1074+Misc!H1074","v":0},{"$f":"+Distribution!I1074+Transmission!I1074+Generation!I1074+Retail!I1074+Misc!I1074","v":0},{"$f":"+Distribution!J1074+Transmission!J1074+Generation!J1074+Retail!J1074+Misc!J1074","v":0},{"$f":"+Distribution!K1074+Transmission!K1074+Generation!K1074+Retail!K1074+Misc!K1074","v":0},{"$f":"+Distribution!L1074+Transmission!L1074+Generation!L1074+Retail!L1074+Misc!L1074","v":0},{"$f":"+Distribution!M1074+Transmission!M1074+Generation!M1074+Retail!M1074+Misc!M1074","v":0},{"$f":"+Distribution!N1074+Transmission!N1074+Generation!N1074+Retail!N1074+Misc!N1074","v":0},{"$f":"+Distribution!O1074+Transmission!O1074+Generation!O1074+Retail!O1074+Misc!O1074","v":0},{"$f":"+Distribution!P1074+Transmission!P1074+Generation!P1074+Retail!P1074+Misc!P1074","v":0},{"$f":"+Distribution!Q1074+Transmission!Q1074+Generation!Q1074+Retail!Q1074+Misc!Q1074","v":0},{"$f":"ROUND(SUM(I1074:Q1074)-H1074,0)","v":0}]
[1075]
[1076,null,"1011390","General Capital Lease",null,{"$f":"IF(Classification=\"DEMAND\",\"F12\",IF(Classification=\"ENERGY\",\"F30\",\"F10\"))","v":"F10"},null,{"$f":"+Distribution!H1076+Transmission!H1076+Generation!H1076+Retail!H1076+Misc!H1076","v":1894858.6553097195},{"$f":"+Distribution!I1076+Transmission!I1076+Generation!I1076+Retail!I1076+Misc!I1076","v":803941.19779089803},{"$f":"+Distribution!J1076+Transmission!J1076+Generation!J1076+Retail!J1076+Misc!J1076","v":255712.7646948871},{"$f":"+Distribution!K1076+Transmission!K1076+Generation!K1076+Retail!K1076+Misc!K1076","v":405154.79947820836},{"$f":"+Distribution!L1076+Transmission!L1076+Generation!L1076+Retail!L1076+Misc!L1076","v":160101.42685481388},{"$f":"+Distribution!M1076+Transmission!M1076+Generation!M1076+Retail!M1076+Misc!M1076","v":197945.48366393661},{"$f":"+Distribution!N1076+Transmission!N1076+Generation!N1076+Retail!N1076+Misc!N1076","v":67457.129457297298},{"$f":"+Distribution!O1076+Transmission!O1076+Generation!O1076+Retail!O1076+Misc!O1076","v":4545.8533696779923},{"$f":"+Distribution!P1076+Transmission!P1076+Generation!P1076+Retail!P1076+Misc!P1076","v":0},{"$f":"+Distribution!Q1076+Transmission!Q1076+Generation!Q1076+Retail!Q1076+Misc!Q1076","v":0},{"$f":"ROUND(SUM(I1076:Q1076)-H1076,0)","v":0}]
[1077,null,null,"Remove Capital Lease",null,{"$f":"IF(Classification=\"DEMAND\",\"F12\",IF(Classification=\"ENERGY\",\"F30\",\"F10\"))","v":"F10"},null,{"$f":"+Distribution!H1077+Transmission!H1077+Generation!H1077+Retail!H1077+Misc!H1077","v":-1894858.6553097195},{"$f":"+Distribution!I1077+Transmission!I1077+Generation!I1077+Retail!I1077+Misc!I1077","v":-803941.19779089803},{"$f":"+Distribution!J1077+Transmission!J1077+Generation!J1077+Retail!J1077+Misc!J1077","v":-255712.7646948871},{"$f":"+Distribution!K1077+Transmission!K1077+Generation!K1077+Retail!K1077+Misc!K1077","v":-405154.79947820836},{"$f":"+Distribution!L1077+Transmission!L1077+Generation!L1077+Retail!L1077+Misc!L1077","v":-160101.42685481388},{"$f":"+Distribution!M1077+Transmission!M1077+Generation!M1077+Retail!M1077+Misc!M1077","v":-197945.48366393661},{"$f":"+Distribution!N1077+Transmission!N1077+Generation!N1077+Retail!N1077+Misc!N1077","v":-67457.129457297298},{"$f":"+Distribution!O1077+Transmission!O1077+Generation!O1077+Retail!O1077+Misc!O1077","v":-4545.8533696779923},{"$f":"+Distribution!P1077+Transmission!P1077+Generation!P1077+Retail!P1077+Misc!P1077","v":0},{"$f":"+Distribution!Q1077+Transmission!Q1077+Generation!Q1077+Retail!Q1077+Misc!Q1077","v":0},{"$f":"ROUND(SUM(I1077:Q1077)-H1077,0)","v":0}]
[1078]
[1079,null,"1011392","General Vehicles Capital Lease",null,{"$f":"IF(Classification=\"DEMAND\",\"F12\",IF(Classification=\"ENERGY\",\"F30\",\"F10\"))","v":"F10"},null,{"$f":"+Distribution!H1079+Transmission!H1079+Generation!H1079+Retail!H1079+Misc!H1079","v":0},{"$f":"+Distribution!I1079+Transmission!I1079+Generation!I1079+Retail!I1079+Misc!I1079","v":0},{"$f":"+Distribution!J1079+Transmission!J1079+Generation!J1079+Retail!J1079+Misc!J1079","v":0},{"$f":"+Distribution!K1079+Transmission!K1079+Generation!K1079+Retail!K1079+Misc!K1079","v":0},{"$f":"+Distribution!L1079+Transmission!L1079+Generation!L1079+Retail!L1079+Misc!L1079","v":0},{"$f":"+Distribution!M1079+Transmission!M1079+Generation!M1079+Retail!M1079+Misc!M1079","v":0},{"$f":"+Distribution!N1079+Transmission!N1079+Generation!N1079+Retail!N1079+Misc!N1079","v":0},{"$f":"+Distribution!O1079+Transmission!O1079+Generation!O1079+Retail!O1079+Misc!O1079","v":0},{"$f":"+Distribution!P1079+Transmission!P1079+Generation!P1079+Retail!P1079+Misc!P1079","v":0},{"$f":"+Distribution!Q1079+Transmission!Q1079+Generation!Q1079+Retail!Q1079+Misc!Q1079","v":0},{"$f":"ROUND(SUM(I1079:Q1079)-H1079,0)","v":0}]
[1080,null,null,"Remove Capital Lease",null,{"$f":"IF(Classification=\"DEMAND\",\"F12\",IF(Classification=\"ENERGY\",\"F30\",\"F10\"))","v":"F10"},null,{"$f":"+Distribution!H1080+Transmission!H1080+Generation!H1080+Retail!H1080+Misc!H1080","v":0},{"$f":"+Distribution!I1080+Transmission!I1080+Generation!I1080+Retail!I1080+Misc!I1080","v":0},{"$f":"+Distribution!J1080+Transmission!J1080+Generation!J1080+Retail!J1080+Misc!J1080","v":0},{"$f":"+Distribution!K1080+Transmission!K1080+Generation!K1080+Retail!K1080+Misc!K1080","v":0},{"$f":"+Distribution!L1080+Transmission!L1080+Generation!L1080+Retail!L1080+Misc!L1080","v":0},{"$f":"+Distribution!M1080+Transmission!M1080+Generation!M1080+Retail!M1080+Misc!M1080","v":0},{"$f":"+Distribution!N1080+Transmission!N1080+Generation!N1080+Retail!N1080+Misc!N1080","v":0},{"$f":"+Distribution!O1080+Transmission!O1080+Generation!O1080+Retail!O1080+Misc!O1080","v":0},{"$f":"+Distribution!P1080+Transmission!P1080+Generation!P1080+Retail!P1080+Misc!P1080","v":0},{"$f":"+Distribution!Q1080+Transmission!Q1080+Generation!Q1080+Retail!Q1080+Misc!Q1080","v":0},{"$f":"ROUND(SUM(I1080:Q1080)-H1080,0)","v":0}]
[1081]
[1082,null,"GP","Unclassified Gen Plant - Acct 300",null,{"$f":"IF(Function=\"gen\",\"F102G\",IF(Function=\"TRN\",\"F102T\",IF(Function=\"DIS\",\"F102D\",IF(Function=\"RETAIL\",\"F102R\",IF(Function=\"MISC\",\"F102M\",\"ERR\")))))","v":"F102D"},null,{"$f":"+Distribution!H1082+Transmission!H1082+Generation!H1082+Retail!H1082+Misc!H1082","v":507064.38688910217},{"$f":"+Distribution!I1082+Transmission!I1082+Generation!I1082+Retail!I1082+Misc!I1082","v":240154.84392034018},{"$f":"+Distribution!J1082+Transmission!J1082+Generation!J1082+Retail!J1082+Misc!J1082","v":70696.031866454912},{"$f":"+Distribution!K1082+Transmission!K1082+Generation!K1082+Retail!K1082+Misc!K1082","v":97485.344162327645},{"$f":"+Distribution!L1082+Transmission!L1082+Generation!L1082+Retail!L1082+Misc!L1082","v":37554.30884086794},{"$f":"+Distribution!M1082+Transmission!M1082+Generation!M1082+Retail!M1082+Misc!M1082","v":38403.670510083597},{"$f":"+Distribution!N1082+Transmission!N1082+Generation!N1082+Retail!N1082+Misc!N1082","v":19909.940668551793},{"$f":"+Distribution!O1082+Transmission!O1082+Generation!O1082+Retail!O1082+Misc!O1082","v":2860.2469204761846},{"$f":"+Distribution!P1082+Transmission!P1082+Generation!P1082+Retail!P1082+Misc!P1082","v":0},{"$f":"+Distribution!Q1082+Transmission!Q1082+Generation!Q1082+Retail!Q1082+Misc!Q1082","v":0},{"$f":"ROUND(SUM(I1082:Q1082)-H1082,0)","v":0}]
[1083,null,"399G","Unclassified Gen Veh - Acct 300",null,"F102D",null,{"$f":"+Distribution!H1083+Transmission!H1083+Generation!H1083+Retail!H1083+Misc!H1083","v":0},{"$f":"+Distribution!I1083+Transmission!I1083+Generation!I1083+Retail!I1083+Misc!I1083","v":0},{"$f":"+Distribution!J1083+Transmission!J1083+Generation!J1083+Retail!J1083+Misc!J1083","v":0},{"$f":"+Distribution!K1083+Transmission!K1083+Generation!K1083+Retail!K1083+Misc!K1083","v":0},{"$f":"+Distribution!L1083+Transmission!L1083+Generation!L1083+Retail!L1083+Misc!L1083","v":0},{"$f":"+Distribution!M1083+Transmission!M1083+Generation!M1083+Retail!M1083+Misc!M1083","v":0},{"$f":"+Distribution!N1083+Transmission!N1083+Generation!N1083+Retail!N1083+Misc!N1083","v":0},{"$f":"+Distribution!O1083+Transmission!O1083+Generation!O1083+Retail!O1083+Misc!O1083","v":0},{"$f":"+Distribution!P1083+Transmission!P1083+Generation!P1083+Retail!P1083+Misc!P1083","v":0},{"$f":"+Distribution!Q1083+Transmission!Q1083+Generation!Q1083+Retail!Q1083+Misc!Q1083","v":0},{"$f":"ROUND(SUM(I1083:Q1083)-H1083,0)","v":0}]
[1084]
[1085,null,"TOTAL GENERAL PLANT",null,null,null,null,{"$f":"+Distribution!H1085+Transmission!H1085+Generation!H1085+Retail!H1085+Misc!H1085","v":146557209.81882393},{"$f":"+Distribution!I1085+Transmission!I1085+Generation!I1085+Retail!I1085+Misc!I1085","v":69595122.567186862},{"$f":"+Distribution!J1085+Transmission!J1085+Generation!J1085+Retail!J1085+Misc!J1085","v":20393121.30260551},{"$f":"+Distribution!K1085+Transmission!K1085+Generation!K1085+Retail!K1085+Misc!K1085","v":28029539.190131072},{"$f":"+Distribution!L1085+Transmission!L1085+Generation!L1085+Retail!L1085+Misc!L1085","v":10812339.173395252},{"$f":"+Distribution!M1085+Transmission!M1085+Generation!M1085+Retail!M1085+Misc!M1085","v":11199548.550420361},{"$f":"+Distribution!N1085+Transmission!N1085+Generation!N1085+Retail!N1085+Misc!N1085","v":5699137.1958592907},{"$f":"+Distribution!O1085+Transmission!O1085+Generation!O1085+Retail!O1085+Misc!O1085","v":828401.83922556823},{"$f":"+Distribution!P1085+Transmission!P1085+Generation!P1085+Retail!P1085+Misc!P1085","v":0},{"$f":"+Distribution!Q1085+Transmission!Q1085+Generation!Q1085+Retail!Q1085+Misc!Q1085","v":0},{"$f":"ROUND(SUM(I1085:Q1085)-H1085,0)","v":0}]
[1086]
[1087]
[1088]
[1089]
[1090,null,null,null,null,null,null,"INTANGIBLE PLANT"]
[1091,null,"301","Organization"]
[1092,null,null,null,"Situs",{"$f":"IF(Function=\"gen\",\"F107G\",IF(Function=\"TRN\",\"F107T\",IF(Function=\"DIS\",\"F107D\",IF(Function=\"RETAIL\",\"F107R\",IF(Function=\"MISC\",\"F107M\",\"ERR\")))))","v":"F107D"},null,{"$f":"+Distribution!H1092+Transmission!H1092+Generation!H1092+Retail!H1092+Misc!H1092","v":0},{"$f":"+Distribution!I1092+Transmission!I1092+Generation!I1092+Retail!I1092+Misc!I1092","v":0},{"$f":"+Distribution!J1092+Transmission!J1092+Generation!J1092+Retail!J1092+Misc!J1092","v":0},{"$f":"+Distribution!K1092+Transmission!K1092+Generation!K1092+Retail!K1092+Misc!K1092","v":0},{"$f":"+Distribution!L1092+Transmission!L1092+Generation!L1092+Retail!L1092+Misc!L1092","v":0},{"$f":"+Distribution!M1092+Transmission!M1092+Generation!M1092+Retail!M1092+Misc!M1092","v":0},{"$f":"+Distribution!N1092+Transmission!N1092+Generation!N1092+Retail!N1092+Misc!N1092","v":0},{"$f":"+Distribution!O1092+Transmission!O1092+Generation!O1092+Retail!O1092+Misc!O1092","v":0},{"$f":"+Distribution!P1092+Transmission!P1092+Generation!P1092+Retail!P1092+Misc!P1092","v":0},{"$f":"+Distribution!Q1092+Transmission!Q1092+Generation!Q1092+Retail!Q1092+Misc!Q1092","v":0},{"$f":"ROUND(SUM(I1092:Q1092)-H1092,0)","v":0}]
[1093,null,null,null,"System Generation",{"$f":"IF(Function=\"gen\",\"F105G\",IF(Function=\"TRN\",\"F105T\",IF(Function=\"DIS\",\"F105D\",IF(Function=\"RETAIL\",\"F105R\",IF(Function=\"MISC\",\"F105M\",\"ERR\")))))","v":"F105D"},null,{"$f":"+Distribution!H1093+Transmission!H1093+Generation!H1093+Retail!H1093+Misc!H1093","v":0},{"$f":"+Distribution!I1093+Transmission!I1093+Generation!I1093+Retail!I1093+Misc!I1093","v":0},{"$f":"+Distribution!J1093+Transmission!J1093+Generation!J1093+Retail!J1093+Misc!J1093","v":0},{"$f":"+Distribution!K1093+Transmission!K1093+Generation!K1093+Retail!K1093+Misc!K1093","v":0},{"$f":"+Distribution!L1093+Transmission!L1093+Generation!L1093+Retail!L1093+Misc!L1093","v":0},{"$f":"+Distribution!M1093+Transmission!M1093+Generation!M1093+Retail!M1093+Misc!M1093","v":0},{"$f":"+Distribution!N1093+Transmission!N1093+Generation!N1093+Retail!N1093+Misc!N1093","v":0},{"$f":"+Distribution!O1093+Transmission!O1093+Generation!O1093+Retail!O1093+Misc!O1093","v":0},{"$f":"+Distribution!P1093+Transmission!P1093+Generation!P1093+Retail!P1093+Misc!P1093","v":0},{"$f":"+Distribution!Q1093+Transmission!Q1093+Generation!Q1093+Retail!Q1093+Misc!Q1093","v":0},{"$f":"ROUND(SUM(I1093:Q1093)-H1093,0)","v":0}]
[1094,null,null,null,"System Overheads",{"$f":"IF(Function=\"gen\",\"F102G\",IF(Function=\"TRN\",\"F102T\",IF(Function=\"DIS\",\"F102D\",IF(Function=\"RETAIL\",\"F102R\",IF(Function=\"MISC\",\"F102M\",\"ERR\")))))","v":"F102D"},null,{"$f":"+Distribution!H1094+Transmission!H1094+Generation!H1094+Retail!H1094+Misc!H1094","v":0},{"$f":"+Distribution!I1094+Transmission!I1094+Generation!I1094+Retail!I1094+Misc!I1094","v":0},{"$f":"+Distribution!J1094+Transmission!J1094+Generation!J1094+Retail!J1094+Misc!J1094","v":0},{"$f":"+Distribution!K1094+Transmission!K1094+Generation!K1094+Retail!K1094+Misc!K1094","v":0},{"$f":"+Distribution!L1094+Transmission!L1094+Generation!L1094+Retail!L1094+Misc!L1094","v":0},{"$f":"+Distribution!M1094+Transmission!M1094+Generation!M1094+Retail!M1094+Misc!M1094","v":0},{"$f":"+Distribution!N1094+Transmission!N1094+Generation!N1094+Retail!N1094+Misc!N1094","v":0},{"$f":"+Distribution!O1094+Transmission!O1094+Generation!O1094+Retail!O1094+Misc!O1094","v":0},{"$f":"+Distribution!P1094+Transmission!P1094+Generation!P1094+Retail!P1094+Misc!P1094","v":0},{"$f":"+Distribution!Q1094+Transmission!Q1094+Generation!Q1094+Retail!Q1094+Misc!Q1094","v":0},{"$f":"ROUND(SUM(I1094:Q1094)-H1094,0)","v":0}]
[1095,null,null,"Total Organization",null,null,null,{"$f":"+Distribution!H1095+Transmission!H1095+Generation!H1095+Retail!H1095+Misc!H1095","v":0},{"$f":"+Distribution!I1095+Transmission!I1095+Generation!I1095+Retail!I1095+Misc!I1095","v":0},{"$f":"+Distribution!J1095+Transmission!J1095+Generation!J1095+Retail!J1095+Misc!J1095","v":0},{"$f":"+Distribution!K1095+Transmission!K1095+Generation!K1095+Retail!K1095+Misc!K1095","v":0},{"$f":"+Distribution!L1095+Transmission!L1095+Generation!L1095+Retail!L1095+Misc!L1095","v":0},{"$f":"+Distribution!M1095+Transmission!M1095+Generation!M1095+Retail!M1095+Misc!M1095","v":0},{"$f":"+Distribution!N1095+Transmission!N1095+Generation!N1095+Retail!N1095+Misc!N1095","v":0},{"$f":"+Distribution!O1095+Transmission!O1095+Generation!O1095+Retail!O1095+Misc!O1095","v":0},{"$f":"+Distribution!P1095+Transmission!P1095+Generation!P1095+Retail!P1095+Misc!P1095","v":0},{"$f":"+Distribution!Q1095+Transmission!Q1095+Generation!Q1095+Retail!Q1095+Misc!Q1095","v":0},{"$f":"ROUND(SUM(I1095:Q1095)-H1095,0)","v":0}]
[1096]
[1097,null,"302","Franchise & Consent"]
[1098,null,null,null,"Situs",{"$f":"IF(Function=\"gen\",\"F107G\",IF(Function=\"TRN\",\"F107T\",IF(Function=\"DIS\",\"F107D\",IF(Function=\"RETAIL\",\"F107R\",IF(Function=\"MISC\",\"F107M\",\"ERR\")))))","v":"F107D"},null,{"$f":"+Distribution!H1098+Transmission!H1098+Generation!H1098+Retail!H1098+Misc!H1098","v":0},{"$f":"+Distribution!I1098+Transmission!I1098+Generation!I1098+Retail!I1098+Misc!I1098","v":0},{"$f":"+Distribution!J1098+Transmission!J1098+Generation!J1098+Retail!J1098+Misc!J1098","v":0},{"$f":"+Distribution!K1098+Transmission!K1098+Generation!K1098+Retail!K1098+Misc!K1098","v":0},{"$f":"+Distribution!L1098+Transmission!L1098+Generation!L1098+Retail!L1098+Misc!L1098","v":0},{"$f":"+Distribution!M1098+Transmission!M1098+Generation!M1098+Retail!M1098+Misc!M1098","v":0},{"$f":"+Distribution!N1098+Transmission!N1098+Generation!N1098+Retail!N1098+Misc!N1098","v":0},{"$f":"+Distribution!O1098+Transmission!O1098+Generation!O1098+Retail!O1098+Misc!O1098","v":0},{"$f":"+Distribution!P1098+Transmission!P1098+Generation!P1098+Retail!P1098+Misc!P1098","v":0},{"$f":"+Distribution!Q1098+Transmission!Q1098+Generation!Q1098+Retail!Q1098+Misc!Q1098","v":0},{"$f":"ROUND(SUM(I1098:Q1098)-H1098,0)","v":0}]
[1099,null,null,null,"System Generation",{"$f":"IF(Function=\"gen\",\"F105G\",IF(Function=\"TRN\",\"F105T\",IF(Function=\"DIS\",\"F105D\",IF(Function=\"RETAIL\",\"F105R\",IF(Function=\"MISC\",\"F105M\",\"ERR\")))))","v":"F105D"},null,{"$f":"+Distribution!H1099+Transmission!H1099+Generation!H1099+Retail!H1099+Misc!H1099","v":40603923.427147947},{"$f":"+Distribution!I1099+Transmission!I1099+Generation!I1099+Retail!I1099+Misc!I1099","v":17227230.507963996},{"$f":"+Distribution!J1099+Transmission!J1099+Generation!J1099+Retail!J1099+Misc!J1099","v":5479533.5197803341},{"$f":"+Distribution!K1099+Transmission!K1099+Generation!K1099+Retail!K1099+Misc!K1099","v":8681847.8032947127},{"$f":"+Distribution!L1099+Transmission!L1099+Generation!L1099+Retail!L1099+Misc!L1099","v":3430728.7556112884},{"$f":"+Distribution!M1099+Transmission!M1099+Generation!M1099+Retail!M1099+Misc!M1099","v":4241669.0231317133},{"$f":"+Distribution!N1099+Transmission!N1099+Generation!N1099+Retail!N1099+Misc!N1099","v":1445503.1310246228},{"$f":"+Distribution!O1099+Transmission!O1099+Generation!O1099+Retail!O1099+Misc!O1099","v":97410.686341286855},{"$f":"+Distribution!P1099+Transmission!P1099+Generation!P1099+Retail!P1099+Misc!P1099","v":0},{"$f":"+Distribution!Q1099+Transmission!Q1099+Generation!Q1099+Retail!Q1099+Misc!Q1099","v":0},{"$f":"ROUND(SUM(I1099:Q1099)-H1099,0)","v":0}]
[1100,null,null,"Total Franchise & Consent",null,null,null,{"$f":"+Distribution!H1100+Transmission!H1100+Generation!H1100+Retail!H1100+Misc!H1100","v":40603923.427147947},{"$f":"+Distribution!I1100+Transmission!I1100+Generation!I1100+Retail!I1100+Misc!I1100","v":17227230.507963996},{"$f":"+Distribution!J1100+Transmission!J1100+Generation!J1100+Retail!J1100+Misc!J1100","v":5479533.5197803341},{"$f":"+Distribution!K1100+Transmission!K1100+Generation!K1100+Retail!K1100+Misc!K1100","v":8681847.8032947127},{"$f":"+Distribution!L1100+Transmission!L1100+Generation!L1100+Retail!L1100+Misc!L1100","v":3430728.7556112884},{"$f":"+Distribution!M1100+Transmission!M1100+Generation!M1100+Retail!M1100+Misc!M1100","v":4241669.0231317133},{"$f":"+Distribution!N1100+Transmission!N1100+Generation!N1100+Retail!N1100+Misc!N1100","v":1445503.1310246228},{"$f":"+Distribution!O1100+Transmission!O1100+Generation!O1100+Retail!O1100+Misc!O1100","v":97410.686341286855},{"$f":"+Distribution!P1100+Transmission!P1100+Generation!P1100+Retail!P1100+Misc!P1100","v":0},{"$f":"+Distribution!Q1100+Transmission!Q1100+Generation!Q1100+Retail!Q1100+Misc!Q1100","v":0},{"$f":"ROUND(SUM(I1100:Q1100)-H1100,0)","v":0}]
[1101]
[1102,null,"303","Miscellaneous Intangible Plant"]
[1103,null,null,null,"Situs",{"$f":"IF(Function=\"gen\",\"F107G\",IF(Function=\"TRN\",\"F107T\",IF(Function=\"DIS\",\"F107D\",IF(Function=\"RETAIL\",\"F107R\",IF(Function=\"MISC\",\"F107M\",\"ERR\")))))","v":"F107D"},null,{"$f":"+Distribution!H1103+Transmission!H1103+Generation!H1103+Retail!H1103+Misc!H1103","v":1465231.81},{"$f":"+Distribution!I1103+Transmission!I1103+Generation!I1103+Retail!I1103+Misc!I1103","v":748568.07564681524},{"$f":"+Distribution!J1103+Transmission!J1103+Generation!J1103+Retail!J1103+Misc!J1103","v":209234.28875876073},{"$f":"+Distribution!K1103+Transmission!K1103+Generation!K1103+Retail!K1103+Misc!K1103","v":257832.83310969095},{"$f":"+Distribution!L1103+Transmission!L1103+Generation!L1103+Retail!L1103+Misc!L1103","v":96975.070680501172},{"$f":"+Distribution!M1103+Transmission!M1103+Generation!M1103+Retail!M1103+Misc!M1103","v":79180.253157761996},{"$f":"+Distribution!N1103+Transmission!N1103+Generation!N1103+Retail!N1103+Misc!N1103","v":61588.574482799071},{"$f":"+Distribution!O1103+Transmission!O1103+Generation!O1103+Retail!O1103+Misc!O1103","v":11852.714163670964},{"$f":"+Distribution!P1103+Transmission!P1103+Generation!P1103+Retail!P1103+Misc!P1103","v":0},{"$f":"+Distribution!Q1103+Transmission!Q1103+Generation!Q1103+Retail!Q1103+Misc!Q1103","v":0},{"$f":"ROUND(SUM(I1103:Q1103)-H1103,0)","v":0}]
[1104,null,null,null,"System Generation",{"$f":"IF(Function=\"gen\",\"F105G\",IF(Function=\"TRN\",\"F105T\",IF(Function=\"DIS\",\"F105D\",IF(Function=\"RETAIL\",\"F105R\",IF(Function=\"MISC\",\"F105M\",\"ERR\")))))","v":"F105D"},null,{"$f":"+Distribution!H1104+Transmission!H1104+Generation!H1104+Retail!H1104+Misc!H1104","v":16553983.155658755},{"$f":"+Distribution!I1104+Transmission!I1104+Generation!I1104+Retail!I1104+Misc!I1104","v":7023441.5686247349},{"$f":"+Distribution!J1104+Transmission!J1104+Generation!J1104+Retail!J1104+Misc!J1104","v":2233973.9101828611},{"$f":"+Distribution!K1104+Transmission!K1104+Generation!K1104+Retail!K1104+Misc!K1104","v":3539538.7973676063},{"$f":"+Distribution!L1104+Transmission!L1104+Generation!L1104+Retail!L1104+Misc!L1104","v":1398688.1374633831},{"$f":"+Distribution!M1104+Transmission!M1104+Generation!M1104+Retail!M1104+Misc!M1104","v":1729303.7626471054},{"$f":"+Distribution!N1104+Transmission!N1104+Generation!N1104+Retail!N1104+Misc!N1104","v":589323.20974762458},{"$f":"+Distribution!O1104+Transmission!O1104+Generation!O1104+Retail!O1104+Misc!O1104","v":39713.769625441506},{"$f":"+Distribution!P1104+Transmission!P1104+Generation!P1104+Retail!P1104+Misc!P1104","v":0},{"$f":"+Distribution!Q1104+Transmission!Q1104+Generation!Q1104+Retail!Q1104+Misc!Q1104","v":0},0]
[1105,null,null,null,"System Overheads",{"$f":"IF(Function=\"gen\",\"F102G\",IF(Function=\"TRN\",\"F102T\",IF(Function=\"DIS\",\"F102D\",IF(Function=\"RETAIL\",\"F102R\",IF(Function=\"MISC\",\"F102M\",\"ERR\")))))","v":"F102D"},null,{"$f":"+Distribution!H1105+Transmission!H1105+Generation!H1105+Retail!H1105+Misc!H1105","v":26261795.412689157},{"$f":"+Distribution!I1105+Transmission!I1105+Generation!I1105+Retail!I1105+Misc!I1105","v":12438060.21774829},{"$f":"+Distribution!J1105+Transmission!J1105+Generation!J1105+Retail!J1105+Misc!J1105","v":3661477.2667358355},{"$f":"+Distribution!K1105+Transmission!K1105+Generation!K1105+Retail!K1105+Misc!K1105","v":5048944.9275532672},{"$f":"+Distribution!L1105+Transmission!L1105+Generation!L1105+Retail!L1105+Misc!L1105","v":1945006.5931360987},{"$f":"+Distribution!M1105+Transmission!M1105+Generation!M1105+Retail!M1105+Misc!M1105","v":1988996.5931539871},{"$f":"+Distribution!N1105+Transmission!N1105+Generation!N1105+Retail!N1105+Misc!N1105","v":1031172.3758084425},{"$f":"+Distribution!O1105+Transmission!O1105+Generation!O1105+Retail!O1105+Misc!O1105","v":148137.43855323811},{"$f":"+Distribution!P1105+Transmission!P1105+Generation!P1105+Retail!P1105+Misc!P1105","v":0},{"$f":"+Distribution!Q1105+Transmission!Q1105+Generation!Q1105+Retail!Q1105+Misc!Q1105","v":0},0]
[1106,null,null,null,"Customer - System","F42",null,{"$f":"+Distribution!H1106+Transmission!H1106+Generation!H1106+Retail!H1106+Misc!H1106","v":8509282.5923934299},{"$f":"+Distribution!I1106+Transmission!I1106+Generation!I1106+Retail!I1106+Misc!I1106","v":6865874.9395811688},{"$f":"+Distribution!J1106+Transmission!J1106+Generation!J1106+Retail!J1106+Misc!J1106","v":1166143.2116135592},{"$f":"+Distribution!K1106+Transmission!K1106+Generation!K1106+Retail!K1106+Misc!K1106","v":70821.89182221888},{"$f":"+Distribution!L1106+Transmission!L1106+Generation!L1106+Retail!L1106+Misc!L1106","v":14524.955996373323},{"$f":"+Distribution!M1106+Transmission!M1106+Generation!M1106+Retail!M1106+Misc!M1106","v":250.81247872340421},{"$f":"+Distribution!N1106+Transmission!N1106+Generation!N1106+Retail!N1106+Misc!N1106","v":207737.41040406682},{"$f":"+Distribution!O1106+Transmission!O1106+Generation!O1106+Retail!O1106+Misc!O1106","v":183929.3704973195},{"$f":"+Distribution!P1106+Transmission!P1106+Generation!P1106+Retail!P1106+Misc!P1106","v":0},{"$f":"+Distribution!Q1106+Transmission!Q1106+Generation!Q1106+Retail!Q1106+Misc!Q1106","v":0},0]
[1107,null,null,null,"Energy",{"$f":"IF(Classification=\"DEMAND\",\"F12\",IF(Classification=\"ENERGY\",\"F30\",\"F10\"))","v":"F10"},null,{"$f":"+Distribution!H1107+Transmission!H1107+Generation!H1107+Retail!H1107+Misc!H1107","v":0},{"$f":"+Distribution!I1107+Transmission!I1107+Generation!I1107+Retail!I1107+Misc!I1107","v":0},{"$f":"+Distribution!J1107+Transmission!J1107+Generation!J1107+Retail!J1107+Misc!J1107","v":0},{"$f":"+Distribution!K1107+Transmission!K1107+Generation!K1107+Retail!K1107+Misc!K1107","v":0},{"$f":"+Distribution!L1107+Transmission!L1107+Generation!L1107+Retail!L1107+Misc!L1107","v":0},{"$f":"+Distribution!M1107+Transmission!M1107+Generation!M1107+Retail!M1107+Misc!M1107","v":0},{"$f":"+Distribution!N1107+Transmission!N1107+Generation!N1107+Retail!N1107+Misc!N1107","v":0},{"$f":"+Distribution!O1107+Transmission!O1107+Generation!O1107+Retail!O1107+Misc!O1107","v":0},{"$f":"+Distribution!P1107+Transmission!P1107+Generation!P1107+Retail!P1107+Misc!P1107","v":0},{"$f":"+Distribution!Q1107+Transmission!Q1107+Generation!Q1107+Retail!Q1107+Misc!Q1107","v":0},0]
[1108,null,null,null,"SSGCT",{"$f":"IF(Function=\"gen\",\"F105G\",IF(Function=\"TRN\",\"F105T\",IF(Function=\"DIS\",\"F105D\",IF(Function=\"RETAIL\",\"F105R\",IF(Function=\"MISC\",\"F105M\",\"ERR\")))))","v":"F105D"},null,{"$f":"+Distribution!H1108+Transmission!H1108+Generation!H1108+Retail!H1108+Misc!H1108","v":0},{"$f":"+Distribution!I1108+Transmission!I1108+Generation!I1108+Retail!I1108+Misc!I1108","v":0},{"$f":"+Distribution!J1108+Transmission!J1108+Generation!J1108+Retail!J1108+Misc!J1108","v":0},{"$f":"+Distribution!K1108+Transmission!K1108+Generation!K1108+Retail!K1108+Misc!K1108","v":0},{"$f":"+Distribution!L1108+Transmission!L1108+Generation!L1108+Retail!L1108+Misc!L1108","v":0},{"$f":"+Distribution!M1108+Transmission!M1108+Generation!M1108+Retail!M1108+Misc!M1108","v":0},{"$f":"+Distribution!N1108+Transmission!N1108+Generation!N1108+Retail!N1108+Misc!N1108","v":0},{"$f":"+Distribution!O1108+Transmission!O1108+Generation!O1108+Retail!O1108+Misc!O1108","v":0},{"$f":"+Distribution!P1108+Transmission!P1108+Generation!P1108+Retail!P1108+Misc!P1108","v":0},{"$f":"+Distribution!Q1108+Transmission!Q1108+Generation!Q1108+Retail!Q1108+Misc!Q1108","v":0},0]
[1109,null,null,null,"SSGCH",{"$f":"IF(Function=\"gen\",\"F105G\",IF(Function=\"TRN\",\"F105T\",IF(Function=\"DIS\",\"F105D\",IF(Function=\"RETAIL\",\"F105R\",IF(Function=\"MISC\",\"F105M\",\"ERR\")))))","v":"F105D"},null,{"$f":"+Distribution!H1109+Transmission!H1109+Generation!H1109+Retail!H1109+Misc!H1109","v":0},{"$f":"+Distribution!I1109+Transmission!I1109+Generation!I1109+Retail!I1109+Misc!I1109","v":0},{"$f":"+Distribution!J1109+Transmission!J1109+Generation!J1109+Retail!J1109+Misc!J1109","v":0},{"$f":"+Distribution!K1109+Transmission!K1109+Generation!K1109+Retail!K1109+Misc!K1109","v":0},{"$f":"+Distribution!L1109+Transmission!L1109+Generation!L1109+Retail!L1109+Misc!L1109","v":0},{"$f":"+Distribution!M1109+Transmission!M1109+Generation!M1109+Retail!M1109+Misc!M1109","v":0},{"$f":"+Distribution!N1109+Transmission!N1109+Generation!N1109+Retail!N1109+Misc!N1109","v":0},{"$f":"+Distribution!O1109+Transmission!O1109+Generation!O1109+Retail!O1109+Misc!O1109","v":0},{"$f":"+Distribution!P1109+Transmission!P1109+Generation!P1109+Retail!P1109+Misc!P1109","v":0},{"$f":"+Distribution!Q1109+Transmission!Q1109+Generation!Q1109+Retail!Q1109+Misc!Q1109","v":0},0]
[1110,null,null,"Total Miscellaneous Intangible Plant",null,null,null,{"$f":"+Distribution!H1110+Transmission!H1110+Generation!H1110+Retail!H1110+Misc!H1110","v":52790292.970741339},{"$f":"+Distribution!I1110+Transmission!I1110+Generation!I1110+Retail!I1110+Misc!I1110","v":27075944.801601008},{"$f":"+Distribution!J1110+Transmission!J1110+Generation!J1110+Retail!J1110+Misc!J1110","v":7270828.677291017},{"$f":"+Distribution!K1110+Transmission!K1110+Generation!K1110+Retail!K1110+Misc!K1110","v":8917138.4498527832},{"$f":"+Distribution!L1110+Transmission!L1110+Generation!L1110+Retail!L1110+Misc!L1110","v":3455194.7572763562},{"$f":"+Distribution!M1110+Transmission!M1110+Generation!M1110+Retail!M1110+Misc!M1110","v":3797731.4214375778},{"$f":"+Distribution!N1110+Transmission!N1110+Generation!N1110+Retail!N1110+Misc!N1110","v":1889821.5704429329},{"$f":"+Distribution!O1110+Transmission!O1110+Generation!O1110+Retail!O1110+Misc!O1110","v":383633.29283967009},{"$f":"+Distribution!P1110+Transmission!P1110+Generation!P1110+Retail!P1110+Misc!P1110","v":0},{"$f":"+Distribution!Q1110+Transmission!Q1110+Generation!Q1110+Retail!Q1110+Misc!Q1110","v":0},0]
[1111]
[1112,null,"IP","Unclass Intangible Plant - Acct 300",null,{"$f":"IF(Function=\"gen\",\"F102G\",IF(Function=\"TRN\",\"F102T\",IF(Function=\"DIS\",\"F102D\",IF(Function=\"RETAIL\",\"F102R\",IF(Function=\"MISC\",\"F102M\",\"ERR\")))))","v":"F102D"},null,{"$f":"+Distribution!H1112+Transmission!H1112+Generation!H1112+Retail!H1112+Misc!H1112","v":0},{"$f":"+Distribution!I1112+Transmission!I1112+Generation!I1112+Retail!I1112+Misc!I1112","v":0},{"$f":"+Distribution!J1112+Transmission!J1112+Generation!J1112+Retail!J1112+Misc!J1112","v":0},{"$f":"+Distribution!K1112+Transmission!K1112+Generation!K1112+Retail!K1112+Misc!K1112","v":0},{"$f":"+Distribution!L1112+Transmission!L1112+Generation!L1112+Retail!L1112+Misc!L1112","v":0},{"$f":"+Distribution!M1112+Transmission!M1112+Generation!M1112+Retail!M1112+Misc!M1112","v":0},{"$f":"+Distribution!N1112+Transmission!N1112+Generation!N1112+Retail!N1112+Misc!N1112","v":0},{"$f":"+Distribution!O1112+Transmission!O1112+Generation!O1112+Retail!O1112+Misc!O1112","v":0},{"$f":"+Distribution!P1112+Transmission!P1112+Generation!P1112+Retail!P1112+Misc!P1112","v":0},{"$f":"+Distribution!Q1112+Transmission!Q1112+Generation!Q1112+Retail!Q1112+Misc!Q1112","v":0},{"$f":"ROUND(SUM(I1112:Q1112)-H1112,0)","v":0}]
[1113]
[1114,null,"TOTAL INTANGIBLE PLANT",null,null,null,null,{"$f":"+Distribution!H1114+Transmission!H1114+Generation!H1114+Retail!H1114+Misc!H1114","v":93394216.397889286},{"$f":"+Distribution!I1114+Transmission!I1114+Generation!I1114+Retail!I1114+Misc!I1114","v":44303175.309565008},{"$f":"+Distribution!J1114+Transmission!J1114+Generation!J1114+Retail!J1114+Misc!J1114","v":12750362.197071351},{"$f":"+Distribution!K1114+Transmission!K1114+Generation!K1114+Retail!K1114+Misc!K1114","v":17598986.253147494},{"$f":"+Distribution!L1114+Transmission!L1114+Generation!L1114+Retail!L1114+Misc!L1114","v":6885923.5128876455},{"$f":"+Distribution!M1114+Transmission!M1114+Generation!M1114+Retail!M1114+Misc!M1114","v":8039400.4445692906},{"$f":"+Distribution!N1114+Transmission!N1114+Generation!N1114+Retail!N1114+Misc!N1114","v":3335324.7014675555},{"$f":"+Distribution!O1114+Transmission!O1114+Generation!O1114+Retail!O1114+Misc!O1114","v":481043.97918095696},{"$f":"+Distribution!P1114+Transmission!P1114+Generation!P1114+Retail!P1114+Misc!P1114","v":0},{"$f":"+Distribution!Q1114+Transmission!Q1114+Generation!Q1114+Retail!Q1114+Misc!Q1114","v":0},{"$f":"ROUND(SUM(I1114:Q1114)-H1114,0)","v":0}]
[1115]
[1116]
[1117,null,"TOTAL ELECTRIC PLANT IN SERVICE",null,null,null,null,{"$f":"+Distribution!H1117+Transmission!H1117+Generation!H1117+Retail!H1117+Misc!H1117","v":1655504559.060895},{"$f":"+Distribution!I1117+Transmission!I1117+Generation!I1117+Retail!I1117+Misc!I1117","v":783253335.20916152},{"$f":"+Distribution!J1117+Transmission!J1117+Generation!J1117+Retail!J1117+Misc!J1117","v":230405466.59949923},{"$f":"+Distribution!K1117+Transmission!K1117+Generation!K1117+Retail!K1117+Misc!K1117","v":318245233.62398398},{"$f":"+Distribution!L1117+Transmission!L1117+Generation!L1117+Retail!L1117+Misc!L1117","v":122764804.24215172},{"$f":"+Distribution!M1117+Transmission!M1117+Generation!M1117+Retail!M1117+Misc!M1117","v":127075789.22731778},{"$f":"+Distribution!N1117+Transmission!N1117+Generation!N1117+Retail!N1117+Misc!N1117","v":64536359.709591046},{"$f":"+Distribution!O1117+Transmission!O1117+Generation!O1117+Retail!O1117+Misc!O1117","v":9223570.4491897654},{"$f":"+Distribution!P1117+Transmission!P1117+Generation!P1117+Retail!P1117+Misc!P1117","v":0},{"$f":"+Distribution!Q1117+Transmission!Q1117+Generation!Q1117+Retail!Q1117+Misc!Q1117","v":0},{"$f":"ROUND(SUM(I1117:Q1117)-H1117,0)","v":0}]
[1118]
[1119]
[1120,null,null,null,null,null,null,"RATE BASE ADDITIONS"]
[1121]
[1122,null,"A",null,"B","C",null,"D","E","F","G","H","I","J","K","L","M"]
[1123,null,null,null,null,null,null,{"$f":"'Hot Sheet'!$H$10","v":"Washington"},null,{"$f":"'Hot Sheet'!$J$10","v":"Small General"},{"$f":"'Hot Sheet'!$K$10","v":"Large General"},{"$f":"'Hot Sheet'!$L$10","v":"Large General"},{"$f":"'Hot Sheet'!$M$10","v":"Large General"},{"$f":"'Hot Sheet'!$N$10","v":"Agricultural"},{"$f":"'Hot Sheet'!$O$10","v":"Street & Area"}]
[1124,null,"FERC",null,null,"COS",null,{"$f":"'Hot Sheet'!$H$11","v":"Jurisdiction"},{"$f":"'Hot Sheet'!$I$11","v":"Residential"},{"$f":"'Hot Sheet'!$J$11","v":"Service"},{"$f":"'Hot Sheet'!$K$11","v":"Service <1,000 kW"},{"$f":"'Hot Sheet'!$L$11","v":"Service >1,000 kW"},{"$f":"'Hot Sheet'!$M$11","v":"Dedicated Facilities"},{"$f":"'Hot Sheet'!$N$11","v":"Pumping"},{"$f":"'Hot Sheet'!$O$11","v":"Lighting"}]
[1125,null,"ACCT",null,"DESCRIPTION ","Factor",null,{"$f":"'Hot Sheet'!$H$12","v":"Normalized"},{"$f":"'Hot Sheet'!$I$12","v":"Schedule 16"},{"$f":"'Hot Sheet'!$J$12","v":"Schedule 24"},{"$f":"'Hot Sheet'!$K$12","v":"Schedule 36"},{"$f":"'Hot Sheet'!$L$12","v":"Schedule 48T"},{"$f":"'Hot Sheet'!$M$12","v":"Schedule 48T"},{"$f":"'Hot Sheet'!$N$12","v":"Schedule 40"},{"$f":"'Hot Sheet'!$O$12","v":"Sch. 15,51-54,57"}]
[{"$f":"+A1125+1","v":1126},null,"105","Plant Held For Future Use"]
[1127,null,null,null,"Production",{"$f":"IF(Classification=\"DEMAND\",\"F12\",IF(Classification=\"ENERGY\",\"F30\",\"F10\"))","v":"F10"},null,{"$f":"+Distribution!H1127+Transmission!H1127+Generation!H1127+Retail!H1127+Misc!H1127","v":38221.431854599628},{"$f":"+Distribution!I1127+Transmission!I1127+Generation!I1127+Retail!I1127+Misc!I1127","v":16216.398843452245},{"$f":"+Distribution!J1127+Transmission!J1127+Generation!J1127+Retail!J1127+Misc!J1127","v":5158.0142839410682},{"$f":"+Distribution!K1127+Transmission!K1127+Generation!K1127+Retail!K1127+Misc!K1127","v":8172.4283314890099},{"$f":"+Distribution!L1127+Transmission!L1127+Generation!L1127+Retail!L1127+Misc!L1127","v":3229.4259834146947},{"$f":"+Distribution!M1127+Transmission!M1127+Generation!M1127+Retail!M1127+Misc!M1127","v":3992.7832050091756},{"$f":"+Distribution!N1127+Transmission!N1127+Generation!N1127+Retail!N1127+Misc!N1127","v":1360.6862281965632},{"$f":"+Distribution!O1127+Transmission!O1127+Generation!O1127+Retail!O1127+Misc!O1127","v":91.694979096870824},{"$f":"+Distribution!P1127+Transmission!P1127+Generation!P1127+Retail!P1127+Misc!P1127","v":0},{"$f":"+Distribution!Q1127+Transmission!Q1127+Generation!Q1127+Retail!Q1127+Misc!Q1127","v":0},{"$f":"ROUND(SUM(I1127:Q1127)-H1127,0)","v":0}]
[1128,null,null,null,"Transmission","F10",null,{"$f":"+Distribution!H1128+Transmission!H1128+Generation!H1128+Retail!H1128+Misc!H1128","v":0},{"$f":"+Distribution!I1128+Transmission!I1128+Generation!I1128+Retail!I1128+Misc!I1128","v":0},{"$f":"+Distribution!J1128+Transmission!J1128+Generation!J1128+Retail!J1128+Misc!J1128","v":0},{"$f":"+Distribution!K1128+Transmission!K1128+Generation!K1128+Retail!K1128+Misc!K1128","v":0},{"$f":"+Distribution!L1128+Transmission!L1128+Generation!L1128+Retail!L1128+Misc!L1128","v":0},{"$f":"+Distribution!M1128+Transmission!M1128+Generation!M1128+Retail!M1128+Misc!M1128","v":0},{"$f":"+Distribution!N1128+Transmission!N1128+Generation!N1128+Retail!N1128+Misc!N1128","v":0},{"$f":"+Distribution!O1128+Transmission!O1128+Generation!O1128+Retail!O1128+Misc!O1128","v":0},{"$f":"+Distribution!P1128+Transmission!P1128+Generation!P1128+Retail!P1128+Misc!P1128","v":0},{"$f":"+Distribution!Q1128+Transmission!Q1128+Generation!Q1128+Retail!Q1128+Misc!Q1128","v":0},0]
[1129,null,null,null,"Distribution","F20",null,{"$f":"+Distribution!H1129+Transmission!H1129+Generation!H1129+Retail!H1129+Misc!H1129","v":0},{"$f":"+Distribution!I1129+Transmission!I1129+Generation!I1129+Retail!I1129+Misc!I1129","v":0},{"$f":"+Distribution!J1129+Transmission!J1129+Generation!J1129+Retail!J1129+Misc!J1129","v":0},{"$f":"+Distribution!K1129+Transmission!K1129+Generation!K1129+Retail!K1129+Misc!K1129","v":0},{"$f":"+Distribution!L1129+Transmission!L1129+Generation!L1129+Retail!L1129+Misc!L1129","v":0},{"$f":"+Distribution!M1129+Transmission!M1129+Generation!M1129+Retail!M1129+Misc!M1129","v":0},{"$f":"+Distribution!N1129+Transmission!N1129+Generation!N1129+Retail!N1129+Misc!N1129","v":0},{"$f":"+Distribution!O1129+Transmission!O1129+Generation!O1129+Retail!O1129+Misc!O1129","v":0},{"$f":"+Distribution!P1129+Transmission!P1129+Generation!P1129+Retail!P1129+Misc!P1129","v":0},{"$f":"+Distribution!Q1129+Transmission!Q1129+Generation!Q1129+Retail!Q1129+Misc!Q1129","v":0},0]
[1130,null,null,null,"General ","F102",null,{"$f":"+Distribution!H1130+Transmission!H1130+Generation!H1130+Retail!H1130+Misc!H1130","v":0},{"$f":"+Distribution!I1130+Transmission!I1130+Generation!I1130+Retail!I1130+Misc!I1130","v":0},{"$f":"+Distribution!J1130+Transmission!J1130+Generation!J1130+Retail!J1130+Misc!J1130","v":0},{"$f":"+Distribution!K1130+Transmission!K1130+Generation!K1130+Retail!K1130+Misc!K1130","v":0},{"$f":"+Distribution!L1130+Transmission!L1130+Generation!L1130+Retail!L1130+Misc!L1130","v":0},{"$f":"+Distribution!M1130+Transmission!M1130+Generation!M1130+Retail!M1130+Misc!M1130","v":0},{"$f":"+Distribution!N1130+Transmission!N1130+Generation!N1130+Retail!N1130+Misc!N1130","v":0},{"$f":"+Distribution!O1130+Transmission!O1130+Generation!O1130+Retail!O1130+Misc!O1130","v":0},{"$f":"+Distribution!P1130+Transmission!P1130+Generation!P1130+Retail!P1130+Misc!P1130","v":0},{"$f":"+Distribution!Q1130+Transmission!Q1130+Generation!Q1130+Retail!Q1130+Misc!Q1130","v":0},0]
[1131,null,null,null,"Mining",{"$f":"IF(Classification=\"DEMAND\",\"F12\",IF(Classification=\"ENERGY\",\"F30\",\"F10\"))","v":"F10"},null,{"$f":"+Distribution!H1131+Transmission!H1131+Generation!H1131+Retail!H1131+Misc!H1131","v":5533.8414833463366},{"$f":"+Distribution!I1131+Transmission!I1131+Generation!I1131+Retail!I1131+Misc!I1131","v":2347.8707174489659},{"$f":"+Distribution!J1131+Transmission!J1131+Generation!J1131+Retail!J1131+Misc!J1131","v":746.79654924364229},{"$f":"+Distribution!K1131+Transmission!K1131+Generation!K1131+Retail!K1131+Misc!K1131","v":1183.2346598764675},{"$f":"+Distribution!L1131+Transmission!L1131+Generation!L1131+Retail!L1131+Misc!L1131","v":467.56834077805837},{"$f":"+Distribution!M1131+Transmission!M1131+Generation!M1131+Retail!M1131+Misc!M1131","v":578.0900469124972},{"$f":"+Distribution!N1131+Transmission!N1131+Generation!N1131+Retail!N1131+Misc!N1131","v":197.00522795840914},{"$f":"+Distribution!O1131+Transmission!O1131+Generation!O1131+Retail!O1131+Misc!O1131","v":13.275941128295917},{"$f":"+Distribution!P1131+Transmission!P1131+Generation!P1131+Retail!P1131+Misc!P1131","v":0},{"$f":"+Distribution!Q1131+Transmission!Q1131+Generation!Q1131+Retail!Q1131+Misc!Q1131","v":0},0]
[1132,null,null,"Total Plant Held For Future Use",null,null,null,{"$f":"+Distribution!H1132+Transmission!H1132+Generation!H1132+Retail!H1132+Misc!H1132","v":43755.273337945968},{"$f":"+Distribution!I1132+Transmission!I1132+Generation!I1132+Retail!I1132+Misc!I1132","v":18564.269560901212},{"$f":"+Distribution!J1132+Transmission!J1132+Generation!J1132+Retail!J1132+Misc!J1132","v":5904.8108331847106},{"$f":"+Distribution!K1132+Transmission!K1132+Generation!K1132+Retail!K1132+Misc!K1132","v":9355.6629913654779},{"$f":"+Distribution!L1132+Transmission!L1132+Generation!L1132+Retail!L1132+Misc!L1132","v":3696.9943241927531},{"$f":"+Distribution!M1132+Transmission!M1132+Generation!M1132+Retail!M1132+Misc!M1132","v":4570.8732519216728},{"$f":"+Distribution!N1132+Transmission!N1132+Generation!N1132+Retail!N1132+Misc!N1132","v":1557.6914561549725},{"$f":"+Distribution!O1132+Transmission!O1132+Generation!O1132+Retail!O1132+Misc!O1132","v":104.97092022516674},{"$f":"+Distribution!P1132+Transmission!P1132+Generation!P1132+Retail!P1132+Misc!P1132","v":0},{"$f":"+Distribution!Q1132+Transmission!Q1132+Generation!Q1132+Retail!Q1132+Misc!Q1132","v":0},0]
[1133]
[1134,null,"114","Electric Plant Acquisition Adjust",null,{"$f":"IF(Classification=\"DEMAND\",\"F12\",IF(Classification=\"ENERGY\",\"F30\",\"F10\"))","v":"F10"},null,{"$f":"+Distribution!H1134+Transmission!H1134+Generation!H1134+Retail!H1134+Misc!H1134","v":0},{"$f":"+Distribution!I1134+Transmission!I1134+Generation!I1134+Retail!I1134+Misc!I1134","v":0},{"$f":"+Distribution!J1134+Transmission!J1134+Generation!J1134+Retail!J1134+Misc!J1134","v":0},{"$f":"+Distribution!K1134+Transmission!K1134+Generation!K1134+Retail!K1134+Misc!K1134","v":0},{"$f":"+Distribution!L1134+Transmission!L1134+Generation!L1134+Retail!L1134+Misc!L1134","v":0},{"$f":"+Distribution!M1134+Transmission!M1134+Generation!M1134+Retail!M1134+Misc!M1134","v":0},{"$f":"+Distribution!N1134+Transmission!N1134+Generation!N1134+Retail!N1134+Misc!N1134","v":0},{"$f":"+Distribution!O1134+Transmission!O1134+Generation!O1134+Retail!O1134+Misc!O1134","v":0},{"$f":"+Distribution!P1134+Transmission!P1134+Generation!P1134+Retail!P1134+Misc!P1134","v":0},{"$f":"+Distribution!Q1134+Transmission!Q1134+Generation!Q1134+Retail!Q1134+Misc!Q1134","v":0},{"$f":"ROUND(SUM(I1134:Q1134)-H1134,0)","v":0}]
[1135]
[1136,null,"120","Nuclear Fuel",null,{"$f":"IF(Classification=\"DEMAND\",\"F12\",IF(Classification=\"ENERGY\",\"F30\",\"F10\"))","v":"F10"},null,{"$f":"+Distribution!H1136+Transmission!H1136+Generation!H1136+Retail!H1136+Misc!H1136","v":0},{"$f":"+Distribution!I1136+Transmission!I1136+Generation!I1136+Retail!I1136+Misc!I1136","v":0},{"$f":"+Distribution!J1136+Transmission!J1136+Generation!J1136+Retail!J1136+Misc!J1136","v":0},{"$f":"+Distribution!K1136+Transmission!K1136+Generation!K1136+Retail!K1136+Misc!K1136","v":0},{"$f":"+Distribution!L1136+Transmission!L1136+Generation!L1136+Retail!L1136+Misc!L1136","v":0},{"$f":"+Distribution!M1136+Transmission!M1136+Generation!M1136+Retail!M1136+Misc!M1136","v":0},{"$f":"+Distribution!N1136+Transmission!N1136+Generation!N1136+Retail!N1136+Misc!N1136","v":0},{"$f":"+Distribution!O1136+Transmission!O1136+Generation!O1136+Retail!O1136+Misc!O1136","v":0},{"$f":"+Distribution!P1136+Transmission!P1136+Generation!P1136+Retail!P1136+Misc!P1136","v":0},{"$f":"+Distribution!Q1136+Transmission!Q1136+Generation!Q1136+Retail!Q1136+Misc!Q1136","v":0},{"$f":"ROUND(SUM(I1136:Q1136)-H1136,0)","v":0}]
[1137]
[1138,null,"124","Weatherization",null,{"$f":"IF(Classification=\"DEMAND\",\"F12\",IF(Classification=\"ENERGY\",\"F30\",\"F10\"))","v":"F10"},null,{"$f":"+Distribution!H1138+Transmission!H1138+Generation!H1138+Retail!H1138+Misc!H1138","v":1957722.3254914517},{"$f":"+Distribution!I1138+Transmission!I1138+Generation!I1138+Retail!I1138+Misc!I1138","v":830612.68284431647},{"$f":"+Distribution!J1138+Transmission!J1138+Generation!J1138+Retail!J1138+Misc!J1138","v":264196.26970777725},{"$f":"+Distribution!K1138+Transmission!K1138+Generation!K1138+Retail!K1138+Misc!K1138","v":418596.18077362794},{"$f":"+Distribution!L1138+Transmission!L1138+Generation!L1138+Retail!L1138+Misc!L1138","v":165412.93822544997},{"$f":"+Distribution!M1138+Transmission!M1138+Generation!M1138+Retail!M1138+Misc!M1138","v":204512.50625643667},{"$f":"+Distribution!N1138+Transmission!N1138+Generation!N1138+Retail!N1138+Misc!N1138","v":69695.08146798001},{"$f":"+Distribution!O1138+Transmission!O1138+Generation!O1138+Retail!O1138+Misc!O1138","v":4696.6662158632098},{"$f":"+Distribution!P1138+Transmission!P1138+Generation!P1138+Retail!P1138+Misc!P1138","v":0},{"$f":"+Distribution!Q1138+Transmission!Q1138+Generation!Q1138+Retail!Q1138+Misc!Q1138","v":0},{"$f":"ROUND(SUM(I1138:Q1138)-H1138,0)","v":0}]
[1139]
[1140,null,"151","Fuel Stock",null,{"$f":"IF(Classification=\"DEMAND\",\"F12\",IF(Classification=\"ENERGY\",\"F30\",\"F10\"))","v":"F10"},null,{"$f":"+Distribution!H1140+Transmission!H1140+Generation!H1140+Retail!H1140+Misc!H1140","v":-1.5174737200140953E-7},{"$f":"+Distribution!I1140+Transmission!I1140+Generation!I1140+Retail!I1140+Misc!I1140","v":-6.4382619604148588E-8},{"$f":"+Distribution!J1140+Transmission!J1140+Generation!J1140+Retail!J1140+Misc!J1140","v":-2.0478435117537233E-8},{"$f":"+Distribution!K1140+Transmission!K1140+Generation!K1140+Retail!K1140+Misc!K1140","v":-3.2446312500563224E-8},{"$f":"+Distribution!L1140+Transmission!L1140+Generation!L1140+Retail!L1140+Misc!L1140","v":-1.2821521389373937E-8},{"$f":"+Distribution!M1140+Transmission!M1140+Generation!M1140+Retail!M1140+Misc!M1140","v":-1.5852215077562388E-8},{"$f":"+Distribution!N1140+Transmission!N1140+Generation!N1140+Retail!N1140+Misc!N1140","v":-5.4022193630218616E-9},{"$f":"+Distribution!O1140+Transmission!O1140+Generation!O1140+Retail!O1140+Misc!O1140","v":-3.6404894920230039E-10},{"$f":"+Distribution!P1140+Transmission!P1140+Generation!P1140+Retail!P1140+Misc!P1140","v":0},{"$f":"+Distribution!Q1140+Transmission!Q1140+Generation!Q1140+Retail!Q1140+Misc!Q1140","v":0},{"$f":"ROUND(SUM(I1140:Q1140)-H1140,0)","v":0}]
[1141,null,null,null,"JBE",{"$f":"IF(Classification=\"DEMAND\",\"F12\",IF(Classification=\"ENERGY\",\"F30\",\"F10\"))","v":"F10"},null,{"$f":"+Distribution!H1141+Transmission!H1141+Generation!H1141+Retail!H1141+Misc!H1141","v":0},{"$f":"+Distribution!I1141+Transmission!I1141+Generation!I1141+Retail!I1141+Misc!I1141","v":0},{"$f":"+Distribution!J1141+Transmission!J1141+Generation!J1141+Retail!J1141+Misc!J1141","v":0},{"$f":"+Distribution!K1141+Transmission!K1141+Generation!K1141+Retail!K1141+Misc!K1141","v":0},{"$f":"+Distribution!L1141+Transmission!L1141+Generation!L1141+Retail!L1141+Misc!L1141","v":0},{"$f":"+Distribution!M1141+Transmission!M1141+Generation!M1141+Retail!M1141+Misc!M1141","v":0},{"$f":"+Distribution!N1141+Transmission!N1141+Generation!N1141+Retail!N1141+Misc!N1141","v":0},{"$f":"+Distribution!O1141+Transmission!O1141+Generation!O1141+Retail!O1141+Misc!O1141","v":0},{"$f":"+Distribution!P1141+Transmission!P1141+Generation!P1141+Retail!P1141+Misc!P1141","v":0},{"$f":"+Distribution!Q1141+Transmission!Q1141+Generation!Q1141+Retail!Q1141+Misc!Q1141","v":0},{"$f":"ROUND(SUM(I1141:Q1141)-H1141,0)","v":0}]
[1142,null,null,null,"SSECH","F30",null,{"$f":"+Distribution!H1142+Transmission!H1142+Generation!H1142+Retail!H1142+Misc!H1142","v":0},{"$f":"+Distribution!I1142+Transmission!I1142+Generation!I1142+Retail!I1142+Misc!I1142","v":0},{"$f":"+Distribution!J1142+Transmission!J1142+Generation!J1142+Retail!J1142+Misc!J1142","v":0},{"$f":"+Distribution!K1142+Transmission!K1142+Generation!K1142+Retail!K1142+Misc!K1142","v":0},{"$f":"+Distribution!L1142+Transmission!L1142+Generation!L1142+Retail!L1142+Misc!L1142","v":0},{"$f":"+Distribution!M1142+Transmission!M1142+Generation!M1142+Retail!M1142+Misc!M1142","v":0},{"$f":"+Distribution!N1142+Transmission!N1142+Generation!N1142+Retail!N1142+Misc!N1142","v":0},{"$f":"+Distribution!O1142+Transmission!O1142+Generation!O1142+Retail!O1142+Misc!O1142","v":0},{"$f":"+Distribution!P1142+Transmission!P1142+Generation!P1142+Retail!P1142+Misc!P1142","v":0},{"$f":"+Distribution!Q1142+Transmission!Q1142+Generation!Q1142+Retail!Q1142+Misc!Q1142","v":0},{"$f":"ROUND(SUM(I1142:Q1142)-H1142,0)","v":0}]
[1143,null,null,null,"Total Fuel Stock",null,null,{"$f":"+Distribution!H1143+Transmission!H1143+Generation!H1143+Retail!H1143+Misc!H1143","v":-1.5174737200140953E-7},{"$f":"+Distribution!I1143+Transmission!I1143+Generation!I1143+Retail!I1143+Misc!I1143","v":-6.4382619604148588E-8},{"$f":"+Distribution!J1143+Transmission!J1143+Generation!J1143+Retail!J1143+Misc!J1143","v":-2.0478435117537233E-8},{"$f":"+Distribution!K1143+Transmission!K1143+Generation!K1143+Retail!K1143+Misc!K1143","v":-3.2446312500563224E-8},{"$f":"+Distribution!L1143+Transmission!L1143+Generation!L1143+Retail!L1143+Misc!L1143","v":-1.2821521389373937E-8},{"$f":"+Distribution!M1143+Transmission!M1143+Generation!M1143+Retail!M1143+Misc!M1143","v":-1.5852215077562388E-8},{"$f":"+Distribution!N1143+Transmission!N1143+Generation!N1143+Retail!N1143+Misc!N1143","v":-5.4022193630218616E-9},{"$f":"+Distribution!O1143+Transmission!O1143+Generation!O1143+Retail!O1143+Misc!O1143","v":-3.6404894920230039E-10},{"$f":"+Distribution!P1143+Transmission!P1143+Generation!P1143+Retail!P1143+Misc!P1143","v":0},{"$f":"+Distribution!Q1143+Transmission!Q1143+Generation!Q1143+Retail!Q1143+Misc!Q1143","v":0},{"$f":"ROUND(SUM(I1143:Q1143)-H1143,0)","v":0}]
[1144]
[1145,null,"152","Fuel Stock - Undistributed",null,{"$f":"IF(Classification=\"DEMAND\",\"F12\",IF(Classification=\"ENERGY\",\"F30\",\"F10\"))","v":"F10"},null,{"$f":"+Distribution!H1145+Transmission!H1145+Generation!H1145+Retail!H1145+Misc!H1145","v":0},{"$f":"+Distribution!I1145+Transmission!I1145+Generation!I1145+Retail!I1145+Misc!I1145","v":0},{"$f":"+Distribution!J1145+Transmission!J1145+Generation!J1145+Retail!J1145+Misc!J1145","v":0},{"$f":"+Distribution!K1145+Transmission!K1145+Generation!K1145+Retail!K1145+Misc!K1145","v":0},{"$f":"+Distribution!L1145+Transmission!L1145+Generation!L1145+Retail!L1145+Misc!L1145","v":0},{"$f":"+Distribution!M1145+Transmission!M1145+Generation!M1145+Retail!M1145+Misc!M1145","v":0},{"$f":"+Distribution!N1145+Transmission!N1145+Generation!N1145+Retail!N1145+Misc!N1145","v":0},{"$f":"+Distribution!O1145+Transmission!O1145+Generation!O1145+Retail!O1145+Misc!O1145","v":0},{"$f":"+Distribution!P1145+Transmission!P1145+Generation!P1145+Retail!P1145+Misc!P1145","v":0},{"$f":"+Distribution!Q1145+Transmission!Q1145+Generation!Q1145+Retail!Q1145+Misc!Q1145","v":0},{"$f":"ROUND(SUM(I1145:Q1145)-H1145,0)","v":0}]
[1146]
[1147,null,"25316","DG&T Working Capital Deposit",null,{"$f":"IF(Classification=\"DEMAND\",\"F12\",IF(Classification=\"ENERGY\",\"F30\",\"F10\"))","v":"F10"},null,{"$f":"+Distribution!H1147+Transmission!H1147+Generation!H1147+Retail!H1147+Misc!H1147","v":0},{"$f":"+Distribution!I1147+Transmission!I1147+Generation!I1147+Retail!I1147+Misc!I1147","v":0},{"$f":"+Distribution!J1147+Transmission!J1147+Generation!J1147+Retail!J1147+Misc!J1147","v":0},{"$f":"+Distribution!K1147+Transmission!K1147+Generation!K1147+Retail!K1147+Misc!K1147","v":0},{"$f":"+Distribution!L1147+Transmission!L1147+Generation!L1147+Retail!L1147+Misc!L1147","v":0},{"$f":"+Distribution!M1147+Transmission!M1147+Generation!M1147+Retail!M1147+Misc!M1147","v":0},{"$f":"+Distribution!N1147+Transmission!N1147+Generation!N1147+Retail!N1147+Misc!N1147","v":0},{"$f":"+Distribution!O1147+Transmission!O1147+Generation!O1147+Retail!O1147+Misc!O1147","v":0},{"$f":"+Distribution!P1147+Transmission!P1147+Generation!P1147+Retail!P1147+Misc!P1147","v":0},{"$f":"+Distribution!Q1147+Transmission!Q1147+Generation!Q1147+Retail!Q1147+Misc!Q1147","v":0},{"$f":"ROUND(SUM(I1147:Q1147)-H1147,0)","v":0}]
[1148]
[1149,null,"25317","DG&T Working Capital Deposit",null,{"$f":"IF(Classification=\"DEMAND\",\"F12\",IF(Classification=\"ENERGY\",\"F30\",\"F10\"))","v":"F10"},null,{"$f":"+Distribution!H1149+Transmission!H1149+Generation!H1149+Retail!H1149+Misc!H1149","v":0},{"$f":"+Distribution!I1149+Transmission!I1149+Generation!I1149+Retail!I1149+Misc!I1149","v":0},{"$f":"+Distribution!J1149+Transmission!J1149+Generation!J1149+Retail!J1149+Misc!J1149","v":0},{"$f":"+Distribution!K1149+Transmission!K1149+Generation!K1149+Retail!K1149+Misc!K1149","v":0},{"$f":"+Distribution!L1149+Transmission!L1149+Generation!L1149+Retail!L1149+Misc!L1149","v":0},{"$f":"+Distribution!M1149+Transmission!M1149+Generation!M1149+Retail!M1149+Misc!M1149","v":0},{"$f":"+Distribution!N1149+Transmission!N1149+Generation!N1149+Retail!N1149+Misc!N1149","v":0},{"$f":"+Distribution!O1149+Transmission!O1149+Generation!O1149+Retail!O1149+Misc!O1149","v":0},{"$f":"+Distribution!P1149+Transmission!P1149+Generation!P1149+Retail!P1149+Misc!P1149","v":0},{"$f":"+Distribution!Q1149+Transmission!Q1149+Generation!Q1149+Retail!Q1149+Misc!Q1149","v":0},{"$f":"ROUND(SUM(I1149:Q1149)-H1149,0)","v":0}]
[1150]
[1151,null,"25319","Provo Working Capital Deposit",null,{"$f":"IF(Classification=\"DEMAND\",\"F12\",IF(Classification=\"ENERGY\",\"F30\",\"F10\"))","v":"F10"},null,{"$f":"+Distribution!H1151+Transmission!H1151+Generation!H1151+Retail!H1151+Misc!H1151","v":0},{"$f":"+Distribution!I1151+Transmission!I1151+Generation!I1151+Retail!I1151+Misc!I1151","v":0},{"$f":"+Distribution!J1151+Transmission!J1151+Generation!J1151+Retail!J1151+Misc!J1151","v":0},{"$f":"+Distribution!K1151+Transmission!K1151+Generation!K1151+Retail!K1151+Misc!K1151","v":0},{"$f":"+Distribution!L1151+Transmission!L1151+Generation!L1151+Retail!L1151+Misc!L1151","v":0},{"$f":"+Distribution!M1151+Transmission!M1151+Generation!M1151+Retail!M1151+Misc!M1151","v":0},{"$f":"+Distribution!N1151+Transmission!N1151+Generation!N1151+Retail!N1151+Misc!N1151","v":0},{"$f":"+Distribution!O1151+Transmission!O1151+Generation!O1151+Retail!O1151+Misc!O1151","v":0},{"$f":"+Distribution!P1151+Transmission!P1151+Generation!P1151+Retail!P1151+Misc!P1151","v":0},{"$f":"+Distribution!Q1151+Transmission!Q1151+Generation!Q1151+Retail!Q1151+Misc!Q1151","v":0},{"$f":"ROUND(SUM(I1151:Q1151)-H1151,0)","v":0}]
[1152]
[1153,null,"154","Materials and Supplies",null,{"$f":"IF(Function=\"gen\",\"F102G\",IF(Function=\"TRN\",\"F102T\",IF(Function=\"DIS\",\"F102D\",IF(Function=\"RETAIL\",\"F102R\",IF(Function=\"MISC\",\"F102M\",\"ERR\")))))","v":"F102D"},null,{"$f":"+Distribution!H1153+Transmission!H1153+Generation!H1153+Retail!H1153+Misc!H1153","v":1.4568249025614932E-4},{"$f":"+Distribution!I1153+Transmission!I1153+Generation!I1153+Retail!I1153+Misc!I1153","v":6.6993651282404255E-5},{"$f":"+Distribution!J1153+Transmission!J1153+Generation!J1153+Retail!J1153+Misc!J1153","v":2.0129756332736742E-5},{"$f":"+Distribution!K1153+Transmission!K1153+Generation!K1153+Retail!K1153+Misc!K1153","v":2.8883960667256263E-5},{"$f":"+Distribution!L1153+Transmission!L1153+Generation!L1153+Retail!L1153+Misc!L1153","v":1.1213224315015245E-5},{"$f":"+Distribution!M1153+Transmission!M1153+Generation!M1153+Retail!M1153+Misc!M1153","v":1.2200431042336059E-5},{"$f":"+Distribution!N1153+Transmission!N1153+Generation!N1153+Retail!N1153+Misc!N1153","v":5.5713741209438673E-6},{"$f":"+Distribution!O1153+Transmission!O1153+Generation!O1153+Retail!O1153+Misc!O1153","v":6.900924954568801E-7},{"$f":"+Distribution!P1153+Transmission!P1153+Generation!P1153+Retail!P1153+Misc!P1153","v":0},{"$f":"+Distribution!Q1153+Transmission!Q1153+Generation!Q1153+Retail!Q1153+Misc!Q1153","v":0},{"$f":"ROUND(SUM(I1153:Q1153)-H1153,0)","v":0}]
[1154,null,null,null,"JBG",{"$f":"IF(Classification=\"DEMAND\",\"F12\",IF(Classification=\"ENERGY\",\"F30\",\"F10\"))","v":"F10"},null,{"$f":"+Distribution!H1154+Transmission!H1154+Generation!H1154+Retail!H1154+Misc!H1154","v":-7.6135620474815369E-8},{"$f":"+Distribution!I1154+Transmission!I1154+Generation!I1154+Retail!I1154+Misc!I1154","v":-3.2302442056857056E-8},{"$f":"+Distribution!J1154+Transmission!J1154+Generation!J1154+Retail!J1154+Misc!J1154","v":-1.0274565835726389E-8},{"$f":"+Distribution!K1154+Transmission!K1154+Generation!K1154+Retail!K1154+Misc!K1154","v":-1.6279162543435635E-8},{"$f":"+Distribution!L1154+Transmission!L1154+Generation!L1154+Retail!L1154+Misc!L1154","v":-6.4328922045650592E-9},{"$f":"+Distribution!M1154+Transmission!M1154+Generation!M1154+Retail!M1154+Misc!M1154","v":-7.9534703956469516E-9},{"$f":"+Distribution!N1154+Transmission!N1154+Generation!N1154+Retail!N1154+Misc!N1154","v":-2.7104345710903696E-9},{"$f":"+Distribution!O1154+Transmission!O1154+Generation!O1154+Retail!O1154+Misc!O1154","v":-1.8265286749390444E-10},{"$f":"+Distribution!P1154+Transmission!P1154+Generation!P1154+Retail!P1154+Misc!P1154","v":0},{"$f":"+Distribution!Q1154+Transmission!Q1154+Generation!Q1154+Retail!Q1154+Misc!Q1154","v":0},{"$f":"ROUND(SUM(I1154:Q1154)-H1154,0)","v":0}]
[1155,null,null,null,"SSGCH","F102D",null,{"$f":"+Distribution!H1155+Transmission!H1155+Generation!H1155+Retail!H1155+Misc!H1155","v":0},{"$f":"+Distribution!I1155+Transmission!I1155+Generation!I1155+Retail!I1155+Misc!I1155","v":0},{"$f":"+Distribution!J1155+Transmission!J1155+Generation!J1155+Retail!J1155+Misc!J1155","v":0},{"$f":"+Distribution!K1155+Transmission!K1155+Generation!K1155+Retail!K1155+Misc!K1155","v":0},{"$f":"+Distribution!L1155+Transmission!L1155+Generation!L1155+Retail!L1155+Misc!L1155","v":0},{"$f":"+Distribution!M1155+Transmission!M1155+Generation!M1155+Retail!M1155+Misc!M1155","v":0},{"$f":"+Distribution!N1155+Transmission!N1155+Generation!N1155+Retail!N1155+Misc!N1155","v":0},{"$f":"+Distribution!O1155+Transmission!O1155+Generation!O1155+Retail!O1155+Misc!O1155","v":0},{"$f":"+Distribution!P1155+Transmission!P1155+Generation!P1155+Retail!P1155+Misc!P1155","v":0},{"$f":"+Distribution!Q1155+Transmission!Q1155+Generation!Q1155+Retail!Q1155+Misc!Q1155","v":0},{"$f":"ROUND(SUM(I1155:Q1155)-H1155,0)","v":0}]
[1156,null,null,null,"Total Material & Supplies",null,null,{"$f":"+Distribution!H1156+Transmission!H1156+Generation!H1156+Retail!H1156+Misc!H1156","v":1.4560635463567451E-4},{"$f":"+Distribution!I1156+Transmission!I1156+Generation!I1156+Retail!I1156+Misc!I1156","v":6.6961348840347408E-5},{"$f":"+Distribution!J1156+Transmission!J1156+Generation!J1156+Retail!J1156+Misc!J1156","v":2.0119481766901012E-5},{"$f":"+Distribution!K1156+Transmission!K1156+Generation!K1156+Retail!K1156+Misc!K1156","v":2.8867681504712828E-5},{"$f":"+Distribution!L1156+Transmission!L1156+Generation!L1156+Retail!L1156+Misc!L1156","v":1.1206791422810681E-5},{"$f":"+Distribution!M1156+Transmission!M1156+Generation!M1156+Retail!M1156+Misc!M1156","v":1.2192477571940411E-5},{"$f":"+Distribution!N1156+Transmission!N1156+Generation!N1156+Retail!N1156+Misc!N1156","v":5.5686636863727762E-6},{"$f":"+Distribution!O1156+Transmission!O1156+Generation!O1156+Retail!O1156+Misc!O1156","v":6.8990984258938614E-7},{"$f":"+Distribution!P1156+Transmission!P1156+Generation!P1156+Retail!P1156+Misc!P1156","v":0},{"$f":"+Distribution!Q1156+Transmission!Q1156+Generation!Q1156+Retail!Q1156+Misc!Q1156","v":0},{"$f":"ROUND(SUM(I1156:Q1156)-H1156,0)","v":0}]
[1157]
[1158,null,"163","Stores Expense Undistributed",null,{"$f":"IF(Function=\"gen\",\"F102G\",IF(Function=\"TRN\",\"F102T\",IF(Function=\"DIS\",\"F102D\",IF(Function=\"RETAIL\",\"F102R\",IF(Function=\"MISC\",\"F102M\",\"ERR\")))))","v":"F102D"},null,{"$f":"+Distribution!H1158+Transmission!H1158+Generation!H1158+Retail!H1158+Misc!H1158","v":0},{"$f":"+Distribution!I1158+Transmission!I1158+Generation!I1158+Retail!I1158+Misc!I1158","v":0},{"$f":"+Distribution!J1158+Transmission!J1158+Generation!J1158+Retail!J1158+Misc!J1158","v":0},{"$f":"+Distribution!K1158+Transmission!K1158+Generation!K1158+Retail!K1158+Misc!K1158","v":0},{"$f":"+Distribution!L1158+Transmission!L1158+Generation!L1158+Retail!L1158+Misc!L1158","v":0},{"$f":"+Distribution!M1158+Transmission!M1158+Generation!M1158+Retail!M1158+Misc!M1158","v":0},{"$f":"+Distribution!N1158+Transmission!N1158+Generation!N1158+Retail!N1158+Misc!N1158","v":0},{"$f":"+Distribution!O1158+Transmission!O1158+Generation!O1158+Retail!O1158+Misc!O1158","v":0},{"$f":"+Distribution!P1158+Transmission!P1158+Generation!P1158+Retail!P1158+Misc!P1158","v":0},{"$f":"+Distribution!Q1158+Transmission!Q1158+Generation!Q1158+Retail!Q1158+Misc!Q1158","v":0},{"$f":"ROUND(SUM(I1158:Q1158)-H1158,0)","v":0}]
[1159]
[1160,null,"25318","Provo Working Capital Deposit",null,{"$f":"IF(Function=\"gen\",\"F102G\",IF(Function=\"TRN\",\"F102T\",IF(Function=\"DIS\",\"F102D\",IF(Function=\"RETAIL\",\"F102R\",IF(Function=\"MISC\",\"F102M\",\"ERR\")))))","v":"F102D"},null,{"$f":"+Distribution!H1160+Transmission!H1160+Generation!H1160+Retail!H1160+Misc!H1160","v":0},{"$f":"+Distribution!I1160+Transmission!I1160+Generation!I1160+Retail!I1160+Misc!I1160","v":0},{"$f":"+Distribution!J1160+Transmission!J1160+Generation!J1160+Retail!J1160+Misc!J1160","v":0},{"$f":"+Distribution!K1160+Transmission!K1160+Generation!K1160+Retail!K1160+Misc!K1160","v":0},{"$f":"+Distribution!L1160+Transmission!L1160+Generation!L1160+Retail!L1160+Misc!L1160","v":0},{"$f":"+Distribution!M1160+Transmission!M1160+Generation!M1160+Retail!M1160+Misc!M1160","v":0},{"$f":"+Distribution!N1160+Transmission!N1160+Generation!N1160+Retail!N1160+Misc!N1160","v":0},{"$f":"+Distribution!O1160+Transmission!O1160+Generation!O1160+Retail!O1160+Misc!O1160","v":0},{"$f":"+Distribution!P1160+Transmission!P1160+Generation!P1160+Retail!P1160+Misc!P1160","v":0},{"$f":"+Distribution!Q1160+Transmission!Q1160+Generation!Q1160+Retail!Q1160+Misc!Q1160","v":0},{"$f":"ROUND(SUM(I1160:Q1160)-H1160,0)","v":0}]
[1161]
[1162,null,"165","Prepayments",null,{"$f":"IF(Function=\"gen\",\"F102G\",IF(Function=\"TRN\",\"F102T\",IF(Function=\"DIS\",\"F102D\",IF(Function=\"RETAIL\",\"F102R\",IF(Function=\"MISC\",\"F102M\",\"ERR\")))))","v":"F102D"},null,{"$f":"+Distribution!H1162+Transmission!H1162+Generation!H1162+Retail!H1162+Misc!H1162","v":-8.0442987382411944E-8},{"$f":"+Distribution!I1162+Transmission!I1162+Generation!I1162+Retail!I1162+Misc!I1162","v":-3.4129950246618082E-8},{"$f":"+Distribution!J1162+Transmission!J1162+Generation!J1162+Retail!J1162+Misc!J1162","v":-1.0855848612365344E-8},{"$f":"+Distribution!K1162+Transmission!K1162+Generation!K1162+Retail!K1162+Misc!K1162","v":-1.7200154919746214E-8},{"$f":"+Distribution!L1162+Transmission!L1162+Generation!L1162+Retail!L1162+Misc!L1162","v":-6.7968325892269957E-9},{"$f":"+Distribution!M1162+Transmission!M1162+Generation!M1162+Retail!M1162+Misc!M1162","v":-8.4034373752171921E-9},{"$f":"+Distribution!N1162+Transmission!N1162+Generation!N1162+Retail!N1162+Misc!N1162","v":-2.863777199730039E-9},{"$f":"+Distribution!O1162+Transmission!O1162+Generation!O1162+Retail!O1162+Misc!O1162","v":-1.9298643950808555E-10},{"$f":"+Distribution!P1162+Transmission!P1162+Generation!P1162+Retail!P1162+Misc!P1162","v":0},{"$f":"+Distribution!Q1162+Transmission!Q1162+Generation!Q1162+Retail!Q1162+Misc!Q1162","v":0},{"$f":"ROUND(SUM(I1162:Q1162)-H1162,0)","v":0}]
[1163,null,null,null,"Customer - System","F42",null,{"$f":"+Distribution!H1163+Transmission!H1163+Generation!H1163+Retail!H1163+Misc!H1163","v":-2.328306436538697E-8},{"$f":"+Distribution!I1163+Transmission!I1163+Generation!I1163+Retail!I1163+Misc!I1163","v":-1.8786379040445266E-8},{"$f":"+Distribution!J1163+Transmission!J1163+Generation!J1163+Retail!J1163+Misc!J1163","v":-3.190796305146639E-9},{"$f":"+Distribution!K1163+Transmission!K1163+Generation!K1163+Retail!K1163+Misc!K1163","v":-1.9378257189968237E-10},{"$f":"+Distribution!L1163+Transmission!L1163+Generation!L1163+Retail!L1163+Misc!L1163","v":-3.9743125427551594E-11},{"$f":"+Distribution!M1163+Transmission!M1163+Generation!M1163+Retail!M1163+Misc!M1163","v":-6.8627208255834008E-13},{"$f":"+Distribution!N1163+Transmission!N1163+Generation!N1163+Retail!N1163+Misc!N1163","v":-5.6841025609613064E-10},{"$f":"+Distribution!O1163+Transmission!O1163+Generation!O1163+Retail!O1163+Misc!O1163","v":-5.0326679428913665E-10},{"$f":"+Distribution!P1163+Transmission!P1163+Generation!P1163+Retail!P1163+Misc!P1163","v":0},{"$f":"+Distribution!Q1163+Transmission!Q1163+Generation!Q1163+Retail!Q1163+Misc!Q1163","v":0},{"$f":"ROUND(SUM(I1163:Q1163)-H1163,0)","v":0}]
[1164,null,null,null,"Total Prepayments",null,null,{"$f":"+Distribution!H1164+Transmission!H1164+Generation!H1164+Retail!H1164+Misc!H1164","v":-1.0372605174779891E-7},{"$f":"+Distribution!I1164+Transmission!I1164+Generation!I1164+Retail!I1164+Misc!I1164","v":-5.2916329287063348E-8},{"$f":"+Distribution!J1164+Transmission!J1164+Generation!J1164+Retail!J1164+Misc!J1164","v":-1.4046644917511982E-8},{"$f":"+Distribution!K1164+Transmission!K1164+Generation!K1164+Retail!K1164+Misc!K1164","v":-1.7393937491645894E-8},{"$f":"+Distribution!L1164+Transmission!L1164+Generation!L1164+Retail!L1164+Misc!L1164","v":-6.8365757146545475E-9},{"$f":"+Distribution!M1164+Transmission!M1164+Generation!M1164+Retail!M1164+Misc!M1164","v":-8.4041236472997508E-9},{"$f":"+Distribution!N1164+Transmission!N1164+Generation!N1164+Retail!N1164+Misc!N1164","v":-3.4321874558261701E-9},{"$f":"+Distribution!O1164+Transmission!O1164+Generation!O1164+Retail!O1164+Misc!O1164","v":-6.962532337972223E-10},{"$f":"+Distribution!P1164+Transmission!P1164+Generation!P1164+Retail!P1164+Misc!P1164","v":0},{"$f":"+Distribution!Q1164+Transmission!Q1164+Generation!Q1164+Retail!Q1164+Misc!Q1164","v":0},{"$f":"ROUND(SUM(I1164:Q1164)-H1164,0)","v":0}]
[1165]
[1166,null,"182M","Misc Regulatory Assets",null,{"$f":"IF(Function=\"gen\",\"F102G\",IF(Function=\"TRN\",\"F102T\",IF(Function=\"DIS\",\"F102D\",IF(Function=\"RETAIL\",\"F102R\",IF(Function=\"MISC\",\"F102M\",\"ERR\")))))","v":"F102D"},null,{"$f":"+Distribution!H1166+Transmission!H1166+Generation!H1166+Retail!H1166+Misc!H1166","v":12910645.267689729},{"$f":"+Distribution!I1166+Transmission!I1166+Generation!I1166+Retail!I1166+Misc!I1166","v":5477664.3058177512},{"$f":"+Distribution!J1166+Transmission!J1166+Generation!J1166+Retail!J1166+Misc!J1166","v":1742302.4066437697},{"$f":"+Distribution!K1166+Transmission!K1166+Generation!K1166+Retail!K1166+Misc!K1166","v":2760527.746968084},{"$f":"+Distribution!L1166+Transmission!L1166+Generation!L1166+Retail!L1166+Misc!L1166","v":1090853.2534505157},{"$f":"+Distribution!M1166+Transmission!M1166+Generation!M1166+Retail!M1166+Misc!M1166","v":1348704.2501904387},{"$f":"+Distribution!N1166+Transmission!N1166+Generation!N1166+Retail!N1166+Misc!N1166","v":459620.07074212912},{"$f":"+Distribution!O1166+Transmission!O1166+Generation!O1166+Retail!O1166+Misc!O1166","v":30973.233877041639},{"$f":"+Distribution!P1166+Transmission!P1166+Generation!P1166+Retail!P1166+Misc!P1166","v":0},{"$f":"+Distribution!Q1166+Transmission!Q1166+Generation!Q1166+Retail!Q1166+Misc!Q1166","v":0},{"$f":"ROUND(SUM(I1166:Q1166)-H1166,0)","v":0}]
[1167,null,null,null,"SSGCH","F102D",null,{"$f":"+Distribution!H1167+Transmission!H1167+Generation!H1167+Retail!H1167+Misc!H1167","v":0},{"$f":"+Distribution!I1167+Transmission!I1167+Generation!I1167+Retail!I1167+Misc!I1167","v":0},{"$f":"+Distribution!J1167+Transmission!J1167+Generation!J1167+Retail!J1167+Misc!J1167","v":0},{"$f":"+Distribution!K1167+Transmission!K1167+Generation!K1167+Retail!K1167+Misc!K1167","v":0},{"$f":"+Distribution!L1167+Transmission!L1167+Generation!L1167+Retail!L1167+Misc!L1167","v":0},{"$f":"+Distribution!M1167+Transmission!M1167+Generation!M1167+Retail!M1167+Misc!M1167","v":0},{"$f":"+Distribution!N1167+Transmission!N1167+Generation!N1167+Retail!N1167+Misc!N1167","v":0},{"$f":"+Distribution!O1167+Transmission!O1167+Generation!O1167+Retail!O1167+Misc!O1167","v":0},{"$f":"+Distribution!P1167+Transmission!P1167+Generation!P1167+Retail!P1167+Misc!P1167","v":0},{"$f":"+Distribution!Q1167+Transmission!Q1167+Generation!Q1167+Retail!Q1167+Misc!Q1167","v":0},{"$f":"ROUND(SUM(I1167:Q1167)-H1167,0)","v":0}]
[1168,null,null,null,"Total Misc Regulatory Assets",null,null,{"$f":"+Distribution!H1168+Transmission!H1168+Generation!H1168+Retail!H1168+Misc!H1168","v":12910645.267689729},{"$f":"+Distribution!I1168+Transmission!I1168+Generation!I1168+Retail!I1168+Misc!I1168","v":5477664.3058177512},{"$f":"+Distribution!J1168+Transmission!J1168+Generation!J1168+Retail!J1168+Misc!J1168","v":1742302.4066437697},{"$f":"+Distribution!K1168+Transmission!K1168+Generation!K1168+Retail!K1168+Misc!K1168","v":2760527.746968084},{"$f":"+Distribution!L1168+Transmission!L1168+Generation!L1168+Retail!L1168+Misc!L1168","v":1090853.2534505157},{"$f":"+Distribution!M1168+Transmission!M1168+Generation!M1168+Retail!M1168+Misc!M1168","v":1348704.2501904387},{"$f":"+Distribution!N1168+Transmission!N1168+Generation!N1168+Retail!N1168+Misc!N1168","v":459620.07074212912},{"$f":"+Distribution!O1168+Transmission!O1168+Generation!O1168+Retail!O1168+Misc!O1168","v":30973.233877041639},{"$f":"+Distribution!P1168+Transmission!P1168+Generation!P1168+Retail!P1168+Misc!P1168","v":0},{"$f":"+Distribution!Q1168+Transmission!Q1168+Generation!Q1168+Retail!Q1168+Misc!Q1168","v":0},{"$f":"ROUND(SUM(I1168:Q1168)-H1168,0)","v":0}]
[1169]
[1170,null,"186M","Misc Deferred Debits",null,{"$f":"IF(Function=\"gen\",\"F102G\",IF(Function=\"TRN\",\"F102T\",IF(Function=\"DIS\",\"F102D\",IF(Function=\"RETAIL\",\"F102R\",IF(Function=\"MISC\",\"F102M\",\"ERR\")))))","v":"F102D"},null,{"$f":"+Distribution!H1170+Transmission!H1170+Generation!H1170+Retail!H1170+Misc!H1170","v":1856088.0140102238},{"$f":"+Distribution!I1170+Transmission!I1170+Generation!I1170+Retail!I1170+Misc!I1170","v":787491.78309809451},{"$f":"+Distribution!J1170+Transmission!J1170+Generation!J1170+Retail!J1170+Misc!J1170","v":250480.63413575193},{"$f":"+Distribution!K1170+Transmission!K1170+Generation!K1170+Retail!K1170+Misc!K1170","v":396864.94030727673},{"$f":"+Distribution!L1170+Transmission!L1170+Generation!L1170+Retail!L1170+Misc!L1170","v":156825.59676863221},{"$f":"+Distribution!M1170+Transmission!M1170+Generation!M1170+Retail!M1170+Misc!M1170","v":193895.32756259132},{"$f":"+Distribution!N1170+Transmission!N1170+Generation!N1170+Retail!N1170+Misc!N1170","v":66076.891326102748},{"$f":"+Distribution!O1170+Transmission!O1170+Generation!O1170+Retail!O1170+Misc!O1170","v":4452.8408117745203},{"$f":"+Distribution!P1170+Transmission!P1170+Generation!P1170+Retail!P1170+Misc!P1170","v":0},{"$f":"+Distribution!Q1170+Transmission!Q1170+Generation!Q1170+Retail!Q1170+Misc!Q1170","v":0},{"$f":"ROUND(SUM(I1170:Q1170)-H1170,0)","v":0}]
[1171]
[1172,null,"CWC","Cash Working Capital",null,{"$f":"IF(Function=\"gen\",\"F137G\",IF(Function=\"TRN\",\"F137T\",IF(Function=\"DIS\",\"F137D\",IF(Function=\"RETAIL\",\"F137R\",IF(Function=\"MISC\",\"F137M\",\"ERR\")))))","v":"F137D"},null,{"$f":"+Distribution!H1172+Transmission!H1172+Generation!H1172+Retail!H1172+Misc!H1172","v":28493963.911447883},{"$f":"+Distribution!I1172+Transmission!I1172+Generation!I1172+Retail!I1172+Misc!I1172","v":12900301.86003774},{"$f":"+Distribution!J1172+Transmission!J1172+Generation!J1172+Retail!J1172+Misc!J1172","v":3858212.9113307628},{"$f":"+Distribution!K1172+Transmission!K1172+Generation!K1172+Retail!K1172+Misc!K1172","v":5692411.9623585213},{"$f":"+Distribution!L1172+Transmission!L1172+Generation!L1172+Retail!L1172+Misc!L1172","v":2234162.8952165181},{"$f":"+Distribution!M1172+Transmission!M1172+Generation!M1172+Retail!M1172+Misc!M1172","v":2634999.2228814163},{"$f":"+Distribution!N1172+Transmission!N1172+Generation!N1172+Retail!N1172+Misc!N1172","v":1041207.7542339507},{"$f":"+Distribution!O1172+Transmission!O1172+Generation!O1172+Retail!O1172+Misc!O1172","v":132667.30538896756},{"$f":"+Distribution!P1172+Transmission!P1172+Generation!P1172+Retail!P1172+Misc!P1172","v":0},{"$f":"+Distribution!Q1172+Transmission!Q1172+Generation!Q1172+Retail!Q1172+Misc!Q1172","v":0},{"$f":"ROUND(SUM(I1172:Q1172)-H1172,0)","v":0}]
[1173]
[1174,null,"OWC","Other Working Capital",null,{"$f":"IF(Function=\"gen\",\"F137G\",IF(Function=\"TRN\",\"F137T\",IF(Function=\"DIS\",\"F137D\",IF(Function=\"RETAIL\",\"F137R\",IF(Function=\"MISC\",\"F137M\",\"ERR\")))))","v":"F137D"},null,{"$f":"+Distribution!H1174+Transmission!H1174+Generation!H1174+Retail!H1174+Misc!H1174","v":8.4689118302888238E-8},{"$f":"+Distribution!I1174+Transmission!I1174+Generation!I1174+Retail!I1174+Misc!I1174","v":4.0314853157085096E-8},{"$f":"+Distribution!J1174+Transmission!J1174+Generation!J1174+Retail!J1174+Misc!J1174","v":1.1826817441638051E-8},{"$f":"+Distribution!K1174+Transmission!K1174+Generation!K1174+Retail!K1174+Misc!K1174","v":1.591716381556012E-8},{"$f":"+Distribution!L1174+Transmission!L1174+Generation!L1174+Retail!L1174+Misc!L1174","v":6.1416804424676797E-9},{"$f":"+Distribution!M1174+Transmission!M1174+Generation!M1174+Retail!M1174+Misc!M1174","v":6.1995721817773404E-9},{"$f":"+Distribution!N1174+Transmission!N1174+Generation!N1174+Retail!N1174+Misc!N1174","v":3.4847356019456599E-9},{"$f":"+Distribution!O1174+Transmission!O1174+Generation!O1174+Retail!O1174+Misc!O1174","v":8.0429566241429764E-10},{"$f":"+Distribution!P1174+Transmission!P1174+Generation!P1174+Retail!P1174+Misc!P1174","v":0},{"$f":"+Distribution!Q1174+Transmission!Q1174+Generation!Q1174+Retail!Q1174+Misc!Q1174","v":0},{"$f":"ROUND(SUM(I1174:Q1174)-H1174,0)","v":0}]
[1175,null,null,null,"SSECH","F137D",null,{"$f":"+Distribution!H1175+Transmission!H1175+Generation!H1175+Retail!H1175+Misc!H1175","v":2.5363988243043423E-8},{"$f":"+Distribution!I1175+Transmission!I1175+Generation!I1175+Retail!I1175+Misc!I1175","v":1.0758392793846348E-8},{"$f":"+Distribution!J1175+Transmission!J1175+Generation!J1175+Retail!J1175+Misc!J1175","v":3.423855704625841E-9},{"$f":"+Distribution!K1175+Transmission!K1175+Generation!K1175+Retail!K1175+Misc!K1175","v":5.425163122808074E-9},{"$f":"+Distribution!L1175+Transmission!L1175+Generation!L1175+Retail!L1175+Misc!L1175","v":2.1435186032579576E-9},{"$f":"+Distribution!M1175+Transmission!M1175+Generation!M1175+Retail!M1175+Misc!M1175","v":2.6484806785671049E-9},{"$f":"+Distribution!N1175+Transmission!N1175+Generation!N1175+Retail!N1175+Misc!N1175","v":9.0371694487391544E-10},{"$f":"+Distribution!O1175+Transmission!O1175+Generation!O1175+Retail!O1175+Misc!O1175","v":6.0860395064179107E-11},{"$f":"+Distribution!P1175+Transmission!P1175+Generation!P1175+Retail!P1175+Misc!P1175","v":0},{"$f":"+Distribution!Q1175+Transmission!Q1175+Generation!Q1175+Retail!Q1175+Misc!Q1175","v":0},{"$f":"ROUND(SUM(I1175:Q1175)-H1175,0)","v":0}]
[1176,null,null,null,"Total Other Working Capital",null,null,{"$f":"+Distribution!H1176+Transmission!H1176+Generation!H1176+Retail!H1176+Misc!H1176","v":1.1005310654593166E-7},{"$f":"+Distribution!I1176+Transmission!I1176+Generation!I1176+Retail!I1176+Misc!I1176","v":5.1073245950931443E-8},{"$f":"+Distribution!J1176+Transmission!J1176+Generation!J1176+Retail!J1176+Misc!J1176","v":1.5250673146263893E-8},{"$f":"+Distribution!K1176+Transmission!K1176+Generation!K1176+Retail!K1176+Misc!K1176","v":2.1342326938368194E-8},{"$f":"+Distribution!L1176+Transmission!L1176+Generation!L1176+Retail!L1176+Misc!L1176","v":8.285199045725636E-9},{"$f":"+Distribution!M1176+Transmission!M1176+Generation!M1176+Retail!M1176+Misc!M1176","v":8.8480528603444448E-9},{"$f":"+Distribution!N1176+Transmission!N1176+Generation!N1176+Retail!N1176+Misc!N1176","v":4.3884525468195754E-9},{"$f":"+Distribution!O1176+Transmission!O1176+Generation!O1176+Retail!O1176+Misc!O1176","v":8.6515605747847676E-10},{"$f":"+Distribution!P1176+Transmission!P1176+Generation!P1176+Retail!P1176+Misc!P1176","v":0},{"$f":"+Distribution!Q1176+Transmission!Q1176+Generation!Q1176+Retail!Q1176+Misc!Q1176","v":0},{"$f":"ROUND(SUM(I1176:Q1176)-H1176,0)","v":0}]
[1177]
[1178,null,"18222","Nuclear Plant",null,{"$f":"IF(Classification=\"DEMAND\",\"F12\",IF(Classification=\"ENERGY\",\"F30\",\"F10\"))","v":"F10"},null,{"$f":"+Distribution!H1178+Transmission!H1178+Generation!H1178+Retail!H1178+Misc!H1178","v":0},{"$f":"+Distribution!I1178+Transmission!I1178+Generation!I1178+Retail!I1178+Misc!I1178","v":0},{"$f":"+Distribution!J1178+Transmission!J1178+Generation!J1178+Retail!J1178+Misc!J1178","v":0},{"$f":"+Distribution!K1178+Transmission!K1178+Generation!K1178+Retail!K1178+Misc!K1178","v":0},{"$f":"+Distribution!L1178+Transmission!L1178+Generation!L1178+Retail!L1178+Misc!L1178","v":0},{"$f":"+Distribution!M1178+Transmission!M1178+Generation!M1178+Retail!M1178+Misc!M1178","v":0},{"$f":"+Distribution!N1178+Transmission!N1178+Generation!N1178+Retail!N1178+Misc!N1178","v":0},{"$f":"+Distribution!O1178+Transmission!O1178+Generation!O1178+Retail!O1178+Misc!O1178","v":0},{"$f":"+Distribution!P1178+Transmission!P1178+Generation!P1178+Retail!P1178+Misc!P1178","v":0},{"$f":"+Distribution!Q1178+Transmission!Q1178+Generation!Q1178+Retail!Q1178+Misc!Q1178","v":0},{"$f":"ROUND(SUM(I1178:Q1178)-H1178,0)","v":0}]
[1179]
[1180,null,"1869","Misc Deferred Debits-Trojan",null,{"$f":"IF(Classification=\"DEMAND\",\"F12\",IF(Classification=\"ENERGY\",\"F30\",\"F10\"))","v":"F10"},null,{"$f":"+Distribution!H1180+Transmission!H1180+Generation!H1180+Retail!H1180+Misc!H1180","v":0},{"$f":"+Distribution!I1180+Transmission!I1180+Generation!I1180+Retail!I1180+Misc!I1180","v":0},{"$f":"+Distribution!J1180+Transmission!J1180+Generation!J1180+Retail!J1180+Misc!J1180","v":0},{"$f":"+Distribution!K1180+Transmission!K1180+Generation!K1180+Retail!K1180+Misc!K1180","v":0},{"$f":"+Distribution!L1180+Transmission!L1180+Generation!L1180+Retail!L1180+Misc!L1180","v":0},{"$f":"+Distribution!M1180+Transmission!M1180+Generation!M1180+Retail!M1180+Misc!M1180","v":0},{"$f":"+Distribution!N1180+Transmission!N1180+Generation!N1180+Retail!N1180+Misc!N1180","v":0},{"$f":"+Distribution!O1180+Transmission!O1180+Generation!O1180+Retail!O1180+Misc!O1180","v":0},{"$f":"+Distribution!P1180+Transmission!P1180+Generation!P1180+Retail!P1180+Misc!P1180","v":0},{"$f":"+Distribution!Q1180+Transmission!Q1180+Generation!Q1180+Retail!Q1180+Misc!Q1180","v":0},{"$f":"ROUND(SUM(I1180:Q1180)-H1180,0)","v":0}]
[1181]
[1182,null,"141","Impact Housing - Notes Receivable",null,{"$f":"IF(Classification=\"DEMAND\",\"F12\",IF(Classification=\"ENERGY\",\"F30\",\"F10\"))","v":"F10"},null,{"$f":"+Distribution!H1182+Transmission!H1182+Generation!H1182+Retail!H1182+Misc!H1182","v":0},{"$f":"+Distribution!I1182+Transmission!I1182+Generation!I1182+Retail!I1182+Misc!I1182","v":0},{"$f":"+Distribution!J1182+Transmission!J1182+Generation!J1182+Retail!J1182+Misc!J1182","v":0},{"$f":"+Distribution!K1182+Transmission!K1182+Generation!K1182+Retail!K1182+Misc!K1182","v":0},{"$f":"+Distribution!L1182+Transmission!L1182+Generation!L1182+Retail!L1182+Misc!L1182","v":0},{"$f":"+Distribution!M1182+Transmission!M1182+Generation!M1182+Retail!M1182+Misc!M1182","v":0},{"$f":"+Distribution!N1182+Transmission!N1182+Generation!N1182+Retail!N1182+Misc!N1182","v":0},{"$f":"+Distribution!O1182+Transmission!O1182+Generation!O1182+Retail!O1182+Misc!O1182","v":0},{"$f":"+Distribution!P1182+Transmission!P1182+Generation!P1182+Retail!P1182+Misc!P1182","v":0},{"$f":"+Distribution!Q1182+Transmission!Q1182+Generation!Q1182+Retail!Q1182+Misc!Q1182","v":0},{"$f":"ROUND(SUM(I1182:Q1182)-H1182,0)","v":0}]
[1183,null,"TOTAL RATE BASE ADDITIONS",null,null,null,null,{"$f":"+Distribution!H1183+Transmission!H1183+Generation!H1183+Retail!H1183+Misc!H1183","v":45262174.792122692},{"$f":"+Distribution!I1183+Transmission!I1183+Generation!I1183+Retail!I1183+Misc!I1183","v":20014634.901425697},{"$f":"+Distribution!J1183+Transmission!J1183+Generation!J1183+Retail!J1183+Misc!J1183","v":6121097.0326713454},{"$f":"+Distribution!K1183+Transmission!K1183+Generation!K1183+Retail!K1183+Misc!K1183","v":9277756.4934277143},{"$f":"+Distribution!L1183+Transmission!L1183+Generation!L1183+Retail!L1183+Misc!L1183","v":3650951.6779965037},{"$f":"+Distribution!M1183+Transmission!M1183+Generation!M1183+Retail!M1183+Misc!M1183","v":4386682.180154982},{"$f":"+Distribution!N1183+Transmission!N1183+Generation!N1183+Retail!N1183+Misc!N1183","v":1638157.4892318817},{"$f":"+Distribution!O1183+Transmission!O1183+Generation!O1183+Retail!O1183+Misc!O1183","v":172895.01721456178},{"$f":"+Distribution!P1183+Transmission!P1183+Generation!P1183+Retail!P1183+Misc!P1183","v":0},{"$f":"+Distribution!Q1183+Transmission!Q1183+Generation!Q1183+Retail!Q1183+Misc!Q1183","v":0},{"$f":"ROUND(SUM(I1183:Q1183)-H1183,0)","v":0}]
[1184]
[1185,null,null,null,null,null,null,"RATE BASE DEDUCTIONS"]
[1186]
[1187,null,"A",null,"B",null,null,"D","E","F","G","H","I","J","K","L","M"]
[1188,null,null,null,null,null,null,{"$f":"'Hot Sheet'!$H$10","v":"Washington"},null,{"$f":"'Hot Sheet'!$J$10","v":"Small General"},{"$f":"'Hot Sheet'!$K$10","v":"Large General"},{"$f":"'Hot Sheet'!$L$10","v":"Large General"},{"$f":"'Hot Sheet'!$M$10","v":"Large General"},{"$f":"'Hot Sheet'!$N$10","v":"Agricultural"},{"$f":"'Hot Sheet'!$O$10","v":"Street & Area"},{"$f":"+Distribution!P1188+Transmission!P1188+Generation!P1188+Retail!P1188+Misc!P1188","v":0},{"$f":"+Distribution!Q1188+Transmission!Q1188+Generation!Q1188+Retail!Q1188+Misc!Q1188","v":0}]
[1189,null,"FERC",null,null,null,null,{"$f":"'Hot Sheet'!$H$11","v":"Jurisdiction"},{"$f":"'Hot Sheet'!$I$11","v":"Residential"},{"$f":"'Hot Sheet'!$J$11","v":"Service"},{"$f":"'Hot Sheet'!$K$11","v":"Service <1,000 kW"},{"$f":"'Hot Sheet'!$L$11","v":"Service >1,000 kW"},{"$f":"'Hot Sheet'!$M$11","v":"Dedicated Facilities"},{"$f":"'Hot Sheet'!$N$11","v":"Pumping"},{"$f":"'Hot Sheet'!$O$11","v":"Lighting"},{"$f":"'Hot Sheet'!$M$11","v":"Dedicated Facilities"},{"$f":"'Hot Sheet'!$M$11","v":"Dedicated Facilities"}]
[{"$f":"+A1189+1","v":1190},null,"ACCT",null,"DESCRIPTION ",null,null,{"$f":"'Hot Sheet'!$H$12","v":"Normalized"},{"$f":"'Hot Sheet'!$I$12","v":"Schedule 16"},{"$f":"'Hot Sheet'!$J$12","v":"Schedule 24"},{"$f":"'Hot Sheet'!$K$12","v":"Schedule 36"},{"$f":"'Hot Sheet'!$L$12","v":"Schedule 48T"},{"$f":"'Hot Sheet'!$M$12","v":"Schedule 48T"},{"$f":"'Hot Sheet'!$N$12","v":"Schedule 40"},{"$f":"'Hot Sheet'!$O$12","v":"Sch. 15,51-54,57"},{"$f":"'Hot Sheet'!$M$12","v":"Schedule 48T"},{"$f":"'Hot Sheet'!$M$12","v":"Schedule 48T"}]
[1191]
[1192,null,"235","Customer Service Deposits",null,"F51",null,{"$f":"+Distribution!H1192+Transmission!H1192+Generation!H1192+Retail!H1192+Misc!H1192","v":-3236612.0862499997},{"$f":"+Distribution!I1192+Transmission!I1192+Generation!I1192+Retail!I1192+Misc!I1192","v":-2788224.7747138054},{"$f":"+Distribution!J1192+Transmission!J1192+Generation!J1192+Retail!J1192+Misc!J1192","v":-313289.81752265652},{"$f":"+Distribution!K1192+Transmission!K1192+Generation!K1192+Retail!K1192+Misc!K1192","v":-70306.17488218419},{"$f":"+Distribution!L1192+Transmission!L1192+Generation!L1192+Retail!L1192+Misc!L1192","v":0},{"$f":"+Distribution!M1192+Transmission!M1192+Generation!M1192+Retail!M1192+Misc!M1192","v":0},{"$f":"+Distribution!N1192+Transmission!N1192+Generation!N1192+Retail!N1192+Misc!N1192","v":-62433.835518408392},{"$f":"+Distribution!O1192+Transmission!O1192+Generation!O1192+Retail!O1192+Misc!O1192","v":-2357.4836129454347},{"$f":"+Distribution!P1192+Transmission!P1192+Generation!P1192+Retail!P1192+Misc!P1192","v":0},{"$f":"+Distribution!Q1192+Transmission!Q1192+Generation!Q1192+Retail!Q1192+Misc!Q1192","v":0},{"$f":"ROUND(SUM(I1192:Q1192)-H1192,0)","v":0}]
[1193,null,null,null,null,"F51",null,{"$f":"+Distribution!H1193+Transmission!H1193+Generation!H1193+Retail!H1193+Misc!H1193","v":0},{"$f":"+Distribution!I1193+Transmission!I1193+Generation!I1193+Retail!I1193+Misc!I1193","v":0},{"$f":"+Distribution!J1193+Transmission!J1193+Generation!J1193+Retail!J1193+Misc!J1193","v":0},{"$f":"+Distribution!K1193+Transmission!K1193+Generation!K1193+Retail!K1193+Misc!K1193","v":0},{"$f":"+Distribution!L1193+Transmission!L1193+Generation!L1193+Retail!L1193+Misc!L1193","v":0},{"$f":"+Distribution!M1193+Transmission!M1193+Generation!M1193+Retail!M1193+Misc!M1193","v":0},{"$f":"+Distribution!N1193+Transmission!N1193+Generation!N1193+Retail!N1193+Misc!N1193","v":0},{"$f":"+Distribution!O1193+Transmission!O1193+Generation!O1193+Retail!O1193+Misc!O1193","v":0},{"$f":"+Distribution!P1193+Transmission!P1193+Generation!P1193+Retail!P1193+Misc!P1193","v":0},{"$f":"+Distribution!Q1193+Transmission!Q1193+Generation!Q1193+Retail!Q1193+Misc!Q1193","v":0},{"$f":"ROUND(SUM(I1193:Q1193)-H1193,0)","v":0}]
[1194,null,null,null,null,null,null,{"$f":"+Distribution!H1194+Transmission!H1194+Generation!H1194+Retail!H1194+Misc!H1194","v":-3236612.0862499997},{"$f":"+Distribution!I1194+Transmission!I1194+Generation!I1194+Retail!I1194+Misc!I1194","v":-2788224.7747138054},{"$f":"+Distribution!J1194+Transmission!J1194+Generation!J1194+Retail!J1194+Misc!J1194","v":-313289.81752265652},{"$f":"+Distribution!K1194+Transmission!K1194+Generation!K1194+Retail!K1194+Misc!K1194","v":-70306.17488218419},{"$f":"+Distribution!L1194+Transmission!L1194+Generation!L1194+Retail!L1194+Misc!L1194","v":0},{"$f":"+Distribution!M1194+Transmission!M1194+Generation!M1194+Retail!M1194+Misc!M1194","v":0},{"$f":"+Distribution!N1194+Transmission!N1194+Generation!N1194+Retail!N1194+Misc!N1194","v":-62433.835518408392},{"$f":"+Distribution!O1194+Transmission!O1194+Generation!O1194+Retail!O1194+Misc!O1194","v":-2357.4836129454347},{"$f":"+Distribution!P1194+Transmission!P1194+Generation!P1194+Retail!P1194+Misc!P1194","v":0},{"$f":"+Distribution!Q1194+Transmission!Q1194+Generation!Q1194+Retail!Q1194+Misc!Q1194","v":0},{"$f":"ROUND(SUM(I1194:Q1194)-H1194,0)","v":0}]
[1195]
[1196,null,"2281","Accum Prov for Property Insurance",null,{"$f":"IF(Function=\"gen\",\"F102G\",IF(Function=\"TRN\",\"F102T\",IF(Function=\"DIS\",\"F102D\",IF(Function=\"RETAIL\",\"F102R\",IF(Function=\"MISC\",\"F102M\",\"ERR\")))))","v":"F102D"},null,{"$f":"+Distribution!H1196+Transmission!H1196+Generation!H1196+Retail!H1196+Misc!H1196","v":0},{"$f":"+Distribution!I1196+Transmission!I1196+Generation!I1196+Retail!I1196+Misc!I1196","v":0},{"$f":"+Distribution!J1196+Transmission!J1196+Generation!J1196+Retail!J1196+Misc!J1196","v":0},{"$f":"+Distribution!K1196+Transmission!K1196+Generation!K1196+Retail!K1196+Misc!K1196","v":0},{"$f":"+Distribution!L1196+Transmission!L1196+Generation!L1196+Retail!L1196+Misc!L1196","v":0},{"$f":"+Distribution!M1196+Transmission!M1196+Generation!M1196+Retail!M1196+Misc!M1196","v":0},{"$f":"+Distribution!N1196+Transmission!N1196+Generation!N1196+Retail!N1196+Misc!N1196","v":0},{"$f":"+Distribution!O1196+Transmission!O1196+Generation!O1196+Retail!O1196+Misc!O1196","v":0},{"$f":"+Distribution!P1196+Transmission!P1196+Generation!P1196+Retail!P1196+Misc!P1196","v":0},{"$f":"+Distribution!Q1196+Transmission!Q1196+Generation!Q1196+Retail!Q1196+Misc!Q1196","v":0},{"$f":"ROUND(SUM(I1196:Q1196)-H1196,0)","v":0}]
[1197]
[1198,null,"2282","Accum Prov for Injuries & Damages",null,{"$f":"IF(Function=\"gen\",\"F102G\",IF(Function=\"TRN\",\"F102T\",IF(Function=\"DIS\",\"F102D\",IF(Function=\"RETAIL\",\"F102R\",IF(Function=\"MISC\",\"F102M\",\"ERR\")))))","v":"F102D"},null,{"$f":"+Distribution!H1198+Transmission!H1198+Generation!H1198+Retail!H1198+Misc!H1198","v":-455823.63489991985},{"$f":"+Distribution!I1198+Transmission!I1198+Generation!I1198+Retail!I1198+Misc!I1198","v":-215886.29910728414},{"$f":"+Distribution!J1198+Transmission!J1198+Generation!J1198+Retail!J1198+Misc!J1198","v":-63551.933544518113},{"$f":"+Distribution!K1198+Transmission!K1198+Generation!K1198+Retail!K1198+Misc!K1198","v":-87634.085679261669},{"$f":"+Distribution!L1198+Transmission!L1198+Generation!L1198+Retail!L1198+Misc!L1198","v":-33759.305533209234},{"$f":"+Distribution!M1198+Transmission!M1198+Generation!M1198+Retail!M1198+Misc!M1198","v":-34522.836030355393},{"$f":"+Distribution!N1198+Transmission!N1198+Generation!N1198+Retail!N1198+Misc!N1198","v":-17897.966729353175},{"$f":"+Distribution!O1198+Transmission!O1198+Generation!O1198+Retail!O1198+Misc!O1198","v":-2571.2082759381356},{"$f":"+Distribution!P1198+Transmission!P1198+Generation!P1198+Retail!P1198+Misc!P1198","v":0},{"$f":"+Distribution!Q1198+Transmission!Q1198+Generation!Q1198+Retail!Q1198+Misc!Q1198","v":0},{"$f":"ROUND(SUM(I1198:Q1198)-H1198,0)","v":0}]
[1199]
[1200,null," 2283","Accum Prov for Pension & Benefits",null,{"$f":"IF(Function=\"gen\",\"F102G\",IF(Function=\"TRN\",\"F102T\",IF(Function=\"DIS\",\"F102D\",IF(Function=\"RETAIL\",\"F102R\",IF(Function=\"MISC\",\"F102M\",\"ERR\")))))","v":"F102D"},null,{"$f":"+Distribution!H1200+Transmission!H1200+Generation!H1200+Retail!H1200+Misc!H1200","v":-232873.29964495631},{"$f":"+Distribution!I1200+Transmission!I1200+Generation!I1200+Retail!I1200+Misc!I1200","v":-110292.99705419924},{"$f":"+Distribution!J1200+Transmission!J1200+Generation!J1200+Retail!J1200+Misc!J1200","v":-32467.707530300155},{"$f":"+Distribution!K1200+Transmission!K1200+Generation!K1200+Retail!K1200+Misc!K1200","v":-44770.909472430401},{"$f":"+Distribution!L1200+Transmission!L1200+Generation!L1200+Retail!L1200+Misc!L1200","v":-17247.111100254293},{"$f":"+Distribution!M1200+Transmission!M1200+Generation!M1200+Retail!M1200+Misc!M1200","v":-17637.187113511081},{"$f":"+Distribution!N1200+Transmission!N1200+Generation!N1200+Retail!N1200+Misc!N1200","v":-9143.7965258542026},{"$f":"+Distribution!O1200+Transmission!O1200+Generation!O1200+Retail!O1200+Misc!O1200","v":-1313.5908484069662},{"$f":"+Distribution!P1200+Transmission!P1200+Generation!P1200+Retail!P1200+Misc!P1200","v":0},{"$f":"+Distribution!Q1200+Transmission!Q1200+Generation!Q1200+Retail!Q1200+Misc!Q1200","v":0},{"$f":"ROUND(SUM(I1200:Q1200)-H1200,0)","v":0}]
[1201]
[1202,null,"254","Reg Liabilities - Insurance Provision",null,{"$f":"IF(Function=\"gen\",\"F102G\",IF(Function=\"TRN\",\"F102T\",IF(Function=\"DIS\",\"F102D\",IF(Function=\"RETAIL\",\"F102R\",IF(Function=\"MISC\",\"F102M\",\"ERR\")))))","v":"F102D"},null,{"$f":"+Distribution!H1202+Transmission!H1202+Generation!H1202+Retail!H1202+Misc!H1202","v":0},{"$f":"+Distribution!I1202+Transmission!I1202+Generation!I1202+Retail!I1202+Misc!I1202","v":0},{"$f":"+Distribution!J1202+Transmission!J1202+Generation!J1202+Retail!J1202+Misc!J1202","v":0},{"$f":"+Distribution!K1202+Transmission!K1202+Generation!K1202+Retail!K1202+Misc!K1202","v":0},{"$f":"+Distribution!L1202+Transmission!L1202+Generation!L1202+Retail!L1202+Misc!L1202","v":0},{"$f":"+Distribution!M1202+Transmission!M1202+Generation!M1202+Retail!M1202+Misc!M1202","v":0},{"$f":"+Distribution!N1202+Transmission!N1202+Generation!N1202+Retail!N1202+Misc!N1202","v":0},{"$f":"+Distribution!O1202+Transmission!O1202+Generation!O1202+Retail!O1202+Misc!O1202","v":0},{"$f":"+Distribution!P1202+Transmission!P1202+Generation!P1202+Retail!P1202+Misc!P1202","v":0},{"$f":"+Distribution!Q1202+Transmission!Q1202+Generation!Q1202+Retail!Q1202+Misc!Q1202","v":0},{"$f":"ROUND(SUM(I1202:Q1202)-H1202,0)","v":0}]
[1203]
[1204,null,"22844","Hydro Relicensing Obligations",null,{"$f":"IF(Classification=\"DEMAND\",\"F12\",IF(Classification=\"ENERGY\",\"F30\",\"F10\"))","v":"F10"},null,{"$f":"+Distribution!H1204+Transmission!H1204+Generation!H1204+Retail!H1204+Misc!H1204","v":-335802.44440276822},{"$f":"+Distribution!I1204+Transmission!I1204+Generation!I1204+Retail!I1204+Misc!I1204","v":-142472.58950834326},{"$f":"+Distribution!J1204+Transmission!J1204+Generation!J1204+Retail!J1204+Misc!J1204","v":-45316.821499542129},{"$f":"+Distribution!K1204+Transmission!K1204+Generation!K1204+Retail!K1204+Misc!K1204","v":-71800.591376594122},{"$f":"+Distribution!L1204+Transmission!L1204+Generation!L1204+Retail!L1204+Misc!L1204","v":-28372.802551560184},{"$f":"+Distribution!M1204+Transmission!M1204+Generation!M1204+Retail!M1204+Misc!M1204","v":-35079.438292970386},{"$f":"+Distribution!N1204+Transmission!N1204+Generation!N1204+Retail!N1204+Misc!N1204","v":-11954.595610959615},{"$f":"+Distribution!O1204+Transmission!O1204+Generation!O1204+Retail!O1204+Misc!O1204","v":-805.60556279851846},{"$f":"+Distribution!P1204+Transmission!P1204+Generation!P1204+Retail!P1204+Misc!P1204","v":0},{"$f":"+Distribution!Q1204+Transmission!Q1204+Generation!Q1204+Retail!Q1204+Misc!Q1204","v":0},{"$f":"ROUND(SUM(I1204:Q1204)-H1204,0)","v":0}]
[1205]
[1206,null,"22842","Accum Misc Oper Prov - Trojan",null,{"$f":"IF(Classification=\"DEMAND\",\"F12\",IF(Classification=\"ENERGY\",\"F30\",\"F10\"))","v":"F10"},null,{"$f":"+Distribution!H1206+Transmission!H1206+Generation!H1206+Retail!H1206+Misc!H1206","v":384912.29383690434},{"$f":"+Distribution!I1206+Transmission!I1206+Generation!I1206+Retail!I1206+Misc!I1206","v":163308.67196060231},{"$f":"+Distribution!J1206+Transmission!J1206+Generation!J1206+Retail!J1206+Misc!J1206","v":51944.236867629275},{"$f":"+Distribution!K1206+Transmission!K1206+Generation!K1206+Retail!K1206+Misc!K1206","v":82301.158869656123},{"$f":"+Distribution!L1206+Transmission!L1206+Generation!L1206+Retail!L1206+Misc!L1206","v":32522.218628056464},{"$f":"+Distribution!M1206+Transmission!M1206+Generation!M1206+Retail!M1206+Misc!M1206","v":40209.674720718212},{"$f":"+Distribution!N1206+Transmission!N1206+Generation!N1206+Retail!N1206+Misc!N1206","v":13702.910432027582},{"$f":"+Distribution!O1206+Transmission!O1206+Generation!O1206+Retail!O1206+Misc!O1206","v":923.42235821435202},{"$f":"+Distribution!P1206+Transmission!P1206+Generation!P1206+Retail!P1206+Misc!P1206","v":0},{"$f":"+Distribution!Q1206+Transmission!Q1206+Generation!Q1206+Retail!Q1206+Misc!Q1206","v":0},{"$f":"ROUND(SUM(I1206:Q1206)-H1206,0)","v":0}]
[1207]
[1208]
[1209,null,"252","Customer Advances for Const",null,"F50",null,{"$f":"+Distribution!H1209+Transmission!H1209+Generation!H1209+Retail!H1209+Misc!H1209","v":-143878.99867603625},{"$f":"+Distribution!I1209+Transmission!I1209+Generation!I1209+Retail!I1209+Misc!I1209","v":-52992.552346983706},{"$f":"+Distribution!J1209+Transmission!J1209+Generation!J1209+Retail!J1209+Misc!J1209","v":-82336.359307061211},{"$f":"+Distribution!K1209+Transmission!K1209+Generation!K1209+Retail!K1209+Misc!K1209","v":0},{"$f":"+Distribution!L1209+Transmission!L1209+Generation!L1209+Retail!L1209+Misc!L1209","v":0},{"$f":"+Distribution!M1209+Transmission!M1209+Generation!M1209+Retail!M1209+Misc!M1209","v":0},{"$f":"+Distribution!N1209+Transmission!N1209+Generation!N1209+Retail!N1209+Misc!N1209","v":-8550.0870219913322},{"$f":"+Distribution!O1209+Transmission!O1209+Generation!O1209+Retail!O1209+Misc!O1209","v":0},{"$f":"+Distribution!P1209+Transmission!P1209+Generation!P1209+Retail!P1209+Misc!P1209","v":0},{"$f":"+Distribution!Q1209+Transmission!Q1209+Generation!Q1209+Retail!Q1209+Misc!Q1209","v":0},{"$f":"ROUND(SUM(I1209:Q1209)-H1209,0)","v":0}]
[1210]
[1211,null,"25398","SO2 Emmissions",null,{"$f":"IF(Classification=\"DEMAND\",\"F12\",IF(Classification=\"ENERGY\",\"F30\",\"F10\"))","v":"F10"},null,{"$f":"+Distribution!H1211+Transmission!H1211+Generation!H1211+Retail!H1211+Misc!H1211","v":-1721174.3189683419},{"$f":"+Distribution!I1211+Transmission!I1211+Generation!I1211+Retail!I1211+Misc!I1211","v":-730251.27215737838},{"$f":"+Distribution!J1211+Transmission!J1211+Generation!J1211+Retail!J1211+Misc!J1211","v":-232273.9178418004},{"$f":"+Distribution!K1211+Transmission!K1211+Generation!K1211+Retail!K1211+Misc!K1211","v":-368017.97016077599},{"$f":"+Distribution!L1211+Transmission!L1211+Generation!L1211+Retail!L1211+Misc!L1211","v":-145426.39555753712},{"$f":"+Distribution!M1211+Transmission!M1211+Generation!M1211+Retail!M1211+Misc!M1211","v":-179801.63432424839},{"$f":"+Distribution!N1211+Transmission!N1211+Generation!N1211+Retail!N1211+Misc!N1211","v":-61273.952296059368},{"$f":"+Distribution!O1211+Transmission!O1211+Generation!O1211+Retail!O1211+Misc!O1211","v":-4129.1766305421734},{"$f":"+Distribution!P1211+Transmission!P1211+Generation!P1211+Retail!P1211+Misc!P1211","v":0},{"$f":"+Distribution!Q1211+Transmission!Q1211+Generation!Q1211+Retail!Q1211+Misc!Q1211","v":0},{"$f":"ROUND(SUM(I1211:Q1211)-H1211,0)","v":0}]
[1212]
[1213,null,"25399","Other Deferred Credits",null,{"$f":"IF(Classification=\"DEMAND\",\"F12\",IF(Classification=\"ENERGY\",\"F30\",\"F10\"))","v":"F10"},null,{"$f":"+Distribution!H1213+Transmission!H1213+Generation!H1213+Retail!H1213+Misc!H1213","v":-1087352.2898405073},{"$f":"+Distribution!I1213+Transmission!I1213+Generation!I1213+Retail!I1213+Misc!I1213","v":-461336.41676411394},{"$f":"+Distribution!J1213+Transmission!J1213+Generation!J1213+Retail!J1213+Misc!J1213","v":-146739.10344356761},{"$f":"+Distribution!K1213+Transmission!K1213+Generation!K1213+Retail!K1213+Misc!K1213","v":-232495.44113383649},{"$f":"+Distribution!L1213+Transmission!L1213+Generation!L1213+Retail!L1213+Misc!L1213","v":-91873.160359213958},{"$f":"+Distribution!M1213+Transmission!M1213+Generation!M1213+Retail!M1213+Misc!M1213","v":-113589.7257151285},{"$f":"+Distribution!N1213+Transmission!N1213+Generation!N1213+Retail!N1213+Misc!N1213","v":-38709.8340954991},{"$f":"+Distribution!O1213+Transmission!O1213+Generation!O1213+Retail!O1213+Misc!O1213","v":-2608.6083291477034},{"$f":"+Distribution!P1213+Transmission!P1213+Generation!P1213+Retail!P1213+Misc!P1213","v":0},{"$f":"+Distribution!Q1213+Transmission!Q1213+Generation!Q1213+Retail!Q1213+Misc!Q1213","v":0},{"$f":"ROUND(SUM(I1213:Q1213)-H1213,0)","v":0}]
[1214]
[1215,null,"190","Accum Deferred Income Taxes",null,{"$f":"IF(Function=\"gen\",\"F104G\",IF(Function=\"TRN\",\"F104T\",IF(Function=\"DIS\",\"F104D\",IF(Function=\"RETAIL\",\"F104R\",IF(Function=\"MISC\",\"F104M\",\"ERR\")))))","v":"F104D"},null,{"$f":"+Distribution!H1215+Transmission!H1215+Generation!H1215+Retail!H1215+Misc!H1215","v":-7259140.7521600295},{"$f":"+Distribution!I1215+Transmission!I1215+Generation!I1215+Retail!I1215+Misc!I1215","v":-3079607.1600998491},{"$f":"+Distribution!J1215+Transmission!J1215+Generation!J1215+Retail!J1215+Misc!J1215","v":-979605.15213331743},{"$f":"+Distribution!K1215+Transmission!K1215+Generation!K1215+Retail!K1215+Misc!K1215","v":-1552252.7861590979},{"$f":"+Distribution!L1215+Transmission!L1215+Generation!L1215+Retail!L1215+Misc!L1215","v":-613399.38750660815},{"$f":"+Distribution!M1215+Transmission!M1215+Generation!M1215+Retail!M1215+Misc!M1215","v":-758469.4749317097},{"$f":"+Distribution!N1215+Transmission!N1215+Generation!N1215+Retail!N1215+Misc!N1215","v":-258408.81542210976},{"$f":"+Distribution!O1215+Transmission!O1215+Generation!O1215+Retail!O1215+Misc!O1215","v":-17397.975907336571},{"$f":"+Distribution!P1215+Transmission!P1215+Generation!P1215+Retail!P1215+Misc!P1215","v":0},{"$f":"+Distribution!Q1215+Transmission!Q1215+Generation!Q1215+Retail!Q1215+Misc!Q1215","v":0},{"$f":"ROUND(SUM(I1215:Q1215)-H1215,0)","v":0}]
[1216,null,null,null," Labor",{"$f":"IF(Function=\"gen\",\"F138G\",IF(Function=\"TRN\",\"F138T\",IF(Function=\"DIS\",\"F138D\",IF(Function=\"RETAIL\",\"F138R\",IF(Function=\"MISC\",\"F138M\",\"ERR\")))))","v":"F138D"},null,{"$f":"+Distribution!H1216+Transmission!H1216+Generation!H1216+Retail!H1216+Misc!H1216","v":-8.1554587855935097},{"$f":"+Distribution!I1216+Transmission!I1216+Generation!I1216+Retail!I1216+Misc!I1216","v":-4.3248982935609455},{"$f":"+Distribution!J1216+Transmission!J1216+Generation!J1216+Retail!J1216+Misc!J1216","v":-1.1078179404750759},{"$f":"+Distribution!K1216+Transmission!K1216+Generation!K1216+Retail!K1216+Misc!K1216","v":-1.3125946610748223},{"$f":"+Distribution!L1216+Transmission!L1216+Generation!L1216+Retail!L1216+Misc!L1216","v":-0.50444678398202303},{"$f":"+Distribution!M1216+Transmission!M1216+Generation!M1216+Retail!M1216+Misc!M1216","v":-0.49582312800563866},{"$f":"+Distribution!N1216+Transmission!N1216+Generation!N1216+Retail!N1216+Misc!N1216","v":-0.31790931679000772},{"$f":"+Distribution!O1216+Transmission!O1216+Generation!O1216+Retail!O1216+Misc!O1216","v":-9.1968661704998317E-2},{"$f":"+Distribution!P1216+Transmission!P1216+Generation!P1216+Retail!P1216+Misc!P1216","v":0},{"$f":"+Distribution!Q1216+Transmission!Q1216+Generation!Q1216+Retail!Q1216+Misc!Q1216","v":0},{"$f":"ROUND(SUM(I1216:Q1216)-H1216,0)","v":0}]
[1217,null,null,null,"Customer - System","F42",null,{"$f":"+Distribution!H1217+Transmission!H1217+Generation!H1217+Retail!H1217+Misc!H1217","v":-6.3889920245856047E-2},{"$f":"+Distribution!I1217+Transmission!I1217+Generation!I1217+Retail!I1217+Misc!I1217","v":-5.1550785573861092E-2},{"$f":"+Distribution!J1217+Transmission!J1217+Generation!J1217+Retail!J1217+Misc!J1217","v":-8.7557083662772733E-3},{"$f":"+Distribution!K1217+Transmission!K1217+Generation!K1217+Retail!K1217+Misc!K1217","v":-5.3174929508475804E-4},{"$f":"+Distribution!L1217+Transmission!L1217+Generation!L1217+Retail!L1217+Misc!L1217","v":-1.0905717022636093E-4},{"$f":"+Distribution!M1217+Transmission!M1217+Generation!M1217+Retail!M1217+Misc!M1217","v":-1.88316571794527E-6},{"$f":"+Distribution!N1217+Transmission!N1217+Generation!N1217+Retail!N1217+Misc!N1217","v":-1.5597468339646893E-3},{"$f":"+Distribution!O1217+Transmission!O1217+Generation!O1217+Retail!O1217+Misc!O1217","v":-1.3809898407239226E-3},{"$f":"+Distribution!P1217+Transmission!P1217+Generation!P1217+Retail!P1217+Misc!P1217","v":0},{"$f":"+Distribution!Q1217+Transmission!Q1217+Generation!Q1217+Retail!Q1217+Misc!Q1217","v":0},{"$f":"ROUND(SUM(I1217:Q1217)-H1217,0)","v":0}]
[1218,null,null,null,"Total Accum Deferred Income Taxes",null,null,{"$f":"+Distribution!H1218+Transmission!H1218+Generation!H1218+Retail!H1218+Misc!H1218","v":-7259148.9715087358},{"$f":"+Distribution!I1218+Transmission!I1218+Generation!I1218+Retail!I1218+Misc!I1218","v":-3079611.5365489284},{"$f":"+Distribution!J1218+Transmission!J1218+Generation!J1218+Retail!J1218+Misc!J1218","v":-979606.26870696631},{"$f":"+Distribution!K1218+Transmission!K1218+Generation!K1218+Retail!K1218+Misc!K1218","v":-1552254.0992855085},{"$f":"+Distribution!L1218+Transmission!L1218+Generation!L1218+Retail!L1218+Misc!L1218","v":-613399.89206244936},{"$f":"+Distribution!M1218+Transmission!M1218+Generation!M1218+Retail!M1218+Misc!M1218","v":-758469.97075672075},{"$f":"+Distribution!N1218+Transmission!N1218+Generation!N1218+Retail!N1218+Misc!N1218","v":-258409.13489117337},{"$f":"+Distribution!O1218+Transmission!O1218+Generation!O1218+Retail!O1218+Misc!O1218","v":-17398.069256988114},{"$f":"+Distribution!P1218+Transmission!P1218+Generation!P1218+Retail!P1218+Misc!P1218","v":0},{"$f":"+Distribution!Q1218+Transmission!Q1218+Generation!Q1218+Retail!Q1218+Misc!Q1218","v":0},{"$f":"ROUND(SUM(I1218:Q1218)-H1218,0)","v":0}]
[1219]
[1220,null,"281","Accum Deferred Income Taxes",null,{"$f":"IF(Function=\"gen\",\"F104G\",IF(Function=\"TRN\",\"F104T\",IF(Function=\"DIS\",\"F104D\",IF(Function=\"RETAIL\",\"F104R\",IF(Function=\"MISC\",\"F104M\",\"ERR\")))))","v":"F104D"},null,{"$f":"+Distribution!H1220+Transmission!H1220+Generation!H1220+Retail!H1220+Misc!H1220","v":3.6865619942545891E-2},{"$f":"+Distribution!I1220+Transmission!I1220+Generation!I1220+Retail!I1220+Misc!I1220","v":1.5638493084394346E-2},{"$f":"+Distribution!J1220+Transmission!J1220+Generation!J1220+Retail!J1220+Misc!J1220","v":4.9748249429769527E-3},{"$f":"+Distribution!K1220+Transmission!K1220+Generation!K1220+Retail!K1220+Misc!K1220","v":7.8837216592563646E-3},{"$f":"+Distribution!L1220+Transmission!L1220+Generation!L1220+Retail!L1220+Misc!L1220","v":3.1154352921574273E-3},{"$f":"+Distribution!M1220+Transmission!M1220+Generation!M1220+Retail!M1220+Misc!M1220","v":3.852628409577139E-3},{"$f":"+Distribution!N1220+Transmission!N1220+Generation!N1220+Retail!N1220+Misc!N1220","v":1.3122458406985885E-3},{"$f":"+Distribution!O1220+Transmission!O1220+Generation!O1220+Retail!O1220+Misc!O1220","v":8.8270713485064589E-5},{"$f":"+Distribution!P1220+Transmission!P1220+Generation!P1220+Retail!P1220+Misc!P1220","v":0},{"$f":"+Distribution!Q1220+Transmission!Q1220+Generation!Q1220+Retail!Q1220+Misc!Q1220","v":0},{"$f":"ROUND(SUM(I1220:Q1220)-H1220,0)","v":0}]
[1221]
[1222,null,"282","Accum Deferred Income Taxes ",null,{"$f":"IF(Function=\"gen\",\"F104G\",IF(Function=\"TRN\",\"F104T\",IF(Function=\"DIS\",\"F104D\",IF(Function=\"RETAIL\",\"F104R\",IF(Function=\"MISC\",\"F104M\",\"ERR\")))))","v":"F104D"},null,{"$f":"+Distribution!H1222+Transmission!H1222+Generation!H1222+Retail!H1222+Misc!H1222","v":-221201269.38451293},{"$f":"+Distribution!I1222+Transmission!I1222+Generation!I1222+Retail!I1222+Misc!I1222","v":-104620072.70794486},{"$f":"+Distribution!J1222+Transmission!J1222+Generation!J1222+Retail!J1222+Misc!J1222","v":-30822494.648492675},{"$f":"+Distribution!K1222+Transmission!K1222+Generation!K1222+Retail!K1222+Misc!K1222","v":-42488102.314272895},{"$f":"+Distribution!L1222+Transmission!L1222+Generation!L1222+Retail!L1222+Misc!L1222","v":-16383472.965706879},{"$f":"+Distribution!M1222+Transmission!M1222+Generation!M1222+Retail!M1222+Misc!M1222","v":-17227897.794830546},{"$f":"+Distribution!N1222+Transmission!N1222+Generation!N1222+Retail!N1222+Misc!N1222","v":-8554451.7272814326},{"$f":"+Distribution!O1222+Transmission!O1222+Generation!O1222+Retail!O1222+Misc!O1222","v":-1104777.2259836108},{"$f":"+Distribution!P1222+Transmission!P1222+Generation!P1222+Retail!P1222+Misc!P1222","v":0},{"$f":"+Distribution!Q1222+Transmission!Q1222+Generation!Q1222+Retail!Q1222+Misc!Q1222","v":0},{"$f":"ROUND(SUM(I1222:Q1222)-H1222,0)","v":0}]
[1223,null,null,null," Labor",{"$f":"IF(Function=\"gen\",\"F138G\",IF(Function=\"TRN\",\"F138T\",IF(Function=\"DIS\",\"F138D\",IF(Function=\"RETAIL\",\"F138R\",IF(Function=\"MISC\",\"F138M\",\"ERR\")))))","v":"F138D"},null,{"$f":"+Distribution!H1223+Transmission!H1223+Generation!H1223+Retail!H1223+Misc!H1223","v":-8.5636598989367471E-2},{"$f":"+Distribution!I1223+Transmission!I1223+Generation!I1223+Retail!I1223+Misc!I1223","v":-4.5413702720162166E-2},{"$f":"+Distribution!J1223+Transmission!J1223+Generation!J1223+Retail!J1223+Misc!J1223","v":-1.1632669996355937E-2},{"$f":"+Distribution!K1223+Transmission!K1223+Generation!K1223+Retail!K1223+Misc!K1223","v":-1.3782933073564539E-2},{"$f":"+Distribution!L1223+Transmission!L1223+Generation!L1223+Retail!L1223+Misc!L1223","v":-5.2969560740905395E-3},{"$f":"+Distribution!M1223+Transmission!M1223+Generation!M1223+Retail!M1223+Misc!M1223","v":-5.2064031587871788E-3},{"$f":"+Distribution!N1223+Transmission!N1223+Generation!N1223+Retail!N1223+Misc!N1223","v":-3.3382147335502006E-3},{"$f":"+Distribution!O1223+Transmission!O1223+Generation!O1223+Retail!O1223+Misc!O1223","v":-9.6571923285693781E-4},{"$f":"+Distribution!P1223+Transmission!P1223+Generation!P1223+Retail!P1223+Misc!P1223","v":0},{"$f":"+Distribution!Q1223+Transmission!Q1223+Generation!Q1223+Retail!Q1223+Misc!Q1223","v":0},{"$f":"ROUND(SUM(I1223:Q1223)-H1223,0)","v":0}]
[1224,null,null,null,"Customer - System","F42",null,{"$f":"+Distribution!H1224+Transmission!H1224+Generation!H1224+Retail!H1224+Misc!H1224","v":-844233.32637380378},{"$f":"+Distribution!I1224+Transmission!I1224+Generation!I1224+Retail!I1224+Misc!I1224","v":-681185.56127053942},{"$f":"+Distribution!J1224+Transmission!J1224+Generation!J1224+Retail!J1224+Misc!J1224","v":-115696.82307281716},{"$f":"+Distribution!K1224+Transmission!K1224+Generation!K1224+Retail!K1224+Misc!K1224","v":-7026.4679382730646},{"$f":"+Distribution!L1224+Transmission!L1224+Generation!L1224+Retail!L1224+Misc!L1224","v":-1441.0676555991877},{"$f":"+Distribution!M1224+Transmission!M1224+Generation!M1224+Retail!M1224+Misc!M1224","v":-24.883913644847059},{"$f":"+Distribution!N1224+Transmission!N1224+Generation!N1224+Retail!N1224+Misc!N1224","v":-20610.297412672491},{"$f":"+Distribution!O1224+Transmission!O1224+Generation!O1224+Retail!O1224+Misc!O1224","v":-18248.225110257616},{"$f":"+Distribution!P1224+Transmission!P1224+Generation!P1224+Retail!P1224+Misc!P1224","v":0},{"$f":"+Distribution!Q1224+Transmission!Q1224+Generation!Q1224+Retail!Q1224+Misc!Q1224","v":0},{"$f":"ROUND(SUM(I1224:Q1224)-H1224,0)","v":0}]
[1225,null,null,null,"Total Accum Deferred Income Taxes ",null,null,{"$f":"+Distribution!H1225+Transmission!H1225+Generation!H1225+Retail!H1225+Misc!H1225","v":-222045502.79652333},{"$f":"+Distribution!I1225+Transmission!I1225+Generation!I1225+Retail!I1225+Misc!I1225","v":-105301258.31462909},{"$f":"+Distribution!J1225+Transmission!J1225+Generation!J1225+Retail!J1225+Misc!J1225","v":-30938191.483198162},{"$f":"+Distribution!K1225+Transmission!K1225+Generation!K1225+Retail!K1225+Misc!K1225","v":-42495128.795994103},{"$f":"+Distribution!L1225+Transmission!L1225+Generation!L1225+Retail!L1225+Misc!L1225","v":-16384914.038659433},{"$f":"+Distribution!M1225+Transmission!M1225+Generation!M1225+Retail!M1225+Misc!M1225","v":-17227922.683950596},{"$f":"+Distribution!N1225+Transmission!N1225+Generation!N1225+Retail!N1225+Misc!N1225","v":-8575062.0280323196},{"$f":"+Distribution!O1225+Transmission!O1225+Generation!O1225+Retail!O1225+Misc!O1225","v":-1123025.4520595877},{"$f":"+Distribution!P1225+Transmission!P1225+Generation!P1225+Retail!P1225+Misc!P1225","v":0},{"$f":"+Distribution!Q1225+Transmission!Q1225+Generation!Q1225+Retail!Q1225+Misc!Q1225","v":0},{"$f":"ROUND(SUM(I1225:Q1225)-H1225,0)","v":0}]
[1226]
[1227,null,"283","Accum Deferred Income Taxes ",null,{"$f":"IF(Function=\"gen\",\"F104G\",IF(Function=\"TRN\",\"F104T\",IF(Function=\"DIS\",\"F104D\",IF(Function=\"RETAIL\",\"F104R\",IF(Function=\"MISC\",\"F104M\",\"ERR\")))))","v":"F104D"},null,{"$f":"+Distribution!H1227+Transmission!H1227+Generation!H1227+Retail!H1227+Misc!H1227","v":-2868255.2065836303},{"$f":"+Distribution!I1227+Transmission!I1227+Generation!I1227+Retail!I1227+Misc!I1227","v":-1353139.9448927562},{"$f":"+Distribution!J1227+Transmission!J1227+Generation!J1227+Retail!J1227+Misc!J1227","v":-399356.56282336341},{"$f":"+Distribution!K1227+Transmission!K1227+Generation!K1227+Retail!K1227+Misc!K1227","v":-552467.04239496274},{"$f":"+Distribution!L1227+Transmission!L1227+Generation!L1227+Retail!L1227+Misc!L1227","v":-213176.4678511715},{"$f":"+Distribution!M1227+Transmission!M1227+Generation!M1227+Retail!M1227+Misc!M1227","v":-225267.08575929038},{"$f":"+Distribution!N1227+Transmission!N1227+Generation!N1227+Retail!N1227+Misc!N1227","v":-110706.13389775569},{"$f":"+Distribution!O1227+Transmission!O1227+Generation!O1227+Retail!O1227+Misc!O1227","v":-14141.968964329766},{"$f":"+Distribution!P1227+Transmission!P1227+Generation!P1227+Retail!P1227+Misc!P1227","v":0},{"$f":"+Distribution!Q1227+Transmission!Q1227+Generation!Q1227+Retail!Q1227+Misc!Q1227","v":0},{"$f":"ROUND(SUM(I1227:Q1227)-H1227,0)","v":0}]
[1228,null,null,null," Labor",{"$f":"IF(Function=\"gen\",\"F138G\",IF(Function=\"TRN\",\"F138T\",IF(Function=\"DIS\",\"F138D\",IF(Function=\"RETAIL\",\"F138R\",IF(Function=\"MISC\",\"F138M\",\"ERR\")))))","v":"F138D"},null,{"$f":"+Distribution!H1228+Transmission!H1228+Generation!H1228+Retail!H1228+Misc!H1228","v":-21023.22272115224},{"$f":"+Distribution!I1228+Transmission!I1228+Generation!I1228+Retail!I1228+Misc!I1228","v":-11148.765809776098},{"$f":"+Distribution!J1228+Transmission!J1228+Generation!J1228+Retail!J1228+Misc!J1228","v":-2855.7440984481395},{"$f":"+Distribution!K1228+Transmission!K1228+Generation!K1228+Retail!K1228+Misc!K1228","v":-3383.6195642503167},{"$f":"+Distribution!L1228+Transmission!L1228+Generation!L1228+Retail!L1228+Misc!L1228","v":-1300.3679338502429},{"$f":"+Distribution!M1228+Transmission!M1228+Generation!M1228+Retail!M1228+Misc!M1228","v":-1278.1377877568825},{"$f":"+Distribution!N1228+Transmission!N1228+Generation!N1228+Retail!N1228+Misc!N1228","v":-819.50979677709074},{"$f":"+Distribution!O1228+Transmission!O1228+Generation!O1228+Retail!O1228+Misc!O1228","v":-237.07773029347442},{"$f":"+Distribution!P1228+Transmission!P1228+Generation!P1228+Retail!P1228+Misc!P1228","v":0},{"$f":"+Distribution!Q1228+Transmission!Q1228+Generation!Q1228+Retail!Q1228+Misc!Q1228","v":0},{"$f":"ROUND(SUM(I1228:Q1228)-H1228,0)","v":0}]
[1229,null,null,null,"Customer - System","F42",null,{"$f":"+Distribution!H1229+Transmission!H1229+Generation!H1229+Retail!H1229+Misc!H1229","v":0},{"$f":"+Distribution!I1229+Transmission!I1229+Generation!I1229+Retail!I1229+Misc!I1229","v":0},{"$f":"+Distribution!J1229+Transmission!J1229+Generation!J1229+Retail!J1229+Misc!J1229","v":0},{"$f":"+Distribution!K1229+Transmission!K1229+Generation!K1229+Retail!K1229+Misc!K1229","v":0},{"$f":"+Distribution!L1229+Transmission!L1229+Generation!L1229+Retail!L1229+Misc!L1229","v":0},{"$f":"+Distribution!M1229+Transmission!M1229+Generation!M1229+Retail!M1229+Misc!M1229","v":0},{"$f":"+Distribution!N1229+Transmission!N1229+Generation!N1229+Retail!N1229+Misc!N1229","v":0},{"$f":"+Distribution!O1229+Transmission!O1229+Generation!O1229+Retail!O1229+Misc!O1229","v":0},{"$f":"+Distribution!P1229+Transmission!P1229+Generation!P1229+Retail!P1229+Misc!P1229","v":0},{"$f":"+Distribution!Q1229+Transmission!Q1229+Generation!Q1229+Retail!Q1229+Misc!Q1229","v":0},{"$f":"ROUND(SUM(I1229:Q1229)-H1229,0)","v":0}]
[1230,null,null,null,"Total Accum Deferred Income Taxes ",null,null,{"$f":"+Distribution!H1230+Transmission!H1230+Generation!H1230+Retail!H1230+Misc!H1230","v":-2889278.4293047823},{"$f":"+Distribution!I1230+Transmission!I1230+Generation!I1230+Retail!I1230+Misc!I1230","v":-1364288.7107025324},{"$f":"+Distribution!J1230+Transmission!J1230+Generation!J1230+Retail!J1230+Misc!J1230","v":-402212.30692181154},{"$f":"+Distribution!K1230+Transmission!K1230+Generation!K1230+Retail!K1230+Misc!K1230","v":-555850.66195921309},{"$f":"+Distribution!L1230+Transmission!L1230+Generation!L1230+Retail!L1230+Misc!L1230","v":-214476.83578502174},{"$f":"+Distribution!M1230+Transmission!M1230+Generation!M1230+Retail!M1230+Misc!M1230","v":-226545.22354704727},{"$f":"+Distribution!N1230+Transmission!N1230+Generation!N1230+Retail!N1230+Misc!N1230","v":-111525.64369453277},{"$f":"+Distribution!O1230+Transmission!O1230+Generation!O1230+Retail!O1230+Misc!O1230","v":-14379.046694623241},{"$f":"+Distribution!P1230+Transmission!P1230+Generation!P1230+Retail!P1230+Misc!P1230","v":0},{"$f":"+Distribution!Q1230+Transmission!Q1230+Generation!Q1230+Retail!Q1230+Misc!Q1230","v":0},{"$f":"ROUND(SUM(I1230:Q1230)-H1230,0)","v":0}]
[1231]
[1232,null,"255","Accum Investment Tax Credit",null,{"$f":"IF(Function=\"gen\",\"F104G\",IF(Function=\"TRN\",\"F104T\",IF(Function=\"DIS\",\"F104D\",IF(Function=\"RETAIL\",\"F104R\",IF(Function=\"MISC\",\"F104M\",\"ERR\")))))","v":"F104D"},null,{"$f":"+Distribution!H1232+Transmission!H1232+Generation!H1232+Retail!H1232+Misc!H1232","v":-523327.77337234252},{"$f":"+Distribution!I1232+Transmission!I1232+Generation!I1232+Retail!I1232+Misc!I1232","v":-248490.81035597407},{"$f":"+Distribution!J1232+Transmission!J1232+Generation!J1232+Retail!J1232+Misc!J1232","v":-73139.950098601897},{"$f":"+Distribution!K1232+Transmission!K1232+Generation!K1232+Retail!K1232+Misc!K1232","v":-100224.46728291819},{"$f":"+Distribution!L1232+Transmission!L1232+Generation!L1232+Retail!L1232+Misc!L1232","v":-38555.229405997467},{"$f":"+Distribution!M1232+Transmission!M1232+Generation!M1232+Retail!M1232+Misc!M1232","v":-39803.745262313285},{"$f":"+Distribution!N1232+Transmission!N1232+Generation!N1232+Retail!N1232+Misc!N1232","v":-20442.811809800358},{"$f":"+Distribution!O1232+Transmission!O1232+Generation!O1232+Retail!O1232+Misc!O1232","v":-2670.7591567372119},{"$f":"+Distribution!P1232+Transmission!P1232+Generation!P1232+Retail!P1232+Misc!P1232","v":0},{"$f":"+Distribution!Q1232+Transmission!Q1232+Generation!Q1232+Retail!Q1232+Misc!Q1232","v":0},{"$f":"ROUND(SUM(I1232:Q1232)-H1232,0)","v":0}]
[1233,null,"TOTAL RATE BASE DEDUCTIONS",null,null,null,null,{"$f":"+Distribution!H1233+Transmission!H1233+Generation!H1233+Retail!H1233+Misc!H1233","v":-239545862.71268916},{"$f":"+Distribution!I1233+Transmission!I1233+Generation!I1233+Retail!I1233+Misc!I1233","v":-114331797.58628954},{"$f":"+Distribution!J1233+Transmission!J1233+Generation!J1233+Retail!J1233+Misc!J1233","v":-33257181.427772533},{"$f":"+Distribution!K1233+Transmission!K1233+Generation!K1233+Retail!K1233+Misc!K1233","v":-45496182.030473448},{"$f":"+Distribution!L1233+Transmission!L1233+Generation!L1233+Retail!L1233+Misc!L1233","v":-17535502.549271189},{"$f":"+Distribution!M1233+Transmission!M1233+Generation!M1233+Retail!M1233+Misc!M1233","v":-18593162.766419545},{"$f":"+Distribution!N1233+Transmission!N1233+Generation!N1233+Retail!N1233+Misc!N1233","v":-9161700.7744816747},{"$f":"+Distribution!O1233+Transmission!O1233+Generation!O1233+Retail!O1233+Misc!O1233","v":-1170335.5779812301},{"$f":"+Distribution!P1233+Transmission!P1233+Generation!P1233+Retail!P1233+Misc!P1233","v":0},{"$f":"+Distribution!Q1233+Transmission!Q1233+Generation!Q1233+Retail!Q1233+Misc!Q1233","v":0},{"$f":"ROUND(SUM(I1233:Q1233)-H1233,0)","v":0}]
[1234]
[1235,null,null,null,null,null,null,"ACCUMULATED DEPRECIATION"]
[1236,null,null,null,null,null,null,"PRODUCTION PLANT"]
[1237]
[1238,null,"108SP","Steam Prod Accumulated Depr",null,{"$f":"IF(Classification=\"DEMAND\",\"F12\",IF(Classification=\"ENERGY\",\"F30\",\"F10\"))","v":"F10"},null,{"$f":"+Distribution!H1238+Transmission!H1238+Generation!H1238+Retail!H1238+Misc!H1238","v":-15082517.541030556},{"$f":"+Distribution!I1238+Transmission!I1238+Generation!I1238+Retail!I1238+Misc!I1238","v":-6399135.4625110012},{"$f":"+Distribution!J1238+Transmission!J1238+Generation!J1238+Retail!J1238+Misc!J1238","v":-2035398.3914149266},{"$f":"+Distribution!K1238+Transmission!K1238+Generation!K1238+Retail!K1238+Misc!K1238","v":-3224913.0312909684},{"$f":"+Distribution!L1238+Transmission!L1238+Generation!L1238+Retail!L1238+Misc!L1238","v":-1274360.2654030451},{"$f":"+Distribution!M1238+Transmission!M1238+Generation!M1238+Retail!M1238+Misc!M1238","v":-1575587.8261226357},{"$f":"+Distribution!N1238+Transmission!N1238+Generation!N1238+Retail!N1238+Misc!N1238","v":-536938.9085862739},{"$f":"+Distribution!O1238+Transmission!O1238+Generation!O1238+Retail!O1238+Misc!O1238","v":-36183.655701704251},{"$f":"+Distribution!P1238+Transmission!P1238+Generation!P1238+Retail!P1238+Misc!P1238","v":0},{"$f":"+Distribution!Q1238+Transmission!Q1238+Generation!Q1238+Retail!Q1238+Misc!Q1238","v":0},{"$f":"ROUND(SUM(I1238:Q1238)-H1238,0)","v":0}]
[1239,null,null,null,"JBG","F10",null,{"$f":"+Distribution!H1239+Transmission!H1239+Generation!H1239+Retail!H1239+Misc!H1239","v":-112606002.53872354},{"$f":"+Distribution!I1239+Transmission!I1239+Generation!I1239+Retail!I1239+Misc!I1239","v":-47775914.211727411},{"$f":"+Distribution!J1239+Transmission!J1239+Generation!J1239+Retail!J1239+Misc!J1239","v":-15196274.481860965},{"$f":"+Distribution!K1239+Transmission!K1239+Generation!K1239+Retail!K1239+Misc!K1239","v":-24077184.992546048},{"$f":"+Distribution!L1239+Transmission!L1239+Generation!L1239+Retail!L1239+Misc!L1239","v":-9514367.5378360357},{"$f":"+Distribution!M1239+Transmission!M1239+Generation!M1239+Retail!M1239+Misc!M1239","v":-11763331.039774455},{"$f":"+Distribution!N1239+Transmission!N1239+Generation!N1239+Retail!N1239+Misc!N1239","v":-4008783.277653933},{"$f":"+Distribution!O1239+Transmission!O1239+Generation!O1239+Retail!O1239+Misc!O1239","v":-270146.99732469238},{"$f":"+Distribution!P1239+Transmission!P1239+Generation!P1239+Retail!P1239+Misc!P1239","v":0},{"$f":"+Distribution!Q1239+Transmission!Q1239+Generation!Q1239+Retail!Q1239+Misc!Q1239","v":0},{"$f":"ROUND(SUM(I1239:Q1239)-H1239,0)","v":0}]
[1240,null,null,null,"Total Steam Prod Accumulated Depr",null,null,{"$f":"+Distribution!H1240+Transmission!H1240+Generation!H1240+Retail!H1240+Misc!H1240","v":-127688520.0797541},{"$f":"+Distribution!I1240+Transmission!I1240+Generation!I1240+Retail!I1240+Misc!I1240","v":-54175049.674238414},{"$f":"+Distribution!J1240+Transmission!J1240+Generation!J1240+Retail!J1240+Misc!J1240","v":-17231672.873275891},{"$f":"+Distribution!K1240+Transmission!K1240+Generation!K1240+Retail!K1240+Misc!K1240","v":-27302098.023837015},{"$f":"+Distribution!L1240+Transmission!L1240+Generation!L1240+Retail!L1240+Misc!L1240","v":-10788727.803239081},{"$f":"+Distribution!M1240+Transmission!M1240+Generation!M1240+Retail!M1240+Misc!M1240","v":-13338918.865897091},{"$f":"+Distribution!N1240+Transmission!N1240+Generation!N1240+Retail!N1240+Misc!N1240","v":-4545722.1862402074},{"$f":"+Distribution!O1240+Transmission!O1240+Generation!O1240+Retail!O1240+Misc!O1240","v":-306330.65302639664},{"$f":"+Distribution!P1240+Transmission!P1240+Generation!P1240+Retail!P1240+Misc!P1240","v":0},{"$f":"+Distribution!Q1240+Transmission!Q1240+Generation!Q1240+Retail!Q1240+Misc!Q1240","v":0},{"$f":"ROUND(SUM(I1240:Q1240)-H1240,0)","v":0}]
[1241]
[1242,null,"108NP","Nuclear Prod Accumulated Depr",null,{"$f":"IF(Classification=\"DEMAND\",\"F12\",IF(Classification=\"ENERGY\",\"F30\",\"F10\"))","v":"F10"},null,{"$f":"+Distribution!H1242+Transmission!H1242+Generation!H1242+Retail!H1242+Misc!H1242","v":0},{"$f":"+Distribution!I1242+Transmission!I1242+Generation!I1242+Retail!I1242+Misc!I1242","v":0},{"$f":"+Distribution!J1242+Transmission!J1242+Generation!J1242+Retail!J1242+Misc!J1242","v":0},{"$f":"+Distribution!K1242+Transmission!K1242+Generation!K1242+Retail!K1242+Misc!K1242","v":0},{"$f":"+Distribution!L1242+Transmission!L1242+Generation!L1242+Retail!L1242+Misc!L1242","v":0},{"$f":"+Distribution!M1242+Transmission!M1242+Generation!M1242+Retail!M1242+Misc!M1242","v":0},{"$f":"+Distribution!N1242+Transmission!N1242+Generation!N1242+Retail!N1242+Misc!N1242","v":0},{"$f":"+Distribution!O1242+Transmission!O1242+Generation!O1242+Retail!O1242+Misc!O1242","v":0},{"$f":"+Distribution!P1242+Transmission!P1242+Generation!P1242+Retail!P1242+Misc!P1242","v":0},{"$f":"+Distribution!Q1242+Transmission!Q1242+Generation!Q1242+Retail!Q1242+Misc!Q1242","v":0},{"$f":"ROUND(SUM(I1242:Q1242)-H1242,0)","v":0}]
[1243]
[1244,null,"108HP","Hydraulic Prod Accum Depr",null,{"$f":"IF(Classification=\"DEMAND\",\"F12\",IF(Classification=\"ENERGY\",\"F30\",\"F10\"))","v":"F10"},null,{"$f":"+Distribution!H1244+Transmission!H1244+Generation!H1244+Retail!H1244+Misc!H1244","v":-47582292.500684649},{"$f":"+Distribution!I1244+Transmission!I1244+Generation!I1244+Retail!I1244+Misc!I1244","v":-20187978.200613953},{"$f":"+Distribution!J1244+Transmission!J1244+Generation!J1244+Retail!J1244+Misc!J1244","v":-6421270.2788019152},{"$f":"+Distribution!K1244+Transmission!K1244+Generation!K1244+Retail!K1244+Misc!K1244","v":-10173948.39599647},{"$f":"+Distribution!L1244+Transmission!L1244+Generation!L1244+Retail!L1244+Misc!L1244","v":-4020348.9062552494},{"$f":"+Distribution!M1244+Transmission!M1244+Generation!M1244+Retail!M1244+Misc!M1244","v":-4970660.9390067765},{"$f":"+Distribution!N1244+Transmission!N1244+Generation!N1244+Retail!N1244+Misc!N1244","v":-1693933.6641808918},{"$f":"+Distribution!O1244+Transmission!O1244+Generation!O1244+Retail!O1244+Misc!O1244","v":-114152.11582939206},{"$f":"+Distribution!P1244+Transmission!P1244+Generation!P1244+Retail!P1244+Misc!P1244","v":0},{"$f":"+Distribution!Q1244+Transmission!Q1244+Generation!Q1244+Retail!Q1244+Misc!Q1244","v":0},{"$f":"ROUND(SUM(I1244:Q1244)-H1244,0)","v":0}]
[1245]
[1246,null,"108OP","Other Production  - Accum Depr",null,{"$f":"IF(Classification=\"DEMAND\",\"F12\",IF(Classification=\"ENERGY\",\"F30\",\"F10\"))","v":"F10"},null,{"$f":"+Distribution!H1246+Transmission!H1246+Generation!H1246+Retail!H1246+Misc!H1246","v":-59017038.952832878},{"$f":"+Distribution!I1246+Transmission!I1246+Generation!I1246+Retail!I1246+Misc!I1246","v":-25039455.503902663},{"$f":"+Distribution!J1246+Transmission!J1246+Generation!J1246+Retail!J1246+Misc!J1246","v":-7964398.9024965093},{"$f":"+Distribution!K1246+Transmission!K1246+Generation!K1246+Retail!K1246+Misc!K1246","v":-12618902.47894205},{"$f":"+Distribution!L1246+Transmission!L1246+Generation!L1246+Retail!L1246+Misc!L1246","v":-4986499.7152255978},{"$f":"+Distribution!M1246+Transmission!M1246+Generation!M1246+Retail!M1246+Misc!M1246","v":-6165186.1405052477},{"$f":"+Distribution!N1246+Transmission!N1246+Generation!N1246+Retail!N1246+Misc!N1246","v":-2101011.6114317141},{"$f":"+Distribution!O1246+Transmission!O1246+Generation!O1246+Retail!O1246+Misc!O1246","v":-141584.60032909483},{"$f":"+Distribution!P1246+Transmission!P1246+Generation!P1246+Retail!P1246+Misc!P1246","v":0},{"$f":"+Distribution!Q1246+Transmission!Q1246+Generation!Q1246+Retail!Q1246+Misc!Q1246","v":0},{"$f":"ROUND(SUM(I1246:Q1246)-H1246,0)","v":0}]
[1247,null,null,null,"SSGCT","F10",null,{"$f":"+Distribution!H1247+Transmission!H1247+Generation!H1247+Retail!H1247+Misc!H1247","v":0},{"$f":"+Distribution!I1247+Transmission!I1247+Generation!I1247+Retail!I1247+Misc!I1247","v":0},{"$f":"+Distribution!J1247+Transmission!J1247+Generation!J1247+Retail!J1247+Misc!J1247","v":0},{"$f":"+Distribution!K1247+Transmission!K1247+Generation!K1247+Retail!K1247+Misc!K1247","v":0},{"$f":"+Distribution!L1247+Transmission!L1247+Generation!L1247+Retail!L1247+Misc!L1247","v":0},{"$f":"+Distribution!M1247+Transmission!M1247+Generation!M1247+Retail!M1247+Misc!M1247","v":0},{"$f":"+Distribution!N1247+Transmission!N1247+Generation!N1247+Retail!N1247+Misc!N1247","v":0},{"$f":"+Distribution!O1247+Transmission!O1247+Generation!O1247+Retail!O1247+Misc!O1247","v":0},{"$f":"+Distribution!P1247+Transmission!P1247+Generation!P1247+Retail!P1247+Misc!P1247","v":0},{"$f":"+Distribution!Q1247+Transmission!Q1247+Generation!Q1247+Retail!Q1247+Misc!Q1247","v":0},{"$f":"ROUND(SUM(I1247:Q1247)-H1247,0)","v":0}]
[1248,null,null,null,"Total Other Production - Accum Depr",null,null,{"$f":"+Distribution!H1248+Transmission!H1248+Generation!H1248+Retail!H1248+Misc!H1248","v":-59017038.952832878},{"$f":"+Distribution!I1248+Transmission!I1248+Generation!I1248+Retail!I1248+Misc!I1248","v":-25039455.503902663},{"$f":"+Distribution!J1248+Transmission!J1248+Generation!J1248+Retail!J1248+Misc!J1248","v":-7964398.9024965093},{"$f":"+Distribution!K1248+Transmission!K1248+Generation!K1248+Retail!K1248+Misc!K1248","v":-12618902.47894205},{"$f":"+Distribution!L1248+Transmission!L1248+Generation!L1248+Retail!L1248+Misc!L1248","v":-4986499.7152255978},{"$f":"+Distribution!M1248+Transmission!M1248+Generation!M1248+Retail!M1248+Misc!M1248","v":-6165186.1405052477},{"$f":"+Distribution!N1248+Transmission!N1248+Generation!N1248+Retail!N1248+Misc!N1248","v":-2101011.6114317141},{"$f":"+Distribution!O1248+Transmission!O1248+Generation!O1248+Retail!O1248+Misc!O1248","v":-141584.60032909483},{"$f":"+Distribution!P1248+Transmission!P1248+Generation!P1248+Retail!P1248+Misc!P1248","v":0},{"$f":"+Distribution!Q1248+Transmission!Q1248+Generation!Q1248+Retail!Q1248+Misc!Q1248","v":0},{"$f":"ROUND(SUM(I1248:Q1248)-H1248,0)","v":0}]
[1249]
[1250,null,"108EP","Experimental Plant - Accum Depr",null,{"$f":"IF(Classification=\"DEMAND\",\"F12\",IF(Classification=\"ENERGY\",\"F30\",\"F10\"))","v":"F10"},null,{"$f":"+Distribution!H1250+Transmission!H1250+Generation!H1250+Retail!H1250+Misc!H1250","v":0},{"$f":"+Distribution!I1250+Transmission!I1250+Generation!I1250+Retail!I1250+Misc!I1250","v":0},{"$f":"+Distribution!J1250+Transmission!J1250+Generation!J1250+Retail!J1250+Misc!J1250","v":0},{"$f":"+Distribution!K1250+Transmission!K1250+Generation!K1250+Retail!K1250+Misc!K1250","v":0},{"$f":"+Distribution!L1250+Transmission!L1250+Generation!L1250+Retail!L1250+Misc!L1250","v":0},{"$f":"+Distribution!M1250+Transmission!M1250+Generation!M1250+Retail!M1250+Misc!M1250","v":0},{"$f":"+Distribution!N1250+Transmission!N1250+Generation!N1250+Retail!N1250+Misc!N1250","v":0},{"$f":"+Distribution!O1250+Transmission!O1250+Generation!O1250+Retail!O1250+Misc!O1250","v":0},{"$f":"+Distribution!P1250+Transmission!P1250+Generation!P1250+Retail!P1250+Misc!P1250","v":0},{"$f":"+Distribution!Q1250+Transmission!Q1250+Generation!Q1250+Retail!Q1250+Misc!Q1250","v":0},{"$f":"ROUND(SUM(I1250:Q1250)-H1250,0)","v":0}]
[1251]
[1252]
[1253]
[{"$f":"+A1253+1","v":1254},null,"TOTAL PRODUCTION PLANT DEPRECIATION",null,null,null,null,{"$f":"+Distribution!H1254+Transmission!H1254+Generation!H1254+Retail!H1254+Misc!H1254","v":-234287851.53327161},{"$f":"+Distribution!I1254+Transmission!I1254+Generation!I1254+Retail!I1254+Misc!I1254","v":-99402483.378755018},{"$f":"+Distribution!J1254+Transmission!J1254+Generation!J1254+Retail!J1254+Misc!J1254","v":-31617342.054574315},{"$f":"+Distribution!K1254+Transmission!K1254+Generation!K1254+Retail!K1254+Misc!K1254","v":-50094948.898775533},{"$f":"+Distribution!L1254+Transmission!L1254+Generation!L1254+Retail!L1254+Misc!L1254","v":-19795576.42471993},{"$f":"+Distribution!M1254+Transmission!M1254+Generation!M1254+Retail!M1254+Misc!M1254","v":-24474765.945409115},{"$f":"+Distribution!N1254+Transmission!N1254+Generation!N1254+Retail!N1254+Misc!N1254","v":-8340667.4618528131},{"$f":"+Distribution!O1254+Transmission!O1254+Generation!O1254+Retail!O1254+Misc!O1254","v":-562067.36918488354},{"$f":"+Distribution!P1254+Transmission!P1254+Generation!P1254+Retail!P1254+Misc!P1254","v":0},{"$f":"+Distribution!Q1254+Transmission!Q1254+Generation!Q1254+Retail!Q1254+Misc!Q1254","v":0},{"$f":"ROUND(SUM(I1254:Q1254)-H1254,0)","v":0}]
[1255]
[1256]
[1257,null,null,null,null,null,null,"TRANSMISSION PLANT"]
[1258]
[1259,null,"108TP","Transmission Plant Accum Depr",null,"F106",null,{"$f":"+Distribution!H1259+Transmission!H1259+Generation!H1259+Retail!H1259+Misc!H1259","v":-108702685.72365399},{"$f":"+Distribution!I1259+Transmission!I1259+Generation!I1259+Retail!I1259+Misc!I1259","v":-46119834.383888528},{"$f":"+Distribution!J1259+Transmission!J1259+Generation!J1259+Retail!J1259+Misc!J1259","v":-14669518.604073174},{"$f":"+Distribution!K1259+Transmission!K1259+Generation!K1259+Retail!K1259+Misc!K1259","v":-23242585.780051794},{"$f":"+Distribution!L1259+Transmission!L1259+Generation!L1259+Retail!L1259+Misc!L1259","v":-9184566.3730853721},{"$f":"+Distribution!M1259+Transmission!M1259+Generation!M1259+Retail!M1259+Misc!M1259","v":-11355572.955715029},{"$f":"+Distribution!N1259+Transmission!N1259+Generation!N1259+Retail!N1259+Misc!N1259","v":-3869824.8667090521},{"$f":"+Distribution!O1259+Transmission!O1259+Generation!O1259+Retail!O1259+Misc!O1259","v":-260782.76013107211},{"$f":"+Distribution!P1259+Transmission!P1259+Generation!P1259+Retail!P1259+Misc!P1259","v":0},{"$f":"+Distribution!Q1259+Transmission!Q1259+Generation!Q1259+Retail!Q1259+Misc!Q1259","v":0},{"$f":"ROUND(SUM(I1259:Q1259)-H1259,0)","v":0}]
[1260]
[1261]
[1262,null,null,null,null,null,null,"DISTRIBUTION PLANT"]
[1263]
[1264,null,"108360","Land and Land Rights",null,"F118",null,{"$f":"+Distribution!H1264+Transmission!H1264+Generation!H1264+Retail!H1264+Misc!H1264","v":-136215.35999999999},{"$f":"+Distribution!I1264+Transmission!I1264+Generation!I1264+Retail!I1264+Misc!I1264","v":-68964.481306565445},{"$f":"+Distribution!J1264+Transmission!J1264+Generation!J1264+Retail!J1264+Misc!J1264","v":-18851.986860154884},{"$f":"+Distribution!K1264+Transmission!K1264+Generation!K1264+Retail!K1264+Misc!K1264","v":-27650.877011196048},{"$f":"+Distribution!L1264+Transmission!L1264+Generation!L1264+Retail!L1264+Misc!L1264","v":-10574.310449739814},{"$f":"+Distribution!M1264+Transmission!M1264+Generation!M1264+Retail!M1264+Misc!M1264","v":0},{"$f":"+Distribution!N1264+Transmission!N1264+Generation!N1264+Retail!N1264+Misc!N1264","v":-9650.1952548712179},{"$f":"+Distribution!O1264+Transmission!O1264+Generation!O1264+Retail!O1264+Misc!O1264","v":-523.50911747257942},{"$f":"+Distribution!P1264+Transmission!P1264+Generation!P1264+Retail!P1264+Misc!P1264","v":0},{"$f":"+Distribution!Q1264+Transmission!Q1264+Generation!Q1264+Retail!Q1264+Misc!Q1264","v":0},{"$f":"ROUND(SUM(I1264:Q1264)-H1264,0)","v":0}]
[1265]
[1266,null,"108361","Structures and Improvements",null,"F119",null,{"$f":"+Distribution!H1266+Transmission!H1266+Generation!H1266+Retail!H1266+Misc!H1266","v":-639538.59},{"$f":"+Distribution!I1266+Transmission!I1266+Generation!I1266+Retail!I1266+Misc!I1266","v":-301873.74841583881},{"$f":"+Distribution!J1266+Transmission!J1266+Generation!J1266+Retail!J1266+Misc!J1266","v":-82519.578640248787},{"$f":"+Distribution!K1266+Transmission!K1266+Generation!K1266+Retail!K1266+Misc!K1266","v":-121034.389474346},{"$f":"+Distribution!L1266+Transmission!L1266+Generation!L1266+Retail!L1266+Misc!L1266","v":-46286.242887639062},{"$f":"+Distribution!M1266+Transmission!M1266+Generation!M1266+Retail!M1266+Misc!M1266","v":-43291.934678628277},{"$f":"+Distribution!N1266+Transmission!N1266+Generation!N1266+Retail!N1266+Misc!N1266","v":-42241.17341770514},{"$f":"+Distribution!O1266+Transmission!O1266+Generation!O1266+Retail!O1266+Misc!O1266","v":-2291.5224855939055},{"$f":"+Distribution!P1266+Transmission!P1266+Generation!P1266+Retail!P1266+Misc!P1266","v":0},{"$f":"+Distribution!Q1266+Transmission!Q1266+Generation!Q1266+Retail!Q1266+Misc!Q1266","v":0},{"$f":"ROUND(SUM(I1266:Q1266)-H1266,0)","v":0}]
[1267]
[1268,null,"108362","Station Equipment",null,"F120",null,{"$f":"+Distribution!H1268+Transmission!H1268+Generation!H1268+Retail!H1268+Misc!H1268","v":-15590131.540000001},{"$f":"+Distribution!I1268+Transmission!I1268+Generation!I1268+Retail!I1268+Misc!I1268","v":-7476752.752431416},{"$f":"+Distribution!J1268+Transmission!J1268+Generation!J1268+Retail!J1268+Misc!J1268","v":-2043829.5478348685},{"$f":"+Distribution!K1268+Transmission!K1268+Generation!K1268+Retail!K1268+Misc!K1268","v":-2997757.2060840107},{"$f":"+Distribution!L1268+Transmission!L1268+Generation!L1268+Retail!L1268+Misc!L1268","v":-1146409.039295272},{"$f":"+Distribution!M1268+Transmission!M1268+Generation!M1268+Retail!M1268+Misc!M1268","v":-822405.48002774292},{"$f":"+Distribution!N1268+Transmission!N1268+Generation!N1268+Retail!N1268+Misc!N1268","v":-1046221.5123843768},{"$f":"+Distribution!O1268+Transmission!O1268+Generation!O1268+Retail!O1268+Misc!O1268","v":-56756.001942313189},{"$f":"+Distribution!P1268+Transmission!P1268+Generation!P1268+Retail!P1268+Misc!P1268","v":0},{"$f":"+Distribution!Q1268+Transmission!Q1268+Generation!Q1268+Retail!Q1268+Misc!Q1268","v":0},{"$f":"ROUND(SUM(I1268:Q1268)-H1268,0)","v":0}]
[1269]
[1270]
[1271,null,null,null,null,null,null,"DISTRIBUTION PLANT (cont'd)"]
[1272,null,"A",null,"B",null,null,"D","E","F","G","H","I","J","K"]
[1273,null,null,null,null,null,null,{"$f":"'Hot Sheet'!$H$10","v":"Washington"},null,{"$f":"'Hot Sheet'!$J$10","v":"Small General"},{"$f":"'Hot Sheet'!$K$10","v":"Large General"},{"$f":"'Hot Sheet'!$L$10","v":"Large General"},{"$f":"'Hot Sheet'!$M$10","v":"Large General"},{"$f":"'Hot Sheet'!$N$10","v":"Agricultural"},{"$f":"'Hot Sheet'!$O$10","v":"Street & Area"}]
[1274,null,"FERC",null,null,null,null,{"$f":"'Hot Sheet'!$H$11","v":"Jurisdiction"},{"$f":"'Hot Sheet'!$I$11","v":"Residential"},{"$f":"'Hot Sheet'!$J$11","v":"Service"},{"$f":"'Hot Sheet'!$K$11","v":"Service <1,000 kW"},{"$f":"'Hot Sheet'!$L$11","v":"Service >1,000 kW"},{"$f":"'Hot Sheet'!$M$11","v":"Dedicated Facilities"},{"$f":"'Hot Sheet'!$N$11","v":"Pumping"},{"$f":"'Hot Sheet'!$O$11","v":"Lighting"}]
[1275,null,"ACCT",null,"DESCRIPTION ",null,null,{"$f":"'Hot Sheet'!$H$12","v":"Normalized"},{"$f":"'Hot Sheet'!$I$12","v":"Schedule 16"},{"$f":"'Hot Sheet'!$J$12","v":"Schedule 24"},{"$f":"'Hot Sheet'!$K$12","v":"Schedule 36"},{"$f":"'Hot Sheet'!$L$12","v":"Schedule 48T"},{"$f":"'Hot Sheet'!$M$12","v":"Schedule 48T"},{"$f":"'Hot Sheet'!$N$12","v":"Schedule 40"},{"$f":"'Hot Sheet'!$O$12","v":"Sch. 15,51-54,57"}]
[1276]
[1277,null,"108364","Poles, Towers & Fixtures",null,"F121",null,{"$f":"+Distribution!H1277+Transmission!H1277+Generation!H1277+Retail!H1277+Misc!H1277","v":-49435316.059105419},{"$f":"+Distribution!I1277+Transmission!I1277+Generation!I1277+Retail!I1277+Misc!I1277","v":-25395451.212622456},{"$f":"+Distribution!J1277+Transmission!J1277+Generation!J1277+Retail!J1277+Misc!J1277","v":-6898155.5588530609},{"$f":"+Distribution!K1277+Transmission!K1277+Generation!K1277+Retail!K1277+Misc!K1277","v":-9793267.5175016038},{"$f":"+Distribution!L1277+Transmission!L1277+Generation!L1277+Retail!L1277+Misc!L1277","v":-3745163.3452886031},{"$f":"+Distribution!M1277+Transmission!M1277+Generation!M1277+Retail!M1277+Misc!M1277","v":0},{"$f":"+Distribution!N1277+Transmission!N1277+Generation!N1277+Retail!N1277+Misc!N1277","v":-3417864.2394891074},{"$f":"+Distribution!O1277+Transmission!O1277+Generation!O1277+Retail!O1277+Misc!O1277","v":-185414.18535058538},{"$f":"+Distribution!P1277+Transmission!P1277+Generation!P1277+Retail!P1277+Misc!P1277","v":0},{"$f":"+Distribution!Q1277+Transmission!Q1277+Generation!Q1277+Retail!Q1277+Misc!Q1277","v":0},{"$f":"ROUND(SUM(I1277:Q1277)-H1277,0)","v":0}]
[1278]
[1279,null,"108365","Overhead Conductors",null,"F122",null,{"$f":"+Distribution!H1279+Transmission!H1279+Generation!H1279+Retail!H1279+Misc!H1279","v":-29234035.600000001},{"$f":"+Distribution!I1279+Transmission!I1279+Generation!I1279+Retail!I1279+Misc!I1279","v":-18630271.255910628},{"$f":"+Distribution!J1279+Transmission!J1279+Generation!J1279+Retail!J1279+Misc!J1279","v":-4634554.9859458879},{"$f":"+Distribution!K1279+Transmission!K1279+Generation!K1279+Retail!K1279+Misc!K1279","v":-3410282.0863062185},{"$f":"+Distribution!L1279+Transmission!L1279+Generation!L1279+Retail!L1279+Misc!L1279","v":-1304167.7299127553},{"$f":"+Distribution!M1279+Transmission!M1279+Generation!M1279+Retail!M1279+Misc!M1279","v":0},{"$f":"+Distribution!N1279+Transmission!N1279+Generation!N1279+Retail!N1279+Misc!N1279","v":-1190193.2800800181},{"$f":"+Distribution!O1279+Transmission!O1279+Generation!O1279+Retail!O1279+Misc!O1279","v":-64566.261844491535},{"$f":"+Distribution!P1279+Transmission!P1279+Generation!P1279+Retail!P1279+Misc!P1279","v":0},{"$f":"+Distribution!Q1279+Transmission!Q1279+Generation!Q1279+Retail!Q1279+Misc!Q1279","v":0},{"$f":"ROUND(SUM(I1279:Q1279)-H1279,0)","v":0}]
[1280]
[1281,null,"108366","Underground Conduit",null,"F123",null,{"$f":"+Distribution!H1281+Transmission!H1281+Generation!H1281+Retail!H1281+Misc!H1281","v":-10945781.390000001},{"$f":"+Distribution!I1281+Transmission!I1281+Generation!I1281+Retail!I1281+Misc!I1281","v":-7214304.2459976729},{"$f":"+Distribution!J1281+Transmission!J1281+Generation!J1281+Retail!J1281+Misc!J1281","v":-1771967.9320027109},{"$f":"+Distribution!K1281+Transmission!K1281+Generation!K1281+Retail!K1281+Misc!K1281","v":-1119491.5042672683},{"$f":"+Distribution!L1281+Transmission!L1281+Generation!L1281+Retail!L1281+Misc!L1281","v":-428118.45378991362},{"$f":"+Distribution!M1281+Transmission!M1281+Generation!M1281+Retail!M1281+Misc!M1281","v":0},{"$f":"+Distribution!N1281+Transmission!N1281+Generation!N1281+Retail!N1281+Misc!N1281","v":-390704.1211739612},{"$f":"+Distribution!O1281+Transmission!O1281+Generation!O1281+Retail!O1281+Misc!O1281","v":-21195.132768472638},{"$f":"+Distribution!P1281+Transmission!P1281+Generation!P1281+Retail!P1281+Misc!P1281","v":0},{"$f":"+Distribution!Q1281+Transmission!Q1281+Generation!Q1281+Retail!Q1281+Misc!Q1281","v":0},{"$f":"ROUND(SUM(I1281:Q1281)-H1281,0)","v":0}]
[1282]
[1283,null,"108367","Underground Conductors ",null,"F124",null,{"$f":"+Distribution!H1283+Transmission!H1283+Generation!H1283+Retail!H1283+Misc!H1283","v":-9516059.6799999997},{"$f":"+Distribution!I1283+Transmission!I1283+Generation!I1283+Retail!I1283+Misc!I1283","v":-6501494.4437793773},{"$f":"+Distribution!J1283+Transmission!J1283+Generation!J1283+Retail!J1283+Misc!J1283","v":-1575794.3271017412},{"$f":"+Distribution!K1283+Transmission!K1283+Generation!K1283+Retail!K1283+Misc!K1283","v":-821987.36269365309},{"$f":"+Distribution!L1283+Transmission!L1283+Generation!L1283+Retail!L1283+Misc!L1283","v":-314346.25221348793},{"$f":"+Distribution!M1283+Transmission!M1283+Generation!M1283+Retail!M1283+Misc!M1283","v":0},{"$f":"+Distribution!N1283+Transmission!N1283+Generation!N1283+Retail!N1283+Misc!N1283","v":-286874.75423721777},{"$f":"+Distribution!O1283+Transmission!O1283+Generation!O1283+Retail!O1283+Misc!O1283","v":-15562.539974523361},{"$f":"+Distribution!P1283+Transmission!P1283+Generation!P1283+Retail!P1283+Misc!P1283","v":0},{"$f":"+Distribution!Q1283+Transmission!Q1283+Generation!Q1283+Retail!Q1283+Misc!Q1283","v":0},{"$f":"ROUND(SUM(I1283:Q1283)-H1283,0)","v":0}]
[1284]
[1285,null,"108368","Line Transformers",null,"F125",null,{"$f":"+Distribution!H1285+Transmission!H1285+Generation!H1285+Retail!H1285+Misc!H1285","v":-44447504.850000001},{"$f":"+Distribution!I1285+Transmission!I1285+Generation!I1285+Retail!I1285+Misc!I1285","v":-26826828.197277963},{"$f":"+Distribution!J1285+Transmission!J1285+Generation!J1285+Retail!J1285+Misc!J1285","v":-6119312.6268208297},{"$f":"+Distribution!K1285+Transmission!K1285+Generation!K1285+Retail!K1285+Misc!K1285","v":-6899596.5241521541},{"$f":"+Distribution!L1285+Transmission!L1285+Generation!L1285+Retail!L1285+Misc!L1285","v":-2033481.8388863502},{"$f":"+Distribution!M1285+Transmission!M1285+Generation!M1285+Retail!M1285+Misc!M1285","v":0},{"$f":"+Distribution!N1285+Transmission!N1285+Generation!N1285+Retail!N1285+Misc!N1285","v":-2472433.0388566586},{"$f":"+Distribution!O1285+Transmission!O1285+Generation!O1285+Retail!O1285+Misc!O1285","v":-95852.624006052676},{"$f":"+Distribution!P1285+Transmission!P1285+Generation!P1285+Retail!P1285+Misc!P1285","v":0},{"$f":"+Distribution!Q1285+Transmission!Q1285+Generation!Q1285+Retail!Q1285+Misc!Q1285","v":0},{"$f":"ROUND(SUM(I1285:Q1285)-H1285,0)","v":0}]
[1286]
[1287,null,"108369","Services",null,"F126",null,{"$f":"+Distribution!H1287+Transmission!H1287+Generation!H1287+Retail!H1287+Misc!H1287","v":-18439235.329999998},{"$f":"+Distribution!I1287+Transmission!I1287+Generation!I1287+Retail!I1287+Misc!I1287","v":-13583740.711357316},{"$f":"+Distribution!J1287+Transmission!J1287+Generation!J1287+Retail!J1287+Misc!J1287","v":-3711657.0092984312},{"$f":"+Distribution!K1287+Transmission!K1287+Generation!K1287+Retail!K1287+Misc!K1287","v":-926317.20145952329},{"$f":"+Distribution!L1287+Transmission!L1287+Generation!L1287+Retail!L1287+Misc!L1287","v":-217520.40788472837},{"$f":"+Distribution!M1287+Transmission!M1287+Generation!M1287+Retail!M1287+Misc!M1287","v":0},{"$f":"+Distribution!N1287+Transmission!N1287+Generation!N1287+Retail!N1287+Misc!N1287","v":0},{"$f":"+Distribution!O1287+Transmission!O1287+Generation!O1287+Retail!O1287+Misc!O1287","v":0},{"$f":"+Distribution!P1287+Transmission!P1287+Generation!P1287+Retail!P1287+Misc!P1287","v":0},{"$f":"+Distribution!Q1287+Transmission!Q1287+Generation!Q1287+Retail!Q1287+Misc!Q1287","v":0},{"$f":"ROUND(SUM(I1287:Q1287)-H1287,0)","v":0}]
[1288]
[1289,null,"108370","Meters",null,"F127",null,{"$f":"+Distribution!H1289+Transmission!H1289+Generation!H1289+Retail!H1289+Misc!H1289","v":-1929851.31},{"$f":"+Distribution!I1289+Transmission!I1289+Generation!I1289+Retail!I1289+Misc!I1289","v":-1312544.4881367306},{"$f":"+Distribution!J1289+Transmission!J1289+Generation!J1289+Retail!J1289+Misc!J1289","v":-313290.31459276972},{"$f":"+Distribution!K1289+Transmission!K1289+Generation!K1289+Retail!K1289+Misc!K1289","v":-147460.07141379116},{"$f":"+Distribution!L1289+Transmission!L1289+Generation!L1289+Retail!L1289+Misc!L1289","v":-23706.605538708092},{"$f":"+Distribution!M1289+Transmission!M1289+Generation!M1289+Retail!M1289+Misc!M1289","v":-18669.781616847711},{"$f":"+Distribution!N1289+Transmission!N1289+Generation!N1289+Retail!N1289+Misc!N1289","v":-114180.04870115273},{"$f":"+Distribution!O1289+Transmission!O1289+Generation!O1289+Retail!O1289+Misc!O1289","v":0},{"$f":"+Distribution!P1289+Transmission!P1289+Generation!P1289+Retail!P1289+Misc!P1289","v":0},{"$f":"+Distribution!Q1289+Transmission!Q1289+Generation!Q1289+Retail!Q1289+Misc!Q1289","v":0},{"$f":"ROUND(SUM(I1289:Q1289)-H1289,0)","v":0}]
[1290]
[1291,null,"108371","Install on Customers' Premises",null,"F128",null,{"$f":"+Distribution!H1291+Transmission!H1291+Generation!H1291+Retail!H1291+Misc!H1291","v":-281485.94},{"$f":"+Distribution!I1291+Transmission!I1291+Generation!I1291+Retail!I1291+Misc!I1291","v":0},{"$f":"+Distribution!J1291+Transmission!J1291+Generation!J1291+Retail!J1291+Misc!J1291","v":0},{"$f":"+Distribution!K1291+Transmission!K1291+Generation!K1291+Retail!K1291+Misc!K1291","v":0},{"$f":"+Distribution!L1291+Transmission!L1291+Generation!L1291+Retail!L1291+Misc!L1291","v":0},{"$f":"+Distribution!M1291+Transmission!M1291+Generation!M1291+Retail!M1291+Misc!M1291","v":0},{"$f":"+Distribution!N1291+Transmission!N1291+Generation!N1291+Retail!N1291+Misc!N1291","v":0},{"$f":"+Distribution!O1291+Transmission!O1291+Generation!O1291+Retail!O1291+Misc!O1291","v":-281485.94},{"$f":"+Distribution!P1291+Transmission!P1291+Generation!P1291+Retail!P1291+Misc!P1291","v":0},{"$f":"+Distribution!Q1291+Transmission!Q1291+Generation!Q1291+Retail!Q1291+Misc!Q1291","v":0},{"$f":"ROUND(SUM(I1291:Q1291)-H1291,0)","v":0}]
[1292]
[1293,null,"108372","Leased Property",null,"F129",null,{"$f":"+Distribution!H1293+Transmission!H1293+Generation!H1293+Retail!H1293+Misc!H1293","v":0},{"$f":"+Distribution!I1293+Transmission!I1293+Generation!I1293+Retail!I1293+Misc!I1293","v":0},{"$f":"+Distribution!J1293+Transmission!J1293+Generation!J1293+Retail!J1293+Misc!J1293","v":0},{"$f":"+Distribution!K1293+Transmission!K1293+Generation!K1293+Retail!K1293+Misc!K1293","v":0},{"$f":"+Distribution!L1293+Transmission!L1293+Generation!L1293+Retail!L1293+Misc!L1293","v":0},{"$f":"+Distribution!M1293+Transmission!M1293+Generation!M1293+Retail!M1293+Misc!M1293","v":0},{"$f":"+Distribution!N1293+Transmission!N1293+Generation!N1293+Retail!N1293+Misc!N1293","v":0},{"$f":"+Distribution!O1293+Transmission!O1293+Generation!O1293+Retail!O1293+Misc!O1293","v":0},{"$f":"+Distribution!P1293+Transmission!P1293+Generation!P1293+Retail!P1293+Misc!P1293","v":0},{"$f":"+Distribution!Q1293+Transmission!Q1293+Generation!Q1293+Retail!Q1293+Misc!Q1293","v":0},{"$f":"ROUND(SUM(I1293:Q1293)-H1293,0)","v":0}]
[1294]
[1295,null,"108373","Street Lights",null,"F130",null,{"$f":"+Distribution!H1295+Transmission!H1295+Generation!H1295+Retail!H1295+Misc!H1295","v":-2201466.2200000002},{"$f":"+Distribution!I1295+Transmission!I1295+Generation!I1295+Retail!I1295+Misc!I1295","v":0},{"$f":"+Distribution!J1295+Transmission!J1295+Generation!J1295+Retail!J1295+Misc!J1295","v":0},{"$f":"+Distribution!K1295+Transmission!K1295+Generation!K1295+Retail!K1295+Misc!K1295","v":0},{"$f":"+Distribution!L1295+Transmission!L1295+Generation!L1295+Retail!L1295+Misc!L1295","v":0},{"$f":"+Distribution!M1295+Transmission!M1295+Generation!M1295+Retail!M1295+Misc!M1295","v":0},{"$f":"+Distribution!N1295+Transmission!N1295+Generation!N1295+Retail!N1295+Misc!N1295","v":0},{"$f":"+Distribution!O1295+Transmission!O1295+Generation!O1295+Retail!O1295+Misc!O1295","v":-2201466.2200000002},{"$f":"+Distribution!P1295+Transmission!P1295+Generation!P1295+Retail!P1295+Misc!P1295","v":0},{"$f":"+Distribution!Q1295+Transmission!Q1295+Generation!Q1295+Retail!Q1295+Misc!Q1295","v":0},{"$f":"ROUND(SUM(I1295:Q1295)-H1295,0)","v":0}]
[1296]
[1297,null,"108D00","Unclassified Dist Plant - Acct 300",null,"F121",null,{"$f":"+Distribution!H1297+Transmission!H1297+Generation!H1297+Retail!H1297+Misc!H1297","v":0},{"$f":"+Distribution!I1297+Transmission!I1297+Generation!I1297+Retail!I1297+Misc!I1297","v":0},{"$f":"+Distribution!J1297+Transmission!J1297+Generation!J1297+Retail!J1297+Misc!J1297","v":0},{"$f":"+Distribution!K1297+Transmission!K1297+Generation!K1297+Retail!K1297+Misc!K1297","v":0},{"$f":"+Distribution!L1297+Transmission!L1297+Generation!L1297+Retail!L1297+Misc!L1297","v":0},{"$f":"+Distribution!M1297+Transmission!M1297+Generation!M1297+Retail!M1297+Misc!M1297","v":0},{"$f":"+Distribution!N1297+Transmission!N1297+Generation!N1297+Retail!N1297+Misc!N1297","v":0},{"$f":"+Distribution!O1297+Transmission!O1297+Generation!O1297+Retail!O1297+Misc!O1297","v":0},{"$f":"+Distribution!P1297+Transmission!P1297+Generation!P1297+Retail!P1297+Misc!P1297","v":0},{"$f":"+Distribution!Q1297+Transmission!Q1297+Generation!Q1297+Retail!Q1297+Misc!Q1297","v":0},{"$f":"ROUND(SUM(I1297:Q1297)-H1297,0)","v":0}]
[1298]
[1299,null,"108DS","Unclassified Dist Sub - Acct 300",null,"F120",null,{"$f":"+Distribution!H1299+Transmission!H1299+Generation!H1299+Retail!H1299+Misc!H1299","v":0},{"$f":"+Distribution!I1299+Transmission!I1299+Generation!I1299+Retail!I1299+Misc!I1299","v":0},{"$f":"+Distribution!J1299+Transmission!J1299+Generation!J1299+Retail!J1299+Misc!J1299","v":0},{"$f":"+Distribution!K1299+Transmission!K1299+Generation!K1299+Retail!K1299+Misc!K1299","v":0},{"$f":"+Distribution!L1299+Transmission!L1299+Generation!L1299+Retail!L1299+Misc!L1299","v":0},{"$f":"+Distribution!M1299+Transmission!M1299+Generation!M1299+Retail!M1299+Misc!M1299","v":0},{"$f":"+Distribution!N1299+Transmission!N1299+Generation!N1299+Retail!N1299+Misc!N1299","v":0},{"$f":"+Distribution!O1299+Transmission!O1299+Generation!O1299+Retail!O1299+Misc!O1299","v":0},{"$f":"+Distribution!P1299+Transmission!P1299+Generation!P1299+Retail!P1299+Misc!P1299","v":0},{"$f":"+Distribution!Q1299+Transmission!Q1299+Generation!Q1299+Retail!Q1299+Misc!Q1299","v":0},{"$f":"ROUND(SUM(I1299:Q1299)-H1299,0)","v":0}]
[1300]
[1301,null,"108DP","Unclassified Dist Sub  - Acct 300",null,{"$f":"IF(Function=\"gen\",\"F102G\",IF(Function=\"TRN\",\"F102T\",IF(Function=\"DIS\",\"F102D\",IF(Function=\"RETAIL\",\"F102R\",IF(Function=\"MISC\",\"F102M\",\"ERR\")))))","v":"F102D"},null,{"$f":"+Distribution!H1301+Transmission!H1301+Generation!H1301+Retail!H1301+Misc!H1301","v":100415},{"$f":"+Distribution!I1301+Transmission!I1301+Generation!I1301+Retail!I1301+Misc!I1301","v":59448.868408613103},{"$f":"+Distribution!J1301+Transmission!J1301+Generation!J1301+Retail!J1301+Misc!J1301","v":15077.573176988612},{"$f":"+Distribution!K1301+Transmission!K1301+Generation!K1301+Retail!K1301+Misc!K1301","v":14108.904254772766},{"$f":"+Distribution!L1301+Transmission!L1301+Generation!L1301+Retail!L1301+Misc!L1301","v":4923.4907572024113},{"$f":"+Distribution!M1301+Transmission!M1301+Generation!M1301+Retail!M1301+Misc!M1301","v":682.56472645475822},{"$f":"+Distribution!N1301+Transmission!N1301+Generation!N1301+Retail!N1301+Misc!N1301","v":4825.9922963721228},{"$f":"+Distribution!O1301+Transmission!O1301+Generation!O1301+Retail!O1301+Misc!O1301","v":1347.6063795962132},{"$f":"+Distribution!P1301+Transmission!P1301+Generation!P1301+Retail!P1301+Misc!P1301","v":0},{"$f":"+Distribution!Q1301+Transmission!Q1301+Generation!Q1301+Retail!Q1301+Misc!Q1301","v":0},{"$f":"ROUND(SUM(I1301:Q1301)-H1301,0)","v":0}]
[1302]
[1303]
[{"$f":"+A1303+1","v":1304},null,"TOTAL DISTRIBUTION PLANT DEPR",null,null,null,null,{"$f":"+Distribution!H1304+Transmission!H1304+Generation!H1304+Retail!H1304+Misc!H1304","v":-182696206.86910543},{"$f":"+Distribution!I1304+Transmission!I1304+Generation!I1304+Retail!I1304+Misc!I1304","v":-107252776.66882733},{"$f":"+Distribution!J1304+Transmission!J1304+Generation!J1304+Retail!J1304+Misc!J1304","v":-27154856.29477372},{"$f":"+Distribution!K1304+Transmission!K1304+Generation!K1304+Retail!K1304+Misc!K1304","v":-26250735.836108994},{"$f":"+Distribution!L1304+Transmission!L1304+Generation!L1304+Retail!L1304+Misc!L1304","v":-9264850.7353899945},{"$f":"+Distribution!M1304+Transmission!M1304+Generation!M1304+Retail!M1304+Misc!M1304","v":-883684.63159676408},{"$f":"+Distribution!N1304+Transmission!N1304+Generation!N1304+Retail!N1304+Misc!N1304","v":-8965536.3712986968},{"$f":"+Distribution!O1304+Transmission!O1304+Generation!O1304+Retail!O1304+Misc!O1304","v":-2923766.3311099093},{"$f":"+Distribution!P1304+Transmission!P1304+Generation!P1304+Retail!P1304+Misc!P1304","v":0},{"$f":"+Distribution!Q1304+Transmission!Q1304+Generation!Q1304+Retail!Q1304+Misc!Q1304","v":0},{"$f":"ROUND(SUM(I1304:Q1304)-H1304,0)","v":0}]
[1305]
[1306,null,null,null,null,null,null,"GENERAL PLANT"]
[1307,null,"108GP","General Plant Accumulated Depr"]
[1308,null,null,null,"Situs",{"$f":"IF(Function=\"gen\",\"F107G\",IF(Function=\"TRN\",\"F107T\",IF(Function=\"DIS\",\"F107D\",IF(Function=\"RETAIL\",\"F107R\",IF(Function=\"MISC\",\"F107M\",\"ERR\")))))","v":"F107D"},null,{"$f":"+Distribution!H1308+Transmission!H1308+Generation!H1308+Retail!H1308+Misc!H1308","v":-18470786.402896211},{"$f":"+Distribution!I1308+Transmission!I1308+Generation!I1308+Retail!I1308+Misc!I1308","v":-10148209.894951202},{"$f":"+Distribution!J1308+Transmission!J1308+Generation!J1308+Retail!J1308+Misc!J1308","v":-2702112.8563893596},{"$f":"+Distribution!K1308+Transmission!K1308+Generation!K1308+Retail!K1308+Misc!K1308","v":-2939221.0387721341},{"$f":"+Distribution!L1308+Transmission!L1308+Generation!L1308+Retail!L1308+Misc!L1308","v":-1072025.7188420817},{"$f":"+Distribution!M1308+Transmission!M1308+Generation!M1308+Retail!M1308+Misc!M1308","v":-583789.05046165863},{"$f":"+Distribution!N1308+Transmission!N1308+Generation!N1308+Retail!N1308+Misc!N1308","v":-829252.98663237551},{"$f":"+Distribution!O1308+Transmission!O1308+Generation!O1308+Retail!O1308+Misc!O1308","v":-196174.85684740069},{"$f":"+Distribution!P1308+Transmission!P1308+Generation!P1308+Retail!P1308+Misc!P1308","v":0},{"$f":"+Distribution!Q1308+Transmission!Q1308+Generation!Q1308+Retail!Q1308+Misc!Q1308","v":0},{"$f":"ROUND(SUM(I1308:Q1308)-H1308,0)","v":0}]
[1309,null,null,null,"System Generation",{"$f":"IF(Function=\"gen\",\"F105G\",IF(Function=\"TRN\",\"F105T\",IF(Function=\"DIS\",\"F105D\",IF(Function=\"RETAIL\",\"F105R\",IF(Function=\"MISC\",\"F105M\",\"ERR\")))))","v":"F105D"},null,{"$f":"+Distribution!H1309+Transmission!H1309+Generation!H1309+Retail!H1309+Misc!H1309","v":-4647283.1705223843},{"$f":"+Distribution!I1309+Transmission!I1309+Generation!I1309+Retail!I1309+Misc!I1309","v":-1971726.1697139968},{"$f":"+Distribution!J1309+Transmission!J1309+Generation!J1309+Retail!J1309+Misc!J1309","v":-627154.76139831508},{"$f":"+Distribution!K1309+Transmission!K1309+Generation!K1309+Retail!K1309+Misc!K1309","v":-993672.57594402984},{"$f":"+Distribution!L1309+Transmission!L1309+Generation!L1309+Retail!L1309+Misc!L1309","v":-392660.77420290885},{"$f":"+Distribution!M1309+Transmission!M1309+Generation!M1309+Retail!M1309+Misc!M1309","v":-485476.16590534814},{"$f":"+Distribution!N1309+Transmission!N1309+Generation!N1309+Retail!N1309+Misc!N1309","v":-165443.6765402992},{"$f":"+Distribution!O1309+Transmission!O1309+Generation!O1309+Retail!O1309+Misc!O1309","v":-11149.046817486196},{"$f":"+Distribution!P1309+Transmission!P1309+Generation!P1309+Retail!P1309+Misc!P1309","v":0},{"$f":"+Distribution!Q1309+Transmission!Q1309+Generation!Q1309+Retail!Q1309+Misc!Q1309","v":0},0]
[1310,null,null,null,"System Overheads",{"$f":"IF(Function=\"gen\",\"F102G\",IF(Function=\"TRN\",\"F102T\",IF(Function=\"DIS\",\"F102D\",IF(Function=\"RETAIL\",\"F102R\",IF(Function=\"MISC\",\"F102M\",\"ERR\")))))","v":"F102D"},null,{"$f":"+Distribution!H1310+Transmission!H1310+Generation!H1310+Retail!H1310+Misc!H1310","v":-5399790.9718942456},{"$f":"+Distribution!I1310+Transmission!I1310+Generation!I1310+Retail!I1310+Misc!I1310","v":-2557438.4468482481},{"$f":"+Distribution!J1310+Transmission!J1310+Generation!J1310+Retail!J1310+Misc!J1310","v":-752850.73156739096},{"$f":"+Distribution!K1310+Transmission!K1310+Generation!K1310+Retail!K1310+Misc!K1310","v":-1038133.4104910566},{"$f":"+Distribution!L1310+Transmission!L1310+Generation!L1310+Retail!L1310+Misc!L1310","v":-399920.45010054566},{"$f":"+Distribution!M1310+Transmission!M1310+Generation!M1310+Retail!M1310+Misc!M1310","v":-408965.40689871821},{"$f":"+Distribution!N1310+Transmission!N1310+Generation!N1310+Retail!N1310+Misc!N1310","v":-212023.40502076907},{"$f":"+Distribution!O1310+Transmission!O1310+Generation!O1310+Retail!O1310+Misc!O1310","v":-30459.120967518211},{"$f":"+Distribution!P1310+Transmission!P1310+Generation!P1310+Retail!P1310+Misc!P1310","v":0},{"$f":"+Distribution!Q1310+Transmission!Q1310+Generation!Q1310+Retail!Q1310+Misc!Q1310","v":0},0]
[1311,null,null,null,"Customer - System","F42",null,{"$f":"+Distribution!H1311+Transmission!H1311+Generation!H1311+Retail!H1311+Misc!H1311","v":-608529.94482340431},{"$f":"+Distribution!I1311+Transmission!I1311+Generation!I1311+Retail!I1311+Misc!I1311","v":-491003.84818369744},{"$f":"+Distribution!J1311+Transmission!J1311+Generation!J1311+Retail!J1311+Misc!J1311","v":-83395.169512144043},{"$f":"+Distribution!K1311+Transmission!K1311+Generation!K1311+Retail!K1311+Misc!K1311","v":-5064.7327145286272},{"$f":"+Distribution!L1311+Transmission!L1311+Generation!L1311+Retail!L1311+Misc!L1311","v":-1038.7327691921557},{"$f":"+Distribution!M1311+Transmission!M1311+Generation!M1311+Retail!M1311+Misc!M1311","v":-17.936518405794846},{"$f":"+Distribution!N1311+Transmission!N1311+Generation!N1311+Retail!N1311+Misc!N1311","v":-14856.062602027974},{"$f":"+Distribution!O1311+Transmission!O1311+Generation!O1311+Retail!O1311+Misc!O1311","v":-13153.462523408267},{"$f":"+Distribution!P1311+Transmission!P1311+Generation!P1311+Retail!P1311+Misc!P1311","v":0},{"$f":"+Distribution!Q1311+Transmission!Q1311+Generation!Q1311+Retail!Q1311+Misc!Q1311","v":0},0]
[1312,null,null,null,"Energy",{"$f":"IF(Classification=\"DEMAND\",\"F12\",IF(Classification=\"ENERGY\",\"F30\",\"F10\"))","v":"F10"},null,{"$f":"+Distribution!H1312+Transmission!H1312+Generation!H1312+Retail!H1312+Misc!H1312","v":0},{"$f":"+Distribution!I1312+Transmission!I1312+Generation!I1312+Retail!I1312+Misc!I1312","v":0},{"$f":"+Distribution!J1312+Transmission!J1312+Generation!J1312+Retail!J1312+Misc!J1312","v":0},{"$f":"+Distribution!K1312+Transmission!K1312+Generation!K1312+Retail!K1312+Misc!K1312","v":0},{"$f":"+Distribution!L1312+Transmission!L1312+Generation!L1312+Retail!L1312+Misc!L1312","v":0},{"$f":"+Distribution!M1312+Transmission!M1312+Generation!M1312+Retail!M1312+Misc!M1312","v":0},{"$f":"+Distribution!N1312+Transmission!N1312+Generation!N1312+Retail!N1312+Misc!N1312","v":0},{"$f":"+Distribution!O1312+Transmission!O1312+Generation!O1312+Retail!O1312+Misc!O1312","v":0},{"$f":"+Distribution!P1312+Transmission!P1312+Generation!P1312+Retail!P1312+Misc!P1312","v":0},{"$f":"+Distribution!Q1312+Transmission!Q1312+Generation!Q1312+Retail!Q1312+Misc!Q1312","v":0},0]
[1313,null,null,null,"SSGCT",{"$f":"IF(Function=\"gen\",\"F105G\",IF(Function=\"TRN\",\"F105T\",IF(Function=\"DIS\",\"F105D\",IF(Function=\"RETAIL\",\"F105R\",IF(Function=\"MISC\",\"F105M\",\"ERR\")))))","v":"F105D"},null,{"$f":"+Distribution!H1313+Transmission!H1313+Generation!H1313+Retail!H1313+Misc!H1313","v":0},{"$f":"+Distribution!I1313+Transmission!I1313+Generation!I1313+Retail!I1313+Misc!I1313","v":0},{"$f":"+Distribution!J1313+Transmission!J1313+Generation!J1313+Retail!J1313+Misc!J1313","v":0},{"$f":"+Distribution!K1313+Transmission!K1313+Generation!K1313+Retail!K1313+Misc!K1313","v":0},{"$f":"+Distribution!L1313+Transmission!L1313+Generation!L1313+Retail!L1313+Misc!L1313","v":0},{"$f":"+Distribution!M1313+Transmission!M1313+Generation!M1313+Retail!M1313+Misc!M1313","v":0},{"$f":"+Distribution!N1313+Transmission!N1313+Generation!N1313+Retail!N1313+Misc!N1313","v":0},{"$f":"+Distribution!O1313+Transmission!O1313+Generation!O1313+Retail!O1313+Misc!O1313","v":0},{"$f":"+Distribution!P1313+Transmission!P1313+Generation!P1313+Retail!P1313+Misc!P1313","v":0},{"$f":"+Distribution!Q1313+Transmission!Q1313+Generation!Q1313+Retail!Q1313+Misc!Q1313","v":0},0]
[1314,null,null,null,"SSGCH",{"$f":"IF(Function=\"gen\",\"F105G\",IF(Function=\"TRN\",\"F105T\",IF(Function=\"DIS\",\"F105D\",IF(Function=\"RETAIL\",\"F105R\",IF(Function=\"MISC\",\"F105M\",\"ERR\")))))","v":"F105D"},null,{"$f":"+Distribution!H1314+Transmission!H1314+Generation!H1314+Retail!H1314+Misc!H1314","v":0},{"$f":"+Distribution!I1314+Transmission!I1314+Generation!I1314+Retail!I1314+Misc!I1314","v":0},{"$f":"+Distribution!J1314+Transmission!J1314+Generation!J1314+Retail!J1314+Misc!J1314","v":0},{"$f":"+Distribution!K1314+Transmission!K1314+Generation!K1314+Retail!K1314+Misc!K1314","v":0},{"$f":"+Distribution!L1314+Transmission!L1314+Generation!L1314+Retail!L1314+Misc!L1314","v":0},{"$f":"+Distribution!M1314+Transmission!M1314+Generation!M1314+Retail!M1314+Misc!M1314","v":0},{"$f":"+Distribution!N1314+Transmission!N1314+Generation!N1314+Retail!N1314+Misc!N1314","v":0},{"$f":"+Distribution!O1314+Transmission!O1314+Generation!O1314+Retail!O1314+Misc!O1314","v":0},{"$f":"+Distribution!P1314+Transmission!P1314+Generation!P1314+Retail!P1314+Misc!P1314","v":0},{"$f":"+Distribution!Q1314+Transmission!Q1314+Generation!Q1314+Retail!Q1314+Misc!Q1314","v":0},0]
[1315,null,null,"Total General Plant Accumulated Depr",null,null,null,{"$f":"+Distribution!H1315+Transmission!H1315+Generation!H1315+Retail!H1315+Misc!H1315","v":-29126390.490136247},{"$f":"+Distribution!I1315+Transmission!I1315+Generation!I1315+Retail!I1315+Misc!I1315","v":-15168378.359697144},{"$f":"+Distribution!J1315+Transmission!J1315+Generation!J1315+Retail!J1315+Misc!J1315","v":-4165513.5188672096},{"$f":"+Distribution!K1315+Transmission!K1315+Generation!K1315+Retail!K1315+Misc!K1315","v":-4976091.7579217488},{"$f":"+Distribution!L1315+Transmission!L1315+Generation!L1315+Retail!L1315+Misc!L1315","v":-1865645.6759147283},{"$f":"+Distribution!M1315+Transmission!M1315+Generation!M1315+Retail!M1315+Misc!M1315","v":-1478248.5597841309},{"$f":"+Distribution!N1315+Transmission!N1315+Generation!N1315+Retail!N1315+Misc!N1315","v":-1221576.1307954718},{"$f":"+Distribution!O1315+Transmission!O1315+Generation!O1315+Retail!O1315+Misc!O1315","v":-250936.48715581337},{"$f":"+Distribution!P1315+Transmission!P1315+Generation!P1315+Retail!P1315+Misc!P1315","v":0},{"$f":"+Distribution!Q1315+Transmission!Q1315+Generation!Q1315+Retail!Q1315+Misc!Q1315","v":0},0]
[1316]
[1317,null,"108MP","Mining Plant Accumulated Depr.",null,{"$f":"IF(Classification=\"DEMAND\",\"F12\",IF(Classification=\"ENERGY\",\"F30\",\"F10\"))","v":"F10"},null,{"$f":"+Distribution!H1317+Transmission!H1317+Generation!H1317+Retail!H1317+Misc!H1317","v":-34513081.458540469},{"$f":"+Distribution!I1317+Transmission!I1317+Generation!I1317+Retail!I1317+Misc!I1317","v":-14643038.397340843},{"$f":"+Distribution!J1317+Transmission!J1317+Generation!J1317+Retail!J1317+Misc!J1317","v":-4657569.2879111823},{"$f":"+Distribution!K1317+Transmission!K1317+Generation!K1317+Retail!K1317+Misc!K1317","v":-7379516.4396705125},{"$f":"+Distribution!L1317+Transmission!L1317+Generation!L1317+Retail!L1317+Misc!L1317","v":-2916098.0272513144},{"$f":"+Distribution!M1317+Transmission!M1317+Generation!M1317+Retail!M1317+Misc!M1317","v":-3605392.1926577562},{"$f":"+Distribution!N1317+Transmission!N1317+Generation!N1317+Retail!N1317+Misc!N1317","v":-1228668.6383678939},{"$f":"+Distribution!O1317+Transmission!O1317+Generation!O1317+Retail!O1317+Misc!O1317","v":-82798.475340965699},{"$f":"+Distribution!P1317+Transmission!P1317+Generation!P1317+Retail!P1317+Misc!P1317","v":0},{"$f":"+Distribution!Q1317+Transmission!Q1317+Generation!Q1317+Retail!Q1317+Misc!Q1317","v":0},{"$f":"ROUND(SUM(I1317:Q1317)-H1317,0)","v":0}]
[1318]
[1319,null,"1081390","Accum Depr - Capital Lease",null,{"$f":"IF(Classification=\"DEMAND\",\"F12\",IF(Classification=\"ENERGY\",\"F30\",\"F10\"))","v":"F10"},null,{"$f":"+Distribution!H1319+Transmission!H1319+Generation!H1319+Retail!H1319+Misc!H1319","v":0},{"$f":"+Distribution!I1319+Transmission!I1319+Generation!I1319+Retail!I1319+Misc!I1319","v":0},{"$f":"+Distribution!J1319+Transmission!J1319+Generation!J1319+Retail!J1319+Misc!J1319","v":0},{"$f":"+Distribution!K1319+Transmission!K1319+Generation!K1319+Retail!K1319+Misc!K1319","v":0},{"$f":"+Distribution!L1319+Transmission!L1319+Generation!L1319+Retail!L1319+Misc!L1319","v":0},{"$f":"+Distribution!M1319+Transmission!M1319+Generation!M1319+Retail!M1319+Misc!M1319","v":0},{"$f":"+Distribution!N1319+Transmission!N1319+Generation!N1319+Retail!N1319+Misc!N1319","v":0},{"$f":"+Distribution!O1319+Transmission!O1319+Generation!O1319+Retail!O1319+Misc!O1319","v":0},{"$f":"+Distribution!P1319+Transmission!P1319+Generation!P1319+Retail!P1319+Misc!P1319","v":0},{"$f":"+Distribution!Q1319+Transmission!Q1319+Generation!Q1319+Retail!Q1319+Misc!Q1319","v":0},{"$f":"ROUND(SUM(I1319:Q1319)-H1319,0)","v":0}]
[1320,null,null,"Remove Capital Lease",null,{"$f":"IF(Classification=\"DEMAND\",\"F12\",IF(Classification=\"ENERGY\",\"F30\",\"F10\"))","v":"F10"},null,{"$f":"+Distribution!H1320+Transmission!H1320+Generation!H1320+Retail!H1320+Misc!H1320","v":0},{"$f":"+Distribution!I1320+Transmission!I1320+Generation!I1320+Retail!I1320+Misc!I1320","v":0},{"$f":"+Distribution!J1320+Transmission!J1320+Generation!J1320+Retail!J1320+Misc!J1320","v":0},{"$f":"+Distribution!K1320+Transmission!K1320+Generation!K1320+Retail!K1320+Misc!K1320","v":0},{"$f":"+Distribution!L1320+Transmission!L1320+Generation!L1320+Retail!L1320+Misc!L1320","v":0},{"$f":"+Distribution!M1320+Transmission!M1320+Generation!M1320+Retail!M1320+Misc!M1320","v":0},{"$f":"+Distribution!N1320+Transmission!N1320+Generation!N1320+Retail!N1320+Misc!N1320","v":0},{"$f":"+Distribution!O1320+Transmission!O1320+Generation!O1320+Retail!O1320+Misc!O1320","v":0},{"$f":"+Distribution!P1320+Transmission!P1320+Generation!P1320+Retail!P1320+Misc!P1320","v":0},{"$f":"+Distribution!Q1320+Transmission!Q1320+Generation!Q1320+Retail!Q1320+Misc!Q1320","v":0},{"$f":"ROUND(SUM(I1320:Q1320)-H1320,0)","v":0}]
[1321,null,null,null,null,null,null,{"$f":"+Distribution!H1321+Transmission!H1321+Generation!H1321+Retail!H1321+Misc!H1321","v":0},{"$f":"+Distribution!I1321+Transmission!I1321+Generation!I1321+Retail!I1321+Misc!I1321","v":0},{"$f":"+Distribution!J1321+Transmission!J1321+Generation!J1321+Retail!J1321+Misc!J1321","v":0},{"$f":"+Distribution!K1321+Transmission!K1321+Generation!K1321+Retail!K1321+Misc!K1321","v":0},{"$f":"+Distribution!L1321+Transmission!L1321+Generation!L1321+Retail!L1321+Misc!L1321","v":0},{"$f":"+Distribution!M1321+Transmission!M1321+Generation!M1321+Retail!M1321+Misc!M1321","v":0},{"$f":"+Distribution!N1321+Transmission!N1321+Generation!N1321+Retail!N1321+Misc!N1321","v":0},{"$f":"+Distribution!O1321+Transmission!O1321+Generation!O1321+Retail!O1321+Misc!O1321","v":0},{"$f":"+Distribution!P1321+Transmission!P1321+Generation!P1321+Retail!P1321+Misc!P1321","v":0},{"$f":"+Distribution!Q1321+Transmission!Q1321+Generation!Q1321+Retail!Q1321+Misc!Q1321","v":0},{"$f":"ROUND(SUM(I1321:Q1321)-H1321,0)","v":0}]
[1322,null,"1081399L"," Accum Depr - Capital Lease",null,{"$f":"IF(Classification=\"DEMAND\",\"F12\",IF(Classification=\"ENERGY\",\"F30\",\"F10\"))","v":"F10"},null,{"$f":"+Distribution!H1322+Transmission!H1322+Generation!H1322+Retail!H1322+Misc!H1322","v":0},{"$f":"+Distribution!I1322+Transmission!I1322+Generation!I1322+Retail!I1322+Misc!I1322","v":0},{"$f":"+Distribution!J1322+Transmission!J1322+Generation!J1322+Retail!J1322+Misc!J1322","v":0},{"$f":"+Distribution!K1322+Transmission!K1322+Generation!K1322+Retail!K1322+Misc!K1322","v":0},{"$f":"+Distribution!L1322+Transmission!L1322+Generation!L1322+Retail!L1322+Misc!L1322","v":0},{"$f":"+Distribution!M1322+Transmission!M1322+Generation!M1322+Retail!M1322+Misc!M1322","v":0},{"$f":"+Distribution!N1322+Transmission!N1322+Generation!N1322+Retail!N1322+Misc!N1322","v":0},{"$f":"+Distribution!O1322+Transmission!O1322+Generation!O1322+Retail!O1322+Misc!O1322","v":0},{"$f":"+Distribution!P1322+Transmission!P1322+Generation!P1322+Retail!P1322+Misc!P1322","v":0},{"$f":"+Distribution!Q1322+Transmission!Q1322+Generation!Q1322+Retail!Q1322+Misc!Q1322","v":0},{"$f":"ROUND(SUM(I1322:Q1322)-H1322,0)","v":0}]
[1323,null,null," Remove Capital Lease",null,{"$f":"IF(Classification=\"DEMAND\",\"F12\",IF(Classification=\"ENERGY\",\"F30\",\"F10\"))","v":"F10"},null,{"$f":"+Distribution!H1323+Transmission!H1323+Generation!H1323+Retail!H1323+Misc!H1323","v":0},{"$f":"+Distribution!I1323+Transmission!I1323+Generation!I1323+Retail!I1323+Misc!I1323","v":0},{"$f":"+Distribution!J1323+Transmission!J1323+Generation!J1323+Retail!J1323+Misc!J1323","v":0},{"$f":"+Distribution!K1323+Transmission!K1323+Generation!K1323+Retail!K1323+Misc!K1323","v":0},{"$f":"+Distribution!L1323+Transmission!L1323+Generation!L1323+Retail!L1323+Misc!L1323","v":0},{"$f":"+Distribution!M1323+Transmission!M1323+Generation!M1323+Retail!M1323+Misc!M1323","v":0},{"$f":"+Distribution!N1323+Transmission!N1323+Generation!N1323+Retail!N1323+Misc!N1323","v":0},{"$f":"+Distribution!O1323+Transmission!O1323+Generation!O1323+Retail!O1323+Misc!O1323","v":0},{"$f":"+Distribution!P1323+Transmission!P1323+Generation!P1323+Retail!P1323+Misc!P1323","v":0},{"$f":"+Distribution!Q1323+Transmission!Q1323+Generation!Q1323+Retail!Q1323+Misc!Q1323","v":0},{"$f":"ROUND(SUM(I1323:Q1323)-H1323,0)","v":0}]
[1324]
[1325,null,"TOTAL GENERAL PLANT ACCUM DEPR",null,null,null,null,{"$f":"+Distribution!H1325+Transmission!H1325+Generation!H1325+Retail!H1325+Misc!H1325","v":-63639471.94867672},{"$f":"+Distribution!I1325+Transmission!I1325+Generation!I1325+Retail!I1325+Misc!I1325","v":-29811416.75703799},{"$f":"+Distribution!J1325+Transmission!J1325+Generation!J1325+Retail!J1325+Misc!J1325","v":-8823082.8067783918},{"$f":"+Distribution!K1325+Transmission!K1325+Generation!K1325+Retail!K1325+Misc!K1325","v":-12355608.197592262},{"$f":"+Distribution!L1325+Transmission!L1325+Generation!L1325+Retail!L1325+Misc!L1325","v":-4781743.7031660425},{"$f":"+Distribution!M1325+Transmission!M1325+Generation!M1325+Retail!M1325+Misc!M1325","v":-5083640.7524418859},{"$f":"+Distribution!N1325+Transmission!N1325+Generation!N1325+Retail!N1325+Misc!N1325","v":-2450244.7691633655},{"$f":"+Distribution!O1325+Transmission!O1325+Generation!O1325+Retail!O1325+Misc!O1325","v":-333734.9624967791},{"$f":"+Distribution!P1325+Transmission!P1325+Generation!P1325+Retail!P1325+Misc!P1325","v":0},{"$f":"+Distribution!Q1325+Transmission!Q1325+Generation!Q1325+Retail!Q1325+Misc!Q1325","v":0},{"$f":"ROUND(SUM(I1325:Q1325)-H1325,0)","v":0}]
[1326]
[1327]
[1328,null,"TOTAL ACCUM DEPR - PLANT IN SERVICE",null,null,null,null,{"$f":"+Distribution!H1328+Transmission!H1328+Generation!H1328+Retail!H1328+Misc!H1328","v":-589326216.07470775},{"$f":"+Distribution!I1328+Transmission!I1328+Generation!I1328+Retail!I1328+Misc!I1328","v":-282586511.18850887},{"$f":"+Distribution!J1328+Transmission!J1328+Generation!J1328+Retail!J1328+Misc!J1328","v":-82264799.760199592},{"$f":"+Distribution!K1328+Transmission!K1328+Generation!K1328+Retail!K1328+Misc!K1328","v":-111943878.71252859},{"$f":"+Distribution!L1328+Transmission!L1328+Generation!L1328+Retail!L1328+Misc!L1328","v":-43026737.23636134},{"$f":"+Distribution!M1328+Transmission!M1328+Generation!M1328+Retail!M1328+Misc!M1328","v":-41797664.285162799},{"$f":"+Distribution!N1328+Transmission!N1328+Generation!N1328+Retail!N1328+Misc!N1328","v":-23626273.469023928},{"$f":"+Distribution!O1328+Transmission!O1328+Generation!O1328+Retail!O1328+Misc!O1328","v":-4080351.4229226438},{"$f":"+Distribution!P1328+Transmission!P1328+Generation!P1328+Retail!P1328+Misc!P1328","v":0},{"$f":"+Distribution!Q1328+Transmission!Q1328+Generation!Q1328+Retail!Q1328+Misc!Q1328","v":0},{"$f":"ROUND(SUM(I1328:Q1328)-H1328,0)","v":0}]
[1329]
[1330]
[1331,null,null,null,null,null,null,"ACCUMULATED AMORTIZATION"]
[1332]
[1333,null,"111SP","Accum Prov for Amort-Steam",null,{"$f":"IF(Classification=\"DEMAND\",\"F12\",IF(Classification=\"ENERGY\",\"F30\",\"F10\"))","v":"F10"},null,{"$f":"+Distribution!H1333+Transmission!H1333+Generation!H1333+Retail!H1333+Misc!H1333","v":0},{"$f":"+Distribution!I1333+Transmission!I1333+Generation!I1333+Retail!I1333+Misc!I1333","v":0},{"$f":"+Distribution!J1333+Transmission!J1333+Generation!J1333+Retail!J1333+Misc!J1333","v":0},{"$f":"+Distribution!K1333+Transmission!K1333+Generation!K1333+Retail!K1333+Misc!K1333","v":0},{"$f":"+Distribution!L1333+Transmission!L1333+Generation!L1333+Retail!L1333+Misc!L1333","v":0},{"$f":"+Distribution!M1333+Transmission!M1333+Generation!M1333+Retail!M1333+Misc!M1333","v":0},{"$f":"+Distribution!N1333+Transmission!N1333+Generation!N1333+Retail!N1333+Misc!N1333","v":0},{"$f":"+Distribution!O1333+Transmission!O1333+Generation!O1333+Retail!O1333+Misc!O1333","v":0},{"$f":"+Distribution!P1333+Transmission!P1333+Generation!P1333+Retail!P1333+Misc!P1333","v":0},{"$f":"+Distribution!Q1333+Transmission!Q1333+Generation!Q1333+Retail!Q1333+Misc!Q1333","v":0},{"$f":"ROUND(SUM(I1333:Q1333)-H1333,0)","v":0}]
[1334]
[1335,null,"111GP","Accum Prov for Amort-General"]
[1336,null,null,"Division",null,"F108",null,{"$f":"+Distribution!H1336+Transmission!H1336+Generation!H1336+Retail!H1336+Misc!H1336","v":-1921241.7437201675},{"$f":"+Distribution!I1336+Transmission!I1336+Generation!I1336+Retail!I1336+Misc!I1336","v":-912333.51672492863},{"$f":"+Distribution!J1336+Transmission!J1336+Generation!J1336+Retail!J1336+Misc!J1336","v":-267336.66654646129},{"$f":"+Distribution!K1336+Transmission!K1336+Generation!K1336+Retail!K1336+Misc!K1336","v":-367443.68165777845},{"$f":"+Distribution!L1336+Transmission!L1336+Generation!L1336+Retail!L1336+Misc!L1336","v":-141740.67173404698},{"$f":"+Distribution!M1336+Transmission!M1336+Generation!M1336+Retail!M1336+Misc!M1336","v":-146816.66096460185},{"$f":"+Distribution!N1336+Transmission!N1336+Generation!N1336+Retail!N1336+Misc!N1336","v":-74710.894792613719},{"$f":"+Distribution!O1336+Transmission!O1336+Generation!O1336+Retail!O1336+Misc!O1336","v":-10859.65129973635},{"$f":"+Distribution!P1336+Transmission!P1336+Generation!P1336+Retail!P1336+Misc!P1336","v":0},{"$f":"+Distribution!Q1336+Transmission!Q1336+Generation!Q1336+Retail!Q1336+Misc!Q1336","v":0},{"$f":"ROUND(SUM(I1336:Q1336)-H1336,0)","v":0}]
[1337,null,null,"System Overheads",null,"F108",null,{"$f":"+Distribution!H1337+Transmission!H1337+Generation!H1337+Retail!H1337+Misc!H1337","v":-828564.95723808615},{"$f":"+Distribution!I1337+Transmission!I1337+Generation!I1337+Retail!I1337+Misc!I1337","v":-393457.81640593248},{"$f":"+Distribution!J1337+Transmission!J1337+Generation!J1337+Retail!J1337+Misc!J1337","v":-115293.03608422115},{"$f":"+Distribution!K1337+Transmission!K1337+Generation!K1337+Retail!K1337+Misc!K1337","v":-158465.72112818202},{"$f":"+Distribution!L1337+Transmission!L1337+Generation!L1337+Retail!L1337+Misc!L1337","v":-61127.837763306365},{"$f":"+Distribution!M1337+Transmission!M1337+Generation!M1337+Retail!M1337+Misc!M1337","v":-63316.93594082768},{"$f":"+Distribution!N1337+Transmission!N1337+Generation!N1337+Retail!N1337+Misc!N1337","v":-32220.218799325339},{"$f":"+Distribution!O1337+Transmission!O1337+Generation!O1337+Retail!O1337+Misc!O1337","v":-4683.391116291059},{"$f":"+Distribution!P1337+Transmission!P1337+Generation!P1337+Retail!P1337+Misc!P1337","v":0},{"$f":"+Distribution!Q1337+Transmission!Q1337+Generation!Q1337+Retail!Q1337+Misc!Q1337","v":0},{"$f":"ROUND(SUM(I1337:Q1337)-H1337,0)","v":0}]
[1338,null,null,"Total Accum Prov for Amort-General",null,null,null,{"$f":"+Distribution!H1338+Transmission!H1338+Generation!H1338+Retail!H1338+Misc!H1338","v":-2749806.7009582534},{"$f":"+Distribution!I1338+Transmission!I1338+Generation!I1338+Retail!I1338+Misc!I1338","v":-1305791.3331308612},{"$f":"+Distribution!J1338+Transmission!J1338+Generation!J1338+Retail!J1338+Misc!J1338","v":-382629.70263068244},{"$f":"+Distribution!K1338+Transmission!K1338+Generation!K1338+Retail!K1338+Misc!K1338","v":-525909.40278596047},{"$f":"+Distribution!L1338+Transmission!L1338+Generation!L1338+Retail!L1338+Misc!L1338","v":-202868.50949735331},{"$f":"+Distribution!M1338+Transmission!M1338+Generation!M1338+Retail!M1338+Misc!M1338","v":-210133.5969054295},{"$f":"+Distribution!N1338+Transmission!N1338+Generation!N1338+Retail!N1338+Misc!N1338","v":-106931.11359193907},{"$f":"+Distribution!O1338+Transmission!O1338+Generation!O1338+Retail!O1338+Misc!O1338","v":-15543.042416027409},{"$f":"+Distribution!P1338+Transmission!P1338+Generation!P1338+Retail!P1338+Misc!P1338","v":0},{"$f":"+Distribution!Q1338+Transmission!Q1338+Generation!Q1338+Retail!Q1338+Misc!Q1338","v":0},{"$f":"ROUND(SUM(I1338:Q1338)-H1338,0)","v":0}]
[1339]
[1340,null,"111HP","Accum Prov for Amort-Hydro",null,{"$f":"IF(Classification=\"DEMAND\",\"F12\",IF(Classification=\"ENERGY\",\"F30\",\"F10\"))","v":"F10"},null,{"$f":"+Distribution!H1340+Transmission!H1340+Generation!H1340+Retail!H1340+Misc!H1340","v":-107221.73928561615},{"$f":"+Distribution!I1340+Transmission!I1340+Generation!I1340+Retail!I1340+Misc!I1340","v":-45491.505801213461},{"$f":"+Distribution!J1340+Transmission!J1340+Generation!J1340+Retail!J1340+Misc!J1340","v":-14469.663640234821},{"$f":"+Distribution!K1340+Transmission!K1340+Generation!K1340+Retail!K1340+Misc!K1340","v":-22925.932843718067},{"$f":"+Distribution!L1340+Transmission!L1340+Generation!L1340+Retail!L1340+Misc!L1340","v":-9059.4374421432058},{"$f":"+Distribution!M1340+Transmission!M1340+Generation!M1340+Retail!M1340+Misc!M1340","v":-11200.866609605073},{"$f":"+Distribution!N1340+Transmission!N1340+Generation!N1340+Retail!N1340+Misc!N1340","v":-3817.1030474271211},{"$f":"+Distribution!O1340+Transmission!O1340+Generation!O1340+Retail!O1340+Misc!O1340","v":-257.22990127439567},{"$f":"+Distribution!P1340+Transmission!P1340+Generation!P1340+Retail!P1340+Misc!P1340","v":0},{"$f":"+Distribution!Q1340+Transmission!Q1340+Generation!Q1340+Retail!Q1340+Misc!Q1340","v":0},{"$f":"ROUND(SUM(I1340:Q1340)-H1340,0)","v":0}]
[1341]
[1342,null,"111IP","Accum Prov for Amort-Intangible"]
[1343,null,null,null,"Situs",{"$f":"IF(Function=\"gen\",\"F107G\",IF(Function=\"TRN\",\"F107T\",IF(Function=\"DIS\",\"F107D\",IF(Function=\"RETAIL\",\"F107R\",IF(Function=\"MISC\",\"F107M\",\"ERR\")))))","v":"F107D"},null,{"$f":"+Distribution!H1343+Transmission!H1343+Generation!H1343+Retail!H1343+Misc!H1343","v":0},{"$f":"+Distribution!I1343+Transmission!I1343+Generation!I1343+Retail!I1343+Misc!I1343","v":0},{"$f":"+Distribution!J1343+Transmission!J1343+Generation!J1343+Retail!J1343+Misc!J1343","v":0},{"$f":"+Distribution!K1343+Transmission!K1343+Generation!K1343+Retail!K1343+Misc!K1343","v":0},{"$f":"+Distribution!L1343+Transmission!L1343+Generation!L1343+Retail!L1343+Misc!L1343","v":0},{"$f":"+Distribution!M1343+Transmission!M1343+Generation!M1343+Retail!M1343+Misc!M1343","v":0},{"$f":"+Distribution!N1343+Transmission!N1343+Generation!N1343+Retail!N1343+Misc!N1343","v":0},{"$f":"+Distribution!O1343+Transmission!O1343+Generation!O1343+Retail!O1343+Misc!O1343","v":0},{"$f":"+Distribution!P1343+Transmission!P1343+Generation!P1343+Retail!P1343+Misc!P1343","v":0},{"$f":"+Distribution!Q1343+Transmission!Q1343+Generation!Q1343+Retail!Q1343+Misc!Q1343","v":0},{"$f":"ROUND(SUM(I1343:Q1343)-H1343,0)","v":0}]
[1344,null,null,null,"System Generation",{"$f":"IF(Function=\"gen\",\"F105G\",IF(Function=\"TRN\",\"F105T\",IF(Function=\"DIS\",\"F105D\",IF(Function=\"RETAIL\",\"F105R\",IF(Function=\"MISC\",\"F105M\",\"ERR\")))))","v":"F105D"},null,{"$f":"+Distribution!H1344+Transmission!H1344+Generation!H1344+Retail!H1344+Misc!H1344","v":-14166141.518365525},{"$f":"+Distribution!I1344+Transmission!I1344+Generation!I1344+Retail!I1344+Misc!I1344","v":-6010340.0052752914},{"$f":"+Distribution!J1344+Transmission!J1344+Generation!J1344+Retail!J1344+Misc!J1344","v":-1911732.6786193312},{"$f":"+Distribution!K1344+Transmission!K1344+Generation!K1344+Retail!K1344+Misc!K1344","v":-3028975.3856681064},{"$f":"+Distribution!L1344+Transmission!L1344+Generation!L1344+Retail!L1344+Misc!L1344","v":-1196933.3246900293},{"$f":"+Distribution!M1344+Transmission!M1344+Generation!M1344+Retail!M1344+Misc!M1344","v":-1479859.0526248494},{"$f":"+Distribution!N1344+Transmission!N1344+Generation!N1344+Retail!N1344+Misc!N1344","v":-504315.84415914176},{"$f":"+Distribution!O1344+Transmission!O1344+Generation!O1344+Retail!O1344+Misc!O1344","v":-33985.22732877473},{"$f":"+Distribution!P1344+Transmission!P1344+Generation!P1344+Retail!P1344+Misc!P1344","v":0},{"$f":"+Distribution!Q1344+Transmission!Q1344+Generation!Q1344+Retail!Q1344+Misc!Q1344","v":0},0]
[1345,null,null,null,"System Overheads",{"$f":"IF(Function=\"gen\",\"F102G\",IF(Function=\"TRN\",\"F102T\",IF(Function=\"DIS\",\"F102D\",IF(Function=\"RETAIL\",\"F102R\",IF(Function=\"MISC\",\"F102M\",\"ERR\")))))","v":"F102D"},null,{"$f":"+Distribution!H1345+Transmission!H1345+Generation!H1345+Retail!H1345+Misc!H1345","v":-19244380.97660692},{"$f":"+Distribution!I1345+Transmission!I1345+Generation!I1345+Retail!I1345+Misc!I1345","v":-9114486.1072473135},{"$f":"+Distribution!J1345+Transmission!J1345+Generation!J1345+Retail!J1345+Misc!J1345","v":-2683093.9145997469},{"$f":"+Distribution!K1345+Transmission!K1345+Generation!K1345+Retail!K1345+Misc!K1345","v":-3699816.3373397752},{"$f":"+Distribution!L1345+Transmission!L1345+Generation!L1345+Retail!L1345+Misc!L1345","v":-1425281.3751735254},{"$f":"+Distribution!M1345+Transmission!M1345+Generation!M1345+Retail!M1345+Misc!M1345","v":-1457516.8071461674},{"$f":"+Distribution!N1345+Transmission!N1345+Generation!N1345+Retail!N1345+Misc!N1345","v":-755632.80197599181},{"$f":"+Distribution!O1345+Transmission!O1345+Generation!O1345+Retail!O1345+Misc!O1345","v":-108553.63312440392},{"$f":"+Distribution!P1345+Transmission!P1345+Generation!P1345+Retail!P1345+Misc!P1345","v":0},{"$f":"+Distribution!Q1345+Transmission!Q1345+Generation!Q1345+Retail!Q1345+Misc!Q1345","v":0},0]
[1346,null,null,null,"Customer - System","F42",null,{"$f":"+Distribution!H1346+Transmission!H1346+Generation!H1346+Retail!H1346+Misc!H1346","v":-7198289.7239659186},{"$f":"+Distribution!I1346+Transmission!I1346+Generation!I1346+Retail!I1346+Misc!I1346","v":-5808075.6499733338},{"$f":"+Distribution!J1346+Transmission!J1346+Generation!J1346+Retail!J1346+Misc!J1346","v":-986479.95359023858},{"$f":"+Distribution!K1346+Transmission!K1346+Generation!K1346+Retail!K1346+Misc!K1346","v":-59910.631783626341},{"$f":"+Distribution!L1346+Transmission!L1346+Generation!L1346+Retail!L1346+Misc!L1346","v":-12287.151161628399},{"$f":"+Distribution!M1346+Transmission!M1346+Generation!M1346+Retail!M1346+Misc!M1346","v":-212.17075219137661},{"$f":"+Distribution!N1346+Transmission!N1346+Generation!N1346+Retail!N1346+Misc!N1346","v":-175732.09613835171},{"$f":"+Distribution!O1346+Transmission!O1346+Generation!O1346+Retail!O1346+Misc!O1346","v":-155592.07056654777},{"$f":"+Distribution!P1346+Transmission!P1346+Generation!P1346+Retail!P1346+Misc!P1346","v":0},{"$f":"+Distribution!Q1346+Transmission!Q1346+Generation!Q1346+Retail!Q1346+Misc!Q1346","v":0},0]
[1347,null,null,null,"SSGCT",{"$f":"IF(Function=\"gen\",\"F105G\",IF(Function=\"TRN\",\"F105T\",IF(Function=\"DIS\",\"F105D\",IF(Function=\"RETAIL\",\"F105R\",IF(Function=\"MISC\",\"F105M\",\"ERR\")))))","v":"F105D"},null,{"$f":"+Distribution!H1347+Transmission!H1347+Generation!H1347+Retail!H1347+Misc!H1347","v":0},{"$f":"+Distribution!I1347+Transmission!I1347+Generation!I1347+Retail!I1347+Misc!I1347","v":0},{"$f":"+Distribution!J1347+Transmission!J1347+Generation!J1347+Retail!J1347+Misc!J1347","v":0},{"$f":"+Distribution!K1347+Transmission!K1347+Generation!K1347+Retail!K1347+Misc!K1347","v":0},{"$f":"+Distribution!L1347+Transmission!L1347+Generation!L1347+Retail!L1347+Misc!L1347","v":0},{"$f":"+Distribution!M1347+Transmission!M1347+Generation!M1347+Retail!M1347+Misc!M1347","v":0},{"$f":"+Distribution!N1347+Transmission!N1347+Generation!N1347+Retail!N1347+Misc!N1347","v":0},{"$f":"+Distribution!O1347+Transmission!O1347+Generation!O1347+Retail!O1347+Misc!O1347","v":0},{"$f":"+Distribution!P1347+Transmission!P1347+Generation!P1347+Retail!P1347+Misc!P1347","v":0},{"$f":"+Distribution!Q1347+Transmission!Q1347+Generation!Q1347+Retail!Q1347+Misc!Q1347","v":0},0]
[1348,null,null,null,"SSGCH",{"$f":"IF(Function=\"gen\",\"F105G\",IF(Function=\"TRN\",\"F105T\",IF(Function=\"DIS\",\"F105D\",IF(Function=\"RETAIL\",\"F105R\",IF(Function=\"MISC\",\"F105M\",\"ERR\")))))","v":"F105D"},null,{"$f":"+Distribution!H1348+Transmission!H1348+Generation!H1348+Retail!H1348+Misc!H1348","v":0},{"$f":"+Distribution!I1348+Transmission!I1348+Generation!I1348+Retail!I1348+Misc!I1348","v":0},{"$f":"+Distribution!J1348+Transmission!J1348+Generation!J1348+Retail!J1348+Misc!J1348","v":0},{"$f":"+Distribution!K1348+Transmission!K1348+Generation!K1348+Retail!K1348+Misc!K1348","v":0},{"$f":"+Distribution!L1348+Transmission!L1348+Generation!L1348+Retail!L1348+Misc!L1348","v":0},{"$f":"+Distribution!M1348+Transmission!M1348+Generation!M1348+Retail!M1348+Misc!M1348","v":0},{"$f":"+Distribution!N1348+Transmission!N1348+Generation!N1348+Retail!N1348+Misc!N1348","v":0},{"$f":"+Distribution!O1348+Transmission!O1348+Generation!O1348+Retail!O1348+Misc!O1348","v":0},{"$f":"+Distribution!P1348+Transmission!P1348+Generation!P1348+Retail!P1348+Misc!P1348","v":0},{"$f":"+Distribution!Q1348+Transmission!Q1348+Generation!Q1348+Retail!Q1348+Misc!Q1348","v":0},0]
[1349,null,null,null,"Energy",{"$f":"IF(Classification=\"DEMAND\",\"F12\",IF(Classification=\"ENERGY\",\"F30\",\"F10\"))","v":"F10"},null,{"$f":"+Distribution!H1349+Transmission!H1349+Generation!H1349+Retail!H1349+Misc!H1349","v":0},{"$f":"+Distribution!I1349+Transmission!I1349+Generation!I1349+Retail!I1349+Misc!I1349","v":0},{"$f":"+Distribution!J1349+Transmission!J1349+Generation!J1349+Retail!J1349+Misc!J1349","v":0},{"$f":"+Distribution!K1349+Transmission!K1349+Generation!K1349+Retail!K1349+Misc!K1349","v":0},{"$f":"+Distribution!L1349+Transmission!L1349+Generation!L1349+Retail!L1349+Misc!L1349","v":0},{"$f":"+Distribution!M1349+Transmission!M1349+Generation!M1349+Retail!M1349+Misc!M1349","v":0},{"$f":"+Distribution!N1349+Transmission!N1349+Generation!N1349+Retail!N1349+Misc!N1349","v":0},{"$f":"+Distribution!O1349+Transmission!O1349+Generation!O1349+Retail!O1349+Misc!O1349","v":0},{"$f":"+Distribution!P1349+Transmission!P1349+Generation!P1349+Retail!P1349+Misc!P1349","v":0},{"$f":"+Distribution!Q1349+Transmission!Q1349+Generation!Q1349+Retail!Q1349+Misc!Q1349","v":0},0]
[1350,null,null,"Total Accum Prov for Amort-Intangible",null,null,null,{"$f":"+Distribution!H1350+Transmission!H1350+Generation!H1350+Retail!H1350+Misc!H1350","v":-40608812.218938366},{"$f":"+Distribution!I1350+Transmission!I1350+Generation!I1350+Retail!I1350+Misc!I1350","v":-20932901.762495939},{"$f":"+Distribution!J1350+Transmission!J1350+Generation!J1350+Retail!J1350+Misc!J1350","v":-5581306.5468093157},{"$f":"+Distribution!K1350+Transmission!K1350+Generation!K1350+Retail!K1350+Misc!K1350","v":-6788702.3547915081},{"$f":"+Distribution!L1350+Transmission!L1350+Generation!L1350+Retail!L1350+Misc!L1350","v":-2634501.8510251832},{"$f":"+Distribution!M1350+Transmission!M1350+Generation!M1350+Retail!M1350+Misc!M1350","v":-2937588.0305232084},{"$f":"+Distribution!N1350+Transmission!N1350+Generation!N1350+Retail!N1350+Misc!N1350","v":-1435680.7422734853},{"$f":"+Distribution!O1350+Transmission!O1350+Generation!O1350+Retail!O1350+Misc!O1350","v":-298130.93101972644},{"$f":"+Distribution!P1350+Transmission!P1350+Generation!P1350+Retail!P1350+Misc!P1350","v":0},{"$f":"+Distribution!Q1350+Transmission!Q1350+Generation!Q1350+Retail!Q1350+Misc!Q1350","v":0},0]
[1351]
[1352,null,"111390","Accum Prov for Amort-Mining"]
[1353,null,null,null,"Situs",{"$f":"IF(Function=\"gen\",\"F107G\",IF(Function=\"TRN\",\"F107T\",IF(Function=\"DIS\",\"F107D\",IF(Function=\"RETAIL\",\"F107R\",IF(Function=\"MISC\",\"F107M\",\"ERR\")))))","v":"F107D"},null,{"$f":"+Distribution!H1353+Transmission!H1353+Generation!H1353+Retail!H1353+Misc!H1353","v":0},{"$f":"+Distribution!I1353+Transmission!I1353+Generation!I1353+Retail!I1353+Misc!I1353","v":0},{"$f":"+Distribution!J1353+Transmission!J1353+Generation!J1353+Retail!J1353+Misc!J1353","v":0},{"$f":"+Distribution!K1353+Transmission!K1353+Generation!K1353+Retail!K1353+Misc!K1353","v":0},{"$f":"+Distribution!L1353+Transmission!L1353+Generation!L1353+Retail!L1353+Misc!L1353","v":0},{"$f":"+Distribution!M1353+Transmission!M1353+Generation!M1353+Retail!M1353+Misc!M1353","v":0},{"$f":"+Distribution!N1353+Transmission!N1353+Generation!N1353+Retail!N1353+Misc!N1353","v":0},{"$f":"+Distribution!O1353+Transmission!O1353+Generation!O1353+Retail!O1353+Misc!O1353","v":0},{"$f":"+Distribution!P1353+Transmission!P1353+Generation!P1353+Retail!P1353+Misc!P1353","v":0},{"$f":"+Distribution!Q1353+Transmission!Q1353+Generation!Q1353+Retail!Q1353+Misc!Q1353","v":0},{"$f":"ROUND(SUM(I1353:Q1353)-H1353,0)","v":0}]
[1354,null,null,null,"System Generation",{"$f":"IF(Function=\"gen\",\"F105G\",IF(Function=\"TRN\",\"F105T\",IF(Function=\"DIS\",\"F105D\",IF(Function=\"RETAIL\",\"F105R\",IF(Function=\"MISC\",\"F105M\",\"ERR\")))))","v":"F105D"},null,{"$f":"+Distribution!H1354+Transmission!H1354+Generation!H1354+Retail!H1354+Misc!H1354","v":51481.529877819718},{"$f":"+Distribution!I1354+Transmission!I1354+Generation!I1354+Retail!I1354+Misc!I1354","v":21842.327224833189},{"$f":"+Distribution!J1354+Transmission!J1354+Generation!J1354+Retail!J1354+Misc!J1354","v":6947.4756330191531},{"$f":"+Distribution!K1354+Transmission!K1354+Generation!K1354+Retail!K1354+Misc!K1354","v":11007.67535142095},{"$f":"+Distribution!L1354+Transmission!L1354+Generation!L1354+Retail!L1354+Misc!L1354","v":4349.8053889198673},{"$f":"+Distribution!M1354+Transmission!M1354+Generation!M1354+Retail!M1354+Misc!M1354","v":5377.9928665754542},{"$f":"+Distribution!N1354+Transmission!N1354+Generation!N1354+Retail!N1354+Misc!N1354","v":1832.7468467879819},{"$f":"+Distribution!O1354+Transmission!O1354+Generation!O1354+Retail!O1354+Misc!O1354","v":123.50656626312455},{"$f":"+Distribution!P1354+Transmission!P1354+Generation!P1354+Retail!P1354+Misc!P1354","v":0},{"$f":"+Distribution!Q1354+Transmission!Q1354+Generation!Q1354+Retail!Q1354+Misc!Q1354","v":0},{"$f":"ROUND(SUM(I1354:Q1354)-H1354,0)","v":0}]
[1355,null,null,null,"System Overheads",{"$f":"IF(Function=\"gen\",\"F102G\",IF(Function=\"TRN\",\"F102T\",IF(Function=\"DIS\",\"F102D\",IF(Function=\"RETAIL\",\"F102R\",IF(Function=\"MISC\",\"F102M\",\"ERR\")))))","v":"F102D"},null,{"$f":"+Distribution!H1355+Transmission!H1355+Generation!H1355+Retail!H1355+Misc!H1355","v":51481.529877819718},{"$f":"+Distribution!I1355+Transmission!I1355+Generation!I1355+Retail!I1355+Misc!I1355","v":24382.581566100198},{"$f":"+Distribution!J1355+Transmission!J1355+Generation!J1355+Retail!J1355+Misc!J1355","v":7177.6681046467993},{"$f":"+Distribution!K1355+Transmission!K1355+Generation!K1355+Retail!K1355+Misc!K1355","v":9897.5490843138723},{"$f":"+Distribution!L1355+Transmission!L1355+Generation!L1355+Retail!L1355+Misc!L1355","v":3812.835850084748},{"$f":"+Distribution!M1355+Transmission!M1355+Generation!M1355+Retail!M1355+Misc!M1355","v":3899.0703388033662},{"$f":"+Distribution!N1355+Transmission!N1355+Generation!N1355+Retail!N1355+Misc!N1355","v":2021.4281103078906},{"$f":"+Distribution!O1355+Transmission!O1355+Generation!O1355+Retail!O1355+Misc!O1355","v":290.39682356284442},{"$f":"+Distribution!P1355+Transmission!P1355+Generation!P1355+Retail!P1355+Misc!P1355","v":0},{"$f":"+Distribution!Q1355+Transmission!Q1355+Generation!Q1355+Retail!Q1355+Misc!Q1355","v":0},{"$f":"ROUND(SUM(I1355:Q1355)-H1355,0)","v":0}]
[1356,null,null,null,"Remove Capital Lease Amtr",null,null,{"$f":"+Distribution!H1356+Transmission!H1356+Generation!H1356+Retail!H1356+Misc!H1356","v":-102963.05975563944},{"$f":"+Distribution!I1356+Transmission!I1356+Generation!I1356+Retail!I1356+Misc!I1356","v":-46224.90879093339},{"$f":"+Distribution!J1356+Transmission!J1356+Generation!J1356+Retail!J1356+Misc!J1356","v":-14125.143737665952},{"$f":"+Distribution!K1356+Transmission!K1356+Generation!K1356+Retail!K1356+Misc!K1356","v":-20905.224435734825},{"$f":"+Distribution!L1356+Transmission!L1356+Generation!L1356+Retail!L1356+Misc!L1356","v":-8162.6412390046153},{"$f":"+Distribution!M1356+Transmission!M1356+Generation!M1356+Retail!M1356+Misc!M1356","v":-9277.0632053788213},{"$f":"+Distribution!N1356+Transmission!N1356+Generation!N1356+Retail!N1356+Misc!N1356","v":-3854.1749570958727},{"$f":"+Distribution!O1356+Transmission!O1356+Generation!O1356+Retail!O1356+Misc!O1356","v":-413.90338982596899},{"$f":"+Distribution!P1356+Transmission!P1356+Generation!P1356+Retail!P1356+Misc!P1356","v":0},{"$f":"+Distribution!Q1356+Transmission!Q1356+Generation!Q1356+Retail!Q1356+Misc!Q1356","v":0},{"$f":"ROUND(SUM(I1356:Q1356)-H1356,0)","v":0}]
[1357,null,"TOTAL ACCUM PROV FOR AMORTIZATION",null,null,null,null,{"$f":"+Distribution!H1357+Transmission!H1357+Generation!H1357+Retail!H1357+Misc!H1357","v":-43465840.659182236},{"$f":"+Distribution!I1357+Transmission!I1357+Generation!I1357+Retail!I1357+Misc!I1357","v":-22284184.601428013},{"$f":"+Distribution!J1357+Transmission!J1357+Generation!J1357+Retail!J1357+Misc!J1357","v":-5978405.9130802341},{"$f":"+Distribution!K1357+Transmission!K1357+Generation!K1357+Retail!K1357+Misc!K1357","v":-7337537.6904211864},{"$f":"+Distribution!L1357+Transmission!L1357+Generation!L1357+Retail!L1357+Misc!L1357","v":-2846429.7979646795},{"$f":"+Distribution!M1357+Transmission!M1357+Generation!M1357+Retail!M1357+Misc!M1357","v":-3158922.4940382428},{"$f":"+Distribution!N1357+Transmission!N1357+Generation!N1357+Retail!N1357+Misc!N1357","v":-1546428.9589128513},{"$f":"+Distribution!O1357+Transmission!O1357+Generation!O1357+Retail!O1357+Misc!O1357","v":-313931.20333702827},{"$f":"+Distribution!P1357+Transmission!P1357+Generation!P1357+Retail!P1357+Misc!P1357","v":0},{"$f":"+Distribution!Q1357+Transmission!Q1357+Generation!Q1357+Retail!Q1357+Misc!Q1357","v":0},{"$f":"ROUND(SUM(I1357:Q1357)-H1357,0)","v":0}]

{"sheet":"Generation","index":12,"n_rows":1357,"n_cols":18,"rows_kept":1357,"cut":false,"hidden":false,"merged":[]}
[1,null,null," - ","Generation - Total -  Unbundled"]
[2,"PacifiCorp"]
[3,"Cost Of Service By Rate Schedule"]
[4,"State of Washington"]
[5,"WCA Method - (100 Summer, 100 Winter Hours) - 38%D / 62%E"]
[6,"12 Months Ending June 2012"]
[7]
[8]
[9,null,"A",null,"B","C",null,"D","E","F","G","H","I","J","K"]
[10,null,null,null,null,null,null,"Washington",null,"Small General","Large General","Large General","Large General","Agricultural","Street & Area",null,null,"Chk Total"]
[11,null,null,null,null,"COS",null,"Jurisdiction","Residential","Service","Service <1,000 kW","Service >1,000 kW","Dedicated Facilities","Pumping","Lighting","-","-"]
[12,null,null,null,"DESCRIPTION ","Factor",null,"Normalized","Schedule 16","Schedule 24","Schedule 36","Schedule 48T","Schedule 48T","Schedule 40","Sch. 15,51-54,57","-","-",0]
[13]
[14,null,null,null,"Operating Revenues",null,null,219983741.70201826,90845608.751697868,31967748.461734343,47988929.841934681,18366968.437003393,21687383.997050676,8518515.4354935121,608586.7771037668,0,0,0]
[15]
[16,null,null,null,"Operating Expenses"]
[17,null,null,null,"Operation & Maintenance Expenses",null,null,160399072.80989745,68034893.113898456,21652087.013858613,34308135.077279501,13555375.961335331,16748700.603644433,5715006.5932602743,384874.44662082265,0,0,0]
[18,null,null,null,"Depreciation Expense",null,null,23157034.246414289,9824951.2158489581,3125061.1926602446,4951389.6671530064,1956596.7172209588,2419088.2688184371,824392.39076231001,55554.793950372325,0,0,0]
[19,null,null,null,"Amortization Expense",null,null,3860505.5878965864,1656732.0161474964,521568.62082130613,815911.94657277525,322141.13499145419,396380.26908622211,137476.48798798441,10295.112289348039,0,0,0]
[20,null,null,null,"Taxes Other Than Income",null,null,10113138.541778341,4283711.7260824181,1364727.0075459059,2166125.6964612016,856003.71255376493,1058451.773778914,360212.68182283035,23905.943533304882,0,0,0]
[21,null,null,null,"Income Taxes - Federal",null,null,-11934722.088213939,-5055296.0137562659,-1610542.3152322543,-2556289.3347703861,-1010187.5272057825,-1249100.6339568153,-425094.36931433063,-28211.893978104108,0,0,0]
[22,null,null,null,"Income Taxes - State",null,null,0,0,0,0,0,0,0,0,0,0,0]
[23,null,null,null,"Income Taxes Deferred",null,null,12810565.3815352,5426284.720210908,1728733.8135327701,2743885.5647536819,1084321.29958526,1340767.319184015,456290.40803569026,30282.25623287453,0,0,0]
[24,null,null,null,"Investment Tax Credit Adj",null,null,0,0,0,0,0,0,0,0,0,0,0]
[25,null,null,null,"Misc Revenues & Expense",null,null,-853313.31999234774,-362039.5276678013,-115155.34818112872,-182453.7076075864,-72098.612581033347,-89140.95907335954,-30378.026842826061,-2047.138038612326,0,0,0]
[26]
[27,null,null,null,"Total Operating Expenses",null,null,197552281.15931556,83809237.250764161,26666479.985005457,42246704.909842186,16692152.685899954,20625146.641481847,7037906.1657119319,474653.520610006,0,0,0]
[28]
[29,null,null,null,"Operating Revenue For Return",null,null,22431460.542702705,7036371.5009337068,5301268.4767288864,5742224.9320924953,1674815.7511034384,1062237.3555688299,1480609.2697815802,133933.2564937608,0,0,0]
[30]
[31]
[32,null,null,null,"Rate Base :"]
[33,null,null,null,"Electric Plant In Service",null,null,883089392.3652271,374672771.43080288,119173654.1201432,188820366.45977965,74614468.66331774,92251501.926223978,31438057.554435454,2118572.2105241641,0,0,0]
[34,null,null,null,"Plant Held For Future Use ",null,null,43755.273337945968,18564.269560901212,5904.8108331847106,9355.6629913654779,3696.9943241927531,4570.8732519216728,1557.6914561549725,104.97092022516674,0,0,0]
[35,null,null,null,"Electric Plant Acquisition Adj",null,null,0,0,0,0,0,0,0,0,0,0,0]
[36,null,null,null,"Nuclear Fuel",null,null,0,0,0,0,0,0,0,0,0,0,0]
[37,null,null,null,"Prepayments",null,null,-6.9763221492845877E-8,-3.410007546223269E-8,-9.4392276316683756E-9,-1.2498943975827898E-8,-4.920485076804535E-9,-6.0590843849664575E-9,-2.3519590189727583E-9,-3.9344594237316539E-10,0,0,0]
[38,null,null,null,"Fuel Stock",null,null,-1.5174737200140953E-7,-6.4382619604148588E-8,-2.0478435117537233E-8,-3.2446312500563224E-8,-1.2821521389373937E-8,-1.5852215077562388E-8,-5.4022193630218616E-9,-3.6404894920230039E-10,0,0,0]
[39,null,null,null,"Materials & Supplies",null,null,1.1383549273394506E-4,4.8297556191433271E-5,1.5362195214842477E-5,2.4340072069695339E-5,9.6182502913107519E-6,1.1891769132331502E-5,4.0525532332826185E-6,2.7309660104910322E-7,0,0,0]
[40,null,null,null,"Misc Deferred Debits",null,null,14711337.479033785,6241653.0335173681,1985307.3307509322,3145548.0701276627,1242998.3179674314,1536812.6822919992,523724.86677691748,35293.177601473857,0,0,0]
[41,null,null,null,"Cash Working Capital",null,null,19879156.978276398,8431945.9989296682,2683464.6180650229,4251999.6586355958,1679993.7924473574,2075760.4308386976,708292.82993396046,47699.649426093747,0,0,0]
[42,null,null,null,"Weatherization Loans",null,null,0,0,0,0,0,0,0,0,0,0,0]
[43,null,null,null,"Miscellaneous Rate Base",null,null,0,0,0,0,0,0,0,0,0,0,0]
[44]
[45,null,null,null,"Total Rate Base Additions",null,null,917723642.09598887,389364934.73285896,123848330.87980768,196227269.8515586,77541157.768066317,95868645.912618473,32671632.942606531,2201670.0084722289,0,0,0]
[46]
[47,null,null,null,"Rate Base Deductions :"]
[48,null,null,null,"Accum Provision For Depreciation",null,null,-276191532.91767967,-117181168.72271423,-37272279.000754721,-59054708.288281858,-23336125.035727888,-28852213.548528817,-9832442.0868172925,-662596.2348548607,0,0,0]
[49,null,null,null,"Accum Provision For Amortization",null,null,-22439940.159080647,-9542039.1047978625,-3030058.5041279211,-4788547.1854013186,-1891488.5696934485,-2332350.8105443488,-800249.68195180094,-55206.302563948084,0,0,0]
[50,null,null,null,"Accum Deferred Income Taxes",null,null,-124306012.70772502,-53058428.651886076,-16776593.675226895,-26407381.237474862,-10433995.338633956,-12899897.425976548,-4415567.4166644961,-314148.96186216403,0,0,0]
[51,null,null,null,"Unamortized ITC",null,null,-266330.54835915519,-112987.67808685378,-35940.724405828762,-56950.588575807662,-22505.004646556459,-27827.47984435517,-9480.7586579632643,-638.31414179006345,0,0,0]
[52,null,null,null,"Customer Advance For Construction",null,null,0,0,0,0,0,0,0,0,0,0,0]
[53,null,null,null,"Customer Service Deposits",null,null,0,0,0,0,0,0,0,0,0,0,0]
[54,null,null,null,"Misc Rate Base Deductions",null,null,-3109906.5318716601,-1319455.6624288047,-419684.49466095178,-664953.84961074253,-262763.91209579451,-324874.86645823275,-110712.93731208204,-7460.8093050516354,0,0,0]
[55,null,null,null,null,null,null,null,null,null,null,null,null,null,null,null,null,0]
[56,null,null,null,"Total Rate Base Deductions",null,null,-426313722.86471617,-181214079.8199138,-57534556.399176314,-90972541.149344593,-35946877.860797644,-44437164.131352298,-15168452.881403634,-1040050.6227278146,0,0,0]
[57,null,null,null,null,null,null,null,null,null,null,null,null,null,null,null,null,0]
[58,null,null,null,"Total Rate Base",null,null,491409919.2312727,208150854.91294515,66313774.480631366,105254728.702214,41594279.907268673,51431481.781266175,17503180.061202899,1161619.3857444143,0,0,0]
[59]
[60]
[61,null,null,null,"Return On Rate Base",null,null,4.5647146434880499E-2,3.3804192175316952E-2,7.9942191773102231E-2,5.4555505514040675E-2,4.0265530617126052E-2,2.065344646468556E-2,8.4590872321736579E-2,0.11529874426805539,0.1,0.1]
[62]
[63,null,null,null,"Return On Equity",null,null,3.8342078102056941E-2,1.5786818184617805E-2,0.10365801570768424,5.5308313896312349E-2,2.809263012777027E-2,-9.2591695909332566E-3,0.11251156658270514,0.17099562538090099,0.14185871023172955,0.14185871023172955]
[64]
[65]
[66]
[67]
[68]
[69]
[70]
[71,"PacifiCorp"]
[72,"Cost Of Service By Rate Schedule"]
[73,"State of Washington"]
[74,"WCA Method - (100 Summer, 100 Winter Hours)"]
[75,"12 Months Ending June 2012"]
[76]
[77]
[78,null,"A",null,"B","C",null,"D","E","F","G","H","I","J","K","S","T"]
[79,null,null,null,null,null,null,"Washington",null,"Small General","Large General","Large General","Large General","Agricultural","Street & Area"]
[80,null,null,null,null,"COS",null,"Jurisdiction","Residential","Service","Service <1,000 kW","Service >1,000 kW","Dedicated Facilities","Pumping","Lighting","-","-"]
[81,null,null,null,"DESCRIPTION ","Factor",null,"Normalized","Schedule 16","Schedule 24","Schedule 36","Schedule 48T","Schedule 48T","Schedule 40","Sch. 15,51-54,57","-","-"]
[82]
[83,null,null,null,"Total Rate Base",null,null,491409919.2312727,208150854.91294515,66313774.480631366,105254728.702214,41594279.907268673,51431481.781266175,17503180.061202899,1161619.3857444143,0,0,0]
[84]
[85]
[86,null,null,null,"Return On Ratebase ($$)",4.602925444100011E-2,null,22619232.207127564,9581028.6628996506,3052373.598512081,4844796.688552646,1914553.6931418483,2367352.7611875623,805658.32856374804,53468.474270027902,0,0,0]
[87,null,null,null,"Operating & Maintenance Expense",null,null,160399072.80989745,68034893.113898456,21652087.013858613,34308135.077279501,13555375.961335331,16748700.603644433,5715006.5932602743,384874.44662082265,0,0,0]
[88,null,null,null,"        Bad Debt to Produce ROR","F80",null,0,0,0,0,0,0,0,0,0,0,0]
[89,null,null,null,"Depreciation Expense",null,null,23157034.246414289,9824951.2158489581,3125061.1926602446,4951389.6671530064,1956596.7172209588,2419088.2688184371,824392.39076231001,55554.793950372325,0,0,0]
[90,null,null,null,"Amortization Expense",null,null,3860505.5878965864,1656732.0161474964,521568.62082130613,815911.94657277525,322141.13499145419,396380.26908622211,137476.48798798441,10295.112289348039,0,0,0]
[91,null,null,null,"Taxes Other Than Income",null,null,10113138.541778341,4283711.7260824181,1364727.0075459059,2166125.6964612016,856003.71255376493,1058451.773778914,360212.68182283035,23905.943533304882,0,0,0]
[92,null,null,null,"Federal Income Taxes",null,null,-11934722.088213939,-5055296.0137562659,-1610542.3152322543,-2556289.3347703861,-1010187.5272057825,-1249100.6339568153,-425094.36931433063,-28211.893978104108,0,0,0]
[93,null,null,null,"        FIT Adj to Produce Target ROR","F101",null,0,0,0,0,0,0,0,0,0,0,0]
[94,null,null,null,"State Income Taxes",null,null,0,0,0,0,0,0,0,0,0,0,0]
[95,null,null,null,"        SIT Adj to Produce Target ROR","F101",null,0,0,0,0,0,0,0,0,0,0,0]
[96,null,null,null,"Deferred Income Taxes",null,null,12810565.3815352,5426284.720210908,1728733.8135327701,2743885.5647536819,1084321.29958526,1340767.319184015,456290.40803569026,30282.25623287453,0,0,0]
[97,null,null,null,"Investment Tax Credit",null,null,0,0,0,0,0,0,0,0,0,0,0]
[98,null,null,null,"Misc Revenue & Expenses",null,null,-853313.31999234774,-362039.5276678013,-115155.34818112872,-182453.7076075864,-72098.612581033347,-89140.95907335954,-30378.026842826061,-2047.138038612326,0,0,0]
[99,null,null,null,"Revenue Credits",null,null,-21489306.888866588,-9163034.566534562,-2900748.2219739389,-4568942.2833351716,-1805129.8408831588,-2231740.3618944138,-765545.42240187991,-54166.191843465436,0,0,0]
[100]
[101,null,null,null,"Total Revenue Requirements",null,null,198682206.47757655,84227231.347129241,26818105.361543596,42522559.315059662,16801576.538158644,20760759.040774997,7078019.0718737999,473955.80303656845,0,0,0]
[102,null,null,null,"Operating Revenues",null,null,198494434.81315166,81682574.185163304,29067000.239760406,43419987.558599509,16561838.596120235,19455643.635156263,7752970.0130916322,554420.58526030136,0,0,0]
[103]
[104,null,null,null,"Increase / (Decrease) Required to "]
[105,null,null,null,"Earn Equal Rates of Return",null,null,187771.66442489624,2544657.1619659364,-2248894.8782168105,-897428.24353984743,239737.94203840941,1305115.4056187347,-674950.94121783227,-80464.782223732909,0,0,0]
[106]
[107,null,null,null,"Existing Revenues",null,null,198494434.81315166,81682574.185163304,29067000.239760406,43419987.558599509,16561838.596120235,19455643.635156263,7752970.0130916322,554420.58526030136,0,0,0]
[108,null,null,null,"check",null,null,0,0,0,0,0,0,0,0,0,0,0]
[109,null,null,null,"Percent Increase / (Decrease) "]
[110,null,null,null,"Over Existing Rates To "]
[111,null,null,null,"Equal Authorized RoE & RoR",null,null,9.4597949107062341E-4,3.1152999123136644E-2,-7.7369348734534146E-2,-2.0668551374610149E-2,1.4475321725123579E-2,6.7081584659599583E-2,-8.7057081360835009E-2,-0.14513310718063357,{"$error":"#DIV/0!"},{"$error":"#DIV/0!"}]
[112]
[113]
[114]
[115]
[116]
[117]
[118]
[119]
[120,null,null,null,null,"WCA",null,null,"ELECTRIC REVENUES"]
[121,null,"Generation - Total -  Unbundled",null,null,"Method"]
[122,null,"A",null,"B",null,null,"D","E","F","G","H","I","J","K","S","T"]
[123,null,null,null,null,null,null,"Washington",null,"Small General","Large General","Large General","Large General","Agricultural","Street & Area"]
[124,null,"FERC",null,null,"COS",null,"Jurisdiction","Residential","Service","Service <1,000 kW","Service >1,000 kW","Dedicated Facilities","Pumping","Lighting","-","-"]
[125,null,"ACCT",null,"DESCRIPTION ","Factor",null,"Normalized","Schedule 16","Schedule 24","Schedule 36","Schedule 48T","Schedule 48T","Schedule 40","Sch. 15,51-54,57","-","-"]
[126,null,"440","Residential Sales",null,"A",null,81682574.185163304,81682574.185163304,0,0,0,0,0,0,0,0,0]
[127]
[128,null,"442","Commercial & Industrial Sales",null,"A",null,72837452.484128535,0,29067000.239760406,0,16561838.596120235,19455643.635156263,7752970.0130916322,0,0,0,0]
[129,null,null,null,"Interruptible Demand","F10",null,0,0,0,0,0,0,0,0,0,0,0]
[130,null,null,null,"Interruptible Energy","F10",null,0,0,0,0,0,0,0,0,0,0,0]
[131,null,null,null,null,null,null,72837452.484128535,0,29067000.239760406,0,16561838.596120235,19455643.635156263,7752970.0130916322,0,0,0,0]
[132]
[133,null,"444","Public Street & Highway Lighting",null,"A",null,43974408.143859811,0,0,43419987.558599509,0,0,0,554420.58526030136,0,0,0]
[134]
[135,null,"445","Other Sales to Public Authority",null,"A",null,0,0,0,0,0,0,0,0,0,0,0]
[136]
[137,null,"448","Interdepartmental",null,"A",0,0,0,0,0,0,0,0,0,0,0,0]
[138,null,null,null,"Demand","F10",null,0,0,0,0,0,0,0,0,0,0,0]
[139,null,null,null,null,null,null,0,0,0,0,0,0,0,0,0,0,0]
[140]
[141,null,"Total Sales to Ultimate Customers",null,null,null,null,198494434.81315166,81682574.185163304,29067000.239760406,43419987.558599509,16561838.596120235,19455643.635156263,7752970.0130916322,554420.58526030136,0,0,0]
[142]
[143,null,"447","Sales for Resale",null,"F10",null,0,0,0,0,0,0,0,0,0,0,0]
[144,null,null,null,"Demand","F10",null,0,0,0,0,0,0,0,0,0,0,0]
[145,null,null,null,"Energy","F10",null,0,0,0,0,0,0,0,0,0,0,0]
[146,null,null,null,null,null,null,0,0,0,0,0,0,0,0,0,0,0]
[147]
[148,null,"447NPC","Sales for Resale",null,"F10",null,0,0,0,0,0,0,0,0,0,0,0]
[149,null,null,null,"Demand","F10",null,16130951.684913587,6843959.882040292,2176885.4584220569,3449087.0741098011,1362945.1326323857,1685111.9867343886,574263.25337219588,38698.897602466037,0,0,0]
[150,null,null,null,"Energy","F10",null,870715.40737176989,369422.79867467633,117503.77446758791,186174.58631426736,73568.959201289428,90958.859629387443,30997.54263514726,2088.8864494141053,0,0,0]
[151,null,null,null,null,null,null,17001667.092285357,7213382.6807149686,2294389.2328896448,3635261.6604240686,1436514.091833675,1776070.8463637761,605260.7960073431,40787.784051880139,0,0,0]
[152]
[153,null,"449","Provision for Rate Refund",null,"F10",null,0,0,0,0,0,0,0,0,0,0,0]
[154]
[155,null,"State Specific Revenue Credit",null,null,"F140G",null,195123.07959845589,82765.45866886944,26337.804308499442,41734.003978531357,16489.861900618696,20376.692799706623,6951.2192369997902,468.03870523051091,0,0,0]
[156]
[157,null,"AGA Revenue",null,null,"A",0,0,0,0,0,0,0,0,0,0,0,0]
[158]
[159,null,"Total Sales from Electricity",null,null,null,null,215691224.98503548,88978722.324547142,31387727.276958551,47096983.223002106,18014842.549854528,21252091.174319744,8365182.0283359755,595676.40801741194,0,0,0]
[160]
[161,null,"Other Electric Operating Revenues"]
[162,null,"450","Forfeited Discounts & Interest",null,"A",0,0,0,0,0,0,0,0,0,0,0,0]
[163,null,null,null,"Customers","F40",null,0,0,0,0,0,0,0,0,0,0,0]
[164,null,null,null,null,null,null,0,0,0,0,0,0,0,0,0,0,0]
[165]
[166,null,"451","Misc Electric Revenue",null,"A",0,0,0,0,0,0,0,0,0,0,0,0]
[167,null,null,null,"Demand","F10",null,0,0,0,0,0,0,0,0,0,0,0]
[168,null,null,null,"Customer","F40",null,142.94235856854277,112.62076258987359,20.134964043050871,1.1278539739171904,6.2533455080832648E-2,1.0798084948331968E-3,5.6797926828226144,3.315372015302859,0,0,0]
[169,null,null,null,null,null,null,142.94235856854277,112.62076258987359,20.134964043050871,1.1278539739171904,6.2533455080832648E-2,1.0798084948331968E-3,5.6797926828226144,3.315372015302859,0,0,0]
[170]
[171,null,"453","Water Sales",null,"F10",null,1193.8950647294114,506.53985493093126,161.11714026903917,255.27619919988348,100.87523037271407,124.71966464074977,42.502765952596235,2.8642093634973622,0,0,0]
[172]
[173,null,"454","Rent of Electric Property",null,"A",0,0,0,0,0,0,0,0,0,0,0,0]
[174,null,null,null,"Demand","F10",null,248032.61219001404,105234.04200966755,33472.209032518185,53033.825491050018,20956.906208741566,25910.605652196755,8829.9821114618044,595.04168437814906,0,0,0]
[175,null,null,null,"Customer","F40",null,125486.20933917415,98867.492685967241,17676.078233531167,990.12022253100326,54.896857121693749,0.94794206689882266,4986.175271887807,2910.4981260683521,0,0,0]
[176,null,null,null,null,null,null,373518.82152918819,204101.53469563479,51148.287266049352,54023.945713581023,21011.80306586326,25911.553594263652,13816.157383349611,3505.5398104465012,0,0,0]
[177]
[178,null,"456","Other Electric Revenue",null,"A",0,0,0,0,0,0,0,0,0,0,0,0]
[179,null,null,null,"Demand","F10",null,3917661.0580302915,1662165.7318375679,528691.64540543326,837666.26916581648,331013.14631917403,409256.54839221825,139469.06721555194,9398.6496945294875,0,0,0]
[180,null,null,null,"Energy","F10",null,0,0,0,0,0,0,0,0,0,0,0]
[181,null,null,null,"Customer","F40",null,0,0,0,0,0,0,0,0,0,0,0]
[182,null,null,null,null,null,null,3917661.0580302915,1662165.7318375679,528691.64540543326,837666.26916581648,331013.14631917403,409256.54839221825,139469.06721555194,9398.6496945294875,0,0,0]
[183]
[184,null,"Total Other Electric Operating Revenues",null,null,null,null,4292516.7169827772,1866886.4271507235,580021.18477579474,891946.61893257126,352125.88714886509,435292.82273093116,153333.40715753697,12910.369086354789,0,0,0]
[185]
[186,null,"Total Electric Operating Revenues",null,null,null,null,219983741.70201826,90845608.751697868,31967748.461734347,47988929.841934681,18366968.437003393,21687383.997050676,8518515.4354935121,608586.77710376668,0,0,0]
[187]
[188,null,"Miscellaneous Revenues"]
[189,null,"41160","Gain on Sale of Utility Plant - CR",null,"F10",null,0,0,0,0,0,0,0,0,0,0,0]
[190,null,"41170","Loss on Sale of Utility Plant ",null,"F10",null,0,0,0,0,0,0,0,0,0,0,0]
[191,null,"4118","Gain from Emission Allowances",null,"F10",null,-854647.89922117116,-362605.75629955734,-115335.45076732982,-182739.06460681511,-72211.374574223024,-89280.375240468915,-30425.537976998254,-2050.3397557786429,0,0,0]
[192,null,41181,"Gain from Disposition of NOX Credits",null,"F10",null,0,0,0,0,0,0,0,0,0,0,0]
[193,null,"4194","Impact Housing Interest Income",null,"F10",null,0,0,0,0,0,0,0,0,0,0,0]
[194,null,"421","(Gain)/Loss on Sale of Utility Plant",null,"F10",null,1334.579228823424,566.22863175606335,180.10258620109417,285.35699922871333,112.76199318967292,139.41616710937015,47.511134172193216,3.2017171663168642,0,0,0]
[195]
[196,null,"Total Miscellaneous Revenues",null,null,null,null,-853313.31999234774,-362039.5276678013,-115155.34818112872,-182453.7076075864,-72098.612581033347,-89140.95907335954,-30378.026842826061,-2047.138038612326,0,0,0]
[197]
[198,null,"Miscellaneous Expenses"]
[199,null,"4311","Interest on Customer Deposits",null,"F80",null,0,0,0,0,0,0,0,0,0,0,0]
[200]
[201,null,"DFA","Divergence Fairness Adjustment"]
[202,null,null,"Production ",null,"F105",null,0,0,0,0,0,0,0,0,0,0,0]
[203,null,null,"Transmission",null,"F105",null,0,0,0,0,0,0,0,0,0,0,0]
[204,null,null,"Distribution",null,"F105",null,0,0,0,0,0,0,0,0,0,0,0]
[205,null,null,null,null,null,null,0,0,0,0,0,0,0,0,0,0,0]
[206]
[207,null,"Net Miscellaneous Revenues And Expense",null,null,null,null,-853313.31999234774,-362039.5276678013,-115155.34818112872,-182453.7076075864,-72098.612581033347,-89140.95907335954,-30378.026842826061,-2047.138038612326,0,0,0]
[208]
[209,null,"Generation - Total -  Unbundled"]
[210,null,null,null,null,null,null,"STEAM POWER GENERATION"]
[211]
[212,null,"A",null,"B","C",null,"D","E","F","G","H","I","J","K","S","T"]
[213,null,null,null,null,null,null,"Washington",null,"Small General","Large General","Large General","Large General","Agricultural","Street & Area"]
[214,null,"FERC",null,null,"COS",null,"Jurisdiction","Residential","Service","Service <1,000 kW","Service >1,000 kW","Dedicated Facilities","Pumping","Lighting","-","-"]
[215,null,"ACCT",null,"DESCRIPTION ","Factor",null,"Normalized","Schedule 16","Schedule 24","Schedule 36","Schedule 48T","Schedule 48T","Schedule 40","Sch. 15,51-54,57","-","-"]
[216,null,"500","Operation Suprvn & Engineering",null,"F10",null,7026.3699678522535,2981.113273144812,948.21451996636881,1502.364045681061,593.67586828215724,734.00630584814633,250.1393690806992,16.85658584900867,0,0,0]
[217,null,null,null,"JBG","F10",null,3607647.0253847498,1530634.5212965338,486854.99170049257,771379.7032101067,304819.27226293035,376871.08393413242,128432.54125877505,8654.9117217787698,0,0,0]
[218,null,null,null,"Total 500",null,null,3614673.395352602,1533615.6345696785,487803.20622045896,772882.06725578778,305412.9481312125,377605.09023998055,128682.68062785575,8671.768307627779,0,0,0]
[219]
[220,null,"501","Fuel Related",null,"F10",null,4788.4193593390519,2031.6067293383073,646.20120844579196,1023.8500269739003,404.5857297382891,500.21988891577689,170.46813687850806,11.487639048478165,0,0,0]
[221,null,null,null,"CAGW","F10",null,412249.83472986781,174907.30772615728,55633.460938306249,88146.415911746983,34832.036983848222,43065.477573916149,14676.12921533539,989.00638055752529,0,0,0]
[222,null,null,null,"JBE","F10",null,293322.24345246662,124449.30131284386,39584.082754434807,62717.561753468879,24783.542336206105,30641.764855067318,10442.29684036445,703.69360008119247,0,0,0]
[223,null,null,null,"Total 501",null,null,710360.49754167348,301388.21576833946,95863.744901186845,151887.82769218978,60020.165049792617,74207.462317899248,25288.894192578347,1704.1876196871958,0,0,0]
[224]
[225,null,"501NPC","Fuel Related"]
[226,null,null,null,"CAEW","F10",null,47552446.991143696,20175315.496394936,6417242.602258835,10167566.890231116,4017827.1832500398,4967543.1424340736,1692871.1615001871,114080.5150745092,0,0,0]
[227,null,null,null,"Total 501NPC",null,null,47552446.991143696,20175315.496394936,6417242.602258835,10167566.890231116,4017827.1832500398,4967543.1424340736,1692871.1615001871,114080.5150745092,0,0,0]
[228]
[229,null,"502","Steam Expenses",null,"F10",null,867177.1405524679,367921.60044184641,117026.28239288538,185418.04134472166,73270.002039088489,90589.236314784954,30871.580035132061,2080.3979840089037,0,0,0]
[230,null,null,null,"JBG","F10",null,214953.74891334938,91199.506563087576,29008.1886910867,45960.970647619208,18161.988923228429,22455.038361198807,7652.3717624780293,515.68396465062403,0,0,0]
[231,null,null,null,"Total 502",null,null,1082130.8894658173,459121.10700493399,146034.47108397208,231379.01199234085,91431.990962316922,113044.27467598376,38523.951797610091,2596.0819486595278,0,0]
[232]
[233,null,"503","Steam From Other Sources",null,"F10",null,0,0,0,0,0,0,0,0,0,0,0]
[234]
[235,null,"503NPC","Steam From Other Sources-NPC",null,"F10",null,0,0,0,0,0,0,0,0,0,0,0]
[236]
[237,null,"505","Electric Expenses",null,"F10",null,0,0,0,0,0,0,0,0,0,0,0]
[238,null,null,null,"JBG","F10",null,14367.984125098681,6095.976781700585,1938.9715076772811,3072.1329587292821,1213.9875198657592,1500.9444419238491,511.50145814372218,34.469457058201463,0,0,0]
[239,null,null,null,"Total 505",null,null,14367.984125098681,6095.976781700585,1938.9715076772811,3072.1329587292821,1213.9875198657592,1500.9444419238491,511.50145814372218,34.469457058201463,0,0,0]
[240]
[241,null,"506","Misc. Steam Expense",null,"F10",null,-2857179.56565679,-1212229.9232616622,-385578.77861576609,-610916.28695001453,-241410.36797665525,-298473.8674063299,-101715.83579765804,-6854.5056487039383,0,0,0]
[242,null,null,null,"JBG","F10",null,246721.08759898369,104677.59488486985,33295.217689022495,52753.397987288379,20846.092160532353,25773.597876560732,8783.2917243579159,591.89527635196498,0,0,0]
[243,null,null,null,"Total 506",null,null,-2610458.4780578064,-1107552.3283767924,-352283.56092674361,-558162.88896272611,-220564.27581612288,-272700.26952976914,-92932.544073300131,-6262.6103723519736,0,0,0]
[244]
[245,null,"507","Rents",null,"F10",null,51257.14259279886,21747.125304529938,6917.1943807187354,10959.697321390404,4330.8463365392317,5354.5523584736875,1824.758640336905,122.96825080995521,0,0,0]
[246,null,null,null,"JBG","F10",null,4491.9284726725,1905.8130518558924,606.18951463217081,960.45495241364586,379.5344606783259,469.24711329544061,159.9130360699439,10.776343727080349,0,0,0]
[247,null,null,null,"Total 507",null,null,55749.071065471362,23652.938356385832,7523.3838953509057,11920.152273804049,4710.3807972175573,5823.7994717691281,1984.671676406849,133.74459453703557,0,0,0]
[248]
[249,null,"510","Maint Supervision & Engineering",null,"F10",null,107787.92598277348,45731.724674642588,14546.071009859921,23046.993724492055,9107.2759961309112,11260.013026304199,3837.2593420510593,258.58820929274168,0,0,0]
[250,null,null,null,"JBG","F10",null,51258.22716226639,21747.585460264705,6917.3407442779744,10959.929221814167,4330.9379745718561,5354.6656574932294,1824.7972511022892,122.97085274216519,0,0,0]
[251,null,null,null,"Total 510",null,null,159046.15314503986,67479.310134907297,21463.411754137895,34006.922946306222,13438.213970702767,16614.678683797429,5662.0565931533483,381.5590620349069,0,0,0]
[252]
[253,null,"511","Maintenance of Structures",null,"F10",null,1906029.9299606474,808680.89058991068,257220.33757804116,407543.41855986381,161045.31626122887,199112.48541244393,67854.827785992675,4572.6537731662502,0,0,0]
[254,null,null,null,"JBG","F10",null,84299.326370806361,35766.098556007833,11376.264793044444,18024.709429490133,7122.6644779263033,8806.2879435647592,3001.0631960455926,202.23797472729061,0,0,0]
[255,null,null,null,"Total 511",null,null,1990329.2563314538,844446.98914591852,268596.60237108561,425568.12798935396,168167.98073915517,207918.77335600869,70855.890982038269,4774.8917478935409,0,0,0]
[256]
[257,null,"512","Maintenance of Boiler Plant",null,"F10",null,5301481.4858841449,2249286.1743987557,715439.37271279341,1133551.9207894385,447935.65364678676,553816.67330074008,188733.19226562427,12718.498770006021,0,0,0]
[258,null,null,null,"JBG","F10",null,594620.49854772724,252282.62514142194,80244.534969305212,127140.53799192682,50240.998180970557,62116.739869593199,21168.54037429002,1426.5220202194828,0,0,0]
[259,null,null,null,"Total 512",null,null,5896101.9844318721,2501568.7995401775,795683.90768209868,1260692.4587813653,498176.6518277573,615933.41317033325,209901.73263991429,14145.020790225504,0,0,0]
[260]
[261,null,"513","Maintenance of Electric Plant",null,"F10",null,2052737.7911420735,870925.37162971578,277018.6864839358,438912.19317124609,173441.0365647705,214438.25045432901,73077.64013475916,4924.6127033170742,0,0,0]
[262,null,null,null,"JBG","F10",null,72890.828322092624,30925.757794665456,9836.6784134070804,15585.367726444407,6158.7314633179494,7614.5047687070019,2594.9196941918271,174.86846135889994,0,0,0]
[263,null,null,null,"Total 513",null,null,2125628.619464166,901851.12942438119,286855.36489734286,454497.56089769048,179599.76802808847,222052.75522303602,75672.559828950994,5099.4811646759745,0,0,0]
[264]
[265,null,"514","Maint of Misc. Steam Plant",null,"F10",null,663511.66890561418,281511.42796507303,89541.456186050156,141870.70703854974,56061.788370829308,69313.422323165243,23621.071904425233,1591.7951175214409,0,0,0]
[266,null,null,null,"JBG","F10",null,75739.922015921969,32134.557084479118,10221.165996838356,16194.555108829602,6399.4586354196445,7912.1339494633576,2696.3476722639971,181.7035686278933,0,0,0]
[267,null,null,null,"Total 514",null,null,739251.59092153609,313645.98504955217,99762.622182888517,158065.26214737934,62461.247006248952,77225.556272628601,26317.41957668923,1773.4986861493342,0,0,0]
[268]
[269,null,"Total Steam Power Generation",null,null,null,null,61329627.954930618,26020629.253794119,8276484.7278282903,13113375.526203336,5181896.2414662745,6406769.6207576655,2183339.976800228,147132.60808070621,0,0,0]
[270]
[271]
[272,null,null,null,null,null,null,"NUCLEAR POWER GENERATION"]
[273]
[274]
[275,null,"517","Operation Super & Engineering",null,"F10",null,0,0,0,0,0,0,0,0,0,0,0]
[276]
[277,null,"518","Nuclear Fuel Expense",null,"F10",null,0,0,0,0,0,0,0,0,0,0,0]
[278]
[279,null,"519","Coolants and Water",null,"F10",null,0,0,0,0,0,0,0,0,0,0,0]
[280]
[281,null,"520","Steam Expenses",null,"F10",null,0,0,0,0,0,0,0,0,0,0,0]
[282]
[283,null,"523","Electric Expenses",null,"F10",null,0,0,0,0,0,0,0,0,0,0,0]
[284]
[285,null,"524","Misc. Nuclear Expenses",null,"F10",null,0,0,0,0,0,0,0,0,0,0,0]
[286]
[287,null,"528","Maint Supervision & Eng",null,"F10",null,0,0,0,0,0,0,0,0,0,0,0]
[288]
[289,null,"529","Maintenance of Structures",null,"F10",null,0,0,0,0,0,0,0,0,0,0,0]
[290]
[291,null,"530","Maintenance of Reactor Plant",null,"F10",null,0,0,0,0,0,0,0,0,0,0,0]
[292]
[293,null,"531","Maintenance of Electric Plant",null,"F10",null,0,0,0,0,0,0,0,0,0,0,0]
[294]
[295,null,"532","Maintenance of Misc Nuclear",null,"F10",null,0,0,0,0,0,0,0,0,0,0,0]
[296]
[297,null,"Total Nuclear Power Generation",null,null,null,null,0,0,0,0,0,0,0,0,0,0,0]
[298]
[299]
[300]
[301,null,"Generation - Total -  Unbundled",null,null,null,null,"HYDRAULIC POWER GENERATION"]
[302]
[303,null,"A",null,"B","C",null,"D","E","F","G","H","I","J","K","S","T"]
[304,null,null,null,null,null,null,"Washington",null,"Small General","Large General","Large General","Large General","Agricultural","Street & Area"]
[305,null,"FERC",null,null,"COS",null,"Jurisdiction","Residential","Service","Service <1,000 kW","Service >1,000 kW","Dedicated Facilities","Pumping","Lighting","-","-"]
[306,null,"ACCT",null,"DESCRIPTION ","Factor",null,"Normalized","Schedule 16","Schedule 24","Schedule 36","Schedule 48T","Schedule 48T","Schedule 40","Sch. 15,51-54,57","-","-"]
[307,null,"535","Operation Super & Engineering",null,"F10",null,1324908.6690741614,562125.65480506758,178797.5360525242,283289.25993582443,111944.9030019678,138405.93680986747,47166.861421767986,3178.517047141921,0,0,0]
[308]
[309,null,"536","Water For Power",null,"F10",null,49738.774633946021,21102.919705285414,6712.2893512621031,10635.042992066508,4202.5555661317485,5195.9367914746681,1770.7046117278915,119.32561599768522,0,0,0]
[310]
[311,null,"537","Hydraulic Expenses",null,"F10",null,795689.46794934163,337591.16657080554,107378.9610205372,170132.69350227309,67229.826771018401,83121.311522725984,28326.612804000117,1908.8957579812629,0,0,0]
[312]
[313,null,"538","Electric Expenses",null,"F10",null,0,0,0,0,0,0,0,0,0,0,0]
[314]
[315,null,"539","Misc. Hydro Expenses",null,"F10",null,3250316.327707991,1379028.0316553551,438632.91436652828,694975.98478026327,274627.49284087936,339542.70718086133,115711.53799834583,7797.6588857577253,0,0,0]
[316]
[317,null,"540","Rents (Hydro Generation)",null,"F10",null,-44352.135913791084,-18817.503443437454,-5985.3579383656615,-9483.282925736281,-3747.4247611867058,-4633.2242093007362,-1578.93981467194,-106.40282109230384,0,0,0]
[318]
[319,null,"541","Maint Supervision & Engineering",null,"F10",null,87.7907815933156,37.247435797575633,11.847439603500323,18.771245239218725,7.4176664092614155,9.1710211075788344,3.1253592992294288,0.21061413695123718,0,0,0]
[320]
[321,null,"542","Maintenance of Structures",null,"F10",null,209229.25596829882,88770.747192517389,28235.663567192438,44736.971282406776,17678.311955579829,21857.032002485146,7448.5793262508842,501.95064186634357,0,0,0]
[322]
[323,null,"543","Maint of Dams & Waterways",null,"F10",null,363225.0548296136,154107.318152263,49017.525775161717,77664.037812308103,30689.8086486213,37944.127893463236,12930.84287691644,871.39367087978644,0,0,0]
[324]
[325,null,"544","Maintenance of Electric Plant",null,"F10",null,446990.68112780293,189646.98109818535,60321.767295808335,95574.632584593215,37767.379450088374,46694.66311968962,15912.906304937642,1072.3512745003959,0,0,0]
[326]
[327,null,"545","Maint of Misc. Hydro Plant",null,"F10",null,448827.46446306718,190426.28238828253,60569.642747357066,95967.369838001832,37922.573945453456,46886.541793418619,15978.295948056788,1076.7578024968677,0,0,0]
[328]
[329,null,"Total Hydraulic Power Generation ",null,null,null,null,6844661.3506220235,2904018.8455601218,923692.78967760911,1463511.4810472403,578322.84508496302,715024.20392579283,243670.52683663089,16420.658489666635,0,0,0]
[330]
[331]
[332,null,null,null,null,null,null,"OTHER POWER GENERATION"]
[333]
[334]
[335,null,"546","Operation Super & Engineering",null,"F10",null,0,0,0,0,0,0,0,0,0,0,0]
[336,null,null,null,"CAGE","F10",null,33980.406268012215,14417.037619126184,4585.684324210768,7265.6209206560798,2871.090945686281,3549.746539126063,1209.7053562331207,81.520562973717944,0,0,0]
[337,null,null,null,"Total 546",null,null,33980.406268012215,14417.037619126184,4585.684324210768,7265.6209206560798,2871.090945686281,3549.746539126063,1209.7053562331207,81.520562973717944,0,0,0]
[338]
[339,null,"547","Fuel","SE","F10",null,0,0,0,0,0,0,0,0,0,0,0]
[340,null,null,null,"SSECT","F10",null,null,0,0,0,0,0,0,0,0,0,0]
[341,null,null,null,"Total 547",null,null,0,0,0,0,0,0,0,0,0,0,0]
[342]
[343]
[344,null,"547NPC","Fuel","CAEW","F10",null,22341081.551404446,9478762.8681699578,3014947.6921537351,4776924.3319133287,1887654.7988614845,2333850.1691807541,795344.40534974483,53597.28577544092,0,0,0]
[345,null,null,null,"SE","F10",null,null,0,0,0,0,0,0,0,0,0,0]
[346,null,null,null,"Total 547NPC",null,null,22341081.551404446,9478762.8681699578,3014947.6921537351,4776924.3319133287,1887654.7988614845,2333850.1691807541,795344.40534974483,53597.28577544092,0,0,0]
[347]
[348,null,"548","Generation Expense",null,"F10",null,-1987.2203102535568,-843.12794098012102,-268.17704749049403,-424.90337950204628,-167.90529797825837,-207.59399882290569,-70.745212236969465,-4.7674332427619035,0,0,0]
[349,null,null,null,"CAGE","F10",null,2473508.9668660378,1049448.0714941637,333802.10953598726,528880.62477375404,208993.06332096842,258393.90575195829,88057.129814991393,5934.0621742146841,0,0,0]
[350,null,null,null,"Total 548",null,null,2471521.7465557843,1048604.9435531837,333533.93248849676,528455.72139425203,208825.15802299016,258186.31175313538,87986.38460275442,5929.2947409719218,0,0,0]
[351]
[352,null,"549","Miscellaneous Other",null,"F10",null,137533.22300106776,58351.911223398551,18560.22378896278,29407.072253355691,11620.531790437506,14367.340946787701,4896.1944484170081,329.94854970852015,0,0,0]
[353,null,null,null,"CAGE","F10",null,1416409.9515347558,600947.3634399788,191145.71085994903,302853.87687621644,119676.07906617509,147964.57357772303,50424.314867784589,3398.0328469287724,0,0,0]
[354,null,null,"Total 549",null,null,null,1553943.1745358235,659299.27466337732,209705.93464891182,332260.94912957214,131296.61085661259,162331.91452451074,55320.509316201598,3727.9813966372926,0,0,0]
[355]
[356,null,"550","Maint Supervision & Engineering"]
[357,null,null,null,"SG","F10",null,363.54944032853217,154.24494681697414,49.061301870293121,77.733397255768296,30.717216804412942,37.978014666124132,12.942391028296125,0.87217188666342904,0,0,0]
[358,null,null,null,"CAGE","F10",null,435600.51958666736,184814.42005900029,58784.65544324692,93139.211556068578,36804.995733639313,45504.795459137429,15507.415584314829,1045.025751259991,0,0,0]
[359,null,null,null,"Total 550",null,null,435964.06902699592,184968.66500581725,58833.716745117214,93216.944953324346,36835.712950443725,45542.773473803551,15520.357975343126,1045.8979231466544,0,0,0]
[360]
[361,null,"552","Maintenance of Structures"]
[362,null,null,null,"SG","F10",null,0,0,0,0,0,0,0,0,0,0,0]
[363,null,null,null,"CAGE","F10",null,703.86259142440781,298.63131650706265,94.986847021063838,150.49845870543615,59.471140436253393,73.528661730013297,25.057568181571945,1.6885988430065439,0,0,0]
[364,null,null,null,"Total 552",null,null,703.86259142440781,298.63131650706265,94.986847021063838,150.49845870543615,59.471140436253393,73.528661730013297,25.057568181571945,1.6885988430065439,0,0,0]
[365]
[366,null,"553","Maint of Generation & Elect Plant"]
[367,null,null,null,"SG","F10",null,0,0,0,0,0,0,0,0,0,0,0]
[368,null,null,null,"CAGE","F10",null,1293734.1639492284,548899.0909553325,174590.51044079667,276623.59105475416,109310.88977992161,135149.30736278603,46057.046385122914,3103.727970514431,0,0,0]
[369,null,null,null,"Total 553",null,null,1293734.1639492284,548899.0909553325,174590.51044079667,276623.59105475416,109310.88977992161,135149.30736278603,46057.046385122914,3103.727970514431,0,0,0]
[370]
[371,null,"554","Maintenance of Misc. Other"]
[372,null,null,null,"SG","F10",null,0,0,0,0,0,0,0,0,0,0,0]
[373,null,null,null,"CAGE","F10",null,286438.15081312502,121528.55275639221,38655.068679274656,61245.619154971493,24201.887841254254,29922.62148083021,10197.222556292221,687.17834410996988,0,0,0]
[374,null,null,null,"Total 554",null,null,286438.15081312502,121528.55275639221,38655.068679274656,61245.619154971493,24201.887841254254,29922.62148083021,10197.222556292221,687.17834410996988,0,0,0]
[375]
[376,null,"Total Other Power Generation",null,null,null,null,28417367.125144839,12056779.064039694,3834947.5263275639,6076143.2769795647,2401055.6203988292,2968606.3729766761,1011660.6891098738,68174.575312637913,0,0,0]
[377]
[378]
[379,null,null,null,null,null,null,"OTHER POWER SUPPLY"]
[380]
[381]
[382,null,"555","Purchased Power",null,"F10",null,0,0,0,0,0,0,0,0,0,0,0]
[383,null,null,null,"Demand","F10",null,0,0,0,0,0,0,0,0,0,0,0]
[384,null,null,null,"Energy","F10",null,0,0,0,0,0,0,0,0,0,0,0]
[385,null,null,null,"SSGP","F10",null,0,0,0,0,0,0,0,0,0,0,0]
[386,null,null,null,"Total 555",null,null,0,0,0,0,0,0,0,0,0,0,0]
[387]
[388,null,"555NPC","Purchased Power",null,"F10",null,0,0,0,0,0,0,0,0,0,0,0]
[389,null,null,null,"Demand","F10",null,52857876.823488072,22426276.855575223,7133214.8076377958,11301963.038379615,4466096.4427308179,5521772.2778187552,1881744.9152359578,126808.48610990588,0,0,0]
[390,null,null,null,"Energy","F10",null,2853158.8619296518,1210524.0390991152,385036.18127574574,610056.58830823714,241070.6484931616,298053.84655585239,101572.69840264918,6844.8597948903725,0,0,0]
[391,null,null,null,"SSGP","F10",null,0,0,0,0,0,0,0,0,0,0,0]
[392,null,null,null,"Total 555NPC",null,null,55711035.685417727,23636800.894674338,7518250.9889135417,11912019.626687853,4707167.0912239794,5819826.1243746076,1983317.6136386071,133653.34590479624,0,0,0]
[393]
[394,null,"556","System Control & Load Dispatch",null,"F10",null,142079.36095449454,60280.72400389758,19173.728918486595,30379.118165993874,12004.646548012119,14842.251027005243,5058.0373466171995,340.85494448192247,0,0,0]
[395]
[396,null,"557","Other Expenses",null,"F10",null,2901650.0249375319,1231097.6283542234,391580.10439173598,620424.8695359003,245167.79018003956,303119.45220835035,103298.98793426748,6961.1923330146719,0,0,0]
[397,null,null,null,"CAGE/JBG","F10",null,1180771.9899890956,500972.06210592791,159346.17032690631,252470.2502178571,99766.428412863665,123348.76904948721,42035.583374542373,2832.7265015109892,0,0,0]
[398,null,null,null,"Total 557",null,null,4082422.0149266273,1732069.6904601513,550926.27471864223,872895.11975375738,344934.21859290323,426468.22125783755,145334.57130880986,9793.9188345256607,0,0,0]
[399]
[400,null,"Embedded Cost Differentials"]
[401,null,"Company Owned Hydro",null,"DGP","F10",null,0,0,0,0,0,0,0,0,0,0,0]
[402,null,"Company Owned Hydro",null,"SG","F10",null,0,0,0,0,0,0,0,0,0,0,0]
[403,null,"Mid-C Contract",null,"MC","F10",null,0,0,0,0,0,0,0,0,0,0,0]
[404,null,"Mid-C Contract",null,"SG","F10",null,0,0,0,0,0,0,0,0,0,0,0]
[405,null,"Existing QF Contracts",null,"S ","F10",null,0,0,0,0,0,0,0,0,0,0,0]
[406,null,"Existing QF Contracts",null,"SG","F10",null,0,0,0,0,0,0,0,0,0,0,0]
[407,null,"Total Embedded Cost Differential",null,null,null,null,0,0,0,0,0,0,0,0,0,0,0]
[408]
[409,null,"Total Other Power Supply",null,null,null,null,59935537.061298847,25429151.309138387,8088350.9925506702,12815293.864607604,5064105.9563648943,6261136.5966594508,2133710.222294034,143788.11968380382,0,0,0]
[410]
[411,null,"TOTAL PRODUCTION EXPENSE",null,null,null,null,156527193.49199635,66410578.472532324,21123476.036384132,33468324.148837745,13225380.663314961,16351536.794319585,5572381.4150407668,375515.96156681457,0,0,0]
[412]
[413,null,"Generation - Total -  Unbundled",null,null,null,null,"TRANSMISSION EXPENSE"]
[414]
[415]
[416,null,"A",null,"B","C",null,"D","E","F","G","H","I","J","K","S","T"]
[417,null,null,null,null,null,null,"Washington",null,"Small General","Large General","Large General","Large General","Agricultural","Street & Area"]
[418,null,"FERC",null,null,"COS",null,"Jurisdiction","Residential","Service","Service <1,000 kW","Service >1,000 kW","Dedicated Facilities","Pumping","Lighting","-","-"]
[419,null,"ACCT",null,"DESCRIPTION ","Factor",null,"Normalized","Schedule 16","Schedule 24","Schedule 36","Schedule 48T","Schedule 48T","Schedule 40","Sch. 15,51-54,57","-","-"]
[420,null,"560","Operation Supervision & Eng",null,"F106",null,0,0,0,0,0,0,0,0,0,0,0]
[421]
[422,null,"561","Load Dispatching",null,"F106",null,0,0,0,0,0,0,0,0,0,0,0]
[423]
[424,null,"562","Station Expense",null,"F106",null,0,0,0,0,0,0,0,0,0,0,0]
[425]
[426,null,"563","Overhead Line Expense",null,"F106",null,0,0,0,0,0,0,0,0,0,0,0]
[427]
[428,null,"564","Underground Line Expense",null,"F106",null,0,0,0,0,0,0,0,0,0,0,0]
[429]
[430,null,"565","Transm of Electricity by Others",null,"F10",null,0,0,0,0,0,0,0,0,0,0,0]
[431,null,null,"Energy",null,"F10",null,0,0,0,0,0,0,0,0,0,0,0]
[432,null,null,null,null,null,null,0,0,0,0,0,0,0,0,0,0,0]
[433,null,"565NPC","Transm of Electricity by Others",null,"F10",null,0,0,0,0,0,0,0,0,0,0,0]
[434,null,null,"Energy",null,"F10",null,0,0,0,0,0,0,0,0,0,0,0]
[435]
[436,null,"566","Misc. Transmission Expense",null,"F106",null,0,0,0,0,0,0,0,0,0,0,0]
[437]
[438,null,"567","Rents - Transmission",null,"F106",null,0,0,0,0,0,0,0,0,0,0,0]
[439]
[440,null,"568","Maint Supervision & Engineering",null,"F106",null,0,0,0,0,0,0,0,0,0,0,0]
[441]
[442,null,"569","Maintenance of Structures",null,"F106",null,0,0,0,0,0,0,0,0,0,0,0]
[443]
[444,null,"570","Maint of Station Equipment",null,"F106",null,0,0,0,0,0,0,0,0,0,0,0]
[445]
[446,null,"571","Maintenance of Overhead Lines",null,"F106",null,0,0,0,0,0,0,0,0,0,0,0]
[447]
[448,null,"572","Maint of Underground Lines",null,"F106",null,0,0,0,0,0,0,0,0,0,0,0]
[449]
[450,null,"573","Maint of Misc Transmission Plant",null,"F106",null,0,0,0,0,0,0,0,0,0,0,0]
[451]
[452]
[453,null,"TOTAL TRANSMISSION EXPENSE",null,null,null,null,0,0,0,0,0,0,0,0,0,0,0]
[454]
[455]
[456]
[457]
[458]
[459]
[460]
[461]
[462]
[463]
[464]
[465,null,"Generation - Total -  Unbundled",null,null,null,null,"DISTRIBUTION EXPENSE"]
[466]
[467]
[468,null,"A",null,"B","C",null,"D","E","F","G","H","I","J","K","S","T"]
[469,null,null,null,null,null,null,"Washington",null,"Small General","Large General","Large General","Large General","Agricultural","Street & Area"]
[470,null,"FERC",null,null,"COS",null,"Jurisdiction","Residential","Service","Service <1,000 kW","Service >1,000 kW","Dedicated Facilities","Pumping","Lighting","-","-"]
[471,null,"ACCT",null,"DESCRIPTION ","Factor",null,"Normalized","Schedule 16","Schedule 24","Schedule 36","Schedule 48T","Schedule 48T","Schedule 40","Sch. 15,51-54,57","-","-"]
[472,null,"580","Operation Supervision & Eng",null,"F131",null,0,0,0,0,0,0,0,0,0,0,0]
[473]
[474,null,"581","Load Dispatching",null,"F20",null,0,0,0,0,0,0,0,0,0,0,0]
[475]
[476,null,"582","Station Expense",null,"F120",null,0,0,0,0,0,0,0,0,0,0,0]
[477]
[478,null,"583","Overhead Line Expenses",null,"F132",null,0,0,0,0,0,0,0,0,0,0,0]
[479]
[480,null,"584","Underground Line Expense",null,"F133",null,0,0,0,0,0,0,0,0,0,0,0]
[481]
[482,null,"585","Street Lighting & Signal Systems",null,"F130",null,0,0,0,0,0,0,0,0,0,0,0]
[483]
[484,null,"586","Meter Expenses",null,"F127",null,0,0,0,0,0,0,0,0,0,0,0]
[485]
[486,null,"587","Customer Installation Expenses",null,"F20",null,0,0,0,0,0,0,0,0,0,0,0]
[487]
[488,null,"588","Misc. Distribution Expenses",null,"F131",null,0,0,0,0,0,0,0,0,0,0,0]
[489]
[490,null,"589","Rents",null,"F131",null,0,0,0,0,0,0,0,0,0,0,0]
[491]
[492,null,"590","Maint Supervision & Engineering",null,"F131",null,0,0,0,0,0,0,0,0,0,0,0]
[493]
[494,null,"591","Maintenance of Structures",null,"F119",null,0,0,0,0,0,0,0,0,0,0,0]
[495]
[496,null,"592","Maint of Station Equipment",null,"F120",null,0,0,0,0,0,0,0,0,0,0,0]
[497]
[498,null,"593","Maintenance of Overhead Lines",null,"F134",null,0,0,0,0,0,0,0,0,0,0,0]
[499]
[500,null,"594","Maint of Underground Lines",null,"F135",null,0,0,0,0,0,0,0,0,0,0,0]
[501]
[502,null,"595","Maint of Line Transformers",null,"F125",null,0,0,0,0,0,0,0,0,0,0,0]
[503]
[504,null,"596","Maint of Street Lighting & Signals",null,"F130",null,0,0,0,0,0,0,0,0,0,0,0]
[505]
[506,null,"597","Maintenance of Meters",null,"F127",null,0,0,0,0,0,0,0,0,0,0,0]
[507]
[508,null,"598","Maint of Misc. Distribution Plant",null,"F131",null,0,0,0,0,0,0,0,0,0,0,0]
[509]
[510,null,"TOTAL DISTRIBUTION EXPENSE",null,null,null,null,0,0,0,0,0,0,0,0,0,0,0]
[511]
[512]
[513,null,null,null,null,null,null,"CUSTOMER ACCOUNTS EXPENSE"]
[514]
[515]
[516,null,"901","Supervision",null,"F136",null,0,0,0,0,0,0,0,0,0,0,0]
[517]
[518,null,"902","Meter Reading Expense",null,"F41",null,0,0,0,0,0,0,0,0,0,0,0]
[519]
[520,null,"903","Customer Receipts & Collections",null,"F42",null,0,0,0,0,0,0,0,0,0,0,0]
[521]
[522,null,"904","Uncollectible Accounts",null,"F80",null,0,0,0,0,0,0,0,0,0,0,0]
[523]
[524,null,"905","Misc. Customer Accounts Exp",null,"F136",null,0,0,0,0,0,0,0,0,0,0,0]
[525]
[526,null,"TOTAL CUSTOMER ACCOUNTS EXPENSE",null,null,null,null,0,0,0,0,0,0,0,0,0,0,0]
[527]
[528,null,"Generation - Total -  Unbundled",null,null,null,null,"CUSTOMER SERVICE EXPENSE"]
[529]
[530,null,"A",null,"B","C",null,"D","E","F","G","H","I","J","K","S","T"]
[531,null,null,null,null,null,null,"Washington",null,"Small General","Large General","Large General","Large General","Agricultural","Street & Area"]
[532,null,"FERC",null,null,"COS",null,"Jurisdiction","Residential","Service","Service <1,000 kW","Service >1,000 kW","Dedicated Facilities","Pumping","Lighting","-","-"]
[533,null,"ACCT",null,"DESCRIPTION ","Factor",null,"Normalized","Schedule 16","Schedule 24","Schedule 36","Schedule 48T","Schedule 48T","Schedule 40","Sch. 15,51-54,57","-","-"]
[534,null,"907","Supervision",null,"F40",null,0,0,0,0,0,0,0,0,0,0,0]
[535]
[536,null,"908","Customer Assistance",null,"F40",null,0,0,0,0,0,0,0,0,0,0,0]
[537]
[538,null,"909","Informational & Instructional Adv",null,"F40",null,0,0,0,0,0,0,0,0,0,0,0]
[539]
[540,null,"910","Misc. Customer Service",null,"F40",null,0,0,0,0,0,0,0,0,0,0,0]
[541]
[542,null,"TOTAL CUSTOMER SERVICE EXPENSE",null,null,null,null,0,0,0,0,0,0,0,0,0,0,0]
[543]
[544]
[545,null,null,null,null,null,null,"SALES EXPENSE"]
[546]
[547]
[548,null,"911","Supervision",null,"F40",null,0,0,0,0,0,0,0,0,0,0,0]
[549]
[550,null,"912","Demonstration & Selling Expense",null,"F40",null,0,0,0,0,0,0,0,0,0,0,0]
[551]
[552,null,"913","Advertising Expense",null,"F40",null,0,0,0,0,0,0,0,0,0,0,0]
[553]
[554,null,"916","Misc. Sales Expense",null,"F40",null,0,0,0,0,0,0,0,0,0,0,0]
[555]
[556,null,"TOTAL SALES EXPENSE",null,null,null,null,0,0,0,0,0,0,0,0,0,0,0]
[557]
[558]
[559,null,null,null,null,null,null,"ADMINISTRATION & GENERAL EXPENSE"]
[560]
[561]
[562,null,"920","Administrative & General Salaries",null,"F102G",null,2526613.5786189148,1071979.0318173494,340968.6214292752,540235.34416974429,213480.00702538784,263941.45307362941,89947.658514720621,6061.4625888080345,0,0,0]
[563,null,null,null,"Customer - System","F42",null,0,0,0,0,0,0,0,0,0,0,0]
[564,null,null,null,"Administrative & General Salaries",null,null,2526613.5786189148,1071979.0318173494,340968.6214292752,540235.34416974429,213480.00702538784,263941.45307362941,89947.658514720621,6061.4625888080345,0,0,0]
[565]
[566,null,"921","Office Supplies & expenses",null,"F102G",null,-562361.11718071357,-238595.7754001407,-75891.10439885591,-120242.90309318705,-47515.32100613755,-58746.779355916166,-20020.103651060515,-1349.1302754157009,0,0,0]
[567,null,null,null,"Customer - System","F42",null,0,0,0,0,0,0,0,0,0,0,0]
[568,null,null,null,"Office Supplies & expenses",null,null,-562361.11718071357,-238595.7754001407,-75891.10439885591,-120242.90309318705,-47515.32100613755,-58746.779355916166,-20020.103651060515,-1349.1302754157009,0,0,0]
[569]
[570,null,"923","Outside Services",null,"F102G",null,238870.33633297964,101346.717218262,32235.752221486793,51074.766419694635,20182.762219775359,24953.472981165603,8503.8043108751881,573.06096172007221,0,0,0]
[571,null,null,null,"Customer - System","F42",null,-131959.05691119199,-106473.65063503914,-18084.151837367845,-1098.2817825183786,-225.24807163783137,-3.889514514829334,-3221.5210230059379,-2852.3140471080164,0,0,0]
[572,null,null,null,"Outside Services",null,null,106911.27942178765,-5126.9334167771449,14151.600384118949,49976.484637176254,19957.514148137529,24949.583466650773,5282.2832878692498,-2279.2530853879443,0,0,0]
[573]
[574,null,"924","Property Insurance",null,"F102G",null,290745.89664448891,123356.22171404297,39236.402591993799,62166.692551986467,24565.860242148989,30372.628044486672,10350.578674650271,697.51282517975756,0,0,0]
[575]
[576,null,"925","Injuries & Damages",null,"F102G",null,342216.74896103831,145194.01871633259,46182.437279164573,73172.084849110324,28914.763456761597,35749.505484840716,12182.945399347942,820.99377548058089,0,0,0]
[577]
[578,null,"926","Employee Pensions & Benefits",null,"F138G",null,0,0,0,0,0,0,0,0,0,0,0]
[579]
[580,null,"927","Franchise Requirements",null,"F102",null,0,0,0,0,0,0,0,0,0,0,0]
[581]
[582,null,"928","Regulatory Commission Expense",null,"F141",null,286215.17950173549,126793.66591021448,42783.764381131296,57923.279309632606,21765.054843467657,23609.91717002913,11764.429511156448,1575.068376103894,0,0,0]
[583]
[584,null,"929","Duplicate Charges",null,"F138G",null,-189110.67073876515,-80234.934000347741,-25520.643617615835,-40435.256565260963,-15978.441523279933,-19755.353825733098,-6732.3559791830821,-453.68522734449846,0,0,0]
[585]
[586,null,"930","Misc General Expenses",null,"F138G",null,344004.99671766395,145952.72757273196,46423.762813670684,73554.444324432014,29065.857057650192,35936.313913060047,12246.607171735232,825.28386438378038,0,0,0]
[587]
[588,null,"931","Rents",null,"F102G",null,198888.23670312006,84383.311015612853,26840.134344655398,42525.875708051681,16804.572938239973,20776.762477215827,7080.4381599761118,477.14205936822879,0,0,0]
[589]
[590,null,"935","Maintenance of General Plant",null,"F108",null,527755.18925183569,250613.30743711305,73436.002266944488,100934.8825500728,38935.430837994361,40329.778876583485,20522.697130295517,2983.0901528319423,0,0,0]
[591]
[592,null,"TOTAL ADMINISTRATIVE & GEN EXPENSE",null,null,null,null,3871879.3179011066,1624314.6413661316,528610.97747448261,839810.9284417585,329995.29802037065,397163.80932484684,142625.17821950777,9358.4850540080752,0,0,0]
[593]
[594]
[595,null,"TOTAL O & M EXPENSE",null,null,null,null,160399072.80989745,68034893.113898456,21652087.013858613,34308135.077279501,13555375.961335331,16748700.603644433,5715006.5932602743,384874.44662082265,0,0,0]
[596]
[597,null,"Generation - Total -  Unbundled",null,null,null,null,"DEPRECIATION EXPENSE"]
[598]
[599,null,"A",null,"B","C",null,"D","E","F","G","H","I","J","K","S","T"]
[600,null,null,null,null,null,null,"Washington",null,"Small General","Large General","Large General","Large General","Agricultural","Street & Area"]
[601,null,"FERC",null,null,"COS",null,"Jurisdiction","Residential","Service","Service <1,000 kW","Service >1,000 kW","Dedicated Facilities","Pumping","Lighting","-","-"]
[602,null,"ACCT",null,"DESCRIPTION ","Factor",null,"Normalized","Schedule 16","Schedule 24","Schedule 36","Schedule 48T","Schedule 48T","Schedule 40","Sch. 15,51-54,57","-","-"]
[603,null,"403SP","Steam Depreciation",null,"F10",null,657177.9961168766,278824.20880288124,88686.721731349564,140516.45408596625,55526.640248901109,68651.778289705209,23395.592613897257,1576.6003441759776,0,0,0]
[604,null,null,null,"JBG","F10",null,6980936.8357505603,2961837.1300199004,942083.28068584693,1492649.6263628984,589837.10740382923,729260.1559002141,248521.94570970192,16747.589668169127,0,0,0]
[605,null,null,null,"Total 403SP",null,null,7638114.8318674369,3240661.3388227816,1030770.0024171965,1633166.0804488647,645363.74765273032,797911.93418991927,271917.53832359915,18324.190012345105,0,0,0]
[606]
[607,null,"403NP","Nuclear Depreciation",null,"F10",null,0,0,0,0,0,0,0,0,0,0,0]
[608]
[609,null,"403HP","Hydro Depreciation",null,"F10",null,5403611.9978192989,2292617.599603516,729221.97095222434,1155389.2578212766,456564.92034191027,564485.68733257835,192369.04718590784,12963.514581885389,0,0,0]
[610]
[611,null,"403OP","Other Production Depreciation",null,"F10",null,0,0,0,0,0,0,0,0,0,0,0]
[612,null,null,null,"CAGE","F10",null,9179801.7903933171,3894760.6071681115,1238821.9504366475,1962806.4305559422,775624.79964824568,958963.50909691839,326801.72530635254,22022.768181099316,0,0,0]
[613,null,null,null,"CAEE","F10",null,0,0,0,0,0,0,0,0,0,0,0]
[614,null,null,null,"Total 403OP",null,null,9179801.7903933171,3894760.6071681115,1238821.9504366475,1962806.4305559422,775624.79964824568,958963.50909691839,326801.72530635254,22022.768181099316,0,0,0]
[615]
[616,null,"403TP","Transmission Depreciation",null,"F106",null,0,0,0,0,0,0,0,0,0,0,0]
[617]
[618,null,"403","Distribution Depreciation"]
[619,null,null,null,"Land Rights","F118",null,0,0,0,0,0,0,0,0,0,0,0]
[620,null,null,null,"Structures","F119",null,0,0,0,0,0,0,0,0,0,0,0]
[621,null,null,null,"Station Equip","F120",null,0,0,0,0,0,0,0,0,0,0,0]
[622,null,null,null,"Poles & Towers","F121",null,0,0,0,0,0,0,0,0,0,0,0]
[623,null,null,null,"OH Conductors","F122",null,0,0,0,0,0,0,0,0,0,0,0]
[624,null,null,null,"UG Conduit","F123",null,0,0,0,0,0,0,0,0,0,0,0]
[625,null,null,null,"UG Conductor","F124",null,0,0,0,0,0,0,0,0,0,0,0]
[626,null,null,null,"Line Transformer","F125",null,0,0,0,0,0,0,0,0,0,0,0]
[627,null,null,null,"Services","F126",null,0,0,0,0,0,0,0,0,0,0,0]
[628,null,null,null,"Meters","F127",null,0,0,0,0,0,0,0,0,0,0,0]
[629,null,null,null,"Inst Cust Premises","F128",null,0,0,0,0,0,0,0,0,0,0,0]
[630,null,null,null,"Leased Property","F129",null,0,0,0,0,0,0,0,0,0,0,0]
[631,null,null,null,"Street Lighting","F130",null,0,0,0,0,0,0,0,0,0,0,0]
[632,null,null,"Total Distribution Expense",null,null,null,0,0,0,0,0,0,0,0,0,0,0]
[633]
[634,null,"403GP","General Depreciation"]
[635,null,null,null,"Situs","F107G",null,0,0,0,0,0,0,0,0,0,0,0]
[636,null,null,null,"System Generation","F105G",null,421931.7230588448,179015.09111056133,56940.039888209612,90216.577458364263,35650.084352064623,44076.891307963931,15020.805264162975,1012.2336775180638,0,0,0]
[637,null,null,null,"System Overheads","F102G",null,513343.42921405722,217798.79475653014,69276.126298098199,109762.04137647503,43373.691886416753,53626.170530841686,18275.069786081458,1231.5345796139857,0,0,0]
[638,null,null,null,"Customer - System","F42",null,0,0,0,0,0,0,0,0,0,0,0]
[639,null,null,null,"Energy","F10",null,230.47406133172814,97.784387456845266,31.102667868365135,49.279492083551638,19.473339591233149,24.076360215292052,8.2048962059717567,0.55291791046913685,0,0,0]
[640,null,null,null,"CAEE","F105G",null,0,0,0,0,0,0,0,0,0,0,0]
[641,null,null,null,"CAEE","F105G",null,0,0,0,0,0,0,0,0,0,0,0]
[642,null,null,"Total General Expense",null,null,null,935505.62633423368,396911.67025454831,126247.26885417619,200027.89832692285,79043.249578072602,97727.138199020905,33304.079946450402,2244.3211750425185,0,0,0]
[643]
[644,null,"403GV0","General Vehicles",null,"F105G",null,0,0,0,0,0,0,0,0,0,0,0]
[645]
[646,null,"403MP","Mining Depreciation",null,"F10",null,0,0,0,0,0,0,0,0,0,0,0]
[647]
[648,null,"403EP","Experimental Plant Depreciation",null,"F10",null,0,0,0,0,0,0,0,0,0,0,0]
[649]
[650]
[651,null,"TOTAL DEPRECIATION EXPENSE",null,null,null,null,23157034.246414289,9824951.2158489581,3125061.1926602446,4951389.6671530064,1956596.7172209588,2419088.2688184371,824392.39076231001,55554.793950372325,0,0,0]
[652]
[653,null,null,null,null,null,null,"AMORTIZATION EXPENSE"]
[654]
[655]
[656,null,"404GP","Amort of LT Plant - Cap. Lease Gen"]
[657,null,null,"Division",null,"F10",null,5130.3389650790123,2176.6746776079608,692.34354599806704,1096.9585772676417,433.47538680859731,535.93835347920174,182.64050395388685,12.307919963656987,0,0,0]
[658,null,null,"System Overheads",null,"F102G",null,44281.089293521502,18787.360137054959,5975.7701373756217,9468.0918828010927,3741.4218515519965,4625.8023588252172,1576.4105489414337,106.23237697118074,0,0,0]
[659,null,null,"Customer - System",null,"F42",null,0,0,0,0,0,0,0,0,0,0,0]
[660,null,null,"Total Amort. Cap. Lease General",null,null,null,49411.428258600514,20964.034814662919,6668.1136833736891,10565.050460068735,4174.8972383605942,5161.7407123044186,1759.0510528953205,118.54029693483773,0,0,0]
[661]
[662,null,"404SP","Amort of LT Plant - Cap Lease Steam",null,"F10",null,0,0,0,0,0,0,0,0,0,0,0]
[663]
[664,null,"404IP","Amort of LT Plant - Intangible Plant"]
[665,null,null,null,"Situs","F107G",null,4.6365628058422272,1.9671777867527824,0.62570803919388118,0.99138036950944897,0.39175498332669362,0.4843562682466383,0.16506203064495376,1.1123328167829183E-2,0,0,0]
[666,null,null,null,"System Generation","F105G",null,2896156.2162102857,1228766.7425352521,390838.71029650234,619250.1945979984,244703.60430863709,302545.54416374525,103103.40787583464,6948.0124323159362,0,0,0]
[667,null,null,null,"System Overheads","F102G",null,539309.13909814088,228815.39689052367,72780.220623613524,115313.9763199686,45567.600751381899,56338.6657279266,19199.45126867545,1293.8275160511625,0,0,0]
[668,null,null,null,"Customer - System","F42",null,0,0,0,0,0,0,0,0,0,0,0]
[669,null,null,null,"Energy","F10",null,0,0,0,0,0,0,0,0,0,0,0]
[670,null,null,null,"CAEW","F105G",null,0,0,0,0,0,0,0,0,0,0,0]
[671,null,null,null,"CAEE","F105G",null,0,0,0,0,0,0,0,0,0,0,0]
[672,null,null,"Total Amort. Intangible Plant",null,null,null,3435469.9918712322,1457584.1066035626,463619.55662815506,734565.16229833651,290271.59681500233,358884.69424794009,122303.02420654074,8241.851071695266,0,0,0]
[673]
[674,null,"Generation - Total -  Unbundled",null,null,null,null,"AMORTIZATION EXPENSE (continued)"]
[675]
[676]
[677,null,"A",null,"B","C",null,"D","E","F","G","H","I","J","K","S","T"]
[678,null,null,null,null,null,null,"Washington",null,"Small General","Large General","Large General","Large General","Agricultural","Street & Area"]
[679,null,"FERC",null,null,"COS",null,"Jurisdiction","Residential","Service","Service <1,000 kW","Service >1,000 kW","Dedicated Facilities","Pumping","Lighting","-","-"]
[680,null,"ACCT",null,"DESCRIPTION ","Factor",null,"Normalized","Schedule 16","Schedule 24","Schedule 36","Schedule 48T","Schedule 48T","Schedule 40","Sch. 15,51-54,57","-","-"]
[681,null,"404MP",null,"Amort of LT Plant - Mining Plant","F10",null,0,0,0,0,0,0,0,0,0,0,0]
[682]
[683,null,"404OP",null,"Amort of LT Plant - Other Plant","F30",null,0,0,0,0,0,0,0,0,0,0,0]
[684]
[685,null,"404HP",null,"Amort of Other Electric Plant","F110",null,52718.945847581628,25008.151362075758,7197.2942236672361,9934.2340354277494,3886.9497789877819,4538.061702650044,1882.716179893376,271.53856487968983,0,0,0]
[686]
[687,null,"405",null,"Amort of Other Electric Plant","F110",null,0,0,0,0,0,0,0,0,0,0,0]
[688]
[689,null,"406",null,"Amort of Plant Acquisition Adj","F10",null,0,0,0,0,0,0,0,0,0,0,0]
[690]
[691,null,"407",null,"Amort of Prop Losses, Unrec Plant,","F110",null,322905.22191917192,153175.72336719531,44083.656286110163,60847.49977894219,23807.691159103513,27795.772423327544,11531.696548654985,1663.1823558382457,0,0,0]
[692]
[693]
[694,null,"TOTAL AMORTIZATION EXPENSE",null,null,null,null,3860505.5878965864,1656732.0161474964,521568.62082130613,815911.94657277525,322141.13499145419,396380.26908622211,137476.48798798441,10295.112289348039,0,0,0]
[695]
[696]
[697,null,null,null,null,null,null,"TAX OTHER THAN INCOME"]
[698]
[699]
[700,null,"408","Taxes Other Than Income",null,"F101G",null,4149640.501330696,1757700.0059025236,559977.14659770729,888808.44298489753,351236.92414856638,434305.7628483703,147803.09074279922,9809.1281058315853,0,0,0]
[701,null,null,null,"Customer - System","F101G",null,5963498.0404476449,2526011.7201798949,804749.86094819859,1277317.2534763042,504766.7884051986,624146.01093054377,212409.59108003115,14096.815427473295,0,0,0]
[702,null,null,"Total Taxes Other Than Income",null,null,null,10113138.541778341,4283711.7260824181,1364727.0075459059,2166125.6964612016,856003.71255376493,1058451.773778914,360212.68182283035,23905.943533304882,0,0,0]
[703]
[704]
[705,null,null,null,null,null,null,"DEFERRED  ITC"]
[706]
[707]
[708,null,"41140","Deferred I T C - Federal",null,"F101G",null,0,0,0,0,0,0,0,0,0,0,0]
[709]
[710,null,"41141","Deferred I T C - Idaho",null,"F101G",null,0,0,0,0,0,0,0,0,0,0,0]
[711]
[712,null,"TOTAL DEFERRED ITC",null,null,null,null,0,0,0,0,0,0,0,0,0,0,0]
[713]
[714]
[715,null,null,null,null,null,null,"DEFERRED INCOME TAXES"]
[716]
[717]
[718,null,"41010","Deferred Income Tax - Federal-DR",null,"F101G",null,24221364.705708809,10259658.125213273,3268574.877813091,5187956.2685362268,2050162.5707541811,2535033.642641597,862723.54541659472,57255.67533384532,0,0,0]
[719]
[720,null,"41011","Deferred Income Tax - State-DR",null,"F101G",null,0,0,0,0,0,0,0,0,0,0,0]
[721]
[722,null,"41110","Deferred Income Tax - Federal-CR",null,"F101G",null,-11410799.324173609,-4833373.4050023649,-1539841.0642803209,-2444070.7037825449,-965841.27116892114,-1194266.3234575819,-406433.13738090446,-26973.41910097079,0,0,0]
[723]
[724,null,"41111","Deferred Income Tax - State-CR",null,"F101G",null,0,0,0,0,0,0,0,0,0,0,0]
[725]
[726,null,"TOTAL DEFERRED INCOME TAXES",null,null,null,null,12810565.3815352,5426284.720210908,1728733.8135327701,2743885.5647536819,1084321.29958526,1340767.319184015,456290.40803569026,30282.25623287453,0,0,0]
[727]
[728]
[729,null,null,null,null,null,null,"INCOME TAXES"]
[730]
[731]
[732,null,"40911","State Income Taxes",null,"F101G",null,0,0,0,0,0,0,0,0,0,0,0]
[733]
[734,null,"40910","Federal Income Tax",null,"F101G",null,-11934722.088213939,-5055296.0137562659,-1610542.3152322543,-2556289.3347703861,-1010187.5272057825,-1249100.6339568153,-425094.36931433063,-28211.893978104108,0,0,0]
[735]
[736]
[737,null,"TOTAL OPERATING EXPENSES",null,null,null,null,197552281.15931559,83809237.250764161,26666479.985005457,42246704.909842186,16692152.685899952,20625146.64148185,7037906.1657119328,474653.520610006,0,0,0]
[738]
[739]
[740,null,"Generation - Total -  Unbundled",null,null,null,null,"STEAM PRODUCTION PLANT"]
[741]
[742,null,"A",null,"B","C",null,"D","E","F","G","H","I","J","K","S","T"]
[743,null,null,null,null,null,null,"Washington",null,"Small General","Large General","Large General","Large General","Agricultural","Street & Area"]
[744,null,"FERC",null,null,"COS",null,"Jurisdiction","Residential","Service","Service <1,000 kW","Service >1,000 kW","Dedicated Facilities","Pumping","Lighting","-","-"]
[745,null,"ACCT",null,"DESCRIPTION ","Factor",null,"Normalized","Schedule 16","Schedule 24","Schedule 36","Schedule 48T","Schedule 48T","Schedule 40","Sch. 15,51-54,57","-","-"]
[746,null,"310","Land and Land Rights",null,"F10",null,306781.9222076381,130159.90681367715,41400.477690672073,65595.48271702553,25920.78482533422,32047.823620288593,10921.462550005643,735.98399063487659,0,0,0]
[747,null,null,null,"JBG","F10",null,385239.46455809165,163447.48232555296,51988.38883084173,82371.113843641317,32549.862114361062,40243.852450262646,13714.557737557167,924.20725587476682,0,0,0]
[748,null,null,null,"Total 310",null,null,692021.38676572975,293607.38913923013,93388.866521513803,147966.59656066686,58470.646939695282,72291.676070551242,24636.020287562809,1660.1912465096434,0,0,0]
[749]
[750,null,"311","Structures and Improvements",null,"F10",null,14718166.427065782,6244550.3855943223,1986228.9030150832,3147008.2218190813,1243575.313154263,1537526.0650117719,523967.97790827311,35309.56056298691,0,0,0]
[751,null,null,null,"JBG","F10",null,31619964.235479675,13415561.023691146,4267140.6922889156,6760916.0363678429,2671651.1952027464,3303164.1154286247,1125673.4189069211,75857.753593477537,0,0,0]
[752,null,null,null,"Total 311",null,null,46338130.662545457,19660111.409285467,6253369.5953039993,9907924.2581869252,3915226.5083570094,4840690.1804403961,1649641.3968151943,111167.31415646445,0,0,0]
[753]
[754,null,"312","Boiler Plant Equipment",null,"F10",null,-624870.24957361817,-265116.8389253816,-84326.764239803611,-133608.47784423063,-52796.876577323237,-65276.765331521347,-22245.434086275625,-1499.0925690821314,0,0,0]
[755,null,null,null,"JBG","F10",null,161979666.17012841,68723926.438353628,21859291.797122546,34634160.697320528,13686073.946800608,16921126.688749384,5766489.9066058081,388596.69517589349,0,0,0]
[756,null,null,null,"Total 312",null,null,161354795.92055479,68458809.599428251,21774965.032882743,34500552.219476297,13633277.070223285,16855849.923417863,5744244.4725195328,387097.60260681133,0,0,0]
[757]
[758,null,"314","Turbogenerator Units",null,"F10",null,12119310.181035571,5141920.5944670364,1635511.0730309058,2591326.0983622507,1023991.3394293349,1266037.8169823126,431448.47428296949,29074.784480760292,0,0,0]
[759,null,null,null,"JBG","F10",null,39540511.960887395,16776051.584652511,5336025.2505573286,8454471.3400591444,3340878.4163234448,4130580.2638551984,1407645.5922868915,94859.513152875821,0,0,0]
[760,null,null,null,"Total 314",null,null,51659822.141922966,21917972.17911955,6971536.3235882344,11045797.438421395,4364869.7557527795,5396618.0808375105,1839094.066569861,123934.29763363612,0,0,0]
[761]
[762,null,"315","Accessory Electric Equipment",null,"F10",null,2998453.4131122138,1272168.8880079682,404643.80281199317,641123.17186827864,253346.9546405221,313231.97085920098,106745.1967951269,7193.4281291237994,0,0,0]
[763,null,null,null,"JBG","F10",null,13335680.873541016,5657996.2968685618,1799661.3181179524,2851407.9902924225,1126765.5927536117,1393105.3870978644,474751.37449796754,31992.91391263585,0,0,0]
[764,null,null,null,"Total 315",null,null,16334134.28665323,6930165.1848765295,2204305.1209299457,3492531.1621607011,1380112.5473941339,1706337.3579570653,581496.57129309443,39186.34204175965,0,0,0]
[765]
[766,null,"316","Misc Power Plant Equipment",null,"F10",null,498733.58128393465,211600.20120361639,67304.515067089058,106638.19359397725,42139.268678548426,52099.959904692383,17754.957955886595,1196.4848801245139,0,0,0]
[767,null,null,null,"JBG","F10",null,867460.91800169577,368042.00012537901,117064.57839765426,185478.71805810931,73293.979117486015,90618.880987374607,30881.682536485387,2081.0787792071078,0,0,0]
[768,null,null,null,"Total 316",null,null,1366194.4992856304,579642.2013289954,184369.09346474332,292116.91165208654,115433.24779603444,142718.840892067,48636.640492371982,3277.5636593316217,0,0,0]
[769]
[770,null,"SP","Unclassified Steam Plant - Acct 300",null,"F10",null,197156.55059380142,83648.599853372667,26606.441851889907,42155.61012839264,16658.258374781799,20595.862733848335,7018.7899870486062,472.98766446747356,0,0,0]
[771]
[772]
[773]
[774,null,"Total Steam Production Plant",null,null,null,null,277942255.44832158,117923956.56303141,37508540.474543072,59429044.196586475,23484048.034837715,29035101.9223493,9894767.9579646662,666796.29900898028,0,0,0]
[775]
[776]
[777,null,null,null,null,null,null,"NUCLEAR PRODUCTION"]
[778]
[779]
[780,null,"320","Land and Land Rights",null,"F10",null,0,0,0,0,0,0,0,0,0,0,0]
[781]
[782,null,"321","Structures and Improvements",null,"F10",null,0,0,0,0,0,0,0,0,0,0,0]
[783]
[784,null,"322","Reactor Plant Equipment",null,"F10",null,0,0,0,0,0,0,0,0,0,0,0]
[785]
[786,null,"323","Turbogenerator Units",null,"F10",null,0,0,0,0,0,0,0,0,0,0,0]
[787]
[788,null,"324","Land and Land Rights",null,"F10",null,0,0,0,0,0,0,0,0,0,0,0]
[789]
[790,null,"325","Misc. Power Plant Equipment",null,"F10",null,0,0,0,0,0,0,0,0,0,0,0]
[791]
[792,null,"NP","Unclassified Nuclear Plt - Acct 300",null,"F10",null,0,0,0,0,0,0,0,0,0,0,0]
[793]
[794,null,"Total Nuclear Production Plant",null,null,null,null,0,0,0,0,0,0,0,0,0,0,0]
[795]
[796]
[797,null,null,null,null,null,null,"HYDRAULIC PRODUCTION PLANT"]
[798]
[799]
[800,null,"330","Land and Land Rights",null,"F10",null,6515134.992287498,2764209.0426068613,879222.93125654047,1393052.8295485156,550480.32500685961,680600.39389766078,231939.36042404664,15630.109547013244,0,0,0]
[801]
[802,null,"331","Structures and Improvements",null,"F10",null,28839076.823929302,12235699.955796342,3891857.6038537407,6166312.3816619962,2436686.9453552919,3012660.0706272903,1026673.5902909656,69186.276343674384,0,0,0]
[803]
[804,null,"332","Reservoirs, Dams & Waterways",null,"F10",null,103763388.21253854,44024213.823376201,14002956.262508193,22186475.295466807,8767232.5645851493,10839591.654387821,3693985.4547815383,248933.1574328295,0,0,0]
[805]
[806,null,"333","Water Wheel, Turbines, & Generators",null,"F10",null,17793902.257539757,7549508.2729336601,2401302.0328644798,3804655.7619940173,1503452.0557849002,1858831.3058431291,633464.43534130394,42688.392778265836,0,0,0]
[807]
[808,null,"334","Accessory Electric Equipment",null,"F10",null,12476121.21194754,5293306.6024801182,1683663.0208991328,2667618.7027080469,1054139.2108847948,1303311.9070008914,444150.97736232774,29930.790612227829,0,0,0]
[809]
[810,null,"335","Misc. Power Plant Equipment",null,"F10",null,495178.87370834715,210092.02756855069,66824.804298537434,105878.13329557182,41838.922395036236,51728.619114516914,17628.410063547868,1187.9569725861741,0,0,0]
[811]
[812,null,"336","Roads, Railroads & Bridges",null,"F10",null,3412004.7371286065,1447628.3851298827,460452.90082103579,729547.8695555171,288288.95776417974,356433.40787557088,121467.65913987138,8185.55684254883,0,0,0]
[813]
[814,null,"HP","Unclassified Hydro Plant - Acct 300",null,"F10",null,0,0,0,0,0,0,0,0,0,0,0]
[815]
[816,null,"Total Hydraulic Plant",null,null,null,null,173294807.10907957,73524658.109891608,23386279.556501664,37053540.974230476,14642118.981776211,18103157.358746883,6169309.8874036018,415742.24052914575,0,0,0]
[817]
[818,null,"Generation - Total -  Unbundled",null,null,null,null,"OTHER PRODUCTION PLANT"]
[819,null,"A",null,"B","C",null,"D","E","F","G","H","I","J","K","S","T"]
[820,null,null,null,null,null,null,"Washington",null,"Small General","Large General","Large General","Large General","Agricultural","Street & Area"]
[821,null,"FERC",null,null,"COS",null,"Jurisdiction","Residential","Service","Service <1,000 kW","Service >1,000 kW","Dedicated Facilities","Pumping","Lighting","-","-"]
[822,null,"ACCT",null,"DESCRIPTION ","Factor",null,"Normalized","Schedule 16","Schedule 24","Schedule 36","Schedule 48T","Schedule 48T","Schedule 40","Sch. 15,51-54,57","-","-"]
[823,null,"340","Land and Land Rights"]
[824,null,null,null,"SG","F10",null,637169.99365856522,270335.31311841187,85986.625019491839,136238.38395063384,53836.113236179575,66561.652088121948,22683.306022899986,1528.6002228261486,0,0,0]
[825,null,null,null,"CAGE","F10",null,0,0,0,0,0,0,0,0,0,0,0]
[826,null,null,null,"Total 340",null,null,637169.99365856522,270335.31311841187,85986.625019491839,136238.38395063384,53836.113236179575,66561.652088121948,22683.306022899986,1528.6002228261486,0,0,0]
[827]
[828,null,"341","Structures and Improvements"]
[829,null,null,null,"SG","F10",null,12828483.809288759,5442805.2512418162,1731214.6489262201,2742960.1520923376,1083911.2228744577,1340121.2935798538,456695.11582782766,30776.12474624547,0,0,0]
[830,null,null,null,"CAGE","F10",null,0,0,0,0,0,0,0,0,0,0,0]
[831,null,null,null,"Total 341",null,null,12828483.809288759,5442805.2512418162,1731214.6489262201,2742960.1520923376,1083911.2228744577,1340121.2935798538,456695.11582782766,30776.12474624547,0,0,0]
[832]
[833,null,"342","Fuel Holders, Producers & Access"]
[834,null,null,null,"SG","F10",null,367152.61981028365,155773.68587109708,49547.553963233513,78503.821717942439,31021.658602552292,38354.419050295299,13070.664524621188,880.81608054183584,0,0,0]
[835,null,null,null,"CAGE","F10",null,0,0,0,0,0,0,0,0,0,0,0]
[836,null,null,null,"Total 342",null,null,367152.61981028365,155773.68587109708,49547.553963233513,78503.821717942439,31021.658602552292,38354.419050295299,13070.664524621188,880.81608054183584,0,0,0]
[837]
[838,null,"343","Prime Movers",null,"F10",null,213520416.54425099,90591379.440562397,28814759.285784218,45654498.454054587,18040883.026064645,22305305.995538011,7601345.0081042051,512245.33414292033,0,0,0]
[839,null,null,null,"CAGE","F10",null,0,0,0,0,0,0,0,0,0,0,0]
[840,null,null,null,"Total 343",null,null,213520416.54425099,90591379.440562397,28814759.285784218,45654498.454054587,18040883.026064645,22305305.995538011,7601345.0081042051,512245.33414292033,0,0,0]
[841]
[842,null,"344","Generators"]
[843,null,null,null,"SG","F10",null,32370717.088822149,13734086.707108112,4368455.4194812719,6921440.4749064762,2735084.2131213346,3381591.1454609339,1152400.2844050131,77658.844339005678,0,0,0]
[844,null,null,null,"CAGE","F10",null,0,0,0,0,0,0,0,0,0,0,0]
[845,null,null,null,"Total 344",null,null,32370717.088822149,13734086.707108112,4368455.4194812719,6921440.4749064762,2735084.2131213346,3381591.1454609339,1152400.2844050131,77658.844339005678,0,0,0]
[846]
[847,null,"345","Accessory Electric Plant"]
[848,null,null,null,"SG","F10",null,19621147.05551821,8324762.5999134602,2647890.2508068085,4195353.504882683,1657840.6158759797,2049713.540934768,698514.50572096417,47072.037383546027,0,0,0]
[849,null,null,null,"CAGE","F10",null,0,0,0,0,0,0,0,0,0,0,0]
[850,null,null,null,"Total 345",null,null,19621147.05551821,8324762.5999134602,2647890.2508068085,4195353.504882683,1657840.6158759797,2049713.540934768,698514.50572096417,47072.037383546027,0,0,0]
[851]
[852,null,"346","Misc. Power Plant Equipment",null,"F10",null,998517.07243625529,423645.85293980816,134750.71635144457,213500.87676716622,84367.246912042552,104309.59813083573,35547.292792477063,2395.4885424809827,0,0,0]
[853]
[854,null,"OP","Unclassified Other Prod - Acct 300",null,"F10",null,0,0,0,0,0,0,0,0,0,0,0]
[855]
[856,null,"Total Other Production Plant",null,null,null,null,280343604.18378526,118942788.85075511,37832604.500332683,59942495.668371826,23686944.096687194,29285957.644782819,9980256.1773980074,672557.24545756646,0,0,0]
[857]
[858,null,"Experimental Plant"]
[859,null,"103","Experimental Plant",null,"F10",null,0,0,0,0,0,0,0,0,0,0,0]
[860]
[861,null,"TOTAL PRODUCTION PLANT",null,null,null,null,731580666.74118638,310391403.52367812,98727424.53137742,156425080.83918878,61813111.113301128,76424216.925879002,26044334.022766277,1755095.7849956923,0,0,0]
[862]
[863,null,null,null,null,null,null,"TRANSMISSION PLANT"]
[864,null,"350","Land and Land Rights"]
[865,null,null,null,"Demand","F10",null,0,0,0,0,0,0,0,0,0,0,0]
[866,null,null,null,"Direct Assigned","A",0,0,0,0,0,0,0,0,0,0,0,0]
[867,null,null,null,null,null,null,0,0,0,0,0,0,0,0,0,0,0]
[868,null,"352","Structures and Improvements"]
[869,null,null,null,"Demand","F10",null,0,0,0,0,0,0,0,0,0,0,0]
[870,null,null,null,"Direct Assigned","A",0,0,0,0,0,0,0,0,0,0,0,0]
[871,null,null,null,null,null,null,0,0,0,0,0,0,0,0,0,0,0]
[872,null,"353","Station Equipment"]
[873,null,null,null,"Demand","F10",null,0,0,0,0,0,0,0,0,0,0,0]
[874,null,null,null,"Direct Assigned","A",0,0,0,0,0,0,0,0,0,0,0,0]
[875,null,null,null,null,null,null,0,0,0,0,0,0,0,0,0,0,0]
[876,null,"354","Towers and Fixtures"]
[877,null,null,null,"Demand","F10",null,0,0,0,0,0,0,0,0,0,0,0]
[878,null,null,null,"Direct Assigned","A",0,0,0,0,0,0,0,0,0,0,0,0]
[879,null,null,null,null,null,null,0,0,0,0,0,0,0,0,0,0,0]
[880,null,"355","Poles and Fixtures"]
[881,null,null,null,"Demand","F10",null,0,0,0,0,0,0,0,0,0,0,0]
[882,null,null,null,"Direct Assigned","A",0,0,0,0,0,0,0,0,0,0,0,0]
[883,null,null,null,null,null,null,0,0,0,0,0,0,0,0,0,0,0]
[884,null,"356","Overhead Conductors"]
[885,null,null,null,"Demand","F10",null,0,0,0,0,0,0,0,0,0,0,0]
[886,null,null,null,"Direct Assigned","A",0,0,0,0,0,0,0,0,0,0,0,0]
[887,null,null,null,null,null,null,0,0,0,0,0,0,0,0,0,0,0]
[888,null,"357","Underground Conduit"]
[889,null,null,null,"Demand","F10",null,0,0,0,0,0,0,0,0,0,0,0]
[890,null,null,null,"Direct Assigned","A",0,0,0,0,0,0,0,0,0,0,0,0]
[891,null,null,null,null,null,null,0,0,0,0,0,0,0,0,0,0,0]
[892,null,"358","Underground Conductors "]
[893,null,null,null,"Demand","F10",null,0,0,0,0,0,0,0,0,0,0,0]
[894,null,null,null,"Direct Assigned","A",0,0,0,0,0,0,0,0,0,0,0,0]
[895,null,null,null,null,null,null,0,0,0,0,0,0,0,0,0,0,0]
[896,null,"359","Roads and Trails"]
[897,null,null,null,"Demand","F10",null,0,0,0,0,0,0,0,0,0,0,0]
[898,null,null,null,"Direct Assigned","A",0,0,0,0,0,0,0,0,0,0,0,0]
[899,null,null,null,null,null,null,0,0,0,0,0,0,0,0,0,0,0]
[900]
[901,null,"TP","Unclassified Trans Plant - Acct 300",null,"F10",null,0,0,0,0,0,0,0,0,0,0,0]
[902,null,"TS0","Unclassified Trans Sub - Acct 300",null,"F10",null,0,0,0,0,0,0,0,0,0,0,0]
[903]
[904,null,"TOTAL TRANSMISSION PLANT",null,null,null,null,0,0,0,0,0,0,0,0,0,0,0]
[905,null,"Generation - Total -  Unbundled",null,null,null,null,"DISTRIBUTION PLANT"]
[906,null,"A",null,"B","C",null,"D","E","F","G","H","I","J","K","S","T"]
[907,null,null,null,null,null,null,"Washington",null,"Small General","Large General","Large General","Large General","Agricultural","Street & Area"]
[908,null,"FERC",null,null,"COS",null,"Jurisdiction","Residential","Service","Service <1,000 kW","Service >1,000 kW","Dedicated Facilities","Pumping","Lighting","-","-"]
[909,null,"ACCT",null,"DESCRIPTION ","Factor",null,"Normalized","Schedule 16","Schedule 24","Schedule 36","Schedule 48T","Schedule 48T","Schedule 40","Sch. 15,51-54,57","-","-"]
[910]
[911,null,"360","Land and Land Rights"]
[912,null,null,null,"Demand Primary","F20A",null,0,0,0,0,0,0,0,0,0,0]
[913,null,null,null,"Assigned","A",0,0,0,0,0,0,0,0,0,0,0,0]
[914,null,null,null,null,null,null,0,0,0,0,0,0,0,0,0,0,0]
[915,null,"361","Structures and Improvements"]
[916,null,null,null,"Demand Primary","F20",null,0,0,0,0,0,0,0,0,0,0,0]
[917,null,null,null,"Assigned","A",0,0,0,0,0,0,0,0,0,0,0,0]
[918,null,null,null,null,null,null,0,0,0,0,0,0,0,0,0,0,0]
[919,null,"362","Station Equipment"]
[920,null,null,null,"Demand Primary","F20A",null,0,0,0,0,0,0,0,0,0,0,0]
[921,null,null,null,"Assigned","A",0,0,0,0,0,0,0,0,0,0,0,0]
[922,null,null,null,null,null,null,0,0,0,0,0,0,0,0,0,0,0]
[923,null,"364","Poles, Towers & Fixtures"]
[924,null,null,null,"Demand Primary","F20A",0,0,0,0,0,0,0,0,0,0,0,0]
[925,null,null,null,"Demand Secondary","F22",0,0,0,0,0,0,0,0,0,0,0,0]
[926,null,null,null,"Assigned","A",0,0,0,0,0,0,0,0,0,0,0,0]
[927,null,null,null,null,null,null,0,0,0,0,0,0,0,0,0,0,0]
[928,null,"365","Overhead Conductors"]
[929,null,null,null,"Demand Primary","F20A",0,0,0,0,0,0,0,0,0,0,0,0]
[930,null,null,null,"Demand Secondary","F22",0,0,0,0,0,0,0,0,0,0,0,0]
[931,null,null,null,"Assigned","A",0,0,0,0,0,0,0,0,0,0,0,0]
[932,null,null,null,null,null,null,0,0,0,0,0,0,0,0,0,0,0]
[933,null,"366","Underground Conduit"]
[934,null,null,null,"Demand Primary","F20A",0,0,0,0,0,0,0,0,0,0,0,0]
[935,null,null,null,"Demand Secondary","F22",0,0,0,0,0,0,0,0,0,0,0,0]
[936,null,null,null,"Assigned","A",0,0,0,0,0,0,0,0,0,0,0,0]
[937,null,null,null,null,null,null,0,0,0,0,0,0,0,0,0,0,0]
[938,null,"367","Underground Conductors "]
[939,null,null,null,"Demand Primary","F20A",0,0,0,0,0,0,0,0,0,0,0,0]
[940,null,null,null,"Demand Secondary","F22",0,0,0,0,0,0,0,0,0,0,0,0]
[941,null,null,null,"Assigned","A",0,0,0,0,0,0,0,0,0,0,0,0]
[942,null,null,null,null,null,null,0,0,0,0,0,0,0,0,0,0,0]
[943,null,"368","Line Transformers"]
[944,null,null,null,"Demand Secondary","F21",null,0,0,0,0,0,0,0,0,0,0,0]
[945,null,null,null,"Assigned","A",0,0,0,0,0,0,0,0,0,0,0,0]
[946,null,null,null,null,null,null,0,0,0,0,0,0,0,0,0,0,0]
[947,null,"369","Services"]
[948,null,null,null,"Customer","F70",null,0,0,0,0,0,0,0,0,0,0,0]
[949,null,null,null,"Assigned","A",0,0,0,0,0,0,0,0,0,0,0,0]
[950,null,null,null,null,null,null,0,0,0,0,0,0,0,0,0,0,0]
[951,null,"370","Meters"]
[952,null,null,null,"Customer","F60A",null,0,0,0,0,0,0,0,0,0,0,0]
[953,null,null,null,"Assigned","A",0,0,0,0,0,0,0,0,0,0,0,0]
[954,null,null,null,null,null,null,0,0,0,0,0,0,0,0,0,0,0]
[955,null,"371","Install on Customers' Premises"]
[956,null,null,null,"Demand Primary","F20",0,0,0,0,0,0,0,0,0,0,0,0]
[957,null,null,null,"Demand Secondary","F22",0,0,0,0,0,0,0,0,0,0,0,0]
[958,null,null,null,"Assigned","A",0,0,0,0,0,0,0,0,0,0,0,0]
[959,null,null,null,null,null,null,0,0,0,0,0,0,0,0,0,0,0]
[960,null,"372","Leased Property"]
[961,null,null,null,"Demand Primary","F20",0,0,0,0,0,0,0,0,0,0,0,0]
[962,null,null,null,"Demand Secondary","F22",0,0,0,0,0,0,0,0,0,0,0,0]
[963,null,null,null,"Assigned","A",0,0,0,0,0,0,0,0,0,0,0,0]
[964,null,null,null,null,null,null,0,0,0,0,0,0,0,0,0,0,0]
[965]
[966,null,"373","Street Lights",null,"A",0,0,0,0,0,0,0,0,0,0,0,0]
[967]
[968]
[969,null,"DP","Unclassified Dist Plant - Acct 300",null,"F22",0,0,0,0,0,0,0,0,0,0,0,0]
[970,null,"DS0","Unclassified Dist Sub  - Acct 300",null,"F20",0,0,0,0,0,0,0,0,0,0,0,0]
[971,null,"TOTAL DISTRIBUTION PLANT",null,null,null,null,0,0,0,0,0,0,0,0,0,0,0]
[972]
[973,null,"Generation - Total -  Unbundled",null,null,null,null,"GENERAL PLANT"]
[974]
[975,null,"A",null,"B","C",null,"D","E","F","G","H","I","J","K","S","T"]
[976,null,null,null,null,null,null,"Washington",null,"Small General","Large General","Large General","Large General","Agricultural","Street & Area"]
[977,null,"FERC",null,null,"COS",null,"Jurisdiction","Residential","Service","Service <1,000 kW","Service >1,000 kW","Dedicated Facilities","Pumping","Lighting","-","-"]
[978,null,"ACCT",null,"DESCRIPTION ","Factor",null,"Normalized","Schedule 16","Schedule 24","Schedule 36","Schedule 48T","Schedule 48T","Schedule 40","Sch. 15,51-54,57","-","-"]
[979,null,"389","Land and Land Rights"]
[980,null,null,null,"Situs","F107G",null,0,0,0,0,0,0,0,0,0,0,0]
[981,null,null,null,"System Generation","F105G",null,0,0,0,0,0,0,0,0,0,0,0]
[982,null,null,null,"System Overheads","F102G",null,195132.06621903169,82789.661700597717,26333.235987640706,41722.739022883972,16487.204541221363,20384.37596273169,6946.7181709422002,468.13083301404606,0,0,0]
[983,null,null,null,"Customer - System","F42",null,0,0,0,0,0,0,0,0,0,0,0]
[984,null,null,"Total Land & Land Rights",null,null,null,195132.06621903169,82789.661700597717,26333.235987640706,41722.739022883972,16487.204541221363,20384.37596273169,6946.7181709422002,468.13083301404606,0,0,0]
[985]
[986,null,"390","Structures and Improvements"]
[987,null,null,null,"Situs","F107G",null,0,0,0,0,0,0,0,0,0,0,0]
[988,null,null,null,"System Generation","F105G",null,749627.18107554503,318048.0887910779,101162.81677586674,160283.74959842802,63337.907005907917,78309.437228909417,26686.791469549727,1798.390205805342,0,0,0]
[989,null,null,null,"System Overheads","F102G",null,3594951.5055125235,1525248.1293226229,485141.72064638574,768665.17313490051,303746.59550125664,375544.85265327618,127980.57967042722,8624.454583654373,0,0,0]
[990,null,null,null,"Customer - System","F42",null,0,0,0,0,0,0,0,0,0,0,0]
[991,null,null,"Total Structures and Improvements",null,null,null,4344578.6865880685,1843296.2181137009,586304.53742225247,928948.92273332854,367084.50250716455,453854.28988218558,154667.37113997695,10422.844789459716,0,0,0]
[992]
[993,null,"391","Office Furniture & Equipment"]
[994,null,null,null,"Situs","F107G",null,0,0,0,0,0,0,0,0,0,0,0]
[995,null,null,null,"System Generation","F105G",null,260387.38076613261,110475.86171990374,35139.495413437398,55675.496821537119,22000.792026797106,27201.24051538451,9269.8129246566587,624.68134441609538,0,0,0]
[996,null,null,null,"System Overheads","F102G",null,1928017.197311878,818009.53893049504,260187.53774714813,412244.69106364623,162903.07639848563,201409.374554065,68637.576375692515,4625.4022423454799,0,0,0]
[997,null,null,null,"Customer - System","F42",null,0,0,0,0,0,0,0,0,0,0,0]
[998,null,null,null,"Energy","F10",null,1363.1532752806384,578.35188594717397,183.95867773468674,291.46664335980097,115.1762870453104,142.4011409122233,48.528372658864441,3.2702676225785381,0,0,0]
[999,null,null,null,"CAEE","F105G",null,0,0,0,0,0,0,0,0,0,0,0]
[1000,null,null,null,"CAEE","F105G",null,0,0,0,0,0,0,0,0,0,0,0]
[1001,null,null,"Total Office Furniture & Equipment",null,null,null,2189767.7313532913,929063.75253634597,295510.99183832027,468211.65452854318,185019.04471232806,228753.01621036173,77955.917673008036,5253.3538543841532,0,0,0]
[1002]
[1003,null,"392","Transportation Equipment"]
[1004,null,null,null,"Situs","F107G",null,0,0,0,0,0,0,0,0,0,0,0]
[1005,null,null,null,"System Generation","F105G",null,1363581.1162216363,578533.40817185596,184016.41522849171,291558.12343414477,115212.43641451468,142445.83510709624,48543.603832790359,3271.2940327426263,0,0,0]
[1006,null,null,null,"System Overheads","F102G",null,257291.83759356113,109162.50007205893,34721.749266160121,55013.614116014505,21739.241711457958,26877.866110238127,9159.611324158559,617.25499347293351,0,0,0]
[1007,null,null,null,"Customer - System","F42",null,0,0,0,0,0,0,0,0,0,0,0]
[1008,null,null,null,"Energy","F10",null,0,0,0,0,0,0,0,0,0,0,0]
[1009,null,null,null,"CAEE","F105G",null,0,0,0,0,0,0,0,0,0,0,0]
[1010,null,null,null,"CAEE","F105G",null,0,0,0,0,0,0,0,0,0,0,0]
[1011,null,null,"Total Transportation Equipment",null,null,null,1620872.9538151973,687695.90824391483,218738.16449465184,346571.73755015928,136951.67812597263,169323.70121733437,57703.215156948922,3888.5490262155599,0,0,0]
[1012]
[1013,null,"393","Stores Equipment"]
[1014,null,null,null,"Situs","F107G",null,0,0,0,0,0,0,0,0,0,0,0]
[1015,null,null,null,"System Generation","F105G",null,271319.3343462504,115114.01656631779,36614.771717374257,58012.944761649436,22924.46058729001,28343.241705153687,9658.9914028554103,650.9076056098196,0,0,0]
[1016,null,null,null,"System Overheads","F102G",null,11111.82012495271,4714.4677286925798,1499.5494450109809,2375.9066365967401,938.86594230859964,1160.7908604987265,395.58174250871349,26.65776933637067,0,0,0]
[1017,null,null,null,"CAEE","F105G",null,0,0,0,0,0,0,0,0,0,0,0]
[1018,null,null,"Total Stores Equipment",null,null,null,282431.1544712031,119828.48429501036,38114.32116238524,60388.851398246174,23863.326529598609,29504.032565652415,10054.573145364124,677.56537494619022,0,0,0]
[1019]
[1020,null,"394","Tools, Shop & Garage Equipment"]
[1021,null,null,null,"Situs","F107G",null,0,0,0,0,0,0,0,0,0,0,0]
[1022,null,null,null,"System Generation","F105G",null,1254841.46930022,532397.89207497134,169341.9086797823,268307.63468643581,106024.74709582941,131086.40101791493,44672.463144294095,3010.4226009922099,0,0,0]
[1023,null,null,null,"System Overheads","F102G",null,131607.79957381188,55837.90206805725,17760.582927980569,28140.11034368179,11119.877695334279,13748.344483418208,4685.2488699161322,315.73318542365354,0,0,0]
[1024,null,null,null,"Energy","F10",null,0,0,0,0,0,0,0,0,0,0,0]
[1025,null,null,null,"CAEE","F105G",null,0,0,0,0,0,0,0,0,0,0,0]
[1026,null,null,null,"CAEE","F105G",null,0,0,0,0,0,0,0,0,0,0,0]
[1027,null,null,"Total Tools, Shop & Garage Equipment",null,null,null,1386449.268874032,588235.79414302856,187102.49160776287,296447.74503011757,117144.62479116369,144834.74550133315,49357.712014210229,3326.1557864158635,0,0,0]
[1028]
[1029,null,"395","Laboratory Equipment"]
[1030,null,null,null,"Situs","F107G",null,0,0,0,0,0,0,0,0,0,0,0]
[1031,null,null,null,"System Generation","F105G",null,423478.9736718355,179671.55089852749,57148.842656065157,90547.407417681898,35780.815491375542,44238.524087316393,15075.887517718365,1015.945603150665,0,0,0]
[1032,null,null,null,"System Overheads","F102G",null,184113.53237632615,78114.773011363883,24846.275604655373,39366.778668228639,15556.220594148608,19233.330208131436,6554.4574280238803,441.69686177433539,0,0,0]
[1033,null,null,null,"Energy","F10",null,0,0,0,0,0,0,0,0,0,0,0]
[1034,null,null,null,"CAEE","F105G",null,0,0,0,0,0,0,0,0,0,0,0]
[1035,null,null,null,"CAEE","F105G",null,0,0,0,0,0,0,0,0,0,0,0]
[1036,null,null,"Total Laboratory Equipment",null,null,null,607592.50604816165,257786.32390989136,81995.118260720526,129914.18608591054,51337.036085524152,63471.854295447833,21630.344945742247,1457.6424649250002,0,0,0]
[1037]
[1038,null,"396","Power Operated Equipment"]
[1039,null,null,null,"Situs","F107G",null,0,0,0,0,0,0,0,0,0,0,0]
[1040,null,null,null,"System Generation","F105G",null,2051936.4815283685,870585.39597568056,276910.54907953209,438740.85878968122,173373.33187759129,214354.54203702573,73049.113444287781,4922.6903245700314,0,0,0]
[1041,null,null,null,"System Overheads","F102G",null,66915.241134993179,28390.465409009681,9030.2679109631481,14307.679904310733,5653.838904567393,6990.267972673746,2382.1882815695776,160.53275189890297,0,0,0]
[1042,null,null,null,"Energy","F10",null,0,0,0,0,0,0,0,0,0,0,0]
[1043,null,null,null,"CAEE","F30",null,0,0,0,0,0,0,0,0,0,0,0]
[1044,null,null,null,"CAEE","F105G",null,0,0,0,0,0,0,0,0,0,0,0]
[1045,null,null,"Total Power Operated Equipment",null,null,null,2118851.7226633616,898975.86138469027,285940.81699049525,453048.53869399196,179027.17078215868,221344.81000969949,75431.301725857353,5083.2230764689348,0,0,0]
[1046]
[1047,null,"397","Communication Equipment"]
[1048,null,null,null,"Situs","F107G",null,0,0,0,0,0,0,0,0,0,0,0]
[1049,null,null,null,"System Generation","F105G",null,7218117.1108197113,3062466.796458161,974090.95772237657,1543363.0273422035,609877.07204920368,754037.07745715987,256965.58369569303,17316.596094913933,0,0,0]
[1050,null,null,null,"System Overheads","F102G",null,2031206.7165562983,861790.27448476071,274113.04991112219,434308.4628708855,171621.8213144718,212189.01726707106,72311.132046349841,4872.9586616373599,0,0,0]
[1051,null,null,null,"Customer - System","F42",null,0,0,0,0,0,0,0,0,0,0,0]
[1052,null,null,null,"Energy","F10",null,0,0,0,0,0,0,0,0,0,0,0]
[1053,null,null,null,"CAEE","F105G",null,0,0,0,0,0,0,0,0,0,0,0]
[1054,null,null,null,"CAEE","F105G",null,0,0,0,0,0,0,0,0,0,0,0]
[1055,null,null,"Total Communication Equipment",null,null,null,9249323.8273760099,3924257.0709429216,1248204.0076334989,1977671.4902130892,781498.89336367545,966226.09472423093,329276.71574204287,22189.554756551293,0,0,0]
[1056]
[1057,null,"Generation - Total -  Unbundled",null,null,null,null,"GENERAL PLANT"]
[1058]
[1059,null,"A",null,"B","C",null,"D","E","F","G","H","I","J","K","S","T"]
[1060,null,null,null,null,null,null,"Washington",null,"Small General","Large General","Large General","Large General","Agricultural","Street & Area"]
[1061,null,"FERC",null,null,"COS",null,"Jurisdiction","Residential","Service","Service <1,000 kW","Service >1,000 kW","Dedicated Facilities","Pumping","Lighting","-","-"]
[1062,null,"ACCT",null,"DESCRIPTION ","Factor",null,"Normalized","Schedule 16","Schedule 24","Schedule 36","Schedule 48T","Schedule 48T","Schedule 40","Sch. 15,51-54,57","-","-"]
[1063,null,"398","Misc. Equipment"]
[1064,null,null,null,"Situs","F107G",null,0,0,0,0,0,0,0,0,0,0,0]
[1065,null,null,null,"System Generation","F105G",null,108750.99585435024,46140.331165655611,14676.038096726879,23252.915353321103,9188.6482188918344,11360.619649915536,3871.5447114749645,260.89865836432529,0,0,0]
[1066,null,null,null,"System Overheads","F102G",null,103235.95179758426,43800.435726783777,13931.778275965089,22073.699920723426,8722.6681204917913,10784.493266986976,3675.208673503229,247.66781312997489,0,0,0]
[1067,null,null,null,"Customer - System","F42",null,0,0,0,0,0,0,0,0,0,0,0]
[1068,null,null,null,"Energy","F10",null,0,0,0,0,0,0,0,0,0,0,0]
[1069,null,null,null,"CAEE","F105G",null,0,0,0,0,0,0,0,0,0,0,0]
[1070,null,null,"Total Misc. Equipment",null,null,null,211986.94765193452,89940.766892439395,28607.816372691967,45326.615274044525,17911.316339383626,22145.112916902512,7546.7533849781939,508.56647149430017,0,0,0]
[1071]
[1072,null,"399","Coal Mine",null,"F10",null,66750666.843093663,28320640.647682745,9008058.472247811,14272490.966050362,5639933.6040939763,6973075.7996758213,2376329.4227660983,160137.93057684955,0,0,0]
[1073,null,"399L","WIDCO Capital Lease",null,"F10",null,0,0,0,0,0,0,0,0,0,0,0]
[1074,null,null,"Remove Capital Lease",null,"F10",null,0,0,0,0,0,0,0,0,0,0,0]
[1075]
[1076,null,"1011390","General Capital Lease",null,"F10",null,1468792.741386919,623172.07276031259,198214.81228236543,314054.25779074611,124102.03420244166,153436.71612719353,52289.146646392481,3523.701577467235,0,0,0]
[1077,null,null,"Remove Capital Lease",null,"F10",null,-1468792.741386919,-623172.07276031259,-198214.81228236543,-314054.25779074611,-124102.03420244166,-153436.71612719353,-52289.146646392481,-3523.701577467235,0,0,0]
[1078]
[1079,null,"1011392","General Vehicles Capital Lease",null,"F10",null,0,0,0,0,0,0,0,0,0,0,0]
[1080,null,null,"Remove Capital Lease",null,"F10",null,0,0,0,0,0,0,0,0,0,0,0]
[1081]
[1082,null,"GP","Unclassified Gen Plant - Acct 300",null,"F102G",null,258053.8299034418,109485.79437614664,34824.5807674385,55176.541752146382,21803.624379644021,26957.467264606483,9186.7383152663388,619.08304819344437,0,0,0]
[1083,null,"399G","Unclassified Gen Veh - Acct 300",null,"F102G",null,0,0,0,0,0,0,0,0,0,0,0]
[1084]
[1085,null,"TOTAL GENERAL PLANT",null,null,null,null,89215707.538057402,37851996.284221433,12039734.554785669,19075919.988332823,7538062.0262518115,9319875.3002263065,3176086.7841804358,214032.60005891806,0,0,0]
[1086]
[1087]
[1088]
[1089,null,null,null,null,null,null,"INTANGIBLE PLANT"]
[1090]
[1091,null,"301","Organization"]
[1092,null,null,null,"Situs","F107G",null,0,0,0,0,0,0,0,0,0,0,0]
[1093,null,null,null,"System Generation","F105G",null,0,0,0,0,0,0,0,0,0,0,0]
[1094,null,null,null,"System Overheads","F102G",null,0,0,0,0,0,0,0,0,0,0,0]
[1095,null,null,"Total Organization",null,null,null,0,0,0,0,0,0,0,0,0,0,0]
[1096]
[1097,null,"302","Franchise & Consent"]
[1098,null,null,null,"Situs","F107G",null,0,0,0,0,0,0,0,0,0,0,0]
[1099,null,null,null,"System Generation","F105G",null,34731254.302026778,14735603.685324902,4687011.8961146474,7426165.7105312152,2934532.0056619211,3628183.5121607799,1236435.6101712431,83321.88206207141,0,0,0]
[1100,null,null,"Total Franchise & Consent",null,null,null,34731254.302026778,14735603.685324902,4687011.8961146474,7426165.7105312152,2934532.0056619211,3628183.5121607799,1236435.6101712431,83321.88206207141,0,0,0]
[1101]
[1102,null,"303","Miscellaneous Intangible Plant"]
[1103,null,null,null,"Situs","F107G",null,36952.076759221571,15677.843182352863,4986.7137492499405,7901.0174229795966,3122.1749431400117,3860.1806451338994,1315.4970787282082,88.649737637053789,0,0,0]
[1104,null,null,null,"System Generation","F105G",null,14159730.148300013,6007619.8210992822,1910867.4588519677,3027604.5196428262,1196391.6117275842,1479189.2919833313,504087.5988389455,33969.846156076237,0,0,0]
[1105,null,null,null,"System Overheads","F102G",null,13365081.558897242,5670470.2732967893,1803628.9652642435,2857694.3846610188,1129249.7314321625,1396176.7153294354,475798.04139982368,32063.447513769061,0,0,0]
[1106,null,null,null,"Customer - System","F42",null,0,0,0,0,0,0,0,0,0,0,0]
[1107,null,null,null,"Energy","F10",null,0,0,0,0,0,0,0,0,0,0,0]
[1108,null,null,null,"CAEE","F105G",null,0,0,0,0,0,0,0,0,0,0,0]
[1109,null,null,null,"CAEE","F105G",null,0,0,0,0,0,0,0,0,0,0,0]
[1110,null,null,"Total Miscellaneous Intangible Plant",null,null,null,27561763.783956476,11693767.937578425,3719483.1378654614,5893199.9217268247,2328763.5181028866,2879226.1879579006,981201.1373174974,66121.943407482351,0,0,0]
[1111]
[1112,null,"IP","Unclass Intangible Plant - Acct 300",null,"F102G",null,0,0,0,0,0,0,0,0,0,0,0]
[1113]
[1114,null,"TOTAL INTANGIBLE PLANT",null,null,null,null,62293018.085983254,26429371.622903325,8406495.0339801088,13319365.632258039,5263295.5237648077,6507409.7001186805,2217636.7474887404,149443.82546955376,0,0,0]
[1115]
[1116]
[1117,null,"TOTAL ELECTRIC PLANT IN SERVICE",null,null,null,null,883089392.3652271,374672771.43080288,119173654.1201432,188820366.45977965,74614468.66331774,92251501.926223978,31438057.554435454,2118572.2105241641,0,0,0]
[1118]
[1119]
[1120,null,"Generation - Total -  Unbundled",null,null,null,null,"MISC RATE BASE"]
[1121]
[1122,null,"A",null,"B","C",null,"D","E","F","G","H","I","J","K","S","T"]
[1123,null,null,null,null,null,null,"Washington",null,"Small General","Large General","Large General","Large General","Agricultural","Street & Area"]
[1124,null,"FERC",null,null,"COS",null,"Jurisdiction","Residential","Service","Service <1,000 kW","Service >1,000 kW","Dedicated Facilities","Pumping","Lighting","-","-"]
[1125,null,"ACCT",null,"DESCRIPTION ","Factor",null,"Normalized","Schedule 16","Schedule 24","Schedule 36","Schedule 48T","Schedule 48T","Schedule 40","Sch. 15,51-54,57","-","-"]
[1126,null,"105","Plant Held For Future Use"]
[1127,null,null,null,"Production","F10",null,38221.431854599628,16216.398843452245,5158.0142839410682,8172.4283314890099,3229.4259834146947,3992.7832050091756,1360.6862281965632,91.694979096870824,0,0,0]
[1128,null,null,null,"Transmission","F10",null,0,0,0,0,0,0,0,0,0,0,0]
[1129,null,null,null,"Distribution","F20",null,0,0,0,0,0,0,0,0,0,0,0]
[1130,null,null,null,"General ","F102",null,0,0,0,0,0,0,0,0,0,0,0]
[1131,null,null,null,"Mining","F10",null,5533.8414833463366,2347.8707174489659,746.79654924364229,1183.2346598764675,467.56834077805837,578.0900469124972,197.00522795840914,13.275941128295917,0,0,0]
[1132,null,null,"Total Plant Held For Future Use",null,null,null,43755.273337945968,18564.269560901212,5904.8108331847106,9355.6629913654779,3696.9943241927531,4570.8732519216728,1557.6914561549725,104.97092022516674,0,0,0]
[1133]
[1134,null,"114","Electric Plant Acquisition Adjust",null,"F10",null,0,0,0,0,0,0,0,0,0,0,0]
[1135]
[1136,null,"120","Nuclear Fuel",null,"F10",null,0,0,0,0,0,0,0,0,0,0,0]
[1137]
[1138,null,"124","Weatherization",null,"F10",null,0,0,0,0,0,0,0,0,0,0,0]
[1139]
[1140,null,"151","Fuel Stock",null,"F10",null,-1.5174737200140953E-7,-6.4382619604148588E-8,-2.0478435117537233E-8,-3.2446312500563224E-8,-1.2821521389373937E-8,-1.5852215077562388E-8,-5.4022193630218616E-9,-3.6404894920230039E-10,0,0,0]
[1141,null,null,null,"JBE","F10",null,0,0,0,0,0,0,0,0,0,0,0]
[1142,null,null,null,"CAEE","F30",null,0,0,0,0,0,0,0,0,0,0,0]
[1143,null,null,null,"Total Fuel Stock",null,null,-1.5174737200140953E-7,-6.4382619604148588E-8,-2.0478435117537233E-8,-3.2446312500563224E-8,-1.2821521389373937E-8,-1.5852215077562388E-8,-5.4022193630218616E-9,-3.6404894920230039E-10,0,0,0]
[1144]
[1145,null,152,"Fuel Stock - Undistributed",null,"F10",null,0,0,0,0,0,0,0,0,0,0,0]
[1146]
[1147,null,"25316","DG&T Working Capital Deposit",null,"F10",null,0,0,0,0,0,0,0,0,0,0,0]
[1148]
[1149,null,"25317","DG&T Working Capital Deposit",null,"F10",null,0,0,0,0,0,0,0,0,0,0,0]
[1150]
[1151,null,"25319","Provo Working Capital Deposit",null,"F10",null,0,0,0,0,0,0,0,0,0,0,0]
[1152]
[1153,null,"154","Materials and Supplies",null,"F102G",null,1.1389501579454939E-4,4.8322810339284527E-5,1.537022790179123E-5,2.4352799168688132E-5,9.6232795460822435E-6,1.1897987179776607E-5,4.0546722593079267E-6,2.7323939961872927E-7,0,0,0]
[1154,null,null,null,"JBG","F10",null,-5.952306060433291E-8,-2.5254147851258023E-8,-8.0326869487515447E-9,-1.2727098992793168E-8,-5.029254771491968E-9,-6.218047445104363E-9,-2.1190260253078E-9,-1.4279856962604243E-10,0,0,0]
[1155,null,null,null,"CAEE","F102G",null,0,0,0,0,0,0,0,0,0,0,0]
[1156,null,null,null,"Total Material & Supplies",null,null,1.1383549273394506E-4,4.8297556191433271E-5,1.5362195214842477E-5,2.4340072069695339E-5,9.6182502913107519E-6,1.1891769132331502E-5,4.0525532332826185E-6,2.7309660104910322E-7,0,0,0]
[1157]
[1158,null,"163","Stores Expense Undistributed",null,"F102G",null,0,0,0,0,0,0,0,0,0,0,0]
[1159]
[1160,null,"25318","Provo Working Capital Deposit",null,"F102G",null,0,0,0,0,0,0,0,0,0,0,0]
[1161]
[1162,null,"165","Prepayments",null,"F102G",null,-5.7998046622262917E-8,-2.4607122510366397E-8,-7.8268850328879394E-9,-1.2401023624387373E-8,-4.9004024616804802E-9,-6.0587376045369837E-9,-2.0647353977064141E-9,-1.3913999069733291E-10,0,0,0]
[1163,null,null,null,"Customer - System","F42",null,-1.176517487058296E-8,-9.4929529518662916E-9,-1.6123425987804366E-9,-9.7920351440525968E-11,-2.0082615124054584E-11,-3.4678042947392868E-13,-2.872236212663442E-10,-2.5430595167583248E-10,0,0,0]
[1164,null,null,null,"Total Prepayments",null,null,-6.9763221492845877E-8,-3.410007546223269E-8,-9.4392276316683756E-9,-1.2498943975827898E-8,-4.920485076804535E-9,-6.0590843849664575E-9,-2.3519590189727583E-9,-3.9344594237316539E-10,0,0,0]
[1165]
[1166,null,"182M","Misc Regulatory Assets",null,"F102G",null,12855249.46502356,5454161.250419274,1734826.6966151802,2748683.1298203859,1086172.7211987991,1342917.3547294079,457647.9754508147,30840.336789699333,0,0,0]
[1167,null,null,null,"CAEE","F102G",null,0,0,0,0,0,0,0,0,0,0,0]
[1168,null,null,null,"Total Misc Regulatory Assets",null,null,12855249.46502356,5454161.250419274,1734826.6966151802,2748683.1298203859,1086172.7211987991,1342917.3547294079,457647.9754508147,30840.336789699333,0,0,0]
[1169]
[1170,null,"186M","Misc Deferred Debits",null,"F102G",null,1856088.0140102238,787491.78309809451,250480.63413575193,396864.94030727673,156825.59676863221,193895.32756259132,66076.891326102748,4452.8408117745203,0,0,0]
[1171]
[1172,null,"CWC","Cash Working Capital",null,"F137G",null,19879156.978276342,8431945.998929644,2683464.6180650149,4251999.6586355837,1679993.7924473525,2075760.4308386915,708292.82993395836,47699.649426093609,0,0,0]
[1173]
[1174,null,"OWC","Other Working Capital",null,"F137G",null,3.186593887382613E-8,1.3516261081036662E-8,4.3015465687393223E-9,6.8158806413006817E-9,2.6930004907671137E-9,3.3274074488217083E-9,1.1353809443785504E-9,7.6461698782089315E-11,0,0,0]
[1175,null,null,null,"CAEE","F137G",null,2.5363988243043423E-8,1.0758392793846348E-8,3.423855704625841E-9,5.425163122808074E-9,2.1435186032579576E-9,2.6484806785671049E-9,9.0371694487391544E-10,6.0860395064179107E-11,0,0,0]
[1176,null,null,null,"Total Other Working Capital",null,null,5.7229927116869553E-8,2.4274653874883009E-8,7.7254022733651637E-9,1.2241043764108757E-8,4.8365190940250712E-9,5.9758881273888128E-9,2.0390978892524657E-9,1.3732209384626841E-10,0,0,0]
[1177]
[1178,null,"18222","Nuclear Plant",null,"F10",null,0,0,0,0,0,0,0,0,0,0,0]
[1179]
[1180,null,"1869","Misc Deferred Debits-Trojan",null,"F10",null,0,0,0,0,0,0,0,0,0,0,0]
[1181]
[1182,null,"141","Impact Housing - Notes Receivable",null,"F10",null,0,0,0,0,0,0,0,0,0,0,0]
[1183,null,"TOTAL RATE BASE ADDITIONS",null,null,null,null,34634249.730761744,14692163.302056136,4674676.7596644713,7406903.3917789189,2926689.1047485815,3617143.9863944883,1233575.3881710777,83097.797948065097,0,0,0]
[1184]
[1185,null,"Generation - Total -  Unbundled"]
[1186]
[1187,null,"A",null,"B",null,null,"D","E","F","G","H","I","J","K","S","T"]
[1188,null,null,null,null,null,null,"Washington",null,"Small General","Large General","Large General","Large General","Agricultural","Street & Area"]
[1189,null,"FERC",null,null,null,null,"Jurisdiction","Residential","Service","Service <1,000 kW","Service >1,000 kW","Dedicated Facilities","Pumping","Lighting","-","-"]
[1190,null,"ACCT",null,"DESCRIPTION ",null,null,"Normalized","Schedule 16","Schedule 24","Schedule 36","Schedule 48T","Schedule 48T","Schedule 40","Sch. 15,51-54,57","-","-"]
[1191]
[1192,null,"235","Customer Service Deposits",null,"F51",null,0,0,0,0,0,0,0,0,0,0,0]
[1193,null,null,null,null,"F51",null,0,0,0,0,0,0,0,0,0,0,0]
[1194,null,null,null,null,null,null,0,0,0,0,0,0,0,0,0,0,0]
[1195]
[1196,null,"2281","Accum Prov for Property Insurance",null,"F102G",null,0,0,0,0,0,0,0,0,0,0,0]
[1197]
[1198,null,"2282","Accum Prov for Injuries & Damages",null,"F102G",null,-231976.52564024017,-98421.845534490538,-31305.426686870363,-49600.745926909614,-19600.286621776646,-24233.314415228197,-8258.3840632746014,-556.52239169021971,0,0,0]
[1199]
[1200,null," 2283","Accum Prov for Pension & Benefits",null,"F102G",null,-118513.24685670668,-50282.210425080906,-15993.462056800547,-25340.259882282378,-10013.485633763095,-12380.42843137546,-4219.0816783169321,-284.31874908737223,0,0,0]
[1201]
[1202,null,254,"Reg Liabilities - Insurance Provision",null,"F102G",null,0,0,0,0,0,0,0,0,0,0,0]
[1203]
[1204,null,22844,"Hydro Relicensing Obligations",null,"F10",null,-335802.44440276822,-142472.58950834326,-45316.821499542129,-71800.591376594122,-28372.802551560184,-35079.438292970386,-11954.595610959615,-805.60556279851846,0,0,0]
[1205]
[1206,null,"22842","Accum Misc Oper Prov - Trojan",null,"F10",null,384912.29383690434,163308.67196060231,51944.236867629275,82301.158869656123,32522.218628056464,40209.674720718212,13702.910432027582,923.42235821435202,0,0,0]
[1207]
[1208]
[1209,null,"252","Customer Advances for Const",null,"F50",null,0,0,0,0,0,0,0,0,0,0,0]
[1210]
[1211,null,"25398","SO2 Emmissions",null,"F10",null,-1721174.3189683419,-730251.27215737838,-232273.9178418004,-368017.97016077599,-145426.39555753712,-179801.63432424839,-61273.952296059368,-4129.1766305421734,0,0,0]
[1212]
[1213,null,"25399","Other Deferred Credits",null,"F10",null,-1087352.2898405073,-461336.41676411394,-146739.10344356761,-232495.44113383649,-91873.160359213958,-113589.7257151285,-38709.8340954991,-2608.6083291477034,0,0,0]
[1214]
[1215,null,"190","Accum Deferred Income Taxes",null,"F104G",null,-7259140.6878745807,-3079607.1133481036,-979605.1429076331,-1552252.7824016304,-613399.38627813337,-758469.47495771362,-258408.81322082315,-17397.97476054238,0,0,0]
[1216,null,null,null," Labor","F138G",null,-3.5539259978562563,-1.5078420311565472,-0.47960529398131568,-0.75989318305459019,-0.30028024602193992,-0.37125914303962115,-0.12652006810495225,-8.5260324972895683E-3,0,0,0]
[1217,null,null,null,"Customer - System","F42",null,0,0,0,0,0,0,0,0,0,0,0]
[1218,null,null,null,"Total Accum Deferred Income Taxes",null,null,-7259144.2418005783,-3079608.6211901349,-979605.62251292705,-1552253.5422948136,-613399.68655837944,-758469.84621685662,-258408.93974089125,-17397.983286574876,0,0,0]
[1219]
[1220,null,"281","Accum Deferred Income Taxes",null,"F104G",null,2.6579494543409805E-2,1.1276045469377487E-2,3.5868445963723517E-3,5.6836058335049122E-3,2.2459746051958947E-3,2.7771517508478078E-3,9.4616924182838497E-4,6.3703046282963474E-5,0,0,0]
[1221]
[1222,null,"282","Accum Deferred Income Taxes ",null,"F104G",null,-114672552.19333564,-48648514.008037031,-15474809.858221116,-24520917.262910724,-9689862.2251298875,-11981532.552388936,-4082080.7028550506,-274835.58379287634,0,0,0]
[1223,null,null,null," Labor","F138G",null,-3.7318088843012312E-2,-1.5833132967279104E-2,-5.0361073869208024E-3,-7.9792773776201694E-3,-3.1531002349536224E-3,-3.8984159186461402E-3,-1.328527140073428E-3,-8.9527817519044267E-5,0,0,0]
[1224,null,null,null,"Customer - System","F42",null,-844233.32637380378,-681185.56127053942,-115696.82307281716,-7026.4679382730646,-1441.0676555991877,-24.883913644847059,-20610.297412672491,-18248.225110257616,0,0,0]
[1225,null,null,null,"Total Accum Deferred Income Taxes ",null,null,-115516785.55702753,-49329699.585140705,-15590506.686330041,-24527943.738828275,-9691303.2959385868,-11981557.440200998,-4102691.0015962501,-293083.80899266177,0,0,0]
[1226]
[1227,null,"283","Accum Deferred Income Taxes ",null,"F104G",null,-1520921.5897138063,-645233.52665571985,-205245.03867676514,-325225.10183491244,-128518.29298004237,-158913.10682667576,-54141.331584378677,-3645.1911553118493,0,0,0]
[1228,null,null,null," Labor","F138G",null,-9161.345762596231,-3886.9301755672773,-1236.3312940069161,-1958.8602004662521,-774.06540292168461,-957.0355091700784,-326.14468914542999,-21.978491318591832,0,0,0]
[1229,null,null,null,"Customer - System","F42",null,0,0,0,0,0,0,0,0,0,0,0]
[1230,null,null,null,"Total Accum Deferred Income Taxes ",null,null,-1530082.9354764025,-649120.45683128713,-206481.36997077207,-327183.96203537867,-129292.35838296406,-159870.14233584586,-54467.476273524109,-3667.1696466304411,0,0,0]
[1231]
[1232,null,"255","Accum Investment Tax Credit",null,"F104G",null,-266330.54835915519,-112987.67808685378,-35940.724405828762,-56950.588575807662,-22505.004646556459,-27827.47984435517,-9480.7586579632643,-638.31414179006345,0,0,0]
[1233,null,"TOTAL RATE BASE DEDUCTIONS",null,null,null,null,-127682249.78795584,-54490871.992401734,-17232218.894293677,-27129285.675661411,-10719264.255376307,-13252599.772279136,-4535761.1126345405,-322248.08530900575,0,0,0]
[1234]
[1235,null,null,null,null,null,null,"ACCUMULATED DEPRECIATION"]
[1236,null,null,null,null,null,null,"PRODUCTION PLANT"]
[1237]
[1238,null,"108SP","Steam Prod Accumulated Depr",null,"F10",null,-15082517.541030556,-6399135.4625110012,-2035398.3914149266,-3224913.0312909684,-1274360.2654030451,-1575587.8261226357,-536938.9085862739,-36183.655701704251,0,0,0]
[1239,null,null,null,"JBG","F10",null,-112606002.53872354,-47775914.211727411,-15196274.481860965,-24077184.992546048,-9514367.5378360357,-11763331.039774455,-4008783.277653933,-270146.99732469238,0,0,0]
[1240,null,null,null,"Total Steam Prod Accumulated Depr",null,null,-127688520.0797541,-54175049.674238414,-17231672.873275891,-27302098.023837015,-10788727.803239081,-13338918.865897091,-4545722.1862402074,-306330.65302639664,0,0,0]
[1241]
[1242,null,"108NP","Nuclear Prod Accumulated Depr",null,"F10",null,0,0,0,0,0,0,0,0,0,0,0]
[1243]
[1244,null,"108HP","Hydraulic Prod Accum Depr",null,"F10",null,-47582292.500684649,-20187978.200613953,-6421270.2788019152,-10173948.39599647,-4020348.9062552494,-4970660.9390067765,-1693933.6641808918,-114152.11582939206,0,0,0]
[1245]
[1246,null,"108OP","Other Production  - Accum Depr",null,"F10",null,-59017038.952832878,-25039455.503902663,-7964398.9024965093,-12618902.47894205,-4986499.7152255978,-6165186.1405052477,-2101011.6114317141,-141584.60032909483,0,0,0]
[1247,null,null,null,"CAEE","F10",null,0,0,0,0,0,0,0,0,0,0,0]
[1248,null,null,null,"Total Other Production - Accum Depr",null,null,-59017038.952832878,-25039455.503902663,-7964398.9024965093,-12618902.47894205,-4986499.7152255978,-6165186.1405052477,-2101011.6114317141,-141584.60032909483,0,0,0]
[1249]
[1250,null,"108EP","Experimental Plant - Accum Depr",null,"F10",null,0,0,0,0,0,0,0,0,0,0,0]
[1251]
[1252]
[1253]
[1254,null,"TOTAL PRODUCTION PLANT DEPRECIATION",null,null,null,null,-234287851.53327161,-99402483.378755018,-31617342.054574315,-50094948.898775533,-19795576.42471993,-24474765.945409115,-8340667.4618528131,-562067.36918488354,0,0,0]
[1255]
[1256]
[1257,null,null,null,null,null,null,"TRANSMISSION PLANT"]
[1258]
[1259,null,"108TP","Transmission Plant Accum Depr",null,"F106",null,0,0,0,0,0,0,0,0,0,0,0]
[1260]
[1261]
[1262,null,null,null,null,null,null,"DISTRIBUTION PLANT"]
[1263]
[1264,null,"108360","Land and Land Rights",null,"F118",null,0,0,0,0,0,0,0,0,0,0,0]
[1265]
[1266,null,"108361","Structures and Improvements",null,"F119",null,0,0,0,0,0,0,0,0,0,0,0]
[1267]
[1268,null,"108362","Station Equipment",null,"F120",null,0,0,0,0,0,0,0,0,0,0,0]
[1269]
[1270,null,"Generation - Total -  Unbundled"]
[1271]
[1272,null,"A",null,"B",null,null,"D","E","F","G","H","I","J","K","S","T"]
[1273,null,null,null,null,null,null,"Washington",null,"Small General","Large General","Large General","Large General","Agricultural","Street & Area"]
[1274,null,"FERC",null,null,null,null,"Jurisdiction","Residential","Service","Service <1,000 kW","Service >1,000 kW","Dedicated Facilities","Pumping","Lighting","-","-"]
[1275,null,"ACCT",null,"DESCRIPTION ",null,null,"Normalized","Schedule 16","Schedule 24","Schedule 36","Schedule 48T","Schedule 48T","Schedule 40","Sch. 15,51-54,57","-","-"]
[1276]
[1277,null,"108364","Poles, Towers & Fixtures",null,"F121",null,0,0,0,0,0,0,0,0,0,0,0]
[1278]
[1279,null,"108365","Overhead Conductors",null,"F122",null,0,0,0,0,0,0,0,0,0,0,0]
[1280]
[1281,null,"108366","Underground Conduit",null,"F123",null,0,0,0,0,0,0,0,0,0,0,0]
[1282]
[1283,null,"108367","Underground Conductors ",null,"F124",null,0,0,0,0,0,0,0,0,0,0,0]
[1284]
[1285,null,"108368","Line Transformers",null,"F125",null,0,0,0,0,0,0,0,0,0,0,0]
[1286]
[1287,null,"108369","Services",null,"F126",null,0,0,0,0,0,0,0,0,0,0,0]
[1288]
[1289,null,"108370","Meters",null,"F127",null,0,0,0,0,0,0,0,0,0,0,0]
[1290]
[1291,null,"108371","Install on Customers' Premises",null,"F128",null,0,0,0,0,0,0,0,0,0,0,0]
[1292]
[1293,null,"108372","Leased Property",null,"F129",null,0,0,0,0,0,0,0,0,0,0,0]
[1294]
[1295,null,"108373","Street Lights",null,"F130",null,0,0,0,0,0,0,0,0,0,0,0]
[1296]
[1297,null,"108D00","Unclassified Dist Plant - Acct 300",null,"F121",null,0,0,0,0,0,0,0,0,0,0,0]
[1298]
[1299,null,"108DS","Unclassified Dist Sub - Acct 300",null,"F120",null,0,0,0,0,0,0,0,0,0,0,0]
[1300]
[1301,null,"108DP","Unclassified Dist Sub  - Acct 300",null,"F102G",null,0,0,0,0,0,0,0,0,0,0,0]
[1302]
[1303]
[1304,null,"TOTAL DISTRIBUTION PLANT DEPR",null,null,null,null,0,0,0,0,0,0,0,0,0,0,0]
[1305]
[1306,null,null,null,null,null,null,"GENERAL PLANT"]
[1307,null,"108GP","General Plant Accumulated Depr"]
[1308,null,null,null,"Situs","F107G",null,0,0,0,0,0,0,0,0,0,0,0]
[1309,null,null,null,"System Generation","F105G",null,-4642552.9775811415,-1969719.2669994812,-626516.41789382417,-992661.17577060161,-392261.10817131889,-484982.02861075138,-165275.28126886234,-11137.698866302122,0,0,0]
[1310,null,null,null,"System Overheads","F102G",null,-2748046.9482864528,-1165927.6796188909,-370851.24037540227,-587581.77406520862,-232189.47558532516,-287073.38185119396,-97830.705327722695,-6592.6914627093429,0,0,0]
[1311,null,null,null,"Customer - System","F42",null,0,0,0,0,0,0,0,0,0,0,0]
[1312,null,null,null,"Energy","F10",null,0,0,0,0,0,0,0,0,0,0,0]
[1313,null,null,null,"CAEE","F105G",null,0,0,0,0,0,0,0,0,0,0,0]
[1314,null,null,null,"CAEE","F105G",null,0,0,0,0,0,0,0,0,0,0,0]
[1315,null,null,"Total General Plant Accumulated Depr",null,null,null,-7390599.9258675948,-3135646.9466183721,-997367.65826922643,-1580242.9498358103,-624450.58375664405,-772055.41046194534,-263105.98659658502,-17730.390329011465,0,0,0]
[1316]
[1317,null,"108MP","Mining Plant Accumulated Depr.",null,"F10",null,-34513081.458540469,-14643038.397340843,-4657569.2879111823,-7379516.4396705125,-2916098.0272513144,-3605392.1926577562,-1228668.6383678939,-82798.475340965699,0,0,0]
[1318]
[1319,null,"1081390","Accum Depr - Capital Lease",null,"F10",null,0,0,0,0,0,0,0,0,0,0,0]
[1320,null,null,"Remove Capital Lease",null,"F10",null,0,0,0,0,0,0,0,0,0,0,0]
[1321]
[1322,null,"1081399"," Accum Depr - Capital Lease",null,"F10",null,0,0,0,0,0,0,0,0,0,0,0]
[1323,null,null," Remove Capital Lease",null,"F10",null,0,0,0,0,0,0,0,0,0,0,0]
[1324]
[1325,null,"TOTAL GENERAL PLANT ACCUM DEPR",null,null,null,null,-41903681.384408064,-17778685.343959216,-5654936.9461804088,-8959759.3895063233,-3540548.6110079587,-4377447.6031197011,-1491774.6249644789,-100528.86566997717,0,0,0]
[1326]
[1327]
[1328,null,"TOTAL ACCUM DEPR - PLANT IN SERVICE",null,null,null,null,-276191532.91767967,-117181168.72271423,-37272279.000754721,-59054708.288281858,-23336125.035727888,-28852213.548528817,-9832442.0868172925,-662596.2348548607,0,0,0]
[1329]
[1330]
[1331,null,null,null,null,null,null,"ACCUMULATED AMORTIZATION"]
[1332]
[1333,null,"111SP","Accum Prov for Amort-Steam",null,"F10",null,0,0,0,0,0,0,0,0,0,0,0]
[1334]
[1335,null,"111GP","Accum Prov for Amort-General"]
[1336,null,null,"Division",null,"F108",null,0,0,0,0,0,0,0,0,0,0,0]
[1337,null,null,"System Overheads",null,"F108",null,-421671.0265353974,-200237.48276212905,-58674.618632280071,-80645.94418949321,-31109.013088681713,-32223.082984636694,-16397.426197693545,-2383.4586804830842,0,0,0]
[1338,null,null,"Total Accum Prov for Amort-General",null,null,null,-421671.0265353974,-200237.48276212905,-58674.618632280071,-80645.94418949321,-31109.013088681713,-32223.082984636694,-16397.426197693545,-2383.4586804830842,0,0,0]
[1339]
[1340,null,"111HP","Accum Prov for Amort-Hydro",null,"F10",null,-107221.73928561615,-45491.505801213461,-14469.663640234821,-22925.932843718067,-9059.4374421432058,-11200.866609605073,-3817.1030474271211,-257.22990127439567,0,0,0]
[1341]
[1342,null,"111IP","Accum Prov for Amort-Intangible"]
[1343,null,null,null,"Situs","F107G",null,0,0,0,0,0,0,0,0,0,0,0]
[1344,null,null,null,"System Generation","F105G",null,-12117249.320391888,-5141046.2227719659,-1635232.9581586591,-2590885.4493573746,-1023817.2120723007,-1265822.5301820361,-431375.10746859276,-29069.84038095882,0,0,0]
[1345,null,null,null,"System Overheads","F102G",null,-9793798.0728677455,-4155263.8934625541,-1321681.2636967469,-2094089.8590107323,-827502.90709032293,-1023104.3307680705,-348660.04523808748,-23495.773601231784,0,0,0]
[1346,null,null,null,"Customer - System","F42",null,0,0,0,0,0,0,0,0,0,0,0]
[1347,null,null,null,"CAEE","F105G",null,0,0,0,0,0,0,0,0,0,0,0]
[1348,null,null,null,"CAEE","F105G",null,0,0,0,0,0,0,0,0,0,0,0]
[1349,null,null,null,"Energy","F10",null,0,0,0,0,0,0,0,0,0,0,0]
[1350,null,null,"Total Accum Prov for Amort-Intangible",null,null,null,-21911047.393259633,-9296310.1162345205,-2956914.2218554057,-4684975.3083681073,-1851320.1191626238,-2288926.8609501068,-780035.15270668024,-52565.613982190604,0,0,0]
[1351]
[1352,null,"111390","Accum Amtr - Capital Lease"]
[1353,null,null,"Situs",null,"F107G",null,0,0,0,0,0,0,0,0,0,0,0]
[1354,null,null,"System Generation",null,"F105G",null,51481.529877819718,21842.327224833189,6947.4756330191531,11007.67535142095,4349.8053889198673,5377.9928665754542,1832.7468467879819,123.50656626312455,0,0,0]
[1355,null,null,"System Overheads",null,"F102G",null,26199.840292008816,11115.937817981985,3535.6904204229422,5601.9962281222879,2213.6911385790054,2736.953515760727,932.71654504999071,62.854626091879233,0,0,0]
[1356,null,null,"Remove Capital Lease Amtr",null,null,null,-77681.370169828529,-32958.265042815176,-10483.166053442095,-16609.671579543239,-6563.4965274988726,-8114.9463823361812,-2765.4633918379727,-186.36119235500379,0,0,0]
[1357,null,"TOTAL ACCUM PROV FOR AMORTIZATION",null,null,null,null,-22439940.159080647,-9542039.1047978625,-3030058.5041279211,-4788547.1854013186,-1891488.5696934485,-2332350.8105443488,-800249.68195180094,-55206.302563948084,0,0,0]

{"sheet":"Transmission","index":13,"n_rows":1357,"n_cols":18,"rows_kept":1357,"cut":false,"hidden":false,"merged":[]}
[1,null,null," - ","Transmission - Total -  Unbundled"]
[2,"PacifiCorp"]
[3,"Cost Of Service By Rate Schedule"]
[4,"State of Washington"]
[5,"WCA Method - (100 Summer, 100 Winter Hours) - 38%D / 62%E"]
[6,"12 Months Ending June 2012"]
[7]
[8]
[9,null,"A",null,"B","C",null,"D","E","F","G","H","I","J","K"]
[10,null,null,null,null,null,null,"Washington",null,"Small General","Large General","Large General","Large General","Agricultural","Street & Area",null,null,"Chk Total"]
[11,null,null,null,null,"COS",null,"Jurisdiction","Residential","Service","Service <1,000 kW","Service >1,000 kW","Dedicated Facilities","Pumping","Lighting","-","-"]
[12,null,null,null,"DESCRIPTION ","Factor",null,"Normalized","Schedule 16","Schedule 24","Schedule 36","Schedule 48T","Schedule 48T","Schedule 40","Sch. 15,51-54,57","-","-",0]
[13]
[14,null,null,null,"Operating Revenues",null,null,51981013.258582182,21365958.77406013,7671556.8592371009,11373242.076897785,4322970.7277741255,5049733.8854301786,2047784.3736014755,149766.56158139114,0,0,0]
[15]
[16,null,null,null,"Operating Expenses"]
[17,null,null,null,"Operation & Maintenance Expenses",null,null,32671390.564299162,13881299.435301738,4414119.5271843234,6976144.8472730126,2755133.2517786631,3399020.8396872724,1165522.9197809845,80149.743293170686,0,0,0]
[18,null,null,null,"Depreciation Expense",null,null,5516357.6512353439,2340452.7641943013,744437.09143710125,1179496.302678589,466091.08733753604,576263.60693302366,196382.80204668429,13233.996608110247,0,0,0]
[19,null,null,null,"Amortization Expense",null,null,808907.75049483217,343199.3536894503,109162.77933582637,172958.99962234055,68346.673080463705,84502.152950840886,28797.184788024198,1940.6070278864865,0,0,0]
[20,null,null,null,"Taxes Other Than Income",null,null,4248894.6593379853,1802073.1922004167,573598.68426422344,908634.09077766375,359074.38787720818,444118.1912983057,151240.30968842134,10155.80323174602,0,0,0]
[21,null,null,null,"Income Taxes - Federal",null,null,-368427.97097115335,-156260.44488647205,-49737.594442531576,-78789.012498745476,-31135.873858995863,-38510.148452799622,-13114.272038986201,-880.62479262252509,0,0,0]
[22,null,null,null,"Income Taxes - State",null,null,0,0,0,0,0,0,0,0,0,0,0]
[23,null,null,null,"Income Taxes Deferred",null,null,2686209.4236197174,1139295.3648079981,362636.94786128181,574450.92264287604,227011.74819112214,280777.60601679218,95616.196137821215,6420.6379618256506,0,0,0]
[24,null,null,null,"Investment Tax Credit Adj",null,null,0,0,0,0,0,0,0,0,0,0,0]
[25,null,null,null,"Misc Revenues & Expense",null,null,516.47518278949883,219.12751957385163,69.69875906961137,110.43166651622761,43.638301710785896,53.953327638032732,18.386560480004682,1.2390478009848935,0,0,0]
[26]
[27,null,null,null,"Total Operating Expenses",null,null,45563848.553198673,19350278.792827006,6154287.1343992949,9733006.5821622517,3844564.9127077078,4746226.2017610734,1624463.5269634298,111021.40237791756,0,0,0]
[28]
[29,null,null,null,"Operating Revenue For Return",null,null,6417164.7053835094,2015679.9812331237,1517269.7248378061,1640235.4947355334,478405.81506641768,303507.68366910517,423320.84663804574,38745.15920347358,0,0,0]
[30]
[31]
[32,null,null,null,"Rate Base :"]
[33,null,null,null,"Electric Plant In Service",null,null,303513053.2513175,128773007.36510786,40959341.083514757,64896539.847166926,25644589.773718201,31706342.821823902,10805090.536849117,728141.82313679659,0,0,0]
[34,null,null,null,"Plant Held For Future Use ",null,null,0,0,0,0,0,0,0,0,0,0,0]
[35,null,null,null,"Electric Plant Acquisition Adj",null,null,0,0,0,0,0,0,0,0,0,0,0]
[36,null,null,null,"Nuclear Fuel",null,null,0,0,0,0,0,0,0,0,0,0,0]
[37,null,null,null,"Prepayments",null,null,-2.7403410337079778E-8,-1.3523662311584409E-8,-3.7084903873306342E-9,-4.8404001323222611E-9,-1.9048940082123968E-9,-2.3448459223718174E-9,-9.2009309140020893E-10,-1.6102448385805982E-10,0,0,0]
[38,null,null,null,"Fuel Stock",null,null,0,0,0,0,0,0,0,0,0,0,0]
[39,null,null,null,"Materials & Supplies",null,null,8.8387352564417842E-7,3.7500545959503166E-7,1.1927947356376667E-7,1.8898802823260239E-7,7.4680722078290239E-8,9.233341602610902E-8,3.1465972765927223E-8,2.1204533824513744E-9,0,0,0]
[40,null,null,null,"Misc Deferred Debits",null,null,55395.802666168427,23503.055398476852,7475.7100285894203,11844.617147698211,4680.5322517164841,5786.8954610307801,1972.0952913143919,132.8970873423053,0,0,0]
[41,null,null,null,"Cash Working Capital",null,null,4582113.839411892,1946831.5597506305,619073.6857227931,978393.91890962585,386403.3328349918,476707.60751148872,163462.85262543941,11240.882056922817,0,0,0]
[42,null,null,null,"Weatherization Loans",null,null,0,0,0,0,0,0,0,0,0,0,0]
[43,null,null,null,"Miscellaneous Rate Base",null,null,0,0,0,0,0,0,0,0,0,0,0]
[44]
[45,null,null,null,"Total Rate Base Additions",null,null,308150562.8933965,130743341.98025733,41585890.479266256,65886778.383224428,26035673.63880498,32188837.324796513,10970525.484765902,739515.60228106368,0,0,0]
[46]
[47,null,null,null,"Rate Base Deductions :"]
[48,null,null,null,"Accum Provision For Depreciation",null,null,-114462702.38464727,-48563665.57982412,-15446837.683226576,-24474180.753500842,-9671244.8298390713,-11957290.282058973,-4074881.9502482475,-274601.30594946601,0,0,0]
[49,null,null,null,"Accum Provision For Amortization",null,null,-6435065.100261936,-2760391.1897368762,-870918.95541586494,-1362483.3242589124,-537327.42989146011,-655519.28520689695,-231047.81215690105,-17377.103595024892,0,0,0]
[50,null,null,null,"Accum Deferred Income Taxes",null,null,-46442324.710822776,-19696649.941728462,-6266794.5082716057,-9933623.057130469,-3925654.5526383989,-4855825.9635284655,-1652852.5349635417,-110924.15256184468,0,0,0]
[51,null,null,null,"Unamortized ITC",null,null,-103068.52952258976,-43712.383755002673,-13907.772633493842,-22045.49275265749,-8712.1273565605625,-10776.438498446678,-3668.1427917796718,-246.17173464884945,0,0,0]
[52,null,null,null,"Customer Advance For Construction",null,null,18276.841740963751,6731.6043453732555,10459.126227106039,0,0,0,1086.1111684844589,0,0,0,0]
[53,null,null,null,"Customer Service Deposits",null,null,0,0,0,0,0,0,0,0,0,0,0]
[54,null,null,null,"Misc Rate Base Deductions",null,null,-135637.7091795431,-57547.69205494738,-18304.422609037723,-29001.777367578339,-11460.375006922954,-14169.327021505214,-4828.7139949866787,-325.401124564854,0,0,0]
[55,null,null,null,null,null,null,null,null,null,null,null,null,null,null,null,null,0]
[56,null,null,null,"Total Rate Base Deductions",null,null,-167560521.59269318,-71115235.182754025,-22606304.215929471,-35821334.405010454,-14154399.314732414,-17493581.296314288,-5966193.0429869723,-403474.13496554934,0,0,0]
[57,null,null,null,null,null,null,null,null,null,null,null,null,null,null,null,null,0]
[58,null,null,null,"Total Rate Base",null,null,140590041.30070332,59628106.797503307,18979586.263336785,30065443.978213973,11881274.324072566,14695256.028482225,5004332.4417789299,336041.46731551434,0,0,0]
[59]
[60]
[61,null,null,null,"Return On Rate Base",null,null,4.5644518246196766E-2,3.3804192175316952E-2,7.9942191773102231E-2,5.4555505514040675E-2,4.0265530617126052E-2,2.065344646468556E-2,8.4590872321736579E-2,0.11529874426805539,0.1,0.1]
[62]
[63,null,null,null,"Return On Equity",null,null,3.8337072638253367E-2,1.5786818184617805E-2,0.10365801570768424,5.5308313896312349E-2,2.809263012777027E-2,-9.2591695909332566E-3,0.11251156658270514,0.17099562538090099,0.14185871023172955,0.14185871023172955]
[64]
[65]
[66]
[67]
[68]
[69]
[70]
[71,"PacifiCorp"]
[72,"Cost Of Service By Rate Schedule"]
[73,"State of Washington"]
[74,"WCA Method - (100 Summer, 100 Winter Hours)"]
[75,"12 Months Ending June 2012"]
[76]
[77]
[78,null,"A",null,"B","C",null,"D","E","F","G","H","I","J","K","S","T"]
[79,null,null,null,null,null,null,"Washington",null,"Small General","Large General","Large General","Large General","Agricultural","Street & Area"]
[80,null,null,null,null,"COS",null,"Jurisdiction","Residential","Service","Service <1,000 kW","Service >1,000 kW","Dedicated Facilities","Pumping","Lighting","-","-"]
[81,null,null,null,"DESCRIPTION ","Factor",null,"Normalized","Schedule 16","Schedule 24","Schedule 36","Schedule 48T","Schedule 48T","Schedule 40","Sch. 15,51-54,57","-","-"]
[82]
[83,null,null,null,"Total Rate Base",null,null,140590041.30070332,59628106.797503307,18979586.263336785,30065443.978213973,11881274.324072566,14695256.028482225,5004332.4417789299,336041.46731551434,0,0,0]
[84]
[85]
[86,null,null,null,"Return On Ratebase ($$)",4.602925444100011E-2,null,6471254.782900787,2744637.2996174078,873616.20530003938,1383889.9707548455,546886.1989460577,676411.67881064909,230345.69126999372,15467.738201792832,0,0,0]
[87,null,null,null,"Operating & Maintenance Expense",null,null,32671390.564299162,13881299.435301738,4414119.5271843234,6976144.8472730126,2755133.2517786631,3399020.8396872724,1165522.9197809845,80149.743293170686,0,0,0]
[88,null,null,null,"        Bad Debt to Produce ROR","F80",null,0,0,0,0,0,0,0,0,0,0,0]
[89,null,null,null,"Depreciation Expense",null,null,5516357.6512353439,2340452.7641943013,744437.09143710125,1179496.302678589,466091.08733753604,576263.60693302366,196382.80204668429,13233.996608110247,0,0,0]
[90,null,null,null,"Amortization Expense",null,null,808907.75049483217,343199.3536894503,109162.77933582637,172958.99962234055,68346.673080463705,84502.152950840886,28797.184788024198,1940.6070278864865,0,0,0]
[91,null,null,null,"Taxes Other Than Income",null,null,4248894.6593379853,1802073.1922004167,573598.68426422344,908634.09077766375,359074.38787720818,444118.1912983057,151240.30968842134,10155.80323174602,0,0,0]
[92,null,null,null,"Federal Income Taxes",null,null,-368427.97097115335,-156260.44488647205,-49737.594442531576,-78789.012498745476,-31135.873858995863,-38510.148452799622,-13114.272038986201,-880.62479262252509,0,0,0]
[93,null,null,null,"        FIT Adj to Produce Target ROR","F101",null,0,0,0,0,0,0,0,0,0,0,0]
[94,null,null,null,"State Income Taxes",null,null,0,0,0,0,0,0,0,0,0,0,0]
[95,null,null,null,"        SIT Adj to Produce Target ROR","F101",null,0,0,0,0,0,0,0,0,0,0,0]
[96,null,null,null,"Deferred Income Taxes",null,null,2686209.4236197174,1139295.3648079981,362636.94786128181,574450.92264287604,227011.74819112214,280777.60601679218,95616.196137821215,6420.6379618256506,0,0,0]
[97,null,null,null,"Investment Tax Credit",null,null,0,0,0,0,0,0,0,0,0,0,0]
[98,null,null,null,"Misc Revenue & Expenses",null,null,516.47518278949883,219.12751957385163,69.69875906961137,110.43166651622761,43.638301710785896,53.953327638032732,18.386560480004682,1.2390478009848935,0,0,0]
[99,null,null,null,"Revenue Credits",null,null,-3517284.7233469267,-1511563.2324031766,-474978.50419531472,-741147.30693891691,-292729.34100804641,-361889.08499885543,-125436.64515960611,-9540.6086430102114,0,0,0]
[100]
[101,null,null,null,"Total Revenue Requirements",null,null,48517818.612752527,20583352.860041238,6552924.8355040196,10375749.24597818,4098721.770645719,5060748.7955728676,1729372.5730738174,116948.53193670018,0,0,0]
[102,null,null,null,"Operating Revenues",null,null,48463728.535235256,19854395.541656952,7196578.3550417861,10632094.769958869,4030241.3867660789,4687844.8004313232,1922347.7284418694,140225.95293838094,0,0,0]
[103]
[104,null,null,null,"Increase / (Decrease) Required to "]
[105,null,null,null,"Earn Equal Rates of Return",null,null,54090.077517271042,728957.31838428602,-643653.51953776646,-256345.5239806883,68480.38387964014,372903.99514154438,-192975.15536805196,-23277.421001680763,0,0,0]
[106]
[107,null,null,null,"Existing Revenues",null,null,48463728.535235256,19854395.541656952,7196578.3550417861,10632094.769958869,4030241.3867660789,4687844.8004313232,1922347.7284418694,140225.95293838094,0,0,0]
[108,null,null,null,"check",null,null,0,0,0,0,0,0,0,0,0,0,0]
[109,null,null,null,"Percent Increase / (Decrease) "]
[110,null,null,null,"Over Existing Rates To "]
[111,null,null,null,"Equal Authorized RoE & RoR",null,null,1.1160940181881628E-3,3.6715160471888671E-2,-8.9438826034157606E-2,-2.4110537906885117E-2,1.699163333107195E-2,7.9547001024273228E-2,-0.10038514495213888,-0.165999378245691,{"$error":"#DIV/0!"},{"$error":"#DIV/0!"}]
[112]
[113]
[114]
[115]
[116]
[117]
[118]
[119]
[120,null,null,null,null,"WCA",null,null,"ELECTRIC REVENUES"]
[121,null,"Transmission - Total -  Unbundled",null,null,"Method"]
[122,null,"A",null,"B",null,null,"D","E","F","G","H","I","J","K","S","T"]
[123,null,null,null,null,null,null,"Washington",null,"Small General","Large General","Large General","Large General","Agricultural","Street & Area"]
[124,null,"FERC",null,null,"COS",null,"Jurisdiction","Residential","Service","Service <1,000 kW","Service >1,000 kW","Dedicated Facilities","Pumping","Lighting","-","-"]
[125,null,"ACCT",null,"DESCRIPTION ","Factor",null,"Normalized","Schedule 16","Schedule 24","Schedule 36","Schedule 48T","Schedule 48T","Schedule 40","Sch. 15,51-54,57","-","-"]
[126,null,"440","Residential Sales",null,"A",null,19854395.541656952,19854395.541656952,0,0,0,0,0,0,0,0,0]
[127]
[128,null,"442","Commercial & Industrial Sales",null,"A",null,17837012.270681057,0,7196578.3550417861,0,4030241.3867660789,4687844.8004313232,1922347.7284418694,0,0,0,0]
[129,null,null,null,"Interruptible Demand","F10",null,0,0,0,0,0,0,0,0,0,0,0]
[130,null,null,null,"Interruptible Energy","F10",null,0,0,0,0,0,0,0,0,0,0,0]
[131,null,null,null,null,null,null,17837012.270681057,0,7196578.3550417861,0,4030241.3867660789,4687844.8004313232,1922347.7284418694,0,0,0,0]
[132]
[133,null,"444","Public Street & Highway Lighting",null,"A",null,10772320.72289725,0,0,10632094.769958869,0,0,0,140225.95293838094,0,0,0]
[134]
[135,null,"445","Other Sales to Public Authority",null,"A",null,0,0,0,0,0,0,0,0,0,0,0]
[136]
[137,null,"448","Interdepartmental",null,"A",0,0,0,0,0,0,0,0,0,0,0,0]
[138,null,null,null,"Demand","F10",null,0,0,0,0,0,0,0,0,0,0,0]
[139,null,null,null,null,null,null,0,0,0,0,0,0,0,0,0,0,0]
[140]
[141,null,"Total Sales to Ultimate Customers",null,null,null,null,48463728.535235256,19854395.541656952,7196578.3550417861,10632094.769958869,4030241.3867660789,4687844.8004313232,1922347.7284418694,140225.95293838094,0,0,0]
[142]
[143,null,"447","Sales for Resale",null,"F10",null,0,0,0,0,0,0,0,0,0,0,0]
[144,null,null,null,"Demand","F10",null,0,0,0,0,0,0,0,0,0,0,0]
[145,null,null,null,"Energy","F10",null,0,0,0,0,0,0,0,0,0,0,0]
[146,null,null,null,null,null,null,0,0,0,0,0,0,0,0,0,0,0]
[147]
[148,null,"447NPC","Sales for Resale",null,"F10",null,0,0,0,0,0,0,0,0,0,0,0]
[149,null,null,null,"Demand","F10",null,0,0,0,0,0,0,0,0,0,0,0]
[150,null,null,null,"Energy","F10",null,0,0,0,0,0,0,0,0,0,0,0]
[151,null,null,null,null,null,null,0,0,0,0,0,0,0,0,0,0,0]
[152]
[153,null,"449","Provision for Rate Refund",null,"F10",null,0,0,0,0,0,0,0,0,0,0,0]
[154]
[155,null,"State Specific Revenue Credit",null,null,"F140T",null,46115.182967653003,19581.225613731858,6228.3540842778375,9852.151445898744,3891.8452837379696,4805.7161799928108,1643.7916134507561,112.0987465630307,0,0,0]
[156]
[157,null,"AGA Revenue",null,null,"A",0,0,0,0,0,0,0,0,0,0,0,0]
[158]
[159,null,"Total Sales from Electricity",null,null,null,null,48509843.718202911,19873976.767270684,7202806.7091260636,10641946.921404768,4034133.2320498168,4692650.5166113162,1923991.5200553201,140338.05168494396,0,0,0]
[160]
[161,null,"Other Electric Operating Revenues"]
[162,null,"450","Forfeited Discounts & Interest",null,"A",0,0,0,0,0,0,0,0,0,0,0,0]
[163,null,null,null,"Customers","F40",null,0,0,0,0,0,0,0,0,0,0,0]
[164,null,null,null,null,null,null,0,0,0,0,0,0,0,0,0,0,0]
[165]
[166,null,"451","Misc Electric Revenue",null,"A",0,0,0,0,0,0,0,0,0,0,0,0]
[167,null,null,null,"Demand","F10",null,0,0,0,0,0,0,0,0,0,0,0]
[168,null,null,null,"Customer","F40",null,60.243502031493989,47.464371008108927,8.4859432807661666,0.47533756857893089,2.6354919324995191E-2,4.5508865184223972E-4,2.3937663086901808,1.3972738573729568,0,0,0]
[169,null,null,null,null,null,null,60.243502031493989,47.464371008108927,8.4859432807661666,0.47533756857893089,2.6354919324995191E-2,4.5508865184223972E-4,2.3937663086901808,1.3972738573729568,0,0,0]
[170]
[171,null,"453","Water Sales",null,"F10",null,0,0,0,0,0,0,0,0,0,0,0]
[172]
[173,null,"454","Rent of Electric Property",null,"A",0,0,0,0,0,0,0,0,0,0,0,0]
[174,null,null,null,"Demand","F10",null,0,0,0,0,0,0,0,0,0,0,0]
[175,null,null,null,"Customer","F40",null,52886.55359372728,41668.012589982172,7449.6382012611248,417.28925026004538,23.136451340611934,0.39951313525846227,2101.4390914595115,1226.6384962885656,0,0,0]
[176,null,null,null,null,null,null,52886.55359372728,41668.012589982172,7449.6382012611248,417.28925026004538,23.136451340611934,0.39951313525846227,2101.4390914595115,1226.6384962885656,0,0,0]
[177]
[178,null,"456","Other Electric Revenue",null,"A",0,0,0,0,0,0,0,0,0,0,0,0]
[179,null,null,null,"Demand","F10",null,2851543.3079250474,1209838.599888165,384818.16090790794,609711.1538575209,240934.14622658177,297885.07849606569,101515.184542537,6840.9840062688054,0,0,0]
[180,null,null,null,"Energy","F10",null,566679.43535846728,240427.92994028929,76473.865058587064,121166.23704766866,47880.18669146669,59197.890354572955,20173.836145850168,1359.4901200324359,0,0,0]
[181,null,null,null,"Customer","F40",null,0,0,0,0,0,0,0,0,0,0,0]
[182,null,null,null,null,null,null,3418222.7432835149,1450266.5298284544,461292.02596649498,730877.39090518956,288814.33291804849,357082.96885063866,121689.02068838716,8200.474126301242,0,0,0]
[183]
[184,null,"Total Other Electric Operating Revenues",null,null,null,null,3471169.5403792737,1491982.0067894447,468750.1501110369,731295.15549301822,288837.49572430842,357083.3688188626,123792.85354615535,9428.5098964471799,0,0,0]
[185]
[186,null,"Total Electric Operating Revenues",null,null,null,null,51981013.258582182,21365958.77406013,7671556.8592371009,11373242.076897785,4322970.7277741255,5049733.8854301786,2047784.3736014755,149766.56158139114,0,0,0]
[187]
[188,null,"Miscellaneous Revenues"]
[189,null,"41160","Gain on Sale of Utility Plant - CR",null,"F10",null,0,0,0,0,0,0,0,0,0,0,0]
[190,null,"41170","Loss on Sale of Utility Plant ",null,"F10",null,0,0,0,0,0,0,0,0,0,0,0]
[191,null,"4118","Gain from Emission Allowances",null,"F10",null,0,0,0,0,0,0,0,0,0,0,0]
[192,null,41181,"Gain from Disposition of NOX Credits",null,"F10",null,0,0,0,0,0,0,0,0,0,0,0]
[193,null,"4194","Impact Housing Interest Income",null,"F10",null,0,0,0,0,0,0,0,0,0,0,0]
[194,null,"421","(Gain)/Loss on Sale of Utility Plant",null,"F10",null,516.47518278949883,219.12751957385163,69.69875906961137,110.43166651622761,43.638301710785896,53.953327638032732,18.386560480004682,1.2390478009848935,0,0,0]
[195]
[196,null,"Total Miscellaneous Revenues",null,null,null,null,516.47518278949883,219.12751957385163,69.69875906961137,110.43166651622761,43.638301710785896,53.953327638032732,18.386560480004682,1.2390478009848935,0,0,0]
[197]
[198,null,"Miscellaneous Expenses"]
[199,null,"4311","Interest on Customer Deposits",null,"F80",null,0,0,0,0,0,0,0,0,0,0,0]
[200]
[201,null,"DFA","Divergence Fairness Adjustment"]
[202,null,null,"Production ",null,"F105",null,0,0,0,0,0,0,0,0,0,0,0]
[203,null,null,"Transmission",null,"F105",null,0,0,0,0,0,0,0,0,0,0,0]
[204,null,null,"Distribution",null,"F105",null,0,0,0,0,0,0,0,0,0,0,0]
[205,null,null,null,null,null,null,0,0,0,0,0,0,0,0,0,0,0]
[206]
[207,null,"Net Miscellaneous Revenues And Expense",null,null,null,null,516.47518278949883,219.12751957385163,69.69875906961137,110.43166651622761,43.638301710785896,53.953327638032732,18.386560480004682,1.2390478009848935,0,0,0]
[208]
[209,null,"Transmission - Total -  Unbundled"]
[210,null,null,null,null,null,null,"STEAM POWER GENERATION"]
[211]
[212,null,"A",null,"B","C",null,"D","E","F","G","H","I","J","K","S","T"]
[213,null,null,null,null,null,null,"Washington",null,"Small General","Large General","Large General","Large General","Agricultural","Street & Area"]
[214,null,"FERC",null,null,"COS",null,"Jurisdiction","Residential","Service","Service <1,000 kW","Service >1,000 kW","Dedicated Facilities","Pumping","Lighting","-","-"]
[215,null,"ACCT",null,"DESCRIPTION ","Factor",null,"Normalized","Schedule 16","Schedule 24","Schedule 36","Schedule 48T","Schedule 48T","Schedule 40","Sch. 15,51-54,57","-","-"]
[216,null,"500","Operation Suprvn & Engineering",null,"F10",null,0,0,0,0,0,0,0,0,0,0,0]
[217,null,null,null,"JBG","F10",null,0,0,0,0,0,0,0,0,0,0,0]
[218,null,null,null,"Total 500",null,null,0,0,0,0,0,0,0,0,0,0,0]
[219]
[220,null,"501","Fuel Related",null,"F10",null,0,0,0,0,0,0,0,0,0,0,0]
[221,null,null,null,"CAGW","F10",null,0,0,0,0,0,0,0,0,0,0,0]
[222,null,null,null,"JBE","F10",null,0,0,0,0,0,0,0,0,0,0,0]
[223,null,null,null,"Total 501",null,null,0,0,0,0,0,0,0,0,0,0,0]
[224]
[225,null,"501NPC","Fuel Related"]
[226,null,null,null,"CAEW","F10",null,0,0,0,0,0,0,0,0,0,0,0]
[227,null,null,null,"Total 501NPC",null,null,0,0,0,0,0,0,0,0,0,0,0]
[228]
[229,null,"502","Steam Expenses",null,"F10",null,0,0,0,0,0,0,0,0,0,0,0]
[230,null,null,null,"JBG","F10",null,0,0,0,0,0,0,0,0,0,0,0]
[231,null,null,null,"Total 502",null,null,0,0,0,0,0,0,0,0,0,0]
[232]
[233,null,"503","Steam From Other Sources",null,"F10",null,0,0,0,0,0,0,0,0,0,0,0]
[234]
[235,null,"503NPC","Steam From Other Sources-NPC",null,"F10",null,0,0,0,0,0,0,0,0,0,0,0]
[236]
[237,null,"505","Electric Expenses",null,"F10",null,0,0,0,0,0,0,0,0,0,0,0]
[238,null,null,null,"JBG","F10",null,0,0,0,0,0,0,0,0,0,0,0]
[239,null,null,null,"Total 505",null,null,0,0,0,0,0,0,0,0,0,0,0]
[240]
[241,null,"506","Misc. Steam Expense",null,"F10",null,0,0,0,0,0,0,0,0,0,0,0]
[242,null,null,null,"JBG","F10",null,0,0,0,0,0,0,0,0,0,0,0]
[243,null,null,null,"Total 506",null,null,0,0,0,0,0,0,0,0,0,0,0]
[244]
[245,null,"507","Rents",null,"F10",null,0,0,0,0,0,0,0,0,0,0,0]
[246,null,null,null,"JBG","F10",null,0,0,0,0,0,0,0,0,0,0,0]
[247,null,null,null,"Total 507",null,null,0,0,0,0,0,0,0,0,0,0,0]
[248]
[249,null,"510","Maint Supervision & Engineering",null,"F10",null,0,0,0,0,0,0,0,0,0,0,0]
[250,null,null,null,"JBG","F10",null,0,0,0,0,0,0,0,0,0,0,0]
[251,null,null,null,"Total 510",null,null,0,0,0,0,0,0,0,0,0,0,0]
[252]
[253,null,"511","Maintenance of Structures",null,"F10",null,0,0,0,0,0,0,0,0,0,0,0]
[254,null,null,null,"JBG","F10",null,0,0,0,0,0,0,0,0,0,0,0]
[255,null,null,null,"Total 511",null,null,0,0,0,0,0,0,0,0,0,0,0]
[256]
[257,null,"512","Maintenance of Boiler Plant",null,"F10",null,0,0,0,0,0,0,0,0,0,0,0]
[258,null,null,null,"JBG","F10",null,0,0,0,0,0,0,0,0,0,0,0]
[259,null,null,null,"Total 512",null,null,0,0,0,0,0,0,0,0,0,0,0]
[260]
[261,null,"513","Maintenance of Electric Plant",null,"F10",null,0,0,0,0,0,0,0,0,0,0,0]
[262,null,null,null,"JBG","F10",null,0,0,0,0,0,0,0,0,0,0,0]
[263,null,null,null,"Total 513",null,null,0,0,0,0,0,0,0,0,0,0,0]
[264]
[265,null,"514","Maint of Misc. Steam Plant",null,"F10",null,0,0,0,0,0,0,0,0,0,0,0]
[266,null,null,null,"JBG","F10",null,0,0,0,0,0,0,0,0,0,0,0]
[267,null,null,null,"Total 514",null,null,0,0,0,0,0,0,0,0,0,0,0]
[268]
[269,null,"Total Steam Power Generation",null,null,null,null,0,0,0,0,0,0,0,0,0,0,0]
[270]
[271]
[272,null,null,null,null,null,null,"NUCLEAR POWER GENERATION"]
[273]
[274]
[275,null,"517","Operation Super & Engineering",null,"F10",null,0,0,0,0,0,0,0,0,0,0,0]
[276]
[277,null,"518","Nuclear Fuel Expense",null,"F10",null,0,0,0,0,0,0,0,0,0,0,0]
[278]
[279,null,"519","Coolants and Water",null,"F10",null,0,0,0,0,0,0,0,0,0,0,0]
[280]
[281,null,"520","Steam Expenses",null,"F10",null,0,0,0,0,0,0,0,0,0,0,0]
[282]
[283,null,"523","Electric Expenses",null,"F10",null,0,0,0,0,0,0,0,0,0,0,0]
[284]
[285,null,"524","Misc. Nuclear Expenses",null,"F10",null,0,0,0,0,0,0,0,0,0,0,0]
[286]
[287,null,"528","Maint Supervision & Eng",null,"F10",null,0,0,0,0,0,0,0,0,0,0,0]
[288]
[289,null,"529","Maintenance of Structures",null,"F10",null,0,0,0,0,0,0,0,0,0,0,0]
[290]
[291,null,"530","Maintenance of Reactor Plant",null,"F10",null,0,0,0,0,0,0,0,0,0,0,0]
[292]
[293,null,"531","Maintenance of Electric Plant",null,"F10",null,0,0,0,0,0,0,0,0,0,0,0]
[294]
[295,null,"532","Maintenance of Misc Nuclear",null,"F10",null,0,0,0,0,0,0,0,0,0,0,0]
[296]
[297,null,"Total Nuclear Power Generation",null,null,null,null,0,0,0,0,0,0,0,0,0,0,0]
[298]
[299]
[300]
[301,null,"Transmission - Total -  Unbundled",null,null,null,null,"HYDRAULIC POWER GENERATION"]
[302]
[303,null,"A",null,"B","C",null,"D","E","F","G","H","I","J","K","S","T"]
[304,null,null,null,null,null,null,"Washington",null,"Small General","Large General","Large General","Large General","Agricultural","Street & Area"]
[305,null,"FERC",null,null,"COS",null,"Jurisdiction","Residential","Service","Service <1,000 kW","Service >1,000 kW","Dedicated Facilities","Pumping","Lighting","-","-"]
[306,null,"ACCT",null,"DESCRIPTION ","Factor",null,"Normalized","Schedule 16","Schedule 24","Schedule 36","Schedule 48T","Schedule 48T","Schedule 40","Sch. 15,51-54,57","-","-"]
[307,null,"535","Operation Super & Engineering",null,"F10",null,0,0,0,0,0,0,0,0,0,0,0]
[308]
[309,null,"536","Water For Power",null,"F10",null,0,0,0,0,0,0,0,0,0,0,0]
[310]
[311,null,"537","Hydraulic Expenses",null,"F10",null,0,0,0,0,0,0,0,0,0,0,0]
[312]
[313,null,"538","Electric Expenses",null,"F10",null,0,0,0,0,0,0,0,0,0,0,0]
[314]
[315,null,"539","Misc. Hydro Expenses",null,"F10",null,0,0,0,0,0,0,0,0,0,0,0]
[316]
[317,null,"540","Rents (Hydro Generation)",null,"F10",null,0,0,0,0,0,0,0,0,0,0,0]
[318]
[319,null,"541","Maint Supervision & Engineering",null,"F10",null,0,0,0,0,0,0,0,0,0,0,0]
[320]
[321,null,"542","Maintenance of Structures",null,"F10",null,0,0,0,0,0,0,0,0,0,0,0]
[322]
[323,null,"543","Maint of Dams & Waterways",null,"F10",null,0,0,0,0,0,0,0,0,0,0,0]
[324]
[325,null,"544","Maintenance of Electric Plant",null,"F10",null,0,0,0,0,0,0,0,0,0,0,0]
[326]
[327,null,"545","Maint of Misc. Hydro Plant",null,"F10",null,0,0,0,0,0,0,0,0,0,0,0]
[328]
[329,null,"Total Hydraulic Power Generation ",null,null,null,null,0,0,0,0,0,0,0,0,0,0,0]
[330]
[331]
[332,null,null,null,null,null,null,"OTHER POWER GENERATION"]
[333]
[334]
[335,null,"546","Operation Super & Engineering",null,"F10",null,0,0,0,0,0,0,0,0,0,0,0]
[336,null,null,null,"CAGE","F10",null,0,0,0,0,0,0,0,0,0,0,0]
[337,null,null,null,"Total 546",null,null,0,0,0,0,0,0,0,0,0,0,0]
[338]
[339,null,"547","Fuel","SE","F10",null,0,0,0,0,0,0,0,0,0,0,0]
[340,null,null,null,"SSECT","F10",null,null,0,0,0,0,0,0,0,0,0,0]
[341,null,null,null,"Total 547",null,null,0,0,0,0,0,0,0,0,0,0,0]
[342]
[343]
[344,null,"547NPC","Fuel","CAEW","F10",null,0,0,0,0,0,0,0,0,0,0,0]
[345,null,null,null,"SE","F10",null,null,0,0,0,0,0,0,0,0,0,0]
[346,null,null,null,"Total 547NPC",null,null,0,0,0,0,0,0,0,0,0,0,0]
[347]
[348,null,"548","Generation Expense",null,"F10",null,0,0,0,0,0,0,0,0,0,0,0]
[349,null,null,null,"CAGE","F10",null,0,0,0,0,0,0,0,0,0,0,0]
[350,null,null,null,"Total 548",null,null,0,0,0,0,0,0,0,0,0,0,0]
[351]
[352,null,"549","Miscellaneous Other",null,"F10",null,0,0,0,0,0,0,0,0,0,0,0]
[353,null,null,null,"CAGE","F10",null,0,0,0,0,0,0,0,0,0,0,0]
[354,null,null,"Total 549",null,null,null,0,0,0,0,0,0,0,0,0,0,0]
[355]
[356,null,"550","Maint Supervision & Engineering"]
[357,null,null,null,"SG","F10",null,0,0,0,0,0,0,0,0,0,0,0]
[358,null,null,null,"CAGE","F10",null,0,0,0,0,0,0,0,0,0,0,0]
[359,null,null,null,"Total 550",null,null,0,0,0,0,0,0,0,0,0,0,0]
[360]
[361,null,"552","Maintenance of Structures"]
[362,null,null,null,"SG","F10",null,0,0,0,0,0,0,0,0,0,0,0]
[363,null,null,null,"CAGE","F10",null,0,0,0,0,0,0,0,0,0,0,0]
[364,null,null,null,"Total 552",null,null,0,0,0,0,0,0,0,0,0,0,0]
[365]
[366,null,"553","Maint of Generation & Elect Plant"]
[367,null,null,null,"SG","F10",null,0,0,0,0,0,0,0,0,0,0,0]
[368,null,null,null,"CAGE","F10",null,0,0,0,0,0,0,0,0,0,0,0]
[369,null,null,null,"Total 553",null,null,0,0,0,0,0,0,0,0,0,0,0]
[370]
[371,null,"554","Maintenance of Misc. Other"]
[372,null,null,null,"SG","F10",null,0,0,0,0,0,0,0,0,0,0,0]
[373,null,null,null,"CAGE","F10",null,0,0,0,0,0,0,0,0,0,0,0]
[374,null,null,null,"Total 554",null,null,0,0,0,0,0,0,0,0,0,0,0]
[375]
[376,null,"Total Other Power Generation",null,null,null,null,0,0,0,0,0,0,0,0,0,0,0]
[377]
[378]
[379,null,null,null,null,null,null,"OTHER POWER SUPPLY"]
[380]
[381]
[382,null,"555","Purchased Power",null,"F10",null,0,0,0,0,0,0,0,0,0,0,0]
[383,null,null,null,"Demand","F10",null,0,0,0,0,0,0,0,0,0,0,0]
[384,null,null,null,"Energy","F10",null,0,0,0,0,0,0,0,0,0,0,0]
[385,null,null,null,"SSGP","F10",null,0,0,0,0,0,0,0,0,0,0,0]
[386,null,null,null,"Total 555",null,null,0,0,0,0,0,0,0,0,0,0,0]
[387]
[388,null,"555NPC","Purchased Power",null,"F10",null,0,0,0,0,0,0,0,0,0,0,0]
[389,null,null,null,"Demand","F10",null,0,0,0,0,0,0,0,0,0,0,0]
[390,null,null,null,"Energy","F10",null,0,0,0,0,0,0,0,0,0,0,0]
[391,null,null,null,"SSGP","F10",null,0,0,0,0,0,0,0,0,0,0,0]
[392,null,null,null,"Total 555NPC",null,null,0,0,0,0,0,0,0,0,0,0,0]
[393]
[394,null,"556","System Control & Load Dispatch",null,"F10",null,0,0,0,0,0,0,0,0,0,0,0]
[395]
[396,null,"557","Other Expenses",null,"F10",null,-1180771.9899890956,-500972.06210592791,-159346.17032690631,-252470.2502178571,-99766.428412863665,-123348.76904948721,-42035.583374542373,-2832.7265015109892,0,0,0]
[397,null,null,null,"CAGE/JBG","F10",null,1180771.9899890956,500972.06210592791,159346.17032690631,252470.2502178571,99766.428412863665,123348.76904948721,42035.583374542373,2832.7265015109892,0,0,0]
[398,null,null,null,"Total 557",null,null,0,0,0,0,0,0,0,0,0,0,0]
[399]
[400,null,"Embedded Cost Differentials"]
[401,null,"Company Owned Hydro",null,"DGP","F10",null,0,0,0,0,0,0,0,0,0,0,0]
[402,null,"Company Owned Hydro",null,"SG","F10",null,0,0,0,0,0,0,0,0,0,0,0]
[403,null,"Mid-C Contract",null,"MC","F10",null,0,0,0,0,0,0,0,0,0,0,0]
[404,null,"Mid-C Contract",null,"SG","F10",null,0,0,0,0,0,0,0,0,0,0,0]
[405,null,"Existing QF Contracts",null,"S ","F10",null,0,0,0,0,0,0,0,0,0,0,0]
[406,null,"Existing QF Contracts",null,"SG","F10",null,0,0,0,0,0,0,0,0,0,0,0]
[407,null,"Total Embedded Cost Differential",null,null,null,null,0,0,0,0,0,0,0,0,0,0,0]
[408]
[409,null,"Total Other Power Supply",null,null,null,null,0,0,0,0,0,0,0,0,0,0,0]
[410]
[411,null,"TOTAL PRODUCTION EXPENSE",null,null,null,null,0,0,0,0,0,0,0,0,0,0,0]
[412]
[413,null,"Transmission - Total -  Unbundled",null,null,null,null,"TRANSMISSION EXPENSE"]
[414]
[415]
[416,null,"A",null,"B","C",null,"D","E","F","G","H","I","J","K","S","T"]
[417,null,null,null,null,null,null,"Washington",null,"Small General","Large General","Large General","Large General","Agricultural","Street & Area"]
[418,null,"FERC",null,null,"COS",null,"Jurisdiction","Residential","Service","Service <1,000 kW","Service >1,000 kW","Dedicated Facilities","Pumping","Lighting","-","-"]
[419,null,"ACCT",null,"DESCRIPTION ","Factor",null,"Normalized","Schedule 16","Schedule 24","Schedule 36","Schedule 48T","Schedule 48T","Schedule 40","Sch. 15,51-54,57","-","-"]
[420,null,"560","Operation Supervision & Eng",null,"F106",null,413691.74531857861,175519.07437299786,55828.047981539748,88454.722282672141,34953.867676603477,43216.106059097743,14727.461355057767,992.46559060999994,0,0,0]
[421]
[422,null,"561","Load Dispatching",null,"F106",null,686316.31312052766,291186.86889253173,92618.962048420508,146746.74939040263,57988.610758078699,71695.698339508657,24432.919180063629,1646.5045115219812,0,0,0]
[423]
[424,null,"562","Station Expense",null,"F106",null,174038.91290467483,73840.363612736241,23486.697257676351,37212.644152486107,14704.990372880718,18180.890007139154,6195.8001170799616,417.52738467634919,0,0,0]
[425]
[426,null,"563","Overhead Line Expense",null,"F106",null,11508.592390949714,4882.8082906030959,1553.0941950682175,2460.7436704399079,972.39024014713948,1202.239481416774,409.70686895939861,27.609644315184045,0,0,0]
[427]
[428,null,"564","Underground Line Expense",null,"F106",null,0,0,0,0,0,0,0,0,0,0,0]
[429]
[430,null,"565","Transm of Electricity by Others",null,"F10",null,0,0,0,0,0,0,0,0,0,0,0]
[431,null,null,"Energy",null,"F10",null,0,0,0,0,0,0,0,0,0,0,0]
[432,null,null,null,null,null,null,0,0,0,0,0,0,0,0,0,0,0]
[433,null,"565NPC","Transm of Electricity by Others",null,"F10",null,0,0,0,0,0,0,0,0,0,0,0]
[434,null,null,"Energy",null,"F10",null,25180047.073464345,10683265.027682662,3398068.4703105316,5383946.1293400703,2127526.2159720757,2630421.3154214923,896411.81964460982,60408.095092902222,0,0,0]
[435]
[436,null,"566","Misc. Transmission Expense",null,"F106",null,171549.03847368414,72783.972083589484,23150.686615031518,36680.264297668356,14494.614549874665,17920.786491173018,6107.1603753487771,411.55406099836534,0,0,0]
[437]
[438,null,"567","Rents - Transmission",null,"F106",null,203773.09014363162,86455.832316868444,27499.34941323179,43570.345072890617,17217.306628750895,21287.056305306909,7254.3393583547577,488.86104822827303,0,0,0]
[439]
[440,null,"568","Maint Supervision & Engineering",null,"F106",null,223974.92828903478,95026.967641755575,30225.60441362669,47889.860758114221,18924.211311644194,23397.431457240746,7973.5265163156673,537.32619033775654,0,0,0]
[441]
[442,null,"569","Maintenance of Structures",null,"F106",null,357893.5191300243,151845.28072568143,48298.030561103871,76524.059761056094,30239.333638023691,37387.17162141126,12741.039752084098,858.60307066397547,0,0,0]
[443]
[444,null,"570","Maint of Station Equipment",null,"F106",null,849725.49116193003,360517.30151161185,114671.16767146,181686.56539026237,71795.467798465485,88766.158287480182,30250.299830995435,2038.530671654966,0,0,0]
[445]
[446,null,"571","Maintenance of Overhead Lines",null,"F106",null,2494451.0573639148,1058333.2774022305,336628.26221217593,533358.41970191209,210762.51380775671,260581.61100423147,88802.670019725454,5984.3032158834731,0,0,0]
[447]
[448,null,"572","Maint of Underground Lines",null,"F106",null,7773.0297420073148,3297.9023652992282,1048.976882689642,1662.0133104051322,656.76305153054545,812.00575436288091,276.72052061123463,18.647857108653636,0,0,0]
[449]
[450,null,"573","Maint of Misc Transmission Plant",null,"F106",null,137427.49336317769,58307.052778949881,18545.955485657261,29384.465358578498,11611.598424437037,14356.295951821396,4892.4304643063006,329.6948994273605,0,0,0]
[451]
[452]
[453,null,"TOTAL TRANSMISSION EXPENSE",null,null,null,null,30912170.284866482,13115261.729677517,4171623.3050482138,6609576.9824869605,2611847.8842302691,3229224.7661816818,1100475.8940035121,74159.723238328545,0,0,0]
[454]
[455]
[456]
[457]
[458]
[459]
[460]
[461]
[462]
[463]
[464]
[465,null,"Transmission - Total -  Unbundled",null,null,null,null,"DISTRIBUTION EXPENSE"]
[466]
[467]
[468,null,"A",null,"B","C",null,"D","E","F","G","H","I","J","K","S","T"]
[469,null,null,null,null,null,null,"Washington",null,"Small General","Large General","Large General","Large General","Agricultural","Street & Area"]
[470,null,"FERC",null,null,"COS",null,"Jurisdiction","Residential","Service","Service <1,000 kW","Service >1,000 kW","Dedicated Facilities","Pumping","Lighting","-","-"]
[471,null,"ACCT",null,"DESCRIPTION ","Factor",null,"Normalized","Schedule 16","Schedule 24","Schedule 36","Schedule 48T","Schedule 48T","Schedule 40","Sch. 15,51-54,57","-","-"]
[472,null,"580","Operation Supervision & Eng",null,"F131",null,0,0,0,0,0,0,0,0,0,0,0]
[473]
[474,null,"581","Load Dispatching",null,"F20",null,0,0,0,0,0,0,0,0,0,0,0]
[475]
[476,null,"582","Station Expense",null,"F120",null,0,0,0,0,0,0,0,0,0,0,0]
[477]
[478,null,"583","Overhead Line Expenses",null,"F132",null,0,0,0,0,0,0,0,0,0,0,0]
[479]
[480,null,"584","Underground Line Expense",null,"F133",null,0,0,0,0,0,0,0,0,0,0,0]
[481]
[482,null,"585","Street Lighting & Signal Systems",null,"F130",null,0,0,0,0,0,0,0,0,0,0,0]
[483]
[484,null,"586","Meter Expenses",null,"F127",null,0,0,0,0,0,0,0,0,0,0,0]
[485]
[486,null,"587","Customer Installation Expenses",null,"F20",null,0,0,0,0,0,0,0,0,0,0,0]
[487]
[488,null,"588","Misc. Distribution Expenses",null,"F131",null,0,0,0,0,0,0,0,0,0,0,0]
[489]
[490,null,"589","Rents",null,"F131",null,0,0,0,0,0,0,0,0,0,0,0]
[491]
[492,null,"590","Maint Supervision & Engineering",null,"F131",null,0,0,0,0,0,0,0,0,0,0,0]
[493]
[494,null,"591","Maintenance of Structures",null,"F119",null,0,0,0,0,0,0,0,0,0,0,0]
[495]
[496,null,"592","Maint of Station Equipment",null,"F120",null,0,0,0,0,0,0,0,0,0,0,0]
[497]
[498,null,"593","Maintenance of Overhead Lines",null,"F134",null,0,0,0,0,0,0,0,0,0,0,0]
[499]
[500,null,"594","Maint of Underground Lines",null,"F135",null,0,0,0,0,0,0,0,0,0,0,0]
[501]
[502,null,"595","Maint of Line Transformers",null,"F125",null,0,0,0,0,0,0,0,0,0,0,0]
[503]
[504,null,"596","Maint of Street Lighting & Signals",null,"F130",null,0,0,0,0,0,0,0,0,0,0,0]
[505]
[506,null,"597","Maintenance of Meters",null,"F127",null,0,0,0,0,0,0,0,0,0,0,0]
[507]
[508,null,"598","Maint of Misc. Distribution Plant",null,"F131",null,0,0,0,0,0,0,0,0,0,0,0]
[509]
[510,null,"TOTAL DISTRIBUTION EXPENSE",null,null,null,null,0,0,0,0,0,0,0,0,0,0,0]
[511]
[512]
[513,null,null,null,null,null,null,"CUSTOMER ACCOUNTS EXPENSE"]
[514]
[515]
[516,null,"901","Supervision",null,"F136",null,0,0,0,0,0,0,0,0,0,0,0]
[517]
[518,null,"902","Meter Reading Expense",null,"F41",null,0,0,0,0,0,0,0,0,0,0,0]
[519]
[520,null,"903","Customer Receipts & Collections",null,"F42",null,0,0,0,0,0,0,0,0,0,0,0]
[521]
[522,null,"904","Uncollectible Accounts",null,"F80",null,0,0,0,0,0,0,0,0,0,0,0]
[523]
[524,null,"905","Misc. Customer Accounts Exp",null,"F136",null,0,0,0,0,0,0,0,0,0,0,0]
[525]
[526,null,"TOTAL CUSTOMER ACCOUNTS EXPENSE",null,null,null,null,0,0,0,0,0,0,0,0,0,0,0]
[527]
[528,null,"Transmission - Total -  Unbundled",null,null,null,null,"CUSTOMER SERVICE EXPENSE"]
[529]
[530,null,"A",null,"B","C",null,"D","E","F","G","H","I","J","K","S","T"]
[531,null,null,null,null,null,null,"Washington",null,"Small General","Large General","Large General","Large General","Agricultural","Street & Area"]
[532,null,"FERC",null,null,"COS",null,"Jurisdiction","Residential","Service","Service <1,000 kW","Service >1,000 kW","Dedicated Facilities","Pumping","Lighting","-","-"]
[533,null,"ACCT",null,"DESCRIPTION ","Factor",null,"Normalized","Schedule 16","Schedule 24","Schedule 36","Schedule 48T","Schedule 48T","Schedule 40","Sch. 15,51-54,57","-","-"]
[534,null,"907","Supervision",null,"F40",null,0,0,0,0,0,0,0,0,0,0,0]
[535]
[536,null,"908","Customer Assistance",null,"F40",null,0,0,0,0,0,0,0,0,0,0,0]
[537]
[538,null,"909","Informational & Instructional Adv",null,"F40",null,0,0,0,0,0,0,0,0,0,0,0]
[539]
[540,null,"910","Misc. Customer Service",null,"F40",null,0,0,0,0,0,0,0,0,0,0,0]
[541]
[542,null,"TOTAL CUSTOMER SERVICE EXPENSE",null,null,null,null,0,0,0,0,0,0,0,0,0,0,0]
[543]
[544]
[545,null,null,null,null,null,null,"SALES EXPENSE"]
[546]
[547]
[548,null,"911","Supervision",null,"F40",null,0,0,0,0,0,0,0,0,0,0,0]
[549]
[550,null,"912","Demonstration & Selling Expense",null,"F40",null,0,0,0,0,0,0,0,0,0,0,0]
[551]
[552,null,"913","Advertising Expense",null,"F40",null,0,0,0,0,0,0,0,0,0,0,0]
[553]
[554,null,"916","Misc. Sales Expense",null,"F40",null,0,0,0,0,0,0,0,0,0,0,0]
[555]
[556,null,"TOTAL SALES EXPENSE",null,null,null,null,0,0,0,0,0,0,0,0,0,0,0]
[557]
[558]
[559,null,null,null,null,null,null,"ADMINISTRATION & GENERAL EXPENSE"]
[560]
[561]
[562,null,"920","Administrative & General Salaries",null,"F102T",null,977786.24278910272,414850.27973384445,131953.07350423941,209068.25320172354,82615.646391817645,102143.96214011878,34809.273492015534,2345.7543253436506,0,0,0]
[563,null,null,null,"Customer - System","F42",null,0,0,0,0,0,0,0,0,0,0,0]
[564,null,null,null,"Administrative & General Salaries",null,null,977786.24278910272,414850.27973384445,131953.07350423941,209068.25320172354,82615.646391817645,102143.96214011878,34809.273492015534,2345.7543253436506,0,0,0]
[565]
[566,null,"921","Office Supplies & expenses",null,"F102T",null,-217630.81165715051,-92335.317417782251,-29369.460553534507,-46533.374724364483,-18388.180762847398,-22734.696412808898,-7747.6754240824794,-522.10636173055764,0,0,0]
[567,null,null,null,"Customer - System","F42",null,0,0,0,0,0,0,0,0,0,0,0]
[568,null,null,null,"Office Supplies & expenses",null,null,-217630.81165715051,-92335.317417782251,-29369.460553534507,-46533.374724364483,-18388.180762847398,-22734.696412808898,-7747.6754240824794,-522.10636173055764,0,0,0]
[569]
[570,null,"923","Outside Services",null,"F102T",null,92441.57106306027,39220.649602469544,12475.067542919318,19765.667524886143,7810.6234396029531,9656.8635573193824,3290.9278003205677,221.77159554238798,0,0,0]
[571,null,null,null,"Customer - System","F42",null,0,0,0,0,0,0,0,0,0,0,0]
[572,null,null,null,"Outside Services",null,null,92441.57106306027,39220.649602469544,12475.067542919318,19765.667524886143,7810.6234396029531,9656.8635573193824,3290.9278003205677,221.77159554238798,0,0,0]
[573]
[574,null,"924","Property Insurance",null,"F102T",null,112517.14163657717,47738.212750508595,15184.28262859136,24058.184936320395,9506.8594542196824,11754.04822904613,4005.6198219719049,269.93381591914397,0,0,0]
[575]
[576,null,"925","Injuries & Damages",null,"F102T",null,132436.09233233865,56189.325996457199,17872.361730407934,28317.214206046297,11189.86225704396,13834.871681762259,4714.7361626405327,317.72029798050738,0,0,0]
[577]
[578,null,"926","Employee Pensions & Benefits",null,"F138T",null,0,0,0,0,0,0,0,0,0,0,0]
[579]
[580,null,"927","Franchise Requirements",null,"F102",null,0,0,0,0,0,0,0,0,0,0,0]
[581]
[582,null,"928","Regulatory Commission Expense",null,"F141",null,266498.18070845352,118059.01192680359,39836.445401951474,53933.0184498167,20265.687965612164,21983.460078684926,10953.992961708112,1466.5639238765839,0,0,0]
[583]
[584,null,"929","Duplicate Charges",null,"F138T",null,-31257.84883289658,-13261.924503270258,-4218.2729150150544,-6683.4892621277659,-2641.0551438945386,-3265.3359068149557,-1112.7820797444563,-74.989022029552189,0,0,0]
[585]
[586,null,"930","Misc General Expenses",null,"F138T",null,59808.148129433735,25375.103367260526,8071.1597493582176,12788.055823922659,5053.3425415318343,6247.8289741300268,2129.1751654737418,143.48250775673159,0,0,0]
[587]
[588,null,"931","Rents",null,"F102T",null,76968.707580204573,32655.900106877838,10386.991639283713,16457.291523233696,6503.2818528342905,8040.4984330936313,2740.0925429712643,184.65148191016019,0,0,0]
[589]
[590,null,"935","Maintenance of General Plant",null,"F108",null,289652.85568355815,137546.46406105196,40304.57340790749,55397.043106594967,21369.299552473352,22134.572731059539,11263.665334197723,1637.2374902730878,0,0,0]
[591]
[592,null,"TOTAL ADMINISTRATIVE & GEN EXPENSE",null,null,null,null,1759220.2794326816,766037.70562422101,242496.22213610937,366567.86478605215,143285.36754839393,169796.07350559082,65047.025777472445,5990.0200548421444,0,0,0]
[593]
[594]
[595,null,"TOTAL O & M EXPENSE",null,null,null,null,32671390.564299162,13881299.435301738,4414119.5271843234,6976144.8472730126,2755133.2517786631,3399020.8396872724,1165522.9197809845,80149.743293170686,0,0,0]
[596]
[597,null,"Transmission - Total -  Unbundled",null,null,null,null,"DEPRECIATION EXPENSE"]
[598]
[599,null,"A",null,"B","C",null,"D","E","F","G","H","I","J","K","S","T"]
[600,null,null,null,null,null,null,"Washington",null,"Small General","Large General","Large General","Large General","Agricultural","Street & Area"]
[601,null,"FERC",null,null,"COS",null,"Jurisdiction","Residential","Service","Service <1,000 kW","Service >1,000 kW","Dedicated Facilities","Pumping","Lighting","-","-"]
[602,null,"ACCT",null,"DESCRIPTION ","Factor",null,"Normalized","Schedule 16","Schedule 24","Schedule 36","Schedule 48T","Schedule 48T","Schedule 40","Sch. 15,51-54,57","-","-"]
[603,null,"403SP","Steam Depreciation",null,"F10",null,0,0,0,0,0,0,0,0,0,0,0]
[604,null,null,null,"JBG","F10",null,0,0,0,0,0,0,0,0,0,0,0]
[605,null,null,null,"Total 403SP",null,null,0,0,0,0,0,0,0,0,0,0,0]
[606]
[607,null,"403NP","Nuclear Depreciation",null,"F10",null,0,0,0,0,0,0,0,0,0,0,0]
[608]
[609,null,"403HP","Hydro Depreciation",null,"F10",null,0,0,0,0,0,0,0,0,0,0,0]
[610]
[611,null,"403OP","Other Production Depreciation",null,"F10",null,0,0,0,0,0,0,0,0,0,0,0]
[612,null,null,null,"CAGE","F10",null,0,0,0,0,0,0,0,0,0,0,0]
[613,null,null,null,"CAEE","F10",null,0,0,0,0,0,0,0,0,0,0,0]
[614,null,null,null,"Total 403OP",null,null,0,0,0,0,0,0,0,0,0,0,0]
[615]
[616,null,"403TP","Transmission Depreciation",null,"F106",null,5024061.0922208102,2131583.6307560652,678001.25792380434,1074234.4600116257,424495.69904137892,524836.08741479577,178857.00263163645,12052.954441505315,0,0,0]
[617]
[618,null,"403","Distribution Depreciation"]
[619,null,null,null,"Land Rights","F118",null,0,0,0,0,0,0,0,0,0,0,0]
[620,null,null,null,"Structures","F119",null,0,0,0,0,0,0,0,0,0,0,0]
[621,null,null,null,"Station Equip","F120",null,0,0,0,0,0,0,0,0,0,0,0]
[622,null,null,null,"Poles & Towers","F121",null,0,0,0,0,0,0,0,0,0,0,0]
[623,null,null,null,"OH Conductors","F122",null,0,0,0,0,0,0,0,0,0,0,0]
[624,null,null,null,"UG Conduit","F123",null,0,0,0,0,0,0,0,0,0,0,0]
[625,null,null,null,"UG Conductor","F124",null,0,0,0,0,0,0,0,0,0,0,0]
[626,null,null,null,"Line Transformer","F125",null,0,0,0,0,0,0,0,0,0,0,0]
[627,null,null,null,"Services","F126",null,0,0,0,0,0,0,0,0,0,0,0]
[628,null,null,null,"Meters","F127",null,0,0,0,0,0,0,0,0,0,0,0]
[629,null,null,null,"Inst Cust Premises","F128",null,0,0,0,0,0,0,0,0,0,0,0]
[630,null,null,null,"Leased Property","F129",null,0,0,0,0,0,0,0,0,0,0,0]
[631,null,null,null,"Street Lighting","F130",null,0,0,0,0,0,0,0,0,0,0,0]
[632,null,null,"Total Distribution Expense",null,null,null,0,0,0,0,0,0,0,0,0,0,0]
[633]
[634,null,"403GP","General Depreciation"]
[635,null,null,null,"Situs","F107T",null,293205.43952319724,124399.74432317591,39568.319966219984,62692.586976374689,24773.673275162491,30629.562989662598,10438.138610537773,703.41338206388946,0,0,0]
[636,null,null,null,"System Generation","F105T",null,429.89675459537574,182.3944550414686,58.014927574096362,91.919644199505086,36.323070123519834,44.908954435986239,15.30436106500628,1.0313421557934599,0,0,0]
[637,null,null,null,"System Overheads","F102T",null,198661.22273674107,84286.994660018448,26809.498619502796,42477.336046389159,16785.391950871126,20753.047574129294,7072.3564434450482,476.59744238524922,0,0,0]
[638,null,null,null,"Customer - System","F42",null,0,0,0,0,0,0,0,0,0,0,0]
[639,null,null,null,"Energy","F10",null,0,0,0,0,0,0,0,0,0,0,0]
[640,null,null,null,"CAEE","F105T",null,0,0,0,0,0,0,0,0,0,0,0]
[641,null,null,null,"CAEE","F105T",null,0,0,0,0,0,0,0,0,0,0,0]
[642,null,null,"Total General Expense",null,null,null,492296.5590145337,208869.13343823585,66435.833513296879,105261.84266696335,41595.388296157136,51427.519518227877,17525.799415047826,1181.0421666049322,0,0,0]
[643]
[644,null,"403GV0","General Vehicles",null,"F105T",null,0,0,0,0,0,0,0,0,0,0,0]
[645]
[646,null,"403MP","Mining Depreciation",null,"F10",null,0,0,0,0,0,0,0,0,0,0,0]
[647]
[648,null,"403EP","Experimental Plant Depreciation",null,"F10",null,0,0,0,0,0,0,0,0,0,0,0]
[649]
[650]
[651,null,"TOTAL DEPRECIATION EXPENSE",null,null,null,null,5516357.6512353439,2340452.7641943013,744437.09143710125,1179496.302678589,466091.08733753604,576263.60693302366,196382.80204668429,13233.996608110247,0,0,0]
[652]
[653,null,null,null,null,null,null,"AMORTIZATION EXPENSE"]
[654]
[655]
[656,null,"404GP","Amort of LT Plant - Cap. Lease Gen"]
[657,null,null,"Division",null,"F10",null,93269.260937571249,39571.817742240353,12586.76498564312,19942.642479824306,7880.5570621088636,9743.327775679265,3320.3936303226769,223.75726175266209,0,0,0]
[658,null,null,"System Overheads",null,"F102T",null,17136.550002469387,7270.6101304094427,2312.5917947412117,3664.1020482152712,1447.9106919538376,1790.1613236769845,610.06263909382585,41.111374378817665,0,0,0]
[659,null,null,"Customer - System",null,"F42",null,0,0,0,0,0,0,0,0,0,0,0]
[660,null,null,"Total Amort. Cap. Lease General",null,null,null,110405.81094004064,46842.427872649794,14899.356780384333,23606.744528039577,9328.4677540627017,11533.489099356249,3930.4562694165029,264.86863613147978,0,0,0]
[661]
[662,null,"404SP","Amort of LT Plant - Cap Lease Steam",null,"F10",null,0,0,0,0,0,0,0,0,0,0,0]
[663]
[664,null,"404IP","Amort of LT Plant - Intangible Plant"]
[665,null,null,null,"Situs","F107T",null,84.292439375860241,35.763176576075125,11.375335387300554,18.023236866326346,7.1220825782080714,8.805568497002465,3.0008180184391517,0.20222145250855156,0,0,0]
[666,null,null,null,"System Generation","F105T",null,489707.83043310273,207770.80056222985,66086.482420144137,104708.32602002288,41376.660034571214,51157.089251732745,17433.640457144527,1174.8316872575128,0,0,0]
[667,null,null,null,"System Overheads","F102T",null,208709.81668231305,88550.362077994578,28165.564799910597,44625.905837411752,17634.423209251585,21802.76903125488,7430.0872434447283,500.70448304498535,0,0,0]
[668,null,null,null,"Customer - System","F42",null,0,0,0,0,0,0,0,0,0,0,0]
[669,null,null,null,"Energy","F10",null,0,0,0,0,0,0,0,0,0,0,0]
[670,null,null,null,"CAEW","F105T",null,0,0,0,0,0,0,0,0,0,0,0]
[671,null,null,null,"CAEE","F105T",null,0,0,0,0,0,0,0,0,0,0,0]
[672,null,null,"Total Amort. Intangible Plant",null,null,null,698501.93955479166,296356.9258168005,94263.422555442041,149352.25509430096,59018.205326401003,72968.663851484627,24866.728518607692,1675.7383917550069,0,0,0]
[673]
[674,null,"Transmission - Total -  Unbundled",null,null,null,null,"AMORTIZATION EXPENSE (continued)"]
[675]
[676]
[677,null,"A",null,"B","C",null,"D","E","F","G","H","I","J","K","S","T"]
[678,null,null,null,null,null,null,"Washington",null,"Small General","Large General","Large General","Large General","Agricultural","Street & Area"]
[679,null,"FERC",null,null,"COS",null,"Jurisdiction","Residential","Service","Service <1,000 kW","Service >1,000 kW","Dedicated Facilities","Pumping","Lighting","-","-"]
[680,null,"ACCT",null,"DESCRIPTION ","Factor",null,"Normalized","Schedule 16","Schedule 24","Schedule 36","Schedule 48T","Schedule 48T","Schedule 40","Sch. 15,51-54,57","-","-"]
[681,null,"404MP",null,"Amort of LT Plant - Mining Plant","F10",null,0,0,0,0,0,0,0,0,0,0,0]
[682]
[683,null,"404OP",null,"Amort of LT Plant - Other Plant","F30",null,0,0,0,0,0,0,0,0,0,0,0]
[684]
[685,null,"404HP",null,"Amort of Other Electric Plant","F110",null,0,0,0,0,0,0,0,0,0,0,0]
[686]
[687,null,"405",null,"Amort of Other Electric Plant","F110",null,0,0,0,0,0,0,0,0,0,0,0]
[688]
[689,null,"406",null,"Amort of Plant Acquisition Adj","F10",null,0,0,0,0,0,0,0,0,0,0,0]
[690]
[691,null,"407",null,"Amort of Prop Losses, Unrec Plant,","F110",null,0,0,0,0,0,0,0,0,0,0,0]
[692]
[693]
[694,null,"TOTAL AMORTIZATION EXPENSE",null,null,null,null,808907.75049483217,343199.3536894503,109162.77933582637,172958.99962234055,68346.673080463705,84502.152950840886,28797.184788024198,1940.6070278864865,0,0,0]
[695]
[696]
[697,null,null,null,null,null,null,"TAX OTHER THAN INCOME"]
[698]
[699]
[700,null,"408","Taxes Other Than Income",null,"F101T",null,1735559.8444360248,736098.70798844274,234299.72335097476,371152.72739782621,146672.28508372279,181410.40454059938,61777.622040691036,4148.37403376771,0,0,0]
[701,null,null,null,"Customer - System","F101T",null,2513334.8149019605,1065974.4842119738,339298.96091324871,537481.36337983748,212402.10279348536,262707.78675770632,89462.687647730301,6007.4291979783093,0,0,0]
[702,null,null,"Total Taxes Other Than Income",null,null,null,4248894.6593379853,1802073.1922004167,573598.68426422344,908634.09077766375,359074.38787720818,444118.1912983057,151240.30968842134,10155.80323174602,0,0,0]
[703]
[704]
[705,null,null,null,null,null,null,"DEFERRED  ITC"]
[706]
[707]
[708,null,"41140","Deferred I T C - Federal",null,"F101T",null,0,0,0,0,0,0,0,0,0,0,0]
[709]
[710,null,"41141","Deferred I T C - Idaho",null,"F101T",null,0,0,0,0,0,0,0,0,0,0,0]
[711]
[712,null,"TOTAL DEFERRED ITC",null,null,null,null,0,0,0,0,0,0,0,0,0,0,0]
[713]
[714]
[715,null,null,null,null,null,null,"DEFERRED INCOME TAXES"]
[716]
[717]
[718,null,"41010","Deferred Income Tax - Federal-DR",null,"F101T",null,6816108.9946557181,2890899.4642618462,920171.35387047357,1457637.6906377415,576029.85274802626,712457.76633828529,242620.8503324918,16292.016466852865,0,0,0]
[719]
[720,null,"41011","Deferred Income Tax - State-DR",null,"F101T",null,0,0,0,0,0,0,0,0,0,0,0]
[721]
[722,null,"41110","Deferred Income Tax - Federal-CR",null,"F101T",null,-4129899.5710360007,-1751604.0994538481,-557534.40600919176,-883186.76799486543,-349018.10455690412,-431680.16032149311,-147004.65419467058,-9871.3785050272145,0,0,0]
[723]
[724,null,"41111","Deferred Income Tax - State-CR",null,"F101T",null,0,0,0,0,0,0,0,0,0,0,0]
[725]
[726,null,"TOTAL DEFERRED INCOME TAXES",null,null,null,null,2686209.4236197174,1139295.3648079981,362636.94786128181,574450.92264287604,227011.74819112214,280777.60601679218,95616.196137821215,6420.6379618256506,0,0,0]
[727]
[728]
[729,null,null,null,null,null,null,"INCOME TAXES"]
[730]
[731]
[732,null,"40911","State Income Taxes",null,"F101T",null,0,0,0,0,0,0,0,0,0,0,0]
[733]
[734,null,"40910","Federal Income Tax",null,"F101T",null,-368427.97097115335,-156260.44488647205,-49737.594442531576,-78789.012498745476,-31135.873858995863,-38510.148452799622,-13114.272038986201,-880.62479262252509,0,0,0]
[735]
[736]
[737,null,"TOTAL OPERATING EXPENSES",null,null,null,null,45563848.553198673,19350278.792827003,6154287.1343992949,9733006.5821622517,3844564.9127077078,4746226.2017610734,1624463.5269634298,111021.40237791756,0,0,0]
[738]
[739]
[740,null,"Transmission - Total -  Unbundled",null,null,null,null,"STEAM PRODUCTION PLANT"]
[741]
[742,null,"A",null,"B","C",null,"D","E","F","G","H","I","J","K","S","T"]
[743,null,null,null,null,null,null,"Washington",null,"Small General","Large General","Large General","Large General","Agricultural","Street & Area"]
[744,null,"FERC",null,null,"COS",null,"Jurisdiction","Residential","Service","Service <1,000 kW","Service >1,000 kW","Dedicated Facilities","Pumping","Lighting","-","-"]
[745,null,"ACCT",null,"DESCRIPTION ","Factor",null,"Normalized","Schedule 16","Schedule 24","Schedule 36","Schedule 48T","Schedule 48T","Schedule 40","Sch. 15,51-54,57","-","-"]
[746,null,"310","Land and Land Rights",null,"F10",null,0,0,0,0,0,0,0,0,0,0,0]
[747,null,null,null,"JBG","F10",null,0,0,0,0,0,0,0,0,0,0,0]
[748,null,null,null,"Total 310",null,null,0,0,0,0,0,0,0,0,0,0,0]
[749]
[750,null,"311","Structures and Improvements",null,"F10",null,0,0,0,0,0,0,0,0,0,0,0]
[751,null,null,null,"JBG","F10",null,0,0,0,0,0,0,0,0,0,0,0]
[752,null,null,null,"Total 311",null,null,0,0,0,0,0,0,0,0,0,0,0]
[753]
[754,null,"312","Boiler Plant Equipment",null,"F10",null,0,0,0,0,0,0,0,0,0,0,0]
[755,null,null,null,"JBG","F10",null,0,0,0,0,0,0,0,0,0,0,0]
[756,null,null,null,"Total 312",null,null,0,0,0,0,0,0,0,0,0,0,0]
[757]
[758,null,"314","Turbogenerator Units",null,"F10",null,0,0,0,0,0,0,0,0,0,0,0]
[759,null,null,null,"JBG","F10",null,0,0,0,0,0,0,0,0,0,0,0]
[760,null,null,null,"Total 314",null,null,0,0,0,0,0,0,0,0,0,0,0]
[761]
[762,null,"315","Accessory Electric Equipment",null,"F10",null,0,0,0,0,0,0,0,0,0,0,0]
[763,null,null,null,"JBG","F10",null,0,0,0,0,0,0,0,0,0,0,0]
[764,null,null,null,"Total 315",null,null,0,0,0,0,0,0,0,0,0,0,0]
[765]
[766,null,"316","Misc Power Plant Equipment",null,"F10",null,0,0,0,0,0,0,0,0,0,0,0]
[767,null,null,null,"JBG","F10",null,0,0,0,0,0,0,0,0,0,0,0]
[768,null,null,null,"Total 316",null,null,0,0,0,0,0,0,0,0,0,0,0]
[769]
[770,null,"SP","Unclassified Steam Plant - Acct 300",null,"F10",null,0,0,0,0,0,0,0,0,0,0,0]
[771]
[772]
[773]
[774,null,"Total Steam Production Plant",null,null,null,null,0,0,0,0,0,0,0,0,0,0,0]
[775]
[776]
[777,null,null,null,null,null,null,"NUCLEAR PRODUCTION"]
[778]
[779]
[780,null,"320","Land and Land Rights",null,"F10",null,0,0,0,0,0,0,0,0,0,0,0]
[781]
[782,null,"321","Structures and Improvements",null,"F10",null,0,0,0,0,0,0,0,0,0,0,0]
[783]
[784,null,"322","Reactor Plant Equipment",null,"F10",null,0,0,0,0,0,0,0,0,0,0,0]
[785]
[786,null,"323","Turbogenerator Units",null,"F10",null,0,0,0,0,0,0,0,0,0,0,0]
[787]
[788,null,"324","Land and Land Rights",null,"F10",null,0,0,0,0,0,0,0,0,0,0,0]
[789]
[790,null,"325","Misc. Power Plant Equipment",null,"F10",null,0,0,0,0,0,0,0,0,0,0,0]
[791]
[792,null,"NP","Unclassified Nuclear Plt - Acct 300",null,"F10",null,0,0,0,0,0,0,0,0,0,0,0]
[793]
[794,null,"Total Nuclear Production Plant",null,null,null,null,0,0,0,0,0,0,0,0,0,0,0]
[795]
[796]
[797,null,null,null,null,null,null,"HYDRAULIC PRODUCTION PLANT"]
[798]
[799]
[800,null,"330","Land and Land Rights",null,"F10",null,0,0,0,0,0,0,0,0,0,0,0]
[801]
[802,null,"331","Structures and Improvements",null,"F10",null,0,0,0,0,0,0,0,0,0,0,0]
[803]
[804,null,"332","Reservoirs, Dams & Waterways",null,"F10",null,0,0,0,0,0,0,0,0,0,0,0]
[805]
[806,null,"333","Water Wheel, Turbines, & Generators",null,"F10",null,0,0,0,0,0,0,0,0,0,0,0]
[807]
[808,null,"334","Accessory Electric Equipment",null,"F10",null,0,0,0,0,0,0,0,0,0,0,0]
[809]
[810,null,"335","Misc. Power Plant Equipment",null,"F10",null,0,0,0,0,0,0,0,0,0,0,0]
[811]
[812,null,"336","Roads, Railroads & Bridges",null,"F10",null,0,0,0,0,0,0,0,0,0,0,0]
[813]
[814,null,"HP","Unclassified Hydro Plant - Acct 300",null,"F10",null,0,0,0,0,0,0,0,0,0,0,0]
[815]
[816,null,"Total Hydraulic Plant",null,null,null,null,0,0,0,0,0,0,0,0,0,0,0]
[817]
[818,null,"Transmission - Total -  Unbundled",null,null,null,null,"OTHER PRODUCTION PLANT"]
[819,null,"A",null,"B","C",null,"D","E","F","G","H","I","J","K","S","T"]
[820,null,null,null,null,null,null,"Washington",null,"Small General","Large General","Large General","Large General","Agricultural","Street & Area"]
[821,null,"FERC",null,null,"COS",null,"Jurisdiction","Residential","Service","Service <1,000 kW","Service >1,000 kW","Dedicated Facilities","Pumping","Lighting","-","-"]
[822,null,"ACCT",null,"DESCRIPTION ","Factor",null,"Normalized","Schedule 16","Schedule 24","Schedule 36","Schedule 48T","Schedule 48T","Schedule 40","Sch. 15,51-54,57","-","-"]
[823,null,"340","Land and Land Rights"]
[824,null,null,null,"SG","F10",null,0,0,0,0,0,0,0,0,0,0,0]
[825,null,null,null,"CAGE","F10",null,0,0,0,0,0,0,0,0,0,0,0]
[826,null,null,null,"Total 340",null,null,0,0,0,0,0,0,0,0,0,0,0]
[827]
[828,null,"341","Structures and Improvements"]
[829,null,null,null,"SG","F10",null,0,0,0,0,0,0,0,0,0,0,0]
[830,null,null,null,"CAGE","F10",null,0,0,0,0,0,0,0,0,0,0,0]
[831,null,null,null,"Total 341",null,null,0,0,0,0,0,0,0,0,0,0,0]
[832]
[833,null,"342","Fuel Holders, Producers & Access"]
[834,null,null,null,"SG","F10",null,0,0,0,0,0,0,0,0,0,0,0]
[835,null,null,null,"CAGE","F10",null,0,0,0,0,0,0,0,0,0,0,0]
[836,null,null,null,"Total 342",null,null,0,0,0,0,0,0,0,0,0,0,0]
[837]
[838,null,"343","Prime Movers",null,"F10",null,0,0,0,0,0,0,0,0,0,0,0]
[839,null,null,null,"CAGE","F10",null,0,0,0,0,0,0,0,0,0,0,0]
[840,null,null,null,"Total 343",null,null,0,0,0,0,0,0,0,0,0,0,0]
[841]
[842,null,"344","Generators"]
[843,null,null,null,"SG","F10",null,0,0,0,0,0,0,0,0,0,0,0]
[844,null,null,null,"CAGE","F10",null,0,0,0,0,0,0,0,0,0,0,0]
[845,null,null,null,"Total 344",null,null,0,0,0,0,0,0,0,0,0,0,0]
[846]
[847,null,"345","Accessory Electric Plant"]
[848,null,null,null,"SG","F10",null,0,0,0,0,0,0,0,0,0,0,0]
[849,null,null,null,"CAGE","F10",null,0,0,0,0,0,0,0,0,0,0,0]
[850,null,null,null,"Total 345",null,null,0,0,0,0,0,0,0,0,0,0,0]
[851]
[852,null,"346","Misc. Power Plant Equipment",null,"F10",null,0,0,0,0,0,0,0,0,0,0,0]
[853]
[854,null,"OP","Unclassified Other Prod - Acct 300",null,"F10",null,0,0,0,0,0,0,0,0,0,0,0]
[855]
[856,null,"Total Other Production Plant",null,null,null,null,0,0,0,0,0,0,0,0,0,0,0]
[857]
[858,null,"Experimental Plant"]
[859,null,"103","Experimental Plant",null,"F10",null,0,0,0,0,0,0,0,0,0,0,0]
[860]
[861,null,"TOTAL PRODUCTION PLANT",null,null,null,null,0,0,0,0,0,0,0,0,0,0,0]
[862]
[863,null,null,null,null,null,null,"TRANSMISSION PLANT"]
[864,null,"350","Land and Land Rights"]
[865,null,null,null,"Demand","F10",null,6763511.8434239225,2869589.1366031128,912741.59562357957,1446160.2595065346,571466.31683966343,706546.960303211,240781.59747130916,16225.977076511886,0,0,0]
[866,null,null,null,"Direct Assigned","A",1,0,0,0,0,0,0,0,0,0,0,0]
[867,null,null,null,null,null,null,6763511.8434239225,2869589.1366031128,912741.59562357957,1446160.2595065346,571466.31683966343,706546.960303211,240781.59747130916,16225.977076511886,0,0,0]
[868,null,"352","Structures and Improvements"]
[869,null,null,null,"Demand","F10",null,8046409.0148046054,3413890.3622973114,1085869.644828592,1720466.7069903144,679861.5615564679,840564.18653190706,286452.84599833027,19303.706601682199,0,0,0]
[870,null,null,null,"Direct Assigned","A",1,0,0,0,0,0,0,0,0,0,0,0]
[871,null,null,null,null,null,null,8046409.0148046054,3413890.3622973114,1085869.644828592,1720466.7069903144,679861.5615564679,840564.18653190706,286452.84599833027,19303.706601682199,0,0,0]
[872,null,"353","Station Equipment"]
[873,null,null,null,"Demand","F10",null,99887523.767113864,42379781.350274108,13479905.105027447,21357745.892463353,8439750.9203635622,10434701.368711056,3556004.3505333099,239634.779741028,0,0,0]
[874,null,null,null,"Direct Assigned","A",1,0,0,0,0,0,0,0,0,0,0,0]
[875,null,null,null,null,null,null,99887523.767113864,42379781.350274108,13479905.105027447,21357745.892463353,8439750.9203635622,10434701.368711056,3556004.3505333099,239634.779741028,0,0,0]
[876,null,"354","Towers and Fixtures"]
[877,null,null,null,"Demand","F10",null,41570903.64456252,17637496.061043628,5610028.3110975921,8888605.5342675019,3512431.3734369674,4342684.1391105345,1479927.7090932797,99730.516513014096,0,0,0]
[878,null,null,null,"Direct Assigned","A",1,0,0,0,0,0,0,0,0,0,0,0]
[879,null,null,null,null,null,null,41570903.64456252,17637496.061043628,5610028.3110975921,8888605.5342675019,3512431.3734369674,4342684.1391105345,1479927.7090932797,99730.516513014096,0,0,0]
[880,null,"355","Poles and Fixtures"]
[881,null,null,null,"Demand","F10",null,50306420.034921594,21343757.470309217,6788893.5741908448,10756415.769905388,4250517.3697148804,5255235.5909554949,1790912.8363319531,120687.42351381641,0,0,0]
[882,null,null,null,"Direct Assigned","A",1,0,0,0,0,0,0,0,0,0,0,0]
[883,null,null,null,null,null,null,50306420.034921594,21343757.470309217,6788893.5741908448,10756415.769905388,4250517.3697148804,5255235.5909554949,1790912.8363319531,120687.42351381641,0,0,0]
[884,null,"356","Overhead Conductors"]
[885,null,null,null,"Demand","F10",null,65755544.287997507,27898435.003662303,8873765.8488582913,14059715.89803331,5555853.1685850481,6869120.8081404744,2340902.9750799383,157750.58563813852,0,0,0]
[886,null,null,null,"Direct Assigned","A",1,0,0,0,0,0,0,0,0,0,0,0]
[887,null,null,null,null,null,null,65755544.287997507,27898435.003662303,8873765.8488582913,14059715.89803331,5555853.1685850481,6869120.8081404744,2340902.9750799383,157750.58563813852,0,0,0]
[888,null,"357","Underground Conduit"]
[889,null,null,null,"Demand","F10",null,36799.829845371649,15613.248619619913,4966.167900540996,7868.4642994633932,3109.3112141894048,3844.2762456611913,1310.0770756328479,88.284490263900992,0,0,0]
[890,null,null,null,"Direct Assigned","A",1,0,0,0,0,0,0,0,0,0,0,0]
[891,null,null,null,null,null,null,36799.829845371649,15613.248619619913,4966.167900540996,7868.4642994633932,3109.3112141894048,3844.2762456611913,1310.0770756328479,88.284490263900992,0,0,0]
[892,null,"358","Underground Conductors "]
[893,null,null,null,"Demand","F10",null,68005.859615167239,28853.187588749632,9177.4477895314849,14540.873715576787,5745.9880336545712,7104.1988993663208,2421.014392319034,163.14919596940913,0,0,0]
[894,null,null,null,"Direct Assigned","A",1,0,0,0,0,0,0,0,0,0,0,0]
[895,null,null,null,null,null,null,68005.859615167239,28853.187588749632,9177.4477895314849,14540.873715576787,5745.9880336545712,7104.1988993663208,2421.014392319034,163.14919596940913,0,0,0]
[896,null,"359","Roads and Trails"]
[897,null,null,null,"Demand","F10",null,1521577.3966357647,645567.28353069082,205338.14577709651,325340.56474189804,128561.94396811139,158950.83934899082,54168.284867337083,3650.3344016400943,0,0,0]
[898,null,null,null,"Direct Assigned","A",1,0,0,0,0,0,0,0,0,0,0,0]
[899,null,null,null,null,null,null,1521577.3966357647,645567.28353069082,205338.14577709651,325340.56474189804,128561.94396811139,158950.83934899082,54168.284867337083,3650.3344016400943,0,0,0]
[900]
[901,null,"TP","Unclassified Trans Plant - Acct 300",null,"F10",null,69769.694075125502,29601.53849316679,9415.4787291776502,14918.013189771676,5895.0188930190398,7288.4570044767988,2483.8070492664192,167.38071624712865,0,0,0]
[902,null,"TS0","Unclassified Trans Sub - Acct 300",null,"F10",null,0,0,0,0,0,0,0,0,0,0,0]
[903]
[904,null,"TOTAL TRANSMISSION PLANT",null,null,null,null,274026465.37299538,116262584.64242192,36980101.319822699,58591777.977113113,23153192.972605564,28626040.825251173,9755365.4978926741,657402.13788831176,0,0,0]
[905,null,"Transmission - Total -  Unbundled",null,null,null,null,"DISTRIBUTION PLANT"]
[906,null,"A",null,"B","C",null,"D","E","F","G","H","I","J","K","S","T"]
[907,null,null,null,null,null,null,"Washington",null,"Small General","Large General","Large General","Large General","Agricultural","Street & Area"]
[908,null,"FERC",null,null,"COS",null,"Jurisdiction","Residential","Service","Service <1,000 kW","Service >1,000 kW","Dedicated Facilities","Pumping","Lighting","-","-"]
[909,null,"ACCT",null,"DESCRIPTION ","Factor",null,"Normalized","Schedule 16","Schedule 24","Schedule 36","Schedule 48T","Schedule 48T","Schedule 40","Sch. 15,51-54,57","-","-"]
[910]
[911,null,"360","Land and Land Rights"]
[912,null,null,null,"Demand Primary","F20A",null,0,0,0,0,0,0,0,0,0,0]
[913,null,null,null,"Assigned","A",0,0,0,0,0,0,0,0,0,0,0,0]
[914,null,null,null,null,null,null,0,0,0,0,0,0,0,0,0,0,0]
[915,null,"361","Structures and Improvements"]
[916,null,null,null,"Demand Primary","F20",null,0,0,0,0,0,0,0,0,0,0,0]
[917,null,null,null,"Assigned","A",0,0,0,0,0,0,0,0,0,0,0,0]
[918,null,null,null,null,null,null,0,0,0,0,0,0,0,0,0,0,0]
[919,null,"362","Station Equipment"]
[920,null,null,null,"Demand Primary","F20A",null,0,0,0,0,0,0,0,0,0,0,0]
[921,null,null,null,"Assigned","A",0,0,0,0,0,0,0,0,0,0,0,0]
[922,null,null,null,null,null,null,0,0,0,0,0,0,0,0,0,0,0]
[923,null,"364","Poles, Towers & Fixtures"]
[924,null,null,null,"Demand Primary","F20A",0,0,0,0,0,0,0,0,0,0,0,0]
[925,null,null,null,"Demand Secondary","F22",0,0,0,0,0,0,0,0,0,0,0,0]
[926,null,null,null,"Assigned","A",0,0,0,0,0,0,0,0,0,0,0,0]
[927,null,null,null,null,null,null,0,0,0,0,0,0,0,0,0,0,0]
[928,null,"365","Overhead Conductors"]
[929,null,null,null,"Demand Primary","F20A",0,0,0,0,0,0,0,0,0,0,0,0]
[930,null,null,null,"Demand Secondary","F22",0,0,0,0,0,0,0,0,0,0,0,0]
[931,null,null,null,"Assigned","A",0,0,0,0,0,0,0,0,0,0,0,0]
[932,null,null,null,null,null,null,0,0,0,0,0,0,0,0,0,0,0]
[933,null,"366","Underground Conduit"]
[934,null,null,null,"Demand Primary","F20A",0,0,0,0,0,0,0,0,0,0,0,0]
[935,null,null,null,"Demand Secondary","F22",0,0,0,0,0,0,0,0,0,0,0,0]
[936,null,null,null,"Assigned","A",0,0,0,0,0,0,0,0,0,0,0,0]
[937,null,null,null,null,null,null,0,0,0,0,0,0,0,0,0,0,0]
[938,null,"367","Underground Conductors "]
[939,null,null,null,"Demand Primary","F20A",0,0,0,0,0,0,0,0,0,0,0,0]
[940,null,null,null,"Demand Secondary","F22",0,0,0,0,0,0,0,0,0,0,0,0]
[941,null,null,null,"Assigned","A",0,0,0,0,0,0,0,0,0,0,0,0]
[942,null,null,null,null,null,null,0,0,0,0,0,0,0,0,0,0,0]
[943,null,"368","Line Transformers"]
[944,null,null,null,"Demand Secondary","F21",null,0,0,0,0,0,0,0,0,0,0,0]
[945,null,null,null,"Assigned","A",0,0,0,0,0,0,0,0,0,0,0,0]
[946,null,null,null,null,null,null,0,0,0,0,0,0,0,0,0,0,0]
[947,null,"369","Services"]
[948,null,null,null,"Customer","F70",null,0,0,0,0,0,0,0,0,0,0,0]
[949,null,null,null,"Assigned","A",0,0,0,0,0,0,0,0,0,0,0,0]
[950,null,null,null,null,null,null,0,0,0,0,0,0,0,0,0,0,0]
[951,null,"370","Meters"]
[952,null,null,null,"Customer","F60A",null,0,0,0,0,0,0,0,0,0,0,0]
[953,null,null,null,"Assigned","A",0,0,0,0,0,0,0,0,0,0,0,0]
[954,null,null,null,null,null,null,0,0,0,0,0,0,0,0,0,0,0]
[955,null,"371","Install on Customers' Premises"]
[956,null,null,null,"Demand Primary","F20",0,0,0,0,0,0,0,0,0,0,0,0]
[957,null,null,null,"Demand Secondary","F22",0,0,0,0,0,0,0,0,0,0,0,0]
[958,null,null,null,"Assigned","A",0,0,0,0,0,0,0,0,0,0,0,0]
[959,null,null,null,null,null,null,0,0,0,0,0,0,0,0,0,0,0]
[960,null,"372","Leased Property"]
[961,null,null,null,"Demand Primary","F20",0,0,0,0,0,0,0,0,0,0,0,0]
[962,null,null,null,"Demand Secondary","F22",0,0,0,0,0,0,0,0,0,0,0,0]
[963,null,null,null,"Assigned","A",0,0,0,0,0,0,0,0,0,0,0,0]
[964,null,null,null,null,null,null,0,0,0,0,0,0,0,0,0,0,0]
[965]
[966,null,"373","Street Lights",null,"A",0,0,0,0,0,0,0,0,0,0,0,0]
[967]
[968]
[969,null,"DP","Unclassified Dist Plant - Acct 300",null,"F22",0,0,0,0,0,0,0,0,0,0,0,0]
[970,null,"DS0","Unclassified Dist Sub  - Acct 300",null,"F20",0,0,0,0,0,0,0,0,0,0,0,0]
[971,null,"TOTAL DISTRIBUTION PLANT",null,null,null,null,0,0,0,0,0,0,0,0,0,0,0]
[972]
[973,null,"Transmission - Total -  Unbundled",null,null,null,null,"GENERAL PLANT"]
[974]
[975,null,"A",null,"B","C",null,"D","E","F","G","H","I","J","K","S","T"]
[976,null,null,null,null,null,null,"Washington",null,"Small General","Large General","Large General","Large General","Agricultural","Street & Area"]
[977,null,"FERC",null,null,"COS",null,"Jurisdiction","Residential","Service","Service <1,000 kW","Service >1,000 kW","Dedicated Facilities","Pumping","Lighting","-","-"]
[978,null,"ACCT",null,"DESCRIPTION ","Factor",null,"Normalized","Schedule 16","Schedule 24","Schedule 36","Schedule 48T","Schedule 48T","Schedule 40","Sch. 15,51-54,57","-","-"]
[979,null,"389","Land and Land Rights"]
[980,null,null,null,"Situs","F107T",null,279115.39252732939,118421.68932311231,37666.856307229893,59679.881965764653,23583.169370204418,29157.653114153291,9936.5317378582367,669.61070900666459,0,0,0]
[981,null,null,null,"System Generation","F105T",null,0,0,0,0,0,0,0,0,0,0,0]
[982,null,null,null,"System Overheads","F102T",null,75515.08924458253,32039.166155458235,10190.824625785634,16146.481825826198,6380.4619427669777,7888.6469038509713,2688.34360646205,181.16418443248469,0,0,0]
[983,null,null,null,"Customer - System","F42",null,0,0,0,0,0,0,0,0,0,0,0]
[984,null,null,"Total Land & Land Rights",null,null,null,354630.4817719119,150460.85547857053,47857.680933015523,75826.363791590848,29963.631312971396,37046.300018004258,12624.875344320288,850.77489343914931,0,0,0]
[985]
[986,null,"390","Structures and Improvements"]
[987,null,null,null,"Situs","F107T",null,3533986.4089889047,1499382.1616498926,476914.42974093469,755629.74097325513,298595.4994475104,369176.16363039304,125810.21704361787,8478.1965033020278,0,0,0]
[988,null,null,null,"System Generation","F105T",null,763.77829560806106,324.05205322160043,103.07252155014304,163.30951194473747,64.533570662346392,79.787726494799188,27.190572351733223,1.8323393827015071,0,0,0]
[989,null,null,null,"System Overheads","F102T",null,1391227.4339574801,590263.05023923726,187747.30899307731,297469.40250880789,117548.34411105295,145333.89418232793,49527.81509799396,3337.6188249832039,0,0,0]
[990,null,null,null,"Customer - System","F42",null,0,0,0,0,0,0,0,0,0,0,0]
[991,null,null,"Total Structures and Improvements",null,null,null,4925977.6212419933,2089969.2639423513,664764.81125556212,1053262.4529940079,416208.37712922576,514589.84553921572,175365.22271396357,11817.647667667934,0,0,0]
[992]
[993,null,"391","Office Furniture & Equipment"]
[994,null,null,null,"Situs","F107T",null,345949.69023875077,146777.8124593001,46686.200835297226,73970.254712913869,29230.169159056215,36139.465371629791,12315.838426657134,829.94927389654401,0,0,0]
[995,null,null,null,"System Generation","F105T",null,265.30285307165462,112.56137384078724,35.802842523526074,56.726513049425066,22.416112783083683,27.714732928249582,9.4448041572365664,0.63647378934648746,0,0,0]
[996,null,null,null,"System Overheads","F102T",null,746132.5733960591,316565.41404075688,100691.21653869802,159536.5397368008,63042.638715465408,77944.374745017471,26562.383138629117,1790.0064806916105,0,0,0]
[997,null,null,null,"Customer - System","F42",null,0,0,0,0,0,0,0,0,0,0,0]
[998,null,null,null,"Energy","F10",null,0,0,0,0,0,0,0,0,0,0,0]
[999,null,null,null,"CAEE","F105T",null,0,0,0,0,0,0,0,0,0,0,0]
[1000,null,null,null,"CAEE","F105T",null,0,0,0,0,0,0,0,0,0,0,0]
[1001,null,null,"Total Office Furniture & Equipment",null,null,null,1092347.5664878816,463455.78787389776,147413.22021651876,233563.5209627641,92295.223987304707,114111.55484957551,38887.666369443483,2620.5922283775008,0,0,0]
[1002]
[1003,null,"392","Transportation Equipment"]
[1004,null,null,null,"Situs","F107T",null,1310187.6872596792,555879.90992091526,176810.92721061615,280141.64973363024,110701.08980957056,136868.11663678478,46642.79321582798,3143.2007323345815,0,0,0]
[1005,null,null,null,"System Generation","F105T",null,1389.3221686236352,589.45469374768129,187.49019183838632,297.06202257462462,117.3873633974621,145.13486157007515,49.459987489894786,3.3330480055114085,0,0,0]
[1006,null,null,null,"System Overheads","F102T",null,99570.595721419173,42245.316696694106,13437.135399462955,21289.980986388364,8412.9728637608478,10401.593635257743,3544.7216851233243,238.87445473186204,0,0,0]
[1007,null,null,null,"Customer - System","F42",null,0,0,0,0,0,0,0,0,0,0,0]
[1008,null,null,null,"Energy","F10",null,0,0,0,0,0,0,0,0,0,0,0]
[1009,null,null,null,"CAEE","F105T",null,0,0,0,0,0,0,0,0,0,0,0]
[1010,null,null,null,"CAEE","F105T",null,0,0,0,0,0,0,0,0,0,0,0]
[1011,null,null,"Total Transportation Equipment",null,null,null,1411147.605149722,598714.68131135707,190435.55280191748,301728.69274259324,119231.45003672887,147414.8451336126,50236.974888441197,3385.408235071955,0,0,0]
[1012]
[1013,null,"393","Stores Equipment"]
[1014,null,null,null,"Situs","F107T",null,151881.89354279902,64439.693734089808,20496.588912366915,32475.075621218399,12832.887456525605,15866.267804661031,5407.0083413484917,364.3716725888213,0,0,0]
[1015,null,null,null,"System Generation","F105T",null,276.44117500537777,117.28708562498065,37.305968409856895,59.108086248531954,23.35721793061558,28.878292287253636,9.8413293663938717,0.66319513774526684,0,0,0]
[1016,null,null,null,"System Overheads","F102T",null,4300.216282564591,1824.4743581678003,580.31779379387331,919.46344430139482,363.33621016727625,449.21999301982322,153.08806577972592,10.316417334698365,0,0,0]
[1017,null,null,null,"CAEE","F105T",null,0,0,0,0,0,0,0,0,0,0,0]
[1018,null,null,"Total Stores Equipment",null,null,null,156458.55100036899,66381.455177882584,21114.212674570645,33453.647151768324,13219.580884623496,16344.366089968109,5569.9377364946113,375.35128506126495,0,0,0]
[1019]
[1020,null,"394","Tools, Shop & Garage Equipment"]
[1021,null,null,null,"Situs","F107T",null,737672.46290729661,312976.00047646789,99549.51753299986,157727.61622737008,62327.822464234858,77060.593436128911,26261.20248493534,1769.7102851598636,0,0,0]
[1022,null,null,null,"System Generation","F105T",null,1278.5297850397055,542.44825275801588,172.53866675550233,273.37262187506542,108.02623313757277,133.56098934834117,45.515769201443035,3.0672519637653073,0,0,0]
[1023,null,null,null,"System Overheads","F102T",null,50931.53023319046,21608.976113472578,6873.2527197083127,10890.075553088536,4303.3345201677112,5320.5374224102361,1813.1668126122088,122.18709173089312,0,0,0]
[1024,null,null,null,"Energy","F10",null,0,0,0,0,0,0,0,0,0,0,0]
[1025,null,null,null,"CAEE","F105T",null,0,0,0,0,0,0,0,0,0,0,0]
[1026,null,null,null,"CAEE","F105T",null,0,0,0,0,0,0,0,0,0,0,0]
[1027,null,null,"Total Tools, Shop & Garage Equipment",null,null,null,789882.52292552684,335127.4248426985,106595.30891946367,168891.06440233366,66739.183217540136,82514.691847887487,28119.885066748993,1894.9646288545221,0,0,0]
[1028]
[1029,null,"395","Laboratory Equipment"]
[1030,null,null,null,"Situs","F107T",null,487329.12324209249,206761.57451627869,65765.47388976728,104199.71571693217,41175.67701439534,50908.598767178664,17348.958278621427,1169.1250589190715,0,0,0]
[1031,null,null,null,"System Generation","F105T",null,431.47321348841251,183.06330717309578,58.227672023840228,92.25671941348169,36.45626914469532,45.073638444043546,15.360483135818104,1.0351241534379747,0,0,0]
[1032,null,null,null,"System Overheads","F102T",null,71250.974265436118,30230.008678594746,9615.3787331651183,15234.737488333276,6020.1760235395423,7443.1982158548681,2536.5407501576765,170.93437579091147,0,0,0]
[1033,null,null,null,"Energy","F10",null,0,0,0,0,0,0,0,0,0,0,0]
[1034,null,null,null,"CAEE","F105T",null,0,0,0,0,0,0,0,0,0,0,0]
[1035,null,null,null,"CAEE","F105T",null,0,0,0,0,0,0,0,0,0,0,0]
[1036,null,null,"Total Laboratory Equipment",null,null,null,559011.57072101696,237174.64650204653,75439.080294956249,119526.70992467893,47232.309307079573,58396.870621477581,19900.859511914921,1341.0945588634208,0,0,0]
[1037]
[1038,null,"396","Power Operated Equipment"]
[1039,null,null,null,"Situs","F107T",null,2055581.8467726796,872132.03339514462,277402.49417650996,439520.30332526437,173681.33805809755,214735.35333627224,73178.888757351655,4931.4357240398695,0,0,0]
[1040,null,null,null,"System Generation","F105T",null,2090.6719875193521,887.01990363469031,282.13793809931678,447.02320540085822,176.64619329219954,218.4010277455333,74.42810075550787,5.0156185912467448,0,0,0]
[1041,null,null,null,"System Overheads","F102T",null,25895.848406892583,10986.961654216828,3494.6664605776764,5536.997305425788,2188.0060910832394,2705.1971520020761,921.89440805798267,62.125335528998455,0,0,0]
[1042,null,null,null,"Energy","F10",null,0,0,0,0,0,0,0,0,0,0,0]
[1043,null,null,null,"CAEE","F30",null,0,0,0,0,0,0,0,0,0,0,0]
[1044,null,null,null,"CAEE","F105T",null,0,0,0,0,0,0,0,0,0,0,0]
[1045,null,null,"Total Power Operated Equipment",null,null,null,2083568.3671670915,884006.01495299616,281179.29857518699,445504.32383609103,176045.99034247297,217658.95151601985,74175.211266165148,4998.5766781601142,0,0,0]
[1046]
[1047,null,"397","Communication Equipment"]
[1048,null,null,null,"Situs","F107T",null,3018069.0361744715,1280491.3069155198,407290.94759527681,645317.34424422844,255004.32852015874,315281.10733887868,107443.51464621747,7240.486914192561,0,0,0]
[1049,null,null,null,"System Generation","F105T",null,6633.8470096553992,2814.5755863949662,895.24321756052984,1418.4355901346792,560.51060526663343,693.00158679337596,236.16551834948541,15.914905155731061,0,0,0]
[1050,null,null,null,"System Overheads","F102T",null,786066.37774629437,333508.32976257784,106080.31692704033,168075.10405060026,66416.747405999165,82116.040106176719,27984.029973461707,1885.8095204386077,0,0,0]
[1051,null,null,null,"Customer - System","F42",null,0,0,0,0,0,0,0,0,0,0,0]
[1052,null,null,null,"Energy","F10",null,0,0,0,0,0,0,0,0,0,0,0]
[1053,null,null,null,"CAEE","F105T",null,0,0,0,0,0,0,0,0,0,0,0]
[1054,null,null,null,"CAEE","F105T",null,0,0,0,0,0,0,0,0,0,0,0]
[1055,null,null,"Total Communication Equipment",null,null,null,3810769.2609304213,1616814.2122644924,514266.50773987768,814810.88388496335,321981.58653142455,398090.14903184876,135663.71013802866,9142.2113397868998,0,0,0]
[1056]
[1057,null,"Transmission - Total -  Unbundled",null,null,null,null,"GENERAL PLANT"]
[1058]
[1059,null,"A",null,"B","C",null,"D","E","F","G","H","I","J","K","S","T"]
[1060,null,null,null,null,null,null,"Washington",null,"Small General","Large General","Large General","Large General","Agricultural","Street & Area"]
[1061,null,"FERC",null,null,"COS",null,"Jurisdiction","Residential","Service","Service <1,000 kW","Service >1,000 kW","Dedicated Facilities","Pumping","Lighting","-","-"]
[1062,null,"ACCT",null,"DESCRIPTION ","Factor",null,"Normalized","Schedule 16","Schedule 24","Schedule 36","Schedule 48T","Schedule 48T","Schedule 40","Sch. 15,51-54,57","-","-"]
[1063,null,"398","Misc. Equipment"]
[1064,null,null,null,"Situs","F107T",null,51940.879199956536,22037.21766861817,7009.4652092839506,11105.892483331709,4388.6169813797151,5425.9785690901435,1849.0997217650549,124.60856648780822,0,0,0]
[1065,null,null,null,"System Generation","F105T",null,110.80394675676021,47.011346955073229,14.953085542755153,23.691873113507476,9.362107261769621,11.57508016293435,3.9446299383890042,0.26582378233141019,0,0,0]
[1066,null,null,null,"System Overheads","F102T",null,39951.773505505189,16950.539585569568,5391.5253409161633,8542.4064418018606,3375.6269501622719,4173.5425001854028,1422.2865382900941,95.846148579840829,0,0,0]
[1067,null,null,null,"Customer - System","F42",null,0,0,0,0,0,0,0,0,0,0,0]
[1068,null,null,null,"Energy","F10",null,0,0,0,0,0,0,0,0,0,0,0]
[1069,null,null,null,"CAEE","F105T",null,0,0,0,0,0,0,0,0,0,0,0]
[1070,null,null,"Total Misc. Equipment",null,null,null,92003.456652218476,39034.768601142816,12415.943635742868,19671.990798247076,7773.6060388037567,9611.096149438481,3275.3308899935382,220.72053884998047,0,0,0]
[1071]
[1072,null,"399","Coal Mine",null,"F10",null,0,0,0,0,0,0,0,0,0,0,0]
[1073,null,"399L","WIDCO Capital Lease",null,"F10",null,0,0,0,0,0,0,0,0,0,0,0]
[1074,null,null,"Remove Capital Lease",null,"F10",null,0,0,0,0,0,0,0,0,0,0,0]
[1075]
[1076,null,"1011390","General Capital Lease",null,"F10",null,170873.39065808189,72497.311591716891,23059.507375670528,36535.798664582129,14437.527347604382,17850.205272214491,6083.1072555886794,409.93315070478502,0,0,0]
[1077,null,null,"Remove Capital Lease",null,"F10",null,-170873.39065808189,-72497.311591716891,-23059.507375670528,-36535.798664582129,-14437.527347604382,-17850.205272214491,-6083.1072555886794,-409.93315070478502,0,0,0]
[1078]
[1079,null,"1011392","General Vehicles Capital Lease",null,"F10",null,0,0,0,0,0,0,0,0,0,0,0]
[1080,null,null,"Remove Capital Lease",null,"F10",null,0,0,0,0,0,0,0,0,0,0,0]
[1081]
[1082,null,"GP","Unclassified Gen Plant - Acct 300",null,"F102T",null,99865.482760742263,42370.429901809483,13476.930652732477,21353.033129592226,8437.8886196798048,10432.39886574893,3555.2196888299095,239.58190234945869,0,0,0]
[1083,null,"399G","Unclassified Gen Veh - Acct 300",null,"F102T",null,0,0,0,0,0,0,0,0,0,0,0]
[1084]
[1085,null,"TOTAL GENERAL PLANT",null,null,null,null,15375662.486808892,6523509.5408492452,2074958.5476995448,3287592.6836186303,1299128.8274078548,1606211.0696627975,547374.8936143443,36886.923956482206,0,0,0]
[1086]
[1087]
[1088]
[1089,null,null,null,null,null,null,"INTANGIBLE PLANT"]
[1090]
[1091,null,"301","Organization"]
[1092,null,null,null,"Situs","F107T",null,0,0,0,0,0,0,0,0,0,0,0]
[1093,null,null,null,"System Generation","F105T",null,0,0,0,0,0,0,0,0,0,0,0]
[1094,null,null,null,"System Overheads","F102T",null,0,0,0,0,0,0,0,0,0,0,0]
[1095,null,null,"Total Organization",null,null,null,0,0,0,0,0,0,0,0,0,0,0]
[1096]
[1097,null,"302","Franchise & Consent"]
[1098,null,null,null,"Situs","F107T",null,0,0,0,0,0,0,0,0,0,0,0]
[1099,null,null,null,"System Generation","F105T",null,5872669.1251211716,2491626.8226390937,792521.62366568705,1255682.092763497,496196.74994936737,613485.51097093301,209067.52085337965,14088.804279215443,0,0,0]
[1100,null,null,"Total Franchise & Consent",null,null,null,5872669.1251211716,2491626.8226390937,792521.62366568705,1255682.092763497,496196.74994936737,613485.51097093301,209067.52085337965,14088.804279215443,0,0,0]
[1101]
[1102,null,"303","Miscellaneous Intangible Plant"]
[1103,null,null,null,"Situs","F107T",null,671786.58425894461,285022.26785919041,90658.162952904226,143640.03250316062,56760.957014072766,70177.857312710912,23915.659595530116,1611.647021375763,0,0,0]
[1104,null,null,null,"System Generation","F105T",null,2394253.0073587433,1015821.7475254528,323106.45133089361,511934.27772478008,202296.52573579899,250114.47066377418,85235.610908679097,5743.9234693652697,0,0,0]
[1105,null,null,null,"System Overheads","F102T",null,5172216.6747743553,2194442.3438129695,697994.97804302664,1105912.7834437485,437013.74100554414,540313.08796251228,184131.35398450939,12408.386522046201,0,0,0]
[1106,null,null,null,"Customer - System","F42",null,0,0,0,0,0,0,0,0,0,0,0]
[1107,null,null,null,"Energy","F10",null,0,0,0,0,0,0,0,0,0,0,0]
[1108,null,null,null,"CAEE","F105T",null,0,0,0,0,0,0,0,0,0,0,0]
[1109,null,null,null,"CAEE","F105T",null,0,0,0,0,0,0,0,0,0,0,0]
[1110,null,null,"Total Miscellaneous Intangible Plant",null,null,null,8238256.2663920429,3495286.3591976129,1111759.5923268246,1761487.0936716893,696071.22375541588,860605.41593899741,293282.62448871857,19763.957012787236,0,0,0]
[1111]
[1112,null,"IP","Unclass Intangible Plant - Acct 300",null,"F102T",null,0,0,0,0,0,0,0,0,0,0,0]
[1113]
[1114,null,"TOTAL INTANGIBLE PLANT",null,null,null,null,14110925.391513214,5986913.1818367066,1904281.2159925117,3017169.1864351863,1192267.9737047832,1474090.9269099305,502350.1453420982,33852.76129200268,0,0,0]
[1115]
[1116]
[1117,null,"TOTAL ELECTRIC PLANT IN SERVICE",null,null,null,null,303513053.2513175,128773007.36510786,40959341.083514757,64896539.847166926,25644589.773718201,31706342.821823902,10805090.536849117,728141.82313679659,0,0,0]
[1118]
[1119]
[1120,null,"Transmission - Total -  Unbundled",null,null,null,null,"MISC RATE BASE"]
[1121]
[1122,null,"A",null,"B","C",null,"D","E","F","G","H","I","J","K","S","T"]
[1123,null,null,null,null,null,null,"Washington",null,"Small General","Large General","Large General","Large General","Agricultural","Street & Area"]
[1124,null,"FERC",null,null,"COS",null,"Jurisdiction","Residential","Service","Service <1,000 kW","Service >1,000 kW","Dedicated Facilities","Pumping","Lighting","-","-"]
[1125,null,"ACCT",null,"DESCRIPTION ","Factor",null,"Normalized","Schedule 16","Schedule 24","Schedule 36","Schedule 48T","Schedule 48T","Schedule 40","Sch. 15,51-54,57","-","-"]
[1126,null,"105","Plant Held For Future Use"]
[1127,null,null,null,"Production","F10",null,0,0,0,0,0,0,0,0,0,0,0]
[1128,null,null,null,"Transmission","F10",null,0,0,0,0,0,0,0,0,0,0,0]
[1129,null,null,null,"Distribution","F20",null,0,0,0,0,0,0,0,0,0,0,0]
[1130,null,null,null,"General ","F102",null,0,0,0,0,0,0,0,0,0,0,0]
[1131,null,null,null,"Mining","F10",null,0,0,0,0,0,0,0,0,0,0,0]
[1132,null,null,"Total Plant Held For Future Use",null,null,null,0,0,0,0,0,0,0,0,0,0,0]
[1133]
[1134,null,"114","Electric Plant Acquisition Adjust",null,"F10",null,0,0,0,0,0,0,0,0,0,0,0]
[1135]
[1136,null,"120","Nuclear Fuel",null,"F10",null,0,0,0,0,0,0,0,0,0,0,0]
[1137]
[1138,null,"124","Weatherization",null,"F10",null,0,0,0,0,0,0,0,0,0,0,0]
[1139]
[1140,null,"151","Fuel Stock",null,"F10",null,0,0,0,0,0,0,0,0,0,0,0]
[1141,null,null,null,"JBE","F10",null,0,0,0,0,0,0,0,0,0,0,0]
[1142,null,null,null,"CAEE","F30",null,0,0,0,0,0,0,0,0,0,0,0]
[1143,null,null,null,"Total Fuel Stock",null,null,0,0,0,0,0,0,0,0,0,0,0]
[1144]
[1145,null,152,"Fuel Stock - Undistributed",null,"F10",null,0,0,0,0,0,0,0,0,0,0,0]
[1146]
[1147,null,"25316","DG&T Working Capital Deposit",null,"F10",null,0,0,0,0,0,0,0,0,0,0,0]
[1148]
[1149,null,"25317","DG&T Working Capital Deposit",null,"F10",null,0,0,0,0,0,0,0,0,0,0,0]
[1150]
[1151,null,"25319","Provo Working Capital Deposit",null,"F10",null,0,0,0,0,0,0,0,0,0,0,0]
[1152]
[1153,null,"154","Materials and Supplies",null,"F102T",null,8.8433569132001416E-7,3.7520154494734443E-7,1.1934184320932513E-7,1.8908684755149683E-7,7.4719771631636757E-8,9.2381695937636903E-8,3.1482425903335767E-8,2.1215621392385681E-9,0,0,0]
[1154,null,null,null,"JBG","F10",null,-4.6216567583578958E-10,-1.9608535231274711E-10,-6.2369645558461797E-11,-9.8819318894450063E-11,-3.9049553346518551E-11,-4.8279911527877154E-11,-1.645313740854106E-11,-1.1087567871938327E-12,0,0,0]
[1155,null,null,null,"CAEE","F102T",null,0,0,0,0,0,0,0,0,0,0,0]
[1156,null,null,null,"Total Material & Supplies",null,null,8.8387352564417842E-7,3.7500545959503166E-7,1.1927947356376667E-7,1.8898802823260239E-7,7.4680722078290239E-8,9.233341602610902E-8,3.1465972765927223E-8,2.1204533824513744E-9,0,0,0]
[1157]
[1158,null,"163","Stores Expense Undistributed",null,"F102T",null,0,0,0,0,0,0,0,0,0,0,0]
[1159]
[1160,null,"25318","Provo Working Capital Deposit",null,"F102T",null,0,0,0,0,0,0,0,0,0,0,0]
[1161]
[1162,null,"165","Prepayments",null,"F102T",null,-2.2444940760149023E-8,-9.5228277362516833E-9,-3.0289635794774052E-9,-4.7991312953588411E-9,-1.8964301275465159E-9,-2.3446997706802076E-9,-7.9904180202362511E-10,-5.3846448810752642E-11,0,0,0]
[1163,null,null,null,"Customer - System","F42",null,-4.9584695769307554E-9,-4.0008345753327247E-9,-6.79526807853229E-10,-4.1268836963420126E-11,-8.4638806658808306E-12,-1.4615169160985503E-13,-1.2105128937658377E-10,-1.0717803504730718E-10,0,0,0]
[1164,null,null,null,"Total Prepayments",null,null,-2.7403410337079778E-8,-1.3523662311584409E-8,-3.7084903873306342E-9,-4.8404001323222611E-9,-1.9048940082123968E-9,-2.3448459223718174E-9,-9.2009309140020893E-10,-1.6102448385805982E-10,0,0,0]
[1165]
[1166,null,"182M","Misc Regulatory Assets",null,"F102T",null,55395.802666168427,23503.055398476852,7475.7100285894203,11844.617147698211,4680.5322517164841,5786.8954610307801,1972.0952913143919,132.8970873423053,0,0,0]
[1167,null,null,null,"CAEE","F102T",null,0,0,0,0,0,0,0,0,0,0,0]
[1168,null,null,null,"Total Misc Regulatory Assets",null,null,55395.802666168427,23503.055398476852,7475.7100285894203,11844.617147698211,4680.5322517164841,5786.8954610307801,1972.0952913143919,132.8970873423053,0,0,0]
[1169]
[1170,null,"186M","Misc Deferred Debits",null,"F102T",null,0,0,0,0,0,0,0,0,0,0,0]
[1171]
[1172,null,"CWC","Cash Working Capital",null,"F137T",null,4582113.8394118706,1946831.5597506214,619073.68572279019,978393.91890962131,386403.33283499,476707.60751148651,163462.85262543865,11240.882056922765,0,0,0]
[1173]
[1174,null,"OWC","Other Working Capital",null,"F137T",null,2.1184693446327966E-8,9.0008741009907178E-9,2.8621912751100552E-9,4.523452705075561E-9,1.7864759453028726E-9,2.2039837687575872E-9,7.5574517440987024E-10,5.1970476681304513E-11,0,0,0]
[1175,null,null,null,"CAEE","F137T",null,0,0,0,0,0,0,0,0,0,0,0]
[1176,null,null,null,"Total Other Working Capital",null,null,2.1184693446327966E-8,9.0008741009907178E-9,2.8621912751100552E-9,4.523452705075561E-9,1.7864759453028726E-9,2.2039837687575872E-9,7.5574517440987024E-10,5.1970476681304513E-11,0,0,0]
[1177]
[1178,null,"18222","Nuclear Plant",null,"F10",null,0,0,0,0,0,0,0,0,0,0,0]
[1179]
[1180,null,"1869","Misc Deferred Debits-Trojan",null,"F10",null,0,0,0,0,0,0,0,0,0,0,0]
[1181]
[1182,null,"141","Impact Housing - Notes Receivable",null,"F10",null,0,0,0,0,0,0,0,0,0,0,0]
[1183,null,"TOTAL RATE BASE ADDITIONS",null,null,null,null,4637509.6420789165,1970334.6151494689,626549.39575149806,990238.5360575082,391083.86508678104,482494.50297260948,165434.94791678435,11373.779144267082,0,0,0]
[1184]
[1185,null,"Transmission - Total -  Unbundled"]
[1186]
[1187,null,"A",null,"B",null,null,"D","E","F","G","H","I","J","K","S","T"]
[1188,null,null,null,null,null,null,"Washington",null,"Small General","Large General","Large General","Large General","Agricultural","Street & Area"]
[1189,null,"FERC",null,null,null,null,"Jurisdiction","Residential","Service","Service <1,000 kW","Service >1,000 kW","Dedicated Facilities","Pumping","Lighting","-","-"]
[1190,null,"ACCT",null,"DESCRIPTION ",null,null,"Normalized","Schedule 16","Schedule 24","Schedule 36","Schedule 48T","Schedule 48T","Schedule 40","Sch. 15,51-54,57","-","-"]
[1191]
[1192,null,"235","Customer Service Deposits",null,"F51",null,0,0,0,0,0,0,0,0,0,0,0]
[1193,null,null,null,null,"F51",null,0,0,0,0,0,0,0,0,0,0,0]
[1194,null,null,null,null,null,null,0,0,0,0,0,0,0,0,0,0,0]
[1195]
[1196,null,"2281","Accum Prov for Property Insurance",null,"F102T",null,0,0,0,0,0,0,0,0,0,0,0]
[1197]
[1198,null,"2282","Accum Prov for Injuries & Damages",null,"F102T",null,-89773.702373999549,-38088.739555552755,-12115.036425869517,-19195.229302108037,-7585.2084290516314,-9378.1659581458553,-3195.9514478476585,-215.37125542412053,0,0,0]
[1199]
[1200,null," 2283","Accum Prov for Pension & Benefits",null,"F102T",null,-45864.006805543555,-19458.952499394625,-6189.3861831682061,-9806.5480654703024,-3875.1665778713218,-4791.16106335936,-1632.7625471390199,-110.02986914073347,0,0,0]
[1201]
[1202,null,254,"Reg Liabilities - Insurance Provision",null,"F102T",null,0,0,0,0,0,0,0,0,0,0,0]
[1203]
[1204,null,22844,"Hydro Relicensing Obligations",null,"F10",null,0,0,0,0,0,0,0,0,0,0,0]
[1205]
[1206,null,"22842","Accum Misc Oper Prov - Trojan",null,"F10",null,0,0,0,0,0,0,0,0,0,0,0]
[1207]
[1208]
[1209,null,"252","Customer Advances for Const",null,"F50",null,18276.841740963751,6731.6043453732555,10459.126227106039,0,0,0,1086.1111684844589,0,0,0,0]
[1210]
[1211,null,"25398","SO2 Emmissions",null,"F10",null,0,0,0,0,0,0,0,0,0,0,0]
[1212]
[1213,null,"25399","Other Deferred Credits",null,"F10",null,0,0,0,0,0,0,0,0,0,0,0]
[1214]
[1215,null,"190","Accum Deferred Income Taxes",null,"F104T",null,0,0,0,0,0,0,0,0,0,0,0]
[1216,null,null,null," Labor","F138T",null,-0.58742365605454128,-0.24922918463382976,-7.9273315039074907E-2,-0.12560172385978441,-4.963291865547155E-2,-6.1364925234673087E-2,-2.0912332168793405E-2,-1.4092564629141838E-3,0,0,0]
[1217,null,null,null,"Customer - System","F42",null,0,0,0,0,0,0,0,0,0,0,0]
[1218,null,null,null,"Total Accum Deferred Income Taxes",null,null,-0.58742365605454128,-0.24922918463382976,-7.9273315039074907E-2,-0.12560172385978441,-4.963291865547155E-2,-6.1364925234673087E-2,-2.0912332168793405E-2,-1.4092564629141838E-3,0,0,0]
[1219]
[1220,null,"281","Accum Deferred Income Taxes",null,"F104T",null,1.0286125399136082E-2,4.3624476150168597E-3,1.3879803466046012E-3,2.2001158257514532E-3,8.6946068696153265E-4,1.0754766587293312E-3,3.6607659887020349E-4,2.4567667202101107E-5,0,0,0]
[1221]
[1222,null,"282","Accum Deferred Income Taxes ",null,"F104T",null,-45860780.615955561,-19450011.083637964,-6188322.5903738039,-9809235.7714162897,-3876498.1245795269,-4795022.1477670567,-1632155.7377505447,-109535.16043037888,0,0,0]
[1223,null,null,null," Labor","F138T",null,-6.1682567949793111E-3,-2.6170372877901893E-3,-8.3241142761351211E-4,-1.3188840433543871E-3,-5.2117170392409671E-4,-6.44363932488659E-4,-2.1959046706666443E-4,-1.4797932741802665E-5,0,0,0]
[1224,null,null,null,"Customer - System","F42",null,0,0,0,0,0,0,0,0,0,0,0]
[1225,null,null,null,"Total Accum Deferred Income Taxes ",null,null,-45860780.622123815,-19450011.086255003,-6188322.5912062153,-9809235.7727351729,-3876498.1251006988,-4795022.1484114211,-1632155.7379701352,-109535.16044517681,0,0,0]
[1226]
[1227,null,"283","Accum Deferred Income Taxes ",null,"F104T",null,-580029.24502198165,-245996.14513728308,-78267.48764058738,-124063.38362146643,-49028.434543190364,-60645.567713371471,-20642.868429421706,-1385.3579366612469,0,0,0]
[1228,null,null,null," Labor","F138T",null,-1514.2665394524975,-642.46546943794863,-204.35153946881906,-323.77737222207594,-127.94423105148147,-158.18711422517504,-53.90801772916636,-3.6327953178310386,0,0,0]
[1229,null,null,null,"Customer - System","F42",null,0,0,0,0,0,0,0,0,0,0,0]
[1230,null,null,null,"Total Accum Deferred Income Taxes ",null,null,-581543.51156143413,-246638.61060672102,-78471.839180056195,-124387.16099368851,-49156.378774241843,-60803.754827596647,-20696.776447150871,-1388.990731979078,0,0,0]
[1231]
[1232,null,"255","Accum Investment Tax Credit",null,"F104T",null,-103068.52952258976,-43712.383755002673,-13907.772633493842,-22045.49275265749,-8712.1273565605625,-10776.438498446678,-3668.1427917796718,-246.17173464884945,0,0,0]
[1233,null,"TOTAL RATE BASE DEDUCTIONS",null,null,null,null,-46662754.107783943,-19791178.41319304,-6288547.5772870313,-9984670.327250706,-3945827.0550018824,-4880771.7290484179,-1660263.2805818236,-111495.72542105838,0,0,0]
[1234]
[1235,null,null,null,null,null,null,"ACCUMULATED DEPRECIATION"]
[1236,null,null,null,null,null,null,"PRODUCTION PLANT"]
[1237]
[1238,null,"108SP","Steam Prod Accumulated Depr",null,"F10",null,0,0,0,0,0,0,0,0,0,0,0]
[1239,null,null,null,"JBG","F10",null,0,0,0,0,0,0,0,0,0,0,0]
[1240,null,null,null,"Total Steam Prod Accumulated Depr",null,null,0,0,0,0,0,0,0,0,0,0,0]
[1241]
[1242,null,"108NP","Nuclear Prod Accumulated Depr",null,"F10",null,0,0,0,0,0,0,0,0,0,0,0]
[1243]
[1244,null,"108HP","Hydraulic Prod Accum Depr",null,"F10",null,0,0,0,0,0,0,0,0,0,0,0]
[1245]
[1246,null,"108OP","Other Production  - Accum Depr",null,"F10",null,0,0,0,0,0,0,0,0,0,0,0]
[1247,null,null,null,"CAEE","F10",null,0,0,0,0,0,0,0,0,0,0,0]
[1248,null,null,null,"Total Other Production - Accum Depr",null,null,0,0,0,0,0,0,0,0,0,0,0]
[1249]
[1250,null,"108EP","Experimental Plant - Accum Depr",null,"F10",null,0,0,0,0,0,0,0,0,0,0,0]
[1251]
[1252]
[1253]
[1254,null,"TOTAL PRODUCTION PLANT DEPRECIATION",null,null,null,null,0,0,0,0,0,0,0,0,0,0,0]
[1255]
[1256]
[1257,null,null,null,null,null,null,"TRANSMISSION PLANT"]
[1258]
[1259,null,"108TP","Transmission Plant Accum Depr",null,"F106",null,-108702685.72365399,-46119834.383888528,-14669518.604073174,-23242585.780051794,-9184566.3730853721,-11355572.955715029,-3869824.8667090521,-260782.76013107211,0,0,0]
[1260]
[1261]
[1262,null,null,null,null,null,null,"DISTRIBUTION PLANT"]
[1263]
[1264,null,"108360","Land and Land Rights",null,"F118",null,0,0,0,0,0,0,0,0,0,0,0]
[1265]
[1266,null,"108361","Structures and Improvements",null,"F119",null,0,0,0,0,0,0,0,0,0,0,0]
[1267]
[1268,null,"108362","Station Equipment",null,"F120",null,0,0,0,0,0,0,0,0,0,0,0]
[1269]
[1270,null,"Transmission - Total -  Unbundled"]
[1271]
[1272,null,"A",null,"B",null,null,"D","E","F","G","H","I","J","K","S","T"]
[1273,null,null,null,null,null,null,"Washington",null,"Small General","Large General","Large General","Large General","Agricultural","Street & Area"]
[1274,null,"FERC",null,null,null,null,"Jurisdiction","Residential","Service","Service <1,000 kW","Service >1,000 kW","Dedicated Facilities","Pumping","Lighting","-","-"]
[1275,null,"ACCT",null,"DESCRIPTION ",null,null,"Normalized","Schedule 16","Schedule 24","Schedule 36","Schedule 48T","Schedule 48T","Schedule 40","Sch. 15,51-54,57","-","-"]
[1276]
[1277,null,"108364","Poles, Towers & Fixtures",null,"F121",null,0,0,0,0,0,0,0,0,0,0,0]
[1278]
[1279,null,"108365","Overhead Conductors",null,"F122",null,0,0,0,0,0,0,0,0,0,0,0]
[1280]
[1281,null,"108366","Underground Conduit",null,"F123",null,0,0,0,0,0,0,0,0,0,0,0]
[1282]
[1283,null,"108367","Underground Conductors ",null,"F124",null,0,0,0,0,0,0,0,0,0,0,0]
[1284]
[1285,null,"108368","Line Transformers",null,"F125",null,0,0,0,0,0,0,0,0,0,0,0]
[1286]
[1287,null,"108369","Services",null,"F126",null,0,0,0,0,0,0,0,0,0,0,0]
[1288]
[1289,null,"108370","Meters",null,"F127",null,0,0,0,0,0,0,0,0,0,0,0]
[1290]
[1291,null,"108371","Install on Customers' Premises",null,"F128",null,0,0,0,0,0,0,0,0,0,0,0]
[1292]
[1293,null,"108372","Leased Property",null,"F129",null,0,0,0,0,0,0,0,0,0,0,0]
[1294]
[1295,null,"108373","Street Lights",null,"F130",null,0,0,0,0,0,0,0,0,0,0,0]
[1296]
[1297,null,"108D00","Unclassified Dist Plant - Acct 300",null,"F121",null,0,0,0,0,0,0,0,0,0,0,0]
[1298]
[1299,null,"108DS","Unclassified Dist Sub - Acct 300",null,"F120",null,0,0,0,0,0,0,0,0,0,0,0]
[1300]
[1301,null,"108DP","Unclassified Dist Sub  - Acct 300",null,"F102T",null,0,0,0,0,0,0,0,0,0,0,0]
[1302]
[1303]
[1304,null,"TOTAL DISTRIBUTION PLANT DEPR",null,null,null,null,0,0,0,0,0,0,0,0,0,0,0]
[1305]
[1306,null,null,null,null,null,null,"GENERAL PLANT"]
[1307,null,"108GP","General Plant Accumulated Depr"]
[1308,null,null,null,"Situs","F107T",null,-4691806.6691182228,-1990616.3780631421,-633163.24487434013,-1003192.4992877143,-396422.67783291702,-490127.29143350717,-167028.71688104182,-11255.860745561837,0,0,0]
[1309,null,null,null,"System Generation","F105T",null,-4730.1929412424943,-2006.9027145156465,-638.34350449091994,-1011.4001734282865,-399.6660315899436,-494.13729459675233,-168.3952714368732,-11.347951184073713,0,0,0]
[1310,null,null,null,"System Overheads","F102T",null,-1063479.7989338071,-451207.91515793605,-143517.49077456989,-227391.07398790368,-89856.112889192227,-111095.89761584092,-37859.971386716628,-2551.3371216480123,0,0,0]
[1311,null,null,null,"Customer - System","F42",null,0,0,0,0,0,0,0,0,0,0,0]
[1312,null,null,null,"Energy","F10",null,0,0,0,0,0,0,0,0,0,0,0]
[1313,null,null,null,"CAEE","F105T",null,0,0,0,0,0,0,0,0,0,0,0]
[1314,null,null,null,"CAEE","F105T",null,0,0,0,0,0,0,0,0,0,0,0]
[1315,null,null,"Total General Plant Accumulated Depr",null,null,null,-5760016.6609932724,-2443831.1959355939,-777319.07915340096,-1231594.9734490463,-486678.45675369923,-601717.32634394488,-205057.0835391953,-13818.545818393923,0,0,0]
[1316]
[1317,null,"108MP","Mining Plant Accumulated Depr.",null,"F10",null,0,0,0,0,0,0,0,0,0,0,0]
[1318]
[1319,null,"1081390","Accum Depr - Capital Lease",null,"F10",null,0,0,0,0,0,0,0,0,0,0,0]
[1320,null,null,"Remove Capital Lease",null,"F10",null,0,0,0,0,0,0,0,0,0,0,0]
[1321]
[1322,null,"1081399"," Accum Depr - Capital Lease",null,"F10",null,0,0,0,0,0,0,0,0,0,0,0]
[1323,null,null," Remove Capital Lease",null,"F10",null,0,0,0,0,0,0,0,0,0,0,0]
[1324]
[1325,null,"TOTAL GENERAL PLANT ACCUM DEPR",null,null,null,null,-5760016.6609932724,-2443831.1959355939,-777319.07915340096,-1231594.9734490463,-486678.45675369923,-601717.32634394488,-205057.0835391953,-13818.545818393923,0,0,0]
[1326]
[1327]
[1328,null,"TOTAL ACCUM DEPR - PLANT IN SERVICE",null,null,null,null,-114462702.38464727,-48563665.57982412,-15446837.683226576,-24474180.753500842,-9671244.8298390713,-11957290.282058973,-4074881.9502482475,-274601.30594946601,0,0,0]
[1329]
[1330]
[1331,null,null,null,null,null,null,"ACCUMULATED AMORTIZATION"]
[1332]
[1333,null,"111SP","Accum Prov for Amort-Steam",null,"F10",null,0,0,0,0,0,0,0,0,0,0,0]
[1334]
[1335,null,"111GP","Accum Prov for Amort-General"]
[1336,null,null,"Division",null,"F108",null,-432839.77942371479,-205541.15036842402,-60228.726633734579,-82782.004211207488,-31932.99400727051,-33076.572146821141,-16831.742974710916,-2446.5890815460934,0,0,0]
[1337,null,null,"System Overheads",null,"F108",null,-163184.48227229185,-77490.858749580264,-22706.770590103682,-31209.558688561814,-12039.025390454059,-12470.164614508141,-6345.7181932895128,-922.38604579435548,0,0,0]
[1338,null,null,"Total Accum Prov for Amort-General",null,null,null,-596024.26169600664,-283032.00911800429,-82935.497223838262,-113991.5628997693,-43972.019397724565,-45546.736761329281,-23177.461168000431,-3368.975127340449,0,0,0]
[1339]
[1340,null,"111HP","Accum Prov for Amort-Hydro",null,"F10",null,0,0,0,0,0,0,0,0,0,0,0]
[1341]
[1342,null,"111IP","Accum Prov for Amort-Intangible"]
[1343,null,null,null,"Situs","F107T",null,0,0,0,0,0,0,0,0,0,0,0]
[1344,null,null,null,"System Generation","F105T",null,-2048892.197973636,-869293.78250332572,-276499.72046067222,-438089.93631073204,-173116.11261772853,-214036.52244281326,-72940.736690548976,-4915.3869478159113,0,0,0]
[1345,null,null,null,"System Overheads","F102T",null,-3790148.6405922929,-1608065.3981155464,-511483.73773135454,-810401.82504841115,-320239.29787600704,-395936.02600275452,-134929.61429835163,-9092.7415198685321,0,0,0]
[1346,null,null,null,"Customer - System","F42",null,0,0,0,0,0,0,0,0,0,0,0]
[1347,null,null,null,"CAEE","F105T",null,0,0,0,0,0,0,0,0,0,0,0]
[1348,null,null,null,"CAEE","F105T",null,0,0,0,0,0,0,0,0,0,0,0]
[1349,null,null,null,"Energy","F10",null,0,0,0,0,0,0,0,0,0,0,0]
[1350,null,null,"Total Accum Prov for Amort-Intangible",null,null,null,-5839040.8385659289,-2477359.1806188719,-787983.45819202671,-1248491.7613591431,-493355.41049373557,-609972.54844556772,-207870.35098890061,-14008.128467684444,0,0,0]
[1351]
[1352,null,"111390","Accum Amtr - Capital Lease"]
[1353,null,null,"Situs",null,"F107T",null,0,0,0,0,0,0,0,0,0,0,0]
[1354,null,null,"System Generation",null,"F105T",null,0,0,0,0,0,0,0,0,0,0,0]
[1355,null,null,"System Overheads",null,"F102T",null,10139.201189127205,4301.8098082347324,1368.2937039151443,2167.9432463940652,856.68689482380364,1059.1866985559911,360.95642558454648,24.32441161892536,0,0,0]
[1356,null,null,"Remove Capital Lease Amtr",null,null,null,-10139.201189127205,-4301.8098082347324,-1368.2937039151443,-2167.9432463940652,-856.68689482380364,-1059.1866985559911,-360.95642558454648,-24.32441161892536,0,0,0]
[1357,null,"TOTAL ACCUM PROV FOR AMORTIZATION",null,null,null,null,-6435065.100261936,-2760391.1897368762,-870918.95541586494,-1362483.3242589124,-537327.42989146011,-655519.28520689695,-231047.81215690105,-17377.103595024892,0,0,0]

{"sheet":"Distribution","index":14,"n_rows":1357,"n_cols":18,"rows_kept":1357,"cut":false,"hidden":false,"merged":[]}
[1,null,null," - ","Distribution - Total -  Unbundled"]
[2,"PacifiCorp"]
[3,"Cost Of Service By Rate Schedule"]
[4,"State of Washington"]
[5,"WCA Method - (100 Summer, 100 Winter Hours) - 38%D / 62%E"]
[6,"12 Months Ending June 2012"]
[7]
[8]
[9,null,"A",null,"B","C",null,"D","E","F","G","H","I","J","K"]
[10,null,null,null,null,null,null,"Washington",null,"Small General","Large General","Large General","Large General","Agricultural","Street & Area",null,null,"Chk Total"]
[11,null,null,null,null,"COS",null,"Jurisdiction","Residential","Service","Service <1,000 kW","Service >1,000 kW","Dedicated Facilities","Pumping","Lighting","-","-"]
[12,null,null,null,"DESCRIPTION ","Factor",null,"Normalized","Schedule 16","Schedule 24","Schedule 36","Schedule 48T","Schedule 48T","Schedule 40","Sch. 15,51-54,57","-","-",0]
[13]
[14,null,null,null,"Operating Revenues",null,null,44799382.863793761,24625074.071665216,7663706.8858471103,6494306.772333594,2152190.0950635765,484780.09282574191,2518986.6873658216,860338.25869269227,0,0,0]
[15]
[16,null,null,null,"Operating Expenses"]
[17,null,null,null,"Operation & Maintenance Expenses",null,null,14391948.892669449,8095957.8041426744,2121176.1931480584,2082397.4379732881,756115.67261217826,303947.10711001663,724912.88770861574,307441.78997462208,0,0,0]
[18,null,null,null,"Depreciation Expense",null,null,12516369.432388294,7447312.0965365376,1878116.8835403353,1733167.8694275671,601693.02956722572,69327.533224695741,600055.64035489957,186696.37973703272,0,0,0]
[19,null,null,null,"Amortization Expense",null,null,442417.08881035889,244305.52191952744,64833.438921067209,69862.170145708573,25416.812356274553,13265.2480821996,19954.06316653507,4779.8342190464246,0,0,0]
[20,null,null,null,"Taxes Other Than Income",null,null,5489522.200680973,3272001.4043723186,828429.50216835761,758192.34779752931,262276.54597382934,43844.825026258906,260289.31137890712,64488.263963772275,0,0,0]
[21,null,null,null,"Income Taxes - Federal",null,null,1813833.1650488966,1081125.906112714,273727.44858405215,250519.87689399437,86660.711098461295,14487.089193031945,86004.094386982237,21308.038779660561,0,0,0]
[22,null,null,null,"Income Taxes - State",null,null,0,0,0,0,0,0,0,0,0,0,0]
[23,null,null,null,"Income Taxes Deferred",null,null,908708.60779814981,541631.08048127126,137134.16068905557,125507.44629921275,43415.974330228753,7257.8575060362855,43087.017252343881,10675.071240001475,0,0,0]
[24,null,null,null,"Investment Tax Credit Adj",null,null,0,0,0,0,0,0,0,0,0,0,0]
[25,null,null,null,"Misc Revenues & Expense",null,null,3674.2548731014076,1558.8945673561968,495.84377661184976,785.62165688284995,310.44713871580939,383.82924020354164,130.80378630848043,8.814707022679606,0,0,0]
[26]
[27,null,null,null,"Total Operating Expenses",null,null,35566473.642269231,20683892.708132401,5303913.4708275385,5020432.7701941831,1775889.1930769139,452513.48938244261,1734433.8180345921,595398.19262115809,0,0,0]
[28]
[29,null,null,null,"Operating Revenue For Return",null,null,9232909.2215245292,3941181.3635328151,2359793.4150195718,1473874.0021394109,376300.90198666253,32266.603443299304,784552.86933122948,264940.06607153418,0,0,0]
[30]
[31]
[32,null,null,null,"Rate Base :"]
[33,null,null,null,"Electric Plant In Service",null,null,458649616.57378644,271535136.19833577,68867431.723238885,64442996.830431648,22488245.262116887,3117642.2852687975,22042917.057402991,6155247.2169914022,0,0,0]
[34,null,null,null,"Plant Held For Future Use ",null,null,0,0,0,0,0,0,0,0,0,0,0]
[35,null,null,null,"Electric Plant Acquisition Adj",null,null,0,0,0,0,0,0,0,0,0,0,0]
[36,null,null,null,"Nuclear Fuel",null,null,0,0,0,0,0,0,0,0,0,0,0]
[37,null,null,null,"Prepayments",null,null,-6.4062846943359198E-9,-5.1690314736969717E-9,-8.7794068734323085E-10,-5.3318854636484715E-11,-1.0935234818579041E-11,-1.8882627602831269E-13,-1.5639684994152107E-10,-1.384727676231039E-10,0,0,0]
[38,null,null,null,"Fuel Stock",null,null,0,0,0,0,0,0,0,0,0,0,0]
[39,null,null,null,"Materials & Supplies",null,null,3.0886988376085263E-5,1.8288787189319099E-5,4.6380070784947705E-6,4.3386214067848872E-6,1.5138604094216387E-6,2.0837502358280016E-7,1.4846444803242308E-6,4.1469278815783158E-7,0,0,0]
[40,null,null,null,"Misc Deferred Debits",null,null,0,0,0,0,0,0,0,0,0,0,0]
[41,null,null,null,"Cash Working Capital",null,null,2719707.324459231,1529927.3157963278,400847.61778939865,393519.43275561545,142886.36989179382,57438.167660278457,136989.84793506496,58098.572630752657,0,0,0]
[42,null,null,null,"Weatherization Loans",null,null,0,0,0,0,0,0,0,0,0,0,0]
[43,null,null,null,"Miscellaneous Rate Base",null,null,0,0,0,0,0,0,0,0,0,0,0]
[44]
[45,null,null,null,"Total Rate Base Additions",null,null,461369323.89827657,273065063.51415038,69268279.341032922,64836516.263191596,22631131.632010192,3175080.452929284,22179906.905339543,6213345.7896225695,0,0,0]
[46]
[47,null,null,null,"Rate Base Deductions :"]
[48,null,null,null,"Accum Provision For Depreciation",null,null,-198063450.82755741,-116350673.03778681,-29462287.906706158,-28409924.938031357,-10018328.638025187,-988142.51805659884,-9704093.3693563603,-3130000.4195949091,0,0,0]
[49,null,null,null,"Accum Provision For Amortization",null,null,-7175315.1321535669,-4070523.1292305761,-1060721.3358633728,-1085050.5066773633,-389300.34376690252,-154239.99323697909,-330951.97345867823,-84527.849919693967,0,0,0]
[50,null,null,null,"Accum Deferred Income Taxes",null,null,-60008268.201318935,-35783886.315698259,-9080018.8113630973,-8275805.034058312,-2860747.5420457977,-467834.52330134669,-2843520.6271592681,-696455.34769283701,0,0,0]
[51,null,null,null,"Unamortized ITC",null,null,-153928.69549059757,-91790.748514117615,-23291.453059279298,-21228.385954453035,-7338.0974028804449,-1199.8269195114333,-7293.9103600574217,-1786.2732802982991,0,0,0]
[52,null,null,null,"Customer Advance For Construction",null,null,-162155.840417,-59724.156692356963,-92795.485534167252,0,0,0,-9636.1981904757904,0,0,0,0]
[53,null,null,null,"Customer Service Deposits",null,null,0,0,0,0,0,0,0,0,0,0,0]
[54,null,null,null,"Misc Rate Base Deductions",null,null,-202569.45286838623,-119927.54814696456,-30416.329722109633,-28462.211974921731,-9932.2693710008352,-1376.9532757576067,-9735.5835186291661,-2718.556859002656,0,0,0]
[55,null,null,null,null,null,null,null,null,null,null,null,null,null,null,null,null,0]
[56,null,null,null,"Total Rate Base Deductions",null,null,-265765688.1498059,-156476524.93606907,-39749531.322248183,-37820471.076696403,-13285646.890611768,-1612793.8147901937,-12905231.662043467,-3915488.4473467409,0,0,0]
[57,null,null,null,null,null,null,null,null,null,null,null,null,null,null,null,null,0]
[58,null,null,null,"Total Rate Base",null,null,195603635.74847066,116588538.57808131,29518748.018784739,27016045.186495192,9345484.7413984239,1562286.6381390903,9274675.2432960756,2297857.3422758286,0,0,0]
[59]
[60]
[61,null,null,null,"Return On Rate Base",null,null,4.7202135002220771E-2,3.3804192175316952E-2,7.9942191773102231E-2,5.4555505514040675E-2,4.0265530617126052E-2,2.065344646468556E-2,8.4590872321736579E-2,0.11529874426805539,0.1,0.1]
[62]
[63,null,null,null,"Return On Equity",null,null,4.1303600247317572E-2,1.5786818184617805E-2,0.10365801570768424,5.5308313896312349E-2,2.809263012777027E-2,-9.2591695909332566E-3,0.11251156658270514,0.17099562538090099,0.14185871023172955,0.14185871023172955]
[64]
[65]
[66]
[67]
[68]
[69]
[70]
[71,"PacifiCorp"]
[72,"Cost Of Service By Rate Schedule"]
[73,"State of Washington"]
[74,"WCA Method - (100 Summer, 100 Winter Hours)"]
[75,"12 Months Ending June 2012"]
[76]
[77]
[78,null,"A",null,"B","C",null,"D","E","F","G","H","I","J","K","S","T"]
[79,null,null,null,null,null,null,"Washington",null,"Small General","Large General","Large General","Large General","Agricultural","Street & Area"]
[80,null,null,null,null,"COS",null,"Jurisdiction","Residential","Service","Service <1,000 kW","Service >1,000 kW","Dedicated Facilities","Pumping","Lighting","-","-"]
[81,null,null,null,"DESCRIPTION ","Factor",null,"Normalized","Schedule 16","Schedule 24","Schedule 36","Schedule 48T","Schedule 48T","Schedule 40","Sch. 15,51-54,57","-","-"]
[82]
[83,null,null,null,"Total Rate Base",null,null,195603635.74847066,116588538.57808131,29518748.018784739,27016045.186495192,9345484.7413984239,1562286.6381390903,9274675.2432960756,2297857.3422758286,0,0,0]
[84]
[85]
[86,null,null,null,"Return On Ratebase ($$)",4.602925444100011E-2,null,9003489.5194510613,5366483.5071148621,1358725.9633364107,1243528.4178787435,430165.69503631216,71910.889176678858,426906.38663131965,105768.66027673439,0,0,0]
[87,null,null,null,"Operating & Maintenance Expense",null,null,14391948.892669449,8095957.8041426744,2121176.1931480584,2082397.4379732881,756115.67261217826,303947.10711001663,724912.88770861574,307441.78997462208,0,0,0]
[88,null,null,null,"        Bad Debt to Produce ROR","F80",null,0,0,0,0,0,0,0,0,0,0,0]
[89,null,null,null,"Depreciation Expense",null,null,12516369.432388294,7447312.0965365376,1878116.8835403353,1733167.8694275671,601693.02956722572,69327.533224695741,600055.64035489957,186696.37973703272,0,0,0]
[90,null,null,null,"Amortization Expense",null,null,442417.08881035889,244305.52191952744,64833.438921067209,69862.170145708573,25416.812356274553,13265.2480821996,19954.06316653507,4779.8342190464246,0,0,0]
[91,null,null,null,"Taxes Other Than Income",null,null,5489522.200680973,3272001.4043723186,828429.50216835761,758192.34779752931,262276.54597382934,43844.825026258906,260289.31137890712,64488.263963772275,0,0,0]
[92,null,null,null,"Federal Income Taxes",null,null,1813833.1650488966,1081125.906112714,273727.44858405215,250519.87689399437,86660.711098461295,14487.089193031945,86004.094386982237,21308.038779660561,0,0,0]
[93,null,null,null,"        FIT Adj to Produce Target ROR","F101",null,0,0,0,0,0,0,0,0,0,0,0]
[94,null,null,null,"State Income Taxes",null,null,0,0,0,0,0,0,0,0,0,0,0]
[95,null,null,null,"        SIT Adj to Produce Target ROR","F101",null,0,0,0,0,0,0,0,0,0,0,0]
[96,null,null,null,"Deferred Income Taxes",null,null,908708.60779814981,541631.08048127126,137134.16068905557,125507.44629921275,43415.974330228753,7257.8575060362855,43087.017252343881,10675.071240001475,0,0,0]
[97,null,null,null,"Investment Tax Credit",null,null,0,0,0,0,0,0,0,0,0,0,0]
[98,null,null,null,"Misc Revenue & Expenses",null,null,3674.2548731014076,1558.8945673561968,495.84377661184976,785.62165688284995,310.44713871580939,383.82924020354164,130.80378630848043,8.814707022679606,0,0,0]
[99,null,null,null,"Revenue Credits",null,null,-1743839.5782287749,-592256.41680821485,-303233.7717528505,-391634.34794021328,-111636.9460650486,-74309.7332069197,-263439.63387611113,-7328.7285794173831,0,0,0]
[100]
[101,null,null,null,"Total Revenue Requirements",null,null,42826123.583491519,25458119.798439048,6359405.6624110974,5872326.8401327133,2094417.9420481776,450114.64535220171,1897900.5707898003,693838.12431847525,0,0,0]
[102,null,null,null,"Operating Revenues",null,null,43055543.285564981,24032817.654857002,7360473.1140942601,6102672.424393381,2040553.1489985278,410470.35961882223,2255547.0534897102,853009.53011327493,0,0,0]
[103]
[104,null,null,null,"Increase / (Decrease) Required to "]
[105,null,null,null,"Earn Equal Rates of Return",null,null,-229419.70207346231,1425302.143582046,-1001067.4516831627,-230345.58426066767,53864.793049649801,39644.285733379482,-357646.48269990995,-159171.40579479968,0,0,0]
[106]
[107,null,null,null,"Existing Revenues",null,null,43055543.285564989,24032817.654857002,7360473.1140942601,6102672.424393381,2040553.1489985278,410470.35961882223,2255547.0534897102,853009.53011327493,0,0,0]
[108,null,null,null,"check",null,null,0,0,0,0,0,0,0,0,0,0,0]
[109,null,null,null,"Percent Increase / (Decrease) "]
[110,null,null,null,"Over Existing Rates To "]
[111,null,null,null,"Equal Authorized RoE & RoR",null,null,-5.3284591150514803E-3,5.9306493481175074E-2,-0.13600585671133841,-3.7745035001377207E-2,2.6397152691703136E-2,9.6582578508700639E-2,-0.15856307770062733,-0.18659979774629551,{"$error":"#DIV/0!"},{"$error":"#DIV/0!"}]
[112]
[113]
[114]
[115]
[116]
[117]
[118]
[119]
[120,null,null,null,null,"WCA",null,null,"ELECTRIC REVENUES"]
[121,null,"Distribution - Total -  Unbundled",null,null,"Method"]
[122,null,"A",null,"B",null,null,"D","E","F","G","H","I","J","K","S","T"]
[123,null,null,null,null,null,null,"Washington",null,"Small General","Large General","Large General","Large General","Agricultural","Street & Area"]
[124,null,"FERC",null,null,"COS",null,"Jurisdiction","Residential","Service","Service <1,000 kW","Service >1,000 kW","Dedicated Facilities","Pumping","Lighting","-","-"]
[125,null,"ACCT",null,"DESCRIPTION ","Factor",null,"Normalized","Schedule 16","Schedule 24","Schedule 36","Schedule 48T","Schedule 48T","Schedule 40","Sch. 15,51-54,57","-","-"]
[126,null,"440","Residential Sales",null,"A",null,24032817.654857002,24032817.654857002,0,0,0,0,0,0,0,0,0]
[127]
[128,null,"442","Commercial & Industrial Sales",null,"A",null,12067043.676201321,0,7360473.1140942601,0,2040553.1489985278,410470.35961882223,2255547.0534897102,0,0,0,0]
[129,null,null,null,"Interruptible Demand","F10",null,0,0,0,0,0,0,0,0,0,0,0]
[130,null,null,null,"Interruptible Energy","F10",null,0,0,0,0,0,0,0,0,0,0,0]
[131,null,null,null,null,null,null,12067043.676201321,0,7360473.1140942601,0,2040553.1489985278,410470.35961882223,2255547.0534897102,0,0,0,0]
[132]
[133,null,"444","Public Street & Highway Lighting",null,"A",null,6955681.9545066562,0,0,6102672.424393381,0,0,0,853009.53011327493,0,0,0]
[134]
[135,null,"445","Other Sales to Public Authority",null,"A",null,0,0,0,0,0,0,0,0,0,0,0]
[136]
[137,null,"448","Interdepartmental",null,"A",0,0,0,0,0,0,0,0,0,0,0,0]
[138,null,null,null,"Demand","F10",null,0,0,0,0,0,0,0,0,0,0,0]
[139,null,null,null,null,null,null,0,0,0,0,0,0,0,0,0,0,0]
[140]
[141,null,"Total Sales to Ultimate Customers",null,null,null,null,43055543.285564981,24032817.654857002,7360473.1140942601,6102672.424393381,2040553.1489985278,410470.35961882223,2255547.0534897102,853009.53011327493,0,0,0]
[142]
[143,null,"447","Sales for Resale",null,"F10",null,0,0,0,0,0,0,0,0,0,0,0]
[144,null,null,null,"Demand","F10",null,0,0,0,0,0,0,0,0,0,0,0]
[145,null,null,null,"Energy","F10",null,0,0,0,0,0,0,0,0,0,0,0]
[146,null,null,null,null,null,null,0,0,0,0,0,0,0,0,0,0,0]
[147]
[148,null,"447NPC","Sales for Resale",null,"F10",null,0,0,0,0,0,0,0,0,0,0,0]
[149,null,null,null,"Demand","F10",null,0,0,0,0,0,0,0,0,0,0,0]
[150,null,null,null,"Energy","F10",null,0,0,0,0,0,0,0,0,0,0,0]
[151,null,null,null,null,null,null,0,0,0,0,0,0,0,0,0,0,0]
[152]
[153,null,"449","Provision for Rate Refund",null,"F10",null,0,0,0,0,0,0,0,0,0,0,0]
[154]
[155,null,"State Specific Revenue Credit",null,null,"F140D",null,39499.335698031988,23086.681751395994,5904.6454826558129,5551.3239907642301,1955.0768367856424,464.76176122868088,1915.4492453131497,621.39662988847499,0,0,0]
[156]
[157,null,"AGA Revenue",null,null,"A",1,545051.91999999993,358,146937,179091,30700,0,186753.91999999998,1212,0,0,0]
[158]
[159,null,"Total Sales from Electricity",null,null,null,null,43640094.541263014,24056262.336608399,7513314.7595769158,6287314.7483841451,2073208.2258353133,410935.1213800509,2444216.4227350233,854842.92674316338,0,0,0]
[160]
[161,null,"Other Electric Operating Revenues"]
[162,null,"450","Forfeited Discounts & Interest",null,"A",0,0,0,0,0,0,0,0,0,0,0,0]
[163,null,null,null,"Customers","F40",null,0,0,0,0,0,0,0,0,0,0,0]
[164,null,null,null,null,null,null,0,0,0,0,0,0,0,0,0,0,0]
[165]
[166,null,"451","Misc Electric Revenue",null,"A",0,0,0,0,0,0,0,0,0,0,0,0]
[167,null,null,null,"Demand","F10",null,0,0,0,0,0,0,0,0,0,0,0]
[168,null,null,null,"Customer","F40",null,77.833899958391214,61.323412153260868,10.9637394589452,0.61413057859577969,3.4050247495252997E-2,5.8796921502290024E-4,3.0927180710204549,1.8052614798586448,0,0,0]
[169,null,null,null,null,null,null,77.833899958391214,61.323412153260868,10.9637394589452,0.61413057859577969,3.4050247495252997E-2,5.8796921502290024E-4,3.0927180710204549,1.8052614798586448,0,0,0]
[170]
[171,null,"453","Water Sales",null,"F10",null,0,0,0,0,0,0,0,0,0,0,0]
[172]
[173,null,"454","Rent of Electric Property",null,"A",1,1090881.68,514915.82676780707,140756.31711288399,206452.27698855338,78951.94315350971,73844.454691424136,72052.137187026543,3908.7240987951254,0,0,0]
[174,null,null,null,"Demand","F10",null,0,0,0,0,0,0,0,0,0,0,0]
[175,null,null,null,"Customer","F40",null,68328.808630785075,53834.584876858455,9624.8454178517568,539.13283031708556,29.892024505745976,0.51616629766168376,2715.0347257004564,1584.8025892539231,0,0,0]
[176,null,null,null,null,null,null,1159210.4886307849,568750.41164466552,150381.16253073575,206991.40981887045,78981.835178015463,73844.970857721797,74767.171912727004,5493.526688049049,0,0,0]
[177]
[178,null,"456","Other Electric Revenue",null,"A",0,0,0,0,0,0,0,0,0,0,0,0]
[179,null,null,null,"Demand","F10",null,0,0,0,0,0,0,0,0,0,0,0]
[180,null,null,null,"Energy","F10",null,0,0,0,0,0,0,0,0,0,0,0]
[181,null,null,null,"Customer","F40",null,0,0,0,0,0,0,0,0,0,0,0]
[182,null,null,null,null,null,null,0,0,0,0,0,0,0,0,0,0,0]
[183]
[184,null,"Total Other Electric Operating Revenues",null,null,null,null,1159288.3225307432,568811.73505681881,150392.12627019468,206992.02394944904,78981.869228262964,73844.971445691015,74770.264630798018,5495.3319495289079,0,0,0]
[185]
[186,null,"Total Electric Operating Revenues",null,null,null,null,44799382.863793761,24625074.071665216,7663706.8858471103,6494306.772333594,2152190.0950635765,484780.09282574191,2518986.6873658216,860338.25869269227,0,0,0]
[187]
[188,null,"Miscellaneous Revenues"]
[189,null,"41160","Gain on Sale of Utility Plant - CR",null,"F10",null,0,0,0,0,0,0,0,0,0,0,0]
[190,null,"41170","Loss on Sale of Utility Plant ",null,"F10",null,0,0,0,0,0,0,0,0,0,0,0]
[191,null,"4118","Gain from Emission Allowances",null,"F10",null,0,0,0,0,0,0,0,0,0,0,0]
[192,null,41181,"Gain from Disposition of NOX Credits",null,"F10",null,0,0,0,0,0,0,0,0,0,0,0]
[193,null,"4194","Impact Housing Interest Income",null,"F10",null,0,0,0,0,0,0,0,0,0,0,0]
[194,null,"421","(Gain)/Loss on Sale of Utility Plant",null,"F10",null,3674.2548731014076,1558.8945673561968,495.84377661184976,785.62165688284995,310.44713871580939,383.82924020354164,130.80378630848043,8.814707022679606,0,0,0]
[195]
[196,null,"Total Miscellaneous Revenues",null,null,null,null,3674.2548731014076,1558.8945673561968,495.84377661184976,785.62165688284995,310.44713871580939,383.82924020354164,130.80378630848043,8.814707022679606,0,0,0]
[197]
[198,null,"Miscellaneous Expenses"]
[199,null,"4311","Interest on Customer Deposits",null,"F80",null,0,0,0,0,0,0,0,0,0,0,0]
[200]
[201,null,"DFA","Divergence Fairness Adjustment"]
[202,null,null,"Production ",null,"F105",null,0,0,0,0,0,0,0,0,0,0,0]
[203,null,null,"Transmission",null,"F105",null,0,0,0,0,0,0,0,0,0,0,0]
[204,null,null,"Distribution",null,"F105",null,0,0,0,0,0,0,0,0,0,0,0]
[205,null,null,null,null,null,null,0,0,0,0,0,0,0,0,0,0,0]
[206]
[207,null,"Net Miscellaneous Revenues And Expense",null,null,null,null,3674.2548731014076,1558.8945673561968,495.84377661184976,785.62165688284995,310.44713871580939,383.82924020354164,130.80378630848043,8.814707022679606,0,0,0]
[208]
[209,null,"Distribution - Total -  Unbundled"]
[210,null,null,null,null,null,null,"STEAM POWER GENERATION"]
[211]
[212,null,"A",null,"B","C",null,"D","E","F","G","H","I","J","K","S","T"]
[213,null,null,null,null,null,null,"Washington",null,"Small General","Large General","Large General","Large General","Agricultural","Street & Area"]
[214,null,"FERC",null,null,"COS",null,"Jurisdiction","Residential","Service","Service <1,000 kW","Service >1,000 kW","Dedicated Facilities","Pumping","Lighting","-","-"]
[215,null,"ACCT",null,"DESCRIPTION ","Factor",null,"Normalized","Schedule 16","Schedule 24","Schedule 36","Schedule 48T","Schedule 48T","Schedule 40","Sch. 15,51-54,57","-","-"]
[216,null,"500","Operation Suprvn & Engineering",null,"F10",null,0,0,0,0,0,0,0,0,0,0,0]
[217,null,null,null,"JBG","F10",null,0,0,0,0,0,0,0,0,0,0,0]
[218,null,null,null,"Total 500",null,null,0,0,0,0,0,0,0,0,0,0,0]
[219]
[220,null,"501","Fuel Related",null,"F10",null,0,0,0,0,0,0,0,0,0,0,0]
[221,null,null,null,"CAGW","F10",null,0,0,0,0,0,0,0,0,0,0,0]
[222,null,null,null,"JBE","F10",null,0,0,0,0,0,0,0,0,0,0,0]
[223,null,null,null,"Total 501",null,null,0,0,0,0,0,0,0,0,0,0,0]
[224]
[225,null,"501NPC","Fuel Related"]
[226,null,null,null,"CAEW","F10",null,0,0,0,0,0,0,0,0,0,0,0]
[227,null,null,null,"Total 501NPC",null,null,0,0,0,0,0,0,0,0,0,0,0]
[228]
[229,null,"502","Steam Expenses",null,"F10",null,0,0,0,0,0,0,0,0,0,0,0]
[230,null,null,null,"JBG","F10",null,0,0,0,0,0,0,0,0,0,0,0]
[231,null,null,null,"Total 502",null,null,0,0,0,0,0,0,0,0,0,0]
[232]
[233,null,"503","Steam From Other Sources",null,"F10",null,0,0,0,0,0,0,0,0,0,0,0]
[234]
[235,null,"503NPC","Steam From Other Sources-NPC",null,"F10",null,0,0,0,0,0,0,0,0,0,0,0]
[236]
[237,null,"505","Electric Expenses",null,"F10",null,0,0,0,0,0,0,0,0,0,0,0]
[238,null,null,null,"JBG","F10",null,0,0,0,0,0,0,0,0,0,0,0]
[239,null,null,null,"Total 505",null,null,0,0,0,0,0,0,0,0,0,0,0]
[240]
[241,null,"506","Misc. Steam Expense",null,"F10",null,0,0,0,0,0,0,0,0,0,0,0]
[242,null,null,null,"JBG","F10",null,0,0,0,0,0,0,0,0,0,0,0]
[243,null,null,null,"Total 506",null,null,0,0,0,0,0,0,0,0,0,0,0]
[244]
[245,null,"507","Rents",null,"F10",null,0,0,0,0,0,0,0,0,0,0,0]
[246,null,null,null,"JBG","F10",null,0,0,0,0,0,0,0,0,0,0,0]
[247,null,null,null,"Total 507",null,null,0,0,0,0,0,0,0,0,0,0,0]
[248]
[249,null,"510","Maint Supervision & Engineering",null,"F10",null,0,0,0,0,0,0,0,0,0,0,0]
[250,null,null,null,"JBG","F10",null,0,0,0,0,0,0,0,0,0,0,0]
[251,null,null,null,"Total 510",null,null,0,0,0,0,0,0,0,0,0,0,0]
[252]
[253,null,"511","Maintenance of Structures",null,"F10",null,0,0,0,0,0,0,0,0,0,0,0]
[254,null,null,null,"JBG","F10",null,0,0,0,0,0,0,0,0,0,0,0]
[255,null,null,null,"Total 511",null,null,0,0,0,0,0,0,0,0,0,0,0]
[256]
[257,null,"512","Maintenance of Boiler Plant",null,"F10",null,0,0,0,0,0,0,0,0,0,0,0]
[258,null,null,null,"JBG","F10",null,0,0,0,0,0,0,0,0,0,0,0]
[259,null,null,null,"Total 512",null,null,0,0,0,0,0,0,0,0,0,0,0]
[260]
[261,null,"513","Maintenance of Electric Plant",null,"F10",null,0,0,0,0,0,0,0,0,0,0,0]
[262,null,null,null,"JBG","F10",null,0,0,0,0,0,0,0,0,0,0,0]
[263,null,null,null,"Total 513",null,null,0,0,0,0,0,0,0,0,0,0,0]
[264]
[265,null,"514","Maint of Misc. Steam Plant",null,"F10",null,0,0,0,0,0,0,0,0,0,0,0]
[266,null,null,null,"JBG","F10",null,0,0,0,0,0,0,0,0,0,0,0]
[267,null,null,null,"Total 514",null,null,0,0,0,0,0,0,0,0,0,0,0]
[268]
[269,null,"Total Steam Power Generation",null,null,null,null,0,0,0,0,0,0,0,0,0,0,0]
[270]
[271]
[272,null,null,null,null,null,null,"NUCLEAR POWER GENERATION"]
[273]
[274]
[275,null,"517","Operation Super & Engineering",null,"F10",null,0,0,0,0,0,0,0,0,0,0,0]
[276]
[277,null,"518","Nuclear Fuel Expense",null,"F10",null,0,0,0,0,0,0,0,0,0,0,0]
[278]
[279,null,"519","Coolants and Water",null,"F10",null,0,0,0,0,0,0,0,0,0,0,0]
[280]
[281,null,"520","Steam Expenses",null,"F10",null,0,0,0,0,0,0,0,0,0,0,0]
[282]
[283,null,"523","Electric Expenses",null,"F10",null,0,0,0,0,0,0,0,0,0,0,0]
[284]
[285,null,"524","Misc. Nuclear Expenses",null,"F10",null,0,0,0,0,0,0,0,0,0,0,0]
[286]
[287,null,"528","Maint Supervision & Eng",null,"F10",null,0,0,0,0,0,0,0,0,0,0,0]
[288]
[289,null,"529","Maintenance of Structures",null,"F10",null,0,0,0,0,0,0,0,0,0,0,0]
[290]
[291,null,"530","Maintenance of Reactor Plant",null,"F10",null,0,0,0,0,0,0,0,0,0,0,0]
[292]
[293,null,"531","Maintenance of Electric Plant",null,"F10",null,0,0,0,0,0,0,0,0,0,0,0]
[294]
[295,null,"532","Maintenance of Misc Nuclear",null,"F10",null,0,0,0,0,0,0,0,0,0,0,0]
[296]
[297,null,"Total Nuclear Power Generation",null,null,null,null,0,0,0,0,0,0,0,0,0,0,0]
[298]
[299]
[300]
[301,null,"Distribution - Total -  Unbundled",null,null,null,null,"HYDRAULIC POWER GENERATION"]
[302]
[303,null,"A",null,"B","C",null,"D","E","F","G","H","I","J","K","S","T"]
[304,null,null,null,null,null,null,"Washington",null,"Small General","Large General","Large General","Large General","Agricultural","Street & Area"]
[305,null,"FERC",null,null,"COS",null,"Jurisdiction","Residential","Service","Service <1,000 kW","Service >1,000 kW","Dedicated Facilities","Pumping","Lighting","-","-"]
[306,null,"ACCT",null,"DESCRIPTION ","Factor",null,"Normalized","Schedule 16","Schedule 24","Schedule 36","Schedule 48T","Schedule 48T","Schedule 40","Sch. 15,51-54,57","-","-"]
[307,null,"535","Operation Super & Engineering",null,"F10",null,0,0,0,0,0,0,0,0,0,0,0]
[308]
[309,null,"536","Water For Power",null,"F10",null,0,0,0,0,0,0,0,0,0,0,0]
[310]
[311,null,"537","Hydraulic Expenses",null,"F10",null,0,0,0,0,0,0,0,0,0,0,0]
[312]
[313,null,"538","Electric Expenses",null,"F10",null,0,0,0,0,0,0,0,0,0,0,0]
[314]
[315,null,"539","Misc. Hydro Expenses",null,"F10",null,0,0,0,0,0,0,0,0,0,0,0]
[316]
[317,null,"540","Rents (Hydro Generation)",null,"F10",null,0,0,0,0,0,0,0,0,0,0,0]
[318]
[319,null,"541","Maint Supervision & Engineering",null,"F10",null,0,0,0,0,0,0,0,0,0,0,0]
[320]
[321,null,"542","Maintenance of Structures",null,"F10",null,0,0,0,0,0,0,0,0,0,0,0]
[322]
[323,null,"543","Maint of Dams & Waterways",null,"F10",null,0,0,0,0,0,0,0,0,0,0,0]
[324]
[325,null,"544","Maintenance of Electric Plant",null,"F10",null,0,0,0,0,0,0,0,0,0,0,0]
[326]
[327,null,"545","Maint of Misc. Hydro Plant",null,"F10",null,0,0,0,0,0,0,0,0,0,0,0]
[328]
[329,null,"Total Hydraulic Power Generation ",null,null,null,null,0,0,0,0,0,0,0,0,0,0,0]
[330]
[331]
[332,null,null,null,null,null,null,"OTHER POWER GENERATION"]
[333]
[334]
[335,null,"546","Operation Super & Engineering",null,"F10",null,0,0,0,0,0,0,0,0,0,0,0]
[336,null,null,null,"CAGE","F10",null,0,0,0,0,0,0,0,0,0,0,0]
[337,null,null,null,"Total 546",null,null,0,0,0,0,0,0,0,0,0,0,0]
[338]
[339,null,"547","Fuel","SE","F10",null,0,0,0,0,0,0,0,0,0,0,0]
[340,null,null,null,"SSECT","F10",null,null,0,0,0,0,0,0,0,0,0,0]
[341,null,null,null,"Total 547",null,null,0,0,0,0,0,0,0,0,0,0,0]
[342]
[343]
[344,null,"547NPC","Fuel","CAEW","F10",null,0,0,0,0,0,0,0,0,0,0,0]
[345,null,null,null,"SE","F10",null,null,0,0,0,0,0,0,0,0,0,0]
[346,null,null,null,"Total 547NPC",null,null,0,0,0,0,0,0,0,0,0,0,0]
[347]
[348,null,"548","Generation Expense",null,"F10",null,0,0,0,0,0,0,0,0,0,0,0]
[349,null,null,null,"CAGE","F10",null,0,0,0,0,0,0,0,0,0,0,0]
[350,null,null,null,"Total 548",null,null,0,0,0,0,0,0,0,0,0,0,0]
[351]
[352,null,"549","Miscellaneous Other",null,"F10",null,0,0,0,0,0,0,0,0,0,0,0]
[353,null,null,null,"CAGE","F10",null,0,0,0,0,0,0,0,0,0,0,0]
[354,null,null,"Total 549",null,null,null,0,0,0,0,0,0,0,0,0,0,0]
[355]
[356,null,"550","Maint Supervision & Engineering"]
[357,null,null,null,"SG","F10",null,0,0,0,0,0,0,0,0,0,0,0]
[358,null,null,null,"CAGE","F10",null,0,0,0,0,0,0,0,0,0,0,0]
[359,null,null,null,"Total 550",null,null,0,0,0,0,0,0,0,0,0,0,0]
[360]
[361,null,"552","Maintenance of Structures"]
[362,null,null,null,"SG","F10",null,0,0,0,0,0,0,0,0,0,0,0]
[363,null,null,null,"CAGE","F10",null,0,0,0,0,0,0,0,0,0,0,0]
[364,null,null,null,"Total 552",null,null,0,0,0,0,0,0,0,0,0,0,0]
[365]
[366,null,"553","Maint of Generation & Elect Plant"]
[367,null,null,null,"SG","F10",null,0,0,0,0,0,0,0,0,0,0,0]
[368,null,null,null,"CAGE","F10",null,0,0,0,0,0,0,0,0,0,0,0]
[369,null,null,null,"Total 553",null,null,0,0,0,0,0,0,0,0,0,0,0]
[370]
[371,null,"554","Maintenance of Misc. Other"]
[372,null,null,null,"SG","F10",null,0,0,0,0,0,0,0,0,0,0,0]
[373,null,null,null,"CAGE","F10",null,0,0,0,0,0,0,0,0,0,0,0]
[374,null,null,null,"Total 554",null,null,0,0,0,0,0,0,0,0,0,0,0]
[375]
[376,null,"Total Other Power Generation",null,null,null,null,0,0,0,0,0,0,0,0,0,0,0]
[377]
[378]
[379,null,null,null,null,null,null,"OTHER POWER SUPPLY"]
[380]
[381]
[382,null,"555","Purchased Power",null,"F10",null,0,0,0,0,0,0,0,0,0,0,0]
[383,null,null,null,"Demand","F10",null,0,0,0,0,0,0,0,0,0,0,0]
[384,null,null,null,"Energy","F10",null,0,0,0,0,0,0,0,0,0,0,0]
[385,null,null,null,"SSGP","F10",null,0,0,0,0,0,0,0,0,0,0,0]
[386,null,null,null,"Total 555",null,null,0,0,0,0,0,0,0,0,0,0,0]
[387]
[388,null,"555NPC","Purchased Power",null,"F10",null,0,0,0,0,0,0,0,0,0,0,0]
[389,null,null,null,"Demand","F10",null,0,0,0,0,0,0,0,0,0,0,0]
[390,null,null,null,"Energy","F10",null,0,0,0,0,0,0,0,0,0,0,0]
[391,null,null,null,"SSGP","F10",null,0,0,0,0,0,0,0,0,0,0,0]
[392,null,null,null,"Total 555NPC",null,null,0,0,0,0,0,0,0,0,0,0,0]
[393]
[394,null,"556","System Control & Load Dispatch",null,"F10",null,0,0,0,0,0,0,0,0,0,0,0]
[395]
[396,null,"557","Other Expenses",null,"F10",null,-1180771.9899890956,-500972.06210592791,-159346.17032690631,-252470.2502178571,-99766.428412863665,-123348.76904948721,-42035.583374542373,-2832.7265015109892,0,0,0]
[397,null,null,null,"CAGE/JBG","F10",null,1180771.9899890956,500972.06210592791,159346.17032690631,252470.2502178571,99766.428412863665,123348.76904948721,42035.583374542373,2832.7265015109892,0,0,0]
[398,null,null,null,"Total 557",null,null,0,0,0,0,0,0,0,0,0,0,0]
[399]
[400,null,"Embedded Cost Differentials"]
[401,null,"Company Owned Hydro",null,"DGP","F10",null,0,0,0,0,0,0,0,0,0,0,0]
[402,null,"Company Owned Hydro",null,"SG","F10",null,0,0,0,0,0,0,0,0,0,0,0]
[403,null,"Mid-C Contract",null,"MC","F10",null,0,0,0,0,0,0,0,0,0,0,0]
[404,null,"Mid-C Contract",null,"SG","F10",null,0,0,0,0,0,0,0,0,0,0,0]
[405,null,"Existing QF Contracts",null,"S ","F10",null,0,0,0,0,0,0,0,0,0,0,0]
[406,null,"Existing QF Contracts",null,"SG","F10",null,0,0,0,0,0,0,0,0,0,0,0]
[407,null,"Total Embedded Cost Differential",null,null,null,null,0,0,0,0,0,0,0,0,0,0,0]
[408]
[409,null,"Total Other Power Supply",null,null,null,null,0,0,0,0,0,0,0,0,0,0,0]
[410]
[411,null,"TOTAL PRODUCTION EXPENSE",null,null,null,null,0,0,0,0,0,0,0,0,0,0,0]
[412]
[413,null,"Distribution - Total -  Unbundled",null,null,null,null,"TRANSMISSION EXPENSE"]
[414]
[415]
[416,null,"A",null,"B","C",null,"D","E","F","G","H","I","J","K","S","T"]
[417,null,null,null,null,null,null,"Washington",null,"Small General","Large General","Large General","Large General","Agricultural","Street & Area"]
[418,null,"FERC",null,null,"COS",null,"Jurisdiction","Residential","Service","Service <1,000 kW","Service >1,000 kW","Dedicated Facilities","Pumping","Lighting","-","-"]
[419,null,"ACCT",null,"DESCRIPTION ","Factor",null,"Normalized","Schedule 16","Schedule 24","Schedule 36","Schedule 48T","Schedule 48T","Schedule 40","Sch. 15,51-54,57","-","-"]
[420,null,"560","Operation Supervision & Eng",null,"F106",null,0,0,0,0,0,0,0,0,0,0,0]
[421]
[422,null,"561","Load Dispatching",null,"F106",null,0,0,0,0,0,0,0,0,0,0,0]
[423]
[424,null,"562","Station Expense",null,"F106",null,0,0,0,0,0,0,0,0,0,0,0]
[425]
[426,null,"563","Overhead Line Expense",null,"F106",null,0,0,0,0,0,0,0,0,0,0,0]
[427]
[428,null,"564","Underground Line Expense",null,"F106",null,0,0,0,0,0,0,0,0,0,0,0]
[429]
[430,null,"565","Transm of Electricity by Others",null,"F10",null,0,0,0,0,0,0,0,0,0,0,0]
[431,null,null,"Energy",null,"F10",null,0,0,0,0,0,0,0,0,0,0,0]
[432,null,null,null,null,null,null,0,0,0,0,0,0,0,0,0,0,0]
[433,null,"565NPC","Transm of Electricity by Others",null,"F10",null,0,0,0,0,0,0,0,0,0,0,0]
[434,null,null,"Energy",null,"F10",null,0,0,0,0,0,0,0,0,0,0,0]
[435]
[436,null,"566","Misc. Transmission Expense",null,"F106",null,0,0,0,0,0,0,0,0,0,0,0]
[437]
[438,null,"567","Rents - Transmission",null,"F106",null,0,0,0,0,0,0,0,0,0,0,0]
[439]
[440,null,"568","Maint Supervision & Engineering",null,"F106",null,0,0,0,0,0,0,0,0,0,0,0]
[441]
[442,null,"569","Maintenance of Structures",null,"F106",null,0,0,0,0,0,0,0,0,0,0,0]
[443]
[444,null,"570","Maint of Station Equipment",null,"F106",null,0,0,0,0,0,0,0,0,0,0,0]
[445]
[446,null,"571","Maintenance of Overhead Lines",null,"F106",null,0,0,0,0,0,0,0,0,0,0,0]
[447]
[448,null,"572","Maint of Underground Lines",null,"F106",null,0,0,0,0,0,0,0,0,0,0,0]
[449]
[450,null,"573","Maint of Misc Transmission Plant",null,"F106",null,0,0,0,0,0,0,0,0,0,0,0]
[451]
[452]
[453,null,"TOTAL TRANSMISSION EXPENSE",null,null,null,null,0,0,0,0,0,0,0,0,0,0,0]
[454]
[455]
[456]
[457]
[458]
[459]
[460]
[461]
[462]
[463]
[464]
[465,null,"Distribution - Total -  Unbundled",null,null,null,null,"DISTRIBUTION EXPENSE"]
[466]
[467]
[468,null,"A",null,"B","C",null,"D","E","F","G","H","I","J","K","S","T"]
[469,null,null,null,null,null,null,"Washington",null,"Small General","Large General","Large General","Large General","Agricultural","Street & Area"]
[470,null,"FERC",null,null,"COS",null,"Jurisdiction","Residential","Service","Service <1,000 kW","Service >1,000 kW","Dedicated Facilities","Pumping","Lighting","-","-"]
[471,null,"ACCT",null,"DESCRIPTION ","Factor",null,"Normalized","Schedule 16","Schedule 24","Schedule 36","Schedule 48T","Schedule 48T","Schedule 40","Sch. 15,51-54,57","-","-"]
[472,null,"580","Operation Supervision & Eng",null,"F131",null,909810.96730218641,512588.00171576708,134168.5533983667,129687.52926136991,47121.107689329721,18143.911433498844,46755.582895353531,21346.280908500714,0,0,0]
[473]
[474,null,"581","Load Dispatching",null,"F20",null,852248.379117648,402276.60505297629,109965.49425050851,161290.28624684791,61680.993286794714,57690.781659833927,56290.538429067565,3053.6801916191639,0,0,0]
[475]
[476,null,"582","Station Expense",null,"F120",null,317335.73514141352,152188.63452664687,41601.967911678104,61019.080200021155,23335.053609016999,16739.990096897596,21295.745446497862,1155.2633506549264,0,0,0]
[477]
[478,null,"583","Overhead Line Expenses",null,"F132",null,576635.08690863231,323841.16736707801,84708.181135687119,96029.431748288072,36723.790829756967,0,33514.407742296207,1818.1080855259663,0,0,0]
[479]
[480,null,"584","Underground Line Expense",null,"F133",null,67.300607506355803,45.301787558860404,11.040173384230949,6.260808395650785,2.3942723992133228,0,2.1850310008938734,0.1185347675064678,0,0,0]
[481]
[482,null,"585","Street Lighting & Signal Systems",null,"F130",null,14256.5274335944,0,0,0,0,0,0,14256.5274335944,0,0,0]
[483]
[484,null,"586","Meter Expenses",null,"F127",null,636148.15424891119,432661.70257322217,103271.7154630173,48608.12424730062,7814.5467885586313,6154.2291130128169,37637.836063799696,0,0,0,0]
[485]
[486,null,"587","Customer Installation Expenses",null,"F20",null,947827.17,447391.51809162373,122298.01284106946,179378.82817696297,68598.454091915803,64160.744280136561,62603.465191963936,3396.1473263276221,0,0,0]
[487]
[488,null,"588","Misc. Distribution Expenses",null,"F131",null,277610.63598494366,156405.98571428491,40938.852988930048,39571.55801750948,14378.064393682987,5536.2520054510678,14266.531807056899,6513.3910580283055,0,0,0]
[489]
[490,null,"589","Rents",null,"F131",null,119593.14062629984,67378.841512895044,17636.233515383265,17047.210334716652,6193.9913464301953,2384.9870242956154,6145.9437193302301,2805.9331732488454,0,0,0]
[491]
[492,null,"590","Maint Supervision & Engineering",null,"F131",null,247117.89510009371,139226.35865027033,36442.131053600046,35225.019705831946,12798.778389648038,4928.1503119532508,12699.496537768262,5797.9604510218524,0,0,0]
[493]
[494,null,"591","Maintenance of Structures",null,"F119",null,209228.72693319363,98759.732505894819,26996.75462267697,39597.096439252782,15142.810497019906,14163.205349788777,13819.442761617725,749.68475694265828,0,0,0]
[495]
[496,null,"592","Maint of Station Equipment",null,"F120",null,754906.73739222938,362039.98742055328,98966.496323856933,145157.66631812046,55511.520563562473,39822.591371235707,50660.231215961488,2748.2441789390241,0,0,0]
[497]
[498,null,"593","Maintenance of Overhead Lines",null,"F134",null,4144263.9697047933,2482789.0922981719,662796.49995539675,580866.55585366394,212939.50043073238,0,194330.18979330824,10542.131373520206,0,0,0]
[499]
[500,null,"594","Maint of Underground Lines",null,"F135",null,1028804.6586482538,698688.40637374064,171070.61041065073,96582.179792196039,37472.533165951638,0,23704.968683417039,1285.9602222977398,0,0,0]
[501]
[502,null,"595","Maint of Line Transformers",null,"F125",null,56252.998151844738,33952.176215383966,7744.6345537012139,8732.1659974261856,2573.5854129657337,0,3129.1243824536864,121.31158991396002,0,0,0]
[503]
[504,null,"596","Maint of Street Lighting & Signals",null,"F130",null,199709.85,0,0,0,0,0,0,199709.85,0,0,0]
[505]
[506,null,"597","Maintenance of Meters",null,"F127",null,441912.15099998261,300556.50144138501,71739.6185352498,33766.53787129304,5428.5203177226094,4275.1497538953427,26145.823080436789,0,0,0,0]
[507]
[508,null,"598","Maint of Misc. Distribution Plant",null,"F131",null,75725.498082461083,42663.787463585788,11167.133501612361,10794.168350730743,3921.9898178987414,1510.1562630530611,3891.5664133893274,1776.6962721910704,0,0,0]
[509]
[510,null,"TOTAL DISTRIBUTION EXPENSE",null,null,null,null,11809455.582383985,6653453.8007110395,1741523.9306347691,1683359.6993699276,611637.6349033867,235510.14866305256,606893.07919471955,277077.28890709399,0,0,0]
[511]
[512]
[513,null,null,null,null,null,null,"CUSTOMER ACCOUNTS EXPENSE"]
[514]
[515]
[516,null,"901","Supervision",null,"F136",null,0,0,0,0,0,0,0,0,0,0,0]
[517]
[518,null,"902","Meter Reading Expense",null,"F41",null,0,0,0,0,0,0,0,0,0,0,0]
[519]
[520,null,"903","Customer Receipts & Collections",null,"F42",null,0,0,0,0,0,0,0,0,0,0,0]
[521]
[522,null,"904","Uncollectible Accounts",null,"F80",null,0,0,0,0,0,0,0,0,0,0,0]
[523]
[524,null,"905","Misc. Customer Accounts Exp",null,"F136",null,0,0,0,0,0,0,0,0,0,0,0]
[525]
[526,null,"TOTAL CUSTOMER ACCOUNTS EXPENSE",null,null,null,null,0,0,0,0,0,0,0,0,0,0,0]
[527]
[528,null,"Distribution - Total -  Unbundled",null,null,null,null,"CUSTOMER SERVICE EXPENSE"]
[529]
[530,null,"A",null,"B","C",null,"D","E","F","G","H","I","J","K","S","T"]
[531,null,null,null,null,null,null,"Washington",null,"Small General","Large General","Large General","Large General","Agricultural","Street & Area"]
[532,null,"FERC",null,null,"COS",null,"Jurisdiction","Residential","Service","Service <1,000 kW","Service >1,000 kW","Dedicated Facilities","Pumping","Lighting","-","-"]
[533,null,"ACCT",null,"DESCRIPTION ","Factor",null,"Normalized","Schedule 16","Schedule 24","Schedule 36","Schedule 48T","Schedule 48T","Schedule 40","Sch. 15,51-54,57","-","-"]
[534,null,"907","Supervision",null,"F40",null,0,0,0,0,0,0,0,0,0,0,0]
[535]
[536,null,"908","Customer Assistance",null,"F40",null,0,0,0,0,0,0,0,0,0,0,0]
[537]
[538,null,"909","Informational & Instructional Adv",null,"F40",null,0,0,0,0,0,0,0,0,0,0,0]
[539]
[540,null,"910","Misc. Customer Service",null,"F40",null,0,0,0,0,0,0,0,0,0,0,0]
[541]
[542,null,"TOTAL CUSTOMER SERVICE EXPENSE",null,null,null,null,0,0,0,0,0,0,0,0,0,0,0]
[543]
[544]
[545,null,null,null,null,null,null,"SALES EXPENSE"]
[546]
[547]
[548,null,"911","Supervision",null,"F40",null,0,0,0,0,0,0,0,0,0,0,0]
[549]
[550,null,"912","Demonstration & Selling Expense",null,"F40",null,0,0,0,0,0,0,0,0,0,0,0]
[551]
[552,null,"913","Advertising Expense",null,"F40",null,0,0,0,0,0,0,0,0,0,0,0]
[553]
[554,null,"916","Misc. Sales Expense",null,"F40",null,0,0,0,0,0,0,0,0,0,0,0]
[555]
[556,null,"TOTAL SALES EXPENSE",null,null,null,null,0,0,0,0,0,0,0,0,0,0,0]
[557]
[558]
[559,null,null,null,null,null,null,"ADMINISTRATION & GENERAL EXPENSE"]
[560]
[561]
[562,null,"920","Administrative & General Salaries",null,"F102D",null,1460284.3517641514,864534.70365168469,219265.48994607749,205178.62972447669,71599.825810866038,9926.1921934776874,70181.955207155843,19597.555230412698,0,0,0]
[563,null,null,null,"Customer - System","F42",null,0,0,0,0,0,0,0,0,0,0,0]
[564,null,null,null,"Administrative & General Salaries",null,null,1460284.3517641514,864534.70365168469,219265.48994607749,205178.62972447669,71599.825810866038,9926.1921934776874,70181.955207155843,19597.555230412698,0,0,0]
[565]
[566,null,"921","Office Supplies & expenses",null,"F102D",null,-325022.84734355233,-192423.84585489804,-48803.025096007659,-45667.641625093907,-15936.334061401087,-2209.3226200129307,-15620.751455707974,-4361.9266304306848,0,0,0]
[567,null,null,null,"Customer - System","F42",null,0,0,0,0,0,0,0,0,0,0,0]
[568,null,null,null,"Office Supplies & expenses",null,null,-325022.84734355233,-192423.84585489804,-48803.025096007659,-45667.641625093907,-15936.334061401087,-2209.3226200129307,-15620.751455707974,-4361.9266304306848,0,0,0]
[569]
[570,null,"923","Outside Services",null,"F102D",null,138057.76126571736,81734.57832269436,20729.731595230569,19397.935919198153,6769.1690639029666,938.43905844037931,6635.1211703703002,1852.7861358806122,0,0,0]
[571,null,null,null,"Customer - System","F42",null,0,0,0,0,0,0,0,0,0,0,0]
[572,null,null,null,"Outside Services",null,null,138057.76126571736,81734.57832269436,20729.731595230569,19397.935919198153,6769.1690639029666,938.43905844037931,6635.1211703703002,1852.7861358806122,0,0,0]
[573]
[574,null,"924","Property Insurance",null,"F102D",null,168039.81693222027,99484.907276910817,25231.615161512935,23610.592920243384,8239.232042102989,1142.2402198660418,8076.0729173796435,2255.1563942044495,0,0,0]
[575]
[576,null,"925","Injuries & Damages",null,"F102D",null,197787.96712260492,117096.75676222512,29698.377212755997,27790.38481182071,9697.8263009908842,1344.4514233439581,9505.7830568022127,2654.3875546660206,0,0,0]
[577]
[578,null,"926","Employee Pensions & Benefits",null,"F138D",null,0,0,0,0,0,0,0,0,0,0,0]
[579]
[580,null,"927","Franchise Requirements",null,"F102",null,0,0,0,0,0,0,0,0,0,0,0]
[581]
[582,null,"928","Regulatory Commission Expense",null,"F141",null,0,0,0,0,0,0,0,0,0,0,0]
[583]
[584,null,"929","Duplicate Charges",null,"F138D",null,-150320.82370507595,-84690.835138790542,-22167.602048110064,-21427.238100516595,-7785.4455225565289,-2997.7740541015105,-7725.0527705565682,-3526.8760704441934,0,0,0]
[585]
[586,null,"930","Misc General Expenses",null,"F138D",null,270559.25651597593,152433.2346250609,39898.995901232272,38566.430563477559,14012.857968109975,5395.6298221987445,13904.158337032106,6347.9492988644788,0,0,0]
[587]
[588,null,"931","Rents",null,"F102D",null,114949.66316388041,68053.850510819379,17259.990619166452,16151.110807126113,5636.1460352626164,781.36319666902989,5524.5350684604618,1542.6669263763488,0,0,0]
[589]
[590,null,"935","Maintenance of General Plant",null,"F108",null,708158.16456954286,336280.6532759284,98538.689221431108,135437.53358262844,52244.760071513709,54115.739207082639,27537.986982960105,4002.8022279983625,0,0,0]
[591]
[592,null,"TOTAL ADMINISTRATIVE & GEN EXPENSE",null,null,null,null,2582493.3102854644,1442504.0034316352,379652.26251328911,399037.73860336049,144478.03770879155,68436.958446964039,118019.80851389615,30364.501067528094,0,0,0]
[593]
[594]
[595,null,"TOTAL O & M EXPENSE",null,null,null,null,14391948.892669449,8095957.8041426744,2121176.1931480584,2082397.4379732881,756115.67261217826,303947.10711001663,724912.88770861574,307441.78997462208,0,0,0]
[596]
[597,null,"Distribution - Total -  Unbundled",null,null,null,null,"DEPRECIATION EXPENSE"]
[598]
[599,null,"A",null,"B","C",null,"D","E","F","G","H","I","J","K","S","T"]
[600,null,null,null,null,null,null,"Washington",null,"Small General","Large General","Large General","Large General","Agricultural","Street & Area"]
[601,null,"FERC",null,null,"COS",null,"Jurisdiction","Residential","Service","Service <1,000 kW","Service >1,000 kW","Dedicated Facilities","Pumping","Lighting","-","-"]
[602,null,"ACCT",null,"DESCRIPTION ","Factor",null,"Normalized","Schedule 16","Schedule 24","Schedule 36","Schedule 48T","Schedule 48T","Schedule 40","Sch. 15,51-54,57","-","-"]
[603,null,"403SP","Steam Depreciation",null,"F10",null,0,0,0,0,0,0,0,0,0,0,0]
[604,null,null,null,"JBG","F10",null,0,0,0,0,0,0,0,0,0,0,0]
[605,null,null,null,"Total 403SP",null,null,0,0,0,0,0,0,0,0,0,0,0]
[606]
[607,null,"403NP","Nuclear Depreciation",null,"F10",null,0,0,0,0,0,0,0,0,0,0,0]
[608]
[609,null,"403HP","Hydro Depreciation",null,"F10",null,0,0,0,0,0,0,0,0,0,0,0]
[610]
[611,null,"403OP","Other Production Depreciation",null,"F10",null,0,0,0,0,0,0,0,0,0,0,0]
[612,null,null,null,"CAGE","F10",null,0,0,0,0,0,0,0,0,0,0,0]
[613,null,null,null,"CAEE","F10",null,0,0,0,0,0,0,0,0,0,0,0]
[614,null,null,null,"Total 403OP",null,null,0,0,0,0,0,0,0,0,0,0,0]
[615]
[616,null,"403TP","Transmission Depreciation",null,"F106",null,0,0,0,0,0,0,0,0,0,0,0]
[617]
[618,null,"403","Distribution Depreciation"]
[619,null,null,null,"Land Rights","F118",null,4664.91,2361.7975130837685,645.61604523752044,946.94792627129982,362.13395141411189,0,330.48616797989081,17.928396013408552,0,0,0]
[620,null,null,null,"Structures","F119",null,39557.75,18671.971415198961,5104.1311861357754,7486.4100385698548,2862.9697303934454,2677.7610543149676,2612.7677108026046,141.73886458439094,0,0,0]
[621,null,null,null,"Station Equip","F120",null,1032646.87,495239.26772218791,135377.57394606256,198563.08382902833,75934.940197943288,54473.84729516504,69298.797596315402,3759.3594132973963,0,0,0]
[622,null,null,null,"Poles & Towers","F121",null,2500805.4182108361,1284690.521943928,348959.9373981044,495416.20084868913,189458.17550320411,0,172900.95604130527,9379.6264756051205,0,0,0]
[623,null,null,null,"OH Conductors","F122",null,1713557.51,1092016.2259056284,271655.15600848215,199894.21098633704,76443.992833191092,0,69763.362860263078,3784.5614060979974,0,0,0]
[624,null,null,null,"UG Conduit","F123",null,709250.08,467462.82255306293,114817.60440406138,72539.310869690264,27740.646079171558,0,25316.3222729923,1373.3738210214556,0,0,0]
[625,null,null,null,"UG Conductor","F124",null,653549.86,446513.67545046646,108223.38199818197,56452.958879531347,21588.867244856297,0,19702.162636002729,1068.8137909612337,0,0,0]
[626,null,null,null,"Line Transformer","F125",null,2843151.39,1716018.3487416175,391431.02092018095,441343.05208546179,130074.71929595801,0,158152.89193015819,6131.3570266240949,0,0,0]
[627,null,null,null,"Services","F126",null,1270803.1499999999,936170.08383699169,255801.57391136381,63840.32723953238,14991.165012112118,0,0,0,0,0,0]
[628,null,null,null,"Meters","F127",null,445097.37,302722.85571972642,72256.704104169781,34009.920674298279,5467.6480629517537,4305.9642227738586,26334.277216079921,0,0,0,0]
[629,null,null,null,"Inst Cust Premises","F128",null,19245.82,0,0,0,0,0,0,19245.82,0,0,0]
[630,null,null,null,"Leased Property","F129",null,0,0,0,0,0,0,0,0,0,0,0]
[631,null,null,null,"Street Lighting","F130",null,126255.92,0,0,0,0,0,0,126255.92,0,0,0]
[632,null,null,"Total Distribution Expense",null,null,null,11358586.048210837,6761867.5708018914,1704272.69992198,1570492.4233774098,544925.25791119586,61457.57257225387,544412.02443189942,171158.4991942051,0,0,0]
[633]
[634,null,"403GP","General Depreciation"]
[635,null,null,null,"Situs","F107D",null,861090.85346922302,509793.12688096589,129295.02918107642,120988.38227613238,42220.513450851518,5853.2116003676192,41384.43285683381,11556.157222995298,0,0,0]
[636,null,null,null,"System Generation","F105D",null,0,0,0,0,0,0,0,0,0,0,0]
[637,null,null,null,"System Overheads","F102D",null,296692.53070823505,175651.39885367992,44549.154437278841,41687.063774024966,14547.258205178387,2016.749052074256,14259.183066166328,3981.7233198323252,0,0,0]
[638,null,null,null,"Customer - System","F42",null,0,0,0,0,0,0,0,0,0,0,0]
[639,null,null,null,"Energy","F10",null,0,0,0,0,0,0,0,0,0,0,0]
[640,null,null,null,"CAEE","F105D",null,0,0,0,0,0,0,0,0,0,0,0]
[641,null,null,null,"CAEE","F105D",null,0,0,0,0,0,0,0,0,0,0,0]
[642,null,null,"Total General Expense",null,null,null,1157783.384177458,685444.52573464578,173844.18361835525,162675.44605015736,56767.771656029901,7869.960652441875,55643.615923000136,15537.880542827623,0,0,0]
[643]
[644,null,"403GV0","General Vehicles",null,"F105D",null,0,0,0,0,0,0,0,0,0,0,0]
[645]
[646,null,"403MP","Mining Depreciation",null,"F10",null,0,0,0,0,0,0,0,0,0,0,0]
[647]
[648,null,"403EP","Experimental Plant Depreciation",null,"F10",null,0,0,0,0,0,0,0,0,0,0,0]
[649]
[650]
[651,null,"TOTAL DEPRECIATION EXPENSE",null,null,null,null,12516369.432388294,7447312.0965365376,1878116.8835403353,1733167.8694275671,601693.02956722572,69327.533224695741,600055.64035489957,186696.37973703272,0,0,0]
[652]
[653,null,null,null,null,null,null,"AMORTIZATION EXPENSE"]
[654]
[655]
[656,null,"404GP","Amort of LT Plant - Cap. Lease Gen"]
[657,null,null,"Division",null,"F10",null,105029.72009734975,44561.486811745628,14173.84881239785,22457.239787280414,8874.2281661103098,10971.878396048269,3739.0669776963177,251.97114607096293,0,0,0]
[658,null,null,"System Overheads",null,"F102D",null,25592.74687732277,15151.718780310763,3842.8174460287892,3595.9330310091286,1254.8489040673157,173.96510751925194,1229.9994948260858,343.46411356143233,0,0,0]
[659,null,null,"Customer - System",null,"F42",null,0,0,0,0,0,0,0,0,0,0,0]
[660,null,null,"Total Amort. Cap. Lease General",null,null,null,130622.46697467253,59713.205592056387,18016.666258426638,26053.172818289542,10129.077070177626,11145.843503567521,4969.0664725224033,595.43525963239529,0,0,0]
[661]
[662,null,"404SP","Amort of LT Plant - Cap Lease Steam",null,"F10",null,0,0,0,0,0,0,0,0,0,0,0]
[663]
[664,null,"404IP","Amort of LT Plant - Intangible Plant"]
[665,null,null,null,"Situs","F107D",null,94.920997818297536,56.196244669762706,14.252634473317308,13.336964298021757,4.6541119894718728,0.6452195878171485,4.5619479583235476,1.2738748415831898,0,0,0]
[666,null,null,null,"System Generation","F105D",null,0,0,0,0,0,0,0,0,0,0,0]
[667,null,null,null,"System Overheads","F102D",null,311699.70083786809,184536.1200828013,46802.520028167251,43795.660363121002,15283.081174107456,2118.7593590442602,14980.434746054343,4183.1250845724462,0,0,0]
[668,null,null,null,"Customer - System","F42",null,0,0,0,0,0,0,0,0,0,0,0]
[669,null,null,null,"Energy","F10",null,0,0,0,0,0,0,0,0,0,0,0]
[670,null,null,null,"CAEW","F105D",null,0,0,0,0,0,0,0,0,0,0,0]
[671,null,null,null,"CAEE","F105D",null,0,0,0,0,0,0,0,0,0,0,0]
[672,null,null,"Total Amort. Intangible Plant",null,null,null,311794.62183568638,184592.31632747105,46816.772662640571,43808.997327419027,15287.735286096928,2119.4045786320776,14984.996694012667,4184.3989594140294,0,0,0]
[673]
[674,null,"Distribution - Total -  Unbundled",null,null,null,null,"AMORTIZATION EXPENSE (continued)"]
[675]
[676]
[677,null,"A",null,"B","C",null,"D","E","F","G","H","I","J","K","S","T"]
[678,null,null,null,null,null,null,"Washington",null,"Small General","Large General","Large General","Large General","Agricultural","Street & Area"]
[679,null,"FERC",null,null,"COS",null,"Jurisdiction","Residential","Service","Service <1,000 kW","Service >1,000 kW","Dedicated Facilities","Pumping","Lighting","-","-"]
[680,null,"ACCT",null,"DESCRIPTION ","Factor",null,"Normalized","Schedule 16","Schedule 24","Schedule 36","Schedule 48T","Schedule 48T","Schedule 40","Sch. 15,51-54,57","-","-"]
[681,null,"404MP",null,"Amort of LT Plant - Mining Plant","F10",null,0,0,0,0,0,0,0,0,0,0,0]
[682]
[683,null,"404OP",null,"Amort of LT Plant - Other Plant","F30",null,0,0,0,0,0,0,0,0,0,0,0]
[684]
[685,null,"404HP",null,"Amort of Other Electric Plant","F110",null,0,0,0,0,0,0,0,0,0,0,0]
[686]
[687,null,"405",null,"Amort of Other Electric Plant","F110",null,0,0,0,0,0,0,0,0,0,0,0]
[688]
[689,null,"406",null,"Amort of Plant Acquisition Adj","F10",null,0,0,0,0,0,0,0,0,0,0,0]
[690]
[691,null,"407",null,"Amort of Prop Losses, Unrec Plant,","F110",null,0,0,0,0,0,0,0,0,0,0,0]
[692]
[693]
[694,null,"TOTAL AMORTIZATION EXPENSE",null,null,null,null,442417.08881035889,244305.52191952744,64833.438921067209,69862.170145708573,25416.812356274553,13265.2480821996,19954.06316653507,4779.8342190464246,0,0,0]
[695]
[696]
[697,null,null,null,null,null,null,"TAX OTHER THAN INCOME"]
[698]
[699]
[700,null,"408","Taxes Other Than Income",null,"F101D",null,2242323.0182238566,1336525.073853367,338391.29778132663,309701.29850220657,107132.95523322784,17909.438525302241,106321.22304381215,26341.731284614278,0,0,0]
[701,null,null,null,"Customer - System","F101D",null,3247199.1824571164,1935476.3305189516,490038.20438703103,448491.04929532274,155143.59074060147,25935.386500956665,153968.08833509497,38146.532679157994,0,0,0]
[702,null,null,"Total Taxes Other Than Income",null,null,null,5489522.200680973,3272001.4043723186,828429.50216835761,758192.34779752931,262276.54597382934,43844.825026258906,260289.31137890712,64488.263963772275,0,0,0]
[703]
[704]
[705,null,null,null,null,null,null,"DEFERRED  ITC"]
[706]
[707]
[708,null,"41140","Deferred I T C - Federal",null,"F101D",null,0,0,0,0,0,0,0,0,0,0,0]
[709]
[710,null,"41141","Deferred I T C - Idaho",null,"F101D",null,0,0,0,0,0,0,0,0,0,0,0]
[711]
[712,null,"TOTAL DEFERRED ITC",null,null,null,null,0,0,0,0,0,0,0,0,0,0,0]
[713]
[714]
[715,null,null,null,null,null,null,"DEFERRED INCOME TAXES"]
[716]
[717]
[718,null,"41010","Deferred Income Tax - Federal-DR",null,"F101D",null,7230986.2999488804,4309992.1019528341,1091235.659801096,998716.87903364561,345479.63217990269,57753.902343122892,342861.97883861838,84946.145799661463,0,0,0]
[719]
[720,null,"41011","Deferred Income Tax - State-DR",null,"F101D",null,0,0,0,0,0,0,0,0,0,0,0]
[721]
[722,null,"41110","Deferred Income Tax - Federal-CR",null,"F101D",null,-6322277.6921507306,-3768361.0214715628,-954101.49911204039,-873209.43273443286,-302063.65784967394,-50496.044837086607,-299774.9615862745,-74271.074559659988,0,0,0]
[723]
[724,null,"41111","Deferred Income Tax - State-CR",null,"F101D",null,0,0,0,0,0,0,0,0,0,0,0]
[725]
[726,null,"TOTAL DEFERRED INCOME TAXES",null,null,null,null,908708.60779814981,541631.08048127126,137134.16068905557,125507.44629921275,43415.974330228753,7257.8575060362855,43087.017252343881,10675.071240001475,0,0,0]
[727]
[728]
[729,null,null,null,null,null,null,"INCOME TAXES"]
[730]
[731]
[732,null,"40911","State Income Taxes",null,"F101D",null,0,0,0,0,0,0,0,0,0,0,0]
[733]
[734,null,"40910","Federal Income Tax",null,"F101D",null,1813833.1650488966,1081125.906112714,273727.44858405215,250519.87689399437,86660.711098461295,14487.089193031945,86004.094386982237,21308.038779660561,0,0,0]
[735]
[736]
[737,null,"TOTAL OPERATING EXPENSES",null,null,null,null,35566473.642269224,20683892.708132401,5303913.4708275385,5020432.7701941831,1775889.1930769137,452513.48938244267,1734433.8180345921,595398.19262115832,0,0,0]
[738]
[739]
[740,null,"Distribution - Total -  Unbundled",null,null,null,null,"STEAM PRODUCTION PLANT"]
[741]
[742,null,"A",null,"B","C",null,"D","E","F","G","H","I","J","K","S","T"]
[743,null,null,null,null,null,null,"Washington",null,"Small General","Large General","Large General","Large General","Agricultural","Street & Area"]
[744,null,"FERC",null,null,"COS",null,"Jurisdiction","Residential","Service","Service <1,000 kW","Service >1,000 kW","Dedicated Facilities","Pumping","Lighting","-","-"]
[745,null,"ACCT",null,"DESCRIPTION ","Factor",null,"Normalized","Schedule 16","Schedule 24","Schedule 36","Schedule 48T","Schedule 48T","Schedule 40","Sch. 15,51-54,57","-","-"]
[746,null,"310","Land and Land Rights",null,"F10",null,0,0,0,0,0,0,0,0,0,0,0]
[747,null,null,null,"JBG","F10",null,0,0,0,0,0,0,0,0,0,0,0]
[748,null,null,null,"Total 310",null,null,0,0,0,0,0,0,0,0,0,0,0]
[749]
[750,null,"311","Structures and Improvements",null,"F10",null,0,0,0,0,0,0,0,0,0,0,0]
[751,null,null,null,"JBG","F10",null,0,0,0,0,0,0,0,0,0,0,0]
[752,null,null,null,"Total 311",null,null,0,0,0,0,0,0,0,0,0,0,0]
[753]
[754,null,"312","Boiler Plant Equipment",null,"F10",null,0,0,0,0,0,0,0,0,0,0,0]
[755,null,null,null,"JBG","F10",null,0,0,0,0,0,0,0,0,0,0,0]
[756,null,null,null,"Total 312",null,null,0,0,0,0,0,0,0,0,0,0,0]
[757]
[758,null,"314","Turbogenerator Units",null,"F10",null,0,0,0,0,0,0,0,0,0,0,0]
[759,null,null,null,"JBG","F10",null,0,0,0,0,0,0,0,0,0,0,0]
[760,null,null,null,"Total 314",null,null,0,0,0,0,0,0,0,0,0,0,0]
[761]
[762,null,"315","Accessory Electric Equipment",null,"F10",null,0,0,0,0,0,0,0,0,0,0,0]
[763,null,null,null,"JBG","F10",null,0,0,0,0,0,0,0,0,0,0,0]
[764,null,null,null,"Total 315",null,null,0,0,0,0,0,0,0,0,0,0,0]
[765]
[766,null,"316","Misc Power Plant Equipment",null,"F10",null,0,0,0,0,0,0,0,0,0,0,0]
[767,null,null,null,"JBG","F10",null,0,0,0,0,0,0,0,0,0,0,0]
[768,null,null,null,"Total 316",null,null,0,0,0,0,0,0,0,0,0,0,0]
[769]
[770,null,"SP","Unclassified Steam Plant - Acct 300",null,"F10",null,0,0,0,0,0,0,0,0,0,0,0]
[771]
[772]
[773]
[774,null,"Total Steam Production Plant",null,null,null,null,0,0,0,0,0,0,0,0,0,0,0]
[775]
[776]
[777,null,null,null,null,null,null,"NUCLEAR PRODUCTION"]
[778]
[779]
[780,null,"320","Land and Land Rights",null,"F10",null,0,0,0,0,0,0,0,0,0,0,0]
[781]
[782,null,"321","Structures and Improvements",null,"F10",null,0,0,0,0,0,0,0,0,0,0,0]
[783]
[784,null,"322","Reactor Plant Equipment",null,"F10",null,0,0,0,0,0,0,0,0,0,0,0]
[785]
[786,null,"323","Turbogenerator Units",null,"F10",null,0,0,0,0,0,0,0,0,0,0,0]
[787]
[788,null,"324","Land and Land Rights",null,"F10",null,0,0,0,0,0,0,0,0,0,0,0]
[789]
[790,null,"325","Misc. Power Plant Equipment",null,"F10",null,0,0,0,0,0,0,0,0,0,0,0]
[791]
[792,null,"NP","Unclassified Nuclear Plt - Acct 300",null,"F10",null,0,0,0,0,0,0,0,0,0,0,0]
[793]
[794,null,"Total Nuclear Production Plant",null,null,null,null,0,0,0,0,0,0,0,0,0,0,0]
[795]
[796]
[797,null,null,null,null,null,null,"HYDRAULIC PRODUCTION PLANT"]
[798]
[799]
[800,null,"330","Land and Land Rights",null,"F10",null,0,0,0,0,0,0,0,0,0,0,0]
[801]
[802,null,"331","Structures and Improvements",null,"F10",null,0,0,0,0,0,0,0,0,0,0,0]
[803]
[804,null,"332","Reservoirs, Dams & Waterways",null,"F10",null,0,0,0,0,0,0,0,0,0,0,0]
[805]
[806,null,"333","Water Wheel, Turbines, & Generators",null,"F10",null,0,0,0,0,0,0,0,0,0,0,0]
[807]
[808,null,"334","Accessory Electric Equipment",null,"F10",null,0,0,0,0,0,0,0,0,0,0,0]
[809]
[810,null,"335","Misc. Power Plant Equipment",null,"F10",null,0,0,0,0,0,0,0,0,0,0,0]
[811]
[812,null,"336","Roads, Railroads & Bridges",null,"F10",null,0,0,0,0,0,0,0,0,0,0,0]
[813]
[814,null,"HP","Unclassified Hydro Plant - Acct 300",null,"F10",null,0,0,0,0,0,0,0,0,0,0,0]
[815]
[816,null,"Total Hydraulic Plant",null,null,null,null,0,0,0,0,0,0,0,0,0,0,0]
[817]
[818,null,"Distribution - Total -  Unbundled",null,null,null,null,"OTHER PRODUCTION PLANT"]
[819,null,"A",null,"B","C",null,"D","E","F","G","H","I","J","K","S","T"]
[820,null,null,null,null,null,null,"Washington",null,"Small General","Large General","Large General","Large General","Agricultural","Street & Area"]
[821,null,"FERC",null,null,"COS",null,"Jurisdiction","Residential","Service","Service <1,000 kW","Service >1,000 kW","Dedicated Facilities","Pumping","Lighting","-","-"]
[822,null,"ACCT",null,"DESCRIPTION ","Factor",null,"Normalized","Schedule 16","Schedule 24","Schedule 36","Schedule 48T","Schedule 48T","Schedule 40","Sch. 15,51-54,57","-","-"]
[823,null,"340","Land and Land Rights"]
[824,null,null,null,"SG","F10",null,0,0,0,0,0,0,0,0,0,0,0]
[825,null,null,null,"CAGE","F10",null,0,0,0,0,0,0,0,0,0,0,0]
[826,null,null,null,"Total 340",null,null,0,0,0,0,0,0,0,0,0,0,0]
[827]
[828,null,"341","Structures and Improvements"]
[829,null,null,null,"SG","F10",null,0,0,0,0,0,0,0,0,0,0,0]
[830,null,null,null,"CAGE","F10",null,0,0,0,0,0,0,0,0,0,0,0]
[831,null,null,null,"Total 341",null,null,0,0,0,0,0,0,0,0,0,0,0]
[832]
[833,null,"342","Fuel Holders, Producers & Access"]
[834,null,null,null,"SG","F10",null,0,0,0,0,0,0,0,0,0,0,0]
[835,null,null,null,"CAGE","F10",null,0,0,0,0,0,0,0,0,0,0,0]
[836,null,null,null,"Total 342",null,null,0,0,0,0,0,0,0,0,0,0,0]
[837]
[838,null,"343","Prime Movers",null,"F10",null,0,0,0,0,0,0,0,0,0,0,0]
[839,null,null,null,"CAGE","F10",null,0,0,0,0,0,0,0,0,0,0,0]
[840,null,null,null,"Total 343",null,null,0,0,0,0,0,0,0,0,0,0,0]
[841]
[842,null,"344","Generators"]
[843,null,null,null,"SG","F10",null,0,0,0,0,0,0,0,0,0,0,0]
[844,null,null,null,"CAGE","F10",null,0,0,0,0,0,0,0,0,0,0,0]
[845,null,null,null,"Total 344",null,null,0,0,0,0,0,0,0,0,0,0,0]
[846]
[847,null,"345","Accessory Electric Plant"]
[848,null,null,null,"SG","F10",null,0,0,0,0,0,0,0,0,0,0,0]
[849,null,null,null,"CAGE","F10",null,0,0,0,0,0,0,0,0,0,0,0]
[850,null,null,null,"Total 345",null,null,0,0,0,0,0,0,0,0,0,0,0]
[851]
[852,null,"346","Misc. Power Plant Equipment",null,"F10",null,0,0,0,0,0,0,0,0,0,0,0]
[853]
[854,null,"OP","Unclassified Other Prod - Acct 300",null,"F10",null,0,0,0,0,0,0,0,0,0,0,0]
[855]
[856,null,"Total Other Production Plant",null,null,null,null,0,0,0,0,0,0,0,0,0,0,0]
[857]
[858,null,"Experimental Plant"]
[859,null,"103","Experimental Plant",null,"F10",null,0,0,0,0,0,0,0,0,0,0,0]
[860]
[861,null,"TOTAL PRODUCTION PLANT",null,null,null,null,0,0,0,0,0,0,0,0,0,0,0]
[862]
[863,null,null,null,null,null,null,"TRANSMISSION PLANT"]
[864,null,"350","Land and Land Rights"]
[865,null,null,null,"Demand","F10",null,0,0,0,0,0,0,0,0,0,0,0]
[866,null,null,null,"Direct Assigned","A",0,0,0,0,0,0,0,0,0,0,0,0]
[867,null,null,null,null,null,null,0,0,0,0,0,0,0,0,0,0,0]
[868,null,"352","Structures and Improvements"]
[869,null,null,null,"Demand","F10",null,0,0,0,0,0,0,0,0,0,0,0]
[870,null,null,null,"Direct Assigned","A",0,0,0,0,0,0,0,0,0,0,0,0]
[871,null,null,null,null,null,null,0,0,0,0,0,0,0,0,0,0,0]
[872,null,"353","Station Equipment"]
[873,null,null,null,"Demand","F10",null,0,0,0,0,0,0,0,0,0,0,0]
[874,null,null,null,"Direct Assigned","A",0,0,0,0,0,0,0,0,0,0,0,0]
[875,null,null,null,null,null,null,0,0,0,0,0,0,0,0,0,0,0]
[876,null,"354","Towers and Fixtures"]
[877,null,null,null,"Demand","F10",null,0,0,0,0,0,0,0,0,0,0,0]
[878,null,null,null,"Direct Assigned","A",0,0,0,0,0,0,0,0,0,0,0,0]
[879,null,null,null,null,null,null,0,0,0,0,0,0,0,0,0,0,0]
[880,null,"355","Poles and Fixtures"]
[881,null,null,null,"Demand","F10",null,0,0,0,0,0,0,0,0,0,0,0]
[882,null,null,null,"Direct Assigned","A",0,0,0,0,0,0,0,0,0,0,0,0]
[883,null,null,null,null,null,null,0,0,0,0,0,0,0,0,0,0,0]
[884,null,"356","Overhead Conductors"]
[885,null,null,null,"Demand","F10",null,0,0,0,0,0,0,0,0,0,0,0]
[886,null,null,null,"Direct Assigned","A",0,0,0,0,0,0,0,0,0,0,0,0]
[887,null,null,null,null,null,null,0,0,0,0,0,0,0,0,0,0,0]
[888,null,"357","Underground Conduit"]
[889,null,null,null,"Demand","F10",null,0,0,0,0,0,0,0,0,0,0,0]
[890,null,null,null,"Direct Assigned","A",0,0,0,0,0,0,0,0,0,0,0,0]
[891,null,null,null,null,null,null,0,0,0,0,0,0,0,0,0,0,0]
[892,null,"358","Underground Conductors "]
[893,null,null,null,"Demand","F10",null,0,0,0,0,0,0,0,0,0,0,0]
[894,null,null,null,"Direct Assigned","A",0,0,0,0,0,0,0,0,0,0,0,0]
[895,null,null,null,null,null,null,0,0,0,0,0,0,0,0,0,0,0]
[896,null,"359","Roads and Trails"]
[897,null,null,null,"Demand","F10",null,0,0,0,0,0,0,0,0,0,0,0]
[898,null,null,null,"Direct Assigned","A",0,0,0,0,0,0,0,0,0,0,0,0]
[899,null,null,null,null,null,null,0,0,0,0,0,0,0,0,0,0,0]
[900]
[901,null,"TP","Unclassified Trans Plant - Acct 300",null,"F10",null,0,0,0,0,0,0,0,0,0,0,0]
[902,null,"TS0","Unclassified Trans Sub - Acct 300",null,"F10",null,0,0,0,0,0,0,0,0,0,0,0]
[903]
[904,null,"TOTAL TRANSMISSION PLANT",null,null,null,null,0,0,0,0,0,0,0,0,0,0,0]
[905,null,"Distribution - Total -  Unbundled",null,null,null,null,"DISTRIBUTION PLANT"]
[906,null,"A",null,"B","C",null,"D","E","F","G","H","I","J","K","S","T"]
[907,null,null,null,null,null,null,"Washington",null,"Small General","Large General","Large General","Large General","Agricultural","Street & Area"]
[908,null,"FERC",null,null,"COS",null,"Jurisdiction","Residential","Service","Service <1,000 kW","Service >1,000 kW","Dedicated Facilities","Pumping","Lighting","-","-"]
[909,null,"ACCT",null,"DESCRIPTION ","Factor",null,"Normalized","Schedule 16","Schedule 24","Schedule 36","Schedule 48T","Schedule 48T","Schedule 40","Sch. 15,51-54,57","-","-"]
[910]
[911,null,"360","Land and Land Rights"]
[912,null,null,null,"Demand Primary","F20A",null,1510453.72,764727.6881063357,209044.36681966018,306612.77878517925,117255.54706344701,0,107008.29422942156,5805.0449959562175,0,0]
[913,null,null,null,"Assigned","A",1,0,0,0,0,0,0,0,0,0,0,0]
[914,null,null,null,null,null,null,1510453.72,764727.6881063357,209044.36681966018,306612.77878517925,117255.54706344701,0,107008.29422942156,5805.0449959562175,0,0,0]
[915,null,"361","Structures and Improvements"]
[916,null,null,null,"Demand Primary","F20",null,2440663.6,1152037.236023702,314918.49752896494,461902.11717835424,176641.64440275537,165214.50119797423,161204.49335493663,8745.1103133128672,0,0,0]
[917,null,null,null,"Assigned","A",1,0,0,0,0,0,0,0,0,0,0,0]
[918,null,null,null,null,null,null,2440663.6,1152037.236023702,314918.49752896494,461902.11717835424,176641.64440275537,165214.50119797423,161204.49335493663,8745.1103133128672,0,0,0]
[919,null,"362","Station Equipment"]
[920,null,null,null,"Demand Primary","F20A",null,45081829,22824481.419248756,6239252.6653363425,9151332.9269090611,3499673.2783151874,0,3193828.1578282784,173260.55236237487,0,0,0]
[921,null,null,null,"Assigned","A",1,2510579.0200000005,0,0,0,0,2510579.0200000005,0,0,0,0,0]
[922,null,null,null,null,null,null,47592408.020000003,22824481.419248756,6239252.6653363425,9151332.9269090611,3499673.2783151874,2510579.0200000005,3193828.1578282784,173260.55236237487,0,0,0]
[923,null,"364","Poles, Towers & Fixtures"]
[924,null,null,null,"Demand Primary","F20A",1,90412079.795344546,45774736.321467288,12512886.507814614,18353093.944379807,7018631.3802101463,0,6405255.7907131175,347475.85075957119,0,0,0]
[925,null,null,null,"Demand Secondary","F22",1,2232280.0346554583,1817663.3584383933,414616.67621706467,0,0,0,0,0,0,0,0]
[926,null,null,null,"Assigned","A",1,0,0,0,0,0,0,0,0,0,0,0]
[927,null,null,null,null,null,null,92644359.829999998,47592399.679905683,12927503.184031678,18353093.944379807,7018631.3802101463,0,6405255.7907131175,347475.85075957119,0,0,0]
[928,null,"365","Overhead Conductors"]
[929,null,null,null,"Demand Primary","F20A",1,33695237.643228479,17059563.521813627,4663366.7253086548,6839925.1885832408,2615739.5430093734,0,2387143.5821660757,129499.08234750752,0,0,0]
[930,null,null,null,"Demand Secondary","F22",1,24938802.416771524,20306747.653771393,4632054.7630001288,0,0,0,0,0,0,0,0]
[931,null,null,null,"Assigned","A",1,0,0,0,0,0,0,0,0,0,0,0]
[932,null,null,null,null,null,null,58634040.060000002,37366311.175585017,9295421.4883087836,6839925.1885832408,2615739.5430093734,0,2387143.5821660757,129499.08234750752,0,0,0]
[933,null,"366","Underground Conduit"]
[934,null,null,null,"Demand Primary","F20A",1,8245307.0941753099,4174516.9337961935,1141137.2476447208,1673746.4290413633,640077.86616172956,0,584139.87523262121,31688.742298681409,0,0,0]
[935,null,null,null,"Demand Secondary","F22",1,8119678.6558246901,6611555.0674021067,1508123.5884225825,0,0,0,0,0,0,0,0]
[936,null,null,null,"Assigned","A",1,0,0,0,0,0,0,0,0,0,0,0]
[937,null,null,null,null,null,null,16364985.75,10786072.001198299,2649260.8360673031,1673746.4290413633,640077.86616172956,0,584139.87523262121,31688.742298681409,0,0,0]
[938,null,"367","Underground Conductors "]
[939,null,null,null,"Demand Primary","F20A",1,9686956.9912418462,4904409.9310092619,1340659.27597135,1966392.4566038221,751992.21687384462,0,686273.75349610834,37229.357287459017,0,0,0]
[940,null,null,null,"Demand Secondary","F22",1,13077757.918758152,10648736.274310302,2429021.6444478487,0,0,0,0,0,0,0,0]
[941,null,null,null,"Assigned","A",1,0,0,0,0,0,0,0,0,0,0,0]
[942,null,null,null,null,null,null,22764714.909999996,15553146.205319565,3769680.9204191985,1966392.4566038221,751992.21687384462,0,686273.75349610834,37229.357287459017,0,0,0]
[943,null,"368","Line Transformers"]
[944,null,null,null,"Demand Secondary","F21",null,98870912.760000005,59674733.132304892,13612058.245325074,15347754.802453144,4523363.1487319972,0,5499784.793650534,213218.63753437478,0,0,0]
[945,null,null,null,"Assigned","A",1,0,0,0,0,0,0,0,0,0,0,0]
[946,null,null,null,null,null,null,98870912.760000005,59674733.132304892,13612058.245325074,15347754.802453144,4523363.1487319972,0,5499784.793650534,213218.63753437478,0,0,0]
[947,null,"369","Services"]
[948,null,null,null,"Customer","F70",null,52234063.350000001,38479576.845175616,10514260.699397767,2624041.1013416713,616184.70408494654,0,0,0,0,0,0]
[949,null,null,null,"Assigned","A",1,0,0,0,0,0,0,0,0,0,0,0]
[950,null,null,null,null,null,null,52234063.350000001,38479576.845175616,10514260.699397767,2624041.1013416713,616184.70408494654,0,0,0,0,0,0]
[951,null,"370","Meters"]
[952,null,null,null,"Customer","F60A",null,11341204.639999999,7788813.0551659521,1859106.2736633245,875047.61912785866,140678.14110871041,0,677559.55093415419,0,0,0,0]
[953,null,null,null,"Assigned","A",1,110788.96,0,0,0,0,110788.96,0,0,0,0,0]
[954,null,null,null,null,null,null,11451993.6,7788813.0551659521,1859106.2736633245,875047.61912785866,140678.14110871041,110788.96,677559.55093415419,0,0,0,0]
[955,null,"371","Install on Customers' Premises"]
[956,null,null,null,"Demand Primary","F20",1,0,0,0,0,0,0,0,0,0,0,0]
[957,null,null,null,"Demand Secondary","F22",1,0,0,0,0,0,0,0,0,0,0,0]
[958,null,null,null,"Assigned","A",1,518187.33,0,0,0,0,0,0,518187.33,0,0,0]
[959,null,null,null,null,null,null,518187.33,0,0,0,0,0,0,518187.33,0,0,0]
[960,null,"372","Leased Property"]
[961,null,null,null,"Demand Primary","F20",0,0,0,0,0,0,0,0,0,0,0,0]
[962,null,null,null,"Demand Secondary","F22",0,0,0,0,0,0,0,0,0,0,0,0]
[963,null,null,null,"Assigned","A",0,0,0,0,0,0,0,0,0,0,0,0]
[964,null,null,null,null,null,null,0,0,0,0,0,0,0,0,0,0,0]
[965]
[966,null,"373","Street Lights",null,"A",1,4036517,0,0,0,0,0,0,4036517,0,0,0]
[967]
[968]
[969,null,"DP","Unclassified Dist Plant - Acct 300",null,"F22",1,882700.80000000005,718750.72827585286,163950.0717241471,0,0,0,0,0,0,0,0]
[970,null,"DS0","Unclassified Dist Sub  - Acct 300",null,"F20",1,0,0,0,0,0,0,0,0,0,0,0]
[971,null,"TOTAL DISTRIBUTION PLANT",null,null,null,null,409946000.73000008,242701049.16630968,61554457.248622246,57599849.364403509,20100237.469962139,2786582.4811979746,19702198.291605249,5501626.707899238,0,0,0]
[972]
[973,null,"Distribution - Total -  Unbundled",null,null,null,null,"GENERAL PLANT"]
[974]
[975,null,"A",null,"B","C",null,"D","E","F","G","H","I","J","K","S","T"]
[976,null,null,null,null,null,null,"Washington",null,"Small General","Large General","Large General","Large General","Agricultural","Street & Area"]
[977,null,"FERC",null,null,"COS",null,"Jurisdiction","Residential","Service","Service <1,000 kW","Service >1,000 kW","Dedicated Facilities","Pumping","Lighting","-","-"]
[978,null,"ACCT",null,"DESCRIPTION ","Factor",null,"Normalized","Schedule 16","Schedule 24","Schedule 36","Schedule 48T","Schedule 48T","Schedule 40","Sch. 15,51-54,57","-","-"]
[979,null,"389","Land and Land Rights"]
[980,null,null,null,"Situs","F107D",null,819710.95747267071,485294.91454355477,123081.73027210668,115174.26097266367,40191.598094848705,5571.9343271354028,39395.695523725793,11000.823738635574,0,0,0]
[981,null,null,null,"System Generation","F105D",null,0,0,0,0,0,0,0,0,0,0,0]
[982,null,null,null,"System Overheads","F102D",null,112778.74275607083,66768.596697649584,16934.021278827189,15846.08358829907,5529.7027094400546,766.6065000170197,5420.1996089760614,1513.5323728618359,0,0,0]
[983,null,null,null,"Customer - System","F42",null,0,0,0,0,0,0,0,0,0,0,0]
[984,null,null,"Total Land & Land Rights",null,null,null,932489.70022874151,552063.51124120434,140015.75155093387,131020.34456096274,45721.30080428876,6338.5408271524229,44815.895132701859,12514.356111497411,0,0,0]
[985]
[986,null,"390","Structures and Improvements"]
[987,null,null,null,"Situs","F107D",null,10378672.981011096,6144503.9516422544,1558384.7169370048,1458265.2330895048,508881.14817541727,70548.385044537456,498803.92225190508,139285.62387047155,0,0,0]
[988,null,null,null,"System Generation","F105D",null,0,0,0,0,0,0,0,0,0,0,0]
[989,null,null,null,"System Overheads","F102D",null,2077742.1103390311,1230089.3024406626,311978.37685154099,291935.11428454815,101874.66091823384,14123.32296158037,99857.266527352709,27884.06635511206,0,0,0]
[990,null,null,null,"Customer - System","F42",null,0,0,0,0,0,0,0,0,0,0,0]
[991,null,null,"Total Structures and Improvements",null,null,null,12456415.091350127,7374593.2540829172,1870363.0937885458,1750200.347374053,610755.80909365113,84671.708006117828,598661.18877925782,167169.69022558362,0,0,0]
[992]
[993,null,"391","Office Furniture & Equipment"]
[994,null,null,null,"Situs","F107D",null,1015991.0897612493,601498.98520679108,152553.70216644567,142752.78602941503,49815.49310202177,6906.1363368357197,48829.01132669927,13634.975593040564,0,0,0]
[995,null,null,null,"System Generation","F105D",null,0,0,0,0,0,0,0,0,0,0,0]
[996,null,null,null,"System Overheads","F102D",null,1114318.9314709853,659712.18963546248,167317.88310269918,156568.43214066452,54636.647509565926,7574.5137344306286,53554.693810492361,14954.571537670021,0,0,0]
[997,null,null,null,"Customer - System","F42",null,0,0,0,0,0,0,0,0,0,0,0]
[998,null,null,null,"Energy","F10",null,0,0,0,0,0,0,0,0,0,0,0]
[999,null,null,null,"CAEE","F105D",null,0,0,0,0,0,0,0,0,0,0,0]
[1000,null,null,null,"CAEE","F105D",null,0,0,0,0,0,0,0,0,0,0,0]
[1001,null,null,"Total Office Furniture & Equipment",null,null,null,2130310.0212322343,1261211.1748422536,319871.58526914485,299321.21817007952,104452.1406115877,14480.650071266347,102383.70513719163,28589.547130710584,0,0,0]
[1002]
[1003,null,"392","Transportation Equipment"]
[1004,null,null,null,"Situs","F107D",null,3847782.0727403206,2278009.1630469542,577754.47663045465,540636.24814543931,188662.24638615848,26155.059681696155,184926.2225878957,51638.656261721815,0,0,0]
[1005,null,null,null,"System Generation","F105D",null,0,0,0,0,0,0,0,0,0,0,0]
[1006,null,null,null,"System Overheads","F102D",null,148704.67231474887,88037.887727784066,22328.392955093746,20893.890194952452,7291.2023073692108,1010.8107750939703,7146.8167407809487,1995.6716136744506,0,0,0]
[1007,null,null,null,"Customer - System","F42",null,0,0,0,0,0,0,0,0,0,0,0]
[1008,null,null,null,"Energy","F10",null,0,0,0,0,0,0,0,0,0,0,0]
[1009,null,null,null,"CAEE","F105D",null,0,0,0,0,0,0,0,0,0,0,0]
[1010,null,null,null,"CAEE","F105D",null,0,0,0,0,0,0,0,0,0,0,0]
[1011,null,null,"Total Transportation Equipment",null,null,null,3996486.7450550692,2366047.0507747382,600082.86958554841,561530.1383403918,195953.44869352769,27165.870456790126,192073.03932867665,53634.327875396266,0,0,0]
[1012]
[1013,null,"393","Stores Equipment"]
[1014,null,null,null,"Situs","F107D",null,446049.39645720099,264075.40580317122,66975.475931235895,62672.591022395332,21870.438487404699,3031.9930715343266,21437.344531234248,5986.1476102252109,0,0,0]
[1015,null,null,null,"System Generation","F105D",null,0,0,0,0,0,0,0,0,0,0,0]
[1016,null,null,null,"System Overheads","F102D",null,6422.199732242404,3802.1461611901509,964.3099777933727,902.35722877294609,314.88961831004605,43.654503843806786,308.65395044131805,86.188291890762883,0,0,0]
[1017,null,null,null,"CAEE","F105D",null,0,0,0,0,0,0,0,0,0,0,0]
[1018,null,null,"Total Stores Equipment",null,null,null,452471.59618944337,267877.5519643614,67939.785909029262,63574.94825116828,22185.328105714747,3075.6475753781333,21745.998481675568,6072.335902115974,0,0,0]
[1019]
[1020,null,"394","Tools, Shop & Garage Equipment"]
[1021,null,null,null,"Situs","F107D",null,2166409.3670927035,1282583.1338294172,325291.99585374515,304393.39079772762,106222.14305828462,14726.033132885097,104118.65673831393,29074.013682329547,0,0,0]
[1022,null,null,null,"System Generation","F105D",null,0,0,0,0,0,0,0,0,0,0,0]
[1023,null,null,null,"System Overheads","F102D",null,76064.188015961408,45032.41451943331,11421.235482337084,10687.47045694601,3729.5356933793992,517.04159424506292,3655.6807787166313,1020.809490903903,0,0,0]
[1024,null,null,null,"Energy","F10",null,0,0,0,0,0,0,0,0,0,0,0]
[1025,null,null,null,"CAEE","F105D",null,0,0,0,0,0,0,0,0,0,0,0]
[1026,null,null,null,"CAEE","F105D",null,0,0,0,0,0,0,0,0,0,0,0]
[1027,null,null,"Total Tools, Shop & Garage Equipment",null,null,null,2242473.555108665,1327615.5483488506,336713.23133608222,315080.86125467363,109951.67875166402,15243.074727130161,107774.33751703057,30094.82317323345,0,0,0]
[1028]
[1029,null,"395","Laboratory Equipment"]
[1030,null,null,null,"Situs","F107D",null,1431196.6767579075,847313.87644699728,214897.89995996881,201091.63852139906,70173.615592853297,9728.4705290466591,68783.987816830602,19207.187890811685,0,0,0]
[1031,null,null,null,"System Generation","F105D",null,0,0,0,0,0,0,0,0,0,0,0]
[1032,null,null,null,"System Overheads","F102D",null,106410.45886570966,62998.370426805872,15977.806904791854,14951.301855726071,5217.4566618034041,723.31848576007985,5114.136879344097,1428.0676514782729,0,0,0]
[1033,null,null,null,"Energy","F10",null,0,0,0,0,0,0,0,0,0,0,0]
[1034,null,null,null,"CAEE","F105D",null,0,0,0,0,0,0,0,0,0,0,0]
[1035,null,null,null,"CAEE","F105D",null,0,0,0,0,0,0,0,0,0,0,0]
[1036,null,null,"Total Laboratory Equipment",null,null,null,1537607.1356236171,910312.2468738032,230875.70686476066,216042.94037712514,75391.072254656698,10451.789014806738,73898.124696174695,20635.255542289957,0,0,0]
[1037]
[1038,null,"396","Power Operated Equipment"]
[1039,null,null,null,"Situs","F107D",null,6036868.6532273199,3574017.9272597954,906451.51500177872,848215.92219313129,295996.28558093589,41035.239764312209,290134.75690569537,81017.006521670424,0,0,0]
[1040,null,null,null,"System Generation","F105D",null,0,0,0,0,0,0,0,0,0,0,0]
[1041,null,null,null,"System Overheads","F102D",null,38674.406070978228,22896.476395905516,5807.0625664666322,5433.9838905107244,1896.2613238137142,262.88687348142702,1858.7102102804183,519.02481051979066,0,0,0]
[1042,null,null,null,"Energy","F10",null,0,0,0,0,0,0,0,0,0,0,0]
[1043,null,null,null,"CAEE","F30",null,0,0,0,0,0,0,0,0,0,0,0]
[1044,null,null,null,"CAEE","F105D",null,0,0,0,0,0,0,0,0,0,0,0]
[1045,null,null,"Total Power Operated Equipment",null,null,null,6075543.0592982983,3596914.4036557009,912258.57756824535,853649.90608364204,297892.54690474959,41298.126637793634,291993.4671159758,81536.031332190221,0,0,0]
[1046]
[1047,null,"397","Communication Equipment"]
[1048,null,null,null,"Situs","F107D",null,8863517.8338255268,5247483.9948263625,1330880.2344773985,1245376.9305175052,434590.92895621882,60249.212026808666,425984.85071751155,118951.68230372043,0,0,0]
[1049,null,null,null,"System Generation","F105D",null,0,0,0,0,0,0,0,0,0,0,0]
[1050,null,null,null,"System Overheads","F102D",null,1173958.4590559909,695020.68365879415,176272.9131420753,164948.14019719715,57560.858661572034,7979.9097194124579,56420.99765637704,15754.956020562597,0,0,0]
[1051,null,null,null,"Customer - System","F42",null,0,0,0,0,0,0,0,0,0,0,0]
[1052,null,null,null,"Energy","F10",null,0,0,0,0,0,0,0,0,0,0,0]
[1053,null,null,null,"CAEE","F105D",null,0,0,0,0,0,0,0,0,0,0,0]
[1054,null,null,null,"CAEE","F105D",null,0,0,0,0,0,0,0,0,0,0,0]
[1055,null,null,"Total Communication Equipment",null,null,null,10037476.292881519,5942504.678485157,1507153.1476194737,1410325.0707147024,492151.78761779086,68229.121746221121,482405.84837388858,134706.63832428303,0,0,0]
[1056]
[1057,null,"Distribution - Total -  Unbundled",null,null,null,null,"GENERAL PLANT"]
[1058]
[1059,null,"A",null,"B","C",null,"D","E","F","G","H","I","J","K","S","T"]
[1060,null,null,null,null,null,null,"Washington",null,"Small General","Large General","Large General","Large General","Agricultural","Street & Area"]
[1061,null,"FERC",null,null,"COS",null,"Jurisdiction","Residential","Service","Service <1,000 kW","Service >1,000 kW","Dedicated Facilities","Pumping","Lighting","-","-"]
[1062,null,"ACCT",null,"DESCRIPTION ","Factor",null,"Normalized","Schedule 16","Schedule 24","Schedule 36","Schedule 48T","Schedule 48T","Schedule 40","Sch. 15,51-54,57","-","-"]
[1063,null,"398","Misc. Equipment"]
[1064,null,null,null,"Situs","F107D",null,152540.88080004347,90309.044959574981,22904.409627495421,21432.90028528127,7479.2970842456671,1036.8871640337554,7331.1867312934128,2047.1549481189472,0,0,0]
[1065,null,null,null,"System Generation","F105D",null,0,0,0,0,0,0,0,0,0,0,0]
[1066,null,null,null,"System Overheads","F102D",null,59666.363794298464,35324.381911344783,8959.0595659349601,8383.4787034227684,2925.5269696470154,405.57840244789543,2867.5936067701136,800.74463473091794,0,0,0]
[1067,null,null,null,"Customer - System","F42",null,0,0,0,0,0,0,0,0,0,0,0]
[1068,null,null,null,"Energy","F10",null,0,0,0,0,0,0,0,0,0,0,0]
[1069,null,null,null,"CAEE","F105D",null,0,0,0,0,0,0,0,0,0,0,0]
[1070,null,null,"Total Misc. Equipment",null,null,null,212207.24459434193,125633.42687091976,31863.469193430381,29816.37898870404,10404.824053892682,1442.465566481651,10198.780338063527,2847.8995828498651,0,0,0]
[1071]
[1072,null,"399","Coal Mine",null,"F10",null,0,0,0,0,0,0,0,0,0,0,0]
[1073,null,"399L","WIDCO Capital Lease",null,"F10",null,0,0,0,0,0,0,0,0,0,0,0]
[1074,null,null,"Remove Capital Lease",null,"F10",null,0,0,0,0,0,0,0,0,0,0,0]
[1075]
[1076,null,"1011390","General Capital Lease",null,"F10",null,255192.52326471842,108271.81343886859,34438.445036851146,54564.743022880117,21561.865304767853,26658.562264528598,9084.87555531613,612.21864150597219,0,0,0]
[1077,null,null,"Remove Capital Lease",null,"F10",null,-255192.52326471842,-108271.81343886859,-34438.445036851146,-54564.743022880117,-21561.865304767853,-26658.562264528598,-9084.87555531613,-612.21864150597219,0,0,0]
[1078]
[1079,null,"1011392","General Vehicles Capital Lease",null,"F10",null,0,0,0,0,0,0,0,0,0,0,0]
[1080,null,null,"Remove Capital Lease",null,"F10",null,0,0,0,0,0,0,0,0,0,0,0]
[1081]
[1082,null,"GP","Unclassified Gen Plant - Acct 300",null,"F102D",null,149145.07422491815,88298.619642384045,22394.520446283936,20955.769280589033,7312.7958415441126,1013.8043797281867,7167.9826644555442,2001.5819699332812,0,0,0]
[1083,null,"399G","Unclassified Gen Veh - Acct 300",null,"F102D",null,0,0,0,0,0,0,0,0,0,0,0]
[1084]
[1085,null,"TOTAL GENERAL PLANT",null,null,null,null,40222625.515786976,23813071.466782287,6039531.7391314786,5651517.923396091,1972172.7327330681,273410.79900886631,1933118.3675650924,539802.48717008356,0,0,0]
[1086]
[1087]
[1088]
[1089,null,null,null,null,null,null,"INTANGIBLE PLANT"]
[1090]
[1091,null,"301","Organization"]
[1092,null,null,null,"Situs","F107D",null,0,0,0,0,0,0,0,0,0,0,0]
[1093,null,null,null,"System Generation","F105D",null,0,0,0,0,0,0,0,0,0,0,0]
[1094,null,null,null,"System Overheads","F102D",null,0,0,0,0,0,0,0,0,0,0,0]
[1095,null,null,"Total Organization",null,null,null,0,0,0,0,0,0,0,0,0,0,0]
[1096]
[1097,null,"302","Franchise & Consent"]
[1098,null,null,null,"Situs","F107D",null,0,0,0,0,0,0,0,0,0,0,0]
[1099,null,null,null,"System Generation","F105D",null,0,0,0,0,0,0,0,0,0,0,0]
[1100,null,null,"Total Franchise & Consent",null,null,null,0,0,0,0,0,0,0,0,0,0,0]
[1101]
[1102,null,"303","Miscellaneous Intangible Plant"]
[1103,null,null,null,"Situs","F107D",null,756493.14898183383,447867.96460527199,113589.41205660655,106291.78318355071,37091.938723288404,5142.2151999171847,36357.417808540748,10152.417404658147,0,0,0]
[1104,null,null,null,"System Generation","F105D",null,0,0,0,0,0,0,0,0,0,0,0]
[1105,null,null,null,"System Overheads","F102D",null,7724497.1790175606,4573147.6006385311,1159853.3234285652,1085337.7594484997,378743.12069839222,52506.789862039266,371242.98042410938,103665.60451742286,0,0,0]
[1106,null,null,null,"Customer - System","F42",null,0,0,0,0,0,0,0,0,0,0,0]
[1107,null,null,null,"Energy","F10",null,0,0,0,0,0,0,0,0,0,0,0]
[1108,null,null,null,"CAEE","F105D",null,0,0,0,0,0,0,0,0,0,0,0]
[1109,null,null,null,"CAEE","F105D",null,0,0,0,0,0,0,0,0,0,0,0]
[1110,null,null,"Total Miscellaneous Intangible Plant",null,null,null,8480990.3279993944,5021015.565243803,1273442.7354851717,1191629.5426320503,415835.05942168063,57649.00506195645,407600.39823265013,113818.02192208101,0,0,0]
[1111]
[1112,null,"IP","Unclass Intangible Plant - Acct 300",null,"F102D",null,0,0,0,0,0,0,0,0,0,0,0]
[1113]
[1114,null,"TOTAL INTANGIBLE PLANT",null,null,null,null,8480990.3279993944,5021015.565243803,1273442.7354851717,1191629.5426320503,415835.05942168063,57649.00506195645,407600.39823265013,113818.02192208101,0,0,0]
[1115]
[1116]
[1117,null,"TOTAL ELECTRIC PLANT IN SERVICE",null,null,null,null,458649616.57378644,271535136.19833577,68867431.723238885,64442996.830431648,22488245.262116887,3117642.2852687975,22042917.057402991,6155247.2169914022,0,0,0]
[1118]
[1119]
[1120,null,"Distribution - Total -  Unbundled",null,null,null,null,"MISC RATE BASE"]
[1121]
[1122,null,"A",null,"B","C",null,"D","E","F","G","H","I","J","K","S","T"]
[1123,null,null,null,null,null,null,"Washington",null,"Small General","Large General","Large General","Large General","Agricultural","Street & Area"]
[1124,null,"FERC",null,null,"COS",null,"Jurisdiction","Residential","Service","Service <1,000 kW","Service >1,000 kW","Dedicated Facilities","Pumping","Lighting","-","-"]
[1125,null,"ACCT",null,"DESCRIPTION ","Factor",null,"Normalized","Schedule 16","Schedule 24","Schedule 36","Schedule 48T","Schedule 48T","Schedule 40","Sch. 15,51-54,57","-","-"]
[1126,null,"105","Plant Held For Future Use"]
[1127,null,null,null,"Production","F10",null,0,0,0,0,0,0,0,0,0,0,0]
[1128,null,null,null,"Transmission","F10",null,0,0,0,0,0,0,0,0,0,0,0]
[1129,null,null,null,"Distribution","F20",null,0,0,0,0,0,0,0,0,0,0,0]
[1130,null,null,null,"General ","F102",null,0,0,0,0,0,0,0,0,0,0,0]
[1131,null,null,null,"Mining","F10",null,0,0,0,0,0,0,0,0,0,0,0]
[1132,null,null,"Total Plant Held For Future Use",null,null,null,0,0,0,0,0,0,0,0,0,0,0]
[1133]
[1134,null,"114","Electric Plant Acquisition Adjust",null,"F10",null,0,0,0,0,0,0,0,0,0,0,0]
[1135]
[1136,null,"120","Nuclear Fuel",null,"F10",null,0,0,0,0,0,0,0,0,0,0,0]
[1137]
[1138,null,"124","Weatherization",null,"F10",null,0,0,0,0,0,0,0,0,0,0,0]
[1139]
[1140,null,"151","Fuel Stock",null,"F10",null,0,0,0,0,0,0,0,0,0,0,0]
[1141,null,null,null,"JBE","F10",null,0,0,0,0,0,0,0,0,0,0,0]
[1142,null,null,null,"CAEE","F30",null,0,0,0,0,0,0,0,0,0,0,0]
[1143,null,null,null,"Total Fuel Stock",null,null,0,0,0,0,0,0,0,0,0,0,0]
[1144]
[1145,null,152,"Fuel Stock - Undistributed",null,"F10",null,0,0,0,0,0,0,0,0,0,0,0]
[1146]
[1147,null,"25316","DG&T Working Capital Deposit",null,"F10",null,0,0,0,0,0,0,0,0,0,0,0]
[1148]
[1149,null,"25317","DG&T Working Capital Deposit",null,"F10",null,0,0,0,0,0,0,0,0,0,0,0]
[1150]
[1151,null,"25319","Provo Working Capital Deposit",null,"F10",null,0,0,0,0,0,0,0,0,0,0,0]
[1152]
[1153,null,"154","Materials and Supplies",null,"F102D",null,3.0903138770279907E-5,1.8295639398172385E-5,4.6401865877361866E-6,4.3420746510166348E-6,1.5152249973013653E-6,2.1006216662181487E-7,1.4852194357326048E-6,4.1473153369891225E-7,0,0,0]
[1154,null,null,null,"JBG","F10",null,-1.6150394194646668E-8,-6.8522088532862871E-9,-2.179509241416383E-9,-3.4532442317480163E-9,-1.3645878797265726E-9,-1.6871430390147112E-9,-5.7495540837402883E-10,-3.8745541080668198E-11,0,0,0]
[1155,null,null,null,"CAEE","F102D",null,0,0,0,0,0,0,0,0,0,0,0]
[1156,null,null,null,"Total Material & Supplies",null,null,3.0886988376085263E-5,1.8288787189319099E-5,4.6380070784947705E-6,4.3386214067848872E-6,1.5138604094216387E-6,2.0837502358280016E-7,1.4846444803242308E-6,4.1469278815783158E-7,0,0,0]
[1157]
[1158,null,"163","Stores Expense Undistributed",null,"F102D",null,0,0,0,0,0,0,0,0,0,0,0]
[1159]
[1160,null,"25318","Provo Working Capital Deposit",null,"F102D",null,0,0,0,0,0,0,0,0,0,0,0]
[1161]
[1162,null,"165","Prepayments",null,"F102D",null,0,0,0,0,0,0,0,0,0,0,0]
[1163,null,null,null,"Customer - System","F42",null,-6.4062846943359198E-9,-5.1690314736969717E-9,-8.7794068734323085E-10,-5.3318854636484715E-11,-1.0935234818579041E-11,-1.8882627602831269E-13,-1.5639684994152107E-10,-1.384727676231039E-10,0,0,0]
[1164,null,null,null,"Total Prepayments",null,null,-6.4062846943359198E-9,-5.1690314736969717E-9,-8.7794068734323085E-10,-5.3318854636484715E-11,-1.0935234818579041E-11,-1.8882627602831269E-13,-1.5639684994152107E-10,-1.384727676231039E-10,0,0,0]
[1165]
[1166,null,"182M","Misc Regulatory Assets",null,"F102D",null,0,0,0,0,0,0,0,0,0,0,0]
[1167,null,null,null,"CAEE","F102D",null,0,0,0,0,0,0,0,0,0,0,0]
[1168,null,null,null,"Total Misc Regulatory Assets",null,null,0,0,0,0,0,0,0,0,0,0,0]
[1169]
[1170,null,"186M","Misc Deferred Debits",null,"F102D",null,0,0,0,0,0,0,0,0,0,0,0]
[1171]
[1172,null,"CWC","Cash Working Capital",null,"F137D",null,2719707.3244591993,1529927.3157963101,400847.61778939399,393519.43275561085,142886.36989179216,57438.167660277788,136989.84793506336,58098.57263075198,0,0,0]
[1173]
[1174,null,"OWC","Other Working Capital",null,"F137D",null,3.1638485982734138E-8,1.7797717975057716E-8,4.6630795977886739E-9,4.5778304691838771E-9,1.6622040063976929E-9,6.6818096419804469E-10,1.5936094831572394E-9,6.7586348695090382E-10,0,0,0]
[1175,null,null,null,"CAEE","F137D",null,0,0,0,0,0,0,0,0,0,0,0]
[1176,null,null,null,"Total Other Working Capital",null,null,3.1638485982734138E-8,1.7797717975057716E-8,4.6630795977886739E-9,4.5778304691838771E-9,1.6622040063976929E-9,6.6818096419804469E-10,1.5936094831572394E-9,6.7586348695090382E-10,0,0,0]
[1177]
[1178,null,"18222","Nuclear Plant",null,"F10",null,0,0,0,0,0,0,0,0,0,0,0]
[1179]
[1180,null,"1869","Misc Deferred Debits-Trojan",null,"F10",null,0,0,0,0,0,0,0,0,0,0,0]
[1181]
[1182,null,"141","Impact Housing - Notes Receivable",null,"F10",null,0,0,0,0,0,0,0,0,0,0,0]
[1183,null,"TOTAL RATE BASE ADDITIONS",null,null,null,null,2719707.3244901118,1529927.3158146115,400847.61779403576,393519.43275995401,142886.36989330765,57438.167660486833,136989.84793654946,58098.572631167212,0,0,0]
[1184]
[1185,null,"Distribution - Total -  Unbundled"]
[1186]
[1187,null,"A",null,"B",null,null,"D","E","F","G","H","I","J","K","S","T"]
[1188,null,null,null,null,null,null,"Washington",null,"Small General","Large General","Large General","Large General","Agricultural","Street & Area"]
[1189,null,"FERC",null,null,null,null,"Jurisdiction","Residential","Service","Service <1,000 kW","Service >1,000 kW","Dedicated Facilities","Pumping","Lighting","-","-"]
[1190,null,"ACCT",null,"DESCRIPTION ",null,null,"Normalized","Schedule 16","Schedule 24","Schedule 36","Schedule 48T","Schedule 48T","Schedule 40","Sch. 15,51-54,57","-","-"]
[1191]
[1192,null,"235","Customer Service Deposits",null,"F51",null,0,0,0,0,0,0,0,0,0,0,0]
[1193,null,null,null,null,"F51",null,0,0,0,0,0,0,0,0,0,0,0]
[1194,null,null,null,null,null,null,0,0,0,0,0,0,0,0,0,0,0]
[1195]
[1196,null,"2281","Accum Prov for Property Insurance",null,"F102D",null,0,0,0,0,0,0,0,0,0,0,0]
[1197]
[1198,null,"2282","Accum Prov for Injuries & Damages",null,"F102D",null,-134073.40688568013,-79375.714017240854,-20131.470431778231,-18838.110450244014,-6573.8104823809608,-911.35565698134496,-6443.6312182309166,-1799.3146288237951,0,0,0]
[1199]
[1200,null," 2283","Accum Prov for Pension & Benefits",null,"F102D",null,-68496.045982706084,-40551.834129723706,-10284.859290331402,-9624.101524677717,-3358.4588886198749,-465.5976187762617,-3291.9523003982499,-919.24223017886061,0,0,0]
[1201]
[1202,null,254,"Reg Liabilities - Insurance Provision",null,"F102D",null,0,0,0,0,0,0,0,0,0,0,0]
[1203]
[1204,null,22844,"Hydro Relicensing Obligations",null,"F10",null,0,0,0,0,0,0,0,0,0,0,0]
[1205]
[1206,null,"22842","Accum Misc Oper Prov - Trojan",null,"F10",null,0,0,0,0,0,0,0,0,0,0,0]
[1207]
[1208]
[1209,null,"252","Customer Advances for Const",null,"F50",null,-162155.840417,-59724.156692356963,-92795.485534167252,0,0,0,-9636.1981904757904,0,0,0,0]
[1210]
[1211,null,"25398","SO2 Emmissions",null,"F10",null,0,0,0,0,0,0,0,0,0,0,0]
[1212]
[1213,null,"25399","Other Deferred Credits",null,"F10",null,0,0,0,0,0,0,0,0,0,0,0]
[1214]
[1215,null,"190","Accum Deferred Income Taxes",null,"F104D",null,-2.9634932536282577E-2,-1.7671900817459434E-2,-4.4841583168350593E-3,-4.0869688631435964E-3,-1.4127581656294601E-3,-2.3099520009320801E-4,-1.4042511096262597E-3,-3.4390006349555377E-4,0,0,0]
[1216,null,null,null," Labor","F138D",null,-2.8249547278197382,-1.5915810546496465,-0.41659213052942068,-0.4026785915897666,-0.14631060817149058,-5.6336678966611091E-2,-0.14517565703110127,-6.6280006881702519E-2,0,0,0]
[1217,null,null,null,"Customer - System","F42",null,0,0,0,0,0,0,0,0,0,0,0]
[1218,null,null,null,"Total Accum Deferred Income Taxes",null,null,-2.8545896603560208,-1.609252955467106,-0.42107628884625575,-0.40676556045291018,-0.14772336633712005,-5.6567674166704301E-2,-0.14657990814072752,-6.6623906945198069E-2,0,0,0]
[1219]
[1220,null,"281","Accum Deferred Income Taxes",null,"F104D",null,0,0,0,0,0,0,0,0,0,0,0]
[1221]
[1222,null,"282","Accum Deferred Income Taxes ",null,"F104D",null,-59251592.120392472,-35332905.109406538,-8965551.6936670355,-8171417.6940085283,-2824645.2220582999,-461847.96813470632,-2807636.355517779,-687588.0775995747,0,0,0]
[1223,null,null,null," Labor","F138D",null,-2.966350778655932E-2,-1.6712436678225129E-2,-4.3744360878010327E-3,-4.2283366241138536E-3,-1.5363382011083979E-3,-5.9156470676778833E-4,-1.5244206182675976E-3,-6.9597487027553016E-4,0,0,0]
[1224,null,null,null,"Customer - System","F42",null,0,0,0,0,0,0,0,0,0,0,0]
[1225,null,null,null,"Total Accum Deferred Income Taxes ",null,null,-59251592.150055982,-35332905.126118973,-8965551.6980414707,-8171417.698236865,-2824645.2235946381,-461847.96872627101,-2807636.3570421995,-687588.07829554961,0,0,0]
[1226]
[1227,null,"283","Accum Deferred Income Taxes ",null,"F104D",null,-749391.00029642647,-446876.78686365561,-113392.79691041585,-103348.90017994014,-35725.009787749987,-5841.272756385928,-35509.888285448236,-8696.3455128305686,0,0,0]
[1228,null,null,null," Labor","F138D",null,-7282.1963768656706,-4102.7934626771394,-1073.895334922224,-1038.0288759457551,-377.16094004301124,-145.22525101559017,-374.2352517121256,-170.85726054982811,0,0,0]
[1229,null,null,null,"Customer - System","F42",null,0,0,0,0,0,0,0,0,0,0,0]
[1230,null,null,null,"Total Accum Deferred Income Taxes ",null,null,-756673.19667329208,-450979.58032633277,-114466.69224533808,-104386.92905588591,-36102.170727792996,-5986.4980074015184,-35884.123537160362,-8867.202773380397,0,0,0]
[1231]
[1232,null,"255","Accum Investment Tax Credit",null,"F104D",null,-153928.69549059757,-91790.748514117615,-23291.453059279298,-21228.385954453035,-7338.0974028804449,-1199.8269195114333,-7293.9103600574217,-1786.2732802982991,0,0,0]
[1233,null,"TOTAL RATE BASE DEDUCTIONS",null,null,null,null,-60526922.190094918,-36055328.769051701,-9226522.0796786528,-8325495.6319876863,-2878017.9088196787,-470411.30349661573,-2870186.3192284303,-700960.17783213803,0,0,0]
[1234]
[1235,null,null,null,null,null,null,"ACCUMULATED DEPRECIATION"]
[1236,null,null,null,null,null,null,"PRODUCTION PLANT"]
[1237]
[1238,null,"108SP","Steam Prod Accumulated Depr",null,"F10",null,0,0,0,0,0,0,0,0,0,0,0]
[1239,null,null,null,"JBG","F10",null,0,0,0,0,0,0,0,0,0,0,0]
[1240,null,null,null,"Total Steam Prod Accumulated Depr",null,null,0,0,0,0,0,0,0,0,0,0,0]
[1241]
[1242,null,"108NP","Nuclear Prod Accumulated Depr",null,"F10",null,0,0,0,0,0,0,0,0,0,0,0]
[1243]
[1244,null,"108HP","Hydraulic Prod Accum Depr",null,"F10",null,0,0,0,0,0,0,0,0,0,0,0]
[1245]
[1246,null,"108OP","Other Production  - Accum Depr",null,"F10",null,0,0,0,0,0,0,0,0,0,0,0]
[1247,null,null,null,"CAEE","F10",null,0,0,0,0,0,0,0,0,0,0,0]
[1248,null,null,null,"Total Other Production - Accum Depr",null,null,0,0,0,0,0,0,0,0,0,0,0]
[1249]
[1250,null,"108EP","Experimental Plant - Accum Depr",null,"F10",null,0,0,0,0,0,0,0,0,0,0,0]
[1251]
[1252]
[1253]
[1254,null,"TOTAL PRODUCTION PLANT DEPRECIATION",null,null,null,null,0,0,0,0,0,0,0,0,0,0,0]
[1255]
[1256]
[1257,null,null,null,null,null,null,"TRANSMISSION PLANT"]
[1258]
[1259,null,"108TP","Transmission Plant Accum Depr",null,"F106",null,0,0,0,0,0,0,0,0,0,0,0]
[1260]
[1261]
[1262,null,null,null,null,null,null,"DISTRIBUTION PLANT"]
[1263]
[1264,null,"108360","Land and Land Rights",null,"F118",null,-136215.35999999999,-68964.481306565445,-18851.986860154884,-27650.877011196048,-10574.310449739814,0,-9650.1952548712179,-523.50911747257942,0,0,0]
[1265]
[1266,null,"108361","Structures and Improvements",null,"F119",null,-639538.59,-301873.74841583881,-82519.578640248787,-121034.389474346,-46286.242887639062,-43291.934678628277,-42241.17341770514,-2291.5224855939055,0,0,0]
[1267]
[1268,null,"108362","Station Equipment",null,"F120",null,-15590131.540000001,-7476752.752431416,-2043829.5478348685,-2997757.2060840107,-1146409.039295272,-822405.48002774292,-1046221.5123843768,-56756.001942313189,0,0,0]
[1269]
[1270,null,"Distribution - Total -  Unbundled"]
[1271]
[1272,null,"A",null,"B",null,null,"D","E","F","G","H","I","J","K","S","T"]
[1273,null,null,null,null,null,null,"Washington",null,"Small General","Large General","Large General","Large General","Agricultural","Street & Area"]
[1274,null,"FERC",null,null,null,null,"Jurisdiction","Residential","Service","Service <1,000 kW","Service >1,000 kW","Dedicated Facilities","Pumping","Lighting","-","-"]
[1275,null,"ACCT",null,"DESCRIPTION ",null,null,"Normalized","Schedule 16","Schedule 24","Schedule 36","Schedule 48T","Schedule 48T","Schedule 40","Sch. 15,51-54,57","-","-"]
[1276]
[1277,null,"108364","Poles, Towers & Fixtures",null,"F121",null,-49435316.059105419,-25395451.212622456,-6898155.5588530609,-9793267.5175016038,-3745163.3452886031,0,-3417864.2394891074,-185414.18535058538,0,0,0]
[1278]
[1279,null,"108365","Overhead Conductors",null,"F122",null,-29234035.600000001,-18630271.255910628,-4634554.9859458879,-3410282.0863062185,-1304167.7299127553,0,-1190193.2800800181,-64566.261844491535,0,0,0]
[1280]
[1281,null,"108366","Underground Conduit",null,"F123",null,-10945781.390000001,-7214304.2459976729,-1771967.9320027109,-1119491.5042672683,-428118.45378991362,0,-390704.1211739612,-21195.132768472638,0,0,0]
[1282]
[1283,null,"108367","Underground Conductors ",null,"F124",null,-9516059.6799999997,-6501494.4437793773,-1575794.3271017412,-821987.36269365309,-314346.25221348793,0,-286874.75423721777,-15562.539974523361,0,0,0]
[1284]
[1285,null,"108368","Line Transformers",null,"F125",null,-44447504.850000001,-26826828.197277963,-6119312.6268208297,-6899596.5241521541,-2033481.8388863502,0,-2472433.0388566586,-95852.624006052676,0,0,0]
[1286]
[1287,null,"108369","Services",null,"F126",null,-18439235.329999998,-13583740.711357316,-3711657.0092984312,-926317.20145952329,-217520.40788472837,0,0,0,0,0,0]
[1288]
[1289,null,"108370","Meters",null,"F127",null,-1929851.31,-1312544.4881367306,-313290.31459276972,-147460.07141379116,-23706.605538708092,-18669.781616847711,-114180.04870115273,0,0,0,0]
[1290]
[1291,null,"108371","Install on Customers' Premises",null,"F128",null,-281485.94,0,0,0,0,0,0,-281485.94,0,0,0]
[1292]
[1293,null,"108372","Leased Property",null,"F129",null,0,0,0,0,0,0,0,0,0,0,0]
[1294]
[1295,null,"108373","Street Lights",null,"F130",null,-2201466.2200000002,0,0,0,0,0,0,-2201466.2200000002,0,0,0]
[1296]
[1297,null,"108D00","Unclassified Dist Plant - Acct 300",null,"F121",null,0,0,0,0,0,0,0,0,0,0,0]
[1298]
[1299,null,"108DS","Unclassified Dist Sub - Acct 300",null,"F120",null,0,0,0,0,0,0,0,0,0,0,0]
[1300]
[1301,null,"108DP","Unclassified Dist Sub  - Acct 300",null,"F102D",null,100415,59448.868408613103,15077.573176988612,14108.904254772766,4923.4907572024113,682.56472645475822,4825.9922963721228,1347.6063795962132,0,0,0]
[1302]
[1303]
[1304,null,"TOTAL DISTRIBUTION PLANT DEPR",null,null,null,null,-182696206.86910543,-107252776.66882733,-27154856.29477372,-26250735.836108994,-9264850.7353899945,-883684.63159676408,-8965536.3712986968,-2923766.3311099093,0,0,0]
[1305]
[1306,null,null,null,null,null,null,"GENERAL PLANT"]
[1307,null,"108GP","General Plant Accumulated Depr"]
[1308,null,null,null,"Situs","F107D",null,-13778979.733777989,-8157593.5168880597,-2068949.6115150196,-1936028.5394844196,-675603.04100916465,-93661.759028151471,-662224.26975133375,-184918.99610183886,0,0,0]
[1309,null,null,null,"System Generation","F105D",null,0,0,0,0,0,0,0,0,0,0,0]
[1310,null,null,null,"System Overheads","F102D",null,-1588264.2246739864,-940302.85207142099,-238482.00041741884,-223160.56243794429,-77874.861626028243,-10796.127431683297,-76332.728306329751,-21315.092383160856,0,0,0]
[1311,null,null,null,"Customer - System","F42",null,0,0,0,0,0,0,0,0,0,0,0]
[1312,null,null,null,"Energy","F10",null,0,0,0,0,0,0,0,0,0,0,0]
[1313,null,null,null,"CAEE","F105D",null,0,0,0,0,0,0,0,0,0,0,0]
[1314,null,null,null,"CAEE","F105D",null,0,0,0,0,0,0,0,0,0,0,0]
[1315,null,null,"Total General Plant Accumulated Depr",null,null,null,-15367243.958451975,-9097896.3689594809,-2307431.6119324383,-2159189.101922364,-753477.90263519285,-104457.88645983477,-738556.99805766344,-206234.08848499972,0,0,0]
[1316]
[1317,null,"108MP","Mining Plant Accumulated Depr.",null,"F10",null,0,0,0,0,0,0,0,0,0,0,0]
[1318]
[1319,null,"1081390","Accum Depr - Capital Lease",null,"F10",null,0,0,0,0,0,0,0,0,0,0,0]
[1320,null,null,"Remove Capital Lease",null,"F10",null,0,0,0,0,0,0,0,0,0,0,0]
[1321]
[1322,null,"1081399"," Accum Depr - Capital Lease",null,"F10",null,0,0,0,0,0,0,0,0,0,0,0]
[1323,null,null," Remove Capital Lease",null,"F10",null,0,0,0,0,0,0,0,0,0,0,0]
[1324]
[1325,null,"TOTAL GENERAL PLANT ACCUM DEPR",null,null,null,null,-15367243.958451975,-9097896.3689594809,-2307431.6119324383,-2159189.101922364,-753477.90263519285,-104457.88645983477,-738556.99805766344,-206234.08848499972,0,0,0]
[1326]
[1327]
[1328,null,"TOTAL ACCUM DEPR - PLANT IN SERVICE",null,null,null,null,-198063450.82755741,-116350673.03778681,-29462287.906706158,-28409924.938031357,-10018328.638025187,-988142.51805659884,-9704093.3693563603,-3130000.4195949091,0,0,0]
[1329]
[1330]
[1331,null,null,null,null,null,null,"ACCUMULATED AMORTIZATION"]
[1332]
[1333,null,"111SP","Accum Prov for Amort-Steam",null,"F10",null,0,0,0,0,0,0,0,0,0,0,0]
[1334]
[1335,null,"111GP","Accum Prov for Amort-General"]
[1336,null,null,"Division",null,"F108",null,-1271171.4205762853,-603636.83866714011,-176880.77582989002,-243115.63514660459,-93781.374275536509,-97139.85451995398,-49431.756610783275,-7185.185526376742,0,0,0]
[1337,null,null,"System Overheads",null,"F108",null,-243709.44843039691,-115729.47489422315,-33911.646861837398,-46610.218250126985,-17979.799284170596,-18623.688341682842,-9477.0744083422815,-1377.5463900136199,0,0,0]
[1338,null,null,"Total Accum Prov for Amort-General",null,null,null,-1514880.8690066822,-719366.31356136326,-210792.42269172741,-289725.85339673155,-111761.17355970711,-115763.54286163682,-58908.831019125559,-8562.7319163903612,0,0,0]
[1339]
[1340,null,"111HP","Accum Prov for Amort-Hydro",null,"F10",null,0,0,0,0,0,0,0,0,0,0,0]
[1341]
[1342,null,"111IP","Accum Prov for Amort-Intangible"]
[1343,null,null,null,"Situs","F107D",null,0,0,0,0,0,0,0,0,0,0,0]
[1344,null,null,null,"System Generation","F105D",null,0,0,0,0,0,0,0,0,0,0,0]
[1345,null,null,null,"System Overheads","F102D",null,-5660434.2631468847,-3351156.815669213,-849928.91317164537,-795324.65328063176,-277539.17020719539,-38476.450375342276,-272043.14243955264,-75965.118003303607,0,0,0]
[1346,null,null,null,"Customer - System","F42",null,0,0,0,0,0,0,0,0,0,0,0]
[1347,null,null,null,"CAEE","F105D",null,0,0,0,0,0,0,0,0,0,0,0]
[1348,null,null,null,"CAEE","F105D",null,0,0,0,0,0,0,0,0,0,0,0]
[1349,null,null,null,"Energy","F10",null,0,0,0,0,0,0,0,0,0,0,0]
[1350,null,null,"Total Accum Prov for Amort-Intangible",null,null,null,-5660434.2631468847,-3351156.815669213,-849928.91317164537,-795324.65328063176,-277539.17020719539,-38476.450375342276,-272043.14243955264,-75965.118003303607,0,0,0]
[1351]
[1352,null,"111390","Accum Amtr - Capital Lease"]
[1353,null,null,"Situs",null,"F107D",null,0,0,0,0,0,0,0,0,0,0,0]
[1354,null,null,"System Generation",null,"F105D",null,0,0,0,0,0,0,0,0,0,0,0]
[1355,null,null,"System Overheads",null,"F102D",null,15142.488396683695,8964.8339398834814,2273.6839803087128,2127.6096097975187,742.45781668193922,102.93012448664798,727.75513967335337,203.21778585203984,0,0,0]
[1356,null,null,"Remove Capital Lease Amtr",null,null,null,-15142.488396683695,-8964.8339398834814,-2273.6839803087128,-2127.6096097975187,-742.45781668193922,-102.93012448664798,-727.75513967335337,-203.21778585203984,0,0,0]
[1357,null,"TOTAL ACCUM PROV FOR AMORTIZATION",null,null,null,null,-7175315.1321535669,-4070523.1292305761,-1060721.3358633728,-1085050.5066773633,-389300.34376690252,-154239.99323697909,-330951.97345867823,-84527.849919693967,0,0,0]

{"sheet":"Retail","index":15,"n_rows":1357,"n_cols":18,"rows_kept":1357,"cut":false,"hidden":false,"merged":[]}
[1,null,null," - ","Retail - Total -  Unbundled"]
[2,"PacifiCorp"]
[3,"Cost Of Service By Rate Schedule"]
[4,"State of Washington"]
[5,"WCA Method - (100 Summer, 100 Winter Hours) - 38%D / 62%E"]
[6,"12 Months Ending June 2012"]
[7]
[8]
[9,null,"A",null,"B","C",null,"D","E","F","G","H","I","J","K"]
[10,null,null,null,null,null,null,"Washington",null,"Small General","Large General","Large General","Large General","Agricultural","Street & Area",null,null,"Chk Total"]
[11,null,null,null,null,"COS",null,"Jurisdiction","Residential","Service","Service <1,000 kW","Service >1,000 kW","Dedicated Facilities","Pumping","Lighting","-","-"]
[12,null,null,null,"DESCRIPTION ","Factor",null,"Normalized","Schedule 16","Schedule 24","Schedule 36","Schedule 48T","Schedule 48T","Schedule 40","Sch. 15,51-54,57","-","-",0]
[13]
[14,null,null,null,"Operating Revenues",null,null,9213778.1531383935,7569461.6444085957,1023359.0685125574,193924.08854150816,60994.000570599543,51192.79845005519,195817.93772179994,119028.61493327856,0,0,0]
[15]
[16,null,null,null,"Operating Expenses"]
[17,null,null,null,"Operation & Maintenance Expenses",null,null,8378177.3564783791,6863966.147019322,933712.50248767936,178952.83033914602,60632.969417611501,51198.259224410591,178992.58855920116,110722.05943100933,0,0,0]
[18,null,null,null,"Depreciation Expense",null,null,120344.21412182611,97101.995954541359,16492.41129688028,1001.6126296692452,205.42206649714637,3.5471651477290309,2937.9674640408039,2601.2575450495383,0,0,0]
[19,null,null,null,"Amortization Expense",null,null,435831.73296249891,351659.04301925196,59727.97486527438,3627.3830971546568,743.94482429838376,12.846210719145319,10639.975179397616,9420.5657664027349,0,0,0]
[20,null,null,null,"Taxes Other Than Income",null,null,131221.01958061196,119187.67423715712,8083.816390489852,5288.5844324473201,-352.22586920649644,-72.553287098411602,2027.8255060252777,-2942.1018292028161,0,0,0]
[21,null,null,null,"Income Taxes - Federal",null,null,181641.41151786022,164984.37104939891,11189.943686710552,7320.6712180054301,-487.56521066710388,-100.43117726821262,2806.997601478573,-4072.5756497980856,0,0,0]
[22,null,null,null,"Income Taxes - State",null,null,0,0,0,0,0,0,0,0,0,0,0]
[23,null,null,null,"Income Taxes Deferred",null,null,9186.3244753000617,8343.9120691046701,565.91970249224323,370.23529284221422,-24.658100763633684,-5.0792017861602261,141.96096888421107,-205.96625547348049,0,0,0]
[24,null,null,null,"Investment Tax Credit Adj",null,null,0,0,0,0,0,0,0,0,0,0,0]
[25,null,null,null,"Misc Revenues & Expense",null,null,6775.2872727272734,5853.0850410034527,264.4754706112343,344.24088041731272,129.55629709338527,140.72484612723864,43.204737474649839,0,0,0,0]
[26]
[27,null,null,null,"Total Operating Expenses",null,null,9263177.3464092035,7611096.2283897791,1030037.0439001378,196905.55788968221,60847.443424863181,51177.31378025192,197590.52001650227,115523.23900798721,0,0,0]
[28]
[29,null,null,null,"Operating Revenue For Return",null,null,-49399.193270809948,-41634.583981183358,-6677.9753875803435,-2981.4693481740542,146.55714573636214,15.484669803270663,-1772.5822947023262,3505.3759252913442,0,0,0]
[30]
[31]
[32,null,null,null,"Rate Base :"]
[33,null,null,null,"Electric Plant In Service",null,null,10252496.870564088,8272420.2149150707,1405039.6726023769,85330.486605745085,17500.542998891313,302.1940011145926,250294.56090348505,221609.19853740392,0,0,0]
[34,null,null,null,"Plant Held For Future Use ",null,null,0,0,0,0,0,0,0,0,0,0,0]
[35,null,null,null,"Electric Plant Acquisition Adj",null,null,0,0,0,0,0,0,0,0,0,0,0]
[36,null,null,null,"Nuclear Fuel",null,null,0,0,0,0,0,0,0,0,0,0,0]
[37,null,null,null,"Prepayments",null,null,-1.5313522353733222E-10,-1.2356003954927971E-10,-2.098621116974279E-11,-1.2745288592515476E-12,-2.6139481903713726E-13,-4.5136854462436765E-15,-3.7384955116816107E-12,-3.310039942893173E-12,0,0,0]
[38,null,null,null,"Fuel Stock",null,null,0,0,0,0,0,0,0,0,0,0,0]
[39,null,null,null,"Materials & Supplies",null,null,0,0,0,0,0,0,0,0,0,0,0]
[40,null,null,null,"Misc Deferred Debits",null,null,0,0,0,0,0,0,0,0,0,0,0]
[41,null,null,null,"Cash Working Capital",null,null,1089502.3312838771,892593.55595386191,121420.4360835859,23271.11465282943,7884.7413610874937,6657.8469766505414,23276.2848314488,14398.351424413173,0,0,0]
[42,null,null,null,"Weatherization Loans",null,null,0,0,0,0,0,0,0,0,0,0,0]
[43,null,null,null,"Miscellaneous Rate Base",null,null,0,0,0,0,0,0,0,0,0,0,0]
[44]
[45,null,null,null,"Total Rate Base Additions",null,null,11341999.201847965,9165013.7708689328,1526460.1086859629,108601.60125857452,25385.284359978807,6960.0409777651339,273570.84573493386,236007.5499618171,0,0,0]
[46]
[47,null,null,null,"Rate Base Deductions :"]
[48,null,null,null,"Accum Provision For Depreciation",null,null,-608529.94482340431,-491003.84818369744,-83395.169512144043,-5064.7327145286272,-1038.7327691921557,-17.936518405794846,-14856.062602027974,-13153.462523408267,0,0,0]
[49,null,null,null,"Accum Provision For Amortization",null,null,-7415520.2676860858,-5911231.1776626986,-1016707.1176730753,-101456.67408359275,-28313.454612868347,-16812.405050018089,-184179.49134547124,-156819.9472583613,0,0,0]
[50,null,null,null,"Accum Deferred Income Taxes",null,null,-1437324.540604491,-1206193.6369292643,-196603.05899051719,13575.779308541547,7606.6699266814121,10620.038404623519,-33056.226518473493,-33274.105806082698,0,0,0]
[51,null,null,null,"Unamortized ITC",null,null,0,0,0,0,0,0,0,0,0,0,0]
[52,null,null,null,"Customer Advance For Construction",null,null,0,0,0,0,0,0,0,0,0,0,0]
[53,null,null,null,"Customer Service Deposits",null,null,-3236612.0862499997,-2788224.7747138054,-313289.81752265652,-70306.17488218419,0,0,-62433.835518408392,-2357.4836129454347,0,0,0]
[54,null,null,null,"Misc Rate Base Deductions",null,null,0,0,0,0,0,0,0,0,0,0,0]
[55,null,null,null,null,null,null,null,null,null,null,null,null,null,null,null,null,0]
[56,null,null,null,"Total Rate Base Deductions",null,null,-12697986.839363981,-10396653.437489465,-1609995.1636983929,-163251.80237176403,-21745.517455379093,-6210.3031638003631,-294525.61598438106,-205604.9992007977,0,0,0]
[57,null,null,null,null,null,null,null,null,null,null,null,null,null,null,null,null,0]
[58,null,null,null,"Total Rate Base",null,null,-1355987.6375160161,-1231639.6666205321,-83535.055012430064,-54650.201113189512,3639.7669045997136,749.73781396477079,-20954.770249447203,30402.550761019404,0,0,0]
[59]
[60]
[61,null,null,null,"Return On Rate Base",null,null,3.6430415664631365E-2,3.3804192175316952E-2,7.9942191773102231E-2,5.4555505514040675E-2,4.0265530617126052E-2,2.065344646468556E-2,8.4590872321736579E-2,0.11529874426805539,0.1,0.1]
[62]
[63,null,null,null,"Return On Equity",null,null,2.0788539216761142E-2,1.5786818184617805E-2,0.10365801570768424,5.5308313896312349E-2,2.809263012777027E-2,-9.2591695909332566E-3,0.11251156658270514,0.17099562538090099,0.14185871023172955,0.14185871023172955]
[64]
[65]
[66]
[67]
[68]
[69]
[70]
[71,"PacifiCorp"]
[72,"Cost Of Service By Rate Schedule"]
[73,"State of Washington"]
[74,"WCA Method - (100 Summer, 100 Winter Hours)"]
[75,"12 Months Ending June 2012"]
[76]
[77]
[78,null,"A",null,"B","C",null,"D","E","F","G","H","I","J","K","S","T"]
[79,null,null,null,null,null,null,"Washington",null,"Small General","Large General","Large General","Large General","Agricultural","Street & Area"]
[80,null,null,null,null,"COS",null,"Jurisdiction","Residential","Service","Service <1,000 kW","Service >1,000 kW","Dedicated Facilities","Pumping","Lighting","-","-"]
[81,null,null,null,"DESCRIPTION ","Factor",null,"Normalized","Schedule 16","Schedule 24","Schedule 36","Schedule 48T","Schedule 48T","Schedule 40","Sch. 15,51-54,57","-","-"]
[82]
[83,null,null,null,"Total Rate Base",null,null,-1355987.6375160161,-1231639.6666205321,-83535.055012430064,-54650.201113189512,3639.7669045997136,749.73781396477079,-20954.770249447203,30402.550761019404,0,0,0]
[84]
[85]
[86,null,null,null,"Return On Ratebase ($$)",4.602925444100011E-2,null,-62415.099986075336,-56691.455594505023,-3845.056301910085,-2515.5080122908275,167.5357569577516,34.509872603023638,-964.53245156450464,1399.4067446343836,0,0,0]
[87,null,null,null,"Operating & Maintenance Expense",null,null,8378177.3564783791,6863966.147019322,933712.50248767936,178952.83033914602,60632.969417611501,51198.259224410591,178992.58855920116,110722.05943100933,0,0,0]
[88,null,null,null,"        Bad Debt to Produce ROR","F80",null,0,0,0,0,0,0,0,0,0,0,0]
[89,null,null,null,"Depreciation Expense",null,null,120344.21412182611,97101.995954541359,16492.41129688028,1001.6126296692452,205.42206649714637,3.5471651477290309,2937.9674640408039,2601.2575450495383,0,0,0]
[90,null,null,null,"Amortization Expense",null,null,435831.73296249891,351659.04301925196,59727.97486527438,3627.3830971546568,743.94482429838376,12.846210719145319,10639.975179397616,9420.5657664027349,0,0,0]
[91,null,null,null,"Taxes Other Than Income",null,null,131221.01958061196,119187.67423715712,8083.816390489852,5288.5844324473201,-352.22586920649644,-72.553287098411602,2027.8255060252777,-2942.1018292028161,0,0,0]
[92,null,null,null,"Federal Income Taxes",null,null,181641.41151786022,164984.37104939891,11189.943686710552,7320.6712180054301,-487.56521066710388,-100.43117726821262,2806.997601478573,-4072.5756497980856,0,0,0]
[93,null,null,null,"        FIT Adj to Produce Target ROR","F101",null,0,0,0,0,0,0,0,0,0,0,0]
[94,null,null,null,"State Income Taxes",null,null,0,0,0,0,0,0,0,0,0,0,0]
[95,null,null,null,"        SIT Adj to Produce Target ROR","F101",null,0,0,0,0,0,0,0,0,0,0,0]
[96,null,null,null,"Deferred Income Taxes",null,null,9186.3244753000617,8343.9120691046701,565.91970249224323,370.23529284221422,-24.658100763633684,-5.0792017861602261,141.96096888421107,-205.96625547348049,0,0,0]
[97,null,null,null,"Investment Tax Credit",null,null,0,0,0,0,0,0,0,0,0,0,0]
[98,null,null,null,"Misc Revenue & Expenses",null,null,6775.2872727272734,5853.0850410034527,264.4754706112343,344.24088041731272,129.55629709338527,140.72484612723864,43.204737474649839,0,0,0,0]
[99,null,null,null,"Revenue Credits",null,null,-849947.59742200782,-647173.77876478294,-75535.743844509314,-72502.587349536712,-18366.388178678117,-10340.448926220992,-12445.614628460411,-13583.035729819345,0,0,0]
[100]
[101,null,null,null,"Total Revenue Requirements",null,null,8350814.6490011197,6907230.9940304905,950656.24375371845,121887.46252785466,42648.591003142821,40871.374726633956,184180.37293647736,103339.61002280226,0,0,0]
[102,null,null,null,"Operating Revenues",null,null,8363830.5557163861,6922287.8656438123,947823.32466804807,121421.50119197145,42627.61239192143,40852.3495238342,183372.32309333954,105445.57920345922,0,0,0]
[103]
[104,null,null,null,"Increase / (Decrease) Required to "]
[105,null,null,null,"Earn Equal Rates of Return",null,null,-13015.906715266407,-15056.871613321826,2832.919085670379,465.96133588321391,20.978611221391475,19.025202799755789,808.04984313782188,-2105.9691806569608,0,0,0]
[106]
[107,null,null,null,"Existing Revenues",null,null,8363830.5557163861,6922287.8656438123,947823.32466804807,121421.50119197145,42627.61239192143,40852.3495238342,183372.32309333954,105445.57920345922,0,0,0]
[108,null,null,null,"check",null,null,0,0,0,0,0,0,0,0,0,0,0]
[109,null,null,null,"Percent Increase / (Decrease) "]
[110,null,null,null,"Over Existing Rates To "]
[111,null,null,null,"Equal Authorized RoE & RoR",null,null,-1.5562135828266499E-3,-2.175129365545599E-3,2.9888682963805937E-3,3.8375520917544371E-3,4.9213667020598219E-4,4.6570645315408476E-4,4.4066074394799003E-3,-1.9972095526105023E-2,{"$error":"#DIV/0!"},{"$error":"#DIV/0!"}]
[112]
[113]
[114]
[115]
[116]
[117]
[118]
[119]
[120,null,null,null,null,"WCA",null,null,"ELECTRIC REVENUES"]
[121,null,"Retail - Total -  Unbundled",null,null,"Method"]
[122,null,"A",null,"B",null,null,"D","E","F","G","H","I","J","K","S","T"]
[123,null,null,null,null,null,null,"Washington",null,"Small General","Large General","Large General","Large General","Agricultural","Street & Area"]
[124,null,"FERC",null,null,"COS",null,"Jurisdiction","Residential","Service","Service <1,000 kW","Service >1,000 kW","Dedicated Facilities","Pumping","Lighting","-","-"]
[125,null,"ACCT",null,"DESCRIPTION ","Factor",null,"Normalized","Schedule 16","Schedule 24","Schedule 36","Schedule 48T","Schedule 48T","Schedule 40","Sch. 15,51-54,57","-","-"]
[126,null,"440","Residential Sales",null,"A",null,6922287.8656438123,6922287.8656438123,0,0,0,0,0,0,0,0,0]
[127]
[128,null,"442","Commercial & Industrial Sales",null,"A",null,1214675.6096771432,0,947823.32466804807,0,42627.61239192143,40852.3495238342,183372.32309333954,0,0,0,0]
[129,null,null,null,"Interruptible Demand","F10",null,0,0,0,0,0,0,0,0,0,0,0]
[130,null,null,null,"Interruptible Energy","F10",null,0,0,0,0,0,0,0,0,0,0,0]
[131,null,null,null,null,null,null,1214675.6096771432,0,947823.32466804807,0,42627.61239192143,40852.3495238342,183372.32309333954,0,0,0,0]
[132]
[133,null,"444","Public Street & Highway Lighting",null,"A",null,226867.08039543068,0,0,121421.50119197145,0,0,0,105445.57920345922,0,0,0]
[134]
[135,null,"445","Other Sales to Public Authority",null,"A",null,0,0,0,0,0,0,0,0,0,0,0]
[136]
[137,null,"448","Interdepartmental",null,"A",0,0,0,0,0,0,0,0,0,0,0,0]
[138,null,null,null,"Demand","F10",null,0,0,0,0,0,0,0,0,0,0,0]
[139,null,null,null,null,null,null,0,0,0,0,0,0,0,0,0,0,0]
[140]
[141,null,"Total Sales to Ultimate Customers",null,null,null,null,8363830.5557163861,6922287.8656438123,947823.32466804807,121421.50119197145,42627.61239192143,40852.3495238342,183372.32309333954,105445.57920345922,0,0,0]
[142]
[143,null,"447","Sales for Resale",null,"F10",null,0,0,0,0,0,0,0,0,0,0,0]
[144,null,null,null,"Demand","F10",null,0,0,0,0,0,0,0,0,0,0,0]
[145,null,null,null,"Energy","F10",null,0,0,0,0,0,0,0,0,0,0,0]
[146,null,null,null,null,null,null,0,0,0,0,0,0,0,0,0,0,0]
[147]
[148,null,"447NPC","Sales for Resale",null,"F10",null,0,0,0,0,0,0,0,0,0,0,0]
[149,null,null,null,"Demand","F10",null,0,0,0,0,0,0,0,0,0,0,0]
[150,null,null,null,"Energy","F10",null,0,0,0,0,0,0,0,0,0,0,0]
[151,null,null,null,null,null,null,0,0,0,0,0,0,0,0,0,0,0]
[152]
[153,null,"449","Provision for Rate Refund",null,"F10",null,0,0,0,0,0,0,0,0,0,0,0]
[154]
[155,null,"State Specific Revenue Credit",null,null,"F140R",null,8154.0115076749835,6694.9565482962544,909.44435383196401,172.27471607517819,54.073437511390011,45.385565696661644,174.25627598797621,103.62061027555836,0,0,0]
[156]
[157,null,"AGA Revenue",null,null,"A",0,0,0,0,0,0,0,0,0,0,0,0]
[158]
[159,null,"Total Sales from Electricity",null,null,null,null,8371984.5672240611,6928982.8221921083,948732.76902188,121593.77590804662,42681.685829432819,40897.735089530863,183546.57936932752,105549.19981373477,0,0,0]
[160]
[161,null,"Other Electric Operating Revenues"]
[162,null,"450","Forfeited Discounts & Interest",null,"A",1,678122.06,519821.37923925405,51714.786186675177,64407.624889988481,16201.340140890432,10294.166947698966,5052.6920496343273,10630.070545858562,0,0,0]
[163,null,null,null,"Customers","F40",null,0,0,0,0,0,0,0,0,0,0,0]
[164,null,null,null,null,null,null,678122.06,519821.37923925405,51714.786186675177,64407.624889988481,16201.340140890432,10294.166947698966,5052.6920496343273,10630.070545858562,0,0,0]
[165]
[166,null,"451","Misc Electric Revenue",null,"A",1,162036.34,119369.12028203883,22681.179833094691,7909.7856831597737,2110.2592502152861,0.88406038023387246,7153.6924414558744,2811.4184496553303,0,0,0]
[167,null,null,null,"Demand","F10",null,0,0,0,0,0,0,0,0,0,0,0]
[168,null,null,null,"Customer","F40",null,1.8605341844156267,1.4658690451993741,0.262076191264972,1.4680119276860311E-2,8.1393389624055288E-4,1.4054760515905402E-5,7.3928040313662416E-2,4.3152799704001557E-2,0,0,0]
[169,null,null,null,null,null,null,162038.20053418441,119370.58615108403,22681.441909285957,7909.8003632790505,2110.2600641491822,0.88407443499438831,7153.7663694961884,2811.4616024550342,0,0,0]
[170]
[171,null,"453","Water Sales",null,"F10",null,0,0,0,0,0,0,0,0,0,0,0]
[172]
[173,null,"454","Rent of Electric Property",null,"A",0,0,0,0,0,0,0,0,0,0,0,0]
[174,null,null,null,"Demand","F10",null,0,0,0,0,0,0,0,0,0,0,0]
[175,null,null,null,"Customer","F40",null,1633.3253801483647,1286.8568261485575,230.07139471621346,12.887380194001782,0.71453612711249193,1.2338390369186171E-2,64.899933341919265,37.882971230191281,0,0,0]
[176,null,null,null,null,null,null,1633.3253801483647,1286.8568261485575,230.07139471621346,12.887380194001782,0.71453612711249193,1.2338390369186171E-2,64.899933341919265,37.882971230191281,0,0,0]
[177]
[178,null,"456","Other Electric Revenue",null,"A",0,0,0,0,0,0,0,0,0,0,0,0]
[179,null,null,null,"Demand","F10",null,0,0,0,0,0,0,0,0,0,0,0]
[180,null,null,null,"Energy","F10",null,0,0,0,0,0,0,0,0,0,0,0]
[181,null,null,null,"Customer","F40",null,0,0,0,0,0,0,0,0,0,0,0]
[182,null,null,null,null,null,null,0,0,0,0,0,0,0,0,0,0,0]
[183]
[184,null,"Total Other Electric Operating Revenues",null,null,null,null,841793.58591433289,640478.82221648667,74626.299490677353,72330.312633461537,18312.314741166727,10295.063360524329,12271.358352472434,13479.415119543786,0,0,0]
[185]
[186,null,"Total Electric Operating Revenues",null,null,null,null,9213778.1531383935,7569461.6444085948,1023359.0685125573,193924.08854150816,60994.000570599543,51192.79845005519,195817.93772179994,119028.61493327856,0,0,0]
[187]
[188,null,"Miscellaneous Revenues"]
[189,null,"41160","Gain on Sale of Utility Plant - CR",null,"F10",null,0,0,0,0,0,0,0,0,0,0,0]
[190,null,"41170","Loss on Sale of Utility Plant ",null,"F10",null,0,0,0,0,0,0,0,0,0,0,0]
[191,null,"4118","Gain from Emission Allowances",null,"F10",null,0,0,0,0,0,0,0,0,0,0,0]
[192,null,41181,"Gain from Disposition of NOX Credits",null,"F10",null,0,0,0,0,0,0,0,0,0,0,0]
[193,null,"4194","Impact Housing Interest Income",null,"F10",null,0,0,0,0,0,0,0,0,0,0,0]
[194,null,"421","(Gain)/Loss on Sale of Utility Plant",null,"F10",null,0,0,0,0,0,0,0,0,0,0,0]
[195]
[196,null,"Total Miscellaneous Revenues",null,null,null,null,0,0,0,0,0,0,0,0,0,0,0]
[197]
[198,null,"Miscellaneous Expenses"]
[199,null,"4311","Interest on Customer Deposits",null,"F80",null,6775.2872727272734,5853.0850410034527,264.4754706112343,344.24088041731272,129.55629709338527,140.72484612723864,43.204737474649839,0,0,0,0]
[200]
[201,null,"DFA","Divergence Fairness Adjustment"]
[202,null,null,"Production ",null,"F105",null,0,0,0,0,0,0,0,0,0,0,0]
[203,null,null,"Transmission",null,"F105",null,0,0,0,0,0,0,0,0,0,0,0]
[204,null,null,"Distribution",null,"F105",null,0,0,0,0,0,0,0,0,0,0,0]
[205,null,null,null,null,null,null,0,0,0,0,0,0,0,0,0,0,0]
[206]
[207,null,"Net Miscellaneous Revenues And Expense",null,null,null,null,6775.2872727272734,5853.0850410034527,264.4754706112343,344.24088041731272,129.55629709338527,140.72484612723864,43.204737474649839,0,0,0,0]
[208]
[209,null,"Retail - Total -  Unbundled"]
[210,null,null,null,null,null,null,"STEAM POWER GENERATION"]
[211]
[212,null,"A",null,"B","C",null,"D","E","F","G","H","I","J","K","S","T"]
[213,null,null,null,null,null,null,"Washington",null,"Small General","Large General","Large General","Large General","Agricultural","Street & Area"]
[214,null,"FERC",null,null,"COS",null,"Jurisdiction","Residential","Service","Service <1,000 kW","Service >1,000 kW","Dedicated Facilities","Pumping","Lighting","-","-"]
[215,null,"ACCT",null,"DESCRIPTION ","Factor",null,"Normalized","Schedule 16","Schedule 24","Schedule 36","Schedule 48T","Schedule 48T","Schedule 40","Sch. 15,51-54,57","-","-"]
[216,null,"500","Operation Suprvn & Engineering",null,"F10",null,0,0,0,0,0,0,0,0,0,0,0]
[217,null,null,null,"JBG","F10",null,0,0,0,0,0,0,0,0,0,0,0]
[218,null,null,null,"Total 500",null,null,0,0,0,0,0,0,0,0,0,0,0]
[219]
[220,null,"501","Fuel Related",null,"F10",null,0,0,0,0,0,0,0,0,0,0,0]
[221,null,null,null,"CAGW","F10",null,0,0,0,0,0,0,0,0,0,0,0]
[222,null,null,null,"JBE","F10",null,0,0,0,0,0,0,0,0,0,0,0]
[223,null,null,null,"Total 501",null,null,0,0,0,0,0,0,0,0,0,0,0]
[224]
[225,null,"501NPC","Fuel Related"]
[226,null,null,null,"CAEW","F10",null,0,0,0,0,0,0,0,0,0,0,0]
[227,null,null,null,"Total 501NPC",null,null,0,0,0,0,0,0,0,0,0,0,0]
[228]
[229,null,"502","Steam Expenses",null,"F10",null,0,0,0,0,0,0,0,0,0,0,0]
[230,null,null,null,"JBG","F10",null,0,0,0,0,0,0,0,0,0,0,0]
[231,null,null,null,"Total 502",null,null,0,0,0,0,0,0,0,0,0,0]
[232]
[233,null,"503","Steam From Other Sources",null,"F10",null,0,0,0,0,0,0,0,0,0,0,0]
[234]
[235,null,"503NPC","Steam From Other Sources-NPC",null,"F10",null,0,0,0,0,0,0,0,0,0,0,0]
[236]
[237,null,"505","Electric Expenses",null,"F10",null,0,0,0,0,0,0,0,0,0,0,0]
[238,null,null,null,"JBG","F10",null,0,0,0,0,0,0,0,0,0,0,0]
[239,null,null,null,"Total 505",null,null,0,0,0,0,0,0,0,0,0,0,0]
[240]
[241,null,"506","Misc. Steam Expense",null,"F10",null,0,0,0,0,0,0,0,0,0,0,0]
[242,null,null,null,"JBG","F10",null,0,0,0,0,0,0,0,0,0,0,0]
[243,null,null,null,"Total 506",null,null,0,0,0,0,0,0,0,0,0,0,0]
[244]
[245,null,"507","Rents",null,"F10",null,0,0,0,0,0,0,0,0,0,0,0]
[246,null,null,null,"JBG","F10",null,0,0,0,0,0,0,0,0,0,0,0]
[247,null,null,null,"Total 507",null,null,0,0,0,0,0,0,0,0,0,0,0]
[248]
[249,null,"510","Maint Supervision & Engineering",null,"F10",null,0,0,0,0,0,0,0,0,0,0,0]
[250,null,null,null,"JBG","F10",null,0,0,0,0,0,0,0,0,0,0,0]
[251,null,null,null,"Total 510",null,null,0,0,0,0,0,0,0,0,0,0,0]
[252]
[253,null,"511","Maintenance of Structures",null,"F10",null,0,0,0,0,0,0,0,0,0,0,0]
[254,null,null,null,"JBG","F10",null,0,0,0,0,0,0,0,0,0,0,0]
[255,null,null,null,"Total 511",null,null,0,0,0,0,0,0,0,0,0,0,0]
[256]
[257,null,"512","Maintenance of Boiler Plant",null,"F10",null,0,0,0,0,0,0,0,0,0,0,0]
[258,null,null,null,"JBG","F10",null,0,0,0,0,0,0,0,0,0,0,0]
[259,null,null,null,"Total 512",null,null,0,0,0,0,0,0,0,0,0,0,0]
[260]
[261,null,"513","Maintenance of Electric Plant",null,"F10",null,0,0,0,0,0,0,0,0,0,0,0]
[262,null,null,null,"JBG","F10",null,0,0,0,0,0,0,0,0,0,0,0]
[263,null,null,null,"Total 513",null,null,0,0,0,0,0,0,0,0,0,0,0]
[264]
[265,null,"514","Maint of Misc. Steam Plant",null,"F10",null,0,0,0,0,0,0,0,0,0,0,0]
[266,null,null,null,"JBG","F10",null,0,0,0,0,0,0,0,0,0,0,0]
[267,null,null,null,"Total 514",null,null,0,0,0,0,0,0,0,0,0,0,0]
[268]
[269,null,"Total Steam Power Generation",null,null,null,null,0,0,0,0,0,0,0,0,0,0,0]
[270]
[271]
[272,null,null,null,null,null,null,"NUCLEAR POWER GENERATION"]
[273]
[274]
[275,null,"517","Operation Super & Engineering",null,"F10",null,0,0,0,0,0,0,0,0,0,0,0]
[276]
[277,null,"518","Nuclear Fuel Expense",null,"F10",null,0,0,0,0,0,0,0,0,0,0,0]
[278]
[279,null,"519","Coolants and Water",null,"F10",null,0,0,0,0,0,0,0,0,0,0,0]
[280]
[281,null,"520","Steam Expenses",null,"F10",null,0,0,0,0,0,0,0,0,0,0,0]
[282]
[283,null,"523","Electric Expenses",null,"F10",null,0,0,0,0,0,0,0,0,0,0,0]
[284]
[285,null,"524","Misc. Nuclear Expenses",null,"F10",null,0,0,0,0,0,0,0,0,0,0,0]
[286]
[287,null,"528","Maint Supervision & Eng",null,"F10",null,0,0,0,0,0,0,0,0,0,0,0]
[288]
[289,null,"529","Maintenance of Structures",null,"F10",null,0,0,0,0,0,0,0,0,0,0,0]
[290]
[291,null,"530","Maintenance of Reactor Plant",null,"F10",null,0,0,0,0,0,0,0,0,0,0,0]
[292]
[293,null,"531","Maintenance of Electric Plant",null,"F10",null,0,0,0,0,0,0,0,0,0,0,0]
[294]
[295,null,"532","Maintenance of Misc Nuclear",null,"F10",null,0,0,0,0,0,0,0,0,0,0,0]
[296]
[297,null,"Total Nuclear Power Generation",null,null,null,null,0,0,0,0,0,0,0,0,0,0,0]
[298]
[299]
[300]
[301,null,"Retail - Total -  Unbundled",null,null,null,null,"HYDRAULIC POWER GENERATION"]
[302]
[303,null,"A",null,"B","C",null,"D","E","F","G","H","I","J","K","S","T"]
[304,null,null,null,null,null,null,"Washington",null,"Small General","Large General","Large General","Large General","Agricultural","Street & Area"]
[305,null,"FERC",null,null,"COS",null,"Jurisdiction","Residential","Service","Service <1,000 kW","Service >1,000 kW","Dedicated Facilities","Pumping","Lighting","-","-"]
[306,null,"ACCT",null,"DESCRIPTION ","Factor",null,"Normalized","Schedule 16","Schedule 24","Schedule 36","Schedule 48T","Schedule 48T","Schedule 40","Sch. 15,51-54,57","-","-"]
[307,null,"535","Operation Super & Engineering",null,"F10",null,0,0,0,0,0,0,0,0,0,0,0]
[308]
[309,null,"536","Water For Power",null,"F10",null,0,0,0,0,0,0,0,0,0,0,0]
[310]
[311,null,"537","Hydraulic Expenses",null,"F10",null,0,0,0,0,0,0,0,0,0,0,0]
[312]
[313,null,"538","Electric Expenses",null,"F10",null,0,0,0,0,0,0,0,0,0,0,0]
[314]
[315,null,"539","Misc. Hydro Expenses",null,"F10",null,0,0,0,0,0,0,0,0,0,0,0]
[316]
[317,null,"540","Rents (Hydro Generation)",null,"F10",null,0,0,0,0,0,0,0,0,0,0,0]
[318]
[319,null,"541","Maint Supervision & Engineering",null,"F10",null,0,0,0,0,0,0,0,0,0,0,0]
[320]
[321,null,"542","Maintenance of Structures",null,"F10",null,0,0,0,0,0,0,0,0,0,0,0]
[322]
[323,null,"543","Maint of Dams & Waterways",null,"F10",null,0,0,0,0,0,0,0,0,0,0,0]
[324]
[325,null,"544","Maintenance of Electric Plant",null,"F10",null,0,0,0,0,0,0,0,0,0,0,0]
[326]
[327,null,"545","Maint of Misc. Hydro Plant",null,"F10",null,0,0,0,0,0,0,0,0,0,0,0]
[328]
[329,null,"Total Hydraulic Power Generation ",null,null,null,null,0,0,0,0,0,0,0,0,0,0,0]
[330]
[331]
[332,null,null,null,null,null,null,"OTHER POWER GENERATION"]
[333]
[334]
[335,null,"546","Operation Super & Engineering",null,"F10",null,0,0,0,0,0,0,0,0,0,0,0]
[336,null,null,null,"CAGE","F10",null,0,0,0,0,0,0,0,0,0,0,0]
[337,null,null,null,"Total 546",null,null,0,0,0,0,0,0,0,0,0,0,0]
[338]
[339,null,"547","Fuel","SE","F10",null,0,0,0,0,0,0,0,0,0,0,0]
[340,null,null,null,"SSECT","F10",null,null,0,0,0,0,0,0,0,0,0,0]
[341,null,null,null,"Total 547",null,null,0,0,0,0,0,0,0,0,0,0,0]
[342]
[343]
[344,null,"547NPC","Fuel","CAEW","F10",null,0,0,0,0,0,0,0,0,0,0,0]
[345,null,null,null,"SE","F10",null,null,0,0,0,0,0,0,0,0,0,0]
[346,null,null,null,"Total 547NPC",null,null,0,0,0,0,0,0,0,0,0,0,0]
[347]
[348,null,"548","Generation Expense",null,"F10",null,0,0,0,0,0,0,0,0,0,0,0]
[349,null,null,null,"CAGE","F10",null,0,0,0,0,0,0,0,0,0,0,0]
[350,null,null,null,"Total 548",null,null,0,0,0,0,0,0,0,0,0,0,0]
[351]
[352,null,"549","Miscellaneous Other",null,"F10",null,0,0,0,0,0,0,0,0,0,0,0]
[353,null,null,null,"CAGE","F10",null,0,0,0,0,0,0,0,0,0,0,0]
[354,null,null,"Total 549",null,null,null,0,0,0,0,0,0,0,0,0,0,0]
[355]
[356,null,"550","Maint Supervision & Engineering"]
[357,null,null,null,"SG","F10",null,0,0,0,0,0,0,0,0,0,0,0]
[358,null,null,null,"CAGE","F10",null,0,0,0,0,0,0,0,0,0,0,0]
[359,null,null,null,"Total 550",null,null,0,0,0,0,0,0,0,0,0,0,0]
[360]
[361,null,"552","Maintenance of Structures"]
[362,null,null,null,"SG","F10",null,0,0,0,0,0,0,0,0,0,0,0]
[363,null,null,null,"CAGE","F10",null,0,0,0,0,0,0,0,0,0,0,0]
[364,null,null,null,"Total 552",null,null,0,0,0,0,0,0,0,0,0,0,0]
[365]
[366,null,"553","Maint of Generation & Elect Plant"]
[367,null,null,null,"SG","F10",null,0,0,0,0,0,0,0,0,0,0,0]
[368,null,null,null,"CAGE","F10",null,0,0,0,0,0,0,0,0,0,0,0]
[369,null,null,null,"Total 553",null,null,0,0,0,0,0,0,0,0,0,0,0]
[370]
[371,null,"554","Maintenance of Misc. Other"]
[372,null,null,null,"SG","F10",null,0,0,0,0,0,0,0,0,0,0,0]
[373,null,null,null,"CAGE","F10",null,0,0,0,0,0,0,0,0,0,0,0]
[374,null,null,null,"Total 554",null,null,0,0,0,0,0,0,0,0,0,0,0]
[375]
[376,null,"Total Other Power Generation",null,null,null,null,0,0,0,0,0,0,0,0,0,0,0]
[377]
[378]
[379,null,null,null,null,null,null,"OTHER POWER SUPPLY"]
[380]
[381]
[382,null,"555","Purchased Power",null,"F10",null,0,0,0,0,0,0,0,0,0,0,0]
[383,null,null,null,"Demand","F10",null,0,0,0,0,0,0,0,0,0,0,0]
[384,null,null,null,"Energy","F10",null,0,0,0,0,0,0,0,0,0,0,0]
[385,null,null,null,"SSGP","F10",null,0,0,0,0,0,0,0,0,0,0,0]
[386,null,null,null,"Total 555",null,null,0,0,0,0,0,0,0,0,0,0,0]
[387]
[388,null,"555NPC","Purchased Power",null,"F10",null,0,0,0,0,0,0,0,0,0,0,0]
[389,null,null,null,"Demand","F10",null,0,0,0,0,0,0,0,0,0,0,0]
[390,null,null,null,"Energy","F10",null,0,0,0,0,0,0,0,0,0,0,0]
[391,null,null,null,"SSGP","F10",null,0,0,0,0,0,0,0,0,0,0,0]
[392,null,null,null,"Total 555NPC",null,null,0,0,0,0,0,0,0,0,0,0,0]
[393]
[394,null,"556","System Control & Load Dispatch",null,"F10",null,0,0,0,0,0,0,0,0,0,0,0]
[395]
[396,null,"557","Other Expenses",null,"F10",null,-1180771.9899890956,-500972.06210592791,-159346.17032690631,-252470.2502178571,-99766.428412863665,-123348.76904948721,-42035.583374542373,-2832.7265015109892,0,0,0]
[397,null,null,null,"CAGE/JBG","F10",null,1180771.9899890956,500972.06210592791,159346.17032690631,252470.2502178571,99766.428412863665,123348.76904948721,42035.583374542373,2832.7265015109892,0,0,0]
[398,null,null,null,"Total 557",null,null,0,0,0,0,0,0,0,0,0,0,0]
[399]
[400,null,"Embedded Cost Differentials"]
[401,null,"Company Owned Hydro",null,"DGP","F10",null,0,0,0,0,0,0,0,0,0,0,0]
[402,null,"Company Owned Hydro",null,"SG","F10",null,0,0,0,0,0,0,0,0,0,0,0]
[403,null,"Mid-C Contract",null,"MC","F10",null,0,0,0,0,0,0,0,0,0,0,0]
[404,null,"Mid-C Contract",null,"SG","F10",null,0,0,0,0,0,0,0,0,0,0,0]
[405,null,"Existing QF Contracts",null,"S ","F10",null,0,0,0,0,0,0,0,0,0,0,0]
[406,null,"Existing QF Contracts",null,"SG","F10",null,0,0,0,0,0,0,0,0,0,0,0]
[407,null,"Total Embedded Cost Differential",null,null,null,null,0,0,0,0,0,0,0,0,0,0,0]
[408]
[409,null,"Total Other Power Supply",null,null,null,null,0,0,0,0,0,0,0,0,0,0,0]
[410]
[411,null,"TOTAL PRODUCTION EXPENSE",null,null,null,null,0,0,0,0,0,0,0,0,0,0,0]
[412]
[413,null,"Retail - Total -  Unbundled",null,null,null,null,"TRANSMISSION EXPENSE"]
[414]
[415]
[416,null,"A",null,"B","C",null,"D","E","F","G","H","I","J","K","S","T"]
[417,null,null,null,null,null,null,"Washington",null,"Small General","Large General","Large General","Large General","Agricultural","Street & Area"]
[418,null,"FERC",null,null,"COS",null,"Jurisdiction","Residential","Service","Service <1,000 kW","Service >1,000 kW","Dedicated Facilities","Pumping","Lighting","-","-"]
[419,null,"ACCT",null,"DESCRIPTION ","Factor",null,"Normalized","Schedule 16","Schedule 24","Schedule 36","Schedule 48T","Schedule 48T","Schedule 40","Sch. 15,51-54,57","-","-"]
[420,null,"560","Operation Supervision & Eng",null,"F106",null,0,0,0,0,0,0,0,0,0,0,0]
[421]
[422,null,"561","Load Dispatching",null,"F106",null,0,0,0,0,0,0,0,0,0,0,0]
[423]
[424,null,"562","Station Expense",null,"F106",null,0,0,0,0,0,0,0,0,0,0,0]
[425]
[426,null,"563","Overhead Line Expense",null,"F106",null,0,0,0,0,0,0,0,0,0,0,0]
[427]
[428,null,"564","Underground Line Expense",null,"F106",null,0,0,0,0,0,0,0,0,0,0,0]
[429]
[430,null,"565","Transm of Electricity by Others",null,"F10",null,0,0,0,0,0,0,0,0,0,0,0]
[431,null,null,"Energy",null,"F10",null,0,0,0,0,0,0,0,0,0,0,0]
[432,null,null,null,null,null,null,0,0,0,0,0,0,0,0,0,0,0]
[433,null,"565NPC","Transm of Electricity by Others",null,"F10",null,0,0,0,0,0,0,0,0,0,0,0]
[434,null,null,"Energy",null,"F10",null,0,0,0,0,0,0,0,0,0,0,0]
[435]
[436,null,"566","Misc. Transmission Expense",null,"F106",null,0,0,0,0,0,0,0,0,0,0,0]
[437]
[438,null,"567","Rents - Transmission",null,"F106",null,0,0,0,0,0,0,0,0,0,0,0]
[439]
[440,null,"568","Maint Supervision & Engineering",null,"F106",null,0,0,0,0,0,0,0,0,0,0,0]
[441]
[442,null,"569","Maintenance of Structures",null,"F106",null,0,0,0,0,0,0,0,0,0,0,0]
[443]
[444,null,"570","Maint of Station Equipment",null,"F106",null,0,0,0,0,0,0,0,0,0,0,0]
[445]
[446,null,"571","Maintenance of Overhead Lines",null,"F106",null,0,0,0,0,0,0,0,0,0,0,0]
[447]
[448,null,"572","Maint of Underground Lines",null,"F106",null,0,0,0,0,0,0,0,0,0,0,0]
[449]
[450,null,"573","Maint of Misc Transmission Plant",null,"F106",null,0,0,0,0,0,0,0,0,0,0,0]
[451]
[452]
[453,null,"TOTAL TRANSMISSION EXPENSE",null,null,null,null,0,0,0,0,0,0,0,0,0,0,0]
[454]
[455]
[456]
[457]
[458]
[459]
[460]
[461]
[462]
[463]
[464]
[465,null,"Retail - Total -  Unbundled",null,null,null,null,"DISTRIBUTION EXPENSE"]
[466]
[467]
[468,null,"A",null,"B","C",null,"D","E","F","G","H","I","J","K","S","T"]
[469,null,null,null,null,null,null,"Washington",null,"Small General","Large General","Large General","Large General","Agricultural","Street & Area"]
[470,null,"FERC",null,null,"COS",null,"Jurisdiction","Residential","Service","Service <1,000 kW","Service >1,000 kW","Dedicated Facilities","Pumping","Lighting","-","-"]
[471,null,"ACCT",null,"DESCRIPTION ","Factor",null,"Normalized","Schedule 16","Schedule 24","Schedule 36","Schedule 48T","Schedule 48T","Schedule 40","Sch. 15,51-54,57","-","-"]
[472,null,"580","Operation Supervision & Eng",null,"F131",null,0,0,0,0,0,0,0,0,0,0,0]
[473]
[474,null,"581","Load Dispatching",null,"F20",null,0,0,0,0,0,0,0,0,0,0,0]
[475]
[476,null,"582","Station Expense",null,"F120",null,0,0,0,0,0,0,0,0,0,0,0]
[477]
[478,null,"583","Overhead Line Expenses",null,"F132",null,0,0,0,0,0,0,0,0,0,0,0]
[479]
[480,null,"584","Underground Line Expense",null,"F133",null,0,0,0,0,0,0,0,0,0,0,0]
[481]
[482,null,"585","Street Lighting & Signal Systems",null,"F130",null,0,0,0,0,0,0,0,0,0,0,0]
[483]
[484,null,"586","Meter Expenses",null,"F127",null,0,0,0,0,0,0,0,0,0,0,0]
[485]
[486,null,"587","Customer Installation Expenses",null,"F20",null,0,0,0,0,0,0,0,0,0,0,0]
[487]
[488,null,"588","Misc. Distribution Expenses",null,"F131",null,0,0,0,0,0,0,0,0,0,0,0]
[489]
[490,null,"589","Rents",null,"F131",null,0,0,0,0,0,0,0,0,0,0,0]
[491]
[492,null,"590","Maint Supervision & Engineering",null,"F131",null,0,0,0,0,0,0,0,0,0,0,0]
[493]
[494,null,"591","Maintenance of Structures",null,"F119",null,0,0,0,0,0,0,0,0,0,0,0]
[495]
[496,null,"592","Maint of Station Equipment",null,"F120",null,0,0,0,0,0,0,0,0,0,0,0]
[497]
[498,null,"593","Maintenance of Overhead Lines",null,"F134",null,0,0,0,0,0,0,0,0,0,0,0]
[499]
[500,null,"594","Maint of Underground Lines",null,"F135",null,0,0,0,0,0,0,0,0,0,0,0]
[501]
[502,null,"595","Maint of Line Transformers",null,"F125",null,0,0,0,0,0,0,0,0,0,0,0]
[503]
[504,null,"596","Maint of Street Lighting & Signals",null,"F130",null,0,0,0,0,0,0,0,0,0,0,0]
[505]
[506,null,"597","Maintenance of Meters",null,"F127",null,0,0,0,0,0,0,0,0,0,0,0]
[507]
[508,null,"598","Maint of Misc. Distribution Plant",null,"F131",null,0,0,0,0,0,0,0,0,0,0,0]
[509]
[510,null,"TOTAL DISTRIBUTION EXPENSE",null,null,null,null,0,0,0,0,0,0,0,0,0,0,0]
[511]
[512]
[513,null,null,null,null,null,null,"CUSTOMER ACCOUNTS EXPENSE"]
[514]
[515]
[516,null,"901","Supervision",null,"F136",null,201143.69782696577,165952.67568493611,21651.624081844548,4445.0662838272574,1551.8779621359222,1303.9793544743889,3820.9817143470764,2417.4927454004232,0,0,0]
[517]
[518,null,"902","Meter Reading Expense",null,"F41",null,954742.37164868228,773675.14115286351,138321.92918853421,12086.97577027338,5915.4330601395995,102.14588112393838,24640.746595747441,0,0,0,0]
[519]
[520,null,"903","Customer Receipts & Collections",null,"F42",null,3981820.0734477621,3212806.5273851259,545683.18751906161,33140.282677806579,6796.784655383869,117.36478975851432,97208.311249692313,86067.615170933059,0,0,0]
[521]
[522,null,"904","Uncollectible Accounts",null,"F80",null,2224558.6840435951,1921768.1306033693,86836.348214045764,113026.06208561438,42537.766174394266,46204.783046348137,14185.593919823277,0,0,0,0]
[523]
[524,null,"905","Misc. Customer Accounts Exp",null,"F136",null,11842.924124365636,9770.9496623795058,1274.8027601200672,261.71629186427714,91.371358657536788,76.775602326175175,224.97148562183006,142.33696339624197,0,0,0]
[525]
[526,null,"TOTAL CUSTOMER ACCOUNTS EXPENSE",null,null,null,null,7374107.7510913704,6083973.4244886748,793767.89176360611,162960.10310938588,56893.233210711194,47805.048674031153,140080.60496523193,88627.444879729723,0,0,0]
[527]
[528,null,"Retail - Total -  Unbundled",null,null,null,null,"CUSTOMER SERVICE EXPENSE"]
[529]
[530,null,"A",null,"B","C",null,"D","E","F","G","H","I","J","K","S","T"]
[531,null,null,null,null,null,null,"Washington",null,"Small General","Large General","Large General","Large General","Agricultural","Street & Area"]
[532,null,"FERC",null,null,"COS",null,"Jurisdiction","Residential","Service","Service <1,000 kW","Service >1,000 kW","Dedicated Facilities","Pumping","Lighting","-","-"]
[533,null,"ACCT",null,"DESCRIPTION ","Factor",null,"Normalized","Schedule 16","Schedule 24","Schedule 36","Schedule 48T","Schedule 48T","Schedule 40","Sch. 15,51-54,57","-","-"]
[534,null,"907","Supervision",null,"F40",null,20658.756281480728,16276.525096394451,2910.0073558832864,163.00318954847853,9.0376528055844183,0.15605941268091508,820.87251070161324,479.1544167346363,0,0,0]
[535]
[536,null,"908","Customer Assistance",null,"F40",null,570553.46668870305,449525.0194571687,80368.574098393481,4501.8215816588454,249.60186705806282,4.3100483737405817,22670.854445875459,13233.285190174834,0,0,0]
[537]
[538,null,"909","Informational & Instructional Adv",null,"F40",null,311648.15496519883,245539.90310071598,43898.984577748284,2458.9884591341342,136.33772448350689,2.3542379494819108,12383.291614274851,7228.2952508926282,0,0,0]
[539]
[540,null,"910","Misc. Customer Service",null,"F40",null,8169.3380715107123,6436.4201953954298,1150.7388710570347,64.458292842623024,3.573866700191521,6.1712432445639065E-2,324.60739466406147,189.47773841892717,0,0,0]
[541]
[542,null,"TOTAL CUSTOMER SERVICE EXPENSE",null,null,null,null,911029.71600689332,717777.86784967466,128328.30490308208,7188.2715231840821,398.55111104734567,6.8820581683490465,36199.625965515988,21130.212596221023,0,0,0]
[543]
[544]
[545,null,null,null,null,null,null,"SALES EXPENSE"]
[546]
[547]
[548,null,"911","Supervision",null,"F40",null,0,0,0,0,0,0,0,0,0,0,0]
[549]
[550,null,"912","Demonstration & Selling Expense",null,"F40",null,0,0,0,0,0,0,0,0,0,0,0]
[551]
[552,null,"913","Advertising Expense",null,"F40",null,0,0,0,0,0,0,0,0,0,0,0]
[553]
[554,null,"916","Misc. Sales Expense",null,"F40",null,0,0,0,0,0,0,0,0,0,0,0]
[555]
[556,null,"TOTAL SALES EXPENSE",null,null,null,null,0,0,0,0,0,0,0,0,0,0,0]
[557]
[558]
[559,null,null,null,null,null,null,"ADMINISTRATION & GENERAL EXPENSE"]
[560]
[561]
[562,null,"920","Administrative & General Salaries",null,"F102R",null,0,0,0,0,0,0,0,0,0,0,0]
[563,null,null,null,"Customer - System","F42",null,0,0,0,0,0,0,0,0,0,0,0]
[564,null,null,null,"Administrative & General Salaries",null,null,0,0,0,0,0,0,0,0,0,0,0]
[565]
[566,null,"921","Office Supplies & expenses",null,"F102R",null,0,0,0,0,0,0,0,0,0,0,0]
[567,null,null,null,"Customer - System","F42",null,4927.3228122879218,3975.70322160363,675.25834129831242,41.009605615513223,8.4107145639263656,0.14523363569157269,120.29090233347966,106.50479323736828,0,0,0]
[568,null,null,null,"Office Supplies & expenses",null,null,4927.3228122879218,3975.70322160363,675.25834129831242,41.009605615513223,8.4107145639263656,0.14523363569157269,120.29090233347966,106.50479323736828,0,0,0]
[569]
[570,null,"923","Outside Services",null,"F102R",null,0,0,0,0,0,0,0,0,0,0,0]
[571,null,null,null,"Customer - System","F42",null,0,0,0,0,0,0,0,0,0,0,0]
[572,null,null,null,"Outside Services",null,null,0,0,0,0,0,0,0,0,0,0,0]
[573]
[574,null,"924","Property Insurance",null,"F102R",null,0,0,0,0,0,0,0,0,0,0,0]
[575]
[576,null,"925","Injuries & Damages",null,"F102R",null,0,0,0,0,0,0,0,0,0,0,0]
[577]
[578,null,"926","Employee Pensions & Benefits",null,"F138R",null,0,0,0,0,0,0,0,0,0,0,0]
[579]
[580,null,"927","Franchise Requirements",null,"F102",null,0,0,0,0,0,0,0,0,0,0,0]
[581]
[582,null,"928","Regulatory Commission Expense",null,"F141",null,0,0,0,0,0,0,0,0,0,0,0]
[583]
[584,null,"929","Duplicate Charges",null,"F138R",null,-63277.003252778224,-51947.772787000111,-7042.4279944129548,-1299.4931342823986,-437.56092608986847,-365.15938431647908,-1346.3246434113921,-838.26438326502216,0,0,0]
[585]
[586,null,"930","Misc General Expenses",null,"F138R",null,110655.90052051704,90843.865579685487,12315.472786528479,2272.4935695802646,765.1863365849257,638.57386456245388,2354.3903495953018,1465.9180339801287,0,0,0]
[587]
[588,null,"931","Rents",null,"F102R",null,0,0,0,0,0,0,0,0,0,0,0]
[589]
[590,null,"935","Maintenance of General Plant",null,"F108",null,40733.669300088586,19343.058666683279,5668.0026875773019,7790.4456656626735,3005.148970793975,3112.7687783294227,1584.0010199358298,230.24351110610021,0,0,0]
[591]
[592,null,"TOTAL ADMINISTRATIVE & GEN EXPENSE",null,null,null,null,93039.889380115317,62214.85468097229,11616.305820991138,8804.4557065760528,3341.1850958529585,3386.3284922110893,2712.3576284532191,964.40195505857503,0,0,0]
[593]
[594]
[595,null,"TOTAL O & M EXPENSE",null,null,null,null,8378177.3564783791,6863966.147019322,933712.50248767936,178952.83033914602,60632.969417611501,51198.259224410591,178992.58855920116,110722.05943100933,0,0,0]
[596]
[597,null,"Retail - Total -  Unbundled",null,null,null,null,"DEPRECIATION EXPENSE"]
[598]
[599,null,"A",null,"B","C",null,"D","E","F","G","H","I","J","K","S","T"]
[600,null,null,null,null,null,null,"Washington",null,"Small General","Large General","Large General","Large General","Agricultural","Street & Area"]
[601,null,"FERC",null,null,"COS",null,"Jurisdiction","Residential","Service","Service <1,000 kW","Service >1,000 kW","Dedicated Facilities","Pumping","Lighting","-","-"]
[602,null,"ACCT",null,"DESCRIPTION ","Factor",null,"Normalized","Schedule 16","Schedule 24","Schedule 36","Schedule 48T","Schedule 48T","Schedule 40","Sch. 15,51-54,57","-","-"]
[603,null,"403SP","Steam Depreciation",null,"F10",null,0,0,0,0,0,0,0,0,0,0,0]
[604,null,null,null,"JBG","F10",null,0,0,0,0,0,0,0,0,0,0,0]
[605,null,null,null,"Total 403SP",null,null,0,0,0,0,0,0,0,0,0,0,0]
[606]
[607,null,"403NP","Nuclear Depreciation",null,"F10",null,0,0,0,0,0,0,0,0,0,0,0]
[608]
[609,null,"403HP","Hydro Depreciation",null,"F10",null,0,0,0,0,0,0,0,0,0,0,0]
[610]
[611,null,"403OP","Other Production Depreciation",null,"F10",null,0,0,0,0,0,0,0,0,0,0,0]
[612,null,null,null,"CAGE","F10",null,0,0,0,0,0,0,0,0,0,0,0]
[613,null,null,null,"CAEE","F10",null,0,0,0,0,0,0,0,0,0,0,0]
[614,null,null,null,"Total 403OP",null,null,0,0,0,0,0,0,0,0,0,0,0]
[615]
[616,null,"403TP","Transmission Depreciation",null,"F106",null,0,0,0,0,0,0,0,0,0,0,0]
[617]
[618,null,"403","Distribution Depreciation"]
[619,null,null,null,"Land Rights","F118",null,0,0,0,0,0,0,0,0,0,0,0]
[620,null,null,null,"Structures","F119",null,0,0,0,0,0,0,0,0,0,0,0]
[621,null,null,null,"Station Equip","F120",null,0,0,0,0,0,0,0,0,0,0,0]
[622,null,null,null,"Poles & Towers","F121",null,0,0,0,0,0,0,0,0,0,0,0]
[623,null,null,null,"OH Conductors","F122",null,0,0,0,0,0,0,0,0,0,0,0]
[624,null,null,null,"UG Conduit","F123",null,0,0,0,0,0,0,0,0,0,0,0]
[625,null,null,null,"UG Conductor","F124",null,0,0,0,0,0,0,0,0,0,0,0]
[626,null,null,null,"Line Transformer","F125",null,0,0,0,0,0,0,0,0,0,0,0]
[627,null,null,null,"Services","F126",null,0,0,0,0,0,0,0,0,0,0,0]
[628,null,null,null,"Meters","F127",null,0,0,0,0,0,0,0,0,0,0,0]
[629,null,null,null,"Inst Cust Premises","F128",null,0,0,0,0,0,0,0,0,0,0,0]
[630,null,null,null,"Leased Property","F129",null,0,0,0,0,0,0,0,0,0,0,0]
[631,null,null,null,"Street Lighting","F130",null,0,0,0,0,0,0,0,0,0,0,0]
[632,null,null,"Total Distribution Expense",null,null,null,0,0,0,0,0,0,0,0,0,0,0]
[633]
[634,null,"403GP","General Depreciation"]
[635,null,null,null,"Situs","F107R",null,0,0,0,0,0,0,0,0,0,0,0]
[636,null,null,null,"System Generation","F105R",null,0,0,0,0,0,0,0,0,0,0,0]
[637,null,null,null,"System Overheads","F102R",null,0,0,0,0,0,0,0,0,0,0,0]
[638,null,null,null,"Customer - System","F42",null,120344.21412182611,97101.995954541359,16492.41129688028,1001.6126296692452,205.42206649714637,3.5471651477290309,2937.9674640408039,2601.2575450495383,0,0,0]
[639,null,null,null,"Energy","F10",null,0,0,0,0,0,0,0,0,0,0,0]
[640,null,null,null,"CAEE","F105R",null,0,0,0,0,0,0,0,0,0,0,0]
[641,null,null,null,"CAEE","F105R",null,0,0,0,0,0,0,0,0,0,0,0]
[642,null,null,"Total General Expense",null,null,null,120344.21412182611,97101.995954541359,16492.41129688028,1001.6126296692452,205.42206649714637,3.5471651477290309,2937.9674640408039,2601.2575450495383,0,0,0]
[643]
[644,null,"403GV0","General Vehicles",null,"F105R",null,0,0,0,0,0,0,0,0,0,0,0]
[645]
[646,null,"403MP","Mining Depreciation",null,"F10",null,0,0,0,0,0,0,0,0,0,0,0]
[647]
[648,null,"403EP","Experimental Plant Depreciation",null,"F10",null,0,0,0,0,0,0,0,0,0,0,0]
[649]
[650]
[651,null,"TOTAL DEPRECIATION EXPENSE",null,null,null,null,120344.21412182611,97101.995954541359,16492.41129688028,1001.6126296692452,205.42206649714637,3.5471651477290309,2937.9674640408039,2601.2575450495383,0,0,0]
[652]
[653,null,null,null,null,null,null,"AMORTIZATION EXPENSE"]
[654]
[655]
[656,null,"404GP","Amort of LT Plant - Cap. Lease Gen"]
[657,null,null,"Division",null,"F10",null,0,0,0,0,0,0,0,0,0,0,0]
[658,null,null,"System Overheads",null,"F102R",null,0,0,0,0,0,0,0,0,0,0,0]
[659,null,null,"Customer - System",null,"F42",null,18944.613261818769,15285.818048944713,2596.2390967791621,157.67408550300834,32.33758792335869,0.55839553558845445,462.49549916637824,409.49054796656009,0,0,0]
[660,null,null,"Total Amort. Cap. Lease General",null,null,null,18944.613261818769,15285.818048944713,2596.2390967791621,157.67408550300834,32.33758792335869,0.55839553558845445,462.49549916637824,409.49054796656009,0,0,0]
[661]
[662,null,"404SP","Amort of LT Plant - Cap Lease Steam",null,"F10",null,0,0,0,0,0,0,0,0,0,0,0]
[663]
[664,null,"404IP","Amort of LT Plant - Intangible Plant"]
[665,null,null,null,"Situs","F107R",null,0,0,0,0,0,0,0,0,0,0,0]
[666,null,null,null,"System Generation","F105R",null,0,0,0,0,0,0,0,0,0,0,0]
[667,null,null,null,"System Overheads","F102R",null,0,0,0,0,0,0,0,0,0,0,0]
[668,null,null,null,"Customer - System","F42",null,416887.11970068014,336373.22497030726,57131.735768495215,3469.7090116516483,711.60723637502508,12.287815183556864,10177.479680231238,9011.0752184361754,0,0,0]
[669,null,null,null,"Energy","F10",null,0,0,0,0,0,0,0,0,0,0,0]
[670,null,null,null,"CAEW","F105R",null,0,0,0,0,0,0,0,0,0,0,0]
[671,null,null,null,"CAEE","F105R",null,0,0,0,0,0,0,0,0,0,0,0]
[672,null,null,"Total Amort. Intangible Plant",null,null,null,416887.11970068014,336373.22497030726,57131.735768495215,3469.7090116516483,711.60723637502508,12.287815183556864,10177.479680231238,9011.0752184361754,0,0,0]
[673]
[674,null,"Retail - Total -  Unbundled",null,null,null,null,"AMORTIZATION EXPENSE (continued)"]
[675]
[676]
[677,null,"A",null,"B","C",null,"D","E","F","G","H","I","J","K","S","T"]
[678,null,null,null,null,null,null,"Washington",null,"Small General","Large General","Large General","Large General","Agricultural","Street & Area"]
[679,null,"FERC",null,null,"COS",null,"Jurisdiction","Residential","Service","Service <1,000 kW","Service >1,000 kW","Dedicated Facilities","Pumping","Lighting","-","-"]
[680,null,"ACCT",null,"DESCRIPTION ","Factor",null,"Normalized","Schedule 16","Schedule 24","Schedule 36","Schedule 48T","Schedule 48T","Schedule 40","Sch. 15,51-54,57","-","-"]
[681,null,"404MP",null,"Amort of LT Plant - Mining Plant","F10",null,0,0,0,0,0,0,0,0,0,0,0]
[682]
[683,null,"404OP",null,"Amort of LT Plant - Other Plant","F30",null,0,0,0,0,0,0,0,0,0,0,0]
[684]
[685,null,"404HP",null,"Amort of Other Electric Plant","F110",null,0,0,0,0,0,0,0,0,0,0,0]
[686]
[687,null,"405",null,"Amort of Other Electric Plant","F110",null,0,0,0,0,0,0,0,0,0,0,0]
[688]
[689,null,"406",null,"Amort of Plant Acquisition Adj","F10",null,0,0,0,0,0,0,0,0,0,0,0]
[690]
[691,null,"407",null,"Amort of Prop Losses, Unrec Plant,","F110",null,0,0,0,0,0,0,0,0,0,0,0]
[692]
[693]
[694,null,"TOTAL AMORTIZATION EXPENSE",null,null,null,null,435831.73296249891,351659.04301925196,59727.97486527438,3627.3830971546568,743.94482429838376,12.846210719145319,10639.975179397616,9420.5657664027349,0,0,0]
[695]
[696]
[697,null,null,null,null,null,null,"TAX OTHER THAN INCOME"]
[698]
[699]
[700,null,"408","Taxes Other Than Income",null,"F101R",null,53600.277387330556,48684.9776101444,3302.0228181684165,2160.2453133764357,-143.87484834976297,-29.636077560336823,828.31249111951115,-1201.7699195681569,0,0,0]
[701,null,null,null,"Customer - System","F101R",null,77620.742193281403,70502.696627012716,4781.793572321435,3128.3391190708844,-208.3510208567335,-42.917209538074772,1199.5130149057666,-1740.3319096346593,0,0,0]
[702,null,null,"Total Taxes Other Than Income",null,null,null,131221.01958061196,119187.67423715712,8083.816390489852,5288.5844324473201,-352.22586920649644,-72.553287098411602,2027.8255060252777,-2942.1018292028161,0,0,0]
[703]
[704]
[705,null,null,null,null,null,null,"DEFERRED  ITC"]
[706]
[707]
[708,null,"41140","Deferred I T C - Federal",null,"F101R",null,0,0,0,0,0,0,0,0,0,0,0]
[709]
[710,null,"41141","Deferred I T C - Idaho",null,"F101R",null,0,0,0,0,0,0,0,0,0,0,0]
[711]
[712,null,"TOTAL DEFERRED ITC",null,null,null,null,0,0,0,0,0,0,0,0,0,0,0]
[713]
[714]
[715,null,null,null,null,null,null,"DEFERRED INCOME TAXES"]
[716]
[717]
[718,null,"41010","Deferred Income Tax - Federal-DR",null,"F101R",null,174824.93660116475,158792.9865104474,10770.017581631824,7045.947677189949,-469.26830358521374,-96.662286710809894,2701.6591294758837,-3919.7437072844491,0,0,0]
[719]
[720,null,"41011","Deferred Income Tax - State-DR",null,"F101R",null,0,0,0,0,0,0,0,0,0,0,0]
[721]
[722,null,"41110","Deferred Income Tax - Federal-CR",null,"F101R",null,-165638.61212586469,-150449.07444134273,-10204.097879139581,-6675.7123843477348,444.61020282158006,91.583084924649668,-2559.6981605916726,3713.7774518109686,0,0,0]
[723]
[724,null,"41111","Deferred Income Tax - State-CR",null,"F101R",null,0,0,0,0,0,0,0,0,0,0,0]
[725]
[726,null,"TOTAL DEFERRED INCOME TAXES",null,null,null,null,9186.3244753000617,8343.9120691046701,565.91970249224323,370.23529284221422,-24.658100763633684,-5.0792017861602261,141.96096888421107,-205.96625547348049,0,0,0]
[727]
[728]
[729,null,null,null,null,null,null,"INCOME TAXES"]
[730]
[731]
[732,null,"40911","State Income Taxes",null,"F101R",null,0,0,0,0,0,0,0,0,0,0,0]
[733]
[734,null,"40910","Federal Income Tax",null,"F101R",null,181641.41151786022,164984.37104939891,11189.943686710552,7320.6712180054301,-487.56521066710388,-100.43117726821262,2806.997601478573,-4072.5756497980856,0,0,0]
[735]
[736]
[737,null,"TOTAL OPERATING EXPENSES",null,null,null,null,9263177.3464092035,7611096.2283897791,1030037.0439001379,196905.55788968221,60847.443424863181,51177.31378025192,197590.52001650227,115523.23900798721,0,0,0]
[738]
[739]
[740,null,"Retail - Total -  Unbundled",null,null,null,null,"STEAM PRODUCTION PLANT"]
[741]
[742,null,"A",null,"B","C",null,"D","E","F","G","H","I","J","K","S","T"]
[743,null,null,null,null,null,null,"Washington",null,"Small General","Large General","Large General","Large General","Agricultural","Street & Area"]
[744,null,"FERC",null,null,"COS",null,"Jurisdiction","Residential","Service","Service <1,000 kW","Service >1,000 kW","Dedicated Facilities","Pumping","Lighting","-","-"]
[745,null,"ACCT",null,"DESCRIPTION ","Factor",null,"Normalized","Schedule 16","Schedule 24","Schedule 36","Schedule 48T","Schedule 48T","Schedule 40","Sch. 15,51-54,57","-","-"]
[746,null,"310","Land and Land Rights",null,"F10",null,0,0,0,0,0,0,0,0,0,0,0]
[747,null,null,null,"JBG","F10",null,0,0,0,0,0,0,0,0,0,0,0]
[748,null,null,null,"Total 310",null,null,0,0,0,0,0,0,0,0,0,0,0]
[749]
[750,null,"311","Structures and Improvements",null,"F10",null,0,0,0,0,0,0,0,0,0,0,0]
[751,null,null,null,"JBG","F10",null,0,0,0,0,0,0,0,0,0,0,0]
[752,null,null,null,"Total 311",null,null,0,0,0,0,0,0,0,0,0,0,0]
[753]
[754,null,"312","Boiler Plant Equipment",null,"F10",null,0,0,0,0,0,0,0,0,0,0,0]
[755,null,null,null,"JBG","F10",null,0,0,0,0,0,0,0,0,0,0,0]
[756,null,null,null,"Total 312",null,null,0,0,0,0,0,0,0,0,0,0,0]
[757]
[758,null,"314","Turbogenerator Units",null,"F10",null,0,0,0,0,0,0,0,0,0,0,0]
[759,null,null,null,"JBG","F10",null,0,0,0,0,0,0,0,0,0,0,0]
[760,null,null,null,"Total 314",null,null,0,0,0,0,0,0,0,0,0,0,0]
[761]
[762,null,"315","Accessory Electric Equipment",null,"F10",null,0,0,0,0,0,0,0,0,0,0,0]
[763,null,null,null,"JBG","F10",null,0,0,0,0,0,0,0,0,0,0,0]
[764,null,null,null,"Total 315",null,null,0,0,0,0,0,0,0,0,0,0,0]
[765]
[766,null,"316","Misc Power Plant Equipment",null,"F10",null,0,0,0,0,0,0,0,0,0,0,0]
[767,null,null,null,"JBG","F10",null,0,0,0,0,0,0,0,0,0,0,0]
[768,null,null,null,"Total 316",null,null,0,0,0,0,0,0,0,0,0,0,0]
[769]
[770,null,"SP","Unclassified Steam Plant - Acct 300",null,"F10",null,0,0,0,0,0,0,0,0,0,0,0]
[771]
[772]
[773]
[774,null,"Total Steam Production Plant",null,null,null,null,0,0,0,0,0,0,0,0,0,0,0]
[775]
[776]
[777,null,null,null,null,null,null,"NUCLEAR PRODUCTION"]
[778]
[779]
[780,null,"320","Land and Land Rights",null,"F10",null,0,0,0,0,0,0,0,0,0,0,0]
[781]
[782,null,"321","Structures and Improvements",null,"F10",null,0,0,0,0,0,0,0,0,0,0,0]
[783]
[784,null,"322","Reactor Plant Equipment",null,"F10",null,0,0,0,0,0,0,0,0,0,0,0]
[785]
[786,null,"323","Turbogenerator Units",null,"F10",null,0,0,0,0,0,0,0,0,0,0,0]
[787]
[788,null,"324","Land and Land Rights",null,"F10",null,0,0,0,0,0,0,0,0,0,0,0]
[789]
[790,null,"325","Misc. Power Plant Equipment",null,"F10",null,0,0,0,0,0,0,0,0,0,0,0]
[791]
[792,null,"NP","Unclassified Nuclear Plt - Acct 300",null,"F10",null,0,0,0,0,0,0,0,0,0,0,0]
[793]
[794,null,"Total Nuclear Production Plant",null,null,null,null,0,0,0,0,0,0,0,0,0,0,0]
[795]
[796]
[797,null,null,null,null,null,null,"HYDRAULIC PRODUCTION PLANT"]
[798]
[799]
[800,null,"330","Land and Land Rights",null,"F10",null,0,0,0,0,0,0,0,0,0,0,0]
[801]
[802,null,"331","Structures and Improvements",null,"F10",null,0,0,0,0,0,0,0,0,0,0,0]
[803]
[804,null,"332","Reservoirs, Dams & Waterways",null,"F10",null,0,0,0,0,0,0,0,0,0,0,0]
[805]
[806,null,"333","Water Wheel, Turbines, & Generators",null,"F10",null,0,0,0,0,0,0,0,0,0,0,0]
[807]
[808,null,"334","Accessory Electric Equipment",null,"F10",null,0,0,0,0,0,0,0,0,0,0,0]
[809]
[810,null,"335","Misc. Power Plant Equipment",null,"F10",null,0,0,0,0,0,0,0,0,0,0,0]
[811]
[812,null,"336","Roads, Railroads & Bridges",null,"F10",null,0,0,0,0,0,0,0,0,0,0,0]
[813]
[814,null,"HP","Unclassified Hydro Plant - Acct 300",null,"F10",null,0,0,0,0,0,0,0,0,0,0,0]
[815]
[816,null,"Total Hydraulic Plant",null,null,null,null,0,0,0,0,0,0,0,0,0,0,0]
[817]
[818,null,"Retail - Total -  Unbundled",null,null,null,null,"OTHER PRODUCTION PLANT"]
[819,null,"A",null,"B","C",null,"D","E","F","G","H","I","J","K","S","T"]
[820,null,null,null,null,null,null,"Washington",null,"Small General","Large General","Large General","Large General","Agricultural","Street & Area"]
[821,null,"FERC",null,null,"COS",null,"Jurisdiction","Residential","Service","Service <1,000 kW","Service >1,000 kW","Dedicated Facilities","Pumping","Lighting","-","-"]
[822,null,"ACCT",null,"DESCRIPTION ","Factor",null,"Normalized","Schedule 16","Schedule 24","Schedule 36","Schedule 48T","Schedule 48T","Schedule 40","Sch. 15,51-54,57","-","-"]
[823,null,"340","Land and Land Rights"]
[824,null,null,null,"SG","F10",null,0,0,0,0,0,0,0,0,0,0,0]
[825,null,null,null,"CAGE","F10",null,0,0,0,0,0,0,0,0,0,0,0]
[826,null,null,null,"Total 340",null,null,0,0,0,0,0,0,0,0,0,0,0]
[827]
[828,null,"341","Structures and Improvements"]
[829,null,null,null,"SG","F10",null,0,0,0,0,0,0,0,0,0,0,0]
[830,null,null,null,"CAGE","F10",null,0,0,0,0,0,0,0,0,0,0,0]
[831,null,null,null,"Total 341",null,null,0,0,0,0,0,0,0,0,0,0,0]
[832]
[833,null,"342","Fuel Holders, Producers & Access"]
[834,null,null,null,"SG","F10",null,0,0,0,0,0,0,0,0,0,0,0]
[835,null,null,null,"CAGE","F10",null,0,0,0,0,0,0,0,0,0,0,0]
[836,null,null,null,"Total 342",null,null,0,0,0,0,0,0,0,0,0,0,0]
[837]
[838,null,"343","Prime Movers",null,"F10",null,0,0,0,0,0,0,0,0,0,0,0]
[839,null,null,null,"CAGE","F10",null,0,0,0,0,0,0,0,0,0,0,0]
[840,null,null,null,"Total 343",null,null,0,0,0,0,0,0,0,0,0,0,0]
[841]
[842,null,"344","Generators"]
[843,null,null,null,"SG","F10",null,0,0,0,0,0,0,0,0,0,0,0]
[844,null,null,null,"CAGE","F10",null,0,0,0,0,0,0,0,0,0,0,0]
[845,null,null,null,"Total 344",null,null,0,0,0,0,0,0,0,0,0,0,0]
[846]
[847,null,"345","Accessory Electric Plant"]
[848,null,null,null,"SG","F10",null,0,0,0,0,0,0,0,0,0,0,0]
[849,null,null,null,"CAGE","F10",null,0,0,0,0,0,0,0,0,0,0,0]
[850,null,null,null,"Total 345",null,null,0,0,0,0,0,0,0,0,0,0,0]
[851]
[852,null,"346","Misc. Power Plant Equipment",null,"F10",null,0,0,0,0,0,0,0,0,0,0,0]
[853]
[854,null,"OP","Unclassified Other Prod - Acct 300",null,"F10",null,0,0,0,0,0,0,0,0,0,0,0]
[855]
[856,null,"Total Other Production Plant",null,null,null,null,0,0,0,0,0,0,0,0,0,0,0]
[857]
[858,null,"Experimental Plant"]
[859,null,"103","Experimental Plant",null,"F10",null,0,0,0,0,0,0,0,0,0,0,0]
[860]
[861,null,"TOTAL PRODUCTION PLANT",null,null,null,null,0,0,0,0,0,0,0,0,0,0,0]
[862]
[863,null,null,null,null,null,null,"TRANSMISSION PLANT"]
[864,null,"350","Land and Land Rights"]
[865,null,null,null,"Demand","F10",null,0,0,0,0,0,0,0,0,0,0,0]
[866,null,null,null,"Direct Assigned","A",0,0,0,0,0,0,0,0,0,0,0,0]
[867,null,null,null,null,null,null,0,0,0,0,0,0,0,0,0,0,0]
[868,null,"352","Structures and Improvements"]
[869,null,null,null,"Demand","F10",null,0,0,0,0,0,0,0,0,0,0,0]
[870,null,null,null,"Direct Assigned","A",0,0,0,0,0,0,0,0,0,0,0,0]
[871,null,null,null,null,null,null,0,0,0,0,0,0,0,0,0,0,0]
[872,null,"353","Station Equipment"]
[873,null,null,null,"Demand","F10",null,0,0,0,0,0,0,0,0,0,0,0]
[874,null,null,null,"Direct Assigned","A",0,0,0,0,0,0,0,0,0,0,0,0]
[875,null,null,null,null,null,null,0,0,0,0,0,0,0,0,0,0,0]
[876,null,"354","Towers and Fixtures"]
[877,null,null,null,"Demand","F10",null,0,0,0,0,0,0,0,0,0,0,0]
[878,null,null,null,"Direct Assigned","A",0,0,0,0,0,0,0,0,0,0,0,0]
[879,null,null,null,null,null,null,0,0,0,0,0,0,0,0,0,0,0]
[880,null,"355","Poles and Fixtures"]
[881,null,null,null,"Demand","F10",null,0,0,0,0,0,0,0,0,0,0,0]
[882,null,null,null,"Direct Assigned","A",0,0,0,0,0,0,0,0,0,0,0,0]
[883,null,null,null,null,null,null,0,0,0,0,0,0,0,0,0,0,0]
[884,null,"356","Overhead Conductors"]
[885,null,null,null,"Demand","F10",null,0,0,0,0,0,0,0,0,0,0,0]
[886,null,null,null,"Direct Assigned","A",0,0,0,0,0,0,0,0,0,0,0,0]
[887,null,null,null,null,null,null,0,0,0,0,0,0,0,0,0,0,0]
[888,null,"357","Underground Conduit"]
[889,null,null,null,"Demand","F10",null,0,0,0,0,0,0,0,0,0,0,0]
[890,null,null,null,"Direct Assigned","A",0,0,0,0,0,0,0,0,0,0,0,0]
[891,null,null,null,null,null,null,0,0,0,0,0,0,0,0,0,0,0]
[892,null,"358","Underground Conductors "]
[893,null,null,null,"Demand","F10",null,0,0,0,0,0,0,0,0,0,0,0]
[894,null,null,null,"Direct Assigned","A",0,0,0,0,0,0,0,0,0,0,0,0]
[895,null,null,null,null,null,null,0,0,0,0,0,0,0,0,0,0,0]
[896,null,"359","Roads and Trails"]
[897,null,null,null,"Demand","F10",null,0,0,0,0,0,0,0,0,0,0,0]
[898,null,null,null,"Direct Assigned","A",0,0,0,0,0,0,0,0,0,0,0,0]
[899,null,null,null,null,null,null,0,0,0,0,0,0,0,0,0,0,0]
[900]
[901,null,"TP","Unclassified Trans Plant - Acct 300",null,"F10",null,0,0,0,0,0,0,0,0,0,0,0]
[902,null,"TS0","Unclassified Trans Sub - Acct 300",null,"F10",null,0,0,0,0,0,0,0,0,0,0,0]
[903]
[904,null,"TOTAL TRANSMISSION PLANT",null,null,null,null,0,0,0,0,0,0,0,0,0,0,0]
[905,null,"Retail - Total -  Unbundled",null,null,null,null,"DISTRIBUTION PLANT"]
[906,null,"A",null,"B","C",null,"D","E","F","G","H","I","J","K","S","T"]
[907,null,null,null,null,null,null,"Washington",null,"Small General","Large General","Large General","Large General","Agricultural","Street & Area"]
[908,null,"FERC",null,null,"COS",null,"Jurisdiction","Residential","Service","Service <1,000 kW","Service >1,000 kW","Dedicated Facilities","Pumping","Lighting","-","-"]
[909,null,"ACCT",null,"DESCRIPTION ","Factor",null,"Normalized","Schedule 16","Schedule 24","Schedule 36","Schedule 48T","Schedule 48T","Schedule 40","Sch. 15,51-54,57","-","-"]
[910]
[911,null,"360","Land and Land Rights"]
[912,null,null,null,"Demand Primary","F20A",null,0,0,0,0,0,0,0,0,0,0]
[913,null,null,null,"Assigned","A",0,0,0,0,0,0,0,0,0,0,0,0]
[914,null,null,null,null,null,null,0,0,0,0,0,0,0,0,0,0,0]
[915,null,"361","Structures and Improvements"]
[916,null,null,null,"Demand Primary","F20",null,0,0,0,0,0,0,0,0,0,0,0]
[917,null,null,null,"Assigned","A",0,0,0,0,0,0,0,0,0,0,0,0]
[918,null,null,null,null,null,null,0,0,0,0,0,0,0,0,0,0,0]
[919,null,"362","Station Equipment"]
[920,null,null,null,"Demand Primary","F20A",null,0,0,0,0,0,0,0,0,0,0,0]
[921,null,null,null,"Assigned","A",0,0,0,0,0,0,0,0,0,0,0,0]
[922,null,null,null,null,null,null,0,0,0,0,0,0,0,0,0,0,0]
[923,null,"364","Poles, Towers & Fixtures"]
[924,null,null,null,"Demand Primary","F20A",0,0,0,0,0,0,0,0,0,0,0,0]
[925,null,null,null,"Demand Secondary","F22",0,0,0,0,0,0,0,0,0,0,0,0]
[926,null,null,null,"Assigned","A",0,0,0,0,0,0,0,0,0,0,0,0]
[927,null,null,null,null,null,null,0,0,0,0,0,0,0,0,0,0,0]
[928,null,"365","Overhead Conductors"]
[929,null,null,null,"Demand Primary","F20A",0,0,0,0,0,0,0,0,0,0,0,0]
[930,null,null,null,"Demand Secondary","F22",0,0,0,0,0,0,0,0,0,0,0,0]
[931,null,null,null,"Assigned","A",0,0,0,0,0,0,0,0,0,0,0,0]
[932,null,null,null,null,null,null,0,0,0,0,0,0,0,0,0,0,0]
[933,null,"366","Underground Conduit"]
[934,null,null,null,"Demand Primary","F20A",0,0,0,0,0,0,0,0,0,0,0,0]
[935,null,null,null,"Demand Secondary","F22",0,0,0,0,0,0,0,0,0,0,0,0]
[936,null,null,null,"Assigned","A",0,0,0,0,0,0,0,0,0,0,0,0]
[937,null,null,null,null,null,null,0,0,0,0,0,0,0,0,0,0,0]
[938,null,"367","Underground Conductors "]
[939,null,null,null,"Demand Primary","F20A",0,0,0,0,0,0,0,0,0,0,0,0]
[940,null,null,null,"Demand Secondary","F22",0,0,0,0,0,0,0,0,0,0,0,0]
[941,null,null,null,"Assigned","A",0,0,0,0,0,0,0,0,0,0,0,0]
[942,null,null,null,null,null,null,0,0,0,0,0,0,0,0,0,0,0]
[943,null,"368","Line Transformers"]
[944,null,null,null,"Demand Secondary","F21",null,0,0,0,0,0,0,0,0,0,0,0]
[945,null,null,null,"Assigned","A",0,0,0,0,0,0,0,0,0,0,0,0]
[946,null,null,null,null,null,null,0,0,0,0,0,0,0,0,0,0,0]
[947,null,"369","Services"]
[948,null,null,null,"Customer","F70",null,0,0,0,0,0,0,0,0,0,0,0]
[949,null,null,null,"Assigned","A",0,0,0,0,0,0,0,0,0,0,0,0]
[950,null,null,null,null,null,null,0,0,0,0,0,0,0,0,0,0,0]
[951,null,"370","Meters"]
[952,null,null,null,"Customer","F60A",null,0,0,0,0,0,0,0,0,0,0,0]
[953,null,null,null,"Assigned","A",0,0,0,0,0,0,0,0,0,0,0,0]
[954,null,null,null,null,null,null,0,0,0,0,0,0,0,0,0,0,0]
[955,null,"371","Install on Customers' Premises"]
[956,null,null,null,"Demand Primary","F20",0,0,0,0,0,0,0,0,0,0,0,0]
[957,null,null,null,"Demand Secondary","F22",0,0,0,0,0,0,0,0,0,0,0,0]
[958,null,null,null,"Assigned","A",0,0,0,0,0,0,0,0,0,0,0,0]
[959,null,null,null,null,null,null,0,0,0,0,0,0,0,0,0,0,0]
[960,null,"372","Leased Property"]
[961,null,null,null,"Demand Primary","F20",0,0,0,0,0,0,0,0,0,0,0,0]
[962,null,null,null,"Demand Secondary","F22",0,0,0,0,0,0,0,0,0,0,0,0]
[963,null,null,null,"Assigned","A",0,0,0,0,0,0,0,0,0,0,0,0]
[964,null,null,null,null,null,null,0,0,0,0,0,0,0,0,0,0,0]
[965]
[966,null,"373","Street Lights",null,"A",0,0,0,0,0,0,0,0,0,0,0,0]
[967]
[968]
[969,null,"DP","Unclassified Dist Plant - Acct 300",null,"F22",0,0,0,0,0,0,0,0,0,0,0,0]
[970,null,"DS0","Unclassified Dist Sub  - Acct 300",null,"F20",0,0,0,0,0,0,0,0,0,0,0,0]
[971,null,"TOTAL DISTRIBUTION PLANT",null,null,null,null,0,0,0,0,0,0,0,0,0,0,0]
[972]
[973,null,"Retail - Total -  Unbundled",null,null,null,null,"GENERAL PLANT"]
[974]
[975,null,"A",null,"B","C",null,"D","E","F","G","H","I","J","K","S","T"]
[976,null,null,null,null,null,null,"Washington",null,"Small General","Large General","Large General","Large General","Agricultural","Street & Area"]
[977,null,"FERC",null,null,"COS",null,"Jurisdiction","Residential","Service","Service <1,000 kW","Service >1,000 kW","Dedicated Facilities","Pumping","Lighting","-","-"]
[978,null,"ACCT",null,"DESCRIPTION ","Factor",null,"Normalized","Schedule 16","Schedule 24","Schedule 36","Schedule 48T","Schedule 48T","Schedule 40","Sch. 15,51-54,57","-","-"]
[979,null,"389","Land and Land Rights"]
[980,null,null,null,"Situs","F107R",null,0,0,0,0,0,0,0,0,0,0,0]
[981,null,null,null,"System Generation","F105R",null,0,0,0,0,0,0,0,0,0,0,0]
[982,null,null,null,"System Overheads","F102R",null,0,0,0,0,0,0,0,0,0,0,0]
[983,null,null,null,"Customer - System","F42",null,78206.616385561385,63102.481521892027,10717.720772702183,650.90569801867423,133.49511539797351,2.3051526489162972,1909.2608322731824,1690.4472926284247,0,0,0]
[984,null,null,"Total Land & Land Rights",null,null,null,78206.616385561385,63102.481521892027,10717.720772702183,650.90569801867423,133.49511539797351,2.3051526489162972,1909.2608322731824,1690.4472926284247,0,0,0]
[985]
[986,null,"390","Structures and Improvements"]
[987,null,null,null,"Situs","F107R",null,0,0,0,0,0,0,0,0,0,0,0]
[988,null,null,null,"System Generation","F105R",null,0,0,0,0,0,0,0,0,0,0,0]
[989,null,null,null,"System Overheads","F102R",null,0,0,0,0,0,0,0,0,0,0,0]
[990,null,null,null,"Customer - System","F42",null,853641.7740140548,688776.94446555816,116986.19115154426,7104.7734891532891,1457.1274451860311,25.161229158577928,20839.986170506803,18451.590062947667,0,0,0]
[991,null,null,"Total Structures and Improvements",null,null,null,853641.7740140548,688776.94446555816,116986.19115154426,7104.7734891532891,1457.1274451860311,25.161229158577928,20839.986170506803,18451.590062947667,0,0,0]
[992]
[993,null,"391","Office Furniture & Equipment"]
[994,null,null,null,"Situs","F107R",null,0,0,0,0,0,0,0,0,0,0,0]
[995,null,null,null,"System Generation","F105R",null,0,0,0,0,0,0,0,0,0,0,0]
[996,null,null,null,"System Overheads","F102R",null,0,0,0,0,0,0,0,0,0,0,0]
[997,null,null,null,"Customer - System","F42",null,598562.21153627359,482961.19482985104,82029.154882620205,4981.7722862070968,1021.7183045992674,17.642717857293395,14612.7199843415,12938.008530797186,0,0,0]
[998,null,null,null,"Energy","F10",null,0,0,0,0,0,0,0,0,0,0,0]
[999,null,null,null,"CAEE","F105R",null,0,0,0,0,0,0,0,0,0,0,0]
[1000,null,null,null,"CAEE","F105R",null,0,0,0,0,0,0,0,0,0,0,0]
[1001,null,null,"Total Office Furniture & Equipment",null,null,null,598562.21153627359,482961.19482985104,82029.154882620205,4981.7722862070968,1021.7183045992674,17.642717857293395,14612.7199843415,12938.008530797186,0,0,0]
[1002]
[1003,null,"392","Transportation Equipment"]
[1004,null,null,null,"Situs","F107R",null,0,0,0,0,0,0,0,0,0,0,0]
[1005,null,null,null,"System Generation","F105R",null,0,0,0,0,0,0,0,0,0,0,0]
[1006,null,null,null,"System Overheads","F102R",null,0,0,0,0,0,0,0,0,0,0,0]
[1007,null,null,null,"Customer - System","F42",null,0,0,0,0,0,0,0,0,0,0,0]
[1008,null,null,null,"Energy","F10",null,0,0,0,0,0,0,0,0,0,0,0]
[1009,null,null,null,"CAEE","F105R",null,0,0,0,0,0,0,0,0,0,0,0]
[1010,null,null,null,"CAEE","F105R",null,0,0,0,0,0,0,0,0,0,0,0]
[1011,null,null,"Total Transportation Equipment",null,null,null,0,0,0,0,0,0,0,0,0,0,0]
[1012]
[1013,null,"393","Stores Equipment"]
[1014,null,null,null,"Situs","F107R",null,0,0,0,0,0,0,0,0,0,0,0]
[1015,null,null,null,"System Generation","F105R",null,0,0,0,0,0,0,0,0,0,0,0]
[1016,null,null,null,"System Overheads","F102R",null,0,0,0,0,0,0,0,0,0,0,0]
[1017,null,null,null,"CAEE","F105R",null,0,0,0,0,0,0,0,0,0,0,0]
[1018,null,null,"Total Stores Equipment",null,null,null,0,0,0,0,0,0,0,0,0,0,0]
[1019]
[1020,null,"394","Tools, Shop & Garage Equipment"]
[1021,null,null,null,"Situs","F107R",null,0,0,0,0,0,0,0,0,0,0,0]
[1022,null,null,null,"System Generation","F105R",null,0,0,0,0,0,0,0,0,0,0,0]
[1023,null,null,null,"System Overheads","F102R",null,0,0,0,0,0,0,0,0,0,0,0]
[1024,null,null,null,"Energy","F10",null,0,0,0,0,0,0,0,0,0,0,0]
[1025,null,null,null,"CAEE","F105R",null,0,0,0,0,0,0,0,0,0,0,0]
[1026,null,null,null,"CAEE","F105R",null,0,0,0,0,0,0,0,0,0,0,0]
[1027,null,null,"Total Tools, Shop & Garage Equipment",null,null,null,0,0,0,0,0,0,0,0,0,0,0]
[1028]
[1029,null,"395","Laboratory Equipment"]
[1030,null,null,null,"Situs","F107R",null,0,0,0,0,0,0,0,0,0,0,0]
[1031,null,null,null,"System Generation","F105R",null,0,0,0,0,0,0,0,0,0,0,0]
[1032,null,null,null,"System Overheads","F102R",null,0,0,0,0,0,0,0,0,0,0,0]
[1033,null,null,null,"Energy","F10",null,0,0,0,0,0,0,0,0,0,0,0]
[1034,null,null,null,"CAEE","F105R",null,0,0,0,0,0,0,0,0,0,0,0]
[1035,null,null,null,"CAEE","F105R",null,0,0,0,0,0,0,0,0,0,0,0]
[1036,null,null,"Total Laboratory Equipment",null,null,null,0,0,0,0,0,0,0,0,0,0,0]
[1037]
[1038,null,"396","Power Operated Equipment"]
[1039,null,null,null,"Situs","F107R",null,0,0,0,0,0,0,0,0,0,0,0]
[1040,null,null,null,"System Generation","F105R",null,0,0,0,0,0,0,0,0,0,0,0]
[1041,null,null,null,"System Overheads","F102R",null,0,0,0,0,0,0,0,0,0,0,0]
[1042,null,null,null,"Energy","F10",null,0,0,0,0,0,0,0,0,0,0,0]
[1043,null,null,null,"CAEE","F30",null,0,0,0,0,0,0,0,0,0,0,0]
[1044,null,null,null,"CAEE","F105R",null,0,0,0,0,0,0,0,0,0,0,0]
[1045,null,null,"Total Power Operated Equipment",null,null,null,0,0,0,0,0,0,0,0,0,0,0]
[1046]
[1047,null,"397","Communication Equipment"]
[1048,null,null,null,"Situs","F107R",null,0,0,0,0,0,0,0,0,0,0,0]
[1049,null,null,null,"System Generation","F105R",null,0,0,0,0,0,0,0,0,0,0,0]
[1050,null,null,null,"System Overheads","F102R",null,0,0,0,0,0,0,0,0,0,0,0]
[1051,null,null,null,"Customer - System","F42",null,197863.12208726082,159649.58698405421,27115.885992196683,1646.7946005926437,337.74329509182996,5.8320474798920552,4830.4392468542947,4276.8399209912523,0,0,0]
[1052,null,null,null,"Energy","F10",null,0,0,0,0,0,0,0,0,0,0,0]
[1053,null,null,null,"CAEE","F105R",null,0,0,0,0,0,0,0,0,0,0,0]
[1054,null,null,null,"CAEE","F105R",null,0,0,0,0,0,0,0,0,0,0,0]
[1055,null,null,"Total Communication Equipment",null,null,null,197863.12208726082,159649.58698405421,27115.885992196683,1646.7946005926437,337.74329509182996,5.8320474798920552,4830.4392468542947,4276.8399209912523,0,0,0]
[1056]
[1057,null,"Retail - Total -  Unbundled",null,null,null,null,"GENERAL PLANT"]
[1058]
[1059,null,"A",null,"B","C",null,"D","E","F","G","H","I","J","K","S","T"]
[1060,null,null,null,null,null,null,"Washington",null,"Small General","Large General","Large General","Large General","Agricultural","Street & Area"]
[1061,null,"FERC",null,null,"COS",null,"Jurisdiction","Residential","Service","Service <1,000 kW","Service >1,000 kW","Dedicated Facilities","Pumping","Lighting","-","-"]
[1062,null,"ACCT",null,"DESCRIPTION ","Factor",null,"Normalized","Schedule 16","Schedule 24","Schedule 36","Schedule 48T","Schedule 48T","Schedule 40","Sch. 15,51-54,57","-","-"]
[1063,null,"398","Misc. Equipment"]
[1064,null,null,null,"Situs","F107R",null,0,0,0,0,0,0,0,0,0,0,0]
[1065,null,null,null,"System Generation","F105R",null,0,0,0,0,0,0,0,0,0,0,0]
[1066,null,null,null,"System Overheads","F102R",null,0,0,0,0,0,0,0,0,0,0,0]
[1067,null,null,null,"Customer - System","F42",null,14940.554147506919,12055.067532546276,2047.5081897543882,124.34870955450532,25.502842242888971,0.44037524650870014,364.74426544245694,322.94223271989415,0,0,0]
[1068,null,null,null,"Energy","F10",null,0,0,0,0,0,0,0,0,0,0,0]
[1069,null,null,null,"CAEE","F105R",null,0,0,0,0,0,0,0,0,0,0,0]
[1070,null,null,"Total Misc. Equipment",null,null,null,14940.554147506919,12055.067532546276,2047.5081897543882,124.34870955450532,25.502842242888971,0.44037524650870014,364.74426544245694,322.94223271989415,0,0,0]
[1071]
[1072,null,"399","Coal Mine",null,"F10",null,0,0,0,0,0,0,0,0,0,0,0]
[1073,null,"399L","WIDCO Capital Lease",null,"F10",null,0,0,0,0,0,0,0,0,0,0,0]
[1074,null,null,"Remove Capital Lease",null,"F10",null,0,0,0,0,0,0,0,0,0,0,0]
[1075]
[1076,null,"1011390","General Capital Lease",null,"F10",null,0,0,0,0,0,0,0,0,0,0,0]
[1077,null,null,"Remove Capital Lease",null,"F10",null,0,0,0,0,0,0,0,0,0,0,0]
[1078]
[1079,null,"1011392","General Vehicles Capital Lease",null,"F10",null,0,0,0,0,0,0,0,0,0,0,0]
[1080,null,null,"Remove Capital Lease",null,"F10",null,0,0,0,0,0,0,0,0,0,0,0]
[1081]
[1082,null,"GP","Unclassified Gen Plant - Acct 300",null,"F102R",null,0,0,0,0,0,0,0,0,0,0,0]
[1083,null,"399G","Unclassified Gen Veh - Acct 300",null,"F102R",null,0,0,0,0,0,0,0,0,0,0,0]
[1084]
[1085,null,"TOTAL GENERAL PLANT",null,null,null,null,1743214.2781706576,1406545.2753339019,238896.46098881774,14508.59478352621,2975.5870025179911,51.381522391188376,42557.15049941824,37679.828040084423,0,0,0]
[1086]
[1087]
[1088]
[1089,null,null,null,null,null,null,"INTANGIBLE PLANT"]
[1090]
[1091,null,"301","Organization"]
[1092,null,null,null,"Situs","F107R",null,0,0,0,0,0,0,0,0,0,0,0]
[1093,null,null,null,"System Generation","F105R",null,0,0,0,0,0,0,0,0,0,0,0]
[1094,null,null,null,"System Overheads","F102R",null,0,0,0,0,0,0,0,0,0,0,0]
[1095,null,null,"Total Organization",null,null,null,0,0,0,0,0,0,0,0,0,0,0]
[1096]
[1097,null,"302","Franchise & Consent"]
[1098,null,null,null,"Situs","F107R",null,0,0,0,0,0,0,0,0,0,0,0]
[1099,null,null,null,"System Generation","F105R",null,0,0,0,0,0,0,0,0,0,0,0]
[1100,null,null,"Total Franchise & Consent",null,null,null,0,0,0,0,0,0,0,0,0,0,0]
[1101]
[1102,null,"303","Miscellaneous Intangible Plant"]
[1103,null,null,null,"Situs","F107R",null,0,0,0,0,0,0,0,0,0,0,0]
[1104,null,null,null,"System Generation","F105R",null,0,0,0,0,0,0,0,0,0,0,0]
[1105,null,null,null,"System Overheads","F102R",null,0,0,0,0,0,0,0,0,0,0,0]
[1106,null,null,null,"Customer - System","F42",null,8509282.5923934299,6865874.9395811688,1166143.2116135592,70821.89182221888,14524.955996373323,250.81247872340421,207737.41040406682,183929.3704973195,0,0,0]
[1107,null,null,null,"Energy","F10",null,0,0,0,0,0,0,0,0,0,0,0]
[1108,null,null,null,"CAEE","F105R",null,0,0,0,0,0,0,0,0,0,0,0]
[1109,null,null,null,"CAEE","F105R",null,0,0,0,0,0,0,0,0,0,0,0]
[1110,null,null,"Total Miscellaneous Intangible Plant",null,null,null,8509282.5923934299,6865874.9395811688,1166143.2116135592,70821.89182221888,14524.955996373323,250.81247872340421,207737.41040406682,183929.3704973195,0,0,0]
[1111]
[1112,null,"IP","Unclass Intangible Plant - Acct 300",null,"F102R",null,0,0,0,0,0,0,0,0,0,0,0]
[1113]
[1114,null,"TOTAL INTANGIBLE PLANT",null,null,null,null,8509282.5923934299,6865874.9395811688,1166143.2116135592,70821.89182221888,14524.955996373323,250.81247872340421,207737.41040406682,183929.3704973195,0,0,0]
[1115]
[1116]
[1117,null,"TOTAL ELECTRIC PLANT IN SERVICE",null,null,null,null,10252496.870564088,8272420.2149150707,1405039.6726023769,85330.486605745085,17500.542998891313,302.1940011145926,250294.56090348505,221609.19853740392,0,0,0]
[1118]
[1119]
[1120,null,"Retail - Total -  Unbundled",null,null,null,null,"MISC RATE BASE"]
[1121]
[1122,null,"A",null,"B","C",null,"D","E","F","G","H","I","J","K","S","T"]
[1123,null,null,null,null,null,null,"Washington",null,"Small General","Large General","Large General","Large General","Agricultural","Street & Area"]
[1124,null,"FERC",null,null,"COS",null,"Jurisdiction","Residential","Service","Service <1,000 kW","Service >1,000 kW","Dedicated Facilities","Pumping","Lighting","-","-"]
[1125,null,"ACCT",null,"DESCRIPTION ","Factor",null,"Normalized","Schedule 16","Schedule 24","Schedule 36","Schedule 48T","Schedule 48T","Schedule 40","Sch. 15,51-54,57","-","-"]
[1126,null,"105","Plant Held For Future Use"]
[1127,null,null,null,"Production","F10",null,0,0,0,0,0,0,0,0,0,0,0]
[1128,null,null,null,"Transmission","F10",null,0,0,0,0,0,0,0,0,0,0,0]
[1129,null,null,null,"Distribution","F20",null,0,0,0,0,0,0,0,0,0,0,0]
[1130,null,null,null,"General ","F102",null,0,0,0,0,0,0,0,0,0,0,0]
[1131,null,null,null,"Mining","F10",null,0,0,0,0,0,0,0,0,0,0,0]
[1132,null,null,"Total Plant Held For Future Use",null,null,null,0,0,0,0,0,0,0,0,0,0,0]
[1133]
[1134,null,"114","Electric Plant Acquisition Adjust",null,"F10",null,0,0,0,0,0,0,0,0,0,0,0]
[1135]
[1136,null,"120","Nuclear Fuel",null,"F10",null,0,0,0,0,0,0,0,0,0,0,0]
[1137]
[1138,null,"124","Weatherization",null,"F10",null,0,0,0,0,0,0,0,0,0,0,0]
[1139]
[1140,null,"151","Fuel Stock",null,"F10",null,0,0,0,0,0,0,0,0,0,0,0]
[1141,null,null,null,"JBE","F10",null,0,0,0,0,0,0,0,0,0,0,0]
[1142,null,null,null,"CAEE","F30",null,0,0,0,0,0,0,0,0,0,0,0]
[1143,null,null,null,"Total Fuel Stock",null,null,0,0,0,0,0,0,0,0,0,0,0]
[1144]
[1145,null,152,"Fuel Stock - Undistributed",null,"F10",null,0,0,0,0,0,0,0,0,0,0,0]
[1146]
[1147,null,"25316","DG&T Working Capital Deposit",null,"F10",null,0,0,0,0,0,0,0,0,0,0,0]
[1148]
[1149,null,"25317","DG&T Working Capital Deposit",null,"F10",null,0,0,0,0,0,0,0,0,0,0,0]
[1150]
[1151,null,"25319","Provo Working Capital Deposit",null,"F10",null,0,0,0,0,0,0,0,0,0,0,0]
[1152]
[1153,null,"154","Materials and Supplies",null,"F102R",null,0,0,0,0,0,0,0,0,0,0,0]
[1154,null,null,null,"JBG","F10",null,0,0,0,0,0,0,0,0,0,0,0]
[1155,null,null,null,"CAEE","F102R",null,0,0,0,0,0,0,0,0,0,0,0]
[1156,null,null,null,"Total Material & Supplies",null,null,0,0,0,0,0,0,0,0,0,0,0]
[1157]
[1158,null,"163","Stores Expense Undistributed",null,"F102R",null,0,0,0,0,0,0,0,0,0,0,0]
[1159]
[1160,null,"25318","Provo Working Capital Deposit",null,"F102R",null,0,0,0,0,0,0,0,0,0,0,0]
[1161]
[1162,null,"165","Prepayments",null,"F102R",null,0,0,0,0,0,0,0,0,0,0,0]
[1163,null,null,null,"Customer - System","F42",null,-1.5313522353733222E-10,-1.2356003954927971E-10,-2.098621116974279E-11,-1.2745288592515476E-12,-2.6139481903713726E-13,-4.5136854462436765E-15,-3.7384955116816107E-12,-3.310039942893173E-12,0,0,0]
[1164,null,null,null,"Total Prepayments",null,null,-1.5313522353733222E-10,-1.2356003954927971E-10,-2.098621116974279E-11,-1.2745288592515476E-12,-2.6139481903713726E-13,-4.5136854462436765E-15,-3.7384955116816107E-12,-3.310039942893173E-12,0,0,0]
[1165]
[1166,null,"182M","Misc Regulatory Assets",null,"F102R",null,0,0,0,0,0,0,0,0,0,0,0]
[1167,null,null,null,"CAEE","F102R",null,0,0,0,0,0,0,0,0,0,0,0]
[1168,null,null,null,"Total Misc Regulatory Assets",null,null,0,0,0,0,0,0,0,0,0,0,0]
[1169]
[1170,null,"186M","Misc Deferred Debits",null,"F102R",null,0,0,0,0,0,0,0,0,0,0,0]
[1171]
[1172,null,"CWC","Cash Working Capital",null,"F137R",null,1089502.3312838771,892593.55595386191,121420.4360835859,23271.11465282943,7884.7413610874937,6657.8469766505414,23276.2848314488,14398.351424413173,0,0,0]
[1173]
[1174,null,"OWC","Other Working Capital",null,"F137R",null,0,0,0,0,0,0,0,0,0,0,0]
[1175,null,null,null,"CAEE","F137R",null,0,0,0,0,0,0,0,0,0,0,0]
[1176,null,null,null,"Total Other Working Capital",null,null,0,0,0,0,0,0,0,0,0,0,0]
[1177]
[1178,null,"18222","Nuclear Plant",null,"F10",null,0,0,0,0,0,0,0,0,0,0,0]
[1179]
[1180,null,"1869","Misc Deferred Debits-Trojan",null,"F10",null,0,0,0,0,0,0,0,0,0,0,0]
[1181]
[1182,null,"141","Impact Housing - Notes Receivable",null,"F10",null,0,0,0,0,0,0,0,0,0,0,0]
[1183,null,"TOTAL RATE BASE ADDITIONS",null,null,null,null,1089502.3312838769,892593.5559538618,121420.43608358588,23271.11465282943,7884.7413610874937,6657.8469766505414,23276.284831448796,14398.351424413169,0,0,0]
[1184]
[1185,null,"Retail - Total -  Unbundled"]
[1186]
[1187,null,"A",null,"B",null,null,"D","E","F","G","H","I","J","K","S","T"]
[1188,null,null,null,null,null,null,"Washington",null,"Small General","Large General","Large General","Large General","Agricultural","Street & Area"]
[1189,null,"FERC",null,null,null,null,"Jurisdiction","Residential","Service","Service <1,000 kW","Service >1,000 kW","Dedicated Facilities","Pumping","Lighting","-","-"]
[1190,null,"ACCT",null,"DESCRIPTION ",null,null,"Normalized","Schedule 16","Schedule 24","Schedule 36","Schedule 48T","Schedule 48T","Schedule 40","Sch. 15,51-54,57","-","-"]
[1191]
[1192,null,"235","Customer Service Deposits",null,"F51",null,-3236612.0862499997,-2788224.7747138054,-313289.81752265652,-70306.17488218419,0,0,-62433.835518408392,-2357.4836129454347,0,0,0]
[1193,null,null,null,null,"F51",null,0,0,0,0,0,0,0,0,0,0,0]
[1194,null,null,null,null,null,null,-3236612.0862499997,-2788224.7747138054,-313289.81752265652,-70306.17488218419,0,0,-62433.835518408392,-2357.4836129454347,0,0,0]
[1195]
[1196,null,"2281","Accum Prov for Property Insurance",null,"F102R",null,0,0,0,0,0,0,0,0,0,0,0]
[1197]
[1198,null,"2282","Accum Prov for Injuries & Damages",null,"F102R",null,0,0,0,0,0,0,0,0,0,0,0]
[1199]
[1200,null," 2283","Accum Prov for Pension & Benefits",null,"F102R",null,0,0,0,0,0,0,0,0,0,0,0]
[1201]
[1202,null,254,"Reg Liabilities - Insurance Provision",null,"F102R",null,0,0,0,0,0,0,0,0,0,0,0]
[1203]
[1204,null,22844,"Hydro Relicensing Obligations",null,"F10",null,0,0,0,0,0,0,0,0,0,0,0]
[1205]
[1206,null,"22842","Accum Misc Oper Prov - Trojan",null,"F10",null,0,0,0,0,0,0,0,0,0,0,0]
[1207]
[1208]
[1209,null,"252","Customer Advances for Const",null,"F50",null,0,0,0,0,0,0,0,0,0,0,0]
[1210]
[1211,null,"25398","SO2 Emmissions",null,"F10",null,0,0,0,0,0,0,0,0,0,0,0]
[1212]
[1213,null,"25399","Other Deferred Credits",null,"F10",null,0,0,0,0,0,0,0,0,0,0,0]
[1214]
[1215,null,"190","Accum Deferred Income Taxes",null,"F104R",null,-3.4650516230612993E-2,-2.9079844479942881E-2,-4.7415260242047175E-3,3.2950141364773434E-4,1.8428334130149768E-4,2.5699912693579298E-4,-7.9703548033052164E-4,-8.0289412801990269E-4,0,0,0]
[1216,null,null,null," Labor","F138R",null,-1.189154403862974,-0.97624602312092135,-0.13234720092526453,-2.4421162570681096E-2,-8.2230111331209887E-3,-6.8623807647333239E-3,-2.5301259485160786E-2,-1.5753365863092048E-2,0,0,0]
[1217,null,null,null,"Customer - System","F42",null,-6.3889920245856047E-2,-5.1550785573861092E-2,-8.7557083662772733E-3,-5.3174929508475804E-4,-1.0905717022636093E-4,-1.88316571794527E-6,-1.5597468339646893E-3,-1.3809898407239226E-3,0,0,0]
[1218,null,null,null,"Total Accum Deferred Income Taxes",null,null,-1.287694840339443,-1.0568766531747253,-0.14584443531574653,-2.4623410452118119E-2,-8.1477849620458526E-3,-6.6072648035154754E-3,-2.7658041799455996E-2,-1.7937249831835873E-2,0,0,0]
[1219]
[1220,null,"281","Accum Deferred Income Taxes",null,"F104R",null,0,0,0,0,0,0,0,0,0,0,0]
[1221]
[1222,null,"282","Accum Deferred Income Taxes ",null,"F104R",null,-1416344.4548292516,-1188642.506863324,-193810.5062307216,13468.414062647053,7532.6060608351636,10504.873460150176,-32578.931158057752,-32818.404160780927,0,0,0]
[1223,null,null,null," Labor","F138R",null,-1.248674556481654E-2,-1.0251095786867738E-2,-1.389715094020589E-3,-2.5643502847612891E-4,-8.6345934104421974E-5,-7.2058600884591332E-5,-2.6567650814251066E-4,-1.6541861232056081E-4,0,0,0]
[1224,null,null,null,"Customer - System","F42",null,0,0,0,0,0,0,0,0,0,0,0]
[1225,null,null,null,"Total Accum Deferred Income Taxes ",null,null,-1416344.4673159972,-1188642.5171144197,-193810.50762043669,13468.413806212024,7532.6059744892291,10504.873388091575,-32578.931423734259,-32818.404326199539,0,0,0]
[1226]
[1227,null,"283","Accum Deferred Income Taxes ",null,"F104R",null,-17913.371551415712,-15033.486236097748,-2451.2395955950074,170.34324135621011,95.269459811210467,132.86153714278635,-412.04559850706568,-415.07435952610081,0,0,0]
[1228,null,null,null," Labor","F138R",null,-3065.4140422378418,-2516.5767020937319,-341.16593005018007,-62.953115616233497,-21.197359834065566,-17.689913346038761,-65.221838190368715,-40.609183107223423,0,0,0]
[1229,null,null,null,"Customer - System","F42",null,0,0,0,0,0,0,0,0,0,0,0]
[1230,null,null,null,"Total Accum Deferred Income Taxes ",null,null,-20978.785593653552,-17550.06293819148,-2792.4055256451875,107.39012573997661,74.072099977144902,115.17162379674758,-477.26743669743439,-455.68354263332424,0,0,0]
[1231]
[1232,null,"255","Accum Investment Tax Credit",null,"F104R",null,0,0,0,0,0,0,0,0,0,0,0]
[1233,null,"TOTAL RATE BASE DEDUCTIONS",null,null,null,null,-4673936.6268544905,-3994418.4116430697,-509892.87651317375,-56730.395573642643,7606.6699266814121,10620.038404623519,-95490.062036881893,-35631.589419028132,0,0,0]
[1234]
[1235,null,null,null,null,null,null,"ACCUMULATED DEPRECIATION"]
[1236,null,null,null,null,null,null,"PRODUCTION PLANT"]
[1237]
[1238,null,"108SP","Steam Prod Accumulated Depr",null,"F10",null,0,0,0,0,0,0,0,0,0,0,0]
[1239,null,null,null,"JBG","F10",null,0,0,0,0,0,0,0,0,0,0,0]
[1240,null,null,null,"Total Steam Prod Accumulated Depr",null,null,0,0,0,0,0,0,0,0,0,0,0]
[1241]
[1242,null,"108NP","Nuclear Prod Accumulated Depr",null,"F10",null,0,0,0,0,0,0,0,0,0,0,0]
[1243]
[1244,null,"108HP","Hydraulic Prod Accum Depr",null,"F10",null,0,0,0,0,0,0,0,0,0,0,0]
[1245]
[1246,null,"108OP","Other Production  - Accum Depr",null,"F10",null,0,0,0,0,0,0,0,0,0,0,0]
[1247,null,null,null,"CAEE","F10",null,0,0,0,0,0,0,0,0,0,0,0]
[1248,null,null,null,"Total Other Production - Accum Depr",null,null,0,0,0,0,0,0,0,0,0,0,0]
[1249]
[1250,null,"108EP","Experimental Plant - Accum Depr",null,"F10",null,0,0,0,0,0,0,0,0,0,0,0]
[1251]
[1252]
[1253]
[1254,null,"TOTAL PRODUCTION PLANT DEPRECIATION",null,null,null,null,0,0,0,0,0,0,0,0,0,0,0]
[1255]
[1256]
[1257,null,null,null,null,null,null,"TRANSMISSION PLANT"]
[1258]
[1259,null,"108TP","Transmission Plant Accum Depr",null,"F106",null,0,0,0,0,0,0,0,0,0,0,0]
[1260]
[1261]
[1262,null,null,null,null,null,null,"DISTRIBUTION PLANT"]
[1263]
[1264,null,"108360","Land and Land Rights",null,"F118",null,0,0,0,0,0,0,0,0,0,0,0]
[1265]
[1266,null,"108361","Structures and Improvements",null,"F119",null,0,0,0,0,0,0,0,0,0,0,0]
[1267]
[1268,null,"108362","Station Equipment",null,"F120",null,0,0,0,0,0,0,0,0,0,0,0]
[1269]
[1270,null,"Retail - Total -  Unbundled"]
[1271]
[1272,null,"A",null,"B",null,null,"D","E","F","G","H","I","J","K","S","T"]
[1273,null,null,null,null,null,null,"Washington",null,"Small General","Large General","Large General","Large General","Agricultural","Street & Area"]
[1274,null,"FERC",null,null,null,null,"Jurisdiction","Residential","Service","Service <1,000 kW","Service >1,000 kW","Dedicated Facilities","Pumping","Lighting","-","-"]
[1275,null,"ACCT",null,"DESCRIPTION ",null,null,"Normalized","Schedule 16","Schedule 24","Schedule 36","Schedule 48T","Schedule 48T","Schedule 40","Sch. 15,51-54,57","-","-"]
[1276]
[1277,null,"108364","Poles, Towers & Fixtures",null,"F121",null,0,0,0,0,0,0,0,0,0,0,0]
[1278]
[1279,null,"108365","Overhead Conductors",null,"F122",null,0,0,0,0,0,0,0,0,0,0,0]
[1280]
[1281,null,"108366","Underground Conduit",null,"F123",null,0,0,0,0,0,0,0,0,0,0,0]
[1282]
[1283,null,"108367","Underground Conductors ",null,"F124",null,0,0,0,0,0,0,0,0,0,0,0]
[1284]
[1285,null,"108368","Line Transformers",null,"F125",null,0,0,0,0,0,0,0,0,0,0,0]
[1286]
[1287,null,"108369","Services",null,"F126",null,0,0,0,0,0,0,0,0,0,0,0]
[1288]
[1289,null,"108370","Meters",null,"F127",null,0,0,0,0,0,0,0,0,0,0,0]
[1290]
[1291,null,"108371","Install on Customers' Premises",null,"F128",null,0,0,0,0,0,0,0,0,0,0,0]
[1292]
[1293,null,"108372","Leased Property",null,"F129",null,0,0,0,0,0,0,0,0,0,0,0]
[1294]
[1295,null,"108373","Street Lights",null,"F130",null,0,0,0,0,0,0,0,0,0,0,0]
[1296]
[1297,null,"108D00","Unclassified Dist Plant - Acct 300",null,"F121",null,0,0,0,0,0,0,0,0,0,0,0]
[1298]
[1299,null,"108DS","Unclassified Dist Sub - Acct 300",null,"F120",null,0,0,0,0,0,0,0,0,0,0,0]
[1300]
[1301,null,"108DP","Unclassified Dist Sub  - Acct 300",null,"F102R",null,0,0,0,0,0,0,0,0,0,0,0]
[1302]
[1303]
[1304,null,"TOTAL DISTRIBUTION PLANT DEPR",null,null,null,null,0,0,0,0,0,0,0,0,0,0,0]
[1305]
[1306,null,null,null,null,null,null,"GENERAL PLANT"]
[1307,null,"108GP","General Plant Accumulated Depr"]
[1308,null,null,null,"Situs","F107R",null,0,0,0,0,0,0,0,0,0,0,0]
[1309,null,null,null,"System Generation","F105R",null,0,0,0,0,0,0,0,0,0,0,0]
[1310,null,null,null,"System Overheads","F102R",null,0,0,0,0,0,0,0,0,0,0,0]
[1311,null,null,null,"Customer - System","F42",null,-608529.94482340431,-491003.84818369744,-83395.169512144043,-5064.7327145286272,-1038.7327691921557,-17.936518405794846,-14856.062602027974,-13153.462523408267,0,0,0]
[1312,null,null,null,"Energy","F10",null,0,0,0,0,0,0,0,0,0,0,0]
[1313,null,null,null,"CAEE","F105R",null,0,0,0,0,0,0,0,0,0,0,0]
[1314,null,null,null,"CAEE","F105R",null,0,0,0,0,0,0,0,0,0,0,0]
[1315,null,null,"Total General Plant Accumulated Depr",null,null,null,-608529.94482340431,-491003.84818369744,-83395.169512144043,-5064.7327145286272,-1038.7327691921557,-17.936518405794846,-14856.062602027974,-13153.462523408267,0,0,0]
[1316]
[1317,null,"108MP","Mining Plant Accumulated Depr.",null,"F10",null,0,0,0,0,0,0,0,0,0,0,0]
[1318]
[1319,null,"1081390","Accum Depr - Capital Lease",null,"F10",null,0,0,0,0,0,0,0,0,0,0,0]
[1320,null,null,"Remove Capital Lease",null,"F10",null,0,0,0,0,0,0,0,0,0,0,0]
[1321]
[1322,null,"1081399"," Accum Depr - Capital Lease",null,"F10",null,0,0,0,0,0,0,0,0,0,0,0]
[1323,null,null," Remove Capital Lease",null,"F10",null,0,0,0,0,0,0,0,0,0,0,0]
[1324]
[1325,null,"TOTAL GENERAL PLANT ACCUM DEPR",null,null,null,null,-608529.94482340431,-491003.84818369744,-83395.169512144043,-5064.7327145286272,-1038.7327691921557,-17.936518405794846,-14856.062602027974,-13153.462523408267,0,0,0]
[1326]
[1327]
[1328,null,"TOTAL ACCUM DEPR - PLANT IN SERVICE",null,null,null,null,-608529.94482340431,-491003.84818369744,-83395.169512144043,-5064.7327145286272,-1038.7327691921557,-17.936518405794846,-14856.062602027974,-13153.462523408267,0,0,0]
[1329]
[1330]
[1331,null,null,null,null,null,null,"ACCUMULATED AMORTIZATION"]
[1332]
[1333,null,"111SP","Accum Prov for Amort-Steam",null,"F10",null,0,0,0,0,0,0,0,0,0,0,0]
[1334]
[1335,null,"111GP","Accum Prov for Amort-General"]
[1336,null,null,"Division",null,"F108",null,-217230.54372016733,-103155.52768936446,-30227.164082836734,-41546.042299966408,-16026.303451239948,-16600.234297826712,-8447.3952071195217,-1227.8766918135157,0,0,0]
[1337,null,null,"System Overheads",null,"F108",null,0,0,0,0,0,0,0,0,0,0,0]
[1338,null,null,"Total Accum Prov for Amort-General",null,null,null,-217230.54372016733,-103155.52768936446,-30227.164082836734,-41546.042299966408,-16026.303451239948,-16600.234297826712,-8447.3952071195217,-1227.8766918135157,0,0,0]
[1339]
[1340,null,"111HP","Accum Prov for Amort-Hydro",null,"F10",null,0,0,0,0,0,0,0,0,0,0,0]
[1341]
[1342,null,"111IP","Accum Prov for Amort-Intangible"]
[1343,null,null,null,"Situs","F107R",null,0,0,0,0,0,0,0,0,0,0,0]
[1344,null,null,null,"System Generation","F105R",null,0,0,0,0,0,0,0,0,0,0,0]
[1345,null,null,null,"System Overheads","F102R",null,0,0,0,0,0,0,0,0,0,0,0]
[1346,null,null,null,"Customer - System","F42",null,-7198289.7239659186,-5808075.6499733338,-986479.95359023858,-59910.631783626341,-12287.151161628399,-212.17075219137661,-175732.09613835171,-155592.07056654777,0,0,0]
[1347,null,null,null,"CAEE","F105R",null,0,0,0,0,0,0,0,0,0,0,0]
[1348,null,null,null,"CAEE","F105R",null,0,0,0,0,0,0,0,0,0,0,0]
[1349,null,null,null,"Energy","F10",null,0,0,0,0,0,0,0,0,0,0,0]
[1350,null,null,"Total Accum Prov for Amort-Intangible",null,null,null,-7198289.7239659186,-5808075.6499733338,-986479.95359023858,-59910.631783626341,-12287.151161628399,-212.17075219137661,-175732.09613835171,-155592.07056654777,0,0,0]
[1351]
[1352,null,"111390","Accum Amtr - Capital Lease"]
[1353,null,null,"Situs",null,"F107R",null,0,0,0,0,0,0,0,0,0,0,0]
[1354,null,null,"System Generation",null,"F105R",null,0,0,0,0,0,0,0,0,0,0,0]
[1355,null,null,"System Overheads",null,"F102R",null,0,0,0,0,0,0,0,0,0,0,0]
[1356,null,null,"Remove Capital Lease Amtr",null,null,null,0,0,0,0,0,0,0,0,0,0,0]
[1357,null,"TOTAL ACCUM PROV FOR AMORTIZATION",null,null,null,null,-7415520.2676860858,-5911231.1776626986,-1016707.1176730753,-101456.67408359275,-28313.454612868347,-16812.405050018089,-184179.49134547124,-156819.9472583613,0,0,0]

{"sheet":"Misc","index":16,"n_rows":1357,"n_cols":18,"rows_kept":1357,"cut":false,"hidden":false,"merged":[]}
[1,null,null," - ","MISC - Total -  Unbundled"]
[2,"PacifiCorp"]
[3,"Cost Of Service By Rate Schedule"]
[4,"State of Washington"]
[5,"WCA Method - (100 Summer, 100 Winter Hours) - 38%D / 62%E"]
[6,"12 Months Ending June 2012"]
[7]
[8]
[9,null,"A",null,"B","C",null,"D","E","F","G","H","I","J","K"]
[10,null,null,null,null,null,null,"Washington",null,"Small General","Large General","Large General","Large General","Agricultural","Street & Area",null,null,"Chk Total"]
[11,null,null,null,null,"COS",null,"Jurisdiction","Residential","Service","Service <1,000 kW","Service >1,000 kW","Dedicated Facilities","Pumping","Lighting","-","-"]
[12,null,null,null,"DESCRIPTION ","Factor",null,"Normalized","Schedule 16","Schedule 24","Schedule 36","Schedule 48T","Schedule 48T","Schedule 40","Sch. 15,51-54,57","-","-",0]
[13]
[14,null,null,null,"Operating Revenues",null,null,1882569.1398361861,819546.76035530039,289008.30122651684,387089.33392737515,143650.33488749465,153582.83694431421,79468.793746619282,10222.778748565808,0,0,0]
[15]
[16,null,null,null,"Operating Expenses"]
[17,null,null,null,"Operation & Maintenance Expenses",null,null,1685420.5312579749,746643.3056784959,251938.54154763688,341089.82044976793,128166.75328330652,139030.49869312046,69276.58788453626,9275.0237211110743,0,0,0]
[18,null,null,null,"Depreciation Expense",null,null,0,0,0,0,0,0,0,0,0,0,0]
[19,null,null,null,"Amortization Expense",null,null,0,0,0,0,0,0,0,0,0,0,0]
[20,null,null,null,"Taxes Other Than Income",null,null,0,0,0,0,0,0,0,0,0,0,0]
[21,null,null,null,"Income Taxes - Federal",null,null,97323.200348206738,41478.532962218844,13278.73770019883,20695.359696325322,8138.8429261431747,9947.7003573882521,3519.5915388466815,264.43516708562174,0,0,0]
[22,null,null,null,"Income Taxes - State",null,null,0,0,0,0,0,0,0,0,0,0,0]
[23,null,null,null,"Income Taxes Deferred",null,null,0,0,0,0,0,0,0,0,0,0,0]
[24,null,null,null,"Investment Tax Credit Adj",null,null,0,0,0,0,0,0,0,0,0,0,0]
[25,null,null,null,"Misc Revenues & Expense",null,null,0,0,0,0,0,0,0,0,0,0,0]
[26]
[27,null,null,null,"Total Operating Expenses",null,null,1782743.7316061817,788121.83864071476,265217.27924783569,361785.18014609325,136305.59620944969,148978.1990505087,72796.179423382942,9539.4588881966956,0,0,0]
[28]
[29,null,null,null,"Operating Revenue For Return",null,null,99825.408230004366,31424.921714585624,23791.02197868115,25304.153781281901,7344.7386780449597,4604.6378938055132,6672.6143232363393,683.31986036911258,0,0,0]
[30]
[31]
[32,null,null,null,"Rate Base :"]
[33,null,null,null,"Electric Plant In Service",null,null,0,0,0,0,0,0,0,0,0,0,0]
[34,null,null,null,"Plant Held For Future Use ",null,null,0,0,0,0,0,0,0,0,0,0,0]
[35,null,null,null,"Electric Plant Acquisition Adj",null,null,0,0,0,0,0,0,0,0,0,0,0]
[36,null,null,null,"Nuclear Fuel",null,null,0,0,0,0,0,0,0,0,0,0,0]
[37,null,null,null,"Prepayments",null,null,0,0,0,0,0,0,0,0,0,0,0]
[38,null,null,null,"Fuel Stock",null,null,0,0,0,0,0,0,0,0,0,0,0]
[39,null,null,null,"Materials & Supplies",null,null,0,0,0,0,0,0,0,0,0,0,0]
[40,null,null,null,"Misc Deferred Debits",null,null,0,0,0,0,0,0,0,0,0,0,0]
[41,null,null,null,"Cash Working Capital",null,null,223483.43801659052,99003.429607303144,33406.553669977497,45227.837404876169,16994.658681295776,18435.169894310395,9185.9389080415222,1229.8498507860311,0,0,0]
[42,null,null,null,"Weatherization Loans",null,null,1957722.3254914517,830612.68284431647,264196.26970777725,418596.18077362794,165412.93822544997,204512.50625643667,69695.08146798001,4696.6662158632098,0,0,0]
[43,null,null,null,"Miscellaneous Rate Base",null,null,0,0,0,0,0,0,0,0,0,0,0]
[44]
[45,null,null,null,"Total Rate Base Additions",null,null,2181205.7635080423,929616.11245161959,297602.82337775477,463824.01817850413,182407.59690674575,222947.67615074705,78881.020376021537,5926.5160666492411,0,0,0]
[46]
[47,null,null,null,"Rate Base Deductions :"]
[48,null,null,null,"Accum Provision For Depreciation",null,null,0,0,0,0,0,0,0,0,0,0,0]
[49,null,null,null,"Accum Provision For Amortization",null,null,0,0,0,0,0,0,0,0,0,0,0]
[50,null,null,null,"Accum Deferred Income Taxes",null,null,0,0,0,0,0,0,0,0,0,0,0]
[51,null,null,null,"Unamortized ITC",null,null,0,0,0,0,0,0,0,0,0,0,0]
[52,null,null,null,"Customer Advance For Construction",null,null,0,0,0,0,0,0,0,0,0,0,0]
[53,null,null,null,"Customer Service Deposits",null,null,0,0,0,0,0,0,0,0,0,0,0]
[54,null,null,null,"Misc Rate Base Deductions",null,null,0,0,0,0,0,0,0,0,0,0,0]
[55,null,null,null,null,null,null,null,null,null,null,null,null,null,null,null,null,0]
[56,null,null,null,"Total Rate Base Deductions",null,null,0,0,0,0,0,0,0,0,0,0,0]
[57,null,null,null,null,null,null,null,null,null,null,null,null,null,null,null,null,0]
[58,null,null,null,"Total Rate Base",null,null,2181205.7635080423,929616.11245161959,297602.82337775477,463824.01817850413,182407.59690674575,222947.67615074705,78881.020376021537,5926.5160666492411,0,0,0]
[59]
[60]
[61,null,null,null,"Return On Rate Base",null,null,4.5766158287356966E-2,3.3804192175316952E-2,7.9942191773102231E-2,5.4555505514040675E-2,4.0265530617126052E-2,2.065344646468556E-2,8.4590872321736579E-2,0.11529874426805539,0.1,0.1]
[62]
[63,null,null,null,"Return On Equity",null,null,3.8568739727782207E-2,1.5786818184617805E-2,0.10365801570768424,5.5308313896312349E-2,2.809263012777027E-2,-9.2591695909332566E-3,0.11251156658270514,0.17099562538090099,0.14185871023172955,0.14185871023172955]
[64]
[65]
[66]
[67]
[68]
[69]
[70]
[71,"PacifiCorp"]
[72,"Cost Of Service By Rate Schedule"]
[73,"State of Washington"]
[74,"WCA Method - (100 Summer, 100 Winter Hours)"]
[75,"12 Months Ending June 2012"]
[76]
[77]
[78,null,"A",null,"B","C",null,"D","E","F","G","H","I","J","K","S","T"]
[79,null,null,null,null,null,null,"Washington",null,"Small General","Large General","Large General","Large General","Agricultural","Street & Area"]
[80,null,null,null,null,"COS",null,"Jurisdiction","Residential","Service","Service <1,000 kW","Service >1,000 kW","Dedicated Facilities","Pumping","Lighting","-","-"]
[81,null,null,null,"DESCRIPTION ","Factor",null,"Normalized","Schedule 16","Schedule 24","Schedule 36","Schedule 48T","Schedule 48T","Schedule 40","Sch. 15,51-54,57","-","-"]
[82]
[83,null,null,null,"Total Rate Base",null,null,2181205.7635080423,929616.11245161959,297602.82337775477,463824.01817850413,182407.59690674575,222947.67615074705,78881.020376021537,5926.5160666492411,0,0,0]
[84]
[85]
[86,null,null,null,"Return On Ratebase ($$)",4.602925444100011E-2,null,100399.2750766876,42789.536572488971,13698.43607961469,21349.473748585428,8396.0856899919854,10262.115312572429,3630.8345574536097,272.79311598047309,0,0,0]
[87,null,null,null,"Operating & Maintenance Expense",null,null,1685420.5312579749,746643.3056784959,251938.54154763688,341089.82044976793,128166.75328330652,139030.49869312046,69276.58788453626,9275.0237211110743,0,0,0]
[88,null,null,null,"        Bad Debt to Produce ROR","F80",null,0,0,0,0,0,0,0,0,0,0,0]
[89,null,null,null,"Depreciation Expense",null,null,0,0,0,0,0,0,0,0,0,0,0]
[90,null,null,null,"Amortization Expense",null,null,0,0,0,0,0,0,0,0,0,0,0]
[91,null,null,null,"Taxes Other Than Income",null,null,0,0,0,0,0,0,0,0,0,0,0]
[92,null,null,null,"Federal Income Taxes",null,null,97323.200348206738,41478.532962218844,13278.73770019883,20695.359696325322,8138.8429261431747,9947.7003573882521,3519.5915388466815,264.43516708562174,0,0,0]
[93,null,null,null,"        FIT Adj to Produce Target ROR","F101",null,0,0,0,0,0,0,0,0,0,0,0]
[94,null,null,null,"State Income Taxes",null,null,0,0,0,0,0,0,0,0,0,0,0]
[95,null,null,null,"        SIT Adj to Produce Target ROR","F101",null,0,0,0,0,0,0,0,0,0,0,0]
[96,null,null,null,"Deferred Income Taxes",null,null,0,0,0,0,0,0,0,0,0,0,0]
[97,null,null,null,"Investment Tax Credit",null,null,0,0,0,0,0,0,0,0,0,0,0]
[98,null,null,null,"Misc Revenue & Expenses",null,null,0,0,0,0,0,0,0,0,0,0,0]
[99,null,null,null,"Revenue Credits",null,null,2967489.5348671526,1259665.2923236147,400453.99567915895,634144.95540286286,250590.49135904509,309840.40429212194,105642.08813682896,7152.3076735201394,0,0,0]
[100]
[101,null,null,null,"Total Revenue Requirements",null,null,4850632.5415500216,2090576.6675368184,679369.71100660937,1017279.6092975416,395292.17325848679,469080.71865520306,182069.10211766552,16964.559677697311,0,0,0]
[102,null,null,null,"Operating Revenues",null,null,4850058.6747033391,2079212.0526789152,689462.29690567579,1021234.289330238,394240.82624653971,463423.24123643618,185110.88188344822,17375.086422085948,0,0,0]
[103]
[104,null,null,null,"Increase / (Decrease) Required to "]
[105,null,null,null,"Earn Equal Rates of Return",null,null,573.86684668250382,11364.614857903216,-10092.585899066413,-3954.6800326964585,1051.347011947073,5657.4774187668809,-3041.7797657827032,-410.52674438863687,0,0,0]
[106]
[107,null,null,null,"Existing Revenues",null,null,4850058.6747033391,2079212.0526789152,689462.29690567579,1021234.289330238,394240.82624653971,463423.24123643618,185110.88188344822,17375.086422085948,0,0,0]
[108,null,null,null,"check",null,null,0,0,0,0,0,0,0,0,0,0,0]
[109,null,null,null,"Percent Increase / (Decrease) "]
[110,null,null,null,"Over Existing Rates To "]
[111,null,null,null,"Equal Authorized RoE & RoR",null,null,1.1832162973113006E-4,5.4658277125994564E-3,-1.4638343451646585E-2,-3.8724512817622674E-3,2.6667634145267592E-3,1.2208014003942596E-2,-1.6432203957074256E-2,-2.3627321005252964E-2,{"$error":"#DIV/0!"},{"$error":"#DIV/0!"}]
[112]
[113]
[114]
[115]
[116]
[117]
[118]
[119]
[120,null,null,null,null,"WCA",null,null,"ELECTRIC REVENUES"]
[121,null,"MISC - Total -  Unbundled",null,null,"Method"]
[122,null,"A",null,"B",null,null,"D","E","F","G","H","I","J","K","S","T"]
[123,null,null,null,null,null,null,"Washington",null,"Small General","Large General","Large General","Large General","Agricultural","Street & Area"]
[124,null,"FERC",null,null,"COS",null,"Jurisdiction","Residential","Service","Service <1,000 kW","Service >1,000 kW","Dedicated Facilities","Pumping","Lighting","-","-"]
[125,null,"ACCT",null,"DESCRIPTION ","Factor",null,"Normalized","Schedule 16","Schedule 24","Schedule 36","Schedule 48T","Schedule 48T","Schedule 40","Sch. 15,51-54,57","-","-"]
[126,null,"440","Residential Sales",null,"A",null,2079212.0526789152,2079212.0526789152,0,0,0,0,0,0,0,0,0]
[127]
[128,null,"442","Commercial & Industrial Sales",null,"A",null,1732237.2462720999,0,689462.29690567579,0,394240.82624653971,463423.24123643618,185110.88188344822,0,0,0,0]
[129,null,null,null,"Interruptible Demand","F10",null,0,0,0,0,0,0,0,0,0,0,0]
[130,null,null,null,"Interruptible Energy","F10",null,0,0,0,0,0,0,0,0,0,0,0]
[131,null,null,null,null,null,null,1732237.2462720999,0,689462.29690567579,0,394240.82624653971,463423.24123643618,185110.88188344822,0,0,0,0]
[132]
[133,null,"444","Public Street & Highway Lighting",null,"A",null,1038609.375752324,0,0,1021234.289330238,0,0,0,17375.086422085948,0,0,0]
[134]
[135,null,"445","Other Sales to Public Authority",null,"A",null,0,0,0,0,0,0,0,0,0,0,0]
[136]
[137,null,"448","Interdepartmental",null,"A",0,0,0,0,0,0,0,0,0,0,0,0]
[138,null,null,null,"Demand","F10",null,0,0,0,0,0,0,0,0,0,0,0]
[139,null,null,null,null,null,null,0,0,0,0,0,0,0,0,0,0,0]
[140]
[141,null,"Total Sales to Ultimate Customers",null,null,null,null,4850058.6747033391,2079212.0526789152,689462.29690567579,1021234.289330238,394240.82624653971,463423.24123643618,185110.88188344822,17375.086422085948,0,0,0]
[142]
[143,null,"447","Sales for Resale",null,"F10",null,0,0,0,0,0,0,0,0,0,0,0]
[144,null,null,null,"Demand","F10",null,0,0,0,0,0,0,0,0,0,0,0]
[145,null,null,null,"Energy","F10",null,0,0,0,0,0,0,0,0,0,0,0]
[146,null,null,null,null,null,null,0,0,0,0,0,0,0,0,0,0,0]
[147]
[148,null,"447NPC","Sales for Resale",null,"F10",null,0,0,0,0,0,0,0,0,0,0,0]
[149,null,null,null,"Demand","F10",null,0,0,0,0,0,0,0,0,0,0,0]
[150,null,null,null,"Energy","F10",null,0,0,0,0,0,0,0,0,0,0,0]
[151,null,null,null,null,null,null,0,0,0,0,0,0,0,0,0,0,0]
[152]
[153,null,"449","Provision for Rate Refund",null,"F10",null,0,0,0,0,0,0,0,0,0,0,0]
[154]
[155,null,"State Specific Revenue Credit",null,null,"F140M",null,1668.9019220456564,736.3803950213985,247.18408094702428,339.54625751628174,128.2392862295699,141.12389009469175,67.732078804521876,8.6959334321683688,0,0,0]
[156]
[157,null,"AGA Revenue",null,null,"A",0,0,0,0,0,0,0,0,0,0,0,0]
[158]
[159,null,"Total Sales from Electricity",null,null,null,null,4851727.5766253844,2079948.4330739365,689709.48098662286,1021573.8355877543,394369.06553276931,463564.36512653087,185178.61396225274,17383.782355518117,0,0,0]
[160]
[161,null,"Other Electric Operating Revenues"]
[162,null,"450","Forfeited Discounts & Interest",null,"A",0,0,0,0,0,0,0,0,0,0,0,0]
[163,null,null,null,"Customers","F40",null,0,0,0,0,0,0,0,0,0,0,0]
[164,null,null,null,null,null,null,0,0,0,0,0,0,0,0,0,0,0]
[165]
[166,null,"451","Misc Electric Revenue",null,"A",0,0,0,0,0,0,0,0,0,0,0,0]
[167,null,null,null,"Demand","F10",null,0,0,0,0,0,0,0,0,0,0,0]
[168,null,null,null,"Customer","F40",null,0,0,0,0,0,0,0,0,0,0,0]
[169,null,null,null,null,null,null,0,0,0,0,0,0,0,0,0,0,0]
[170]
[171,null,"453","Water Sales",null,"F10",null,0,0,0,0,0,0,0,0,0,0,0]
[172]
[173,null,"454","Rent of Electric Property",null,"A",0,0,0,0,0,0,0,0,0,0,0,0]
[174,null,null,null,"Demand","F10",null,0,0,0,0,0,0,0,0,0,0,0]
[175,null,null,null,"Customer","F40",null,0,0,0,0,0,0,0,0,0,0,0]
[176,null,null,null,null,null,null,0,0,0,0,0,0,0,0,0,0,0]
[177]
[178,null,"456","Other Electric Revenue",null,"A",1,-2967338,-1258967.3954232335,-400444.75171694078,-634470.13792042457,-250717.93425291532,-309981.51443035796,-105637.48543916573,-7118.7808169621649,0,0,0]
[179,null,null,null,"Demand","F10",null,-1.8462742445990443E-10,-7.8332804586462904E-11,-2.4915625772320063E-11,-3.9476658021758332E-11,-1.5599640643237612E-11,-1.928701369357238E-11,-6.5727520299520389E-12,-4.4292971260109193E-13,0,0,0]
[180,null,null,null,"Energy","F10",null,0,0,0,0,0,0,0,0,0,0,0]
[181,null,null,null,"Customer","F40",null,-1820.4367891981283,-1434.2772954025718,-256.42804316521057,-14.363739954505013,-0.79639235930355401,-1.3751858644059086E-2,-72.334776467750785,-42.222789990142751,0,0,0]
[182,null,null,null,null,null,null,-2969158.4367891983,-1260401.672718636,-400701.17976010597,-634484.50166037912,-250718.73064527466,-309981.52818221663,-105709.82021563347,-7161.0036069523076,0,0,0]
[183]
[184,null,"Total Other Electric Operating Revenues",null,null,null,null,-2969158.4367891983,-1260401.672718636,-400701.17976010597,-634484.50166037912,-250718.73064527466,-309981.52818221663,-105709.82021563347,-7161.0036069523076,0,0,0]
[185]
[186,null,"Total Electric Operating Revenues",null,null,null,null,1882569.1398361861,819546.7603553005,289008.30122651689,387089.33392737515,143650.33488749465,153582.83694431424,79468.793746619267,10222.778748565808,0,0,0]
[187]
[188,null,"Miscellaneous Revenues"]
[189,null,"41160","Gain on Sale of Utility Plant - CR",null,"F10",null,0,0,0,0,0,0,0,0,0,0,0]
[190,null,"41170","Loss on Sale of Utility Plant ",null,"F10",null,0,0,0,0,0,0,0,0,0,0,0]
[191,null,"4118","Gain from Emission Allowances",null,"F10",null,0,0,0,0,0,0,0,0,0,0,0]
[192,null,41181,"Gain from Disposition of NOX Credits",null,"F10",null,0,0,0,0,0,0,0,0,0,0,0]
[193,null,"4194","Impact Housing Interest Income",null,"F10",null,0,0,0,0,0,0,0,0,0,0,0]
[194,null,"421","(Gain)/Loss on Sale of Utility Plant",null,"F10",null,0,0,0,0,0,0,0,0,0,0,0]
[195]
[196,null,"Total Miscellaneous Revenues",null,null,null,null,0,0,0,0,0,0,0,0,0,0,0]
[197]
[198,null,"Miscellaneous Expenses"]
[199,null,"4311","Interest on Customer Deposits",null,"F80",null,0,0,0,0,0,0,0,0,0,0,0]
[200]
[201,null,"DFA","Divergence Fairness Adjustment"]
[202,null,null,"Production ",null,"F105",null,0,0,0,0,0,0,0,0,0,0,0]
[203,null,null,"Transmission",null,"F105",null,0,0,0,0,0,0,0,0,0,0,0]
[204,null,null,"Distribution",null,"F105",null,0,0,0,0,0,0,0,0,0,0,0]
[205,null,null,null,null,null,null,0,0,0,0,0,0,0,0,0,0,0]
[206]
[207,null,"Net Miscellaneous Revenues And Expense",null,null,null,null,0,0,0,0,0,0,0,0,0,0,0]
[208]
[209,null,"MISC - Total -  Unbundled"]
[210,null,null,null,null,null,null,"STEAM POWER GENERATION"]
[211]
[212,null,"A",null,"B","C",null,"D","E","F","G","H","I","J","K","S","T"]
[213,null,null,null,null,null,null,"Washington",null,"Small General","Large General","Large General","Large General","Agricultural","Street & Area"]
[214,null,"FERC",null,null,"COS",null,"Jurisdiction","Residential","Service","Service <1,000 kW","Service >1,000 kW","Dedicated Facilities","Pumping","Lighting","-","-"]
[215,null,"ACCT",null,"DESCRIPTION ","Factor",null,"Normalized","Schedule 16","Schedule 24","Schedule 36","Schedule 48T","Schedule 48T","Schedule 40","Sch. 15,51-54,57","-","-"]
[216,null,"500","Operation Suprvn & Engineering",null,"F10",null,0,0,0,0,0,0,0,0,0,0,0]
[217,null,null,null,"JBG","F10",null,0,0,0,0,0,0,0,0,0,0,0]
[218,null,null,null,"Total 500",null,null,0,0,0,0,0,0,0,0,0,0,0]
[219]
[220,null,"501","Fuel Related",null,"F10",null,0,0,0,0,0,0,0,0,0,0,0]
[221,null,null,null,"CAGW","F10",null,0,0,0,0,0,0,0,0,0,0,0]
[222,null,null,null,"JBE","F10",null,0,0,0,0,0,0,0,0,0,0,0]
[223,null,null,null,"Total 501",null,null,0,0,0,0,0,0,0,0,0,0,0]
[224]
[225,null,"501NPC","Fuel Related"]
[226,null,null,null,"CAEW","F10",null,0,0,0,0,0,0,0,0,0,0,0]
[227,null,null,null,"Total 501NPC",null,null,0,0,0,0,0,0,0,0,0,0,0]
[228]
[229,null,"502","Steam Expenses",null,"F10",null,0,0,0,0,0,0,0,0,0,0,0]
[230,null,null,null,"JBG","F10",null,0,0,0,0,0,0,0,0,0,0,0]
[231,null,null,null,"Total 502",null,null,0,0,0,0,0,0,0,0,0,0]
[232]
[233,null,"503","Steam From Other Sources",null,"F10",null,0,0,0,0,0,0,0,0,0,0,0]
[234]
[235,null,"503NPC","Steam From Other Sources-NPC",null,"F10",null,0,0,0,0,0,0,0,0,0,0,0]
[236]
[237,null,"505","Electric Expenses",null,"F10",null,0,0,0,0,0,0,0,0,0,0,0]
[238,null,null,null,"JBG","F10",null,0,0,0,0,0,0,0,0,0,0,0]
[239,null,null,null,"Total 505",null,null,0,0,0,0,0,0,0,0,0,0,0]
[240]
[241,null,"506","Misc. Steam Expense",null,"F10",null,0,0,0,0,0,0,0,0,0,0,0]
[242,null,null,null,"JBG","F10",null,0,0,0,0,0,0,0,0,0,0,0]
[243,null,null,null,"Total 506",null,null,0,0,0,0,0,0,0,0,0,0,0]
[244]
[245,null,"507","Rents",null,"F10",null,0,0,0,0,0,0,0,0,0,0,0]
[246,null,null,null,"JBG","F10",null,0,0,0,0,0,0,0,0,0,0,0]
[247,null,null,null,"Total 507",null,null,0,0,0,0,0,0,0,0,0,0,0]
[248]
[249,null,"510","Maint Supervision & Engineering",null,"F10",null,0,0,0,0,0,0,0,0,0,0,0]
[250,null,null,null,"JBG","F10",null,0,0,0,0,0,0,0,0,0,0,0]
[251,null,null,null,"Total 510",null,null,0,0,0,0,0,0,0,0,0,0,0]
[252]
[253,null,"511","Maintenance of Structures",null,"F10",null,0,0,0,0,0,0,0,0,0,0,0]
[254,null,null,null,"JBG","F10",null,0,0,0,0,0,0,0,0,0,0,0]
[255,null,null,null,"Total 511",null,null,0,0,0,0,0,0,0,0,0,0,0]
[256]
[257,null,"512","Maintenance of Boiler Plant",null,"F10",null,0,0,0,0,0,0,0,0,0,0,0]
[258,null,null,null,"JBG","F10",null,0,0,0,0,0,0,0,0,0,0,0]
[259,null,null,null,"Total 512",null,null,0,0,0,0,0,0,0,0,0,0,0]
[260]
[261,null,"513","Maintenance of Electric Plant",null,"F10",null,0,0,0,0,0,0,0,0,0,0,0]
[262,null,null,null,"JBG","F10",null,0,0,0,0,0,0,0,0,0,0,0]
[263,null,null,null,"Total 513",null,null,0,0,0,0,0,0,0,0,0,0,0]
[264]
[265,null,"514","Maint of Misc. Steam Plant",null,"F10",null,0,0,0,0,0,0,0,0,0,0,0]
[266,null,null,null,"JBG","F10",null,0,0,0,0,0,0,0,0,0,0,0]
[267,null,null,null,"Total 514",null,null,0,0,0,0,0,0,0,0,0,0,0]
[268]
[269,null,"Total Steam Power Generation",null,null,null,null,0,0,0,0,0,0,0,0,0,0,0]
[270]
[271]
[272,null,null,null,null,null,null,"NUCLEAR POWER GENERATION"]
[273]
[274]
[275,null,"517","Operation Super & Engineering",null,"F10",null,0,0,0,0,0,0,0,0,0,0,0]
[276]
[277,null,"518","Nuclear Fuel Expense",null,"F10",null,0,0,0,0,0,0,0,0,0,0,0]
[278]
[279,null,"519","Coolants and Water",null,"F10",null,0,0,0,0,0,0,0,0,0,0,0]
[280]
[281,null,"520","Steam Expenses",null,"F10",null,0,0,0,0,0,0,0,0,0,0,0]
[282]
[283,null,"523","Electric Expenses",null,"F10",null,0,0,0,0,0,0,0,0,0,0,0]
[284]
[285,null,"524","Misc. Nuclear Expenses",null,"F10",null,0,0,0,0,0,0,0,0,0,0,0]
[286]
[287,null,"528","Maint Supervision & Eng",null,"F10",null,0,0,0,0,0,0,0,0,0,0,0]
[288]
[289,null,"529","Maintenance of Structures",null,"F10",null,0,0,0,0,0,0,0,0,0,0,0]
[290]
[291,null,"530","Maintenance of Reactor Plant",null,"F10",null,0,0,0,0,0,0,0,0,0,0,0]
[292]
[293,null,"531","Maintenance of Electric Plant",null,"F10",null,0,0,0,0,0,0,0,0,0,0,0]
[294]
[295,null,"532","Maintenance of Misc Nuclear",null,"F10",null,0,0,0,0,0,0,0,0,0,0,0]
[296]
[297,null,"Total Nuclear Power Generation",null,null,null,null,0,0,0,0,0,0,0,0,0,0,0]
[298]
[299]
[300]
[301,null,"MISC - Total -  Unbundled",null,null,null,null,"HYDRAULIC POWER GENERATION"]
[302]
[303,null,"A",null,"B","C",null,"D","E","F","G","H","I","J","K","S","T"]
[304,null,null,null,null,null,null,"Washington",null,"Small General","Large General","Large General","Large General","Agricultural","Street & Area"]
[305,null,"FERC",null,null,"COS",null,"Jurisdiction","Residential","Service","Service <1,000 kW","Service >1,000 kW","Dedicated Facilities","Pumping","Lighting","-","-"]
[306,null,"ACCT",null,"DESCRIPTION ","Factor",null,"Normalized","Schedule 16","Schedule 24","Schedule 36","Schedule 48T","Schedule 48T","Schedule 40","Sch. 15,51-54,57","-","-"]
[307,null,"535","Operation Super & Engineering",null,"F10",null,0,0,0,0,0,0,0,0,0,0,0]
[308]
[309,null,"536","Water For Power",null,"F10",null,0,0,0,0,0,0,0,0,0,0,0]
[310]
[311,null,"537","Hydraulic Expenses",null,"F10",null,0,0,0,0,0,0,0,0,0,0,0]
[312]
[313,null,"538","Electric Expenses",null,"F10",null,0,0,0,0,0,0,0,0,0,0,0]
[314]
[315,null,"539","Misc. Hydro Expenses",null,"F10",null,0,0,0,0,0,0,0,0,0,0,0]
[316]
[317,null,"540","Rents (Hydro Generation)",null,"F10",null,0,0,0,0,0,0,0,0,0,0,0]
[318]
[319,null,"541","Maint Supervision & Engineering",null,"F10",null,0,0,0,0,0,0,0,0,0,0,0]
[320]
[321,null,"542","Maintenance of Structures",null,"F10",null,0,0,0,0,0,0,0,0,0,0,0]
[322]
[323,null,"543","Maint of Dams & Waterways",null,"F10",null,0,0,0,0,0,0,0,0,0,0,0]
[324]
[325,null,"544","Maintenance of Electric Plant",null,"F10",null,0,0,0,0,0,0,0,0,0,0,0]
[326]
[327,null,"545","Maint of Misc. Hydro Plant",null,"F10",null,0,0,0,0,0,0,0,0,0,0,0]
[328]
[329,null,"Total Hydraulic Power Generation ",null,null,null,null,0,0,0,0,0,0,0,0,0,0,0]
[330]
[331]
[332,null,null,null,null,null,null,"OTHER POWER GENERATION"]
[333]
[334]
[335,null,"546","Operation Super & Engineering",null,"F10",null,0,0,0,0,0,0,0,0,0,0,0]
[336,null,null,null,"CAGE","F10",null,0,0,0,0,0,0,0,0,0,0,0]
[337,null,null,null,"Total 546",null,null,0,0,0,0,0,0,0,0,0,0,0]
[338]
[339,null,"547","Fuel","SE","F10",null,0,0,0,0,0,0,0,0,0,0,0]
[340,null,null,null,"SSECT","F10",null,null,0,0,0,0,0,0,0,0,0,0]
[341,null,null,null,"Total 547",null,null,0,0,0,0,0,0,0,0,0,0,0]
[342]
[343]
[344,null,"547NPC","Fuel","CAEW","F10",null,0,0,0,0,0,0,0,0,0,0,0]
[345,null,null,null,"SE","F10",null,null,0,0,0,0,0,0,0,0,0,0]
[346,null,null,null,"Total 547NPC",null,null,0,0,0,0,0,0,0,0,0,0,0]
[347]
[348,null,"548","Generation Expense",null,"F10",null,0,0,0,0,0,0,0,0,0,0,0]
[349,null,null,null,"CAGE","F10",null,0,0,0,0,0,0,0,0,0,0,0]
[350,null,null,null,"Total 548",null,null,0,0,0,0,0,0,0,0,0,0,0]
[351]
[352,null,"549","Miscellaneous Other",null,"F10",null,0,0,0,0,0,0,0,0,0,0,0]
[353,null,null,null,"CAGE","F10",null,0,0,0,0,0,0,0,0,0,0,0]
[354,null,null,"Total 549",null,null,null,0,0,0,0,0,0,0,0,0,0,0]
[355]
[356,null,"550","Maint Supervision & Engineering"]
[357,null,null,null,"SG","F10",null,0,0,0,0,0,0,0,0,0,0,0]
[358,null,null,null,"CAGE","F10",null,0,0,0,0,0,0,0,0,0,0,0]
[359,null,null,null,"Total 550",null,null,0,0,0,0,0,0,0,0,0,0,0]
[360]
[361,null,"552","Maintenance of Structures"]
[362,null,null,null,"SG","F10",null,0,0,0,0,0,0,0,0,0,0,0]
[363,null,null,null,"CAGE","F10",null,0,0,0,0,0,0,0,0,0,0,0]
[364,null,null,null,"Total 552",null,null,0,0,0,0,0,0,0,0,0,0,0]
[365]
[366,null,"553","Maint of Generation & Elect Plant"]
[367,null,null,null,"SG","F10",null,0,0,0,0,0,0,0,0,0,0,0]
[368,null,null,null,"CAGE","F10",null,0,0,0,0,0,0,0,0,0,0,0]
[369,null,null,null,"Total 553",null,null,0,0,0,0,0,0,0,0,0,0,0]
[370]
[371,null,"554","Maintenance of Misc. Other"]
[372,null,null,null,"SG","F10",null,0,0,0,0,0,0,0,0,0,0,0]
[373,null,null,null,"CAGE","F10",null,0,0,0,0,0,0,0,0,0,0,0]
[374,null,null,null,"Total 554",null,null,0,0,0,0,0,0,0,0,0,0,0]
[375]
[376,null,"Total Other Power Generation",null,null,null,null,0,0,0,0,0,0,0,0,0,0,0]
[377]
[378]
[379,null,null,null,null,null,null,"OTHER POWER SUPPLY"]
[380]
[381]
[382,null,"555","Purchased Power",null,"F10",null,0,0,0,0,0,0,0,0,0,0,0]
[383,null,null,null,"Demand","F10",null,0,0,0,0,0,0,0,0,0,0,0]
[384,null,null,null,"Energy","F10",null,0,0,0,0,0,0,0,0,0,0,0]
[385,null,null,null,"SSGP","F10",null,0,0,0,0,0,0,0,0,0,0,0]
[386,null,null,null,"Total 555",null,null,0,0,0,0,0,0,0,0,0,0,0]
[387]
[388,null,"555NPC","Purchased Power",null,"F10",null,0,0,0,0,0,0,0,0,0,0,0]
[389,null,null,null,"Demand","F10",null,0,0,0,0,0,0,0,0,0,0,0]
[390,null,null,null,"Energy","F10",null,0,0,0,0,0,0,0,0,0,0,0]
[391,null,null,null,"SSGP","F10",null,0,0,0,0,0,0,0,0,0,0,0]
[392,null,null,null,"Total 555NPC",null,null,0,0,0,0,0,0,0,0,0,0,0]
[393]
[394,null,"556","System Control & Load Dispatch",null,"F10",null,0,0,0,0,0,0,0,0,0,0,0]
[395]
[396,null,"557","Other Expenses",null,"F10",null,-1180771.9899890956,-500972.06210592791,-159346.17032690631,-252470.2502178571,-99766.428412863665,-123348.76904948721,-42035.583374542373,-2832.7265015109892,0,0,0]
[397,null,null,null,"CAGE/JBG","F10",null,1180771.9899890956,500972.06210592791,159346.17032690631,252470.2502178571,99766.428412863665,123348.76904948721,42035.583374542373,2832.7265015109892,0,0,0]
[398,null,null,null,"Total 557",null,null,0,0,0,0,0,0,0,0,0,0,0]
[399]
[400,null,"Embedded Cost Differentials"]
[401,null,"Company Owned Hydro",null,"DGP","F10",null,0,0,0,0,0,0,0,0,0,0,0]
[402,null,"Company Owned Hydro",null,"SG","F10",null,0,0,0,0,0,0,0,0,0,0,0]
[403,null,"Mid-C Contract",null,"MC","F10",null,0,0,0,0,0,0,0,0,0,0,0]
[404,null,"Mid-C Contract",null,"SG","F10",null,0,0,0,0,0,0,0,0,0,0,0]
[405,null,"Existing QF Contracts",null,"S ","F10",null,0,0,0,0,0,0,0,0,0,0,0]
[406,null,"Existing QF Contracts",null,"SG","F10",null,0,0,0,0,0,0,0,0,0,0,0]
[407,null,"Total Embedded Cost Differential",null,null,null,null,0,0,0,0,0,0,0,0,0,0,0]
[408]
[409,null,"Total Other Power Supply",null,null,null,null,0,0,0,0,0,0,0,0,0,0,0]
[410]
[411,null,"TOTAL PRODUCTION EXPENSE",null,null,null,null,0,0,0,0,0,0,0,0,0,0,0]
[412]
[413,null,"MISC - Total -  Unbundled",null,null,null,null,"TRANSMISSION EXPENSE"]
[414]
[415]
[416,null,"A",null,"B","C",null,"D","E","F","G","H","I","J","K","S","T"]
[417,null,null,null,null,null,null,"Washington",null,"Small General","Large General","Large General","Large General","Agricultural","Street & Area"]
[418,null,"FERC",null,null,"COS",null,"Jurisdiction","Residential","Service","Service <1,000 kW","Service >1,000 kW","Dedicated Facilities","Pumping","Lighting","-","-"]
[419,null,"ACCT",null,"DESCRIPTION ","Factor",null,"Normalized","Schedule 16","Schedule 24","Schedule 36","Schedule 48T","Schedule 48T","Schedule 40","Sch. 15,51-54,57","-","-"]
[420,null,"560","Operation Supervision & Eng",null,"F106",null,0,0,0,0,0,0,0,0,0,0,0]
[421]
[422,null,"561","Load Dispatching",null,"F106",null,0,0,0,0,0,0,0,0,0,0,0]
[423]
[424,null,"562","Station Expense",null,"F106",null,0,0,0,0,0,0,0,0,0,0,0]
[425]
[426,null,"563","Overhead Line Expense",null,"F106",null,0,0,0,0,0,0,0,0,0,0,0]
[427]
[428,null,"564","Underground Line Expense",null,"F106",null,0,0,0,0,0,0,0,0,0,0,0]
[429]
[430,null,"565","Transm of Electricity by Others",null,"F10",null,0,0,0,0,0,0,0,0,0,0,0]
[431,null,null,"Energy",null,"F10",null,0,0,0,0,0,0,0,0,0,0,0]
[432,null,null,null,null,null,null,0,0,0,0,0,0,0,0,0,0,0]
[433,null,"565NPC","Transm of Electricity by Others",null,"F10",null,0,0,0,0,0,0,0,0,0,0,0]
[434,null,null,"Energy",null,"F10",null,0,0,0,0,0,0,0,0,0,0,0]
[435]
[436,null,"566","Misc. Transmission Expense",null,"F106",null,0,0,0,0,0,0,0,0,0,0,0]
[437]
[438,null,"567","Rents - Transmission",null,"F106",null,0,0,0,0,0,0,0,0,0,0,0]
[439]
[440,null,"568","Maint Supervision & Engineering",null,"F106",null,0,0,0,0,0,0,0,0,0,0,0]
[441]
[442,null,"569","Maintenance of Structures",null,"F106",null,0,0,0,0,0,0,0,0,0,0,0]
[443]
[444,null,"570","Maint of Station Equipment",null,"F106",null,0,0,0,0,0,0,0,0,0,0,0]
[445]
[446,null,"571","Maintenance of Overhead Lines",null,"F106",null,0,0,0,0,0,0,0,0,0,0,0]
[447]
[448,null,"572","Maint of Underground Lines",null,"F106",null,0,0,0,0,0,0,0,0,0,0,0]
[449]
[450,null,"573","Maint of Misc Transmission Plant",null,"F106",null,0,0,0,0,0,0,0,0,0,0,0]
[451]
[452]
[453,null,"TOTAL TRANSMISSION EXPENSE",null,null,null,null,0,0,0,0,0,0,0,0,0,0,0]
[454]
[455]
[456]
[457]
[458]
[459]
[460]
[461]
[462]
[463]
[464]
[465,null,"MISC - Total -  Unbundled",null,null,null,null,"DISTRIBUTION EXPENSE"]
[466]
[467]
[468,null,"A",null,"B","C",null,"D","E","F","G","H","I","J","K","S","T"]
[469,null,null,null,null,null,null,"Washington",null,"Small General","Large General","Large General","Large General","Agricultural","Street & Area"]
[470,null,"FERC",null,null,"COS",null,"Jurisdiction","Residential","Service","Service <1,000 kW","Service >1,000 kW","Dedicated Facilities","Pumping","Lighting","-","-"]
[471,null,"ACCT",null,"DESCRIPTION ","Factor",null,"Normalized","Schedule 16","Schedule 24","Schedule 36","Schedule 48T","Schedule 48T","Schedule 40","Sch. 15,51-54,57","-","-"]
[472,null,"580","Operation Supervision & Eng",null,"F131",null,0,0,0,0,0,0,0,0,0,0,0]
[473]
[474,null,"581","Load Dispatching",null,"F20",null,0,0,0,0,0,0,0,0,0,0,0]
[475]
[476,null,"582","Station Expense",null,"F120",null,0,0,0,0,0,0,0,0,0,0,0]
[477]
[478,null,"583","Overhead Line Expenses",null,"F132",null,0,0,0,0,0,0,0,0,0,0,0]
[479]
[480,null,"584","Underground Line Expense",null,"F133",null,0,0,0,0,0,0,0,0,0,0,0]
[481]
[482,null,"585","Street Lighting & Signal Systems",null,"F130",null,0,0,0,0,0,0,0,0,0,0,0]
[483]
[484,null,"586","Meter Expenses",null,"F127",null,0,0,0,0,0,0,0,0,0,0,0]
[485]
[486,null,"587","Customer Installation Expenses",null,"F20",null,0,0,0,0,0,0,0,0,0,0,0]
[487]
[488,null,"588","Misc. Distribution Expenses",null,"F131",null,0,0,0,0,0,0,0,0,0,0,0]
[489]
[490,null,"589","Rents",null,"F131",null,0,0,0,0,0,0,0,0,0,0,0]
[491]
[492,null,"590","Maint Supervision & Engineering",null,"F131",null,0,0,0,0,0,0,0,0,0,0,0]
[493]
[494,null,"591","Maintenance of Structures",null,"F119",null,0,0,0,0,0,0,0,0,0,0,0]
[495]
[496,null,"592","Maint of Station Equipment",null,"F120",null,0,0,0,0,0,0,0,0,0,0,0]
[497]
[498,null,"593","Maintenance of Overhead Lines",null,"F134",null,0,0,0,0,0,0,0,0,0,0,0]
[499]
[500,null,"594","Maint of Underground Lines",null,"F135",null,0,0,0,0,0,0,0,0,0,0,0]
[501]
[502,null,"595","Maint of Line Transformers",null,"F125",null,0,0,0,0,0,0,0,0,0,0,0]
[503]
[504,null,"596","Maint of Street Lighting & Signals",null,"F130",null,0,0,0,0,0,0,0,0,0,0,0]
[505]
[506,null,"597","Maintenance of Meters",null,"F127",null,0,0,0,0,0,0,0,0,0,0,0]
[507]
[508,null,"598","Maint of Misc. Distribution Plant",null,"F131",null,0,0,0,0,0,0,0,0,0,0,0]
[509]
[510,null,"TOTAL DISTRIBUTION EXPENSE",null,null,null,null,0,0,0,0,0,0,0,0,0,0,0]
[511]
[512]
[513,null,null,null,null,null,null,"CUSTOMER ACCOUNTS EXPENSE"]
[514]
[515]
[516,null,"901","Supervision",null,"F136",null,0,0,0,0,0,0,0,0,0,0,0]
[517]
[518,null,"902","Meter Reading Expense",null,"F41",null,0,0,0,0,0,0,0,0,0,0,0]
[519]
[520,null,"903","Customer Receipts & Collections",null,"F42",null,0,0,0,0,0,0,0,0,0,0,0]
[521]
[522,null,"904","Uncollectible Accounts",null,"F80",null,0,0,0,0,0,0,0,0,0,0,0]
[523]
[524,null,"905","Misc. Customer Accounts Exp",null,"F136",null,0,0,0,0,0,0,0,0,0,0,0]
[525]
[526,null,"TOTAL CUSTOMER ACCOUNTS EXPENSE",null,null,null,null,0,0,0,0,0,0,0,0,0,0,0]
[527]
[528,null,"MISC - Total -  Unbundled",null,null,null,null,"CUSTOMER SERVICE EXPENSE"]
[529]
[530,null,"A",null,"B","C",null,"D","E","F","G","H","I","J","K","S","T"]
[531,null,null,null,null,null,null,"Washington",null,"Small General","Large General","Large General","Large General","Agricultural","Street & Area"]
[532,null,"FERC",null,null,"COS",null,"Jurisdiction","Residential","Service","Service <1,000 kW","Service >1,000 kW","Dedicated Facilities","Pumping","Lighting","-","-"]
[533,null,"ACCT",null,"DESCRIPTION ","Factor",null,"Normalized","Schedule 16","Schedule 24","Schedule 36","Schedule 48T","Schedule 48T","Schedule 40","Sch. 15,51-54,57","-","-"]
[534,null,"907","Supervision",null,"F40",null,0,0,0,0,0,0,0,0,0,0,0]
[535]
[536,null,"908","Customer Assistance",null,"F40",null,0,0,0,0,0,0,0,0,0,0,0]
[537]
[538,null,"909","Informational & Instructional Adv",null,"F40",null,0,0,0,0,0,0,0,0,0,0,0]
[539]
[540,null,"910","Misc. Customer Service",null,"F40",null,0,0,0,0,0,0,0,0,0,0,0]
[541]
[542,null,"TOTAL CUSTOMER SERVICE EXPENSE",null,null,null,null,0,0,0,0,0,0,0,0,0,0,0]
[543]
[544]
[545,null,null,null,null,null,null,"SALES EXPENSE"]
[546]
[547]
[548,null,"911","Supervision",null,"F40",null,0,0,0,0,0,0,0,0,0,0,0]
[549]
[550,null,"912","Demonstration & Selling Expense",null,"F40",null,0,0,0,0,0,0,0,0,0,0,0]
[551]
[552,null,"913","Advertising Expense",null,"F40",null,0,0,0,0,0,0,0,0,0,0,0]
[553]
[554,null,"916","Misc. Sales Expense",null,"F40",null,0,0,0,0,0,0,0,0,0,0,0]
[555]
[556,null,"TOTAL SALES EXPENSE",null,null,null,null,0,0,0,0,0,0,0,0,0,0,0]
[557]
[558]
[559,null,null,null,null,null,null,"ADMINISTRATION & GENERAL EXPENSE"]
[560]
[561]
[562,null,"920","Administrative & General Salaries",null,"F102M",null,0,0,0,0,0,0,0,0,0,0,0]
[563,null,null,null,"Customer - System","F42",null,0,0,0,0,0,0,0,0,0,0,0]
[564,null,null,null,"Administrative & General Salaries",null,null,0,0,0,0,0,0,0,0,0,0,0]
[565]
[566,null,"921","Office Supplies & expenses",null,"F102M",null,0,0,0,0,0,0,0,0,0,0,0]
[567,null,null,null,"Customer - System","F42",null,0,0,0,0,0,0,0,0,0,0,0]
[568,null,null,null,"Office Supplies & expenses",null,null,0,0,0,0,0,0,0,0,0,0,0]
[569]
[570,null,"923","Outside Services",null,"F102M",null,0,0,0,0,0,0,0,0,0,0,0]
[571,null,null,null,"Customer - System","F42",null,0,0,0,0,0,0,0,0,0,0,0]
[572,null,null,null,"Outside Services",null,null,0,0,0,0,0,0,0,0,0,0,0]
[573]
[574,null,"924","Property Insurance",null,"F102M",null,0,0,0,0,0,0,0,0,0,0,0]
[575]
[576,null,"925","Injuries & Damages",null,"F102M",null,0,0,0,0,0,0,0,0,0,0,0]
[577]
[578,null,"926","Employee Pensions & Benefits",null,"F138M",null,0,0,0,0,0,0,0,0,0,0,0]
[579]
[580,null,"927","Franchise Requirements",null,"F102",null,0,0,0,0,0,0,0,0,0,0,0]
[581]
[582,null,"928","Regulatory Commission Expense",null,"F141",null,1685420.5312579749,746643.3056784959,251938.54154763688,341089.82044976793,128166.75328330652,139030.49869312046,69276.58788453626,9275.0237211110743,0,0,0]
[583]
[584,null,"929","Duplicate Charges",null,"F138M",null,0,0,0,0,0,0,0,0,0,0,0]
[585]
[586,null,"930","Misc General Expenses",null,"F138M",null,0,0,0,0,0,0,0,0,0,0,0]
[587]
[588,null,"931","Rents",null,"F102M",null,0,0,0,0,0,0,0,0,0,0,0]
[589]
[590,null,"935","Maintenance of General Plant",null,"F108",null,0,0,0,0,0,0,0,0,0,0,0]
[591]
[592,null,"TOTAL ADMINISTRATIVE & GEN EXPENSE",null,null,null,null,1685420.5312579749,746643.3056784959,251938.54154763688,341089.82044976793,128166.75328330652,139030.49869312046,69276.58788453626,9275.0237211110743,0,0,0]
[593]
[594]
[595,null,"TOTAL O & M EXPENSE",null,null,null,null,1685420.5312579749,746643.3056784959,251938.54154763688,341089.82044976793,128166.75328330652,139030.49869312046,69276.58788453626,9275.0237211110743,0,0,0]
[596]
[597,null,"MISC - Total -  Unbundled",null,null,null,null,"DEPRECIATION EXPENSE"]
[598]
[599,null,"A",null,"B","C",null,"D","E","F","G","H","I","J","K","S","T"]
[600,null,null,null,null,null,null,"Washington",null,"Small General","Large General","Large General","Large General","Agricultural","Street & Area"]
[601,null,"FERC",null,null,"COS",null,"Jurisdiction","Residential","Service","Service <1,000 kW","Service >1,000 kW","Dedicated Facilities","Pumping","Lighting","-","-"]
[602,null,"ACCT",null,"DESCRIPTION ","Factor",null,"Normalized","Schedule 16","Schedule 24","Schedule 36","Schedule 48T","Schedule 48T","Schedule 40","Sch. 15,51-54,57","-","-"]
[603,null,"403SP","Steam Depreciation",null,"F10",null,0,0,0,0,0,0,0,0,0,0,0]
[604,null,null,null,"JBG","F10",null,0,0,0,0,0,0,0,0,0,0,0]
[605,null,null,null,"Total 403SP",null,null,0,0,0,0,0,0,0,0,0,0,0]
[606]
[607,null,"403NP","Nuclear Depreciation",null,"F10",null,0,0,0,0,0,0,0,0,0,0,0]
[608]
[609,null,"403HP","Hydro Depreciation",null,"F10",null,0,0,0,0,0,0,0,0,0,0,0]
[610]
[611,null,"403OP","Other Production Depreciation",null,"F10",null,0,0,0,0,0,0,0,0,0,0,0]
[612,null,null,null,"CAGE","F10",null,0,0,0,0,0,0,0,0,0,0,0]
[613,null,null,null,"CAEE","F10",null,0,0,0,0,0,0,0,0,0,0,0]
[614,null,null,null,"Total 403OP",null,null,0,0,0,0,0,0,0,0,0,0,0]
[615]
[616,null,"403TP","Transmission Depreciation",null,"F106",null,0,0,0,0,0,0,0,0,0,0,0]
[617]
[618,null,"403","Distribution Depreciation"]
[619,null,null,null,"Land Rights","F118",null,0,0,0,0,0,0,0,0,0,0,0]
[620,null,null,null,"Structures","F119",null,0,0,0,0,0,0,0,0,0,0,0]
[621,null,null,null,"Station Equip","F120",null,0,0,0,0,0,0,0,0,0,0,0]
[622,null,null,null,"Poles & Towers","F121",null,0,0,0,0,0,0,0,0,0,0,0]
[623,null,null,null,"OH Conductors","F122",null,0,0,0,0,0,0,0,0,0,0,0]
[624,null,null,null,"UG Conduit","F123",null,0,0,0,0,0,0,0,0,0,0,0]
[625,null,null,null,"UG Conductor","F124",null,0,0,0,0,0,0,0,0,0,0,0]
[626,null,null,null,"Line Transformer","F125",null,0,0,0,0,0,0,0,0,0,0,0]
[627,null,null,null,"Services","F126",null,0,0,0,0,0,0,0,0,0,0,0]
[628,null,null,null,"Meters","F127",null,0,0,0,0,0,0,0,0,0,0,0]
[629,null,null,null,"Inst Cust Premises","F128",null,0,0,0,0,0,0,0,0,0,0,0]
[630,null,null,null,"Leased Property","F129",null,0,0,0,0,0,0,0,0,0,0,0]
[631,null,null,null,"Street Lighting","F130",null,0,0,0,0,0,0,0,0,0,0,0]
[632,null,null,"Total Distribution Expense",null,null,null,0,0,0,0,0,0,0,0,0,0,0]
[633]
[634,null,"403GP","General Depreciation"]
[635,null,null,null,"Situs","F107M",null,0,0,0,0,0,0,0,0,0,0,0]
[636,null,null,null,"System Generation","F105M",null,0,0,0,0,0,0,0,0,0,0,0]
[637,null,null,null,"System Overheads","F102M",null,0,0,0,0,0,0,0,0,0,0,0]
[638,null,null,null,"Customer - System","F42",null,0,0,0,0,0,0,0,0,0,0,0]
[639,null,null,null,"Energy","F10",null,0,0,0,0,0,0,0,0,0,0,0]
[640,null,null,null,"CAEE","F105M",null,0,0,0,0,0,0,0,0,0,0,0]
[641,null,null,null,"CAEE","F105M",null,0,0,0,0,0,0,0,0,0,0,0]
[642,null,null,"Total General Expense",null,null,null,0,0,0,0,0,0,0,0,0,0,0]
[643]
[644,null,"403GV0","General Vehicles",null,"F105M",null,0,0,0,0,0,0,0,0,0,0,0]
[645]
[646,null,"403MP","Mining Depreciation",null,"F10",null,0,0,0,0,0,0,0,0,0,0,0]
[647]
[648,null,"403EP","Experimental Plant Depreciation",null,"F10",null,0,0,0,0,0,0,0,0,0,0,0]
[649]
[650]
[651,null,"TOTAL DEPRECIATION EXPENSE",null,null,null,null,0,0,0,0,0,0,0,0,0,0,0]
[652]
[653,null,null,null,null,null,null,"AMORTIZATION EXPENSE"]
[654]
[655]
[656,null,"404GP","Amort of LT Plant - Cap. Lease Gen"]
[657,null,null,"Division",null,"F10",null,0,0,0,0,0,0,0,0,0,0,0]
[658,null,null,"System Overheads",null,"F102M",null,0,0,0,0,0,0,0,0,0,0,0]
[659,null,null,"Customer - System",null,"F42",null,0,0,0,0,0,0,0,0,0,0,0]
[660,null,null,"Total Amort. Cap. Lease General",null,null,null,0,0,0,0,0,0,0,0,0,0,0]
[661]
[662,null,"404SP","Amort of LT Plant - Cap Lease Steam",null,"F10",null,0,0,0,0,0,0,0,0,0,0,0]
[663]
[664,null,"404IP","Amort of LT Plant - Intangible Plant"]
[665,null,null,null,"Situs","F107M",null,0,0,0,0,0,0,0,0,0,0,0]
[666,null,null,null,"System Generation","F105M",null,0,0,0,0,0,0,0,0,0,0,0]
[667,null,null,null,"System Overheads","F102M",null,0,0,0,0,0,0,0,0,0,0,0]
[668,null,null,null,"Customer - System","F42",null,0,0,0,0,0,0,0,0,0,0,0]
[669,null,null,null,"Energy","F10",null,0,0,0,0,0,0,0,0,0,0,0]
[670,null,null,null,"CAEW","F105M",null,0,0,0,0,0,0,0,0,0,0,0]
[671,null,null,null,"CAEE","F105M",null,0,0,0,0,0,0,0,0,0,0,0]
[672,null,null,"Total Amort. Intangible Plant",null,null,null,0,0,0,0,0,0,0,0,0,0,0]
[673]
[674,null,"MISC - Total -  Unbundled",null,null,null,null,"AMORTIZATION EXPENSE (continued)"]
[675]
[676]
[677,null,"A",null,"B","C",null,"D","E","F","G","H","I","J","K","S","T"]
[678,null,null,null,null,null,null,"Washington",null,"Small General","Large General","Large General","Large General","Agricultural","Street & Area"]
[679,null,"FERC",null,null,"COS",null,"Jurisdiction","Residential","Service","Service <1,000 kW","Service >1,000 kW","Dedicated Facilities","Pumping","Lighting","-","-"]
[680,null,"ACCT",null,"DESCRIPTION ","Factor",null,"Normalized","Schedule 16","Schedule 24","Schedule 36","Schedule 48T","Schedule 48T","Schedule 40","Sch. 15,51-54,57","-","-"]
[681,null,"404MP",null,"Amort of LT Plant - Mining Plant","F10",null,0,0,0,0,0,0,0,0,0,0,0]
[682]
[683,null,"404OP",null,"Amort of LT Plant - Other Plant","F30",null,0,0,0,0,0,0,0,0,0,0,0]
[684]
[685,null,"404HP",null,"Amort of Other Electric Plant","F110",null,0,0,0,0,0,0,0,0,0,0,0]
[686]
[687,null,"405",null,"Amort of Other Electric Plant","F110",null,0,0,0,0,0,0,0,0,0,0,0]
[688]
[689,null,"406",null,"Amort of Plant Acquisition Adj","F10",null,0,0,0,0,0,0,0,0,0,0,0]
[690]
[691,null,"407",null,"Amort of Prop Losses, Unrec Plant,","F110",null,0,0,0,0,0,0,0,0,0,0,0]
[692]
[693]
[694,null,"TOTAL AMORTIZATION EXPENSE",null,null,null,null,0,0,0,0,0,0,0,0,0,0,0]
[695]
[696]
[697,null,null,null,null,null,null,"TAX OTHER THAN INCOME"]
[698]
[699]
[700,null,"408","Taxes Other Than Income",null,"F101M",null,0,0,0,0,0,0,0,0,0,0,0]
[701,null,null,null,"Customer - System","F101M",null,0,0,0,0,0,0,0,0,0,0,0]
[702,null,null,"Total Taxes Other Than Income",null,null,null,0,0,0,0,0,0,0,0,0,0,0]
[703]
[704]
[705,null,null,null,null,null,null,"DEFERRED  ITC"]
[706]
[707]
[708,null,"41140","Deferred I T C - Federal",null,"F101M",null,0,0,0,0,0,0,0,0,0,0,0]
[709]
[710,null,"41141","Deferred I T C - Idaho",null,"F101M",null,0,0,0,0,0,0,0,0,0,0,0]
[711]
[712,null,"TOTAL DEFERRED ITC",null,null,null,null,0,0,0,0,0,0,0,0,0,0,0]
[713]
[714]
[715,null,null,null,null,null,null,"DEFERRED INCOME TAXES"]
[716]
[717]
[718,null,"41010","Deferred Income Tax - Federal-DR",null,"F101M",null,0,0,0,0,0,0,0,0,0,0,0]
[719]
[720,null,"41011","Deferred Income Tax - State-DR",null,"F101M",null,0,0,0,0,0,0,0,0,0,0,0]
[721]
[722,null,"41110","Deferred Income Tax - Federal-CR",null,"F101M",null,0,0,0,0,0,0,0,0,0,0,0]
[723]
[724,null,"41111","Deferred Income Tax - State-CR",null,"F101M",null,0,0,0,0,0,0,0,0,0,0,0]
[725]
[726,null,"TOTAL DEFERRED INCOME TAXES",null,null,null,null,0,0,0,0,0,0,0,0,0,0,0]
[727]
[728]
[729,null,null,null,null,null,null,"INCOME TAXES"]
[730]
[731]
[732,null,"40911","State Income Taxes",null,"F101M",null,0,0,0,0,0,0,0,0,0,0,0]
[733]
[734,null,"40910","Federal Income Tax",null,"F101M",null,97323.200348206738,41478.532962218844,13278.73770019883,20695.359696325322,8138.8429261431747,9947.7003573882521,3519.5915388466815,264.43516708562174,0,0,0]
[735]
[736]
[737,null,"TOTAL OPERATING EXPENSES",null,null,null,null,1782743.7316061817,788121.83864071476,265217.27924783569,361785.18014609325,136305.59620944969,148978.1990505087,72796.179423382942,9539.4588881966956,0,0,0]
[738]
[739]
[740,null,"MISC - Total -  Unbundled",null,null,null,null,"STEAM PRODUCTION PLANT"]
[741]
[742,null,"A",null,"B","C",null,"D","E","F","G","H","I","J","K","S","T"]
[743,null,null,null,null,null,null,"Washington",null,"Small General","Large General","Large General","Large General","Agricultural","Street & Area"]
[744,null,"FERC",null,null,"COS",null,"Jurisdiction","Residential","Service","Service <1,000 kW","Service >1,000 kW","Dedicated Facilities","Pumping","Lighting","-","-"]
[745,null,"ACCT",null,"DESCRIPTION ","Factor",null,"Normalized","Schedule 16","Schedule 24","Schedule 36","Schedule 48T","Schedule 48T","Schedule 40","Sch. 15,51-54,57","-","-"]
[746,null,"310","Land and Land Rights",null,"F10",null,0,0,0,0,0,0,0,0,0,0,0]
[747,null,null,null,"JBG","F10",null,0,0,0,0,0,0,0,0,0,0,0]
[748,null,null,null,"Total 310",null,null,0,0,0,0,0,0,0,0,0,0,0]
[749]
[750,null,"311","Structures and Improvements",null,"F10",null,0,0,0,0,0,0,0,0,0,0,0]
[751,null,null,null,"JBG","F10",null,0,0,0,0,0,0,0,0,0,0,0]
[752,null,null,null,"Total 311",null,null,0,0,0,0,0,0,0,0,0,0,0]
[753]
[754,null,"312","Boiler Plant Equipment",null,"F10",null,0,0,0,0,0,0,0,0,0,0,0]
[755,null,null,null,"JBG","F10",null,0,0,0,0,0,0,0,0,0,0,0]
[756,null,null,null,"Total 312",null,null,0,0,0,0,0,0,0,0,0,0,0]
[757]
[758,null,"314","Turbogenerator Units",null,"F10",null,0,0,0,0,0,0,0,0,0,0,0]
[759,null,null,null,"JBG","F10",null,0,0,0,0,0,0,0,0,0,0,0]
[760,null,null,null,"Total 314",null,null,0,0,0,0,0,0,0,0,0,0,0]
[761]
[762,null,"315","Accessory Electric Equipment",null,"F10",null,0,0,0,0,0,0,0,0,0,0,0]
[763,null,null,null,"JBG","F10",null,0,0,0,0,0,0,0,0,0,0,0]
[764,null,null,null,"Total 315",null,null,0,0,0,0,0,0,0,0,0,0,0]
[765]
[766,null,"316","Misc Power Plant Equipment",null,"F10",null,0,0,0,0,0,0,0,0,0,0,0]
[767,null,null,null,"JBG","F10",null,0,0,0,0,0,0,0,0,0,0,0]
[768,null,null,null,"Total 316",null,null,0,0,0,0,0,0,0,0,0,0,0]
[769]
[770,null,"SP","Unclassified Steam Plant - Acct 300",null,"F10",null,0,0,0,0,0,0,0,0,0,0,0]
[771]
[772]
[773]
[774,null,"Total Steam Production Plant",null,null,null,null,0,0,0,0,0,0,0,0,0,0,0]
[775]
[776]
[777,null,null,null,null,null,null,"NUCLEAR PRODUCTION"]
[778]
[779]
[780,null,"320","Land and Land Rights",null,"F10",null,0,0,0,0,0,0,0,0,0,0,0]
[781]
[782,null,"321","Structures and Improvements",null,"F10",null,0,0,0,0,0,0,0,0,0,0,0]
[783]
[784,null,"322","Reactor Plant Equipment",null,"F10",null,0,0,0,0,0,0,0,0,0,0,0]
[785]
[786,null,"323","Turbogenerator Units",null,"F10",null,0,0,0,0,0,0,0,0,0,0,0]
[787]
[788,null,"324","Land and Land Rights",null,"F10",null,0,0,0,0,0,0,0,0,0,0,0]
[789]
[790,null,"325","Misc. Power Plant Equipment",null,"F10",null,0,0,0,0,0,0,0,0,0,0,0]
[791]
[792,null,"NP","Unclassified Nuclear Plt - Acct 300",null,"F10",null,0,0,0,0,0,0,0,0,0,0,0]
[793]
[794,null,"Total Nuclear Production Plant",null,null,null,null,0,0,0,0,0,0,0,0,0,0,0]
[795]
[796]
[797,null,null,null,null,null,null,"HYDRAULIC PRODUCTION PLANT"]
[798]
[799]
[800,null,"330","Land and Land Rights",null,"F10",null,0,0,0,0,0,0,0,0,0,0,0]
[801]
[802,null,"331","Structures and Improvements",null,"F10",null,0,0,0,0,0,0,0,0,0,0,0]
[803]
[804,null,"332","Reservoirs, Dams & Waterways",null,"F10",null,0,0,0,0,0,0,0,0,0,0,0]
[805]
[806,null,"333","Water Wheel, Turbines, & Generators",null,"F10",null,0,0,0,0,0,0,0,0,0,0,0]
[807]
[808,null,"334","Accessory Electric Equipment",null,"F10",null,0,0,0,0,0,0,0,0,0,0,0]
[809]
[810,null,"335","Misc. Power Plant Equipment",null,"F10",null,0,0,0,0,0,0,0,0,0,0,0]
[811]
[812,null,"336","Roads, Railroads & Bridges",null,"F10",null,0,0,0,0,0,0,0,0,0,0,0]
[813]
[814,null,"HP","Unclassified Hydro Plant - Acct 300",null,"F10",null,0,0,0,0,0,0,0,0,0,0,0]
[815]
[816,null,"Total Hydraulic Plant",null,null,null,null,0,0,0,0,0,0,0,0,0,0,0]
[817]
[818,null,"MISC - Total -  Unbundled",null,null,null,null,"OTHER PRODUCTION PLANT"]
[819,null,"A",null,"B","C",null,"D","E","F","G","H","I","J","K","S","T"]
[820,null,null,null,null,null,null,"Washington",null,"Small General","Large General","Large General","Large General","Agricultural","Street & Area"]
[821,null,"FERC",null,null,"COS",null,"Jurisdiction","Residential","Service","Service <1,000 kW","Service >1,000 kW","Dedicated Facilities","Pumping","Lighting","-","-"]
[822,null,"ACCT",null,"DESCRIPTION ","Factor",null,"Normalized","Schedule 16","Schedule 24","Schedule 36","Schedule 48T","Schedule 48T","Schedule 40","Sch. 15,51-54,57","-","-"]
[823,null,"340","Land and Land Rights"]
[824,null,null,null,"SG","F10",null,0,0,0,0,0,0,0,0,0,0,0]
[825,null,null,null,"CAGE","F10",null,0,0,0,0,0,0,0,0,0,0,0]
[826,null,null,null,"Total 340",null,null,0,0,0,0,0,0,0,0,0,0,0]
[827]
[828,null,"341","Structures and Improvements"]
[829,null,null,null,"SG","F10",null,0,0,0,0,0,0,0,0,0,0,0]
[830,null,null,null,"CAGE","F10",null,0,0,0,0,0,0,0,0,0,0,0]
[831,null,null,null,"Total 341",null,null,0,0,0,0,0,0,0,0,0,0,0]
[832]
[833,null,"342","Fuel Holders, Producers & Access"]
[834,null,null,null,"SG","F10",null,0,0,0,0,0,0,0,0,0,0,0]
[835,null,null,null,"CAGE","F10",null,0,0,0,0,0,0,0,0,0,0,0]
[836,null,null,null,"Total 342",null,null,0,0,0,0,0,0,0,0,0,0,0]
[837]
[838,null,"343","Prime Movers",null,"F10",null,0,0,0,0,0,0,0,0,0,0,0]
[839,null,null,null,"CAGE","F10",null,0,0,0,0,0,0,0,0,0,0,0]
[840,null,null,null,"Total 343",null,null,0,0,0,0,0,0,0,0,0,0,0]
[841]
[842,null,"344","Generators"]
[843,null,null,null,"SG","F10",null,0,0,0,0,0,0,0,0,0,0,0]
[844,null,null,null,"CAGE","F10",null,0,0,0,0,0,0,0,0,0,0,0]
[845,null,null,null,"Total 344",null,null,0,0,0,0,0,0,0,0,0,0,0]
[846]
[847,null,"345","Accessory Electric Plant"]
[848,null,null,null,"SG","F10",null,0,0,0,0,0,0,0,0,0,0,0]
[849,null,null,null,"CAGE","F10",null,0,0,0,0,0,0,0,0,0,0,0]
[850,null,null,null,"Total 345",null,null,0,0,0,0,0,0,0,0,0,0,0]
[851]
[852,null,"346","Misc. Power Plant Equipment",null,"F10",null,0,0,0,0,0,0,0,0,0,0,0]
[853]
[854,null,"OP","Unclassified Other Prod - Acct 300",null,"F10",null,0,0,0,0,0,0,0,0,0,0,0]
[855]
[856,null,"Total Other Production Plant",null,null,null,null,0,0,0,0,0,0,0,0,0,0,0]
[857]
[858,null,"Experimental Plant"]
[859,null,"103","Experimental Plant",null,"F10",null,0,0,0,0,0,0,0,0,0,0,0]
[860]
[861,null,"TOTAL PRODUCTION PLANT",null,null,null,null,0,0,0,0,0,0,0,0,0,0,0]
[862]
[863,null,null,null,null,null,null,"TRANSMISSION PLANT"]
[864,null,"350","Land and Land Rights"]
[865,null,null,null,"Demand","F10",null,0,0,0,0,0,0,0,0,0,0,0]
[866,null,null,null,"Direct Assigned","A",0,0,0,0,0,0,0,0,0,0,0,0]
[867,null,null,null,null,null,null,0,0,0,0,0,0,0,0,0,0,0]
[868,null,"352","Structures and Improvements"]
[869,null,null,null,"Demand","F10",null,0,0,0,0,0,0,0,0,0,0,0]
[870,null,null,null,"Direct Assigned","A",0,0,0,0,0,0,0,0,0,0,0,0]
[871,null,null,null,null,null,null,0,0,0,0,0,0,0,0,0,0,0]
[872,null,"353","Station Equipment"]
[873,null,null,null,"Demand","F10",null,0,0,0,0,0,0,0,0,0,0,0]
[874,null,null,null,"Direct Assigned","A",0,0,0,0,0,0,0,0,0,0,0,0]
[875,null,null,null,null,null,null,0,0,0,0,0,0,0,0,0,0,0]
[876,null,"354","Towers and Fixtures"]
[877,null,null,null,"Demand","F10",null,0,0,0,0,0,0,0,0,0,0,0]
[878,null,null,null,"Direct Assigned","A",0,0,0,0,0,0,0,0,0,0,0,0]
[879,null,null,null,null,null,null,0,0,0,0,0,0,0,0,0,0,0]
[880,null,"355","Poles and Fixtures"]
[881,null,null,null,"Demand","F10",null,0,0,0,0,0,0,0,0,0,0,0]
[882,null,null,null,"Direct Assigned","A",0,0,0,0,0,0,0,0,0,0,0,0]
[883,null,null,null,null,null,null,0,0,0,0,0,0,0,0,0,0,0]
[884,null,"356","Overhead Conductors"]
[885,null,null,null,"Demand","F10",null,0,0,0,0,0,0,0,0,0,0,0]
[886,null,null,null,"Direct Assigned","A",0,0,0,0,0,0,0,0,0,0,0,0]
[887,null,null,null,null,null,null,0,0,0,0,0,0,0,0,0,0,0]
[888,null,"357","Underground Conduit"]
[889,null,null,null,"Demand","F10",null,0,0,0,0,0,0,0,0,0,0,0]
[890,null,null,null,"Direct Assigned","A",0,0,0,0,0,0,0,0,0,0,0,0]
[891,null,null,null,null,null,null,0,0,0,0,0,0,0,0,0,0,0]
[892,null,"358","Underground Conductors "]
[893,null,null,null,"Demand","F10",null,0,0,0,0,0,0,0,0,0,0,0]
[894,null,null,null,"Direct Assigned","A",0,0,0,0,0,0,0,0,0,0,0,0]
[895,null,null,null,null,null,null,0,0,0,0,0,0,0,0,0,0,0]
[896,null,"359","Roads and Trails"]
[897,null,null,null,"Demand","F10",null,0,0,0,0,0,0,0,0,0,0,0]
[898,null,null,null,"Direct Assigned","A",0,0,0,0,0,0,0,0,0,0,0,0]
[899,null,null,null,null,null,null,0,0,0,0,0,0,0,0,0,0,0]
[900]
[901,null,"TP","Unclassified Trans Plant - Acct 300",null,"F10",null,0,0,0,0,0,0,0,0,0,0,0]
[902,null,"TS0","Unclassified Trans Sub - Acct 300",null,"F10",null,0,0,0,0,0,0,0,0,0,0,0]
[903]
[904,null,"TOTAL TRANSMISSION PLANT",null,null,null,null,0,0,0,0,0,0,0,0,0,0,0]
[905,null,"MISC - Total -  Unbundled",null,null,null,null,"DISTRIBUTION PLANT"]
[906,null,"A",null,"B","C",null,"D","E","F","G","H","I","J","K","S","T"]
[907,null,null,null,null,null,null,"Washington",null,"Small General","Large General","Large General","Large General","Agricultural","Street & Area"]
[908,null,"FERC",null,null,"COS",null,"Jurisdiction","Residential","Service","Service <1,000 kW","Service >1,000 kW","Dedicated Facilities","Pumping","Lighting","-","-"]
[909,null,"ACCT",null,"DESCRIPTION ","Factor",null,"Normalized","Schedule 16","Schedule 24","Schedule 36","Schedule 48T","Schedule 48T","Schedule 40","Sch. 15,51-54,57","-","-"]
[910]
[911,null,"360","Land and Land Rights"]
[912,null,null,null,"Demand Primary","F20A",null,0,0,0,0,0,0,0,0,0,0]
[913,null,null,null,"Assigned","A",0,0,0,0,0,0,0,0,0,0,0,0]
[914,null,null,null,null,null,null,0,0,0,0,0,0,0,0,0,0,0]
[915,null,"361","Structures and Improvements"]
[916,null,null,null,"Demand Primary","F20",null,0,0,0,0,0,0,0,0,0,0,0]
[917,null,null,null,"Assigned","A",0,0,0,0,0,0,0,0,0,0,0,0]
[918,null,null,null,null,null,null,0,0,0,0,0,0,0,0,0,0,0]
[919,null,"362","Station Equipment"]
[920,null,null,null,"Demand Primary","F20A",null,0,0,0,0,0,0,0,0,0,0,0]
[921,null,null,null,"Assigned","A",0,0,0,0,0,0,0,0,0,0,0,0]
[922,null,null,null,null,null,null,0,0,0,0,0,0,0,0,0,0,0]
[923,null,"364","Poles, Towers & Fixtures"]
[924,null,null,null,"Demand Primary","F20A",0,0,0,0,0,0,0,0,0,0,0,0]
[925,null,null,null,"Demand Secondary","F22",0,0,0,0,0,0,0,0,0,0,0,0]
[926,null,null,null,"Assigned","A",0,0,0,0,0,0,0,0,0,0,0,0]
[927,null,null,null,null,null,null,0,0,0,0,0,0,0,0,0,0,0]
[928,null,"365","Overhead Conductors"]
[929,null,null,null,"Demand Primary","F20A",0,0,0,0,0,0,0,0,0,0,0,0]
[930,null,null,null,"Demand Secondary","F22",0,0,0,0,0,0,0,0,0,0,0,0]
[931,null,null,null,"Assigned","A",0,0,0,0,0,0,0,0,0,0,0,0]
[932,null,null,null,null,null,null,0,0,0,0,0,0,0,0,0,0,0]
[933,null,"366","Underground Conduit"]
[934,null,null,null,"Demand Primary","F20A",0,0,0,0,0,0,0,0,0,0,0,0]
[935,null,null,null,"Demand Secondary","F22",0,0,0,0,0,0,0,0,0,0,0,0]
[936,null,null,null,"Assigned","A",0,0,0,0,0,0,0,0,0,0,0,0]
[937,null,null,null,null,null,null,0,0,0,0,0,0,0,0,0,0,0]
[938,null,"367","Underground Conductors "]
[939,null,null,null,"Demand Primary","F20A",0,0,0,0,0,0,0,0,0,0,0,0]
[940,null,null,null,"Demand Secondary","F22",0,0,0,0,0,0,0,0,0,0,0,0]
[941,null,null,null,"Assigned","A",0,0,0,0,0,0,0,0,0,0,0,0]
[942,null,null,null,null,null,null,0,0,0,0,0,0,0,0,0,0,0]
[943,null,"368","Line Transformers"]
[944,null,null,null,"Demand Secondary","F21",null,0,0,0,0,0,0,0,0,0,0,0]
[945,null,null,null,"Assigned","A",0,0,0,0,0,0,0,0,0,0,0,0]
[946,null,null,null,null,null,null,0,0,0,0,0,0,0,0,0,0,0]
[947,null,"369","Services"]
[948,null,null,null,"Customer","F70",null,0,0,0,0,0,0,0,0,0,0,0]
[949,null,null,null,"Assigned","A",0,0,0,0,0,0,0,0,0,0,0,0]
[950,null,null,null,null,null,null,0,0,0,0,0,0,0,0,0,0,0]
[951,null,"370","Meters"]
[952,null,null,null,"Customer","F60A",null,0,0,0,0,0,0,0,0,0,0,0]
[953,null,null,null,"Assigned","A",0,0,0,0,0,0,0,0,0,0,0,0]
[954,null,null,null,null,null,null,0,0,0,0,0,0,0,0,0,0,0]
[955,null,"371","Install on Customers' Premises"]
[956,null,null,null,"Demand Primary","F20",0,0,0,0,0,0,0,0,0,0,0,0]
[957,null,null,null,"Demand Secondary","F22",0,0,0,0,0,0,0,0,0,0,0,0]
[958,null,null,null,"Assigned","A",0,0,0,0,0,0,0,0,0,0,0,0]
[959,null,null,null,null,null,null,0,0,0,0,0,0,0,0,0,0,0]
[960,null,"372","Leased Property"]
[961,null,null,null,"Demand Primary","F20",0,0,0,0,0,0,0,0,0,0,0,0]
[962,null,null,null,"Demand Secondary","F22",0,0,0,0,0,0,0,0,0,0,0,0]
[963,null,null,null,"Assigned","A",0,0,0,0,0,0,0,0,0,0,0,0]
[964,null,null,null,null,null,null,0,0,0,0,0,0,0,0,0,0,0]
[965]
[966,null,"373","Street Lights",null,"A",0,0,0,0,0,0,0,0,0,0,0,0]
[967]
[968]
[969,null,"DP","Unclassified Dist Plant - Acct 300",null,"F22",0,0,0,0,0,0,0,0,0,0,0,0]
[970,null,"DS0","Unclassified Dist Sub  - Acct 300",null,"F20",0,0,0,0,0,0,0,0,0,0,0,0]
[971,null,"TOTAL DISTRIBUTION PLANT",null,null,null,null,0,0,0,0,0,0,0,0,0,0,0]
[972]
[973,null,"MISC - Total -  Unbundled",null,null,null,null,"GENERAL PLANT"]
[974]
[975,null,"A",null,"B","C",null,"D","E","F","G","H","I","J","K","S","T"]
[976,null,null,null,null,null,null,"Washington",null,"Small General","Large General","Large General","Large General","Agricultural","Street & Area"]
[977,null,"FERC",null,null,"COS",null,"Jurisdiction","Residential","Service","Service <1,000 kW","Service >1,000 kW","Dedicated Facilities","Pumping","Lighting","-","-"]
[978,null,"ACCT",null,"DESCRIPTION ","Factor",null,"Normalized","Schedule 16","Schedule 24","Schedule 36","Schedule 48T","Schedule 48T","Schedule 40","Sch. 15,51-54,57","-","-"]
[979,null,"389","Land and Land Rights"]
[980,null,null,null,"Situs","F107M",null,0,0,0,0,0,0,0,0,0,0,0]
[981,null,null,null,"System Generation","F105M",null,0,0,0,0,0,0,0,0,0,0,0]
[982,null,null,null,"System Overheads","F102M",null,0,0,0,0,0,0,0,0,0,0,0]
[983,null,null,null,"Customer - System","F42",null,0,0,0,0,0,0,0,0,0,0,0]
[984,null,null,"Total Land & Land Rights",null,null,null,0,0,0,0,0,0,0,0,0,0,0]
[985]
[986,null,"390","Structures and Improvements"]
[987,null,null,null,"Situs","F107M",null,0,0,0,0,0,0,0,0,0,0,0]
[988,null,null,null,"System Generation","F105M",null,0,0,0,0,0,0,0,0,0,0,0]
[989,null,null,null,"System Overheads","F102M",null,0,0,0,0,0,0,0,0,0,0,0]
[990,null,null,null,"Customer - System","F42",null,0,0,0,0,0,0,0,0,0,0,0]
[991,null,null,"Total Structures and Improvements",null,null,null,0,0,0,0,0,0,0,0,0,0,0]
[992]
[993,null,"391","Office Furniture & Equipment"]
[994,null,null,null,"Situs","F107M",null,0,0,0,0,0,0,0,0,0,0,0]
[995,null,null,null,"System Generation","F105M",null,0,0,0,0,0,0,0,0,0,0,0]
[996,null,null,null,"System Overheads","F102M",null,0,0,0,0,0,0,0,0,0,0,0]
[997,null,null,null,"Customer - System","F42",null,0,0,0,0,0,0,0,0,0,0,0]
[998,null,null,null,"Energy","F10",null,0,0,0,0,0,0,0,0,0,0,0]
[999,null,null,null,"CAEE","F105M",null,0,0,0,0,0,0,0,0,0,0,0]
[1000,null,null,null,"CAEE","F105M",null,0,0,0,0,0,0,0,0,0,0,0]
[1001,null,null,"Total Office Furniture & Equipment",null,null,null,0,0,0,0,0,0,0,0,0,0,0]
[1002]
[1003,null,"392","Transportation Equipment"]
[1004,null,null,null,"Situs","F107M",null,0,0,0,0,0,0,0,0,0,0,0]
[1005,null,null,null,"System Generation","F105M",null,0,0,0,0,0,0,0,0,0,0,0]
[1006,null,null,null,"System Overheads","F102M",null,0,0,0,0,0,0,0,0,0,0,0]
[1007,null,null,null,"Customer - System","F42",null,0,0,0,0,0,0,0,0,0,0,0]
[1008,null,null,null,"Energy","F10",null,0,0,0,0,0,0,0,0,0,0,0]
[1009,null,null,null,"CAEE","F105M",null,0,0,0,0,0,0,0,0,0,0,0]
[1010,null,null,null,"CAEE","F105M",null,0,0,0,0,0,0,0,0,0,0,0]
[1011,null,null,"Total Transportation Equipment",null,null,null,0,0,0,0,0,0,0,0,0,0,0]
[1012]
[1013,null,"393","Stores Equipment"]
[1014,null,null,null,"Situs","F107M",null,0,0,0,0,0,0,0,0,0,0,0]
[1015,null,null,null,"System Generation","F105M",null,0,0,0,0,0,0,0,0,0,0,0]
[1016,null,null,null,"System Overheads","F102M",null,0,0,0,0,0,0,0,0,0,0,0]
[1017,null,null,null,"CAEE","F105M",null,0,0,0,0,0,0,0,0,0,0,0]
[1018,null,null,"Total Stores Equipment",null,null,null,0,0,0,0,0,0,0,0,0,0,0]
[1019]
[1020,null,"394","Tools, Shop & Garage Equipment"]
[1021,null,null,null,"Situs","F107M",null,0,0,0,0,0,0,0,0,0,0,0]
[1022,null,null,null,"System Generation","F105M",null,0,0,0,0,0,0,0,0,0,0,0]
[1023,null,null,null,"System Overheads","F102M",null,0,0,0,0,0,0,0,0,0,0,0]
[1024,null,null,null,"Energy","F10",null,0,0,0,0,0,0,0,0,0,0,0]
[1025,null,null,null,"CAEE","F105M",null,0,0,0,0,0,0,0,0,0,0,0]
[1026,null,null,null,"CAEE","F105M",null,0,0,0,0,0,0,0,0,0,0,0]
[1027,null,null,"Total Tools, Shop & Garage Equipment",null,null,null,0,0,0,0,0,0,0,0,0,0,0]
[1028]
[1029,null,"395","Laboratory Equipment"]
[1030,null,null,null,"Situs","F107M",null,0,0,0,0,0,0,0,0,0,0,0]
[1031,null,null,null,"System Generation","F105M",null,0,0,0,0,0,0,0,0,0,0,0]
[1032,null,null,null,"System Overheads","F102M",null,0,0,0,0,0,0,0,0,0,0,0]
[1033,null,null,null,"Energy","F10",null,0,0,0,0,0,0,0,0,0,0,0]
[1034,null,null,null,"CAEE","F105M",null,0,0,0,0,0,0,0,0,0,0,0]
[1035,null,null,null,"CAEE","F105M",null,0,0,0,0,0,0,0,0,0,0,0]
[1036,null,null,"Total Laboratory Equipment",null,null,null,0,0,0,0,0,0,0,0,0,0,0]
[1037]
[1038,null,"396","Power Operated Equipment"]
[1039,null,null,null,"Situs","F107M",null,0,0,0,0,0,0,0,0,0,0,0]
[1040,null,null,null,"System Generation","F105M",null,0,0,0,0,0,0,0,0,0,0,0]
[1041,null,null,null,"System Overheads","F102M",null,0,0,0,0,0,0,0,0,0,0,0]
[1042,null,null,null,"Energy","F10",null,0,0,0,0,0,0,0,0,0,0,0]
[1043,null,null,null,"CAEE","F30",null,0,0,0,0,0,0,0,0,0,0,0]
[1044,null,null,null,"CAEE","F105M",null,0,0,0,0,0,0,0,0,0,0,0]
[1045,null,null,"Total Power Operated Equipment",null,null,null,0,0,0,0,0,0,0,0,0,0,0]
[1046]
[1047,null,"397","Communication Equipment"]
[1048,null,null,null,"Situs","F107M",null,0,0,0,0,0,0,0,0,0,0,0]
[1049,null,null,null,"System Generation","F105M",null,0,0,0,0,0,0,0,0,0,0,0]
[1050,null,null,null,"System Overheads","F102M",null,0,0,0,0,0,0,0,0,0,0,0]
[1051,null,null,null,"Customer - System","F42",null,0,0,0,0,0,0,0,0,0,0,0]
[1052,null,null,null,"Energy","F10",null,0,0,0,0,0,0,0,0,0,0,0]
[1053,null,null,null,"CAEE","F105M",null,0,0,0,0,0,0,0,0,0,0,0]
[1054,null,null,null,"CAEE","F105M",null,0,0,0,0,0,0,0,0,0,0,0]
[1055,null,null,"Total Communication Equipment",null,null,null,0,0,0,0,0,0,0,0,0,0,0]
[1056]
[1057,null,"MISC - Total -  Unbundled",null,null,null,null,"GENERAL PLANT"]
[1058]
[1059,null,"A",null,"B","C",null,"D","E","F","G","H","I","J","K","S","T"]
[1060,null,null,null,null,null,null,"Washington",null,"Small General","Large General","Large General","Large General","Agricultural","Street & Area"]
[1061,null,"FERC",null,null,"COS",null,"Jurisdiction","Residential","Service","Service <1,000 kW","Service >1,000 kW","Dedicated Facilities","Pumping","Lighting","-","-"]
[1062,null,"ACCT",null,"DESCRIPTION ","Factor",null,"Normalized","Schedule 16","Schedule 24","Schedule 36","Schedule 48T","Schedule 48T","Schedule 40","Sch. 15,51-54,57","-","-"]
[1063,null,"398","Misc. Equipment"]
[1064,null,null,null,"Situs","F107M",null,0,0,0,0,0,0,0,0,0,0,0]
[1065,null,null,null,"System Generation","F105M",null,0,0,0,0,0,0,0,0,0,0,0]
[1066,null,null,null,"System Overheads","F102M",null,0,0,0,0,0,0,0,0,0,0,0]
[1067,null,null,null,"Customer - System","F42",null,0,0,0,0,0,0,0,0,0,0,0]
[1068,null,null,null,"Energy","F10",null,0,0,0,0,0,0,0,0,0,0,0]
[1069,null,null,null,"CAEE","F105M",null,0,0,0,0,0,0,0,0,0,0,0]
[1070,null,null,"Total Misc. Equipment",null,null,null,0,0,0,0,0,0,0,0,0,0,0]
[1071]
[1072,null,"399","Coal Mine",null,"F10",null,0,0,0,0,0,0,0,0,0,0,0]
[1073,null,"399L","WIDCO Capital Lease",null,"F10",null,0,0,0,0,0,0,0,0,0,0,0]
[1074,null,null,"Remove Capital Lease",null,"F10",null,0,0,0,0,0,0,0,0,0,0,0]
[1075]
[1076,null,"1011390","General Capital Lease",null,"F10",null,0,0,0,0,0,0,0,0,0,0,0]
[1077,null,null,"Remove Capital Lease",null,"F10",null,0,0,0,0,0,0,0,0,0,0,0]
[1078]
[1079,null,"1011392","General Vehicles Capital Lease",null,"F10",null,0,0,0,0,0,0,0,0,0,0,0]
[1080,null,null,"Remove Capital Lease",null,"F10",null,0,0,0,0,0,0,0,0,0,0,0]
[1081]
[1082,null,"GP","Unclassified Gen Plant - Acct 300",null,"F102M",null,0,0,0,0,0,0,0,0,0,0,0]
[1083,null,"399G","Unclassified Gen Veh - Acct 300",null,"F102M",null,0,0,0,0,0,0,0,0,0,0,0]
[1084]
[1085,null,"TOTAL GENERAL PLANT",null,null,null,null,0,0,0,0,0,0,0,0,0,0,0]
[1086]
[1087]
[1088]
[1089,null,null,null,null,null,null,"INTANGIBLE PLANT"]
[1090]
[1091,null,"301","Organization"]
[1092,null,null,null,"Situs","F107M",null,0,0,0,0,0,0,0,0,0,0,0]
[1093,null,null,null,"System Generation","F105M",null,0,0,0,0,0,0,0,0,0,0,0]
[1094,null,null,null,"System Overheads","F102M",null,0,0,0,0,0,0,0,0,0,0,0]
[1095,null,null,"Total Organization",null,null,null,0,0,0,0,0,0,0,0,0,0,0]
[1096]
[1097,null,"302","Franchise & Consent"]
[1098,null,null,null,"Situs","F107M",null,0,0,0,0,0,0,0,0,0,0,0]
[1099,null,null,null,"System Generation","F105M",null,0,0,0,0,0,0,0,0,0,0,0]
[1100,null,null,"Total Franchise & Consent",null,null,null,0,0,0,0,0,0,0,0,0,0,0]
[1101]
[1102,null,"303","Miscellaneous Intangible Plant"]
[1103,null,null,null,"Situs","F107M",null,0,0,0,0,0,0,0,0,0,0,0]
[1104,null,null,null,"System Generation","F105M",null,0,0,0,0,0,0,0,0,0,0,0]
[1105,null,null,null,"System Overheads","F102M",null,0,0,0,0,0,0,0,0,0,0,0]
[1106,null,null,null,"Customer - System","F42",null,0,0,0,0,0,0,0,0,0,0,0]
[1107,null,null,null,"Energy","F10",null,0,0,0,0,0,0,0,0,0,0,0]
[1108,null,null,null,"CAEE","F105M",null,0,0,0,0,0,0,0,0,0,0,0]
[1109,null,null,null,"CAEE","F105M",null,0,0,0,0,0,0,0,0,0,0,0]
[1110,null,null,"Total Miscellaneous Intangible Plant",null,null,null,0,0,0,0,0,0,0,0,0,0,0]
[1111]
[1112,null,"IP","Unclass Intangible Plant - Acct 300",null,"F102M",null,0,0,0,0,0,0,0,0,0,0,0]
[1113]
[1114,null,"TOTAL INTANGIBLE PLANT",null,null,null,null,0,0,0,0,0,0,0,0,0,0,0]
[1115]
[1116]
[1117,null,"TOTAL ELECTRIC PLANT IN SERVICE",null,null,null,null,0,0,0,0,0,0,0,0,0,0,0]
[1118]
[1119]
[1120,null,"MISC - Total -  Unbundled",null,null,null,null,"MISC RATE BASE"]
[1121]
[1122,null,"A",null,"B","C",null,"D","E","F","G","H","I","J","K","S","T"]
[1123,null,null,null,null,null,null,"Washington",null,"Small General","Large General","Large General","Large General","Agricultural","Street & Area"]
[1124,null,"FERC",null,null,"COS",null,"Jurisdiction","Residential","Service","Service <1,000 kW","Service >1,000 kW","Dedicated Facilities","Pumping","Lighting","-","-"]
[1125,null,"ACCT",null,"DESCRIPTION ","Factor",null,"Normalized","Schedule 16","Schedule 24","Schedule 36","Schedule 48T","Schedule 48T","Schedule 40","Sch. 15,51-54,57","-","-"]
[1126,null,"105","Plant Held For Future Use"]
[1127,null,null,null,"Production","F10",null,0,0,0,0,0,0,0,0,0,0,0]
[1128,null,null,null,"Transmission","F10",null,0,0,0,0,0,0,0,0,0,0,0]
[1129,null,null,null,"Distribution","F20",null,0,0,0,0,0,0,0,0,0,0,0]
[1130,null,null,null,"General ","F102",null,0,0,0,0,0,0,0,0,0,0,0]
[1131,null,null,null,"Mining","F10",null,0,0,0,0,0,0,0,0,0,0,0]
[1132,null,null,"Total Plant Held For Future Use",null,null,null,0,0,0,0,0,0,0,0,0,0,0]
[1133]
[1134,null,"114","Electric Plant Acquisition Adjust",null,"F10",null,0,0,0,0,0,0,0,0,0,0,0]
[1135]
[1136,null,"120","Nuclear Fuel",null,"F10",null,0,0,0,0,0,0,0,0,0,0,0]
[1137]
[1138,null,"124","Weatherization",null,"F10",null,1957722.3254914517,830612.68284431647,264196.26970777725,418596.18077362794,165412.93822544997,204512.50625643667,69695.08146798001,4696.6662158632098,0,0,0]
[1139]
[1140,null,"151","Fuel Stock",null,"F10",null,0,0,0,0,0,0,0,0,0,0,0]
[1141,null,null,null,"JBE","F10",null,0,0,0,0,0,0,0,0,0,0,0]
[1142,null,null,null,"CAEE","F30",null,0,0,0,0,0,0,0,0,0,0,0]
[1143,null,null,null,"Total Fuel Stock",null,null,0,0,0,0,0,0,0,0,0,0,0]
[1144]
[1145,null,152,"Fuel Stock - Undistributed",null,"F10",null,0,0,0,0,0,0,0,0,0,0,0]
[1146]
[1147,null,"25316","DG&T Working Capital Deposit",null,"F10",null,0,0,0,0,0,0,0,0,0,0,0]
[1148]
[1149,null,"25317","DG&T Working Capital Deposit",null,"F10",null,0,0,0,0,0,0,0,0,0,0,0]
[1150]
[1151,null,"25319","Provo Working Capital Deposit",null,"F10",null,0,0,0,0,0,0,0,0,0,0,0]
[1152]
[1153,null,"154","Materials and Supplies",null,"F102M",null,0,0,0,0,0,0,0,0,0,0,0]
[1154,null,null,null,"JBG","F10",null,0,0,0,0,0,0,0,0,0,0,0]
[1155,null,null,null,"CAEE","F102M",null,0,0,0,0,0,0,0,0,0,0,0]
[1156,null,null,null,"Total Material & Supplies",null,null,0,0,0,0,0,0,0,0,0,0,0]
[1157]
[1158,null,"163","Stores Expense Undistributed",null,"F102M",null,0,0,0,0,0,0,0,0,0,0,0]
[1159]
[1160,null,"25318","Provo Working Capital Deposit",null,"F102M",null,0,0,0,0,0,0,0,0,0,0,0]
[1161]
[1162,null,"165","Prepayments",null,"F102M",null,0,0,0,0,0,0,0,0,0,0,0]
[1163,null,null,null,"Customer - System","F42",null,0,0,0,0,0,0,0,0,0,0,0]
[1164,null,null,null,"Total Prepayments",null,null,0,0,0,0,0,0,0,0,0,0,0]
[1165]
[1166,null,"182M","Misc Regulatory Assets",null,"F102M",null,0,0,0,0,0,0,0,0,0,0,0]
[1167,null,null,null,"CAEE","F102M",null,0,0,0,0,0,0,0,0,0,0,0]
[1168,null,null,null,"Total Misc Regulatory Assets",null,null,0,0,0,0,0,0,0,0,0,0,0]
[1169]
[1170,null,"186M","Misc Deferred Debits",null,"F102M",null,0,0,0,0,0,0,0,0,0,0,0]
[1171]
[1172,null,"CWC","Cash Working Capital",null,"F137M",null,223483.43801659052,99003.429607303144,33406.553669977497,45227.837404876169,16994.658681295776,18435.169894310395,9185.9389080415222,1229.8498507860311,0,0,0]
[1173]
[1174,null,"OWC","Other Working Capital",null,"F137M",null,0,0,0,0,0,0,0,0,0,0,0]
[1175,null,null,null,"CAEE","F137M",null,0,0,0,0,0,0,0,0,0,0,0]
[1176,null,null,null,"Total Other Working Capital",null,null,0,0,0,0,0,0,0,0,0,0,0]
[1177]
[1178,null,"18222","Nuclear Plant",null,"F10",null,0,0,0,0,0,0,0,0,0,0,0]
[1179]
[1180,null,"1869","Misc Deferred Debits-Trojan",null,"F10",null,0,0,0,0,0,0,0,0,0,0,0]
[1181]
[1182,null,"141","Impact Housing - Notes Receivable",null,"F10",null,0,0,0,0,0,0,0,0,0,0,0]
[1183,null,"TOTAL RATE BASE ADDITIONS",null,null,null,null,2181205.7635080423,929616.11245161959,297602.82337775477,463824.01817850413,182407.59690674575,222947.67615074705,78881.020376021537,5926.5160666492411,0,0,0]
[1184]
[1185,null,"MISC - Total -  Unbundled"]
[1186]
[1187,null,"A",null,"B",null,null,"D","E","F","G","H","I","J","K","S","T"]
[1188,null,null,null,null,null,null,"Washington",null,"Small General","Large General","Large General","Large General","Agricultural","Street & Area"]
[1189,null,"FERC",null,null,null,null,"Jurisdiction","Residential","Service","Service <1,000 kW","Service >1,000 kW","Dedicated Facilities","Pumping","Lighting","-","-"]
[1190,null,"ACCT",null,"DESCRIPTION ",null,null,"Normalized","Schedule 16","Schedule 24","Schedule 36","Schedule 48T","Schedule 48T","Schedule 40","Sch. 15,51-54,57","-","-"]
[1191]
[1192,null,"235","Customer Service Deposits",null,"F51",null,0,0,0,0,0,0,0,0,0,0,0]
[1193,null,null,null,null,"F51",null,0,0,0,0,0,0,0,0,0,0,0]
[1194,null,null,null,null,null,null,0,0,0,0,0,0,0,0,0,0,0]
[1195]
[1196,null,"2281","Accum Prov for Property Insurance",null,"F102M",null,0,0,0,0,0,0,0,0,0,0,0]
[1197]
[1198,null,"2282","Accum Prov for Injuries & Damages",null,"F102M",null,0,0,0,0,0,0,0,0,0,0,0]
[1199]
[1200,null," 2283","Accum Prov for Pension & Benefits",null,"F102M",null,0,0,0,0,0,0,0,0,0,0,0]
[1201]
[1202,null,254,"Reg Liabilities - Insurance Provision",null,"F102M",null,0,0,0,0,0,0,0,0,0,0,0]
[1203]
[1204,null,22844,"Hydro Relicensing Obligations",null,"F10",null,0,0,0,0,0,0,0,0,0,0,0]
[1205]
[1206,null,"22842","Accum Misc Oper Prov - Trojan",null,"F10",null,0,0,0,0,0,0,0,0,0,0,0]
[1207]
[1208]
[1209,null,"252","Customer Advances for Const",null,"F50",null,0,0,0,0,0,0,0,0,0,0,0]
[1210]
[1211,null,"25398","SO2 Emmissions",null,"F10",null,0,0,0,0,0,0,0,0,0,0,0]
[1212]
[1213,null,"25399","Other Deferred Credits",null,"F10",null,0,0,0,0,0,0,0,0,0,0,0]
[1214]
[1215,null,"190","Accum Deferred Income Taxes",null,"F104M",null,0,0,0,0,0,0,0,0,0,0,0]
[1216,null,null,null," Labor","F138M",null,0,0,0,0,0,0,0,0,0,0,0]
[1217,null,null,null,"Customer - System","F42",null,0,0,0,0,0,0,0,0,0,0,0]
[1218,null,null,null,"Total Accum Deferred Income Taxes",null,null,0,0,0,0,0,0,0,0,0,0,0]
[1219]
[1220,null,"281","Accum Deferred Income Taxes",null,"F104M",null,0,0,0,0,0,0,0,0,0,0,0]
[1221]
[1222,null,"282","Accum Deferred Income Taxes ",null,"F104M",null,0,0,0,0,0,0,0,0,0,0,0]
[1223,null,null,null," Labor","F138M",null,0,0,0,0,0,0,0,0,0,0,0]
[1224,null,null,null,"Customer - System","F42",null,0,0,0,0,0,0,0,0,0,0,0]
[1225,null,null,null,"Total Accum Deferred Income Taxes ",null,null,0,0,0,0,0,0,0,0,0,0,0]
[1226]
[1227,null,"283","Accum Deferred Income Taxes ",null,"F104M",null,0,0,0,0,0,0,0,0,0,0,0]
[1228,null,null,null," Labor","F138M",null,0,0,0,0,0,0,0,0,0,0,0]
[1229,null,null,null,"Customer - System","F42",null,0,0,0,0,0,0,0,0,0,0,0]
[1230,null,null,null,"Total Accum Deferred Income Taxes ",null,null,0,0,0,0,0,0,0,0,0,0,0]
[1231]
[1232,null,"255","Accum Investment Tax Credit",null,"F104M",null,0,0,0,0,0,0,0,0,0,0,0]
[1233,null,"TOTAL RATE BASE DEDUCTIONS",null,null,null,null,0,0,0,0,0,0,0,0,0,0,0]
[1234]
[1235,null,null,null,null,null,null,"ACCUMULATED DEPRECIATION"]
[1236,null,null,null,null,null,null,"PRODUCTION PLANT"]
[1237]
[1238,null,"108SP","Steam Prod Accumulated Depr",null,"F10",null,0,0,0,0,0,0,0,0,0,0,0]
[1239,null,null,null,"JBG","F10",null,0,0,0,0,0,0,0,0,0,0,0]
[1240,null,null,null,"Total Steam Prod Accumulated Depr",null,null,0,0,0,0,0,0,0,0,0,0,0]
[1241]
[1242,null,"108NP","Nuclear Prod Accumulated Depr",null,"F10",null,0,0,0,0,0,0,0,0,0,0,0]
[1243]
[1244,null,"108HP","Hydraulic Prod Accum Depr",null,"F10",null,0,0,0,0,0,0,0,0,0,0,0]
[1245]
[1246,null,"108OP","Other Production  - Accum Depr",null,"F10",null,0,0,0,0,0,0,0,0,0,0,0]
[1247,null,null,null,"CAEE","F10",null,0,0,0,0,0,0,0,0,0,0,0]
[1248,null,null,null,"Total Other Production - Accum Depr",null,null,0,0,0,0,0,0,0,0,0,0,0]
[1249]
[1250,null,"108EP","Experimental Plant - Accum Depr",null,"F10",null,0,0,0,0,0,0,0,0,0,0,0]
[1251]
[1252]
[1253]
[1254,null,"TOTAL PRODUCTION PLANT DEPRECIATION",null,null,null,null,0,0,0,0,0,0,0,0,0,0,0]
[1255]
[1256]
[1257,null,null,null,null,null,null,"TRANSMISSION PLANT"]
[1258]
[1259,null,"108TP","Transmission Plant Accum Depr",null,"F106",null,0,0,0,0,0,0,0,0,0,0,0]
[1260]
[1261]
[1262,null,null,null,null,null,null,"DISTRIBUTION PLANT"]
[1263]
[1264,null,"108360","Land and Land Rights",null,"F118",null,0,0,0,0,0,0,0,0,0,0,0]
[1265]
[1266,null,"108361","Structures and Improvements",null,"F119",null,0,0,0,0,0,0,0,0,0,0,0]
[1267]
[1268,null,"108362","Station Equipment",null,"F120",null,0,0,0,0,0,0,0,0,0,0,0]
[1269]
[1270,null,"MISC - Total -  Unbundled"]
[1271]
[1272,null,"A",null,"B",null,null,"D","E","F","G","H","I","J","K","S","T"]
[1273,null,null,null,null,null,null,"Washington",null,"Small General","Large General","Large General","Large General","Agricultural","Street & Area"]
[1274,null,"FERC",null,null,null,null,"Jurisdiction","Residential","Service","Service <1,000 kW","Service >1,000 kW","Dedicated Facilities","Pumping","Lighting","-","-"]
[1275,null,"ACCT",null,"DESCRIPTION ",null,null,"Normalized","Schedule 16","Schedule 24","Schedule 36","Schedule 48T","Schedule 48T","Schedule 40","Sch. 15,51-54,57","-","-"]
[1276]
[1277,null,"108364","Poles, Towers & Fixtures",null,"F121",null,0,0,0,0,0,0,0,0,0,0,0]
[1278]
[1279,null,"108365","Overhead Conductors",null,"F122",null,0,0,0,0,0,0,0,0,0,0,0]
[1280]
[1281,null,"108366","Underground Conduit",null,"F123",null,0,0,0,0,0,0,0,0,0,0,0]
[1282]
[1283,null,"108367","Underground Conductors ",null,"F124",null,0,0,0,0,0,0,0,0,0,0,0]
[1284]
[1285,null,"108368","Line Transformers",null,"F125",null,0,0,0,0,0,0,0,0,0,0,0]
[1286]
[1287,null,"108369","Services",null,"F126",null,0,0,0,0,0,0,0,0,0,0,0]
[1288]
[1289,null,"108370","Meters",null,"F127",null,0,0,0,0,0,0,0,0,0,0,0]
[1290]
[1291,null,"108371","Install on Customers' Premises",null,"F128",null,0,0,0,0,0,0,0,0,0,0,0]
[1292]
[1293,null,"108372","Leased Property",null,"F129",null,0,0,0,0,0,0,0,0,0,0,0]
[1294]
[1295,null,"108373","Street Lights",null,"F130",null,0,0,0,0,0,0,0,0,0,0,0]
[1296]
[1297,null,"108D00","Unclassified Dist Plant - Acct 300",null,"F121",null,0,0,0,0,0,0,0,0,0,0,0]
[1298]
[1299,null,"108DS","Unclassified Dist Sub - Acct 300",null,"F120",null,0,0,0,0,0,0,0,0,0,0,0]
[1300]
[1301,null,"108DP","Unclassified Dist Sub  - Acct 300",null,"F102M",null,0,0,0,0,0,0,0,0,0,0,0]
[1302]
[1303]
[1304,null,"TOTAL DISTRIBUTION PLANT DEPR",null,null,null,null,0,0,0,0,0,0,0,0,0,0,0]
[1305]
[1306,null,null,null,null,null,null,"GENERAL PLANT"]
[1307,null,"108GP","General Plant Accumulated Depr"]
[1308,null,null,null,"Situs","F107M",null,0,0,0,0,0,0,0,0,0,0,0]
[1309,null,null,null,"System Generation","F105M",null,0,0,0,0,0,0,0,0,0,0,0]
[1310,null,null,null,"System Overheads","F102M",null,0,0,0,0,0,0,0,0,0,0,0]
[1311,null,null,null,"Customer - System","F42",null,0,0,0,0,0,0,0,0,0,0,0]
[1312,null,null,null,"Energy","F10",null,0,0,0,0,0,0,0,0,0,0,0]
[1313,null,null,null,"CAEE","F105M",null,0,0,0,0,0,0,0,0,0,0,0]
[1314,null,null,null,"CAEE","F105M",null,0,0,0,0,0,0,0,0,0,0,0]
[1315,null,null,"Total General Plant Accumulated Depr",null,null,null,0,0,0,0,0,0,0,0,0,0,0]
[1316]
[1317,null,"108MP","Mining Plant Accumulated Depr.",null,"F10",null,0,0,0,0,0,0,0,0,0,0,0]
[1318]
[1319,null,"1081390","Accum Depr - Capital Lease",null,"F10",null,0,0,0,0,0,0,0,0,0,0,0]
[1320,null,null,"Remove Capital Lease",null,"F10",null,0,0,0,0,0,0,0,0,0,0,0]
[1321]
[1322,null,"1081399"," Accum Depr - Capital Lease",null,"F10",null,0,0,0,0,0,0,0,0,0,0,0]
[1323,null,null," Remove Capital Lease",null,"F10",null,0,0,0,0,0,0,0,0,0,0,0]
[1324]
[1325,null,"TOTAL GENERAL PLANT ACCUM DEPR",null,null,null,null,0,0,0,0,0,0,0,0,0,0,0]
[1326]
[1327]
[1328,null,"TOTAL ACCUM DEPR - PLANT IN SERVICE",null,null,null,null,0,0,0,0,0,0,0,0,0,0,0]
[1329]
[1330]
[1331,null,null,null,null,null,null,"ACCUMULATED AMORTIZATION"]
[1332]
[1333,null,"111SP","Accum Prov for Amort-Steam",null,"F10",null,0,0,0,0,0,0,0,0,0,0,0]
[1334]
[1335,null,"111GP","Accum Prov for Amort-General"]
[1336,null,null,"Division",null,"F108",null,0,0,0,0,0,0,0,0,0,0,0]
[1337,null,null,"System Overheads",null,"F108",null,0,0,0,0,0,0,0,0,0,0,0]
[1338,null,null,"Total Accum Prov for Amort-General",null,null,null,0,0,0,0,0,0,0,0,0,0,0]
[1339]
[1340,null,"111HP","Accum Prov for Amort-Hydro",null,"F10",null,0,0,0,0,0,0,0,0,0,0,0]
[1341]
[1342,null,"111IP","Accum Prov for Amort-Intangible"]
[1343,null,null,null,"Situs","F107M",null,0,0,0,0,0,0,0,0,0,0,0]
[1344,null,null,null,"System Generation","F105M",null,0,0,0,0,0,0,0,0,0,0,0]
[1345,null,null,null,"System Overheads","F102M",null,0,0,0,0,0,0,0,0,0,0,0]
[1346,null,null,null,"Customer - System","F42",null,0,0,0,0,0,0,0,0,0,0,0]
[1347,null,null,null,"CAEE","F105M",null,0,0,0,0,0,0,0,0,0,0,0]
[1348,null,null,null,"CAEE","F105M",null,0,0,0,0,0,0,0,0,0,0,0]
[1349,null,null,null,"Energy","F10",null,0,0,0,0,0,0,0,0,0,0,0]
[1350,null,null,"Total Accum Prov for Amort-Intangible",null,null,null,0,0,0,0,0,0,0,0,0,0,0]
[1351]
[1352,null,"111390","Accum Amtr - Capital Lease"]
[1353,null,null,"Situs",null,"F107M",null,0,0,0,0,0,0,0,0,0,0,0]
[1354,null,null,"System Generation",null,"F105M",null,0,0,0,0,0,0,0,0,0,0,0]
[1355,null,null,"System Overheads",null,"F102M",null,0,0,0,0,0,0,0,0,0,0,0]
[1356,null,null,"Remove Capital Lease Amtr",null,null,null,0,0,0,0,0,0,0,0,0,0,0]
[1357,null,"TOTAL ACCUM PROV FOR AMORTIZATION",null,null,null,null,0,0,0,0,0,0,0,0,0,0,0]

{"sheet":"Hot Sheet","index":17,"n_rows":1357,"n_cols":18,"rows_kept":1357,"cut":false,"hidden":false,"merged":[]}
[1,null,null," - ",{"$f":"CONCATENATE( 'Func Study'!AC250,D1,'Func Study'!AB251, D1,'Func Study'!AC251)","v":"Distribution - METER -  Unbundled"}]
[{"$f":"A1+1","v":2},{"$f":"Inputs!$C$3","v":"PacifiCorp"}]
[3,"Cost Of Service By Rate Schedule"]
[4,{"$f":"Inputs!$C$4","v":"State of Washington"}]
[5,{"$f":"+Method&\" - \"&IF(PeakMethod=1,\"(Coincident Peaks)\",IF(PeakMethod=2,\"(200 Top Hours)\",\"(100 Summer, 100 Winter Hours)\"))&\" - \"&TEXT(Demand,\"0%\")&\"D\"&\" / \"&TEXT(Engy,\"0%\")&\"E\"","v":"WCA Method - (100 Summer, 100 Winter Hours) - 38%D / 62%E"}]
[6,{"$f":"Inputs!$C$5","v":"12 Months Ending June 2012"}]
[7]
[8]
[9,null,"A",null,"B","C",null,"D","E","F","G","H","I","J","K"]
[10,null,null,null,null,null,null,"Washington",null,"Small General","Large General","Large General","Large General","Agricultural","Street & Area",null,null,"Chk Total"]
[11,null,null,null,null,"COS",null,"Jurisdiction","Residential","Service","Service <1,000 kW","Service >1,000 kW","Dedicated Facilities","Pumping","Lighting","-","-"]
[12,null,null,null,"DESCRIPTION ","Factor",null,"Normalized","Schedule 16","Schedule 24","Schedule 36","Schedule 48T","Schedule 48T","Schedule 40","Sch. 15,51-54,57","-","-",{"$f":"ROUND(SUM(R14:R1385),0)","v":0}]
[13]
[14,null,null,null,"Operating Revenues",null,null,{"$f":"H186","v":2351212.1467435383},{"$f":"+I27+(I61*I58)","v":1481910.4124795119},422593.48957538581,209047.76972158009,42700.923460182086,{"$f":"+M27+(M61*M58)","v":21916.136585143693},154209.16800388412,18834.246917850374,0,0,{"$f":"ROUND(SUM(I14:Q14)-H14,0)","v":0}]
[15]
[16,null,null,null,"Operating Expenses"]
[17,null,null,null,"Operation & Maintenance Expenses",null,null,{"$f":"H595","v":1209694.9611877},798996.47837595595,192287.44072349116,99980.217036267321,19625.52098312087,{"$f":"M595","v":13248.939438386957},69400.345533074782,16156.019097402899,{"$f":"P595","v":0},{"$f":"Q595","v":0},{"$f":"ROUND(SUM(I17:Q17)-H17,0)","v":0}]
[18,null,null,null,"Depreciation Expense",null,null,{"$f":"H651","v":477826.39784696285},322099.47942749842,77171.052681317422,38608.54359163723,7072.3990074993008,{"$f":"M651","v":4528.4377570017368},27907.2497426665,439.23563934222227,{"$f":"P651","v":0},{"$f":"Q651","v":0},0]
[19,null,null,null,"Amortization Expense",null,null,{"$f":"H694","v":12506.554695404997},6906.198810023212,1832.7568497361822,1974.9125297497692,718.50017089382914,{"$f":"M694","v":374.99128059056341},564.07536846934261,135.11968594209699,{"$f":"P694","v":0},{"$f":"Q694","v":0},0]
[20,null,null,null,"Taxes Other Than Income",null,null,{"$f":"H702","v":155181.64056245438},92495.216758603216,23418.622702878522,21433.109857634645,7414.2162464019084,{"$f":"M702","v":1239.4360800480217},7358.0397134817504,1822.9992034063321,{"$f":"P702","v":0},{"$f":"Q702","v":0},0]
[21,null,null,null,"Income Taxes - Federal",null,null,{"$f":"H734","v":80022.586929930549},47697.050352352759,12076.29178444034,11052.421475535617,3823.2922525150047,{"$f":"M734","v":639.14056521279031},3794.3236743202397,940.0668255538003,{"$f":"P734","v":0},{"$f":"Q734","v":0},0]
[22,null,null,null,"Income Taxes - State",null,null,{"$f":"H732","v":0},0,0,0,0,{"$f":"M732","v":0},0,0,{"$f":"P732","v":0},{"$f":"Q732","v":0},0]
[23,null,null,null,"Income Taxes Deferred",null,null,{"$f":"H726","v":21352.151917695708},12726.840061308947,3222.2754434266644,2949.0796468586996,1020.1559351353044,{"$f":"M726","v":170.5396809670126},1012.4263489498953,250.8348010491909,{"$f":"P726","v":0},{"$f":"Q726","v":0},0]
[24,null,null,null,"Investment Tax Credit Adj",null,null,{"$f":"H712","v":0},0,0,0,0,{"$f":"M712","v":0},0,0,{"$f":"P712","v":0},{"$f":"Q712","v":0},0]
[25,null,null,null,"Misc Revenues & Expense",null,null,{"$f":"H207","v":103.86639824167921},44.067918405762732,14.016857552332134,22.208500689067424,8.775936143925783,{"$f":"M207","v":10.850352546754831},3.6976526205892202,0.24918028324707825,{"$f":"P207","v":0},{"$f":"Q207","v":0},0]
[26]
[27,null,null,null,"Total Operating Expenses",null,null,{"$f":"SUM(H17:H25)","v":1956688.1595383903},1280965.3317041483,310022.4570428427,176020.49263837235,39682.860531710146,{"$f":"SUM(M17:M25)","v":20212.335154753833},110040.15803358309,19744.52443297979,{"$f":"SUM(P17:P25)","v":0},{"$f":"SUM(Q17:Q25)","v":0},{"$f":"ROUND(SUM(I27:Q27)-H27,0)","v":0}]
[28]
[29,null,null,null,"Operating Revenue For Return",null,null,{"$f":"H14-H27","v":394523.98720514798},200945.0807753636,112571.03253254312,33027.277083207737,3018.0629284719398,{"$f":"M14-M27","v":1703.8014303898599},44169.00997030102,-910.27751512941541,{"$f":"P14-P27","v":0},{"$f":"Q14-Q27","v":0},{"$f":"ROUND(SUM(I29:Q29)-H29,0)","v":0}]
[30]
[31]
[32,null,null,null,"Rate Base :"]
[33,null,null,null,"Electric Plant In Service",null,null,{"$f":"H1117","v":12828781.366160188},8603915.1289302856,2065834.5343162441,1068494.4823643928,208184.01016531588,{"$f":"M1117","v":120147.58933820034},743728.62082638603,18477.000219364523,{"$f":"P1117","v":0},{"$f":"Q1117","v":0},{"$f":"ROUND(SUM(I33:Q33)-H33,0)","v":0}]
[34,null,null,null,"Plant Held For Future Use ",null,null,{"$f":"H1132","v":0},0,0,0,0,{"$f":"M1132","v":0},0,0,{"$f":"P1132","v":0},{"$f":"Q1132","v":0},0]
[35,null,null,null,"Electric Plant Acquisition Adj",null,null,{"$f":"H1134","v":0},0,0,0,0,{"$f":"M1134","v":0},0,0,{"$f":"P1134","v":0},{"$f":"Q1134","v":0},0]
[36,null,null,null,"Nuclear Fuel",null,null,{"$f":"H1136","v":0},0,0,0,0,{"$f":"M1136","v":0},0,0,{"$f":"P1136","v":0},{"$f":"Q1136","v":0},0]
[37,null,null,null,"Prepayments",null,null,{"$f":"H1164","v":-1.8109732184958963E-10},-1.4612178526352483E-10,-2.4818239401882892E-11,-1.5072545538433793E-12,-3.0912484129716484E-13,{"$f":"M1164","v":-5.3378728100849055E-15},-4.4211351854473908E-12,-3.9144447307838831E-12,{"$f":"P1164","v":0},{"$f":"Q1164","v":0},0]
[38,null,null,null,"Fuel Stock",null,null,{"$f":"SUM(H1143:H1151)","v":0},{"$f":"SUM(I1143:I1151)","v":0},0,0,0,{"$f":"SUM(M1143:M1151)","v":0},0,0,0,0,0]
[39,null,null,null,"Materials & Supplies",null,null,{"$f":"SUM(H1156:H1161)","v":8.7313492012834719E-7},{"$f":"SUM(I1156:I1161)","v":5.170001862063831E-7},1.3111041745888414E-7,1.2264717457572959E-7,4.2794861433925277E-8,{"$f":"SUM(M1156:M1161)","v":5.8904904342690862E-9},4.1968965182457404E-8,1.172282483669849E-8,0,0,0]
[40,null,null,null,"Misc Deferred Debits",null,null,{"$f":"H1168+H1170","v":0},{"$f":"I1168+I1170","v":0},0,0,0,{"$f":"M1168+M1170","v":0},0,0,0,0,0]
[41,null,null,null,"Cash Working Capital",null,null,{"$f":"H1172+H1176","v":76882.582678498307},{"$f":"I1172+I1176","v":43249.051944290339},11331.439908630691,11124.281665287284,4039.2115166364861,{"$f":"M1172+M1176","v":1623.7021661589467},3872.5245232321768,1642.3709542624126,0,0,0]
[42,null,null,null,"Weatherization Loans",null,null,{"$f":"H1138","v":0},0,0,0,0,{"$f":"M1138","v":0},0,0,{"$f":"P1138","v":0},{"$f":"Q1138","v":0},0]
[43,null,null,null,"Miscellaneous Rate Base",null,null,{"$f":"H1178+H1180+H1182","v":0},0,0,0,0,{"$f":"M1178+M1180+M1182","v":0},0,0,{"$f":"P1178+P1180+P1182","v":0},{"$f":"Q1178+Q1180+Q1182","v":0},0]
[44]
[45,null,null,null,"Total Rate Base Additions",null,null,{"$f":"SUM(H33:H43)","v":12905663.94883956},8647164.1808750946,2077165.9742250058,1079618.7640298028,212223.22168199514,{"$f":"SUM(M33:M43)","v":121771.29150436519},747601.14534966019,20119.371173638654,{"$f":"SUM(P33:P43)","v":0},{"$f":"SUM(Q33:Q43)","v":0},{"$f":"ROUND(SUM(I45:Q45)-H45,0)","v":0}]
[46]
[47,null,null,null,"Rate Base Deductions :"]
[48,null,null,null,"Accum Provision For Depreciation",null,null,{"$f":"H1328","v":-2361424.6741928025},-1568049.6231918556,-378092.17666373658,-208098.69387364705,-44867.263504729242,{"$f":"M1328","v":-21603.374758065856},-134921.6682890018,-5791.8739117663763,{"$f":"P1328","v":0},{"$f":"Q1328","v":0},{"$f":"ROUND(SUM(I48:Q48)-H48,0)","v":0}]
[49,null,null,null,"Accum Provision For Amortization",null,null,{"$f":"H1357","v":-202836.81039163453},-115068.38556241887,-29985.210198887118,-30672.964160419673,-11005.013516437055,{"$f":"M1357","v":-4360.1636564812752},-9355.5811072826436,-2389.4921897078511,{"$f":"P1357","v":0},{"$f":"Q1357","v":0},0]
[50,null,null,null,"Accum Deferred Income Taxes",null,null,{"$f":"H1218+H1220+H1225+H1230","v":-1697110.8747565467},-1011989.3896928444,-256791.6870652978,-234053.89125920189,-80908.725285156645,{"$f":"M1218+M1220+M1225+M1230","v":-13240.135323207924},-80421.439390936604,-19705.606739901174,{"$f":"P1218+P1220+P1225+P1230","v":0},{"$f":"Q1218+Q1220+Q1225+Q1230","v":0},0]
[51,null,null,null,"Unamortized ITC",null,null,{"$f":"H1232","v":-4351.3636747668588},-2594.8048704693197,-658.41903260250854,-600.09881342611857,-207.43845310340737,{"$f":"M1232","v":-33.917543814229091},-206.18934297210495,-50.495618379169848,{"$f":"P1232","v":0},{"$f":"Q1232","v":0},0]
[52,null,null,null,"Customer Advance For Construction",null,null,{"$f":"H1209","v":-4583.9343430603258},-1688.3240977838364,-2623.2074769995911,0,0,{"$f":"M1209","v":0},-272.40276827689826,0,{"$f":"P1209","v":0},{"$f":"Q1209","v":0},0]
[53,null,null,null,"Customer Service Deposits",null,null,{"$f":"H1194","v":0},{"$f":"I1194","v":0},0,0,0,{"$f":"M1194","v":0},0,0,0,0,0]
[54,null,null,null,"Misc Rate Base Deductions",null,null,{"$f":"+H1196+H1198+H1200+H1202+H1204+H1206+H1211+H1213","v":-5726.3745139887496},-3390.1955379231495,-859.83001318038123,-804.58965039922532,-280.77231481255842,{"$f":"+M1196+M1198+M1200+M1202+M1204+M1206+M1211+M1213","v":-38.924675135370514},-275.21226201913424,-76.850060518930476,0,0,0]
[55,null,null,null,null,null,null,null,null,null,null,null,null,null,null,null,null,0]
[56,null,null,null,"Total Rate Base Deductions",null,null,{"$f":"SUM(H48:H54)","v":-4276034.0318728006},-2702780.7229532953,-669010.53045070393,-474230.23775709391,-137269.21307423891,{"$f":"SUM(M48:M54)","v":-39276.515956704658},-225452.49316048916,-28014.3185202735,{"$f":"SUM(P48:P54)","v":0},{"$f":"SUM(Q48:Q54)","v":0},0]
[57,null,null,null,null,null,null,null,null,null,null,null,null,null,null,null,null,{"$f":"SUM(I57:Q57)-H57","v":0}]
[58,null,null,null,"Total Rate Base",null,null,{"$f":"H45+H56","v":8629629.9169667587},5944383.4579217993,1408155.443774302,605388.52627270878,74954.00860775623,{"$f":"M45+M56","v":82494.775547660538},522148.65218917106,-7894.9473466348463,{"$f":"P45+P56","v":0},{"$f":"Q45+Q56","v":0},{"$f":"ROUND(SUM(I58:Q58)-H58,0)","v":0}]
[59]
[60]
[61,null,null,null,"Return On Rate Base",null,null,{"$f":"(H29/H58)","v":4.5717370385660733E-2},{"$f":"IF(ISERROR('G+T+D+R+M'!I61),10%,'G+T+D+R+M'!I61)","v":3.3804192175316952E-2},{"$f":"IF(ISERROR('G+T+D+R+M'!J61),10%,'G+T+D+R+M'!J61)","v":7.9942191773102231E-2},{"$f":"IF(ISERROR('G+T+D+R+M'!K61),10%,'G+T+D+R+M'!K61)","v":5.4555505514040675E-2},{"$f":"IF(ISERROR('G+T+D+R+M'!L61),10%,'G+T+D+R+M'!L61)","v":4.0265530617126052E-2},{"$f":"IF(ISERROR('G+T+D+R+M'!M61),10%,'G+T+D+R+M'!M61)","v":2.065344646468556E-2},{"$f":"IF(ISERROR('G+T+D+R+M'!N61),10%,'G+T+D+R+M'!N61)","v":8.4590872321736579E-2},{"$f":"IF(ISERROR('G+T+D+R+M'!O61),10%,'G+T+D+R+M'!O61)","v":0.11529874426805539},{"$f":"IF(ISERROR('G+T+D+R+M'!#REF!),10%,'G+T+D+R+M'!#REF!)","v":0.1},{"$f":"IF(ISERROR('G+T+D+R+M'!#REF!),10%,'G+T+D+R+M'!#REF!)","v":0.1}]
[62]
[63,null,null,null,"Return On Equity",null,null,{"$f":"(+H61-Inputs!$K$5-Inputs!$K$6)/Inputs!$I$7","v":3.8475821712609062E-2},{"$f":"(+I61-Inputs!$K$5-Inputs!$K$6)/Inputs!$I$7","v":1.5786818184617805E-2},{"$f":"(+J61-Inputs!$K$5-Inputs!$K$6)/Inputs!$I$7","v":0.10365801570768424},{"$f":"(+K61-Inputs!$K$5-Inputs!$K$6)/Inputs!$I$7","v":5.5308313896312349E-2},{"$f":"(+L61-Inputs!$K$5-Inputs!$K$6)/Inputs!$I$7","v":2.809263012777027E-2},{"$f":"(+M61-Inputs!$K$5-Inputs!$K$6)/Inputs!$I$7","v":-9.2591695909332566E-3},{"$f":"(+N61-Inputs!$K$5-Inputs!$K$6)/Inputs!$I$7","v":0.11251156658270514},{"$f":"(+O61-Inputs!$K$5-Inputs!$K$6)/Inputs!$I$7","v":0.17099562538090099},{"$f":"(+P61-Inputs!$K$5-Inputs!$K$6)/Inputs!$I$7","v":0.14185871023172955},{"$f":"(+Q61-Inputs!$K$5-Inputs!$K$6)/Inputs!$I$7","v":0.14185871023172955}]
[64]
[65]
[{"$f":"A65+1","v":66}]
[67]
[68]
[69]
[70]
[71,{"$f":"Inputs!C3","v":"PacifiCorp"}]
[72,"Cost Of Service By Rate Schedule"]
[73,{"$f":"Inputs!$C$4","v":"State of Washington"}]
[74,{"$f":"+Method&\" - \"&IF(PeakMethod=1,\"(Coincident Peaks)\",IF(PeakMethod=2,\"(200 Top Hours)\",\"(100 Summer, 100 Winter Hours)\"))","v":"WCA Method - (100 Summer, 100 Winter Hours)"}]
[75,{"$f":"Inputs!$C$5","v":"12 Months Ending June 2012"}]
[76]
[77]
[78,null,"A",null,"B","C",null,"D","E","F","G","H","I","J","K","S","T"]
[79,null,null,null,null,null,null,{"$f":"'Hot Sheet'!$H$10","v":"Washington"},null,{"$f":"'Hot Sheet'!$J$10","v":"Small General"},{"$f":"'Hot Sheet'!$K$10","v":"Large General"},{"$f":"'Hot Sheet'!$L$10","v":"Large General"},{"$f":"'Hot Sheet'!$M$10","v":"Large General"},{"$f":"'Hot Sheet'!$N$10","v":"Agricultural"},{"$f":"'Hot Sheet'!$O$10","v":"Street & Area"}]
[80,null,null,null,null,"COS",null,{"$f":"'Hot Sheet'!$H$11","v":"Jurisdiction"},{"$f":"'Hot Sheet'!$I$11","v":"Residential"},{"$f":"'Hot Sheet'!$J$11","v":"Service"},{"$f":"'Hot Sheet'!$K$11","v":"Service <1,000 kW"},{"$f":"'Hot Sheet'!$L$11","v":"Service >1,000 kW"},{"$f":"'Hot Sheet'!$M$11","v":"Dedicated Facilities"},{"$f":"'Hot Sheet'!$N$11","v":"Pumping"},{"$f":"'Hot Sheet'!$O$11","v":"Lighting"},{"$f":"'Hot Sheet'!P$11","v":"-"},{"$f":"'Hot Sheet'!Q$11","v":"-"}]
[81,null,null,null,"DESCRIPTION ","Factor",null,{"$f":"'Hot Sheet'!$H$12","v":"Normalized"},{"$f":"'Hot Sheet'!$I$12","v":"Schedule 16"},{"$f":"'Hot Sheet'!$J$12","v":"Schedule 24"},{"$f":"'Hot Sheet'!$K$12","v":"Schedule 36"},{"$f":"'Hot Sheet'!$L$12","v":"Schedule 48T"},{"$f":"'Hot Sheet'!$M$12","v":"Schedule 48T"},{"$f":"'Hot Sheet'!$N$12","v":"Schedule 40"},{"$f":"'Hot Sheet'!$O$12","v":"Sch. 15,51-54,57"},{"$f":"'Hot Sheet'!P$12","v":"-"},{"$f":"'Hot Sheet'!Q$12","v":"-"}]
[82]
[83,null,null,null,"Total Rate Base",null,null,{"$f":"H58","v":8629629.9169667587},5944383.4579217993,1408155.443774302,605388.52627270878,74954.00860775623,{"$f":"M58","v":82494.775547660538},522148.65218917106,-7894.9473466348463,{"$f":"P58","v":0},{"$f":"Q58","v":0},{"$f":"ROUND(SUM(I83:Q83)-H83,0)","v":0}]
[84]
[85]
[86,null,null,null,"Return On Ratebase ($$)",{"$f":"ActualROR","v":4.602925444100011E-2},null,{"$f":"(H83*$F$86)","v":397215.43117972958},273615.53867955459,64816.345213966772,27865.582511468594,3450.0771335793238,{"$f":"(M83*$F$86)","v":3797.1730137364611},24034.113167640622,-363.39854021655401,{"$f":"(P83*$F$86)","v":0},{"$f":"(Q83*$F$86)","v":0},{"$f":"ROUND(SUM(I86:Q86)-H86,0)","v":0}]
[87,null,null,null,"Operating & Maintenance Expense",null,null,{"$f":"H17","v":1209694.9611877},798996.47837595595,192287.44072349116,99980.217036267321,19625.52098312087,{"$f":"M17","v":13248.939438386957},69400.345533074782,16156.019097402899,{"$f":"P17","v":0},{"$f":"Q17","v":0},0]
[88,null,null,null,"        Bad Debt to Produce ROR","F80",null,{"$f":"S17","v":0},{"$f":"VLOOKUP($F88,FactSum,'COS Factor Table'!F$115,FALSE)*$H88","v":0},{"$f":"VLOOKUP($F88,FactSum,'COS Factor Table'!G$115,FALSE)*$H88","v":0},{"$f":"VLOOKUP($F88,FactSum,'COS Factor Table'!H$115,FALSE)*$H88","v":0},{"$f":"VLOOKUP($F88,FactSum,'COS Factor Table'!I$115,FALSE)*$H88","v":0},{"$f":"VLOOKUP($F88,FactSum,'COS Factor Table'!J$115,FALSE)*$H88","v":0},{"$f":"VLOOKUP($F88,FactSum,'COS Factor Table'!K$115,FALSE)*$H88","v":0},{"$f":"VLOOKUP($F88,FactSum,'COS Factor Table'!L$115,FALSE)*$H88","v":0},{"$f":"VLOOKUP($F88,FactSum,'COS Factor Table'!M$115,FALSE)*$H88","v":0},{"$f":"VLOOKUP($F88,FactSum,'COS Factor Table'!N$115,FALSE)*$H88","v":0},0]
[89,null,null,null,"Depreciation Expense",null,null,{"$f":"H18","v":477826.39784696285},322099.47942749842,77171.052681317422,38608.54359163723,7072.3990074993008,{"$f":"M18","v":4528.4377570017368},27907.2497426665,439.23563934222227,{"$f":"P18","v":0},0,0]
[90,null,null,null,"Amortization Expense",null,null,{"$f":"H19","v":12506.554695404997},6906.198810023212,1832.7568497361822,1974.9125297497692,718.50017089382914,{"$f":"M19","v":374.99128059056341},564.07536846934261,135.11968594209699,0,0,0]
[91,null,null,null,"Taxes Other Than Income",null,null,{"$f":"H20","v":155181.64056245438},92495.216758603216,23418.622702878522,21433.109857634645,7414.2162464019084,{"$f":"M20","v":1239.4360800480217},7358.0397134817504,1822.9992034063321,0,0,0]
[92,null,null,null,"Federal Income Taxes",null,null,{"$f":"H21","v":80022.586929930549},47697.050352352759,12076.29178444034,11052.421475535617,3823.2922525150047,{"$f":"M21","v":639.14056521279031},3794.3236743202397,940.0668255538003,0,0,0]
[93,null,null,null,"        FIT Adj to Produce Target ROR","F101",null,{"$f":"S21","v":0},{"$f":"VLOOKUP($F93,FactSum,'COS Factor Table'!F$115,FALSE)*$H93","v":0},{"$f":"VLOOKUP($F93,FactSum,'COS Factor Table'!G$115,FALSE)*$H93","v":0},{"$f":"VLOOKUP($F93,FactSum,'COS Factor Table'!H$115,FALSE)*$H93","v":0},{"$f":"VLOOKUP($F93,FactSum,'COS Factor Table'!I$115,FALSE)*$H93","v":0},{"$f":"VLOOKUP($F93,FactSum,'COS Factor Table'!J$115,FALSE)*$H93","v":0},{"$f":"VLOOKUP($F93,FactSum,'COS Factor Table'!K$115,FALSE)*$H93","v":0},{"$f":"VLOOKUP($F93,FactSum,'COS Factor Table'!L$115,FALSE)*$H93","v":0},{"$f":"VLOOKUP($F93,FactSum,'COS Factor Table'!M$115,FALSE)*$H93","v":0},{"$f":"VLOOKUP($F93,FactSum,'COS Factor Table'!N$115,FALSE)*$H93","v":0},0]
[94,null,null,null,"State Income Taxes",null,null,{"$f":"H22","v":0},0,0,0,0,{"$f":"M22","v":0},0,0,{"$f":"P22","v":0},{"$f":"Q22","v":0},0]
[95,null,null,null,"        SIT Adj to Produce Target ROR","F101",null,{"$f":"S22","v":0},{"$f":"VLOOKUP($F95,FactSum,'COS Factor Table'!F$115,FALSE)*$H95","v":0},{"$f":"VLOOKUP($F95,FactSum,'COS Factor Table'!G$115,FALSE)*$H95","v":0},{"$f":"VLOOKUP($F95,FactSum,'COS Factor Table'!H$115,FALSE)*$H95","v":0},{"$f":"VLOOKUP($F95,FactSum,'COS Factor Table'!I$115,FALSE)*$H95","v":0},{"$f":"VLOOKUP($F95,FactSum,'COS Factor Table'!J$115,FALSE)*$H95","v":0},{"$f":"VLOOKUP($F95,FactSum,'COS Factor Table'!K$115,FALSE)*$H95","v":0},{"$f":"VLOOKUP($F95,FactSum,'COS Factor Table'!L$115,FALSE)*$H95","v":0},{"$f":"VLOOKUP($F95,FactSum,'COS Factor Table'!M$115,FALSE)*$H95","v":0},{"$f":"VLOOKUP($F95,FactSum,'COS Factor Table'!N$115,FALSE)*$H95","v":0},0]
[96,null,null,null,"Deferred Income Taxes",null,null,{"$f":"H23","v":21352.151917695708},12726.840061308947,3222.2754434266644,2949.0796468586996,1020.1559351353044,{"$f":"M23","v":170.5396809670126},1012.4263489498953,250.8348010491909,{"$f":"P23","v":0},0,0]
[97,null,null,null,"Investment Tax Credit",null,null,{"$f":"H24","v":0},0,0,0,0,{"$f":"M24","v":0},0,0,0,0,0]
[98,null,null,null,"Misc Revenue & Expenses",null,null,{"$f":"H25","v":103.86639824167921},44.067918405762732,14.016857552332134,22.208500689067424,8.775936143925783,{"$f":"M25","v":10.850352546754831},3.6976526205892202,0.24918028324707825,0,0,0]
[99,null,null,null,"Revenue Credits",null,null,{"$f":"-H129-H130-H138-H146-H153-H155-H157-H184-H151","v":-58560.769067793255},{"$f":"-I129-I130-I138-I146-I153-I155-I157-I184-I151","v":-17113.89778782177},-10994.448368034769,-13997.43423371463,-3673.3893370811156,-2108.005466056487,-10437.362313748323,-236.23156133617158,{"$f":"-P129-P130-P138-P146-P153-P155-P157-P184","v":0},0,0]
[100]
[101,null,null,null,"Total Revenue Requirements",null,null,{"$f":"SUM(H86:H99)","v":2295342.8216503263},{"$f":"SUM(I86:I99)","v":1537466.9725958812},363844.3538887747,189888.64091612631,39459.548328208359,{"$f":"SUM(M86:M99)","v":21901.502702433809},123636.90888747539,19144.894331427062,{"$f":"SUM(P86:P99)","v":0},{"$f":"SUM(Q86:Q99)","v":0},{"$f":"ROUND(SUM(I101:Q101)-H101,0)","v":0}]
[102,null,null,null,"Operating Revenues",null,null,{"$f":"H126+H128+H133+H135+H137","v":2292651.3776757447},{"$f":"I126+I128+I133+I135+I137","v":1464796.5146916902},411599.04120735102,195050.33548786546,39027.534123100973,{"$f":"M126+M128+M133+M135+M137","v":19808.131119087207},143771.80569013581,18598.015356514203,{"$f":"P126+P128+P133+P135+P137","v":0},{"$f":"Q126+Q128+Q133+Q135+Q137","v":0},{"$f":"ROUND(SUM(I102:Q102)-H102,0)","v":0}]
[103]
[104,null,null,null,"Increase / (Decrease) Required to "]
[105,null,null,null,"Earn Equal Rates of Return",null,null,{"$f":"H101-H102","v":2691.4439745815471},72670.457904190989,-47754.687318576325,-5161.69457173915,432.01420510738535,{"$f":"M101-M102","v":2093.3715833466013},-20134.896802660413,546.87897491285912,{"$f":"P101-P102","v":0},{"$f":"Q101-Q102","v":0},{"$f":"ROUND(SUM(I105:Q105)-H105,0)","v":0}]
[106]
[107,null,null,null,"Existing Revenues",null,null,{"$f":"H14+H99","v":2292651.3776757452},1464796.5146916902,411599.04120735102,195050.33548786546,39027.534123100973,19808.131119087207,143771.80569013581,18598.015356514203,0,0,{"$f":"ROUND(SUM(I107:Q107)-H107,0)","v":0}]
[108,null,null,null,"check",null,null,{"$f":"+H102-H107","v":0},{"$f":"+I102-I107","v":0},0,0,0,{"$f":"+M102-M107","v":0},0,0,{"$f":"+P102-P107","v":0},{"$f":"+Q102-Q107","v":0},{"$f":"ROUND(SUM(I108:Q108)-H108,0)","v":0}]
[109,null,null,null,"Percent Increase / (Decrease) "]
[110,null,null,null,"Over Existing Rates To "]
[111,null,null,null,"Equal Authorized RoE & RoR",null,null,{"$f":"(H105/H107)","v":1.1739438454485356E-3},4.9611299027077928E-2,-0.11602234829920066,-2.646339755750008E-2,1.1069472228112659E-2,{"$f":"(M105/M107)","v":0.10568243772020565},-0.14004760325578822,2.940523300091305E-2,{"$f":"(P105/P107)","v":{"$error":"#DIV/0!"}},{"$f":"(Q105/Q107)","v":{"$error":"#DIV/0!"}}]
[112]
[113]
[114]
[115]
[116]
[117]
[118]
[119]
[120,null,null,null,null,"WCA",null,null,"ELECTRIC REVENUES"]
[121,null,{"$f":"$E$1","v":"Distribution - METER -  Unbundled"},null,null,"Method"]
[122,null,"A",null,"B",null,null,"D","E","F","G","H","I","J","K","S","T"]
[123,null,null,null,null,null,null,{"$f":"'Hot Sheet'!$H$10","v":"Washington"},null,{"$f":"'Hot Sheet'!$J$10","v":"Small General"},{"$f":"'Hot Sheet'!$K$10","v":"Large General"},{"$f":"'Hot Sheet'!$L$10","v":"Large General"},{"$f":"'Hot Sheet'!$M$10","v":"Large General"},{"$f":"'Hot Sheet'!$N$10","v":"Agricultural"},{"$f":"'Hot Sheet'!$O$10","v":"Street & Area"}]
[124,null,"FERC",null,null,"COS",null,{"$f":"'Hot Sheet'!$H$11","v":"Jurisdiction"},{"$f":"'Hot Sheet'!$I$11","v":"Residential"},{"$f":"'Hot Sheet'!$J$11","v":"Service"},{"$f":"'Hot Sheet'!$K$11","v":"Service <1,000 kW"},{"$f":"'Hot Sheet'!$L$11","v":"Service >1,000 kW"},{"$f":"'Hot Sheet'!$M$11","v":"Dedicated Facilities"},{"$f":"'Hot Sheet'!$N$11","v":"Pumping"},{"$f":"'Hot Sheet'!$O$11","v":"Lighting"},{"$f":"'Hot Sheet'!P$11","v":"-"},{"$f":"'Hot Sheet'!Q$11","v":"-"}]
[125,null,"ACCT",null,"DESCRIPTION ","Factor",null,{"$f":"'Hot Sheet'!$H$12","v":"Normalized"},{"$f":"'Hot Sheet'!$I$12","v":"Schedule 16"},{"$f":"'Hot Sheet'!$J$12","v":"Schedule 24"},{"$f":"'Hot Sheet'!$K$12","v":"Schedule 36"},{"$f":"'Hot Sheet'!$L$12","v":"Schedule 48T"},{"$f":"'Hot Sheet'!$M$12","v":"Schedule 48T"},{"$f":"'Hot Sheet'!$N$12","v":"Schedule 40"},{"$f":"'Hot Sheet'!$O$12","v":"Sch. 15,51-54,57"},{"$f":"'Hot Sheet'!P$12","v":"-"},{"$f":"'Hot Sheet'!Q$12","v":"-"}]
[126,null,"440","Residential Sales",null,"A",null,{"$f":"SUM(I126:Q126)","v":1464796.5146916902},{"$f":"+I107","v":1464796.5146916902},0,0,0,0,0,0,0,0,{"$f":"ROUND(SUM(I126:Q126)-H126,0)","v":0}]
[127]
[128,null,"442","Commercial & Industrial Sales",null,"A",null,{"$f":"SUM(I128:Q128)","v":614206.51213967497},0,{"$f":"+J107-J137-J135","v":411599.04120735102},0,{"$f":"+L107-L137-L135","v":39027.534123100973},{"$f":"+M107-M137-M135","v":19808.131119087207},{"$f":"+N107-N137","v":143771.80569013581},0,0,0,{"$f":"ROUND(SUM(I128:Q128)-H128,0)","v":0}]
[129,null,null,null,"Interruptible Demand",{"$f":"IF(Classification=\"DEMAND\",\"F12\",IF(Classification=\"ENERGY\",\"F30\",\"F10\"))","v":"F10"},null,{"$f":"(UAcct442Sg)","v":0},{"$f":"VLOOKUP($F129,FactSum,'COS Factor Table'!F$115,FALSE)*$H129","v":0},{"$f":"VLOOKUP($F129,FactSum,'COS Factor Table'!G$115,FALSE)*$H129","v":0},{"$f":"VLOOKUP($F129,FactSum,'COS Factor Table'!H$115,FALSE)*$H129","v":0},{"$f":"VLOOKUP($F129,FactSum,'COS Factor Table'!I$115,FALSE)*$H129","v":0},{"$f":"VLOOKUP($F129,FactSum,'COS Factor Table'!J$115,FALSE)*$H129","v":0},{"$f":"VLOOKUP($F129,FactSum,'COS Factor Table'!K$115,FALSE)*$H129","v":0},{"$f":"VLOOKUP($F129,FactSum,'COS Factor Table'!L$115,FALSE)*$H129","v":0},{"$f":"VLOOKUP($F129,FactSum,'COS Factor Table'!M$115,FALSE)*$H129","v":0},{"$f":"VLOOKUP($F129,FactSum,'COS Factor Table'!N$115,FALSE)*$H129","v":0},{"$f":"ROUND(SUM(I129:Q129)-H129,0)","v":0}]
[{"$f":"A129+1","v":130},null,null,null,"Interruptible Energy",{"$f":"IF(Classification=\"DEMAND\",\"F12\",IF(Classification=\"ENERGY\",\"F30\",\"F10\"))","v":"F10"},null,{"$f":"UAcct442Se","v":0},{"$f":"VLOOKUP($F130,FactSum,'COS Factor Table'!F$115,FALSE)*$H130","v":0},{"$f":"VLOOKUP($F130,FactSum,'COS Factor Table'!G$115,FALSE)*$H130","v":0},{"$f":"VLOOKUP($F130,FactSum,'COS Factor Table'!H$115,FALSE)*$H130","v":0},{"$f":"VLOOKUP($F130,FactSum,'COS Factor Table'!I$115,FALSE)*$H130","v":0},{"$f":"VLOOKUP($F130,FactSum,'COS Factor Table'!J$115,FALSE)*$H130","v":0},{"$f":"VLOOKUP($F130,FactSum,'COS Factor Table'!K$115,FALSE)*$H130","v":0},{"$f":"VLOOKUP($F130,FactSum,'COS Factor Table'!L$115,FALSE)*$H130","v":0},{"$f":"VLOOKUP($F130,FactSum,'COS Factor Table'!M$115,FALSE)*$H130","v":0},{"$f":"VLOOKUP($F130,FactSum,'COS Factor Table'!N$115,FALSE)*$H130","v":0},{"$f":"ROUND(SUM(I130:Q130)-H130,0)","v":0}]
[131,null,null,null,null,null,null,{"$f":"SUM(H128:H130)","v":614206.51213967497},{"$f":"SUM(I128:I130)","v":0},{"$f":"SUM(J128:J130)","v":411599.04120735102},0,39027.534123100973,{"$f":"SUM(M128:M130)","v":19808.131119087207},143771.80569013581,0,{"$f":"SUM(P128:P130)","v":0},{"$f":"SUM(Q128:Q130)","v":0},{"$f":"ROUND(SUM(I131:Q131)-H131,0)","v":0}]
[132]
[133,null,"444","Public Street & Highway Lighting",null,"A",null,{"$f":"SUM(I133:Q133)","v":213648.35084437966},0,0,{"$f":"K107","v":195050.33548786546},0,0,0,{"$f":"O107","v":18598.015356514203},0,0,{"$f":"ROUND(SUM(I133:Q133)-H133,0)","v":0}]
[134]
[135,null,"445","Other Sales to Public Authority",null,"A",null,{"$f":"SUM(I135:Q135)","v":0},{"$f":"IF(Dis=\"GEN\",Revenues!D$23,0)","v":0},{"$f":"IF(Dis=\"GEN\",Revenues!E$23,0)","v":0},{"$f":"IF(Dis=\"GEN\",Revenues!F$23,0)","v":0},{"$f":"IF(Dis=\"GEN\",Revenues!G$23,0)","v":0},{"$f":"IF(Dis=\"GEN\",Revenues!H$23,0)","v":0},{"$f":"IF(Dis=\"GEN\",Revenues!I$23,0)","v":0},{"$f":"IF(Dis=\"GEN\",Revenues!J$23,0)","v":0},0,0,{"$f":"ROUND(SUM(I135:Q135)-H135,0)","v":0}]
[136]
[137,null,"448","Interdepartmental",null,"A",{"$f":"IF(UAcct448S=0,0,(UAcct448S/Acct448S))","v":0},{"$f":"SUM(I137:Q137)","v":0},{"$f":"Revenues!D$25*$G137","v":0},{"$f":"Revenues!E$25*$G137","v":0},{"$f":"Revenues!F$25*$G137","v":0},{"$f":"Revenues!G$25*$G137","v":0},{"$f":"Revenues!H$25*$G137","v":0},{"$f":"Revenues!I$25*$G137","v":0},{"$f":"Revenues!J$25*$G137","v":0},{"$f":"Revenues!K$25*$G137","v":0},{"$f":"Revenues!L$25*$G137","v":0},{"$f":"ROUND(SUM(I137:Q137)-H137,0)","v":0}]
[138,null,null,null,"Demand",{"$f":"IF(Classification=\"DEMAND\",\"F12\",IF(Classification=\"ENERGY\",\"F30\",\"F10\"))","v":"F10"},null,{"$f":"SUM(UAcct448So)","v":0},{"$f":"VLOOKUP($F138,FactSum,'COS Factor Table'!F$115,FALSE)*$H138","v":0},{"$f":"VLOOKUP($F138,FactSum,'COS Factor Table'!G$115,FALSE)*$H138","v":0},{"$f":"VLOOKUP($F138,FactSum,'COS Factor Table'!H$115,FALSE)*$H138","v":0},{"$f":"VLOOKUP($F138,FactSum,'COS Factor Table'!I$115,FALSE)*$H138","v":0},{"$f":"VLOOKUP($F138,FactSum,'COS Factor Table'!J$115,FALSE)*$H138","v":0},{"$f":"VLOOKUP($F138,FactSum,'COS Factor Table'!K$115,FALSE)*$H138","v":0},{"$f":"VLOOKUP($F138,FactSum,'COS Factor Table'!L$115,FALSE)*$H138","v":0},{"$f":"VLOOKUP($F138,FactSum,'COS Factor Table'!M$115,FALSE)*$H138","v":0},{"$f":"VLOOKUP($F138,FactSum,'COS Factor Table'!N$115,FALSE)*$H138","v":0},{"$f":"ROUND(SUM(I138:Q138)-H138,0)","v":0}]
[139,null,null,null,null,null,null,{"$f":"SUM(H137:H138)","v":0},{"$f":"SUM(I137:I138)","v":0},0,0,0,{"$f":"SUM(M137:M138)","v":0},0,0,{"$f":"SUM(P137:P138)","v":0},{"$f":"SUM(Q137:Q138)","v":0},{"$f":"ROUND(SUM(I139:Q139)-H139,0)","v":0}]
[140]
[141,null,"Total Sales to Ultimate Customers",null,null,null,null,{"$f":"+H126+H131+H133+H135+H139","v":2292651.3776757447},{"$f":"I126+I131+I133+I135+I139","v":1464796.5146916902},411599.04120735102,195050.33548786546,39027.534123100973,{"$f":"M126+M131+M133+M135+M139","v":19808.131119087207},143771.80569013581,18598.015356514203,{"$f":"P126+P131+P133+P135+P139","v":0},{"$f":"Q126+Q131+Q133+Q135+Q139","v":0},{"$f":"ROUND(SUM(I141:Q141)-H141,0)","v":0}]
[142]
[143,null,"447","Sales for Resale",null,{"$f":"IF(Classification=\"DEMAND\",\"F12\",IF(Classification=\"ENERGY\",\"F30\",\"F10\"))","v":"F10"},null,{"$f":"SUM(UAcct447)-H144-H145","v":0},{"$f":"VLOOKUP($F143,FactSum,'COS Factor Table'!F$115,FALSE)*$H143","v":0},{"$f":"VLOOKUP($F143,FactSum,'COS Factor Table'!G$115,FALSE)*$H143","v":0},{"$f":"VLOOKUP($F143,FactSum,'COS Factor Table'!H$115,FALSE)*$H143","v":0},{"$f":"VLOOKUP($F143,FactSum,'COS Factor Table'!I$115,FALSE)*$H143","v":0},{"$f":"VLOOKUP($F143,FactSum,'COS Factor Table'!J$115,FALSE)*$H143","v":0},{"$f":"VLOOKUP($F143,FactSum,'COS Factor Table'!K$115,FALSE)*$H143","v":0},{"$f":"VLOOKUP($F143,FactSum,'COS Factor Table'!L$115,FALSE)*$H143","v":0},{"$f":"VLOOKUP($F143,FactSum,'COS Factor Table'!M$115,FALSE)*$H143","v":0},{"$f":"VLOOKUP($F143,FactSum,'COS Factor Table'!N$115,FALSE)*$H143","v":0},{"$f":"ROUND(SUM(I143:Q143)-H143,0)","v":0}]
[144,null,null,null,"Demand",{"$f":"IF(Classification=\"DEMAND\",\"F12\",IF(Classification=\"ENERGY\",\"F30\",\"F10\"))","v":"F10"},null,{"$f":"SUM(UAcct447S)","v":0},{"$f":"VLOOKUP($F144,FactSum,'COS Factor Table'!F$115,FALSE)*$H144","v":0},{"$f":"VLOOKUP($F144,FactSum,'COS Factor Table'!G$115,FALSE)*$H144","v":0},{"$f":"VLOOKUP($F144,FactSum,'COS Factor Table'!H$115,FALSE)*$H144","v":0},{"$f":"VLOOKUP($F144,FactSum,'COS Factor Table'!I$115,FALSE)*$H144","v":0},{"$f":"VLOOKUP($F144,FactSum,'COS Factor Table'!J$115,FALSE)*$H144","v":0},{"$f":"VLOOKUP($F144,FactSum,'COS Factor Table'!K$115,FALSE)*$H144","v":0},{"$f":"VLOOKUP($F144,FactSum,'COS Factor Table'!L$115,FALSE)*$H144","v":0},{"$f":"VLOOKUP($F144,FactSum,'COS Factor Table'!M$115,FALSE)*$H144","v":0},{"$f":"VLOOKUP($F144,FactSum,'COS Factor Table'!N$115,FALSE)*$H144","v":0},{"$f":"ROUND(SUM(I144:Q144)-H144,0)","v":0}]
[145,null,null,null,"Energy",{"$f":"IF(Classification=\"DEMAND\",\"F12\",IF(Classification=\"ENERGY\",\"F30\",\"F10\"))","v":"F10"},null,0,{"$f":"VLOOKUP($F145,FactSum,'COS Factor Table'!F$115,FALSE)*$H145","v":0},{"$f":"VLOOKUP($F145,FactSum,'COS Factor Table'!G$115,FALSE)*$H145","v":0},{"$f":"VLOOKUP($F145,FactSum,'COS Factor Table'!H$115,FALSE)*$H145","v":0},{"$f":"VLOOKUP($F145,FactSum,'COS Factor Table'!I$115,FALSE)*$H145","v":0},{"$f":"VLOOKUP($F145,FactSum,'COS Factor Table'!J$115,FALSE)*$H145","v":0},{"$f":"VLOOKUP($F145,FactSum,'COS Factor Table'!K$115,FALSE)*$H145","v":0},{"$f":"VLOOKUP($F145,FactSum,'COS Factor Table'!L$115,FALSE)*$H145","v":0},{"$f":"VLOOKUP($F145,FactSum,'COS Factor Table'!M$115,FALSE)*$H145","v":0},{"$f":"VLOOKUP($F145,FactSum,'COS Factor Table'!N$115,FALSE)*$H145","v":0},{"$f":"ROUND(SUM(I145:Q145)-H145,0)","v":0}]
[146,null,null,null,null,null,null,{"$f":"SUM(H143:H145)","v":0},{"$f":"SUM(I143:I145)","v":0},0,0,0,{"$f":"SUM(M143:M145)","v":0},0,0,{"$f":"SUM(P143:P145)","v":0},{"$f":"SUM(Q143:Q145)","v":0},{"$f":"ROUND(SUM(I146:Q146)-H146,0)","v":0}]
[147]
[148,null,"447NPC","Sales for Resale",null,"F10",null,{"$f":"SUM(UACCT447NPC)-H149-H150","v":0},{"$f":"VLOOKUP($F148,FactSum,'COS Factor Table'!F$115,FALSE)*$H148","v":0},{"$f":"VLOOKUP($F148,FactSum,'COS Factor Table'!G$115,FALSE)*$H148","v":0},{"$f":"VLOOKUP($F148,FactSum,'COS Factor Table'!H$115,FALSE)*$H148","v":0},{"$f":"VLOOKUP($F148,FactSum,'COS Factor Table'!I$115,FALSE)*$H148","v":0},{"$f":"VLOOKUP($F148,FactSum,'COS Factor Table'!J$115,FALSE)*$H148","v":0},{"$f":"VLOOKUP($F148,FactSum,'COS Factor Table'!K$115,FALSE)*$H148","v":0},{"$f":"VLOOKUP($F148,FactSum,'COS Factor Table'!L$115,FALSE)*$H148","v":0},{"$f":"VLOOKUP($F148,FactSum,'COS Factor Table'!M$115,FALSE)*$H148","v":0},{"$f":"VLOOKUP($F148,FactSum,'COS Factor Table'!N$115,FALSE)*$H148","v":0},{"$f":"ROUND(SUM(I148:Q148)-H148,0)","v":0}]
[149,null,null,null,"Demand","F10",null,{"$f":"SUM(UACCT447NPCDGP+UACCT447NPCCAGW)","v":0},{"$f":"VLOOKUP($F149,FactSum,'COS Factor Table'!F$115,FALSE)*$H149","v":0},{"$f":"VLOOKUP($F149,FactSum,'COS Factor Table'!G$115,FALSE)*$H149","v":0},{"$f":"VLOOKUP($F149,FactSum,'COS Factor Table'!H$115,FALSE)*$H149","v":0},{"$f":"VLOOKUP($F149,FactSum,'COS Factor Table'!I$115,FALSE)*$H149","v":0},{"$f":"VLOOKUP($F149,FactSum,'COS Factor Table'!J$115,FALSE)*$H149","v":0},{"$f":"VLOOKUP($F149,FactSum,'COS Factor Table'!K$115,FALSE)*$H149","v":0},{"$f":"VLOOKUP($F149,FactSum,'COS Factor Table'!L$115,FALSE)*$H149","v":0},{"$f":"VLOOKUP($F149,FactSum,'COS Factor Table'!M$115,FALSE)*$H149","v":0},{"$f":"VLOOKUP($F149,FactSum,'COS Factor Table'!N$115,FALSE)*$H149","v":0},{"$f":"ROUND(SUM(I149:Q149)-H149,0)","v":0}]
[150,null,null,null,"Energy","F10",null,{"$f":"SUM(UACCT447NPCCAEW)","v":0},{"$f":"VLOOKUP($F150,FactSum,'COS Factor Table'!F$115,FALSE)*$H150","v":0},{"$f":"VLOOKUP($F150,FactSum,'COS Factor Table'!G$115,FALSE)*$H150","v":0},{"$f":"VLOOKUP($F150,FactSum,'COS Factor Table'!H$115,FALSE)*$H150","v":0},{"$f":"VLOOKUP($F150,FactSum,'COS Factor Table'!I$115,FALSE)*$H150","v":0},{"$f":"VLOOKUP($F150,FactSum,'COS Factor Table'!J$115,FALSE)*$H150","v":0},{"$f":"VLOOKUP($F150,FactSum,'COS Factor Table'!K$115,FALSE)*$H150","v":0},{"$f":"VLOOKUP($F150,FactSum,'COS Factor Table'!L$115,FALSE)*$H150","v":0},{"$f":"VLOOKUP($F150,FactSum,'COS Factor Table'!M$115,FALSE)*$H150","v":0},{"$f":"VLOOKUP($F150,FactSum,'COS Factor Table'!N$115,FALSE)*$H150","v":0},{"$f":"ROUND(SUM(I150:Q150)-H150,0)","v":0}]
[151,null,null,null,null,null,null,{"$f":"SUM(H148:H150)","v":0},{"$f":"SUM(I148:I150)","v":0},0,0,0,{"$f":"SUM(M148:M150)","v":0},{"$f":"SUM(N148:N150)","v":0},0,{"$f":"SUM(P148:P150)","v":0},{"$f":"SUM(Q148:Q150)","v":0},{"$f":"ROUND(SUM(I151:Q151)-H151,0)","v":0}]
[152]
[153,null,"449","Provision for Rate Refund",null,{"$f":"IF(Classification=\"DEMAND\",\"F12\",IF(Classification=\"ENERGY\",\"F30\",\"F10\"))","v":"F10"},null,{"$f":"SUM(UAcct449)","v":0},{"$f":"VLOOKUP($F153,FactSum,'COS Factor Table'!F$115,FALSE)*$H153","v":0},{"$f":"VLOOKUP($F153,FactSum,'COS Factor Table'!G$115,FALSE)*$H153","v":0},{"$f":"VLOOKUP($F153,FactSum,'COS Factor Table'!H$115,FALSE)*$H153","v":0},{"$f":"VLOOKUP($F153,FactSum,'COS Factor Table'!I$115,FALSE)*$H153","v":0},{"$f":"VLOOKUP($F153,FactSum,'COS Factor Table'!J$115,FALSE)*$H153","v":0},{"$f":"VLOOKUP($F153,FactSum,'COS Factor Table'!K$115,FALSE)*$H153","v":0},{"$f":"VLOOKUP($F153,FactSum,'COS Factor Table'!L$115,FALSE)*$H153","v":0},{"$f":"VLOOKUP($F153,FactSum,'COS Factor Table'!M$115,FALSE)*$H153","v":0},{"$f":"VLOOKUP($F153,FactSum,'COS Factor Table'!N$115,FALSE)*$H153","v":0},{"$f":"ROUND(SUM(I153:Q153)-H153,0)","v":0}]
[154]
[155,null,"State Specific Revenue Credit",null,null,{"$f":"IF(Function=\"gen\",\"F140G\",IF(Function=\"TRN\",\"F140T\",IF(Function=\"DIS\",\"F140D\",IF(Function=\"RETAIL\",\"F140R\",IF(Function=\"MISC\",\"F140M\",\"ERR\")))))","v":"F140D"},null,{"$f":"+UAcct33","v":1742.6294134858124},{"$f":"VLOOKUP($F155,FactSum,'COS Factor Table'!F$115,FALSE)*$H155","v":1018.5368935653595},{"$f":"VLOOKUP($F155,FactSum,'COS Factor Table'!G$115,FALSE)*$H155","v":260.50080874638149},{"$f":"VLOOKUP($F155,FactSum,'COS Factor Table'!H$115,FALSE)*$H155","v":244.91299155132833},{"$f":"VLOOKUP($F155,FactSum,'COS Factor Table'!I$115,FALSE)*$H155","v":86.25396709082402},{"$f":"VLOOKUP($F155,FactSum,'COS Factor Table'!J$115,FALSE)*$H155","v":20.504332568330309},{"$f":"VLOOKUP($F155,FactSum,'COS Factor Table'!K$115,FALSE)*$H155","v":84.505679296480025},{"$f":"VLOOKUP($F155,FactSum,'COS Factor Table'!L$115,FALSE)*$H155","v":27.414740667108639},{"$f":"VLOOKUP($F155,FactSum,'COS Factor Table'!M$115,FALSE)*$H155","v":0},{"$f":"VLOOKUP($F155,FactSum,'COS Factor Table'!N$115,FALSE)*$H155","v":0},{"$f":"ROUND(SUM(I155:Q155)-H155,0)","v":0}]
[156]
[157,null,"AGA Revenue",null,null,"A",{"$f":"UAcctAGA/AcctAGA","v":4.4117942306878773E-2},{"$f":"SUM(I157:Q157)","v":24046.569160813502},{"$f":"Revenues!D31*$G157","v":15.794223345862601},{"$f":"Revenues!E31*$G157","v":6482.5580887458464},{"$f":"Revenues!F31*$G157","v":7901.1264056812261},{"$f":"Revenues!G31*$G157","v":1354.4208288211782},{"$f":"Revenues!H31*$G157","v":0},{"$f":"Revenues!I31*$G157","v":8239.1986681434537},{"$f":"Revenues!J31*$G157","v":53.470946075937071},{"$f":"Revenues!K31*$G157","v":0},{"$f":"Revenues!L31*$G157","v":0},{"$f":"ROUND(SUM(I157:Q157)-H157,0)","v":0}]
[158]
[159,null,"Total Sales from Electricity",null,null,null,null,{"$f":"+H141+H151+H153+H155+H157+H146","v":2318440.5762500442},{"$f":"+I141+I151+I153+I155+I157+I146","v":1465830.8458086015},418342.10010484327,203196.37488509802,40468.208919012977,19828.635451655537,152095.51003757573,18678.901043257247,{"$f":"+P141+P146+P153+P155+P157","v":0},0,{"$f":"ROUND(SUM(I159:Q159)-H159,0)","v":0}]
[160]
[161,null,"Other Electric Operating Revenues"]
[162,null,"450","Forfeited Discounts & Interest",null,"A",{"$f":"IF(UAcct450S=0,0,(UAcct450S/Acct450S))","v":0},{"$f":"SUM(UAcct450)-H163","v":0},{"$f":"Revenues!E103*$G162","v":0},{"$f":"Revenues!F103*$G162","v":0},{"$f":"Revenues!G103*$G162","v":0},{"$f":"Revenues!H103*$G162","v":0},{"$f":"Revenues!I103*$G162","v":0},{"$f":"Revenues!J103*$G162","v":0},{"$f":"Revenues!K103*$G162","v":0},{"$f":"Revenues!L103*$G162","v":0},{"$f":"Revenues!M103*$G162","v":0},{"$f":"ROUND(SUM(I162:Q162)-H162,0)","v":0}]
[163,null,null,null,"Customers","F40",null,{"$f":"SUM(UAcct450So)","v":0},{"$f":"VLOOKUP($F163,FactSum,'COS Factor Table'!F$115,FALSE)*$H163","v":0},{"$f":"VLOOKUP($F163,FactSum,'COS Factor Table'!G$115,FALSE)*$H163","v":0},{"$f":"VLOOKUP($F163,FactSum,'COS Factor Table'!H$115,FALSE)*$H163","v":0},{"$f":"VLOOKUP($F163,FactSum,'COS Factor Table'!I$115,FALSE)*$H163","v":0},{"$f":"VLOOKUP($F163,FactSum,'COS Factor Table'!J$115,FALSE)*$H163","v":0},{"$f":"VLOOKUP($F163,FactSum,'COS Factor Table'!K$115,FALSE)*$H163","v":0},{"$f":"VLOOKUP($F163,FactSum,'COS Factor Table'!L$115,FALSE)*$H163","v":0},{"$f":"VLOOKUP($F163,FactSum,'COS Factor Table'!M$115,FALSE)*$H163","v":0},{"$f":"VLOOKUP($F163,FactSum,'COS Factor Table'!N$115,FALSE)*$H163","v":0},{"$f":"ROUND(SUM(I163:Q163)-H163,0)","v":0}]
[164,null,null,null,null,null,null,{"$f":"SUM(H162:H163)","v":0},{"$f":"SUM(I162:I163)","v":0},0,0,0,{"$f":"SUM(M162:M163)","v":0},0,0,{"$f":"SUM(P162:P163)","v":0},{"$f":"SUM(Q162:Q163)","v":0},{"$f":"ROUND(SUM(I164:Q164)-H164,0)","v":0}]
[165]
[166,null,"451","Misc Electric Revenue",null,"A",{"$f":"IF(UAcct451S=0,0,(UAcct451S/Acct451S))","v":0},{"$f":"(UAcct451S)","v":0},{"$f":"Revenues!E112*$G166","v":0},{"$f":"Revenues!F112*$G166","v":0},{"$f":"Revenues!G112*$G166","v":0},{"$f":"Revenues!H112*$G166","v":0},{"$f":"Revenues!I112*$G166","v":0},{"$f":"Revenues!J112*$G166","v":0},{"$f":"Revenues!K112*$G166","v":0},{"$f":"Revenues!L112*$G166","v":0},{"$f":"Revenues!M112*$G166","v":0},{"$f":"ROUND(SUM(I166:Q166)-H166,0)","v":0}]
[167,null,null,null,"Demand",{"$f":"IF(Classification=\"DEMAND\",\"F12\",IF(Classification=\"ENERGY\",\"F30\",\"F10\"))","v":"F10"},null,{"$f":"SUM(UAcct451Sg)","v":0},{"$f":"VLOOKUP($F167,FactSum,'COS Factor Table'!F$115,FALSE)*$H167","v":0},{"$f":"VLOOKUP($F167,FactSum,'COS Factor Table'!G$115,FALSE)*$H167","v":0},{"$f":"VLOOKUP($F167,FactSum,'COS Factor Table'!H$115,FALSE)*$H167","v":0},{"$f":"VLOOKUP($F167,FactSum,'COS Factor Table'!I$115,FALSE)*$H167","v":0},{"$f":"VLOOKUP($F167,FactSum,'COS Factor Table'!J$115,FALSE)*$H167","v":0},{"$f":"VLOOKUP($F167,FactSum,'COS Factor Table'!K$115,FALSE)*$H167","v":0},{"$f":"VLOOKUP($F167,FactSum,'COS Factor Table'!L$115,FALSE)*$H167","v":0},{"$f":"VLOOKUP($F167,FactSum,'COS Factor Table'!M$115,FALSE)*$H167","v":0},{"$f":"VLOOKUP($F167,FactSum,'COS Factor Table'!N$115,FALSE)*$H167","v":0},{"$f":"ROUND(SUM(I167:Q167)-H167,0)","v":0}]
[168,null,null,null,"Customer","F40",null,{"$f":"SUM(UAcct451So)","v":2.2002629455472063},{"$f":"VLOOKUP($F168,FactSum,'COS Factor Table'!F$115,FALSE)*$H168","v":1.7335329660658056},{"$f":"VLOOKUP($F168,FactSum,'COS Factor Table'!G$115,FALSE)*$H168","v":0.3099306303429063},{"$f":"VLOOKUP($F168,FactSum,'COS Factor Table'!H$115,FALSE)*$H168","v":1.7360671333880438E-2},{"$f":"VLOOKUP($F168,FactSum,'COS Factor Table'!I$115,FALSE)*$H168","v":9.6255613415963386E-4},{"$f":"VLOOKUP($F168,FactSum,'COS Factor Table'!J$115,FALSE)*$H168","v":1.6621123670135377E-5},{"$f":"VLOOKUP($F168,FactSum,'COS Factor Table'!K$115,FALSE)*$H168","v":8.7427110504912073E-2},{"$f":"VLOOKUP($F168,FactSum,'COS Factor Table'!L$115,FALSE)*$H168","v":5.1032390041872322E-2},{"$f":"VLOOKUP($F168,FactSum,'COS Factor Table'!M$115,FALSE)*$H168","v":0},{"$f":"VLOOKUP($F168,FactSum,'COS Factor Table'!N$115,FALSE)*$H168","v":0},{"$f":"ROUND(SUM(I168:Q168)-H168,0)","v":0}]
[169,null,null,null,null,null,null,{"$f":"SUM(H166:H168)","v":2.2002629455472063},{"$f":"SUM(I166:I168)","v":1.7335329660658056},0.3099306303429063,1.7360671333880438E-2,9.6255613415963386E-4,{"$f":"SUM(M166:M168)","v":1.6621123670135377E-5},8.7427110504912073E-2,5.1032390041872322E-2,{"$f":"SUM(P166:P168)","v":0},{"$f":"SUM(Q166:Q168)","v":0},{"$f":"ROUND(SUM(I169:Q169)-H169,0)","v":0}]
[170]
[171,null,"453","Water Sales",null,{"$f":"IF(Classification=\"DEMAND\",\"F12\",IF(Classification=\"ENERGY\",\"F30\",\"F10\"))","v":"F10"},null,{"$f":"SUM(UAcct453)","v":0},{"$f":"VLOOKUP($F171,FactSum,'COS Factor Table'!F$115,FALSE)*$H171","v":0},{"$f":"VLOOKUP($F171,FactSum,'COS Factor Table'!G$115,FALSE)*$H171","v":0},{"$f":"VLOOKUP($F171,FactSum,'COS Factor Table'!H$115,FALSE)*$H171","v":0},{"$f":"VLOOKUP($F171,FactSum,'COS Factor Table'!I$115,FALSE)*$H171","v":0},{"$f":"VLOOKUP($F171,FactSum,'COS Factor Table'!J$115,FALSE)*$H171","v":0},{"$f":"VLOOKUP($F171,FactSum,'COS Factor Table'!K$115,FALSE)*$H171","v":0},{"$f":"VLOOKUP($F171,FactSum,'COS Factor Table'!L$115,FALSE)*$H171","v":0},{"$f":"VLOOKUP($F171,FactSum,'COS Factor Table'!M$115,FALSE)*$H171","v":0},{"$f":"VLOOKUP($F171,FactSum,'COS Factor Table'!N$115,FALSE)*$H171","v":0},{"$f":"ROUND(SUM(I171:Q171)-H171,0)","v":0}]
[172]
[173,null,"454","Rent of Electric Property",null,"A",{"$f":"IF(UAcct454S=0,0,(UAcct454S/Acct454S))","v":2.826869714511842E-2},{"$f":"SUM(UAcct454)-H174-H175","v":30837.803833077978},{"$f":"Revenues!E118*$G173","v":14555.999562127399},{"$f":"Revenues!F118*$G173","v":3978.9976997263666},{"$f":"Revenues!G118*$G173","v":5836.1368931095158},{"$f":"Revenues!H118*$G173","v":2231.8685700251717},{"$f":"Revenues!I118*$G173","v":2087.4865255182881},{"$f":"Revenues!J118*$G173","v":2036.820044798578},{"$f":"Revenues!K118*$G173","v":110.49453777266532},{"$f":"Revenues!L118*$G173","v":0},{"$f":"Revenues!M118*$G173","v":0},{"$f":"ROUND(SUM(I173:Q173)-H173,0)","v":0}]
[174,null,null,null,"Demand",{"$f":"IF(Classification=\"DEMAND\",\"F12\",IF(Classification=\"ENERGY\",\"F30\",\"F10\"))","v":"F10"},null,{"$f":"SUM(UAcct454Sg+UAcct454JBG)","v":0},{"$f":"VLOOKUP($F174,FactSum,'COS Factor Table'!F$115,FALSE)*$H174","v":0},{"$f":"VLOOKUP($F174,FactSum,'COS Factor Table'!G$115,FALSE)*$H174","v":0},{"$f":"VLOOKUP($F174,FactSum,'COS Factor Table'!H$115,FALSE)*$H174","v":0},{"$f":"VLOOKUP($F174,FactSum,'COS Factor Table'!I$115,FALSE)*$H174","v":0},{"$f":"VLOOKUP($F174,FactSum,'COS Factor Table'!J$115,FALSE)*$H174","v":0},{"$f":"VLOOKUP($F174,FactSum,'COS Factor Table'!K$115,FALSE)*$H174","v":0},{"$f":"VLOOKUP($F174,FactSum,'COS Factor Table'!L$115,FALSE)*$H174","v":0},{"$f":"VLOOKUP($F174,FactSum,'COS Factor Table'!M$115,FALSE)*$H174","v":0},{"$f":"VLOOKUP($F174,FactSum,'COS Factor Table'!N$115,FALSE)*$H174","v":0},{"$f":"ROUND(SUM(I174:Q174)-H174,0)","v":0}]
[175,null,null,null,"Customer","F40",null,{"$f":"SUM(UAcct454So)","v":1931.5663974704169},{"$f":"VLOOKUP($F175,FactSum,'COS Factor Table'!F$115,FALSE)*$H175","v":1521.8335758170838},{"$f":"VLOOKUP($F175,FactSum,'COS Factor Table'!G$115,FALSE)*$H175","v":272.08184018583205},{"$f":"VLOOKUP($F175,FactSum,'COS Factor Table'!H$115,FALSE)*$H175","v":15.240582701224209},{"$f":"VLOOKUP($F175,FactSum,'COS Factor Table'!I$115,FALSE)*$H175","v":0.84500858780739108},{"$f":"VLOOKUP($F175,FactSum,'COS Factor Table'!J$115,FALSE)*$H175","v":1.4591348745115182E-2},{"$f":"VLOOKUP($F175,FactSum,'COS Factor Table'!K$115,FALSE)*$H175","v":76.750494399305865},{"$f":"VLOOKUP($F175,FactSum,'COS Factor Table'!L$115,FALSE)*$H175","v":44.800304430418656},{"$f":"VLOOKUP($F175,FactSum,'COS Factor Table'!M$115,FALSE)*$H175","v":0},{"$f":"VLOOKUP($F175,FactSum,'COS Factor Table'!N$115,FALSE)*$H175","v":0},{"$f":"ROUND(SUM(I175:Q175)-H175,0)","v":0}]
[176,null,null,null,null,null,null,{"$f":"SUM(H173:H175)","v":32769.370230548397},{"$f":"SUM(I173:I175)","v":16077.833137944483},4251.0795399121989,5851.3774758107402,2232.7135786129793,{"$f":"SUM(M173:M175)","v":2087.501116867033},2113.570539197884,155.29484220308399,{"$f":"SUM(P173:P175)","v":0},{"$f":"SUM(Q173:Q175)","v":0},{"$f":"ROUND(SUM(I176:Q176)-H176,0)","v":0}]
[177]
[178,null,"456","Other Electric Revenue",null,"A",{"$f":"IF(UAcct456S=0,0,(UAcct456S/Acct456S))","v":0},{"$f":"SUM(UAcct456S)","v":0},{"$f":"Revenues!E124*$G$178","v":0},{"$f":"Revenues!F124*$G$178","v":0},{"$f":"Revenues!G124*$G$178","v":0},{"$f":"Revenues!H124*$G$178","v":0},{"$f":"Revenues!I124*$G$178","v":0},{"$f":"Revenues!J124*$G$178","v":0},{"$f":"Revenues!K124*$G$178","v":0},{"$f":"Revenues!L124*$G$178","v":0},{"$f":"Revenues!M124*$G$178","v":0},{"$f":"ROUND(SUM(I178:Q178)-H178,0)","v":0}]
[179,null,null,null,"Demand",{"$f":"IF(Classification=\"DEMAND\",\"F12\",IF(Classification=\"ENERGY\",\"F30\",\"F10\"))","v":"F10"},null,{"$f":"SUM(UAcct456)-H178-H180-H181","v":0},{"$f":"VLOOKUP($F179,FactSum,'COS Factor Table'!F$115,FALSE)*$H179","v":0},{"$f":"VLOOKUP($F179,FactSum,'COS Factor Table'!G$115,FALSE)*$H179","v":0},{"$f":"VLOOKUP($F179,FactSum,'COS Factor Table'!H$115,FALSE)*$H179","v":0},{"$f":"VLOOKUP($F179,FactSum,'COS Factor Table'!I$115,FALSE)*$H179","v":0},{"$f":"VLOOKUP($F179,FactSum,'COS Factor Table'!J$115,FALSE)*$H179","v":0},{"$f":"VLOOKUP($F179,FactSum,'COS Factor Table'!K$115,FALSE)*$H179","v":0},{"$f":"VLOOKUP($F179,FactSum,'COS Factor Table'!L$115,FALSE)*$H179","v":0},{"$f":"VLOOKUP($F179,FactSum,'COS Factor Table'!M$115,FALSE)*$H179","v":0},{"$f":"VLOOKUP($F179,FactSum,'COS Factor Table'!N$115,FALSE)*$H179","v":0},{"$f":"ROUND(SUM(I179:Q179)-H179,0)","v":0}]
[180,null,null,null,"Energy",{"$f":"IF(Classification=\"DEMAND\",\"F12\",IF(Classification=\"ENERGY\",\"F30\",\"F10\"))","v":"F10"},null,{"$f":"UAcct456CAEW","v":0},{"$f":"VLOOKUP($F180,FactSum,'COS Factor Table'!F$115,FALSE)*$H180","v":0},{"$f":"VLOOKUP($F180,FactSum,'COS Factor Table'!G$115,FALSE)*$H180","v":0},{"$f":"VLOOKUP($F180,FactSum,'COS Factor Table'!H$115,FALSE)*$H180","v":0},{"$f":"VLOOKUP($F180,FactSum,'COS Factor Table'!I$115,FALSE)*$H180","v":0},{"$f":"VLOOKUP($F180,FactSum,'COS Factor Table'!J$115,FALSE)*$H180","v":0},{"$f":"VLOOKUP($F180,FactSum,'COS Factor Table'!K$115,FALSE)*$H180","v":0},{"$f":"VLOOKUP($F180,FactSum,'COS Factor Table'!L$115,FALSE)*$H180","v":0},{"$f":"VLOOKUP($F180,FactSum,'COS Factor Table'!M$115,FALSE)*$H180","v":0},{"$f":"VLOOKUP($F180,FactSum,'COS Factor Table'!N$115,FALSE)*$H180","v":0},{"$f":"ROUND(SUM(I180:Q180)-H180,0)","v":0}]
[181,null,null,null,"Customer","F40",null,{"$f":"UAcct456So","v":0},{"$f":"VLOOKUP($F181,FactSum,'COS Factor Table'!F$115,FALSE)*$H181","v":0},{"$f":"VLOOKUP($F181,FactSum,'COS Factor Table'!G$115,FALSE)*$H181","v":0},{"$f":"VLOOKUP($F181,FactSum,'COS Factor Table'!H$115,FALSE)*$H181","v":0},{"$f":"VLOOKUP($F181,FactSum,'COS Factor Table'!I$115,FALSE)*$H181","v":0},{"$f":"VLOOKUP($F181,FactSum,'COS Factor Table'!J$115,FALSE)*$H181","v":0},{"$f":"VLOOKUP($F181,FactSum,'COS Factor Table'!K$115,FALSE)*$H181","v":0},{"$f":"VLOOKUP($F181,FactSum,'COS Factor Table'!L$115,FALSE)*$H181","v":0},{"$f":"VLOOKUP($F181,FactSum,'COS Factor Table'!M$115,FALSE)*$H181","v":0},{"$f":"VLOOKUP($F181,FactSum,'COS Factor Table'!N$115,FALSE)*$H181","v":0},{"$f":"ROUND(SUM(I181:Q181)-H181,0)","v":0}]
[182,null,null,null,null,null,null,{"$f":"SUM(H178:H181)","v":0},{"$f":"SUM(I178:I181)","v":0},0,0,0,{"$f":"SUM(M178:M181)","v":0},0,0,{"$f":"SUM(P178:P181)","v":0},{"$f":"SUM(Q178:Q181)","v":0},{"$f":"ROUND(SUM(I182:Q182)-H182,0)","v":0}]
[183]
[184,null,"Total Other Electric Operating Revenues",null,null,null,null,{"$f":"+H164+H169+H171+H176+H182","v":32771.570493493942},{"$f":"I164+I169+I171+I176+I182","v":16079.566670910548},4251.3894705425419,5851.3948364820744,2232.7145411691135,{"$f":"M164+M169+M171+M176+M182","v":2087.5011334881565},2113.6579663083889,155.34587459312587,{"$f":"P164+P169+P171+P176+P182","v":0},{"$f":"Q164+Q169+Q171+Q176+Q182","v":0},{"$f":"ROUND(SUM(I184:Q184)-H184,0)","v":0}]
[185]
[186,null,"Total Electric Operating Revenues",null,null,null,null,{"$f":"+H159+H184","v":2351212.1467435383},{"$f":"I159+I184","v":1481910.4124795119},422593.48957538581,209047.76972158009,42700.923460182094,{"$f":"M159+M184","v":21916.136585143693},154209.16800388412,18834.246917850374,{"$f":"P159+P184","v":0},{"$f":"Q159+Q184","v":0},{"$f":"ROUND(SUM(I186:Q186)-H186,0)","v":0}]
[187]
[188,null,"Miscellaneous Revenues"]
[189,null,"41160","Gain on Sale of Utility Plant - CR",null,{"$f":"IF(Classification=\"DEMAND\",\"F12\",IF(Classification=\"ENERGY\",\"F30\",\"F10\"))","v":"F10"},null,{"$f":"SUM(UAcct41160)","v":0},{"$f":"VLOOKUP($F189,FactSum,'COS Factor Table'!F$115,FALSE)*$H189","v":0},{"$f":"VLOOKUP($F189,FactSum,'COS Factor Table'!G$115,FALSE)*$H189","v":0},{"$f":"VLOOKUP($F189,FactSum,'COS Factor Table'!H$115,FALSE)*$H189","v":0},{"$f":"VLOOKUP($F189,FactSum,'COS Factor Table'!I$115,FALSE)*$H189","v":0},{"$f":"VLOOKUP($F189,FactSum,'COS Factor Table'!J$115,FALSE)*$H189","v":0},{"$f":"VLOOKUP($F189,FactSum,'COS Factor Table'!K$115,FALSE)*$H189","v":0},{"$f":"VLOOKUP($F189,FactSum,'COS Factor Table'!L$115,FALSE)*$H189","v":0},{"$f":"VLOOKUP($F189,FactSum,'COS Factor Table'!M$115,FALSE)*$H189","v":0},{"$f":"VLOOKUP($F189,FactSum,'COS Factor Table'!N$115,FALSE)*$H189","v":0},{"$f":"ROUND(SUM(I189:Q189)-H189,0)","v":0}]
[190,null,"41170","Loss on Sale of Utility Plant ",null,"F10",null,{"$f":"SUM(UAcct41170)","v":0},{"$f":"VLOOKUP($F190,FactSum,'COS Factor Table'!F$115,FALSE)*$H190","v":0},{"$f":"VLOOKUP($F190,FactSum,'COS Factor Table'!G$115,FALSE)*$H190","v":0},{"$f":"VLOOKUP($F190,FactSum,'COS Factor Table'!H$115,FALSE)*$H190","v":0},{"$f":"VLOOKUP($F190,FactSum,'COS Factor Table'!I$115,FALSE)*$H190","v":0},{"$f":"VLOOKUP($F190,FactSum,'COS Factor Table'!J$115,FALSE)*$H190","v":0},{"$f":"VLOOKUP($F190,FactSum,'COS Factor Table'!K$115,FALSE)*$H190","v":0},{"$f":"VLOOKUP($F190,FactSum,'COS Factor Table'!L$115,FALSE)*$H190","v":0},{"$f":"VLOOKUP($F190,FactSum,'COS Factor Table'!M$115,FALSE)*$H190","v":0},{"$f":"VLOOKUP($F190,FactSum,'COS Factor Table'!N$115,FALSE)*$H190","v":0},0]
[191,null,"4118","Gain from Emission Allowances",null,"F10",null,{"$f":"(UAcct4118)","v":0},{"$f":"VLOOKUP($F191,FactSum,'COS Factor Table'!F$115,FALSE)*$H191","v":0},{"$f":"VLOOKUP($F191,FactSum,'COS Factor Table'!G$115,FALSE)*$H191","v":0},{"$f":"VLOOKUP($F191,FactSum,'COS Factor Table'!H$115,FALSE)*$H191","v":0},{"$f":"VLOOKUP($F191,FactSum,'COS Factor Table'!I$115,FALSE)*$H191","v":0},{"$f":"VLOOKUP($F191,FactSum,'COS Factor Table'!J$115,FALSE)*$H191","v":0},{"$f":"VLOOKUP($F191,FactSum,'COS Factor Table'!K$115,FALSE)*$H191","v":0},{"$f":"VLOOKUP($F191,FactSum,'COS Factor Table'!L$115,FALSE)*$H191","v":0},{"$f":"VLOOKUP($F191,FactSum,'COS Factor Table'!M$115,FALSE)*$H191","v":0},{"$f":"VLOOKUP($F191,FactSum,'COS Factor Table'!N$115,FALSE)*$H191","v":0},0]
[192,null,41181,"Gain from Disposition of NOX Credits",null,"F10",null,{"$f":"(UAcct41181)","v":0},{"$f":"VLOOKUP($F192,FactSum,'COS Factor Table'!F$115,FALSE)*$H192","v":0},{"$f":"VLOOKUP($F192,FactSum,'COS Factor Table'!G$115,FALSE)*$H192","v":0},{"$f":"VLOOKUP($F192,FactSum,'COS Factor Table'!H$115,FALSE)*$H192","v":0},{"$f":"VLOOKUP($F192,FactSum,'COS Factor Table'!I$115,FALSE)*$H192","v":0},{"$f":"VLOOKUP($F192,FactSum,'COS Factor Table'!J$115,FALSE)*$H192","v":0},{"$f":"VLOOKUP($F192,FactSum,'COS Factor Table'!K$115,FALSE)*$H192","v":0},{"$f":"VLOOKUP($F192,FactSum,'COS Factor Table'!L$115,FALSE)*$H192","v":0},{"$f":"VLOOKUP($F192,FactSum,'COS Factor Table'!M$115,FALSE)*$H192","v":0},{"$f":"VLOOKUP($F192,FactSum,'COS Factor Table'!N$115,FALSE)*$H192","v":0},0]
[193,null,"4194","Impact Housing Interest Income",null,"F10",null,{"$f":"SUM(UAcct4194)","v":0},{"$f":"VLOOKUP($F193,FactSum,'COS Factor Table'!F$115,FALSE)*$H193","v":0},{"$f":"VLOOKUP($F193,FactSum,'COS Factor Table'!G$115,FALSE)*$H193","v":0},{"$f":"VLOOKUP($F193,FactSum,'COS Factor Table'!H$115,FALSE)*$H193","v":0},{"$f":"VLOOKUP($F193,FactSum,'COS Factor Table'!I$115,FALSE)*$H193","v":0},{"$f":"VLOOKUP($F193,FactSum,'COS Factor Table'!J$115,FALSE)*$H193","v":0},{"$f":"VLOOKUP($F193,FactSum,'COS Factor Table'!K$115,FALSE)*$H193","v":0},{"$f":"VLOOKUP($F193,FactSum,'COS Factor Table'!L$115,FALSE)*$H193","v":0},{"$f":"VLOOKUP($F193,FactSum,'COS Factor Table'!M$115,FALSE)*$H193","v":0},{"$f":"VLOOKUP($F193,FactSum,'COS Factor Table'!N$115,FALSE)*$H193","v":0},0]
[{"$f":"A193+1","v":194},null,"421","(Gain)/Loss on Sale of Utility Plant",null,"F10",null,{"$f":"(UAcct421)","v":103.86639824167921},{"$f":"VLOOKUP($F194,FactSum,'COS Factor Table'!F$115,FALSE)*$H194","v":44.067918405762732},{"$f":"VLOOKUP($F194,FactSum,'COS Factor Table'!G$115,FALSE)*$H194","v":14.016857552332134},{"$f":"VLOOKUP($F194,FactSum,'COS Factor Table'!H$115,FALSE)*$H194","v":22.208500689067424},{"$f":"VLOOKUP($F194,FactSum,'COS Factor Table'!I$115,FALSE)*$H194","v":8.775936143925783},{"$f":"VLOOKUP($F194,FactSum,'COS Factor Table'!J$115,FALSE)*$H194","v":10.850352546754831},{"$f":"VLOOKUP($F194,FactSum,'COS Factor Table'!K$115,FALSE)*$H194","v":3.6976526205892202},{"$f":"VLOOKUP($F194,FactSum,'COS Factor Table'!L$115,FALSE)*$H194","v":0.24918028324707825},{"$f":"VLOOKUP($F194,FactSum,'COS Factor Table'!M$115,FALSE)*$H194","v":0},{"$f":"VLOOKUP($F194,FactSum,'COS Factor Table'!N$115,FALSE)*$H194","v":0},0]
[195]
[196,null,"Total Miscellaneous Revenues",null,null,null,null,{"$f":"SUM(H189:H194)","v":103.86639824167921},44.067918405762732,14.016857552332134,22.208500689067424,8.775936143925783,{"$f":"SUM(M189:M194)","v":10.850352546754831},3.6976526205892202,0.24918028324707825,{"$f":"SUM(P189:P194)","v":0},{"$f":"SUM(Q189:Q194)","v":0},{"$f":"ROUND(SUM(I196:Q196)-H196,0)","v":0}]
[197]
[198,null,"Miscellaneous Expenses"]
[199,null,"4311","Interest on Customer Deposits",null,"F80",null,{"$f":"SUM(UAcct4311)","v":0},{"$f":"VLOOKUP($F199,FactSum,'COS Factor Table'!F$115,FALSE)*$H199","v":0},{"$f":"VLOOKUP($F199,FactSum,'COS Factor Table'!G$115,FALSE)*$H199","v":0},{"$f":"VLOOKUP($F199,FactSum,'COS Factor Table'!H$115,FALSE)*$H199","v":0},{"$f":"VLOOKUP($F199,FactSum,'COS Factor Table'!I$115,FALSE)*$H199","v":0},{"$f":"VLOOKUP($F199,FactSum,'COS Factor Table'!J$115,FALSE)*$H199","v":0},{"$f":"VLOOKUP($F199,FactSum,'COS Factor Table'!K$115,FALSE)*$H199","v":0},{"$f":"VLOOKUP($F199,FactSum,'COS Factor Table'!L$115,FALSE)*$H199","v":0},{"$f":"VLOOKUP($F199,FactSum,'COS Factor Table'!M$115,FALSE)*$H199","v":0},{"$f":"VLOOKUP($F199,FactSum,'COS Factor Table'!N$115,FALSE)*$H199","v":0},{"$f":"ROUND(SUM(I199:Q199)-H199,0)","v":0}]
[200]
[201,null,"DFA","Divergence Fairness Adjustment"]
[202,null,null,"Production ",null,"F105",null,0,{"$f":"VLOOKUP($F202,FactSum,'COS Factor Table'!F$115,FALSE)*$H202","v":0},{"$f":"VLOOKUP($F202,FactSum,'COS Factor Table'!G$115,FALSE)*$H202","v":0},{"$f":"VLOOKUP($F202,FactSum,'COS Factor Table'!H$115,FALSE)*$H202","v":0},{"$f":"VLOOKUP($F202,FactSum,'COS Factor Table'!I$115,FALSE)*$H202","v":0},{"$f":"VLOOKUP($F202,FactSum,'COS Factor Table'!J$115,FALSE)*$H202","v":0},{"$f":"VLOOKUP($F202,FactSum,'COS Factor Table'!K$115,FALSE)*$H202","v":0},{"$f":"VLOOKUP($F202,FactSum,'COS Factor Table'!L$115,FALSE)*$H202","v":0},{"$f":"VLOOKUP($F202,FactSum,'COS Factor Table'!M$115,FALSE)*$H202","v":0},{"$f":"VLOOKUP($F202,FactSum,'COS Factor Table'!N$115,FALSE)*$H202","v":0},{"$f":"ROUND(SUM(I202:Q202)-H202,0)","v":0}]
[203,null,null,"Transmission",null,"F105",null,0,{"$f":"VLOOKUP($F203,FactSum,'COS Factor Table'!F$115,FALSE)*$H203","v":0},{"$f":"VLOOKUP($F203,FactSum,'COS Factor Table'!G$115,FALSE)*$H203","v":0},{"$f":"VLOOKUP($F203,FactSum,'COS Factor Table'!H$115,FALSE)*$H203","v":0},{"$f":"VLOOKUP($F203,FactSum,'COS Factor Table'!I$115,FALSE)*$H203","v":0},{"$f":"VLOOKUP($F203,FactSum,'COS Factor Table'!J$115,FALSE)*$H203","v":0},{"$f":"VLOOKUP($F203,FactSum,'COS Factor Table'!K$115,FALSE)*$H203","v":0},{"$f":"VLOOKUP($F203,FactSum,'COS Factor Table'!L$115,FALSE)*$H203","v":0},{"$f":"VLOOKUP($F203,FactSum,'COS Factor Table'!M$115,FALSE)*$H203","v":0},{"$f":"VLOOKUP($F203,FactSum,'COS Factor Table'!N$115,FALSE)*$H203","v":0},{"$f":"ROUND(SUM(I203:Q203)-H203,0)","v":0}]
[204,null,null,"Distribution",null,"F105",null,0,{"$f":"VLOOKUP($F204,FactSum,'COS Factor Table'!F$115,FALSE)*$H204","v":0},{"$f":"VLOOKUP($F204,FactSum,'COS Factor Table'!G$115,FALSE)*$H204","v":0},{"$f":"VLOOKUP($F204,FactSum,'COS Factor Table'!H$115,FALSE)*$H204","v":0},{"$f":"VLOOKUP($F204,FactSum,'COS Factor Table'!I$115,FALSE)*$H204","v":0},{"$f":"VLOOKUP($F204,FactSum,'COS Factor Table'!J$115,FALSE)*$H204","v":0},{"$f":"VLOOKUP($F204,FactSum,'COS Factor Table'!K$115,FALSE)*$H204","v":0},{"$f":"VLOOKUP($F204,FactSum,'COS Factor Table'!L$115,FALSE)*$H204","v":0},{"$f":"VLOOKUP($F204,FactSum,'COS Factor Table'!M$115,FALSE)*$H204","v":0},{"$f":"VLOOKUP($F204,FactSum,'COS Factor Table'!N$115,FALSE)*$H204","v":0},{"$f":"ROUND(SUM(I204:Q204)-H204,0)","v":0}]
[205,null,null,null,null,null,null,{"$f":"SUM(H202:H204)","v":0},{"$f":"SUM(I202:I204)","v":0},0,0,0,{"$f":"SUM(M202:M204)","v":0},0,0,{"$f":"SUM(P202:P204)","v":0},{"$f":"SUM(Q202:Q204)","v":0},{"$f":"ROUND(SUM(I205:Q205)-H205,0)","v":0}]
[206]
[207,null,"Net Miscellaneous Revenues And Expense",null,null,null,null,{"$f":"+H196+H199+H205","v":103.86639824167921},{"$f":"+I196+I199+I205","v":44.067918405762732},14.016857552332134,22.208500689067424,8.775936143925783,{"$f":"+M196+M199+M205","v":10.850352546754831},3.6976526205892202,0.24918028324707825,{"$f":"+P196+P199+P205","v":0},{"$f":"+Q196+Q199+Q205","v":0},{"$f":"ROUND(SUM(I207:Q207)-H207,0)","v":0}]
[208]
[209,null,{"$f":"$E$1","v":"Distribution - METER -  Unbundled"}]
[210,null,null,null,null,null,null,"STEAM POWER GENERATION"]
[211]
[212,null,"A",null,"B","C",null,"D","E","F","G","H","I","J","K","S","T"]
[213,null,null,null,null,null,null,{"$f":"'Hot Sheet'!$H$10","v":"Washington"},null,{"$f":"'Hot Sheet'!$J$10","v":"Small General"},{"$f":"'Hot Sheet'!$K$10","v":"Large General"},{"$f":"'Hot Sheet'!$L$10","v":"Large General"},{"$f":"'Hot Sheet'!$M$10","v":"Large General"},{"$f":"'Hot Sheet'!$N$10","v":"Agricultural"},{"$f":"'Hot Sheet'!$O$10","v":"Street & Area"}]
[214,null,"FERC",null,null,"COS",null,{"$f":"'Hot Sheet'!$H$11","v":"Jurisdiction"},{"$f":"'Hot Sheet'!$I$11","v":"Residential"},{"$f":"'Hot Sheet'!$J$11","v":"Service"},{"$f":"'Hot Sheet'!$K$11","v":"Service <1,000 kW"},{"$f":"'Hot Sheet'!$L$11","v":"Service >1,000 kW"},{"$f":"'Hot Sheet'!$M$11","v":"Dedicated Facilities"},{"$f":"'Hot Sheet'!$N$11","v":"Pumping"},{"$f":"'Hot Sheet'!$O$11","v":"Lighting"},{"$f":"'Hot Sheet'!P$11","v":"-"},{"$f":"'Hot Sheet'!Q$11","v":"-"}]
[215,null,"ACCT",null,"DESCRIPTION ","Factor",null,{"$f":"'Hot Sheet'!$H$12","v":"Normalized"},{"$f":"'Hot Sheet'!$I$12","v":"Schedule 16"},{"$f":"'Hot Sheet'!$J$12","v":"Schedule 24"},{"$f":"'Hot Sheet'!$K$12","v":"Schedule 36"},{"$f":"'Hot Sheet'!$L$12","v":"Schedule 48T"},{"$f":"'Hot Sheet'!$M$12","v":"Schedule 48T"},{"$f":"'Hot Sheet'!$N$12","v":"Schedule 40"},{"$f":"'Hot Sheet'!$O$12","v":"Sch. 15,51-54,57"},{"$f":"'Hot Sheet'!P$12","v":"-"},{"$f":"'Hot Sheet'!Q$12","v":"-"}]
[216,null,"500","Operation Suprvn & Engineering",null,{"$f":"IF(Classification=\"DEMAND\",\"F12\",IF(Classification=\"ENERGY\",\"F30\",\"F10\"))","v":"F10"},null,{"$f":"SUM(UAcct500)-H217","v":0},{"$f":"VLOOKUP($F216,FactSum,'COS Factor Table'!F$115,FALSE)*$H216","v":0},{"$f":"VLOOKUP($F216,FactSum,'COS Factor Table'!G$115,FALSE)*$H216","v":0},{"$f":"VLOOKUP($F216,FactSum,'COS Factor Table'!H$115,FALSE)*$H216","v":0},{"$f":"VLOOKUP($F216,FactSum,'COS Factor Table'!I$115,FALSE)*$H216","v":0},{"$f":"VLOOKUP($F216,FactSum,'COS Factor Table'!J$115,FALSE)*$H216","v":0},{"$f":"VLOOKUP($F216,FactSum,'COS Factor Table'!K$115,FALSE)*$H216","v":0},{"$f":"VLOOKUP($F216,FactSum,'COS Factor Table'!L$115,FALSE)*$H216","v":0},{"$f":"VLOOKUP($F216,FactSum,'COS Factor Table'!M$115,FALSE)*$H216","v":0},{"$f":"VLOOKUP($F216,FactSum,'COS Factor Table'!N$115,FALSE)*$H216","v":0},{"$f":"ROUND(SUM(I216:Q216)-H216,0)","v":0}]
[217,null,null,null,"JBG",{"$f":"IF(Classification=\"DEMAND\",\"F12\",IF(Classification=\"ENERGY\",\"F30\",\"F10\"))","v":"F10"},null,{"$f":"UAcct500JBG","v":0},{"$f":"VLOOKUP($F217,FactSum,'COS Factor Table'!F$115,FALSE)*$H217","v":0},{"$f":"VLOOKUP($F217,FactSum,'COS Factor Table'!G$115,FALSE)*$H217","v":0},{"$f":"VLOOKUP($F217,FactSum,'COS Factor Table'!H$115,FALSE)*$H217","v":0},{"$f":"VLOOKUP($F217,FactSum,'COS Factor Table'!I$115,FALSE)*$H217","v":0},{"$f":"VLOOKUP($F217,FactSum,'COS Factor Table'!J$115,FALSE)*$H217","v":0},{"$f":"VLOOKUP($F217,FactSum,'COS Factor Table'!K$115,FALSE)*$H217","v":0},{"$f":"VLOOKUP($F217,FactSum,'COS Factor Table'!L$115,FALSE)*$H217","v":0},{"$f":"VLOOKUP($F217,FactSum,'COS Factor Table'!M$115,FALSE)*$H217","v":0},{"$f":"VLOOKUP($F217,FactSum,'COS Factor Table'!N$115,FALSE)*$H217","v":0},{"$f":"ROUND(SUM(I217:Q217)-H217,0)","v":0}]
[218,null,null,null,"Total 500",null,null,{"$f":"SUM(H216:H217)","v":0},{"$f":"SUM(I216:I217)","v":0},0,0,0,{"$f":"SUM(M216:M217)","v":0},0,0,0,0,0]
[219]
[220,null,"501","Fuel Related",null,{"$f":"IF(Classification=\"DEMAND\",\"F12\",IF(Classification=\"ENERGY\",\"F30\",\"F10\"))","v":"F10"},null,{"$f":"SUM(UAcct501)-H221-H222","v":0},{"$f":"VLOOKUP($F220,FactSum,'COS Factor Table'!F$115,FALSE)*$H220","v":0},{"$f":"VLOOKUP($F220,FactSum,'COS Factor Table'!G$115,FALSE)*$H220","v":0},{"$f":"VLOOKUP($F220,FactSum,'COS Factor Table'!H$115,FALSE)*$H220","v":0},{"$f":"VLOOKUP($F220,FactSum,'COS Factor Table'!I$115,FALSE)*$H220","v":0},{"$f":"VLOOKUP($F220,FactSum,'COS Factor Table'!J$115,FALSE)*$H220","v":0},{"$f":"VLOOKUP($F220,FactSum,'COS Factor Table'!K$115,FALSE)*$H220","v":0},{"$f":"VLOOKUP($F220,FactSum,'COS Factor Table'!L$115,FALSE)*$H220","v":0},{"$f":"VLOOKUP($F220,FactSum,'COS Factor Table'!M$115,FALSE)*$H220","v":0},{"$f":"VLOOKUP($F220,FactSum,'COS Factor Table'!N$115,FALSE)*$H220","v":0},{"$f":"ROUND(SUM(I220:Q220)-H220,0)","v":0}]
[221,null,null,null,"CAGW",{"$f":"IF(Classification=\"DEMAND\",\"F12\",IF(Classification=\"ENERGY\",\"F30\",\"F10\"))","v":"F10"},null,{"$f":"UAcct501CAEW","v":0},{"$f":"VLOOKUP($F221,FactSum,'COS Factor Table'!F$115,FALSE)*$H221","v":0},{"$f":"VLOOKUP($F221,FactSum,'COS Factor Table'!G$115,FALSE)*$H221","v":0},{"$f":"VLOOKUP($F221,FactSum,'COS Factor Table'!H$115,FALSE)*$H221","v":0},{"$f":"VLOOKUP($F221,FactSum,'COS Factor Table'!I$115,FALSE)*$H221","v":0},{"$f":"VLOOKUP($F221,FactSum,'COS Factor Table'!J$115,FALSE)*$H221","v":0},{"$f":"VLOOKUP($F221,FactSum,'COS Factor Table'!K$115,FALSE)*$H221","v":0},{"$f":"VLOOKUP($F221,FactSum,'COS Factor Table'!L$115,FALSE)*$H221","v":0},{"$f":"VLOOKUP($F221,FactSum,'COS Factor Table'!M$115,FALSE)*$H221","v":0},{"$f":"VLOOKUP($F221,FactSum,'COS Factor Table'!N$115,FALSE)*$H221","v":0},{"$f":"ROUND(SUM(I221:Q221)-H221,0)","v":0}]
[222,null,null,null,"JBE",{"$f":"IF(Classification=\"DEMAND\",\"F12\",IF(Classification=\"ENERGY\",\"F30\",\"F10\"))","v":"F10"},null,{"$f":"UAcct501JBE","v":0},{"$f":"VLOOKUP($F222,FactSum,'COS Factor Table'!F$115,FALSE)*$H222","v":0},{"$f":"VLOOKUP($F222,FactSum,'COS Factor Table'!G$115,FALSE)*$H222","v":0},{"$f":"VLOOKUP($F222,FactSum,'COS Factor Table'!H$115,FALSE)*$H222","v":0},{"$f":"VLOOKUP($F222,FactSum,'COS Factor Table'!I$115,FALSE)*$H222","v":0},{"$f":"VLOOKUP($F222,FactSum,'COS Factor Table'!J$115,FALSE)*$H222","v":0},{"$f":"VLOOKUP($F222,FactSum,'COS Factor Table'!K$115,FALSE)*$H222","v":0},{"$f":"VLOOKUP($F222,FactSum,'COS Factor Table'!L$115,FALSE)*$H222","v":0},{"$f":"VLOOKUP($F222,FactSum,'COS Factor Table'!M$115,FALSE)*$H222","v":0},{"$f":"VLOOKUP($F222,FactSum,'COS Factor Table'!N$115,FALSE)*$H222","v":0},{"$f":"ROUND(SUM(I222:Q222)-H222,0)","v":0}]
[223,null,null,null,"Total 501",null,null,{"$f":"SUM(H220:H222)","v":0},{"$f":"SUM(I220:I222)","v":0},0,0,0,{"$f":"SUM(M220:M222)","v":0},0,0,0,0,0]
[224]
[225,null,"501NPC","Fuel Related"]
[226,null,null,null,"CAEW","F10",null,{"$f":"UACCT501NPCCAEW","v":0},{"$f":"VLOOKUP($F226,FactSum,'COS Factor Table'!F$115,FALSE)*$H226","v":0},{"$f":"VLOOKUP($F226,FactSum,'COS Factor Table'!G$115,FALSE)*$H226","v":0},{"$f":"VLOOKUP($F226,FactSum,'COS Factor Table'!H$115,FALSE)*$H226","v":0},{"$f":"VLOOKUP($F226,FactSum,'COS Factor Table'!I$115,FALSE)*$H226","v":0},{"$f":"VLOOKUP($F226,FactSum,'COS Factor Table'!J$115,FALSE)*$H226","v":0},{"$f":"VLOOKUP($F226,FactSum,'COS Factor Table'!K$115,FALSE)*$H226","v":0},{"$f":"VLOOKUP($F226,FactSum,'COS Factor Table'!L$115,FALSE)*$H226","v":0},{"$f":"VLOOKUP($F226,FactSum,'COS Factor Table'!M$115,FALSE)*$H226","v":0},{"$f":"VLOOKUP($F226,FactSum,'COS Factor Table'!N$115,FALSE)*$H226","v":0},{"$f":"ROUND(SUM(I226:Q226)-H226,0)","v":0}]
[227,null,null,null,"Total 501NPC",null,null,{"$f":"SUM(H225:H226)","v":0},0,0,0,0,0,0,0,0,0,0]
[228]
[229,null,"502","Steam Expenses",null,{"$f":"IF(Classification=\"DEMAND\",\"F12\",IF(Classification=\"ENERGY\",\"F30\",\"F10\"))","v":"F10"},null,{"$f":"SUM(UAcct502)-H230","v":0},{"$f":"VLOOKUP($F229,FactSum,'COS Factor Table'!F$115,FALSE)*$H229","v":0},{"$f":"VLOOKUP($F229,FactSum,'COS Factor Table'!G$115,FALSE)*$H229","v":0},{"$f":"VLOOKUP($F229,FactSum,'COS Factor Table'!H$115,FALSE)*$H229","v":0},{"$f":"VLOOKUP($F229,FactSum,'COS Factor Table'!I$115,FALSE)*$H229","v":0},{"$f":"VLOOKUP($F229,FactSum,'COS Factor Table'!J$115,FALSE)*$H229","v":0},{"$f":"VLOOKUP($F229,FactSum,'COS Factor Table'!K$115,FALSE)*$H229","v":0},{"$f":"VLOOKUP($F229,FactSum,'COS Factor Table'!L$115,FALSE)*$H229","v":0},{"$f":"VLOOKUP($F229,FactSum,'COS Factor Table'!M$115,FALSE)*$H229","v":0},{"$f":"VLOOKUP($F229,FactSum,'COS Factor Table'!N$115,FALSE)*$H229","v":0},{"$f":"ROUND(SUM(I229:Q229)-H229,0)","v":0}]
[230,null,null,null,"JBG",{"$f":"IF(Classification=\"DEMAND\",\"F12\",IF(Classification=\"ENERGY\",\"F30\",\"F10\"))","v":"F10"},null,{"$f":"UAcct502CAGE","v":0},{"$f":"VLOOKUP($F230,FactSum,'COS Factor Table'!F$115,FALSE)*$H230","v":0},{"$f":"VLOOKUP($F230,FactSum,'COS Factor Table'!G$115,FALSE)*$H230","v":0},{"$f":"VLOOKUP($F230,FactSum,'COS Factor Table'!H$115,FALSE)*$H230","v":0},{"$f":"VLOOKUP($F230,FactSum,'COS Factor Table'!I$115,FALSE)*$H230","v":0},{"$f":"VLOOKUP($F230,FactSum,'COS Factor Table'!J$115,FALSE)*$H230","v":0},{"$f":"VLOOKUP($F230,FactSum,'COS Factor Table'!K$115,FALSE)*$H230","v":0},{"$f":"VLOOKUP($F230,FactSum,'COS Factor Table'!L$115,FALSE)*$H230","v":0},{"$f":"VLOOKUP($F230,FactSum,'COS Factor Table'!M$115,FALSE)*$H230","v":0},{"$f":"VLOOKUP($F230,FactSum,'COS Factor Table'!N$115,FALSE)*$H230","v":0},{"$f":"ROUND(SUM(I230:Q230)-H230,0)","v":0}]
[231,null,null,null,"Total 502",null,null,{"$f":"SUM(H229:H230)","v":0},{"$f":"SUM(I229:I230)","v":0},{"$f":"SUM(J229:J230)","v":0},{"$f":"SUM(K229:K230)","v":0},0,{"$f":"SUM(M229:M230)","v":0},0,0,0,0]
[232]
[233,null,"503","Steam From Other Sources",null,{"$f":"IF(Classification=\"DEMAND\",\"F12\",IF(Classification=\"ENERGY\",\"F30\",\"F10\"))","v":"F10"},null,{"$f":"SUM(UAcct503)","v":0},{"$f":"VLOOKUP($F233,FactSum,'COS Factor Table'!F$115,FALSE)*$H233","v":0},{"$f":"VLOOKUP($F233,FactSum,'COS Factor Table'!G$115,FALSE)*$H233","v":0},{"$f":"VLOOKUP($F233,FactSum,'COS Factor Table'!H$115,FALSE)*$H233","v":0},{"$f":"VLOOKUP($F233,FactSum,'COS Factor Table'!I$115,FALSE)*$H233","v":0},{"$f":"VLOOKUP($F233,FactSum,'COS Factor Table'!J$115,FALSE)*$H233","v":0},{"$f":"VLOOKUP($F233,FactSum,'COS Factor Table'!K$115,FALSE)*$H233","v":0},{"$f":"VLOOKUP($F233,FactSum,'COS Factor Table'!L$115,FALSE)*$H233","v":0},{"$f":"VLOOKUP($F233,FactSum,'COS Factor Table'!M$115,FALSE)*$H233","v":0},{"$f":"VLOOKUP($F233,FactSum,'COS Factor Table'!N$115,FALSE)*$H233","v":0},{"$f":"ROUND(SUM(I233:Q233)-H233,0)","v":0}]
[234]
[235,null,"503NPC","Steam From Other Sources-NPC",null,"F10",null,{"$f":"SUM(UACCT503NPC)","v":0},{"$f":"VLOOKUP($F235,FactSum,'COS Factor Table'!F$115,FALSE)*$H235","v":0},{"$f":"VLOOKUP($F235,FactSum,'COS Factor Table'!G$115,FALSE)*$H235","v":0},{"$f":"VLOOKUP($F235,FactSum,'COS Factor Table'!H$115,FALSE)*$H235","v":0},{"$f":"VLOOKUP($F235,FactSum,'COS Factor Table'!I$115,FALSE)*$H235","v":0},{"$f":"VLOOKUP($F235,FactSum,'COS Factor Table'!J$115,FALSE)*$H235","v":0},{"$f":"VLOOKUP($F235,FactSum,'COS Factor Table'!K$115,FALSE)*$H235","v":0},{"$f":"VLOOKUP($F235,FactSum,'COS Factor Table'!L$115,FALSE)*$H235","v":0},{"$f":"VLOOKUP($F235,FactSum,'COS Factor Table'!M$115,FALSE)*$H235","v":0},{"$f":"VLOOKUP($F235,FactSum,'COS Factor Table'!N$115,FALSE)*$H235","v":0},{"$f":"ROUND(SUM(I235:Q235)-H235,0)","v":0}]
[236]
[237,null,"505","Electric Expenses",null,{"$f":"IF(Classification=\"DEMAND\",\"F12\",IF(Classification=\"ENERGY\",\"F30\",\"F10\"))","v":"F10"},null,{"$f":"SUM(UAcct505)-H238","v":0},{"$f":"VLOOKUP($F237,FactSum,'COS Factor Table'!F$115,FALSE)*$H237","v":0},{"$f":"VLOOKUP($F237,FactSum,'COS Factor Table'!G$115,FALSE)*$H237","v":0},{"$f":"VLOOKUP($F237,FactSum,'COS Factor Table'!H$115,FALSE)*$H237","v":0},{"$f":"VLOOKUP($F237,FactSum,'COS Factor Table'!I$115,FALSE)*$H237","v":0},{"$f":"VLOOKUP($F237,FactSum,'COS Factor Table'!J$115,FALSE)*$H237","v":0},{"$f":"VLOOKUP($F237,FactSum,'COS Factor Table'!K$115,FALSE)*$H237","v":0},{"$f":"VLOOKUP($F237,FactSum,'COS Factor Table'!L$115,FALSE)*$H237","v":0},{"$f":"VLOOKUP($F237,FactSum,'COS Factor Table'!M$115,FALSE)*$H237","v":0},{"$f":"VLOOKUP($F237,FactSum,'COS Factor Table'!N$115,FALSE)*$H237","v":0},{"$f":"ROUND(SUM(I237:Q237)-H237,0)","v":0}]
[238,null,null,null,"JBG",{"$f":"IF(Classification=\"DEMAND\",\"F12\",IF(Classification=\"ENERGY\",\"F30\",\"F10\"))","v":"F10"},null,{"$f":"UAcct505CAGE","v":0},{"$f":"VLOOKUP($F238,FactSum,'COS Factor Table'!F$115,FALSE)*$H238","v":0},{"$f":"VLOOKUP($F238,FactSum,'COS Factor Table'!G$115,FALSE)*$H238","v":0},{"$f":"VLOOKUP($F238,FactSum,'COS Factor Table'!H$115,FALSE)*$H238","v":0},{"$f":"VLOOKUP($F238,FactSum,'COS Factor Table'!I$115,FALSE)*$H238","v":0},{"$f":"VLOOKUP($F238,FactSum,'COS Factor Table'!J$115,FALSE)*$H238","v":0},{"$f":"VLOOKUP($F238,FactSum,'COS Factor Table'!K$115,FALSE)*$H238","v":0},{"$f":"VLOOKUP($F238,FactSum,'COS Factor Table'!L$115,FALSE)*$H238","v":0},{"$f":"VLOOKUP($F238,FactSum,'COS Factor Table'!M$115,FALSE)*$H238","v":0},{"$f":"VLOOKUP($F238,FactSum,'COS Factor Table'!N$115,FALSE)*$H238","v":0},{"$f":"ROUND(SUM(I238:Q238)-H238,0)","v":0}]
[239,null,null,null,"Total 505",null,null,{"$f":"SUM(H237:H238)","v":0},0,0,0,0,{"$f":"SUM(M237:M238)","v":0},0,0,0,0,{"$f":"ROUND(SUM(I239:Q239)-H239,0)","v":0}]
[240]
[241,null,"506","Misc. Steam Expense",null,{"$f":"IF(Classification=\"DEMAND\",\"F12\",IF(Classification=\"ENERGY\",\"F30\",\"F10\"))","v":"F10"},null,{"$f":"SUM(UAcct506)-H242","v":0},{"$f":"VLOOKUP($F241,FactSum,'COS Factor Table'!F$115,FALSE)*$H241","v":0},{"$f":"VLOOKUP($F241,FactSum,'COS Factor Table'!G$115,FALSE)*$H241","v":0},{"$f":"VLOOKUP($F241,FactSum,'COS Factor Table'!H$115,FALSE)*$H241","v":0},{"$f":"VLOOKUP($F241,FactSum,'COS Factor Table'!I$115,FALSE)*$H241","v":0},{"$f":"VLOOKUP($F241,FactSum,'COS Factor Table'!J$115,FALSE)*$H241","v":0},{"$f":"VLOOKUP($F241,FactSum,'COS Factor Table'!K$115,FALSE)*$H241","v":0},{"$f":"VLOOKUP($F241,FactSum,'COS Factor Table'!L$115,FALSE)*$H241","v":0},{"$f":"VLOOKUP($F241,FactSum,'COS Factor Table'!M$115,FALSE)*$H241","v":0},{"$f":"VLOOKUP($F241,FactSum,'COS Factor Table'!N$115,FALSE)*$H241","v":0},{"$f":"ROUND(SUM(I241:Q241)-H241,0)","v":0}]
[242,null,null,null,"JBG",{"$f":"IF(Classification=\"DEMAND\",\"F12\",IF(Classification=\"ENERGY\",\"F30\",\"F10\"))","v":"F10"},null,{"$f":"UAcct506CAGE","v":0},{"$f":"VLOOKUP($F242,FactSum,'COS Factor Table'!F$115,FALSE)*$H242","v":0},{"$f":"VLOOKUP($F242,FactSum,'COS Factor Table'!G$115,FALSE)*$H242","v":0},{"$f":"VLOOKUP($F242,FactSum,'COS Factor Table'!H$115,FALSE)*$H242","v":0},{"$f":"VLOOKUP($F242,FactSum,'COS Factor Table'!I$115,FALSE)*$H242","v":0},{"$f":"VLOOKUP($F242,FactSum,'COS Factor Table'!J$115,FALSE)*$H242","v":0},{"$f":"VLOOKUP($F242,FactSum,'COS Factor Table'!K$115,FALSE)*$H242","v":0},{"$f":"VLOOKUP($F242,FactSum,'COS Factor Table'!L$115,FALSE)*$H242","v":0},{"$f":"VLOOKUP($F242,FactSum,'COS Factor Table'!M$115,FALSE)*$H242","v":0},{"$f":"VLOOKUP($F242,FactSum,'COS Factor Table'!N$115,FALSE)*$H242","v":0},{"$f":"ROUND(SUM(I242:Q242)-H242,0)","v":0}]
[243,null,null,null,"Total 506",null,null,{"$f":"SUM(H241:H242)","v":0},0,0,0,0,{"$f":"SUM(M241:M242)","v":0},0,0,0,0,{"$f":"ROUND(SUM(I243:Q243)-H243,0)","v":0}]
[244]
[245,null,"507","Rents",null,{"$f":"IF(Classification=\"DEMAND\",\"F12\",IF(Classification=\"ENERGY\",\"F30\",\"F10\"))","v":"F10"},null,{"$f":"SUM(UAcct507)-H246","v":0},{"$f":"VLOOKUP($F245,FactSum,'COS Factor Table'!F$115,FALSE)*$H245","v":0},{"$f":"VLOOKUP($F245,FactSum,'COS Factor Table'!G$115,FALSE)*$H245","v":0},{"$f":"VLOOKUP($F245,FactSum,'COS Factor Table'!H$115,FALSE)*$H245","v":0},{"$f":"VLOOKUP($F245,FactSum,'COS Factor Table'!I$115,FALSE)*$H245","v":0},{"$f":"VLOOKUP($F245,FactSum,'COS Factor Table'!J$115,FALSE)*$H245","v":0},{"$f":"VLOOKUP($F245,FactSum,'COS Factor Table'!K$115,FALSE)*$H245","v":0},{"$f":"VLOOKUP($F245,FactSum,'COS Factor Table'!L$115,FALSE)*$H245","v":0},{"$f":"VLOOKUP($F245,FactSum,'COS Factor Table'!M$115,FALSE)*$H245","v":0},{"$f":"VLOOKUP($F245,FactSum,'COS Factor Table'!N$115,FALSE)*$H245","v":0},{"$f":"ROUND(SUM(I245:Q245)-H245,0)","v":0}]
[246,null,null,null,"JBG",{"$f":"IF(Classification=\"DEMAND\",\"F12\",IF(Classification=\"ENERGY\",\"F30\",\"F10\"))","v":"F10"},null,{"$f":"UAcct507CAGE","v":0},{"$f":"VLOOKUP($F246,FactSum,'COS Factor Table'!F$115,FALSE)*$H246","v":0},{"$f":"VLOOKUP($F246,FactSum,'COS Factor Table'!G$115,FALSE)*$H246","v":0},{"$f":"VLOOKUP($F246,FactSum,'COS Factor Table'!H$115,FALSE)*$H246","v":0},{"$f":"VLOOKUP($F246,FactSum,'COS Factor Table'!I$115,FALSE)*$H246","v":0},{"$f":"VLOOKUP($F246,FactSum,'COS Factor Table'!J$115,FALSE)*$H246","v":0},{"$f":"VLOOKUP($F246,FactSum,'COS Factor Table'!K$115,FALSE)*$H246","v":0},{"$f":"VLOOKUP($F246,FactSum,'COS Factor Table'!L$115,FALSE)*$H246","v":0},{"$f":"VLOOKUP($F246,FactSum,'COS Factor Table'!M$115,FALSE)*$H246","v":0},{"$f":"VLOOKUP($F246,FactSum,'COS Factor Table'!N$115,FALSE)*$H246","v":0},{"$f":"ROUND(SUM(I246:Q246)-H246,0)","v":0}]
[247,null,null,null,"Total 507",null,null,{"$f":"SUM(H245:H246)","v":0},{"$f":"SUM(I245:I246)","v":0},0,0,0,{"$f":"SUM(M245:M246)","v":0},0,0,0,0,{"$f":"ROUND(SUM(I247:Q247)-H247,0)","v":0}]
[248]
[249,null,"510","Maint Supervision & Engineering",null,{"$f":"IF(Classification=\"DEMAND\",\"F12\",IF(Classification=\"ENERGY\",\"F30\",\"F10\"))","v":"F10"},null,{"$f":"SUM(UAcct510)-H250","v":0},{"$f":"VLOOKUP($F249,FactSum,'COS Factor Table'!F$115,FALSE)*$H249","v":0},{"$f":"VLOOKUP($F249,FactSum,'COS Factor Table'!G$115,FALSE)*$H249","v":0},{"$f":"VLOOKUP($F249,FactSum,'COS Factor Table'!H$115,FALSE)*$H249","v":0},{"$f":"VLOOKUP($F249,FactSum,'COS Factor Table'!I$115,FALSE)*$H249","v":0},{"$f":"VLOOKUP($F249,FactSum,'COS Factor Table'!J$115,FALSE)*$H249","v":0},{"$f":"VLOOKUP($F249,FactSum,'COS Factor Table'!K$115,FALSE)*$H249","v":0},{"$f":"VLOOKUP($F249,FactSum,'COS Factor Table'!L$115,FALSE)*$H249","v":0},{"$f":"VLOOKUP($F249,FactSum,'COS Factor Table'!M$115,FALSE)*$H249","v":0},{"$f":"VLOOKUP($F249,FactSum,'COS Factor Table'!N$115,FALSE)*$H249","v":0},{"$f":"ROUND(SUM(I249:Q249)-H249,0)","v":0}]
[250,null,null,null,"JBG",{"$f":"IF(Classification=\"DEMAND\",\"F12\",IF(Classification=\"ENERGY\",\"F30\",\"F10\"))","v":"F10"},null,{"$f":"UAcct510CAGE","v":0},{"$f":"VLOOKUP($F250,FactSum,'COS Factor Table'!F$115,FALSE)*$H250","v":0},{"$f":"VLOOKUP($F250,FactSum,'COS Factor Table'!G$115,FALSE)*$H250","v":0},{"$f":"VLOOKUP($F250,FactSum,'COS Factor Table'!H$115,FALSE)*$H250","v":0},{"$f":"VLOOKUP($F250,FactSum,'COS Factor Table'!I$115,FALSE)*$H250","v":0},{"$f":"VLOOKUP($F250,FactSum,'COS Factor Table'!J$115,FALSE)*$H250","v":0},{"$f":"VLOOKUP($F250,FactSum,'COS Factor Table'!K$115,FALSE)*$H250","v":0},{"$f":"VLOOKUP($F250,FactSum,'COS Factor Table'!L$115,FALSE)*$H250","v":0},{"$f":"VLOOKUP($F250,FactSum,'COS Factor Table'!M$115,FALSE)*$H250","v":0},{"$f":"VLOOKUP($F250,FactSum,'COS Factor Table'!N$115,FALSE)*$H250","v":0},{"$f":"ROUND(SUM(I250:Q250)-H250,0)","v":0}]
[251,null,null,null,"Total 510",null,null,{"$f":"SUM(H249:H250)","v":0},0,0,0,0,{"$f":"SUM(M249:M250)","v":0},0,0,0,0,{"$f":"ROUND(SUM(I251:Q251)-H251,0)","v":0}]
[252]
[253,null,"511","Maintenance of Structures",null,{"$f":"IF(Classification=\"DEMAND\",\"F12\",IF(Classification=\"ENERGY\",\"F30\",\"F10\"))","v":"F10"},null,{"$f":"SUM(UAcct511)-H254","v":0},{"$f":"VLOOKUP($F253,FactSum,'COS Factor Table'!F$115,FALSE)*$H253","v":0},{"$f":"VLOOKUP($F253,FactSum,'COS Factor Table'!G$115,FALSE)*$H253","v":0},{"$f":"VLOOKUP($F253,FactSum,'COS Factor Table'!H$115,FALSE)*$H253","v":0},{"$f":"VLOOKUP($F253,FactSum,'COS Factor Table'!I$115,FALSE)*$H253","v":0},{"$f":"VLOOKUP($F253,FactSum,'COS Factor Table'!J$115,FALSE)*$H253","v":0},{"$f":"VLOOKUP($F253,FactSum,'COS Factor Table'!K$115,FALSE)*$H253","v":0},{"$f":"VLOOKUP($F253,FactSum,'COS Factor Table'!L$115,FALSE)*$H253","v":0},{"$f":"VLOOKUP($F253,FactSum,'COS Factor Table'!M$115,FALSE)*$H253","v":0},{"$f":"VLOOKUP($F253,FactSum,'COS Factor Table'!N$115,FALSE)*$H253","v":0},{"$f":"ROUND(SUM(I253:Q253)-H253,0)","v":0}]
[254,null,null,null,"JBG",{"$f":"IF(Classification=\"DEMAND\",\"F12\",IF(Classification=\"ENERGY\",\"F30\",\"F10\"))","v":"F10"},null,{"$f":"UAcct511CAGE","v":0},{"$f":"VLOOKUP($F254,FactSum,'COS Factor Table'!F$115,FALSE)*$H254","v":0},{"$f":"VLOOKUP($F254,FactSum,'COS Factor Table'!G$115,FALSE)*$H254","v":0},{"$f":"VLOOKUP($F254,FactSum,'COS Factor Table'!H$115,FALSE)*$H254","v":0},{"$f":"VLOOKUP($F254,FactSum,'COS Factor Table'!I$115,FALSE)*$H254","v":0},{"$f":"VLOOKUP($F254,FactSum,'COS Factor Table'!J$115,FALSE)*$H254","v":0},{"$f":"VLOOKUP($F254,FactSum,'COS Factor Table'!K$115,FALSE)*$H254","v":0},{"$f":"VLOOKUP($F254,FactSum,'COS Factor Table'!L$115,FALSE)*$H254","v":0},{"$f":"VLOOKUP($F254,FactSum,'COS Factor Table'!M$115,FALSE)*$H254","v":0},{"$f":"VLOOKUP($F254,FactSum,'COS Factor Table'!N$115,FALSE)*$H254","v":0},{"$f":"ROUND(SUM(I254:Q254)-H254,0)","v":0}]
[255,null,null,null,"Total 511",null,null,{"$f":"SUM(H253:H254)","v":0},0,0,0,0,{"$f":"SUM(M253:M254)","v":0},0,0,0,0,{"$f":"ROUND(SUM(I255:Q255)-H255,0)","v":0}]
[256]
[257,null,"512","Maintenance of Boiler Plant",null,{"$f":"IF(Classification=\"DEMAND\",\"F12\",IF(Classification=\"ENERGY\",\"F30\",\"F10\"))","v":"F10"},null,{"$f":"SUM(UAcct512)-H258","v":0},{"$f":"VLOOKUP($F257,FactSum,'COS Factor Table'!F$115,FALSE)*$H257","v":0},{"$f":"VLOOKUP($F257,FactSum,'COS Factor Table'!G$115,FALSE)*$H257","v":0},{"$f":"VLOOKUP($F257,FactSum,'COS Factor Table'!H$115,FALSE)*$H257","v":0},{"$f":"VLOOKUP($F257,FactSum,'COS Factor Table'!I$115,FALSE)*$H257","v":0},{"$f":"VLOOKUP($F257,FactSum,'COS Factor Table'!J$115,FALSE)*$H257","v":0},{"$f":"VLOOKUP($F257,FactSum,'COS Factor Table'!K$115,FALSE)*$H257","v":0},{"$f":"VLOOKUP($F257,FactSum,'COS Factor Table'!L$115,FALSE)*$H257","v":0},{"$f":"VLOOKUP($F257,FactSum,'COS Factor Table'!M$115,FALSE)*$H257","v":0},{"$f":"VLOOKUP($F257,FactSum,'COS Factor Table'!N$115,FALSE)*$H257","v":0},{"$f":"ROUND(SUM(I257:Q257)-H257,0)","v":0}]
[{"$f":"A257+1","v":258},null,null,null,"JBG",{"$f":"IF(Classification=\"DEMAND\",\"F12\",IF(Classification=\"ENERGY\",\"F30\",\"F10\"))","v":"F10"},null,{"$f":"UAcct512CAGE","v":0},{"$f":"VLOOKUP($F258,FactSum,'COS Factor Table'!F$115,FALSE)*$H258","v":0},{"$f":"VLOOKUP($F258,FactSum,'COS Factor Table'!G$115,FALSE)*$H258","v":0},{"$f":"VLOOKUP($F258,FactSum,'COS Factor Table'!H$115,FALSE)*$H258","v":0},{"$f":"VLOOKUP($F258,FactSum,'COS Factor Table'!I$115,FALSE)*$H258","v":0},{"$f":"VLOOKUP($F258,FactSum,'COS Factor Table'!J$115,FALSE)*$H258","v":0},{"$f":"VLOOKUP($F258,FactSum,'COS Factor Table'!K$115,FALSE)*$H258","v":0},{"$f":"VLOOKUP($F258,FactSum,'COS Factor Table'!L$115,FALSE)*$H258","v":0},{"$f":"VLOOKUP($F258,FactSum,'COS Factor Table'!M$115,FALSE)*$H258","v":0},{"$f":"VLOOKUP($F258,FactSum,'COS Factor Table'!N$115,FALSE)*$H258","v":0},{"$f":"ROUND(SUM(I258:Q258)-H258,0)","v":0}]
[259,null,null,null,"Total 512",null,null,{"$f":"SUM(H257:H258)","v":0},0,0,0,0,{"$f":"SUM(M257:M258)","v":0},0,0,0,0,{"$f":"ROUND(SUM(I259:Q259)-H259,0)","v":0}]
[260]
[261,null,"513","Maintenance of Electric Plant",null,{"$f":"IF(Classification=\"DEMAND\",\"F12\",IF(Classification=\"ENERGY\",\"F30\",\"F10\"))","v":"F10"},null,{"$f":"SUM(UAcct513)-H262","v":0},{"$f":"VLOOKUP($F261,FactSum,'COS Factor Table'!F$115,FALSE)*$H261","v":0},{"$f":"VLOOKUP($F261,FactSum,'COS Factor Table'!G$115,FALSE)*$H261","v":0},{"$f":"VLOOKUP($F261,FactSum,'COS Factor Table'!H$115,FALSE)*$H261","v":0},{"$f":"VLOOKUP($F261,FactSum,'COS Factor Table'!I$115,FALSE)*$H261","v":0},{"$f":"VLOOKUP($F261,FactSum,'COS Factor Table'!J$115,FALSE)*$H261","v":0},{"$f":"VLOOKUP($F261,FactSum,'COS Factor Table'!K$115,FALSE)*$H261","v":0},{"$f":"VLOOKUP($F261,FactSum,'COS Factor Table'!L$115,FALSE)*$H261","v":0},{"$f":"VLOOKUP($F261,FactSum,'COS Factor Table'!M$115,FALSE)*$H261","v":0},{"$f":"VLOOKUP($F261,FactSum,'COS Factor Table'!N$115,FALSE)*$H261","v":0},{"$f":"ROUND(SUM(I261:Q261)-H261,0)","v":0}]
[262,null,null,null,"JBG",{"$f":"IF(Classification=\"DEMAND\",\"F12\",IF(Classification=\"ENERGY\",\"F30\",\"F10\"))","v":"F10"},null,{"$f":"UAcct513CAGE","v":0},{"$f":"VLOOKUP($F262,FactSum,'COS Factor Table'!F$115,FALSE)*$H262","v":0},{"$f":"VLOOKUP($F262,FactSum,'COS Factor Table'!G$115,FALSE)*$H262","v":0},{"$f":"VLOOKUP($F262,FactSum,'COS Factor Table'!H$115,FALSE)*$H262","v":0},{"$f":"VLOOKUP($F262,FactSum,'COS Factor Table'!I$115,FALSE)*$H262","v":0},{"$f":"VLOOKUP($F262,FactSum,'COS Factor Table'!J$115,FALSE)*$H262","v":0},{"$f":"VLOOKUP($F262,FactSum,'COS Factor Table'!K$115,FALSE)*$H262","v":0},{"$f":"VLOOKUP($F262,FactSum,'COS Factor Table'!L$115,FALSE)*$H262","v":0},{"$f":"VLOOKUP($F262,FactSum,'COS Factor Table'!M$115,FALSE)*$H262","v":0},{"$f":"VLOOKUP($F262,FactSum,'COS Factor Table'!N$115,FALSE)*$H262","v":0},{"$f":"ROUND(SUM(I262:Q262)-H262,0)","v":0}]
[263,null,null,null,"Total 513",null,null,{"$f":"SUM(H261:H262)","v":0},0,0,0,0,{"$f":"SUM(M261:M262)","v":0},0,0,0,0,{"$f":"ROUND(SUM(I263:Q263)-H263,0)","v":0}]
[264]
[265,null,"514","Maint of Misc. Steam Plant",null,{"$f":"IF(Classification=\"DEMAND\",\"F12\",IF(Classification=\"ENERGY\",\"F30\",\"F10\"))","v":"F10"},null,{"$f":"SUM(UAcct514)-H266","v":0},{"$f":"VLOOKUP($F265,FactSum,'COS Factor Table'!F$115,FALSE)*$H265","v":0},{"$f":"VLOOKUP($F265,FactSum,'COS Factor Table'!G$115,FALSE)*$H265","v":0},{"$f":"VLOOKUP($F265,FactSum,'COS Factor Table'!H$115,FALSE)*$H265","v":0},{"$f":"VLOOKUP($F265,FactSum,'COS Factor Table'!I$115,FALSE)*$H265","v":0},{"$f":"VLOOKUP($F265,FactSum,'COS Factor Table'!J$115,FALSE)*$H265","v":0},{"$f":"VLOOKUP($F265,FactSum,'COS Factor Table'!K$115,FALSE)*$H265","v":0},{"$f":"VLOOKUP($F265,FactSum,'COS Factor Table'!L$115,FALSE)*$H265","v":0},{"$f":"VLOOKUP($F265,FactSum,'COS Factor Table'!M$115,FALSE)*$H265","v":0},{"$f":"VLOOKUP($F265,FactSum,'COS Factor Table'!N$115,FALSE)*$H265","v":0},{"$f":"ROUND(SUM(I265:Q265)-H265,0)","v":0}]
[266,null,null,null,"JBG",{"$f":"IF(Classification=\"DEMAND\",\"F12\",IF(Classification=\"ENERGY\",\"F30\",\"F10\"))","v":"F10"},null,{"$f":"UAcct514CAGE","v":0},{"$f":"VLOOKUP($F266,FactSum,'COS Factor Table'!F$115,FALSE)*$H266","v":0},{"$f":"VLOOKUP($F266,FactSum,'COS Factor Table'!G$115,FALSE)*$H266","v":0},{"$f":"VLOOKUP($F266,FactSum,'COS Factor Table'!H$115,FALSE)*$H266","v":0},{"$f":"VLOOKUP($F266,FactSum,'COS Factor Table'!I$115,FALSE)*$H266","v":0},{"$f":"VLOOKUP($F266,FactSum,'COS Factor Table'!J$115,FALSE)*$H266","v":0},{"$f":"VLOOKUP($F266,FactSum,'COS Factor Table'!K$115,FALSE)*$H266","v":0},{"$f":"VLOOKUP($F266,FactSum,'COS Factor Table'!L$115,FALSE)*$H266","v":0},{"$f":"VLOOKUP($F266,FactSum,'COS Factor Table'!M$115,FALSE)*$H266","v":0},{"$f":"VLOOKUP($F266,FactSum,'COS Factor Table'!N$115,FALSE)*$H266","v":0},{"$f":"ROUND(SUM(I266:Q266)-H266,0)","v":0}]
[267,null,null,null,"Total 514",null,null,{"$f":"SUM(H265:H266)","v":0},0,0,0,0,{"$f":"SUM(M265:M266)","v":0},0,0,0,0,{"$f":"ROUND(SUM(I267:Q267)-H267,0)","v":0}]
[268]
[269,null,"Total Steam Power Generation",null,null,null,null,{"$f":"SUM(H218,H223,H231,H233,H239,H243,H247,H251,H255,H259,H263,H267,H227,H235)","v":0},{"$f":"SUM(I218,I223,I231,I233,I239,I243,I247,I251,I255,I259,I263,I267,I227,I235)","v":0},0,0,0,0,0,0,{"$f":"SUM(P218,P223,P231,P233,P239,P243,P247,P251,P255,P259,P263,P267)","v":0},0,{"$f":"ROUND(SUM(I269:Q269)-H269,0)","v":0}]
[270]
[271]
[272,null,null,null,null,null,null,"NUCLEAR POWER GENERATION"]
[273]
[274]
[275,null,"517","Operation Super & Engineering",null,{"$f":"IF(Classification=\"DEMAND\",\"F12\",IF(Classification=\"ENERGY\",\"F30\",\"F10\"))","v":"F10"},null,{"$f":"SUM(UAcct517)","v":0},{"$f":"VLOOKUP($F275,FactSum,'COS Factor Table'!F$115,FALSE)*$H275","v":0},{"$f":"VLOOKUP($F275,FactSum,'COS Factor Table'!G$115,FALSE)*$H275","v":0},{"$f":"VLOOKUP($F275,FactSum,'COS Factor Table'!H$115,FALSE)*$H275","v":0},{"$f":"VLOOKUP($F275,FactSum,'COS Factor Table'!I$115,FALSE)*$H275","v":0},{"$f":"VLOOKUP($F275,FactSum,'COS Factor Table'!J$115,FALSE)*$H275","v":0},{"$f":"VLOOKUP($F275,FactSum,'COS Factor Table'!K$115,FALSE)*$H275","v":0},{"$f":"VLOOKUP($F275,FactSum,'COS Factor Table'!L$115,FALSE)*$H275","v":0},{"$f":"VLOOKUP($F275,FactSum,'COS Factor Table'!M$115,FALSE)*$H275","v":0},{"$f":"VLOOKUP($F275,FactSum,'COS Factor Table'!N$115,FALSE)*$H275","v":0},{"$f":"ROUND(SUM(I275:Q275)-H275,0)","v":0}]
[276]
[277,null,"518","Nuclear Fuel Expense",null,{"$f":"IF(Classification=\"DEMAND\",\"F12\",IF(Classification=\"ENERGY\",\"F30\",\"F10\"))","v":"F10"},null,{"$f":"SUM(UAcct518)","v":0},{"$f":"VLOOKUP($F277,FactSum,'COS Factor Table'!F$115,FALSE)*$H277","v":0},{"$f":"VLOOKUP($F277,FactSum,'COS Factor Table'!G$115,FALSE)*$H277","v":0},{"$f":"VLOOKUP($F277,FactSum,'COS Factor Table'!H$115,FALSE)*$H277","v":0},{"$f":"VLOOKUP($F277,FactSum,'COS Factor Table'!I$115,FALSE)*$H277","v":0},{"$f":"VLOOKUP($F277,FactSum,'COS Factor Table'!J$115,FALSE)*$H277","v":0},{"$f":"VLOOKUP($F277,FactSum,'COS Factor Table'!K$115,FALSE)*$H277","v":0},{"$f":"VLOOKUP($F277,FactSum,'COS Factor Table'!L$115,FALSE)*$H277","v":0},{"$f":"VLOOKUP($F277,FactSum,'COS Factor Table'!M$115,FALSE)*$H277","v":0},{"$f":"VLOOKUP($F277,FactSum,'COS Factor Table'!N$115,FALSE)*$H277","v":0},{"$f":"ROUND(SUM(I277:Q277)-H277,0)","v":0}]
[278]
[279,null,"519","Coolants and Water",null,{"$f":"IF(Classification=\"DEMAND\",\"F12\",IF(Classification=\"ENERGY\",\"F30\",\"F10\"))","v":"F10"},null,{"$f":"SUM(UAcct519)","v":0},{"$f":"VLOOKUP($F279,FactSum,'COS Factor Table'!F$115,FALSE)*$H279","v":0},{"$f":"VLOOKUP($F279,FactSum,'COS Factor Table'!G$115,FALSE)*$H279","v":0},{"$f":"VLOOKUP($F279,FactSum,'COS Factor Table'!H$115,FALSE)*$H279","v":0},{"$f":"VLOOKUP($F279,FactSum,'COS Factor Table'!I$115,FALSE)*$H279","v":0},{"$f":"VLOOKUP($F279,FactSum,'COS Factor Table'!J$115,FALSE)*$H279","v":0},{"$f":"VLOOKUP($F279,FactSum,'COS Factor Table'!K$115,FALSE)*$H279","v":0},{"$f":"VLOOKUP($F279,FactSum,'COS Factor Table'!L$115,FALSE)*$H279","v":0},{"$f":"VLOOKUP($F279,FactSum,'COS Factor Table'!M$115,FALSE)*$H279","v":0},{"$f":"VLOOKUP($F279,FactSum,'COS Factor Table'!N$115,FALSE)*$H279","v":0},{"$f":"ROUND(SUM(I279:Q279)-H279,0)","v":0}]
[280]
[281,null,"520","Steam Expenses",null,{"$f":"IF(Classification=\"DEMAND\",\"F12\",IF(Classification=\"ENERGY\",\"F30\",\"F10\"))","v":"F10"},null,{"$f":"SUM(UAcct520)","v":0},{"$f":"VLOOKUP($F281,FactSum,'COS Factor Table'!F$115,FALSE)*$H281","v":0},{"$f":"VLOOKUP($F281,FactSum,'COS Factor Table'!G$115,FALSE)*$H281","v":0},{"$f":"VLOOKUP($F281,FactSum,'COS Factor Table'!H$115,FALSE)*$H281","v":0},{"$f":"VLOOKUP($F281,FactSum,'COS Factor Table'!I$115,FALSE)*$H281","v":0},{"$f":"VLOOKUP($F281,FactSum,'COS Factor Table'!J$115,FALSE)*$H281","v":0},{"$f":"VLOOKUP($F281,FactSum,'COS Factor Table'!K$115,FALSE)*$H281","v":0},{"$f":"VLOOKUP($F281,FactSum,'COS Factor Table'!L$115,FALSE)*$H281","v":0},{"$f":"VLOOKUP($F281,FactSum,'COS Factor Table'!M$115,FALSE)*$H281","v":0},{"$f":"VLOOKUP($F281,FactSum,'COS Factor Table'!N$115,FALSE)*$H281","v":0},{"$f":"ROUND(SUM(I281:Q281)-H281,0)","v":0}]
[282]
[283,null,"523","Electric Expenses",null,{"$f":"IF(Classification=\"DEMAND\",\"F12\",IF(Classification=\"ENERGY\",\"F30\",\"F10\"))","v":"F10"},null,{"$f":"SUM(UAcct523)","v":0},{"$f":"VLOOKUP($F283,FactSum,'COS Factor Table'!F$115,FALSE)*$H283","v":0},{"$f":"VLOOKUP($F283,FactSum,'COS Factor Table'!G$115,FALSE)*$H283","v":0},{"$f":"VLOOKUP($F283,FactSum,'COS Factor Table'!H$115,FALSE)*$H283","v":0},{"$f":"VLOOKUP($F283,FactSum,'COS Factor Table'!I$115,FALSE)*$H283","v":0},{"$f":"VLOOKUP($F283,FactSum,'COS Factor Table'!J$115,FALSE)*$H283","v":0},{"$f":"VLOOKUP($F283,FactSum,'COS Factor Table'!K$115,FALSE)*$H283","v":0},{"$f":"VLOOKUP($F283,FactSum,'COS Factor Table'!L$115,FALSE)*$H283","v":0},{"$f":"VLOOKUP($F283,FactSum,'COS Factor Table'!M$115,FALSE)*$H283","v":0},{"$f":"VLOOKUP($F283,FactSum,'COS Factor Table'!N$115,FALSE)*$H283","v":0},{"$f":"ROUND(SUM(I283:Q283)-H283,0)","v":0}]
[284]
[285,null,"524","Misc. Nuclear Expenses",null,{"$f":"IF(Classification=\"DEMAND\",\"F12\",IF(Classification=\"ENERGY\",\"F30\",\"F10\"))","v":"F10"},null,{"$f":"SUM(UAcct524)","v":0},{"$f":"VLOOKUP($F285,FactSum,'COS Factor Table'!F$115,FALSE)*$H285","v":0},{"$f":"VLOOKUP($F285,FactSum,'COS Factor Table'!G$115,FALSE)*$H285","v":0},{"$f":"VLOOKUP($F285,FactSum,'COS Factor Table'!H$115,FALSE)*$H285","v":0},{"$f":"VLOOKUP($F285,FactSum,'COS Factor Table'!I$115,FALSE)*$H285","v":0},{"$f":"VLOOKUP($F285,FactSum,'COS Factor Table'!J$115,FALSE)*$H285","v":0},{"$f":"VLOOKUP($F285,FactSum,'COS Factor Table'!K$115,FALSE)*$H285","v":0},{"$f":"VLOOKUP($F285,FactSum,'COS Factor Table'!L$115,FALSE)*$H285","v":0},{"$f":"VLOOKUP($F285,FactSum,'COS Factor Table'!M$115,FALSE)*$H285","v":0},{"$f":"VLOOKUP($F285,FactSum,'COS Factor Table'!N$115,FALSE)*$H285","v":0},{"$f":"ROUND(SUM(I285:Q285)-H285,0)","v":0}]
[286]
[287,null,"528","Maint Supervision & Eng",null,{"$f":"IF(Classification=\"DEMAND\",\"F12\",IF(Classification=\"ENERGY\",\"F30\",\"F10\"))","v":"F10"},null,{"$f":"SUM(UAcct528)","v":0},{"$f":"VLOOKUP($F287,FactSum,'COS Factor Table'!F$115,FALSE)*$H287","v":0},{"$f":"VLOOKUP($F287,FactSum,'COS Factor Table'!G$115,FALSE)*$H287","v":0},{"$f":"VLOOKUP($F287,FactSum,'COS Factor Table'!H$115,FALSE)*$H287","v":0},{"$f":"VLOOKUP($F287,FactSum,'COS Factor Table'!I$115,FALSE)*$H287","v":0},{"$f":"VLOOKUP($F287,FactSum,'COS Factor Table'!J$115,FALSE)*$H287","v":0},{"$f":"VLOOKUP($F287,FactSum,'COS Factor Table'!K$115,FALSE)*$H287","v":0},{"$f":"VLOOKUP($F287,FactSum,'COS Factor Table'!L$115,FALSE)*$H287","v":0},{"$f":"VLOOKUP($F287,FactSum,'COS Factor Table'!M$115,FALSE)*$H287","v":0},{"$f":"VLOOKUP($F287,FactSum,'COS Factor Table'!N$115,FALSE)*$H287","v":0},{"$f":"ROUND(SUM(I287:Q287)-H287,0)","v":0}]
[288]
[289,null,"529","Maintenance of Structures",null,{"$f":"IF(Classification=\"DEMAND\",\"F12\",IF(Classification=\"ENERGY\",\"F30\",\"F10\"))","v":"F10"},null,{"$f":"SUM(UAcct529)","v":0},{"$f":"VLOOKUP($F289,FactSum,'COS Factor Table'!F$115,FALSE)*$H289","v":0},{"$f":"VLOOKUP($F289,FactSum,'COS Factor Table'!G$115,FALSE)*$H289","v":0},{"$f":"VLOOKUP($F289,FactSum,'COS Factor Table'!H$115,FALSE)*$H289","v":0},{"$f":"VLOOKUP($F289,FactSum,'COS Factor Table'!I$115,FALSE)*$H289","v":0},{"$f":"VLOOKUP($F289,FactSum,'COS Factor Table'!J$115,FALSE)*$H289","v":0},{"$f":"VLOOKUP($F289,FactSum,'COS Factor Table'!K$115,FALSE)*$H289","v":0},{"$f":"VLOOKUP($F289,FactSum,'COS Factor Table'!L$115,FALSE)*$H289","v":0},{"$f":"VLOOKUP($F289,FactSum,'COS Factor Table'!M$115,FALSE)*$H289","v":0},{"$f":"VLOOKUP($F289,FactSum,'COS Factor Table'!N$115,FALSE)*$H289","v":0},{"$f":"ROUND(SUM(I289:Q289)-H289,0)","v":0}]
[290]
[291,null,"530","Maintenance of Reactor Plant",null,{"$f":"IF(Classification=\"DEMAND\",\"F12\",IF(Classification=\"ENERGY\",\"F30\",\"F10\"))","v":"F10"},null,{"$f":"SUM(UAcct530)","v":0},{"$f":"VLOOKUP($F291,FactSum,'COS Factor Table'!F$115,FALSE)*$H291","v":0},{"$f":"VLOOKUP($F291,FactSum,'COS Factor Table'!G$115,FALSE)*$H291","v":0},{"$f":"VLOOKUP($F291,FactSum,'COS Factor Table'!H$115,FALSE)*$H291","v":0},{"$f":"VLOOKUP($F291,FactSum,'COS Factor Table'!I$115,FALSE)*$H291","v":0},{"$f":"VLOOKUP($F291,FactSum,'COS Factor Table'!J$115,FALSE)*$H291","v":0},{"$f":"VLOOKUP($F291,FactSum,'COS Factor Table'!K$115,FALSE)*$H291","v":0},{"$f":"VLOOKUP($F291,FactSum,'COS Factor Table'!L$115,FALSE)*$H291","v":0},{"$f":"VLOOKUP($F291,FactSum,'COS Factor Table'!M$115,FALSE)*$H291","v":0},{"$f":"VLOOKUP($F291,FactSum,'COS Factor Table'!N$115,FALSE)*$H291","v":0},{"$f":"ROUND(SUM(I291:Q291)-H291,0)","v":0}]
[292]
[293,null,"531","Maintenance of Electric Plant",null,{"$f":"IF(Classification=\"DEMAND\",\"F12\",IF(Classification=\"ENERGY\",\"F30\",\"F10\"))","v":"F10"},null,{"$f":"SUM(UAcct531)","v":0},{"$f":"VLOOKUP($F293,FactSum,'COS Factor Table'!F$115,FALSE)*$H293","v":0},{"$f":"VLOOKUP($F293,FactSum,'COS Factor Table'!G$115,FALSE)*$H293","v":0},{"$f":"VLOOKUP($F293,FactSum,'COS Factor Table'!H$115,FALSE)*$H293","v":0},{"$f":"VLOOKUP($F293,FactSum,'COS Factor Table'!I$115,FALSE)*$H293","v":0},{"$f":"VLOOKUP($F293,FactSum,'COS Factor Table'!J$115,FALSE)*$H293","v":0},{"$f":"VLOOKUP($F293,FactSum,'COS Factor Table'!K$115,FALSE)*$H293","v":0},{"$f":"VLOOKUP($F293,FactSum,'COS Factor Table'!L$115,FALSE)*$H293","v":0},{"$f":"VLOOKUP($F293,FactSum,'COS Factor Table'!M$115,FALSE)*$H293","v":0},{"$f":"VLOOKUP($F293,FactSum,'COS Factor Table'!N$115,FALSE)*$H293","v":0},{"$f":"ROUND(SUM(I293:Q293)-H293,0)","v":0}]
[294]
[295,null,"532","Maintenance of Misc Nuclear",null,{"$f":"IF(Classification=\"DEMAND\",\"F12\",IF(Classification=\"ENERGY\",\"F30\",\"F10\"))","v":"F10"},null,{"$f":"SUM(UAcct532)","v":0},{"$f":"VLOOKUP($F295,FactSum,'COS Factor Table'!F$115,FALSE)*$H295","v":0},{"$f":"VLOOKUP($F295,FactSum,'COS Factor Table'!G$115,FALSE)*$H295","v":0},{"$f":"VLOOKUP($F295,FactSum,'COS Factor Table'!H$115,FALSE)*$H295","v":0},{"$f":"VLOOKUP($F295,FactSum,'COS Factor Table'!I$115,FALSE)*$H295","v":0},{"$f":"VLOOKUP($F295,FactSum,'COS Factor Table'!J$115,FALSE)*$H295","v":0},{"$f":"VLOOKUP($F295,FactSum,'COS Factor Table'!K$115,FALSE)*$H295","v":0},{"$f":"VLOOKUP($F295,FactSum,'COS Factor Table'!L$115,FALSE)*$H295","v":0},{"$f":"VLOOKUP($F295,FactSum,'COS Factor Table'!M$115,FALSE)*$H295","v":0},{"$f":"VLOOKUP($F295,FactSum,'COS Factor Table'!N$115,FALSE)*$H295","v":0},{"$f":"ROUND(SUM(I295:Q295)-H295,0)","v":0}]
[296]
[297,null,"Total Nuclear Power Generation",null,null,null,null,{"$f":"SUM(H274:H296)","v":0},{"$f":"SUM(I274:I295)","v":0},0,0,0,{"$f":"SUM(M274:M295)","v":0},0,0,{"$f":"SUM(P274:P295)","v":0},{"$f":"SUM(Q274:Q295)","v":0},{"$f":"ROUND(SUM(I297:Q297)-H297,0)","v":0}]
[298]
[299]
[300]
[301,null,{"$f":"$E$1","v":"Distribution - METER -  Unbundled"},null,null,null,null,"HYDRAULIC POWER GENERATION"]
[302]
[303,null,"A",null,"B","C",null,"D","E","F","G","H","I","J","K","S","T"]
[304,null,null,null,null,null,null,{"$f":"'Hot Sheet'!$H$10","v":"Washington"},null,{"$f":"'Hot Sheet'!$J$10","v":"Small General"},{"$f":"'Hot Sheet'!$K$10","v":"Large General"},{"$f":"'Hot Sheet'!$L$10","v":"Large General"},{"$f":"'Hot Sheet'!$M$10","v":"Large General"},{"$f":"'Hot Sheet'!$N$10","v":"Agricultural"},{"$f":"'Hot Sheet'!$O$10","v":"Street & Area"}]
[305,null,"FERC",null,null,"COS",null,{"$f":"'Hot Sheet'!$H$11","v":"Jurisdiction"},{"$f":"'Hot Sheet'!$I$11","v":"Residential"},{"$f":"'Hot Sheet'!$J$11","v":"Service"},{"$f":"'Hot Sheet'!$K$11","v":"Service <1,000 kW"},{"$f":"'Hot Sheet'!$L$11","v":"Service >1,000 kW"},{"$f":"'Hot Sheet'!$M$11","v":"Dedicated Facilities"},{"$f":"'Hot Sheet'!$N$11","v":"Pumping"},{"$f":"'Hot Sheet'!$O$11","v":"Lighting"},{"$f":"'Hot Sheet'!P$11","v":"-"},{"$f":"'Hot Sheet'!Q$11","v":"-"}]
[306,null,"ACCT",null,"DESCRIPTION ","Factor",null,{"$f":"'Hot Sheet'!$H$12","v":"Normalized"},{"$f":"'Hot Sheet'!$I$12","v":"Schedule 16"},{"$f":"'Hot Sheet'!$J$12","v":"Schedule 24"},{"$f":"'Hot Sheet'!$K$12","v":"Schedule 36"},{"$f":"'Hot Sheet'!$L$12","v":"Schedule 48T"},{"$f":"'Hot Sheet'!$M$12","v":"Schedule 48T"},{"$f":"'Hot Sheet'!$N$12","v":"Schedule 40"},{"$f":"'Hot Sheet'!$O$12","v":"Sch. 15,51-54,57"},{"$f":"'Hot Sheet'!P$12","v":"-"},{"$f":"'Hot Sheet'!Q$12","v":"-"}]
[307,null,"535","Operation Super & Engineering",null,{"$f":"IF(Classification=\"DEMAND\",\"F12\",IF(Classification=\"ENERGY\",\"F30\",\"F10\"))","v":"F10"},null,{"$f":"SUM(UAcct535)","v":0},{"$f":"VLOOKUP($F307,FactSum,'COS Factor Table'!F$115,FALSE)*$H307","v":0},{"$f":"VLOOKUP($F307,FactSum,'COS Factor Table'!G$115,FALSE)*$H307","v":0},{"$f":"VLOOKUP($F307,FactSum,'COS Factor Table'!H$115,FALSE)*$H307","v":0},{"$f":"VLOOKUP($F307,FactSum,'COS Factor Table'!I$115,FALSE)*$H307","v":0},{"$f":"VLOOKUP($F307,FactSum,'COS Factor Table'!J$115,FALSE)*$H307","v":0},{"$f":"VLOOKUP($F307,FactSum,'COS Factor Table'!K$115,FALSE)*$H307","v":0},{"$f":"VLOOKUP($F307,FactSum,'COS Factor Table'!L$115,FALSE)*$H307","v":0},{"$f":"VLOOKUP($F307,FactSum,'COS Factor Table'!M$115,FALSE)*$H307","v":0},{"$f":"VLOOKUP($F307,FactSum,'COS Factor Table'!N$115,FALSE)*$H307","v":0},{"$f":"ROUND(SUM(I307:Q307)-H307,0)","v":0}]
[308]
[309,null,"536","Water For Power",null,{"$f":"IF(Classification=\"DEMAND\",\"F12\",IF(Classification=\"ENERGY\",\"F30\",\"F10\"))","v":"F10"},null,{"$f":"SUM(UAcct536)","v":0},{"$f":"VLOOKUP($F309,FactSum,'COS Factor Table'!F$115,FALSE)*$H309","v":0},{"$f":"VLOOKUP($F309,FactSum,'COS Factor Table'!G$115,FALSE)*$H309","v":0},{"$f":"VLOOKUP($F309,FactSum,'COS Factor Table'!H$115,FALSE)*$H309","v":0},{"$f":"VLOOKUP($F309,FactSum,'COS Factor Table'!I$115,FALSE)*$H309","v":0},{"$f":"VLOOKUP($F309,FactSum,'COS Factor Table'!J$115,FALSE)*$H309","v":0},{"$f":"VLOOKUP($F309,FactSum,'COS Factor Table'!K$115,FALSE)*$H309","v":0},{"$f":"VLOOKUP($F309,FactSum,'COS Factor Table'!L$115,FALSE)*$H309","v":0},{"$f":"VLOOKUP($F309,FactSum,'COS Factor Table'!M$115,FALSE)*$H309","v":0},{"$f":"VLOOKUP($F309,FactSum,'COS Factor Table'!N$115,FALSE)*$H309","v":0},{"$f":"ROUND(SUM(I309:Q309)-H309,0)","v":0}]
[310]
[311,null,"537","Hydraulic Expenses",null,{"$f":"IF(Classification=\"DEMAND\",\"F12\",IF(Classification=\"ENERGY\",\"F30\",\"F10\"))","v":"F10"},null,{"$f":"SUM(UAcct537)","v":0},{"$f":"VLOOKUP($F311,FactSum,'COS Factor Table'!F$115,FALSE)*$H311","v":0},{"$f":"VLOOKUP($F311,FactSum,'COS Factor Table'!G$115,FALSE)*$H311","v":0},{"$f":"VLOOKUP($F311,FactSum,'COS Factor Table'!H$115,FALSE)*$H311","v":0},{"$f":"VLOOKUP($F311,FactSum,'COS Factor Table'!I$115,FALSE)*$H311","v":0},{"$f":"VLOOKUP($F311,FactSum,'COS Factor Table'!J$115,FALSE)*$H311","v":0},{"$f":"VLOOKUP($F311,FactSum,'COS Factor Table'!K$115,FALSE)*$H311","v":0},{"$f":"VLOOKUP($F311,FactSum,'COS Factor Table'!L$115,FALSE)*$H311","v":0},{"$f":"VLOOKUP($F311,FactSum,'COS Factor Table'!M$115,FALSE)*$H311","v":0},{"$f":"VLOOKUP($F311,FactSum,'COS Factor Table'!N$115,FALSE)*$H311","v":0},{"$f":"ROUND(SUM(I311:Q311)-H311,0)","v":0}]
[312]
[313,null,"538","Electric Expenses",null,{"$f":"IF(Classification=\"DEMAND\",\"F12\",IF(Classification=\"ENERGY\",\"F30\",\"F10\"))","v":"F10"},null,{"$f":"SUM(UAcct538)","v":0},{"$f":"VLOOKUP($F313,FactSum,'COS Factor Table'!F$115,FALSE)*$H313","v":0},{"$f":"VLOOKUP($F313,FactSum,'COS Factor Table'!G$115,FALSE)*$H313","v":0},{"$f":"VLOOKUP($F313,FactSum,'COS Factor Table'!H$115,FALSE)*$H313","v":0},{"$f":"VLOOKUP($F313,FactSum,'COS Factor Table'!I$115,FALSE)*$H313","v":0},{"$f":"VLOOKUP($F313,FactSum,'COS Factor Table'!J$115,FALSE)*$H313","v":0},{"$f":"VLOOKUP($F313,FactSum,'COS Factor Table'!K$115,FALSE)*$H313","v":0},{"$f":"VLOOKUP($F313,FactSum,'COS Factor Table'!L$115,FALSE)*$H313","v":0},{"$f":"VLOOKUP($F313,FactSum,'COS Factor Table'!M$115,FALSE)*$H313","v":0},{"$f":"VLOOKUP($F313,FactSum,'COS Factor Table'!N$115,FALSE)*$H313","v":0},{"$f":"ROUND(SUM(I313:Q313)-H313,0)","v":0}]
[314]
[315,null,"539","Misc. Hydro Expenses",null,{"$f":"IF(Classification=\"DEMAND\",\"F12\",IF(Classification=\"ENERGY\",\"F30\",\"F10\"))","v":"F10"},null,{"$f":"SUM(UAcct539)","v":0},{"$f":"VLOOKUP($F315,FactSum,'COS Factor Table'!F$115,FALSE)*$H315","v":0},{"$f":"VLOOKUP($F315,FactSum,'COS Factor Table'!G$115,FALSE)*$H315","v":0},{"$f":"VLOOKUP($F315,FactSum,'COS Factor Table'!H$115,FALSE)*$H315","v":0},{"$f":"VLOOKUP($F315,FactSum,'COS Factor Table'!I$115,FALSE)*$H315","v":0},{"$f":"VLOOKUP($F315,FactSum,'COS Factor Table'!J$115,FALSE)*$H315","v":0},{"$f":"VLOOKUP($F315,FactSum,'COS Factor Table'!K$115,FALSE)*$H315","v":0},{"$f":"VLOOKUP($F315,FactSum,'COS Factor Table'!L$115,FALSE)*$H315","v":0},{"$f":"VLOOKUP($F315,FactSum,'COS Factor Table'!M$115,FALSE)*$H315","v":0},{"$f":"VLOOKUP($F315,FactSum,'COS Factor Table'!N$115,FALSE)*$H315","v":0},{"$f":"ROUND(SUM(I315:Q315)-H315,0)","v":0}]
[316]
[317,null,"540","Rents (Hydro Generation)",null,{"$f":"IF(Classification=\"DEMAND\",\"F12\",IF(Classification=\"ENERGY\",\"F30\",\"F10\"))","v":"F10"},null,{"$f":"SUM(UAcct540)","v":0},{"$f":"VLOOKUP($F317,FactSum,'COS Factor Table'!F$115,FALSE)*$H317","v":0},{"$f":"VLOOKUP($F317,FactSum,'COS Factor Table'!G$115,FALSE)*$H317","v":0},{"$f":"VLOOKUP($F317,FactSum,'COS Factor Table'!H$115,FALSE)*$H317","v":0},{"$f":"VLOOKUP($F317,FactSum,'COS Factor Table'!I$115,FALSE)*$H317","v":0},{"$f":"VLOOKUP($F317,FactSum,'COS Factor Table'!J$115,FALSE)*$H317","v":0},{"$f":"VLOOKUP($F317,FactSum,'COS Factor Table'!K$115,FALSE)*$H317","v":0},{"$f":"VLOOKUP($F317,FactSum,'COS Factor Table'!L$115,FALSE)*$H317","v":0},{"$f":"VLOOKUP($F317,FactSum,'COS Factor Table'!M$115,FALSE)*$H317","v":0},{"$f":"VLOOKUP($F317,FactSum,'COS Factor Table'!N$115,FALSE)*$H317","v":0},{"$f":"ROUND(SUM(I317:Q317)-H317,0)","v":0}]
[318]
[319,null,"541","Maint Supervision & Engineering",null,{"$f":"IF(Classification=\"DEMAND\",\"F12\",IF(Classification=\"ENERGY\",\"F30\",\"F10\"))","v":"F10"},null,{"$f":"SUM(UAcct541)","v":0},{"$f":"VLOOKUP($F319,FactSum,'COS Factor Table'!F$115,FALSE)*$H319","v":0},{"$f":"VLOOKUP($F319,FactSum,'COS Factor Table'!G$115,FALSE)*$H319","v":0},{"$f":"VLOOKUP($F319,FactSum,'COS Factor Table'!H$115,FALSE)*$H319","v":0},{"$f":"VLOOKUP($F319,FactSum,'COS Factor Table'!I$115,FALSE)*$H319","v":0},{"$f":"VLOOKUP($F319,FactSum,'COS Factor Table'!J$115,FALSE)*$H319","v":0},{"$f":"VLOOKUP($F319,FactSum,'COS Factor Table'!K$115,FALSE)*$H319","v":0},{"$f":"VLOOKUP($F319,FactSum,'COS Factor Table'!L$115,FALSE)*$H319","v":0},{"$f":"VLOOKUP($F319,FactSum,'COS Factor Table'!M$115,FALSE)*$H319","v":0},{"$f":"VLOOKUP($F319,FactSum,'COS Factor Table'!N$115,FALSE)*$H319","v":0},{"$f":"ROUND(SUM(I319:Q319)-H319,0)","v":0}]
[320]
[321,null,"542","Maintenance of Structures",null,{"$f":"IF(Classification=\"DEMAND\",\"F12\",IF(Classification=\"ENERGY\",\"F30\",\"F10\"))","v":"F10"},null,{"$f":"SUM(UAcct542)","v":0},{"$f":"VLOOKUP($F321,FactSum,'COS Factor Table'!F$115,FALSE)*$H321","v":0},{"$f":"VLOOKUP($F321,FactSum,'COS Factor Table'!G$115,FALSE)*$H321","v":0},{"$f":"VLOOKUP($F321,FactSum,'COS Factor Table'!H$115,FALSE)*$H321","v":0},{"$f":"VLOOKUP($F321,FactSum,'COS Factor Table'!I$115,FALSE)*$H321","v":0},{"$f":"VLOOKUP($F321,FactSum,'COS Factor Table'!J$115,FALSE)*$H321","v":0},{"$f":"VLOOKUP($F321,FactSum,'COS Factor Table'!K$115,FALSE)*$H321","v":0},{"$f":"VLOOKUP($F321,FactSum,'COS Factor Table'!L$115,FALSE)*$H321","v":0},{"$f":"VLOOKUP($F321,FactSum,'COS Factor Table'!M$115,FALSE)*$H321","v":0},{"$f":"VLOOKUP($F321,FactSum,'COS Factor Table'!N$115,FALSE)*$H321","v":0},{"$f":"ROUND(SUM(I321:Q321)-H321,0)","v":0}]
[{"$f":"A321+1","v":322}]
[323,null,"543","Maint of Dams & Waterways",null,{"$f":"IF(Classification=\"DEMAND\",\"F12\",IF(Classification=\"ENERGY\",\"F30\",\"F10\"))","v":"F10"},null,{"$f":"SUM(UAcct543)","v":0},{"$f":"VLOOKUP($F323,FactSum,'COS Factor Table'!F$115,FALSE)*$H323","v":0},{"$f":"VLOOKUP($F323,FactSum,'COS Factor Table'!G$115,FALSE)*$H323","v":0},{"$f":"VLOOKUP($F323,FactSum,'COS Factor Table'!H$115,FALSE)*$H323","v":0},{"$f":"VLOOKUP($F323,FactSum,'COS Factor Table'!I$115,FALSE)*$H323","v":0},{"$f":"VLOOKUP($F323,FactSum,'COS Factor Table'!J$115,FALSE)*$H323","v":0},{"$f":"VLOOKUP($F323,FactSum,'COS Factor Table'!K$115,FALSE)*$H323","v":0},{"$f":"VLOOKUP($F323,FactSum,'COS Factor Table'!L$115,FALSE)*$H323","v":0},{"$f":"VLOOKUP($F323,FactSum,'COS Factor Table'!M$115,FALSE)*$H323","v":0},{"$f":"VLOOKUP($F323,FactSum,'COS Factor Table'!N$115,FALSE)*$H323","v":0},{"$f":"ROUND(SUM(I323:Q323)-H323,0)","v":0}]
[324]
[325,null,"544","Maintenance of Electric Plant",null,{"$f":"IF(Classification=\"DEMAND\",\"F12\",IF(Classification=\"ENERGY\",\"F30\",\"F10\"))","v":"F10"},null,{"$f":"SUM(UAcct544)","v":0},{"$f":"VLOOKUP($F325,FactSum,'COS Factor Table'!F$115,FALSE)*$H325","v":0},{"$f":"VLOOKUP($F325,FactSum,'COS Factor Table'!G$115,FALSE)*$H325","v":0},{"$f":"VLOOKUP($F325,FactSum,'COS Factor Table'!H$115,FALSE)*$H325","v":0},{"$f":"VLOOKUP($F325,FactSum,'COS Factor Table'!I$115,FALSE)*$H325","v":0},{"$f":"VLOOKUP($F325,FactSum,'COS Factor Table'!J$115,FALSE)*$H325","v":0},{"$f":"VLOOKUP($F325,FactSum,'COS Factor Table'!K$115,FALSE)*$H325","v":0},{"$f":"VLOOKUP($F325,FactSum,'COS Factor Table'!L$115,FALSE)*$H325","v":0},{"$f":"VLOOKUP($F325,FactSum,'COS Factor Table'!M$115,FALSE)*$H325","v":0},{"$f":"VLOOKUP($F325,FactSum,'COS Factor Table'!N$115,FALSE)*$H325","v":0},{"$f":"ROUND(SUM(I325:Q325)-H325,0)","v":0}]
[326]
[327,null,"545","Maint of Misc. Hydro Plant",null,{"$f":"IF(Classification=\"DEMAND\",\"F12\",IF(Classification=\"ENERGY\",\"F30\",\"F10\"))","v":"F10"},null,{"$f":"SUM(UAcct545)","v":0},{"$f":"VLOOKUP($F327,FactSum,'COS Factor Table'!F$115,FALSE)*$H327","v":0},{"$f":"VLOOKUP($F327,FactSum,'COS Factor Table'!G$115,FALSE)*$H327","v":0},{"$f":"VLOOKUP($F327,FactSum,'COS Factor Table'!H$115,FALSE)*$H327","v":0},{"$f":"VLOOKUP($F327,FactSum,'COS Factor Table'!I$115,FALSE)*$H327","v":0},{"$f":"VLOOKUP($F327,FactSum,'COS Factor Table'!J$115,FALSE)*$H327","v":0},{"$f":"VLOOKUP($F327,FactSum,'COS Factor Table'!K$115,FALSE)*$H327","v":0},{"$f":"VLOOKUP($F327,FactSum,'COS Factor Table'!L$115,FALSE)*$H327","v":0},{"$f":"VLOOKUP($F327,FactSum,'COS Factor Table'!M$115,FALSE)*$H327","v":0},{"$f":"VLOOKUP($F327,FactSum,'COS Factor Table'!N$115,FALSE)*$H327","v":0},{"$f":"ROUND(SUM(I327:Q327)-H327,0)","v":0}]
[328]
[329,null,"Total Hydraulic Power Generation ",null,null,null,null,{"$f":"SUM(H307:H328)","v":0},{"$f":"SUM(I307:I327)","v":0},0,0,0,{"$f":"SUM(M307:M327)","v":0},0,0,{"$f":"SUM(P307:P327)","v":0},{"$f":"SUM(Q307:Q327)","v":0},{"$f":"ROUND(SUM(I329:Q329)-H329,0)","v":0}]
[330]
[331]
[332,null,null,null,null,null,null,"OTHER POWER GENERATION"]
[333]
[334]
[335,null,"546","Operation Super & Engineering",null,{"$f":"IF(Classification=\"DEMAND\",\"F12\",IF(Classification=\"ENERGY\",\"F30\",\"F10\"))","v":"F10"},null,{"$f":"SUM(UAcct546)-H336","v":0},{"$f":"VLOOKUP($F335,FactSum,'COS Factor Table'!F$115,FALSE)*$H335","v":0},{"$f":"VLOOKUP($F335,FactSum,'COS Factor Table'!G$115,FALSE)*$H335","v":0},{"$f":"VLOOKUP($F335,FactSum,'COS Factor Table'!H$115,FALSE)*$H335","v":0},{"$f":"VLOOKUP($F335,FactSum,'COS Factor Table'!I$115,FALSE)*$H335","v":0},{"$f":"VLOOKUP($F335,FactSum,'COS Factor Table'!J$115,FALSE)*$H335","v":0},{"$f":"VLOOKUP($F335,FactSum,'COS Factor Table'!K$115,FALSE)*$H335","v":0},{"$f":"VLOOKUP($F335,FactSum,'COS Factor Table'!L$115,FALSE)*$H335","v":0},{"$f":"VLOOKUP($F335,FactSum,'COS Factor Table'!M$115,FALSE)*$H335","v":0},{"$f":"VLOOKUP($F335,FactSum,'COS Factor Table'!N$115,FALSE)*$H335","v":0},{"$f":"ROUND(SUM(I335:Q335)-H335,0)","v":0}]
[336,null,null,null,"CAGE",{"$f":"IF(Classification=\"DEMAND\",\"F12\",IF(Classification=\"ENERGY\",\"F30\",\"F10\"))","v":"F10"},null,{"$f":"UAcct546CAGE","v":0},{"$f":"VLOOKUP($F336,FactSum,'COS Factor Table'!F$115,FALSE)*$H336","v":0},{"$f":"VLOOKUP($F336,FactSum,'COS Factor Table'!G$115,FALSE)*$H336","v":0},{"$f":"VLOOKUP($F336,FactSum,'COS Factor Table'!H$115,FALSE)*$H336","v":0},{"$f":"VLOOKUP($F336,FactSum,'COS Factor Table'!I$115,FALSE)*$H336","v":0},{"$f":"VLOOKUP($F336,FactSum,'COS Factor Table'!J$115,FALSE)*$H336","v":0},{"$f":"VLOOKUP($F336,FactSum,'COS Factor Table'!K$115,FALSE)*$H336","v":0},{"$f":"VLOOKUP($F336,FactSum,'COS Factor Table'!L$115,FALSE)*$H336","v":0},{"$f":"VLOOKUP($F336,FactSum,'COS Factor Table'!M$115,FALSE)*$H336","v":0},{"$f":"VLOOKUP($F336,FactSum,'COS Factor Table'!N$115,FALSE)*$H336","v":0},{"$f":"ROUND(SUM(I336:Q336)-H336,0)","v":0}]
[337,null,null,null,"Total 546",null,null,{"$f":"SUM(H335:H336)","v":0},{"$f":"SUM(I335:I336)","v":0},0,0,0,{"$f":"SUM(M335:M336)","v":0},0,0,0,0,{"$f":"ROUND(SUM(I337:Q337)-H337,0)","v":0}]
[338]
[339,null,"547","Fuel","SE",{"$f":"IF(Classification=\"DEMAND\",\"F12\",IF(Classification=\"ENERGY\",\"F30\",\"F10\"))","v":"F10"},null,{"$f":"SUM(UAcct547Se+UAcct547CAEW)","v":0},{"$f":"VLOOKUP($F339,FactSum,'COS Factor Table'!F$115,FALSE)*$H339","v":0},{"$f":"VLOOKUP($F339,FactSum,'COS Factor Table'!G$115,FALSE)*$H339","v":0},{"$f":"VLOOKUP($F339,FactSum,'COS Factor Table'!H$115,FALSE)*$H339","v":0},{"$f":"VLOOKUP($F339,FactSum,'COS Factor Table'!I$115,FALSE)*$H339","v":0},{"$f":"VLOOKUP($F339,FactSum,'COS Factor Table'!J$115,FALSE)*$H339","v":0},{"$f":"VLOOKUP($F339,FactSum,'COS Factor Table'!K$115,FALSE)*$H339","v":0},{"$f":"VLOOKUP($F339,FactSum,'COS Factor Table'!L$115,FALSE)*$H339","v":0},{"$f":"VLOOKUP($F339,FactSum,'COS Factor Table'!M$115,FALSE)*$H339","v":0},{"$f":"VLOOKUP($F339,FactSum,'COS Factor Table'!N$115,FALSE)*$H339","v":0},{"$f":"ROUND(SUM(I339:Q339)-H339,0)","v":0}]
[340,null,null,null,"SSECT",{"$f":"IF(Classification=\"DEMAND\",\"F12\",IF(Classification=\"ENERGY\",\"F30\",\"F10\"))","v":"F10"},null,null,{"$f":"VLOOKUP($F340,FactSum,'COS Factor Table'!F$115,FALSE)*$H340","v":0},{"$f":"VLOOKUP($F340,FactSum,'COS Factor Table'!G$115,FALSE)*$H340","v":0},{"$f":"VLOOKUP($F340,FactSum,'COS Factor Table'!H$115,FALSE)*$H340","v":0},{"$f":"VLOOKUP($F340,FactSum,'COS Factor Table'!I$115,FALSE)*$H340","v":0},{"$f":"VLOOKUP($F340,FactSum,'COS Factor Table'!J$115,FALSE)*$H340","v":0},{"$f":"VLOOKUP($F340,FactSum,'COS Factor Table'!K$115,FALSE)*$H340","v":0},{"$f":"VLOOKUP($F340,FactSum,'COS Factor Table'!L$115,FALSE)*$H340","v":0},{"$f":"VLOOKUP($F340,FactSum,'COS Factor Table'!M$115,FALSE)*$H340","v":0},{"$f":"VLOOKUP($F340,FactSum,'COS Factor Table'!N$115,FALSE)*$H340","v":0},{"$f":"ROUND(SUM(I340:Q340)-H340,0)","v":0}]
[341,null,null,null,"Total 547",null,null,{"$f":"SUM(H339:H340)","v":0},{"$f":"SUM(I339:I340)","v":0},0,0,0,{"$f":"SUM(M339:M340)","v":0},0,0,0,0,{"$f":"ROUND(SUM(I341:Q341)-H341,0)","v":0}]
[342]
[343]
[344,null,"547NPC","Fuel","CAEW","F10",null,{"$f":"UACCT547NPCCAEW","v":0},{"$f":"VLOOKUP($F344,FactSum,'COS Factor Table'!F$115,FALSE)*$H344","v":0},{"$f":"VLOOKUP($F344,FactSum,'COS Factor Table'!G$115,FALSE)*$H344","v":0},{"$f":"VLOOKUP($F344,FactSum,'COS Factor Table'!H$115,FALSE)*$H344","v":0},{"$f":"VLOOKUP($F344,FactSum,'COS Factor Table'!I$115,FALSE)*$H344","v":0},{"$f":"VLOOKUP($F344,FactSum,'COS Factor Table'!J$115,FALSE)*$H344","v":0},{"$f":"VLOOKUP($F344,FactSum,'COS Factor Table'!K$115,FALSE)*$H344","v":0},{"$f":"VLOOKUP($F344,FactSum,'COS Factor Table'!L$115,FALSE)*$H344","v":0},{"$f":"VLOOKUP($F344,FactSum,'COS Factor Table'!M$115,FALSE)*$H344","v":0},{"$f":"VLOOKUP($F344,FactSum,'COS Factor Table'!N$115,FALSE)*$H344","v":0},{"$f":"ROUND(SUM(I344:Q344)-H344,0)","v":0}]
[345,null,null,null,"SE","F10",null,null,{"$f":"VLOOKUP($F345,FactSum,'COS Factor Table'!F$115,FALSE)*$H345","v":0},{"$f":"VLOOKUP($F345,FactSum,'COS Factor Table'!G$115,FALSE)*$H345","v":0},{"$f":"VLOOKUP($F345,FactSum,'COS Factor Table'!H$115,FALSE)*$H345","v":0},{"$f":"VLOOKUP($F345,FactSum,'COS Factor Table'!I$115,FALSE)*$H345","v":0},{"$f":"VLOOKUP($F345,FactSum,'COS Factor Table'!J$115,FALSE)*$H345","v":0},{"$f":"VLOOKUP($F345,FactSum,'COS Factor Table'!K$115,FALSE)*$H345","v":0},{"$f":"VLOOKUP($F345,FactSum,'COS Factor Table'!L$115,FALSE)*$H345","v":0},{"$f":"VLOOKUP($F345,FactSum,'COS Factor Table'!M$115,FALSE)*$H345","v":0},{"$f":"VLOOKUP($F345,FactSum,'COS Factor Table'!N$115,FALSE)*$H345","v":0},{"$f":"ROUND(SUM(I345:Q345)-H345,0)","v":0}]
[346,null,null,null,"Total 547NPC",null,null,{"$f":"SUM(H344:H345)","v":0},{"$f":"SUM(I344:I345)","v":0},0,0,0,{"$f":"SUM(M344:M345)","v":0},{"$f":"SUM(N344:N345)","v":0},0,0,0,{"$f":"ROUND(SUM(I346:Q346)-H346,0)","v":0}]
[347]
[348,null,"548","Generation Expense",null,{"$f":"IF(Classification=\"DEMAND\",\"F12\",IF(Classification=\"ENERGY\",\"F30\",\"F10\"))","v":"F10"},null,{"$f":"SUM(UAcct548)-H349","v":0},{"$f":"VLOOKUP($F348,FactSum,'COS Factor Table'!F$115,FALSE)*$H348","v":0},{"$f":"VLOOKUP($F348,FactSum,'COS Factor Table'!G$115,FALSE)*$H348","v":0},{"$f":"VLOOKUP($F348,FactSum,'COS Factor Table'!H$115,FALSE)*$H348","v":0},{"$f":"VLOOKUP($F348,FactSum,'COS Factor Table'!I$115,FALSE)*$H348","v":0},{"$f":"VLOOKUP($F348,FactSum,'COS Factor Table'!J$115,FALSE)*$H348","v":0},{"$f":"VLOOKUP($F348,FactSum,'COS Factor Table'!K$115,FALSE)*$H348","v":0},{"$f":"VLOOKUP($F348,FactSum,'COS Factor Table'!L$115,FALSE)*$H348","v":0},{"$f":"VLOOKUP($F348,FactSum,'COS Factor Table'!M$115,FALSE)*$H348","v":0},{"$f":"VLOOKUP($F348,FactSum,'COS Factor Table'!N$115,FALSE)*$H348","v":0},{"$f":"ROUND(SUM(I348:Q348)-H348,0)","v":0}]
[349,null,null,null,"CAGE","F10",null,{"$f":"UACCT548CAGE","v":0},{"$f":"VLOOKUP($F349,FactSum,'COS Factor Table'!F$115,FALSE)*$H349","v":0},{"$f":"VLOOKUP($F349,FactSum,'COS Factor Table'!G$115,FALSE)*$H349","v":0},{"$f":"VLOOKUP($F349,FactSum,'COS Factor Table'!H$115,FALSE)*$H349","v":0},{"$f":"VLOOKUP($F349,FactSum,'COS Factor Table'!I$115,FALSE)*$H349","v":0},{"$f":"VLOOKUP($F349,FactSum,'COS Factor Table'!J$115,FALSE)*$H349","v":0},{"$f":"VLOOKUP($F349,FactSum,'COS Factor Table'!K$115,FALSE)*$H349","v":0},{"$f":"VLOOKUP($F349,FactSum,'COS Factor Table'!L$115,FALSE)*$H349","v":0},{"$f":"VLOOKUP($F349,FactSum,'COS Factor Table'!M$115,FALSE)*$H349","v":0},{"$f":"VLOOKUP($F349,FactSum,'COS Factor Table'!N$115,FALSE)*$H349","v":0},{"$f":"ROUND(SUM(I349:Q349)-H349,0)","v":0}]
[350,null,null,null,"Total 548",null,null,{"$f":"SUM(H348:H349)","v":0},0,0,0,0,{"$f":"SUM(M348:M349)","v":0},0,0,0,0,{"$f":"ROUND(SUM(I350:Q350)-H350,0)","v":0}]
[351]
[352,null,"549","Miscellaneous Other",null,{"$f":"IF(Classification=\"DEMAND\",\"F12\",IF(Classification=\"ENERGY\",\"F30\",\"F10\"))","v":"F10"},null,{"$f":"SUM(UAcct549)-H353","v":0},{"$f":"VLOOKUP($F352,FactSum,'COS Factor Table'!F$115,FALSE)*$H352","v":0},{"$f":"VLOOKUP($F352,FactSum,'COS Factor Table'!G$115,FALSE)*$H352","v":0},{"$f":"VLOOKUP($F352,FactSum,'COS Factor Table'!H$115,FALSE)*$H352","v":0},{"$f":"VLOOKUP($F352,FactSum,'COS Factor Table'!I$115,FALSE)*$H352","v":0},{"$f":"VLOOKUP($F352,FactSum,'COS Factor Table'!J$115,FALSE)*$H352","v":0},{"$f":"VLOOKUP($F352,FactSum,'COS Factor Table'!K$115,FALSE)*$H352","v":0},{"$f":"VLOOKUP($F352,FactSum,'COS Factor Table'!L$115,FALSE)*$H352","v":0},{"$f":"VLOOKUP($F352,FactSum,'COS Factor Table'!M$115,FALSE)*$H352","v":0},{"$f":"VLOOKUP($F352,FactSum,'COS Factor Table'!N$115,FALSE)*$H352","v":0},{"$f":"ROUND(SUM(I352:Q352)-H352,0)","v":0}]
[353,null,null,null,"CAGE",{"$f":"IF(Classification=\"DEMAND\",\"F12\",IF(Classification=\"ENERGY\",\"F30\",\"F10\"))","v":"F10"},null,{"$f":"Uacct549CAGE","v":0},{"$f":"VLOOKUP($F353,FactSum,'COS Factor Table'!F$115,FALSE)*$H353","v":0},{"$f":"VLOOKUP($F353,FactSum,'COS Factor Table'!G$115,FALSE)*$H353","v":0},{"$f":"VLOOKUP($F353,FactSum,'COS Factor Table'!H$115,FALSE)*$H353","v":0},{"$f":"VLOOKUP($F353,FactSum,'COS Factor Table'!I$115,FALSE)*$H353","v":0},{"$f":"VLOOKUP($F353,FactSum,'COS Factor Table'!J$115,FALSE)*$H353","v":0},{"$f":"VLOOKUP($F353,FactSum,'COS Factor Table'!K$115,FALSE)*$H353","v":0},{"$f":"VLOOKUP($F353,FactSum,'COS Factor Table'!L$115,FALSE)*$H353","v":0},{"$f":"VLOOKUP($F353,FactSum,'COS Factor Table'!M$115,FALSE)*$H353","v":0},{"$f":"VLOOKUP($F353,FactSum,'COS Factor Table'!N$115,FALSE)*$H353","v":0},{"$f":"ROUND(SUM(I353:Q353)-H353,0)","v":0}]
[354,null,null,"Total 549",null,null,null,{"$f":"SUM(H352:H353)","v":0},{"$f":"SUM(I352:I353)","v":0},0,0,0,{"$f":"SUM(M352:M353)","v":0},0,0,0,0,{"$f":"ROUND(SUM(I354:Q354)-H354,0)","v":0}]
[355]
[356,null,"550","Maint Supervision & Engineering"]
[357,null,null,null,"SG",{"$f":"IF(Classification=\"DEMAND\",\"F12\",IF(Classification=\"ENERGY\",\"F30\",\"F10\"))","v":"F10"},null,{"$f":"SUM(UACCT551SG)","v":0},{"$f":"VLOOKUP($F357,FactSum,'COS Factor Table'!F$115,FALSE)*$H357","v":0},{"$f":"VLOOKUP($F357,FactSum,'COS Factor Table'!G$115,FALSE)*$H357","v":0},{"$f":"VLOOKUP($F357,FactSum,'COS Factor Table'!H$115,FALSE)*$H357","v":0},{"$f":"VLOOKUP($F357,FactSum,'COS Factor Table'!I$115,FALSE)*$H357","v":0},{"$f":"VLOOKUP($F357,FactSum,'COS Factor Table'!J$115,FALSE)*$H357","v":0},{"$f":"VLOOKUP($F357,FactSum,'COS Factor Table'!K$115,FALSE)*$H357","v":0},{"$f":"VLOOKUP($F357,FactSum,'COS Factor Table'!L$115,FALSE)*$H357","v":0},{"$f":"VLOOKUP($F357,FactSum,'COS Factor Table'!M$115,FALSE)*$H357","v":0},{"$f":"VLOOKUP($F357,FactSum,'COS Factor Table'!N$115,FALSE)*$H357","v":0},{"$f":"ROUND(SUM(I357:Q357)-H357,0)","v":0}]
[358,null,null,null,"CAGE",{"$f":"IF(Classification=\"DEMAND\",\"F12\",IF(Classification=\"ENERGY\",\"F30\",\"F10\"))","v":"F10"},null,{"$f":"UAcct551CAGE","v":0},{"$f":"VLOOKUP($F358,FactSum,'COS Factor Table'!F$115,FALSE)*$H358","v":0},{"$f":"VLOOKUP($F358,FactSum,'COS Factor Table'!G$115,FALSE)*$H358","v":0},{"$f":"VLOOKUP($F358,FactSum,'COS Factor Table'!H$115,FALSE)*$H358","v":0},{"$f":"VLOOKUP($F358,FactSum,'COS Factor Table'!I$115,FALSE)*$H358","v":0},{"$f":"VLOOKUP($F358,FactSum,'COS Factor Table'!J$115,FALSE)*$H358","v":0},{"$f":"VLOOKUP($F358,FactSum,'COS Factor Table'!K$115,FALSE)*$H358","v":0},{"$f":"VLOOKUP($F358,FactSum,'COS Factor Table'!L$115,FALSE)*$H358","v":0},{"$f":"VLOOKUP($F358,FactSum,'COS Factor Table'!M$115,FALSE)*$H358","v":0},{"$f":"VLOOKUP($F358,FactSum,'COS Factor Table'!N$115,FALSE)*$H358","v":0},{"$f":"ROUND(SUM(I358:Q358)-H358,0)","v":0}]
[359,null,null,null,"Total 550",null,null,{"$f":"SUM(H357:H358)","v":0},{"$f":"SUM(I357:I358)","v":0},0,0,0,{"$f":"SUM(M357:M358)","v":0},0,0,0,0,0]
[360]
[361,null,"552","Maintenance of Structures"]
[362,null,null,null,"SG",{"$f":"IF(Classification=\"DEMAND\",\"F12\",IF(Classification=\"ENERGY\",\"F30\",\"F10\"))","v":"F10"},null,{"$f":"SUM(UAcct552SG)","v":0},{"$f":"VLOOKUP($F362,FactSum,'COS Factor Table'!F$115,FALSE)*$H362","v":0},{"$f":"VLOOKUP($F362,FactSum,'COS Factor Table'!G$115,FALSE)*$H362","v":0},{"$f":"VLOOKUP($F362,FactSum,'COS Factor Table'!H$115,FALSE)*$H362","v":0},{"$f":"VLOOKUP($F362,FactSum,'COS Factor Table'!I$115,FALSE)*$H362","v":0},{"$f":"VLOOKUP($F362,FactSum,'COS Factor Table'!J$115,FALSE)*$H362","v":0},{"$f":"VLOOKUP($F362,FactSum,'COS Factor Table'!K$115,FALSE)*$H362","v":0},{"$f":"VLOOKUP($F362,FactSum,'COS Factor Table'!L$115,FALSE)*$H362","v":0},{"$f":"VLOOKUP($F362,FactSum,'COS Factor Table'!M$115,FALSE)*$H362","v":0},{"$f":"VLOOKUP($F362,FactSum,'COS Factor Table'!N$115,FALSE)*$H362","v":0},{"$f":"ROUND(SUM(I362:Q362)-H362,0)","v":0}]
[363,null,null,null,"CAGE",{"$f":"IF(Classification=\"DEMAND\",\"F12\",IF(Classification=\"ENERGY\",\"F30\",\"F10\"))","v":"F10"},null,{"$f":"UACCT552CAGE","v":0},{"$f":"VLOOKUP($F363,FactSum,'COS Factor Table'!F$115,FALSE)*$H363","v":0},{"$f":"VLOOKUP($F363,FactSum,'COS Factor Table'!G$115,FALSE)*$H363","v":0},{"$f":"VLOOKUP($F363,FactSum,'COS Factor Table'!H$115,FALSE)*$H363","v":0},{"$f":"VLOOKUP($F363,FactSum,'COS Factor Table'!I$115,FALSE)*$H363","v":0},{"$f":"VLOOKUP($F363,FactSum,'COS Factor Table'!J$115,FALSE)*$H363","v":0},{"$f":"VLOOKUP($F363,FactSum,'COS Factor Table'!K$115,FALSE)*$H363","v":0},{"$f":"VLOOKUP($F363,FactSum,'COS Factor Table'!L$115,FALSE)*$H363","v":0},{"$f":"VLOOKUP($F363,FactSum,'COS Factor Table'!M$115,FALSE)*$H363","v":0},{"$f":"VLOOKUP($F363,FactSum,'COS Factor Table'!N$115,FALSE)*$H363","v":0},{"$f":"ROUND(SUM(I363:Q363)-H363,0)","v":0}]
[364,null,null,null,"Total 552",null,null,{"$f":"SUM(H362:H363)","v":0},{"$f":"SUM(I362:I363)","v":0},0,0,0,{"$f":"SUM(M362:M363)","v":0},0,0,0,0,0]
[365]
[366,null,"553","Maint of Generation & Elect Plant"]
[367,null,null,null,"SG",{"$f":"IF(Classification=\"DEMAND\",\"F12\",IF(Classification=\"ENERGY\",\"F30\",\"F10\"))","v":"F10"},null,{"$f":"SUM(UAcct553SG)","v":0},{"$f":"VLOOKUP($F367,FactSum,'COS Factor Table'!F$115,FALSE)*$H367","v":0},{"$f":"VLOOKUP($F367,FactSum,'COS Factor Table'!G$115,FALSE)*$H367","v":0},{"$f":"VLOOKUP($F367,FactSum,'COS Factor Table'!H$115,FALSE)*$H367","v":0},{"$f":"VLOOKUP($F367,FactSum,'COS Factor Table'!I$115,FALSE)*$H367","v":0},{"$f":"VLOOKUP($F367,FactSum,'COS Factor Table'!J$115,FALSE)*$H367","v":0},{"$f":"VLOOKUP($F367,FactSum,'COS Factor Table'!K$115,FALSE)*$H367","v":0},{"$f":"VLOOKUP($F367,FactSum,'COS Factor Table'!L$115,FALSE)*$H367","v":0},{"$f":"VLOOKUP($F367,FactSum,'COS Factor Table'!M$115,FALSE)*$H367","v":0},{"$f":"VLOOKUP($F367,FactSum,'COS Factor Table'!N$115,FALSE)*$H367","v":0},{"$f":"ROUND(SUM(I367:Q367)-H367,0)","v":0}]
[368,null,null,null,"CAGE",{"$f":"IF(Classification=\"DEMAND\",\"F12\",IF(Classification=\"ENERGY\",\"F30\",\"F10\"))","v":"F10"},null,{"$f":"UACCT553CAGE","v":0},{"$f":"VLOOKUP($F368,FactSum,'COS Factor Table'!F$115,FALSE)*$H368","v":0},{"$f":"VLOOKUP($F368,FactSum,'COS Factor Table'!G$115,FALSE)*$H368","v":0},{"$f":"VLOOKUP($F368,FactSum,'COS Factor Table'!H$115,FALSE)*$H368","v":0},{"$f":"VLOOKUP($F368,FactSum,'COS Factor Table'!I$115,FALSE)*$H368","v":0},{"$f":"VLOOKUP($F368,FactSum,'COS Factor Table'!J$115,FALSE)*$H368","v":0},{"$f":"VLOOKUP($F368,FactSum,'COS Factor Table'!K$115,FALSE)*$H368","v":0},{"$f":"VLOOKUP($F368,FactSum,'COS Factor Table'!L$115,FALSE)*$H368","v":0},{"$f":"VLOOKUP($F368,FactSum,'COS Factor Table'!M$115,FALSE)*$H368","v":0},{"$f":"VLOOKUP($F368,FactSum,'COS Factor Table'!N$115,FALSE)*$H368","v":0},{"$f":"ROUND(SUM(I368:Q368)-H368,0)","v":0}]
[369,null,null,null,"Total 553",null,null,{"$f":"SUM(H367:H368)","v":0},{"$f":"SUM(I367:I368)","v":0},0,0,0,{"$f":"SUM(M367:M368)","v":0},0,0,0,0,0]
[370]
[371,null,"554","Maintenance of Misc. Other"]
[372,null,null,null,"SG",{"$f":"IF(Classification=\"DEMAND\",\"F12\",IF(Classification=\"ENERGY\",\"F30\",\"F10\"))","v":"F10"},null,{"$f":"SUM(UAcct554SG)","v":0},{"$f":"VLOOKUP($F372,FactSum,'COS Factor Table'!F$115,FALSE)*$H372","v":0},{"$f":"VLOOKUP($F372,FactSum,'COS Factor Table'!G$115,FALSE)*$H372","v":0},{"$f":"VLOOKUP($F372,FactSum,'COS Factor Table'!H$115,FALSE)*$H372","v":0},{"$f":"VLOOKUP($F372,FactSum,'COS Factor Table'!I$115,FALSE)*$H372","v":0},{"$f":"VLOOKUP($F372,FactSum,'COS Factor Table'!J$115,FALSE)*$H372","v":0},{"$f":"VLOOKUP($F372,FactSum,'COS Factor Table'!K$115,FALSE)*$H372","v":0},{"$f":"VLOOKUP($F372,FactSum,'COS Factor Table'!L$115,FALSE)*$H372","v":0},{"$f":"VLOOKUP($F372,FactSum,'COS Factor Table'!M$115,FALSE)*$H372","v":0},{"$f":"VLOOKUP($F372,FactSum,'COS Factor Table'!N$115,FALSE)*$H372","v":0},{"$f":"ROUND(SUM(I372:Q372)-H372,0)","v":0}]
[373,null,null,null,"CAGE",{"$f":"IF(Classification=\"DEMAND\",\"F12\",IF(Classification=\"ENERGY\",\"F30\",\"F10\"))","v":"F10"},null,{"$f":"UACCT554CAGE","v":0},{"$f":"VLOOKUP($F373,FactSum,'COS Factor Table'!F$115,FALSE)*$H373","v":0},{"$f":"VLOOKUP($F373,FactSum,'COS Factor Table'!G$115,FALSE)*$H373","v":0},{"$f":"VLOOKUP($F373,FactSum,'COS Factor Table'!H$115,FALSE)*$H373","v":0},{"$f":"VLOOKUP($F373,FactSum,'COS Factor Table'!I$115,FALSE)*$H373","v":0},{"$f":"VLOOKUP($F373,FactSum,'COS Factor Table'!J$115,FALSE)*$H373","v":0},{"$f":"VLOOKUP($F373,FactSum,'COS Factor Table'!K$115,FALSE)*$H373","v":0},{"$f":"VLOOKUP($F373,FactSum,'COS Factor Table'!L$115,FALSE)*$H373","v":0},{"$f":"VLOOKUP($F373,FactSum,'COS Factor Table'!M$115,FALSE)*$H373","v":0},{"$f":"VLOOKUP($F373,FactSum,'COS Factor Table'!N$115,FALSE)*$H373","v":0},{"$f":"ROUND(SUM(I373:Q373)-H373,0)","v":0}]
[374,null,null,null,"Total 554",null,null,{"$f":"SUM(H372:H373)","v":0},{"$f":"SUM(I372:I373)","v":0},0,0,0,{"$f":"SUM(M372:M373)","v":0},0,0,0,0,0]
[375]
[376,null,"Total Other Power Generation",null,null,null,null,{"$f":"SUM(H337,H341,H350,H354,H359,H364,H369,H374,H346)","v":0},{"$f":"SUM(I337,I341,I350,I354,I359,I364,I369,I374,I346)","v":0},0,0,0,0,0,0,{"$f":"SUM(P337,P341,P350,P354,P359,P364,P369,P374)","v":0},0,{"$f":"ROUND(SUM(I376:Q376)-H376,0)","v":0}]
[377]
[378]
[379,null,null,null,null,null,null,"OTHER POWER SUPPLY"]
[380]
[381]
[382,null,"555","Purchased Power",null,{"$f":"IF(Classification=\"DEMAND\",\"F12\",IF(Classification=\"ENERGY\",\"F30\",\"F10\"))","v":"F10"},null,{"$f":"SUM(UAcct555S)","v":0},{"$f":"VLOOKUP($F382,FactSum,'COS Factor Table'!F$115,FALSE)*$H382","v":0},{"$f":"VLOOKUP($F382,FactSum,'COS Factor Table'!G$115,FALSE)*$H382","v":0},{"$f":"VLOOKUP($F382,FactSum,'COS Factor Table'!H$115,FALSE)*$H382","v":0},{"$f":"VLOOKUP($F382,FactSum,'COS Factor Table'!I$115,FALSE)*$H382","v":0},{"$f":"VLOOKUP($F382,FactSum,'COS Factor Table'!J$115,FALSE)*$H382","v":0},{"$f":"VLOOKUP($F382,FactSum,'COS Factor Table'!K$115,FALSE)*$H382","v":0},{"$f":"VLOOKUP($F382,FactSum,'COS Factor Table'!L$115,FALSE)*$H382","v":0},{"$f":"VLOOKUP($F382,FactSum,'COS Factor Table'!M$115,FALSE)*$H382","v":0},{"$f":"VLOOKUP($F382,FactSum,'COS Factor Table'!N$115,FALSE)*$H382","v":0},{"$f":"ROUND(SUM(I382:Q382)-H382,0)","v":0}]
[383,null,null,null,"Demand","F10",null,{"$f":"SUM(UACCT555SG+UACCT555DGP+UAcct555CAGW)","v":0},{"$f":"VLOOKUP($F383,FactSum,'COS Factor Table'!F$115,FALSE)*$H383","v":0},{"$f":"VLOOKUP($F383,FactSum,'COS Factor Table'!G$115,FALSE)*$H383","v":0},{"$f":"VLOOKUP($F383,FactSum,'COS Factor Table'!H$115,FALSE)*$H383","v":0},{"$f":"VLOOKUP($F383,FactSum,'COS Factor Table'!I$115,FALSE)*$H383","v":0},{"$f":"VLOOKUP($F383,FactSum,'COS Factor Table'!J$115,FALSE)*$H383","v":0},{"$f":"VLOOKUP($F383,FactSum,'COS Factor Table'!K$115,FALSE)*$H383","v":0},{"$f":"VLOOKUP($F383,FactSum,'COS Factor Table'!L$115,FALSE)*$H383","v":0},{"$f":"VLOOKUP($F383,FactSum,'COS Factor Table'!M$115,FALSE)*$H383","v":0},{"$f":"VLOOKUP($F383,FactSum,'COS Factor Table'!N$115,FALSE)*$H383","v":0},{"$f":"ROUND(SUM(I383:Q383)-H383,0)","v":0}]
[384,null,null,null,"Energy",{"$f":"IF(Classification=\"DEMAND\",\"F12\",IF(Classification=\"ENERGY\",\"F30\",\"F10\"))","v":"F10"},null,{"$f":"SUM(UAcct555Se+UAcct555CAEW)","v":0},{"$f":"VLOOKUP($F384,FactSum,'COS Factor Table'!F$115,FALSE)*$H384","v":0},{"$f":"VLOOKUP($F384,FactSum,'COS Factor Table'!G$115,FALSE)*$H384","v":0},{"$f":"VLOOKUP($F384,FactSum,'COS Factor Table'!H$115,FALSE)*$H384","v":0},{"$f":"VLOOKUP($F384,FactSum,'COS Factor Table'!I$115,FALSE)*$H384","v":0},{"$f":"VLOOKUP($F384,FactSum,'COS Factor Table'!J$115,FALSE)*$H384","v":0},{"$f":"VLOOKUP($F384,FactSum,'COS Factor Table'!K$115,FALSE)*$H384","v":0},{"$f":"VLOOKUP($F384,FactSum,'COS Factor Table'!L$115,FALSE)*$H384","v":0},{"$f":"VLOOKUP($F384,FactSum,'COS Factor Table'!M$115,FALSE)*$H384","v":0},{"$f":"VLOOKUP($F384,FactSum,'COS Factor Table'!N$115,FALSE)*$H384","v":0},{"$f":"ROUND(SUM(I384:Q384)-H384,0)","v":0}]
[385,null,null,null,"SSGP",{"$f":"IF(Classification=\"DEMAND\",\"F12\",IF(Classification=\"ENERGY\",\"F30\",\"F10\"))","v":"F10"},null,0,{"$f":"VLOOKUP($F385,FactSum,'COS Factor Table'!F$115,FALSE)*$H385","v":0},{"$f":"VLOOKUP($F385,FactSum,'COS Factor Table'!G$115,FALSE)*$H385","v":0},{"$f":"VLOOKUP($F385,FactSum,'COS Factor Table'!H$115,FALSE)*$H385","v":0},{"$f":"VLOOKUP($F385,FactSum,'COS Factor Table'!I$115,FALSE)*$H385","v":0},{"$f":"VLOOKUP($F385,FactSum,'COS Factor Table'!J$115,FALSE)*$H385","v":0},{"$f":"VLOOKUP($F385,FactSum,'COS Factor Table'!K$115,FALSE)*$H385","v":0},{"$f":"VLOOKUP($F385,FactSum,'COS Factor Table'!L$115,FALSE)*$H385","v":0},{"$f":"VLOOKUP($F385,FactSum,'COS Factor Table'!M$115,FALSE)*$H385","v":0},{"$f":"VLOOKUP($F385,FactSum,'COS Factor Table'!N$115,FALSE)*$H385","v":0},{"$f":"ROUND(SUM(I385:Q385)-H385,0)","v":0}]
[{"$f":"A385+1","v":386},null,null,null,"Total 555",null,null,{"$f":"SUM(H382:H385)","v":0},0,0,0,0,{"$f":"SUM(M382:M385)","v":0},0,0,0,0,{"$f":"ROUND(SUM(I386:Q386)-H386,0)","v":0}]
[387]
[388,null,"555NPC","Purchased Power",null,"F10",null,{"$f":"SUM(UAcct555S)","v":0},{"$f":"VLOOKUP($F388,FactSum,'COS Factor Table'!F$115,FALSE)*$H388","v":0},{"$f":"VLOOKUP($F388,FactSum,'COS Factor Table'!G$115,FALSE)*$H388","v":0},{"$f":"VLOOKUP($F388,FactSum,'COS Factor Table'!H$115,FALSE)*$H388","v":0},{"$f":"VLOOKUP($F388,FactSum,'COS Factor Table'!I$115,FALSE)*$H388","v":0},{"$f":"VLOOKUP($F388,FactSum,'COS Factor Table'!J$115,FALSE)*$H388","v":0},{"$f":"VLOOKUP($F388,FactSum,'COS Factor Table'!K$115,FALSE)*$H388","v":0},{"$f":"VLOOKUP($F388,FactSum,'COS Factor Table'!L$115,FALSE)*$H388","v":0},{"$f":"VLOOKUP($F388,FactSum,'COS Factor Table'!M$115,FALSE)*$H388","v":0},{"$f":"VLOOKUP($F388,FactSum,'COS Factor Table'!N$115,FALSE)*$H388","v":0},{"$f":"ROUND(SUM(I388:Q388)-H388,0)","v":0}]
[389,null,null,null,"Demand","F10",null,{"$f":"UACCT555NPCCAGW","v":0},{"$f":"VLOOKUP($F389,FactSum,'COS Factor Table'!F$115,FALSE)*$H389","v":0},{"$f":"VLOOKUP($F389,FactSum,'COS Factor Table'!G$115,FALSE)*$H389","v":0},{"$f":"VLOOKUP($F389,FactSum,'COS Factor Table'!H$115,FALSE)*$H389","v":0},{"$f":"VLOOKUP($F389,FactSum,'COS Factor Table'!I$115,FALSE)*$H389","v":0},{"$f":"VLOOKUP($F389,FactSum,'COS Factor Table'!J$115,FALSE)*$H389","v":0},{"$f":"VLOOKUP($F389,FactSum,'COS Factor Table'!K$115,FALSE)*$H389","v":0},{"$f":"VLOOKUP($F389,FactSum,'COS Factor Table'!L$115,FALSE)*$H389","v":0},{"$f":"VLOOKUP($F389,FactSum,'COS Factor Table'!M$115,FALSE)*$H389","v":0},{"$f":"VLOOKUP($F389,FactSum,'COS Factor Table'!N$115,FALSE)*$H389","v":0},{"$f":"ROUND(SUM(I389:Q389)-H389,0)","v":0}]
[390,null,null,null,"Energy","F10",null,{"$f":"UACCT555NPCCAEW","v":0},{"$f":"VLOOKUP($F390,FactSum,'COS Factor Table'!F$115,FALSE)*$H390","v":0},{"$f":"VLOOKUP($F390,FactSum,'COS Factor Table'!G$115,FALSE)*$H390","v":0},{"$f":"VLOOKUP($F390,FactSum,'COS Factor Table'!H$115,FALSE)*$H390","v":0},{"$f":"VLOOKUP($F390,FactSum,'COS Factor Table'!I$115,FALSE)*$H390","v":0},{"$f":"VLOOKUP($F390,FactSum,'COS Factor Table'!J$115,FALSE)*$H390","v":0},{"$f":"VLOOKUP($F390,FactSum,'COS Factor Table'!K$115,FALSE)*$H390","v":0},{"$f":"VLOOKUP($F390,FactSum,'COS Factor Table'!L$115,FALSE)*$H390","v":0},{"$f":"VLOOKUP($F390,FactSum,'COS Factor Table'!M$115,FALSE)*$H390","v":0},{"$f":"VLOOKUP($F390,FactSum,'COS Factor Table'!N$115,FALSE)*$H390","v":0},{"$f":"ROUND(SUM(I390:Q390)-H390,0)","v":0}]
[391,null,null,null,"SSGP","F10",null,0,{"$f":"VLOOKUP($F391,FactSum,'COS Factor Table'!F$115,FALSE)*$H391","v":0},{"$f":"VLOOKUP($F391,FactSum,'COS Factor Table'!G$115,FALSE)*$H391","v":0},{"$f":"VLOOKUP($F391,FactSum,'COS Factor Table'!H$115,FALSE)*$H391","v":0},{"$f":"VLOOKUP($F391,FactSum,'COS Factor Table'!I$115,FALSE)*$H391","v":0},{"$f":"VLOOKUP($F391,FactSum,'COS Factor Table'!J$115,FALSE)*$H391","v":0},{"$f":"VLOOKUP($F391,FactSum,'COS Factor Table'!K$115,FALSE)*$H391","v":0},{"$f":"VLOOKUP($F391,FactSum,'COS Factor Table'!L$115,FALSE)*$H391","v":0},{"$f":"VLOOKUP($F391,FactSum,'COS Factor Table'!M$115,FALSE)*$H391","v":0},{"$f":"VLOOKUP($F391,FactSum,'COS Factor Table'!N$115,FALSE)*$H391","v":0},{"$f":"ROUND(SUM(I391:Q391)-H391,0)","v":0}]
[392,null,null,null,"Total 555NPC",null,null,{"$f":"SUM(H388:H391)","v":0},0,0,0,0,{"$f":"SUM(M388:M391)","v":0},{"$f":"SUM(N388:N391)","v":0},0,0,0,{"$f":"ROUND(SUM(I392:Q392)-H392,0)","v":0}]
[393]
[394,null,"556","System Control & Load Dispatch",null,{"$f":"IF(Classification=\"DEMAND\",\"F12\",IF(Classification=\"ENERGY\",\"F30\",\"F10\"))","v":"F10"},null,{"$f":"SUM(UAcct556)","v":0},{"$f":"VLOOKUP($F394,FactSum,'COS Factor Table'!F$115,FALSE)*$H394","v":0},{"$f":"VLOOKUP($F394,FactSum,'COS Factor Table'!G$115,FALSE)*$H394","v":0},{"$f":"VLOOKUP($F394,FactSum,'COS Factor Table'!H$115,FALSE)*$H394","v":0},{"$f":"VLOOKUP($F394,FactSum,'COS Factor Table'!I$115,FALSE)*$H394","v":0},{"$f":"VLOOKUP($F394,FactSum,'COS Factor Table'!J$115,FALSE)*$H394","v":0},{"$f":"VLOOKUP($F394,FactSum,'COS Factor Table'!K$115,FALSE)*$H394","v":0},{"$f":"VLOOKUP($F394,FactSum,'COS Factor Table'!L$115,FALSE)*$H394","v":0},{"$f":"VLOOKUP($F394,FactSum,'COS Factor Table'!M$115,FALSE)*$H394","v":0},{"$f":"VLOOKUP($F394,FactSum,'COS Factor Table'!N$115,FALSE)*$H394","v":0},{"$f":"ROUND(SUM(I394:Q394)-H394,0)","v":0}]
[395]
[396,null,"557","Other Expenses",null,{"$f":"IF(Classification=\"DEMAND\",\"F12\",IF(Classification=\"ENERGY\",\"F30\",\"F10\"))","v":"F10"},null,{"$f":"SUM(UAcct557)-H397","v":-1180771.9899890956},{"$f":"VLOOKUP($F396,FactSum,'COS Factor Table'!F$115,FALSE)*$H396","v":-500972.06210592791},{"$f":"VLOOKUP($F396,FactSum,'COS Factor Table'!G$115,FALSE)*$H396","v":-159346.17032690631},{"$f":"VLOOKUP($F396,FactSum,'COS Factor Table'!H$115,FALSE)*$H396","v":-252470.2502178571},{"$f":"VLOOKUP($F396,FactSum,'COS Factor Table'!I$115,FALSE)*$H396","v":-99766.428412863665},{"$f":"VLOOKUP($F396,FactSum,'COS Factor Table'!J$115,FALSE)*$H396","v":-123348.76904948721},{"$f":"VLOOKUP($F396,FactSum,'COS Factor Table'!K$115,FALSE)*$H396","v":-42035.583374542373},{"$f":"VLOOKUP($F396,FactSum,'COS Factor Table'!L$115,FALSE)*$H396","v":-2832.7265015109892},{"$f":"VLOOKUP($F396,FactSum,'COS Factor Table'!M$115,FALSE)*$H396","v":0},{"$f":"VLOOKUP($F396,FactSum,'COS Factor Table'!N$115,FALSE)*$H396","v":0},{"$f":"ROUND(SUM(I396:Q396)-H396,0)","v":0}]
[397,null,null,null,"CAGE/JBG",{"$f":"IF(Classification=\"DEMAND\",\"F12\",IF(Classification=\"ENERGY\",\"F30\",\"F10\"))","v":"F10"},null,{"$f":"SUM(Acct557CT+ACCT557CAGE)","v":1180771.9899890956},{"$f":"VLOOKUP($F397,FactSum,'COS Factor Table'!F$115,FALSE)*$H397","v":500972.06210592791},{"$f":"VLOOKUP($F397,FactSum,'COS Factor Table'!G$115,FALSE)*$H397","v":159346.17032690631},{"$f":"VLOOKUP($F397,FactSum,'COS Factor Table'!H$115,FALSE)*$H397","v":252470.2502178571},{"$f":"VLOOKUP($F397,FactSum,'COS Factor Table'!I$115,FALSE)*$H397","v":99766.428412863665},{"$f":"VLOOKUP($F397,FactSum,'COS Factor Table'!J$115,FALSE)*$H397","v":123348.76904948721},{"$f":"VLOOKUP($F397,FactSum,'COS Factor Table'!K$115,FALSE)*$H397","v":42035.583374542373},{"$f":"VLOOKUP($F397,FactSum,'COS Factor Table'!L$115,FALSE)*$H397","v":2832.7265015109892},{"$f":"VLOOKUP($F397,FactSum,'COS Factor Table'!M$115,FALSE)*$H397","v":0},{"$f":"VLOOKUP($F397,FactSum,'COS Factor Table'!N$115,FALSE)*$H397","v":0},{"$f":"ROUND(SUM(I397:Q397)-H397,0)","v":0}]
[398,null,null,null,"Total 557",null,null,{"$f":"SUM(H396:H397)","v":0},{"$f":"SUM(I396:I397)","v":0},0,0,0,{"$f":"SUM(M396:M397)","v":0},0,0,0,0,{"$f":"ROUND(SUM(I398:Q398)-H398,0)","v":0}]
[399]
[400,null,"Embedded Cost Differentials"]
[401,null,"Company Owned Hydro",null,"DGP",{"$f":"IF(Classification=\"DEMAND\",\"F12\",IF(Classification=\"ENERGY\",\"F30\",\"F10\"))","v":"F10"},null,{"$f":"SUM(UACCTECDDGP)","v":0},{"$f":"VLOOKUP($F401,FactSum,'COS Factor Table'!F$115,FALSE)*$H401","v":0},{"$f":"VLOOKUP($F401,FactSum,'COS Factor Table'!G$115,FALSE)*$H401","v":0},{"$f":"VLOOKUP($F401,FactSum,'COS Factor Table'!H$115,FALSE)*$H401","v":0},{"$f":"VLOOKUP($F401,FactSum,'COS Factor Table'!I$115,FALSE)*$H401","v":0},{"$f":"VLOOKUP($F401,FactSum,'COS Factor Table'!J$115,FALSE)*$H401","v":0},{"$f":"VLOOKUP($F401,FactSum,'COS Factor Table'!K$115,FALSE)*$H401","v":0},{"$f":"VLOOKUP($F401,FactSum,'COS Factor Table'!L$115,FALSE)*$H401","v":0},{"$f":"VLOOKUP($F401,FactSum,'COS Factor Table'!M$115,FALSE)*$H401","v":0},{"$f":"VLOOKUP($F401,FactSum,'COS Factor Table'!N$115,FALSE)*$H401","v":0},{"$f":"ROUND(SUM(I401:Q401)-H401,0)","v":0}]
[402,null,"Company Owned Hydro",null,"SG","F10",null,{"$f":"SUM(UACCTECDSG1)","v":0},{"$f":"VLOOKUP($F402,FactSum,'COS Factor Table'!F$115,FALSE)*$H402","v":0},{"$f":"VLOOKUP($F402,FactSum,'COS Factor Table'!G$115,FALSE)*$H402","v":0},{"$f":"VLOOKUP($F402,FactSum,'COS Factor Table'!H$115,FALSE)*$H402","v":0},{"$f":"VLOOKUP($F402,FactSum,'COS Factor Table'!I$115,FALSE)*$H402","v":0},{"$f":"VLOOKUP($F402,FactSum,'COS Factor Table'!J$115,FALSE)*$H402","v":0},{"$f":"VLOOKUP($F402,FactSum,'COS Factor Table'!K$115,FALSE)*$H402","v":0},{"$f":"VLOOKUP($F402,FactSum,'COS Factor Table'!L$115,FALSE)*$H402","v":0},{"$f":"VLOOKUP($F402,FactSum,'COS Factor Table'!M$115,FALSE)*$H402","v":0},{"$f":"VLOOKUP($F402,FactSum,'COS Factor Table'!N$115,FALSE)*$H402","v":0},0]
[403,null,"Mid-C Contract",null,"MC","F10",null,{"$f":"SUM(UACCTECDMC)","v":0},{"$f":"VLOOKUP($F403,FactSum,'COS Factor Table'!F$115,FALSE)*$H403","v":0},{"$f":"VLOOKUP($F403,FactSum,'COS Factor Table'!G$115,FALSE)*$H403","v":0},{"$f":"VLOOKUP($F403,FactSum,'COS Factor Table'!H$115,FALSE)*$H403","v":0},{"$f":"VLOOKUP($F403,FactSum,'COS Factor Table'!I$115,FALSE)*$H403","v":0},{"$f":"VLOOKUP($F403,FactSum,'COS Factor Table'!J$115,FALSE)*$H403","v":0},{"$f":"VLOOKUP($F403,FactSum,'COS Factor Table'!K$115,FALSE)*$H403","v":0},{"$f":"VLOOKUP($F403,FactSum,'COS Factor Table'!L$115,FALSE)*$H403","v":0},{"$f":"VLOOKUP($F403,FactSum,'COS Factor Table'!M$115,FALSE)*$H403","v":0},{"$f":"VLOOKUP($F403,FactSum,'COS Factor Table'!N$115,FALSE)*$H403","v":0},0]
[404,null,"Mid-C Contract",null,"SG","F10",null,{"$f":"SUM(UACCTECDSG2)","v":0},{"$f":"VLOOKUP($F404,FactSum,'COS Factor Table'!F$115,FALSE)*$H404","v":0},{"$f":"VLOOKUP($F404,FactSum,'COS Factor Table'!G$115,FALSE)*$H404","v":0},{"$f":"VLOOKUP($F404,FactSum,'COS Factor Table'!H$115,FALSE)*$H404","v":0},{"$f":"VLOOKUP($F404,FactSum,'COS Factor Table'!I$115,FALSE)*$H404","v":0},{"$f":"VLOOKUP($F404,FactSum,'COS Factor Table'!J$115,FALSE)*$H404","v":0},{"$f":"VLOOKUP($F404,FactSum,'COS Factor Table'!K$115,FALSE)*$H404","v":0},{"$f":"VLOOKUP($F404,FactSum,'COS Factor Table'!L$115,FALSE)*$H404","v":0},{"$f":"VLOOKUP($F404,FactSum,'COS Factor Table'!M$115,FALSE)*$H404","v":0},{"$f":"VLOOKUP($F404,FactSum,'COS Factor Table'!N$115,FALSE)*$H404","v":0},0]
[405,null,"Existing QF Contracts",null,"S ","F10",null,{"$f":"SUM(UACCTECDS)","v":0},{"$f":"VLOOKUP($F405,FactSum,'COS Factor Table'!F$115,FALSE)*$H405","v":0},{"$f":"VLOOKUP($F405,FactSum,'COS Factor Table'!G$115,FALSE)*$H405","v":0},{"$f":"VLOOKUP($F405,FactSum,'COS Factor Table'!H$115,FALSE)*$H405","v":0},{"$f":"VLOOKUP($F405,FactSum,'COS Factor Table'!I$115,FALSE)*$H405","v":0},{"$f":"VLOOKUP($F405,FactSum,'COS Factor Table'!J$115,FALSE)*$H405","v":0},{"$f":"VLOOKUP($F405,FactSum,'COS Factor Table'!K$115,FALSE)*$H405","v":0},{"$f":"VLOOKUP($F405,FactSum,'COS Factor Table'!L$115,FALSE)*$H405","v":0},{"$f":"VLOOKUP($F405,FactSum,'COS Factor Table'!M$115,FALSE)*$H405","v":0},{"$f":"VLOOKUP($F405,FactSum,'COS Factor Table'!N$115,FALSE)*$H405","v":0},0]
[406,null,"Existing QF Contracts",null,"SG","F10",null,{"$f":"SUM(UACCTECDSG3)","v":0},{"$f":"VLOOKUP($F406,FactSum,'COS Factor Table'!F$115,FALSE)*$H406","v":0},{"$f":"VLOOKUP($F406,FactSum,'COS Factor Table'!G$115,FALSE)*$H406","v":0},{"$f":"VLOOKUP($F406,FactSum,'COS Factor Table'!H$115,FALSE)*$H406","v":0},{"$f":"VLOOKUP($F406,FactSum,'COS Factor Table'!I$115,FALSE)*$H406","v":0},{"$f":"VLOOKUP($F406,FactSum,'COS Factor Table'!J$115,FALSE)*$H406","v":0},{"$f":"VLOOKUP($F406,FactSum,'COS Factor Table'!K$115,FALSE)*$H406","v":0},{"$f":"VLOOKUP($F406,FactSum,'COS Factor Table'!L$115,FALSE)*$H406","v":0},{"$f":"VLOOKUP($F406,FactSum,'COS Factor Table'!M$115,FALSE)*$H406","v":0},{"$f":"VLOOKUP($F406,FactSum,'COS Factor Table'!N$115,FALSE)*$H406","v":0},0]
[407,null,"Total Embedded Cost Differential",null,null,null,null,{"$f":"SUM(H401:H406)","v":0},{"$f":"SUM(I401:I406)","v":0},0,0,0,{"$f":"SUM(M401:M406)","v":0},0,0,0,0,0]
[408]
[409,null,"Total Other Power Supply",null,null,null,null,{"$f":"SUM(H386,H394,H398,H407,H392)","v":0},{"$f":"SUM(I386,I394,I398,I407,I392)","v":0},0,0,0,0,0,0,{"$f":"SUM(P386,P394,P398,P407)","v":0},{"$f":"SUM(Q386,Q394,Q398,Q407)","v":0},{"$f":"ROUND(SUM(I409:Q409)-H409,0)","v":0}]
[410]
[411,null,"TOTAL PRODUCTION EXPENSE",null,null,null,null,{"$f":"+H269+H297+H329+H376+H409","v":0},{"$f":"I269+I297+I329+I376+I409","v":0},0,0,0,0,0,0,0,0,{"$f":"ROUND(SUM(I411:Q411)-H411,0)","v":0}]
[412]
[413,null,{"$f":"$E$1","v":"Distribution - METER -  Unbundled"},null,null,null,null,"TRANSMISSION EXPENSE"]
[414]
[415]
[416,null,"A",null,"B","C",null,"D","E","F","G","H","I","J","K","S","T"]
[417,null,null,null,null,null,null,{"$f":"'Hot Sheet'!$H$10","v":"Washington"},null,{"$f":"'Hot Sheet'!$J$10","v":"Small General"},{"$f":"'Hot Sheet'!$K$10","v":"Large General"},{"$f":"'Hot Sheet'!$L$10","v":"Large General"},{"$f":"'Hot Sheet'!$M$10","v":"Large General"},{"$f":"'Hot Sheet'!$N$10","v":"Agricultural"},{"$f":"'Hot Sheet'!$O$10","v":"Street & Area"}]
[418,null,"FERC",null,null,"COS",null,{"$f":"'Hot Sheet'!$H$11","v":"Jurisdiction"},{"$f":"'Hot Sheet'!$I$11","v":"Residential"},{"$f":"'Hot Sheet'!$J$11","v":"Service"},{"$f":"'Hot Sheet'!$K$11","v":"Service <1,000 kW"},{"$f":"'Hot Sheet'!$L$11","v":"Service >1,000 kW"},{"$f":"'Hot Sheet'!$M$11","v":"Dedicated Facilities"},{"$f":"'Hot Sheet'!$N$11","v":"Pumping"},{"$f":"'Hot Sheet'!$O$11","v":"Lighting"},{"$f":"'Hot Sheet'!P$11","v":"-"},{"$f":"'Hot Sheet'!Q$11","v":"-"}]
[419,null,"ACCT",null,"DESCRIPTION ","Factor",null,{"$f":"'Hot Sheet'!$H$12","v":"Normalized"},{"$f":"'Hot Sheet'!$I$12","v":"Schedule 16"},{"$f":"'Hot Sheet'!$J$12","v":"Schedule 24"},{"$f":"'Hot Sheet'!$K$12","v":"Schedule 36"},{"$f":"'Hot Sheet'!$L$12","v":"Schedule 48T"},{"$f":"'Hot Sheet'!$M$12","v":"Schedule 48T"},{"$f":"'Hot Sheet'!$N$12","v":"Schedule 40"},{"$f":"'Hot Sheet'!$O$12","v":"Sch. 15,51-54,57"},{"$f":"'Hot Sheet'!P$12","v":"-"},{"$f":"'Hot Sheet'!Q$12","v":"-"}]
[420,null,"560","Operation Supervision & Eng",null,"F106",null,{"$f":"SUM(UAcct560)","v":0},{"$f":"VLOOKUP($F420,FactSum,'COS Factor Table'!F$115,FALSE)*$H420","v":0},{"$f":"VLOOKUP($F420,FactSum,'COS Factor Table'!G$115,FALSE)*$H420","v":0},{"$f":"VLOOKUP($F420,FactSum,'COS Factor Table'!H$115,FALSE)*$H420","v":0},{"$f":"VLOOKUP($F420,FactSum,'COS Factor Table'!I$115,FALSE)*$H420","v":0},{"$f":"VLOOKUP($F420,FactSum,'COS Factor Table'!J$115,FALSE)*$H420","v":0},{"$f":"VLOOKUP($F420,FactSum,'COS Factor Table'!K$115,FALSE)*$H420","v":0},{"$f":"VLOOKUP($F420,FactSum,'COS Factor Table'!L$115,FALSE)*$H420","v":0},{"$f":"VLOOKUP($F420,FactSum,'COS Factor Table'!M$115,FALSE)*$H420","v":0},{"$f":"VLOOKUP($F420,FactSum,'COS Factor Table'!N$115,FALSE)*$H420","v":0},{"$f":"ROUND(SUM(I420:Q420)-H420,0)","v":0}]
[421]
[422,null,"561","Load Dispatching",null,"F106",null,{"$f":"SUM(UAcct561)","v":0},{"$f":"VLOOKUP($F422,FactSum,'COS Factor Table'!F$115,FALSE)*$H422","v":0},{"$f":"VLOOKUP($F422,FactSum,'COS Factor Table'!G$115,FALSE)*$H422","v":0},{"$f":"VLOOKUP($F422,FactSum,'COS Factor Table'!H$115,FALSE)*$H422","v":0},{"$f":"VLOOKUP($F422,FactSum,'COS Factor Table'!I$115,FALSE)*$H422","v":0},{"$f":"VLOOKUP($F422,FactSum,'COS Factor Table'!J$115,FALSE)*$H422","v":0},{"$f":"VLOOKUP($F422,FactSum,'COS Factor Table'!K$115,FALSE)*$H422","v":0},{"$f":"VLOOKUP($F422,FactSum,'COS Factor Table'!L$115,FALSE)*$H422","v":0},{"$f":"VLOOKUP($F422,FactSum,'COS Factor Table'!M$115,FALSE)*$H422","v":0},{"$f":"VLOOKUP($F422,FactSum,'COS Factor Table'!N$115,FALSE)*$H422","v":0},{"$f":"ROUND(SUM(I422:Q422)-H422,0)","v":0}]
[423]
[424,null,"562","Station Expense",null,"F106",null,{"$f":"SUM(UAcct562)","v":0},{"$f":"VLOOKUP($F424,FactSum,'COS Factor Table'!F$115,FALSE)*$H424","v":0},{"$f":"VLOOKUP($F424,FactSum,'COS Factor Table'!G$115,FALSE)*$H424","v":0},{"$f":"VLOOKUP($F424,FactSum,'COS Factor Table'!H$115,FALSE)*$H424","v":0},{"$f":"VLOOKUP($F424,FactSum,'COS Factor Table'!I$115,FALSE)*$H424","v":0},{"$f":"VLOOKUP($F424,FactSum,'COS Factor Table'!J$115,FALSE)*$H424","v":0},{"$f":"VLOOKUP($F424,FactSum,'COS Factor Table'!K$115,FALSE)*$H424","v":0},{"$f":"VLOOKUP($F424,FactSum,'COS Factor Table'!L$115,FALSE)*$H424","v":0},{"$f":"VLOOKUP($F424,FactSum,'COS Factor Table'!M$115,FALSE)*$H424","v":0},{"$f":"VLOOKUP($F424,FactSum,'COS Factor Table'!N$115,FALSE)*$H424","v":0},{"$f":"ROUND(SUM(I424:Q424)-H424,0)","v":0}]
[425]
[426,null,"563","Overhead Line Expense",null,"F106",null,{"$f":"SUM(UAcct563)","v":0},{"$f":"VLOOKUP($F426,FactSum,'COS Factor Table'!F$115,FALSE)*$H426","v":0},{"$f":"VLOOKUP($F426,FactSum,'COS Factor Table'!G$115,FALSE)*$H426","v":0},{"$f":"VLOOKUP($F426,FactSum,'COS Factor Table'!H$115,FALSE)*$H426","v":0},{"$f":"VLOOKUP($F426,FactSum,'COS Factor Table'!I$115,FALSE)*$H426","v":0},{"$f":"VLOOKUP($F426,FactSum,'COS Factor Table'!J$115,FALSE)*$H426","v":0},{"$f":"VLOOKUP($F426,FactSum,'COS Factor Table'!K$115,FALSE)*$H426","v":0},{"$f":"VLOOKUP($F426,FactSum,'COS Factor Table'!L$115,FALSE)*$H426","v":0},{"$f":"VLOOKUP($F426,FactSum,'COS Factor Table'!M$115,FALSE)*$H426","v":0},{"$f":"VLOOKUP($F426,FactSum,'COS Factor Table'!N$115,FALSE)*$H426","v":0},{"$f":"ROUND(SUM(I426:Q426)-H426,0)","v":0}]
[427]
[428,null,"564","Underground Line Expense",null,"F106",null,{"$f":"SUM(UAcct564)","v":0},{"$f":"VLOOKUP($F428,FactSum,'COS Factor Table'!F$115,FALSE)*$H428","v":0},{"$f":"VLOOKUP($F428,FactSum,'COS Factor Table'!G$115,FALSE)*$H428","v":0},{"$f":"VLOOKUP($F428,FactSum,'COS Factor Table'!H$115,FALSE)*$H428","v":0},{"$f":"VLOOKUP($F428,FactSum,'COS Factor Table'!I$115,FALSE)*$H428","v":0},{"$f":"VLOOKUP($F428,FactSum,'COS Factor Table'!J$115,FALSE)*$H428","v":0},{"$f":"VLOOKUP($F428,FactSum,'COS Factor Table'!K$115,FALSE)*$H428","v":0},{"$f":"VLOOKUP($F428,FactSum,'COS Factor Table'!L$115,FALSE)*$H428","v":0},{"$f":"VLOOKUP($F428,FactSum,'COS Factor Table'!M$115,FALSE)*$H428","v":0},{"$f":"VLOOKUP($F428,FactSum,'COS Factor Table'!N$115,FALSE)*$H428","v":0},{"$f":"ROUND(SUM(I428:Q428)-H428,0)","v":0}]
[429]
[430,null,"565","Transm of Electricity by Others",null,{"$f":"IF(Classification=\"DEMAND\",\"F12\",IF(Classification=\"ENERGY\",\"F30\",\"F10\"))","v":"F10"},null,{"$f":"SUM(UAcct565)-H431","v":0},{"$f":"VLOOKUP($F430,FactSum,'COS Factor Table'!F$115,FALSE)*$H430","v":0},{"$f":"VLOOKUP($F430,FactSum,'COS Factor Table'!G$115,FALSE)*$H430","v":0},{"$f":"VLOOKUP($F430,FactSum,'COS Factor Table'!H$115,FALSE)*$H430","v":0},{"$f":"VLOOKUP($F430,FactSum,'COS Factor Table'!I$115,FALSE)*$H430","v":0},{"$f":"VLOOKUP($F430,FactSum,'COS Factor Table'!J$115,FALSE)*$H430","v":0},{"$f":"VLOOKUP($F430,FactSum,'COS Factor Table'!K$115,FALSE)*$H430","v":0},{"$f":"VLOOKUP($F430,FactSum,'COS Factor Table'!L$115,FALSE)*$H430","v":0},{"$f":"VLOOKUP($F430,FactSum,'COS Factor Table'!M$115,FALSE)*$H430","v":0},{"$f":"VLOOKUP($F430,FactSum,'COS Factor Table'!N$115,FALSE)*$H430","v":0},{"$f":"ROUND(SUM(I430:Q430)-H430,0)","v":0}]
[431,null,null,"Energy",null,{"$f":"IF(Classification=\"DEMAND\",\"F12\",IF(Classification=\"ENERGY\",\"F30\",\"F10\"))","v":"F10"},null,0,{"$f":"VLOOKUP($F431,FactSum,'COS Factor Table'!F$115,FALSE)*$H431","v":0},{"$f":"VLOOKUP($F431,FactSum,'COS Factor Table'!G$115,FALSE)*$H431","v":0},{"$f":"VLOOKUP($F431,FactSum,'COS Factor Table'!H$115,FALSE)*$H431","v":0},{"$f":"VLOOKUP($F431,FactSum,'COS Factor Table'!I$115,FALSE)*$H431","v":0},{"$f":"VLOOKUP($F431,FactSum,'COS Factor Table'!J$115,FALSE)*$H431","v":0},{"$f":"VLOOKUP($F431,FactSum,'COS Factor Table'!K$115,FALSE)*$H431","v":0},{"$f":"VLOOKUP($F431,FactSum,'COS Factor Table'!L$115,FALSE)*$H431","v":0},{"$f":"VLOOKUP($F431,FactSum,'COS Factor Table'!M$115,FALSE)*$H431","v":0},{"$f":"VLOOKUP($F431,FactSum,'COS Factor Table'!N$115,FALSE)*$H431","v":0},0]
[432,null,null,null,null,null,null,{"$f":"SUM(H430:H431)","v":0},{"$f":"SUM(I430:I431)","v":0},0,0,0,{"$f":"SUM(M430:M431)","v":0},0,0,{"$f":"SUM(P430:P431)","v":0},{"$f":"SUM(Q430:Q431)","v":0},0]
[433,null,"565NPC","Transm of Electricity by Others",null,"F10",null,{"$f":"SUM(UACCT565NPC)-H434","v":0},{"$f":"VLOOKUP($F433,FactSum,'COS Factor Table'!F$115,FALSE)*$H433","v":0},{"$f":"VLOOKUP($F433,FactSum,'COS Factor Table'!G$115,FALSE)*$H433","v":0},{"$f":"VLOOKUP($F433,FactSum,'COS Factor Table'!H$115,FALSE)*$H433","v":0},{"$f":"VLOOKUP($F433,FactSum,'COS Factor Table'!I$115,FALSE)*$H433","v":0},{"$f":"VLOOKUP($F433,FactSum,'COS Factor Table'!J$115,FALSE)*$H433","v":0},{"$f":"VLOOKUP($F433,FactSum,'COS Factor Table'!K$115,FALSE)*$H433","v":0},{"$f":"VLOOKUP($F433,FactSum,'COS Factor Table'!L$115,FALSE)*$H433","v":0},{"$f":"VLOOKUP($F433,FactSum,'COS Factor Table'!M$115,FALSE)*$H433","v":0},{"$f":"VLOOKUP($F433,FactSum,'COS Factor Table'!N$115,FALSE)*$H433","v":0},0]
[434,null,null,"Energy",null,"F10",null,{"$f":"SUM(UACCT565NPCCAGW)","v":0},{"$f":"VLOOKUP($F434,FactSum,'COS Factor Table'!F$115,FALSE)*$H434","v":0},{"$f":"VLOOKUP($F434,FactSum,'COS Factor Table'!G$115,FALSE)*$H434","v":0},{"$f":"VLOOKUP($F434,FactSum,'COS Factor Table'!H$115,FALSE)*$H434","v":0},{"$f":"VLOOKUP($F434,FactSum,'COS Factor Table'!I$115,FALSE)*$H434","v":0},{"$f":"VLOOKUP($F434,FactSum,'COS Factor Table'!J$115,FALSE)*$H434","v":0},{"$f":"VLOOKUP($F434,FactSum,'COS Factor Table'!K$115,FALSE)*$H434","v":0},{"$f":"VLOOKUP($F434,FactSum,'COS Factor Table'!L$115,FALSE)*$H434","v":0},{"$f":"VLOOKUP($F434,FactSum,'COS Factor Table'!M$115,FALSE)*$H434","v":0},{"$f":"VLOOKUP($F434,FactSum,'COS Factor Table'!N$115,FALSE)*$H434","v":0},0]
[435]
[{"$f":"A435+1","v":436},null,"566","Misc. Transmission Expense",null,"F106",null,{"$f":"SUM(UAcct566)","v":0},{"$f":"VLOOKUP($F436,FactSum,'COS Factor Table'!F$115,FALSE)*$H436","v":0},{"$f":"VLOOKUP($F436,FactSum,'COS Factor Table'!G$115,FALSE)*$H436","v":0},{"$f":"VLOOKUP($F436,FactSum,'COS Factor Table'!H$115,FALSE)*$H436","v":0},{"$f":"VLOOKUP($F436,FactSum,'COS Factor Table'!I$115,FALSE)*$H436","v":0},{"$f":"VLOOKUP($F436,FactSum,'COS Factor Table'!J$115,FALSE)*$H436","v":0},{"$f":"VLOOKUP($F436,FactSum,'COS Factor Table'!K$115,FALSE)*$H436","v":0},{"$f":"VLOOKUP($F436,FactSum,'COS Factor Table'!L$115,FALSE)*$H436","v":0},{"$f":"VLOOKUP($F436,FactSum,'COS Factor Table'!M$115,FALSE)*$H436","v":0},{"$f":"VLOOKUP($F436,FactSum,'COS Factor Table'!N$115,FALSE)*$H436","v":0},0]
[437]
[438,null,"567","Rents - Transmission",null,"F106",null,{"$f":"SUM(UAcct567)","v":0},{"$f":"VLOOKUP($F438,FactSum,'COS Factor Table'!F$115,FALSE)*$H438","v":0},{"$f":"VLOOKUP($F438,FactSum,'COS Factor Table'!G$115,FALSE)*$H438","v":0},{"$f":"VLOOKUP($F438,FactSum,'COS Factor Table'!H$115,FALSE)*$H438","v":0},{"$f":"VLOOKUP($F438,FactSum,'COS Factor Table'!I$115,FALSE)*$H438","v":0},{"$f":"VLOOKUP($F438,FactSum,'COS Factor Table'!J$115,FALSE)*$H438","v":0},{"$f":"VLOOKUP($F438,FactSum,'COS Factor Table'!K$115,FALSE)*$H438","v":0},{"$f":"VLOOKUP($F438,FactSum,'COS Factor Table'!L$115,FALSE)*$H438","v":0},{"$f":"VLOOKUP($F438,FactSum,'COS Factor Table'!M$115,FALSE)*$H438","v":0},{"$f":"VLOOKUP($F438,FactSum,'COS Factor Table'!N$115,FALSE)*$H438","v":0},{"$f":"ROUND(SUM(I438:Q438)-H438,0)","v":0}]
[439]
[440,null,"568","Maint Supervision & Engineering",null,"F106",null,{"$f":"SUM(UAcct568)","v":0},{"$f":"VLOOKUP($F440,FactSum,'COS Factor Table'!F$115,FALSE)*$H440","v":0},{"$f":"VLOOKUP($F440,FactSum,'COS Factor Table'!G$115,FALSE)*$H440","v":0},{"$f":"VLOOKUP($F440,FactSum,'COS Factor Table'!H$115,FALSE)*$H440","v":0},{"$f":"VLOOKUP($F440,FactSum,'COS Factor Table'!I$115,FALSE)*$H440","v":0},{"$f":"VLOOKUP($F440,FactSum,'COS Factor Table'!J$115,FALSE)*$H440","v":0},{"$f":"VLOOKUP($F440,FactSum,'COS Factor Table'!K$115,FALSE)*$H440","v":0},{"$f":"VLOOKUP($F440,FactSum,'COS Factor Table'!L$115,FALSE)*$H440","v":0},{"$f":"VLOOKUP($F440,FactSum,'COS Factor Table'!M$115,FALSE)*$H440","v":0},{"$f":"VLOOKUP($F440,FactSum,'COS Factor Table'!N$115,FALSE)*$H440","v":0},{"$f":"ROUND(SUM(I440:Q440)-H440,0)","v":0}]
[441]
[442,null,"569","Maintenance of Structures",null,"F106",null,{"$f":"SUM(UAcct569)","v":0},{"$f":"VLOOKUP($F442,FactSum,'COS Factor Table'!F$115,FALSE)*$H442","v":0},{"$f":"VLOOKUP($F442,FactSum,'COS Factor Table'!G$115,FALSE)*$H442","v":0},{"$f":"VLOOKUP($F442,FactSum,'COS Factor Table'!H$115,FALSE)*$H442","v":0},{"$f":"VLOOKUP($F442,FactSum,'COS Factor Table'!I$115,FALSE)*$H442","v":0},{"$f":"VLOOKUP($F442,FactSum,'COS Factor Table'!J$115,FALSE)*$H442","v":0},{"$f":"VLOOKUP($F442,FactSum,'COS Factor Table'!K$115,FALSE)*$H442","v":0},{"$f":"VLOOKUP($F442,FactSum,'COS Factor Table'!L$115,FALSE)*$H442","v":0},{"$f":"VLOOKUP($F442,FactSum,'COS Factor Table'!M$115,FALSE)*$H442","v":0},{"$f":"VLOOKUP($F442,FactSum,'COS Factor Table'!N$115,FALSE)*$H442","v":0},{"$f":"ROUND(SUM(I442:Q442)-H442,0)","v":0}]
[443]
[444,null,"570","Maint of Station Equipment",null,"F106",null,{"$f":"SUM(UAcct570)","v":0},{"$f":"VLOOKUP($F444,FactSum,'COS Factor Table'!F$115,FALSE)*$H444","v":0},{"$f":"VLOOKUP($F444,FactSum,'COS Factor Table'!G$115,FALSE)*$H444","v":0},{"$f":"VLOOKUP($F444,FactSum,'COS Factor Table'!H$115,FALSE)*$H444","v":0},{"$f":"VLOOKUP($F444,FactSum,'COS Factor Table'!I$115,FALSE)*$H444","v":0},{"$f":"VLOOKUP($F444,FactSum,'COS Factor Table'!J$115,FALSE)*$H444","v":0},{"$f":"VLOOKUP($F444,FactSum,'COS Factor Table'!K$115,FALSE)*$H444","v":0},{"$f":"VLOOKUP($F444,FactSum,'COS Factor Table'!L$115,FALSE)*$H444","v":0},{"$f":"VLOOKUP($F444,FactSum,'COS Factor Table'!M$115,FALSE)*$H444","v":0},{"$f":"VLOOKUP($F444,FactSum,'COS Factor Table'!N$115,FALSE)*$H444","v":0},{"$f":"ROUND(SUM(I444:Q444)-H444,0)","v":0}]
[445]
[446,null,"571","Maintenance of Overhead Lines",null,"F106",null,{"$f":"SUM(UAcct571)","v":0},{"$f":"VLOOKUP($F446,FactSum,'COS Factor Table'!F$115,FALSE)*$H446","v":0},{"$f":"VLOOKUP($F446,FactSum,'COS Factor Table'!G$115,FALSE)*$H446","v":0},{"$f":"VLOOKUP($F446,FactSum,'COS Factor Table'!H$115,FALSE)*$H446","v":0},{"$f":"VLOOKUP($F446,FactSum,'COS Factor Table'!I$115,FALSE)*$H446","v":0},{"$f":"VLOOKUP($F446,FactSum,'COS Factor Table'!J$115,FALSE)*$H446","v":0},{"$f":"VLOOKUP($F446,FactSum,'COS Factor Table'!K$115,FALSE)*$H446","v":0},{"$f":"VLOOKUP($F446,FactSum,'COS Factor Table'!L$115,FALSE)*$H446","v":0},{"$f":"VLOOKUP($F446,FactSum,'COS Factor Table'!M$115,FALSE)*$H446","v":0},{"$f":"VLOOKUP($F446,FactSum,'COS Factor Table'!N$115,FALSE)*$H446","v":0},{"$f":"ROUND(SUM(I446:Q446)-H446,0)","v":0}]
[447]
[448,null,"572","Maint of Underground Lines",null,"F106",null,{"$f":"SUM(UAcct572)","v":0},{"$f":"VLOOKUP($F448,FactSum,'COS Factor Table'!F$115,FALSE)*$H448","v":0},{"$f":"VLOOKUP($F448,FactSum,'COS Factor Table'!G$115,FALSE)*$H448","v":0},{"$f":"VLOOKUP($F448,FactSum,'COS Factor Table'!H$115,FALSE)*$H448","v":0},{"$f":"VLOOKUP($F448,FactSum,'COS Factor Table'!I$115,FALSE)*$H448","v":0},{"$f":"VLOOKUP($F448,FactSum,'COS Factor Table'!J$115,FALSE)*$H448","v":0},{"$f":"VLOOKUP($F448,FactSum,'COS Factor Table'!K$115,FALSE)*$H448","v":0},{"$f":"VLOOKUP($F448,FactSum,'COS Factor Table'!L$115,FALSE)*$H448","v":0},{"$f":"VLOOKUP($F448,FactSum,'COS Factor Table'!M$115,FALSE)*$H448","v":0},{"$f":"VLOOKUP($F448,FactSum,'COS Factor Table'!N$115,FALSE)*$H448","v":0},{"$f":"ROUND(SUM(I448:Q448)-H448,0)","v":0}]
[449]
[{"$f":"A449+1","v":450},null,"573","Maint of Misc Transmission Plant",null,"F106",null,{"$f":"SUM(UAcct573)","v":0},{"$f":"VLOOKUP($F450,FactSum,'COS Factor Table'!F$115,FALSE)*$H450","v":0},{"$f":"VLOOKUP($F450,FactSum,'COS Factor Table'!G$115,FALSE)*$H450","v":0},{"$f":"VLOOKUP($F450,FactSum,'COS Factor Table'!H$115,FALSE)*$H450","v":0},{"$f":"VLOOKUP($F450,FactSum,'COS Factor Table'!I$115,FALSE)*$H450","v":0},{"$f":"VLOOKUP($F450,FactSum,'COS Factor Table'!J$115,FALSE)*$H450","v":0},{"$f":"VLOOKUP($F450,FactSum,'COS Factor Table'!K$115,FALSE)*$H450","v":0},{"$f":"VLOOKUP($F450,FactSum,'COS Factor Table'!L$115,FALSE)*$H450","v":0},{"$f":"VLOOKUP($F450,FactSum,'COS Factor Table'!M$115,FALSE)*$H450","v":0},{"$f":"VLOOKUP($F450,FactSum,'COS Factor Table'!N$115,FALSE)*$H450","v":0},{"$f":"ROUND(SUM(I450:Q450)-H450,0)","v":0}]
[451]
[452]
[453,null,"TOTAL TRANSMISSION EXPENSE",null,null,null,null,{"$f":"SUM(H420:H431)+SUM(H432:H450)","v":0},0,0,0,0,0,0,0,{"$f":"SUM(P420:P431)+SUM(P436:P450)","v":0},{"$f":"SUM(Q420:Q431)+SUM(Q436:Q450)","v":0},{"$f":"ROUND(SUM(I453:Q453)-H453,0)","v":0}]
[454]
[455]
[456]
[457]
[458]
[459]
[460]
[461]
[462]
[463]
[464]
[465,null,{"$f":"$E$1","v":"Distribution - METER -  Unbundled"},null,null,null,null,"DISTRIBUTION EXPENSE"]
[466]
[467]
[468,null,"A",null,"B","C",null,"D","E","F","G","H","I","J","K","S","T"]
[469,null,null,null,null,null,null,{"$f":"'Hot Sheet'!$H$10","v":"Washington"},null,{"$f":"'Hot Sheet'!$J$10","v":"Small General"},{"$f":"'Hot Sheet'!$K$10","v":"Large General"},{"$f":"'Hot Sheet'!$L$10","v":"Large General"},{"$f":"'Hot Sheet'!$M$10","v":"Large General"},{"$f":"'Hot Sheet'!$N$10","v":"Agricultural"},{"$f":"'Hot Sheet'!$O$10","v":"Street & Area"}]
[470,null,"FERC",null,null,"COS",null,{"$f":"'Hot Sheet'!$H$11","v":"Jurisdiction"},{"$f":"'Hot Sheet'!$I$11","v":"Residential"},{"$f":"'Hot Sheet'!$J$11","v":"Service"},{"$f":"'Hot Sheet'!$K$11","v":"Service <1,000 kW"},{"$f":"'Hot Sheet'!$L$11","v":"Service >1,000 kW"},{"$f":"'Hot Sheet'!$M$11","v":"Dedicated Facilities"},{"$f":"'Hot Sheet'!$N$11","v":"Pumping"},{"$f":"'Hot Sheet'!$O$11","v":"Lighting"},{"$f":"'Hot Sheet'!P$11","v":"-"},{"$f":"'Hot Sheet'!Q$11","v":"-"}]
[471,null,"ACCT",null,"DESCRIPTION ","Factor",null,{"$f":"'Hot Sheet'!$H$12","v":"Normalized"},{"$f":"'Hot Sheet'!$I$12","v":"Schedule 16"},{"$f":"'Hot Sheet'!$J$12","v":"Schedule 24"},{"$f":"'Hot Sheet'!$K$12","v":"Schedule 36"},{"$f":"'Hot Sheet'!$L$12","v":"Schedule 48T"},{"$f":"'Hot Sheet'!$M$12","v":"Schedule 48T"},{"$f":"'Hot Sheet'!$N$12","v":"Schedule 40"},{"$f":"'Hot Sheet'!$O$12","v":"Sch. 15,51-54,57"},{"$f":"'Hot Sheet'!P$12","v":"-"},{"$f":"'Hot Sheet'!Q$12","v":"-"}]
[472,null,"580","Operation Supervision & Eng",null,"F131",null,{"$f":"SUM(UAcct580)","v":25719.170693972745},{"$f":"VLOOKUP($F472,FactSum,'COS Factor Table'!F$115,FALSE)*$H472","v":14490.19498072446},{"$f":"VLOOKUP($F472,FactSum,'COS Factor Table'!G$115,FALSE)*$H472","v":3792.7702024170771},{"$f":"VLOOKUP($F472,FactSum,'COS Factor Table'!H$115,FALSE)*$H472","v":3666.097488188349},{"$f":"VLOOKUP($F472,FactSum,'COS Factor Table'!I$115,FALSE)*$H472","v":1332.0523224121728},{"$f":"VLOOKUP($F472,FactSum,'COS Factor Table'!J$115,FALSE)*$H472","v":512.90473734143029},{"$f":"VLOOKUP($F472,FactSum,'COS Factor Table'!K$115,FALSE)*$H472","v":1321.7194127122279},{"$f":"VLOOKUP($F472,FactSum,'COS Factor Table'!L$115,FALSE)*$H472","v":603.43155017702998},{"$f":"VLOOKUP($F472,FactSum,'COS Factor Table'!M$115,FALSE)*$H472","v":0},{"$f":"VLOOKUP($F472,FactSum,'COS Factor Table'!N$115,FALSE)*$H472","v":0},{"$f":"ROUND(SUM(I472:Q472)-H472,0)","v":0}]
[473]
[474,null,"581","Load Dispatching",null,"F20",null,{"$f":"SUM(UAcct581)","v":0},{"$f":"VLOOKUP($F474,FactSum,'COS Factor Table'!F$115,FALSE)*$H474","v":0},{"$f":"VLOOKUP($F474,FactSum,'COS Factor Table'!G$115,FALSE)*$H474","v":0},{"$f":"VLOOKUP($F474,FactSum,'COS Factor Table'!H$115,FALSE)*$H474","v":0},{"$f":"VLOOKUP($F474,FactSum,'COS Factor Table'!I$115,FALSE)*$H474","v":0},{"$f":"VLOOKUP($F474,FactSum,'COS Factor Table'!J$115,FALSE)*$H474","v":0},{"$f":"VLOOKUP($F474,FactSum,'COS Factor Table'!K$115,FALSE)*$H474","v":0},{"$f":"VLOOKUP($F474,FactSum,'COS Factor Table'!L$115,FALSE)*$H474","v":0},{"$f":"VLOOKUP($F474,FactSum,'COS Factor Table'!M$115,FALSE)*$H474","v":0},{"$f":"VLOOKUP($F474,FactSum,'COS Factor Table'!N$115,FALSE)*$H474","v":0},{"$f":"ROUND(SUM(I474:Q474)-H474,0)","v":0}]
[475]
[476,null,"582","Station Expense",null,"F120",null,{"$f":"SUM(UAcct582)","v":0},{"$f":"VLOOKUP($F476,FactSum,'COS Factor Table'!F$115,FALSE)*$H476","v":0},{"$f":"VLOOKUP($F476,FactSum,'COS Factor Table'!G$115,FALSE)*$H476","v":0},{"$f":"VLOOKUP($F476,FactSum,'COS Factor Table'!H$115,FALSE)*$H476","v":0},{"$f":"VLOOKUP($F476,FactSum,'COS Factor Table'!I$115,FALSE)*$H476","v":0},{"$f":"VLOOKUP($F476,FactSum,'COS Factor Table'!J$115,FALSE)*$H476","v":0},{"$f":"VLOOKUP($F476,FactSum,'COS Factor Table'!K$115,FALSE)*$H476","v":0},{"$f":"VLOOKUP($F476,FactSum,'COS Factor Table'!L$115,FALSE)*$H476","v":0},{"$f":"VLOOKUP($F476,FactSum,'COS Factor Table'!M$115,FALSE)*$H476","v":0},{"$f":"VLOOKUP($F476,FactSum,'COS Factor Table'!N$115,FALSE)*$H476","v":0},{"$f":"ROUND(SUM(I476:Q476)-H476,0)","v":0}]
[477]
[478,null,"583","Overhead Line Expenses",null,"F132",null,{"$f":"SUM(UAcct583)","v":0},{"$f":"VLOOKUP($F478,FactSum,'COS Factor Table'!F$115,FALSE)*$H478","v":0},{"$f":"VLOOKUP($F478,FactSum,'COS Factor Table'!G$115,FALSE)*$H478","v":0},{"$f":"VLOOKUP($F478,FactSum,'COS Factor Table'!H$115,FALSE)*$H478","v":0},{"$f":"VLOOKUP($F478,FactSum,'COS Factor Table'!I$115,FALSE)*$H478","v":0},{"$f":"VLOOKUP($F478,FactSum,'COS Factor Table'!J$115,FALSE)*$H478","v":0},{"$f":"VLOOKUP($F478,FactSum,'COS Factor Table'!K$115,FALSE)*$H478","v":0},{"$f":"VLOOKUP($F478,FactSum,'COS Factor Table'!L$115,FALSE)*$H478","v":0},{"$f":"VLOOKUP($F478,FactSum,'COS Factor Table'!M$115,FALSE)*$H478","v":0},{"$f":"VLOOKUP($F478,FactSum,'COS Factor Table'!N$115,FALSE)*$H478","v":0},{"$f":"ROUND(SUM(I478:Q478)-H478,0)","v":0}]
[479]
[480,null,"584","Underground Line Expense",null,"F133",null,{"$f":"SUM(UAcct584)","v":0},{"$f":"VLOOKUP($F480,FactSum,'COS Factor Table'!F$115,FALSE)*$H480","v":0},{"$f":"VLOOKUP($F480,FactSum,'COS Factor Table'!G$115,FALSE)*$H480","v":0},{"$f":"VLOOKUP($F480,FactSum,'COS Factor Table'!H$115,FALSE)*$H480","v":0},{"$f":"VLOOKUP($F480,FactSum,'COS Factor Table'!I$115,FALSE)*$H480","v":0},{"$f":"VLOOKUP($F480,FactSum,'COS Factor Table'!J$115,FALSE)*$H480","v":0},{"$f":"VLOOKUP($F480,FactSum,'COS Factor Table'!K$115,FALSE)*$H480","v":0},{"$f":"VLOOKUP($F480,FactSum,'COS Factor Table'!L$115,FALSE)*$H480","v":0},{"$f":"VLOOKUP($F480,FactSum,'COS Factor Table'!M$115,FALSE)*$H480","v":0},{"$f":"VLOOKUP($F480,FactSum,'COS Factor Table'!N$115,FALSE)*$H480","v":0},{"$f":"ROUND(SUM(I480:Q480)-H480,0)","v":0}]
[481]
[482,null,"585","Street Lighting & Signal Systems",null,"F130",null,{"$f":"SUM(UAcct585)","v":14256.5274335944},{"$f":"VLOOKUP($F482,FactSum,'COS Factor Table'!F$115,FALSE)*$H482","v":0},{"$f":"VLOOKUP($F482,FactSum,'COS Factor Table'!G$115,FALSE)*$H482","v":0},{"$f":"VLOOKUP($F482,FactSum,'COS Factor Table'!H$115,FALSE)*$H482","v":0},{"$f":"VLOOKUP($F482,FactSum,'COS Factor Table'!I$115,FALSE)*$H482","v":0},{"$f":"VLOOKUP($F482,FactSum,'COS Factor Table'!J$115,FALSE)*$H482","v":0},{"$f":"VLOOKUP($F482,FactSum,'COS Factor Table'!K$115,FALSE)*$H482","v":0},{"$f":"VLOOKUP($F482,FactSum,'COS Factor Table'!L$115,FALSE)*$H482","v":14256.5274335944},{"$f":"VLOOKUP($F482,FactSum,'COS Factor Table'!M$115,FALSE)*$H482","v":0},{"$f":"VLOOKUP($F482,FactSum,'COS Factor Table'!N$115,FALSE)*$H482","v":0},{"$f":"ROUND(SUM(I482:Q482)-H482,0)","v":0}]
[483]
[484,null,"586","Meter Expenses",null,"F127",null,{"$f":"SUM(UAcct586)","v":636148.15424891119},{"$f":"VLOOKUP($F484,FactSum,'COS Factor Table'!F$115,FALSE)*$H484","v":432661.70257322217},{"$f":"VLOOKUP($F484,FactSum,'COS Factor Table'!G$115,FALSE)*$H484","v":103271.7154630173},{"$f":"VLOOKUP($F484,FactSum,'COS Factor Table'!H$115,FALSE)*$H484","v":48608.12424730062},{"$f":"VLOOKUP($F484,FactSum,'COS Factor Table'!I$115,FALSE)*$H484","v":7814.5467885586313},{"$f":"VLOOKUP($F484,FactSum,'COS Factor Table'!J$115,FALSE)*$H484","v":6154.2291130128169},{"$f":"VLOOKUP($F484,FactSum,'COS Factor Table'!K$115,FALSE)*$H484","v":37637.836063799696},{"$f":"VLOOKUP($F484,FactSum,'COS Factor Table'!L$115,FALSE)*$H484","v":0},{"$f":"VLOOKUP($F484,FactSum,'COS Factor Table'!M$115,FALSE)*$H484","v":0},{"$f":"VLOOKUP($F484,FactSum,'COS Factor Table'!N$115,FALSE)*$H484","v":0},{"$f":"ROUND(SUM(I484:Q484)-H484,0)","v":0}]
[485]
[486,null,"587","Customer Installation Expenses",null,"F20",null,{"$f":"SUM(UAcct587)","v":0},{"$f":"VLOOKUP($F486,FactSum,'COS Factor Table'!F$115,FALSE)*$H486","v":0},{"$f":"VLOOKUP($F486,FactSum,'COS Factor Table'!G$115,FALSE)*$H486","v":0},{"$f":"VLOOKUP($F486,FactSum,'COS Factor Table'!H$115,FALSE)*$H486","v":0},{"$f":"VLOOKUP($F486,FactSum,'COS Factor Table'!I$115,FALSE)*$H486","v":0},{"$f":"VLOOKUP($F486,FactSum,'COS Factor Table'!J$115,FALSE)*$H486","v":0},{"$f":"VLOOKUP($F486,FactSum,'COS Factor Table'!K$115,FALSE)*$H486","v":0},{"$f":"VLOOKUP($F486,FactSum,'COS Factor Table'!L$115,FALSE)*$H486","v":0},{"$f":"VLOOKUP($F486,FactSum,'COS Factor Table'!M$115,FALSE)*$H486","v":0},{"$f":"VLOOKUP($F486,FactSum,'COS Factor Table'!N$115,FALSE)*$H486","v":0},{"$f":"ROUND(SUM(I486:Q486)-H486,0)","v":0}]
[487]
[488,null,"588","Misc. Distribution Expenses",null,"F131",null,{"$f":"SUM(UAcct588)","v":0},{"$f":"VLOOKUP($F488,FactSum,'COS Factor Table'!F$115,FALSE)*$H488","v":0},{"$f":"VLOOKUP($F488,FactSum,'COS Factor Table'!G$115,FALSE)*$H488","v":0},{"$f":"VLOOKUP($F488,FactSum,'COS Factor Table'!H$115,FALSE)*$H488","v":0},{"$f":"VLOOKUP($F488,FactSum,'COS Factor Table'!I$115,FALSE)*$H488","v":0},{"$f":"VLOOKUP($F488,FactSum,'COS Factor Table'!J$115,FALSE)*$H488","v":0},{"$f":"VLOOKUP($F488,FactSum,'COS Factor Table'!K$115,FALSE)*$H488","v":0},{"$f":"VLOOKUP($F488,FactSum,'COS Factor Table'!L$115,FALSE)*$H488","v":0},{"$f":"VLOOKUP($F488,FactSum,'COS Factor Table'!M$115,FALSE)*$H488","v":0},{"$f":"VLOOKUP($F488,FactSum,'COS Factor Table'!N$115,FALSE)*$H488","v":0},{"$f":"ROUND(SUM(I488:Q488)-H488,0)","v":0}]
[489]
[490,null,"589","Rents",null,"F131",null,{"$f":"SUM(UAcct589)","v":0},{"$f":"VLOOKUP($F490,FactSum,'COS Factor Table'!F$115,FALSE)*$H490","v":0},{"$f":"VLOOKUP($F490,FactSum,'COS Factor Table'!G$115,FALSE)*$H490","v":0},{"$f":"VLOOKUP($F490,FactSum,'COS Factor Table'!H$115,FALSE)*$H490","v":0},{"$f":"VLOOKUP($F490,FactSum,'COS Factor Table'!I$115,FALSE)*$H490","v":0},{"$f":"VLOOKUP($F490,FactSum,'COS Factor Table'!J$115,FALSE)*$H490","v":0},{"$f":"VLOOKUP($F490,FactSum,'COS Factor Table'!K$115,FALSE)*$H490","v":0},{"$f":"VLOOKUP($F490,FactSum,'COS Factor Table'!L$115,FALSE)*$H490","v":0},{"$f":"VLOOKUP($F490,FactSum,'COS Factor Table'!M$115,FALSE)*$H490","v":0},{"$f":"VLOOKUP($F490,FactSum,'COS Factor Table'!N$115,FALSE)*$H490","v":0},{"$f":"ROUND(SUM(I490:Q490)-H490,0)","v":0}]
[491]
[492,null,"590","Maint Supervision & Engineering",null,"F131",null,{"$f":"SUM(UAcct590)","v":6985.7009357236921},{"$f":"VLOOKUP($F492,FactSum,'COS Factor Table'!F$115,FALSE)*$H492","v":3935.7477673021303},{"$f":"VLOOKUP($F492,FactSum,'COS Factor Table'!G$115,FALSE)*$H492","v":1030.1715660769348},{"$f":"VLOOKUP($F492,FactSum,'COS Factor Table'!H$115,FALSE)*$H492","v":995.7654139949916},{"$f":"VLOOKUP($F492,FactSum,'COS Factor Table'!I$115,FALSE)*$H492","v":361.80479012444681},{"$f":"VLOOKUP($F492,FactSum,'COS Factor Table'!J$115,FALSE)*$H492","v":139.31238865422731},{"$f":"VLOOKUP($F492,FactSum,'COS Factor Table'!K$115,FALSE)*$H492","v":358.99822152165092},{"$f":"VLOOKUP($F492,FactSum,'COS Factor Table'!L$115,FALSE)*$H492","v":163.90078804931096},{"$f":"VLOOKUP($F492,FactSum,'COS Factor Table'!M$115,FALSE)*$H492","v":0},{"$f":"VLOOKUP($F492,FactSum,'COS Factor Table'!N$115,FALSE)*$H492","v":0},{"$f":"ROUND(SUM(I492:Q492)-H492,0)","v":0}]
[493]
[494,null,"591","Maintenance of Structures",null,"F119",null,{"$f":"SUM(UAcct591)","v":0},{"$f":"VLOOKUP($F494,FactSum,'COS Factor Table'!F$115,FALSE)*$H494","v":0},{"$f":"VLOOKUP($F494,FactSum,'COS Factor Table'!G$115,FALSE)*$H494","v":0},{"$f":"VLOOKUP($F494,FactSum,'COS Factor Table'!H$115,FALSE)*$H494","v":0},{"$f":"VLOOKUP($F494,FactSum,'COS Factor Table'!I$115,FALSE)*$H494","v":0},{"$f":"VLOOKUP($F494,FactSum,'COS Factor Table'!J$115,FALSE)*$H494","v":0},{"$f":"VLOOKUP($F494,FactSum,'COS Factor Table'!K$115,FALSE)*$H494","v":0},{"$f":"VLOOKUP($F494,FactSum,'COS Factor Table'!L$115,FALSE)*$H494","v":0},{"$f":"VLOOKUP($F494,FactSum,'COS Factor Table'!M$115,FALSE)*$H494","v":0},{"$f":"VLOOKUP($F494,FactSum,'COS Factor Table'!N$115,FALSE)*$H494","v":0},{"$f":"ROUND(SUM(I494:Q494)-H494,0)","v":0}]
[495]
[496,null,"592","Maint of Station Equipment",null,"F120",null,{"$f":"SUM(UAcct592)","v":0},{"$f":"VLOOKUP($F496,FactSum,'COS Factor Table'!F$115,FALSE)*$H496","v":0},{"$f":"VLOOKUP($F496,FactSum,'COS Factor Table'!G$115,FALSE)*$H496","v":0},{"$f":"VLOOKUP($F496,FactSum,'COS Factor Table'!H$115,FALSE)*$H496","v":0},{"$f":"VLOOKUP($F496,FactSum,'COS Factor Table'!I$115,FALSE)*$H496","v":0},{"$f":"VLOOKUP($F496,FactSum,'COS Factor Table'!J$115,FALSE)*$H496","v":0},{"$f":"VLOOKUP($F496,FactSum,'COS Factor Table'!K$115,FALSE)*$H496","v":0},{"$f":"VLOOKUP($F496,FactSum,'COS Factor Table'!L$115,FALSE)*$H496","v":0},{"$f":"VLOOKUP($F496,FactSum,'COS Factor Table'!M$115,FALSE)*$H496","v":0},{"$f":"VLOOKUP($F496,FactSum,'COS Factor Table'!N$115,FALSE)*$H496","v":0},{"$f":"ROUND(SUM(I496:Q496)-H496,0)","v":0}]
[497]
[498,null,"593","Maintenance of Overhead Lines",null,"F134",null,{"$f":"SUM(UAcct593)","v":0},{"$f":"VLOOKUP($F498,FactSum,'COS Factor Table'!F$115,FALSE)*$H498","v":0},{"$f":"VLOOKUP($F498,FactSum,'COS Factor Table'!G$115,FALSE)*$H498","v":0},{"$f":"VLOOKUP($F498,FactSum,'COS Factor Table'!H$115,FALSE)*$H498","v":0},{"$f":"VLOOKUP($F498,FactSum,'COS Factor Table'!I$115,FALSE)*$H498","v":0},{"$f":"VLOOKUP($F498,FactSum,'COS Factor Table'!J$115,FALSE)*$H498","v":0},{"$f":"VLOOKUP($F498,FactSum,'COS Factor Table'!K$115,FALSE)*$H498","v":0},{"$f":"VLOOKUP($F498,FactSum,'COS Factor Table'!L$115,FALSE)*$H498","v":0},{"$f":"VLOOKUP($F498,FactSum,'COS Factor Table'!M$115,FALSE)*$H498","v":0},{"$f":"VLOOKUP($F498,FactSum,'COS Factor Table'!N$115,FALSE)*$H498","v":0},{"$f":"ROUND(SUM(I498:Q498)-H498,0)","v":0}]
[499]
[500,null,"594","Maint of Underground Lines",null,"F135",null,{"$f":"SUM(UAcct594)","v":0},{"$f":"VLOOKUP($F500,FactSum,'COS Factor Table'!F$115,FALSE)*$H500","v":0},{"$f":"VLOOKUP($F500,FactSum,'COS Factor Table'!G$115,FALSE)*$H500","v":0},{"$f":"VLOOKUP($F500,FactSum,'COS Factor Table'!H$115,FALSE)*$H500","v":0},{"$f":"VLOOKUP($F500,FactSum,'COS Factor Table'!I$115,FALSE)*$H500","v":0},{"$f":"VLOOKUP($F500,FactSum,'COS Factor Table'!J$115,FALSE)*$H500","v":0},{"$f":"VLOOKUP($F500,FactSum,'COS Factor Table'!K$115,FALSE)*$H500","v":0},{"$f":"VLOOKUP($F500,FactSum,'COS Factor Table'!L$115,FALSE)*$H500","v":0},{"$f":"VLOOKUP($F500,FactSum,'COS Factor Table'!M$115,FALSE)*$H500","v":0},{"$f":"VLOOKUP($F500,FactSum,'COS Factor Table'!N$115,FALSE)*$H500","v":0},{"$f":"ROUND(SUM(I500:Q500)-H500,0)","v":0}]
[501]
[502,null,"595","Maint of Line Transformers",null,"F125",null,{"$f":"SUM(UAcct595)","v":0},{"$f":"VLOOKUP($F502,FactSum,'COS Factor Table'!F$115,FALSE)*$H502","v":0},{"$f":"VLOOKUP($F502,FactSum,'COS Factor Table'!G$115,FALSE)*$H502","v":0},{"$f":"VLOOKUP($F502,FactSum,'COS Factor Table'!H$115,FALSE)*$H502","v":0},{"$f":"VLOOKUP($F502,FactSum,'COS Factor Table'!I$115,FALSE)*$H502","v":0},{"$f":"VLOOKUP($F502,FactSum,'COS Factor Table'!J$115,FALSE)*$H502","v":0},{"$f":"VLOOKUP($F502,FactSum,'COS Factor Table'!K$115,FALSE)*$H502","v":0},{"$f":"VLOOKUP($F502,FactSum,'COS Factor Table'!L$115,FALSE)*$H502","v":0},{"$f":"VLOOKUP($F502,FactSum,'COS Factor Table'!M$115,FALSE)*$H502","v":0},{"$f":"VLOOKUP($F502,FactSum,'COS Factor Table'!N$115,FALSE)*$H502","v":0},{"$f":"ROUND(SUM(I502:Q502)-H502,0)","v":0}]
[503]
[504,null,"596","Maint of Street Lighting & Signals",null,"F130",null,{"$f":"SUM(UAcct596)","v":0},{"$f":"VLOOKUP($F504,FactSum,'COS Factor Table'!F$115,FALSE)*$H504","v":0},{"$f":"VLOOKUP($F504,FactSum,'COS Factor Table'!G$115,FALSE)*$H504","v":0},{"$f":"VLOOKUP($F504,FactSum,'COS Factor Table'!H$115,FALSE)*$H504","v":0},{"$f":"VLOOKUP($F504,FactSum,'COS Factor Table'!I$115,FALSE)*$H504","v":0},{"$f":"VLOOKUP($F504,FactSum,'COS Factor Table'!J$115,FALSE)*$H504","v":0},{"$f":"VLOOKUP($F504,FactSum,'COS Factor Table'!K$115,FALSE)*$H504","v":0},{"$f":"VLOOKUP($F504,FactSum,'COS Factor Table'!L$115,FALSE)*$H504","v":0},{"$f":"VLOOKUP($F504,FactSum,'COS Factor Table'!M$115,FALSE)*$H504","v":0},{"$f":"VLOOKUP($F504,FactSum,'COS Factor Table'!N$115,FALSE)*$H504","v":0},{"$f":"ROUND(SUM(I504:Q504)-H504,0)","v":0}]
[505]
[506,null,"597","Maintenance of Meters",null,"F127",null,{"$f":"SUM(UAcct597)","v":441912.15099998261},{"$f":"VLOOKUP($F506,FactSum,'COS Factor Table'!F$115,FALSE)*$H506","v":300556.50144138501},{"$f":"VLOOKUP($F506,FactSum,'COS Factor Table'!G$115,FALSE)*$H506","v":71739.6185352498},{"$f":"VLOOKUP($F506,FactSum,'COS Factor Table'!H$115,FALSE)*$H506","v":33766.53787129304},{"$f":"VLOOKUP($F506,FactSum,'COS Factor Table'!I$115,FALSE)*$H506","v":5428.5203177226094},{"$f":"VLOOKUP($F506,FactSum,'COS Factor Table'!J$115,FALSE)*$H506","v":4275.1497538953427},{"$f":"VLOOKUP($F506,FactSum,'COS Factor Table'!K$115,FALSE)*$H506","v":26145.823080436789},{"$f":"VLOOKUP($F506,FactSum,'COS Factor Table'!L$115,FALSE)*$H506","v":0},{"$f":"VLOOKUP($F506,FactSum,'COS Factor Table'!M$115,FALSE)*$H506","v":0},{"$f":"VLOOKUP($F506,FactSum,'COS Factor Table'!N$115,FALSE)*$H506","v":0},{"$f":"ROUND(SUM(I506:Q506)-H506,0)","v":0}]
[507]
[508,null,"598","Maint of Misc. Distribution Plant",null,"F131",null,{"$f":"SUM(UAcct598)","v":0},{"$f":"VLOOKUP($F508,FactSum,'COS Factor Table'!F$115,FALSE)*$H508","v":0},{"$f":"VLOOKUP($F508,FactSum,'COS Factor Table'!G$115,FALSE)*$H508","v":0},{"$f":"VLOOKUP($F508,FactSum,'COS Factor Table'!H$115,FALSE)*$H508","v":0},{"$f":"VLOOKUP($F508,FactSum,'COS Factor Table'!I$115,FALSE)*$H508","v":0},{"$f":"VLOOKUP($F508,FactSum,'COS Factor Table'!J$115,FALSE)*$H508","v":0},{"$f":"VLOOKUP($F508,FactSum,'COS Factor Table'!K$115,FALSE)*$H508","v":0},{"$f":"VLOOKUP($F508,FactSum,'COS Factor Table'!L$115,FALSE)*$H508","v":0},{"$f":"VLOOKUP($F508,FactSum,'COS Factor Table'!M$115,FALSE)*$H508","v":0},{"$f":"VLOOKUP($F508,FactSum,'COS Factor Table'!N$115,FALSE)*$H508","v":0},{"$f":"ROUND(SUM(I508:Q508)-H508,0)","v":0}]
[509]
[510,null,"TOTAL DISTRIBUTION EXPENSE",null,null,null,null,{"$f":"SUM(H472:H508)","v":1125021.7043121848},{"$f":"SUM(I472:I508)","v":751644.14676263381},179834.2757667611,87036.525020777,14936.924218817861,{"$f":"SUM(M472:M508)","v":11081.595992903818},65464.376778470367,15023.859771820742,{"$f":"SUM(P472:P508)","v":0},{"$f":"SUM(Q472:Q508)","v":0},{"$f":"ROUND(SUM(I510:Q510)-H510,0)","v":0}]
[511]
[512]
[513,null,null,null,null,null,null,"CUSTOMER ACCOUNTS EXPENSE"]
[{"$f":"A513+1","v":514}]
[515]
[516,null,"901","Supervision",null,"F136",null,{"$f":"SUM(UAcct901)","v":0},{"$f":"VLOOKUP($F516,FactSum,'COS Factor Table'!F$115,FALSE)*$H516","v":0},{"$f":"VLOOKUP($F516,FactSum,'COS Factor Table'!G$115,FALSE)*$H516","v":0},{"$f":"VLOOKUP($F516,FactSum,'COS Factor Table'!H$115,FALSE)*$H516","v":0},{"$f":"VLOOKUP($F516,FactSum,'COS Factor Table'!I$115,FALSE)*$H516","v":0},{"$f":"VLOOKUP($F516,FactSum,'COS Factor Table'!J$115,FALSE)*$H516","v":0},{"$f":"VLOOKUP($F516,FactSum,'COS Factor Table'!K$115,FALSE)*$H516","v":0},{"$f":"VLOOKUP($F516,FactSum,'COS Factor Table'!L$115,FALSE)*$H516","v":0},{"$f":"VLOOKUP($F516,FactSum,'COS Factor Table'!M$115,FALSE)*$H516","v":0},{"$f":"VLOOKUP($F516,FactSum,'COS Factor Table'!N$115,FALSE)*$H516","v":0},{"$f":"ROUND(SUM(I516:Q516)-H516,0)","v":0}]
[517]
[518,null,"902","Meter Reading Expense",null,"F41",null,{"$f":"SUM(UAcct902)","v":0},{"$f":"VLOOKUP($F518,FactSum,'COS Factor Table'!F$115,FALSE)*$H518","v":0},{"$f":"VLOOKUP($F518,FactSum,'COS Factor Table'!G$115,FALSE)*$H518","v":0},{"$f":"VLOOKUP($F518,FactSum,'COS Factor Table'!H$115,FALSE)*$H518","v":0},{"$f":"VLOOKUP($F518,FactSum,'COS Factor Table'!I$115,FALSE)*$H518","v":0},{"$f":"VLOOKUP($F518,FactSum,'COS Factor Table'!J$115,FALSE)*$H518","v":0},{"$f":"VLOOKUP($F518,FactSum,'COS Factor Table'!K$115,FALSE)*$H518","v":0},{"$f":"VLOOKUP($F518,FactSum,'COS Factor Table'!L$115,FALSE)*$H518","v":0},{"$f":"VLOOKUP($F518,FactSum,'COS Factor Table'!M$115,FALSE)*$H518","v":0},{"$f":"VLOOKUP($F518,FactSum,'COS Factor Table'!N$115,FALSE)*$H518","v":0},{"$f":"ROUND(SUM(I518:Q518)-H518,0)","v":0}]
[519]
[520,null,"903","Customer Receipts & Collections",null,"F42",null,{"$f":"SUM(UAcct903)","v":0},{"$f":"VLOOKUP($F520,FactSum,'COS Factor Table'!F$115,FALSE)*$H520","v":0},{"$f":"VLOOKUP($F520,FactSum,'COS Factor Table'!G$115,FALSE)*$H520","v":0},{"$f":"VLOOKUP($F520,FactSum,'COS Factor Table'!H$115,FALSE)*$H520","v":0},{"$f":"VLOOKUP($F520,FactSum,'COS Factor Table'!I$115,FALSE)*$H520","v":0},{"$f":"VLOOKUP($F520,FactSum,'COS Factor Table'!J$115,FALSE)*$H520","v":0},{"$f":"VLOOKUP($F520,FactSum,'COS Factor Table'!K$115,FALSE)*$H520","v":0},{"$f":"VLOOKUP($F520,FactSum,'COS Factor Table'!L$115,FALSE)*$H520","v":0},{"$f":"VLOOKUP($F520,FactSum,'COS Factor Table'!M$115,FALSE)*$H520","v":0},{"$f":"VLOOKUP($F520,FactSum,'COS Factor Table'!N$115,FALSE)*$H520","v":0},{"$f":"ROUND(SUM(I520:Q520)-H520,0)","v":0}]
[521]
[522,null,"904","Uncollectible Accounts",null,"F80",null,{"$f":"SUM(UAcct904)","v":0},{"$f":"VLOOKUP($F522,FactSum,'COS Factor Table'!F$115,FALSE)*$H522","v":0},{"$f":"VLOOKUP($F522,FactSum,'COS Factor Table'!G$115,FALSE)*$H522","v":0},{"$f":"VLOOKUP($F522,FactSum,'COS Factor Table'!H$115,FALSE)*$H522","v":0},{"$f":"VLOOKUP($F522,FactSum,'COS Factor Table'!I$115,FALSE)*$H522","v":0},{"$f":"VLOOKUP($F522,FactSum,'COS Factor Table'!J$115,FALSE)*$H522","v":0},{"$f":"VLOOKUP($F522,FactSum,'COS Factor Table'!K$115,FALSE)*$H522","v":0},{"$f":"VLOOKUP($F522,FactSum,'COS Factor Table'!L$115,FALSE)*$H522","v":0},{"$f":"VLOOKUP($F522,FactSum,'COS Factor Table'!M$115,FALSE)*$H522","v":0},{"$f":"VLOOKUP($F522,FactSum,'COS Factor Table'!N$115,FALSE)*$H522","v":0},{"$f":"ROUND(SUM(I522:Q522)-H522,0)","v":0}]
[523]
[524,null,"905","Misc. Customer Accounts Exp",null,"F136",null,{"$f":"SUM(UAcct905)","v":0},{"$f":"VLOOKUP($F524,FactSum,'COS Factor Table'!F$115,FALSE)*$H524","v":0},{"$f":"VLOOKUP($F524,FactSum,'COS Factor Table'!G$115,FALSE)*$H524","v":0},{"$f":"VLOOKUP($F524,FactSum,'COS Factor Table'!H$115,FALSE)*$H524","v":0},{"$f":"VLOOKUP($F524,FactSum,'COS Factor Table'!I$115,FALSE)*$H524","v":0},{"$f":"VLOOKUP($F524,FactSum,'COS Factor Table'!J$115,FALSE)*$H524","v":0},{"$f":"VLOOKUP($F524,FactSum,'COS Factor Table'!K$115,FALSE)*$H524","v":0},{"$f":"VLOOKUP($F524,FactSum,'COS Factor Table'!L$115,FALSE)*$H524","v":0},{"$f":"VLOOKUP($F524,FactSum,'COS Factor Table'!M$115,FALSE)*$H524","v":0},{"$f":"VLOOKUP($F524,FactSum,'COS Factor Table'!N$115,FALSE)*$H524","v":0},{"$f":"ROUND(SUM(I524:Q524)-H524,0)","v":0}]
[525]
[526,null,"TOTAL CUSTOMER ACCOUNTS EXPENSE",null,null,null,null,{"$f":"SUM(H516:H524)","v":0},{"$f":"SUM(I516:I524)","v":0},0,0,0,{"$f":"SUM(M516:M524)","v":0},0,0,{"$f":"SUM(P516:P524)","v":0},{"$f":"SUM(Q516:Q524)","v":0},{"$f":"ROUND(SUM(I526:Q526)-H526,0)","v":0}]
[527]
[528,null,{"$f":"$E$1","v":"Distribution - METER -  Unbundled"},null,null,null,null,"CUSTOMER SERVICE EXPENSE"]
[529]
[530,null,"A",null,"B","C",null,"D","E","F","G","H","I","J","K","S","T"]
[531,null,null,null,null,null,null,{"$f":"'Hot Sheet'!$H$10","v":"Washington"},null,{"$f":"'Hot Sheet'!$J$10","v":"Small General"},{"$f":"'Hot Sheet'!$K$10","v":"Large General"},{"$f":"'Hot Sheet'!$L$10","v":"Large General"},{"$f":"'Hot Sheet'!$M$10","v":"Large General"},{"$f":"'Hot Sheet'!$N$10","v":"Agricultural"},{"$f":"'Hot Sheet'!$O$10","v":"Street & Area"}]
[532,null,"FERC",null,null,"COS",null,{"$f":"'Hot Sheet'!$H$11","v":"Jurisdiction"},{"$f":"'Hot Sheet'!$I$11","v":"Residential"},{"$f":"'Hot Sheet'!$J$11","v":"Service"},{"$f":"'Hot Sheet'!$K$11","v":"Service <1,000 kW"},{"$f":"'Hot Sheet'!$L$11","v":"Service >1,000 kW"},{"$f":"'Hot Sheet'!$M$11","v":"Dedicated Facilities"},{"$f":"'Hot Sheet'!$N$11","v":"Pumping"},{"$f":"'Hot Sheet'!$O$11","v":"Lighting"},{"$f":"'Hot Sheet'!P$11","v":"-"},{"$f":"'Hot Sheet'!Q$11","v":"-"}]
[533,null,"ACCT",null,"DESCRIPTION ","Factor",null,{"$f":"'Hot Sheet'!$H$12","v":"Normalized"},{"$f":"'Hot Sheet'!$I$12","v":"Schedule 16"},{"$f":"'Hot Sheet'!$J$12","v":"Schedule 24"},{"$f":"'Hot Sheet'!$K$12","v":"Schedule 36"},{"$f":"'Hot Sheet'!$L$12","v":"Schedule 48T"},{"$f":"'Hot Sheet'!$M$12","v":"Schedule 48T"},{"$f":"'Hot Sheet'!$N$12","v":"Schedule 40"},{"$f":"'Hot Sheet'!$O$12","v":"Sch. 15,51-54,57"},{"$f":"'Hot Sheet'!P$12","v":"-"},{"$f":"'Hot Sheet'!Q$12","v":"-"}]
[534,null,"907","Supervision",null,"F40",null,{"$f":"SUM(UAcct907)","v":0},{"$f":"VLOOKUP($F534,FactSum,'COS Factor Table'!F$115,FALSE)*$H534","v":0},{"$f":"VLOOKUP($F534,FactSum,'COS Factor Table'!G$115,FALSE)*$H534","v":0},{"$f":"VLOOKUP($F534,FactSum,'COS Factor Table'!H$115,FALSE)*$H534","v":0},{"$f":"VLOOKUP($F534,FactSum,'COS Factor Table'!I$115,FALSE)*$H534","v":0},{"$f":"VLOOKUP($F534,FactSum,'COS Factor Table'!J$115,FALSE)*$H534","v":0},{"$f":"VLOOKUP($F534,FactSum,'COS Factor Table'!K$115,FALSE)*$H534","v":0},{"$f":"VLOOKUP($F534,FactSum,'COS Factor Table'!L$115,FALSE)*$H534","v":0},{"$f":"VLOOKUP($F534,FactSum,'COS Factor Table'!M$115,FALSE)*$H534","v":0},{"$f":"VLOOKUP($F534,FactSum,'COS Factor Table'!N$115,FALSE)*$H534","v":0},{"$f":"ROUND(SUM(I534:Q534)-H534,0)","v":0}]
[535]
[536,null,"908","Customer Assistance",null,"F40",null,{"$f":"SUM(UAcct908)","v":0},{"$f":"VLOOKUP($F536,FactSum,'COS Factor Table'!F$115,FALSE)*$H536","v":0},{"$f":"VLOOKUP($F536,FactSum,'COS Factor Table'!G$115,FALSE)*$H536","v":0},{"$f":"VLOOKUP($F536,FactSum,'COS Factor Table'!H$115,FALSE)*$H536","v":0},{"$f":"VLOOKUP($F536,FactSum,'COS Factor Table'!I$115,FALSE)*$H536","v":0},{"$f":"VLOOKUP($F536,FactSum,'COS Factor Table'!J$115,FALSE)*$H536","v":0},{"$f":"VLOOKUP($F536,FactSum,'COS Factor Table'!K$115,FALSE)*$H536","v":0},{"$f":"VLOOKUP($F536,FactSum,'COS Factor Table'!L$115,FALSE)*$H536","v":0},{"$f":"VLOOKUP($F536,FactSum,'COS Factor Table'!M$115,FALSE)*$H536","v":0},{"$f":"VLOOKUP($F536,FactSum,'COS Factor Table'!N$115,FALSE)*$H536","v":0},{"$f":"ROUND(SUM(I536:Q536)-H536,0)","v":0}]
[537]
[538,null,"909","Informational & Instructional Adv",null,"F40",null,{"$f":"SUM(UAcct909)","v":0},{"$f":"VLOOKUP($F538,FactSum,'COS Factor Table'!F$115,FALSE)*$H538","v":0},{"$f":"VLOOKUP($F538,FactSum,'COS Factor Table'!G$115,FALSE)*$H538","v":0},{"$f":"VLOOKUP($F538,FactSum,'COS Factor Table'!H$115,FALSE)*$H538","v":0},{"$f":"VLOOKUP($F538,FactSum,'COS Factor Table'!I$115,FALSE)*$H538","v":0},{"$f":"VLOOKUP($F538,FactSum,'COS Factor Table'!J$115,FALSE)*$H538","v":0},{"$f":"VLOOKUP($F538,FactSum,'COS Factor Table'!K$115,FALSE)*$H538","v":0},{"$f":"VLOOKUP($F538,FactSum,'COS Factor Table'!L$115,FALSE)*$H538","v":0},{"$f":"VLOOKUP($F538,FactSum,'COS Factor Table'!M$115,FALSE)*$H538","v":0},{"$f":"VLOOKUP($F538,FactSum,'COS Factor Table'!N$115,FALSE)*$H538","v":0},{"$f":"ROUND(SUM(I538:Q538)-H538,0)","v":0}]
[539]
[540,null,"910","Misc. Customer Service",null,"F40",null,{"$f":"SUM(UAcct910)","v":0},{"$f":"VLOOKUP($F540,FactSum,'COS Factor Table'!F$115,FALSE)*$H540","v":0},{"$f":"VLOOKUP($F540,FactSum,'COS Factor Table'!G$115,FALSE)*$H540","v":0},{"$f":"VLOOKUP($F540,FactSum,'COS Factor Table'!H$115,FALSE)*$H540","v":0},{"$f":"VLOOKUP($F540,FactSum,'COS Factor Table'!I$115,FALSE)*$H540","v":0},{"$f":"VLOOKUP($F540,FactSum,'COS Factor Table'!J$115,FALSE)*$H540","v":0},{"$f":"VLOOKUP($F540,FactSum,'COS Factor Table'!K$115,FALSE)*$H540","v":0},{"$f":"VLOOKUP($F540,FactSum,'COS Factor Table'!L$115,FALSE)*$H540","v":0},{"$f":"VLOOKUP($F540,FactSum,'COS Factor Table'!M$115,FALSE)*$H540","v":0},{"$f":"VLOOKUP($F540,FactSum,'COS Factor Table'!N$115,FALSE)*$H540","v":0},{"$f":"ROUND(SUM(I540:Q540)-H540,0)","v":0}]
[541]
[542,null,"TOTAL CUSTOMER SERVICE EXPENSE",null,null,null,null,{"$f":"SUM(H534:H540)","v":0},{"$f":"SUM(I534:I540)","v":0},0,0,0,{"$f":"SUM(M534:M540)","v":0},0,0,{"$f":"SUM(P534:P540)","v":0},{"$f":"SUM(Q534:Q540)","v":0},{"$f":"ROUND(SUM(I542:Q542)-H542,0)","v":0}]
[543]
[544]
[545,null,null,null,null,null,null,"SALES EXPENSE"]
[546]
[547]
[548,null,"911","Supervision",null,"F40",null,{"$f":"SUM(UAcct911)","v":0},{"$f":"VLOOKUP($F548,FactSum,'COS Factor Table'!F$115,FALSE)*$H548","v":0},{"$f":"VLOOKUP($F548,FactSum,'COS Factor Table'!G$115,FALSE)*$H548","v":0},{"$f":"VLOOKUP($F548,FactSum,'COS Factor Table'!H$115,FALSE)*$H548","v":0},{"$f":"VLOOKUP($F548,FactSum,'COS Factor Table'!I$115,FALSE)*$H548","v":0},{"$f":"VLOOKUP($F548,FactSum,'COS Factor Table'!J$115,FALSE)*$H548","v":0},{"$f":"VLOOKUP($F548,FactSum,'COS Factor Table'!K$115,FALSE)*$H548","v":0},{"$f":"VLOOKUP($F548,FactSum,'COS Factor Table'!L$115,FALSE)*$H548","v":0},{"$f":"VLOOKUP($F548,FactSum,'COS Factor Table'!M$115,FALSE)*$H548","v":0},{"$f":"VLOOKUP($F548,FactSum,'COS Factor Table'!N$115,FALSE)*$H548","v":0},{"$f":"ROUND(SUM(I548:Q548)-H548,0)","v":0}]
[549]
[550,null,"912","Demonstration & Selling Expense",null,"F40",null,{"$f":"SUM(UAcct912)","v":0},{"$f":"VLOOKUP($F550,FactSum,'COS Factor Table'!F$115,FALSE)*$H550","v":0},{"$f":"VLOOKUP($F550,FactSum,'COS Factor Table'!G$115,FALSE)*$H550","v":0},{"$f":"VLOOKUP($F550,FactSum,'COS Factor Table'!H$115,FALSE)*$H550","v":0},{"$f":"VLOOKUP($F550,FactSum,'COS Factor Table'!I$115,FALSE)*$H550","v":0},{"$f":"VLOOKUP($F550,FactSum,'COS Factor Table'!J$115,FALSE)*$H550","v":0},{"$f":"VLOOKUP($F550,FactSum,'COS Factor Table'!K$115,FALSE)*$H550","v":0},{"$f":"VLOOKUP($F550,FactSum,'COS Factor Table'!L$115,FALSE)*$H550","v":0},{"$f":"VLOOKUP($F550,FactSum,'COS Factor Table'!M$115,FALSE)*$H550","v":0},{"$f":"VLOOKUP($F550,FactSum,'COS Factor Table'!N$115,FALSE)*$H550","v":0},{"$f":"ROUND(SUM(I550:Q550)-H550,0)","v":0}]
[551]
[552,null,"913","Advertising Expense",null,"F40",null,{"$f":"SUM(UAcct913)","v":0},{"$f":"VLOOKUP($F552,FactSum,'COS Factor Table'!F$115,FALSE)*$H552","v":0},{"$f":"VLOOKUP($F552,FactSum,'COS Factor Table'!G$115,FALSE)*$H552","v":0},{"$f":"VLOOKUP($F552,FactSum,'COS Factor Table'!H$115,FALSE)*$H552","v":0},{"$f":"VLOOKUP($F552,FactSum,'COS Factor Table'!I$115,FALSE)*$H552","v":0},{"$f":"VLOOKUP($F552,FactSum,'COS Factor Table'!J$115,FALSE)*$H552","v":0},{"$f":"VLOOKUP($F552,FactSum,'COS Factor Table'!K$115,FALSE)*$H552","v":0},{"$f":"VLOOKUP($F552,FactSum,'COS Factor Table'!L$115,FALSE)*$H552","v":0},{"$f":"VLOOKUP($F552,FactSum,'COS Factor Table'!M$115,FALSE)*$H552","v":0},{"$f":"VLOOKUP($F552,FactSum,'COS Factor Table'!N$115,FALSE)*$H552","v":0},{"$f":"ROUND(SUM(I552:Q552)-H552,0)","v":0}]
[553]
[554,null,"916","Misc. Sales Expense",null,"F40",null,{"$f":"SUM(UAcct916)","v":0},{"$f":"VLOOKUP($F554,FactSum,'COS Factor Table'!F$115,FALSE)*$H554","v":0},{"$f":"VLOOKUP($F554,FactSum,'COS Factor Table'!G$115,FALSE)*$H554","v":0},{"$f":"VLOOKUP($F554,FactSum,'COS Factor Table'!H$115,FALSE)*$H554","v":0},{"$f":"VLOOKUP($F554,FactSum,'COS Factor Table'!I$115,FALSE)*$H554","v":0},{"$f":"VLOOKUP($F554,FactSum,'COS Factor Table'!J$115,FALSE)*$H554","v":0},{"$f":"VLOOKUP($F554,FactSum,'COS Factor Table'!K$115,FALSE)*$H554","v":0},{"$f":"VLOOKUP($F554,FactSum,'COS Factor Table'!L$115,FALSE)*$H554","v":0},{"$f":"VLOOKUP($F554,FactSum,'COS Factor Table'!M$115,FALSE)*$H554","v":0},{"$f":"VLOOKUP($F554,FactSum,'COS Factor Table'!N$115,FALSE)*$H554","v":0},{"$f":"ROUND(SUM(I554:Q554)-H554,0)","v":0}]
[555]
[556,null,"TOTAL SALES EXPENSE",null,null,null,null,{"$f":"SUM(H548:H554)","v":0},{"$f":"SUM(I547:I554)","v":0},0,0,0,{"$f":"SUM(M547:M554)","v":0},0,0,{"$f":"SUM(P547:P554)","v":0},{"$f":"SUM(Q547:Q554)","v":0},{"$f":"ROUND(SUM(I556:Q556)-H556,0)","v":0}]
[557]
[558]
[559,null,null,null,null,null,null,"ADMINISTRATION & GENERAL EXPENSE"]
[560]
[561]
[562,null,"920","Administrative & General Salaries",null,{"$f":"IF(Function=\"gen\",\"F102G\",IF(Function=\"TRN\",\"F102T\",IF(Function=\"DIS\",\"F102D\",IF(Function=\"RETAIL\",\"F102R\",IF(Function=\"MISC\",\"F102M\",\"ERR\")))))","v":"F102D"},null,{"$f":"UAcct920-UAcct920Cn","v":41280.336085776369},{"$f":"VLOOKUP($F562,FactSum,'COS Factor Table'!F$115,FALSE)*$H562","v":24439.269708974181},{"$f":"VLOOKUP($F562,FactSum,'COS Factor Table'!G$115,FALSE)*$H562","v":6198.3497296616724},{"$f":"VLOOKUP($F562,FactSum,'COS Factor Table'!H$115,FALSE)*$H562","v":5800.1325443316236},{"$f":"VLOOKUP($F562,FactSum,'COS Factor Table'!I$115,FALSE)*$H562","v":2024.0337914906049},{"$f":"VLOOKUP($F562,FactSum,'COS Factor Table'!J$115,FALSE)*$H562","v":280.60052092165944},{"$f":"VLOOKUP($F562,FactSum,'COS Factor Table'!K$115,FALSE)*$H562","v":1983.9524368033553},{"$f":"VLOOKUP($F562,FactSum,'COS Factor Table'!L$115,FALSE)*$H562","v":553.99735359326803},{"$f":"VLOOKUP($F562,FactSum,'COS Factor Table'!M$115,FALSE)*$H562","v":0},{"$f":"VLOOKUP($F562,FactSum,'COS Factor Table'!N$115,FALSE)*$H562","v":0},{"$f":"ROUND(SUM(I562:Q562)-H562,0)","v":0}]
[563,null,null,null,"Customer - System","F42",null,{"$f":"UAcct920Cn","v":0},{"$f":"VLOOKUP($F563,FactSum,'COS Factor Table'!F$115,FALSE)*$H563","v":0},{"$f":"VLOOKUP($F563,FactSum,'COS Factor Table'!G$115,FALSE)*$H563","v":0},{"$f":"VLOOKUP($F563,FactSum,'COS Factor Table'!H$115,FALSE)*$H563","v":0},{"$f":"VLOOKUP($F563,FactSum,'COS Factor Table'!I$115,FALSE)*$H563","v":0},{"$f":"VLOOKUP($F563,FactSum,'COS Factor Table'!J$115,FALSE)*$H563","v":0},{"$f":"VLOOKUP($F563,FactSum,'COS Factor Table'!K$115,FALSE)*$H563","v":0},{"$f":"VLOOKUP($F563,FactSum,'COS Factor Table'!L$115,FALSE)*$H563","v":0},{"$f":"VLOOKUP($F563,FactSum,'COS Factor Table'!M$115,FALSE)*$H563","v":0},{"$f":"VLOOKUP($F563,FactSum,'COS Factor Table'!N$115,FALSE)*$H563","v":0},{"$f":"ROUND(SUM(I563:Q563)-H563,0)","v":0}]
[564,null,null,null,{"$f":"D562","v":"Administrative & General Salaries"},null,null,{"$f":"H562+H563","v":41280.336085776369},{"$f":"I562+I563","v":24439.269708974181},6198.3497296616724,5800.1325443316236,2024.0337914906049,{"$f":"M562+M563","v":280.60052092165944},1983.9524368033553,553.99735359326803,{"$f":"P562+P563","v":0},{"$f":"Q562+Q563","v":0},{"$f":"ROUND(SUM(I564:Q564)-H564,0)","v":0}]
[565]
[566,null,"921","Office Supplies & expenses",null,{"$f":"IF(Function=\"gen\",\"F102G\",IF(Function=\"TRN\",\"F102T\",IF(Function=\"DIS\",\"F102D\",IF(Function=\"RETAIL\",\"F102R\",IF(Function=\"MISC\",\"F102M\",\"ERR\")))))","v":"F102D"},null,{"$f":"UAcct921-UAcct921Cn","v":-9187.9724367989365},{"$f":"VLOOKUP($F566,FactSum,'COS Factor Table'!F$115,FALSE)*$H566","v":-5439.5714219710626},{"$f":"VLOOKUP($F566,FactSum,'COS Factor Table'!G$115,FALSE)*$H566","v":-1379.5979362046542},{"$f":"VLOOKUP($F566,FactSum,'COS Factor Table'!H$115,FALSE)*$H566","v":-1290.9647304315831},{"$f":"VLOOKUP($F566,FactSum,'COS Factor Table'!I$115,FALSE)*$H566","v":-450.49940118518225},{"$f":"VLOOKUP($F566,FactSum,'COS Factor Table'!J$115,FALSE)*$H566","v":-62.454672041005075},{"$f":"VLOOKUP($F566,FactSum,'COS Factor Table'!K$115,FALSE)*$H566","v":-441.57829208057632},{"$f":"VLOOKUP($F566,FactSum,'COS Factor Table'!L$115,FALSE)*$H566","v":-123.3059828848719},{"$f":"VLOOKUP($F566,FactSum,'COS Factor Table'!M$115,FALSE)*$H566","v":0},{"$f":"VLOOKUP($F566,FactSum,'COS Factor Table'!N$115,FALSE)*$H566","v":0},{"$f":"ROUND(SUM(I566:Q566)-H566,0)","v":0}]
[567,null,null,null,"Customer - System","F42",null,{"$f":"UAcct921Cn","v":0},{"$f":"VLOOKUP($F567,FactSum,'COS Factor Table'!F$115,FALSE)*$H567","v":0},{"$f":"VLOOKUP($F567,FactSum,'COS Factor Table'!G$115,FALSE)*$H567","v":0},{"$f":"VLOOKUP($F567,FactSum,'COS Factor Table'!H$115,FALSE)*$H567","v":0},{"$f":"VLOOKUP($F567,FactSum,'COS Factor Table'!I$115,FALSE)*$H567","v":0},{"$f":"VLOOKUP($F567,FactSum,'COS Factor Table'!J$115,FALSE)*$H567","v":0},{"$f":"VLOOKUP($F567,FactSum,'COS Factor Table'!K$115,FALSE)*$H567","v":0},{"$f":"VLOOKUP($F567,FactSum,'COS Factor Table'!L$115,FALSE)*$H567","v":0},{"$f":"VLOOKUP($F567,FactSum,'COS Factor Table'!M$115,FALSE)*$H567","v":0},{"$f":"VLOOKUP($F567,FactSum,'COS Factor Table'!N$115,FALSE)*$H567","v":0},{"$f":"ROUND(SUM(I567:Q567)-H567,0)","v":0}]
[568,null,null,null,{"$f":"D566","v":"Office Supplies & expenses"},null,null,{"$f":"H566+H567","v":-9187.9724367989365},-5439.5714219710626,-1379.5979362046542,-1290.9647304315831,-450.49940118518225,{"$f":"M566+M567","v":-62.454672041005075},-441.57829208057632,-123.3059828848719,{"$f":"P566+P567","v":0},{"$f":"Q566+Q567","v":0},{"$f":"ROUND(SUM(I568:Q568)-H568,0)","v":0}]
[569]
[570,null,"923","Outside Services",null,{"$f":"IF(Function=\"gen\",\"F102G\",IF(Function=\"TRN\",\"F102T\",IF(Function=\"DIS\",\"F102D\",IF(Function=\"RETAIL\",\"F102R\",IF(Function=\"MISC\",\"F102M\",\"ERR\")))))","v":"F102D"},null,{"$f":"UAcct923-UAcct923CAGW","v":3902.7130417536246},{"$f":"VLOOKUP($F570,FactSum,'COS Factor Table'!F$115,FALSE)*$H570","v":2310.5300408882081},{"$f":"VLOOKUP($F570,FactSum,'COS Factor Table'!G$115,FALSE)*$H570","v":586.00250436516546},{"$f":"VLOOKUP($F570,FactSum,'COS Factor Table'!H$115,FALSE)*$H570","v":548.35437574022683},{"$f":"VLOOKUP($F570,FactSum,'COS Factor Table'!I$115,FALSE)*$H570","v":191.35559019157773},{"$f":"VLOOKUP($F570,FactSum,'COS Factor Table'!J$115,FALSE)*$H570","v":26.528449532201169},{"$f":"VLOOKUP($F570,FactSum,'COS Factor Table'!K$115,FALSE)*$H570","v":187.56623088636167},{"$f":"VLOOKUP($F570,FactSum,'COS Factor Table'!L$115,FALSE)*$H570","v":52.375850149883249},{"$f":"VLOOKUP($F570,FactSum,'COS Factor Table'!M$115,FALSE)*$H570","v":0},{"$f":"VLOOKUP($F570,FactSum,'COS Factor Table'!N$115,FALSE)*$H570","v":0},{"$f":"ROUND(SUM(I570:Q570)-H570,0)","v":0}]
[571,null,null,null,"Customer - System","F42",null,{"$f":"UAcct923CAGW","v":0},{"$f":"VLOOKUP($F571,FactSum,'COS Factor Table'!F$115,FALSE)*$H571","v":0},{"$f":"VLOOKUP($F571,FactSum,'COS Factor Table'!G$115,FALSE)*$H571","v":0},{"$f":"VLOOKUP($F571,FactSum,'COS Factor Table'!H$115,FALSE)*$H571","v":0},{"$f":"VLOOKUP($F571,FactSum,'COS Factor Table'!I$115,FALSE)*$H571","v":0},{"$f":"VLOOKUP($F571,FactSum,'COS Factor Table'!J$115,FALSE)*$H571","v":0},{"$f":"VLOOKUP($F571,FactSum,'COS Factor Table'!K$115,FALSE)*$H571","v":0},{"$f":"VLOOKUP($F571,FactSum,'COS Factor Table'!L$115,FALSE)*$H571","v":0},{"$f":"VLOOKUP($F571,FactSum,'COS Factor Table'!M$115,FALSE)*$H571","v":0},{"$f":"VLOOKUP($F571,FactSum,'COS Factor Table'!N$115,FALSE)*$H571","v":0},{"$f":"ROUND(SUM(I571:Q571)-H571,0)","v":0}]
[572,null,null,null,{"$f":"D570","v":"Outside Services"},null,null,{"$f":"H570+H571","v":3902.7130417536246},2310.5300408882081,586.00250436516546,548.35437574022683,191.35559019157773,{"$f":"M570+M571","v":26.528449532201169},187.56623088636167,52.375850149883249,{"$f":"P570+P571","v":0},{"$f":"Q570+Q571","v":0},{"$f":"ROUND(SUM(I572:Q572)-H572,0)","v":0}]
[573]
[574,null,"924","Property Insurance",null,{"$f":"IF(Function=\"gen\",\"F102G\",IF(Function=\"TRN\",\"F102T\",IF(Function=\"DIS\",\"F102D\",IF(Function=\"RETAIL\",\"F102R\",IF(Function=\"MISC\",\"F102M\",\"ERR\")))))","v":"F102D"},null,{"$f":"SUM(UAcct924)","v":4750.2666931780768},{"$f":"VLOOKUP($F574,FactSum,'COS Factor Table'!F$115,FALSE)*$H574","v":2812.3087143211792},{"$f":"VLOOKUP($F574,FactSum,'COS Factor Table'!G$115,FALSE)*$H574","v":713.26488748298721},{"$f":"VLOOKUP($F574,FactSum,'COS Factor Table'!H$115,FALSE)*$H574","v":667.44070067903726},{"$f":"VLOOKUP($F574,FactSum,'COS Factor Table'!I$115,FALSE)*$H574","v":232.91235530656496},{"$f":"VLOOKUP($F574,FactSum,'COS Factor Table'!J$115,FALSE)*$H574","v":32.289642842366611},{"$f":"VLOOKUP($F574,FactSum,'COS Factor Table'!K$115,FALSE)*$H574","v":228.30005942329811},{"$f":"VLOOKUP($F574,FactSum,'COS Factor Table'!L$115,FALSE)*$H574","v":63.750333122642871},{"$f":"VLOOKUP($F574,FactSum,'COS Factor Table'!M$115,FALSE)*$H574","v":0},{"$f":"VLOOKUP($F574,FactSum,'COS Factor Table'!N$115,FALSE)*$H574","v":0},{"$f":"ROUND(SUM(I574:Q574)-H574,0)","v":0}]
[575]
[576,null,"925","Injuries & Damages",null,{"$f":"IF(Function=\"gen\",\"F102G\",IF(Function=\"TRN\",\"F102T\",IF(Function=\"DIS\",\"F102D\",IF(Function=\"RETAIL\",\"F102R\",IF(Function=\"MISC\",\"F102M\",\"ERR\")))))","v":"F102D"},null,{"$f":"SUM(UAcct925)","v":5591.2081415375578},{"$f":"VLOOKUP($F576,FactSum,'COS Factor Table'!F$115,FALSE)*$H576","v":3310.1727535869391},{"$f":"VLOOKUP($F576,FactSum,'COS Factor Table'!G$115,FALSE)*$H576","v":839.53443112888544},{"$f":"VLOOKUP($F576,FactSum,'COS Factor Table'!H$115,FALSE)*$H576","v":785.59797179165844},{"$f":"VLOOKUP($F576,FactSum,'COS Factor Table'!I$115,FALSE)*$H576","v":274.14491466867537},{"$f":"VLOOKUP($F576,FactSum,'COS Factor Table'!J$115,FALSE)*$H576","v":38.005890112833747},{"$f":"VLOOKUP($F576,FactSum,'COS Factor Table'!K$115,FALSE)*$H576","v":268.71610235993973},{"$f":"VLOOKUP($F576,FactSum,'COS Factor Table'!L$115,FALSE)*$H576","v":75.036077888625201},{"$f":"VLOOKUP($F576,FactSum,'COS Factor Table'!M$115,FALSE)*$H576","v":0},{"$f":"VLOOKUP($F576,FactSum,'COS Factor Table'!N$115,FALSE)*$H576","v":0},{"$f":"ROUND(SUM(I576:Q576)-H576,0)","v":0}]
[577]
[{"$f":"A577+1","v":578},null,"926","Employee Pensions & Benefits",null,{"$f":"IF(Function=\"gen\",\"F138G\",IF(Function=\"TRN\",\"F138T\",IF(Function=\"DIS\",\"F138D\",IF(Function=\"RETAIL\",\"F138R\",IF(Function=\"MISC\",\"F138M\",\"ERR\")))))","v":"F138D"},null,{"$f":"SUM(UAcct926)","v":0},{"$f":"VLOOKUP($F578,FactSum,'COS Factor Table'!F$115,FALSE)*$H578","v":0},{"$f":"VLOOKUP($F578,FactSum,'COS Factor Table'!G$115,FALSE)*$H578","v":0},{"$f":"VLOOKUP($F578,FactSum,'COS Factor Table'!H$115,FALSE)*$H578","v":0},{"$f":"VLOOKUP($F578,FactSum,'COS Factor Table'!I$115,FALSE)*$H578","v":0},{"$f":"VLOOKUP($F578,FactSum,'COS Factor Table'!J$115,FALSE)*$H578","v":0},{"$f":"VLOOKUP($F578,FactSum,'COS Factor Table'!K$115,FALSE)*$H578","v":0},{"$f":"VLOOKUP($F578,FactSum,'COS Factor Table'!L$115,FALSE)*$H578","v":0},{"$f":"VLOOKUP($F578,FactSum,'COS Factor Table'!M$115,FALSE)*$H578","v":0},{"$f":"VLOOKUP($F578,FactSum,'COS Factor Table'!N$115,FALSE)*$H578","v":0},{"$f":"ROUND(SUM(I578:Q578)-H578,0)","v":0}]
[579]
[580,null,"927","Franchise Requirements",null,"F102",null,{"$f":"SUM(UAcct927)","v":0},{"$f":"VLOOKUP($F580,FactSum,'COS Factor Table'!F$115,FALSE)*$H580","v":0},{"$f":"VLOOKUP($F580,FactSum,'COS Factor Table'!G$115,FALSE)*$H580","v":0},{"$f":"VLOOKUP($F580,FactSum,'COS Factor Table'!H$115,FALSE)*$H580","v":0},{"$f":"VLOOKUP($F580,FactSum,'COS Factor Table'!I$115,FALSE)*$H580","v":0},{"$f":"VLOOKUP($F580,FactSum,'COS Factor Table'!J$115,FALSE)*$H580","v":0},{"$f":"VLOOKUP($F580,FactSum,'COS Factor Table'!K$115,FALSE)*$H580","v":0},{"$f":"VLOOKUP($F580,FactSum,'COS Factor Table'!L$115,FALSE)*$H580","v":0},{"$f":"VLOOKUP($F580,FactSum,'COS Factor Table'!M$115,FALSE)*$H580","v":0},{"$f":"VLOOKUP($F580,FactSum,'COS Factor Table'!N$115,FALSE)*$H580","v":0},{"$f":"ROUND(SUM(I580:Q580)-H580,0)","v":0}]
[581]
[582,null,"928","Regulatory Commission Expense",null,"F141",null,{"$f":"SUM(UAcct928)","v":0},{"$f":"VLOOKUP($F582,FactSum,'COS Factor Table'!F$115,FALSE)*$H582","v":0},{"$f":"VLOOKUP($F582,FactSum,'COS Factor Table'!G$115,FALSE)*$H582","v":0},{"$f":"VLOOKUP($F582,FactSum,'COS Factor Table'!H$115,FALSE)*$H582","v":0},{"$f":"VLOOKUP($F582,FactSum,'COS Factor Table'!I$115,FALSE)*$H582","v":0},{"$f":"VLOOKUP($F582,FactSum,'COS Factor Table'!J$115,FALSE)*$H582","v":0},{"$f":"VLOOKUP($F582,FactSum,'COS Factor Table'!K$115,FALSE)*$H582","v":0},{"$f":"VLOOKUP($F582,FactSum,'COS Factor Table'!L$115,FALSE)*$H582","v":0},{"$f":"VLOOKUP($F582,FactSum,'COS Factor Table'!M$115,FALSE)*$H582","v":0},{"$f":"VLOOKUP($F582,FactSum,'COS Factor Table'!N$115,FALSE)*$H582","v":0},{"$f":"ROUND(SUM(I582:Q582)-H582,0)","v":0}]
[583]
[584,null,"929","Duplicate Charges",null,{"$f":"IF(Function=\"gen\",\"F138G\",IF(Function=\"TRN\",\"F138T\",IF(Function=\"DIS\",\"F138D\",IF(Function=\"RETAIL\",\"F138R\",IF(Function=\"MISC\",\"F138M\",\"ERR\")))))","v":"F138D"},null,{"$f":"SUM(UAcct929)","v":-19834.650939935615},{"$f":"VLOOKUP($F584,FactSum,'COS Factor Table'!F$115,FALSE)*$H584","v":-11174.853299668428},{"$f":"VLOOKUP($F584,FactSum,'COS Factor Table'!G$115,FALSE)*$H584","v":-2924.9882881317517},{"$f":"VLOOKUP($F584,FactSum,'COS Factor Table'!H$115,FALSE)*$H584","v":-2827.2981603964195},{"$f":"VLOOKUP($F584,FactSum,'COS Factor Table'!I$115,FALSE)*$H584","v":-1027.2801235759791},{"$f":"VLOOKUP($F584,FactSum,'COS Factor Table'!J$115,FALSE)*$H584","v":-395.55266192897614},{"$f":"VLOOKUP($F584,FactSum,'COS Factor Table'!K$115,FALSE)*$H584","v":-1019.3113729684685},{"$f":"VLOOKUP($F584,FactSum,'COS Factor Table'!L$115,FALSE)*$H584","v":-465.36703326559916},{"$f":"VLOOKUP($F584,FactSum,'COS Factor Table'!M$115,FALSE)*$H584","v":0},{"$f":"VLOOKUP($F584,FactSum,'COS Factor Table'!N$115,FALSE)*$H584","v":0},{"$f":"ROUND(SUM(I584:Q584)-H584,0)","v":0}]
[585]
[586,null,"930","Misc General Expenses",null,{"$f":"IF(Function=\"gen\",\"F138G\",IF(Function=\"TRN\",\"F138T\",IF(Function=\"DIS\",\"F138D\",IF(Function=\"RETAIL\",\"F138R\",IF(Function=\"MISC\",\"F138M\",\"ERR\")))))","v":"F138D"},null,{"$f":"SUM(UAcct930)","v":34903.170390031788},{"$f":"VLOOKUP($F586,FactSum,'COS Factor Table'!F$115,FALSE)*$H586","v":19664.465484321863},{"$f":"VLOOKUP($F586,FactSum,'COS Factor Table'!G$115,FALSE)*$H586","v":5147.1218182093871},{"$f":"VLOOKUP($F586,FactSum,'COS Factor Table'!H$115,FALSE)*$H586","v":4975.2158348827479},{"$f":"VLOOKUP($F586,FactSum,'COS Factor Table'!I$115,FALSE)*$H586","v":1807.7118321892535},{"$f":"VLOOKUP($F586,FactSum,'COS Factor Table'!J$115,FALSE)*$H586","v":696.05671404785051},{"$f":"VLOOKUP($F586,FactSum,'COS Factor Table'!K$115,FALSE)*$H586","v":1793.6891674551034},{"$f":"VLOOKUP($F586,FactSum,'COS Factor Table'!L$115,FALSE)*$H586","v":818.90953892559526},{"$f":"VLOOKUP($F586,FactSum,'COS Factor Table'!M$115,FALSE)*$H586","v":0},{"$f":"VLOOKUP($F586,FactSum,'COS Factor Table'!N$115,FALSE)*$H586","v":0},{"$f":"ROUND(SUM(I586:Q586)-H586,0)","v":0}]
[587]
[588,null,"931","Rents",null,{"$f":"IF(Function=\"gen\",\"F102G\",IF(Function=\"TRN\",\"F102T\",IF(Function=\"DIS\",\"F102D\",IF(Function=\"RETAIL\",\"F102R\",IF(Function=\"MISC\",\"F102M\",\"ERR\")))))","v":"F102D"},null,{"$f":"SUM(UAcct931)","v":3249.4772149131099},{"$f":"VLOOKUP($F588,FactSum,'COS Factor Table'!F$115,FALSE)*$H588","v":1923.7936896495153},{"$f":"VLOOKUP($F588,FactSum,'COS Factor Table'!G$115,FALSE)*$H588","v":487.91744754080133},{"$f":"VLOOKUP($F588,FactSum,'COS Factor Table'!H$115,FALSE)*$H588","v":456.57085996389719},{"$f":"VLOOKUP($F588,FactSum,'COS Factor Table'!I$115,FALSE)*$H588","v":159.32650533649883},{"$f":"VLOOKUP($F588,FactSum,'COS Factor Table'!J$115,FALSE)*$H588","v":22.088119566978406},{"$f":"VLOOKUP($F588,FactSum,'COS Factor Table'!K$115,FALSE)*$H588","v":156.17140871789485},{"$f":"VLOOKUP($F588,FactSum,'COS Factor Table'!L$115,FALSE)*$H588","v":43.609184137523698},{"$f":"VLOOKUP($F588,FactSum,'COS Factor Table'!M$115,FALSE)*$H588","v":0},{"$f":"VLOOKUP($F588,FactSum,'COS Factor Table'!N$115,FALSE)*$H588","v":0},{"$f":"ROUND(SUM(I588:Q588)-H588,0)","v":0}]
[589]
[590,null,"935","Maintenance of General Plant",null,"F108",null,{"$f":"SUM(UAcct935)","v":20018.708685059337},{"$f":"VLOOKUP($F590,FactSum,'COS Factor Table'!F$115,FALSE)*$H590","v":9506.215943219795},{"$f":"VLOOKUP($F590,FactSum,'COS Factor Table'!G$115,FALSE)*$H590","v":2785.560362677581},{"$f":"VLOOKUP($F590,FactSum,'COS Factor Table'!H$115,FALSE)*$H590","v":3828.6426189291292},{"$f":"VLOOKUP($F590,FactSum,'COS Factor Table'!I$115,FALSE)*$H590","v":1476.8912998809965},{"$f":"VLOOKUP($F590,FactSum,'COS Factor Table'!J$115,FALSE)*$H590","v":1529.7814424292301},{"$f":"VLOOKUP($F590,FactSum,'COS Factor Table'!K$115,FALSE)*$H590","v":778.46301400751258},{"$f":"VLOOKUP($F590,FactSum,'COS Factor Table'!L$115,FALSE)*$H590","v":113.15400391509097},{"$f":"VLOOKUP($F590,FactSum,'COS Factor Table'!M$115,FALSE)*$H590","v":0},{"$f":"VLOOKUP($F590,FactSum,'COS Factor Table'!N$115,FALSE)*$H590","v":0},{"$f":"ROUND(SUM(I590:Q590)-H590,0)","v":0}]
[591]
[592,null,"TOTAL ADMINISTRATIVE & GEN EXPENSE",null,null,null,null,{"$f":"SUM(H564,H568,H572:H590)","v":84673.256875515319},{"$f":"SUM(I564,I568,I572:I590)","v":47352.331613322189},12453.164956730076,12943.692015490316,4688.5967643030108,{"$f":"SUM(M564,M568,M572:M590)","v":2167.3434454831386},3935.9687546044206,1132.1593255821581,{"$f":"SUM(P564,P568,P572:P590)","v":0},{"$f":"SUM(Q564,Q568,Q572:Q590)","v":0},{"$f":"ROUND(SUM(I592:Q592)-H592,0)","v":0}]
[593]
[594]
[595,null,"TOTAL O & M EXPENSE",null,null,null,null,{"$f":"SUM(H411,H453,H510,H526,H542,H556,H592)","v":1209694.9611877},798996.47837595595,192287.44072349116,99980.217036267321,19625.52098312087,13248.939438386957,69400.345533074782,16156.019097402899,0,0,{"$f":"ROUND(SUM(I595:Q595)-H595,0)","v":0}]
[596]
[597,null,{"$f":"$E$1","v":"Distribution - METER -  Unbundled"},null,null,null,null,"DEPRECIATION EXPENSE"]
[598]
[599,null,"A",null,"B","C",null,"D","E","F","G","H","I","J","K","S","T"]
[600,null,null,null,null,null,null,{"$f":"'Hot Sheet'!$H$10","v":"Washington"},null,{"$f":"'Hot Sheet'!$J$10","v":"Small General"},{"$f":"'Hot Sheet'!$K$10","v":"Large General"},{"$f":"'Hot Sheet'!$L$10","v":"Large General"},{"$f":"'Hot Sheet'!$M$10","v":"Large General"},{"$f":"'Hot Sheet'!$N$10","v":"Agricultural"},{"$f":"'Hot Sheet'!$O$10","v":"Street & Area"}]
[601,null,"FERC",null,null,"COS",null,{"$f":"'Hot Sheet'!$H$11","v":"Jurisdiction"},{"$f":"'Hot Sheet'!$I$11","v":"Residential"},{"$f":"'Hot Sheet'!$J$11","v":"Service"},{"$f":"'Hot Sheet'!$K$11","v":"Service <1,000 kW"},{"$f":"'Hot Sheet'!$L$11","v":"Service >1,000 kW"},{"$f":"'Hot Sheet'!$M$11","v":"Dedicated Facilities"},{"$f":"'Hot Sheet'!$N$11","v":"Pumping"},{"$f":"'Hot Sheet'!$O$11","v":"Lighting"},{"$f":"'Hot Sheet'!P$11","v":"-"},{"$f":"'Hot Sheet'!Q$11","v":"-"}]
[602,null,"ACCT",null,"DESCRIPTION ","Factor",null,{"$f":"'Hot Sheet'!$H$12","v":"Normalized"},{"$f":"'Hot Sheet'!$I$12","v":"Schedule 16"},{"$f":"'Hot Sheet'!$J$12","v":"Schedule 24"},{"$f":"'Hot Sheet'!$K$12","v":"Schedule 36"},{"$f":"'Hot Sheet'!$L$12","v":"Schedule 48T"},{"$f":"'Hot Sheet'!$M$12","v":"Schedule 48T"},{"$f":"'Hot Sheet'!$N$12","v":"Schedule 40"},{"$f":"'Hot Sheet'!$O$12","v":"Sch. 15,51-54,57"},{"$f":"'Hot Sheet'!P$12","v":"-"},{"$f":"'Hot Sheet'!Q$12","v":"-"}]
[603,null,"403SP","Steam Depreciation",null,{"$f":"IF(Classification=\"DEMAND\",\"F12\",IF(Classification=\"ENERGY\",\"F30\",\"F10\"))","v":"F10"},null,{"$f":"SUM(UAcct403Sp)-H604","v":0},{"$f":"VLOOKUP($F603,FactSum,'COS Factor Table'!F$115,FALSE)*$H603","v":0},{"$f":"VLOOKUP($F603,FactSum,'COS Factor Table'!G$115,FALSE)*$H603","v":0},{"$f":"VLOOKUP($F603,FactSum,'COS Factor Table'!H$115,FALSE)*$H603","v":0},{"$f":"VLOOKUP($F603,FactSum,'COS Factor Table'!I$115,FALSE)*$H603","v":0},{"$f":"VLOOKUP($F603,FactSum,'COS Factor Table'!J$115,FALSE)*$H603","v":0},{"$f":"VLOOKUP($F603,FactSum,'COS Factor Table'!K$115,FALSE)*$H603","v":0},{"$f":"VLOOKUP($F603,FactSum,'COS Factor Table'!L$115,FALSE)*$H603","v":0},{"$f":"VLOOKUP($F603,FactSum,'COS Factor Table'!M$115,FALSE)*$H603","v":0},{"$f":"VLOOKUP($F603,FactSum,'COS Factor Table'!N$115,FALSE)*$H603","v":0},{"$f":"ROUND(SUM(I603:Q603)-H603,0)","v":0}]
[604,null,null,null,"JBG","F10",null,{"$f":"UAcct403SPJBG","v":0},{"$f":"VLOOKUP($F604,FactSum,'COS Factor Table'!F$115,FALSE)*$H604","v":0},{"$f":"VLOOKUP($F604,FactSum,'COS Factor Table'!G$115,FALSE)*$H604","v":0},{"$f":"VLOOKUP($F604,FactSum,'COS Factor Table'!H$115,FALSE)*$H604","v":0},{"$f":"VLOOKUP($F604,FactSum,'COS Factor Table'!I$115,FALSE)*$H604","v":0},{"$f":"VLOOKUP($F604,FactSum,'COS Factor Table'!J$115,FALSE)*$H604","v":0},{"$f":"VLOOKUP($F604,FactSum,'COS Factor Table'!K$115,FALSE)*$H604","v":0},{"$f":"VLOOKUP($F604,FactSum,'COS Factor Table'!L$115,FALSE)*$H604","v":0},{"$f":"VLOOKUP($F604,FactSum,'COS Factor Table'!M$115,FALSE)*$H604","v":0},{"$f":"VLOOKUP($F604,FactSum,'COS Factor Table'!N$115,FALSE)*$H604","v":0},{"$f":"ROUND(SUM(I604:Q604)-H604,0)","v":0}]
[605,null,null,null,"Total 403SP",null,null,{"$f":"SUM(H603:H604)","v":0},0,0,0,0,{"$f":"SUM(M603:M604)","v":0},0,0,0,0,{"$f":"ROUND(SUM(I605:Q605)-H605,0)","v":0}]
[606]
[607,null,"403NP","Nuclear Depreciation",null,{"$f":"IF(Classification=\"DEMAND\",\"F12\",IF(Classification=\"ENERGY\",\"F30\",\"F10\"))","v":"F10"},null,{"$f":"(UAcct403Np)","v":0},{"$f":"VLOOKUP($F607,FactSum,'COS Factor Table'!F$115,FALSE)*$H607","v":0},{"$f":"VLOOKUP($F607,FactSum,'COS Factor Table'!G$115,FALSE)*$H607","v":0},{"$f":"VLOOKUP($F607,FactSum,'COS Factor Table'!H$115,FALSE)*$H607","v":0},{"$f":"VLOOKUP($F607,FactSum,'COS Factor Table'!I$115,FALSE)*$H607","v":0},{"$f":"VLOOKUP($F607,FactSum,'COS Factor Table'!J$115,FALSE)*$H607","v":0},{"$f":"VLOOKUP($F607,FactSum,'COS Factor Table'!K$115,FALSE)*$H607","v":0},{"$f":"VLOOKUP($F607,FactSum,'COS Factor Table'!L$115,FALSE)*$H607","v":0},{"$f":"VLOOKUP($F607,FactSum,'COS Factor Table'!M$115,FALSE)*$H607","v":0},{"$f":"VLOOKUP($F607,FactSum,'COS Factor Table'!N$115,FALSE)*$H607","v":0},{"$f":"ROUND(SUM(I607:Q607)-H607,0)","v":0}]
[608]
[609,null,"403HP","Hydro Depreciation",null,{"$f":"IF(Classification=\"DEMAND\",\"F12\",IF(Classification=\"ENERGY\",\"F30\",\"F10\"))","v":"F10"},null,{"$f":"SUM(UAcct403Hp)","v":0},{"$f":"VLOOKUP($F609,FactSum,'COS Factor Table'!F$115,FALSE)*$H609","v":0},{"$f":"VLOOKUP($F609,FactSum,'COS Factor Table'!G$115,FALSE)*$H609","v":0},{"$f":"VLOOKUP($F609,FactSum,'COS Factor Table'!H$115,FALSE)*$H609","v":0},{"$f":"VLOOKUP($F609,FactSum,'COS Factor Table'!I$115,FALSE)*$H609","v":0},{"$f":"VLOOKUP($F609,FactSum,'COS Factor Table'!J$115,FALSE)*$H609","v":0},{"$f":"VLOOKUP($F609,FactSum,'COS Factor Table'!K$115,FALSE)*$H609","v":0},{"$f":"VLOOKUP($F609,FactSum,'COS Factor Table'!L$115,FALSE)*$H609","v":0},{"$f":"VLOOKUP($F609,FactSum,'COS Factor Table'!M$115,FALSE)*$H609","v":0},{"$f":"VLOOKUP($F609,FactSum,'COS Factor Table'!N$115,FALSE)*$H609","v":0},{"$f":"ROUND(SUM(I609:Q609)-H609,0)","v":0}]
[610]
[611,null,"403OP","Other Production Depreciation",null,{"$f":"IF(Classification=\"DEMAND\",\"F12\",IF(Classification=\"ENERGY\",\"F30\",\"F10\"))","v":"F10"},null,{"$f":"SUM(UAcct403Op)-H612-H613","v":0},{"$f":"VLOOKUP($F611,FactSum,'COS Factor Table'!F$115,FALSE)*$H611","v":0},{"$f":"VLOOKUP($F611,FactSum,'COS Factor Table'!G$115,FALSE)*$H611","v":0},{"$f":"VLOOKUP($F611,FactSum,'COS Factor Table'!H$115,FALSE)*$H611","v":0},{"$f":"VLOOKUP($F611,FactSum,'COS Factor Table'!I$115,FALSE)*$H611","v":0},{"$f":"VLOOKUP($F611,FactSum,'COS Factor Table'!J$115,FALSE)*$H611","v":0},{"$f":"VLOOKUP($F611,FactSum,'COS Factor Table'!K$115,FALSE)*$H611","v":0},{"$f":"VLOOKUP($F611,FactSum,'COS Factor Table'!L$115,FALSE)*$H611","v":0},{"$f":"VLOOKUP($F611,FactSum,'COS Factor Table'!M$115,FALSE)*$H611","v":0},{"$f":"VLOOKUP($F611,FactSum,'COS Factor Table'!N$115,FALSE)*$H611","v":0},{"$f":"ROUND(SUM(I611:Q611)-H611,0)","v":0}]
[612,null,null,null,"CAGE",{"$f":"IF(Classification=\"DEMAND\",\"F12\",IF(Classification=\"ENERGY\",\"F30\",\"F10\"))","v":"F10"},null,{"$f":"UAcct403OPCAGE","v":0},{"$f":"VLOOKUP($F612,FactSum,'COS Factor Table'!F$115,FALSE)*$H612","v":0},{"$f":"VLOOKUP($F612,FactSum,'COS Factor Table'!G$115,FALSE)*$H612","v":0},{"$f":"VLOOKUP($F612,FactSum,'COS Factor Table'!H$115,FALSE)*$H612","v":0},{"$f":"VLOOKUP($F612,FactSum,'COS Factor Table'!I$115,FALSE)*$H612","v":0},{"$f":"VLOOKUP($F612,FactSum,'COS Factor Table'!J$115,FALSE)*$H612","v":0},{"$f":"VLOOKUP($F612,FactSum,'COS Factor Table'!K$115,FALSE)*$H612","v":0},{"$f":"VLOOKUP($F612,FactSum,'COS Factor Table'!L$115,FALSE)*$H612","v":0},{"$f":"VLOOKUP($F612,FactSum,'COS Factor Table'!M$115,FALSE)*$H612","v":0},{"$f":"VLOOKUP($F612,FactSum,'COS Factor Table'!N$115,FALSE)*$H612","v":0},{"$f":"ROUND(SUM(I612:Q612)-H612,0)","v":0}]
[613,null,null,null,"CAEE","F10",null,0,{"$f":"VLOOKUP($F613,FactSum,'COS Factor Table'!F$115,FALSE)*$H613","v":0},{"$f":"VLOOKUP($F613,FactSum,'COS Factor Table'!G$115,FALSE)*$H613","v":0},{"$f":"VLOOKUP($F613,FactSum,'COS Factor Table'!H$115,FALSE)*$H613","v":0},{"$f":"VLOOKUP($F613,FactSum,'COS Factor Table'!I$115,FALSE)*$H613","v":0},{"$f":"VLOOKUP($F613,FactSum,'COS Factor Table'!J$115,FALSE)*$H613","v":0},{"$f":"VLOOKUP($F613,FactSum,'COS Factor Table'!K$115,FALSE)*$H613","v":0},{"$f":"VLOOKUP($F613,FactSum,'COS Factor Table'!L$115,FALSE)*$H613","v":0},{"$f":"VLOOKUP($F613,FactSum,'COS Factor Table'!M$115,FALSE)*$H613","v":0},{"$f":"VLOOKUP($F613,FactSum,'COS Factor Table'!N$115,FALSE)*$H613","v":0},{"$f":"ROUND(SUM(I613:Q613)-H613,0)","v":0}]
[614,null,null,null,"Total 403OP",null,null,{"$f":"SUM(H611:H613)","v":0},0,0,0,0,{"$f":"SUM(M611:M613)","v":0},0,0,0,0,{"$f":"ROUND(SUM(I614:Q614)-H614,0)","v":0}]
[615]
[616,null,"403TP","Transmission Depreciation",null,"F106",null,{"$f":"SUM(UAcct403Tp)","v":0},{"$f":"VLOOKUP($F616,FactSum,'COS Factor Table'!F$115,FALSE)*$H616","v":0},{"$f":"VLOOKUP($F616,FactSum,'COS Factor Table'!G$115,FALSE)*$H616","v":0},{"$f":"VLOOKUP($F616,FactSum,'COS Factor Table'!H$115,FALSE)*$H616","v":0},{"$f":"VLOOKUP($F616,FactSum,'COS Factor Table'!I$115,FALSE)*$H616","v":0},{"$f":"VLOOKUP($F616,FactSum,'COS Factor Table'!J$115,FALSE)*$H616","v":0},{"$f":"VLOOKUP($F616,FactSum,'COS Factor Table'!K$115,FALSE)*$H616","v":0},{"$f":"VLOOKUP($F616,FactSum,'COS Factor Table'!L$115,FALSE)*$H616","v":0},{"$f":"VLOOKUP($F616,FactSum,'COS Factor Table'!M$115,FALSE)*$H616","v":0},{"$f":"VLOOKUP($F616,FactSum,'COS Factor Table'!N$115,FALSE)*$H616","v":0},{"$f":"ROUND(SUM(I616:Q616)-H616,0)","v":0}]
[617]
[618,null,"403","Distribution Depreciation"]
[619,null,null,null,"Land Rights","F118",null,{"$f":"SUM(UAcct403360)","v":0},{"$f":"VLOOKUP($F619,FactSum,'COS Factor Table'!F$115,FALSE)*$H619","v":0},{"$f":"VLOOKUP($F619,FactSum,'COS Factor Table'!G$115,FALSE)*$H619","v":0},{"$f":"VLOOKUP($F619,FactSum,'COS Factor Table'!H$115,FALSE)*$H619","v":0},{"$f":"VLOOKUP($F619,FactSum,'COS Factor Table'!I$115,FALSE)*$H619","v":0},{"$f":"VLOOKUP($F619,FactSum,'COS Factor Table'!J$115,FALSE)*$H619","v":0},{"$f":"VLOOKUP($F619,FactSum,'COS Factor Table'!K$115,FALSE)*$H619","v":0},{"$f":"VLOOKUP($F619,FactSum,'COS Factor Table'!L$115,FALSE)*$H619","v":0},{"$f":"VLOOKUP($F619,FactSum,'COS Factor Table'!M$115,FALSE)*$H619","v":0},{"$f":"VLOOKUP($F619,FactSum,'COS Factor Table'!N$115,FALSE)*$H619","v":0},{"$f":"ROUND(SUM(I619:Q619)-H619,0)","v":0}]
[620,null,null,null,"Structures","F119",null,{"$f":"SUM(UAcct403361)","v":0},{"$f":"VLOOKUP($F620,FactSum,'COS Factor Table'!F$115,FALSE)*$H620","v":0},{"$f":"VLOOKUP($F620,FactSum,'COS Factor Table'!G$115,FALSE)*$H620","v":0},{"$f":"VLOOKUP($F620,FactSum,'COS Factor Table'!H$115,FALSE)*$H620","v":0},{"$f":"VLOOKUP($F620,FactSum,'COS Factor Table'!I$115,FALSE)*$H620","v":0},{"$f":"VLOOKUP($F620,FactSum,'COS Factor Table'!J$115,FALSE)*$H620","v":0},{"$f":"VLOOKUP($F620,FactSum,'COS Factor Table'!K$115,FALSE)*$H620","v":0},{"$f":"VLOOKUP($F620,FactSum,'COS Factor Table'!L$115,FALSE)*$H620","v":0},{"$f":"VLOOKUP($F620,FactSum,'COS Factor Table'!M$115,FALSE)*$H620","v":0},{"$f":"VLOOKUP($F620,FactSum,'COS Factor Table'!N$115,FALSE)*$H620","v":0},0]
[621,null,null,null,"Station Equip","F120",null,{"$f":"SUM(UAcct403362)","v":0},{"$f":"VLOOKUP($F621,FactSum,'COS Factor Table'!F$115,FALSE)*$H621","v":0},{"$f":"VLOOKUP($F621,FactSum,'COS Factor Table'!G$115,FALSE)*$H621","v":0},{"$f":"VLOOKUP($F621,FactSum,'COS Factor Table'!H$115,FALSE)*$H621","v":0},{"$f":"VLOOKUP($F621,FactSum,'COS Factor Table'!I$115,FALSE)*$H621","v":0},{"$f":"VLOOKUP($F621,FactSum,'COS Factor Table'!J$115,FALSE)*$H621","v":0},{"$f":"VLOOKUP($F621,FactSum,'COS Factor Table'!K$115,FALSE)*$H621","v":0},{"$f":"VLOOKUP($F621,FactSum,'COS Factor Table'!L$115,FALSE)*$H621","v":0},{"$f":"VLOOKUP($F621,FactSum,'COS Factor Table'!M$115,FALSE)*$H621","v":0},{"$f":"VLOOKUP($F621,FactSum,'COS Factor Table'!N$115,FALSE)*$H621","v":0},0]
[622,null,null,null,"Poles & Towers","F121",null,{"$f":"SUM(UAcct403364)","v":0},{"$f":"VLOOKUP($F622,FactSum,'COS Factor Table'!F$115,FALSE)*$H622","v":0},{"$f":"VLOOKUP($F622,FactSum,'COS Factor Table'!G$115,FALSE)*$H622","v":0},{"$f":"VLOOKUP($F622,FactSum,'COS Factor Table'!H$115,FALSE)*$H622","v":0},{"$f":"VLOOKUP($F622,FactSum,'COS Factor Table'!I$115,FALSE)*$H622","v":0},{"$f":"VLOOKUP($F622,FactSum,'COS Factor Table'!J$115,FALSE)*$H622","v":0},{"$f":"VLOOKUP($F622,FactSum,'COS Factor Table'!K$115,FALSE)*$H622","v":0},{"$f":"VLOOKUP($F622,FactSum,'COS Factor Table'!L$115,FALSE)*$H622","v":0},{"$f":"VLOOKUP($F622,FactSum,'COS Factor Table'!M$115,FALSE)*$H622","v":0},{"$f":"VLOOKUP($F622,FactSum,'COS Factor Table'!N$115,FALSE)*$H622","v":0},0]
[623,null,null,null,"OH Conductors","F122",null,{"$f":"SUM(UAcct403365)","v":0},{"$f":"VLOOKUP($F623,FactSum,'COS Factor Table'!F$115,FALSE)*$H623","v":0},{"$f":"VLOOKUP($F623,FactSum,'COS Factor Table'!G$115,FALSE)*$H623","v":0},{"$f":"VLOOKUP($F623,FactSum,'COS Factor Table'!H$115,FALSE)*$H623","v":0},{"$f":"VLOOKUP($F623,FactSum,'COS Factor Table'!I$115,FALSE)*$H623","v":0},{"$f":"VLOOKUP($F623,FactSum,'COS Factor Table'!J$115,FALSE)*$H623","v":0},{"$f":"VLOOKUP($F623,FactSum,'COS Factor Table'!K$115,FALSE)*$H623","v":0},{"$f":"VLOOKUP($F623,FactSum,'COS Factor Table'!L$115,FALSE)*$H623","v":0},{"$f":"VLOOKUP($F623,FactSum,'COS Factor Table'!M$115,FALSE)*$H623","v":0},{"$f":"VLOOKUP($F623,FactSum,'COS Factor Table'!N$115,FALSE)*$H623","v":0},0]
[624,null,null,null,"UG Conduit","F123",null,{"$f":"SUM(UAcct403366)","v":0},{"$f":"VLOOKUP($F624,FactSum,'COS Factor Table'!F$115,FALSE)*$H624","v":0},{"$f":"VLOOKUP($F624,FactSum,'COS Factor Table'!G$115,FALSE)*$H624","v":0},{"$f":"VLOOKUP($F624,FactSum,'COS Factor Table'!H$115,FALSE)*$H624","v":0},{"$f":"VLOOKUP($F624,FactSum,'COS Factor Table'!I$115,FALSE)*$H624","v":0},{"$f":"VLOOKUP($F624,FactSum,'COS Factor Table'!J$115,FALSE)*$H624","v":0},{"$f":"VLOOKUP($F624,FactSum,'COS Factor Table'!K$115,FALSE)*$H624","v":0},{"$f":"VLOOKUP($F624,FactSum,'COS Factor Table'!L$115,FALSE)*$H624","v":0},{"$f":"VLOOKUP($F624,FactSum,'COS Factor Table'!M$115,FALSE)*$H624","v":0},{"$f":"VLOOKUP($F624,FactSum,'COS Factor Table'!N$115,FALSE)*$H624","v":0},0]
[625,null,null,null,"UG Conductor","F124",null,{"$f":"SUM(UAcct403367)","v":0},{"$f":"VLOOKUP($F625,FactSum,'COS Factor Table'!F$115,FALSE)*$H625","v":0},{"$f":"VLOOKUP($F625,FactSum,'COS Factor Table'!G$115,FALSE)*$H625","v":0},{"$f":"VLOOKUP($F625,FactSum,'COS Factor Table'!H$115,FALSE)*$H625","v":0},{"$f":"VLOOKUP($F625,FactSum,'COS Factor Table'!I$115,FALSE)*$H625","v":0},{"$f":"VLOOKUP($F625,FactSum,'COS Factor Table'!J$115,FALSE)*$H625","v":0},{"$f":"VLOOKUP($F625,FactSum,'COS Factor Table'!K$115,FALSE)*$H625","v":0},{"$f":"VLOOKUP($F625,FactSum,'COS Factor Table'!L$115,FALSE)*$H625","v":0},{"$f":"VLOOKUP($F625,FactSum,'COS Factor Table'!M$115,FALSE)*$H625","v":0},{"$f":"VLOOKUP($F625,FactSum,'COS Factor Table'!N$115,FALSE)*$H625","v":0},0]
[626,null,null,null,"Line Transformer","F125",null,{"$f":"SUM(UAcct403368)","v":0},{"$f":"VLOOKUP($F626,FactSum,'COS Factor Table'!F$115,FALSE)*$H626","v":0},{"$f":"VLOOKUP($F626,FactSum,'COS Factor Table'!G$115,FALSE)*$H626","v":0},{"$f":"VLOOKUP($F626,FactSum,'COS Factor Table'!H$115,FALSE)*$H626","v":0},{"$f":"VLOOKUP($F626,FactSum,'COS Factor Table'!I$115,FALSE)*$H626","v":0},{"$f":"VLOOKUP($F626,FactSum,'COS Factor Table'!J$115,FALSE)*$H626","v":0},{"$f":"VLOOKUP($F626,FactSum,'COS Factor Table'!K$115,FALSE)*$H626","v":0},{"$f":"VLOOKUP($F626,FactSum,'COS Factor Table'!L$115,FALSE)*$H626","v":0},{"$f":"VLOOKUP($F626,FactSum,'COS Factor Table'!M$115,FALSE)*$H626","v":0},{"$f":"VLOOKUP($F626,FactSum,'COS Factor Table'!N$115,FALSE)*$H626","v":0},0]
[627,null,null,null,"Services","F126",null,{"$f":"SUM(UAcct403369)","v":0},{"$f":"VLOOKUP($F627,FactSum,'COS Factor Table'!F$115,FALSE)*$H627","v":0},{"$f":"VLOOKUP($F627,FactSum,'COS Factor Table'!G$115,FALSE)*$H627","v":0},{"$f":"VLOOKUP($F627,FactSum,'COS Factor Table'!H$115,FALSE)*$H627","v":0},{"$f":"VLOOKUP($F627,FactSum,'COS Factor Table'!I$115,FALSE)*$H627","v":0},{"$f":"VLOOKUP($F627,FactSum,'COS Factor Table'!J$115,FALSE)*$H627","v":0},{"$f":"VLOOKUP($F627,FactSum,'COS Factor Table'!K$115,FALSE)*$H627","v":0},{"$f":"VLOOKUP($F627,FactSum,'COS Factor Table'!L$115,FALSE)*$H627","v":0},{"$f":"VLOOKUP($F627,FactSum,'COS Factor Table'!M$115,FALSE)*$H627","v":0},{"$f":"VLOOKUP($F627,FactSum,'COS Factor Table'!N$115,FALSE)*$H627","v":0},0]
[628,null,null,null,"Meters","F127",null,{"$f":"SUM(UAcct403370)","v":445097.37},{"$f":"VLOOKUP($F628,FactSum,'COS Factor Table'!F$115,FALSE)*$H628","v":302722.85571972642},{"$f":"VLOOKUP($F628,FactSum,'COS Factor Table'!G$115,FALSE)*$H628","v":72256.704104169781},{"$f":"VLOOKUP($F628,FactSum,'COS Factor Table'!H$115,FALSE)*$H628","v":34009.920674298279},{"$f":"VLOOKUP($F628,FactSum,'COS Factor Table'!I$115,FALSE)*$H628","v":5467.6480629517537},{"$f":"VLOOKUP($F628,FactSum,'COS Factor Table'!J$115,FALSE)*$H628","v":4305.9642227738586},{"$f":"VLOOKUP($F628,FactSum,'COS Factor Table'!K$115,FALSE)*$H628","v":26334.277216079921},{"$f":"VLOOKUP($F628,FactSum,'COS Factor Table'!L$115,FALSE)*$H628","v":0},{"$f":"VLOOKUP($F628,FactSum,'COS Factor Table'!M$115,FALSE)*$H628","v":0},{"$f":"VLOOKUP($F628,FactSum,'COS Factor Table'!N$115,FALSE)*$H628","v":0},0]
[629,null,null,null,"Inst Cust Premises","F128",null,{"$f":"SUM(UAcct403371)","v":0},{"$f":"VLOOKUP($F629,FactSum,'COS Factor Table'!F$115,FALSE)*$H629","v":0},{"$f":"VLOOKUP($F629,FactSum,'COS Factor Table'!G$115,FALSE)*$H629","v":0},{"$f":"VLOOKUP($F629,FactSum,'COS Factor Table'!H$115,FALSE)*$H629","v":0},{"$f":"VLOOKUP($F629,FactSum,'COS Factor Table'!I$115,FALSE)*$H629","v":0},{"$f":"VLOOKUP($F629,FactSum,'COS Factor Table'!J$115,FALSE)*$H629","v":0},{"$f":"VLOOKUP($F629,FactSum,'COS Factor Table'!K$115,FALSE)*$H629","v":0},{"$f":"VLOOKUP($F629,FactSum,'COS Factor Table'!L$115,FALSE)*$H629","v":0},{"$f":"VLOOKUP($F629,FactSum,'COS Factor Table'!M$115,FALSE)*$H629","v":0},{"$f":"VLOOKUP($F629,FactSum,'COS Factor Table'!N$115,FALSE)*$H629","v":0},0]
[630,null,null,null,"Leased Property","F129",null,{"$f":"SUM(UAcct403372)","v":0},{"$f":"VLOOKUP($F630,FactSum,'COS Factor Table'!F$115,FALSE)*$H630","v":0},{"$f":"VLOOKUP($F630,FactSum,'COS Factor Table'!G$115,FALSE)*$H630","v":0},{"$f":"VLOOKUP($F630,FactSum,'COS Factor Table'!H$115,FALSE)*$H630","v":0},{"$f":"VLOOKUP($F630,FactSum,'COS Factor Table'!I$115,FALSE)*$H630","v":0},{"$f":"VLOOKUP($F630,FactSum,'COS Factor Table'!J$115,FALSE)*$H630","v":0},{"$f":"VLOOKUP($F630,FactSum,'COS Factor Table'!K$115,FALSE)*$H630","v":0},{"$f":"VLOOKUP($F630,FactSum,'COS Factor Table'!L$115,FALSE)*$H630","v":0},{"$f":"VLOOKUP($F630,FactSum,'COS Factor Table'!M$115,FALSE)*$H630","v":0},{"$f":"VLOOKUP($F630,FactSum,'COS Factor Table'!N$115,FALSE)*$H630","v":0},0]
[631,null,null,null,"Street Lighting","F130",null,{"$f":"SUM(UAcct403373)","v":0},{"$f":"VLOOKUP($F631,FactSum,'COS Factor Table'!F$115,FALSE)*$H631","v":0},{"$f":"VLOOKUP($F631,FactSum,'COS Factor Table'!G$115,FALSE)*$H631","v":0},{"$f":"VLOOKUP($F631,FactSum,'COS Factor Table'!H$115,FALSE)*$H631","v":0},{"$f":"VLOOKUP($F631,FactSum,'COS Factor Table'!I$115,FALSE)*$H631","v":0},{"$f":"VLOOKUP($F631,FactSum,'COS Factor Table'!J$115,FALSE)*$H631","v":0},{"$f":"VLOOKUP($F631,FactSum,'COS Factor Table'!K$115,FALSE)*$H631","v":0},{"$f":"VLOOKUP($F631,FactSum,'COS Factor Table'!L$115,FALSE)*$H631","v":0},{"$f":"VLOOKUP($F631,FactSum,'COS Factor Table'!M$115,FALSE)*$H631","v":0},{"$f":"VLOOKUP($F631,FactSum,'COS Factor Table'!N$115,FALSE)*$H631","v":0},0]
[632,null,null,"Total Distribution Expense",null,null,null,{"$f":"SUM(H619:H631)","v":445097.37},{"$f":"SUM(I619:I631)","v":302722.85571972642},72256.704104169781,34009.920674298279,5467.6480629517537,{"$f":"SUM(M619:M631)","v":4305.9642227738586},26334.277216079921,0,{"$f":"SUM(P619:P631)","v":0},{"$f":"SUM(Q619:Q631)","v":0},0]
[633]
[634,null,"403GP","General Depreciation"]
[635,null,null,null,"Situs",{"$f":"IF(Function=\"gen\",\"F107G\",IF(Function=\"TRN\",\"F107T\",IF(Function=\"DIS\",\"F107D\",IF(Function=\"RETAIL\",\"F107R\",IF(Function=\"MISC\",\"F107M\",\"ERR\")))))","v":"F107D"},null,{"$f":"SUM(UAcct403Gps)","v":24341.916551153008},{"$f":"VLOOKUP($F635,FactSum,'COS Factor Table'!F$115,FALSE)*$H635","v":14411.187510460952},{"$f":"VLOOKUP($F635,FactSum,'COS Factor Table'!G$115,FALSE)*$H635","v":3655.0020222890976},{"$f":"VLOOKUP($F635,FactSum,'COS Factor Table'!H$115,FALSE)*$H635","v":3420.1839366417994},{"$f":"VLOOKUP($F635,FactSum,'COS Factor Table'!I$115,FALSE)*$H635","v":1193.5189080535201},{"$f":"VLOOKUP($F635,FactSum,'COS Factor Table'!J$115,FALSE)*$H635","v":165.46266605708615},{"$f":"VLOOKUP($F635,FactSum,'COS Factor Table'!K$115,FALSE)*$H635","v":1169.8839989523228},{"$f":"VLOOKUP($F635,FactSum,'COS Factor Table'!L$115,FALSE)*$H635","v":326.6775086982268},{"$f":"VLOOKUP($F635,FactSum,'COS Factor Table'!M$115,FALSE)*$H635","v":0},{"$f":"VLOOKUP($F635,FactSum,'COS Factor Table'!N$115,FALSE)*$H635","v":0},{"$f":"ROUND(SUM(I635:Q635)-H635,0)","v":0}]
[636,null,null,null,"System Generation",{"$f":"IF(Function=\"gen\",\"F105G\",IF(Function=\"TRN\",\"F105T\",IF(Function=\"DIS\",\"F105D\",IF(Function=\"RETAIL\",\"F105R\",IF(Function=\"MISC\",\"F105M\",\"ERR\")))))","v":"F105D"},null,{"$f":"UAcct403GPDGP+UAcct403GPDGU+UAcct403Gpsg+UAcct403GPJBG","v":0},{"$f":"VLOOKUP($F636,FactSum,'COS Factor Table'!F$115,FALSE)*$H636","v":0},{"$f":"VLOOKUP($F636,FactSum,'COS Factor Table'!G$115,FALSE)*$H636","v":0},{"$f":"VLOOKUP($F636,FactSum,'COS Factor Table'!H$115,FALSE)*$H636","v":0},{"$f":"VLOOKUP($F636,FactSum,'COS Factor Table'!I$115,FALSE)*$H636","v":0},{"$f":"VLOOKUP($F636,FactSum,'COS Factor Table'!J$115,FALSE)*$H636","v":0},{"$f":"VLOOKUP($F636,FactSum,'COS Factor Table'!K$115,FALSE)*$H636","v":0},{"$f":"VLOOKUP($F636,FactSum,'COS Factor Table'!L$115,FALSE)*$H636","v":0},{"$f":"VLOOKUP($F636,FactSum,'COS Factor Table'!M$115,FALSE)*$H636","v":0},{"$f":"VLOOKUP($F636,FactSum,'COS Factor Table'!N$115,FALSE)*$H636","v":0},0]
[637,null,null,null,"System Overheads",{"$f":"IF(Function=\"gen\",\"F102G\",IF(Function=\"TRN\",\"F102T\",IF(Function=\"DIS\",\"F102D\",IF(Function=\"RETAIL\",\"F102R\",IF(Function=\"MISC\",\"F102M\",\"ERR\")))))","v":"F102D"},null,{"$f":"SUM(UAcct403Gpso)","v":8387.1112958098438},{"$f":"VLOOKUP($F637,FactSum,'COS Factor Table'!F$115,FALSE)*$H637","v":4965.4361973110781},{"$f":"VLOOKUP($F637,FactSum,'COS Factor Table'!G$115,FALSE)*$H637","v":1259.3465548585441},{"$f":"VLOOKUP($F637,FactSum,'COS Factor Table'!H$115,FALSE)*$H637","v":1178.4389806971492},{"$f":"VLOOKUP($F637,FactSum,'COS Factor Table'!I$115,FALSE)*$H637","v":411.23203649402677},{"$f":"VLOOKUP($F637,FactSum,'COS Factor Table'!J$115,FALSE)*$H637","v":57.010868170791802},{"$f":"VLOOKUP($F637,FactSum,'COS Factor Table'!K$115,FALSE)*$H637","v":403.08852763425705},{"$f":"VLOOKUP($F637,FactSum,'COS Factor Table'!L$115,FALSE)*$H637","v":112.5581306439955},{"$f":"VLOOKUP($F637,FactSum,'COS Factor Table'!M$115,FALSE)*$H637","v":0},{"$f":"VLOOKUP($F637,FactSum,'COS Factor Table'!N$115,FALSE)*$H637","v":0},0]
[638,null,null,null,"Customer - System","F42",null,{"$f":"SUM(UAcct403Gpcn)","v":0},{"$f":"VLOOKUP($F638,FactSum,'COS Factor Table'!F$115,FALSE)*$H638","v":0},{"$f":"VLOOKUP($F638,FactSum,'COS Factor Table'!G$115,FALSE)*$H638","v":0},{"$f":"VLOOKUP($F638,FactSum,'COS Factor Table'!H$115,FALSE)*$H638","v":0},{"$f":"VLOOKUP($F638,FactSum,'COS Factor Table'!I$115,FALSE)*$H638","v":0},{"$f":"VLOOKUP($F638,FactSum,'COS Factor Table'!J$115,FALSE)*$H638","v":0},{"$f":"VLOOKUP($F638,FactSum,'COS Factor Table'!K$115,FALSE)*$H638","v":0},{"$f":"VLOOKUP($F638,FactSum,'COS Factor Table'!L$115,FALSE)*$H638","v":0},{"$f":"VLOOKUP($F638,FactSum,'COS Factor Table'!M$115,FALSE)*$H638","v":0},{"$f":"VLOOKUP($F638,FactSum,'COS Factor Table'!N$115,FALSE)*$H638","v":0},0]
[639,null,null,null,"Energy",{"$f":"IF(Classification=\"DEMAND\",\"F12\",IF(Classification=\"ENERGY\",\"F30\",\"F10\"))","v":"F10"},null,{"$f":"SUM(UACCT403JBE)","v":0},{"$f":"VLOOKUP($F639,FactSum,'COS Factor Table'!F$115,FALSE)*$H639","v":0},{"$f":"VLOOKUP($F639,FactSum,'COS Factor Table'!G$115,FALSE)*$H639","v":0},{"$f":"VLOOKUP($F639,FactSum,'COS Factor Table'!H$115,FALSE)*$H639","v":0},{"$f":"VLOOKUP($F639,FactSum,'COS Factor Table'!I$115,FALSE)*$H639","v":0},{"$f":"VLOOKUP($F639,FactSum,'COS Factor Table'!J$115,FALSE)*$H639","v":0},{"$f":"VLOOKUP($F639,FactSum,'COS Factor Table'!K$115,FALSE)*$H639","v":0},{"$f":"VLOOKUP($F639,FactSum,'COS Factor Table'!L$115,FALSE)*$H639","v":0},{"$f":"VLOOKUP($F639,FactSum,'COS Factor Table'!M$115,FALSE)*$H639","v":0},{"$f":"VLOOKUP($F639,FactSum,'COS Factor Table'!N$115,FALSE)*$H639","v":0},0]
[640,null,null,null,"CAEE",{"$f":"IF(Function=\"gen\",\"F105G\",IF(Function=\"TRN\",\"F105T\",IF(Function=\"DIS\",\"F105D\",IF(Function=\"RETAIL\",\"F105R\",IF(Function=\"MISC\",\"F105M\",\"ERR\")))))","v":"F105D"},null,0,{"$f":"VLOOKUP($F640,FactSum,'COS Factor Table'!F$115,FALSE)*$H640","v":0},{"$f":"VLOOKUP($F640,FactSum,'COS Factor Table'!G$115,FALSE)*$H640","v":0},{"$f":"VLOOKUP($F640,FactSum,'COS Factor Table'!H$115,FALSE)*$H640","v":0},{"$f":"VLOOKUP($F640,FactSum,'COS Factor Table'!I$115,FALSE)*$H640","v":0},{"$f":"VLOOKUP($F640,FactSum,'COS Factor Table'!J$115,FALSE)*$H640","v":0},{"$f":"VLOOKUP($F640,FactSum,'COS Factor Table'!K$115,FALSE)*$H640","v":0},{"$f":"VLOOKUP($F640,FactSum,'COS Factor Table'!L$115,FALSE)*$H640","v":0},{"$f":"VLOOKUP($F640,FactSum,'COS Factor Table'!M$115,FALSE)*$H640","v":0},{"$f":"VLOOKUP($F640,FactSum,'COS Factor Table'!N$115,FALSE)*$H640","v":0},0]
[641,null,null,null,"CAEE","F105D",null,0,{"$f":"VLOOKUP($F641,FactSum,'COS Factor Table'!F$115,FALSE)*$H641","v":0},{"$f":"VLOOKUP($F641,FactSum,'COS Factor Table'!G$115,FALSE)*$H641","v":0},{"$f":"VLOOKUP($F641,FactSum,'COS Factor Table'!H$115,FALSE)*$H641","v":0},{"$f":"VLOOKUP($F641,FactSum,'COS Factor Table'!I$115,FALSE)*$H641","v":0},{"$f":"VLOOKUP($F641,FactSum,'COS Factor Table'!J$115,FALSE)*$H641","v":0},{"$f":"VLOOKUP($F641,FactSum,'COS Factor Table'!K$115,FALSE)*$H641","v":0},{"$f":"VLOOKUP($F641,FactSum,'COS Factor Table'!L$115,FALSE)*$H641","v":0},{"$f":"VLOOKUP($F641,FactSum,'COS Factor Table'!M$115,FALSE)*$H641","v":0},{"$f":"VLOOKUP($F641,FactSum,'COS Factor Table'!N$115,FALSE)*$H641","v":0},0]
[{"$f":"A641+1","v":642},null,null,"Total General Expense",null,null,null,{"$f":"SUM(H635:H641)","v":32729.027846962854},19376.623707772029,4914.3485771476417,4598.6229173389484,1604.7509445475469,{"$f":"SUM(M635:M641)","v":222.47353422787796},1572.97252658658,439.23563934222227,0,0,0]
[643]
[644,null,"403GV0","General Vehicles",null,{"$f":"IF(Function=\"gen\",\"F105G\",IF(Function=\"TRN\",\"F105T\",IF(Function=\"DIS\",\"F105D\",IF(Function=\"RETAIL\",\"F105R\",IF(Function=\"MISC\",\"F105M\",\"ERR\")))))","v":"F105D"},null,{"$f":"SUM(UAcct403Gv0)","v":0},{"$f":"VLOOKUP($F644,FactSum,'COS Factor Table'!F$115,FALSE)*$H644","v":0},{"$f":"VLOOKUP($F644,FactSum,'COS Factor Table'!G$115,FALSE)*$H644","v":0},{"$f":"VLOOKUP($F644,FactSum,'COS Factor Table'!H$115,FALSE)*$H644","v":0},{"$f":"VLOOKUP($F644,FactSum,'COS Factor Table'!I$115,FALSE)*$H644","v":0},{"$f":"VLOOKUP($F644,FactSum,'COS Factor Table'!J$115,FALSE)*$H644","v":0},{"$f":"VLOOKUP($F644,FactSum,'COS Factor Table'!K$115,FALSE)*$H644","v":0},{"$f":"VLOOKUP($F644,FactSum,'COS Factor Table'!L$115,FALSE)*$H644","v":0},{"$f":"VLOOKUP($F644,FactSum,'COS Factor Table'!M$115,FALSE)*$H644","v":0},{"$f":"VLOOKUP($F644,FactSum,'COS Factor Table'!N$115,FALSE)*$H644","v":0},{"$f":"ROUND(SUM(I644:Q644)-H644,0)","v":0}]
[645]
[646,null,"403MP","Mining Depreciation",null,{"$f":"IF(Classification=\"DEMAND\",\"F12\",IF(Classification=\"ENERGY\",\"F30\",\"F10\"))","v":"F10"},null,{"$f":"SUM(UAcct403Mp)","v":0},{"$f":"VLOOKUP($F646,FactSum,'COS Factor Table'!F$115,FALSE)*$H646","v":0},{"$f":"VLOOKUP($F646,FactSum,'COS Factor Table'!G$115,FALSE)*$H646","v":0},{"$f":"VLOOKUP($F646,FactSum,'COS Factor Table'!H$115,FALSE)*$H646","v":0},{"$f":"VLOOKUP($F646,FactSum,'COS Factor Table'!I$115,FALSE)*$H646","v":0},{"$f":"VLOOKUP($F646,FactSum,'COS Factor Table'!J$115,FALSE)*$H646","v":0},{"$f":"VLOOKUP($F646,FactSum,'COS Factor Table'!K$115,FALSE)*$H646","v":0},{"$f":"VLOOKUP($F646,FactSum,'COS Factor Table'!L$115,FALSE)*$H646","v":0},{"$f":"VLOOKUP($F646,FactSum,'COS Factor Table'!M$115,FALSE)*$H646","v":0},{"$f":"VLOOKUP($F646,FactSum,'COS Factor Table'!N$115,FALSE)*$H646","v":0},{"$f":"ROUND(SUM(I646:Q646)-H646,0)","v":0}]
[647]
[648,null,"403EP","Experimental Plant Depreciation",null,{"$f":"IF(Classification=\"DEMAND\",\"F12\",IF(Classification=\"ENERGY\",\"F30\",\"F10\"))","v":"F10"},null,{"$f":"SUM(UAcct403Ep)","v":0},{"$f":"VLOOKUP($F648,FactSum,'COS Factor Table'!F$115,FALSE)*$H648","v":0},{"$f":"VLOOKUP($F648,FactSum,'COS Factor Table'!G$115,FALSE)*$H648","v":0},{"$f":"VLOOKUP($F648,FactSum,'COS Factor Table'!H$115,FALSE)*$H648","v":0},{"$f":"VLOOKUP($F648,FactSum,'COS Factor Table'!I$115,FALSE)*$H648","v":0},{"$f":"VLOOKUP($F648,FactSum,'COS Factor Table'!J$115,FALSE)*$H648","v":0},{"$f":"VLOOKUP($F648,FactSum,'COS Factor Table'!K$115,FALSE)*$H648","v":0},{"$f":"VLOOKUP($F648,FactSum,'COS Factor Table'!L$115,FALSE)*$H648","v":0},{"$f":"VLOOKUP($F648,FactSum,'COS Factor Table'!M$115,FALSE)*$H648","v":0},{"$f":"VLOOKUP($F648,FactSum,'COS Factor Table'!N$115,FALSE)*$H648","v":0},{"$f":"ROUND(SUM(I648:Q648)-H648,0)","v":0}]
[649]
[650]
[651,null,"TOTAL DEPRECIATION EXPENSE",null,null,null,null,{"$f":"SUM(H605,H609,H614,H616,H632,H642:H648)","v":477826.39784696285},322099.47942749842,77171.052681317422,38608.54359163723,7072.3990074993008,{"$f":"SUM(M605,M609,M614,M616,M632,M642:M648)","v":4528.4377570017368},27907.2497426665,439.23563934222227,0,0,{"$f":"ROUND(SUM(I651:Q651)-H651,0)","v":0}]
[652]
[653,null,null,null,null,null,null,"AMORTIZATION EXPENSE"]
[654]
[655]
[656,null,"404GP","Amort of LT Plant - Cap. Lease Gen"]
[657,null,null,"Division",null,{"$f":"IF(Classification=\"DEMAND\",\"F12\",IF(Classification=\"ENERGY\",\"F30\",\"F10\"))","v":"F10"},null,{"$f":"SUM(UACCT404GP)-H658-H659","v":2969.0533486685381},{"$f":"VLOOKUP($F657,FactSum,'COS Factor Table'!F$115,FALSE)*$H657","v":1259.695175017426},{"$f":"VLOOKUP($F657,FactSum,'COS Factor Table'!G$115,FALSE)*$H657","v":400.67623945837124},{"$f":"VLOOKUP($F657,FactSum,'COS Factor Table'!H$115,FALSE)*$H657","v":634.83691026193367},{"$f":"VLOOKUP($F657,FactSum,'COS Factor Table'!I$115,FALSE)*$H657","v":250.86286842445202},{"$f":"VLOOKUP($F657,FactSum,'COS Factor Table'!J$115,FALSE)*$H657","v":310.16070749095621},{"$f":"VLOOKUP($F657,FactSum,'COS Factor Table'!K$115,FALSE)*$H657","v":105.69855199781047},{"$f":"VLOOKUP($F657,FactSum,'COS Factor Table'!L$115,FALSE)*$H657","v":7.122896017588447},{"$f":"VLOOKUP($F657,FactSum,'COS Factor Table'!M$115,FALSE)*$H657","v":0},{"$f":"VLOOKUP($F657,FactSum,'COS Factor Table'!N$115,FALSE)*$H657","v":0},{"$f":"ROUND(SUM(I657:Q657)-H657,0)","v":0}]
[658,null,null,"System Overheads",null,{"$f":"IF(Function=\"gen\",\"F102G\",IF(Function=\"TRN\",\"F102T\",IF(Function=\"DIS\",\"F102D\",IF(Function=\"RETAIL\",\"F102R\",IF(Function=\"MISC\",\"F102M\",\"ERR\")))))","v":"F102D"},null,{"$f":"SUM(UACCT404GPSO)","v":723.47361058671254},{"$f":"VLOOKUP($F658,FactSum,'COS Factor Table'!F$115,FALSE)*$H658","v":428.31934942860801},{"$f":"VLOOKUP($F658,FactSum,'COS Factor Table'!G$115,FALSE)*$H658","v":108.63144256576528},{"$f":"VLOOKUP($F658,FactSum,'COS Factor Table'!H$115,FALSE)*$H658","v":101.65234180772478},{"$f":"VLOOKUP($F658,FactSum,'COS Factor Table'!I$115,FALSE)*$H658","v":35.472943631962707},{"$f":"VLOOKUP($F658,FactSum,'COS Factor Table'!J$115,FALSE)*$H658","v":4.9177669382796969},{"$f":"VLOOKUP($F658,FactSum,'COS Factor Table'!K$115,FALSE)*$H658","v":34.770483207887267},{"$f":"VLOOKUP($F658,FactSum,'COS Factor Table'!L$115,FALSE)*$H658","v":9.7092830064846911},{"$f":"VLOOKUP($F658,FactSum,'COS Factor Table'!M$115,FALSE)*$H658","v":0},{"$f":"VLOOKUP($F658,FactSum,'COS Factor Table'!N$115,FALSE)*$H658","v":0},{"$f":"ROUND(SUM(I658:Q658)-H658,0)","v":0}]
[659,null,null,"Customer - System",null,"F42",null,{"$f":"SUM(UACCT404GPCN)","v":0},{"$f":"VLOOKUP($F659,FactSum,'COS Factor Table'!F$115,FALSE)*$H659","v":0},{"$f":"VLOOKUP($F659,FactSum,'COS Factor Table'!G$115,FALSE)*$H659","v":0},{"$f":"VLOOKUP($F659,FactSum,'COS Factor Table'!H$115,FALSE)*$H659","v":0},{"$f":"VLOOKUP($F659,FactSum,'COS Factor Table'!I$115,FALSE)*$H659","v":0},{"$f":"VLOOKUP($F659,FactSum,'COS Factor Table'!J$115,FALSE)*$H659","v":0},{"$f":"VLOOKUP($F659,FactSum,'COS Factor Table'!K$115,FALSE)*$H659","v":0},{"$f":"VLOOKUP($F659,FactSum,'COS Factor Table'!L$115,FALSE)*$H659","v":0},{"$f":"VLOOKUP($F659,FactSum,'COS Factor Table'!M$115,FALSE)*$H659","v":0},{"$f":"VLOOKUP($F659,FactSum,'COS Factor Table'!N$115,FALSE)*$H659","v":0},{"$f":"ROUND(SUM(I659:Q659)-H659,0)","v":0}]
[660,null,null,"Total Amort. Cap. Lease General",null,null,null,{"$f":"SUM(H657:H659)","v":3692.5269592552504},{"$f":"SUM(I657:I659)","v":1688.0145244460341},509.30768202413651,736.48925206965851,286.33581205641474,{"$f":"SUM(M657:M659)","v":315.07847442923588},140.46903520569774,16.832179024073138,{"$f":"SUM(P657:P659)","v":0},{"$f":"SUM(Q657:Q659)","v":0},{"$f":"ROUND(SUM(I660:Q660)-H660,0)","v":0}]
[661]
[662,null,"404SP","Amort of LT Plant - Cap Lease Steam",null,{"$f":"IF(Classification=\"DEMAND\",\"F12\",IF(Classification=\"ENERGY\",\"F30\",\"F10\"))","v":"F10"},null,{"$f":"SUM(UACCT404SP)","v":0},{"$f":"VLOOKUP($F662,FactSum,'COS Factor Table'!F$115,FALSE)*$H662","v":0},{"$f":"VLOOKUP($F662,FactSum,'COS Factor Table'!G$115,FALSE)*$H662","v":0},{"$f":"VLOOKUP($F662,FactSum,'COS Factor Table'!H$115,FALSE)*$H662","v":0},{"$f":"VLOOKUP($F662,FactSum,'COS Factor Table'!I$115,FALSE)*$H662","v":0},{"$f":"VLOOKUP($F662,FactSum,'COS Factor Table'!J$115,FALSE)*$H662","v":0},{"$f":"VLOOKUP($F662,FactSum,'COS Factor Table'!K$115,FALSE)*$H662","v":0},{"$f":"VLOOKUP($F662,FactSum,'COS Factor Table'!L$115,FALSE)*$H662","v":0},{"$f":"VLOOKUP($F662,FactSum,'COS Factor Table'!M$115,FALSE)*$H662","v":0},{"$f":"VLOOKUP($F662,FactSum,'COS Factor Table'!N$115,FALSE)*$H662","v":0},{"$f":"ROUND(SUM(I662:Q662)-H662,0)","v":0}]
[663]
[664,null,"404IP","Amort of LT Plant - Intangible Plant"]
[665,null,null,null,"Situs",{"$f":"IF(Function=\"gen\",\"F107G\",IF(Function=\"TRN\",\"F107T\",IF(Function=\"DIS\",\"F107D\",IF(Function=\"RETAIL\",\"F107R\",IF(Function=\"MISC\",\"F107M\",\"ERR\")))))","v":"F107D"},null,{"$f":"SUM(UAcct404Ips)","v":2.6832929400378993},{"$f":"VLOOKUP($F665,FactSum,'COS Factor Table'!F$115,FALSE)*$H665","v":1.5885946212624971},{"$f":"VLOOKUP($F665,FactSum,'COS Factor Table'!G$115,FALSE)*$H665","v":0.40290340744628134},{"$f":"VLOOKUP($F665,FactSum,'COS Factor Table'!H$115,FALSE)*$H665","v":0.37701860457603392},{"$f":"VLOOKUP($F665,FactSum,'COS Factor Table'!I$115,FALSE)*$H665","v":0.13156568230984494},{"$f":"VLOOKUP($F665,FactSum,'COS Factor Table'!J$115,FALSE)*$H665","v":1.8239517120101106E-2},{"$f":"VLOOKUP($F665,FactSum,'COS Factor Table'!K$115,FALSE)*$H665","v":0.12896032522563966},{"$f":"VLOOKUP($F665,FactSum,'COS Factor Table'!L$115,FALSE)*$H665","v":3.6010782097500894E-2},{"$f":"VLOOKUP($F665,FactSum,'COS Factor Table'!M$115,FALSE)*$H665","v":0},{"$f":"VLOOKUP($F665,FactSum,'COS Factor Table'!N$115,FALSE)*$H665","v":0},{"$f":"ROUND(SUM(I665:Q665)-H665,0)","v":0}]
[666,null,null,null,"System Generation",{"$f":"IF(Function=\"gen\",\"F105G\",IF(Function=\"TRN\",\"F105T\",IF(Function=\"DIS\",\"F105D\",IF(Function=\"RETAIL\",\"F105R\",IF(Function=\"MISC\",\"F105M\",\"ERR\")))))","v":"F105D"},null,{"$f":"SUM(UAcct404Ipsg1+UAcct404Ipsg2+UAcct404Ipsg+UAcct404IPJBG)","v":0},{"$f":"VLOOKUP($F666,FactSum,'COS Factor Table'!F$115,FALSE)*$H666","v":0},{"$f":"VLOOKUP($F666,FactSum,'COS Factor Table'!G$115,FALSE)*$H666","v":0},{"$f":"VLOOKUP($F666,FactSum,'COS Factor Table'!H$115,FALSE)*$H666","v":0},{"$f":"VLOOKUP($F666,FactSum,'COS Factor Table'!I$115,FALSE)*$H666","v":0},{"$f":"VLOOKUP($F666,FactSum,'COS Factor Table'!J$115,FALSE)*$H666","v":0},{"$f":"VLOOKUP($F666,FactSum,'COS Factor Table'!K$115,FALSE)*$H666","v":0},{"$f":"VLOOKUP($F666,FactSum,'COS Factor Table'!L$115,FALSE)*$H666","v":0},{"$f":"VLOOKUP($F666,FactSum,'COS Factor Table'!M$115,FALSE)*$H666","v":0},{"$f":"VLOOKUP($F666,FactSum,'COS Factor Table'!N$115,FALSE)*$H666","v":0},0]
[667,null,null,null,"System Overheads",{"$f":"IF(Function=\"gen\",\"F102G\",IF(Function=\"TRN\",\"F102T\",IF(Function=\"DIS\",\"F102D\",IF(Function=\"RETAIL\",\"F102R\",IF(Function=\"MISC\",\"F102M\",\"ERR\")))))","v":"F102D"},null,{"$f":"SUM(UAcct404Ipso)","v":8811.3444432097076},{"$f":"VLOOKUP($F667,FactSum,'COS Factor Table'!F$115,FALSE)*$H667","v":5216.5956909559154},{"$f":"VLOOKUP($F667,FactSum,'COS Factor Table'!G$115,FALSE)*$H667","v":1323.0462643045994},{"$f":"VLOOKUP($F667,FactSum,'COS Factor Table'!H$115,FALSE)*$H667","v":1238.0462590755346},{"$f":"VLOOKUP($F667,FactSum,'COS Factor Table'!I$115,FALSE)*$H667","v":432.03279315510451},{"$f":"VLOOKUP($F667,FactSum,'COS Factor Table'!J$115,FALSE)*$H667","v":59.894566644207423},{"$f":"VLOOKUP($F667,FactSum,'COS Factor Table'!K$115,FALSE)*$H667","v":423.47737293841919},{"$f":"VLOOKUP($F667,FactSum,'COS Factor Table'!L$115,FALSE)*$H667","v":118.25149613592635},{"$f":"VLOOKUP($F667,FactSum,'COS Factor Table'!M$115,FALSE)*$H667","v":0},{"$f":"VLOOKUP($F667,FactSum,'COS Factor Table'!N$115,FALSE)*$H667","v":0},0]
[668,null,null,null,"Customer - System","F42",null,{"$f":"SUM(UAcct404Ipcn)","v":0},{"$f":"VLOOKUP($F668,FactSum,'COS Factor Table'!F$115,FALSE)*$H668","v":0},{"$f":"VLOOKUP($F668,FactSum,'COS Factor Table'!G$115,FALSE)*$H668","v":0},{"$f":"VLOOKUP($F668,FactSum,'COS Factor Table'!H$115,FALSE)*$H668","v":0},{"$f":"VLOOKUP($F668,FactSum,'COS Factor Table'!I$115,FALSE)*$H668","v":0},{"$f":"VLOOKUP($F668,FactSum,'COS Factor Table'!J$115,FALSE)*$H668","v":0},{"$f":"VLOOKUP($F668,FactSum,'COS Factor Table'!K$115,FALSE)*$H668","v":0},{"$f":"VLOOKUP($F668,FactSum,'COS Factor Table'!L$115,FALSE)*$H668","v":0},{"$f":"VLOOKUP($F668,FactSum,'COS Factor Table'!M$115,FALSE)*$H668","v":0},{"$f":"VLOOKUP($F668,FactSum,'COS Factor Table'!N$115,FALSE)*$H668","v":0},0]
[669,null,null,null,"Energy",{"$f":"IF(Classification=\"DEMAND\",\"F12\",IF(Classification=\"ENERGY\",\"F30\",\"F10\"))","v":"F10"},null,{"$f":"SUM(UAcct404Ipse+'Func Study'!AB1161)","v":0},{"$f":"VLOOKUP($F669,FactSum,'COS Factor Table'!F$115,FALSE)*$H669","v":0},{"$f":"VLOOKUP($F669,FactSum,'COS Factor Table'!G$115,FALSE)*$H669","v":0},{"$f":"VLOOKUP($F669,FactSum,'COS Factor Table'!H$115,FALSE)*$H669","v":0},{"$f":"VLOOKUP($F669,FactSum,'COS Factor Table'!I$115,FALSE)*$H669","v":0},{"$f":"VLOOKUP($F669,FactSum,'COS Factor Table'!J$115,FALSE)*$H669","v":0},{"$f":"VLOOKUP($F669,FactSum,'COS Factor Table'!K$115,FALSE)*$H669","v":0},{"$f":"VLOOKUP($F669,FactSum,'COS Factor Table'!L$115,FALSE)*$H669","v":0},{"$f":"VLOOKUP($F669,FactSum,'COS Factor Table'!M$115,FALSE)*$H669","v":0},{"$f":"VLOOKUP($F669,FactSum,'COS Factor Table'!N$115,FALSE)*$H669","v":0},0]
[670,null,null,null,"CAEW",{"$f":"IF(Function=\"gen\",\"F105G\",IF(Function=\"TRN\",\"F105T\",IF(Function=\"DIS\",\"F105D\",IF(Function=\"RETAIL\",\"F105R\",IF(Function=\"MISC\",\"F105M\",\"ERR\")))))","v":"F105D"},null,0,{"$f":"VLOOKUP($F670,FactSum,'COS Factor Table'!F$115,FALSE)*$H670","v":0},{"$f":"VLOOKUP($F670,FactSum,'COS Factor Table'!G$115,FALSE)*$H670","v":0},{"$f":"VLOOKUP($F670,FactSum,'COS Factor Table'!H$115,FALSE)*$H670","v":0},{"$f":"VLOOKUP($F670,FactSum,'COS Factor Table'!I$115,FALSE)*$H670","v":0},{"$f":"VLOOKUP($F670,FactSum,'COS Factor Table'!J$115,FALSE)*$H670","v":0},{"$f":"VLOOKUP($F670,FactSum,'COS Factor Table'!K$115,FALSE)*$H670","v":0},{"$f":"VLOOKUP($F670,FactSum,'COS Factor Table'!L$115,FALSE)*$H670","v":0},{"$f":"VLOOKUP($F670,FactSum,'COS Factor Table'!M$115,FALSE)*$H670","v":0},{"$f":"VLOOKUP($F670,FactSum,'COS Factor Table'!N$115,FALSE)*$H670","v":0},0]
[671,null,null,null,"CAEE",{"$f":"IF(Function=\"gen\",\"F105G\",IF(Function=\"TRN\",\"F105T\",IF(Function=\"DIS\",\"F105D\",IF(Function=\"RETAIL\",\"F105R\",IF(Function=\"MISC\",\"F105M\",\"ERR\")))))","v":"F105D"},null,0,{"$f":"VLOOKUP($F671,FactSum,'COS Factor Table'!F$115,FALSE)*$H671","v":0},{"$f":"VLOOKUP($F671,FactSum,'COS Factor Table'!G$115,FALSE)*$H671","v":0},{"$f":"VLOOKUP($F671,FactSum,'COS Factor Table'!H$115,FALSE)*$H671","v":0},{"$f":"VLOOKUP($F671,FactSum,'COS Factor Table'!I$115,FALSE)*$H671","v":0},{"$f":"VLOOKUP($F671,FactSum,'COS Factor Table'!J$115,FALSE)*$H671","v":0},{"$f":"VLOOKUP($F671,FactSum,'COS Factor Table'!K$115,FALSE)*$H671","v":0},{"$f":"VLOOKUP($F671,FactSum,'COS Factor Table'!L$115,FALSE)*$H671","v":0},{"$f":"VLOOKUP($F671,FactSum,'COS Factor Table'!M$115,FALSE)*$H671","v":0},{"$f":"VLOOKUP($F671,FactSum,'COS Factor Table'!N$115,FALSE)*$H671","v":0},0]
[672,null,null,"Total Amort. Intangible Plant",null,null,null,{"$f":"SUM(H665:H671)","v":8814.0277361497447},{"$f":"SUM(I665:I671)","v":5218.1842855771783},1323.4491677120457,1238.4232776801107,432.16435883741434,{"$f":"SUM(M665:M671)","v":59.912806161327524},423.60633326364484,118.28750691802385,0,0,0]
[673]
[674,null,{"$f":"$E$1","v":"Distribution - METER -  Unbundled"},null,null,null,null,"AMORTIZATION EXPENSE (continued)"]
[675]
[676]
[677,null,"A",null,"B","C",null,"D","E","F","G","H","I","J","K","S","T"]
[678,null,null,null,null,null,null,{"$f":"'Hot Sheet'!$H$10","v":"Washington"},null,{"$f":"'Hot Sheet'!$J$10","v":"Small General"},{"$f":"'Hot Sheet'!$K$10","v":"Large General"},{"$f":"'Hot Sheet'!$L$10","v":"Large General"},{"$f":"'Hot Sheet'!$M$10","v":"Large General"},{"$f":"'Hot Sheet'!$N$10","v":"Agricultural"},{"$f":"'Hot Sheet'!$O$10","v":"Street & Area"}]
[679,null,"FERC",null,null,"COS",null,{"$f":"'Hot Sheet'!$H$11","v":"Jurisdiction"},{"$f":"'Hot Sheet'!$I$11","v":"Residential"},{"$f":"'Hot Sheet'!$J$11","v":"Service"},{"$f":"'Hot Sheet'!$K$11","v":"Service <1,000 kW"},{"$f":"'Hot Sheet'!$L$11","v":"Service >1,000 kW"},{"$f":"'Hot Sheet'!$M$11","v":"Dedicated Facilities"},{"$f":"'Hot Sheet'!$N$11","v":"Pumping"},{"$f":"'Hot Sheet'!$O$11","v":"Lighting"},{"$f":"'Hot Sheet'!P$11","v":"-"},{"$f":"'Hot Sheet'!Q$11","v":"-"}]
[680,null,"ACCT",null,"DESCRIPTION ","Factor",null,{"$f":"'Hot Sheet'!$H$12","v":"Normalized"},{"$f":"'Hot Sheet'!$I$12","v":"Schedule 16"},{"$f":"'Hot Sheet'!$J$12","v":"Schedule 24"},{"$f":"'Hot Sheet'!$K$12","v":"Schedule 36"},{"$f":"'Hot Sheet'!$L$12","v":"Schedule 48T"},{"$f":"'Hot Sheet'!$M$12","v":"Schedule 48T"},{"$f":"'Hot Sheet'!$N$12","v":"Schedule 40"},{"$f":"'Hot Sheet'!$O$12","v":"Sch. 15,51-54,57"},{"$f":"'Hot Sheet'!P$12","v":"-"},{"$f":"'Hot Sheet'!Q$12","v":"-"}]
[681,null,"404MP",null,"Amort of LT Plant - Mining Plant",{"$f":"IF(Classification=\"DEMAND\",\"F12\",IF(Classification=\"ENERGY\",\"F30\",\"F10\"))","v":"F10"},null,{"$f":"SUM(UAcct404M)","v":0},{"$f":"VLOOKUP($F681,FactSum,'COS Factor Table'!F$115,FALSE)*$H681","v":0},{"$f":"VLOOKUP($F681,FactSum,'COS Factor Table'!G$115,FALSE)*$H681","v":0},{"$f":"VLOOKUP($F681,FactSum,'COS Factor Table'!H$115,FALSE)*$H681","v":0},{"$f":"VLOOKUP($F681,FactSum,'COS Factor Table'!I$115,FALSE)*$H681","v":0},{"$f":"VLOOKUP($F681,FactSum,'COS Factor Table'!J$115,FALSE)*$H681","v":0},{"$f":"VLOOKUP($F681,FactSum,'COS Factor Table'!K$115,FALSE)*$H681","v":0},{"$f":"VLOOKUP($F681,FactSum,'COS Factor Table'!L$115,FALSE)*$H681","v":0},{"$f":"VLOOKUP($F681,FactSum,'COS Factor Table'!M$115,FALSE)*$H681","v":0},{"$f":"VLOOKUP($F681,FactSum,'COS Factor Table'!N$115,FALSE)*$H681","v":0},{"$f":"ROUND(SUM(I681:Q681)-H681,0)","v":0}]
[682]
[683,null,"404OP",null,"Amort of LT Plant - Other Plant","F30",null,{"$f":"SUM(UACCT404OP)","v":0},{"$f":"VLOOKUP($F683,FactSum,'COS Factor Table'!F$115,FALSE)*$H683","v":0},{"$f":"VLOOKUP($F683,FactSum,'COS Factor Table'!G$115,FALSE)*$H683","v":0},{"$f":"VLOOKUP($F683,FactSum,'COS Factor Table'!H$115,FALSE)*$H683","v":0},{"$f":"VLOOKUP($F683,FactSum,'COS Factor Table'!I$115,FALSE)*$H683","v":0},{"$f":"VLOOKUP($F683,FactSum,'COS Factor Table'!J$115,FALSE)*$H683","v":0},{"$f":"VLOOKUP($F683,FactSum,'COS Factor Table'!K$115,FALSE)*$H683","v":0},{"$f":"VLOOKUP($F683,FactSum,'COS Factor Table'!L$115,FALSE)*$H683","v":0},{"$f":"VLOOKUP($F683,FactSum,'COS Factor Table'!M$115,FALSE)*$H683","v":0},{"$f":"VLOOKUP($F683,FactSum,'COS Factor Table'!N$115,FALSE)*$H683","v":0},{"$f":"ROUND(SUM(I683:Q683)-H683,0)","v":0}]
[684]
[685,null,"404HP",null,"Amort of Other Electric Plant","F110",null,{"$f":"SUM(UAcct404330)","v":0},{"$f":"VLOOKUP($F685,FactSum,'COS Factor Table'!F$115,FALSE)*$H685","v":0},{"$f":"VLOOKUP($F685,FactSum,'COS Factor Table'!G$115,FALSE)*$H685","v":0},{"$f":"VLOOKUP($F685,FactSum,'COS Factor Table'!H$115,FALSE)*$H685","v":0},{"$f":"VLOOKUP($F685,FactSum,'COS Factor Table'!I$115,FALSE)*$H685","v":0},{"$f":"VLOOKUP($F685,FactSum,'COS Factor Table'!J$115,FALSE)*$H685","v":0},{"$f":"VLOOKUP($F685,FactSum,'COS Factor Table'!K$115,FALSE)*$H685","v":0},{"$f":"VLOOKUP($F685,FactSum,'COS Factor Table'!L$115,FALSE)*$H685","v":0},{"$f":"VLOOKUP($F685,FactSum,'COS Factor Table'!M$115,FALSE)*$H685","v":0},{"$f":"VLOOKUP($F685,FactSum,'COS Factor Table'!N$115,FALSE)*$H685","v":0},{"$f":"ROUND(SUM(I685:Q685)-H685,0)","v":0}]
[686]
[687,null,"405",null,"Amort of Other Electric Plant","F110",null,{"$f":"SUM(UAcct405)","v":0},{"$f":"VLOOKUP($F687,FactSum,'COS Factor Table'!F$115,FALSE)*$H687","v":0},{"$f":"VLOOKUP($F687,FactSum,'COS Factor Table'!G$115,FALSE)*$H687","v":0},{"$f":"VLOOKUP($F687,FactSum,'COS Factor Table'!H$115,FALSE)*$H687","v":0},{"$f":"VLOOKUP($F687,FactSum,'COS Factor Table'!I$115,FALSE)*$H687","v":0},{"$f":"VLOOKUP($F687,FactSum,'COS Factor Table'!J$115,FALSE)*$H687","v":0},{"$f":"VLOOKUP($F687,FactSum,'COS Factor Table'!K$115,FALSE)*$H687","v":0},{"$f":"VLOOKUP($F687,FactSum,'COS Factor Table'!L$115,FALSE)*$H687","v":0},{"$f":"VLOOKUP($F687,FactSum,'COS Factor Table'!M$115,FALSE)*$H687","v":0},{"$f":"VLOOKUP($F687,FactSum,'COS Factor Table'!N$115,FALSE)*$H687","v":0},{"$f":"ROUND(SUM(I687:Q687)-H687,0)","v":0}]
[688]
[689,null,"406",null,"Amort of Plant Acquisition Adj",{"$f":"IF(Classification=\"DEMAND\",\"F12\",IF(Classification=\"ENERGY\",\"F30\",\"F10\"))","v":"F10"},null,{"$f":"SUM(UAcct406)","v":0},{"$f":"VLOOKUP($F689,FactSum,'COS Factor Table'!F$115,FALSE)*$H689","v":0},{"$f":"VLOOKUP($F689,FactSum,'COS Factor Table'!G$115,FALSE)*$H689","v":0},{"$f":"VLOOKUP($F689,FactSum,'COS Factor Table'!H$115,FALSE)*$H689","v":0},{"$f":"VLOOKUP($F689,FactSum,'COS Factor Table'!I$115,FALSE)*$H689","v":0},{"$f":"VLOOKUP($F689,FactSum,'COS Factor Table'!J$115,FALSE)*$H689","v":0},{"$f":"VLOOKUP($F689,FactSum,'COS Factor Table'!K$115,FALSE)*$H689","v":0},{"$f":"VLOOKUP($F689,FactSum,'COS Factor Table'!L$115,FALSE)*$H689","v":0},{"$f":"VLOOKUP($F689,FactSum,'COS Factor Table'!M$115,FALSE)*$H689","v":0},{"$f":"VLOOKUP($F689,FactSum,'COS Factor Table'!N$115,FALSE)*$H689","v":0},{"$f":"ROUND(SUM(I689:Q689)-H689,0)","v":0}]
[690]
[691,null,"407",null,"Amort of Prop Losses, Unrec Plant,","F110",null,{"$f":"SUM(UAcct407)","v":0},{"$f":"VLOOKUP($F691,FactSum,'COS Factor Table'!F$115,FALSE)*$H691","v":0},{"$f":"VLOOKUP($F691,FactSum,'COS Factor Table'!G$115,FALSE)*$H691","v":0},{"$f":"VLOOKUP($F691,FactSum,'COS Factor Table'!H$115,FALSE)*$H691","v":0},{"$f":"VLOOKUP($F691,FactSum,'COS Factor Table'!I$115,FALSE)*$H691","v":0},{"$f":"VLOOKUP($F691,FactSum,'COS Factor Table'!J$115,FALSE)*$H691","v":0},{"$f":"VLOOKUP($F691,FactSum,'COS Factor Table'!K$115,FALSE)*$H691","v":0},{"$f":"VLOOKUP($F691,FactSum,'COS Factor Table'!L$115,FALSE)*$H691","v":0},{"$f":"VLOOKUP($F691,FactSum,'COS Factor Table'!M$115,FALSE)*$H691","v":0},{"$f":"VLOOKUP($F691,FactSum,'COS Factor Table'!N$115,FALSE)*$H691","v":0},{"$f":"ROUND(SUM(I691:Q691)-H691,0)","v":0}]
[692]
[693]
[694,null,"TOTAL AMORTIZATION EXPENSE",null,null,null,null,{"$f":"SUM(H660:H671)+SUM(H681:H691)","v":12506.554695404997},{"$f":"SUM(I660:I671)+SUM(I681:I691)","v":6906.198810023212},1832.7568497361822,1974.9125297497692,718.50017089382914,{"$f":"SUM(M660:M671)+SUM(M681:M691)","v":374.99128059056341},564.07536846934261,135.11968594209699,0,0,{"$f":"ROUND(SUM(I694:Q694)-H694,0)","v":0}]
[695]
[696]
[697,null,null,null,null,null,null,"TAX OTHER THAN INCOME"]
[698]
[699]
[700,null,"408","Taxes Other Than Income",null,{"$f":"IF(Function=\"gen\",\"F101G\",IF(Function=\"TRN\",\"F101T\",IF(Function=\"DIS\",\"F101D\",IF(Function=\"RETAIL\",\"F101R\",IF(Function=\"MISC\",\"F101M\",\"ERR\")))))","v":"F101D"},null,{"$f":"SUM(UAcct408)-H701","v":63387.550303698037},{"$f":"VLOOKUP($F700,FactSum,'COS Factor Table'!F$115,FALSE)*$H700","v":37781.822539617853},{"$f":"VLOOKUP($F700,FactSum,'COS Factor Table'!G$115,FALSE)*$H700","v":9565.881113523903},{"$f":"VLOOKUP($F700,FactSum,'COS Factor Table'!H$115,FALSE)*$H700","v":8754.8522128087916},{"$f":"VLOOKUP($F700,FactSum,'COS Factor Table'!I$115,FALSE)*$H700","v":3028.5090657496467},{"$f":"VLOOKUP($F700,FactSum,'COS Factor Table'!J$115,FALSE)*$H700","v":506.27649371088518},{"$f":"VLOOKUP($F700,FactSum,'COS Factor Table'!K$115,FALSE)*$H700","v":3005.5624543241106},{"$f":"VLOOKUP($F700,FactSum,'COS Factor Table'!L$115,FALSE)*$H700","v":744.64642396285205},{"$f":"VLOOKUP($F700,FactSum,'COS Factor Table'!M$115,FALSE)*$H700","v":0},{"$f":"VLOOKUP($F700,FactSum,'COS Factor Table'!N$115,FALSE)*$H700","v":0},{"$f":"ROUND(SUM(I700:Q700)-H700,0)","v":0}]
[701,null,null,null,"Customer - System","F101D",null,{"$f":"UAcct408S","v":91794.090258756347},{"$f":"VLOOKUP($F701,FactSum,'COS Factor Table'!F$115,FALSE)*$H701","v":54713.394218985362},{"$f":"VLOOKUP($F701,FactSum,'COS Factor Table'!G$115,FALSE)*$H701","v":13852.74158935462},{"$f":"VLOOKUP($F701,FactSum,'COS Factor Table'!H$115,FALSE)*$H701","v":12678.257644825853},{"$f":"VLOOKUP($F701,FactSum,'COS Factor Table'!I$115,FALSE)*$H701","v":4385.7071806522617},{"$f":"VLOOKUP($F701,FactSum,'COS Factor Table'!J$115,FALSE)*$H701","v":733.15958633713649},{"$f":"VLOOKUP($F701,FactSum,'COS Factor Table'!K$115,FALSE)*$H701","v":4352.4772591576393},{"$f":"VLOOKUP($F701,FactSum,'COS Factor Table'!L$115,FALSE)*$H701","v":1078.3527794434799},{"$f":"VLOOKUP($F701,FactSum,'COS Factor Table'!M$115,FALSE)*$H701","v":0},{"$f":"VLOOKUP($F701,FactSum,'COS Factor Table'!N$115,FALSE)*$H701","v":0},{"$f":"ROUND(SUM(I701:Q701)-H701,0)","v":0}]
[702,null,null,{"$f":"\"Total \"&D700","v":"Total Taxes Other Than Income"},null,null,null,{"$f":"H700+H701","v":155181.64056245438},{"$f":"I700+I701","v":92495.216758603216},23418.622702878522,21433.109857634645,7414.2162464019084,{"$f":"M700+M701","v":1239.4360800480217},7358.0397134817504,1822.9992034063321,{"$f":"P700+P701","v":0},{"$f":"Q700+Q701","v":0},{"$f":"ROUND(SUM(I702:Q702)-H702,0)","v":0}]
[703]
[704]
[705,null,null,null,null,null,null,"DEFERRED  ITC"]
[{"$f":"A705+1","v":706}]
[707]
[708,null,"41140","Deferred I T C - Federal",null,{"$f":"IF(Function=\"gen\",\"F101G\",IF(Function=\"TRN\",\"F101T\",IF(Function=\"DIS\",\"F101D\",IF(Function=\"RETAIL\",\"F101R\",IF(Function=\"MISC\",\"F101M\",\"ERR\")))))","v":"F101D"},null,{"$f":"SUM(UAcct41140)","v":0},{"$f":"VLOOKUP($F708,FactSum,'COS Factor Table'!F$115,FALSE)*$H708","v":0},{"$f":"VLOOKUP($F708,FactSum,'COS Factor Table'!G$115,FALSE)*$H708","v":0},{"$f":"VLOOKUP($F708,FactSum,'COS Factor Table'!H$115,FALSE)*$H708","v":0},{"$f":"VLOOKUP($F708,FactSum,'COS Factor Table'!I$115,FALSE)*$H708","v":0},{"$f":"VLOOKUP($F708,FactSum,'COS Factor Table'!J$115,FALSE)*$H708","v":0},{"$f":"VLOOKUP($F708,FactSum,'COS Factor Table'!K$115,FALSE)*$H708","v":0},{"$f":"VLOOKUP($F708,FactSum,'COS Factor Table'!L$115,FALSE)*$H708","v":0},{"$f":"VLOOKUP($F708,FactSum,'COS Factor Table'!M$115,FALSE)*$H708","v":0},{"$f":"VLOOKUP($F708,FactSum,'COS Factor Table'!N$115,FALSE)*$H708","v":0},{"$f":"ROUND(SUM(I708:Q708)-H708,0)","v":0}]
[709]
[710,null,"41141","Deferred I T C - Idaho",null,{"$f":"IF(Function=\"gen\",\"F101G\",IF(Function=\"TRN\",\"F101T\",IF(Function=\"DIS\",\"F101D\",IF(Function=\"RETAIL\",\"F101R\",IF(Function=\"MISC\",\"F101M\",\"ERR\")))))","v":"F101D"},null,{"$f":"SUM(UAcct41141)","v":0},{"$f":"VLOOKUP($F710,FactSum,'COS Factor Table'!F$115,FALSE)*$H710","v":0},{"$f":"VLOOKUP($F710,FactSum,'COS Factor Table'!G$115,FALSE)*$H710","v":0},{"$f":"VLOOKUP($F710,FactSum,'COS Factor Table'!H$115,FALSE)*$H710","v":0},{"$f":"VLOOKUP($F710,FactSum,'COS Factor Table'!I$115,FALSE)*$H710","v":0},{"$f":"VLOOKUP($F710,FactSum,'COS Factor Table'!J$115,FALSE)*$H710","v":0},{"$f":"VLOOKUP($F710,FactSum,'COS Factor Table'!K$115,FALSE)*$H710","v":0},{"$f":"VLOOKUP($F710,FactSum,'COS Factor Table'!L$115,FALSE)*$H710","v":0},{"$f":"VLOOKUP($F710,FactSum,'COS Factor Table'!M$115,FALSE)*$H710","v":0},{"$f":"VLOOKUP($F710,FactSum,'COS Factor Table'!N$115,FALSE)*$H710","v":0},{"$f":"ROUND(SUM(I710:Q710)-H710,0)","v":0}]
[711]
[712,null,"TOTAL DEFERRED ITC",null,null,null,null,{"$f":"SUM(H708:H710)","v":0},{"$f":"SUM(I708:I710)","v":0},0,0,0,{"$f":"SUM(M708:M710)","v":0},0,0,{"$f":"SUM(P708:P710)","v":0},{"$f":"SUM(Q708:Q710)","v":0},{"$f":"ROUND(SUM(I712:Q712)-H712,0)","v":0}]
[713]
[714]
[715,null,null,null,null,null,null,"DEFERRED INCOME TAXES"]
[716]
[717]
[718,null,"41010","Deferred Income Tax - Federal-DR",null,{"$f":"IF(Function=\"gen\",\"F101G\",IF(Function=\"TRN\",\"F101T\",IF(Function=\"DIS\",\"F101D\",IF(Function=\"RETAIL\",\"F101R\",IF(Function=\"MISC\",\"F101M\",\"ERR\")))))","v":"F101D"},null,{"$f":"SUM(UAcct41010)","v":210166.72322092851},{"$f":"VLOOKUP($F718,FactSum,'COS Factor Table'!F$115,FALSE)*$H718","v":125268.7917804398},{"$f":"VLOOKUP($F718,FactSum,'COS Factor Table'!G$115,FALSE)*$H718","v":31716.478688923195},{"$f":"VLOOKUP($F718,FactSum,'COS Factor Table'!H$115,FALSE)*$H718","v":29027.444553921727},{"$f":"VLOOKUP($F718,FactSum,'COS Factor Table'!I$115,FALSE)*$H718","v":10041.275038141768},{"$f":"VLOOKUP($F718,FactSum,'COS Factor Table'!J$115,FALSE)*$H718","v":1678.6020475189466},{"$f":"VLOOKUP($F718,FactSum,'COS Factor Table'!K$115,FALSE)*$H718","v":9965.1936292653718},{"$f":"VLOOKUP($F718,FactSum,'COS Factor Table'!L$115,FALSE)*$H718","v":2468.9374827177176},{"$f":"VLOOKUP($F718,FactSum,'COS Factor Table'!M$115,FALSE)*$H718","v":0},{"$f":"VLOOKUP($F718,FactSum,'COS Factor Table'!N$115,FALSE)*$H718","v":0},{"$f":"ROUND(SUM(I718:Q718)-H718,0)","v":0}]
[719]
[720,null,"41011","Deferred Income Tax - State-DR",null,{"$f":"IF(Function=\"gen\",\"F101G\",IF(Function=\"TRN\",\"F101T\",IF(Function=\"DIS\",\"F101D\",IF(Function=\"RETAIL\",\"F101R\",IF(Function=\"MISC\",\"F101M\",\"ERR\")))))","v":"F101D"},null,{"$f":"SUM(UAcct41011)","v":0},{"$f":"VLOOKUP($F720,FactSum,'COS Factor Table'!F$115,FALSE)*$H720","v":0},{"$f":"VLOOKUP($F720,FactSum,'COS Factor Table'!G$115,FALSE)*$H720","v":0},{"$f":"VLOOKUP($F720,FactSum,'COS Factor Table'!H$115,FALSE)*$H720","v":0},{"$f":"VLOOKUP($F720,FactSum,'COS Factor Table'!I$115,FALSE)*$H720","v":0},{"$f":"VLOOKUP($F720,FactSum,'COS Factor Table'!J$115,FALSE)*$H720","v":0},{"$f":"VLOOKUP($F720,FactSum,'COS Factor Table'!K$115,FALSE)*$H720","v":0},{"$f":"VLOOKUP($F720,FactSum,'COS Factor Table'!L$115,FALSE)*$H720","v":0},{"$f":"VLOOKUP($F720,FactSum,'COS Factor Table'!M$115,FALSE)*$H720","v":0},{"$f":"VLOOKUP($F720,FactSum,'COS Factor Table'!N$115,FALSE)*$H720","v":0},{"$f":"ROUND(SUM(I720:Q720)-H720,0)","v":0}]
[721]
[722,null,"41110","Deferred Income Tax - Federal-CR",null,{"$f":"IF(Function=\"gen\",\"F101G\",IF(Function=\"TRN\",\"F101T\",IF(Function=\"DIS\",\"F101D\",IF(Function=\"RETAIL\",\"F101R\",IF(Function=\"MISC\",\"F101M\",\"ERR\")))))","v":"F101D"},null,{"$f":"SUM(UAcct41110)","v":-188814.57130323281},{"$f":"VLOOKUP($F722,FactSum,'COS Factor Table'!F$115,FALSE)*$H722","v":-112541.95171913086},{"$f":"VLOOKUP($F722,FactSum,'COS Factor Table'!G$115,FALSE)*$H722","v":-28494.20324549653},{"$f":"VLOOKUP($F722,FactSum,'COS Factor Table'!H$115,FALSE)*$H722","v":-26078.364907063027},{"$f":"VLOOKUP($F722,FactSum,'COS Factor Table'!I$115,FALSE)*$H722","v":-9021.1191030064638},{"$f":"VLOOKUP($F722,FactSum,'COS Factor Table'!J$115,FALSE)*$H722","v":-1508.062366551934},{"$f":"VLOOKUP($F722,FactSum,'COS Factor Table'!K$115,FALSE)*$H722","v":-8952.7672803154765},{"$f":"VLOOKUP($F722,FactSum,'COS Factor Table'!L$115,FALSE)*$H722","v":-2218.1026816685267},{"$f":"VLOOKUP($F722,FactSum,'COS Factor Table'!M$115,FALSE)*$H722","v":0},{"$f":"VLOOKUP($F722,FactSum,'COS Factor Table'!N$115,FALSE)*$H722","v":0},{"$f":"ROUND(SUM(I722:Q722)-H722,0)","v":0}]
[723]
[724,null,"41111","Deferred Income Tax - State-CR",null,{"$f":"IF(Function=\"gen\",\"F101G\",IF(Function=\"TRN\",\"F101T\",IF(Function=\"DIS\",\"F101D\",IF(Function=\"RETAIL\",\"F101R\",IF(Function=\"MISC\",\"F101M\",\"ERR\")))))","v":"F101D"},null,{"$f":"SUM(UAcct41111)","v":0},{"$f":"VLOOKUP($F724,FactSum,'COS Factor Table'!F$115,FALSE)*$H724","v":0},{"$f":"VLOOKUP($F724,FactSum,'COS Factor Table'!G$115,FALSE)*$H724","v":0},{"$f":"VLOOKUP($F724,FactSum,'COS Factor Table'!H$115,FALSE)*$H724","v":0},{"$f":"VLOOKUP($F724,FactSum,'COS Factor Table'!I$115,FALSE)*$H724","v":0},{"$f":"VLOOKUP($F724,FactSum,'COS Factor Table'!J$115,FALSE)*$H724","v":0},{"$f":"VLOOKUP($F724,FactSum,'COS Factor Table'!K$115,FALSE)*$H724","v":0},{"$f":"VLOOKUP($F724,FactSum,'COS Factor Table'!L$115,FALSE)*$H724","v":0},{"$f":"VLOOKUP($F724,FactSum,'COS Factor Table'!M$115,FALSE)*$H724","v":0},{"$f":"VLOOKUP($F724,FactSum,'COS Factor Table'!N$115,FALSE)*$H724","v":0},{"$f":"ROUND(SUM(I724:Q724)-H724,0)","v":0}]
[725]
[726,null,"TOTAL DEFERRED INCOME TAXES",null,null,null,null,{"$f":"SUM(H718:H724)","v":21352.151917695708},{"$f":"SUM(I718:I724)","v":12726.840061308947},3222.2754434266644,2949.0796468586996,1020.1559351353044,{"$f":"SUM(M718:M724)","v":170.5396809670126},1012.4263489498953,250.8348010491909,{"$f":"SUM(P718:P724)","v":0},{"$f":"SUM(Q718:Q724)","v":0},{"$f":"ROUND(SUM(I726:Q726)-H726,0)","v":0}]
[727]
[728]
[729,null,null,null,null,null,null,"INCOME TAXES"]
[730]
[731]
[732,null,"40911","State Income Taxes",null,{"$f":"IF(Function=\"gen\",\"F101G\",IF(Function=\"TRN\",\"F101T\",IF(Function=\"DIS\",\"F101D\",IF(Function=\"RETAIL\",\"F101R\",IF(Function=\"MISC\",\"F101M\",\"ERR\")))))","v":"F101D"},null,{"$f":"SUM(UAcctsttax)","v":0},{"$f":"VLOOKUP($F732,FactSum,'COS Factor Table'!F$115,FALSE)*$H732","v":0},{"$f":"VLOOKUP($F732,FactSum,'COS Factor Table'!G$115,FALSE)*$H732","v":0},{"$f":"VLOOKUP($F732,FactSum,'COS Factor Table'!H$115,FALSE)*$H732","v":0},{"$f":"VLOOKUP($F732,FactSum,'COS Factor Table'!I$115,FALSE)*$H732","v":0},{"$f":"VLOOKUP($F732,FactSum,'COS Factor Table'!J$115,FALSE)*$H732","v":0},{"$f":"VLOOKUP($F732,FactSum,'COS Factor Table'!K$115,FALSE)*$H732","v":0},{"$f":"VLOOKUP($F732,FactSum,'COS Factor Table'!L$115,FALSE)*$H732","v":0},{"$f":"VLOOKUP($F732,FactSum,'COS Factor Table'!M$115,FALSE)*$H732","v":0},{"$f":"VLOOKUP($F732,FactSum,'COS Factor Table'!N$115,FALSE)*$H732","v":0},{"$f":"ROUND(SUM(I732:Q732)-H732,0)","v":0}]
[733]
[734,null,"40910","Federal Income Tax",null,{"$f":"IF(Function=\"gen\",\"F101G\",IF(Function=\"TRN\",\"F101T\",IF(Function=\"DIS\",\"F101D\",IF(Function=\"RETAIL\",\"F101R\",IF(Function=\"MISC\",\"F101M\",\"ERR\")))))","v":"F101D"},null,{"$f":"SUM(UAcctfit)","v":80022.586929930549},{"$f":"VLOOKUP($F734,FactSum,'COS Factor Table'!F$115,FALSE)*$H734","v":47697.050352352759},{"$f":"VLOOKUP($F734,FactSum,'COS Factor Table'!G$115,FALSE)*$H734","v":12076.29178444034},{"$f":"VLOOKUP($F734,FactSum,'COS Factor Table'!H$115,FALSE)*$H734","v":11052.421475535617},{"$f":"VLOOKUP($F734,FactSum,'COS Factor Table'!I$115,FALSE)*$H734","v":3823.2922525150047},{"$f":"VLOOKUP($F734,FactSum,'COS Factor Table'!J$115,FALSE)*$H734","v":639.14056521279031},{"$f":"VLOOKUP($F734,FactSum,'COS Factor Table'!K$115,FALSE)*$H734","v":3794.3236743202397},{"$f":"VLOOKUP($F734,FactSum,'COS Factor Table'!L$115,FALSE)*$H734","v":940.0668255538003},{"$f":"VLOOKUP($F734,FactSum,'COS Factor Table'!M$115,FALSE)*$H734","v":0},{"$f":"VLOOKUP($F734,FactSum,'COS Factor Table'!N$115,FALSE)*$H734","v":0},{"$f":"ROUND(SUM(I734:Q734)-H734,0)","v":0}]
[735]
[736]
[737,null,"TOTAL OPERATING EXPENSES",null,null,null,null,{"$f":"+H207+H595+H651+H694+H702+H712+H726+SUM(H732:H735)","v":1956688.1595383903},1280965.3317041483,310022.4570428427,176020.49263837235,39682.860531710146,20212.335154753837,110040.15803358309,19744.524432979786,0,0,{"$f":"ROUND(SUM(I737:Q737)-H737,0)","v":0}]
[738]
[739]
[740,null,{"$f":"$E$1","v":"Distribution - METER -  Unbundled"},null,null,null,null,"STEAM PRODUCTION PLANT"]
[741]
[742,null,"A",null,"B","C",null,"D","E","F","G","H","I","J","K","S","T"]
[743,null,null,null,null,null,null,{"$f":"'Hot Sheet'!$H$10","v":"Washington"},null,{"$f":"'Hot Sheet'!$J$10","v":"Small General"},{"$f":"'Hot Sheet'!$K$10","v":"Large General"},{"$f":"'Hot Sheet'!$L$10","v":"Large General"},{"$f":"'Hot Sheet'!$M$10","v":"Large General"},{"$f":"'Hot Sheet'!$N$10","v":"Agricultural"},{"$f":"'Hot Sheet'!$O$10","v":"Street & Area"}]
[744,null,"FERC",null,null,"COS",null,{"$f":"'Hot Sheet'!$H$11","v":"Jurisdiction"},{"$f":"'Hot Sheet'!$I$11","v":"Residential"},{"$f":"'Hot Sheet'!$J$11","v":"Service"},{"$f":"'Hot Sheet'!$K$11","v":"Service <1,000 kW"},{"$f":"'Hot Sheet'!$L$11","v":"Service >1,000 kW"},{"$f":"'Hot Sheet'!$M$11","v":"Dedicated Facilities"},{"$f":"'Hot Sheet'!$N$11","v":"Pumping"},{"$f":"'Hot Sheet'!$O$11","v":"Lighting"},{"$f":"'Hot Sheet'!P$11","v":"-"},{"$f":"'Hot Sheet'!Q$11","v":"-"}]
[745,null,"ACCT",null,"DESCRIPTION ","Factor",null,{"$f":"'Hot Sheet'!$H$12","v":"Normalized"},{"$f":"'Hot Sheet'!$I$12","v":"Schedule 16"},{"$f":"'Hot Sheet'!$J$12","v":"Schedule 24"},{"$f":"'Hot Sheet'!$K$12","v":"Schedule 36"},{"$f":"'Hot Sheet'!$L$12","v":"Schedule 48T"},{"$f":"'Hot Sheet'!$M$12","v":"Schedule 48T"},{"$f":"'Hot Sheet'!$N$12","v":"Schedule 40"},{"$f":"'Hot Sheet'!$O$12","v":"Sch. 15,51-54,57"},{"$f":"'Hot Sheet'!P$12","v":"-"},{"$f":"'Hot Sheet'!Q$12","v":"-"}]
[746,null,"310","Land and Land Rights",null,{"$f":"IF(Classification=\"DEMAND\",\"F12\",IF(Classification=\"ENERGY\",\"F30\",\"F10\"))","v":"F10"},null,{"$f":"SUM(UAcct310)-H747","v":0},{"$f":"VLOOKUP($F746,FactSum,'COS Factor Table'!F$115,FALSE)*$H746","v":0},{"$f":"VLOOKUP($F746,FactSum,'COS Factor Table'!G$115,FALSE)*$H746","v":0},{"$f":"VLOOKUP($F746,FactSum,'COS Factor Table'!H$115,FALSE)*$H746","v":0},{"$f":"VLOOKUP($F746,FactSum,'COS Factor Table'!I$115,FALSE)*$H746","v":0},{"$f":"VLOOKUP($F746,FactSum,'COS Factor Table'!J$115,FALSE)*$H746","v":0},{"$f":"VLOOKUP($F746,FactSum,'COS Factor Table'!K$115,FALSE)*$H746","v":0},{"$f":"VLOOKUP($F746,FactSum,'COS Factor Table'!L$115,FALSE)*$H746","v":0},{"$f":"VLOOKUP($F746,FactSum,'COS Factor Table'!M$115,FALSE)*$H746","v":0},{"$f":"VLOOKUP($F746,FactSum,'COS Factor Table'!N$115,FALSE)*$H746","v":0},{"$f":"ROUND(SUM(I746:Q746)-H746,0)","v":0}]
[747,null,null,null,"JBG","F10",null,{"$f":"UAcct310JBG","v":0},{"$f":"VLOOKUP($F747,FactSum,'COS Factor Table'!F$115,FALSE)*$H747","v":0},{"$f":"VLOOKUP($F747,FactSum,'COS Factor Table'!G$115,FALSE)*$H747","v":0},{"$f":"VLOOKUP($F747,FactSum,'COS Factor Table'!H$115,FALSE)*$H747","v":0},{"$f":"VLOOKUP($F747,FactSum,'COS Factor Table'!I$115,FALSE)*$H747","v":0},{"$f":"VLOOKUP($F747,FactSum,'COS Factor Table'!J$115,FALSE)*$H747","v":0},{"$f":"VLOOKUP($F747,FactSum,'COS Factor Table'!K$115,FALSE)*$H747","v":0},{"$f":"VLOOKUP($F747,FactSum,'COS Factor Table'!L$115,FALSE)*$H747","v":0},{"$f":"VLOOKUP($F747,FactSum,'COS Factor Table'!M$115,FALSE)*$H747","v":0},{"$f":"VLOOKUP($F747,FactSum,'COS Factor Table'!N$115,FALSE)*$H747","v":0},{"$f":"ROUND(SUM(I747:Q747)-H747,0)","v":0}]
[748,null,null,null,"Total 310",null,null,{"$f":"SUM(H746:H747)","v":0},0,0,0,0,{"$f":"SUM(M746:M747)","v":0},0,0,0,0,{"$f":"ROUND(SUM(I748:Q748)-H748,0)","v":0}]
[749]
[750,null,"311","Structures and Improvements",null,{"$f":"IF(Classification=\"DEMAND\",\"F12\",IF(Classification=\"ENERGY\",\"F30\",\"F10\"))","v":"F10"},null,{"$f":"SUM(UAcct311)-H751","v":0},{"$f":"VLOOKUP($F750,FactSum,'COS Factor Table'!F$115,FALSE)*$H750","v":0},{"$f":"VLOOKUP($F750,FactSum,'COS Factor Table'!G$115,FALSE)*$H750","v":0},{"$f":"VLOOKUP($F750,FactSum,'COS Factor Table'!H$115,FALSE)*$H750","v":0},{"$f":"VLOOKUP($F750,FactSum,'COS Factor Table'!I$115,FALSE)*$H750","v":0},{"$f":"VLOOKUP($F750,FactSum,'COS Factor Table'!J$115,FALSE)*$H750","v":0},{"$f":"VLOOKUP($F750,FactSum,'COS Factor Table'!K$115,FALSE)*$H750","v":0},{"$f":"VLOOKUP($F750,FactSum,'COS Factor Table'!L$115,FALSE)*$H750","v":0},{"$f":"VLOOKUP($F750,FactSum,'COS Factor Table'!M$115,FALSE)*$H750","v":0},{"$f":"VLOOKUP($F750,FactSum,'COS Factor Table'!N$115,FALSE)*$H750","v":0},{"$f":"ROUND(SUM(I750:Q750)-H750,0)","v":0}]
[751,null,null,null,"JBG","F10",null,{"$f":"UAcct311JBG","v":0},{"$f":"VLOOKUP($F751,FactSum,'COS Factor Table'!F$115,FALSE)*$H751","v":0},{"$f":"VLOOKUP($F751,FactSum,'COS Factor Table'!G$115,FALSE)*$H751","v":0},{"$f":"VLOOKUP($F751,FactSum,'COS Factor Table'!H$115,FALSE)*$H751","v":0},{"$f":"VLOOKUP($F751,FactSum,'COS Factor Table'!I$115,FALSE)*$H751","v":0},{"$f":"VLOOKUP($F751,FactSum,'COS Factor Table'!J$115,FALSE)*$H751","v":0},{"$f":"VLOOKUP($F751,FactSum,'COS Factor Table'!K$115,FALSE)*$H751","v":0},{"$f":"VLOOKUP($F751,FactSum,'COS Factor Table'!L$115,FALSE)*$H751","v":0},{"$f":"VLOOKUP($F751,FactSum,'COS Factor Table'!M$115,FALSE)*$H751","v":0},{"$f":"VLOOKUP($F751,FactSum,'COS Factor Table'!N$115,FALSE)*$H751","v":0},{"$f":"ROUND(SUM(I751:Q751)-H751,0)","v":0}]
[752,null,null,null,"Total 311",null,null,{"$f":"SUM(H750:H751)","v":0},0,0,0,0,{"$f":"SUM(M750:M751)","v":0},0,0,0,0,{"$f":"ROUND(SUM(I752:Q752)-H752,0)","v":0}]
[753]
[754,null,"312","Boiler Plant Equipment",null,{"$f":"IF(Classification=\"DEMAND\",\"F12\",IF(Classification=\"ENERGY\",\"F30\",\"F10\"))","v":"F10"},null,{"$f":"SUM(UAcct312)-H755","v":0},{"$f":"VLOOKUP($F754,FactSum,'COS Factor Table'!F$115,FALSE)*$H754","v":0},{"$f":"VLOOKUP($F754,FactSum,'COS Factor Table'!G$115,FALSE)*$H754","v":0},{"$f":"VLOOKUP($F754,FactSum,'COS Factor Table'!H$115,FALSE)*$H754","v":0},{"$f":"VLOOKUP($F754,FactSum,'COS Factor Table'!I$115,FALSE)*$H754","v":0},{"$f":"VLOOKUP($F754,FactSum,'COS Factor Table'!J$115,FALSE)*$H754","v":0},{"$f":"VLOOKUP($F754,FactSum,'COS Factor Table'!K$115,FALSE)*$H754","v":0},{"$f":"VLOOKUP($F754,FactSum,'COS Factor Table'!L$115,FALSE)*$H754","v":0},{"$f":"VLOOKUP($F754,FactSum,'COS Factor Table'!M$115,FALSE)*$H754","v":0},{"$f":"VLOOKUP($F754,FactSum,'COS Factor Table'!N$115,FALSE)*$H754","v":0},{"$f":"ROUND(SUM(I754:Q754)-H754,0)","v":0}]
[755,null,null,null,"JBG","F10",null,{"$f":"UAcct312JBG","v":0},{"$f":"VLOOKUP($F755,FactSum,'COS Factor Table'!F$115,FALSE)*$H755","v":0},{"$f":"VLOOKUP($F755,FactSum,'COS Factor Table'!G$115,FALSE)*$H755","v":0},{"$f":"VLOOKUP($F755,FactSum,'COS Factor Table'!H$115,FALSE)*$H755","v":0},{"$f":"VLOOKUP($F755,FactSum,'COS Factor Table'!I$115,FALSE)*$H755","v":0},{"$f":"VLOOKUP($F755,FactSum,'COS Factor Table'!J$115,FALSE)*$H755","v":0},{"$f":"VLOOKUP($F755,FactSum,'COS Factor Table'!K$115,FALSE)*$H755","v":0},{"$f":"VLOOKUP($F755,FactSum,'COS Factor Table'!L$115,FALSE)*$H755","v":0},{"$f":"VLOOKUP($F755,FactSum,'COS Factor Table'!M$115,FALSE)*$H755","v":0},{"$f":"VLOOKUP($F755,FactSum,'COS Factor Table'!N$115,FALSE)*$H755","v":0},{"$f":"ROUND(SUM(I755:Q755)-H755,0)","v":0}]
[756,null,null,null,"Total 312",null,null,{"$f":"SUM(H754:H755)","v":0},0,0,0,0,{"$f":"SUM(M754:M755)","v":0},0,0,0,0,{"$f":"ROUND(SUM(I756:Q756)-H756,0)","v":0}]
[757]
[758,null,"314","Turbogenerator Units",null,{"$f":"IF(Classification=\"DEMAND\",\"F12\",IF(Classification=\"ENERGY\",\"F30\",\"F10\"))","v":"F10"},null,{"$f":"SUM(UAcct314)-H759","v":0},{"$f":"VLOOKUP($F758,FactSum,'COS Factor Table'!F$115,FALSE)*$H758","v":0},{"$f":"VLOOKUP($F758,FactSum,'COS Factor Table'!G$115,FALSE)*$H758","v":0},{"$f":"VLOOKUP($F758,FactSum,'COS Factor Table'!H$115,FALSE)*$H758","v":0},{"$f":"VLOOKUP($F758,FactSum,'COS Factor Table'!I$115,FALSE)*$H758","v":0},{"$f":"VLOOKUP($F758,FactSum,'COS Factor Table'!J$115,FALSE)*$H758","v":0},{"$f":"VLOOKUP($F758,FactSum,'COS Factor Table'!K$115,FALSE)*$H758","v":0},{"$f":"VLOOKUP($F758,FactSum,'COS Factor Table'!L$115,FALSE)*$H758","v":0},{"$f":"VLOOKUP($F758,FactSum,'COS Factor Table'!M$115,FALSE)*$H758","v":0},{"$f":"VLOOKUP($F758,FactSum,'COS Factor Table'!N$115,FALSE)*$H758","v":0},{"$f":"ROUND(SUM(I758:Q758)-H758,0)","v":0}]
[759,null,null,null,"JBG","F10",null,{"$f":"UAcct314JBG","v":0},{"$f":"VLOOKUP($F759,FactSum,'COS Factor Table'!F$115,FALSE)*$H759","v":0},{"$f":"VLOOKUP($F759,FactSum,'COS Factor Table'!G$115,FALSE)*$H759","v":0},{"$f":"VLOOKUP($F759,FactSum,'COS Factor Table'!H$115,FALSE)*$H759","v":0},{"$f":"VLOOKUP($F759,FactSum,'COS Factor Table'!I$115,FALSE)*$H759","v":0},{"$f":"VLOOKUP($F759,FactSum,'COS Factor Table'!J$115,FALSE)*$H759","v":0},{"$f":"VLOOKUP($F759,FactSum,'COS Factor Table'!K$115,FALSE)*$H759","v":0},{"$f":"VLOOKUP($F759,FactSum,'COS Factor Table'!L$115,FALSE)*$H759","v":0},{"$f":"VLOOKUP($F759,FactSum,'COS Factor Table'!M$115,FALSE)*$H759","v":0},{"$f":"VLOOKUP($F759,FactSum,'COS Factor Table'!N$115,FALSE)*$H759","v":0},{"$f":"ROUND(SUM(I759:Q759)-H759,0)","v":0}]
[760,null,null,null,"Total 314",null,null,{"$f":"SUM(H758:H759)","v":0},0,0,0,0,{"$f":"SUM(M758:M759)","v":0},0,0,0,0,{"$f":"ROUND(SUM(I760:Q760)-H760,0)","v":0}]
[761]
[762,null,"315","Accessory Electric Equipment",null,{"$f":"IF(Classification=\"DEMAND\",\"F12\",IF(Classification=\"ENERGY\",\"F30\",\"F10\"))","v":"F10"},null,{"$f":"SUM(UAcct315)-H763","v":0},{"$f":"VLOOKUP($F762,FactSum,'COS Factor Table'!F$115,FALSE)*$H762","v":0},{"$f":"VLOOKUP($F762,FactSum,'COS Factor Table'!G$115,FALSE)*$H762","v":0},{"$f":"VLOOKUP($F762,FactSum,'COS Factor Table'!H$115,FALSE)*$H762","v":0},{"$f":"VLOOKUP($F762,FactSum,'COS Factor Table'!I$115,FALSE)*$H762","v":0},{"$f":"VLOOKUP($F762,FactSum,'COS Factor Table'!J$115,FALSE)*$H762","v":0},{"$f":"VLOOKUP($F762,FactSum,'COS Factor Table'!K$115,FALSE)*$H762","v":0},{"$f":"VLOOKUP($F762,FactSum,'COS Factor Table'!L$115,FALSE)*$H762","v":0},{"$f":"VLOOKUP($F762,FactSum,'COS Factor Table'!M$115,FALSE)*$H762","v":0},{"$f":"VLOOKUP($F762,FactSum,'COS Factor Table'!N$115,FALSE)*$H762","v":0},{"$f":"ROUND(SUM(I762:Q762)-H762,0)","v":0}]
[763,null,null,null,"JBG","F10",null,{"$f":"UAcct315JBG","v":0},{"$f":"VLOOKUP($F763,FactSum,'COS Factor Table'!F$115,FALSE)*$H763","v":0},{"$f":"VLOOKUP($F763,FactSum,'COS Factor Table'!G$115,FALSE)*$H763","v":0},{"$f":"VLOOKUP($F763,FactSum,'COS Factor Table'!H$115,FALSE)*$H763","v":0},{"$f":"VLOOKUP($F763,FactSum,'COS Factor Table'!I$115,FALSE)*$H763","v":0},{"$f":"VLOOKUP($F763,FactSum,'COS Factor Table'!J$115,FALSE)*$H763","v":0},{"$f":"VLOOKUP($F763,FactSum,'COS Factor Table'!K$115,FALSE)*$H763","v":0},{"$f":"VLOOKUP($F763,FactSum,'COS Factor Table'!L$115,FALSE)*$H763","v":0},{"$f":"VLOOKUP($F763,FactSum,'COS Factor Table'!M$115,FALSE)*$H763","v":0},{"$f":"VLOOKUP($F763,FactSum,'COS Factor Table'!N$115,FALSE)*$H763","v":0},{"$f":"ROUND(SUM(I763:Q763)-H763,0)","v":0}]
[764,null,null,null,"Total 315",null,null,{"$f":"SUM(H762:H763)","v":0},0,0,0,0,{"$f":"SUM(M762:M763)","v":0},0,0,0,0,{"$f":"ROUND(SUM(I764:Q764)-H764,0)","v":0}]
[765]
[766,null,"316","Misc Power Plant Equipment",null,{"$f":"IF(Classification=\"DEMAND\",\"F12\",IF(Classification=\"ENERGY\",\"F30\",\"F10\"))","v":"F10"},null,{"$f":"SUM(UAcct316)-H767","v":0},{"$f":"VLOOKUP($F766,FactSum,'COS Factor Table'!F$115,FALSE)*$H766","v":0},{"$f":"VLOOKUP($F766,FactSum,'COS Factor Table'!G$115,FALSE)*$H766","v":0},{"$f":"VLOOKUP($F766,FactSum,'COS Factor Table'!H$115,FALSE)*$H766","v":0},{"$f":"VLOOKUP($F766,FactSum,'COS Factor Table'!I$115,FALSE)*$H766","v":0},{"$f":"VLOOKUP($F766,FactSum,'COS Factor Table'!J$115,FALSE)*$H766","v":0},{"$f":"VLOOKUP($F766,FactSum,'COS Factor Table'!K$115,FALSE)*$H766","v":0},{"$f":"VLOOKUP($F766,FactSum,'COS Factor Table'!L$115,FALSE)*$H766","v":0},{"$f":"VLOOKUP($F766,FactSum,'COS Factor Table'!M$115,FALSE)*$H766","v":0},{"$f":"VLOOKUP($F766,FactSum,'COS Factor Table'!N$115,FALSE)*$H766","v":0},{"$f":"ROUND(SUM(I766:Q766)-H766,0)","v":0}]
[767,null,null,null,"JBG","F10",null,{"$f":"UAcct316JBG","v":0},{"$f":"VLOOKUP($F767,FactSum,'COS Factor Table'!F$115,FALSE)*$H767","v":0},{"$f":"VLOOKUP($F767,FactSum,'COS Factor Table'!G$115,FALSE)*$H767","v":0},{"$f":"VLOOKUP($F767,FactSum,'COS Factor Table'!H$115,FALSE)*$H767","v":0},{"$f":"VLOOKUP($F767,FactSum,'COS Factor Table'!I$115,FALSE)*$H767","v":0},{"$f":"VLOOKUP($F767,FactSum,'COS Factor Table'!J$115,FALSE)*$H767","v":0},{"$f":"VLOOKUP($F767,FactSum,'COS Factor Table'!K$115,FALSE)*$H767","v":0},{"$f":"VLOOKUP($F767,FactSum,'COS Factor Table'!L$115,FALSE)*$H767","v":0},{"$f":"VLOOKUP($F767,FactSum,'COS Factor Table'!M$115,FALSE)*$H767","v":0},{"$f":"VLOOKUP($F767,FactSum,'COS Factor Table'!N$115,FALSE)*$H767","v":0},{"$f":"ROUND(SUM(I767:Q767)-H767,0)","v":0}]
[768,null,null,null,"Total 316",null,null,{"$f":"SUM(H766:H767)","v":0},0,0,0,0,{"$f":"SUM(M766:M767)","v":0},0,0,0,0,{"$f":"ROUND(SUM(I768:Q768)-H768,0)","v":0}]
[769]
[{"$f":"A769+1","v":770},null,"SP","Unclassified Steam Plant - Acct 300",null,{"$f":"IF(Classification=\"DEMAND\",\"F12\",IF(Classification=\"ENERGY\",\"F30\",\"F10\"))","v":"F10"},null,{"$f":"SUM(UAccts00)","v":0},{"$f":"VLOOKUP($F770,FactSum,'COS Factor Table'!F$115,FALSE)*$H770","v":0},{"$f":"VLOOKUP($F770,FactSum,'COS Factor Table'!G$115,FALSE)*$H770","v":0},{"$f":"VLOOKUP($F770,FactSum,'COS Factor Table'!H$115,FALSE)*$H770","v":0},{"$f":"VLOOKUP($F770,FactSum,'COS Factor Table'!I$115,FALSE)*$H770","v":0},{"$f":"VLOOKUP($F770,FactSum,'COS Factor Table'!J$115,FALSE)*$H770","v":0},{"$f":"VLOOKUP($F770,FactSum,'COS Factor Table'!K$115,FALSE)*$H770","v":0},{"$f":"VLOOKUP($F770,FactSum,'COS Factor Table'!L$115,FALSE)*$H770","v":0},{"$f":"VLOOKUP($F770,FactSum,'COS Factor Table'!M$115,FALSE)*$H770","v":0},{"$f":"VLOOKUP($F770,FactSum,'COS Factor Table'!N$115,FALSE)*$H770","v":0},{"$f":"ROUND(SUM(I770:Q770)-H770,0)","v":0}]
[771]
[772]
[773]
[774,null,"Total Steam Production Plant",null,null,null,null,{"$f":"SUM(H748,H752,H756,H760,H764,H768,H770)","v":0},0,0,0,0,{"$f":"SUM(M748,M752,M756,M760,M764,M768,M770)","v":0},0,0,0,0,{"$f":"ROUND(SUM(I774:Q774)-H774,0)","v":0}]
[775]
[776]
[777,null,null,null,null,null,null,"NUCLEAR PRODUCTION"]
[778]
[779]
[780,null,"320","Land and Land Rights",null,{"$f":"IF(Classification=\"DEMAND\",\"F12\",IF(Classification=\"ENERGY\",\"F30\",\"F10\"))","v":"F10"},null,{"$f":"SUM(UAcct320)","v":0},{"$f":"VLOOKUP($F780,FactSum,'COS Factor Table'!F$115,FALSE)*$H780","v":0},{"$f":"VLOOKUP($F780,FactSum,'COS Factor Table'!G$115,FALSE)*$H780","v":0},{"$f":"VLOOKUP($F780,FactSum,'COS Factor Table'!H$115,FALSE)*$H780","v":0},{"$f":"VLOOKUP($F780,FactSum,'COS Factor Table'!I$115,FALSE)*$H780","v":0},{"$f":"VLOOKUP($F780,FactSum,'COS Factor Table'!J$115,FALSE)*$H780","v":0},{"$f":"VLOOKUP($F780,FactSum,'COS Factor Table'!K$115,FALSE)*$H780","v":0},{"$f":"VLOOKUP($F780,FactSum,'COS Factor Table'!L$115,FALSE)*$H780","v":0},{"$f":"VLOOKUP($F780,FactSum,'COS Factor Table'!M$115,FALSE)*$H780","v":0},{"$f":"VLOOKUP($F780,FactSum,'COS Factor Table'!N$115,FALSE)*$H780","v":0},{"$f":"ROUND(SUM(I780:Q780)-H780,0)","v":0}]
[781]
[782,null,"321","Structures and Improvements",null,{"$f":"IF(Classification=\"DEMAND\",\"F12\",IF(Classification=\"ENERGY\",\"F30\",\"F10\"))","v":"F10"},null,{"$f":"SUM(UAcct321)","v":0},{"$f":"VLOOKUP($F782,FactSum,'COS Factor Table'!F$115,FALSE)*$H782","v":0},{"$f":"VLOOKUP($F782,FactSum,'COS Factor Table'!G$115,FALSE)*$H782","v":0},{"$f":"VLOOKUP($F782,FactSum,'COS Factor Table'!H$115,FALSE)*$H782","v":0},{"$f":"VLOOKUP($F782,FactSum,'COS Factor Table'!I$115,FALSE)*$H782","v":0},{"$f":"VLOOKUP($F782,FactSum,'COS Factor Table'!J$115,FALSE)*$H782","v":0},{"$f":"VLOOKUP($F782,FactSum,'COS Factor Table'!K$115,FALSE)*$H782","v":0},{"$f":"VLOOKUP($F782,FactSum,'COS Factor Table'!L$115,FALSE)*$H782","v":0},{"$f":"VLOOKUP($F782,FactSum,'COS Factor Table'!M$115,FALSE)*$H782","v":0},{"$f":"VLOOKUP($F782,FactSum,'COS Factor Table'!N$115,FALSE)*$H782","v":0},{"$f":"ROUND(SUM(I782:Q782)-H782,0)","v":0}]
[783]
[784,null,"322","Reactor Plant Equipment",null,{"$f":"IF(Classification=\"DEMAND\",\"F12\",IF(Classification=\"ENERGY\",\"F30\",\"F10\"))","v":"F10"},null,{"$f":"SUM(UAcct322)","v":0},{"$f":"VLOOKUP($F784,FactSum,'COS Factor Table'!F$115,FALSE)*$H784","v":0},{"$f":"VLOOKUP($F784,FactSum,'COS Factor Table'!G$115,FALSE)*$H784","v":0},{"$f":"VLOOKUP($F784,FactSum,'COS Factor Table'!H$115,FALSE)*$H784","v":0},{"$f":"VLOOKUP($F784,FactSum,'COS Factor Table'!I$115,FALSE)*$H784","v":0},{"$f":"VLOOKUP($F784,FactSum,'COS Factor Table'!J$115,FALSE)*$H784","v":0},{"$f":"VLOOKUP($F784,FactSum,'COS Factor Table'!K$115,FALSE)*$H784","v":0},{"$f":"VLOOKUP($F784,FactSum,'COS Factor Table'!L$115,FALSE)*$H784","v":0},{"$f":"VLOOKUP($F784,FactSum,'COS Factor Table'!M$115,FALSE)*$H784","v":0},{"$f":"VLOOKUP($F784,FactSum,'COS Factor Table'!N$115,FALSE)*$H784","v":0},{"$f":"ROUND(SUM(I784:Q784)-H784,0)","v":0}]
[785]
[786,null,"323","Turbogenerator Units",null,{"$f":"IF(Classification=\"DEMAND\",\"F12\",IF(Classification=\"ENERGY\",\"F30\",\"F10\"))","v":"F10"},null,{"$f":"SUM(UAcct323)","v":0},{"$f":"VLOOKUP($F786,FactSum,'COS Factor Table'!F$115,FALSE)*$H786","v":0},{"$f":"VLOOKUP($F786,FactSum,'COS Factor Table'!G$115,FALSE)*$H786","v":0},{"$f":"VLOOKUP($F786,FactSum,'COS Factor Table'!H$115,FALSE)*$H786","v":0},{"$f":"VLOOKUP($F786,FactSum,'COS Factor Table'!I$115,FALSE)*$H786","v":0},{"$f":"VLOOKUP($F786,FactSum,'COS Factor Table'!J$115,FALSE)*$H786","v":0},{"$f":"VLOOKUP($F786,FactSum,'COS Factor Table'!K$115,FALSE)*$H786","v":0},{"$f":"VLOOKUP($F786,FactSum,'COS Factor Table'!L$115,FALSE)*$H786","v":0},{"$f":"VLOOKUP($F786,FactSum,'COS Factor Table'!M$115,FALSE)*$H786","v":0},{"$f":"VLOOKUP($F786,FactSum,'COS Factor Table'!N$115,FALSE)*$H786","v":0},{"$f":"ROUND(SUM(I786:Q786)-H786,0)","v":0}]
[787]
[788,null,"324","Land and Land Rights",null,{"$f":"IF(Classification=\"DEMAND\",\"F12\",IF(Classification=\"ENERGY\",\"F30\",\"F10\"))","v":"F10"},null,{"$f":"SUM(UAcct324)","v":0},{"$f":"VLOOKUP($F788,FactSum,'COS Factor Table'!F$115,FALSE)*$H788","v":0},{"$f":"VLOOKUP($F788,FactSum,'COS Factor Table'!G$115,FALSE)*$H788","v":0},{"$f":"VLOOKUP($F788,FactSum,'COS Factor Table'!H$115,FALSE)*$H788","v":0},{"$f":"VLOOKUP($F788,FactSum,'COS Factor Table'!I$115,FALSE)*$H788","v":0},{"$f":"VLOOKUP($F788,FactSum,'COS Factor Table'!J$115,FALSE)*$H788","v":0},{"$f":"VLOOKUP($F788,FactSum,'COS Factor Table'!K$115,FALSE)*$H788","v":0},{"$f":"VLOOKUP($F788,FactSum,'COS Factor Table'!L$115,FALSE)*$H788","v":0},{"$f":"VLOOKUP($F788,FactSum,'COS Factor Table'!M$115,FALSE)*$H788","v":0},{"$f":"VLOOKUP($F788,FactSum,'COS Factor Table'!N$115,FALSE)*$H788","v":0},{"$f":"ROUND(SUM(I788:Q788)-H788,0)","v":0}]
[789]
[790,null,"325","Misc. Power Plant Equipment",null,{"$f":"IF(Classification=\"DEMAND\",\"F12\",IF(Classification=\"ENERGY\",\"F30\",\"F10\"))","v":"F10"},null,{"$f":"SUM(UAcct325)","v":0},{"$f":"VLOOKUP($F790,FactSum,'COS Factor Table'!F$115,FALSE)*$H790","v":0},{"$f":"VLOOKUP($F790,FactSum,'COS Factor Table'!G$115,FALSE)*$H790","v":0},{"$f":"VLOOKUP($F790,FactSum,'COS Factor Table'!H$115,FALSE)*$H790","v":0},{"$f":"VLOOKUP($F790,FactSum,'COS Factor Table'!I$115,FALSE)*$H790","v":0},{"$f":"VLOOKUP($F790,FactSum,'COS Factor Table'!J$115,FALSE)*$H790","v":0},{"$f":"VLOOKUP($F790,FactSum,'COS Factor Table'!K$115,FALSE)*$H790","v":0},{"$f":"VLOOKUP($F790,FactSum,'COS Factor Table'!L$115,FALSE)*$H790","v":0},{"$f":"VLOOKUP($F790,FactSum,'COS Factor Table'!M$115,FALSE)*$H790","v":0},{"$f":"VLOOKUP($F790,FactSum,'COS Factor Table'!N$115,FALSE)*$H790","v":0},{"$f":"ROUND(SUM(I790:Q790)-H790,0)","v":0}]
[791]
[792,null,"NP","Unclassified Nuclear Plt - Acct 300",null,{"$f":"IF(Classification=\"DEMAND\",\"F12\",IF(Classification=\"ENERGY\",\"F30\",\"F10\"))","v":"F10"},null,{"$f":"SUM(UAcctn00)","v":0},{"$f":"VLOOKUP($F792,FactSum,'COS Factor Table'!F$115,FALSE)*$H792","v":0},{"$f":"VLOOKUP($F792,FactSum,'COS Factor Table'!G$115,FALSE)*$H792","v":0},{"$f":"VLOOKUP($F792,FactSum,'COS Factor Table'!H$115,FALSE)*$H792","v":0},{"$f":"VLOOKUP($F792,FactSum,'COS Factor Table'!I$115,FALSE)*$H792","v":0},{"$f":"VLOOKUP($F792,FactSum,'COS Factor Table'!J$115,FALSE)*$H792","v":0},{"$f":"VLOOKUP($F792,FactSum,'COS Factor Table'!K$115,FALSE)*$H792","v":0},{"$f":"VLOOKUP($F792,FactSum,'COS Factor Table'!L$115,FALSE)*$H792","v":0},{"$f":"VLOOKUP($F792,FactSum,'COS Factor Table'!M$115,FALSE)*$H792","v":0},{"$f":"VLOOKUP($F792,FactSum,'COS Factor Table'!N$115,FALSE)*$H792","v":0},{"$f":"ROUND(SUM(I792:Q792)-H792,0)","v":0}]
[793]
[794,null,"Total Nuclear Production Plant",null,null,null,null,{"$f":"SUM(H780:H792)","v":0},{"$f":"SUM(I779:I792)","v":0},0,0,0,{"$f":"SUM(M779:M792)","v":0},0,0,{"$f":"SUM(P779:P792)","v":0},{"$f":"SUM(Q779:Q792)","v":0},{"$f":"ROUND(SUM(I794:Q794)-H794,0)","v":0}]
[795]
[796]
[797,null,null,null,null,null,null,"HYDRAULIC PRODUCTION PLANT"]
[798]
[799]
[800,null,"330","Land and Land Rights",null,{"$f":"IF(Classification=\"DEMAND\",\"F12\",IF(Classification=\"ENERGY\",\"F30\",\"F10\"))","v":"F10"},null,{"$f":"SUM(UAcct330)","v":0},{"$f":"VLOOKUP($F800,FactSum,'COS Factor Table'!F$115,FALSE)*$H800","v":0},{"$f":"VLOOKUP($F800,FactSum,'COS Factor Table'!G$115,FALSE)*$H800","v":0},{"$f":"VLOOKUP($F800,FactSum,'COS Factor Table'!H$115,FALSE)*$H800","v":0},{"$f":"VLOOKUP($F800,FactSum,'COS Factor Table'!I$115,FALSE)*$H800","v":0},{"$f":"VLOOKUP($F800,FactSum,'COS Factor Table'!J$115,FALSE)*$H800","v":0},{"$f":"VLOOKUP($F800,FactSum,'COS Factor Table'!K$115,FALSE)*$H800","v":0},{"$f":"VLOOKUP($F800,FactSum,'COS Factor Table'!L$115,FALSE)*$H800","v":0},{"$f":"VLOOKUP($F800,FactSum,'COS Factor Table'!M$115,FALSE)*$H800","v":0},{"$f":"VLOOKUP($F800,FactSum,'COS Factor Table'!N$115,FALSE)*$H800","v":0},{"$f":"ROUND(SUM(I800:Q800)-H800,0)","v":0}]
[801]
[802,null,"331","Structures and Improvements",null,{"$f":"IF(Classification=\"DEMAND\",\"F12\",IF(Classification=\"ENERGY\",\"F30\",\"F10\"))","v":"F10"},null,{"$f":"SUM(UAcct331)","v":0},{"$f":"VLOOKUP($F802,FactSum,'COS Factor Table'!F$115,FALSE)*$H802","v":0},{"$f":"VLOOKUP($F802,FactSum,'COS Factor Table'!G$115,FALSE)*$H802","v":0},{"$f":"VLOOKUP($F802,FactSum,'COS Factor Table'!H$115,FALSE)*$H802","v":0},{"$f":"VLOOKUP($F802,FactSum,'COS Factor Table'!I$115,FALSE)*$H802","v":0},{"$f":"VLOOKUP($F802,FactSum,'COS Factor Table'!J$115,FALSE)*$H802","v":0},{"$f":"VLOOKUP($F802,FactSum,'COS Factor Table'!K$115,FALSE)*$H802","v":0},{"$f":"VLOOKUP($F802,FactSum,'COS Factor Table'!L$115,FALSE)*$H802","v":0},{"$f":"VLOOKUP($F802,FactSum,'COS Factor Table'!M$115,FALSE)*$H802","v":0},{"$f":"VLOOKUP($F802,FactSum,'COS Factor Table'!N$115,FALSE)*$H802","v":0},{"$f":"ROUND(SUM(I802:Q802)-H802,0)","v":0}]
[803]
[804,null,"332","Reservoirs, Dams & Waterways",null,{"$f":"IF(Classification=\"DEMAND\",\"F12\",IF(Classification=\"ENERGY\",\"F30\",\"F10\"))","v":"F10"},null,{"$f":"SUM(UAcct332)","v":0},{"$f":"VLOOKUP($F804,FactSum,'COS Factor Table'!F$115,FALSE)*$H804","v":0},{"$f":"VLOOKUP($F804,FactSum,'COS Factor Table'!G$115,FALSE)*$H804","v":0},{"$f":"VLOOKUP($F804,FactSum,'COS Factor Table'!H$115,FALSE)*$H804","v":0},{"$f":"VLOOKUP($F804,FactSum,'COS Factor Table'!I$115,FALSE)*$H804","v":0},{"$f":"VLOOKUP($F804,FactSum,'COS Factor Table'!J$115,FALSE)*$H804","v":0},{"$f":"VLOOKUP($F804,FactSum,'COS Factor Table'!K$115,FALSE)*$H804","v":0},{"$f":"VLOOKUP($F804,FactSum,'COS Factor Table'!L$115,FALSE)*$H804","v":0},{"$f":"VLOOKUP($F804,FactSum,'COS Factor Table'!M$115,FALSE)*$H804","v":0},{"$f":"VLOOKUP($F804,FactSum,'COS Factor Table'!N$115,FALSE)*$H804","v":0},{"$f":"ROUND(SUM(I804:Q804)-H804,0)","v":0}]
[805]
[806,null,"333","Water Wheel, Turbines, & Generators",null,{"$f":"IF(Classification=\"DEMAND\",\"F12\",IF(Classification=\"ENERGY\",\"F30\",\"F10\"))","v":"F10"},null,{"$f":"SUM(UAcct333)","v":0},{"$f":"VLOOKUP($F806,FactSum,'COS Factor Table'!F$115,FALSE)*$H806","v":0},{"$f":"VLOOKUP($F806,FactSum,'COS Factor Table'!G$115,FALSE)*$H806","v":0},{"$f":"VLOOKUP($F806,FactSum,'COS Factor Table'!H$115,FALSE)*$H806","v":0},{"$f":"VLOOKUP($F806,FactSum,'COS Factor Table'!I$115,FALSE)*$H806","v":0},{"$f":"VLOOKUP($F806,FactSum,'COS Factor Table'!J$115,FALSE)*$H806","v":0},{"$f":"VLOOKUP($F806,FactSum,'COS Factor Table'!K$115,FALSE)*$H806","v":0},{"$f":"VLOOKUP($F806,FactSum,'COS Factor Table'!L$115,FALSE)*$H806","v":0},{"$f":"VLOOKUP($F806,FactSum,'COS Factor Table'!M$115,FALSE)*$H806","v":0},{"$f":"VLOOKUP($F806,FactSum,'COS Factor Table'!N$115,FALSE)*$H806","v":0},{"$f":"ROUND(SUM(I806:Q806)-H806,0)","v":0}]
[807]
[808,null,"334","Accessory Electric Equipment",null,{"$f":"IF(Classification=\"DEMAND\",\"F12\",IF(Classification=\"ENERGY\",\"F30\",\"F10\"))","v":"F10"},null,{"$f":"SUM(UAcct334)","v":0},{"$f":"VLOOKUP($F808,FactSum,'COS Factor Table'!F$115,FALSE)*$H808","v":0},{"$f":"VLOOKUP($F808,FactSum,'COS Factor Table'!G$115,FALSE)*$H808","v":0},{"$f":"VLOOKUP($F808,FactSum,'COS Factor Table'!H$115,FALSE)*$H808","v":0},{"$f":"VLOOKUP($F808,FactSum,'COS Factor Table'!I$115,FALSE)*$H808","v":0},{"$f":"VLOOKUP($F808,FactSum,'COS Factor Table'!J$115,FALSE)*$H808","v":0},{"$f":"VLOOKUP($F808,FactSum,'COS Factor Table'!K$115,FALSE)*$H808","v":0},{"$f":"VLOOKUP($F808,FactSum,'COS Factor Table'!L$115,FALSE)*$H808","v":0},{"$f":"VLOOKUP($F808,FactSum,'COS Factor Table'!M$115,FALSE)*$H808","v":0},{"$f":"VLOOKUP($F808,FactSum,'COS Factor Table'!N$115,FALSE)*$H808","v":0},{"$f":"ROUND(SUM(I808:Q808)-H808,0)","v":0}]
[809]
[810,null,"335","Misc. Power Plant Equipment",null,{"$f":"IF(Classification=\"DEMAND\",\"F12\",IF(Classification=\"ENERGY\",\"F30\",\"F10\"))","v":"F10"},null,{"$f":"SUM(UAcct335)","v":0},{"$f":"VLOOKUP($F810,FactSum,'COS Factor Table'!F$115,FALSE)*$H810","v":0},{"$f":"VLOOKUP($F810,FactSum,'COS Factor Table'!G$115,FALSE)*$H810","v":0},{"$f":"VLOOKUP($F810,FactSum,'COS Factor Table'!H$115,FALSE)*$H810","v":0},{"$f":"VLOOKUP($F810,FactSum,'COS Factor Table'!I$115,FALSE)*$H810","v":0},{"$f":"VLOOKUP($F810,FactSum,'COS Factor Table'!J$115,FALSE)*$H810","v":0},{"$f":"VLOOKUP($F810,FactSum,'COS Factor Table'!K$115,FALSE)*$H810","v":0},{"$f":"VLOOKUP($F810,FactSum,'COS Factor Table'!L$115,FALSE)*$H810","v":0},{"$f":"VLOOKUP($F810,FactSum,'COS Factor Table'!M$115,FALSE)*$H810","v":0},{"$f":"VLOOKUP($F810,FactSum,'COS Factor Table'!N$115,FALSE)*$H810","v":0},{"$f":"ROUND(SUM(I810:Q810)-H810,0)","v":0}]
[811]
[812,null,"336","Roads, Railroads & Bridges",null,{"$f":"IF(Classification=\"DEMAND\",\"F12\",IF(Classification=\"ENERGY\",\"F30\",\"F10\"))","v":"F10"},null,{"$f":"SUM(UAcct336)","v":0},{"$f":"VLOOKUP($F812,FactSum,'COS Factor Table'!F$115,FALSE)*$H812","v":0},{"$f":"VLOOKUP($F812,FactSum,'COS Factor Table'!G$115,FALSE)*$H812","v":0},{"$f":"VLOOKUP($F812,FactSum,'COS Factor Table'!H$115,FALSE)*$H812","v":0},{"$f":"VLOOKUP($F812,FactSum,'COS Factor Table'!I$115,FALSE)*$H812","v":0},{"$f":"VLOOKUP($F812,FactSum,'COS Factor Table'!J$115,FALSE)*$H812","v":0},{"$f":"VLOOKUP($F812,FactSum,'COS Factor Table'!K$115,FALSE)*$H812","v":0},{"$f":"VLOOKUP($F812,FactSum,'COS Factor Table'!L$115,FALSE)*$H812","v":0},{"$f":"VLOOKUP($F812,FactSum,'COS Factor Table'!M$115,FALSE)*$H812","v":0},{"$f":"VLOOKUP($F812,FactSum,'COS Factor Table'!N$115,FALSE)*$H812","v":0},{"$f":"ROUND(SUM(I812:Q812)-H812,0)","v":0}]
[813]
[814,null,"HP","Unclassified Hydro Plant - Acct 300",null,{"$f":"IF(Classification=\"DEMAND\",\"F12\",IF(Classification=\"ENERGY\",\"F30\",\"F10\"))","v":"F10"},null,{"$f":"SUM(UAccth00)","v":0},{"$f":"VLOOKUP($F814,FactSum,'COS Factor Table'!F$115,FALSE)*$H814","v":0},{"$f":"VLOOKUP($F814,FactSum,'COS Factor Table'!G$115,FALSE)*$H814","v":0},{"$f":"VLOOKUP($F814,FactSum,'COS Factor Table'!H$115,FALSE)*$H814","v":0},{"$f":"VLOOKUP($F814,FactSum,'COS Factor Table'!I$115,FALSE)*$H814","v":0},{"$f":"VLOOKUP($F814,FactSum,'COS Factor Table'!J$115,FALSE)*$H814","v":0},{"$f":"VLOOKUP($F814,FactSum,'COS Factor Table'!K$115,FALSE)*$H814","v":0},{"$f":"VLOOKUP($F814,FactSum,'COS Factor Table'!L$115,FALSE)*$H814","v":0},{"$f":"VLOOKUP($F814,FactSum,'COS Factor Table'!M$115,FALSE)*$H814","v":0},{"$f":"VLOOKUP($F814,FactSum,'COS Factor Table'!N$115,FALSE)*$H814","v":0},{"$f":"ROUND(SUM(I814:Q814)-H814,0)","v":0}]
[815]
[816,null,"Total Hydraulic Plant",null,null,null,null,{"$f":"SUM(H800:H814)","v":0},{"$f":"SUM(I800:I814)","v":0},0,0,0,{"$f":"SUM(M800:M814)","v":0},0,0,{"$f":"SUM(P800:P814)","v":0},{"$f":"SUM(Q800:Q814)","v":0},{"$f":"ROUND(SUM(I816:Q816)-H816,0)","v":0}]
[817]
[818,null,{"$f":"$E$1","v":"Distribution - METER -  Unbundled"},null,null,null,null,"OTHER PRODUCTION PLANT"]
[819,null,"A",null,"B","C",null,"D","E","F","G","H","I","J","K","S","T"]
[820,null,null,null,null,null,null,{"$f":"'Hot Sheet'!$H$10","v":"Washington"},null,{"$f":"'Hot Sheet'!$J$10","v":"Small General"},{"$f":"'Hot Sheet'!$K$10","v":"Large General"},{"$f":"'Hot Sheet'!$L$10","v":"Large General"},{"$f":"'Hot Sheet'!$M$10","v":"Large General"},{"$f":"'Hot Sheet'!$N$10","v":"Agricultural"},{"$f":"'Hot Sheet'!$O$10","v":"Street & Area"}]
[821,null,"FERC",null,null,"COS",null,{"$f":"'Hot Sheet'!$H$11","v":"Jurisdiction"},{"$f":"'Hot Sheet'!$I$11","v":"Residential"},{"$f":"'Hot Sheet'!$J$11","v":"Service"},{"$f":"'Hot Sheet'!$K$11","v":"Service <1,000 kW"},{"$f":"'Hot Sheet'!$L$11","v":"Service >1,000 kW"},{"$f":"'Hot Sheet'!$M$11","v":"Dedicated Facilities"},{"$f":"'Hot Sheet'!$N$11","v":"Pumping"},{"$f":"'Hot Sheet'!$O$11","v":"Lighting"},{"$f":"'Hot Sheet'!P$11","v":"-"},{"$f":"'Hot Sheet'!Q$11","v":"-"}]
[822,null,"ACCT",null,"DESCRIPTION ","Factor",null,{"$f":"'Hot Sheet'!$H$12","v":"Normalized"},{"$f":"'Hot Sheet'!$I$12","v":"Schedule 16"},{"$f":"'Hot Sheet'!$J$12","v":"Schedule 24"},{"$f":"'Hot Sheet'!$K$12","v":"Schedule 36"},{"$f":"'Hot Sheet'!$L$12","v":"Schedule 48T"},{"$f":"'Hot Sheet'!$M$12","v":"Schedule 48T"},{"$f":"'Hot Sheet'!$N$12","v":"Schedule 40"},{"$f":"'Hot Sheet'!$O$12","v":"Sch. 15,51-54,57"},{"$f":"'Hot Sheet'!P$12","v":"-"},{"$f":"'Hot Sheet'!Q$12","v":"-"}]
[823,null,"340","Land and Land Rights"]
[824,null,null,null,"SG",{"$f":"IF(Classification=\"DEMAND\",\"F12\",IF(Classification=\"ENERGY\",\"F30\",\"F10\"))","v":"F10"},null,{"$f":"SUM(UAcct340Dgu)","v":0},{"$f":"VLOOKUP($F824,FactSum,'COS Factor Table'!F$115,FALSE)*$H824","v":0},{"$f":"VLOOKUP($F824,FactSum,'COS Factor Table'!G$115,FALSE)*$H824","v":0},{"$f":"VLOOKUP($F824,FactSum,'COS Factor Table'!H$115,FALSE)*$H824","v":0},{"$f":"VLOOKUP($F824,FactSum,'COS Factor Table'!I$115,FALSE)*$H824","v":0},{"$f":"VLOOKUP($F824,FactSum,'COS Factor Table'!J$115,FALSE)*$H824","v":0},{"$f":"VLOOKUP($F824,FactSum,'COS Factor Table'!K$115,FALSE)*$H824","v":0},{"$f":"VLOOKUP($F824,FactSum,'COS Factor Table'!L$115,FALSE)*$H824","v":0},{"$f":"VLOOKUP($F824,FactSum,'COS Factor Table'!M$115,FALSE)*$H824","v":0},{"$f":"VLOOKUP($F824,FactSum,'COS Factor Table'!N$115,FALSE)*$H824","v":0},{"$f":"ROUND(SUM(I824:Q824)-H824,0)","v":0}]
[825,null,null,null,"CAGE",{"$f":"IF(Classification=\"DEMAND\",\"F12\",IF(Classification=\"ENERGY\",\"F30\",\"F10\"))","v":"F10"},null,{"$f":"SUM(UAcct340Sgu)","v":0},{"$f":"VLOOKUP($F825,FactSum,'COS Factor Table'!F$115,FALSE)*$H825","v":0},{"$f":"VLOOKUP($F825,FactSum,'COS Factor Table'!G$115,FALSE)*$H825","v":0},{"$f":"VLOOKUP($F825,FactSum,'COS Factor Table'!H$115,FALSE)*$H825","v":0},{"$f":"VLOOKUP($F825,FactSum,'COS Factor Table'!I$115,FALSE)*$H825","v":0},{"$f":"VLOOKUP($F825,FactSum,'COS Factor Table'!J$115,FALSE)*$H825","v":0},{"$f":"VLOOKUP($F825,FactSum,'COS Factor Table'!K$115,FALSE)*$H825","v":0},{"$f":"VLOOKUP($F825,FactSum,'COS Factor Table'!L$115,FALSE)*$H825","v":0},{"$f":"VLOOKUP($F825,FactSum,'COS Factor Table'!M$115,FALSE)*$H825","v":0},{"$f":"VLOOKUP($F825,FactSum,'COS Factor Table'!N$115,FALSE)*$H825","v":0},{"$f":"ROUND(SUM(I825:Q825)-H825,0)","v":0}]
[826,null,null,null,"Total 340",null,null,{"$f":"SUM(H824:H825)","v":0},{"$f":"SUM(I824:I825)","v":0},0,0,0,{"$f":"SUM(M824:M825)","v":0},0,0,0,0,0]
[827]
[828,null,"341","Structures and Improvements"]
[829,null,null,null,"SG",{"$f":"IF(Classification=\"DEMAND\",\"F12\",IF(Classification=\"ENERGY\",\"F30\",\"F10\"))","v":"F10"},null,{"$f":"SUM(UAcct341Dgu)","v":0},{"$f":"VLOOKUP($F829,FactSum,'COS Factor Table'!F$115,FALSE)*$H829","v":0},{"$f":"VLOOKUP($F829,FactSum,'COS Factor Table'!G$115,FALSE)*$H829","v":0},{"$f":"VLOOKUP($F829,FactSum,'COS Factor Table'!H$115,FALSE)*$H829","v":0},{"$f":"VLOOKUP($F829,FactSum,'COS Factor Table'!I$115,FALSE)*$H829","v":0},{"$f":"VLOOKUP($F829,FactSum,'COS Factor Table'!J$115,FALSE)*$H829","v":0},{"$f":"VLOOKUP($F829,FactSum,'COS Factor Table'!K$115,FALSE)*$H829","v":0},{"$f":"VLOOKUP($F829,FactSum,'COS Factor Table'!L$115,FALSE)*$H829","v":0},{"$f":"VLOOKUP($F829,FactSum,'COS Factor Table'!M$115,FALSE)*$H829","v":0},{"$f":"VLOOKUP($F829,FactSum,'COS Factor Table'!N$115,FALSE)*$H829","v":0},{"$f":"ROUND(SUM(I829:Q829)-H829,0)","v":0}]
[830,null,null,null,"CAGE",{"$f":"IF(Classification=\"DEMAND\",\"F12\",IF(Classification=\"ENERGY\",\"F30\",\"F10\"))","v":"F10"},null,{"$f":"SUM(UAcct341Sgu)","v":0},{"$f":"VLOOKUP($F830,FactSum,'COS Factor Table'!F$115,FALSE)*$H830","v":0},{"$f":"VLOOKUP($F830,FactSum,'COS Factor Table'!G$115,FALSE)*$H830","v":0},{"$f":"VLOOKUP($F830,FactSum,'COS Factor Table'!H$115,FALSE)*$H830","v":0},{"$f":"VLOOKUP($F830,FactSum,'COS Factor Table'!I$115,FALSE)*$H830","v":0},{"$f":"VLOOKUP($F830,FactSum,'COS Factor Table'!J$115,FALSE)*$H830","v":0},{"$f":"VLOOKUP($F830,FactSum,'COS Factor Table'!K$115,FALSE)*$H830","v":0},{"$f":"VLOOKUP($F830,FactSum,'COS Factor Table'!L$115,FALSE)*$H830","v":0},{"$f":"VLOOKUP($F830,FactSum,'COS Factor Table'!M$115,FALSE)*$H830","v":0},{"$f":"VLOOKUP($F830,FactSum,'COS Factor Table'!N$115,FALSE)*$H830","v":0},{"$f":"ROUND(SUM(I830:Q830)-H830,0)","v":0}]
[831,null,null,null,"Total 341",null,null,{"$f":"SUM(H829:H830)","v":0},{"$f":"SUM(I829:I830)","v":0},0,0,0,{"$f":"SUM(M829:M830)","v":0},0,0,0,0,{"$f":"ROUND(SUM(I831:Q831)-H831,0)","v":0}]
[832]
[833,null,"342","Fuel Holders, Producers & Access"]
[{"$f":"A833+1","v":834},null,null,null,"SG",{"$f":"IF(Classification=\"DEMAND\",\"F12\",IF(Classification=\"ENERGY\",\"F30\",\"F10\"))","v":"F10"},null,{"$f":"SUM(UAcct342Dgu)","v":0},{"$f":"VLOOKUP($F834,FactSum,'COS Factor Table'!F$115,FALSE)*$H834","v":0},{"$f":"VLOOKUP($F834,FactSum,'COS Factor Table'!G$115,FALSE)*$H834","v":0},{"$f":"VLOOKUP($F834,FactSum,'COS Factor Table'!H$115,FALSE)*$H834","v":0},{"$f":"VLOOKUP($F834,FactSum,'COS Factor Table'!I$115,FALSE)*$H834","v":0},{"$f":"VLOOKUP($F834,FactSum,'COS Factor Table'!J$115,FALSE)*$H834","v":0},{"$f":"VLOOKUP($F834,FactSum,'COS Factor Table'!K$115,FALSE)*$H834","v":0},{"$f":"VLOOKUP($F834,FactSum,'COS Factor Table'!L$115,FALSE)*$H834","v":0},{"$f":"VLOOKUP($F834,FactSum,'COS Factor Table'!M$115,FALSE)*$H834","v":0},{"$f":"VLOOKUP($F834,FactSum,'COS Factor Table'!N$115,FALSE)*$H834","v":0},{"$f":"ROUND(SUM(I834:Q834)-H834,0)","v":0}]
[835,null,null,null,"CAGE",{"$f":"IF(Classification=\"DEMAND\",\"F12\",IF(Classification=\"ENERGY\",\"F30\",\"F10\"))","v":"F10"},null,{"$f":"SUM(UAcct342Sgu)","v":0},{"$f":"VLOOKUP($F835,FactSum,'COS Factor Table'!F$115,FALSE)*$H835","v":0},{"$f":"VLOOKUP($F835,FactSum,'COS Factor Table'!G$115,FALSE)*$H835","v":0},{"$f":"VLOOKUP($F835,FactSum,'COS Factor Table'!H$115,FALSE)*$H835","v":0},{"$f":"VLOOKUP($F835,FactSum,'COS Factor Table'!I$115,FALSE)*$H835","v":0},{"$f":"VLOOKUP($F835,FactSum,'COS Factor Table'!J$115,FALSE)*$H835","v":0},{"$f":"VLOOKUP($F835,FactSum,'COS Factor Table'!K$115,FALSE)*$H835","v":0},{"$f":"VLOOKUP($F835,FactSum,'COS Factor Table'!L$115,FALSE)*$H835","v":0},{"$f":"VLOOKUP($F835,FactSum,'COS Factor Table'!M$115,FALSE)*$H835","v":0},{"$f":"VLOOKUP($F835,FactSum,'COS Factor Table'!N$115,FALSE)*$H835","v":0},{"$f":"ROUND(SUM(I835:Q835)-H835,0)","v":0}]
[836,null,null,null,"Total 342",null,null,{"$f":"SUM(H834:H835)","v":0},{"$f":"SUM(I834:I835)","v":0},0,0,0,{"$f":"SUM(M834:M835)","v":0},0,0,0,0,{"$f":"ROUND(SUM(I836:Q836)-H836,0)","v":0}]
[837]
[838,null,"343","Prime Movers",null,{"$f":"IF(Classification=\"DEMAND\",\"F12\",IF(Classification=\"ENERGY\",\"F30\",\"F10\"))","v":"F10"},null,{"$f":"SUM(UAcct343)-H839","v":0},{"$f":"VLOOKUP($F838,FactSum,'COS Factor Table'!F$115,FALSE)*$H838","v":0},{"$f":"VLOOKUP($F838,FactSum,'COS Factor Table'!G$115,FALSE)*$H838","v":0},{"$f":"VLOOKUP($F838,FactSum,'COS Factor Table'!H$115,FALSE)*$H838","v":0},{"$f":"VLOOKUP($F838,FactSum,'COS Factor Table'!I$115,FALSE)*$H838","v":0},{"$f":"VLOOKUP($F838,FactSum,'COS Factor Table'!J$115,FALSE)*$H838","v":0},{"$f":"VLOOKUP($F838,FactSum,'COS Factor Table'!K$115,FALSE)*$H838","v":0},{"$f":"VLOOKUP($F838,FactSum,'COS Factor Table'!L$115,FALSE)*$H838","v":0},{"$f":"VLOOKUP($F838,FactSum,'COS Factor Table'!M$115,FALSE)*$H838","v":0},{"$f":"VLOOKUP($F838,FactSum,'COS Factor Table'!N$115,FALSE)*$H838","v":0},{"$f":"ROUND(SUM(I838:Q838)-H838,0)","v":0}]
[839,null,null,null,"CAGE","F10",null,0,{"$f":"VLOOKUP($F839,FactSum,'COS Factor Table'!F$115,FALSE)*$H839","v":0},{"$f":"VLOOKUP($F839,FactSum,'COS Factor Table'!G$115,FALSE)*$H839","v":0},{"$f":"VLOOKUP($F839,FactSum,'COS Factor Table'!H$115,FALSE)*$H839","v":0},{"$f":"VLOOKUP($F839,FactSum,'COS Factor Table'!I$115,FALSE)*$H839","v":0},{"$f":"VLOOKUP($F839,FactSum,'COS Factor Table'!J$115,FALSE)*$H839","v":0},{"$f":"VLOOKUP($F839,FactSum,'COS Factor Table'!K$115,FALSE)*$H839","v":0},{"$f":"VLOOKUP($F839,FactSum,'COS Factor Table'!L$115,FALSE)*$H839","v":0},{"$f":"VLOOKUP($F839,FactSum,'COS Factor Table'!M$115,FALSE)*$H839","v":0},{"$f":"VLOOKUP($F839,FactSum,'COS Factor Table'!N$115,FALSE)*$H839","v":0},{"$f":"ROUND(SUM(I839:Q839)-H839,0)","v":0}]
[840,null,null,null,"Total 343",null,null,{"$f":"SUM(H838:H839)","v":0},0,0,0,0,{"$f":"SUM(M838:M839)","v":0},0,0,0,0,{"$f":"ROUND(SUM(I840:Q840)-H840,0)","v":0}]
[841]
[842,null,"344","Generators"]
[843,null,null,null,"SG",{"$f":"IF(Classification=\"DEMAND\",\"F12\",IF(Classification=\"ENERGY\",\"F30\",\"F10\"))","v":"F10"},null,{"$f":"SUM(UAcct344Sgp)+SUM(UAcct344S)+'Func Study'!AB1589","v":0},{"$f":"VLOOKUP($F843,FactSum,'COS Factor Table'!F$115,FALSE)*$H843","v":0},{"$f":"VLOOKUP($F843,FactSum,'COS Factor Table'!G$115,FALSE)*$H843","v":0},{"$f":"VLOOKUP($F843,FactSum,'COS Factor Table'!H$115,FALSE)*$H843","v":0},{"$f":"VLOOKUP($F843,FactSum,'COS Factor Table'!I$115,FALSE)*$H843","v":0},{"$f":"VLOOKUP($F843,FactSum,'COS Factor Table'!J$115,FALSE)*$H843","v":0},{"$f":"VLOOKUP($F843,FactSum,'COS Factor Table'!K$115,FALSE)*$H843","v":0},{"$f":"VLOOKUP($F843,FactSum,'COS Factor Table'!L$115,FALSE)*$H843","v":0},{"$f":"VLOOKUP($F843,FactSum,'COS Factor Table'!M$115,FALSE)*$H843","v":0},{"$f":"VLOOKUP($F843,FactSum,'COS Factor Table'!N$115,FALSE)*$H843","v":0},{"$f":"ROUND(SUM(I843:Q843)-H843,0)","v":0}]
[844,null,null,null,"CAGE",{"$f":"IF(Classification=\"DEMAND\",\"F12\",IF(Classification=\"ENERGY\",\"F30\",\"F10\"))","v":"F10"},null,0,{"$f":"VLOOKUP($F844,FactSum,'COS Factor Table'!F$115,FALSE)*$H844","v":0},{"$f":"VLOOKUP($F844,FactSum,'COS Factor Table'!G$115,FALSE)*$H844","v":0},{"$f":"VLOOKUP($F844,FactSum,'COS Factor Table'!H$115,FALSE)*$H844","v":0},{"$f":"VLOOKUP($F844,FactSum,'COS Factor Table'!I$115,FALSE)*$H844","v":0},{"$f":"VLOOKUP($F844,FactSum,'COS Factor Table'!J$115,FALSE)*$H844","v":0},{"$f":"VLOOKUP($F844,FactSum,'COS Factor Table'!K$115,FALSE)*$H844","v":0},{"$f":"VLOOKUP($F844,FactSum,'COS Factor Table'!L$115,FALSE)*$H844","v":0},{"$f":"VLOOKUP($F844,FactSum,'COS Factor Table'!M$115,FALSE)*$H844","v":0},{"$f":"VLOOKUP($F844,FactSum,'COS Factor Table'!N$115,FALSE)*$H844","v":0},{"$f":"ROUND(SUM(I844:Q844)-H844,0)","v":0}]
[845,null,null,null,"Total 344",null,null,{"$f":"SUM(H843:H844)","v":0},{"$f":"SUM(I843:I844)","v":0},0,0,0,{"$f":"SUM(M843:M844)","v":0},0,0,0,0,{"$f":"ROUND(SUM(I845:Q845)-H845,0)","v":0}]
[846]
[847,null,"345","Accessory Electric Plant"]
[848,null,null,null,"SG",{"$f":"IF(Classification=\"DEMAND\",\"F12\",IF(Classification=\"ENERGY\",\"F30\",\"F10\"))","v":"F10"},null,{"$f":"SUM(UAcct345Dgu)","v":0},{"$f":"VLOOKUP($F848,FactSum,'COS Factor Table'!F$115,FALSE)*$H848","v":0},{"$f":"VLOOKUP($F848,FactSum,'COS Factor Table'!G$115,FALSE)*$H848","v":0},{"$f":"VLOOKUP($F848,FactSum,'COS Factor Table'!H$115,FALSE)*$H848","v":0},{"$f":"VLOOKUP($F848,FactSum,'COS Factor Table'!I$115,FALSE)*$H848","v":0},{"$f":"VLOOKUP($F848,FactSum,'COS Factor Table'!J$115,FALSE)*$H848","v":0},{"$f":"VLOOKUP($F848,FactSum,'COS Factor Table'!K$115,FALSE)*$H848","v":0},{"$f":"VLOOKUP($F848,FactSum,'COS Factor Table'!L$115,FALSE)*$H848","v":0},{"$f":"VLOOKUP($F848,FactSum,'COS Factor Table'!M$115,FALSE)*$H848","v":0},{"$f":"VLOOKUP($F848,FactSum,'COS Factor Table'!N$115,FALSE)*$H848","v":0},{"$f":"ROUND(SUM(I848:Q848)-H848,0)","v":0}]
[849,null,null,null,"CAGE",{"$f":"IF(Classification=\"DEMAND\",\"F12\",IF(Classification=\"ENERGY\",\"F30\",\"F10\"))","v":"F10"},null,{"$f":"SUM(UAcct345Sgu)","v":0},{"$f":"VLOOKUP($F849,FactSum,'COS Factor Table'!F$115,FALSE)*$H849","v":0},{"$f":"VLOOKUP($F849,FactSum,'COS Factor Table'!G$115,FALSE)*$H849","v":0},{"$f":"VLOOKUP($F849,FactSum,'COS Factor Table'!H$115,FALSE)*$H849","v":0},{"$f":"VLOOKUP($F849,FactSum,'COS Factor Table'!I$115,FALSE)*$H849","v":0},{"$f":"VLOOKUP($F849,FactSum,'COS Factor Table'!J$115,FALSE)*$H849","v":0},{"$f":"VLOOKUP($F849,FactSum,'COS Factor Table'!K$115,FALSE)*$H849","v":0},{"$f":"VLOOKUP($F849,FactSum,'COS Factor Table'!L$115,FALSE)*$H849","v":0},{"$f":"VLOOKUP($F849,FactSum,'COS Factor Table'!M$115,FALSE)*$H849","v":0},{"$f":"VLOOKUP($F849,FactSum,'COS Factor Table'!N$115,FALSE)*$H849","v":0},{"$f":"ROUND(SUM(I849:Q849)-H849,0)","v":0}]
[850,null,null,null,"Total 345",null,null,{"$f":"SUM(H848:H849)","v":0},{"$f":"SUM(I848:I849)","v":0},0,0,0,{"$f":"SUM(M848:M849)","v":0},0,0,0,0,{"$f":"ROUND(SUM(I850:Q850)-H850,0)","v":0}]
[851]
[852,null,"346","Misc. Power Plant Equipment",null,{"$f":"IF(Classification=\"DEMAND\",\"F12\",IF(Classification=\"ENERGY\",\"F30\",\"F10\"))","v":"F10"},null,{"$f":"SUM(UAcct346)","v":0},{"$f":"VLOOKUP($F852,FactSum,'COS Factor Table'!F$115,FALSE)*$H852","v":0},{"$f":"VLOOKUP($F852,FactSum,'COS Factor Table'!G$115,FALSE)*$H852","v":0},{"$f":"VLOOKUP($F852,FactSum,'COS Factor Table'!H$115,FALSE)*$H852","v":0},{"$f":"VLOOKUP($F852,FactSum,'COS Factor Table'!I$115,FALSE)*$H852","v":0},{"$f":"VLOOKUP($F852,FactSum,'COS Factor Table'!J$115,FALSE)*$H852","v":0},{"$f":"VLOOKUP($F852,FactSum,'COS Factor Table'!K$115,FALSE)*$H852","v":0},{"$f":"VLOOKUP($F852,FactSum,'COS Factor Table'!L$115,FALSE)*$H852","v":0},{"$f":"VLOOKUP($F852,FactSum,'COS Factor Table'!M$115,FALSE)*$H852","v":0},{"$f":"VLOOKUP($F852,FactSum,'COS Factor Table'!N$115,FALSE)*$H852","v":0},{"$f":"ROUND(SUM(I852:Q852)-H852,0)","v":0}]
[853]
[854,null,"OP","Unclassified Other Prod - Acct 300",null,{"$f":"IF(Classification=\"DEMAND\",\"F12\",IF(Classification=\"ENERGY\",\"F30\",\"F10\"))","v":"F10"},null,{"$f":"SUM(UAccto00)","v":0},{"$f":"VLOOKUP($F854,FactSum,'COS Factor Table'!F$115,FALSE)*$H854","v":0},{"$f":"VLOOKUP($F854,FactSum,'COS Factor Table'!G$115,FALSE)*$H854","v":0},{"$f":"VLOOKUP($F854,FactSum,'COS Factor Table'!H$115,FALSE)*$H854","v":0},{"$f":"VLOOKUP($F854,FactSum,'COS Factor Table'!I$115,FALSE)*$H854","v":0},{"$f":"VLOOKUP($F854,FactSum,'COS Factor Table'!J$115,FALSE)*$H854","v":0},{"$f":"VLOOKUP($F854,FactSum,'COS Factor Table'!K$115,FALSE)*$H854","v":0},{"$f":"VLOOKUP($F854,FactSum,'COS Factor Table'!L$115,FALSE)*$H854","v":0},{"$f":"VLOOKUP($F854,FactSum,'COS Factor Table'!M$115,FALSE)*$H854","v":0},{"$f":"VLOOKUP($F854,FactSum,'COS Factor Table'!N$115,FALSE)*$H854","v":0},{"$f":"ROUND(SUM(I854:Q854)-H854,0)","v":0}]
[855]
[856,null,"Total Other Production Plant",null,null,null,null,{"$f":"SUM(H826,H831,H836,H840,H845,H850,H852,H854)","v":0},{"$f":"SUM(I826,I831,I836,I840,I845,I850,I852,I854)","v":0},0,0,0,{"$f":"SUM(M826,M831,M836,M840,M845,M850,M852,M854)","v":0},0,0,0,0,{"$f":"ROUND(SUM(I856:Q856)-H856,0)","v":0}]
[857]
[858,null,"Experimental Plant"]
[859,null,"103","Experimental Plant",null,{"$f":"IF(Classification=\"DEMAND\",\"F12\",IF(Classification=\"ENERGY\",\"F30\",\"F10\"))","v":"F10"},null,{"$f":"SUM(UAcct103)","v":0},{"$f":"VLOOKUP($F859,FactSum,'COS Factor Table'!F$115,FALSE)*$H859","v":0},{"$f":"VLOOKUP($F859,FactSum,'COS Factor Table'!G$115,FALSE)*$H859","v":0},{"$f":"VLOOKUP($F859,FactSum,'COS Factor Table'!H$115,FALSE)*$H859","v":0},{"$f":"VLOOKUP($F859,FactSum,'COS Factor Table'!I$115,FALSE)*$H859","v":0},{"$f":"VLOOKUP($F859,FactSum,'COS Factor Table'!J$115,FALSE)*$H859","v":0},{"$f":"VLOOKUP($F859,FactSum,'COS Factor Table'!K$115,FALSE)*$H859","v":0},{"$f":"VLOOKUP($F859,FactSum,'COS Factor Table'!L$115,FALSE)*$H859","v":0},{"$f":"VLOOKUP($F859,FactSum,'COS Factor Table'!M$115,FALSE)*$H859","v":0},{"$f":"VLOOKUP($F859,FactSum,'COS Factor Table'!N$115,FALSE)*$H859","v":0},{"$f":"ROUND(SUM(I859:Q859)-H859,0)","v":0}]
[860]
[861,null,"TOTAL PRODUCTION PLANT",null,null,null,null,{"$f":"SUM(H774,H794,H816,H856,H859)","v":0},0,0,0,0,{"$f":"SUM(M774,M794,M816,M856,M859)","v":0},0,0,0,0,{"$f":"ROUND(SUM(I861:Q861)-H861,0)","v":0}]
[862]
[863,null,null,null,null,null,null,"TRANSMISSION PLANT"]
[864,null,"350","Land and Land Rights"]
[865,null,null,null,"Demand",{"$f":"IF(Classification=\"DEMAND\",\"F12\",IF(Classification=\"ENERGY\",\"F30\",\"F10\"))","v":"F10"},null,{"$f":"IF(+UAcct350<>0,+UAcct350-H866,0)","v":0},{"$f":"VLOOKUP($F865,FactSum,'COS Factor Table'!F$115,FALSE)*$H865","v":0},{"$f":"VLOOKUP($F865,FactSum,'COS Factor Table'!G$115,FALSE)*$H865","v":0},{"$f":"VLOOKUP($F865,FactSum,'COS Factor Table'!H$115,FALSE)*$H865","v":0},{"$f":"VLOOKUP($F865,FactSum,'COS Factor Table'!I$115,FALSE)*$H865","v":0},{"$f":"VLOOKUP($F865,FactSum,'COS Factor Table'!J$115,FALSE)*$H865","v":0},{"$f":"VLOOKUP($F865,FactSum,'COS Factor Table'!K$115,FALSE)*$H865","v":0},{"$f":"VLOOKUP($F865,FactSum,'COS Factor Table'!L$115,FALSE)*$H865","v":0},{"$f":"VLOOKUP($F865,FactSum,'COS Factor Table'!M$115,FALSE)*$H865","v":0},{"$f":"VLOOKUP($F865,FactSum,'COS Factor Table'!N$115,FALSE)*$H865","v":0},{"$f":"ROUND(SUM(I865:Q865)-H865,0)","v":0}]
[866,null,null,null,"Direct Assigned","A",{"$f":"+UAcct350/Acct350","v":0},{"$f":"SUM(I866:Q866)","v":0},0,0,0,0,0,0,0,0,0,{"$f":"ROUND(SUM(I866:Q866)-H866,0)","v":0}]
[867,null,null,null,null,null,null,{"$f":"SUM(H865:H866)","v":0},{"$f":"SUM(I865:I866)","v":0},0,0,0,{"$f":"SUM(M865:M866)","v":0},0,0,{"$f":"SUM(P865:P866)","v":0},{"$f":"SUM(Q865:Q866)","v":0},{"$f":"ROUND(SUM(I867:Q867)-H867,0)","v":0}]
[868,null,"352","Structures and Improvements"]
[869,null,null,null,"Demand",{"$f":"IF(Classification=\"DEMAND\",\"F12\",IF(Classification=\"ENERGY\",\"F30\",\"F10\"))","v":"F10"},null,{"$f":"IF(UAcct352<>0,+UAcct352-H870,0)","v":0},{"$f":"VLOOKUP($F869,FactSum,'COS Factor Table'!F$115,FALSE)*$H869","v":0},{"$f":"VLOOKUP($F869,FactSum,'COS Factor Table'!G$115,FALSE)*$H869","v":0},{"$f":"VLOOKUP($F869,FactSum,'COS Factor Table'!H$115,FALSE)*$H869","v":0},{"$f":"VLOOKUP($F869,FactSum,'COS Factor Table'!I$115,FALSE)*$H869","v":0},{"$f":"VLOOKUP($F869,FactSum,'COS Factor Table'!J$115,FALSE)*$H869","v":0},{"$f":"VLOOKUP($F869,FactSum,'COS Factor Table'!K$115,FALSE)*$H869","v":0},{"$f":"VLOOKUP($F869,FactSum,'COS Factor Table'!L$115,FALSE)*$H869","v":0},{"$f":"VLOOKUP($F869,FactSum,'COS Factor Table'!M$115,FALSE)*$H869","v":0},{"$f":"VLOOKUP($F869,FactSum,'COS Factor Table'!N$115,FALSE)*$H869","v":0},{"$f":"ROUND(SUM(I869:Q869)-H869,0)","v":0}]
[870,null,null,null,"Direct Assigned","A",{"$f":"+UAcct352/Acct352","v":0},{"$f":"SUM(I870:Q870)","v":0},0,0,0,0,0,0,0,0,0,{"$f":"ROUND(SUM(I870:Q870)-H870,0)","v":0}]
[871,null,null,null,null,null,null,{"$f":"SUM(H869:H870)","v":0},{"$f":"SUM(I869:I870)","v":0},0,0,0,{"$f":"SUM(M869:M870)","v":0},0,0,{"$f":"SUM(P869:P870)","v":0},{"$f":"SUM(Q869:Q870)","v":0},{"$f":"ROUND(SUM(I871:Q871)-H871,0)","v":0}]
[872,null,"353","Station Equipment"]
[873,null,null,null,"Demand",{"$f":"IF(Classification=\"DEMAND\",\"F12\",IF(Classification=\"ENERGY\",\"F30\",\"F10\"))","v":"F10"},null,{"$f":"IF(UAcct353<>0,+UAcct353-H874,0)","v":0},{"$f":"VLOOKUP($F873,FactSum,'COS Factor Table'!F$115,FALSE)*$H873","v":0},{"$f":"VLOOKUP($F873,FactSum,'COS Factor Table'!G$115,FALSE)*$H873","v":0},{"$f":"VLOOKUP($F873,FactSum,'COS Factor Table'!H$115,FALSE)*$H873","v":0},{"$f":"VLOOKUP($F873,FactSum,'COS Factor Table'!I$115,FALSE)*$H873","v":0},{"$f":"VLOOKUP($F873,FactSum,'COS Factor Table'!J$115,FALSE)*$H873","v":0},{"$f":"VLOOKUP($F873,FactSum,'COS Factor Table'!K$115,FALSE)*$H873","v":0},{"$f":"VLOOKUP($F873,FactSum,'COS Factor Table'!L$115,FALSE)*$H873","v":0},{"$f":"VLOOKUP($F873,FactSum,'COS Factor Table'!M$115,FALSE)*$H873","v":0},{"$f":"VLOOKUP($F873,FactSum,'COS Factor Table'!N$115,FALSE)*$H873","v":0},{"$f":"ROUND(SUM(I873:Q873)-H873,0)","v":0}]
[874,null,null,null,"Direct Assigned","A",{"$f":"+UAcct353/Acct353","v":0},{"$f":"SUM(I874:Q874)","v":0},0,0,0,0,0,0,0,0,0,{"$f":"ROUND(SUM(I874:Q874)-H874,0)","v":0}]
[875,null,null,null,null,null,null,{"$f":"SUM(H873:H874)","v":0},{"$f":"SUM(I873:I874)","v":0},0,0,0,{"$f":"SUM(M873:M874)","v":0},0,0,{"$f":"SUM(P873:P874)","v":0},{"$f":"SUM(Q873:Q874)","v":0},{"$f":"ROUND(SUM(I875:Q875)-H875,0)","v":0}]
[876,null,"354","Towers and Fixtures"]
[877,null,null,null,"Demand",{"$f":"IF(Classification=\"DEMAND\",\"F12\",IF(Classification=\"ENERGY\",\"F30\",\"F10\"))","v":"F10"},null,{"$f":"IF(UAcct354<>0,+UAcct354-H878,0)","v":0},{"$f":"VLOOKUP($F877,FactSum,'COS Factor Table'!F$115,FALSE)*$H877","v":0},{"$f":"VLOOKUP($F877,FactSum,'COS Factor Table'!G$115,FALSE)*$H877","v":0},{"$f":"VLOOKUP($F877,FactSum,'COS Factor Table'!H$115,FALSE)*$H877","v":0},{"$f":"VLOOKUP($F877,FactSum,'COS Factor Table'!I$115,FALSE)*$H877","v":0},{"$f":"VLOOKUP($F877,FactSum,'COS Factor Table'!J$115,FALSE)*$H877","v":0},{"$f":"VLOOKUP($F877,FactSum,'COS Factor Table'!K$115,FALSE)*$H877","v":0},{"$f":"VLOOKUP($F877,FactSum,'COS Factor Table'!L$115,FALSE)*$H877","v":0},{"$f":"VLOOKUP($F877,FactSum,'COS Factor Table'!M$115,FALSE)*$H877","v":0},{"$f":"VLOOKUP($F877,FactSum,'COS Factor Table'!N$115,FALSE)*$H877","v":0},{"$f":"ROUND(SUM(I877:Q877)-H877,0)","v":0}]
[878,null,null,null,"Direct Assigned","A",{"$f":"+UAcct354/Acct354","v":0},{"$f":"SUM(I878:Q878)","v":0},0,0,0,0,0,0,0,0,0,{"$f":"ROUND(SUM(I878:Q878)-H878,0)","v":0}]
[879,null,null,null,null,null,null,{"$f":"SUM(H877:H878)","v":0},{"$f":"SUM(I877:I878)","v":0},0,0,0,{"$f":"SUM(M877:M878)","v":0},0,0,{"$f":"SUM(P877:P878)","v":0},{"$f":"SUM(Q877:Q878)","v":0},{"$f":"ROUND(SUM(I879:Q879)-H879,0)","v":0}]
[880,null,"355","Poles and Fixtures"]
[881,null,null,null,"Demand",{"$f":"IF(Classification=\"DEMAND\",\"F12\",IF(Classification=\"ENERGY\",\"F30\",\"F10\"))","v":"F10"},null,{"$f":"IF(UAcct355<>0,+UAcct355-H882,0)","v":0},{"$f":"VLOOKUP($F881,FactSum,'COS Factor Table'!F$115,FALSE)*$H881","v":0},{"$f":"VLOOKUP($F881,FactSum,'COS Factor Table'!G$115,FALSE)*$H881","v":0},{"$f":"VLOOKUP($F881,FactSum,'COS Factor Table'!H$115,FALSE)*$H881","v":0},{"$f":"VLOOKUP($F881,FactSum,'COS Factor Table'!I$115,FALSE)*$H881","v":0},{"$f":"VLOOKUP($F881,FactSum,'COS Factor Table'!J$115,FALSE)*$H881","v":0},{"$f":"VLOOKUP($F881,FactSum,'COS Factor Table'!K$115,FALSE)*$H881","v":0},{"$f":"VLOOKUP($F881,FactSum,'COS Factor Table'!L$115,FALSE)*$H881","v":0},{"$f":"VLOOKUP($F881,FactSum,'COS Factor Table'!M$115,FALSE)*$H881","v":0},{"$f":"VLOOKUP($F881,FactSum,'COS Factor Table'!N$115,FALSE)*$H881","v":0},{"$f":"ROUND(SUM(I881:Q881)-H881,0)","v":0}]
[882,null,null,null,"Direct Assigned","A",{"$f":"+UAcct355/Acct355","v":0},{"$f":"SUM(I882:Q882)","v":0},0,0,0,0,0,0,0,0,0,{"$f":"ROUND(SUM(I882:Q882)-H882,0)","v":0}]
[883,null,null,null,null,null,null,{"$f":"SUM(H881:H882)","v":0},{"$f":"SUM(I881:I882)","v":0},0,0,0,{"$f":"SUM(M881:M882)","v":0},0,0,{"$f":"SUM(P881:P882)","v":0},{"$f":"SUM(Q881:Q882)","v":0},{"$f":"ROUND(SUM(I883:Q883)-H883,0)","v":0}]
[884,null,"356","Overhead Conductors"]
[885,null,null,null,"Demand",{"$f":"IF(Classification=\"DEMAND\",\"F12\",IF(Classification=\"ENERGY\",\"F30\",\"F10\"))","v":"F10"},null,{"$f":"IF(UAcct356<>0,+UAcct356-H886,0)","v":0},{"$f":"VLOOKUP($F885,FactSum,'COS Factor Table'!F$115,FALSE)*$H885","v":0},{"$f":"VLOOKUP($F885,FactSum,'COS Factor Table'!G$115,FALSE)*$H885","v":0},{"$f":"VLOOKUP($F885,FactSum,'COS Factor Table'!H$115,FALSE)*$H885","v":0},{"$f":"VLOOKUP($F885,FactSum,'COS Factor Table'!I$115,FALSE)*$H885","v":0},{"$f":"VLOOKUP($F885,FactSum,'COS Factor Table'!J$115,FALSE)*$H885","v":0},{"$f":"VLOOKUP($F885,FactSum,'COS Factor Table'!K$115,FALSE)*$H885","v":0},{"$f":"VLOOKUP($F885,FactSum,'COS Factor Table'!L$115,FALSE)*$H885","v":0},{"$f":"VLOOKUP($F885,FactSum,'COS Factor Table'!M$115,FALSE)*$H885","v":0},{"$f":"VLOOKUP($F885,FactSum,'COS Factor Table'!N$115,FALSE)*$H885","v":0},{"$f":"ROUND(SUM(I885:Q885)-H885,0)","v":0}]
[886,null,null,null,"Direct Assigned","A",{"$f":"+UAcct356/Acct356","v":0},{"$f":"SUM(I886:Q886)","v":0},0,0,0,0,0,0,0,0,0,{"$f":"ROUND(SUM(I886:Q886)-H886,0)","v":0}]
[887,null,null,null,null,null,null,{"$f":"SUM(H885:H886)","v":0},{"$f":"SUM(I885:I886)","v":0},0,0,0,{"$f":"SUM(M885:M886)","v":0},0,0,{"$f":"SUM(P885:P886)","v":0},{"$f":"SUM(Q885:Q886)","v":0},{"$f":"ROUND(SUM(I887:Q887)-H887,0)","v":0}]
[888,null,"357","Underground Conduit"]
[889,null,null,null,"Demand",{"$f":"IF(Classification=\"DEMAND\",\"F12\",IF(Classification=\"ENERGY\",\"F30\",\"F10\"))","v":"F10"},null,{"$f":"IF(UAcct357<>0,UAcct357-H890,0)","v":0},{"$f":"VLOOKUP($F889,FactSum,'COS Factor Table'!F$115,FALSE)*$H889","v":0},{"$f":"VLOOKUP($F889,FactSum,'COS Factor Table'!G$115,FALSE)*$H889","v":0},{"$f":"VLOOKUP($F889,FactSum,'COS Factor Table'!H$115,FALSE)*$H889","v":0},{"$f":"VLOOKUP($F889,FactSum,'COS Factor Table'!I$115,FALSE)*$H889","v":0},{"$f":"VLOOKUP($F889,FactSum,'COS Factor Table'!J$115,FALSE)*$H889","v":0},{"$f":"VLOOKUP($F889,FactSum,'COS Factor Table'!K$115,FALSE)*$H889","v":0},{"$f":"VLOOKUP($F889,FactSum,'COS Factor Table'!L$115,FALSE)*$H889","v":0},{"$f":"VLOOKUP($F889,FactSum,'COS Factor Table'!M$115,FALSE)*$H889","v":0},{"$f":"VLOOKUP($F889,FactSum,'COS Factor Table'!N$115,FALSE)*$H889","v":0},{"$f":"ROUND(SUM(I889:Q889)-H889,0)","v":0}]
[890,null,null,null,"Direct Assigned","A",{"$f":"+UAcct357/Acct357","v":0},{"$f":"SUM(I890:Q890)","v":0},0,0,0,0,0,0,0,0,0,{"$f":"ROUND(SUM(I890:Q890)-H890,0)","v":0}]
[891,null,null,null,null,null,null,{"$f":"SUM(H889:H890)","v":0},{"$f":"SUM(I889:I890)","v":0},0,0,0,{"$f":"SUM(M889:M890)","v":0},0,0,{"$f":"SUM(P889:P890)","v":0},{"$f":"SUM(Q889:Q890)","v":0},{"$f":"ROUND(SUM(I891:Q891)-H891,0)","v":0}]
[892,null,"358","Underground Conductors "]
[893,null,null,null,"Demand",{"$f":"IF(Classification=\"DEMAND\",\"F12\",IF(Classification=\"ENERGY\",\"F30\",\"F10\"))","v":"F10"},null,{"$f":"IF(UAcct358<>0,UAcct358-H894,0)","v":0},{"$f":"VLOOKUP($F893,FactSum,'COS Factor Table'!F$115,FALSE)*$H893","v":0},{"$f":"VLOOKUP($F893,FactSum,'COS Factor Table'!G$115,FALSE)*$H893","v":0},{"$f":"VLOOKUP($F893,FactSum,'COS Factor Table'!H$115,FALSE)*$H893","v":0},{"$f":"VLOOKUP($F893,FactSum,'COS Factor Table'!I$115,FALSE)*$H893","v":0},{"$f":"VLOOKUP($F893,FactSum,'COS Factor Table'!J$115,FALSE)*$H893","v":0},{"$f":"VLOOKUP($F893,FactSum,'COS Factor Table'!K$115,FALSE)*$H893","v":0},{"$f":"VLOOKUP($F893,FactSum,'COS Factor Table'!L$115,FALSE)*$H893","v":0},{"$f":"VLOOKUP($F893,FactSum,'COS Factor Table'!M$115,FALSE)*$H893","v":0},{"$f":"VLOOKUP($F893,FactSum,'COS Factor Table'!N$115,FALSE)*$H893","v":0},{"$f":"ROUND(SUM(I893:Q893)-H893,0)","v":0}]
[894,null,null,null,"Direct Assigned","A",{"$f":"+UAcct358/Acct358","v":0},{"$f":"SUM(I894:Q894)","v":0},0,0,0,0,0,0,0,0,0,{"$f":"ROUND(SUM(I894:Q894)-H894,0)","v":0}]
[895,null,null,null,null,null,null,{"$f":"SUM(H893:H894)","v":0},{"$f":"SUM(I893:I894)","v":0},0,0,0,{"$f":"SUM(M893:M894)","v":0},0,0,{"$f":"SUM(P893:P894)","v":0},{"$f":"SUM(Q893:Q894)","v":0},{"$f":"ROUND(SUM(I895:Q895)-H895,0)","v":0}]
[896,null,"359","Roads and Trails"]
[897,null,null,null,"Demand",{"$f":"IF(Classification=\"DEMAND\",\"F12\",IF(Classification=\"ENERGY\",\"F30\",\"F10\"))","v":"F10"},null,{"$f":"IF(UAcct359<>0,+UAcct359-H898,0)","v":0},{"$f":"VLOOKUP($F897,FactSum,'COS Factor Table'!F$115,FALSE)*$H897","v":0},{"$f":"VLOOKUP($F897,FactSum,'COS Factor Table'!G$115,FALSE)*$H897","v":0},{"$f":"VLOOKUP($F897,FactSum,'COS Factor Table'!H$115,FALSE)*$H897","v":0},{"$f":"VLOOKUP($F897,FactSum,'COS Factor Table'!I$115,FALSE)*$H897","v":0},{"$f":"VLOOKUP($F897,FactSum,'COS Factor Table'!J$115,FALSE)*$H897","v":0},{"$f":"VLOOKUP($F897,FactSum,'COS Factor Table'!K$115,FALSE)*$H897","v":0},{"$f":"VLOOKUP($F897,FactSum,'COS Factor Table'!L$115,FALSE)*$H897","v":0},{"$f":"VLOOKUP($F897,FactSum,'COS Factor Table'!M$115,FALSE)*$H897","v":0},{"$f":"VLOOKUP($F897,FactSum,'COS Factor Table'!N$115,FALSE)*$H897","v":0},{"$f":"ROUND(SUM(I897:Q897)-H897,0)","v":0}]
[{"$f":"A897+1","v":898},null,null,null,"Direct Assigned","A",{"$f":"UAcct359/Acct359","v":0},{"$f":"SUM(I898:Q898)","v":0},0,0,0,0,0,0,0,0,0,{"$f":"ROUND(SUM(I898:Q898)-H898,0)","v":0}]
[899,null,null,null,null,null,null,{"$f":"SUM(H897:H898)","v":0},{"$f":"SUM(I897:I898)","v":0},0,0,0,{"$f":"SUM(M897:M898)","v":0},0,0,{"$f":"SUM(P897:P898)","v":0},{"$f":"SUM(Q897:Q898)","v":0},{"$f":"ROUND(SUM(I899:Q899)-H899,0)","v":0}]
[900]
[901,null,"TP","Unclassified Trans Plant - Acct 300",null,{"$f":"IF(Classification=\"DEMAND\",\"F12\",IF(Classification=\"ENERGY\",\"F30\",\"F10\"))","v":"F10"},null,{"$f":"UAcctt00","v":0},{"$f":"VLOOKUP($F901,FactSum,'COS Factor Table'!F$115,FALSE)*$H901","v":0},{"$f":"VLOOKUP($F901,FactSum,'COS Factor Table'!G$115,FALSE)*$H901","v":0},{"$f":"VLOOKUP($F901,FactSum,'COS Factor Table'!H$115,FALSE)*$H901","v":0},{"$f":"VLOOKUP($F901,FactSum,'COS Factor Table'!I$115,FALSE)*$H901","v":0},{"$f":"VLOOKUP($F901,FactSum,'COS Factor Table'!J$115,FALSE)*$H901","v":0},{"$f":"VLOOKUP($F901,FactSum,'COS Factor Table'!K$115,FALSE)*$H901","v":0},{"$f":"VLOOKUP($F901,FactSum,'COS Factor Table'!L$115,FALSE)*$H901","v":0},{"$f":"VLOOKUP($F901,FactSum,'COS Factor Table'!M$115,FALSE)*$H901","v":0},{"$f":"VLOOKUP($F901,FactSum,'COS Factor Table'!N$115,FALSE)*$H901","v":0},{"$f":"ROUND(SUM(I901:Q901)-H901,0)","v":0}]
[902,null,"TS0","Unclassified Trans Sub - Acct 300",null,"F10",null,{"$f":"AcctTS0","v":0},{"$f":"VLOOKUP($F902,FactSum,'COS Factor Table'!F$115,FALSE)*$H902","v":0},{"$f":"VLOOKUP($F902,FactSum,'COS Factor Table'!G$115,FALSE)*$H902","v":0},{"$f":"VLOOKUP($F902,FactSum,'COS Factor Table'!H$115,FALSE)*$H902","v":0},{"$f":"VLOOKUP($F902,FactSum,'COS Factor Table'!I$115,FALSE)*$H902","v":0},{"$f":"VLOOKUP($F902,FactSum,'COS Factor Table'!J$115,FALSE)*$H902","v":0},{"$f":"VLOOKUP($F902,FactSum,'COS Factor Table'!K$115,FALSE)*$H902","v":0},{"$f":"VLOOKUP($F902,FactSum,'COS Factor Table'!L$115,FALSE)*$H902","v":0},{"$f":"VLOOKUP($F902,FactSum,'COS Factor Table'!M$115,FALSE)*$H902","v":0},{"$f":"VLOOKUP($F902,FactSum,'COS Factor Table'!N$115,FALSE)*$H902","v":0},{"$f":"ROUND(SUM(I902:Q902)-H902,0)","v":0}]
[903]
[904,null,"TOTAL TRANSMISSION PLANT",null,null,null,null,{"$f":"H867+H871+H875+H879+H883+H887+H891+H895+H899+H901+H902","v":0},{"$f":"I867+I871+I875+I879+I883+I887+I891+I895+I899+I901+I902","v":0},0,0,0,{"$f":"M867+M871+M875+M879+M883+M887+M891+M895+M899+M901+M902","v":0},0,0,{"$f":"P867+P871+P875+P879+P883+P887+P891+P895+P899+P901+P902","v":0},{"$f":"Q867+Q871+Q875+Q879+Q883+Q887+Q891+Q895+Q899+Q901+Q902","v":0},{"$f":"ROUND(SUM(I904:Q904)-H904,0)","v":0}]
[905,null,{"$f":"$E$1","v":"Distribution - METER -  Unbundled"},null,null,null,null,"DISTRIBUTION PLANT"]
[906,null,"A",null,"B","C",null,"D","E","F","G","H","I","J","K","S","T"]
[907,null,null,null,null,null,null,{"$f":"'Hot Sheet'!$H$10","v":"Washington"},null,{"$f":"'Hot Sheet'!$J$10","v":"Small General"},{"$f":"'Hot Sheet'!$K$10","v":"Large General"},{"$f":"'Hot Sheet'!$L$10","v":"Large General"},{"$f":"'Hot Sheet'!$M$10","v":"Large General"},{"$f":"'Hot Sheet'!$N$10","v":"Agricultural"},{"$f":"'Hot Sheet'!$O$10","v":"Street & Area"}]
[908,null,"FERC",null,null,"COS",null,{"$f":"'Hot Sheet'!$H$11","v":"Jurisdiction"},{"$f":"'Hot Sheet'!$I$11","v":"Residential"},{"$f":"'Hot Sheet'!$J$11","v":"Service"},{"$f":"'Hot Sheet'!$K$11","v":"Service <1,000 kW"},{"$f":"'Hot Sheet'!$L$11","v":"Service >1,000 kW"},{"$f":"'Hot Sheet'!$M$11","v":"Dedicated Facilities"},{"$f":"'Hot Sheet'!$N$11","v":"Pumping"},{"$f":"'Hot Sheet'!$O$11","v":"Lighting"},{"$f":"'Hot Sheet'!P$11","v":"-"},{"$f":"'Hot Sheet'!Q$11","v":"-"}]
[909,null,"ACCT",null,"DESCRIPTION ","Factor",null,{"$f":"'Hot Sheet'!$H$12","v":"Normalized"},{"$f":"'Hot Sheet'!$I$12","v":"Schedule 16"},{"$f":"'Hot Sheet'!$J$12","v":"Schedule 24"},{"$f":"'Hot Sheet'!$K$12","v":"Schedule 36"},{"$f":"'Hot Sheet'!$L$12","v":"Schedule 48T"},{"$f":"'Hot Sheet'!$M$12","v":"Schedule 48T"},{"$f":"'Hot Sheet'!$N$12","v":"Schedule 40"},{"$f":"'Hot Sheet'!$O$12","v":"Sch. 15,51-54,57"},{"$f":"'Hot Sheet'!P$12","v":"-"},{"$f":"'Hot Sheet'!Q$12","v":"-"}]
[910]
[911,null,"360","Land and Land Rights"]
[912,null,null,null,"Demand Primary","F20A",null,{"$f":"+UAcct360-H913","v":0},{"$f":"VLOOKUP($F912,FactSum,'COS Factor Table'!F$115,FALSE)*$H912","v":0},{"$f":"VLOOKUP($F912,FactSum,'COS Factor Table'!G$115,FALSE)*$H912","v":0},{"$f":"VLOOKUP($F912,FactSum,'COS Factor Table'!H$115,FALSE)*$H912","v":0},{"$f":"VLOOKUP($F912,FactSum,'COS Factor Table'!I$115,FALSE)*$H912","v":0},{"$f":"VLOOKUP($F912,FactSum,'COS Factor Table'!J$115,FALSE)*$H912","v":0},{"$f":"VLOOKUP($F912,FactSum,'COS Factor Table'!K$115,FALSE)*$H912","v":0},{"$f":"VLOOKUP($F912,FactSum,'COS Factor Table'!L$115,FALSE)*$H912","v":0},{"$f":"VLOOKUP($F912,FactSum,'COS Factor Table'!M$115,FALSE)*$H912","v":0},{"$f":"VLOOKUP($F912,FactSum,'COS Factor Table'!N$115,FALSE)*$H912","v":0}]
[913,null,null,null,"Assigned","A",{"$f":"UAcct360/Acct360","v":0},{"$f":"SUM(I913:Q913)","v":0},0,0,0,0,0,0,0,0,0,{"$f":"ROUND(SUM(I913:Q913)-H913,0)","v":0}]
[914,null,null,null,null,null,null,{"$f":"SUM(H912:H913)","v":0},{"$f":"SUM(I911:I913)","v":0},0,0,0,{"$f":"SUM(M911:M913)","v":0},0,0,{"$f":"SUM(P911:P913)","v":0},{"$f":"SUM(Q911:Q913)","v":0},{"$f":"ROUND(SUM(I914:Q914)-H914,0)","v":0}]
[915,null,"361","Structures and Improvements"]
[916,null,null,null,"Demand Primary","F20",null,{"$f":"+UAcct361-H917","v":0},{"$f":"VLOOKUP($F916,FactSum,'COS Factor Table'!F$115,FALSE)*$H916","v":0},{"$f":"VLOOKUP($F916,FactSum,'COS Factor Table'!G$115,FALSE)*$H916","v":0},{"$f":"VLOOKUP($F916,FactSum,'COS Factor Table'!H$115,FALSE)*$H916","v":0},{"$f":"VLOOKUP($F916,FactSum,'COS Factor Table'!I$115,FALSE)*$H916","v":0},{"$f":"VLOOKUP($F916,FactSum,'COS Factor Table'!J$115,FALSE)*$H916","v":0},{"$f":"VLOOKUP($F916,FactSum,'COS Factor Table'!K$115,FALSE)*$H916","v":0},{"$f":"VLOOKUP($F916,FactSum,'COS Factor Table'!L$115,FALSE)*$H916","v":0},{"$f":"VLOOKUP($F916,FactSum,'COS Factor Table'!M$115,FALSE)*$H916","v":0},{"$f":"VLOOKUP($F916,FactSum,'COS Factor Table'!N$115,FALSE)*$H916","v":0},{"$f":"ROUND(SUM(I916:Q916)-H916,0)","v":0}]
[917,null,null,null,"Assigned","A",{"$f":"+UAcct361/Acct361","v":0},{"$f":"SUM(I917:Q917)","v":0},0,0,0,0,0,0,0,0,0,{"$f":"ROUND(SUM(I917:Q917)-H917,0)","v":0}]
[918,null,null,null,null,null,null,{"$f":"SUM(H916:H917)","v":0},{"$f":"SUM(I915:I917)","v":0},0,0,0,{"$f":"SUM(M915:M917)","v":0},0,0,{"$f":"SUM(P915:P917)","v":0},{"$f":"SUM(Q915:Q917)","v":0},{"$f":"ROUND(SUM(I918:Q918)-H918,0)","v":0}]
[919,null,"362","Station Equipment"]
[920,null,null,null,"Demand Primary","F20A",null,{"$f":"+UAcct362-H921","v":0},{"$f":"VLOOKUP($F920,FactSum,'COS Factor Table'!F$115,FALSE)*$H920","v":0},{"$f":"VLOOKUP($F920,FactSum,'COS Factor Table'!G$115,FALSE)*$H920","v":0},{"$f":"VLOOKUP($F920,FactSum,'COS Factor Table'!H$115,FALSE)*$H920","v":0},{"$f":"VLOOKUP($F920,FactSum,'COS Factor Table'!I$115,FALSE)*$H920","v":0},{"$f":"VLOOKUP($F920,FactSum,'COS Factor Table'!J$115,FALSE)*$H920","v":0},{"$f":"VLOOKUP($F920,FactSum,'COS Factor Table'!K$115,FALSE)*$H920","v":0},{"$f":"VLOOKUP($F920,FactSum,'COS Factor Table'!L$115,FALSE)*$H920","v":0},{"$f":"VLOOKUP($F920,FactSum,'COS Factor Table'!M$115,FALSE)*$H920","v":0},{"$f":"VLOOKUP($F920,FactSum,'COS Factor Table'!N$115,FALSE)*$H920","v":0},{"$f":"ROUND(SUM(I920:Q920)-H920,0)","v":0}]
[921,null,null,null,"Assigned","A",{"$f":"+UAcct362/Acct362","v":0},{"$f":"SUM(I921:Q921)","v":0},0,0,{"$f":"DistInvest!$E18","v":0},{"$f":"DistInvest!$D18*G921","v":0},{"$f":"DistInvest!F18*G921","v":0},0,0,0,0,{"$f":"ROUND(SUM(I921:Q921)-H921,0)","v":0}]
[922,null,null,null,null,null,null,{"$f":"SUM(H920:H921)","v":0},{"$f":"SUM(I919:I921)","v":0},0,0,0,{"$f":"SUM(M919:M921)","v":0},0,0,{"$f":"SUM(P919:P921)","v":0},{"$f":"SUM(Q919:Q921)","v":0},{"$f":"ROUND(SUM(I922:Q922)-H922,0)","v":0}]
[923,null,"364","Poles, Towers & Fixtures"]
[924,null,null,null,"Demand Primary","F20A",{"$f":"IF(AND(OR(Function =\"DIS\",Function=\"JAM\"),OR(Classification = \"P & C\",Classification = \"TOTAL\")),1,0)","v":0},{"$f":"DistInvest!G19*G924","v":0},{"$f":"VLOOKUP($F924,FactSum,'COS Factor Table'!F$115,FALSE)*$H924","v":0},{"$f":"VLOOKUP($F924,FactSum,'COS Factor Table'!G$115,FALSE)*$H924","v":0},{"$f":"VLOOKUP($F924,FactSum,'COS Factor Table'!H$115,FALSE)*$H924","v":0},{"$f":"VLOOKUP($F924,FactSum,'COS Factor Table'!I$115,FALSE)*$H924","v":0},{"$f":"VLOOKUP($F924,FactSum,'COS Factor Table'!J$115,FALSE)*$H924","v":0},{"$f":"VLOOKUP($F924,FactSum,'COS Factor Table'!K$115,FALSE)*$H924","v":0},{"$f":"VLOOKUP($F924,FactSum,'COS Factor Table'!L$115,FALSE)*$H924","v":0},{"$f":"VLOOKUP($F924,FactSum,'COS Factor Table'!M$115,FALSE)*$H924","v":0},{"$f":"VLOOKUP($F924,FactSum,'COS Factor Table'!N$115,FALSE)*$H924","v":0},{"$f":"ROUND(SUM(I924:Q924)-H924,0)","v":0}]
[925,null,null,null,"Demand Secondary","F22",{"$f":"IF(AND(OR(Function =\"DIS\",Function=\"JAM\"),OR(Classification = \"P & C\",Classification = \"TOTAL\")),1,0)","v":0},{"$f":"DistInvest!H19*G925","v":0},{"$f":"VLOOKUP($F925,FactSum,'COS Factor Table'!F$115,FALSE)*$H925","v":0},{"$f":"VLOOKUP($F925,FactSum,'COS Factor Table'!G$115,FALSE)*$H925","v":0},{"$f":"VLOOKUP($F925,FactSum,'COS Factor Table'!H$115,FALSE)*$H925","v":0},{"$f":"VLOOKUP($F925,FactSum,'COS Factor Table'!I$115,FALSE)*$H925","v":0},{"$f":"VLOOKUP($F925,FactSum,'COS Factor Table'!J$115,FALSE)*$H925","v":0},{"$f":"VLOOKUP($F925,FactSum,'COS Factor Table'!K$115,FALSE)*$H925","v":0},{"$f":"VLOOKUP($F925,FactSum,'COS Factor Table'!L$115,FALSE)*$H925","v":0},{"$f":"VLOOKUP($F925,FactSum,'COS Factor Table'!M$115,FALSE)*$H925","v":0},{"$f":"VLOOKUP($F925,FactSum,'COS Factor Table'!N$115,FALSE)*$H925","v":0},{"$f":"ROUND(SUM(I925:Q925)-H925,0)","v":0}]
[926,null,null,null,"Assigned","A",{"$f":"IF(AND(OR(Function =\"DIS\",Function=\"JAM\"),OR(Classification = \"P & C\",Classification = \"TOTAL\")),1,0)","v":0},{"$f":"SUM(I926:Q926)","v":0},0,0,{"$f":"DistInvest!$E19*G926","v":0},{"$f":"DistInvest!$D19","v":0},0,0,0,0,0,{"$f":"ROUND(SUM(I926:Q926)-H926,0)","v":0}]
[927,null,null,null,null,null,null,{"$f":"SUM(H924:H926)","v":0},{"$f":"SUM(I924:I926)","v":0},0,0,0,{"$f":"SUM(M924:M926)","v":0},0,0,{"$f":"SUM(P924:P926)","v":0},{"$f":"SUM(Q924:Q926)","v":0},{"$f":"ROUND(SUM(I927:Q927)-H927,0)","v":0}]
[928,null,"365","Overhead Conductors"]
[929,null,null,null,"Demand Primary","F20A",{"$f":"IF(AND(OR(Function =\"DIS\",Function=\"JAM\"),OR(Classification = \"P & C\",Classification = \"TOTAL\")),1,0)","v":0},{"$f":"DistInvest!G20*G929","v":0},{"$f":"VLOOKUP($F929,FactSum,'COS Factor Table'!F$115,FALSE)*$H929","v":0},{"$f":"VLOOKUP($F929,FactSum,'COS Factor Table'!G$115,FALSE)*$H929","v":0},{"$f":"VLOOKUP($F929,FactSum,'COS Factor Table'!H$115,FALSE)*$H929","v":0},{"$f":"VLOOKUP($F929,FactSum,'COS Factor Table'!I$115,FALSE)*$H929","v":0},{"$f":"VLOOKUP($F929,FactSum,'COS Factor Table'!J$115,FALSE)*$H929","v":0},{"$f":"VLOOKUP($F929,FactSum,'COS Factor Table'!K$115,FALSE)*$H929","v":0},{"$f":"VLOOKUP($F929,FactSum,'COS Factor Table'!L$115,FALSE)*$H929","v":0},{"$f":"VLOOKUP($F929,FactSum,'COS Factor Table'!M$115,FALSE)*$H929","v":0},{"$f":"VLOOKUP($F929,FactSum,'COS Factor Table'!N$115,FALSE)*$H929","v":0},{"$f":"ROUND(SUM(I929:Q929)-H929,0)","v":0}]
[930,null,null,null,"Demand Secondary","F22",{"$f":"IF(AND(OR(Function =\"DIS\",Function=\"JAM\"),OR(Classification = \"P & C\",Classification = \"TOTAL\")),1,0)","v":0},{"$f":"DistInvest!H20*G930","v":0},{"$f":"VLOOKUP($F930,FactSum,'COS Factor Table'!F$115,FALSE)*$H930","v":0},{"$f":"VLOOKUP($F930,FactSum,'COS Factor Table'!G$115,FALSE)*$H930","v":0},{"$f":"VLOOKUP($F930,FactSum,'COS Factor Table'!H$115,FALSE)*$H930","v":0},{"$f":"VLOOKUP($F930,FactSum,'COS Factor Table'!I$115,FALSE)*$H930","v":0},{"$f":"VLOOKUP($F930,FactSum,'COS Factor Table'!J$115,FALSE)*$H930","v":0},{"$f":"VLOOKUP($F930,FactSum,'COS Factor Table'!K$115,FALSE)*$H930","v":0},{"$f":"VLOOKUP($F930,FactSum,'COS Factor Table'!L$115,FALSE)*$H930","v":0},{"$f":"VLOOKUP($F930,FactSum,'COS Factor Table'!M$115,FALSE)*$H930","v":0},{"$f":"VLOOKUP($F930,FactSum,'COS Factor Table'!N$115,FALSE)*$H930","v":0},{"$f":"ROUND(SUM(I930:Q930)-H930,0)","v":0}]
[931,null,null,null,"Assigned","A",{"$f":"IF(AND(OR(Function =\"DIS\",Function=\"JAM\"),OR(Classification = \"P & C\",Classification = \"TOTAL\")),1,0)","v":0},{"$f":"SUM(I931:Q931)","v":0},0,0,{"$f":"DistInvest!$E20*G931","v":0},{"$f":"DistInvest!$D20","v":0},0,0,0,0,0,{"$f":"ROUND(SUM(I931:Q931)-H931,0)","v":0}]
[932,null,null,null,null,null,null,{"$f":"SUM(H929:H931)","v":0},{"$f":"SUM(I929:I931)","v":0},0,0,0,{"$f":"SUM(M929:M931)","v":0},0,0,{"$f":"SUM(P929:P931)","v":0},{"$f":"SUM(Q929:Q931)","v":0},{"$f":"ROUND(SUM(I932:Q932)-H932,0)","v":0}]
[933,null,"366","Underground Conduit"]
[934,null,null,null,"Demand Primary","F20A",{"$f":"IF(AND(OR(Function =\"DIS\",Function=\"JAM\"),OR(Classification = \"P & C\",Classification = \"TOTAL\")),1,0)","v":0},{"$f":"DistInvest!G21*G934","v":0},{"$f":"VLOOKUP($F934,FactSum,'COS Factor Table'!F$115,FALSE)*$H934","v":0},{"$f":"VLOOKUP($F934,FactSum,'COS Factor Table'!G$115,FALSE)*$H934","v":0},{"$f":"VLOOKUP($F934,FactSum,'COS Factor Table'!H$115,FALSE)*$H934","v":0},{"$f":"VLOOKUP($F934,FactSum,'COS Factor Table'!I$115,FALSE)*$H934","v":0},{"$f":"VLOOKUP($F934,FactSum,'COS Factor Table'!J$115,FALSE)*$H934","v":0},{"$f":"VLOOKUP($F934,FactSum,'COS Factor Table'!K$115,FALSE)*$H934","v":0},{"$f":"VLOOKUP($F934,FactSum,'COS Factor Table'!L$115,FALSE)*$H934","v":0},{"$f":"VLOOKUP($F934,FactSum,'COS Factor Table'!M$115,FALSE)*$H934","v":0},{"$f":"VLOOKUP($F934,FactSum,'COS Factor Table'!N$115,FALSE)*$H934","v":0},{"$f":"ROUND(SUM(I934:Q934)-H934,0)","v":0}]
[935,null,null,null,"Demand Secondary","F22",{"$f":"IF(AND(OR(Function =\"DIS\",Function=\"JAM\"),OR(Classification = \"P & C\",Classification = \"TOTAL\")),1,0)","v":0},{"$f":"DistInvest!H21*G935","v":0},{"$f":"VLOOKUP($F935,FactSum,'COS Factor Table'!F$115,FALSE)*$H935","v":0},{"$f":"VLOOKUP($F935,FactSum,'COS Factor Table'!G$115,FALSE)*$H935","v":0},{"$f":"VLOOKUP($F935,FactSum,'COS Factor Table'!H$115,FALSE)*$H935","v":0},{"$f":"VLOOKUP($F935,FactSum,'COS Factor Table'!I$115,FALSE)*$H935","v":0},{"$f":"VLOOKUP($F935,FactSum,'COS Factor Table'!J$115,FALSE)*$H935","v":0},{"$f":"VLOOKUP($F935,FactSum,'COS Factor Table'!K$115,FALSE)*$H935","v":0},{"$f":"VLOOKUP($F935,FactSum,'COS Factor Table'!L$115,FALSE)*$H935","v":0},{"$f":"VLOOKUP($F935,FactSum,'COS Factor Table'!M$115,FALSE)*$H935","v":0},{"$f":"VLOOKUP($F935,FactSum,'COS Factor Table'!N$115,FALSE)*$H935","v":0},{"$f":"ROUND(SUM(I935:Q935)-H935,0)","v":0}]
[936,null,null,null,"Assigned","A",{"$f":"IF(AND(OR(Function =\"DIS\",Function=\"JAM\"),OR(Classification = \"P & C\",Classification = \"TOTAL\")),1,0)","v":0},{"$f":"SUM(I936:Q936)","v":0},0,0,{"$f":"DistInvest!$E21*G936","v":0},{"$f":"DistInvest!$D21*G936","v":0},0,0,0,0,0,{"$f":"ROUND(SUM(I936:Q936)-H936,0)","v":0}]
[937,null,null,null,null,null,null,{"$f":"SUM(H934:H936)","v":0},{"$f":"SUM(I934:I936)","v":0},0,0,0,{"$f":"SUM(M934:M936)","v":0},0,0,{"$f":"SUM(P934:P936)","v":0},{"$f":"SUM(Q934:Q936)","v":0},{"$f":"ROUND(SUM(I937:Q937)-H937,0)","v":0}]
[938,null,"367","Underground Conductors "]
[939,null,null,null,"Demand Primary","F20A",{"$f":"IF(AND(OR(Function =\"DIS\",Function=\"JAM\"),OR(Classification = \"P & C\",Classification = \"TOTAL\")),1,0)","v":0},{"$f":"DistInvest!G22*G939","v":0},{"$f":"VLOOKUP($F939,FactSum,'COS Factor Table'!F$115,FALSE)*$H939","v":0},{"$f":"VLOOKUP($F939,FactSum,'COS Factor Table'!G$115,FALSE)*$H939","v":0},{"$f":"VLOOKUP($F939,FactSum,'COS Factor Table'!H$115,FALSE)*$H939","v":0},{"$f":"VLOOKUP($F939,FactSum,'COS Factor Table'!I$115,FALSE)*$H939","v":0},{"$f":"VLOOKUP($F939,FactSum,'COS Factor Table'!J$115,FALSE)*$H939","v":0},{"$f":"VLOOKUP($F939,FactSum,'COS Factor Table'!K$115,FALSE)*$H939","v":0},{"$f":"VLOOKUP($F939,FactSum,'COS Factor Table'!L$115,FALSE)*$H939","v":0},{"$f":"VLOOKUP($F939,FactSum,'COS Factor Table'!M$115,FALSE)*$H939","v":0},{"$f":"VLOOKUP($F939,FactSum,'COS Factor Table'!N$115,FALSE)*$H939","v":0},{"$f":"ROUND(SUM(I939:Q939)-H939,0)","v":0}]
[940,null,null,null,"Demand Secondary","F22",{"$f":"IF(AND(OR(Function =\"DIS\",Function=\"JAM\"),OR(Classification = \"P & C\",Classification = \"TOTAL\")),1,0)","v":0},{"$f":"DistInvest!H22*G940","v":0},{"$f":"VLOOKUP($F940,FactSum,'COS Factor Table'!F$115,FALSE)*$H940","v":0},{"$f":"VLOOKUP($F940,FactSum,'COS Factor Table'!G$115,FALSE)*$H940","v":0},{"$f":"VLOOKUP($F940,FactSum,'COS Factor Table'!H$115,FALSE)*$H940","v":0},{"$f":"VLOOKUP($F940,FactSum,'COS Factor Table'!I$115,FALSE)*$H940","v":0},{"$f":"VLOOKUP($F940,FactSum,'COS Factor Table'!J$115,FALSE)*$H940","v":0},{"$f":"VLOOKUP($F940,FactSum,'COS Factor Table'!K$115,FALSE)*$H940","v":0},{"$f":"VLOOKUP($F940,FactSum,'COS Factor Table'!L$115,FALSE)*$H940","v":0},{"$f":"VLOOKUP($F940,FactSum,'COS Factor Table'!M$115,FALSE)*$H940","v":0},{"$f":"VLOOKUP($F940,FactSum,'COS Factor Table'!N$115,FALSE)*$H940","v":0},{"$f":"ROUND(SUM(I940:Q940)-H940,0)","v":0}]
[941,null,null,null,"Assigned","A",{"$f":"IF(AND(OR(Function =\"DIS\",Function=\"JAM\"),OR(Classification = \"P & C\",Classification = \"TOTAL\")),1,0)","v":0},{"$f":"SUM(I941:Q941)","v":0},0,0,{"$f":"DistInvest!$E22*G941","v":0},{"$f":"DistInvest!$D22*G941","v":0},0,0,0,0,0,{"$f":"ROUND(SUM(I941:Q941)-H941,0)","v":0}]
[942,null,null,null,null,null,null,{"$f":"SUM(H939:H941)","v":0},{"$f":"SUM(I939:I941)","v":0},0,0,0,{"$f":"SUM(M939:M941)","v":0},0,0,{"$f":"SUM(P939:P941)","v":0},{"$f":"SUM(Q939:Q941)","v":0},{"$f":"ROUND(SUM(I942:Q942)-H942,0)","v":0}]
[943,null,"368","Line Transformers"]
[944,null,null,null,"Demand Secondary","F21",null,{"$f":"+UAcct368-H945","v":0},{"$f":"VLOOKUP($F944,FactSum,'COS Factor Table'!F$115,FALSE)*$H944","v":0},{"$f":"VLOOKUP($F944,FactSum,'COS Factor Table'!G$115,FALSE)*$H944","v":0},{"$f":"VLOOKUP($F944,FactSum,'COS Factor Table'!H$115,FALSE)*$H944","v":0},{"$f":"VLOOKUP($F944,FactSum,'COS Factor Table'!I$115,FALSE)*$H944","v":0},{"$f":"VLOOKUP($F944,FactSum,'COS Factor Table'!J$115,FALSE)*$H944","v":0},{"$f":"VLOOKUP($F944,FactSum,'COS Factor Table'!K$115,FALSE)*$H944","v":0},{"$f":"VLOOKUP($F944,FactSum,'COS Factor Table'!L$115,FALSE)*$H944","v":0},{"$f":"VLOOKUP($F944,FactSum,'COS Factor Table'!M$115,FALSE)*$H944","v":0},{"$f":"VLOOKUP($F944,FactSum,'COS Factor Table'!N$115,FALSE)*$H944","v":0},{"$f":"ROUND(SUM(I944:Q944)-H944,0)","v":0}]
[945,null,null,null,"Assigned","A",{"$f":"+UAcct368/Acct368","v":0},{"$f":"SUM(I945:Q945)","v":0},0,0,{"$f":"DistInvest!$E23","v":0},{"$f":"DistInvest!$D23","v":0},0,0,0,0,0,{"$f":"ROUND(SUM(I945:Q945)-H945,0)","v":0}]
[946,null,null,null,null,null,null,{"$f":"SUM(H944:H945)","v":0},{"$f":"SUM(I943:I945)","v":0},0,0,0,{"$f":"SUM(M943:M945)","v":0},0,0,{"$f":"SUM(P943:P945)","v":0},{"$f":"SUM(Q943:Q945)","v":0},{"$f":"ROUND(SUM(I946:Q946)-H946,0)","v":0}]
[947,null,"369","Services"]
[948,null,null,null,"Customer","F70",null,{"$f":"+UAcct369-H949","v":0},{"$f":"VLOOKUP($F948,FactSum,'COS Factor Table'!F$115,FALSE)*$H948","v":0},{"$f":"VLOOKUP($F948,FactSum,'COS Factor Table'!G$115,FALSE)*$H948","v":0},{"$f":"VLOOKUP($F948,FactSum,'COS Factor Table'!H$115,FALSE)*$H948","v":0},{"$f":"VLOOKUP($F948,FactSum,'COS Factor Table'!I$115,FALSE)*$H948","v":0},{"$f":"VLOOKUP($F948,FactSum,'COS Factor Table'!J$115,FALSE)*$H948","v":0},{"$f":"VLOOKUP($F948,FactSum,'COS Factor Table'!K$115,FALSE)*$H948","v":0},{"$f":"VLOOKUP($F948,FactSum,'COS Factor Table'!L$115,FALSE)*$H948","v":0},{"$f":"VLOOKUP($F948,FactSum,'COS Factor Table'!M$115,FALSE)*$H948","v":0},{"$f":"VLOOKUP($F948,FactSum,'COS Factor Table'!N$115,FALSE)*$H948","v":0},{"$f":"ROUND(SUM(I948:Q948)-H948,0)","v":0}]
[949,null,null,null,"Assigned","A",{"$f":"+UAcct369/Acct369","v":0},{"$f":"SUM(I949:Q949)","v":0},0,0,{"$f":"DistInvest!$E24","v":0},{"$f":"DistInvest!$D24","v":0},0,0,0,0,0,{"$f":"ROUND(SUM(I949:Q949)-H949,0)","v":0}]
[950,null,null,null,null,null,null,{"$f":"SUM(H948:H949)","v":0},{"$f":"SUM(I948:I949)","v":0},0,0,0,{"$f":"SUM(M948:M949)","v":0},0,0,{"$f":"SUM(P948:P949)","v":0},{"$f":"SUM(Q948:Q949)","v":0},{"$f":"ROUND(SUM(I950:Q950)-H950,0)","v":0}]
[951,null,"370","Meters"]
[952,null,null,null,"Customer","F60A",null,{"$f":"+UAcct370-H953","v":11341204.639999999},{"$f":"VLOOKUP($F952,FactSum,'COS Factor Table'!F$115,FALSE)*$H952","v":7788813.0551659521},{"$f":"VLOOKUP($F952,FactSum,'COS Factor Table'!G$115,FALSE)*$H952","v":1859106.2736633245},{"$f":"VLOOKUP($F952,FactSum,'COS Factor Table'!H$115,FALSE)*$H952","v":875047.61912785866},{"$f":"VLOOKUP($F952,FactSum,'COS Factor Table'!I$115,FALSE)*$H952","v":140678.14110871041},{"$f":"VLOOKUP($F952,FactSum,'COS Factor Table'!J$115,FALSE)*$H952","v":0},{"$f":"VLOOKUP($F952,FactSum,'COS Factor Table'!K$115,FALSE)*$H952","v":677559.55093415419},{"$f":"VLOOKUP($F952,FactSum,'COS Factor Table'!L$115,FALSE)*$H952","v":0},{"$f":"VLOOKUP($F952,FactSum,'COS Factor Table'!M$115,FALSE)*$H952","v":0},{"$f":"VLOOKUP($F952,FactSum,'COS Factor Table'!N$115,FALSE)*$H952","v":0},{"$f":"ROUND(SUM(I952:Q952)-H952,0)","v":0}]
[953,null,null,null,"Assigned","A",{"$f":"+UAcct370/Acct370","v":1},{"$f":"SUM(I953:Q953)","v":110788.96},0,0,{"$f":"DistInvest!$E25","v":0},{"$f":"DistInvest!$D25*G953","v":0},{"$f":"DistInvest!F25*G953","v":110788.96},0,0,0,0,{"$f":"ROUND(SUM(I953:Q953)-H953,0)","v":0}]
[954,null,null,null,null,null,null,{"$f":"SUM(H952:H953)","v":11451993.6},{"$f":"SUM(I951:I953)","v":7788813.0551659521},1859106.2736633245,875047.61912785866,140678.14110871041,{"$f":"SUM(M951:M953)","v":110788.96},677559.55093415419,0,{"$f":"SUM(P951:P953)","v":0},{"$f":"SUM(Q951:Q953)","v":0},{"$f":"ROUND(SUM(I954:Q954)-H954,0)","v":0}]
[955,null,"371","Install on Customers' Premises"]
[956,null,null,null,"Demand Primary","F20",{"$f":"IF(AND(OR(Function =\"DIS\",Function=\"JAM\"),OR(Classification = \"P & C\",Classification = \"TOTAL\")),1,0)","v":0},{"$f":"DistInvest!$G26*G956","v":0},{"$f":"VLOOKUP($F956,FactSum,'COS Factor Table'!F$115,FALSE)*$H956","v":0},{"$f":"VLOOKUP($F956,FactSum,'COS Factor Table'!G$115,FALSE)*$H956","v":0},{"$f":"VLOOKUP($F956,FactSum,'COS Factor Table'!H$115,FALSE)*$H956","v":0},{"$f":"VLOOKUP($F956,FactSum,'COS Factor Table'!I$115,FALSE)*$H956","v":0},{"$f":"VLOOKUP($F956,FactSum,'COS Factor Table'!J$115,FALSE)*$H956","v":0},{"$f":"VLOOKUP($F956,FactSum,'COS Factor Table'!K$115,FALSE)*$H956","v":0},{"$f":"VLOOKUP($F956,FactSum,'COS Factor Table'!L$115,FALSE)*$H956","v":0},{"$f":"VLOOKUP($F956,FactSum,'COS Factor Table'!M$115,FALSE)*$H956","v":0},{"$f":"VLOOKUP($F956,FactSum,'COS Factor Table'!N$115,FALSE)*$H956","v":0},{"$f":"ROUND(SUM(I956:Q956)-H956,0)","v":0}]
[957,null,null,null,"Demand Secondary","F22",{"$f":"IF(AND(OR(Function =\"DIS\",Function=\"JAM\"),OR(Classification = \"P & C\",Classification = \"TOTAL\")),1,0)","v":0},{"$f":"DistInvest!$H26*G957","v":0},{"$f":"VLOOKUP($F957,FactSum,'COS Factor Table'!F$115,FALSE)*$H957","v":0},{"$f":"VLOOKUP($F957,FactSum,'COS Factor Table'!G$115,FALSE)*$H957","v":0},{"$f":"VLOOKUP($F957,FactSum,'COS Factor Table'!H$115,FALSE)*$H957","v":0},{"$f":"VLOOKUP($F957,FactSum,'COS Factor Table'!I$115,FALSE)*$H957","v":0},{"$f":"VLOOKUP($F957,FactSum,'COS Factor Table'!J$115,FALSE)*$H957","v":0},{"$f":"VLOOKUP($F957,FactSum,'COS Factor Table'!K$115,FALSE)*$H957","v":0},{"$f":"VLOOKUP($F957,FactSum,'COS Factor Table'!L$115,FALSE)*$H957","v":0},{"$f":"VLOOKUP($F957,FactSum,'COS Factor Table'!M$115,FALSE)*$H957","v":0},{"$f":"VLOOKUP($F957,FactSum,'COS Factor Table'!N$115,FALSE)*$H957","v":0},{"$f":"ROUND(SUM(I957:Q957)-H957,0)","v":0}]
[958,null,null,null,"Assigned","A",{"$f":"IF(AND(OR(Function =\"DIS\",Function=\"JAM\"),OR(Classification = \"P & C\",Classification = \"TOTAL\")),1,0)","v":0},{"$f":"SUM(I958:Q958)","v":0},0,0,0,0,0,0,{"$f":"DistInvest!$E26*$G$958","v":0},0,0,{"$f":"ROUND(SUM(I958:Q958)-H958,0)","v":0}]
[959,null,null,null,null,null,null,{"$f":"SUM(H956:H958)","v":0},{"$f":"SUM(I956:I958)","v":0},0,0,0,{"$f":"SUM(M956:M958)","v":0},0,0,{"$f":"SUM(P956:P958)","v":0},{"$f":"SUM(Q956:Q958)","v":0},{"$f":"ROUND(SUM(I959:Q959)-H959,0)","v":0}]
[960,null,"372","Leased Property"]
[961,null,null,null,"Demand Primary","F20",{"$f":"(UAcct372Dp+UAcct372Ds+UAcct372A)/(Acct372DP+Acct372DS+Acct372A+0.000001)","v":0},{"$f":"DistInvest!$I27*G961","v":0},{"$f":"VLOOKUP($F961,FactSum,'COS Factor Table'!F$115,FALSE)*$H961","v":0},{"$f":"VLOOKUP($F961,FactSum,'COS Factor Table'!G$115,FALSE)*$H961","v":0},{"$f":"VLOOKUP($F961,FactSum,'COS Factor Table'!H$115,FALSE)*$H961","v":0},{"$f":"VLOOKUP($F961,FactSum,'COS Factor Table'!I$115,FALSE)*$H961","v":0},{"$f":"VLOOKUP($F961,FactSum,'COS Factor Table'!J$115,FALSE)*$H961","v":0},{"$f":"VLOOKUP($F961,FactSum,'COS Factor Table'!K$115,FALSE)*$H961","v":0},{"$f":"VLOOKUP($F961,FactSum,'COS Factor Table'!L$115,FALSE)*$H961","v":0},{"$f":"VLOOKUP($F961,FactSum,'COS Factor Table'!M$115,FALSE)*$H961","v":0},{"$f":"VLOOKUP($F961,FactSum,'COS Factor Table'!N$115,FALSE)*$H961","v":0},{"$f":"ROUND(SUM(I961:Q961)-H961,0)","v":0}]
[{"$f":"A961+1","v":962},null,null,null,"Demand Secondary","F22",{"$f":"(UAcct372Dp+UAcct372Ds+UAcct372A)/(Acct372DP+Acct372DS+Acct372A+0.000001)","v":0},{"$f":"DistInvest!$J27*G962","v":0},{"$f":"VLOOKUP($F962,FactSum,'COS Factor Table'!F$115,FALSE)*$H962","v":0},{"$f":"VLOOKUP($F962,FactSum,'COS Factor Table'!G$115,FALSE)*$H962","v":0},{"$f":"VLOOKUP($F962,FactSum,'COS Factor Table'!H$115,FALSE)*$H962","v":0},{"$f":"VLOOKUP($F962,FactSum,'COS Factor Table'!I$115,FALSE)*$H962","v":0},{"$f":"VLOOKUP($F962,FactSum,'COS Factor Table'!J$115,FALSE)*$H962","v":0},{"$f":"VLOOKUP($F962,FactSum,'COS Factor Table'!K$115,FALSE)*$H962","v":0},{"$f":"VLOOKUP($F962,FactSum,'COS Factor Table'!L$115,FALSE)*$H962","v":0},{"$f":"VLOOKUP($F962,FactSum,'COS Factor Table'!M$115,FALSE)*$H962","v":0},{"$f":"VLOOKUP($F962,FactSum,'COS Factor Table'!N$115,FALSE)*$H962","v":0},{"$f":"ROUND(SUM(I962:Q962)-H962,0)","v":0}]
[963,null,null,null,"Assigned","A",{"$f":"(UAcct372Dp+UAcct372Ds+UAcct372A)/(Acct372DP+Acct372DS+Acct372A+0.00001)","v":0},{"$f":"SUM(I963:Q963)","v":0},0,0,{"$f":"DistInvest!$E27","v":0},{"$f":"DistInvest!$D27","v":0},0,0,0,0,0,{"$f":"ROUND(SUM(I963:Q963)-H963,0)","v":0}]
[964,null,null,null,null,null,null,{"$f":"SUM(H961:H963)","v":0},{"$f":"SUM(I961:I963)","v":0},0,0,0,{"$f":"SUM(M961:M963)","v":0},0,0,{"$f":"SUM(P961:P963)","v":0},{"$f":"SUM(Q961:Q963)","v":0},{"$f":"ROUND(SUM(I964:Q964)-H964,0)","v":0}]
[965]
[966,null,"373","Street Lights",null,"A",{"$f":"+UAcct373/Acct373","v":0},{"$f":"SUM(I966:Q966)","v":0},0,0,0,0,0,0,{"$f":"DistInvest!$E28*$G$966","v":0},0,0,{"$f":"ROUND(SUM(I966:Q966)-H966,0)","v":0}]
[967]
[968]
[969,null,"DP","Unclassified Dist Plant - Acct 300",null,"F22",{"$f":"IF(UAcctd00=0,0,1)","v":0},{"$f":"UAcctd00*G969","v":0},{"$f":"VLOOKUP($F969,FactSum,'COS Factor Table'!F$115,FALSE)*$H969","v":0},{"$f":"VLOOKUP($F969,FactSum,'COS Factor Table'!G$115,FALSE)*$H969","v":0},{"$f":"VLOOKUP($F969,FactSum,'COS Factor Table'!H$115,FALSE)*$H969","v":0},{"$f":"VLOOKUP($F969,FactSum,'COS Factor Table'!I$115,FALSE)*$H969","v":0},{"$f":"VLOOKUP($F969,FactSum,'COS Factor Table'!J$115,FALSE)*$H969","v":0},{"$f":"VLOOKUP($F969,FactSum,'COS Factor Table'!K$115,FALSE)*$H969","v":0},{"$f":"VLOOKUP($F969,FactSum,'COS Factor Table'!L$115,FALSE)*$H969","v":0},{"$f":"VLOOKUP($F969,FactSum,'COS Factor Table'!M$115,FALSE)*$H969","v":0},{"$f":"VLOOKUP($F969,FactSum,'COS Factor Table'!N$115,FALSE)*$H969","v":0},{"$f":"ROUND(SUM(I969:Q969)-H969,0)","v":0}]
[970,null,"DS0","Unclassified Dist Sub  - Acct 300",null,"F20",{"$f":"IF(AND(OR(Function =\"DIS\",Function=\"JAM\"),OR(Classification = \"P & C\",Classification = \"TOTAL\")),1,0)","v":0},{"$f":"UAcctds0*G970","v":0},{"$f":"VLOOKUP($F970,FactSum,'COS Factor Table'!F$115,FALSE)*$H970","v":0},{"$f":"VLOOKUP($F970,FactSum,'COS Factor Table'!G$115,FALSE)*$H970","v":0},{"$f":"VLOOKUP($F970,FactSum,'COS Factor Table'!H$115,FALSE)*$H970","v":0},{"$f":"VLOOKUP($F970,FactSum,'COS Factor Table'!I$115,FALSE)*$H970","v":0},{"$f":"VLOOKUP($F970,FactSum,'COS Factor Table'!J$115,FALSE)*$H970","v":0},{"$f":"VLOOKUP($F970,FactSum,'COS Factor Table'!K$115,FALSE)*$H970","v":0},{"$f":"VLOOKUP($F970,FactSum,'COS Factor Table'!L$115,FALSE)*$H970","v":0},{"$f":"VLOOKUP($F970,FactSum,'COS Factor Table'!M$115,FALSE)*$H970","v":0},{"$f":"VLOOKUP($F970,FactSum,'COS Factor Table'!N$115,FALSE)*$H970","v":0},{"$f":"ROUND(SUM(I970:Q970)-H970,0)","v":0}]
[971,null,"TOTAL DISTRIBUTION PLANT",null,null,null,null,{"$f":"SUM(H914,H918,H922,H927,H932,H937,H942,H946,H950,H954,H959,H964,H966,H969,H970)","v":11451993.6},7788813.0551659521,1859106.2736633245,875047.61912785866,140678.14110871041,{"$f":"SUM(M914,M918,M922,M927,M932,M937,M942,M946,M950,M954,M959,M964,M966,M969,M970)","v":110788.96},677559.55093415419,0,0,0,{"$f":"ROUND(SUM(I971:Q971)-H971,0)","v":0}]
[972]
[973,null,{"$f":"$E$1","v":"Distribution - METER -  Unbundled"},null,null,null,null,"GENERAL PLANT"]
[974]
[975,null,"A",null,"B","C",null,"D","E","F","G","H","I","J","K","S","T"]
[976,null,null,null,null,null,null,{"$f":"'Hot Sheet'!$H$10","v":"Washington"},null,{"$f":"'Hot Sheet'!$J$10","v":"Small General"},{"$f":"'Hot Sheet'!$K$10","v":"Large General"},{"$f":"'Hot Sheet'!$L$10","v":"Large General"},{"$f":"'Hot Sheet'!$M$10","v":"Large General"},{"$f":"'Hot Sheet'!$N$10","v":"Agricultural"},{"$f":"'Hot Sheet'!$O$10","v":"Street & Area"}]
[977,null,"FERC",null,null,"COS",null,{"$f":"'Hot Sheet'!$H$11","v":"Jurisdiction"},{"$f":"'Hot Sheet'!$I$11","v":"Residential"},{"$f":"'Hot Sheet'!$J$11","v":"Service"},{"$f":"'Hot Sheet'!$K$11","v":"Service <1,000 kW"},{"$f":"'Hot Sheet'!$L$11","v":"Service >1,000 kW"},{"$f":"'Hot Sheet'!$M$11","v":"Dedicated Facilities"},{"$f":"'Hot Sheet'!$N$11","v":"Pumping"},{"$f":"'Hot Sheet'!$O$11","v":"Lighting"},{"$f":"'Hot Sheet'!P$11","v":"-"},{"$f":"'Hot Sheet'!Q$11","v":"-"}]
[978,null,"ACCT",null,"DESCRIPTION ","Factor",null,{"$f":"'Hot Sheet'!$H$12","v":"Normalized"},{"$f":"'Hot Sheet'!$I$12","v":"Schedule 16"},{"$f":"'Hot Sheet'!$J$12","v":"Schedule 24"},{"$f":"'Hot Sheet'!$K$12","v":"Schedule 36"},{"$f":"'Hot Sheet'!$L$12","v":"Schedule 48T"},{"$f":"'Hot Sheet'!$M$12","v":"Schedule 48T"},{"$f":"'Hot Sheet'!$N$12","v":"Schedule 40"},{"$f":"'Hot Sheet'!$O$12","v":"Sch. 15,51-54,57"},{"$f":"'Hot Sheet'!P$12","v":"-"},{"$f":"'Hot Sheet'!Q$12","v":"-"}]
[979,null,"389","Land and Land Rights"]
[980,null,null,null,"Situs",{"$f":"IF(Function=\"gen\",\"F107G\",IF(Function=\"TRN\",\"F107T\",IF(Function=\"DIS\",\"F107D\",IF(Function=\"RETAIL\",\"F107R\",IF(Function=\"MISC\",\"F107M\",\"ERR\")))))","v":"F107D"},null,{"$f":"SUM(UAcct389S)","v":23172.160803329974},{"$f":"VLOOKUP($F980,FactSum,'COS Factor Table'!F$115,FALSE)*$H980","v":13718.654965297876},{"$f":"VLOOKUP($F980,FactSum,'COS Factor Table'!G$115,FALSE)*$H980","v":3479.3601571593376},{"$f":"VLOOKUP($F980,FactSum,'COS Factor Table'!H$115,FALSE)*$H980","v":3255.8263023490613},{"$f":"VLOOKUP($F980,FactSum,'COS Factor Table'!I$115,FALSE)*$H980","v":1136.1641143215966},{"$f":"VLOOKUP($F980,FactSum,'COS Factor Table'!J$115,FALSE)*$H980","v":157.51132400627989},{"$f":"VLOOKUP($F980,FactSum,'COS Factor Table'!K$115,FALSE)*$H980","v":1113.6649855815019},{"$f":"VLOOKUP($F980,FactSum,'COS Factor Table'!L$115,FALSE)*$H980","v":310.97895461431841},{"$f":"VLOOKUP($F980,FactSum,'COS Factor Table'!M$115,FALSE)*$H980","v":0},{"$f":"VLOOKUP($F980,FactSum,'COS Factor Table'!N$115,FALSE)*$H980","v":0},{"$f":"ROUND(SUM(I980:Q980)-H980,0)","v":0}]
[981,null,null,null,"System Generation",{"$f":"IF(Function=\"gen\",\"F105G\",IF(Function=\"TRN\",\"F105T\",IF(Function=\"DIS\",\"F105D\",IF(Function=\"RETAIL\",\"F105R\",IF(Function=\"MISC\",\"F105M\",\"ERR\")))))","v":"F105D"},null,{"$f":"SUM(UAcct389Sgu+UAcct389Sg)","v":0},{"$f":"VLOOKUP($F981,FactSum,'COS Factor Table'!F$115,FALSE)*$H981","v":0},{"$f":"VLOOKUP($F981,FactSum,'COS Factor Table'!G$115,FALSE)*$H981","v":0},{"$f":"VLOOKUP($F981,FactSum,'COS Factor Table'!H$115,FALSE)*$H981","v":0},{"$f":"VLOOKUP($F981,FactSum,'COS Factor Table'!I$115,FALSE)*$H981","v":0},{"$f":"VLOOKUP($F981,FactSum,'COS Factor Table'!J$115,FALSE)*$H981","v":0},{"$f":"VLOOKUP($F981,FactSum,'COS Factor Table'!K$115,FALSE)*$H981","v":0},{"$f":"VLOOKUP($F981,FactSum,'COS Factor Table'!L$115,FALSE)*$H981","v":0},{"$f":"VLOOKUP($F981,FactSum,'COS Factor Table'!M$115,FALSE)*$H981","v":0},{"$f":"VLOOKUP($F981,FactSum,'COS Factor Table'!N$115,FALSE)*$H981","v":0},{"$f":"ROUND(SUM(I981:Q981)-H981,0)","v":0}]
[982,null,null,null,"System Overheads",{"$f":"IF(Function=\"gen\",\"F102G\",IF(Function=\"TRN\",\"F102T\",IF(Function=\"DIS\",\"F102D\",IF(Function=\"RETAIL\",\"F102R\",IF(Function=\"MISC\",\"F102M\",\"ERR\")))))","v":"F102D"},null,{"$f":"SUM(UAcct389So)","v":3188.108123378584},{"$f":"VLOOKUP($F982,FactSum,'COS Factor Table'!F$115,FALSE)*$H982","v":1887.4612388504099},{"$f":"VLOOKUP($F982,FactSum,'COS Factor Table'!G$115,FALSE)*$H982","v":478.7027189801567},{"$f":"VLOOKUP($F982,FactSum,'COS Factor Table'!H$115,FALSE)*$H982","v":447.94813789385773},{"$f":"VLOOKUP($F982,FactSum,'COS Factor Table'!I$115,FALSE)*$H982","v":156.31749119570165},{"$f":"VLOOKUP($F982,FactSum,'COS Factor Table'!J$115,FALSE)*$H982","v":21.670966978460349},{"$f":"VLOOKUP($F982,FactSum,'COS Factor Table'!K$115,FALSE)*$H982","v":153.22198121223354},{"$f":"VLOOKUP($F982,FactSum,'COS Factor Table'!L$115,FALSE)*$H982","v":42.785588267763686},{"$f":"VLOOKUP($F982,FactSum,'COS Factor Table'!M$115,FALSE)*$H982","v":0},{"$f":"VLOOKUP($F982,FactSum,'COS Factor Table'!N$115,FALSE)*$H982","v":0},{"$f":"ROUND(SUM(I982:Q982)-H982,0)","v":0}]
[983,null,null,null,"Customer - System","F42",null,{"$f":"SUM(UAcct389Cn)","v":0},{"$f":"VLOOKUP($F983,FactSum,'COS Factor Table'!F$115,FALSE)*$H983","v":0},{"$f":"VLOOKUP($F983,FactSum,'COS Factor Table'!G$115,FALSE)*$H983","v":0},{"$f":"VLOOKUP($F983,FactSum,'COS Factor Table'!H$115,FALSE)*$H983","v":0},{"$f":"VLOOKUP($F983,FactSum,'COS Factor Table'!I$115,FALSE)*$H983","v":0},{"$f":"VLOOKUP($F983,FactSum,'COS Factor Table'!J$115,FALSE)*$H983","v":0},{"$f":"VLOOKUP($F983,FactSum,'COS Factor Table'!K$115,FALSE)*$H983","v":0},{"$f":"VLOOKUP($F983,FactSum,'COS Factor Table'!L$115,FALSE)*$H983","v":0},{"$f":"VLOOKUP($F983,FactSum,'COS Factor Table'!M$115,FALSE)*$H983","v":0},{"$f":"VLOOKUP($F983,FactSum,'COS Factor Table'!N$115,FALSE)*$H983","v":0},{"$f":"ROUND(SUM(I983:Q983)-H983,0)","v":0}]
[984,null,null,"Total Land & Land Rights",null,null,null,{"$f":"SUM(H980:H983)","v":26360.268926708559},{"$f":"SUM(I980:I983)","v":15606.116204148286},3958.0628761394942,3703.7744402429189,1292.4816055172982,{"$f":"SUM(M980:M983)","v":179.18229098474023},1266.8869667937354,353.76454288208208,{"$f":"SUM(P980:P983)","v":0},{"$f":"SUM(Q980:Q983)","v":0},{"$f":"ROUND(SUM(I984:Q984)-H984,0)","v":0}]
[985]
[986,null,"390","Structures and Improvements"]
[987,null,null,null,"Situs",{"$f":"IF(Function=\"gen\",\"F107G\",IF(Function=\"TRN\",\"F107T\",IF(Function=\"DIS\",\"F107D\",IF(Function=\"RETAIL\",\"F107R\",IF(Function=\"MISC\",\"F107M\",\"ERR\")))))","v":"F107D"},null,{"$f":"SUM(UAcct390S)","v":293391.56326842605},{"$f":"VLOOKUP($F987,FactSum,'COS Factor Table'!F$115,FALSE)*$H987","v":173697.12131595824},{"$f":"VLOOKUP($F987,FactSum,'COS Factor Table'!G$115,FALSE)*$H987","v":44053.505598673284},{"$f":"VLOOKUP($F987,FactSum,'COS Factor Table'!H$115,FALSE)*$H987","v":41223.258231462729},{"$f":"VLOOKUP($F987,FactSum,'COS Factor Table'!I$115,FALSE)*$H987","v":14385.407060631002},{"$f":"VLOOKUP($F987,FactSum,'COS Factor Table'!J$115,FALSE)*$H987","v":1994.3109309012311},{"$f":"VLOOKUP($F987,FactSum,'COS Factor Table'!K$115,FALSE)*$H987","v":14100.537012936298},{"$f":"VLOOKUP($F987,FactSum,'COS Factor Table'!L$115,FALSE)*$H987","v":3937.4231178632372},{"$f":"VLOOKUP($F987,FactSum,'COS Factor Table'!M$115,FALSE)*$H987","v":0},{"$f":"VLOOKUP($F987,FactSum,'COS Factor Table'!N$115,FALSE)*$H987","v":0},{"$f":"ROUND(SUM(I987:Q987)-H987,0)","v":0}]
[988,null,null,null,"System Generation",{"$f":"IF(Function=\"gen\",\"F105G\",IF(Function=\"TRN\",\"F105T\",IF(Function=\"DIS\",\"F105D\",IF(Function=\"RETAIL\",\"F105R\",IF(Function=\"MISC\",\"F105M\",\"ERR\")))))","v":"F105D"},null,{"$f":"SUM(UAcct390Sgu+UAcct390Sgp+UAcct390JBG+UAcct390Sop)","v":0},{"$f":"VLOOKUP($F988,FactSum,'COS Factor Table'!F$115,FALSE)*$H988","v":0},{"$f":"VLOOKUP($F988,FactSum,'COS Factor Table'!G$115,FALSE)*$H988","v":0},{"$f":"VLOOKUP($F988,FactSum,'COS Factor Table'!H$115,FALSE)*$H988","v":0},{"$f":"VLOOKUP($F988,FactSum,'COS Factor Table'!I$115,FALSE)*$H988","v":0},{"$f":"VLOOKUP($F988,FactSum,'COS Factor Table'!J$115,FALSE)*$H988","v":0},{"$f":"VLOOKUP($F988,FactSum,'COS Factor Table'!K$115,FALSE)*$H988","v":0},{"$f":"VLOOKUP($F988,FactSum,'COS Factor Table'!L$115,FALSE)*$H988","v":0},{"$f":"VLOOKUP($F988,FactSum,'COS Factor Table'!M$115,FALSE)*$H988","v":0},{"$f":"VLOOKUP($F988,FactSum,'COS Factor Table'!N$115,FALSE)*$H988","v":0},{"$f":"ROUND(SUM(I988:Q988)-H988,0)","v":0}]
[989,null,null,null,"System Overheads",{"$f":"IF(Function=\"gen\",\"F102G\",IF(Function=\"TRN\",\"F102T\",IF(Function=\"DIS\",\"F102D\",IF(Function=\"RETAIL\",\"F102R\",IF(Function=\"MISC\",\"F102M\",\"ERR\")))))","v":"F102D"},null,{"$f":"SUM(UAcct390Sou)","v":58735.062462833288},{"$f":"VLOOKUP($F989,FactSum,'COS Factor Table'!F$115,FALSE)*$H989","v":34773.021952145071},{"$f":"VLOOKUP($F989,FactSum,'COS Factor Table'!G$115,FALSE)*$H989","v":8819.2222510418342},{"$f":"VLOOKUP($F989,FactSum,'COS Factor Table'!H$115,FALSE)*$H989","v":8252.6253317354258},{"$f":"VLOOKUP($F989,FactSum,'COS Factor Table'!I$115,FALSE)*$H989","v":2879.8639362591839},{"$f":"VLOOKUP($F989,FactSum,'COS Factor Table'!J$115,FALSE)*$H989","v":399.24793948361241},{"$f":"VLOOKUP($F989,FactSum,'COS Factor Table'!K$115,FALSE)*$H989","v":2822.8348252011046},{"$f":"VLOOKUP($F989,FactSum,'COS Factor Table'!L$115,FALSE)*$H989","v":788.24622696704876},{"$f":"VLOOKUP($F989,FactSum,'COS Factor Table'!M$115,FALSE)*$H989","v":0},{"$f":"VLOOKUP($F989,FactSum,'COS Factor Table'!N$115,FALSE)*$H989","v":0},{"$f":"ROUND(SUM(I989:Q989)-H989,0)","v":0}]
[990,null,null,null,"Customer - System","F42",null,{"$f":"SUM(UAcct390Cn)","v":0},{"$f":"VLOOKUP($F990,FactSum,'COS Factor Table'!F$115,FALSE)*$H990","v":0},{"$f":"VLOOKUP($F990,FactSum,'COS Factor Table'!G$115,FALSE)*$H990","v":0},{"$f":"VLOOKUP($F990,FactSum,'COS Factor Table'!H$115,FALSE)*$H990","v":0},{"$f":"VLOOKUP($F990,FactSum,'COS Factor Table'!I$115,FALSE)*$H990","v":0},{"$f":"VLOOKUP($F990,FactSum,'COS Factor Table'!J$115,FALSE)*$H990","v":0},{"$f":"VLOOKUP($F990,FactSum,'COS Factor Table'!K$115,FALSE)*$H990","v":0},{"$f":"VLOOKUP($F990,FactSum,'COS Factor Table'!L$115,FALSE)*$H990","v":0},{"$f":"VLOOKUP($F990,FactSum,'COS Factor Table'!M$115,FALSE)*$H990","v":0},{"$f":"VLOOKUP($F990,FactSum,'COS Factor Table'!N$115,FALSE)*$H990","v":0},{"$f":"ROUND(SUM(I990:Q990)-H990,0)","v":0}]
[991,null,null,"Total Structures and Improvements",null,null,null,{"$f":"SUM(H987:H990)","v":352126.62573125935},{"$f":"SUM(I987:I990)","v":208470.1432681033},52872.72784971512,49475.883563198156,17265.270996890184,{"$f":"SUM(M987:M990)","v":2393.5588703848434},16923.371838137402,4725.6693448302858,{"$f":"SUM(P987:P990)","v":0},{"$f":"SUM(Q987:Q990)","v":0},{"$f":"ROUND(SUM(I991:Q991)-H991,0)","v":0}]
[992]
[993,null,"391","Office Furniture & Equipment"]
[994,null,null,null,"Situs",{"$f":"IF(Function=\"gen\",\"F107G\",IF(Function=\"TRN\",\"F107T\",IF(Function=\"DIS\",\"F107D\",IF(Function=\"RETAIL\",\"F107R\",IF(Function=\"MISC\",\"F107M\",\"ERR\")))))","v":"F107D"},null,{"$f":"SUM(UAcct391S)","v":28720.744418599577},{"$f":"VLOOKUP($F994,FactSum,'COS Factor Table'!F$115,FALSE)*$H994","v":17003.592645906843},{"$f":"VLOOKUP($F994,FactSum,'COS Factor Table'!G$115,FALSE)*$H994","v":4312.4944049098476},{"$f":"VLOOKUP($F994,FactSum,'COS Factor Table'!H$115,FALSE)*$H994","v":4035.4352748874248},{"$f":"VLOOKUP($F994,FactSum,'COS Factor Table'!I$115,FALSE)*$H994","v":1408.219087635789},{"$f":"VLOOKUP($F994,FactSum,'COS Factor Table'!J$115,FALSE)*$H994","v":195.22747654890648},{"$f":"VLOOKUP($F994,FactSum,'COS Factor Table'!K$115,FALSE)*$H994","v":1380.3325330900186},{"$f":"VLOOKUP($F994,FactSum,'COS Factor Table'!L$115,FALSE)*$H994","v":385.44299562074514},{"$f":"VLOOKUP($F994,FactSum,'COS Factor Table'!M$115,FALSE)*$H994","v":0},{"$f":"VLOOKUP($F994,FactSum,'COS Factor Table'!N$115,FALSE)*$H994","v":0},{"$f":"ROUND(SUM(I994:Q994)-H994,0)","v":0}]
[995,null,null,null,"System Generation",{"$f":"IF(Function=\"gen\",\"F105G\",IF(Function=\"TRN\",\"F105T\",IF(Function=\"DIS\",\"F105D\",IF(Function=\"RETAIL\",\"F105R\",IF(Function=\"MISC\",\"F105M\",\"ERR\")))))","v":"F105D"},null,{"$f":"SUM(UAcct391Sgp+UAcct391Sgu+UAcct391Sg+UACCT391SSGCH)","v":0},{"$f":"VLOOKUP($F995,FactSum,'COS Factor Table'!F$115,FALSE)*$H995","v":0},{"$f":"VLOOKUP($F995,FactSum,'COS Factor Table'!G$115,FALSE)*$H995","v":0},{"$f":"VLOOKUP($F995,FactSum,'COS Factor Table'!H$115,FALSE)*$H995","v":0},{"$f":"VLOOKUP($F995,FactSum,'COS Factor Table'!I$115,FALSE)*$H995","v":0},{"$f":"VLOOKUP($F995,FactSum,'COS Factor Table'!J$115,FALSE)*$H995","v":0},{"$f":"VLOOKUP($F995,FactSum,'COS Factor Table'!K$115,FALSE)*$H995","v":0},{"$f":"VLOOKUP($F995,FactSum,'COS Factor Table'!L$115,FALSE)*$H995","v":0},{"$f":"VLOOKUP($F995,FactSum,'COS Factor Table'!M$115,FALSE)*$H995","v":0},{"$f":"VLOOKUP($F995,FactSum,'COS Factor Table'!N$115,FALSE)*$H995","v":0},0]
[996,null,null,null,"System Overheads",{"$f":"IF(Function=\"gen\",\"F102G\",IF(Function=\"TRN\",\"F102T\",IF(Function=\"DIS\",\"F102D\",IF(Function=\"RETAIL\",\"F102R\",IF(Function=\"MISC\",\"F102M\",\"ERR\")))))","v":"F102D"},null,{"$f":"SUM(UAcct391So)","v":31500.34439682525},{"$f":"VLOOKUP($F996,FactSum,'COS Factor Table'!F$115,FALSE)*$H996","v":18649.204091747823},{"$f":"VLOOKUP($F996,FactSum,'COS Factor Table'!G$115,FALSE)*$H996","v":4729.8585643925298},{"$f":"VLOOKUP($F996,FactSum,'COS Factor Table'!H$115,FALSE)*$H996","v":4425.9855906704697},{"$f":"VLOOKUP($F996,FactSum,'COS Factor Table'!I$115,FALSE)*$H996","v":1544.5068414725079},{"$f":"VLOOKUP($F996,FactSum,'COS Factor Table'!J$115,FALSE)*$H996","v":214.12163478015938},{"$f":"VLOOKUP($F996,FactSum,'COS Factor Table'!K$115,FALSE)*$H996","v":1513.9214200283566},{"$f":"VLOOKUP($F996,FactSum,'COS Factor Table'!L$115,FALSE)*$H996","v":422.74625373340172},{"$f":"VLOOKUP($F996,FactSum,'COS Factor Table'!M$115,FALSE)*$H996","v":0},{"$f":"VLOOKUP($F996,FactSum,'COS Factor Table'!N$115,FALSE)*$H996","v":0},0]
[997,null,null,null,"Customer - System","F42",null,{"$f":"SUM(UAcct391Cn)","v":0},{"$f":"VLOOKUP($F997,FactSum,'COS Factor Table'!F$115,FALSE)*$H997","v":0},{"$f":"VLOOKUP($F997,FactSum,'COS Factor Table'!G$115,FALSE)*$H997","v":0},{"$f":"VLOOKUP($F997,FactSum,'COS Factor Table'!H$115,FALSE)*$H997","v":0},{"$f":"VLOOKUP($F997,FactSum,'COS Factor Table'!I$115,FALSE)*$H997","v":0},{"$f":"VLOOKUP($F997,FactSum,'COS Factor Table'!J$115,FALSE)*$H997","v":0},{"$f":"VLOOKUP($F997,FactSum,'COS Factor Table'!K$115,FALSE)*$H997","v":0},{"$f":"VLOOKUP($F997,FactSum,'COS Factor Table'!L$115,FALSE)*$H997","v":0},{"$f":"VLOOKUP($F997,FactSum,'COS Factor Table'!M$115,FALSE)*$H997","v":0},{"$f":"VLOOKUP($F997,FactSum,'COS Factor Table'!N$115,FALSE)*$H997","v":0},0]
[998,null,null,null,"Energy",{"$f":"IF(Classification=\"DEMAND\",\"F12\",IF(Classification=\"ENERGY\",\"F30\",\"F10\"))","v":"F10"},null,{"$f":"SUM(UACCT391JBE)","v":0},{"$f":"VLOOKUP($F998,FactSum,'COS Factor Table'!F$115,FALSE)*$H998","v":0},{"$f":"VLOOKUP($F998,FactSum,'COS Factor Table'!G$115,FALSE)*$H998","v":0},{"$f":"VLOOKUP($F998,FactSum,'COS Factor Table'!H$115,FALSE)*$H998","v":0},{"$f":"VLOOKUP($F998,FactSum,'COS Factor Table'!I$115,FALSE)*$H998","v":0},{"$f":"VLOOKUP($F998,FactSum,'COS Factor Table'!J$115,FALSE)*$H998","v":0},{"$f":"VLOOKUP($F998,FactSum,'COS Factor Table'!K$115,FALSE)*$H998","v":0},{"$f":"VLOOKUP($F998,FactSum,'COS Factor Table'!L$115,FALSE)*$H998","v":0},{"$f":"VLOOKUP($F998,FactSum,'COS Factor Table'!M$115,FALSE)*$H998","v":0},{"$f":"VLOOKUP($F998,FactSum,'COS Factor Table'!N$115,FALSE)*$H998","v":0},0]
[999,null,null,null,"CAEE",{"$f":"IF(Function=\"gen\",\"F105G\",IF(Function=\"TRN\",\"F105T\",IF(Function=\"DIS\",\"F105D\",IF(Function=\"RETAIL\",\"F105R\",IF(Function=\"MISC\",\"F105M\",\"ERR\")))))","v":"F105D"},null,0,{"$f":"VLOOKUP($F999,FactSum,'COS Factor Table'!F$115,FALSE)*$H999","v":0},{"$f":"VLOOKUP($F999,FactSum,'COS Factor Table'!G$115,FALSE)*$H999","v":0},{"$f":"VLOOKUP($F999,FactSum,'COS Factor Table'!H$115,FALSE)*$H999","v":0},{"$f":"VLOOKUP($F999,FactSum,'COS Factor Table'!I$115,FALSE)*$H999","v":0},{"$f":"VLOOKUP($F999,FactSum,'COS Factor Table'!J$115,FALSE)*$H999","v":0},{"$f":"VLOOKUP($F999,FactSum,'COS Factor Table'!K$115,FALSE)*$H999","v":0},{"$f":"VLOOKUP($F999,FactSum,'COS Factor Table'!L$115,FALSE)*$H999","v":0},{"$f":"VLOOKUP($F999,FactSum,'COS Factor Table'!M$115,FALSE)*$H999","v":0},{"$f":"VLOOKUP($F999,FactSum,'COS Factor Table'!N$115,FALSE)*$H999","v":0},0]
[1000,null,null,null,"CAEE",{"$f":"IF(Function=\"gen\",\"F105G\",IF(Function=\"TRN\",\"F105T\",IF(Function=\"DIS\",\"F105D\",IF(Function=\"RETAIL\",\"F105R\",IF(Function=\"MISC\",\"F105M\",\"ERR\")))))","v":"F105D"},null,0,{"$f":"VLOOKUP($F1000,FactSum,'COS Factor Table'!F$115,FALSE)*$H1000","v":0},{"$f":"VLOOKUP($F1000,FactSum,'COS Factor Table'!G$115,FALSE)*$H1000","v":0},{"$f":"VLOOKUP($F1000,FactSum,'COS Factor Table'!H$115,FALSE)*$H1000","v":0},{"$f":"VLOOKUP($F1000,FactSum,'COS Factor Table'!I$115,FALSE)*$H1000","v":0},{"$f":"VLOOKUP($F1000,FactSum,'COS Factor Table'!J$115,FALSE)*$H1000","v":0},{"$f":"VLOOKUP($F1000,FactSum,'COS Factor Table'!K$115,FALSE)*$H1000","v":0},{"$f":"VLOOKUP($F1000,FactSum,'COS Factor Table'!L$115,FALSE)*$H1000","v":0},{"$f":"VLOOKUP($F1000,FactSum,'COS Factor Table'!M$115,FALSE)*$H1000","v":0},{"$f":"VLOOKUP($F1000,FactSum,'COS Factor Table'!N$115,FALSE)*$H1000","v":0},0]
[1001,null,null,"Total Office Furniture & Equipment",null,null,null,{"$f":"SUM(H994:H1000)","v":60221.088815424824},{"$f":"SUM(I994:I1000)","v":35652.796737654666},9042.3529693023775,8461.420865557895,2952.7259291082969,{"$f":"SUM(M994:M1000)","v":409.34911132906586},2894.2539531183752,808.1892493541468,0,0,0]
[1002]
[1003,null,"392","Transportation Equipment"]
[1004,null,null,null,"Situs",{"$f":"IF(Function=\"gen\",\"F107G\",IF(Function=\"TRN\",\"F107T\",IF(Function=\"DIS\",\"F107D\",IF(Function=\"RETAIL\",\"F107R\",IF(Function=\"MISC\",\"F107M\",\"ERR\")))))","v":"F107D"},null,{"$f":"SUM(UAcct392S)","v":108771.78609471214},{"$f":"VLOOKUP($F1004,FactSum,'COS Factor Table'!F$115,FALSE)*$H1004","v":64396.351123979031},{"$f":"VLOOKUP($F1004,FactSum,'COS Factor Table'!G$115,FALSE)*$H1004","v":16332.366324102719},{"$f":"VLOOKUP($F1004,FactSum,'COS Factor Table'!H$115,FALSE)*$H1004","v":15283.082364496513},{"$f":"VLOOKUP($F1004,FactSum,'COS Factor Table'!I$115,FALSE)*$H1004","v":5333.2359058080256},{"$f":"VLOOKUP($F1004,FactSum,'COS Factor Table'!J$115,FALSE)*$H1004","v":739.36946095436599},{"$f":"VLOOKUP($F1004,FactSum,'COS Factor Table'!K$115,FALSE)*$H1004","v":5227.6233805279808},{"$f":"VLOOKUP($F1004,FactSum,'COS Factor Table'!L$115,FALSE)*$H1004","v":1459.7575348434871},{"$f":"VLOOKUP($F1004,FactSum,'COS Factor Table'!M$115,FALSE)*$H1004","v":0},{"$f":"VLOOKUP($F1004,FactSum,'COS Factor Table'!N$115,FALSE)*$H1004","v":0},{"$f":"ROUND(SUM(I1004:Q1004)-H1004,0)","v":0}]
[1005,null,null,null,"System Generation",{"$f":"IF(Function=\"gen\",\"F105G\",IF(Function=\"TRN\",\"F105T\",IF(Function=\"DIS\",\"F105D\",IF(Function=\"RETAIL\",\"F105R\",IF(Function=\"MISC\",\"F105M\",\"ERR\")))))","v":"F105D"},null,{"$f":"SUM(UAcct392Sgp+UAcct392Sgu+UAcct392Sg+UACCT392SSGCH)","v":0},{"$f":"VLOOKUP($F1005,FactSum,'COS Factor Table'!F$115,FALSE)*$H1005","v":0},{"$f":"VLOOKUP($F1005,FactSum,'COS Factor Table'!G$115,FALSE)*$H1005","v":0},{"$f":"VLOOKUP($F1005,FactSum,'COS Factor Table'!H$115,FALSE)*$H1005","v":0},{"$f":"VLOOKUP($F1005,FactSum,'COS Factor Table'!I$115,FALSE)*$H1005","v":0},{"$f":"VLOOKUP($F1005,FactSum,'COS Factor Table'!J$115,FALSE)*$H1005","v":0},{"$f":"VLOOKUP($F1005,FactSum,'COS Factor Table'!K$115,FALSE)*$H1005","v":0},{"$f":"VLOOKUP($F1005,FactSum,'COS Factor Table'!L$115,FALSE)*$H1005","v":0},{"$f":"VLOOKUP($F1005,FactSum,'COS Factor Table'!M$115,FALSE)*$H1005","v":0},{"$f":"VLOOKUP($F1005,FactSum,'COS Factor Table'!N$115,FALSE)*$H1005","v":0},0]
[1006,null,null,null,"System Overheads",{"$f":"IF(Function=\"gen\",\"F102G\",IF(Function=\"TRN\",\"F102T\",IF(Function=\"DIS\",\"F102D\",IF(Function=\"RETAIL\",\"F102R\",IF(Function=\"MISC\",\"F102M\",\"ERR\")))))","v":"F102D"},null,{"$f":"SUM(UAcct392So)","v":4203.6873457297115},{"$f":"VLOOKUP($F1006,FactSum,'COS Factor Table'!F$115,FALSE)*$H1006","v":2488.7163854726655},{"$f":"VLOOKUP($F1006,FactSum,'COS Factor Table'!G$115,FALSE)*$H1006","v":631.19457818474086},{"$f":"VLOOKUP($F1006,FactSum,'COS Factor Table'!H$115,FALSE)*$H1006","v":590.64305410447014},{"$f":"VLOOKUP($F1006,FactSum,'COS Factor Table'!I$115,FALSE)*$H1006","v":206.11278985080884},{"$f":"VLOOKUP($F1006,FactSum,'COS Factor Table'!J$115,FALSE)*$H1006","v":28.574303672153853},{"$f":"VLOOKUP($F1006,FactSum,'COS Factor Table'!K$115,FALSE)*$H1006","v":202.03119799679894},{"$f":"VLOOKUP($F1006,FactSum,'COS Factor Table'!L$115,FALSE)*$H1006","v":56.415036448072811},{"$f":"VLOOKUP($F1006,FactSum,'COS Factor Table'!M$115,FALSE)*$H1006","v":0},{"$f":"VLOOKUP($F1006,FactSum,'COS Factor Table'!N$115,FALSE)*$H1006","v":0},0]
[1007,null,null,null,"Customer - System","F42",null,{"$f":"SUM(UAcct392Cn)","v":0},{"$f":"VLOOKUP($F1007,FactSum,'COS Factor Table'!F$115,FALSE)*$H1007","v":0},{"$f":"VLOOKUP($F1007,FactSum,'COS Factor Table'!G$115,FALSE)*$H1007","v":0},{"$f":"VLOOKUP($F1007,FactSum,'COS Factor Table'!H$115,FALSE)*$H1007","v":0},{"$f":"VLOOKUP($F1007,FactSum,'COS Factor Table'!I$115,FALSE)*$H1007","v":0},{"$f":"VLOOKUP($F1007,FactSum,'COS Factor Table'!J$115,FALSE)*$H1007","v":0},{"$f":"VLOOKUP($F1007,FactSum,'COS Factor Table'!K$115,FALSE)*$H1007","v":0},{"$f":"VLOOKUP($F1007,FactSum,'COS Factor Table'!L$115,FALSE)*$H1007","v":0},{"$f":"VLOOKUP($F1007,FactSum,'COS Factor Table'!M$115,FALSE)*$H1007","v":0},{"$f":"VLOOKUP($F1007,FactSum,'COS Factor Table'!N$115,FALSE)*$H1007","v":0},0]
[1008,null,null,null,"Energy",{"$f":"IF(Classification=\"DEMAND\",\"F12\",IF(Classification=\"ENERGY\",\"F30\",\"F10\"))","v":"F10"},null,{"$f":"SUM(UAcct392Se)","v":0},{"$f":"VLOOKUP($F1008,FactSum,'COS Factor Table'!F$115,FALSE)*$H1008","v":0},{"$f":"VLOOKUP($F1008,FactSum,'COS Factor Table'!G$115,FALSE)*$H1008","v":0},{"$f":"VLOOKUP($F1008,FactSum,'COS Factor Table'!H$115,FALSE)*$H1008","v":0},{"$f":"VLOOKUP($F1008,FactSum,'COS Factor Table'!I$115,FALSE)*$H1008","v":0},{"$f":"VLOOKUP($F1008,FactSum,'COS Factor Table'!J$115,FALSE)*$H1008","v":0},{"$f":"VLOOKUP($F1008,FactSum,'COS Factor Table'!K$115,FALSE)*$H1008","v":0},{"$f":"VLOOKUP($F1008,FactSum,'COS Factor Table'!L$115,FALSE)*$H1008","v":0},{"$f":"VLOOKUP($F1008,FactSum,'COS Factor Table'!M$115,FALSE)*$H1008","v":0},{"$f":"VLOOKUP($F1008,FactSum,'COS Factor Table'!N$115,FALSE)*$H1008","v":0},0]
[1009,null,null,null,"CAEE",{"$f":"IF(Function=\"gen\",\"F105G\",IF(Function=\"TRN\",\"F105T\",IF(Function=\"DIS\",\"F105D\",IF(Function=\"RETAIL\",\"F105R\",IF(Function=\"MISC\",\"F105M\",\"ERR\")))))","v":"F105D"},null,0,{"$f":"VLOOKUP($F1009,FactSum,'COS Factor Table'!F$115,FALSE)*$H1009","v":0},{"$f":"VLOOKUP($F1009,FactSum,'COS Factor Table'!G$115,FALSE)*$H1009","v":0},{"$f":"VLOOKUP($F1009,FactSum,'COS Factor Table'!H$115,FALSE)*$H1009","v":0},{"$f":"VLOOKUP($F1009,FactSum,'COS Factor Table'!I$115,FALSE)*$H1009","v":0},{"$f":"VLOOKUP($F1009,FactSum,'COS Factor Table'!J$115,FALSE)*$H1009","v":0},{"$f":"VLOOKUP($F1009,FactSum,'COS Factor Table'!K$115,FALSE)*$H1009","v":0},{"$f":"VLOOKUP($F1009,FactSum,'COS Factor Table'!L$115,FALSE)*$H1009","v":0},{"$f":"VLOOKUP($F1009,FactSum,'COS Factor Table'!M$115,FALSE)*$H1009","v":0},{"$f":"VLOOKUP($F1009,FactSum,'COS Factor Table'!N$115,FALSE)*$H1009","v":0},0]
[1010,null,null,null,"CAEE",{"$f":"IF(Function=\"gen\",\"F105G\",IF(Function=\"TRN\",\"F105T\",IF(Function=\"DIS\",\"F105D\",IF(Function=\"RETAIL\",\"F105R\",IF(Function=\"MISC\",\"F105M\",\"ERR\")))))","v":"F105D"},null,0,{"$f":"VLOOKUP($F1010,FactSum,'COS Factor Table'!F$115,FALSE)*$H1010","v":0},{"$f":"VLOOKUP($F1010,FactSum,'COS Factor Table'!G$115,FALSE)*$H1010","v":0},{"$f":"VLOOKUP($F1010,FactSum,'COS Factor Table'!H$115,FALSE)*$H1010","v":0},{"$f":"VLOOKUP($F1010,FactSum,'COS Factor Table'!I$115,FALSE)*$H1010","v":0},{"$f":"VLOOKUP($F1010,FactSum,'COS Factor Table'!J$115,FALSE)*$H1010","v":0},{"$f":"VLOOKUP($F1010,FactSum,'COS Factor Table'!K$115,FALSE)*$H1010","v":0},{"$f":"VLOOKUP($F1010,FactSum,'COS Factor Table'!L$115,FALSE)*$H1010","v":0},{"$f":"VLOOKUP($F1010,FactSum,'COS Factor Table'!M$115,FALSE)*$H1010","v":0},{"$f":"VLOOKUP($F1010,FactSum,'COS Factor Table'!N$115,FALSE)*$H1010","v":0},0]
[1011,null,null,"Total Transportation Equipment",null,null,null,{"$f":"SUM(H1004:H1010)","v":112975.47344044186},{"$f":"SUM(I1004:I1010)","v":66885.067509451692},16963.56090228746,15873.725418600983,5539.348695658834,{"$f":"SUM(M1004:M1010)","v":767.94376462651985},5429.6545785247799,1516.17257129156,0,0,0]
[1012]
[1013,null,"393","Stores Equipment"]
[1014,null,null,null,"Situs",{"$f":"IF(Function=\"gen\",\"F107G\",IF(Function=\"TRN\",\"F107T\",IF(Function=\"DIS\",\"F107D\",IF(Function=\"RETAIL\",\"F107R\",IF(Function=\"MISC\",\"F107M\",\"ERR\")))))","v":"F107D"},null,{"$f":"SUM(UAcct393S)","v":12609.235300211472},{"$f":"VLOOKUP($F1014,FactSum,'COS Factor Table'!F$115,FALSE)*$H1014","v":7465.0676701240945},{"$f":"VLOOKUP($F1014,FactSum,'COS Factor Table'!G$115,FALSE)*$H1014","v":1893.3094452502758},{"$f":"VLOOKUP($F1014,FactSum,'COS Factor Table'!H$115,FALSE)*$H1014","v":1771.6724949119614},{"$f":"VLOOKUP($F1014,FactSum,'COS Factor Table'!I$115,FALSE)*$H1014","v":618.24880203138525},{"$f":"VLOOKUP($F1014,FactSum,'COS Factor Table'!J$115,FALSE)*$H1014","v":85.710493885301247},{"$f":"VLOOKUP($F1014,FactSum,'COS Factor Table'!K$115,FALSE)*$H1014","v":606.00580014902152},{"$f":"VLOOKUP($F1014,FactSum,'COS Factor Table'!L$115,FALSE)*$H1014","v":169.22059385943089},{"$f":"VLOOKUP($F1014,FactSum,'COS Factor Table'!M$115,FALSE)*$H1014","v":0},{"$f":"VLOOKUP($F1014,FactSum,'COS Factor Table'!N$115,FALSE)*$H1014","v":0},{"$f":"ROUND(SUM(I1014:Q1014)-H1014,0)","v":0}]
[1015,null,null,null,"System Generation",{"$f":"IF(Function=\"gen\",\"F105G\",IF(Function=\"TRN\",\"F105T\",IF(Function=\"DIS\",\"F105D\",IF(Function=\"RETAIL\",\"F105R\",IF(Function=\"MISC\",\"F105M\",\"ERR\")))))","v":"F105D"},null,{"$f":"SUM(UAcct393Sgp+UAcct393Sgu+UAcct393Sg+UACCT393SSGCT)","v":0},{"$f":"VLOOKUP($F1015,FactSum,'COS Factor Table'!F$115,FALSE)*$H1015","v":0},{"$f":"VLOOKUP($F1015,FactSum,'COS Factor Table'!G$115,FALSE)*$H1015","v":0},{"$f":"VLOOKUP($F1015,FactSum,'COS Factor Table'!H$115,FALSE)*$H1015","v":0},{"$f":"VLOOKUP($F1015,FactSum,'COS Factor Table'!I$115,FALSE)*$H1015","v":0},{"$f":"VLOOKUP($F1015,FactSum,'COS Factor Table'!J$115,FALSE)*$H1015","v":0},{"$f":"VLOOKUP($F1015,FactSum,'COS Factor Table'!K$115,FALSE)*$H1015","v":0},{"$f":"VLOOKUP($F1015,FactSum,'COS Factor Table'!L$115,FALSE)*$H1015","v":0},{"$f":"VLOOKUP($F1015,FactSum,'COS Factor Table'!M$115,FALSE)*$H1015","v":0},{"$f":"VLOOKUP($F1015,FactSum,'COS Factor Table'!N$115,FALSE)*$H1015","v":0},{"$f":"ROUND(SUM(I1015:Q1015)-H1015,0)","v":0}]
[1016,null,null,null,"System Overheads",{"$f":"IF(Function=\"gen\",\"F102G\",IF(Function=\"TRN\",\"F102T\",IF(Function=\"DIS\",\"F102D\",IF(Function=\"RETAIL\",\"F102R\",IF(Function=\"MISC\",\"F102M\",\"ERR\")))))","v":"F102D"},null,{"$f":"SUM(UAcct393So)","v":181.54721923622114},{"$f":"VLOOKUP($F1016,FactSum,'COS Factor Table'!F$115,FALSE)*$H1016","v":107.48171833215898},{"$f":"VLOOKUP($F1016,FactSum,'COS Factor Table'!G$115,FALSE)*$H1016","v":27.259786716256723},{"$f":"VLOOKUP($F1016,FactSum,'COS Factor Table'!H$115,FALSE)*$H1016","v":25.50846321689075},{"$f":"VLOOKUP($F1016,FactSum,'COS Factor Table'!I$115,FALSE)*$H1016","v":8.9015192541486279},{"$f":"VLOOKUP($F1016,FactSum,'COS Factor Table'!J$115,FALSE)*$H1016","v":1.2340559481809821},{"$f":"VLOOKUP($F1016,FactSum,'COS Factor Table'!K$115,FALSE)*$H1016","v":8.7252450476700112},{"$f":"VLOOKUP($F1016,FactSum,'COS Factor Table'!L$115,FALSE)*$H1016","v":2.436430720915042},{"$f":"VLOOKUP($F1016,FactSum,'COS Factor Table'!M$115,FALSE)*$H1016","v":0},{"$f":"VLOOKUP($F1016,FactSum,'COS Factor Table'!N$115,FALSE)*$H1016","v":0},{"$f":"ROUND(SUM(I1016:Q1016)-H1016,0)","v":0}]
[1017,null,null,null,"CAEE",{"$f":"IF(Function=\"gen\",\"F105G\",IF(Function=\"TRN\",\"F105T\",IF(Function=\"DIS\",\"F105D\",IF(Function=\"RETAIL\",\"F105R\",IF(Function=\"MISC\",\"F105M\",\"ERR\")))))","v":"F105D"},null,0,{"$f":"VLOOKUP($F1017,FactSum,'COS Factor Table'!F$115,FALSE)*$H1017","v":0},{"$f":"VLOOKUP($F1017,FactSum,'COS Factor Table'!G$115,FALSE)*$H1017","v":0},{"$f":"VLOOKUP($F1017,FactSum,'COS Factor Table'!H$115,FALSE)*$H1017","v":0},{"$f":"VLOOKUP($F1017,FactSum,'COS Factor Table'!I$115,FALSE)*$H1017","v":0},{"$f":"VLOOKUP($F1017,FactSum,'COS Factor Table'!J$115,FALSE)*$H1017","v":0},{"$f":"VLOOKUP($F1017,FactSum,'COS Factor Table'!K$115,FALSE)*$H1017","v":0},{"$f":"VLOOKUP($F1017,FactSum,'COS Factor Table'!L$115,FALSE)*$H1017","v":0},{"$f":"VLOOKUP($F1017,FactSum,'COS Factor Table'!M$115,FALSE)*$H1017","v":0},{"$f":"VLOOKUP($F1017,FactSum,'COS Factor Table'!N$115,FALSE)*$H1017","v":0},{"$f":"ROUND(SUM(I1017:Q1017)-H1017,0)","v":0}]
[1018,null,null,"Total Stores Equipment",null,null,null,{"$f":"SUM(H1014:H1017)","v":12790.782519447694},{"$f":"SUM(I1014:I1017)","v":7572.5493884562538},1920.5692319665325,1797.1809581288521,627.15032128553389,{"$f":"SUM(M1014:M1017)","v":86.944549833482228},614.73104519669153,171.65702458034593,0,0,0]
[1019]
[1020,null,"394","Tools, Shop & Garage Equipment"]
[1021,null,null,null,"Situs",{"$f":"IF(Function=\"gen\",\"F107G\",IF(Function=\"TRN\",\"F107T\",IF(Function=\"DIS\",\"F107D\",IF(Function=\"RETAIL\",\"F107R\",IF(Function=\"MISC\",\"F107M\",\"ERR\")))))","v":"F107D"},null,{"$f":"SUM(UAcct394S)","v":61241.570290691307},{"$f":"VLOOKUP($F1021,FactSum,'COS Factor Table'!F$115,FALSE)*$H1021","v":36256.954173660684},{"$f":"VLOOKUP($F1021,FactSum,'COS Factor Table'!G$115,FALSE)*$H1021","v":9195.5809145206385},{"$f":"VLOOKUP($F1021,FactSum,'COS Factor Table'!H$115,FALSE)*$H1021","v":8604.8045774366383},{"$f":"VLOOKUP($F1021,FactSum,'COS Factor Table'!I$115,FALSE)*$H1021","v":3002.7615922200907},{"$f":"VLOOKUP($F1021,FactSum,'COS Factor Table'!J$115,FALSE)*$H1021","v":416.28577078250822},{"$f":"VLOOKUP($F1021,FactSum,'COS Factor Table'!K$115,FALSE)*$H1021","v":2943.2987744919396},{"$f":"VLOOKUP($F1021,FactSum,'COS Factor Table'!L$115,FALSE)*$H1021","v":821.88448757880315},{"$f":"VLOOKUP($F1021,FactSum,'COS Factor Table'!M$115,FALSE)*$H1021","v":0},{"$f":"VLOOKUP($F1021,FactSum,'COS Factor Table'!N$115,FALSE)*$H1021","v":0},{"$f":"ROUND(SUM(I1021:Q1021)-H1021,0)","v":0}]
[1022,null,null,null,"System Generation",{"$f":"IF(Function=\"gen\",\"F105G\",IF(Function=\"TRN\",\"F105T\",IF(Function=\"DIS\",\"F105D\",IF(Function=\"RETAIL\",\"F105R\",IF(Function=\"MISC\",\"F105M\",\"ERR\")))))","v":"F105D"},null,{"$f":"SUM(UAcct394Sgp+UAcct394Sgu+UAcct394Sg+UACCT394SSGCH)","v":0},{"$f":"VLOOKUP($F1022,FactSum,'COS Factor Table'!F$115,FALSE)*$H1022","v":0},{"$f":"VLOOKUP($F1022,FactSum,'COS Factor Table'!G$115,FALSE)*$H1022","v":0},{"$f":"VLOOKUP($F1022,FactSum,'COS Factor Table'!H$115,FALSE)*$H1022","v":0},{"$f":"VLOOKUP($F1022,FactSum,'COS Factor Table'!I$115,FALSE)*$H1022","v":0},{"$f":"VLOOKUP($F1022,FactSum,'COS Factor Table'!J$115,FALSE)*$H1022","v":0},{"$f":"VLOOKUP($F1022,FactSum,'COS Factor Table'!K$115,FALSE)*$H1022","v":0},{"$f":"VLOOKUP($F1022,FactSum,'COS Factor Table'!L$115,FALSE)*$H1022","v":0},{"$f":"VLOOKUP($F1022,FactSum,'COS Factor Table'!M$115,FALSE)*$H1022","v":0},{"$f":"VLOOKUP($F1022,FactSum,'COS Factor Table'!N$115,FALSE)*$H1022","v":0},0]
[1023,null,null,null,"System Overheads",{"$f":"IF(Function=\"gen\",\"F102G\",IF(Function=\"TRN\",\"F102T\",IF(Function=\"DIS\",\"F102D\",IF(Function=\"RETAIL\",\"F102R\",IF(Function=\"MISC\",\"F102M\",\"ERR\")))))","v":"F102D"},null,{"$f":"SUM(UAcct394So)","v":2150.2354946125588},{"$f":"VLOOKUP($F1023,FactSum,'COS Factor Table'!F$115,FALSE)*$H1023","v":1273.0076877632935},{"$f":"VLOOKUP($F1023,FactSum,'COS Factor Table'!G$115,FALSE)*$H1023","v":322.86344687326749},{"$f":"VLOOKUP($F1023,FactSum,'COS Factor Table'!H$115,FALSE)*$H1023","v":302.12086559480713},{"$f":"VLOOKUP($F1023,FactSum,'COS Factor Table'!I$115,FALSE)*$H1023","v":105.42911500805147},{"$f":"VLOOKUP($F1023,FactSum,'COS Factor Table'!J$115,FALSE)*$H1023","v":14.616092239142887},{"$f":"VLOOKUP($F1023,FactSum,'COS Factor Table'!K$115,FALSE)*$H1023","v":103.3413327927711},{"$f":"VLOOKUP($F1023,FactSum,'COS Factor Table'!L$115,FALSE)*$H1023","v":28.856954341224945},{"$f":"VLOOKUP($F1023,FactSum,'COS Factor Table'!M$115,FALSE)*$H1023","v":0},{"$f":"VLOOKUP($F1023,FactSum,'COS Factor Table'!N$115,FALSE)*$H1023","v":0},0]
[1024,null,null,null,"Energy",{"$f":"IF(Classification=\"DEMAND\",\"F12\",IF(Classification=\"ENERGY\",\"F30\",\"F10\"))","v":"F10"},null,{"$f":"SUM(UAcct394Se)","v":0},{"$f":"VLOOKUP($F1024,FactSum,'COS Factor Table'!F$115,FALSE)*$H1024","v":0},{"$f":"VLOOKUP($F1024,FactSum,'COS Factor Table'!G$115,FALSE)*$H1024","v":0},{"$f":"VLOOKUP($F1024,FactSum,'COS Factor Table'!H$115,FALSE)*$H1024","v":0},{"$f":"VLOOKUP($F1024,FactSum,'COS Factor Table'!I$115,FALSE)*$H1024","v":0},{"$f":"VLOOKUP($F1024,FactSum,'COS Factor Table'!J$115,FALSE)*$H1024","v":0},{"$f":"VLOOKUP($F1024,FactSum,'COS Factor Table'!K$115,FALSE)*$H1024","v":0},{"$f":"VLOOKUP($F1024,FactSum,'COS Factor Table'!L$115,FALSE)*$H1024","v":0},{"$f":"VLOOKUP($F1024,FactSum,'COS Factor Table'!M$115,FALSE)*$H1024","v":0},{"$f":"VLOOKUP($F1024,FactSum,'COS Factor Table'!N$115,FALSE)*$H1024","v":0},0]
[1025,null,null,null,"CAEE",{"$f":"IF(Function=\"gen\",\"F105G\",IF(Function=\"TRN\",\"F105T\",IF(Function=\"DIS\",\"F105D\",IF(Function=\"RETAIL\",\"F105R\",IF(Function=\"MISC\",\"F105M\",\"ERR\")))))","v":"F105D"},null,0,{"$f":"VLOOKUP($F1025,FactSum,'COS Factor Table'!F$115,FALSE)*$H1025","v":0},{"$f":"VLOOKUP($F1025,FactSum,'COS Factor Table'!G$115,FALSE)*$H1025","v":0},{"$f":"VLOOKUP($F1025,FactSum,'COS Factor Table'!H$115,FALSE)*$H1025","v":0},{"$f":"VLOOKUP($F1025,FactSum,'COS Factor Table'!I$115,FALSE)*$H1025","v":0},{"$f":"VLOOKUP($F1025,FactSum,'COS Factor Table'!J$115,FALSE)*$H1025","v":0},{"$f":"VLOOKUP($F1025,FactSum,'COS Factor Table'!K$115,FALSE)*$H1025","v":0},{"$f":"VLOOKUP($F1025,FactSum,'COS Factor Table'!L$115,FALSE)*$H1025","v":0},{"$f":"VLOOKUP($F1025,FactSum,'COS Factor Table'!M$115,FALSE)*$H1025","v":0},{"$f":"VLOOKUP($F1025,FactSum,'COS Factor Table'!N$115,FALSE)*$H1025","v":0},0]
[{"$f":"A1025+1","v":1026},null,null,null,"CAEE",{"$f":"IF(Function=\"gen\",\"F105G\",IF(Function=\"TRN\",\"F105T\",IF(Function=\"DIS\",\"F105D\",IF(Function=\"RETAIL\",\"F105R\",IF(Function=\"MISC\",\"F105M\",\"ERR\")))))","v":"F105D"},null,0,{"$f":"VLOOKUP($F1026,FactSum,'COS Factor Table'!F$115,FALSE)*$H1026","v":0},{"$f":"VLOOKUP($F1026,FactSum,'COS Factor Table'!G$115,FALSE)*$H1026","v":0},{"$f":"VLOOKUP($F1026,FactSum,'COS Factor Table'!H$115,FALSE)*$H1026","v":0},{"$f":"VLOOKUP($F1026,FactSum,'COS Factor Table'!I$115,FALSE)*$H1026","v":0},{"$f":"VLOOKUP($F1026,FactSum,'COS Factor Table'!J$115,FALSE)*$H1026","v":0},{"$f":"VLOOKUP($F1026,FactSum,'COS Factor Table'!K$115,FALSE)*$H1026","v":0},{"$f":"VLOOKUP($F1026,FactSum,'COS Factor Table'!L$115,FALSE)*$H1026","v":0},{"$f":"VLOOKUP($F1026,FactSum,'COS Factor Table'!M$115,FALSE)*$H1026","v":0},{"$f":"VLOOKUP($F1026,FactSum,'COS Factor Table'!N$115,FALSE)*$H1026","v":0},0]
[1027,null,null,"Total Tools, Shop & Garage Equipment",null,null,null,{"$f":"SUM(H1021:H1026)","v":63391.805785303863},{"$f":"SUM(I1021:I1026)","v":37529.961861423981},9518.4443613939056,8906.925443031445,3108.1907072281424,{"$f":"SUM(M1021:M1026)","v":430.90186302165114},3046.6401072847107,850.74144192002814,0,0,0]
[1028]
[1029,null,"395","Laboratory Equipment"]
[1030,null,null,null,"Situs",{"$f":"IF(Function=\"gen\",\"F107G\",IF(Function=\"TRN\",\"F107T\",IF(Function=\"DIS\",\"F107D\",IF(Function=\"RETAIL\",\"F107R\",IF(Function=\"MISC\",\"F107M\",\"ERR\")))))","v":"F107D"},null,{"$f":"SUM(UAcct395S)","v":40458.065410369229},{"$f":"VLOOKUP($F1030,FactSum,'COS Factor Table'!F$115,FALSE)*$H1030","v":23952.45936013645},{"$f":"VLOOKUP($F1030,FactSum,'COS Factor Table'!G$115,FALSE)*$H1030","v":6074.8836510903138},{"$f":"VLOOKUP($F1030,FactSum,'COS Factor Table'!H$115,FALSE)*$H1030","v":5684.598627777058},{"$f":"VLOOKUP($F1030,FactSum,'COS Factor Table'!I$115,FALSE)*$H1030","v":1983.7166867723295},{"$f":"VLOOKUP($F1030,FactSum,'COS Factor Table'!J$115,FALSE)*$H1030","v":275.01118707082992},{"$f":"VLOOKUP($F1030,FactSum,'COS Factor Table'!K$115,FALSE)*$H1030","v":1944.4337200274995},{"$f":"VLOOKUP($F1030,FactSum,'COS Factor Table'!L$115,FALSE)*$H1030","v":542.96217749474135},{"$f":"VLOOKUP($F1030,FactSum,'COS Factor Table'!M$115,FALSE)*$H1030","v":0},{"$f":"VLOOKUP($F1030,FactSum,'COS Factor Table'!N$115,FALSE)*$H1030","v":0},{"$f":"ROUND(SUM(I1030:Q1030)-H1030,0)","v":0}]
[1031,null,null,null,"System Generation",{"$f":"IF(Function=\"gen\",\"F105G\",IF(Function=\"TRN\",\"F105T\",IF(Function=\"DIS\",\"F105D\",IF(Function=\"RETAIL\",\"F105R\",IF(Function=\"MISC\",\"F105M\",\"ERR\")))))","v":"F105D"},null,{"$f":"SUM(UAcct395Sgp+UAcct395Sgu+UAcct395Sg+UACCT395SSGCH)","v":0},{"$f":"VLOOKUP($F1031,FactSum,'COS Factor Table'!F$115,FALSE)*$H1031","v":0},{"$f":"VLOOKUP($F1031,FactSum,'COS Factor Table'!G$115,FALSE)*$H1031","v":0},{"$f":"VLOOKUP($F1031,FactSum,'COS Factor Table'!H$115,FALSE)*$H1031","v":0},{"$f":"VLOOKUP($F1031,FactSum,'COS Factor Table'!I$115,FALSE)*$H1031","v":0},{"$f":"VLOOKUP($F1031,FactSum,'COS Factor Table'!J$115,FALSE)*$H1031","v":0},{"$f":"VLOOKUP($F1031,FactSum,'COS Factor Table'!K$115,FALSE)*$H1031","v":0},{"$f":"VLOOKUP($F1031,FactSum,'COS Factor Table'!L$115,FALSE)*$H1031","v":0},{"$f":"VLOOKUP($F1031,FactSum,'COS Factor Table'!M$115,FALSE)*$H1031","v":0},{"$f":"VLOOKUP($F1031,FactSum,'COS Factor Table'!N$115,FALSE)*$H1031","v":0},0]
[1032,null,null,null,"System Overheads",{"$f":"IF(Function=\"gen\",\"F102G\",IF(Function=\"TRN\",\"F102T\",IF(Function=\"DIS\",\"F102D\",IF(Function=\"RETAIL\",\"F102R\",IF(Function=\"MISC\",\"F102M\",\"ERR\")))))","v":"F102D"},null,{"$f":"SUM(UAcct395So)","v":3008.0850347478276},{"$f":"VLOOKUP($F1032,FactSum,'COS Factor Table'!F$115,FALSE)*$H1032","v":1780.8818542313597},{"$f":"VLOOKUP($F1032,FactSum,'COS Factor Table'!G$115,FALSE)*$H1032","v":451.67178443474285},{"$f":"VLOOKUP($F1032,FactSum,'COS Factor Table'!H$115,FALSE)*$H1032","v":422.65382408476734},{"$f":"VLOOKUP($F1032,FactSum,'COS Factor Table'!I$115,FALSE)*$H1032","v":147.49070224030098},{"$f":"VLOOKUP($F1032,FactSum,'COS Factor Table'!J$115,FALSE)*$H1032","v":20.447271213417348},{"$f":"VLOOKUP($F1032,FactSum,'COS Factor Table'!K$115,FALSE)*$H1032","v":144.56998660085929},{"$f":"VLOOKUP($F1032,FactSum,'COS Factor Table'!L$115,FALSE)*$H1032","v":40.369611942379812},{"$f":"VLOOKUP($F1032,FactSum,'COS Factor Table'!M$115,FALSE)*$H1032","v":0},{"$f":"VLOOKUP($F1032,FactSum,'COS Factor Table'!N$115,FALSE)*$H1032","v":0},0]
[1033,null,null,null,"Energy",{"$f":"IF(Classification=\"DEMAND\",\"F12\",IF(Classification=\"ENERGY\",\"F30\",\"F10\"))","v":"F10"},null,{"$f":"SUM(UAcct395Se)","v":0},{"$f":"VLOOKUP($F1033,FactSum,'COS Factor Table'!F$115,FALSE)*$H1033","v":0},{"$f":"VLOOKUP($F1033,FactSum,'COS Factor Table'!G$115,FALSE)*$H1033","v":0},{"$f":"VLOOKUP($F1033,FactSum,'COS Factor Table'!H$115,FALSE)*$H1033","v":0},{"$f":"VLOOKUP($F1033,FactSum,'COS Factor Table'!I$115,FALSE)*$H1033","v":0},{"$f":"VLOOKUP($F1033,FactSum,'COS Factor Table'!J$115,FALSE)*$H1033","v":0},{"$f":"VLOOKUP($F1033,FactSum,'COS Factor Table'!K$115,FALSE)*$H1033","v":0},{"$f":"VLOOKUP($F1033,FactSum,'COS Factor Table'!L$115,FALSE)*$H1033","v":0},{"$f":"VLOOKUP($F1033,FactSum,'COS Factor Table'!M$115,FALSE)*$H1033","v":0},{"$f":"VLOOKUP($F1033,FactSum,'COS Factor Table'!N$115,FALSE)*$H1033","v":0},0]
[1034,null,null,null,"CAEE",{"$f":"IF(Function=\"gen\",\"F105G\",IF(Function=\"TRN\",\"F105T\",IF(Function=\"DIS\",\"F105D\",IF(Function=\"RETAIL\",\"F105R\",IF(Function=\"MISC\",\"F105M\",\"ERR\")))))","v":"F105D"},null,0,{"$f":"VLOOKUP($F1034,FactSum,'COS Factor Table'!F$115,FALSE)*$H1034","v":0},{"$f":"VLOOKUP($F1034,FactSum,'COS Factor Table'!G$115,FALSE)*$H1034","v":0},{"$f":"VLOOKUP($F1034,FactSum,'COS Factor Table'!H$115,FALSE)*$H1034","v":0},{"$f":"VLOOKUP($F1034,FactSum,'COS Factor Table'!I$115,FALSE)*$H1034","v":0},{"$f":"VLOOKUP($F1034,FactSum,'COS Factor Table'!J$115,FALSE)*$H1034","v":0},{"$f":"VLOOKUP($F1034,FactSum,'COS Factor Table'!K$115,FALSE)*$H1034","v":0},{"$f":"VLOOKUP($F1034,FactSum,'COS Factor Table'!L$115,FALSE)*$H1034","v":0},{"$f":"VLOOKUP($F1034,FactSum,'COS Factor Table'!M$115,FALSE)*$H1034","v":0},{"$f":"VLOOKUP($F1034,FactSum,'COS Factor Table'!N$115,FALSE)*$H1034","v":0},0]
[1035,null,null,null,"CAEE",{"$f":"IF(Function=\"gen\",\"F105G\",IF(Function=\"TRN\",\"F105T\",IF(Function=\"DIS\",\"F105D\",IF(Function=\"RETAIL\",\"F105R\",IF(Function=\"MISC\",\"F105M\",\"ERR\")))))","v":"F105D"},null,0,{"$f":"VLOOKUP($F1035,FactSum,'COS Factor Table'!F$115,FALSE)*$H1035","v":0},{"$f":"VLOOKUP($F1035,FactSum,'COS Factor Table'!G$115,FALSE)*$H1035","v":0},{"$f":"VLOOKUP($F1035,FactSum,'COS Factor Table'!H$115,FALSE)*$H1035","v":0},{"$f":"VLOOKUP($F1035,FactSum,'COS Factor Table'!I$115,FALSE)*$H1035","v":0},{"$f":"VLOOKUP($F1035,FactSum,'COS Factor Table'!J$115,FALSE)*$H1035","v":0},{"$f":"VLOOKUP($F1035,FactSum,'COS Factor Table'!K$115,FALSE)*$H1035","v":0},{"$f":"VLOOKUP($F1035,FactSum,'COS Factor Table'!L$115,FALSE)*$H1035","v":0},{"$f":"VLOOKUP($F1035,FactSum,'COS Factor Table'!M$115,FALSE)*$H1035","v":0},{"$f":"VLOOKUP($F1035,FactSum,'COS Factor Table'!N$115,FALSE)*$H1035","v":0},0]
[1036,null,null,"Total Laboratory Equipment",null,null,null,{"$f":"SUM(H1030:H1035)","v":43466.150445117055},{"$f":"SUM(I1030:I1035)","v":25733.341214367811},6526.555435525057,6107.2524518618256,2131.2073890126303,{"$f":"SUM(M1030:M1035)","v":295.45845828424729},2089.0037066283589,583.33178943712119,0,0,0]
[1037]
[1038,null,"396","Power Operated Equipment"]
[1039,null,null,null,"Situs",{"$f":"IF(Function=\"gen\",\"F107G\",IF(Function=\"TRN\",\"F107T\",IF(Function=\"DIS\",\"F107D\",IF(Function=\"RETAIL\",\"F107R\",IF(Function=\"MISC\",\"F107M\",\"ERR\")))))","v":"F107D"},null,{"$f":"SUM(UAcct396S)","v":170654.41166294203},{"$f":"VLOOKUP($F1039,FactSum,'COS Factor Table'!F$115,FALSE)*$H1039","v":101032.83037693104},{"$f":"VLOOKUP($F1039,FactSum,'COS Factor Table'!G$115,FALSE)*$H1039","v":25624.203354319048},{"$f":"VLOOKUP($F1039,FactSum,'COS Factor Table'!H$115,FALSE)*$H1039","v":23977.95901814496},{"$f":"VLOOKUP($F1039,FactSum,'COS Factor Table'!I$115,FALSE)*$H1039","v":8367.4293531674593},{"$f":"VLOOKUP($F1039,FactSum,'COS Factor Table'!J$115,FALSE)*$H1039","v":1160.0127651746625},{"$f":"VLOOKUP($F1039,FactSum,'COS Factor Table'!K$115,FALSE)*$H1039","v":8201.7315742396586},{"$f":"VLOOKUP($F1039,FactSum,'COS Factor Table'!L$115,FALSE)*$H1039","v":2290.2452209651851},{"$f":"VLOOKUP($F1039,FactSum,'COS Factor Table'!M$115,FALSE)*$H1039","v":0},{"$f":"VLOOKUP($F1039,FactSum,'COS Factor Table'!N$115,FALSE)*$H1039","v":0},{"$f":"ROUND(SUM(I1039:Q1039)-H1039,0)","v":0}]
[1040,null,null,null,"System Generation",{"$f":"IF(Function=\"gen\",\"F105G\",IF(Function=\"TRN\",\"F105T\",IF(Function=\"DIS\",\"F105D\",IF(Function=\"RETAIL\",\"F105R\",IF(Function=\"MISC\",\"F105M\",\"ERR\")))))","v":"F105D"},null,{"$f":"SUM(UAcct396Sgp+UAcct396Sgu+UAcct396Sg+UACCT396SSGCT+UACCT396SSGCH)","v":0},{"$f":"VLOOKUP($F1040,FactSum,'COS Factor Table'!F$115,FALSE)*$H1040","v":0},{"$f":"VLOOKUP($F1040,FactSum,'COS Factor Table'!G$115,FALSE)*$H1040","v":0},{"$f":"VLOOKUP($F1040,FactSum,'COS Factor Table'!H$115,FALSE)*$H1040","v":0},{"$f":"VLOOKUP($F1040,FactSum,'COS Factor Table'!I$115,FALSE)*$H1040","v":0},{"$f":"VLOOKUP($F1040,FactSum,'COS Factor Table'!J$115,FALSE)*$H1040","v":0},{"$f":"VLOOKUP($F1040,FactSum,'COS Factor Table'!K$115,FALSE)*$H1040","v":0},{"$f":"VLOOKUP($F1040,FactSum,'COS Factor Table'!L$115,FALSE)*$H1040","v":0},{"$f":"VLOOKUP($F1040,FactSum,'COS Factor Table'!M$115,FALSE)*$H1040","v":0},{"$f":"VLOOKUP($F1040,FactSum,'COS Factor Table'!N$115,FALSE)*$H1040","v":0},0]
[1041,null,null,null,"System Overheads",{"$f":"IF(Function=\"gen\",\"F102G\",IF(Function=\"TRN\",\"F102T\",IF(Function=\"DIS\",\"F102D\",IF(Function=\"RETAIL\",\"F102R\",IF(Function=\"MISC\",\"F102M\",\"ERR\")))))","v":"F102D"},null,{"$f":"SUM(UAcct396So)","v":1093.2750724878126},{"$f":"VLOOKUP($F1041,FactSum,'COS Factor Table'!F$115,FALSE)*$H1041","v":647.25355692620553},{"$f":"VLOOKUP($F1041,FactSum,'COS Factor Table'!G$115,FALSE)*$H1041","v":164.15809299419931},{"$f":"VLOOKUP($F1041,FactSum,'COS Factor Table'!H$115,FALSE)*$H1041","v":153.61164489230001},{"$f":"VLOOKUP($F1041,FactSum,'COS Factor Table'!I$115,FALSE)*$H1041","v":53.604837070891215},{"$f":"VLOOKUP($F1041,FactSum,'COS Factor Table'!J$115,FALSE)*$H1041","v":7.4314694098735226},{"$f":"VLOOKUP($F1041,FactSum,'COS Factor Table'!K$115,FALSE)*$H1041","v":52.54331601495651},{"$f":"VLOOKUP($F1041,FactSum,'COS Factor Table'!L$115,FALSE)*$H1041","v":14.672155179386433},{"$f":"VLOOKUP($F1041,FactSum,'COS Factor Table'!M$115,FALSE)*$H1041","v":0},{"$f":"VLOOKUP($F1041,FactSum,'COS Factor Table'!N$115,FALSE)*$H1041","v":0},0]
[1042,null,null,null,"Energy",{"$f":"IF(Classification=\"DEMAND\",\"F12\",IF(Classification=\"ENERGY\",\"F30\",\"F10\"))","v":"F10"},null,{"$f":"SUM(UAcct396Se)","v":0},{"$f":"VLOOKUP($F1042,FactSum,'COS Factor Table'!F$115,FALSE)*$H1042","v":0},{"$f":"VLOOKUP($F1042,FactSum,'COS Factor Table'!G$115,FALSE)*$H1042","v":0},{"$f":"VLOOKUP($F1042,FactSum,'COS Factor Table'!H$115,FALSE)*$H1042","v":0},{"$f":"VLOOKUP($F1042,FactSum,'COS Factor Table'!I$115,FALSE)*$H1042","v":0},{"$f":"VLOOKUP($F1042,FactSum,'COS Factor Table'!J$115,FALSE)*$H1042","v":0},{"$f":"VLOOKUP($F1042,FactSum,'COS Factor Table'!K$115,FALSE)*$H1042","v":0},{"$f":"VLOOKUP($F1042,FactSum,'COS Factor Table'!L$115,FALSE)*$H1042","v":0},{"$f":"VLOOKUP($F1042,FactSum,'COS Factor Table'!M$115,FALSE)*$H1042","v":0},{"$f":"VLOOKUP($F1042,FactSum,'COS Factor Table'!N$115,FALSE)*$H1042","v":0},0]
[1043,null,null,null,"CAEE","F30",null,0,{"$f":"VLOOKUP($F1043,FactSum,'COS Factor Table'!F$115,FALSE)*$H1043","v":0},{"$f":"VLOOKUP($F1043,FactSum,'COS Factor Table'!G$115,FALSE)*$H1043","v":0},{"$f":"VLOOKUP($F1043,FactSum,'COS Factor Table'!H$115,FALSE)*$H1043","v":0},{"$f":"VLOOKUP($F1043,FactSum,'COS Factor Table'!I$115,FALSE)*$H1043","v":0},{"$f":"VLOOKUP($F1043,FactSum,'COS Factor Table'!J$115,FALSE)*$H1043","v":0},{"$f":"VLOOKUP($F1043,FactSum,'COS Factor Table'!K$115,FALSE)*$H1043","v":0},{"$f":"VLOOKUP($F1043,FactSum,'COS Factor Table'!L$115,FALSE)*$H1043","v":0},{"$f":"VLOOKUP($F1043,FactSum,'COS Factor Table'!M$115,FALSE)*$H1043","v":0},{"$f":"VLOOKUP($F1043,FactSum,'COS Factor Table'!N$115,FALSE)*$H1043","v":0},0]
[1044,null,null,null,"CAEE",{"$f":"IF(Function=\"gen\",\"F105G\",IF(Function=\"TRN\",\"F105T\",IF(Function=\"DIS\",\"F105D\",IF(Function=\"RETAIL\",\"F105R\",IF(Function=\"MISC\",\"F105M\",\"ERR\")))))","v":"F105D"},null,0,{"$f":"VLOOKUP($F1044,FactSum,'COS Factor Table'!F$115,FALSE)*$H1044","v":0},{"$f":"VLOOKUP($F1044,FactSum,'COS Factor Table'!G$115,FALSE)*$H1044","v":0},{"$f":"VLOOKUP($F1044,FactSum,'COS Factor Table'!H$115,FALSE)*$H1044","v":0},{"$f":"VLOOKUP($F1044,FactSum,'COS Factor Table'!I$115,FALSE)*$H1044","v":0},{"$f":"VLOOKUP($F1044,FactSum,'COS Factor Table'!J$115,FALSE)*$H1044","v":0},{"$f":"VLOOKUP($F1044,FactSum,'COS Factor Table'!K$115,FALSE)*$H1044","v":0},{"$f":"VLOOKUP($F1044,FactSum,'COS Factor Table'!L$115,FALSE)*$H1044","v":0},{"$f":"VLOOKUP($F1044,FactSum,'COS Factor Table'!M$115,FALSE)*$H1044","v":0},{"$f":"VLOOKUP($F1044,FactSum,'COS Factor Table'!N$115,FALSE)*$H1044","v":0},0]
[1045,null,null,"Total Power Operated Equipment",null,null,null,{"$f":"SUM(H1039:H1044)","v":171747.68673542983},101680.08393385726,25788.361447313247,24131.570663037259,8421.0341902383498,{"$f":"SUM(M1039:M1044)","v":1167.4442345845359},8254.2748902546155,2304.9173761445713,0,0,0]
[1046]
[1047,null,"397","Communication Equipment"]
[1048,null,null,null,"Situs",{"$f":"IF(Function=\"gen\",\"F107G\",IF(Function=\"TRN\",\"F107T\",IF(Function=\"DIS\",\"F107D\",IF(Function=\"RETAIL\",\"F107R\",IF(Function=\"MISC\",\"F107M\",\"ERR\")))))","v":"F107D"},null,{"$f":"SUM(UAcct397S)","v":250560.10128476986},{"$f":"VLOOKUP($F1048,FactSum,'COS Factor Table'!F$115,FALSE)*$H1048","v":148339.53582360261},{"$f":"VLOOKUP($F1048,FactSum,'COS Factor Table'!G$115,FALSE)*$H1048","v":37622.250284865768},{"$f":"VLOOKUP($F1048,FactSum,'COS Factor Table'!H$115,FALSE)*$H1048","v":35205.183280316538},{"$f":"VLOOKUP($F1048,FactSum,'COS Factor Table'!I$115,FALSE)*$H1048","v":12285.319352679026},{"$f":"VLOOKUP($F1048,FactSum,'COS Factor Table'!J$115,FALSE)*$H1048","v":1703.1667280178804},{"$f":"VLOOKUP($F1048,FactSum,'COS Factor Table'!K$115,FALSE)*$H1048","v":12042.036733341814},{"$f":"VLOOKUP($F1048,FactSum,'COS Factor Table'!L$115,FALSE)*$H1048","v":3362.6090819462152},{"$f":"VLOOKUP($F1048,FactSum,'COS Factor Table'!M$115,FALSE)*$H1048","v":0},{"$f":"VLOOKUP($F1048,FactSum,'COS Factor Table'!N$115,FALSE)*$H1048","v":0},{"$f":"ROUND(SUM(I1048:Q1048)-H1048,0)","v":0}]
[1049,null,null,null,"System Generation",{"$f":"IF(Function=\"gen\",\"F105G\",IF(Function=\"TRN\",\"F105T\",IF(Function=\"DIS\",\"F105D\",IF(Function=\"RETAIL\",\"F105R\",IF(Function=\"MISC\",\"F105M\",\"ERR\")))))","v":"F105D"},null,{"$f":"SUM(UAcct397Sgp+UAcct397Sgu+UAcct397Sg+UAcct397JBG)","v":0},{"$f":"VLOOKUP($F1049,FactSum,'COS Factor Table'!F$115,FALSE)*$H1049","v":0},{"$f":"VLOOKUP($F1049,FactSum,'COS Factor Table'!G$115,FALSE)*$H1049","v":0},{"$f":"VLOOKUP($F1049,FactSum,'COS Factor Table'!H$115,FALSE)*$H1049","v":0},{"$f":"VLOOKUP($F1049,FactSum,'COS Factor Table'!I$115,FALSE)*$H1049","v":0},{"$f":"VLOOKUP($F1049,FactSum,'COS Factor Table'!J$115,FALSE)*$H1049","v":0},{"$f":"VLOOKUP($F1049,FactSum,'COS Factor Table'!K$115,FALSE)*$H1049","v":0},{"$f":"VLOOKUP($F1049,FactSum,'COS Factor Table'!L$115,FALSE)*$H1049","v":0},{"$f":"VLOOKUP($F1049,FactSum,'COS Factor Table'!M$115,FALSE)*$H1049","v":0},{"$f":"VLOOKUP($F1049,FactSum,'COS Factor Table'!N$115,FALSE)*$H1049","v":0},0]
[1050,null,null,null,"System Overheads",{"$f":"IF(Function=\"gen\",\"F102G\",IF(Function=\"TRN\",\"F102T\",IF(Function=\"DIS\",\"F102D\",IF(Function=\"RETAIL\",\"F102R\",IF(Function=\"MISC\",\"F102M\",\"ERR\")))))","v":"F102D"},null,{"$f":"SUM(UAcct397So)","v":33186.276140003712},{"$f":"VLOOKUP($F1050,FactSum,'COS Factor Table'!F$115,FALSE)*$H1050","v":19647.32921594361},{"$f":"VLOOKUP($F1050,FactSum,'COS Factor Table'!G$115,FALSE)*$H1050","v":4983.0055965010915},{"$f":"VLOOKUP($F1050,FactSum,'COS Factor Table'!H$115,FALSE)*$H1050","v":4662.8690198851},{"$f":"VLOOKUP($F1050,FactSum,'COS Factor Table'!I$115,FALSE)*$H1050","v":1627.1704809169464},{"$f":"VLOOKUP($F1050,FactSum,'COS Factor Table'!J$115,FALSE)*$H1050","v":225.58165110345769},{"$f":"VLOOKUP($F1050,FactSum,'COS Factor Table'!K$115,FALSE)*$H1050","v":1594.9480953735588},{"$f":"VLOOKUP($F1050,FactSum,'COS Factor Table'!L$115,FALSE)*$H1050","v":445.37208027994416},{"$f":"VLOOKUP($F1050,FactSum,'COS Factor Table'!M$115,FALSE)*$H1050","v":0},{"$f":"VLOOKUP($F1050,FactSum,'COS Factor Table'!N$115,FALSE)*$H1050","v":0},0]
[1051,null,null,null,"Customer - System","F42",null,{"$f":"SUM(UAcct397Cn)","v":0},{"$f":"VLOOKUP($F1051,FactSum,'COS Factor Table'!F$115,FALSE)*$H1051","v":0},{"$f":"VLOOKUP($F1051,FactSum,'COS Factor Table'!G$115,FALSE)*$H1051","v":0},{"$f":"VLOOKUP($F1051,FactSum,'COS Factor Table'!H$115,FALSE)*$H1051","v":0},{"$f":"VLOOKUP($F1051,FactSum,'COS Factor Table'!I$115,FALSE)*$H1051","v":0},{"$f":"VLOOKUP($F1051,FactSum,'COS Factor Table'!J$115,FALSE)*$H1051","v":0},{"$f":"VLOOKUP($F1051,FactSum,'COS Factor Table'!K$115,FALSE)*$H1051","v":0},{"$f":"VLOOKUP($F1051,FactSum,'COS Factor Table'!L$115,FALSE)*$H1051","v":0},{"$f":"VLOOKUP($F1051,FactSum,'COS Factor Table'!M$115,FALSE)*$H1051","v":0},{"$f":"VLOOKUP($F1051,FactSum,'COS Factor Table'!N$115,FALSE)*$H1051","v":0},0]
[1052,null,null,null,"Energy",{"$f":"IF(Classification=\"DEMAND\",\"F12\",IF(Classification=\"ENERGY\",\"F30\",\"F10\"))","v":"F10"},null,{"$f":"SUM(UAcct397Se)","v":0},{"$f":"VLOOKUP($F1052,FactSum,'COS Factor Table'!F$115,FALSE)*$H1052","v":0},{"$f":"VLOOKUP($F1052,FactSum,'COS Factor Table'!G$115,FALSE)*$H1052","v":0},{"$f":"VLOOKUP($F1052,FactSum,'COS Factor Table'!H$115,FALSE)*$H1052","v":0},{"$f":"VLOOKUP($F1052,FactSum,'COS Factor Table'!I$115,FALSE)*$H1052","v":0},{"$f":"VLOOKUP($F1052,FactSum,'COS Factor Table'!J$115,FALSE)*$H1052","v":0},{"$f":"VLOOKUP($F1052,FactSum,'COS Factor Table'!K$115,FALSE)*$H1052","v":0},{"$f":"VLOOKUP($F1052,FactSum,'COS Factor Table'!L$115,FALSE)*$H1052","v":0},{"$f":"VLOOKUP($F1052,FactSum,'COS Factor Table'!M$115,FALSE)*$H1052","v":0},{"$f":"VLOOKUP($F1052,FactSum,'COS Factor Table'!N$115,FALSE)*$H1052","v":0},0]
[1053,null,null,null,"CAEE",{"$f":"IF(Function=\"gen\",\"F105G\",IF(Function=\"TRN\",\"F105T\",IF(Function=\"DIS\",\"F105D\",IF(Function=\"RETAIL\",\"F105R\",IF(Function=\"MISC\",\"F105M\",\"ERR\")))))","v":"F105D"},null,0,{"$f":"VLOOKUP($F1053,FactSum,'COS Factor Table'!F$115,FALSE)*$H1053","v":0},{"$f":"VLOOKUP($F1053,FactSum,'COS Factor Table'!G$115,FALSE)*$H1053","v":0},{"$f":"VLOOKUP($F1053,FactSum,'COS Factor Table'!H$115,FALSE)*$H1053","v":0},{"$f":"VLOOKUP($F1053,FactSum,'COS Factor Table'!I$115,FALSE)*$H1053","v":0},{"$f":"VLOOKUP($F1053,FactSum,'COS Factor Table'!J$115,FALSE)*$H1053","v":0},{"$f":"VLOOKUP($F1053,FactSum,'COS Factor Table'!K$115,FALSE)*$H1053","v":0},{"$f":"VLOOKUP($F1053,FactSum,'COS Factor Table'!L$115,FALSE)*$H1053","v":0},{"$f":"VLOOKUP($F1053,FactSum,'COS Factor Table'!M$115,FALSE)*$H1053","v":0},{"$f":"VLOOKUP($F1053,FactSum,'COS Factor Table'!N$115,FALSE)*$H1053","v":0},0]
[1054,null,null,null,"CAEE",{"$f":"IF(Function=\"gen\",\"F105G\",IF(Function=\"TRN\",\"F105T\",IF(Function=\"DIS\",\"F105D\",IF(Function=\"RETAIL\",\"F105R\",IF(Function=\"MISC\",\"F105M\",\"ERR\")))))","v":"F105D"},null,0,{"$f":"VLOOKUP($F1054,FactSum,'COS Factor Table'!F$115,FALSE)*$H1054","v":0},{"$f":"VLOOKUP($F1054,FactSum,'COS Factor Table'!G$115,FALSE)*$H1054","v":0},{"$f":"VLOOKUP($F1054,FactSum,'COS Factor Table'!H$115,FALSE)*$H1054","v":0},{"$f":"VLOOKUP($F1054,FactSum,'COS Factor Table'!I$115,FALSE)*$H1054","v":0},{"$f":"VLOOKUP($F1054,FactSum,'COS Factor Table'!J$115,FALSE)*$H1054","v":0},{"$f":"VLOOKUP($F1054,FactSum,'COS Factor Table'!K$115,FALSE)*$H1054","v":0},{"$f":"VLOOKUP($F1054,FactSum,'COS Factor Table'!L$115,FALSE)*$H1054","v":0},{"$f":"VLOOKUP($F1054,FactSum,'COS Factor Table'!M$115,FALSE)*$H1054","v":0},{"$f":"VLOOKUP($F1054,FactSum,'COS Factor Table'!N$115,FALSE)*$H1054","v":0},0]
[1055,null,null,"Total Communication Equipment",null,null,null,{"$f":"SUM(H1048:H1054)","v":283746.37742477359},{"$f":"SUM(I1048:I1054)","v":167986.86503954622},{"$f":"SUM(J1048:J1054)","v":42605.255881366858},39868.052300201642,13912.489833595972,{"$f":"SUM(M1048:M1054)","v":1928.7483791213381},13636.984828715373,3807.9811622261595,0,0,0]
[1056]
[1057,null,{"$f":"$E$1","v":"Distribution - METER -  Unbundled"},null,null,null,null,"GENERAL PLANT"]
[1058]
[1059,null,"A",null,"B","C",null,"D","E","F","G","H","I","J","K","S","T"]
[1060,null,null,null,null,null,null,{"$f":"'Hot Sheet'!$H$10","v":"Washington"},null,{"$f":"'Hot Sheet'!$J$10","v":"Small General"},{"$f":"'Hot Sheet'!$K$10","v":"Large General"},{"$f":"'Hot Sheet'!$L$10","v":"Large General"},{"$f":"'Hot Sheet'!$M$10","v":"Large General"},{"$f":"'Hot Sheet'!$N$10","v":"Agricultural"},{"$f":"'Hot Sheet'!$O$10","v":"Street & Area"}]
[1061,null,"FERC",null,null,"COS",null,{"$f":"'Hot Sheet'!$H$11","v":"Jurisdiction"},{"$f":"'Hot Sheet'!$I$11","v":"Residential"},{"$f":"'Hot Sheet'!$J$11","v":"Service"},{"$f":"'Hot Sheet'!$K$11","v":"Service <1,000 kW"},{"$f":"'Hot Sheet'!$L$11","v":"Service >1,000 kW"},{"$f":"'Hot Sheet'!$M$11","v":"Dedicated Facilities"},{"$f":"'Hot Sheet'!$N$11","v":"Pumping"},{"$f":"'Hot Sheet'!$O$11","v":"Lighting"},{"$f":"'Hot Sheet'!P$11","v":"-"},{"$f":"'Hot Sheet'!Q$11","v":"-"}]
[1062,null,"ACCT",null,"DESCRIPTION ","Factor",null,{"$f":"'Hot Sheet'!$H$12","v":"Normalized"},{"$f":"'Hot Sheet'!$I$12","v":"Schedule 16"},{"$f":"'Hot Sheet'!$J$12","v":"Schedule 24"},{"$f":"'Hot Sheet'!$K$12","v":"Schedule 36"},{"$f":"'Hot Sheet'!$L$12","v":"Schedule 48T"},{"$f":"'Hot Sheet'!$M$12","v":"Schedule 48T"},{"$f":"'Hot Sheet'!$N$12","v":"Schedule 40"},{"$f":"'Hot Sheet'!$O$12","v":"Sch. 15,51-54,57"},{"$f":"'Hot Sheet'!P$12","v":"-"},{"$f":"'Hot Sheet'!Q$12","v":"-"}]
[1063,null,"398","Misc. Equipment"]
[1064,null,null,null,"Situs",{"$f":"IF(Function=\"gen\",\"F107G\",IF(Function=\"TRN\",\"F107T\",IF(Function=\"DIS\",\"F107D\",IF(Function=\"RETAIL\",\"F107R\",IF(Function=\"MISC\",\"F107M\",\"ERR\")))))","v":"F107D"},null,{"$f":"SUM(UAcct398S)","v":4312.1319615860375},{"$f":"VLOOKUP($F1064,FactSum,'COS Factor Table'!F$115,FALSE)*$H1064","v":2552.9190414271079},{"$f":"VLOOKUP($F1064,FactSum,'COS Factor Table'!G$115,FALSE)*$H1064","v":647.47781904740259},{"$f":"VLOOKUP($F1064,FactSum,'COS Factor Table'!H$115,FALSE)*$H1064","v":605.88016710613829},{"$f":"VLOOKUP($F1064,FactSum,'COS Factor Table'!I$115,FALSE)*$H1064","v":211.429984132908},{"$f":"VLOOKUP($F1064,FactSum,'COS Factor Table'!J$115,FALSE)*$H1064","v":29.311449213730953},{"$f":"VLOOKUP($F1064,FactSum,'COS Factor Table'!K$115,FALSE)*$H1064","v":207.24309742124413},{"$f":"VLOOKUP($F1064,FactSum,'COS Factor Table'!L$115,FALSE)*$H1064","v":57.870403237505123},{"$f":"VLOOKUP($F1064,FactSum,'COS Factor Table'!M$115,FALSE)*$H1064","v":0},{"$f":"VLOOKUP($F1064,FactSum,'COS Factor Table'!N$115,FALSE)*$H1064","v":0},{"$f":"ROUND(SUM(I1064:Q1064)-H1064,0)","v":0}]
[1065,null,null,null,"System Generation",{"$f":"IF(Function=\"gen\",\"F105G\",IF(Function=\"TRN\",\"F105T\",IF(Function=\"DIS\",\"F105D\",IF(Function=\"RETAIL\",\"F105R\",IF(Function=\"MISC\",\"F105M\",\"ERR\")))))","v":"F105D"},null,{"$f":"SUM(UAcct398Sgp+UAcct398Sgu+UAcct398Sg+UACCT398SSGCT)","v":0},{"$f":"VLOOKUP($F1065,FactSum,'COS Factor Table'!F$115,FALSE)*$H1065","v":0},{"$f":"VLOOKUP($F1065,FactSum,'COS Factor Table'!G$115,FALSE)*$H1065","v":0},{"$f":"VLOOKUP($F1065,FactSum,'COS Factor Table'!H$115,FALSE)*$H1065","v":0},{"$f":"VLOOKUP($F1065,FactSum,'COS Factor Table'!I$115,FALSE)*$H1065","v":0},{"$f":"VLOOKUP($F1065,FactSum,'COS Factor Table'!J$115,FALSE)*$H1065","v":0},{"$f":"VLOOKUP($F1065,FactSum,'COS Factor Table'!K$115,FALSE)*$H1065","v":0},{"$f":"VLOOKUP($F1065,FactSum,'COS Factor Table'!L$115,FALSE)*$H1065","v":0},{"$f":"VLOOKUP($F1065,FactSum,'COS Factor Table'!M$115,FALSE)*$H1065","v":0},{"$f":"VLOOKUP($F1065,FactSum,'COS Factor Table'!N$115,FALSE)*$H1065","v":0},0]
[1066,null,null,null,"System Overheads",{"$f":"IF(Function=\"gen\",\"F102G\",IF(Function=\"TRN\",\"F102T\",IF(Function=\"DIS\",\"F102D\",IF(Function=\"RETAIL\",\"F102R\",IF(Function=\"MISC\",\"F102M\",\"ERR\")))))","v":"F102D"},null,{"$f":"SUM(UAcct398So)","v":1686.6903678514821},{"$f":"VLOOKUP($F1066,FactSum,'COS Factor Table'!F$115,FALSE)*$H1066","v":998.57425409030509},{"$f":"VLOOKUP($F1066,FactSum,'COS Factor Table'!G$115,FALSE)*$H1066","v":253.26094157449148},{"$f":"VLOOKUP($F1066,FactSum,'COS Factor Table'!H$115,FALSE)*$H1066","v":236.9900204896083},{"$f":"VLOOKUP($F1066,FactSum,'COS Factor Table'!I$115,FALSE)*$H1066","v":82.700835894827534},{"$f":"VLOOKUP($F1066,FactSum,'COS Factor Table'!J$115,FALSE)*$H1066","v":11.465173027400512},{"$f":"VLOOKUP($F1066,FactSum,'COS Factor Table'!K$115,FALSE)*$H1066","v":81.063135205062139},{"$f":"VLOOKUP($F1066,FactSum,'COS Factor Table'!L$115,FALSE)*$H1066","v":22.636007569786791},{"$f":"VLOOKUP($F1066,FactSum,'COS Factor Table'!M$115,FALSE)*$H1066","v":0},{"$f":"VLOOKUP($F1066,FactSum,'COS Factor Table'!N$115,FALSE)*$H1066","v":0},0]
[1067,null,null,null,"Customer - System","F42",null,{"$f":"SUM(UAcct398Cn)","v":0},{"$f":"VLOOKUP($F1067,FactSum,'COS Factor Table'!F$115,FALSE)*$H1067","v":0},{"$f":"VLOOKUP($F1067,FactSum,'COS Factor Table'!G$115,FALSE)*$H1067","v":0},{"$f":"VLOOKUP($F1067,FactSum,'COS Factor Table'!H$115,FALSE)*$H1067","v":0},{"$f":"VLOOKUP($F1067,FactSum,'COS Factor Table'!I$115,FALSE)*$H1067","v":0},{"$f":"VLOOKUP($F1067,FactSum,'COS Factor Table'!J$115,FALSE)*$H1067","v":0},{"$f":"VLOOKUP($F1067,FactSum,'COS Factor Table'!K$115,FALSE)*$H1067","v":0},{"$f":"VLOOKUP($F1067,FactSum,'COS Factor Table'!L$115,FALSE)*$H1067","v":0},{"$f":"VLOOKUP($F1067,FactSum,'COS Factor Table'!M$115,FALSE)*$H1067","v":0},{"$f":"VLOOKUP($F1067,FactSum,'COS Factor Table'!N$115,FALSE)*$H1067","v":0},0]
[1068,null,null,null,"Energy",{"$f":"IF(Classification=\"DEMAND\",\"F12\",IF(Classification=\"ENERGY\",\"F30\",\"F10\"))","v":"F10"},null,{"$f":"SUM(UAcct398Se)","v":0},{"$f":"VLOOKUP($F1068,FactSum,'COS Factor Table'!F$115,FALSE)*$H1068","v":0},{"$f":"VLOOKUP($F1068,FactSum,'COS Factor Table'!G$115,FALSE)*$H1068","v":0},{"$f":"VLOOKUP($F1068,FactSum,'COS Factor Table'!H$115,FALSE)*$H1068","v":0},{"$f":"VLOOKUP($F1068,FactSum,'COS Factor Table'!I$115,FALSE)*$H1068","v":0},{"$f":"VLOOKUP($F1068,FactSum,'COS Factor Table'!J$115,FALSE)*$H1068","v":0},{"$f":"VLOOKUP($F1068,FactSum,'COS Factor Table'!K$115,FALSE)*$H1068","v":0},{"$f":"VLOOKUP($F1068,FactSum,'COS Factor Table'!L$115,FALSE)*$H1068","v":0},{"$f":"VLOOKUP($F1068,FactSum,'COS Factor Table'!M$115,FALSE)*$H1068","v":0},{"$f":"VLOOKUP($F1068,FactSum,'COS Factor Table'!N$115,FALSE)*$H1068","v":0},0]
[1069,null,null,null,"CAEE",{"$f":"IF(Function=\"gen\",\"F105G\",IF(Function=\"TRN\",\"F105T\",IF(Function=\"DIS\",\"F105D\",IF(Function=\"RETAIL\",\"F105R\",IF(Function=\"MISC\",\"F105M\",\"ERR\")))))","v":"F105D"},null,0,{"$f":"VLOOKUP($F1069,FactSum,'COS Factor Table'!F$115,FALSE)*$H1069","v":0},{"$f":"VLOOKUP($F1069,FactSum,'COS Factor Table'!G$115,FALSE)*$H1069","v":0},{"$f":"VLOOKUP($F1069,FactSum,'COS Factor Table'!H$115,FALSE)*$H1069","v":0},{"$f":"VLOOKUP($F1069,FactSum,'COS Factor Table'!I$115,FALSE)*$H1069","v":0},{"$f":"VLOOKUP($F1069,FactSum,'COS Factor Table'!J$115,FALSE)*$H1069","v":0},{"$f":"VLOOKUP($F1069,FactSum,'COS Factor Table'!K$115,FALSE)*$H1069","v":0},{"$f":"VLOOKUP($F1069,FactSum,'COS Factor Table'!L$115,FALSE)*$H1069","v":0},{"$f":"VLOOKUP($F1069,FactSum,'COS Factor Table'!M$115,FALSE)*$H1069","v":0},{"$f":"VLOOKUP($F1069,FactSum,'COS Factor Table'!N$115,FALSE)*$H1069","v":0},0]
[1070,null,null,"Total Misc. Equipment",null,null,null,{"$f":"SUM(H1064:H1069)","v":5998.8223294375193},{"$f":"SUM(I1064:I1069)","v":3551.4932955174131},900.73876062189402,842.87018759574653,294.13082002773552,{"$f":"SUM(M1064:M1069)","v":40.776622241131463},288.30623262630627,80.506410807291914,0,0,0]
[1071]
[1072,null,"399","Coal Mine",null,{"$f":"IF(Classification=\"DEMAND\",\"F12\",IF(Classification=\"ENERGY\",\"F30\",\"F10\"))","v":"F10"},null,{"$f":"SUM(UAcct399)","v":0},{"$f":"VLOOKUP($F1072,FactSum,'COS Factor Table'!F$115,FALSE)*$H1072","v":0},{"$f":"VLOOKUP($F1072,FactSum,'COS Factor Table'!G$115,FALSE)*$H1072","v":0},{"$f":"VLOOKUP($F1072,FactSum,'COS Factor Table'!H$115,FALSE)*$H1072","v":0},{"$f":"VLOOKUP($F1072,FactSum,'COS Factor Table'!I$115,FALSE)*$H1072","v":0},{"$f":"VLOOKUP($F1072,FactSum,'COS Factor Table'!J$115,FALSE)*$H1072","v":0},{"$f":"VLOOKUP($F1072,FactSum,'COS Factor Table'!K$115,FALSE)*$H1072","v":0},{"$f":"VLOOKUP($F1072,FactSum,'COS Factor Table'!L$115,FALSE)*$H1072","v":0},{"$f":"VLOOKUP($F1072,FactSum,'COS Factor Table'!M$115,FALSE)*$H1072","v":0},{"$f":"VLOOKUP($F1072,FactSum,'COS Factor Table'!N$115,FALSE)*$H1072","v":0},{"$f":"ROUND(SUM(I1072:Q1072)-H1072,0)","v":0}]
[1073,null,"399L","WIDCO Capital Lease",null,{"$f":"IF(Classification=\"DEMAND\",\"F12\",IF(Classification=\"ENERGY\",\"F30\",\"F10\"))","v":"F10"},null,{"$f":"SUM(UAcct399L)","v":0},{"$f":"VLOOKUP($F1073,FactSum,'COS Factor Table'!F$115,FALSE)*$H1073","v":0},{"$f":"VLOOKUP($F1073,FactSum,'COS Factor Table'!G$115,FALSE)*$H1073","v":0},{"$f":"VLOOKUP($F1073,FactSum,'COS Factor Table'!H$115,FALSE)*$H1073","v":0},{"$f":"VLOOKUP($F1073,FactSum,'COS Factor Table'!I$115,FALSE)*$H1073","v":0},{"$f":"VLOOKUP($F1073,FactSum,'COS Factor Table'!J$115,FALSE)*$H1073","v":0},{"$f":"VLOOKUP($F1073,FactSum,'COS Factor Table'!K$115,FALSE)*$H1073","v":0},{"$f":"VLOOKUP($F1073,FactSum,'COS Factor Table'!L$115,FALSE)*$H1073","v":0},{"$f":"VLOOKUP($F1073,FactSum,'COS Factor Table'!M$115,FALSE)*$H1073","v":0},{"$f":"VLOOKUP($F1073,FactSum,'COS Factor Table'!N$115,FALSE)*$H1073","v":0},{"$f":"ROUND(SUM(I1073:Q1073)-H1073,0)","v":0}]
[1074,null,null,"Remove Capital Lease",null,{"$f":"IF(Classification=\"DEMAND\",\"F12\",IF(Classification=\"ENERGY\",\"F30\",\"F10\"))","v":"F10"},null,{"$f":"SUM(UAcct399Lrcl)","v":0},{"$f":"VLOOKUP($F1074,FactSum,'COS Factor Table'!F$115,FALSE)*$H1074","v":0},{"$f":"VLOOKUP($F1074,FactSum,'COS Factor Table'!G$115,FALSE)*$H1074","v":0},{"$f":"VLOOKUP($F1074,FactSum,'COS Factor Table'!H$115,FALSE)*$H1074","v":0},{"$f":"VLOOKUP($F1074,FactSum,'COS Factor Table'!I$115,FALSE)*$H1074","v":0},{"$f":"VLOOKUP($F1074,FactSum,'COS Factor Table'!J$115,FALSE)*$H1074","v":0},{"$f":"VLOOKUP($F1074,FactSum,'COS Factor Table'!K$115,FALSE)*$H1074","v":0},{"$f":"VLOOKUP($F1074,FactSum,'COS Factor Table'!L$115,FALSE)*$H1074","v":0},{"$f":"VLOOKUP($F1074,FactSum,'COS Factor Table'!M$115,FALSE)*$H1074","v":0},{"$f":"VLOOKUP($F1074,FactSum,'COS Factor Table'!N$115,FALSE)*$H1074","v":0},{"$f":"ROUND(SUM(I1074:Q1074)-H1074,0)","v":0}]
[1075]
[1076,null,"1011390","General Capital Lease",null,{"$f":"IF(Classification=\"DEMAND\",\"F12\",IF(Classification=\"ENERGY\",\"F30\",\"F10\"))","v":"F10"},null,{"$f":"SUM(UAcct390L)","v":7213.9601538689112},{"$f":"VLOOKUP($F1076,FactSum,'COS Factor Table'!F$115,FALSE)*$H1076","v":3060.7031034561387},{"$f":"VLOOKUP($F1076,FactSum,'COS Factor Table'!G$115,FALSE)*$H1076","v":973.52997289555162},{"$f":"VLOOKUP($F1076,FactSum,'COS Factor Table'!H$115,FALSE)*$H1076","v":1542.4741953150115},{"$f":"VLOOKUP($F1076,FactSum,'COS Factor Table'!I$115,FALSE)*$H1076","v":609.52584018431889},{"$f":"VLOOKUP($F1076,FactSum,'COS Factor Table'!J$115,FALSE)*$H1076","v":753.60282298024117},{"$f":"VLOOKUP($F1076,FactSum,'COS Factor Table'!K$115,FALSE)*$H1076","v":256.81759567432118},{"$f":"VLOOKUP($F1076,FactSum,'COS Factor Table'!L$115,FALSE)*$H1076","v":17.306623363328153},{"$f":"VLOOKUP($F1076,FactSum,'COS Factor Table'!M$115,FALSE)*$H1076","v":0},{"$f":"VLOOKUP($F1076,FactSum,'COS Factor Table'!N$115,FALSE)*$H1076","v":0},{"$f":"ROUND(SUM(I1076:Q1076)-H1076,0)","v":0}]
[1077,null,null,"Remove Capital Lease",null,{"$f":"IF(Classification=\"DEMAND\",\"F12\",IF(Classification=\"ENERGY\",\"F30\",\"F10\"))","v":"F10"},null,{"$f":"UACCT390LRCL","v":-7213.9601538689112},{"$f":"VLOOKUP($F1077,FactSum,'COS Factor Table'!F$115,FALSE)*$H1077","v":-3060.7031034561387},{"$f":"VLOOKUP($F1077,FactSum,'COS Factor Table'!G$115,FALSE)*$H1077","v":-973.52997289555162},{"$f":"VLOOKUP($F1077,FactSum,'COS Factor Table'!H$115,FALSE)*$H1077","v":-1542.4741953150115},{"$f":"VLOOKUP($F1077,FactSum,'COS Factor Table'!I$115,FALSE)*$H1077","v":-609.52584018431889},{"$f":"VLOOKUP($F1077,FactSum,'COS Factor Table'!J$115,FALSE)*$H1077","v":-753.60282298024117},{"$f":"VLOOKUP($F1077,FactSum,'COS Factor Table'!K$115,FALSE)*$H1077","v":-256.81759567432118},{"$f":"VLOOKUP($F1077,FactSum,'COS Factor Table'!L$115,FALSE)*$H1077","v":-17.306623363328153},{"$f":"VLOOKUP($F1077,FactSum,'COS Factor Table'!M$115,FALSE)*$H1077","v":0},{"$f":"VLOOKUP($F1077,FactSum,'COS Factor Table'!N$115,FALSE)*$H1077","v":0},{"$f":"ROUND(SUM(I1077:Q1077)-H1077,0)","v":0}]
[1078]
[1079,null,"1011392","General Vehicles Capital Lease",null,{"$f":"IF(Classification=\"DEMAND\",\"F12\",IF(Classification=\"ENERGY\",\"F30\",\"F10\"))","v":"F10"},null,{"$f":"SUM(UAcct392L)","v":0},{"$f":"VLOOKUP($F1079,FactSum,'COS Factor Table'!F$115,FALSE)*$H1079","v":0},{"$f":"VLOOKUP($F1079,FactSum,'COS Factor Table'!G$115,FALSE)*$H1079","v":0},{"$f":"VLOOKUP($F1079,FactSum,'COS Factor Table'!H$115,FALSE)*$H1079","v":0},{"$f":"VLOOKUP($F1079,FactSum,'COS Factor Table'!I$115,FALSE)*$H1079","v":0},{"$f":"VLOOKUP($F1079,FactSum,'COS Factor Table'!J$115,FALSE)*$H1079","v":0},{"$f":"VLOOKUP($F1079,FactSum,'COS Factor Table'!K$115,FALSE)*$H1079","v":0},{"$f":"VLOOKUP($F1079,FactSum,'COS Factor Table'!L$115,FALSE)*$H1079","v":0},{"$f":"VLOOKUP($F1079,FactSum,'COS Factor Table'!M$115,FALSE)*$H1079","v":0},{"$f":"VLOOKUP($F1079,FactSum,'COS Factor Table'!N$115,FALSE)*$H1079","v":0},{"$f":"ROUND(SUM(I1079:Q1079)-H1079,0)","v":0}]
[1080,null,null,"Remove Capital Lease",null,{"$f":"IF(Classification=\"DEMAND\",\"F12\",IF(Classification=\"ENERGY\",\"F30\",\"F10\"))","v":"F10"},null,{"$f":"SUM(UAcct392Lrcl)","v":0},{"$f":"VLOOKUP($F1080,FactSum,'COS Factor Table'!F$115,FALSE)*$H1080","v":0},{"$f":"VLOOKUP($F1080,FactSum,'COS Factor Table'!G$115,FALSE)*$H1080","v":0},{"$f":"VLOOKUP($F1080,FactSum,'COS Factor Table'!H$115,FALSE)*$H1080","v":0},{"$f":"VLOOKUP($F1080,FactSum,'COS Factor Table'!I$115,FALSE)*$H1080","v":0},{"$f":"VLOOKUP($F1080,FactSum,'COS Factor Table'!J$115,FALSE)*$H1080","v":0},{"$f":"VLOOKUP($F1080,FactSum,'COS Factor Table'!K$115,FALSE)*$H1080","v":0},{"$f":"VLOOKUP($F1080,FactSum,'COS Factor Table'!L$115,FALSE)*$H1080","v":0},{"$f":"VLOOKUP($F1080,FactSum,'COS Factor Table'!M$115,FALSE)*$H1080","v":0},{"$f":"VLOOKUP($F1080,FactSum,'COS Factor Table'!N$115,FALSE)*$H1080","v":0},{"$f":"ROUND(SUM(I1080:Q1080)-H1080,0)","v":0}]
[1081]
[1082,null,"GP","Unclassified Gen Plant - Acct 300",null,{"$f":"IF(Function=\"gen\",\"F102G\",IF(Function=\"TRN\",\"F102T\",IF(Function=\"DIS\",\"F102D\",IF(Function=\"RETAIL\",\"F102R\",IF(Function=\"MISC\",\"F102M\",\"ERR\")))))","v":"F102D"},null,{"$f":"SUM(UAcctg00)","v":4216.1369339504181},{"$f":"VLOOKUP($F1082,FactSum,'COS Factor Table'!F$115,FALSE)*$H1082","v":2496.0869370025584},{"$f":"VLOOKUP($F1082,FactSum,'COS Factor Table'!G$115,FALSE)*$H1082","v":633.06391620616273},{"$f":"VLOOKUP($F1082,FactSum,'COS Factor Table'!H$115,FALSE)*$H1082","v":592.39229523594747},{"$f":"VLOOKUP($F1082,FactSum,'COS Factor Table'!I$115,FALSE)*$H1082","v":206.72321092869188},{"$f":"VLOOKUP($F1082,FactSum,'COS Factor Table'!J$115,FALSE)*$H1082","v":28.658928974930738},{"$f":"VLOOKUP($F1082,FactSum,'COS Factor Table'!K$115,FALSE)*$H1082","v":202.62953108295275},{"$f":"VLOOKUP($F1082,FactSum,'COS Factor Table'!L$115,FALSE)*$H1082","v":56.582114519173444},{"$f":"VLOOKUP($F1082,FactSum,'COS Factor Table'!M$115,FALSE)*$H1082","v":0},{"$f":"VLOOKUP($F1082,FactSum,'COS Factor Table'!N$115,FALSE)*$H1082","v":0},{"$f":"ROUND(SUM(I1082:Q1082)-H1082,0)","v":0}]
[1083,null,"399G","Unclassified Gen Veh - Acct 300",null,"F102D",null,{"$f":"SUM(UAcct399G)","v":0},{"$f":"VLOOKUP($F1083,FactSum,'COS Factor Table'!F$115,FALSE)*$H1083","v":0},{"$f":"VLOOKUP($F1083,FactSum,'COS Factor Table'!G$115,FALSE)*$H1083","v":0},{"$f":"VLOOKUP($F1083,FactSum,'COS Factor Table'!H$115,FALSE)*$H1083","v":0},{"$f":"VLOOKUP($F1083,FactSum,'COS Factor Table'!I$115,FALSE)*$H1083","v":0},{"$f":"VLOOKUP($F1083,FactSum,'COS Factor Table'!J$115,FALSE)*$H1083","v":0},{"$f":"VLOOKUP($F1083,FactSum,'COS Factor Table'!K$115,FALSE)*$H1083","v":0},{"$f":"VLOOKUP($F1083,FactSum,'COS Factor Table'!L$115,FALSE)*$H1083","v":0},{"$f":"VLOOKUP($F1083,FactSum,'COS Factor Table'!M$115,FALSE)*$H1083","v":0},{"$f":"VLOOKUP($F1083,FactSum,'COS Factor Table'!N$115,FALSE)*$H1083","v":0},{"$f":"ROUND(SUM(I1083:Q1083)-H1083,0)","v":0}]
[1084]
[1085,null,"TOTAL GENERAL PLANT",null,null,null,null,{"$f":"SUM(H984,H991,H1001,H1011,H1018,H1027,H1036,H1045,H1055,H1070,H1072:H1074,H1076,H1077,H1079,H1080,H1082,H1083)","v":1137041.2190872945},{"$f":"SUM(I984,I991,I1001,I1011,I1018,I1027,I1036,I1045,I1055,I1070,I1072:I1074,I1076,I1077,I1079,I1080,I1082,I1083)","v":673164.50538952951},170729.69363183813,159761.04858669269,55750.753699491674,{"$f":"SUM(M984,M991,M1001,M1011,M1018,M1027,M1036,M1045,M1055,M1070,M1072:M1074,M1076,M1077,M1079,M1080,M1082,M1083)","v":7728.9670733864868},54646.737678363308,15259.513027992765,0,0,{"$f":"ROUND(SUM(I1085:Q1085)-H1085,0)","v":0}]
[1086]
[1087]
[1088]
[1089,null,null,null,null,null,null,"INTANGIBLE PLANT"]
[{"$f":"A1089+1","v":1090}]
[1091,null,"301","Organization"]
[1092,null,null,null,"Situs",{"$f":"IF(Function=\"gen\",\"F107G\",IF(Function=\"TRN\",\"F107T\",IF(Function=\"DIS\",\"F107D\",IF(Function=\"RETAIL\",\"F107R\",IF(Function=\"MISC\",\"F107M\",\"ERR\")))))","v":"F107D"},null,{"$f":"SUM(UAcct301S)","v":0},{"$f":"VLOOKUP($F1092,FactSum,'COS Factor Table'!F$115,FALSE)*$H1092","v":0},{"$f":"VLOOKUP($F1092,FactSum,'COS Factor Table'!G$115,FALSE)*$H1092","v":0},{"$f":"VLOOKUP($F1092,FactSum,'COS Factor Table'!H$115,FALSE)*$H1092","v":0},{"$f":"VLOOKUP($F1092,FactSum,'COS Factor Table'!I$115,FALSE)*$H1092","v":0},{"$f":"VLOOKUP($F1092,FactSum,'COS Factor Table'!J$115,FALSE)*$H1092","v":0},{"$f":"VLOOKUP($F1092,FactSum,'COS Factor Table'!K$115,FALSE)*$H1092","v":0},{"$f":"VLOOKUP($F1092,FactSum,'COS Factor Table'!L$115,FALSE)*$H1092","v":0},{"$f":"VLOOKUP($F1092,FactSum,'COS Factor Table'!M$115,FALSE)*$H1092","v":0},{"$f":"VLOOKUP($F1092,FactSum,'COS Factor Table'!N$115,FALSE)*$H1092","v":0},{"$f":"ROUND(SUM(I1092:Q1092)-H1092,0)","v":0}]
[1093,null,null,null,"System Generation",{"$f":"IF(Function=\"gen\",\"F105G\",IF(Function=\"TRN\",\"F105T\",IF(Function=\"DIS\",\"F105D\",IF(Function=\"RETAIL\",\"F105R\",IF(Function=\"MISC\",\"F105M\",\"ERR\")))))","v":"F105D"},null,{"$f":"SUM(UAcct301Sg)","v":0},{"$f":"VLOOKUP($F1093,FactSum,'COS Factor Table'!F$115,FALSE)*$H1093","v":0},{"$f":"VLOOKUP($F1093,FactSum,'COS Factor Table'!G$115,FALSE)*$H1093","v":0},{"$f":"VLOOKUP($F1093,FactSum,'COS Factor Table'!H$115,FALSE)*$H1093","v":0},{"$f":"VLOOKUP($F1093,FactSum,'COS Factor Table'!I$115,FALSE)*$H1093","v":0},{"$f":"VLOOKUP($F1093,FactSum,'COS Factor Table'!J$115,FALSE)*$H1093","v":0},{"$f":"VLOOKUP($F1093,FactSum,'COS Factor Table'!K$115,FALSE)*$H1093","v":0},{"$f":"VLOOKUP($F1093,FactSum,'COS Factor Table'!L$115,FALSE)*$H1093","v":0},{"$f":"VLOOKUP($F1093,FactSum,'COS Factor Table'!M$115,FALSE)*$H1093","v":0},{"$f":"VLOOKUP($F1093,FactSum,'COS Factor Table'!N$115,FALSE)*$H1093","v":0},{"$f":"ROUND(SUM(I1093:Q1093)-H1093,0)","v":0}]
[1094,null,null,null,"System Overheads",{"$f":"IF(Function=\"gen\",\"F102G\",IF(Function=\"TRN\",\"F102T\",IF(Function=\"DIS\",\"F102D\",IF(Function=\"RETAIL\",\"F102R\",IF(Function=\"MISC\",\"F102M\",\"ERR\")))))","v":"F102D"},null,{"$f":"SUM(UAcct301So)","v":0},{"$f":"VLOOKUP($F1094,FactSum,'COS Factor Table'!F$115,FALSE)*$H1094","v":0},{"$f":"VLOOKUP($F1094,FactSum,'COS Factor Table'!G$115,FALSE)*$H1094","v":0},{"$f":"VLOOKUP($F1094,FactSum,'COS Factor Table'!H$115,FALSE)*$H1094","v":0},{"$f":"VLOOKUP($F1094,FactSum,'COS Factor Table'!I$115,FALSE)*$H1094","v":0},{"$f":"VLOOKUP($F1094,FactSum,'COS Factor Table'!J$115,FALSE)*$H1094","v":0},{"$f":"VLOOKUP($F1094,FactSum,'COS Factor Table'!K$115,FALSE)*$H1094","v":0},{"$f":"VLOOKUP($F1094,FactSum,'COS Factor Table'!L$115,FALSE)*$H1094","v":0},{"$f":"VLOOKUP($F1094,FactSum,'COS Factor Table'!M$115,FALSE)*$H1094","v":0},{"$f":"VLOOKUP($F1094,FactSum,'COS Factor Table'!N$115,FALSE)*$H1094","v":0},{"$f":"ROUND(SUM(I1094:Q1094)-H1094,0)","v":0}]
[1095,null,null,"Total Organization",null,null,null,{"$f":"SUM(H1092:H1094)","v":0},0,0,0,0,{"$f":"SUM(M1092:M1094)","v":0},0,0,0,0,{"$f":"ROUND(SUM(I1095:Q1095)-H1095,0)","v":0}]
[1096]
[1097,null,"302","Franchise & Consent"]
[1098,null,null,null,"Situs",{"$f":"IF(Function=\"gen\",\"F107G\",IF(Function=\"TRN\",\"F107T\",IF(Function=\"DIS\",\"F107D\",IF(Function=\"RETAIL\",\"F107R\",IF(Function=\"MISC\",\"F107M\",\"ERR\")))))","v":"F107D"},null,{"$f":"SUM(UAcct302S)","v":0},{"$f":"VLOOKUP($F1098,FactSum,'COS Factor Table'!F$115,FALSE)*$H1098","v":0},{"$f":"VLOOKUP($F1098,FactSum,'COS Factor Table'!G$115,FALSE)*$H1098","v":0},{"$f":"VLOOKUP($F1098,FactSum,'COS Factor Table'!H$115,FALSE)*$H1098","v":0},{"$f":"VLOOKUP($F1098,FactSum,'COS Factor Table'!I$115,FALSE)*$H1098","v":0},{"$f":"VLOOKUP($F1098,FactSum,'COS Factor Table'!J$115,FALSE)*$H1098","v":0},{"$f":"VLOOKUP($F1098,FactSum,'COS Factor Table'!K$115,FALSE)*$H1098","v":0},{"$f":"VLOOKUP($F1098,FactSum,'COS Factor Table'!L$115,FALSE)*$H1098","v":0},{"$f":"VLOOKUP($F1098,FactSum,'COS Factor Table'!M$115,FALSE)*$H1098","v":0},{"$f":"VLOOKUP($F1098,FactSum,'COS Factor Table'!N$115,FALSE)*$H1098","v":0},{"$f":"ROUND(SUM(I1098:Q1098)-H1098,0)","v":0}]
[1099,null,null,null,"System Generation",{"$f":"IF(Function=\"gen\",\"F105G\",IF(Function=\"TRN\",\"F105T\",IF(Function=\"DIS\",\"F105D\",IF(Function=\"RETAIL\",\"F105R\",IF(Function=\"MISC\",\"F105M\",\"ERR\")))))","v":"F105D"},null,{"$f":"SUM(UAcct302Sg+UAcct302Sgp+UAcct302Sgu)","v":0},{"$f":"VLOOKUP($F1099,FactSum,'COS Factor Table'!F$115,FALSE)*$H1099","v":0},{"$f":"VLOOKUP($F1099,FactSum,'COS Factor Table'!G$115,FALSE)*$H1099","v":0},{"$f":"VLOOKUP($F1099,FactSum,'COS Factor Table'!H$115,FALSE)*$H1099","v":0},{"$f":"VLOOKUP($F1099,FactSum,'COS Factor Table'!I$115,FALSE)*$H1099","v":0},{"$f":"VLOOKUP($F1099,FactSum,'COS Factor Table'!J$115,FALSE)*$H1099","v":0},{"$f":"VLOOKUP($F1099,FactSum,'COS Factor Table'!K$115,FALSE)*$H1099","v":0},{"$f":"VLOOKUP($F1099,FactSum,'COS Factor Table'!L$115,FALSE)*$H1099","v":0},{"$f":"VLOOKUP($F1099,FactSum,'COS Factor Table'!M$115,FALSE)*$H1099","v":0},{"$f":"VLOOKUP($F1099,FactSum,'COS Factor Table'!N$115,FALSE)*$H1099","v":0},{"$f":"ROUND(SUM(I1099:Q1099)-H1099,0)","v":0}]
[1100,null,null,"Total Franchise & Consent",null,null,null,{"$f":"SUM(H1098:H1099)","v":0},{"$f":"SUM(I1098:I1099)","v":0},0,0,0,{"$f":"SUM(M1098:M1099)","v":0},0,0,{"$f":"SUM(P1098:P1099)","v":0},{"$f":"SUM(Q1098:Q1099)","v":0},{"$f":"ROUND(SUM(I1100:Q1100)-H1100,0)","v":0}]
[1101]
[1102,null,"303","Miscellaneous Intangible Plant"]
[1103,null,null,null,"Situs",{"$f":"IF(Function=\"gen\",\"F107G\",IF(Function=\"TRN\",\"F107T\",IF(Function=\"DIS\",\"F107D\",IF(Function=\"RETAIL\",\"F107R\",IF(Function=\"MISC\",\"F107M\",\"ERR\")))))","v":"F107D"},null,{"$f":"SUM(UAcct303S)","v":21385.075720924408},{"$f":"VLOOKUP($F1103,FactSum,'COS Factor Table'!F$115,FALSE)*$H1103","v":12660.643852427049},{"$f":"VLOOKUP($F1103,FactSum,'COS Factor Table'!G$115,FALSE)*$H1103","v":3211.0246883202735},{"$f":"VLOOKUP($F1103,FactSum,'COS Factor Table'!H$115,FALSE)*$H1103","v":3004.7302278303855},{"$f":"VLOOKUP($F1103,FactSum,'COS Factor Table'!I$115,FALSE)*$H1103","v":1048.5407822939303},{"$f":"VLOOKUP($F1103,FactSum,'COS Factor Table'!J$115,FALSE)*$H1103","v":145.36372414148343},{"$f":"VLOOKUP($F1103,FactSum,'COS Factor Table'!K$115,FALSE)*$H1103","v":1027.7768330081733},{"$f":"VLOOKUP($F1103,FactSum,'COS Factor Table'!L$115,FALSE)*$H1103","v":286.99561290311027},{"$f":"VLOOKUP($F1103,FactSum,'COS Factor Table'!M$115,FALSE)*$H1103","v":0},{"$f":"VLOOKUP($F1103,FactSum,'COS Factor Table'!N$115,FALSE)*$H1103","v":0},{"$f":"ROUND(SUM(I1103:Q1103)-H1103,0)","v":0}]
[1104,null,null,null,"System Generation",{"$f":"IF(Function=\"gen\",\"F105G\",IF(Function=\"TRN\",\"F105T\",IF(Function=\"DIS\",\"F105D\",IF(Function=\"RETAIL\",\"F105R\",IF(Function=\"MISC\",\"F105M\",\"ERR\")))))","v":"F105D"},null,{"$f":"SUM(UAcct303Sg+UAcct303Sgu+UACCT303SSGCH)","v":0},{"$f":"VLOOKUP($F1104,FactSum,'COS Factor Table'!F$115,FALSE)*$H1104","v":0},{"$f":"VLOOKUP($F1104,FactSum,'COS Factor Table'!G$115,FALSE)*$H1104","v":0},{"$f":"VLOOKUP($F1104,FactSum,'COS Factor Table'!H$115,FALSE)*$H1104","v":0},{"$f":"VLOOKUP($F1104,FactSum,'COS Factor Table'!I$115,FALSE)*$H1104","v":0},{"$f":"VLOOKUP($F1104,FactSum,'COS Factor Table'!J$115,FALSE)*$H1104","v":0},{"$f":"VLOOKUP($F1104,FactSum,'COS Factor Table'!K$115,FALSE)*$H1104","v":0},{"$f":"VLOOKUP($F1104,FactSum,'COS Factor Table'!L$115,FALSE)*$H1104","v":0},{"$f":"VLOOKUP($F1104,FactSum,'COS Factor Table'!M$115,FALSE)*$H1104","v":0},{"$f":"VLOOKUP($F1104,FactSum,'COS Factor Table'!N$115,FALSE)*$H1104","v":0},0]
[1105,null,null,null,"System Overheads",{"$f":"IF(Function=\"gen\",\"F102G\",IF(Function=\"TRN\",\"F102T\",IF(Function=\"DIS\",\"F102D\",IF(Function=\"RETAIL\",\"F102R\",IF(Function=\"MISC\",\"F102M\",\"ERR\")))))","v":"F102D"},null,{"$f":"SUM(UAcct303So)","v":218361.471351969},{"$f":"VLOOKUP($F1105,FactSum,'COS Factor Table'!F$115,FALSE)*$H1105","v":129276.92452237559},{"$f":"VLOOKUP($F1105,FactSum,'COS Factor Table'!G$115,FALSE)*$H1105","v":32787.542332761193},{"$f":"VLOOKUP($F1105,FactSum,'COS Factor Table'!H$115,FALSE)*$H1105","v":30681.084422011023},{"$f":"VLOOKUP($F1105,FactSum,'COS Factor Table'!I$115,FALSE)*$H1105","v":10706.574574819881},{"$f":"VLOOKUP($F1105,FactSum,'COS Factor Table'!J$115,FALSE)*$H1105","v":1484.2985406723622},{"$f":"VLOOKUP($F1105,FactSum,'COS Factor Table'!K$115,FALSE)*$H1105","v":10494.555380860274},{"$f":"VLOOKUP($F1105,FactSum,'COS Factor Table'!L$115,FALSE)*$H1105","v":2930.4915784686468},{"$f":"VLOOKUP($F1105,FactSum,'COS Factor Table'!M$115,FALSE)*$H1105","v":0},{"$f":"VLOOKUP($F1105,FactSum,'COS Factor Table'!N$115,FALSE)*$H1105","v":0},0]
[1106,null,null,null,"Customer - System","F42",null,{"$f":"SUM(UAcct303Cn)","v":0},{"$f":"VLOOKUP($F1106,FactSum,'COS Factor Table'!F$115,FALSE)*$H1106","v":0},{"$f":"VLOOKUP($F1106,FactSum,'COS Factor Table'!G$115,FALSE)*$H1106","v":0},{"$f":"VLOOKUP($F1106,FactSum,'COS Factor Table'!H$115,FALSE)*$H1106","v":0},{"$f":"VLOOKUP($F1106,FactSum,'COS Factor Table'!I$115,FALSE)*$H1106","v":0},{"$f":"VLOOKUP($F1106,FactSum,'COS Factor Table'!J$115,FALSE)*$H1106","v":0},{"$f":"VLOOKUP($F1106,FactSum,'COS Factor Table'!K$115,FALSE)*$H1106","v":0},{"$f":"VLOOKUP($F1106,FactSum,'COS Factor Table'!L$115,FALSE)*$H1106","v":0},{"$f":"VLOOKUP($F1106,FactSum,'COS Factor Table'!M$115,FALSE)*$H1106","v":0},{"$f":"VLOOKUP($F1106,FactSum,'COS Factor Table'!N$115,FALSE)*$H1106","v":0},0]
[1107,null,null,null,"Energy",{"$f":"IF(Classification=\"DEMAND\",\"F12\",IF(Classification=\"ENERGY\",\"F30\",\"F10\"))","v":"F10"},null,{"$f":"SUM(UAcct303Se)","v":0},{"$f":"VLOOKUP($F1107,FactSum,'COS Factor Table'!F$115,FALSE)*$H1107","v":0},{"$f":"VLOOKUP($F1107,FactSum,'COS Factor Table'!G$115,FALSE)*$H1107","v":0},{"$f":"VLOOKUP($F1107,FactSum,'COS Factor Table'!H$115,FALSE)*$H1107","v":0},{"$f":"VLOOKUP($F1107,FactSum,'COS Factor Table'!I$115,FALSE)*$H1107","v":0},{"$f":"VLOOKUP($F1107,FactSum,'COS Factor Table'!J$115,FALSE)*$H1107","v":0},{"$f":"VLOOKUP($F1107,FactSum,'COS Factor Table'!K$115,FALSE)*$H1107","v":0},{"$f":"VLOOKUP($F1107,FactSum,'COS Factor Table'!L$115,FALSE)*$H1107","v":0},{"$f":"VLOOKUP($F1107,FactSum,'COS Factor Table'!M$115,FALSE)*$H1107","v":0},{"$f":"VLOOKUP($F1107,FactSum,'COS Factor Table'!N$115,FALSE)*$H1107","v":0},0]
[1108,null,null,null,"CAEE",{"$f":"IF(Function=\"gen\",\"F105G\",IF(Function=\"TRN\",\"F105T\",IF(Function=\"DIS\",\"F105D\",IF(Function=\"RETAIL\",\"F105R\",IF(Function=\"MISC\",\"F105M\",\"ERR\")))))","v":"F105D"},null,0,{"$f":"VLOOKUP($F1108,FactSum,'COS Factor Table'!F$115,FALSE)*$H1108","v":0},{"$f":"VLOOKUP($F1108,FactSum,'COS Factor Table'!G$115,FALSE)*$H1108","v":0},{"$f":"VLOOKUP($F1108,FactSum,'COS Factor Table'!H$115,FALSE)*$H1108","v":0},{"$f":"VLOOKUP($F1108,FactSum,'COS Factor Table'!I$115,FALSE)*$H1108","v":0},{"$f":"VLOOKUP($F1108,FactSum,'COS Factor Table'!J$115,FALSE)*$H1108","v":0},{"$f":"VLOOKUP($F1108,FactSum,'COS Factor Table'!K$115,FALSE)*$H1108","v":0},{"$f":"VLOOKUP($F1108,FactSum,'COS Factor Table'!L$115,FALSE)*$H1108","v":0},{"$f":"VLOOKUP($F1108,FactSum,'COS Factor Table'!M$115,FALSE)*$H1108","v":0},{"$f":"VLOOKUP($F1108,FactSum,'COS Factor Table'!N$115,FALSE)*$H1108","v":0},0]
[1109,null,null,null,"CAEE",{"$f":"IF(Function=\"gen\",\"F105G\",IF(Function=\"TRN\",\"F105T\",IF(Function=\"DIS\",\"F105D\",IF(Function=\"RETAIL\",\"F105R\",IF(Function=\"MISC\",\"F105M\",\"ERR\")))))","v":"F105D"},null,0,{"$f":"VLOOKUP($F1109,FactSum,'COS Factor Table'!F$115,FALSE)*$H1109","v":0},{"$f":"VLOOKUP($F1109,FactSum,'COS Factor Table'!G$115,FALSE)*$H1109","v":0},{"$f":"VLOOKUP($F1109,FactSum,'COS Factor Table'!H$115,FALSE)*$H1109","v":0},{"$f":"VLOOKUP($F1109,FactSum,'COS Factor Table'!I$115,FALSE)*$H1109","v":0},{"$f":"VLOOKUP($F1109,FactSum,'COS Factor Table'!J$115,FALSE)*$H1109","v":0},{"$f":"VLOOKUP($F1109,FactSum,'COS Factor Table'!K$115,FALSE)*$H1109","v":0},{"$f":"VLOOKUP($F1109,FactSum,'COS Factor Table'!L$115,FALSE)*$H1109","v":0},{"$f":"VLOOKUP($F1109,FactSum,'COS Factor Table'!M$115,FALSE)*$H1109","v":0},{"$f":"VLOOKUP($F1109,FactSum,'COS Factor Table'!N$115,FALSE)*$H1109","v":0},0]
[1110,null,null,"Total Miscellaneous Intangible Plant",null,null,null,{"$f":"SUM(H1103:H1109)","v":239746.54707289342},{"$f":"SUM(I1103:I1109)","v":141937.56837480265},35998.567021081464,33685.814649841406,11755.115357113811,{"$f":"SUM(M1103:M1109)","v":1629.6622648138455},11522.332213868447,3217.487191371757,0,0,0]
[1111]
[1112,null,"IP","Unclass Intangible Plant - Acct 300",null,{"$f":"IF(Function=\"gen\",\"F102G\",IF(Function=\"TRN\",\"F102T\",IF(Function=\"DIS\",\"F102D\",IF(Function=\"RETAIL\",\"F102R\",IF(Function=\"MISC\",\"F102M\",\"ERR\")))))","v":"F102D"},null,{"$f":"SUM(UAccti00)","v":0},{"$f":"VLOOKUP($F1112,FactSum,'COS Factor Table'!F$115,FALSE)*$H1112","v":0},{"$f":"VLOOKUP($F1112,FactSum,'COS Factor Table'!G$115,FALSE)*$H1112","v":0},{"$f":"VLOOKUP($F1112,FactSum,'COS Factor Table'!H$115,FALSE)*$H1112","v":0},{"$f":"VLOOKUP($F1112,FactSum,'COS Factor Table'!I$115,FALSE)*$H1112","v":0},{"$f":"VLOOKUP($F1112,FactSum,'COS Factor Table'!J$115,FALSE)*$H1112","v":0},{"$f":"VLOOKUP($F1112,FactSum,'COS Factor Table'!K$115,FALSE)*$H1112","v":0},{"$f":"VLOOKUP($F1112,FactSum,'COS Factor Table'!L$115,FALSE)*$H1112","v":0},{"$f":"VLOOKUP($F1112,FactSum,'COS Factor Table'!M$115,FALSE)*$H1112","v":0},{"$f":"VLOOKUP($F1112,FactSum,'COS Factor Table'!N$115,FALSE)*$H1112","v":0},{"$f":"ROUND(SUM(I1112:Q1112)-H1112,0)","v":0}]
[1113]
[1114,null,"TOTAL INTANGIBLE PLANT",null,null,null,null,{"$f":"+H1095+H1100+H1110+H1112","v":239746.54707289342},141937.56837480265,35998.567021081464,33685.814649841406,11755.115357113811,{"$f":"+M1095+M1100+M1110+M1112","v":1629.6622648138455},11522.332213868447,3217.487191371757,0,0,{"$f":"ROUND(SUM(I1114:Q1114)-H1114,0)","v":0}]
[1115]
[1116]
[1117,null,"TOTAL ELECTRIC PLANT IN SERVICE",null,null,null,null,{"$f":"+H861+H904+H971+H1085+H1114","v":12828781.366160188},{"$f":"I861+I904+I971+I1085+I1114","v":8603915.1289302856},2065834.5343162441,1068494.4823643928,208184.01016531588,{"$f":"M861+M904+M971+M1085+M1114","v":120147.58933820034},743728.62082638603,18477.000219364523,0,0,{"$f":"ROUND(SUM(I1117:Q1117)-H1117,0)","v":0}]
[1118]
[1119]
[1120,null,{"$f":"$E$1","v":"Distribution - METER -  Unbundled"},null,null,null,null,"MISC RATE BASE"]
[1121]
[1122,null,"A",null,"B","C",null,"D","E","F","G","H","I","J","K","S","T"]
[1123,null,null,null,null,null,null,{"$f":"'Hot Sheet'!$H$10","v":"Washington"},null,{"$f":"'Hot Sheet'!$J$10","v":"Small General"},{"$f":"'Hot Sheet'!$K$10","v":"Large General"},{"$f":"'Hot Sheet'!$L$10","v":"Large General"},{"$f":"'Hot Sheet'!$M$10","v":"Large General"},{"$f":"'Hot Sheet'!$N$10","v":"Agricultural"},{"$f":"'Hot Sheet'!$O$10","v":"Street & Area"}]
[1124,null,"FERC",null,null,"COS",null,{"$f":"'Hot Sheet'!$H$11","v":"Jurisdiction"},{"$f":"'Hot Sheet'!$I$11","v":"Residential"},{"$f":"'Hot Sheet'!$J$11","v":"Service"},{"$f":"'Hot Sheet'!$K$11","v":"Service <1,000 kW"},{"$f":"'Hot Sheet'!$L$11","v":"Service >1,000 kW"},{"$f":"'Hot Sheet'!$M$11","v":"Dedicated Facilities"},{"$f":"'Hot Sheet'!$N$11","v":"Pumping"},{"$f":"'Hot Sheet'!$O$11","v":"Lighting"},{"$f":"'Hot Sheet'!P$11","v":"-"},{"$f":"'Hot Sheet'!Q$11","v":"-"}]
[1125,null,"ACCT",null,"DESCRIPTION ","Factor",null,{"$f":"'Hot Sheet'!$H$12","v":"Normalized"},{"$f":"'Hot Sheet'!$I$12","v":"Schedule 16"},{"$f":"'Hot Sheet'!$J$12","v":"Schedule 24"},{"$f":"'Hot Sheet'!$K$12","v":"Schedule 36"},{"$f":"'Hot Sheet'!$L$12","v":"Schedule 48T"},{"$f":"'Hot Sheet'!$M$12","v":"Schedule 48T"},{"$f":"'Hot Sheet'!$N$12","v":"Schedule 40"},{"$f":"'Hot Sheet'!$O$12","v":"Sch. 15,51-54,57"},{"$f":"'Hot Sheet'!P$12","v":"-"},{"$f":"'Hot Sheet'!Q$12","v":"-"}]
[1126,null,"105","Plant Held For Future Use"]
[1127,null,null,null,"Production",{"$f":"IF(Classification=\"DEMAND\",\"F12\",IF(Classification=\"ENERGY\",\"F30\",\"F10\"))","v":"F10"},null,{"$f":"(UAcct105Snpps+UAcct105Snppo)","v":0},{"$f":"VLOOKUP($F1127,FactSum,'COS Factor Table'!F$115,FALSE)*$H1127","v":0},{"$f":"VLOOKUP($F1127,FactSum,'COS Factor Table'!G$115,FALSE)*$H1127","v":0},{"$f":"VLOOKUP($F1127,FactSum,'COS Factor Table'!H$115,FALSE)*$H1127","v":0},{"$f":"VLOOKUP($F1127,FactSum,'COS Factor Table'!I$115,FALSE)*$H1127","v":0},{"$f":"VLOOKUP($F1127,FactSum,'COS Factor Table'!J$115,FALSE)*$H1127","v":0},{"$f":"VLOOKUP($F1127,FactSum,'COS Factor Table'!K$115,FALSE)*$H1127","v":0},{"$f":"VLOOKUP($F1127,FactSum,'COS Factor Table'!L$115,FALSE)*$H1127","v":0},{"$f":"VLOOKUP($F1127,FactSum,'COS Factor Table'!M$115,FALSE)*$H1127","v":0},{"$f":"VLOOKUP($F1127,FactSum,'COS Factor Table'!N$115,FALSE)*$H1127","v":0},{"$f":"ROUND(SUM(I1127:Q1127)-H1127,0)","v":0}]
[1128,null,null,null,"Transmission","F10",null,{"$f":"(UAcct105Snpt)","v":0},{"$f":"VLOOKUP($F1128,FactSum,'COS Factor Table'!F$115,FALSE)*$H1128","v":0},{"$f":"VLOOKUP($F1128,FactSum,'COS Factor Table'!G$115,FALSE)*$H1128","v":0},{"$f":"VLOOKUP($F1128,FactSum,'COS Factor Table'!H$115,FALSE)*$H1128","v":0},{"$f":"VLOOKUP($F1128,FactSum,'COS Factor Table'!I$115,FALSE)*$H1128","v":0},{"$f":"VLOOKUP($F1128,FactSum,'COS Factor Table'!J$115,FALSE)*$H1128","v":0},{"$f":"VLOOKUP($F1128,FactSum,'COS Factor Table'!K$115,FALSE)*$H1128","v":0},{"$f":"VLOOKUP($F1128,FactSum,'COS Factor Table'!L$115,FALSE)*$H1128","v":0},{"$f":"VLOOKUP($F1128,FactSum,'COS Factor Table'!M$115,FALSE)*$H1128","v":0},{"$f":"VLOOKUP($F1128,FactSum,'COS Factor Table'!N$115,FALSE)*$H1128","v":0},0]
[1129,null,null,null,"Distribution","F20",null,{"$f":"(UAcct105S)","v":0},{"$f":"VLOOKUP($F1129,FactSum,'COS Factor Table'!F$115,FALSE)*$H1129","v":0},{"$f":"VLOOKUP($F1129,FactSum,'COS Factor Table'!G$115,FALSE)*$H1129","v":0},{"$f":"VLOOKUP($F1129,FactSum,'COS Factor Table'!H$115,FALSE)*$H1129","v":0},{"$f":"VLOOKUP($F1129,FactSum,'COS Factor Table'!I$115,FALSE)*$H1129","v":0},{"$f":"VLOOKUP($F1129,FactSum,'COS Factor Table'!J$115,FALSE)*$H1129","v":0},{"$f":"VLOOKUP($F1129,FactSum,'COS Factor Table'!K$115,FALSE)*$H1129","v":0},{"$f":"VLOOKUP($F1129,FactSum,'COS Factor Table'!L$115,FALSE)*$H1129","v":0},{"$f":"VLOOKUP($F1129,FactSum,'COS Factor Table'!M$115,FALSE)*$H1129","v":0},{"$f":"VLOOKUP($F1129,FactSum,'COS Factor Table'!N$115,FALSE)*$H1129","v":0},0]
[1130,null,null,null,"General ","F102",null,{"$f":"(UAcct105Dnpg)","v":0},{"$f":"VLOOKUP($F1130,FactSum,'COS Factor Table'!F$115,FALSE)*$H1130","v":0},{"$f":"VLOOKUP($F1130,FactSum,'COS Factor Table'!G$115,FALSE)*$H1130","v":0},{"$f":"VLOOKUP($F1130,FactSum,'COS Factor Table'!H$115,FALSE)*$H1130","v":0},{"$f":"VLOOKUP($F1130,FactSum,'COS Factor Table'!I$115,FALSE)*$H1130","v":0},{"$f":"VLOOKUP($F1130,FactSum,'COS Factor Table'!J$115,FALSE)*$H1130","v":0},{"$f":"VLOOKUP($F1130,FactSum,'COS Factor Table'!K$115,FALSE)*$H1130","v":0},{"$f":"VLOOKUP($F1130,FactSum,'COS Factor Table'!L$115,FALSE)*$H1130","v":0},{"$f":"VLOOKUP($F1130,FactSum,'COS Factor Table'!M$115,FALSE)*$H1130","v":0},{"$f":"VLOOKUP($F1130,FactSum,'COS Factor Table'!N$115,FALSE)*$H1130","v":0},0]
[1131,null,null,null,"Mining",{"$f":"IF(Classification=\"DEMAND\",\"F12\",IF(Classification=\"ENERGY\",\"F30\",\"F10\"))","v":"F10"},null,{"$f":"SUM(UAcct105Seu)","v":0},{"$f":"VLOOKUP($F1131,FactSum,'COS Factor Table'!F$115,FALSE)*$H1131","v":0},{"$f":"VLOOKUP($F1131,FactSum,'COS Factor Table'!G$115,FALSE)*$H1131","v":0},{"$f":"VLOOKUP($F1131,FactSum,'COS Factor Table'!H$115,FALSE)*$H1131","v":0},{"$f":"VLOOKUP($F1131,FactSum,'COS Factor Table'!I$115,FALSE)*$H1131","v":0},{"$f":"VLOOKUP($F1131,FactSum,'COS Factor Table'!J$115,FALSE)*$H1131","v":0},{"$f":"VLOOKUP($F1131,FactSum,'COS Factor Table'!K$115,FALSE)*$H1131","v":0},{"$f":"VLOOKUP($F1131,FactSum,'COS Factor Table'!L$115,FALSE)*$H1131","v":0},{"$f":"VLOOKUP($F1131,FactSum,'COS Factor Table'!M$115,FALSE)*$H1131","v":0},{"$f":"VLOOKUP($F1131,FactSum,'COS Factor Table'!N$115,FALSE)*$H1131","v":0},0]
[1132,null,null,"Total Plant Held For Future Use",null,null,null,{"$f":"SUM(H1127:H1131)","v":0},{"$f":"SUM(I1127:I1131)","v":0},0,0,0,{"$f":"SUM(M1127:M1131)","v":0},0,0,{"$f":"SUM(P1127:P1131)","v":0},{"$f":"SUM(Q1127:Q1131)","v":0},0]
[1133]
[1134,null,"114","Electric Plant Acquisition Adjust",null,{"$f":"IF(Classification=\"DEMAND\",\"F12\",IF(Classification=\"ENERGY\",\"F30\",\"F10\"))","v":"F10"},null,{"$f":"SUM(UAcct114)","v":0},{"$f":"VLOOKUP($F1134,FactSum,'COS Factor Table'!F$115,FALSE)*$H1134","v":0},{"$f":"VLOOKUP($F1134,FactSum,'COS Factor Table'!G$115,FALSE)*$H1134","v":0},{"$f":"VLOOKUP($F1134,FactSum,'COS Factor Table'!H$115,FALSE)*$H1134","v":0},{"$f":"VLOOKUP($F1134,FactSum,'COS Factor Table'!I$115,FALSE)*$H1134","v":0},{"$f":"VLOOKUP($F1134,FactSum,'COS Factor Table'!J$115,FALSE)*$H1134","v":0},{"$f":"VLOOKUP($F1134,FactSum,'COS Factor Table'!K$115,FALSE)*$H1134","v":0},{"$f":"VLOOKUP($F1134,FactSum,'COS Factor Table'!L$115,FALSE)*$H1134","v":0},{"$f":"VLOOKUP($F1134,FactSum,'COS Factor Table'!M$115,FALSE)*$H1134","v":0},{"$f":"VLOOKUP($F1134,FactSum,'COS Factor Table'!N$115,FALSE)*$H1134","v":0},{"$f":"ROUND(SUM(I1134:Q1134)-H1134,0)","v":0}]
[1135]
[1136,null,"120","Nuclear Fuel",null,{"$f":"IF(Classification=\"DEMAND\",\"F12\",IF(Classification=\"ENERGY\",\"F30\",\"F10\"))","v":"F10"},null,{"$f":"SUM(UAcct120)","v":0},{"$f":"VLOOKUP($F1136,FactSum,'COS Factor Table'!F$115,FALSE)*$H1136","v":0},{"$f":"VLOOKUP($F1136,FactSum,'COS Factor Table'!G$115,FALSE)*$H1136","v":0},{"$f":"VLOOKUP($F1136,FactSum,'COS Factor Table'!H$115,FALSE)*$H1136","v":0},{"$f":"VLOOKUP($F1136,FactSum,'COS Factor Table'!I$115,FALSE)*$H1136","v":0},{"$f":"VLOOKUP($F1136,FactSum,'COS Factor Table'!J$115,FALSE)*$H1136","v":0},{"$f":"VLOOKUP($F1136,FactSum,'COS Factor Table'!K$115,FALSE)*$H1136","v":0},{"$f":"VLOOKUP($F1136,FactSum,'COS Factor Table'!L$115,FALSE)*$H1136","v":0},{"$f":"VLOOKUP($F1136,FactSum,'COS Factor Table'!M$115,FALSE)*$H1136","v":0},{"$f":"VLOOKUP($F1136,FactSum,'COS Factor Table'!N$115,FALSE)*$H1136","v":0},{"$f":"ROUND(SUM(I1136:Q1136)-H1136,0)","v":0}]
[1137]
[1138,null,"124","Weatherization",null,{"$f":"IF(Classification=\"DEMAND\",\"F12\",IF(Classification=\"ENERGY\",\"F30\",\"F10\"))","v":"F10"},null,{"$f":"SUM(UAcct124)+SUM(UAcct182)+SUM(UAcct186)","v":0},{"$f":"VLOOKUP($F1138,FactSum,'COS Factor Table'!F$115,FALSE)*$H1138","v":0},{"$f":"VLOOKUP($F1138,FactSum,'COS Factor Table'!G$115,FALSE)*$H1138","v":0},{"$f":"VLOOKUP($F1138,FactSum,'COS Factor Table'!H$115,FALSE)*$H1138","v":0},{"$f":"VLOOKUP($F1138,FactSum,'COS Factor Table'!I$115,FALSE)*$H1138","v":0},{"$f":"VLOOKUP($F1138,FactSum,'COS Factor Table'!J$115,FALSE)*$H1138","v":0},{"$f":"VLOOKUP($F1138,FactSum,'COS Factor Table'!K$115,FALSE)*$H1138","v":0},{"$f":"VLOOKUP($F1138,FactSum,'COS Factor Table'!L$115,FALSE)*$H1138","v":0},{"$f":"VLOOKUP($F1138,FactSum,'COS Factor Table'!M$115,FALSE)*$H1138","v":0},{"$f":"VLOOKUP($F1138,FactSum,'COS Factor Table'!N$115,FALSE)*$H1138","v":0},{"$f":"ROUND(SUM(I1138:Q1138)-H1138,0)","v":0}]
[1139]
[1140,null,"151","Fuel Stock",null,{"$f":"IF(Classification=\"DEMAND\",\"F12\",IF(Classification=\"ENERGY\",\"F30\",\"F10\"))","v":"F10"},null,{"$f":"SUM(UAcct151)-H1142-H1141","v":0},{"$f":"VLOOKUP($F1140,FactSum,'COS Factor Table'!F$115,FALSE)*$H1140","v":0},{"$f":"VLOOKUP($F1140,FactSum,'COS Factor Table'!G$115,FALSE)*$H1140","v":0},{"$f":"VLOOKUP($F1140,FactSum,'COS Factor Table'!H$115,FALSE)*$H1140","v":0},{"$f":"VLOOKUP($F1140,FactSum,'COS Factor Table'!I$115,FALSE)*$H1140","v":0},{"$f":"VLOOKUP($F1140,FactSum,'COS Factor Table'!J$115,FALSE)*$H1140","v":0},{"$f":"VLOOKUP($F1140,FactSum,'COS Factor Table'!K$115,FALSE)*$H1140","v":0},{"$f":"VLOOKUP($F1140,FactSum,'COS Factor Table'!L$115,FALSE)*$H1140","v":0},{"$f":"VLOOKUP($F1140,FactSum,'COS Factor Table'!M$115,FALSE)*$H1140","v":0},{"$f":"VLOOKUP($F1140,FactSum,'COS Factor Table'!N$115,FALSE)*$H1140","v":0},{"$f":"ROUND(SUM(I1140:Q1140)-H1140,0)","v":0}]
[1141,null,null,null,"JBE",{"$f":"IF(Classification=\"DEMAND\",\"F12\",IF(Classification=\"ENERGY\",\"F30\",\"F10\"))","v":"F10"},null,{"$f":"SUM(Uacct151SSECT)","v":0},{"$f":"VLOOKUP($F1141,FactSum,'COS Factor Table'!F$115,FALSE)*$H1141","v":0},{"$f":"VLOOKUP($F1141,FactSum,'COS Factor Table'!G$115,FALSE)*$H1141","v":0},{"$f":"VLOOKUP($F1141,FactSum,'COS Factor Table'!H$115,FALSE)*$H1141","v":0},{"$f":"VLOOKUP($F1141,FactSum,'COS Factor Table'!I$115,FALSE)*$H1141","v":0},{"$f":"VLOOKUP($F1141,FactSum,'COS Factor Table'!J$115,FALSE)*$H1141","v":0},{"$f":"VLOOKUP($F1141,FactSum,'COS Factor Table'!K$115,FALSE)*$H1141","v":0},{"$f":"VLOOKUP($F1141,FactSum,'COS Factor Table'!L$115,FALSE)*$H1141","v":0},{"$f":"VLOOKUP($F1141,FactSum,'COS Factor Table'!M$115,FALSE)*$H1141","v":0},{"$f":"VLOOKUP($F1141,FactSum,'COS Factor Table'!N$115,FALSE)*$H1141","v":0},{"$f":"ROUND(SUM(I1141:Q1141)-H1141,0)","v":0}]
[1142,null,null,null,"CAEE","F30",null,0,{"$f":"VLOOKUP($F1142,FactSum,'COS Factor Table'!F$115,FALSE)*$H1142","v":0},{"$f":"VLOOKUP($F1142,FactSum,'COS Factor Table'!G$115,FALSE)*$H1142","v":0},{"$f":"VLOOKUP($F1142,FactSum,'COS Factor Table'!H$115,FALSE)*$H1142","v":0},{"$f":"VLOOKUP($F1142,FactSum,'COS Factor Table'!I$115,FALSE)*$H1142","v":0},{"$f":"VLOOKUP($F1142,FactSum,'COS Factor Table'!J$115,FALSE)*$H1142","v":0},{"$f":"VLOOKUP($F1142,FactSum,'COS Factor Table'!K$115,FALSE)*$H1142","v":0},{"$f":"VLOOKUP($F1142,FactSum,'COS Factor Table'!L$115,FALSE)*$H1142","v":0},{"$f":"VLOOKUP($F1142,FactSum,'COS Factor Table'!M$115,FALSE)*$H1142","v":0},{"$f":"VLOOKUP($F1142,FactSum,'COS Factor Table'!N$115,FALSE)*$H1142","v":0},{"$f":"ROUND(SUM(I1142:Q1142)-H1142,0)","v":0}]
[1143,null,null,null,"Total Fuel Stock",null,null,{"$f":"SUM(H1140:H1142)","v":0},0,0,0,0,{"$f":"SUM(M1140:M1142)","v":0},0,0,0,0,{"$f":"ROUND(SUM(I1143:Q1143)-H1143,0)","v":0}]
[1144]
[1145,null,152,"Fuel Stock - Undistributed",null,{"$f":"IF(Classification=\"DEMAND\",\"F12\",IF(Classification=\"ENERGY\",\"F30\",\"F10\"))","v":"F10"},null,0,{"$f":"VLOOKUP($F1145,FactSum,'COS Factor Table'!F$115,FALSE)*$H1145","v":0},{"$f":"VLOOKUP($F1145,FactSum,'COS Factor Table'!G$115,FALSE)*$H1145","v":0},{"$f":"VLOOKUP($F1145,FactSum,'COS Factor Table'!H$115,FALSE)*$H1145","v":0},{"$f":"VLOOKUP($F1145,FactSum,'COS Factor Table'!I$115,FALSE)*$H1145","v":0},{"$f":"VLOOKUP($F1145,FactSum,'COS Factor Table'!J$115,FALSE)*$H1145","v":0},{"$f":"VLOOKUP($F1145,FactSum,'COS Factor Table'!K$115,FALSE)*$H1145","v":0},{"$f":"VLOOKUP($F1145,FactSum,'COS Factor Table'!L$115,FALSE)*$H1145","v":0},{"$f":"VLOOKUP($F1145,FactSum,'COS Factor Table'!M$115,FALSE)*$H1145","v":0},{"$f":"VLOOKUP($F1145,FactSum,'COS Factor Table'!N$115,FALSE)*$H1145","v":0},{"$f":"ROUND(SUM(I1145:Q1145)-H1145,0)","v":0}]
[1146]
[1147,null,"25316","DG&T Working Capital Deposit",null,{"$f":"IF(Classification=\"DEMAND\",\"F12\",IF(Classification=\"ENERGY\",\"F30\",\"F10\"))","v":"F10"},null,{"$f":"SUM(UAcct25316)","v":0},{"$f":"VLOOKUP($F1147,FactSum,'COS Factor Table'!F$115,FALSE)*$H1147","v":0},{"$f":"VLOOKUP($F1147,FactSum,'COS Factor Table'!G$115,FALSE)*$H1147","v":0},{"$f":"VLOOKUP($F1147,FactSum,'COS Factor Table'!H$115,FALSE)*$H1147","v":0},{"$f":"VLOOKUP($F1147,FactSum,'COS Factor Table'!I$115,FALSE)*$H1147","v":0},{"$f":"VLOOKUP($F1147,FactSum,'COS Factor Table'!J$115,FALSE)*$H1147","v":0},{"$f":"VLOOKUP($F1147,FactSum,'COS Factor Table'!K$115,FALSE)*$H1147","v":0},{"$f":"VLOOKUP($F1147,FactSum,'COS Factor Table'!L$115,FALSE)*$H1147","v":0},{"$f":"VLOOKUP($F1147,FactSum,'COS Factor Table'!M$115,FALSE)*$H1147","v":0},{"$f":"VLOOKUP($F1147,FactSum,'COS Factor Table'!N$115,FALSE)*$H1147","v":0},{"$f":"ROUND(SUM(I1147:Q1147)-H1147,0)","v":0}]
[1148]
[1149,null,"25317","DG&T Working Capital Deposit",null,{"$f":"IF(Classification=\"DEMAND\",\"F12\",IF(Classification=\"ENERGY\",\"F30\",\"F10\"))","v":"F10"},null,{"$f":"SUM(UAcct25317)","v":0},{"$f":"VLOOKUP($F1149,FactSum,'COS Factor Table'!F$115,FALSE)*$H1149","v":0},{"$f":"VLOOKUP($F1149,FactSum,'COS Factor Table'!G$115,FALSE)*$H1149","v":0},{"$f":"VLOOKUP($F1149,FactSum,'COS Factor Table'!H$115,FALSE)*$H1149","v":0},{"$f":"VLOOKUP($F1149,FactSum,'COS Factor Table'!I$115,FALSE)*$H1149","v":0},{"$f":"VLOOKUP($F1149,FactSum,'COS Factor Table'!J$115,FALSE)*$H1149","v":0},{"$f":"VLOOKUP($F1149,FactSum,'COS Factor Table'!K$115,FALSE)*$H1149","v":0},{"$f":"VLOOKUP($F1149,FactSum,'COS Factor Table'!L$115,FALSE)*$H1149","v":0},{"$f":"VLOOKUP($F1149,FactSum,'COS Factor Table'!M$115,FALSE)*$H1149","v":0},{"$f":"VLOOKUP($F1149,FactSum,'COS Factor Table'!N$115,FALSE)*$H1149","v":0},{"$f":"ROUND(SUM(I1149:Q1149)-H1149,0)","v":0}]
[1150]
[1151,null,"25319","Provo Working Capital Deposit",null,{"$f":"IF(Classification=\"DEMAND\",\"F12\",IF(Classification=\"ENERGY\",\"F30\",\"F10\"))","v":"F10"},null,{"$f":"SUM(UAcct25319)","v":0},{"$f":"VLOOKUP($F1151,FactSum,'COS Factor Table'!F$115,FALSE)*$H1151","v":0},{"$f":"VLOOKUP($F1151,FactSum,'COS Factor Table'!G$115,FALSE)*$H1151","v":0},{"$f":"VLOOKUP($F1151,FactSum,'COS Factor Table'!H$115,FALSE)*$H1151","v":0},{"$f":"VLOOKUP($F1151,FactSum,'COS Factor Table'!I$115,FALSE)*$H1151","v":0},{"$f":"VLOOKUP($F1151,FactSum,'COS Factor Table'!J$115,FALSE)*$H1151","v":0},{"$f":"VLOOKUP($F1151,FactSum,'COS Factor Table'!K$115,FALSE)*$H1151","v":0},{"$f":"VLOOKUP($F1151,FactSum,'COS Factor Table'!L$115,FALSE)*$H1151","v":0},{"$f":"VLOOKUP($F1151,FactSum,'COS Factor Table'!M$115,FALSE)*$H1151","v":0},{"$f":"VLOOKUP($F1151,FactSum,'COS Factor Table'!N$115,FALSE)*$H1151","v":0},{"$f":"ROUND(SUM(I1151:Q1151)-H1151,0)","v":0}]
[1152]
[1153,null,"154","Materials and Supplies",null,{"$f":"IF(Function=\"gen\",\"F102G\",IF(Function=\"TRN\",\"F102T\",IF(Function=\"DIS\",\"F102D\",IF(Function=\"RETAIL\",\"F102R\",IF(Function=\"MISC\",\"F102M\",\"ERR\")))))","v":"F102D"},null,{"$f":"SUM(UAcct154)-H1155-H1154","v":8.7359147073060992E-7},{"$f":"VLOOKUP($F1153,FactSum,'COS Factor Table'!F$115,FALSE)*$H1153","v":5.1719388922323179E-7},{"$f":"VLOOKUP($F1153,FactSum,'COS Factor Table'!G$115,FALSE)*$H1153","v":1.3117202934555472E-7},{"$f":"VLOOKUP($F1153,FactSum,'COS Factor Table'!H$115,FALSE)*$H1153","v":1.2274479329108501E-7},{"$f":"VLOOKUP($F1153,FactSum,'COS Factor Table'!I$115,FALSE)*$H1153","v":4.283343655542517E-8},{"$f":"VLOOKUP($F1153,FactSum,'COS Factor Table'!J$115,FALSE)*$H1153","v":5.9381837698794875E-9},{"$f":"VLOOKUP($F1153,FactSum,'COS Factor Table'!K$115,FALSE)*$H1153","v":4.1985218422768674E-8},{"$f":"VLOOKUP($F1153,FactSum,'COS Factor Table'!L$115,FALSE)*$H1153","v":1.1723920122665024E-8},{"$f":"VLOOKUP($F1153,FactSum,'COS Factor Table'!M$115,FALSE)*$H1153","v":0},{"$f":"VLOOKUP($F1153,FactSum,'COS Factor Table'!N$115,FALSE)*$H1153","v":0},{"$f":"ROUND(SUM(I1153:Q1153)-H1153,0)","v":0}]
[{"$f":"A1153+1","v":1154},null,null,null,"JBG",{"$f":"IF(Classification=\"DEMAND\",\"F12\",IF(Classification=\"ENERGY\",\"F30\",\"F10\"))","v":"F10"},null,{"$f":"SUM(Uacct154SSGCT)","v":-4.5655060226274535E-10},{"$f":"VLOOKUP($F1154,FactSum,'COS Factor Table'!F$115,FALSE)*$H1154","v":-1.9370301684864923E-10},{"$f":"VLOOKUP($F1154,FactSum,'COS Factor Table'!G$115,FALSE)*$H1154","v":-6.1611886670586518E-11},{"$f":"VLOOKUP($F1154,FactSum,'COS Factor Table'!H$115,FALSE)*$H1154","v":-9.7618715355411795E-11},{"$f":"VLOOKUP($F1154,FactSum,'COS Factor Table'!I$115,FALSE)*$H1154","v":-3.8575121499889761E-11},{"$f":"VLOOKUP($F1154,FactSum,'COS Factor Table'!J$115,FALSE)*$H1154","v":-4.7693335610401582E-11},{"$f":"VLOOKUP($F1154,FactSum,'COS Factor Table'!K$115,FALSE)*$H1154","v":-1.6253240311273304E-11},{"$f":"VLOOKUP($F1154,FactSum,'COS Factor Table'!L$115,FALSE)*$H1154","v":-1.0952859665331535E-12},{"$f":"VLOOKUP($F1154,FactSum,'COS Factor Table'!M$115,FALSE)*$H1154","v":0},{"$f":"VLOOKUP($F1154,FactSum,'COS Factor Table'!N$115,FALSE)*$H1154","v":0},{"$f":"ROUND(SUM(I1154:Q1154)-H1154,0)","v":0}]
[1155,null,null,null,"CAEE","F102D",null,0,{"$f":"VLOOKUP($F1155,FactSum,'COS Factor Table'!F$115,FALSE)*$H1155","v":0},{"$f":"VLOOKUP($F1155,FactSum,'COS Factor Table'!G$115,FALSE)*$H1155","v":0},{"$f":"VLOOKUP($F1155,FactSum,'COS Factor Table'!H$115,FALSE)*$H1155","v":0},{"$f":"VLOOKUP($F1155,FactSum,'COS Factor Table'!I$115,FALSE)*$H1155","v":0},{"$f":"VLOOKUP($F1155,FactSum,'COS Factor Table'!J$115,FALSE)*$H1155","v":0},{"$f":"VLOOKUP($F1155,FactSum,'COS Factor Table'!K$115,FALSE)*$H1155","v":0},{"$f":"VLOOKUP($F1155,FactSum,'COS Factor Table'!L$115,FALSE)*$H1155","v":0},{"$f":"VLOOKUP($F1155,FactSum,'COS Factor Table'!M$115,FALSE)*$H1155","v":0},{"$f":"VLOOKUP($F1155,FactSum,'COS Factor Table'!N$115,FALSE)*$H1155","v":0},{"$f":"ROUND(SUM(I1155:Q1155)-H1155,0)","v":0}]
[1156,null,null,null,"Total Material & Supplies",null,null,{"$f":"SUM(H1153:H1155)","v":8.7313492012834719E-7},5.170001862063831E-7,1.3111041745888414E-7,1.2264717457572959E-7,4.2794861433925277E-8,{"$f":"SUM(M1153:M1155)","v":5.8904904342690862E-9},4.1968965182457404E-8,1.172282483669849E-8,0,0,{"$f":"ROUND(SUM(I1156:Q1156)-H1156,0)","v":0}]
[1157]
[1158,null,"163","Stores Expense Undistributed",null,{"$f":"IF(Function=\"gen\",\"F102G\",IF(Function=\"TRN\",\"F102T\",IF(Function=\"DIS\",\"F102D\",IF(Function=\"RETAIL\",\"F102R\",IF(Function=\"MISC\",\"F102M\",\"ERR\")))))","v":"F102D"},null,{"$f":"SUM(UAcct163)","v":0},{"$f":"VLOOKUP($F1158,FactSum,'COS Factor Table'!F$115,FALSE)*$H1158","v":0},{"$f":"VLOOKUP($F1158,FactSum,'COS Factor Table'!G$115,FALSE)*$H1158","v":0},{"$f":"VLOOKUP($F1158,FactSum,'COS Factor Table'!H$115,FALSE)*$H1158","v":0},{"$f":"VLOOKUP($F1158,FactSum,'COS Factor Table'!I$115,FALSE)*$H1158","v":0},{"$f":"VLOOKUP($F1158,FactSum,'COS Factor Table'!J$115,FALSE)*$H1158","v":0},{"$f":"VLOOKUP($F1158,FactSum,'COS Factor Table'!K$115,FALSE)*$H1158","v":0},{"$f":"VLOOKUP($F1158,FactSum,'COS Factor Table'!L$115,FALSE)*$H1158","v":0},{"$f":"VLOOKUP($F1158,FactSum,'COS Factor Table'!M$115,FALSE)*$H1158","v":0},{"$f":"VLOOKUP($F1158,FactSum,'COS Factor Table'!N$115,FALSE)*$H1158","v":0},{"$f":"ROUND(SUM(I1158:Q1158)-H1158,0)","v":0}]
[1159]
[1160,null,"25318","Provo Working Capital Deposit",null,{"$f":"IF(Function=\"gen\",\"F102G\",IF(Function=\"TRN\",\"F102T\",IF(Function=\"DIS\",\"F102D\",IF(Function=\"RETAIL\",\"F102R\",IF(Function=\"MISC\",\"F102M\",\"ERR\")))))","v":"F102D"},null,{"$f":"SUM(UAcct25318)","v":0},{"$f":"VLOOKUP($F1160,FactSum,'COS Factor Table'!F$115,FALSE)*$H1160","v":0},{"$f":"VLOOKUP($F1160,FactSum,'COS Factor Table'!G$115,FALSE)*$H1160","v":0},{"$f":"VLOOKUP($F1160,FactSum,'COS Factor Table'!H$115,FALSE)*$H1160","v":0},{"$f":"VLOOKUP($F1160,FactSum,'COS Factor Table'!I$115,FALSE)*$H1160","v":0},{"$f":"VLOOKUP($F1160,FactSum,'COS Factor Table'!J$115,FALSE)*$H1160","v":0},{"$f":"VLOOKUP($F1160,FactSum,'COS Factor Table'!K$115,FALSE)*$H1160","v":0},{"$f":"VLOOKUP($F1160,FactSum,'COS Factor Table'!L$115,FALSE)*$H1160","v":0},{"$f":"VLOOKUP($F1160,FactSum,'COS Factor Table'!M$115,FALSE)*$H1160","v":0},{"$f":"VLOOKUP($F1160,FactSum,'COS Factor Table'!N$115,FALSE)*$H1160","v":0},{"$f":"ROUND(SUM(I1160:Q1160)-H1160,0)","v":0}]
[1161]
[1162,null,"165","Prepayments",null,{"$f":"IF(Function=\"gen\",\"F102G\",IF(Function=\"TRN\",\"F102T\",IF(Function=\"DIS\",\"F102D\",IF(Function=\"RETAIL\",\"F102R\",IF(Function=\"MISC\",\"F102M\",\"ERR\")))))","v":"F102D"},null,{"$f":"SUM(UAcct165)-H1163","v":0},{"$f":"VLOOKUP($F1162,FactSum,'COS Factor Table'!F$115,FALSE)*$H1162","v":0},{"$f":"VLOOKUP($F1162,FactSum,'COS Factor Table'!G$115,FALSE)*$H1162","v":0},{"$f":"VLOOKUP($F1162,FactSum,'COS Factor Table'!H$115,FALSE)*$H1162","v":0},{"$f":"VLOOKUP($F1162,FactSum,'COS Factor Table'!I$115,FALSE)*$H1162","v":0},{"$f":"VLOOKUP($F1162,FactSum,'COS Factor Table'!J$115,FALSE)*$H1162","v":0},{"$f":"VLOOKUP($F1162,FactSum,'COS Factor Table'!K$115,FALSE)*$H1162","v":0},{"$f":"VLOOKUP($F1162,FactSum,'COS Factor Table'!L$115,FALSE)*$H1162","v":0},{"$f":"VLOOKUP($F1162,FactSum,'COS Factor Table'!M$115,FALSE)*$H1162","v":0},{"$f":"VLOOKUP($F1162,FactSum,'COS Factor Table'!N$115,FALSE)*$H1162","v":0},{"$f":"ROUND(SUM(I1162:Q1162)-H1162,0)","v":0}]
[1163,null,null,null,"Customer - System","F42",null,{"$f":"UAcct165Gps","v":-1.8109732184958963E-10},{"$f":"VLOOKUP($F1163,FactSum,'COS Factor Table'!F$115,FALSE)*$H1163","v":-1.4612178526352483E-10},{"$f":"VLOOKUP($F1163,FactSum,'COS Factor Table'!G$115,FALSE)*$H1163","v":-2.4818239401882892E-11},{"$f":"VLOOKUP($F1163,FactSum,'COS Factor Table'!H$115,FALSE)*$H1163","v":-1.5072545538433793E-12},{"$f":"VLOOKUP($F1163,FactSum,'COS Factor Table'!I$115,FALSE)*$H1163","v":-3.0912484129716484E-13},{"$f":"VLOOKUP($F1163,FactSum,'COS Factor Table'!J$115,FALSE)*$H1163","v":-5.3378728100849055E-15},{"$f":"VLOOKUP($F1163,FactSum,'COS Factor Table'!K$115,FALSE)*$H1163","v":-4.4211351854473908E-12},{"$f":"VLOOKUP($F1163,FactSum,'COS Factor Table'!L$115,FALSE)*$H1163","v":-3.9144447307838831E-12},{"$f":"VLOOKUP($F1163,FactSum,'COS Factor Table'!M$115,FALSE)*$H1163","v":0},{"$f":"VLOOKUP($F1163,FactSum,'COS Factor Table'!N$115,FALSE)*$H1163","v":0},{"$f":"ROUND(SUM(I1163:Q1163)-H1163,0)","v":0}]
[1164,null,null,null,{"$f":"\"Total \"&D1162","v":"Total Prepayments"},null,null,{"$f":"H1162+H1163","v":-1.8109732184958963E-10},{"$f":"I1162+I1163","v":-1.4612178526352483E-10},-2.4818239401882892E-11,-1.5072545538433793E-12,-3.0912484129716484E-13,{"$f":"M1162+M1163","v":-5.3378728100849055E-15},-4.4211351854473908E-12,-3.9144447307838831E-12,{"$f":"P1162+P1163","v":0},{"$f":"Q1162+Q1163","v":0},{"$f":"ROUND(SUM(I1164:Q1164)-H1164,0)","v":0}]
[1165]
[1166,null,"182M","Misc Regulatory Assets",null,{"$f":"IF(Function=\"gen\",\"F102G\",IF(Function=\"TRN\",\"F102T\",IF(Function=\"DIS\",\"F102D\",IF(Function=\"RETAIL\",\"F102R\",IF(Function=\"MISC\",\"F102M\",\"ERR\")))))","v":"F102D"},null,{"$f":"SUM(UAcct182M)-H1167","v":0},{"$f":"VLOOKUP($F1166,FactSum,'COS Factor Table'!F$115,FALSE)*$H1166","v":0},{"$f":"VLOOKUP($F1166,FactSum,'COS Factor Table'!G$115,FALSE)*$H1166","v":0},{"$f":"VLOOKUP($F1166,FactSum,'COS Factor Table'!H$115,FALSE)*$H1166","v":0},{"$f":"VLOOKUP($F1166,FactSum,'COS Factor Table'!I$115,FALSE)*$H1166","v":0},{"$f":"VLOOKUP($F1166,FactSum,'COS Factor Table'!J$115,FALSE)*$H1166","v":0},{"$f":"VLOOKUP($F1166,FactSum,'COS Factor Table'!K$115,FALSE)*$H1166","v":0},{"$f":"VLOOKUP($F1166,FactSum,'COS Factor Table'!L$115,FALSE)*$H1166","v":0},{"$f":"VLOOKUP($F1166,FactSum,'COS Factor Table'!M$115,FALSE)*$H1166","v":0},{"$f":"VLOOKUP($F1166,FactSum,'COS Factor Table'!N$115,FALSE)*$H1166","v":0},{"$f":"ROUND(SUM(I1166:Q1166)-H1166,0)","v":0}]
[1167,null,null,null,"CAEE","F102D",null,{"$f":"SUM(UAcct182MSSGCH)","v":0},{"$f":"VLOOKUP($F1167,FactSum,'COS Factor Table'!F$115,FALSE)*$H1167","v":0},{"$f":"VLOOKUP($F1167,FactSum,'COS Factor Table'!G$115,FALSE)*$H1167","v":0},{"$f":"VLOOKUP($F1167,FactSum,'COS Factor Table'!H$115,FALSE)*$H1167","v":0},{"$f":"VLOOKUP($F1167,FactSum,'COS Factor Table'!I$115,FALSE)*$H1167","v":0},{"$f":"VLOOKUP($F1167,FactSum,'COS Factor Table'!J$115,FALSE)*$H1167","v":0},{"$f":"VLOOKUP($F1167,FactSum,'COS Factor Table'!K$115,FALSE)*$H1167","v":0},{"$f":"VLOOKUP($F1167,FactSum,'COS Factor Table'!L$115,FALSE)*$H1167","v":0},{"$f":"VLOOKUP($F1167,FactSum,'COS Factor Table'!M$115,FALSE)*$H1167","v":0},{"$f":"VLOOKUP($F1167,FactSum,'COS Factor Table'!N$115,FALSE)*$H1167","v":0},{"$f":"ROUND(SUM(I1167:Q1167)-H1167,0)","v":0}]
[1168,null,null,null,"Total Misc Regulatory Assets",null,null,{"$f":"SUM(H1166:H1167)","v":0},0,0,0,0,{"$f":"SUM(M1166:M1167)","v":0},0,0,0,0,{"$f":"ROUND(SUM(I1168:Q1168)-H1168,0)","v":0}]
[1169]
[1170,null,"186M","Misc Deferred Debits",null,{"$f":"IF(Function=\"gen\",\"F102G\",IF(Function=\"TRN\",\"F102T\",IF(Function=\"DIS\",\"F102D\",IF(Function=\"RETAIL\",\"F102R\",IF(Function=\"MISC\",\"F102M\",\"ERR\")))))","v":"F102D"},null,{"$f":"SUM(UAcct186M)","v":0},{"$f":"VLOOKUP($F1170,FactSum,'COS Factor Table'!F$115,FALSE)*$H1170","v":0},{"$f":"VLOOKUP($F1170,FactSum,'COS Factor Table'!G$115,FALSE)*$H1170","v":0},{"$f":"VLOOKUP($F1170,FactSum,'COS Factor Table'!H$115,FALSE)*$H1170","v":0},{"$f":"VLOOKUP($F1170,FactSum,'COS Factor Table'!I$115,FALSE)*$H1170","v":0},{"$f":"VLOOKUP($F1170,FactSum,'COS Factor Table'!J$115,FALSE)*$H1170","v":0},{"$f":"VLOOKUP($F1170,FactSum,'COS Factor Table'!K$115,FALSE)*$H1170","v":0},{"$f":"VLOOKUP($F1170,FactSum,'COS Factor Table'!L$115,FALSE)*$H1170","v":0},{"$f":"VLOOKUP($F1170,FactSum,'COS Factor Table'!M$115,FALSE)*$H1170","v":0},{"$f":"VLOOKUP($F1170,FactSum,'COS Factor Table'!N$115,FALSE)*$H1170","v":0},{"$f":"ROUND(SUM(I1170:Q1170)-H1170,0)","v":0}]
[1171]
[1172,null,"CWC","Cash Working Capital",null,{"$f":"IF(Function=\"gen\",\"F137G\",IF(Function=\"TRN\",\"F137T\",IF(Function=\"DIS\",\"F137D\",IF(Function=\"RETAIL\",\"F137R\",IF(Function=\"MISC\",\"F137M\",\"ERR\")))))","v":"F137D"},null,{"$f":"SUM(UAcctcwc)","v":76882.58267849742},{"$f":"VLOOKUP($F1172,FactSum,'COS Factor Table'!F$115,FALSE)*$H1172","v":43249.051944289837},{"$f":"VLOOKUP($F1172,FactSum,'COS Factor Table'!G$115,FALSE)*$H1172","v":11331.43990863056},{"$f":"VLOOKUP($F1172,FactSum,'COS Factor Table'!H$115,FALSE)*$H1172","v":11124.281665287155},{"$f":"VLOOKUP($F1172,FactSum,'COS Factor Table'!I$115,FALSE)*$H1172","v":4039.2115166364392},{"$f":"VLOOKUP($F1172,FactSum,'COS Factor Table'!J$115,FALSE)*$H1172","v":1623.7021661589279},{"$f":"VLOOKUP($F1172,FactSum,'COS Factor Table'!K$115,FALSE)*$H1172","v":3872.5245232321317},{"$f":"VLOOKUP($F1172,FactSum,'COS Factor Table'!L$115,FALSE)*$H1172","v":1642.3709542623935},{"$f":"VLOOKUP($F1172,FactSum,'COS Factor Table'!M$115,FALSE)*$H1172","v":0},{"$f":"VLOOKUP($F1172,FactSum,'COS Factor Table'!N$115,FALSE)*$H1172","v":0},{"$f":"ROUND(SUM(I1172:Q1172)-H1172,0)","v":0}]
[1173]
[1174,null,"OWC","Other Working Capital",null,{"$f":"IF(Function=\"gen\",\"F137G\",IF(Function=\"TRN\",\"F137T\",IF(Function=\"DIS\",\"F137D\",IF(Function=\"RETAIL\",\"F137R\",IF(Function=\"MISC\",\"F137M\",\"ERR\")))))","v":"F137D"},null,{"$f":"SUM(UAcctowc)-H1175","v":8.9437877837598556E-10},{"$f":"VLOOKUP($F1174,FactSum,'COS Factor Table'!F$115,FALSE)*$H1174","v":5.031182993111368E-10},{"$f":"VLOOKUP($F1174,FactSum,'COS Factor Table'!G$115,FALSE)*$H1174","v":1.3181918491346861E-10},{"$f":"VLOOKUP($F1174,FactSum,'COS Factor Table'!H$115,FALSE)*$H1174","v":1.2940930311505435E-10},{"$f":"VLOOKUP($F1174,FactSum,'COS Factor Table'!I$115,FALSE)*$H1174","v":4.6988341650258857E-11},{"$f":"VLOOKUP($F1174,FactSum,'COS Factor Table'!J$115,FALSE)*$H1174","v":1.8888605315047735E-11},{"$f":"VLOOKUP($F1174,FactSum,'COS Factor Table'!K$115,FALSE)*$H1174","v":4.5049263846960688E-11},{"$f":"VLOOKUP($F1174,FactSum,'COS Factor Table'!L$115,FALSE)*$H1174","v":1.9105780224058793E-11},{"$f":"VLOOKUP($F1174,FactSum,'COS Factor Table'!M$115,FALSE)*$H1174","v":0},{"$f":"VLOOKUP($F1174,FactSum,'COS Factor Table'!N$115,FALSE)*$H1174","v":0},{"$f":"ROUND(SUM(I1174:Q1174)-H1174,0)","v":0}]
[1175,null,null,null,"CAEE","F137D",null,{"$f":"SUM(UACCTOWCSSECH)","v":0},{"$f":"VLOOKUP($F1175,FactSum,'COS Factor Table'!F$115,FALSE)*$H1175","v":0},{"$f":"VLOOKUP($F1175,FactSum,'COS Factor Table'!G$115,FALSE)*$H1175","v":0},{"$f":"VLOOKUP($F1175,FactSum,'COS Factor Table'!H$115,FALSE)*$H1175","v":0},{"$f":"VLOOKUP($F1175,FactSum,'COS Factor Table'!I$115,FALSE)*$H1175","v":0},{"$f":"VLOOKUP($F1175,FactSum,'COS Factor Table'!J$115,FALSE)*$H1175","v":0},{"$f":"VLOOKUP($F1175,FactSum,'COS Factor Table'!K$115,FALSE)*$H1175","v":0},{"$f":"VLOOKUP($F1175,FactSum,'COS Factor Table'!L$115,FALSE)*$H1175","v":0},{"$f":"VLOOKUP($F1175,FactSum,'COS Factor Table'!M$115,FALSE)*$H1175","v":0},{"$f":"VLOOKUP($F1175,FactSum,'COS Factor Table'!N$115,FALSE)*$H1175","v":0},{"$f":"ROUND(SUM(I1175:Q1175)-H1175,0)","v":0}]
[1176,null,null,null,"Total Other Working Capital",null,null,{"$f":"SUM(H1174:H1175)","v":8.9437877837598556E-10},5.031182993111368E-10,1.3181918491346861E-10,1.2940930311505435E-10,4.6988341650258857E-11,{"$f":"SUM(M1174:M1175)","v":1.8888605315047735E-11},4.5049263846960688E-11,1.9105780224058793E-11,0,0,{"$f":"ROUND(SUM(I1176:Q1176)-H1176,0)","v":0}]
[1177]
[1178,null,"18222","Nuclear Plant",null,{"$f":"IF(Classification=\"DEMAND\",\"F12\",IF(Classification=\"ENERGY\",\"F30\",\"F10\"))","v":"F10"},null,{"$f":"SUM(UAcct18222)","v":0},{"$f":"VLOOKUP($F1178,FactSum,'COS Factor Table'!F$115,FALSE)*$H1178","v":0},{"$f":"VLOOKUP($F1178,FactSum,'COS Factor Table'!G$115,FALSE)*$H1178","v":0},{"$f":"VLOOKUP($F1178,FactSum,'COS Factor Table'!H$115,FALSE)*$H1178","v":0},{"$f":"VLOOKUP($F1178,FactSum,'COS Factor Table'!I$115,FALSE)*$H1178","v":0},{"$f":"VLOOKUP($F1178,FactSum,'COS Factor Table'!J$115,FALSE)*$H1178","v":0},{"$f":"VLOOKUP($F1178,FactSum,'COS Factor Table'!K$115,FALSE)*$H1178","v":0},{"$f":"VLOOKUP($F1178,FactSum,'COS Factor Table'!L$115,FALSE)*$H1178","v":0},{"$f":"VLOOKUP($F1178,FactSum,'COS Factor Table'!M$115,FALSE)*$H1178","v":0},{"$f":"VLOOKUP($F1178,FactSum,'COS Factor Table'!N$115,FALSE)*$H1178","v":0},{"$f":"ROUND(SUM(I1178:Q1178)-H1178,0)","v":0}]
[1179]
[1180,null,"1869","Misc Deferred Debits-Trojan",null,{"$f":"IF(Classification=\"DEMAND\",\"F12\",IF(Classification=\"ENERGY\",\"F30\",\"F10\"))","v":"F10"},null,{"$f":"SUM(UAcct1869)","v":0},{"$f":"VLOOKUP($F1180,FactSum,'COS Factor Table'!F$115,FALSE)*$H1180","v":0},{"$f":"VLOOKUP($F1180,FactSum,'COS Factor Table'!G$115,FALSE)*$H1180","v":0},{"$f":"VLOOKUP($F1180,FactSum,'COS Factor Table'!H$115,FALSE)*$H1180","v":0},{"$f":"VLOOKUP($F1180,FactSum,'COS Factor Table'!I$115,FALSE)*$H1180","v":0},{"$f":"VLOOKUP($F1180,FactSum,'COS Factor Table'!J$115,FALSE)*$H1180","v":0},{"$f":"VLOOKUP($F1180,FactSum,'COS Factor Table'!K$115,FALSE)*$H1180","v":0},{"$f":"VLOOKUP($F1180,FactSum,'COS Factor Table'!L$115,FALSE)*$H1180","v":0},{"$f":"VLOOKUP($F1180,FactSum,'COS Factor Table'!M$115,FALSE)*$H1180","v":0},{"$f":"VLOOKUP($F1180,FactSum,'COS Factor Table'!N$115,FALSE)*$H1180","v":0},{"$f":"ROUND(SUM(I1180:Q1180)-H1180,0)","v":0}]
[1181]
[1182,null,"141","Impact Housing - Notes Receivable",null,{"$f":"IF(Classification=\"DEMAND\",\"F12\",IF(Classification=\"ENERGY\",\"F30\",\"F10\"))","v":"F10"},null,{"$f":"SUM(UAcct141)","v":0},{"$f":"VLOOKUP($F1182,FactSum,'COS Factor Table'!F$115,FALSE)*$H1182","v":0},{"$f":"VLOOKUP($F1182,FactSum,'COS Factor Table'!G$115,FALSE)*$H1182","v":0},{"$f":"VLOOKUP($F1182,FactSum,'COS Factor Table'!H$115,FALSE)*$H1182","v":0},{"$f":"VLOOKUP($F1182,FactSum,'COS Factor Table'!I$115,FALSE)*$H1182","v":0},{"$f":"VLOOKUP($F1182,FactSum,'COS Factor Table'!J$115,FALSE)*$H1182","v":0},{"$f":"VLOOKUP($F1182,FactSum,'COS Factor Table'!K$115,FALSE)*$H1182","v":0},{"$f":"VLOOKUP($F1182,FactSum,'COS Factor Table'!L$115,FALSE)*$H1182","v":0},{"$f":"VLOOKUP($F1182,FactSum,'COS Factor Table'!M$115,FALSE)*$H1182","v":0},{"$f":"VLOOKUP($F1182,FactSum,'COS Factor Table'!N$115,FALSE)*$H1182","v":0},{"$f":"ROUND(SUM(I1182:Q1182)-H1182,0)","v":0}]
[1183,null,"TOTAL RATE BASE ADDITIONS",null,null,null,null,{"$f":"SUM(H1132,H1134,H1136,H1138,H1143,H1145,H1147,H1149,H1151,H1156,H1158,H1160,H1164,H1168,H1170,H1172,H1176:H1182)","v":76882.582679371262},43249.051944807194,11331.439908761777,11124.28166540993,4039.2115166792805,{"$f":"SUM(M1132,M1134,M1136,M1138,M1143,M1145,M1147,M1149,M1151,M1156,M1158,M1160,M1164,M1168,M1170,M1172,M1176:M1182)","v":1623.7021661648373},3872.5245232741413,1642.3709542741315,0,0,{"$f":"ROUND(SUM(I1183:Q1183)-H1183,0)","v":0}]
[1184]
[1185,null,{"$f":"$E$1","v":"Distribution - METER -  Unbundled"}]
[1186]
[1187,null,"A",null,"B",null,null,"D","E","F","G","H","I","J","K","S","T"]
[1188,null,null,null,null,null,null,{"$f":"'Hot Sheet'!$H$10","v":"Washington"},null,{"$f":"'Hot Sheet'!$J$10","v":"Small General"},{"$f":"'Hot Sheet'!$K$10","v":"Large General"},{"$f":"'Hot Sheet'!$L$10","v":"Large General"},{"$f":"'Hot Sheet'!$M$10","v":"Large General"},{"$f":"'Hot Sheet'!$N$10","v":"Agricultural"},{"$f":"'Hot Sheet'!$O$10","v":"Street & Area"}]
[1189,null,"FERC",null,null,null,null,{"$f":"'Hot Sheet'!$H$11","v":"Jurisdiction"},{"$f":"'Hot Sheet'!$I$11","v":"Residential"},{"$f":"'Hot Sheet'!$J$11","v":"Service"},{"$f":"'Hot Sheet'!$K$11","v":"Service <1,000 kW"},{"$f":"'Hot Sheet'!$L$11","v":"Service >1,000 kW"},{"$f":"'Hot Sheet'!$M$11","v":"Dedicated Facilities"},{"$f":"'Hot Sheet'!$N$11","v":"Pumping"},{"$f":"'Hot Sheet'!$O$11","v":"Lighting"},{"$f":"'Hot Sheet'!P$11","v":"-"},{"$f":"'Hot Sheet'!Q$11","v":"-"}]
[1190,null,"ACCT",null,"DESCRIPTION ",null,null,{"$f":"'Hot Sheet'!$H$12","v":"Normalized"},{"$f":"'Hot Sheet'!$I$12","v":"Schedule 16"},{"$f":"'Hot Sheet'!$J$12","v":"Schedule 24"},{"$f":"'Hot Sheet'!$K$12","v":"Schedule 36"},{"$f":"'Hot Sheet'!$L$12","v":"Schedule 48T"},{"$f":"'Hot Sheet'!$M$12","v":"Schedule 48T"},{"$f":"'Hot Sheet'!$N$12","v":"Schedule 40"},{"$f":"'Hot Sheet'!$O$12","v":"Sch. 15,51-54,57"},{"$f":"'Hot Sheet'!P$12","v":"-"},{"$f":"'Hot Sheet'!Q$12","v":"-"}]
[1191]
[1192,null,"235","Customer Service Deposits",null,"F51",null,{"$f":"SUM(UAcct235)-H1193","v":0},{"$f":"VLOOKUP($F1192,FactSum,'COS Factor Table'!F$115,FALSE)*$H1192","v":0},{"$f":"VLOOKUP($F1192,FactSum,'COS Factor Table'!G$115,FALSE)*$H1192","v":0},{"$f":"VLOOKUP($F1192,FactSum,'COS Factor Table'!H$115,FALSE)*$H1192","v":0},{"$f":"VLOOKUP($F1192,FactSum,'COS Factor Table'!I$115,FALSE)*$H1192","v":0},{"$f":"VLOOKUP($F1192,FactSum,'COS Factor Table'!J$115,FALSE)*$H1192","v":0},{"$f":"VLOOKUP($F1192,FactSum,'COS Factor Table'!K$115,FALSE)*$H1192","v":0},{"$f":"VLOOKUP($F1192,FactSum,'COS Factor Table'!L$115,FALSE)*$H1192","v":0},{"$f":"VLOOKUP($F1192,FactSum,'COS Factor Table'!M$115,FALSE)*$H1192","v":0},{"$f":"VLOOKUP($F1192,FactSum,'COS Factor Table'!N$115,FALSE)*$H1192","v":0},{"$f":"ROUND(SUM(I1192:Q1192)-H1192,0)","v":0}]
[1193,null,null,null,null,"F51",null,{"$f":"SUM(UACCT235CN)","v":0},{"$f":"VLOOKUP($F1193,FactSum,'COS Factor Table'!F$115,FALSE)*$H1193","v":0},{"$f":"VLOOKUP($F1193,FactSum,'COS Factor Table'!G$115,FALSE)*$H1193","v":0},{"$f":"VLOOKUP($F1193,FactSum,'COS Factor Table'!H$115,FALSE)*$H1193","v":0},{"$f":"VLOOKUP($F1193,FactSum,'COS Factor Table'!I$115,FALSE)*$H1193","v":0},{"$f":"VLOOKUP($F1193,FactSum,'COS Factor Table'!J$115,FALSE)*$H1193","v":0},{"$f":"VLOOKUP($F1193,FactSum,'COS Factor Table'!K$115,FALSE)*$H1193","v":0},{"$f":"VLOOKUP($F1193,FactSum,'COS Factor Table'!L$115,FALSE)*$H1193","v":0},{"$f":"VLOOKUP($F1193,FactSum,'COS Factor Table'!M$115,FALSE)*$H1193","v":0},{"$f":"VLOOKUP($F1193,FactSum,'COS Factor Table'!N$115,FALSE)*$H1193","v":0},{"$f":"ROUND(SUM(I1193:Q1193)-H1193,0)","v":0}]
[1194,null,null,null,null,null,null,{"$f":"SUM(H1192:H1193)","v":0},{"$f":"SUM(I1192:I1193)","v":0},0,0,0,{"$f":"SUM(M1192:M1193)","v":0},0,0,0,0,0]
[1195]
[1196,null,"2281","Accum Prov for Property Insurance",null,{"$f":"IF(Function=\"gen\",\"F102G\",IF(Function=\"TRN\",\"F102T\",IF(Function=\"DIS\",\"F102D\",IF(Function=\"RETAIL\",\"F102R\",IF(Function=\"MISC\",\"F102M\",\"ERR\")))))","v":"F102D"},null,{"$f":"SUM(UAcct2281)","v":0},{"$f":"VLOOKUP($F1196,FactSum,'COS Factor Table'!F$115,FALSE)*$H1196","v":0},{"$f":"VLOOKUP($F1196,FactSum,'COS Factor Table'!G$115,FALSE)*$H1196","v":0},{"$f":"VLOOKUP($F1196,FactSum,'COS Factor Table'!H$115,FALSE)*$H1196","v":0},{"$f":"VLOOKUP($F1196,FactSum,'COS Factor Table'!I$115,FALSE)*$H1196","v":0},{"$f":"VLOOKUP($F1196,FactSum,'COS Factor Table'!J$115,FALSE)*$H1196","v":0},{"$f":"VLOOKUP($F1196,FactSum,'COS Factor Table'!K$115,FALSE)*$H1196","v":0},{"$f":"VLOOKUP($F1196,FactSum,'COS Factor Table'!L$115,FALSE)*$H1196","v":0},{"$f":"VLOOKUP($F1196,FactSum,'COS Factor Table'!M$115,FALSE)*$H1196","v":0},{"$f":"VLOOKUP($F1196,FactSum,'COS Factor Table'!N$115,FALSE)*$H1196","v":0},{"$f":"ROUND(SUM(I1196:Q1196)-H1196,0)","v":0}]
[1197]
[1198,null,"2282","Accum Prov for Injuries & Damages",null,{"$f":"IF(Function=\"gen\",\"F102G\",IF(Function=\"TRN\",\"F102T\",IF(Function=\"DIS\",\"F102D\",IF(Function=\"RETAIL\",\"F102R\",IF(Function=\"MISC\",\"F102M\",\"ERR\")))))","v":"F102D"},null,{"$f":"SUM(UAcct2282)","v":-3790.0805344655264},{"$f":"VLOOKUP($F1198,FactSum,'COS Factor Table'!F$115,FALSE)*$H1198","v":-2243.8480202309129},{"$f":"VLOOKUP($F1198,FactSum,'COS Factor Table'!G$115,FALSE)*$H1198","v":-569.0904407218452},{"$f":"VLOOKUP($F1198,FactSum,'COS Factor Table'!H$115,FALSE)*$H1198","v":-532.5288391042385},{"$f":"VLOOKUP($F1198,FactSum,'COS Factor Table'!I$115,FALSE)*$H1198","v":-185.83305761583222},{"$f":"VLOOKUP($F1198,FactSum,'COS Factor Table'!J$115,FALSE)*$H1198","v":-25.762837058696071},{"$f":"VLOOKUP($F1198,FactSum,'COS Factor Table'!K$115,FALSE)*$H1198","v":-182.15305942300023},{"$f":"VLOOKUP($F1198,FactSum,'COS Factor Table'!L$115,FALSE)*$H1198","v":-50.864280311001032},{"$f":"VLOOKUP($F1198,FactSum,'COS Factor Table'!M$115,FALSE)*$H1198","v":0},{"$f":"VLOOKUP($F1198,FactSum,'COS Factor Table'!N$115,FALSE)*$H1198","v":0},{"$f":"ROUND(SUM(I1198:Q1198)-H1198,0)","v":0}]
[1199]
[1200,null," 2283","Accum Prov for Pension & Benefits",null,{"$f":"IF(Function=\"gen\",\"F102G\",IF(Function=\"TRN\",\"F102T\",IF(Function=\"DIS\",\"F102D\",IF(Function=\"RETAIL\",\"F102R\",IF(Function=\"MISC\",\"F102M\",\"ERR\")))))","v":"F102D"},null,{"$f":"SUM(UAcct2283)","v":-1936.2939795232235},{"$f":"VLOOKUP($F1200,FactSum,'COS Factor Table'!F$115,FALSE)*$H1200","v":-1146.3475176922364},{"$f":"VLOOKUP($F1200,FactSum,'COS Factor Table'!G$115,FALSE)*$H1200","v":-290.73957245853597},{"$f":"VLOOKUP($F1200,FactSum,'COS Factor Table'!H$115,FALSE)*$H1200","v":-272.06081129498682},{"$f":"VLOOKUP($F1200,FactSum,'COS Factor Table'!I$115,FALSE)*$H1200","v":-94.939257196726231},{"$f":"VLOOKUP($F1200,FactSum,'COS Factor Table'!J$115,FALSE)*$H1200","v":-13.161838076674444},{"$f":"VLOOKUP($F1200,FactSum,'COS Factor Table'!K$115,FALSE)*$H1200","v":-93.059202596134028},{"$f":"VLOOKUP($F1200,FactSum,'COS Factor Table'!L$115,FALSE)*$H1200","v":-25.985780207929444},{"$f":"VLOOKUP($F1200,FactSum,'COS Factor Table'!M$115,FALSE)*$H1200","v":0},{"$f":"VLOOKUP($F1200,FactSum,'COS Factor Table'!N$115,FALSE)*$H1200","v":0},{"$f":"ROUND(SUM(I1200:Q1200)-H1200,0)","v":0}]
[1201]
[1202,null,254,"Reg Liabilities - Insurance Provision",null,{"$f":"IF(Function=\"gen\",\"F102G\",IF(Function=\"TRN\",\"F102T\",IF(Function=\"DIS\",\"F102D\",IF(Function=\"RETAIL\",\"F102R\",IF(Function=\"MISC\",\"F102M\",\"ERR\")))))","v":"F102D"},null,{"$f":"SUM(UACCT254SO)","v":0},{"$f":"VLOOKUP($F1202,FactSum,'COS Factor Table'!F$115,FALSE)*$H1202","v":0},{"$f":"VLOOKUP($F1202,FactSum,'COS Factor Table'!G$115,FALSE)*$H1202","v":0},{"$f":"VLOOKUP($F1202,FactSum,'COS Factor Table'!H$115,FALSE)*$H1202","v":0},{"$f":"VLOOKUP($F1202,FactSum,'COS Factor Table'!I$115,FALSE)*$H1202","v":0},{"$f":"VLOOKUP($F1202,FactSum,'COS Factor Table'!J$115,FALSE)*$H1202","v":0},{"$f":"VLOOKUP($F1202,FactSum,'COS Factor Table'!K$115,FALSE)*$H1202","v":0},{"$f":"VLOOKUP($F1202,FactSum,'COS Factor Table'!L$115,FALSE)*$H1202","v":0},{"$f":"VLOOKUP($F1202,FactSum,'COS Factor Table'!M$115,FALSE)*$H1202","v":0},{"$f":"VLOOKUP($F1202,FactSum,'COS Factor Table'!N$115,FALSE)*$H1202","v":0},{"$f":"ROUND(SUM(I1202:Q1202)-H1202,0)","v":0}]
[1203]
[1204,null,22844,"Hydro Relicensing Obligations",null,{"$f":"IF(Classification=\"DEMAND\",\"F12\",IF(Classification=\"ENERGY\",\"F30\",\"F10\"))","v":"F10"},null,{"$f":"SUM(UACCT22841SG)","v":0},{"$f":"VLOOKUP($F1204,FactSum,'COS Factor Table'!F$115,FALSE)*$H1204","v":0},{"$f":"VLOOKUP($F1204,FactSum,'COS Factor Table'!G$115,FALSE)*$H1204","v":0},{"$f":"VLOOKUP($F1204,FactSum,'COS Factor Table'!H$115,FALSE)*$H1204","v":0},{"$f":"VLOOKUP($F1204,FactSum,'COS Factor Table'!I$115,FALSE)*$H1204","v":0},{"$f":"VLOOKUP($F1204,FactSum,'COS Factor Table'!J$115,FALSE)*$H1204","v":0},{"$f":"VLOOKUP($F1204,FactSum,'COS Factor Table'!K$115,FALSE)*$H1204","v":0},{"$f":"VLOOKUP($F1204,FactSum,'COS Factor Table'!L$115,FALSE)*$H1204","v":0},{"$f":"VLOOKUP($F1204,FactSum,'COS Factor Table'!M$115,FALSE)*$H1204","v":0},{"$f":"VLOOKUP($F1204,FactSum,'COS Factor Table'!N$115,FALSE)*$H1204","v":0},{"$f":"ROUND(SUM(I1204:Q1204)-H1204,0)","v":0}]
[1205]
[1206,null,"22842","Accum Misc Oper Prov - Trojan",null,{"$f":"IF(Classification=\"DEMAND\",\"F12\",IF(Classification=\"ENERGY\",\"F30\",\"F10\"))","v":"F10"},null,{"$f":"SUM(UAcct22842)","v":0},{"$f":"VLOOKUP($F1206,FactSum,'COS Factor Table'!F$115,FALSE)*$H1206","v":0},{"$f":"VLOOKUP($F1206,FactSum,'COS Factor Table'!G$115,FALSE)*$H1206","v":0},{"$f":"VLOOKUP($F1206,FactSum,'COS Factor Table'!H$115,FALSE)*$H1206","v":0},{"$f":"VLOOKUP($F1206,FactSum,'COS Factor Table'!I$115,FALSE)*$H1206","v":0},{"$f":"VLOOKUP($F1206,FactSum,'COS Factor Table'!J$115,FALSE)*$H1206","v":0},{"$f":"VLOOKUP($F1206,FactSum,'COS Factor Table'!K$115,FALSE)*$H1206","v":0},{"$f":"VLOOKUP($F1206,FactSum,'COS Factor Table'!L$115,FALSE)*$H1206","v":0},{"$f":"VLOOKUP($F1206,FactSum,'COS Factor Table'!M$115,FALSE)*$H1206","v":0},{"$f":"VLOOKUP($F1206,FactSum,'COS Factor Table'!N$115,FALSE)*$H1206","v":0},{"$f":"ROUND(SUM(I1206:Q1206)-H1206,0)","v":0}]
[1207]
[1208]
[1209,null,"252","Customer Advances for Const",null,"F50",null,{"$f":"SUM(UAcct252)","v":-4583.9343430603258},{"$f":"VLOOKUP($F1209,FactSum,'COS Factor Table'!F$115,FALSE)*$H1209","v":-1688.3240977838364},{"$f":"VLOOKUP($F1209,FactSum,'COS Factor Table'!G$115,FALSE)*$H1209","v":-2623.2074769995911},{"$f":"VLOOKUP($F1209,FactSum,'COS Factor Table'!H$115,FALSE)*$H1209","v":0},{"$f":"VLOOKUP($F1209,FactSum,'COS Factor Table'!I$115,FALSE)*$H1209","v":0},{"$f":"VLOOKUP($F1209,FactSum,'COS Factor Table'!J$115,FALSE)*$H1209","v":0},{"$f":"VLOOKUP($F1209,FactSum,'COS Factor Table'!K$115,FALSE)*$H1209","v":-272.40276827689826},{"$f":"VLOOKUP($F1209,FactSum,'COS Factor Table'!L$115,FALSE)*$H1209","v":0},{"$f":"VLOOKUP($F1209,FactSum,'COS Factor Table'!M$115,FALSE)*$H1209","v":0},{"$f":"VLOOKUP($F1209,FactSum,'COS Factor Table'!N$115,FALSE)*$H1209","v":0},{"$f":"ROUND(SUM(I1209:Q1209)-H1209,0)","v":0}]
[1210]
[1211,null,"25398","SO2 Emmissions",null,{"$f":"IF(Classification=\"DEMAND\",\"F12\",IF(Classification=\"ENERGY\",\"F30\",\"F10\"))","v":"F10"},null,{"$f":"SUM(uacct25398)","v":0},{"$f":"VLOOKUP($F1211,FactSum,'COS Factor Table'!F$115,FALSE)*$H1211","v":0},{"$f":"VLOOKUP($F1211,FactSum,'COS Factor Table'!G$115,FALSE)*$H1211","v":0},{"$f":"VLOOKUP($F1211,FactSum,'COS Factor Table'!H$115,FALSE)*$H1211","v":0},{"$f":"VLOOKUP($F1211,FactSum,'COS Factor Table'!I$115,FALSE)*$H1211","v":0},{"$f":"VLOOKUP($F1211,FactSum,'COS Factor Table'!J$115,FALSE)*$H1211","v":0},{"$f":"VLOOKUP($F1211,FactSum,'COS Factor Table'!K$115,FALSE)*$H1211","v":0},{"$f":"VLOOKUP($F1211,FactSum,'COS Factor Table'!L$115,FALSE)*$H1211","v":0},{"$f":"VLOOKUP($F1211,FactSum,'COS Factor Table'!M$115,FALSE)*$H1211","v":0},{"$f":"VLOOKUP($F1211,FactSum,'COS Factor Table'!N$115,FALSE)*$H1211","v":0},{"$f":"ROUND(SUM(I1211:Q1211)-H1211,0)","v":0}]
[1212]
[1213,null,"25399","Other Deferred Credits",null,{"$f":"IF(Classification=\"DEMAND\",\"F12\",IF(Classification=\"ENERGY\",\"F30\",\"F10\"))","v":"F10"},null,{"$f":"SUM(UAcct25399)","v":0},{"$f":"VLOOKUP($F1213,FactSum,'COS Factor Table'!F$115,FALSE)*$H1213","v":0},{"$f":"VLOOKUP($F1213,FactSum,'COS Factor Table'!G$115,FALSE)*$H1213","v":0},{"$f":"VLOOKUP($F1213,FactSum,'COS Factor Table'!H$115,FALSE)*$H1213","v":0},{"$f":"VLOOKUP($F1213,FactSum,'COS Factor Table'!I$115,FALSE)*$H1213","v":0},{"$f":"VLOOKUP($F1213,FactSum,'COS Factor Table'!J$115,FALSE)*$H1213","v":0},{"$f":"VLOOKUP($F1213,FactSum,'COS Factor Table'!K$115,FALSE)*$H1213","v":0},{"$f":"VLOOKUP($F1213,FactSum,'COS Factor Table'!L$115,FALSE)*$H1213","v":0},{"$f":"VLOOKUP($F1213,FactSum,'COS Factor Table'!M$115,FALSE)*$H1213","v":0},{"$f":"VLOOKUP($F1213,FactSum,'COS Factor Table'!N$115,FALSE)*$H1213","v":0},{"$f":"ROUND(SUM(I1213:Q1213)-H1213,0)","v":0}]
[1214]
[1215,null,"190","Accum Deferred Income Taxes",null,{"$f":"IF(Function=\"gen\",\"F104G\",IF(Function=\"TRN\",\"F104T\",IF(Function=\"DIS\",\"F104D\",IF(Function=\"RETAIL\",\"F104R\",IF(Function=\"MISC\",\"F104M\",\"ERR\")))))","v":"F104D"},null,{"$f":"SUM(UAcct190)-H1216-H1217","v":-8.3774093278421446E-4},{"$f":"VLOOKUP($F1215,FactSum,'COS Factor Table'!F$115,FALSE)*$H1215","v":-4.9956161218734697E-4},{"$f":"VLOOKUP($F1215,FactSum,'COS Factor Table'!G$115,FALSE)*$H1215","v":-1.2676131340937823E-4},{"$f":"VLOOKUP($F1215,FactSum,'COS Factor Table'!H$115,FALSE)*$H1215","v":-1.1553328503373887E-4},{"$f":"VLOOKUP($F1215,FactSum,'COS Factor Table'!I$115,FALSE)*$H1215","v":-3.9936832723473501E-5},{"$f":"VLOOKUP($F1215,FactSum,'COS Factor Table'!J$115,FALSE)*$H1215","v":-6.5299333534111321E-6},{"$f":"VLOOKUP($F1215,FactSum,'COS Factor Table'!K$115,FALSE)*$H1215","v":-3.9696349333722459E-5},{"$f":"VLOOKUP($F1215,FactSum,'COS Factor Table'!L$115,FALSE)*$H1215","v":-9.7216067431431094E-6},{"$f":"VLOOKUP($F1215,FactSum,'COS Factor Table'!M$115,FALSE)*$H1215","v":0},{"$f":"VLOOKUP($F1215,FactSum,'COS Factor Table'!N$115,FALSE)*$H1215","v":0},{"$f":"ROUND(SUM(I1215:Q1215)-H1215,0)","v":0}]
[1216,null,null,null," Labor",{"$f":"IF(Function=\"gen\",\"F138G\",IF(Function=\"TRN\",\"F138T\",IF(Function=\"DIS\",\"F138D\",IF(Function=\"RETAIL\",\"F138R\",IF(Function=\"MISC\",\"F138M\",\"ERR\")))))","v":"F138D"},null,{"$f":"UAcct190Dop","v":-0.37274936077624266},{"$f":"VLOOKUP($F1216,FactSum,'COS Factor Table'!F$115,FALSE)*$H1216","v":-0.21000719583287075},{"$f":"VLOOKUP($F1216,FactSum,'COS Factor Table'!G$115,FALSE)*$H1216","v":-5.4968827935554576E-2},{"$f":"VLOOKUP($F1216,FactSum,'COS Factor Table'!H$115,FALSE)*$H1216","v":-5.3132953294868175E-2},{"$f":"VLOOKUP($F1216,FactSum,'COS Factor Table'!I$115,FALSE)*$H1216","v":-1.9305507848898337E-2},{"$f":"VLOOKUP($F1216,FactSum,'COS Factor Table'!J$115,FALSE)*$H1216","v":-7.4335566748242295E-3},{"$f":"VLOOKUP($F1216,FactSum,'COS Factor Table'!K$115,FALSE)*$H1216","v":-1.9155752418155952E-2},{"$f":"VLOOKUP($F1216,FactSum,'COS Factor Table'!L$115,FALSE)*$H1216","v":-8.7455667710707712E-3},{"$f":"VLOOKUP($F1216,FactSum,'COS Factor Table'!M$115,FALSE)*$H1216","v":0},{"$f":"VLOOKUP($F1216,FactSum,'COS Factor Table'!N$115,FALSE)*$H1216","v":0},{"$f":"ROUND(SUM(I1216:Q1216)-H1216,0)","v":0}]
[1217,null,null,null,"Customer - System","F42",null,{"$f":"UAcct190Baddebt","v":0},{"$f":"VLOOKUP($F1217,FactSum,'COS Factor Table'!F$115,FALSE)*$H1217","v":0},{"$f":"VLOOKUP($F1217,FactSum,'COS Factor Table'!G$115,FALSE)*$H1217","v":0},{"$f":"VLOOKUP($F1217,FactSum,'COS Factor Table'!H$115,FALSE)*$H1217","v":0},{"$f":"VLOOKUP($F1217,FactSum,'COS Factor Table'!I$115,FALSE)*$H1217","v":0},{"$f":"VLOOKUP($F1217,FactSum,'COS Factor Table'!J$115,FALSE)*$H1217","v":0},{"$f":"VLOOKUP($F1217,FactSum,'COS Factor Table'!K$115,FALSE)*$H1217","v":0},{"$f":"VLOOKUP($F1217,FactSum,'COS Factor Table'!L$115,FALSE)*$H1217","v":0},{"$f":"VLOOKUP($F1217,FactSum,'COS Factor Table'!M$115,FALSE)*$H1217","v":0},{"$f":"VLOOKUP($F1217,FactSum,'COS Factor Table'!N$115,FALSE)*$H1217","v":0},{"$f":"ROUND(SUM(I1217:Q1217)-H1217,0)","v":0}]
[{"$f":"A1217+1","v":1218},null,null,null,{"$f":"\"Total \"&D1215","v":"Total Accum Deferred Income Taxes"},null,null,{"$f":"SUM(H1215:H1217)","v":-0.37358710170902687},{"$f":"SUM(I1215:I1217)","v":-0.21050675744505809},-5.5095589248963954E-2,-5.3248486579901916E-2,-1.9345444681621811E-2,{"$f":"SUM(M1215:M1217)","v":-7.4400866081776405E-3},-1.9195448767489676E-2,-8.7552883778139138E-3,{"$f":"SUM(P1215:P1217)","v":0},{"$f":"SUM(Q1215:Q1217)","v":0},{"$f":"ROUND(SUM(I1218:Q1218)-H1218,0)","v":0}]
[1219]
[1220,null,"281","Accum Deferred Income Taxes",null,{"$f":"IF(Function=\"gen\",\"F104G\",IF(Function=\"TRN\",\"F104T\",IF(Function=\"DIS\",\"F104D\",IF(Function=\"RETAIL\",\"F104R\",IF(Function=\"MISC\",\"F104M\",\"ERR\")))))","v":"F104D"},null,{"$f":"SUM(UAcct281)","v":0},{"$f":"VLOOKUP($F1220,FactSum,'COS Factor Table'!F$115,FALSE)*$H1220","v":0},{"$f":"VLOOKUP($F1220,FactSum,'COS Factor Table'!G$115,FALSE)*$H1220","v":0},{"$f":"VLOOKUP($F1220,FactSum,'COS Factor Table'!H$115,FALSE)*$H1220","v":0},{"$f":"VLOOKUP($F1220,FactSum,'COS Factor Table'!I$115,FALSE)*$H1220","v":0},{"$f":"VLOOKUP($F1220,FactSum,'COS Factor Table'!J$115,FALSE)*$H1220","v":0},{"$f":"VLOOKUP($F1220,FactSum,'COS Factor Table'!K$115,FALSE)*$H1220","v":0},{"$f":"VLOOKUP($F1220,FactSum,'COS Factor Table'!L$115,FALSE)*$H1220","v":0},{"$f":"VLOOKUP($F1220,FactSum,'COS Factor Table'!M$115,FALSE)*$H1220","v":0},{"$f":"VLOOKUP($F1220,FactSum,'COS Factor Table'!N$115,FALSE)*$H1220","v":0},{"$f":"ROUND(SUM(I1220:Q1220)-H1220,0)","v":0}]
[1221]
[1222,null,"282","Accum Deferred Income Taxes ",null,{"$f":"IF(Function=\"gen\",\"F104G\",IF(Function=\"TRN\",\"F104T\",IF(Function=\"DIS\",\"F104D\",IF(Function=\"RETAIL\",\"F104R\",IF(Function=\"MISC\",\"F104M\",\"ERR\")))))","v":"F104D"},null,{"$f":"SUM(UAcct282)-H1223-H1224","v":-1674965.3130174598},{"$f":"VLOOKUP($F1222,FactSum,'COS Factor Table'!F$115,FALSE)*$H1222","v":-998815.19379502069},{"$f":"VLOOKUP($F1222,FactSum,'COS Factor Table'!G$115,FALSE)*$H1222","v":-253444.46556717696},{"$f":"VLOOKUP($F1222,FactSum,'COS Factor Table'!H$115,FALSE)*$H1222","v":-230995.33203818905},{"$f":"VLOOKUP($F1222,FactSum,'COS Factor Table'!I$115,FALSE)*$H1222","v":-79849.040324771864},{"$f":"VLOOKUP($F1222,FactSum,'COS Factor Table'!J$115,FALSE)*$H1222","v":-13055.840338288315},{"$f":"VLOOKUP($F1222,FactSum,'COS Factor Table'!K$115,FALSE)*$H1222","v":-79368.221827756133},{"$f":"VLOOKUP($F1222,FactSum,'COS Factor Table'!L$115,FALSE)*$H1222","v":-19437.219126256561},{"$f":"VLOOKUP($F1222,FactSum,'COS Factor Table'!M$115,FALSE)*$H1222","v":0},{"$f":"VLOOKUP($F1222,FactSum,'COS Factor Table'!N$115,FALSE)*$H1222","v":0},{"$f":"ROUND(SUM(I1222:Q1222)-H1222,0)","v":0}]
[1223,null,null,null," Labor",{"$f":"IF(Function=\"gen\",\"F138G\",IF(Function=\"TRN\",\"F138T\",IF(Function=\"DIS\",\"F138D\",IF(Function=\"RETAIL\",\"F138R\",IF(Function=\"MISC\",\"F138M\",\"ERR\")))))","v":"F138D"},null,{"$f":"UAcct282So","v":-3.9140639872677777E-3},{"$f":"VLOOKUP($F1223,FactSum,'COS Factor Table'!F$115,FALSE)*$H1223","v":-2.2051858132359284E-3},{"$f":"VLOOKUP($F1223,FactSum,'COS Factor Table'!G$115,FALSE)*$H1223","v":-5.7720155279897647E-4},{"$f":"VLOOKUP($F1223,FactSum,'COS Factor Table'!H$115,FALSE)*$H1223","v":-5.5792390520949524E-4},{"$f":"VLOOKUP($F1223,FactSum,'COS Factor Table'!I$115,FALSE)*$H1223","v":-2.0271796810041487E-4},{"$f":"VLOOKUP($F1223,FactSum,'COS Factor Table'!J$115,FALSE)*$H1223","v":-7.805624781663726E-5},{"$f":"VLOOKUP($F1223,FactSum,'COS Factor Table'!K$115,FALSE)*$H1223","v":-2.0114545745372755E-4},{"$f":"VLOOKUP($F1223,FactSum,'COS Factor Table'!L$115,FALSE)*$H1223","v":-9.1833042652599375E-5},{"$f":"VLOOKUP($F1223,FactSum,'COS Factor Table'!M$115,FALSE)*$H1223","v":0},{"$f":"VLOOKUP($F1223,FactSum,'COS Factor Table'!N$115,FALSE)*$H1223","v":0},{"$f":"ROUND(SUM(I1223:Q1223)-H1223,0)","v":0}]
[1224,null,null,null,"Customer - System","F42",null,{"$f":"UAcct282Cn","v":0},{"$f":"VLOOKUP($F1224,FactSum,'COS Factor Table'!F$115,FALSE)*$H1224","v":0},{"$f":"VLOOKUP($F1224,FactSum,'COS Factor Table'!G$115,FALSE)*$H1224","v":0},{"$f":"VLOOKUP($F1224,FactSum,'COS Factor Table'!H$115,FALSE)*$H1224","v":0},{"$f":"VLOOKUP($F1224,FactSum,'COS Factor Table'!I$115,FALSE)*$H1224","v":0},{"$f":"VLOOKUP($F1224,FactSum,'COS Factor Table'!J$115,FALSE)*$H1224","v":0},{"$f":"VLOOKUP($F1224,FactSum,'COS Factor Table'!K$115,FALSE)*$H1224","v":0},{"$f":"VLOOKUP($F1224,FactSum,'COS Factor Table'!L$115,FALSE)*$H1224","v":0},{"$f":"VLOOKUP($F1224,FactSum,'COS Factor Table'!M$115,FALSE)*$H1224","v":0},{"$f":"VLOOKUP($F1224,FactSum,'COS Factor Table'!N$115,FALSE)*$H1224","v":0},{"$f":"ROUND(SUM(I1224:Q1224)-H1224,0)","v":0}]
[1225,null,null,null,{"$f":"\"Total \"&D1222","v":"Total Accum Deferred Income Taxes "},null,null,{"$f":"SUM(H1222:H1224)","v":-1674965.3169315238},-998815.19600020652,-253444.4661443785,-230995.33259611294,-79849.040527489837,{"$f":"SUM(M1222:M1224)","v":-13055.840416344563},-79368.222028901597,-19437.219218089605,{"$f":"SUM(P1222:P1224)","v":0},{"$f":"SUM(Q1222:Q1224)","v":0},{"$f":"ROUND(SUM(I1225:Q1225)-H1225,0)","v":0}]
[1226]
[1227,null,"283","Accum Deferred Income Taxes ",null,{"$f":"IF(Function=\"gen\",\"F104G\",IF(Function=\"TRN\",\"F104T\",IF(Function=\"DIS\",\"F104D\",IF(Function=\"RETAIL\",\"F104R\",IF(Function=\"MISC\",\"F104M\",\"ERR\")))))","v":"F104D"},null,{"$f":"SUM(UAcct283)-H1228-H1229","v":-21184.307230657032},{"$f":"VLOOKUP($F1227,FactSum,'COS Factor Table'!F$115,FALSE)*$H1227","v":-12632.624549032316},{"$f":"VLOOKUP($F1227,FactSum,'COS Factor Table'!G$115,FALSE)*$H1227","v":-3205.4666342984665},{"$f":"VLOOKUP($F1227,FactSum,'COS Factor Table'!H$115,FALSE)*$H1227","v":-2921.5387594678032},{"$f":"VLOOKUP($F1227,FactSum,'COS Factor Table'!I$115,FALSE)*$H1227","v":-1009.8994821962959},{"$f":"VLOOKUP($F1227,FactSum,'COS Factor Table'!J$115,FALSE)*$H1227","v":-165.1251704923049},{"$f":"VLOOKUP($F1227,FactSum,'COS Factor Table'!K$115,FALSE)*$H1227","v":-1003.8182775983248},{"$f":"VLOOKUP($F1227,FactSum,'COS Factor Table'!L$115,FALSE)*$H1227","v":-245.83435757151696},{"$f":"VLOOKUP($F1227,FactSum,'COS Factor Table'!M$115,FALSE)*$H1227","v":0},{"$f":"VLOOKUP($F1227,FactSum,'COS Factor Table'!N$115,FALSE)*$H1227","v":0},{"$f":"ROUND(SUM(I1227:Q1227)-H1227,0)","v":0}]
[1228,null,null,null," Labor",{"$f":"IF(Function=\"gen\",\"F138G\",IF(Function=\"TRN\",\"F138T\",IF(Function=\"DIS\",\"F138D\",IF(Function=\"RETAIL\",\"F138R\",IF(Function=\"MISC\",\"F138M\",\"ERR\")))))","v":"F138D"},null,{"$f":"UAcct283So","v":-960.87700726401113},{"$f":"VLOOKUP($F1228,FactSum,'COS Factor Table'!F$115,FALSE)*$H1228","v":-541.35863684801575},{"$f":"VLOOKUP($F1228,FactSum,'COS Factor Table'!G$115,FALSE)*$H1228","v":-141.69919103156369},{"$f":"VLOOKUP($F1228,FactSum,'COS Factor Table'!H$115,FALSE)*$H1228","v":-136.966655134571},{"$f":"VLOOKUP($F1228,FactSum,'COS Factor Table'!I$115,FALSE)*$H1228","v":-49.765930025824517},{"$f":"VLOOKUP($F1228,FactSum,'COS Factor Table'!J$115,FALSE)*$H1228","v":-19.162296284446814},{"$f":"VLOOKUP($F1228,FactSum,'COS Factor Table'!K$115,FALSE)*$H1228","v":-49.379888987917404},{"$f":"VLOOKUP($F1228,FactSum,'COS Factor Table'!L$115,FALSE)*$H1228","v":-22.544408951672331},{"$f":"VLOOKUP($F1228,FactSum,'COS Factor Table'!M$115,FALSE)*$H1228","v":0},{"$f":"VLOOKUP($F1228,FactSum,'COS Factor Table'!N$115,FALSE)*$H1228","v":0},{"$f":"ROUND(SUM(I1228:Q1228)-H1228,0)","v":0}]
[1229,null,null,null,"Customer - System","F42",null,0,{"$f":"VLOOKUP($F1229,FactSum,'COS Factor Table'!F$115,FALSE)*$H1229","v":0},{"$f":"VLOOKUP($F1229,FactSum,'COS Factor Table'!G$115,FALSE)*$H1229","v":0},{"$f":"VLOOKUP($F1229,FactSum,'COS Factor Table'!H$115,FALSE)*$H1229","v":0},{"$f":"VLOOKUP($F1229,FactSum,'COS Factor Table'!I$115,FALSE)*$H1229","v":0},{"$f":"VLOOKUP($F1229,FactSum,'COS Factor Table'!J$115,FALSE)*$H1229","v":0},{"$f":"VLOOKUP($F1229,FactSum,'COS Factor Table'!K$115,FALSE)*$H1229","v":0},{"$f":"VLOOKUP($F1229,FactSum,'COS Factor Table'!L$115,FALSE)*$H1229","v":0},{"$f":"VLOOKUP($F1229,FactSum,'COS Factor Table'!M$115,FALSE)*$H1229","v":0},{"$f":"VLOOKUP($F1229,FactSum,'COS Factor Table'!N$115,FALSE)*$H1229","v":0},{"$f":"ROUND(SUM(I1229:Q1229)-H1229,0)","v":0}]
[1230,null,null,null,{"$f":"\"Total \"&D1227","v":"Total Accum Deferred Income Taxes "},null,null,{"$f":"SUM(H1227:H1229)","v":-22145.184237921043},-13173.983185880332,-3347.1658253300302,-3058.505414602374,-1059.6654122221205,{"$f":"SUM(M1227:M1229)","v":-184.28746677675173},-1053.1981665862422,-268.37876652318931,{"$f":"SUM(P1227:P1229)","v":0},{"$f":"SUM(Q1227:Q1229)","v":0},{"$f":"ROUND(SUM(I1230:Q1230)-H1230,0)","v":0}]
[1231]
[1232,null,"255","Accum Investment Tax Credit",null,{"$f":"IF(Function=\"gen\",\"F104G\",IF(Function=\"TRN\",\"F104T\",IF(Function=\"DIS\",\"F104D\",IF(Function=\"RETAIL\",\"F104R\",IF(Function=\"MISC\",\"F104M\",\"ERR\")))))","v":"F104D"},null,{"$f":"SUM(UAcct255)","v":-4351.3636747668588},{"$f":"VLOOKUP($F1232,FactSum,'COS Factor Table'!F$115,FALSE)*$H1232","v":-2594.8048704693197},{"$f":"VLOOKUP($F1232,FactSum,'COS Factor Table'!G$115,FALSE)*$H1232","v":-658.41903260250854},{"$f":"VLOOKUP($F1232,FactSum,'COS Factor Table'!H$115,FALSE)*$H1232","v":-600.09881342611857},{"$f":"VLOOKUP($F1232,FactSum,'COS Factor Table'!I$115,FALSE)*$H1232","v":-207.43845310340737},{"$f":"VLOOKUP($F1232,FactSum,'COS Factor Table'!J$115,FALSE)*$H1232","v":-33.917543814229091},{"$f":"VLOOKUP($F1232,FactSum,'COS Factor Table'!K$115,FALSE)*$H1232","v":-206.18934297210495},{"$f":"VLOOKUP($F1232,FactSum,'COS Factor Table'!L$115,FALSE)*$H1232","v":-50.495618379169848},{"$f":"VLOOKUP($F1232,FactSum,'COS Factor Table'!M$115,FALSE)*$H1232","v":0},{"$f":"VLOOKUP($F1232,FactSum,'COS Factor Table'!N$115,FALSE)*$H1232","v":0},{"$f":"ROUND(SUM(I1232:Q1232)-H1232,0)","v":0}]
[1233,null,"TOTAL RATE BASE DEDUCTIONS",null,null,null,null,{"$f":"SUM(H1194,H1196:H1213,H1218,H1220,H1225,H1230,H1232)","v":-1711772.5472883626},-1019662.7141990205,-260933.14358808027,-235458.57972302724,-81396.936053072597,{"$f":"SUM(M1194,M1196:M1213,M1218,M1220,M1225,M1230,M1232)","v":-13312.977542157521},-81175.243764204744,-19832.952418799272,0,0,{"$f":"ROUND(SUM(I1233:Q1233)-H1233,0)","v":0}]
[1234]
[1235,null,null,null,null,null,null,"ACCUMULATED DEPRECIATION"]
[1236,null,null,null,null,null,null,"PRODUCTION PLANT"]
[1237]
[1238,null,"108SP","Steam Prod Accumulated Depr",null,{"$f":"IF(Classification=\"DEMAND\",\"F12\",IF(Classification=\"ENERGY\",\"F30\",\"F10\"))","v":"F10"},null,{"$f":"SUM(UAcct108Sp)-H1239","v":0},{"$f":"VLOOKUP($F1238,FactSum,'COS Factor Table'!F$115,FALSE)*$H1238","v":0},{"$f":"VLOOKUP($F1238,FactSum,'COS Factor Table'!G$115,FALSE)*$H1238","v":0},{"$f":"VLOOKUP($F1238,FactSum,'COS Factor Table'!H$115,FALSE)*$H1238","v":0},{"$f":"VLOOKUP($F1238,FactSum,'COS Factor Table'!I$115,FALSE)*$H1238","v":0},{"$f":"VLOOKUP($F1238,FactSum,'COS Factor Table'!J$115,FALSE)*$H1238","v":0},{"$f":"VLOOKUP($F1238,FactSum,'COS Factor Table'!K$115,FALSE)*$H1238","v":0},{"$f":"VLOOKUP($F1238,FactSum,'COS Factor Table'!L$115,FALSE)*$H1238","v":0},{"$f":"VLOOKUP($F1238,FactSum,'COS Factor Table'!M$115,FALSE)*$H1238","v":0},{"$f":"VLOOKUP($F1238,FactSum,'COS Factor Table'!N$115,FALSE)*$H1238","v":0},{"$f":"ROUND(SUM(I1238:Q1238)-H1238,0)","v":0}]
[1239,null,null,null,"JBG","F10",null,{"$f":"SUM(UACCT108SPSSGCH)","v":0},{"$f":"VLOOKUP($F1239,FactSum,'COS Factor Table'!F$115,FALSE)*$H1239","v":0},{"$f":"VLOOKUP($F1239,FactSum,'COS Factor Table'!G$115,FALSE)*$H1239","v":0},{"$f":"VLOOKUP($F1239,FactSum,'COS Factor Table'!H$115,FALSE)*$H1239","v":0},{"$f":"VLOOKUP($F1239,FactSum,'COS Factor Table'!I$115,FALSE)*$H1239","v":0},{"$f":"VLOOKUP($F1239,FactSum,'COS Factor Table'!J$115,FALSE)*$H1239","v":0},{"$f":"VLOOKUP($F1239,FactSum,'COS Factor Table'!K$115,FALSE)*$H1239","v":0},{"$f":"VLOOKUP($F1239,FactSum,'COS Factor Table'!L$115,FALSE)*$H1239","v":0},{"$f":"VLOOKUP($F1239,FactSum,'COS Factor Table'!M$115,FALSE)*$H1239","v":0},{"$f":"VLOOKUP($F1239,FactSum,'COS Factor Table'!N$115,FALSE)*$H1239","v":0},{"$f":"ROUND(SUM(I1239:Q1239)-H1239,0)","v":0}]
[1240,null,null,null,"Total Steam Prod Accumulated Depr",null,null,{"$f":"SUM(H1238:H1239)","v":0},0,0,0,0,{"$f":"SUM(M1238:M1239)","v":0},0,0,0,0,{"$f":"ROUND(SUM(I1240:Q1240)-H1240,0)","v":0}]
[1241]
[1242,null,"108NP","Nuclear Prod Accumulated Depr",null,{"$f":"IF(Classification=\"DEMAND\",\"F12\",IF(Classification=\"ENERGY\",\"F30\",\"F10\"))","v":"F10"},null,{"$f":"SUM(UAcct108Np)","v":0},{"$f":"VLOOKUP($F1242,FactSum,'COS Factor Table'!F$115,FALSE)*$H1242","v":0},{"$f":"VLOOKUP($F1242,FactSum,'COS Factor Table'!G$115,FALSE)*$H1242","v":0},{"$f":"VLOOKUP($F1242,FactSum,'COS Factor Table'!H$115,FALSE)*$H1242","v":0},{"$f":"VLOOKUP($F1242,FactSum,'COS Factor Table'!I$115,FALSE)*$H1242","v":0},{"$f":"VLOOKUP($F1242,FactSum,'COS Factor Table'!J$115,FALSE)*$H1242","v":0},{"$f":"VLOOKUP($F1242,FactSum,'COS Factor Table'!K$115,FALSE)*$H1242","v":0},{"$f":"VLOOKUP($F1242,FactSum,'COS Factor Table'!L$115,FALSE)*$H1242","v":0},{"$f":"VLOOKUP($F1242,FactSum,'COS Factor Table'!M$115,FALSE)*$H1242","v":0},{"$f":"VLOOKUP($F1242,FactSum,'COS Factor Table'!N$115,FALSE)*$H1242","v":0},{"$f":"ROUND(SUM(I1242:Q1242)-H1242,0)","v":0}]
[1243]
[1244,null,"108HP","Hydraulic Prod Accum Depr",null,{"$f":"IF(Classification=\"DEMAND\",\"F12\",IF(Classification=\"ENERGY\",\"F30\",\"F10\"))","v":"F10"},null,{"$f":"SUM(UAcct108Hp)","v":0},{"$f":"VLOOKUP($F1244,FactSum,'COS Factor Table'!F$115,FALSE)*$H1244","v":0},{"$f":"VLOOKUP($F1244,FactSum,'COS Factor Table'!G$115,FALSE)*$H1244","v":0},{"$f":"VLOOKUP($F1244,FactSum,'COS Factor Table'!H$115,FALSE)*$H1244","v":0},{"$f":"VLOOKUP($F1244,FactSum,'COS Factor Table'!I$115,FALSE)*$H1244","v":0},{"$f":"VLOOKUP($F1244,FactSum,'COS Factor Table'!J$115,FALSE)*$H1244","v":0},{"$f":"VLOOKUP($F1244,FactSum,'COS Factor Table'!K$115,FALSE)*$H1244","v":0},{"$f":"VLOOKUP($F1244,FactSum,'COS Factor Table'!L$115,FALSE)*$H1244","v":0},{"$f":"VLOOKUP($F1244,FactSum,'COS Factor Table'!M$115,FALSE)*$H1244","v":0},{"$f":"VLOOKUP($F1244,FactSum,'COS Factor Table'!N$115,FALSE)*$H1244","v":0},{"$f":"ROUND(SUM(I1244:Q1244)-H1244,0)","v":0}]
[1245]
[1246,null,"108OP","Other Production  - Accum Depr",null,{"$f":"IF(Classification=\"DEMAND\",\"F12\",IF(Classification=\"ENERGY\",\"F30\",\"F10\"))","v":"F10"},null,{"$f":"SUM(UAcct108Op)-H1247","v":0},{"$f":"VLOOKUP($F1246,FactSum,'COS Factor Table'!F$115,FALSE)*$H1246","v":0},{"$f":"VLOOKUP($F1246,FactSum,'COS Factor Table'!G$115,FALSE)*$H1246","v":0},{"$f":"VLOOKUP($F1246,FactSum,'COS Factor Table'!H$115,FALSE)*$H1246","v":0},{"$f":"VLOOKUP($F1246,FactSum,'COS Factor Table'!I$115,FALSE)*$H1246","v":0},{"$f":"VLOOKUP($F1246,FactSum,'COS Factor Table'!J$115,FALSE)*$H1246","v":0},{"$f":"VLOOKUP($F1246,FactSum,'COS Factor Table'!K$115,FALSE)*$H1246","v":0},{"$f":"VLOOKUP($F1246,FactSum,'COS Factor Table'!L$115,FALSE)*$H1246","v":0},{"$f":"VLOOKUP($F1246,FactSum,'COS Factor Table'!M$115,FALSE)*$H1246","v":0},{"$f":"VLOOKUP($F1246,FactSum,'COS Factor Table'!N$115,FALSE)*$H1246","v":0},{"$f":"ROUND(SUM(I1246:Q1246)-H1246,0)","v":0}]
[1247,null,null,null,"CAEE","F10",null,{"$f":"SUM(UACCT108OPSSCCT)","v":0},{"$f":"VLOOKUP($F1247,FactSum,'COS Factor Table'!F$115,FALSE)*$H1247","v":0},{"$f":"VLOOKUP($F1247,FactSum,'COS Factor Table'!G$115,FALSE)*$H1247","v":0},{"$f":"VLOOKUP($F1247,FactSum,'COS Factor Table'!H$115,FALSE)*$H1247","v":0},{"$f":"VLOOKUP($F1247,FactSum,'COS Factor Table'!I$115,FALSE)*$H1247","v":0},{"$f":"VLOOKUP($F1247,FactSum,'COS Factor Table'!J$115,FALSE)*$H1247","v":0},{"$f":"VLOOKUP($F1247,FactSum,'COS Factor Table'!K$115,FALSE)*$H1247","v":0},{"$f":"VLOOKUP($F1247,FactSum,'COS Factor Table'!L$115,FALSE)*$H1247","v":0},{"$f":"VLOOKUP($F1247,FactSum,'COS Factor Table'!M$115,FALSE)*$H1247","v":0},{"$f":"VLOOKUP($F1247,FactSum,'COS Factor Table'!N$115,FALSE)*$H1247","v":0},{"$f":"ROUND(SUM(I1247:Q1247)-H1247,0)","v":0}]
[1248,null,null,null,"Total Other Production - Accum Depr",null,null,{"$f":"SUM(H1246:H1247)","v":0},0,0,0,0,{"$f":"SUM(M1246:M1247)","v":0},0,0,0,0,{"$f":"ROUND(SUM(I1248:Q1248)-H1248,0)","v":0}]
[1249]
[1250,null,"108EP","Experimental Plant - Accum Depr",null,{"$f":"IF(Classification=\"DEMAND\",\"F12\",IF(Classification=\"ENERGY\",\"F30\",\"F10\"))","v":"F10"},null,{"$f":"SUM(UAcct108Ep)","v":0},{"$f":"VLOOKUP($F1250,FactSum,'COS Factor Table'!F$115,FALSE)*$H1250","v":0},{"$f":"VLOOKUP($F1250,FactSum,'COS Factor Table'!G$115,FALSE)*$H1250","v":0},{"$f":"VLOOKUP($F1250,FactSum,'COS Factor Table'!H$115,FALSE)*$H1250","v":0},{"$f":"VLOOKUP($F1250,FactSum,'COS Factor Table'!I$115,FALSE)*$H1250","v":0},{"$f":"VLOOKUP($F1250,FactSum,'COS Factor Table'!J$115,FALSE)*$H1250","v":0},{"$f":"VLOOKUP($F1250,FactSum,'COS Factor Table'!K$115,FALSE)*$H1250","v":0},{"$f":"VLOOKUP($F1250,FactSum,'COS Factor Table'!L$115,FALSE)*$H1250","v":0},{"$f":"VLOOKUP($F1250,FactSum,'COS Factor Table'!M$115,FALSE)*$H1250","v":0},{"$f":"VLOOKUP($F1250,FactSum,'COS Factor Table'!N$115,FALSE)*$H1250","v":0},{"$f":"ROUND(SUM(I1250:Q1250)-H1250,0)","v":0}]
[1251]
[1252]
[1253]
[1254,null,"TOTAL PRODUCTION PLANT DEPRECIATION",null,null,null,null,{"$f":"SUM(H1240,H1242,H1244,H1248,H1250)","v":0},{"$f":"SUM(I1240,I1242,I1244,I1248,I1250)","v":0},0,0,0,{"$f":"SUM(M1240,M1242,M1244,M1248,M1250)","v":0},0,0,0,0,{"$f":"ROUND(SUM(I1254:Q1254)-H1254,0)","v":0}]
[1255]
[1256]
[1257,null,null,null,null,null,null,"TRANSMISSION PLANT"]
[1258]
[1259,null,"108TP","Transmission Plant Accum Depr",null,"F106",null,{"$f":"SUM(UAcct108Tp)","v":0},{"$f":"VLOOKUP($F1259,FactSum,'COS Factor Table'!F$115,FALSE)*$H1259","v":0},{"$f":"VLOOKUP($F1259,FactSum,'COS Factor Table'!G$115,FALSE)*$H1259","v":0},{"$f":"VLOOKUP($F1259,FactSum,'COS Factor Table'!H$115,FALSE)*$H1259","v":0},{"$f":"VLOOKUP($F1259,FactSum,'COS Factor Table'!I$115,FALSE)*$H1259","v":0},{"$f":"VLOOKUP($F1259,FactSum,'COS Factor Table'!J$115,FALSE)*$H1259","v":0},{"$f":"VLOOKUP($F1259,FactSum,'COS Factor Table'!K$115,FALSE)*$H1259","v":0},{"$f":"VLOOKUP($F1259,FactSum,'COS Factor Table'!L$115,FALSE)*$H1259","v":0},{"$f":"VLOOKUP($F1259,FactSum,'COS Factor Table'!M$115,FALSE)*$H1259","v":0},{"$f":"VLOOKUP($F1259,FactSum,'COS Factor Table'!N$115,FALSE)*$H1259","v":0},{"$f":"ROUND(SUM(I1259:Q1259)-H1259,0)","v":0}]
[1260]
[1261]
[1262,null,null,null,null,null,null,"DISTRIBUTION PLANT"]
[1263]
[1264,null,"108360","Land and Land Rights",null,"F118",null,{"$f":"SUM(UAcct108360)","v":0},{"$f":"VLOOKUP($F1264,FactSum,'COS Factor Table'!F$115,FALSE)*$H1264","v":0},{"$f":"VLOOKUP($F1264,FactSum,'COS Factor Table'!G$115,FALSE)*$H1264","v":0},{"$f":"VLOOKUP($F1264,FactSum,'COS Factor Table'!H$115,FALSE)*$H1264","v":0},{"$f":"VLOOKUP($F1264,FactSum,'COS Factor Table'!I$115,FALSE)*$H1264","v":0},{"$f":"VLOOKUP($F1264,FactSum,'COS Factor Table'!J$115,FALSE)*$H1264","v":0},{"$f":"VLOOKUP($F1264,FactSum,'COS Factor Table'!K$115,FALSE)*$H1264","v":0},{"$f":"VLOOKUP($F1264,FactSum,'COS Factor Table'!L$115,FALSE)*$H1264","v":0},{"$f":"VLOOKUP($F1264,FactSum,'COS Factor Table'!M$115,FALSE)*$H1264","v":0},{"$f":"VLOOKUP($F1264,FactSum,'COS Factor Table'!N$115,FALSE)*$H1264","v":0},{"$f":"ROUND(SUM(I1264:Q1264)-H1264,0)","v":0}]
[1265]
[1266,null,"108361","Structures and Improvements",null,"F119",null,{"$f":"SUM(UAcct108361)","v":0},{"$f":"VLOOKUP($F1266,FactSum,'COS Factor Table'!F$115,FALSE)*$H1266","v":0},{"$f":"VLOOKUP($F1266,FactSum,'COS Factor Table'!G$115,FALSE)*$H1266","v":0},{"$f":"VLOOKUP($F1266,FactSum,'COS Factor Table'!H$115,FALSE)*$H1266","v":0},{"$f":"VLOOKUP($F1266,FactSum,'COS Factor Table'!I$115,FALSE)*$H1266","v":0},{"$f":"VLOOKUP($F1266,FactSum,'COS Factor Table'!J$115,FALSE)*$H1266","v":0},{"$f":"VLOOKUP($F1266,FactSum,'COS Factor Table'!K$115,FALSE)*$H1266","v":0},{"$f":"VLOOKUP($F1266,FactSum,'COS Factor Table'!L$115,FALSE)*$H1266","v":0},{"$f":"VLOOKUP($F1266,FactSum,'COS Factor Table'!M$115,FALSE)*$H1266","v":0},{"$f":"VLOOKUP($F1266,FactSum,'COS Factor Table'!N$115,FALSE)*$H1266","v":0},{"$f":"ROUND(SUM(I1266:Q1266)-H1266,0)","v":0}]
[1267]
[1268,null,"108362","Station Equipment",null,"F120",null,{"$f":"SUM(UAcct108362)","v":0},{"$f":"VLOOKUP($F1268,FactSum,'COS Factor Table'!F$115,FALSE)*$H1268","v":0},{"$f":"VLOOKUP($F1268,FactSum,'COS Factor Table'!G$115,FALSE)*$H1268","v":0},{"$f":"VLOOKUP($F1268,FactSum,'COS Factor Table'!H$115,FALSE)*$H1268","v":0},{"$f":"VLOOKUP($F1268,FactSum,'COS Factor Table'!I$115,FALSE)*$H1268","v":0},{"$f":"VLOOKUP($F1268,FactSum,'COS Factor Table'!J$115,FALSE)*$H1268","v":0},{"$f":"VLOOKUP($F1268,FactSum,'COS Factor Table'!K$115,FALSE)*$H1268","v":0},{"$f":"VLOOKUP($F1268,FactSum,'COS Factor Table'!L$115,FALSE)*$H1268","v":0},{"$f":"VLOOKUP($F1268,FactSum,'COS Factor Table'!M$115,FALSE)*$H1268","v":0},{"$f":"VLOOKUP($F1268,FactSum,'COS Factor Table'!N$115,FALSE)*$H1268","v":0},{"$f":"ROUND(SUM(I1268:Q1268)-H1268,0)","v":0}]
[1269]
[1270,null,{"$f":"$E$1","v":"Distribution - METER -  Unbundled"}]
[1271]
[1272,null,"A",null,"B",null,null,"D","E","F","G","H","I","J","K","S","T"]
[1273,null,null,null,null,null,null,{"$f":"'Hot Sheet'!$H$10","v":"Washington"},null,{"$f":"'Hot Sheet'!$J$10","v":"Small General"},{"$f":"'Hot Sheet'!$K$10","v":"Large General"},{"$f":"'Hot Sheet'!$L$10","v":"Large General"},{"$f":"'Hot Sheet'!$M$10","v":"Large General"},{"$f":"'Hot Sheet'!$N$10","v":"Agricultural"},{"$f":"'Hot Sheet'!$O$10","v":"Street & Area"}]
[1274,null,"FERC",null,null,null,null,{"$f":"'Hot Sheet'!$H$11","v":"Jurisdiction"},{"$f":"'Hot Sheet'!$I$11","v":"Residential"},{"$f":"'Hot Sheet'!$J$11","v":"Service"},{"$f":"'Hot Sheet'!$K$11","v":"Service <1,000 kW"},{"$f":"'Hot Sheet'!$L$11","v":"Service >1,000 kW"},{"$f":"'Hot Sheet'!$M$11","v":"Dedicated Facilities"},{"$f":"'Hot Sheet'!$N$11","v":"Pumping"},{"$f":"'Hot Sheet'!$O$11","v":"Lighting"},{"$f":"'Hot Sheet'!P$11","v":"-"},{"$f":"'Hot Sheet'!Q$11","v":"-"}]
[1275,null,"ACCT",null,"DESCRIPTION ",null,null,{"$f":"'Hot Sheet'!$H$12","v":"Normalized"},{"$f":"'Hot Sheet'!$I$12","v":"Schedule 16"},{"$f":"'Hot Sheet'!$J$12","v":"Schedule 24"},{"$f":"'Hot Sheet'!$K$12","v":"Schedule 36"},{"$f":"'Hot Sheet'!$L$12","v":"Schedule 48T"},{"$f":"'Hot Sheet'!$M$12","v":"Schedule 48T"},{"$f":"'Hot Sheet'!$N$12","v":"Schedule 40"},{"$f":"'Hot Sheet'!$O$12","v":"Sch. 15,51-54,57"},{"$f":"'Hot Sheet'!P$12","v":"-"},{"$f":"'Hot Sheet'!Q$12","v":"-"}]
[1276]
[1277,null,"108364","Poles, Towers & Fixtures",null,"F121",null,{"$f":"SUM(UAcct108364)","v":0},{"$f":"VLOOKUP($F1277,FactSum,'COS Factor Table'!F$115,FALSE)*$H1277","v":0},{"$f":"VLOOKUP($F1277,FactSum,'COS Factor Table'!G$115,FALSE)*$H1277","v":0},{"$f":"VLOOKUP($F1277,FactSum,'COS Factor Table'!H$115,FALSE)*$H1277","v":0},{"$f":"VLOOKUP($F1277,FactSum,'COS Factor Table'!I$115,FALSE)*$H1277","v":0},{"$f":"VLOOKUP($F1277,FactSum,'COS Factor Table'!J$115,FALSE)*$H1277","v":0},{"$f":"VLOOKUP($F1277,FactSum,'COS Factor Table'!K$115,FALSE)*$H1277","v":0},{"$f":"VLOOKUP($F1277,FactSum,'COS Factor Table'!L$115,FALSE)*$H1277","v":0},{"$f":"VLOOKUP($F1277,FactSum,'COS Factor Table'!M$115,FALSE)*$H1277","v":0},{"$f":"VLOOKUP($F1277,FactSum,'COS Factor Table'!N$115,FALSE)*$H1277","v":0},{"$f":"ROUND(SUM(I1277:Q1277)-H1277,0)","v":0}]
[1278]
[1279,null,"108365","Overhead Conductors",null,"F122",null,{"$f":"SUM(UAcct108365)","v":0},{"$f":"VLOOKUP($F1279,FactSum,'COS Factor Table'!F$115,FALSE)*$H1279","v":0},{"$f":"VLOOKUP($F1279,FactSum,'COS Factor Table'!G$115,FALSE)*$H1279","v":0},{"$f":"VLOOKUP($F1279,FactSum,'COS Factor Table'!H$115,FALSE)*$H1279","v":0},{"$f":"VLOOKUP($F1279,FactSum,'COS Factor Table'!I$115,FALSE)*$H1279","v":0},{"$f":"VLOOKUP($F1279,FactSum,'COS Factor Table'!J$115,FALSE)*$H1279","v":0},{"$f":"VLOOKUP($F1279,FactSum,'COS Factor Table'!K$115,FALSE)*$H1279","v":0},{"$f":"VLOOKUP($F1279,FactSum,'COS Factor Table'!L$115,FALSE)*$H1279","v":0},{"$f":"VLOOKUP($F1279,FactSum,'COS Factor Table'!M$115,FALSE)*$H1279","v":0},{"$f":"VLOOKUP($F1279,FactSum,'COS Factor Table'!N$115,FALSE)*$H1279","v":0},{"$f":"ROUND(SUM(I1279:Q1279)-H1279,0)","v":0}]
[1280]
[1281,null,"108366","Underground Conduit",null,"F123",null,{"$f":"SUM(UAcct108366)","v":0},{"$f":"VLOOKUP($F1281,FactSum,'COS Factor Table'!F$115,FALSE)*$H1281","v":0},{"$f":"VLOOKUP($F1281,FactSum,'COS Factor Table'!G$115,FALSE)*$H1281","v":0},{"$f":"VLOOKUP($F1281,FactSum,'COS Factor Table'!H$115,FALSE)*$H1281","v":0},{"$f":"VLOOKUP($F1281,FactSum,'COS Factor Table'!I$115,FALSE)*$H1281","v":0},{"$f":"VLOOKUP($F1281,FactSum,'COS Factor Table'!J$115,FALSE)*$H1281","v":0},{"$f":"VLOOKUP($F1281,FactSum,'COS Factor Table'!K$115,FALSE)*$H1281","v":0},{"$f":"VLOOKUP($F1281,FactSum,'COS Factor Table'!L$115,FALSE)*$H1281","v":0},{"$f":"VLOOKUP($F1281,FactSum,'COS Factor Table'!M$115,FALSE)*$H1281","v":0},{"$f":"VLOOKUP($F1281,FactSum,'COS Factor Table'!N$115,FALSE)*$H1281","v":0},{"$f":"ROUND(SUM(I1281:Q1281)-H1281,0)","v":0}]
[{"$f":"A1281+1","v":1282}]
[1283,null,"108367","Underground Conductors ",null,"F124",null,{"$f":"SUM(UAcct108367)","v":0},{"$f":"VLOOKUP($F1283,FactSum,'COS Factor Table'!F$115,FALSE)*$H1283","v":0},{"$f":"VLOOKUP($F1283,FactSum,'COS Factor Table'!G$115,FALSE)*$H1283","v":0},{"$f":"VLOOKUP($F1283,FactSum,'COS Factor Table'!H$115,FALSE)*$H1283","v":0},{"$f":"VLOOKUP($F1283,FactSum,'COS Factor Table'!I$115,FALSE)*$H1283","v":0},{"$f":"VLOOKUP($F1283,FactSum,'COS Factor Table'!J$115,FALSE)*$H1283","v":0},{"$f":"VLOOKUP($F1283,FactSum,'COS Factor Table'!K$115,FALSE)*$H1283","v":0},{"$f":"VLOOKUP($F1283,FactSum,'COS Factor Table'!L$115,FALSE)*$H1283","v":0},{"$f":"VLOOKUP($F1283,FactSum,'COS Factor Table'!M$115,FALSE)*$H1283","v":0},{"$f":"VLOOKUP($F1283,FactSum,'COS Factor Table'!N$115,FALSE)*$H1283","v":0},{"$f":"ROUND(SUM(I1283:Q1283)-H1283,0)","v":0}]
[1284]
[1285,null,"108368","Line Transformers",null,"F125",null,{"$f":"SUM(UAcct108368)","v":0},{"$f":"VLOOKUP($F1285,FactSum,'COS Factor Table'!F$115,FALSE)*$H1285","v":0},{"$f":"VLOOKUP($F1285,FactSum,'COS Factor Table'!G$115,FALSE)*$H1285","v":0},{"$f":"VLOOKUP($F1285,FactSum,'COS Factor Table'!H$115,FALSE)*$H1285","v":0},{"$f":"VLOOKUP($F1285,FactSum,'COS Factor Table'!I$115,FALSE)*$H1285","v":0},{"$f":"VLOOKUP($F1285,FactSum,'COS Factor Table'!J$115,FALSE)*$H1285","v":0},{"$f":"VLOOKUP($F1285,FactSum,'COS Factor Table'!K$115,FALSE)*$H1285","v":0},{"$f":"VLOOKUP($F1285,FactSum,'COS Factor Table'!L$115,FALSE)*$H1285","v":0},{"$f":"VLOOKUP($F1285,FactSum,'COS Factor Table'!M$115,FALSE)*$H1285","v":0},{"$f":"VLOOKUP($F1285,FactSum,'COS Factor Table'!N$115,FALSE)*$H1285","v":0},{"$f":"ROUND(SUM(I1285:Q1285)-H1285,0)","v":0}]
[1286]
[1287,null,"108369","Services",null,"F126",null,{"$f":"SUM(UAcct108369)","v":0},{"$f":"VLOOKUP($F1287,FactSum,'COS Factor Table'!F$115,FALSE)*$H1287","v":0},{"$f":"VLOOKUP($F1287,FactSum,'COS Factor Table'!G$115,FALSE)*$H1287","v":0},{"$f":"VLOOKUP($F1287,FactSum,'COS Factor Table'!H$115,FALSE)*$H1287","v":0},{"$f":"VLOOKUP($F1287,FactSum,'COS Factor Table'!I$115,FALSE)*$H1287","v":0},{"$f":"VLOOKUP($F1287,FactSum,'COS Factor Table'!J$115,FALSE)*$H1287","v":0},{"$f":"VLOOKUP($F1287,FactSum,'COS Factor Table'!K$115,FALSE)*$H1287","v":0},{"$f":"VLOOKUP($F1287,FactSum,'COS Factor Table'!L$115,FALSE)*$H1287","v":0},{"$f":"VLOOKUP($F1287,FactSum,'COS Factor Table'!M$115,FALSE)*$H1287","v":0},{"$f":"VLOOKUP($F1287,FactSum,'COS Factor Table'!N$115,FALSE)*$H1287","v":0},{"$f":"ROUND(SUM(I1287:Q1287)-H1287,0)","v":0}]
[1288]
[1289,null,"108370","Meters",null,"F127",null,{"$f":"SUM(UAcct108370)","v":-1929851.31},{"$f":"VLOOKUP($F1289,FactSum,'COS Factor Table'!F$115,FALSE)*$H1289","v":-1312544.4881367306},{"$f":"VLOOKUP($F1289,FactSum,'COS Factor Table'!G$115,FALSE)*$H1289","v":-313290.31459276972},{"$f":"VLOOKUP($F1289,FactSum,'COS Factor Table'!H$115,FALSE)*$H1289","v":-147460.07141379116},{"$f":"VLOOKUP($F1289,FactSum,'COS Factor Table'!I$115,FALSE)*$H1289","v":-23706.605538708092},{"$f":"VLOOKUP($F1289,FactSum,'COS Factor Table'!J$115,FALSE)*$H1289","v":-18669.781616847711},{"$f":"VLOOKUP($F1289,FactSum,'COS Factor Table'!K$115,FALSE)*$H1289","v":-114180.04870115273},{"$f":"VLOOKUP($F1289,FactSum,'COS Factor Table'!L$115,FALSE)*$H1289","v":0},{"$f":"VLOOKUP($F1289,FactSum,'COS Factor Table'!M$115,FALSE)*$H1289","v":0},{"$f":"VLOOKUP($F1289,FactSum,'COS Factor Table'!N$115,FALSE)*$H1289","v":0},{"$f":"ROUND(SUM(I1289:Q1289)-H1289,0)","v":0}]
[1290]
[1291,null,"108371","Install on Customers' Premises",null,"F128",null,{"$f":"SUM(UAcct108371)","v":0},{"$f":"VLOOKUP($F1291,FactSum,'COS Factor Table'!F$115,FALSE)*$H1291","v":0},{"$f":"VLOOKUP($F1291,FactSum,'COS Factor Table'!G$115,FALSE)*$H1291","v":0},{"$f":"VLOOKUP($F1291,FactSum,'COS Factor Table'!H$115,FALSE)*$H1291","v":0},{"$f":"VLOOKUP($F1291,FactSum,'COS Factor Table'!I$115,FALSE)*$H1291","v":0},{"$f":"VLOOKUP($F1291,FactSum,'COS Factor Table'!J$115,FALSE)*$H1291","v":0},{"$f":"VLOOKUP($F1291,FactSum,'COS Factor Table'!K$115,FALSE)*$H1291","v":0},{"$f":"VLOOKUP($F1291,FactSum,'COS Factor Table'!L$115,FALSE)*$H1291","v":0},{"$f":"VLOOKUP($F1291,FactSum,'COS Factor Table'!M$115,FALSE)*$H1291","v":0},{"$f":"VLOOKUP($F1291,FactSum,'COS Factor Table'!N$115,FALSE)*$H1291","v":0},{"$f":"ROUND(SUM(I1291:Q1291)-H1291,0)","v":0}]
[1292]
[1293,null,"108372","Leased Property",null,"F129",null,{"$f":"SUM(UAcct108372)","v":0},{"$f":"VLOOKUP($F1293,FactSum,'COS Factor Table'!F$115,FALSE)*$H1293","v":0},{"$f":"VLOOKUP($F1293,FactSum,'COS Factor Table'!G$115,FALSE)*$H1293","v":0},{"$f":"VLOOKUP($F1293,FactSum,'COS Factor Table'!H$115,FALSE)*$H1293","v":0},{"$f":"VLOOKUP($F1293,FactSum,'COS Factor Table'!I$115,FALSE)*$H1293","v":0},{"$f":"VLOOKUP($F1293,FactSum,'COS Factor Table'!J$115,FALSE)*$H1293","v":0},{"$f":"VLOOKUP($F1293,FactSum,'COS Factor Table'!K$115,FALSE)*$H1293","v":0},{"$f":"VLOOKUP($F1293,FactSum,'COS Factor Table'!L$115,FALSE)*$H1293","v":0},{"$f":"VLOOKUP($F1293,FactSum,'COS Factor Table'!M$115,FALSE)*$H1293","v":0},{"$f":"VLOOKUP($F1293,FactSum,'COS Factor Table'!N$115,FALSE)*$H1293","v":0},{"$f":"ROUND(SUM(I1293:Q1293)-H1293,0)","v":0}]
[1294]
[1295,null,"108373","Street Lights",null,"F130",null,{"$f":"SUM(UAcct108373)","v":0},{"$f":"VLOOKUP($F1295,FactSum,'COS Factor Table'!F$115,FALSE)*$H1295","v":0},{"$f":"VLOOKUP($F1295,FactSum,'COS Factor Table'!G$115,FALSE)*$H1295","v":0},{"$f":"VLOOKUP($F1295,FactSum,'COS Factor Table'!H$115,FALSE)*$H1295","v":0},{"$f":"VLOOKUP($F1295,FactSum,'COS Factor Table'!I$115,FALSE)*$H1295","v":0},{"$f":"VLOOKUP($F1295,FactSum,'COS Factor Table'!J$115,FALSE)*$H1295","v":0},{"$f":"VLOOKUP($F1295,FactSum,'COS Factor Table'!K$115,FALSE)*$H1295","v":0},{"$f":"VLOOKUP($F1295,FactSum,'COS Factor Table'!L$115,FALSE)*$H1295","v":0},{"$f":"VLOOKUP($F1295,FactSum,'COS Factor Table'!M$115,FALSE)*$H1295","v":0},{"$f":"VLOOKUP($F1295,FactSum,'COS Factor Table'!N$115,FALSE)*$H1295","v":0},{"$f":"ROUND(SUM(I1295:Q1295)-H1295,0)","v":0}]
[1296]
[1297,null,"108D00","Unclassified Dist Plant - Acct 300",null,"F121",null,{"$f":"SUM(UAcct108D00)","v":0},{"$f":"VLOOKUP($F1297,FactSum,'COS Factor Table'!F$115,FALSE)*$H1297","v":0},{"$f":"VLOOKUP($F1297,FactSum,'COS Factor Table'!G$115,FALSE)*$H1297","v":0},{"$f":"VLOOKUP($F1297,FactSum,'COS Factor Table'!H$115,FALSE)*$H1297","v":0},{"$f":"VLOOKUP($F1297,FactSum,'COS Factor Table'!I$115,FALSE)*$H1297","v":0},{"$f":"VLOOKUP($F1297,FactSum,'COS Factor Table'!J$115,FALSE)*$H1297","v":0},{"$f":"VLOOKUP($F1297,FactSum,'COS Factor Table'!K$115,FALSE)*$H1297","v":0},{"$f":"VLOOKUP($F1297,FactSum,'COS Factor Table'!L$115,FALSE)*$H1297","v":0},{"$f":"VLOOKUP($F1297,FactSum,'COS Factor Table'!M$115,FALSE)*$H1297","v":0},{"$f":"VLOOKUP($F1297,FactSum,'COS Factor Table'!N$115,FALSE)*$H1297","v":0},{"$f":"ROUND(SUM(I1297:Q1297)-H1297,0)","v":0}]
[1298]
[1299,null,"108DS","Unclassified Dist Sub - Acct 300",null,"F120",null,{"$f":"SUM(UAcct108Ds)","v":0},{"$f":"VLOOKUP($F1299,FactSum,'COS Factor Table'!F$115,FALSE)*$H1299","v":0},{"$f":"VLOOKUP($F1299,FactSum,'COS Factor Table'!G$115,FALSE)*$H1299","v":0},{"$f":"VLOOKUP($F1299,FactSum,'COS Factor Table'!H$115,FALSE)*$H1299","v":0},{"$f":"VLOOKUP($F1299,FactSum,'COS Factor Table'!I$115,FALSE)*$H1299","v":0},{"$f":"VLOOKUP($F1299,FactSum,'COS Factor Table'!J$115,FALSE)*$H1299","v":0},{"$f":"VLOOKUP($F1299,FactSum,'COS Factor Table'!K$115,FALSE)*$H1299","v":0},{"$f":"VLOOKUP($F1299,FactSum,'COS Factor Table'!L$115,FALSE)*$H1299","v":0},{"$f":"VLOOKUP($F1299,FactSum,'COS Factor Table'!M$115,FALSE)*$H1299","v":0},{"$f":"VLOOKUP($F1299,FactSum,'COS Factor Table'!N$115,FALSE)*$H1299","v":0},{"$f":"ROUND(SUM(I1299:Q1299)-H1299,0)","v":0}]
[1300]
[1301,null,"108DP","Unclassified Dist Sub  - Acct 300",null,{"$f":"IF(Function=\"gen\",\"F102G\",IF(Function=\"TRN\",\"F102T\",IF(Function=\"DIS\",\"F102D\",IF(Function=\"RETAIL\",\"F102R\",IF(Function=\"MISC\",\"F102M\",\"ERR\")))))","v":"F102D"},null,{"$f":"SUM(UAcct108D)","v":2838.601223827066},{"$f":"VLOOKUP($F1301,FactSum,'COS Factor Table'!F$115,FALSE)*$H1301","v":1680.5420566630817},{"$f":"VLOOKUP($F1301,FactSum,'COS Factor Table'!G$115,FALSE)*$H1301","v":426.22334982365203},{"$f":"VLOOKUP($F1301,FactSum,'COS Factor Table'!H$115,FALSE)*$H1301","v":398.84034142764403},{"$f":"VLOOKUP($F1301,FactSum,'COS Factor Table'!I$115,FALSE)*$H1301","v":139.1806691121447},{"$f":"VLOOKUP($F1301,FactSum,'COS Factor Table'!J$115,FALSE)*$H1301","v":19.295215534090158},{"$f":"VLOOKUP($F1301,FactSum,'COS Factor Table'!K$115,FALSE)*$H1301","v":136.42451465081811},{"$f":"VLOOKUP($F1301,FactSum,'COS Factor Table'!L$115,FALSE)*$H1301","v":38.095076615634838},{"$f":"VLOOKUP($F1301,FactSum,'COS Factor Table'!M$115,FALSE)*$H1301","v":0},{"$f":"VLOOKUP($F1301,FactSum,'COS Factor Table'!N$115,FALSE)*$H1301","v":0},{"$f":"ROUND(SUM(I1301:Q1301)-H1301,0)","v":0}]
[1302]
[1303]
[1304,null,"TOTAL DISTRIBUTION PLANT DEPR",null,null,null,null,{"$f":"SUM(H1264:H1301)","v":-1927012.7087761729},{"$f":"SUM(I1264:I1301)","v":-1310863.9460800674},-312864.09124294604,-147061.2310723635,-23567.424869595947,{"$f":"SUM(M1264:M1301)","v":-18650.486401313621},-114043.62418650191,38.095076615634838,{"$f":"SUM(P1264:P1301)","v":0},{"$f":"SUM(Q1264:Q1301)","v":0},{"$f":"ROUND(SUM(I1304:Q1304)-H1304,0)","v":0}]
[1305]
[1306,null,null,null,null,null,null,"GENERAL PLANT"]
[1307,null,"108GP","General Plant Accumulated Depr"]
[1308,null,null,null,"Situs",{"$f":"IF(Function=\"gen\",\"F107G\",IF(Function=\"TRN\",\"F107T\",IF(Function=\"DIS\",\"F107D\",IF(Function=\"RETAIL\",\"F107R\",IF(Function=\"MISC\",\"F107M\",\"ERR\")))))","v":"F107D"},null,{"$f":"SUM(UAcct108Gps)","v":-389513.80506289442},{"$f":"VLOOKUP($F1308,FactSum,'COS Factor Table'!F$115,FALSE)*$H1308","v":-230604.54056189003},{"$f":"VLOOKUP($F1308,FactSum,'COS Factor Table'!G$115,FALSE)*$H1308","v":-58486.509976428504},{"$f":"VLOOKUP($F1308,FactSum,'COS Factor Table'!H$115,FALSE)*$H1308","v":-54729.004446990999},{"$f":"VLOOKUP($F1308,FactSum,'COS Factor Table'!I$115,FALSE)*$H1308","v":-19098.417756609095},{"$f":"VLOOKUP($F1308,FactSum,'COS Factor Table'!J$115,FALSE)*$H1308","v":-2647.6959000458751},{"$f":"VLOOKUP($F1308,FactSum,'COS Factor Table'!K$115,FALSE)*$H1308","v":-18720.21732374766},{"$f":"VLOOKUP($F1308,FactSum,'COS Factor Table'!L$115,FALSE)*$H1308","v":-5227.4190971822163},{"$f":"VLOOKUP($F1308,FactSum,'COS Factor Table'!M$115,FALSE)*$H1308","v":0},{"$f":"VLOOKUP($F1308,FactSum,'COS Factor Table'!N$115,FALSE)*$H1308","v":0},{"$f":"ROUND(SUM(I1308:Q1308)-H1308,0)","v":0}]
[1309,null,null,null,"System Generation",{"$f":"IF(Function=\"gen\",\"F105G\",IF(Function=\"TRN\",\"F105T\",IF(Function=\"DIS\",\"F105D\",IF(Function=\"RETAIL\",\"F105R\",IF(Function=\"MISC\",\"F105M\",\"ERR\")))))","v":"F105D"},null,{"$f":"SUM(UAcct108Gpsgu+UAcct108Gpsgp+UAcct108Gpsg+'Func Study'!AB2432)","v":0},{"$f":"VLOOKUP($F1309,FactSum,'COS Factor Table'!F$115,FALSE)*$H1309","v":0},{"$f":"VLOOKUP($F1309,FactSum,'COS Factor Table'!G$115,FALSE)*$H1309","v":0},{"$f":"VLOOKUP($F1309,FactSum,'COS Factor Table'!H$115,FALSE)*$H1309","v":0},{"$f":"VLOOKUP($F1309,FactSum,'COS Factor Table'!I$115,FALSE)*$H1309","v":0},{"$f":"VLOOKUP($F1309,FactSum,'COS Factor Table'!J$115,FALSE)*$H1309","v":0},{"$f":"VLOOKUP($F1309,FactSum,'COS Factor Table'!K$115,FALSE)*$H1309","v":0},{"$f":"VLOOKUP($F1309,FactSum,'COS Factor Table'!L$115,FALSE)*$H1309","v":0},{"$f":"VLOOKUP($F1309,FactSum,'COS Factor Table'!M$115,FALSE)*$H1309","v":0},{"$f":"VLOOKUP($F1309,FactSum,'COS Factor Table'!N$115,FALSE)*$H1309","v":0},0]
[1310,null,null,null,"System Overheads",{"$f":"IF(Function=\"gen\",\"F102G\",IF(Function=\"TRN\",\"F102T\",IF(Function=\"DIS\",\"F102D\",IF(Function=\"RETAIL\",\"F102R\",IF(Function=\"MISC\",\"F102M\",\"ERR\")))))","v":"F102D"},null,{"$f":"SUM(UAcct108Gpso)","v":-44898.160353735242},{"$f":"VLOOKUP($F1310,FactSum,'COS Factor Table'!F$115,FALSE)*$H1310","v":-26581.136549898089},{"$f":"VLOOKUP($F1310,FactSum,'COS Factor Table'!G$115,FALSE)*$H1310","v":-6741.5754443620181},{"$f":"VLOOKUP($F1310,FactSum,'COS Factor Table'!H$115,FALSE)*$H1310","v":-6308.4583542925375},{"$f":"VLOOKUP($F1310,FactSum,'COS Factor Table'!I$115,FALSE)*$H1310","v":-2201.4208785241963},{"$f":"VLOOKUP($F1310,FactSum,'COS Factor Table'!J$115,FALSE)*$H1310","v":-305.19245670636025},{"$f":"VLOOKUP($F1310,FactSum,'COS Factor Table'!K$115,FALSE)*$H1310","v":-2157.8267787522436},{"$f":"VLOOKUP($F1310,FactSum,'COS Factor Table'!L$115,FALSE)*$H1310","v":-602.54989119979473},{"$f":"VLOOKUP($F1310,FactSum,'COS Factor Table'!M$115,FALSE)*$H1310","v":0},{"$f":"VLOOKUP($F1310,FactSum,'COS Factor Table'!N$115,FALSE)*$H1310","v":0},0]
[1311,null,null,null,"Customer - System","F42",null,{"$f":"SUM(UAcct108Gpcn)","v":0},{"$f":"VLOOKUP($F1311,FactSum,'COS Factor Table'!F$115,FALSE)*$H1311","v":0},{"$f":"VLOOKUP($F1311,FactSum,'COS Factor Table'!G$115,FALSE)*$H1311","v":0},{"$f":"VLOOKUP($F1311,FactSum,'COS Factor Table'!H$115,FALSE)*$H1311","v":0},{"$f":"VLOOKUP($F1311,FactSum,'COS Factor Table'!I$115,FALSE)*$H1311","v":0},{"$f":"VLOOKUP($F1311,FactSum,'COS Factor Table'!J$115,FALSE)*$H1311","v":0},{"$f":"VLOOKUP($F1311,FactSum,'COS Factor Table'!K$115,FALSE)*$H1311","v":0},{"$f":"VLOOKUP($F1311,FactSum,'COS Factor Table'!L$115,FALSE)*$H1311","v":0},{"$f":"VLOOKUP($F1311,FactSum,'COS Factor Table'!M$115,FALSE)*$H1311","v":0},{"$f":"VLOOKUP($F1311,FactSum,'COS Factor Table'!N$115,FALSE)*$H1311","v":0},0]
[1312,null,null,null,"Energy",{"$f":"IF(Classification=\"DEMAND\",\"F12\",IF(Classification=\"ENERGY\",\"F30\",\"F10\"))","v":"F10"},null,{"$f":"SUM(UAcct108Gpse)","v":0},{"$f":"VLOOKUP($F1312,FactSum,'COS Factor Table'!F$115,FALSE)*$H1312","v":0},{"$f":"VLOOKUP($F1312,FactSum,'COS Factor Table'!G$115,FALSE)*$H1312","v":0},{"$f":"VLOOKUP($F1312,FactSum,'COS Factor Table'!H$115,FALSE)*$H1312","v":0},{"$f":"VLOOKUP($F1312,FactSum,'COS Factor Table'!I$115,FALSE)*$H1312","v":0},{"$f":"VLOOKUP($F1312,FactSum,'COS Factor Table'!J$115,FALSE)*$H1312","v":0},{"$f":"VLOOKUP($F1312,FactSum,'COS Factor Table'!K$115,FALSE)*$H1312","v":0},{"$f":"VLOOKUP($F1312,FactSum,'COS Factor Table'!L$115,FALSE)*$H1312","v":0},{"$f":"VLOOKUP($F1312,FactSum,'COS Factor Table'!M$115,FALSE)*$H1312","v":0},{"$f":"VLOOKUP($F1312,FactSum,'COS Factor Table'!N$115,FALSE)*$H1312","v":0},0]
[1313,null,null,null,"CAEE",{"$f":"IF(Function=\"gen\",\"F105G\",IF(Function=\"TRN\",\"F105T\",IF(Function=\"DIS\",\"F105D\",IF(Function=\"RETAIL\",\"F105R\",IF(Function=\"MISC\",\"F105M\",\"ERR\")))))","v":"F105D"},null,{"$f":"SUM(UACCT108GPSSGCT)","v":0},{"$f":"VLOOKUP($F1313,FactSum,'COS Factor Table'!F$115,FALSE)*$H1313","v":0},{"$f":"VLOOKUP($F1313,FactSum,'COS Factor Table'!G$115,FALSE)*$H1313","v":0},{"$f":"VLOOKUP($F1313,FactSum,'COS Factor Table'!H$115,FALSE)*$H1313","v":0},{"$f":"VLOOKUP($F1313,FactSum,'COS Factor Table'!I$115,FALSE)*$H1313","v":0},{"$f":"VLOOKUP($F1313,FactSum,'COS Factor Table'!J$115,FALSE)*$H1313","v":0},{"$f":"VLOOKUP($F1313,FactSum,'COS Factor Table'!K$115,FALSE)*$H1313","v":0},{"$f":"VLOOKUP($F1313,FactSum,'COS Factor Table'!L$115,FALSE)*$H1313","v":0},{"$f":"VLOOKUP($F1313,FactSum,'COS Factor Table'!M$115,FALSE)*$H1313","v":0},{"$f":"VLOOKUP($F1313,FactSum,'COS Factor Table'!N$115,FALSE)*$H1313","v":0},0]
[1314,null,null,null,"CAEE",{"$f":"IF(Function=\"gen\",\"F105G\",IF(Function=\"TRN\",\"F105T\",IF(Function=\"DIS\",\"F105D\",IF(Function=\"RETAIL\",\"F105R\",IF(Function=\"MISC\",\"F105M\",\"ERR\")))))","v":"F105D"},null,{"$f":"SUM(UACCT108GPSSGCH)","v":0},{"$f":"VLOOKUP($F1314,FactSum,'COS Factor Table'!F$115,FALSE)*$H1314","v":0},{"$f":"VLOOKUP($F1314,FactSum,'COS Factor Table'!G$115,FALSE)*$H1314","v":0},{"$f":"VLOOKUP($F1314,FactSum,'COS Factor Table'!H$115,FALSE)*$H1314","v":0},{"$f":"VLOOKUP($F1314,FactSum,'COS Factor Table'!I$115,FALSE)*$H1314","v":0},{"$f":"VLOOKUP($F1314,FactSum,'COS Factor Table'!J$115,FALSE)*$H1314","v":0},{"$f":"VLOOKUP($F1314,FactSum,'COS Factor Table'!K$115,FALSE)*$H1314","v":0},{"$f":"VLOOKUP($F1314,FactSum,'COS Factor Table'!L$115,FALSE)*$H1314","v":0},{"$f":"VLOOKUP($F1314,FactSum,'COS Factor Table'!M$115,FALSE)*$H1314","v":0},{"$f":"VLOOKUP($F1314,FactSum,'COS Factor Table'!N$115,FALSE)*$H1314","v":0},0]
[1315,null,null,"Total General Plant Accumulated Depr",null,null,null,{"$f":"SUM(H1308:H1314)","v":-434411.96541662968},-257185.67711178813,-65228.085420790521,-61037.462801283538,-21299.838635133292,{"$f":"SUM(M1308:M1314)","v":-2952.8883567522353},-20878.044102499902,-5829.968988382011,0,0,0]
[1316]
[1317,null,"108MP","Mining Plant Accumulated Depr.",null,{"$f":"IF(Classification=\"DEMAND\",\"F12\",IF(Classification=\"ENERGY\",\"F30\",\"F10\"))","v":"F10"},null,{"$f":"SUM(UAcct108Mp)","v":0},{"$f":"VLOOKUP($F1317,FactSum,'COS Factor Table'!F$115,FALSE)*$H1317","v":0},{"$f":"VLOOKUP($F1317,FactSum,'COS Factor Table'!G$115,FALSE)*$H1317","v":0},{"$f":"VLOOKUP($F1317,FactSum,'COS Factor Table'!H$115,FALSE)*$H1317","v":0},{"$f":"VLOOKUP($F1317,FactSum,'COS Factor Table'!I$115,FALSE)*$H1317","v":0},{"$f":"VLOOKUP($F1317,FactSum,'COS Factor Table'!J$115,FALSE)*$H1317","v":0},{"$f":"VLOOKUP($F1317,FactSum,'COS Factor Table'!K$115,FALSE)*$H1317","v":0},{"$f":"VLOOKUP($F1317,FactSum,'COS Factor Table'!L$115,FALSE)*$H1317","v":0},{"$f":"VLOOKUP($F1317,FactSum,'COS Factor Table'!M$115,FALSE)*$H1317","v":0},{"$f":"VLOOKUP($F1317,FactSum,'COS Factor Table'!N$115,FALSE)*$H1317","v":0},{"$f":"ROUND(SUM(I1317:Q1317)-H1317,0)","v":0}]
[1318]
[1319,null,"1081390","Accum Depr - Capital Lease",null,{"$f":"IF(Classification=\"DEMAND\",\"F12\",IF(Classification=\"ENERGY\",\"F30\",\"F10\"))","v":"F10"},null,{"$f":"SUM(UAcct1081390)","v":0},{"$f":"VLOOKUP($F1319,FactSum,'COS Factor Table'!F$115,FALSE)*$H1319","v":0},{"$f":"VLOOKUP($F1319,FactSum,'COS Factor Table'!G$115,FALSE)*$H1319","v":0},{"$f":"VLOOKUP($F1319,FactSum,'COS Factor Table'!H$115,FALSE)*$H1319","v":0},{"$f":"VLOOKUP($F1319,FactSum,'COS Factor Table'!I$115,FALSE)*$H1319","v":0},{"$f":"VLOOKUP($F1319,FactSum,'COS Factor Table'!J$115,FALSE)*$H1319","v":0},{"$f":"VLOOKUP($F1319,FactSum,'COS Factor Table'!K$115,FALSE)*$H1319","v":0},{"$f":"VLOOKUP($F1319,FactSum,'COS Factor Table'!L$115,FALSE)*$H1319","v":0},{"$f":"VLOOKUP($F1319,FactSum,'COS Factor Table'!M$115,FALSE)*$H1319","v":0},{"$f":"VLOOKUP($F1319,FactSum,'COS Factor Table'!N$115,FALSE)*$H1319","v":0},{"$f":"ROUND(SUM(I1319:Q1319)-H1319,0)","v":0}]
[1320,null,null,"Remove Capital Lease",null,{"$f":"IF(Classification=\"DEMAND\",\"F12\",IF(Classification=\"ENERGY\",\"F30\",\"F10\"))","v":"F10"},null,{"$f":"SUM(UAcct1081390Rcl)","v":0},{"$f":"VLOOKUP($F1320,FactSum,'COS Factor Table'!F$115,FALSE)*$H1320","v":0},{"$f":"VLOOKUP($F1320,FactSum,'COS Factor Table'!G$115,FALSE)*$H1320","v":0},{"$f":"VLOOKUP($F1320,FactSum,'COS Factor Table'!H$115,FALSE)*$H1320","v":0},{"$f":"VLOOKUP($F1320,FactSum,'COS Factor Table'!I$115,FALSE)*$H1320","v":0},{"$f":"VLOOKUP($F1320,FactSum,'COS Factor Table'!J$115,FALSE)*$H1320","v":0},{"$f":"VLOOKUP($F1320,FactSum,'COS Factor Table'!K$115,FALSE)*$H1320","v":0},{"$f":"VLOOKUP($F1320,FactSum,'COS Factor Table'!L$115,FALSE)*$H1320","v":0},{"$f":"VLOOKUP($F1320,FactSum,'COS Factor Table'!M$115,FALSE)*$H1320","v":0},{"$f":"VLOOKUP($F1320,FactSum,'COS Factor Table'!N$115,FALSE)*$H1320","v":0},{"$f":"ROUND(SUM(I1320:Q1320)-H1320,0)","v":0}]
[1321]
[1322,null,"1081399"," Accum Depr - Capital Lease",null,{"$f":"IF(Classification=\"DEMAND\",\"F12\",IF(Classification=\"ENERGY\",\"F30\",\"F10\"))","v":"F10"},null,{"$f":"SUM(UAcct1081399)","v":0},{"$f":"VLOOKUP($F1322,FactSum,'COS Factor Table'!F$115,FALSE)*$H1322","v":0},{"$f":"VLOOKUP($F1322,FactSum,'COS Factor Table'!G$115,FALSE)*$H1322","v":0},{"$f":"VLOOKUP($F1322,FactSum,'COS Factor Table'!H$115,FALSE)*$H1322","v":0},{"$f":"VLOOKUP($F1322,FactSum,'COS Factor Table'!I$115,FALSE)*$H1322","v":0},{"$f":"VLOOKUP($F1322,FactSum,'COS Factor Table'!J$115,FALSE)*$H1322","v":0},{"$f":"VLOOKUP($F1322,FactSum,'COS Factor Table'!K$115,FALSE)*$H1322","v":0},{"$f":"VLOOKUP($F1322,FactSum,'COS Factor Table'!L$115,FALSE)*$H1322","v":0},{"$f":"VLOOKUP($F1322,FactSum,'COS Factor Table'!M$115,FALSE)*$H1322","v":0},{"$f":"VLOOKUP($F1322,FactSum,'COS Factor Table'!N$115,FALSE)*$H1322","v":0},{"$f":"ROUND(SUM(I1322:Q1322)-H1322,0)","v":0}]
[1323,null,null," Remove Capital Lease",null,{"$f":"IF(Classification=\"DEMAND\",\"F12\",IF(Classification=\"ENERGY\",\"F30\",\"F10\"))","v":"F10"},null,{"$f":"SUM(UAcct1081399Rcl)","v":0},{"$f":"VLOOKUP($F1323,FactSum,'COS Factor Table'!F$115,FALSE)*$H1323","v":0},{"$f":"VLOOKUP($F1323,FactSum,'COS Factor Table'!G$115,FALSE)*$H1323","v":0},{"$f":"VLOOKUP($F1323,FactSum,'COS Factor Table'!H$115,FALSE)*$H1323","v":0},{"$f":"VLOOKUP($F1323,FactSum,'COS Factor Table'!I$115,FALSE)*$H1323","v":0},{"$f":"VLOOKUP($F1323,FactSum,'COS Factor Table'!J$115,FALSE)*$H1323","v":0},{"$f":"VLOOKUP($F1323,FactSum,'COS Factor Table'!K$115,FALSE)*$H1323","v":0},{"$f":"VLOOKUP($F1323,FactSum,'COS Factor Table'!L$115,FALSE)*$H1323","v":0},{"$f":"VLOOKUP($F1323,FactSum,'COS Factor Table'!M$115,FALSE)*$H1323","v":0},{"$f":"VLOOKUP($F1323,FactSum,'COS Factor Table'!N$115,FALSE)*$H1323","v":0},{"$f":"ROUND(SUM(I1323:Q1323)-H1323,0)","v":0}]
[1324]
[1325,null,"TOTAL GENERAL PLANT ACCUM DEPR",null,null,null,null,{"$f":"SUM(H1315:H1323)","v":-434411.96541662968},{"$f":"SUM(I1315:I1324)","v":-257185.67711178813},-65228.085420790521,-61037.462801283538,-21299.838635133292,{"$f":"SUM(M1315:M1324)","v":-2952.8883567522353},-20878.044102499902,-5829.968988382011,{"$f":"SUM(P1315:P1324)","v":0},{"$f":"SUM(Q1315:Q1324)","v":0},{"$f":"ROUND(SUM(I1325:Q1325)-H1325,0)","v":0}]
[1326]
[1327]
[1328,null,"TOTAL ACCUM DEPR - PLANT IN SERVICE",null,null,null,null,{"$f":"+H1254+H1259+H1304+H1325","v":-2361424.6741928025},{"$f":"I1254+I1259+I1304+I1325","v":-1568049.6231918556},-378092.17666373658,-208098.69387364705,-44867.263504729242,{"$f":"M1254+M1259+M1304+M1325","v":-21603.374758065856},-134921.6682890018,-5791.8739117663763,{"$f":"P1254+P1259+P1304+P1325","v":0},{"$f":"Q1254+Q1259+Q1304+Q1325","v":0},{"$f":"ROUND(SUM(I1328:Q1328)-H1328,0)","v":0}]
[1329]
[1330]
[1331,null,null,null,null,null,null,"ACCUMULATED AMORTIZATION"]
[1332]
[1333,null,"111SP","Accum Prov for Amort-Steam",null,{"$f":"IF(Classification=\"DEMAND\",\"F12\",IF(Classification=\"ENERGY\",\"F30\",\"F10\"))","v":"F10"},null,{"$f":"SUM(UAcct111Cls)","v":0},{"$f":"VLOOKUP($F1333,FactSum,'COS Factor Table'!F$115,FALSE)*$H1333","v":0},{"$f":"VLOOKUP($F1333,FactSum,'COS Factor Table'!G$115,FALSE)*$H1333","v":0},{"$f":"VLOOKUP($F1333,FactSum,'COS Factor Table'!H$115,FALSE)*$H1333","v":0},{"$f":"VLOOKUP($F1333,FactSum,'COS Factor Table'!I$115,FALSE)*$H1333","v":0},{"$f":"VLOOKUP($F1333,FactSum,'COS Factor Table'!J$115,FALSE)*$H1333","v":0},{"$f":"VLOOKUP($F1333,FactSum,'COS Factor Table'!K$115,FALSE)*$H1333","v":0},{"$f":"VLOOKUP($F1333,FactSum,'COS Factor Table'!L$115,FALSE)*$H1333","v":0},{"$f":"VLOOKUP($F1333,FactSum,'COS Factor Table'!M$115,FALSE)*$H1333","v":0},{"$f":"VLOOKUP($F1333,FactSum,'COS Factor Table'!N$115,FALSE)*$H1333","v":0},{"$f":"ROUND(SUM(I1333:Q1333)-H1333,0)","v":0}]
[1334]
[1335,null,"111GP","Accum Prov for Amort-General"]
[1336,null,null,"Division",null,"F108",null,{"$f":"SUM(UAcct111Clg)-H1337","v":-35934.359907800965},{"$f":"VLOOKUP($F1336,FactSum,'COS Factor Table'!F$115,FALSE)*$H1336","v":-17064.026977918093},{"$f":"VLOOKUP($F1336,FactSum,'COS Factor Table'!G$115,FALSE)*$H1336","v":-5000.1890827287434},{"$f":"VLOOKUP($F1336,FactSum,'COS Factor Table'!H$115,FALSE)*$H1336","v":-6872.5622612024727},{"$f":"VLOOKUP($F1336,FactSum,'COS Factor Table'!I$115,FALSE)*$H1336","v":-2651.0772672481407},{"$f":"VLOOKUP($F1336,FactSum,'COS Factor Table'!J$115,FALSE)*$H1336","v":-2746.0171281454418},{"$f":"VLOOKUP($F1336,FactSum,'COS Factor Table'!K$115,FALSE)*$H1336","v":-1397.3713569814377},{"$f":"VLOOKUP($F1336,FactSum,'COS Factor Table'!L$115,FALSE)*$H1336","v":-203.11583357663241},{"$f":"VLOOKUP($F1336,FactSum,'COS Factor Table'!M$115,FALSE)*$H1336","v":0},{"$f":"VLOOKUP($F1336,FactSum,'COS Factor Table'!N$115,FALSE)*$H1336","v":0},{"$f":"ROUND(SUM(I1336:Q1336)-H1336,0)","v":0}]
[1337,null,null,"System Overheads",null,"F108",null,{"$f":"SUM(UAcct111Clgsou)","v":-6889.348589082746},{"$f":"VLOOKUP($F1337,FactSum,'COS Factor Table'!F$115,FALSE)*$H1337","v":-3271.5214765483797},{"$f":"VLOOKUP($F1337,FactSum,'COS Factor Table'!G$115,FALSE)*$H1337","v":-958.63807482948698},{"$f":"VLOOKUP($F1337,FactSum,'COS Factor Table'!H$115,FALSE)*$H1337","v":-1317.6101435807113},{"$f":"VLOOKUP($F1337,FactSum,'COS Factor Table'!I$115,FALSE)*$H1337","v":-508.26550069423553},{"$f":"VLOOKUP($F1337,FactSum,'COS Factor Table'!J$115,FALSE)*$H1337","v":-526.46740545610498},{"$f":"VLOOKUP($F1337,FactSum,'COS Factor Table'!K$115,FALSE)*$H1337","v":-267.90454627118032},{"$f":"VLOOKUP($F1337,FactSum,'COS Factor Table'!L$115,FALSE)*$H1337","v":-38.941441702646202},{"$f":"VLOOKUP($F1337,FactSum,'COS Factor Table'!M$115,FALSE)*$H1337","v":0},{"$f":"VLOOKUP($F1337,FactSum,'COS Factor Table'!N$115,FALSE)*$H1337","v":0},{"$f":"ROUND(SUM(I1337:Q1337)-H1337,0)","v":0}]
[1338,null,null,"Total Accum Prov for Amort-General",null,null,null,{"$f":"SUM(H1336:H1337)","v":-42823.708496883708},{"$f":"SUM(I1336:I1337)","v":-20335.548454466472},{"$f":"SUM(J1336:J1337)","v":-5958.8271575582303},-8190.172404783184,-3159.3427679423762,{"$f":"SUM(M1336:M1337)","v":-3272.4845336015469},-1665.275903252618,-242.0572752792786,{"$f":"SUM(P1336:P1337)","v":0},{"$f":"SUM(Q1336:Q1337)","v":0},{"$f":"ROUND(SUM(I1338:Q1338)-H1338,0)","v":0}]
[1339]
[1340,null,"111HP","Accum Prov for Amort-Hydro",null,{"$f":"IF(Classification=\"DEMAND\",\"F12\",IF(Classification=\"ENERGY\",\"F30\",\"F10\"))","v":"F10"},null,{"$f":"SUM(UAcct111Clh)","v":0},{"$f":"VLOOKUP($F1340,FactSum,'COS Factor Table'!F$115,FALSE)*$H1340","v":0},{"$f":"VLOOKUP($F1340,FactSum,'COS Factor Table'!G$115,FALSE)*$H1340","v":0},{"$f":"VLOOKUP($F1340,FactSum,'COS Factor Table'!H$115,FALSE)*$H1340","v":0},{"$f":"VLOOKUP($F1340,FactSum,'COS Factor Table'!I$115,FALSE)*$H1340","v":0},{"$f":"VLOOKUP($F1340,FactSum,'COS Factor Table'!J$115,FALSE)*$H1340","v":0},{"$f":"VLOOKUP($F1340,FactSum,'COS Factor Table'!K$115,FALSE)*$H1340","v":0},{"$f":"VLOOKUP($F1340,FactSum,'COS Factor Table'!L$115,FALSE)*$H1340","v":0},{"$f":"VLOOKUP($F1340,FactSum,'COS Factor Table'!M$115,FALSE)*$H1340","v":0},{"$f":"VLOOKUP($F1340,FactSum,'COS Factor Table'!N$115,FALSE)*$H1340","v":0},{"$f":"ROUND(SUM(I1340:Q1340)-H1340,0)","v":0}]
[1341]
[1342,null,"111IP","Accum Prov for Amort-Intangible"]
[1343,null,null,null,"Situs",{"$f":"IF(Function=\"gen\",\"F107G\",IF(Function=\"TRN\",\"F107T\",IF(Function=\"DIS\",\"F107D\",IF(Function=\"RETAIL\",\"F107R\",IF(Function=\"MISC\",\"F107M\",\"ERR\")))))","v":"F107D"},null,{"$f":"SUM(UAcct111Ips)","v":0},{"$f":"VLOOKUP($F1343,FactSum,'COS Factor Table'!F$115,FALSE)*$H1343","v":0},{"$f":"VLOOKUP($F1343,FactSum,'COS Factor Table'!G$115,FALSE)*$H1343","v":0},{"$f":"VLOOKUP($F1343,FactSum,'COS Factor Table'!H$115,FALSE)*$H1343","v":0},{"$f":"VLOOKUP($F1343,FactSum,'COS Factor Table'!I$115,FALSE)*$H1343","v":0},{"$f":"VLOOKUP($F1343,FactSum,'COS Factor Table'!J$115,FALSE)*$H1343","v":0},{"$f":"VLOOKUP($F1343,FactSum,'COS Factor Table'!K$115,FALSE)*$H1343","v":0},{"$f":"VLOOKUP($F1343,FactSum,'COS Factor Table'!L$115,FALSE)*$H1343","v":0},{"$f":"VLOOKUP($F1343,FactSum,'COS Factor Table'!M$115,FALSE)*$H1343","v":0},{"$f":"VLOOKUP($F1343,FactSum,'COS Factor Table'!N$115,FALSE)*$H1343","v":0},{"$f":"ROUND(SUM(I1343:Q1343)-H1343,0)","v":0}]
[1344,null,null,null,"System Generation",{"$f":"IF(Function=\"gen\",\"F105G\",IF(Function=\"TRN\",\"F105T\",IF(Function=\"DIS\",\"F105D\",IF(Function=\"RETAIL\",\"F105R\",IF(Function=\"MISC\",\"F105M\",\"ERR\")))))","v":"F105D"},null,{"$f":"SUM(UAcct111Ipsgp+UAcct111Ipsgu+UAcct111Ipsg+'Func Study'!AB2503+UACCT111IPSSGCT+UACCT111IPSSGCH)","v":0},{"$f":"VLOOKUP($F1344,FactSum,'COS Factor Table'!F$115,FALSE)*$H1344","v":0},{"$f":"VLOOKUP($F1344,FactSum,'COS Factor Table'!G$115,FALSE)*$H1344","v":0},{"$f":"VLOOKUP($F1344,FactSum,'COS Factor Table'!H$115,FALSE)*$H1344","v":0},{"$f":"VLOOKUP($F1344,FactSum,'COS Factor Table'!I$115,FALSE)*$H1344","v":0},{"$f":"VLOOKUP($F1344,FactSum,'COS Factor Table'!J$115,FALSE)*$H1344","v":0},{"$f":"VLOOKUP($F1344,FactSum,'COS Factor Table'!K$115,FALSE)*$H1344","v":0},{"$f":"VLOOKUP($F1344,FactSum,'COS Factor Table'!L$115,FALSE)*$H1344","v":0},{"$f":"VLOOKUP($F1344,FactSum,'COS Factor Table'!M$115,FALSE)*$H1344","v":0},{"$f":"VLOOKUP($F1344,FactSum,'COS Factor Table'!N$115,FALSE)*$H1344","v":0},0]
[1345,null,null,null,"System Overheads",{"$f":"IF(Function=\"gen\",\"F102G\",IF(Function=\"TRN\",\"F102T\",IF(Function=\"DIS\",\"F102D\",IF(Function=\"RETAIL\",\"F102R\",IF(Function=\"MISC\",\"F102M\",\"ERR\")))))","v":"F102D"},null,{"$f":"SUM(UAcct111Ipso)","v":-160013.10189475081},{"$f":"VLOOKUP($F1345,FactSum,'COS Factor Table'!F$115,FALSE)*$H1345","v":-94732.837107952408},{"$f":"VLOOKUP($F1345,FactSum,'COS Factor Table'!G$115,FALSE)*$H1345","v":-24026.383041328889},{"$f":"VLOOKUP($F1345,FactSum,'COS Factor Table'!H$115,FALSE)*$H1345","v":-22482.791755636488},{"$f":"VLOOKUP($F1345,FactSum,'COS Factor Table'!I$115,FALSE)*$H1345","v":-7845.6707484946792},{"$f":"VLOOKUP($F1345,FactSum,'COS Factor Table'!J$115,FALSE)*$H1345","v":-1087.6791228797285},{"$f":"VLOOKUP($F1345,FactSum,'COS Factor Table'!K$115,FALSE)*$H1345","v":-7690.3052040300254},{"$f":"VLOOKUP($F1345,FactSum,'COS Factor Table'!L$115,FALSE)*$H1345","v":-2147.4349144285725},{"$f":"VLOOKUP($F1345,FactSum,'COS Factor Table'!M$115,FALSE)*$H1345","v":0},{"$f":"VLOOKUP($F1345,FactSum,'COS Factor Table'!N$115,FALSE)*$H1345","v":0},0]
[{"$f":"A1345+1","v":1346},null,null,null,"Customer - System","F42",null,{"$f":"SUM(UAcct111Ipcn)","v":0},{"$f":"VLOOKUP($F1346,FactSum,'COS Factor Table'!F$115,FALSE)*$H1346","v":0},{"$f":"VLOOKUP($F1346,FactSum,'COS Factor Table'!G$115,FALSE)*$H1346","v":0},{"$f":"VLOOKUP($F1346,FactSum,'COS Factor Table'!H$115,FALSE)*$H1346","v":0},{"$f":"VLOOKUP($F1346,FactSum,'COS Factor Table'!I$115,FALSE)*$H1346","v":0},{"$f":"VLOOKUP($F1346,FactSum,'COS Factor Table'!J$115,FALSE)*$H1346","v":0},{"$f":"VLOOKUP($F1346,FactSum,'COS Factor Table'!K$115,FALSE)*$H1346","v":0},{"$f":"VLOOKUP($F1346,FactSum,'COS Factor Table'!L$115,FALSE)*$H1346","v":0},{"$f":"VLOOKUP($F1346,FactSum,'COS Factor Table'!M$115,FALSE)*$H1346","v":0},{"$f":"VLOOKUP($F1346,FactSum,'COS Factor Table'!N$115,FALSE)*$H1346","v":0},0]
[1347,null,null,null,"CAEE",{"$f":"IF(Function=\"gen\",\"F105G\",IF(Function=\"TRN\",\"F105T\",IF(Function=\"DIS\",\"F105D\",IF(Function=\"RETAIL\",\"F105R\",IF(Function=\"MISC\",\"F105M\",\"ERR\")))))","v":"F105D"},null,0,{"$f":"VLOOKUP($F1347,FactSum,'COS Factor Table'!F$115,FALSE)*$H1347","v":0},{"$f":"VLOOKUP($F1347,FactSum,'COS Factor Table'!G$115,FALSE)*$H1347","v":0},{"$f":"VLOOKUP($F1347,FactSum,'COS Factor Table'!H$115,FALSE)*$H1347","v":0},{"$f":"VLOOKUP($F1347,FactSum,'COS Factor Table'!I$115,FALSE)*$H1347","v":0},{"$f":"VLOOKUP($F1347,FactSum,'COS Factor Table'!J$115,FALSE)*$H1347","v":0},{"$f":"VLOOKUP($F1347,FactSum,'COS Factor Table'!K$115,FALSE)*$H1347","v":0},{"$f":"VLOOKUP($F1347,FactSum,'COS Factor Table'!L$115,FALSE)*$H1347","v":0},{"$f":"VLOOKUP($F1347,FactSum,'COS Factor Table'!M$115,FALSE)*$H1347","v":0},{"$f":"VLOOKUP($F1347,FactSum,'COS Factor Table'!N$115,FALSE)*$H1347","v":0},0]
[1348,null,null,null,"CAEE",{"$f":"IF(Function=\"gen\",\"F105G\",IF(Function=\"TRN\",\"F105T\",IF(Function=\"DIS\",\"F105D\",IF(Function=\"RETAIL\",\"F105R\",IF(Function=\"MISC\",\"F105M\",\"ERR\")))))","v":"F105D"},null,0,{"$f":"VLOOKUP($F1348,FactSum,'COS Factor Table'!F$115,FALSE)*$H1348","v":0},{"$f":"VLOOKUP($F1348,FactSum,'COS Factor Table'!G$115,FALSE)*$H1348","v":0},{"$f":"VLOOKUP($F1348,FactSum,'COS Factor Table'!H$115,FALSE)*$H1348","v":0},{"$f":"VLOOKUP($F1348,FactSum,'COS Factor Table'!I$115,FALSE)*$H1348","v":0},{"$f":"VLOOKUP($F1348,FactSum,'COS Factor Table'!J$115,FALSE)*$H1348","v":0},{"$f":"VLOOKUP($F1348,FactSum,'COS Factor Table'!K$115,FALSE)*$H1348","v":0},{"$f":"VLOOKUP($F1348,FactSum,'COS Factor Table'!L$115,FALSE)*$H1348","v":0},{"$f":"VLOOKUP($F1348,FactSum,'COS Factor Table'!M$115,FALSE)*$H1348","v":0},{"$f":"VLOOKUP($F1348,FactSum,'COS Factor Table'!N$115,FALSE)*$H1348","v":0},0]
[1349,null,null,null,"Energy",{"$f":"IF(Classification=\"DEMAND\",\"F12\",IF(Classification=\"ENERGY\",\"F30\",\"F10\"))","v":"F10"},null,{"$f":"SUM(UAcct111Ipse)","v":0},{"$f":"VLOOKUP($F1349,FactSum,'COS Factor Table'!F$115,FALSE)*$H1349","v":0},{"$f":"VLOOKUP($F1349,FactSum,'COS Factor Table'!G$115,FALSE)*$H1349","v":0},{"$f":"VLOOKUP($F1349,FactSum,'COS Factor Table'!H$115,FALSE)*$H1349","v":0},{"$f":"VLOOKUP($F1349,FactSum,'COS Factor Table'!I$115,FALSE)*$H1349","v":0},{"$f":"VLOOKUP($F1349,FactSum,'COS Factor Table'!J$115,FALSE)*$H1349","v":0},{"$f":"VLOOKUP($F1349,FactSum,'COS Factor Table'!K$115,FALSE)*$H1349","v":0},{"$f":"VLOOKUP($F1349,FactSum,'COS Factor Table'!L$115,FALSE)*$H1349","v":0},{"$f":"VLOOKUP($F1349,FactSum,'COS Factor Table'!M$115,FALSE)*$H1349","v":0},{"$f":"VLOOKUP($F1349,FactSum,'COS Factor Table'!N$115,FALSE)*$H1349","v":0},0]
[1350,null,null,"Total Accum Prov for Amort-Intangible",null,null,null,{"$f":"SUM(H1343:H1349)","v":-160013.10189475081},{"$f":"SUM(I1343:I1349)","v":-94732.837107952408},-24026.383041328889,-22482.791755636488,-7845.6707484946792,{"$f":"SUM(M1343:M1349)","v":-1087.6791228797285},-7690.3052040300254,-2147.4349144285725,{"$f":"SUM(P1343:P1349)","v":0},{"$f":"SUM(Q1343:Q1349)","v":0},0]
[1351]
[1352,null,"111390","Accum Amtr - Capital Lease"]
[1353,null,null,"Situs",null,{"$f":"IF(Function=\"gen\",\"F107G\",IF(Function=\"TRN\",\"F107T\",IF(Function=\"DIS\",\"F107D\",IF(Function=\"RETAIL\",\"F107R\",IF(Function=\"MISC\",\"F107M\",\"ERR\")))))","v":"F107D"},null,{"$f":"SUM('Func Study'!AB2514)","v":0},{"$f":"VLOOKUP($F1353,FactSum,'COS Factor Table'!F$115,FALSE)*$H1353","v":0},{"$f":"VLOOKUP($F1353,FactSum,'COS Factor Table'!G$115,FALSE)*$H1353","v":0},{"$f":"VLOOKUP($F1353,FactSum,'COS Factor Table'!H$115,FALSE)*$H1353","v":0},{"$f":"VLOOKUP($F1353,FactSum,'COS Factor Table'!I$115,FALSE)*$H1353","v":0},{"$f":"VLOOKUP($F1353,FactSum,'COS Factor Table'!J$115,FALSE)*$H1353","v":0},{"$f":"VLOOKUP($F1353,FactSum,'COS Factor Table'!K$115,FALSE)*$H1353","v":0},{"$f":"VLOOKUP($F1353,FactSum,'COS Factor Table'!L$115,FALSE)*$H1353","v":0},{"$f":"VLOOKUP($F1353,FactSum,'COS Factor Table'!M$115,FALSE)*$H1353","v":0},{"$f":"VLOOKUP($F1353,FactSum,'COS Factor Table'!N$115,FALSE)*$H1353","v":0},{"$f":"ROUND(SUM(I1353:Q1353)-H1353,0)","v":0}]
[1354,null,null,"System Generation",null,{"$f":"IF(Function=\"gen\",\"F105G\",IF(Function=\"TRN\",\"F105T\",IF(Function=\"DIS\",\"F105D\",IF(Function=\"RETAIL\",\"F105R\",IF(Function=\"MISC\",\"F105M\",\"ERR\")))))","v":"F105D"},null,{"$f":"SUM('Func Study'!AB2513)","v":0},{"$f":"VLOOKUP($F1354,FactSum,'COS Factor Table'!F$115,FALSE)*$H1354","v":0},{"$f":"VLOOKUP($F1354,FactSum,'COS Factor Table'!G$115,FALSE)*$H1354","v":0},{"$f":"VLOOKUP($F1354,FactSum,'COS Factor Table'!H$115,FALSE)*$H1354","v":0},{"$f":"VLOOKUP($F1354,FactSum,'COS Factor Table'!I$115,FALSE)*$H1354","v":0},{"$f":"VLOOKUP($F1354,FactSum,'COS Factor Table'!J$115,FALSE)*$H1354","v":0},{"$f":"VLOOKUP($F1354,FactSum,'COS Factor Table'!K$115,FALSE)*$H1354","v":0},{"$f":"VLOOKUP($F1354,FactSum,'COS Factor Table'!L$115,FALSE)*$H1354","v":0},{"$f":"VLOOKUP($F1354,FactSum,'COS Factor Table'!M$115,FALSE)*$H1354","v":0},{"$f":"VLOOKUP($F1354,FactSum,'COS Factor Table'!N$115,FALSE)*$H1354","v":0},{"$f":"ROUND(SUM(I1354:Q1354)-H1354,0)","v":0}]
[1355,null,null,"System Overheads",null,{"$f":"IF(Function=\"gen\",\"F102G\",IF(Function=\"TRN\",\"F102T\",IF(Function=\"DIS\",\"F102D\",IF(Function=\"RETAIL\",\"F102R\",IF(Function=\"MISC\",\"F102M\",\"ERR\")))))","v":"F102D"},null,{"$f":"SUM('Func Study'!AB2515)","v":428.05841850932114},{"$f":"VLOOKUP($F1355,FactSum,'COS Factor Table'!F$115,FALSE)*$H1355","v":253.42417560284488},{"$f":"VLOOKUP($F1355,FactSum,'COS Factor Table'!G$115,FALSE)*$H1355","v":64.274083843054385},{"$f":"VLOOKUP($F1355,FactSum,'COS Factor Table'!H$115,FALSE)*$H1355","v":60.144751702409629},{"$f":"VLOOKUP($F1355,FactSum,'COS Factor Table'!I$115,FALSE)*$H1355","v":20.988315162807588},{"$f":"VLOOKUP($F1355,FactSum,'COS Factor Table'!J$115,FALSE)*$H1355","v":2.9097005162223892},{"$f":"VLOOKUP($F1355,FactSum,'COS Factor Table'!K$115,FALSE)*$H1355","v":20.572689639229377},{"$f":"VLOOKUP($F1355,FactSum,'COS Factor Table'!L$115,FALSE)*$H1355","v":5.744702042752845},{"$f":"VLOOKUP($F1355,FactSum,'COS Factor Table'!M$115,FALSE)*$H1355","v":0},{"$f":"VLOOKUP($F1355,FactSum,'COS Factor Table'!N$115,FALSE)*$H1355","v":0},{"$f":"ROUND(SUM(I1355:Q1355)-H1355,0)","v":0}]
[1356,null,null,"Remove Capital Lease Amtr",null,null,null,{"$f":"-SUM(H1353:H1355)","v":-428.05841850932114},{"$f":"-SUM(I1353:I1355)","v":-253.42417560284488},-64.274083843054385,-60.144751702409629,-20.988315162807588,{"$f":"-SUM(M1353:M1355)","v":-2.9097005162223892},-20.572689639229377,-5.744702042752845,0,0,{"$f":"ROUND(SUM(I1356:Q1356)-H1356,0)","v":0}]
[1357,null,"TOTAL ACCUM PROV FOR AMORTIZATION",null,null,null,null,{"$f":"SUM(H1333:H1337)+SUM(H1340:H1349)+H1353+H1354+H1355+H1356","v":-202836.81039163453},{"$f":"SUM(I1333:I1337)+SUM(I1340:I1349)+I1353+I1354+I1355+I1356","v":-115068.38556241887},-29985.210198887118,-30672.964160419673,-11005.013516437055,{"$f":"SUM(M1333:M1337)+SUM(M1340:M1349)+M1353+M1354+M1355+M1356","v":-4360.1636564812752},-9355.5811072826436,-2389.4921897078511,0,0,{"$f":"ROUND(SUM(I1357:Q1357)-H1357,0)","v":0}]

{"sheet":"JAM Download","index":18,"n_rows":2845,"n_cols":17,"rows_kept":2845,"cut":false,"hidden":false,"merged":[]}
["ACCOUNT","RESULTS OF OPERATIONS","WCA Factor",null,{"$f":"+TestPeriod","v":"12 Months Ending June 2012"}]
[null,null,null,null,null,null,null,null,null,null,"JAM Inputs"]
[440,"Residential Sales",null,null,null,null,null,null,null,null,"Production","Transmission","DIS","DPW","CUT","MISC","Total"]
[null,null,"S",null,{"$f":"+Q4","v":135000239.56999999},null,null,null,null,"ACCMDIT",0.79018896309372733,8.1838038938181937E-2,0.12797299796809078,0.12381804895537642,4.1549490127143719E-3,0,135000239.56999999]
[null,null,null,null,{"$f":"+Q5","v":0},null,null,null,null,"BOOKDEPR",0.54924231762625964,0.16151677382348767,0.28924090855025253,0.28605968276493932,3.1812257853132309E-3,0,0]
[null,null,null,null,135000239.56999999,null,null,null,null,"COM-EQ",0,0,0,0,0,0,135000239.56999999]
[null,null,null,null,0,null,null,null,null,"CUST",0,0,1,0,1,0,0]
[442,"Commercial & Industrial Sales",null,null,0,null,null,null,null,"CWC",0.69766203958339357,0.16080998255110926,0.14152797786549703,9.5448542467147429E-2,3.8236250128966892E-2,7.8431852693827079E-3,0]
[null,null,"S",null,167900916.90000001,null,null,null,null,"DDS2",0.85553293171941447,1.076861356747129E-2,0.13369845471311431,1.4751124199191758E-2,0.15777880740653,-3.8831476892607436E-2,167900916.90000001]
[null,null,"SE",null,0,null,null,null,null,"DDS6",0,0,0,0,0,0,0]
[null,null,"SG",null,0,null,null,null,null,"DDSO2",0.10749283238949794,3.5830944129832655E-2,0.85667622348066952,0.21498566477899589,0,0.64169055870167357,0]
[null,null,null,null,0,null,null,null,null,"DDSO6",0,0,1,0,0,1,0]
[null,null,null,null,0,null,null,null,null,"DEFSG",0.692942089401404,0.307057910598596,0,0,0,0,0]
[null,null,null,null,167900916.90000001,null,null,null,null,"DITEXP",0.95405218631618194,-1.7802878900708932E-2,6.3750692584526911E-2,6.0565025163669579E-2,3.1856674208573287E-3,0,167900916.90000001]
[null,null,null,null,0,null,null,null,null,"DMSC",0,0,1,0,0,1,0]
[444,"Public Street & Highway Lighting",null,null,0,null,null,null,null,"DPW",0,0,1,1,0,0,0]
[null,null,"S",null,1162053.8799999999,null,null,null,null,"ESD",0.3,0.1,0.6,0.6,0,0,1162053.8799999999]
[null,null,"SO",null,0,null,null,null,null,"FERC",0.51783654984003269,0.48216345015996731,0,0,0,0,0]
[null,null,null,null,1162053.8799999999,null,null,null,null,"FIT",1.1688844574871449,3.6083766826626958E-2,-0.20496822431377085,-0.17764648220792026,-1.7789925998270745E-2,-9.5318161075798238E-3,1162053.8799999999]
[null,null,null,null,0,null,null,null,null,"G",0.33725965480133235,0.18510139570307821,0.47763894949558938,0.45254539034670116,2.509355914888825E-2,0,0]
[445,"Other Sales to Public Authority",null,null,0,null,null,null,null,"G-DGP",0.69712876692486192,0.30287123307513802,0,0,0,0,0]
[null,null,"S",null,0,null,null,null,null,"G-DGU",0.69712876692486192,0.30287123307513802,0,0,0,0,0]
[null,null,null,null,0,null,null,null,null,"GP",0.50531041300874846,0.21296464671128551,0.28172494027996625,0.27514783251038133,6.5771077695849136E-3,0,0]
[null,null,null,null,0,null,null,null,null,"G-SG",0.99898215951822222,1.017840481777828E-3,0,0,0,0,0]
[null,null,null,null,0,null,null,null,null,"G-SITUS",0,0.25401228549654764,0.74598771450345236,0.74598771450345236,0,0,0]
[448,"Interdepartmental",null,null,0,null,null,null,null,"I",0.55582392599416641,0.14762997154346119,0.29654610246237245,0.14245501010267919,0.15409109235969329,0,0]
[null,null,"S",null,0,null,null,null,null,"IBT",1.3364001958537777,7.1875093825867972E-2,-0.40827528967964349,-0.35385323372358174,-3.5435674064311203E-2,-1.8986381891750555E-2,0]
[null,null,"SO",null,0,null,null,null,null,"I-DGP",1,0,0,0,0,0,0]
[null,null,null,null,0,null,null,null,null,"I-DGU",1,0,0,0,0,0,0]
[null,null,null,null,0,null,null,null,null,"I-SG",0.85536695399256235,0.14463304600743784,0,0,0,0,0]
["Total Sales to Ultimate Customers",null,null,null,304063210.35000002,null,null,null,null,"I-SITUS",2.5219270088888916E-2,0.45848484838651204,0.51629588152459904,0.51629588152459904,0,0,304063210.35000002]
[null,null,null,null,0,null,null,null,null,"LABOR",0.43577266359732098,7.2028278420365022E-2,0.492199057982314,0.34638820477027932,0.14581085321203469,0,0]
[null,null,null,null,0,null,null,null,null,"MSS",0.78180305398604233,6.0702949940319682E-3,0.21212665101992567,0.21212665101992567,0,0,0]
[null,null,null,null,0,null,null,null,null,"NONE",0,0,0,0,0,0,0]
[447,"Sales for Resale",null,null,0,null,null,null,null,"NUTIL",0,0,0,0,0,0,0]
[null,null,"S",null,0,null,null,null,null,"OTHDGP",0.57874764096849529,0.42125235903150471,0,0,0,0,0]
[null,null,"CAGW",null,0,null,null,null,null,"OTHDGU",0.57874764096849529,0.42125235903150471,0,0,0,0,0]
[null,null,null,null,0,null,null,null,null,"OTHSE",0,1,0,0,0,0,0]
[null,null,null,null,0,null,null,null,null,"OTHSG",0.57874764096849529,0.42125235903150471,0,0,0,0,0]
["447NPC","Sales for Resale - NPC",null,null,0,null,null,null,null,"OTHSGR",0.57874764096849529,0.42125235903150471,0,0,0,0,0]
[null,null,"SG",null,0,null,null,null,null,"OTHSITUS",5.7696681464325496E-3,0,0.99423033185356746,0,0,0.99423033185356746,0]
[null,null,"SE",null,0,null,null,null,null,"OTHSO",0,0,1,0,0,1,0]
[null,null,"DGP",null,0,null,null,null,null,"P",1,0,0,0,0,0,0]
[null,null,"CAGW",null,17001667.092285357,null,null,null,null,"PT",0.72098325173517375,0.27901674826482614,0,0,0,0,17001667.092285357]
[null,null,"CAGE",null,0,null,null,null,null,"PTD",0.50891728264852409,0.19694832716103053,0.29413439019044535,0.29413439019044535,0,0,0]
[null,null,"CAEW",null,0,null,null,null,null,"REVREQ",0.67154025321940569,0.1587111156255141,0.16974863115508004,0.1359418575764659,2.8063040845227306E-2,5.7437327333868197E-3,0]
[null,null,"CAEE",null,0,null,null,null,null,"SCHMA",0.51577805211332484,0.17785176096280442,0.3063701869238708,0.29207769541570439,1.2604298561731647E-2,1.6881929464348014E-3,0]
[null,null,null,null,17001667.092285357,null,null,null,null,"SCHMAF",1,0,0,0,0,0,17001667.092285357]
[null,null,null,null,0,null,null,null,null,"SCHMAP",0.47220936057207102,0.138624571441712,0.38916606798621695,0.31120786939259704,7.7958198593619923E-2,0,0]
[null,"Total Sales for Resale",null,null,17001667.092285357,null,null,null,null,"SCHMAP-SO",0.46695715823437201,0.14000406596813605,0.39303877579749191,0.31430479187857707,7.8733983918914854E-2,0,17001667.092285357]
[null,null,null,null,0,null,null,null,null,"SCHMAT",0.5161602312280279,0.17819585696461496,0.30564391180735723,0.2919098879214701,1.2031022322004977E-2,1.7030015638821614E-3,0]
[449,"Provision for Rate Refund",null,null,0,null,null,null,null,"SCHMAT-GPS",0,0,0,0,0,0,0]
[null,null,"S",null,0,null,null,null,null,"SCHMAT-SE",1,0,0,0,0,0,0]
[null,null,"SG",null,0,null,null,null,null,"SCHMAT-SITUS",0.68789997808111003,0.1122395497862909,0.19986047213259905,0.16561182938630906,1.0258460638137939E-2,2.3990182108152083E-2,0]
[null,null,null,null,0,null,null,null,null,"SCHMAT-SNP",0.50361932616077032,0.21956599431989174,0.27681467951933791,0.27659585057984348,2.1882893949445097E-4,0,0]
[null,null,null,null,0,null,null,null,null,"SCHMAT-SO",0.46661318737226282,0.13925428020064187,0.39413253242709539,0.31465867797871139,7.9473854448383993E-2,0,0]
[null,null,null,null,0,null,null,null,null,"SCHMD",0.62691120168290648,0.14566463329808196,0.22742416501901164,0.19770155852585497,5.2145868752490132E-3,2.4508019617907648E-2,0]
[null,null,null,null,0,null,null,null,null,"SCHMDF",1,0,0,0,0,0,0]
["Total Sales from Electricity",null,null,null,321064877.44228536,null,null,null,null,"SCHMDP",0.45907602575732509,7.3800298018591851E-2,0.46712367622408307,0.33122834583438432,0.13589533038969875,0,321064877.44228536]
[450,"Forfeited Discounts & Interest",null,null,0,null,null,null,null,"SCHMDP-SO",0.43577266359732098,7.2028278420365022E-2,0.492199057982314,0.34638820477027932,0.14581085321203469,0,0]
[null,null,"S",null,678122.06,null,null,null,null,"SCHMDT",0.62801601740022717,0.14613769770006871,0.22584628489970426,0.19682258609061767,4.3543492129729825E-3,2.4669349596113603E-2,678122.06]
[null,null,"SO",null,0,null,null,null,null,"SCHMDT-GPS",0.5035611250734281,0.21979318880680054,0.27664568611977131,0.27664568611977131,0,0,0]
[null,null,null,null,678122.06,null,null,null,null,"SCHMDT-SG",1,0,0,0,0,0,678122.06]
[null,null,null,null,0,null,null,null,null,"SCHMDT-SITUS",0.54030864816472712,7.1658766797031578E-2,0.38803258503824145,0.1871749065492978,6.606595505664814E-2,0.13479172343229553,0]
[451,"Misc Electric Revenue",null,null,0,null,null,null,null,"SCHMDT-SNP",0.5035611250734281,0.21979318880680054,0.27664568611977131,0.27664568611977131,0,0,0]
[null,null,"S",null,162036.34,null,null,null,null,"SCHMDT-SO",0.44271776887128472,0.16081507666864175,0.39646715446007358,0.36653269611301859,2.9934458347055E-2,0,162036.34]
[null,null,"SG",null,0,null,null,null,null,"T",0,1,0,0,0,0,0]
[null,null,"SO",null,282.88029474284355,null,null,null,null,"TAXDEPR",0.57503857689425475,0.17851192951080661,0.24644949359493873,0.24137635753524717,5.0731360596915614E-3,0,282.88029474284355]
[null,null,null,null,{"$f":"+Q69","v":162319.22029474284},null,null,null,null,"TD",0,0.44273968036711486,0.55726031963288514,0.55726031963288514,0,0,162319.22029474284]
[null,null,null,null,0,null,null,null,null,"WSF",0,0,0,0,0,0,0]
[453,"Water Sales",null,null,0,null,null,null,null,null,null,null,null,null,null,null,0]
[null,null,"CAGW",null,0,null,null,null,null,null,null,null,null,null,null,null,0]
[null,null,"CAGE",null,0,null,null,null,null,null,null,null,null,null,null,null,0]
[null,null,"JBG",null,1193.8950647294114,null,null,null,null,null,null,null,null,null,null,null,1193.8950647294114]
[null,null,"SG",null,0,null,null,null,null,null,null,null,null,null,null,null,0]
[null,null,null,null,1193.8950647294114,null,null,null,null,null,null,null,null,null,null,null,1193.8950647294114]
[null,null,null,null,0,null,null,null,null,null,null,null,null,null,null,null,0]
[454,"Rent of Electric Property",null,null,0,null,null,null,null,null,null,null,null,null,null,null,0]
[null,null,"S",null,1090881.68,null,null,null,null,null,null,null,null,null,null,null,1090881.68]
[null,null,"CAGW",null,157748.98148277361,null,null,null,null,null,null,null,null,null,null,null,157748.98148277361]
[null,null,"CAGE",null,0,null,null,null,null,null,null,null,null,null,null,null,0]
[null,null,"JBG",null,1850.3646774649985,null,null,null,null,null,null,null,null,null,null,null,1850.3646774649985]
[null,null,"SG",null,88433.266029775434,null,null,null,null,null,null,null,null,null,null,null,88433.266029775434]
[null,null,"SO",null,248334.89694383481,null,null,null,null,null,null,null,null,null,null,null,248334.89694383481]
[null,null,null,null,1587249.1891338488,null,null,null,null,null,null,null,null,null,null,null,1587249.1891338488]
[null,null,null,null,0,null,null,null,null,null,null,null,null,null,null,null,0]
[null,null,null,null,0,null,null,null,null,null,null,null,null,null,null,null,0]
[null,null,null,null,0,null,null,null,null,null,null,null,null,null,null,null,0]
[456,"Other Electric Revenue",null,null,0,null,null,null,null,null,null,null,null,null,null,null,0]
[null,null,"S",null,-2967338,null,null,null,null,null,null,null,null,null,null,null,-2967338]
[null,null,"CAGE",null,0,null,null,null,null,null,null,null,null,null,null,null,0]
[null,null,"CAGW",null,3460165.0915401885,null,null,null,null,null,null,null,null,null,null,null,3460165.0915401885]
[null,null,"SO",null,-1820.4367891981283,null,null,null,null,null,null,null,null,null,null,null,-1820.4367891981283]
[null,null,"SG",null,39762.058267904446,null,null,null,null,null,null,null,null,null,null,null,39762.058267904446]
[null,null,"JBG",null,230219.96434434847,null,null,null,null,null,null,null,null,null,null,null,230219.96434434847]
[null,null,"WRG",null,3039057.2518028975,null,null,null,null,null,null,null,null,null,null,null,3039057.2518028975]
[null,null,"WRE",null,566679.43535846728,null,null,null,null,null,null,null,null,null,null,null,566679.43535846728]
[null,null,"CAEW",null,0,null,null,null,null,null,null,null,null,null,null,null,0]
[null,null,"CAEE",null,0,null,null,null,null,null,null,null,null,null,null,null,0]
[null,null,null,null,4366725.3645246085,null,null,null,null,null,null,null,null,null,null,null,4366725.3645246085]
[null,null,null,null,0,null,null,null,null,null,null,null,null,null,null,null,0]
[null,"Total Other Electric Revenues",null,null,6795609.7290179292,null,null,null,null,null,null,null,null,null,null,null,6795609.7290179292]
[null,null,null,null,0,null,null,null,null,null,null,null,null,null,null,null,0]
["Total Electric Operating Revenues",null,null,null,327860487.17130327,null,null,null,null,null,null,null,null,null,null,null,327860487.17130327]
[null,null,null,null,0,null,null,null,null,null,null,null,null,null,null,null,0]
["Summary of Revenues by Factor",null,null,null,0,null,null,null,null,null,null,null,null,null,null,null,0]
[null,"S",null,null,303026912.43000001,null,null,null,null,null,null,null,null,null,null,null,303026912.43000001]
[null,"CN",null,null,233264.22408654288,null,null,null,null,null,null,null,null,null,null,null,233264.22408654288]
[null,"SE",null,null,0,null,null,null,null,null,null,null,null,null,null,null,0]
[null,"SO",null,null,246797.34044937952,null,null,null,null,null,null,null,null,null,null,null,246797.34044937952]
[null,"SG",null,null,128195.32429767988,null,null,null,null,null,null,null,null,null,null,null,128195.32429767988]
[null,"CAEW",null,null,0,null,null,null,null,null,null,null,null,null,null,null,0]
[null,"CAEE",null,null,0,null,null,null,null,null,null,null,null,null,null,null,0]
[null,"CAGW",null,null,20619581.165308319,null,null,null,null,null,null,null,null,null,null,null,20619581.165308319]
[null,"CAGE",null,null,0,null,null,null,null,null,null,null,null,null,null,null,0]
[null,"WRG",null,null,3039057.2518028975,null,null,null,null,null,null,null,null,null,null,null,3039057.2518028975]
[null,"WRE",null,null,566679.43535846728,null,null,null,null,null,null,null,null,null,null,null,566679.43535846728]
["Total Electric Operating Revenues",null,null,null,327860487.17130327,null,null,null,null,null,null,null,null,null,null,null,327860487.17130327]
["Miscellaneous Revenues",null,null,null,0,null,null,null,null,null,null,null,null,null,null,null,0]
[41160,"Gain on Sale of Utility Plant - CR",null,null,0,null,null,null,null,null,null,null,null,null,null,null,0]
[null,null,"S",null,0,null,null,null,null,null,null,null,null,null,null,null,0]
[null,null,"SG",null,0,null,null,null,null,null,null,null,null,null,null,null,0]
[null,null,"SO",null,0,null,null,null,null,null,null,null,null,null,null,null,0]
[null,null,"DGU",null,0,null,null,null,null,null,null,null,null,null,null,null,0]
[null,null,"DGP",null,0,null,null,null,null,null,null,null,null,null,null,null,0]
[null,null,null,null,0,null,null,null,null,null,null,null,null,null,null,null,0]
[null,null,null,null,0,null,null,null,null,null,null,null,null,null,null,null,0]
[41170,"Loss on Sale of Utility Plant",null,null,0,null,null,null,null,null,null,null,null,null,null,null,0]
[null,null,"S",null,0,null,null,null,null,null,null,null,null,null,null,null,0]
[null,null,"CAGW",null,0,null,null,null,null,null,null,null,null,null,null,null,0]
[null,null,"CAGE",null,0,null,null,null,null,null,null,null,null,null,null,null,0]
[null,null,"SG",null,0,null,null,null,null,null,null,null,null,null,null,null,0]
[null,null,null,null,{"$f":"+Q133","v":0},null,null,null,null,null,null,null,null,null,null,null,0]
[null,null,null,null,0,null,null,null,null,null,null,null,null,null,null,null,0]
[4118,"Gain from Emission Allowances",null,null,0,null,null,null,null,null,null,null,null,null,null,null,0]
[null,null,"S",null,-854647.89922117116,null,null,null,null,null,null,null,null,null,null,null,-854647.89922117116]
[null,null,"CAEW",null,0,null,null,null,null,null,null,null,null,null,null,null,0]
[null,null,"CAEE",null,0,null,null,null,null,null,null,null,null,null,null,null,0]
[null,null,"SE",null,-2.2485322085827875E-2,null,null,null,null,null,null,null,null,null,null,null,-2.2485322085827875E-2]
[null,null,null,null,-854647.92170649325,null,null,null,null,null,null,null,null,null,null,null,-854647.92170649325]
[null,null,null,null,0,null,null,null,null,null,null,null,null,null,null,null,0]
[41181,"Gain from Disposition of NOX Credits",null,null,0,null,null,null,null,null,null,null,null,null,null,null,0]
[null,null,"SE",null,0,null,null,null,null,null,null,null,null,null,null,null,0]
[null,null,null,null,0,null,null,null,null,null,null,null,null,null,null,null,0]
[null,null,null,null,0,null,null,null,null,null,null,null,null,null,null,null,0]
[4194,"Impact Housing Interest Income",null,null,0,null,null,null,null,null,null,null,null,null,null,null,0]
[null,null,"DGU",null,0,null,null,null,null,null,null,null,null,null,null,null,0]
[null,null,null,null,0,null,null,null,null,null,null,null,null,null,null,null,0]
[null,null,null,null,0,null,null,null,null,null,null,null,null,null,null,null,0]
[421,"(Gain) / Loss on Sale of Utility Plant",null,null,0,null,null,null,null,null,null,null,null,null,null,null,0]
[null,null,"S",null,2902.92,null,null,null,null,null,null,null,null,null,null,null,2902.92]
[null,null,"DGP",null,0,null,null,null,null,null,null,null,null,null,null,null,0]
[null,null,"DGU",null,0,null,null,null,null,null,null,null,null,null,null,null,0]
[null,null,"CN",null,0,null,null,null,null,null,null,null,null,null,null,null,0]
[null,null,"SO",null,2622.3892847143306,null,null,null,null,null,null,null,null,null,null,null,2622.3892847143306]
[null,null,"CAGW",null,0,null,null,null,null,null,null,null,null,null,null,null,0]
[null,null,"CAGE",null,0,null,null,null,null,null,null,null,null,null,null,null,0]
[null,null,"SG",null,0,null,null,null,null,null,null,null,null,null,null,null,0]
[null,null,null,null,5525.3092847143307,null,null,null,null,null,null,null,null,null,null,null,5525.3092847143307]
[null,null,null,null,0,null,null,null,null,null,null,null,null,null,null,null,0]
["Total Miscellaneous Revenues",null,null,null,-849122.61242177885,null,null,null,null,null,null,null,null,null,null,null,-849122.61242177885]
["Miscellaneous Expenses",null,null,null,0,null,null,null,null,null,null,null,null,null,null,null,0]
[4311,"Interest on Customer Deposits",null,null,0,null,null,null,null,null,null,null,null,null,null,null,0]
[null,null,"S",null,6775.2872727272734,null,null,null,null,null,null,null,null,null,null,null,6775.2872727272734]
[null,null,null,null,6775.2872727272734,null,null,null,null,null,null,null,null,null,null,null,6775.2872727272734]
["Total Miscellaneous Expenses",null,null,null,6775.2872727272734,null,null,null,null,null,null,null,null,null,null,null,6775.2872727272734]
[null,null,null,null,0,null,null,null,null,null,null,null,null,null,null,null,0]
["Net Misc Revenue and Expense",null,null,null,-842347.32514905161,null,null,null,null,null,null,null,null,null,null,null,-842347.32514905161]
[null,null,null,null,0,null,null,null,null,null,null,null,null,null,null,null,0]
[500,"Operation Supervision & Engineering",null,null,0,null,null,null,null,null,null,null,null,null,null,null,0]
[null,null,"SG",null,80.667219864704549,null,null,null,null,null,null,null,null,null,null,null,80.667219864704549]
[null,null,"CAGW",null,6945.7027479873686,null,null,null,null,null,null,null,null,null,null,null,6945.7027479873686]
[null,null,"CAGE",null,0,null,null,null,null,null,null,null,null,null,null,null,0]
[null,null,"JBG",null,3607647.0253847498,null,null,null,null,null,null,null,null,null,null,null,3607647.0253847498]
[null,null,"CAGE",null,0,null,null,null,null,null,null,null,null,null,null,null,0]
[null,null,null,null,3614673.395352602,null,null,null,null,null,null,null,null,null,null,null,3614673.395352602]
[null,null,null,null,0,null,null,null,null,null,null,null,null,null,null,null,0]
[501,"Fuel Related",null,null,0,null,null,null,null,null,null,null,null,null,null,null,0]
[null,null,"SE",null,4788.4193593390683,null,null,null,null,null,null,null,null,null,null,null,4788.4193593390683]
[null,null,"SE",null,0,null,null,null,null,null,null,null,null,null,null,null,0]
[null,null,"SE",null,0,null,null,null,null,null,null,null,null,null,null,null,0]
[null,null,"CAGW",null,412249.83472986781,null,null,null,null,null,null,null,null,null,null,null,412249.83472986781]
[null,null,"CAGE",null,0,null,null,null,null,null,null,null,null,null,null,null,0]
[null,null,"CAEW",null,0,null,null,null,null,null,null,null,null,null,null,null,0]
[null,null,"CAEE",null,0,null,null,null,null,null,null,null,null,null,null,null,0]
[null,null,"JBE",null,293322.24345246662,null,null,null,null,null,null,null,null,null,null,null,293322.24345246662]
[null,null,"CAEE",null,0,null,null,null,null,null,null,null,null,null,null,null,0]
[null,null,"SSECH",null,0,null,null,null,null,null,null,null,null,null,null,null,0]
[null,null,null,null,710360.49754167348,null,null,null,null,null,null,null,null,null,null,null,710360.49754167348]
[null,null,null,null,0,null,null,null,null,null,null,null,null,null,null,null,0]
["501NPC","Fuel Related",null,null,0,null,null,null,null,null,null,null,null,null,null,null,0]
[null,null,"SE",null,0,null,null,null,null,null,null,null,null,null,null,null,0]
[null,null,"SE",null,0,null,null,null,null,null,null,null,null,null,null,null,0]
[null,null,"SE",null,0,null,null,null,null,null,null,null,null,null,null,null,0]
[null,null,"CAGW",null,0,null,null,null,null,null,null,null,null,null,null,null,0]
[null,null,"CAGE",null,0,null,null,null,null,null,null,null,null,null,null,null,0]
[null,null,"CAEW",null,{"$f":"+Q197","v":47552446.991143696},null,null,null,null,null,null,null,null,null,null,null,47552446.991143696]
[null,null,"CAEE",null,0,null,null,null,null,null,null,null,null,null,null,null,0]
[null,null,"JBE",null,0,null,null,null,null,null,null,null,null,null,null,null,0]
[null,null,"CAEE",null,0,null,null,null,null,null,null,null,null,null,null,null,0]
[null,null,"JBG",null,0,null,null,null,null,null,null,null,null,null,null,null,0]
[null,null,null,null,47552446.991143696,null,null,null,null,null,null,null,null,null,null,null,47552446.991143696]
[null,null,null,null,0,null,null,null,null,null,null,null,null,null,null,null,0]
[null,"Total Fuel Related",null,null,48262807.488685369,null,null,null,null,null,null,null,null,null,null,null,48262807.488685369]
[null,null,null,null,0,null,null,null,null,null,null,null,null,null,null,null,0]
[502,"Steam Expenses",null,null,0,null,null,null,null,null,null,null,null,null,null,null,0]
[null,null,"SG",null,0,null,null,null,null,null,null,null,null,null,null,null,0]
[null,null,"CAGW",null,214953.74891334938,null,null,null,null,null,null,null,null,null,null,null,214953.74891334938]
[null,null,"CAGE",null,0,null,null,null,null,null,null,null,null,null,null,null,0]
[null,null,"JBG",null,867177.14055246778,null,null,null,null,null,null,null,null,null,null,null,867177.14055246778]
[null,null,"CAEE",null,0,null,null,null,null,null,null,null,null,null,null,null,0]
[null,null,null,null,1082130.8894658173,null,null,null,null,null,null,null,null,null,null,null,1082130.8894658173]
[null,null,null,null,0,null,null,null,null,null,null,null,null,null,null,null,0]
[503,"Steam From Other Sources",null,null,0,null,null,null,null,null,null,null,null,null,null,null,0]
[null,null,"SE",null,0,null,null,null,null,null,null,null,null,null,null,null,0]
[null,null,"CAEW",null,0,null,null,null,null,null,null,null,null,null,null,null,0]
[null,null,"CAEE",null,0,null,null,null,null,null,null,null,null,null,null,null,0]
[null,null,null,null,0,null,null,null,null,null,null,null,null,null,null,null,0]
[null,null,null,null,0,null,null,null,null,null,null,null,null,null,null,null,0]
["503NPC","Steam From Other Sources-NPC",null,null,0,null,null,null,null,null,null,null,null,null,null,null,0]
[null,null,"SE",null,0,null,null,null,null,null,null,null,null,null,null,null,0]
[null,null,"CAEW",null,0,null,null,null,null,null,null,null,null,null,null,null,0]
[null,null,"CAEE",null,0,null,null,null,null,null,null,null,null,null,null,null,0]
[null,null,null,null,0,null,null,null,null,null,null,null,null,null,null,null,0]
[null,null,null,null,0,null,null,null,null,null,null,null,null,null,null,null,0]
[505,"Electric Expenses",null,null,0,null,null,null,null,null,null,null,null,null,null,null,0]
[null,null,"SG",null,0,null,null,null,null,null,null,null,null,null,null,null,0]
[null,null,"CAGW",null,14367.984125098681,null,null,null,null,null,null,null,null,null,null,null,14367.984125098681]
[null,null,"CAGE",null,0,null,null,null,null,null,null,null,null,null,null,null,0]
[null,null,"JBG",null,0,null,null,null,null,null,null,null,null,null,null,null,0]
[null,null,"CAGE",null,0,null,null,null,null,null,null,null,null,null,null,null,0]
[null,null,null,null,14367.984125098681,null,null,null,null,null,null,null,null,null,null,null,14367.984125098681]
[null,null,null,null,0,null,null,null,null,null,null,null,null,null,null,null,0]
[506,"Misc. Steam Expense",null,null,0,null,null,null,null,null,null,null,null,null,null,null,0]
[null,null,"SG",null,0,null,null,null,null,null,null,null,null,null,null,null,0]
[null,null,"SE",null,0,null,null,null,null,null,null,null,null,null,null,null,0]
[null,null,"CAGW",null,246721.08759898369,null,null,null,null,null,null,null,null,null,null,null,246721.08759898369]
[null,null,"CAGE",null,0,null,null,null,null,null,null,null,null,null,null,null,0]
[null,null,"JBG",null,-2857179.56565679,null,null,null,null,null,null,null,null,null,null,null,-2857179.56565679]
[null,null,"CAGE",null,0,null,null,null,null,null,null,null,null,null,null,null,0]
[null,null,null,null,-2610458.4780578064,null,null,null,null,null,null,null,null,null,null,null,-2610458.4780578064]
[null,null,null,null,0,null,null,null,null,null,null,null,null,null,null,null,0]
[507,"Rents",null,null,0,null,null,null,null,null,null,null,null,null,null,null,0]
[null,null,"SG",null,0,null,null,null,null,null,null,null,null,null,null,null,0]
[null,null,"CAGW",null,4491.9284726725,null,null,null,null,null,null,null,null,null,null,null,4491.9284726725]
[null,null,"CAGE",null,0,null,null,null,null,null,null,null,null,null,null,null,0]
[null,null,"JBG",null,51257.14259279886,null,null,null,null,null,null,null,null,null,null,null,51257.14259279886]
[null,null,"CAGE",null,0,null,null,null,null,null,null,null,null,null,null,null,0]
[null,null,null,null,55749.071065471362,null,null,null,null,null,null,null,null,null,null,null,55749.071065471362]
[null,null,null,null,0,null,null,null,null,null,null,null,null,null,null,null,0]
[510,"Maint Supervision & Engineering",null,null,0,null,null,null,null,null,null,null,null,null,null,null,0]
[null,null,"SG",null,0,null,null,null,null,null,null,null,null,null,null,null,0]
[null,null,"CAGW",null,51258.22716226639,null,null,null,null,null,null,null,null,null,null,null,51258.22716226639]
[null,null,"CAGE",null,0,null,null,null,null,null,null,null,null,null,null,null,0]
[null,null,"JBG",null,107787.92598277346,null,null,null,null,null,null,null,null,null,null,null,107787.92598277346]
[null,null,"CAGE",null,0,null,null,null,null,null,null,null,null,null,null,null,0]
[null,null,null,null,159046.15314503986,null,null,null,null,null,null,null,null,null,null,null,159046.15314503986]
[null,null,null,null,0,null,null,null,null,null,null,null,null,null,null,null,0]
[null,null,null,null,0,null,null,null,null,null,null,null,null,null,null,null,0]
[null,null,null,null,0,null,null,null,null,null,null,null,null,null,null,null,0]
[511,"Maintenance of Structures",null,null,{"$f":"+Q261","v":0},null,null,null,null,null,null,null,null,null,null,null,0]
[null,null,"SG",null,0,null,null,null,null,null,null,null,null,null,null,null,0]
[null,null,"CAGW",null,84299.326370806361,null,null,null,null,null,null,null,null,null,null,null,84299.326370806361]
[null,null,"CAGE",null,0,null,null,null,null,null,null,null,null,null,null,null,0]
[null,null,"JBG",null,1906029.9299606474,null,null,null,null,null,null,null,null,null,null,null,1906029.9299606474]
[null,null,"CAGE",null,0,null,null,null,null,null,null,null,null,null,null,null,0]
[null,null,null,null,1990329.2563314538,null,null,null,null,null,null,null,null,null,null,null,1990329.2563314538]
[null,null,null,null,0,null,null,null,null,null,null,null,null,null,null,null,0]
[512,"Maintenance of Boiler Plant",null,null,0,null,null,null,null,null,null,null,null,null,null,null,0]
[null,null,"SG",null,0,null,null,null,null,null,null,null,null,null,null,null,0]
[null,null,"CAGW",null,594620.49854772724,null,null,null,null,null,null,null,null,null,null,null,594620.49854772724]
[null,null,"CAGE",null,0,null,null,null,null,null,null,null,null,null,null,null,0]
[null,null,"JBG",null,5301481.4858841449,null,null,null,null,null,null,null,null,null,null,null,5301481.4858841449]
[null,null,"CAGE",null,0,null,null,null,null,null,null,null,null,null,null,null,0]
[null,null,null,null,5896101.9844318721,null,null,null,null,null,null,null,null,null,null,null,5896101.9844318721]
[null,null,null,null,0,null,null,null,null,null,null,null,null,null,null,null,0]
[513,"Maintenance of Electric Plant",null,null,0,null,null,null,null,null,null,null,null,null,null,null,0]
[null,null,"SG",null,0,null,null,null,null,null,null,null,null,null,null,null,0]
[null,null,"CAGW",null,72890.828322092624,null,null,null,null,null,null,null,null,null,null,null,72890.828322092624]
[null,null,"CAGE",null,0,null,null,null,null,null,null,null,null,null,null,null,0]
[null,null,"JBG",null,2052737.7911420732,null,null,null,null,null,null,null,null,null,null,null,2052737.7911420732]
[null,null,"CAGE",null,0,null,null,null,null,null,null,null,null,null,null,null,0]
[null,null,null,null,2125628.619464166,null,null,null,null,null,null,null,null,null,null,null,2125628.619464166]
[null,null,null,null,0,null,null,null,null,null,null,null,null,null,null,null,0]
[514,"Maintenance of Misc. Steam Plant",null,null,0,null,null,null,null,null,null,null,null,null,null,null,0]
[null,null,"SG",null,0,null,null,null,null,null,null,null,null,null,null,null,0]
[null,null,"CAGW",null,75739.922015921969,null,null,null,null,null,null,null,null,null,null,null,75739.922015921969]
[null,null,"CAGE",null,0,null,null,null,null,null,null,null,null,null,null,null,0]
[null,null,"JBG",null,663511.66890561406,null,null,null,null,null,null,null,null,null,null,null,663511.66890561406]
[null,null,"CAGE",null,0,null,null,null,null,null,null,null,null,null,null,null,0]
[null,null,null,null,739251.59092153609,null,null,null,null,null,null,null,null,null,null,null,739251.59092153609]
[null,null,null,null,0,null,null,null,null,null,null,null,null,null,null,null,0]
["Total Steam Power Generation",null,null,null,61329627.954930618,null,null,null,null,null,null,null,null,null,null,null,61329627.954930618]
[517,"Operation Super & Engineering",null,null,0,null,null,null,null,null,null,null,null,null,null,null,0]
[null,null,"SG",null,0,null,null,null,null,null,null,null,null,null,null,null,0]
[null,null,null,null,0,null,null,null,null,null,null,null,null,null,null,null,0]
[null,null,null,null,0,null,null,null,null,null,null,null,null,null,null,null,0]
[518,"Nuclear Fuel Expense",null,null,0,null,null,null,null,null,null,null,null,null,null,null,0]
[null,null,"SE",null,0,null,null,null,null,null,null,null,null,null,null,null,0]
[null,null,null,null,0,null,null,null,null,null,null,null,null,null,null,null,0]
[null,null,null,null,0,null,null,null,null,null,null,null,null,null,null,null,0]
[null,null,null,null,0,null,null,null,null,null,null,null,null,null,null,null,0]
[519,"Coolants and Water",null,null,0,null,null,null,null,null,null,null,null,null,null,null,0]
[null,null,"SG",null,0,null,null,null,null,null,null,null,null,null,null,null,0]
[null,null,null,null,0,null,null,null,null,null,null,null,null,null,null,null,0]
[null,null,null,null,0,null,null,null,null,null,null,null,null,null,null,null,0]
[520,"Steam Expenses",null,null,0,null,null,null,null,null,null,null,null,null,null,null,0]
[null,null,"SG",null,0,null,null,null,null,null,null,null,null,null,null,null,0]
[null,null,null,null,0,null,null,null,null,null,null,null,null,null,null,null,0]
[null,null,null,null,0,null,null,null,null,null,null,null,null,null,null,null,0]
[null,null,null,null,0,null,null,null,null,null,null,null,null,null,null,null,0]
[null,null,null,null,0,null,null,null,null,null,null,null,null,null,null,null,0]
[523,"Electric Expenses",null,null,0,null,null,null,null,null,null,null,null,null,null,null,0]
[null,null,"SG",null,0,null,null,null,null,null,null,null,null,null,null,null,0]
[null,null,null,null,0,null,null,null,null,null,null,null,null,null,null,null,0]
[null,null,null,null,0,null,null,null,null,null,null,null,null,null,null,null,0]
[524,"Misc. Nuclear Expenses",null,null,0,null,null,null,null,null,null,null,null,null,null,null,0]
[null,null,"SG",null,0,null,null,null,null,null,null,null,null,null,null,null,0]
[null,null,null,null,0,null,null,null,null,null,null,null,null,null,null,null,0]
[null,null,null,null,0,null,null,null,null,null,null,null,null,null,null,null,0]
[528,"Maintenance Super & Engineering",null,null,0,null,null,null,null,null,null,null,null,null,null,null,0]
[null,null,"SG",null,0,null,null,null,null,null,null,null,null,null,null,null,0]
[null,null,null,null,0,null,null,null,null,null,null,null,null,null,null,null,0]
[null,null,null,null,0,null,null,null,null,null,null,null,null,null,null,null,0]
[529,"Maintenance of Structures",null,null,{"$f":"+Q325","v":0},null,null,null,null,null,null,null,null,null,null,null,0]
[null,null,"SG",null,0,null,null,null,null,null,null,null,null,null,null,null,0]
[null,null,null,null,0,null,null,null,null,null,null,null,null,null,null,null,0]
[null,null,null,null,0,null,null,null,null,null,null,null,null,null,null,null,0]
[530,"Maintenance of Reactor Plant",null,null,0,null,null,null,null,null,null,null,null,null,null,null,0]
[null,null,"SG",null,0,null,null,null,null,null,null,null,null,null,null,null,0]
[null,null,null,null,0,null,null,null,null,null,null,null,null,null,null,null,0]
[null,null,null,null,0,null,null,null,null,null,null,null,null,null,null,null,0]
[531,"Maintenance of Electric Plant",null,null,0,null,null,null,null,null,null,null,null,null,null,null,0]
[null,null,"SG",null,0,null,null,null,null,null,null,null,null,null,null,null,0]
[null,null,null,null,0,null,null,null,null,null,null,null,null,null,null,null,0]
[null,null,null,null,0,null,null,null,null,null,null,null,null,null,null,null,0]
[532,"Maintenance of Misc Nuclear",null,null,0,null,null,null,null,null,null,null,null,null,null,null,0]
[null,null,"SG",null,0,null,null,null,null,null,null,null,null,null,null,null,0]
[null,null,null,null,0,null,null,null,null,null,null,null,null,null,null,null,0]
[null,null,null,null,0,null,null,null,null,null,null,null,null,null,null,null,0]
["Total Nuclear Power Generation",null,null,null,0,null,null,null,null,null,null,null,null,null,null,null,0]
[null,null,null,null,0,null,null,null,null,null,null,null,null,null,null,null,0]
[535,"Operation Super & Engineering",null,null,0,null,null,null,null,null,null,null,null,null,null,null,0]
[null,null,"DGP",null,0,null,null,null,null,null,null,null,null,null,null,null,0]
[null,null,"CAGW",null,0,null,null,null,null,null,null,null,null,null,null,null,0]
[null,null,"CAGE",null,0,null,null,null,null,null,null,null,null,null,null,null,0]
[null,null,"CAGW",null,1324908.6690741614,null,null,null,null,null,null,null,null,null,null,null,1324908.6690741614]
[null,null,"CAGE",null,0,null,null,null,null,null,null,null,null,null,null,null,0]
[null,null,null,null,1324908.6690741614,null,null,null,null,null,null,null,null,null,null,null,1324908.6690741614]
[null,null,null,null,0,null,null,null,null,null,null,null,null,null,null,null,0]
[536,"Water For Power",null,null,0,null,null,null,null,null,null,null,null,null,null,null,0]
[null,null,"DGP",null,0,null,null,null,null,null,null,null,null,null,null,null,0]
[null,null,"CAGW",null,0,null,null,null,null,null,null,null,null,null,null,null,0]
[null,null,"CAGE",null,0,null,null,null,null,null,null,null,null,null,null,null,0]
[null,null,"CAGW",null,49738.774633946021,null,null,null,null,null,null,null,null,null,null,null,49738.774633946021]
[null,null,"CAGE",null,0,null,null,null,null,null,null,null,null,null,null,null,0]
[null,null,null,null,49738.774633946021,null,null,null,null,null,null,null,null,null,null,null,49738.774633946021]
[null,null,null,null,0,null,null,null,null,null,null,null,null,null,null,null,0]
[537,"Hydraulic Expenses",null,null,0,null,null,null,null,null,null,null,null,null,null,null,0]
[null,null,"DGP",null,0,null,null,null,null,null,null,null,null,null,null,null,0]
[null,null,"CAGW",null,0,null,null,null,null,null,null,null,null,null,null,null,0]
[null,null,"CAGE",null,0,null,null,null,null,null,null,null,null,null,null,null,0]
[null,null,"CAGW",null,795689.46794934163,null,null,null,null,null,null,null,null,null,null,null,795689.46794934163]
[null,null,"CAGE",null,0,null,null,null,null,null,null,null,null,null,null,null,0]
[null,null,null,null,795689.46794934163,null,null,null,null,null,null,null,null,null,null,null,795689.46794934163]
[null,null,null,null,0,null,null,null,null,null,null,null,null,null,null,null,0]
[538,"Electric Expenses",null,null,0,null,null,null,null,null,null,null,null,null,null,null,0]
[null,null,"DGP",null,0,null,null,null,null,null,null,null,null,null,null,null,0]
[null,null,"CAGW",null,0,null,null,null,null,null,null,null,null,null,null,null,0]
[null,null,"CAGE",null,0,null,null,null,null,null,null,null,null,null,null,null,0]
[null,null,"CAGW",null,0,null,null,null,null,null,null,null,null,null,null,null,0]
[null,null,"CAGE",null,0,null,null,null,null,null,null,null,null,null,null,null,0]
[null,null,null,null,0,null,null,null,null,null,null,null,null,null,null,null,0]
[null,null,null,null,0,null,null,null,null,null,null,null,null,null,null,null,0]
[539,"Misc. Hydro Expenses",null,null,0,null,null,null,null,null,null,null,null,null,null,null,0]
[null,null,"DGP",null,0,null,null,null,null,null,null,null,null,null,null,null,0]
[null,null,"CAGW",null,0,null,null,null,null,null,null,null,null,null,null,null,0]
[null,null,"CAGE",null,0,null,null,null,null,null,null,null,null,null,null,null,0]
[null,null,"CAGW",null,3250316.327707991,null,null,null,null,null,null,null,null,null,null,null,3250316.327707991]
[null,null,"CAGE",null,0,null,null,null,null,null,null,null,null,null,null,null,0]
[null,null,null,null,3250316.327707991,null,null,null,null,null,null,null,null,null,null,null,3250316.327707991]
[null,null,null,null,0,null,null,null,null,null,null,null,null,null,null,null,0]
[540,"Rents (Hydro Generation)",null,null,0,null,null,null,null,null,null,null,null,null,null,null,0]
[null,null,"DGP",null,0,null,null,null,null,null,null,null,null,null,null,null,0]
[null,null,"CAGW",null,0,null,null,null,null,null,null,null,null,null,null,null,0]
[null,null,"CAGE",null,0,null,null,null,null,null,null,null,null,null,null,null,0]
[null,null,"CAGW",null,-44352.135913791084,null,null,null,null,null,null,null,null,null,null,null,-44352.135913791084]
[null,null,"CAGE",null,0,null,null,null,null,null,null,null,null,null,null,null,0]
[null,null,null,null,{"$f":"+Q389","v":-44352.135913791084},null,null,null,null,null,null,null,null,null,null,null,-44352.135913791084]
[null,null,null,null,0,null,null,null,null,null,null,null,null,null,null,null,0]
[541,"Maint Supervision & Engineering",null,null,0,null,null,null,null,null,null,null,null,null,null,null,0]
[null,null,"DGP",null,0,null,null,null,null,null,null,null,null,null,null,null,0]
[null,null,"CAGW",null,0,null,null,null,null,null,null,null,null,null,null,null,0]
[null,null,"CAGE",null,0,null,null,null,null,null,null,null,null,null,null,null,0]
[null,null,"CAGW",null,87.7907815933156,null,null,null,null,null,null,null,null,null,null,null,87.7907815933156]
[null,null,"CAGE",null,0,null,null,null,null,null,null,null,null,null,null,null,0]
[null,null,null,null,87.7907815933156,null,null,null,null,null,null,null,null,null,null,null,87.7907815933156]
[null,null,null,null,0,null,null,null,null,null,null,null,null,null,null,null,0]
[542,"Maintenance of Structures",null,null,0,null,null,null,null,null,null,null,null,null,null,null,0]
[null,null,"DGP",null,0,null,null,null,null,null,null,null,null,null,null,null,0]
[null,null,"CAGW",null,0,null,null,null,null,null,null,null,null,null,null,null,0]
[null,null,"CAGE",null,0,null,null,null,null,null,null,null,null,null,null,null,0]
[null,null,"CAGW",null,209229.25596829882,null,null,null,null,null,null,null,null,null,null,null,209229.25596829882]
[null,null,"CAGE",null,0,null,null,null,null,null,null,null,null,null,null,null,0]
[null,null,null,null,209229.25596829882,null,null,null,null,null,null,null,null,null,null,null,209229.25596829882]
[null,null,null,null,0,null,null,null,null,null,null,null,null,null,null,null,0]
[null,null,null,null,0,null,null,null,null,null,null,null,null,null,null,null,0]
[null,null,null,null,0,null,null,null,null,null,null,null,null,null,null,null,0]
[null,null,null,null,0,null,null,null,null,null,null,null,null,null,null,null,0]
[543,"Maintenance of Dams & Waterways",null,null,0,null,null,null,null,null,null,null,null,null,null,null,0]
[null,null,"DGP",null,0,null,null,null,null,null,null,null,null,null,null,null,0]
[null,null,"CAGW",null,0,null,null,null,null,null,null,null,null,null,null,null,0]
[null,null,"CAGE",null,0,null,null,null,null,null,null,null,null,null,null,null,0]
[null,null,"CAGW",null,363225.0548296136,null,null,null,null,null,null,null,null,null,null,null,363225.0548296136]
[null,null,"CAGE",null,0,null,null,null,null,null,null,null,null,null,null,null,0]
[null,null,null,null,363225.0548296136,null,null,null,null,null,null,null,null,null,null,null,363225.0548296136]
[null,null,null,null,0,null,null,null,null,null,null,null,null,null,null,null,0]
[544,"Maintenance of Electric Plant",null,null,0,null,null,null,null,null,null,null,null,null,null,null,0]
[null,null,"DGP",null,0,null,null,null,null,null,null,null,null,null,null,null,0]
[null,null,"CAGW",null,0,null,null,null,null,null,null,null,null,null,null,null,0]
[null,null,"CAGE",null,0,null,null,null,null,null,null,null,null,null,null,null,0]
[null,null,"CAGW",null,446990.68112780293,null,null,null,null,null,null,null,null,null,null,null,446990.68112780293]
[null,null,"CAGE",null,0,null,null,null,null,null,null,null,null,null,null,null,0]
[null,null,null,null,446990.68112780293,null,null,null,null,null,null,null,null,null,null,null,446990.68112780293]
[null,null,null,null,0,null,null,null,null,null,null,null,null,null,null,null,0]
[545,"Maintenance of Misc. Hydro Plant",null,null,0,null,null,null,null,null,null,null,null,null,null,null,0]
[null,null,"DGP",null,0,null,null,null,null,null,null,null,null,null,null,null,0]
[null,null,"CAGW",null,0,null,null,null,null,null,null,null,null,null,null,null,0]
[null,null,"CAGE",null,0,null,null,null,null,null,null,null,null,null,null,null,0]
[null,null,"CAGW",null,448827.46446306718,null,null,null,null,null,null,null,null,null,null,null,448827.46446306718]
[null,null,"CAGE",null,0,null,null,null,null,null,null,null,null,null,null,null,0]
[null,null,null,null,448827.46446306718,null,null,null,null,null,null,null,null,null,null,null,448827.46446306718]
[null,null,null,null,0,null,null,null,null,null,null,null,null,null,null,null,0]
["Total Hydraulic Power Generation ",null,null,null,6844661.3506220235,null,null,null,null,null,null,null,null,null,null,null,6844661.3506220235]
[null,null,null,null,0,null,null,null,null,null,null,null,null,null,null,null,0]
[546,"Operation Super & Engineering",null,null,0,null,null,null,null,null,null,null,null,null,null,null,0]
[null,null,"SG",null,0,null,null,null,null,null,null,null,null,null,null,null,0]
[null,null,"SE",null,0,null,null,null,null,null,null,null,null,null,null,null,0]
[null,null,"CAGW",null,33980.406268012215,null,null,null,null,null,null,null,null,null,null,null,33980.406268012215]
[null,null,"CAGE",null,0,null,null,null,null,null,null,null,null,null,null,null,0]
[null,null,"CAGE",null,0,null,null,null,null,null,null,null,null,null,null,null,0]
[null,null,null,null,33980.406268012215,null,null,null,null,null,null,null,null,null,null,null,33980.406268012215]
[null,null,null,null,0,null,null,null,null,null,null,null,null,null,null,null,0]
[547,"Fuel",null,null,0,null,null,null,null,null,null,null,null,null,null,null,0]
[null,null,"SE",null,0,null,null,null,null,null,null,null,null,null,null,null,0]
[null,null,"CAEW",null,0,null,null,null,null,null,null,null,null,null,null,null,0]
[null,null,"CAEE",null,0,null,null,null,null,null,null,null,null,null,null,null,0]
[null,null,"SSECT",null,0,null,null,null,null,null,null,null,null,null,null,null,0]
[null,null,null,null,0,null,null,null,null,null,null,null,null,null,null,null,0]
[null,null,null,null,0,null,null,null,null,null,null,null,null,null,null,null,0]
["547NPC","Fuel-NPC",null,null,0,null,null,null,null,null,null,null,null,null,null,null,0]
[null,null,"SE",null,0,null,null,null,null,null,null,null,null,null,null,null,0]
[null,null,"CAEW",null,{"$f":"+Q453","v":22341081.551404446},null,null,null,null,null,null,null,null,null,null,null,22341081.551404446]
[null,null,"CAEE",null,0,null,null,null,null,null,null,null,null,null,null,null,0]
[null,null,"SSECT",null,0,null,null,null,null,null,null,null,null,null,null,null,0]
[null,null,null,null,22341081.551404446,null,null,null,null,null,null,null,null,null,null,null,22341081.551404446]
[null,null,null,null,0,null,null,null,null,null,null,null,null,null,null,null,0]
[548,"Generation Expense",null,null,0,null,null,null,null,null,null,null,null,null,null,null,0]
[null,null,"SG",null,-1987.2203102534631,null,null,null,null,null,null,null,null,null,null,null,-1987.2203102534631]
[null,null,"CAGW",null,2473508.9668660378,null,null,null,null,null,null,null,null,null,null,null,2473508.9668660378]
[null,null,"CAGE",null,0,null,null,null,null,null,null,null,null,null,null,null,0]
[null,null,"CAGE",null,0,null,null,null,null,null,null,null,null,null,null,null,0]
[null,null,null,null,2471521.7465557843,null,null,null,null,null,null,null,null,null,null,null,2471521.7465557843]
[null,null,null,null,0,null,null,null,null,null,null,null,null,null,null,null,0]
[549,"Miscellaneous Other",null,null,0,null,null,null,null,null,null,null,null,null,null,null,0]
[null,null,"SG",null,137533.22300106779,null,null,null,null,null,null,null,null,null,null,null,137533.22300106779]
[null,null,"CAGW",null,1416409.9515347558,null,null,null,null,null,null,null,null,null,null,null,1416409.9515347558]
[null,null,"CAGE",null,0,null,null,null,null,null,null,null,null,null,null,null,0]
[null,null,"CAGE",null,0,null,null,null,null,null,null,null,null,null,null,null,0]
[null,null,null,null,1553943.1745358235,null,null,null,null,null,null,null,null,null,null,null,1553943.1745358235]
[null,null,null,null,0,null,null,null,null,null,null,null,null,null,null,null,0]
[null,null,null,null,0,null,null,null,null,null,null,null,null,null,null,null,0]
[null,null,null,null,0,null,null,null,null,null,null,null,null,null,null,null,0]
[null,null,null,null,0,null,null,null,null,null,null,null,null,null,null,null,0]
[550,"Maint Supervision & Engineering",null,null,0,null,null,null,null,null,null,null,null,null,null,null,0]
[null,null,"SG",null,363.54944032853217,null,null,null,null,null,null,null,null,null,null,null,363.54944032853217]
[null,null,"CAGW",null,435600.51958666736,null,null,null,null,null,null,null,null,null,null,null,435600.51958666736]
[null,null,"CAGE",null,0,null,null,null,null,null,null,null,null,null,null,null,0]
[null,null,"CAGE",null,0,null,null,null,null,null,null,null,null,null,null,null,0]
[null,null,null,null,435964.06902699592,null,null,null,null,null,null,null,null,null,null,null,435964.06902699592]
[null,null,null,null,0,null,null,null,null,null,null,null,null,null,null,null,0]
[551,"Maint Supervision & Engineering",null,null,0,null,null,null,null,null,null,null,null,null,null,null,0]
[null,null,"SG",null,0,null,null,null,null,null,null,null,null,null,null,null,0]
[null,null,"CAGW",null,0,null,null,null,null,null,null,null,null,null,null,null,0]
[null,null,"CAGE",null,0,null,null,null,null,null,null,null,null,null,null,null,0]
[null,null,null,null,0,null,null,null,null,null,null,null,null,null,null,null,0]
[null,null,null,null,0,null,null,null,null,null,null,null,null,null,null,null,0]
[552,"Maintenance of Structures",null,null,0,null,null,null,null,null,null,null,null,null,null,null,0]
[null,null,"SG",null,0,null,null,null,null,null,null,null,null,null,null,null,0]
[null,null,"CAGW",null,703.86259142440781,null,null,null,null,null,null,null,null,null,null,null,703.86259142440781]
[null,null,"CAGE",null,0,null,null,null,null,null,null,null,null,null,null,null,0]
[null,null,"CAGE",null,0,null,null,null,null,null,null,null,null,null,null,null,0]
[null,null,null,null,703.86259142440781,null,null,null,null,null,null,null,null,null,null,null,703.86259142440781]
[null,null,null,null,0,null,null,null,null,null,null,null,null,null,null,null,0]
[553,"Maint of Generation & Electric Plant",null,null,0,null,null,null,null,null,null,null,null,null,null,null,0]
[null,null,"SG",null,0,null,null,null,null,null,null,null,null,null,null,null,0]
[null,null,"CAGW",null,1292945.740769852,null,null,null,null,null,null,null,null,null,null,null,1292945.740769852]
[null,null,"CAGE",null,0,null,null,null,null,null,null,null,null,null,null,null,0]
[null,null,"CAGE",null,788.42317937639552,null,null,null,null,null,null,null,null,null,null,null,788.42317937639552]
[null,null,null,null,1293734.1639492284,null,null,null,null,null,null,null,null,null,null,null,1293734.1639492284]
[null,null,null,null,0,null,null,null,null,null,null,null,null,null,null,null,0]
[554,"Maintenance of Misc. Other",null,null,0,null,null,null,null,null,null,null,null,null,null,null,0]
[null,null,"SG",null,0,null,null,null,null,null,null,null,null,null,null,null,0]
[null,null,"CAGW",null,286438.15081312502,null,null,null,null,null,null,null,null,null,null,null,286438.15081312502]
[null,null,"CAGE",null,0,null,null,null,null,null,null,null,null,null,null,null,0]
[null,null,"CAGE",null,0,null,null,null,null,null,null,null,null,null,null,null,0]
[null,null,null,null,286438.15081312502,null,null,null,null,null,null,null,null,null,null,null,286438.15081312502]
[null,null,null,null,0,null,null,null,null,null,null,null,null,null,null,null,0]
["Total Other Power Generation",null,null,null,28417367.125144839,null,null,null,null,null,null,null,null,null,null,null,28417367.125144839]
[null,null,null,null,0,null,null,null,null,null,null,null,null,null,null,null,0]
[null,null,null,null,0,null,null,null,null,null,null,null,null,null,null,null,0]
[555,"Purchased Power",null,null,0,null,null,null,null,null,null,null,null,null,null,null,0]
[null,null,"S",null,0,null,null,null,null,null,null,null,null,null,null,null,0]
[null,null,"SG",null,0,null,null,null,null,null,null,null,null,null,null,null,0]
[null,null,"SE",null,0,null,null,null,null,null,null,null,null,null,null,null,0]
[null,null,"CAGW",null,0,null,null,null,null,null,null,null,null,null,null,null,0]
[null,null,null,null,{"$f":"+Q517","v":0},null,null,null,null,null,null,null,null,null,null,null,0]
["555NPC","Purchased Power-NPC",null,null,0,null,null,null,null,null,null,null,null,null,null,null,0]
[null,null,"SG",null,0,null,null,null,null,null,null,null,null,null,null,null,0]
[null,null,"SE",null,0,null,null,null,null,null,null,null,null,null,null,null,0]
[null,null,"CAGW",null,52857876.823488072,null,null,null,null,null,null,null,null,null,null,null,52857876.823488072]
[null,null,"CAGE",null,0,null,null,null,null,null,null,null,null,null,null,null,0]
[null,null,"CAEW",null,2853158.8619296518,null,null,null,null,null,null,null,null,null,null,null,2853158.8619296518]
[null,null,"CAEE",null,0,null,null,null,null,null,null,null,null,null,null,null,0]
[null,null,"DGP",null,0,null,null,null,null,null,null,null,null,null,null,null,0]
[null,null,"S",null,0,null,null,null,null,null,null,null,null,null,null,null,0]
[null,null,null,null,55711035.685417727,null,null,null,null,null,null,null,null,null,null,null,55711035.685417727]
[null,null,null,null,0,null,null,null,null,null,null,null,null,null,null,null,0]
[null,"Total Purchased Power",null,null,55711035.685417727,null,null,null,null,null,null,null,null,null,null,null,55711035.685417727]
[null,null,null,null,0,null,null,null,null,null,null,null,null,null,null,null,0]
[556,"System Control & Load Dispatch",null,null,0,null,null,null,null,null,null,null,null,null,null,null,0]
[null,null,"SG",null,142079.36095449454,null,null,null,null,null,null,null,null,null,null,null,142079.36095449454]
[null,null,"CAGW",null,0,null,null,null,null,null,null,null,null,null,null,null,0]
[null,null,"CAGE",null,0,null,null,null,null,null,null,null,null,null,null,null,0]
[null,null,null,null,0,null,null,null,null,null,null,null,null,null,null,null,0]
[null,null,null,null,142079.36095449454,null,null,null,null,null,null,null,null,null,null,null,142079.36095449454]
[null,null,null,null,0,null,null,null,null,null,null,null,null,null,null,null,0]
[null,null,null,null,0,null,null,null,null,null,null,null,null,null,null,null,0]
[null,null,null,null,0,null,null,null,null,null,null,null,null,null,null,null,0]
[557,"Other Expenses",null,null,0,null,null,null,null,null,null,null,null,null,null,null,0]
[null,null,"S",null,-73824.789999999994,null,null,null,null,null,null,null,null,null,null,null,-73824.789999999994]
[null,null,"SG",null,3000442.7241494269,null,null,null,null,null,null,null,null,null,null,null,3000442.7241494269]
[null,null,"SGCT",null,0,null,null,null,null,null,null,null,null,null,null,null,0]
[null,null,"SE",null,0,null,null,null,null,null,null,null,null,null,null,null,0]
[null,null,"CAGE",null,0,null,null,null,null,null,null,null,null,null,null,null,0]
[null,null,"TROJP",null,0,null,null,null,null,null,null,null,null,null,null,null,0]
[null,null,"CAGW",null,727723.91183378792,null,null,null,null,null,null,null,null,null,null,null,727723.91183378792]
[null,null,"CAGE",null,0,null,null,null,null,null,null,null,null,null,null,null,0]
[null,null,"JBG",null,453048.07815530774,null,null,null,null,null,null,null,null,null,null,null,453048.07815530774]
[null,null,"CAEW",null,0,null,null,null,null,null,null,null,null,null,null,null,0]
[null,null,"CAEE",null,-24967.909211894381,null,null,null,null,null,null,null,null,null,null,null,-24967.909211894381]
[null,null,null,null,4082422.0149266277,null,null,null,null,null,null,null,null,null,null,null,4082422.0149266277]
[null,null,null,null,0,null,null,null,null,null,null,null,null,null,null,null,0]
[null,"Embedded Cost Differentials",null,null,0,null,null,null,null,null,null,null,null,null,null,null,0]
[null,"Company Owned Hydro","DGP",null,0,null,null,null,null,null,null,null,null,null,null,null,0]
[null,"Company Owned Hydro","SG",null,0,null,null,null,null,null,null,null,null,null,null,null,0]
[null,"Mid-C Contract","MC",null,0,null,null,null,null,null,null,null,null,null,null,null,0]
[null,"Mid-C Contract","SG",null,0,null,null,null,null,null,null,null,null,null,null,null,0]
[null,"Existing QF Contracts","S ",null,0,null,null,null,null,null,null,null,null,null,null,null,0]
[null,"Existing QF Contracts","SG",null,0,null,null,null,null,null,null,null,null,null,null,null,0]
[null,null,null,null,0,null,null,null,null,null,null,null,null,null,null,null,0]
[null,null,null,null,0,null,null,null,null,null,null,null,null,null,null,null,0]
[null,null,null,null,0,null,null,null,null,null,null,null,null,null,null,null,0]
["Total Other Power Supply",null,null,null,59935537.061298847,null,null,null,null,null,null,null,null,null,null,null,59935537.061298847]
[null,null,null,null,0,null,null,null,null,null,null,null,null,null,null,null,0]
["TOTAL PRODUCTION EXPENSE",null,null,null,156527193.49199635,null,null,null,null,null,null,null,null,null,null,null,156527193.49199635]
[null,null,null,null,0,null,null,null,null,null,null,null,null,null,null,null,0]
[null,null,null,null,0,null,null,null,null,null,null,null,null,null,null,null,0]
["Summary of Production Expense by Factor",null,null,null,0,null,null,null,null,null,null,null,null,null,null,null,0]
[null,null,null,null,-73824.789999999994,null,null,null,null,null,null,null,null,null,null,null,-73824.789999999994]
[null,null,null,null,3278512.3044549292,null,null,null,null,null,null,null,null,null,null,null,3278512.3044549292]
[null,null,null,null,4788.4193593390683,null,null,null,null,null,null,null,null,null,null,null,4788.4193593390683]
[null,null,null,null,12154287.046083163,null,null,null,null,null,null,null,null,null,null,null,12154287.046083163]
[null,null,null,null,0,null,null,null,null,null,null,null,null,null,null,null,0]
[null,null,null,null,268354.33424057224,null,null,null,null,null,null,null,null,null,null,null,268354.33424057224]
[null,null,null,null,0,null,null,null,null,null,null,null,null,null,null,null,0]
[null,null,null,null,0,null,null,null,null,null,null,null,null,null,null,null,0]
[null,null,null,null,0,null,null,null,null,null,null,null,null,null,null,null,0]
[null,null,null,null,68148388.773380533,null,null,null,null,null,null,null,null,null,null,null,68148388.773380533]
[null,null,null,null,0,null,null,null,null,null,null,null,null,null,null,null,0]
[null,null,null,null,{"$f":"+Q581","v":72746687.404477805},null,null,null,null,null,null,null,null,null,null,null,72746687.404477805]
[null,null,null,null,0,null,null,null,null,null,null,null,null,null,null,null,0]
[null,null,null,null,0,null,null,null,null,null,null,null,null,null,null,null,0]
[null,null,null,null,0,null,null,null,null,null,null,null,null,null,null,null,0]
[null,null,null,null,0,null,null,null,null,null,null,null,null,null,null,null,0]
[null,null,null,null,0,null,null,null,null,null,null,null,null,null,null,null,0]
[null,null,null,null,0,null,null,null,null,null,null,null,null,null,null,null,0]
[null,null,null,null,0,null,null,null,null,null,null,null,null,null,null,null,0]
[null,null,null,null,0,null,null,null,null,null,null,null,null,null,null,null,0]
[null,null,null,null,0,null,null,null,null,null,null,null,null,null,null,null,0]
[null,null,null,null,0,null,null,null,null,null,null,null,null,null,null,null,0]
["Total Production Expense by Factor",null,null,null,156527193.49199635,null,null,null,null,null,null,null,null,null,null,null,156527193.49199635]
[560,"Operation Supervision & Engineering",null,null,0,null,null,null,null,null,null,null,null,null,null,null,0]
[null,null,"SG",null,267977.6723857965,null,null,null,null,null,null,null,null,null,null,null,267977.6723857965]
[null,null,"JBG",null,9.6490596647661349,null,null,null,null,null,null,null,null,null,null,null,9.6490596647661349]
[null,null,"CAGW",null,145704.4238731174,null,null,null,null,null,null,null,null,null,null,null,145704.4238731174]
[null,null,"CAGE",null,0,null,null,null,null,null,null,null,null,null,null,null,0]
[null,null,null,null,413691.74531857867,null,null,null,null,null,null,null,null,null,null,null,413691.74531857867]
[null,null,null,null,0,null,null,null,null,null,null,null,null,null,null,null,0]
[561,"Load Dispatching",null,null,0,null,null,null,null,null,null,null,null,null,null,null,0]
[null,null,"SG",null,655488.72271092248,null,null,null,null,null,null,null,null,null,null,null,655488.72271092248]
[null,null,"CAGW",null,30827.590409605138,null,null,null,null,null,null,null,null,null,null,null,30827.590409605138]
[null,null,"CAGE",null,0,null,null,null,null,null,null,null,null,null,null,null,0]
[null,null,null,null,686316.31312052766,null,null,null,null,null,null,null,null,null,null,null,686316.31312052766]
[562,"Station Expense",null,null,0,null,null,null,null,null,null,null,null,null,null,null,0]
[null,null,"SG",null,81213.49917848871,null,null,null,null,null,null,null,null,null,null,null,81213.49917848871]
[null,null,"JBG",null,750.82211615040046,null,null,null,null,null,null,null,null,null,null,null,750.82211615040046]
[null,null,"CAGW",null,92074.591610035699,null,null,null,null,null,null,null,null,null,null,null,92074.591610035699]
[null,null,"CAGE",null,0,null,null,null,null,null,null,null,null,null,null,null,0]
[null,null,null,null,174038.91290467483,null,null,null,null,null,null,null,null,null,null,null,174038.91290467483]
[null,null,null,null,0,null,null,null,null,null,null,null,null,null,null,null,0]
[563,"Overhead Line Expense",null,null,0,null,null,null,null,null,null,null,null,null,null,null,0]
[null,null,"SG",null,100.56497323007559,null,null,null,null,null,null,null,null,null,null,null,100.56497323007559]
[null,null,"CAGW",null,11408.027417719639,null,null,null,null,null,null,null,null,null,null,null,11408.027417719639]
[null,null,"CAGE",null,0,null,null,null,null,null,null,null,null,null,null,null,0]
[null,null,null,null,11508.592390949714,null,null,null,null,null,null,null,null,null,null,null,11508.592390949714]
[null,null,null,null,0,null,null,null,null,null,null,null,null,null,null,null,0]
[564,"Underground Line Expense",null,null,0,null,null,null,null,null,null,null,null,null,null,null,0]
[null,null,"SG",null,0,null,null,null,null,null,null,null,null,null,null,null,0]
[null,null,"CAGW",null,0,null,null,null,null,null,null,null,null,null,null,null,0]
[null,null,"CAGE",null,0,null,null,null,null,null,null,null,null,null,null,null,0]
[null,null,null,null,0,null,null,null,null,null,null,null,null,null,null,null,0]
[null,null,null,null,0,null,null,null,null,null,null,null,null,null,null,null,0]
[565,"Transmission of Electricity by Others",null,null,0,null,null,null,null,null,null,null,null,null,null,null,0]
[null,null,"SG",null,0,null,null,null,null,null,null,null,null,null,null,null,0]
[null,null,"SE",null,0,null,null,null,null,null,null,null,null,null,null,null,0]
[null,null,null,null,0,null,null,null,null,null,null,null,null,null,null,null,0]
[null,null,null,null,0,null,null,null,null,null,null,null,null,null,null,null,0]
[null,null,null,null,0,null,null,null,null,null,null,null,null,null,null,null,0]
[null,null,null,null,0,null,null,null,null,null,null,null,null,null,null,null,0]
[null,null,null,null,0,null,null,null,null,null,null,null,null,null,null,null,0]
[null,null,null,null,0,null,null,null,null,null,null,null,null,null,null,null,0]
["565NPC","Transmission of Electricity by Others-NPC",null,null,0,null,null,null,null,null,null,null,null,null,null,null,0]
[null,null,"SG",null,0,null,null,null,null,null,null,null,null,null,null,null,0]
[null,null,"SE",null,0,null,null,null,null,null,null,null,null,null,null,null,0]
[null,null,"CAGW",null,25180047.073464345,null,null,null,null,null,null,null,null,null,null,null,25180047.073464345]
[null,null,"CAGE",null,0,null,null,null,null,null,null,null,null,null,null,null,0]
[null,null,"CAEW",null,0,null,null,null,null,null,null,null,null,null,null,null,0]
[null,null,"CAEE",null,0,null,null,null,null,null,null,null,null,null,null,null,0]
[null,null,null,null,25180047.073464345,null,null,null,null,null,null,null,null,null,null,null,25180047.073464345]
[null,null,null,null,0,null,null,null,null,null,null,null,null,null,null,null,0]
[null,"Total Transmission of Electricity by Others",null,null,25180047.073464345,null,null,null,null,null,null,null,null,null,null,null,25180047.073464345]
[null,null,null,null,0,null,null,null,null,null,null,null,null,null,null,null,0]
[566,"Misc. Transmission Expense",null,null,0,null,null,null,null,null,null,null,null,null,null,null,0]
[null,null,"SG",null,{"$f":"+Q645","v":135627.54861020658},null,null,null,null,null,null,null,null,null,null,null,135627.54861020658]
[null,null,"CAGW",null,35921.489863477553,null,null,null,null,null,null,null,null,null,null,null,35921.489863477553]
[null,null,"CAGE",null,0,null,null,null,null,null,null,null,null,null,null,null,0]
[null,null,null,null,171549.03847368414,null,null,null,null,null,null,null,null,null,null,null,171549.03847368414]
[null,null,null,null,0,null,null,null,null,null,null,null,null,null,null,null,0]
[567,"Rents - Transmission",null,null,0,null,null,null,null,null,null,null,null,null,null,null,0]
[null,null,"SG",null,1314.2909288954756,null,null,null,null,null,null,null,null,null,null,null,1314.2909288954756]
[null,null,"CAGW",null,202458.79921473615,null,null,null,null,null,null,null,null,null,null,null,202458.79921473615]
[null,null,"CAGE",null,0,null,null,null,null,null,null,null,null,null,null,null,0]
[null,null,null,null,203773.09014363162,null,null,null,null,null,null,null,null,null,null,null,203773.09014363162]
[null,null,null,null,0,null,null,null,null,null,null,null,null,null,null,null,0]
[568,"Maint Supervision & Engineering",null,null,0,null,null,null,null,null,null,null,null,null,null,null,0]
[null,null,"SG",null,102562.58524746963,null,null,null,null,null,null,null,null,null,null,null,102562.58524746963]
[null,null,"CAGW",null,121412.34304156515,null,null,null,null,null,null,null,null,null,null,null,121412.34304156515]
[null,null,"CAGE",null,0,null,null,null,null,null,null,null,null,null,null,null,0]
[null,null,null,null,223974.92828903478,null,null,null,null,null,null,null,null,null,null,null,223974.92828903478]
[null,null,null,null,0,null,null,null,null,null,null,null,null,null,null,null,0]
[569,"Maintenance of Structures",null,null,0,null,null,null,null,null,null,null,null,null,null,null,0]
[null,null,"SG",null,356918.58439923846,null,null,null,null,null,null,null,null,null,null,null,356918.58439923846]
[null,null,"CAGW",null,974.93473078585077,null,null,null,null,null,null,null,null,null,null,null,974.93473078585077]
[null,null,"CAGE",null,0,null,null,null,null,null,null,null,null,null,null,null,0]
[null,null,null,null,357893.5191300243,null,null,null,null,null,null,null,null,null,null,null,357893.5191300243]
[null,null,null,null,0,null,null,null,null,null,null,null,null,null,null,null,0]
[570,"Maintenance of Station Equipment",null,null,0,null,null,null,null,null,null,null,null,null,null,null,0]
[null,null,"SG",null,37275.197832699931,null,null,null,null,null,null,null,null,null,null,null,37275.197832699931]
[null,null,"JBG",null,62738.484273473929,null,null,null,null,null,null,null,null,null,null,null,62738.484273473929]
[null,null,"CAGW",null,749711.80905575608,null,null,null,null,null,null,null,null,null,null,null,749711.80905575608]
[null,null,"CAGE",null,0,null,null,null,null,null,null,null,null,null,null,null,0]
[null,null,null,null,849725.49116192991,null,null,null,null,null,null,null,null,null,null,null,849725.49116192991]
[null,null,null,null,0,null,null,null,null,null,null,null,null,null,null,null,0]
[571,"Maintenance of Overhead Lines",null,null,0,null,null,null,null,null,null,null,null,null,null,null,0]
[null,null,"SG",null,-9554.6601672949218,null,null,null,null,null,null,null,null,null,null,null,-9554.6601672949218]
[null,null,"JBG",null,-468.54462983122704,null,null,null,null,null,null,null,null,null,null,null,-468.54462983122704]
[null,null,"CAGW",null,2504474.2621610411,null,null,null,null,null,null,null,null,null,null,null,2504474.2621610411]
[null,null,"CAGE",null,0,null,null,null,null,null,null,null,null,null,null,null,0]
[null,null,null,null,2494451.0573639148,null,null,null,null,null,null,null,null,null,null,null,2494451.0573639148]
[null,null,null,null,0,null,null,null,null,null,null,null,null,null,null,null,0]
[572,"Maintenance of Underground Lines",null,null,0,null,null,null,null,null,null,null,null,null,null,null,0]
[null,null,"SG",null,0,null,null,null,null,null,null,null,null,null,null,null,0]
[null,null,"CAGW",null,7773.0297420073148,null,null,null,null,null,null,null,null,null,null,null,7773.0297420073148]
[null,null,"CAGE",null,0,null,null,null,null,null,null,null,null,null,null,null,0]
[null,null,null,null,7773.0297420073148,null,null,null,null,null,null,null,null,null,null,null,7773.0297420073148]
[null,null,null,null,0,null,null,null,null,null,null,null,null,null,null,null,0]
[573,"Maint of Misc. Transmission Plant",null,null,0,null,null,null,null,null,null,null,null,null,null,null,0]
[null,null,"SG",null,137427.49336317769,null,null,null,null,null,null,null,null,null,null,null,137427.49336317769]
[null,null,"CAGW",null,0,null,null,null,null,null,null,null,null,null,null,null,0]
[null,null,"CAGE",null,0,null,null,null,null,null,null,null,null,null,null,null,0]
[null,null,null,null,137427.49336317769,null,null,null,null,null,null,null,null,null,null,null,137427.49336317769]
[null,null,null,null,0,null,null,null,null,null,null,null,null,null,null,null,0]
["TOTAL TRANSMISSION EXPENSE",null,null,null,30912170.284866482,null,null,null,null,null,null,null,null,null,null,null,30912170.284866482]
[null,null,null,null,0,null,null,null,null,null,null,null,null,null,null,null,0]
["Summary of Transmission Expense by Factor",null,null,null,0,null,null,null,null,null,null,null,null,null,null,null,0]
[null,null,null,null,0,null,null,null,null,null,null,null,null,null,null,null,0]
[null,null,null,null,1766351.4994628306,null,null,null,null,null,null,null,null,null,null,null,1766351.4994628306]
[null,null,null,null,29082788.374584194,null,null,null,null,null,null,null,null,null,null,null,29082788.374584194]
[null,null,null,null,0,null,null,null,null,null,null,null,null,null,null,null,0]
[null,null,null,null,63030.410819457873,null,null,null,null,null,null,null,null,null,null,null,63030.410819457873]
["Total Transmission Expense by Factor",null,null,null,30912170.284866486,null,null,null,null,null,null,null,null,null,null,null,30912170.284866486]
[580,"Operation Supervision & Engineering",null,null,0,null,null,null,null,null,null,null,null,null,null,null,0]
[null,null,"S",null,58132.65385866748,null,null,null,null,null,null,null,null,null,null,null,58132.65385866748]
[null,null,"SNPD",null,851678.31344351894,null,null,null,null,null,null,null,null,null,null,null,851678.31344351894]
[null,null,null,null,909810.96730218641,null,null,null,null,null,null,null,null,null,null,null,909810.96730218641]
[null,null,null,null,0,null,null,null,null,null,null,null,null,null,null,null,0]
[581,"Load Dispatching",null,null,0,null,null,null,null,null,null,null,null,null,null,null,0]
[null,null,"S",null,{"$f":"+Q709","v":0},null,null,null,null,null,null,null,null,null,null,null,0]
[null,null,"SNPD",null,852248.379117648,null,null,null,null,null,null,null,null,null,null,null,852248.379117648]
[null,null,null,null,852248.379117648,null,null,null,null,null,null,null,null,null,null,null,852248.379117648]
[null,null,null,null,0,null,null,null,null,null,null,null,null,null,null,null,0]
[582,"Station Expense",null,null,0,null,null,null,null,null,null,null,null,null,null,null,0]
[null,null,"S",null,314983.15000000002,null,null,null,null,null,null,null,null,null,null,null,314983.15000000002]
[null,null,"SNPD",null,2352.5851414134877,null,null,null,null,null,null,null,null,null,null,null,2352.5851414134877]
[null,null,null,null,317335.73514141352,null,null,null,null,null,null,null,null,null,null,null,317335.73514141352]
[null,null,null,null,0,null,null,null,null,null,null,null,null,null,null,null,0]
[583,"Overhead Line Expenses",null,null,0,null,null,null,null,null,null,null,null,null,null,null,0]
[null,null,"S",null,575479.6,null,null,null,null,null,null,null,null,null,null,null,575479.6]
[null,null,"SNPD",null,1155.4869086323299,null,null,null,null,null,null,null,null,null,null,null,1155.4869086323299]
[null,null,null,null,576635.08690863231,null,null,null,null,null,null,null,null,null,null,null,576635.08690863231]
[null,null,null,null,0,null,null,null,null,null,null,null,null,null,null,null,0]
[584,"Underground Line Expense",null,null,0,null,null,null,null,null,null,null,null,null,null,null,0]
[null,null,"S",null,0,null,null,null,null,null,null,null,null,null,null,null,0]
[null,null,"SNPD",null,67.300607506355803,null,null,null,null,null,null,null,null,null,null,null,67.300607506355803]
[null,null,null,null,67.300607506355803,null,null,null,null,null,null,null,null,null,null,null,67.300607506355803]
[null,null,null,null,0,null,null,null,null,null,null,null,null,null,null,null,0]
[585,"Street Lighting & Signal Systems",null,null,0,null,null,null,null,null,null,null,null,null,null,null,0]
[null,null,"S",null,0,null,null,null,null,null,null,null,null,null,null,null,0]
[null,null,"SNPD",null,14256.5274335944,null,null,null,null,null,null,null,null,null,null,null,14256.5274335944]
[null,null,null,null,14256.5274335944,null,null,null,null,null,null,null,null,null,null,null,14256.5274335944]
[null,null,null,null,0,null,null,null,null,null,null,null,null,null,null,null,0]
[586,"Meter Expenses",null,null,0,null,null,null,null,null,null,null,null,null,null,null,0]
[null,null,"S",null,556244,null,null,null,null,null,null,null,null,null,null,null,556244]
[null,null,"SNPD",null,79904.154248911218,null,null,null,null,null,null,null,null,null,null,null,79904.154248911218]
[null,null,null,null,636148.15424891119,null,null,null,null,null,null,null,null,null,null,null,636148.15424891119]
[null,null,null,null,0,null,null,null,null,null,null,null,null,null,null,null,0]
[587,"Customer Installation Expenses",null,null,0,null,null,null,null,null,null,null,null,null,null,null,0]
[null,null,"S",null,947827.17,null,null,null,null,null,null,null,null,null,null,null,947827.17]
[null,null,"SNPD",null,0,null,null,null,null,null,null,null,null,null,null,null,0]
[null,null,null,null,947827.17,null,null,null,null,null,null,null,null,null,null,null,947827.17]
[null,null,null,null,0,null,null,null,null,null,null,null,null,null,null,null,0]
[588,"Misc. Distribution Expenses",null,null,0,null,null,null,null,null,null,null,null,null,null,null,0]
[null,null,"S",null,56180.82,null,null,null,null,null,null,null,null,null,null,null,56180.82]
[null,null,"SNPD",null,221429.81598494368,null,null,null,null,null,null,null,null,null,null,null,221429.81598494368]
[null,null,null,null,277610.63598494366,null,null,null,null,null,null,null,null,null,null,null,277610.63598494366]
[null,null,null,null,0,null,null,null,null,null,null,null,null,null,null,null,0]
[589,"Rents",null,null,0,null,null,null,null,null,null,null,null,null,null,null,0]
[null,null,"S",null,116439.65,null,null,null,null,null,null,null,null,null,null,null,116439.65]
[null,null,"SNPD",null,3153.4906262998356,null,null,null,null,null,null,null,null,null,null,null,3153.4906262998356]
[null,null,null,null,119593.14062629984,null,null,null,null,null,null,null,null,null,null,null,119593.14062629984]
[null,null,null,null,0,null,null,null,null,null,null,null,null,null,null,null,0]
[590,"Maint Supervision & Engineering",null,null,0,null,null,null,null,null,null,null,null,null,null,null,0]
[null,null,"S",null,21432.03,null,null,null,null,null,null,null,null,null,null,null,21432.03]
[null,null,"SNPD",null,225685.86510009371,null,null,null,null,null,null,null,null,null,null,null,225685.86510009371]
[null,null,null,null,247117.89510009371,null,null,null,null,null,null,null,null,null,null,null,247117.89510009371]
[null,null,null,null,0,null,null,null,null,null,null,null,null,null,null,null,0]
[591,"Maintenance of Structures",null,null,0,null,null,null,null,null,null,null,null,null,null,null,0]
[null,null,"S",null,199856.64000000001,null,null,null,null,null,null,null,null,null,null,null,199856.64000000001]
[null,null,"SNPD",null,9372.0869331936174,null,null,null,null,null,null,null,null,null,null,null,9372.0869331936174]
[null,null,null,null,209228.72693319363,null,null,null,null,null,null,null,null,null,null,null,209228.72693319363]
[null,null,null,null,0,null,null,null,null,null,null,null,null,null,null,null,0]
[592,"Maintenance of Station Equipment",null,null,0,null,null,null,null,null,null,null,null,null,null,null,0]
[null,null,"S",null,644493.71,null,null,null,null,null,null,null,null,null,null,null,644493.71]
[null,null,"SNPD",null,110413.02739222946,null,null,null,null,null,null,null,null,null,null,null,110413.02739222946]
[null,null,null,null,754906.73739222938,null,null,null,null,null,null,null,null,null,null,null,754906.73739222938]
[593,"Maintenance of Overhead Lines",null,null,0,null,null,null,null,null,null,null,null,null,null,null,0]
[null,null,"S",null,4071602.1597489058,null,null,null,null,null,null,null,null,null,null,null,4071602.1597489058]
[null,null,"SNPD",null,72661.809955887366,null,null,null,null,null,null,null,null,null,null,null,72661.809955887366]
[null,null,null,null,4144263.9697047933,null,null,null,null,null,null,null,null,null,null,null,4144263.9697047933]
[null,null,null,null,0,null,null,null,null,null,null,null,null,null,null,null,0]
[594,"Maintenance of Underground Lines",null,null,0,null,null,null,null,null,null,null,null,null,null,null,0]
[null,null,"S",null,{"$f":"+Q773","v":1028392.99},null,null,null,null,null,null,null,null,null,null,null,1028392.99]
[null,null,"SNPD",null,411.6686482537844,null,null,null,null,null,null,null,null,null,null,null,411.6686482537844]
[null,null,null,null,1028804.6586482538,null,null,null,null,null,null,null,null,null,null,null,1028804.6586482538]
[null,null,null,null,0,null,null,null,null,null,null,null,null,null,null,null,0]
[595,"Maintenance of Line Transformers",null,null,0,null,null,null,null,null,null,null,null,null,null,null,0]
[null,null,"S",null,0,null,null,null,null,null,null,null,null,null,null,null,0]
[null,null,"SNPD",null,56252.998151844738,null,null,null,null,null,null,null,null,null,null,null,56252.998151844738]
[null,null,null,null,56252.998151844738,null,null,null,null,null,null,null,null,null,null,null,56252.998151844738]
[null,null,null,null,0,null,null,null,null,null,null,null,null,null,null,null,0]
[596,"Maint of Street Lighting & Signal Sys.",null,null,0,null,null,null,null,null,null,null,null,null,null,null,0]
[null,null,"S",null,199709.85,null,null,null,null,null,null,null,null,null,null,null,199709.85]
[null,null,"SNPD",null,0,null,null,null,null,null,null,null,null,null,null,null,0]
[null,null,null,null,199709.85,null,null,null,null,null,null,null,null,null,null,null,199709.85]
[null,null,null,null,0,null,null,null,null,null,null,null,null,null,null,null,0]
[597,"Maintenance of Meters",null,null,0,null,null,null,null,null,null,null,null,null,null,null,0]
[null,null,"S",null,365615.24,null,null,null,null,null,null,null,null,null,null,null,365615.24]
[null,null,"SNPD",null,76296.910999982632,null,null,null,null,null,null,null,null,null,null,null,76296.910999982632]
[null,null,null,null,441912.15099998261,null,null,null,null,null,null,null,null,null,null,null,441912.15099998261]
[null,null,null,null,0,null,null,null,null,null,null,null,null,null,null,null,0]
[598,"Maint of Misc. Distribution Plant",null,null,0,null,null,null,null,null,null,null,null,null,null,null,0]
[null,null,"S",null,112100.6,null,null,null,null,null,null,null,null,null,null,null,112100.6]
[null,null,"SNPD",null,-36375.101917538923,null,null,null,null,null,null,null,null,null,null,null,-36375.101917538923]
[null,null,null,null,75725.498082461083,null,null,null,null,null,null,null,null,null,null,null,75725.498082461083]
[null,null,null,null,0,null,null,null,null,null,null,null,null,null,null,null,0]
["TOTAL DISTRIBUTION EXPENSE",null,null,null,11809455.58238399,null,null,null,null,null,null,null,null,null,null,null,11809455.58238399]
[null,null,null,null,0,null,null,null,null,null,null,null,null,null,null,null,0]
[null,null,null,null,0,null,null,null,null,null,null,null,null,null,null,null,0]
["Summary of Distribution Expense by Factor",null,null,null,0,null,null,null,null,null,null,null,null,null,null,null,0]
[null,null,null,null,9268490.2636075728,null,null,null,null,null,null,null,null,null,null,null,9268490.2636075728]
[null,null,null,null,2540965.3187764147,null,null,null,null,null,null,null,null,null,null,null,2540965.3187764147]
[null,null,null,null,0,null,null,null,null,null,null,null,null,null,null,null,0]
["Total Distribution Expense by Factor",null,null,null,11809455.582383987,null,null,null,null,null,null,null,null,null,null,null,11809455.582383987]
[null,null,null,null,0,null,null,null,null,null,null,null,null,null,null,null,0]
[901,"Supervision",null,null,0,null,null,null,null,null,null,null,null,null,null,null,0]
[null,null,"S",null,0,null,null,null,null,null,null,null,null,null,null,null,0]
[null,null,"CN",null,201143.69782696577,null,null,null,null,null,null,null,null,null,null,null,201143.69782696577]
[null,null,null,null,201143.69782696577,null,null,null,null,null,null,null,null,null,null,null,201143.69782696577]
[null,null,null,null,0,null,null,null,null,null,null,null,null,null,null,null,0]
[902,"Meter Reading Expense",null,null,0,null,null,null,null,null,null,null,null,null,null,null,0]
[null,null,"S",null,792190.16374382132,null,null,null,null,null,null,null,null,null,null,null,792190.16374382132]
[null,null,"CN",null,162552.2079048609,null,null,null,null,null,null,null,null,null,null,null,162552.2079048609]
[null,null,null,null,954742.37164868228,null,null,null,null,null,null,null,null,null,null,null,954742.37164868228]
[null,null,null,null,0,null,null,null,null,null,null,null,null,null,null,null,0]
[903,"Customer Receipts & Collections",null,null,0,null,null,null,null,null,null,null,null,null,null,null,0]
[null,null,"S",null,744626.95045399456,null,null,null,null,null,null,null,null,null,null,null,744626.95045399456]
[null,null,"CN",null,3237193.1229937677,null,null,null,null,null,null,null,null,null,null,null,3237193.1229937677]
[null,null,null,null,3981820.0734477621,null,null,null,null,null,null,null,null,null,null,null,3981820.0734477621]
[null,null,null,null,0,null,null,null,null,null,null,null,null,null,null,null,0]
[904,"Uncollectible Accounts",null,null,0,null,null,null,null,null,null,null,null,null,null,null,0]
[null,null,"S",null,2205875.3724037027,null,null,null,null,null,null,null,null,null,null,null,2205875.3724037027]
[null,null,"SG",null,0,null,null,null,null,null,null,null,null,null,null,null,0]
[null,null,"CN",null,18683.311639892443,null,null,null,null,null,null,null,null,null,null,null,18683.311639892443]
[null,null,null,null,2224558.6840435951,null,null,null,null,null,null,null,null,null,null,null,2224558.6840435951]
[null,null,null,null,0,null,null,null,null,null,null,null,null,null,null,null,0]
[905,"Misc. Customer Accounts Expense",null,null,0,null,null,null,null,null,null,null,null,null,null,null,0]
[null,null,"S",null,0,null,null,null,null,null,null,null,null,null,null,null,0]
[null,null,"CN",null,11842.924124365636,null,null,null,null,null,null,null,null,null,null,null,11842.924124365636]
[null,null,null,null,11842.924124365636,null,null,null,null,null,null,null,null,null,null,null,11842.924124365636]
[null,null,null,null,0,null,null,null,null,null,null,null,null,null,null,null,0]
["TOTAL CUSTOMER ACCOUNTS EXPENSE",null,null,null,7374107.7510913713,null,null,null,null,null,null,null,null,null,null,null,7374107.7510913713]
[null,null,null,null,0,null,null,null,null,null,null,null,null,null,null,null,0]
["Summary of Customer Accts Exp by Factor",null,null,null,0,null,null,null,null,null,null,null,null,null,null,null,0]
[null,null,null,null,3742692.4866015185,null,null,null,null,null,null,null,null,null,null,null,3742692.4866015185]
[null,null,null,null,3631415.2644898524,null,null,null,null,null,null,null,null,null,null,null,3631415.2644898524]
[null,null,null,null,{"$f":"+Q837","v":0},null,null,null,null,null,null,null,null,null,null,null,0]
["Total Customer Accounts Expense by Factor",null,null,null,7374107.7510913704,null,null,null,null,null,null,null,null,null,null,null,7374107.7510913704]
[null,null,null,null,0,null,null,null,null,null,null,null,null,null,null,null,0]
[907,"Supervision",null,null,0,null,null,null,null,null,null,null,null,null,null,null,0]
[null,null,"S",null,0,null,null,null,null,null,null,null,null,null,null,null,0]
[null,null,"CN",null,20658.756281480728,null,null,null,null,null,null,null,null,null,null,null,20658.756281480728]
[null,null,null,null,20658.756281480728,null,null,null,null,null,null,null,null,null,null,null,20658.756281480728]
[null,null,null,null,0,null,null,null,null,null,null,null,null,null,null,null,0]
[908,"Customer Assistance",null,null,0,null,null,null,null,null,null,null,null,null,null,null,0]
[null,null,"S",null,463666.8983083088,null,null,null,null,null,null,null,null,null,null,null,463666.8983083088]
[null,null,"CN",null,106886.56838039421,null,null,null,null,null,null,null,null,null,null,null,106886.56838039421]
[null,null,null,null,570553.46668870305,null,null,null,null,null,null,null,null,null,null,null,570553.46668870305]
[null,null,null,null,0,null,null,null,null,null,null,null,null,null,null,null,0]
[909,"Informational & Instructional Adv",null,null,0,null,null,null,null,null,null,null,null,null,null,null,0]
[null,null,"S",null,118181.26999999999,null,null,null,null,null,null,null,null,null,null,null,118181.26999999999]
[null,null,"CN",null,193466.88496519884,null,null,null,null,null,null,null,null,null,null,null,193466.88496519884]
[null,null,null,null,311648.15496519883,null,null,null,null,null,null,null,null,null,null,null,311648.15496519883]
[null,null,null,null,0,null,null,null,null,null,null,null,null,null,null,null,0]
[910,"Misc. Customer Service",null,null,0,null,null,null,null,null,null,null,null,null,null,null,0]
[null,null,"S",null,0,null,null,null,null,null,null,null,null,null,null,null,0]
[null,null,"CN",null,8169.3380715107123,null,null,null,null,null,null,null,null,null,null,null,8169.3380715107123]
[null,null,null,null,0,null,null,null,null,null,null,null,null,null,null,null,0]
[null,null,null,null,8169.3380715107123,null,null,null,null,null,null,null,null,null,null,null,8169.3380715107123]
[null,null,null,null,0,null,null,null,null,null,null,null,null,null,null,null,0]
["TOTAL CUSTOMER SERVICE EXPENSE",null,null,null,911029.7160068932,null,null,null,null,null,null,null,null,null,null,null,911029.7160068932]
[null,null,null,null,0,null,null,null,null,null,null,null,null,null,null,null,0]
[null,null,null,null,0,null,null,null,null,null,null,null,null,null,null,null,0]
["Summary of Customer Service Exp by Factor",null,null,null,0,null,null,null,null,null,null,null,null,null,null,null,0]
[null,null,null,null,581848.16830830881,null,null,null,null,null,null,null,null,null,null,null,581848.16830830881]
[null,null,null,null,329181.5476985845,null,null,null,null,null,null,null,null,null,null,null,329181.5476985845]
[null,null,null,null,0,null,null,null,null,null,null,null,null,null,null,null,0]
["Total Customer Service Expense by Factor",null,null,null,911029.71600689332,null,null,null,null,null,null,null,null,null,null,null,911029.71600689332]
[null,null,null,null,0,null,null,null,null,null,null,null,null,null,null,null,0]
[null,null,null,null,0,null,null,null,null,null,null,null,null,null,null,null,0]
[911,"Supervision",null,null,0,null,null,null,null,null,null,null,null,null,null,null,0]
[null,null,"S",null,0,null,null,null,null,null,null,null,null,null,null,null,0]
[null,null,"CN",null,0,null,null,null,null,null,null,null,null,null,null,null,0]
[null,null,null,null,0,null,null,null,null,null,null,null,null,null,null,null,0]
[null,null,null,null,0,null,null,null,null,null,null,null,null,null,null,null,0]
[912,"Demonstration & Selling Expense",null,null,0,null,null,null,null,null,null,null,null,null,null,null,0]
[null,null,"S",null,0,null,null,null,null,null,null,null,null,null,null,null,0]
[null,null,"CN",null,0,null,null,null,null,null,null,null,null,null,null,null,0]
[null,null,null,null,0,null,null,null,null,null,null,null,null,null,null,null,0]
[null,null,null,null,0,null,null,null,null,null,null,null,null,null,null,null,0]
[913,"Advertising Expense",null,null,0,null,null,null,null,null,null,null,null,null,null,null,0]
[null,null,"S",null,0,null,null,null,null,null,null,null,null,null,null,null,0]
[null,null,"CN",null,0,null,null,null,null,null,null,null,null,null,null,null,0]
[null,null,null,null,0,null,null,null,null,null,null,null,null,null,null,null,0]
[null,null,null,null,0,null,null,null,null,null,null,null,null,null,null,null,0]
[916,"Misc. Sales Expense",null,null,0,null,null,null,null,null,null,null,null,null,null,null,0]
[null,null,"S",null,0,null,null,null,null,null,null,null,null,null,null,null,0]
[null,null,"CN",null,0,null,null,null,null,null,null,null,null,null,null,null,0]
[null,null,null,null,0,null,null,null,null,null,null,null,null,null,null,null,0]
[null,null,null,null,0,null,null,null,null,null,null,null,null,null,null,null,0]
["TOTAL SALES EXPENSE",null,null,null,0,null,null,null,null,null,null,null,null,null,null,null,0]
[null,null,null,null,0,null,null,null,null,null,null,null,null,null,null,null,0]
[null,null,null,null,0,null,null,null,null,null,null,null,null,null,null,null,0]
["Total Sales Expense by Factor",null,null,null,0,null,null,null,null,null,null,null,null,null,null,null,0]
[null,null,null,null,0,null,null,null,null,null,null,null,null,null,null,null,0]
[null,null,null,null,0,null,null,null,null,null,null,null,null,null,null,null,0]
["Total Sales Expense by Factor",null,null,null,0,null,null,null,null,null,null,null,null,null,null,null,0]
[null,null,null,null,0,null,null,null,null,null,null,null,null,null,null,null,0]
["Total Customer Service Exp Including Sales",null,null,null,911029.71600689332,null,null,null,null,null,null,null,null,null,null,null,911029.71600689332]
[920,"Administrative & General Salaries",null,null,0,null,null,null,null,null,null,null,null,null,null,null,0]
[null,null,"S",null,{"$f":"+Q901","v":-161581.33140727435},null,null,null,null,null,null,null,null,null,null,null,-161581.33140727435]
[null,null,"CN",null,0,null,null,null,null,null,null,null,null,null,null,null,0]
[null,null,"SO",null,5126265.5045794435,null,null,null,null,null,null,null,null,null,null,null,5126265.5045794435]
[null,null,null,null,4964684.1731721694,null,null,null,null,null,null,null,null,null,null,null,4964684.1731721694]
[null,null,null,null,0,null,null,null,null,null,null,null,null,null,null,null,0]
[921,"Office Supplies & expenses",null,null,0,null,null,null,null,null,null,null,null,null,null,null,0]
[null,null,"S",null,14075.31,null,null,null,null,null,null,null,null,null,null,null,14075.31]
[null,null,"CN",null,4927.3228122879218,null,null,null,null,null,null,null,null,null,null,null,4927.3228122879218]
[null,null,"SO",null,601357.18113838439,null,null,null,null,null,null,null,null,null,null,null,601357.18113838439]
[null,null,null,null,620359.81395067228,null,null,null,null,null,null,null,null,null,null,null,620359.81395067228]
[null,null,null,null,0,null,null,null,null,null,null,null,null,null,null,null,0]
[922,"Office Supplies & expenses",null,null,0,null,null,null,null,null,null,null,null,null,null,null,0]
[null,null,"S",null,0,null,null,null,null,null,null,null,null,null,null,null,0]
[null,null,"CN",null,0,null,null,null,null,null,null,null,null,null,null,null,0]
[null,null,"SO",null,-1720447.2673198008,null,null,null,null,null,null,null,null,null,null,null,-1720447.2673198008]
[null,null,null,null,-1720447.2673198008,null,null,null,null,null,null,null,null,null,null,null,-1720447.2673198008]
[null,null,null,null,0,null,null,null,null,null,null,null,null,null,null,null,0]
[923,"Outside Services",null,null,0,null,null,null,null,null,null,null,null,null,null,null,0]
[null,null,"S",null,19204.71,null,null,null,null,null,null,null,null,null,null,null,19204.71]
[null,null,"CN",null,-131959.05691119199,null,null,null,null,null,null,null,null,null,null,null,-131959.05691119199]
[null,null,"SO",null,450164.95866175729,null,null,null,null,null,null,null,null,null,null,null,450164.95866175729]
[null,null,null,null,337410.61175056529,null,null,null,null,null,null,null,null,null,null,null,337410.61175056529]
[null,null,null,null,0,null,null,null,null,null,null,null,null,null,null,null,0]
[924,"Property Insurance",null,null,0,null,null,null,null,null,null,null,null,null,null,null,0]
[null,null,"SO",null,571302.85521328636,null,null,null,null,null,null,null,null,null,null,null,571302.85521328636]
[null,null,null,null,571302.85521328636,null,null,null,null,null,null,null,null,null,null,null,571302.85521328636]
[null,null,null,null,0,null,null,null,null,null,null,null,null,null,null,null,0]
[925,"Injuries & Damages",null,null,0,null,null,null,null,null,null,null,null,null,null,null,0]
[null,null,"SO",null,672440.80841598194,null,null,null,null,null,null,null,null,null,null,null,672440.80841598194]
[null,null,null,null,672440.80841598194,null,null,null,null,null,null,null,null,null,null,null,672440.80841598194]
[null,null,null,null,0,null,null,null,null,null,null,null,null,null,null,null,0]
[926,"Employee Pensions & Benefits",null,null,0,null,null,null,null,null,null,null,null,null,null,null,0]
[null,null,"S",null,0,null,null,null,null,null,null,null,null,null,null,null,0]
[null,null,"CN",null,0,null,null,null,null,null,null,null,null,null,null,null,0]
[null,null,"SO",null,0,null,null,null,null,null,null,null,null,null,null,null,0]
[null,null,null,null,0,null,null,null,null,null,null,null,null,null,null,null,0]
[null,null,null,null,0,null,null,null,null,null,null,null,null,null,null,null,0]
[927,"Franchise Requirements",null,null,0,null,null,null,null,null,null,null,null,null,null,null,0]
[null,null,"S",null,0,null,null,null,null,null,null,null,null,null,null,null,0]
[null,null,"SO",null,0,null,null,null,null,null,null,null,null,null,null,null,0]
[null,null,null,null,0,null,null,null,null,null,null,null,null,null,null,null,0]
[null,null,null,null,0,null,null,null,null,null,null,null,null,null,null,null,0]
[928,"Regulatory Commission Expense",null,null,0,null,null,null,null,null,null,null,null,null,null,null,0]
[null,null,"S",null,1512032.81,null,null,null,null,null,null,null,null,null,null,null,1512032.81]
[null,null,"CN",null,0,null,null,null,null,null,null,null,null,null,null,null,0]
[null,null,"SO",null,173387.72125797486,null,null,null,null,null,null,null,null,null,null,null,173387.72125797486]
[null,null,"CAGW",null,402008.43819237087,null,null,null,null,null,null,null,null,null,null,null,402008.43819237087]
[null,null,"CAGE",null,0,null,null,null,null,null,null,null,null,null,null,null,0]
[null,null,"SG",null,150704.92201781811,null,null,null,null,null,null,null,null,null,null,null,150704.92201781811]
[null,null,null,null,2238133.891468164,null,null,null,null,null,null,null,null,null,null,null,2238133.891468164]
[null,null,null,null,0,null,null,null,null,null,null,null,null,null,null,null,0]
[929,"Duplicate Charges",null,null,0,null,null,null,null,null,null,null,null,null,null,null,0]
[null,null,"S",null,0,null,null,null,null,null,null,null,null,null,null,null,0]
[null,null,"SO",null,-433966.34652951593,null,null,null,null,null,null,null,null,null,null,null,-433966.34652951593]
[null,null,null,null,-433966.34652951593,null,null,null,null,null,null,null,null,null,null,null,-433966.34652951593]
[null,null,null,null,0,null,null,null,null,null,null,null,null,null,null,null,0]
[930,"Misc General Expenses",null,null,0,null,null,null,null,null,null,null,null,null,null,null,0]
[null,null,"S",null,26128,null,null,null,null,null,null,null,null,null,null,null,26128]
[null,null,"CN",null,0,null,null,null,null,null,null,null,null,null,null,null,0]
[null,null,"SO",null,758900.30188359064,null,null,null,null,null,null,null,null,null,null,null,758900.30188359064]
[null,null,null,null,785028.30188359064,null,null,null,null,null,null,null,null,null,null,null,785028.30188359064]
[null,null,null,null,0,null,null,null,null,null,null,null,null,null,null,null,0]
[931,"Rents",null,null,0,null,null,null,null,null,null,null,null,null,null,null,0]
[null,null,"S",null,8509.34,null,null,null,null,null,null,null,null,null,null,null,8509.34]
[null,null,"SO",null,382297.26744720503,null,null,null,null,null,null,null,null,null,null,null,382297.26744720503]
[null,null,null,null,390806.60744720505,null,null,null,null,null,null,null,null,null,null,null,390806.60744720505]
[null,null,null,null,0,null,null,null,null,null,null,null,null,null,null,null,0]
[935,"Maintenance of General Plant",null,null,0,null,null,null,null,null,null,null,null,null,null,null,0]
[null,null,"S",null,{"$f":"+Q969","v":19971.180384915944},null,null,null,null,null,null,null,null,null,null,null,19971.180384915944]
[null,null,"CN",null,1466.4285581599922,null,null,null,null,null,null,null,null,null,null,null,1466.4285581599922]
[null,null,"SO",null,1544862.2698619494,null,null,null,null,null,null,null,null,null,null,null,1544862.2698619494]
[null,null,null,null,1566299.8788050252,null,null,null,null,null,null,null,null,null,null,null,1566299.8788050252]
[null,null,null,null,0,null,null,null,null,null,null,null,null,null,null,null,0]
["TOTAL ADMINISTRATIVE & GEN EXPENSE",null,null,null,9992053.3282573428,null,null,null,null,null,null,null,null,null,null,null,9992053.3282573428]
[null,null,null,null,0,null,null,null,null,null,null,null,null,null,null,null,0]
["Summary of A&G Expense by Factor",null,null,null,0,null,null,null,null,null,null,null,null,null,null,null,0]
[null,null,null,null,1438340.0189776418,null,null,null,null,null,null,null,null,null,null,null,1438340.0189776418]
[null,null,null,null,8126565.2546102563,null,null,null,null,null,null,null,null,null,null,null,8126565.2546102563]
[null,null,null,null,150704.92201781811,null,null,null,null,null,null,null,null,null,null,null,150704.92201781811]
[null,null,null,null,6393.7513704479143,null,null,null,null,null,null,null,null,null,null,null,6393.7513704479143]
[null,null,null,null,270049.38128117891,null,null,null,null,null,null,null,null,null,null,null,270049.38128117891]
[null,null,null,null,0,null,null,null,null,null,null,null,null,null,null,null,0]
["Total A&G Expense by Factor",null,null,null,9992053.3282573428,null,null,null,null,null,null,null,null,null,null,null,9992053.3282573428]
[null,null,null,null,0,null,null,null,null,null,null,null,null,null,null,null,0]
["TOTAL O&M EXPENSE",null,null,null,217526010.15460241,null,null,null,null,null,null,null,null,null,null,null,217526010.15460241]
["403SP","Steam Depreciation",null,null,0,null,null,null,null,null,null,null,null,null,null,null,0]
[null,null,"DGP",null,0,null,null,null,null,null,null,null,null,null,null,null,0]
[null,null,"DGU",null,0,null,null,null,null,null,null,null,null,null,null,null,0]
[null,null,"SG",null,0,null,null,null,null,null,null,null,null,null,null,null,0]
[null,null,"CAGW",null,657177.99611687684,null,null,null,null,null,null,null,null,null,null,null,657177.99611687684]
[null,null,"CAGE",null,0,null,null,null,null,null,null,null,null,null,null,null,0]
[null,null,"JBG",null,6980936.8357505603,null,null,null,null,null,null,null,null,null,null,null,6980936.8357505603]
[null,null,"CAGE",null,0,null,null,null,null,null,null,null,null,null,null,null,0]
[null,null,null,null,7638114.8318674369,null,null,null,null,null,null,null,null,null,null,null,7638114.8318674369]
[null,null,null,null,0,null,null,null,null,null,null,null,null,null,null,null,0]
["403NP","Nuclear Depreciation",null,null,0,null,null,null,null,null,null,null,null,null,null,null,0]
[null,null,"DGP",null,0,null,null,null,null,null,null,null,null,null,null,null,0]
[null,null,null,null,0,null,null,null,null,null,null,null,null,null,null,null,0]
[null,null,null,null,0,null,null,null,null,null,null,null,null,null,null,null,0]
["403HP","Hydro Depreciation",null,null,0,null,null,null,null,null,null,null,null,null,null,null,0]
[null,null,"DGP",null,0,null,null,null,null,null,null,null,null,null,null,null,0]
[null,null,"DGU",null,0,null,null,null,null,null,null,null,null,null,null,null,0]
[null,null,"CAGW",null,5403611.9978192989,null,null,null,null,null,null,null,null,null,null,null,5403611.9978192989]
[null,null,"CAGE",null,0,null,null,null,null,null,null,null,null,null,null,null,0]
[null,null,"CAGW",null,0,null,null,null,null,null,null,null,null,null,null,null,0]
[null,null,"CAGE",null,0,null,null,null,null,null,null,null,null,null,null,null,0]
[null,null,null,null,5403611.9978192989,null,null,null,null,null,null,null,null,null,null,null,5403611.9978192989]
[null,null,null,null,0,null,null,null,null,null,null,null,null,null,null,null,0]
["403OP","Other Production Depreciation",null,null,0,null,null,null,null,null,null,null,null,null,null,null,0]
[null,null,"DGU",null,0,null,null,null,null,null,null,null,null,null,null,null,0]
[null,null,"SG",null,0,null,null,null,null,null,null,null,null,null,null,null,0]
[null,null,"CAGW",null,9179801.7903933171,null,null,null,null,null,null,null,null,null,null,null,9179801.7903933171]
[null,null,"CAGE",null,0,null,null,null,null,null,null,null,null,null,null,null,0]
[null,null,"CAGE",null,0,null,null,null,null,null,null,null,null,null,null,null,0]
[null,null,"CAGE",null,0,null,null,null,null,null,null,null,null,null,null,null,0]
[null,null,null,null,9179801.7903933171,null,null,null,null,null,null,null,null,null,null,null,9179801.7903933171]
[null,null,null,null,0,null,null,null,null,null,null,null,null,null,null,null,0]
["403TP","Transmission Depreciation",null,null,0,null,null,null,null,null,null,null,null,null,null,null,0]
[null,null,"DGP",null,0,null,null,null,null,null,null,null,null,null,null,null,0]
[null,null,"DGU",null,0,null,null,null,null,null,null,null,null,null,null,null,0]
[null,null,"CAGW",null,4834826.1160581335,null,null,null,null,null,null,null,null,null,null,null,4834826.1160581335]
[null,null,"CAGE",null,0,null,null,null,null,null,null,null,null,null,null,null,0]
[null,null,"JBG",null,183295.47684185681,null,null,null,null,null,null,null,null,null,null,null,183295.47684185681]
[null,null,"SG",null,5939.499320819783,null,null,null,null,null,null,null,null,null,null,null,5939.499320819783]
[null,null,null,null,5024061.0922208102,null,null,null,null,null,null,null,null,null,null,null,5024061.0922208102]
[null,null,null,null,0,null,null,null,null,null,null,null,null,null,null,null,0]
[null,null,null,null,0,null,null,null,null,null,null,null,null,null,null,null,0]
[null,null,null,null,0,null,null,null,null,null,null,null,null,null,null,null,0]
[403,"Distribution Depreciation",null,null,0,null,null,null,null,null,null,null,null,null,null,null,0]
[360,null,"S",null,4664.91,null,null,null,null,null,null,null,null,null,null,null,4664.91]
[361,null,"S",null,39557.75,null,null,null,null,null,null,null,null,null,null,null,39557.75]
[362,null,"S",null,1032646.87,null,null,null,null,null,null,null,null,null,null,null,1032646.87]
[363,null,"S",null,{"$f":"+Q1033","v":0},null,null,null,null,null,null,null,null,null,null,null,0]
[364,null,"S",null,2500805.4182108361,null,null,null,null,null,null,null,null,null,null,null,2500805.4182108361]
[365,null,"S",null,1713557.51,null,null,null,null,null,null,null,null,null,null,null,1713557.51]
[366,null,"S",null,709250.08,null,null,null,null,null,null,null,null,null,null,null,709250.08]
[367,null,"S",null,653549.86,null,null,null,null,null,null,null,null,null,null,null,653549.86]
[368,null,"S",null,2843151.39,null,null,null,null,null,null,null,null,null,null,null,2843151.39]
[369,null,"S",null,1270803.1499999999,null,null,null,null,null,null,null,null,null,null,null,1270803.1499999999]
[370,null,"S",null,445097.37,null,null,null,null,null,null,null,null,null,null,null,445097.37]
[371,null,"S",null,19245.82,null,null,null,null,null,null,null,null,null,null,null,19245.82]
[372,null,"S",null,0,null,null,null,null,null,null,null,null,null,null,null,0]
[373,null,"S",null,126255.92,null,null,null,null,null,null,null,null,null,null,null,126255.92]
[null,null,null,null,11358586.048210837,null,null,null,null,null,null,null,null,null,null,null,11358586.048210837]
[null,null,null,null,0,null,null,null,null,null,null,null,null,null,null,null,0]
["403GP","General Depreciation",null,null,0,null,null,null,null,null,null,null,null,null,null,null,0]
[null,null,"S",null,1154296.2929924203,null,null,null,null,null,null,null,null,null,null,null,1154296.2929924203]
[null,null,"DGP",null,0,null,null,null,null,null,null,null,null,null,null,null,0]
[null,null,"DGU",null,0,null,null,null,null,null,null,null,null,null,null,null,0]
[null,null,"SE",null,0,null,null,null,null,null,null,null,null,null,null,null,0]
[null,null,"CN",null,120344.21412182611,null,null,null,null,null,null,null,null,null,null,null,120344.21412182611]
[null,null,"SG",null,118.48831950779658,null,null,null,null,null,null,null,null,null,null,null,118.48831950779658]
[null,null,"SO",null,1008697.1826590333,null,null,null,null,null,null,null,null,null,null,null,1008697.1826590333]
[null,null,"CAGW",null,358908.16229748749,null,null,null,null,null,null,null,null,null,null,null,358908.16229748749]
[null,null,"CAGE",null,0,null,null,null,null,null,null,null,null,null,null,null,0]
[null,null,"JBG",null,63334.969196444858,null,null,null,null,null,null,null,null,null,null,null,63334.969196444858]
[null,null,"JBE",null,230.47406133172814,null,null,null,null,null,null,null,null,null,null,null,230.47406133172814]
[null,null,"CAEE",null,0,null,null,null,null,null,null,null,null,null,null,null,0]
[null,null,"CAGE",null,0,null,null,null,null,null,null,null,null,null,null,null,0]
[null,null,"CAGE",null,0,null,null,null,null,null,null,null,null,null,null,null,0]
[null,null,null,null,2705929.7836480518,null,null,null,null,null,null,null,null,null,null,null,2705929.7836480518]
[null,null,null,null,0,null,null,null,null,null,null,null,null,null,null,null,0]
["403GV0","General Vehicles",null,null,0,null,null,null,null,null,null,null,null,null,null,null,0]
[null,null,"SG",null,0,null,null,null,null,null,null,null,null,null,null,null,0]
[null,null,null,null,0,null,null,null,null,null,null,null,null,null,null,null,0]
[null,null,null,null,0,null,null,null,null,null,null,null,null,null,null,null,0]
["403MP","Mining Depreciation",null,null,0,null,null,null,null,null,null,null,null,null,null,null,0]
[null,null,"SE",null,0,null,null,null,null,null,null,null,null,null,null,null,0]
[null,null,null,null,0,null,null,null,null,null,null,null,null,null,null,null,0]
[null,null,null,null,0,null,null,null,null,null,null,null,null,null,null,null,0]
["403EP","Experimental Plant Depreciation",null,null,0,null,null,null,null,null,null,null,null,null,null,null,0]
[null,null,"DGP",null,0,null,null,null,null,null,null,null,null,null,null,null,0]
[null,null,"SG",null,0,null,null,null,null,null,null,null,null,null,null,null,0]
[null,null,null,null,0,null,null,null,null,null,null,null,null,null,null,null,0]
["4031","ARO Depreciation",null,null,0,null,null,null,null,null,null,null,null,null,null,null,0]
[null,null,"S",null,0,null,null,null,null,null,null,null,null,null,null,null,0]
[null,null,null,null,0,null,null,null,null,null,null,null,null,null,null,null,0]
[null,null,null,null," ",null,null,null,null,null,null,null,null,null,null,null," "]
[null,null,null,null," ",null,null,null,null,null,null,null,null,null,null,null," "]
["TOTAL DEPRECIATION EXPENSE",null,null,null,41310105.544159755,null,null,null,null,null,null,null,null,null,null,null,41310105.544159755]
[null,null,null,null,0,null,null,null,null,null,null,null,null,null,null,null,0]
["Summary",null,null,null,0,null,null,null,null,null,null,null,null,null,null,null,0]
[null,null,"S",null,12512882.341203257,null,null,null,null,null,null,null,null,null,null,null,12512882.341203257]
[null,null,"DGP",null,0,null,null,null,null,null,null,null,null,null,null,null,0]
[null,null,"DGU",null,0,null,null,null,null,null,null,null,null,null,null,null,0]
[null,null,"SG",null,6057.9876403275794,null,null,null,null,null,null,null,null,null,null,null,6057.9876403275794]
[null,null,"SO",null,1008697.1826590333,null,null,null,null,null,null,null,null,null,null,null,1008697.1826590333]
[null,null,"CN",null,120344.21412182611,null,null,null,null,null,null,null,null,null,null,null,120344.21412182611]
[null,null,"SE",null,0,null,null,null,null,null,null,null,null,null,null,null,0]
[null,null,"CAGW",null,20434326.062685113,null,null,null,null,null,null,null,null,null,null,null,20434326.062685113]
[null,null,"CAGE",null,0,null,null,null,null,null,null,null,null,null,null,null,0]
[null,null,"CAEW",null,0,null,null,null,null,null,null,null,null,null,null,null,0]
[null,null,"CAEE",null,0,null,null,null,null,null,null,null,null,null,null,null,0]
[null,null,"SSGCH",null,7227567.2817888623,null,null,null,null,null,null,null,null,null,null,null,7227567.2817888623]
[null,null,"SSGCT",null,230.47406133172814,null,null,null,null,null,null,null,null,null,null,null,230.47406133172814]
["Total Depreciation Expense By Factor",null,null,null,41310105.544159755,null,null,null,null,null,null,null,null,null,null,null,41310105.544159755]
[null,null,null,null,{"$f":"+Q1097","v":0},null,null,null,null,null,null,null,null,null,null,null,0]
["404GP","Amort of LT Plant - Capital Lease Gen",null,null,0,null,null,null,null,null,null,null,null,null,null,null,0]
[null,null,"S",null,203429.32,null,null,null,null,null,null,null,null,null,null,null,203429.32]
[null,null,"SG",null,0,null,null,null,null,null,null,null,null,null,null,null,0]
[null,null,"SO",null,87010.386173313658,null,null,null,null,null,null,null,null,null,null,null,87010.386173313658]
[null,null,"DGU",null,0,null,null,null,null,null,null,null,null,null,null,null,0]
[null,null,"CN",null,18944.613261818769,null,null,null,null,null,null,null,null,null,null,null,18944.613261818769]
[null,null,"CAGW",null,0,null,null,null,null,null,null,null,null,null,null,null,0]
[null,null,"CAGE",null,0,null,null,null,null,null,null,null,null,null,null,null,0]
[null,null,"DGP",null,0,null,null,null,null,null,null,null,null,null,null,null,0]
[null,null,null,null,309384.31943513243,null,null,null,null,null,null,null,null,null,null,null,309384.31943513243]
[null,null,null,null,0,null,null,null,null,null,null,null,null,null,null,null,0]
["404SP","Amort of LT Plant - Cap Lease Steam",null,null,0,null,null,null,null,null,null,null,null,null,null,null,0]
[null,null,"SG",null,0,null,null,null,null,null,null,null,null,null,null,null,0]
[null,null,"DGP",null,0,null,null,null,null,null,null,null,null,null,null,null,0]
[null,null,null,null,0,null,null,null,null,null,null,null,null,null,null,null,0]
[null,null,null,null,0,null,null,null,null,null,null,null,null,null,null,null,0]
["404IP","Amort of LT Plant - Intangible Plant",null,null,0,null,null,null,null,null,null,null,null,null,null,null,0]
[null,null,"S",null,183.85,null,null,null,null,null,null,null,null,null,null,null,183.85]
[null,null,"SE",null,0,null,null,null,null,null,null,null,null,null,null,null,0]
[null,null,"SG",null,410461.0264909502,null,null,null,null,null,null,null,null,null,null,null,410461.0264909502]
[null,null,"SO",null,1059718.656618322,null,null,null,null,null,null,null,null,null,null,null,1059718.656618322]
[null,null,"CN",null,416887.11970068014,null,null,null,null,null,null,null,null,null,null,null,416887.11970068014]
[null,null,"CAGW",null,0,null,null,null,null,null,null,null,null,null,null,null,0]
[null,null,"CAGE",null,0,null,null,null,null,null,null,null,null,null,null,null,0]
[null,null,"DGP",null,0,null,null,null,null,null,null,null,null,null,null,null,0]
[null,null,"CAGE",null,0,null,null,null,null,null,null,null,null,null,null,null,0]
[null,null,"CAGE",null,0,null,null,null,null,null,null,null,null,null,null,null,0]
[null,null,"CAGW",null,2974639.0096540321,null,null,null,null,null,null,null,null,null,null,null,2974639.0096540321]
[null,null,"CAGE",null,0,null,null,null,null,null,null,null,null,null,null,null,0]
[null,null,"JBG",null,764.01049840557801,null,null,null,null,null,null,null,null,null,null,null,764.01049840557801]
[null,null,"CAEW",null,0,null,null,null,null,null,null,null,null,null,null,null,0]
[null,null,"CAEE",null,0,null,null,null,null,null,null,null,null,null,null,null,0]
[null,null,"DGU",null,0,null,null,null,null,null,null,null,null,null,null,null,0]
[null,null,null,null,4862653.6729623899,null,null,null,null,null,null,null,null,null,null,null,4862653.6729623899]
[null,null,null,null,0,null,null,null,null,null,null,null,null,null,null,null,0]
["404MP","Amort of LT Plant - Mining Plant",null,null,0,null,null,null,null,null,null,null,null,null,null,null,0]
[null,null,"SE",null,0,null,null,null,null,null,null,null,null,null,null,null,0]
[null,null,null,null,0,null,null,null,null,null,null,null,null,null,null,null,0]
[null,null,null,null,0,null,null,null,null,null,null,null,null,null,null,null,0]
["404OP","Amort of LT Plant - Other Plant",null,null,0,null,null,null,null,null,null,null,null,null,null,null,0]
[null,null,"CAGE",null,0,null,null,null,null,null,null,null,null,null,null,null,0]
[null,null,"CAGE",null,0,null,null,null,null,null,null,null,null,null,null,null,0]
[null,null,null,null,0,null,null,null,null,null,null,null,null,null,null,null,0]
[null,null,null,null,0,null,null,null,null,null,null,null,null,null,null,null,0]
[null,null,null,null,0,null,null,null,null,null,null,null,null,null,null,null,0]
["404HP","Amortization of Other Electric Plant",null,null,0,null,null,null,null,null,null,null,null,null,null,null,0]
[null,null,"DGP",null,0,null,null,null,null,null,null,null,null,null,null,null,0]
[null,null,"DGU",null,0,null,null,null,null,null,null,null,null,null,null,null,0]
[null,null,"CAGW",null,52718.945847581628,null,null,null,null,null,null,null,null,null,null,null,52718.945847581628]
[null,null,"CAGE",null,0,null,null,null,null,null,null,null,null,null,null,null,0]
[null,null,"SG",null,0,null,null,null,null,null,null,null,null,null,null,null,0]
[null,null,null,null,52718.945847581628,null,null,null,null,null,null,null,null,null,null,null,52718.945847581628]
[null,null,null,null,0,null,null,null,null,null,null,null,null,null,null,null,0]
["Total Amortization of Limited Term Plant",null,null,null,5224756.9382451037,null,null,null,null,null,null,null,null,null,null,null,5224756.9382451037]
[null,null,null,null,0,null,null,null,null,null,null,null,null,null,null,null,0]
[null,null,null,null,0,null,null,null,null,null,null,null,null,null,null,null,0]
[405,"Amortization of Other Electric Plant",null,null,0,null,null,null,null,null,null,null,null,null,null,null,0]
[null,null,"S",null,0,null,null,null,null,null,null,null,null,null,null,null,0]
[null,null,null,null,0,null,null,null,null,null,null,null,null,null,null,null,0]
[null,null,null,null,0,null,null,null,null,null,null,null,null,null,null,null,0]
[null,null,null,null,0,null,null,null,null,null,null,null,null,null,null,null,0]
[406,"Amortization of Plant Acquisition Adj",null,null,0,null,null,null,null,null,null,null,null,null,null,null,0]
[null,null,"S",null,0,null,null,null,null,null,null,null,null,null,null,null,0]
[null,null,"DGP",null,{"$f":"+Q1161","v":0},null,null,null,null,null,null,null,null,null,null,null,0]
[null,null,"DGU",null,0,null,null,null,null,null,null,null,null,null,null,null,0]
[null,null,"CAGW",null,0,null,null,null,null,null,null,null,null,null,null,null,0]
[null,null,"CAGE",null,0,null,null,null,null,null,null,null,null,null,null,null,0]
[null,null,"SG",null,0,null,null,null,null,null,null,null,null,null,null,null,0]
[null,null,"SO",null,0,null,null,null,null,null,null,null,null,null,null,null,0]
[null,null,null,null,0,null,null,null,null,null,null,null,null,null,null,null,0]
[407,"Amort of Prop Losses, Unrec Plant, etc",null,null,0,null,null,null,null,null,null,null,null,null,null,null,0]
[null,null,"S",null,0,null,null,null,null,null,null,null,null,null,null,null,0]
[null,null,"SO",null,0,null,null,null,null,null,null,null,null,null,null,null,0]
[null,null,"DGP",null,0,null,null,null,null,null,null,null,null,null,null,null,0]
[null,null,"SE",null,0,null,null,null,null,null,null,null,null,null,null,null,0]
[null,null,"CAGW",null,322905.22191917192,null,null,null,null,null,null,null,null,null,null,null,322905.22191917192]
[null,null,"CAGE",null,0,null,null,null,null,null,null,null,null,null,null,null,0]
[null,null,"CAEW",null,0,null,null,null,null,null,null,null,null,null,null,null,0]
[null,null,"CAEE",null,0,null,null,null,null,null,null,null,null,null,null,null,0]
[null,null,"SG",null,0,null,null,null,null,null,null,null,null,null,null,null,0]
[null,null,"TROJP",null,0,null,null,null,null,null,null,null,null,null,null,null,0]
[null,null,null,null,322905.22191917192,null,null,null,null,null,null,null,null,null,null,null,322905.22191917192]
[null,null,null,null,0,null,null,null,null,null,null,null,null,null,null,null,0]
["TOTAL AMORTIZATION EXPENSE",null,null,null,5547662.1601642752,null,null,null,null,null,null,null,null,null,null,null,5547662.1601642752]
[null,null,null,null,0,null,null,null,null,null,null,null,null,null,null,null,0]
[null,null,null,null,0,null,null,null,null,null,null,null,null,null,null,null,0]
[null,null,null,null,0,null,null,null,null,null,null,null,null,null,null,null,0]
["Summary of Amortization Expense by Factor",null,null,null,0,null,null,null,null,null,null,null,null,null,null,null,0]
[null,null,"S",null,203613.17,null,null,null,null,null,null,null,null,null,null,null,203613.17]
[null,null,"SE",null,0,null,null,null,null,null,null,null,null,null,null,null,0]
[null,null,"TROJP",null,0,null,null,null,null,null,null,null,null,null,null,null,0]
[null,null,"DGP",null,0,null,null,null,null,null,null,null,null,null,null,null,0]
[null,null,"DGU",null,0,null,null,null,null,null,null,null,null,null,null,null,0]
[null,null,"SO",null,1146729.0427916357,null,null,null,null,null,null,null,null,null,null,null,1146729.0427916357]
[null,null,"SSGCT",null,764.01049840557801,null,null,null,null,null,null,null,null,null,null,null,764.01049840557801]
[null,null,"SSGCH",null,0,null,null,null,null,null,null,null,null,null,null,null,0]
[null,null,"CN",null,435831.73296249891,null,null,null,null,null,null,null,null,null,null,null,435831.73296249891]
[null,null,"CAGW",null,3350263.1774207857,null,null,null,null,null,null,null,null,null,null,null,3350263.1774207857]
[null,null,"CAGE",null,0,null,null,null,null,null,null,null,null,null,null,null,0]
[null,null,"CAEW",null,0,null,null,null,null,null,null,null,null,null,null,null,0]
[null,null,"CAEE",null,0,null,null,null,null,null,null,null,null,null,null,null,0]
[null,null,"SG",null,410461.0264909502,null,null,null,null,null,null,null,null,null,null,null,410461.0264909502]
["Total Amortization Expense by Factor",null,null,null,5547662.1601642761,null,null,null,null,null,null,null,null,null,null,null,5547662.1601642761]
[408,"Taxes Other Than Income",null,null,0,null,null,null,null,null,null,null,null,null,null,null,0]
[null,null,"S",null,11801652.780000001,null,null,null,null,null,null,null,null,null,null,null,11801652.780000001]
[null,null,"GPS",null,8292767.9042267213,null,null,null,null,null,null,null,null,null,null,null,8292767.9042267213]
[null,null,"SO",null,-143246.98027304033,null,null,null,null,null,null,null,null,null,null,null,-143246.98027304033]
[null,null,"SE",null,31602.717424225921,null,null,null,null,null,null,null,null,null,null,null,31602.717424225921]
[null,null,"SG",null,0,null,null,null,null,null,null,null,null,null,null,null,0]
[null,null,"OPRV-ID",null,0,null,null,null,null,null,null,null,null,null,null,null,0]
[null,null,"EXCTAX",null,0,null,null,null,null,null,null,null,null,null,null,null,0]
[null,null,"DGP",null,0,null,null,null,null,null,null,null,null,null,null,null,0]
[null,null,"CAEW",null,0,null,null,null,null,null,null,null,null,null,null,null,0]
[null,null,"CAEE",null,0,null,null,null,null,null,null,null,null,null,null,null,0]
[null,null,null,null,0,null,null,null,null,null,null,null,null,null,null,null,0]
[null,null,null,null,19982776.421377905,null,null,null,null,null,null,null,null,null,null,null,19982776.421377905]
[null,null,null,null,0,null,null,null,null,null,null,null,null,null,null,null,0]
[null,null,null,null,0,null,null,null,null,null,null,null,null,null,null,null,0]
[41140,"Deferred Investment Tax Credit - Fed",null,null,0,null,null,null,null,null,null,null,null,null,null,null,0]
[null,null,"CAGE",null,0,null,null,null,null,null,null,null,null,null,null,null,0]
[null,null,null,null,0,null,null,null,null,null,null,null,null,null,null,null,0]
[null,null,null,null,0,null,null,null,null,null,null,null,null,null,null,null,0]
[null,null,null,null,0,null,null,null,null,null,null,null,null,null,null,null,0]
[41141,"Deferred Investment Tax Credit - Idaho",null,null,0,null,null,null,null,null,null,null,null,null,null,null,0]
[null,null,"CAGE",null,0,null,null,null,null,null,null,null,null,null,null,null,0]
[null,null,null,null,0,null,null,null,null,null,null,null,null,null,null,null,0]
[null,null,null,null,0,null,null,null,null,null,null,null,null,null,null,null,0]
[null,null,null,null,{"$f":"+Q1225","v":0},null,null,null,null,null,null,null,null,null,null,null,0]
["TOTAL DEFERRED ITC",null,null,null,0,null,null,null,null,null,null,null,null,null,null,null,0]
[null,null,null,null,0,null,null,null,null,null,null,null,null,null,null,null,0]
[null,null,null,null,0,null,null,null,null,null,null,null,null,null,null,null,0]
[427,"Interest on Long-Term Debt",null,null,0,null,null,null,null,null,null,null,null,null,null,null,0]
[null,null,"S",null,-1016471.6107722446,null,null,null,null,null,null,null,null,null,null,null,-1016471.6107722446]
[null,null,"SNP",null,22566952.629244044,null,null,null,null,null,null,null,null,null,null,null,22566952.629244044]
[null,null,null,null,21550481.0184718,null,null,null,null,null,null,null,null,null,null,null,21550481.0184718]
[null,null,null,null,0,null,null,null,null,null,null,null,null,null,null,null,0]
[428,"Amortization of Debt Disc & Exp",null,null,0,null,null,null,null,null,null,null,null,null,null,null,0]
[null,null,"SNP",null,357894.42435394082,null,null,null,null,null,null,null,null,null,null,null,357894.42435394082]
[null,null,null,null,357894.42435394082,null,null,null,null,null,null,null,null,null,null,null,357894.42435394082]
[null,null,null,null,0,null,null,null,null,null,null,null,null,null,null,null,0]
[429,"Amortization of Premium on Debt",null,null,0,null,null,null,null,null,null,null,null,null,null,null,0]
[null,null,"SNP",null,-301.03835469636419,null,null,null,null,null,null,null,null,null,null,null,-301.03835469636419]
[null,null,null,null,-301.03835469636419,null,null,null,null,null,null,null,null,null,null,null,-301.03835469636419]
[null,null,null,null,0,null,null,null,null,null,null,null,null,null,null,null,0]
[431,"Other Interest Expense",null,null,0,null,null,null,null,null,null,null,null,null,null,null,0]
[null,null,"OTH",null,0,null,null,null,null,null,null,null,null,null,null,null,0]
[null,null,"SO",null,0,null,null,null,null,null,null,null,null,null,null,null,0]
[null,null,"SNP",null,841038.52713498205,null,null,null,null,null,null,null,null,null,null,null,841038.52713498205]
[null,null,null,null,841038.52713498205,null,null,null,null,null,null,null,null,null,null,null,841038.52713498205]
[null,null,null,null,0,null,null,null,null,null,null,null,null,null,null,null,0]
[432,"AFUDC - Borrowed",null,null,0,null,null,null,null,null,null,null,null,null,null,null,0]
[null,null,"SNP",null,-1739154.1425356835,null,null,null,null,null,null,null,null,null,null,null,-1739154.1425356835]
[null,null,null,null,-1739154.1425356835,null,null,null,null,null,null,null,null,null,null,null,-1739154.1425356835]
[null,null,null,null,0,null,null,null,null,null,null,null,null,null,null,null,0]
[null,"Total Electric Interest Deductions for Tax",null,null,21009958.789070345,null,null,null,null,null,null,null,null,null,null,null,21009958.789070345]
[null,null,null,null,0,null,null,null,null,null,null,null,null,null,null,null,0]
[null,"Non-Utility Portion of Interest",null,null,0,null,null,null,null,null,null,null,null,null,null,null,0]
[null,null,"NUTIL",null,0,null,null,null,null,null,null,null,null,null,null,null,0]
[null,null,"NUTIL",null,0,null,null,null,null,null,null,null,null,null,null,null,0]
[null,null,"NUTIL",null,0,null,null,null,null,null,null,null,null,null,null,null,0]
[null,null,"NUTIL",null,0,null,null,null,null,null,null,null,null,null,null,null,0]
[null,null,null,null,0,null,null,null,null,null,null,null,null,null,null,null,0]
[null,"Total Non-utility Interest",null,null,0,null,null,null,null,null,null,null,null,null,null,null,0]
[null,null,null,null,0,null,null,null,null,null,null,null,null,null,null,null,0]
[null,"Total Interest Deductions for Tax",null,null,21009958.789070345,null,null,null,null,null,null,null,null,null,null,null,21009958.789070345]
[null,null,null,null,0,null,null,null,null,null,null,null,null,null,null,null,0]
[null,null,null,null,0,null,null,null,null,null,null,null,null,null,null,null,0]
[419,"Interest & Dividends",null,null,0,null,null,null,null,null,null,null,null,null,null,null,0]
[null,null,"S",null,0,null,null,null,null,null,null,null,null,null,null,null,0]
[null,null,"SNP",null,-3380969.4647353832,null,null,null,null,null,null,null,null,null,null,null,-3380969.4647353832]
[null,"Total Operating Deductions for Tax",null,null,-3380969.4647353832,null,null,null,null,null,null,null,null,null,null,null,-3380969.4647353832]
[null,null,null,null,0,null,null,null,null,null,null,null,null,null,null,null,0]
[null,null,null,null,0,null,null,null,null,null,null,null,null,null,null,null,0]
[41010,"Deferred Income Tax - Federal-DR",null,null,0,null,null,null,null,null,null,null,null,null,null,null,0]
[null,null,"S",null,324347.39841468039,null,null,null,null,null,null,null,null,null,null,null,324347.39841468039]
[null,null,"TROJD",null,0,null,null,null,null,null,null,null,null,null,null,null,0]
[null,null,"IBT",null,-3802632.6203047936,null,null,null,null,null,null,null,null,null,null,null,-3802632.6203047936]
[null,null,"SO",null,160278.21239455871,null,null,null,null,null,null,null,null,null,null,null,160278.21239455871]
[null,null,"SNP",null,1877779.9986397254,null,null,null,null,null,null,null,null,null,null,null,1877779.9986397254]
[null,null,"SE",null,87894.064119274117,null,null,null,null,null,null,null,null,null,null,null,87894.064119274117]
[null,null,"SG",null,6050330.5695100296,null,null,null,null,null,null,null,null,null,null,null,6050330.5695100296]
[null,null,"GPS",null,2735737.2706408286,null,null,null,null,null,null,null,null,null,null,null,2735737.2706408286]
[null,null,"TAXDEPR",null,28802964.528259911,null,null,null,null,null,null,null,null,null,null,null,28802964.528259911]
[null,null,"BADDEBT",null,0,null,null,null,null,null,null,null,null,null,null,null,0]
[null,null,"CN",null,1.2665457234106725E-6,null,null,null,null,null,null,null,null,null,null,null,1.2665457234106725E-6]
[null,null,"JBE",null,2057505.9280479145,null,null,null,null,null,null,null,null,null,null,null,2057505.9280479145]
[null,null,"CAGW",null,-709425.75339300535,null,null,null,null,null,null,null,null,null,null,null,-709425.75339300535]
[null,null,"CAGE",null,0,null,null,null,null,null,null,null,null,null,null,null,0]
[null,null,"JBG",null,858505.34052036924,null,null,null,null,null,null,null,null,null,null,null,858505.34052036924]
[null,null,"CAEE",null,0,null,null,null,null,null,null,null,null,null,null,null,0]
[null,null,"SNPD",null,6.3812767621129751E-5,null,null,null,null,null,null,null,null,null,null,null,6.3812767621129751E-5]
[null,null,null,null,{"$f":"+Q1289","v":38443284.936914578},null,null,null,null,null,null,null,null,null,null,null,38443284.936914578]
[null,null,null,null,0,null,null,null,null,null,null,null,null,null,null,null,0]
[null,null,null,null,0,null,null,null,null,null,null,null,null,null,null,null,0]
[null,null,null,null,0,null,null,null,null,null,null,null,null,null,null,null,0]
["41110","Deferred Income Tax - Federal-CR",null,null,0,null,null,null,null,null,null,null,null,null,null,null,0]
[null,null,"S",null,-262877,null,null,null,null,null,null,null,null,null,null,null,-262877]
[null,null,"CIAC",null,-1009703.3463381826,null,null,null,null,null,null,null,null,null,null,null,-1009703.3463381826]
[null,null,"SCHMDEXP",null,-17466099.9759509,null,null,null,null,null,null,null,null,null,null,null,-17466099.9759509]
[null,null,"SNP",null,-1225329.3332307551,null,null,null,null,null,null,null,null,null,null,null,-1225329.3332307551]
[null,null,"SG",null,70771.349162566301,null,null,null,null,null,null,null,null,null,null,null,70771.349162566301]
[null,null,"SNPD",null,-227122.40002504195,null,null,null,null,null,null,null,null,null,null,null,-227122.40002504195]
[null,null,"SO",null,-281008.55272460479,null,null,null,null,null,null,null,null,null,null,null,-281008.55272460479]
[null,null,"IBT",null,0,null,null,null,null,null,null,null,null,null,null,null,0]
[null,null,"CN",null,0,null,null,null,null,null,null,null,null,null,null,null,0]
[null,null,"BADDEBT",null,0,null,null,null,null,null,null,null,null,null,null,null,0]
[null,null,"GPS",null,0,null,null,null,null,null,null,null,null,null,null,null,0]
[null,null,"TROJD",null,0,null,null,null,null,null,null,null,null,null,null,null,0]
[null,null,"JBE",null,-1521742.2372750107,null,null,null,null,null,null,null,null,null,null,null,-1521742.2372750107]
[null,null,"CAGW",null,-105503.70310427209,null,null,null,null,null,null,null,null,null,null,null,-105503.70310427209]
[null,null,"CAGE",null,0,null,null,null,null,null,null,null,null,null,null,null,0]
[null,null,"SE",null,0,null,null,null,null,null,null,null,null,null,null,null,0]
[null,null,"CAEE",null,0,null,null,null,null,null,null,null,null,null,null,null,0]
[null,null,null,null,-22028615.199486203,null,null,null,null,null,null,null,null,null,null,null,-22028615.199486203]
[null,null,null,null,0,null,null,null,null,null,null,null,null,null,null,null,0]
["TOTAL DEFERRED INCOME TAXES",null,null,null,16414669.737428376,null,null,null,null,null,null,null,null,null,null,null,16414669.737428376]
["SCHMAF","  Additions - Flow Through",null,null,0,null,null,null,null,null,null,null,null,null,null,null,0]
[null,null,"S",null,0,null,null,null,null,null,null,null,null,null,null,null,0]
[null,null,"SNP",null,0,null,null,null,null,null,null,null,null,null,null,null,0]
[null,null,"SO",null,0,null,null,null,null,null,null,null,null,null,null,null,0]
[null,null,"SE",null,0,null,null,null,null,null,null,null,null,null,null,null,0]
[null,null,"TROJP",null,0,null,null,null,null,null,null,null,null,null,null,null,0]
[null,null,"DGP",null,0,null,null,null,null,null,null,null,null,null,null,null,0]
[null,null,null,null,0,null,null,null,null,null,null,null,null,null,null,null,0]
[null,null,null,null,0,null,null,null,null,null,null,null,null,null,null,null,0]
["SCHMAP","  Additions - Permanent",null,null,0,null,null,null,null,null,null,null,null,null,null,null,0]
[null,null,"S",null,0,null,null,null,null,null,null,null,null,null,null,null,0]
[null,null,"BADDEBT",null,0,null,null,null,null,null,null,null,null,null,null,null,0]
[null,null,"JBE",null,7299.2610704538647,null,null,null,null,null,null,null,null,null,null,null,7299.2610704538647]
[null,null,"SG",null,0,null,null,null,null,null,null,null,null,null,null,null,0]
[null,null,"CAEE",null,0,null,null,null,null,null,null,null,null,null,null,null,0]
[null,null,"CAGW",null,0,null,null,null,null,null,null,null,null,null,null,null,0]
[null,null,"CAGE",null,0,null,null,null,null,null,null,null,null,null,null,null,0]
[null,null,"SNP",null,0,null,null,null,null,null,null,null,null,null,null,null,0]
[null,null,"SO",null,296617.4328705527,null,null,null,null,null,null,null,null,null,null,null,296617.4328705527]
[null,null,null,null,0,null,null,null,null,null,null,null,null,null,null,null,0]
[null,null,null,null,303916.69394100655,null,null,null,null,null,null,null,null,null,null,null,303916.69394100655]
[null,null,null,null,0,null,null,null,null,null,null,null,null,null,null,null,0]
["SCHMAT","  Additions - Temporary",null,null,0,null,null,null,null,null,null,null,null,null,null,null,0]
[null,null,"S",null,3349028.5924037024,null,null,null,null,null,null,null,null,null,null,null,3349028.5924037024]
[null,null,"JBE",null,4085850.3926997427,null,null,null,null,null,null,null,null,null,null,null,4085850.3926997427]
[null,null,"CIAC",null,2660544.5693519078,null,null,null,null,null,null,null,null,null,null,null,2660544.5693519078]
[null,null,"SNP",null,3339825.3332104525,null,null,null,null,null,null,null,null,null,null,null,3339825.3332104525]
[null,null,"TROJD",null,0,null,null,null,null,null,null,null,null,null,null,null,0]
[null,null,"CN",null,0,null,null,null,null,null,null,null,null,null,null,null,0]
[null,null,"SE",null,0,null,null,null,null,null,null,null,null,null,null,null,0]
[null,null,"SG",null,-186451.87458436051,null,null,null,null,null,null,null,null,null,null,null,-186451.87458436051]
[null,null,"GPS",null,0,null,null,null,null,null,null,null,null,null,null,null,0]
[null,null,"SO",null,1318897.2776411748,null,null,null,null,null,null,null,null,null,null,null,1318897.2776411748]
[null,null,"SNPD",null,617960.42858685378,null,null,null,null,null,null,null,null,null,null,null,617960.42858685378]
[null,null,"JBE",null,87859.640220956338,null,null,null,null,null,null,null,null,null,null,null,87859.640220956338]
[null,null,"BADDEBT",null,613759.46340092027,null,null,null,null,null,null,null,null,null,null,null,613759.46340092027]
[null,null,"CAGW",null,1227891.6790816616,null,null,null,null,null,null,null,null,null,null,null,1227891.6790816616]
[null,null,"CAGE",null,0,null,null,null,null,null,null,null,null,null,null,null,0]
[null,null,"CAEW",null,0,null,null,null,null,null,null,null,null,null,null,null,0]
[null,null,"CAEE",null,{"$f":"+Q1353","v":0},null,null,null,null,null,null,null,null,null,null,null,0]
[null,null,"SCHMDEXP",null,56042614.326783523,null,null,null,null,null,null,null,null,null,null,null,56042614.326783523]
[null,null,null,null,73157779.828796536,null,null,null,null,null,null,null,null,null,null,null,73157779.828796536]
[null,null,null,null,0,null,null,null,null,null,null,null,null,null,null,null,0]
["TOTAL SCHEDULE - M ADDITIONS",null,null,null,73461696.522737548,null,null,null,null,null,null,null,null,null,null,null,73461696.522737548]
[null,null,null,null,0,null,null,null,null,null,null,null,null,null,null,null,0]
["SCHMDF","  Deductions - Flow Through",null,null,0,null,null,null,null,null,null,null,null,null,null,null,0]
[null,null,"S",null,0,null,null,null,null,null,null,null,null,null,null,null,0]
[null,null,"CAGW",null,0,null,null,null,null,null,null,null,null,null,null,null,0]
[null,null,"CAGE",null,0,null,null,null,null,null,null,null,null,null,null,null,0]
[null,null,"DGP",null,0,null,null,null,null,null,null,null,null,null,null,null,0]
[null,null,"DGU",null,0,null,null,null,null,null,null,null,null,null,null,null,0]
[null,null,null,null,0,null,null,null,null,null,null,null,null,null,null,null,0]
["SCHMDP","  Deductions - Permanent",null,null,0,null,null,null,null,null,null,null,null,null,null,null,0]
[null,null,"S",null,0,null,null,null,null,null,null,null,null,null,null,null,0]
[null,null,"SE",null,0,null,null,null,null,null,null,null,null,null,null,null,0]
[null,null,"CAEW",null,0,null,null,null,null,null,null,null,null,null,null,null,0]
[null,null,"CAEE",null,0,null,null,null,null,null,null,null,null,null,null,null,0]
[null,null,"SNP",null,24025.762534932423,null,null,null,null,null,null,null,null,null,null,null,24025.762534932423]
[null,null,"JBE",null,5142.3387697471389,null,null,null,null,null,null,null,null,null,null,null,5142.3387697471389]
[null,null,"SG",null,18894.190910566707,null,null,null,null,null,null,null,null,null,null,null,18894.190910566707]
[null,null,"SO",null,183533.4817062635,null,null,null,null,null,null,null,null,null,null,null,183533.4817062635]
[null,null,null,null,231595.77392150977,null,null,null,null,null,null,null,null,null,null,null,231595.77392150977]
[null,null,null,null,0,null,null,null,null,null,null,null,null,null,null,null,0]
["SCHMDT","  Deductions - Temporary",null,null,0,null,null,null,null,null,null,null,null,null,null,null,0]
[null,null,"S",null,1067311.4520211711,null,null,null,null,null,null,null,null,null,null,null,1067311.4520211711]
[null,null,"BADDEBT",null,0,null,null,null,null,null,null,null,null,null,null,null,0]
[null,null,"CN",null,3337.2605225438961,null,null,null,null,null,null,null,null,null,null,null,3337.2605225438961]
[null,null,"SNP",null,4947906.516900409,null,null,null,null,null,null,null,null,null,null,null,4947906.516900409]
[null,null,"SNPD",null,168145.15646864715,null,null,null,null,null,null,null,null,null,null,null,168145.15646864715]
[null,null,"JBE",null,6339371.645423796,null,null,null,null,null,null,null,null,null,null,null,6339371.645423796]
[null,null,"SE",null,243918.72986671951,null,null,null,null,null,null,null,null,null,null,null,243918.72986671951]
[null,null,"SG",null,16010400.361826688,null,null,null,null,null,null,null,null,null,null,null,16010400.361826688]
[null,null,"GPS",null,7208603.7043720884,null,null,null,null,null,null,null,null,null,null,null,7208603.7043720884]
[null,null,"SO",null,894692.41068100219,null,null,null,null,null,null,null,null,null,null,null,894692.41068100219]
[null,null,"TAXDEPR",null,75895139.891158864,null,null,null,null,null,null,null,null,null,null,null,75895139.891158864]
[null,null,"CAGW",null,-545872.06670953752,null,null,null,null,null,null,null,null,null,null,null,-545872.06670953752]
[null,null,"CAGE",null,0,null,null,null,null,null,null,null,null,null,null,null,0]
[null,null,"JBG",null,2350001.3989527989,null,null,null,null,null,null,null,null,null,null,null,2350001.3989527989]
[null,null,"CAEE",null,0,null,null,null,null,null,null,null,null,null,null,null,0]
[null,null,"TROJD",null,0,null,null,null,null,null,null,null,null,null,null,null,0]
[null,null,null,null,114582956.46148519,null,null,null,null,null,null,null,null,null,null,null,114582956.46148519]
[null,null,null,null,0,null,null,null,null,null,null,null,null,null,null,null,0]
["TOTAL SCHEDULE - M DEDUCTIONS",null,null,null,114814552.2354067,null,null,null,null,null,null,null,null,null,null,null,114814552.2354067]
[null,null,null,null,0,null,null,null,null,null,null,null,null,null,null,null,0]
["TOTAL SCHEDULE - M ADJUSTMENTS",null,null,null,-41352855.712669149,null,null,null,null,null,null,null,null,null,null,null,-41352855.712669149]
[null,null,null,null,0,null,null,null,null,null,null,null,null,null,null,null,0]
[null,null,null,null,0,null,null,null,null,null,null,null,null,null,null,null,0]
[40911,"State Income Taxes",null,null,0,null,null,null,null,null,null,null,null,null,null,null,0]
[null,null,"IBT",null,0,null,null,null,null,null,null,null,null,null,null,null,0]
[null,null,"IBT",null,0,null,null,null,null,null,null,null,null,null,null,null,0]
[null,null,"IBT",null,0,null,null,null,null,null,null,null,null,null,null,null,0]
[null,null,"IBT",null,0,null,null,null,null,null,null,null,null,null,null,null,0]
["TOTAL STATE TAXES",null,null,null,0,null,null,null,null,null,null,null,null,null,null,null,0]
[null,null,null,null,0,null,null,null,null,null,null,null,null,null,null,null,0]
[null,null,null,null,0,null,null,null,null,null,null,null,null,null,null,null,0]
["Calculation of Taxable Income:",null,null,null,0,null,null,null,null,null,null,null,null,null,null,null,0]
[null,"Operating Revenues",null,null,327860487.17130327,null,null,null,null,null,null,null,null,null,null,null,327860487.17130327]
[null,"Operating Deductions:",null,null,0,null,null,null,null,null,null,null,null,null,null,null,0]
[null,"   O & M Expenses",null,null,217526010.15460241,null,null,null,null,null,null,null,null,null,null,null,217526010.15460241]
[null,"   Depreciation Expense",null,null,41310105.544159755,null,null,null,null,null,null,null,null,null,null,null,41310105.544159755]
[null,"   Amortization Expense",null,null,5547662.1601642752,null,null,null,null,null,null,null,null,null,null,null,5547662.1601642752]
[null,"   Taxes Other Than Income",null,null,19982776.421377905,null,null,null,null,null,null,null,null,null,null,null,19982776.421377905]
[null,"   Interest & Dividends (AFUDC-Equity)",null,null,-3380969.4647353832,null,null,null,null,null,null,null,null,null,null,null,-3380969.4647353832]
[null,"   Misc Revenue & Expense",null,null,{"$f":"+Q1417","v":-842347.32514905161},null,null,null,null,null,null,null,null,null,null,null,-842347.32514905161]
[null,"    Total Operating Deductions",null,null,280143237.49041992,null,null,null,null,null,null,null,null,null,null,null,280143237.49041992]
[null,"Other Deductions:",null,null,0,null,null,null,null,null,null,null,null,null,null,null,0]
[null,"   Interest Deductions",null,null,21009958.789070345,null,null,null,null,null,null,null,null,null,null,null,21009958.789070345]
[null,"   Interest on PCRBS",0,null,0,null,null,null,null,null,null,null,null,null,null,null,0]
[null,"   Schedule M Adjustments",null,null,-41352855.712669149,null,null,null,null,null,null,null,null,null,null,null,-41352855.712669149]
[null,null,null,null,0,null,null,null,null,null,null,null,null,null,null,null,0]
[null,"    Income Before State Taxes",null,null,-14645564.820856147,null,null,null,null,null,null,null,null,null,null,null,-14645564.820856147]
[null,null,null,null,0,null,null,null,null,null,null,null,null,null,null,null,0]
[null,"State Income Taxes",null,null,0,null,null,null,null,null,null,null,null,null,null,null,0]
[null,null,null,null,0,null,null,null,null,null,null,null,null,null,null,null,0]
["Total Taxable Income",null,null,null,-14645564.820856147,null,null,null,null,null,null,null,null,null,null,null,-14645564.820856147]
[null,null,null,null,0,null,null,null,null,null,null,null,null,null,null,null,0]
["Tax Rate",null,null,null,0.35,null,null,null,null,null,null,null,null,null,null,null,0.35]
[null,null,null,null,0,null,null,null,null,null,null,null,null,null,null,null,0]
["Federal Income Tax - Calculated",null,null,null,-5125947.6872996511,null,null,null,null,null,null,null,null,null,null,null,-5125947.6872996511]
[null,null,null,null,0,null,null,null,null,null,null,null,null,null,null,null,0]
["Adjustments to Calculated Tax:",null,null,null,0,null,null,null,null,null,null,null,null,null,null,null,0]
[40910,"Energy Credit","SE",null,-1034.3248159474392,null,null,null,null,null,null,null,null,null,null,null,-1034.3248159474392]
[null,null,"CAGW",null,-2828.9056109289932,null,null,null,null,null,null,null,null,null,null,null,-2828.9056109289932]
[null,null,"CAEE",null,-1977.3833268337482,null,null,null,null,null,null,null,null,null,null,null,-1977.3833268337482]
["40910","DMD","SG",null,-6032.3058013692498,null,null,null,null,null,null,null,null,null,null,null,-6032.3058013692498]
["40910",null,"CAGW",null,-5072531.6754153874,null,null,null,null,null,null,null,null,null,null,null,-5072531.6754153874]
[40910,"IRS Settle","S",null,0,null,null,null,null,null,null,null,null,null,null,null,0]
["Federal Income Tax Per Books",null,null,null,-10210352.282270119,null,null,null,null,null,null,null,null,null,null,null,-10210352.282270119]
[null,null,null,null,0,null,null,null,null,null,null,null,null,null,null,null,0]
["TOTAL OPERATING EXPENSES",null,null,null,289728524.41031355,null,null,null,null,null,null,null,null,null,null,null,289728524.41031355]
[310,"Land and Land Rights",null,null,0,null,null,null,null,null,null,null,null,null,null,null,0]
[null,null,"DGP",null,0,null,null,null,null,null,null,null,null,null,null,null,0]
[null,null,"DGU",null,0,null,null,null,null,null,null,null,null,null,null,null,0]
[null,null,"SG",null,0,null,null,null,null,null,null,null,null,null,null,null,0]
[null,null,"CAGW",null,306781.9222076381,null,null,null,null,null,null,null,null,null,null,null,306781.9222076381]
[null,null,"CAGE",null,0,null,null,null,null,null,null,null,null,null,null,null,0]
[null,null,"JBG",null,385239.46455809165,null,null,null,null,null,null,null,null,null,null,null,385239.46455809165]
[null,null,"S",null,0,null,null,null,null,null,null,null,null,null,null,null,0]
[null,null,"CAGE",null,0,null,null,null,null,null,null,null,null,null,null,null,0]
[null,null,null,null,692021.38676572975,null,null,null,null,null,null,null,null,null,null,null,692021.38676572975]
[null,null,null,null,0,null,null,null,null,null,null,null,null,null,null,null,0]
[311,"Structures and Improvements",null,null,0,null,null,null,null,null,null,null,null,null,null,null,0]
[null,null,"DGP",null,0,null,null,null,null,null,null,null,null,null,null,null,0]
[null,null,"DGU",null,0,null,null,null,null,null,null,null,null,null,null,null,0]
[null,null,"SG",null,0,null,null,null,null,null,null,null,null,null,null,null,0]
[null,null,"CAGW",null,14718166.427065782,null,null,null,null,null,null,null,null,null,null,null,14718166.427065782]
[null,null,"CAGE",null,0,null,null,null,null,null,null,null,null,null,null,null,0]
[null,null,"JBG",null,31619964.235479675,null,null,null,null,null,null,null,null,null,null,null,31619964.235479675]
[null,null,"CAGE",null,0,null,null,null,null,null,null,null,null,null,null,null,0]
[null,null,null,null,46338130.662545457,null,null,null,null,null,null,null,null,null,null,null,46338130.662545457]
[null,null,null,null,0,null,null,null,null,null,null,null,null,null,null,null,0]
[312,"Boiler Plant Equipment",null,null,0,null,null,null,null,null,null,null,null,null,null,null,0]
[null,null,"DGP",null,0,null,null,null,null,null,null,null,null,null,null,null,0]
[null,null,"DGU",null,0,null,null,null,null,null,null,null,null,null,null,null,0]
[null,null,"SG",null,0,null,null,null,null,null,null,null,null,null,null,null,0]
[null,null,"CAGW",null,-237835.78137360886,null,null,null,null,null,null,null,null,null,null,null,-237835.78137360886]
[null,null,"CAGE",null,0,null,null,null,null,null,null,null,null,null,null,null,0]
[null,null,"JBG",null,161979666.17012841,null,null,null,null,null,null,null,null,null,null,null,161979666.17012841]
[null,null,"S",null,-387034.4681999993,null,null,null,null,null,null,null,null,null,null,null,-387034.4681999993]
[null,null,null,null,161354795.92055479,null,null,null,null,null,null,null,null,null,null,null,161354795.92055479]
[null,null,null,null,0,null,null,null,null,null,null,null,null,null,null,null,0]
[314,"Turbogenerator Units",null,null,0,null,null,null,null,null,null,null,null,null,null,null,0]
[null,null,"DGP",null,0,null,null,null,null,null,null,null,null,null,null,null,0]
[null,null,"DGU",null,0,null,null,null,null,null,null,null,null,null,null,null,0]
[null,null,"SG",null,0,null,null,null,null,null,null,null,null,null,null,null,0]
[null,null,"CAGW",null,12119310.181035573,null,null,null,null,null,null,null,null,null,null,null,12119310.181035573]
[null,null,"CAGE",null,0,null,null,null,null,null,null,null,null,null,null,null,0]
[null,null,"JBG",null,{"$f":"+Q1481","v":39540511.960887395},null,null,null,null,null,null,null,null,null,null,null,39540511.960887395]
[null,null,"CAGE",null,0,null,null,null,null,null,null,null,null,null,null,null,0]
[null,null,null,null,51659822.141922966,null,null,null,null,null,null,null,null,null,null,null,51659822.141922966]
[null,null,null,null,0,null,null,null,null,null,null,null,null,null,null,null,0]
[315,"Accessory Electric Equipment",null,null,0,null,null,null,null,null,null,null,null,null,null,null,0]
[null,null,"DGP",null,0,null,null,null,null,null,null,null,null,null,null,null,0]
[null,null,"DGU",null,0,null,null,null,null,null,null,null,null,null,null,null,0]
[null,null,"SG",null,0,null,null,null,null,null,null,null,null,null,null,null,0]
[null,null,"CAGW",null,2998453.4131122138,null,null,null,null,null,null,null,null,null,null,null,2998453.4131122138]
[null,null,"CAGE",null,0,null,null,null,null,null,null,null,null,null,null,null,0]
[null,null,"JBG",null,13335680.873541016,null,null,null,null,null,null,null,null,null,null,null,13335680.873541016]
[null,null,"CAEE",null,0,null,null,null,null,null,null,null,null,null,null,null,0]
[null,null,null,null,16334134.28665323,null,null,null,null,null,null,null,null,null,null,null,16334134.28665323]
[null,null,null,null,0,null,null,null,null,null,null,null,null,null,null,null,0]
[null,null,null,null,0,null,null,null,null,null,null,null,null,null,null,null,0]
[null,null,null,null,0,null,null,null,null,null,null,null,null,null,null,null,0]
[316,"Misc Power Plant Equipment",null,null,0,null,null,null,null,null,null,null,null,null,null,null,0]
[null,null,"DGP",null,0,null,null,null,null,null,null,null,null,null,null,null,0]
[null,null,"DGU",null,0,null,null,null,null,null,null,null,null,null,null,null,0]
[null,null,"SG",null,0,null,null,null,null,null,null,null,null,null,null,null,0]
[null,null,"CAGW",null,498733.58128393471,null,null,null,null,null,null,null,null,null,null,null,498733.58128393471]
[null,null,"CAGE",null,0,null,null,null,null,null,null,null,null,null,null,null,0]
[null,null,"JBG",null,867460.91800169577,null,null,null,null,null,null,null,null,null,null,null,867460.91800169577]
[null,null,"CAEE",null,0,null,null,null,null,null,null,null,null,null,null,null,0]
[null,null,null,null,1366194.4992856304,null,null,null,null,null,null,null,null,null,null,null,1366194.4992856304]
[null,null,null,null,0,null,null,null,null,null,null,null,null,null,null,null,0]
["317","Steam Plant ARO",null,null,0,null,null,null,null,null,null,null,null,null,null,null,0]
[null,null,"S",null,0,null,null,null,null,null,null,null,null,null,null,null,0]
[null,null,null,null,0,null,null,null,null,null,null,null,null,null,null,null,0]
[null,null,null,null,0,null,null,null,null,null,null,null,null,null,null,null,0]
["SP","Unclassified Steam Plant - Account 300",null,null,0,null,null,null,null,null,null,null,null,null,null,null,0]
[null,null,"CAGW",null,0,null,null,null,null,null,null,null,null,null,null,null,0]
[null,null,"CAGE",null,0,null,null,null,null,null,null,null,null,null,null,null,0]
[null,null,"SG",null,197156.55059380142,null,null,null,null,null,null,null,null,null,null,null,197156.55059380142]
[null,null,null,null,197156.55059380142,null,null,null,null,null,null,null,null,null,null,null,197156.55059380142]
[null,null,null,null,0,null,null,null,null,null,null,null,null,null,null,null,0]
[null,null,null,null,0,null,null,null,null,null,null,null,null,null,null,null,0]
["Total Steam Production Plant",null,null,null,277942255.44832164,null,null,null,null,null,null,null,null,null,null,null,277942255.44832164]
[null,null,null,null,0,null,null,null,null,null,null,null,null,null,null,null,0]
[null,null,null,null,0,null,null,null,null,null,null,null,null,null,null,null,0]
["Summary of Steam Production Plant by Factor",null,null,null,0,null,null,null,null,null,null,null,null,null,null,null,0]
[null,null,"S",null,-387034.4681999993,null,null,null,null,null,null,null,null,null,null,null,-387034.4681999993]
[null,null,"JBG",null,247728523.62259629,null,null,null,null,null,null,null,null,null,null,null,247728523.62259629]
[null,null,"JBE",null,0,null,null,null,null,null,null,null,null,null,null,null,0]
[null,null,"SG",null,197156.55059380142,null,null,null,null,null,null,null,null,null,null,null,197156.55059380142]
[null,null,"CAGW",null,30403609.743331537,null,null,null,null,null,null,null,null,null,null,null,30403609.743331537]
[null,null,"CAGE",null,0,null,null,null,null,null,null,null,null,null,null,null,0]
[null,null,"SSGCH",null,0,null,null,null,null,null,null,null,null,null,null,null,0]
["Total Steam Production Plant by Factor",null,null,null,277942255.44832164,null,null,null,null,null,null,null,null,null,null,null,277942255.44832164]
[320,"Land and Land Rights",null,null,0,null,null,null,null,null,null,null,null,null,null,null,0]
[null,null,"DGP",null,0,null,null,null,null,null,null,null,null,null,null,null,0]
[null,null,"SG",null,0,null,null,null,null,null,null,null,null,null,null,null,0]
[null,null,null,null,0,null,null,null,null,null,null,null,null,null,null,null,0]
[null,null,null,null,0,null,null,null,null,null,null,null,null,null,null,null,0]
[321,"Structures and Improvements",null,null,0,null,null,null,null,null,null,null,null,null,null,null,0]
[null,null,"DGP",null,0,null,null,null,null,null,null,null,null,null,null,null,0]
[null,null,"SG",null,0,null,null,null,null,null,null,null,null,null,null,null,0]
[null,null,null,null,0,null,null,null,null,null,null,null,null,null,null,null,0]
[null,null,null,null,0,null,null,null,null,null,null,null,null,null,null,null,0]
[322,"Reactor Plant Equipment",null,null,0,null,null,null,null,null,null,null,null,null,null,null,0]
[null,null,"DGP",null,0,null,null,null,null,null,null,null,null,null,null,null,0]
[null,null,"SG",null,0,null,null,null,null,null,null,null,null,null,null,null,0]
[null,null,null,null,0,null,null,null,null,null,null,null,null,null,null,null,0]
[null,null,null,null,0,null,null,null,null,null,null,null,null,null,null,null,0]
[323,"Turbogenerator Units",null,null,{"$f":"+Q1545","v":0},null,null,null,null,null,null,null,null,null,null,null,0]
[null,null,"DGP",null,0,null,null,null,null,null,null,null,null,null,null,null,0]
[null,null,"SG",null,0,null,null,null,null,null,null,null,null,null,null,null,0]
[null,null,null,null,0,null,null,null,null,null,null,null,null,null,null,null,0]
[null,null,null,null,0,null,null,null,null,null,null,null,null,null,null,null,0]
[324,"Land and Land Rights",null,null,0,null,null,null,null,null,null,null,null,null,null,null,0]
[null,null,"DGP",null,0,null,null,null,null,null,null,null,null,null,null,null,0]
[null,null,"SG",null,0,null,null,null,null,null,null,null,null,null,null,null,0]
[null,null,null,null,0,null,null,null,null,null,null,null,null,null,null,null,0]
[null,null,null,null,0,null,null,null,null,null,null,null,null,null,null,null,0]
[325,"Misc. Power Plant Equipment",null,null,0,null,null,null,null,null,null,null,null,null,null,null,0]
[null,null,"DGP",null,0,null,null,null,null,null,null,null,null,null,null,null,0]
[null,null,"SG",null,0,null,null,null,null,null,null,null,null,null,null,null,0]
[null,null,null,null,0,null,null,null,null,null,null,null,null,null,null,null,0]
[null,null,null,null,0,null,null,null,null,null,null,null,null,null,null,null,0]
[null,null,null,null,0,null,null,null,null,null,null,null,null,null,null,null,0]
["NP","Unclassified Nuclear Plant - Acct 300",null,null,0,null,null,null,null,null,null,null,null,null,null,null,0]
[null,null,"SG",null,0,null,null,null,null,null,null,null,null,null,null,null,0]
[null,null,null,null,0,null,null,null,null,null,null,null,null,null,null,null,0]
[null,null,null,null,0,null,null,null,null,null,null,null,null,null,null,null,0]
[null,null,null,null,0,null,null,null,null,null,null,null,null,null,null,null,0]
["Total Nuclear Production Plant",null,null,null,0,null,null,null,null,null,null,null,null,null,null,null,0]
[null,null,null,null,0,null,null,null,null,null,null,null,null,null,null,null,0]
[null,null,null,null,0,null,null,null,null,null,null,null,null,null,null,null,0]
[null,null,null,null,0,null,null,null,null,null,null,null,null,null,null,null,0]
["Summary of Nuclear Production Plant by Factor",null,null,null,0,null,null,null,null,null,null,null,null,null,null,null,0]
[null,null,"DGP",null,0,null,null,null,null,null,null,null,null,null,null,null,0]
[null,null,"DGU",null,0,null,null,null,null,null,null,null,null,null,null,null,0]
[null,null,"SG",null,0,null,null,null,null,null,null,null,null,null,null,null,0]
[null,null,null,null,0,null,null,null,null,null,null,null,null,null,null,null,0]
["Total Nuclear Plant by Factor",null,null,null,0,null,null,null,null,null,null,null,null,null,null,null,0]
[null,null,null,null,0,null,null,null,null,null,null,null,null,null,null,null,0]
[330,"Land and Land Rights",null,null,0,null,null,null,null,null,null,null,null,null,null,null,0]
[null,null,"DGP",null,0,null,null,null,null,null,null,null,null,null,null,null,0]
[null,null,"DGU",null,0,null,null,null,null,null,null,null,null,null,null,null,0]
[null,null,"CAGW",null,6515134.992287498,null,null,null,null,null,null,null,null,null,null,null,6515134.992287498]
[null,null,"CAGE",null,0,null,null,null,null,null,null,null,null,null,null,null,0]
[null,null,"CAGW",null,0,null,null,null,null,null,null,null,null,null,null,null,0]
[null,null,"CAGE",null,0,null,null,null,null,null,null,null,null,null,null,null,0]
[null,null,null,null,6515134.992287498,null,null,null,null,null,null,null,null,null,null,null,6515134.992287498]
[null,null,null,null,0,null,null,null,null,null,null,null,null,null,null,null,0]
[331,"Structures and Improvements",null,null,0,null,null,null,null,null,null,null,null,null,null,null,0]
[null,null,"DGP",null,0,null,null,null,null,null,null,null,null,null,null,null,0]
[null,null,"DGU",null,0,null,null,null,null,null,null,null,null,null,null,null,0]
[null,null,"CAGW",null,28839076.823929302,null,null,null,null,null,null,null,null,null,null,null,28839076.823929302]
[null,null,"CAGE",null,0,null,null,null,null,null,null,null,null,null,null,null,0]
[null,null,"CAGW",null,0,null,null,null,null,null,null,null,null,null,null,null,0]
[null,null,"CAGE",null,0,null,null,null,null,null,null,null,null,null,null,null,0]
[null,null,null,null,28839076.823929302,null,null,null,null,null,null,null,null,null,null,null,28839076.823929302]
[null,null,null,null,0,null,null,null,null,null,null,null,null,null,null,null,0]
[332,"Reservoirs, Dams & Waterways",null,null,0,null,null,null,null,null,null,null,null,null,null,null,0]
[null,null,"DGP",null,0,null,null,null,null,null,null,null,null,null,null,null,0]
[null,null,"DGU",null,0,null,null,null,null,null,null,null,null,null,null,null,0]
[null,null,"CAGW",null,103763388.21253854,null,null,null,null,null,null,null,null,null,null,null,103763388.21253854]
[null,null,"CAGE",null,0,null,null,null,null,null,null,null,null,null,null,null,0]
[null,null,"CAGW",null,0,null,null,null,null,null,null,null,null,null,null,null,0]
[null,null,"CAGE",null,0,null,null,null,null,null,null,null,null,null,null,null,0]
[null,null,null,null,103763388.21253854,null,null,null,null,null,null,null,null,null,null,null,103763388.21253854]
[null,null,null,null,0,null,null,null,null,null,null,null,null,null,null,null,0]
[333,"Water Wheel, Turbines, & Generators",null,null,0,null,null,null,null,null,null,null,null,null,null,null,0]
[null,null,"DGP",null,0,null,null,null,null,null,null,null,null,null,null,null,0]
[null,null,"DGU",null,0,null,null,null,null,null,null,null,null,null,null,null,0]
[null,null,"CAGW",null,17793902.257539757,null,null,null,null,null,null,null,null,null,null,null,17793902.257539757]
[null,null,"CAGE",null,0,null,null,null,null,null,null,null,null,null,null,null,0]
[null,null,"CAGW",null,{"$f":"+Q1609","v":0},null,null,null,null,null,null,null,null,null,null,null,0]
[null,null,"CAGE",null,0,null,null,null,null,null,null,null,null,null,null,null,0]
[null,null,null,null,17793902.257539757,null,null,null,null,null,null,null,null,null,null,null,17793902.257539757]
[null,null,null,null,0,null,null,null,null,null,null,null,null,null,null,null,0]
[334,"Accessory Electric Equipment",null,null,0,null,null,null,null,null,null,null,null,null,null,null,0]
[null,null,"DGP",null,0,null,null,null,null,null,null,null,null,null,null,null,0]
[null,null,"DGU",null,0,null,null,null,null,null,null,null,null,null,null,null,0]
[null,null,"CAGW",null,12476121.21194754,null,null,null,null,null,null,null,null,null,null,null,12476121.21194754]
[null,null,"CAGE",null,0,null,null,null,null,null,null,null,null,null,null,null,0]
[null,null,"CAGW",null,0,null,null,null,null,null,null,null,null,null,null,null,0]
[null,null,"CAGE",null,0,null,null,null,null,null,null,null,null,null,null,null,0]
[null,null,null,null,12476121.21194754,null,null,null,null,null,null,null,null,null,null,null,12476121.21194754]
[null,null,null,null,0,null,null,null,null,null,null,null,null,null,null,null,0]
[null,null,null,null,0,null,null,null,null,null,null,null,null,null,null,null,0]
[null,null,null,null,0,null,null,null,null,null,null,null,null,null,null,null,0]
[335,"Misc. Power Plant Equipment",null,null,0,null,null,null,null,null,null,null,null,null,null,null,0]
[null,null,"DGP",null,0,null,null,null,null,null,null,null,null,null,null,null,0]
[null,null,"DGU",null,0,null,null,null,null,null,null,null,null,null,null,null,0]
[null,null,"CAGW",null,495178.87370834715,null,null,null,null,null,null,null,null,null,null,null,495178.87370834715]
[null,null,"CAGE",null,0,null,null,null,null,null,null,null,null,null,null,null,0]
[null,null,"CAGW",null,0,null,null,null,null,null,null,null,null,null,null,null,0]
[null,null,"CAGE",null,0,null,null,null,null,null,null,null,null,null,null,null,0]
[null,null,null,null,495178.87370834715,null,null,null,null,null,null,null,null,null,null,null,495178.87370834715]
[null,null,null,null,0,null,null,null,null,null,null,null,null,null,null,null,0]
[336,"Roads, Railroads & Bridges",null,null,0,null,null,null,null,null,null,null,null,null,null,null,0]
[null,null,"DGP",null,0,null,null,null,null,null,null,null,null,null,null,null,0]
[null,null,"DGU",null,0,null,null,null,null,null,null,null,null,null,null,null,0]
[null,null,"CAGW",null,3412004.7371286065,null,null,null,null,null,null,null,null,null,null,null,3412004.7371286065]
[null,null,"CAGE",null,0,null,null,null,null,null,null,null,null,null,null,null,0]
[null,null,"CAGW",null,0,null,null,null,null,null,null,null,null,null,null,null,0]
[null,null,"CAGE",null,0,null,null,null,null,null,null,null,null,null,null,null,0]
[null,null,null,null,3412004.7371286065,null,null,null,null,null,null,null,null,null,null,null,3412004.7371286065]
[null,null,null,null,0,null,null,null,null,null,null,null,null,null,null,null,0]
["337","Hydro Plant ARO",null,null,0,null,null,null,null,null,null,null,null,null,null,null,0]
[null,null,"S",null,0,null,null,null,null,null,null,null,null,null,null,null,0]
[null,null,null,null,0,null,null,null,null,null,null,null,null,null,null,null,0]
[null,null,null,null,0,null,null,null,null,null,null,null,null,null,null,null,0]
["HP","Unclassified Hydro Plant - Acct 300",null,null,0,null,null,null,null,null,null,null,null,null,null,null,0]
[null,null,"S",null,0,null,null,null,null,null,null,null,null,null,null,null,0]
[null,null,"DGU",null,0,null,null,null,null,null,null,null,null,null,null,null,0]
[null,null,"CAGW",null,0,null,null,null,null,null,null,null,null,null,null,null,0]
[null,null,"CAGE",null,0,null,null,null,null,null,null,null,null,null,null,null,0]
[null,null,"CAGW",null,0,null,null,null,null,null,null,null,null,null,null,null,0]
[null,null,"CAGE",null,0,null,null,null,null,null,null,null,null,null,null,null,0]
[null,null,null,null,0,null,null,null,null,null,null,null,null,null,null,null,0]
[null,null,null,null,0,null,null,null,null,null,null,null,null,null,null,null,0]
["Total Hydraulic Plant",null,null,null,173294807.10907957,null,null,null,null,null,null,null,null,null,null,null,173294807.10907957]
[null,null,null,null,0,null,null,null,null,null,null,null,null,null,null,null,0]
["Summary of Hydraulic Plant by Factor",null,null,null,0,null,null,null,null,null,null,null,null,null,null,null,0]
[null,null,"S",null,0,null,null,null,null,null,null,null,null,null,null,null,0]
[null,null,"SG",null,0,null,null,null,null,null,null,null,null,null,null,null,0]
[null,null,"CAGW",null,173294807.10907957,null,null,null,null,null,null,null,null,null,null,null,173294807.10907957]
[null,null,"CAGE",null,0,null,null,null,null,null,null,null,null,null,null,null,0]
[null,null,"DGP",null,0,null,null,null,null,null,null,null,null,null,null,null,0]
[null,null,"DGU",null,0,null,null,null,null,null,null,null,null,null,null,null,0]
["Total Hydraulic Plant by Factor",null,null,null,173294807.10907957,null,null,null,null,null,null,null,null,null,null,null,173294807.10907957]
[null,null,null,null,0,null,null,null,null,null,null,null,null,null,null,null,0]
[340,"Land and Land Rights",null,null,0,null,null,null,null,null,null,null,null,null,null,null,0]
[null,null,"SG",null,0,null,null,null,null,null,null,null,null,null,null,null,0]
[null,null,"DGU",null,0,null,null,null,null,null,null,null,null,null,null,null,0]
[null,null,"CAGW",null,637169.99365856522,null,null,null,null,null,null,null,null,null,null,null,637169.99365856522]
[null,null,"CAGE",null,0,null,null,null,null,null,null,null,null,null,null,null,0]
[null,null,"CAGE",null,0,null,null,null,null,null,null,null,null,null,null,null,0]
[null,null,null,null,637169.99365856522,null,null,null,null,null,null,null,null,null,null,null,637169.99365856522]
[null,null,null,null,{"$f":"+Q1673","v":0},null,null,null,null,null,null,null,null,null,null,null,0]
[341,"Structures and Improvements",null,null,0,null,null,null,null,null,null,null,null,null,null,null,0]
[null,null,"SG",null,0,null,null,null,null,null,null,null,null,null,null,null,0]
[null,null,"DGU",null,0,null,null,null,null,null,null,null,null,null,null,null,0]
[null,null,"CAGW",null,12828483.809288759,null,null,null,null,null,null,null,null,null,null,null,12828483.809288759]
[null,null,"CAGE",null,0,null,null,null,null,null,null,null,null,null,null,null,0]
[null,null,"CAGE",null,0,null,null,null,null,null,null,null,null,null,null,null,0]
[null,null,null,null,12828483.809288759,null,null,null,null,null,null,null,null,null,null,null,12828483.809288759]
[null,null,null,null,0,null,null,null,null,null,null,null,null,null,null,null,0]
[342,"Fuel Holders, Producers & Accessories",null,null,0,null,null,null,null,null,null,null,null,null,null,null,0]
[null,null,"SG",null,0,null,null,null,null,null,null,null,null,null,null,null,0]
[null,null,"DGU",null,0,null,null,null,null,null,null,null,null,null,null,null,0]
[null,null,"CAGW",null,367152.61981028365,null,null,null,null,null,null,null,null,null,null,null,367152.61981028365]
[null,null,"CAGE",null,0,null,null,null,null,null,null,null,null,null,null,null,0]
[null,null,"CAGE",null,0,null,null,null,null,null,null,null,null,null,null,null,0]
[null,null,null,null,367152.61981028365,null,null,null,null,null,null,null,null,null,null,null,367152.61981028365]
[null,null,null,null,0,null,null,null,null,null,null,null,null,null,null,null,0]
[343,"Prime Movers",null,null,0,null,null,null,null,null,null,null,null,null,null,null,0]
[null,null,"S",null,0,null,null,null,null,null,null,null,null,null,null,null,0]
[null,null,"DGU",null,0,null,null,null,null,null,null,null,null,null,null,null,0]
[null,null,"SG",null,0,null,null,null,null,null,null,null,null,null,null,null,0]
[null,null,"CAGW",null,213520416.54425099,null,null,null,null,null,null,null,null,null,null,null,213520416.54425099]
[null,null,"CAGE",null,0,null,null,null,null,null,null,null,null,null,null,null,0]
[null,null,"CAGE",null,0,null,null,null,null,null,null,null,null,null,null,null,0]
[null,null,null,null,213520416.54425099,null,null,null,null,null,null,null,null,null,null,null,213520416.54425099]
[null,null,null,null,0,null,null,null,null,null,null,null,null,null,null,null,0]
[344,"Generators",null,null,0,null,null,null,null,null,null,null,null,null,null,null,0]
[null,null,"S",null,0,null,null,null,null,null,null,null,null,null,null,null,0]
[null,null,"DGU",null,0,null,null,null,null,null,null,null,null,null,null,null,0]
[null,null,"SG",null,0,null,null,null,null,null,null,null,null,null,null,null,0]
[null,null,"CAGW",null,32370717.088822149,null,null,null,null,null,null,null,null,null,null,null,32370717.088822149]
[null,null,"CAGE",null,0,null,null,null,null,null,null,null,null,null,null,null,0]
[null,null,"CAGE",null,0,null,null,null,null,null,null,null,null,null,null,null,0]
[null,null,null,null,32370717.088822149,null,null,null,null,null,null,null,null,null,null,null,32370717.088822149]
[null,null,null,null,0,null,null,null,null,null,null,null,null,null,null,null,0]
[345,"Accessory Electric Plant",null,null,0,null,null,null,null,null,null,null,null,null,null,null,0]
[null,null,"SG",null,0,null,null,null,null,null,null,null,null,null,null,null,0]
[null,null,"DGU",null,0,null,null,null,null,null,null,null,null,null,null,null,0]
[null,null,"CAGW",null,19621147.05551821,null,null,null,null,null,null,null,null,null,null,null,19621147.05551821]
[null,null,"CAGE",null,0,null,null,null,null,null,null,null,null,null,null,null,0]
[null,null,"CAGE",null,0,null,null,null,null,null,null,null,null,null,null,null,0]
[null,null,null,null,19621147.05551821,null,null,null,null,null,null,null,null,null,null,null,19621147.05551821]
[null,null,null,null,0,null,null,null,null,null,null,null,null,null,null,null,0]
[null,null,null,null,0,null,null,null,null,null,null,null,null,null,null,null,0]
[null,null,null,null,0,null,null,null,null,null,null,null,null,null,null,null,0]
[346,"Misc. Power Plant Equipment",null,null,0,null,null,null,null,null,null,null,null,null,null,null,0]
[null,null,"SG",null,0,null,null,null,null,null,null,null,null,null,null,null,0]
[null,null,"DGU",null,0,null,null,null,null,null,null,null,null,null,null,null,0]
[null,null,"CAGW",null,998517.07243625529,null,null,null,null,null,null,null,null,null,null,null,998517.07243625529]
[null,null,"CAGE",null,0,null,null,null,null,null,null,null,null,null,null,null,0]
[null,null,null,null,998517.07243625529,null,null,null,null,null,null,null,null,null,null,null,998517.07243625529]
[null,null,null,null,0,null,null,null,null,null,null,null,null,null,null,null,0]
["347","Other Production ARO",null,null,0,null,null,null,null,null,null,null,null,null,null,null,0]
[null,null,"S",null,0,null,null,null,null,null,null,null,null,null,null,null,0]
[null,null,null,null,0,null,null,null,null,null,null,null,null,null,null,null,0]
[null,null,null,null,0,null,null,null,null,null,null,null,null,null,null,null,0]
["OP","Unclassified Other Prod Plant-Acct 300",null,null,0,null,null,null,null,null,null,null,null,null,null,null,0]
[null,null,"S",null,0,null,null,null,null,null,null,null,null,null,null,null,0]
[null,null,"SG",null,0,null,null,null,null,null,null,null,null,null,null,null,0]
[null,null,"CAGW",null,0,null,null,null,null,null,null,null,null,null,null,null,0]
[null,null,"CAGE",null,0,null,null,null,null,null,null,null,null,null,null,null,0]
[null,null,null,null,0,null,null,null,null,null,null,null,null,null,null,null,0]
[null,null,null,null,0,null,null,null,null,null,null,null,null,null,null,null,0]
["Total Other Production Plant",null,null,null,280343604.18378526,null,null,null,null,null,null,null,null,null,null,null,280343604.18378526]
[null,null,null,null,{"$f":"+Q1737","v":0},null,null,null,null,null,null,null,null,null,null,null,0]
["Summary of Other Production Plant by Factor",null,null,null,0,null,null,null,null,null,null,null,null,null,null,null,0]
[null,null,"S",null,0,null,null,null,null,null,null,null,null,null,null,null,0]
[null,null,"DGU",null,0,null,null,null,null,null,null,null,null,null,null,null,0]
[null,null,"SG",null,0,null,null,null,null,null,null,null,null,null,null,null,0]
[null,null,"CAGW",null,280343604.18378526,null,null,null,null,null,null,null,null,null,null,null,280343604.18378526]
[null,null,"CAGE",null,0,null,null,null,null,null,null,null,null,null,null,null,0]
[null,null,"SSGCT",null,0,null,null,null,null,null,null,null,null,null,null,null,0]
["Total of Other Production Plant by Factor",null,null,null,280343604.18378526,null,null,null,null,null,null,null,null,null,null,null,280343604.18378526]
[null,null,null,null,0,null,null,null,null,null,null,null,null,null,null,null,0]
["Experimental Plant",null,null,null,0,null,null,null,null,null,null,null,null,null,null,null,0]
[103,"Experimental Plant",null,null,0,null,null,null,null,null,null,null,null,null,null,null,0]
[null,null,"DGP",null,0,null,null,null,null,null,null,null,null,null,null,null,0]
["Total Experimental Plant",null,null,null,0,null,null,null,null,null,null,null,null,null,null,null,0]
[null,null,null,null,0,null,null,null,null,null,null,null,null,null,null,null,0]
["TOTAL PRODUCTION PLANT",null,null,null,731580666.74118638,null,null,null,null,null,null,null,null,null,null,null,731580666.74118638]
[350,"Land and Land Rights",null,null,0,null,null,null,null,null,null,null,null,null,null,null,0]
[null,null,"DGP",null,0,null,null,null,null,null,null,null,null,null,null,null,0]
[null,null,"DGU",null,0,null,null,null,null,null,null,null,null,null,null,null,0]
[null,null,"CAGW",null,6516690.3222445026,null,null,null,null,null,null,null,null,null,null,null,6516690.3222445026]
[null,null,"CAGE",null,0,null,null,null,null,null,null,null,null,null,null,null,0]
[null,null,"JBG",null,238746.93516454581,null,null,null,null,null,null,null,null,null,null,null,238746.93516454581]
[null,null,"SG",null,8074.5860148742568,null,null,null,null,null,null,null,null,null,null,null,8074.5860148742568]
[null,null,null,null,6763511.8434239225,null,null,null,null,null,null,null,null,null,null,null,6763511.8434239225]
[null,null,null,null,0,null,null,null,null,null,null,null,null,null,null,null,0]
[352,"Structures and Improvements",null,null,0,null,null,null,null,null,null,null,null,null,null,null,0]
[null,null,"S",null,0,null,null,null,null,null,null,null,null,null,null,null,0]
[null,null,"DGP",null,0,null,null,null,null,null,null,null,null,null,null,null,0]
[null,null,"DGU",null,0,null,null,null,null,null,null,null,null,null,null,null,0]
[null,null,"CAGW",null,7776087.1283810716,null,null,null,null,null,null,null,null,null,null,null,7776087.1283810716]
[null,null,"CAGE",null,0,null,null,null,null,null,null,null,null,null,null,null,0]
[null,null,"JBG",null,270067.11345955287,null,null,null,null,null,null,null,null,null,null,null,270067.11345955287]
[null,null,"SG",null,254.77296398150801,null,null,null,null,null,null,null,null,null,null,null,254.77296398150801]
[null,null,null,null,8046409.0148046054,null,null,null,null,null,null,null,null,null,null,null,8046409.0148046054]
[null,null,null,null,0,null,null,null,null,null,null,null,null,null,null,null,0]
[353,"Station Equipment",null,null,0,null,null,null,null,null,null,null,null,null,null,null,0]
[null,null,"DGP",null,0,null,null,null,null,null,null,null,null,null,null,null,0]
[null,null,"DGU",null,0,null,null,null,null,null,null,null,null,null,null,null,0]
[null,null,"CAGW",null,93572050.202236965,null,null,null,null,null,null,null,null,null,null,null,93572050.202236965]
[null,null,"CAGE",null,0,null,null,null,null,null,null,null,null,null,null,null,0]
[null,null,"JBG",null,6238888.6492665876,null,null,null,null,null,null,null,null,null,null,null,6238888.6492665876]
[null,null,"SG",null,76584.915610311218,null,null,null,null,null,null,null,null,null,null,null,76584.915610311218]
[null,null,null,null,99887523.767113864,null,null,null,null,null,null,null,null,null,null,null,99887523.767113864]
[null,null,null,null,0,null,null,null,null,null,null,null,null,null,null,null,0]
[354,"Towers and Fixtures",null,null,0,null,null,null,null,null,null,null,null,null,null,null,0]
[null,null,"DGP",null,0,null,null,null,null,null,null,null,null,null,null,null,0]
[null,null,"DGU",null,0,null,null,null,null,null,null,null,null,null,null,null,0]
[null,null,"CAGW",null,38351833.143284172,null,null,null,null,null,null,null,null,null,null,null,38351833.143284172]
[null,null,"CAGE",null,0,null,null,null,null,null,null,null,null,null,null,null,0]
[null,null,"JBG",null,3209126.457872401,null,null,null,null,null,null,null,null,null,null,null,3209126.457872401]
[null,null,"SG",null,9944.0434059463914,null,null,null,null,null,null,null,null,null,null,null,9944.0434059463914]
[null,null,null,null,41570903.64456252,null,null,null,null,null,null,null,null,null,null,null,41570903.64456252]
[null,null,null,null,0,null,null,null,null,null,null,null,null,null,null,null,0]
[355,"Poles and Fixtures",null,null,0,null,null,null,null,null,null,null,null,null,null,null,0]
[null,null,"DGP",null,0,null,null,null,null,null,null,null,null,null,null,null,0]
[null,null,"DGU",null,0,null,null,null,null,null,null,null,null,null,null,null,0]
[null,null,"CAGW",null,50253195.527366377,null,null,null,null,null,null,null,null,null,null,null,50253195.527366377]
[null,null,"CAGE",null,0,null,null,null,null,null,null,null,null,null,null,null,0]
[null,null,"JBG",null,0,null,null,null,null,null,null,null,null,null,null,null,0]
[null,null,"SG",null,53224.507555219585,null,null,null,null,null,null,null,null,null,null,null,53224.507555219585]
[null,null,null,null,50306420.034921594,null,null,null,null,null,null,null,null,null,null,null,50306420.034921594]
[null,null,null,null,0,null,null,null,null,null,null,null,null,null,null,null,0]
[356,"Clearing and Grading",null,null,0,null,null,null,null,null,null,null,null,null,null,null,0]
[null,null,"DGP",null,0,null,null,null,null,null,null,null,null,null,null,null,0]
[null,null,"DGU",null,{"$f":"+Q1801","v":0},null,null,null,null,null,null,null,null,null,null,null,0]
[null,null,"CAGW",null,63921933.156903043,null,null,null,null,null,null,null,null,null,null,null,63921933.156903043]
[null,null,"CAGE",null,0,null,null,null,null,null,null,null,null,null,null,null,0]
[null,null,"JBG",null,1713933.9700218621,null,null,null,null,null,null,null,null,null,null,null,1713933.9700218621]
[null,null,"SG",null,119677.16107260445,null,null,null,null,null,null,null,null,null,null,null,119677.16107260445]
[null,null,null,null,65755544.287997507,null,null,null,null,null,null,null,null,null,null,null,65755544.287997507]
[null,null,null,null,0,null,null,null,null,null,null,null,null,null,null,null,0]
[357,"Underground Conduit",null,null,0,null,null,null,null,null,null,null,null,null,null,null,0]
[null,null,"DGP",null,0,null,null,null,null,null,null,null,null,null,null,null,0]
[null,null,"DGU",null,0,null,null,null,null,null,null,null,null,null,null,null,0]
[null,null,"CAGW",null,36799.829845371649,null,null,null,null,null,null,null,null,null,null,null,36799.829845371649]
[null,null,"CAGE",null,0,null,null,null,null,null,null,null,null,null,null,null,0]
[null,null,"SG",null,0,null,null,null,null,null,null,null,null,null,null,null,0]
[null,null,null,null,36799.829845371649,null,null,null,null,null,null,null,null,null,null,null,36799.829845371649]
[null,null,null,null,0,null,null,null,null,null,null,null,null,null,null,null,0]
[358,"Underground Conductors ",null,null,0,null,null,null,null,null,null,null,null,null,null,null,0]
[null,null,"DGP",null,0,null,null,null,null,null,null,null,null,null,null,null,0]
[null,null,"DGU",null,0,null,null,null,null,null,null,null,null,null,null,null,0]
[null,null,"CAGW",null,68005.859615167239,null,null,null,null,null,null,null,null,null,null,null,68005.859615167239]
[null,null,"CAGE",null,0,null,null,null,null,null,null,null,null,null,null,null,0]
[null,null,"SG",null,0,null,null,null,null,null,null,null,null,null,null,null,0]
[null,null,null,null,68005.859615167239,null,null,null,null,null,null,null,null,null,null,null,68005.859615167239]
[null,null,null,null,0,null,null,null,null,null,null,null,null,null,null,null,0]
[359,"Roads and Trails",null,null,0,null,null,null,null,null,null,null,null,null,null,null,0]
[null,null,"DGP",null,0,null,null,null,null,null,null,null,null,null,null,null,0]
[null,null,"DGU",null,0,null,null,null,null,null,null,null,null,null,null,null,0]
[null,null,"CAGW",null,1520299.8632228789,null,null,null,null,null,null,null,null,null,null,null,1520299.8632228789]
[null,null,"CAGE",null,0,null,null,null,null,null,null,null,null,null,null,null,0]
[null,null,"SG",null,1277.533412885932,null,null,null,null,null,null,null,null,null,null,null,1277.533412885932]
[null,null,null,null,1521577.3966357647,null,null,null,null,null,null,null,null,null,null,null,1521577.3966357647]
[null,null,null,null,0,null,null,null,null,null,null,null,null,null,null,null,0]
["TP","Unclassified Trans Plant - Acct 300",null,null,0,null,null,null,null,null,null,null,null,null,null,null,0]
[null,null,"SG",null,0,null,null,null,null,null,null,null,null,null,null,null,0]
[null,null,"CAGW",null,69769.694075125502,null,null,null,null,null,null,null,null,null,null,null,69769.694075125502]
[null,null,"CAGE",null,0,null,null,null,null,null,null,null,null,null,null,null,0]
[null,null,null,null,69769.694075125502,null,null,null,null,null,null,null,null,null,null,null,69769.694075125502]
[null,null,null,null,0,null,null,null,null,null,null,null,null,null,null,null,0]
["TS0","Unclassified Trans Sub Plant - Acct 300",null,null,0,null,null,null,null,null,null,null,null,null,null,null,0]
[null,null,"SG",null,0,null,null,null,null,null,null,null,null,null,null,null,0]
[null,null,null,null,0,null,null,null,null,null,null,null,null,null,null,null,0]
[null,null,null,null,0,null,null,null,null,null,null,null,null,null,null,null,0]
["TOTAL TRANSMISSION PLANT",null,null,null,274026465.37299538,null,null,null,null,null,null,null,null,null,null,null,274026465.37299538]
["Summary of Transmission Plant by Factor",null,null,null,0,null,null,null,null,null,null,null,null,null,null,null,0]
[null,null,null,null,11670763.125784948,null,null,null,null,null,null,null,null,null,null,null,11670763.125784948]
[null,null,null,null,0,null,null,null,null,null,null,null,null,null,null,null,0]
[null,null,null,null,262086664.72717467,null,null,null,null,null,null,null,null,null,null,null,262086664.72717467]
[null,null,null,null,0,null,null,null,null,null,null,null,null,null,null,null,0]
[null,null,null,null,269037.52003582328,null,null,null,null,null,null,null,null,null,null,null,269037.52003582328]
["Total Transmission Plant by Factor",null,null,null,274026465.37299544,null,null,null,null,null,null,null,null,null,null,null,274026465.37299544]
[360,"Land and Land Rights",null,null,0,null,null,null,null,null,null,null,null,null,null,null,0]
[null,null,"S",null,1510453.72,null,null,null,null,null,null,null,null,null,null,null,1510453.72]
[null,null,null,null,1510453.72,null,null,null,null,null,null,null,null,null,null,null,1510453.72]
[null,null,null,null,0,null,null,null,null,null,null,null,null,null,null,null,0]
[361,"Structures and Improvements",null,null,0,null,null,null,null,null,null,null,null,null,null,null,0]
[null,null,"S",null,2440663.6,null,null,null,null,null,null,null,null,null,null,null,2440663.6]
[null,null,null,null,2440663.6,null,null,null,null,null,null,null,null,null,null,null,2440663.6]
[null,null,null,null,0,null,null,null,null,null,null,null,null,null,null,null,0]
[362,"Station Equipment",null,null,0,null,null,null,null,null,null,null,null,null,null,null,0]
[null,null,"S",null,47592408.020000003,null,null,null,null,null,null,null,null,null,null,null,47592408.020000003]
[null,null,null,null,47592408.020000003,null,null,null,null,null,null,null,null,null,null,null,47592408.020000003]
[null,null,null,null,0,null,null,null,null,null,null,null,null,null,null,null,0]
["363","Storage Battery Equipment",null,null,0,null,null,null,null,null,null,null,null,null,null,null,0]
[null,null,"S",null,0,null,null,null,null,null,null,null,null,null,null,null,0]
[null,null,null,null,0,null,null,null,null,null,null,null,null,null,null,null,0]
[null,null,null,null,{"$f":"+Q1865","v":0},null,null,null,null,null,null,null,null,null,null,null,0]
[364,"Poles, Towers & Fixtures",null,null,0,null,null,null,null,null,null,null,null,null,null,null,0]
[null,null,"S",null,92644359.829999998,null,null,null,null,null,null,null,null,null,null,null,92644359.829999998]
[null,null,null,null,92644359.829999998,null,null,null,null,null,null,null,null,null,null,null,92644359.829999998]
[null,null,null,null,0,null,null,null,null,null,null,null,null,null,null,null,0]
[365,"Overhead Conductors",null,null,0,null,null,null,null,null,null,null,null,null,null,null,0]
[null,null,"S",null,58634040.060000002,null,null,null,null,null,null,null,null,null,null,null,58634040.060000002]
[null,null,null,null,58634040.060000002,null,null,null,null,null,null,null,null,null,null,null,58634040.060000002]
[null,null,null,null,0,null,null,null,null,null,null,null,null,null,null,null,0]
[366,"Underground Conduit",null,null,0,null,null,null,null,null,null,null,null,null,null,null,0]
[null,null,"S",null,16364985.75,null,null,null,null,null,null,null,null,null,null,null,16364985.75]
[null,null,null,null,16364985.75,null,null,null,null,null,null,null,null,null,null,null,16364985.75]
[null,null,null,null,0,null,null,null,null,null,null,null,null,null,null,null,0]
[null,null,null,null,0,null,null,null,null,null,null,null,null,null,null,null,0]
[null,null,null,null,0,null,null,null,null,null,null,null,null,null,null,null,0]
[null,null,null,null,0,null,null,null,null,null,null,null,null,null,null,null,0]
[367,"Underground Conductors ",null,null,0,null,null,null,null,null,null,null,null,null,null,null,0]
[null,null,"S",null,22764714.91,null,null,null,null,null,null,null,null,null,null,null,22764714.91]
[null,null,null,null,22764714.91,null,null,null,null,null,null,null,null,null,null,null,22764714.91]
[null,null,null,null,0,null,null,null,null,null,null,null,null,null,null,null,0]
[368,"Line Transformers",null,null,0,null,null,null,null,null,null,null,null,null,null,null,0]
[null,null,"S",null,98870912.760000005,null,null,null,null,null,null,null,null,null,null,null,98870912.760000005]
[null,null,null,null,98870912.760000005,null,null,null,null,null,null,null,null,null,null,null,98870912.760000005]
[null,null,null,null,0,null,null,null,null,null,null,null,null,null,null,null,0]
[369,"Services",null,null,0,null,null,null,null,null,null,null,null,null,null,null,0]
[null,null,"S",null,52234063.350000001,null,null,null,null,null,null,null,null,null,null,null,52234063.350000001]
[null,null,null,null,52234063.350000001,null,null,null,null,null,null,null,null,null,null,null,52234063.350000001]
[null,null,null,null,0,null,null,null,null,null,null,null,null,null,null,null,0]
[370,"Meters",null,null,0,null,null,null,null,null,null,null,null,null,null,null,0]
[null,null,"S",null,11451993.6,null,null,null,null,null,null,null,null,null,null,null,11451993.6]
[null,null,null,null,11451993.6,null,null,null,null,null,null,null,null,null,null,null,11451993.6]
[null,null,null,null,0,null,null,null,null,null,null,null,null,null,null,null,0]
[371,"Installations on Customers' Premises",null,null,0,null,null,null,null,null,null,null,null,null,null,null,0]
[null,null,"S",null,518187.33,null,null,null,null,null,null,null,null,null,null,null,518187.33]
[null,null,null,null,518187.33,null,null,null,null,null,null,null,null,null,null,null,518187.33]
[null,null,null,null,0,null,null,null,null,null,null,null,null,null,null,null,0]
[372,"Leased Property",null,null,0,null,null,null,null,null,null,null,null,null,null,null,0]
[null,null,"S",null,0,null,null,null,null,null,null,null,null,null,null,null,0]
[null,null,null,null,0,null,null,null,null,null,null,null,null,null,null,null,0]
[null,null,null,null,0,null,null,null,null,null,null,null,null,null,null,null,0]
[373,"Street Lights",null,null,0,null,null,null,null,null,null,null,null,null,null,null,0]
[null,null,"S",null,4036517,null,null,null,null,null,null,null,null,null,null,null,4036517]
[null,null,null,null,4036517,null,null,null,null,null,null,null,null,null,null,null,4036517]
[null,null,null,null,0,null,null,null,null,null,null,null,null,null,null,null,0]
["DP","Unclassified Dist Plant - Acct 300",null,null,0,null,null,null,null,null,null,null,null,null,null,null,0]
[null,null,"S",null,882700.80000000005,null,null,null,null,null,null,null,null,null,null,null,882700.80000000005]
[null,null,null,null,882700.80000000005,null,null,null,null,null,null,null,null,null,null,null,882700.80000000005]
[null,null,null,null,0,null,null,null,null,null,null,null,null,null,null,null,0]
["DS0","Unclassified Dist Sub Plant - Acct 300",null,null,0,null,null,null,null,null,null,null,null,null,null,null,0]
[null,null,"S",null,0,null,null,null,null,null,null,null,null,null,null,null,0]
[null,null,null,null,0,null,null,null,null,null,null,null,null,null,null,null,0]
[null,null,null,null,0,null,null,null,null,null,null,null,null,null,null,null,0]
[null,null,null,null,0,null,null,null,null,null,null,null,null,null,null,null,0]
["TOTAL DISTRIBUTION PLANT",null,null,null,409946000.73000008,null,null,null,null,null,null,null,null,null,null,null,409946000.73000008]
[null,null,null,null,0,null,null,null,null,null,null,null,null,null,null,null,0]
["Summary of Distribution Plant by Factor",null,null,null,0,null,null,null,null,null,null,null,null,null,null,null,0]
[null,null,"S",null,409946000.73000008,null,null,null,null,null,null,null,null,null,null,null,409946000.73000008]
[null,null,null,null,0,null,null,null,null,null,null,null,null,null,null,null,0]
["Total Distribution Plant by Factor",null,null,null,409946000.73000008,null,null,null,null,null,null,null,null,null,null,null,409946000.73000008]
[389,"Land and Land Rights",null,null,0,null,null,null,null,null,null,null,null,null,null,null,0]
[null,null,"S",null,1098826.3500000001,null,null,null,null,null,null,null,null,null,null,null,1098826.3500000001]
[null,null,"CN",null,78206.616385561385,null,null,null,null,null,null,null,null,null,null,null,78206.616385561385]
[null,null,"DGU",null,0,null,null,null,null,null,null,null,null,null,null,null,0]
[null,null,"SG",null,0,null,null,null,null,null,null,null,null,null,null,null,0]
[null,null,"CAGW",null,{"$f":"+Q1929","v":0},null,null,null,null,null,null,null,null,null,null,null,0]
[null,null,"CAGE",null,0,null,null,null,null,null,null,null,null,null,null,null,0]
[null,null,"SO",null,383425.89821968507,null,null,null,null,null,null,null,null,null,null,null,383425.89821968507]
[null,null,null,null,1560458.8646052466,null,null,null,null,null,null,null,null,null,null,null,1560458.8646052466]
[null,null,null,null,0,null,null,null,null,null,null,null,null,null,null,null,0]
[390,"Structures and Improvements",null,null,0,null,null,null,null,null,null,null,null,null,null,null,0]
[null,null,"S",null,13912659.390000001,null,null,null,null,null,null,null,null,null,null,null,13912659.390000001]
[null,null,"DGP",null,0,null,null,null,null,null,null,null,null,null,null,null,0]
[null,null,"DGU",null,0,null,null,null,null,null,null,null,null,null,null,null,0]
[null,null,"CN",null,853641.7740140548,null,null,null,null,null,null,null,null,null,null,null,853641.7740140548]
[null,null,"SG",null,0,null,null,null,null,null,null,null,null,null,null,null,0]
[null,null,"CAGW",null,746073.38629510475,null,null,null,null,null,null,null,null,null,null,null,746073.38629510475]
[null,null,"CAGE",null,0,null,null,null,null,null,null,null,null,null,null,null,0]
[null,null,"JBG",null,4317.5730760483129,null,null,null,null,null,null,null,null,null,null,null,4317.5730760483129]
[null,null,"SO",null,7063921.0498090349,null,null,null,null,null,null,null,null,null,null,null,7063921.0498090349]
[null,null,null,null,22580613.173194245,null,null,null,null,null,null,null,null,null,null,null,22580613.173194245]
[null,null,null,null,0,null,null,null,null,null,null,null,null,null,null,null,0]
[391,"Office Furniture & Equipment",null,null,0,null,null,null,null,null,null,null,null,null,null,null,0]
[null,null,"S",null,1361940.78,null,null,null,null,null,null,null,null,null,null,null,1361940.78]
[null,null,"DGP",null,0,null,null,null,null,null,null,null,null,null,null,null,0]
[null,null,"DGU",null,0,null,null,null,null,null,null,null,null,null,null,null,0]
[null,null,"CN",null,598562.21153627359,null,null,null,null,null,null,null,null,null,null,null,598562.21153627359]
[null,null,"SG",null,0,null,null,null,null,null,null,null,null,null,null,null,0]
[null,null,"SE",null,0,null,null,null,null,null,null,null,null,null,null,null,0]
[null,null,"SO",null,3788468.7021789225,null,null,null,null,null,null,null,null,null,null,null,3788468.7021789225]
[null,null,"CAGW",null,143400.74123293738,null,null,null,null,null,null,null,null,null,null,null,143400.74123293738]
[null,null,"CAGE",null,0,null,null,null,null,null,null,null,null,null,null,null,0]
[null,null,"JBG",null,117251.94238626688,null,null,null,null,null,null,null,null,null,null,null,117251.94238626688]
[null,null,"JBE",null,1363.1532752806384,null,null,null,null,null,null,null,null,null,null,null,1363.1532752806384]
[null,null,"CAEE",null,0,null,null,null,null,null,null,null,null,null,null,null,0]
[null,null,"CAGE",null,0,null,null,null,null,null,null,null,null,null,null,null,0]
[null,null,"CAGE",null,0,null,null,null,null,null,null,null,null,null,null,null,0]
[null,null,null,null,6010987.5306096803,null,null,null,null,null,null,null,null,null,null,null,6010987.5306096803]
[null,null,null,null,0,null,null,null,null,null,null,null,null,null,null,null,0]
[392,"Transportation Equipment",null,null,0,null,null,null,null,null,null,null,null,null,null,null,0]
[null,null,"S",null,5157969.76,null,null,null,null,null,null,null,null,null,null,null,5157969.76]
[null,null,"SO",null,505567.10562972917,null,null,null,null,null,null,null,null,null,null,null,505567.10562972917]
[null,null,"SG",null,0,null,null,null,null,null,null,null,null,null,null,null,0]
[null,null,"CN",null,0,null,null,null,null,null,null,null,null,null,null,null,0]
[null,null,"DGU",null,0,null,null,null,null,null,null,null,null,null,null,null,0]
[null,null,"SE",null,0,null,null,null,null,null,null,null,null,null,null,null,0]
[null,null,"DGP",null,0,null,null,null,null,null,null,null,null,null,null,null,0]
[null,null,"CAGW",null,1030867.3351237222,null,null,null,null,null,null,null,null,null,null,null,1030867.3351237222]
[null,null,"CAGE",null,0,null,null,null,null,null,null,null,null,null,null,null,0]
[null,null,"JBG",null,334103.10326653777,null,null,null,null,null,null,null,null,null,null,null,334103.10326653777]
[null,null,"CAEW",null,0,null,null,null,null,null,null,null,null,null,null,null,0]
[null,null,"CAEE",null,0,null,null,null,null,null,null,null,null,null,null,null,0]
[null,null,"CAGE",null,0,null,null,null,null,null,null,null,null,null,null,null,0]
[null,null,"CAGE",null,0,null,null,null,null,null,null,null,null,null,null,null,0]
[null,null,null,null,7028507.3040199894,null,null,null,null,null,null,null,null,null,null,null,7028507.3040199894]
[null,null,null,null,0,null,null,null,null,null,null,null,null,null,null,null,0]
[393,"Stores Equipment",null,null,0,null,null,null,null,null,null,null,null,null,null,null,0]
[null,null,"S",null,597931.29,null,null,null,null,null,null,null,null,null,null,null,597931.29]
[null,null,"DGP",null,0,null,null,null,null,null,null,null,null,null,null,null,0]
[null,null,"DGU",null,0,null,null,null,null,null,null,null,null,null,null,null,0]
[null,null,"SO",null,21834.236139759705,null,null,null,null,null,null,null,null,null,null,null,21834.236139759705]
[null,null,"SG",null,0,null,null,null,null,null,null,null,null,null,null,null,0]
[null,null,"CAGW",null,113436.69760599808,null,null,null,null,null,null,null,null,null,null,null,113436.69760599808]
[null,null,"CAGE",null,0,null,null,null,null,null,null,null,null,null,null,null,0]
[null,null,"JBG",null,158159.07791525766,null,null,null,null,null,null,null,null,null,null,null,158159.07791525766]
[null,null,"CAGE",null,0,null,null,null,null,null,null,null,null,null,null,null,0]
[null,null,null,null,891361.30166101537,null,null,null,null,null,null,null,null,null,null,null,891361.30166101537]
[null,null,null,null,0,null,null,null,null,null,null,null,null,null,null,null,0]
[394,"Tools, Shop & Garage Equipment",null,null,0,null,null,null,null,null,null,null,null,null,null,null,0]
[null,null,"S",null,{"$f":"+Q1993","v":2904081.83},null,null,null,null,null,null,null,null,null,null,null,2904081.83]
[null,null,"DGP",null,0,null,null,null,null,null,null,null,null,null,null,null,0]
[null,null,"SG",null,0,null,null,null,null,null,null,null,null,null,null,null,0]
[null,null,"SO",null,258603.51782296377,null,null,null,null,null,null,null,null,null,null,null,258603.51782296377]
[null,null,"SE",null,0,null,null,null,null,null,null,null,null,null,null,null,0]
[null,null,"DGU",null,0,null,null,null,null,null,null,null,null,null,null,null,0]
[null,null,"CAGW",null,527191.94286442944,null,null,null,null,null,null,null,null,null,null,null,527191.94286442944]
[null,null,"CAGE",null,0,null,null,null,null,null,null,null,null,null,null,null,0]
[null,null,"JBG",null,728928.05622083019,null,null,null,null,null,null,null,null,null,null,null,728928.05622083019]
[null,null,"CAEW",null,0,null,null,null,null,null,null,null,null,null,null,null,0]
[null,null,"CAEE",null,0,null,null,null,null,null,null,null,null,null,null,null,0]
[null,null,"CAGE",null,0,null,null,null,null,null,null,null,null,null,null,null,0]
[null,null,"CAGE",null,0,null,null,null,null,null,null,null,null,null,null,null,0]
[null,null,null,null,4418805.3469082238,null,null,null,null,null,null,null,null,null,null,null,4418805.3469082238]
[null,null,null,null,0,null,null,null,null,null,null,null,null,null,null,null,0]
[395,"Laboratory Equipment",null,null,0,null,null,null,null,null,null,null,null,null,null,null,0]
[null,null,"S",null,1918525.8,null,null,null,null,null,null,null,null,null,null,null,1918525.8]
[null,null,"DGP",null,0,null,null,null,null,null,null,null,null,null,null,null,0]
[null,null,"DGU",null,0,null,null,null,null,null,null,null,null,null,null,null,0]
[null,null,"SO",null,361774.96550747193,null,null,null,null,null,null,null,null,null,null,null,361774.96550747193]
[null,null,"SE",null,0,null,null,null,null,null,null,null,null,null,null,null,0]
[null,null,"SG",null,0,null,null,null,null,null,null,null,null,null,null,null,0]
[null,null,"CAGW",null,339760.96374177706,null,null,null,null,null,null,null,null,null,null,null,339760.96374177706]
[null,null,"CAGE",null,0,null,null,null,null,null,null,null,null,null,null,null,0]
[null,null,"JBG",null,84149.483143546866,null,null,null,null,null,null,null,null,null,null,null,84149.483143546866]
[null,null,"CAEW",null,0,null,null,null,null,null,null,null,null,null,null,null,0]
[null,null,"CAEE",null,0,null,null,null,null,null,null,null,null,null,null,null,0]
[null,null,"CAGE",null,0,null,null,null,null,null,null,null,null,null,null,null,0]
[null,null,"CAGE",null,0,null,null,null,null,null,null,null,null,null,null,null,0]
[null,null,null,null,2704211.2123927958,null,null,null,null,null,null,null,null,null,null,null,2704211.2123927958]
[null,null,null,null,0,null,null,null,null,null,null,null,null,null,null,null,0]
[396,"Power Operated Equipment",null,null,0,null,null,null,null,null,null,null,null,null,null,null,0]
[null,null,"S",null,8092450.5,null,null,null,null,null,null,null,null,null,null,null,8092450.5]
[null,null,"DGP",null,0,null,null,null,null,null,null,null,null,null,null,null,0]
[null,null,"SG",null,0,null,null,null,null,null,null,null,null,null,null,null,0]
[null,null,"SO",null,131485.495612864,null,null,null,null,null,null,null,null,null,null,null,131485.495612864]
[null,null,"DGU",null,0,null,null,null,null,null,null,null,null,null,null,null,0]
[null,null,"SE",null,0,null,null,null,null,null,null,null,null,null,null,null,0]
[null,null,"CAGW",null,552662.36103193858,null,null,null,null,null,null,null,null,null,null,null,552662.36103193858]
[null,null,"CAGE",null,0,null,null,null,null,null,null,null,null,null,null,null,0]
[null,null,"JBG",null,1501364.7924839491,null,null,null,null,null,null,null,null,null,null,null,1501364.7924839491]
[null,null,"CAEW",null,0,null,null,null,null,null,null,null,null,null,null,null,0]
[null,null,"CAEE",null,0,null,null,null,null,null,null,null,null,null,null,null,0]
[null,null,"CAGE",null,0,null,null,null,null,null,null,null,null,null,null,null,0]
[null,null,"CAGE",null,0,null,null,null,null,null,null,null,null,null,null,null,0]
[null,null,null,null,10277963.149128754,null,null,null,null,null,null,null,null,null,null,null,10277963.149128754]
[397,"Communication Equipment",null,null,0,null,null,null,null,null,null,null,null,null,null,null,0]
[null,null,"S",null,11881586.869999999,null,null,null,null,null,null,null,null,null,null,null,11881586.869999999]
[null,null,"DGP",null,0,null,null,null,null,null,null,null,null,null,null,null,0]
[null,null,"DGU",null,0,null,null,null,null,null,null,null,null,null,null,null,0]
[null,null,"SO",null,3991231.5533585837,null,null,null,null,null,null,null,null,null,null,null,3991231.5533585837]
[null,null,"CN",null,197863.12208726082,null,null,null,null,null,null,null,null,null,null,null,197863.12208726082]
[null,null,"SG",null,11154.864086926866,null,null,null,null,null,null,null,null,null,null,null,11154.864086926866]
[null,null,"SE",null,0,null,null,null,null,null,null,null,null,null,null,null,0]
[null,null,"CAGW",null,6506415.5493714567,null,null,null,null,null,null,null,null,null,null,null,6506415.5493714567]
[null,null,"CAGE",null,0,null,null,null,null,null,null,null,null,null,null,null,0]
[null,null,"JBG",null,707180.54437098315,null,null,null,null,null,null,null,null,null,null,null,707180.54437098315]
[null,null,"CAEW",null,0,null,null,null,null,null,null,null,null,null,null,null,0]
[null,null,"CAEE",null,0,null,null,null,null,null,null,null,null,null,null,null,0]
[null,null,"CAGE",null,0,null,null,null,null,null,null,null,null,null,null,null,0]
[null,null,"CAGE",null,0,null,null,null,null,null,null,null,null,null,null,null,0]
[null,null,null,null,23295432.503275208,null,null,null,null,null,null,null,null,null,null,null,23295432.503275208]
[null,null,null,null,0,null,null,null,null,null,null,null,null,null,null,null,0]
[398,"Misc. Equipment",null,null,0,null,null,null,null,null,null,null,null,null,null,null,0]
[null,null,"S",null,{"$f":"+Q2057","v":204481.76},null,null,null,null,null,null,null,null,null,null,null,204481.76]
[null,null,"DGP",null,0,null,null,null,null,null,null,null,null,null,null,null,0]
[null,null,"DGU",null,0,null,null,null,null,null,null,null,null,null,null,null,0]
[null,null,"CN",null,14940.554147506919,null,null,null,null,null,null,null,null,null,null,null,14940.554147506919]
[null,null,"SO",null,202854.08909738791,null,null,null,null,null,null,null,null,null,null,null,202854.08909738791]
[null,null,"SE",null,0,null,null,null,null,null,null,null,null,null,null,null,0]
[null,null,"SG",null,0,null,null,null,null,null,null,null,null,null,null,null,0]
[null,null,"CAGW",null,86192.093359309234,null,null,null,null,null,null,null,null,null,null,null,86192.093359309234]
[null,null,"CAGE",null,0,null,null,null,null,null,null,null,null,null,null,null,0]
[null,null,"JBG",null,22669.70644179776,null,null,null,null,null,null,null,null,null,null,null,22669.70644179776]
[null,null,"CAEW",null,0,null,null,null,null,null,null,null,null,null,null,null,0]
[null,null,"CAEE",null,0,null,null,null,null,null,null,null,null,null,null,null,0]
[null,null,"CAGE",null,0,null,null,null,null,null,null,null,null,null,null,null,0]
[null,null,null,null,531138.20304600184,null,null,null,null,null,null,null,null,null,null,null,531138.20304600184]
[null,null,null,null,0,null,null,null,null,null,null,null,null,null,null,null,0]
[399,"Coal Mine",null,null,0,null,null,null,null,null,null,null,null,null,null,null,0]
[null,null,"SE",null,0,null,null,null,null,null,null,null,null,null,null,null,0]
["MP",null,"CAEW",null,0,null,null,null,null,null,null,null,null,null,null,null,0]
[null,null,"CAEE",null,0,null,null,null,null,null,null,null,null,null,null,null,0]
[null,null,"JBE",null,66750666.843093663,null,null,null,null,null,null,null,null,null,null,null,66750666.843093663]
[null,null,null,null,66750666.843093663,null,null,null,null,null,null,null,null,null,null,null,66750666.843093663]
[null,null,null,null,0,null,null,null,null,null,null,null,null,null,null,null,0]
["399L","WIDCO Capital Lease",null,null,0,null,null,null,null,null,null,null,null,null,null,null,0]
[null,null,"SE",null,0,null,null,null,null,null,null,null,null,null,null,null,0]
[null,null,null,null,0,null,null,null,null,null,null,null,null,null,null,null,0]
[null,null,null,null,0,null,null,null,null,null,null,null,null,null,null,null,0]
[null,"Remove Capital Leases",null,null,0,null,null,null,null,null,null,null,null,null,null,null,0]
[null,null,null,null,0,null,null,null,null,null,null,null,null,null,null,null,0]
[null,null,null,null,0,null,null,null,null,null,null,null,null,null,null,null,0]
[1011390,"General Capital Leases",null,null,0,null,null,null,null,null,null,null,null,null,null,null,0]
[null,null,"S",null,0,null,null,null,null,null,null,null,null,null,null,null,0]
[null,null,"CAGW",null,1027253.4660644664,null,null,null,null,null,null,null,null,null,null,null,1027253.4660644664]
[null,null,"CAGE",null,0,null,null,null,null,null,null,null,null,null,null,null,0]
[null,null,"SO",null,867605.18924525299,null,null,null,null,null,null,null,null,null,null,null,867605.18924525299]
[null,null,null,null,1894858.6553097195,null,null,null,null,null,null,null,null,null,null,null,1894858.6553097195]
[null,null,null,null,0,null,null,null,null,null,null,null,null,null,null,null,0]
[null,"Remove Capital Leases",null,null,-1894858.6553097195,null,null,null,null,null,null,null,null,null,null,null,-1894858.6553097195]
[null,null,null,null,0,null,null,null,null,null,null,null,null,null,null,null,0]
[null,null,null,null,0,null,null,null,null,null,null,null,null,null,null,null,0]
[1011392,"General Vehicles Capital Leases",null,null,0,null,null,null,null,null,null,null,null,null,null,null,0]
[null,null,"SO",null,0,null,null,null,null,null,null,null,null,null,null,null,0]
[null,null,null,null,0,null,null,null,null,null,null,null,null,null,null,null,0]
[null,null,null,null,0,null,null,null,null,null,null,null,null,null,null,null,0]
[null,"Remove Capital Leases",null,null,0,null,null,null,null,null,null,null,null,null,null,null,0]
[null,null,null,null,0,null,null,null,null,null,null,null,null,null,null,null,0]
[null,null,null,null,0,null,null,null,null,null,null,null,null,null,null,null,0]
["GP","Unclassified Gen Plant - Acct 300",null,null,0,null,null,null,null,null,null,null,null,null,null,null,0]
[null,null,"S",null,0,null,null,null,null,null,null,null,null,null,null,null,0]
[null,null,"SO",null,507064.38688910223,null,null,null,null,null,null,null,null,null,null,null,507064.38688910223]
[null,null,"CN",null,0,null,null,null,null,null,null,null,null,null,null,null,0]
[null,null,"SG",null,0,null,null,null,null,null,null,null,null,null,null,null,0]
[null,null,"DGP",null,0,null,null,null,null,null,null,null,null,null,null,null,0]
[null,null,"DGU",null,0,null,null,null,null,null,null,null,null,null,null,null,0]
[null,null,null,null,507064.38688910223,null,null,null,null,null,null,null,null,null,null,null,507064.38688910223]
[null,null,null,null,0,null,null,null,null,null,null,null,null,null,null,null,0]
["399G","Unclassified Gen Plant - Acct 300",null,null,0,null,null,null,null,null,null,null,null,null,null,null,0]
[null,null,"S",null,0,null,null,null,null,null,null,null,null,null,null,null,0]
[null,null,"SO",null,0,null,null,null,null,null,null,null,null,null,null,null,0]
[null,null,"SG",null,0,null,null,null,null,null,null,null,null,null,null,null,0]
[null,null,"DGP",null,0,null,null,null,null,null,null,null,null,null,null,null,0]
[null,null,"DGU",null,0,null,null,null,null,null,null,null,null,null,null,null,0]
[null,null,null,null,0,null,null,null,null,null,null,null,null,null,null,null,0]
[null,null,null,null,0,null,null,null,null,null,null,null,null,null,null,null,0]
["TOTAL GENERAL PLANT",null,null,null,146557209.81882393,null,null,null,null,null,null,null,null,null,null,null,146557209.81882393]
[null,null,null,null,{"$f":"+Q2121","v":0},null,null,null,null,null,null,null,null,null,null,null,0]
["Summary of General Plant by Factor",null,null,null,0,null,null,null,null,null,null,null,null,null,null,null,0]
[null,null,"S",null,47130454.329999998,null,null,null,null,null,null,null,null,null,null,null,47130454.329999998]
[null,null,"JBG",null,3658124.2793052178,null,null,null,null,null,null,null,null,null,null,null,3658124.2793052178]
[null,null,"JBE",null,66752029.996368945,null,null,null,null,null,null,null,null,null,null,null,66752029.996368945]
[null,null,"SG",null,11154.864086926866,null,null,null,null,null,null,null,null,null,null,null,11154.864086926866]
[null,null,"SO",null,18083836.189510759,null,null,null,null,null,null,null,null,null,null,null,18083836.189510759]
[null,null,"SE",null,0,null,null,null,null,null,null,null,null,null,null,null,0]
[null,null,"CN",null,1743214.2781706576,null,null,null,null,null,null,null,null,null,null,null,1743214.2781706576]
[null,null,"DEU",null,0,null,null,null,null,null,null,null,null,null,null,null,0]
[null,null,"CAGW",null,11073254.536691139,null,null,null,null,null,null,null,null,null,null,null,11073254.536691139]
[null,null,"CAGE",null,0,null,null,null,null,null,null,null,null,null,null,null,0]
[null,null,"CAEW",null,0,null,null,null,null,null,null,null,null,null,null,null,0]
[null,null,"CAEE",null,0,null,null,null,null,null,null,null,null,null,null,null,0]
[null,null,"SSGCT",null,0,null,null,null,null,null,null,null,null,null,null,null,0]
[null,null,"SSGCH",null,0,null,null,null,null,null,null,null,null,null,null,null,0]
[null,null,"Less Capital Leases",null,-1894858.6553097195,null,null,null,null,null,null,null,null,null,null,null,-1894858.6553097195]
["Total General Plant by Factor",null,null,null,146557209.8188239,null,null,null,null,null,null,null,null,null,null,null,146557209.8188239]
[301,"Organization",null,null,0,null,null,null,null,null,null,null,null,null,null,null,0]
[null,null,"S",null,0,null,null,null,null,null,null,null,null,null,null,null,0]
[null,null,"SO",null,0,null,null,null,null,null,null,null,null,null,null,null,0]
[null,null,"CAGW",null,0,null,null,null,null,null,null,null,null,null,null,null,0]
[null,null,"CAGE",null,0,null,null,null,null,null,null,null,null,null,null,null,0]
[null,null,"SG",null,0,null,null,null,null,null,null,null,null,null,null,null,0]
[null,null,null,null,0,null,null,null,null,null,null,null,null,null,null,null,0]
[302,"Franchise & Consent",null,null,0,null,null,null,null,null,null,null,null,null,null,null,0]
[null,null,"S",null,0,null,null,null,null,null,null,null,null,null,null,null,0]
[null,null,"SG",null,0,null,null,null,null,null,null,null,null,null,null,null,0]
[null,null,"CAGW",null,0,null,null,null,null,null,null,null,null,null,null,null,0]
[null,null,"CAGE",null,0,null,null,null,null,null,null,null,null,null,null,null,0]
[null,null,"CAGW",null,40603923.42714794,null,null,null,null,null,null,null,null,null,null,null,40603923.42714794]
[null,null,"CAGE",null,0,null,null,null,null,null,null,null,null,null,null,null,0]
[null,null,"DGP",null,0,null,null,null,null,null,null,null,null,null,null,null,0]
[null,null,"DGU",null,0,null,null,null,null,null,null,null,null,null,null,null,0]
[null,null,null,null,40603923.42714794,null,null,null,null,null,null,null,null,null,null,null,40603923.42714794]
[null,null,null,null,0,null,null,null,null,null,null,null,null,null,null,null,0]
[303,"Miscellaneous Intangible Plant",null,null,0,null,null,null,null,null,null,null,null,null,null,null,0]
[null,null,"S",null,1465231.81,null,null,null,null,null,null,null,null,null,null,null,1465231.81]
[null,null,"SG",null,127233.91324413543,null,null,null,null,null,null,null,null,null,null,null,127233.91324413543]
[null,null,"SO",null,26261795.412689157,null,null,null,null,null,null,null,null,null,null,null,26261795.412689157]
[null,null,"SE",null,0,null,null,null,null,null,null,null,null,null,null,null,0]
[null,null,"CN",null,8509282.5923934299,null,null,null,null,null,null,null,null,null,null,null,8509282.5923934299]
[null,null,"CAGW",null,16416086.565850247,null,null,null,null,null,null,null,null,null,null,null,16416086.565850247]
[null,null,"CAGE",null,0,null,null,null,null,null,null,null,null,null,null,null,0]
[null,null,"JBG",null,10662.676564370302,null,null,null,null,null,null,null,null,null,null,null,10662.676564370302]
[null,null,"CAEW",null,0,null,null,null,null,null,null,null,null,null,null,null,0]
[null,null,"CAEE",null,0,null,null,null,null,null,null,null,null,null,null,null,0]
[null,null,"CAGE",null,0,null,null,null,null,null,null,null,null,null,null,null,0]
[null,null,"CAGE",null,0,null,null,null,null,null,null,null,null,null,null,null,0]
[null,null,null,null,52790292.970741339,null,null,null,null,null,null,null,null,null,null,null,52790292.970741339]
[303,"Less Non-Utility Plant",null,null,0,null,null,null,null,null,null,null,null,null,null,null,0]
[null,null,"S",null,0,null,null,null,null,null,null,null,null,null,null,null,0]
[null,null,null,null,52790292.970741339,null,null,null,null,null,null,null,null,null,null,null,52790292.970741339]
["IP","Unclassified Intangible Plant - Acct 300",null,null,0,null,null,null,null,null,null,null,null,null,null,null,0]
[null,null,"S",null,0,null,null,null,null,null,null,null,null,null,null,null,0]
[null,null,"SG",null,0,null,null,null,null,null,null,null,null,null,null,null,0]
[null,null,"DGU",null,0,null,null,null,null,null,null,null,null,null,null,null,0]
[null,null,"SO",null,0,null,null,null,null,null,null,null,null,null,null,null,0]
[null,null,null,null,0,null,null,null,null,null,null,null,null,null,null,null,0]
[null,null,null,null,0,null,null,null,null,null,null,null,null,null,null,null,0]
["TOTAL INTANGIBLE PLANT",null,null,null,93394216.397889271,null,null,null,null,null,null,null,null,null,null,null,93394216.397889271]
[null,null,null,null,0,null,null,null,null,null,null,null,null,null,null,null,0]
["Summary of Intangible Plant by Factor",null,null,null,0,null,null,null,null,null,null,null,null,null,null,null,0]
[null,null,"S",null,1465231.81,null,null,null,null,null,null,null,null,null,null,null,1465231.81]
[null,null,"JBG",null,{"$f":"+Q2185","v":10662.676564370302},null,null,null,null,null,null,null,null,null,null,null,10662.676564370302]
[null,null,"JBE",null,0,null,null,null,null,null,null,null,null,null,null,null,0]
[null,null,"SG",null,127233.91324413543,null,null,null,null,null,null,null,null,null,null,null,127233.91324413543]
[null,null,"SO",null,26261795.412689157,null,null,null,null,null,null,null,null,null,null,null,26261795.412689157]
[null,null,"CN",null,8509282.5923934299,null,null,null,null,null,null,null,null,null,null,null,8509282.5923934299]
[null,null,"CAGW",null,57020009.992998183,null,null,null,null,null,null,null,null,null,null,null,57020009.992998183]
[null,null,"CAGE",null,0,null,null,null,null,null,null,null,null,null,null,null,0]
[null,null,"CAEW",null,0,null,null,null,null,null,null,null,null,null,null,null,0]
[null,null,"CAEE",null,0,null,null,null,null,null,null,null,null,null,null,null,0]
[null,null,"SSGCT",null,0,null,null,null,null,null,null,null,null,null,null,null,0]
[null,null,"SSGCH",null,0,null,null,null,null,null,null,null,null,null,null,null,0]
[null,null,"SE",null,0,null,null,null,null,null,null,null,null,null,null,null,0]
["Total Intangible Plant by Factor",null,null,null,93394216.397889286,null,null,null,null,null,null,null,null,null,null,null,93394216.397889286]
["Summary of Unclassified Plant (Account 106)",null,null,null,0,null,null,null,null,null,null,null,null,null,null,null,0]
[null,null,"DP",null,882700.80000000005,null,null,null,null,null,null,null,null,null,null,null,882700.80000000005]
[null,null,"DS0",null,0,null,null,null,null,null,null,null,null,null,null,null,0]
[null,null,"GP",null,507064.38688910223,null,null,null,null,null,null,null,null,null,null,null,507064.38688910223]
[null,null,"HP",null,0,null,null,null,null,null,null,null,null,null,null,null,0]
[null,null,"NP",null,0,null,null,null,null,null,null,null,null,null,null,null,0]
[null,null,"OP",null,0,null,null,null,null,null,null,null,null,null,null,null,0]
[null,null,"TP",null,69769.694075125502,null,null,null,null,null,null,null,null,null,null,null,69769.694075125502]
[null,null,"TS0",null,0,null,null,null,null,null,null,null,null,null,null,null,0]
[null,null,"IP",null,0,null,null,null,null,null,null,null,null,null,null,null,0]
[null,null,"MP",null,0,null,null,null,null,null,null,null,null,null,null,null,0]
[null,null,"SP",null,197156.55059380142,null,null,null,null,null,null,null,null,null,null,null,197156.55059380142]
["Total Unclassified Plant by Factor",null,null,null,1656691.4315580293,null,null,null,null,null,null,null,null,null,null,null,1656691.4315580293]
[null,null,null,null,0,null,null,null,null,null,null,null,null,null,null,null,0]
["TOTAL ELECTRIC PLANT IN SERVICE",null,null,null,1655504559.060895,null,null,null,null,null,null,null,null,null,null,null,1655504559.060895]
["Summary of Electric Plant by Factor",null,null,null,0,null,null,null,null,null,null,null,null,null,null,null,0]
[null,null,"S",null,458154652.40180004,null,null,null,null,null,null,null,null,null,null,null,458154652.40180004]
[null,null,"SE",null,0,null,null,null,null,null,null,null,null,null,null,null,0]
[null,null,"JBG",null,263068073.70425081,null,null,null,null,null,null,null,null,null,null,null,263068073.70425081]
[null,null,"JBE",null,66752029.996368945,null,null,null,null,null,null,null,null,null,null,null,66752029.996368945]
[null,null,"SG",null,604582.84796068701,null,null,null,null,null,null,null,null,null,null,null,604582.84796068701]
[null,null,"SO",null,44345631.602199912,null,null,null,null,null,null,null,null,null,null,null,44345631.602199912]
[null,null,"CN",null,10252496.870564088,null,null,null,null,null,null,null,null,null,null,null,10252496.870564088]
[null,null,"DEU",null,0,null,null,null,null,null,null,null,null,null,null,null,0]
[null,null,"CAGW",null,814221950.29306054,null,null,null,null,null,null,null,null,null,null,null,814221950.29306054]
[null,null,"CAGE",null,0,null,null,null,null,null,null,null,null,null,null,null,0]
[null,null,"CAEW",null,0,null,null,null,null,null,null,null,null,null,null,null,0]
[null,null,"CAEE",null,0,null,null,null,null,null,null,null,null,null,null,null,0]
[null,null,"SSGCH",null,0,null,null,null,null,null,null,null,null,null,null,null,0]
[null,null,"SSGCT",null,0,null,null,null,null,null,null,null,null,null,null,null,0]
[null,null,"Less Capital Leases",null,-1894858.6553097195,null,null,null,null,null,null,null,null,null,null,null,-1894858.6553097195]
[null,null,null,null,1655504559.0608954,null,null,null,null,null,null,null,null,null,null,null,1655504559.0608954]
[105,"Plant Held For Future Use",null,null,0,null,null,null,null,null,null,null,null,null,null,null,0]
[null,null,"S",null,0,null,null,null,null,null,null,null,null,null,null,null,0]
[null,null,"SG",null,0,null,null,null,null,null,null,null,null,null,null,null,0]
[null,null,"SG",null,0,null,null,null,null,null,null,null,null,null,null,null,0]
[null,null,"SG",null,0,null,null,null,null,null,null,null,null,null,null,null,0]
[null,null,"SE",null,5533.8414833463366,null,null,null,null,null,null,null,null,null,null,null,5533.8414833463366]
[null,null,"SG",null,0,null,null,null,null,null,null,null,null,null,null,null,0]
[null,null,"CAGW",null,38221.431854599628,null,null,null,null,null,null,null,null,null,null,null,38221.431854599628]
[null,null,"CAGE",null,0,null,null,null,null,null,null,null,null,null,null,null,0]
[null,null,"CAEW",null,0,null,null,null,null,null,null,null,null,null,null,null,0]
[null,null,"CAEE",null,0,null,null,null,null,null,null,null,null,null,null,null,0]
[null,null,null,null,43755.273337945968,null,null,null,null,null,null,null,null,null,null,null,43755.273337945968]
[null,null,null,null,0,null,null,null,null,null,null,null,null,null,null,null,0]
[114,"Electric Plant Acquisition Adjustments",null,null,0,null,null,null,null,null,null,null,null,null,null,null,0]
[null,null,"S",null,0,null,null,null,null,null,null,null,null,null,null,null,0]
[null,null,"SG",null,0,null,null,null,null,null,null,null,null,null,null,null,0]
[null,null,"CAGW",null,0,null,null,null,null,null,null,null,null,null,null,null,0]
[null,null,"CAGE",null,0,null,null,null,null,null,null,null,null,null,null,null,0]
[null,null,"DGP",null,0,null,null,null,null,null,null,null,null,null,null,null,0]
[null,null,null,null,{"$f":"+Q2249","v":0},null,null,null,null,null,null,null,null,null,null,null,0]
[null,null,null,null,0,null,null,null,null,null,null,null,null,null,null,null,0]
[115,"Accum Provision for Asset Acquisition Adjustments",null,null,0,null,null,null,null,null,null,null,null,null,null,null,0]
[null,null,"S",null,0,null,null,null,null,null,null,null,null,null,null,null,0]
[null,null,"SG",null,0,null,null,null,null,null,null,null,null,null,null,null,0]
[null,null,"CAGW",null,0,null,null,null,null,null,null,null,null,null,null,null,0]
[null,null,"CAGE",null,0,null,null,null,null,null,null,null,null,null,null,null,0]
[null,null,"DGP",null,0,null,null,null,null,null,null,null,null,null,null,null,0]
[null,null,null,null,0,null,null,null,null,null,null,null,null,null,null,null,0]
[null,null,null,null,0,null,null,null,null,null,null,null,null,null,null,null,0]
[120,"Nuclear Fuel",null,null,0,null,null,null,null,null,null,null,null,null,null,null,0]
[null,null,"SE",null,0,null,null,null,null,null,null,null,null,null,null,null,0]
[null,null,null,null,0,null,null,null,null,null,null,null,null,null,null,null,0]
[null,null,null,null,0,null,null,null,null,null,null,null,null,null,null,null,0]
[124,"Weatherization",null,null,0,null,null,null,null,null,null,null,null,null,null,null,0]
[null,null,"S",null,1958027.4445833301,null,null,null,null,null,null,null,null,null,null,null,1958027.4445833301]
[null,null,"SO",null,-305.1190918783978,null,null,null,null,null,null,null,null,null,null,null,-305.1190918783978]
[null,null,null,null,1957722.3254914517,null,null,null,null,null,null,null,null,null,null,null,1957722.3254914517]
[null,null,null,null,0,null,null,null,null,null,null,null,null,null,null,null,0]
["182W","Weatherization",null,null,0,null,null,null,null,null,null,null,null,null,null,null,0]
[null,null,"S",null,0,null,null,null,null,null,null,null,null,null,null,null,0]
[null,null,"SG",null,0,null,null,null,null,null,null,null,null,null,null,null,0]
[null,null,"SGCT",null,0,null,null,null,null,null,null,null,null,null,null,null,0]
[null,null,"SO",null,0,null,null,null,null,null,null,null,null,null,null,null,0]
[null,null,null,null,0,null,null,null,null,null,null,null,null,null,null,null,0]
[null,null,null,null,0,null,null,null,null,null,null,null,null,null,null,null,0]
["186W","Weatherization",null,null,0,null,null,null,null,null,null,null,null,null,null,null,0]
[null,null,"S",null,0,null,null,null,null,null,null,null,null,null,null,null,0]
[null,null,"CN",null,0,null,null,null,null,null,null,null,null,null,null,null,0]
[null,null,"CNP",null,0,null,null,null,null,null,null,null,null,null,null,null,0]
[null,null,"SG",null,0,null,null,null,null,null,null,null,null,null,null,null,0]
[null,null,"SO",null,0,null,null,null,null,null,null,null,null,null,null,null,0]
[null,null,null,null,0,null,null,null,null,null,null,null,null,null,null,null,0]
[null,null,null,null,0,null,null,null,null,null,null,null,null,null,null,null,0]
[null,"Total Weatherization",null,null,1957722.3254914517,null,null,null,null,null,null,null,null,null,null,null,1957722.3254914517]
[null,null,null,null,0,null,null,null,null,null,null,null,null,null,null,null,0]
[151,"Fuel Stock",null,null,0,null,null,null,null,null,null,null,null,null,null,null,0]
[null,null,"DEU",null,0,null,null,null,null,null,null,null,null,null,null,null,0]
[null,null,"SE",null,0,null,null,null,null,null,null,null,null,null,null,null,0]
[null,null,"CAEW",null,-1.5174737200140953E-7,null,null,null,null,null,null,null,null,null,null,null,-1.5174737200140953E-7]
[null,null,"CAEE",null,0,null,null,null,null,null,null,null,null,null,null,null,0]
[null,null,"JBE",null,0,null,null,null,null,null,null,null,null,null,null,null,0]
[null,null,"CAEE",null,0,null,null,null,null,null,null,null,null,null,null,null,0]
[null,null,"CAEE",null,0,null,null,null,null,null,null,null,null,null,null,null,0]
[null,null,null,null,-1.5174737200140953E-7,null,null,null,null,null,null,null,null,null,null,null,-1.5174737200140953E-7]
[null,null,null,null,0,null,null,null,null,null,null,null,null,null,null,null,0]
[152,"Fuel Stock - Undistributed",null,null,0,null,null,null,null,null,null,null,null,null,null,null,0]
[null,null,"SE",null,0,null,null,null,null,null,null,null,null,null,null,null,0]
[null,null,"CAEW",null,0,null,null,null,null,null,null,null,null,null,null,null,0]
[null,null,"CAEE",null,0,null,null,null,null,null,null,null,null,null,null,null,0]
[null,null,null,null,0,null,null,null,null,null,null,null,null,null,null,null,0]
[null,null,null,null,0,null,null,null,null,null,null,null,null,null,null,null,0]
[25316,"DG&T Working Capital Deposit",null,null,0,null,null,null,null,null,null,null,null,null,null,null,0]
[null,null,"SE",null,0,null,null,null,null,null,null,null,null,null,null,null,0]
[null,null,"CAEW",null,0,null,null,null,null,null,null,null,null,null,null,null,0]
[null,null,"CAEE",null,0,null,null,null,null,null,null,null,null,null,null,null,0]
[null,null,null,null,0,null,null,null,null,null,null,null,null,null,null,null,0]
[null,null,null,null,0,null,null,null,null,null,null,null,null,null,null,null,0]
[25317,"DG&T Working Capital Deposit",null,null,0,null,null,null,null,null,null,null,null,null,null,null,0]
[null,null,"SE",null,0,null,null,null,null,null,null,null,null,null,null,null,0]
[null,null,"CAEW",null,0,null,null,null,null,null,null,null,null,null,null,null,0]
[null,null,"CAEE",null,0,null,null,null,null,null,null,null,null,null,null,null,0]
[null,null,null,null,0,null,null,null,null,null,null,null,null,null,null,null,0]
[null,null,null,null,0,null,null,null,null,null,null,null,null,null,null,null,0]
[25319,"Provo Working Capital Deposit",null,null,{"$f":"+Q2313","v":0},null,null,null,null,null,null,null,null,null,null,null,0]
[null,null,"SE",null,0,null,null,null,null,null,null,null,null,null,null,null,0]
[null,null,"CAEW",null,0,null,null,null,null,null,null,null,null,null,null,null,0]
[null,null,"CAEE",null,0,null,null,null,null,null,null,null,null,null,null,null,0]
[null,null,null,null,0,null,null,null,null,null,null,null,null,null,null,null,0]
[null,null,null,null,0,null,null,null,null,null,null,null,null,null,null,null,0]
[null,"Total Fuel Stock",null,null,-1.5174737200140953E-7,null,null,null,null,null,null,null,null,null,null,null,-1.5174737200140953E-7]
[154,"Materials and Supplies",null,null,0,null,null,null,null,null,null,null,null,null,null,null,0]
[null,null,"S",null,6.6030770540237427E-7,null,null,null,null,null,null,null,null,null,null,null,6.6030770540237427E-7]
[null,null,"SG",null,-2.6855559553951025E-8,null,null,null,null,null,null,null,null,null,null,null,-2.6855559553951025E-8]
[null,null,"SE",null,0,null,null,null,null,null,null,null,null,null,null,null,0]
[null,null,"SO",null,0,null,null,null,null,null,null,null,null,null,null,null,0]
[null,null,"SNPPS",null,0,null,null,null,null,null,null,null,null,null,null,null,0]
[null,null,"SNPPH",null,0,null,null,null,null,null,null,null,null,null,null,null,0]
[null,null,"SNPD",null,1.4520061085931957E-4,null,null,null,null,null,null,null,null,null,null,null,1.4520061085931957E-4]
[null,null,"SNPT",null,0,null,null,null,null,null,null,null,null,null,null,null,0]
[null,null,"DGU",null,0,null,null,null,null,null,null,null,null,null,null,null,0]
[null,null,"DGP",null,0,null,null,null,null,null,null,null,null,null,null,null,0]
[null,null,"CAEE",null,0,null,null,null,null,null,null,null,null,null,null,null,0]
[null,null,"SNPP",null,0,null,null,null,null,null,null,null,null,null,null,null,0]
[null,null,"CAGW",null,-1.5157274901866913E-7,null,null,null,null,null,null,null,null,null,null,null,-1.5157274901866913E-7]
[null,null,"CAGE",null,0,null,null,null,null,null,null,null,null,null,null,null,0]
[null,null,"JBG",null,-7.6135620474815369E-8,null,null,null,null,null,null,null,null,null,null,null,-7.6135620474815369E-8]
[null,null,"CAEW",null,0,null,null,null,null,null,null,null,null,null,null,null,0]
[null,null,"CAEE",null,0,null,null,null,null,null,null,null,null,null,null,null,0]
[null,null,"CAGE",null,0,null,null,null,null,null,null,null,null,null,null,null,0]
[null,null,null,null,1.4560635463567451E-4,null,null,null,null,null,null,null,null,null,null,null,1.4560635463567451E-4]
[null,null,null,null,0,null,null,null,null,null,null,null,null,null,null,null,0]
[163,"Stores Expense Undistributed",null,null,0,null,null,null,null,null,null,null,null,null,null,null,0]
[null,null,"SO",null,0,null,null,null,null,null,null,null,null,null,null,null,0]
[null,null,null,null,0,null,null,null,null,null,null,null,null,null,null,null,0]
[null,null,null,null,0,null,null,null,null,null,null,null,null,null,null,null,0]
[null,null,null,null,0,null,null,null,null,null,null,null,null,null,null,null,0]
[25318,"Provo Working Capital Deposit",null,null,0,null,null,null,null,null,null,null,null,null,null,null,0]
[null,null,"SNPPS",null,0,null,null,null,null,null,null,null,null,null,null,null,0]
[null,null,"CAGW",null,0,null,null,null,null,null,null,null,null,null,null,null,0]
[null,null,"CAGE",null,0,null,null,null,null,null,null,null,null,null,null,null,0]
[null,null,null,null,0,null,null,null,null,null,null,null,null,null,null,null,0]
[null,null,null,null,0,null,null,null,null,null,null,null,null,null,null,null,0]
[null,"Total Materials & Supplies",null,null,1.4560635463567451E-4,null,null,null,null,null,null,null,null,null,null,null,1.4560635463567451E-4]
[null,null,null,null,0,null,null,null,null,null,null,null,null,null,null,null,0]
[165,"Prepayments",null,null,0,null,null,null,null,null,null,null,null,null,null,null,0]
[null,null,"S",null,0,null,null,null,null,null,null,null,null,null,null,null,0]
[null,null,"GPS",null,-2.3283064365386963E-8,null,null,null,null,null,null,null,null,null,null,null,-2.3283064365386963E-8]
[null,null,"SG",null,-8.0442987382411957E-8,null,null,null,null,null,null,null,null,null,null,null,-8.0442987382411957E-8]
[null,null,"CAGW",null,0,null,null,null,null,null,null,null,null,null,null,null,0]
[null,null,"CAGE",null,0,null,null,null,null,null,null,null,null,null,null,null,0]
[null,null,"CAEW",null,0,null,null,null,null,null,null,null,null,null,null,null,0]
[null,null,"CAEE",null,0,null,null,null,null,null,null,null,null,null,null,null,0]
[null,null,"SE",null,0,null,null,null,null,null,null,null,null,null,null,null,0]
[null,null,"SO",null,0,null,null,null,null,null,null,null,null,null,null,null,0]
[null,null,null,null,-1.0372605174779892E-7,null,null,null,null,null,null,null,null,null,null,null,-1.0372605174779892E-7]
[null,null,null,null,0,null,null,null,null,null,null,null,null,null,null,null,0]
["182M","Misc Regulatory Assets",null,null,0,null,null,null,null,null,null,null,null,null,null,null,0]
[null,null,"S",null,12474070.74,null,null,null,null,null,null,null,null,null,null,null,12474070.74]
[null,null,"SG",null,0,null,null,null,null,null,null,null,null,null,null,null,0]
[null,null,"CAGE",null,0,null,null,null,null,null,null,null,null,null,null,null,0]
[null,null,"CAGE",null,0,null,null,null,null,null,null,null,null,null,null,null,0]
[null,null,"CAGW",null,381178.72502356098,null,null,null,null,null,null,null,null,null,null,null,381178.72502356098]
[null,null,"CAEE",null,0,null,null,null,null,null,null,null,null,null,null,null,0]
[null,null,"SE",null,0,null,null,null,null,null,null,null,null,null,null,null,0]
[null,null,"CAEW",null,0,null,null,null,null,null,null,null,null,null,null,null,0]
[null,null,"CAEE",null,0,null,null,null,null,null,null,null,null,null,null,null,0]
[null,null,"SO",null,55395.802666168427,null,null,null,null,null,null,null,null,null,null,null,55395.802666168427]
[null,null,null,null,{"$f":"+Q2377","v":12910645.267689729},null,null,null,null,null,null,null,null,null,null,null,12910645.267689729]
[null,null,null,null,0,null,null,null,null,null,null,null,null,null,null,null,0]
["186M","Misc Deferred Debits",null,null,0,null,null,null,null,null,null,null,null,null,null,null,0]
[null,null,"S",null,0,null,null,null,null,null,null,null,null,null,null,null,0]
[null,null,"CAEW",null,0,null,null,null,null,null,null,null,null,null,null,null,0]
[null,null,"CAEE",null,0,null,null,null,null,null,null,null,null,null,null,null,0]
[null,null,"SG",null,-3.2130628824234009E-8,null,null,null,null,null,null,null,null,null,null,null,-3.2130628824234009E-8]
[null,null,"SO",null,0,null,null,null,null,null,null,null,null,null,null,null,0]
[null,null,"SE",null,0,null,null,null,null,null,null,null,null,null,null,null,0]
[null,null,"CAGW",null,1669548.1008462268,null,null,null,null,null,null,null,null,null,null,null,1669548.1008462268]
[null,null,"CAGE",null,0,null,null,null,null,null,null,null,null,null,null,null,0]
[null,null,"CAEW",null,0,null,null,null,null,null,null,null,null,null,null,null,0]
[null,null,"CAEE",null,0,null,null,null,null,null,null,null,null,null,null,null,0]
[null,null,"SNPPS",null,186539.91316402922,null,null,null,null,null,null,null,null,null,null,null,186539.91316402922]
[null,null,"EXCTAX",null,0,null,null,null,null,null,null,null,null,null,null,null,0]
[null,null,null,null,1856088.0140102238,null,null,null,null,null,null,null,null,null,null,null,1856088.0140102238]
[null,null,null,null,0,null,null,null,null,null,null,null,null,null,null,null,0]
["Working Capital",null,null,null,0,null,null,null,null,null,null,null,null,null,null,null,0]
["CWC","Cash Working Capital",null,null,0,null,null,null,null,null,null,null,null,null,null,null,0]
[null,null,"S",null,28493963.911447883,null,null,null,null,null,null,null,null,null,null,null,28493963.911447883]
[null,null,"SO",null,0,null,null,null,null,null,null,null,null,null,null,null,0]
[null,null,"SE",null,0,null,null,null,null,null,null,null,null,null,null,null,0]
[null,null,null,null,28493963.911447883,null,null,null,null,null,null,null,null,null,null,null,28493963.911447883]
[null,null,null,null,0,null,null,null,null,null,null,null,null,null,null,null,0]
["OWC","Other Working Capital",null,null,0,null,null,null,null,null,null,null,null,null,null,null,0]
[131,"Cash","SNP",null,0,null,null,null,null,null,null,null,null,null,null,null,0]
[135,"Working Funds","SG",null,0,null,null,null,null,null,null,null,null,null,null,null,0]
[141,"Other Accounts Receivable","SO",null,0,null,null,null,null,null,null,null,null,null,null,null,0]
[143,"Other Accounts Receivable","SO",null,1.0756775736808777E-7,null,null,null,null,null,null,null,null,null,null,null,1.0756775736808777E-7]
[232,"Accounts Payable","S",null,-3.028326206843622E-12,null,null,null,null,null,null,null,null,null,null,null,-3.028326206843622E-12]
[232,"Accounts Payable","SO",null,-2.2875610738992691E-8,null,null,null,null,null,null,null,null,null,null,null,-2.2875610738992691E-8]
[232,"Accounts Payable","CAEE",null,0,null,null,null,null,null,null,null,null,null,null,null,0]
[253,"Deferred Hedge","SE",null,0,null,null,null,null,null,null,null,null,null,null,null,0]
[2533,"Other Deferred Credits - Misc","S",null,0,null,null,null,null,null,null,null,null,null,null,null,0]
[2533,"Other Deferred Credits - Misc","SE",null,2.5363988243043423E-8,null,null,null,null,null,null,null,null,null,null,null,2.5363988243043423E-8]
[2533,"Other Deferred Credits - Misc","CAEW",null,0,null,null,null,null,null,null,null,null,null,null,null,0]
[2533,"Other Deferred Credits - Misc","CAEE",null,0,null,null,null,null,null,null,null,null,null,null,null,0]
[230,"Asset Retirement Obligations","SE",null,0,null,null,null,null,null,null,null,null,null,null,null,0]
[230,"Asset Retirement Obligations","CAEW",null,0,null,null,null,null,null,null,null,null,null,null,null,0]
[230,"Asset Retirement Obligations","CAEE",null,0,null,null,null,null,null,null,null,null,null,null,null,0]
[230,"Asset Retirement Obligations","S",null,0,null,null,null,null,null,null,null,null,null,null,null,0]
[254105,"ARO Regulatory Liability","S",null,0,null,null,null,null,null,null,null,null,null,null,null,0]
[254105,"ARO Regulatory Liability","SE",null,0,null,null,null,null,null,null,null,null,null,null,null,0]
[254105,"ARO Regulatory Liability","CAEW",null,0,null,null,null,null,null,null,null,null,null,null,null,0]
[254105,"ARO Regulatory Liability","CAEE",null,0,null,null,null,null,null,null,null,null,null,null,null,0]
[2533,"Cholla Reclamation","CAEE",null,0,null,null,null,null,null,null,null,null,null,null,null,0]
[null,null,null,null,1.1005310654593166E-7,null,null,null,null,null,null,null,null,null,null,null,1.1005310654593166E-7]
[null,null,null,null,0,null,null,null,null,null,null,null,null,null,null,null,0]
["Total Working Capital",null,null,null,28493963.911447994,null,null,null,null,null,null,null,null,null,null,null,28493963.911447994]
["Miscellaneous Rate Base",null,null,null,0,null,null,null,null,null,null,null,null,null,null,null,0]
[18221,"Unrec Plant & Reg Study Costs",null,null,0,null,null,null,null,null,null,null,null,null,null,null,0]
[null,null,"S",null,0,null,null,null,null,null,null,null,null,null,null,null,0]
[null,null,null,null,0,null,null,null,null,null,null,null,null,null,null,null,0]
[null,null,null,null,0,null,null,null,null,null,null,null,null,null,null,null,0]
[null,null,null,null,0,null,null,null,null,null,null,null,null,null,null,null,0]
[18222,"Nuclear Plant - Trojan",null,null,0,null,null,null,null,null,null,null,null,null,null,null,0]
[null,null,"S",null,0,null,null,null,null,null,null,null,null,null,null,null,0]
[null,null,"TROJP",null,0,null,null,null,null,null,null,null,null,null,null,null,0]
[null,null,"TROJD",null,0,null,null,null,null,null,null,null,null,null,null,null,0]
[null,null,null,null,0,null,null,null,null,null,null,null,null,null,null,null,0]
[null,null,null,null,0,null,null,null,null,null,null,null,null,null,null,null,0]
[null,null,null,null,0,null,null,null,null,null,null,null,null,null,null,null,0]
[null,null,null,null,0,null,null,null,null,null,null,null,null,null,null,null,0]
[1869,"Misc Deferred Debits-Trojan",null,null,0,null,null,null,null,null,null,null,null,null,null,null,0]
[null,null,"S",null,0,null,null,null,null,null,null,null,null,null,null,null,0]
[null,null,"SNPPN",null,0,null,null,null,null,null,null,null,null,null,null,null,0]
[null,null,null,null,{"$f":"+Q2443","v":0},null,null,null,null,null,null,null,null,null,null,null,0]
[null,null,null,null,0,null,null,null,null,null,null,null,null,null,null,null,0]
["TOTAL MISCELLANEOUS RATE BASE",null,null,null,0,null,null,null,null,null,null,null,null,null,null,null,0]
[null,null,null,null,0,null,null,null,null,null,null,null,null,null,null,null,0]
["TOTAL RATE BASE ADDITIONS",null,null,null,45262174.792122699,null,null,null,null,null,null,null,null,null,null,null,45262174.792122699]
[235,"Customer Service Deposits",null,null,0,null,null,null,null,null,null,null,null,null,null,null,0]
[null,null,"S",null,-3236612.0862499997,null,null,null,null,null,null,null,null,null,null,null,-3236612.0862499997]
[null,null,"CN",null,0,null,null,null,null,null,null,null,null,null,null,null,0]
[null,null,null,null,-3236612.0862499997,null,null,null,null,null,null,null,null,null,null,null,-3236612.0862499997]
[null,null,null,null,0,null,null,null,null,null,null,null,null,null,null,null,0]
[2281,"Prov for Property Insurance","SO",null,0,null,null,null,null,null,null,null,null,null,null,null,0]
[2282,"Prov for Injuries & Damages","SO",null,-455823.63489991985,null,null,null,null,null,null,null,null,null,null,null,-455823.63489991985]
[2283,"Prov for Pensions and Benefits","SO",null,-232873.29964495634,null,null,null,null,null,null,null,null,null,null,null,-232873.29964495634]
[2283,"Prov for Pensions and Benefits","S",null,0,null,null,null,null,null,null,null,null,null,null,null,0]
[254,"Reg Liabilities - Insurance Provision","SO",null,0,null,null,null,null,null,null,null,null,null,null,null,0]
[null,null,null,null,-688696.93454487622,null,null,null,null,null,null,null,null,null,null,null,-688696.93454487622]
[null,null,null,null,0,null,null,null,null,null,null,null,null,null,null,null,0]
[22844,"Hydro Relicensing Obligations",null,null,0,null,null,null,null,null,null,null,null,null,null,null,0]
[null,null,"S",null,0,null,null,null,null,null,null,null,null,null,null,null,0]
[null,null,"CAGW",null,-335802.44440276822,null,null,null,null,null,null,null,null,null,null,null,-335802.44440276822]
[null,null,null,null,-335802.44440276822,null,null,null,null,null,null,null,null,null,null,null,-335802.44440276822]
[null,null,null,null,0,null,null,null,null,null,null,null,null,null,null,null,0]
[22842,"Accum Misc Oper Prov-Trojan","TROJD",null,0,null,null,null,null,null,null,null,null,null,null,null,0]
[230,"Asset Retirement Obligations","TROJP",null,384826.58383690432,null,null,null,null,null,null,null,null,null,null,null,384826.58383690432]
[254105,"ARO Regulatory Liability","TROJP",null,0,null,null,null,null,null,null,null,null,null,null,null,0]
[254,"Regulatory Liability","CAEE",null,0,null,null,null,null,null,null,null,null,null,null,null,0]
[254,"Regulatory Liability","SE",null,0,null,null,null,null,null,null,null,null,null,null,null,0]
[254,"Regulatory Liability","S",null,85.71,null,null,null,null,null,null,null,null,null,null,null,85.71]
[null,null,null,null,384912.29383690434,null,null,null,null,null,null,null,null,null,null,null,384912.29383690434]
[null,null,null,null,0,null,null,null,null,null,null,null,null,null,null,null,0]
[252,"Customer Advances for Construction",null,null,0,null,null,null,null,null,null,null,null,null,null,null,0]
[null,null,"S",null,-162155.840417,null,null,null,null,null,null,null,null,null,null,null,-162155.840417]
[null,null,"SG",null,18276.841740963751,null,null,null,null,null,null,null,null,null,null,null,18276.841740963751]
[null,null,"CAGE",null,0,null,null,null,null,null,null,null,null,null,null,null,0]
[null,null,"SO",null,0,null,null,null,null,null,null,null,null,null,null,null,0]
[null,null,"CN",null,0,null,null,null,null,null,null,null,null,null,null,null,0]
[null,null,null,null,-143878.99867603625,null,null,null,null,null,null,null,null,null,null,null,-143878.99867603625]
[null,null,null,null,0,null,null,null,null,null,null,null,null,null,null,null,0]
["25398","SO2 Emmissions",null,null,0,null,null,null,null,null,null,null,null,null,null,null,0]
[null,null,"SE",null,-1721174.3189683419,null,null,null,null,null,null,null,null,null,null,null,-1721174.3189683419]
[null,null,null,null,-1721174.3189683419,null,null,null,null,null,null,null,null,null,null,null,-1721174.3189683419]
[null,null,null,null,0,null,null,null,null,null,null,null,null,null,null,null,0]
[25399,"Other Deferred Credits",null,null,0,null,null,null,null,null,null,null,null,null,null,null,0]
[null,null,"S",null,-361553.18708333297,null,null,null,null,null,null,null,null,null,null,null,-361553.18708333297]
[null,null,"GPS",null,0,null,null,null,null,null,null,null,null,null,null,null,0]
[null,null,"SO",null,0,null,null,null,null,null,null,null,null,null,null,null,0]
[null,null,"CAGW",null,-248.89139111507001,null,null,null,null,null,null,null,null,null,null,null,-248.89139111507001]
[null,null,"CAGE",null,0,null,null,null,null,null,null,null,null,null,null,null,0]
[null,null,"SG",null,-725253.41212523158,null,null,null,null,null,null,null,null,null,null,null,-725253.41212523158]
[null,null,"CAEW",null,-296.79924082787392,null,null,null,null,null,null,null,null,null,null,null,-296.79924082787392]
[null,null,"CAEE",null,0,null,null,null,null,null,null,null,null,null,null,null,0]
[null,null,"SE",null,0,null,null,null,null,null,null,null,null,null,null,null,0]
[null,null,null,null,-1087352.2898405076,null,null,null,null,null,null,null,null,null,null,null,-1087352.2898405076]
[null,null,null,null,0,null,null,null,null,null,null,null,null,null,null,null,0]
[190,"Accumulated Deferred Income Taxes",null,null,0,null,null,null,null,null,null,null,null,null,null,null,0]
[null,null,"S",null,653174.87937758258,null,null,null,null,null,null,null,null,null,null,null,653174.87937758258]
[null,null,"CN",null,-3.4650516230612993E-2,null,null,null,null,null,null,null,null,null,null,null,-3.4650516230612993E-2]
[null,null,"SO",null,-8.1554587855935097,null,null,null,null,null,null,null,null,null,null,null,-8.1554587855935097]
[null,null,"DGP",null,0,null,null,null,null,null,null,null,null,null,null,null,0]
[null,null,"BADDEBT",null,-6.3889920245856047E-2,null,null,null,null,null,null,null,null,null,null,null,-6.3889920245856047E-2]
[null,null,"TROJD",null,9.4293096335604787E-3,null,null,null,null,null,null,null,null,null,null,null,9.4293096335604787E-3]
[null,null,"SG",null,6.367688556201756E-2,null,null,null,null,null,null,null,null,null,null,null,6.367688556201756E-2]
[null,null,"SE",null,2.7286480413749814E-2,null,null,null,null,null,null,null,null,null,null,null,2.7286480413749814E-2]
[null,null,"SNP",null,0,null,null,null,null,null,null,null,null,null,null,null,0]
[null,null,"CAGW",null,{"$f":"+Q2507","v":0.11313245049677789},null,null,null,null,null,null,null,null,null,null,null,0.11313245049677789]
[null,null,"CAGE",null,0,null,null,null,null,null,null,null,null,null,null,null,0]
[null,null,"CAEW",null,8.4930252138292417E-2,null,null,null,null,null,null,null,null,null,null,null,8.4930252138292417E-2]
[null,null,"CAEE",null,0,null,null,null,null,null,null,null,null,null,null,null,0]
[null,null,"JBE",null,-7912315.8657075409,null,null,null,null,null,null,null,null,null,null,null,-7912315.8657075409]
[null,null,"SNPD",null,-2.9634932536282577E-2,null,null,null,null,null,null,null,null,null,null,null,-2.9634932536282577E-2]
[null,null,null,null,0,null,null,null,null,null,null,null,null,null,null,null,0]
[null,null,null,null,-7259148.9715087349,null,null,null,null,null,null,null,null,null,null,null,-7259148.9715087349]
[null,null,null,null,0,null,null,null,null,null,null,null,null,null,null,null,0]
[281,"Accumulated Deferred Income Taxes",null,null,0,null,null,null,null,null,null,null,null,null,null,null,0]
[null,null,"S",null,0,null,null,null,null,null,null,null,null,null,null,null,0]
[null,null,"DGP",null,3.6865619942545891E-2,null,null,null,null,null,null,null,null,null,null,null,3.6865619942545891E-2]
[null,null,"CAEW",null,0,null,null,null,null,null,null,null,null,null,null,null,0]
[null,null,"CAEE",null,0,null,null,null,null,null,null,null,null,null,null,null,0]
[null,null,"SNPT",null,0,null,null,null,null,null,null,null,null,null,null,null,0]
[null,null,null,null,3.6865619942545891E-2,null,null,null,null,null,null,null,null,null,null,null,3.6865619942545891E-2]
[null,null,null,null,0,null,null,null,null,null,null,null,null,null,null,null,0]
[282,"Accumulated Deferred Income Taxes ",null,null,0,null,null,null,null,null,null,null,null,null,null,null,0]
[null,null,"S",null,-217245888,null,null,null,null,null,null,null,null,null,null,null,-217245888]
[null,null,"DITBAL",null,0.18531644344329834,null,null,null,null,null,null,null,null,null,null,null,0.18531644344329834]
[null,null,"DGP",null,1901316.3101523968,null,null,null,null,null,null,null,null,null,null,null,1901316.3101523968]
[null,null,"SO",null,-8.5636598989367485E-2,null,null,null,null,null,null,null,null,null,null,null,-8.5636598989367485E-2]
[null,null,"SNP",null,0,null,null,null,null,null,null,null,null,null,null,null,0]
[null,null,"CAGW",null,-6726369.9788770722,null,null,null,null,null,null,null,null,null,null,null,-6726369.9788770722]
[null,null,"CAGE",null,0,null,null,null,null,null,null,null,null,null,null,null,0]
[null,null,"CAEW",null,0,null,null,null,null,null,null,null,null,null,null,null,0]
[null,null,"CAEE",null,0,null,null,null,null,null,null,null,null,null,null,null,0]
[null,null,"SE",null,0,null,null,null,null,null,null,null,null,null,null,null,0]
[null,null,"JBE",null,-844233.32637380378,null,null,null,null,null,null,null,null,null,null,null,-844233.32637380378]
[null,null,"SG",null,869672.09889535524,null,null,null,null,null,null,null,null,null,null,null,869672.09889535524]
[null,null,null,null,-222045502.79652327,null,null,null,null,null,null,null,null,null,null,null,-222045502.79652327]
[null,null,null,null,0,null,null,null,null,null,null,null,null,null,null,null,0]
[283,"Accumulated Deferred Income Taxes ",null,null,0,null,null,null,null,null,null,null,null,null,null,null,0]
[null,null,"S",null,-2723594.0416666665,null,null,null,null,null,null,null,null,null,null,null,-2723594.0416666665]
[null,null,"SG",null,-2.3459905429263017E-2,null,null,null,null,null,null,null,null,null,null,null,-2.3459905429263017E-2]
[null,null,"SE",null,4.2112661350984126E-2,null,null,null,null,null,null,null,null,null,null,null,4.2112661350984126E-2]
[null,null,"SO",null,-21023.22272115224,null,null,null,null,null,null,null,null,null,null,null,-21023.22272115224]
[null,null,"GPS",null,-2.8545528766699135E-3,null,null,null,null,null,null,null,null,null,null,null,-2.8545528766699135E-3]
[null,null,"SNP",null,-7.8475351619999856E-3,null,null,null,null,null,null,null,null,null,null,null,-7.8475351619999856E-3]
[null,null,"TROJD",null,0,null,null,null,null,null,null,null,null,null,null,null,0]
[null,null,"SNPD",null,0,null,null,null,null,null,null,null,null,null,null,null,0]
[null,null,"CAGW",null,-144661.17286763096,null,null,null,null,null,null,null,null,null,null,null,-144661.17286763096]
[null,null,"CAGE",null,0,null,null,null,null,null,null,null,null,null,null,null,0]
[null,null,"CAEW",null,0,null,null,null,null,null,null,null,null,null,null,null,0]
[null,null,"CAEE",null,0,null,null,null,null,null,null,null,null,null,null,null,0]
[null,null,"JBE",null,0,null,null,null,null,null,null,null,null,null,null,null,0]
[null,null,"SGCT",null,0,null,null,null,null,null,null,null,null,null,null,null,0]
[null,null,null,null,0,null,null,null,null,null,null,null,null,null,null,null,0]
[null,null,null,null,-2889278.4293047814,null,null,null,null,null,null,null,null,null,null,null,-2889278.4293047814]
[null,null,null,null,0,null,null,null,null,null,null,null,null,null,null,null,0]
["TOTAL ACCUMULATED DEF INCOME TAX",null,null,null,-232193930.1604712,null,null,null,null,null,null,null,null,null,null,null,-232193930.1604712]
[255,"Accumulated Investment Tax Credit",null,null,0,null,null,null,null,null,null,null,null,null,null,null,0]
[null,null,"S",null,0,null,null,null,null,null,null,null,null,null,null,null,0]
[null,null,"ITC84",null,-66189.48080834256,null,null,null,null,null,null,null,null,null,null,null,-66189.48080834256]
[null,null,"ITC85",null,-232910.09039999999,null,null,null,null,null,null,null,null,null,null,null,-232910.09039999999]
[null,null,"ITC86",null,-132187.08937999999,null,null,null,null,null,null,null,null,null,null,null,-132187.08937999999]
[null,null,"ITC88",null,-24752.666400000002,null,null,null,null,null,null,null,null,null,null,null,-24752.666400000002]
[null,null,"ITC89",null,-57084.699119999997,null,null,null,null,null,null,null,null,null,null,null,-57084.699119999997]
[null,null,"ITC90",null,-10203.747264,null,null,null,null,null,null,null,null,null,null,null,-10203.747264]
[null,null,"CAGE",null,0,null,null,null,null,null,null,null,null,null,null,null,0]
[null,null,null,null,-523327.77337234258,null,null,null,null,null,null,null,null,null,null,null,-523327.77337234258]
[null,null,null,null,0,null,null,null,null,null,null,null,null,null,null,null,0]
["TOTAL RATE BASE DEDUCTIONS",null,null,null,-239545862.71268922,null,null,null,null,null,null,null,null,null,null,null,-239545862.71268922]
[null,null,null,null,0,null,null,null,null,null,null,null,null,null,null,null,0]
[null,null,null,null,{"$f":"+Q2571","v":0},null,null,null,null,null,null,null,null,null,null,null,0]
[null,null,null,null,0,null,null,null,null,null,null,null,null,null,null,null,0]
["108SP","Steam Prod Plant Accumulated Depr",null,null,0,null,null,null,null,null,null,null,null,null,null,null,0]
[null,null,"S",null,0,null,null,null,null,null,null,null,null,null,null,null,0]
[null,null,"DGP",null,0,null,null,null,null,null,null,null,null,null,null,null,0]
[null,null,"DGU",null,0,null,null,null,null,null,null,null,null,null,null,null,0]
[null,null,"SG",null,0,null,null,null,null,null,null,null,null,null,null,null,0]
[null,null,"CAGW",null,-15082517.54103056,null,null,null,null,null,null,null,null,null,null,null,-15082517.54103056]
[null,null,"CAGE",null,0,null,null,null,null,null,null,null,null,null,null,null,0]
[null,null,"JBG",null,-112606002.53872354,null,null,null,null,null,null,null,null,null,null,null,-112606002.53872354]
[null,null,"CAGE",null,0,null,null,null,null,null,null,null,null,null,null,null,0]
[null,null,null,null,-127688520.0797541,null,null,null,null,null,null,null,null,null,null,null,-127688520.0797541]
[null,null,null,null,0,null,null,null,null,null,null,null,null,null,null,null,0]
["108NP","Nuclear Prod Plant Accumulated Depr",null,null,0,null,null,null,null,null,null,null,null,null,null,null,0]
[null,null,"DGP",null,0,null,null,null,null,null,null,null,null,null,null,null,0]
[null,null,"DGU",null,0,null,null,null,null,null,null,null,null,null,null,null,0]
[null,null,"SG",null,0,null,null,null,null,null,null,null,null,null,null,null,0]
[null,null,null,null,0,null,null,null,null,null,null,null,null,null,null,null,0]
[null,null,null,null,0,null,null,null,null,null,null,null,null,null,null,null,0]
[null,null,null,null,0,null,null,null,null,null,null,null,null,null,null,null,0]
["108HP","Hydraulic Prod Plant Accum Depr",null,null,0,null,null,null,null,null,null,null,null,null,null,null,0]
[null,null,"S",null,0,null,null,null,null,null,null,null,null,null,null,null,0]
[null,null,"DGP",null,0,null,null,null,null,null,null,null,null,null,null,null,0]
[null,null,"DGU",null,0,null,null,null,null,null,null,null,null,null,null,null,0]
[null,null,"CAGW",null,-47582292.500684649,null,null,null,null,null,null,null,null,null,null,null,-47582292.500684649]
[null,null,"CAGE",null,0,null,null,null,null,null,null,null,null,null,null,null,0]
[null,null,"CAGW",null,0,null,null,null,null,null,null,null,null,null,null,null,0]
[null,null,"CAGE",null,0,null,null,null,null,null,null,null,null,null,null,null,0]
[null,null,null,null,-47582292.500684649,null,null,null,null,null,null,null,null,null,null,null,-47582292.500684649]
[null,null,null,null,0,null,null,null,null,null,null,null,null,null,null,null,0]
["108OP","Other Production Plant - Accum Depr",null,null,0,null,null,null,null,null,null,null,null,null,null,null,0]
[null,null,"S",null,0,null,null,null,null,null,null,null,null,null,null,null,0]
[null,null,"DGU",null,0,null,null,null,null,null,null,null,null,null,null,null,0]
[null,null,"DGP",null,0,null,null,null,null,null,null,null,null,null,null,null,0]
[null,null,"SG",null,0,null,null,null,null,null,null,null,null,null,null,null,0]
[null,null,"CAGW",null,-59017038.952832878,null,null,null,null,null,null,null,null,null,null,null,-59017038.952832878]
[null,null,"CAGE",null,0,null,null,null,null,null,null,null,null,null,null,null,0]
[null,null,"CAGE",null,0,null,null,null,null,null,null,null,null,null,null,null,0]
[null,null,null,null,-59017038.952832878,null,null,null,null,null,null,null,null,null,null,null,-59017038.952832878]
[null,null,null,null,0,null,null,null,null,null,null,null,null,null,null,null,0]
["108EP","Experimental Plant - Accum Depr",null,null,0,null,null,null,null,null,null,null,null,null,null,null,0]
[null,null,"DGP",null,0,null,null,null,null,null,null,null,null,null,null,null,0]
[null,null,"SG",null,0,null,null,null,null,null,null,null,null,null,null,null,0]
[null,null,null,null,0,null,null,null,null,null,null,null,null,null,null,null,0]
[null,null,null,null,0,null,null,null,null,null,null,null,null,null,null,null,0]
["TOTAL PRODUCTION PLANT DEPRECIATION",null,null,null,-234287851.53327161,null,null,null,null,null,null,null,null,null,null,null,-234287851.53327161]
[null,null,null,null,0,null,null,null,null,null,null,null,null,null,null,null,0]
["Summary of Prod Plant Depreciation by Factor",null,null,null,0,null,null,null,null,null,null,null,null,null,null,null,0]
[null,null,"S",null,0,null,null,null,null,null,null,null,null,null,null,null,0]
[null,null,"DGP",null,0,null,null,null,null,null,null,null,null,null,null,null,0]
[null,null,"DGU",null,0,null,null,null,null,null,null,null,null,null,null,null,0]
[null,null,"SG",null,0,null,null,null,null,null,null,null,null,null,null,null,0]
[null,null,"CAGW",null,-121681848.99454808,null,null,null,null,null,null,null,null,null,null,null,-121681848.99454808]
[null,null,"CAGE",null,0,null,null,null,null,null,null,null,null,null,null,null,0]
[null,null,"SSGCH",null,-112606002.53872354,null,null,null,null,null,null,null,null,null,null,null,-112606002.53872354]
[null,null,"SSGCT",null,0,null,null,null,null,null,null,null,null,null,null,null,0]
["Total of Prod Plant Depreciation by Factor",null,null,null,-234287851.53327161,null,null,null,null,null,null,null,null,null,null,null,-234287851.53327161]
[null,null,null,null,0,null,null,null,null,null,null,null,null,null,null,null,0]
[null,null,null,null,0,null,null,null,null,null,null,null,null,null,null,null,0]
["108TP","Transmission Plant Accumulated Depr",null,null,0,null,null,null,null,null,null,null,null,null,null,null,0]
[null,null,"DGP",null,0,null,null,null,null,null,null,null,null,null,null,null,0]
[null,null,"DGU",null,0,null,null,null,null,null,null,null,null,null,null,null,0]
[null,null,"CAGW",null,-98810810.689828843,null,null,null,null,null,null,null,null,null,null,null,-98810810.689828843]
[null,null,"CAGE",null,0,null,null,null,null,null,null,null,null,null,null,null,0]
[null,null,"JBG",null,{"$f":"+Q2635","v":-9785440.4776072148},null,null,null,null,null,null,null,null,null,null,null,-9785440.4776072148]
[null,null,"SG",null,-106434.5562179252,null,null,null,null,null,null,null,null,null,null,null,-106434.5562179252]
["TOTAL TRANS PLANT ACCUM DEPR",null,null,null,-108702685.72365399,null,null,null,null,null,null,null,null,null,null,null,-108702685.72365399]
[108360,"Land and Land Rights",null,null,0,null,null,null,null,null,null,null,null,null,null,null,0]
[null,null,"S",null,-136215.35999999999,null,null,null,null,null,null,null,null,null,null,null,-136215.35999999999]
[null,null,null,null,-136215.35999999999,null,null,null,null,null,null,null,null,null,null,null,-136215.35999999999]
[null,null,null,null,0,null,null,null,null,null,null,null,null,null,null,null,0]
[108361,"Structures and Improvements",null,null,0,null,null,null,null,null,null,null,null,null,null,null,0]
[null,null,"S",null,-639538.59,null,null,null,null,null,null,null,null,null,null,null,-639538.59]
[null,null,null,null,-639538.59,null,null,null,null,null,null,null,null,null,null,null,-639538.59]
[null,null,null,null,0,null,null,null,null,null,null,null,null,null,null,null,0]
[108362,"Station Equipment",null,null,0,null,null,null,null,null,null,null,null,null,null,null,0]
[null,null,"S",null,-15590131.540000001,null,null,null,null,null,null,null,null,null,null,null,-15590131.540000001]
[null,null,null,null,-15590131.540000001,null,null,null,null,null,null,null,null,null,null,null,-15590131.540000001]
[null,null,null,null,0,null,null,null,null,null,null,null,null,null,null,null,0]
["108363","Storage Battery Equipment",null,null,0,null,null,null,null,null,null,null,null,null,null,null,0]
[null,null,"S",null,0,null,null,null,null,null,null,null,null,null,null,null,0]
[null,null,null,null,0,null,null,null,null,null,null,null,null,null,null,null,0]
[null,null,null,null,0,null,null,null,null,null,null,null,null,null,null,null,0]
[108364,"Poles, Towers & Fixtures",null,null,0,null,null,null,null,null,null,null,null,null,null,null,0]
[null,null,"S",null,-49435316.059105419,null,null,null,null,null,null,null,null,null,null,null,-49435316.059105419]
[null,null,null,null,-49435316.059105419,null,null,null,null,null,null,null,null,null,null,null,-49435316.059105419]
[null,null,null,null,0,null,null,null,null,null,null,null,null,null,null,null,0]
[108365,"Overhead Conductors",null,null,0,null,null,null,null,null,null,null,null,null,null,null,0]
[null,null,"S",null,-29234035.600000001,null,null,null,null,null,null,null,null,null,null,null,-29234035.600000001]
[null,null,null,null,-29234035.600000001,null,null,null,null,null,null,null,null,null,null,null,-29234035.600000001]
[null,null,null,null,0,null,null,null,null,null,null,null,null,null,null,null,0]
[108366,"Underground Conduit",null,null,0,null,null,null,null,null,null,null,null,null,null,null,0]
[null,null,"S",null,-10945781.390000001,null,null,null,null,null,null,null,null,null,null,null,-10945781.390000001]
[null,null,null,null,-10945781.390000001,null,null,null,null,null,null,null,null,null,null,null,-10945781.390000001]
[null,null,null,null,0,null,null,null,null,null,null,null,null,null,null,null,0]
[108367,"Underground Conductors ",null,null,0,null,null,null,null,null,null,null,null,null,null,null,0]
[null,null,"S",null,-9516059.6799999997,null,null,null,null,null,null,null,null,null,null,null,-9516059.6799999997]
[null,null,null,null,-9516059.6799999997,null,null,null,null,null,null,null,null,null,null,null,-9516059.6799999997]
[null,null,null,null,0,null,null,null,null,null,null,null,null,null,null,null,0]
[108368,"Line Transformers",null,null,0,null,null,null,null,null,null,null,null,null,null,null,0]
[null,null,"S",null,-44447504.850000001,null,null,null,null,null,null,null,null,null,null,null,-44447504.850000001]
[null,null,null,null,-44447504.850000001,null,null,null,null,null,null,null,null,null,null,null,-44447504.850000001]
[null,null,null,null,0,null,null,null,null,null,null,null,null,null,null,null,0]
[108369,"Services",null,null,0,null,null,null,null,null,null,null,null,null,null,null,0]
[null,null,"S",null,-18439235.329999998,null,null,null,null,null,null,null,null,null,null,null,-18439235.329999998]
[null,null,null,null,-18439235.329999998,null,null,null,null,null,null,null,null,null,null,null,-18439235.329999998]
[null,null,null,null,0,null,null,null,null,null,null,null,null,null,null,null,0]
[108370,"Meters",null,null,0,null,null,null,null,null,null,null,null,null,null,null,0]
[null,null,"S",null,-1929851.31,null,null,null,null,null,null,null,null,null,null,null,-1929851.31]
[null,null,null,null,-1929851.31,null,null,null,null,null,null,null,null,null,null,null,-1929851.31]
[null,null,null,null,0,null,null,null,null,null,null,null,null,null,null,null,0]
[null,null,null,null,0,null,null,null,null,null,null,null,null,null,null,null,0]
[null,null,null,null,0,null,null,null,null,null,null,null,null,null,null,null,0]
[108371,"Installations on Customers' Premises",null,null,0,null,null,null,null,null,null,null,null,null,null,null,0]
[null,null,"S",null,-281485.94,null,null,null,null,null,null,null,null,null,null,null,-281485.94]
[null,null,null,null,-281485.94,null,null,null,null,null,null,null,null,null,null,null,-281485.94]
[null,null,null,null,0,null,null,null,null,null,null,null,null,null,null,null,0]
[108372,"Leased Property",null,null,0,null,null,null,null,null,null,null,null,null,null,null,0]
[null,null,"S",null,0,null,null,null,null,null,null,null,null,null,null,null,0]
[null,null,null,null,0,null,null,null,null,null,null,null,null,null,null,null,0]
[null,null,null,null,0,null,null,null,null,null,null,null,null,null,null,null,0]
[108373,"Street Lights",null,null,0,null,null,null,null,null,null,null,null,null,null,null,0]
[null,null,"S",null,-2201466.2200000002,null,null,null,null,null,null,null,null,null,null,null,-2201466.2200000002]
[null,null,null,null,-2201466.2200000002,null,null,null,null,null,null,null,null,null,null,null,-2201466.2200000002]
[null,null,null,null,0,null,null,null,null,null,null,null,null,null,null,null,0]
["108D00","Unclassified Dist Plant - Acct 300",null,null,0,null,null,null,null,null,null,null,null,null,null,null,0]
[null,null,"S",null,0,null,null,null,null,null,null,null,null,null,null,null,0]
[null,null,null,null,0,null,null,null,null,null,null,null,null,null,null,null,0]
[null,null,null,null,{"$f":"+Q2699","v":0},null,null,null,null,null,null,null,null,null,null,null,0]
["108DS","Unclassified Dist Sub Plant - Acct 300",null,null,0,null,null,null,null,null,null,null,null,null,null,null,0]
[null,null,"S",null,0,null,null,null,null,null,null,null,null,null,null,null,0]
[null,null,null,null,0,null,null,null,null,null,null,null,null,null,null,null,0]
[null,null,null,null,0,null,null,null,null,null,null,null,null,null,null,null,0]
["108DP","Unclassified Dist Sub Plant - Acct 300",null,null,0,null,null,null,null,null,null,null,null,null,null,null,0]
[null,null,"S",null,100415,null,null,null,null,null,null,null,null,null,null,null,100415]
[null,null,null,null,100415,null,null,null,null,null,null,null,null,null,null,null,100415]
[null,null,null,null,0,null,null,null,null,null,null,null,null,null,null,null,0]
[null,null,null,null,0,null,null,null,null,null,null,null,null,null,null,null,0]
["TOTAL DISTRIBUTION PLANT DEPR",null,null,null,-182696206.86910543,null,null,null,null,null,null,null,null,null,null,null,-182696206.86910543]
[null,null,null,null,0,null,null,null,null,null,null,null,null,null,null,null,0]
["Summary of Distribution Plant Depr by Factor",null,null,null,0,null,null,null,null,null,null,null,null,null,null,null,0]
[null,null,"S",null,-182696206.86910543,null,null,null,null,null,null,null,null,null,null,null,-182696206.86910543]
[null,null,null,null,0,null,null,null,null,null,null,null,null,null,null,null,0]
["Total Distribution Depreciation by Factor",null,null,null,-182696206.86910543,null,null,null,null,null,null,null,null,null,null,null,-182696206.86910543]
["108GP","General Plant Accumulated Depr",null,null,0,null,null,null,null,null,null,null,null,null,null,null,0]
[null,null,"S",null,-18470786.402896211,null,null,null,null,null,null,null,null,null,null,null,-18470786.402896211]
[null,null,"DGP",null,0,null,null,null,null,null,null,null,null,null,null,null,0]
[null,null,"DGU",null,0,null,null,null,null,null,null,null,null,null,null,null,0]
[null,null,"SG",null,0.80059675343104986,null,null,null,null,null,null,null,null,null,null,null,0.80059675343104986]
[null,null,"CN",null,-608529.94482340431,null,null,null,null,null,null,null,null,null,null,null,-608529.94482340431]
[null,null,"SO",null,-5399790.9718942465,null,null,null,null,null,null,null,null,null,null,null,-5399790.9718942465]
[null,null,"SE",null,0,null,null,null,null,null,null,null,null,null,null,null,0]
[null,null,"CAGW",null,-3559857.9177902527,null,null,null,null,null,null,null,null,null,null,null,-3559857.9177902527]
[null,null,"CAGE",null,0,null,null,null,null,null,null,null,null,null,null,null,0]
[null,null,"JBG",null,-1087426.0533288841,null,null,null,null,null,null,null,null,null,null,null,-1087426.0533288841]
[null,null,"CAEW",null,0,null,null,null,null,null,null,null,null,null,null,null,0]
[null,null,"CAEE",null,0,null,null,null,null,null,null,null,null,null,null,null,0]
[null,null,"CAGE",null,0,null,null,null,null,null,null,null,null,null,null,null,0]
[null,null,"CAGE",null,0,null,null,null,null,null,null,null,null,null,null,null,0]
[null,null,null,null,-29126390.49013624,null,null,null,null,null,null,null,null,null,null,null,-29126390.49013624]
[null,null,null,null,0,null,null,null,null,null,null,null,null,null,null,null,0]
[null,null,null,null,0,null,null,null,null,null,null,null,null,null,null,null,0]
["108MP","Mining Plant Accumulated Depr.",null,null,0,null,null,null,null,null,null,null,null,null,null,null,0]
[null,null,"S",null,0,null,null,null,null,null,null,null,null,null,null,null,0]
[null,null,"CAEW",null,0,null,null,null,null,null,null,null,null,null,null,null,0]
[null,null,"CAEE",null,0,null,null,null,null,null,null,null,null,null,null,null,0]
[null,null,"SE",null,-34513081.458540469,null,null,null,null,null,null,null,null,null,null,null,-34513081.458540469]
[null,null,null,null,-34513081.458540469,null,null,null,null,null,null,null,null,null,null,null,-34513081.458540469]
["108MP","Less Centralia Situs Depreciation",null,null,0,null,null,null,null,null,null,null,null,null,null,null,0]
[null,null,"S",null,0,null,null,null,null,null,null,null,null,null,null,null,0]
[null,null,null,null,-34513081.458540469,null,null,null,null,null,null,null,null,null,null,null,-34513081.458540469]
[null,null,null,null,0,null,null,null,null,null,null,null,null,null,null,null,0]
[1081390,"Accum Depr - Capital Lease",null,null,0,null,null,null,null,null,null,null,null,null,null,null,0]
[null,null,"SO",null,0,null,null,null,null,null,null,null,null,null,null,null,0]
[null,null,null,null,0,null,null,null,null,null,null,null,null,null,null,null,0]
[null,null,null,null,0,null,null,null,null,null,null,null,null,null,null,null,0]
[null,"Remove Capital Leases",null,null,0,null,null,null,null,null,null,null,null,null,null,null,0]
[null,null,null,null,0,null,null,null,null,null,null,null,null,null,null,null,0]
[null,null,null,null,0,null,null,null,null,null,null,null,null,null,null,null,0]
[1081399,"Accum Depr - Capital Lease",null,null,0,null,null,null,null,null,null,null,null,null,null,null,0]
[null,null,"S",null,0,null,null,null,null,null,null,null,null,null,null,null,0]
[null,null,"SE",null,0,null,null,null,null,null,null,null,null,null,null,null,0]
[null,null,null,null,0,null,null,null,null,null,null,null,null,null,null,null,0]
[null,null,null,null,0,null,null,null,null,null,null,null,null,null,null,null,0]
[null,"Remove Capital Leases",null,null,0,null,null,null,null,null,null,null,null,null,null,null,0]
[null,null,null,null,0,null,null,null,null,null,null,null,null,null,null,null,0]
[null,null,null,null,0,null,null,null,null,null,null,null,null,null,null,null,0]
[null,null,null,null,0,null,null,null,null,null,null,null,null,null,null,null,0]
["TOTAL GENERAL PLANT ACCUM DEPR",null,null,null,-63639471.948676705,null,null,null,null,null,null,null,null,null,null,null,-63639471.948676705]
[null,null,null,null,0,null,null,null,null,null,null,null,null,null,null,null,0]
[null,null,null,null,0,null,null,null,null,null,null,null,null,null,null,null,0]
[null,null,null,null,0,null,null,null,null,null,null,null,null,null,null,null,0]
["Summary of General Depreciation by Factor",null,null,null,{"$f":"+Q2763","v":0},null,null,null,null,null,null,null,null,null,null,null,0]
[null,null,"S",null,-18470786.402896211,null,null,null,null,null,null,null,null,null,null,null,-18470786.402896211]
[null,null,"DGP",null,0,null,null,null,null,null,null,null,null,null,null,null,0]
[null,null,"DGU",null,0,null,null,null,null,null,null,null,null,null,null,null,0]
[null,null,"SE",null,0,null,null,null,null,null,null,null,null,null,null,null,0]
[null,null,"SO",null,-5399790.9718942465,null,null,null,null,null,null,null,null,null,null,null,-5399790.9718942465]
[null,null,"CN",null,-608529.94482340431,null,null,null,null,null,null,null,null,null,null,null,-608529.94482340431]
[null,null,"SG",null,0.80059675343104986,null,null,null,null,null,null,null,null,null,null,null,0.80059675343104986]
[null,null,"DEU",null,0,null,null,null,null,null,null,null,null,null,null,null,0]
[null,null,"CAGW",null,-3559857.9177902527,null,null,null,null,null,null,null,null,null,null,null,-3559857.9177902527]
[null,null,"CAGE",null,0,null,null,null,null,null,null,null,null,null,null,null,0]
[null,null,"CAEW",null,0,null,null,null,null,null,null,null,null,null,null,null,0]
[null,null,"CAEE",null,0,null,null,null,null,null,null,null,null,null,null,null,0]
[null,null,"SSGCT",null,0,null,null,null,null,null,null,null,null,null,null,null,0]
[null,null,"SSGCH",null,-1087426.0533288841,null,null,null,null,null,null,null,null,null,null,null,-1087426.0533288841]
[null,null,"Remove Capital Leases",null,0,null,null,null,null,null,null,null,null,null,null,null,0]
["Total General Depreciation by Factor",null,null,null,-29126390.49013624,null,null,null,null,null,null,null,null,null,null,null,-29126390.49013624]
[null,null,null,null,0,null,null,null,null,null,null,null,null,null,null,null,0]
[null,null,null,null,0,null,null,null,null,null,null,null,null,null,null,null,0]
["TOTAL ACCUM DEPR - PLANT IN SERVICE",null,null,null,-589326216.07470775,null,null,null,null,null,null,null,null,null,null,null,-589326216.07470775]
["111SP","Accum Prov for Amort-Steam",null,null,0,null,null,null,null,null,null,null,null,null,null,null,0]
[null,null,"CAGW",null,0,null,null,null,null,null,null,null,null,null,null,null,0]
[null,null,"CAGW",null,0,null,null,null,null,null,null,null,null,null,null,null,0]
[null,null,"CAGE",null,0,null,null,null,null,null,null,null,null,null,null,null,0]
[null,null,"SG",null,0,null,null,null,null,null,null,null,null,null,null,null,0]
[null,null,null,null,0,null,null,null,null,null,null,null,null,null,null,null,0]
[null,null,null,null,0,null,null,null,null,null,null,null,null,null,null,null,0]
[null,null,null,null,0,null,null,null,null,null,null,null,null,null,null,null,0]
["111GP","Accum Prov for Amort-General",null,null,0,null,null,null,null,null,null,null,null,null,null,null,0]
[null,null,"S",null,-1704011.2,null,null,null,null,null,null,null,null,null,null,null,-1704011.2]
[null,null,"CN",null,-217230.54372016733,null,null,null,null,null,null,null,null,null,null,null,-217230.54372016733]
[null,null,"SG",null,{"$f":"+Q2794","v":0},null,null,null,null,null,null,null,null,null,null,null,0]
[null,null,"SO",null,{"$f":"+Q2795","v":-828564.95723808615},null,null,null,null,null,null,null,null,null,null,null,-828564.95723808615]
[null,null,"CAGW",null,0,null,null,null,null,null,null,null,null,null,null,null,0]
[null,null,"CAGE",null,0,null,null,null,null,null,null,null,null,null,null,null,0]
[null,null,"CAEW",null,0,null,null,null,null,null,null,null,null,null,null,null,0]
[null,null,"CAEE",null,0,null,null,null,null,null,null,null,null,null,null,null,0]
[null,null,"SE",null,0,null,null,null,null,null,null,null,null,null,null,null,0]
[null,null,null,null,-2749806.7009582534,null,null,null,null,null,null,null,null,null,null,null,-2749806.7009582534]
[null,null,null,null,0,null,null,null,null,null,null,null,null,null,null,null,0]
[null,null,null,null,0,null,null,null,null,null,null,null,null,null,null,null,0]
["111HP","Accum Prov for Amort-Hydro",null,null,0,null,null,null,null,null,null,null,null,null,null,null,0]
[null,null,"DGP",null,0,null,null,null,null,null,null,null,null,null,null,null,0]
[null,null,"DGU",null,0,null,null,null,null,null,null,null,null,null,null,null,0]
[null,null,"SG",null,0,null,null,null,null,null,null,null,null,null,null,null,0]
[null,null,"CAGW",null,-107221.73928561615,null,null,null,null,null,null,null,null,null,null,null,-107221.73928561615]
[null,null,"CAGE",null,0,null,null,null,null,null,null,null,null,null,null,null,0]
[null,null,"CAGE",null,0,null,null,null,null,null,null,null,null,null,null,null,0]
[null,null,null,null,-107221.73928561615,null,null,null,null,null,null,null,null,null,null,null,-107221.73928561615]
[null,null,null,null,0,null,null,null,null,null,null,null,null,null,null,null,0]
[null,null,null,null,0,null,null,null,null,null,null,null,null,null,null,null,0]
["111IP","Accum Prov for Amort-Intangible Plant",null,null,0,null,null,null,null,null,null,null,null,null,null,null,0]
[null,null,"S",null,0,null,null,null,null,null,null,null,null,null,null,null,0]
[null,null,"DGP",null,0,null,null,null,null,null,null,null,null,null,null,null,0]
[null,null,"DGU",null,0,null,null,null,null,null,null,null,null,null,null,null,0]
[null,null,"CAEW",null,0,null,null,null,null,null,null,null,null,null,null,null,0]
[null,null,"CAEE",null,0,null,null,null,null,null,null,null,null,null,null,null,0]
[null,null,"SE",null,0,null,null,null,null,null,null,null,null,null,null,null,0]
[null,null,"SG",null,-1319117.0196644927,null,null,null,null,null,null,null,null,null,null,null,-1319117.0196644927]
[null,null,"CAGW",null,0,null,null,null,null,null,null,null,null,null,null,null,0]
[null,null,"CAGE",null,0,null,null,null,null,null,null,null,null,null,null,null,0]
[null,null,"CN",null,-7198289.7239659186,null,null,null,null,null,null,null,null,null,null,null,-7198289.7239659186]
[null,null,"CAGE",null,0,null,null,null,null,null,null,null,null,null,null,null,0]
[null,null,"CAGE",null,0,null,null,null,null,null,null,null,null,null,null,null,0]
[null,null,"CAGW",null,-12843059.09052822,null,null,null,null,null,null,null,null,null,null,null,-12843059.09052822]
[null,null,"CAGE",null,0,null,null,null,null,null,null,null,null,null,null,null,0]
[null,null,"JBG",null,-3965.4081728096226,null,null,null,null,null,null,null,null,null,null,null,-3965.4081728096226]
[null,null,"SO",null,-19244380.976606924,null,null,null,null,null,null,null,null,null,null,null,-19244380.976606924]
[null,null,null,null,-40608812.218938366,null,null,null,null,null,null,null,null,null,null,null,-40608812.218938366]
["111IP","Less Non-Utility Plant",null,null,0,null,null,null,null,null,null,null,null,null,null,null,0]
[null,null,"OTH",null,0,null,null,null,null,null,null,null,null,null,null,null,0]
[null,null,null,null,-40608812.218938366,null,null,null,null,null,null,null,null,null,null,null,-40608812.218938366]
[null,null,null,null,0,null,null,null,null,null,null,null,null,null,null,null,0]
[null,null,null,null,0,null,null,null,null,null,null,null,null,null,null,null,0]
[111390,"Accum Amtr - Capital Lease",null,null,0,null,null,null,null,null,null,null,null,null,null,null,0]
[null,null,"S",null,0,null,null,null,null,null,null,null,null,null,null,null,0]
[null,null,"CAGE",null,51481.529877819718,null,null,null,null,null,null,null,null,null,null,null,51481.529877819718]
[null,null,"CAGW",null,51481.529877819718,null,null,null,null,null,null,null,null,null,null,null,51481.529877819718]
[null,null,null,null,102963.05975563944,null,null,null,null,null,null,null,null,null,null,null,102963.05975563944]
[null,null,null,null,0,null,null,null,null,null,null,null,null,null,null,null,0]
[null,"Remove Capital Lease Amtr",null,null,-102963.05975563944,null,null,null,null,null,null,null,null,null,null,null,-102963.05975563944]
[null,null,null,null,0,null,null,null,null,null,null,null,null,null,null,null,0]
["TOTAL ACCUM PROV FOR AMORTIZATION",null,null,null,-43465840.659182236,null,null,null,null,null,null,null,null,null,null,null,-43465840.659182236]

{"sheet":"Func Study","index":19,"n_rows":2521,"n_cols":33,"rows_kept":2521,"cut":false,"hidden":false,"merged":[]}
["Functional Separation"]
[{"$f":"Inputs!$C$3","v":"PacifiCorp"},null,null,null,null,null,null,null,null,null,null,null,null,null,null,null,null,null,null,null,null,null,null,null,null,null,"Function","Generation","Transmission","Distribution"]
["Cost Of Service By Rate Schedule",null,null,null,null,null,null,null,null,null,null,null,null,null,null,null,null,null,null,null,null,null,null,null,null,null,"Check","Check","Check","Check"]
[{"$f":"Inputs!$C$4","v":"State of Washington"}]
[{"$f":"+Method&\" - \"&IF(PeakMethod=1,\"(Coincident Peaks)\",IF(PeakMethod=2,\"(200 Top Hours)\",\"(100 Summer, 100 Winter Hours)\"))&\" - \"&TEXT(Demand,\"0%\")&\"D\"&\" / \"&TEXT(Engy,\"0%\")&\"E\"","v":"WCA Method - (100 Summer, 100 Winter Hours) - 38%D / 62%E"},null,null,null,null,null,null,null,null,null,null,null,null,null,null,null,null,null,null,null,null,null,null,null,null,null,{"$f":"MAX(AA10:AA82,ABS(MIN(AA10:AA82)))","v":0},{"$f":"MAX(AB10:AB82,ABS(MIN(AB10:AB82)))","v":0},{"$f":"MAX(AC10:AC82,ABS(MIN(AC10:AC82)))","v":0},{"$f":"MAX(AD10:AD82,ABS(MIN(AD10:AD82)))","v":0}]
[{"$f":"Inputs!$C$5","v":"12 Months Ending June 2012"}]
[]
[null,null,null,null,null,"Error","Generation","Transmission","Distribution","Retail Op","MISC",null,null,"Generation",null,null,"Transmission",null,null,"Distribution",null,null,null,null,null,null,"Function","Generation","Transmission","Distribution"]
[null,null,null,"COS STUDY","JAM RESULTS","check","TOTAL","TOTAL","TOTAL","TOTAL","TOTAL",null,null,"DEMAND","ENERGY",null,"DEMAND","ENERGY",null,"SUBS","P & C","XFMR","METER","SERVICE",null,null,"Check","Check","Check","Check"]
["Operating Revenues",null,null,{"$f":"+'G+T+D+R+M'!H14","v":327860485.11736882},{"$f":"+H336","v":327860487.17130327},{"$f":"ROUND(D10-E10,0)","v":-2},{"$f":"+J336","v":21294183.809268136},{"$f":"+K336","v":3471169.5403792737},{"$f":"+L336","v":1159288.3225307432},{"$f":"+M336","v":841793.58591433289},{"$f":"+N336","v":-2969158.4367891983},null,null,{"$f":"+Q336","v":8091789.8475218918},{"$f":"+R336","v":13202393.961746242},null,{"$f":"+T336","v":1319044.425344124},{"$f":"+U336","v":2152125.1150351497},null,{"$f":"+W336","v":136192.70223680156},{"$f":"+X336","v":557914.85106437944},{"$f":"+Y336","v":282933.71446439083},{"$f":"+Z336","v":32771.570493493942},{"$f":"+AA336","v":149475.48427167771},null,null,null,{"$f":"G10-N10-O10","v":0},{"$f":"H10-Q10-R10","v":0},{"$f":"ROUND(I10-T10-U10-V10-W10-X10,0)","v":0}]
[]
["Operating Expenses"]
["Operation & Maintenance Expenses",null,null,{"$f":"+'G+T+D+R+M'!H17","v":217526010.15460241},{"$f":"H1050","v":217526010.15460241},{"$f":"ROUND(D13-E13,0)","v":0},{"$f":"J1050","v":160399072.80989745},{"$f":"K1050","v":32671390.564299166},{"$f":"L1050","v":14391948.89266945},{"$f":"M1050","v":8378177.35647838},{"$f":"N1050","v":1685420.5312579749},null,null,{"$f":"Q1050","v":60951647.667761035},{"$f":"R1050","v":99447425.142136425},null,{"$f":"T1050","v":12415128.414433682},{"$f":"U1050","v":20256262.149865486},null,{"$f":"W1050","v":2499193.0485723997},{"$f":"X1050","v":9273227.5783924907},{"$f":"Y1050","v":942194.69195301516},{"$f":"Z1050","v":1209694.9611877},{"$f":"AA1050","v":467638.61256384803},null,null,{"$f":"ROUND(SUM(-E13,G13:K13),0)","v":0},{"$f":"ROUND(G13-N13-O13,0)","v":0},{"$f":"ROUND(H13-Q13-R13,0)","v":0},{"$f":"ROUND(I13-T13-U13-V13-W13-X13,0)","v":0}]
["Depreciation Expense",null,null,{"$f":"+'G+T+D+R+M'!H18","v":41310105.544159748},{"$f":"H1132","v":41310105.544159755},0,{"$f":"J1132","v":23157034.246414285},{"$f":"K1132","v":5516357.6512353439},{"$f":"L1132","v":12516369.432388294},{"$f":"M1132","v":120344.21412182611},{"$f":"N1132","v":0},null,null,{"$f":"Q1132","v":8799673.0136374291},{"$f":"R1132","v":14357361.232776858},null,{"$f":"T1132","v":2096215.9074694307},{"$f":"U1132","v":3420141.743765913},null,{"$f":"W1132","v":1177339.8192863371},{"$f":"X1132","v":6315400.8115853146},{"$f":"Y1132","v":3125717.8120574378},{"$f":"Z1132","v":477826.39784696285},{"$f":"AA1132","v":1420084.5916122422},null,null,0,0,0,0]
["Amortization Expense",null,null,{"$f":"+'G+T+D+R+M'!H19","v":5547662.1601642752},{"$f":"H1204","v":5547662.1601642752},0,{"$f":"J1204","v":3860505.5878965864},{"$f":"K1204","v":808907.75049483229},{"$f":"L1204","v":442417.08881035889},{"$f":"M1204","v":435831.73296249891},{"$f":"N1204","v":0},null,null,{"$f":"Q1204","v":1466992.1234007026},{"$f":"R1204","v":2393513.4644958838},null,{"$f":"T1204","v":307384.9451880363},{"$f":"U1204","v":501522.80530679598},null,{"$f":"W1204","v":51974.972636044913},{"$f":"X1204","v":212916.02737197583},{"$f":"Y1204","v":107975.47758126201},{"$f":"Z1204","v":12506.554695404995},{"$f":"AA1204","v":57044.056525671185},null,null,0,0,0,0]
["Taxes Other Than Income",null,null,{"$f":"+'G+T+D+R+M'!H20","v":19982776.421377905},{"$f":"H1221","v":19982776.421377905},0,{"$f":"J1221","v":10113138.541778341},{"$f":"K1221","v":4248894.6593379853},{"$f":"L1221","v":5489522.200680973},{"$f":"M1221","v":131221.01958061196},{"$f":"N1221","v":0},null,null,{"$f":"Q1221","v":3842992.6458757706},{"$f":"R1221","v":6270145.8959025722},null,{"$f":"T1221","v":1614579.9705484344},{"$f":"U1221","v":2634314.6887895511},null,{"$f":"W1221","v":644906.74836399767},{"$f":"X1221","v":2641867.343510923},{"$f":"Y1221","v":1339762.4013694965},{"$f":"Z1221","v":155181.64056245438},{"$f":"AA1221","v":707804.06687410071},null,null,0,0,0,0]
["Income Taxes - Federal",null,null,{"$f":"+'G+T+D+R+M'!H21","v":-10210352.282270128},{"$f":"H1395","v":-10210352.282270119},0,{"$f":"J1395","v":-11934722.088213939},{"$f":"K1395","v":-368427.97097115335},{"$f":"L1395","v":1813833.1650488966},{"$f":"M1395","v":181641.41151786022},{"$f":"N1395","v":97323.200348206738},null,null,{"$f":"Q1395","v":-4535194.3935212968},{"$f":"R1395","v":-7399527.6946926424},null,{"$f":"T1395","v":-140002.62896903828},{"$f":"U1395","v":-228425.34200211507},null,{"$f":"W1395","v":269774.28668410389},{"$f":"X1395","v":755073.58523569629},{"$f":"Y1395","v":433291.66421544994},{"$f":"Z1395","v":80022.586929930549},{"$f":"AA1395","v":275671.04198371561},null,null,0,0,0,0]
["Income Taxes - State",null,null,{"$f":"+'G+T+D+R+M'!H22","v":0},{"$f":"H1377","v":0},0,{"$f":"J1377","v":0},{"$f":"K1377","v":0},{"$f":"L1377","v":0},{"$f":"M1377","v":0},{"$f":"N1377","v":0},null,null,{"$f":"Q1377","v":0},{"$f":"R1377","v":0},null,{"$f":"T1377","v":0},{"$f":"U1377","v":0},null,{"$f":"W1377","v":0},{"$f":"X1377","v":0},{"$f":"Y1377","v":0},{"$f":"Z1377","v":0},{"$f":"AA1377","v":0},null,null,0,0,0,0]
["Income Taxes Deferred",null,null,{"$f":"+'G+T+D+R+M'!H23","v":16414669.737428367},{"$f":"H1342","v":16414669.737428376},0,{"$f":"J1342","v":12810565.3815352},{"$f":"K1342","v":2686209.4236197174},{"$f":"L1342","v":908708.60779814981},{"$f":"M1342","v":9186.3244753000617},{"$f":"N1342","v":0},null,null,{"$f":"Q1342","v":4868014.8449833766},{"$f":"R1342","v":7942550.5365518238},null,{"$f":"T1342","v":1020759.5809754925},{"$f":"U1342","v":1665449.8426442249},null,{"$f":"W1342","v":106179.38553305669},{"$f":"X1342","v":426922.37495807884},{"$f":"Y1342","v":231696.17710846383},{"$f":"Z1342","v":21352.151917695708},{"$f":"AA1342","v":122558.51828085515},null,null,0,0,0,0]
["Investment Tax Credit Adj",null,null,{"$f":"+'G+T+D+R+M'!H24","v":0},{"$f":"H1239","v":0},0,{"$f":"J1239","v":0},{"$f":"K1239","v":0},{"$f":"L1239","v":0},{"$f":"M1239","v":0},{"$f":"N1239","v":0},null,null,{"$f":"Q1239","v":0},{"$f":"R1239","v":0},null,{"$f":"T1239","v":0},{"$f":"U1239","v":0},null,{"$f":"W1239","v":0},{"$f":"X1239","v":0},{"$f":"Y1239","v":0},{"$f":"Z1239","v":0},{"$f":"AA1239","v":0},null,null,0,0,0,0]
["Misc Revenues & Expense",null,null,{"$f":"+'G+T+D+R+M'!H25","v":-842347.30266372953},{"$f":"H407","v":-842347.32514905161},0,{"$f":"J407","v":-853313.31999234774},{"$f":"K407","v":516.47518278949883},{"$f":"L407","v":3674.2548731014076},{"$f":"M407","v":6775.2872727272734},{"$f":"N407","v":0},null,null,{"$f":"Q407","v":-324259.06159709214},{"$f":"R407","v":-529054.25839525554},null,{"$f":"T407","v":196.26056946000955},{"$f":"U407","v":320.21461332948928},null,{"$f":"W407","v":431.64990981882909},{"$f":"X407","v":1768.2584396467771},{"$f":"Y407","v":896.73169213511289},{"$f":"Z407","v":103.86639824167921},{"$f":"AA407","v":473.74843325900923},null,null,0,0,0,0]
[]
["Total Operating Expenses",null,null,{"$f":"+'G+T+D+R+M'!H27","v":289728524.4327988},{"$f":"SUM(E13:E21)","v":289728524.41031355},{"$f":"ROUND(D23-E23,0)","v":0},{"$f":"SUM(G13:G21)","v":197552281.15931556},{"$f":"SUM(H13:H21)","v":45563848.553198673},{"$f":"SUM(I13:I21)","v":35566473.642269231},{"$f":"SUM(J13:J21)","v":9263177.3464092035},{"$f":"SUM(K13:K21)","v":1782743.7316061817},null,null,{"$f":"SUM(N13:N21)","v":75069866.840539917},{"$f":"SUM(O13:O21)","v":122482414.31877565},null,{"$f":"SUM(Q13:Q21)","v":17314262.4502155},{"$f":"SUM(R13:R21)","v":28249586.102983184},null,{"$f":"SUM(T13:T21)","v":4749799.9109857585},{"$f":"SUM(U13:U21)","v":19627175.979494125},{"$f":"SUM(V13:V21)","v":6181534.9559772611},{"$f":"SUM(W13:W21)","v":1956688.1595383903},{"$f":"SUM(X13:X21)","v":3051274.6362736919},null,null,{"$f":"ROUND(SUM(-E23,G23:K23),0)","v":0},{"$f":"ROUND(G23-N23-O23,0)","v":0},{"$f":"ROUND(H23-Q23-R23,0)","v":0},{"$f":"ROUND(I23-T23-U23-V23-W23-X23,0)","v":0}]
[]
["Operating Revenue For Return",null,null,{"$f":"+'G+T+D+R+M'!H29","v":38131960.684570014},{"$f":"E10-E23","v":38131962.760989726},{"$f":"ROUND(D25-E25,0)","v":-2},{"$f":"G10-G23","v":-176258097.35004741},{"$f":"H10-H23","v":-42092679.012819402},{"$f":"I10-I23","v":-34407185.319738485},{"$f":"J10-J23","v":-8421383.7604948711},{"$f":"K10-K23","v":-4751902.1683953796},null,null,{"$f":"N10-N23","v":-66978076.993018024},{"$f":"O10-O23","v":-109280020.35702941},null,{"$f":"Q10-Q23","v":-15995218.024871375},{"$f":"R10-R23","v":-26097460.987948034},null,{"$f":"T10-T23","v":-4613607.2087489571},{"$f":"U10-U23","v":-19069261.128429744},{"$f":"V10-V23","v":-5898601.2415128704},{"$f":"W10-W23","v":-1923916.5890448964},{"$f":"X10-X23","v":-2901799.1520020142},null,null,null,{"$f":"G25-N25-O25","v":0},{"$f":"ROUND(H25-Q25-R25,0)","v":0},{"$f":"ROUND(I25-T25-U25-V25-W25-X25,0)","v":0}]
[]
[]
["Rate Base :"]
["Electric Plant In Service",null,null,{"$f":"+'G+T+D+R+M'!H33","v":1655504559.0608952},{"$f":"H1998","v":1655504559.060895},{"$f":"+D29-E29","v":0},{"$f":"J1998","v":883089392.36522698},{"$f":"K1998","v":303513053.25131756},{"$f":"L1998","v":458649616.57378644},{"$f":"M1998","v":10252496.870564088},{"$f":"N1998","v":0},null,null,{"$f":"Q1998","v":335573969.09878629},{"$f":"R1998","v":547515423.26644075},null,{"$f":"T1998","v":115334951.46732558},{"$f":"U1998","v":188178101.78399199},null,{"$f":"W1998","v":54262544.629029073},{"$f":"X1998","v":222287090.33499512},{"$f":"Y1998","v":110757425.08891532},{"$f":"Z1998","v":12828781.366160188},{"$f":"AA1998","v":58513775.154686674},null,null,{"$f":"ROUND(SUM(-E29,G29:K29),0)","v":0},{"$f":"ROUND(G29-N29-O29,0)","v":0},{"$f":"ROUND(H29-Q29-R29,0)","v":0},{"$f":"ROUND(I29-T29-U29-V29-W29-X29,0)","v":0}]
["Plant Held For Future Use ",null,null,{"$f":"+'G+T+D+R+M'!H34","v":43755.273337945968},{"$f":"H2011","v":43755.273337945968},{"$f":"ROUND(D30-E30,0)","v":0},{"$f":"J2011","v":43755.273337945968},{"$f":"K2011","v":0},{"$f":"L2011","v":0},{"$f":"M2011","v":0},{"$f":"N2011","v":0},null,null,{"$f":"Q2011","v":16627.003868419466},{"$f":"R2011","v":27128.269469526498},null,{"$f":"T2011","v":0},{"$f":"U2011","v":0},null,{"$f":"W2011","v":0},{"$f":"X2011","v":0},{"$f":"Y2011","v":0},{"$f":"Z2011","v":0},{"$f":"AA2011","v":0},null,null,0,0,0,0]
["Electric Plant Acquisition Adj",null,null,{"$f":"+'G+T+D+R+M'!H35","v":0},{"$f":"H2017","v":0},0,{"$f":"J2017","v":0},{"$f":"K2017","v":0},{"$f":"L2017","v":0},{"$f":"M2017","v":0},{"$f":"N2017","v":0},null,null,{"$f":"Q2017","v":0},{"$f":"R2017","v":0},null,{"$f":"T2017","v":0},{"$f":"U2017","v":0},null,{"$f":"W2017","v":0},{"$f":"X2017","v":0},{"$f":"Y2017","v":0},{"$f":"Z2017","v":0},{"$f":"AA2017","v":0},null,null,0,0,0,0]
["Nuclear Fuel",null,null,{"$f":"+'G+T+D+R+M'!H36","v":0},{"$f":"H2020","v":0},0,{"$f":"J2020","v":0},{"$f":"K2020","v":0},{"$f":"L2020","v":0},{"$f":"M2020","v":0},{"$f":"N2020","v":0},null,null,{"$f":"Q2020","v":0},{"$f":"R2020","v":0},null,{"$f":"T2020","v":0},{"$f":"U2020","v":0},null,{"$f":"W2020","v":0},{"$f":"X2020","v":0},{"$f":"Y2020","v":0},{"$f":"Z2020","v":0},{"$f":"AA2020","v":0},null,null,0,0,0,0]
["Prepayments",null,null,{"$f":"+'G+T+D+R+M'!H37","v":-1.0372605174779893E-7},{"$f":"H2108","v":-1.0372605174779892E-7},0,{"$f":"J2108","v":-6.9763221492845877E-8},{"$f":"K2108","v":-2.7403410337079778E-8},{"$f":"L2108","v":-6.4062846943359198E-9},{"$f":"M2108","v":-1.5313522353733222E-10},{"$f":"N2108","v":0},null,null,{"$f":"Q2108","v":-2.6510024167281438E-8},{"$f":"R2108","v":-4.3253197325564449E-8},null,{"$f":"T2108","v":-1.0413295928090316E-8},{"$f":"U2108","v":-1.6990114408989463E-8},null,{"$f":"W2108","v":-7.5260761871146457E-10},{"$f":"X2108","v":-3.0830651026605626E-9},{"$f":"Y2108","v":-1.563505720930583E-9},{"$f":"Z2108","v":-1.8109732184958963E-10},{"$f":"AA2108","v":-8.2600893018371983E-10},null,null,0,0,0,0]
["Fuel Stock",null,null,{"$f":"+'G+T+D+R+M'!H38","v":-1.5174737200140956E-7},{"$f":"H2067","v":-1.5174737200140953E-7},0,{"$f":"J2067","v":-1.5174737200140953E-7},{"$f":"K2067","v":0},{"$f":"L2067","v":0},{"$f":"M2067","v":0},{"$f":"N2067","v":0},null,null,{"$f":"Q2067","v":-5.766400136053562E-8},{"$f":"R2067","v":-9.4083370640873904E-8},null,{"$f":"T2067","v":0},{"$f":"U2067","v":0},null,{"$f":"W2067","v":0},{"$f":"X2067","v":0},{"$f":"Y2067","v":0},{"$f":"Z2067","v":0},{"$f":"AA2067","v":0},null,null,0,0,0,0]
["Materials & Supplies",null,null,{"$f":"+'G+T+D+R+M'!H39","v":1.4560635463567448E-4},{"$f":"H2100","v":1.4560635463567451E-4},0,{"$f":"J2100","v":1.1383549273394506E-4},{"$f":"K2100","v":8.8387352564417842E-7},{"$f":"L2100","v":3.0886988376085263E-5},{"$f":"M2100","v":0},{"$f":"N2100","v":0},null,null,{"$f":"Q2100","v":4.3257487238899126E-5},{"$f":"R2100","v":7.0578005495045934E-5},null,{"$f":"T2100","v":3.3587193974478775E-7},{"$f":"U2100","v":5.480015858993905E-7},null,{"$f":"W2100","v":3.6285903421443075E-6},{"$f":"X2100","v":1.4864558871819256E-5},{"$f":"Y2100","v":7.5382199406502808E-6},{"$f":"Z2100","v":8.7313492012834719E-7},{"$f":"AA2100","v":3.9824843013430679E-6},null,null,0,0,0,0]
["Misc Deferred Debits",null,null,{"$f":"+'G+T+D+R+M'!H40","v":14766733.281699954},{"$f":"H2118+H2129","v":14766733.281699954},0,{"$f":"J2118+J2129","v":14711337.479033785},{"$f":"K2118+K2129","v":55395.802666168427},{"$f":"L2118+L2129","v":0},{"$f":"M2118+M2129","v":0},{"$f":"N2118+N2129","v":0},null,null,{"$f":"Q2118+Q2129","v":5590308.2420328381},{"$f":"R2118+R2129","v":9121029.2370009478},null,{"$f":"T2118+T2129","v":21050.405013144002},{"$f":"U2118+U2129","v":34345.397653024425},null,{"$f":"W2118+W2129","v":0},{"$f":"X2118+X2129","v":0},{"$f":"Y2118+Y2129","v":0},{"$f":"Z2118+Z2129","v":0},{"$f":"AA2118+AA2129","v":0},null,null,0,0,0,0]
["Cash Working Capital",null,null,{"$f":"+'G+T+D+R+M'!H41","v":28493963.911447987},{"$f":"H2151","v":28493963.911447994},0,{"$f":"J2151","v":19879156.978276398},{"$f":"K2151","v":4582113.839411892},{"$f":"L2151","v":2719707.324459231},{"$f":"M2151","v":1089502.3312838771},{"$f":"N2151","v":223483.43801659052},null,null,{"$f":"Q2151","v":7554079.6517450316},{"$f":"R2151","v":12325077.326531367},null,{"$f":"T2151","v":1741203.2589765189},{"$f":"U2151","v":2840910.5804353729},null,{"$f":"W2151","v":319510.06717873795},{"$f":"X2151","v":1308876.3833590106},{"$f":"Y2151","v":663766.62354834832},{"$f":"Z2151","v":76882.582678498307},{"$f":"AA2151","v":350671.66769463569},null,null,0,0,0,0]
["Weatherization Loans",null,null,{"$f":"+'G+T+D+R+M'!H42","v":1957722.3254914517},{"$f":"H2043","v":1957722.3254914517},0,{"$f":"J2043","v":0},{"$f":"K2043","v":0},{"$f":"L2043","v":0},{"$f":"M2043","v":0},{"$f":"N2043","v":1957722.3254914517},null,null,{"$f":"Q2043","v":0},{"$f":"R2043","v":0},null,{"$f":"T2043","v":0},{"$f":"U2043","v":0},null,{"$f":"W2043","v":0},{"$f":"X2043","v":0},{"$f":"Y2043","v":0},{"$f":"Z2043","v":0},{"$f":"AA2043","v":0},null,null,0,0,0,0]
["Miscellaneous Rate Base",null,null,{"$f":"+'G+T+D+R+M'!H43","v":0},{"$f":"H2175","v":0},0,{"$f":"J2175","v":0},{"$f":"K2175","v":0},{"$f":"L2175","v":0},{"$f":"M2175","v":0},{"$f":"N2175","v":0},null,null,{"$f":"Q2175","v":0},{"$f":"R2175","v":0},null,{"$f":"T2175","v":0},{"$f":"U2175","v":0},null,{"$f":"W2175","v":0},{"$f":"X2175","v":0},{"$f":"Y2175","v":0},{"$f":"Z2175","v":0},{"$f":"AA2175","v":0},null,null,0,0,0,0]
[]
["Total Rate Base Additions",null,null,{"$f":"+'G+T+D+R+M'!H45","v":1700766733.8530178},{"$f":"SUM(E29:E39)","v":1700766733.8530176},{"$f":"ROUND(D41-E41,0)","v":0},{"$f":"SUM(G29:G39)","v":917723642.09598875},{"$f":"SUM(H29:H39)","v":308150562.89339656},{"$f":"SUM(I29:I39)","v":461369323.89827657},{"$f":"SUM(J29:J39)","v":11341999.201847965},{"$f":"SUM(K29:K39)","v":2181205.7635080423},null,null,{"$f":"SUM(N29:N39)","v":348734983.99647576},{"$f":"SUM(O29:O39)","v":568988658.09951305},null,{"$f":"SUM(Q29:Q39)","v":117097205.13131557},{"$f":"SUM(R29:R39)","v":191053357.76208088},null,{"$f":"SUM(T29:T39)","v":54582054.696211442},{"$f":"SUM(U29:U39)","v":223595966.71836901},{"$f":"SUM(V29:V39)","v":111421191.7124712},{"$f":"SUM(W29:W39)","v":12905663.94883956},{"$f":"SUM(X29:X39)","v":58864446.822385296},null,null,{"$f":"ROUND(SUM(-E41,G41:K41),0)","v":0},{"$f":"ROUND(G41-N41-O41,0)","v":0},{"$f":"ROUND(H41-Q41-R41,0)","v":0},{"$f":"ROUND(I41-T41-U41-V41-W41-X41,0)","v":0}]
[]
["Rate Base Deductions :"]
["Accum Provision For Depreciation",null,null,{"$f":"+'G+T+D+R+M'!H48","v":-589326216.07470775},{"$f":"H2465","v":-589326216.07470775},{"$f":"ROUND(D44-E44,0)","v":0},{"$f":"J2465","v":-276191532.91767967},{"$f":"K2465","v":-114462702.38464727},{"$f":"L2465","v":-198063450.82755744},{"$f":"M2465","v":-608529.94482340431},{"$f":"N2465","v":0},null,null,{"$f":"Q2465","v":-104952782.50871828},{"$f":"R2465","v":-171238750.40896142},null,{"$f":"T2465","v":-43495826.906165957},{"$f":"U2465","v":-70966875.478481308},null,{"$f":"W2465","v":-17535884.914982595},{"$f":"X2465","v":-109584944.25340565},{"$f":"Y2465","v":-48173498.23866608},{"$f":"Z2465","v":-2361424.6741928025},{"$f":"AA2465","v":-20407698.746310279},null,null,{"$f":"ROUND(SUM(-E44,G44:K44),0)","v":0},{"$f":"ROUND(G44-N44-O44,0)","v":0},{"$f":"ROUND(H44-Q44-R44,0)","v":0},{"$f":"ROUND(I44-T44-U44-V44-W44-X44,0)","v":0}]
["Accum Provision For Amortization",null,null,{"$f":"+'G+T+D+R+M'!H49","v":-43465840.659182236},{"$f":"H2519","v":-43465840.659182236},0,{"$f":"J2519","v":-22439940.159080647},{"$f":"K2519","v":-6435065.100261936},{"$f":"L2519","v":-7175315.1321535669},{"$f":"M2519","v":-7415520.2676860858},{"$f":"N2519","v":0},null,null,{"$f":"Q2519","v":-8527177.2604506444},{"$f":"R2519","v":-13912762.898630003},null,{"$f":"T2519","v":-2445324.7380995355},{"$f":"U2519","v":-3989740.3621623996},null,{"$f":"W2519","v":-842952.98956803896},{"$f":"X2519","v":-3453165.873832291},{"$f":"Y2519","v":-1751193.8344733235},{"$f":"Z2519","v":-202836.81039163453},{"$f":"AA2519","v":-925165.62388827908},null,null,0,0,0,0]
["Accum Deferred Income Taxes",null,null,{"$f":"+'G+T+D+R+M'!H50","v":-232193930.1604712},{"$f":"H2273","v":-232193930.1604712},0,{"$f":"J2273","v":-124306012.70772502},{"$f":"K2273","v":-46442324.710822776},{"$f":"L2273","v":-60008268.201318935},{"$f":"M2273","v":-1437324.540604491},{"$f":"N2273","v":0},null,null,{"$f":"Q2273","v":-47236284.828935511},{"$f":"R2273","v":-77069727.878789499},null,{"$f":"T2273","v":-17648083.390112657},{"$f":"U2273","v":-28794241.320710123},null,{"$f":"W2273","v":-7049846.2113721129},{"$f":"X2273","v":-28881170.911233705},{"$f":"Y2273","v":-14643776.575629249},{"$f":"Z2273","v":-1697110.8747565467},{"$f":"AA2273","v":-7736363.6283273157},null,null,0,0,0,0]
["Unamortized ITC",null,null,{"$f":"+'G+T+D+R+M'!H51","v":-523327.7733723424},{"$f":"H2284","v":-523327.77337234258},0,{"$f":"J2284","v":-266330.54835915519},{"$f":"K2284","v":-103068.52952258976},{"$f":"L2284","v":-153928.69549059757},{"$f":"M2284","v":0},{"$f":"N2284","v":0},null,null,{"$f":"Q2284","v":-101205.60837647897},{"$f":"R2284","v":-165124.93998267624},null,{"$f":"T2284","v":-39166.041218584105},{"$f":"U2284","v":-63902.488304005652},null,{"$f":"W2284","v":-18083.478098774951},{"$f":"X2284","v":-74079.160076153959},{"$f":"Y2284","v":-37567.546167237379},{"$f":"Z2284","v":-4351.3636747668588},{"$f":"AA2284","v":-19847.147473664401},null,null,0,0,0,0]
["Customer Advance For Construction",null,null,{"$f":"+'G+T+D+R+M'!H52","v":-143878.99867603625},{"$f":"H2219","v":-143878.99867603625},0,{"$f":"J2219","v":0},{"$f":"K2219","v":18276.841740963751},{"$f":"L2219","v":-162155.840417},{"$f":"M2219","v":0},{"$f":"N2219","v":0},null,null,{"$f":"Q2219","v":0},{"$f":"R2219","v":0},null,{"$f":"T2219","v":6945.199861566226},{"$f":"U2219","v":11331.641879397526},null,{"$f":"W2219","v":-19049.999608087252},{"$f":"X2219","v":-78038.525703402527},{"$f":"Y2219","v":-39575.447591088894},{"$f":"Z2219","v":-4583.9343430603258},{"$f":"AA2219","v":-20907.93317136099},null,null,0,0,0,0]
["Customer Service Deposits",null,null,{"$f":"+'G+T+D+R+M'!H53","v":-3236612.0862500002},{"$f":"H2187","v":-3236612.0862499997},0,{"$f":"J2187","v":0},{"$f":"K2187","v":0},{"$f":"L2187","v":0},{"$f":"M2187","v":-3236612.0862499997},{"$f":"N2187","v":0},null,null,{"$f":"Q2187","v":0},{"$f":"R2187","v":0},null,{"$f":"T2187","v":0},{"$f":"U2187","v":0},null,{"$f":"W2187","v":0},{"$f":"X2187","v":0},{"$f":"Y2187","v":0},{"$f":"Z2187","v":0},{"$f":"AA2187","v":0},null,null,0,0,0,0]
["Misc Rate Base Deductions",null,null,{"$f":"+'G+T+D+R+M'!H54","v":-3448113.6939195893},{"$f":"(+H2195+H2191+H2200+H2206+H2211+H2222+H2230+H2203)","v":-3448113.6939195897},0,{"$f":"(+J2195+J2191+J2200+J2206+J2211+J2222+J2230+J2203)","v":-3109906.5318716601},{"$f":"(+K2195+K2191+K2200+K2206+K2211+K2222+K2230+K2203)","v":-135637.7091795431},{"$f":"(+L2195+L2191+L2200+L2206+L2211+L2222+L2230+L2203)","v":-202569.45286838623},{"$f":"(+M2195+M2191+M2200+M2206+M2211+M2222+M2230+M2203)","v":0},{"$f":"(+N2195+N2191+N2200+N2206+N2211+N2222+N2230+N2203)","v":0},null,null,{"$f":"(+Q2195+Q2191+Q2200+Q2206+Q2211+Q2222+Q2230+Q2203)","v":-1181764.482111231},{"$f":"(+R2195+R2191+R2200+R2206+R2211+R2222+R2230+R2203)","v":-1928142.0497604292},null,{"$f":"(+T2195+T2191+T2200+T2206+T2211+T2222+T2230+T2203)","v":-51542.32948822638},{"$f":"(+U2195+U2191+U2200+U2206+U2211+U2222+U2230+U2203)","v":-84095.379691316717},null,{"$f":"(+W2195+W2191+W2200+W2206+W2211+W2222+W2230+W2203)","v":-23797.77372082026},{"$f":"(+X2195+X2191+X2200+X2206+X2211+X2222+X2230+X2203)","v":-97487.832777045347},{"$f":"(+Y2195+Y2191+Y2200+Y2206+Y2211+Y2222+Y2230+Y2203)","v":-49438.717377878129},{"$f":"(+Z2195+Z2191+Z2200+Z2206+Z2211+Z2222+Z2230+Z2203)","v":-5726.3745139887496},{"$f":"(+AA2195+AA2191+AA2200+AA2206+AA2211+AA2222+AA2230+AA2203)","v":-26118.754478653733},null,null,0,0,0,0]
[]
["Total Rate Base Deductions",null,null,{"$f":"+'G+T+D+R+M'!H56","v":-872337919.4465791},{"$f":"SUM(E44:E50)","v":-872337919.44657898},0,{"$f":"SUM(G44:G50)","v":-426313722.86471617},{"$f":"SUM(H44:H50)","v":-167560521.59269318},{"$f":"SUM(I44:I50)","v":-265765688.1498059},{"$f":"SUM(J44:J50)","v":-12697986.839363981},{"$f":"SUM(K44:K50)","v":0},null,null,{"$f":"SUM(N44:N50)","v":-161999214.68859217},{"$f":"SUM(O44:O50)","v":-264314508.17612404},null,{"$f":"SUM(Q44:Q50)","v":-63672998.205223404},{"$f":"SUM(R44:R50)","v":-103887523.38746975},null,{"$f":"SUM(T44:T50)","v":-25489615.367350433},{"$f":"SUM(U44:U50)","v":-142168886.55702823},{"$f":"SUM(V44:V50)","v":-64695050.359904863},{"$f":"SUM(W44:W50)","v":-4276034.0318728006},{"$f":"SUM(X44:X50)","v":-29136101.83364955},null,null,{"$f":"ROUND(SUM(-E52,G52:K52),0)","v":0},{"$f":"ROUND(G52-N52-O52,0)","v":0},{"$f":"ROUND(H52-Q52-R52,0)","v":0},{"$f":"ROUND(I52-T52-U52-V52-W52-X52,0)","v":0}]
[]
["Total Rate Base",null,null,{"$f":"+'G+T+D+R+M'!H58","v":828428814.40643847},{"$f":"E41+E52","v":828428814.40643859},0,{"$f":"G41+G52","v":491409919.23127258},{"$f":"H41+H52","v":140590041.30070338},{"$f":"I41+I52","v":195603635.74847066},{"$f":"J41+J52","v":-1355987.6375160161},{"$f":"K41+K52","v":2181205.7635080423},null,null,{"$f":"N41+N52","v":186735769.30788359},{"$f":"O41+O52","v":304674149.92338902},null,{"$f":"Q41+Q52","v":53424206.92609217},{"$f":"R41+R52","v":87165834.374611124},null,{"$f":"T41+T52","v":29092439.328861009},{"$f":"U41+U52","v":81427080.161340773},{"$f":"V41+V52","v":46726141.352566339},{"$f":"W41+W52","v":8629629.9169667587},{"$f":"X41+X52","v":29728344.988735747},null,null,{"$f":"ROUND(SUM(-E54,G54:K54),0)","v":0},{"$f":"ROUND(G54-N54-O54,0)","v":0},{"$f":"ROUND(H54-Q54-R54,0)","v":0},{"$f":"ROUND(I54-T54-U54-V54-W54-X54,0)","v":0}]
[]
[]
["Return On Rate Base",null,null,{"$f":"+'G+T+D+R+M'!H61","v":4.602925444100011E-2},{"$f":"(E25/E54)","v":4.6029256947455306E-2},null,{"$f":"(G25/G54)","v":-0.35867834663527609},{"$f":"(H25/H54)","v":-0.29940014686238525},{"$f":"(I25/I54)","v":-0.17590258579847229},{"$f":"(J25/J54)","v":6.2105166208754632},{"$f":"(K25/K54)","v":-2.1785666661511454},null,null,{"$f":"(N25/N54)","v":-0.35867834663527609},{"$f":"(O25/O54)","v":-0.35867834663527609},null,{"$f":"(Q25/Q54)","v":-0.29940019600102619},{"$f":"(R25/R54)","v":-0.29940011674516209},null,{"$f":"(T25/T54)","v":-0.15858440595498816},{"$f":"(U25/U54)","v":-0.23418819747245806},{"$f":"(V25/V54)","v":-0.12623771342481935},{"$f":"(W25/W54)","v":-0.22294311662917021},{"$f":"(X25/X54)","v":-9.7610517945130273E-2}]
[]
["Return On Equity",null,null,{"$f":"+'G+T+D+R+M'!H63","v":3.906981420621377E-2},{"$f":"(+E57-Inputs!$K$5-Inputs!$K$6)/Inputs!$I$7","v":3.9069818979832506E-2},null,{"$f":"(+G57-Inputs!$K$5-Inputs!$K$6)/Inputs!$I$7","v":-0.73170789317767759},{"$f":"(+H57-Inputs!$K$5-Inputs!$K$6)/Inputs!$I$7","v":-0.61881079216626922},{"$f":"(+I57-Inputs!$K$5-Inputs!$K$6)/Inputs!$I$7","v":-0.38360600053102534},{"$f":"(+J57-Inputs!$K$5-Inputs!$K$6)/Inputs!$I$7","v":11.779520022854015},{"$f":"(+K57-Inputs!$K$5-Inputs!$K$6)/Inputs!$I$7","v":-4.197739524115069},null,null,{"$f":"(+N57-Inputs!$K$5-Inputs!$K$6)/Inputs!$I$7","v":-0.73170789317767759},{"$f":"(+O57-Inputs!$K$5-Inputs!$K$6)/Inputs!$I$7","v":-0.73170789317767759},null,{"$f":"(+Q57-Inputs!$K$5-Inputs!$K$6)/Inputs!$I$7","v":-0.61881088575227783},{"$f":"(+R57-Inputs!$K$5-Inputs!$K$6)/Inputs!$I$7","v":-0.61881073480711868},null,{"$f":"(+T57-Inputs!$K$5-Inputs!$K$6)/Inputs!$I$7","v":-0.35062301004524299},{"$f":"(+U57-Inputs!$K$5-Inputs!$K$6)/Inputs!$I$7","v":-0.49461268787781265},{"$f":"(+V57-Inputs!$K$5-Inputs!$K$6)/Inputs!$I$7","v":-0.28901776852383126},{"$f":"(+W57-Inputs!$K$5-Inputs!$K$6)/Inputs!$I$7","v":-0.47319609572909654},{"$f":"(+X57-Inputs!$K$5-Inputs!$K$6)/Inputs!$I$7","v":-0.23449642016767183}]
[]
[]
[]
[]
["Total Rate Base",null,null,{"$f":"+'G+T+D+R+M'!H83","v":828428814.40643871},{"$f":"+E54","v":828428814.40643859},{"$f":"ROUND(D64-E64,0)","v":0},{"$f":"+G54","v":491409919.23127258},{"$f":"+H54","v":140590041.30070338},{"$f":"+I54","v":195603635.74847066},{"$f":"+J54","v":-1355987.6375160161},{"$f":"+K54","v":2181205.7635080423},null,null,{"$f":"+N54","v":186735769.30788359},{"$f":"+O54","v":304674149.92338902},null,{"$f":"+Q54","v":53424206.92609217},{"$f":"+R54","v":87165834.374611124},null,{"$f":"+T54","v":29092439.328861009},{"$f":"+U54","v":81427080.161340773},{"$f":"+V54","v":46726141.352566339},{"$f":"+W54","v":8629629.9169667587},{"$f":"+X54","v":29728344.988735747},null,null,{"$f":"ROUND(SUM(-E64,G64:K64),0)","v":0},{"$f":"ROUND(G64-N64-O64,0)","v":0},{"$f":"ROUND(H64-Q64-R64,0)","v":0},{"$f":"ROUND(I64-T64-U64-V64-W64-X64,0)","v":0}]
[]
["Return On RateBase ($$)",null,null,{"$f":"+'G+T+D+R+M'!H86","v":38131960.684570022},{"$f":"+$D57*E64","v":38131960.684570022},{"$f":"ROUND(D66-E66,0)","v":0},{"$f":"+$D57*G64","v":22619232.20712756},{"$f":"+$D57*H64","v":6471254.7829007898},{"$f":"+$D57*I64","v":9003489.5194510613},{"$f":"+$D57*J64","v":-62415.099986075336},{"$f":"+$D57*K64","v":100399.2750766876},null,null,{"$f":"+$D57*N64","v":8595308.2387084719},{"$f":"+$D57*O64","v":14023923.968419088},null,{"$f":"+$D57*Q64","v":2459076.413909737},{"$f":"+$D57*R64","v":4012178.368991049},null,{"$f":"+$D57*T64","v":1339103.2921775018},{"$f":"+$D57*U64","v":3748027.7911340669},{"$f":"+$D57*V64","v":2150769.4493634133},{"$f":"+$D57*W64","v":397215.43117972958},{"$f":"+$D57*X64","v":1368373.5555963481},null,null,{"$f":"ROUND(SUM(-E66,G66:K66),0)","v":0},{"$f":"ROUND(G66-N66-O66,0)","v":0},{"$f":"ROUND(H66-Q66-R66,0)","v":0},{"$f":"ROUND(I66-T66-U66-V66-W66-X66,0)","v":0}]
["Operating & Maintenance Expense",null,null,{"$f":"+'G+T+D+R+M'!H87","v":217526010.15460244},{"$f":"+E13","v":217526010.15460241},{"$f":"ROUND(D67-E67,0)","v":0},{"$f":"+G13","v":160399072.80989745},{"$f":"+H13","v":32671390.564299166},{"$f":"+I13","v":14391948.89266945},{"$f":"+J13","v":8378177.35647838},{"$f":"+K13","v":1685420.5312579749},null,null,{"$f":"+N13","v":60951647.667761035},{"$f":"+O13","v":99447425.142136425},null,{"$f":"+Q13","v":12415128.414433682},{"$f":"+R13","v":20256262.149865486},null,{"$f":"+T13","v":2499193.0485723997},{"$f":"+U13","v":9273227.5783924907},{"$f":"+V13","v":942194.69195301516},{"$f":"+W13","v":1209694.9611877},{"$f":"+X13","v":467638.61256384803},null,null,{"$f":"ROUND(SUM(-E67,G67:K67),0)","v":0},{"$f":"ROUND(G67-N67-O67,0)","v":0},{"$f":"ROUND(H67-Q67-R67,0)","v":0},{"$f":"ROUND(I67-T67-U67-V67-W67-X67,0)","v":0}]
["        Bad Debt to Produce ROR",null,null,{"$f":"+'G+T+D+R+M'!H88","v":0}]
["Depreciation Expense",null,null,{"$f":"+'G+T+D+R+M'!H89","v":41310105.544159755},{"$f":"+E14","v":41310105.544159755},{"$f":"ROUND(D69-E69,0)","v":0},{"$f":"+G14","v":23157034.246414285},5516357.6512353439,12516369.432388294,{"$f":"+J14","v":120344.21412182611},0,null,null,{"$f":"+N14","v":8799673.0136374291},14357361.232776858,null,2096215.9074694307,3420141.743765913,null,{"$f":"+T14","v":1177339.8192863371},6315400.8115853146,3125717.8120574378,477826.39784696285,1420084.5916122422,null,null,{"$f":"ROUND(SUM(-E69,G69:K69),0)","v":0},{"$f":"ROUND(G69-N69-O69,0)","v":0},{"$f":"ROUND(H69-Q69-R69,0)","v":0},{"$f":"ROUND(I69-T69-U69-V69-W69-X69,0)","v":0}]
["Amortization Expense",null,null,{"$f":"+'G+T+D+R+M'!H90","v":5547662.1601642761},{"$f":"+E15","v":5547662.1601642752},0,3860505.5878965864,808907.75049483229,442417.08881035889,435831.73296249891,0,null,null,1466992.1234007026,2393513.4644958838,null,307384.9451880363,501522.80530679598,null,51974.972636044913,212916.02737197583,107975.47758126201,12506.554695404995,57044.056525671185,null,null,{"$f":"ROUND(SUM(-E70,G70:K70),0)","v":0},{"$f":"ROUND(G70-N70-O70,0)","v":0},{"$f":"ROUND(H70-Q70-R70,0)","v":0},{"$f":"ROUND(I70-T70-U70-V70-W70-X70,0)","v":0}]
["Taxes Other Than Income",null,null,{"$f":"+'G+T+D+R+M'!H91","v":19982776.421377912},{"$f":"+E16","v":19982776.421377905},0,10113138.541778341,4248894.6593379853,5489522.200680973,131221.01958061196,0,null,null,3842992.6458757706,6270145.8959025722,null,1614579.9705484344,2634314.6887895511,null,644906.74836399767,2641867.343510923,1339762.4013694965,155181.64056245438,707804.06687410071,null,null,{"$f":"ROUND(SUM(-E71,G71:K71),0)","v":0},{"$f":"ROUND(G71-N71-O71,0)","v":0},{"$f":"ROUND(H71-Q71-R71,0)","v":0},{"$f":"ROUND(I71-T71-U71-V71-W71-X71,0)","v":0}]
["Federal Income Taxes",null,null,{"$f":"+'G+T+D+R+M'!H92","v":-10210352.28227013},{"$f":"+E17","v":-10210352.282270119},0,-11934722.088213939,-368427.97097115335,1813833.1650488966,181641.41151786022,97323.200348206738,null,null,-4535194.3935212968,-7399527.6946926424,null,-140002.62896903828,-228425.34200211507,null,269774.28668410389,755073.58523569629,433291.66421544994,80022.586929930549,275671.04198371561,null,null,{"$f":"ROUND(SUM(-E72,G72:K72),0)","v":0},{"$f":"ROUND(G72-N72-O72,0)","v":0},{"$f":"ROUND(H72-Q72-R72,0)","v":0},{"$f":"ROUND(I72-T72-U72-V72-W72-X72,0)","v":0}]
["        FIT Adj to Produce Target ROR",null,null,{"$f":"+'G+T+D+R+M'!H93","v":0},null,0]
["State Income Taxes",null,null,{"$f":"+'G+T+D+R+M'!H94","v":0},{"$f":"+E18","v":0},0,{"$f":"+G18","v":0},{"$f":"+H18","v":0},{"$f":"+I18","v":0},{"$f":"+J18","v":0},{"$f":"+K18","v":0},null,null,{"$f":"+N18","v":0},{"$f":"+O18","v":0},null,{"$f":"+Q18","v":0},{"$f":"+R18","v":0},null,{"$f":"+T18","v":0},{"$f":"+U18","v":0},{"$f":"+V18","v":0},{"$f":"+W18","v":0},{"$f":"+X18","v":0},null,null,{"$f":"ROUND(SUM(-E74,G74:K74),0)","v":0},{"$f":"ROUND(G74-N74-O74,0)","v":0},{"$f":"ROUND(H74-Q74-R74,0)","v":0},{"$f":"ROUND(I74-T74-U74-V74-W74-X74,0)","v":0}]
["        SIT Adj to Produce Target ROR",null,null,{"$f":"+'G+T+D+R+M'!H95","v":0},null,0]
["Deferred Income Taxes",null,null,{"$f":"+'G+T+D+R+M'!H96","v":16414669.737428367},{"$f":"+E19","v":16414669.737428376},0,{"$f":"+G19","v":12810565.3815352},2686209.4236197174,908708.60779814981,{"$f":"+J19","v":9186.3244753000617},0,null,null,{"$f":"+N19","v":4868014.8449833766},7942550.5365518238,null,1020759.5809754925,1665449.8426442249,null,{"$f":"+T19","v":106179.38553305669},426922.37495807884,231696.17710846383,21352.151917695708,122558.51828085515,null,null,{"$f":"ROUND(SUM(-E76,G76:K76),0)","v":0},{"$f":"ROUND(G76-N76-O76,0)","v":0},{"$f":"ROUND(H76-Q76-R76,0)","v":0},{"$f":"ROUND(I76-T76-U76-V76-W76-X76,0)","v":0}]
["Investment Tax Credit",null,null,{"$f":"+'G+T+D+R+M'!H97","v":0},{"$f":"+E20","v":0},0,0,0,0,0,0,null,null,0,0,null,0,0,null,0,0,0,0,0,null,null,{"$f":"ROUND(SUM(-E77,G77:K77),0)","v":0},{"$f":"ROUND(G77-N77-O77,0)","v":0},{"$f":"ROUND(H77-Q77-R77,0)","v":0},{"$f":"ROUND(I77-T77-U77-V77-W77-X77,0)","v":0}]
["Misc Revenue & Expenses",null,null,{"$f":"+'G+T+D+R+M'!H98","v":-842347.30266372964},{"$f":"+E21","v":-842347.32514905161},0,-853313.31999234774,516.47518278949883,3674.2548731014076,6775.2872727272734,0,null,null,-324259.06159709214,-529054.25839525554,null,196.26056946000955,320.21461332948928,null,431.64990981882909,1768.2584396467771,896.73169213511289,103.86639824167921,473.74843325900923,null,null,{"$f":"ROUND(SUM(-E78,G78:K78),0)","v":0},{"$f":"ROUND(G78-N78-O78,0)","v":0},{"$f":"ROUND(H78-Q78-R78,0)","v":0},{"$f":"ROUND(I78-T78-U78-V78-W78-X78,0)","v":0}]
["Revenue Credits",null,null,{"$f":"+'G+T+D+R+M'!H99","v":-24632889.252997145},{"$f":"-(+H259+H260+H275+H289+H292+H334)-H295-H296","v":-24632889.252997145},0,{"$f":"-(+J260+J259+J275+J289+J294+J334)-J295-J296","v":-21489306.888866592},{"$f":"-(+K260+K259+K275+K289+K294+K334)-K295-K296","v":-3517284.7233469267},{"$f":"-(+L260+L259+L275+L289+L294+L334)-L295-L296","v":-1743839.5782287752},{"$f":"-(+M260+M259+M275+M289+M294+M334)-M295-M296","v":-849947.59742200782},{"$f":"-(+N260+N259+N275+N289+N294+N334)-N295-N296","v":2967489.5348671526},null,null,{"$f":"-(+Q260+Q259+Q275+Q289+Q294+Q334)-Q295-Q296","v":-8165936.6177693047},{"$f":"-(+R260+R259+R275+R289+R294+R334)-R295-R296","v":-13323370.271097284},null,{"$f":"-(+T260+T259+T275+T289+T294+T334)-T295-T296","v":-1336568.1948718322},{"$f":"-(+U260+U259+U275+U289+U294+U334)-U295-U296","v":-2180716.5284750946},null,{"$f":"-(+W260+W259+W275+W289+W294+W334)-W295-W296","v":-223133.93866081559},{"$f":"-(+X260+X259+X275+X289+X294+X334)-X295-X296","v":-801255.4299549649},{"$f":"-(+Y260+Y259+Y275+Y289+Y294+Y334)-Y295-Y296","v":-422572.34897673503},{"$f":"-(+Z260+Z259+Z275+Z289+Z294+Z334)-Z295-Z296","v":-58560.769067793255},{"$f":"-(+AA260+AA259+AA275+AA289+AA294+AA334)-AA295-AA296","v":-238317.09156846663},null,null,{"$f":"ROUND(SUM(-E79,G79:K79),0)","v":0},{"$f":"ROUND(G79-N79-O79,0)","v":0},{"$f":"ROUND(H79-Q79-R79,0)","v":0},{"$f":"ROUND(I79-T79-U79-V79-W79-X79,0)","v":0}]
[]
["Total Revenue Requirements",null,null,{"$f":"+'G+T+D+R+M'!H101","v":303227595.86437178},{"$f":"SUM(E66:E79)","v":303227595.8418864},{"$f":"ROUND(D81-E81,0)","v":0},{"$f":"SUM(G66:G79)","v":198682206.47757652},{"$f":"SUM(H66:H79)","v":48517818.612752534},{"$f":"SUM(I66:I79)","v":42826123.583491527},{"$f":"SUM(J66:J79)","v":8350814.6490011215},{"$f":"SUM(K66:K79)","v":4850632.5415500216},null,null,{"$f":"SUM(N66:N79)","v":75499238.461479083},123182968.01609747,null,18436770.669253405,30081047.943499137,null,5865769.2645024452,22573948.340673227,7909732.0563639384,2295342.8216503263,4181331.1003015744,null,null,{"$f":"ROUND(SUM(-E81,G81:K81),0)","v":0},{"$f":"ROUND(G81-N81-O81,0)","v":0},{"$f":"ROUND(H81-Q81-R81,0)","v":0},{"$f":"ROUND(I81-T81-U81-V81-W81-X81,0)","v":0}]
["Operating Revenues",null,null,{"$f":"+'G+T+D+R+M'!H102","v":303227595.86437166}]
[]
[]
[]
[]
[]
[]
[]
[]
[]
[]
[]
[]
[]
[]
[]
[]
[]
[]
[]
[]
[]
[]
[]
[]
[]
[]
[]
[]
[]
[]
[]
[]
[]
[]
[]
[]
[]
[]
[]
[]
[]
[]
[]
[]
[]
[]
[]
[]
[]
[]
[]
[]
[]
[]
[]
[]
[]
[]
[]
[]
[]
[]
[]
[]
[]
[]
[]
[]
[]
[]
[]
[]
[]
[]
[]
[]
[]
[]
[]
[]
[]
[]
[]
[]
[]
[]
[]
[]
[]
[]
[]
[]
[]
[]
[]
[]
[]
[]
[]
[]
[]
[]
[]
[]
[]
[]
[]
[]
[]
[]
[]
[]
[]
[]
[]
[]
[]
[]
[]
[]
[]
[]
[]
[]
[]
[]
[]
[]
[]
[]
[]
[]
[]
[]
[]
[]
[]
[]
[]
[]
[]
[]
[]
[]
[]
[]
[]
[]
[]
[]
[]
[]
[{"$f":"Inputs!$C$3","v":"PacifiCorp"},null,null,null,null,null,null,null,null,null,null,null,null,null,null,null,null,null,null,null,null,null,null,null,null,null,null,null,null,"ERROR Check Totals"]
["Cost Of Service By Rate Schedule"]
[{"$f":"Inputs!$C$4","v":"State of Washington"},null,null,null,null,null,null,null,null,null,null,null,null,null,null,null,null,null,null,null,null,null,null,null,null,null,null,null,null,"Function","Generation","Transmission","Distribution"]
[{"$f":"Inputs!$C$6","v":"WCA Method"},null,null,null,null,null,null,null,null,null,null,null,null,null,null,null,null,null,null,null,null,null,null,null,null,null,null,null,null,"Check","Check","Check","Check"]
[{"$f":"Inputs!$C$5","v":"12 Months Ending June 2012"}]
[null,null,null,null,null,null,null,null,null,null,null,null,null,null,null,null,null,null,null,null,null,null,null,null,null,null,null,null,"Largest Difference",{"$f":"IF(MAX(AD$252:AD$2576)>ABS(MIN(AD$252:AD$2576)),MAX(AD$252:AD$2576),MIN(AD$252:AD$2576))","v":0},{"$f":"IF(MAX(AE$252:AE$2576)>ABS(MIN(AE$252:AE$2576)),MAX(AE$252:AE$2576),MIN(AE$252:AE$2576))","v":0},{"$f":"IF(MAX(AF$252:AF$2576)>ABS(MIN(AF$252:AF$2576)),MAX(AF$252:AF$2576),MIN(AF$252:AF$2576))","v":0},{"$f":"IF(MAX(AG$252:AG$2576)>ABS(MIN(AG$252:AG$2576)),MAX(AG$252:AG$2576),MIN(AG$252:AG$2576))","v":0}]
[null,null,null,null,null,null,null,null,null,null,null,null,null,null,null,null,null,null,null,null,null,null,null,null,null,null,null,null,"Location (Row)",{"$f":"IF(AD240<>0,MATCH(AD240,AD254:AD2519,0)+ROW(AD253),0)","v":0},{"$f":"IF(AE240<>0,MATCH(AE240,AE254:AE2519,0)+ROW(AE253),0)","v":0},{"$f":"IF(AF240<>0,MATCH(AF240,AF254:AF2519,0)+ROW(AF253),0)","v":0},{"$f":"IF(AG240<>0,MATCH(AG240,AG254:AG2519,0)+ROW(AG253),0)","v":0}]
[]
[]
[]
[]
["A","B","C","D","E","F","G","H","I","J","K","L","M","N",null,"O","P","Q","R","S","T","U","V","W","X","Y","Z","AA","AB"]
[]
[null,{"$f":"TestPeriod","v":"12 Months Ending June 2012"},null,null,null,null,null,null,"\"TYP\"",{"$f":"PROPER(J251)","v":"Total"},{"$f":"PROPER(K251)","v":"Total"},{"$f":"PROPER(L251)","v":"Total"},{"$f":"PROPER(M251)","v":"Total"},{"$f":"PROPER(N251)","v":"Total"},null,"Total","Demand","Energy","Total","Demand","Energy"]
[]
[250,"FERC",null,"DESCRIPTION &","FERC",null,"RANGE","Jurisdictional","FUNC","GEN","TRN","DIS","RETAIL","MISC",null,"D / E","GEN","GEN","D / E","TRN","TRN","DIS","DIS","DIS","DIS","DIS","DIS","DIS",{"$f":"IF(AB250=\"MISC\",\"MISC\",IF(AB250=\"Retail\",\"Retail\",IF(AB250=\"DIS\",\"Distribution\",IF(AB250=\"GEN\",\"Generation\",IF(AB250=\"TRN\",\"Transmission\",\"Jurisdictional\")))))","v":"Distribution"},"Function","Generation","Transmission","Distribution"]
[{"$f":"A250+1","v":251},"ACCT",null,"CONSENSUS FACTOR","ACCT","FACTOR","NAME","ADJ Total","FACTOR","Total","Total","Total","Total","Total",null,"Total","Demand","Energy","Total","Demand","Energy","FACTOR","SUBS","P & C","XFMR","METER","SERVICE","METER",{"$f":"IF(AB251=\"SUBS\",\"Substations\",IF(AB251=\"XFMR\",\"Transformers\",\"\")) & \" Unbundled\"","v":" Unbundled"},"Check","Check","Check","Check"]
[{"$f":"A251+1","v":252},"Sales to Ultimate Customers",null,null,null,null,null,null,"WCA",null,null,null,null,null,null,null,null,null,null,null,null,"WCA"]
[253,440,"Residential Sales"]
[254,null,null,"S",440,"S","ACCT440S",{"$f":"'JAM Download'!$E4","v":135000239.56999999},"NONE",{"$f":"VLOOKUP($I254,Func,2)*$H254","v":0},{"$f":"VLOOKUP($I254,Func,3)*$H254","v":0},{"$f":"VLOOKUP($I254,Func,5)*$H254","v":0},{"$f":"VLOOKUP($I254,Func,6)*$H254","v":0},{"$f":"VLOOKUP($I254,Func,7)*$H254","v":0},null,{"$f":"Demand","v":0.38},{"$f":"+$J254*$P254","v":0},{"$f":"+$J254*(1-$P254)","v":0},{"$f":"Demand","v":0.38},{"$f":"+$K254*$S254","v":0},{"$f":"+$K254*(1-$S254)","v":0},"DRB",{"$f":"+$L254*VLOOKUP($V254,DisFac,2)","v":0},{"$f":"+$L254*VLOOKUP($V254,DisFac,3)","v":0},{"$f":"+$L254*VLOOKUP($V254,DisFac,4)","v":0},{"$f":"+$L254*VLOOKUP($V254,DisFac,5)","v":0},{"$f":"+$L254*VLOOKUP($V254,DisFac,6)","v":0},0,"UACCT440S",null,{"$f":"ROUND(J254-Q254-R254,0)","v":0},{"$f":"ROUND(K254-T254-U254,0)","v":0},{"$f":"ROUND(L254-W254-X254-Y254-Z254-AA254,0)","v":0}]
[255,null,null,null,null,null,"ACCT440",{"$f":"'JAM Download'!$E6","v":135000239.56999999},null,{"$f":"SUM(J254:J254)","v":0},{"$f":"SUM(K254:K254)","v":0},{"$f":"SUM(L254:L254)","v":0},{"$f":"SUM(M254:M254)","v":0},{"$f":"SUM(N254:N254)","v":0},null,null,{"$f":"SUM(Q254:Q254)","v":0},{"$f":"SUM(R254:R254)","v":0},null,{"$f":"SUM(T254:T254)","v":0},{"$f":"SUM(U254:U254)","v":0},null,{"$f":"SUM(W254:W254)","v":0},{"$f":"SUM(X254:X254)","v":0},{"$f":"SUM(Y254:Y254)","v":0},{"$f":"SUM(Z254:Z254)","v":0},{"$f":"SUM(AA254:AA254)","v":0},0,"UACCT440",null,{"$f":"ROUND(J255-Q255-R255,0)","v":0},{"$f":"ROUND(K255-T255-U255,0)","v":0},{"$f":"ROUND(L255-W255-X255-Y255-Z255-AA255,0)","v":0}]
[256]
[257,442,"Commercial & Industrial Sales"]
[258,null,null,"S",442,"S","ACCT442S",{"$f":"'JAM Download'!$E9","v":167900916.90000001},"NONE",{"$f":"VLOOKUP($I258,Func,2)*$H258","v":0},{"$f":"VLOOKUP($I258,Func,3)*$H258","v":0},{"$f":"VLOOKUP($I258,Func,5)*$H258","v":0},{"$f":"VLOOKUP($I258,Func,6)*$H258","v":0},{"$f":"VLOOKUP($I258,Func,7)*$H258","v":0},null,{"$f":"Demand","v":0.38},{"$f":"+$J258*$P258","v":0},{"$f":"+$J258*(1-$P258)","v":0},{"$f":"Demand","v":0.38},{"$f":"+$K258*$S258","v":0},{"$f":"+$K258*(1-$S258)","v":0},"DRB",{"$f":"+$L258*VLOOKUP($V258,DisFac,2)","v":0},{"$f":"+$L258*VLOOKUP($V258,DisFac,3)","v":0},{"$f":"+$L258*VLOOKUP($V258,DisFac,4)","v":0},{"$f":"+$L258*VLOOKUP($V258,DisFac,5)","v":0},{"$f":"+$L258*VLOOKUP($V258,DisFac,6)","v":0},0,"UACCT442S",null,{"$f":"ROUND(J258-Q258-R258,0)","v":0},{"$f":"ROUND(K258-T258-U258,0)","v":0},{"$f":"ROUND(L258-W258-X258-Y258-Z258-AA258,0)","v":0}]
[259,null,null,"SE",442,"SE","ACCT442SE",{"$f":"'JAM Download'!$E10","v":0},"P",{"$f":"VLOOKUP($I259,Func,2)*$H259","v":0},{"$f":"VLOOKUP($I259,Func,3)*$H259","v":0},{"$f":"VLOOKUP($I259,Func,5)*$H259","v":0},{"$f":"VLOOKUP($I259,Func,6)*$H259","v":0},{"$f":"VLOOKUP($I259,Func,7)*$H259","v":0},null,{"$f":"Demand","v":0.38},{"$f":"+$J259*$P259","v":0},{"$f":"+$J259*(1-$P259)","v":0},{"$f":"Demand","v":0.38},{"$f":"+$K259*$S259","v":0},{"$f":"+$K259*(1-$S259)","v":0},"DRB",{"$f":"+$L259*VLOOKUP($V259,DisFac,2)","v":0},{"$f":"+$L259*VLOOKUP($V259,DisFac,3)","v":0},{"$f":"+$L259*VLOOKUP($V259,DisFac,4)","v":0},{"$f":"+$L259*VLOOKUP($V259,DisFac,5)","v":0},{"$f":"+$L259*VLOOKUP($V259,DisFac,6)","v":0},0,"UACCT442SE",{"$f":"ROUND(SUM(-H259,J259:N259),0)","v":0},{"$f":"ROUND(J259-Q259-R259,0)","v":0},{"$f":"ROUND(K259-T259-U259,0)","v":0},{"$f":"ROUND(L259-W259-X259-Y259-Z259-AA259,0)","v":0}]
[260,null,null,"SG",442,"SG","ACCT442SG",{"$f":"'JAM Download'!$E11","v":0},"PT",{"$f":"VLOOKUP($I260,Func,2)*$H260","v":0},{"$f":"VLOOKUP($I260,Func,3)*$H260","v":0},{"$f":"VLOOKUP($I260,Func,5)*$H260","v":0},{"$f":"VLOOKUP($I260,Func,6)*$H260","v":0},{"$f":"VLOOKUP($I260,Func,7)*$H260","v":0},null,{"$f":"Demand","v":0.38},{"$f":"+$J260*$P260","v":0},{"$f":"+$J260*(1-$P260)","v":0},{"$f":"Demand","v":0.38},{"$f":"+$K260*$S260","v":0},{"$f":"+$K260*(1-$S260)","v":0},"DRB",{"$f":"+$L260*VLOOKUP($V260,DisFac,2)","v":0},{"$f":"+$L260*VLOOKUP($V260,DisFac,3)","v":0},{"$f":"+$L260*VLOOKUP($V260,DisFac,4)","v":0},{"$f":"+$L260*VLOOKUP($V260,DisFac,5)","v":0},{"$f":"+$L260*VLOOKUP($V260,DisFac,6)","v":0},0,"UACCT442SG",{"$f":"ROUND(SUM(-H260,J260:N260),0)","v":0},{"$f":"ROUND(J260-Q260-R260,0)","v":0},{"$f":"ROUND(K260-T260-U260,0)","v":0},{"$f":"ROUND(L260-W260-X260-Y260-Z260-AA260,0)","v":0}]
[261,null,null,null,null,null,"ACCT442",{"$f":"'JAM Download'!$E14","v":167900916.90000001},null,{"$f":"SUM(J258:J260)","v":0},{"$f":"SUM(K258:K260)","v":0},{"$f":"SUM(L258:L260)","v":0},{"$f":"SUM(M258:M260)","v":0},{"$f":"SUM(N258:N260)","v":0},null,null,{"$f":"SUM(Q258:Q260)","v":0},{"$f":"SUM(R258:R260)","v":0},null,{"$f":"SUM(T258:T260)","v":0},{"$f":"SUM(U258:U260)","v":0},null,{"$f":"SUM(W258:W260)","v":0},{"$f":"SUM(X258:X260)","v":0},{"$f":"SUM(Y258:Y260)","v":0},{"$f":"SUM(Z258:Z260)","v":0},{"$f":"SUM(AA258:AA260)","v":0},0,"UACCT442",null,{"$f":"ROUND(J261-Q261-R261,0)","v":0},{"$f":"ROUND(K261-T261-U261,0)","v":0},{"$f":"ROUND(L261-W261-X261-Y261-Z261-AA261,0)","v":0}]
[262]
[263,444,"Public Street & Highway Lighting"]
[264,null,null,"S",444,"S","ACCT444S",{"$f":"'JAM Download'!$E17","v":1162053.8799999999},"NONE",{"$f":"VLOOKUP($I264,Func,2)*$H264","v":0},{"$f":"VLOOKUP($I264,Func,3)*$H264","v":0},{"$f":"VLOOKUP($I264,Func,5)*$H264","v":0},{"$f":"VLOOKUP($I264,Func,6)*$H264","v":0},{"$f":"VLOOKUP($I264,Func,7)*$H264","v":0},null,{"$f":"Demand","v":0.38},{"$f":"+$J264*$P264","v":0},{"$f":"+$J264*(1-$P264)","v":0},{"$f":"Demand","v":0.38},{"$f":"+$K264*$S264","v":0},{"$f":"+$K264*(1-$S264)","v":0},"DRB",{"$f":"+$L264*VLOOKUP($V264,DisFac,2)","v":0},{"$f":"+$L264*VLOOKUP($V264,DisFac,3)","v":0},{"$f":"+$L264*VLOOKUP($V264,DisFac,4)","v":0},{"$f":"+$L264*VLOOKUP($V264,DisFac,5)","v":0},{"$f":"+$L264*VLOOKUP($V264,DisFac,6)","v":0},0,"UACCT444S",null,{"$f":"ROUND(J264-Q264-R264,0)","v":0},{"$f":"ROUND(K264-T264-U264,0)","v":0},{"$f":"ROUND(L264-W264-X264-Y264-Z264-AA264,0)","v":0}]
[265,null,null,"SO",444,"SO","ACCT444SO",{"$f":"'JAM Download'!$E18","v":0},"GP",{"$f":"VLOOKUP($I265,Func,2)*$H265","v":0},{"$f":"VLOOKUP($I265,Func,3)*$H265","v":0},{"$f":"VLOOKUP($I265,Func,5)*$H265","v":0},{"$f":"VLOOKUP($I265,Func,6)*$H265","v":0},{"$f":"VLOOKUP($I265,Func,7)*$H265","v":0},null,{"$f":"Demand","v":0.38},{"$f":"+$J265*$P265","v":0},{"$f":"+$J265*(1-$P265)","v":0},{"$f":"Demand","v":0.38},{"$f":"+$K265*$S265","v":0},{"$f":"+$K265*(1-$S265)","v":0},"DRB",{"$f":"+$L265*VLOOKUP($V265,DisFac,2)","v":0},{"$f":"+$L265*VLOOKUP($V265,DisFac,3)","v":0},{"$f":"+$L265*VLOOKUP($V265,DisFac,4)","v":0},{"$f":"+$L265*VLOOKUP($V265,DisFac,5)","v":0},{"$f":"+$L265*VLOOKUP($V265,DisFac,6)","v":0},0,"UACCT444S0",{"$f":"ROUND(SUM(-H265,J265:N265),0)","v":0},{"$f":"ROUND(J265-Q265-R265,0)","v":0},{"$f":"ROUND(K265-T265-U265,0)","v":0}]
[266,null,null,null,null,null,"ACCT444",{"$f":"'JAM Download'!$E19","v":1162053.8799999999},null,{"$f":"+J264+J265","v":0},{"$f":"+K264+K265","v":0},{"$f":"+L264+L265","v":0},{"$f":"+M264+M265","v":0},{"$f":"+N264+N265","v":0},null,null,{"$f":"+Q264+Q265","v":0},{"$f":"+R264+R265","v":0},null,{"$f":"+T264+T265","v":0},{"$f":"+U264+U265","v":0},null,{"$f":"+W264+W265","v":0},{"$f":"+X264+X265","v":0},{"$f":"+Y264+Y265","v":0},{"$f":"+Z264+Z265","v":0},{"$f":"+AA264+AA265","v":0},0,"UACCT444",null,{"$f":"ROUND(J266-Q266-R266,0)","v":0},{"$f":"ROUND(K266-T266-U266,0)","v":0},{"$f":"ROUND(L266-W266-X266-Y266-Z266-AA266,0)","v":0}]
[267,null,null,null,null,null," ",null,null,null,null,null,null,null,null,null,null,null,null,null,null,null,null,null,null,null,null,null," "]
[268,445,"Other Sales to Public Authority"]
[269,null,null,"S",445,"S","ACCT445S",{"$f":"'JAM Download'!$E22","v":0},"NONE",{"$f":"VLOOKUP($I269,Func,2)*$H269","v":0},{"$f":"VLOOKUP($I269,Func,3)*$H269","v":0},{"$f":"VLOOKUP($I269,Func,5)*$H269","v":0},{"$f":"VLOOKUP($I269,Func,6)*$H269","v":0},{"$f":"VLOOKUP($I269,Func,7)*$H269","v":0},null,{"$f":"Demand","v":0.38},{"$f":"+$J269*$P269","v":0},{"$f":"+$J269*(1-$P269)","v":0},{"$f":"Demand","v":0.38},{"$f":"+$K269*$S269","v":0},{"$f":"+$K269*(1-$S269)","v":0},"DRB",{"$f":"+$L269*VLOOKUP($V269,DisFac,2)","v":0},{"$f":"+$L269*VLOOKUP($V269,DisFac,3)","v":0},{"$f":"+$L269*VLOOKUP($V269,DisFac,4)","v":0},{"$f":"+$L269*VLOOKUP($V269,DisFac,5)","v":0},{"$f":"+$L269*VLOOKUP($V269,DisFac,6)","v":0},0,"UACCT445S",null,{"$f":"ROUND(J269-Q269-R269,0)","v":0},{"$f":"ROUND(K269-T269-U269,0)","v":0},{"$f":"ROUND(L269-W269-X269-Y269-Z269-AA269,0)","v":0}]
[270]
[271,null,null,null,null,null,"ACCT445",{"$f":"'JAM Download'!$E24","v":0},null,{"$f":"+J269","v":0},{"$f":"+K269","v":0},{"$f":"+L269","v":0},{"$f":"+M269","v":0},{"$f":"+N269","v":0},null,null,{"$f":"+Q269","v":0},{"$f":"+R269","v":0},null,{"$f":"+T269","v":0},{"$f":"+U269","v":0},null,{"$f":"+W269","v":0},{"$f":"+X269","v":0},{"$f":"+Y269","v":0},{"$f":"+Z269","v":0},{"$f":"+AA269","v":0},0,"UACCT445",null,{"$f":"ROUND(J271-Q271-R271,0)","v":0},{"$f":"ROUND(K271-T271-U271,0)","v":0},{"$f":"ROUND(L271-W271-X271-Y271-Z271-AA271,0)","v":0}]
[272]
[273,448,"Interdepartmental"]
[274,null,null,"S",448,"S","ACCT448S",{"$f":"'JAM Download'!$E27","v":0},"DPW",{"$f":"VLOOKUP($I274,Func,2)*$H274","v":0},{"$f":"VLOOKUP($I274,Func,3)*$H274","v":0},{"$f":"VLOOKUP($I274,Func,5)*$H274","v":0},{"$f":"VLOOKUP($I274,Func,6)*$H274","v":0},{"$f":"VLOOKUP($I274,Func,7)*$H274","v":0},null,{"$f":"Demand","v":0.38},{"$f":"+$J274*$P274","v":0},{"$f":"+$J274*(1-$P274)","v":0},{"$f":"Demand","v":0.38},{"$f":"+$K274*$S274","v":0},{"$f":"+$K274*(1-$S274)","v":0},"DRB",{"$f":"+$L274*VLOOKUP($V274,DisFac,2)","v":0},{"$f":"+$L274*VLOOKUP($V274,DisFac,3)","v":0},{"$f":"+$L274*VLOOKUP($V274,DisFac,4)","v":0},{"$f":"+$L274*VLOOKUP($V274,DisFac,5)","v":0},{"$f":"+$L274*VLOOKUP($V274,DisFac,6)","v":0},0,"UACCT448S",{"$f":"ROUND(SUM(-H274,J274:N274),0)","v":0},{"$f":"ROUND(J274-Q274-R274,0)","v":0},{"$f":"ROUND(K274-T274-U274,0)","v":0},{"$f":"ROUND(L274-W274-X274-Y274-Z274-AA274,0)","v":0}]
[275,null,null,"SO",448,"SO","ACCT448SO",{"$f":"'JAM Download'!$E28","v":0},"GP",{"$f":"VLOOKUP($I275,Func,2)*$H275","v":0},{"$f":"VLOOKUP($I275,Func,3)*$H275","v":0},{"$f":"VLOOKUP($I275,Func,5)*$H275","v":0},{"$f":"VLOOKUP($I275,Func,6)*$H275","v":0},{"$f":"VLOOKUP($I275,Func,7)*$H275","v":0},null,{"$f":"Demand","v":0.38},{"$f":"+$J275*$P275","v":0},{"$f":"+$J275*(1-$P275)","v":0},{"$f":"Demand","v":0.38},{"$f":"+$K275*$S275","v":0},{"$f":"+$K275*(1-$S275)","v":0},"DRB",{"$f":"+$L275*VLOOKUP($V275,DisFac,2)","v":0},{"$f":"+$L275*VLOOKUP($V275,DisFac,3)","v":0},{"$f":"+$L275*VLOOKUP($V275,DisFac,4)","v":0},{"$f":"+$L275*VLOOKUP($V275,DisFac,5)","v":0},{"$f":"+$L275*VLOOKUP($V275,DisFac,6)","v":0},0,"UACCT448SO",{"$f":"ROUND(SUM(-H275,J275:N275),0)","v":0},{"$f":"ROUND(J275-Q275-R275,0)","v":0},{"$f":"ROUND(K275-T275-U275,0)","v":0},{"$f":"ROUND(L275-W275-X275-Y275-Z275-AA275,0)","v":0}]
[276,null,null,null,null,null,"ACCT448",{"$f":"'JAM Download'!$E29","v":0},null,{"$f":"SUM(J274:J275)","v":0},{"$f":"SUM(K274:K275)","v":0},{"$f":"SUM(L274:L275)","v":0},{"$f":"SUM(M274:M275)","v":0},{"$f":"SUM(N274:N275)","v":0},null,null,{"$f":"SUM(Q274:Q275)","v":0},{"$f":"SUM(R274:R275)","v":0},null,{"$f":"SUM(T274:T275)","v":0},{"$f":"SUM(U274:U275)","v":0},null,{"$f":"SUM(W274:W275)","v":0},{"$f":"SUM(X274:X275)","v":0},{"$f":"SUM(Y274:Y275)","v":0},{"$f":"SUM(Z274:Z275)","v":0},{"$f":"SUM(AA274:AA275)","v":0},0,"UACCT448",{"$f":"ROUND(SUM(-H276,J276:N276),0)","v":0},{"$f":"ROUND(J276-Q276-R276,0)","v":0},{"$f":"ROUND(K276-T276-U276,0)","v":0},{"$f":"ROUND(L276-W276-X276-Y276-Z276-AA276,0)","v":0}]
[277]
[278,"Total Sales to Ultimate Customers",null,null,null,null,null,{"$f":"'JAM Download'!$E31","v":304063210.35000002},null,{"$f":"+J276+J271+J266+J261+J255","v":0},{"$f":"+K276+K271+K266+K261+K255","v":0},{"$f":"+L276+L271+L266+L261+L255","v":0},{"$f":"+M276+M271+M266+M261+M255","v":0},{"$f":"+N276+N271+N266+N261+N255","v":0},null,null,{"$f":"+Q276+Q271+Q266+Q261+Q255","v":0},{"$f":"+R276+R271+R266+R261+R255","v":0},{"$f":"+S276+S271+S266+S261+S255","v":0},{"$f":"+T276+T271+T266+T261+T255","v":0},{"$f":"+U276+U271+U266+U261+U255","v":0},null,{"$f":"+W276+W271+W266+W261+W255","v":0},{"$f":"+X276+X271+X266+X261+X255","v":0},{"$f":"+Y276+Y271+Y266+Y261+Y255","v":0},{"$f":"+Z276+Z271+Z266+Z261+Z255","v":0},{"$f":"+AA276+AA271+AA266+AA261+AA255","v":0},0,null,null,{"$f":"ROUND(J278-Q278-R278,0)","v":0},{"$f":"ROUND(K278-T278-U278,0)","v":0},{"$f":"ROUND(L278-W278-X278-Y278-Z278-AA278,0)","v":0}]
[279]
[280,447,"Sales for Resale",null,447,"S","ACCT447S",{"$f":"'JAM Download'!E38","v":0},"P",null,null,null,null,null,null,null,null,null,null,null,null,"DRB",null,null,null,null,null,null,"UACCT447"]
[281]
[282,"447NPC","Sales for Resale - NPC"]
[283,null,null,"S","447NPC","S","ACCT447NPCS",{"$f":"$H$289*$H663/$H$671","v":0},"P",{"$f":"VLOOKUP($I283,Func,2)*$H283","v":0},{"$f":"VLOOKUP($I283,Func,3)*$H283","v":0},{"$f":"VLOOKUP($I283,Func,5)*$H283","v":0},{"$f":"VLOOKUP($I283,Func,6)*$H283","v":0},{"$f":"VLOOKUP($I283,Func,7)*$H283","v":0},null,{"$f":"Demand","v":0.38},{"$f":"+$J283*$P283","v":0},{"$f":"+$J283*(1-$P283)","v":0},{"$f":"Demand","v":0.38},{"$f":"+$K283*$S283","v":0},{"$f":"+$K283*(1-$S283)","v":0},"DRB",{"$f":"+$L283*VLOOKUP($V283,DisFac,2)","v":0},{"$f":"+$L283*VLOOKUP($V283,DisFac,3)","v":0},{"$f":"+$L283*VLOOKUP($V283,DisFac,4)","v":0},{"$f":"+$L283*VLOOKUP($V283,DisFac,5)","v":0},{"$f":"+$L283*VLOOKUP($V283,DisFac,6)","v":0},0,"UACCT447NPCS",{"$f":"ROUND(SUM(-H283,J283:N283),0)","v":0},{"$f":"ROUND(J283-Q283-R283,0)","v":0},{"$f":"ROUND(K283-T283-U283,0)","v":0},{"$f":"ROUND(L283-W283-X283-Y283-Z283-AA283,0)","v":0}]
[284,null,null,"SG","447NPC","SG","ACCT447NPCSG",{"$f":"$H$289*$H664/$H$671","v":0},"P",0,0,0,0,0,null,0.38,0,0,0.38,0,0,"DRB",0,0,0,0,0,0,"UACCT447NPCSG",0,0,0,0]
[285,null,null,"SE","447NPC","SE","ACCT447NPCSE",{"$f":"$H$289*$H665/$H$671","v":0},"P",0,0,0,0,0,null,0.38,0,0,0.38,0,0,"DRB",0,0,0,0,0,0,"UACCT447NPCSE",0,0,0,0]
[286,null,null,"CAEW","447NPC","CAEW","ACCT447NPCCAEW",{"$f":"$H$289*$H669/$H$671","v":870715.40737176989},"P",870715.40737176989,0,0,0,0,null,0.38,330871.85480127257,539843.55257049738,0.38,0,0,"DRB",0,0,0,0,0,0,"UACCT447NPCCAEW",0,0,0,0]
[287,null,null,"CAGW","447NPC","CAGW","ACCT447NPCCAGW",{"$f":"$H$289*$H668/$H$671","v":16130951.684913587},"P",16130951.684913587,0,0,0,0,null,0.38,6129761.6402671635,10001190.044646423,0.38,0,0,"DRB",0,0,0,0,0,0,"UACCT447NPCCAGW",0,0,0,0]
[288,null,null,"DGP","447NPC","DGP","ACCT447NPCDGP",{"$f":"$H$289*$H670/$H$671","v":0},"P",0,0,0,0,0,null,0.38,0,0,0.38,0,0,"DRB",0,0,0,0,0,0,"UACCT447NPCDGP",0,0,0,0]
[289,null,null,null,null,null,"ACCT447NPC",{"$f":"'JAM Download'!$E$48","v":17001667.092285357},null,{"$f":"SUM(J283:J288)","v":17001667.092285357},{"$f":"SUM(K283:K288)","v":0},{"$f":"SUM(L283:L288)","v":0},{"$f":"SUM(M283:M288)","v":0},{"$f":"SUM(N283:N288)","v":0},null,null,{"$f":"SUM(Q283:Q288)","v":6460633.4950684365},{"$f":"SUM(R283:R288)","v":10541033.597216921},null,{"$f":"SUM(T283:T288)","v":0},{"$f":"SUM(U283:U288)","v":0},null,{"$f":"SUM(W283:W288)","v":0},{"$f":"SUM(X283:X288)","v":0},{"$f":"SUM(Y283:Y288)","v":0},{"$f":"SUM(Z283:Z288)","v":0},{"$f":"SUM(AA283:AA288)","v":0},0,"UACCT447NPC",0,0,0,0]
[290,null,null,null,null,null,null,{"$f":"'JAM Download'!E51","v":0}]
[291,449,"Provision for Rate Refund",null,null,null,null,{"$f":"'JAM Download'!E52","v":0}]
[292,null,null,"S",449,"S","ACCT449S",{"$f":"'JAM Download'!E53","v":0},"NONE",{"$f":"VLOOKUP($I292,Func,2)*$H290","v":0},{"$f":"VLOOKUP($I292,Func,3)*$H290","v":0},{"$f":"VLOOKUP($I292,Func,5)*$H290","v":0},{"$f":"VLOOKUP($I292,Func,6)*$H290","v":0},{"$f":"VLOOKUP($I292,Func,7)*$H290","v":0},null,{"$f":"Demand","v":0.38},{"$f":"+$J292*$P292","v":0},{"$f":"+$J292*(1-$P292)","v":0},{"$f":"Demand","v":0.38},{"$f":"+$K292*$S292","v":0},{"$f":"+$K292*(1-$S292)","v":0},"DRB",{"$f":"+$L292*VLOOKUP($V292,DisFac,2)","v":0},{"$f":"+$L292*VLOOKUP($V292,DisFac,3)","v":0},{"$f":"+$L292*VLOOKUP($V292,DisFac,4)","v":0},{"$f":"+$L292*VLOOKUP($V292,DisFac,5)","v":0},{"$f":"+$L292*VLOOKUP($V292,DisFac,6)","v":0},0,"UACCT449S",null,{"$f":"ROUND(J292-Q292-R292,0)","v":0},{"$f":"ROUND(K292-T292-U292,0)","v":0},{"$f":"ROUND(L292-W292-X292-Y292-Z292-AA292,0)","v":0}]
[293,null,null,"DGP",449,"SG","ACCT449DGP",{"$f":"'JAM Download'!E54","v":0},"P",{"$f":"VLOOKUP($I293,Func,2)*$H291","v":0},{"$f":"VLOOKUP($I293,Func,3)*$H291","v":0},{"$f":"VLOOKUP($I293,Func,5)*$H291","v":0},{"$f":"VLOOKUP($I293,Func,6)*$H291","v":0},{"$f":"VLOOKUP($I293,Func,7)*$H291","v":0},null,{"$f":"Demand","v":0.38},{"$f":"+$J293*$P293","v":0},{"$f":"+$J293*(1-$P293)","v":0},{"$f":"Demand","v":0.38},{"$f":"+$K293*$S293","v":0},{"$f":"+$K293*(1-$S293)","v":0},"DRB",{"$f":"+$L293*VLOOKUP($V293,DisFac,2)","v":0},{"$f":"+$L293*VLOOKUP($V293,DisFac,3)","v":0},{"$f":"+$L293*VLOOKUP($V293,DisFac,4)","v":0},{"$f":"+$L293*VLOOKUP($V293,DisFac,5)","v":0},{"$f":"+$L293*VLOOKUP($V293,DisFac,6)","v":0},0,"UACCT449DGP",{"$f":"ROUND(SUM(-H291,J293:N293),0)","v":0},{"$f":"ROUND(J293-Q293-R293,0)","v":0},{"$f":"ROUND(K293-T293-U293,0)","v":0},{"$f":"ROUND(L293-W293-X293-Y293-Z293-AA293,0)","v":0}]
[294,null,null,null,null,null,"ACCT449",{"$f":"'JAM Download'!E55","v":0},null,{"$f":"SUM(J292:J293)","v":0},{"$f":"SUM(K292:K293)","v":0},{"$f":"SUM(L292:L293)","v":0},{"$f":"SUM(M292:M293)","v":0},{"$f":"SUM(N292:N293)","v":0},null,null,{"$f":"SUM(Q292:Q293)","v":0},{"$f":"SUM(R292:R293)","v":0},null,{"$f":"SUM(T292:T293)","v":0},{"$f":"SUM(U292:U293)","v":0},null,{"$f":"SUM(W292:W293)","v":0},{"$f":"SUM(X292:X293)","v":0},{"$f":"SUM(Y292:Y293)","v":0},{"$f":"SUM(Z292:Z293)","v":0},{"$f":"SUM(AA292:AA293)","v":0},0,"UACCT449",null,{"$f":"ROUND(J294-Q294-R294,0)","v":0},{"$f":"ROUND(K294-T294-U294,0)","v":0},{"$f":"ROUND(L294-W294-X294-Y294-Z294-AA294,0)","v":0}]
[295," ","State Revenue Credit",null,null,"S",null,{"$f":"+Revenues!$F$163","v":290560.51169386157},"REVREQ",{"$f":"VLOOKUP($I295,Func,2)*$H295","v":195123.07959845589},{"$f":"VLOOKUP($I295,Func,3)*$H295","v":46115.182967653003},{"$f":"VLOOKUP($I295,Func,5)*$H295","v":39499.335698031988},{"$f":"VLOOKUP($I295,Func,6)*$H295","v":8154.0115076749835},{"$f":"VLOOKUP($I295,Func,7)*$H295","v":1668.9019220456564},null,{"$f":"Demand","v":0.38},{"$f":"+$J295*$P295","v":74146.770247413238},{"$f":"+$J295*(1-$P295)","v":120976.30935104266},{"$f":"Demand","v":0.38},{"$f":"+$K295*$S295","v":17523.76952770814},{"$f":"+$K295*(1-$S295)","v":28591.413439944863},"DRB",{"$f":"+$L295*VLOOKUP($V295,DisFac,2)","v":5874.798916329928},{"$f":"+$L295*VLOOKUP($V295,DisFac,3)","v":16443.025518908365},{"$f":"+$L295*VLOOKUP($V295,DisFac,4)","v":9435.670948018882},{"$f":"+$L295*VLOOKUP($V295,DisFac,5)","v":1742.6294134858124},{"$f":"+$L295*VLOOKUP($V295,DisFac,6)","v":6003.2109012889923},1742.6294134858124,"UACCT33",{"$f":"ROUND(SUM(-H295,J295:N295),0)","v":0},{"$f":"ROUND(J295-Q295-R295,0)","v":0},{"$f":"ROUND(K295-T295-U295,0)","v":0},{"$f":"ROUND(L295-W295-X295-Y295-Z295-AA295,0)","v":0}]
[296,null,"AGA Revenue Credit",null,null,"S",null,{"$f":"+Revenues!M31","v":545051.91999999993},"DPW",{"$f":"VLOOKUP($I296,Func,2)*$H296","v":0},{"$f":"VLOOKUP($I296,Func,3)*$H296","v":0},{"$f":"VLOOKUP($I296,Func,5)*$H296","v":545051.91999999993},{"$f":"VLOOKUP($I296,Func,6)*$H296","v":0},{"$f":"VLOOKUP($I296,Func,7)*$H296","v":0},null,{"$f":"Demand","v":0.38},{"$f":"+$J296*$P296","v":0},{"$f":"+$J296*(1-$P296)","v":0},{"$f":"Demand","v":0.38},{"$f":"+$K296*$S296","v":0},{"$f":"+$K296*(1-$S296)","v":0},"DRB",{"$f":"+$L296*VLOOKUP($V296,DisFac,2)","v":81066.43750768411},{"$f":"+$L296*VLOOKUP($V296,DisFac,3)","v":226897.55337167703},{"$f":"+$L296*VLOOKUP($V296,DisFac,4)","v":130202.96356432527},{"$f":"+$L296*VLOOKUP($V296,DisFac,5)","v":24046.569160813502},{"$f":"+$L296*VLOOKUP($V296,DisFac,6)","v":82838.396395499949},24046.569160813502,"UACCTAGA",{"$f":"ROUND(SUM(-H296,J296:N296),0)","v":0},{"$f":"ROUND(J296-Q296-R296,0)","v":0},{"$f":"ROUND(K296-T296-U296,0)","v":0},{"$f":"ROUND(L296-W296-X296-Y296-Z296-AA296,0)","v":0}]
[297]
[298,"Total Sales from Electricity",null,null,null,null,null,{"$f":"H278+H289+H294","v":321064877.44228536},null,{"$f":"J278+J289+J294","v":17001667.092285357},{"$f":"K278+K289+K294","v":0},{"$f":"L278+L289+L294","v":0},{"$f":"M278+M289+M294","v":0},{"$f":"N278+N289+N294","v":0},null,null,{"$f":"Q278+Q289+Q294","v":6460633.4950684365},{"$f":"R278+R289+R294","v":10541033.597216921},{"$f":"+S289+S278+S294","v":0},{"$f":"T278+T289+T294","v":0},{"$f":"U278+U289+U294","v":0},null,{"$f":"W278+W289+W294","v":0},0,0,0,0,0,null,null,{"$f":"ROUND(J298-Q298-R298,0)","v":0},{"$f":"ROUND(K298-T298-U298,0)","v":0},{"$f":"ROUND(L298-W298-X298-Y298-Z298-AA298,0)","v":0}]
[299]
[300,"Other Electric Operating Revenues"]
[301,450,"Forfeited Discounts & Interest"]
[302,null,null,"S",450,"S","ACCT450S",{"$f":"'JAM Download'!E61","v":678122.06},"CUST",{"$f":"VLOOKUP($I302,Func,2)*$H302","v":0},{"$f":"VLOOKUP($I302,Func,3)*$H302","v":0},{"$f":"VLOOKUP($I302,Func,5)*$H302","v":0},{"$f":"VLOOKUP($I302,Func,6)*$H302","v":678122.06},{"$f":"VLOOKUP($I302,Func,7)*$H302","v":0},null,{"$f":"Demand","v":0.38},{"$f":"+$J302*$P302","v":0},{"$f":"+$J302*(1-$P302)","v":0},null,{"$f":"+$K302*$S302","v":0},{"$f":"+$K302*(1-$S302)","v":0},"CUST",{"$f":"+$L302*VLOOKUP($V302,DisFac,2)","v":0},{"$f":"+$L302*VLOOKUP($V302,DisFac,3)","v":0},{"$f":"+$L302*VLOOKUP($V302,DisFac,4)","v":0},{"$f":"+$L302*VLOOKUP($V302,DisFac,5)","v":0},{"$f":"+$L302*VLOOKUP($V302,DisFac,6)","v":0},0,"UACCT450S",{"$f":"ROUND(SUM(-H302,J302:N302),0)","v":0},{"$f":"ROUND(J302-Q302-R302,0)","v":0},{"$f":"ROUND(K302-T302-U302,0)","v":0},{"$f":"ROUND(L302-W302-X302-Y302-Z302-AA302,0)","v":0}]
[303,null,null,"SO",450,"SO","ACCT450SO",{"$f":"'JAM Download'!E62","v":0},"CUST",{"$f":"VLOOKUP($I303,Func,2)*$H303","v":0},{"$f":"VLOOKUP($I303,Func,3)*$H303","v":0},{"$f":"VLOOKUP($I303,Func,5)*$H303","v":0},{"$f":"VLOOKUP($I303,Func,6)*$H303","v":0},{"$f":"VLOOKUP($I303,Func,7)*$H303","v":0},null,{"$f":"Demand","v":0.38},{"$f":"+$J303*$P303","v":0},{"$f":"+$J303*(1-$P303)","v":0},{"$f":"Demand","v":0.38},{"$f":"+$K303*$S303","v":0},{"$f":"+$K303*(1-$S303)","v":0},"CUST",{"$f":"+$L303*VLOOKUP($V303,DisFac,2)","v":0},{"$f":"+$L303*VLOOKUP($V303,DisFac,3)","v":0},{"$f":"+$L303*VLOOKUP($V303,DisFac,4)","v":0},{"$f":"+$L303*VLOOKUP($V303,DisFac,5)","v":0},{"$f":"+$L303*VLOOKUP($V303,DisFac,6)","v":0},0,"UACCT450SO",{"$f":"ROUND(SUM(-H303,J303:N303),0)","v":0},{"$f":"ROUND(J303-Q303-R303,0)","v":0},{"$f":"ROUND(K303-T303-U303,0)","v":0},{"$f":"ROUND(L303-W303-X303-Y303-Z303-AA303,0)","v":0}]
[304,null,null,null,null,null,"ACCT450",{"$f":"'JAM Download'!E63","v":678122.06},null,{"$f":"SUM(J302:J303)","v":0},{"$f":"SUM(K302:K303)","v":0},{"$f":"SUM(L302:L303)","v":0},{"$f":"SUM(M302:M303)","v":678122.06},{"$f":"SUM(N302:N303)","v":0},null,null,{"$f":"SUM(Q302:Q303)","v":0},{"$f":"SUM(R302:R303)","v":0},null,{"$f":"SUM(T302:T303)","v":0},{"$f":"SUM(U302:U303)","v":0},null,{"$f":"SUM(W302:W303)","v":0},{"$f":"SUM(X302:X303)","v":0},{"$f":"SUM(Y302:Y303)","v":0},{"$f":"SUM(Z302:Z303)","v":0},{"$f":"SUM(AA302:AA303)","v":0},0,"UACCT450",{"$f":"ROUND(SUM(-H304,J304:N304),0)","v":0},{"$f":"ROUND(J304-Q304-R304,0)","v":0},{"$f":"ROUND(K304-T304-U304,0)","v":0},{"$f":"ROUND(L304-W304-X304-Y304-Z304-AA304,0)","v":0}]
[305,null,null,null,null,null," ",{"$f":"'JAM Download'!E64","v":0},null,null,null,null,null,null,null,null,null,null,null,null,null,null,null,null,null,null,null,null," "]
[306,451,"Misc Electric Revenue",null,null,null,null,{"$f":"'JAM Download'!E65","v":0}]
[307,null,null,"S",451,"S","ACCT451S",{"$f":"'JAM Download'!E66","v":162036.34},"CUST",{"$f":"VLOOKUP($I307,Func,2)*$H307","v":0},{"$f":"VLOOKUP($I307,Func,3)*$H307","v":0},{"$f":"VLOOKUP($I307,Func,5)*$H307","v":0},{"$f":"VLOOKUP($I307,Func,6)*$H307","v":162036.34},{"$f":"VLOOKUP($I307,Func,7)*$H307","v":0},null,{"$f":"Demand","v":0.38},{"$f":"+$J307*$P307","v":0},{"$f":"+$J307*(1-$P307)","v":0},{"$f":"Demand","v":0.38},{"$f":"+$K307*$S307","v":0},{"$f":"+$K307*(1-$S307)","v":0},"CUST",{"$f":"+$L307*VLOOKUP($V307,DisFac,2)","v":0},{"$f":"+$L307*VLOOKUP($V307,DisFac,3)","v":0},{"$f":"+$L307*VLOOKUP($V307,DisFac,4)","v":0},{"$f":"+$L307*VLOOKUP($V307,DisFac,5)","v":0},{"$f":"+$L307*VLOOKUP($V307,DisFac,6)","v":0},0,"UACCT451S",{"$f":"ROUND(SUM(-H307,J307:N307),0)","v":0},{"$f":"ROUND(J307-Q307-R307,0)","v":0},{"$f":"ROUND(K307-T307-U307,0)","v":0},{"$f":"ROUND(L307-W307-X307-Y307-Z307-AA307,0)","v":0}]
[308,null,null,"SG",451,"SG","ACCT451SG",{"$f":"'JAM Download'!E67","v":0},"GP",{"$f":"VLOOKUP($I308,Func,2)*$H308","v":0},{"$f":"VLOOKUP($I308,Func,3)*$H308","v":0},{"$f":"VLOOKUP($I308,Func,5)*$H308","v":0},{"$f":"VLOOKUP($I308,Func,6)*$H308","v":0},{"$f":"VLOOKUP($I308,Func,7)*$H308","v":0},null,{"$f":"Demand","v":0.38},{"$f":"+$J308*$P308","v":0},{"$f":"+$J308*(1-$P308)","v":0},{"$f":"Demand","v":0.38},{"$f":"+$K308*$S308","v":0},{"$f":"+$K308*(1-$S308)","v":0},"PLNT",{"$f":"+$L308*VLOOKUP($V308,DisFac,2)","v":0},{"$f":"+$L308*VLOOKUP($V308,DisFac,3)","v":0},{"$f":"+$L308*VLOOKUP($V308,DisFac,4)","v":0},{"$f":"+$L308*VLOOKUP($V308,DisFac,5)","v":0},{"$f":"+$L308*VLOOKUP($V308,DisFac,6)","v":0},0,"UACCT451SG",{"$f":"ROUND(SUM(-H308,J308:N308),0)","v":0},{"$f":"ROUND(J308-Q308-R308,0)","v":0},{"$f":"ROUND(K308-T308-U308,0)","v":0},{"$f":"ROUND(L308-W308-X308-Y308-Z308-AA308,0)","v":0}]
[309,null,null,"SO",451,"SO","ACCT451SO",{"$f":"'JAM Download'!E68","v":282.88029474284355},"GP",{"$f":"VLOOKUP($I309,Func,2)*$H309","v":142.94235856854277},{"$f":"VLOOKUP($I309,Func,3)*$H309","v":60.243502031493989},{"$f":"VLOOKUP($I309,Func,5)*$H309","v":77.833899958391214},{"$f":"VLOOKUP($I309,Func,6)*$H309","v":1.8605341844156267},{"$f":"VLOOKUP($I309,Func,7)*$H309","v":0},null,{"$f":"Demand","v":0.38},{"$f":"+$J309*$P309","v":54.318096256046253},{"$f":"+$J309*(1-$P309)","v":88.624262312496512},{"$f":"Demand","v":0.38},{"$f":"+$K309*$S309","v":22.892530771967717},{"$f":"+$K309*(1-$S309)","v":37.350971259526276},"PLNT",{"$f":"+$L309*VLOOKUP($V309,DisFac,2)","v":9.1438936759246623},{"$f":"+$L309*VLOOKUP($V309,DisFac,3)","v":37.458057550557314},{"$f":"+$L309*VLOOKUP($V309,DisFac,4)","v":18.995994351434017},{"$f":"+$L309*VLOOKUP($V309,DisFac,5)","v":2.2002629455472063},{"$f":"+$L309*VLOOKUP($V309,DisFac,6)","v":10.035691434928012},2.2002629455472063,"UACCT451SO",{"$f":"ROUND(SUM(-H309,J309:N309),0)","v":0},{"$f":"ROUND(J309-Q309-R309,0)","v":0},{"$f":"ROUND(K309-T309-U309,0)","v":0},{"$f":"ROUND(L309-W309-X309-Y309-Z309-AA309,0)","v":0}]
[310,null,null,null,null,null,"ACCT451",{"$f":"'JAM Download'!E69","v":162319.22029474284},null,{"$f":"SUM(J307:J309)","v":142.94235856854277},{"$f":"SUM(K307:K309)","v":60.243502031493989},{"$f":"SUM(L307:L309)","v":77.833899958391214},{"$f":"SUM(M307:M309)","v":162038.20053418441},{"$f":"SUM(N307:N309)","v":0},null,null,{"$f":"SUM(Q307:Q309)","v":54.318096256046253},{"$f":"SUM(R307:R309)","v":88.624262312496512},null,{"$f":"SUM(T307:T309)","v":22.892530771967717},{"$f":"SUM(U307:U309)","v":37.350971259526276},null,{"$f":"SUM(W307:W309)","v":9.1438936759246623},{"$f":"SUM(X307:X309)","v":37.458057550557314},{"$f":"SUM(Y307:Y309)","v":18.995994351434017},{"$f":"SUM(Z307:Z309)","v":2.2002629455472063},{"$f":"SUM(AA307:AA309)","v":10.035691434928012},2.2002629455472063,"UACCT451",{"$f":"ROUND(SUM(-H310,J310:N310),0)","v":0},{"$f":"ROUND(J310-Q310-R310,0)","v":0},{"$f":"ROUND(K310-T310-U310,0)","v":0},{"$f":"ROUND(L310-W310-X310-Y310-Z310-AA310,0)","v":0}]
[311,null,null,null,null,null,null,{"$f":"'JAM Download'!E70","v":0}]
[312,453,"Water Sales",null,null,null,null,{"$f":"'JAM Download'!E71","v":0}]
[313,null,null,"JBG",453,"JBG","ACCT453JBG",{"$f":"'JAM Download'!E74","v":1193.8950647294114},"P",{"$f":"VLOOKUP($I313,Func,2)*$H313","v":1193.8950647294114},{"$f":"VLOOKUP($I313,Func,3)*$H313","v":0},{"$f":"VLOOKUP($I313,Func,5)*$H313","v":0},{"$f":"VLOOKUP($I313,Func,6)*$H313","v":0},{"$f":"VLOOKUP($I313,Func,7)*$H313","v":0},null,{"$f":"Demand","v":0.38},{"$f":"+$J313*$P313","v":453.68012459717636},{"$f":"+$J313*(1-$P313)","v":740.21494013223503},{"$f":"Demand","v":0.38},{"$f":"+$K313*$S313","v":0},{"$f":"+$K313*(1-$S313)","v":0},"PLNT",{"$f":"+$L313*VLOOKUP($V313,DisFac,2)","v":0},{"$f":"+$L313*VLOOKUP($V313,DisFac,3)","v":0},{"$f":"+$L313*VLOOKUP($V313,DisFac,4)","v":0},{"$f":"+$L313*VLOOKUP($V313,DisFac,5)","v":0},{"$f":"+$L313*VLOOKUP($V313,DisFac,6)","v":0},0,"UACCT453JBG",{"$f":"ROUND(SUM(-H313,J313:N313),0)","v":0},{"$f":"ROUND(J313-Q313-R313,0)","v":0},{"$f":"ROUND(K313-T313-U313,0)","v":0},{"$f":"ROUND(L313-W313-X313-Y313-Z313-AA313,0)","v":0}]
[314,null,null,"SG/CAGW/CAGE",453,"SG","ACCT453SG",{"$f":"'JAM Download'!E72+'JAM Download'!E73+'JAM Download'!E75","v":0},"P",{"$f":"VLOOKUP($I314,Func,2)*$H314","v":0},{"$f":"VLOOKUP($I314,Func,3)*$H314","v":0},{"$f":"VLOOKUP($I314,Func,5)*$H314","v":0},{"$f":"VLOOKUP($I314,Func,6)*$H314","v":0},{"$f":"VLOOKUP($I314,Func,7)*$H314","v":0},null,{"$f":"Demand","v":0.38},{"$f":"+$J314*$P314","v":0},{"$f":"+$J314*(1-$P314)","v":0},{"$f":"Demand","v":0.38},{"$f":"+$K314*$S314","v":0},{"$f":"+$K314*(1-$S314)","v":0},"PLNT",{"$f":"+$L314*VLOOKUP($V314,DisFac,2)","v":0},{"$f":"+$L314*VLOOKUP($V314,DisFac,3)","v":0},{"$f":"+$L314*VLOOKUP($V314,DisFac,4)","v":0},{"$f":"+$L314*VLOOKUP($V314,DisFac,5)","v":0},{"$f":"+$L314*VLOOKUP($V314,DisFac,6)","v":0},0,"UACCT453SG",{"$f":"ROUND(SUM(-H314,J314:N314),0)","v":0},{"$f":"ROUND(J314-Q314-R314,0)","v":0},{"$f":"ROUND(K314-T314-U314,0)","v":0},{"$f":"ROUND(L314-W314-X314-Y314-Z314-AA314,0)","v":0}]
[315,null,null,null,null,null,"ACCT453",{"$f":"'JAM Download'!E74","v":1193.8950647294114},null,{"$f":"SUM(J313:J314)","v":1193.8950647294114},{"$f":"SUM(K313:K314)","v":0},{"$f":"SUM(L313:L314)","v":0},{"$f":"SUM(M313:M314)","v":0},{"$f":"SUM(N313:N314)","v":0},null,null,{"$f":"SUM(Q313:Q314)","v":453.68012459717636},{"$f":"SUM(R313:R314)","v":740.21494013223503},null,{"$f":"SUM(T313:T314)","v":0},{"$f":"SUM(U313:U314)","v":0},null,{"$f":"SUM(W313:W314)","v":0},{"$f":"SUM(X313:X314)","v":0},{"$f":"SUM(Y313:Y314)","v":0},{"$f":"SUM(Z313:Z314)","v":0},{"$f":"SUM(AA313:AA314)","v":0},0,"UACCT453",{"$f":"ROUND(SUM(-H315,J315:N315),0)","v":0},{"$f":"ROUND(J315-Q315-R315,0)","v":0},{"$f":"ROUND(K315-T315-U315,0)","v":0},{"$f":"ROUND(L315-W315-X315-Y315-Z315-AA315,0)","v":0}]
[{"$f":"A315+1","v":316}]
[317,454,"Rent of Electric Property"]
[318,null,null,"S",454,"S","ACCT454S",{"$f":"'JAM Download'!$E79","v":1090881.68},"DPW",{"$f":"VLOOKUP($I318,Func,2)*$H318","v":0},{"$f":"VLOOKUP($I318,Func,3)*$H318","v":0},{"$f":"VLOOKUP($I318,Func,5)*$H318","v":1090881.68},{"$f":"VLOOKUP($I318,Func,6)*$H318","v":0},{"$f":"VLOOKUP($I318,Func,7)*$H318","v":0},null,{"$f":"Demand","v":0.38},{"$f":"+$J318*$P318","v":0},{"$f":"+$J318*(1-$P318)","v":0},{"$f":"Demand","v":0.38},{"$f":"+$K318*$S318","v":0},{"$f":"+$K318*(1-$S318)","v":0},"PLNT",{"$f":"+$L318*VLOOKUP($V318,DisFac,2)","v":128156.31877968983},{"$f":"+$L318*VLOOKUP($V318,DisFac,3)","v":524993.72088682442},{"$f":"+$L318*VLOOKUP($V318,DisFac,4)","v":266238.51872308482},{"$f":"+$L318*VLOOKUP($V318,DisFac,5)","v":30837.803833077982},{"$f":"+$L318*VLOOKUP($V318,DisFac,6)","v":140655.31777732293},30837.803833077982,"UACCT454S",{"$f":"ROUND(SUM(-H318,J318:N318),0)","v":0},{"$f":"ROUND(J318-Q318-R318,0)","v":0},{"$f":"ROUND(K318-T318-U318,0)","v":0},{"$f":"ROUND(L318-W318-X318-Y318-Z318-AA318,0)","v":0}]
[319,null,null,"JBG",454,"JBG","ACCT454JBG",{"$f":"'JAM Download'!$E82","v":1850.3646774649985},"P",{"$f":"VLOOKUP($I319,Func,2)*$H319","v":1850.3646774649985},{"$f":"VLOOKUP($I319,Func,3)*$H319","v":0},{"$f":"VLOOKUP($I319,Func,5)*$H319","v":0},{"$f":"VLOOKUP($I319,Func,6)*$H319","v":0},{"$f":"VLOOKUP($I319,Func,7)*$H319","v":0},null,{"$f":"Demand","v":0.38},{"$f":"+$J319*$P319","v":703.13857743669939},{"$f":"+$J319*(1-$P319)","v":1147.226100028299},{"$f":"Demand","v":0.38},{"$f":"+$K319*$S319","v":0},{"$f":"+$K319*(1-$S319)","v":0},"PLNT",{"$f":"+$L319*VLOOKUP($V319,DisFac,2)","v":0},{"$f":"+$L319*VLOOKUP($V319,DisFac,3)","v":0},{"$f":"+$L319*VLOOKUP($V319,DisFac,4)","v":0},{"$f":"+$L319*VLOOKUP($V319,DisFac,5)","v":0},{"$f":"+$L319*VLOOKUP($V319,DisFac,6)","v":0},0,"UACCT454JBG",{"$f":"ROUND(SUM(-H319,J319:N319),0)","v":0},{"$f":"ROUND(J319-Q319-R319,0)","v":0},{"$f":"ROUND(K319-T319-U319,0)","v":0},{"$f":"ROUND(L319-W319-X319-Y319-Z319-AA319,0)","v":0}]
[320,null,null,"SG/CAGW/CAGE",454,"SG","ACCT454SG",{"$f":"'JAM Download'!$E83+'JAM Download'!E80+'JAM Download'!E81","v":246182.24751254905},"P",{"$f":"VLOOKUP($I320,Func,2)*$H320","v":246182.24751254905},{"$f":"VLOOKUP($I320,Func,3)*$H320","v":0},{"$f":"VLOOKUP($I320,Func,5)*$H320","v":0},{"$f":"VLOOKUP($I320,Func,6)*$H320","v":0},{"$f":"VLOOKUP($I320,Func,7)*$H320","v":0},null,{"$f":"Demand","v":0.38},{"$f":"+$J320*$P320","v":93549.254054768637},{"$f":"+$J320*(1-$P320)","v":152632.99345778039},{"$f":"Demand","v":0.38},{"$f":"+$K320*$S320","v":0},{"$f":"+$K320*(1-$S320)","v":0},"PLNT",{"$f":"+$L320*VLOOKUP($V320,DisFac,2)","v":0},{"$f":"+$L320*VLOOKUP($V320,DisFac,3)","v":0},{"$f":"+$L320*VLOOKUP($V320,DisFac,4)","v":0},{"$f":"+$L320*VLOOKUP($V320,DisFac,5)","v":0},{"$f":"+$L320*VLOOKUP($V320,DisFac,6)","v":0},0,"UACCT454SG",{"$f":"ROUND(SUM(-H320,J320:N320),0)","v":0},{"$f":"ROUND(J320-Q320-R320,0)","v":0},{"$f":"ROUND(K320-T320-U320,0)","v":0},{"$f":"ROUND(L320-W320-X320-Y320-Z320-AA320,0)","v":0}]
[321,null,null,"SO",454,"SO","ACCT454SO",{"$f":"'JAM Download'!$E84","v":248334.89694383481},"GP",{"$f":"VLOOKUP($I321,Func,2)*$H321","v":125486.20933917415},{"$f":"VLOOKUP($I321,Func,3)*$H321","v":52886.55359372728},{"$f":"VLOOKUP($I321,Func,5)*$H321","v":68328.808630785075},{"$f":"VLOOKUP($I321,Func,6)*$H321","v":1633.3253801483647},{"$f":"VLOOKUP($I321,Func,7)*$H321","v":0},null,{"$f":"Demand","v":0.38},{"$f":"+$J321*$P321","v":47684.759548886177},{"$f":"+$J321*(1-$P321)","v":77801.449790287967},{"$f":"Demand","v":0.38},{"$f":"+$K321*$S321","v":20096.890365616367},{"$f":"+$K321*(1-$S321)","v":32789.663228110912},"PLNT",{"$f":"+$L321*VLOOKUP($V321,DisFac,2)","v":8027.2395634358018},{"$f":"+$L321*VLOOKUP($V321,DisFac,3)","v":32883.672120004449},{"$f":"+$L321*VLOOKUP($V321,DisFac,4)","v":16676.199746954546},{"$f":"+$L321*VLOOKUP($V321,DisFac,5)","v":1931.5663974704169},{"$f":"+$L321*VLOOKUP($V321,DisFac,6)","v":8810.1308029198553},1931.5663974704169,"UACCT454SO",{"$f":"ROUND(SUM(-H321,J321:N321),0)","v":0},{"$f":"ROUND(J321-Q321-R321,0)","v":0},{"$f":"ROUND(K321-T321-U321,0)","v":0},{"$f":"ROUND(L321-W321-X321-Y321-Z321-AA321,0)","v":0}]
[322,null,null,null,null,null,"ACCT454",{"$f":"'JAM Download'!$E85","v":1587249.1891338488},null,{"$f":"SUM(J318:J321)","v":373518.82152918819},{"$f":"SUM(K318:K321)","v":52886.55359372728},{"$f":"SUM(L318:L321)","v":1159210.4886307849},{"$f":"SUM(M318:M321)","v":1633.3253801483647},{"$f":"SUM(N318:N321)","v":0},null,null,{"$f":"SUM(Q318:Q321)","v":141937.15218109151},{"$f":"SUM(R318:R321)","v":231581.66934809665},null,{"$f":"SUM(T318:T321)","v":20096.890365616367},{"$f":"SUM(U318:U321)","v":32789.663228110912},null,{"$f":"SUM(W318:W321)","v":136183.55834312562},{"$f":"SUM(X318:X321)","v":557877.39300682885},{"$f":"SUM(Y318:Y321)","v":282914.71847003937},{"$f":"SUM(Z318:Z321)","v":32769.370230548397},{"$f":"SUM(AA318:AA321)","v":149465.44858024278},32769.370230548397,"UACCT454",{"$f":"ROUND(SUM(-H322,J322:N322),0)","v":0},{"$f":"ROUND(J322-Q322-R322,0)","v":0},{"$f":"ROUND(K322-T322-U322,0)","v":0},{"$f":"ROUND(L322-W322-X322-Y322-Z322-AA322,0)","v":0}]
[323]
[324,456,"Other Electric Revenue"]
[325,null,null,"S",456,"S","ACCT456S",{"$f":"'JAM Download'!$E90","v":-2967338},"DMSC",{"$f":"VLOOKUP($I325,Func,2)*$H325","v":0},{"$f":"VLOOKUP($I325,Func,3)*$H325","v":0},{"$f":"VLOOKUP($I325,Func,5)*$H325","v":0},{"$f":"VLOOKUP($I325,Func,6)*$H325","v":0},{"$f":"VLOOKUP($I325,Func,7)*$H325","v":-2967338},null,{"$f":"Demand","v":0.38},{"$f":"+$J325*$P325","v":0},{"$f":"+$J325*(1-$P325)","v":0},{"$f":"Demand","v":0.38},{"$f":"+$K325*$S325","v":0},{"$f":"+$K325*(1-$S325)","v":0},"PLNT",{"$f":"+$L325*VLOOKUP($V325,DisFac,2)","v":0},{"$f":"+$L325*VLOOKUP($V325,DisFac,3)","v":0},{"$f":"+$L325*VLOOKUP($V325,DisFac,4)","v":0},{"$f":"+$L325*VLOOKUP($V325,DisFac,5)","v":0},{"$f":"+$L325*VLOOKUP($V325,DisFac,6)","v":0},0,"UACCT456S",{"$f":"ROUND(SUM(-H325,J325:N325),0)","v":0},{"$f":"ROUND(J325-Q325-R325,0)","v":0},{"$f":"ROUND(K325-T325-U325,0)","v":0},{"$f":"ROUND(L325-W325-X325-Y325-Z325-AA325,0)","v":0}]
[326,null,null,"WRG",456,"WRG","ACCT456WRG",{"$f":"'JAM Download'!E96","v":3039057.2518028975},"OTHSGR",1758847.2152491254,1280210.0365537722,0,0,0,null,0.38,668361.94179466763,1090485.2734544578,0.38,486479.8138904334,793730.22266333876,"CUST",0,0,0,0,0,0,"UACCT456WRG",0,0,0,0]
[327,null,null,"CAGW",456,"CAGW","ACCT456CAGW",{"$f":"'JAM Download'!E92","v":3460165.0915401885},"OTHSGR",2002562.3840904217,1457602.7074497668,0,0,0,null,0.38,760973.70595436031,1241588.6781360614,0.38,553889.02883091138,903713.67861885543,"PLNT",0,0,0,0,0,0,"UACCT456CAGW",0,0,0,0]
[328,null,null,"JBG",456,"JBG","ACCT456JBG",{"$f":"'JAM Download'!E95","v":230219.96434434847},"OTHSGR",133239.26126814279,96980.703076205697,0,0,0,null,0.38,50630.919281894261,82608.341986248532,0.38,36852.667168958164,60128.035907247533,"PLNT",0,0,0,0,0,0,"UACCT456JBG",0,0,0,0]
[329,null,null,"SO",456,"SO","ACCT456SO",{"$f":"'JAM Download'!$E93","v":-1820.4367891981283},"OTHSO",0,0,0,0,-1820.4367891981283,null,0.38,0,0,0.38,0,0,"PLNT",0,0,0,0,0,0,"UACCT456SO",0,0,0,0]
[330,null,null,"SG/CAGE",456,"SG","ACCT456SG",{"$f":"'JAM Download'!E94+'JAM Download'!E91","v":39762.058267904446},"OTHSGR",23012.197422601552,16749.860845302894,0,0,0,null,0.38,8744.6350205885901,14267.562402012962,0.38,6364.9471212150993,10384.913724087794,"PLNT",0,0,0,0,0,0,"UACCT456SG",0,0,0,0]
[331,null,null,"WRE",456,"WRE","ACCTT456WRE",{"$f":"+'JAM Download'!E97","v":566679.43535846728},"OTHSE",0,566679.43535846728,0,0,0,null,0.38,0,0,0.38,215338.18543621758,351341.2499222497,"PLNT",0,0,0,0,0,0,"UACCT456CAEW",0,0,0,0]
[332,null,null,null,null,null,"ACCT456",{"$f":"'JAM Download'!$E100","v":4366725.3645246085},null,{"$f":"SUM(J325:J331)","v":3917661.0580302915},{"$f":"SUM(K325:K331)","v":3418222.7432835149},{"$f":"SUM(L325:L331)","v":0},{"$f":"SUM(M325:M331)","v":0},{"$f":"SUM(N325:N331)","v":-2969158.4367891983},null,null,{"$f":"SUM(Q325:Q331)","v":1488711.2020515108},{"$f":"SUM(R325:R331)","v":2428949.8559787809},null,{"$f":"SUM(T325:T331)","v":1298924.6424477356},{"$f":"SUM(U325:U331)","v":2119298.1008357792},null,{"$f":"SUM(W325:W331)","v":0},{"$f":"SUM(X325:X331)","v":0},{"$f":"SUM(Y325:Y331)","v":0},{"$f":"SUM(Z325:Z331)","v":0},{"$f":"SUM(AA325:AA331)","v":0},0,"UACCT456",0,0,0,0]
[333,null,null,null,null,null,null,{"$f":"'JAM Download'!$E101","v":0}]
[334,null,"Total Other Electric Revenues",null,null,null,null,{"$f":"'JAM Download'!$E102","v":6795609.7290179292},null,{"$f":"+J332+J322+J315+J310+J304","v":4292516.7169827772},{"$f":"+K332+K322+K315+K310+K304","v":3471169.5403792737},{"$f":"+L332+L322+L315+L310+L304","v":1159288.3225307432},{"$f":"+M332+M322+M315+M310+M304","v":841793.58591433289},{"$f":"+N332+N322+N315+N310+N304","v":-2969158.4367891983},null,null,{"$f":"+Q332+Q322+Q315+Q310+Q304","v":1631156.3524534556},{"$f":"+R332+R322+R315+R310+R304","v":2661360.3645293219},{"$f":"+S332+S322+S315+S310+S304","v":0},{"$f":"+T332+T322+T315+T310+T304","v":1319044.425344124},{"$f":"+U332+U322+U315+U310+U304","v":2152125.1150351497},null,{"$f":"+W332+W322+W315+W310+W304","v":136192.70223680156},{"$f":"+X332+X322+X315+X310+X304","v":557914.85106437944},{"$f":"+Y332+Y322+Y315+Y310+Y304","v":282933.71446439083},{"$f":"+Z332+Z322+Z315+Z310+Z304","v":32771.570493493942},{"$f":"+AA332+AA322+AA315+AA310+AA304","v":149475.48427167771},32771.570493493942,null,{"$f":"ROUND(SUM(-H334,J334:N334),0)","v":0},{"$f":"ROUND(J334-Q334-R334,0)","v":0},{"$f":"ROUND(K334-T334-U334,0)","v":0},{"$f":"ROUND(L334-W334-X334-Y334-Z334-AA334,0)","v":0}]
[335]
[336,"Total Electric Operating Revenues",null,null,null,null,null,{"$f":"H298+H334","v":327860487.17130327},null,{"$f":"+J334+J298","v":21294183.809268136},{"$f":"+K334+K298","v":3471169.5403792737},{"$f":"+L334+L298","v":1159288.3225307432},{"$f":"+M334+M298","v":841793.58591433289},{"$f":"+N334+N298","v":-2969158.4367891983},null,null,{"$f":"+Q334+Q298","v":8091789.8475218918},{"$f":"+R334+R298","v":13202393.961746242},{"$f":"+S334+S298","v":0},{"$f":"+T334+T298","v":1319044.425344124},{"$f":"+U334+U298","v":2152125.1150351497},null,{"$f":"+W334+W298","v":136192.70223680156},{"$f":"+X334+X298","v":557914.85106437944},{"$f":"+Y334+Y298","v":282933.71446439083},{"$f":"+Z334+Z298","v":32771.570493493942},{"$f":"+AA334+AA298","v":149475.48427167771},32771.570493493942,null,null,{"$f":"ROUND(J336-Q336-R336,0)","v":0},{"$f":"ROUND(K336-T336-U336,0)","v":0},{"$f":"ROUND(L336-W336-X336-Y336-Z336-AA336,0)","v":0}]
[337]
[338]
[339]
[340]
[341]
[342,"FERC",null,"DESCRIPTION &",null,null,null,{"$f":"+$H$250","v":"Jurisdictional"},null,null,null,null,null,null,null,"D/E",null,null,"D/E"]
[343,"ACCT",null,"CONSENSUS FACTOR",null,null,null,"ADJ Total",null,null,null,null,null,null,null,"SPLIT",null,null,"SPLIT"]
[344,"Summary of Revenues by Factor"]
[345,null,"S",null,null,null,null,{"$f":"'JAM Download'!$E107","v":303026912.43000001}]
[346,null,"CN",null,null,null,null,{"$f":"'JAM Download'!$E108","v":233264.22408654288}]
[347,null,"SE",null,null,null,null,{"$f":"'JAM Download'!$E109","v":0}]
[348,null,"SO",null,null,null,null,{"$f":"'JAM Download'!$E110","v":246797.34044937952}]
[349,null,"SG",null,null,null,null,{"$f":"'JAM Download'!$E111","v":128195.32429767988}]
[350,null,"CAEW",null,null,null,null,{"$f":"'JAM Download'!$E112","v":0}]
[351,null,"CAEE",null,null,null,null,{"$f":"'JAM Download'!$E113","v":0}]
[352,null,"CAGW",null,null,null,null,{"$f":"'JAM Download'!$E114","v":20619581.165308319}]
[353,null,"CAGE",null,null,null,null,{"$f":"'JAM Download'!$E115","v":0}]
[354,null,"WRG",null,null,null,null,{"$f":"'JAM Download'!$E116","v":3039057.2518028975}]
[355,null,"WRE",null,null,null,null,{"$f":"'JAM Download'!$E117","v":566679.43535846728}]
[356]
[357,"Total Electric Operating Revenues",null,null,null,null,null,{"$f":"SUM(H345:H355)","v":327860487.17130327}]
[358]
[359]
[360,"FERC",null,"DESCRIPTION &","FERC",null,"RANGE",{"$f":"+$H$250","v":"Jurisdictional"},"FUNC","GEN","TRN","DIS","RETAIL","MISC",null,"D / E","GEN","GEN","D / E","TRN","TRN","DIS","DIS","DIS","DIS","DIS","DIS","DIS","Unbundled ACCT:","Function","Generation","Transmission","Distribution"]
[361,"ACCT",null,"CONSENSUS FACTOR","ACCT","FACTOR","NAME","ADJ Total","FACTOR","TOTAL","TOTAL","TOTAL","TOTAL","TOTAL",null,"SPLIT","DEMAND","ENERGY","SPLIT","DEMAND","ENERGY","SPLIT","SUBS","P & C","XFMR","METER","SERVICE","METER","TOTAL","Check","Check","Check","Check"]
[362,"Miscellaneous Revenues"]
[363,41160,"Gain on Sale of Utility Plant - CR"]
[364,null,null,"S",41160,"S","ACCT41160S",{"$f":"'JAM Download'!E120","v":0},"DPW",{"$f":"VLOOKUP($I364,Func,2)*$H364","v":0},{"$f":"VLOOKUP($I364,Func,3)*$H364","v":0},{"$f":"VLOOKUP($I364,Func,5)*$H364","v":0},{"$f":"VLOOKUP($I364,Func,6)*$H364","v":0},{"$f":"VLOOKUP($I364,Func,7)*$H364","v":0},null,{"$f":"+Demand","v":0.38},{"$f":"+$J364*$P364","v":0},{"$f":"+$J364*(1-$P364)","v":0},null,{"$f":"+$K364*$S364","v":0},{"$f":"+$K364*(1-$S364)","v":0},"PLNT",{"$f":"+$L364*VLOOKUP($V364,DisFac,2)","v":0},{"$f":"+$L364*VLOOKUP($V364,DisFac,3)","v":0},{"$f":"+$L364*VLOOKUP($V364,DisFac,4)","v":0},{"$f":"+$L364*VLOOKUP($V364,DisFac,5)","v":0},{"$f":"+$L364*VLOOKUP($V364,DisFac,6)","v":0},0,"UACCT41160S",{"$f":"ROUND(SUM(-H364,J364:N364),0)","v":0},{"$f":"ROUND(J364-Q364-R364,0)","v":0},{"$f":"ROUND(K364-T364-U364,0)","v":0},{"$f":"ROUND(L364-W364-X364-Y364-Z364-AA364,0)","v":0}]
[365,null,null,"SG",41160,"SG","ACCT41160SG",{"$f":"'JAM Download'!E121","v":0},"T",{"$f":"VLOOKUP($I365,Func,2)*$H365","v":0},{"$f":"VLOOKUP($I365,Func,3)*$H365","v":0},{"$f":"VLOOKUP($I365,Func,5)*$H365","v":0},{"$f":"VLOOKUP($I365,Func,6)*$H365","v":0},{"$f":"VLOOKUP($I365,Func,7)*$H365","v":0},null,{"$f":"+Demand","v":0.38},{"$f":"+$J365*$P365","v":0},{"$f":"+$J365*(1-$P365)","v":0},null,{"$f":"+$K365*$S365","v":0},{"$f":"+$K365*(1-$S365)","v":0},"PLNT",{"$f":"+$L365*VLOOKUP($V365,DisFac,2)","v":0},{"$f":"+$L365*VLOOKUP($V365,DisFac,3)","v":0},{"$f":"+$L365*VLOOKUP($V365,DisFac,4)","v":0},{"$f":"+$L365*VLOOKUP($V365,DisFac,5)","v":0},{"$f":"+$L365*VLOOKUP($V365,DisFac,6)","v":0},0,"UACCT41160SG",0,0,0,0]
[366,null,null,"SO",41160,"SO","ACCT41160SO",{"$f":"'JAM Download'!E122","v":0},"G",{"$f":"VLOOKUP($I366,Func,2)*$H366","v":0},{"$f":"VLOOKUP($I366,Func,3)*$H366","v":0},{"$f":"VLOOKUP($I366,Func,5)*$H366","v":0},{"$f":"VLOOKUP($I366,Func,6)*$H366","v":0},{"$f":"VLOOKUP($I366,Func,7)*$H366","v":0},null,{"$f":"+Demand","v":0.38},{"$f":"+$J366*$P366","v":0},{"$f":"+$J366*(1-$P366)","v":0},null,{"$f":"+$K366*$S366","v":0},{"$f":"+$K366*(1-$S366)","v":0},"PLNT",{"$f":"+$L366*VLOOKUP($V366,DisFac,2)","v":0},{"$f":"+$L366*VLOOKUP($V366,DisFac,3)","v":0},{"$f":"+$L366*VLOOKUP($V366,DisFac,4)","v":0},{"$f":"+$L366*VLOOKUP($V366,DisFac,5)","v":0},{"$f":"+$L366*VLOOKUP($V366,DisFac,6)","v":0},0,"UACCT41160SO",0,0,0,0]
[367,null,null,"DGU",41160,"DGU","ACCT41160SG",{"$f":"'JAM Download'!E123","v":0},"T",{"$f":"VLOOKUP($I367,Func,2)*$H367","v":0},{"$f":"VLOOKUP($I367,Func,3)*$H367","v":0},{"$f":"VLOOKUP($I367,Func,5)*$H367","v":0},{"$f":"VLOOKUP($I367,Func,6)*$H367","v":0},{"$f":"VLOOKUP($I367,Func,7)*$H367","v":0},null,{"$f":"+Demand","v":0.38},{"$f":"+$J367*$P367","v":0},{"$f":"+$J367*(1-$P367)","v":0},null,{"$f":"+$K367*$S367","v":0},{"$f":"+$K367*(1-$S367)","v":0},"PLNT",{"$f":"+$L367*VLOOKUP($V367,DisFac,2)","v":0},{"$f":"+$L367*VLOOKUP($V367,DisFac,3)","v":0},{"$f":"+$L367*VLOOKUP($V367,DisFac,4)","v":0},{"$f":"+$L367*VLOOKUP($V367,DisFac,5)","v":0},{"$f":"+$L367*VLOOKUP($V367,DisFac,6)","v":0},0,"UACCT41160DGU",0,0,0,0]
[368,null,null,"DGP",41160,"DGP","ACCT41160SG",{"$f":"'JAM Download'!E124","v":0},"P",{"$f":"VLOOKUP($I368,Func,2)*$H368","v":0},{"$f":"VLOOKUP($I368,Func,3)*$H368","v":0},{"$f":"VLOOKUP($I368,Func,5)*$H368","v":0},{"$f":"VLOOKUP($I368,Func,6)*$H368","v":0},{"$f":"VLOOKUP($I368,Func,7)*$H368","v":0},null,{"$f":"+Demand","v":0.38},{"$f":"+$J368*$P368","v":0},{"$f":"+$J368*(1-$P368)","v":0},null,{"$f":"+$K368*$S368","v":0},{"$f":"+$K368*(1-$S368)","v":0},"PLNT",{"$f":"+$L368*VLOOKUP($V368,DisFac,2)","v":0},{"$f":"+$L368*VLOOKUP($V368,DisFac,3)","v":0},{"$f":"+$L368*VLOOKUP($V368,DisFac,4)","v":0},{"$f":"+$L368*VLOOKUP($V368,DisFac,5)","v":0},{"$f":"+$L368*VLOOKUP($V368,DisFac,6)","v":0},0,"UACCT41160DGP",0,0,0,0]
[369,null,null,null,null,null,"ACCT41160",{"$f":"'JAM Download'!E119","v":0},null,{"$f":"SUM(J364:J368)","v":0},{"$f":"SUM(K364:K368)","v":0},{"$f":"SUM(L364:L368)","v":0},{"$f":"SUM(M364:M368)","v":0},{"$f":"SUM(N364:N368)","v":0},null,null,{"$f":"SUM(Q364:Q368)","v":0},{"$f":"SUM(R364:R368)","v":0},null,{"$f":"SUM(T364:T368)","v":0},{"$f":"SUM(U364:U368)","v":0},null,{"$f":"SUM(W364:W368)","v":0},{"$f":"SUM(X364:X368)","v":0},{"$f":"SUM(Y364:Y368)","v":0},{"$f":"SUM(Z364:Z368)","v":0},{"$f":"SUM(AA364:AA368)","v":0},0,"UACCT41160",0,0,0,0]
[370]
[371,41170,"Loss on Sale of Utility Plant"]
[372,null,null,"S",41170,"S","ACCT41170S",{"$f":"'JAM Download'!$E128","v":0},"DPW",{"$f":"VLOOKUP($I372,Func,2)*$H372","v":0},{"$f":"VLOOKUP($I372,Func,3)*$H372","v":0},{"$f":"VLOOKUP($I372,Func,5)*$H372","v":0},{"$f":"VLOOKUP($I372,Func,6)*$H372","v":0},{"$f":"VLOOKUP($I372,Func,7)*$H372","v":0},null,{"$f":"+Demand","v":0.38},{"$f":"+$J372*$P372","v":0},{"$f":"+$J372*(1-$P372)","v":0},null,{"$f":"+$K372*$S372","v":0},{"$f":"+$K372*(1-$S372)","v":0},"PLNT",{"$f":"+$L372*VLOOKUP($V372,DisFac,2)","v":0},{"$f":"+$L372*VLOOKUP($V372,DisFac,3)","v":0},{"$f":"+$L372*VLOOKUP($V372,DisFac,4)","v":0},{"$f":"+$L372*VLOOKUP($V372,DisFac,5)","v":0},{"$f":"+$L372*VLOOKUP($V372,DisFac,6)","v":0},0,"UACCT41170S",{"$f":"ROUND(SUM(-H372,J372:N372),0)","v":0},{"$f":"ROUND(J372-Q372-R372,0)","v":0},{"$f":"ROUND(K372-T372-U372,0)","v":0},{"$f":"ROUND(L372-W372-X372-Y372-Z372-AA372,0)","v":0}]
[373,null,null,"SG/CAGW/CAGE",41170,"SG","ACCT41170DGU",{"$f":"'JAM Download'!$E129","v":0},"T",{"$f":"VLOOKUP($I373,Func,2)*$H373","v":0},{"$f":"VLOOKUP($I373,Func,3)*$H373","v":0},{"$f":"VLOOKUP($I373,Func,5)*$H373","v":0},{"$f":"VLOOKUP($I373,Func,6)*$H373","v":0},{"$f":"VLOOKUP($I373,Func,7)*$H373","v":0},null,{"$f":"+Demand","v":0.38},{"$f":"+$J373*$P373","v":0},{"$f":"+$J373*(1-$P373)","v":0},{"$f":"+Demand","v":0.38},{"$f":"+$K373*$S373","v":0},{"$f":"+$K373*(1-$S373)","v":0},"PLNT",{"$f":"+$L373*VLOOKUP($V373,DisFac,2)","v":0},{"$f":"+$L373*VLOOKUP($V373,DisFac,3)","v":0},{"$f":"+$L373*VLOOKUP($V373,DisFac,4)","v":0},{"$f":"+$L373*VLOOKUP($V373,DisFac,5)","v":0},{"$f":"+$L373*VLOOKUP($V373,DisFac,6)","v":0},0,"UACCT41170SG",{"$f":"ROUND(SUM(-H373,J373:N373),0)","v":0},{"$f":"ROUND(J373-Q373-R373,0)","v":0},{"$f":"ROUND(K373-T373-U373,0)","v":0},{"$f":"ROUND(L373-W373-X373-Y373-Z373-AA373,0)","v":0}]
[374,null,null,null,null,null,"ACCT41170",{"$f":"'JAM Download'!$E126","v":0},null,{"$f":"SUM(J372:J373)","v":0},{"$f":"SUM(K372:K373)","v":0},{"$f":"SUM(L372:L373)","v":0},{"$f":"SUM(M372:M373)","v":0},{"$f":"SUM(N372:N373)","v":0},null,null,{"$f":"SUM(Q372:Q373)","v":0},{"$f":"SUM(R372:R373)","v":0},null,{"$f":"SUM(T372:T373)","v":0},{"$f":"SUM(U372:U373)","v":0},null,{"$f":"SUM(W372:W373)","v":0},{"$f":"SUM(X372:X373)","v":0},{"$f":"SUM(Y372:Y373)","v":0},{"$f":"SUM(Z372:Z373)","v":0},{"$f":"SUM(AA372:AA373)","v":0},0,"UACCT41170",{"$f":"ROUND(SUM(-H374,J374:N374),0)","v":0},{"$f":"ROUND(J374-Q374-R374,0)","v":0},{"$f":"ROUND(K374-T374-U374,0)","v":0},{"$f":"ROUND(L374-W374-X374-Y374-Z374-AA374,0)","v":0}]
[375]
[376,4118,"Gain from Emission Allowances",null,4118,"S","ACCT4118S",{"$f":"'JAM Download'!E136","v":-854647.89922117116},"P",{"$f":"VLOOKUP($I376,Func,2)*$H376","v":-854647.89922117116},{"$f":"VLOOKUP($I376,Func,3)*$H376","v":0},{"$f":"VLOOKUP($I376,Func,5)*$H376","v":0},{"$f":"VLOOKUP($I376,Func,6)*$H376","v":0},{"$f":"VLOOKUP($I376,Func,7)*$H376","v":0},null,{"$f":"+Demand","v":0.38},{"$f":"+$J376*$P376","v":-324766.20170404506},{"$f":"+$J376*(1-$P376)","v":-529881.6975171261},null,{"$f":"+$K376*$S376","v":0},{"$f":"+$K376*(1-$S376)","v":0},"PLNT",{"$f":"+$L376*VLOOKUP($V376,DisFac,2)","v":0},{"$f":"+$L376*VLOOKUP($V376,DisFac,3)","v":0},{"$f":"+$L376*VLOOKUP($V376,DisFac,4)","v":0},{"$f":"+$L376*VLOOKUP($V376,DisFac,5)","v":0},{"$f":"+$L376*VLOOKUP($V376,DisFac,6)","v":0},0,"UACCT418S",{"$f":"ROUND(SUM(-H376,J376:N376),0)","v":0},{"$f":"ROUND(J376-Q376-R376,0)","v":0},{"$f":"ROUND(K376-T376-U376,0)","v":0},{"$f":"ROUND(L376-W376-X376-Y376-Z376-AA376,0)","v":0}]
[377,null,null,"SE/CAEW/CAEE",4118,"SE","ACCT4118SE",{"$f":"'JAM Download'!E137","v":0},"P",{"$f":"VLOOKUP($I377,Func,2)*$H377","v":0},{"$f":"VLOOKUP($I377,Func,3)*$H377","v":0},{"$f":"VLOOKUP($I377,Func,5)*$H377","v":0},{"$f":"VLOOKUP($I377,Func,6)*$H377","v":0},{"$f":"VLOOKUP($I377,Func,7)*$H377","v":0},null,{"$f":"+Demand","v":0.38},{"$f":"+$J377*$P377","v":0},{"$f":"+$J377*(1-$P377)","v":0},null,{"$f":"+$K377*$S377","v":0},{"$f":"+$K377*(1-$S377)","v":0},"PLNT",{"$f":"+$L377*VLOOKUP($V377,DisFac,2)","v":0},{"$f":"+$L377*VLOOKUP($V377,DisFac,3)","v":0},{"$f":"+$L377*VLOOKUP($V377,DisFac,4)","v":0},{"$f":"+$L377*VLOOKUP($V377,DisFac,5)","v":0},{"$f":"+$L377*VLOOKUP($V377,DisFac,6)","v":0},0,"UACCT4118SE",{"$f":"ROUND(SUM(-H377,J377:N377),0)","v":0},{"$f":"ROUND(J377-Q377-R377,0)","v":0},{"$f":"ROUND(K377-T377-U377,0)","v":0},{"$f":"ROUND(L377-W377-X377-Y377-Z377-AA377,0)","v":0}]
[378,null,null,null,null,null,"ACCT4118",{"$f":"'JAM Download'!$E140","v":-854647.92170649325},null,{"$f":"SUM(J376:J377)","v":-854647.89922117116},{"$f":"SUM(K376:K377)","v":0},{"$f":"SUM(L376:L377)","v":0},{"$f":"SUM(M376:M377)","v":0},{"$f":"SUM(N376:N377)","v":0},null,null,{"$f":"SUM(Q376:Q377)","v":-324766.20170404506},{"$f":"SUM(R376:R377)","v":-529881.6975171261},null,{"$f":"SUM(T376:T377)","v":0},{"$f":"SUM(U376:U377)","v":0},null,{"$f":"SUM(W376:W377)","v":0},{"$f":"SUM(X376:X377)","v":0},{"$f":"SUM(Y376:Y377)","v":0},{"$f":"SUM(Z376:Z377)","v":0},{"$f":"SUM(AA376:AA377)","v":0},0,"UACCT4118",{"$f":"ROUND(SUM(-H378,J378:N378),0)","v":0},{"$f":"ROUND(J378-Q378-R378,0)","v":0},{"$f":"ROUND(K378-T378-U378,0)","v":0},{"$f":"ROUND(L378-W378-X378-Y378-Z378-AA378,0)","v":0}]
[379,41181,"Gain from Disposition of NOX Credits"]
[380,null,null,"SE",41181,"SE","ACCT41181SE",{"$f":"'JAM Download'!$E143","v":0},"P",{"$f":"VLOOKUP($I380,Func,2)*$H380","v":0},{"$f":"VLOOKUP($I380,Func,3)*$H380","v":0},{"$f":"VLOOKUP($I380,Func,5)*$H380","v":0},{"$f":"VLOOKUP($I380,Func,6)*$H380","v":0},{"$f":"VLOOKUP($I380,Func,7)*$H380","v":0},null,{"$f":"+Demand","v":0.38},{"$f":"+$J380*$P380","v":0},{"$f":"+$J380*(1-$P380)","v":0},null,{"$f":"+$K380*$S380","v":0},{"$f":"+$K380*(1-$S380)","v":0},"PLNT",{"$f":"+$L380*VLOOKUP($V380,DisFac,2)","v":0},{"$f":"+$L380*VLOOKUP($V380,DisFac,3)","v":0},{"$f":"+$L380*VLOOKUP($V380,DisFac,4)","v":0},{"$f":"+$L380*VLOOKUP($V380,DisFac,5)","v":0},{"$f":"+$L380*VLOOKUP($V380,DisFac,6)","v":0},0,"UACCT41181SE",{"$f":"ROUND(SUM(-H380,J380:N380),0)","v":0},{"$f":"ROUND(J380-Q380-R380,0)","v":0},{"$f":"ROUND(K380-T380-U380,0)","v":0},{"$f":"ROUND(L380-W380-X380-Y380-Z380-AA380,0)","v":0}]
[{"$f":"A380+1","v":381},null,null,null,null,null,"ACCT41181",{"$f":"'JAM Download'!$E144","v":0},null,{"$f":"SUM(J380)","v":0},{"$f":"SUM(K380)","v":0},{"$f":"SUM(L380)","v":0},{"$f":"SUM(M380)","v":0},{"$f":"SUM(N380)","v":0},null,null,{"$f":"SUM(Q380)","v":0},{"$f":"SUM(R380)","v":0},null,{"$f":"SUM(T380)","v":0},{"$f":"SUM(U380)","v":0},null,{"$f":"SUM(W380)","v":0},{"$f":"SUM(X380)","v":0},{"$f":"SUM(Y380)","v":0},{"$f":"SUM(Z380)","v":0},{"$f":"SUM(AA380)","v":0},0,"UACCT41181",{"$f":"ROUND(SUM(-H381,J381:N381),0)","v":0},{"$f":"ROUND(J381-Q381-R381,0)","v":0},{"$f":"ROUND(K381-T381-U381,0)","v":0},{"$f":"ROUND(L381-W381-X381-Y381-Z381-AA381,0)","v":0}]
[382]
[383,4194,"Impact Housing Interest Income"]
[384,null,null,"DGU",4194,"DGU","ACCT4194DGU",{"$f":"'JAM Download'!$E147","v":0},"P",{"$f":"VLOOKUP($I384,Func,2)*$H384","v":0},{"$f":"VLOOKUP($I384,Func,3)*$H384","v":0},{"$f":"VLOOKUP($I384,Func,5)*$H384","v":0},{"$f":"VLOOKUP($I384,Func,6)*$H384","v":0},{"$f":"VLOOKUP($I384,Func,7)*$H384","v":0},null,{"$f":"+Demand","v":0.38},{"$f":"+$J384*$P384","v":0},{"$f":"+$J384*(1-$P384)","v":0},null,{"$f":"+$K384*$S384","v":0},{"$f":"+$K384*(1-$S384)","v":0},"PLNT",{"$f":"+$L384*VLOOKUP($V384,DisFac,2)","v":0},{"$f":"+$L384*VLOOKUP($V384,DisFac,3)","v":0},{"$f":"+$L384*VLOOKUP($V384,DisFac,4)","v":0},{"$f":"+$L384*VLOOKUP($V384,DisFac,5)","v":0},{"$f":"+$L384*VLOOKUP($V384,DisFac,6)","v":0},0,"UACCT4194DGU",{"$f":"ROUND(SUM(-H384,J384:N384),0)","v":0},{"$f":"ROUND(J384-Q384-R384,0)","v":0},{"$f":"ROUND(K384-T384-U384,0)","v":0},{"$f":"ROUND(L384-W384-X384-Y384-Z384-AA384,0)","v":0}]
[385,null,null,null,null,null,"ACCT4194",{"$f":"'JAM Download'!$E148","v":0},null,{"$f":"SUM(J384)","v":0},{"$f":"SUM(K384)","v":0},{"$f":"SUM(L384)","v":0},{"$f":"SUM(M384)","v":0},{"$f":"SUM(N384)","v":0},null,null,{"$f":"SUM(Q384)","v":0},{"$f":"SUM(R384)","v":0},null,{"$f":"SUM(T384)","v":0},{"$f":"SUM(U384)","v":0},null,{"$f":"SUM(W384)","v":0},{"$f":"SUM(X384)","v":0},{"$f":"SUM(Y384)","v":0},{"$f":"SUM(Z384)","v":0},{"$f":"SUM(AA384)","v":0},0,"UACCT4194",{"$f":"ROUND(SUM(-H385,J385:N385),0)","v":0},{"$f":"ROUND(J385-Q385-R385,0)","v":0},{"$f":"ROUND(K385-T385-U385,0)","v":0},{"$f":"ROUND(L385-W385-X385-Y385-Z385-AA385,0)","v":0}]
[386]
[387,421,"(Gain) / Loss on Sale of Utility Plant"]
[388,null,null,"S",421,"S","ACCT421S",{"$f":"'JAM Download'!$E151","v":2902.92},"DPW",{"$f":"VLOOKUP($I388,Func,2)*$H388","v":0},{"$f":"VLOOKUP($I388,Func,3)*$H388","v":0},{"$f":"VLOOKUP($I388,Func,5)*$H388","v":2902.92},{"$f":"VLOOKUP($I388,Func,6)*$H388","v":0},{"$f":"VLOOKUP($I388,Func,7)*$H388","v":0},null,{"$f":"+Demand","v":0.38},{"$f":"+$J388*$P388","v":0},{"$f":"+$J388*(1-$P388)","v":0},{"$f":"+Demand","v":0.38},{"$f":"+$K388*$S388","v":0},{"$f":"+$K388*(1-$S388)","v":0},"PLNT",{"$f":"+$L388*VLOOKUP($V388,DisFac,2)","v":341.03381487893097},{"$f":"+$L388*VLOOKUP($V388,DisFac,3)","v":1397.0486443926534},{"$f":"+$L388*VLOOKUP($V388,DisFac,4)","v":708.48116247732514},{"$f":"+$L388*VLOOKUP($V388,DisFac,5)","v":82.06176631650716},{"$f":"+$L388*VLOOKUP($V388,DisFac,6)","v":374.29461193458337},82.06176631650716,"UACCT421S",{"$f":"ROUND(SUM(-H388,J388:N388),0)","v":0},{"$f":"ROUND(J388-Q388-R388,0)","v":0},{"$f":"ROUND(K388-T388-U388,0)","v":0},{"$f":"ROUND(L388-W388-X388-Y388-Z388-AA388,0)","v":0}]
[389,null,null,"DGP",421,"DGP","ACCT421SG",{"$f":"'JAM Download'!$E152","v":0},"T",0,0,0,0,0,null,0.38,0,0,0.38,0,0,"PLNT",0,0,0,0,0,0,"UACCT421DGP",0,0,0,0]
[390,null,null,"DGU",421,"DGU","ACCT421SG",{"$f":"'JAM Download'!$E153","v":0},"T",0,0,0,0,0,null,0.38,0,0,0.38,0,0,"PLNT",0,0,0,0,0,0,"UACCT421DGU",0,0,0,0]
[391,null,null,"CN",421,"CN","ACCT421CN",{"$f":"'JAM Download'!$E154","v":0},"CUST",0,0,0,0,0,null,0.38,0,0,{"$f":"Demand","v":0.38},0,0,"PLNT",0,0,0,0,0,0,"UACCT421SE",0,0,0,0]
[392,null,null,"SO",421,"SO","ACCT421SO",{"$f":"'JAM Download'!$E155","v":2622.3892847143306},"PTD",1334.579228823424,516.47518278949883,771.33487310140777,0,0,null,0.38,507.14010695290114,827.43912187052285,0.38,196.26056946000955,320.21461332948928,"PLNT",90.616094939898176,371.20979525412378,188.25052965778781,21.804631925172043,99.453821324425931,21.804631925172043,"UACCT421SO",0,0,0,0]
[393,null,null,"SG/CAGW/CAGE",421,"SG","ACCT421SG",{"$f":"'JAM Download'!$E156+'JAM Download'!E157+'JAM Download'!E158","v":0},"P",0,0,0,0,0,null,0.38,0,0,0.38,0,0,"PLNT",0,0,0,0,0,0,"UACCT421SG",0,0,0,0]
[394,null,null,null,null,null,"ACCT421",{"$f":"'JAM Download'!$E159","v":5525.3092847143307},null,{"$f":"SUM(J388:J393)","v":1334.579228823424},{"$f":"SUM(K388:K393)","v":516.47518278949883},{"$f":"SUM(L388:L393)","v":3674.2548731014076},{"$f":"SUM(M388:M393)","v":0},{"$f":"SUM(N388:N393)","v":0},null,null,{"$f":"SUM(Q388:Q393)","v":507.14010695290114},{"$f":"SUM(R388:R393)","v":827.43912187052285},null,{"$f":"SUM(T388:T393)","v":196.26056946000955},{"$f":"SUM(U388:U393)","v":320.21461332948928},"PLNT",431.64990981882909,1768.2584396467771,896.73169213511289,103.86639824167921,473.74843325900923,103.86639824167921,"UACCT421",0,0,0,0]
[395,null,null,null,null,null,null,{"$f":"'JAM Download'!$E160","v":0}]
[396,"Total Miscellaneous Revenues",null,null,null,null,null,{"$f":"'JAM Download'!$E161","v":-849122.61242177885},null,{"$f":"+J369+J374+J378+J385+J394+J381","v":-853313.31999234774},{"$f":"+K369+K374+K378+K385+K394+K381","v":516.47518278949883},{"$f":"+L369+L374+L378+L385+L394+L381","v":3674.2548731014076},{"$f":"+M369+M374+M378+M385+M394+M381","v":0},{"$f":"+N369+N374+N378+N385+N394+N381","v":0},null,null,{"$f":"+Q369+Q374+Q378+Q385+Q394+Q381","v":-324259.06159709214},{"$f":"+R369+R374+R378+R385+R394+R381","v":-529054.25839525554},{"$f":"+S369+S374+S378+S385+S394+S381","v":0},{"$f":"+T369+T374+T378+T385+T394+T381","v":196.26056946000955},{"$f":"+U369+U374+U378+U385+U394+U381","v":320.21461332948928},null,{"$f":"+W369+W374+W378+W385+W394+W381","v":431.64990981882909},{"$f":"+X369+X374+X378+X385+X394+X381","v":1768.2584396467771},{"$f":"+Y369+Y374+Y378+Y385+Y394+Y381","v":896.73169213511289},{"$f":"+Z369+Z374+Z378+Z385+Z394+Z381","v":103.86639824167921},{"$f":"+AA369+AA374+AA378+AA385+AA394+AA381","v":473.74843325900923},103.86639824167921,null,{"$f":"ROUND(SUM(-H396,J396:N396),0)","v":0},{"$f":"ROUND(J396-Q396-R396,0)","v":0},{"$f":"ROUND(K396-T396-U396,0)","v":0},{"$f":"ROUND(L396-W396-X396-Y396-Z396-AA396,0)","v":0}]
[397]
[398,"Miscellaneous Expenses"]
[399,4311,"Interest on Customer Deposits"]
[400,null,null,"S",4311,"S","ACCT4311S",{"$f":"'JAM Download'!$E164","v":6775.2872727272734},"CUST",{"$f":"VLOOKUP($I400,Func,2)*$H400","v":0},{"$f":"VLOOKUP($I400,Func,3)*$H400","v":0},{"$f":"VLOOKUP($I400,Func,5)*$H400","v":0},{"$f":"VLOOKUP($I400,Func,6)*$H400","v":6775.2872727272734},{"$f":"VLOOKUP($I400,Func,7)*$H400","v":0},null,{"$f":"Demand","v":0.38},{"$f":"+$J400*$P400","v":0},{"$f":"+$J400*(1-$P400)","v":0},null,{"$f":"+$K400*$S400","v":0},{"$f":"+$K400*(1-$S400)","v":0},"CUST",{"$f":"+$L400*VLOOKUP($V400,DisFac,2)","v":0},{"$f":"+$L400*VLOOKUP($V400,DisFac,3)","v":0},{"$f":"+$L400*VLOOKUP($V400,DisFac,4)","v":0},{"$f":"+$L400*VLOOKUP($V400,DisFac,5)","v":0},{"$f":"+$L400*VLOOKUP($V400,DisFac,6)","v":0},0,"UACCT4311CSU",{"$f":"ROUND(SUM(-H400,J400:N400),0)","v":0},{"$f":"ROUND(J400-Q400-R400,0)","v":0},{"$f":"ROUND(K400-T400-U400,0)","v":0},{"$f":"ROUND(L400-W400-X400-Y400-Z400-AA400,0)","v":0}]
[401,null,null,null,null,null,"ACCT4311",{"$f":"'JAM Download'!E165","v":6775.2872727272734},null,{"$f":"SUM(J400)","v":0},{"$f":"SUM(K400)","v":0},{"$f":"SUM(L400)","v":0},{"$f":"SUM(M400)","v":6775.2872727272734},{"$f":"SUM(N400)","v":0},null,null,{"$f":"SUM(Q400)","v":0},{"$f":"SUM(R400)","v":0},null,{"$f":"SUM(T400)","v":0},{"$f":"SUM(U400)","v":0},null,{"$f":"SUM(W400)","v":0},{"$f":"SUM(X400)","v":0},{"$f":"SUM(Y400)","v":0},{"$f":"SUM(Z400)","v":0},{"$f":"SUM(AA400)","v":0},0,"UACCT4311",{"$f":"ROUND(SUM(-H401,J401:N401),0)","v":0},{"$f":"ROUND(J401-Q401-R401,0)","v":0},{"$f":"ROUND(K401-T401-U401,0)","v":0},{"$f":"ROUND(L401-W401-X401-Y401-Z401-AA401,0)","v":0}]
[402]
[403]
[404]
[405,"Total Miscellaneous Expenses",null,null,null,null,null,{"$f":"'JAM Download'!E166","v":6775.2872727272734},null,{"$f":"+J401","v":0},{"$f":"+K401","v":0},{"$f":"+L401","v":0},{"$f":"+M401","v":6775.2872727272734},{"$f":"+N401","v":0},null,null,{"$f":"+Q401","v":0},{"$f":"+R401","v":0},{"$f":"+S401","v":0},{"$f":"+T401","v":0},{"$f":"+U401","v":0},null,{"$f":"+W401","v":0},0,0,0,0,0,null,{"$f":"ROUND(SUM(-H405,J405:N405),0)","v":0},{"$f":"ROUND(J405-Q405-R405,0)","v":0},{"$f":"ROUND(K405-T405-U405,0)","v":0},{"$f":"ROUND(L405-W405-X405-Y405-Z405-AA405,0)","v":0}]
[406]
[407,"Net Misc Revenue and Expense",null,null,null,null,null,{"$f":"'JAM Download'!E168","v":-842347.32514905161},null,{"$f":"+J405+J396","v":-853313.31999234774},{"$f":"+K405+K396","v":516.47518278949883},{"$f":"+L405+L396","v":3674.2548731014076},{"$f":"+M405+M396","v":6775.2872727272734},{"$f":"+N405+N396","v":0},null,null,{"$f":"+Q405+Q396","v":-324259.06159709214},{"$f":"+R405+R396","v":-529054.25839525554},{"$f":"+S405+S396","v":0},{"$f":"+T405+T396","v":196.26056946000955},{"$f":"+U405+U396","v":320.21461332948928},null,{"$f":"+W405+W396","v":431.64990981882909},{"$f":"+X405+X396","v":1768.2584396467771},{"$f":"+Y405+Y396","v":896.73169213511289},{"$f":"+Z405+Z396","v":103.86639824167921},{"$f":"+AA405+AA396","v":473.74843325900923},103.86639824167921,null,{"$f":"ROUND(SUM(-H407,J407:N407),0)","v":0},{"$f":"ROUND(J407-Q407-R407,0)","v":0},{"$f":"ROUND(K407-T407-U407,0)","v":0},{"$f":"ROUND(L407-W407-X407-Y407-Z407-AA407,0)","v":0}]
[408]
[409]
[410,"FERC",null,"DESCRIPTION &","FERC",null,"RANGE",{"$f":"+$H$250","v":"Jurisdictional"},"FUNC","GEN","TRN","DIS","RETAIL","MISC",null,"D / E","GEN","GEN","D / E","TRN","TRN","DIS","DIS","DIS","DIS","DIS","DIS","DIS","Unbundled ACCT:","Function","Generation","Transmission","Distribution"]
[411,"ACCT",null,"CONSENSUS FACTOR","ACCT","FACTOR","NAME","ADJ Total","FACTOR","TOTAL","TOTAL","TOTAL","TOTAL","TOTAL",null,"SPLIT","DEMAND","ENERGY","SPLIT","DEMAND","ENERGY","SPLIT","SUBS","P & C","XFMR","METER","SERVICE","METER","TOTAL","Check","Check","Check","Check"]
[412,500,"Operation Supervision & Engineering"]
[413,null,null,"SG",500,"SG","ACCT500SG",{"$f":"'JAM Download'!E171","v":80.667219864704549},"P",{"$f":"VLOOKUP($I413,Func,2)*$H413","v":80.667219864704549},{"$f":"VLOOKUP($I413,Func,3)*$H413","v":0},{"$f":"VLOOKUP($I413,Func,5)*$H413","v":0},{"$f":"VLOOKUP($I413,Func,6)*$H413","v":0},{"$f":"VLOOKUP($I413,Func,7)*$H413","v":0},null,{"$f":"Demand","v":0.38},{"$f":"+$J413*$P413","v":30.653543548587731},{"$f":"+$J413*(1-$P413)","v":50.013676316116822},null,{"$f":"+$K413*$S413","v":0},{"$f":"+$K413*(1-$S413)","v":0},null,null,null,null,null,null,null,"UACCT500SG",{"$f":"ROUND(SUM(-H413,J413:N413),0)","v":0},{"$f":"ROUND(J413-Q413-R413,0)","v":0},{"$f":"ROUND(K413-T413-U413,0)","v":0},{"$f":"ROUND(L413-W413-X413-Y413-Z413-AA413,0)","v":0}]
[414,null,null,"JBG",500,"JBG","ACCT500JBG",{"$f":"'JAM Download'!E174","v":3607647.0253847498},"P",{"$f":"VLOOKUP($I414,Func,2)*$H414","v":3607647.0253847498},{"$f":"VLOOKUP($I414,Func,3)*$H414","v":0},{"$f":"VLOOKUP($I414,Func,5)*$H414","v":0},{"$f":"VLOOKUP($I414,Func,6)*$H414","v":0},{"$f":"VLOOKUP($I414,Func,7)*$H414","v":0},null,{"$f":"Demand","v":0.38},{"$f":"+$J414*$P414","v":1370905.8696462049},{"$f":"+$J414*(1-$P414)","v":2236741.1557385447},null,{"$f":"+$K414*$S414","v":0},{"$f":"+$K414*(1-$S414)","v":0},null,null,null,null,null,null,null,"UACCT500JBG",{"$f":"ROUND(SUM(-H414,J414:N414),0)","v":0},{"$f":"ROUND(J414-Q414-R414,0)","v":0},{"$f":"ROUND(K414-T414-U414,0)","v":0},{"$f":"ROUND(L414-W414-X414-Y414-Z414-AA414,0)","v":0}]
[415,null,null,"CAGW",500,"CAGW","ACCT500CAGW",{"$f":"'JAM Download'!E172+'JAM Download'!E173+'JAM Download'!E175","v":6945.7027479873686},"P",{"$f":"VLOOKUP($I415,Func,2)*$H415","v":6945.7027479873686},{"$f":"VLOOKUP($I415,Func,3)*$H415","v":0},{"$f":"VLOOKUP($I415,Func,5)*$H415","v":0},{"$f":"VLOOKUP($I415,Func,6)*$H415","v":0},{"$f":"VLOOKUP($I415,Func,7)*$H415","v":0},null,{"$f":"Demand","v":0.38},{"$f":"+$J415*$P415","v":2639.3670442352},{"$f":"+$J415*(1-$P415)","v":4306.3357037521682},null,{"$f":"+$K415*$S415","v":0},{"$f":"+$K415*(1-$S415)","v":0},null,null,null,null,null,null,null,"UACCT500CAGE",{"$f":"ROUND(SUM(-H415,J415:N415),0)","v":0},{"$f":"ROUND(J415-Q415-R415,0)","v":0},{"$f":"ROUND(K415-T415-U415,0)","v":0},{"$f":"ROUND(L415-W415-X415-Y415-Z415-AA415,0)","v":0}]
[416,null,null,null,null,null,"ACCT500",{"$f":"'JAM Download'!$E176","v":3614673.395352602},null,{"$f":"SUM(J413:J415)","v":3614673.395352602},{"$f":"SUM(K413:K415)","v":0},{"$f":"SUM(L413:L415)","v":0},{"$f":"SUM(M413:M415)","v":0},{"$f":"SUM(N413:N415)","v":0},null,null,{"$f":"SUM(Q413:Q415)","v":1373575.8902339886},{"$f":"SUM(R413:R415)","v":2241097.5051186127},null,{"$f":"SUM(T413:T415)","v":0},{"$f":"SUM(U413:U415)","v":0},null,{"$f":"SUM(W413:W415)","v":0},{"$f":"SUM(X413:X415)","v":0},{"$f":"SUM(Y413:Y415)","v":0},{"$f":"SUM(Z413:Z415)","v":0},{"$f":"SUM(AA413:AA415)","v":0},0,"UACCT500",{"$f":"ROUND(SUM(-H416,J416:N416),0)","v":0},{"$f":"ROUND(J416-Q416-R416,0)","v":0},{"$f":"ROUND(K416-T416-U416,0)","v":0},{"$f":"ROUND(L416-W416-X416-Y416-Z416-AA416,0)","v":0}]
[417]
[418,501,"Fuel Related"]
[419,null,null,"SE",501,"SE","ACCT501SE",{"$f":"'JAM Download'!E179+'JAM Download'!E180+'JAM Download'!E181","v":4788.4193593390683},"P",{"$f":"VLOOKUP($I419,Func,2)*$H419","v":4788.4193593390683},{"$f":"VLOOKUP($I419,Func,3)*$H419","v":0},{"$f":"VLOOKUP($I419,Func,5)*$H419","v":0},{"$f":"VLOOKUP($I419,Func,6)*$H419","v":0},{"$f":"VLOOKUP($I419,Func,7)*$H419","v":0},null,{"$f":"Demand","v":0.38},{"$f":"+$J419*$P419","v":1819.5993565488459},{"$f":"+$J419*(1-$P419)","v":2968.8200027902221},null,{"$f":"+$K419*$S419","v":0},{"$f":"+$K419*(1-$S419)","v":0},null,null,null,null,null,null,null,"UACCT501SE",{"$f":"ROUND(SUM(-H419,J419:N419),0)","v":0},{"$f":"ROUND(J419-Q419-R419,0)","v":0},{"$f":"ROUND(K419-T419-U419,0)","v":0},{"$f":"ROUND(L419-W419-X419-Y419-Z419-AA419,0)","v":0}]
[420,null,null,"CAGW",501,"CAGW","ACCT501CAGW",{"$f":"'JAM Download'!E182+'JAM Download'!E183+'JAM Download'!E184+'JAM Download'!E185+'JAM Download'!E187","v":412249.83472986781},"P",{"$f":"VLOOKUP($I420,Func,2)*$H420","v":412249.83472986781},{"$f":"VLOOKUP($I420,Func,3)*$H420","v":0},{"$f":"VLOOKUP($I420,Func,5)*$H420","v":0},{"$f":"VLOOKUP($I420,Func,6)*$H420","v":0},{"$f":"VLOOKUP($I420,Func,7)*$H420","v":0},null,{"$f":"Demand","v":0.38},{"$f":"+$J420*$P420","v":156654.93719734976},{"$f":"+$J420*(1-$P420)","v":255594.89753251805},null,{"$f":"+$K420*$S420","v":0},{"$f":"+$K420*(1-$S420)","v":0},null,null,null,null,null,null,null,"UACCT501CAGW",{"$f":"ROUND(SUM(-H420,J420:N420),0)","v":0},{"$f":"ROUND(J420-Q420-R420,0)","v":0},{"$f":"ROUND(K420-T420-U420,0)","v":0},{"$f":"ROUND(L420-W420-X420-Y420-Z420-AA420,0)","v":0}]
[421,null,null,"JBE",501,"JBE","ACCT501JBE",{"$f":"'JAM Download'!E186","v":293322.24345246662},"P",{"$f":"VLOOKUP($I421,Func,2)*$H421","v":293322.24345246662},{"$f":"VLOOKUP($I421,Func,3)*$H421","v":0},{"$f":"VLOOKUP($I421,Func,5)*$H421","v":0},{"$f":"VLOOKUP($I421,Func,6)*$H421","v":0},{"$f":"VLOOKUP($I421,Func,7)*$H421","v":0},null,{"$f":"Demand","v":0.38},{"$f":"+$J421*$P421","v":111462.45251193731},{"$f":"+$J421*(1-$P421)","v":181859.79094052929},null,{"$f":"+$K421*$S421","v":0},{"$f":"+$K421*(1-$S421)","v":0},null,null,null,null,null,null,null,"UACCT501JBE",{"$f":"ROUND(SUM(-H421,J421:N421),0)","v":0},{"$f":"ROUND(J421-Q421-R421,0)","v":0},{"$f":"ROUND(K421-T421-U421,0)","v":0},{"$f":"ROUND(L421-W421-X421-Y421-Z421-AA421,0)","v":0}]
[422,null,null,"CAEE",501,"CAEE","ACCT501CAEE",{"$f":"'JAM Download'!E188","v":0},"P",{"$f":"VLOOKUP($I422,Func,2)*$H422","v":0},{"$f":"VLOOKUP($I422,Func,3)*$H422","v":0},{"$f":"VLOOKUP($I422,Func,5)*$H422","v":0},{"$f":"VLOOKUP($I422,Func,6)*$H422","v":0},{"$f":"VLOOKUP($I422,Func,7)*$H422","v":0},null,{"$f":"Demand","v":0.38},{"$f":"+$J422*$P422","v":0},{"$f":"+$J422*(1-$P422)","v":0},null,{"$f":"+$K422*$S422","v":0},{"$f":"+$K422*(1-$S422)","v":0},null,null,null,null,null,null,null,"UACCT501SSECH",{"$f":"ROUND(SUM(-H422,J422:N422),0)","v":0},{"$f":"ROUND(J422-Q422-R422,0)","v":0},{"$f":"ROUND(K422-T422-U422,0)","v":0},{"$f":"ROUND(L422-W422-X422-Y422-Z422-AA422,0)","v":0}]
[423,null,null,null,null,null,"ACCT501",{"$f":"'JAM Download'!E189","v":710360.49754167348},null,{"$f":"SUM(J419:J422)","v":710360.49754167348},{"$f":"SUM(K419:K422)","v":0},{"$f":"SUM(L419:L422)","v":0},{"$f":"SUM(M419:M422)","v":0},{"$f":"SUM(N419:N422)","v":0},null,null,{"$f":"SUM(Q419:Q422)","v":269936.98906583589},{"$f":"SUM(R419:R422)","v":440423.50847583753},null,{"$f":"SUM(T419:T422)","v":0},{"$f":"SUM(U419:U422)","v":0},null,{"$f":"SUM(W419:W422)","v":0},{"$f":"SUM(X419:X422)","v":0},{"$f":"SUM(Y419:Y422)","v":0},{"$f":"SUM(Z419:Z422)","v":0},{"$f":"SUM(AA419:AA422)","v":0},0,"UACCT501",{"$f":"ROUND(SUM(-H423,J423:N423),0)","v":0},{"$f":"ROUND(J423-Q423-R423,0)","v":0},{"$f":"ROUND(K423-T423-U423,0)","v":0},{"$f":"ROUND(L423-W423-X423-Y423-Z423-AA423,0)","v":0}]
[424]
[425,"501NPC","Fuel Related"]
[426,null,null,"CAEW","501NPC","CAEW","ACCT501NPCSE",{"$f":"'JAM Download'!E197","v":47552446.991143696},"P",{"$f":"VLOOKUP($I426,Func,2)*$H426","v":47552446.991143696},{"$f":"VLOOKUP($I426,Func,3)*$H426","v":0},{"$f":"VLOOKUP($I426,Func,5)*$H426","v":0},{"$f":"VLOOKUP($I426,Func,6)*$H426","v":0},{"$f":"VLOOKUP($I426,Func,7)*$H426","v":0},null,{"$f":"Demand","v":0.38},{"$f":"+$J426*$P426","v":18069929.856634606},{"$f":"+$J426*(1-$P426)","v":29482517.13450909},null,{"$f":"+$K426*$S426","v":0},{"$f":"+$K426*(1-$S426)","v":0},null,null,null,null,null,null,null,"UACCT501NPCSE",{"$f":"ROUND(SUM(-H426,J426:N426),0)","v":0},{"$f":"ROUND(J426-Q426-R426,0)","v":0},{"$f":"ROUND(K426-T426-U426,0)","v":0},{"$f":"ROUND(L426-W426-X426-Y426-Z426-AA426,0)","v":0}]
[427,null,"Total Fuel Related",null,null,null,null,{"$f":"'JAM Download'!E204","v":48262807.488685369},null,{"$f":"SUM(J426,J423)","v":48262807.488685369},{"$f":"SUM(K426,K423)","v":0},{"$f":"SUM(L426,L423)","v":0},{"$f":"SUM(M426,M423)","v":0},{"$f":"SUM(N426,N423)","v":0},null,null,{"$f":"SUM(Q426,Q423)","v":18339866.845700443},{"$f":"SUM(R426,R423)","v":29922940.642984927},null,{"$f":"SUM(T426,T423)","v":0},{"$f":"SUM(U426,U423)","v":0},null,{"$f":"SUM(W426,W423)","v":0},0,0,0,0,0,null,{"$f":"ROUND(SUM(-H427,J427:N427),0)","v":0},{"$f":"ROUND(J427-Q427-R427,0)","v":0},{"$f":"ROUND(K427-T427-U427,0)","v":0},{"$f":"ROUND(L427-W427-X427-Y427-Z427-AA427,0)","v":0}]
[428]
[429]
[430,502,"Steam Expenses"]
[431,null,null,"SG/CAGW/CAGE",502,"SG","ACCT502SG",{"$f":"'JAM Download'!E207+'JAM Download'!E209+'JAM Download'!E208+'JAM Download'!E211","v":214953.74891334938},"P",{"$f":"VLOOKUP($I431,Func,2)*$H431","v":214953.74891334938},{"$f":"VLOOKUP($I431,Func,3)*$H431","v":0},{"$f":"VLOOKUP($I431,Func,5)*$H431","v":0},{"$f":"VLOOKUP($I431,Func,6)*$H431","v":0},{"$f":"VLOOKUP($I431,Func,7)*$H431","v":0},null,{"$f":"Demand","v":0.38},{"$f":"+$J431*$P431","v":81682.424587072761},{"$f":"+$J431*(1-$P431)","v":133271.3243262766},null,{"$f":"+$K431*$S431","v":0},{"$f":"+$K431*(1-$S431)","v":0},null,null,null,null,null,null,null,"UACCT502SG",{"$f":"ROUND(SUM(-H431,J431:N431),0)","v":0},{"$f":"ROUND(J431-Q431-R431,0)","v":0},{"$f":"ROUND(K431-T431-U431,0)","v":0},{"$f":"ROUND(L431-W431-X431-Y431-Z431-AA431,0)","v":0}]
[432,null,null,"JBG",502,"JBG","ACCT502JBG",{"$f":"'JAM Download'!E210","v":867177.14055246778},"P",{"$f":"VLOOKUP($I432,Func,2)*$H432","v":867177.14055246778},{"$f":"VLOOKUP($I432,Func,3)*$H432","v":0},{"$f":"VLOOKUP($I432,Func,5)*$H432","v":0},{"$f":"VLOOKUP($I432,Func,6)*$H432","v":0},{"$f":"VLOOKUP($I432,Func,7)*$H432","v":0},null,{"$f":"Demand","v":0.38},{"$f":"+$J432*$P432","v":329527.31340993778},{"$f":"+$J432*(1-$P432)","v":537649.82714253},null,{"$f":"+$K432*$S432","v":0},{"$f":"+$K432*(1-$S432)","v":0},null,null,null,null,null,null,null,"UACCT502JBG",{"$f":"ROUND(SUM(-H432,J432:N432),0)","v":0},{"$f":"ROUND(J432-Q432-R432,0)","v":0},{"$f":"ROUND(K432-T432-U432,0)","v":0},{"$f":"ROUND(L432-W432-X432-Y432-Z432-AA432,0)","v":0}]
[433,null,null,null,null,null,"ACCT502",{"$f":"'JAM Download'!E212","v":1082130.8894658173},null,{"$f":"SUM(J431:J432)","v":1082130.8894658173},{"$f":"SUM(K431:K432)","v":0},{"$f":"SUM(L431:L432)","v":0},{"$f":"SUM(M431:M432)","v":0},{"$f":"SUM(N431:N432)","v":0},null,null,{"$f":"SUM(Q431:Q432)","v":411209.73799701052},{"$f":"SUM(R431:R432)","v":670921.15146880667},null,{"$f":"SUM(T431:T432)","v":0},{"$f":"SUM(U431:U432)","v":0},null,null,null,null,null,null,null,"UACCT502JBG",{"$f":"ROUND(SUM(-H433,J433:N433),0)","v":0},{"$f":"ROUND(J433-Q433-R433,0)","v":0},{"$f":"ROUND(K433-T433-U433,0)","v":0},{"$f":"ROUND(L433-W433-X433-Y433-Z433-AA433,0)","v":0}]
[434]
[435,503,"Steam From Other Sources"]
[436,null,null,"SE/CAEW/CAEE",503,"SE","ACCT503SE",{"$f":"'JAM Download'!E215+'JAM Download'!E216+'JAM Download'!E217","v":0},"P",null,null,null,null,null,null,null,null,null,null,null,null,null,null,null,null,null,null,null,"UACCT503SE"]
[437,null,null,null,null,null,"ACCT503",{"$f":"'JAM Download'!E218","v":0},null,null,null,null,null,null,null,null,null,null,null,null,null,null,null,null,null,null,null,null,"UACCT503"]
[438]
[439,"503NPC","Steam From Other Sources-NPC"]
[440,null,null,"SE","503NPC","SE","ACCT503NPCSE",{"$f":"'JAM Download'!E221","v":0},"P",null,null,null,null,null,null,null,null,null,null,null,null,null,null,null,null,null,null,null,"UACCT503NPCSE"]
[441,null,null,"CAEW","503NPC","CAEW","ACCT503NPCCAEW",{"$f":"'JAM Download'!E222","v":0},"P",null,null,null,null,null,null,null,null,null,null,null,null,null,null,null,null,null,null,null,"UACCT503NPCCAEW"]
[442,null,null,"CAEE","503NPC","CAEE","ACCT503NPCCAEE",{"$f":"'JAM Download'!E223","v":0},"P",null,null,null,null,null,null,null,null,null,null,null,null,null,null,null,null,null,null,null,"UACCT503NPCCAEE"]
[443,null,null,null,null,null,null,{"$f":"'JAM Download'!E224","v":0},null,null,null,null,null,null,null,null,null,null,null,null,null,null,null,null,null,null,null,null,"UACCT503NPC"]
[444]
[{"$f":"A444+1","v":445}]
[446,505,"Electric Expenses"]
[447,null,null,"SG/CAGW/CAGE",505,"SG","ACCT505SG",{"$f":"'JAM Download'!E227+'JAM Download'!E228+'JAM Download'!E229+'JAM Download'!E231","v":14367.984125098681},"P",{"$f":"VLOOKUP($I447,Func,2)*$H447","v":14367.984125098681},{"$f":"VLOOKUP($I447,Func,3)*$H447","v":0},{"$f":"VLOOKUP($I447,Func,5)*$H447","v":0},{"$f":"VLOOKUP($I447,Func,6)*$H447","v":0},{"$f":"VLOOKUP($I447,Func,7)*$H447","v":0},null,{"$f":"Demand","v":0.38},{"$f":"+$J447*$P447","v":5459.8339675374991},{"$f":"+$J447*(1-$P447)","v":8908.1501575611819},null,{"$f":"+$K447*$S447","v":0},{"$f":"+$K447*(1-$S447)","v":0},null,null,null,null,null,null,null,"UACCT505SG",{"$f":"ROUND(SUM(-H447,J447:N447),0)","v":0},{"$f":"ROUND(J447-Q447-R447,0)","v":0},{"$f":"ROUND(K447-T447-U447,0)","v":0},{"$f":"ROUND(L447-W447-X447-Y447-Z447-AA447,0)","v":0}]
[448,null,null,"JBG",505,"JBG","ACCT505JBG",{"$f":"'JAM Download'!E230","v":0},"P",{"$f":"VLOOKUP($I448,Func,2)*$H448","v":0},{"$f":"VLOOKUP($I448,Func,3)*$H448","v":0},{"$f":"VLOOKUP($I448,Func,5)*$H448","v":0},{"$f":"VLOOKUP($I448,Func,6)*$H448","v":0},{"$f":"VLOOKUP($I448,Func,7)*$H448","v":0},null,{"$f":"Demand","v":0.38},{"$f":"+$J448*$P448","v":0},{"$f":"+$J448*(1-$P448)","v":0},null,{"$f":"+$K448*$S448","v":0},{"$f":"+$K448*(1-$S448)","v":0},null,null,null,null,null,null,null,"UACCT505JBG",{"$f":"ROUND(SUM(-H448,J448:N448),0)","v":0},{"$f":"ROUND(J448-Q448-R448,0)","v":0},{"$f":"ROUND(K448-T448-U448,0)","v":0},{"$f":"ROUND(L448-W448-X448-Y448-Z448-AA448,0)","v":0}]
[449,null,null,null,null,null,"ACCT505",{"$f":"'JAM Download'!$E232","v":14367.984125098681},null,{"$f":"SUM(J447:J448)","v":14367.984125098681},{"$f":"SUM(K447:K448)","v":0},{"$f":"SUM(L447:L448)","v":0},{"$f":"SUM(M447:M448)","v":0},{"$f":"SUM(N447:N448)","v":0},null,null,{"$f":"SUM(Q447:Q448)","v":5459.8339675374991},{"$f":"SUM(R447:R448)","v":8908.1501575611819},null,{"$f":"SUM(T447:T448)","v":0},{"$f":"SUM(U447:U448)","v":0},null,{"$f":"SUM(W447:W448)","v":0},{"$f":"SUM(X447:X448)","v":0},{"$f":"SUM(Y447:Y448)","v":0},{"$f":"SUM(Z447:Z448)","v":0},{"$f":"SUM(AA447:AA448)","v":0},0,"UACCT505",{"$f":"ROUND(SUM(-H449,J449:N449),0)","v":0},{"$f":"ROUND(J449-Q449-R449,0)","v":0},{"$f":"ROUND(K449-T449-U449,0)","v":0},{"$f":"ROUND(L449-W449-X449-Y449-Z449-AA449,0)","v":0}]
[450]
[451,506,"Misc. Steam Expense"]
[452,null,null,"SG/CAGW/CAGE",506,"SG","ACCT506SG",{"$f":"'JAM Download'!E235+'JAM Download'!E237+'JAM Download'!E238+'JAM Download'!E240","v":246721.08759898369},"P",{"$f":"VLOOKUP($I452,Func,2)*$H452","v":246721.08759898369},{"$f":"VLOOKUP($I452,Func,3)*$H452","v":0},{"$f":"VLOOKUP($I452,Func,5)*$H452","v":0},{"$f":"VLOOKUP($I452,Func,6)*$H452","v":0},{"$f":"VLOOKUP($I452,Func,7)*$H452","v":0},null,{"$f":"Demand","v":0.38},{"$f":"+$J452*$P452","v":93754.013287613809},{"$f":"+$J452*(1-$P452)","v":152967.07431136988},null,{"$f":"+$K452*$S452","v":0},{"$f":"+$K452*(1-$S452)","v":0},null,null,null,null,null,null,null,"UACCT506SG",{"$f":"ROUND(SUM(-H452,J452:N452),0)","v":0},{"$f":"ROUND(J452-Q452-R452,0)","v":0},{"$f":"ROUND(K452-T452-U452,0)","v":0},{"$f":"ROUND(L452-W452-X452-Y452-Z452-AA452,0)","v":0}]
[453,null,null,"SE",506,"SE","ACCT506SE",{"$f":"'JAM Download'!E236","v":0},"P",{"$f":"VLOOKUP($I453,Func,2)*$H453","v":0},{"$f":"VLOOKUP($I453,Func,3)*$H453","v":0},{"$f":"VLOOKUP($I453,Func,5)*$H453","v":0},{"$f":"VLOOKUP($I453,Func,6)*$H453","v":0},{"$f":"VLOOKUP($I453,Func,7)*$H453","v":0},null,{"$f":"Demand","v":0.38},{"$f":"+$J453*$P453","v":0},{"$f":"+$J453*(1-$P453)","v":0},null,{"$f":"+$K453*$S453","v":0},{"$f":"+$K453*(1-$S453)","v":0},null,null,null,null,null,null,null,"UACCT506SE",{"$f":"ROUND(SUM(-H453,J453:N453),0)","v":0},{"$f":"ROUND(J453-Q453-R453,0)","v":0},{"$f":"ROUND(K453-T453-U453,0)","v":0},{"$f":"ROUND(L453-W453-X453-Y453-Z453-AA453,0)","v":0}]
[454,null,null,"JBG",506,"JBG","ACCT506JBG",{"$f":"'JAM Download'!E239","v":-2857179.56565679},"P",{"$f":"VLOOKUP($I454,Func,2)*$H454","v":-2857179.56565679},{"$f":"VLOOKUP($I454,Func,3)*$H454","v":0},{"$f":"VLOOKUP($I454,Func,5)*$H454","v":0},{"$f":"VLOOKUP($I454,Func,6)*$H454","v":0},{"$f":"VLOOKUP($I454,Func,7)*$H454","v":0},null,{"$f":"Demand","v":0.38},{"$f":"+$J454*$P454","v":-1085728.2349495802},{"$f":"+$J454*(1-$P454)","v":-1771451.3307072099},null,{"$f":"+$K454*$S454","v":0},{"$f":"+$K454*(1-$S454)","v":0},null,null,null,null,null,null,null,"UACCT506JGB",{"$f":"ROUND(SUM(-H454,J454:N454),0)","v":0},{"$f":"ROUND(J454-Q454-R454,0)","v":0},{"$f":"ROUND(K454-T454-U454,0)","v":0},{"$f":"ROUND(L454-W454-X454-Y454-Z454-AA454,0)","v":0}]
[455,null,null,null,null,null,"ACCT506",{"$f":"'JAM Download'!E241","v":-2610458.4780578064},null,{"$f":"SUM(J452:J454)","v":-2610458.4780578064},{"$f":"SUM(K452:K454)","v":0},{"$f":"SUM(L452:L454)","v":0},{"$f":"SUM(M452:M454)","v":0},{"$f":"SUM(N452:N454)","v":0},null,null,{"$f":"SUM(Q452:Q454)","v":-991974.22166196629},{"$f":"SUM(R452:R454)","v":-1618484.2563958401},null,{"$f":"SUM(T452:T454)","v":0},{"$f":"SUM(U452:U454)","v":0},null,{"$f":"SUM(W452:W454)","v":0},0,0,0,0,0,"UACCT506",{"$f":"ROUND(SUM(-H455,J455:N455),0)","v":0},{"$f":"ROUND(J455-Q455-R455,0)","v":0},{"$f":"ROUND(K455-T455-U455,0)","v":0},{"$f":"ROUND(L455-W455-X455-Y455-Z455-AA455,0)","v":0}]
[456]
[457]
[458]
[459,"FERC",null,"DESCRIPTION &","FERC",null,"RANGE",{"$f":"+$H$250","v":"Jurisdictional"},"FUNC","GEN","TRN","DIS","RETAIL","MISC",null,"D / E","GEN","GEN","D / E","TRN","TRN","DIS","DIS","DIS","DIS","DIS","DIS","DIS","Unbundled ACCT:","Function","Generation","Transmission","Distribution"]
[460,"ACCT",null,"CONSENSUS FACTOR","ACCT","FACTOR","NAME","ADJ Total","FACTOR","TOTAL","TOTAL","TOTAL","TOTAL","TOTAL",null,"SPLIT","DEMAND","ENERGY","SPLIT","DEMAND","ENERGY","SPLIT","SUBS","P & C","XFMR","METER","SERVICE","METER","TOTAL","Check","Check","Check","Check"]
[461,507,"Rents"]
[462,null,null,"SG/CAGW/CAGE",507,"SG","ACCT507SG",{"$f":"'JAM Download'!E244+'JAM Download'!E245+'JAM Download'!E246+'JAM Download'!E248","v":4491.9284726725},"P",{"$f":"VLOOKUP($I462,Func,2)*$H462","v":4491.9284726725},{"$f":"VLOOKUP($I462,Func,3)*$H462","v":0},{"$f":"VLOOKUP($I462,Func,5)*$H462","v":0},{"$f":"VLOOKUP($I462,Func,6)*$H462","v":0},{"$f":"VLOOKUP($I462,Func,7)*$H462","v":0},null,{"$f":"Demand","v":0.38},{"$f":"+$J462*$P462","v":1706.93281961555},{"$f":"+$J462*(1-$P462)","v":2784.9956530569498},null,{"$f":"+$K462*$S462","v":0},{"$f":"+$K462*(1-$S462)","v":0},null,null,null,null,null,null,null,"UACCT507SG",{"$f":"ROUND(SUM(-H462,J462:N462),0)","v":0},{"$f":"ROUND(J462-Q462-R462,0)","v":0},{"$f":"ROUND(K462-T462-U462,0)","v":0},{"$f":"ROUND(L462-W462-X462-Y462-Z462-AA462,0)","v":0}]
[463,null,null,"JBG",507,"JBG","ACCT507JBG",{"$f":"'JAM Download'!E247","v":51257.14259279886},"P",{"$f":"VLOOKUP($I463,Func,2)*$H463","v":51257.14259279886},{"$f":"VLOOKUP($I463,Func,3)*$H463","v":0},{"$f":"VLOOKUP($I463,Func,5)*$H463","v":0},{"$f":"VLOOKUP($I463,Func,6)*$H463","v":0},{"$f":"VLOOKUP($I463,Func,7)*$H463","v":0},null,{"$f":"Demand","v":0.38},{"$f":"+$J463*$P463","v":19477.714185263569},{"$f":"+$J463*(1-$P463)","v":31779.428407535292},null,{"$f":"+$K463*$S463","v":0},{"$f":"+$K463*(1-$S463)","v":0},null,null,null,null,null,null,null,"UACCT507JBG",{"$f":"ROUND(SUM(-H463,J463:N463),0)","v":0},{"$f":"ROUND(J463-Q463-R463,0)","v":0},{"$f":"ROUND(K463-T463-U463,0)","v":0},{"$f":"ROUND(L463-W463-X463-Y463-Z463-AA463,0)","v":0}]
[464,null,null,null,null,null,"ACCT507",{"$f":"'JAM Download'!E249","v":55749.071065471362},null,{"$f":"SUM(J462:J463)","v":55749.071065471362},{"$f":"SUM(K462:K463)","v":0},{"$f":"SUM(L462:L463)","v":0},{"$f":"SUM(M462:M463)","v":0},{"$f":"SUM(N462:N463)","v":0},null,null,{"$f":"SUM(Q462:Q463)","v":21184.64700487912},{"$f":"SUM(R462:R463)","v":34564.424060592239},null,{"$f":"SUM(T462:T463)","v":0},{"$f":"SUM(U462:U463)","v":0},null,{"$f":"SUM(W462:W463)","v":0},{"$f":"SUM(X462:X463)","v":0},{"$f":"SUM(Y462:Y463)","v":0},{"$f":"SUM(Z462:Z463)","v":0},{"$f":"SUM(AA462:AA463)","v":0},0,"UACCT507",{"$f":"ROUND(SUM(-H464,J464:N464),0)","v":0},{"$f":"ROUND(J464-Q464-R464,0)","v":0},{"$f":"ROUND(K464-T464-U464,0)","v":0},{"$f":"ROUND(L464-W464-X464-Y464-Z464-AA464,0)","v":0}]
[465]
[466,510,"Maint Supervision & Engineering"]
[467,null,null,"SG/CAGW/CAGE",510,"SG","ACCT510SG",{"$f":"'JAM Download'!E252+'JAM Download'!E253+'JAM Download'!E254+'JAM Download'!E256","v":51258.22716226639},"P",{"$f":"VLOOKUP($I467,Func,2)*$H467","v":51258.22716226639},{"$f":"VLOOKUP($I467,Func,3)*$H467","v":0},{"$f":"VLOOKUP($I467,Func,5)*$H467","v":0},{"$f":"VLOOKUP($I467,Func,6)*$H467","v":0},{"$f":"VLOOKUP($I467,Func,7)*$H467","v":0},null,{"$f":"Demand","v":0.38},{"$f":"+$J467*$P467","v":19478.126321661228},{"$f":"+$J467*(1-$P467)","v":31780.100840605162},null,{"$f":"+$K467*$S467","v":0},{"$f":"+$K467*(1-$S467)","v":0},null,null,null,null,null,null,null,"UACCT510SG",{"$f":"ROUND(SUM(-H467,J467:N467),0)","v":0},{"$f":"ROUND(J467-Q467-R467,0)","v":0},{"$f":"ROUND(K467-T467-U467,0)","v":0},{"$f":"ROUND(L467-W467-X467-Y467-Z467-AA467,0)","v":0}]
[468,null,null,"JBG",510,"JBG","ACCT510JBG",{"$f":"'JAM Download'!E255","v":107787.92598277346},"P",{"$f":"VLOOKUP($I468,Func,2)*$H468","v":107787.92598277346},{"$f":"VLOOKUP($I468,Func,3)*$H468","v":0},{"$f":"VLOOKUP($I468,Func,5)*$H468","v":0},{"$f":"VLOOKUP($I468,Func,6)*$H468","v":0},{"$f":"VLOOKUP($I468,Func,7)*$H468","v":0},null,{"$f":"Demand","v":0.38},{"$f":"+$J468*$P468","v":40959.411873453915},{"$f":"+$J468*(1-$P468)","v":66828.514109319542},null,{"$f":"+$K468*$S468","v":0},{"$f":"+$K468*(1-$S468)","v":0},null,null,null,null,null,null,null,"UACCT510JBG",{"$f":"ROUND(SUM(-H468,J468:N468),0)","v":0},{"$f":"ROUND(J468-Q468-R468,0)","v":0},{"$f":"ROUND(K468-T468-U468,0)","v":0},{"$f":"ROUND(L468-W468-X468-Y468-Z468-AA468,0)","v":0}]
[469,null,null,null,null,null,"ACCT510",{"$f":"'JAM Download'!E257","v":159046.15314503986},null,{"$f":"SUM(J467:J468)","v":159046.15314503986},{"$f":"SUM(K467:K468)","v":0},{"$f":"SUM(L467:L468)","v":0},{"$f":"SUM(M467:M468)","v":0},{"$f":"SUM(N467:N468)","v":0},null,null,{"$f":"SUM(Q467:Q468)","v":60437.538195115143},{"$f":"SUM(R467:R468)","v":98608.614949924697},null,{"$f":"SUM(T467:T468)","v":0},{"$f":"SUM(U467:U468)","v":0},null,null,null,null,null,null,null,"UACCT510",{"$f":"ROUND(SUM(-H469,J469:N469),0)","v":0},{"$f":"ROUND(J469-Q469-R469,0)","v":0},{"$f":"ROUND(K469-T469-U469,0)","v":0},{"$f":"ROUND(L469-W469-X469-Y469-Z469-AA469,0)","v":0}]
[470]
[471,511,"Maintenance of Structures"]
[472,null,null,"SG/CAGW/CAGE",511,"SG","ACCT511SG",{"$f":"'JAM Download'!E262+'JAM Download'!E263+'JAM Download'!E264+'JAM Download'!E266","v":84299.326370806361},"P",{"$f":"VLOOKUP($I472,Func,2)*$H472","v":84299.326370806361},{"$f":"VLOOKUP($I472,Func,3)*$H472","v":0},{"$f":"VLOOKUP($I472,Func,5)*$H472","v":0},{"$f":"VLOOKUP($I472,Func,6)*$H472","v":0},{"$f":"VLOOKUP($I472,Func,7)*$H472","v":0},null,{"$f":"Demand","v":0.38},{"$f":"+$J472*$P472","v":32033.744020906419},{"$f":"+$J472*(1-$P472)","v":52265.582349899945},null,{"$f":"+$K472*$S472","v":0},{"$f":"+$K472*(1-$S472)","v":0},null,null,null,null,null,null,null,"UACCT511SG",{"$f":"ROUND(SUM(-H472,J472:N472),0)","v":0},{"$f":"ROUND(J472-Q472-R472,0)","v":0},{"$f":"ROUND(K472-T472-U472,0)","v":0},{"$f":"ROUND(L472-W472-X472-Y472-Z472-AA472,0)","v":0}]
[473,null,null,"JBG",511,"JBG","ACCT511JBG",{"$f":"'JAM Download'!E265","v":1906029.9299606474},"P",{"$f":"VLOOKUP($I473,Func,2)*$H473","v":1906029.9299606474},{"$f":"VLOOKUP($I473,Func,3)*$H473","v":0},{"$f":"VLOOKUP($I473,Func,5)*$H473","v":0},{"$f":"VLOOKUP($I473,Func,6)*$H473","v":0},{"$f":"VLOOKUP($I473,Func,7)*$H473","v":0},null,{"$f":"Demand","v":0.38},{"$f":"+$J473*$P473","v":724291.37338504603},{"$f":"+$J473*(1-$P473)","v":1181738.5565756015},null,{"$f":"+$K473*$S473","v":0},{"$f":"+$K473*(1-$S473)","v":0},null,null,null,null,null,null,null,"UACCT511JBG",{"$f":"ROUND(SUM(-H473,J473:N473),0)","v":0},{"$f":"ROUND(J473-Q473-R473,0)","v":0},{"$f":"ROUND(K473-T473-U473,0)","v":0},{"$f":"ROUND(L473-W473-X473-Y473-Z473-AA473,0)","v":0}]
[474,null,null,null,null,null,"ACCT511",{"$f":"'JAM Download'!E267","v":1990329.2563314538},null,{"$f":"SUM(J472:J473)","v":1990329.2563314538},{"$f":"SUM(K472:K473)","v":0},{"$f":"SUM(L472:L473)","v":0},{"$f":"SUM(M472:M473)","v":0},{"$f":"SUM(N472:N473)","v":0},null,null,{"$f":"SUM(Q472:Q473)","v":756325.11740595242},{"$f":"SUM(R472:R473)","v":1234004.1389255014},null,{"$f":"SUM(T472:T473)","v":0},{"$f":"SUM(U472:U473)","v":0},null,null,null,null,null,null,null,"UACCT511",{"$f":"ROUND(SUM(-H474,J474:N474),0)","v":0},{"$f":"ROUND(J474-Q474-R474,0)","v":0},{"$f":"ROUND(K474-T474-U474,0)","v":0},{"$f":"ROUND(L474-W474-X474-Y474-Z474-AA474,0)","v":0}]
[475]
[476,512,"Maintenance of Boiler Plant"]
[477,null,null,"SG/CAGW/CAGE",512,"SG","ACCT512SG",{"$f":"'JAM Download'!E270+'JAM Download'!E271+'JAM Download'!E272+'JAM Download'!E274","v":594620.49854772724},"P",{"$f":"VLOOKUP($I477,Func,2)*$H477","v":594620.49854772724},{"$f":"VLOOKUP($I477,Func,3)*$H477","v":0},{"$f":"VLOOKUP($I477,Func,5)*$H477","v":0},{"$f":"VLOOKUP($I477,Func,6)*$H476","v":0},{"$f":"VLOOKUP($I477,Func,7)*$H476","v":0},null,{"$f":"Demand","v":0.38},{"$f":"+$J477*$P477","v":225955.78944813635},{"$f":"+$J477*(1-$P477)","v":368664.70909959089},null,{"$f":"+$K477*$S477","v":0},{"$f":"+$K477*(1-$S477)","v":0},null,null,null,null,null,null,null,"UACCT512SG",{"$f":"ROUND(SUM(-H477,J477:N477),0)","v":0},{"$f":"ROUND(J477-Q477-R477,0)","v":0},{"$f":"ROUND(K477-T477-U477,0)","v":0},{"$f":"ROUND(L477-W477-X477-Y477-Z477-AA477,0)","v":0}]
[478,null,null,"JBG",512,"JBG","ACCT512JBG",{"$f":"'JAM Download'!E273","v":5301481.4858841449},"P",{"$f":"VLOOKUP($I478,Func,2)*$H478","v":5301481.4858841449},{"$f":"VLOOKUP($I478,Func,3)*$H478","v":0},{"$f":"VLOOKUP($I478,Func,5)*$H477","v":0},{"$f":"VLOOKUP($I478,Func,6)*$H477","v":0},{"$f":"VLOOKUP($I478,Func,7)*$H477","v":0},null,{"$f":"Demand","v":0.38},{"$f":"+$J478*$P478","v":2014562.9646359752},{"$f":"+$J478*(1-$P478)","v":3286918.5212481697},null,{"$f":"+$K478*$S478","v":0},{"$f":"+$K478*(1-$S478)","v":0},null,null,null,null,null,null,null,"UACCT512CAGE",{"$f":"ROUND(SUM(-H478,J478:N478),0)","v":0},{"$f":"ROUND(J478-Q478-R478,0)","v":0},{"$f":"ROUND(K478-T478-U478,0)","v":0},{"$f":"ROUND(L478-W478-X478-Y478-Z478-AA478,0)","v":0}]
[479,null,null,null,null,null,"ACCT512",{"$f":"'JAM Download'!E275","v":5896101.9844318721},null,{"$f":"SUM(J477:J478)","v":5896101.9844318721},{"$f":"SUM(K477:K478)","v":0},{"$f":"SUM(L477:L478)","v":0},{"$f":"SUM(M477:M478)","v":0},{"$f":"SUM(N477:N478)","v":0},null,null,{"$f":"SUM(Q477:Q478)","v":2240518.7540841117},{"$f":"SUM(R477:R478)","v":3655583.2303477605},null,{"$f":"SUM(T477:T478)","v":0},{"$f":"SUM(U477:U478)","v":0},null,{"$f":"SUM(W477:W478)","v":0},{"$f":"SUM(X477:X478)","v":0},{"$f":"SUM(Y477:Y478)","v":0},{"$f":"SUM(Z477:Z478)","v":0},{"$f":"SUM(AA477:AA478)","v":0},0,"UACCT512",{"$f":"ROUND(SUM(-H479,J479:N479),0)","v":0},{"$f":"ROUND(J479-Q479-R479,0)","v":0},{"$f":"ROUND(K479-T479-U479,0)","v":0},{"$f":"ROUND(L479-W479-X479-Y479-Z479-AA479,0)","v":0}]
[480]
[481,513,"Maintenance of Electric Plant"]
[482,null,null,"SG/CAGW/CAGE",513,"SG","ACCT513SG",{"$f":"'JAM Download'!E278+'JAM Download'!E279+'JAM Download'!E280+'JAM Download'!E282","v":72890.828322092624},"P",{"$f":"VLOOKUP($I482,Func,2)*$H482","v":72890.828322092624},{"$f":"VLOOKUP($I482,Func,3)*$H481","v":0},{"$f":"VLOOKUP($I482,Func,5)*$H481","v":0},{"$f":"VLOOKUP($I482,Func,6)*$H481","v":0},{"$f":"VLOOKUP($I482,Func,7)*$H481","v":0},null,{"$f":"Demand","v":0.38},{"$f":"+$J482*$P482","v":27698.514762395196},{"$f":"+$J482*(1-$P482)","v":45192.313559697424},null,{"$f":"+$K482*$S482","v":0},{"$f":"+$K482*(1-$S482)","v":0},null,null,null,null,null,null,null,"UACCT513SG",{"$f":"ROUND(SUM(-H482,J482:N482),0)","v":0},{"$f":"ROUND(J482-Q482-R482,0)","v":0},{"$f":"ROUND(K482-T482-U482,0)","v":0},{"$f":"ROUND(L482-W482-X482-Y482-Z482-AA482,0)","v":0}]
[483,null,null,"JBG",513,"JBG","ACCT513JBG",{"$f":"'JAM Download'!E281","v":2052737.7911420732},"P",{"$f":"VLOOKUP($I483,Func,2)*$H483","v":2052737.7911420732},{"$f":"VLOOKUP($I483,Func,3)*$H482","v":0},{"$f":"VLOOKUP($I483,Func,5)*$H482","v":0},{"$f":"VLOOKUP($I483,Func,6)*$H482","v":0},{"$f":"VLOOKUP($I483,Func,7)*$H482","v":0},null,{"$f":"Demand","v":0.38},{"$f":"+$J483*$P483","v":780040.36063398782},{"$f":"+$J483*(1-$P483)","v":1272697.4305080853},null,{"$f":"+$K483*$S483","v":0},{"$f":"+$K483*(1-$S483)","v":0},null,null,null,null,null,null,null,"UACCT513CAGE",{"$f":"ROUND(SUM(-H483,J483:N483),0)","v":0},{"$f":"ROUND(J483-Q483-R483,0)","v":0},{"$f":"ROUND(K483-T483-U483,0)","v":0},{"$f":"ROUND(L483-W483-X483-Y483-Z483-AA483,0)","v":0}]
[484,null,null,null,null,null,"ACCT513",{"$f":"'JAM Download'!E283","v":2125628.619464166},null,{"$f":"SUM(J482:J483)","v":2125628.619464166},{"$f":"SUM(K482:K483)","v":0},{"$f":"SUM(L482:L483)","v":0},{"$f":"SUM(M482:M483)","v":0},{"$f":"SUM(N482:N483)","v":0},null,null,{"$f":"SUM(Q482:Q483)","v":807738.87539638299},{"$f":"SUM(R482:R483)","v":1317889.7440677828},null,{"$f":"SUM(T482:T483)","v":0},{"$f":"SUM(U482:U483)","v":0},null,{"$f":"SUM(W482:W483)","v":0},{"$f":"SUM(X482:X483)","v":0},{"$f":"SUM(Y482:Y483)","v":0},{"$f":"SUM(Z482:Z483)","v":0},{"$f":"SUM(AA482:AA483)","v":0},0,"UACCT513",{"$f":"ROUND(SUM(-H484,J484:N484),0)","v":0},{"$f":"ROUND(J484-Q484-R484,0)","v":0},{"$f":"ROUND(K484-T484-U484,0)","v":0},{"$f":"ROUND(L484-W484-X484-Y484-Z484-AA484,0)","v":0}]
[485]
[486,514,"Maintenance of Misc. Steam Plant"]
[487,null,null,"SG/CAGW/CAGE",514,"SG","ACCT514SG",{"$f":"'JAM Download'!E286+'JAM Download'!E287+'JAM Download'!E288+'JAM Download'!E290","v":75739.922015921969},"P",{"$f":"VLOOKUP($I487,Func,2)*$H487","v":75739.922015921969},{"$f":"VLOOKUP($I487,Func,3)*$H487","v":0},{"$f":"VLOOKUP($I487,Func,5)*$H487","v":0},{"$f":"VLOOKUP($I487,Func,6)*$H487","v":0},{"$f":"VLOOKUP($I487,Func,7)*$H487","v":0},null,{"$f":"Demand","v":0.38},{"$f":"+$J487*$P487","v":28781.170366050348},{"$f":"+$J487*(1-$P487)","v":46958.751649871621},null,{"$f":"+$K487*$S487","v":0},{"$f":"+$K487*(1-$S487)","v":0},null,null,null,null,null,null,null,"UACCT514SG",{"$f":"ROUND(SUM(-H487,J487:N487),0)","v":0},{"$f":"ROUND(J487-Q487-R487,0)","v":0},{"$f":"ROUND(K487-T487-U487,0)","v":0},{"$f":"ROUND(L487-W487-X487-Y487-Z487-AA487,0)","v":0}]
[488,null,null,"JBG",514,"JBG","ACCT514JBG",{"$f":"'JAM Download'!E289","v":663511.66890561406},"P",{"$f":"VLOOKUP($I488,Func,2)*$H488","v":663511.66890561406},{"$f":"VLOOKUP($I488,Func,3)*$H488","v":0},{"$f":"VLOOKUP($I488,Func,5)*$H488","v":0},{"$f":"VLOOKUP($I488,Func,6)*$H488","v":0},{"$f":"VLOOKUP($I488,Func,7)*$H488","v":0},null,{"$f":"Demand","v":0.38},{"$f":"+$J488*$P488","v":252134.43418413334},{"$f":"+$J488*(1-$P488)","v":411377.23472148069},null,{"$f":"+$K488*$S488","v":0},{"$f":"+$K488*(1-$S488)","v":0},null,null,null,null,null,null,null,"UACCT514CAGE",{"$f":"ROUND(SUM(-H488,J488:N488),0)","v":0},{"$f":"ROUND(J488-Q488-R488,0)","v":0},{"$f":"ROUND(K488-T488-U488,0)","v":0},{"$f":"ROUND(L488-W488-X488-Y488-Z488-AA488,0)","v":0}]
[489,null,null,null,null,null,"ACCT514",{"$f":"'JAM Download'!E291","v":739251.59092153609},null,{"$f":"SUM(J487:J488)","v":739251.59092153609},{"$f":"SUM(K487:K488)","v":0},{"$f":"SUM(L487:L488)","v":0},{"$f":"SUM(M487:M488)","v":0},{"$f":"SUM(N487:N488)","v":0},null,null,{"$f":"SUM(Q487:Q488)","v":280915.60455018369},{"$f":"SUM(R487:R488)","v":458335.98637135234},null,{"$f":"SUM(T487:T488)","v":0},{"$f":"SUM(U487:U488)","v":0},null,{"$f":"SUM(W487:W488)","v":0},{"$f":"SUM(X487:X488)","v":0},{"$f":"SUM(Y487:Y488)","v":0},{"$f":"SUM(Z487:Z488)","v":0},{"$f":"SUM(AA487:AA488)","v":0},0,"UACCT514",{"$f":"ROUND(SUM(-H489,J489:N489),0)","v":0},{"$f":"ROUND(J489-Q489-R489,0)","v":0},{"$f":"ROUND(K489-T489-U489,0)","v":0},{"$f":"ROUND(L489-W489-X489-Y489-Z489-AA489,0)","v":0}]
[490]
[491,"Total Steam Power Generation",null,null,null,null,null,{"$f":"'JAM Download'!E293","v":61329627.954930618},null,{"$f":"+J489+J484+J479+J469+J464+J433+J426+J423+J416+J474+J455+J449","v":61329627.954930618},{"$f":"+K489+K484+K479+K469+K464+K433+K426+K423+K416+K474+K455+K449","v":0},{"$f":"+L489+L484+L479+L469+L464+L433+L426+L423+L416+L474+L455+L449","v":0},{"$f":"+M489+M484+M479+M469+M464+M433+M426+M423+M416+M474+M455+M449","v":0},{"$f":"+N489+N484+N479+N469+N464+N433+N426+N423+N416+N474+N455+N449","v":0},null,{"$f":"Demand","v":0.38},{"$f":"+Q489+Q484+Q479+Q469+Q464+Q433+Q426+Q423+Q416+Q474+Q455+Q449","v":23305258.622873638},{"$f":"+R489+R484+R479+R469+R464+R433+R426+R423+R416+R474+R455+R449","v":38024369.332056992},null,{"$f":"+T489+T484+T479+T469+T464+T433+T426+T423+T416+T474+T455+T449","v":0},{"$f":"+U489+U484+U479+U469+U464+U433+U426+U423+U416+U474+U455+U449","v":0},null,{"$f":"+W489+W484+W479+W469+W464+W433+W426+W423+W416+W474+W455+W449","v":0},0,0,0,0,0,null,{"$f":"ROUND(SUM(-H491,J491:N491),0)","v":0},{"$f":"+AE489+AE484+AE479+AE470+AE464+AE434+AE427+AE423+AE416","v":0},{"$f":"+AF489+AF484+AF479+AF470+AF464+AF434+AF427+AF423+AF416","v":0},{"$f":"+AG489+AG484+AG479+AG470+AG464+AG434+AG427+AG423+AG416","v":0}]
[492]
[493]
[494,"FERC",null,"DESCRIPTION &","FERC",null,"RANGE",{"$f":"+$H$250","v":"Jurisdictional"},"FUNC","GEN","TRN","DIS","RETAIL","MISC",null,"D / E","GEN","GEN","D / E","TRN","TRN","DIS","DIS","DIS","DIS","DIS","DIS","DIS","Unbundled ACCT:","Function","Generation","Transmission","Distribution"]
[495,"ACCT",null,"CONSENSUS FACTOR","ACCT","FACTOR","NAME","ADJ Total","FACTOR","TOTAL","TOTAL","TOTAL","TOTAL","TOTAL",null,"SPLIT","DEMAND","ENERGY","SPLIT","DEMAND","ENERGY","SPLIT","SUBS","P & C","XFMR","METER","SERVICE","METER","TOTAL","Check","Check","Check","Check"]
[496,517,"Operation Super & Engineering"]
[497,null,null,"SG",517,"SG","ACCT517SG",{"$f":"'JAM Download'!E295","v":0},"P",{"$f":"VLOOKUP($I497,Func,2)*$H497","v":0},{"$f":"VLOOKUP($I497,Func,3)*$H497","v":0},{"$f":"VLOOKUP($I497,Func,5)*$H497","v":0},{"$f":"VLOOKUP($I497,Func,6)*$H497","v":0},{"$f":"VLOOKUP($I497,Func,7)*$H497","v":0},null,{"$f":"Demand","v":0.38},{"$f":"+$J497*$P497","v":0},{"$f":"+$J497*(1-$P497)","v":0},null,{"$f":"+$K497*$S497","v":0},{"$f":"+$K497*(1-$S497)","v":0},null,null,null,null,null,null,null,"UACCT517DNPPNP",{"$f":"ROUND(SUM(-H497,J497:N497),0)","v":0},{"$f":"ROUND(J497-Q497-R497,0)","v":0},{"$f":"ROUND(K497-T497-U497,0)","v":0},{"$f":"ROUND(L497-W497-X497-Y497-Z497-AA497,0)","v":0}]
[498,null,null,null,null,null,"ACCT517",{"$f":"'JAM Download'!E296","v":0},null,{"$f":"SUM(J497)","v":0},{"$f":"SUM(K497)","v":0},{"$f":"SUM(L497)","v":0},{"$f":"SUM(M497)","v":0},{"$f":"SUM(N497)","v":0},null,null,{"$f":"SUM(Q497)","v":0},{"$f":"SUM(R497)","v":0},null,{"$f":"SUM(T497)","v":0},{"$f":"SUM(U497)","v":0},null,{"$f":"SUM(W497)","v":0},{"$f":"SUM(X497)","v":0},{"$f":"SUM(Y497)","v":0},{"$f":"SUM(Z497)","v":0},{"$f":"SUM(AA497)","v":0},0,"UACCT517",{"$f":"ROUND(SUM(-H498,J498:N498),0)","v":0},{"$f":"ROUND(J498-Q498-R498,0)","v":0},{"$f":"ROUND(K498-T498-U498,0)","v":0},{"$f":"ROUND(L498-W498-X498-Y498-Z498-AA498,0)","v":0}]
[499]
[500,518,"Nuclear Fuel Expense"]
[501,null,null,"SE",518,"SE","ACCT518SE",{"$f":"'JAM Download'!E299","v":0},"P",{"$f":"VLOOKUP($I501,Func,2)*$H501","v":0},{"$f":"VLOOKUP($I501,Func,3)*$H501","v":0},{"$f":"VLOOKUP($I501,Func,5)*$H501","v":0},{"$f":"VLOOKUP($I501,Func,6)*$H501","v":0},{"$f":"VLOOKUP($I501,Func,7)*$H501","v":0},null,{"$f":"Demand","v":0.38},{"$f":"+$J501*$P501","v":0},{"$f":"+$J501*(1-$P501)","v":0},null,{"$f":"+$K501*$S501","v":0},{"$f":"+$K501*(1-$S501)","v":0},null,null,null,null,null,null,null,"UACCT518SE",{"$f":"ROUND(SUM(-H501,J501:N501),0)","v":0},{"$f":"ROUND(J501-Q501-R501,0)","v":0},{"$f":"ROUND(K501-T501-U501,0)","v":0},{"$f":"ROUND(L501-W501-X501-Y501-Z501-AA501,0)","v":0}]
[502,null,null,null,null,null,"ACCT518",{"$f":"'JAM Download'!E300","v":0},null,{"$f":"SUM(J501)","v":0},{"$f":"SUM(K501)","v":0},{"$f":"SUM(L501)","v":0},{"$f":"SUM(M501)","v":0},{"$f":"SUM(N501)","v":0},null,{"$f":"Demand","v":0.38},{"$f":"SUM(Q501)","v":0},{"$f":"SUM(R501)","v":0},null,{"$f":"SUM(T501)","v":0},{"$f":"SUM(U501)","v":0},null,{"$f":"SUM(W501)","v":0},{"$f":"SUM(X501)","v":0},{"$f":"SUM(Y501)","v":0},{"$f":"SUM(Z501)","v":0},{"$f":"SUM(AA501)","v":0},0,"UACCT518",{"$f":"ROUND(SUM(-H502,J502:N502),0)","v":0},{"$f":"ROUND(J502-Q502-R502,0)","v":0},{"$f":"ROUND(K502-T502-U502,0)","v":0},{"$f":"ROUND(L502-W502-X502-Y502-Z502-AA502,0)","v":0}]
[503]
[504]
[505,519,"Coolants and Water"]
[506,null,null,"SG",519,"SG","ACCT519SG",{"$f":"'JAM Download'!E304","v":0},"P",{"$f":"VLOOKUP($I506,Func,2)*$H506","v":0},{"$f":"VLOOKUP($I506,Func,3)*$H506","v":0},{"$f":"VLOOKUP($I506,Func,5)*$H506","v":0},{"$f":"VLOOKUP($I506,Func,6)*$H506","v":0},{"$f":"VLOOKUP($I506,Func,7)*$H506","v":0},null,{"$f":"Demand","v":0.38},{"$f":"+$J506*$P506","v":0},{"$f":"+$J506*(1-$P506)","v":0},null,{"$f":"+$K506*$S506","v":0},{"$f":"+$K506*(1-$S506)","v":0},null,null,null,null,null,null,null,"UACCT519DNPPNP",{"$f":"ROUND(SUM(-H506,J506:N506),0)","v":0},{"$f":"ROUND(J506-Q506-R506,0)","v":0},{"$f":"ROUND(K506-T506-U506,0)","v":0},{"$f":"ROUND(L506-W506-X506-Y506-Z506-AA506,0)","v":0}]
[507,null,null,null,null,null,"ACCT519",{"$f":"'JAM Download'!E305","v":0},null,{"$f":"SUM(J506)","v":0},{"$f":"SUM(K506)","v":0},{"$f":"SUM(L506)","v":0},{"$f":"SUM(M506)","v":0},{"$f":"SUM(N506)","v":0},null,null,{"$f":"SUM(Q506)","v":0},{"$f":"SUM(R506)","v":0},null,{"$f":"SUM(T506)","v":0},{"$f":"SUM(U506)","v":0},null,{"$f":"SUM(W506)","v":0},{"$f":"SUM(X506)","v":0},{"$f":"SUM(Y506)","v":0},{"$f":"SUM(Z506)","v":0},{"$f":"SUM(AA506)","v":0},0,"UACCT519",{"$f":"ROUND(SUM(-H507,J507:N507),0)","v":0},{"$f":"ROUND(J507-Q507-R507,0)","v":0},{"$f":"ROUND(K507-T507-U507,0)","v":0},{"$f":"ROUND(L507-W507-X507-Y507-Z507-AA507,0)","v":0}]
[508]
[{"$f":"A508+1","v":509},520,"Steam Expenses"]
[510,null,null,"SG",520,"SG","ACCT520SG",{"$f":"'JAM Download'!E308","v":0},"P",{"$f":"VLOOKUP($I510,Func,2)*$H510","v":0},{"$f":"VLOOKUP($I510,Func,3)*$H510","v":0},{"$f":"VLOOKUP($I510,Func,5)*$H510","v":0},{"$f":"VLOOKUP($I510,Func,6)*$H510","v":0},{"$f":"VLOOKUP($I510,Func,7)*$H510","v":0},null,{"$f":"Demand","v":0.38},{"$f":"+$J510*$P510","v":0},{"$f":"+$J510*(1-$P510)","v":0},null,{"$f":"+$K510*$S510","v":0},{"$f":"+$K510*(1-$S510)","v":0},null,null,null,null,null,null,null,"UACCT520DNPPNP",{"$f":"ROUND(SUM(-H510,J510:N510),0)","v":0},{"$f":"ROUND(J510-Q510-R510,0)","v":0},{"$f":"ROUND(K510-T510-U510,0)","v":0},{"$f":"ROUND(L510-W510-X510-Y510-Z510-AA510,0)","v":0}]
[511,null,null,null,null,null,"ACCT520",{"$f":"'JAM Download'!E309","v":0},null,{"$f":"SUM(J510)","v":0},{"$f":"SUM(K510)","v":0},{"$f":"SUM(L510)","v":0},{"$f":"SUM(M510)","v":0},{"$f":"SUM(N510)","v":0},null,null,{"$f":"SUM(Q510)","v":0},{"$f":"SUM(R510)","v":0},null,{"$f":"SUM(T510)","v":0},{"$f":"SUM(U510)","v":0},null,{"$f":"SUM(W510)","v":0},{"$f":"SUM(X510)","v":0},{"$f":"SUM(Y510)","v":0},{"$f":"SUM(Z510)","v":0},{"$f":"SUM(AA510)","v":0},0,"UACCT520",{"$f":"ROUND(SUM(-H511,J511:N511),0)","v":0},{"$f":"ROUND(J511-Q511-R511,0)","v":0},{"$f":"ROUND(K511-T511-U511,0)","v":0},{"$f":"ROUND(L511-W511-X511-Y511-Z511-AA511,0)","v":0}]
[512]
[513,523,"Electric Expenses"]
[514,null,null,"SG",523,"SG","ACCT523SG",{"$f":"'JAM Download'!E314","v":0},"P",{"$f":"VLOOKUP($I514,Func,2)*$H514","v":0},{"$f":"VLOOKUP($I514,Func,3)*$H514","v":0},{"$f":"VLOOKUP($I514,Func,5)*$H514","v":0},{"$f":"VLOOKUP($I514,Func,6)*$H514","v":0},{"$f":"VLOOKUP($I514,Func,7)*$H514","v":0},null,{"$f":"Demand","v":0.38},{"$f":"+$J514*$P514","v":0},{"$f":"+$J514*(1-$P514)","v":0},null,{"$f":"+$K514*$S514","v":0},{"$f":"+$K514*(1-$S514)","v":0},null,null,null,null,null,null,null,"UACCT523DNPPNP",{"$f":"ROUND(SUM(-H514,J514:N514),0)","v":0},{"$f":"ROUND(J514-Q514-R514,0)","v":0},{"$f":"ROUND(K514-T514-U514,0)","v":0},{"$f":"ROUND(L514-W514-X514-Y514-Z514-AA514,0)","v":0}]
[515,null,null,null,null,null,"ACCT523",{"$f":"'JAM Download'!E315","v":0},null,{"$f":"SUM(J514)","v":0},{"$f":"SUM(K514)","v":0},{"$f":"SUM(L514)","v":0},{"$f":"SUM(M514)","v":0},{"$f":"SUM(N514)","v":0},null,null,{"$f":"SUM(Q514)","v":0},{"$f":"SUM(R514)","v":0},null,{"$f":"SUM(T514)","v":0},{"$f":"SUM(U514)","v":0},null,{"$f":"SUM(W514)","v":0},{"$f":"SUM(X514)","v":0},{"$f":"SUM(Y514)","v":0},{"$f":"SUM(Z514)","v":0},{"$f":"SUM(AA514)","v":0},0,"UACCT523",{"$f":"ROUND(SUM(-H515,J515:N515),0)","v":0},{"$f":"ROUND(J515-Q515-R515,0)","v":0},{"$f":"ROUND(K515-T515-U515,0)","v":0},{"$f":"ROUND(L515-W515-X515-Y515-Z515-AA515,0)","v":0}]
[516]
[517,524,"Misc. Nuclear Expenses"]
[518,null,null,"SG",524,"SG","ACCT524SG",{"$f":"'JAM Download'!E318","v":0},"P",{"$f":"VLOOKUP($I518,Func,2)*$H518","v":0},{"$f":"VLOOKUP($I518,Func,3)*$H518","v":0},{"$f":"VLOOKUP($I518,Func,5)*$H518","v":0},{"$f":"VLOOKUP($I518,Func,6)*$H518","v":0},{"$f":"VLOOKUP($I518,Func,7)*$H518","v":0},null,{"$f":"Demand","v":0.38},{"$f":"+$J518*$P518","v":0},{"$f":"+$J518*(1-$P518)","v":0},null,{"$f":"+$K518*$S518","v":0},{"$f":"+$K518*(1-$S518)","v":0},null,null,null,null,null,null,null,"UACCT524DNPPNP",{"$f":"ROUND(SUM(-H518,J518:N518),0)","v":0},{"$f":"ROUND(J518-Q518-R518,0)","v":0},{"$f":"ROUND(K518-T518-U518,0)","v":0},{"$f":"ROUND(L518-W518-X518-Y518-Z518-AA518,0)","v":0}]
[519,null,null,null,null,null,"ACCT524",{"$f":"'JAM Download'!E319","v":0},null,{"$f":"SUM(J518)","v":0},{"$f":"SUM(K518)","v":0},{"$f":"SUM(L518)","v":0},{"$f":"SUM(M518)","v":0},{"$f":"SUM(N518)","v":0},null,null,{"$f":"SUM(Q518)","v":0},{"$f":"SUM(R518)","v":0},null,{"$f":"SUM(T518)","v":0},{"$f":"SUM(U518)","v":0},null,{"$f":"SUM(W518)","v":0},{"$f":"SUM(X518)","v":0},{"$f":"SUM(Y518)","v":0},{"$f":"SUM(Z518)","v":0},{"$f":"SUM(AA518)","v":0},0,"UACCT524",{"$f":"ROUND(SUM(-H519,J519:N519),0)","v":0},{"$f":"ROUND(J519-Q519-R519,0)","v":0},{"$f":"ROUND(K519-T519-U519,0)","v":0},{"$f":"ROUND(L519-W519-X519-Y519-Z519-AA519,0)","v":0}]
[520]
[521,528,"Maintenance Super & Engineering"]
[522,null,null,"SG",528,"SG","ACCT528SG",{"$f":"'JAM Download'!E322","v":0},"P",{"$f":"VLOOKUP($I522,Func,2)*$H522","v":0},{"$f":"VLOOKUP($I522,Func,3)*$H522","v":0},{"$f":"VLOOKUP($I522,Func,5)*$H522","v":0},{"$f":"VLOOKUP($I522,Func,6)*$H522","v":0},{"$f":"VLOOKUP($I522,Func,7)*$H522","v":0},null,{"$f":"Demand","v":0.38},{"$f":"+$J522*$P522","v":0},{"$f":"+$J522*(1-$P522)","v":0},null,{"$f":"+$K522*$S522","v":0},{"$f":"+$K522*(1-$S522)","v":0},null,null,null,null,null,null,null,"UACCT528DNPPNP",{"$f":"ROUND(SUM(-H522,J522:N522),0)","v":0},{"$f":"ROUND(J522-Q522-R522,0)","v":0},{"$f":"ROUND(K522-T522-U522,0)","v":0},{"$f":"ROUND(L522-W522-X522-Y522-Z522-AA522,0)","v":0}]
[523,null,null,null,null,null,"ACCT528",{"$f":"'JAM Download'!E323","v":0},null,{"$f":"SUM(J522)","v":0},{"$f":"SUM(K522)","v":0},{"$f":"SUM(L522)","v":0},{"$f":"SUM(M522)","v":0},{"$f":"SUM(N522)","v":0},null,null,{"$f":"SUM(Q522)","v":0},{"$f":"SUM(R522)","v":0},null,{"$f":"SUM(T522)","v":0},{"$f":"SUM(U522)","v":0},null,{"$f":"SUM(W522)","v":0},{"$f":"SUM(X522)","v":0},{"$f":"SUM(Y522)","v":0},{"$f":"SUM(Z522)","v":0},{"$f":"SUM(AA522)","v":0},0,"UACCT528",{"$f":"ROUND(SUM(-H523,J523:N523),0)","v":0},{"$f":"ROUND(J523-Q523-R523,0)","v":0},{"$f":"ROUND(K523-T523-U523,0)","v":0},{"$f":"ROUND(L523-W523-X523-Y523-Z523-AA523,0)","v":0}]
[524]
[525,529,"Maintenance of Structures"]
[526,null,null,"SG",529,"SG","ACCT529SG",{"$f":"'JAM Download'!E326","v":0},"P",{"$f":"VLOOKUP($I526,Func,2)*$H526","v":0},{"$f":"VLOOKUP($I526,Func,3)*$H526","v":0},{"$f":"VLOOKUP($I526,Func,5)*$H526","v":0},{"$f":"VLOOKUP($I526,Func,6)*$H526","v":0},{"$f":"VLOOKUP($I526,Func,7)*$H526","v":0},null,{"$f":"Demand","v":0.38},{"$f":"+$J526*$P526","v":0},{"$f":"+$J526*(1-$P526)","v":0},null,{"$f":"+$K526*$S526","v":0},{"$f":"+$K526*(1-$S526)","v":0},null,null,null,null,null,null,null,"UACCT529DNPPNP",{"$f":"ROUND(SUM(-H526,J526:N526),0)","v":0},{"$f":"ROUND(J526-Q526-R526,0)","v":0},{"$f":"ROUND(K526-T526-U526,0)","v":0},{"$f":"ROUND(L526-W526-X526-Y526-Z526-AA526,0)","v":0}]
[527,null,null,null,null,null,"ACCT529",{"$f":"'JAM Download'!E327","v":0},null,{"$f":"SUM(J526)","v":0},{"$f":"SUM(K526)","v":0},{"$f":"SUM(L526)","v":0},{"$f":"SUM(M526)","v":0},{"$f":"SUM(N526)","v":0},null,null,{"$f":"SUM(Q526)","v":0},{"$f":"SUM(R526)","v":0},null,{"$f":"SUM(T526)","v":0},{"$f":"SUM(U526)","v":0},null,{"$f":"SUM(W526)","v":0},{"$f":"SUM(X526)","v":0},{"$f":"SUM(Y526)","v":0},{"$f":"SUM(Z526)","v":0},{"$f":"SUM(AA526)","v":0},0,"UACCT529",{"$f":"ROUND(SUM(-H527,J527:N527),0)","v":0},{"$f":"ROUND(J527-Q527-R527,0)","v":0},{"$f":"ROUND(K527-T527-U527,0)","v":0},{"$f":"ROUND(L527-W527-X527-Y527-Z527-AA527,0)","v":0}]
[528]
[529,530,"Maintenance of Reactor Plant"]
[530,null,null,"SG",530,"SG","ACCT530SG",{"$f":"'JAM Download'!E330","v":0},"P",{"$f":"VLOOKUP($I530,Func,2)*$H530","v":0},{"$f":"VLOOKUP($I530,Func,3)*$H530","v":0},{"$f":"VLOOKUP($I530,Func,5)*$H530","v":0},{"$f":"VLOOKUP($I530,Func,6)*$H530","v":0},{"$f":"VLOOKUP($I530,Func,7)*$H530","v":0},null,{"$f":"Demand","v":0.38},{"$f":"+$J530*$P530","v":0},{"$f":"+$J530*(1-$P530)","v":0},null,{"$f":"+$K530*$S530","v":0},{"$f":"+$K530*(1-$S530)","v":0},null,null,null,null,null,null,null,"UACCT530DNPPNP",{"$f":"ROUND(SUM(-H530,J530:N530),0)","v":0},{"$f":"ROUND(J530-Q530-R530,0)","v":0},{"$f":"ROUND(K530-T530-U530,0)","v":0},{"$f":"ROUND(L530-W530-X530-Y530-Z530-AA530,0)","v":0}]
[531,null,null,null,null,null,"ACCT530",{"$f":"'JAM Download'!E331","v":0},null,{"$f":"SUM(J530)","v":0},{"$f":"SUM(K530)","v":0},{"$f":"SUM(L530)","v":0},{"$f":"SUM(M530)","v":0},{"$f":"SUM(N530)","v":0},null,null,{"$f":"SUM(Q530)","v":0},{"$f":"SUM(R530)","v":0},null,{"$f":"SUM(T530)","v":0},{"$f":"SUM(U530)","v":0},null,{"$f":"SUM(W530)","v":0},{"$f":"SUM(X530)","v":0},{"$f":"SUM(Y530)","v":0},{"$f":"SUM(Z530)","v":0},{"$f":"SUM(AA530)","v":0},0,"UACCT530",{"$f":"ROUND(SUM(-H531,J531:N531),0)","v":0},{"$f":"ROUND(J531-Q531-R531,0)","v":0},{"$f":"ROUND(K531-T531-U531,0)","v":0},{"$f":"ROUND(L531-W531-X531-Y531-Z531-AA531,0)","v":0}]
[532]
[533,531,"Maintenance of Electric Plant"]
[534,null,null,"SG",531,"SG","ACCT531SG",{"$f":"'JAM Download'!E334","v":0},"P",{"$f":"VLOOKUP($I534,Func,2)*$H534","v":0},{"$f":"VLOOKUP($I534,Func,3)*$H534","v":0},{"$f":"VLOOKUP($I534,Func,5)*$H534","v":0},{"$f":"VLOOKUP($I534,Func,6)*$H534","v":0},{"$f":"VLOOKUP($I534,Func,7)*$H534","v":0},null,{"$f":"Demand","v":0.38},{"$f":"+$J534*$P534","v":0},{"$f":"+$J534*(1-$P534)","v":0},null,{"$f":"+$K534*$S534","v":0},{"$f":"+$K534*(1-$S534)","v":0},null,null,null,null,null,null,null,"UACCT531DNPPNP",{"$f":"ROUND(SUM(-H534,J534:N534),0)","v":0},{"$f":"ROUND(J534-Q534-R534,0)","v":0},{"$f":"ROUND(K534-T534-U534,0)","v":0},{"$f":"ROUND(L534-W534-X534-Y534-Z534-AA534,0)","v":0}]
[535,null,null,null,null,null,"ACCT531",{"$f":"'JAM Download'!E335","v":0},null,{"$f":"SUM(J534)","v":0},{"$f":"SUM(K534)","v":0},{"$f":"SUM(L534)","v":0},{"$f":"SUM(M534)","v":0},{"$f":"SUM(N534)","v":0},null,null,{"$f":"SUM(Q534)","v":0},{"$f":"SUM(R534)","v":0},null,{"$f":"SUM(T534)","v":0},{"$f":"SUM(U534)","v":0},null,{"$f":"SUM(W534)","v":0},{"$f":"SUM(X534)","v":0},{"$f":"SUM(Y534)","v":0},{"$f":"SUM(Z534)","v":0},{"$f":"SUM(AA534)","v":0},0,"UACCT531",{"$f":"ROUND(SUM(-H535,J535:N535),0)","v":0},{"$f":"ROUND(J535-Q535-R535,0)","v":0},{"$f":"ROUND(K535-T535-U535,0)","v":0},{"$f":"ROUND(L535-W535-X535-Y535-Z535-AA535,0)","v":0}]
[536]
[537,532,"Maintenance of Misc Nuclear"]
[538,null,null,"SG",532,"SG","ACCT532SG",{"$f":"'JAM Download'!E338","v":0},"P",{"$f":"VLOOKUP($I538,Func,2)*$H538","v":0},{"$f":"VLOOKUP($I538,Func,3)*$H538","v":0},{"$f":"VLOOKUP($I538,Func,5)*$H538","v":0},{"$f":"VLOOKUP($I538,Func,6)*$H538","v":0},{"$f":"VLOOKUP($I538,Func,7)*$H538","v":0},null,{"$f":"Demand","v":0.38},{"$f":"+$J538*$P538","v":0},{"$f":"+$J538*(1-$P538)","v":0},null,{"$f":"+$K538*$S538","v":0},{"$f":"+$K538*(1-$S538)","v":0},null,null,null,null,null,null,null,"UACCT532DNPPNP",{"$f":"ROUND(SUM(-H538,J538:N538),0)","v":0},{"$f":"ROUND(J538-Q538-R538,0)","v":0},{"$f":"ROUND(K538-T538-U538,0)","v":0},{"$f":"ROUND(L538-W538-X538-Y538-Z538-AA538,0)","v":0}]
[539,null,null,null,null,null,"ACCT532",{"$f":"'JAM Download'!E339","v":0},null,{"$f":"SUM(J538)","v":0},{"$f":"SUM(K538)","v":0},{"$f":"SUM(L538)","v":0},{"$f":"SUM(M538)","v":0},{"$f":"SUM(N538)","v":0},null,null,{"$f":"SUM(Q538)","v":0},{"$f":"SUM(R538)","v":0},null,{"$f":"SUM(T538)","v":0},{"$f":"SUM(U538)","v":0},null,{"$f":"SUM(W538)","v":0},{"$f":"SUM(X538)","v":0},{"$f":"SUM(Y538)","v":0},{"$f":"SUM(Z538)","v":0},{"$f":"SUM(AA538)","v":0},0,"UACCT532",{"$f":"ROUND(SUM(-H539,J539:N539),0)","v":0},{"$f":"ROUND(J539-Q539-R539,0)","v":0},{"$f":"ROUND(K539-T539-U539,0)","v":0},{"$f":"ROUND(L539-W539-X539-Y539-Z539-AA539,0)","v":0}]
[540]
[541,"Total Nuclear Power Generation",null,null,null,null,null,{"$f":"'JAM Download'!E341","v":0},null,{"$f":"+J539+J535+J531+J527+J523+J519+J515+J511+J507+J503+J498","v":0},{"$f":"+K539+K535+K531+K527+K523+K519+K515+K511+K507+K503+K498","v":0},{"$f":"+L539+L535+L531+L527+L523+L519+L515+L511+L507+L503+L498","v":0},{"$f":"+M539+M535+M531+M527+M523+M519+M515+M511+M507+M503+M498","v":0},{"$f":"+N539+N535+N531+N527+N523+N519+N515+N511+N507+N503+N498","v":0},null,null,{"$f":"+Q539+Q535+Q531+Q527+Q523+Q519+Q515+Q511+Q507+Q503+Q498","v":0},{"$f":"+R539+R535+R531+R527+R523+R519+R515+R511+R507+R503+R498","v":0},null,{"$f":"+T539+T535+T531+T527+T523+T519+T515+T511+T507+T503+T498","v":0},{"$f":"+U539+U535+U531+U527+U523+U519+U515+U511+U507+U503+U498","v":0},null,{"$f":"+W539+W535+W531+W527+W523+W519+W515+W511+W507+W503+W498","v":0},{"$f":"+X539+X535+X531+X527+X523+X519+X515+X511+X507+X503+X498","v":0},{"$f":"+Y539+Y535+Y531+Y527+Y523+Y519+Y515+Y511+Y507+Y503+Y498","v":0},{"$f":"+Z539+Z535+Z531+Z527+Z523+Z519+Z515+Z511+Z507+Z503+Z498","v":0},{"$f":"+AA539+AA535+AA531+AA527+AA523+AA519+AA515+AA511+AA507+AA503+AA498","v":0},0,null,{"$f":"ROUND(SUM(-H541,J541:N541),0)","v":0},{"$f":"ROUND(J541-Q541-R541,0)","v":0},{"$f":"ROUND(K541-T541-U541,0)","v":0},{"$f":"ROUND(L541-W541-X541-Y541-Z541-AA541,0)","v":0}]
[542]
[543]
[544]
[545]
[546,"FERC",null,"DESCRIPTION &","FERC",null,"RANGE",{"$f":"+$H$250","v":"Jurisdictional"},"FUNC","GEN","TRN","DIS","RETAIL","MISC",null,"D / E","GEN","GEN","D / E","TRN","TRN","DIS","DIS","DIS","DIS","DIS","DIS","DIS","Unbundled ACCT:","Function","Generation","Transmission","Distribution"]
[547,"ACCT",null,"CONSENSUS FACTOR","ACCT","FACTOR","NAME","ADJ Total","FACTOR","TOTAL","TOTAL","TOTAL","TOTAL","TOTAL",null,"SPLIT","DEMAND","ENERGY","SPLIT","DEMAND","ENERGY","SPLIT","SUBS","P & C","XFMR","METER","SERVICE","METER","TOTAL","Check","Check","Check","Check"]
[548]
[549,535,"Operation Super & Engineering"]
[550,null,null,"CAGE/CAGW",535,"CAGE","ACCT535CAGE",{"$f":"'JAM Download'!E345+'JAM Download'!E346+'JAM Download'!E347+'JAM Download'!E348","v":1324908.6690741614},"P",{"$f":"VLOOKUP($I550,Func,2)*$H550","v":1324908.6690741614},{"$f":"VLOOKUP($I550,Func,3)*$H550","v":0},{"$f":"VLOOKUP($I550,Func,5)*$H550","v":0},{"$f":"VLOOKUP($I550,Func,6)*$H550","v":0},{"$f":"VLOOKUP($I550,Func,7)*$H550","v":0},null,{"$f":"Demand","v":0.38},{"$f":"+$J550*$P550","v":503465.29424818134},{"$f":"+$J550*(1-$P550)","v":821443.37482598005},null,{"$f":"+$K550*$S550","v":0},{"$f":"+$K550*(1-$S550)","v":0},null,null,null,null,null,null,null,"UACCT535CAGE",{"$f":"ROUND(SUM(-H550,J550:N550),0)","v":0},{"$f":"ROUND(J550-Q550-R550,0)","v":0},{"$f":"ROUND(K550-T550-U550,0)","v":0},{"$f":"ROUND(L550-W550-X550-Y550-Z550-AA550,0)","v":0}]
[551,null,null,null,null,null,"ACCT535",{"$f":"'JAM Download'!E349","v":1324908.6690741614},null,{"$f":"SUM(J550:J550)","v":1324908.6690741614},{"$f":"SUM(K550:K550)","v":0},{"$f":"SUM(L550:L550)","v":0},{"$f":"SUM(M550:M550)","v":0},{"$f":"SUM(N550:N550)","v":0},null,null,{"$f":"SUM(Q550:Q550)","v":503465.29424818134},{"$f":"SUM(R550:R550)","v":821443.37482598005},null,{"$f":"SUM(T550:T550)","v":0},{"$f":"SUM(U550:U550)","v":0},null,{"$f":"SUM(W550:W550)","v":0},{"$f":"SUM(X550:X550)","v":0},{"$f":"SUM(Y550:Y550)","v":0},{"$f":"SUM(Z550:Z550)","v":0},{"$f":"SUM(AA550:AA550)","v":0},0,"UACCT535",{"$f":"ROUND(SUM(-H551,J551:N551),0)","v":0},{"$f":"ROUND(J551-Q551-R551,0)","v":0},{"$f":"ROUND(K551-T551-U551,0)","v":0},{"$f":"ROUND(L551-W551-X551-Y551-Z551-AA551,0)","v":0}]
[552]
[553,536,"Water For Power"]
[554,null,null,"CAGE/CAGW",536,"CAGE","ACCT536CAGE",{"$f":"'JAM Download'!E353+'JAM Download'!E354+'JAM Download'!E355+'JAM Download'!E356","v":49738.774633946021},"P",{"$f":"VLOOKUP($I554,Func,2)*$H554","v":49738.774633946021},{"$f":"VLOOKUP($I554,Func,3)*$H554","v":0},{"$f":"VLOOKUP($I554,Func,5)*$H554","v":0},{"$f":"VLOOKUP($I554,Func,6)*$H554","v":0},{"$f":"VLOOKUP($I554,Func,7)*$H554","v":0},null,{"$f":"Demand","v":0.38},{"$f":"+$J554*$P554","v":18900.734360899489},{"$f":"+$J554*(1-$P554)","v":30838.040273046532},null,{"$f":"+$K554*$S554","v":0},{"$f":"+$K554*(1-$S554)","v":0},null,null,null,null,null,null,null,"UACCT536CAGE",{"$f":"ROUND(SUM(-H554,J554:N554),0)","v":0},{"$f":"ROUND(J554-Q554-R554,0)","v":0},{"$f":"ROUND(K554-T554-U554,0)","v":0},{"$f":"ROUND(L554-W554-X554-Y554-Z554-AA554,0)","v":0}]
[555,null,null,null,null,null,"ACCT536",{"$f":"'JAM Download'!E357","v":49738.774633946021},null,{"$f":"SUM(J554:J554)","v":49738.774633946021},{"$f":"SUM(K554:K554)","v":0},{"$f":"SUM(L554:L554)","v":0},{"$f":"SUM(M554:M554)","v":0},{"$f":"SUM(N554:N554)","v":0},null,null,{"$f":"SUM(Q554:Q554)","v":18900.734360899489},{"$f":"SUM(R554:R554)","v":30838.040273046532},null,{"$f":"SUM(T554:T554)","v":0},{"$f":"SUM(U554:U554)","v":0},null,{"$f":"SUM(W554:W554)","v":0},{"$f":"SUM(X554:X554)","v":0},{"$f":"SUM(Y554:Y554)","v":0},{"$f":"SUM(Z554:Z554)","v":0},{"$f":"SUM(AA554:AA554)","v":0},0,"UACCT536",{"$f":"ROUND(SUM(-H555,J555:N555),0)","v":0},{"$f":"ROUND(J555-Q555-R555,0)","v":0},{"$f":"ROUND(K555-T555-U555,0)","v":0},{"$f":"ROUND(L555-W555-X555-Y555-Z555-AA555,0)","v":0}]
[556]
[557,537,"Hydraulic Expenses"]
[558,null,null,"CAGE/CAGW",537,"CAGE","ACCT537CAGE",{"$f":"'JAM Download'!E361+'JAM Download'!E362+'JAM Download'!E363+'JAM Download'!E364","v":795689.46794934163},"P",{"$f":"VLOOKUP($I558,Func,2)*$H558","v":795689.46794934163},{"$f":"VLOOKUP($I558,Func,3)*$H558","v":0},{"$f":"VLOOKUP($I558,Func,5)*$H558","v":0},{"$f":"VLOOKUP($I558,Func,6)*$H558","v":0},{"$f":"VLOOKUP($I558,Func,7)*$H558","v":0},null,{"$f":"Demand","v":0.38},{"$f":"+$J558*$P558","v":302361.99782074982},{"$f":"+$J558*(1-$P558)","v":493327.47012859181},null,{"$f":"+$K558*$S558","v":0},{"$f":"+$K558*(1-$S558)","v":0},null,null,null,null,null,null,null,"UACCT537CAGE",{"$f":"ROUND(SUM(-H558,J558:N558),0)","v":0},{"$f":"ROUND(J558-Q558-R558,0)","v":0},{"$f":"ROUND(K558-T558-U558,0)","v":0},{"$f":"ROUND(L558-W558-X558-Y558-Z558-AA558,0)","v":0}]
[559,null,null,null,null,null,"ACCT537",{"$f":"'JAM Download'!E365","v":795689.46794934163},null,{"$f":"SUM(J558:J558)","v":795689.46794934163},{"$f":"SUM(K558:K558)","v":0},{"$f":"SUM(L558:L558)","v":0},{"$f":"SUM(M558:M558)","v":0},{"$f":"SUM(N558:N558)","v":0},null,null,{"$f":"SUM(Q558:Q558)","v":302361.99782074982},{"$f":"SUM(R558:R558)","v":493327.47012859181},null,{"$f":"SUM(T558:T558)","v":0},{"$f":"SUM(U558:U558)","v":0},null,{"$f":"SUM(W558:W558)","v":0},{"$f":"SUM(X558:X558)","v":0},{"$f":"SUM(Y558:Y558)","v":0},{"$f":"SUM(Z558:Z558)","v":0},{"$f":"SUM(AA558:AA558)","v":0},0,"UACCT537",{"$f":"ROUND(SUM(-H559,J559:N559),0)","v":0},{"$f":"ROUND(J559-Q559-R559,0)","v":0},{"$f":"ROUND(K559-T559-U559,0)","v":0},{"$f":"ROUND(L559-W559-X559-Y559-Z559-AA559,0)","v":0}]
[560]
[561,538,"Electric Expenses"]
[562,null,null,"CAGE/CAGW",538,"CAGE","ACCT538CAGE",{"$f":"'JAM Download'!$E$369+'JAM Download'!$E$370+'JAM Download'!E371+'JAM Download'!E372","v":0},"P",{"$f":"VLOOKUP($I562,Func,2)*$H562","v":0},{"$f":"VLOOKUP($I562,Func,3)*$H562","v":0},{"$f":"VLOOKUP($I562,Func,5)*$H562","v":0},{"$f":"VLOOKUP($I562,Func,6)*$H562","v":0},{"$f":"VLOOKUP($I562,Func,7)*$H562","v":0},null,{"$f":"Demand","v":0.38},{"$f":"+$J562*$P562","v":0},{"$f":"+$J562*(1-$P562)","v":0},null,{"$f":"+$K562*$S562","v":0},{"$f":"+$K562*(1-$S562)","v":0},null,null,null,null,null,null,null,"UACCT538CAGE",{"$f":"ROUND(SUM(-H562,J562:N562),0)","v":0},{"$f":"ROUND(J562-Q562-R562,0)","v":0},{"$f":"ROUND(K562-T562-U562,0)","v":0},{"$f":"ROUND(L562-W562-X562-Y562-Z562-AA562,0)","v":0}]
[563,null,null,null,null,null,"ACCT538",{"$f":"'JAM Download'!E373","v":0},null,{"$f":"SUM(J562:J562)","v":0},{"$f":"SUM(K562:K562)","v":0},{"$f":"SUM(L562:L562)","v":0},{"$f":"SUM(M562:M562)","v":0},{"$f":"SUM(N562:N562)","v":0},null,null,{"$f":"SUM(Q562:Q562)","v":0},{"$f":"SUM(R562:R562)","v":0},null,{"$f":"SUM(T562:T562)","v":0},{"$f":"SUM(U562:U562)","v":0},null,{"$f":"SUM(W562:W562)","v":0},{"$f":"SUM(X562:X562)","v":0},{"$f":"SUM(Y562:Y562)","v":0},{"$f":"SUM(Z562:Z562)","v":0},{"$f":"SUM(AA562:AA562)","v":0},0,"UACCT538",{"$f":"ROUND(SUM(-H563,J563:N563),0)","v":0},{"$f":"ROUND(J563-Q563-R563,0)","v":0},{"$f":"ROUND(K563-T563-U563,0)","v":0},{"$f":"ROUND(L563-W563-X563-Y563-Z563-AA563,0)","v":0}]
[564]
[565,539,"Misc. Hydro Expenses"]
[566,null,null,"CAGE/CAGW",539,"CAGE","ACCT539CAGE",{"$f":"'JAM Download'!$E$377+'JAM Download'!$E$378+'JAM Download'!E379+'JAM Download'!E380","v":3250316.327707991},"P",{"$f":"VLOOKUP($I566,Func,2)*$H566","v":3250316.327707991},{"$f":"VLOOKUP($I566,Func,3)*$H566","v":0},{"$f":"VLOOKUP($I566,Func,5)*$H566","v":0},{"$f":"VLOOKUP($I566,Func,6)*$H566","v":0},{"$f":"VLOOKUP($I566,Func,7)*$H566","v":0},null,{"$f":"Demand","v":0.38},{"$f":"+$J566*$P566","v":1235120.2045290365},{"$f":"+$J566*(1-$P566)","v":2015196.1231789545},null,{"$f":"+$K566*$S566","v":0},{"$f":"+$K566*(1-$S566)","v":0},null,null,null,null,null,null,null,"UACCT539CAGE",{"$f":"ROUND(SUM(-H566,J566:N566),0)","v":0},{"$f":"ROUND(J566-Q566-R566,0)","v":0},{"$f":"ROUND(K566-T566-U566,0)","v":0},{"$f":"ROUND(L566-W566-X566-Y566-Z566-AA566,0)","v":0}]
[567,null,null,"CAEW",539,"CAEW","ACCT539CAEW",null,"P",{"$f":"VLOOKUP($I567,Func,2)*$H567","v":0},{"$f":"VLOOKUP($I567,Func,3)*$H567","v":0},{"$f":"VLOOKUP($I567,Func,5)*$H567","v":0},{"$f":"VLOOKUP($I567,Func,6)*$H567","v":0},{"$f":"VLOOKUP($I567,Func,7)*$H567","v":0},null,{"$f":"Demand","v":0.38},{"$f":"+$J567*$P567","v":0},{"$f":"+$J567*(1-$P567)","v":0},null,{"$f":"+$K567*$S567","v":0},{"$f":"+$K567*(1-$S567)","v":0},null,null,null,null,null,null,null,"UACCT539CAEW",{"$f":"ROUND(SUM(-H567,J567:N567),0)","v":0},{"$f":"ROUND(J567-Q567-R567,0)","v":0},{"$f":"ROUND(K567-T567-U567,0)","v":0},{"$f":"ROUND(L567-W567-X567-Y567-Z567-AA567,0)","v":0}]
[568,null,null,null,null,null,"ACCT539",{"$f":"'JAM Download'!E381","v":3250316.327707991},null,{"$f":"SUM(J566:J567)","v":3250316.327707991},{"$f":"SUM(K566:K567)","v":0},{"$f":"SUM(L566:L567)","v":0},{"$f":"SUM(M566:M567)","v":0},{"$f":"SUM(N566:N567)","v":0},null,null,{"$f":"SUM(Q566:Q567)","v":1235120.2045290365},{"$f":"SUM(R566:R567)","v":2015196.1231789545},null,{"$f":"SUM(T566:T567)","v":0},{"$f":"SUM(U566:U567)","v":0},null,{"$f":"SUM(W566:W567)","v":0},{"$f":"SUM(X566:X567)","v":0},{"$f":"SUM(Y566:Y567)","v":0},{"$f":"SUM(Z566:Z567)","v":0},{"$f":"SUM(AA566:AA567)","v":0},0,"UACCT539",{"$f":"SUM(AD566:AD567)","v":0},{"$f":"SUM(AE566:AE567)","v":0},{"$f":"SUM(AF566:AF567)","v":0},{"$f":"SUM(AG566:AG567)","v":0}]
[569]
[570,540,"Rents (Hydro Generation)"]
[571,null,null,"CAGE/CAGW",540,"CAGE","ACCT540CAGE",{"$f":"'JAM Download'!$E$385+'JAM Download'!$E$386+'JAM Download'!E387+'JAM Download'!E388","v":-44352.135913791084},"P",{"$f":"VLOOKUP($I571,Func,2)*$H571","v":-44352.135913791084},{"$f":"VLOOKUP($I571,Func,3)*$H571","v":0},{"$f":"VLOOKUP($I571,Func,5)*$H571","v":0},{"$f":"VLOOKUP($I571,Func,6)*$H571","v":0},{"$f":"VLOOKUP($I571,Func,7)*$H571","v":0},null,{"$f":"Demand","v":0.38},{"$f":"+$J571*$P571","v":-16853.811647240611},{"$f":"+$J571*(1-$P571)","v":-27498.324266550473},null,{"$f":"+$K571*$S571","v":0},{"$f":"+$K571*(1-$S571)","v":0},null,null,null,null,null,null,null,"UACCT540CAGE",{"$f":"ROUND(SUM(-H571,J571:N571),0)","v":0},{"$f":"ROUND(J571-Q571-R571,0)","v":0},{"$f":"ROUND(K571-T571-U571,0)","v":0},{"$f":"ROUND(L571-W571-X571-Y571-Z571-AA571,0)","v":0}]
[572,null,null,null,null,null,"ACCT540",{"$f":"'JAM Download'!E389","v":-44352.135913791084},null,{"$f":"SUM(J571:J571)","v":-44352.135913791084},{"$f":"SUM(K571:K571)","v":0},{"$f":"SUM(L571:L571)","v":0},{"$f":"SUM(M571:M571)","v":0},{"$f":"SUM(N571:N571)","v":0},null,null,{"$f":"SUM(Q571:Q571)","v":-16853.811647240611},{"$f":"SUM(R571:R571)","v":-27498.324266550473},null,{"$f":"SUM(T571:T571)","v":0},{"$f":"SUM(U571:U571)","v":0},null,{"$f":"SUM(W571:W571)","v":0},{"$f":"SUM(X571:X571)","v":0},{"$f":"SUM(Y571:Y571)","v":0},{"$f":"SUM(Z571:Z571)","v":0},{"$f":"SUM(AA571:AA571)","v":0},0,"UACCT540",{"$f":"ROUND(SUM(-H572,J572:N572),0)","v":0},{"$f":"ROUND(J572-Q572-R572,0)","v":0},{"$f":"ROUND(K572-T572-U572,0)","v":0},{"$f":"ROUND(L572-W572-X572-Y572-Z572-AA572,0)","v":0}]
[{"$f":"A572+1","v":573}]
[574,541,"Maint Supervision & Engineering"]
[575,null,null,"CAGE/CAGW",541,"CAGE","ACCT541CAGE",{"$f":"'JAM Download'!$E$393+'JAM Download'!$E$394+'JAM Download'!E395+'JAM Download'!E396","v":87.7907815933156},"P",{"$f":"VLOOKUP($I575,Func,2)*$H575","v":87.7907815933156},{"$f":"VLOOKUP($I575,Func,3)*$H575","v":0},{"$f":"VLOOKUP($I575,Func,5)*$H575","v":0},{"$f":"VLOOKUP($I575,Func,6)*$H575","v":0},{"$f":"VLOOKUP($I575,Func,7)*$H575","v":0},null,{"$f":"Demand","v":0.38},{"$f":"+$J575*$P575","v":33.360497005459926},{"$f":"+$J575*(1-$P575)","v":54.430284587855674},null,{"$f":"+$K575*$S575","v":0},{"$f":"+$K575*(1-$S575)","v":0},null,null,null,null,null,null,null,"UACCT541CAGE",{"$f":"ROUND(SUM(-H575,J575:N575),0)","v":0},{"$f":"ROUND(J575-Q575-R575,0)","v":0},{"$f":"ROUND(K575-T575-U575,0)","v":0},{"$f":"ROUND(L575-W575-X575-Y575-Z575-AA575,0)","v":0}]
[576,null,null,null,null,null,"ACCT541",{"$f":"'JAM Download'!E397","v":87.7907815933156},null,{"$f":"SUM(J575:J575)","v":87.7907815933156},{"$f":"SUM(K575:K575)","v":0},{"$f":"SUM(L575:L575)","v":0},{"$f":"SUM(M575:M575)","v":0},{"$f":"SUM(N575:N575)","v":0},null,null,{"$f":"SUM(Q575:Q575)","v":33.360497005459926},{"$f":"SUM(R575:R575)","v":54.430284587855674},null,{"$f":"SUM(T575:T575)","v":0},{"$f":"SUM(U575:U575)","v":0},null,{"$f":"SUM(W575:W575)","v":0},{"$f":"SUM(X575:X575)","v":0},{"$f":"SUM(Y575:Y575)","v":0},{"$f":"SUM(Z575:Z575)","v":0},{"$f":"SUM(AA575:AA575)","v":0},0,"UACCT541",{"$f":"ROUND(SUM(-H576,J576:N576),0)","v":0},{"$f":"ROUND(J576-Q576-R576,0)","v":0},{"$f":"ROUND(K576-T576-U576,0)","v":0},{"$f":"ROUND(L576-W576-X576-Y576-Z576-AA576,0)","v":0}]
[577]
[578,542,"Maintenance of Structures"]
[579,null,null,"CAGE/CAGW",542,"CAGE","ACCT542CAGE",{"$f":"'JAM Download'!$E$401+'JAM Download'!$E$402+'JAM Download'!E403+'JAM Download'!E404","v":209229.25596829882},"P",{"$f":"VLOOKUP($I579,Func,2)*$H579","v":209229.25596829882},{"$f":"VLOOKUP($I579,Func,3)*$H579","v":0},{"$f":"VLOOKUP($I579,Func,5)*$H579","v":0},{"$f":"VLOOKUP($I579,Func,6)*$H579","v":0},{"$f":"VLOOKUP($I579,Func,7)*$H579","v":0},null,{"$f":"Demand","v":0.38},{"$f":"+$J579*$P579","v":79507.117267953552},{"$f":"+$J579*(1-$P579)","v":129722.13870034527},null,{"$f":"+$K579*$S579","v":0},{"$f":"+$K579*(1-$S579)","v":0},null,null,null,null,null,null,null,"UACCT542CAGE",{"$f":"ROUND(SUM(-H579,J579:N579),0)","v":0},{"$f":"ROUND(J579-Q579-R579,0)","v":0},{"$f":"ROUND(K579-T579-U579,0)","v":0},{"$f":"ROUND(L579-W579-X579-Y579-Z579-AA579,0)","v":0}]
[580,null,null,null,null,null,"ACCT542",{"$f":"'JAM Download'!E405","v":209229.25596829882},null,{"$f":"SUM(J579:J579)","v":209229.25596829882},{"$f":"SUM(K579:K579)","v":0},{"$f":"SUM(L579:L579)","v":0},{"$f":"SUM(M579:M579)","v":0},{"$f":"SUM(N579:N579)","v":0},null,null,{"$f":"SUM(Q579:Q579)","v":79507.117267953552},{"$f":"SUM(R579:R579)","v":129722.13870034527},null,{"$f":"SUM(T579:T579)","v":0},{"$f":"SUM(U579:U579)","v":0},null,{"$f":"SUM(W579:W579)","v":0},{"$f":"SUM(X579:X579)","v":0},{"$f":"SUM(Y579:Y579)","v":0},{"$f":"SUM(Z579:Z579)","v":0},{"$f":"SUM(AA579:AA579)","v":0},0,"UACCT542",{"$f":"ROUND(SUM(-H580,J580:N580),0)","v":0},{"$f":"ROUND(J580-Q580-R580,0)","v":0},{"$f":"ROUND(K580-T580-U580,0)","v":0},{"$f":"ROUND(L580-W580-X580-Y580-Z580-AA580,0)","v":0}]
[581]
[582,543,"Maintenance of Dams & Waterways"]
[583,null,null,"CAGE/CAGW",543,"CAGE","ACCT543CAGE",{"$f":"'JAM Download'!$E$412+'JAM Download'!$E$413+'JAM Download'!E414+'JAM Download'!E415","v":363225.0548296136},"P",{"$f":"VLOOKUP($I583,Func,2)*$H583","v":363225.0548296136},{"$f":"VLOOKUP($I583,Func,3)*$H583","v":0},{"$f":"VLOOKUP($I583,Func,5)*$H583","v":0},{"$f":"VLOOKUP($I583,Func,6)*$H583","v":0},{"$f":"VLOOKUP($I583,Func,7)*$H583","v":0},null,{"$f":"Demand","v":0.38},{"$f":"+$J583*$P583","v":138025.52083525318},{"$f":"+$J583*(1-$P583)","v":225199.53399436042},null,{"$f":"+$K583*$S583","v":0},{"$f":"+$K583*(1-$S583)","v":0},null,null,null,null,null,null,null,"UACCT543CAGE",{"$f":"ROUND(SUM(-H583,J583:N583),0)","v":0},{"$f":"ROUND(J583-Q583-R583,0)","v":0},{"$f":"ROUND(K583-T583-U583,0)","v":0},{"$f":"ROUND(L583-W583-X583-Y583-Z583-AA583,0)","v":0}]
[584,null,null,null,null,null,"ACCT543",{"$f":"'JAM Download'!E416","v":363225.0548296136},null,{"$f":"SUM(J583:J583)","v":363225.0548296136},{"$f":"SUM(K583:K583)","v":0},{"$f":"SUM(L583:L583)","v":0},{"$f":"SUM(M583:M583)","v":0},{"$f":"SUM(N583:N583)","v":0},null,null,{"$f":"SUM(Q583:Q583)","v":138025.52083525318},{"$f":"SUM(R583:R583)","v":225199.53399436042},null,{"$f":"SUM(T583:T583)","v":0},{"$f":"SUM(U583:U583)","v":0},null,{"$f":"SUM(W583:W583)","v":0},{"$f":"SUM(X583:X583)","v":0},{"$f":"SUM(Y583:Y583)","v":0},{"$f":"SUM(Z583:Z583)","v":0},{"$f":"SUM(AA583:AA583)","v":0},0,"UACCT543",{"$f":"ROUND(SUM(-H584,J584:N584),0)","v":0},{"$f":"ROUND(J584-Q584-R584,0)","v":0},{"$f":"ROUND(K584-T584-U584,0)","v":0},{"$f":"ROUND(L584-W584-X584-Y584-Z584-AA584,0)","v":0}]
[585]
[586,544,"Maintenance of Electric Plant"]
[587,null,null,"CAGE/CAGW",544,"CAGE","ACCT544CAGE",{"$f":"'JAM Download'!$E$420+'JAM Download'!$E$421+'JAM Download'!E422+'JAM Download'!E423","v":446990.68112780293},"P",{"$f":"VLOOKUP($I587,Func,2)*$H587","v":446990.68112780293},{"$f":"VLOOKUP($I587,Func,3)*$H587","v":0},{"$f":"VLOOKUP($I587,Func,5)*$H587","v":0},{"$f":"VLOOKUP($I587,Func,6)*$H587","v":0},{"$f":"VLOOKUP($I587,Func,7)*$H587","v":0},null,{"$f":"Demand","v":0.38},{"$f":"+$J587*$P587","v":169856.45882856511},{"$f":"+$J587*(1-$P587)","v":277134.22229923779},null,{"$f":"+$K587*$S587","v":0},{"$f":"+$K587*(1-$S587)","v":0},null,null,null,null,null,null,null,"UACCT544CAGE",{"$f":"ROUND(SUM(-H587,J587:N587),0)","v":0},{"$f":"ROUND(J587-Q587-R587,0)","v":0},{"$f":"ROUND(K587-T587-U587,0)","v":0},{"$f":"ROUND(L587-W587-X587-Y587-Z587-AA587,0)","v":0}]
[588,null,null,null,null,null,"ACCT544",{"$f":"'JAM Download'!E424","v":446990.68112780293},null,{"$f":"SUM(J587:J587)","v":446990.68112780293},{"$f":"SUM(K587:K587)","v":0},{"$f":"SUM(L587:L587)","v":0},{"$f":"SUM(M587:M587)","v":0},{"$f":"SUM(N587:N587)","v":0},null,null,{"$f":"SUM(Q587:Q587)","v":169856.45882856511},{"$f":"SUM(R587:R587)","v":277134.22229923779},null,{"$f":"SUM(T587:T587)","v":0},{"$f":"SUM(U587:U587)","v":0},null,{"$f":"SUM(W587:W587)","v":0},{"$f":"SUM(X587:X587)","v":0},{"$f":"SUM(Y587:Y587)","v":0},{"$f":"SUM(Z587:Z587)","v":0},{"$f":"SUM(AA587:AA587)","v":0},0,"UACCT544",{"$f":"ROUND(SUM(-H588,J588:N588),0)","v":0},{"$f":"ROUND(J588-Q588-R588,0)","v":0},{"$f":"ROUND(K588-T588-U588,0)","v":0},{"$f":"ROUND(L588-W588-X588-Y588-Z588-AA588,0)","v":0}]
[589]
[590,545,"Maintenance of Misc. Hydro Plant"]
[591,null,null,"CAGE/CAGW",545,"CAGE","ACCT545CAGE",{"$f":"'JAM Download'!$E$428+'JAM Download'!$E$429+'JAM Download'!E430+'JAM Download'!E431","v":448827.46446306718},"P",{"$f":"VLOOKUP($I591,Func,2)*$H591","v":448827.46446306718},{"$f":"VLOOKUP($I591,Func,3)*$H591","v":0},{"$f":"VLOOKUP($I591,Func,5)*$H591","v":0},{"$f":"VLOOKUP($I591,Func,6)*$H591","v":0},{"$f":"VLOOKUP($I591,Func,7)*$H591","v":0},null,{"$f":"Demand","v":0.38},{"$f":"+$J591*$P591","v":170554.43649596552},{"$f":"+$J591*(1-$P591)","v":278273.02796710166},null,{"$f":"+$K591*$S591","v":0},{"$f":"+$K591*(1-$S591)","v":0},null,null,null,null,null,null,null,"UACCT545CAGE",{"$f":"ROUND(SUM(-H591,J591:N591),0)","v":0},{"$f":"ROUND(J591-Q591-R591,0)","v":0},{"$f":"ROUND(K591-T591-U591,0)","v":0},{"$f":"ROUND(L591-W591-X591-Y591-Z591-AA591,0)","v":0}]
[592,null,null,null,null,null,"ACCT545",{"$f":"'JAM Download'!E432","v":448827.46446306718},null,{"$f":"SUM(J591:J591)","v":448827.46446306718},{"$f":"SUM(K591:K591)","v":0},{"$f":"SUM(L591:L591)","v":0},{"$f":"SUM(M591:M591)","v":0},{"$f":"SUM(N591:N591)","v":0},null,null,{"$f":"SUM(Q591:Q591)","v":170554.43649596552},{"$f":"SUM(R591:R591)","v":278273.02796710166},null,{"$f":"SUM(T591:T591)","v":0},{"$f":"SUM(U591:U591)","v":0},null,{"$f":"SUM(W591:W591)","v":0},{"$f":"SUM(X591:X591)","v":0},{"$f":"SUM(Y591:Y591)","v":0},{"$f":"SUM(Z591:Z591)","v":0},{"$f":"SUM(AA591:AA591)","v":0},0,"UACCT545",{"$f":"ROUND(SUM(-H592,J592:N592),0)","v":0},{"$f":"ROUND(J592-Q592-R592,0)","v":0},{"$f":"ROUND(K592-T592-U592,0)","v":0},{"$f":"ROUND(L592-W592-X592-Y592-Z592-AA592,0)","v":0}]
[593]
[594,"Total Hydraulic Power Generation ",null,null,null,null,null,{"$f":"'JAM Download'!E434","v":6844661.3506220235},null,{"$f":"+J592+J588+J584+J580+J576+J572+J568+J563+J559+J555+J551","v":6844661.3506220244},{"$f":"+K592+K588+K584+K580+K576+K572+K568+K563+K559+K555+K551","v":0},{"$f":"+L592+L588+L584+L580+L576+L572+L568+L563+L559+L555+L551","v":0},{"$f":"+M592+M588+M584+M580+M576+M572+M568+M563+M559+M555+M551","v":0},{"$f":"+N592+N588+N584+N580+N576+N572+N568+N563+N559+N555+N551","v":0},null,null,{"$f":"+Q592+Q588+Q584+Q580+Q576+Q572+Q568+Q563+Q559+Q555+Q551","v":2600971.3132363693},{"$f":"+R592+R588+R584+R580+R576+R572+R568+R563+R559+R555+R551","v":4243690.0373856556},null,{"$f":"+T592+T588+T584+T580+T576+T572+T568+T563+T559+T555+T551","v":0},{"$f":"+U592+U588+U584+U580+U576+U572+U568+U563+U559+U555+U551","v":0},null,{"$f":"+W592+W588+W584+W580+W576+W572+W568+W563+W559+W555+W551","v":0},{"$f":"+X592+X588+X584+X580+X576+X572+X568+X563+X559+X555+X551","v":0},{"$f":"+Y592+Y588+Y584+Y580+Y576+Y572+Y568+Y563+Y559+Y555+Y551","v":0},{"$f":"+Z592+Z588+Z584+Z580+Z576+Z572+Z568+Z563+Z559+Z555+Z551","v":0},{"$f":"+AA592+AA588+AA584+AA580+AA576+AA572+AA568+AA563+AA559+AA555+AA551","v":0},0,null,{"$f":"ROUND(SUM(-H594,J594:N594),0)","v":0},{"$f":"ROUND(J594-Q594-R594,0)","v":0},{"$f":"ROUND(K594-T594-U594,0)","v":0},{"$f":"ROUND(L594-W594-X594-Y594-Z594-AA594,0)","v":0}]
[595]
[596]
[597]
[598]
[599]
[600,"FERC",null,"DESCRIPTION &","FERC",null,"RANGE",{"$f":"+$H$250","v":"Jurisdictional"},"FUNC","GEN","TRN","DIS","RETAIL","MISC",null,"D / E","GEN","GEN","D / E","TRN","TRN","DIS","DIS","DIS","DIS","DIS","DIS","DIS","Unbundled ACCT:","Function","Generation","Transmission","Distribution"]
[601,"ACCT",null,"CONSENSUS FACTOR","ACCT","FACTOR","NAME","ADJ Total","FACTOR","TOTAL","TOTAL","TOTAL","TOTAL","TOTAL",null,"SPLIT","DEMAND","ENERGY","SPLIT","DEMAND","ENERGY","SPLIT","SUBS","P & C","XFMR","METER","SERVICE","METER","TOTAL","Check","Check","Check","Check"]
[602]
[603,546,"Operation Super & Engineering"]
[604,null,null,"SG",546,"SG","ACCT546SG",{"$f":"'JAM Download'!E437","v":0},"P",{"$f":"VLOOKUP($I604,Func,2)*$H604","v":0},{"$f":"VLOOKUP($I604,Func,3)*$H604","v":0},{"$f":"VLOOKUP($I604,Func,5)*$H604","v":0},{"$f":"VLOOKUP($I604,Func,6)*$H604","v":0},{"$f":"VLOOKUP($I604,Func,7)*$H604","v":0},null,{"$f":"Demand","v":0.38},{"$f":"+$J604*$P604","v":0},{"$f":"+$J604*(1-$P604)","v":0},null,{"$f":"+$K604*$S604","v":0},{"$f":"+$K604*(1-$S604)","v":0},null,null,null,null,null,null,null,"UACCT546SG",{"$f":"ROUND(SUM(-H604,J604:N604),0)","v":0},{"$f":"ROUND(J604-Q604-R604,0)","v":0},{"$f":"ROUND(K604-T604-U604,0)","v":0},{"$f":"ROUND(L604-W604-X604-Y604-Z604-AA604,0)","v":0}]
[605,null,null,"CAGW",546,"CAGW","ACCT546CAGE",{"$f":"+'JAM Download'!E439+'JAM Download'!E440+'JAM Download'!E441","v":33980.406268012215},"P",{"$f":"VLOOKUP($I605,Func,2)*$H605","v":33980.406268012215},{"$f":"VLOOKUP($I605,Func,3)*$H605","v":0},{"$f":"VLOOKUP($I605,Func,5)*$H605","v":0},{"$f":"VLOOKUP($I605,Func,6)*$H605","v":0},{"$f":"VLOOKUP($I605,Func,7)*$H605","v":0},null,{"$f":"Demand","v":0.38},{"$f":"+$J605*$P605","v":12912.554381844642},{"$f":"+$J605*(1-$P605)","v":21067.851886167573},null,{"$f":"+$K605*$S605","v":0},{"$f":"+$K605*(1-$S605)","v":0},null,null,null,null,null,null,null,"UACCT546CAGE",{"$f":"ROUND(SUM(-H605,J605:N605),0)","v":0},{"$f":"ROUND(J605-Q605-R605,0)","v":0},{"$f":"ROUND(K605-T605-U605,0)","v":0},{"$f":"ROUND(L605-W605-X605-Y605-Z605-AA605,0)","v":0}]
[606,null,null,null,null,null,"ACCT546",{"$f":"'JAM Download'!E442","v":33980.406268012215},null,{"$f":"SUM(J604:J605)","v":33980.406268012215},{"$f":"SUM(K604:K605)","v":0},{"$f":"SUM(L604:L605)","v":0},{"$f":"SUM(M604:M605)","v":0},{"$f":"SUM(N604:N605)","v":0},null,null,{"$f":"SUM(Q604:Q605)","v":12912.554381844642},{"$f":"SUM(R604:R605)","v":21067.851886167573},null,{"$f":"SUM(T604:T605)","v":0},{"$f":"SUM(U604:U605)","v":0},null,{"$f":"SUM(W604:W605)","v":0},{"$f":"SUM(X604:X605)","v":0},{"$f":"SUM(Y604:Y605)","v":0},{"$f":"SUM(Z604:Z605)","v":0},{"$f":"SUM(AA604:AA605)","v":0},0,"UACCT546",{"$f":"ROUND(SUM(-H606,J606:N606),0)","v":0},{"$f":"ROUND(J606-Q606-R606,0)","v":0},{"$f":"ROUND(K606-T606-U606,0)","v":0},{"$f":"ROUND(L606-W606-X606-Y606-Z606-AA606,0)","v":0}]
[607,null,null,null,null,null," ",null,null,null,null,null,null,null,null,null,null,null,null,null,null,null,null,null,null,null,null,null," "]
[608,547,"Fuel"]
[609,null,null,"SE",547,"SE","ACCT547SE",{"$f":"'JAM Download'!E445","v":0},"P",{"$f":"VLOOKUP($I609,Func,2)*$H609","v":0},{"$f":"VLOOKUP($I609,Func,3)*$H609","v":0},{"$f":"VLOOKUP($I609,Func,5)*$H609","v":0},{"$f":"VLOOKUP($I609,Func,6)*$H609","v":0},{"$f":"VLOOKUP($I609,Func,7)*$H609","v":0},null,{"$f":"Demand","v":0.38},{"$f":"+$J609*$P609","v":0},{"$f":"+$J609*(1-$P609)","v":0},null,{"$f":"+$K609*$S609","v":0},{"$f":"+$K609*(1-$S609)","v":0},null,null,null,null,null,null,null,"UACCT547SE",{"$f":"ROUND(SUM(-H609,J609:N609),0)","v":0},{"$f":"ROUND(J609-Q609-R609,0)","v":0},{"$f":"ROUND(K609-T609-U609,0)","v":0},{"$f":"ROUND(L609-W609-X609-Y609-Z609-AA609,0)","v":0}]
[610,null,null,"CAEW/CAEE",547,"CAEW","ACCT547CAEW",{"$f":"'JAM Download'!E446+'JAM Download'!E447","v":0},"P",{"$f":"VLOOKUP($I610,Func,2)*$H610","v":0},{"$f":"VLOOKUP($I610,Func,3)*$H610","v":0},{"$f":"VLOOKUP($I610,Func,5)*$H610","v":0},{"$f":"VLOOKUP($I610,Func,6)*$H610","v":0},{"$f":"VLOOKUP($I610,Func,7)*$H610","v":0},null,{"$f":"Demand","v":0.38},{"$f":"+$J610*$P610","v":0},{"$f":"+$J610*(1-$P610)","v":0},null,{"$f":"+$K610*$S610","v":0},{"$f":"+$K610*(1-$S610)","v":0},null,null,null,null,null,null,null,"UACCT547CAEW",{"$f":"ROUND(SUM(-H610,J610:N610),0)","v":0},{"$f":"ROUND(J610-Q610-R610,0)","v":0},{"$f":"ROUND(K610-T610-U610,0)","v":0},{"$f":"ROUND(L610-W610-X610-Y610-Z610-AA610,0)","v":0}]
[611,null,null,null,null,null,"ACCT547",{"$f":"'JAM Download'!E449","v":0},null,{"$f":"SUM(J609:J610)","v":0},{"$f":"SUM(K609:K610)","v":0},{"$f":"SUM(L609:L610)","v":0},{"$f":"SUM(M609:M610)","v":0},{"$f":"SUM(N609:N610)","v":0},null,{"$f":"Demand","v":0.38},{"$f":"SUM(Q609:Q610)","v":0},{"$f":"SUM(R609:R610)","v":0},null,{"$f":"SUM(T609:T610)","v":0},{"$f":"SUM(U609:U610)","v":0},null,{"$f":"SUM(W609:W610)","v":0},{"$f":"SUM(X609:X610)","v":0},{"$f":"SUM(Y609:Y610)","v":0},{"$f":"SUM(Z609:Z610)","v":0},{"$f":"SUM(AA609:AA610)","v":0},0,"UACCT547",{"$f":"ROUND(SUM(-H611,J611:N611),0)","v":0},{"$f":"ROUND(J611-Q611-R611,0)","v":0},{"$f":"ROUND(K611-T611-U611,0)","v":0},{"$f":"ROUND(L611-W611-X611-Y611-Z611-AA611,0)","v":0}]
[612]
[613,"547NPC","Fuel-NPC","CAEW","547NPC","CAEW","ACCT547NPCCAEW",{"$f":"'JAM Download'!E453","v":22341081.551404446},"P",{"$f":"VLOOKUP($I613,Func,2)*$H613","v":22341081.551404446},{"$f":"VLOOKUP($I613,Func,3)*$H613","v":0},{"$f":"VLOOKUP($I613,Func,5)*$H613","v":0},{"$f":"VLOOKUP($I613,Func,6)*$H613","v":0},{"$f":"VLOOKUP($I613,Func,7)*$H613","v":0},null,{"$f":"Demand","v":0.38},{"$f":"+$J613*$P613","v":8489610.9895336889},{"$f":"+$J613*(1-$P613)","v":13851470.561870757},null,{"$f":"+$K613*$S613","v":0},{"$f":"+$K613*(1-$S613)","v":0},null,null,null,null,null,null,null,"UACCT547NPCCAEW",{"$f":"ROUND(SUM(-H613,J613:N613),0)","v":0},{"$f":"ROUND(J613-Q613-R613,0)","v":0},{"$f":"ROUND(K613-T613-U613,0)","v":0},{"$f":"ROUND(L613-W613-X613-Y613-Z613-AA613,0)","v":0}]
[614,null,null,null,null,null,"ACCT547NPC",{"$f":"'JAM Download'!E456","v":22341081.551404446},null,{"$f":"SUM(J612:J613)","v":22341081.551404446},{"$f":"SUM(K612:K613)","v":0},{"$f":"SUM(L612:L613)","v":0},{"$f":"SUM(M612:M613)","v":0},{"$f":"SUM(N612:N613)","v":0},null,{"$f":"Demand","v":0.38},{"$f":"SUM(Q612:Q613)","v":8489610.9895336889},{"$f":"SUM(R612:R613)","v":13851470.561870757},null,{"$f":"SUM(T612:T613)","v":0},{"$f":"SUM(U612:U613)","v":0},null,{"$f":"SUM(W612:W613)","v":0},{"$f":"SUM(X612:X613)","v":0},{"$f":"SUM(Y612:Y613)","v":0},{"$f":"SUM(Z612:Z613)","v":0},{"$f":"SUM(AA612:AA613)","v":0},0,"UACCT547NPC",{"$f":"ROUND(SUM(-H614,J614:N614),0)","v":0},{"$f":"ROUND(J614-Q614-R614,0)","v":0},{"$f":"ROUND(K614-T614-U614,0)","v":0},{"$f":"ROUND(L614-W614-X614-Y614-Z614-AA614,0)","v":0}]
[615]
[616]
[617,548,"Generation Expense"]
[618,null,null,"SG",548,"SG","ACCT548SG",{"$f":"'JAM Download'!E459","v":-1987.2203102534631},"P",{"$f":"VLOOKUP($I618,Func,2)*$H618","v":-1987.2203102534631},{"$f":"VLOOKUP($I618,Func,3)*$H618","v":0},{"$f":"VLOOKUP($I618,Func,5)*$H618","v":0},{"$f":"VLOOKUP($I618,Func,6)*$H618","v":0},{"$f":"VLOOKUP($I618,Func,7)*$H618","v":0},null,{"$f":"Demand","v":0.38},{"$f":"+$J618*$P618","v":-755.14371789631605},{"$f":"+$J618*(1-$P618)","v":-1232.0765923571471},null,{"$f":"+$K618*$S618","v":0},{"$f":"+$K618*(1-$S618)","v":0},null,null,null,null,null,null,null,"UACCT548SG",{"$f":"ROUND(SUM(-H618,J618:N618),0)","v":0},{"$f":"ROUND(J618-Q618-R618,0)","v":0},{"$f":"ROUND(K618-T618-U618,0)","v":0},{"$f":"ROUND(L618-W618-X618-Y618-Z618-AA618,0)","v":0}]
[619,null,null,"CAEW",548,"CAEW","ACCT548CAEW",0,"P",{"$f":"VLOOKUP($I619,Func,2)*$H619","v":0},{"$f":"VLOOKUP($I619,Func,3)*$H619","v":0},{"$f":"VLOOKUP($I619,Func,5)*$H619","v":0},{"$f":"VLOOKUP($I619,Func,6)*$H619","v":0},{"$f":"VLOOKUP($I619,Func,7)*$H619","v":0},null,{"$f":"Demand","v":0.38},{"$f":"+$J619*$P619","v":0},{"$f":"+$J619*(1-$P619)","v":0},null,{"$f":"+$K619*$S619","v":0},{"$f":"+$K619*(1-$S619)","v":0},null,null,null,null,null,null,null,"UACCT548CAEW",{"$f":"ROUND(SUM(-H619,J619:N619),0)","v":0},{"$f":"ROUND(J619-Q619-R619,0)","v":0},{"$f":"ROUND(K619-T619-U619,0)","v":0},{"$f":"ROUND(L619-W619-X619-Y619-Z619-AA619,0)","v":0}]
[620,null,null,"CAGW",548,"CAGW","ACCT548CAGW",{"$f":"'JAM Download'!E460","v":2473508.9668660378},"P",{"$f":"VLOOKUP($I620,Func,2)*$H620","v":2473508.9668660378},{"$f":"VLOOKUP($I620,Func,3)*$H620","v":0},{"$f":"VLOOKUP($I620,Func,5)*$H620","v":0},{"$f":"VLOOKUP($I620,Func,6)*$H620","v":0},{"$f":"VLOOKUP($I620,Func,7)*$H620","v":0},null,{"$f":"Demand","v":0.38},{"$f":"+$J620*$P620","v":939933.40740909439},{"$f":"+$J620*(1-$P620)","v":1533575.5594569435},null,{"$f":"+$K620*$S620","v":0},{"$f":"+$K620*(1-$S620)","v":0},null,null,null,null,null,null,null,"UACCT548CAGE",{"$f":"ROUND(SUM(-H620,J620:N620),0)","v":0},{"$f":"ROUND(J620-Q620-R620,0)","v":0},{"$f":"ROUND(K620-T620-U620,0)","v":0},{"$f":"ROUND(L620-W620-X620-Y620-Z620-AA620,0)","v":0}]
[621,null,null,null,null,null,"ACCT548",{"$f":"'JAM Download'!E463","v":2471521.7465557843},null,{"$f":"SUM(J618:J620)","v":2471521.7465557843},{"$f":"SUM(K618:K620)","v":0},{"$f":"SUM(L618:L620)","v":0},{"$f":"SUM(M618:M620)","v":0},{"$f":"SUM(N618:N620)","v":0},null,null,{"$f":"SUM(Q618:Q620)","v":939178.26369119808},{"$f":"SUM(R618:R620)","v":1532343.4828645864},null,{"$f":"SUM(T618:T620)","v":0},{"$f":"SUM(U618:U620)","v":0},null,{"$f":"SUM(W618:W620)","v":0},{"$f":"SUM(X618:X620)","v":0},{"$f":"SUM(Y618:Y620)","v":0},{"$f":"SUM(Z618:Z620)","v":0},{"$f":"SUM(AA618:AA620)","v":0},0,"UACCT548",{"$f":"ROUND(SUM(-H621,J621:N621),0)","v":0},{"$f":"ROUND(J621-Q621-R621,0)","v":0},{"$f":"ROUND(K621-T621-U621,0)","v":0},{"$f":"ROUND(L621-W621-X621-Y621-Z621-AA621,0)","v":0}]
[622]
[623,549,"Miscellaneous Other"]
[624,null,null,"SG",549,"SG","ACCT549SG",{"$f":"'JAM Download'!E466","v":137533.22300106779},"P",{"$f":"VLOOKUP($I624,Func,2)*$H624","v":137533.22300106779},{"$f":"VLOOKUP($I624,Func,3)*$H624","v":0},{"$f":"VLOOKUP($I624,Func,5)*$H624","v":0},{"$f":"VLOOKUP($I624,Func,6)*$H624","v":0},{"$f":"VLOOKUP($I624,Func,7)*$H624","v":0},null,{"$f":"Demand","v":0.38},{"$f":"+$J624*$P624","v":52262.624740405758},{"$f":"+$J624*(1-$P624)","v":85270.598260662024},null,{"$f":"+$K624*$S624","v":0},{"$f":"+$K624*(1-$S624)","v":0},null,null,null,null,null,null,null,"UACCT549SG",{"$f":"ROUND(SUM(-H624,J624:N624),0)","v":0},{"$f":"ROUND(J624-Q624-R624,0)","v":0},{"$f":"ROUND(K624-T624-U624,0)","v":0},{"$f":"ROUND(L624-W624-X624-Y624-Z624-AA624,0)","v":0}]
[625,null,null,"CAGE/CAGW",549,"CAGW","ACCT549CAGE",{"$f":"'JAM Download'!E467","v":1416409.9515347558},"P",{"$f":"VLOOKUP($I625,Func,2)*$H625","v":1416409.9515347558},{"$f":"VLOOKUP($I625,Func,3)*$H625","v":0},{"$f":"VLOOKUP($I625,Func,5)*$H625","v":0},{"$f":"VLOOKUP($I625,Func,6)*$H625","v":0},{"$f":"VLOOKUP($I625,Func,7)*$H625","v":0},null,{"$f":"Demand","v":0.38},{"$f":"+$J625*$P625","v":538235.78158320719},{"$f":"+$J625*(1-$P625)","v":878174.16995154857},null,{"$f":"+$K625*$S625","v":0},{"$f":"+$K625*(1-$S625)","v":0},null,null,null,null,null,null,null,"UACCT549CAGE",{"$f":"ROUND(SUM(-H625,J625:N625),0)","v":0},{"$f":"ROUND(J625-Q625-R625,0)","v":0},{"$f":"ROUND(K625-T625-U625,0)","v":0},{"$f":"ROUND(L625-W625-X625-Y625-Z625-AA625,0)","v":0}]
[626,null,null,null,null,null,"ACCT549",{"$f":"'JAM Download'!E470","v":1553943.1745358235},null,{"$f":"SUM(J624,J625)","v":1553943.1745358235},{"$f":"SUM(K624,K625)","v":0},{"$f":"SUM(L624,L625)","v":0},{"$f":"SUM(M624,M625)","v":0},{"$f":"SUM(N624,N625)","v":0},null,null,{"$f":"SUM(Q624:Q625)","v":590498.4063236129},{"$f":"SUM(R624:R625)","v":963444.76821221062},null,{"$f":"SUM(T624:T625)","v":0},{"$f":"SUM(U624:U625)","v":0},null,{"$f":"SUM(W624:W625)","v":0},{"$f":"SUM(X624:X625)","v":0},{"$f":"SUM(Y624:Y625)","v":0},{"$f":"SUM(Z624:Z625)","v":0},{"$f":"SUM(AA624:AA625)","v":0},0,"UACCT549",{"$f":"SUM(AD624:AD625)","v":0},{"$f":"SUM(AE624:AE625)","v":0},{"$f":"SUM(AF624:AF625)","v":0},{"$f":"SUM(AG624:AG625)","v":0}]
[627]
[628]
[629]
[630]
[631,"FERC",null,"DESCRIPTION &","FERC",null,"RANGE",{"$f":"+$H$250","v":"Jurisdictional"},"FUNC","GEN","TRN","DIS","RETAIL","MISC",null,"D / E","GEN","GEN","D / E","TRN","TRN","DIS","DIS","DIS","DIS","DIS","DIS","DIS","Unbundled ACCT:","Function","Generation","Transmission","Distribution"]
[632,"ACCT",null,"CONSENSUS FACTOR","ACCT","FACTOR","NAME","ADJ Total","FACTOR","TOTAL","TOTAL","TOTAL","TOTAL","TOTAL",null,"SPLIT","DEMAND","ENERGY","SPLIT","DEMAND","ENERGY","SPLIT","SUBS","P & C","XFMR","METER","SERVICE","METER","TOTAL","Check","Check","Check","Check"]
[633,550,"Maint Supervision & Engineering"]
[634,null,null,"CAGW","550/551","CAGW","ACCT550CAGW",{"$f":"'JAM Download'!E477+'JAM Download'!E478+'JAM Download'!E484+'JAM Download'!E485","v":435600.51958666736},"P",{"$f":"VLOOKUP($I634,Func,2)*$H634","v":435600.51958666736},{"$f":"VLOOKUP($I634,Func,3)*$H634","v":0},{"$f":"VLOOKUP($I634,Func,5)*$H634","v":0},{"$f":"VLOOKUP($I634,Func,6)*$H634","v":0},{"$f":"VLOOKUP($I634,Func,7)*$H634","v":0},null,{"$f":"Demand","v":0.38},{"$f":"+$J634*$P634","v":165528.1974429336},{"$f":"+$J634*(1-$P634)","v":270072.32214373373},null,{"$f":"+$K634*$S634","v":0},{"$f":"+$K634*(1-$S634)","v":0},null,null,null,null,null,null,null,"UACCT550CAGE",{"$f":"ROUND(SUM(-H634,J634:N634),0)","v":0},{"$f":"ROUND(J634-Q634-R634,0)","v":0},{"$f":"ROUND(K634-T634-U634,0)","v":0},{"$f":"ROUND(L634-W634-X634-Y634-Z634-AA634,0)","v":0}]
[635,null,null,"SG","550/551","SG","ACCT550SG",{"$f":"'JAM Download'!E476+'JAM Download'!E483","v":363.54944032853217},"P",{"$f":"VLOOKUP($I635,Func,2)*$H635","v":363.54944032853217},{"$f":"VLOOKUP($I635,Func,3)*$H635","v":0},{"$f":"VLOOKUP($I635,Func,5)*$H635","v":0},{"$f":"VLOOKUP($I635,Func,6)*$H635","v":0},{"$f":"VLOOKUP($I635,Func,7)*$H635","v":0},null,{"$f":"Demand","v":0.38},{"$f":"+$J635*$P635","v":138.14878732484223},{"$f":"+$J635*(1-$P635)","v":225.40065300368994},null,{"$f":"+$K635*$S635","v":0},{"$f":"+$K635*(1-$S635)","v":0},null,null,null,null,null,null,null,"UACCT550SG",{"$f":"ROUND(SUM(-H635,J635:N635),0)","v":0},{"$f":"ROUND(J635-Q635-R635,0)","v":0},{"$f":"ROUND(K635-T635-U635,0)","v":0},{"$f":"ROUND(L635-W635-X635-Y635-Z635-AA635,0)","v":0}]
[636,null,null,null,null,null,"ACCT550",{"$f":"'JAM Download'!E480+'JAM Download'!E486","v":435964.06902699592},null,{"$f":"SUM(J634:J635)","v":435964.06902699592},{"$f":"SUM(K634:K635)","v":0},{"$f":"SUM(L634:L635)","v":0},{"$f":"SUM(M634:M635)","v":0},{"$f":"SUM(N634:N635)","v":0},null,null,{"$f":"SUM(Q634:Q635)","v":165666.34623025844},{"$f":"SUM(R634:R635)","v":270297.72279673745},null,{"$f":"SUM(T634:T635)","v":0},{"$f":"SUM(U634:U635)","v":0},null,{"$f":"SUM(W634:W635)","v":0},{"$f":"SUM(X634:X635)","v":0},{"$f":"SUM(Y634:Y635)","v":0},{"$f":"SUM(Z634:Z635)","v":0},{"$f":"SUM(AA634:AA635)","v":0},0,"UACCT550",{"$f":"ROUND(SUM(-H636,J636:N636),0)","v":0},{"$f":"ROUND(J636-Q636-R636,0)","v":0},{"$f":"ROUND(K636-T636-U636,0)","v":0},{"$f":"ROUND(L636-W636-X636-Y636-Z636-AA636,0)","v":0}]
[{"$f":"A636+1","v":637}]
[638,552,"Maintenance of Structures"]
[639,null,null,"SG",552,"SG","ACCT552SG",{"$f":"'JAM Download'!E489","v":0},"P",{"$f":"VLOOKUP($I639,Func,2)*$H639","v":0},{"$f":"VLOOKUP($I639,Func,3)*$H639","v":0},{"$f":"VLOOKUP($I639,Func,5)*$H639","v":0},{"$f":"VLOOKUP($I639,Func,6)*$H639","v":0},{"$f":"VLOOKUP($I639,Func,7)*$H639","v":0},null,{"$f":"Demand","v":0.38},{"$f":"+$J639*$P639","v":0},{"$f":"+$J639*(1-$P639)","v":0},null,{"$f":"+$K639*$S639","v":0},{"$f":"+$K639*(1-$S639)","v":0},null,null,null,null,null,null,null,"UACCT552SG",{"$f":"ROUND(SUM(-H639,J639:N639),0)","v":0},{"$f":"ROUND(J639-Q639-R639,0)","v":0},{"$f":"ROUND(K639-T639-U639,0)","v":0},{"$f":"ROUND(L639-W639-X639-Y639-Z639-AA639,0)","v":0}]
[640,null,null,"CAGW",552,"CAGW","ACCT552CAGW",{"$f":"'JAM Download'!E490+'JAM Download'!E491+'JAM Download'!E492","v":703.86259142440781},"P",{"$f":"VLOOKUP($I640,Func,2)*$H640","v":703.86259142440781},{"$f":"VLOOKUP($I640,Func,3)*$H640","v":0},{"$f":"VLOOKUP($I640,Func,5)*$H640","v":0},{"$f":"VLOOKUP($I640,Func,6)*$H640","v":0},{"$f":"VLOOKUP($I640,Func,7)*$H640","v":0},null,{"$f":"Demand","v":0.38},{"$f":"+$J640*$P640","v":267.46778474127495},{"$f":"+$J640*(1-$P640)","v":436.39480668313286},null,{"$f":"+$K640*$S640","v":0},{"$f":"+$K640*(1-$S640)","v":0},null,null,null,null,null,null,null,"UACCT552CAGE",{"$f":"ROUND(SUM(-H640,J640:N640),0)","v":0},{"$f":"ROUND(J640-Q640-R640,0)","v":0},{"$f":"ROUND(K640-T640-U640,0)","v":0},{"$f":"ROUND(L640-W640-X640-Y640-Z640-AA640,0)","v":0}]
[641,null,null,null,null,null,"ACCT552",{"$f":"'JAM Download'!E493","v":703.86259142440781},null,{"$f":"SUM(J639:J640)","v":703.86259142440781},{"$f":"SUM(K639:K640)","v":0},{"$f":"SUM(L639:L640)","v":0},{"$f":"SUM(M639:M640)","v":0},{"$f":"SUM(N639:N640)","v":0},null,null,{"$f":"SUM(Q639:Q640)","v":267.46778474127495},{"$f":"SUM(R639:R640)","v":436.39480668313286},null,{"$f":"SUM(T639:T640)","v":0},{"$f":"SUM(U639:U640)","v":0},null,{"$f":"SUM(W639:W640)","v":0},{"$f":"SUM(X639:X640)","v":0},{"$f":"SUM(Y639:Y640)","v":0},{"$f":"SUM(Z639:Z640)","v":0},{"$f":"SUM(AA639:AA640)","v":0},0,"UACCT552",{"$f":"ROUND(SUM(-H641,J641:N641),0)","v":0},{"$f":"ROUND(J641-Q641-R641,0)","v":0},{"$f":"ROUND(K641-T641-U641,0)","v":0},{"$f":"ROUND(L641-W641-X641-Y641-Z641-AA641,0)","v":0}]
[642]
[643]
[644,553,"Maint of Generation & Electric Plant"]
[645,null,null,"SG",553,"SG","ACCT553SG",{"$f":"'JAM Download'!E496","v":0},"P",{"$f":"VLOOKUP($I645,Func,2)*$H645","v":0},{"$f":"VLOOKUP($I645,Func,3)*$H645","v":0},{"$f":"VLOOKUP($I645,Func,5)*$H645","v":0},{"$f":"VLOOKUP($I645,Func,6)*$H645","v":0},{"$f":"VLOOKUP($I645,Func,7)*$H645","v":0},null,{"$f":"Demand","v":0.38},{"$f":"+$J645*$P645","v":0},{"$f":"+$J645*(1-$P645)","v":0},null,{"$f":"+$K645*$S645","v":0},{"$f":"+$K645*(1-$S645)","v":0},null,null,null,null,null,null,null,"UACCT553SG",{"$f":"ROUND(SUM(-H645,J645:N645),0)","v":0},{"$f":"ROUND(J645-Q645-R645,0)","v":0},{"$f":"ROUND(K645-T645-U645,0)","v":0},{"$f":"ROUND(L645-W645-X645-Y645-Z645-AA645,0)","v":0}]
[646,null,null,"CAGW",553,"CAGW","ACCT553CAGW",{"$f":"'JAM Download'!E497+'JAM Download'!E498+'JAM Download'!E499","v":1293734.1639492284},"P",{"$f":"VLOOKUP($I646,Func,2)*$H646","v":1293734.1639492284},{"$f":"VLOOKUP($I646,Func,3)*$H646","v":0},{"$f":"VLOOKUP($I646,Func,5)*$H646","v":0},{"$f":"VLOOKUP($I646,Func,6)*$H646","v":0},{"$f":"VLOOKUP($I646,Func,7)*$H646","v":0},null,{"$f":"Demand","v":0.38},{"$f":"+$J646*$P646","v":491618.98230070679},{"$f":"+$J646*(1-$P646)","v":802115.18164852157},null,{"$f":"+$K646*$S646","v":0},{"$f":"+$K646*(1-$S646)","v":0},null,null,null,null,null,null,null,"UACCT553CAGE",{"$f":"ROUND(SUM(-H646,J646:N646),0)","v":0},{"$f":"ROUND(J646-Q646-R646,0)","v":0},{"$f":"ROUND(K646-T646-U646,0)","v":0},{"$f":"ROUND(L646-W646-X646-Y646-Z646-AA646,0)","v":0}]
[647,null,null,null,null,null,"ACCT553",{"$f":"'JAM Download'!E500","v":1293734.1639492284},null,{"$f":"SUM(J645:J646)","v":1293734.1639492284},{"$f":"SUM(K645:K646)","v":0},{"$f":"SUM(L645:L646)","v":0},{"$f":"SUM(M645:M646)","v":0},{"$f":"SUM(N645:N646)","v":0},null,null,{"$f":"SUM(Q645:Q646)","v":491618.98230070679},{"$f":"SUM(R645:R646)","v":802115.18164852157},null,{"$f":"SUM(T645:T646)","v":0},{"$f":"SUM(U645:U646)","v":0},null,{"$f":"SUM(W645:W646)","v":0},{"$f":"SUM(X645:X646)","v":0},{"$f":"SUM(Y645:Y646)","v":0},{"$f":"SUM(Z645:Z646)","v":0},{"$f":"SUM(AA645:AA646)","v":0},0,"UACCT553",{"$f":"ROUND(SUM(-H647,J647:N647),0)","v":0},{"$f":"ROUND(J647-Q647-R647,0)","v":0},{"$f":"ROUND(K647-T647-U647,0)","v":0},{"$f":"ROUND(L647-W647-X647-Y647-Z647-AA647,0)","v":0}]
[648]
[649,554,"Maintenance of Misc. Other"]
[650,null,null,"SG",554,"SG","ACCT554SG",{"$f":"'JAM Download'!E503","v":0},"P",{"$f":"VLOOKUP($I650,Func,2)*$H650","v":0},{"$f":"VLOOKUP($I650,Func,3)*$H650","v":0},{"$f":"VLOOKUP($I650,Func,5)*$H650","v":0},{"$f":"VLOOKUP($I650,Func,6)*$H650","v":0},{"$f":"VLOOKUP($I650,Func,7)*$H650","v":0},null,{"$f":"Demand","v":0.38},{"$f":"+$J650*$P650","v":0},{"$f":"+$J650*(1-$P650)","v":0},null,{"$f":"+$K650*$S650","v":0},{"$f":"+$K650*(1-$S650)","v":0},null,null,null,null,null,null,null,"UACCT554SG",{"$f":"ROUND(SUM(-H650,J650:N650),0)","v":0},{"$f":"ROUND(J650-Q650-R650,0)","v":0},{"$f":"ROUND(K650-T650-U650,0)","v":0},{"$f":"ROUND(L650-W650-X650-Y650-Z650-AA650,0)","v":0}]
[651,null,null,"CAGW",554,"CAGW","ACCT554CAGW",{"$f":"'JAM Download'!E504+'JAM Download'!E505+'JAM Download'!E506","v":286438.15081312502},"P",{"$f":"VLOOKUP($I651,Func,2)*$H651","v":286438.15081312502},{"$f":"VLOOKUP($I651,Func,3)*$H651","v":0},{"$f":"VLOOKUP($I651,Func,5)*$H651","v":0},{"$f":"VLOOKUP($I651,Func,6)*$H651","v":0},{"$f":"VLOOKUP($I651,Func,7)*$H651","v":0},null,{"$f":"Demand","v":0.38},{"$f":"+$J651*$P651","v":108846.49730898751},{"$f":"+$J651*(1-$P651)","v":177591.6535041375},null,{"$f":"+$K651*$S651","v":0},{"$f":"+$K651*(1-$S651)","v":0},null,null,null,null,null,null,null,"UACCT554CAGE",{"$f":"ROUND(SUM(-H651,J651:N651),0)","v":0},{"$f":"ROUND(J651-Q651-R651,0)","v":0},{"$f":"ROUND(K651-T651-U651,0)","v":0},{"$f":"ROUND(L651-W651-X651-Y651-Z651-AA651,0)","v":0}]
[652,null,null,null,null,null,"ACCT554",{"$f":"'JAM Download'!E507","v":286438.15081312502},null,{"$f":"SUM(J650:J651)","v":286438.15081312502},{"$f":"SUM(K650:K651)","v":0},{"$f":"SUM(L650:L651)","v":0},{"$f":"SUM(M650:M651)","v":0},{"$f":"SUM(N650:N651)","v":0},null,null,{"$f":"SUM(Q650:Q651)","v":108846.49730898751},{"$f":"SUM(R650:R651)","v":177591.6535041375},null,{"$f":"SUM(T650:T651)","v":0},{"$f":"SUM(U650:U651)","v":0},null,{"$f":"SUM(W650:W651)","v":0},{"$f":"SUM(X650:X651)","v":0},{"$f":"SUM(Y650:Y651)","v":0},{"$f":"SUM(Z650:Z651)","v":0},{"$f":"SUM(AA650:AA651)","v":0},0,"UACCT554",{"$f":"ROUND(SUM(-H652,J652:N652),0)","v":0},{"$f":"ROUND(J652-Q652-R652,0)","v":0},{"$f":"ROUND(K652-T652-U652,0)","v":0},{"$f":"ROUND(L652-W652-X652-Y652-Z652-AA652,0)","v":0}]
[653]
[654,"Total Other Power Generation",null,null,null,null,null,{"$f":"'JAM Download'!E509","v":28417367.125144839},null,{"$f":"+J652+J647+J641+J636+J626+J621+J614+J606","v":28417367.125144839},{"$f":"+K652+K647+K641+K636+K626+K621+K614+K606","v":0},{"$f":"+L652+L647+L641+L636+L626+L621+L614+L606","v":0},{"$f":"+M652+M647+M641+M636+M626+M621+M614+M606","v":0},{"$f":"+N652+N647+N641+N636+N626+N621+N614+N606","v":0},null,{"$f":"Demand","v":0.38},{"$f":"+Q652+Q647+Q641+Q636+Q626+Q621+Q614+Q606","v":10798599.50755504},{"$f":"+R652+R647+R641+R636+R626+R621+R614+R606","v":17618767.617589802},null,{"$f":"+T652+T647+T641+T636+T626+T621+T614+T606","v":0},{"$f":"+U652+U647+U641+U636+U626+U621+U614+U606","v":0},null,{"$f":"+W652+W647+W641+W636+W626+W621+W614+W606","v":0},0,0,0,0,0,null,{"$f":"ROUND(SUM(-H654,J654:N654),0)","v":0},{"$f":"ROUND(J654-Q654-R654,0)","v":0},{"$f":"ROUND(K654-T654-U654,0)","v":0},{"$f":"ROUND(L654-W654-X654-Y654-Z654-AA654,0)","v":0}]
[655]
[656]
[657]
[658]
[659,null,null,null,null,null,null,null,null,null,null,null,null,null,null,null,null,null,null,null,null,"DIS"]
[660,"FERC",null,"DESCRIPTION &","FERC",null,"RANGE",{"$f":"+$H$250","v":"Jurisdictional"},"FUNC","GEN","TRN","DIS","RETAIL","MISC",null,"D / E","GEN","GEN","D / E","TRN","TRN","SPLIT","DIS","DIS","DIS","DIS","DIS","DIS","Unbundled ACCT:","Function","Generation","Transmission","Distribution"]
[661,"ACCT",null,"CONSENSUS FACTOR","ACCT","FACTOR","NAME","ADJ Total","FACTOR","TOTAL","TOTAL","TOTAL","TOTAL","TOTAL",null,"SPLIT","DEMAND","ENERGY","SPLIT","DEMAND","ENERGY",null,"SUBS","P & C","XFMR","METER","SERVICE","METER","TOTAL","Check","Check","Check","Check"]
[662,555,"Purchased Power"]
[663,null,null,"S",555,"S","ACCT555S",{"$f":"'JAM Download'!E513","v":0},"P",{"$f":"VLOOKUP($I663,Func,2)*$H663","v":0},{"$f":"VLOOKUP($I663,Func,3)*$H663","v":0},{"$f":"VLOOKUP($I663,Func,5)*$H663","v":0},{"$f":"VLOOKUP($I663,Func,6)*$H663","v":0},{"$f":"VLOOKUP($I663,Func,7)*$H663","v":0},null,{"$f":"Demand","v":0.38},{"$f":"+$J663*$P663","v":0},{"$f":"+$J663*(1-$P663)","v":0},null,{"$f":"+$K663*$S663","v":0},{"$f":"+$K663*(1-$S663)","v":0},null,null,null,null,null,null,null,"UACCT555S",{"$f":"ROUND(SUM(-H663,J663:N663),0)","v":0},{"$f":"ROUND(J663-Q663-R663,0)","v":0},{"$f":"ROUND(K663-T663-U663,0)","v":0},{"$f":"ROUND(L663-W663-X663-Y663-Z663-AA663,0)","v":0}]
[664,null,null,"SG",555,"SG","ACCT555SG",{"$f":"'JAM Download'!E514","v":0},"P",{"$f":"VLOOKUP($I664,Func,2)*$H664","v":0},{"$f":"VLOOKUP($I664,Func,3)*$H664","v":0},{"$f":"VLOOKUP($I664,Func,5)*$H664","v":0},{"$f":"VLOOKUP($I664,Func,6)*$H664","v":0},{"$f":"VLOOKUP($I664,Func,7)*$H664","v":0},null,0.38,0,0,null,0,0,null,null,null,null,null,null,null,"UACCT555SG",{"$f":"ROUND(SUM(-H664,J664:N664),0)","v":0},{"$f":"ROUND(J664-Q664-R664,0)","v":0},{"$f":"ROUND(K664-T664-U664,0)","v":0},{"$f":"ROUND(L664-W664-X664-Y664-Z664-AA664,0)","v":0}]
[665,null,null,"SE",555,"SE","ACCT555SE",{"$f":"'JAM Download'!E515","v":0},"P",{"$f":"VLOOKUP($I665,Func,2)*$H665","v":0},{"$f":"VLOOKUP($I665,Func,3)*$H665","v":0},{"$f":"VLOOKUP($I665,Func,5)*$H665","v":0},{"$f":"VLOOKUP($I665,Func,6)*$H665","v":0},{"$f":"VLOOKUP($I665,Func,7)*$H665","v":0},null,0.38,0,0,null,0,0,null,null,null,null,null,null,null,"UACCT555SE",{"$f":"ROUND(SUM(-H665,J665:N665),0)","v":0},{"$f":"ROUND(J665-Q665-R665,0)","v":0},{"$f":"ROUND(K665-T665-U665,0)","v":0},{"$f":"ROUND(L665-W665-X665-Y665-Z665-AA665,0)","v":0}]
[666]
[667,"555NPC","Purchased Power-NPC"]
[668,null,null,"CAGW","555NPC","CAGW","ACCT555NPCCAGW",{"$f":"'JAM Download'!E521+'JAM Download'!E526","v":52857876.823488072},"P",{"$f":"VLOOKUP($I668,Func,2)*$H668","v":52857876.823488072},{"$f":"VLOOKUP($I668,Func,3)*$H668","v":0},{"$f":"VLOOKUP($I668,Func,5)*$H668","v":0},{"$f":"VLOOKUP($I668,Func,6)*$H668","v":0},{"$f":"VLOOKUP($I668,Func,7)*$H668","v":0},null,0.38,20085993.192925468,32771883.630562603,null,0,0,null,null,null,null,null,null,null,"UACCT555NPCCAGW",{"$f":"ROUND(SUM(-H668,J668:N668),0)","v":0},{"$f":"ROUND(J668-Q668-R668,0)","v":0},{"$f":"ROUND(K668-T668-U668,0)","v":0},{"$f":"ROUND(L668-W668-X668-Y668-Z668-AA668,0)","v":0}]
[669,null,null,"CAEW","555NPC","CAEW","ACCT555NPCCAEW",{"$f":"'JAM Download'!$E523","v":2853158.8619296518},"P",{"$f":"VLOOKUP($I669,Func,2)*$H669","v":2853158.8619296518},{"$f":"VLOOKUP($I669,Func,3)*$H669","v":0},{"$f":"VLOOKUP($I669,Func,5)*$H669","v":0},{"$f":"VLOOKUP($I669,Func,6)*$H669","v":0},{"$f":"VLOOKUP($I669,Func,7)*$H669","v":0},null,0.38,1084200.3675332677,1768958.4943963841,null,0,0,null,null,null,null,null,null,null,"UACCT555NPCCAEW",{"$f":"ROUND(SUM(-H669,J669:N669),0)","v":0},{"$f":"ROUND(J669-Q669-R669,0)","v":0},{"$f":"ROUND(K669-T669-U669,0)","v":0},{"$f":"ROUND(L669-W669-X669-Y669-Z669-AA669,0)","v":0}]
[670,null,null,"DGP","555NPC","DGP","ACCT555NPCDGP",{"$f":"'JAM Download'!$E486","v":0},"P",{"$f":"VLOOKUP($I670,Func,2)*$H670","v":0},{"$f":"VLOOKUP($I670,Func,3)*$H670","v":0},{"$f":"VLOOKUP($I670,Func,5)*$H670","v":0},{"$f":"VLOOKUP($I670,Func,6)*$H670","v":0},{"$f":"VLOOKUP($I670,Func,7)*$H670","v":0},null,0.38,0,0,null,0,0,null,null,null,null,null,null,null,"UACCT555NPCDGP",{"$f":"ROUND(SUM(-H670,J670:N670),0)","v":0},{"$f":"ROUND(J670-Q670-R670,0)","v":0},{"$f":"ROUND(K670-T670-U670,0)","v":0},{"$f":"ROUND(L670-W670-X670-Y670-Z670-AA670,0)","v":0}]
[671,null,null,null,null,null,"ACCT555NPC",{"$f":"'JAM Download'!E527","v":55711035.685417727},null,{"$f":"SUM(J663:J670)","v":55711035.685417727},{"$f":"SUM(K663:K670)","v":0},{"$f":"SUM(L663:L670)","v":0},{"$f":"SUM(M663:M670)","v":0},{"$f":"SUM(N663:N670)","v":0},null,null,{"$f":"SUM(Q663:Q670)","v":21170193.560458735},{"$f":"SUM(R663:R670)","v":34540842.124958985},null,{"$f":"SUM(T663:T670)","v":0},{"$f":"SUM(U663:U670)","v":0},null,{"$f":"SUM(W663:W668)","v":0},{"$f":"SUM(X663:X668)","v":0},{"$f":"SUM(Y663:Y668)","v":0},{"$f":"SUM(Z663:Z668)","v":0},{"$f":"SUM(AA663:AA668)","v":0},0,"UACCT555NPC",{"$f":"ROUND(SUM(-H671,J671:N671),0)","v":0},{"$f":"ROUND(J671-Q671-R671,0)","v":0},{"$f":"ROUND(K671-T671-U671,0)","v":0},{"$f":"ROUND(L671-W671-X671-Y671-Z671-AA671,0)","v":0}]
[672]
[673,556,"System Control & Load Dispatch"]
[674,null,null,"SG",556,"SG","ACCT556SG",{"$f":"'JAM Download'!E532","v":142079.36095449454},"P",{"$f":"VLOOKUP($I674,Func,2)*$H674","v":142079.36095449454},{"$f":"VLOOKUP($I674,Func,3)*$H674","v":0},{"$f":"VLOOKUP($I674,Func,5)*$H674","v":0},{"$f":"VLOOKUP($I674,Func,6)*$H674","v":0},{"$f":"VLOOKUP($I674,Func,7)*$H674","v":0},null,{"$f":"Demand","v":0.38},{"$f":"+$J674*$P674","v":53990.157162707925},{"$f":"+$J674*(1-$P674)","v":88089.203791786611},null,{"$f":"+$K674*$S674","v":0},{"$f":"+$K674*(1-$S674)","v":0},null,null,null,null,null,null,null,"UACCT556SG",{"$f":"ROUND(SUM(-H674,J674:N674),0)","v":0},{"$f":"ROUND(J674-Q674-R674,0)","v":0},{"$f":"ROUND(K674-T674-U674,0)","v":0},{"$f":"ROUND(L674-W674-X674-Y674-Z674-AA674,0)","v":0}]
[675]
[676,null,null,null,null,null,"ACCT556",{"$f":"'JAM Download'!E536","v":142079.36095449454},null,{"$f":"SUM(J674)","v":142079.36095449454},{"$f":"SUM(K674:K675)","v":0},{"$f":"SUM(L674:L675)","v":0},{"$f":"SUM(M674:M675)","v":0},{"$f":"SUM(N674:N675)","v":0},null,null,{"$f":"SUM(Q674:Q675)","v":53990.157162707925},{"$f":"SUM(R674:R675)","v":88089.203791786611},null,{"$f":"SUM(T674:T675)","v":0},{"$f":"SUM(U674:U675)","v":0},null,{"$f":"SUM(W674:W675)","v":0},{"$f":"SUM(X674:X675)","v":0},{"$f":"SUM(Y674:Y675)","v":0},{"$f":"SUM(Z674:Z675)","v":0},{"$f":"SUM(AA674:AA675)","v":0},0,"UACCT556",{"$f":"ROUND(SUM(-H676,J676:N676),0)","v":0},{"$f":"ROUND(J676-Q676-R676,0)","v":0},{"$f":"ROUND(K676-T676-U676,0)","v":0},{"$f":"ROUND(L676-W676-X676-Y676-Z676-AA676,0)","v":0}]
[677]
[678,557,"Other Expenses"]
[679,null,null,"S",557,"S","ACCT557S",{"$f":"'JAM Download'!E541","v":-73824.789999999994},"P",{"$f":"VLOOKUP($I679,Func,2)*$H679","v":-73824.789999999994},{"$f":"VLOOKUP($I679,Func,3)*$H679","v":0},{"$f":"VLOOKUP($I679,Func,5)*$H679","v":0},{"$f":"VLOOKUP($I679,Func,6)*$H679","v":0},{"$f":"VLOOKUP($I679,Func,7)*$H679","v":0},null,{"$f":"Demand","v":0.38},{"$f":"+$J679*$P679","v":-28053.420199999997},{"$f":"+$J679*(1-$P679)","v":-45771.369799999993},null,{"$f":"+$K679*$S679","v":0},{"$f":"+$K679*(1-$S679)","v":0},null,null,null,null,null,null,null,"UACCT557S",{"$f":"ROUND(SUM(-H679,J679:N679),0)","v":0},{"$f":"ROUND(J679-Q679-R679,0)","v":0},{"$f":"ROUND(K679-T679-U679,0)","v":0},{"$f":"ROUND(L679-W679-X679-Y679-Z679-AA679,0)","v":0}]
[680,null,null,"SG",557,"SG","ACCT557SG",{"$f":"'JAM Download'!E542","v":3000442.7241494269},"P",3000442.7241494269,0,0,0,0,null,0.38,1140168.2351767821,1860274.4889726448,null,0,0,null,null,null,null,null,null,null,"UACCT557SG",0,0,0,0]
[681,null,null,"JBG",557,"JBG","ACCT557JBG",{"$f":"'JAM Download'!E549","v":453048.07815530774},"P",453048.07815530774,0,0,0,0,null,0.38,172158.26969901694,280889.8084562908,null,0,0,null,null,null,null,null,null,null,"UACCT557JBG",0,0,0,0]
[682,null,null,"SE/CAEW/CAEE",557,"SE","ACCT557SE",{"$f":"'JAM Download'!E544","v":0},"P",0,0,0,0,0,null,0.38,0,0,null,0,0,null,null,null,null,null,null,null,"UACCT557SE",0,0,0,0]
[683,null,null,"CAGW",557,"CAGW","ACCT557CAGW",{"$f":"'JAM Download'!E547+'JAM Download'!E548","v":727723.91183378792},"P",727723.91183378792,0,0,0,0,null,0.38,276535.08649683942,451188.8253369485,null,0,0,null,null,null,null,null,null,null,"UACCT557CAGE",0,0,0,0]
[684,null,null,"CAEE",557,"CAEE","ACCT557CAEE",{"$f":"+'JAM Download'!E551","v":-24967.909211894381},"P",-24967.909211894381,0,0,0,0,null,0.38,-9487.8055005198657,-15480.103711374515,null,0,0,null,null,null,null,null,null,null,"UACCT557CAEE",0,0,0,0]
[685,null,null,null,null,null,"ACCT557",{"$f":"'JAM Download'!E552","v":4082422.0149266277},null,{"$f":"SUM(J679:J684)","v":4082422.0149266277},{"$f":"SUM(K679:K684)","v":0},{"$f":"SUM(L679:L684)","v":0},{"$f":"SUM(M679:M684)","v":0},{"$f":"SUM(N679:N684)","v":0},null,null,{"$f":"SUM(Q679:Q684)","v":1551320.3656721185},{"$f":"SUM(R679:R684)","v":2531101.6492545097},null,{"$f":"SUM(T679:T684)","v":0},{"$f":"SUM(U679:U684)","v":0},null,{"$f":"SUM(W679:W684)","v":0},{"$f":"SUM(X679:X684)","v":0},{"$f":"SUM(Y679:Y684)","v":0},{"$f":"SUM(Z679:Z684)","v":0},{"$f":"SUM(AA679:AA684)","v":0},0,"UACCT557",0,0,0,0]
[686,"Embedded Cost Differentials"]
[687,"Company Owned Hydro",null,"DGP",null,"DGP","ECDDGP",{"$f":"'JAM Download'!E555","v":0},"P",{"$f":"VLOOKUP($I687,Func,2)*$H687","v":0},{"$f":"VLOOKUP($I687,Func,3)*$H687","v":0},{"$f":"VLOOKUP($I687,Func,5)*$H687","v":0},{"$f":"VLOOKUP($I687,Func,6)*$H687","v":0},{"$f":"VLOOKUP($I687,Func,7)*$H687","v":0},null,{"$f":"Demand","v":0.38},{"$f":"+$J687*$P687","v":0},{"$f":"+$J687*(1-$P687)","v":0},null,{"$f":"+$K687*$S687","v":0},{"$f":"+$K687*(1-$S687)","v":0},null,null,null,null,null,null,null,"UACCTECDDGP",{"$f":"ROUND(SUM(-H687,J687:N687),0)","v":0},{"$f":"ROUND(J687-Q687-R687,0)","v":0},{"$f":"ROUND(K687-T687-U687,0)","v":0},{"$f":"ROUND(L687-W687-X687-Y687-Z687-AA687,0)","v":0}]
[688,"Company Owned Hydro",null,"SG",null,"SG","ECDSG",{"$f":"'JAM Download'!E556","v":0},"P",0,0,0,0,0,null,0.38,0,0,null,0,0,null,null,null,null,null,null,null,"UACCTECDSG1",0,0,0,0]
[689,"Mid-C Contract",null,"MC",null,"MC","ECDMC",{"$f":"'JAM Download'!E557","v":0},"P",0,0,0,0,0,null,0.38,0,0,null,0,0,null,null,null,null,null,null,null,"UACCTECDMC",0,0,0,0]
[690,"Mid-C Contract",null,"SG",null,"SG","ECDSG",{"$f":"'JAM Download'!E558","v":0},"P",0,0,0,0,0,null,0.38,0,0,null,0,0,null,null,null,null,null,null,null,"UACCTECDSG2",0,0,0,0]
[691,"Existing QF Contracts",null,"S ",null,"S ","ECDS",{"$f":"'JAM Download'!E559","v":0},"P",0,0,0,0,0,null,0.38,0,0,null,0,0,null,null,null,null,null,null,null,"UACCTECDS",0,0,0,0]
[692,"Existing QF Contracts",null,"SG",null,"SG","ECDSG",{"$f":"'JAM Download'!E560","v":0},"P",0,0,0,0,0,null,0.38,0,0,null,0,0,null,null,null,null,null,null,null,"UACCTECDSG3",0,0,0,0]
[693]
[694,null,null,null,null,null,null,null,null,{"$f":"SUM(J687:J693)","v":0},{"$f":"SUM(K687:K693)","v":0},{"$f":"SUM(L687:L693)","v":0},{"$f":"SUM(M687:M693)","v":0},{"$f":"SUM(N687:N693)","v":0},null,null,{"$f":"SUM(Q687:Q693)","v":0},{"$f":"SUM(R687:R693)","v":0},null,{"$f":"SUM(T687:T693)","v":0},{"$f":"SUM(U687:U693)","v":0},null,{"$f":"SUM(W687:W692)","v":0},{"$f":"SUM(X687:X692)","v":0},{"$f":"SUM(Y687:Y692)","v":0},{"$f":"SUM(Z687:Z692)","v":0},{"$f":"SUM(AA687:AA692)","v":0},0,null,{"$f":"ROUND(SUM(-H694,J694:N694),0)","v":0},{"$f":"ROUND(J694-Q694-R694,0)","v":0},{"$f":"ROUND(K694-T694-U694,0)","v":0},{"$f":"ROUND(L694-W694-X694-Y694-Z694-AA694,0)","v":0}]
[695]
[696]
[697]
[698,"Total Other Power Supply",null,null,null,null,null,{"$f":"'JAM Download'!E564","v":59935537.061298847},null,{"$f":"+J685+J676+J671+J694","v":59935537.061298847},{"$f":"+K685+K676+K671+K694","v":0},{"$f":"+L685+L676+L671+L694","v":0},{"$f":"+M685+M676+M671+M694","v":0},{"$f":"+N685+N676+N671+N694","v":0},null,null,22775504.083293561,37160032.978005283,null,0,0,null,0,0,0,0,0,0,null,{"$f":"ROUND(SUM(-H698,J698:N698),0)","v":0},{"$f":"ROUND(J698-Q698-R698,0)","v":0},{"$f":"ROUND(K698-T698-U698,0)","v":0},{"$f":"ROUND(L698-W698-X698-Y698-Z698-AA698,0)","v":0}]
[699]
[700,"TOTAL PRODUCTION EXPENSE",null,null,null,null,null,{"$f":"'JAM Download'!E566","v":156527193.49199635},null,{"$f":"+J698+J654+J594+J541+J491","v":156527193.49199635},{"$f":"+K698+K654+K594+K541+K491","v":0},{"$f":"+L698+L654+L594+L541+L491","v":0},{"$f":"+M698+M654+M594+M541+M491","v":0},{"$f":"+N698+N654+N594+N541+N491","v":0},null,null,{"$f":"+Q698+Q654+Q594+Q541+Q491","v":59480333.526958615},{"$f":"+R698+R654+R594+R541+R491","v":97046859.965037733},null,{"$f":"+T698+T654+T594+T541+T491","v":0},{"$f":"+U698+U654+U594+U541+U491","v":0},null,{"$f":"+W698+W654+W594+W541+W491","v":0},{"$f":"+X698+X654+X594+X541+X491","v":0},{"$f":"+Y698+Y654+Y594+Y541+Y491","v":0},{"$f":"+Z698+Z654+Z594+Z541+Z491","v":0},{"$f":"+AA698+AA654+AA594+AA541+AA491","v":0},0,null,{"$f":"ROUND(SUM(-H700,J700:N700),0)","v":0},{"$f":"ROUND(J700-Q700-R700,0)","v":0},{"$f":"ROUND(K700-T700-U700,0)","v":0},{"$f":"ROUND(L700-W700-X700-Y700-Z700-AA700,0)","v":0}]
[{"$f":"A700+1","v":701}]
[702,null,null,null,null,null,null,null,null,null,null,null,null,null,null,null,null,null,null,null,null,"DIS"]
[703,"FERC",null,"DESCRIPTION &","FERC",null,"RANGE",{"$f":"+$H$250","v":"Jurisdictional"},"FUNC","GEN","TRN","DIS","RETAIL","MISC",null,"D / E","GEN","GEN","D / E","TRN","TRN","SPLIT","DIS","DIS","DIS","DIS","DIS","DIS","Unbundled ACCT:","Function","Generation","Transmission","Distribution"]
[704,"ACCT",null,"CONSENSUS FACTOR","ACCT","FACTOR","NAME","ADJ Total","FACTOR","TOTAL","TOTAL","TOTAL","TOTAL","TOTAL",null,"SPLIT","DEMAND","ENERGY","SPLIT","DEMAND","ENERGY",null,"SUBS","P & C","XFMR","METER","SERVICE","METER","TOTAL","Check","Check","Check","Check"]
[705]
[706]
[707]
[708]
[709,null,null,null,null,null,null,null,null,null,null,null,null,null,null,null,null,null,null,null,null,"DIS"]
[710,"FERC",null,"DESCRIPTION &","FERC",null,"RANGE",{"$f":"+$H$250","v":"Jurisdictional"},"FUNC","GEN","TRN","DIS","RETAIL","MISC",null,"D / E","GEN","GEN","D / E","TRN","TRN","SPLIT","DIS","DIS","DIS","DIS","DIS","DIS","Unbundled ACCT:","Function","Generation","Transmission","Distribution"]
[711,"ACCT",null,"CONSENSUS FACTOR","ACCT","FACTOR","NAME","ADJ Total","FACTOR","TOTAL","TOTAL","TOTAL","TOTAL","TOTAL",null,"SPLIT","DEMAND","ENERGY","SPLIT","DEMAND","ENERGY",null,"SUBS","P & C","XFMR","METER","SERVICE","METER","TOTAL","Check","Check","Check","Check"]
[712,560,"Operation Supervision & Engineering"]
[713,null,null,"SG/CAGW/CAGE",560,"SG","ACCT560SG",{"$f":"'JAM Download'!E594+'JAM Download'!E596+'JAM Download'!E597","v":413682.09625891387},"T",{"$f":"VLOOKUP($I713,Func,2)*$H713","v":0},{"$f":"VLOOKUP($I713,Func,3)*$H713","v":413682.09625891387},{"$f":"VLOOKUP($I713,Func,5)*$H713","v":0},{"$f":"VLOOKUP($I713,Func,6)*$H713","v":0},{"$f":"VLOOKUP($I713,Func,7)*$H713","v":0},null,null,null,null,{"$f":"Demand","v":0.38},{"$f":"+K713*S713","v":157199.19657838726},{"$f":"(1-S713)*K713","v":256482.89968052661},null,null,null,null,null,null,null,"UACCT560SG",{"$f":"ROUND(SUM(-H713,J713:N713),0)","v":0},{"$f":"ROUND(J713-Q713-R713,0)","v":0},{"$f":"ROUND(K713-T713-U713,0)","v":0},{"$f":"ROUND(L713-W713-X713-Y713-Z713-AA713,0)","v":0}]
[714,null,null,"JBG",560,"JBG","ACCT560JBG",{"$f":"'JAM Download'!E595","v":9.6490596647661349},"T",{"$f":"VLOOKUP($I714,Func,2)*$H714","v":0},{"$f":"VLOOKUP($I714,Func,3)*$H714","v":9.6490596647661349},{"$f":"VLOOKUP($I714,Func,5)*$H714","v":0},{"$f":"VLOOKUP($I714,Func,6)*$H714","v":0},{"$f":"VLOOKUP($I714,Func,7)*$H714","v":0},null,null,null,null,{"$f":"Demand","v":0.38},{"$f":"+K714*S714","v":3.6666426726111312},{"$f":"(1-S714)*K714","v":5.9824169921550032},null,null,null,null,null,null,null,"UACCT560JBG",{"$f":"ROUND(SUM(-H714,J714:N714),0)","v":0},{"$f":"ROUND(J714-Q714-R714,0)","v":0},{"$f":"ROUND(K714-T714-U714,0)","v":0},{"$f":"ROUND(L714-W714-X714-Y714-Z714-AA714,0)","v":0}]
[715,null,null,null,null,null,"ACCT560",{"$f":"'JAM Download'!E598","v":413691.74531857867},null,{"$f":"SUM(J713:J714)","v":0},{"$f":"SUM(K713:K714)","v":413691.74531857861},0,0,0,null,null,0,0,null,157202.86322105987,256488.88209751877,null,0,0,0,0,0,0,"UACCT560",{"$f":"ROUND(SUM(-H715,J715:N715),0)","v":0},{"$f":"ROUND(J715-Q715-R715,0)","v":0},{"$f":"ROUND(K715-T715-U715,0)","v":0},{"$f":"ROUND(L715-W715-X715-Y715-Z715-AA715,0)","v":0}]
[716,null,null,null,null,null," ",null,null,null,null,null,null,null,null,null,null,null,null,null,null,null,null,null,null,null,null,null," "]
[717,561,"Load Dispatching"]
[718,null,null,"SG",561,"SG","ACCT561SG",{"$f":"'JAM Download'!E601","v":655488.72271092248},"T",{"$f":"VLOOKUP($I718,Func,2)*$H718","v":0},{"$f":"VLOOKUP($I718,Func,3)*$H718","v":655488.72271092248},{"$f":"VLOOKUP($I718,Func,5)*$H718","v":0},{"$f":"VLOOKUP($I718,Func,6)*$H718","v":0},{"$f":"VLOOKUP($I718,Func,7)*$H718","v":0},null,null,null,null,{"$f":"Demand","v":0.38},{"$f":"+K718*S718","v":249085.71463015056},{"$f":"(1-S718)*K718","v":406403.00808077195},null,null,null,null,null,null,null,"UACCT561DNPTU",{"$f":"ROUND(SUM(-H718,J718:N718),0)","v":0},{"$f":"ROUND(J718-Q718-R718,0)","v":0},{"$f":"ROUND(K718-T718-U718,0)","v":0},{"$f":"ROUND(L718-W718-X718-Y718-Z718-AA718,0)","v":0}]
[719,null,null,"CAGW",561,"CAGW","ACCT561CAGW",{"$f":"'JAM Download'!E602","v":30827.590409605138},"T",{"$f":"VLOOKUP($I719,Func,2)*$H719","v":0},{"$f":"VLOOKUP($I719,Func,3)*$H719","v":30827.590409605138},{"$f":"VLOOKUP($I719,Func,5)*$H719","v":0},{"$f":"VLOOKUP($I719,Func,6)*$H719","v":0},{"$f":"VLOOKUP($I719,Func,7)*$H719","v":0},null,null,null,null,{"$f":"Demand","v":0.38},{"$f":"+K719*S719","v":11714.484355649953},{"$f":"(1-S719)*K719","v":19113.106053955187},null,null,null,null,null,null,null,"UACCT561DNPTU",{"$f":"ROUND(SUM(-H719,J719:N719),0)","v":0},{"$f":"ROUND(J719-Q719-R719,0)","v":0},{"$f":"ROUND(K719-T719-U719,0)","v":0},{"$f":"ROUND(L719-W719-X719-Y719-Z719-AA719,0)","v":0}]
[720,null,null,null,null,null,"ACCT561",{"$f":"'JAM Download'!E604","v":686316.31312052766},null,{"$f":"SUM(J718:J718)","v":0},{"$f":"SUM(K718:K719)","v":686316.31312052766},{"$f":"SUM(L718:L719)","v":0},{"$f":"SUM(M718:M719)","v":0},{"$f":"SUM(N718:N719)","v":0},null,null,{"$f":"SUM(Q718:Q719)","v":0},{"$f":"SUM(R718:R719)","v":0},null,{"$f":"SUM(T718:T719)","v":260800.1989858005},{"$f":"SUM(U718:U719)","v":425516.11413472716},null,{"$f":"SUM(W718:W719)","v":0},0,0,0,0,0,"UACCT561",{"$f":"ROUND(SUM(-H720,J720:N720),0)","v":0},{"$f":"ROUND(J720-Q720-R720,0)","v":0},{"$f":"ROUND(K720-T720-U720,0)","v":0},{"$f":"ROUND(L720-W720-X720-Y720-Z720-AA720,0)","v":0}]
[721]
[722,562,"Station Expense"]
[723,null,null,"SG",562,"SG","ACCT562SG",{"$f":"'JAM Download'!E606","v":81213.49917848871},"T",{"$f":"VLOOKUP($I723,Func,2)*$H723","v":0},{"$f":"VLOOKUP($I723,Func,3)*$H723","v":81213.49917848871},{"$f":"VLOOKUP($I723,Func,5)*$H723","v":0},{"$f":"VLOOKUP($I723,Func,6)*$H723","v":0},{"$f":"VLOOKUP($I723,Func,7)*$H723","v":0},null,null,null,null,{"$f":"Demand","v":0.38},{"$f":"+K723*S723","v":30861.129687825709},{"$f":"(1-S723)*K723","v":50352.369490662997},null,null,null,null,null,null,null,"UACCT562SG",{"$f":"ROUND(SUM(-H723,J723:N723),0)","v":0},{"$f":"ROUND(J723-Q723-R723,0)","v":0},{"$f":"ROUND(K723-T723-U723,0)","v":0},{"$f":"ROUND(L723-W723-X723-Y723-Z723-AA723,0)","v":0}]
[724,null,null,"JBG",562,"JBG","ACCT562JBG",{"$f":"'JAM Download'!E607","v":750.82211615040046},"T",{"$f":"VLOOKUP($I724,Func,2)*$H724","v":0},{"$f":"VLOOKUP($I724,Func,3)*$H724","v":750.82211615040046},{"$f":"VLOOKUP($I724,Func,5)*$H724","v":0},{"$f":"VLOOKUP($I724,Func,6)*$H724","v":0},{"$f":"VLOOKUP($I724,Func,7)*$H724","v":0},null,null,null,null,{"$f":"Demand","v":0.38},{"$f":"+K724*S724","v":285.31240413715216},{"$f":"(1-S724)*K724","v":465.5097120132483},null,null,null,null,null,null,null,"UACCT562JBG",{"$f":"ROUND(SUM(-H724,J724:N724),0)","v":0},{"$f":"ROUND(J724-Q724-R724,0)","v":0},{"$f":"ROUND(K724-T724-U724,0)","v":0},{"$f":"ROUND(L724-W724-X724-Y724-Z724-AA724,0)","v":0}]
[725,null,null,"GAGW",562,"CAGW","ACCT562CAGW",{"$f":"'JAM Download'!E608","v":92074.591610035699},"T",{"$f":"VLOOKUP($I725,Func,2)*$H725","v":0},{"$f":"VLOOKUP($I725,Func,3)*$H725","v":92074.591610035699},{"$f":"VLOOKUP($I725,Func,5)*$H725","v":0},{"$f":"VLOOKUP($I725,Func,6)*$H725","v":0},{"$f":"VLOOKUP($I725,Func,7)*$H725","v":0},null,null,null,null,{"$f":"Demand","v":0.38},{"$f":"+K725*S725","v":34988.344811813564},{"$f":"(1-S725)*K725","v":57086.246798222135},null,null,null,null,null,null,null,"UACCT562JBG",{"$f":"ROUND(SUM(-H725,J725:N725),0)","v":0},{"$f":"ROUND(J725-Q725-R725,0)","v":0},{"$f":"ROUND(K725-T725-U725,0)","v":0},{"$f":"ROUND(L725-W725-X725-Y725-Z725-AA725,0)","v":0}]
[726,null,null,null,null,null,"ACCT562",{"$f":"'JAM Download'!E610","v":174038.91290467483},null,{"$f":"SUM(J723:J725)","v":0},{"$f":"SUM(K723:K725)","v":174038.91290467483},{"$f":"SUM(L723:L725)","v":0},{"$f":"SUM(M723:M725)","v":0},{"$f":"SUM(N723:N725)","v":0},null,null,{"$f":"SUM(Q723:Q725)","v":0},{"$f":"SUM(R723:R725)","v":0},null,{"$f":"SUM(T723:T725)","v":66134.786903776432},{"$f":"SUM(U723:U725)","v":107904.12600089838},null,{"$f":"SUM(W723:W725)","v":0},0,0,0,0,0,"UACCT562",{"$f":"ROUND(SUM(-H726,J726:N726),0)","v":0},{"$f":"ROUND(J726-Q726-R726,0)","v":0},{"$f":"ROUND(K726-T726-U726,0)","v":0},{"$f":"ROUND(L726-W726-X726-Y726-Z726-AA726,0)","v":0}]
[727]
[728,563,"Overhead Line Expense"]
[729,null,null,"SG",563,"SG","ACCT563SG",{"$f":"'JAM Download'!E613","v":100.56497323007559},"T",{"$f":"VLOOKUP($I729,Func,2)*$H729","v":0},{"$f":"VLOOKUP($I729,Func,3)*$H729","v":100.56497323007559},{"$f":"VLOOKUP($I729,Func,5)*$H729","v":0},{"$f":"VLOOKUP($I729,Func,6)*$H729","v":0},{"$f":"VLOOKUP($I729,Func,7)*$H729","v":0},null,null,null,null,{"$f":"Demand","v":0.38},{"$f":"+K729*S729","v":38.214689827428728},{"$f":"(1-S729)*K729","v":62.350283402646866},null,null,null,null,null,null,null,"UACCT563DNPTU",{"$f":"ROUND(SUM(-H729,J729:N729),0)","v":0},{"$f":"ROUND(J729-Q729-R729,0)","v":0},{"$f":"ROUND(K729-T729-U729,0)","v":0},{"$f":"ROUND(L729-W729-X729-Y729-Z729-AA729,0)","v":0}]
[730,null,null,"CAGW",563,"CAGW","ACCT563CAGW",{"$f":"'JAM Download'!E614","v":11408.027417719639},"T",{"$f":"VLOOKUP($I730,Func,2)*$H730","v":0},{"$f":"VLOOKUP($I730,Func,3)*$H730","v":11408.027417719639},{"$f":"VLOOKUP($I730,Func,5)*$H730","v":0},{"$f":"VLOOKUP($I730,Func,6)*$H730","v":0},{"$f":"VLOOKUP($I730,Func,7)*$H730","v":0},null,null,null,null,{"$f":"Demand","v":0.38},{"$f":"+K730*S730","v":4335.0504187334627},{"$f":"(1-S730)*K730","v":7072.9769989861761},null,null,null,null,null,null,null,"UACCT563DNPTU",{"$f":"ROUND(SUM(-H730,J730:N730),0)","v":0},{"$f":"ROUND(J730-Q730-R730,0)","v":0},{"$f":"ROUND(K730-T730-U730,0)","v":0},{"$f":"ROUND(L730-W730-X730-Y730-Z730-AA730,0)","v":0}]
[731,null,null,null,null,null,"ACCT563",{"$f":"'JAM Download'!E616","v":11508.592390949714},null,{"$f":"SUM(J729:J730)","v":0},{"$f":"SUM(K729:K730)","v":11508.592390949714},{"$f":"SUM(L729:L730)","v":0},{"$f":"SUM(M729:M730)","v":0},{"$f":"SUM(N729:N730)","v":0},null,null,{"$f":"SUM(Q729:Q730)","v":0},{"$f":"SUM(R729:R730)","v":0},null,{"$f":"SUM(T729:T730)","v":4373.2651085608913},{"$f":"SUM(U729:U730)","v":7135.3272823888228},null,{"$f":"SUM(W729:W730)","v":0},0,0,0,0,0,"UACCT563",{"$f":"ROUND(SUM(-H731,J731:N731),0)","v":0},{"$f":"ROUND(J731-Q731-R731,0)","v":0},{"$f":"ROUND(K731-T731-U731,0)","v":0},{"$f":"ROUND(L731-W731-X731-Y731-Z731-AA731,0)","v":0}]
[732]
[733,564,"Underground Line Expense"]
[734,null,null,"SG",564,"SG","ACCT564SG",{"$f":"'JAM Download'!E619","v":0},"T",{"$f":"VLOOKUP($I734,Func,2)*$H734","v":0},{"$f":"VLOOKUP($I734,Func,3)*$H734","v":0},{"$f":"VLOOKUP($I734,Func,5)*$H734","v":0},{"$f":"VLOOKUP($I734,Func,6)*$H734","v":0},{"$f":"VLOOKUP($I734,Func,7)*$H734","v":0},null,null,null,null,{"$f":"Demand","v":0.38},{"$f":"+K734*S734","v":0},{"$f":"(1-S734)*K734","v":0},null,null,null,null,null,null,null,"UACCT564DNPTU",{"$f":"ROUND(SUM(-H734,J734:N734),0)","v":0},{"$f":"ROUND(J734-Q734-R734,0)","v":0},{"$f":"ROUND(K734-T734-U734,0)","v":0},{"$f":"ROUND(L734-W734-X734-Y734-Z734-AA734,0)","v":0}]
[735,null,null,null,null,null,"ACCT564",{"$f":"'JAM Download'!E622","v":0},null,{"$f":"SUM(J734:J734)","v":0},{"$f":"SUM(K734:K734)","v":0},{"$f":"SUM(L734:L734)","v":0},{"$f":"SUM(M734:M734)","v":0},{"$f":"SUM(N734:N734)","v":0},null,null,{"$f":"SUM(Q734:Q734)","v":0},{"$f":"SUM(R734:R734)","v":0},null,{"$f":"SUM(T734:T734)","v":0},{"$f":"SUM(U734:U734)","v":0},null,{"$f":"SUM(W734:W734)","v":0},{"$f":"SUM(X734:X734)","v":0},{"$f":"SUM(Y734:Y734)","v":0},{"$f":"SUM(Z734:Z734)","v":0},{"$f":"SUM(AA734:AA734)","v":0},0,"UACCT564",{"$f":"ROUND(SUM(-H735,J735:N735),0)","v":0},{"$f":"ROUND(J735-Q735-R735,0)","v":0},{"$f":"ROUND(K735-T735-U735,0)","v":0},{"$f":"ROUND(L735-W735-X735-Y735-Z735-AA735,0)","v":0}]
[736]
[737,565,"Transmission of Electricity by Others"]
[738,null,null,"SG/CAGW/CAGE",565,"SG","ACCT565SG",{"$f":"'JAM Download'!E625","v":0},"T",{"$f":"VLOOKUP($I738,Func,2)*$H738","v":0},{"$f":"VLOOKUP($I738,Func,3)*$H738","v":0},{"$f":"VLOOKUP($I738,Func,5)*$H738","v":0},{"$f":"VLOOKUP($I738,Func,6)*$H738","v":0},{"$f":"VLOOKUP($I738,Func,7)*$H738","v":0},null,{"$f":"Demand","v":0.38},{"$f":"+$J738*$P738","v":0},{"$f":"+$J738*(1-$P738)","v":0},{"$f":"Demand","v":0.38},{"$f":"+K738*S738","v":0},{"$f":"(1-S738)*K738","v":0},null,null,null,null,null,null,null,"UACCT565SG",{"$f":"ROUND(SUM(-H738,J738:N738),0)","v":0},{"$f":"ROUND(J738-Q738-R738,0)","v":0},{"$f":"ROUND(K738-T738-U738,0)","v":0},{"$f":"ROUND(L738-W738-X738-Y738-Z738-AA738,0)","v":0}]
[739,null,null,null,null,null,"ACCT565",{"$f":"'JAM Download'!E627","v":0},null,null,null,null,null,null,null,null,null,null,null,null,null,null,null,null,null,null,null,null,"UACCT565"]
[740]
[741,"565NPC","Transmission of Electricity by Others-NPC"]
[742,null,null,"CAGW","565NPC","CAGW","ACCT565NPCCAGE",{"$f":"'JAM Download'!E636","v":25180047.073464345},"T",{"$f":"VLOOKUP($I742,Func,2)*$H742","v":0},{"$f":"VLOOKUP($I742,Func,3)*$H742","v":25180047.073464345},{"$f":"VLOOKUP($I742,Func,5)*$H742","v":0},{"$f":"VLOOKUP($I742,Func,6)*$H742","v":0},{"$f":"VLOOKUP($I742,Func,7)*$H742","v":0},null,{"$f":"Demand","v":0.38},{"$f":"+$J742*$P742","v":0},{"$f":"+$J742*(1-$P742)","v":0},{"$f":"Demand","v":0.38},{"$f":"+K742*S742","v":9568417.8879164513},{"$f":"(1-S742)*K742","v":15611629.185547894},null,null,null,null,null,null,null,"UACCT565NPCCAGW",{"$f":"ROUND(SUM(-H742,J742:N742),0)","v":0},{"$f":"ROUND(J742-Q742-R742,0)","v":0},{"$f":"ROUND(K742-T742-U742,0)","v":0},{"$f":"ROUND(L742-W742-X742-Y742-Z742-AA742,0)","v":0}]
[743,null,null,"SE","565NPC","SE","ACCT565NPCSE",{"$f":"'JAM Download'!E627","v":0},"T",{"$f":"VLOOKUP($I743,Func,2)*$H743","v":0},{"$f":"VLOOKUP($I743,Func,3)*$H743","v":0},{"$f":"VLOOKUP($I743,Func,5)*$H743","v":0},{"$f":"VLOOKUP($I743,Func,6)*$H743","v":0},{"$f":"VLOOKUP($I743,Func,7)*$H743","v":0},null,{"$f":"Demand","v":0.38},{"$f":"+$J743*$P743","v":0},{"$f":"+$J743*(1-$P743)","v":0},{"$f":"Demand","v":0.38},{"$f":"+K743*S743","v":0},{"$f":"(1-S743)*K743","v":0},null,null,null,null,null,null,null,"UACCT565NPCSE",{"$f":"ROUND(SUM(-H743,J743:N743),0)","v":0},{"$f":"ROUND(J743-Q743-R743,0)","v":0},{"$f":"ROUND(K743-T743-U743,0)","v":0},{"$f":"ROUND(L743-W743-X743-Y743-Z743-AA743,0)","v":0}]
[744,null,null,null,null,null,"ACCTNPC565",{"$f":"'JAM Download'!E640","v":25180047.073464345},null,{"$f":"SUM(J742:J743)","v":0},{"$f":"SUM(K742:K743)","v":25180047.073464345},{"$f":"SUM(L742:L743)","v":0},{"$f":"SUM(M742:M743)","v":0},{"$f":"SUM(N742:N743)","v":0},null,null,{"$f":"SUM(Q742:Q743)","v":0},{"$f":"SUM(R742:R743)","v":0},null,{"$f":"SUM(T742:T743)","v":9568417.8879164513},{"$f":"SUM(U742:U743)","v":15611629.185547894},null,{"$f":"SUM(W742:W743)","v":0},0,0,0,0,0,"UACCT565NPC",{"$f":"ROUND(SUM(-H744,J744:N744),0)","v":0},{"$f":"ROUND(J744-Q744-R744,0)","v":0},{"$f":"ROUND(K744-T744-U744,0)","v":0},{"$f":"ROUND(L744-W744-X744-Y744-Z744-AA744,0)","v":0}]
[745]
[746,566,"Misc. Transmission Expense"]
[747,null,null,"SG/CAGW",566,"SG","ACCT566SG",{"$f":"'JAM Download'!E645+'JAM Download'!E646+'JAM Download'!E647","v":171549.03847368414},"T",{"$f":"VLOOKUP($I747,Func,2)*$H747","v":0},{"$f":"VLOOKUP($I747,Func,3)*$H747","v":171549.03847368414},{"$f":"VLOOKUP($I747,Func,5)*$H747","v":0},{"$f":"VLOOKUP($I747,Func,6)*$H747","v":0},{"$f":"VLOOKUP($I747,Func,7)*$H747","v":0},null,null,null,null,{"$f":"Demand","v":0.38},{"$f":"+K747*S747","v":65188.634619999975},{"$f":"(1-S747)*K747","v":106360.40385368417},null,null,null,null,null,null,null,"UACCT566DNPTU",{"$f":"ROUND(SUM(-H747,J747:N747),0)","v":0},{"$f":"ROUND(J747-Q747-R747,0)","v":0},{"$f":"ROUND(K747-T747-U747,0)","v":0},{"$f":"ROUND(L747-W747-X747-Y747-Z747-AA747,0)","v":0}]
[748,null,null,null,null,null,"ACCT566",{"$f":"'JAM Download'!E648","v":171549.03847368414},null,{"$f":"SUM(J747:J747)","v":0},{"$f":"SUM(K747:K747)","v":171549.03847368414},{"$f":"SUM(L747:L747)","v":0},{"$f":"SUM(M747:M747)","v":0},{"$f":"SUM(N747:N747)","v":0},null,null,{"$f":"SUM(Q747:Q747)","v":0},{"$f":"SUM(R747:R747)","v":0},null,{"$f":"SUM(T747:T747)","v":65188.634619999975},{"$f":"SUM(U747:U747)","v":106360.40385368417},null,{"$f":"SUM(W747:W747)","v":0},{"$f":"SUM(X747:X747)","v":0},{"$f":"SUM(Y747:Y747)","v":0},{"$f":"SUM(Z747:Z747)","v":0},{"$f":"SUM(AA747:AA747)","v":0},0,"UACCT566",{"$f":"ROUND(SUM(-H748,J748:N748),0)","v":0},{"$f":"ROUND(J748-Q748-R748,0)","v":0},{"$f":"ROUND(K748-T748-U748,0)","v":0},{"$f":"ROUND(L748-W748-X748-Y748-Z748-AA748,0)","v":0}]
[749]
[750,567,"Rents - Transmission"]
[751,null,null,"SG/CAGW",567,"SG","ACCT567SG",{"$f":"'JAM Download'!E651+'JAM Download'!E652+'JAM Download'!E653","v":203773.09014363162},"T",{"$f":"VLOOKUP($I751,Func,2)*$H751","v":0},{"$f":"VLOOKUP($I751,Func,3)*$H751","v":203773.09014363162},{"$f":"VLOOKUP($I751,Func,5)*$H751","v":0},{"$f":"VLOOKUP($I751,Func,6)*$H751","v":0},{"$f":"VLOOKUP($I751,Func,7)*$H751","v":0},null,null,null,null,{"$f":"Demand","v":0.38},{"$f":"+K751*S751","v":77433.774254580014},{"$f":"(1-S751)*K751","v":126339.31588905161},null,null,null,null,null,null,null,"UACCT567DNPTU",{"$f":"ROUND(SUM(-H751,J751:N751),0)","v":0},{"$f":"ROUND(J751-Q751-R751,0)","v":0},{"$f":"ROUND(K751-T751-U751,0)","v":0},{"$f":"ROUND(L751-W751-X751-Y751-Z751-AA751,0)","v":0}]
[752,null,null,null,null,null,"ACCT567",{"$f":"'JAM Download'!E654","v":203773.09014363162},null,{"$f":"SUM(J751:J751)","v":0},{"$f":"SUM(K751:K751)","v":203773.09014363162},{"$f":"SUM(L751:L751)","v":0},{"$f":"SUM(M751:M751)","v":0},{"$f":"SUM(N751:N751)","v":0},null,null,{"$f":"SUM(Q751:Q751)","v":0},{"$f":"SUM(R751:R751)","v":0},null,{"$f":"SUM(T751:T751)","v":77433.774254580014},{"$f":"SUM(U751:U751)","v":126339.31588905161},null,{"$f":"SUM(W751:W751)","v":0},{"$f":"SUM(X751:X751)","v":0},{"$f":"SUM(Y751:Y751)","v":0},{"$f":"SUM(Z751:Z751)","v":0},{"$f":"SUM(AA751:AA751)","v":0},0,"UACCT567",{"$f":"ROUND(SUM(-H752,J752:N752),0)","v":0},{"$f":"ROUND(J752-Q752-R752,0)","v":0},{"$f":"ROUND(K752-T752-U752,0)","v":0},{"$f":"ROUND(L752-W752-X752-Y752-Z752-AA752,0)","v":0}]
[753]
[754,568,"Maint Supervision & Engineering"]
[755,null,null,"SG",568,"SG","ACCT568SG",{"$f":"'JAM Download'!E657+'JAM Download'!E658+'JAM Download'!E659","v":223974.92828903478},"T",{"$f":"VLOOKUP($I755,Func,2)*$H755","v":0},{"$f":"VLOOKUP($I755,Func,3)*$H755","v":223974.92828903478},{"$f":"VLOOKUP($I755,Func,5)*$H755","v":0},{"$f":"VLOOKUP($I755,Func,6)*$H755","v":0},{"$f":"VLOOKUP($I755,Func,7)*$H755","v":0},null,null,null,null,{"$f":"Demand","v":0.38},{"$f":"+K755*S755","v":85110.472749833221},{"$f":"(1-S755)*K755","v":138864.45553920156},null,null,null,null,null,null,null,"UACCT568DNPTU",{"$f":"ROUND(SUM(-H755,J755:N755),0)","v":0},{"$f":"ROUND(J755-Q755-R755,0)","v":0},{"$f":"ROUND(K755-T755-U755,0)","v":0},{"$f":"ROUND(L755-W755-X755-Y755-Z755-AA755,0)","v":0}]
[756,null,null,null,null,null,"ACCT568",{"$f":"'JAM Download'!E660","v":223974.92828903478},null,{"$f":"SUM(J755:J755)","v":0},{"$f":"SUM(K755:K755)","v":223974.92828903478},{"$f":"SUM(L755:L755)","v":0},{"$f":"SUM(M755:M755)","v":0},{"$f":"SUM(N755:N755)","v":0},null,null,{"$f":"SUM(Q755:Q755)","v":0},{"$f":"SUM(R755:R755)","v":0},null,{"$f":"SUM(T755:T755)","v":85110.472749833221},{"$f":"SUM(U755:U755)","v":138864.45553920156},null,{"$f":"SUM(W755:W755)","v":0},{"$f":"SUM(X755:X755)","v":0},{"$f":"SUM(Y755:Y755)","v":0},{"$f":"SUM(Z755:Z755)","v":0},{"$f":"SUM(AA755:AA755)","v":0},0,"UACCT568",{"$f":"ROUND(SUM(-H756,J756:N756),0)","v":0},{"$f":"ROUND(J756-Q756-R756,0)","v":0},{"$f":"ROUND(K756-T756-U756,0)","v":0},{"$f":"ROUND(L756-W756-X756-Y756-Z756-AA756,0)","v":0}]
[757]
[758,569,"Maintenance of Structures"]
[759,null,null,"SG",569,"SG","ACCT569SG",{"$f":"'JAM Download'!E663+'JAM Download'!E664+'JAM Download'!E665","v":357893.5191300243},"T",{"$f":"VLOOKUP($I759,Func,2)*$H759","v":0},{"$f":"VLOOKUP($I759,Func,3)*$H759","v":357893.5191300243},{"$f":"VLOOKUP($I759,Func,5)*$H759","v":0},{"$f":"VLOOKUP($I759,Func,6)*$H759","v":0},{"$f":"VLOOKUP($I759,Func,7)*$H759","v":0},null,null,null,null,{"$f":"Demand","v":0.38},{"$f":"+K759*S759","v":135999.53726940922},{"$f":"(1-S759)*K759","v":221893.98186061508},null,null,null,null,null,null,null,"UACCT569DNPTU",{"$f":"ROUND(SUM(-H759,J759:N759),0)","v":0},{"$f":"ROUND(J759-Q759-R759,0)","v":0},{"$f":"ROUND(K759-T759-U759,0)","v":0},{"$f":"ROUND(L759-W759-X759-Y759-Z759-AA759,0)","v":0}]
[760,null,null,null,null,null,"ACCT569",{"$f":"'JAM Download'!E666","v":357893.5191300243},null,{"$f":"SUM(J759:J759)","v":0},{"$f":"SUM(K759:K759)","v":357893.5191300243},{"$f":"SUM(L759:L759)","v":0},{"$f":"SUM(M759:M759)","v":0},{"$f":"SUM(N759:N759)","v":0},null,null,{"$f":"SUM(Q759:Q759)","v":0},{"$f":"SUM(R759:R759)","v":0},null,{"$f":"SUM(T759:T759)","v":135999.53726940922},{"$f":"SUM(U759:U759)","v":221893.98186061508},null,{"$f":"SUM(W759:W759)","v":0},{"$f":"SUM(X759:X759)","v":0},{"$f":"SUM(Y759:Y759)","v":0},{"$f":"SUM(Z759:Z759)","v":0},{"$f":"SUM(AA759:AA759)","v":0},0,"UACCT569",{"$f":"ROUND(SUM(-H760,J760:N760),0)","v":0},{"$f":"ROUND(J760-Q760-R760,0)","v":0},{"$f":"ROUND(K760-T760-U760,0)","v":0},{"$f":"ROUND(L760-W760-X760-Y760-Z760-AA760,0)","v":0}]
[761]
[762,570,"Maintenance of Station Equipment"]
[763,null,null,"JBG",570,"JBG","ACCT570JBG",{"$f":"'JAM Download'!E670","v":62738.484273473929},"T",{"$f":"VLOOKUP($I763,Func,2)*$H763","v":0},{"$f":"VLOOKUP($I763,Func,3)*$H763","v":62738.484273473929},{"$f":"VLOOKUP($I763,Func,5)*$H763","v":0},{"$f":"VLOOKUP($I763,Func,6)*$H763","v":0},{"$f":"VLOOKUP($I763,Func,7)*$H763","v":0},null,null,null,null,{"$f":"Demand","v":0.38},{"$f":"+K763*S763","v":23840.624023920092},{"$f":"(1-S763)*K763","v":38897.860249553836},null,null,null,null,null,null,null,"UACCT570JBG",{"$f":"ROUND(SUM(-H763,J763:N763),0)","v":0},{"$f":"ROUND(J763-Q763-R763,0)","v":0},{"$f":"ROUND(K763-T763-U763,0)","v":0},{"$f":"ROUND(L763-W763-X763-Y763-Z763-AA763,0)","v":0}]
[764,null,null,"SG/CAGW",570,"SG","ACCT570SG",{"$f":"'JAM Download'!E669+'JAM Download'!E671+'JAM Download'!E672","v":786987.00688845606},"T",{"$f":"VLOOKUP($I764,Func,2)*$H764","v":0},{"$f":"VLOOKUP($I764,Func,3)*$H764","v":786987.00688845606},{"$f":"VLOOKUP($I764,Func,5)*$H764","v":0},{"$f":"VLOOKUP($I764,Func,6)*$H764","v":0},{"$f":"VLOOKUP($I764,Func,7)*$H764","v":0},null,null,null,null,{"$f":"Demand","v":0.38},{"$f":"+K764*S764","v":299055.06261761329},{"$f":"(1-S764)*K764","v":487931.94427084277},null,null,null,null,null,null,null,"UACCT570DNPTU",{"$f":"ROUND(SUM(-H764,J764:N764),0)","v":0},{"$f":"ROUND(J764-Q764-R764,0)","v":0},{"$f":"ROUND(K764-T764-U764,0)","v":0},{"$f":"ROUND(L764-W764-X764-Y764-Z764-AA764,0)","v":0}]
[{"$f":"A764+1","v":765},null,null,null,null,null,"ACCT570",{"$f":"'JAM Download'!E673","v":849725.49116192991},null,{"$f":"SUM(J763:J764)","v":0},{"$f":"SUM(K763:K764)","v":849725.49116193003},0,0,0,0,0,0,0,null,{"$f":"SUM(T763:T764)","v":322895.68664153339},{"$f":"SUM(U763:U764)","v":526829.80452039663},null,{"$f":"SUM(W763:W764)","v":0},{"$f":"SUM(X763:X764)","v":0},{"$f":"SUM(Y763:Y764)","v":0},{"$f":"SUM(Z763:Z764)","v":0},{"$f":"SUM(AA763:AA764)","v":0},0,"UACCT570",{"$f":"ROUND(SUM(-H765,J765:N765),0)","v":0},{"$f":"ROUND(J765-Q765-R765,0)","v":0},{"$f":"ROUND(K765-T765-U765,0)","v":0},{"$f":"ROUND(L765-W765-X765-Y765-Z765-AA765,0)","v":0}]
[766]
[767,571,"Maintenance of Overhead Lines"]
[768,null,null,"SG/CAGW",571,"SG","ACCT571SG",{"$f":"'JAM Download'!E676+'JAM Download'!E678+'JAM Download'!E679","v":2494919.6019937461},"T",{"$f":"VLOOKUP($I768,Func,2)*$H768","v":0},{"$f":"VLOOKUP($I768,Func,3)*$H768","v":2494919.6019937461},{"$f":"VLOOKUP($I768,Func,5)*$H768","v":0},{"$f":"VLOOKUP($I768,Func,6)*$H768","v":0},{"$f":"VLOOKUP($I768,Func,7)*$H768","v":0},null,null,null,null,{"$f":"Demand","v":0.38},{"$f":"+K768*S768","v":948069.44875762356},{"$f":"(1-S768)*K768","v":1546850.1532361226},null,null,null,null,null,null,null,"UACCT571DNPTU",{"$f":"ROUND(SUM(-H768,J768:N768),0)","v":0},{"$f":"ROUND(J768-Q768-R768,0)","v":0},{"$f":"ROUND(K768-T768-U768,0)","v":0},{"$f":"ROUND(L768-W768-X768-Y768-Z768-AA768,0)","v":0}]
[769,null,null,"JBG",571,"JBG","ACCT571JBG",{"$f":"'JAM Download'!E677","v":-468.54462983122704},"T",{"$f":"VLOOKUP($I769,Func,2)*$H769","v":0},{"$f":"VLOOKUP($I769,Func,3)*$H769","v":-468.54462983122704},{"$f":"VLOOKUP($I769,Func,5)*$H769","v":0},{"$f":"VLOOKUP($I769,Func,6)*$H769","v":0},{"$f":"VLOOKUP($I769,Func,7)*$H769","v":0},null,null,null,null,{"$f":"Demand","v":0.38},{"$f":"+K769*S769","v":-178.04695933586629},{"$f":"(1-S769)*K769","v":-290.49767049536075},null,null,null,null,null,null,null,"UACCT571JBG",{"$f":"ROUND(SUM(-H769,J769:N769),0)","v":0},{"$f":"ROUND(J769-Q769-R769,0)","v":0},{"$f":"ROUND(K769-T769-U769,0)","v":0},{"$f":"ROUND(L769-W769-X769-Y769-Z769-AA769,0)","v":0}]
[770,null,null,null,null,null,"ACCT571",{"$f":"'JAM Download'!E680","v":2494451.0573639148},null,{"$f":"SUM(J768:J769)","v":0},{"$f":"SUM(K768:K769)","v":2494451.0573639148},{"$f":"SUM(L768:L769)","v":0},{"$f":"SUM(M768:M769)","v":0},{"$f":"SUM(N768:N769)","v":0},null,null,{"$f":"SUM(Q768:Q769)","v":0},{"$f":"SUM(R768:R769)","v":0},null,{"$f":"SUM(T768:T769)","v":947891.40179828764},{"$f":"SUM(U768:U769)","v":1546559.6555656272},null,{"$f":"SUM(W768:W769)","v":0},{"$f":"SUM(X768:X769)","v":0},{"$f":"SUM(Y768:Y769)","v":0},{"$f":"SUM(Z768:Z769)","v":0},{"$f":"SUM(AA768:AA769)","v":0},0,"UACCT571",{"$f":"ROUND(SUM(-H770,J770:N770),0)","v":0},{"$f":"ROUND(J770-Q770-R770,0)","v":0},{"$f":"ROUND(K770-T770-U770,0)","v":0},{"$f":"ROUND(L770-W770-X770-Y770-Z770-AA770,0)","v":0}]
[771]
[772,572,"Maintenance of Underground Lines"]
[773,null,null,"CAGW",572,"CAGW","ACCT572CAGW",{"$f":"'JAM Download'!E683+'JAM Download'!E684+'JAM Download'!E685","v":7773.0297420073148},"T",{"$f":"VLOOKUP($I773,Func,2)*$H773","v":0},{"$f":"VLOOKUP($I773,Func,3)*$H773","v":7773.0297420073148},{"$f":"VLOOKUP($I773,Func,5)*$H773","v":0},{"$f":"VLOOKUP($I773,Func,6)*$H773","v":0},{"$f":"VLOOKUP($I773,Func,7)*$H773","v":0},null,null,null,null,{"$f":"Demand","v":0.38},{"$f":"+K773*S773","v":2953.7513019627795},{"$f":"(1-S773)*K773","v":4819.2784400445353},null,null,null,null,null,null,null,"UACCT572DNPTU",{"$f":"ROUND(SUM(-H773,J773:N773),0)","v":0},{"$f":"ROUND(J773-Q773-R773,0)","v":0},{"$f":"ROUND(K773-T773-U773,0)","v":0},{"$f":"ROUND(L773-W773-X773-Y773-Z773-AA773,0)","v":0}]
[774,null,null,null,null,null,"ACCT572",{"$f":"'JAM Download'!E686","v":7773.0297420073148},null,{"$f":"SUM(J773:J773)","v":0},{"$f":"SUM(K773:K773)","v":7773.0297420073148},{"$f":"SUM(L773:L773)","v":0},{"$f":"SUM(M773:M773)","v":0},{"$f":"SUM(N773:N773)","v":0},null,null,{"$f":"SUM(Q773:Q773)","v":0},{"$f":"SUM(R773:R773)","v":0},null,{"$f":"SUM(T773:T773)","v":2953.7513019627795},{"$f":"SUM(U773:U773)","v":4819.2784400445353},null,{"$f":"SUM(W773:W773)","v":0},{"$f":"SUM(X773:X773)","v":0},{"$f":"SUM(Y773:Y773)","v":0},{"$f":"SUM(Z773:Z773)","v":0},{"$f":"SUM(AA773:AA773)","v":0},0,"UACCT572",{"$f":"ROUND(SUM(-H774,J774:N774),0)","v":0},{"$f":"ROUND(J774-Q774-R774,0)","v":0},{"$f":"ROUND(K774-T774-U774,0)","v":0},{"$f":"ROUND(L774-W774-X774-Y774-Z774-AA774,0)","v":0}]
[775]
[776,573,"Maint of Misc. Transmission Plant"]
[777,null,null,"SG",573,"SG","ACCT573SG",{"$f":"'JAM Download'!E689+'JAM Download'!E690+'JAM Download'!E691","v":137427.49336317769},"T",{"$f":"VLOOKUP($I777,Func,2)*$H777","v":0},{"$f":"VLOOKUP($I777,Func,3)*$H777","v":137427.49336317769},{"$f":"VLOOKUP($I777,Func,5)*$H777","v":0},{"$f":"VLOOKUP($I777,Func,6)*$H777","v":0},{"$f":"VLOOKUP($I777,Func,7)*$H777","v":0},null,null,null,null,{"$f":"Demand","v":0.38},{"$f":"+K777*S777","v":52222.447478007525},{"$f":"(1-S777)*K777","v":85205.04588517017},null,null,null,null,null,null,null,"UACCT573DNPTU",{"$f":"ROUND(SUM(-H777,J777:N777),0)","v":0},{"$f":"ROUND(J777-Q777-R777,0)","v":0},{"$f":"ROUND(K777-T777-U777,0)","v":0},{"$f":"ROUND(L777-W777-X777-Y777-Z777-AA777,0)","v":0}]
[778,null,null,null,null,null,"ACCT573",{"$f":"'JAM Download'!E692","v":137427.49336317769},null,{"$f":"SUM(J777:J777)","v":0},{"$f":"SUM(K777:K777)","v":137427.49336317769},{"$f":"SUM(L777:L777)","v":0},{"$f":"SUM(M777:M777)","v":0},{"$f":"SUM(N777:N777)","v":0},null,null,{"$f":"SUM(Q777:Q777)","v":0},{"$f":"SUM(R777:R777)","v":0},null,{"$f":"SUM(T777:T777)","v":52222.447478007525},{"$f":"SUM(U777:U777)","v":85205.04588517017},null,{"$f":"SUM(W777:W777)","v":0},{"$f":"SUM(X777:X777)","v":0},{"$f":"SUM(Y777:Y777)","v":0},{"$f":"SUM(Z777:Z777)","v":0},{"$f":"SUM(AA777:AA777)","v":0},0,"UACCT573",{"$f":"ROUND(SUM(-H778,J778:N778),0)","v":0},{"$f":"ROUND(J778-Q778-R778,0)","v":0},{"$f":"ROUND(K778-T778-U778,0)","v":0},{"$f":"ROUND(L778-W778-X778-Y778-Z778-AA778,0)","v":0}]
[779]
[780,"TOTAL TRANSMISSION EXPENSE",null,null,null,null,null,{"$f":"'JAM Download'!E694","v":30912170.284866482},null,{"$f":"+J778+J774+J770+J765+J760+J756+J752+J748+J744+J735+J731+J726+J720+J715","v":0},{"$f":"+K778+K774+K770+K765+K760+K756+K752+K748+K744+K735+K731+K726+K720+K715","v":30912170.284866486},{"$f":"+L778+L774+L770+L765+L760+L756+L752+L748+L744+L735+L731+L726+L720+L715","v":0},{"$f":"+M778+M774+M770+M765+M760+M756+M752+M748+M744+M735+M731+M726+M720+M715","v":0},{"$f":"+N778+N774+N770+N765+N760+N756+N752+N748+N744+N735+N731+N726+N720+N715","v":0},null,null,{"$f":"+Q778+Q774+Q770+Q765+Q760+Q756+Q752+Q748+Q744+Q735+Q731+Q726+Q720+Q715","v":0},{"$f":"+R778+R774+R770+R765+R760+R756+R752+R748+R744+R735+R731+R726+R720+R715","v":0},null,{"$f":"+T778+T774+T770+T765+T760+T756+T752+T748+T744+T735+T731+T726+T720+T715","v":11746624.708249263},{"$f":"+U778+U774+U770+U765+U760+U756+U752+U748+U744+U735+U731+U726+U720+U715","v":19165545.576617222},null,{"$f":"+W778+W774+W770+W765+W760+W756+W752+W748+W744+W735+W731+W726+W720+W715","v":0},{"$f":"+X778+X774+X770+X765+X760+X756+X752+X748+X744+X735+X731+X726+X720+X715","v":0},{"$f":"+Y778+Y774+Y770+Y765+Y760+Y756+Y752+Y748+Y744+Y735+Y731+Y726+Y720+Y715","v":0},{"$f":"+Z778+Z774+Z770+Z765+Z760+Z756+Z752+Z748+Z744+Z735+Z731+Z726+Z720+Z715","v":0},{"$f":"+AA778+AA774+AA770+AA765+AA760+AA756+AA752+AA748+AA744+AA735+AA731+AA726+AA720+AA715","v":0},0,null,{"$f":"ROUND(SUM(-H780,J780:N780),0)","v":0},{"$f":"ROUND(J780-Q780-R780,0)","v":0},{"$f":"ROUND(K780-T780-U780,0)","v":0},{"$f":"ROUND(L780-W780-X780-Y780-Z780-AA780,0)","v":0}]
[781]
[782]
[783]
[784]
[785]
[786,"FERC",null,"DESCRIPTION &","FERC",null,"RANGE",{"$f":"+$H$250","v":"Jurisdictional"},"FUNC","GEN","TRN","DIS","RETAIL","MISC",null,"D / E","GEN","GEN","D / E","TRN","TRN","DIS","DIS","DIS","DIS","DIS","DIS","DIS","Unbundled ACCT:","Function","Generation","Transmission","Distribution"]
[787,"ACCT",null,"CONSENSUS FACTOR","ACCT","FACTOR","NAME","ADJ Total","FACTOR","TOTAL","TOTAL","TOTAL","TOTAL","TOTAL",null,"SPLIT","DEMAND","ENERGY","SPLIT","DEMAND","ENERGY","SPLIT","SUBS","P & C","XFMR","METER","SERVICE","METER","TOTAL","Check","Check","Check","Check"]
[788,580,"Operation Supervision & Engineering"]
[789,null,null,"S",580,"S","ACCT580S",{"$f":"'JAM Download'!E704","v":58132.65385866748},"DPW",{"$f":"VLOOKUP($I789,Func,2)*$H789","v":0},{"$f":"VLOOKUP($I789,Func,3)*$H789","v":0},{"$f":"VLOOKUP($I789,Func,5)*$H789","v":58132.65385866748},{"$f":"VLOOKUP($I789,Func,6)*$H789","v":0},{"$f":"VLOOKUP($I789,Func,7)*$H789","v":0},null,null,null,null,null,null,null,"PLNT",{"$f":"+$L789*VLOOKUP($V789,DisFac,2)","v":6829.3996095165476},{"$f":"+$L789*VLOOKUP($V789,DisFac,3)","v":27976.708027847391},{"$f":"+$L789*VLOOKUP($V789,DisFac,4)","v":14187.745505794404},{"$f":"+$L789*VLOOKUP($V789,DisFac,5)","v":1643.3343861726707},{"$f":"+$L789*VLOOKUP($V789,DisFac,6)","v":7495.466329336462},1643.3343861726707,"UACCT580S",{"$f":"ROUND(SUM(-H789,J789:N789),0)","v":0},{"$f":"ROUND(J789-Q789-R789,0)","v":0},{"$f":"ROUND(K789-T789-U789,0)","v":0},{"$f":"ROUND(L789-W789-X789-Y789-Z789-AA789,0)","v":0}]
[790,null,null,"DPW",580,"SNPD","ACCT580SNPD",{"$f":"'JAM Download'!E705","v":851678.31344351894},"DPW",{"$f":"VLOOKUP($I790,Func,2)*$H790","v":0},{"$f":"VLOOKUP($I790,Func,3)*$H790","v":0},{"$f":"VLOOKUP($I790,Func,5)*$H790","v":851678.31344351894},{"$f":"VLOOKUP($I790,Func,6)*$H790","v":0},{"$f":"VLOOKUP($I790,Func,7)*$H790","v":0},null,null,null,null,null,null,null,"PLNT",{"$f":"+$L790*VLOOKUP($V790,DisFac,2)","v":100054.80835961623},{"$f":"+$L790*VLOOKUP($V790,DisFac,3)","v":409875.58501608361},{"$f":"+$L790*VLOOKUP($V790,DisFac,4)","v":207858.99768687802},{"$f":"+$L790*VLOOKUP($V790,DisFac,5)","v":24075.836307800073},{"$f":"+$L790*VLOOKUP($V790,DisFac,6)","v":109813.08607314096},24075.836307800073,"UACCT580DNPD",{"$f":"ROUND(SUM(-H790,J790:N790),0)","v":0},{"$f":"ROUND(J790-Q790-R790,0)","v":0},{"$f":"ROUND(K790-T790-U790,0)","v":0},{"$f":"ROUND(L790-W790-X790-Y790-Z790-AA790,0)","v":0}]
[791,null,null,null,null,null,"ACCT580",{"$f":"'JAM Download'!E706","v":909810.96730218641},null,{"$f":"SUM(J789:J790)","v":0},{"$f":"SUM(K789:K790)","v":0},{"$f":"SUM(L789:L790)","v":909810.96730218641},{"$f":"SUM(M789:M790)","v":0},{"$f":"SUM(N789:N790)","v":0},null,null,{"$f":"SUM(Q789:Q790)","v":0},{"$f":"SUM(R789:R790)","v":0},null,{"$f":"SUM(T789:T790)","v":0},{"$f":"SUM(U789:U790)","v":0},null,{"$f":"SUM(W789:W790)","v":106884.20796913278},{"$f":"SUM(X789:X790)","v":437852.29304393101},{"$f":"SUM(Y789:Y790)","v":222046.74319267244},{"$f":"SUM(Z789:Z790)","v":25719.170693972745},{"$f":"SUM(AA789:AA790)","v":117308.55240247742},25719.170693972745,"UACCT580",{"$f":"ROUND(SUM(-H791,J791:N791),0)","v":0},{"$f":"ROUND(J791-Q791-R791,0)","v":0},{"$f":"ROUND(K791-T791-U791,0)","v":0},{"$f":"ROUND(L791-W791-X791-Y791-Z791-AA791,0)","v":0}]
[792]
[793,581,"Load Dispatching"]
[794,null,null,"S",581,"S","ACCT581S",{"$f":"'JAM Download'!E709","v":0},"DPW",{"$f":"VLOOKUP($I794,Func,2)*$H794","v":0},{"$f":"VLOOKUP($I794,Func,3)*$H794","v":0},{"$f":"VLOOKUP($I794,Func,5)*$H794","v":0},{"$f":"VLOOKUP($I794,Func,6)*$H794","v":0},{"$f":"VLOOKUP($I794,Func,7)*$H794","v":0},null,null,null,null,null,null,null,"SUBS",{"$f":"+$L794*VLOOKUP($V794,DisFac,2)","v":0},{"$f":"+$L794*VLOOKUP($V794,DisFac,3)","v":0},{"$f":"+$L794*VLOOKUP($V794,DisFac,4)","v":0},{"$f":"+$L794*VLOOKUP($V794,DisFac,5)","v":0},{"$f":"+$L794*VLOOKUP($V794,DisFac,6)","v":0},0,"UACCT581S",{"$f":"ROUND(SUM(-H794,J794:N794),0)","v":0},{"$f":"ROUND(J794-Q794-R794,0)","v":0},{"$f":"ROUND(K794-T794-U794,0)","v":0},{"$f":"ROUND(L794-W794-X794-Y794-Z794-AA794,0)","v":0}]
[795,null,null,"DPW",581,"SNPD","ACCT581SNPD",{"$f":"'JAM Download'!E710","v":852248.379117648},"DPW",{"$f":"VLOOKUP($I795,Func,2)*$H795","v":0},{"$f":"VLOOKUP($I795,Func,3)*$H795","v":0},{"$f":"VLOOKUP($I795,Func,5)*$H795","v":852248.379117648},{"$f":"VLOOKUP($I795,Func,6)*$H795","v":0},{"$f":"VLOOKUP($I795,Func,7)*$H795","v":0},null,null,null,null,null,null,null,"SUBS",{"$f":"+$L795*VLOOKUP($V795,DisFac,2)","v":852248.379117648},{"$f":"+$L795*VLOOKUP($V795,DisFac,3)","v":0},{"$f":"+$L795*VLOOKUP($V795,DisFac,4)","v":0},{"$f":"+$L795*VLOOKUP($V795,DisFac,5)","v":0},{"$f":"+$L795*VLOOKUP($V795,DisFac,6)","v":0},0,"UACCT581DNPD",{"$f":"ROUND(SUM(-H795,J795:N795),0)","v":0},{"$f":"ROUND(J795-Q795-R795,0)","v":0},{"$f":"ROUND(K795-T795-U795,0)","v":0},{"$f":"ROUND(L795-W795-X795-Y795-Z795-AA795,0)","v":0}]
[796,null,null,null,null,null,"ACCT581",{"$f":"'JAM Download'!E711","v":852248.379117648},null,{"$f":"SUM(J794:J795)","v":0},{"$f":"SUM(K794:K795)","v":0},{"$f":"SUM(L794:L795)","v":852248.379117648},{"$f":"SUM(M794:M795)","v":0},{"$f":"SUM(N794:N795)","v":0},null,null,{"$f":"SUM(Q794:Q795)","v":0},{"$f":"SUM(R794:R795)","v":0},null,{"$f":"SUM(T794:T795)","v":0},{"$f":"SUM(U794:U795)","v":0},null,{"$f":"SUM(W794:W795)","v":852248.379117648},{"$f":"SUM(X794:X795)","v":0},{"$f":"SUM(Y794:Y795)","v":0},{"$f":"SUM(Z794:Z795)","v":0},{"$f":"SUM(AA794:AA795)","v":0},0,"UACCT581",{"$f":"ROUND(SUM(-H796,J796:N796),0)","v":0},{"$f":"ROUND(J796-Q796-R796,0)","v":0},{"$f":"ROUND(K796-T796-U796,0)","v":0},{"$f":"ROUND(L796-W796-X796-Y796-Z796-AA796,0)","v":0}]
[797]
[798,582,"Station Expense"]
[799,null,null,"S",582,"S","ACCT582S",{"$f":"'JAM Download'!E714","v":314983.15000000002},"DPW",{"$f":"VLOOKUP($I799,Func,2)*$H799","v":0},{"$f":"VLOOKUP($I799,Func,3)*$H799","v":0},{"$f":"VLOOKUP($I799,Func,5)*$H799","v":314983.15000000002},{"$f":"VLOOKUP($I799,Func,6)*$H799","v":0},{"$f":"VLOOKUP($I799,Func,7)*$H799","v":0},null,null,null,null,null,null,null,"SUBS",{"$f":"+$L799*VLOOKUP($V799,DisFac,2)","v":314983.15000000002},{"$f":"+$L799*VLOOKUP($V799,DisFac,3)","v":0},{"$f":"+$L799*VLOOKUP($V799,DisFac,4)","v":0},{"$f":"+$L799*VLOOKUP($V799,DisFac,5)","v":0},{"$f":"+$L799*VLOOKUP($V799,DisFac,6)","v":0},0,"UACCT582S",{"$f":"ROUND(SUM(-H799,J799:N799),0)","v":0},{"$f":"ROUND(J799-Q799-R799,0)","v":0},{"$f":"ROUND(K799-T799-U799,0)","v":0},{"$f":"ROUND(L799-W799-X799-Y799-Z799-AA799,0)","v":0}]
[800,null,null,"DPW",582,"SNPD","ACCT582SNPD",{"$f":"'JAM Download'!E715","v":2352.5851414134877},"DPW",{"$f":"VLOOKUP($I800,Func,2)*$H800","v":0},{"$f":"VLOOKUP($I800,Func,3)*$H800","v":0},{"$f":"VLOOKUP($I800,Func,5)*$H800","v":2352.5851414134877},{"$f":"VLOOKUP($I800,Func,6)*$H800","v":0},{"$f":"VLOOKUP($I800,Func,7)*$H800","v":0},null,null,null,null,null,null,null,"SUBS",{"$f":"+$L800*VLOOKUP($V800,DisFac,2)","v":2352.5851414134877},{"$f":"+$L800*VLOOKUP($V800,DisFac,3)","v":0},{"$f":"+$L800*VLOOKUP($V800,DisFac,4)","v":0},{"$f":"+$L800*VLOOKUP($V800,DisFac,5)","v":0},{"$f":"+$L800*VLOOKUP($V800,DisFac,6)","v":0},0,"UACCT582DNPD",{"$f":"ROUND(SUM(-H800,J800:N800),0)","v":0},{"$f":"ROUND(J800-Q800-R800,0)","v":0},{"$f":"ROUND(K800-T800-U800,0)","v":0},{"$f":"ROUND(L800-W800-X800-Y800-Z800-AA800,0)","v":0}]
[801,null,null,null,null,null,"ACCT582",{"$f":"'JAM Download'!E716","v":317335.73514141352},null,{"$f":"SUM(J799:J800)","v":0},{"$f":"SUM(K799:K800)","v":0},{"$f":"SUM(L799:L800)","v":317335.73514141352},{"$f":"SUM(M799:M800)","v":0},{"$f":"SUM(N799:N800)","v":0},null,null,{"$f":"SUM(Q799:Q800)","v":0},{"$f":"SUM(R799:R800)","v":0},null,{"$f":"SUM(T799:T800)","v":0},{"$f":"SUM(U799:U800)","v":0},null,{"$f":"SUM(W799:W800)","v":317335.73514141352},{"$f":"SUM(X799:X800)","v":0},{"$f":"SUM(Y799:Y800)","v":0},{"$f":"SUM(Z799:Z800)","v":0},{"$f":"SUM(AA799:AA800)","v":0},0,"UACCT582",{"$f":"ROUND(SUM(-H801,J801:N801),0)","v":0},{"$f":"ROUND(J801-Q801-R801,0)","v":0},{"$f":"ROUND(K801-T801-U801,0)","v":0},{"$f":"ROUND(L801-W801-X801-Y801-Z801-AA801,0)","v":0}]
[802]
[803,583,"Overhead Line Expenses"]
[804,null,null,"S",583,"S","ACCT583S",{"$f":"'JAM Download'!E719","v":575479.6},"DPW",{"$f":"VLOOKUP($I804,Func,2)*$H804","v":0},{"$f":"VLOOKUP($I804,Func,3)*$H804","v":0},{"$f":"VLOOKUP($I804,Func,5)*$H804","v":575479.6},{"$f":"VLOOKUP($I804,Func,6)*$H804","v":0},{"$f":"VLOOKUP($I804,Func,7)*$H804","v":0},null,null,null,null,null,null,null,"PC",{"$f":"+$L804*VLOOKUP($V804,DisFac,2)","v":0},{"$f":"+$L804*VLOOKUP($V804,DisFac,3)","v":575479.6},{"$f":"+$L804*VLOOKUP($V804,DisFac,4)","v":0},{"$f":"+$L804*VLOOKUP($V804,DisFac,5)","v":0},{"$f":"+$L804*VLOOKUP($V804,DisFac,6)","v":0},0,"UACCT583S",{"$f":"ROUND(SUM(-H804,J804:N804),0)","v":0},{"$f":"ROUND(J804-Q804-R804,0)","v":0},{"$f":"ROUND(K804-T804-U804,0)","v":0},{"$f":"ROUND(L804-W804-X804-Y804-Z804-AA804,0)","v":0}]
[805,null,null,"DPW",583,"SNPD","ACCT583SNPD",{"$f":"'JAM Download'!E720","v":1155.4869086323299},"DPW",{"$f":"VLOOKUP($I805,Func,2)*$H805","v":0},{"$f":"VLOOKUP($I805,Func,3)*$H805","v":0},{"$f":"VLOOKUP($I805,Func,5)*$H805","v":1155.4869086323299},{"$f":"VLOOKUP($I805,Func,6)*$H805","v":0},{"$f":"VLOOKUP($I805,Func,7)*$H805","v":0},null,null,null,null,null,null,null,"PC",{"$f":"+$L805*VLOOKUP($V805,DisFac,2)","v":0},{"$f":"+$L805*VLOOKUP($V805,DisFac,3)","v":1155.4869086323299},{"$f":"+$L805*VLOOKUP($V805,DisFac,4)","v":0},{"$f":"+$L805*VLOOKUP($V805,DisFac,5)","v":0},{"$f":"+$L805*VLOOKUP($V805,DisFac,6)","v":0},0,"UACCT583DNPD",{"$f":"ROUND(SUM(-H805,J805:N805),0)","v":0},{"$f":"ROUND(J805-Q805-R805,0)","v":0},{"$f":"ROUND(K805-T805-U805,0)","v":0},{"$f":"ROUND(L805-W805-X805-Y805-Z805-AA805,0)","v":0}]
[806,null,null,null,null,null,"ACCT583",{"$f":"'JAM Download'!E721","v":576635.08690863231},null,{"$f":"SUM(J804:J805)","v":0},{"$f":"SUM(K804:K805)","v":0},{"$f":"SUM(L804:L805)","v":576635.08690863231},{"$f":"SUM(M804:M805)","v":0},{"$f":"SUM(N804:N805)","v":0},null,null,{"$f":"SUM(Q804:Q805)","v":0},{"$f":"SUM(R804:R805)","v":0},null,{"$f":"SUM(T804:T805)","v":0},{"$f":"SUM(U804:U805)","v":0},null,{"$f":"SUM(W804:W805)","v":0},{"$f":"SUM(X804:X805)","v":576635.08690863231},{"$f":"SUM(Y804:Y805)","v":0},{"$f":"SUM(Z804:Z805)","v":0},{"$f":"SUM(AA804:AA805)","v":0},0,"UACCT583",{"$f":"ROUND(SUM(-H806,J806:N806),0)","v":0},{"$f":"ROUND(J806-Q806-R806,0)","v":0},{"$f":"ROUND(K806-T806-U806,0)","v":0},{"$f":"ROUND(L806-W806-X806-Y806-Z806-AA806,0)","v":0}]
[807]
[808,584,"Underground Line Expense"]
[809,null,null,"S",584,"S","ACCT584S",{"$f":"'JAM Download'!E724","v":0},"DPW",{"$f":"VLOOKUP($I809,Func,2)*$H809","v":0},{"$f":"VLOOKUP($I809,Func,3)*$H809","v":0},{"$f":"VLOOKUP($I809,Func,5)*$H809","v":0},{"$f":"VLOOKUP($I809,Func,6)*$H809","v":0},{"$f":"VLOOKUP($I809,Func,7)*$H809","v":0},null,null,null,null,null,null,null,"PC",{"$f":"+$L809*VLOOKUP($V809,DisFac,2)","v":0},{"$f":"+$L809*VLOOKUP($V809,DisFac,3)","v":0},{"$f":"+$L809*VLOOKUP($V809,DisFac,4)","v":0},{"$f":"+$L809*VLOOKUP($V809,DisFac,5)","v":0},{"$f":"+$L809*VLOOKUP($V809,DisFac,6)","v":0},0,"UACCT584S",{"$f":"ROUND(SUM(-H809,J809:N809),0)","v":0},{"$f":"ROUND(J809-Q809-R809,0)","v":0},{"$f":"ROUND(K809-T809-U809,0)","v":0},{"$f":"ROUND(L809-W809-X809-Y809-Z809-AA809,0)","v":0}]
[810,null,null,"DPW",584,"SNPD","ACCT584SNPD",{"$f":"'JAM Download'!E725","v":67.300607506355803},"DPW",{"$f":"VLOOKUP($I810,Func,2)*$H810","v":0},{"$f":"VLOOKUP($I810,Func,3)*$H810","v":0},{"$f":"VLOOKUP($I810,Func,5)*$H810","v":67.300607506355803},{"$f":"VLOOKUP($I810,Func,6)*$H810","v":0},{"$f":"VLOOKUP($I810,Func,7)*$H810","v":0},null,null,null,null,null,null,null,"PC",{"$f":"+$L810*VLOOKUP($V810,DisFac,2)","v":0},{"$f":"+$L810*VLOOKUP($V810,DisFac,3)","v":67.300607506355803},{"$f":"+$L810*VLOOKUP($V810,DisFac,4)","v":0},{"$f":"+$L810*VLOOKUP($V810,DisFac,5)","v":0},{"$f":"+$L810*VLOOKUP($V810,DisFac,6)","v":0},0,"UACCT584DNPD",{"$f":"ROUND(SUM(-H810,J810:N810),0)","v":0},{"$f":"ROUND(J810-Q810-R810,0)","v":0},{"$f":"ROUND(K810-T810-U810,0)","v":0},{"$f":"ROUND(L810-W810-X810-Y810-Z810-AA810,0)","v":0}]
[811,null,null,null,null,null,"ACCT584",{"$f":"'JAM Download'!E726","v":67.300607506355803},null,{"$f":"SUM(J809:J810)","v":0},{"$f":"SUM(K809:K810)","v":0},{"$f":"SUM(L809:L810)","v":67.300607506355803},{"$f":"SUM(M809:M810)","v":0},{"$f":"SUM(N809:N810)","v":0},null,null,{"$f":"SUM(Q809:Q810)","v":0},{"$f":"SUM(R809:R810)","v":0},null,{"$f":"SUM(T809:T810)","v":0},{"$f":"SUM(U809:U810)","v":0},null,{"$f":"SUM(W809:W810)","v":0},{"$f":"SUM(X809:X810)","v":67.300607506355803},{"$f":"SUM(Y809:Y810)","v":0},{"$f":"SUM(Z809:Z810)","v":0},{"$f":"SUM(AA809:AA810)","v":0},0,"UACCT584",{"$f":"ROUND(SUM(-H811,J811:N811),0)","v":0},{"$f":"ROUND(J811-Q811-R811,0)","v":0},{"$f":"ROUND(K811-T811-U811,0)","v":0},{"$f":"ROUND(L811-W811-X811-Y811-Z811-AA811,0)","v":0}]
[812]
[813,585,"Street Lighting & Signal Systems"]
[814,null,null,"S",585,"S","ACCT585S",{"$f":"'JAM Download'!E729","v":0},"DPW",{"$f":"VLOOKUP($I814,Func,2)*$H814","v":0},{"$f":"VLOOKUP($I814,Func,3)*$H814","v":0},{"$f":"VLOOKUP($I814,Func,5)*$H814","v":0},{"$f":"VLOOKUP($I814,Func,6)*$H814","v":0},{"$f":"VLOOKUP($I814,Func,7)*$H814","v":0},null,null,null,null,null,null,null,"PC",{"$f":"+$L814*VLOOKUP($V814,DisFac,2)","v":0},{"$f":"+$L814*VLOOKUP($V814,DisFac,3)","v":0},{"$f":"+$L814*VLOOKUP($V814,DisFac,4)","v":0},{"$f":"+$L814*VLOOKUP($V814,DisFac,5)","v":0},{"$f":"+$L814*VLOOKUP($V814,DisFac,6)","v":0},0,"UACCT585S",{"$f":"ROUND(SUM(-H814,J814:N814),0)","v":0},{"$f":"ROUND(J814-Q814-R814,0)","v":0},{"$f":"ROUND(K814-T814-U814,0)","v":0},{"$f":"ROUND(L814-W814-X814-Y814-Z814-AA814,0)","v":0}]
[815,null,null,"DPW",585,"SNPD","ACCT585SNPD",{"$f":"'JAM Download'!E730","v":14256.5274335944},"DPW",{"$f":"VLOOKUP($I815,Func,2)*$H815","v":0},{"$f":"VLOOKUP($I815,Func,3)*$H815","v":0},{"$f":"VLOOKUP($I815,Func,5)*$H815","v":14256.5274335944},{"$f":"VLOOKUP($I815,Func,6)*$H815","v":0},{"$f":"VLOOKUP($I815,Func,7)*$H815","v":0},null,null,null,null,null,null,null,"METR",{"$f":"+$L815*VLOOKUP($V815,DisFac,2)","v":0},{"$f":"+$L815*VLOOKUP($V815,DisFac,3)","v":0},{"$f":"+$L815*VLOOKUP($V815,DisFac,4)","v":0},{"$f":"+$L815*VLOOKUP($V815,DisFac,5)","v":14256.5274335944},{"$f":"+$L815*VLOOKUP($V815,DisFac,6)","v":0},14256.5274335944,"UACCT585DNPD",{"$f":"ROUND(SUM(-H815,J815:N815),0)","v":0},{"$f":"ROUND(J815-Q815-R815,0)","v":0},{"$f":"ROUND(K815-T815-U815,0)","v":0},{"$f":"ROUND(L815-W815-X815-Y815-Z815-AA815,0)","v":0}]
[816,null,null,null,null,null,"ACCT585",{"$f":"'JAM Download'!E731","v":14256.5274335944},null,{"$f":"SUM(J814)","v":0},{"$f":"SUM(K814:K815)","v":0},{"$f":"SUM(L814:L815)","v":14256.5274335944},{"$f":"SUM(M814:M815)","v":0},{"$f":"SUM(N814:N815)","v":0},null,null,{"$f":"SUM(Q814:Q815)","v":0},{"$f":"SUM(R814:R815)","v":0},null,{"$f":"SUM(T814:T815)","v":0},{"$f":"SUM(U814:U815)","v":0},null,{"$f":"SUM(W814:W815)","v":0},{"$f":"SUM(X814:X815)","v":0},{"$f":"SUM(Y814:Y815)","v":0},{"$f":"SUM(Z814:Z815)","v":14256.5274335944},{"$f":"SUM(AA814:AA815)","v":0},14256.5274335944,"UACCT585",{"$f":"ROUND(SUM(-H816,J816:N816),0)","v":0},{"$f":"ROUND(J816-Q816-R816,0)","v":0},{"$f":"ROUND(K816-T816-U816,0)","v":0},{"$f":"ROUND(L816-W816-X816-Y816-Z816-AA816,0)","v":0}]
[817]
[818,586,"Meter Expenses"]
[819,null,null,"S",586,"S","ACCT586S",{"$f":"'JAM Download'!E734","v":556244},"DPW",{"$f":"VLOOKUP($I819,Func,2)*$H819","v":0},{"$f":"VLOOKUP($I819,Func,3)*$H819","v":0},{"$f":"VLOOKUP($I819,Func,5)*$H819","v":556244},{"$f":"VLOOKUP($I819,Func,6)*$H819","v":0},{"$f":"VLOOKUP($I819,Func,7)*$H819","v":0},null,null,null,null,null,null,null,"METR",{"$f":"+$L819*VLOOKUP($V819,DisFac,2)","v":0},{"$f":"+$L819*VLOOKUP($V819,DisFac,3)","v":0},{"$f":"+$L819*VLOOKUP($V819,DisFac,4)","v":0},{"$f":"+$L819*VLOOKUP($V819,DisFac,5)","v":556244},{"$f":"+$L819*VLOOKUP($V819,DisFac,6)","v":0},556244,"UACCT586S",{"$f":"ROUND(SUM(-H819,J819:N819),0)","v":0},{"$f":"ROUND(J819-Q819-R819,0)","v":0},{"$f":"ROUND(K819-T819-U819,0)","v":0},{"$f":"ROUND(L819-W819-X819-Y819-Z819-AA819,0)","v":0}]
[820,null,null,"DPW",586,"SNPD","ACCT586SNPD",{"$f":"'JAM Download'!E735","v":79904.154248911218},"DPW",{"$f":"VLOOKUP($I820,Func,2)*$H820","v":0},{"$f":"VLOOKUP($I820,Func,3)*$H820","v":0},{"$f":"VLOOKUP($I820,Func,5)*$H820","v":79904.154248911218},{"$f":"VLOOKUP($I820,Func,6)*$H820","v":0},{"$f":"VLOOKUP($I820,Func,7)*$H820","v":0},null,null,null,null,null,null,null,"METR",{"$f":"+$L820*VLOOKUP($V820,DisFac,2)","v":0},{"$f":"+$L820*VLOOKUP($V820,DisFac,3)","v":0},{"$f":"+$L820*VLOOKUP($V820,DisFac,4)","v":0},{"$f":"+$L820*VLOOKUP($V820,DisFac,5)","v":79904.154248911218},{"$f":"+$L820*VLOOKUP($V820,DisFac,6)","v":0},79904.154248911218,"UACCT586DNPD",{"$f":"ROUND(SUM(-H820,J820:N820),0)","v":0},{"$f":"ROUND(J820-Q820-R820,0)","v":0},{"$f":"ROUND(K820-T820-U820,0)","v":0},{"$f":"ROUND(L820-W820-X820-Y820-Z820-AA820,0)","v":0}]
[821,null,null,null,null,null,"ACCT586",{"$f":"'JAM Download'!E736","v":636148.15424891119},null,{"$f":"SUM(J819:J820)","v":0},{"$f":"SUM(K819:K820)","v":0},{"$f":"SUM(L819:L820)","v":636148.15424891119},{"$f":"SUM(M819:M820)","v":0},{"$f":"SUM(N819:N820)","v":0},null,null,{"$f":"SUM(Q819:Q820)","v":0},{"$f":"SUM(R819:R820)","v":0},null,{"$f":"SUM(T819:T820)","v":0},{"$f":"SUM(U819:U820)","v":0},null,{"$f":"SUM(W819:W820)","v":0},{"$f":"SUM(X819:X820)","v":0},{"$f":"SUM(Y819:Y820)","v":0},{"$f":"SUM(Z819:Z820)","v":636148.15424891119},{"$f":"SUM(AA819:AA820)","v":0},636148.15424891119,"UACCT586",{"$f":"ROUND(SUM(-H821,J821:N821),0)","v":0},{"$f":"ROUND(J821-Q821-R821,0)","v":0},{"$f":"ROUND(K821-T821-U821,0)","v":0},{"$f":"ROUND(L821-W821-X821-Y821-Z821-AA821,0)","v":0}]
[822]
[823,587,"Customer Installation Expenses"]
[824,null,null,"S",587,"S","ACCT587S",{"$f":"'JAM Download'!E739","v":947827.17},"DPW",{"$f":"VLOOKUP($I824,Func,2)*$H824","v":0},{"$f":"VLOOKUP($I824,Func,3)*$H824","v":0},{"$f":"VLOOKUP($I824,Func,5)*$H824","v":947827.17},{"$f":"VLOOKUP($I824,Func,6)*$H824","v":0},{"$f":"VLOOKUP($I824,Func,7)*$H824","v":0},null,null,null,null,null,null,null,"PC",{"$f":"+$L824*VLOOKUP($V824,DisFac,2)","v":0},{"$f":"+$L824*VLOOKUP($V824,DisFac,3)","v":947827.17},{"$f":"+$L824*VLOOKUP($V824,DisFac,4)","v":0},{"$f":"+$L824*VLOOKUP($V824,DisFac,5)","v":0},{"$f":"+$L824*VLOOKUP($V824,DisFac,6)","v":0},0,"UACCT587S",{"$f":"ROUND(SUM(-H824,J824:N824),0)","v":0},{"$f":"ROUND(J824-Q824-R824,0)","v":0},{"$f":"ROUND(K824-T824-U824,0)","v":0},{"$f":"ROUND(L824-W824-X824-Y824-Z824-AA824,0)","v":0}]
[825,null,null,"DPW",587,"SNPD","ACCT587SNPD",{"$f":"'JAM Download'!E740","v":0},"DPW",{"$f":"VLOOKUP($I825,Func,2)*$H825","v":0},{"$f":"VLOOKUP($I825,Func,3)*$H825","v":0},{"$f":"VLOOKUP($I825,Func,5)*$H825","v":0},{"$f":"VLOOKUP($I825,Func,6)*$H825","v":0},{"$f":"VLOOKUP($I825,Func,7)*$H825","v":0},null,null,null,null,null,null,null,"PC",{"$f":"+$L825*VLOOKUP($V825,DisFac,2)","v":0},{"$f":"+$L825*VLOOKUP($V825,DisFac,3)","v":0},{"$f":"+$L825*VLOOKUP($V825,DisFac,4)","v":0},{"$f":"+$L825*VLOOKUP($V825,DisFac,5)","v":0},{"$f":"+$L825*VLOOKUP($V825,DisFac,6)","v":0},0,"UACCT587DNPD",{"$f":"ROUND(SUM(-H825,J825:N825),0)","v":0},{"$f":"ROUND(J825-Q825-R825,0)","v":0},{"$f":"ROUND(K825-T825-U825,0)","v":0},{"$f":"ROUND(L825-W825-X825-Y825-Z825-AA825,0)","v":0}]
[826,null,null,null,null,null,"ACCT587",{"$f":"'JAM Download'!E741","v":947827.17},null,{"$f":"SUM(J824:J825)","v":0},{"$f":"SUM(K824:K825)","v":0},{"$f":"SUM(L824:L825)","v":947827.17},{"$f":"SUM(M824:M825)","v":0},{"$f":"SUM(N824:N825)","v":0},null,null,{"$f":"SUM(Q824:Q825)","v":0},{"$f":"SUM(R824:R825)","v":0},null,{"$f":"SUM(T824:T825)","v":0},{"$f":"SUM(U824:U825)","v":0},null,{"$f":"SUM(W824:W825)","v":0},{"$f":"SUM(X824:X825)","v":947827.17},{"$f":"SUM(Y824:Y825)","v":0},{"$f":"SUM(Z824:Z825)","v":0},{"$f":"SUM(AA824:AA825)","v":0},0,"UACCT587",{"$f":"ROUND(SUM(-H826,J826:N826),0)","v":0},{"$f":"ROUND(J826-Q826-R826,0)","v":0},{"$f":"ROUND(K826-T826-U826,0)","v":0},{"$f":"ROUND(L826-W826-X826-Y826-Z826-AA826,0)","v":0}]
[827]
[828,588,"Misc. Distribution Expenses"]
[{"$f":"A828+1","v":829},null,null,"S",588,"S","ACCT588S",{"$f":"'JAM Download'!E744","v":56180.82},"DPW",{"$f":"VLOOKUP($I829,Func,2)*$H829","v":0},{"$f":"VLOOKUP($I829,Func,3)*$H829","v":0},{"$f":"VLOOKUP($I829,Func,5)*$H829","v":56180.82},{"$f":"VLOOKUP($I829,Func,6)*$H829","v":0},{"$f":"VLOOKUP($I829,Func,7)*$H829","v":0},null,null,null,null,null,null,null,"PLNT2",{"$f":"+$L829*VLOOKUP($V829,DisFac,2)","v":11023.389175480288},{"$f":"+$L829*VLOOKUP($V829,DisFac,3)","v":45157.43082451971},{"$f":"+$L829*VLOOKUP($V829,DisFac,4)","v":0},{"$f":"+$L829*VLOOKUP($V829,DisFac,5)","v":0},{"$f":"+$L829*VLOOKUP($V829,DisFac,6)","v":0},0,"UACCT588S",{"$f":"ROUND(SUM(-H829,J829:N829),0)","v":0},{"$f":"ROUND(J829-Q829-R829,0)","v":0},{"$f":"ROUND(K829-T829-U829,0)","v":0},{"$f":"ROUND(L829-W829-X829-Y829-Z829-AA829,0)","v":0}]
[830,null,null,"DPW",588,"SNPD","ACCT588SNPD",{"$f":"'JAM Download'!E745","v":221429.81598494368},"DPW",{"$f":"VLOOKUP($I830,Func,2)*$H830","v":0},{"$f":"VLOOKUP($I830,Func,3)*$H830","v":0},{"$f":"VLOOKUP($I830,Func,5)*$H830","v":221429.81598494368},{"$f":"VLOOKUP($I830,Func,6)*$H830","v":0},{"$f":"VLOOKUP($I830,Func,7)*$H830","v":0},null,null,null,null,null,null,null,"PLNT2",{"$f":"+$L830*VLOOKUP($V830,DisFac,2)","v":43447.337305810419},{"$f":"+$L830*VLOOKUP($V830,DisFac,3)","v":177982.47867913326},{"$f":"+$L830*VLOOKUP($V830,DisFac,4)","v":0},{"$f":"+$L830*VLOOKUP($V830,DisFac,5)","v":0},{"$f":"+$L830*VLOOKUP($V830,DisFac,6)","v":0},0,"UACCT588DNPD",{"$f":"ROUND(SUM(-H830,J830:N830),0)","v":0},{"$f":"ROUND(J830-Q830-R830,0)","v":0},{"$f":"ROUND(K830-T830-U830,0)","v":0},{"$f":"ROUND(L830-W830-X830-Y830-Z830-AA830,0)","v":0}]
[831,null,null,null,null,null,"ACCT588",{"$f":"'JAM Download'!E746","v":277610.63598494366},null,{"$f":"SUM(J829:J830)","v":0},{"$f":"SUM(K829:K830)","v":0},{"$f":"SUM(L829:L830)","v":277610.63598494366},{"$f":"SUM(M829:M830)","v":0},{"$f":"SUM(N829:N830)","v":0},null,null,{"$f":"SUM(Q829:Q830)","v":0},{"$f":"SUM(R829:R830)","v":0},null,{"$f":"SUM(T829:T830)","v":0},{"$f":"SUM(U829:U830)","v":0},null,{"$f":"SUM(W829:W830)","v":54470.726481290709},{"$f":"SUM(X829:X830)","v":223139.90950365298},{"$f":"SUM(Y829:Y830)","v":0},{"$f":"SUM(Z829:Z830)","v":0},{"$f":"SUM(AA829:AA830)","v":0},0,"UACCT588",{"$f":"ROUND(SUM(-H831,J831:N831),0)","v":0},{"$f":"ROUND(J831-Q831-R831,0)","v":0},{"$f":"ROUND(K831-T831-U831,0)","v":0},{"$f":"ROUND(L831-W831-X831-Y831-Z831-AA831,0)","v":0}]
[832]
[833,589,"Rents"]
[834,null,null,"S",589,"S","ACCT589S",{"$f":"'JAM Download'!E749","v":116439.65},"DPW",{"$f":"VLOOKUP($I834,Func,2)*$H834","v":0},{"$f":"VLOOKUP($I834,Func,3)*$H834","v":0},{"$f":"VLOOKUP($I834,Func,5)*$H834","v":116439.65},{"$f":"VLOOKUP($I834,Func,6)*$H834","v":0},{"$f":"VLOOKUP($I834,Func,7)*$H834","v":0},null,null,null,null,null,null,null,"PLNT2",{"$f":"+$L834*VLOOKUP($V834,DisFac,2)","v":22846.935616224775},{"$f":"+$L834*VLOOKUP($V834,DisFac,3)","v":93592.714383775223},{"$f":"+$L834*VLOOKUP($V834,DisFac,4)","v":0},{"$f":"+$L834*VLOOKUP($V834,DisFac,5)","v":0},{"$f":"+$L834*VLOOKUP($V834,DisFac,6)","v":0},0,"UACCT589S",{"$f":"ROUND(SUM(-H834,J834:N834),0)","v":0},{"$f":"ROUND(J834-Q834-R834,0)","v":0},{"$f":"ROUND(K834-T834-U834,0)","v":0},{"$f":"ROUND(L834-W834-X834-Y834-Z834-AA834,0)","v":0}]
[835,null,null,"DPW",589,"SNPD","ACCT589SNPD",{"$f":"'JAM Download'!E750","v":3153.4906262998356},"DPW",{"$f":"VLOOKUP($I835,Func,2)*$H835","v":0},{"$f":"VLOOKUP($I835,Func,3)*$H835","v":0},{"$f":"VLOOKUP($I835,Func,5)*$H835","v":3153.4906262998356},{"$f":"VLOOKUP($I835,Func,6)*$H835","v":0},{"$f":"VLOOKUP($I835,Func,7)*$H835","v":0},null,null,null,null,null,null,null,"PLNT2",{"$f":"+$L835*VLOOKUP($V835,DisFac,2)","v":618.75484257673997},{"$f":"+$L835*VLOOKUP($V835,DisFac,3)","v":2534.7357837230957},{"$f":"+$L835*VLOOKUP($V835,DisFac,4)","v":0},{"$f":"+$L835*VLOOKUP($V835,DisFac,5)","v":0},{"$f":"+$L835*VLOOKUP($V835,DisFac,6)","v":0},0,"UACCT589DNPD",{"$f":"ROUND(SUM(-H835,J835:N835),0)","v":0},{"$f":"ROUND(J835-Q835-R835,0)","v":0},{"$f":"ROUND(K835-T835-U835,0)","v":0},{"$f":"ROUND(L835-W835-X835-Y835-Z835-AA835,0)","v":0}]
[836,null,null,null,null,null,"ACCT589",{"$f":"'JAM Download'!E751","v":119593.14062629984},null,{"$f":"SUM(J834:J835)","v":0},{"$f":"SUM(K834:K835)","v":0},{"$f":"SUM(L834:L835)","v":119593.14062629984},{"$f":"SUM(M834:M835)","v":0},{"$f":"SUM(N834:N835)","v":0},null,null,{"$f":"SUM(Q834:Q835)","v":0},{"$f":"SUM(R834:R835)","v":0},null,{"$f":"SUM(T834:T835)","v":0},{"$f":"SUM(U834:U835)","v":0},null,{"$f":"SUM(W834:W835)","v":23465.690458801517},{"$f":"SUM(X834:X835)","v":96127.450167498318},{"$f":"SUM(Y834:Y835)","v":0},{"$f":"SUM(Z834:Z835)","v":0},{"$f":"SUM(AA834:AA835)","v":0},0,"UACCT589",{"$f":"ROUND(SUM(-H836,J836:N836),0)","v":0},{"$f":"ROUND(J836-Q836-R836,0)","v":0},{"$f":"ROUND(K836-T836-U836,0)","v":0},{"$f":"ROUND(L836-W836-X836-Y836-Z836-AA836,0)","v":0}]
[837]
[838,590,"Maint Supervision & Engineering"]
[839,null,null,"S",590,"S","ACCT590S",{"$f":"'JAM Download'!E754","v":21432.03},"DPW",{"$f":"VLOOKUP($I839,Func,2)*$H839","v":0},{"$f":"VLOOKUP($I839,Func,3)*$H839","v":0},{"$f":"VLOOKUP($I839,Func,5)*$H839","v":21432.03},{"$f":"VLOOKUP($I839,Func,6)*$H839","v":0},{"$f":"VLOOKUP($I839,Func,7)*$H839","v":0},null,null,null,null,null,null,null,"PLNT",{"$f":"+$L839*VLOOKUP($V839,DisFac,2)","v":2517.8258276148476},{"$f":"+$L839*VLOOKUP($V839,DisFac,3)","v":10314.300241853953},{"$f":"+$L839*VLOOKUP($V839,DisFac,4)","v":5230.6606894605793},{"$f":"+$L839*VLOOKUP($V839,DisFac,5)","v":605.85556527509232},{"$f":"+$L839*VLOOKUP($V839,DisFac,6)","v":2763.3876757955259},605.85556527509232,"UACCT590S",{"$f":"ROUND(SUM(-H839,J839:N839),0)","v":0},{"$f":"ROUND(J839-Q839-R839,0)","v":0},{"$f":"ROUND(K839-T839-U839,0)","v":0},{"$f":"ROUND(L839-W839-X839-Y839-Z839-AA839,0)","v":0}]
[840,null,null,"DPW",590,"SNPD","ACCT590SNPD",{"$f":"'JAM Download'!E755","v":225685.86510009371},"DPW",{"$f":"VLOOKUP($I840,Func,2)*$H840","v":0},{"$f":"VLOOKUP($I840,Func,3)*$H840","v":0},{"$f":"VLOOKUP($I840,Func,5)*$H840","v":225685.86510009371},{"$f":"VLOOKUP($I840,Func,6)*$H840","v":0},{"$f":"VLOOKUP($I840,Func,7)*$H840","v":0},null,null,null,null,null,null,null,"PLNT",{"$f":"+$L840*VLOOKUP($V840,DisFac,2)","v":26513.480061226881},{"$f":"+$L840*VLOOKUP($V840,DisFac,3)","v":108612.75264101979},{"$f":"+$L840*VLOOKUP($V840,DisFac,4)","v":55080.465207727102},{"$f":"+$L840*VLOOKUP($V840,DisFac,5)","v":6379.8453704486001},{"$f":"+$L840*VLOOKUP($V840,DisFac,6)","v":29099.321819671331},6379.8453704486001,"UACCT590DNPD",{"$f":"ROUND(SUM(-H840,J840:N840),0)","v":0},{"$f":"ROUND(J840-Q840-R840,0)","v":0},{"$f":"ROUND(K840-T840-U840,0)","v":0},{"$f":"ROUND(L840-W840-X840-Y840-Z840-AA840,0)","v":0}]
[841,null,null,null,null,null,"ACCT590",{"$f":"'JAM Download'!E756","v":247117.89510009371},null,{"$f":"SUM(J839:J840)","v":0},{"$f":"SUM(K839:K840)","v":0},{"$f":"SUM(L839:L840)","v":247117.89510009371},{"$f":"SUM(M839:M840)","v":0},{"$f":"SUM(N839:N840)","v":0},null,null,{"$f":"SUM(Q839:Q840)","v":0},{"$f":"SUM(R839:R840)","v":0},null,{"$f":"SUM(T839:T840)","v":0},{"$f":"SUM(U839:U840)","v":0},null,{"$f":"SUM(W839:W840)","v":29031.305888841729},{"$f":"SUM(X839:X840)","v":118927.05288287374},{"$f":"SUM(Y839:Y840)","v":60311.125897187681},{"$f":"SUM(Z839:Z840)","v":6985.7009357236921},{"$f":"SUM(AA839:AA840)","v":31862.709495466857},6985.7009357236921,"UACCT590",{"$f":"ROUND(SUM(-H841,J841:N841),0)","v":0},{"$f":"ROUND(J841-Q841-R841,0)","v":0},{"$f":"ROUND(K841-T841-U841,0)","v":0},{"$f":"ROUND(L841-W841-X841-Y841-Z841-AA841,0)","v":0}]
[842]
[843,591,"Maintenance of Structures"]
[844,null,null,"S",591,"S","ACCT591S",{"$f":"'JAM Download'!E759","v":199856.64000000001},"DPW",{"$f":"VLOOKUP($I844,Func,2)*$H844","v":0},{"$f":"VLOOKUP($I844,Func,3)*$H844","v":0},{"$f":"VLOOKUP($I844,Func,5)*$H844","v":199856.64000000001},{"$f":"VLOOKUP($I844,Func,6)*$H844","v":0},{"$f":"VLOOKUP($I844,Func,7)*$H844","v":0},null,null,null,null,null,null,null,"PLNT2",{"$f":"+$L844*VLOOKUP($V844,DisFac,2)","v":39214.406660918459},{"$f":"+$L844*VLOOKUP($V844,DisFac,3)","v":160642.23333908158},{"$f":"+$L844*VLOOKUP($V844,DisFac,4)","v":0},{"$f":"+$L844*VLOOKUP($V844,DisFac,5)","v":0},{"$f":"+$L844*VLOOKUP($V844,DisFac,6)","v":0},0,"UACCT591S",{"$f":"ROUND(SUM(-H844,J844:N844),0)","v":0},{"$f":"ROUND(J844-Q844-R844,0)","v":0},{"$f":"ROUND(K844-T844-U844,0)","v":0},{"$f":"ROUND(L844-W844-X844-Y844-Z844-AA844,0)","v":0}]
[845,null,null,"DPW",591,"SNPD","ACCT591SNPD",{"$f":"'JAM Download'!E760","v":9372.0869331936174},"DPW",{"$f":"VLOOKUP($I845,Func,2)*$H845","v":0},{"$f":"VLOOKUP($I845,Func,3)*$H845","v":0},{"$f":"VLOOKUP($I845,Func,5)*$H845","v":9372.0869331936174},{"$f":"VLOOKUP($I845,Func,6)*$H845","v":0},{"$f":"VLOOKUP($I845,Func,7)*$H845","v":0},null,null,null,null,null,null,null,"PLNT2",{"$f":"+$L845*VLOOKUP($V845,DisFac,2)","v":1838.922280789543},{"$f":"+$L845*VLOOKUP($V845,DisFac,3)","v":7533.1646524040743},{"$f":"+$L845*VLOOKUP($V845,DisFac,4)","v":0},{"$f":"+$L845*VLOOKUP($V845,DisFac,5)","v":0},{"$f":"+$L845*VLOOKUP($V845,DisFac,6)","v":0},0,"UACCT591DNPD",{"$f":"ROUND(SUM(-H845,J845:N845),0)","v":0},{"$f":"ROUND(J845-Q845-R845,0)","v":0},{"$f":"ROUND(K845-T845-U845,0)","v":0},{"$f":"ROUND(L845-W845-X845-Y845-Z845-AA845,0)","v":0}]
[846,null,null,null,null,null,"ACCT591",{"$f":"'JAM Download'!E761","v":209228.72693319363},null,{"$f":"SUM(J844:J845)","v":0},{"$f":"SUM(K844:K845)","v":0},{"$f":"SUM(L844:L845)","v":209228.72693319363},{"$f":"SUM(M844:M845)","v":0},{"$f":"SUM(N844:N845)","v":0},null,null,{"$f":"SUM(Q844:Q845)","v":0},{"$f":"SUM(R844:R845)","v":0},null,{"$f":"SUM(T844:T845)","v":0},{"$f":"SUM(U844:U845)","v":0},null,{"$f":"SUM(W844:W845)","v":41053.328941708001},{"$f":"SUM(X844:X845)","v":168175.39799148566},{"$f":"SUM(Y844:Y845)","v":0},{"$f":"SUM(Z844:Z845)","v":0},{"$f":"SUM(AA844:AA845)","v":0},0,"UACCT591",{"$f":"ROUND(SUM(-H846,J846:N846),0)","v":0},{"$f":"ROUND(J846-Q846-R846,0)","v":0},{"$f":"ROUND(K846-T846-U846,0)","v":0},{"$f":"ROUND(L846-W846-X846-Y846-Z846-AA846,0)","v":0}]
[847]
[848,592,"Maintenance of Station Equipment"]
[849,null,null,"S",592,"S","ACCT592S",{"$f":"'JAM Download'!E764","v":644493.71},"DPW",{"$f":"VLOOKUP($I849,Func,2)*$H849","v":0},{"$f":"VLOOKUP($I849,Func,3)*$H849","v":0},{"$f":"VLOOKUP($I849,Func,5)*$H849","v":644493.71},{"$f":"VLOOKUP($I849,Func,6)*$H849","v":0},{"$f":"VLOOKUP($I849,Func,7)*$H849","v":0},null,null,null,null,null,null,null,"SUBS",{"$f":"+$L849*VLOOKUP($V849,DisFac,2)","v":644493.71},{"$f":"+$L849*VLOOKUP($V849,DisFac,3)","v":0},{"$f":"+$L849*VLOOKUP($V849,DisFac,4)","v":0},{"$f":"+$L849*VLOOKUP($V849,DisFac,5)","v":0},{"$f":"+$L849*VLOOKUP($V849,DisFac,6)","v":0},0,"UACCT592S",{"$f":"ROUND(SUM(-H849,J849:N849),0)","v":0},{"$f":"ROUND(J849-Q849-R849,0)","v":0},{"$f":"ROUND(K849-T849-U849,0)","v":0},{"$f":"ROUND(L849-W849-X849-Y849-Z849-AA849,0)","v":0}]
[850,null,null,"DPW",592,"SNPD","ACCT592SNPD",{"$f":"'JAM Download'!E765","v":110413.02739222946},"DPW",{"$f":"VLOOKUP($I850,Func,2)*$H850","v":0},{"$f":"VLOOKUP($I850,Func,3)*$H850","v":0},{"$f":"VLOOKUP($I850,Func,5)*$H850","v":110413.02739222946},{"$f":"VLOOKUP($I850,Func,6)*$H850","v":0},{"$f":"VLOOKUP($I850,Func,7)*$H850","v":0},null,null,null,null,null,null,null,"SUBS",{"$f":"+$L850*VLOOKUP($V850,DisFac,2)","v":110413.02739222946},{"$f":"+$L850*VLOOKUP($V850,DisFac,3)","v":0},{"$f":"+$L850*VLOOKUP($V850,DisFac,4)","v":0},{"$f":"+$L850*VLOOKUP($V850,DisFac,5)","v":0},{"$f":"+$L850*VLOOKUP($V850,DisFac,6)","v":0},0,"UACCT592DNPD",{"$f":"ROUND(SUM(-H850,J850:N850),0)","v":0},{"$f":"ROUND(J850-Q850-R850,0)","v":0},{"$f":"ROUND(K850-T850-U850,0)","v":0},{"$f":"ROUND(L850-W850-X850-Y850-Z850-AA850,0)","v":0}]
[851,null,null,null,null,null,"ACCT592",{"$f":"'JAM Download'!E766","v":754906.73739222938},null,{"$f":"SUM(J849:J850)","v":0},{"$f":"SUM(K849:K850)","v":0},{"$f":"SUM(L849:L850)","v":754906.73739222938},{"$f":"SUM(M849:M850)","v":0},{"$f":"SUM(N849:N850)","v":0},null,null,{"$f":"SUM(Q849:Q850)","v":0},{"$f":"SUM(R849:R850)","v":0},null,{"$f":"SUM(T849:T850)","v":0},{"$f":"SUM(U849:U850)","v":0},null,{"$f":"SUM(W849:W850)","v":754906.73739222938},{"$f":"SUM(X849:X850)","v":0},{"$f":"SUM(Y849:Y850)","v":0},{"$f":"SUM(Z849:Z850)","v":0},{"$f":"SUM(AA849:AA850)","v":0},0,"UACCT592",{"$f":"ROUND(SUM(-H851,J851:N851),0)","v":0},{"$f":"ROUND(J851-Q851-R851,0)","v":0},{"$f":"ROUND(K851-T851-U851,0)","v":0},{"$f":"ROUND(L851-W851-X851-Y851-Z851-AA851,0)","v":0}]
[852]
[853,593,"Maintenance of Overhead Lines"]
[854,null,null,"S",593,"S","ACCT593S",{"$f":"'JAM Download'!E768","v":4071602.1597489058},"DPW",{"$f":"VLOOKUP($I854,Func,2)*$H854","v":0},{"$f":"VLOOKUP($I854,Func,3)*$H854","v":0},{"$f":"VLOOKUP($I854,Func,5)*$H854","v":4071602.1597489058},{"$f":"VLOOKUP($I854,Func,6)*$H854","v":0},{"$f":"VLOOKUP($I854,Func,7)*$H854","v":0},null,null,null,null,null,null,null,"PC",{"$f":"+$L854*VLOOKUP($V854,DisFac,2)","v":0},{"$f":"+$L854*VLOOKUP($V854,DisFac,3)","v":4071602.1597489058},{"$f":"+$L854*VLOOKUP($V854,DisFac,4)","v":0},{"$f":"+$L854*VLOOKUP($V854,DisFac,5)","v":0},{"$f":"+$L854*VLOOKUP($V854,DisFac,6)","v":0},0,"UACCT593S",{"$f":"ROUND(SUM(-H854,J854:N854),0)","v":0},{"$f":"ROUND(J854-Q854-R854,0)","v":0},{"$f":"ROUND(K854-T854-U854,0)","v":0},{"$f":"ROUND(L854-W854-X854-Y854-Z854-AA854,0)","v":0}]
[855,null,null,"DPW",593,"SNPD","ACCT593SNPD",{"$f":"'JAM Download'!E769","v":72661.809955887366},"DPW",{"$f":"VLOOKUP($I855,Func,2)*$H855","v":0},{"$f":"VLOOKUP($I855,Func,3)*$H855","v":0},{"$f":"VLOOKUP($I855,Func,5)*$H855","v":72661.809955887366},{"$f":"VLOOKUP($I855,Func,6)*$H855","v":0},{"$f":"VLOOKUP($I855,Func,7)*$H855","v":0},null,null,null,null,null,null,null,"PC",{"$f":"+$L855*VLOOKUP($V855,DisFac,2)","v":0},{"$f":"+$L855*VLOOKUP($V855,DisFac,3)","v":72661.809955887366},{"$f":"+$L855*VLOOKUP($V855,DisFac,4)","v":0},{"$f":"+$L855*VLOOKUP($V855,DisFac,5)","v":0},{"$f":"+$L855*VLOOKUP($V855,DisFac,6)","v":0},0,"UACCT593DNPD",{"$f":"ROUND(SUM(-H855,J855:N855),0)","v":0},{"$f":"ROUND(J855-Q855-R855,0)","v":0},{"$f":"ROUND(K855-T855-U855,0)","v":0},{"$f":"ROUND(L855-W855-X855-Y855-Z855-AA855,0)","v":0}]
[856,null,null,null,null,null,"ACCT593",{"$f":"'JAM Download'!E770","v":4144263.9697047933},null,{"$f":"SUM(J854:J855)","v":0},{"$f":"SUM(K854:K855)","v":0},{"$f":"SUM(L854:L855)","v":4144263.9697047933},{"$f":"SUM(M854:M855)","v":0},{"$f":"SUM(N854:N855)","v":0},null,null,{"$f":"SUM(Q854:Q855)","v":0},{"$f":"SUM(R854:R855)","v":0},null,{"$f":"SUM(T854:T855)","v":0},{"$f":"SUM(U854:U855)","v":0},null,{"$f":"SUM(W854:W855)","v":0},{"$f":"SUM(X854:X855)","v":4144263.9697047933},{"$f":"SUM(Y854:Y855)","v":0},{"$f":"SUM(Z854:Z855)","v":0},{"$f":"SUM(AA854:AA855)","v":0},0,"UACCT593",{"$f":"ROUND(SUM(-H856,J856:N856),0)","v":0},{"$f":"ROUND(J856-Q856-R856,0)","v":0},{"$f":"ROUND(K856-T856-U856,0)","v":0},{"$f":"ROUND(L856-W856-X856-Y856-Z856-AA856,0)","v":0}]
[857]
[858,594,"Maintenance of Underground Lines"]
[859,null,null,"S",594,"S","ACCT594S",{"$f":"'JAM Download'!E773","v":1028392.99},"DPW",{"$f":"VLOOKUP($I859,Func,2)*$H859","v":0},{"$f":"VLOOKUP($I859,Func,3)*$H859","v":0},{"$f":"VLOOKUP($I859,Func,5)*$H859","v":1028392.99},{"$f":"VLOOKUP($I859,Func,6)*$H859","v":0},{"$f":"VLOOKUP($I859,Func,7)*$H859","v":0},null,null,null,null,null,null,null,"PC",{"$f":"+$L859*VLOOKUP($V859,DisFac,2)","v":0},{"$f":"+$L859*VLOOKUP($V859,DisFac,3)","v":1028392.99},{"$f":"+$L859*VLOOKUP($V859,DisFac,4)","v":0},{"$f":"+$L859*VLOOKUP($V859,DisFac,5)","v":0},{"$f":"+$L859*VLOOKUP($V859,DisFac,6)","v":0},0,"UACCT594S",{"$f":"ROUND(SUM(-H859,J859:N859),0)","v":0},{"$f":"ROUND(J859-Q859-R859,0)","v":0},{"$f":"ROUND(K859-T859-U859,0)","v":0},{"$f":"ROUND(L859-W859-X859-Y859-Z859-AA859,0)","v":0}]
[860,null,null,"DPW",594,"SNPD","ACCT594SNPD",{"$f":"'JAM Download'!E774","v":411.6686482537844},"DPW",{"$f":"VLOOKUP($I860,Func,2)*$H860","v":0},{"$f":"VLOOKUP($I860,Func,3)*$H860","v":0},{"$f":"VLOOKUP($I860,Func,5)*$H860","v":411.6686482537844},{"$f":"VLOOKUP($I860,Func,6)*$H860","v":0},{"$f":"VLOOKUP($I860,Func,7)*$H860","v":0},null,null,null,null,null,null,null,"PC",{"$f":"+$L860*VLOOKUP($V860,DisFac,2)","v":0},{"$f":"+$L860*VLOOKUP($V860,DisFac,3)","v":411.6686482537844},{"$f":"+$L860*VLOOKUP($V860,DisFac,4)","v":0},{"$f":"+$L860*VLOOKUP($V860,DisFac,5)","v":0},{"$f":"+$L860*VLOOKUP($V860,DisFac,6)","v":0},0,"UACCT594DNPD",{"$f":"ROUND(SUM(-H860,J860:N860),0)","v":0},{"$f":"ROUND(J860-Q860-R860,0)","v":0},{"$f":"ROUND(K860-T860-U860,0)","v":0},{"$f":"ROUND(L860-W860-X860-Y860-Z860-AA860,0)","v":0}]
[861,null,null,null,null,null,"ACCT594",{"$f":"'JAM Download'!E775","v":1028804.6586482538},null,{"$f":"SUM(J859:J860)","v":0},{"$f":"SUM(K859:K860)","v":0},{"$f":"SUM(L859:L860)","v":1028804.6586482538},{"$f":"SUM(M859:M860)","v":0},{"$f":"SUM(N859:N860)","v":0},null,null,{"$f":"SUM(Q859:Q860)","v":0},{"$f":"SUM(R859:R860)","v":0},null,{"$f":"SUM(T859:T860)","v":0},{"$f":"SUM(U859:U860)","v":0},null,{"$f":"SUM(W859:W860)","v":0},{"$f":"SUM(X859:X860)","v":1028804.6586482538},{"$f":"SUM(Y859:Y860)","v":0},{"$f":"SUM(Z859:Z860)","v":0},{"$f":"SUM(AA859:AA860)","v":0},0,"UACCT594",{"$f":"ROUND(SUM(-H861,J861:N861),0)","v":0},{"$f":"ROUND(J861-Q861-R861,0)","v":0},{"$f":"ROUND(K861-T861-U861,0)","v":0},{"$f":"ROUND(L861-W861-X861-Y861-Z861-AA861,0)","v":0}]
[862]
[863,595,"Maintenance of Line Transformers"]
[864,null,null,"S",595,"S","ACCT595S",{"$f":"'JAM Download'!E778","v":0},"DPW",{"$f":"VLOOKUP($I864,Func,2)*$H864","v":0},{"$f":"VLOOKUP($I864,Func,3)*$H864","v":0},{"$f":"VLOOKUP($I864,Func,5)*$H864","v":0},{"$f":"VLOOKUP($I864,Func,6)*$H864","v":0},{"$f":"VLOOKUP($I864,Func,7)*$H864","v":0},null,null,null,null,null,null,null,"XFMR",{"$f":"+$L864*VLOOKUP($V864,DisFac,2)","v":0},{"$f":"+$L864*VLOOKUP($V864,DisFac,3)","v":0},{"$f":"+$L864*VLOOKUP($V864,DisFac,4)","v":0},{"$f":"+$L864*VLOOKUP($V864,DisFac,5)","v":0},{"$f":"+$L864*VLOOKUP($V864,DisFac,6)","v":0},0,"UACCT595S",{"$f":"ROUND(SUM(-H864,J864:N864),0)","v":0},{"$f":"ROUND(J864-Q864-R864,0)","v":0},{"$f":"ROUND(K864-T864-U864,0)","v":0},{"$f":"ROUND(L864-W864-X864-Y864-Z864-AA864,0)","v":0}]
[865,null,null,"DPW",595,"SNPD","ACCT595SNPD",{"$f":"'JAM Download'!E779","v":56252.998151844738},"DPW",{"$f":"VLOOKUP($I865,Func,2)*$H865","v":0},{"$f":"VLOOKUP($I865,Func,3)*$H865","v":0},{"$f":"VLOOKUP($I865,Func,5)*$H865","v":56252.998151844738},{"$f":"VLOOKUP($I865,Func,6)*$H865","v":0},{"$f":"VLOOKUP($I865,Func,7)*$H865","v":0},null,null,null,null,null,null,null,"XFMR",{"$f":"+$L865*VLOOKUP($V865,DisFac,2)","v":0},{"$f":"+$L865*VLOOKUP($V865,DisFac,3)","v":0},{"$f":"+$L865*VLOOKUP($V865,DisFac,4)","v":56252.998151844738},{"$f":"+$L865*VLOOKUP($V865,DisFac,5)","v":0},{"$f":"+$L865*VLOOKUP($V865,DisFac,6)","v":0},0,"UACCT595DNPD",{"$f":"ROUND(SUM(-H865,J865:N865),0)","v":0},{"$f":"ROUND(J865-Q865-R865,0)","v":0},{"$f":"ROUND(K865-T865-U865,0)","v":0},{"$f":"ROUND(L865-W865-X865-Y865-Z865-AA865,0)","v":0}]
[866,null,null,null,null,null,"ACCT595",{"$f":"'JAM Download'!E780","v":56252.998151844738},null,{"$f":"SUM(J864:J865)","v":0},{"$f":"SUM(K864:K865)","v":0},{"$f":"SUM(L864:L865)","v":56252.998151844738},{"$f":"SUM(M864:M865)","v":0},{"$f":"SUM(N864:N865)","v":0},null,null,{"$f":"SUM(Q864:Q865)","v":0},{"$f":"SUM(R864:R865)","v":0},null,{"$f":"SUM(T864:T865)","v":0},{"$f":"SUM(U864:U865)","v":0},null,{"$f":"SUM(W864:W865)","v":0},{"$f":"SUM(X864:X865)","v":0},{"$f":"SUM(Y864:Y865)","v":56252.998151844738},{"$f":"SUM(Z864:Z865)","v":0},{"$f":"SUM(AA864:AA865)","v":0},0,"UACCT595",{"$f":"ROUND(SUM(-H866,J866:N866),0)","v":0},{"$f":"ROUND(J866-Q866-R866,0)","v":0},{"$f":"ROUND(K866-T866-U866,0)","v":0},{"$f":"ROUND(L866-W866-X866-Y866-Z866-AA866,0)","v":0}]
[867]
[868]
[869]
[870]
[871,"FERC",null,"DESCRIPTION &","FERC",null,"RANGE",{"$f":"+$H$250","v":"Jurisdictional"},"FUNC","GEN","TRN","DIS","RETAIL","MISC",null,"D / E","GEN","GEN","D / E","TRN","TRN","DIS","DIS","DIS","DIS","DIS","DIS","DIS","Unbundled ACCT:","Function","Generation","Transmission","Distribution"]
[872,"ACCT",null,"CONSENSUS FACTOR","ACCT","FACTOR","NAME","ADJ Total","FACTOR","TOTAL","TOTAL","TOTAL","TOTAL","TOTAL",null,"SPLIT","DEMAND","ENERGY","SPLIT","DEMAND","ENERGY","SPLIT","SUBS","P & C","XFMR","METER","SERVICE","METER","TOTAL","Check","Check","Check","Check"]
[873,596,"Maint of Street Lighting & Signal Sys."]
[874,null,null,"S",596,"S","ACCT596S",{"$f":"'JAM Download'!E783","v":199709.85},"DPW",{"$f":"VLOOKUP($I874,Func,2)*$H874","v":0},{"$f":"VLOOKUP($I874,Func,3)*$H874","v":0},{"$f":"VLOOKUP($I874,Func,5)*$H874","v":199709.85},{"$f":"VLOOKUP($I874,Func,6)*$H874","v":0},{"$f":"VLOOKUP($I874,Func,7)*$H874","v":0},null,null,null,null,null,null,null,"PC",{"$f":"+$L874*VLOOKUP($V874,DisFac,2)","v":0},{"$f":"+$L874*VLOOKUP($V874,DisFac,3)","v":199709.85},{"$f":"+$L874*VLOOKUP($V874,DisFac,4)","v":0},{"$f":"+$L874*VLOOKUP($V874,DisFac,5)","v":0},{"$f":"+$L874*VLOOKUP($V874,DisFac,6)","v":0},0,"UACCT596S",{"$f":"ROUND(SUM(-H874,J874:N874),0)","v":0},{"$f":"ROUND(J874-Q874-R874,0)","v":0},{"$f":"ROUND(K874-T874-U874,0)","v":0},{"$f":"ROUND(L874-W874-X874-Y874-Z874-AA874,0)","v":0}]
[875,null,null,"DPW",596,"SNPD","ACCT596SNPD",{"$f":"'JAM Download'!E784","v":0},"DPW",{"$f":"VLOOKUP($I875,Func,2)*$H875","v":0},{"$f":"VLOOKUP($I875,Func,3)*$H875","v":0},{"$f":"VLOOKUP($I875,Func,5)*$H875","v":0},{"$f":"VLOOKUP($I875,Func,6)*$H875","v":0},{"$f":"VLOOKUP($I875,Func,7)*$H875","v":0},null,null,null,null,null,null,null,"PC",{"$f":"+$L875*VLOOKUP($V875,DisFac,2)","v":0},{"$f":"+$L875*VLOOKUP($V875,DisFac,3)","v":0},{"$f":"+$L875*VLOOKUP($V875,DisFac,4)","v":0},{"$f":"+$L875*VLOOKUP($V875,DisFac,5)","v":0},{"$f":"+$L875*VLOOKUP($V875,DisFac,6)","v":0},0,"UACCT596DNPD",{"$f":"ROUND(SUM(-H875,J875:N875),0)","v":0},{"$f":"ROUND(J875-Q875-R875,0)","v":0},{"$f":"ROUND(K875-T875-U875,0)","v":0},{"$f":"ROUND(L875-W875-X875-Y875-Z875-AA875,0)","v":0}]
[876,null,null,null,null,null,"ACCT596",{"$f":"'JAM Download'!E785","v":199709.85},null,{"$f":"SUM(J874:J875)","v":0},{"$f":"SUM(K874:K875)","v":0},{"$f":"SUM(L874:L875)","v":199709.85},{"$f":"SUM(M874:M875)","v":0},{"$f":"SUM(N874:N875)","v":0},null,null,{"$f":"SUM(Q874:Q875)","v":0},{"$f":"SUM(R874:R875)","v":0},null,{"$f":"SUM(T874:T875)","v":0},{"$f":"SUM(U874:U875)","v":0},null,{"$f":"SUM(W874:W875)","v":0},{"$f":"SUM(X874:X875)","v":199709.85},{"$f":"SUM(Y874:Y875)","v":0},{"$f":"SUM(Z874:Z875)","v":0},{"$f":"SUM(AA874:AA875)","v":0},0,"UACCT596",{"$f":"ROUND(SUM(-H876,J876:N876),0)","v":0},{"$f":"ROUND(J876-Q876-R876,0)","v":0},{"$f":"ROUND(K876-T876-U876,0)","v":0},{"$f":"ROUND(L876-W876-X876-Y876-Z876-AA876,0)","v":0}]
[877]
[878,597,"Maintenance of Meters"]
[879,null,null,"S",597,"S","ACCT597S",{"$f":"'JAM Download'!E788","v":365615.24},"DPW",{"$f":"VLOOKUP($I879,Func,2)*$H879","v":0},{"$f":"VLOOKUP($I879,Func,3)*$H879","v":0},{"$f":"VLOOKUP($I879,Func,5)*$H879","v":365615.24},{"$f":"VLOOKUP($I879,Func,6)*$H879","v":0},{"$f":"VLOOKUP($I879,Func,7)*$H879","v":0},null,null,null,null,null,null,null,"METR",{"$f":"+$L879*VLOOKUP($V879,DisFac,2)","v":0},{"$f":"+$L879*VLOOKUP($V879,DisFac,3)","v":0},{"$f":"+$L879*VLOOKUP($V879,DisFac,4)","v":0},{"$f":"+$L879*VLOOKUP($V879,DisFac,5)","v":365615.24},{"$f":"+$L879*VLOOKUP($V879,DisFac,6)","v":0},365615.24,"UACCT597S",{"$f":"ROUND(SUM(-H879,J879:N879),0)","v":0},{"$f":"ROUND(J879-Q879-R879,0)","v":0},{"$f":"ROUND(K879-T879-U879,0)","v":0},{"$f":"ROUND(L879-W879-X879-Y879-Z879-AA879,0)","v":0}]
[880,null,null,"DPW",597,"SNPD","ACCT597SNPD",{"$f":"'JAM Download'!E789","v":76296.910999982632},"DPW",{"$f":"VLOOKUP($I880,Func,2)*$H880","v":0},{"$f":"VLOOKUP($I880,Func,3)*$H880","v":0},{"$f":"VLOOKUP($I880,Func,5)*$H880","v":76296.910999982632},{"$f":"VLOOKUP($I880,Func,6)*$H880","v":0},{"$f":"VLOOKUP($I880,Func,7)*$H880","v":0},null,null,null,null,null,null,null,"METR",{"$f":"+$L880*VLOOKUP($V880,DisFac,2)","v":0},{"$f":"+$L880*VLOOKUP($V880,DisFac,3)","v":0},{"$f":"+$L880*VLOOKUP($V880,DisFac,4)","v":0},{"$f":"+$L880*VLOOKUP($V880,DisFac,5)","v":76296.910999982632},{"$f":"+$L880*VLOOKUP($V880,DisFac,6)","v":0},76296.910999982632,"UACCT597DNPD",{"$f":"ROUND(SUM(-H880,J880:N880),0)","v":0},{"$f":"ROUND(J880-Q880-R880,0)","v":0},{"$f":"ROUND(K880-T880-U880,0)","v":0},{"$f":"ROUND(L880-W880-X880-Y880-Z880-AA880,0)","v":0}]
[881,null,null,null,null,null,"ACCT597",{"$f":"'JAM Download'!E790","v":441912.15099998261},null,{"$f":"SUM(J879:J880)","v":0},{"$f":"SUM(K879:K880)","v":0},{"$f":"SUM(L879:L880)","v":441912.15099998261},{"$f":"SUM(M879:M880)","v":0},{"$f":"SUM(N879:N880)","v":0},null,null,{"$f":"SUM(Q879:Q880)","v":0},{"$f":"SUM(R879:R880)","v":0},null,{"$f":"SUM(T879:T880)","v":0},{"$f":"SUM(U879:U880)","v":0},null,{"$f":"SUM(W879:W880)","v":0},{"$f":"SUM(X879:X880)","v":0},{"$f":"SUM(Y879:Y880)","v":0},{"$f":"SUM(Z879:Z880)","v":441912.15099998261},{"$f":"SUM(AA879:AA880)","v":0},441912.15099998261,"UACCT597",{"$f":"ROUND(SUM(-H881,J881:N881),0)","v":0},{"$f":"ROUND(J881-Q881-R881,0)","v":0},{"$f":"ROUND(K881-T881-U881,0)","v":0},{"$f":"ROUND(L881-W881-X881-Y881-Z881-AA881,0)","v":0}]
[882]
[883,598,"Maint of Misc. Distribution Plant"]
[884,null,null,"S",598,"S","ACCT598S",{"$f":"'JAM Download'!E793","v":112100.6},"DPW",{"$f":"VLOOKUP($I884,Func,2)*$H884","v":0},{"$f":"VLOOKUP($I884,Func,3)*$H884","v":0},{"$f":"VLOOKUP($I884,Func,5)*$H884","v":112100.6},{"$f":"VLOOKUP($I884,Func,6)*$H884","v":0},{"$f":"VLOOKUP($I884,Func,7)*$H884","v":0},null,null,null,null,null,null,null,"PLNT2",{"$f":"+$L884*VLOOKUP($V884,DisFac,2)","v":21995.558993351213},{"$f":"+$L884*VLOOKUP($V884,DisFac,3)","v":90105.041006648797},{"$f":"+$L884*VLOOKUP($V884,DisFac,4)","v":0},{"$f":"+$L884*VLOOKUP($V884,DisFac,5)","v":0},{"$f":"+$L884*VLOOKUP($V884,DisFac,6)","v":0},0,"UACCT598S",{"$f":"ROUND(SUM(-H884,J884:N884),0)","v":0},{"$f":"ROUND(J884-Q884-R884,0)","v":0},{"$f":"ROUND(K884-T884-U884,0)","v":0},{"$f":"ROUND(L884-W884-X884-Y884-Z884-AA884,0)","v":0}]
[885,null,null,"DPW",598,"SNPD","ACCT598SNPD",{"$f":"'JAM Download'!E794","v":-36375.101917538923},"DPW",{"$f":"VLOOKUP($I885,Func,2)*$H885","v":0},{"$f":"VLOOKUP($I885,Func,3)*$H885","v":0},{"$f":"VLOOKUP($I885,Func,5)*$H885","v":-36375.101917538923},{"$f":"VLOOKUP($I885,Func,6)*$H885","v":0},{"$f":"VLOOKUP($I885,Func,7)*$H885","v":0},null,null,null,null,null,null,null,"PLNT2",{"$f":"+$L885*VLOOKUP($V885,DisFac,2)","v":-7137.256179863356},{"$f":"+$L885*VLOOKUP($V885,DisFac,3)","v":-29237.845737675569},{"$f":"+$L885*VLOOKUP($V885,DisFac,4)","v":0},{"$f":"+$L885*VLOOKUP($V885,DisFac,5)","v":0},{"$f":"+$L885*VLOOKUP($V885,DisFac,6)","v":0},0,"UACCT598DNPD",{"$f":"ROUND(SUM(-H885,J885:N885),0)","v":0},{"$f":"ROUND(J885-Q885-R885,0)","v":0},{"$f":"ROUND(K885-T885-U885,0)","v":0},{"$f":"ROUND(L885-W885-X885-Y885-Z885-AA885,0)","v":0}]
[886,null,null,null,null,null,"ACCT598",{"$f":"'JAM Download'!E795","v":75725.498082461083},null,{"$f":"SUM(J884:J885)","v":0},{"$f":"SUM(K884:K885)","v":0},{"$f":"SUM(L884:L885)","v":75725.498082461083},{"$f":"SUM(M884:M885)","v":0},{"$f":"SUM(N884:N885)","v":0},null,null,{"$f":"SUM(Q884:Q885)","v":0},{"$f":"SUM(R884:R885)","v":0},null,{"$f":"SUM(T884:T885)","v":0},{"$f":"SUM(U884:U885)","v":0},null,{"$f":"SUM(W884:W885)","v":14858.302813487857},{"$f":"SUM(X884:X885)","v":60867.195268973228},{"$f":"SUM(Y884:Y885)","v":0},{"$f":"SUM(Z884:Z885)","v":0},{"$f":"SUM(AA884:AA885)","v":0},0,"UACCT598",{"$f":"ROUND(SUM(-H886,J886:N886),0)","v":0},{"$f":"ROUND(J886-Q886-R886,0)","v":0},{"$f":"ROUND(K886-T886-U886,0)","v":0},{"$f":"ROUND(L886-W886-X886-Y886-Z886-AA886,0)","v":0}]
[887,null,null,null,null,null,null,{"$f":"'JAM Download'!E796","v":0}]
[888,"TOTAL DISTRIBUTION EXPENSE",null,null,null,null,null,{"$f":"'JAM Download'!E797","v":11809455.58238399},null,{"$f":"+J886+J881+J876+J866+J861+J856+J851+J846+J841+J836+J831+J826+J821+J816+J811+J806+J801+J796+J791","v":0},{"$f":"+K886+K881+K876+K866+K861+K856+K851+K846+K841+K836+K831+K826+K821+K816+K811+K806+K801+K796+K791","v":0},{"$f":"+L886+L881+L876+L866+L861+L856+L851+L846+L841+L836+L831+L826+L821+L816+L811+L806+L801+L796+L791","v":11809455.582383987},{"$f":"+M886+M881+M876+M866+M861+M856+M851+M846+M841+M836+M831+M826+M821+M816+M811+M806+M801+M796+M791","v":0},{"$f":"+N886+N881+N876+N866+N861+N856+N851+N846+N841+N836+N831+N826+N821+N816+N811+N806+N801+N796+N791","v":0},null,null,{"$f":"+Q886+Q881+Q876+Q866+Q861+Q856+Q851+Q846+Q841+Q836+Q831+Q826+Q821+Q816+Q811+Q806+Q801+Q796+Q791","v":0},{"$f":"+R886+R881+R876+R866+R861+R856+R851+R846+R841+R836+R831+R826+R821+R816+R811+R806+R801+R796+R791","v":0},{"$f":"+S886+S881+S876+S866+S861+S856+S851+S846+S841+S836+S831+S826+S821+S816+S811+S806+S801+S796+S791","v":0},{"$f":"+T886+T881+T876+T866+T861+T856+T851+T846+T841+T836+T831+T826+T821+T816+T811+T806+T801+T796+T791","v":0},{"$f":"+U886+U881+U876+U866+U861+U856+U851+U846+U841+U836+U831+U826+U821+U816+U811+U806+U801+U796+U791","v":0},null,{"$f":"+W886+W881+W876+W866+W861+W856+W851+W846+W841+W836+W831+W826+W821+W816+W811+W806+W801+W796+W791","v":2194254.4142045537},{"$f":"+X886+X881+X876+X866+X861+X856+X851+X846+X841+X836+X831+X826+X821+X816+X811+X806+X801+X796+X791","v":8002397.3347276002},{"$f":"+Y886+Y881+Y876+Y866+Y861+Y856+Y851+Y846+Y841+Y836+Y831+Y826+Y821+Y816+Y811+Y806+Y801+Y796+Y791","v":338610.86724170484},{"$f":"+Z886+Z881+Z876+Z866+Z861+Z856+Z851+Z846+Z841+Z836+Z831+Z826+Z821+Z816+Z811+Z806+Z801+Z796+Z791","v":1125021.7043121848},{"$f":"+AA886+AA881+AA876+AA866+AA861+AA856+AA851+AA846+AA841+AA836+AA831+AA826+AA821+AA816+AA811+AA806+AA801+AA796+AA791","v":149171.26189794426},1125021.7043121848,null,{"$f":"ROUND(SUM(-H888,J888:N888),0)","v":0},{"$f":"ROUND(J888-Q888-R888,0)","v":0},{"$f":"ROUND(K888-T888-U888,0)","v":0},{"$f":"ROUND(L888-W888-X888-Y888-Z888-AA888,0)","v":0}]
[889]
[890]
[891]
[892,"FERC",null,"DESCRIPTION &","FERC",null,"RANGE",{"$f":"+$H$250","v":"Jurisdictional"},"FUNC","GEN","TRN","DIS","RETAIL","MISC",null,"D / E","GEN","GEN","D / E","TRN","TRN","DIS","DIS","DIS","DIS","DIS","DIS","DIS","Unbundled ACCT:","Function","Generation","Transmission","Distribution"]
[{"$f":"A892+1","v":893},"ACCT",null,"CONSENSUS FACTOR","ACCT","FACTOR","NAME","ADJ Total","FACTOR","TOTAL","TOTAL","TOTAL","TOTAL","TOTAL",null,"SPLIT","DEMAND","ENERGY","SPLIT","DEMAND","ENERGY","SPLIT","SUBS","P & C","XFMR","METER","SERVICE","METER","TOTAL","Check","Check","Check","Check"]
[894]
[895,901,"Supervision"]
[896,null,null,"S",901,"S","ACCT901S",{"$f":"'JAM Download'!E807","v":0},"CUST",{"$f":"VLOOKUP($I896,Func,2)*$H896","v":0},{"$f":"VLOOKUP($I896,Func,3)*$H896","v":0},{"$f":"VLOOKUP($I896,Func,5)*$H896","v":0},{"$f":"VLOOKUP($I896,Func,6)*$H896","v":0},{"$f":"VLOOKUP($I896,Func,7)*$H896","v":0},null,null,null,null,null,null,null,"CUST",{"$f":"+$L896*VLOOKUP($V896,DisFac,2)","v":0},{"$f":"+$L896*VLOOKUP($V896,DisFac,3)","v":0},{"$f":"+$L896*VLOOKUP($V896,DisFac,4)","v":0},{"$f":"+$L896*VLOOKUP($V896,DisFac,5)","v":0},{"$f":"+$L896*VLOOKUP($V896,DisFac,6)","v":0},0,"UACCT901S",{"$f":"ROUND(SUM(-H896,J896:N896),0)","v":0},{"$f":"ROUND(J896-Q896-R896,0)","v":0},{"$f":"ROUND(K896-T896-U896,0)","v":0},{"$f":"ROUND(L896-W896-X896-Y896-Z896-AA896,0)","v":0}]
[897,null,null,"CN",901,"CN","ACCT901CN",{"$f":"'JAM Download'!E808","v":201143.69782696577},"CUST",{"$f":"VLOOKUP($I897,Func,2)*$H897","v":0},{"$f":"VLOOKUP($I897,Func,3)*$H897","v":0},{"$f":"VLOOKUP($I897,Func,5)*$H897","v":0},{"$f":"VLOOKUP($I897,Func,6)*$H897","v":201143.69782696577},{"$f":"VLOOKUP($I897,Func,7)*$H897","v":0},null,null,null,null,null,null,null,"CUST",{"$f":"+$L897*VLOOKUP($V897,DisFac,2)","v":0},{"$f":"+$L897*VLOOKUP($V897,DisFac,3)","v":0},{"$f":"+$L897*VLOOKUP($V897,DisFac,4)","v":0},{"$f":"+$L897*VLOOKUP($V897,DisFac,5)","v":0},{"$f":"+$L897*VLOOKUP($V897,DisFac,6)","v":0},0,"UACCT901CS",{"$f":"ROUND(SUM(-H897,J897:N897),0)","v":0},{"$f":"ROUND(J897-Q897-R897,0)","v":0},{"$f":"ROUND(K897-T897-U897,0)","v":0},{"$f":"ROUND(L897-W897-X897-Y897-Z897-AA897,0)","v":0}]
[898,null,null,null,null,null,"ACCT901",{"$f":"'JAM Download'!E809","v":201143.69782696577},null,{"$f":"SUM(J896:J897)","v":0},{"$f":"SUM(K896:K897)","v":0},{"$f":"SUM(L896:L897)","v":0},{"$f":"SUM(M896:M897)","v":201143.69782696577},{"$f":"SUM(N896:N897)","v":0},null,null,{"$f":"SUM(Q896:Q897)","v":0},{"$f":"SUM(R896:R897)","v":0},null,{"$f":"SUM(T896:T897)","v":0},{"$f":"SUM(U896:U897)","v":0},null,{"$f":"SUM(W896:W897)","v":0},{"$f":"SUM(X896:X897)","v":0},{"$f":"SUM(Y896:Y897)","v":0},{"$f":"SUM(Z896:Z897)","v":0},{"$f":"SUM(AA896:AA897)","v":0},0,"UACCT901",{"$f":"ROUND(SUM(-H898,J898:N898),0)","v":0},{"$f":"ROUND(J898-Q898-R898,0)","v":0},{"$f":"ROUND(K898-T898-U898,0)","v":0},{"$f":"ROUND(L898-W898-X898-Y898-Z898-AA898,0)","v":0}]
[899]
[900,902,"Meter Reading Expense"]
[901,null,null,"S",902,"S","ACCT902S",{"$f":"'JAM Download'!E812","v":792190.16374382132},"CUST",{"$f":"VLOOKUP($I901,Func,2)*$H901","v":0},{"$f":"VLOOKUP($I901,Func,3)*$H901","v":0},{"$f":"VLOOKUP($I901,Func,5)*$H901","v":0},{"$f":"VLOOKUP($I901,Func,6)*$H901","v":792190.16374382132},{"$f":"VLOOKUP($I901,Func,7)*$H901","v":0},null,null,null,null,null,null,null,"CUST",{"$f":"+$L901*VLOOKUP($V901,DisFac,2)","v":0},{"$f":"+$L901*VLOOKUP($V901,DisFac,3)","v":0},{"$f":"+$L901*VLOOKUP($V901,DisFac,4)","v":0},{"$f":"+$L901*VLOOKUP($V901,DisFac,5)","v":0},{"$f":"+$L901*VLOOKUP($V901,DisFac,6)","v":0},0,"UACCT902S",{"$f":"ROUND(SUM(-H901,J901:N901),0)","v":0},{"$f":"ROUND(J901-Q901-R901,0)","v":0},{"$f":"ROUND(K901-T901-U901,0)","v":0},{"$f":"ROUND(L901-W901-X901-Y901-Z901-AA901,0)","v":0}]
[902,null,null,"CN",902,"CN","ACCT902CN",{"$f":"'JAM Download'!E813","v":162552.2079048609},"CUST",{"$f":"VLOOKUP($I902,Func,2)*$H902","v":0},{"$f":"VLOOKUP($I902,Func,3)*$H902","v":0},{"$f":"VLOOKUP($I902,Func,5)*$H902","v":0},{"$f":"VLOOKUP($I902,Func,6)*$H902","v":162552.2079048609},{"$f":"VLOOKUP($I902,Func,7)*$H902","v":0},null,null,null,null,null,null,null,"CUST",{"$f":"+$L902*VLOOKUP($V902,DisFac,2)","v":0},{"$f":"+$L902*VLOOKUP($V902,DisFac,3)","v":0},{"$f":"+$L902*VLOOKUP($V902,DisFac,4)","v":0},{"$f":"+$L902*VLOOKUP($V902,DisFac,5)","v":0},{"$f":"+$L902*VLOOKUP($V902,DisFac,6)","v":0},0,"UACCT902CS",{"$f":"ROUND(SUM(-H902,J902:N902),0)","v":0},{"$f":"ROUND(J902-Q902-R902,0)","v":0},{"$f":"ROUND(K902-T902-U902,0)","v":0},{"$f":"ROUND(L902-W902-X902-Y902-Z902-AA902,0)","v":0}]
[903,null,null,null,null,null,"ACCT902",{"$f":"'JAM Download'!E814","v":954742.37164868228},null,{"$f":"SUM(J901:J902)","v":0},{"$f":"SUM(K901:K902)","v":0},{"$f":"SUM(L901:L902)","v":0},{"$f":"SUM(M901:M902)","v":954742.37164868228},{"$f":"SUM(N901:N902)","v":0},null,null,{"$f":"SUM(Q901:Q902)","v":0},{"$f":"SUM(R901:R902)","v":0},null,{"$f":"SUM(T901:T902)","v":0},{"$f":"SUM(U901:U902)","v":0},null,{"$f":"SUM(W901:W902)","v":0},{"$f":"SUM(X901:X902)","v":0},{"$f":"SUM(Y901:Y902)","v":0},{"$f":"SUM(Z901:Z902)","v":0},{"$f":"SUM(AA901:AA902)","v":0},0,"UACCT902",{"$f":"ROUND(SUM(-H903,J903:N903),0)","v":0},{"$f":"ROUND(J903-Q903-R903,0)","v":0},{"$f":"ROUND(K903-T903-U903,0)","v":0},{"$f":"ROUND(L903-W903-X903-Y903-Z903-AA903,0)","v":0}]
[904]
[905,903,"Customer Receipts & Collections"]
[906,null,null,"S",903,"S","ACCT903S",{"$f":"'JAM Download'!E817","v":744626.95045399456},"CUST",{"$f":"VLOOKUP($I906,Func,2)*$H906","v":0},{"$f":"VLOOKUP($I906,Func,3)*$H906","v":0},{"$f":"VLOOKUP($I906,Func,5)*$H906","v":0},{"$f":"VLOOKUP($I906,Func,6)*$H906","v":744626.95045399456},{"$f":"VLOOKUP($I906,Func,7)*$H906","v":0},null,null,null,null,null,null,null,"CUST",{"$f":"+$L906*VLOOKUP($V906,DisFac,2)","v":0},{"$f":"+$L906*VLOOKUP($V906,DisFac,3)","v":0},{"$f":"+$L906*VLOOKUP($V906,DisFac,4)","v":0},{"$f":"+$L906*VLOOKUP($V906,DisFac,5)","v":0},{"$f":"+$L906*VLOOKUP($V906,DisFac,6)","v":0},0,"UACCT903S",{"$f":"ROUND(SUM(-H906,J906:N906),0)","v":0},{"$f":"ROUND(J906-Q906-R906,0)","v":0},{"$f":"ROUND(K906-T906-U906,0)","v":0},{"$f":"ROUND(L906-W906-X906-Y906-Z906-AA906,0)","v":0}]
[907,null,null,"CN",903,"CN","ACCT903CN",{"$f":"'JAM Download'!E818","v":3237193.1229937677},"CUST",{"$f":"VLOOKUP($I907,Func,2)*$H907","v":0},{"$f":"VLOOKUP($I907,Func,3)*$H907","v":0},{"$f":"VLOOKUP($I907,Func,5)*$H907","v":0},{"$f":"VLOOKUP($I907,Func,6)*$H907","v":3237193.1229937677},{"$f":"VLOOKUP($I907,Func,7)*$H907","v":0},null,null,null,null,null,null,null,"CUST",{"$f":"+$L907*VLOOKUP($V907,DisFac,2)","v":0},{"$f":"+$L907*VLOOKUP($V907,DisFac,3)","v":0},{"$f":"+$L907*VLOOKUP($V907,DisFac,4)","v":0},{"$f":"+$L907*VLOOKUP($V907,DisFac,5)","v":0},{"$f":"+$L907*VLOOKUP($V907,DisFac,6)","v":0},0,"UACCT903CS",{"$f":"ROUND(SUM(-H907,J907:N907),0)","v":0},{"$f":"ROUND(J907-Q907-R907,0)","v":0},{"$f":"ROUND(K907-T907-U907,0)","v":0},{"$f":"ROUND(L907-W907-X907-Y907-Z907-AA907,0)","v":0}]
[908,null,null,null,null,null,"ACCT903",{"$f":"'JAM Download'!E819","v":3981820.0734477621},null,{"$f":"SUM(J906:J907)","v":0},{"$f":"SUM(K906:K907)","v":0},{"$f":"SUM(L906:L907)","v":0},{"$f":"SUM(M906:M907)","v":3981820.0734477621},{"$f":"SUM(N906:N907)","v":0},null,null,{"$f":"SUM(Q906:Q907)","v":0},{"$f":"SUM(R906:R907)","v":0},null,{"$f":"SUM(T906:T907)","v":0},{"$f":"SUM(U906:U907)","v":0},null,{"$f":"SUM(W906:W907)","v":0},{"$f":"SUM(X906:X907)","v":0},{"$f":"SUM(Y906:Y907)","v":0},{"$f":"SUM(Z906:Z907)","v":0},{"$f":"SUM(AA906:AA907)","v":0},0,"UACCT903",{"$f":"ROUND(SUM(-H908,J908:N908),0)","v":0},{"$f":"ROUND(J908-Q908-R908,0)","v":0},{"$f":"ROUND(K908-T908-U908,0)","v":0},{"$f":"ROUND(L908-W908-X908-Y908-Z908-AA908,0)","v":0}]
[909]
[910,904,"Uncollectible Accounts"]
[911,null,null,"S",904,"S","ACCT904S",{"$f":"'JAM Download'!E822","v":2205875.3724037027},"CUST",{"$f":"VLOOKUP($I911,Func,2)*$H911","v":0},{"$f":"VLOOKUP($I911,Func,3)*$H911","v":0},{"$f":"VLOOKUP($I911,Func,5)*$H911","v":0},{"$f":"VLOOKUP($I911,Func,6)*$H911","v":2205875.3724037027},{"$f":"VLOOKUP($I911,Func,7)*$H911","v":0},null,null,null,null,null,null,null,"CUST",{"$f":"+$L911*VLOOKUP($V911,DisFac,2)","v":0},{"$f":"+$L911*VLOOKUP($V911,DisFac,3)","v":0},{"$f":"+$L911*VLOOKUP($V911,DisFac,4)","v":0},{"$f":"+$L911*VLOOKUP($V911,DisFac,5)","v":0},{"$f":"+$L911*VLOOKUP($V911,DisFac,6)","v":0},0,"UACCT904S",{"$f":"ROUND(SUM(-H911,J911:N911),0)","v":0},{"$f":"ROUND(J911-Q911-R911,0)","v":0},{"$f":"ROUND(K911-T911-U911,0)","v":0},{"$f":"ROUND(L911-W911-X911-Y911-Z911-AA911,0)","v":0}]
[912,null,null,"SG",904,"SG","ACCT904SG",{"$f":"'JAM Download'!E823","v":0},"P",{"$f":"VLOOKUP($I912,Func,2)*$H912","v":0},{"$f":"VLOOKUP($I912,Func,3)*$H912","v":0},{"$f":"VLOOKUP($I912,Func,5)*$H912","v":0},{"$f":"VLOOKUP($I912,Func,6)*$H912","v":0},{"$f":"VLOOKUP($I912,Func,7)*$H912","v":0},null,{"$f":"Demand","v":0.38},{"$f":"+$J912*$P912","v":0},{"$f":"+$J912*(1-$P912)","v":0},null,{"$f":"+$K912*$S912","v":0},{"$f":"+$K912*(1-$S912)","v":0},null,null,null,null,null,null,null,"UACCT904SG",{"$f":"ROUND(SUM(-H912,J912:N912),0)","v":0},{"$f":"ROUND(J912-Q912-R912,0)","v":0},{"$f":"ROUND(K912-T912-U912,0)","v":0},{"$f":"ROUND(L912-W912-X912-Y912-Z912-AA912,0)","v":0}]
[913,null,null,"CN",904,"CN","ACCT904CN",{"$f":"'JAM Download'!E824","v":18683.311639892443},"CUST",{"$f":"VLOOKUP($I913,Func,2)*$H913","v":0},{"$f":"VLOOKUP($I913,Func,3)*$H913","v":0},{"$f":"VLOOKUP($I913,Func,5)*$H913","v":0},{"$f":"VLOOKUP($I913,Func,6)*$H913","v":18683.311639892443},{"$f":"VLOOKUP($I913,Func,7)*$H913","v":0},null,null,null,null,null,null,null,"CUST",{"$f":"+$L913*VLOOKUP($V913,DisFac,2)","v":0},{"$f":"+$L913*VLOOKUP($V913,DisFac,3)","v":0},{"$f":"+$L913*VLOOKUP($V913,DisFac,4)","v":0},{"$f":"+$L913*VLOOKUP($V913,DisFac,5)","v":0},{"$f":"+$L913*VLOOKUP($V913,DisFac,6)","v":0},0,"UACCT904CS",{"$f":"ROUND(SUM(-H913,J913:N913),0)","v":0},{"$f":"ROUND(J913-Q913-R913,0)","v":0},{"$f":"ROUND(K913-T913-U913,0)","v":0},{"$f":"ROUND(L913-W913-X913-Y913-Z913-AA913,0)","v":0}]
[914,null,null,null,null,null,"ACCT904",{"$f":"'JAM Download'!E825","v":2224558.6840435951},null,{"$f":"SUM(J911:J913)","v":0},{"$f":"SUM(K911:K913)","v":0},{"$f":"SUM(L911:L913)","v":0},{"$f":"SUM(M911:M913)","v":2224558.6840435951},{"$f":"SUM(N911:N913)","v":0},null,null,{"$f":"SUM(Q911:Q913)","v":0},{"$f":"SUM(R911:R913)","v":0},null,{"$f":"SUM(T911:T913)","v":0},{"$f":"SUM(U911:U913)","v":0},null,{"$f":"SUM(W911:W913)","v":0},{"$f":"SUM(X911:X913)","v":0},{"$f":"SUM(Y911:Y913)","v":0},{"$f":"SUM(Z911:Z913)","v":0},{"$f":"SUM(AA911:AA913)","v":0},0,"UACCT904",{"$f":"ROUND(SUM(-H914,J914:N914),0)","v":0},{"$f":"ROUND(J914-Q914-R914,0)","v":0},{"$f":"ROUND(K914-T914-U914,0)","v":0},{"$f":"ROUND(L914-W914-X914-Y914-Z914-AA914,0)","v":0}]
[915]
[916,905,"Misc. Customer Accounts Expense"]
[917,null,null,"S",905,"S","ACCT905S",{"$f":"'JAM Download'!E828","v":0},"CUST",{"$f":"VLOOKUP($I917,Func,2)*$H917","v":0},{"$f":"VLOOKUP($I917,Func,3)*$H917","v":0},{"$f":"VLOOKUP($I917,Func,5)*$H917","v":0},{"$f":"VLOOKUP($I917,Func,6)*$H917","v":0},{"$f":"VLOOKUP($I917,Func,7)*$H917","v":0},null,null,null,null,null,null,null,"CUST",{"$f":"+$L917*VLOOKUP($V917,DisFac,2)","v":0},{"$f":"+$L917*VLOOKUP($V917,DisFac,3)","v":0},{"$f":"+$L917*VLOOKUP($V917,DisFac,4)","v":0},{"$f":"+$L917*VLOOKUP($V917,DisFac,5)","v":0},{"$f":"+$L917*VLOOKUP($V917,DisFac,6)","v":0},0,"UACCT905S",{"$f":"ROUND(SUM(-H917,J917:N917),0)","v":0},{"$f":"ROUND(J917-Q917-R917,0)","v":0},{"$f":"ROUND(K917-T917-U917,0)","v":0},{"$f":"ROUND(L917-W917-X917-Y917-Z917-AA917,0)","v":0}]
[918,null,null,"CN",905,"CN","ACCT905CN",{"$f":"'JAM Download'!E829","v":11842.924124365636},"CUST",{"$f":"VLOOKUP($I918,Func,2)*$H918","v":0},{"$f":"VLOOKUP($I918,Func,3)*$H918","v":0},{"$f":"VLOOKUP($I918,Func,5)*$H918","v":0},{"$f":"VLOOKUP($I918,Func,6)*$H918","v":11842.924124365636},{"$f":"VLOOKUP($I918,Func,7)*$H918","v":0},null,null,null,null,null,null,null,"CUST",{"$f":"+$L918*VLOOKUP($V918,DisFac,2)","v":0},{"$f":"+$L918*VLOOKUP($V918,DisFac,3)","v":0},{"$f":"+$L918*VLOOKUP($V918,DisFac,4)","v":0},{"$f":"+$L918*VLOOKUP($V918,DisFac,5)","v":0},{"$f":"+$L918*VLOOKUP($V918,DisFac,6)","v":0},0,"UACCT905CS",{"$f":"ROUND(SUM(-H918,J918:N918),0)","v":0},{"$f":"ROUND(J918-Q918-R918,0)","v":0},{"$f":"ROUND(K918-T918-U918,0)","v":0},{"$f":"ROUND(L918-W918-X918-Y918-Z918-AA918,0)","v":0}]
[919,null,null,null,null,null,"ACCT905",{"$f":"'JAM Download'!E830","v":11842.924124365636},null,{"$f":"SUM(J917:J918)","v":0},{"$f":"SUM(K917:K918)","v":0},{"$f":"SUM(L917:L918)","v":0},{"$f":"SUM(M917:M918)","v":11842.924124365636},{"$f":"SUM(N917:N918)","v":0},null,null,{"$f":"SUM(Q917:Q918)","v":0},{"$f":"SUM(R917:R918)","v":0},null,{"$f":"SUM(T917:T918)","v":0},{"$f":"SUM(U917:U918)","v":0},null,{"$f":"SUM(W917:W918)","v":0},{"$f":"SUM(X917:X918)","v":0},{"$f":"SUM(Y917:Y918)","v":0},{"$f":"SUM(Z917:Z918)","v":0},{"$f":"SUM(AA917:AA918)","v":0},0,"UACCT905",{"$f":"ROUND(SUM(-H919,J919:N919),0)","v":0},{"$f":"ROUND(J919-Q919-R919,0)","v":0},{"$f":"ROUND(K919-T919-U919,0)","v":0},{"$f":"ROUND(L919-W919-X919-Y919-Z919-AA919,0)","v":0}]
[920,null,null,null,null,null,null,{"$f":"'JAM Download'!E831","v":0}]
[921,"TOTAL CUSTOMER ACCOUNTS EXPENSE",null,null,null,null,null,{"$f":"'JAM Download'!E832","v":7374107.7510913713},null,{"$f":"+J919+J914+J908+J903+J898","v":0},{"$f":"+K919+K914+K908+K903+K898","v":0},{"$f":"+L919+L914+L908+L903+L898","v":0},{"$f":"+M919+M914+M908+M903+M898","v":7374107.7510913713},{"$f":"+N919+N914+N908+N903+N898","v":0},null,null,{"$f":"+Q919+Q914+Q908+Q903+Q898","v":0},{"$f":"+R919+R914+R908+R903+R898","v":0},{"$f":"+S919+S914+S908+S903+S898","v":0},{"$f":"+T919+T914+T908+T903+T898","v":0},{"$f":"+U919+U914+U908+U903+U898","v":0},null,{"$f":"+W919+W914+W908+W903+W898","v":0},{"$f":"+X919+X914+X908+X903+X898","v":0},{"$f":"+Y919+Y914+Y908+Y903+Y898","v":0},{"$f":"+Z919+Z914+Z908+Z903+Z898","v":0},{"$f":"+AA919+AA914+AA908+AA903+AA898","v":0},0,null,{"$f":"ROUND(SUM(-H921,J921:N921),0)","v":0},{"$f":"ROUND(J921-Q921-R921,0)","v":0},{"$f":"ROUND(K921-T921-U921,0)","v":0},{"$f":"ROUND(L921-W921-X921-Y921-Z921-AA921,0)","v":0}]
[922]
[923]
[924]
[925]
[926]
[927,"FERC",null,"DESCRIPTION &","FERC",null,"RANGE",{"$f":"+$H$250","v":"Jurisdictional"},"FUNC","GEN","TRN","DIS","RETAIL","MISC",null,"D / E","GEN","GEN","D / E","TRN","TRN","DIS","DIS","DIS","DIS","DIS","DIS","DIS","Unbundled ACCT:","Function","Generation","Transmission","Distribution"]
[928,"ACCT",null,"CONSENSUS FACTOR","ACCT","FACTOR","NAME","ADJ Total","FACTOR","TOTAL","TOTAL","TOTAL","TOTAL","TOTAL",null,"SPLIT","DEMAND","ENERGY","SPLIT","DEMAND","ENERGY","SPLIT","SUBS","P & C","XFMR","METER","SERVICE","METER","TOTAL","Check","Check","Check","Check"]
[929]
[930,907,"Supervision"]
[931,null,null,"S",907,"S","ACCT907S",{"$f":"'JAM Download'!E841","v":0},"CUST",{"$f":"VLOOKUP($I931,Func,2)*$H931","v":0},{"$f":"VLOOKUP($I931,Func,3)*$H931","v":0},{"$f":"VLOOKUP($I931,Func,5)*$H931","v":0},{"$f":"VLOOKUP($I931,Func,6)*$H931","v":0},{"$f":"VLOOKUP($I931,Func,7)*$H931","v":0},null,null,null,null,null,null,null,"CUST",{"$f":"+$L931*VLOOKUP($V931,DisFac,2)","v":0},{"$f":"+$L931*VLOOKUP($V931,DisFac,3)","v":0},{"$f":"+$L931*VLOOKUP($V931,DisFac,4)","v":0},{"$f":"+$L931*VLOOKUP($V931,DisFac,5)","v":0},{"$f":"+$L931*VLOOKUP($V931,DisFac,6)","v":0},0,"UACCT907S",{"$f":"ROUND(SUM(-H931,J931:N931),0)","v":0},{"$f":"ROUND(J931-Q931-R931,0)","v":0},{"$f":"ROUND(K931-T931-U931,0)","v":0},{"$f":"ROUND(L931-W931-X931-Y931-Z931-AA931,0)","v":0}]
[932,null,null,"CN",907,"CN","ACCT907CN",{"$f":"'JAM Download'!E842","v":20658.756281480728},"CUST",{"$f":"VLOOKUP($I932,Func,2)*$H932","v":0},{"$f":"VLOOKUP($I932,Func,3)*$H932","v":0},{"$f":"VLOOKUP($I932,Func,5)*$H932","v":0},{"$f":"VLOOKUP($I932,Func,6)*$H932","v":20658.756281480728},{"$f":"VLOOKUP($I932,Func,7)*$H932","v":0},null,null,null,null,null,null,null,"CUST",{"$f":"+$L932*VLOOKUP($V932,DisFac,2)","v":0},{"$f":"+$L932*VLOOKUP($V932,DisFac,3)","v":0},{"$f":"+$L932*VLOOKUP($V932,DisFac,4)","v":0},{"$f":"+$L932*VLOOKUP($V932,DisFac,5)","v":0},{"$f":"+$L932*VLOOKUP($V932,DisFac,6)","v":0},0,"UACCT907CS",{"$f":"ROUND(SUM(-H932,J932:N932),0)","v":0},{"$f":"ROUND(J932-Q932-R932,0)","v":0},{"$f":"ROUND(K932-T932-U932,0)","v":0},{"$f":"ROUND(L932-W932-X932-Y932-Z932-AA932,0)","v":0}]
[933,null,null,null,null,null,"ACCT907",{"$f":"'JAM Download'!E843","v":20658.756281480728},null,{"$f":"SUM(J931:J932)","v":0},{"$f":"SUM(K931:K932)","v":0},{"$f":"SUM(L931:L932)","v":0},{"$f":"SUM(M931:M932)","v":20658.756281480728},{"$f":"SUM(N931:N932)","v":0},null,null,{"$f":"SUM(Q931:Q932)","v":0},{"$f":"SUM(R931:R932)","v":0},null,{"$f":"SUM(T931:T932)","v":0},{"$f":"SUM(U931:U932)","v":0},null,{"$f":"SUM(W931:W932)","v":0},{"$f":"SUM(X931:X932)","v":0},{"$f":"SUM(Y931:Y932)","v":0},{"$f":"SUM(Z931:Z932)","v":0},{"$f":"SUM(AA931:AA932)","v":0},0,"UACCT907",{"$f":"ROUND(SUM(-H933,J933:N933),0)","v":0},{"$f":"ROUND(J933-Q933-R933,0)","v":0},{"$f":"ROUND(K933-T933-U933,0)","v":0},{"$f":"ROUND(L933-W933-X933-Y933-Z933-AA933,0)","v":0}]
[934]
[935,908,"Customer Assistance"]
[936,null,null,"S",908,"S","ACCT908S",{"$f":"'JAM Download'!E846","v":463666.8983083088},"CUST",{"$f":"VLOOKUP($I936,Func,2)*$H936","v":0},{"$f":"VLOOKUP($I936,Func,3)*$H936","v":0},{"$f":"VLOOKUP($I936,Func,5)*$H936","v":0},{"$f":"VLOOKUP($I936,Func,6)*$H936","v":463666.8983083088},{"$f":"VLOOKUP($I936,Func,7)*$H936","v":0},null,null,null,null,null,null,null,"CUST",{"$f":"+$L936*VLOOKUP($V936,DisFac,2)","v":0},{"$f":"+$L936*VLOOKUP($V936,DisFac,3)","v":0},{"$f":"+$L936*VLOOKUP($V936,DisFac,4)","v":0},{"$f":"+$L936*VLOOKUP($V936,DisFac,5)","v":0},{"$f":"+$L936*VLOOKUP($V936,DisFac,6)","v":0},0,"UACCT908S",{"$f":"ROUND(SUM(-H936,J936:N936),0)","v":0},{"$f":"ROUND(J936-Q936-R936,0)","v":0},{"$f":"ROUND(K936-T936-U936,0)","v":0},{"$f":"ROUND(L936-W936-X936-Y936-Z936-AA936,0)","v":0}]
[937,null,null,"CN",908,"CN","ACCT908CN",{"$f":"'JAM Download'!E847","v":106886.56838039421},"CUST",{"$f":"VLOOKUP($I937,Func,2)*$H937","v":0},{"$f":"VLOOKUP($I937,Func,3)*$H937","v":0},{"$f":"VLOOKUP($I937,Func,5)*$H937","v":0},{"$f":"VLOOKUP($I937,Func,6)*$H937","v":106886.56838039421},{"$f":"VLOOKUP($I937,Func,7)*$H937","v":0},null,null,null,null,null,null,null,"CUST",{"$f":"+$L937*VLOOKUP($V937,DisFac,2)","v":0},{"$f":"+$L937*VLOOKUP($V937,DisFac,3)","v":0},{"$f":"+$L937*VLOOKUP($V937,DisFac,4)","v":0},{"$f":"+$L937*VLOOKUP($V937,DisFac,5)","v":0},{"$f":"+$L937*VLOOKUP($V937,DisFac,6)","v":0},0,"UACCT908CS",{"$f":"ROUND(SUM(-H937,J937:N937),0)","v":0},{"$f":"ROUND(J937-Q937-R937,0)","v":0},{"$f":"ROUND(K937-T937-U937,0)","v":0},{"$f":"ROUND(L937-W937-X937-Y937-Z937-AA937,0)","v":0}]
[938,null,null,null,null,null,"ACCT908",{"$f":"'JAM Download'!E848","v":570553.46668870305},null,{"$f":"SUM(J936:J937)","v":0},{"$f":"SUM(K936:K937)","v":0},{"$f":"SUM(L936:L937)","v":0},{"$f":"SUM(M936:M937)","v":570553.46668870305},{"$f":"SUM(N936:N937)","v":0},null,null,{"$f":"SUM(Q936:Q937)","v":0},{"$f":"SUM(R936:R937)","v":0},null,{"$f":"SUM(T936:T937)","v":0},{"$f":"SUM(U936:U937)","v":0},null,{"$f":"SUM(W936:W937)","v":0},{"$f":"SUM(X936:X937)","v":0},{"$f":"SUM(Y936:Y937)","v":0},{"$f":"SUM(Z936:Z937)","v":0},{"$f":"SUM(AA936:AA937)","v":0},0,"UACCT908",{"$f":"ROUND(SUM(-H938,J938:N938),0)","v":0},{"$f":"ROUND(J938-Q938-R938,0)","v":0},{"$f":"ROUND(K938-T938-U938,0)","v":0},{"$f":"ROUND(L938-W938-X938-Y938-Z938-AA938,0)","v":0}]
[939]
[940,909,"Informational & Instructional Adv"]
[941,null,null,"S",909,"S","ACCT909S",{"$f":"'JAM Download'!E851","v":118181.26999999999},"CUST",{"$f":"VLOOKUP($I941,Func,2)*$H941","v":0},{"$f":"VLOOKUP($I941,Func,3)*$H941","v":0},{"$f":"VLOOKUP($I941,Func,5)*$H941","v":0},{"$f":"VLOOKUP($I941,Func,6)*$H941","v":118181.26999999999},{"$f":"VLOOKUP($I941,Func,7)*$H941","v":0},null,null,null,null,null,null,null,"CUST",{"$f":"+$L941*VLOOKUP($V941,DisFac,2)","v":0},{"$f":"+$L941*VLOOKUP($V941,DisFac,3)","v":0},{"$f":"+$L941*VLOOKUP($V941,DisFac,4)","v":0},{"$f":"+$L941*VLOOKUP($V941,DisFac,5)","v":0},{"$f":"+$L941*VLOOKUP($V941,DisFac,6)","v":0},0,"UACCT909S",{"$f":"ROUND(SUM(-H941,J941:N941),0)","v":0},{"$f":"ROUND(J941-Q941-R941,0)","v":0},{"$f":"ROUND(K941-T941-U941,0)","v":0},{"$f":"ROUND(L941-W941-X941-Y941-Z941-AA941,0)","v":0}]
[942,null,null,"CN",909,"CN","ACCT909CN",{"$f":"'JAM Download'!E852","v":193466.88496519884},"CUST",{"$f":"VLOOKUP($I942,Func,2)*$H942","v":0},{"$f":"VLOOKUP($I942,Func,3)*$H942","v":0},{"$f":"VLOOKUP($I942,Func,5)*$H942","v":0},{"$f":"VLOOKUP($I942,Func,6)*$H942","v":193466.88496519884},{"$f":"VLOOKUP($I942,Func,7)*$H942","v":0},null,null,null,null,null,null,null,"CUST",{"$f":"+$L942*VLOOKUP($V942,DisFac,2)","v":0},{"$f":"+$L942*VLOOKUP($V942,DisFac,3)","v":0},{"$f":"+$L942*VLOOKUP($V942,DisFac,4)","v":0},{"$f":"+$L942*VLOOKUP($V942,DisFac,5)","v":0},{"$f":"+$L942*VLOOKUP($V942,DisFac,6)","v":0},0,"UACCT909CS",{"$f":"ROUND(SUM(-H942,J942:N942),0)","v":0},{"$f":"ROUND(J942-Q942-R942,0)","v":0},{"$f":"ROUND(K942-T942-U942,0)","v":0},{"$f":"ROUND(L942-W942-X942-Y942-Z942-AA942,0)","v":0}]
[943,null,null,null,null,null,"ACCT909",{"$f":"'JAM Download'!E853","v":311648.15496519883},null,{"$f":"SUM(J941:J942)","v":0},{"$f":"SUM(K941:K942)","v":0},{"$f":"SUM(L941:L942)","v":0},{"$f":"SUM(M941:M942)","v":311648.15496519883},{"$f":"SUM(N941:N942)","v":0},null,null,{"$f":"SUM(Q941:Q942)","v":0},{"$f":"SUM(R941:R942)","v":0},null,{"$f":"SUM(T941:T942)","v":0},{"$f":"SUM(U941:U942)","v":0},null,{"$f":"SUM(W941:W942)","v":0},{"$f":"SUM(X941:X942)","v":0},{"$f":"SUM(Y941:Y942)","v":0},{"$f":"SUM(Z941:Z942)","v":0},{"$f":"SUM(AA941:AA942)","v":0},0,"UACCT909",{"$f":"ROUND(SUM(-H943,J943:N943),0)","v":0},{"$f":"ROUND(J943-Q943-R943,0)","v":0},{"$f":"ROUND(K943-T943-U943,0)","v":0},{"$f":"ROUND(L943-W943-X943-Y943-Z943-AA943,0)","v":0}]
[944]
[945,910,"Misc. Customer Service"]
[946,null,null,"S",910,"S","ACCT910S",{"$f":"'JAM Download'!E856","v":0},"CUST",{"$f":"VLOOKUP($I946,Func,2)*$H946","v":0},{"$f":"VLOOKUP($I946,Func,3)*$H946","v":0},{"$f":"VLOOKUP($I946,Func,5)*$H946","v":0},{"$f":"VLOOKUP($I946,Func,6)*$H946","v":0},{"$f":"VLOOKUP($I946,Func,7)*$H946","v":0},null,null,null,null,null,null,null,"CUST",{"$f":"+$L946*VLOOKUP($V946,DisFac,2)","v":0},{"$f":"+$L946*VLOOKUP($V946,DisFac,3)","v":0},{"$f":"+$L946*VLOOKUP($V946,DisFac,4)","v":0},{"$f":"+$L946*VLOOKUP($V946,DisFac,5)","v":0},{"$f":"+$L946*VLOOKUP($V946,DisFac,6)","v":0},0,"UACCT910S",{"$f":"ROUND(SUM(-H946,J946:N946),0)","v":0},{"$f":"ROUND(J946-Q946-R946,0)","v":0},{"$f":"ROUND(K946-T946-U946,0)","v":0},{"$f":"ROUND(L946-W946-X946-Y946-Z946-AA946,0)","v":0}]
[947,null,null,"CN",910,"CN","ACCT910CN",{"$f":"'JAM Download'!E857","v":8169.3380715107123},"CUST",{"$f":"VLOOKUP($I947,Func,2)*$H947","v":0},{"$f":"VLOOKUP($I947,Func,3)*$H947","v":0},{"$f":"VLOOKUP($I947,Func,5)*$H947","v":0},{"$f":"VLOOKUP($I947,Func,6)*$H947","v":8169.3380715107123},{"$f":"VLOOKUP($I947,Func,7)*$H947","v":0},null,null,null,null,null,null,null,"CUST",{"$f":"+$L947*VLOOKUP($V947,DisFac,2)","v":0},{"$f":"+$L947*VLOOKUP($V947,DisFac,3)","v":0},{"$f":"+$L947*VLOOKUP($V947,DisFac,4)","v":0},{"$f":"+$L947*VLOOKUP($V947,DisFac,5)","v":0},{"$f":"+$L947*VLOOKUP($V947,DisFac,6)","v":0},0,"UACCT910CS",{"$f":"ROUND(SUM(-H947,J947:N947),0)","v":0},{"$f":"ROUND(J947-Q947-R947,0)","v":0},{"$f":"ROUND(K947-T947-U947,0)","v":0},{"$f":"ROUND(L947-W947-X947-Y947-Z947-AA947,0)","v":0}]
[948,null,null,null,null,null,"ACCT910",{"$f":"'JAM Download'!E859","v":8169.3380715107123},null,{"$f":"SUM(J946:J947)","v":0},{"$f":"SUM(K946:K947)","v":0},{"$f":"SUM(L946:L947)","v":0},{"$f":"SUM(M946:M947)","v":8169.3380715107123},{"$f":"SUM(N946:N947)","v":0},null,null,{"$f":"SUM(Q946:Q947)","v":0},{"$f":"SUM(R946:R947)","v":0},null,{"$f":"SUM(T946:T947)","v":0},{"$f":"SUM(U946:U947)","v":0},null,{"$f":"SUM(W946:W947)","v":0},{"$f":"SUM(X946:X947)","v":0},{"$f":"SUM(Y946:Y947)","v":0},{"$f":"SUM(Z946:Z947)","v":0},{"$f":"SUM(AA946:AA947)","v":0},0,"UACCT910",{"$f":"ROUND(SUM(-H948,J948:N948),0)","v":0},{"$f":"ROUND(J948-Q948-R948,0)","v":0},{"$f":"ROUND(K948-T948-U948,0)","v":0},{"$f":"ROUND(L948-W948-X948-Y948-Z948-AA948,0)","v":0}]
[949]
[950,"TOTAL CUSTOMER SERVICE EXPENSE",null,null,null,null,null,{"$f":"'JAM Download'!E861","v":911029.7160068932},null,{"$f":"+J948+J943+J938+J933","v":0},{"$f":"+K948+K943+K938+K933","v":0},{"$f":"+L948+L943+L938+L933","v":0},{"$f":"+M948+M943+M938+M933","v":911029.71600689332},{"$f":"+N948+N943+N938+N933","v":0},null,null,{"$f":"+Q948+Q943+Q938+Q933","v":0},{"$f":"+R948+R943+R938+R933","v":0},null,{"$f":"+T948+T943+T938+T933","v":0},{"$f":"+U948+U943+U938+U933","v":0},null,{"$f":"+W948+W943+W938+W933","v":0},{"$f":"+X948+X943+X938+X933","v":0},{"$f":"+Y948+Y943+Y938+Y933","v":0},{"$f":"+Z948+Z943+Z938+Z933","v":0},{"$f":"+AA948+AA943+AA938+AA933","v":0},0,null,{"$f":"ROUND(SUM(-H950,J950:N950),0)","v":0},{"$f":"ROUND(J950-Q950-R950,0)","v":0},{"$f":"ROUND(K950-T950-U950,0)","v":0},{"$f":"ROUND(L950-W950-X950-Y950-Z950-AA950,0)","v":0}]
[951]
[952]
[953,"FERC",null,"DESCRIPTION &","FERC",null,"RANGE",{"$f":"+$H$250","v":"Jurisdictional"},"FUNC","GEN","TRN","DIS","RETAIL","MISC",null,"D / E","GEN","GEN","D / E","TRN","TRN","DIS","DIS","DIS","DIS","DIS","DIS","DIS","Unbundled ACCT:","Function","Generation","Transmission","Distribution"]
[954,"ACCT",null,"CONSENSUS FACTOR","ACCT","FACTOR","NAME","ADJ Total","FACTOR","TOTAL","TOTAL","TOTAL","TOTAL","TOTAL",null,"SPLIT","DEMAND","ENERGY","SPLIT","DEMAND","ENERGY","SPLIT","SUBS","P & C","XFMR","METER","SERVICE","METER","TOTAL","Check","Check","Check","Check"]
[955]
[956,911,"Supervision"]
[{"$f":"A956+1","v":957},null,null,"S",911,"S","ACCT911S",{"$f":"'JAM Download'!E872","v":0},"CUST",{"$f":"VLOOKUP($I957,Func,2)*$H957","v":0},{"$f":"VLOOKUP($I957,Func,3)*$H957","v":0},{"$f":"VLOOKUP($I957,Func,5)*$H957","v":0},{"$f":"VLOOKUP($I957,Func,6)*$H957","v":0},{"$f":"VLOOKUP($I957,Func,7)*$H957","v":0},null,null,null,null,null,null,null,"CUST",{"$f":"+$L957*VLOOKUP($V957,DisFac,2)","v":0},{"$f":"+$L957*VLOOKUP($V957,DisFac,3)","v":0},{"$f":"+$L957*VLOOKUP($V957,DisFac,4)","v":0},{"$f":"+$L957*VLOOKUP($V957,DisFac,5)","v":0},{"$f":"+$L957*VLOOKUP($V957,DisFac,6)","v":0},0,"UACCT911S",{"$f":"ROUND(SUM(-H957,J957:N957),0)","v":0},{"$f":"ROUND(J957-Q957-R957,0)","v":0},{"$f":"ROUND(K957-T957-U957,0)","v":0},{"$f":"ROUND(L957-W957-X957-Y957-Z957-AA957,0)","v":0}]
[958,null,null,"CN",911,"CN","ACCT911CS",{"$f":"'JAM Download'!E873","v":0},"CUST",{"$f":"VLOOKUP($I958,Func,2)*$H958","v":0},{"$f":"VLOOKUP($I958,Func,3)*$H958","v":0},{"$f":"VLOOKUP($I958,Func,5)*$H958","v":0},{"$f":"VLOOKUP($I958,Func,6)*$H958","v":0},{"$f":"VLOOKUP($I958,Func,7)*$H958","v":0},null,null,null,null,null,null,null,"CUST",{"$f":"+$L958*VLOOKUP($V958,DisFac,2)","v":0},{"$f":"+$L958*VLOOKUP($V958,DisFac,3)","v":0},{"$f":"+$L958*VLOOKUP($V958,DisFac,4)","v":0},{"$f":"+$L958*VLOOKUP($V958,DisFac,5)","v":0},{"$f":"+$L958*VLOOKUP($V958,DisFac,6)","v":0},0,"UACCT911CS",{"$f":"ROUND(SUM(-H958,J958:N958),0)","v":0},{"$f":"ROUND(J958-Q958-R958,0)","v":0},{"$f":"ROUND(K958-T958-U958,0)","v":0},{"$f":"ROUND(L958-W958-X958-Y958-Z958-AA958,0)","v":0}]
[959,null,null,null,null,null,"ACCT911",{"$f":"'JAM Download'!E874","v":0},null,{"$f":"SUM(J957:J958)","v":0},{"$f":"SUM(K957:K958)","v":0},{"$f":"SUM(L957:L958)","v":0},{"$f":"SUM(M957:M958)","v":0},{"$f":"SUM(N957:N958)","v":0},null,null,{"$f":"SUM(Q957:Q958)","v":0},{"$f":"SUM(R957:R958)","v":0},null,{"$f":"SUM(T957:T958)","v":0},{"$f":"SUM(U957:U958)","v":0},null,{"$f":"SUM(W957:W958)","v":0},{"$f":"SUM(X957:X958)","v":0},{"$f":"SUM(Y957:Y958)","v":0},{"$f":"SUM(Z957:Z958)","v":0},{"$f":"SUM(AA957:AA958)","v":0},0,"UACCT911",{"$f":"ROUND(SUM(-H959,J959:N959),0)","v":0},{"$f":"ROUND(J959-Q959-R959,0)","v":0},{"$f":"ROUND(K959-T959-U959,0)","v":0},{"$f":"ROUND(L959-W959-X959-Y959-Z959-AA959,0)","v":0}]
[960]
[961,912,"Demonstration & Selling Expense"]
[962,null,null,"S",912,"S","ACCT912S",{"$f":"'JAM Download'!E877","v":0},"CUST",{"$f":"VLOOKUP($I962,Func,2)*$H962","v":0},{"$f":"VLOOKUP($I962,Func,3)*$H962","v":0},{"$f":"VLOOKUP($I962,Func,5)*$H962","v":0},{"$f":"VLOOKUP($I962,Func,6)*$H962","v":0},{"$f":"VLOOKUP($I962,Func,7)*$H962","v":0},null,null,null,null,null,null,null,"CUST",{"$f":"+$L962*VLOOKUP($V962,DisFac,2)","v":0},{"$f":"+$L962*VLOOKUP($V962,DisFac,3)","v":0},{"$f":"+$L962*VLOOKUP($V962,DisFac,4)","v":0},{"$f":"+$L962*VLOOKUP($V962,DisFac,5)","v":0},{"$f":"+$L962*VLOOKUP($V962,DisFac,6)","v":0},0,"UACCT912S",{"$f":"ROUND(SUM(-H962,J962:N962),0)","v":0},{"$f":"ROUND(J962-Q962-R962,0)","v":0},{"$f":"ROUND(K962-T962-U962,0)","v":0},{"$f":"ROUND(L962-W962-X962-Y962-Z962-AA962,0)","v":0}]
[963,null,null,"CN",912,"CN","ACCT912CN",{"$f":"'JAM Download'!E878","v":0},"CUST",{"$f":"VLOOKUP($I963,Func,2)*$H963","v":0},{"$f":"VLOOKUP($I963,Func,3)*$H963","v":0},{"$f":"VLOOKUP($I963,Func,5)*$H963","v":0},{"$f":"VLOOKUP($I963,Func,6)*$H963","v":0},{"$f":"VLOOKUP($I963,Func,7)*$H963","v":0},null,null,null,null,null,null,null,"CUST",{"$f":"+$L963*VLOOKUP($V963,DisFac,2)","v":0},{"$f":"+$L963*VLOOKUP($V963,DisFac,3)","v":0},{"$f":"+$L963*VLOOKUP($V963,DisFac,4)","v":0},{"$f":"+$L963*VLOOKUP($V963,DisFac,5)","v":0},{"$f":"+$L963*VLOOKUP($V963,DisFac,6)","v":0},0,"UACCT912CS",{"$f":"ROUND(SUM(-H963,J963:N963),0)","v":0},{"$f":"ROUND(J963-Q963-R963,0)","v":0},{"$f":"ROUND(K963-T963-U963,0)","v":0},{"$f":"ROUND(L963-W963-X963-Y963-Z963-AA963,0)","v":0}]
[964,null,null,null,null,null,"ACCT912",{"$f":"'JAM Download'!E879","v":0},null,{"$f":"SUM(J962:J963)","v":0},{"$f":"SUM(K962:K963)","v":0},{"$f":"SUM(L962:L963)","v":0},{"$f":"SUM(M962:M963)","v":0},{"$f":"SUM(N962:N963)","v":0},null,null,{"$f":"SUM(Q962:Q963)","v":0},{"$f":"SUM(R962:R963)","v":0},null,{"$f":"SUM(T962:T963)","v":0},{"$f":"SUM(U962:U963)","v":0},null,{"$f":"SUM(W962:W963)","v":0},{"$f":"SUM(X962:X963)","v":0},{"$f":"SUM(Y962:Y963)","v":0},{"$f":"SUM(Z962:Z963)","v":0},{"$f":"SUM(AA962:AA963)","v":0},0,"UACCT912",{"$f":"ROUND(SUM(-H964,J964:N964),0)","v":0},{"$f":"ROUND(J964-Q964-R964,0)","v":0},{"$f":"ROUND(K964-T964-U964,0)","v":0},{"$f":"ROUND(L964-W964-X964-Y964-Z964-AA964,0)","v":0}]
[965]
[966,913,"Advertising Expense"]
[967,null,null,"S",913,"S","ACCT913S",{"$f":"'JAM Download'!E882","v":0},"CUST",{"$f":"VLOOKUP($I967,Func,2)*$H967","v":0},{"$f":"VLOOKUP($I967,Func,3)*$H967","v":0},{"$f":"VLOOKUP($I967,Func,5)*$H967","v":0},{"$f":"VLOOKUP($I967,Func,6)*$H967","v":0},{"$f":"VLOOKUP($I967,Func,7)*$H967","v":0},null,null,null,null,null,null,null,"CUST",{"$f":"+$L967*VLOOKUP($V967,DisFac,2)","v":0},{"$f":"+$L967*VLOOKUP($V967,DisFac,3)","v":0},{"$f":"+$L967*VLOOKUP($V967,DisFac,4)","v":0},{"$f":"+$L967*VLOOKUP($V967,DisFac,5)","v":0},{"$f":"+$L967*VLOOKUP($V967,DisFac,6)","v":0},0,"UACCT913S",{"$f":"ROUND(SUM(-H967,J967:N967),0)","v":0},{"$f":"ROUND(J967-Q967-R967,0)","v":0},{"$f":"ROUND(K967-T967-U967,0)","v":0},{"$f":"ROUND(L967-W967-X967-Y967-Z967-AA967,0)","v":0}]
[968,null,null,"CN",913,"CN","ACCT913CN",{"$f":"'JAM Download'!E883","v":0},"CUST",{"$f":"VLOOKUP($I968,Func,2)*$H968","v":0},{"$f":"VLOOKUP($I968,Func,3)*$H968","v":0},{"$f":"VLOOKUP($I968,Func,5)*$H968","v":0},{"$f":"VLOOKUP($I968,Func,6)*$H968","v":0},{"$f":"VLOOKUP($I968,Func,7)*$H968","v":0},null,null,null,null,null,null,null,"CUST",{"$f":"+$L968*VLOOKUP($V968,DisFac,2)","v":0},{"$f":"+$L968*VLOOKUP($V968,DisFac,3)","v":0},{"$f":"+$L968*VLOOKUP($V968,DisFac,4)","v":0},{"$f":"+$L968*VLOOKUP($V968,DisFac,5)","v":0},{"$f":"+$L968*VLOOKUP($V968,DisFac,6)","v":0},0,"UACCT913CS",{"$f":"ROUND(SUM(-H968,J968:N968),0)","v":0},{"$f":"ROUND(J968-Q968-R968,0)","v":0},{"$f":"ROUND(K968-T968-U968,0)","v":0},{"$f":"ROUND(L968-W968-X968-Y968-Z968-AA968,0)","v":0}]
[969,null,null,null,null,null,"ACCT913",{"$f":"'JAM Download'!E884","v":0},null,{"$f":"SUM(J967:J968)","v":0},{"$f":"SUM(K967:K968)","v":0},{"$f":"SUM(L967:L968)","v":0},{"$f":"SUM(M967:M968)","v":0},{"$f":"SUM(N967:N968)","v":0},null,null,{"$f":"SUM(Q967:Q968)","v":0},{"$f":"SUM(R967:R968)","v":0},null,{"$f":"SUM(T967:T968)","v":0},{"$f":"SUM(U967:U968)","v":0},null,{"$f":"SUM(W967:W968)","v":0},{"$f":"SUM(X967:X968)","v":0},{"$f":"SUM(Y967:Y968)","v":0},{"$f":"SUM(Z967:Z968)","v":0},{"$f":"SUM(AA967:AA968)","v":0},0,"UACCT913",{"$f":"ROUND(SUM(-H969,J969:N969),0)","v":0},{"$f":"ROUND(J969-Q969-R969,0)","v":0},{"$f":"ROUND(K969-T969-U969,0)","v":0},{"$f":"ROUND(L969-W969-X969-Y969-Z969-AA969,0)","v":0}]
[970]
[971,916,"Misc. Sales Expense"]
[972,null,null,"S",916,"S","ACCT916S",{"$f":"'JAM Download'!E887","v":0},"CUST",{"$f":"VLOOKUP($I972,Func,2)*$H972","v":0},{"$f":"VLOOKUP($I972,Func,3)*$H972","v":0},{"$f":"VLOOKUP($I972,Func,5)*$H972","v":0},{"$f":"VLOOKUP($I972,Func,6)*$H972","v":0},{"$f":"VLOOKUP($I972,Func,7)*$H972","v":0},null,null,null,null,null,null,null,"CUST",{"$f":"+$L972*VLOOKUP($V972,DisFac,2)","v":0},{"$f":"+$L972*VLOOKUP($V972,DisFac,3)","v":0},{"$f":"+$L972*VLOOKUP($V972,DisFac,4)","v":0},{"$f":"+$L972*VLOOKUP($V972,DisFac,5)","v":0},{"$f":"+$L972*VLOOKUP($V972,DisFac,6)","v":0},0,"UACCT916S",{"$f":"ROUND(SUM(-H972,J972:N972),0)","v":0},{"$f":"ROUND(J972-Q972-R972,0)","v":0},{"$f":"ROUND(K972-T972-U972,0)","v":0},{"$f":"ROUND(L972-W972-X972-Y972-Z972-AA972,0)","v":0}]
[973,null,null,"CN",916,"CN","ACCT916CS",{"$f":"'JAM Download'!E888","v":0},"CUST",{"$f":"VLOOKUP($I973,Func,2)*$H973","v":0},{"$f":"VLOOKUP($I973,Func,3)*$H973","v":0},{"$f":"VLOOKUP($I973,Func,5)*$H973","v":0},{"$f":"VLOOKUP($I973,Func,6)*$H973","v":0},{"$f":"VLOOKUP($I973,Func,7)*$H973","v":0},null,null,null,null,null,null,null,"CUST",{"$f":"+$L973*VLOOKUP($V973,DisFac,2)","v":0},{"$f":"+$L973*VLOOKUP($V973,DisFac,3)","v":0},{"$f":"+$L973*VLOOKUP($V973,DisFac,4)","v":0},{"$f":"+$L973*VLOOKUP($V973,DisFac,5)","v":0},{"$f":"+$L973*VLOOKUP($V973,DisFac,6)","v":0},0,"UACCT916CS",{"$f":"ROUND(SUM(-H973,J973:N973),0)","v":0},{"$f":"ROUND(J973-Q973-R973,0)","v":0},{"$f":"ROUND(K973-T973-U973,0)","v":0},{"$f":"ROUND(L973-W973-X973-Y973-Z973-AA973,0)","v":0}]
[974,null,null,null,null,null,"ACCT916",{"$f":"'JAM Download'!E889","v":0},null,{"$f":"SUM(J972:J973)","v":0},{"$f":"SUM(K972:K973)","v":0},{"$f":"SUM(L972:L973)","v":0},{"$f":"SUM(M972:M973)","v":0},{"$f":"SUM(N972:N973)","v":0},null,null,{"$f":"SUM(Q972:Q973)","v":0},{"$f":"SUM(R972:R973)","v":0},null,{"$f":"SUM(T972:T973)","v":0},{"$f":"SUM(U972:U973)","v":0},null,{"$f":"SUM(W972:W973)","v":0},{"$f":"SUM(X972:X973)","v":0},{"$f":"SUM(Y972:Y973)","v":0},{"$f":"SUM(Z972:Z973)","v":0},{"$f":"SUM(AA972:AA973)","v":0},0,"UACCT916",{"$f":"ROUND(SUM(-H974,J974:N974),0)","v":0},{"$f":"ROUND(J974-Q974-R974,0)","v":0},{"$f":"ROUND(K974-T974-U974,0)","v":0},{"$f":"ROUND(L974-W974-X974-Y974-Z974-AA974,0)","v":0}]
[975]
[976,"TOTAL SALES EXPENSE",null,null,null,null,null,{"$f":"'JAM Download'!E891","v":0},null,{"$f":"+J974+J969+J964+J959","v":0},{"$f":"+K974+K969+K964+K959","v":0},{"$f":"+L974+L969+L964+L959","v":0},{"$f":"+M974+M969+M964+M959","v":0},{"$f":"+N974+N969+N964+N959","v":0},null,null,{"$f":"+Q974+Q969+Q964+Q959","v":0},{"$f":"+R974+R969+R964+R959","v":0},{"$f":"+S974+S969+S964+S959","v":0},{"$f":"+T974+T969+T964+T959","v":0},{"$f":"+U974+U969+U964+U959","v":0},null,{"$f":"+W974+W969+W964+W959","v":0},{"$f":"+X974+X969+X964+X959","v":0},{"$f":"+Y974+Y969+Y964+Y959","v":0},{"$f":"+Z974+Z969+Z964+Z959","v":0},{"$f":"+AA974+AA969+AA964+AA959","v":0},0,null,{"$f":"ROUND(SUM(-H976,J976:N976),0)","v":0},{"$f":"ROUND(J976-Q976-R976,0)","v":0},{"$f":"ROUND(K976-T976-U976,0)","v":0},{"$f":"ROUND(L976-W976-X976-Y976-Z976-AA976,0)","v":0}]
[977]
[978,"FERC",null,"DESCRIPTION &","FERC",null,"RANGE",{"$f":"+$H$250","v":"Jurisdictional"},"FUNC","GEN","TRN","DIS","RETAIL","MISC",null,"D / E","GEN","GEN","D / E","TRN","TRN","DIS","DIS","DIS","DIS","DIS","DIS","DIS","Unbundled ACCT:","Function","Generation","Transmission","Distribution"]
[979,"ACCT",null,"CONSENSUS FACTOR","ACCT","FACTOR","NAME","ADJ Total","FACTOR","TOTAL","TOTAL","TOTAL","TOTAL","TOTAL",null,"SPLIT","DEMAND","ENERGY","SPLIT","DEMAND","ENERGY","SPLIT","SUBS","P & C","XFMR","METER","SERVICE","METER","TOTAL","Check","Check","Check","Check"]
[980]
[981,920,"Administrative & General Salaries"]
[982,null,null,"S",920,"S","ACCT920S",{"$f":"'JAM Download'!E901","v":-161581.33140727435},"PTD",{"$f":"VLOOKUP($I982,Func,2)*$H982","v":-82231.532106520681},{"$f":"VLOOKUP($I982,Func,3)*$H982","v":-31823.172921114765},{"$f":"VLOOKUP($I982,Func,5)*$H982","v":-47526.626379638896},{"$f":"VLOOKUP($I982,Func,6)*$H982","v":0},{"$f":"VLOOKUP($I982,Func,7)*$H982","v":0},null,{"$f":"Demand","v":0.38},{"$f":"+$J982*$P982","v":-31247.982200477858},{"$f":"+$J982*(1-$P982)","v":-50983.549906042819},{"$f":"Demand","v":0.38},{"$f":"+$K982*$S982","v":-12092.805710023611},{"$f":"+$K982*(1-$S982)","v":-19730.367211091154},"PLNT",{"$f":"+$L982*VLOOKUP($V982,DisFac,2)","v":-5583.4079831941244},{"$f":"+$L982*VLOOKUP($V982,DisFac,3)","v":-22872.490098325354},{"$f":"+$L982*VLOOKUP($V982,DisFac,4)","v":-11599.258507320928},{"$f":"+$L982*VLOOKUP($V982,DisFac,5)","v":-1343.5158074552078},{"$f":"+$L982*VLOOKUP($V982,DisFac,6)","v":-6127.9539833432791},-1343.5158074552078,"UACCT920S",{"$f":"ROUND(SUM(-H982,J982:N982),0)","v":0},{"$f":"ROUND(J982-Q982-R982,0)","v":0},{"$f":"ROUND(K982-T982-U982,0)","v":0},{"$f":"ROUND(L982-W982-X982-Y982-Z982-AA982,0)","v":0}]
[983,null,null,"CN",920,"CN","ACCT920CN",{"$f":"'JAM Download'!E902","v":0},"CUST",{"$f":"VLOOKUP($I983,Func,2)*$H983","v":0},{"$f":"VLOOKUP($I983,Func,3)*$H983","v":0},{"$f":"VLOOKUP($I983,Func,5)*$H983","v":0},{"$f":"VLOOKUP($I983,Func,6)*$H983","v":0},{"$f":"VLOOKUP($I983,Func,7)*$H983","v":0},null,{"$f":"Demand","v":0.38},{"$f":"+$J983*$P983","v":0},{"$f":"+$J983*(1-$P983)","v":0},{"$f":"Demand","v":0.38},{"$f":"+$K983*$S983","v":0},{"$f":"+$K983*(1-$S983)","v":0},"CUST",{"$f":"+$L983*VLOOKUP($V983,DisFac,2)","v":0},{"$f":"+$L983*VLOOKUP($V983,DisFac,3)","v":0},{"$f":"+$L983*VLOOKUP($V983,DisFac,4)","v":0},{"$f":"+$L983*VLOOKUP($V983,DisFac,5)","v":0},{"$f":"+$L983*VLOOKUP($V983,DisFac,6)","v":0},0,"UACCT920CN",{"$f":"ROUND(SUM(-H983,J983:N983),0)","v":0},{"$f":"ROUND(J983-Q983-R983,0)","v":0},{"$f":"ROUND(K983-T983-U983,0)","v":0},{"$f":"ROUND(L983-W983-X983-Y983-Z983-AA983,0)","v":0}]
[984,null,null,"SO",920,"SO","ACCT920SO",{"$f":"'JAM Download'!E903","v":5126265.5045794435},"PTD",{"$f":"VLOOKUP($I984,Func,2)*$H984","v":2608845.1107254354},{"$f":"VLOOKUP($I984,Func,3)*$H984","v":1009609.4157102174},{"$f":"VLOOKUP($I984,Func,5)*$H984","v":1507810.9781437903},{"$f":"VLOOKUP($I984,Func,6)*$H984","v":0},{"$f":"VLOOKUP($I984,Func,7)*$H984","v":0},null,{"$f":"Demand","v":0.38},{"$f":"+$J984*$P984","v":991361.14207566553},{"$f":"+$J984*(1-$P984)","v":1617483.9686497699},{"$f":"Demand","v":0.38},{"$f":"+$K984*$S984","v":383651.57796988264},{"$f":"+$K984*(1-$S984)","v":625957.8377403348},"PLNT",{"$f":"+$L984*VLOOKUP($V984,DisFac,2)","v":177136.99653890193},{"$f":"+$L984*VLOOKUP($V984,DisFac,3)","v":725643.58749677672},{"$f":"+$L984*VLOOKUP($V984,DisFac,4)","v":367993.49434065877},{"$f":"+$L984*VLOOKUP($V984,DisFac,5)","v":42623.851893231578},{"$f":"+$L984*VLOOKUP($V984,DisFac,6)","v":194413.04787422132},42623.851893231578,"UACCT920SO",{"$f":"ROUND(SUM(-H984,J984:N984),0)","v":0},{"$f":"ROUND(J984-Q984-R984,0)","v":0},{"$f":"ROUND(K984-T984-U984,0)","v":0},{"$f":"ROUND(L984-W984-X984-Y984-Z984-AA984,0)","v":0}]
[985,null,null,null,null,null,"ACCT920",{"$f":"'JAM Download'!E904","v":4964684.1731721694},null,{"$f":"SUM(J982:J984)","v":2526613.5786189148},{"$f":"SUM(K982:K984)","v":977786.24278910272},{"$f":"SUM(L982:L984)","v":1460284.3517641514},{"$f":"SUM(M982:M984)","v":0},{"$f":"SUM(N982:N984)","v":0},null,null,{"$f":"SUM(Q982:Q984)","v":960113.15987518767},{"$f":"SUM(R982:R984)","v":1566500.418743727},null,{"$f":"SUM(T982:T984)","v":371558.77225985902},{"$f":"SUM(U982:U984)","v":606227.4705292437},null,{"$f":"SUM(W982:W984)","v":171553.5885557078},{"$f":"SUM(X982:X984)","v":702771.09739845141},{"$f":"SUM(Y982:Y984)","v":356394.23583333782},{"$f":"SUM(Z982:Z984)","v":41280.336085776369},{"$f":"SUM(AA982:AA984)","v":188285.09389087802},41280.336085776369,"UACCT920",{"$f":"ROUND(SUM(-H985,J985:N985),0)","v":0},{"$f":"ROUND(J985-Q985-R985,0)","v":0},{"$f":"ROUND(K985-T985-U985,0)","v":0},{"$f":"ROUND(L985-W985-X985-Y985-Z985-AA985,0)","v":0}]
[986]
[987,921,"Office Supplies & expenses"]
[988,null,null,"S","921/922","S","ACCT921S",{"$f":"'JAM Download'!E907+'JAM Download'!E913","v":14075.31},"PTD",{"$f":"VLOOKUP($I988,Func,2)*$H988","v":7163.1685176355977},{"$f":"VLOOKUP($I988,Func,3)*$H988","v":2772.1087587729244},{"$f":"VLOOKUP($I988,Func,5)*$H988","v":4140.0327235914774},{"$f":"VLOOKUP($I988,Func,6)*$H988","v":0},{"$f":"VLOOKUP($I988,Func,7)*$H988","v":0},null,{"$f":"Demand","v":0.38},{"$f":"+$J988*$P988","v":2722.0040367015272},{"$f":"+$J988*(1-$P988)","v":4441.1644809340705},{"$f":"Demand","v":0.38},{"$f":"+$K988*$S988","v":1053.4013283337113},{"$f":"+$K988*(1-$S988)","v":1718.7074304392131},"PLNT",{"$f":"+$L988*VLOOKUP($V988,DisFac,2)","v":486.36929486517448},{"$f":"+$L988*VLOOKUP($V988,DisFac,3)","v":1992.4169816029028},{"$f":"+$L988*VLOOKUP($V988,DisFac,4)","v":1010.4085530101609},{"$f":"+$L988*VLOOKUP($V988,DisFac,5)","v":117.03333123408723},{"$f":"+$L988*VLOOKUP($V988,DisFac,6)","v":533.80456287915206},117.03333123408723,"UACCT921S",{"$f":"ROUND(SUM(-H988,J988:N988),0)","v":0},{"$f":"ROUND(J988-Q988-R988,0)","v":0},{"$f":"ROUND(K988-T988-U988,0)","v":0},{"$f":"ROUND(L988-W988-X988-Y988-Z988-AA988,0)","v":0}]
[989,null,null,"CN","921/922","CN","ACCT921CN",{"$f":"'JAM Download'!E908+'JAM Download'!E914","v":4927.3228122879218},"CUST",{"$f":"VLOOKUP($I989,Func,2)*$H989","v":0},{"$f":"VLOOKUP($I989,Func,3)*$H989","v":0},{"$f":"VLOOKUP($I989,Func,5)*$H989","v":0},{"$f":"VLOOKUP($I989,Func,6)*$H989","v":4927.3228122879218},{"$f":"VLOOKUP($I989,Func,7)*$H989","v":0},null,{"$f":"Demand","v":0.38},{"$f":"+$J989*$P989","v":0},{"$f":"+$J989*(1-$P989)","v":0},{"$f":"Demand","v":0.38},{"$f":"+$K989*$S989","v":0},{"$f":"+$K989*(1-$S989)","v":0},"CUST",{"$f":"+$L989*VLOOKUP($V989,DisFac,2)","v":0},{"$f":"+$L989*VLOOKUP($V989,DisFac,3)","v":0},{"$f":"+$L989*VLOOKUP($V989,DisFac,4)","v":0},{"$f":"+$L989*VLOOKUP($V989,DisFac,5)","v":0},{"$f":"+$L989*VLOOKUP($V989,DisFac,6)","v":0},0,"UACCT921CN",{"$f":"ROUND(SUM(-H989,J989:N989),0)","v":0},{"$f":"ROUND(J989-Q989-R989,0)","v":0},{"$f":"ROUND(K989-T989-U989,0)","v":0},{"$f":"ROUND(L989-W989-X989-Y989-Z989-AA989,0)","v":0}]
[990,null,null,"SO","921/922","SO","ACCT921SO",{"$f":"'JAM Download'!E909+'JAM Download'!E915","v":-1119090.0861814164},"PTD",{"$f":"VLOOKUP($I990,Func,2)*$H990","v":-569524.28569834912},{"$f":"VLOOKUP($I990,Func,3)*$H990","v":-220402.92041592344},{"$f":"VLOOKUP($I990,Func,5)*$H990","v":-329162.88006714382},{"$f":"VLOOKUP($I990,Func,6)*$H990","v":0},{"$f":"VLOOKUP($I990,Func,7)*$H990","v":0},null,{"$f":"Demand","v":0.38},{"$f":"+$J990*$P990","v":-216419.22856537267},{"$f":"+$J990*(1-$P990)","v":-353105.05713297648},{"$f":"Demand","v":0.38},{"$f":"+$K990*$S990","v":-83753.109758050909},{"$f":"+$K990*(1-$S990)","v":-136649.81065787253},"PLNT",{"$f":"+$L990*VLOOKUP($V990,DisFac,2)","v":-38669.916052055887},{"$f":"+$L990*VLOOKUP($V990,DisFac,3)","v":-158411.72177744645},{"$f":"+$L990*VLOOKUP($V990,DisFac,4)","v":-80334.869687884755},{"$f":"+$L990*VLOOKUP($V990,DisFac,5)","v":-9305.0057680330247},{"$f":"+$L990*VLOOKUP($V990,DisFac,6)","v":-42441.366781723715},-9305.0057680330247,"UACCT921SO",{"$f":"ROUND(SUM(-H990,J990:N990),0)","v":0},{"$f":"ROUND(J990-Q990-R990,0)","v":0},{"$f":"ROUND(K990-T990-U990,0)","v":0},{"$f":"ROUND(L990-W990-X990-Y990-Z990-AA990,0)","v":0}]
[991,null,null,null,null,null,"ACCT921",{"$f":"'JAM Download'!E910+'JAM Download'!E916","v":-1100087.4533691285},null,{"$f":"SUM(J988:J990)","v":-562361.11718071357},{"$f":"SUM(K988:K990)","v":-217630.81165715051},{"$f":"SUM(L988:L990)","v":-325022.84734355233},{"$f":"SUM(M988:M990)","v":4927.3228122879218},{"$f":"SUM(N988:N990)","v":0},null,null,{"$f":"SUM(Q988:Q990)","v":-213697.22452867115},{"$f":"SUM(R988:R990)","v":-348663.89265204238},null,{"$f":"SUM(T988:T990)","v":-82699.708429717197},{"$f":"SUM(U988:U990)","v":-134931.10322743331},null,{"$f":"SUM(W988:W990)","v":-38183.546757190714},{"$f":"SUM(X988:X990)","v":-156419.30479584355},{"$f":"SUM(Y988:Y990)","v":-79324.461134874597},{"$f":"SUM(Z988:Z990)","v":-9187.9724367989365},{"$f":"SUM(AA988:AA990)","v":-41907.562218844563},-9187.9724367989365,"UACCT921",{"$f":"ROUND(SUM(-H991,J991:N991),0)","v":0},{"$f":"ROUND(J991-Q991-R991,0)","v":0},{"$f":"ROUND(K991-T991-U991,0)","v":0},{"$f":"ROUND(L991-W991-X991-Y991-Z991-AA991,0)","v":0}]
[992]
[993,923,"Outside Services"]
[994,null,null,"S",923,"S","ACCT923S",{"$f":"'JAM Download'!E919","v":19204.71},"PTD",{"$f":"VLOOKUP($I994,Func,2)*$H994","v":9773.608827252936},{"$f":"VLOOKUP($I994,Func,3)*$H994","v":3782.3355081127143},{"$f":"VLOOKUP($I994,Func,5)*$H994","v":5648.7656646343476},{"$f":"VLOOKUP($I994,Func,6)*$H994","v":0},{"$f":"VLOOKUP($I994,Func,7)*$H994","v":0},null,{"$f":"Demand","v":0.38},{"$f":"+$J994*$P994","v":3713.9713543561156},{"$f":"+$J994*(1-$P994)","v":6059.6374728968203},{"$f":"Demand","v":0.38},{"$f":"+$K994*$S994","v":1437.2874930828314},{"$f":"+$K994*(1-$S994)","v":2345.0480150298827},"PLNT",{"$f":"+$L994*VLOOKUP($V994,DisFac,2)","v":663.6146032158556},{"$f":"+$L994*VLOOKUP($V994,DisFac,3)","v":2718.504269586892},{"$f":"+$L994*VLOOKUP($V994,DisFac,4)","v":1378.6270598714889},{"$f":"+$L994*VLOOKUP($V994,DisFac,5)","v":159.68324581729192},{"$f":"+$L994*VLOOKUP($V994,DisFac,6)","v":728.3364861428189},159.68324581729192,"UACCT923S",{"$f":"ROUND(SUM(-H994,J994:N994),0)","v":0},{"$f":"ROUND(J994-Q994-R994,0)","v":0},{"$f":"ROUND(K994-T994-U994,0)","v":0},{"$f":"ROUND(L994-W994-X994-Y994-Z994-AA994,0)","v":0}]
[995,null,null,"CAGW",923,"CAGW","ACCT923CAGW",{"$f":"'JAM Download'!E920","v":-131959.05691119199},"P",{"$f":"VLOOKUP($I995,Func,2)*$H995","v":-131959.05691119199},{"$f":"VLOOKUP($I995,Func,3)*$H995","v":0},{"$f":"VLOOKUP($I995,Func,5)*$H995","v":0},{"$f":"VLOOKUP($I995,Func,6)*$H995","v":0},{"$f":"VLOOKUP($I995,Func,7)*$H995","v":0},null,{"$f":"Demand","v":0.38},{"$f":"+$J995*$P995","v":-50144.441626252956},{"$f":"+$J995*(1-$P995)","v":-81814.615284939035},{"$f":"Demand","v":0.38},{"$f":"+$K995*$S995","v":0},{"$f":"+$K995*(1-$S995)","v":0},"CUST",{"$f":"+$L995*VLOOKUP($V995,DisFac,2)","v":0},{"$f":"+$L995*VLOOKUP($V995,DisFac,3)","v":0},{"$f":"+$L995*VLOOKUP($V995,DisFac,4)","v":0},{"$f":"+$L995*VLOOKUP($V995,DisFac,5)","v":0},{"$f":"+$L995*VLOOKUP($V995,DisFac,6)","v":0},0,"UACCT923CAGW",{"$f":"ROUND(SUM(-H995,J995:N995),0)","v":0},{"$f":"ROUND(J995-Q995-R995,0)","v":0},{"$f":"ROUND(K995-T995-U995,0)","v":0},{"$f":"ROUND(L995-W995-X995-Y995-Z995-AA995,0)","v":0}]
[996,null,null,"SO",923,"SO","ACCT923SO",{"$f":"'JAM Download'!E921","v":450164.95866175729},"PTD",{"$f":"VLOOKUP($I996,Func,2)*$H996","v":229096.72750572671},{"$f":"VLOOKUP($I996,Func,3)*$H996","v":88659.235554947561},{"$f":"VLOOKUP($I996,Func,5)*$H996","v":132408.99560108301},{"$f":"VLOOKUP($I996,Func,6)*$H996","v":0},{"$f":"VLOOKUP($I996,Func,7)*$H996","v":0},null,{"$f":"Demand","v":0.38},{"$f":"+$J996*$P996","v":87056.756452176152},{"$f":"+$J996*(1-$P996)","v":142039.97105355057},{"$f":"Demand","v":0.38},{"$f":"+$K996*$S996","v":33690.509510880074},{"$f":"+$K996*(1-$S996)","v":54968.726044067487},"PLNT",{"$f":"+$L996*VLOOKUP($V996,DisFac,2)","v":15555.352849587631},{"$f":"+$L996*VLOOKUP($V996,DisFac,3)","v":63722.668144449664},{"$f":"+$L996*VLOOKUP($V996,DisFac,4)","v":32315.488930425334},{"$f":"+$L996*VLOOKUP($V996,DisFac,5)","v":3743.0297959363324},{"$f":"+$L996*VLOOKUP($V996,DisFac,6)","v":17072.45588068404},3743.0297959363324,"UACCT923SO",{"$f":"ROUND(SUM(-H996,J996:N996),0)","v":0},{"$f":"ROUND(J996-Q996-R996,0)","v":0},{"$f":"ROUND(K996-T996-U996,0)","v":0},{"$f":"ROUND(L996-W996-X996-Y996-Z996-AA996,0)","v":0}]
[997,null,null,null,null,null,"ACCT923",{"$f":"'JAM Download'!E922","v":337410.61175056529},null,{"$f":"SUM(J994:J996)","v":106911.27942178765},{"$f":"SUM(K994:K996)","v":92441.57106306027},{"$f":"SUM(L994:L996)","v":138057.76126571736},{"$f":"SUM(M994:M996)","v":0},{"$f":"SUM(N994:N996)","v":0},null,null,{"$f":"SUM(Q994:Q996)","v":40626.286180279312},{"$f":"SUM(R994:R996)","v":66284.99324150836},null,{"$f":"SUM(T994:T996)","v":35127.797003962907},{"$f":"SUM(U994:U996)","v":57313.77405909737},null,{"$f":"SUM(W994:W996)","v":16218.967452803487},{"$f":"SUM(X994:X996)","v":66441.172414036555},{"$f":"SUM(Y994:Y996)","v":33694.115990296821},{"$f":"SUM(Z994:Z996)","v":3902.7130417536246},{"$f":"SUM(AA994:AA996)","v":17800.79236682686},3902.7130417536246,"UACCT923",{"$f":"ROUND(SUM(-H997,J997:N997),0)","v":0},{"$f":"ROUND(J997-Q997-R997,0)","v":0},{"$f":"ROUND(K997-T997-U997,0)","v":0},{"$f":"ROUND(L997-W997-X997-Y997-Z997-AA997,0)","v":0}]
[998]
[999,924,"Property Insurance"]
[1000,null,null,"SO",924,"SO","ACCT924SO",{"$f":"'JAM Download'!E925","v":571302.85521328636},"PTD",{"$f":"VLOOKUP($I1000,Func,2)*$H1000","v":290745.89664448891},{"$f":"VLOOKUP($I1000,Func,3)*$H1000","v":112517.14163657717},{"$f":"VLOOKUP($I1000,Func,5)*$H1000","v":168039.81693222027},{"$f":"VLOOKUP($I1000,Func,6)*$H1000","v":0},{"$f":"VLOOKUP($I1000,Func,7)*$H1000","v":0},null,{"$f":"Demand","v":0.38},{"$f":"+$J1000*$P1000","v":110483.44072490578},{"$f":"+$J1000*(1-$P1000)","v":180262.45591958312},{"$f":"Demand","v":0.38},{"$f":"+$K1000*$S1000","v":42756.513821899323},{"$f":"+$K1000*(1-$S1000)","v":69760.62781467785},"PLNT",{"$f":"+$L1000*VLOOKUP($V1000,DisFac,2)","v":19741.246682634126},{"$f":"+$L1000*VLOOKUP($V1000,DisFac,3)","v":80870.226685250702},{"$f":"+$L1000*VLOOKUP($V1000,DisFac,4)","v":41011.479766103206},{"$f":"+$L1000*VLOOKUP($V1000,DisFac,5)","v":4750.2666931780768},{"$f":"+$L1000*VLOOKUP($V1000,DisFac,6)","v":21666.597105054156},4750.2666931780768,"UACCT924SO",{"$f":"ROUND(SUM(-H1000,J1000:N1000),0)","v":0},{"$f":"ROUND(J1000-Q1000-R1000,0)","v":0},{"$f":"ROUND(K1000-T1000-U1000,0)","v":0},{"$f":"ROUND(L1000-W1000-X1000-Y1000-Z1000-AA1000,0)","v":0}]
[1001,null,null,null,null,null,"ACCT924",{"$f":"'JAM Download'!E926","v":571302.85521328636},null,{"$f":"SUM(J1000)","v":290745.89664448891},{"$f":"SUM(K1000)","v":112517.14163657717},{"$f":"SUM(L1000)","v":168039.81693222027},{"$f":"SUM(M1000)","v":0},{"$f":"SUM(N1000)","v":0},null,null,{"$f":"SUM(Q1000)","v":110483.44072490578},{"$f":"SUM(R1000)","v":180262.45591958312},null,{"$f":"SUM(T1000)","v":42756.513821899323},{"$f":"SUM(U1000)","v":69760.62781467785},null,{"$f":"SUM(W1000)","v":19741.246682634126},{"$f":"SUM(X1000)","v":80870.226685250702},{"$f":"SUM(Y1000)","v":41011.479766103206},{"$f":"SUM(Z1000)","v":4750.2666931780768},{"$f":"SUM(AA1000)","v":21666.597105054156},4750.2666931780768,"UACCT924",{"$f":"ROUND(SUM(-H1001,J1001:N1001),0)","v":0},{"$f":"ROUND(J1001-Q1001-R1001,0)","v":0},{"$f":"ROUND(K1001-T1001-U1001,0)","v":0},{"$f":"ROUND(L1001-W1001-X1001-Y1001-Z1001-AA1001,0)","v":0}]
[1002]
[1003,925,"Injuries & Damages"]
[1004,null,null,"SO",925,"SO","ACCT925SO",{"$f":"'JAM Download'!E929","v":672440.80841598194},"PTD",{"$f":"VLOOKUP($I1004,Func,2)*$H1004","v":342216.74896103831},{"$f":"VLOOKUP($I1004,Func,3)*$H1004","v":132436.09233233865},{"$f":"VLOOKUP($I1004,Func,5)*$H1004","v":197787.96712260492},{"$f":"VLOOKUP($I1004,Func,6)*$H1004","v":0},{"$f":"VLOOKUP($I1004,Func,7)*$H1004","v":0},null,{"$f":"Demand","v":0.38},{"$f":"+$J1004*$P1004","v":130042.36460519455},{"$f":"+$J1004*(1-$P1004)","v":212174.38435584374},{"$f":"Demand","v":0.38},{"$f":"+$K1004*$S1004","v":50325.715086288692},{"$f":"+$K1004*(1-$S1004)","v":82110.37724604996},"PLNT",{"$f":"+$L1004*VLOOKUP($V1004,DisFac,2)","v":23236.04679597458},{"$f":"+$L1004*VLOOKUP($V1004,DisFac,3)","v":95186.712463937656},{"$f":"+$L1004*VLOOKUP($V1004,DisFac,4)","v":48271.757013989394},{"$f":"+$L1004*VLOOKUP($V1004,DisFac,5)","v":5591.2081415375578},{"$f":"+$L1004*VLOOKUP($V1004,DisFac,6)","v":25502.242707165729},5591.2081415375578,"UACCT925SO",{"$f":"ROUND(SUM(-H1004,J1004:N1004),0)","v":0},{"$f":"ROUND(J1004-Q1004-R1004,0)","v":0},{"$f":"ROUND(K1004-T1004-U1004,0)","v":0},{"$f":"ROUND(L1004-W1004-X1004-Y1004-Z1004-AA1004,0)","v":0}]
[1005,null,null,null,null,null,"ACCT925",{"$f":"'JAM Download'!E930","v":672440.80841598194},null,{"$f":"SUM(J1004)","v":342216.74896103831},{"$f":"SUM(K1004)","v":132436.09233233865},{"$f":"SUM(L1004)","v":197787.96712260492},{"$f":"SUM(M1004)","v":0},{"$f":"SUM(N1004)","v":0},null,null,{"$f":"SUM(Q1004)","v":130042.36460519455},{"$f":"SUM(R1004)","v":212174.38435584374},null,{"$f":"SUM(T1004)","v":50325.715086288692},{"$f":"SUM(U1004)","v":82110.37724604996},null,{"$f":"SUM(W1004)","v":23236.04679597458},{"$f":"SUM(X1004)","v":95186.712463937656},{"$f":"SUM(Y1004)","v":48271.757013989394},{"$f":"SUM(Z1004)","v":5591.2081415375578},{"$f":"SUM(AA1004)","v":25502.242707165729},5591.2081415375578,"UACCT925",{"$f":"ROUND(SUM(-H1005,J1005:N1005),0)","v":0},{"$f":"ROUND(J1005-Q1005-R1005,0)","v":0},{"$f":"ROUND(K1005-T1005-U1005,0)","v":0},{"$f":"ROUND(L1005-W1005-X1005-Y1005-Z1005-AA1005,0)","v":0}]
[1006]
[1007,926,"Employee Pensions & Benefits"]
[1008,null,null,"S",926,"S","ACCT926S",{"$f":"'JAM Download'!E933","v":0},"LABOR",{"$f":"VLOOKUP($I1008,Func,2)*$H1008","v":0},{"$f":"VLOOKUP($I1008,Func,3)*$H1008","v":0},{"$f":"VLOOKUP($I1008,Func,5)*$H1008","v":0},{"$f":"VLOOKUP($I1008,Func,6)*$H1008","v":0},{"$f":"VLOOKUP($I1008,Func,7)*$H1008","v":0},null,{"$f":"Demand","v":0.38},{"$f":"+$J1008*$P1008","v":0},{"$f":"+$J1008*(1-$P1008)","v":0},{"$f":"Demand","v":0.38},{"$f":"+$K1008*$S1008","v":0},{"$f":"+$K1008*(1-$S1008)","v":0},"DISom",{"$f":"+$L1008*VLOOKUP($V1008,DisFac,2)","v":0},{"$f":"+$L1008*VLOOKUP($V1008,DisFac,3)","v":0},{"$f":"+$L1008*VLOOKUP($V1008,DisFac,4)","v":0},{"$f":"+$L1008*VLOOKUP($V1008,DisFac,5)","v":0},{"$f":"+$L1008*VLOOKUP($V1008,DisFac,6)","v":0},0,"UACCT926S",{"$f":"ROUND(SUM(-H1008,J1008:N1008),0)","v":0},{"$f":"ROUND(J1008-Q1008-R1008,0)","v":0},{"$f":"ROUND(K1008-T1008-U1008,0)","v":0},{"$f":"ROUND(L1008-W1008-X1008-Y1008-Z1008-AA1008,0)","v":0}]
[1009,null,null,"CN",926,"CN","ACCT926CN",{"$f":"'JAM Download'!E934","v":0},"CUST",{"$f":"VLOOKUP($I1009,Func,2)*$H1009","v":0},{"$f":"VLOOKUP($I1009,Func,3)*$H1009","v":0},{"$f":"VLOOKUP($I1009,Func,5)*$H1009","v":0},{"$f":"VLOOKUP($I1009,Func,6)*$H1009","v":0},{"$f":"VLOOKUP($I1009,Func,7)*$H1009","v":0},null,{"$f":"Demand","v":0.38},{"$f":"+$J1009*$P1009","v":0},{"$f":"+$J1009*(1-$P1009)","v":0},{"$f":"Demand","v":0.38},{"$f":"+$K1009*$S1009","v":0},{"$f":"+$K1009*(1-$S1009)","v":0},"CUST",{"$f":"+$L1009*VLOOKUP($V1009,DisFac,2)","v":0},{"$f":"+$L1009*VLOOKUP($V1009,DisFac,3)","v":0},{"$f":"+$L1009*VLOOKUP($V1009,DisFac,4)","v":0},{"$f":"+$L1009*VLOOKUP($V1009,DisFac,5)","v":0},{"$f":"+$L1009*VLOOKUP($V1009,DisFac,6)","v":0},0,"UACCT926CN",{"$f":"ROUND(SUM(-H1009,J1009:N1009),0)","v":0},{"$f":"ROUND(J1009-Q1009-R1009,0)","v":0},{"$f":"ROUND(K1009-T1009-U1009,0)","v":0},{"$f":"ROUND(L1009-W1009-X1009-Y1009-Z1009-AA1009,0)","v":0}]
[1010,null,null,"SO",926,"SO","ACCT926SO",{"$f":"'JAM Download'!E935","v":0},"LABOR",{"$f":"VLOOKUP($I1010,Func,2)*$H1010","v":0},{"$f":"VLOOKUP($I1010,Func,3)*$H1010","v":0},{"$f":"VLOOKUP($I1010,Func,5)*$H1010","v":0},{"$f":"VLOOKUP($I1010,Func,6)*$H1010","v":0},{"$f":"VLOOKUP($I1010,Func,7)*$H1010","v":0},null,{"$f":"Demand","v":0.38},{"$f":"+$J1010*$P1010","v":0},{"$f":"+$J1010*(1-$P1010)","v":0},{"$f":"Demand","v":0.38},{"$f":"+$K1010*$S1010","v":0},{"$f":"+$K1010*(1-$S1010)","v":0},"DISom",{"$f":"+$L1010*VLOOKUP($V1010,DisFac,2)","v":0},{"$f":"+$L1010*VLOOKUP($V1010,DisFac,3)","v":0},{"$f":"+$L1010*VLOOKUP($V1010,DisFac,4)","v":0},{"$f":"+$L1010*VLOOKUP($V1010,DisFac,5)","v":0},{"$f":"+$L1010*VLOOKUP($V1010,DisFac,6)","v":0},0,"UACCT926SO",{"$f":"ROUND(SUM(-H1010,J1010:N1010),0)","v":0},{"$f":"ROUND(J1010-Q1010-R1010,0)","v":0},{"$f":"ROUND(K1010-T1010-U1010,0)","v":0},{"$f":"ROUND(L1010-W1010-X1010-Y1010-Z1010-AA1010,0)","v":0}]
[1011,null,null,null,null,null,"ACCT926",{"$f":"'JAM Download'!E936","v":0},null,{"$f":"SUM(J1008:J1010)","v":0},{"$f":"SUM(K1008:K1010)","v":0},{"$f":"SUM(L1008:L1010)","v":0},{"$f":"SUM(M1008:M1010)","v":0},{"$f":"SUM(N1008:N1010)","v":0},null,null,{"$f":"SUM(Q1008:Q1010)","v":0},{"$f":"SUM(R1008:R1010)","v":0},null,{"$f":"SUM(T1008:T1010)","v":0},{"$f":"SUM(U1008:U1010)","v":0},null,{"$f":"SUM(W1008:W1010)","v":0},{"$f":"SUM(X1008:X1010)","v":0},{"$f":"SUM(Y1008:Y1010)","v":0},{"$f":"SUM(Z1008:Z1010)","v":0},{"$f":"SUM(AA1008:AA1010)","v":0},0,"UACCT926",{"$f":"ROUND(SUM(-H1011,J1011:N1011),0)","v":0},{"$f":"ROUND(J1011-Q1011-R1011,0)","v":0},{"$f":"ROUND(K1011-T1011-U1011,0)","v":0},{"$f":"ROUND(L1011-W1011-X1011-Y1011-Z1011-AA1011,0)","v":0}]
[1012]
[1013,927,"Franchise Requirements"]
[1014,null,null,"S",927,"S","ACCT927S",{"$f":"'JAM Download'!E939","v":0},"DMSC",{"$f":"VLOOKUP($I1014,Func,2)*$H1014","v":0},{"$f":"VLOOKUP($I1014,Func,3)*$H1014","v":0},{"$f":"VLOOKUP($I1014,Func,5)*$H1014","v":0},{"$f":"VLOOKUP($I1014,Func,6)*$H1014","v":0},{"$f":"VLOOKUP($I1014,Func,7)*$H1014","v":0},null,{"$f":"Demand","v":0.38},{"$f":"+$J1014*$P1014","v":0},{"$f":"+$J1014*(1-$P1014)","v":0},{"$f":"Demand","v":0.38},{"$f":"+$K1014*$S1014","v":0},{"$f":"+$K1014*(1-$S1014)","v":0},"MISC",{"$f":"+$L1014*VLOOKUP($V1014,DisFac,2)","v":0},{"$f":"+$L1014*VLOOKUP($V1014,DisFac,3)","v":0},{"$f":"+$L1014*VLOOKUP($V1014,DisFac,4)","v":0},{"$f":"+$L1014*VLOOKUP($V1014,DisFac,5)","v":0},{"$f":"+$L1014*VLOOKUP($V1014,DisFac,6)","v":0},0,"UACCT927S",{"$f":"ROUND(SUM(-H1014,J1014:N1014),0)","v":0},{"$f":"ROUND(J1014-Q1014-R1014,0)","v":0},{"$f":"ROUND(K1014-T1014-U1014,0)","v":0},{"$f":"ROUND(L1014-W1014-X1014-Y1014-Z1014-AA1014,0)","v":0}]
[1015,null,null,"SO",927,"SO","ACCT927SO",{"$f":"'JAM Download'!E940","v":0},"DMSC",{"$f":"VLOOKUP($I1015,Func,2)*$H1015","v":0},{"$f":"VLOOKUP($I1015,Func,3)*$H1015","v":0},{"$f":"VLOOKUP($I1015,Func,5)*$H1015","v":0},{"$f":"VLOOKUP($I1015,Func,6)*$H1015","v":0},{"$f":"VLOOKUP($I1015,Func,7)*$H1015","v":0},null,{"$f":"Demand","v":0.38},{"$f":"+$J1015*$P1015","v":0},{"$f":"+$J1015*(1-$P1015)","v":0},{"$f":"Demand","v":0.38},{"$f":"+$K1015*$S1015","v":0},{"$f":"+$K1015*(1-$S1015)","v":0},"MISC",{"$f":"+$L1015*VLOOKUP($V1015,DisFac,2)","v":0},{"$f":"+$L1015*VLOOKUP($V1015,DisFac,3)","v":0},{"$f":"+$L1015*VLOOKUP($V1015,DisFac,4)","v":0},{"$f":"+$L1015*VLOOKUP($V1015,DisFac,5)","v":0},{"$f":"+$L1015*VLOOKUP($V1015,DisFac,6)","v":0},0,"UACCT927SO",{"$f":"ROUND(SUM(-H1015,J1015:N1015),0)","v":0},{"$f":"ROUND(J1015-Q1015-R1015,0)","v":0},{"$f":"ROUND(K1015-T1015-U1015,0)","v":0},{"$f":"ROUND(L1015-W1015-X1015-Y1015-Z1015-AA1015,0)","v":0}]
[1016,null,null,null,null,null,"ACCT927",{"$f":"'JAM Download'!E941","v":0},null,{"$f":"SUM(J1014:J1015)","v":0},{"$f":"SUM(K1014:K1015)","v":0},{"$f":"SUM(L1014:L1015)","v":0},{"$f":"SUM(M1014:M1015)","v":0},{"$f":"SUM(N1014:N1015)","v":0},null,null,{"$f":"SUM(Q1014:Q1015)","v":0},{"$f":"SUM(R1014:R1015)","v":0},null,{"$f":"SUM(T1014:T1015)","v":0},{"$f":"SUM(U1014:U1015)","v":0},null,{"$f":"SUM(W1014:W1015)","v":0},{"$f":"SUM(X1014:X1015)","v":0},{"$f":"SUM(Y1014:Y1015)","v":0},{"$f":"SUM(Z1014:Z1015)","v":0},{"$f":"SUM(AA1014:AA1015)","v":0},0,"UACCT927",{"$f":"ROUND(SUM(-H1016,J1016:N1016),0)","v":0},{"$f":"ROUND(J1016-Q1016-R1016,0)","v":0},{"$f":"ROUND(K1016-T1016-U1016,0)","v":0},{"$f":"ROUND(L1016-W1016-X1016-Y1016-Z1016-AA1016,0)","v":0}]
[1017]
[1018,928,"Regulatory Commission Expense"]
[1019,null,null,"S",928,"S","ACCT928S",{"$f":"'JAM Download'!E944","v":1512032.81},"DMSC",{"$f":"VLOOKUP($I1019,Func,2)*$H1019","v":0},{"$f":"VLOOKUP($I1019,Func,3)*$H1019","v":0},{"$f":"VLOOKUP($I1019,Func,5)*$H1019","v":0},{"$f":"VLOOKUP($I1019,Func,6)*$H1019","v":0},{"$f":"VLOOKUP($I1019,Func,7)*$H1019","v":1512032.81},null,{"$f":"Demand","v":0.38},{"$f":"+$J1019*$P1019","v":0},{"$f":"+$J1019*(1-$P1019)","v":0},{"$f":"Demand","v":0.38},{"$f":"+$K1019*$S1019","v":0},{"$f":"+$K1019*(1-$S1019)","v":0},"MISC",{"$f":"+$L1019*VLOOKUP($V1019,DisFac,2)","v":0},{"$f":"+$L1019*VLOOKUP($V1019,DisFac,3)","v":0},{"$f":"+$L1019*VLOOKUP($V1019,DisFac,4)","v":0},{"$f":"+$L1019*VLOOKUP($V1019,DisFac,5)","v":0},{"$f":"+$L1019*VLOOKUP($V1019,DisFac,6)","v":0},0,"UACCT928S",{"$f":"ROUND(SUM(-H1019,J1019:N1019),0)","v":0},{"$f":"ROUND(J1019-Q1019-R1019,0)","v":0},{"$f":"ROUND(K1019-T1019-U1019,0)","v":0},{"$f":"ROUND(L1019-W1019-X1019-Y1019-Z1019-AA1019,0)","v":0}]
[1020,null,null,"CN",928,"CN","ACCT928CN",{"$f":"'JAM Download'!E945","v":0},"CUST",{"$f":"VLOOKUP($I1020,Func,2)*$H1020","v":0},{"$f":"VLOOKUP($I1020,Func,3)*$H1020","v":0},{"$f":"VLOOKUP($I1020,Func,5)*$H1020","v":0},{"$f":"VLOOKUP($I1020,Func,6)*$H1020","v":0},{"$f":"VLOOKUP($I1020,Func,7)*$H1020","v":0},null,{"$f":"Demand","v":0.38},{"$f":"+$J1020*$P1020","v":0},{"$f":"+$J1020*(1-$P1020)","v":0},{"$f":"Demand","v":0.38},{"$f":"+$K1020*$S1020","v":0},{"$f":"+$K1020*(1-$S1020)","v":0},"MISC",{"$f":"+$L1020*VLOOKUP($V1020,DisFac,2)","v":0},{"$f":"+$L1020*VLOOKUP($V1020,DisFac,3)","v":0},{"$f":"+$L1020*VLOOKUP($V1020,DisFac,4)","v":0},{"$f":"+$L1020*VLOOKUP($V1020,DisFac,5)","v":0},{"$f":"+$L1020*VLOOKUP($V1020,DisFac,6)","v":0},0,"UACCT928SO",{"$f":"ROUND(SUM(-H1020,J1020:N1020),0)","v":0},{"$f":"ROUND(J1020-Q1020-R1020,0)","v":0},{"$f":"ROUND(K1020-T1020-U1020,0)","v":0},{"$f":"ROUND(L1020-W1020-X1020-Y1020-Z1020-AA1020,0)","v":0}]
[{"$f":"A1020+1","v":1021},null,null,"SO",928,"SO","ACCT928SO",{"$f":"'JAM Download'!E946","v":173387.72125797486},"DMSC",{"$f":"VLOOKUP($I1021,Func,2)*$H1021","v":0},{"$f":"VLOOKUP($I1021,Func,3)*$H1021","v":0},{"$f":"VLOOKUP($I1021,Func,5)*$H1021","v":0},{"$f":"VLOOKUP($I1021,Func,6)*$H1021","v":0},{"$f":"VLOOKUP($I1021,Func,7)*$H1021","v":173387.72125797486},null,{"$f":"Demand","v":0.38},{"$f":"+$J1021*$P1021","v":0},{"$f":"+$J1021*(1-$P1021)","v":0},{"$f":"Demand","v":0.38},{"$f":"+$K1021*$S1021","v":0},{"$f":"+$K1021*(1-$S1021)","v":0},"MISC",{"$f":"+$L1021*VLOOKUP($V1021,DisFac,2)","v":0},{"$f":"+$L1021*VLOOKUP($V1021,DisFac,3)","v":0},{"$f":"+$L1021*VLOOKUP($V1021,DisFac,4)","v":0},{"$f":"+$L1021*VLOOKUP($V1021,DisFac,5)","v":0},{"$f":"+$L1021*VLOOKUP($V1021,DisFac,6)","v":0},0,"UACCT928SO",{"$f":"ROUND(SUM(-H1021,J1021:N1021),0)","v":0},{"$f":"ROUND(J1021-Q1021-R1021,0)","v":0},{"$f":"ROUND(K1021-T1021-U1021,0)","v":0},{"$f":"ROUND(L1021-W1021-X1021-Y1021-Z1021-AA1021,0)","v":0}]
[1022,null,null,"SG/CAGW",928,"SG","ACCT928SG",{"$f":"'JAM Download'!E947+'JAM Download'!E948+'JAM Download'!E949","v":552713.36021018901},"FERC",{"$f":"VLOOKUP($I1022,Func,2)*$H1022","v":286215.17950173549},{"$f":"VLOOKUP($I1022,Func,3)*$H1022","v":266498.18070845352},{"$f":"VLOOKUP($I1022,Func,5)*$H1022","v":0},{"$f":"VLOOKUP($I1022,Func,6)*$H1022","v":0},{"$f":"VLOOKUP($I1022,Func,7)*$H1022","v":0},null,{"$f":"Demand","v":0.38},{"$f":"+$J1022*$P1022","v":108761.76821065949},{"$f":"+$J1022*(1-$P1022)","v":177453.41129107602},{"$f":"Demand","v":0.38},{"$f":"+$K1022*$S1022","v":101269.30866921235},{"$f":"+$K1022*(1-$S1022)","v":165228.87203924119},"MISC",{"$f":"+$L1022*VLOOKUP($V1022,DisFac,2)","v":0},{"$f":"+$L1022*VLOOKUP($V1022,DisFac,3)","v":0},{"$f":"+$L1022*VLOOKUP($V1022,DisFac,4)","v":0},{"$f":"+$L1022*VLOOKUP($V1022,DisFac,5)","v":0},{"$f":"+$L1022*VLOOKUP($V1022,DisFac,6)","v":0},0,"UACCT928SG",{"$f":"ROUND(SUM(-H1022,J1022:N1022),0)","v":0},{"$f":"ROUND(J1022-Q1022-R1022,0)","v":0},{"$f":"ROUND(K1022-T1022-U1022,0)","v":0},{"$f":"ROUND(L1022-W1022-X1022-Y1022-Z1022-AA1022,0)","v":0}]
[1023,null,null,null,null,null,"ACCT928",{"$f":"'JAM Download'!E950","v":2238133.891468164},null,{"$f":"SUM(J1019:J1022)","v":286215.17950173549},{"$f":"SUM(K1019:K1022)","v":266498.18070845352},{"$f":"SUM(L1019:L1022)","v":0},{"$f":"SUM(M1019:M1022)","v":0},{"$f":"SUM(N1019:N1022)","v":1685420.5312579749},null,null,{"$f":"SUM(Q1019:Q1022)","v":108761.76821065949},{"$f":"SUM(R1019:R1022)","v":177453.41129107602},null,{"$f":"SUM(T1019:T1022)","v":101269.30866921235},{"$f":"SUM(U1019:U1022)","v":165228.87203924119},null,{"$f":"SUM(W1019:W1022)","v":0},{"$f":"SUM(X1019:X1022)","v":0},{"$f":"SUM(Y1019:Y1022)","v":0},{"$f":"SUM(Z1019:Z1022)","v":0},{"$f":"SUM(AA1019:AA1022)","v":0},0,"UACCT928",{"$f":"ROUND(SUM(-H1023,J1023:N1023),0)","v":0},{"$f":"ROUND(J1023-Q1023-R1023,0)","v":0},{"$f":"ROUND(K1023-T1023-U1023,0)","v":0},{"$f":"ROUND(L1023-W1023-X1023-Y1023-Z1023-AA1023,0)","v":0}]
[1024]
[1025,929,"Duplicate Charges"]
[1026,null,null,"S",929,"S","ACCT929S",{"$f":"'JAM Download'!E953","v":0},"LABOR",{"$f":"VLOOKUP($I1026,Func,2)*$H1026","v":0},{"$f":"VLOOKUP($I1026,Func,3)*$H1026","v":0},{"$f":"VLOOKUP($I1026,Func,5)*$H1026","v":0},{"$f":"VLOOKUP($I1026,Func,6)*$H1026","v":0},{"$f":"VLOOKUP($I1026,Func,7)*$H1026","v":0},null,{"$f":"Demand","v":0.38},{"$f":"+$J1026*$P1026","v":0},{"$f":"+$J1026*(1-$P1026)","v":0},{"$f":"Demand","v":0.38},{"$f":"+$K1026*$S1026","v":0},{"$f":"+$K1026*(1-$S1026)","v":0},"DISom",{"$f":"+$L1026*VLOOKUP($V1026,DisFac,2)","v":0},{"$f":"+$L1026*VLOOKUP($V1026,DisFac,3)","v":0},{"$f":"+$L1026*VLOOKUP($V1026,DisFac,4)","v":0},{"$f":"+$L1026*VLOOKUP($V1026,DisFac,5)","v":0},{"$f":"+$L1026*VLOOKUP($V1026,DisFac,6)","v":0},0,"UACCT929S",{"$f":"ROUND(SUM(-H1026,J1026:N1026),0)","v":0},{"$f":"ROUND(J1026-Q1026-R1026,0)","v":0},{"$f":"ROUND(K1026-T1026-U1026,0)","v":0},{"$f":"ROUND(L1026-W1026-X1026-Y1026-Z1026-AA1026,0)","v":0}]
[1027,null,null,"SO",929,"SO","ACCT929SO",{"$f":"'JAM Download'!E954","v":-433966.34652951593},"LABOR",{"$f":"VLOOKUP($I1027,Func,2)*$H1027","v":-189110.67073876515},{"$f":"VLOOKUP($I1027,Func,3)*$H1027","v":-31257.84883289658},{"$f":"VLOOKUP($I1027,Func,5)*$H1027","v":-150320.82370507595},{"$f":"VLOOKUP($I1027,Func,6)*$H1027","v":-63277.003252778224},{"$f":"VLOOKUP($I1027,Func,7)*$H1027","v":0},null,{"$f":"Demand","v":0.38},{"$f":"+$J1027*$P1027","v":-71862.054880730764},{"$f":"+$J1027*(1-$P1027)","v":-117248.61585803439},{"$f":"Demand","v":0.38},{"$f":"+$K1027*$S1027","v":-11877.9825565007},{"$f":"+$K1027*(1-$S1027)","v":-19379.866276395878},"DISom",{"$f":"+$L1027*VLOOKUP($V1027,DisFac,2)","v":-19727.611769147021},{"$f":"+$L1027*VLOOKUP($V1027,DisFac,3)","v":-109723.59237945656},{"$f":"+$L1027*VLOOKUP($V1027,DisFac,4)","v":-1034.9686165367962},{"$f":"+$L1027*VLOOKUP($V1027,DisFac,5)","v":-19834.650939935615},{"$f":"+$L1027*VLOOKUP($V1027,DisFac,6)","v":0},-19834.650939935615,"UACCT929SO",{"$f":"ROUND(SUM(-H1027,J1027:N1027),0)","v":0},{"$f":"ROUND(J1027-Q1027-R1027,0)","v":0},{"$f":"ROUND(K1027-T1027-U1027,0)","v":0},{"$f":"ROUND(L1027-W1027-X1027-Y1027-Z1027-AA1027,0)","v":0}]
[1028,null,null,null,null,null,"ACCT929",{"$f":"'JAM Download'!E955","v":-433966.34652951593},null,{"$f":"SUM(J1026:J1027)","v":-189110.67073876515},{"$f":"SUM(K1026:K1027)","v":-31257.84883289658},{"$f":"SUM(L1026:L1027)","v":-150320.82370507595},{"$f":"SUM(M1026:M1027)","v":-63277.003252778224},{"$f":"SUM(N1026:N1027)","v":0},null,null,{"$f":"SUM(Q1026:Q1027)","v":-71862.054880730764},{"$f":"SUM(R1026:R1027)","v":-117248.61585803439},null,{"$f":"SUM(T1026:T1027)","v":-11877.9825565007},{"$f":"SUM(U1026:U1027)","v":-19379.866276395878},null,{"$f":"SUM(W1026:W1027)","v":-19727.611769147021},{"$f":"SUM(X1026:X1027)","v":-109723.59237945656},{"$f":"SUM(Y1026:Y1027)","v":-1034.9686165367962},{"$f":"SUM(Z1026:Z1027)","v":-19834.650939935615},{"$f":"SUM(AA1026:AA1027)","v":0},-19834.650939935615,"UACCT929",{"$f":"ROUND(SUM(-H1028,J1028:N1028),0)","v":0},{"$f":"ROUND(J1028-Q1028-R1028,0)","v":0},{"$f":"ROUND(K1028-T1028-U1028,0)","v":0},{"$f":"ROUND(L1028-W1028-X1028-Y1028-Z1028-AA1028,0)","v":0}]
[1029]
[1030,930,"Misc General Expenses"]
[1031,null,null,"S",930,"S","ACCT930S",{"$f":"'JAM Download'!E958","v":26128},"PTD",{"$f":"VLOOKUP($I1031,Func,2)*$H1031","v":13296.990761040637},{"$f":"VLOOKUP($I1031,Func,3)*$H1031","v":5145.8658920634052},{"$f":"VLOOKUP($I1031,Func,5)*$H1031","v":7685.1433468959558},{"$f":"VLOOKUP($I1031,Func,6)*$H1031","v":0},{"$f":"VLOOKUP($I1031,Func,7)*$H1031","v":0},null,{"$f":"Demand","v":0.38},{"$f":"+$J1031*$P1031","v":5052.856489195442},{"$f":"+$J1031*(1-$P1031)","v":8244.1342718451942},{"$f":"Demand","v":0.38},{"$f":"+$K1031*$S1031","v":1955.4290389840939},{"$f":"+$K1031*(1-$S1031)","v":3190.4368530793113},"PLNT",{"$f":"+$L1031*VLOOKUP($V1031,DisFac,2)","v":902.8473927918659},{"$f":"+$L1031*VLOOKUP($V1031,DisFac,3)","v":3698.523932710586},{"$f":"+$L1031*VLOOKUP($V1031,DisFac,4)","v":1875.6215438984634},{"$f":"+$L1031*VLOOKUP($V1031,DisFac,5)","v":217.24898979022353},{"$f":"+$L1031*VLOOKUP($V1031,DisFac,6)","v":990.90148770481676},217.24898979022353,"UACCT930S",{"$f":"ROUND(SUM(-H1031,J1031:N1031),0)","v":0},{"$f":"ROUND(J1031-Q1031-R1031,0)","v":0},{"$f":"ROUND(K1031-T1031-U1031,0)","v":0},{"$f":"ROUND(L1031-W1031-X1031-Y1031-Z1031-AA1031,0)","v":0}]
[1032,null,null,"CAGE",930,"CN","ACCT930CAGE",{"$f":"'JAM Download'!E959","v":0},"CUST",{"$f":"VLOOKUP($I1032,Func,2)*$H1032","v":0},{"$f":"VLOOKUP($I1032,Func,3)*$H1032","v":0},{"$f":"VLOOKUP($I1032,Func,5)*$H1032","v":0},{"$f":"VLOOKUP($I1032,Func,6)*$H1032","v":0},{"$f":"VLOOKUP($I1032,Func,7)*$H1032","v":0},null,{"$f":"Demand","v":0.38},{"$f":"+$J1032*$P1032","v":0},{"$f":"+$J1032*(1-$P1032)","v":0},{"$f":"Demand","v":0.38},{"$f":"+$K1032*$S1032","v":0},{"$f":"+$K1032*(1-$S1032)","v":0},"CUST",{"$f":"+$L1032*VLOOKUP($V1032,DisFac,2)","v":0},{"$f":"+$L1032*VLOOKUP($V1032,DisFac,3)","v":0},{"$f":"+$L1032*VLOOKUP($V1032,DisFac,4)","v":0},{"$f":"+$L1032*VLOOKUP($V1032,DisFac,5)","v":0},{"$f":"+$L1032*VLOOKUP($V1032,DisFac,6)","v":0},0,"UACCT920SO",{"$f":"ROUND(SUM(-H1032,J1032:N1032),0)","v":0},{"$f":"ROUND(J1032-Q1032-R1032,0)","v":0},{"$f":"ROUND(K1032-T1032-U1032,0)","v":0},{"$f":"ROUND(L1032-W1032-X1032-Y1032-Z1032-AA1032,0)","v":0}]
[1033,null,null,"SO",930,"SO","ACCT930SO",{"$f":"'JAM Download'!E960","v":758900.30188359064},"LABOR",{"$f":"VLOOKUP($I1033,Func,2)*$H1033","v":330708.0059566233},{"$f":"VLOOKUP($I1033,Func,3)*$H1033","v":54662.282237370331},{"$f":"VLOOKUP($I1033,Func,5)*$H1033","v":262874.11316908},{"$f":"VLOOKUP($I1033,Func,6)*$H1033","v":110655.90052051704},{"$f":"VLOOKUP($I1033,Func,7)*$H1033","v":0},null,{"$f":"Demand","v":0.38},{"$f":"+$J1033*$P1033","v":125669.04226351685},{"$f":"+$J1033*(1-$P1033)","v":205038.96369310643},{"$f":"Demand","v":0.38},{"$f":"+$K1033*$S1033","v":20771.667250200728},{"$f":"+$K1033*(1-$S1033)","v":33890.614987169603},"DISom",{"$f":"+$L1033*VLOOKUP($V1033,DisFac,2)","v":34498.736242511121},{"$f":"+$L1033*VLOOKUP($V1033,DisFac,3)","v":191879.55021497994},{"$f":"+$L1033*VLOOKUP($V1033,DisFac,4)","v":1809.9053113474451},{"$f":"+$L1033*VLOOKUP($V1033,DisFac,5)","v":34685.921400241561},{"$f":"+$L1033*VLOOKUP($V1033,DisFac,6)","v":0},34685.921400241561,"UACCT930SO",{"$f":"ROUND(SUM(-H1033,J1033:N1033),0)","v":0},{"$f":"ROUND(J1033-Q1033-R1033,0)","v":0},{"$f":"ROUND(K1033-T1033-U1033,0)","v":0},{"$f":"ROUND(L1033-W1033-X1033-Y1033-Z1033-AA1033,0)","v":0}]
[1034,null,null,null,null,null,"ACCT930",{"$f":"'JAM Download'!E961","v":785028.30188359064},null,{"$f":"SUM(J1031:J1033)","v":344004.99671766395},{"$f":"SUM(K1031:K1033)","v":59808.148129433735},{"$f":"SUM(L1031:L1033)","v":270559.25651597593},{"$f":"SUM(M1031:M1033)","v":110655.90052051704},{"$f":"SUM(N1031:N1033)","v":0},null,null,{"$f":"SUM(Q1031:Q1033)","v":130721.8987527123},{"$f":"SUM(R1031:R1033)","v":213283.09796495162},null,{"$f":"SUM(T1031:T1033)","v":22727.096289184821},{"$f":"SUM(U1031:U1033)","v":37081.051840248918},null,{"$f":"SUM(W1031:W1033)","v":35401.583635302988},{"$f":"SUM(X1031:X1033)","v":195578.07414769052},{"$f":"SUM(Y1031:Y1033)","v":3685.5268552459083},{"$f":"SUM(Z1031:Z1033)","v":34903.170390031788},{"$f":"SUM(AA1031:AA1033)","v":990.90148770481676},34903.170390031788,"UACCT930",{"$f":"ROUND(SUM(-H1034,J1034:N1034),0)","v":0},{"$f":"ROUND(J1034-Q1034-R1034,0)","v":0},{"$f":"ROUND(K1034-T1034-U1034,0)","v":0},{"$f":"ROUND(L1034-W1034-X1034-Y1034-Z1034-AA1034,0)","v":0}]
[1035]
[1036,931,"Rents"]
[1037,null,null,"S",931,"S","ACCT931S",{"$f":"'JAM Download'!E964","v":8509.34},"PTD",{"$f":"VLOOKUP($I1037,Func,2)*$H1037","v":4330.5501899323917},{"$f":"VLOOKUP($I1037,Func,3)*$H1037","v":1675.9002782444436},{"$f":"VLOOKUP($I1037,Func,5)*$H1037","v":2502.8895318231644},{"$f":"VLOOKUP($I1037,Func,6)*$H1037","v":0},{"$f":"VLOOKUP($I1037,Func,7)*$H1037","v":0},null,{"$f":"Demand","v":0.38},{"$f":"+$J1037*$P1037","v":1645.6090721743089},{"$f":"+$J1037*(1-$P1037)","v":2684.9411177580828},{"$f":"Demand","v":0.38},{"$f":"+$K1037*$S1037","v":636.84210573288863},{"$f":"+$K1037*(1-$S1037)","v":1039.0581725115551},"PLNT",{"$f":"+$L1037*VLOOKUP($V1037,DisFac,2)","v":294.03840452309925},{"$f":"+$L1037*VLOOKUP($V1037,DisFac,3)","v":1204.5314467839673},{"$f":"+$L1037*VLOOKUP($V1037,DisFac,4)","v":610.85048332658266},{"$f":"+$L1037*VLOOKUP($V1037,DisFac,5)","v":70.753426162796259},{"$f":"+$L1037*VLOOKUP($V1037,DisFac,6)","v":322.7157710267187},70.753426162796259,"UACCT931S",{"$f":"ROUND(SUM(-H1037,J1037:N1037),0)","v":0},{"$f":"ROUND(J1037-Q1037-R1037,0)","v":0},{"$f":"ROUND(K1037-T1037-U1037,0)","v":0},{"$f":"ROUND(L1037-W1037-X1037-Y1037-Z1037-AA1037,0)","v":0}]
[1038,null,null,"SO",931,"SO","ACCT931SO",{"$f":"'JAM Download'!E965","v":382297.26744720503},"PTD",{"$f":"VLOOKUP($I1038,Func,2)*$H1038","v":194557.68651318765},{"$f":"VLOOKUP($I1038,Func,3)*$H1038","v":75292.807301960129},{"$f":"VLOOKUP($I1038,Func,5)*$H1038","v":112446.77363205724},{"$f":"VLOOKUP($I1038,Func,6)*$H1038","v":0},{"$f":"VLOOKUP($I1038,Func,7)*$H1038","v":0},null,{"$f":"Demand","v":0.38},{"$f":"+$J1038*$P1038","v":73931.920875011303},{"$f":"+$J1038*(1-$P1038)","v":120625.76563817635},{"$f":"Demand","v":0.38},{"$f":"+$K1038*$S1038","v":28611.26677474485},{"$f":"+$K1038*(1-$S1038)","v":46681.540527215278},"PLNT",{"$f":"+$L1038*VLOOKUP($V1038,DisFac,2)","v":13210.199448337558},{"$f":"+$L1038*VLOOKUP($V1038,DisFac,3)","v":54115.72233096094},{"$f":"+$L1038*VLOOKUP($V1038,DisFac,4)","v":27443.546807925999},{"$f":"+$L1038*VLOOKUP($V1038,DisFac,5)","v":3178.7237887503138},{"$f":"+$L1038*VLOOKUP($V1038,DisFac,6)","v":14498.581256082429},3178.7237887503138,"UACCT931SO",{"$f":"ROUND(SUM(-H1038,J1038:N1038),0)","v":0},{"$f":"ROUND(J1038-Q1038-R1038,0)","v":0},{"$f":"ROUND(K1038-T1038-U1038,0)","v":0},{"$f":"ROUND(L1038-W1038-X1038-Y1038-Z1038-AA1038,0)","v":0}]
[1039,null,null,null,null,null,"ACCT931",{"$f":"'JAM Download'!E966","v":390806.60744720505},null,{"$f":"SUM(J1037:J1038)","v":198888.23670312006},{"$f":"SUM(K1037:K1038)","v":76968.707580204573},{"$f":"SUM(L1037:L1038)","v":114949.66316388041},{"$f":"SUM(M1037:M1038)","v":0},{"$f":"SUM(N1037:N1038)","v":0},null,null,{"$f":"SUM(Q1037:Q1038)","v":75577.529947185612},{"$f":"SUM(R1037:R1038)","v":123310.70675593443},null,{"$f":"SUM(T1037:T1038)","v":29248.108880477739},{"$f":"SUM(U1037:U1038)","v":47720.598699726834},null,{"$f":"SUM(W1037:W1038)","v":13504.237852860657},{"$f":"SUM(X1037:X1038)","v":55320.253777744911},{"$f":"SUM(Y1037:Y1038)","v":28054.397291252582},{"$f":"SUM(Z1037:Z1038)","v":3249.4772149131099},{"$f":"SUM(AA1037:AA1038)","v":14821.297027109147},3249.4772149131099,"UACCT931",{"$f":"ROUND(SUM(-H1039,J1039:N1039),0)","v":0},{"$f":"ROUND(J1039-Q1039-R1039,0)","v":0},{"$f":"ROUND(K1039-T1039-U1039,0)","v":0},{"$f":"ROUND(L1039-W1039-X1039-Y1039-Z1039-AA1039,0)","v":0}]
[1040]
[1041,935,"Maintenance of General Plant"]
[1042,null,null,"S",935,"S","ACCT935S",{"$f":"'JAM Download'!E969","v":19971.180384915944},"G",{"$f":"VLOOKUP($I1042,Func,2)*$H1042","v":6735.4734025918915},{"$f":"VLOOKUP($I1042,Func,3)*$H1042","v":3696.6933630858798},{"$f":"VLOOKUP($I1042,Func,5)*$H1042","v":9037.8656229761673},{"$f":"VLOOKUP($I1042,Func,6)*$H1042","v":501.14799626200505},{"$f":"VLOOKUP($I1042,Func,7)*$H1042","v":0},null,{"$f":"Demand","v":0.38},{"$f":"+$J1042*$P1042","v":2559.4798929849189},{"$f":"+$J1042*(1-$P1042)","v":4175.993509606973},{"$f":"Demand","v":0.38},{"$f":"+$K1042*$S1042","v":1404.7434779726343},{"$f":"+$K1042*(1-$S1042)","v":2291.9498851132453},"GENL",{"$f":"+$L1042*VLOOKUP($V1042,DisFac,2)","v":1061.7646341499967},{"$f":"+$L1042*VLOOKUP($V1042,DisFac,3)","v":4349.5300996175647},{"$f":"+$L1042*VLOOKUP($V1042,DisFac,4)","v":2205.7643830625757},{"$f":"+$L1042*VLOOKUP($V1042,DisFac,5)","v":255.48868613419032},{"$f":"+$L1042*VLOOKUP($V1042,DisFac,6)","v":1165.3178200118421},255.48868613419032,"UACCT935S",{"$f":"ROUND(SUM(-H1042,J1042:N1042),0)","v":0},{"$f":"ROUND(J1042-Q1042-R1042,0)","v":0},{"$f":"ROUND(K1042-T1042-U1042,0)","v":0},{"$f":"ROUND(L1042-W1042-X1042-Y1042-Z1042-AA1042,0)","v":0}]
[1043,null,null,"CN",935,"CN","ACCT935CN",{"$f":"'JAM Download'!E970","v":1466.4285581599922},"CUST",{"$f":"VLOOKUP($I1043,Func,2)*$H1043","v":0},{"$f":"VLOOKUP($I1043,Func,3)*$H1043","v":0},{"$f":"VLOOKUP($I1043,Func,5)*$H1043","v":0},{"$f":"VLOOKUP($I1043,Func,6)*$H1043","v":1466.4285581599922},{"$f":"VLOOKUP($I1043,Func,7)*$H1043","v":0},null,{"$f":"Demand","v":0.38},{"$f":"+$J1043*$P1043","v":0},{"$f":"+$J1043*(1-$P1043)","v":0},{"$f":"Demand","v":0.38},{"$f":"+$K1043*$S1043","v":0},{"$f":"+$K1043*(1-$S1043)","v":0},"CUST",{"$f":"+$L1043*VLOOKUP($V1043,DisFac,2)","v":0},{"$f":"+$L1043*VLOOKUP($V1043,DisFac,3)","v":0},{"$f":"+$L1043*VLOOKUP($V1043,DisFac,4)","v":0},{"$f":"+$L1043*VLOOKUP($V1043,DisFac,5)","v":0},{"$f":"+$L1043*VLOOKUP($V1043,DisFac,6)","v":0},0,"UACCT920SO",{"$f":"ROUND(SUM(-H1043,J1043:N1043),0)","v":0},{"$f":"ROUND(J1043-Q1043-R1043,0)","v":0},{"$f":"ROUND(K1043-T1043-U1043,0)","v":0},{"$f":"ROUND(L1043-W1043-X1043-Y1043-Z1043-AA1043,0)","v":0}]
[1044,null,null,"SO",935,"SO","ACCT935SO",{"$f":"'JAM Download'!E971","v":1544862.2698619494},"G",{"$f":"VLOOKUP($I1044,Func,2)*$H1044","v":521019.7158492438},{"$f":"VLOOKUP($I1044,Func,3)*$H1044","v":285956.1623204723},{"$f":"VLOOKUP($I1044,Func,5)*$H1044","v":699120.29894656665},{"$f":"VLOOKUP($I1044,Func,6)*$H1044","v":38766.092745666589},{"$f":"VLOOKUP($I1044,Func,7)*$H1044","v":0},null,{"$f":"Demand","v":0.38},{"$f":"+$J1044*$P1044","v":197987.49202271266},{"$f":"+$J1044*(1-$P1044)","v":323032.22382653115},{"$f":"Demand","v":0.38},{"$f":"+$K1044*$S1044","v":108663.34168177948},{"$f":"+$K1044*(1-$S1044)","v":177292.82063869282},"GENL",{"$f":"+$L1044*VLOOKUP($V1044,DisFac,2)","v":82132.357284749945},{"$f":"+$L1044*VLOOKUP($V1044,DisFac,3)","v":336456.07385346055},{"$f":"+$L1044*VLOOKUP($V1044,DisFac,4)","v":170625.9773294334},{"$f":"+$L1044*VLOOKUP($V1044,DisFac,5)","v":19763.219998925146},{"$f":"+$L1044*VLOOKUP($V1044,DisFac,6)","v":90142.67047999776},19763.219998925146,"UACCT935SO",{"$f":"ROUND(SUM(-H1044,J1044:N1044),0)","v":0},{"$f":"ROUND(J1044-Q1044-R1044,0)","v":0},{"$f":"ROUND(K1044-T1044-U1044,0)","v":0},{"$f":"ROUND(L1044-W1044-X1044-Y1044-Z1044-AA1044,0)","v":0}]
[1045,null,null,null,null,null,"ACCT935",{"$f":"'JAM Download'!E972","v":1566299.8788050252},null,{"$f":"SUM(J1042:J1044)","v":527755.18925183569},{"$f":"SUM(K1042:K1044)","v":289652.85568355815},{"$f":"SUM(L1042:L1044)","v":708158.16456954286},{"$f":"SUM(M1042:M1044)","v":40733.669300088586},{"$f":"SUM(N1042:N1044)","v":0},null,null,{"$f":"SUM(Q1042:Q1044)","v":200546.97191569756},{"$f":"SUM(R1042:R1044)","v":327208.21733613813},null,{"$f":"SUM(T1042:T1044)","v":110068.08515975211},{"$f":"SUM(U1042:U1044)","v":179584.77052380607},null,{"$f":"SUM(W1042:W1044)","v":83194.121918899938},{"$f":"SUM(X1042:X1044)","v":340805.6039530781},{"$f":"SUM(Y1042:Y1044)","v":172831.74171249598},{"$f":"SUM(Z1042:Z1044)","v":20018.708685059337},{"$f":"SUM(AA1042:AA1044)","v":91307.988300009602},20018.708685059337,"UACCT935",{"$f":"ROUND(SUM(-H1045,J1045:N1045),0)","v":0},{"$f":"ROUND(J1045-Q1045-R1045,0)","v":0},{"$f":"ROUND(K1045-T1045-U1045,0)","v":0},{"$f":"ROUND(L1045-W1045-X1045-Y1045-Z1045-AA1045,0)","v":0}]
[1046]
[1047,"TOTAL ADMINISTRATIVE & GEN EXPENSE",null,null,null,null,null,{"$f":"'JAM Download'!E974","v":9992053.3282573428},null,{"$f":"+J1045+J1039+J1034+J1028+J1023+J1016+J1011+J1005+J1001+J997+J991+J985","v":3871879.3179011061},{"$f":"+K1045+K1039+K1034+K1028+K1023+K1016+K1011+K1005+K1001+K997+K991+K985","v":1759220.2794326819},{"$f":"+L1045+L1039+L1034+L1028+L1023+L1016+L1011+L1005+L1001+L997+L991+L985","v":2582493.3102854649},{"$f":"+M1045+M1039+M1034+M1028+M1023+M1016+M1011+M1005+M1001+M997+M991+M985","v":93039.889380115317},{"$f":"+N1045+N1039+N1034+N1028+N1023+N1016+N1011+N1005+N1001+N997+N991+N985","v":1685420.5312579749},null,null,{"$f":"+Q1045+Q1039+Q1034+Q1028+Q1023+Q1016+Q1011+Q1005+Q1001+Q997+Q991+Q985","v":1471314.1408024204},{"$f":"+R1045+R1039+R1034+R1028+R1023+R1016+R1011+R1005+R1001+R997+R991+R985","v":2400565.1770986859},{"$f":"+S1045+S1039+S1034+S1028+S1023+S1016+S1011+S1005+S1001+S997+S991+S985","v":0},{"$f":"+T1045+T1039+T1034+T1028+T1023+T1016+T1011+T1005+T1001+T997+T991+T985","v":668503.70618441899},{"$f":"+U1045+U1039+U1034+U1028+U1023+U1016+U1011+U1005+U1001+U997+U991+U985","v":1090716.5732482627},null,{"$f":"+W1045+W1039+W1034+W1028+W1023+W1016+W1011+W1005+W1001+W997+W991+W985","v":304938.63436784584},{"$f":"+X1045+X1039+X1034+X1028+X1023+X1016+X1011+X1005+X1001+X997+X991+X985","v":1270830.2436648898},{"$f":"+Y1045+Y1039+Y1034+Y1028+Y1023+Y1016+Y1011+Y1005+Y1001+Y997+Y991+Y985","v":603583.82471131033},{"$f":"+Z1045+Z1039+Z1034+Z1028+Z1023+Z1016+Z1011+Z1005+Z1001+Z997+Z991+Z985","v":84673.256875515304},{"$f":"+AA1045+AA1039+AA1034+AA1028+AA1023+AA1016+AA1011+AA1005+AA1001+AA997+AA991+AA985","v":318467.35066590377},84673.256875515304,null,{"$f":"ROUND(SUM(-H1047,J1047:N1047),0)","v":0},{"$f":"ROUND(J1047-Q1047-R1047,0)","v":0},{"$f":"ROUND(K1047-T1047-U1047,0)","v":0},{"$f":"ROUND(L1047-W1047-X1047-Y1047-Z1047-AA1047,0)","v":0}]
[1048]
[1049]
[1050,"TOTAL O&M EXPENSE",null,null,null,null,null,{"$f":"'JAM Download'!E985","v":217526010.15460241},null,{"$f":"+J1047+J976+J950+J921+J888+J780+J700","v":160399072.80989745},{"$f":"+K1047+K976+K950+K921+K888+K780+K700","v":32671390.564299166},{"$f":"+L1047+L976+L950+L921+L888+L780+L700","v":14391948.89266945},{"$f":"+M1047+M976+M950+M921+M888+M780+M700","v":8378177.35647838},{"$f":"+N1047+N976+N950+N921+N888+N780+N700","v":1685420.5312579749},null,null,{"$f":"+Q1047+Q976+Q950+Q921+Q888+Q780+Q700","v":60951647.667761035},{"$f":"+R1047+R976+R950+R921+R888+R780+R700","v":99447425.142136425},null,{"$f":"+T1047+T976+T950+T921+T888+T780+T700","v":12415128.414433682},{"$f":"+U1047+U976+U950+U921+U888+U780+U700","v":20256262.149865486},null,{"$f":"+W1047+W976+W950+W921+W888+W780+W700","v":2499193.0485723997},{"$f":"+X1047+X976+X950+X921+X888+X780+X700","v":9273227.5783924907},{"$f":"+Y1047+Y976+Y950+Y921+Y888+Y780+Y700","v":942194.69195301516},{"$f":"+Z1047+Z976+Z950+Z921+Z888+Z780+Z700","v":1209694.9611877},{"$f":"+AA1047+AA976+AA950+AA921+AA888+AA780+AA700","v":467638.61256384803},1209694.9611877,null,{"$f":"ROUND(SUM(-H1050,J1050:N1050),0)","v":0},{"$f":"ROUND(J1050-Q1050-R1050,0)","v":0},{"$f":"ROUND(K1050-T1050-U1050,0)","v":0},{"$f":"ROUND(L1050-W1050-X1050-Y1050-Z1050-AA1050,0)","v":0}]
[1051]
[1052]
[1053,"FERC",null,"DESCRIPTION &","FERC",null,"RANGE",{"$f":"+$H$250","v":"Jurisdictional"},"FUNC","GEN","TRN","DIS","RETAIL","MISC",null,"D / E","GEN","GEN","D / E","TRN","TRN","DIS","DIS","DIS","DIS","DIS","DIS","DIS","Unbundled ACCT:","Function","Generation","Transmission","Distribution"]
[1054,"ACCT",null,"CONSENSUS FACTOR","ACCT","FACTOR","NAME","ADJ Total","FACTOR","TOTAL","TOTAL","TOTAL","TOTAL","TOTAL",null,"SPLIT","DEMAND","ENERGY","SPLIT","DEMAND","ENERGY","SPLIT","SUBS","P & C","XFMR","METER","SERVICE","METER","TOTAL","Check","Check","Check","Check"]
[1055,"403SP","Steam Depreciation"]
[1056,null,null,"DGP",403,"DGP","ACCT403SPDGP",{"$f":"'JAM Download'!E987","v":0},"P",{"$f":"VLOOKUP($I1056,Func,2)*$H1056","v":0},{"$f":"VLOOKUP($I1056,Func,3)*$H1056","v":0},{"$f":"VLOOKUP($I1056,Func,5)*$H1056","v":0},{"$f":"VLOOKUP($I1056,Func,6)*$H1056","v":0},{"$f":"VLOOKUP($I1056,Func,7)*$H1056","v":0},null,{"$f":"Demand","v":0.38},{"$f":"+$J1056*$P1056","v":0},{"$f":"+$J1056*(1-$P1056)","v":0},null,{"$f":"+$K1056*$S1056","v":0},{"$f":"+$K1056*(1-$S1056)","v":0},null,null,null,null,null,null,null,"UACCT403SPSGP",{"$f":"ROUND(SUM(-H1056,J1056:N1056),0)","v":0},{"$f":"ROUND(J1056-Q1056-R1056,0)","v":0},{"$f":"ROUND(K1056-T1056-U1056,0)","v":0},{"$f":"ROUND(L1056-W1056-X1056-Y1056-Z1056-AA1056,0)","v":0}]
[1057,null,null,"DGU",403,"DGU","ACCT403SPDGU",{"$f":"'JAM Download'!E988","v":0},"P",{"$f":"VLOOKUP($I1057,Func,2)*$H1057","v":0},{"$f":"VLOOKUP($I1057,Func,3)*$H1057","v":0},{"$f":"VLOOKUP($I1057,Func,5)*$H1057","v":0},{"$f":"VLOOKUP($I1057,Func,6)*$H1057","v":0},{"$f":"VLOOKUP($I1057,Func,7)*$H1057","v":0},null,{"$f":"Demand","v":0.38},{"$f":"+$J1057*$P1057","v":0},{"$f":"+$J1057*(1-$P1057)","v":0},null,{"$f":"+$K1057*$S1057","v":0},{"$f":"+$K1057*(1-$S1057)","v":0},null,null,null,null,null,null,null,"UACCT403SPSGU",0,0,0,0]
[1058,null,null,"JBG",403,"JBG","ACCT403SPJBG",{"$f":"'JAM Download'!E992","v":6980936.8357505603},"P",{"$f":"VLOOKUP($I1058,Func,2)*$H1058","v":6980936.8357505603},{"$f":"VLOOKUP($I1058,Func,3)*$H1058","v":0},{"$f":"VLOOKUP($I1058,Func,5)*$H1058","v":0},{"$f":"VLOOKUP($I1058,Func,6)*$H1058","v":0},{"$f":"VLOOKUP($I1058,Func,7)*$H1058","v":0},null,{"$f":"Demand","v":0.38},{"$f":"+$J1058*$P1058","v":2652755.9975852128},{"$f":"+$J1058*(1-$P1058)","v":4328180.8381653475},null,0,0,null,null,null,null,null,null,null,"UACCT403SPJBG",0,0,0,0]
[1059,null,null,"CAGE",403,"CAGE","ACCT403SPCAGE",0,"P",{"$f":"VLOOKUP($I1059,Func,2)*$H1059","v":0},{"$f":"VLOOKUP($I1059,Func,3)*$H1059","v":0},{"$f":"VLOOKUP($I1059,Func,5)*$H1059","v":0},{"$f":"VLOOKUP($I1059,Func,6)*$H1059","v":0},{"$f":"VLOOKUP($I1059,Func,7)*$H1059","v":0},null,{"$f":"Demand","v":0.38},{"$f":"+$J1059*$P1059","v":0},{"$f":"+$J1059*(1-$P1059)","v":0},null,{"$f":"+$K1059*$S1059","v":0},{"$f":"+$K1059*(1-$S1059)","v":0},null,null,null,null,null,null,null,"UACCT403SPSSGCH",0,0,0,0]
[1060,null,null,"SG/CAGW/CAGE",403,"CAGW","ACCT403SPCAGW",{"$f":"'JAM Download'!E990+'JAM Download'!E991+'JAM Download'!E939+'JAM Download'!E993","v":657177.99611687684},"P",{"$f":"VLOOKUP($I1060,Func,2)*$H1060","v":657177.99611687684},{"$f":"VLOOKUP($I1060,Func,3)*$H1060","v":0},{"$f":"VLOOKUP($I1060,Func,5)*$H1060","v":0},{"$f":"VLOOKUP($I1060,Func,6)*$H1060","v":0},{"$f":"VLOOKUP($I1060,Func,7)*$H1060","v":0},null,{"$f":"Demand","v":0.38},{"$f":"+$J1060*$P1060","v":249727.6385244132},{"$f":"+$J1060*(1-$P1060)","v":407450.35759246361},null,{"$f":"+$K1060*$S1060","v":0},{"$f":"+$K1060*(1-$S1060)","v":0},null,null,null,null,null,null,null,"UACCT403SPDGU",0,0,0,0]
[1061,null,null,null,null,null,"ACCT403SP",{"$f":"'JAM Download'!E994","v":7638114.8318674369},null,{"$f":"SUM(J1056:J1060)","v":7638114.8318674369},{"$f":"SUM(K1056:K1060)","v":0},{"$f":"SUM(L1056:L1060)","v":0},{"$f":"SUM(M1056:M1060)","v":0},{"$f":"SUM(N1056:N1060)","v":0},null,null,{"$f":"SUM(Q1056:Q1060)","v":2902483.6361096259},{"$f":"SUM(R1056:R1060)","v":4735631.195757811},null,{"$f":"SUM(T1056:T1060)","v":0},{"$f":"SUM(U1056:U1060)","v":0},null,{"$f":"SUM(W1056:W1060)","v":0},{"$f":"SUM(X1056:X1060)","v":0},{"$f":"SUM(Y1056:Y1060)","v":0},{"$f":"SUM(Z1056:Z1060)","v":0},{"$f":"SUM(AA1056:AA1060)","v":0},0,"UACCT403SP",0,0,0,0]
[1062]
[1063,"403NP","Nuclear Depreciation"]
[1064,null,null,"DGP",403,"DGP","ACCT403NPSG",{"$f":"'JAM Download'!E997","v":0},"P",{"$f":"VLOOKUP($I1064,Func,2)*$H1064","v":0},{"$f":"VLOOKUP($I1064,Func,3)*$H1064","v":0},{"$f":"VLOOKUP($I1064,Func,5)*$H1064","v":0},{"$f":"VLOOKUP($I1064,Func,6)*$H1064","v":0},{"$f":"VLOOKUP($I1064,Func,7)*$H1064","v":0},null,{"$f":"Demand","v":0.38},{"$f":"+$J1064*$P1064","v":0},{"$f":"+$J1064*(1-$P1064)","v":0},null,{"$f":"+$K1064*$S1064","v":0},{"$f":"+$K1064*(1-$S1064)","v":0},null,null,null,null,null,null,null,"UACCT403NPDGP",{"$f":"ROUND(SUM(-H1064,J1064:N1064),0)","v":0},{"$f":"ROUND(J1064-Q1064-R1064,0)","v":0},{"$f":"ROUND(K1064-T1064-U1064,0)","v":0},{"$f":"ROUND(L1064-W1064-X1064-Y1064-Z1064-AA1064,0)","v":0}]
[1065,null,null,null,null,null,"ACCT403NP",{"$f":"'JAM Download'!E998","v":0},null,{"$f":"SUM(J1064)","v":0},{"$f":"SUM(K1064)","v":0},{"$f":"SUM(L1064)","v":0},{"$f":"SUM(M1064)","v":0},{"$f":"SUM(N1064)","v":0},null,null,{"$f":"SUM(Q1064)","v":0},{"$f":"SUM(R1064)","v":0},null,{"$f":"SUM(T1064)","v":0},{"$f":"SUM(U1064)","v":0},null,{"$f":"SUM(W1064)","v":0},{"$f":"SUM(X1064)","v":0},{"$f":"SUM(Y1064)","v":0},{"$f":"SUM(Z1064)","v":0},{"$f":"SUM(AA1064)","v":0},0,"UACCT403NP",{"$f":"ROUND(SUM(-H1065,J1065:N1065),0)","v":0},{"$f":"ROUND(J1065-Q1065-R1065,0)","v":0},{"$f":"ROUND(K1065-T1065-U1065,0)","v":0},{"$f":"ROUND(L1065-W1065-X1065-Y1065-Z1065-AA1065,0)","v":0}]
[1066]
[1067,"403HP","Hydro Depreciation"]
[1068,null,null,"DGP",403,"DGP","ACCT403HPSGP",{"$f":"'JAM Download'!E1001","v":0},"P",{"$f":"VLOOKUP($I1068,Func,2)*$H1068","v":0},{"$f":"VLOOKUP($I1068,Func,3)*$H1068","v":0},{"$f":"VLOOKUP($I1068,Func,5)*$H1068","v":0},{"$f":"VLOOKUP($I1068,Func,6)*$H1068","v":0},{"$f":"VLOOKUP($I1068,Func,7)*$H1068","v":0},null,{"$f":"Demand","v":0.38},{"$f":"+$J1068*$P1068","v":0},{"$f":"+$J1068*(1-$P1068)","v":0},null,{"$f":"+$K1068*$S1068","v":0},{"$f":"+$K1068*(1-$S1068)","v":0},null,null,null,null,null,null,null,"UACCT403HPDGP",{"$f":"ROUND(SUM(-H1068,J1068:N1068),0)","v":0},{"$f":"ROUND(J1068-Q1068-R1068,0)","v":0},{"$f":"ROUND(K1068-T1068-U1068,0)","v":0},{"$f":"ROUND(L1068-W1068-X1068-Y1068-Z1068-AA1068,0)","v":0}]
[1069,null,null,"DGU",403,"DGU","ACCT403HPSGU",{"$f":"'JAM Download'!E1002","v":0},"P",{"$f":"VLOOKUP($I1069,Func,2)*$H1069","v":0},{"$f":"VLOOKUP($I1069,Func,3)*$H1069","v":0},{"$f":"VLOOKUP($I1069,Func,5)*$H1069","v":0},{"$f":"VLOOKUP($I1069,Func,6)*$H1069","v":0},{"$f":"VLOOKUP($I1069,Func,7)*$H1069","v":0},null,{"$f":"Demand","v":0.38},{"$f":"+$J1069*$P1069","v":0},{"$f":"+$J1069*(1-$P1069)","v":0},null,{"$f":"+$K1069*$S1069","v":0},{"$f":"+$K1069*(1-$S1069)","v":0},null,null,null,null,null,null,null,"UACCT403HPDGU",{"$f":"ROUND(SUM(-H1069,J1069:N1069),0)","v":0},{"$f":"ROUND(J1069-Q1069-R1069,0)","v":0},{"$f":"ROUND(K1069-T1069-U1069,0)","v":0},{"$f":"ROUND(L1069-W1069-X1069-Y1069-Z1069-AA1069,0)","v":0}]
[1070,null,null,"CAGW",403,"CAGW","ACCT403HPCAGW",{"$f":"'JAM Download'!E1003+'JAM Download'!E1004+'JAM Download'!E1005+'JAM Download'!E1006","v":5403611.9978192989},"P",{"$f":"VLOOKUP($I1070,Func,2)*$H1070","v":5403611.9978192989},{"$f":"VLOOKUP($I1070,Func,3)*$H1070","v":0},{"$f":"VLOOKUP($I1070,Func,5)*$H1070","v":0},{"$f":"VLOOKUP($I1070,Func,6)*$H1070","v":0},{"$f":"VLOOKUP($I1070,Func,7)*$H1070","v":0},null,{"$f":"Demand","v":0.38},{"$f":"+$J1070*$P1070","v":2053372.5591713337},{"$f":"+$J1070*(1-$P1070)","v":3350239.4386479654},null,{"$f":"+$K1070*$S1070","v":0},{"$f":"+$K1070*(1-$S1070)","v":0},null,null,null,null,null,null,null,"UACCT403HPCAGE",{"$f":"ROUND(SUM(-H1070,J1070:N1070),0)","v":0},{"$f":"ROUND(J1070-Q1070-R1070,0)","v":0},{"$f":"ROUND(K1070-T1070-U1070,0)","v":0},{"$f":"ROUND(L1070-W1070-X1070-Y1070-Z1070-AA1070,0)","v":0}]
[1071,null,null,"SG",403,"SG","ACCT403HPSG",0,"P",{"$f":"VLOOKUP($I1071,Func,2)*$H1071","v":0},{"$f":"VLOOKUP($I1071,Func,3)*$H1071","v":0},{"$f":"VLOOKUP($I1071,Func,5)*$H1071","v":0},{"$f":"VLOOKUP($I1071,Func,6)*$H1071","v":0},{"$f":"VLOOKUP($I1071,Func,7)*$H1071","v":0},null,{"$f":"Demand","v":0.38},{"$f":"+$J1071*$P1071","v":0},{"$f":"+$J1071*(1-$P1071)","v":0},null,{"$f":"+$K1071*$S1071","v":0},{"$f":"+$K1071*(1-$S1071)","v":0},null,null,null,null,null,null,null,"UACCT403SPDGU",{"$f":"ROUND(SUM(-H1071,J1071:N1071),0)","v":0},{"$f":"ROUND(J1071-Q1071-R1071,0)","v":0},{"$f":"ROUND(K1071-T1071-U1071,0)","v":0},{"$f":"ROUND(L1071-W1071-X1071-Y1071-Z1071-AA1071,0)","v":0}]
[1072,null,null,null,null,null,"ACCT403HP",{"$f":"'JAM Download'!E1007","v":5403611.9978192989},null,{"$f":"SUM(J1068:J1071)","v":5403611.9978192989},{"$f":"SUM(K1068:K1071)","v":0},{"$f":"SUM(L1068:L1071)","v":0},{"$f":"SUM(M1068:M1071)","v":0},{"$f":"SUM(N1068:N1071)","v":0},null,null,{"$f":"SUM(Q1068:Q1071)","v":2053372.5591713337},{"$f":"SUM(R1068:R1071)","v":3350239.4386479654},null,{"$f":"SUM(T1068:T1071)","v":0},{"$f":"SUM(U1068:U1071)","v":0},null,{"$f":"SUM(W1068:W1071)","v":0},{"$f":"SUM(X1068:X1071)","v":0},{"$f":"SUM(Y1068:Y1071)","v":0},{"$f":"SUM(Z1068:Z1071)","v":0},{"$f":"SUM(AA1068:AA1071)","v":0},0,"UACCT403HP",{"$f":"ROUND(SUM(-H1072,J1072:N1072),0)","v":0},{"$f":"ROUND(J1072-Q1072-R1072,0)","v":0},{"$f":"ROUND(K1072-T1072-U1072,0)","v":0},{"$f":"ROUND(L1072-W1072-X1072-Y1072-Z1072-AA1072,0)","v":0}]
[1073]
[1074,"403OP","Other Production Depreciation"]
[1075,null,null,"DGU",403,"DGU","ACCT403OPSGU",{"$f":"'JAM Download'!E1010","v":0},"P",{"$f":"VLOOKUP($I1075,Func,2)*$H1075","v":0},{"$f":"VLOOKUP($I1075,Func,3)*$H1075","v":0},{"$f":"VLOOKUP($I1075,Func,5)*$H1075","v":0},{"$f":"VLOOKUP($I1075,Func,6)*$H1075","v":0},{"$f":"VLOOKUP($I1075,Func,7)*$H1075","v":0},null,{"$f":"Demand","v":0.38},{"$f":"+$J1075*$P1075","v":0},{"$f":"+$J1075*(1-$P1075)","v":0},null,{"$f":"+$K1075*$S1075","v":0},{"$f":"+$K1075*(1-$S1075)","v":0},null,null,null,null,null,null,null,"UACCT403OPSGU",{"$f":"ROUND(SUM(-H1075,J1075:N1075),0)","v":0},{"$f":"ROUND(J1075-Q1075-R1075,0)","v":0},{"$f":"ROUND(K1075-T1075-U1075,0)","v":0},{"$f":"ROUND(L1075-W1075-X1075-Y1075-Z1075-AA1075,0)","v":0}]
[1076,null,null,"SG",403,"SG","ACCT403OPSG",{"$f":"'JAM Download'!E1011","v":0},"P",{"$f":"VLOOKUP($I1076,Func,2)*$H1076","v":0},{"$f":"VLOOKUP($I1076,Func,3)*$H1076","v":0},{"$f":"VLOOKUP($I1076,Func,5)*$H1076","v":0},{"$f":"VLOOKUP($I1076,Func,6)*$H1076","v":0},{"$f":"VLOOKUP($I1076,Func,7)*$H1076","v":0},null,{"$f":"Demand","v":0.38},{"$f":"+$J1076*$P1076","v":0},{"$f":"+$J1076*(1-$P1076)","v":0},null,{"$f":"+$K1076*$S1076","v":0},{"$f":"+$K1076*(1-$S1076)","v":0},null,null,null,null,null,null,null,"UACCT403OPSG",0,0,0,0]
[1077,null,null,"CAEW",403,"CAEW","ACCT403OPCAEW",0,"P",{"$f":"VLOOKUP($I1077,Func,2)*$H1077","v":0},{"$f":"VLOOKUP($I1077,Func,3)*$H1077","v":0},{"$f":"VLOOKUP($I1077,Func,5)*$H1077","v":0},{"$f":"VLOOKUP($I1077,Func,6)*$H1077","v":0},{"$f":"VLOOKUP($I1077,Func,7)*$H1077","v":0},null,{"$f":"Demand","v":0.38},{"$f":"+$J1077*$P1077","v":0},{"$f":"+$J1077*(1-$P1077)","v":0},null,{"$f":"+$K1077*$S1077","v":0},{"$f":"+$K1077*(1-$S1077)","v":0},null,null,null,null,null,null,null,"UACCT403OPCAEW",0,0,0,0]
[1078,null,null,"CAGW",403,"CAGW","ACCT403OPCAGW",{"$f":"'JAM Download'!E1012+'JAM Download'!E1013+'JAM Download'!E1014+'JAM Download'!E1015","v":9179801.7903933171},"P",{"$f":"VLOOKUP($I1078,Func,2)*$H1078","v":9179801.7903933171},{"$f":"VLOOKUP($I1078,Func,3)*$H1078","v":0},{"$f":"VLOOKUP($I1078,Func,5)*$H1078","v":0},{"$f":"VLOOKUP($I1078,Func,6)*$H1078","v":0},{"$f":"VLOOKUP($I1078,Func,7)*$H1078","v":0},null,{"$f":"Demand","v":0.38},{"$f":"+$J1078*$P1078","v":3488324.6803494603},{"$f":"+$J1078*(1-$P1078)","v":5691477.1100438563},null,{"$f":"+$K1078*$S1078","v":0},{"$f":"+$K1078*(1-$S1078)","v":0},null,null,null,null,null,null,null,"UACCT403OPCAGE",0,0,0,0]
[1079,null,null,"CAGE",403,"CAGE","ACCT403OPCAGE",0,"P",{"$f":"VLOOKUP($I1079,Func,2)*$H1079","v":0},{"$f":"VLOOKUP($I1079,Func,3)*$H1079","v":0},{"$f":"VLOOKUP($I1079,Func,5)*$H1079","v":0},{"$f":"VLOOKUP($I1079,Func,6)*$H1079","v":0},{"$f":"VLOOKUP($I1079,Func,7)*$H1079","v":0},null,{"$f":"Demand","v":0.38},{"$f":"+$J1079*$P1079","v":0},{"$f":"+$J1079*(1-$P1079)","v":0},null,{"$f":"+$K1079*$S1079","v":0},{"$f":"+$K1079*(1-$S1079)","v":0},null,null,null,null,null,null,null,"UACCT403opSSGCH",0,0,0,0]
[1080,null,null,null,null,null,"ACCT403OP",{"$f":"'JAM Download'!E1016","v":9179801.7903933171},null,{"$f":"SUM(J1075:J1079)","v":9179801.7903933171},{"$f":"SUM(K1075:K1079)","v":0},{"$f":"SUM(L1075:L1079)","v":0},{"$f":"SUM(M1075:M1079)","v":0},{"$f":"SUM(N1075:N1079)","v":0},null,null,{"$f":"SUM(Q1075:Q1079)","v":3488324.6803494603},{"$f":"SUM(R1075:R1079)","v":5691477.1100438563},null,{"$f":"SUM(T1075:T1079)","v":0},{"$f":"SUM(U1075:U1079)","v":0},null,{"$f":"SUM(W1075:W1076)","v":0},{"$f":"SUM(X1075:X1076)","v":0},{"$f":"SUM(Y1075:Y1076)","v":0},{"$f":"SUM(Z1075:Z1076)","v":0},{"$f":"SUM(AA1075:AA1076)","v":0},0,"UACCT403OP",0,0,0,0]
[1081]
[1082,"403TP","Transmission Depreciation"]
[1083,null,null,"DGP",403,"DGP","ACCT403TPSGP",{"$f":"'JAM Download'!E1019","v":0},"T",{"$f":"VLOOKUP($I1083,Func,2)*$H1083","v":0},{"$f":"VLOOKUP($I1083,Func,3)*$H1083","v":0},{"$f":"VLOOKUP($I1083,Func,5)*$H1083","v":0},{"$f":"VLOOKUP($I1083,Func,6)*$H1083","v":0},{"$f":"VLOOKUP($I1083,Func,7)*$H1083","v":0},null,null,{"$f":"+$J1083*$P1083","v":0},{"$f":"+$J1083*(1-$P1083)","v":0},{"$f":"Demand","v":0.38},{"$f":"+$K1083*$S1083","v":0},{"$f":"+$K1083*(1-$S1083)","v":0},null,null,null,null,null,null,null,"UACCT403TPDGP",{"$f":"ROUND(SUM(-H1083,J1083:N1083),0)","v":0},{"$f":"ROUND(J1083-Q1083-R1083,0)","v":0},{"$f":"ROUND(K1083-T1083-U1083,0)","v":0},{"$f":"ROUND(L1083-W1083-X1083-Y1083-Z1083-AA1083,0)","v":0}]
[1084,null,null,"DGU",403,"DGU","ACCT403TPSGU",{"$f":"'JAM Download'!E1020","v":0},"T",{"$f":"VLOOKUP($I1084,Func,2)*$H1084","v":0},{"$f":"VLOOKUP($I1084,Func,3)*$H1084","v":0},{"$f":"VLOOKUP($I1084,Func,5)*$H1084","v":0},{"$f":"VLOOKUP($I1084,Func,6)*$H1084","v":0},{"$f":"VLOOKUP($I1084,Func,7)*$H1084","v":0},null,null,{"$f":"+$J1084*$P1084","v":0},{"$f":"+$J1084*(1-$P1084)","v":0},{"$f":"Demand","v":0.38},{"$f":"+$K1084*$S1084","v":0},{"$f":"+$K1084*(1-$S1084)","v":0},null,null,null,null,null,null,null,"UACCT403TPDGU",{"$f":"ROUND(SUM(-H1084,J1084:N1084),0)","v":0},{"$f":"ROUND(J1084-Q1084-R1084,0)","v":0},{"$f":"ROUND(K1084-T1084-U1084,0)","v":0},{"$f":"ROUND(L1084-W1084-X1084-Y1084-Z1084-AA1084,0)","v":0}]
[{"$f":"A1084+1","v":1085},null,null,"JBG",403,"JBG","ACCT403TPJBG",{"$f":"'JAM Download'!E1023","v":183295.47684185681},"T",{"$f":"VLOOKUP($I1085,Func,2)*$H1085","v":0},{"$f":"VLOOKUP($I1085,Func,3)*$H1085","v":183295.47684185681},{"$f":"VLOOKUP($I1085,Func,5)*$H1085","v":0},{"$f":"VLOOKUP($I1085,Func,6)*$H1085","v":0},{"$f":"VLOOKUP($I1085,Func,7)*$H1085","v":0},null,null,{"$f":"+$J1085*$P1085","v":0},{"$f":"+$J1085*(1-$P1085)","v":0},{"$f":"Demand","v":0.38},{"$f":"+$K1085*$S1085","v":69652.281199905585},{"$f":"+$K1085*(1-$S1085)","v":113643.19564195123},null,null,null,null,null,null,null,"UACCT403TPJBG",{"$f":"ROUND(SUM(-H1085,J1085:N1085),0)","v":0},{"$f":"ROUND(J1085-Q1085-R1085,0)","v":0},{"$f":"ROUND(K1085-T1085-U1085,0)","v":0},{"$f":"ROUND(L1085-W1085-X1085-Y1085-Z1085-AA1085,0)","v":0}]
[1086,null,null,"SG/CAGW",403,"SG","ACCT403TPSG",{"$f":"'JAM Download'!E1021+'JAM Download'!E1022+'JAM Download'!E1024","v":4840765.6153789535},"T",{"$f":"VLOOKUP($I1086,Func,2)*$H1086","v":0},{"$f":"VLOOKUP($I1086,Func,3)*$H1086","v":4840765.6153789535},{"$f":"VLOOKUP($I1086,Func,5)*$H1086","v":0},{"$f":"VLOOKUP($I1086,Func,6)*$H1086","v":0},{"$f":"VLOOKUP($I1086,Func,7)*$H1086","v":0},null,null,{"$f":"+$J1086*$P1086","v":0},{"$f":"+$J1086*(1-$P1086)","v":0},{"$f":"Demand","v":0.38},{"$f":"+$K1086*$S1086","v":1839490.9338440024},{"$f":"+$K1086*(1-$S1086)","v":3001274.6815349511},null,null,null,null,null,null,null,"UACCT403TPDGU",{"$f":"ROUND(SUM(-H1086,J1086:N1086),0)","v":0},{"$f":"ROUND(J1086-Q1086-R1086,0)","v":0},{"$f":"ROUND(K1086-T1086-U1086,0)","v":0},{"$f":"ROUND(L1086-W1086-X1086-Y1086-Z1086-AA1086,0)","v":0}]
[1087,null,null,null,null,null,"ACCT403TP",{"$f":"'JAM Download'!E1025","v":5024061.0922208102},null,{"$f":"SUM(J1083:J1086)","v":0},{"$f":"SUM(K1083:K1086)","v":5024061.0922208102},{"$f":"SUM(L1083:L1086)","v":0},{"$f":"SUM(M1083:M1086)","v":0},{"$f":"SUM(N1083:N1086)","v":0},null,null,{"$f":"SUM(Q1083:Q1086)","v":0},{"$f":"SUM(R1083:R1086)","v":0},null,{"$f":"SUM(T1083:T1086)","v":1909143.215043908},{"$f":"SUM(U1083:U1086)","v":3114917.8771769023},null,{"$f":"SUM(W1083:W1086)","v":0},{"$f":"SUM(X1083:X1086)","v":0},{"$f":"SUM(Y1083:Y1086)","v":0},{"$f":"SUM(Z1083:Z1086)","v":0},{"$f":"SUM(AA1083:AA1086)","v":0},0,"UACCT403TP",{"$f":"ROUND(SUM(-H1087,J1087:N1087),0)","v":0},{"$f":"ROUND(J1087-Q1087-R1087,0)","v":0},{"$f":"ROUND(K1087-T1087-U1087,0)","v":0},{"$f":"ROUND(L1087-W1087-X1087-Y1087-Z1087-AA1087,0)","v":0}]
[1088]
[1089,403,"Distribution Depreciation"]
[1090,null,null,"Land & Land Rights",403,"S","ACCT403360",{"$f":"'JAM Download'!E1030","v":4664.91},"DPW",{"$f":"VLOOKUP($I1090,Func,2)*$H1090","v":0},{"$f":"VLOOKUP($I1090,Func,3)*$H1090","v":0},{"$f":"VLOOKUP($I1090,Func,5)*$H1090","v":4664.91},{"$f":"VLOOKUP($I1090,Func,6)*$H1090","v":0},{"$f":"VLOOKUP($I1090,Func,7)*$H1090","v":0},null,null,{"$f":"+$J1090*$P1090","v":0},{"$f":"+$J1090*(1-$P1090)","v":0},null,{"$f":"+$K1090*$S1090","v":0},{"$f":"+$K1090*(1-$S1090)","v":0},"PLNT2",{"$f":"+$L1090*VLOOKUP($V1090,DisFac,2)","v":915.31448630671014},{"$f":"+$L1090*VLOOKUP($V1090,DisFac,3)","v":3749.5955136932898},{"$f":"+$L1090*VLOOKUP($V1090,DisFac,4)","v":0},{"$f":"+$L1090*VLOOKUP($V1090,DisFac,5)","v":0},{"$f":"+$L1090*VLOOKUP($V1090,DisFac,6)","v":0},0,"UACCT403360",{"$f":"ROUND(SUM(-H1090,J1090:N1090),0)","v":0},{"$f":"ROUND(J1090-Q1090-R1090,0)","v":0},{"$f":"ROUND(K1090-T1090-U1090,0)","v":0},{"$f":"ROUND(L1090-W1090-X1090-Y1090-Z1090-AA1090,0)","v":0}]
[1091,null,null,"Structures",403,"S","ACCT403361",{"$f":"'JAM Download'!E1031","v":39557.75},"DPW",0,0,39557.75,0,0,null,null,0,0,null,0,0,"PLNT2",7761.7320850132728,31796.017914986729,0,0,0,0,"UACCT403361",0,0,0,0]
[1092,null,null,"Station Equipment",403,"S","ACCT403362",{"$f":"'JAM Download'!E1032","v":1032646.87},"DPW",0,0,1032646.87,0,0,null,null,0,0,null,0,0,"SUBS",1032646.87,0,0,0,0,0,"UACCT403362",0,0,0,0]
[1093,null,null,"Storage Battery Equipment",403,"S","ACCT403363",{"$f":"'JAM Download'!E1033","v":0},"DPW",0,0,0,0,0,null,null,0,0,null,0,0,"PLNT2",0,0,0,0,0,0,"UACCT403363",0,0,0,0]
[1094,null,null,"Poles & Towers",403,"S","ACCT403364",{"$f":"'JAM Download'!E1034","v":2500805.4182108361},"DPW",0,0,2500805.4182108361,0,0,null,null,0,0,null,0,0,"PC",0,2500805.4182108361,0,0,0,0,"UACCT403364",0,0,0,0]
[1095,null,null,"OH Conductors",403,"S","ACCT403365",{"$f":"'JAM Download'!E1035","v":1713557.51},"DPW",0,0,1713557.51,0,0,null,null,0,0,null,0,0,"PC",0,1713557.51,0,0,0,0,"UACCT403365",0,0,0,0]
[1096,null,null,"UG Conduit",403,"S","ACCT403366",{"$f":"'JAM Download'!E1036","v":709250.08},"DPW",0,0,709250.08,0,0,null,null,0,0,null,0,0,"PC",0,709250.08,0,0,0,0,"UACCT403366",0,0,0,0]
[1097,null,null,"UG Conductor",403,"S","ACCT403367",{"$f":"'JAM Download'!E1037","v":653549.86},"DPW",0,0,653549.86,0,0,null,null,0,0,null,0,0,"PC",0,653549.86,0,0,0,0,"UACCT403367",0,0,0,0]
[1098,null,null,"Line Trans",403,"S","ACCT403368",{"$f":"'JAM Download'!E1038","v":2843151.39},"DPW",0,0,2843151.39,0,0,null,null,0,0,null,0,0,"XFMR",0,0,2843151.39,0,0,0,"UACCT403368",0,0,0,0]
[1099,null,null,"Services",403,"S","ACCT403369",{"$f":"'JAM Download'!E1039","v":1270803.1499999999},"DPW",0,0,1270803.1499999999,0,0,null,null,0,0,null,0,0,"SERV",0,0,0,0,1270803.1499999999,0,"UACCT403369",0,0,0,0]
[1100,null,null,"Meters",403,"S","ACCT403370",{"$f":"'JAM Download'!E1040","v":445097.37},"DPW",0,0,445097.37,0,0,null,null,0,0,null,0,0,"METR",0,0,0,445097.37,0,445097.37,"UACCT403370",0,0,0,0]
[1101,null,null,"Inst Cust Prem",403,"S","ACCT403371",{"$f":"'JAM Download'!E1041","v":19245.82},"DPW",0,0,19245.82,0,0,null,null,0,0,null,0,0,"PC",0,19245.82,0,0,0,0,"UACCT403371",0,0,0,0]
[1102,null,null,"Leased Property",403,"S","ACCT403372",{"$f":"'JAM Download'!E1042","v":0},"DPW",0,0,0,0,0,null,null,0,0,null,0,0,"PLNT2",0,0,0,0,0,0,"UACCT403372",0,0,0,0]
[1103,null,null,"Street Lighting",403,"S","ACCT403373",{"$f":"'JAM Download'!E1043","v":126255.92},"DPW",0,0,126255.92,0,0,null,null,0,0,null,0,0,"PC",0,126255.92,0,0,0,0,"UACCT403373",0,0,0,0]
[1104,null,null,null,null,null,"ACCT403DP",{"$f":"'JAM Download'!E1044","v":11358586.048210837},null,{"$f":"SUM(J1090:J1103)","v":0},{"$f":"SUM(K1090:K1103)","v":0},{"$f":"SUM(L1090:L1103)","v":11358586.048210837},{"$f":"SUM(M1090:M1103)","v":0},{"$f":"SUM(N1090:N1103)","v":0},null,null,{"$f":"SUM(Q1090:Q1103)","v":0},{"$f":"SUM(R1090:R1103)","v":0},null,{"$f":"SUM(T1090:T1103)","v":0},{"$f":"SUM(U1090:U1103)","v":0},null,{"$f":"SUM(W1090:W1103)","v":1041323.91657132},{"$f":"SUM(X1090:X1103)","v":5758210.2216395168},{"$f":"SUM(Y1090:Y1103)","v":2843151.39},{"$f":"SUM(Z1090:Z1103)","v":445097.37},{"$f":"SUM(AA1090:AA1103)","v":1270803.1499999999},445097.37,"UACCT403DP",0,0,0,0]
[1105]
[1106,"403GP","General Depreciation"]
[1107,null,null,"S",403,"S","ACCT403GPS",{"$f":"+'JAM Download'!E1047","v":1154296.2929924203},"G-SITUS",{"$f":"VLOOKUP($I1107,Func,2)*$H1107","v":0},{"$f":"VLOOKUP($I1107,Func,3)*$H1107","v":293205.43952319724},{"$f":"VLOOKUP($I1107,Func,5)*$H1107","v":861090.85346922302},{"$f":"VLOOKUP($I1107,Func,6)*$H1107","v":0},{"$f":"VLOOKUP($I1107,Func,7)*$H1107","v":0},null,{"$f":"Demand","v":0.38},{"$f":"+$J1107*$P1107","v":0},{"$f":"+$J1107*(1-$P1107)","v":0},{"$f":"Demand","v":0.38},{"$f":"+$K1107*$S1107","v":111418.06701881495},{"$f":"+$K1107*(1-$S1107)","v":181787.37250438228},"PLNT",{"$f":"+$L1107*VLOOKUP($V1107,DisFac,2)","v":101160.58958426813},{"$f":"+$L1107*VLOOKUP($V1107,DisFac,3)","v":414405.42954614351},{"$f":"+$L1107*VLOOKUP($V1107,DisFac,4)","v":210156.20439573503},{"$f":"+$L1107*VLOOKUP($V1107,DisFac,5)","v":24341.916551153008},{"$f":"+$L1107*VLOOKUP($V1107,DisFac,6)","v":111026.7133919233},24341.916551153008,"UACCT403GPS",{"$f":"ROUND(SUM(-H1107,J1107:N1107),0)","v":0},{"$f":"ROUND(J1107-Q1107-R1107,0)","v":0},{"$f":"ROUND(K1107-T1107-U1107,0)","v":0},{"$f":"ROUND(L1107-W1107-X1107-Y1107-Z1107-AA1107,0)","v":0}]
[1108,null,null,"DGP",403,"DGP","ACCT403GPSGP",{"$f":"'JAM Download'!E1048","v":0},"G-DGP",0,0,0,0,0,null,0.38,0,0,0.38,0,0,"PLNT",0,0,0,0,0,0,"UACCT403GPDGP",0,0,0,0]
[1109,null,null,"DGU",403,"DGU","ACCT403GPSGU",{"$f":"'JAM Download'!E1049","v":0},"G-DGU",0,0,0,0,0,null,0.38,0,0,0.38,0,0,"PLNT",0,0,0,0,0,0,"UACCT403GPDGU",0,0,0,0]
[1110,null,null,"SE",403,"SE","ACCT403GPSE",{"$f":"'JAM Download'!E1050","v":0},"P",0,0,0,0,0,null,0.38,0,0,0.38,0,0,"PLNT",0,0,0,0,0,0,"UACCT403GPSE",0,0,0,0]
[1111,null,null,"CN",403,"CN","ACCT403GPCN",{"$f":"'JAM Download'!E1051","v":120344.21412182611},"CUST",0,0,0,120344.21412182611,0,null,0.38,0,0,0.38,0,0,"CUST",0,0,0,0,0,0,"UACCT403GPCN",0,0,0,0]
[1112,null,null,"SG/CAGW/CAGE",403,"SG","ACCT403GPSG",{"$f":"'JAM Download'!E1052+'JAM Download'!E1054","v":359026.65061699529},"G-SG",358661.21875796025,365.43185903508243,0,0,0,null,0.38,136291.2631280249,222369.95562993534,0.38,138.86410643333133,226.5677526017511,"PLNT",0,0,0,0,0,0,"UACCT403GPSG",0,0,0,0]
[1113,null,null,"SO",403,"SO","ACCT403GPSO",{"$f":"'JAM Download'!E1053","v":1008697.1826590333},"PTD",513343.42921405722,198661.22273674107,296692.53070823505,0,0,null,0.38,195070.50310134175,318272.9261127155,0.38,75491.264639961606,123169.95809677946,"PLNT",34855.31313074896,142785.16039965465,72410.217661702642,8387.1112958098438,38254.728220318953,8387.1112958098438,"UACCT403GPSO",0,0,0,0]
[1114,null,null,"CAEW",403,"CAEW","ACCT403CAEW",{"$f":"+'JAM Download'!E1058","v":0},"P",0,0,0,0,0,null,0.38,0,0,0.38,0,0,"PLNT",0,0,0,0,0,0,"UACCT403GPCAEW",0,0,0,0]
[1115,null,null,"JBG",403,"JBG","ACCT403GPJBG",{"$f":"'JAM Download'!E1056","v":63334.969196444858},"G-SG",63270.504300884568,64.464895560293328,0,0,0,null,0.38,24042.791634336136,39227.712666548432,0.38,24.496660312911466,39.968235247381863,"PLNT",0,0,0,0,0,0,"UACCT403GPJBG",0,0,0,0]
[1116,null,null,"JBE",403,"JBE","ACCT403GPJBE",{"$f":"'JAM Download'!E1057","v":230.47406133172814},"P",230.47406133172814,0,0,0,0,null,0.38,87.580143306056698,142.89391802567144,0.38,0,0,"PLNT",0,0,0,0,0,0,"UACCT403JBE",0,0,0,0]
[1117,null,null,null,null,null,"ACCT403GP",{"$f":"'JAM Download'!E1061","v":2705929.7836480518},null,{"$f":"SUM(J1107:J1116)","v":935505.62633423379},{"$f":"SUM(K1107:K1116)","v":492296.5590145337},{"$f":"SUM(L1107:L1116)","v":1157783.384177458},{"$f":"SUM(M1107:M1116)","v":120344.21412182611},{"$f":"SUM(N1107:N1116)","v":0},null,null,{"$f":"SUM(Q1107:Q1116)","v":355492.13800700882},{"$f":"SUM(R1107:R1116)","v":580013.48832722497},null,{"$f":"SUM(T1107:T1116)","v":187072.69242552281},{"$f":"SUM(U1107:U1116)","v":305223.86658901087},null,{"$f":"SUM(W1107:W1116)","v":136015.90271501709},{"$f":"SUM(X1107:X1116)","v":557190.58994579816},{"$f":"SUM(Y1107:Y1116)","v":282566.42205743765},{"$f":"SUM(Z1107:Z1116)","v":32729.027846962854},{"$f":"SUM(AA1107:AA1116)","v":149281.44161224226},32729.027846962854,"UACCT403GP",0,0,0,0]
[1118]
[1119,"403GV0","General Vehicles"]
[1120,null,null,"SG",403,"SG","ACCT403GV0SG",{"$f":"'JAM Download'!E1064","v":0},"G-SG",{"$f":"VLOOKUP($I1120,Func,2)*$H1120","v":0},{"$f":"VLOOKUP($I1120,Func,3)*$H1120","v":0},{"$f":"VLOOKUP($I1120,Func,5)*$H1120","v":0},{"$f":"VLOOKUP($I1120,Func,6)*$H1120","v":0},{"$f":"VLOOKUP($I1120,Func,7)*$H1120","v":0},null,{"$f":"Demand","v":0.38},{"$f":"+$J1120*$P1120","v":0},{"$f":"+$J1120*(1-$P1120)","v":0},null,{"$f":"+$K1120*$S1120","v":0},{"$f":"+$K1120*(1-$S1120)","v":0},null,null,null,null,null,null,null,"UACCT403GV0SGP",{"$f":"ROUND(SUM(-H1120,J1120:N1120),0)","v":0},{"$f":"ROUND(J1120-Q1120-R1120,0)","v":0},{"$f":"ROUND(K1120-T1120-U1120,0)","v":0},{"$f":"ROUND(L1120-W1120-X1120-Y1120-Z1120-AA1120,0)","v":0}]
[1121,null,null,null,null,null,"ACCT403GV0",{"$f":"'JAM Download'!E1065","v":0},null,{"$f":"SUM(J1120:J1120)","v":0},{"$f":"SUM(K1120:K1120)","v":0},{"$f":"SUM(L1120:L1120)","v":0},{"$f":"SUM(M1120:M1120)","v":0},{"$f":"SUM(N1120:N1120)","v":0},null,null,{"$f":"SUM(Q1120:Q1120)","v":0},{"$f":"SUM(R1120:R1120)","v":0},null,{"$f":"SUM(T1120:T1120)","v":0},{"$f":"SUM(U1120:U1120)","v":0},null,{"$f":"SUM(W1120:W1120)","v":0},{"$f":"SUM(X1120:X1120)","v":0},{"$f":"SUM(Y1120:Y1120)","v":0},{"$f":"SUM(Z1120:Z1120)","v":0},{"$f":"SUM(AA1120:AA1120)","v":0},0,"UACCT403GV0",{"$f":"ROUND(SUM(-H1121,J1121:N1121),0)","v":0},{"$f":"ROUND(J1121-Q1121-R1121,0)","v":0},{"$f":"ROUND(K1121-T1121-U1121,0)","v":0},{"$f":"ROUND(L1121-W1121-X1121-Y1121-Z1121-AA1121,0)","v":0}]
[1122]
[1123,"403MP","Mining Depreciation"]
[1124,null,null,"SE",403,"CAEE","ACCT403MPSE",{"$f":"'JAM Download'!E1068","v":0},"P",{"$f":"VLOOKUP($I1124,Func,2)*$H1124","v":0},{"$f":"VLOOKUP($I1124,Func,3)*$H1124","v":0},{"$f":"VLOOKUP($I1124,Func,5)*$H1124","v":0},{"$f":"VLOOKUP($I1124,Func,6)*$H1124","v":0},{"$f":"VLOOKUP($I1124,Func,7)*$H1124","v":0},null,{"$f":"Demand","v":0.38},{"$f":"+$J1124*$P1124","v":0},{"$f":"+$J1124*(1-$P1124)","v":0},null,{"$f":"+$K1124*$S1124","v":0},{"$f":"+$K1124*(1-$S1124)","v":0},null,null,null,null,null,null,null,"UACCT403MPSEU",{"$f":"ROUND(SUM(-H1124,J1124:N1124),0)","v":0},{"$f":"ROUND(J1124-Q1124-R1124,0)","v":0},{"$f":"ROUND(K1124-T1124-U1124,0)","v":0},{"$f":"ROUND(L1124-W1124-X1124-Y1124-Z1124-AA1124,0)","v":0}]
[1125,null,null,null,null,null,"ACCT403MP",{"$f":"'JAM Download'!E1069","v":0},null,{"$f":"SUM(J1124)","v":0},{"$f":"SUM(K1124)","v":0},{"$f":"SUM(L1124)","v":0},{"$f":"SUM(M1124)","v":0},{"$f":"SUM(N1124)","v":0},null,null,{"$f":"SUM(Q1124)","v":0},{"$f":"SUM(R1124)","v":0},null,{"$f":"SUM(T1124)","v":0},{"$f":"SUM(U1124)","v":0},null,{"$f":"SUM(W1124)","v":0},{"$f":"SUM(X1124)","v":0},{"$f":"SUM(Y1124)","v":0},{"$f":"SUM(Z1124)","v":0},{"$f":"SUM(AA1124)","v":0},0,"UACCT403MP",{"$f":"ROUND(SUM(-H1125,J1125:N1125),0)","v":0},{"$f":"ROUND(J1125-Q1125-R1125,0)","v":0},{"$f":"ROUND(K1125-T1125-U1125,0)","v":0},{"$f":"ROUND(L1125-W1125-X1125-Y1125-Z1125-AA1125,0)","v":0}]
[1126]
[1127,"403EP","Experimental Plant Depreciation"]
[1128,null,null,"DGP",403,"DGP","ACCT403EPSG",{"$f":"'JAM Download'!E1072","v":0},"P",{"$f":"VLOOKUP($I1128,Func,2)*$H1128","v":0},{"$f":"VLOOKUP($I1128,Func,3)*$H1128","v":0},{"$f":"VLOOKUP($I1128,Func,5)*$H1128","v":0},{"$f":"VLOOKUP($I1128,Func,6)*$H1128","v":0},{"$f":"VLOOKUP($I1128,Func,7)*$H1128","v":0},null,{"$f":"Demand","v":0.38},{"$f":"+$J1128*$P1128","v":0},{"$f":"+$J1128*(1-$P1128)","v":0},null,{"$f":"+$K1128*$S1128","v":0},{"$f":"+$K1128*(1-$S1128)","v":0},null,null,null,null,null,null,null,"UACCT403EPSGP",{"$f":"ROUND(SUM(-H1128,J1128:N1128),0)","v":0},{"$f":"ROUND(J1128-Q1128-R1128,0)","v":0},{"$f":"ROUND(K1128-T1128-U1128,0)","v":0},{"$f":"ROUND(L1128-W1128-X1128-Y1128-Z1128-AA1128,0)","v":0}]
[1129,null,null,"SG",403,"SG","ACCT403EPSG",{"$f":"'JAM Download'!E1073","v":0},"P",{"$f":"VLOOKUP($I1129,Func,2)*$H1129","v":0},{"$f":"VLOOKUP($I1129,Func,3)*$H1129","v":0},{"$f":"VLOOKUP($I1129,Func,5)*$H1129","v":0},{"$f":"VLOOKUP($I1129,Func,6)*$H1129","v":0},{"$f":"VLOOKUP($I1129,Func,7)*$H1129","v":0},null,{"$f":"Demand","v":0.38},{"$f":"+$J1129*$P1129","v":0},{"$f":"+$J1129*(1-$P1129)","v":0},null,{"$f":"+$K1129*$S1129","v":0},{"$f":"+$K1129*(1-$S1129)","v":0},null,null,null,null,null,null,null,"UACCT403EPSG",{"$f":"ROUND(SUM(-H1129,J1129:N1129),0)","v":0},{"$f":"ROUND(J1129-Q1129-R1129,0)","v":0},{"$f":"ROUND(K1129-T1129-U1129,0)","v":0},{"$f":"ROUND(L1129-W1129-X1129-Y1129-Z1129-AA1129,0)","v":0}]
[1130,null,null,null,null,null,"ACCT403EP",{"$f":"'JAM Download'!E1074","v":0},null,{"$f":"SUM(J1128:J1129)","v":0},{"$f":"SUM(K1128:K1129)","v":0},{"$f":"SUM(L1128:L1129)","v":0},{"$f":"SUM(M1128:M1129)","v":0},{"$f":"SUM(N1128:N1129)","v":0},null,null,{"$f":"SUM(Q1128:Q1129)","v":0},{"$f":"SUM(R1128:R1129)","v":0},null,{"$f":"SUM(T1128:T1129)","v":0},{"$f":"SUM(U1128:U1129)","v":0},null,{"$f":"SUM(W1128:W1129)","v":0},{"$f":"SUM(X1128:X1129)","v":0},{"$f":"SUM(Y1128:Y1129)","v":0},{"$f":"SUM(Z1128:Z1129)","v":0},{"$f":"SUM(AA1128:AA1129)","v":0},0,"UACCT403EP",{"$f":"ROUND(SUM(-H1130,J1130:N1130),0)","v":0},{"$f":"ROUND(J1130-Q1130-R1130,0)","v":0},{"$f":"ROUND(K1130-T1130-U1130,0)","v":0},{"$f":"ROUND(L1130-W1130-X1130-Y1130-Z1130-AA1130,0)","v":0}]
[1131]
[1132,"TOTAL DEPRECIATION EXPENSE",null,null,null,null,null,{"$f":"'JAM Download'!E1080","v":41310105.544159755},null,{"$f":"+J1117+J1104+J1087+J1080+J1072+J1065+J1061+J1130+J1125+J1121","v":23157034.246414285},{"$f":"+K1117+K1104+K1087+K1080+K1072+K1065+K1061+K1130+K1125+K1121","v":5516357.6512353439},{"$f":"+L1117+L1104+L1087+L1080+L1072+L1065+L1061+L1130+L1125+L1121","v":12516369.432388294},{"$f":"+M1117+M1104+M1087+M1080+M1072+M1065+M1061+M1130+M1125+M1121","v":120344.21412182611},{"$f":"+N1117+N1104+N1087+N1080+N1072+N1065+N1061+N1130+N1125+N1121","v":0},null,null,{"$f":"+Q1117+Q1104+Q1087+Q1080+Q1072+Q1065+Q1061+Q1130+Q1125+Q1121","v":8799673.0136374291},{"$f":"+R1117+R1104+R1087+R1080+R1072+R1065+R1061+R1130+R1125+R1121","v":14357361.232776858},{"$f":"+S1117+S1104+S1087+S1080+S1072+S1065+S1061+S1130+S1125+S1121","v":0},{"$f":"+T1117+T1104+T1087+T1080+T1072+T1065+T1061+T1130+T1125+T1121","v":2096215.9074694307},{"$f":"+U1117+U1104+U1087+U1080+U1072+U1065+U1061+U1130+U1125+U1121","v":3420141.743765913},null,{"$f":"+W1117+W1104+W1087+W1080+W1072+W1065+W1061+W1130+W1125+W1121","v":1177339.8192863371},{"$f":"+X1117+X1104+X1087+X1080+X1072+X1065+X1061+X1130+X1125+X1121","v":6315400.8115853146},{"$f":"+Y1117+Y1104+Y1087+Y1080+Y1072+Y1065+Y1061+Y1130+Y1125+Y1121","v":3125717.8120574378},{"$f":"+Z1117+Z1104+Z1087+Z1080+Z1072+Z1065+Z1061+Z1130+Z1125+Z1121","v":477826.39784696285},{"$f":"+AA1117+AA1104+AA1087+AA1080+AA1072+AA1065+AA1061+AA1130+AA1125+AA1121","v":1420084.5916122422},477826.39784696285,null,{"$f":"ROUND(SUM(-H1132,J1132:N1132),0)","v":0},{"$f":"ROUND(J1132-Q1132-R1132,0)","v":0},{"$f":"ROUND(K1132-T1132-U1132,0)","v":0},{"$f":"ROUND(L1132-W1132-X1132-Y1132-Z1132-AA1132,0)","v":0}]
[1133]
[1134]
[1135,"FERC",null,"DESCRIPTION &","FERC",null,"RANGE",{"$f":"+$H$250","v":"Jurisdictional"},"FUNC","GEN","TRN","DIS","RETAIL","MISC",null,"D / E","GEN","GEN","D / E","TRN","TRN","DIS","DIS","DIS","DIS","DIS","DIS","DIS","Unbundled ACCT:","Function","Generation","Transmission","Distribution"]
[1136,"ACCT",null,"CONSENSUS FACTOR","ACCT","FACTOR","NAME","ADJ Total","FACTOR","TOTAL","TOTAL","TOTAL","TOTAL","TOTAL",null,"SPLIT","DEMAND","ENERGY","SPLIT","DEMAND","ENERGY","SPLIT","SUBS","P & C","XFMR","METER","SERVICE","METER","TOTAL","Check","Check","Check","Check"]
[1137]
[1138,"404GP","Amort of LT Plant - Capital Lease Gen"]
[1139,null,null,"S",404,"S","ACCT404GPS",{"$f":"'JAM Download'!E1099","v":203429.32},"I-SITUS",{"$f":"VLOOKUP($I1139,Func,2)*$H1139","v":5130.3389650790123},{"$f":"VLOOKUP($I1139,Func,3)*$H1139","v":93269.260937571249},{"$f":"VLOOKUP($I1139,Func,5)*$H1139","v":105029.72009734975},{"$f":"VLOOKUP($I1139,Func,6)*$H1139","v":0},{"$f":"VLOOKUP($I1139,Func,7)*$H1139","v":0},null,{"$f":"Demand","v":0.38},{"$f":"+$J1139*$P1139","v":1949.5288067300246},{"$f":"+$J1139*(1-$P1139)","v":3180.8101583489874},{"$f":"Demand","v":0.38},{"$f":"+$K1139*$S1139","v":35442.319156277073},{"$f":"+$K1139*(1-$S1139)","v":57826.941781294176},"PLNT",{"$f":"+$L1139*VLOOKUP($V1139,DisFac,2)","v":12338.847133391726},{"$f":"+$L1139*VLOOKUP($V1139,DisFac,3)","v":50546.218319120846},{"$f":"+$L1139*VLOOKUP($V1139,DisFac,4)","v":25633.354756327568},{"$f":"+$L1139*VLOOKUP($V1139,DisFac,5)","v":2969.0533486685376},{"$f":"+$L1139*VLOOKUP($V1139,DisFac,6)","v":13542.246539841068},2969.0533486685376,"UACCT404GPS",{"$f":"ROUND(SUM(-H1139,J1139:N1139),0)","v":0},{"$f":"ROUND(J1139-Q1139-R1139,0)","v":0},{"$f":"ROUND(K1139-T1139-U1139,0)","v":0},{"$f":"ROUND(L1139-W1139-X1139-Y1139-Z1139-AA1139,0)","v":0}]
[1140,null,null,"SG/CAGW",404,"SG","ACCT404GPSG",{"$f":"'JAM Download'!E1100+'JAM Download'!E1104+'JAM Download'!E1105","v":0},"I-SG",0,0,0,0,0,null,0.38,0,0,0.38,0,0,"PLNT",0,0,0,0,0,0,"UACCT404GPSG",{"$f":"ROUND(SUM(-H1140,J1140:N1140),0)","v":0},{"$f":"ROUND(J1140-Q1140-R1140,0)","v":0},{"$f":"ROUND(K1140-T1140-U1140,0)","v":0},{"$f":"ROUND(L1140-W1140-X1140-Y1140-Z1140-AA1140,0)","v":0}]
[1141,null,null,"SO",404,"SO","ACCT404GPSO",{"$f":"'JAM Download'!E1101","v":87010.386173313658},"PTD",44281.089293521502,17136.550002469387,25592.74687732277,0,0,null,0.38,16826.81393153817,27454.275361983331,0.38,6511.8890009383667,10624.66100153102,"PLNT",3006.6250881196283,12316.671603505467,6246.1173778931452,723.47361058671254,3299.8591972178174,723.47361058671254,"UACCT404GPSO",{"$f":"ROUND(SUM(-H1141,J1141:N1141),0)","v":0},{"$f":"ROUND(J1141-Q1141-R1141,0)","v":0},{"$f":"ROUND(K1141-T1141-U1141,0)","v":0},{"$f":"ROUND(L1141-W1141-X1141-Y1141-Z1141-AA1141,0)","v":0}]
[1142,null,null,"DGU",404,"DGU","ACCT404GPSG",{"$f":"'JAM Download'!E1050","v":0},"I-DGU",0,0,0,0,0,null,0.38,0,0,0.38,0,0,"PLNT",0,0,0,0,0,0,"UACCT404GPSG2",{"$f":"ROUND(SUM(-H1142,J1142:N1142),0)","v":0},{"$f":"ROUND(J1142-Q1142-R1142,0)","v":0},{"$f":"ROUND(K1142-T1142-U1142,0)","v":0},{"$f":"ROUND(L1142-W1142-X1142-Y1142-Z1142-AA1142,0)","v":0}]
[1143,null,null,"CN",404,"CN","ACCT404GPCN",{"$f":"'JAM Download'!E1103","v":18944.613261818769},"CUST",0,0,0,18944.613261818769,0,null,0.38,0,0,0.38,0,0,"CUST",0,0,0,0,0,0,"UACCT404GPCN",{"$f":"ROUND(SUM(-H1143,J1143:N1143),0)","v":0},{"$f":"ROUND(J1143-Q1143-R1143,0)","v":0},{"$f":"ROUND(K1143-T1143-U1143,0)","v":0},{"$f":"ROUND(L1143-W1143-X1143-Y1143-Z1143-AA1143,0)","v":0}]
[1144,null,null,"DGP",404,"DGP","ACCT404GPDGP",{"$f":"'JAM Download'!E1106","v":0},"I-DGP",0,0,0,0,0,null,0.38,0,0,0.38,0,0,"PLNT",0,0,0,0,0,0,"UACCT404GPDGP",0,0,0,0]
[1145,null,null,"SG",404,"SG","ACCT404GPSG",0,"I-DGP",0,0,0,0,0,null,0.38,0,0,0.38,0,0,"PLNT",0,0,0,0,0,0,"UACCT404GPSG3",{"$f":"ROUND(SUM(-H1145,J1145:N1145),0)","v":0},{"$f":"ROUND(J1145-Q1145-R1145,0)","v":0},{"$f":"ROUND(K1145-T1145-U1145,0)","v":0},{"$f":"ROUND(L1145-W1145-X1145-Y1145-Z1145-AA1145,0)","v":0}]
[1146,null,null,null,null,null,"ACCT404GP",{"$f":"'JAM Download'!E1107","v":309384.31943513243},null,{"$f":"SUM(J1139:J1145)","v":49411.428258600514},{"$f":"SUM(K1139:K1145)","v":110405.81094004064},{"$f":"SUM(L1139:L1145)","v":130622.46697467253},{"$f":"SUM(M1139:M1145)","v":18944.613261818769},{"$f":"SUM(N1139:N1145)","v":0},null,null,{"$f":"SUM(Q1139:Q1145)","v":18776.342738268195},{"$f":"SUM(R1139:R1145)","v":30635.085520332319},null,{"$f":"SUM(T1139:T1145)","v":41954.208157215442},{"$f":"SUM(U1139:U1145)","v":68451.602782825197},null,{"$f":"SUM(W1139:W1145)","v":15345.472221511354},{"$f":"SUM(X1139:X1145)","v":62862.889922626317},{"$f":"SUM(Y1139:Y1145)","v":31879.472134220712},{"$f":"SUM(Z1139:Z1145)","v":3692.5269592552504},{"$f":"SUM(AA1139:AA1145)","v":16842.105737058886},3692.5269592552504,"UACCT404GP",{"$f":"ROUND(SUM(-H1146,J1146:N1146),0)","v":0},{"$f":"ROUND(J1146-Q1146-R1146,0)","v":0},{"$f":"ROUND(K1146-T1146-U1146,0)","v":0},{"$f":"ROUND(L1146-W1146-X1146-Y1146-Z1146-AA1146,0)","v":0}]
[1147]
[1148,"404SP","Amort of LT Plant - Cap Lease Steam"]
[{"$f":"A1148+1","v":1149},null,null,"SG",404,"SG","ACCT404SPSG",{"$f":"'JAM Download'!E1110","v":0},"P",{"$f":"VLOOKUP($I1149,Func,2)*$H1149","v":0},{"$f":"VLOOKUP($I1149,Func,3)*$H1149","v":0},{"$f":"VLOOKUP($I1149,Func,5)*$H1149","v":0},{"$f":"VLOOKUP($I1149,Func,6)*$H1149","v":0},{"$f":"VLOOKUP($I1149,Func,7)*$H1149","v":0},null,{"$f":"Demand","v":0.38},{"$f":"+$J1149*$P1149","v":0},{"$f":"+$J1149*(1-$P1149)","v":0},{"$f":"Demand","v":0.38},{"$f":"+$K1149*$S1149","v":0},{"$f":"+$K1149*(1-$S1149)","v":0},"DRB",{"$f":"+$L1149*VLOOKUP($V1149,DisFac,2)","v":0},{"$f":"+$L1149*VLOOKUP($V1149,DisFac,3)","v":0},{"$f":"+$L1149*VLOOKUP($V1149,DisFac,4)","v":0},{"$f":"+$L1149*VLOOKUP($V1149,DisFac,5)","v":0},{"$f":"+$L1149*VLOOKUP($V1149,DisFac,6)","v":0},0,"UACCT404SPSG",{"$f":"ROUND(SUM(-H1149,J1149:N1149),0)","v":0},{"$f":"ROUND(J1149-Q1149-R1149,0)","v":0},{"$f":"ROUND(K1149-T1149-U1149,0)","v":0},{"$f":"ROUND(L1149-W1149-X1149-Y1149-Z1149-AA1149,0)","v":0}]
[1150,null,null,"DGP",404,"DGP","ACCT404SPSG",{"$f":"'JAM Download'!E1111","v":0},"P",{"$f":"VLOOKUP($I1150,Func,2)*$H1150","v":0},{"$f":"VLOOKUP($I1150,Func,3)*$H1150","v":0},{"$f":"VLOOKUP($I1150,Func,5)*$H1150","v":0},{"$f":"VLOOKUP($I1150,Func,6)*$H1150","v":0},{"$f":"VLOOKUP($I1150,Func,7)*$H1150","v":0},null,{"$f":"Demand","v":0.38},{"$f":"+$J1150*$P1150","v":0},{"$f":"+$J1150*(1-$P1150)","v":0},{"$f":"Demand","v":0.38},{"$f":"+$K1150*$S1150","v":0},{"$f":"+$K1150*(1-$S1150)","v":0},"DRB",{"$f":"+$L1150*VLOOKUP($V1150,DisFac,2)","v":0},{"$f":"+$L1150*VLOOKUP($V1150,DisFac,3)","v":0},{"$f":"+$L1150*VLOOKUP($V1150,DisFac,4)","v":0},{"$f":"+$L1150*VLOOKUP($V1150,DisFac,5)","v":0},{"$f":"+$L1150*VLOOKUP($V1150,DisFac,6)","v":0},0,"UACCT404SPSG2",{"$f":"ROUND(SUM(-H1150,J1150:N1150),0)","v":0},{"$f":"ROUND(J1150-Q1150-R1150,0)","v":0},{"$f":"ROUND(K1150-T1150-U1150,0)","v":0},{"$f":"ROUND(L1150-W1150-X1150-Y1150-Z1150-AA1150,0)","v":0}]
[1151,null,null,null,null,null,"ACCT404SP",{"$f":"'JAM Download'!E1112","v":0},null,{"$f":"SUM(J1149:J1150)","v":0},{"$f":"SUM(K1149:K1150)","v":0},{"$f":"SUM(L1149:L1150)","v":0},{"$f":"SUM(M1149:M1150)","v":0},{"$f":"SUM(N1149:N1150)","v":0},null,null,{"$f":"SUM(Q1149:Q1150)","v":0},{"$f":"SUM(R1149:R1150)","v":0},null,{"$f":"SUM(T1149:T1150)","v":0},{"$f":"SUM(U1149:U1150)","v":0},null,{"$f":"SUM(W1149:W1150)","v":0},{"$f":"SUM(X1149:X1150)","v":0},{"$f":"SUM(Y1149:Y1150)","v":0},{"$f":"SUM(Z1149:Z1150)","v":0},{"$f":"SUM(AA1149:AA1150)","v":0},0,"UACCT404SPSG",{"$f":"ROUND(SUM(-H1151,J1151:N1151),0)","v":0},{"$f":"ROUND(J1151-Q1151-R1151,0)","v":0},{"$f":"ROUND(K1151-T1151-U1151,0)","v":0},{"$f":"ROUND(L1151-W1151-X1151-Y1151-Z1151-AA1151,0)","v":0}]
[1152]
[1153,"404IP","Amort of LT Plant - Intangible Plant"]
[1154,null,null,"S",404,"S","ACCT404IPS",{"$f":"'JAM Download'!E1115","v":183.85},"I-SITUS",{"$f":"VLOOKUP($I1154,Func,2)*$H1154","v":4.6365628058422272},{"$f":"VLOOKUP($I1154,Func,3)*$H1154","v":84.292439375860241},{"$f":"VLOOKUP($I1154,Func,5)*$H1154","v":94.920997818297536},{"$f":"VLOOKUP($I1154,Func,6)*$H1154","v":0},{"$f":"VLOOKUP($I1154,Func,7)*$H1154","v":0},null,{"$f":"Demand","v":0.38},{"$f":"+$J1154*$P1154","v":1.7618938662200463},{"$f":"+$J1154*(1-$P1154)","v":2.8746689396221807},{"$f":"Demand","v":0.38},{"$f":"+$K1154*$S1154","v":32.031126962826889},{"$f":"+$K1154*(1-$S1154)","v":52.261312413033352},"PLNT",{"$f":"+$L1154*VLOOKUP($V1154,DisFac,2)","v":11.151278711810415},{"$f":"+$L1154*VLOOKUP($V1154,DisFac,3)","v":45.681331668268705},{"$f":"+$L1154*VLOOKUP($V1154,DisFac,4)","v":23.1662391239907},{"$f":"+$L1154*VLOOKUP($V1154,DisFac,5)","v":2.6832929400378993},{"$f":"+$L1154*VLOOKUP($V1154,DisFac,6)","v":12.238855374189818},2.6832929400378993,"UACCT404IPS",{"$f":"ROUND(SUM(-H1154,J1154:N1154),0)","v":0},{"$f":"ROUND(J1154-Q1154-R1154,0)","v":0},{"$f":"ROUND(K1154-T1154-U1154,0)","v":0},{"$f":"ROUND(L1154-W1154-X1154-Y1154-Z1154-AA1154,0)","v":0}]
[1155,null,null,"SE",404,"SE","ACCT404IPSE",{"$f":"'JAM Download'!E1116","v":0},"P",0,0,0,0,0,null,0.38,0,0,0.38,0,0,"PLNT",0,0,0,0,0,0,"UACCT404IPSE",0,0,0,0]
[1156,null,null,"SG/CAGW",404,"SG","ACCT404IPSG",{"$f":"'JAM Download'!E1117+'JAM Download'!E1120+'JAM Download'!E1121+'JAM Download'!E1123+'JAM Download'!E1124+'JAM Download'!E1125+'JAM Download'!E1126","v":3385100.0361449821},"I-SG",2895502.7068774463,489597.3292675367,0,0,0,null,0.38,1100291.0286134295,1795211.6782640168,0.38,186046.98512166395,303550.34414587275,"PLNT",0,0,0,0,0,0,"UACCT404IPSG",0,0,0,0]
[1157,null,null,"SO",404,"SO","ACCT404IPSO",{"$f":"'JAM Download'!E1118","v":1059718.656618322},"PTD",539309.13909814088,208709.81668231305,311699.70083786809,0,0,null,0.38,204937.47285729353,334371.66624084732,0.38,79309.730339278962,129400.08634303408,"PLNT",36618.349135821751,150007.45611768123,76072.839207917292,8811.3444432097076,40189.711933238104,8811.3444432097076,"UACCT404IPSO",0,0,0,0]
[1158,null,null,"CN",404,"CN","ACCT404IPCN",{"$f":"'JAM Download'!E1119","v":416887.11970068014},"CUST",0,0,0,416887.11970068014,0,null,0.38,0,0,0.38,0,0,"CUST",0,0,0,0,0,0,"UACCT404IPCN",0,0,0,0]
[1159,null,null,"DGP",404,"DGP","ACCT404IPSG",{"$f":"'JAM Download'!E1120","v":0},"I-DGP",0,0,0,0,0,null,0.38,0,0,0.38,0,0,"PLNT",0,0,0,0,0,0,"UACCT404IPSG1",0,0,0,0]
[1160,null,null,"DGU",404,"DGU","ACCT404IPSG",{"$f":"'JAM Download'!E1121","v":0},"I-DGU",0,0,0,0,0,null,0.38,0,0,0.38,0,0,"PLNT",0,0,0,0,0,0,"UACCT404IPSG2",0,0,0,0]
[1161,null,null,"CAEW",404,"CAEW","ACCT404IPCAEW",{"$f":"'JAM Download'!E1122","v":0},"P",0,0,0,0,0,null,0.38,0,0,0.38,0,0,"PLNT",0,0,0,0,0,0,"UACCT404IPCAEW",0,0,0,0]
[1162,null,null,"CAGW",404,"CAGW","ACCT404IPCAGW",null,"P",0,0,0,0,0,null,0.38,0,0,0.38,0,0,"PLNT",0,0,0,0,0,0,"UACCT404IPSSGCT",0,0,0,0]
[1163,null,null,"JBG",404,"JBG","ACCT404IPJBG",{"$f":"'JAM Download'!E1127","v":764.01049840557801},"I-SG",653.50933283951872,110.50116556605948,0,0,0,null,0.38,248.33354647901712,405.1757863605016,0.38,41.990442915102605,68.510722650956879,"PLNT",0,0,0,0,0,0,"UACCT404IPJBG",0,0,0,0]
[1164,null,null,null,null,null,"ACCT404IP",{"$f":"'JAM Download'!E1131","v":4862653.6729623899},null,{"$f":"SUM(J1154:J1163)","v":3435469.9918712322},{"$f":"SUM(K1154:K1163)","v":698501.93955479166},{"$f":"SUM(L1154:L1163)","v":311794.62183568638},{"$f":"SUM(M1154:M1163)","v":416887.11970068014},{"$f":"SUM(N1154:N1163)","v":0},null,null,{"$f":"SUM(Q1154:Q1163)","v":1305478.5969110681},{"$f":"SUM(R1154:R1163)","v":2129991.3949601646},null,{"$f":"SUM(T1154:T1163)","v":265430.73703082086},{"$f":"SUM(U1154:U1163)","v":433071.2025239708},null,{"$f":"SUM(W1154:W1163)","v":36629.500414533562},{"$f":"SUM(X1154:X1163)","v":150053.13744934951},{"$f":"SUM(Y1154:Y1163)","v":76096.005447041287},{"$f":"SUM(Z1154:Z1163)","v":8814.0277361497447},{"$f":"SUM(AA1154:AA1163)","v":40201.950788612296},8814.0277361497447,"UACCT404IP",0,0,0,0]
[1165]
[1166,"404MP","Amort of LT Plant - Mining Plant"]
[1167,null,null,"SE",404,"SE","ACCT404MPSE",{"$f":"'JAM Download'!E1134","v":0},"P",{"$f":"VLOOKUP($I1167,Func,2)*$H1167","v":0},{"$f":"VLOOKUP($I1167,Func,3)*$H1167","v":0},{"$f":"VLOOKUP($I1167,Func,5)*$H1167","v":0},{"$f":"VLOOKUP($I1167,Func,6)*$H1167","v":0},{"$f":"VLOOKUP($I1167,Func,7)*$H1167","v":0},null,{"$f":"Demand","v":0.38},{"$f":"+$J1167*$P1167","v":0},{"$f":"+$J1167*(1-$P1167)","v":0},{"$f":"Demand","v":0.38},{"$f":"+$K1167*$S1167","v":0},{"$f":"+$K1167*(1-$S1167)","v":0},"PLNT",{"$f":"+$L1167*VLOOKUP($V1167,DisFac,2)","v":0},{"$f":"+$L1167*VLOOKUP($V1167,DisFac,3)","v":0},{"$f":"+$L1167*VLOOKUP($V1167,DisFac,4)","v":0},{"$f":"+$L1167*VLOOKUP($V1167,DisFac,5)","v":0},{"$f":"+$L1167*VLOOKUP($V1167,DisFac,6)","v":0},0,"UACCT404IPSEU",{"$f":"ROUND(SUM(-H1167,J1167:N1167),0)","v":0},{"$f":"ROUND(J1167-Q1167-R1167,0)","v":0},{"$f":"ROUND(K1167-T1167-U1167,0)","v":0},{"$f":"ROUND(L1167-W1167-X1167-Y1167-Z1167-AA1167,0)","v":0}]
[1168,null,null,null,404,null,"ACCT404M",{"$f":"'JAM Download'!E1135","v":0},null,{"$f":"SUM(J1167)","v":0},{"$f":"SUM(K1167)","v":0},{"$f":"SUM(L1167)","v":0},{"$f":"SUM(M1167)","v":0},{"$f":"SUM(N1167)","v":0},null,null,{"$f":"SUM(Q1167)","v":0},{"$f":"SUM(R1167)","v":0},null,{"$f":"SUM(T1167)","v":0},{"$f":"SUM(U1167)","v":0},null,{"$f":"SUM(W1167)","v":0},{"$f":"SUM(X1167)","v":0},{"$f":"SUM(Y1167)","v":0},{"$f":"SUM(Z1167)","v":0},{"$f":"SUM(AA1167)","v":0},0,"UACCT404M",{"$f":"ROUND(SUM(-H1168,J1168:N1168),0)","v":0},{"$f":"ROUND(J1168-Q1168-R1168,0)","v":0},{"$f":"ROUND(K1168-T1168-U1168,0)","v":0},{"$f":"ROUND(L1168-W1168-X1168-Y1168-Z1168-AA1168,0)","v":0}]
[1169]
[1170,"404OP","Amort of LT Plant - Other Plant"]
[1171,null,null,"CAGE",404,"CAGE","ACCT404OPCAGE",{"$f":"'JAM Download'!E1139","v":0},"P",{"$f":"VLOOKUP($I1171,Func,2)*$H1171","v":0},{"$f":"VLOOKUP($I1171,Func,3)*$H1171","v":0},{"$f":"VLOOKUP($I1171,Func,5)*$H1171","v":0},{"$f":"VLOOKUP($I1171,Func,6)*$H1171","v":0},{"$f":"VLOOKUP($I1171,Func,7)*$H1171","v":0},null,{"$f":"Demand","v":0.38},{"$f":"+$J1171*$P1171","v":0},{"$f":"+$J1171*(1-$P1171)","v":0},{"$f":"Demand","v":0.38},{"$f":"+$K1171*$S1171","v":0},{"$f":"+$K1171*(1-$S1171)","v":0},"PLNT",{"$f":"+$L1171*VLOOKUP($V1171,DisFac,2)","v":0},{"$f":"+$L1171*VLOOKUP($V1171,DisFac,3)","v":0},{"$f":"+$L1171*VLOOKUP($V1171,DisFac,4)","v":0},{"$f":"+$L1171*VLOOKUP($V1171,DisFac,5)","v":0},{"$f":"+$L1171*VLOOKUP($V1171,DisFac,6)","v":0},0,"UACCT404OPSSGCT",{"$f":"ROUND(SUM(-H1171,J1171:N1171),0)","v":0},{"$f":"ROUND(J1171-Q1171-R1171,0)","v":0},{"$f":"ROUND(K1171-T1171-U1171,0)","v":0},{"$f":"ROUND(L1171-W1171-X1171-Y1171-Z1171-AA1171,0)","v":0}]
[1172,null,null,null,null,null,"ACCT404OP",{"$f":"'JAM Download'!E1140","v":0},null,{"$f":"SUM(J1171)","v":0},{"$f":"SUM(K1171)","v":0},{"$f":"SUM(L1171)","v":0},{"$f":"SUM(M1171)","v":0},{"$f":"SUM(N1171)","v":0},null,null,{"$f":"SUM(Q1171)","v":0},{"$f":"SUM(R1171)","v":0},null,{"$f":"SUM(T1171)","v":0},{"$f":"SUM(U1171)","v":0},null,{"$f":"SUM(W1171)","v":0},{"$f":"SUM(X1171)","v":0},{"$f":"SUM(Y1171)","v":0},{"$f":"SUM(Z1171)","v":0},{"$f":"SUM(AA1171)","v":0},0,"UACCT404OP",{"$f":"ROUND(SUM(-H1172,J1172:N1172),0)","v":0},{"$f":"ROUND(J1172-Q1172-R1172,0)","v":0},{"$f":"ROUND(K1172-T1172-U1172,0)","v":0},{"$f":"ROUND(L1172-W1172-X1172-Y1172-Z1172-AA1172,0)","v":0}]
[1173,"404HP","Amortization of Other Electric Plant"]
[1174,null,null,"DGP",404,"DGP","ACCT404HPDGP",{"$f":"'JAM Download'!E1144","v":0},"P",{"$f":"VLOOKUP($I1174,Func,2)*$H1174","v":0},{"$f":"VLOOKUP($I1174,Func,3)*$H1174","v":0},{"$f":"VLOOKUP($I1174,Func,5)*$H1174","v":0},{"$f":"VLOOKUP($I1174,Func,6)*$H1174","v":0},{"$f":"VLOOKUP($I1174,Func,7)*$H1174","v":0},null,{"$f":"Demand","v":0.38},{"$f":"+$J1174*$P1174","v":0},{"$f":"+$J1174*(1-$P1174)","v":0},{"$f":"Demand","v":0.38},{"$f":"+$K1174*$S1174","v":0},{"$f":"+$K1174*(1-$S1174)","v":0},"PLNT",{"$f":"+$L1174*VLOOKUP($V1174,DisFac,2)","v":0},{"$f":"+$L1174*VLOOKUP($V1174,DisFac,3)","v":0},{"$f":"+$L1174*VLOOKUP($V1174,DisFac,4)","v":0},{"$f":"+$L1174*VLOOKUP($V1174,DisFac,5)","v":0},{"$f":"+$L1174*VLOOKUP($V1174,DisFac,6)","v":0},0,"UACCT404330DGP",{"$f":"ROUND(SUM(-H1174,J1174:N1174),0)","v":0},{"$f":"ROUND(J1174-Q1174-R1174,0)","v":0},{"$f":"ROUND(K1174-T1174-U1174,0)","v":0},{"$f":"ROUND(L1174-W1174-X1174-Y1174-Z1174-AA1174,0)","v":0}]
[1175,null,null,"DGU",404,"DGU","ACCT404HPDGU",{"$f":"'JAM Download'!E1145","v":0},"P",{"$f":"VLOOKUP($I1175,Func,2)*$H1175","v":0},{"$f":"VLOOKUP($I1175,Func,3)*$H1175","v":0},{"$f":"VLOOKUP($I1175,Func,5)*$H1175","v":0},{"$f":"VLOOKUP($I1175,Func,6)*$H1175","v":0},{"$f":"VLOOKUP($I1175,Func,7)*$H1175","v":0},null,{"$f":"Demand","v":0.38},{"$f":"+$J1175*$P1175","v":0},{"$f":"+$J1175*(1-$P1175)","v":0},{"$f":"Demand","v":0.38},{"$f":"+$K1175*$S1175","v":0},{"$f":"+$K1175*(1-$S1175)","v":0},"PLNT",{"$f":"+$L1175*VLOOKUP($V1175,DisFac,2)","v":0},{"$f":"+$L1175*VLOOKUP($V1175,DisFac,3)","v":0},{"$f":"+$L1175*VLOOKUP($V1175,DisFac,4)","v":0},{"$f":"+$L1175*VLOOKUP($V1175,DisFac,5)","v":0},{"$f":"+$L1175*VLOOKUP($V1175,DisFac,6)","v":0},0,"UACCT404330DGP",{"$f":"ROUND(SUM(-H1175,J1175:N1175),0)","v":0},{"$f":"ROUND(J1175-Q1175-R1175,0)","v":0},{"$f":"ROUND(K1175-T1175-U1175,0)","v":0},{"$f":"ROUND(L1175-W1175-X1175-Y1175-Z1175-AA1175,0)","v":0}]
[1176,null,null,"CAGW",404,"CAGW","ACCT404HPCAGW",{"$f":"'JAM Download'!E1146+'JAM Download'!E1147+'JAM Download'!E1148","v":52718.945847581628},"P",{"$f":"VLOOKUP($I1176,Func,2)*$H1176","v":52718.945847581628},{"$f":"VLOOKUP($I1176,Func,3)*$H1176","v":0},{"$f":"VLOOKUP($I1176,Func,5)*$H1176","v":0},{"$f":"VLOOKUP($I1176,Func,6)*$H1176","v":0},{"$f":"VLOOKUP($I1176,Func,7)*$H1176","v":0},null,{"$f":"Demand","v":0.38},{"$f":"+$J1176*$P1176","v":20033.199422081019},{"$f":"+$J1176*(1-$P1176)","v":32685.746425500609},{"$f":"Demand","v":0.38},{"$f":"+$K1176*$S1176","v":0},{"$f":"+$K1176*(1-$S1176)","v":0},"PLNT",{"$f":"+$L1176*VLOOKUP($V1176,DisFac,2)","v":0},{"$f":"+$L1176*VLOOKUP($V1176,DisFac,3)","v":0},{"$f":"+$L1176*VLOOKUP($V1176,DisFac,4)","v":0},{"$f":"+$L1176*VLOOKUP($V1176,DisFac,5)","v":0},{"$f":"+$L1176*VLOOKUP($V1176,DisFac,6)","v":0},0,"UACCT404330DGU",{"$f":"ROUND(SUM(-H1176,J1176:N1176),0)","v":0},{"$f":"ROUND(J1176-Q1176-R1176,0)","v":0},{"$f":"ROUND(K1176-T1176-U1176,0)","v":0},{"$f":"ROUND(L1176-W1176-X1176-Y1176-Z1176-AA1176,0)","v":0}]
[1177,null,null,null,null,null,"ACCT404HP",{"$f":"'JAM Download'!E1149","v":52718.945847581628},null,{"$f":"SUM(J1174:J1176)","v":52718.945847581628},{"$f":"SUM(K1174:K1176)","v":0},{"$f":"SUM(L1174:L1176)","v":0},{"$f":"SUM(M1174:M1176)","v":0},{"$f":"SUM(N1174:N1176)","v":0},null,null,{"$f":"SUM(Q1174:Q1176)","v":20033.199422081019},{"$f":"SUM(R1174:R1176)","v":32685.746425500609},null,{"$f":"SUM(T1174:T1176)","v":0},{"$f":"SUM(U1174:U1176)","v":0},null,{"$f":"SUM(W1174:W1176)","v":0},{"$f":"SUM(X1174:X1176)","v":0},{"$f":"SUM(Y1174:Y1176)","v":0},{"$f":"SUM(Z1174:Z1176)","v":0},{"$f":"SUM(AA1174:AA1176)","v":0},0,"UACCT404330",{"$f":"ROUND(SUM(-H1177,J1177:N1177),0)","v":0},{"$f":"ROUND(J1177-Q1177-R1177,0)","v":0},{"$f":"ROUND(K1177-T1177-U1177,0)","v":0},{"$f":"ROUND(L1177-W1177-X1177-Y1177-Z1177-AA1177,0)","v":0}]
[1178]
[1179,"Total Amortization of Limited Term Plant",null,null,null,null,null,{"$f":"'JAM Download'!E1151","v":5224756.9382451037},null,{"$f":"+J1164+J1151+J1146+J1177+J1168+J1172","v":3537600.3659774144},{"$f":"+K1164+K1151+K1146+K1177+K1168+K1172","v":808907.75049483229},{"$f":"+L1164+L1151+L1146+L1177+L1168+L1172","v":442417.08881035889},{"$f":"+M1164+M1151+M1146+M1177+M1168+M1172","v":435831.73296249891},{"$f":"+N1164+N1151+N1146+N1177+N1168+N1172","v":0},null,null,{"$f":"+Q1164+Q1151+Q1146+Q1177+Q1168+Q1172","v":1344288.1390714173},{"$f":"+R1164+R1151+R1146+R1177+R1168+R1172","v":2193312.2269059974},null,{"$f":"+T1164+T1151+T1146+T1177+T1168+T1172","v":307384.9451880363},{"$f":"+U1164+U1151+U1146+U1177+U1168+U1172","v":501522.80530679598},null,{"$f":"+W1164+W1151+W1146+W1177+W1168+W1172","v":51974.972636044913},{"$f":"+X1164+X1151+X1146+X1177+X1168+X1172","v":212916.02737197583},{"$f":"+Y1164+Y1151+Y1146+Y1177+Y1168+Y1172","v":107975.47758126201},{"$f":"+Z1164+Z1151+Z1146+Z1177+Z1168+Z1172","v":12506.554695404995},{"$f":"+AA1164+AA1151+AA1146+AA1177+AA1168+AA1172","v":57044.056525671185},12506.554695404995,null,{"$f":"ROUND(SUM(-H1179,J1179:N1179),0)","v":0},{"$f":"ROUND(J1179-Q1179-R1179,0)","v":0},{"$f":"ROUND(K1179-T1179-U1179,0)","v":0},{"$f":"ROUND(L1179-W1179-X1179-Y1179-Z1179-AA1179,0)","v":0}]
[1180]
[1181]
[1182,405,"Amortization of Other Electric Plant"]
[1183,null,null,"S",405,"S","ACCT405S",{"$f":"'JAM Download'!E1155","v":0},"GP",{"$f":"VLOOKUP($I1183,Func,2)*$H1183","v":0},{"$f":"VLOOKUP($I1183,Func,3)*$H1183","v":0},{"$f":"VLOOKUP($I1183,Func,5)*$H1183","v":0},{"$f":"VLOOKUP($I1183,Func,6)*$H1183","v":0},{"$f":"VLOOKUP($I1183,Func,7)*$H1183","v":0},null,{"$f":"Demand","v":0.38},{"$f":"+$J1183*$P1183","v":0},{"$f":"+$J1183*(1-$P1183)","v":0},{"$f":"Demand","v":0.38},{"$f":"+$K1183*$S1183","v":0},{"$f":"+$K1183*(1-$S1183)","v":0},"PLNT",{"$f":"+$L1183*VLOOKUP($V1183,DisFac,2)","v":0},{"$f":"+$L1183*VLOOKUP($V1183,DisFac,3)","v":0},{"$f":"+$L1183*VLOOKUP($V1183,DisFac,4)","v":0},{"$f":"+$L1183*VLOOKUP($V1183,DisFac,5)","v":0},{"$f":"+$L1183*VLOOKUP($V1183,DisFac,6)","v":0},0,"UACCT405S",{"$f":"ROUND(SUM(-H1183,J1183:N1183),0)","v":0},{"$f":"ROUND(J1183-Q1183-R1183,0)","v":0},{"$f":"ROUND(K1183-T1183-U1183,0)","v":0},{"$f":"ROUND(L1183-W1183-X1183-Y1183-Z1183-AA1183,0)","v":0}]
[1184]
[1185,null,null,null,null,null,"ACCT405",{"$f":"'JAM Download'!E1156","v":0},null,{"$f":"SUM(J1183:J1184)","v":0},{"$f":"SUM(K1183:K1184)","v":0},{"$f":"SUM(L1183:L1184)","v":0},{"$f":"SUM(M1183:M1184)","v":0},{"$f":"SUM(N1183:N1184)","v":0},null,null,{"$f":"SUM(Q1183:Q1184)","v":0},{"$f":"SUM(R1183:R1184)","v":0},null,{"$f":"SUM(T1183:T1184)","v":0},{"$f":"SUM(U1183:U1184)","v":0},null,{"$f":"SUM(W1183:W1184)","v":0},{"$f":"SUM(X1183:X1184)","v":0},{"$f":"SUM(Y1183:Y1184)","v":0},{"$f":"SUM(Z1183:Z1184)","v":0},{"$f":"SUM(AA1183:AA1184)","v":0},0,"UACCT405",{"$f":"ROUND(SUM(-H1185,J1185:N1185),0)","v":0},{"$f":"ROUND(J1185-Q1185-R1185,0)","v":0},{"$f":"ROUND(K1185-T1185-U1185,0)","v":0},{"$f":"ROUND(L1185-W1185-X1185-Y1185-Z1185-AA1185,0)","v":0}]
[1186]
[1187,406,"Amortization of Plant Acquisition Adj"]
[1188,null,null,"S",406,"S","ACCT406S",{"$f":"'JAM Download'!E1160","v":0},"P",{"$f":"VLOOKUP($I1188,Func,2)*$H1188","v":0},{"$f":"VLOOKUP($I1188,Func,3)*$H1188","v":0},{"$f":"VLOOKUP($I1188,Func,5)*$H1188","v":0},{"$f":"VLOOKUP($I1188,Func,6)*$H1188","v":0},{"$f":"VLOOKUP($I1188,Func,7)*$H1188","v":0},null,null,null,null,null,null,null,null,null,null,null,null,null,null,"UACCT406S",{"$f":"ROUND(SUM(-H1188,J1188:N1188),0)","v":0},{"$f":"ROUND(J1188-Q1188-R1188,0)","v":0},{"$f":"ROUND(K1188-T1188-U1188,0)","v":0},{"$f":"ROUND(L1188-W1188-X1188-Y1188-Z1188-AA1188,0)","v":0}]
[1189,null,null,"DGP",406,"DGP","ACCT406SG",{"$f":"'JAM Download'!E1161","v":0},"P",{"$f":"VLOOKUP($I1189,Func,2)*$H1189","v":0},{"$f":"VLOOKUP($I1189,Func,3)*$H1189","v":0},{"$f":"VLOOKUP($I1189,Func,5)*$H1189","v":0},{"$f":"VLOOKUP($I1189,Func,6)*$H1189","v":0},{"$f":"VLOOKUP($I1189,Func,7)*$H1189","v":0},null,{"$f":"Demand","v":0.38},{"$f":"+$J1189*$P1189","v":0},{"$f":"+$J1189*(1-$P1189)","v":0},{"$f":"Demand","v":0.38},{"$f":"+$K1189*$S1189","v":0},{"$f":"+$K1189*(1-$S1189)","v":0},null,null,null,null,null,null,null,"UACCT406DGP",0,0,0,0]
[1190,null,null,"DGU",406,"DGU","ACCT406SG",{"$f":"'JAM Download'!E1162","v":0},"P",{"$f":"VLOOKUP($I1190,Func,2)*$H1190","v":0},{"$f":"VLOOKUP($I1190,Func,3)*$H1190","v":0},{"$f":"VLOOKUP($I1190,Func,5)*$H1190","v":0},{"$f":"VLOOKUP($I1190,Func,6)*$H1190","v":0},{"$f":"VLOOKUP($I1190,Func,7)*$H1190","v":0},null,{"$f":"Demand","v":0.38},{"$f":"+$J1190*$P1190","v":0},{"$f":"+$J1190*(1-$P1190)","v":0},{"$f":"Demand","v":0.38},{"$f":"+$K1190*$S1190","v":0},{"$f":"+$K1190*(1-$S1190)","v":0},null,null,null,null,null,null,null,"UACCT406DGU",0,0,0,0]
[1191,null,null,"SG/CAGW/CAGE",406,"SG","ACCT406SG",{"$f":"'JAM Download'!E1163+'JAM Download'!E1164+'JAM Download'!E1165","v":0},"P",{"$f":"VLOOKUP($I1191,Func,2)*$H1191","v":0},{"$f":"VLOOKUP($I1191,Func,3)*$H1191","v":0},{"$f":"VLOOKUP($I1191,Func,5)*$H1191","v":0},{"$f":"VLOOKUP($I1191,Func,6)*$H1191","v":0},{"$f":"VLOOKUP($I1191,Func,7)*$H1191","v":0},null,{"$f":"Demand","v":0.38},{"$f":"+$J1191*$P1191","v":0},{"$f":"+$J1191*(1-$P1191)","v":0},{"$f":"Demand","v":0.38},{"$f":"+$K1191*$S1191","v":0},{"$f":"+$K1191*(1-$S1191)","v":0},null,null,null,null,null,null,null,"UACCT406SG",0,0,0,0]
[1192,null,null,"SO",406,"SO","ACCT406SO",{"$f":"'JAM Download'!E1166","v":0},"P",{"$f":"VLOOKUP($I1192,Func,2)*$H1192","v":0},{"$f":"VLOOKUP($I1192,Func,3)*$H1192","v":0},{"$f":"VLOOKUP($I1192,Func,5)*$H1192","v":0},{"$f":"VLOOKUP($I1192,Func,6)*$H1192","v":0},{"$f":"VLOOKUP($I1192,Func,7)*$H1192","v":0},null,{"$f":"Demand","v":0.38},{"$f":"+$J1192*$P1192","v":0},{"$f":"+$J1192*(1-$P1192)","v":0},{"$f":"Demand","v":0.38},{"$f":"+$K1192*$S1192","v":0},{"$f":"+$K1192*(1-$S1192)","v":0},null,null,null,null,null,null,null,"UACCT406SO",0,0,0,0]
[1193,null,null,null,null,null,"ACCT406",{"$f":"'JAM Download'!E1167","v":0},null,{"$f":"SUM(J1188:J1192)","v":0},{"$f":"SUM(K1188:K1192)","v":0},{"$f":"SUM(L1188:L1192)","v":0},{"$f":"SUM(M1188:M1192)","v":0},{"$f":"SUM(N1188:N1192)","v":0},null,null,{"$f":"SUM(Q1188:Q1192)","v":0},{"$f":"SUM(R1188:R1192)","v":0},null,{"$f":"SUM(T1188:T1192)","v":0},{"$f":"SUM(U1188:U1192)","v":0},null,{"$f":"SUM(W1188:W1192)","v":0},{"$f":"SUM(X1188:X1192)","v":0},{"$f":"SUM(Y1188:Y1192)","v":0},{"$f":"SUM(Z1188:Z1192)","v":0},{"$f":"SUM(AA1188:AA1192)","v":0},0,"UACCT406",0,0,0,0]
[1194]
[1195,407,"Amort of Prop Losses, Unrec Plant, etc"]
[1196,null,null,"S",407,"S","ACCT407S",{"$f":"'JAM Download'!E1169","v":0},"DPW",{"$f":"VLOOKUP($I1196,Func,2)*$H1196","v":0},{"$f":"VLOOKUP($I1196,Func,3)*$H1196","v":0},{"$f":"VLOOKUP($I1196,Func,5)*$H1196","v":0},{"$f":"VLOOKUP($I1196,Func,6)*$H1196","v":0},{"$f":"VLOOKUP($I1196,Func,7)*$H1196","v":0},null,null,{"$f":"+$J1196*$P1196","v":0},{"$f":"+$J1196*(1-$P1196)","v":0},null,{"$f":"+$K1196*$S1196","v":0},{"$f":"+$K1196*(1-$S1196)","v":0},"PLNT",{"$f":"+$L1196*VLOOKUP($V1196,DisFac,2)","v":0},{"$f":"+$L1196*VLOOKUP($V1196,DisFac,3)","v":0},{"$f":"+$L1196*VLOOKUP($V1196,DisFac,4)","v":0},{"$f":"+$L1196*VLOOKUP($V1196,DisFac,5)","v":0},{"$f":"+$L1196*VLOOKUP($V1196,DisFac,6)","v":0},0,"UACCT407S",{"$f":"ROUND(SUM(-H1196,J1196:N1196),0)","v":0},{"$f":"ROUND(J1196-Q1196-R1196,0)","v":0},{"$f":"ROUND(K1196-T1196-U1196,0)","v":0},{"$f":"ROUND(L1196-W1196-X1196-Y1196-Z1196-AA1196,0)","v":0}]
[1197,null,null,"SO",407,"SO","ACCT407SO",{"$f":"'JAM Download'!E1170","v":0},"GP",0,0,0,0,0,null,null,0,0,null,0,0,"PLNT",0,0,0,0,0,0,"UACCT407SO",0,0,0,0]
[1198,null,null,"DGP",407,"DGP","ACCT407SG",{"$f":"'JAM Download'!E1171","v":0},"P",0,0,0,0,0,null,{"$f":"Demand","v":0.38},0,0,{"$f":"Demand","v":0.38},0,0,"PLNT",0,0,0,0,0,0,"UACCT407DGP",0,0,0,0]
[1199,null,null,"SE",407,"SE","ACCT407SE",{"$f":"'JAM Download'!E1172","v":0},"P",0,0,0,0,0,null,{"$f":"Demand","v":0.38},0,0,{"$f":"Demand","v":0.38},0,0,"PLNT",0,0,0,0,0,0,"UACCT407SEU",0,0,0,0]
[1200,null,null,"CAGW",407,"CAGW","ACCT407CAGW",{"$f":"'JAM Download'!E1173+'JAM Download'!E1174+'JAM Download'!E1175+'JAM Download'!E1176+'JAM Download'!E1177","v":322905.22191917192},"P",322905.22191917192,0,0,0,0,null,{"$f":"Demand","v":0.38},122703.98432928533,200201.23758988659,{"$f":"Demand","v":0.38},0,0,"PLNT",0,0,0,0,0,0,"UACCT407SGP",0,0,0,0]
[1201,null,null,"TROJP",407,"TROJP","ACCT407TROJP",{"$f":"'JAM Download'!E1178","v":0},"P",0,0,0,0,0,null,{"$f":"Demand","v":0.38},0,0,{"$f":"Demand","v":0.38},0,0,"PLNT",0,0,0,0,0,0,"UACCT407TROJP",0,0,0,0]
[1202,null,null,null,null,null,"ACCT407",{"$f":"'JAM Download'!E1179","v":322905.22191917192},null,{"$f":"SUM(J1196:J1201)","v":322905.22191917192},{"$f":"SUM(K1196:K1201)","v":0},{"$f":"SUM(L1196:L1201)","v":0},{"$f":"SUM(M1196:M1201)","v":0},{"$f":"SUM(N1196:N1201)","v":0},null,null,{"$f":"SUM(Q1196:Q1201)","v":122703.98432928533},{"$f":"SUM(R1196:R1201)","v":200201.23758988659},null,{"$f":"SUM(T1196:T1201)","v":0},{"$f":"SUM(U1196:U1201)","v":0},null,{"$f":"SUM(W1196:W1201)","v":0},{"$f":"SUM(X1196:X1201)","v":0},{"$f":"SUM(Y1196:Y1201)","v":0},{"$f":"SUM(Z1196:Z1201)","v":0},{"$f":"SUM(AA1196:AA1201)","v":0},0,"UACCT407",0,0,0,0]
[1203]
[1204,"TOTAL AMORTIZATION EXPENSE",null,null,null,null,null,{"$f":"'JAM Download'!E1181","v":5547662.1601642752},null,{"$f":"+J1202+J1193+J1185+J1179","v":3860505.5878965864},{"$f":"+K1202+K1193+K1185+K1179","v":808907.75049483229},{"$f":"+L1202+L1193+L1185+L1179","v":442417.08881035889},{"$f":"+M1202+M1193+M1185+M1179","v":435831.73296249891},{"$f":"+N1202+N1193+N1185+N1179","v":0},null,null,{"$f":"+Q1202+Q1193+Q1185+Q1179","v":1466992.1234007026},{"$f":"+R1202+R1193+R1185+R1179","v":2393513.4644958838},null,{"$f":"+T1202+T1193+T1185+T1179","v":307384.9451880363},{"$f":"+U1202+U1193+U1185+U1179","v":501522.80530679598},null,{"$f":"+W1202+W1193+W1185+W1179","v":51974.972636044913},{"$f":"+X1202+X1193+X1185+X1179","v":212916.02737197583},{"$f":"+Y1202+Y1193+Y1185+Y1179","v":107975.47758126201},{"$f":"+Z1202+Z1193+Z1185+Z1179","v":12506.554695404995},{"$f":"+AA1202+AA1193+AA1185+AA1179","v":57044.056525671185},12506.554695404995,null,{"$f":"ROUND(SUM(-H1204,J1204:N1204),0)","v":0},{"$f":"ROUND(J1204-Q1204-R1204,0)","v":0},{"$f":"ROUND(K1204-T1204-U1204,0)","v":0},{"$f":"ROUND(L1204-W1204-X1204-Y1204-Z1204-AA1204,0)","v":0}]
[1205]
[1206]
[1207]
[1208]
[1209]
[1210,"FERC",null,"DESCRIPTION &","FERC",null,"RANGE",{"$f":"+$H$250","v":"Jurisdictional"},"FUNC","GEN","TRN","DIS","RETAIL","MISC",null,"D / E","GEN","GEN","D / E","TRN","TRN","DIS","DIS","DIS","DIS","DIS","DIS","DIS","Unbundled ACCT:","Function","Generation","Transmission","Distribution"]
[1211,"ACCT",null,"CONSENSUS FACTOR","ACCT","FACTOR","NAME","ADJ Total","FACTOR","TOTAL","TOTAL","TOTAL","TOTAL","TOTAL",null,"SPLIT","DEMAND","ENERGY","SPLIT","DEMAND","ENERGY","SPLIT","SUBS","P & C","XFMR","METER","SERVICE","METER","TOTAL","Check","Check","Check","Check"]
[1212,408,"Taxes Other Than Income"]
[{"$f":"A1212+1","v":1213},null,null,"S",408,"S","ACCT408S",{"$f":"'JAM Download'!E1202","v":11801652.780000001},"GP",{"$f":"VLOOKUP($I1213,Func,2)*$H1213","v":5963498.0404476449},{"$f":"VLOOKUP($I1213,Func,3)*$H1213","v":2513334.8149019605},{"$f":"VLOOKUP($I1213,Func,5)*$H1213","v":3247199.1824571164},{"$f":"VLOOKUP($I1213,Func,6)*$H1213","v":77620.742193281403},{"$f":"VLOOKUP($I1213,Func,7)*$H1213","v":0},null,{"$f":"Demand","v":0.38},{"$f":"+$J1213*$P1213","v":2266129.2553701052},{"$f":"+$J1213*(1-$P1213)","v":3697368.7850775397},{"$f":"Demand","v":0.38},{"$f":"+$K1213*$S1213","v":955067.22966274503},{"$f":"+$K1213*(1-$S1213)","v":1558267.5852392155},"PLNT",{"$f":"+$L1213*VLOOKUP($V1213,DisFac,2)","v":381479.58774788701},{"$f":"+$L1213*VLOOKUP($V1213,DisFac,3)","v":1562735.1824799329},{"$f":"+$L1213*VLOOKUP($V1213,DisFac,4)","v":792505.28832438972},{"$f":"+$L1213*VLOOKUP($V1213,DisFac,5)","v":91794.090258756347},{"$f":"+$L1213*VLOOKUP($V1213,DisFac,6)","v":418685.03364615032},91794.090258756347,"UACCT408S",{"$f":"ROUND(SUM(-H1213,J1213:N1213),0)","v":0},{"$f":"ROUND(J1213-Q1213-R1213,0)","v":0},{"$f":"ROUND(K1213-T1213-U1213,0)","v":0},{"$f":"ROUND(L1213-W1213-X1213-Y1213-Z1213-AA1213,0)","v":0}]
[1214,null,null,"GPS",408,"GPS","ACCT408GPS",{"$f":"'JAM Download'!E1203","v":8292767.9042267213},"GP",4190421.9746704977,1766066.3869823313,2281737.1143596401,54542.428214253967,0,null,0.38,1592360.3503747892,2598061.6242957087,0.38,671105.22705328593,1094961.1599290455,"PLNT",268057.51197446417,1098100.4445443002,556876.44277113222,64501.7354506091,294200.97961913433,64501.7354506091,"UACCT408SGPP",0,0,0,0]
[1215,null,null,"SO",408,"SO","ACCT408SO",{"$f":"'JAM Download'!E1204","v":-143246.98027304033},"GP",-72384.190764026047,-30506.542546306518,-39414.096135784399,-942.15082692339047,0,null,0.38,-27505.9924903299,-44878.198273696151,0.38,-11592.486167596477,-18914.05637871004,"PLNT",-4630.3513583534805,-18968.2835133105,-9619.329726025373,-1114.1851469110713,-5081.9463911839739,-1114.1851469110713,"UACCT408SO",0,0,0,0]
[1216,null,null,"SE",408,"SE","ACCT408SE",{"$f":"'JAM Download'!E1205","v":31602.717424225921},"P",31602.717424225921,0,0,0,0,null,0.38,12009.03262120585,19593.684803020071,0.38,0,0,"PLNT",0,0,0,0,0,0,"UACCT408SE",0,0,0,0]
[1217,null,null,"SG",408,"SG","ACCT408SG",{"$f":"'JAM Download'!E1206","v":0},"P",0,0,0,0,0,null,0.38,0,0,0.38,0,0,"PLNT",0,0,0,0,0,0,"UACCT408OPRVWY",0,0,0,0]
[1218,null,null,"OPRV-ID",408,"OPRV-ID","ACCT408OPRVID",{"$f":"'JAM Download'!E1207","v":0},"DMSC",0,0,0,0,0,null,0.38,0,0,0.38,0,0,"PLNT",0,0,0,0,0,0,"UACCT408OPRVID",0,0,0,0]
[1219,null,null,"EXCTAX",408,"EXCTAX","ACCT408EXCTAX",{"$f":"'JAM Download'!E1208","v":0},"GP",0,0,0,0,0,null,0.38,0,0,0.38,0,0,"PLNT",0,0,0,0,0,0,"UACCT408EXCTAX",0,0,0,0]
[1220,null,null,"DGP",408,"DGP","ACCT408DGP",{"$f":"'JAM Download'!E1209","v":0},"GP",0,0,0,0,0,null,0.38,0,0,0.38,0,0,"PLNT",0,0,0,0,0,0,"UACCT408SGP",0,0,0,0]
[1221,null,null,null,null,null,"ACCT408",{"$f":"'JAM Download'!E1213","v":19982776.421377905},null,{"$f":"SUM(J1213:J1220)","v":10113138.541778341},{"$f":"SUM(K1213:K1220)","v":4248894.6593379853},{"$f":"SUM(L1213:L1220)","v":5489522.200680973},{"$f":"SUM(M1213:M1220)","v":131221.01958061196},{"$f":"SUM(N1213:N1220)","v":0},null,null,{"$f":"SUM(Q1213:Q1220)","v":3842992.6458757706},{"$f":"SUM(R1213:R1220)","v":6270145.8959025722},null,{"$f":"SUM(T1213:T1220)","v":1614579.9705484344},{"$f":"SUM(U1213:U1220)","v":2634314.6887895511},null,{"$f":"SUM(W1213:W1220)","v":644906.74836399767},{"$f":"SUM(X1213:X1220)","v":2641867.343510923},{"$f":"SUM(Y1213:Y1220)","v":1339762.4013694965},{"$f":"SUM(Z1213:Z1220)","v":155181.64056245438},{"$f":"SUM(AA1213:AA1220)","v":707804.06687410071},155181.64056245438,"UACCT408",0,0,0,0]
[1222]
[1223]
[1224]
[1225]
[1226]
[1227,"FERC",null,"DESCRIPTION &","FERC",null,"RANGE",{"$f":"+$H$250","v":"Jurisdictional"},"FUNC","GEN","TRN","DIS","RETAIL","MISC",null,"D / E","GEN","GEN","D / E","TRN","TRN","DIS","DIS","DIS","DIS","DIS","DIS","DIS","Unbundled ACCT:","Function","Generation","Transmission","Distribution"]
[1228,"ACCT",null,"CONSENSUS FACTOR","ACCT","FACTOR","NAME","ADJ Total","FACTOR","TOTAL","TOTAL","TOTAL","TOTAL","TOTAL",null,"SPLIT","DEMAND","ENERGY","SPLIT","DEMAND","ENERGY","SPLIT","SUBS","P & C","XFMR","METER","SERVICE","METER","TOTAL","Check","Check","Check","Check"]
[1229,41140,"Deferred Investment Tax Credit - Fed"]
[1230,null,null,"CAGE",41140,"CAGE","ACCT41140CAGE",{"$f":"'JAM Download'!E1217","v":0},"PTD",{"$f":"VLOOKUP($I1230,Func,2)*$H1230","v":0},{"$f":"VLOOKUP($I1230,Func,3)*$H1230","v":0},{"$f":"VLOOKUP($I1230,Func,5)*$H1230","v":0},{"$f":"VLOOKUP($I1230,Func,6)*$H1230","v":0},{"$f":"VLOOKUP($I1230,Func,7)*$H1230","v":0},null,{"$f":"Demand","v":0.38},{"$f":"+$J1230*$P1230","v":0},{"$f":"+$J1230*(1-$P1230)","v":0},{"$f":"Demand","v":0.38},{"$f":"+$K1230*$S1230","v":0},{"$f":"+$K1230*(1-$S1230)","v":0},"PLNT",{"$f":"+$L1230*VLOOKUP($V1230,DisFac,2)","v":0},{"$f":"+$L1230*VLOOKUP($V1230,DisFac,3)","v":0},{"$f":"+$L1230*VLOOKUP($V1230,DisFac,4)","v":0},{"$f":"+$L1230*VLOOKUP($V1230,DisFac,5)","v":0},{"$f":"+$L1230*VLOOKUP($V1230,DisFac,6)","v":0},0,"UACCT41140DGU",{"$f":"ROUND(SUM(-H1230,J1230:N1230),0)","v":0},{"$f":"ROUND(J1230-Q1230-R1230,0)","v":0},{"$f":"ROUND(K1230-T1230-U1230,0)","v":0},{"$f":"ROUND(L1230-W1230-X1230-Y1230-Z1230-AA1230,0)","v":0}]
[1231]
[1232,null,null,null,null,null,"ACCT41140",{"$f":"'JAM Download'!E1218","v":0},null,{"$f":"SUM(J1230:J1231)","v":0},{"$f":"SUM(K1230:K1231)","v":0},{"$f":"SUM(L1230:L1231)","v":0},{"$f":"SUM(M1230:M1231)","v":0},{"$f":"SUM(N1230:N1231)","v":0},null,null,{"$f":"SUM(Q1230:Q1231)","v":0},{"$f":"SUM(R1230:R1231)","v":0},null,{"$f":"SUM(T1230:T1231)","v":0},{"$f":"SUM(U1230:U1231)","v":0},null,{"$f":"SUM(W1230:W1231)","v":0},{"$f":"SUM(X1230:X1231)","v":0},{"$f":"SUM(Y1230:Y1231)","v":0},{"$f":"SUM(Z1230:Z1231)","v":0},{"$f":"SUM(AA1230:AA1231)","v":0},0,"UACCT41140",{"$f":"ROUND(SUM(-H1232,J1232:N1232),0)","v":0},{"$f":"ROUND(J1232-Q1232-R1232,0)","v":0},{"$f":"ROUND(K1232-T1232-U1232,0)","v":0},{"$f":"ROUND(L1232-W1232-X1232-Y1232-Z1232-AA1232,0)","v":0}]
[1233]
[1234,41141,"Deferred Investment Tax Credit - Idaho"]
[1235,null,null,"CAGE",41141,"CAGE","ACCT41141CAGE",{"$f":"'JAM Download'!E1222","v":0},"PTD",{"$f":"VLOOKUP($I1235,Func,2)*$H1235","v":0},{"$f":"VLOOKUP($I1235,Func,3)*$H1235","v":0},{"$f":"VLOOKUP($I1235,Func,5)*$H1235","v":0},{"$f":"VLOOKUP($I1235,Func,6)*$H1235","v":0},{"$f":"VLOOKUP($I1235,Func,7)*$H1235","v":0},null,{"$f":"Demand","v":0.38},{"$f":"+$J1235*$P1235","v":0},{"$f":"+$J1235*(1-$P1235)","v":0},{"$f":"Demand","v":0.38},{"$f":"+$K1235*$S1235","v":0},{"$f":"+$K1235*(1-$S1235)","v":0},"PLNT",{"$f":"+$L1235*VLOOKUP($V1235,DisFac,2)","v":0},{"$f":"+$L1235*VLOOKUP($V1235,DisFac,3)","v":0},{"$f":"+$L1235*VLOOKUP($V1235,DisFac,4)","v":0},{"$f":"+$L1235*VLOOKUP($V1235,DisFac,5)","v":0},{"$f":"+$L1235*VLOOKUP($V1235,DisFac,6)","v":0},0,"UACCT41141DGU",{"$f":"ROUND(SUM(-H1235,J1235:N1235),0)","v":0},{"$f":"ROUND(J1235-Q1235-R1235,0)","v":0},{"$f":"ROUND(K1235-T1235-U1235,0)","v":0},{"$f":"ROUND(L1235-W1235-X1235-Y1235-Z1235-AA1235,0)","v":0}]
[1236]
[1237,null,null,null,null,null,"ACCT41141",{"$f":"'JAM Download'!E1223","v":0},null,{"$f":"SUM(J1235:J1236)","v":0},{"$f":"SUM(K1235:K1236)","v":0},{"$f":"SUM(L1235:L1236)","v":0},{"$f":"SUM(M1235:M1236)","v":0},{"$f":"SUM(N1235:N1236)","v":0},null,null,{"$f":"SUM(Q1235:Q1236)","v":0},{"$f":"SUM(R1235:R1236)","v":0},null,{"$f":"SUM(T1235:T1236)","v":0},{"$f":"SUM(U1235:U1236)","v":0},null,{"$f":"SUM(W1235:W1236)","v":0},{"$f":"SUM(X1235:X1236)","v":0},{"$f":"SUM(Y1235:Y1236)","v":0},{"$f":"SUM(Z1235:Z1236)","v":0},{"$f":"SUM(AA1235:AA1236)","v":0},0,"UACCT41141",{"$f":"ROUND(SUM(-H1237,J1237:N1237),0)","v":0},{"$f":"ROUND(J1237-Q1237-R1237,0)","v":0},{"$f":"ROUND(K1237-T1237-U1237,0)","v":0},{"$f":"ROUND(L1237-W1237-X1237-Y1237-Z1237-AA1237,0)","v":0}]
[1238]
[1239,"TOTAL DEFERRED ITC",null,null,null,null,null,{"$f":"'JAM Download'!E1226","v":0},null,{"$f":"+J1237+J1232","v":0},{"$f":"+K1237+K1232","v":0},{"$f":"+L1237+L1232","v":0},{"$f":"+M1237+M1232","v":0},{"$f":"+N1237+N1232","v":0},null,null,{"$f":"+Q1237+Q1232","v":0},{"$f":"+R1237+R1232","v":0},{"$f":"+S1237+S1232","v":0},{"$f":"+T1237+T1232","v":0},{"$f":"+U1237+U1232","v":0},null,{"$f":"+W1237+W1232","v":0},{"$f":"+X1237+X1232","v":0},{"$f":"+Y1237+Y1232","v":0},{"$f":"+Z1237+Z1232","v":0},{"$f":"+AA1237+AA1232","v":0},0,null,{"$f":"ROUND(SUM(-H1239,J1239:N1239),0)","v":0},{"$f":"ROUND(J1239-Q1239-R1239,0)","v":0},{"$f":"ROUND(K1239-T1239-U1239,0)","v":0},{"$f":"ROUND(L1239-W1239-X1239-Y1239-Z1239-AA1239,0)","v":0}]
[1240]
[1241]
[1242]
[1243]
[1244,null,null,null,null,null,null,{"$f":"+$H$250","v":"Jurisdictional"}]
[1245,"FERC",null,"DESCRIPTION &","FERC",null,"RANGE","ADJ Total","FUNC","GEN","TRN","DIS","RETAIL","MISC",null,"D / E","GEN","GEN","D / E","TRN","TRN","DIS","DIS","DIS","DIS","DIS","DIS","DIS","Unbundled ACCT:","Function","Generation","Transmission","Distribution"]
[1246,"ACCT",null,"CONSENSUS FACTOR","ACCT","FACTOR","NAME",null,"FACTOR","TOTAL","TOTAL","TOTAL","TOTAL","TOTAL",null,"SPLIT","DEMAND","ENERGY","SPLIT","DEMAND","ENERGY","SPLIT","SUBS","P & C","XFMR","METER","SERVICE","METER","TOTAL","Check","Check","Check","Check"]
[1247,427,"Interest on Long-Term Debt"]
[1248,null,null,"S",427,"S","ACCT427S",{"$f":"'JAM Download'!E1230","v":-1016471.6107722446},"GP",{"$f":"VLOOKUP($I1248,Func,2)*$H1248","v":-513633.68945099076},{"$f":"VLOOKUP($I1248,Func,3)*$H1248","v":-216472.51748016238},{"$f":"VLOOKUP($I1248,Func,5)*$H1248","v":-279679.96051231911},{"$f":"VLOOKUP($I1248,Func,6)*$H1248","v":-6685.4433287726224},{"$f":"VLOOKUP($I1248,Func,7)*$H1248","v":0},null,{"$f":"Demand","v":0.38},{"$f":"+$J1248*$P1248","v":-195180.8019913765},{"$f":"+$J1248*(1-$P1248)","v":-318452.88745961426},{"$f":"Demand","v":0.38},{"$f":"+$K1248*$S1248","v":-82259.556642461699},{"$f":"+$K1248*(1-$S1248)","v":-134212.96083770067},"PLNT",{"$f":"+$L1248*VLOOKUP($V1248,DisFac,2)","v":-32856.683573334762},{"$f":"+$L1248*VLOOKUP($V1248,DisFac,3)","v":-134597.7531924842},{"$f":"+$L1248*VLOOKUP($V1248,DisFac,4)","v":-68258.161969802895},{"$f":"+$L1248*VLOOKUP($V1248,DisFac,5)","v":-7906.1881012814274},{"$f":"+$L1248*VLOOKUP($V1248,DisFac,6)","v":-36061.173675415812},-7906.1881012814274,"UACCT427S",{"$f":"ROUND(SUM(-H1248,J1248:N1248),0)","v":0},{"$f":"ROUND(J1248-Q1248-R1248,0)","v":0},{"$f":"ROUND(K1248-T1248-U1248,0)","v":0},{"$f":"ROUND(L1248-W1248-X1248-Y1248-Z1248-AA1248,0)","v":0}]
[1249,null,null,"INT",427,"SNP","ACCT427SNP",{"$f":"'JAM Download'!E1231","v":22566952.629244044},"GP",{"$f":"VLOOKUP($I1249,Func,2)*$H1249","v":11403316.15343217},{"$f":"VLOOKUP($I1249,Func,3)*$H1249","v":4805963.0940372739},{"$f":"VLOOKUP($I1249,Func,5)*$H1249","v":6209248.1023009503},{"$f":"VLOOKUP($I1249,Func,6)*$H1249","v":148425.27947365571},{"$f":"VLOOKUP($I1249,Func,7)*$H1249","v":0},null,{"$f":"Demand","v":0.38},{"$f":"+$J1249*$P1249","v":4333260.1383042242},{"$f":"+$J1249*(1-$P1249)","v":7070056.0151279457},{"$f":"Demand","v":0.38},{"$f":"+$K1249*$S1249","v":1826265.975734164},{"$f":"+$K1249*(1-$S1249)","v":2979697.1183031099},"PLNT",{"$f":"+$L1249*VLOOKUP($V1249,DisFac,2)","v":729459.84314326802},{"$f":"+$L1249*VLOOKUP($V1249,DisFac,3)","v":2988239.9942186479},{"$f":"+$L1249*VLOOKUP($V1249,DisFac,4)","v":1515417.3430987771},{"$f":"+$L1249*VLOOKUP($V1249,DisFac,5)","v":175527.35410284685},{"$f":"+$L1249*VLOOKUP($V1249,DisFac,6)","v":800603.56773740996},175527.35410284685,"UACCT427INT",{"$f":"ROUND(SUM(-H1249,J1249:N1249),0)","v":0},{"$f":"ROUND(J1249-Q1249-R1249,0)","v":0},{"$f":"ROUND(K1249-T1249-U1249,0)","v":0},{"$f":"ROUND(L1249-W1249-X1249-Y1249-Z1249-AA1249,0)","v":0}]
[1250,null,null,null,null,null,"ACCT427",{"$f":"'JAM Download'!E1232","v":21550481.0184718},null,{"$f":"SUM(J1248:J1249)","v":10889682.46398118},{"$f":"SUM(K1248:K1249)","v":4589490.5765571119},{"$f":"SUM(L1248:L1249)","v":5929568.1417886317},{"$f":"SUM(M1248:M1249)","v":141739.8361448831},{"$f":"SUM(N1248:N1249)","v":0},null,null,{"$f":"SUM(Q1248:Q1249)","v":4138079.3363128477},{"$f":"SUM(R1248:R1249)","v":6751603.1276683314},null,{"$f":"SUM(T1248:T1249)","v":1744006.4190917022},{"$f":"SUM(U1248:U1249)","v":2845484.157465409},null,{"$f":"SUM(W1248:W1249)","v":696603.15956993331},{"$f":"SUM(X1248:X1249)","v":2853642.2410261636},{"$f":"SUM(Y1248:Y1249)","v":1447159.1811289743},{"$f":"SUM(Z1248:Z1249)","v":167621.16600156541},{"$f":"SUM(AA1248:AA1249)","v":764542.39406199416},167621.16600156541,"UACCT427",{"$f":"ROUND(SUM(-H1250,J1250:N1250),0)","v":0},{"$f":"ROUND(J1250-Q1250-R1250,0)","v":0},{"$f":"ROUND(K1250-T1250-U1250,0)","v":0},{"$f":"ROUND(L1250-W1250-X1250-Y1250-Z1250-AA1250,0)","v":0}]
[1251]
[1252,428,"Amortization of Debt Disc & Exp"]
[1253,null,null,"INT",428,"SNP","ACCT428SNP",{"$f":"'JAM Download'!E1235","v":357894.42435394082},"GP",{"$f":"VLOOKUP($I1253,Func,2)*$H1253","v":180847.77938381812},{"$f":"VLOOKUP($I1253,Func,3)*$H1253","v":76218.859642475902},{"$f":"VLOOKUP($I1253,Func,5)*$H1253","v":98473.875128537446},{"$f":"VLOOKUP($I1253,Func,6)*$H1253","v":2353.9101991094244},{"$f":"VLOOKUP($I1253,Func,7)*$H1253","v":0},null,{"$f":"Demand","v":0.38},{"$f":"+$J1253*$P1253","v":68722.156165850887},{"$f":"+$J1253*(1-$P1253)","v":112125.62321796724},{"$f":"Demand","v":0.38},{"$f":"+$K1253*$S1253","v":28963.166664140845},{"$f":"+$K1253*(1-$S1253)","v":47255.692978335057},"PLNT",{"$f":"+$L1253*VLOOKUP($V1253,DisFac,2)","v":11568.66923683622},{"$f":"+$L1253*VLOOKUP($V1253,DisFac,3)","v":47391.176386677784},{"$f":"+$L1253*VLOOKUP($V1253,DisFac,4)","v":24033.347637796825},{"$f":"+$L1253*VLOOKUP($V1253,DisFac,5)","v":2783.7281527148343},{"$f":"+$L1253*VLOOKUP($V1253,DisFac,6)","v":12696.953714511781},2783.7281527148343,"UACCT428INT",{"$f":"ROUND(SUM(-H1253,J1253:N1253),0)","v":0},{"$f":"ROUND(J1253-Q1253-R1253,0)","v":0},{"$f":"ROUND(K1253-T1253-U1253,0)","v":0},{"$f":"ROUND(L1253-W1253-X1253-Y1253-Z1253-AA1253,0)","v":0}]
[1254,null,null,null,null,null,"ACCT428",{"$f":"'JAM Download'!E1236","v":357894.42435394082},null,{"$f":"SUM(J1253)","v":180847.77938381812},{"$f":"SUM(K1253)","v":76218.859642475902},{"$f":"SUM(L1253)","v":98473.875128537446},{"$f":"SUM(M1253)","v":2353.9101991094244},{"$f":"SUM(N1253)","v":0},null,null,{"$f":"SUM(Q1253)","v":68722.156165850887},{"$f":"SUM(R1253)","v":112125.62321796724},null,{"$f":"SUM(T1253)","v":28963.166664140845},{"$f":"SUM(U1253)","v":47255.692978335057},null,{"$f":"SUM(W1253)","v":11568.66923683622},{"$f":"SUM(X1253)","v":47391.176386677784},{"$f":"SUM(Y1253)","v":24033.347637796825},{"$f":"SUM(Z1253)","v":2783.7281527148343},{"$f":"SUM(AA1253)","v":12696.953714511781},2783.7281527148343,"UACCT428",{"$f":"ROUND(SUM(-H1254,J1254:N1254),0)","v":0},{"$f":"ROUND(J1254-Q1254-R1254,0)","v":0},{"$f":"ROUND(K1254-T1254-U1254,0)","v":0},{"$f":"ROUND(L1254-W1254-X1254-Y1254-Z1254-AA1254,0)","v":0}]
[1255]
[1256,429,"Amortization of Premium on Debt"]
[1257,null,null,"INT",429,"SNP","ACCT429SNP",{"$f":"'JAM Download'!E1239","v":-301.03835469636419},"GP",{"$f":"VLOOKUP($I1257,Func,2)*$H1257","v":-152.11781534309389},{"$f":"VLOOKUP($I1257,Func,3)*$H1257","v":-64.110526854457859},{"$f":"VLOOKUP($I1257,Func,5)*$H1257","v":-82.83005079719598},{"$f":"VLOOKUP($I1257,Func,6)*$H1257","v":-1.9799617016165161},{"$f":"VLOOKUP($I1257,Func,7)*$H1257","v":0},null,{"$f":"Demand","v":0.38},{"$f":"+$J1257*$P1257","v":-57.804769830375683},{"$f":"+$J1257*(1-$P1257)","v":-94.313045512718219},{"$f":"Demand","v":0.38},{"$f":"+$K1257*$S1257","v":-24.362000204693988},{"$f":"+$K1257*(1-$S1257)","v":-39.748526649763875},"PLNT",{"$f":"+$L1257*VLOOKUP($V1257,DisFac,2)","v":-9.7308393651851866},{"$f":"+$L1257*VLOOKUP($V1257,DisFac,3)","v":-39.862486799910869},{"$f":"+$L1257*VLOOKUP($V1257,DisFac,4)","v":-20.215345471750272},{"$f":"+$L1257*VLOOKUP($V1257,DisFac,5)","v":-2.3414976205007076},{"$f":"+$L1257*VLOOKUP($V1257,DisFac,6)","v":-10.679881539848944},-2.3414976205007076,"UACCT429INC",{"$f":"ROUND(SUM(-H1257,J1257:N1257),0)","v":0},{"$f":"ROUND(J1257-Q1257-R1257,0)","v":0},{"$f":"ROUND(K1257-T1257-U1257,0)","v":0},{"$f":"ROUND(L1257-W1257-X1257-Y1257-Z1257-AA1257,0)","v":0}]
[1258,null,null,null,null,null,"ACCT429",{"$f":"'JAM Download'!E1240","v":-301.03835469636419},null,{"$f":"SUM(J1257)","v":-152.11781534309389},{"$f":"SUM(K1257)","v":-64.110526854457859},{"$f":"SUM(L1257)","v":-82.83005079719598},{"$f":"SUM(M1257)","v":-1.9799617016165161},{"$f":"SUM(N1257)","v":0},null,null,{"$f":"SUM(Q1257)","v":-57.804769830375683},{"$f":"SUM(R1257)","v":-94.313045512718219},null,{"$f":"SUM(T1257)","v":-24.362000204693988},{"$f":"SUM(U1257)","v":-39.748526649763875},null,{"$f":"SUM(W1257)","v":-9.7308393651851866},{"$f":"SUM(X1257)","v":-39.862486799910869},{"$f":"SUM(Y1257)","v":-20.215345471750272},{"$f":"SUM(Z1257)","v":-2.3414976205007076},{"$f":"SUM(AA1257)","v":-10.679881539848944},-2.3414976205007076,"UACCT429",{"$f":"ROUND(SUM(-H1258,J1258:N1258),0)","v":0},{"$f":"ROUND(J1258-Q1258-R1258,0)","v":0},{"$f":"ROUND(K1258-T1258-U1258,0)","v":0},{"$f":"ROUND(L1258-W1258-X1258-Y1258-Z1258-AA1258,0)","v":0}]
[1259]
[1260,431,"Other Interest Expense"]
[1261,null,null,"INT",431,"SNP","ACCT431SNP",{"$f":"'JAM Download'!E1245","v":841038.52713498205},"GP",{"$f":"VLOOKUP($I1261,Func,2)*$H1261","v":424985.52550284727},{"$f":"VLOOKUP($I1261,Func,3)*$H1261","v":179111.47280188138},{"$f":"VLOOKUP($I1261,Func,5)*$H1261","v":231409.92779891385},{"$f":"VLOOKUP($I1261,Func,6)*$H1261","v":5531.6010313397428},{"$f":"VLOOKUP($I1261,Func,7)*$H1261","v":0},null,{"$f":"Demand","v":0.38},{"$f":"+$J1261*$P1261","v":161494.49969108196},{"$f":"+$J1261*(1-$P1261)","v":263491.02581176528},{"$f":"Demand","v":0.38},{"$f":"+$K1261*$S1261","v":68062.359664714924},{"$f":"+$K1261*(1-$S1261)","v":111049.11313716645},"PLNT",{"$f":"+$L1261*VLOOKUP($V1261,DisFac,2)","v":27185.940528199731},{"$f":"+$L1261*VLOOKUP($V1261,DisFac,3)","v":111367.49408542929},{"$f":"+$L1261*VLOOKUP($V1261,DisFac,4)","v":56477.469119289664},{"$f":"+$L1261*VLOOKUP($V1261,DisFac,5)","v":6541.6571653212159},{"$f":"+$L1261*VLOOKUP($V1261,DisFac,6)","v":29837.366900673944},6541.6571653212159,"UACCT431INT",{"$f":"ROUND(SUM(-H1261,J1261:N1261),0)","v":0},{"$f":"ROUND(J1261-Q1261-R1261,0)","v":0},{"$f":"ROUND(K1261-T1261-U1261,0)","v":0},{"$f":"ROUND(L1261-W1261-X1261-Y1261-Z1261-AA1261,0)","v":0}]
[1262,null,null,null,null,null,"ACCT431",{"$f":"'JAM Download'!E1246","v":841038.52713498205},null,{"$f":"SUM(J1261)","v":424985.52550284727},{"$f":"SUM(K1261)","v":179111.47280188138},{"$f":"SUM(L1261)","v":231409.92779891385},{"$f":"SUM(M1261)","v":5531.6010313397428},{"$f":"SUM(N1261)","v":0},null,null,{"$f":"SUM(Q1261)","v":161494.49969108196},{"$f":"SUM(R1261)","v":263491.02581176528},null,{"$f":"SUM(T1261)","v":68062.359664714924},{"$f":"SUM(U1261)","v":111049.11313716645},null,{"$f":"SUM(W1261)","v":27185.940528199731},{"$f":"SUM(X1261)","v":111367.49408542929},{"$f":"SUM(Y1261)","v":56477.469119289664},{"$f":"SUM(Z1261)","v":6541.6571653212159},{"$f":"SUM(AA1261)","v":29837.366900673944},6541.6571653212159,"UACCT431",{"$f":"ROUND(SUM(-H1262,J1262:N1262),0)","v":0},{"$f":"ROUND(J1262-Q1262-R1262,0)","v":0},{"$f":"ROUND(K1262-T1262-U1262,0)","v":0},{"$f":"ROUND(L1262-W1262-X1262-Y1262-Z1262-AA1262,0)","v":0}]
[1263]
[1264,432,"AFUDC - Borrowed"]
[1265,null,null,"DOTH",432,"SNP","ACCT432SNP",{"$f":"'JAM Download'!E1249","v":-1739154.1425356835},"GP",{"$f":"VLOOKUP($I1265,Func,2)*$H1265","v":-878812.69805058197},{"$f":"VLOOKUP($I1265,Func,3)*$H1265","v":-370378.3475415805},{"$f":"VLOOKUP($I1265,Func,5)*$H1265","v":-478524.4927201441},{"$f":"VLOOKUP($I1265,Func,6)*$H1265","v":-11438.604223377231},{"$f":"VLOOKUP($I1265,Func,7)*$H1265","v":0},null,{"$f":"Demand","v":0.38},{"$f":"+$J1265*$P1265","v":-333948.82525922114},{"$f":"+$J1265*(1-$P1265)","v":-544863.87279136083},{"$f":"Demand","v":0.38},{"$f":"+$K1265*$S1265","v":-140743.77206580059},{"$f":"+$K1265*(1-$S1265)","v":-229634.57547577991},"PLNT",{"$f":"+$L1265*VLOOKUP($V1265,DisFac,2)","v":-56216.855189035858},{"$f":"+$L1265*VLOOKUP($V1265,DisFac,3)","v":-230292.94429862328},{"$f":"+$L1265*VLOOKUP($V1265,DisFac,4)","v":-116787.78225932509},{"$f":"+$L1265*VLOOKUP($V1265,DisFac,5)","v":-13527.263961227178},{"$f":"+$L1265*VLOOKUP($V1265,DisFac,6)","v":-61699.647011932706},-13527.263961227178,"UACCT432DOTH",{"$f":"ROUND(SUM(-H1265,J1265:N1265),0)","v":0},{"$f":"ROUND(J1265-Q1265-R1265,0)","v":0},{"$f":"ROUND(K1265-T1265-U1265,0)","v":0},{"$f":"ROUND(L1265-W1265-X1265-Y1265-Z1265-AA1265,0)","v":0}]
[1266,null,null,null,null,null,"ACCT432",{"$f":"'JAM Download'!E1250","v":-1739154.1425356835},null,{"$f":"SUM(J1265)","v":-878812.69805058197},{"$f":"SUM(K1265)","v":-370378.3475415805},{"$f":"SUM(L1265)","v":-478524.4927201441},{"$f":"SUM(M1265)","v":-11438.604223377231},{"$f":"SUM(N1265)","v":0},null,null,{"$f":"SUM(Q1265)","v":-333948.82525922114},{"$f":"SUM(R1265)","v":-544863.87279136083},null,{"$f":"SUM(T1265)","v":-140743.77206580059},{"$f":"SUM(U1265)","v":-229634.57547577991},null,{"$f":"SUM(W1265)","v":-56216.855189035858},{"$f":"SUM(X1265)","v":-230292.94429862328},{"$f":"SUM(Y1265)","v":-116787.78225932509},{"$f":"SUM(Z1265)","v":-13527.263961227178},{"$f":"SUM(AA1265)","v":-61699.647011932706},-13527.263961227178,"UACCT432",{"$f":"ROUND(SUM(-H1266,J1266:N1266),0)","v":0},{"$f":"ROUND(J1266-Q1266-R1266,0)","v":0},{"$f":"ROUND(K1266-T1266-U1266,0)","v":0},{"$f":"ROUND(L1266-W1266-X1266-Y1266-Z1266-AA1266,0)","v":0}]
[1267]
[1268,null,"Total Electric Interest Deductions for Tax",null,null,null,null,{"$f":"'JAM Download'!E1252","v":21009958.789070345},null,{"$f":"+J1250+J1254+J1258+J1262+J1266","v":10616550.953001918},{"$f":"+K1250+K1254+K1258+K1262+K1266","v":4474378.4509330345},{"$f":"+L1250+L1254+L1258+L1262+L1266","v":5780844.6219451418},{"$f":"+M1250+M1254+M1258+M1262+M1266","v":138184.76319025346},{"$f":"+N1250+N1254+N1258+N1262+N1266","v":0},null,null,{"$f":"+Q1250+Q1254+Q1258+Q1262+Q1266","v":4034289.3621407286},{"$f":"+R1250+R1254+R1258+R1262+R1266","v":6582261.5908611901},null,{"$f":"+T1250+T1254+T1258+T1262+T1266","v":1700263.8113545526},{"$f":"+U1250+U1254+U1258+U1262+U1266","v":2774114.6395784812},null,{"$f":"+W1250+W1254+W1258+W1262+W1266","v":679131.1833065683},{"$f":"+X1250+X1254+X1258+X1262+X1266","v":2782068.1047128476},{"$f":"+Y1250+Y1254+Y1258+Y1262+Y1266","v":1410862.0002812638},{"$f":"+Z1250+Z1254+Z1258+Z1262+Z1266","v":163416.9458607538},{"$f":"+AA1250+AA1254+AA1258+AA1262+AA1266","v":745366.38778370735},163416.9458607538,null,{"$f":"ROUND(SUM(-H1268,J1268:N1268),0)","v":0},{"$f":"ROUND(J1268-Q1268-R1268,0)","v":0},{"$f":"ROUND(K1268-T1268-U1268,0)","v":0},{"$f":"ROUND(L1268-W1268-X1268-Y1268-Z1268-AA1268,0)","v":0}]
[1269]
[1270]
[1271,419,"Interest & Dividends"]
[1272,null,null,"DOTH",419,"SNP","ACCT419SNP",{"$f":"'JAM Download'!E1269","v":0}]
[1273,null,"Total Operating Deductions for Tax",null,null,null,"ACCT419",{"$f":"'JAM Download'!E1270","v":0}]
[1274]
[1275]
[1276]
[{"$f":"A1276+1","v":1277}]
[1278,"FERC",null,"DESCRIPTION &","FERC",null,"RANGE",{"$f":"+$H$250","v":"Jurisdictional"},"FUNC","GEN","TRN","DIS","RETAIL","MISC",null,"D / E","GEN","GEN","D / E","TRN","TRN","DIS","DIS","DIS","DIS","DIS","DIS","DIS","Unbundled ACCT:","Function","Generation","Transmission","Distribution"]
[1279,"ACCT",null,"CONSENSUS FACTOR","ACCT","FACTOR","NAME","ADJ Total","FACTOR","TOTAL","TOTAL","TOTAL","TOTAL","TOTAL",null,"SPLIT","DEMAND","ENERGY","SPLIT","DEMAND","ENERGY","SPLIT","SUBS","P & C","XFMR","METER","SERVICE","METER","TOTAL","Check","Check","Check","Check"]
[1280,41010,"Deferred Income Tax - Federal-DR"]
[1281,null,null,"S",410,"S","ACCT41010S",{"$f":"'JAM Download'!E1272","v":324347.39841468039},"P",{"$f":"VLOOKUP($I1281,Func,2)*$H1281","v":324347.39841468039},{"$f":"VLOOKUP($I1281,Func,3)*$H1281","v":0},{"$f":"VLOOKUP($I1281,Func,5)*$H1281","v":0},{"$f":"VLOOKUP($I1281,Func,6)*$H1281","v":0},{"$f":"VLOOKUP($I1281,Func,7)*$H1281","v":0},null,{"$f":"Demand","v":0.38},{"$f":"+$J1281*$P1281","v":123252.01139757855},{"$f":"+$J1281*(1-$P1281)","v":201095.38701710184},{"$f":"Demand","v":0.38},{"$f":"+$K1281*$S1281","v":0},{"$f":"+$K1281*(1-$S1281)","v":0},"PLNT",{"$f":"+$L1281*VLOOKUP($V1281,DisFac,2)","v":0},{"$f":"+$L1281*VLOOKUP($V1281,DisFac,3)","v":0},{"$f":"+$L1281*VLOOKUP($V1281,DisFac,4)","v":0},{"$f":"+$L1281*VLOOKUP($V1281,DisFac,5)","v":0},{"$f":"+$L1281*VLOOKUP($V1281,DisFac,6)","v":0},0,"UACCT41010S",{"$f":"ROUND(SUM(-H1281,J1281:N1281),0)","v":0},{"$f":"ROUND(J1281-Q1281-R1281,0)","v":0},{"$f":"ROUND(K1281-T1281-U1281,0)","v":0},{"$f":"ROUND(L1281-W1281-X1281-Y1281-Z1281-AA1281,0)","v":0}]
[1282,null,null,"JGB",410,"JBG","ACCT41010JBG",{"$f":"'JAM Download'!E1286","v":858505.34052036924},"P",858505.34052036924,0,0,0,0,null,0.38,326232.02939774032,532273.31112262898,0.38,0,0,"PLNT",0,0,0,0,0,0,"UACCT41010TROJP",0,0,0,0]
[1283,null,null,"DGP",410,"DGP","ACCT41010DGP",{"$f":"'JAM Download'!E1274","v":-3802632.6203047936},"GP",-1921509.8598867545,-809826.31255602022,-1046286.1233101358,-25010.324551883696,0,null,0.38,-730173.74675696669,-1191336.1131297878,0.38,-307733.99877128768,-502092.31378473254,"PLNT",-122917.25162503382,-503531.82664946665,-255354.61153826455,-29577.145546994256,-134905.28795037649,-29577.145546994256,"UACCT41010SG",0,0,0,0]
[1284,null,null,"SO",410,"SO","ACCT41010SO",{"$f":"'JAM Download'!E1275","v":160278.21239455871},"LABOR",69844.863531793992,11544.563707073674,55518.48225514072,23370.302900550319,0,null,0.38,26541.048142081716,43303.815389712276,0.38,4386.934208687996,7157.6294983856778,"DISom",7286.0634804032834,40524.57381713677,382.24834960031808,7325.5966080003673,0,7325.5966080003673,"UACCT41010SO",0,0,0,0]
[1285,null,null,"SNP",410,"SNP","ACCT41010SNP",{"$f":"'JAM Download'!E1276","v":1877779.9986397254},"GP",948861.78665220679,399900.75401182729,516667.09655706724,12350.361418624487,0,null,0.38,360567.47892783856,588294.30772436818,0.38,151962.28652449438,247938.46748733291,"PLNT",60697.832169428577,248649.31408627829,126096.79398072815,14605.505677419389,66617.650643212823,14605.505677419389,"UACCT41010SNP",0,0,0,0]
[1286,null,null,"SE",410,"SE","ACCT41010SE",{"$f":"'JAM Download'!E1277","v":87894.064119274117},"P",87894.064119274117,0,0,0,0,null,0.38,33399.744365324164,54494.319753949952,0.38,0,0,"PLNT",0,0,0,0,0,0,"UACCT41010SE",0,0,0,0]
[1287,null,null,"SG/CAGW",410,"SG","ACCT41010SG",{"$f":"'JAM Download'!E1278+'JAM Download'!E1284","v":5340904.816117024},"PT",3850702.9215321024,1490201.8945849212,0,0,0,null,0.38,1463267.1101821989,2387435.8113499037,0.38,566276.71994227008,923925.17464265111,"PLNT",0,0,0,0,0,0,"UACCT41010SG",0,0,0,0]
[1288,null,null,"SGPS",410,"GPS","ACCT41010SGPS",{"$f":"'JAM Download'!E1279","v":2735737.2706408286},"GP",1382396.5301109434,582615.32133692049,752732.18033469049,17993.238858274821,0,null,0.38,525310.68144215853,857085.84866878483,0.38,221393.8221080298,361221.49922889069,"PLNT",88430.658454823046,362257.13148392161,183710.39165998824,21278.758037266027,97055.240698691588,21278.758037266027,"UACCT41010SGPP",0,0,0,0]
[1289,null,null,"TAXDEPR",410,"TAXDEPR","ACCT41010DITEXP",{"$f":"'JAM Download'!E1280","v":28802964.528259911},"TAXDEPR",16562815.732666278,5141672.7735709958,6952354.6640483057,146121.35797433229,0,null,0.38,6293869.978413186,10268945.754253093,0.38,1953835.6539569783,3187837.1196140172,"PLNT",816759.68799406185,3345864.7357645496,1696778.5244993307,196534.00844343306,896417.7073469304,196534.00844343306,"UACCT41010DITEXP",0,0,0,0]
[1290,null,null,"CAEW",410,"CAEW","ACCT41010CAEW",{"$f":"'JAM Download'!E1281","v":0},"CUST",0,0,0,0,0,null,0.38,0,0,0.38,0,0,"PLNT",0,0,0,0,0,0,"UACCT41010BADDEBT",0,0,0,0]
[1291,null,null,"CN",410,"CN","ACCT41010CN",{"$f":"'JAM Download'!E1282","v":1.2665457234106725E-6},"CUST",0,0,0,1.2665457234106725E-6,0,null,0.38,0,0,0.38,0,0,"PLNT",0,0,0,0,0,0,"UACCT41010CN",0,0,0,0]
[1292,null,null,"JBE",410,"JBE","ACCT41010JBE",{"$f":"'JAM Download'!E1283","v":2057505.9280479145},"P",2057505.9280479145,0,0,0,0,null,0.38,781852.25265820755,1275653.6753897071,0.38,0,0,"PLNT",0,0,0,0,0,0,"UACCT41010SGCT",0,0,0,0]
[1293,null,null,"SNPD",410,"SNPD","ACCT41010SNPD",{"$f":"'JAM Download'!E1288","v":6.3812767621129751E-5},"DPW",0,0,6.3812767621129751E-5,0,0,null,null,0,0,null,0,0,"PLNT",7.4966969740180934E-6,3.0710298768151626E-5,1.5574023323106877E-5,1.8039038018735357E-6,8.227844753979615E-6,1.8039038018735357E-6,"UACCT41010SNPD",0,0,0,0]
[1294,null,null,null,null,null,"ACCT41010",{"$f":"'JAM Download'!E1289","v":38443284.936914578},null,{"$f":"SUM(J1281:J1293)","v":24221364.705708809},{"$f":"SUM(K1281:K1293)","v":6816108.9946557181},{"$f":"SUM(L1281:L1293)","v":7230986.2999488804},{"$f":"SUM(M1281:M1293)","v":174824.93660116475},{"$f":"SUM(N1281:N1293)","v":0},null,null,{"$f":"SUM(Q1281:Q1293)","v":9204118.5881693475},{"$f":"SUM(R1281:R1293)","v":15017246.117539462},null,{"$f":"SUM(T1281:T1293)","v":2590121.4179691728},{"$f":"SUM(U1281:U1293)","v":4225987.5766865453},null,{"$f":"SUM(W1281:W1293)","v":850256.99048117967},{"$f":"SUM(X1281:X1293)","v":3493763.9285331299},{"$f":"SUM(Y1281:Y1293)","v":1751613.346966957},{"$f":"SUM(Z1281:Z1293)","v":210166.72322092851},{"$f":"SUM(AA1281:AA1293)","v":925185.31074668618},210166.72322092851,"UACCT41010",0,0,0,0]
[1295]
[1296,41011,"Deferred Income Tax - State-DR"]
[1297,null,null,"S",410,"S","ACCT41011S",0,"CUST",{"$f":"VLOOKUP($I1297,Func,2)*$H1297","v":0},{"$f":"VLOOKUP($I1297,Func,3)*$H1297","v":0},{"$f":"VLOOKUP($I1297,Func,5)*$H1297","v":0},{"$f":"VLOOKUP($I1297,Func,6)*$H1297","v":0},{"$f":"VLOOKUP($I1297,Func,7)*$H1297","v":0},null,{"$f":"Demand","v":0.38},{"$f":"+$J1297*$P1297","v":0},{"$f":"+$J1297*(1-$P1297)","v":0},{"$f":"Demand","v":0.38},{"$f":"+$K1297*$S1297","v":0},{"$f":"+$K1297*(1-$S1297)","v":0},"PLNT",{"$f":"+$L1297*VLOOKUP($V1297,DisFac,2)","v":0},{"$f":"+$L1297*VLOOKUP($V1297,DisFac,3)","v":0},{"$f":"+$L1297*VLOOKUP($V1297,DisFac,4)","v":0},{"$f":"+$L1297*VLOOKUP($V1297,DisFac,5)","v":0},{"$f":"+$L1297*VLOOKUP($V1297,DisFac,6)","v":0},0,"UACCT41011S",{"$f":"ROUND(SUM(-H1297,J1297:N1297),0)","v":0},{"$f":"ROUND(J1297-Q1297-R1297,0)","v":0},{"$f":"ROUND(K1297-T1297-U1297,0)","v":0},{"$f":"ROUND(L1297-W1297-X1297-Y1297-Z1297-AA1297,0)","v":0}]
[1298,null,null,"SG",410,"SG","ACCT41011SG",0,"PT",0,0,0,0,0,null,0.38,0,0,0.38,0,0,"PLNT",0,0,0,0,0,0,"UACCT41011SG",0,0,0,0]
[1299,null,null,"SO",410,"SO","ACCT41011SO",0,"LABOR",0,0,0,0,0,null,0.38,0,0,0.38,0,0,"DISom",0,0,0,0,0,0,"UACCT41011SO",0,0,0,0]
[1300,null,null,"SE",410,"SE","ACCT41011SE",0,"P",0,0,0,0,0,null,0.38,0,0,0.38,0,0,"PLNT",0,0,0,0,0,0,"UACCT41011SE",0,0,0,0]
[1301,null,null,"SG",410,"SG","ACCT41011SG",0,"PT",0,0,0,0,0,null,0.38,0,0,0.38,0,0,"PLNT",0,0,0,0,0,0,"UACCT41011SG",0,0,0,0]
[1302,null,null,"SGPP",410,"GPS","ACCT41011SGPP",0,"GP",0,0,0,0,0,null,0.38,0,0,0.38,0,0,"PLNT",0,0,0,0,0,0,"UACCT41011SGPP",0,0,0,0]
[1303,null,null,"TROJP",410,"TROJP","ACCT41011TROJP",0,"P",0,0,0,0,0,null,0.38,0,0,0.38,0,0,"PLNT",0,0,0,0,0,0,"UACCT41011TROJP",0,0,0,0]
[1304,null,null,"SNP",410,"SNP","ACCT41011SNP",0,"GP",0,0,0,0,0,null,0.38,0,0,0.38,0,0,"PLNT",0,0,0,0,0,0,"UACCT41011DNPU",0,0,0,0]
[1305,null,null,"BADDEBT",410,"BADDEBT","ACCT41011BADDEBT",0,"CUST",0,0,0,0,0,null,0.38,0,0,0.38,0,0,"PLNT",0,0,0,0,0,0,"UACCT41011BADDEBT",0,0,0,0]
[1306,null,null,"DITEXP",410,"DITEXP","ACCT41011DITEXP",0,"DITEXP",0,0,0,0,0,null,0.38,0,0,0.38,0,0,"PLNT",0,0,0,0,0,0,"UACCT41011DITEXP",0,0,0,0]
[1307,null,null,"P",410,"SGCT","ACCT41011SGCT",0,"P",0,0,0,0,0,null,0.38,0,0,0.38,0,0,"PLNT",0,0,0,0,0,0,"UACCT41011SGCT",0,0,0,0]
[1308,null,null,"DPW",410,"SNPD","ACCT41011SNPD",0,"DPW",0,0,0,0,0,null,null,0,0,null,0,0,"PLNT",0,0,0,0,0,0,"UACCT41011SNPD",0,0,0,0]
[1309,null,null,null,null,null,"ACCT41011",0,null,{"$f":"SUM(J1297:J1308)","v":0},{"$f":"SUM(K1297:K1308)","v":0},{"$f":"SUM(L1297:L1308)","v":0},{"$f":"SUM(M1297:M1308)","v":0},{"$f":"SUM(N1297:N1308)","v":0},0,null,0,0,null,0,0,null,{"$f":"SUM(W1297:W1308)","v":0},{"$f":"SUM(X1297:X1308)","v":0},{"$f":"SUM(Y1297:Y1308)","v":0},{"$f":"SUM(Z1297:Z1308)","v":0},{"$f":"SUM(AA1297:AA1308)","v":0},0,"UACCT41011",0,0,0,0]
[1310]
[1311,41110,"Deferred Income Tax - Federal-CR"]
[1312,null,null,"S",411,"S","ACCT41110S",{"$f":"'JAM Download'!E1294","v":-262877},"GP",{"$f":"VLOOKUP($I1312,Func,2)*$H1312","v":-132834.48544050078},{"$f":"VLOOKUP($I1312,Func,3)*$H1312","v":-55983.507433522602},{"$f":"VLOOKUP($I1312,Func,5)*$H1312","v":-72330.036766831516},{"$f":"VLOOKUP($I1312,Func,6)*$H1312","v":-1728.9703591451732},{"$f":"VLOOKUP($I1312,Func,7)*$H1312","v":0},null,{"$f":"Demand","v":0.38},{"$f":"+$J1312*$P1312","v":-50477.104467390294},{"$f":"+$J1312*(1-$P1312)","v":-82357.380973110485},{"$f":"Demand","v":0.38},{"$f":"+$K1312*$S1312","v":-21273.732824738589},{"$f":"+$K1312*(1-$S1312)","v":-34709.774608784013},"PLNT",{"$f":"+$L1312*VLOOKUP($V1312,DisFac,2)","v":-8497.3021540124737},{"$f":"+$L1312*VLOOKUP($V1312,DisFac,3)","v":-34809.288514314117},{"$f":"+$L1312*VLOOKUP($V1312,DisFac,4)","v":-17652.731914965778},{"$f":"+$L1312*VLOOKUP($V1312,DisFac,5)","v":-2044.6759038568405},{"$f":"+$L1312*VLOOKUP($V1312,DisFac,6)","v":-9326.0382796823014},-2044.6759038568405,"UACCT41110S",{"$f":"ROUND(SUM(-H1312,J1312:N1312),0)","v":0},{"$f":"ROUND(J1312-Q1312-R1312,0)","v":0},{"$f":"ROUND(K1312-T1312-U1312,0)","v":0},{"$f":"ROUND(L1312-W1312-X1312-Y1312-Z1312-AA1312,0)","v":0}]
[1313,null,null,"SE",411,"SE","ACCT41110SE",{"$f":"'JAM Download'!E1309","v":0},"P",0,0,0,0,0,null,0.38,0,0,0.38,0,0,"PLNT",0,0,0,0,0,0,"UACCT41110SE",0,0,0,0]
[1314,null,null,"DGP",411,"SCHMDEXP","ACCT41110SCHMDEXP",{"$f":"'JAM Download'!E1296","v":-17466099.9759509},"GP",-8825802.1924998406,-3719661.8108023759,-4805759.5507925134,-114876.42185617355,0,null,0.38,-3353804.8331499393,-5471997.3593499009,0.38,-1413471.4881049029,-2306190.3226974732,"PLNT",-564578.60120073182,-2312802.235580632,-1172884.5828104073,-135852.56129361389,-619641.56990712846,-135852.56129361389,"UACCT41110SG",0,0,0,0]
[1315,null,null,"SNP",411,"SNP","ACCT41110SNP",{"$f":"'JAM Download'!E1297","v":-1225329.3332307551},"GP",-619171.67144656717,-260951.82855646277,-337146.710149833,-8059.1230778923009,0,null,0.38,-235285.23514969554,-383886.43629687163,0.38,-99161.694851455861,-161790.13370500691,"PLNT",-39607.853036349174,-162253.99059439014,-82283.388151364648,-9530.6982426986506,-43470.780125030382,-9530.6982426986506,"UACCT41110SNP",0,0,0,0]
[1316,null,null,"SG/CAGW",411,"SG","ACCT41110SG",{"$f":"'JAM Download'!E1298+'JAM Download'!E1307+'JAM Download'!E1308","v":-34732.353941705791},"PT",-25041.445485308021,-9690.9084563977667,0,0,0,null,0.38,-9515.7492844170483,-15525.696200890972,0.38,-3682.5452134311513,-6008.363242966615,"PLNT",0,0,0,0,0,0,"UACCT41110SG",0,0,0,0]
[1317,null,null,"SGPP",411,"GPS","ACCT41110GPS",{"$f":"'JAM Download'!E1304","v":0},"GP",0,0,0,0,0,null,0.38,0,0,0.38,0,0,"PLNT",0,0,0,0,0,0,"UACCT41110SGPP",0,0,0,0]
[1318,null,null,"SO",411,"SO","ACCT41110SO",{"$f":"'JAM Download'!E1300","v":-281008.55272460479},"LABOR",-122455.84551442924,-20240.562274151656,-97338.048103370238,-40974.09683265366,0,null,0.38,-46533.221295483112,-75922.624218946134,0.38,-7691.4136641776295,-12549.148609974027,"DISom",-12774.326111446153,-71049.905461271672,-670.17877163571859,-12843.637759016729,0,-12843.637759016729,"UACCT41110SO",0,0,0,0]
[1319,null,null,"SNPD",411,"SNPD","ACCT41110SNPD",{"$f":"'JAM Download'!E1299","v":-227122.40002504195},"PT",-163751.44651195165,-63370.953513090273,0,0,0,null,0.38,-62225.549674541631,-101525.89683741002,0.38,-24080.962334974305,-39289.991178115968,"PLNT",0,0,0,0,0,0,"UACCT41110SG",0,0,0,0]
[1320,null,null,"BADDEBT",411,"BADDEBT","ACCT41110BADDEBT",{"$f":"'JAM Download'!E1303","v":0},"CUST",0,0,0,0,0,null,0.38,0,0,0.38,0,0,"PLNT",0,0,0,0,0,0,"UACCT41110BADDEBT",0,0,0,0]
[1321,null,null,"CIAC",411,"CIAC","ACCT41110CIAC",{"$f":"'JAM Download'!E1295","v":-1009703.3463381826},"DPW",0,0,-1009703.3463381826,0,0,null,{"$f":"Demand","v":0.38},0,0,{"$f":"Demand","v":0.38},0,0,"PLNT",-118619.52244558337,-485926.1334244429,-246426.28821011973,-28542.998104046696,-130188.40415398986,-28542.998104046696,"UACCT41110CN",0,0,0,0]
[1322,null,null,"DITEXP",411,"DITEXP","ACCT41110DITEXP",{"$f":"'JAM Download'!E1303","v":0},"DITEXP",0,0,0,0,0,null,0.38,0,0,0.38,0,0,"PLNT",0,0,0,0,0,0,"UACCT41110DITEXP",0,0,0,0]
[1323,null,null,"TROJD",411,"TROJD","ACCT41110TROJP",{"$f":"'JAM Download'!E1305","v":0},"P",0,0,0,0,0,null,0.38,0,0,0.38,0,0,"PLNT",0,0,0,0,0,0,"UACCT41110TROJP",0,0,0,0]
[1324,null,null,"JBE",411,"JBE","ACCT41110JBE",{"$f":"'JAM Download'!E1306","v":-1521742.2372750107},"P",-1521742.2372750107,0,0,0,0,null,0.38,-578262.05016450409,-943480.18711050658,0.38,0,0,"PLNT",0,0,0,0,0,0,"UACCT41110TROJP",0,0,0,0]
[1325,null,null,null,null,null,"ACCT41110",{"$f":"'JAM Download'!E1311","v":-22028615.199486203},null,{"$f":"SUM(J1312:J1324)","v":-11410799.324173609},{"$f":"SUM(K1312:K1324)","v":-4129899.5710360007},{"$f":"SUM(L1312:L1324)","v":-6322277.6921507306},{"$f":"SUM(M1312:M1324)","v":-165638.61212586469},{"$f":"SUM(N1312:N1324)","v":0},null,null,{"$f":"SUM(Q1312:Q1324)","v":-4336103.7431859709},{"$f":"SUM(R1312:R1324)","v":-7074695.5809876379},null,{"$f":"SUM(T1312:T1324)","v":-1569361.8369936803},{"$f":"SUM(U1312:U1324)","v":-2560537.7340423204},"PLNT",{"$f":"SUM(W1312:W1324)","v":-744077.60494812299},{"$f":"SUM(X1312:X1324)","v":-3066841.553575051},{"$f":"SUM(Y1312:Y1324)","v":-1519917.1698584931},{"$f":"SUM(Z1312:Z1324)","v":-188814.57130323281},{"$f":"SUM(AA1312:AA1324)","v":-802626.79246583104},-188814.57130323281,"UACCT41110",0,0,0,0]
[1326]
[1327,41111,"Deferred Income Tax - State-CR"]
[1328,null,null,"S",411,"S","ACCT41111S",0,"GP",{"$f":"VLOOKUP($I1328,Func,2)*$H1328","v":0},{"$f":"VLOOKUP($I1328,Func,3)*$H1328","v":0},{"$f":"VLOOKUP($I1328,Func,5)*$H1328","v":0},{"$f":"VLOOKUP($I1328,Func,6)*$H1328","v":0},{"$f":"VLOOKUP($I1328,Func,7)*$H1328","v":0},null,{"$f":"Demand","v":0.38},{"$f":"+$J1328*$P1328","v":0},{"$f":"+$J1328*(1-$P1328)","v":0},{"$f":"Demand","v":0.38},{"$f":"+$K1328*$S1328","v":0},{"$f":"+$K1328*(1-$S1328)","v":0},"PLNT",{"$f":"+$L1328*VLOOKUP($V1328,DisFac,2)","v":0},{"$f":"+$L1328*VLOOKUP($V1328,DisFac,3)","v":0},{"$f":"+$L1328*VLOOKUP($V1328,DisFac,4)","v":0},{"$f":"+$L1328*VLOOKUP($V1328,DisFac,5)","v":0},{"$f":"+$L1328*VLOOKUP($V1328,DisFac,6)","v":0},0,"UACCT41111S",{"$f":"ROUND(SUM(-H1328,J1328:N1328),0)","v":0},{"$f":"ROUND(J1328-Q1328-R1328,0)","v":0},{"$f":"ROUND(K1328-T1328-U1328,0)","v":0},{"$f":"ROUND(L1328-W1328-X1328-Y1328-Z1328-AA1328,0)","v":0}]
[1329,null,null,"SNP",411,"SNP","ACCT41111SNP",0,"GP",0,0,0,0,0,null,0.38,0,0,0.38,0,0,"PLNT",0,0,0,0,0,0,"UACCT41111DNPP",0,0,0,0]
[1330,null,null,"DITEXP",411,"DITEXP","ACCT41111DITEXP",0,"DITEXP",0,0,0,0,0,null,0.38,0,0,0.38,0,0,"PLNT",0,0,0,0,0,0,"UACCT41111DITEXP",0,0,0,0]
[1331,null,null,"SG",411,"SG","ACCT41111SG",0,"PT",0,0,0,0,0,null,0.38,0,0,0.38,0,0,"PLNT",0,0,0,0,0,0,"UACCT41111DGU",0,0,0,0]
[1332,null,null,"SGCT",411,"SGCT","ACCT41111SGCT",0,"P",0,0,0,0,0,null,0.38,0,0,0.38,0,0,"PLNT",0,0,0,0,0,0,"UACCT41111DNPTP",0,0,0,0]
[1333,null,null,"SG",411,"SG","ACCT41111SG",0,"PT",0,0,0,0,0,null,0.38,0,0,0.38,0,0,"PLNT",0,0,0,0,0,0,"UACCT41111SG",0,0,0,0]
[1334,null,null,"BADDEBT",411,"BADDEBT","ACCT41111BADDEBT",0,"CUST",0,0,0,0,0,null,0.38,0,0,0.38,0,0,"PLNT",0,0,0,0,0,0,"UACCT41111BADDEBT",0,0,0,0]
[1335,null,null,"SGPP",411,"GPS","ACCT41111GPS",0,"GP",0,0,0,0,0,null,0.38,0,0,0.38,0,0,"PLNT",0,0,0,0,0,0,"UACCT41111SGPP",0,0,0,0]
[1336,null,null,"SO",411,"SO","ACCT41111SO",0,"LABOR",0,0,0,0,0,null,0.38,0,0,0.38,0,0,"DISom",0,0,0,0,0,0,"UACCT41111SO",0,0,0,0]
[1337,null,null,"SE",411,"SE","ACCT41111SE",0,"P",0,0,0,0,0,null,0.38,0,0,0.38,0,0,"PLNT",0,0,0,0,0,0,"UACCT41111SE",0,0,0,0]
[1338,null,null,"TROJP",411,"TROJP","ACCT41111TROJP",0,"P",0,0,0,0,0,null,0.38,0,0,0.38,0,0,"PLNT",0,0,0,0,0,0,"UACCT41111TROJP",0,0,0,0]
[1339,null,null,"SG",411,"SG","ACCT41111SG",0,"PT",0,0,0,0,0,null,0.38,0,0,0.38,0,0,"PLNT",0,0,0,0,0,0,"UACCT41111SG",0,0,0,0]
[1340,null,null,null,null,null,"ACCT41111",0,null,{"$f":"SUM(J1328:J1339)","v":0},{"$f":"SUM(K1328:K1339)","v":0},{"$f":"SUM(L1328:L1339)","v":0},{"$f":"SUM(M1328:M1339)","v":0},{"$f":"SUM(N1328:N1339)","v":0},null,null,{"$f":"SUM(Q1328:Q1339)","v":0},{"$f":"SUM(R1328:R1339)","v":0},null,{"$f":"SUM(T1328:T1339)","v":0},{"$f":"SUM(U1328:U1339)","v":0},null,{"$f":"SUM(W1328:W1339)","v":0},{"$f":"SUM(X1328:X1339)","v":0},{"$f":"SUM(Y1328:Y1339)","v":0},{"$f":"SUM(Z1328:Z1339)","v":0},{"$f":"SUM(AA1328:AA1339)","v":0},0,"UACCT41111",0,0,0,0]
[{"$f":"A1340+1","v":1341}]
[1342,"TOTAL DEFERRED INCOME TAXES",null,null,null,null,null,{"$f":"'JAM Download'!E1313","v":16414669.737428376},null,{"$f":"+J1340+J1309+J1294+J1325","v":12810565.3815352},{"$f":"+K1340+K1309+K1294+K1325","v":2686209.4236197174},{"$f":"+L1340+L1309+L1294+L1325","v":908708.60779814981},{"$f":"+M1340+M1309+M1294+M1325","v":9186.3244753000617},{"$f":"+N1340+N1309+N1294+N1325","v":0},null,null,{"$f":"+Q1340+Q1309+Q1294+Q1325","v":4868014.8449833766},{"$f":"+R1340+R1309+R1294+R1325","v":7942550.5365518238},null,{"$f":"+T1340+T1309+T1294+T1325","v":1020759.5809754925},{"$f":"+U1340+U1309+U1294+U1325","v":1665449.8426442249},null,{"$f":"+W1340+W1309+W1294+W1325","v":106179.38553305669},{"$f":"+X1340+X1309+X1294+X1325","v":426922.37495807884},{"$f":"+Y1340+Y1309+Y1294+Y1325","v":231696.17710846383},{"$f":"+Z1340+Z1309+Z1294+Z1325","v":21352.151917695708},{"$f":"+AA1340+AA1309+AA1294+AA1325","v":122558.51828085515},21352.151917695708,null,{"$f":"ROUND(SUM(-H1342,J1342:N1342),0)","v":0},{"$f":"ROUND(J1342-Q1342-R1342,0)","v":0},{"$f":"ROUND(K1342-T1342-U1342,0)","v":0},{"$f":"ROUND(L1342-W1342-X1342-Y1342-Z1342-AA1342,0)","v":0}]
[1343]
[1344]
[1345,"FERC",null,"DESCRIPTION &","FERC",null,"RANGE",{"$f":"+$H$250","v":"Jurisdictional"},"FUNC","GEN","TRN","DIS","RETAIL","MISC",null,"D / E","GEN","GEN","D / E","TRN","TRN","DIS","DIS","DIS","DIS","DIS","DIS","DIS","Unbundled ACCT:","Function","Generation","Transmission","Distribution"]
[1346,"ACCT",null,"CONSENSUS FACTOR","ACCT","FACTOR","NAME","ADJ Total","FACTOR","TOTAL","TOTAL","TOTAL","TOTAL","TOTAL",null,"SPLIT","DEMAND","ENERGY","SPLIT","DEMAND","ENERGY","SPLIT","SUBS","P & C","XFMR","METER","SERVICE","METER","TOTAL","Check","Check","Check","Check"]
[1347,40911,"State Income Taxes"]
[1348,null,null,"S",40911,"IBT","ACCT40911S",{"$f":"'JAM Download'!E1402","v":0},"IBT",{"$f":"VLOOKUP($I1348,Func,2)*$H1348","v":0},{"$f":"VLOOKUP($I1348,Func,3)*$H1348","v":0},{"$f":"VLOOKUP($I1348,Func,5)*$H1348","v":0},{"$f":"VLOOKUP($I1348,Func,6)*$H1348","v":0},{"$f":"VLOOKUP($I1348,Func,7)*$H1348","v":0},null,{"$f":"Demand","v":0.38},{"$f":"+$J1348*$P1348","v":0},{"$f":"+$J1348*(1-$P1348)","v":0},{"$f":"Demand","v":0.38},{"$f":"+$K1348*$S1348","v":0},{"$f":"+$K1348*(1-$S1348)","v":0},"DRB",{"$f":"+$L1348*VLOOKUP($V1348,DisFac,2)","v":0},{"$f":"+$L1348*VLOOKUP($V1348,DisFac,3)","v":0},{"$f":"+$L1348*VLOOKUP($V1348,DisFac,4)","v":0},{"$f":"+$L1348*VLOOKUP($V1348,DisFac,5)","v":0},{"$f":"+$L1348*VLOOKUP($V1348,DisFac,6)","v":0},0,"UACCT40911S",{"$f":"ROUND(SUM(-H1348,J1348:N1348),0)","v":0},{"$f":"ROUND(J1348-Q1348-R1348,0)","v":0},{"$f":"ROUND(K1348-T1348-U1348,0)","v":0},{"$f":"ROUND(L1348-W1348-X1348-Y1348-Z1348-AA1348,0)","v":0}]
[1349,null,null,"SO",40911,"IBT","ACCT40911SO",{"$f":"'JAM Download'!E1403","v":0},"IBT",{"$f":"VLOOKUP($I1349,Func,2)*$H1349","v":0},{"$f":"VLOOKUP($I1349,Func,3)*$H1349","v":0},{"$f":"VLOOKUP($I1349,Func,5)*$H1349","v":0},{"$f":"VLOOKUP($I1349,Func,6)*$H1349","v":0},{"$f":"VLOOKUP($I1349,Func,7)*$H1349","v":0},null,{"$f":"Demand","v":0.38},{"$f":"+$J1349*$P1349","v":0},{"$f":"+$J1349*(1-$P1349)","v":0},{"$f":"Demand","v":0.38},{"$f":"+$K1349*$S1349","v":0},{"$f":"+$K1349*(1-$S1349)","v":0},"DRB",{"$f":"+$L1349*VLOOKUP($V1349,DisFac,2)","v":0},{"$f":"+$L1349*VLOOKUP($V1349,DisFac,3)","v":0},{"$f":"+$L1349*VLOOKUP($V1349,DisFac,4)","v":0},{"$f":"+$L1349*VLOOKUP($V1349,DisFac,5)","v":0},{"$f":"+$L1349*VLOOKUP($V1349,DisFac,6)","v":0},0,"UACCT40911SO",{"$f":"ROUND(SUM(-H1349,J1349:N1349),0)","v":0},{"$f":"ROUND(J1349-Q1349-R1349,0)","v":0},{"$f":"ROUND(K1349-T1349-U1349,0)","v":0},{"$f":"ROUND(L1349-W1349-X1349-Y1349-Z1349-AA1349,0)","v":0}]
[1350,null,null,"DGU",40911,"IBT","ACCT40911DGU",{"$f":"'JAM Download'!E1404","v":0},"IBT",{"$f":"VLOOKUP($I1350,Func,2)*$H1350","v":0},{"$f":"VLOOKUP($I1350,Func,3)*$H1350","v":0},{"$f":"VLOOKUP($I1350,Func,5)*$H1350","v":0},{"$f":"VLOOKUP($I1350,Func,6)*$H1350","v":0},{"$f":"VLOOKUP($I1350,Func,7)*$H1350","v":0},null,{"$f":"Demand","v":0.38},{"$f":"+$J1350*$P1350","v":0},{"$f":"+$J1350*(1-$P1350)","v":0},{"$f":"Demand","v":0.38},{"$f":"+$K1350*$S1350","v":0},{"$f":"+$K1350*(1-$S1350)","v":0},"DRB",{"$f":"+$L1350*VLOOKUP($V1350,DisFac,2)","v":0},{"$f":"+$L1350*VLOOKUP($V1350,DisFac,3)","v":0},{"$f":"+$L1350*VLOOKUP($V1350,DisFac,4)","v":0},{"$f":"+$L1350*VLOOKUP($V1350,DisFac,5)","v":0},{"$f":"+$L1350*VLOOKUP($V1350,DisFac,6)","v":0},0,"UACCT40911DGU",{"$f":"ROUND(SUM(-H1350,J1350:N1350),0)","v":0},{"$f":"ROUND(J1350-Q1350-R1350,0)","v":0},{"$f":"ROUND(K1350-T1350-U1350,0)","v":0},{"$f":"ROUND(L1350-W1350-X1350-Y1350-Z1350-AA1350,0)","v":0}]
[1351,null,null,"IDSIT",40911,"IBT","ACCT40911IDSIT",{"$f":"'JAM Download'!E1405","v":0},"IBT",{"$f":"VLOOKUP($I1351,Func,2)*$H1351","v":0},{"$f":"VLOOKUP($I1351,Func,3)*$H1351","v":0},{"$f":"VLOOKUP($I1351,Func,5)*$H1351","v":0},{"$f":"VLOOKUP($I1351,Func,6)*$H1351","v":0},{"$f":"VLOOKUP($I1351,Func,7)*$H1351","v":0},null,{"$f":"Demand","v":0.38},{"$f":"+$J1351*$P1351","v":0},{"$f":"+$J1351*(1-$P1351)","v":0},{"$f":"Demand","v":0.38},{"$f":"+$K1351*$S1351","v":0},{"$f":"+$K1351*(1-$S1351)","v":0},"DRB",{"$f":"+$L1351*VLOOKUP($V1351,DisFac,2)","v":0},{"$f":"+$L1351*VLOOKUP($V1351,DisFac,3)","v":0},{"$f":"+$L1351*VLOOKUP($V1351,DisFac,4)","v":0},{"$f":"+$L1351*VLOOKUP($V1351,DisFac,5)","v":0},{"$f":"+$L1351*VLOOKUP($V1351,DisFac,6)","v":0},0,"UACCT40911IDSIT",{"$f":"ROUND(SUM(-H1351,J1351:N1351),0)","v":0},{"$f":"ROUND(J1351-Q1351-R1351,0)","v":0},{"$f":"ROUND(K1351-T1351-U1351,0)","v":0},{"$f":"ROUND(L1351-W1351-X1351-Y1351-Z1351-AA1351,0)","v":0}]
[1352,"TOTAL STATE TAXES",null,null,null,null,"ACCT40911",{"$f":"'JAM Download'!E1406","v":0},null,{"$f":"SUM(J1348:J1351)","v":0},{"$f":"SUM(K1348:K1351)","v":0},{"$f":"SUM(L1348:L1351)","v":0},{"$f":"SUM(M1348:M1351)","v":0},{"$f":"SUM(N1348:N1351)","v":0},null,null,{"$f":"SUM(Q1348:Q1351)","v":0},{"$f":"SUM(R1348:R1351)","v":0},null,{"$f":"SUM(T1348:T1351)","v":0},{"$f":"SUM(U1348:U1351)","v":0},null,{"$f":"SUM(W1348:W1351)","v":0},{"$f":"SUM(X1348:X1351)","v":0},{"$f":"SUM(Y1348:Y1351)","v":0},{"$f":"SUM(Z1348:Z1351)","v":0},{"$f":"SUM(AA1348:AA1351)","v":0},0,"UACCT40911",{"$f":"ROUND(SUM(-H1352,J1352:N1352),0)","v":0},{"$f":"ROUND(J1352-Q1352-R1352,0)","v":0},{"$f":"ROUND(K1352-T1352-U1352,0)","v":0},{"$f":"ROUND(L1352-W1352-X1352-Y1352-Z1352-AA1352,0)","v":0}]
[1353]
[1354]
[1355]
[1356]
[1357]
[1358,"FERC",null,"DESCRIPTION &","FERC",null,null,{"$f":"+$H$250","v":"Jurisdictional"},null,null,null,null,null,null,null,"D/E",null,null,"D/E"]
[1359,"ACCT",null,"CONSENSUS FACTOR","ACCT","FACTOR",null,"ADJ Total",null,null,null,null,null,null,null,"SPLIT",null,null,"SPLIT"]
[1360,"Calculation of Taxable Income:"]
[1361,null,"Operating Revenues",null,null,null,null,{"$f":"'JAM Download'!E1410","v":327860487.17130327}]
[1362,null,"Operating Deductions:",null,null,null,null,{"$f":"'JAM Download'!E1411","v":0}]
[1363,null,"   O & M Expenses",null,null,null,null,{"$f":"'JAM Download'!E1412","v":217526010.15460241}]
[1364,null,"   Depreciation Expense",null,null,null,null,{"$f":"'JAM Download'!E1413","v":41310105.544159755}]
[1365,null,"   Amortization Expense",null,null,null,null,{"$f":"'JAM Download'!E1414","v":5547662.1601642752}]
[1366,null,"   Taxes Other Than Income",null,null,null,null,{"$f":"'JAM Download'!E1415","v":19982776.421377905}]
[1367,null,"   Interest & Dividends (AFUDC-Equity)",null,null,null,null,{"$f":"'JAM Download'!E1416","v":-3380969.4647353832}]
[1368,null,"   Misc Revenue & Expense",null,null,null,null,{"$f":"'JAM Download'!E1417","v":-842347.32514905161}]
[1369,null,"    Total Operating Deductions",null,null,null,null,{"$f":"'JAM Download'!E1418","v":280143237.49041992}]
[1370,null,"Other Deductions:",null,null,null,null,{"$f":"'JAM Download'!E1419","v":0}]
[1371,null,"   Interest Deductions",null,null,null,null,{"$f":"'JAM Download'!E1420","v":21009958.789070345}]
[1372,null,"   Interest on PCRBS",null,null,null,null,{"$f":"'JAM Download'!E1421","v":0}]
[1373,null,"   Schedule M Adjustments",null,null,null,null,{"$f":"'JAM Download'!E1422","v":-41352855.712669149}]
[1374]
[1375,null,"    Income Before State Taxes",null,null,null,null,{"$f":"'JAM Download'!E1424","v":-14645564.820856147}]
[1376,null,null,null,null,null,null,{"$f":"'JAM Download'!E1425","v":0}]
[1377,null,"State Income Taxes",null,null,null,"ACCTSTTAX",{"$f":"'JAM Download'!E1426","v":0},"IBT",{"$f":"VLOOKUP($I1377,Func,2)*$H1377","v":0},{"$f":"VLOOKUP($I1377,Func,3)*$H1377","v":0},{"$f":"VLOOKUP($I1377,Func,5)*$H1377","v":0},{"$f":"VLOOKUP($I1377,Func,6)*$H1377","v":0},{"$f":"VLOOKUP($I1377,Func,7)*$H1377","v":0},null,{"$f":"Demand","v":0.38},{"$f":"+$J1377*$P1377","v":0},{"$f":"+$J1377*(1-$P1377)","v":0},{"$f":"Demand","v":0.38},{"$f":"+$K1377*$S1377","v":0},{"$f":"+$K1377*(1-$S1377)","v":0},"DRB",{"$f":"+$L1377*VLOOKUP($V1377,DisFac,2)","v":0},{"$f":"+$L1377*VLOOKUP($V1377,DisFac,3)","v":0},{"$f":"+$L1377*VLOOKUP($V1377,DisFac,4)","v":0},{"$f":"+$L1377*VLOOKUP($V1377,DisFac,5)","v":0},{"$f":"+$L1377*VLOOKUP($V1377,DisFac,6)","v":0},0,"UACCTSTTAX",{"$f":"ROUND(SUM(-H1377,J1377:N1377),0)","v":0},{"$f":"ROUND(J1377-Q1377-R1377,0)","v":0},{"$f":"ROUND(K1377-T1377-U1377,0)","v":0},{"$f":"ROUND(L1377-W1377-X1377-Y1377-Z1377-AA1377,0)","v":0}]
[1378,null,null,null,null,null,null,{"$f":"'JAM Download'!E1427","v":0}]
[1379,"Total Taxable Income",null,null,null,null,null,{"$f":"'JAM Download'!E1428","v":-14645564.820856147}]
[1380,null,null,null,null,null,null,{"$f":"'JAM Download'!E1429","v":0}]
[1381,"Tax Rate",null,null,null,null,null,{"$f":"'JAM Download'!E1430","v":0.35}]
[1382,null,null,null,null,null,null,{"$f":"'JAM Download'!E1431","v":0}]
[1383,"Federal Income Tax - Calculated",null,null,null,null,null,{"$f":"'JAM Download'!E1432","v":-5125947.6872996511}]
[1384]
[1385,"Investment Tax Credit Utilized & Other Misc"]
[1386,null,null,"Fed. Credit",40910,"SE","ACCTITCITC90",{"$f":"'JAM Download'!E1435","v":-1034.3248159474392},null,null,null,null,null,null,null,null,null,null,null,null,null,null,null,null,null,null,null,null,"UACCTITCITC90"]
[1387,null,null,"Fed. Credit",40910,"CAEW","ACCT40610CAEW",{"$f":"'JAM Download'!E1437","v":-1977.3833268337482},null,null,null,null,null,null,null,null,null,null,null,null,null,null,null,null,null,null,null,null,"UACCT40910CAEW"]
[1388,null,null,"Fed. Credit",40910,"CAGW","ACCT40910FITPMI",{"$f":"'JAM Download'!E1436+'JAM Download'!E1438","v":-8861.2114122982421},null,null,null,null,null,null,null,null,null,null,null,null,null,null,null,null,null,null,null,null,"UACCT40910FITPMI"]
[1389,null,null,"Fed. Credit",40910,"CAGW",null,{"$f":"'JAM Download'!E1439","v":-5072531.6754153874}]
[1390,null,null,"Fed. Credit",40910,"CAEE",null,{"$f":"'JAM Download'!E1440","v":0}]
[1391,"Federal Income Tax",null,null,null,null,null,{"$f":"'JAM Download'!E1441","v":-10210352.282270119}]
[1392]
[1393,"Adjustment to Book Tax (1)"]
[1394]
[1395,"Federal Income Tax",null,null,null,null,"ACCTFIT",{"$f":"'JAM Download'!E1441","v":-10210352.282270119},"FIT",{"$f":"VLOOKUP($I1395,Func,2)*$H1395","v":-11934722.088213939},{"$f":"VLOOKUP($I1395,Func,3)*$H1395","v":-368427.97097115335},{"$f":"VLOOKUP($I1395,Func,5)*$H1395","v":1813833.1650488966},{"$f":"VLOOKUP($I1395,Func,6)*$H1395","v":181641.41151786022},{"$f":"VLOOKUP($I1395,Func,7)*$H1395","v":97323.200348206738},null,{"$f":"Demand","v":0.38},{"$f":"+$J1395*$P1395","v":-4535194.3935212968},{"$f":"+$J1395*(1-$P1395)","v":-7399527.6946926424},{"$f":"Demand","v":0.38},{"$f":"+$K1395*$S1395","v":-140002.62896903828},{"$f":"+$K1395*(1-$S1395)","v":-228425.34200211507},"DRB",{"$f":"+$L1395*VLOOKUP($V1395,DisFac,2)","v":269774.28668410389},{"$f":"+$L1395*VLOOKUP($V1395,DisFac,3)","v":755073.58523569629},{"$f":"+$L1395*VLOOKUP($V1395,DisFac,4)","v":433291.66421544994},{"$f":"+$L1395*VLOOKUP($V1395,DisFac,5)","v":80022.586929930549},{"$f":"+$L1395*VLOOKUP($V1395,DisFac,6)","v":275671.04198371561},80022.586929930549,"UACCTFIT",{"$f":"ROUND(SUM(-H1395,J1395:N1395),0)","v":0},{"$f":"ROUND(J1395-Q1395-R1395,0)","v":0},{"$f":"ROUND(K1395-T1395-U1395,0)","v":0},{"$f":"ROUND(L1395-W1395-X1395-Y1395-Z1395-AA1395,0)","v":0}]
[1396]
[1397,"TOTAL OPERATING EXPENSES",null,null,null,null,null,{"$f":"'JAM Download'!E1443","v":289728524.41031355}]
[1398]
[1399]
[1400]
[1401]
[1402]
[1403]
[1404]
[{"$f":"A1404+1","v":1405},"FERC",null,"DESCRIPTION &","FERC",null,"RANGE",{"$f":"+$H$250","v":"Jurisdictional"},"FUNC","GEN","TRN","DIS","RETAIL","MISC",null,"D / E","GEN","GEN","D / E","TRN","TRN","DIS","DIS","DIS","DIS","DIS","DIS","DIS","Unbundled ACCT:","Function","Generation","Transmission","Distribution"]
[1406,"ACCT",null,"CONSENSUS FACTOR","ACCT","FACTOR","NAME","ADJ Total","FACTOR","TOTAL","TOTAL","TOTAL","TOTAL","TOTAL",null,"SPLIT","DEMAND","ENERGY","SPLIT","DEMAND","ENERGY","SPLIT","SUBS","P & C","XFMR","METER","SERVICE","METER","TOTAL","Check","Check","Check","Check"]
[1407]
[1408,310,"Land and Land Rights"]
[1409,null,null,"DGP",310,"DGP","ACCT310DGP",{"$f":"'JAM Download'!E1445","v":0},"P",{"$f":"VLOOKUP($I1409,Func,2)*$H1409","v":0},{"$f":"VLOOKUP($I1409,Func,3)*$H1409","v":0},{"$f":"VLOOKUP($I1409,Func,5)*$H1409","v":0},{"$f":"VLOOKUP($I1409,Func,6)*$H1409","v":0},{"$f":"VLOOKUP($I1409,Func,7)*$H1409","v":0},null,{"$f":"Demand","v":0.38},{"$f":"+$J1409*$P1409","v":0},{"$f":"+$J1409*(1-$P1409)","v":0},null,{"$f":"+$K1409*$S1409","v":0},{"$f":"+$K1409*(1-$S1409)","v":0},null,null,null,null,null,null,null,"UACCT310DGP",{"$f":"ROUND(SUM(-H1409,J1409:N1409),0)","v":0},{"$f":"ROUND(J1409-Q1409-R1409,0)","v":0},{"$f":"ROUND(K1409-T1409-U1409,0)","v":0},{"$f":"ROUND(L1409-W1409-X1409-Y1409-Z1409-AA1409,0)","v":0}]
[1410,null,null,"DGU",310,"DGU","ACCT310DGU",{"$f":"'JAM Download'!E1446","v":0},"P",{"$f":"VLOOKUP($I1410,Func,2)*$H1410","v":0},{"$f":"VLOOKUP($I1410,Func,3)*$H1410","v":0},{"$f":"VLOOKUP($I1410,Func,5)*$H1410","v":0},{"$f":"VLOOKUP($I1410,Func,6)*$H1410","v":0},{"$f":"VLOOKUP($I1410,Func,7)*$H1410","v":0},null,{"$f":"Demand","v":0.38},{"$f":"+$J1410*$P1410","v":0},{"$f":"+$J1410*(1-$P1410)","v":0},null,{"$f":"+$K1410*$S1410","v":0},{"$f":"+$K1410*(1-$S1410)","v":0},null,null,null,null,null,null,null,"UACCT310DGU",0,0,0,0]
[1411,null,null,"CAGW",310,"CAGW","ACCT310CAGW",{"$f":"'JAM Download'!E1447+'JAM Download'!E1448+'JAM Download'!E1449+'JAM Download'!E1552","v":306781.9222076381},"P",{"$f":"VLOOKUP($I1411,Func,2)*$H1411","v":306781.9222076381},{"$f":"VLOOKUP($I1411,Func,3)*$H1411","v":0},{"$f":"VLOOKUP($I1411,Func,5)*$H1411","v":0},{"$f":"VLOOKUP($I1411,Func,6)*$H1411","v":0},{"$f":"VLOOKUP($I1411,Func,7)*$H1411","v":0},null,{"$f":"Demand","v":0.38},{"$f":"+$J1411*$P1411","v":116577.13043890247},{"$f":"+$J1411*(1-$P1411)","v":190204.79176873562},null,{"$f":"+$K1411*$S1411","v":0},{"$f":"+$K1411*(1-$S1411)","v":0},null,null,null,null,null,null,null,"UACCT310SGP",0,0,0,0]
[1412,null,null,"S",310,"S","ACCT310S",{"$f":"'JAM Download'!E1451","v":0},"P",{"$f":"VLOOKUP($I1412,Func,2)*$H1412","v":0},{"$f":"VLOOKUP($I1412,Func,3)*$H1412","v":0},{"$f":"VLOOKUP($I1412,Func,5)*$H1412","v":0},{"$f":"VLOOKUP($I1412,Func,6)*$H1412","v":0},{"$f":"VLOOKUP($I1412,Func,7)*$H1412","v":0},null,{"$f":"Demand","v":0.38},{"$f":"+$J1412*$P1412","v":0},{"$f":"+$J1412*(1-$P1412)","v":0},null,{"$f":"+$K1412*$S1412","v":0},{"$f":"+$K1412*(1-$S1412)","v":0},null,null,null,null,null,null,null,"UACCT310SGU",0,0,0,0]
[1413,null,null,"JBG",310,"JBG","ACCT310JBG",{"$f":"'JAM Download'!E1450","v":385239.46455809165},"P",{"$f":"VLOOKUP($I1413,Func,2)*$H1413","v":385239.46455809165},{"$f":"VLOOKUP($I1413,Func,3)*$H1413","v":0},{"$f":"VLOOKUP($I1413,Func,5)*$H1413","v":0},{"$f":"VLOOKUP($I1413,Func,6)*$H1413","v":0},{"$f":"VLOOKUP($I1413,Func,7)*$H1413","v":0},null,{"$f":"Demand","v":0.38},{"$f":"+$J1413*$P1413","v":146390.99653207482},{"$f":"+$J1413*(1-$P1413)","v":238848.46802601684},null,{"$f":"+$K1413*$S1413","v":0},{"$f":"+$K1413*(1-$S1413)","v":0},null,null,null,null,null,null,null,"UACCT310JBG",0,0,0,0]
[1414,null,null,null,null,null,"ACCT310",{"$f":"'JAM Download'!E1453","v":692021.38676572975},null,{"$f":"SUM(J1409:J1413)","v":692021.38676572975},{"$f":"SUM(K1409:K1413)","v":0},{"$f":"SUM(L1409:L1413)","v":0},{"$f":"SUM(M1409:M1413)","v":0},{"$f":"SUM(N1409:N1413)","v":0},null,null,{"$f":"SUM(Q1409:Q1413)","v":262968.12697097729},{"$f":"SUM(R1409:R1413)","v":429053.25979475246},null,{"$f":"SUM(T1409:T1413)","v":0},{"$f":"SUM(U1409:U1413)","v":0},null,{"$f":"SUM(W1409:W1413)","v":0},{"$f":"SUM(X1409:X1413)","v":0},{"$f":"SUM(Y1409:Y1413)","v":0},{"$f":"SUM(Z1409:Z1413)","v":0},{"$f":"SUM(AA1409:AA1413)","v":0},0,"UACCT310",0,0,0,0]
[1415]
[1416,311,"Structures and Improvements"]
[1417,null,null,"DGP",311,"DGP","ACCT311DGP",{"$f":"'JAM Download'!E1456","v":0},"P",{"$f":"VLOOKUP($I1417,Func,2)*$H1417","v":0},{"$f":"VLOOKUP($I1417,Func,3)*$H1417","v":0},{"$f":"VLOOKUP($I1417,Func,5)*$H1417","v":0},{"$f":"VLOOKUP($I1417,Func,6)*$H1417","v":0},{"$f":"VLOOKUP($I1417,Func,7)*$H1417","v":0},null,{"$f":"Demand","v":0.38},{"$f":"+$J1417*$P1417","v":0},{"$f":"+$J1417*(1-$P1417)","v":0},null,{"$f":"+$K1417*$S1417","v":0},{"$f":"+$K1417*(1-$S1417)","v":0},null,null,null,null,null,null,null,"UACCT311DGP",{"$f":"ROUND(SUM(-H1417,J1417:N1417),0)","v":0},{"$f":"ROUND(J1417-Q1417-R1417,0)","v":0},{"$f":"ROUND(K1417-T1417-U1417,0)","v":0},{"$f":"ROUND(L1417-W1417-X1417-Y1417-Z1417-AA1417,0)","v":0}]
[1418,null,null,"DGU",311,"DGU","ACCT311DGP",{"$f":"'JAM Download'!E1457","v":0},"P",{"$f":"VLOOKUP($I1418,Func,2)*$H1418","v":0},{"$f":"VLOOKUP($I1418,Func,3)*$H1418","v":0},{"$f":"VLOOKUP($I1418,Func,5)*$H1418","v":0},{"$f":"VLOOKUP($I1418,Func,6)*$H1418","v":0},{"$f":"VLOOKUP($I1418,Func,7)*$H1418","v":0},null,{"$f":"Demand","v":0.38},{"$f":"+$J1418*$P1418","v":0},{"$f":"+$J1418*(1-$P1418)","v":0},null,{"$f":"+$K1418*$S1418","v":0},{"$f":"+$K1418*(1-$S1418)","v":0},null,null,null,null,null,null,null,"UACCT311DGU",{"$f":"ROUND(SUM(-H1418,J1418:N1418),0)","v":0},{"$f":"ROUND(J1418-Q1418-R1418,0)","v":0},{"$f":"ROUND(K1418-T1418-U1418,0)","v":0},{"$f":"ROUND(L1418-W1418-X1418-Y1418-Z1418-AA1418,0)","v":0}]
[1419,null,null,"CAGW",311,"CAGW","ACCT311CAGW",{"$f":"'JAM Download'!E1458+'JAM Download'!E1459+'JAM Download'!E1460+'JAM Download'!E1462","v":14718166.427065782},"P",{"$f":"VLOOKUP($I1419,Func,2)*$H1419","v":14718166.427065782},{"$f":"VLOOKUP($I1419,Func,3)*$H1419","v":0},{"$f":"VLOOKUP($I1419,Func,5)*$H1419","v":0},{"$f":"VLOOKUP($I1419,Func,6)*$H1419","v":0},{"$f":"VLOOKUP($I1419,Func,7)*$H1419","v":0},null,{"$f":"Demand","v":0.38},{"$f":"+$J1419*$P1419","v":5592903.2422849974},{"$f":"+$J1419*(1-$P1419)","v":9125263.1847807858},null,{"$f":"+$K1419*$S1419","v":0},{"$f":"+$K1419*(1-$S1419)","v":0},null,null,null,null,null,null,null,"UACCT311SGU",{"$f":"ROUND(SUM(-H1419,J1419:N1419),0)","v":0},{"$f":"ROUND(J1419-Q1419-R1419,0)","v":0},{"$f":"ROUND(K1419-T1419-U1419,0)","v":0},{"$f":"ROUND(L1419-W1419-X1419-Y1419-Z1419-AA1419,0)","v":0}]
[1420,null,null,"JBG",311,"JBG","ACCT311JBG",{"$f":"'JAM Download'!E1461","v":31619964.235479675},"P",{"$f":"VLOOKUP($I1420,Func,2)*$H1420","v":31619964.235479675},{"$f":"VLOOKUP($I1420,Func,3)*$H1420","v":0},{"$f":"VLOOKUP($I1420,Func,5)*$H1420","v":0},{"$f":"VLOOKUP($I1420,Func,6)*$H1420","v":0},{"$f":"VLOOKUP($I1420,Func,7)*$H1420","v":0},null,{"$f":"Demand","v":0.38},{"$f":"+$J1420*$P1420","v":12015586.409482276},{"$f":"+$J1420*(1-$P1420)","v":19604377.825997397},null,{"$f":"+$K1420*$S1420","v":0},{"$f":"+$K1420*(1-$S1420)","v":0},null,null,null,null,null,null,null,"UACCT311JBG",{"$f":"ROUND(SUM(-H1420,J1420:N1420),0)","v":0},{"$f":"ROUND(J1420-Q1420-R1420,0)","v":0},{"$f":"ROUND(K1420-T1420-U1420,0)","v":0},{"$f":"ROUND(L1420-W1420-X1420-Y1420-Z1420-AA1420,0)","v":0}]
[1421,null,null,null,null,null,"ACCT311",{"$f":"'JAM Download'!E1463","v":46338130.662545457},null,{"$f":"SUM(J1417:J1420)","v":46338130.662545457},{"$f":"SUM(K1417:K1420)","v":0},{"$f":"SUM(L1417:L1420)","v":0},{"$f":"SUM(M1417:M1420)","v":0},{"$f":"SUM(N1417:N1420)","v":0},null,null,{"$f":"SUM(Q1417:Q1420)","v":17608489.651767273},{"$f":"SUM(R1417:R1420)","v":28729641.010778181},null,{"$f":"SUM(T1417:T1420)","v":0},{"$f":"SUM(U1417:U1420)","v":0},null,{"$f":"SUM(W1417:W1420)","v":0},{"$f":"SUM(X1417:X1420)","v":0},{"$f":"SUM(Y1417:Y1420)","v":0},{"$f":"SUM(Z1417:Z1420)","v":0},{"$f":"SUM(AA1417:AA1420)","v":0},0,"UACCT311",{"$f":"ROUND(SUM(-H1421,J1421:N1421),0)","v":0},{"$f":"ROUND(J1421-Q1421-R1421,0)","v":0},{"$f":"ROUND(K1421-T1421-U1421,0)","v":0},{"$f":"ROUND(L1421-W1421-X1421-Y1421-Z1421-AA1421,0)","v":0}]
[1422]
[1423,312,"Boiler Plant Equipment"]
[1424,null,null,"DGP",312,"DGP","ACCT312DGP",{"$f":"'JAM Download'!E1466","v":0},"P",{"$f":"VLOOKUP($I1424,Func,2)*$H1424","v":0},{"$f":"VLOOKUP($I1424,Func,3)*$H1424","v":0},{"$f":"VLOOKUP($I1424,Func,5)*$H1424","v":0},{"$f":"VLOOKUP($I1424,Func,6)*$H1424","v":0},{"$f":"VLOOKUP($I1424,Func,7)*$H1424","v":0},null,{"$f":"Demand","v":0.38},{"$f":"+$J1424*$P1424","v":0},{"$f":"+$J1424*(1-$P1424)","v":0},null,{"$f":"+$K1424*$S1424","v":0},{"$f":"+$K1424*(1-$S1424)","v":0},null,null,null,null,null,null,null,"UACCT312SGP",{"$f":"ROUND(SUM(-H1424,J1424:N1424),0)","v":0},{"$f":"ROUND(J1424-Q1424-R1424,0)","v":0},{"$f":"ROUND(K1424-T1424-U1424,0)","v":0},{"$f":"ROUND(L1424-W1424-X1424-Y1424-Z1424-AA1424,0)","v":0}]
[1425,null,null,"DGU",312,"DGU","ACCT312DGU",{"$f":"'JAM Download'!E1467","v":0},"P",{"$f":"VLOOKUP($I1425,Func,2)*$H1425","v":0},{"$f":"VLOOKUP($I1425,Func,3)*$H1425","v":0},{"$f":"VLOOKUP($I1425,Func,5)*$H1425","v":0},{"$f":"VLOOKUP($I1425,Func,6)*$H1425","v":0},{"$f":"VLOOKUP($I1425,Func,7)*$H1425","v":0},null,{"$f":"Demand","v":0.38},{"$f":"+$J1425*$P1425","v":0},{"$f":"+$J1425*(1-$P1425)","v":0},null,{"$f":"+$K1425*$S1425","v":0},{"$f":"+$K1425*(1-$S1425)","v":0},null,null,null,null,null,null,null,"UACCT312SGU",{"$f":"ROUND(SUM(-H1425,J1425:N1425),0)","v":0},{"$f":"ROUND(J1425-Q1425-R1425,0)","v":0},{"$f":"ROUND(K1425-T1425-U1425,0)","v":0},{"$f":"ROUND(L1425-W1425-X1425-Y1425-Z1425-AA1425,0)","v":0}]
[1426,null,null,"SG/CAGE/CAGW",312,"CAGW","ACCT312CAGW",{"$f":"'JAM Download'!E1468+'JAM Download'!E1469+'JAM Download'!E1470+'JAM Download'!E1472","v":-624870.24957360816},"P",{"$f":"VLOOKUP($I1426,Func,2)*$H1426","v":-624870.24957360816},{"$f":"VLOOKUP($I1426,Func,3)*$H1426","v":0},{"$f":"VLOOKUP($I1426,Func,5)*$H1426","v":0},{"$f":"VLOOKUP($I1426,Func,6)*$H1426","v":0},{"$f":"VLOOKUP($I1426,Func,7)*$H1426","v":0},null,{"$f":"Demand","v":0.38},{"$f":"+$J1426*$P1426","v":-237450.6948379711},{"$f":"+$J1426*(1-$P1426)","v":-387419.55473563704},null,{"$f":"+$K1426*$S1426","v":0},{"$f":"+$K1426*(1-$S1426)","v":0},null,null,null,null,null,null,null,"UACCT312DGU",{"$f":"ROUND(SUM(-H1426,J1426:N1426),0)","v":0},{"$f":"ROUND(J1426-Q1426-R1426,0)","v":0},{"$f":"ROUND(K1426-T1426-U1426,0)","v":0},{"$f":"ROUND(L1426-W1426-X1426-Y1426-Z1426-AA1426,0)","v":0}]
[1427,null,null,"JBG",312,"JBG","ACCT312JBG",{"$f":"'JAM Download'!E1471","v":161979666.17012841},"P",{"$f":"VLOOKUP($I1427,Func,2)*$H1427","v":161979666.17012841},{"$f":"VLOOKUP($I1427,Func,3)*$H1427","v":0},{"$f":"VLOOKUP($I1427,Func,5)*$H1427","v":0},{"$f":"VLOOKUP($I1427,Func,6)*$H1427","v":0},{"$f":"VLOOKUP($I1427,Func,7)*$H1427","v":0},null,{"$f":"Demand","v":0.38},{"$f":"+$J1427*$P1427","v":61552273.144648798},{"$f":"+$J1427*(1-$P1427)","v":100427393.02547961},null,{"$f":"+$K1427*$S1427","v":0},{"$f":"+$K1427*(1-$S1427)","v":0},null,null,null,null,null,null,null,"UACCT312JBG",{"$f":"ROUND(SUM(-H1427,J1427:N1427),0)","v":0},{"$f":"ROUND(J1427-Q1427-R1427,0)","v":0},{"$f":"ROUND(K1427-T1427-U1427,0)","v":0},{"$f":"ROUND(L1427-W1427-X1427-Y1427-Z1427-AA1427,0)","v":0}]
[1428,null,null,null,null,null,"ACCT312",{"$f":"'JAM Download'!E1473","v":161354795.92055479},null,{"$f":"SUM(J1424:J1427)","v":161354795.92055479},{"$f":"SUM(K1424:K1427)","v":0},{"$f":"SUM(L1424:L1427)","v":0},{"$f":"SUM(M1424:M1427)","v":0},{"$f":"SUM(N1424:N1427)","v":0},null,null,{"$f":"SUM(Q1424:Q1427)","v":61314822.449810825},{"$f":"SUM(R1424:R1427)","v":100039973.47074398},null,{"$f":"SUM(T1424:T1427)","v":0},{"$f":"SUM(U1424:U1427)","v":0},null,{"$f":"SUM(W1424:W1427)","v":0},{"$f":"SUM(X1424:X1427)","v":0},{"$f":"SUM(Y1424:Y1427)","v":0},{"$f":"SUM(Z1424:Z1427)","v":0},{"$f":"SUM(AA1424:AA1427)","v":0},0,"UACCT312",{"$f":"ROUND(SUM(-H1428,J1428:N1428),0)","v":0},{"$f":"ROUND(J1428-Q1428-R1428,0)","v":0},{"$f":"ROUND(K1428-T1428-U1428,0)","v":0},{"$f":"ROUND(L1428-W1428-X1428-Y1428-Z1428-AA1428,0)","v":0}]
[1429]
[1430,314,"Turbogenerator Units"]
[1431,null,null,"DGP",314,"DGP","ACCT314DGP",{"$f":"'JAM Download'!E1476","v":0},"P",{"$f":"VLOOKUP($I1431,Func,2)*$H1431","v":0},{"$f":"VLOOKUP($I1431,Func,3)*$H1431","v":0},{"$f":"VLOOKUP($I1431,Func,5)*$H1431","v":0},{"$f":"VLOOKUP($I1431,Func,6)*$H1431","v":0},{"$f":"VLOOKUP($I1431,Func,7)*$H1431","v":0},null,{"$f":"Demand","v":0.38},{"$f":"+$J1431*$P1431","v":0},{"$f":"+$J1431*(1-$P1431)","v":0},null,{"$f":"+$K1431*$S1431","v":0},{"$f":"+$K1431*(1-$S1431)","v":0},null,null,null,null,null,null,null,"UACCT314SGP",{"$f":"ROUND(SUM(-H1431,J1431:N1431),0)","v":0},{"$f":"ROUND(J1431-Q1431-R1431,0)","v":0},{"$f":"ROUND(K1431-T1431-U1431,0)","v":0},{"$f":"ROUND(L1431-W1431-X1431-Y1431-Z1431-AA1431,0)","v":0}]
[1432,null,null,"DGU",314,"DGU","ACCT314DGU",{"$f":"'JAM Download'!E1477","v":0},"P",{"$f":"VLOOKUP($I1432,Func,2)*$H1432","v":0},{"$f":"VLOOKUP($I1432,Func,3)*$H1432","v":0},{"$f":"VLOOKUP($I1432,Func,5)*$H1432","v":0},{"$f":"VLOOKUP($I1432,Func,6)*$H1432","v":0},{"$f":"VLOOKUP($I1432,Func,7)*$H1432","v":0},null,{"$f":"Demand","v":0.38},{"$f":"+$J1432*$P1432","v":0},{"$f":"+$J1432*(1-$P1432)","v":0},null,{"$f":"+$K1432*$S1432","v":0},{"$f":"+$K1432*(1-$S1432)","v":0},null,null,null,null,null,null,null,"UACCT314SGU",{"$f":"ROUND(SUM(-H1432,J1432:N1432),0)","v":0},{"$f":"ROUND(J1432-Q1432-R1432,0)","v":0},{"$f":"ROUND(K1432-T1432-U1432,0)","v":0},{"$f":"ROUND(L1432-W1432-X1432-Y1432-Z1432-AA1432,0)","v":0}]
[1433,null,null,"SG/CAGE/CAGW",314,"CAGW","ACCT314CAGW",{"$f":"'JAM Download'!E1478+'JAM Download'!E1479+'JAM Download'!E1480+'JAM Download'!E1482","v":12119310.181035573},"P",{"$f":"VLOOKUP($I1433,Func,2)*$H1433","v":12119310.181035573},{"$f":"VLOOKUP($I1433,Func,3)*$H1433","v":0},{"$f":"VLOOKUP($I1433,Func,5)*$H1433","v":0},{"$f":"VLOOKUP($I1433,Func,6)*$H1433","v":0},{"$f":"VLOOKUP($I1433,Func,7)*$H1433","v":0},null,{"$f":"Demand","v":0.38},{"$f":"+$J1433*$P1433","v":4605337.8687935174},{"$f":"+$J1433*(1-$P1433)","v":7513972.3122420553},null,{"$f":"+$K1433*$S1433","v":0},{"$f":"+$K1433*(1-$S1433)","v":0},null,null,null,null,null,null,null,"UACCT314DGU",{"$f":"ROUND(SUM(-H1433,J1433:N1433),0)","v":0},{"$f":"ROUND(J1433-Q1433-R1433,0)","v":0},{"$f":"ROUND(K1433-T1433-U1433,0)","v":0},{"$f":"ROUND(L1433-W1433-X1433-Y1433-Z1433-AA1433,0)","v":0}]
[1434,null,null,"JBG",314,"JBG","ACCT314JBG",{"$f":"'JAM Download'!E1481","v":39540511.960887395},"P",{"$f":"VLOOKUP($I1434,Func,2)*$H1434","v":39540511.960887395},{"$f":"VLOOKUP($I1434,Func,3)*$H1434","v":0},{"$f":"VLOOKUP($I1434,Func,5)*$H1434","v":0},{"$f":"VLOOKUP($I1434,Func,6)*$H1434","v":0},{"$f":"VLOOKUP($I1434,Func,7)*$H1434","v":0},null,{"$f":"Demand","v":0.38},{"$f":"+$J1434*$P1434","v":15025394.54513721},{"$f":"+$J1434*(1-$P1434)","v":24515117.415750183},null,{"$f":"+$K1434*$S1434","v":0},{"$f":"+$K1434*(1-$S1434)","v":0},null,null,null,null,null,null,null,"UACCT314JBG",{"$f":"ROUND(SUM(-H1434,J1434:N1434),0)","v":0},{"$f":"ROUND(J1434-Q1434-R1434,0)","v":0},{"$f":"ROUND(K1434-T1434-U1434,0)","v":0},{"$f":"ROUND(L1434-W1434-X1434-Y1434-Z1434-AA1434,0)","v":0}]
[1435,null,null,null,null,null,"ACCT314",{"$f":"'JAM Download'!E1483","v":51659822.141922966},null,{"$f":"SUM(J1431:J1434)","v":51659822.141922966},{"$f":"SUM(K1431:K1434)","v":0},{"$f":"SUM(L1431:L1434)","v":0},{"$f":"SUM(M1431:M1434)","v":0},{"$f":"SUM(N1431:N1434)","v":0},null,null,{"$f":"SUM(Q1431:Q1434)","v":19630732.413930729},{"$f":"SUM(R1431:R1434)","v":32029089.727992237},null,{"$f":"SUM(T1431:T1434)","v":0},{"$f":"SUM(U1431:U1434)","v":0},null,{"$f":"SUM(W1431:W1434)","v":0},{"$f":"SUM(X1431:X1434)","v":0},{"$f":"SUM(Y1431:Y1434)","v":0},{"$f":"SUM(Z1431:Z1434)","v":0},{"$f":"SUM(AA1431:AA1434)","v":0},0,"UACCT314",{"$f":"ROUND(SUM(-H1435,J1435:N1435),0)","v":0},{"$f":"ROUND(J1435-Q1435-R1435,0)","v":0},{"$f":"ROUND(K1435-T1435-U1435,0)","v":0},{"$f":"ROUND(L1435-W1435-X1435-Y1435-Z1435-AA1435,0)","v":0}]
[1436]
[1437,315,"Accessory Electric Equipment"]
[1438,null,null,"DGP",315,"DGP","ACCT315DGP",{"$f":"'JAM Download'!E1486","v":0},"P",{"$f":"VLOOKUP($I1438,Func,2)*$H1438","v":0},{"$f":"VLOOKUP($I1438,Func,3)*$H1438","v":0},{"$f":"VLOOKUP($I1438,Func,5)*$H1438","v":0},{"$f":"VLOOKUP($I1438,Func,6)*$H1438","v":0},{"$f":"VLOOKUP($I1438,Func,7)*$H1438","v":0},null,{"$f":"Demand","v":0.38},{"$f":"+$J1438*$P1438","v":0},{"$f":"+$J1438*(1-$P1438)","v":0},null,{"$f":"+$K1438*$S1438","v":0},{"$f":"+$K1438*(1-$S1438)","v":0},null,null,null,null,null,null,null,"UACCT315SGP",{"$f":"ROUND(SUM(-H1438,J1438:N1438),0)","v":0},{"$f":"ROUND(J1438-Q1438-R1438,0)","v":0},{"$f":"ROUND(K1438-T1438-U1438,0)","v":0},{"$f":"ROUND(L1438-W1438-X1438-Y1438-Z1438-AA1438,0)","v":0}]
[1439,null,null,"DGU",315,"DGU","ACCT315DGU",{"$f":"'JAM Download'!E1487","v":0},"P",{"$f":"VLOOKUP($I1439,Func,2)*$H1439","v":0},{"$f":"VLOOKUP($I1439,Func,3)*$H1439","v":0},{"$f":"VLOOKUP($I1439,Func,5)*$H1439","v":0},{"$f":"VLOOKUP($I1439,Func,6)*$H1439","v":0},{"$f":"VLOOKUP($I1439,Func,7)*$H1439","v":0},null,{"$f":"Demand","v":0.38},{"$f":"+$J1439*$P1439","v":0},{"$f":"+$J1439*(1-$P1439)","v":0},null,{"$f":"+$K1439*$S1439","v":0},{"$f":"+$K1439*(1-$S1439)","v":0},null,null,null,null,null,null,null,"UACCT315SGU",{"$f":"ROUND(SUM(-H1439,J1439:N1439),0)","v":0},{"$f":"ROUND(J1439-Q1439-R1439,0)","v":0},{"$f":"ROUND(K1439-T1439-U1439,0)","v":0},{"$f":"ROUND(L1439-W1439-X1439-Y1439-Z1439-AA1439,0)","v":0}]
[1440,null,null,"SG/CAGE/CAGW",315,"SG","ACCT315SG",{"$f":"'JAM Download'!E1488+'JAM Download'!E1489+'JAM Download'!E1490+'JAM Download'!E1492","v":2998453.4131122138},"P",{"$f":"VLOOKUP($I1440,Func,2)*$H1440","v":2998453.4131122138},{"$f":"VLOOKUP($I1440,Func,3)*$H1440","v":0},{"$f":"VLOOKUP($I1440,Func,5)*$H1440","v":0},{"$f":"VLOOKUP($I1440,Func,6)*$H1440","v":0},{"$f":"VLOOKUP($I1440,Func,7)*$H1440","v":0},null,{"$f":"Demand","v":0.38},{"$f":"+$J1440*$P1440","v":1139412.2969826413},{"$f":"+$J1440*(1-$P1440)","v":1859041.1161295725},null,{"$f":"+$K1440*$S1440","v":0},{"$f":"+$K1440*(1-$S1440)","v":0},null,null,null,null,null,null,null,"UACCT315DGU",{"$f":"ROUND(SUM(-H1440,J1440:N1440),0)","v":0},{"$f":"ROUND(J1440-Q1440-R1440,0)","v":0},{"$f":"ROUND(K1440-T1440-U1440,0)","v":0},{"$f":"ROUND(L1440-W1440-X1440-Y1440-Z1440-AA1440,0)","v":0}]
[1441,null,null,"JBG",315,"JBG","ACCT315JBG",{"$f":"'JAM Download'!E1491","v":13335680.873541016},"P",{"$f":"VLOOKUP($I1441,Func,2)*$H1441","v":13335680.873541016},{"$f":"VLOOKUP($I1441,Func,3)*$H1441","v":0},{"$f":"VLOOKUP($I1441,Func,5)*$H1441","v":0},{"$f":"VLOOKUP($I1441,Func,6)*$H1441","v":0},{"$f":"VLOOKUP($I1441,Func,7)*$H1441","v":0},null,{"$f":"Demand","v":0.38},{"$f":"+$J1441*$P1441","v":5067558.7319455864},{"$f":"+$J1441*(1-$P1441)","v":8268122.1415954297},null,{"$f":"+$K1441*$S1441","v":0},{"$f":"+$K1441*(1-$S1441)","v":0},null,null,null,null,null,null,null,"UACCT315JBG",{"$f":"ROUND(SUM(-H1441,J1441:N1441),0)","v":0},{"$f":"ROUND(J1441-Q1441-R1441,0)","v":0},{"$f":"ROUND(K1441-T1441-U1441,0)","v":0},{"$f":"ROUND(L1441-W1441-X1441-Y1441-Z1441-AA1441,0)","v":0}]
[1442,null,null,null,null,null,"ACCT315",{"$f":"'JAM Download'!E1493","v":16334134.28665323},null,{"$f":"SUM(J1438:J1441)","v":16334134.28665323},{"$f":"SUM(K1438:K1441)","v":0},{"$f":"SUM(L1438:L1441)","v":0},{"$f":"SUM(M1438:M1441)","v":0},{"$f":"SUM(N1438:N1441)","v":0},null,null,{"$f":"SUM(Q1438:Q1441)","v":6206971.0289282277},{"$f":"SUM(R1438:R1441)","v":10127163.257725002},null,{"$f":"SUM(T1438:T1441)","v":0},{"$f":"SUM(U1438:U1441)","v":0},null,{"$f":"SUM(W1438:W1441)","v":0},{"$f":"SUM(X1438:X1441)","v":0},{"$f":"SUM(Y1438:Y1441)","v":0},{"$f":"SUM(Z1438:Z1441)","v":0},{"$f":"SUM(AA1438:AA1441)","v":0},0,"UACCT315",{"$f":"ROUND(SUM(-H1442,J1442:N1442),0)","v":0},{"$f":"ROUND(J1442-Q1442-R1442,0)","v":0},{"$f":"ROUND(K1442-T1442-U1442,0)","v":0},{"$f":"ROUND(L1442-W1442-X1442-Y1442-Z1442-AA1442,0)","v":0}]
[1443]
[1444,316,"Misc Power Plant Equipment"]
[1445,null,null,"DGP",316,"DGP","ACCT316DGP",{"$f":"'JAM Download'!E1498","v":0},"P",{"$f":"VLOOKUP($I1445,Func,2)*$H1445","v":0},{"$f":"VLOOKUP($I1445,Func,3)*$H1445","v":0},{"$f":"VLOOKUP($I1445,Func,5)*$H1445","v":0},{"$f":"VLOOKUP($I1445,Func,6)*$H1445","v":0},{"$f":"VLOOKUP($I1445,Func,7)*$H1445","v":0},null,{"$f":"Demand","v":0.38},{"$f":"+$J1445*$P1445","v":0},{"$f":"+$J1445*(1-$P1445)","v":0},null,{"$f":"+$K1445*$S1445","v":0},{"$f":"+$K1445*(1-$S1445)","v":0},null,null,null,null,null,null,null,"UACCT316SGP",{"$f":"ROUND(SUM(-H1445,J1445:N1445),0)","v":0},{"$f":"ROUND(J1445-Q1445-R1445,0)","v":0},{"$f":"ROUND(K1445-T1445-U1445,0)","v":0},{"$f":"ROUND(L1445-W1445-X1445-Y1445-Z1445-AA1445,0)","v":0}]
[1446,null,null,"DGU",316,"DGU","ACCT316DGU",{"$f":"'JAM Download'!E1499","v":0},"P",{"$f":"VLOOKUP($I1446,Func,2)*$H1446","v":0},{"$f":"VLOOKUP($I1446,Func,3)*$H1446","v":0},{"$f":"VLOOKUP($I1446,Func,5)*$H1446","v":0},{"$f":"VLOOKUP($I1446,Func,6)*$H1446","v":0},{"$f":"VLOOKUP($I1446,Func,7)*$H1446","v":0},null,{"$f":"Demand","v":0.38},{"$f":"+$J1446*$P1446","v":0},{"$f":"+$J1446*(1-$P1446)","v":0},null,{"$f":"+$K1446*$S1446","v":0},{"$f":"+$K1446*(1-$S1446)","v":0},null,null,null,null,null,null,null,"UACCT316SGU",0,0,0,0]
[1447,null,null,"SG/CAGE/CAGW",316,"CAGW","ACCT316CAGW",{"$f":"'JAM Download'!E1500+'JAM Download'!E1501+'JAM Download'!E1502+'JAM Download'!E1504","v":498733.58128393471},"P",{"$f":"VLOOKUP($I1447,Func,2)*$H1447","v":498733.58128393471},{"$f":"VLOOKUP($I1447,Func,3)*$H1447","v":0},{"$f":"VLOOKUP($I1447,Func,5)*$H1447","v":0},{"$f":"VLOOKUP($I1447,Func,6)*$H1447","v":0},{"$f":"VLOOKUP($I1447,Func,7)*$H1447","v":0},null,{"$f":"Demand","v":0.38},{"$f":"+$J1447*$P1447","v":189518.76088789519},{"$f":"+$J1447*(1-$P1447)","v":309214.82039603952},null,{"$f":"+$K1447*$S1447","v":0},{"$f":"+$K1447*(1-$S1447)","v":0},null,null,null,null,null,null,null,"UACCT316DGU",0,0,0,0]
[1448,null,null,"CAEW",316,"CAEW","ACCT316CAEW",{"$f":"'JAM Download'!E1452","v":0},"P",{"$f":"VLOOKUP($I1448,Func,2)*$H1448","v":0},{"$f":"VLOOKUP($I1448,Func,3)*$H1448","v":0},{"$f":"VLOOKUP($I1448,Func,5)*$H1448","v":0},{"$f":"VLOOKUP($I1448,Func,6)*$H1448","v":0},{"$f":"VLOOKUP($I1448,Func,7)*$H1448","v":0},null,{"$f":"Demand","v":0.38},{"$f":"+$J1448*$P1448","v":0},{"$f":"+$J1448*(1-$P1448)","v":0},null,{"$f":"+$K1448*$S1448","v":0},{"$f":"+$K1448*(1-$S1448)","v":0},null,null,null,null,null,null,null,"UACCT316CAEW",0,0,0,0]
[1449,null,null,"JBG",316,"JBG","ACCT316JBG",{"$f":"'JAM Download'!E1503","v":867460.91800169577},"P",{"$f":"VLOOKUP($I1449,Func,2)*$H1449","v":867460.91800169577},{"$f":"VLOOKUP($I1449,Func,3)*$H1449","v":0},{"$f":"VLOOKUP($I1449,Func,5)*$H1449","v":0},{"$f":"VLOOKUP($I1449,Func,6)*$H1449","v":0},{"$f":"VLOOKUP($I1449,Func,7)*$H1449","v":0},null,{"$f":"Demand","v":0.38},{"$f":"+$J1449*$P1449","v":329635.1488406444},{"$f":"+$J1449*(1-$P1449)","v":537825.76916105137},null,{"$f":"+$K1449*$S1449","v":0},{"$f":"+$K1449*(1-$S1449)","v":0},null,null,null,null,null,null,null,"UACCT316JBG",0,0,0,0]
[1450,null,null,null,null,null,"ACCT316",{"$f":"'JAM Download'!E1505","v":1366194.4992856304},null,{"$f":"SUM(J1445:J1449)","v":1366194.4992856304},{"$f":"SUM(K1445:K1449)","v":0},{"$f":"SUM(L1445:L1449)","v":0},{"$f":"SUM(M1445:M1449)","v":0},{"$f":"SUM(N1445:N1447)","v":0},null,null,{"$f":"SUM(Q1445:Q1449)","v":519153.90972853958},{"$f":"SUM(R1445:R1449)","v":847040.58955709089},null,{"$f":"SUM(T1445:T1449)","v":0},{"$f":"SUM(U1445:U1449)","v":0},null,{"$f":"SUM(W1445:W1449)","v":0},{"$f":"SUM(X1445:X1449)","v":0},{"$f":"SUM(Y1445:Y1449)","v":0},{"$f":"SUM(Z1445:Z1449)","v":0},{"$f":"SUM(AA1445:AA1449)","v":0},0,"UACCT316",0,0,0,0]
[1451]
[1452]
[1453,"SP","Unclassified Steam Plant - Account 300"]
[1454,null,null,"SG/CAGW",300,"CAGW","ACCTSPCAGW",{"$f":"'JAM Download'!E1512+'JAM Download'!E1513+'JAM Download'!E1514","v":197156.55059380142},"P",{"$f":"VLOOKUP($I1454,Func,2)*$H1454","v":197156.55059380142},{"$f":"VLOOKUP($I1454,Func,3)*$H1454","v":0},{"$f":"VLOOKUP($I1454,Func,5)*$H1454","v":0},{"$f":"VLOOKUP($I1454,Func,6)*$H1454","v":0},{"$f":"VLOOKUP($I1454,Func,7)*$H1454","v":0},null,{"$f":"Demand","v":0.38},{"$f":"+$J1454*$P1454","v":74919.489225644546},{"$f":"+$J1454*(1-$P1454)","v":122237.06136815688},null,{"$f":"+$K1454*$S1454","v":0},{"$f":"+$K1454*(1-$S1454)","v":0},null,null,null,null,null,null,null,"UACCTSPSGU",{"$f":"ROUND(SUM(-H1454,J1454:N1454),0)","v":0},{"$f":"ROUND(J1454-Q1454-R1454,0)","v":0},{"$f":"ROUND(K1454-T1454-U1454,0)","v":0},{"$f":"ROUND(L1454-W1454-X1454-Y1454-Z1454-AA1454,0)","v":0}]
[1455,null,null,null,null,null,"ACCTSP ",{"$f":"'JAM Download'!E1515","v":197156.55059380142},null,{"$f":"SUM(J1454:J1454)","v":197156.55059380142},{"$f":"SUM(K1454:K1454)","v":0},{"$f":"SUM(L1454:L1454)","v":0},{"$f":"SUM(M1454:M1454)","v":0},{"$f":"SUM(N1454:N1454)","v":0},null,null,{"$f":"SUM(Q1454:Q1454)","v":74919.489225644546},{"$f":"SUM(R1454:R1454)","v":122237.06136815688},null,{"$f":"SUM(T1454:T1454)","v":0},{"$f":"SUM(U1454:U1454)","v":0},null,{"$f":"SUM(W1454:W1454)","v":0},{"$f":"SUM(X1454:X1454)","v":0},{"$f":"SUM(Y1454:Y1454)","v":0},{"$f":"SUM(Z1454:Z1454)","v":0},{"$f":"SUM(AA1454:AA1454)","v":0},0,"UACCTSPSGU",{"$f":"ROUND(SUM(-H1455,J1455:N1455),0)","v":0},{"$f":"ROUND(J1455-Q1455-R1455,0)","v":0},{"$f":"ROUND(K1455-T1455-U1455,0)","v":0},{"$f":"ROUND(L1455-W1455-X1455-Y1455-Z1455-AA1455,0)","v":0}]
[1456]
[1457]
[1458,"Total Steam Production Plant",null,null,null,null,null,{"$f":"'JAM Download'!E1518","v":277942255.44832164},null,{"$f":"+J1450+J1442+J1435+J1428+J1421+J1414+J1455","v":277942255.44832158},{"$f":"+K1450+K1442+K1435+K1428+K1421+K1414+K1455","v":0},{"$f":"+L1450+L1442+L1435+L1428+L1421+L1414+L1455","v":0},{"$f":"+M1450+M1442+M1435+M1428+M1421+M1414+M1455","v":0},{"$f":"+N1450+N1442+N1435+N1428+N1421+N1414+N1455","v":0},null,null,{"$f":"+Q1450+Q1442+Q1435+Q1428+Q1421+Q1414+Q1455","v":105618057.07036221},{"$f":"+R1450+R1442+R1435+R1428+R1421+R1414+R1455","v":172324198.3779594},null,{"$f":"+T1450+T1442+T1435+T1428+T1421+T1414+T1455","v":0},{"$f":"+U1450+U1442+U1435+U1428+U1421+U1414+U1455","v":0},null,{"$f":"+W1450+W1442+W1435+W1428+W1421+W1414+W1455","v":0},{"$f":"+X1450+X1442+X1435+X1428+X1421+X1414+X1455","v":0},{"$f":"+Y1450+Y1442+Y1435+Y1428+Y1421+Y1414+Y1455","v":0},{"$f":"+Z1450+Z1442+Z1435+Z1428+Z1421+Z1414+Z1455","v":0},{"$f":"+AA1450+AA1442+AA1435+AA1428+AA1421+AA1414+AA1455","v":0},0,null,{"$f":"ROUND(SUM(-H1458,J1458:N1458),0)","v":0},{"$f":"ROUND(J1458-Q1458-R1458,0)","v":0},{"$f":"ROUND(K1458-T1458-U1458,0)","v":0},{"$f":"ROUND(L1458-W1458-X1458-Y1458-Z1458-AA1458,0)","v":0}]
[1459]
[1460]
[1461,"FERC",null,"DESCRIPTION &","FERC",null,"RANGE",{"$f":"+$H$250","v":"Jurisdictional"},"FUNC","GEN","TRN","DIS","RETAIL","MISC",null,"D / E","GEN","GEN","D / E","TRN","TRN","DIS","DIS","DIS","DIS","DIS","DIS","DIS","Unbundled ACCT:","Function","Generation","Transmission","Distribution"]
[1462,"ACCT",null,"CONSENSUS FACTOR","ACCT","FACTOR","NAME","ADJ Total","FACTOR","TOTAL","TOTAL","TOTAL","TOTAL","TOTAL",null,"SPLIT","DEMAND","ENERGY","SPLIT","DEMAND","ENERGY","SPLIT","SUBS","P & C","XFMR","METER","SERVICE","METER","TOTAL","Check","Check","Check","Check"]
[1463,320,"Land and Land Rights"]
[1464,null,null,"DGP",320,"DGP","ACCT320DGP",{"$f":"'JAM Download'!E1531","v":0},"P",{"$f":"VLOOKUP($I1464,Func,2)*$H1464","v":0},{"$f":"VLOOKUP($I1464,Func,3)*$H1464","v":0},{"$f":"VLOOKUP($I1464,Func,5)*$H1464","v":0},{"$f":"VLOOKUP($I1464,Func,6)*$H1464","v":0},{"$f":"VLOOKUP($I1464,Func,7)*$H1464","v":0},null,{"$f":"Demand","v":0.38},{"$f":"+$J1464*$P1464","v":0},{"$f":"+$J1464*(1-$P1464)","v":0},null,{"$f":"+$K1464*$S1464","v":0},{"$f":"+$K1464*(1-$S1464)","v":0},null,null,null,null,null,null,null,"UACCT320DGP",{"$f":"ROUND(SUM(-H1464,J1464:N1464),0)","v":0},{"$f":"ROUND(J1464-Q1464-R1464,0)","v":0},{"$f":"ROUND(K1464-T1464-U1464,0)","v":0},{"$f":"ROUND(L1464-W1464-X1464-Y1464-Z1464-AA1464,0)","v":0}]
[1465,null,null,"SG",320,"SG","ACCT320SG",{"$f":"'JAM Download'!E1532","v":0},"P",{"$f":"VLOOKUP($I1465,Func,2)*$H1465","v":0},{"$f":"VLOOKUP($I1465,Func,3)*$H1465","v":0},{"$f":"VLOOKUP($I1465,Func,5)*$H1465","v":0},{"$f":"VLOOKUP($I1465,Func,6)*$H1465","v":0},{"$f":"VLOOKUP($I1465,Func,7)*$H1465","v":0},null,{"$f":"Demand","v":0.38},{"$f":"+$J1465*$P1465","v":0},{"$f":"+$J1465*(1-$P1465)","v":0},null,{"$f":"+$K1465*$S1465","v":0},{"$f":"+$K1465*(1-$S1465)","v":0},null,null,null,null,null,null,null,"UACCT320SGP",{"$f":"ROUND(SUM(-H1465,J1465:N1465),0)","v":0},{"$f":"ROUND(J1465-Q1465-R1465,0)","v":0},{"$f":"ROUND(K1465-T1465-U1465,0)","v":0},{"$f":"ROUND(L1465-W1465-X1465-Y1465-Z1465-AA1465,0)","v":0}]
[1466,null,null,null,null,null,"ACCT320",{"$f":"'JAM Download'!E1533","v":0},null,{"$f":"SUM(J1464:J1465)","v":0},{"$f":"SUM(K1464:K1465)","v":0},{"$f":"SUM(L1464:L1465)","v":0},{"$f":"SUM(M1464:M1465)","v":0},{"$f":"SUM(N1464:N1465)","v":0},null,null,{"$f":"SUM(Q1464:Q1465)","v":0},{"$f":"SUM(R1464:R1465)","v":0},null,{"$f":"SUM(T1464:T1465)","v":0},{"$f":"SUM(U1464:U1465)","v":0},null,{"$f":"SUM(W1464:W1465)","v":0},{"$f":"SUM(X1464:X1465)","v":0},{"$f":"SUM(Y1464:Y1465)","v":0},{"$f":"SUM(Z1464:Z1465)","v":0},{"$f":"SUM(AA1464:AA1465)","v":0},0,"UACCT320",{"$f":"ROUND(SUM(-H1466,J1466:N1466),0)","v":0},{"$f":"ROUND(J1466-Q1466-R1466,0)","v":0},{"$f":"ROUND(K1466-T1466-U1466,0)","v":0},{"$f":"ROUND(L1466-W1466-X1466-Y1466-Z1466-AA1466,0)","v":0}]
[1467]
[1468,321,"Structures and Improvements"]
[{"$f":"A1468+1","v":1469},null,null,"DGP",321,"DGP","ACCT321DGP",{"$f":"'JAM Download'!E1536","v":0},"P",{"$f":"VLOOKUP($I1469,Func,2)*$H1469","v":0},{"$f":"VLOOKUP($I1469,Func,3)*$H1469","v":0},{"$f":"VLOOKUP($I1469,Func,5)*$H1469","v":0},{"$f":"VLOOKUP($I1469,Func,6)*$H1469","v":0},{"$f":"VLOOKUP($I1469,Func,7)*$H1469","v":0},null,{"$f":"Demand","v":0.38},{"$f":"+$J1469*$P1469","v":0},{"$f":"+$J1469*(1-$P1469)","v":0},null,{"$f":"+$K1469*$S1469","v":0},{"$f":"+$K1469*(1-$S1469)","v":0},null,null,null,null,null,null,null,"UACCT321DGP",{"$f":"ROUND(SUM(-H1469,J1469:N1469),0)","v":0},{"$f":"ROUND(J1469-Q1469-R1469,0)","v":0},{"$f":"ROUND(K1469-T1469-U1469,0)","v":0},{"$f":"ROUND(L1469-W1469-X1469-Y1469-Z1469-AA1469,0)","v":0}]
[1470,null,null,"SG",321,"SG","ACCT321SG",{"$f":"'JAM Download'!E1537","v":0},"P",{"$f":"VLOOKUP($I1470,Func,2)*$H1470","v":0},{"$f":"VLOOKUP($I1470,Func,3)*$H1470","v":0},{"$f":"VLOOKUP($I1470,Func,5)*$H1470","v":0},{"$f":"VLOOKUP($I1470,Func,6)*$H1470","v":0},{"$f":"VLOOKUP($I1470,Func,7)*$H1470","v":0},null,{"$f":"Demand","v":0.38},{"$f":"+$J1470*$P1470","v":0},{"$f":"+$J1470*(1-$P1470)","v":0},null,{"$f":"+$K1470*$S1470","v":0},{"$f":"+$K1470*(1-$S1470)","v":0},null,null,null,null,null,null,null,"UACCT321SGP",{"$f":"ROUND(SUM(-H1470,J1470:N1470),0)","v":0},{"$f":"ROUND(J1470-Q1470-R1470,0)","v":0},{"$f":"ROUND(K1470-T1470-U1470,0)","v":0},{"$f":"ROUND(L1470-W1470-X1470-Y1470-Z1470-AA1470,0)","v":0}]
[1471,null,null,null,null,null,"ACCT321",{"$f":"'JAM Download'!E1538","v":0},null,{"$f":"SUM(J1469:J1470)","v":0},{"$f":"SUM(K1469:K1470)","v":0},{"$f":"SUM(L1469:L1470)","v":0},{"$f":"SUM(M1469:M1470)","v":0},{"$f":"SUM(N1469:N1470)","v":0},null,null,{"$f":"SUM(Q1469:Q1470)","v":0},{"$f":"SUM(R1469:R1470)","v":0},null,{"$f":"SUM(T1469:T1470)","v":0},{"$f":"SUM(U1469:U1470)","v":0},null,{"$f":"SUM(W1469:W1470)","v":0},{"$f":"SUM(X1469:X1470)","v":0},{"$f":"SUM(Y1469:Y1470)","v":0},{"$f":"SUM(Z1469:Z1470)","v":0},{"$f":"SUM(AA1469:AA1470)","v":0},0,"UACCT321",{"$f":"ROUND(SUM(-H1471,J1471:N1471),0)","v":0},{"$f":"ROUND(J1471-Q1471-R1471,0)","v":0},{"$f":"ROUND(K1471-T1471-U1471,0)","v":0},{"$f":"ROUND(L1471-W1471-X1471-Y1471-Z1471-AA1471,0)","v":0}]
[1472]
[1473,322,"Reactor Plant Equipment"]
[1474,null,null,"DGP",322,"DGP","ACCT322DGP",{"$f":"'JAM Download'!E1541","v":0},"P",{"$f":"VLOOKUP($I1474,Func,2)*$H1474","v":0},{"$f":"VLOOKUP($I1474,Func,3)*$H1474","v":0},{"$f":"VLOOKUP($I1474,Func,5)*$H1474","v":0},{"$f":"VLOOKUP($I1474,Func,6)*$H1474","v":0},{"$f":"VLOOKUP($I1474,Func,7)*$H1474","v":0},null,{"$f":"Demand","v":0.38},{"$f":"+$J1474*$P1474","v":0},{"$f":"+$J1474*(1-$P1474)","v":0},null,{"$f":"+$K1474*$S1474","v":0},{"$f":"+$K1474*(1-$S1474)","v":0},null,null,null,null,null,null,null,"UACCT322DGP",{"$f":"ROUND(SUM(-H1474,J1474:N1474),0)","v":0},{"$f":"ROUND(J1474-Q1474-R1474,0)","v":0},{"$f":"ROUND(K1474-T1474-U1474,0)","v":0},{"$f":"ROUND(L1474-W1474-X1474-Y1474-Z1474-AA1474,0)","v":0}]
[1475,null,null,"SG",322,"SG","ACCT322SG",{"$f":"'JAM Download'!E1542","v":0},"P",{"$f":"VLOOKUP($I1475,Func,2)*$H1475","v":0},{"$f":"VLOOKUP($I1475,Func,3)*$H1475","v":0},{"$f":"VLOOKUP($I1475,Func,5)*$H1475","v":0},{"$f":"VLOOKUP($I1475,Func,6)*$H1475","v":0},{"$f":"VLOOKUP($I1475,Func,7)*$H1475","v":0},null,{"$f":"Demand","v":0.38},{"$f":"+$J1475*$P1475","v":0},{"$f":"+$J1475*(1-$P1475)","v":0},null,{"$f":"+$K1475*$S1475","v":0},{"$f":"+$K1475*(1-$S1475)","v":0},null,null,null,null,null,null,null,"UACCT322SGP",{"$f":"ROUND(SUM(-H1475,J1475:N1475),0)","v":0},{"$f":"ROUND(J1475-Q1475-R1475,0)","v":0},{"$f":"ROUND(K1475-T1475-U1475,0)","v":0},{"$f":"ROUND(L1475-W1475-X1475-Y1475-Z1475-AA1475,0)","v":0}]
[1476,null,null,null,null,null,"ACCT322",{"$f":"'JAM Download'!E1543","v":0},null,{"$f":"SUM(J1474:J1475)","v":0},{"$f":"SUM(K1474:K1475)","v":0},{"$f":"SUM(L1474:L1475)","v":0},{"$f":"SUM(M1474:M1475)","v":0},{"$f":"SUM(N1474:N1475)","v":0},null,null,{"$f":"SUM(Q1474:Q1475)","v":0},{"$f":"SUM(R1474:R1475)","v":0},null,{"$f":"SUM(T1474:T1475)","v":0},{"$f":"SUM(U1474:U1475)","v":0},null,{"$f":"SUM(W1474:W1475)","v":0},{"$f":"SUM(X1474:X1475)","v":0},{"$f":"SUM(Y1474:Y1475)","v":0},{"$f":"SUM(Z1474:Z1475)","v":0},{"$f":"SUM(AA1474:AA1475)","v":0},0,"UACCT322",{"$f":"ROUND(SUM(-H1476,J1476:N1476),0)","v":0},{"$f":"ROUND(J1476-Q1476-R1476,0)","v":0},{"$f":"ROUND(K1476-T1476-U1476,0)","v":0},{"$f":"ROUND(L1476-W1476-X1476-Y1476-Z1476-AA1476,0)","v":0}]
[1477]
[1478,323,"Turbogenerator Units"]
[1479,null,null,"DGP",323,"DGP","ACCT323DGP",{"$f":"'JAM Download'!E1546","v":0},"P",{"$f":"VLOOKUP($I1479,Func,2)*$H1479","v":0},{"$f":"VLOOKUP($I1479,Func,3)*$H1479","v":0},{"$f":"VLOOKUP($I1479,Func,5)*$H1479","v":0},{"$f":"VLOOKUP($I1479,Func,6)*$H1479","v":0},{"$f":"VLOOKUP($I1479,Func,7)*$H1479","v":0},null,{"$f":"Demand","v":0.38},{"$f":"+$J1479*$P1479","v":0},{"$f":"+$J1479*(1-$P1479)","v":0},null,{"$f":"+$K1479*$S1479","v":0},{"$f":"+$K1479*(1-$S1479)","v":0},null,null,null,null,null,null,null,"UACCT323DGP",{"$f":"ROUND(SUM(-H1479,J1479:N1479),0)","v":0},{"$f":"ROUND(J1479-Q1479-R1479,0)","v":0},{"$f":"ROUND(K1479-T1479-U1479,0)","v":0},{"$f":"ROUND(L1479-W1479-X1479-Y1479-Z1479-AA1479,0)","v":0}]
[1480,null,null,"SG",323,"SG","ACCT323SG",{"$f":"'JAM Download'!E1547","v":0},"P",{"$f":"VLOOKUP($I1480,Func,2)*$H1480","v":0},{"$f":"VLOOKUP($I1480,Func,3)*$H1480","v":0},{"$f":"VLOOKUP($I1480,Func,5)*$H1480","v":0},{"$f":"VLOOKUP($I1480,Func,6)*$H1480","v":0},{"$f":"VLOOKUP($I1480,Func,7)*$H1480","v":0},null,{"$f":"Demand","v":0.38},{"$f":"+$J1480*$P1480","v":0},{"$f":"+$J1480*(1-$P1480)","v":0},null,{"$f":"+$K1480*$S1480","v":0},{"$f":"+$K1480*(1-$S1480)","v":0},null,null,null,null,null,null,null,"UACCT323SGP",{"$f":"ROUND(SUM(-H1480,J1480:N1480),0)","v":0},{"$f":"ROUND(J1480-Q1480-R1480,0)","v":0},{"$f":"ROUND(K1480-T1480-U1480,0)","v":0},{"$f":"ROUND(L1480-W1480-X1480-Y1480-Z1480-AA1480,0)","v":0}]
[1481,null,null,null,null,null,"ACCT323",{"$f":"'JAM Download'!E1548","v":0},null,{"$f":"SUM(J1479:J1480)","v":0},{"$f":"SUM(K1479:K1480)","v":0},{"$f":"SUM(L1479:L1480)","v":0},{"$f":"SUM(M1479:M1480)","v":0},{"$f":"SUM(N1479:N1480)","v":0},null,null,{"$f":"SUM(Q1479:Q1480)","v":0},{"$f":"SUM(R1479:R1480)","v":0},null,{"$f":"SUM(T1479:T1480)","v":0},{"$f":"SUM(U1479:U1480)","v":0},null,{"$f":"SUM(W1479:W1480)","v":0},{"$f":"SUM(X1479:X1480)","v":0},{"$f":"SUM(Y1479:Y1480)","v":0},{"$f":"SUM(Z1479:Z1480)","v":0},{"$f":"SUM(AA1479:AA1480)","v":0},0,"UACCT323",{"$f":"ROUND(SUM(-H1481,J1481:N1481),0)","v":0},{"$f":"ROUND(J1481-Q1481-R1481,0)","v":0},{"$f":"ROUND(K1481-T1481-U1481,0)","v":0},{"$f":"ROUND(L1481-W1481-X1481-Y1481-Z1481-AA1481,0)","v":0}]
[1482]
[1483,324,"Land and Land Rights"]
[1484,null,null,"DGP",324,"DGP","ACCT324DGP",{"$f":"'JAM Download'!E1551","v":0},"P",{"$f":"VLOOKUP($I1484,Func,2)*$H1484","v":0},{"$f":"VLOOKUP($I1484,Func,3)*$H1484","v":0},{"$f":"VLOOKUP($I1484,Func,5)*$H1484","v":0},{"$f":"VLOOKUP($I1484,Func,6)*$H1484","v":0},{"$f":"VLOOKUP($I1484,Func,7)*$H1484","v":0},null,{"$f":"Demand","v":0.38},{"$f":"+$J1484*$P1484","v":0},{"$f":"+$J1484*(1-$P1484)","v":0},null,{"$f":"+$K1484*$S1484","v":0},{"$f":"+$K1484*(1-$S1484)","v":0},null,null,null,null,null,null,null,"UACCT324DGP",{"$f":"ROUND(SUM(-H1484,J1484:N1484),0)","v":0},{"$f":"ROUND(J1484-Q1484-R1484,0)","v":0},{"$f":"ROUND(K1484-T1484-U1484,0)","v":0},{"$f":"ROUND(L1484-W1484-X1484-Y1484-Z1484-AA1484,0)","v":0}]
[1485,null,null,"SG",324,"SG","ACCT324SG",{"$f":"'JAM Download'!E1552","v":0},"P",{"$f":"VLOOKUP($I1485,Func,2)*$H1485","v":0},{"$f":"VLOOKUP($I1485,Func,3)*$H1485","v":0},{"$f":"VLOOKUP($I1485,Func,5)*$H1485","v":0},{"$f":"VLOOKUP($I1485,Func,6)*$H1485","v":0},{"$f":"VLOOKUP($I1485,Func,7)*$H1485","v":0},null,{"$f":"Demand","v":0.38},{"$f":"+$J1485*$P1485","v":0},{"$f":"+$J1485*(1-$P1485)","v":0},null,{"$f":"+$K1485*$S1485","v":0},{"$f":"+$K1485*(1-$S1485)","v":0},null,null,null,null,null,null,null,"UACCT324SGP",{"$f":"ROUND(SUM(-H1485,J1485:N1485),0)","v":0},{"$f":"ROUND(J1485-Q1485-R1485,0)","v":0},{"$f":"ROUND(K1485-T1485-U1485,0)","v":0},{"$f":"ROUND(L1485-W1485-X1485-Y1485-Z1485-AA1485,0)","v":0}]
[1486,null,null,null,null,null,"ACCT324",{"$f":"'JAM Download'!E1553","v":0},null,{"$f":"SUM(J1484:J1485)","v":0},{"$f":"SUM(K1484:K1485)","v":0},{"$f":"SUM(L1484:L1485)","v":0},{"$f":"SUM(M1484:M1485)","v":0},{"$f":"SUM(N1484:N1485)","v":0},null,null,{"$f":"SUM(Q1484:Q1485)","v":0},{"$f":"SUM(R1484:R1485)","v":0},null,{"$f":"SUM(T1484:T1485)","v":0},{"$f":"SUM(U1484:U1485)","v":0},null,{"$f":"SUM(W1484:W1485)","v":0},{"$f":"SUM(X1484:X1485)","v":0},{"$f":"SUM(Y1484:Y1485)","v":0},{"$f":"SUM(Z1484:Z1485)","v":0},{"$f":"SUM(AA1484:AA1485)","v":0},0,"UACCT324",{"$f":"ROUND(SUM(-H1486,J1486:N1486),0)","v":0},{"$f":"ROUND(J1486-Q1486-R1486,0)","v":0},{"$f":"ROUND(K1486-T1486-U1486,0)","v":0},{"$f":"ROUND(L1486-W1486-X1486-Y1486-Z1486-AA1486,0)","v":0}]
[1487]
[1488,325,"Misc. Power Plant Equipment"]
[1489,null,null,"DGP",325,"DGP","ACCT325DGP",{"$f":"'JAM Download'!E1556","v":0},"P",{"$f":"VLOOKUP($I1489,Func,2)*$H1489","v":0},{"$f":"VLOOKUP($I1489,Func,3)*$H1489","v":0},{"$f":"VLOOKUP($I1489,Func,5)*$H1489","v":0},{"$f":"VLOOKUP($I1489,Func,6)*$H1489","v":0},{"$f":"VLOOKUP($I1489,Func,7)*$H1489","v":0},null,{"$f":"Demand","v":0.38},{"$f":"+$J1489*$P1489","v":0},{"$f":"+$J1489*(1-$P1489)","v":0},null,{"$f":"+$K1489*$S1489","v":0},{"$f":"+$K1489*(1-$S1489)","v":0},null,null,null,null,null,null,null,"UACCT325DGP",{"$f":"ROUND(SUM(-H1489,J1489:N1489),0)","v":0},{"$f":"ROUND(J1489-Q1489-R1489,0)","v":0},{"$f":"ROUND(K1489-T1489-U1489,0)","v":0},{"$f":"ROUND(L1489-W1489-X1489-Y1489-Z1489-AA1489,0)","v":0}]
[1490,null,null,"SG",325,"SG","ACCT325SG",{"$f":"'JAM Download'!E1557","v":0},"P",{"$f":"VLOOKUP($I1490,Func,2)*$H1490","v":0},{"$f":"VLOOKUP($I1490,Func,3)*$H1490","v":0},{"$f":"VLOOKUP($I1490,Func,5)*$H1490","v":0},{"$f":"VLOOKUP($I1490,Func,6)*$H1490","v":0},{"$f":"VLOOKUP($I1490,Func,7)*$H1490","v":0},null,{"$f":"Demand","v":0.38},{"$f":"+$J1490*$P1490","v":0},{"$f":"+$J1490*(1-$P1490)","v":0},null,{"$f":"+$K1490*$S1490","v":0},{"$f":"+$K1490*(1-$S1490)","v":0},null,null,null,null,null,null,null,"UACCT325SGP",{"$f":"ROUND(SUM(-H1490,J1490:N1490),0)","v":0},{"$f":"ROUND(J1490-Q1490-R1490,0)","v":0},{"$f":"ROUND(K1490-T1490-U1490,0)","v":0},{"$f":"ROUND(L1490-W1490-X1490-Y1490-Z1490-AA1490,0)","v":0}]
[1491,null,null,null,null,null,"ACCT325",{"$f":"'JAM Download'!E1558","v":0},null,{"$f":"SUM(J1489:J1490)","v":0},{"$f":"SUM(K1489:K1490)","v":0},{"$f":"SUM(L1489:L1490)","v":0},{"$f":"SUM(M1489:M1490)","v":0},{"$f":"SUM(N1489:N1490)","v":0},null,null,{"$f":"SUM(Q1489:Q1490)","v":0},{"$f":"SUM(R1489:R1490)","v":0},null,{"$f":"SUM(T1489:T1490)","v":0},{"$f":"SUM(U1489:U1490)","v":0},null,{"$f":"SUM(W1489:W1490)","v":0},{"$f":"SUM(X1489:X1490)","v":0},{"$f":"SUM(Y1489:Y1490)","v":0},{"$f":"SUM(Z1489:Z1490)","v":0},{"$f":"SUM(AA1489:AA1490)","v":0},0,"UACCT325",{"$f":"ROUND(SUM(-H1491,J1491:N1491),0)","v":0},{"$f":"ROUND(J1491-Q1491-R1491,0)","v":0},{"$f":"ROUND(K1491-T1491-U1491,0)","v":0},{"$f":"ROUND(L1491-W1491-X1491-Y1491-Z1491-AA1491,0)","v":0}]
[1492]
[1493]
[1494,"NP","Unclassified Nuclear Plant - Acct 300"]
[1495,null,null,"SG-P",300,"SG","ACCTNPSGP",{"$f":"'JAM Download'!E1562","v":0},"P",{"$f":"VLOOKUP($I1495,Func,2)*$H1495","v":0},{"$f":"VLOOKUP($I1495,Func,3)*$H1495","v":0},{"$f":"VLOOKUP($I1495,Func,5)*$H1495","v":0},{"$f":"VLOOKUP($I1495,Func,6)*$H1495","v":0},{"$f":"VLOOKUP($I1495,Func,7)*$H1495","v":0},null,{"$f":"Demand","v":0.38},{"$f":"+$J1495*$P1495","v":0},{"$f":"+$J1495*(1-$P1495)","v":0},null,{"$f":"+$K1495*$S1495","v":0},{"$f":"+$K1495*(1-$S1495)","v":0},null,null,null,null,null,null,null,"UACCTNPSGP",{"$f":"ROUND(SUM(-H1495,J1495:N1495),0)","v":0},{"$f":"ROUND(J1495-Q1495-R1495,0)","v":0},{"$f":"ROUND(K1495-T1495-U1495,0)","v":0},{"$f":"ROUND(L1495-W1495-X1495-Y1495-Z1495-AA1495,0)","v":0}]
[1496,null,null,null,null,null,"ACCTNP",{"$f":"'JAM Download'!E1563","v":0},null,{"$f":"SUM(J1495)","v":0},{"$f":"SUM(K1495)","v":0},{"$f":"SUM(L1495)","v":0},{"$f":"SUM(M1495)","v":0},{"$f":"SUM(N1495)","v":0},null,null,{"$f":"SUM(Q1495)","v":0},{"$f":"SUM(R1495)","v":0},null,{"$f":"SUM(T1495)","v":0},{"$f":"SUM(U1495)","v":0},null,{"$f":"SUM(W1495)","v":0},{"$f":"SUM(X1495)","v":0},{"$f":"SUM(Y1495)","v":0},{"$f":"SUM(Z1495)","v":0},{"$f":"SUM(AA1495)","v":0},0,"UACCTNP",{"$f":"ROUND(SUM(-H1496,J1496:N1496),0)","v":0},{"$f":"ROUND(J1496-Q1496-R1496,0)","v":0},{"$f":"ROUND(K1496-T1496-U1496,0)","v":0},{"$f":"ROUND(L1496-W1496-X1496-Y1496-Z1496-AA1496,0)","v":0}]
[1497]
[1498]
[1499,"Total Nuclear Production Plant",null,null,null,null,null,{"$f":"'JAM Download'!E1566","v":0},null,{"$f":"+J1491+J1486+J1481+J1476+J1471+J1466+J1496","v":0},{"$f":"+K1491+K1486+K1481+K1476+K1471+K1466+K1496","v":0},{"$f":"+L1491+L1486+L1481+L1476+L1471+L1466+L1496","v":0},{"$f":"+M1491+M1486+M1481+M1476+M1471+M1466+M1496","v":0},{"$f":"+N1491+N1486+N1481+N1476+N1471+N1466+N1496","v":0},null,null,{"$f":"+Q1491+Q1486+Q1481+Q1476+Q1471+Q1466+Q1496","v":0},{"$f":"+R1491+R1486+R1481+R1476+R1471+R1466+R1496","v":0},null,{"$f":"+T1491+T1486+T1481+T1476+T1471+T1466+T1496","v":0},{"$f":"+U1491+U1486+U1481+U1476+U1471+U1466+U1496","v":0},null,{"$f":"+W1491+W1486+W1481+W1476+W1471+W1466+W1496","v":0},{"$f":"+X1491+X1486+X1481+X1476+X1471+X1466+X1496","v":0},{"$f":"+Y1491+Y1486+Y1481+Y1476+Y1471+Y1466+Y1496","v":0},{"$f":"+Z1491+Z1486+Z1481+Z1476+Z1471+Z1466+Z1496","v":0},{"$f":"+AA1491+AA1486+AA1481+AA1476+AA1471+AA1466+AA1496","v":0},0,null,{"$f":"ROUND(SUM(-H1499,J1499:N1499),0)","v":0},{"$f":"ROUND(J1499-Q1499-R1499,0)","v":0},{"$f":"ROUND(K1499-T1499-U1499,0)","v":0},{"$f":"ROUND(L1499-W1499-X1499-Y1499-Z1499-AA1499,0)","v":0}]
[1500]
[1501]
[1502,"FERC",null,"DESCRIPTION &","FERC",null,"RANGE",{"$f":"+$H$250","v":"Jurisdictional"},"FUNC","GEN","TRN","DIS","RETAIL","MISC",null,"D / E","GEN","GEN","D / E","TRN","TRN","DIS","DIS","DIS","DIS","DIS","DIS","DIS","Unbundled ACCT:","Function","Generation","Transmission","Distribution"]
[1503,"ACCT",null,"CONSENSUS FACTOR","ACCT","FACTOR","NAME","ADJ Total","FACTOR","TOTAL","TOTAL","TOTAL","TOTAL","TOTAL",null,"SPLIT","DEMAND","ENERGY","SPLIT","DEMAND","ENERGY","SPLIT","SUBS","P & C","XFMR","METER","SERVICE","METER","TOTAL","Check","Check","Check","Check"]
[1504]
[1505,330,"Land and Land Rights"]
[1506,null,null,"SG/CAGE/CAGW",330,"CAGW","ACCT330CAGW",{"$f":"'JAM Download'!E1580+'JAM Download'!E1581+'JAM Download'!E1582+'JAM Download'!E1583","v":6515134.992287498},"P",{"$f":"VLOOKUP($I1506,Func,2)*$H1506","v":6515134.992287498},{"$f":"VLOOKUP($I1506,Func,3)*$H1506","v":0},{"$f":"VLOOKUP($I1506,Func,5)*$H1506","v":0},{"$f":"VLOOKUP($I1506,Func,6)*$H1506","v":0},{"$f":"VLOOKUP($I1506,Func,7)*$H1506","v":0},null,{"$f":"Demand","v":0.38},{"$f":"+$J1506*$P1506","v":2475751.2970692492},{"$f":"+$J1506*(1-$P1506)","v":4039383.6952182488},null,{"$f":"+$K1506*$S1506","v":0},{"$f":"+$K1506*(1-$S1506)","v":0},null,null,null,null,null,null,null,"UACCT330DGP",{"$f":"ROUND(SUM(-H1506,J1506:N1506),0)","v":0},{"$f":"ROUND(J1506-Q1506-R1506,0)","v":0},{"$f":"ROUND(K1506-T1506-U1506,0)","v":0},{"$f":"ROUND(L1506-W1506-X1506-Y1506-Z1506-AA1506,0)","v":0}]
[1507,null,null,"DGU/DGP",330,"SGU","ACCT330SGU",{"$f":"'JAM Download'!E1579","v":0},"P",{"$f":"VLOOKUP($I1507,Func,2)*$H1507","v":0},{"$f":"VLOOKUP($I1507,Func,3)*$H1507","v":0},{"$f":"VLOOKUP($I1507,Func,5)*$H1507","v":0},{"$f":"VLOOKUP($I1507,Func,6)*$H1507","v":0},{"$f":"VLOOKUP($I1507,Func,7)*$H1507","v":0},null,{"$f":"Demand","v":0.38},{"$f":"+$J1507*$P1507","v":0},{"$f":"+$J1507*(1-$P1507)","v":0},null,{"$f":"+$K1507*$S1507","v":0},{"$f":"+$K1507*(1-$S1507)","v":0},null,null,null,null,null,null,null,"UACCT330DGU",{"$f":"ROUND(SUM(-H1507,J1507:N1507),0)","v":0},{"$f":"ROUND(J1507-Q1507-R1507,0)","v":0},{"$f":"ROUND(K1507-T1507-U1507,0)","v":0},{"$f":"ROUND(L1507-W1507-X1507-Y1507-Z1507-AA1507,0)","v":0}]
[1508,null,null,null,null,null,"ACCT330",{"$f":"'JAM Download'!E1584","v":6515134.992287498},null,{"$f":"SUM(J1506:J1507)","v":6515134.992287498},{"$f":"SUM(K1506:K1507)","v":0},{"$f":"SUM(L1506:L1507)","v":0},{"$f":"SUM(M1506:M1507)","v":0},{"$f":"SUM(N1506:N1507)","v":0},null,null,{"$f":"SUM(Q1506:Q1507)","v":2475751.2970692492},{"$f":"SUM(R1506:R1507)","v":4039383.6952182488},null,{"$f":"SUM(T1506:T1507)","v":0},{"$f":"SUM(U1506:U1507)","v":0},null,{"$f":"SUM(W1506:W1507)","v":0},{"$f":"SUM(X1506:X1507)","v":0},{"$f":"SUM(Y1506:Y1507)","v":0},{"$f":"SUM(Z1506:Z1507)","v":0},{"$f":"SUM(AA1506:AA1507)","v":0},0,"UACCT330",{"$f":"ROUND(SUM(-H1508,J1508:N1508),0)","v":0},{"$f":"ROUND(J1508-Q1508-R1508,0)","v":0},{"$f":"ROUND(K1508-T1508-U1508,0)","v":0},{"$f":"ROUND(L1508-W1508-X1508-Y1508-Z1508-AA1508,0)","v":0}]
[1509]
[1510,331,"Structures and Improvements"]
[1511,null,null,"SG/CAGE/CAGW",331,"CAGW","ACCT331CAGW",{"$f":"'JAM Download'!E1589+'JAM Download'!E1590+'JAM Download'!E1591+'JAM Download'!E1592","v":28839076.823929302},"P",{"$f":"VLOOKUP($I1511,Func,2)*$H1511","v":28839076.823929302},{"$f":"VLOOKUP($I1511,Func,3)*$H1511","v":0},{"$f":"VLOOKUP($I1511,Func,5)*$H1511","v":0},{"$f":"VLOOKUP($I1511,Func,6)*$H1511","v":0},{"$f":"VLOOKUP($I1511,Func,7)*$H1511","v":0},null,{"$f":"Demand","v":0.38},{"$f":"+$J1511*$P1511","v":10958849.193093136},{"$f":"+$J1511*(1-$P1511)","v":17880227.630836166},null,{"$f":"+$K1511*$S1511","v":0},{"$f":"+$K1511*(1-$S1511)","v":0},null,null,null,null,null,null,null,"UACCT331DGP",{"$f":"ROUND(SUM(-H1511,J1511:N1511),0)","v":0},{"$f":"ROUND(J1511-Q1511-R1511,0)","v":0},{"$f":"ROUND(K1511-T1511-U1511,0)","v":0},{"$f":"ROUND(L1511-W1511-X1511-Y1511-Z1511-AA1511,0)","v":0}]
[1512,null,null,"DGU/DGP",331,"SGU","ACCT331SGU",{"$f":"'JAM Download'!E1588","v":0},"P",{"$f":"VLOOKUP($I1512,Func,2)*$H1512","v":0},{"$f":"VLOOKUP($I1512,Func,3)*$H1512","v":0},{"$f":"VLOOKUP($I1512,Func,5)*$H1512","v":0},{"$f":"VLOOKUP($I1512,Func,6)*$H1512","v":0},{"$f":"VLOOKUP($I1512,Func,7)*$H1512","v":0},null,{"$f":"Demand","v":0.38},{"$f":"+$J1512*$P1512","v":0},{"$f":"+$J1512*(1-$P1512)","v":0},null,{"$f":"+$K1512*$S1512","v":0},{"$f":"+$K1512*(1-$S1512)","v":0},null,null,null,null,null,null,null,"UACCT331DGU",{"$f":"ROUND(SUM(-H1512,J1512:N1512),0)","v":0},{"$f":"ROUND(J1512-Q1512-R1512,0)","v":0},{"$f":"ROUND(K1512-T1512-U1512,0)","v":0},{"$f":"ROUND(L1512-W1512-X1512-Y1512-Z1512-AA1512,0)","v":0}]
[1513,null,null,null,null,null,"ACCT331",{"$f":"'JAM Download'!E1593","v":28839076.823929302},null,{"$f":"SUM(J1511:J1512)","v":28839076.823929302},{"$f":"SUM(K1511:K1512)","v":0},{"$f":"SUM(L1511:L1512)","v":0},{"$f":"SUM(M1511:M1512)","v":0},{"$f":"SUM(N1511:N1512)","v":0},null,null,{"$f":"SUM(Q1511:Q1512)","v":10958849.193093136},{"$f":"SUM(R1511:R1512)","v":17880227.630836166},null,{"$f":"SUM(T1511:T1512)","v":0},{"$f":"SUM(U1511:U1512)","v":0},null,{"$f":"SUM(W1511:W1512)","v":0},{"$f":"SUM(X1511:X1512)","v":0},{"$f":"SUM(Y1511:Y1512)","v":0},{"$f":"SUM(Z1511:Z1512)","v":0},{"$f":"SUM(AA1511:AA1512)","v":0},0,"UACCT331",{"$f":"ROUND(SUM(-H1513,J1513:N1513),0)","v":0},{"$f":"ROUND(J1513-Q1513-R1513,0)","v":0},{"$f":"ROUND(K1513-T1513-U1513,0)","v":0},{"$f":"ROUND(L1513-W1513-X1513-Y1513-Z1513-AA1513,0)","v":0}]
[1514]
[1515,332,"Reservoirs, Dams & Waterways"]
[1516,null,null,"SG/CAGE/CAGW",332,"CAGW","ACCT332CAGW",{"$f":"'JAM Download'!E1598+'JAM Download'!E1599+'JAM Download'!E1600+'JAM Download'!E1601","v":103763388.21253854},"P",{"$f":"VLOOKUP($I1516,Func,2)*$H1516","v":103763388.21253854},{"$f":"VLOOKUP($I1516,Func,3)*$H1516","v":0},{"$f":"VLOOKUP($I1516,Func,5)*$H1516","v":0},{"$f":"VLOOKUP($I1516,Func,6)*$H1516","v":0},{"$f":"VLOOKUP($I1516,Func,7)*$H1516","v":0},null,{"$f":"Demand","v":0.38},{"$f":"+$J1516*$P1516","v":39430087.520764649},{"$f":"+$J1516*(1-$P1516)","v":64333300.691773891},null,{"$f":"+$K1516*$S1516","v":0},{"$f":"+$K1516*(1-$S1516)","v":0},null,null,null,null,null,null,null,"UACCT332DGP",{"$f":"ROUND(SUM(-H1516,J1516:N1516),0)","v":0},{"$f":"ROUND(J1516-Q1516-R1516,0)","v":0},{"$f":"ROUND(K1516-T1516-U1516,0)","v":0},{"$f":"ROUND(L1516-W1516-X1516-Y1516-Z1516-AA1516,0)","v":0}]
[1517,null,null,"DGU/DGP",332,"SGU","ACCT332SGU",{"$f":"'JAM Download'!E1597","v":0},"P",{"$f":"VLOOKUP($I1517,Func,2)*$H1517","v":0},{"$f":"VLOOKUP($I1517,Func,3)*$H1517","v":0},{"$f":"VLOOKUP($I1517,Func,5)*$H1517","v":0},{"$f":"VLOOKUP($I1517,Func,6)*$H1517","v":0},{"$f":"VLOOKUP($I1517,Func,7)*$H1517","v":0},null,{"$f":"Demand","v":0.38},{"$f":"+$J1517*$P1517","v":0},{"$f":"+$J1517*(1-$P1517)","v":0},null,{"$f":"+$K1517*$S1517","v":0},{"$f":"+$K1517*(1-$S1517)","v":0},null,null,null,null,null,null,null,"UACCT332DGU",{"$f":"ROUND(SUM(-H1517,J1517:N1517),0)","v":0},{"$f":"ROUND(J1517-Q1517-R1517,0)","v":0},{"$f":"ROUND(K1517-T1517-U1517,0)","v":0},{"$f":"ROUND(L1517-W1517-X1517-Y1517-Z1517-AA1517,0)","v":0}]
[1518,null,null,null,null,null,"ACCT332",{"$f":"'JAM Download'!E1602","v":103763388.21253854},null,{"$f":"SUM(J1516:J1517)","v":103763388.21253854},{"$f":"SUM(K1516:K1517)","v":0},{"$f":"SUM(L1516:L1517)","v":0},{"$f":"SUM(M1516:M1517)","v":0},{"$f":"SUM(N1516:N1517)","v":0},null,null,{"$f":"SUM(Q1516:Q1517)","v":39430087.520764649},{"$f":"SUM(R1516:R1517)","v":64333300.691773891},null,{"$f":"SUM(T1516:T1517)","v":0},{"$f":"SUM(U1516:U1517)","v":0},null,{"$f":"SUM(W1516:W1517)","v":0},{"$f":"SUM(X1516:X1517)","v":0},{"$f":"SUM(Y1516:Y1517)","v":0},{"$f":"SUM(Z1516:Z1517)","v":0},{"$f":"SUM(AA1516:AA1517)","v":0},0,"UACCT332",{"$f":"ROUND(SUM(-H1518,J1518:N1518),0)","v":0},{"$f":"ROUND(J1518-Q1518-R1518,0)","v":0},{"$f":"ROUND(K1518-T1518-U1518,0)","v":0},{"$f":"ROUND(L1518-W1518-X1518-Y1518-Z1518-AA1518,0)","v":0}]
[1519]
[1520,333,"Water Wheel, Turbines, & Generators"]
[1521,null,null,"SG/CAGE/CAGW",333,"CAGW","ACCT333CAGW",{"$f":"'JAM Download'!E1607+'JAM Download'!E1608+'JAM Download'!E1609+'JAM Download'!E1610","v":17793902.257539757},"P",{"$f":"VLOOKUP($I1521,Func,2)*$H1521","v":17793902.257539757},{"$f":"VLOOKUP($I1521,Func,3)*$H1521","v":0},{"$f":"VLOOKUP($I1521,Func,5)*$H1521","v":0},{"$f":"VLOOKUP($I1521,Func,6)*$H1521","v":0},{"$f":"VLOOKUP($I1521,Func,7)*$H1521","v":0},null,{"$f":"Demand","v":0.38},{"$f":"+$J1521*$P1521","v":6761682.8578651072},{"$f":"+$J1521*(1-$P1521)","v":11032219.399674648},null,{"$f":"+$K1521*$S1521","v":0},{"$f":"+$K1521*(1-$S1521)","v":0},null,null,null,null,null,null,null,"UACCT333DGP",{"$f":"ROUND(SUM(-H1521,J1521:N1521),0)","v":0},{"$f":"ROUND(J1521-Q1521-R1521,0)","v":0},{"$f":"ROUND(K1521-T1521-U1521,0)","v":0},{"$f":"ROUND(L1521-W1521-X1521-Y1521-Z1521-AA1521,0)","v":0}]
[1522,null,null,"DGU/DGP",333,"SGU","ACCT333SGU",{"$f":"'JAM Download'!E1552+'JAM Download'!E1553","v":0},"P",{"$f":"VLOOKUP($I1522,Func,2)*$H1522","v":0},{"$f":"VLOOKUP($I1522,Func,3)*$H1522","v":0},{"$f":"VLOOKUP($I1522,Func,5)*$H1522","v":0},{"$f":"VLOOKUP($I1522,Func,6)*$H1522","v":0},{"$f":"VLOOKUP($I1522,Func,7)*$H1522","v":0},null,{"$f":"Demand","v":0.38},{"$f":"+$J1522*$P1522","v":0},{"$f":"+$J1522*(1-$P1522)","v":0},null,{"$f":"+$K1522*$S1522","v":0},{"$f":"+$K1522*(1-$S1522)","v":0},null,null,null,null,null,null,null,"UACCT333DGU",{"$f":"ROUND(SUM(-H1522,J1522:N1522),0)","v":0},{"$f":"ROUND(J1522-Q1522-R1522,0)","v":0},{"$f":"ROUND(K1522-T1522-U1522,0)","v":0},{"$f":"ROUND(L1522-W1522-X1522-Y1522-Z1522-AA1522,0)","v":0}]
[1523,null,null,null,null,null,"ACCT333",{"$f":"'JAM Download'!E1611","v":17793902.257539757},null,{"$f":"SUM(J1521:J1522)","v":17793902.257539757},{"$f":"SUM(K1521:K1522)","v":0},{"$f":"SUM(L1521:L1522)","v":0},{"$f":"SUM(M1521:M1522)","v":0},{"$f":"SUM(N1521:N1522)","v":0},null,null,{"$f":"SUM(Q1521:Q1522)","v":6761682.8578651072},{"$f":"SUM(R1521:R1522)","v":11032219.399674648},null,{"$f":"SUM(T1521:T1522)","v":0},{"$f":"SUM(U1521:U1522)","v":0},null,{"$f":"SUM(W1521:W1522)","v":0},{"$f":"SUM(X1521:X1522)","v":0},{"$f":"SUM(Y1521:Y1522)","v":0},{"$f":"SUM(Z1521:Z1522)","v":0},{"$f":"SUM(AA1521:AA1522)","v":0},0,"UACCT333",{"$f":"ROUND(SUM(-H1523,J1523:N1523),0)","v":0},{"$f":"ROUND(J1523-Q1523-R1523,0)","v":0},{"$f":"ROUND(K1523-T1523-U1523,0)","v":0},{"$f":"ROUND(L1523-W1523-X1523-Y1523-Z1523-AA1523,0)","v":0}]
[1524]
[1525,334,"Accessory Electric Equipment"]
[1526,null,null,"SG/CAGE/CAGW",334,"CAGW","ACCT334CAGW",{"$f":"'JAM Download'!E1616+'JAM Download'!E1617+'JAM Download'!E1618+'JAM Download'!E1619","v":12476121.21194754},"P",{"$f":"VLOOKUP($I1526,Func,2)*$H1526","v":12476121.21194754},{"$f":"VLOOKUP($I1526,Func,3)*$H1526","v":0},{"$f":"VLOOKUP($I1526,Func,5)*$H1526","v":0},{"$f":"VLOOKUP($I1526,Func,6)*$H1526","v":0},{"$f":"VLOOKUP($I1526,Func,7)*$H1526","v":0},null,{"$f":"Demand","v":0.38},{"$f":"+$J1526*$P1526","v":4740926.0605400652},{"$f":"+$J1526*(1-$P1526)","v":7735195.1514074747},null,{"$f":"+$K1526*$S1526","v":0},{"$f":"+$K1526*(1-$S1526)","v":0},null,null,null,null,null,null,null,"UACCT334DGP",{"$f":"ROUND(SUM(-H1526,J1526:N1526),0)","v":0},{"$f":"ROUND(J1526-Q1526-R1526,0)","v":0},{"$f":"ROUND(K1526-T1526-U1526,0)","v":0},{"$f":"ROUND(L1526-W1526-X1526-Y1526-Z1526-AA1526,0)","v":0}]
[1527,null,null,"DGU/DGP",334,"SGU","ACCT334SGU",{"$f":"'JAM Download'!E1615","v":0},"P",{"$f":"VLOOKUP($I1527,Func,2)*$H1527","v":0},{"$f":"VLOOKUP($I1527,Func,3)*$H1527","v":0},{"$f":"VLOOKUP($I1527,Func,5)*$H1527","v":0},{"$f":"VLOOKUP($I1527,Func,6)*$H1527","v":0},{"$f":"VLOOKUP($I1527,Func,7)*$H1527","v":0},null,{"$f":"Demand","v":0.38},{"$f":"+$J1527*$P1527","v":0},{"$f":"+$J1527*(1-$P1527)","v":0},null,{"$f":"+$K1527*$S1527","v":0},{"$f":"+$K1527*(1-$S1527)","v":0},null,null,null,null,null,null,null,"UACCT334DGU",{"$f":"ROUND(SUM(-H1527,J1527:N1527),0)","v":0},{"$f":"ROUND(J1527-Q1527-R1527,0)","v":0},{"$f":"ROUND(K1527-T1527-U1527,0)","v":0},{"$f":"ROUND(L1527-W1527-X1527-Y1527-Z1527-AA1527,0)","v":0}]
[1528,null,null,null,null,null,"ACCT334",{"$f":"'JAM Download'!E1620","v":12476121.21194754},null,{"$f":"SUM(J1526:J1527)","v":12476121.21194754},{"$f":"SUM(K1526:K1527)","v":0},{"$f":"SUM(L1526:L1527)","v":0},{"$f":"SUM(M1526:M1527)","v":0},{"$f":"SUM(N1526:N1527)","v":0},null,null,{"$f":"SUM(Q1526:Q1527)","v":4740926.0605400652},{"$f":"SUM(R1526:R1527)","v":7735195.1514074747},null,{"$f":"SUM(T1526:T1527)","v":0},{"$f":"SUM(U1526:U1527)","v":0},null,{"$f":"SUM(W1526:W1527)","v":0},{"$f":"SUM(X1526:X1527)","v":0},{"$f":"SUM(Y1526:Y1527)","v":0},{"$f":"SUM(Z1526:Z1527)","v":0},{"$f":"SUM(AA1526:AA1527)","v":0},0,"UACCT334",{"$f":"ROUND(SUM(-H1528,J1528:N1528),0)","v":0},{"$f":"ROUND(J1528-Q1528-R1528,0)","v":0},{"$f":"ROUND(K1528-T1528-U1528,0)","v":0},{"$f":"ROUND(L1528-W1528-X1528-Y1528-Z1528-AA1528,0)","v":0}]
[1529]
[1530,335,"Misc. Power Plant Equipment"]
[1531,null,null,"SG/CAGE/CAGW",335,"CAGW","ACCT335CAGW",{"$f":"'JAM Download'!E1627+'JAM Download'!E1628+'JAM Download'!E1629+'JAM Download'!E1630","v":495178.87370834715},"P",{"$f":"VLOOKUP($I1531,Func,2)*$H1531","v":495178.87370834715},{"$f":"VLOOKUP($I1531,Func,3)*$H1531","v":0},{"$f":"VLOOKUP($I1531,Func,5)*$H1531","v":0},{"$f":"VLOOKUP($I1531,Func,6)*$H1531","v":0},{"$f":"VLOOKUP($I1531,Func,7)*$H1531","v":0},null,{"$f":"Demand","v":0.38},{"$f":"+$J1531*$P1531","v":188167.97200917191},{"$f":"+$J1531*(1-$P1531)","v":307010.90169917524},null,{"$f":"+$K1531*$S1531","v":0},{"$f":"+$K1531*(1-$S1531)","v":0},null,null,null,null,null,null,null,"UACCT335DGP",{"$f":"ROUND(SUM(-H1531,J1531:N1531),0)","v":0},{"$f":"ROUND(J1531-Q1531-R1531,0)","v":0},{"$f":"ROUND(K1531-T1531-U1531,0)","v":0},{"$f":"ROUND(L1531-W1531-X1531-Y1531-Z1531-AA1531,0)","v":0}]
[1532,null,null,"DGU/DGP",335,"SGU","ACCT335SGU",{"$f":"'JAM Download'!E1626","v":0},"P",{"$f":"VLOOKUP($I1532,Func,2)*$H1532","v":0},{"$f":"VLOOKUP($I1532,Func,3)*$H1532","v":0},{"$f":"VLOOKUP($I1532,Func,5)*$H1532","v":0},{"$f":"VLOOKUP($I1532,Func,6)*$H1532","v":0},{"$f":"VLOOKUP($I1532,Func,7)*$H1532","v":0},null,{"$f":"Demand","v":0.38},{"$f":"+$J1532*$P1532","v":0},{"$f":"+$J1532*(1-$P1532)","v":0},null,{"$f":"+$K1532*$S1532","v":0},{"$f":"+$K1532*(1-$S1532)","v":0},null,null,null,null,null,null,null,"UACCT335DGU",{"$f":"ROUND(SUM(-H1532,J1532:N1532),0)","v":0},{"$f":"ROUND(J1532-Q1532-R1532,0)","v":0},{"$f":"ROUND(K1532-T1532-U1532,0)","v":0},{"$f":"ROUND(L1532-W1532-X1532-Y1532-Z1532-AA1532,0)","v":0}]
[{"$f":"A1532+1","v":1533},null,null,null,null,null,"ACCT335",{"$f":"'JAM Download'!E1631","v":495178.87370834715},null,{"$f":"SUM(J1531:J1532)","v":495178.87370834715},{"$f":"SUM(K1531:K1532)","v":0},{"$f":"SUM(L1531:L1532)","v":0},{"$f":"SUM(M1531:M1532)","v":0},{"$f":"SUM(N1531:N1532)","v":0},null,null,{"$f":"SUM(Q1531:Q1532)","v":188167.97200917191},{"$f":"SUM(R1531:R1532)","v":307010.90169917524},null,{"$f":"SUM(T1531:T1532)","v":0},{"$f":"SUM(U1531:U1532)","v":0},null,{"$f":"SUM(W1531:W1532)","v":0},{"$f":"SUM(X1531:X1532)","v":0},{"$f":"SUM(Y1531:Y1532)","v":0},{"$f":"SUM(Z1531:Z1532)","v":0},{"$f":"SUM(AA1531:AA1532)","v":0},0,"UACCT335",{"$f":"ROUND(SUM(-H1533,J1533:N1533),0)","v":0},{"$f":"ROUND(J1533-Q1533-R1533,0)","v":0},{"$f":"ROUND(K1533-T1533-U1533,0)","v":0},{"$f":"ROUND(L1533-W1533-X1533-Y1533-Z1533-AA1533,0)","v":0}]
[1534]
[1535,336,"Roads, Railroads & Bridges"]
[1536,null,null,"SG/CAGE/CAGW",336,"CAGW","ACCT336CAGW",{"$f":"'JAM Download'!E1636+'JAM Download'!E1637+'JAM Download'!E1638+'JAM Download'!E1639","v":3412004.7371286065},"P",{"$f":"VLOOKUP($I1536,Func,2)*$H1536","v":3412004.7371286065},{"$f":"VLOOKUP($I1536,Func,3)*$H1536","v":0},{"$f":"VLOOKUP($I1536,Func,5)*$H1536","v":0},{"$f":"VLOOKUP($I1536,Func,6)*$H1536","v":0},{"$f":"VLOOKUP($I1536,Func,7)*$H1536","v":0},null,{"$f":"Demand","v":0.38},{"$f":"+$J1536*$P1536","v":1296561.8001088705},{"$f":"+$J1536*(1-$P1536)","v":2115442.937019736},null,{"$f":"+$K1536*$S1536","v":0},{"$f":"+$K1536*(1-$S1536)","v":0},null,null,null,null,null,null,null,"UACCT336DGP",{"$f":"ROUND(SUM(-H1536,J1536:N1536),0)","v":0},{"$f":"ROUND(J1536-Q1536-R1536,0)","v":0},{"$f":"ROUND(K1536-T1536-U1536,0)","v":0},{"$f":"ROUND(L1536-W1536-X1536-Y1536-Z1536-AA1536,0)","v":0}]
[1537,null,null,"CAEW",336,"CAEW","ACCT336CAEW",0,"P",{"$f":"VLOOKUP($I1537,Func,2)*$H1537","v":0},{"$f":"VLOOKUP($I1537,Func,3)*$H1537","v":0},{"$f":"VLOOKUP($I1537,Func,5)*$H1537","v":0},{"$f":"VLOOKUP($I1537,Func,6)*$H1537","v":0},{"$f":"VLOOKUP($I1537,Func,7)*$H1537","v":0},null,{"$f":"Demand","v":0.38},{"$f":"+$J1537*$P1537","v":0},{"$f":"+$J1537*(1-$P1537)","v":0},null,{"$f":"+$K1537*$S1537","v":0},{"$f":"+$K1537*(1-$S1537)","v":0},null,null,null,null,null,null,null,"UACCT336CAEW",{"$f":"ROUND(SUM(-H1537,J1537:N1537),0)","v":0},{"$f":"ROUND(J1537-Q1537-R1537,0)","v":0},{"$f":"ROUND(K1537-T1537-U1537,0)","v":0},{"$f":"ROUND(L1537-W1537-X1537-Y1537-Z1537-AA1537,0)","v":0}]
[1538,null,null,"DGU/DGP",336,"SGU","ACCT336SGU",{"$f":"'JAM Download'!E1635","v":0},"P",{"$f":"VLOOKUP($I1538,Func,2)*$H1538","v":0},{"$f":"VLOOKUP($I1538,Func,3)*$H1538","v":0},{"$f":"VLOOKUP($I1538,Func,5)*$H1538","v":0},{"$f":"VLOOKUP($I1538,Func,6)*$H1538","v":0},{"$f":"VLOOKUP($I1538,Func,7)*$H1538","v":0},null,{"$f":"Demand","v":0.38},{"$f":"+$J1538*$P1538","v":0},{"$f":"+$J1538*(1-$P1538)","v":0},null,{"$f":"+$K1538*$S1538","v":0},{"$f":"+$K1538*(1-$S1538)","v":0},null,null,null,null,null,null,null,"UACCT336DGU",{"$f":"ROUND(SUM(-H1538,J1538:N1538),0)","v":0},{"$f":"ROUND(J1538-Q1538-R1538,0)","v":0},{"$f":"ROUND(K1538-T1538-U1538,0)","v":0},{"$f":"ROUND(L1538-W1538-X1538-Y1538-Z1538-AA1538,0)","v":0}]
[1539,null,null,null,null,null,"ACCT336",{"$f":"'JAM Download'!E1640","v":3412004.7371286065},null,{"$f":"SUM(J1536:J1538)","v":3412004.7371286065},{"$f":"SUM(K1536:K1538)","v":0},{"$f":"SUM(L1536:L1538)","v":0},{"$f":"SUM(M1536:M1538)","v":0},{"$f":"SUM(N1536:N1538)","v":0},null,null,{"$f":"SUM(Q1536:Q1538)","v":1296561.8001088705},{"$f":"SUM(R1536:R1538)","v":2115442.937019736},null,{"$f":"SUM(T1536:T1538)","v":0},{"$f":"SUM(U1536:U1538)","v":0},null,{"$f":"SUM(W1536:W1538)","v":0},{"$f":"SUM(X1536:X1538)","v":0},{"$f":"SUM(Y1536:Y1538)","v":0},{"$f":"SUM(Z1536:Z1538)","v":0},{"$f":"SUM(AA1536:AA1538)","v":0},0,"UACCT336",{"$f":"ROUND(SUM(-H1539,J1539:N1539),0)","v":0},{"$f":"ROUND(J1539-Q1539-R1539,0)","v":0},{"$f":"ROUND(K1539-T1539-U1539,0)","v":0},{"$f":"ROUND(L1539-W1539-X1539-Y1539-Z1539-AA1539,0)","v":0}]
[1540]
[1541]
[1542,"HP","Unclassified Hydro Plant - Acct 300"]
[1543,null,null,"SG/CAGE/CAGW",300,"SG","ACCTHPSG",{"$f":"'JAM Download'!E1649+'JAM Download'!E1650+'JAM Download'!E1651+'JAM Download'!E1652","v":0},"P",{"$f":"VLOOKUP($I1543,Func,2)*$H1543","v":0},{"$f":"VLOOKUP($I1543,Func,3)*$H1543","v":0},{"$f":"VLOOKUP($I1543,Func,5)*$H1543","v":0},{"$f":"VLOOKUP($I1543,Func,6)*$H1543","v":0},{"$f":"VLOOKUP($I1543,Func,7)*$H1543","v":0},null,{"$f":"Demand","v":0.38},{"$f":"+$J1543*$P1543","v":0},{"$f":"+$J1543*(1-$P1543)","v":0},null,{"$f":"+$K1543*$S1543","v":0},{"$f":"+$K1543*(1-$S1543)","v":0},null,null,null,null,null,null,null,"UACCTH00DGP",{"$f":"ROUND(SUM(-H1543,J1543:N1543),0)","v":0},{"$f":"ROUND(J1543-Q1543-R1543,0)","v":0},{"$f":"ROUND(K1543-T1543-U1543,0)","v":0},{"$f":"ROUND(L1543-W1543-X1543-Y1543-Z1543-AA1543,0)","v":0}]
[1544,null,null,"DGU/DGP",300,"DGU","ACCTHPDGU",{"$f":"'JAM Download'!E1648","v":0},"P",{"$f":"VLOOKUP($I1544,Func,2)*$H1544","v":0},{"$f":"VLOOKUP($I1544,Func,3)*$H1544","v":0},{"$f":"VLOOKUP($I1544,Func,5)*$H1544","v":0},{"$f":"VLOOKUP($I1544,Func,6)*$H1544","v":0},{"$f":"VLOOKUP($I1544,Func,7)*$H1544","v":0},null,{"$f":"Demand","v":0.38},{"$f":"+$J1544*$P1544","v":0},{"$f":"+$J1544*(1-$P1544)","v":0},null,{"$f":"+$K1544*$S1544","v":0},{"$f":"+$K1544*(1-$S1544)","v":0},null,null,null,null,null,null,null,"UACCTH00DGU",{"$f":"ROUND(SUM(-H1544,J1544:N1544),0)","v":0},{"$f":"ROUND(J1544-Q1544-R1544,0)","v":0},{"$f":"ROUND(K1544-T1544-U1544,0)","v":0},{"$f":"ROUND(L1544-W1544-X1544-Y1544-Z1544-AA1544,0)","v":0}]
[1545,null,null,null,null,null,"ACCTHP",{"$f":"'JAM Download'!E1653","v":0},null,{"$f":"SUM(J1543:J1544)","v":0},{"$f":"SUM(K1543:K1544)","v":0},{"$f":"SUM(L1543:L1544)","v":0},{"$f":"SUM(M1543:M1544)","v":0},{"$f":"SUM(N1543:N1544)","v":0},null,null,{"$f":"SUM(Q1543:Q1544)","v":0},{"$f":"SUM(R1543:R1544)","v":0},null,{"$f":"SUM(T1543:T1544)","v":0},{"$f":"SUM(U1543:U1544)","v":0},null,{"$f":"SUM(W1543:W1544)","v":0},{"$f":"SUM(X1543:X1544)","v":0},{"$f":"SUM(Y1543:Y1544)","v":0},{"$f":"SUM(Z1543:Z1544)","v":0},{"$f":"SUM(AA1543:AA1544)","v":0},0,"UACCTH00",{"$f":"ROUND(SUM(-H1545,J1545:N1545),0)","v":0},{"$f":"ROUND(J1545-Q1545-R1545,0)","v":0},{"$f":"ROUND(K1545-T1545-U1545,0)","v":0},{"$f":"ROUND(L1545-W1545-X1545-Y1545-Z1545-AA1545,0)","v":0}]
[1546]
[1547]
[1548,null,null,null,null,null,null,null,null,null,null,null,null,null,null,null,null,null,null,null,null,null,null,null,null,null,null,null,null,{"$f":"ROUND(SUM(-H1548,J1548:N1548),0)","v":0},{"$f":"ROUND(J1548-Q1548-R1548,0)","v":0},{"$f":"ROUND(K1548-T1548-U1548,0)","v":0},{"$f":"ROUND(L1548-W1548-X1548-Y1548-Z1548-AA1548,0)","v":0}]
[1549,null,null,null,null,null,null,null,null,null,null,null,null,null,null,null,null,null,null,null,null,null,null,null,null,null,null,null,null,{"$f":"ROUND(SUM(-H1549,J1549:N1549),0)","v":0},{"$f":"ROUND(J1549-Q1549-R1549,0)","v":0},{"$f":"ROUND(K1549-T1549-U1549,0)","v":0},{"$f":"ROUND(L1549-W1549-X1549-Y1549-Z1549-AA1549,0)","v":0}]
[1550,null,null,null,null,null,null,null,null,null,null,null,null,null,null,null,null,null,null,null,null,null,null,null,null,null,null,null,null,{"$f":"ROUND(SUM(-H1550,J1550:N1550),0)","v":0},{"$f":"ROUND(J1550-Q1550-R1550,0)","v":0},{"$f":"ROUND(K1550-T1550-U1550,0)","v":0},{"$f":"ROUND(L1550-W1550-X1550-Y1550-Z1550-AA1550,0)","v":0}]
[1551,null,null,null,null,null,null,null,null,null,null,null,null,null,null,null,null,null,null,null,null,null,null,null,null,null,null,null,null,{"$f":"ROUND(SUM(-H1551,J1551:N1551),0)","v":0},{"$f":"ROUND(J1551-Q1551-R1551,0)","v":0},{"$f":"ROUND(K1551-T1551-U1551,0)","v":0},{"$f":"ROUND(L1551-W1551-X1551-Y1551-Z1551-AA1551,0)","v":0}]
[1552,null,null,null,null,null,null,null,null,null,null,null,null,null,null,null,null,null,null,null,null,null,null,null,null,null,null,null,null,{"$f":"ROUND(SUM(-H1552,J1552:N1552),0)","v":0},{"$f":"ROUND(J1552-Q1552-R1552,0)","v":0},{"$f":"ROUND(K1552-T1552-U1552,0)","v":0},{"$f":"ROUND(L1552-W1552-X1552-Y1552-Z1552-AA1552,0)","v":0}]
[1553]
[1554,"Total Hydraulic Plant",null,null,null,null,null,{"$f":"'JAM Download'!E1655","v":173294807.10907957},null,{"$f":"+J1545+J1539+J1533+J1528+J1523+J1518+J1513+J1508+J1552","v":173294807.10907957},{"$f":"+K1545+K1539+K1533+K1528+K1523+K1518+K1513+K1508+K1552","v":0},{"$f":"+L1545+L1539+L1533+L1528+L1523+L1518+L1513+L1508+L1552","v":0},{"$f":"+M1545+M1539+M1533+M1528+M1523+M1518+M1513+M1508+M1552","v":0},{"$f":"+N1545+N1539+N1533+N1528+N1523+N1518+N1513+N1508+N1552","v":0},null,null,{"$f":"+Q1545+Q1539+Q1533+Q1528+Q1523+Q1518+Q1513+Q1508+Q1552","v":65852026.701450251},{"$f":"+R1545+R1539+R1533+R1528+R1523+R1518+R1513+R1508+R1552","v":107442780.40762933},null,{"$f":"+T1545+T1539+T1533+T1528+T1523+T1518+T1513+T1508+T1552","v":0},{"$f":"+U1545+U1539+U1533+U1528+U1523+U1518+U1513+U1508+U1552","v":0},null,{"$f":"+W1545+W1539+W1533+W1528+W1523+W1518+W1513+W1508+W1552","v":0},{"$f":"+X1545+X1539+X1533+X1528+X1523+X1518+X1513+X1508+X1552","v":0},{"$f":"+Y1545+Y1539+Y1533+Y1528+Y1523+Y1518+Y1513+Y1508+Y1552","v":0},{"$f":"+Z1545+Z1539+Z1533+Z1528+Z1523+Z1518+Z1513+Z1508+Z1552","v":0},{"$f":"+AA1545+AA1539+AA1533+AA1528+AA1523+AA1518+AA1513+AA1508+AA1552","v":0},0,null,{"$f":"ROUND(SUM(-H1554,J1554:N1554),0)","v":0},{"$f":"ROUND(J1554-Q1554-R1554,0)","v":0},{"$f":"ROUND(K1554-T1554-U1554,0)","v":0},{"$f":"ROUND(L1554-W1554-X1554-Y1554-Z1554-AA1554,0)","v":0}]
[1555]
[1556]
[1557]
[1558]
[1559]
[1560,"FERC",null,"DESCRIPTION &","FERC",null,"RANGE",{"$f":"+$H$250","v":"Jurisdictional"},"FUNC","GEN","TRN","DIS","RETAIL","MISC",null,"D / E","GEN","GEN","D / E","TRN","TRN","DIS","DIS","DIS","DIS","DIS","DIS","DIS","Unbundled ACCT:","Function","Generation","Transmission","Distribution"]
[1561,"ACCT",null,"CONSENSUS FACTOR","ACCT","FACTOR","NAME","ADJ Total","FACTOR","TOTAL","TOTAL","TOTAL","TOTAL","TOTAL",null,"SPLIT","DEMAND","ENERGY","SPLIT","DEMAND","ENERGY","SPLIT","SUBS","P & C","XFMR","METER","SERVICE","METER","TOTAL","Check","Check","Check","Check"]
[1562]
[1563,340,"Land and Land Rights"]
[1564,null,null,"SG/CAGE/CAGW",340,"CAGW","ACCT340CAGW",{"$f":"'JAM Download'!E1667+'JAM Download'!E1669+'JAM Download'!E1670+'JAM Download'!E1671","v":637169.99365856522},"P",{"$f":"VLOOKUP($I1564,Func,2)*$H1564","v":637169.99365856522},{"$f":"VLOOKUP($I1564,Func,3)*$H1564","v":0},{"$f":"VLOOKUP($I1564,Func,5)*$H1564","v":0},{"$f":"VLOOKUP($I1564,Func,6)*$H1564","v":0},{"$f":"VLOOKUP($I1564,Func,7)*$H1564","v":0},null,{"$f":"Demand","v":0.38},{"$f":"+$J1564*$P1564","v":242124.59759025479},{"$f":"+$J1564*(1-$P1564)","v":395045.39606831042},null,{"$f":"+$K1564*$S1564","v":0},{"$f":"+$K1564*(1-$S1564)","v":0},null,null,null,null,null,null,null,"UACCT340SG",{"$f":"ROUND(SUM(-H1564,J1564:N1564),0)","v":0},{"$f":"ROUND(J1564-Q1564-R1564,0)","v":0},{"$f":"ROUND(K1564-T1564-U1564,0)","v":0},{"$f":"ROUND(L1564-W1564-X1564-Y1564-Z1564-AA1564,0)","v":0}]
[1565,null,null,"DGU",340,"DGU","ACCT340DGU",{"$f":"'JAM Download'!E1668","v":0},"P",{"$f":"VLOOKUP($I1565,Func,2)*$H1565","v":0},{"$f":"VLOOKUP($I1565,Func,3)*$H1565","v":0},{"$f":"VLOOKUP($I1565,Func,5)*$H1565","v":0},{"$f":"VLOOKUP($I1565,Func,6)*$H1565","v":0},{"$f":"VLOOKUP($I1565,Func,7)*$H1565","v":0},null,{"$f":"Demand","v":0.38},{"$f":"+$J1565*$P1565","v":0},{"$f":"+$J1565*(1-$P1565)","v":0},null,{"$f":"+$K1565*$S1565","v":0},{"$f":"+$K1565*(1-$S1565)","v":0},null,null,null,null,null,null,null,"UACCT340SSGCT",{"$f":"ROUND(SUM(-H1565,J1565:N1565),0)","v":0},{"$f":"ROUND(J1565-Q1565-R1565,0)","v":0},{"$f":"ROUND(K1565-T1565-U1565,0)","v":0},{"$f":"ROUND(L1565-W1565-X1565-Y1565-Z1565-AA1565,0)","v":0}]
[1566,null,null,null,null,null,"ACCT340",{"$f":"'JAM Download'!E1672","v":637169.99365856522},null,{"$f":"SUM(J1564:J1565)","v":637169.99365856522},{"$f":"SUM(K1564:K1565)","v":0},{"$f":"SUM(L1564:L1565)","v":0},{"$f":"SUM(M1564:M1565)","v":0},{"$f":"SUM(N1564:N1565)","v":0},null,null,{"$f":"SUM(Q1564:Q1565)","v":242124.59759025479},{"$f":"SUM(R1564:R1565)","v":395045.39606831042},null,{"$f":"SUM(T1564:T1565)","v":0},{"$f":"SUM(U1564:U1565)","v":0},null,{"$f":"SUM(W1564:W1565)","v":0},{"$f":"SUM(X1564:X1565)","v":0},{"$f":"SUM(Y1564:Y1565)","v":0},{"$f":"SUM(Z1564:Z1565)","v":0},{"$f":"SUM(AA1564:AA1565)","v":0},0,"UACCT340",{"$f":"ROUND(SUM(-H1566,J1566:N1566),0)","v":0},{"$f":"ROUND(J1566-Q1566-R1566,0)","v":0},{"$f":"ROUND(K1566-T1566-U1566,0)","v":0},{"$f":"ROUND(L1566-W1566-X1566-Y1566-Z1566-AA1566,0)","v":0}]
[1567]
[1568,341,"Structures and Improvements"]
[1569,null,null,"SG/CAGE/CAGW",341,"CAGW","ACCT341CAGW",{"$f":"'JAM Download'!E1675+'JAM Download'!E1677+'JAM Download'!E1678+'JAM Download'!E1679","v":12828483.809288759},"P",{"$f":"VLOOKUP($I1569,Func,2)*$H1569","v":12828483.809288759},{"$f":"VLOOKUP($I1569,Func,3)*$H1569","v":0},{"$f":"VLOOKUP($I1569,Func,5)*$H1569","v":0},{"$f":"VLOOKUP($I1569,Func,6)*$H1569","v":0},{"$f":"VLOOKUP($I1569,Func,7)*$H1569","v":0},null,{"$f":"Demand","v":0.38},{"$f":"+$J1569*$P1569","v":4874823.847529728},{"$f":"+$J1569*(1-$P1569)","v":7953659.9617590308},null,{"$f":"+$K1569*$S1569","v":0},{"$f":"+$K1569*(1-$S1569)","v":0},null,null,null,null,null,null,null,"UACCT341SG",{"$f":"ROUND(SUM(-H1569,J1569:N1569),0)","v":0},{"$f":"ROUND(J1569-Q1569-R1569,0)","v":0},{"$f":"ROUND(K1569-T1569-U1569,0)","v":0},{"$f":"ROUND(L1569-W1569-X1569-Y1569-Z1569-AA1569,0)","v":0}]
[1570,null,null,"DGU",341,"DGU","ACCT341DGU",{"$f":"'JAM Download'!E1676","v":0},"P",{"$f":"VLOOKUP($I1570,Func,2)*$H1570","v":0},{"$f":"VLOOKUP($I1570,Func,3)*$H1570","v":0},{"$f":"VLOOKUP($I1570,Func,5)*$H1570","v":0},{"$f":"VLOOKUP($I1570,Func,6)*$H1570","v":0},{"$f":"VLOOKUP($I1570,Func,7)*$H1570","v":0},null,{"$f":"Demand","v":0.38},{"$f":"+$J1570*$P1570","v":0},{"$f":"+$J1570*(1-$P1570)","v":0},null,{"$f":"+$K1570*$S1570","v":0},{"$f":"+$K1570*(1-$S1570)","v":0},null,null,null,null,null,null,null,"UACCT341SSGCT",{"$f":"ROUND(SUM(-H1570,J1570:N1570),0)","v":0},{"$f":"ROUND(J1570-Q1570-R1570,0)","v":0},{"$f":"ROUND(K1570-T1570-U1570,0)","v":0},{"$f":"ROUND(L1570-W1570-X1570-Y1570-Z1570-AA1570,0)","v":0}]
[1571,null,null,null,null,null,"ACCT341",{"$f":"'JAM Download'!E1680","v":12828483.809288759},null,{"$f":"SUM(J1569:J1570)","v":12828483.809288759},{"$f":"SUM(K1569:K1570)","v":0},{"$f":"SUM(L1569:L1570)","v":0},{"$f":"SUM(M1569:M1570)","v":0},{"$f":"SUM(N1569:N1570)","v":0},null,null,{"$f":"SUM(Q1569:Q1570)","v":4874823.847529728},{"$f":"SUM(R1569:R1570)","v":7953659.9617590308},null,{"$f":"SUM(T1569:T1570)","v":0},{"$f":"SUM(U1569:U1570)","v":0},null,{"$f":"SUM(W1569:W1570)","v":0},{"$f":"SUM(X1569:X1570)","v":0},{"$f":"SUM(Y1569:Y1570)","v":0},{"$f":"SUM(Z1569:Z1570)","v":0},{"$f":"SUM(AA1569:AA1570)","v":0},0,"UACCT341",{"$f":"ROUND(SUM(-H1571,J1571:N1571),0)","v":0},{"$f":"ROUND(J1571-Q1571-R1571,0)","v":0},{"$f":"ROUND(K1571-T1571-U1571,0)","v":0},{"$f":"ROUND(L1571-W1571-X1571-Y1571-Z1571-AA1571,0)","v":0}]
[1572]
[1573,342,"Fuel Holders, Producers & Accessories"]
[1574,null,null,"SG/CAGE/CAGW",342,"CAGW","ACCT342CAGW",{"$f":"'JAM Download'!E1683+'JAM Download'!E1685+'JAM Download'!E1686+'JAM Download'!E1687","v":367152.61981028365},"P",{"$f":"VLOOKUP($I1574,Func,2)*$H1574","v":367152.61981028365},{"$f":"VLOOKUP($I1574,Func,3)*$H1574","v":0},{"$f":"VLOOKUP($I1574,Func,5)*$H1574","v":0},{"$f":"VLOOKUP($I1574,Func,6)*$H1574","v":0},{"$f":"VLOOKUP($I1574,Func,7)*$H1574","v":0},null,{"$f":"Demand","v":0.38},{"$f":"+$J1574*$P1574","v":139517.9955279078},{"$f":"+$J1574*(1-$P1574)","v":227634.62428237585},null,{"$f":"+$K1574*$S1574","v":0},{"$f":"+$K1574*(1-$S1574)","v":0},null,null,null,null,null,null,null,"UACCT342SG",{"$f":"ROUND(SUM(-H1574,J1574:N1574),0)","v":0},{"$f":"ROUND(J1574-Q1574-R1574,0)","v":0},{"$f":"ROUND(K1574-T1574-U1574,0)","v":0},{"$f":"ROUND(L1574-W1574-X1574-Y1574-Z1574-AA1574,0)","v":0}]
[1575,null,null,"DGU",342,"DGU","ACCT342DGU",{"$f":"'JAM Download'!E1684","v":0},"P",{"$f":"VLOOKUP($I1575,Func,2)*$H1575","v":0},{"$f":"VLOOKUP($I1575,Func,3)*$H1575","v":0},{"$f":"VLOOKUP($I1575,Func,5)*$H1575","v":0},{"$f":"VLOOKUP($I1575,Func,6)*$H1575","v":0},{"$f":"VLOOKUP($I1575,Func,7)*$H1575","v":0},null,{"$f":"Demand","v":0.38},{"$f":"+$J1575*$P1575","v":0},{"$f":"+$J1575*(1-$P1575)","v":0},null,{"$f":"+$K1575*$S1575","v":0},{"$f":"+$K1575*(1-$S1575)","v":0},null,null,null,null,null,null,null,"UACCT342SSGCT",{"$f":"ROUND(SUM(-H1575,J1575:N1575),0)","v":0},{"$f":"ROUND(J1575-Q1575-R1575,0)","v":0},{"$f":"ROUND(K1575-T1575-U1575,0)","v":0},{"$f":"ROUND(L1575-W1575-X1575-Y1575-Z1575-AA1575,0)","v":0}]
[1576,null,null,null,null,null,"ACCT342",{"$f":"'JAM Download'!E1688","v":367152.61981028365},null,{"$f":"SUM(J1574:J1575)","v":367152.61981028365},{"$f":"SUM(K1574:K1575)","v":0},{"$f":"SUM(L1574:L1575)","v":0},{"$f":"SUM(M1574:M1575)","v":0},{"$f":"SUM(N1574:N1575)","v":0},null,null,{"$f":"SUM(Q1574:Q1575)","v":139517.9955279078},{"$f":"SUM(R1574:R1575)","v":227634.62428237585},null,{"$f":"SUM(T1574:T1575)","v":0},{"$f":"SUM(U1574:U1575)","v":0},null,{"$f":"SUM(W1574:W1575)","v":0},{"$f":"SUM(X1574:X1575)","v":0},{"$f":"SUM(Y1574:Y1575)","v":0},{"$f":"SUM(Z1574:Z1575)","v":0},{"$f":"SUM(AA1574:AA1575)","v":0},0,"UACCT342",{"$f":"ROUND(SUM(-H1576,J1576:N1576),0)","v":0},{"$f":"ROUND(J1576-Q1576-R1576,0)","v":0},{"$f":"ROUND(K1576-T1576-U1576,0)","v":0},{"$f":"ROUND(L1576-W1576-X1576-Y1576-Z1576-AA1576,0)","v":0}]
[1577]
[1578,343,"Prime Movers"]
[1579,null,null,"S",343,"S","ACCT343S",{"$f":"'JAM Download'!E1691","v":0},"P",{"$f":"VLOOKUP($I1579,Func,2)*$H1579","v":0},{"$f":"VLOOKUP($I1579,Func,3)*$H1579","v":0},{"$f":"VLOOKUP($I1579,Func,5)*$H1579","v":0},{"$f":"VLOOKUP($I1579,Func,6)*$H1579","v":0},{"$f":"VLOOKUP($I1579,Func,7)*$H1579","v":0},null,{"$f":"Demand","v":0.38},{"$f":"+$J1579*$P1579","v":0},{"$f":"+$J1579*(1-$P1579)","v":0},null,{"$f":"+$K1579*$S1579","v":0},{"$f":"+$K1579*(1-$S1579)","v":0},null,null,null,null,null,null,null,"UACCT343S",{"$f":"ROUND(SUM(-H1579,J1579:N1579),0)","v":0},{"$f":"ROUND(J1579-Q1579-R1579,0)","v":0},{"$f":"ROUND(K1579-T1579-U1579,0)","v":0},{"$f":"ROUND(L1579-W1579-X1579-Y1579-Z1579-AA1579,0)","v":0}]
[1580,null,null,"DGU",343,"DGU","ACCT343DGU",{"$f":"'JAM Download'!E1692","v":0},"P",{"$f":"VLOOKUP($I1580,Func,2)*$H1580","v":0},{"$f":"VLOOKUP($I1580,Func,3)*$H1580","v":0},{"$f":"VLOOKUP($I1580,Func,5)*$H1580","v":0},{"$f":"VLOOKUP($I1580,Func,6)*$H1580","v":0},{"$f":"VLOOKUP($I1580,Func,7)*$H1580","v":0},null,{"$f":"Demand","v":0.38},{"$f":"+$J1580*$P1580","v":0},{"$f":"+$J1580*(1-$P1580)","v":0},null,{"$f":"+$K1580*$S1580","v":0},{"$f":"+$K1580*(1-$S1580)","v":0},null,null,null,null,null,null,null,"UACCT343DGU",0,0,0,0]
[1581,null,null,"SG/CAGE/CAGW",343,"CAGW","ACCT343CAGW",{"$f":"'JAM Download'!E1693+'JAM Download'!E1694+'JAM Download'!E1695+'JAM Download'!E1696","v":213520416.54425099},"P",{"$f":"VLOOKUP($I1581,Func,2)*$H1581","v":213520416.54425099},{"$f":"VLOOKUP($I1581,Func,3)*$H1581","v":0},{"$f":"VLOOKUP($I1581,Func,5)*$H1581","v":0},{"$f":"VLOOKUP($I1581,Func,6)*$H1581","v":0},{"$f":"VLOOKUP($I1581,Func,7)*$H1581","v":0},null,{"$f":"Demand","v":0.38},{"$f":"+$J1581*$P1581","v":81137758.286815375},{"$f":"+$J1581*(1-$P1581)","v":132382658.25743562},null,{"$f":"+$K1581*$S1581","v":0},{"$f":"+$K1581*(1-$S1581)","v":0},null,null,null,null,null,null,null,"UACCT343SGU",0,0,0,0]
[1582,null,null,"CAEW",343,"CAEW","ACCT343CAEW",0,"P",{"$f":"VLOOKUP($I1582,Func,2)*$H1582","v":0},{"$f":"VLOOKUP($I1582,Func,3)*$H1582","v":0},{"$f":"VLOOKUP($I1582,Func,5)*$H1582","v":0},{"$f":"VLOOKUP($I1582,Func,6)*$H1582","v":0},{"$f":"VLOOKUP($I1582,Func,7)*$H1582","v":0},null,{"$f":"Demand","v":0.38},{"$f":"+$J1582*$P1582","v":0},{"$f":"+$J1582*(1-$P1582)","v":0},null,{"$f":"+$K1582*$S1582","v":0},{"$f":"+$K1582*(1-$S1582)","v":0},null,null,null,null,null,null,null,"UACCT343CAEW",0,0,0,0]
[1583,null,null,"CAGE",343,"CAGE","ACCT343CAGE",0,"P",{"$f":"VLOOKUP($I1583,Func,2)*$H1583","v":0},{"$f":"VLOOKUP($I1583,Func,3)*$H1583","v":0},{"$f":"VLOOKUP($I1583,Func,5)*$H1583","v":0},{"$f":"VLOOKUP($I1583,Func,6)*$H1583","v":0},{"$f":"VLOOKUP($I1583,Func,7)*$H1583","v":0},null,{"$f":"Demand","v":0.38},{"$f":"+$J1583*$P1583","v":0},{"$f":"+$J1583*(1-$P1583)","v":0},null,{"$f":"+$K1583*$S1583","v":0},{"$f":"+$K1583*(1-$S1583)","v":0},null,null,null,null,null,null,null,"UACCT343SSGCT",0,0,0,0]
[1584,null,null,null,null,null,"ACCT343",{"$f":"'JAM Download'!E1697","v":213520416.54425099},null,{"$f":"SUM(J1579:J1583)","v":213520416.54425099},{"$f":"SUM(K1579:K1583)","v":0},{"$f":"SUM(L1579:L1583)","v":0},{"$f":"SUM(M1579:M1583)","v":0},{"$f":"SUM(N1579:N1583)","v":0},null,null,{"$f":"SUM(Q1579:Q1583)","v":81137758.286815375},{"$f":"SUM(R1579:R1583)","v":132382658.25743562},null,{"$f":"SUM(T1579:T1583)","v":0},{"$f":"SUM(U1579:U1583)","v":0},null,{"$f":"SUM(W1579:W1583)","v":0},{"$f":"SUM(X1579:X1583)","v":0},{"$f":"SUM(Y1579:Y1583)","v":0},{"$f":"SUM(Z1579:Z1583)","v":0},{"$f":"SUM(AA1579:AA1583)","v":0},0,"UACCT343",0,0,0,0]
[1585]
[1586,344,"Generators"]
[1587,null,null,"S",344,"S","ACCT344S",{"$f":"'JAM Download'!E1700","v":0},"P",{"$f":"VLOOKUP($I1587,Func,2)*$H1587","v":0},{"$f":"VLOOKUP($I1587,Func,3)*$H1587","v":0},{"$f":"VLOOKUP($I1587,Func,5)*$H1587","v":0},{"$f":"VLOOKUP($I1587,Func,6)*$H1587","v":0},{"$f":"VLOOKUP($I1587,Func,7)*$H1587","v":0},null,{"$f":"Demand","v":0.38},{"$f":"+$J1587*$P1587","v":0},{"$f":"+$J1587*(1-$P1587)","v":0},null,{"$f":"+$K1587*$S1587","v":0},{"$f":"+$K1587*(1-$S1587)","v":0},null,null,null,null,null,null,null,"UACCT344S",{"$f":"ROUND(SUM(-H1587,J1587:N1587),0)","v":0},{"$f":"ROUND(J1587-Q1587-R1587,0)","v":0},{"$f":"ROUND(K1587-T1587-U1587,0)","v":0},{"$f":"ROUND(L1587-W1587-X1587-Y1587-Z1587-AA1587,0)","v":0}]
[1588,null,null,"SG/CAGE/CAGW",344,"CAGW","ACCT344CAGW",{"$f":"'JAM Download'!E1702+'JAM Download'!E1703+'JAM Download'!E1704+'JAM Download'!E1705","v":32370717.088822149},"P",{"$f":"VLOOKUP($I1588,Func,2)*$H1588","v":32370717.088822149},{"$f":"VLOOKUP($I1588,Func,3)*$H1588","v":0},{"$f":"VLOOKUP($I1588,Func,5)*$H1588","v":0},{"$f":"VLOOKUP($I1588,Func,6)*$H1588","v":0},{"$f":"VLOOKUP($I1588,Func,7)*$H1588","v":0},null,{"$f":"Demand","v":0.38},{"$f":"+$J1588*$P1588","v":12300872.493752416},{"$f":"+$J1588*(1-$P1588)","v":20069844.595069733},null,{"$f":"+$K1588*$S1588","v":0},{"$f":"+$K1588*(1-$S1588)","v":0},null,null,null,null,null,null,null,"UACCT344SG",{"$f":"ROUND(SUM(-H1588,J1588:N1588),0)","v":0},{"$f":"ROUND(J1588-Q1588-R1588,0)","v":0},{"$f":"ROUND(K1588-T1588-U1588,0)","v":0},{"$f":"ROUND(L1588-W1588-X1588-Y1588-Z1588-AA1588,0)","v":0}]
[1589,null,null,"DGU",344,"DGU","ACCT344DGU",{"$f":"'JAM Download'!E1701","v":0},"P",{"$f":"VLOOKUP($I1589,Func,2)*$H1589","v":0},{"$f":"VLOOKUP($I1589,Func,3)*$H1589","v":0},{"$f":"VLOOKUP($I1589,Func,5)*$H1589","v":0},{"$f":"VLOOKUP($I1589,Func,6)*$H1589","v":0},{"$f":"VLOOKUP($I1589,Func,7)*$H1589","v":0},null,{"$f":"Demand","v":0.38},{"$f":"+$J1589*$P1589","v":0},{"$f":"+$J1589*(1-$P1589)","v":0},null,{"$f":"+$K1589*$S1589","v":0},{"$f":"+$K1589*(1-$S1589)","v":0},null,null,null,null,null,null,null,"UACCT344CAEW",{"$f":"ROUND(SUM(-H1589,J1589:N1589),0)","v":0},{"$f":"ROUND(J1589-Q1589-R1589,0)","v":0},{"$f":"ROUND(K1589-T1589-U1589,0)","v":0},{"$f":"ROUND(L1589-W1589-X1589-Y1589-Z1589-AA1589,0)","v":0}]
[1590,null,null,"CAGE",344,"CAGE","ACCT344CAGE",0,"P",{"$f":"VLOOKUP($I1590,Func,2)*$H1590","v":0},{"$f":"VLOOKUP($I1590,Func,3)*$H1590","v":0},{"$f":"VLOOKUP($I1590,Func,5)*$H1590","v":0},{"$f":"VLOOKUP($I1590,Func,6)*$H1590","v":0},{"$f":"VLOOKUP($I1590,Func,7)*$H1590","v":0},null,{"$f":"Demand","v":0.38},{"$f":"+$J1590*$P1590","v":0},{"$f":"+$J1590*(1-$P1590)","v":0},null,{"$f":"+$K1590*$S1590","v":0},{"$f":"+$K1590*(1-$S1590)","v":0},null,null,null,null,null,null,null,"UACCT344SSGCT",{"$f":"ROUND(SUM(-H1590,J1590:N1590),0)","v":0},{"$f":"ROUND(J1590-Q1590-R1590,0)","v":0},{"$f":"ROUND(K1590-T1590-U1590,0)","v":0},{"$f":"ROUND(L1590-W1590-X1590-Y1590-Z1590-AA1590,0)","v":0}]
[1591,null,null,null,null,null,"ACCT344",{"$f":"'JAM Download'!E1706","v":32370717.088822149},null,{"$f":"SUM(J1587:J1590)","v":32370717.088822149},{"$f":"SUM(K1587:K1590)","v":0},{"$f":"SUM(L1587:L1590)","v":0},{"$f":"SUM(M1587:M1590)","v":0},{"$f":"SUM(N1587:N1590)","v":0},null,null,{"$f":"SUM(Q1587:Q1590)","v":12300872.493752416},{"$f":"SUM(R1587:R1590)","v":20069844.595069733},null,{"$f":"SUM(T1587:T1590)","v":0},{"$f":"SUM(U1587:U1590)","v":0},null,{"$f":"SUM(W1587:W1590)","v":0},{"$f":"SUM(X1587:X1590)","v":0},{"$f":"SUM(Y1587:Y1590)","v":0},{"$f":"SUM(Z1587:Z1590)","v":0},{"$f":"SUM(AA1587:AA1590)","v":0},0,"UACCT344",{"$f":"ROUND(SUM(-H1591,J1591:N1591),0)","v":0},{"$f":"ROUND(J1591-Q1591-R1591,0)","v":0},{"$f":"ROUND(K1591-T1591-U1591,0)","v":0},{"$f":"ROUND(L1591-W1591-X1591-Y1591-Z1591-AA1591,0)","v":0}]
[1592]
[1593,345,"Accessory Electric Plant"]
[1594,null,null,"SG/CAGE/CAGW",345,"CAGW","ACCT345CAGW",{"$f":"'JAM Download'!E1709+'JAM Download'!E1711+'JAM Download'!E1712+'JAM Download'!E1713","v":19621147.05551821},"P",{"$f":"VLOOKUP($I1594,Func,2)*$H1594","v":19621147.05551821},{"$f":"VLOOKUP($I1594,Func,3)*$H1594","v":0},{"$f":"VLOOKUP($I1594,Func,5)*$H1594","v":0},{"$f":"VLOOKUP($I1594,Func,6)*$H1594","v":0},{"$f":"VLOOKUP($I1594,Func,7)*$H1594","v":0},null,{"$f":"Demand","v":0.38},{"$f":"+$J1594*$P1594","v":7456035.88109692},{"$f":"+$J1594*(1-$P1594)","v":12165111.17442129},null,{"$f":"+$K1594*$S1594","v":0},{"$f":"+$K1594*(1-$S1594)","v":0},null,null,null,null,null,null,null,"UACCT345SG",{"$f":"ROUND(SUM(-H1594,J1594:N1594),0)","v":0},{"$f":"ROUND(J1594-Q1594-R1594,0)","v":0},{"$f":"ROUND(K1594-T1594-U1594,0)","v":0},{"$f":"ROUND(L1594-W1594-X1594-Y1594-Z1594-AA1594,0)","v":0}]
[1595,null,null,"DGU",345,"DGU","ACCT345DGU",{"$f":"'JAM Download'!E1710","v":0},"P",{"$f":"VLOOKUP($I1595,Func,2)*$H1595","v":0},{"$f":"VLOOKUP($I1595,Func,3)*$H1595","v":0},{"$f":"VLOOKUP($I1595,Func,5)*$H1595","v":0},{"$f":"VLOOKUP($I1595,Func,6)*$H1595","v":0},{"$f":"VLOOKUP($I1595,Func,7)*$H1595","v":0},null,{"$f":"Demand","v":0.38},{"$f":"+$J1595*$P1595","v":0},{"$f":"+$J1595*(1-$P1595)","v":0},null,{"$f":"+$K1595*$S1595","v":0},{"$f":"+$K1595*(1-$S1595)","v":0},null,null,null,null,null,null,null,"UACCT345SSGCT",{"$f":"ROUND(SUM(-H1595,J1595:N1595),0)","v":0},{"$f":"ROUND(J1595-Q1595-R1595,0)","v":0},{"$f":"ROUND(K1595-T1595-U1595,0)","v":0},{"$f":"ROUND(L1595-W1595-X1595-Y1595-Z1595-AA1595,0)","v":0}]
[1596,null,null,null,null,null,"ACCT345",{"$f":"'JAM Download'!E1714","v":19621147.05551821},null,{"$f":"SUM(J1594:J1595)","v":19621147.05551821},{"$f":"SUM(K1594:K1595)","v":0},{"$f":"SUM(L1594:L1595)","v":0},{"$f":"SUM(M1594:M1595)","v":0},{"$f":"SUM(N1594:N1595)","v":0},null,null,{"$f":"SUM(Q1594:Q1595)","v":7456035.88109692},{"$f":"SUM(R1594:R1595)","v":12165111.17442129},null,{"$f":"SUM(T1594:T1595)","v":0},{"$f":"SUM(U1594:U1595)","v":0},null,{"$f":"SUM(W1594:W1595)","v":0},{"$f":"SUM(X1594:X1595)","v":0},{"$f":"SUM(Y1594:Y1595)","v":0},{"$f":"SUM(Z1594:Z1595)","v":0},{"$f":"SUM(AA1594:AA1595)","v":0},0,"UACCT345",{"$f":"ROUND(SUM(-H1596,J1596:N1596),0)","v":0},{"$f":"ROUND(J1596-Q1596-R1596,0)","v":0},{"$f":"ROUND(K1596-T1596-U1596,0)","v":0},{"$f":"ROUND(L1596-W1596-X1596-Y1596-Z1596-AA1596,0)","v":0}]
[{"$f":"A1596+1","v":1597}]
[1598,346,"Misc. Power Plant Equipment"]
[1599,null,null,"SG/CAGE/CAGW",346,"CAGW","ACCT346CAGW",{"$f":"'JAM Download'!E1719+'JAM Download'!E1721+'JAM Download'!E1722","v":998517.07243625529},"P",{"$f":"VLOOKUP($I1599,Func,2)*$H1599","v":998517.07243625529},{"$f":"VLOOKUP($I1599,Func,3)*$H1599","v":0},{"$f":"VLOOKUP($I1599,Func,5)*$H1599","v":0},{"$f":"VLOOKUP($I1599,Func,6)*$H1599","v":0},{"$f":"VLOOKUP($I1599,Func,7)*$H1599","v":0},null,{"$f":"Demand","v":0.38},{"$f":"+$J1599*$P1599","v":379436.48752577702},{"$f":"+$J1599*(1-$P1599)","v":619080.58491047833},null,{"$f":"+$K1599*$S1599","v":0},{"$f":"+$K1599*(1-$S1599)","v":0},null,null,null,null,null,null,null,"UACCT346DGU",{"$f":"ROUND(SUM(-H1599,J1599:N1599),0)","v":0},{"$f":"ROUND(J1599-Q1599-R1599,0)","v":0},{"$f":"ROUND(K1599-T1599-U1599,0)","v":0},{"$f":"ROUND(L1599-W1599-X1599-Y1599-Z1599-AA1599,0)","v":0}]
[1600,null,null,"SG-U",346,"SG-U","ACCT346SGU",{"$f":"'JAM Download'!E1720","v":0},"P",{"$f":"VLOOKUP($I1600,Func,2)*$H1600","v":0},{"$f":"VLOOKUP($I1600,Func,3)*$H1600","v":0},{"$f":"VLOOKUP($I1600,Func,5)*$H1600","v":0},{"$f":"VLOOKUP($I1600,Func,6)*$H1600","v":0},{"$f":"VLOOKUP($I1600,Func,7)*$H1600","v":0},null,{"$f":"Demand","v":0.38},{"$f":"+$J1600*$P1600","v":0},{"$f":"+$J1600*(1-$P1600)","v":0},null,{"$f":"+$K1600*$S1600","v":0},{"$f":"+$K1600*(1-$S1600)","v":0},null,null,null,null,null,null,null,"UACCT346SGU",{"$f":"ROUND(SUM(-H1600,J1600:N1600),0)","v":0},{"$f":"ROUND(J1600-Q1600-R1600,0)","v":0},{"$f":"ROUND(K1600-T1600-U1600,0)","v":0},{"$f":"ROUND(L1600-W1600-X1600-Y1600-Z1600-AA1600,0)","v":0}]
[1601,null,null,null,null,null,"ACCT346",{"$f":"'JAM Download'!E1723","v":998517.07243625529},null,{"$f":"SUM(J1599:J1600)","v":998517.07243625529},{"$f":"SUM(K1599:K1600)","v":0},{"$f":"SUM(L1599:L1600)","v":0},{"$f":"SUM(M1599:M1600)","v":0},{"$f":"SUM(N1599:N1600)","v":0},null,null,{"$f":"SUM(Q1599:Q1600)","v":379436.48752577702},{"$f":"SUM(R1599:R1600)","v":619080.58491047833},null,{"$f":"SUM(T1599:T1600)","v":0},{"$f":"SUM(U1599:U1600)","v":0},null,{"$f":"SUM(W1599:W1600)","v":0},{"$f":"SUM(X1599:X1600)","v":0},{"$f":"SUM(Y1599:Y1600)","v":0},{"$f":"SUM(Z1599:Z1600)","v":0},{"$f":"SUM(AA1599:AA1600)","v":0},0,"UACCT346",{"$f":"ROUND(SUM(-H1601,J1601:N1601),0)","v":0},{"$f":"ROUND(J1601-Q1601-R1601,0)","v":0},{"$f":"ROUND(K1601-T1601-U1601,0)","v":0},{"$f":"ROUND(L1601-W1601-X1601-Y1601-Z1601-AA1601,0)","v":0}]
[1602]
[1603,"OP","Unclassified Other Prod Plant-Acct 300"]
[1604,null,null,"S",300,"S","ACCTOPS",{"$f":"'JAM Download'!E1730","v":0},"P",{"$f":"VLOOKUP($I1604,Func,2)*$H1604","v":0},{"$f":"VLOOKUP($I1604,Func,3)*$H1604","v":0},{"$f":"VLOOKUP($I1604,Func,5)*$H1604","v":0},{"$f":"VLOOKUP($I1604,Func,6)*$H1604","v":0},{"$f":"VLOOKUP($I1604,Func,7)*$H1604","v":0},null,{"$f":"Demand","v":0.38},{"$f":"+$J1604*$P1604","v":0},{"$f":"+$J1604*(1-$P1604)","v":0},null,{"$f":"+$K1604*$S1604","v":0},{"$f":"+$K1604*(1-$S1604)","v":0},null,null,null,null,null,null,null,"UACCTO00S",{"$f":"ROUND(SUM(-H1604,J1604:N1604),0)","v":0},{"$f":"ROUND(J1604-Q1604-R1604,0)","v":0},{"$f":"ROUND(K1604-T1604-U1604,0)","v":0},{"$f":"ROUND(L1604-W1604-X1604-Y1604-Z1604-AA1604,0)","v":0}]
[1605,null,null,"SG/CAGE/CAGW",300,"CAGW","ACCTO0PSGU",{"$f":"'JAM Download'!E1731+'JAM Download'!E1732+'JAM Download'!E1733","v":0},"P",{"$f":"VLOOKUP($I1605,Func,2)*$H1605","v":0},{"$f":"VLOOKUP($I1605,Func,3)*$H1605","v":0},{"$f":"VLOOKUP($I1605,Func,5)*$H1605","v":0},{"$f":"VLOOKUP($I1605,Func,6)*$H1605","v":0},{"$f":"VLOOKUP($I1605,Func,7)*$H1605","v":0},null,{"$f":"Demand","v":0.38},{"$f":"+$J1605*$P1605","v":0},{"$f":"+$J1605*(1-$P1605)","v":0},null,{"$f":"+$K1605*$S1605","v":0},{"$f":"+$K1605*(1-$S1605)","v":0},null,null,null,null,null,null,null,"UACCTO00SGU",{"$f":"ROUND(SUM(-H1605,J1605:N1605),0)","v":0},{"$f":"ROUND(J1605-Q1605-R1605,0)","v":0},{"$f":"ROUND(K1605-T1605-U1605,0)","v":0},{"$f":"ROUND(L1605-W1605-X1605-Y1605-Z1605-AA1605,0)","v":0}]
[1606,null,null,null,null,null,"ACCTO0P",{"$f":"'JAM Download'!E1734","v":0},null,{"$f":"SUM(J1604:J1605)","v":0},{"$f":"SUM(K1604:K1605)","v":0},{"$f":"SUM(L1604:L1605)","v":0},{"$f":"SUM(M1604:M1605)","v":0},{"$f":"SUM(N1604:N1605)","v":0},null,null,{"$f":"SUM(Q1604:Q1605)","v":0},{"$f":"SUM(R1604:R1605)","v":0},null,{"$f":"SUM(T1604:T1605)","v":0},{"$f":"SUM(U1604:U1605)","v":0},null,{"$f":"SUM(W1604:W1605)","v":0},{"$f":"SUM(X1604:X1605)","v":0},{"$f":"SUM(Y1604:Y1605)","v":0},{"$f":"SUM(Z1604:Z1605)","v":0},{"$f":"SUM(AA1604:AA1605)","v":0},0,"UACCTO00",{"$f":"ROUND(SUM(-H1606,J1606:N1606),0)","v":0},{"$f":"ROUND(J1606-Q1606-R1606,0)","v":0},{"$f":"ROUND(K1606-T1606-U1606,0)","v":0},{"$f":"ROUND(L1606-W1606-X1606-Y1606-Z1606-AA1606,0)","v":0}]
[1607]
[1608,"Total Other Production Plant",null,null,null,null,null,{"$f":"'JAM Download'!E1736","v":280343604.18378526},null,{"$f":"+J1601+J1596+J1591+J1584+J1576+J1571+J1566+J1606","v":280343604.1837852},{"$f":"+K1601+K1596+K1591+K1584+K1576+K1571+K1566+K1606","v":0},{"$f":"+L1601+L1596+L1591+L1584+L1576+L1571+L1566+L1606","v":0},{"$f":"+M1601+M1596+M1591+M1584+M1576+M1571+M1566+M1606","v":0},{"$f":"+N1601+N1596+N1591+N1584+N1576+N1571+N1566+N1606","v":0},null,null,{"$f":"+Q1601+Q1596+Q1591+Q1584+Q1576+Q1571+Q1566+Q1606","v":106530569.58983837},{"$f":"+R1601+R1596+R1591+R1584+R1576+R1571+R1566+R1606","v":173813034.59394684},null,{"$f":"+T1601+T1596+T1591+T1584+T1576+T1571+T1566+T1606","v":0},{"$f":"+U1601+U1596+U1591+U1584+U1576+U1571+U1566+U1606","v":0},null,{"$f":"+W1601+W1596+W1591+W1584+W1576+W1571+W1566+W1606","v":0},{"$f":"+X1601+X1596+X1591+X1584+X1576+X1571+X1566+X1606","v":0},{"$f":"+Y1601+Y1596+Y1591+Y1584+Y1576+Y1571+Y1566+Y1606","v":0},{"$f":"+Z1601+Z1596+Z1591+Z1584+Z1576+Z1571+Z1566+Z1606","v":0},{"$f":"+AA1601+AA1596+AA1591+AA1584+AA1576+AA1571+AA1566+AA1606","v":0},0,null,{"$f":"ROUND(SUM(-H1608,J1608:N1608),0)","v":0},{"$f":"ROUND(J1608-Q1608-R1608,0)","v":0},{"$f":"ROUND(K1608-T1608-U1608,0)","v":0},{"$f":"ROUND(L1608-W1608-X1608-Y1608-Z1608-AA1608,0)","v":0}]
[1609]
[1610,"Experimental Plant"]
[1611,103,"Experimental Plant"]
[1612,null,null,"DGP",300,"DGP","ACCT300SGP",{"$f":"'JAM Download'!E1749","v":0},"P",{"$f":"VLOOKUP($I1612,Func,2)*$H1612","v":0},{"$f":"VLOOKUP($I1612,Func,3)*$H1612","v":0},{"$f":"VLOOKUP($I1612,Func,5)*$H1612","v":0},{"$f":"VLOOKUP($I1612,Func,6)*$H1612","v":0},{"$f":"VLOOKUP($I1612,Func,7)*$H1612","v":0},null,{"$f":"Demand","v":0.38},{"$f":"+$J1612*$P1612","v":0},{"$f":"+$J1612*(1-$P1612)","v":0},null,{"$f":"+$K1612*$S1612","v":0},{"$f":"+$K1612*(1-$S1612)","v":0},null,null,null,null,null,null,null,"UACCT300DGP",{"$f":"ROUND(SUM(-H1612,J1612:N1612),0)","v":0},{"$f":"ROUND(J1612-Q1612-R1612,0)","v":0},{"$f":"ROUND(K1612-T1612-U1612,0)","v":0},{"$f":"ROUND(L1612-W1612-X1612-Y1612-Z1612-AA1612,0)","v":0}]
[1613,"Total Experimental Plant",null,null,null,null,"ACCT103",{"$f":"'JAM Download'!E1750","v":0},null,{"$f":"SUM(J1612)","v":0},{"$f":"SUM(K1612)","v":0},{"$f":"SUM(L1612)","v":0},{"$f":"SUM(M1612)","v":0},{"$f":"SUM(N1612)","v":0},null,null,{"$f":"SUM(Q1612)","v":0},{"$f":"SUM(R1612)","v":0},null,{"$f":"SUM(T1612)","v":0},{"$f":"SUM(U1612)","v":0},null,{"$f":"SUM(W1612)","v":0},{"$f":"SUM(X1612)","v":0},{"$f":"SUM(Y1612)","v":0},{"$f":"SUM(Z1612)","v":0},{"$f":"SUM(AA1612)","v":0},0,"UACCT103",{"$f":"ROUND(SUM(-H1613,J1613:N1613),0)","v":0},{"$f":"ROUND(J1613-Q1613-R1613,0)","v":0},{"$f":"ROUND(K1613-T1613-U1613,0)","v":0},{"$f":"ROUND(L1613-W1613-X1613-Y1613-Z1613-AA1613,0)","v":0}]
[1614]
[1615,"TOTAL PRODUCTION PLANT",null,null,null,null,null,{"$f":"'JAM Download'!E1752","v":731580666.74118638},null,{"$f":"+J1608+J1499+J1458+J1554+J1613","v":731580666.74118638},{"$f":"+K1608+K1499+K1458+K1554+K1613","v":0},{"$f":"+L1608+L1499+L1458+L1554+L1613","v":0},{"$f":"+M1608+M1499+M1458+M1554+M1613","v":0},{"$f":"+N1608+N1499+N1458+N1554+N1613","v":0},null,null,{"$f":"+Q1608+Q1499+Q1458+Q1554+Q1613","v":278000653.36165082},{"$f":"+R1608+R1499+R1458+R1554+R1613","v":453580013.37953556},null,{"$f":"+T1608+T1499+T1458+T1554+T1613","v":0},{"$f":"+U1608+U1499+U1458+U1554+U1613","v":0},null,{"$f":"+W1608+W1499+W1458+W1554+W1613","v":0},{"$f":"+X1608+X1499+X1458+X1554+X1613","v":0},{"$f":"+Y1608+Y1499+Y1458+Y1554+Y1613","v":0},{"$f":"+Z1608+Z1499+Z1458+Z1554+Z1613","v":0},{"$f":"+AA1608+AA1499+AA1458+AA1554+AA1613","v":0},0,null,{"$f":"ROUND(SUM(-H1615,J1615:N1615),0)","v":0},{"$f":"ROUND(J1615-Q1615-R1615,0)","v":0},{"$f":"ROUND(K1615-T1615-U1615,0)","v":0},{"$f":"ROUND(L1615-W1615-X1615-Y1615-Z1615-AA1615,0)","v":0}]
[1616]
[1617]
[1618]
[1619]
[1620]
[1621]
[1622,"FERC",null,"DESCRIPTION &","FERC",null,"RANGE",{"$f":"+$H$250","v":"Jurisdictional"},"FUNC","GEN","TRN","DIS","RETAIL","MISC",null,"D / E","GEN","GEN","D / E","TRN","TRN","DIS","DIS","DIS","DIS","DIS","DIS","DIS","Unbundled ACCT:","Function","Generation","Transmission","Distribution"]
[1623,"ACCT",null,"CONSENSUS FACTOR","ACCT","FACTOR","NAME","ADJ Total","FACTOR","TOTAL","TOTAL","TOTAL","TOTAL","TOTAL",null,"SPLIT","DEMAND","ENERGY","SPLIT","DEMAND","ENERGY","SPLIT","SUBS","P & C","XFMR","METER","SERVICE","METER","TOTAL","Check","Check","Check","Check"]
[1624,350,"Land and Land Rights"]
[1625,null,null,"DGP/DGU",350,"DGP","ACCT350DGP",{"$f":"'JAM Download'!E1754+'JAM Download'!E1755","v":0},"T",{"$f":"VLOOKUP($I1625,Func,2)*$H1625","v":0},{"$f":"VLOOKUP($I1625,Func,3)*$H1625","v":0},{"$f":"VLOOKUP($I1625,Func,5)*$H1625","v":0},{"$f":"VLOOKUP($I1625,Func,6)*$H1625","v":0},{"$f":"VLOOKUP($I1625,Func,7)*$H1625","v":0},null,null,null,null,{"$f":"Demand","v":0.38},{"$f":"+$K1625*$S1625","v":0},{"$f":"+$K1625*(1-$S1625)","v":0},null,null,null,null,null,null,null,"UACCT350SGP",{"$f":"ROUND(SUM(-H1625,J1625:N1625),0)","v":0},{"$f":"ROUND(J1625-Q1625-R1625,0)","v":0},{"$f":"ROUND(K1625-T1625-U1625,0)","v":0},{"$f":"ROUND(L1625-W1625-X1625-Y1625-Z1625-AA1625,0)","v":0}]
[1626,null,null,"JBG",350,"JBG","ACCT350JBG",{"$f":"'JAM Download'!E1758","v":238746.93516454581},"T",{"$f":"VLOOKUP($I1626,Func,2)*$H1626","v":0},{"$f":"VLOOKUP($I1626,Func,3)*$H1626","v":238746.93516454581},{"$f":"VLOOKUP($I1626,Func,5)*$H1626","v":0},{"$f":"VLOOKUP($I1626,Func,6)*$H1626","v":0},{"$f":"VLOOKUP($I1626,Func,7)*$H1626","v":0},null,null,null,null,{"$f":"Demand","v":0.38},{"$f":"+$K1626*$S1626","v":90723.835362527403},{"$f":"+$K1626*(1-$S1626)","v":148023.09980201841},null,null,null,null,null,null,null,"UACCT350SGU",{"$f":"ROUND(SUM(-H1626,J1626:N1626),0)","v":0},{"$f":"ROUND(J1626-Q1626-R1626,0)","v":0},{"$f":"ROUND(K1626-T1626-U1626,0)","v":0},{"$f":"ROUND(L1626-W1626-X1626-Y1626-Z1626-AA1626,0)","v":0}]
[1627,null,null,"SG/CAGW",350,"CAGW","ACCT350CAGW",{"$f":"'JAM Download'!E1756+'JAM Download'!E1757+'JAM Download'!E1759","v":6524764.9082593769},"T",{"$f":"VLOOKUP($I1627,Func,2)*$H1627","v":0},{"$f":"VLOOKUP($I1627,Func,3)*$H1627","v":6524764.9082593769},{"$f":"VLOOKUP($I1627,Func,5)*$H1627","v":0},{"$f":"VLOOKUP($I1627,Func,6)*$H1627","v":0},{"$f":"VLOOKUP($I1627,Func,7)*$H1627","v":0},null,null,null,null,{"$f":"Demand","v":0.38},{"$f":"+$K1627*$S1627","v":2479410.6651385631},{"$f":"+$K1627*(1-$S1627)","v":4045354.2431208137},null,null,null,null,null,null,null,"UACCT350SGP",{"$f":"ROUND(SUM(-H1627,J1627:N1627),0)","v":0},{"$f":"ROUND(J1627-Q1627-R1627,0)","v":0},{"$f":"ROUND(K1627-T1627-U1627,0)","v":0},{"$f":"ROUND(L1627-W1627-X1627-Y1627-Z1627-AA1627,0)","v":0}]
[1628,null,null,null,null,null,"ACCT350",{"$f":"'JAM Download'!E1760","v":6763511.8434239225},null,{"$f":"SUM(J1625:J1627)","v":0},{"$f":"SUM(K1625:K1627)","v":6763511.8434239225},{"$f":"SUM(L1625:L1627)","v":0},{"$f":"SUM(M1625:M1627)","v":0},{"$f":"SUM(N1625:N1627)","v":0},null,null,{"$f":"SUM(Q1625:Q1627)","v":0},{"$f":"SUM(R1625:R1627)","v":0},null,{"$f":"SUM(T1625:T1627)","v":2570134.5005010907},{"$f":"SUM(U1625:U1627)","v":4193377.3429228324},null,{"$f":"SUM(W1625:W1627)","v":0},{"$f":"SUM(X1625:X1627)","v":0},{"$f":"SUM(Y1625:Y1627)","v":0},{"$f":"SUM(Z1625:Z1627)","v":0},{"$f":"SUM(AA1625:AA1627)","v":0},0,"UACCT350",{"$f":"ROUND(SUM(-H1628,J1628:N1628),0)","v":0},{"$f":"ROUND(J1628-Q1628-R1628,0)","v":0},{"$f":"ROUND(K1628-T1628-U1628,0)","v":0},{"$f":"ROUND(L1628-W1628-X1628-Y1628-Z1628-AA1628,0)","v":0}]
[1629]
[1630,352,"Structures and Improvements"]
[1631,null,null,"S",352,"S","ACCT352S",{"$f":"'JAM Download'!E1763","v":0},"T",{"$f":"VLOOKUP($I1631,Func,2)*$H1631","v":0},{"$f":"VLOOKUP($I1631,Func,3)*$H1631","v":0},{"$f":"VLOOKUP($I1631,Func,5)*$H1631","v":0},{"$f":"VLOOKUP($I1631,Func,6)*$H1631","v":0},{"$f":"VLOOKUP($I1631,Func,7)*$H1631","v":0},null,null,null,null,{"$f":"Demand","v":0.38},{"$f":"+$K1631*$S1631","v":0},{"$f":"+$K1631*(1-$S1631)","v":0},null,null,null,null,null,null,null,"UACCT352S",{"$f":"ROUND(SUM(-H1631,J1631:N1631),0)","v":0},{"$f":"ROUND(J1631-Q1631-R1631,0)","v":0},{"$f":"ROUND(K1631-T1631-U1631,0)","v":0},{"$f":"ROUND(L1631-W1631-X1631-Y1631-Z1631-AA1631,0)","v":0}]
[1632,null,null,"DGP/DGU",352,"DGP","ACCT352DGP",{"$f":"'JAM Download'!E1764+'JAM Download'!E1765","v":0},"T",{"$f":"VLOOKUP($I1632,Func,2)*$H1632","v":0},{"$f":"VLOOKUP($I1632,Func,3)*$H1632","v":0},{"$f":"VLOOKUP($I1632,Func,5)*$H1632","v":0},{"$f":"VLOOKUP($I1632,Func,6)*$H1632","v":0},{"$f":"VLOOKUP($I1632,Func,7)*$H1632","v":0},null,null,null,null,{"$f":"Demand","v":0.38},{"$f":"+$K1632*$S1632","v":0},{"$f":"+$K1632*(1-$S1632)","v":0},null,null,null,null,null,null,null,"UACCT352SGP",{"$f":"ROUND(SUM(-H1632,J1632:N1632),0)","v":0},{"$f":"ROUND(J1632-Q1632-R1632,0)","v":0},{"$f":"ROUND(K1632-T1632-U1632,0)","v":0},{"$f":"ROUND(L1632-W1632-X1632-Y1632-Z1632-AA1632,0)","v":0}]
[1633,null,null,"JBG",352,"JBG","ACCT352JBG",{"$f":"'JAM Download'!E1768","v":270067.11345955287},"T",{"$f":"VLOOKUP($I1633,Func,2)*$H1633","v":0},{"$f":"VLOOKUP($I1633,Func,3)*$H1633","v":270067.11345955287},{"$f":"VLOOKUP($I1633,Func,5)*$H1633","v":0},{"$f":"VLOOKUP($I1633,Func,6)*$H1633","v":0},{"$f":"VLOOKUP($I1633,Func,7)*$H1633","v":0},null,null,null,null,{"$f":"Demand","v":0.38},{"$f":"+$K1633*$S1633","v":102625.50311463009},{"$f":"+$K1633*(1-$S1633)","v":167441.61034492278},null,null,null,null,null,null,null,"UACCT352SGU",{"$f":"ROUND(SUM(-H1633,J1633:N1633),0)","v":0},{"$f":"ROUND(J1633-Q1633-R1633,0)","v":0},{"$f":"ROUND(K1633-T1633-U1633,0)","v":0},{"$f":"ROUND(L1633-W1633-X1633-Y1633-Z1633-AA1633,0)","v":0}]
[1634,null,null,"SG/CAGW",352,"CAGW","ACCT352CAGW",{"$f":"'JAM Download'!E1766+'JAM Download'!E1767+'JAM Download'!E1769","v":7776341.9013450528},"T",{"$f":"VLOOKUP($I1634,Func,2)*$H1634","v":0},{"$f":"VLOOKUP($I1634,Func,3)*$H1634","v":7776341.9013450528},{"$f":"VLOOKUP($I1634,Func,5)*$H1634","v":0},{"$f":"VLOOKUP($I1634,Func,6)*$H1634","v":0},{"$f":"VLOOKUP($I1634,Func,7)*$H1634","v":0},null,null,null,null,{"$f":"Demand","v":0.38},{"$f":"+$K1634*$S1634","v":2955009.9225111199},{"$f":"+$K1634*(1-$S1634)","v":4821331.9788339324},null,null,null,null,null,null,null,"UACCT352SGP",{"$f":"ROUND(SUM(-H1634,J1634:N1634),0)","v":0},{"$f":"ROUND(J1634-Q1634-R1634,0)","v":0},{"$f":"ROUND(K1634-T1634-U1634,0)","v":0},{"$f":"ROUND(L1634-W1634-X1634-Y1634-Z1634-AA1634,0)","v":0}]
[1635,null,null,null,null,null,"ACCT352",{"$f":"'JAM Download'!E1770","v":8046409.0148046054},null,{"$f":"SUM(J1631:J1634)","v":0},{"$f":"SUM(K1631:K1634)","v":8046409.0148046054},{"$f":"SUM(L1631:L1634)","v":0},{"$f":"SUM(M1631:M1634)","v":0},{"$f":"SUM(N1631:N1634)","v":0},null,null,{"$f":"SUM(Q1631:Q1634)","v":0},{"$f":"SUM(R1631:R1634)","v":0},null,{"$f":"SUM(T1631:T1634)","v":3057635.4256257499},{"$f":"SUM(U1631:U1634)","v":4988773.5891788555},null,{"$f":"SUM(W1631:W1634)","v":0},{"$f":"SUM(X1631:X1634)","v":0},{"$f":"SUM(Y1631:Y1634)","v":0},{"$f":"SUM(Z1631:Z1634)","v":0},{"$f":"SUM(AA1631:AA1634)","v":0},0,"UACCT352",{"$f":"ROUND(SUM(-H1635,J1635:N1635),0)","v":0},{"$f":"ROUND(J1635-Q1635-R1635,0)","v":0},{"$f":"ROUND(K1635-T1635-U1635,0)","v":0},{"$f":"ROUND(L1635-W1635-X1635-Y1635-Z1635-AA1635,0)","v":0}]
[1636]
[1637,353,"Station Equipment"]
[1638,null,null,"DGP/DGU",353,"DGP","ACCT353DGP",{"$f":"'JAM Download'!E1773+'JAM Download'!E1774","v":0},"T",{"$f":"VLOOKUP($I1638,Func,2)*$H1638","v":0},{"$f":"VLOOKUP($I1638,Func,3)*$H1638","v":0},{"$f":"VLOOKUP($I1638,Func,5)*$H1638","v":0},{"$f":"VLOOKUP($I1638,Func,6)*$H1638","v":0},{"$f":"VLOOKUP($I1638,Func,7)*$H1638","v":0},null,null,null,null,{"$f":"Demand","v":0.38},{"$f":"+$K1638*$S1638","v":0},{"$f":"+$K1638*(1-$S1638)","v":0},null,null,null,null,null,null,null,"UACCT353SGP",{"$f":"ROUND(SUM(-H1638,J1638:N1638),0)","v":0},{"$f":"ROUND(J1638-Q1638-R1638,0)","v":0},{"$f":"ROUND(K1638-T1638-U1638,0)","v":0},{"$f":"ROUND(L1638-W1638-X1638-Y1638-Z1638-AA1638,0)","v":0}]
[1639,null,null,"JBG",353,"JBG","ACCT353JBG",{"$f":"'JAM Download'!E1777","v":6238888.6492665876},"T",{"$f":"VLOOKUP($I1639,Func,2)*$H1639","v":0},{"$f":"VLOOKUP($I1639,Func,3)*$H1639","v":6238888.6492665876},{"$f":"VLOOKUP($I1639,Func,5)*$H1639","v":0},{"$f":"VLOOKUP($I1639,Func,6)*$H1639","v":0},{"$f":"VLOOKUP($I1639,Func,7)*$H1639","v":0},null,null,null,null,{"$f":"Demand","v":0.38},{"$f":"+$K1639*$S1639","v":2370777.6867213035},{"$f":"+$K1639*(1-$S1639)","v":3868110.9625452841},null,null,null,null,null,null,null,"UACCT353SGU",{"$f":"ROUND(SUM(-H1639,J1639:N1639),0)","v":0},{"$f":"ROUND(J1639-Q1639-R1639,0)","v":0},{"$f":"ROUND(K1639-T1639-U1639,0)","v":0},{"$f":"ROUND(L1639-W1639-X1639-Y1639-Z1639-AA1639,0)","v":0}]
[1640,null,null,"SG/CAGW",353,"CAGW","ACCT353CAGW",{"$f":"'JAM Download'!E1775+'JAM Download'!E1776+'JAM Download'!E1778","v":93648635.117847279},"T",{"$f":"VLOOKUP($I1640,Func,2)*$H1640","v":0},{"$f":"VLOOKUP($I1640,Func,3)*$H1640","v":93648635.117847279},{"$f":"VLOOKUP($I1640,Func,5)*$H1640","v":0},{"$f":"VLOOKUP($I1640,Func,6)*$H1640","v":0},{"$f":"VLOOKUP($I1640,Func,7)*$H1640","v":0},null,null,null,null,{"$f":"Demand","v":0.38},{"$f":"+$K1640*$S1640","v":35586481.344781965},{"$f":"+$K1640*(1-$S1640)","v":58062153.773065314},null,null,null,null,null,null,null,"UACCT353SGP",{"$f":"ROUND(SUM(-H1640,J1640:N1640),0)","v":0},{"$f":"ROUND(J1640-Q1640-R1640,0)","v":0},{"$f":"ROUND(K1640-T1640-U1640,0)","v":0},{"$f":"ROUND(L1640-W1640-X1640-Y1640-Z1640-AA1640,0)","v":0}]
[1641,null,null,null,null,null,"ACCT353",{"$f":"'JAM Download'!E1779","v":99887523.767113864},null,{"$f":"SUM(J1638:J1640)","v":0},{"$f":"SUM(K1638:K1640)","v":99887523.767113864},{"$f":"SUM(L1638:L1640)","v":0},{"$f":"SUM(M1638:M1640)","v":0},{"$f":"SUM(N1638:N1640)","v":0},null,null,{"$f":"SUM(Q1638:Q1640)","v":0},{"$f":"SUM(R1638:R1640)","v":0},null,{"$f":"SUM(T1638:T1640)","v":37957259.031503268},{"$f":"SUM(U1638:U1640)","v":61930264.735610597},null,{"$f":"SUM(W1638:W1640)","v":0},{"$f":"SUM(X1638:X1640)","v":0},{"$f":"SUM(Y1638:Y1640)","v":0},{"$f":"SUM(Z1638:Z1640)","v":0},{"$f":"SUM(AA1638:AA1640)","v":0},0,"UACCT353",{"$f":"ROUND(SUM(-H1641,J1641:N1641),0)","v":0},{"$f":"ROUND(J1641-Q1641-R1641,0)","v":0},{"$f":"ROUND(K1641-T1641-U1641,0)","v":0},{"$f":"ROUND(L1641-W1641-X1641-Y1641-Z1641-AA1641,0)","v":0}]
[1642]
[1643,354,"Towers and Fixtures"]
[1644,null,null,"DGP/DGU",354,"DGP","ACCT354DGP",{"$f":"'JAM Download'!E1782+'JAM Download'!E1783","v":0},"T",{"$f":"VLOOKUP($I1644,Func,2)*$H1644","v":0},{"$f":"VLOOKUP($I1644,Func,3)*$H1644","v":0},{"$f":"VLOOKUP($I1644,Func,5)*$H1644","v":0},{"$f":"VLOOKUP($I1644,Func,6)*$H1644","v":0},{"$f":"VLOOKUP($I1644,Func,7)*$H1644","v":0},null,null,null,null,{"$f":"Demand","v":0.38},{"$f":"+$K1644*$S1644","v":0},{"$f":"+$K1644*(1-$S1644)","v":0},null,null,null,null,null,null,null,"UACCT354SGP",{"$f":"ROUND(SUM(-H1644,J1644:N1644),0)","v":0},{"$f":"ROUND(J1644-Q1644-R1644,0)","v":0},{"$f":"ROUND(K1644-T1644-U1644,0)","v":0},{"$f":"ROUND(L1644-W1644-X1644-Y1644-Z1644-AA1644,0)","v":0}]
[1645,null,null,"JBG",354,"JBG","ACCT354JBG",{"$f":"'JAM Download'!E1786","v":3209126.457872401},"T",{"$f":"VLOOKUP($I1645,Func,2)*$H1645","v":0},{"$f":"VLOOKUP($I1645,Func,3)*$H1645","v":3209126.457872401},{"$f":"VLOOKUP($I1645,Func,5)*$H1645","v":0},{"$f":"VLOOKUP($I1645,Func,6)*$H1645","v":0},{"$f":"VLOOKUP($I1645,Func,7)*$H1645","v":0},null,null,null,null,{"$f":"Demand","v":0.38},{"$f":"+$K1645*$S1645","v":1219468.0539915124},{"$f":"+$K1645*(1-$S1645)","v":1989658.4038808886},null,null,null,null,null,null,null,"UACCT354SGU",{"$f":"ROUND(SUM(-H1645,J1645:N1645),0)","v":0},{"$f":"ROUND(J1645-Q1645-R1645,0)","v":0},{"$f":"ROUND(K1645-T1645-U1645,0)","v":0},{"$f":"ROUND(L1645-W1645-X1645-Y1645-Z1645-AA1645,0)","v":0}]
[1646,null,null,"SG/CAGW",354,"CAGW","ACCT354CAGW",{"$f":"'JAM Download'!E1784+'JAM Download'!E1785+'JAM Download'!E1787","v":38361777.186690122},"T",{"$f":"VLOOKUP($I1646,Func,2)*$H1646","v":0},{"$f":"VLOOKUP($I1646,Func,3)*$H1646","v":38361777.186690122},{"$f":"VLOOKUP($I1646,Func,5)*$H1646","v":0},{"$f":"VLOOKUP($I1646,Func,6)*$H1646","v":0},{"$f":"VLOOKUP($I1646,Func,7)*$H1646","v":0},null,null,null,null,{"$f":"Demand","v":0.38},{"$f":"+$K1646*$S1646","v":14577475.330942247},{"$f":"+$K1646*(1-$S1646)","v":23784301.855747875},null,null,null,null,null,null,null,"UACCT354SGP",{"$f":"ROUND(SUM(-H1646,J1646:N1646),0)","v":0},{"$f":"ROUND(J1646-Q1646-R1646,0)","v":0},{"$f":"ROUND(K1646-T1646-U1646,0)","v":0},{"$f":"ROUND(L1646-W1646-X1646-Y1646-Z1646-AA1646,0)","v":0}]
[1647,null,null,null,null,null,"ACCT354",{"$f":"'JAM Download'!E1788","v":41570903.64456252},null,{"$f":"SUM(J1644:J1646)","v":0},{"$f":"SUM(K1644:K1646)","v":41570903.64456252},{"$f":"SUM(L1644:L1646)","v":0},{"$f":"SUM(M1644:M1646)","v":0},{"$f":"SUM(N1644:N1646)","v":0},null,null,{"$f":"SUM(Q1644:Q1646)","v":0},{"$f":"SUM(R1644:R1646)","v":0},null,{"$f":"SUM(T1644:T1646)","v":15796943.384933759},{"$f":"SUM(U1644:U1646)","v":25773960.259628765},null,{"$f":"SUM(W1644:W1646)","v":0},{"$f":"SUM(X1644:X1646)","v":0},{"$f":"SUM(Y1644:Y1646)","v":0},{"$f":"SUM(Z1644:Z1646)","v":0},{"$f":"SUM(AA1644:AA1646)","v":0},0,"UACCT354",{"$f":"ROUND(SUM(-H1647,J1647:N1647),0)","v":0},{"$f":"ROUND(J1647-Q1647-R1647,0)","v":0},{"$f":"ROUND(K1647-T1647-U1647,0)","v":0},{"$f":"ROUND(L1647-W1647-X1647-Y1647-Z1647-AA1647,0)","v":0}]
[1648]
[1649,355,"Poles and Fixtures"]
[1650,null,null,"DGP/DGU",355,"DGP","ACCT355DGP",{"$f":"'JAM Download'!E1791+'JAM Download'!E1792","v":0},"T",{"$f":"VLOOKUP($I1650,Func,2)*$H1650","v":0},{"$f":"VLOOKUP($I1650,Func,3)*$H1650","v":0},{"$f":"VLOOKUP($I1650,Func,5)*$H1650","v":0},{"$f":"VLOOKUP($I1650,Func,6)*$H1650","v":0},{"$f":"VLOOKUP($I1650,Func,7)*$H1650","v":0},null,null,null,null,{"$f":"Demand","v":0.38},{"$f":"+$K1650*$S1650","v":0},{"$f":"+$K1650*(1-$S1650)","v":0},null,null,null,null,null,null,null,"UACCT355SGP",{"$f":"ROUND(SUM(-H1650,J1650:N1650),0)","v":0},{"$f":"ROUND(J1650-Q1650-R1650,0)","v":0},{"$f":"ROUND(K1650-T1650-U1650,0)","v":0},{"$f":"ROUND(L1650-W1650-X1650-Y1650-Z1650-AA1650,0)","v":0}]
[1651,null,null,"JBG",355,"JBG","ACCT355DGU",{"$f":"'JAM Download'!E1795","v":0},"T",{"$f":"VLOOKUP($I1651,Func,2)*$H1651","v":0},{"$f":"VLOOKUP($I1651,Func,3)*$H1651","v":0},{"$f":"VLOOKUP($I1651,Func,5)*$H1651","v":0},{"$f":"VLOOKUP($I1651,Func,6)*$H1651","v":0},{"$f":"VLOOKUP($I1651,Func,7)*$H1651","v":0},null,null,null,null,{"$f":"Demand","v":0.38},{"$f":"+$K1651*$S1651","v":0},{"$f":"+$K1651*(1-$S1651)","v":0},null,null,null,null,null,null,null,"UACCT355SGU",{"$f":"ROUND(SUM(-H1651,J1651:N1651),0)","v":0},{"$f":"ROUND(J1651-Q1651-R1651,0)","v":0},{"$f":"ROUND(K1651-T1651-U1651,0)","v":0},{"$f":"ROUND(L1651-W1651-X1651-Y1651-Z1651-AA1651,0)","v":0}]
[1652,null,null,"CAEW",355,"CAEW","ACCT355CAEW",0,"T",{"$f":"VLOOKUP($I1652,Func,2)*$H1652","v":0},{"$f":"VLOOKUP($I1652,Func,3)*$H1652","v":0},{"$f":"VLOOKUP($I1652,Func,5)*$H1652","v":0},{"$f":"VLOOKUP($I1652,Func,6)*$H1652","v":0},{"$f":"VLOOKUP($I1652,Func,7)*$H1652","v":0},null,null,null,null,{"$f":"Demand","v":0.38},{"$f":"+$K1652*$S1652","v":0},{"$f":"+$K1652*(1-$S1652)","v":0},null,null,null,null,null,null,null,"UACCT355CAEW",{"$f":"ROUND(SUM(-H1652,J1652:N1652),0)","v":0},{"$f":"ROUND(J1652-Q1652-R1652,0)","v":0},{"$f":"ROUND(K1652-T1652-U1652,0)","v":0},{"$f":"ROUND(L1652-W1652-X1652-Y1652-Z1652-AA1652,0)","v":0}]
[1653,null,null,"SG/CAGW",355,"CAGW","ACCT355CAGW",{"$f":"'JAM Download'!E1793+'JAM Download'!E1794+'JAM Download'!E1796","v":50306420.034921594},"T",{"$f":"VLOOKUP($I1653,Func,2)*$H1653","v":0},{"$f":"VLOOKUP($I1653,Func,3)*$H1653","v":50306420.034921594},{"$f":"VLOOKUP($I1653,Func,5)*$H1653","v":0},{"$f":"VLOOKUP($I1653,Func,6)*$H1653","v":0},{"$f":"VLOOKUP($I1653,Func,7)*$H1653","v":0},null,null,null,null,{"$f":"Demand","v":0.38},{"$f":"+$K1653*$S1653","v":19116439.613270205},{"$f":"+$K1653*(1-$S1653)","v":31189980.421651389},null,null,null,null,null,null,null,"UACCT355SGP",{"$f":"ROUND(SUM(-H1653,J1653:N1653),0)","v":0},{"$f":"ROUND(J1653-Q1653-R1653,0)","v":0},{"$f":"ROUND(K1653-T1653-U1653,0)","v":0},{"$f":"ROUND(L1653-W1653-X1653-Y1653-Z1653-AA1653,0)","v":0}]
[1654,null,null,null,null,null,"ACCT355",{"$f":"'JAM Download'!E1797","v":50306420.034921594},null,{"$f":"SUM(J1650:J1653)","v":0},{"$f":"SUM(K1650:K1653)","v":50306420.034921594},{"$f":"SUM(L1650:L1653)","v":0},{"$f":"SUM(M1650:M1653)","v":0},{"$f":"SUM(N1650:N1653)","v":0},null,null,{"$f":"SUM(Q1650:Q1653)","v":0},{"$f":"SUM(R1650:R1653)","v":0},null,{"$f":"SUM(T1650:T1653)","v":19116439.613270205},{"$f":"SUM(U1650:U1653)","v":31189980.421651389},null,{"$f":"SUM(W1650:W1653)","v":0},{"$f":"SUM(X1650:X1653)","v":0},{"$f":"SUM(Y1650:Y1653)","v":0},{"$f":"SUM(Z1650:Z1653)","v":0},{"$f":"SUM(AA1650:AA1653)","v":0},0,"UACCT355",{"$f":"ROUND(SUM(-H1654,J1654:N1654),0)","v":0},{"$f":"ROUND(J1654-Q1654-R1654,0)","v":0},{"$f":"ROUND(K1654-T1654-U1654,0)","v":0},{"$f":"ROUND(L1654-W1654-X1654-Y1654-Z1654-AA1654,0)","v":0}]
[1655]
[1656,356,"Clearing and Grading"]
[1657,null,null,"DGP/DGU",356,"DGP","ACCT356DGP",{"$f":"'JAM Download'!E1800+'JAM Download'!E1801","v":0},"T",{"$f":"VLOOKUP($I1657,Func,2)*$H1657","v":0},{"$f":"VLOOKUP($I1657,Func,3)*$H1657","v":0},{"$f":"VLOOKUP($I1657,Func,5)*$H1657","v":0},{"$f":"VLOOKUP($I1657,Func,6)*$H1657","v":0},{"$f":"VLOOKUP($I1657,Func,7)*$H1657","v":0},null,null,null,null,{"$f":"Demand","v":0.38},{"$f":"+$K1657*$S1657","v":0},{"$f":"+$K1657*(1-$S1657)","v":0},null,null,null,null,null,null,null,"UACCT356SGP",{"$f":"ROUND(SUM(-H1657,J1657:N1657),0)","v":0},{"$f":"ROUND(J1657-Q1657-R1657,0)","v":0},{"$f":"ROUND(K1657-T1657-U1657,0)","v":0},{"$f":"ROUND(L1657-W1657-X1657-Y1657-Z1657-AA1657,0)","v":0}]
[1658,null,null,"JBG",356,"JBG","ACCT356JBG",{"$f":"'JAM Download'!E1804","v":1713933.9700218621},"T",{"$f":"VLOOKUP($I1658,Func,2)*$H1658","v":0},{"$f":"VLOOKUP($I1658,Func,3)*$H1658","v":1713933.9700218621},{"$f":"VLOOKUP($I1658,Func,5)*$H1658","v":0},{"$f":"VLOOKUP($I1658,Func,6)*$H1658","v":0},{"$f":"VLOOKUP($I1658,Func,7)*$H1658","v":0},null,null,null,null,{"$f":"Demand","v":0.38},{"$f":"+$K1658*$S1658","v":651294.9086083076},{"$f":"+$K1658*(1-$S1658)","v":1062639.0614135545},null,null,null,null,null,null,null,"UACCT356SGU",{"$f":"ROUND(SUM(-H1658,J1658:N1658),0)","v":0},{"$f":"ROUND(J1658-Q1658-R1658,0)","v":0},{"$f":"ROUND(K1658-T1658-U1658,0)","v":0},{"$f":"ROUND(L1658-W1658-X1658-Y1658-Z1658-AA1658,0)","v":0}]
[1659,null,null,"SG/CAGW",356,"CAGW","ACCT356CAGW",{"$f":"'JAM Download'!E1802+'JAM Download'!E1803+'JAM Download'!E1805","v":64041610.317975648},"T",{"$f":"VLOOKUP($I1659,Func,2)*$H1659","v":0},{"$f":"VLOOKUP($I1659,Func,3)*$H1659","v":64041610.317975648},{"$f":"VLOOKUP($I1659,Func,5)*$H1659","v":0},{"$f":"VLOOKUP($I1659,Func,6)*$H1659","v":0},{"$f":"VLOOKUP($I1659,Func,7)*$H1659","v":0},null,null,null,null,{"$f":"Demand","v":0.38},{"$f":"+$K1659*$S1659","v":24335811.920830745},{"$f":"+$K1659*(1-$S1659)","v":39705798.397144899},null,null,null,null,null,null,null,"UACCT356SGP",{"$f":"ROUND(SUM(-H1659,J1659:N1659),0)","v":0},{"$f":"ROUND(J1659-Q1659-R1659,0)","v":0},{"$f":"ROUND(K1659-T1659-U1659,0)","v":0},{"$f":"ROUND(L1659-W1659-X1659-Y1659-Z1659-AA1659,0)","v":0}]
[1660,null,null,null,null,null,"ACCT356",{"$f":"'JAM Download'!E1806","v":65755544.287997507},null,{"$f":"SUM(J1657:J1659)","v":0},{"$f":"SUM(K1657:K1659)","v":65755544.287997507},{"$f":"SUM(L1657:L1659)","v":0},{"$f":"SUM(M1657:M1659)","v":0},{"$f":"SUM(N1657:N1659)","v":0},null,null,{"$f":"SUM(Q1657:Q1659)","v":0},{"$f":"SUM(R1657:R1659)","v":0},null,{"$f":"SUM(T1657:T1659)","v":24987106.829439051},{"$f":"SUM(U1657:U1659)","v":40768437.458558455},null,{"$f":"SUM(W1657:W1659)","v":0},{"$f":"SUM(X1657:X1659)","v":0},{"$f":"SUM(Y1657:Y1659)","v":0},{"$f":"SUM(Z1657:Z1659)","v":0},{"$f":"SUM(AA1657:AA1659)","v":0},0,"UACCT356",{"$f":"ROUND(SUM(-H1660,J1660:N1660),0)","v":0},{"$f":"ROUND(J1660-Q1660-R1660,0)","v":0},{"$f":"ROUND(K1660-T1660-U1660,0)","v":0},{"$f":"ROUND(L1660-W1660-X1660-Y1660-Z1660-AA1660,0)","v":0}]
[{"$f":"A1660+1","v":1661}]
[1662,357,"Underground Conduit"]
[1663,null,null,"DGP/DGU",357,"DGP","ACCT357DGP",{"$f":"'JAM Download'!E1809+'JAM Download'!E1810","v":0},"T",{"$f":"VLOOKUP($I1663,Func,2)*$H1663","v":0},{"$f":"VLOOKUP($I1663,Func,3)*$H1663","v":0},{"$f":"VLOOKUP($I1663,Func,5)*$H1663","v":0},{"$f":"VLOOKUP($I1663,Func,6)*$H1663","v":0},{"$f":"VLOOKUP($I1663,Func,7)*$H1663","v":0},null,null,null,null,{"$f":"Demand","v":0.38},{"$f":"+$K1663*$S1663","v":0},{"$f":"+$K1663*(1-$S1663)","v":0},null,null,null,null,null,null,null,"UACCT357SGP",{"$f":"ROUND(SUM(-H1663,J1663:N1663),0)","v":0},{"$f":"ROUND(J1663-Q1663-R1663,0)","v":0},{"$f":"ROUND(K1663-T1663-U1663,0)","v":0},{"$f":"ROUND(L1663-W1663-X1663-Y1663-Z1663-AA1663,0)","v":0}]
[1664,null,null,"JBG",357,"JBG","ACCT357JBG",0,"T",{"$f":"VLOOKUP($I1664,Func,2)*$H1664","v":0},{"$f":"VLOOKUP($I1664,Func,3)*$H1664","v":0},{"$f":"VLOOKUP($I1664,Func,5)*$H1664","v":0},{"$f":"VLOOKUP($I1664,Func,6)*$H1664","v":0},{"$f":"VLOOKUP($I1664,Func,7)*$H1664","v":0},null,null,null,null,{"$f":"Demand","v":0.38},{"$f":"+$K1664*$S1664","v":0},{"$f":"+$K1664*(1-$S1664)","v":0},null,null,null,null,null,null,null,"UACCT357SGU",{"$f":"ROUND(SUM(-H1664,J1664:N1664),0)","v":0},{"$f":"ROUND(J1664-Q1664-R1664,0)","v":0},{"$f":"ROUND(K1664-T1664-U1664,0)","v":0},{"$f":"ROUND(L1664-W1664-X1664-Y1664-Z1664-AA1664,0)","v":0}]
[1665,null,null,"CAGW",357,"CAGW","ACCT357CAGW",{"$f":"'JAM Download'!E1811+'JAM Download'!E1812+'JAM Download'!E1813","v":36799.829845371649},"T",{"$f":"VLOOKUP($I1665,Func,2)*$H1665","v":0},{"$f":"VLOOKUP($I1665,Func,3)*$H1665","v":36799.829845371649},{"$f":"VLOOKUP($I1665,Func,5)*$H1665","v":0},{"$f":"VLOOKUP($I1665,Func,6)*$H1665","v":0},{"$f":"VLOOKUP($I1665,Func,7)*$H1665","v":0},null,null,null,null,{"$f":"Demand","v":0.38},{"$f":"+$K1665*$S1665","v":13983.935341241227},{"$f":"+$K1665*(1-$S1665)","v":22815.894504130421},null,null,null,null,null,null,null,"UACCT357SGP",{"$f":"ROUND(SUM(-H1665,J1665:N1665),0)","v":0},{"$f":"ROUND(J1665-Q1665-R1665,0)","v":0},{"$f":"ROUND(K1665-T1665-U1665,0)","v":0},{"$f":"ROUND(L1665-W1665-X1665-Y1665-Z1665-AA1665,0)","v":0}]
[1666,null,null,null,null,null,"ACCT357",{"$f":"'JAM Download'!E1814","v":36799.829845371649},null,{"$f":"SUM(J1663:J1665)","v":0},{"$f":"SUM(K1663:K1665)","v":36799.829845371649},{"$f":"SUM(L1663:L1665)","v":0},{"$f":"SUM(M1663:M1665)","v":0},{"$f":"SUM(N1663:N1665)","v":0},null,null,{"$f":"SUM(Q1663:Q1665)","v":0},{"$f":"SUM(R1663:R1665)","v":0},null,{"$f":"SUM(T1663:T1665)","v":13983.935341241227},{"$f":"SUM(U1663:U1665)","v":22815.894504130421},null,{"$f":"SUM(W1663:W1665)","v":0},{"$f":"SUM(X1663:X1665)","v":0},{"$f":"SUM(Y1663:Y1665)","v":0},{"$f":"SUM(Z1663:Z1665)","v":0},{"$f":"SUM(AA1663:AA1665)","v":0},0,"UACCT357",{"$f":"ROUND(SUM(-H1666,J1666:N1666),0)","v":0},{"$f":"ROUND(J1666-Q1666-R1666,0)","v":0},{"$f":"ROUND(K1666-T1666-U1666,0)","v":0},{"$f":"ROUND(L1666-W1666-X1666-Y1666-Z1666-AA1666,0)","v":0}]
[1667]
[1668,358,"Underground Conductors "]
[1669,null,null,"DGP/DGU",358,"DGP","ACCT358DGP",{"$f":"'JAM Download'!E1817+'JAM Download'!E1818","v":0},"T",{"$f":"VLOOKUP($I1669,Func,2)*$H1669","v":0},{"$f":"VLOOKUP($I1669,Func,3)*$H1669","v":0},{"$f":"VLOOKUP($I1669,Func,5)*$H1669","v":0},{"$f":"VLOOKUP($I1669,Func,6)*$H1669","v":0},{"$f":"VLOOKUP($I1669,Func,7)*$H1669","v":0},null,null,null,null,{"$f":"Demand","v":0.38},{"$f":"+$K1669*$S1669","v":0},{"$f":"+$K1669*(1-$S1669)","v":0},null,null,null,null,null,null,null,"UACCT358SGP",{"$f":"ROUND(SUM(-H1669,J1669:N1669),0)","v":0},{"$f":"ROUND(J1669-Q1669-R1669,0)","v":0},{"$f":"ROUND(K1669-T1669-U1669,0)","v":0},{"$f":"ROUND(L1669-W1669-X1669-Y1669-Z1669-AA1669,0)","v":0}]
[1670,null,null,"JBG",358,"JBG","ACCT358JBG",0,"T",{"$f":"VLOOKUP($I1670,Func,2)*$H1670","v":0},{"$f":"VLOOKUP($I1670,Func,3)*$H1670","v":0},{"$f":"VLOOKUP($I1670,Func,5)*$H1670","v":0},{"$f":"VLOOKUP($I1670,Func,6)*$H1670","v":0},{"$f":"VLOOKUP($I1670,Func,7)*$H1670","v":0},null,null,null,null,{"$f":"Demand","v":0.38},{"$f":"+$K1670*$S1670","v":0},{"$f":"+$K1670*(1-$S1670)","v":0},null,null,null,null,null,null,null,"UACCT358SGU",{"$f":"ROUND(SUM(-H1670,J1670:N1670),0)","v":0},{"$f":"ROUND(J1670-Q1670-R1670,0)","v":0},{"$f":"ROUND(K1670-T1670-U1670,0)","v":0},{"$f":"ROUND(L1670-W1670-X1670-Y1670-Z1670-AA1670,0)","v":0}]
[1671,null,null,"CAGW",358,"CAGW","ACCT358CAGW",{"$f":"'JAM Download'!E1819+'JAM Download'!E1820+'JAM Download'!E1821","v":68005.859615167239},"T",{"$f":"VLOOKUP($I1671,Func,2)*$H1671","v":0},{"$f":"VLOOKUP($I1671,Func,3)*$H1671","v":68005.859615167239},{"$f":"VLOOKUP($I1671,Func,5)*$H1671","v":0},{"$f":"VLOOKUP($I1671,Func,6)*$H1671","v":0},{"$f":"VLOOKUP($I1671,Func,7)*$H1671","v":0},null,null,null,null,{"$f":"Demand","v":0.38},{"$f":"+$K1671*$S1671","v":25842.226653763551},{"$f":"+$K1671*(1-$S1671)","v":42163.632961403688},null,null,null,null,null,null,null,"UACCT358SGP",{"$f":"ROUND(SUM(-H1671,J1671:N1671),0)","v":0},{"$f":"ROUND(J1671-Q1671-R1671,0)","v":0},{"$f":"ROUND(K1671-T1671-U1671,0)","v":0},{"$f":"ROUND(L1671-W1671-X1671-Y1671-Z1671-AA1671,0)","v":0}]
[1672,null,null,null,null,null,"ACCT358",{"$f":"'JAM Download'!E1822","v":68005.859615167239},null,{"$f":"SUM(J1669:J1671)","v":0},{"$f":"SUM(K1669:K1671)","v":68005.859615167239},{"$f":"SUM(L1669:L1671)","v":0},{"$f":"SUM(M1669:M1671)","v":0},{"$f":"SUM(N1669:N1671)","v":0},null,null,{"$f":"SUM(Q1669:Q1671)","v":0},{"$f":"SUM(R1669:R1671)","v":0},null,{"$f":"SUM(T1669:T1671)","v":25842.226653763551},{"$f":"SUM(U1669:U1671)","v":42163.632961403688},null,{"$f":"SUM(W1669:W1671)","v":0},{"$f":"SUM(X1669:X1671)","v":0},{"$f":"SUM(Y1669:Y1671)","v":0},{"$f":"SUM(Z1669:Z1671)","v":0},{"$f":"SUM(AA1669:AA1671)","v":0},0,"UACCT358",{"$f":"ROUND(SUM(-H1672,J1672:N1672),0)","v":0},{"$f":"ROUND(J1672-Q1672-R1672,0)","v":0},{"$f":"ROUND(K1672-T1672-U1672,0)","v":0},{"$f":"ROUND(L1672-W1672-X1672-Y1672-Z1672-AA1672,0)","v":0}]
[1673]
[1674,359,"Roads and Trails"]
[1675,null,null,"DGP/DGU",359,"DGP","ACCT359DGP",{"$f":"'JAM Download'!E1825+'JAM Download'!E1826","v":0},"T",{"$f":"VLOOKUP($I1675,Func,2)*$H1675","v":0},{"$f":"VLOOKUP($I1675,Func,3)*$H1675","v":0},{"$f":"VLOOKUP($I1675,Func,5)*$H1675","v":0},{"$f":"VLOOKUP($I1675,Func,6)*$H1675","v":0},{"$f":"VLOOKUP($I1675,Func,7)*$H1675","v":0},null,null,null,null,{"$f":"Demand","v":0.38},{"$f":"+$K1675*$S1675","v":0},{"$f":"+$K1675*(1-$S1675)","v":0},null,null,null,null,null,null,null,"UACCT359SGP",{"$f":"ROUND(SUM(-H1675,J1675:N1675),0)","v":0},{"$f":"ROUND(J1675-Q1675-R1675,0)","v":0},{"$f":"ROUND(K1675-T1675-U1675,0)","v":0},{"$f":"ROUND(L1675-W1675-X1675-Y1675-Z1675-AA1675,0)","v":0}]
[1676,null,null,"JBG",359,"JBG","ACCT359JBG",0,"T",{"$f":"VLOOKUP($I1676,Func,2)*$H1676","v":0},{"$f":"VLOOKUP($I1676,Func,3)*$H1676","v":0},{"$f":"VLOOKUP($I1676,Func,5)*$H1676","v":0},{"$f":"VLOOKUP($I1676,Func,6)*$H1676","v":0},{"$f":"VLOOKUP($I1676,Func,7)*$H1676","v":0},null,null,null,null,{"$f":"Demand","v":0.38},{"$f":"+$K1676*$S1676","v":0},{"$f":"+$K1676*(1-$S1676)","v":0},null,null,null,null,null,null,null,"UACCT359SGU",{"$f":"ROUND(SUM(-H1676,J1676:N1676),0)","v":0},{"$f":"ROUND(J1676-Q1676-R1676,0)","v":0},{"$f":"ROUND(K1676-T1676-U1676,0)","v":0},{"$f":"ROUND(L1676-W1676-X1676-Y1676-Z1676-AA1676,0)","v":0}]
[1677,null,null,"SG/CAGW",359,"CAGW","ACCT359CAGW",{"$f":"'JAM Download'!E1827+'JAM Download'!E1828+'JAM Download'!E1829","v":1521577.3966357647},"T",{"$f":"VLOOKUP($I1677,Func,2)*$H1677","v":0},{"$f":"VLOOKUP($I1677,Func,3)*$H1677","v":1521577.3966357647},{"$f":"VLOOKUP($I1677,Func,5)*$H1677","v":0},{"$f":"VLOOKUP($I1677,Func,6)*$H1677","v":0},{"$f":"VLOOKUP($I1677,Func,7)*$H1677","v":0},null,null,null,null,{"$f":"Demand","v":0.38},{"$f":"+$K1677*$S1677","v":578199.41072159063},{"$f":"+$K1677*(1-$S1677)","v":943377.98591417412},null,null,null,null,null,null,null,"UACCT359SGP",{"$f":"ROUND(SUM(-H1677,J1677:N1677),0)","v":0},{"$f":"ROUND(J1677-Q1677-R1677,0)","v":0},{"$f":"ROUND(K1677-T1677-U1677,0)","v":0},{"$f":"ROUND(L1677-W1677-X1677-Y1677-Z1677-AA1677,0)","v":0}]
[1678,null,null,null,null,null,"ACCT359",{"$f":"'JAM Download'!E1830","v":1521577.3966357647},null,{"$f":"SUM(J1675:J1677)","v":0},{"$f":"SUM(K1675:K1677)","v":1521577.3966357647},{"$f":"SUM(L1675:L1677)","v":0},{"$f":"SUM(M1675:M1677)","v":0},{"$f":"SUM(N1675:N1677)","v":0},null,null,{"$f":"SUM(Q1675:Q1677)","v":0},{"$f":"SUM(R1675:R1677)","v":0},null,{"$f":"SUM(T1675:T1677)","v":578199.41072159063},{"$f":"SUM(U1675:U1677)","v":943377.98591417412},null,{"$f":"SUM(W1675:W1677)","v":0},{"$f":"SUM(X1675:X1677)","v":0},{"$f":"SUM(Y1675:Y1677)","v":0},{"$f":"SUM(Z1675:Z1677)","v":0},{"$f":"SUM(AA1675:AA1677)","v":0},0,"UACCT359",{"$f":"ROUND(SUM(-H1678,J1678:N1678),0)","v":0},{"$f":"ROUND(J1678-Q1678-R1678,0)","v":0},{"$f":"ROUND(K1678-T1678-U1678,0)","v":0},{"$f":"ROUND(L1678-W1678-X1678-Y1678-Z1678-AA1678,0)","v":0}]
[1679]
[1680,"TP","Unclassified Trans Plant - Acct 300"]
[1681,null,null,"SG/CAGW",300,"CAGW","ACCTTPCAGW",{"$f":"'JAM Download'!E1833+'JAM Download'!E1834+'JAM Download'!E1835","v":69769.694075125502},"T",{"$f":"VLOOKUP($I1681,Func,2)*$H1681","v":0},{"$f":"VLOOKUP($I1681,Func,3)*$H1681","v":69769.694075125502},{"$f":"VLOOKUP($I1681,Func,5)*$H1681","v":0},{"$f":"VLOOKUP($I1681,Func,6)*$H1681","v":0},{"$f":"VLOOKUP($I1681,Func,7)*$H1681","v":0},null,null,null,null,{"$f":"Demand","v":0.38},{"$f":"+$K1681*$S1681","v":26512.483748547693},{"$f":"+$K1681*(1-$S1681)","v":43257.210326577813},null,null,null,null,null,null,null,"UACCTT00SGU",{"$f":"ROUND(SUM(-H1681,J1681:N1681),0)","v":0},{"$f":"ROUND(J1681-Q1681-R1681,0)","v":0},{"$f":"ROUND(K1681-T1681-U1681,0)","v":0},{"$f":"ROUND(L1681-W1681-X1681-Y1681-Z1681-AA1681,0)","v":0}]
[1682,null,null,null,null,null,"ACCTP",{"$f":"'JAM Download'!E1836","v":69769.694075125502},null,{"$f":"SUM(J1681)","v":0},{"$f":"SUM(K1681)","v":69769.694075125502},{"$f":"SUM(L1681)","v":0},{"$f":"SUM(M1681)","v":0},{"$f":"SUM(N1681)","v":0},null,null,{"$f":"SUM(Q1681)","v":0},{"$f":"SUM(R1681)","v":0},null,{"$f":"SUM(T1681)","v":26512.483748547693},{"$f":"SUM(U1681)","v":43257.210326577813},null,{"$f":"SUM(W1681)","v":0},{"$f":"SUM(X1681)","v":0},{"$f":"SUM(Y1681)","v":0},{"$f":"SUM(Z1681)","v":0},{"$f":"SUM(AA1681)","v":0},0,"UACCTT00",{"$f":"ROUND(SUM(-H1682,J1682:N1682),0)","v":0},{"$f":"ROUND(J1682-Q1682-R1682,0)","v":0},{"$f":"ROUND(K1682-T1682-U1682,0)","v":0},{"$f":"ROUND(L1682-W1682-X1682-Y1682-Z1682-AA1682,0)","v":0}]
[1683]
[1684,"TS0","Unclassified Trans Sub Plant - Acct 300"]
[1685,null,null,"SG",300,"SG","ACCTTS0SG",{"$f":"'JAM Download'!E1839","v":0},"T",{"$f":"VLOOKUP($I1685,Func,2)*$H1685","v":0},{"$f":"VLOOKUP($I1685,Func,3)*$H1685","v":0},{"$f":"VLOOKUP($I1685,Func,5)*$H1685","v":0},{"$f":"VLOOKUP($I1685,Func,6)*$H1685","v":0},{"$f":"VLOOKUP($I1685,Func,7)*$H1685","v":0},null,null,null,null,{"$f":"Demand","v":0.38},{"$f":"+$K1685*$S1685","v":0},{"$f":"+$K1685*(1-$S1685)","v":0},null,null,null,null,null,null,null,"UACCTTS0SGU",{"$f":"ROUND(SUM(-H1685,J1685:N1685),0)","v":0},{"$f":"ROUND(J1685-Q1685-R1685,0)","v":0},{"$f":"ROUND(K1685-T1685-U1685,0)","v":0},{"$f":"ROUND(L1685-W1685-X1685-Y1685-Z1685-AA1685,0)","v":0}]
[1686,null,null,null,null,null,"ACCTTS0",{"$f":"'JAM Download'!E1840","v":0},null,{"$f":"SUM(J1685:J1685)","v":0},{"$f":"SUM(K1685:K1685)","v":0},{"$f":"SUM(L1685:L1685)","v":0},{"$f":"SUM(M1685:M1685)","v":0},{"$f":"SUM(N1685:N1685)","v":0},null,null,{"$f":"SUM(Q1685:Q1685)","v":0},{"$f":"SUM(R1685:R1685)","v":0},null,{"$f":"SUM(T1685:T1685)","v":0},{"$f":"SUM(U1685:U1685)","v":0},null,{"$f":"SUM(W1685:W1685)","v":0},{"$f":"SUM(X1685:X1685)","v":0},{"$f":"SUM(Y1685:Y1685)","v":0},{"$f":"SUM(Z1685:Z1685)","v":0},{"$f":"SUM(AA1685:AA1685)","v":0},0,"UACCTTS0",{"$f":"ROUND(SUM(-H1686,J1686:N1686),0)","v":0},{"$f":"ROUND(J1686-Q1686-R1686,0)","v":0},{"$f":"ROUND(K1686-T1686-U1686,0)","v":0},{"$f":"ROUND(L1686-W1686-X1686-Y1686-Z1686-AA1686,0)","v":0}]
[1687]
[1688,"TOTAL TRANSMISSION PLANT",null,null,null,null,null,{"$f":"'JAM Download'!E1842","v":274026465.37299538},null,{"$f":"+J1678+J1672+J1666+J1660+J1654+J1647+J1641+J1635+J1628+J1686+J1682","v":0},{"$f":"+K1678+K1672+K1666+K1660+K1654+K1647+K1641+K1635+K1628+K1686+K1682","v":274026465.37299544},{"$f":"+L1678+L1672+L1666+L1660+L1654+L1647+L1641+L1635+L1628+L1686+L1682","v":0},{"$f":"+M1678+M1672+M1666+M1660+M1654+M1647+M1641+M1635+M1628+M1686+M1682","v":0},{"$f":"+N1678+N1672+N1666+N1660+N1654+N1647+N1641+N1635+N1628+N1686+N1682","v":0},null,null,{"$f":"+Q1678+Q1672+Q1666+Q1660+Q1654+Q1647+Q1641+Q1635+Q1628+Q1686+Q1682","v":0},{"$f":"+R1678+R1672+R1666+R1660+R1654+R1647+R1641+R1635+R1628+R1686+R1682","v":0},null,{"$f":"+T1678+T1672+T1666+T1660+T1654+T1647+T1641+T1635+T1628+T1686+T1682","v":104130056.84173825},{"$f":"+U1678+U1672+U1666+U1660+U1654+U1647+U1641+U1635+U1628+U1686+U1682","v":169896408.53125721},null,{"$f":"+W1678+W1672+W1666+W1660+W1654+W1647+W1641+W1635+W1628+W1686+W1682","v":0},{"$f":"+X1678+X1672+X1666+X1660+X1654+X1647+X1641+X1635+X1628+X1686+X1682","v":0},{"$f":"+Y1678+Y1672+Y1666+Y1660+Y1654+Y1647+Y1641+Y1635+Y1628+Y1686+Y1682","v":0},{"$f":"+Z1678+Z1672+Z1666+Z1660+Z1654+Z1647+Z1641+Z1635+Z1628+Z1686+Z1682","v":0},{"$f":"+AA1678+AA1672+AA1666+AA1660+AA1654+AA1647+AA1641+AA1635+AA1628+AA1686+AA1682","v":0},0,null,{"$f":"ROUND(SUM(-H1688,J1688:N1688),0)","v":0},{"$f":"ROUND(J1688-Q1688-R1688,0)","v":0},{"$f":"ROUND(K1688-T1688-U1688,0)","v":0},{"$f":"ROUND(L1688-W1688-X1688-Y1688-Z1688-AA1688,0)","v":0}]
[1689]
[1690]
[1691]
[1692,"FERC",null,"DESCRIPTION &","FERC",null,"RANGE",{"$f":"+$H$250","v":"Jurisdictional"},"FUNC","GEN","TRN","DIS","RETAIL","MISC",null,"D / E","GEN","GEN","D / E","TRN","TRN","DIS","DIS","DIS","DIS","DIS","DIS","DIS","Unbundled ACCT:","Function","Generation","Transmission","Distribution"]
[1693,"ACCT",null,"CONSENSUS FACTOR","ACCT","FACTOR","NAME","ADJ Total","FACTOR","TOTAL","TOTAL","TOTAL","TOTAL","TOTAL",null,"SPLIT","DEMAND","ENERGY","SPLIT","DEMAND","ENERGY","SPLIT","SUBS","P & C","XFMR","METER","SERVICE","METER","TOTAL","Check","Check","Check","Check"]
[1694,360,"Land and Land Rights"]
[1695,null,null,"S"]
[1696,null,null,"   Demand - Primary",360,"S","ACCT360DP",{"$f":"'JAM Download'!E1851","v":1510453.72},"DPW",{"$f":"VLOOKUP($I1696,Func,2)*$H1696","v":0},{"$f":"VLOOKUP($I1696,Func,3)*$H1696","v":0},{"$f":"VLOOKUP($I1696,Func,5)*$H1696","v":1510453.72},{"$f":"VLOOKUP($I1696,Func,6)*$H1696","v":0},{"$f":"VLOOKUP($I1696,Func,7)*$H1696","v":0},null,null,null,null,null,null,null,"PLNT2",{"$f":"+$L1696*VLOOKUP($V1696,DisFac,2)","v":296370.17023090681},{"$f":"+$L1696*VLOOKUP($V1696,DisFac,3)","v":1214083.5497690933},{"$f":"+$L1696*VLOOKUP($V1696,DisFac,4)","v":0},{"$f":"+$L1696*VLOOKUP($V1696,DisFac,5)","v":0},{"$f":"+$L1696*VLOOKUP($V1696,DisFac,6)","v":0},0,"UACCT360DP",{"$f":"ROUND(SUM(-H1696,J1696:N1696),0)","v":0},{"$f":"ROUND(J1696-Q1696-R1696,0)","v":0},{"$f":"ROUND(K1696-T1696-U1696,0)","v":0},{"$f":"ROUND(L1696-W1696-X1696-Y1696-Z1696-AA1696,0)","v":0}]
[1697,null,null,"   Assigned",360,"S","ACCT360A",0,"DPW",{"$f":"VLOOKUP($I1697,Func,2)*$H1697","v":0},{"$f":"VLOOKUP($I1697,Func,3)*$H1697","v":0},{"$f":"VLOOKUP($I1697,Func,5)*$H1697","v":0},{"$f":"VLOOKUP($I1697,Func,6)*$H1697","v":0},{"$f":"VLOOKUP($I1697,Func,7)*$H1697","v":0},null,null,null,null,null,null,null,"PLNT2",{"$f":"+$L1697*VLOOKUP($V1697,DisFac,2)","v":0},{"$f":"+$L1697*VLOOKUP($V1697,DisFac,3)","v":0},{"$f":"+$L1697*VLOOKUP($V1697,DisFac,4)","v":0},{"$f":"+$L1697*VLOOKUP($V1697,DisFac,5)","v":0},{"$f":"+$L1697*VLOOKUP($V1697,DisFac,6)","v":0},0,"UACCT360A",{"$f":"ROUND(SUM(-H1697,J1697:N1697),0)","v":0},{"$f":"ROUND(J1697-Q1697-R1697,0)","v":0},{"$f":"ROUND(K1697-T1697-U1697,0)","v":0},{"$f":"ROUND(L1697-W1697-X1697-Y1697-Z1697-AA1697,0)","v":0}]
[1698,null,null,null,null,null,"ACCT360",{"$f":"'JAM Download'!E1852","v":1510453.72},null,{"$f":"SUM(J1696:J1697)","v":0},{"$f":"SUM(K1696:K1697)","v":0},{"$f":"SUM(L1696:L1697)","v":1510453.72},{"$f":"SUM(M1696:M1697)","v":0},{"$f":"SUM(N1696:N1697)","v":0},null,null,{"$f":"SUM(Q1696:Q1697)","v":0},{"$f":"SUM(R1696:R1697)","v":0},null,{"$f":"SUM(T1696:T1697)","v":0},{"$f":"SUM(U1696:U1697)","v":0},null,{"$f":"SUM(W1696:W1697)","v":296370.17023090681},{"$f":"SUM(X1696:X1697)","v":1214083.5497690933},{"$f":"SUM(Y1696:Y1697)","v":0},{"$f":"SUM(Z1696:Z1697)","v":0},{"$f":"SUM(AA1696:AA1697)","v":0},0,"UACCT360",{"$f":"ROUND(SUM(-H1698,J1698:N1698),0)","v":0},{"$f":"ROUND(J1698-Q1698-R1698,0)","v":0},{"$f":"ROUND(K1698-T1698-U1698,0)","v":0},{"$f":"ROUND(L1698-W1698-X1698-Y1698-Z1698-AA1698,0)","v":0}]
[1699]
[1700,361,"Structures and Improvements"]
[1701,null,null,"S"]
[1702,null,null,"   Demand - Primary",361,"S","ACCT361DP",{"$f":"'JAM Download'!E1855","v":2440663.6},"DPW",{"$f":"VLOOKUP($I1702,Func,2)*$H1702","v":0},{"$f":"VLOOKUP($I1702,Func,3)*$H1702","v":0},{"$f":"VLOOKUP($I1702,Func,5)*$H1702","v":2440663.6},{"$f":"VLOOKUP($I1702,Func,6)*$H1702","v":0},{"$f":"VLOOKUP($I1702,Func,7)*$H1702","v":0},null,null,null,null,null,null,null,"PLNT2",{"$f":"+$L1702*VLOOKUP($V1702,DisFac,2)","v":478889.14240177971},{"$f":"+$L1702*VLOOKUP($V1702,DisFac,3)","v":1961774.4575982206},{"$f":"+$L1702*VLOOKUP($V1702,DisFac,4)","v":0},{"$f":"+$L1702*VLOOKUP($V1702,DisFac,5)","v":0},{"$f":"+$L1702*VLOOKUP($V1702,DisFac,6)","v":0},0,"UACCT361DP",{"$f":"ROUND(SUM(-H1702,J1702:N1702),0)","v":0},{"$f":"ROUND(J1702-Q1702-R1702,0)","v":0},{"$f":"ROUND(K1702-T1702-U1702,0)","v":0},{"$f":"ROUND(L1702-W1702-X1702-Y1702-Z1702-AA1702,0)","v":0}]
[1703,null,null,"   Assigned",361,"S","ACCT361A",0,"DPW",{"$f":"VLOOKUP($I1703,Func,2)*$H1703","v":0},{"$f":"VLOOKUP($I1703,Func,3)*$H1703","v":0},{"$f":"VLOOKUP($I1703,Func,5)*$H1703","v":0},{"$f":"VLOOKUP($I1703,Func,6)*$H1703","v":0},{"$f":"VLOOKUP($I1703,Func,7)*$H1703","v":0},null,null,null,null,null,null,null,"PLNT2",{"$f":"+$L1703*VLOOKUP($V1703,DisFac,2)","v":0},{"$f":"+$L1703*VLOOKUP($V1703,DisFac,3)","v":0},{"$f":"+$L1703*VLOOKUP($V1703,DisFac,4)","v":0},{"$f":"+$L1703*VLOOKUP($V1703,DisFac,5)","v":0},{"$f":"+$L1703*VLOOKUP($V1703,DisFac,6)","v":0},0,"UACCT361A",{"$f":"ROUND(SUM(-H1703,J1703:N1703),0)","v":0},{"$f":"ROUND(J1703-Q1703-R1703,0)","v":0},{"$f":"ROUND(K1703-T1703-U1703,0)","v":0},{"$f":"ROUND(L1703-W1703-X1703-Y1703-Z1703-AA1703,0)","v":0}]
[1704,null,null,null,null,null,"ACCT361",{"$f":"'JAM Download'!E1856","v":2440663.6},null,{"$f":"SUM(J1702:J1703)","v":0},{"$f":"SUM(K1702:K1703)","v":0},{"$f":"SUM(L1702:L1703)","v":2440663.6},{"$f":"SUM(M1702:M1703)","v":0},{"$f":"SUM(N1702:N1703)","v":0},null,null,{"$f":"SUM(Q1702:Q1703)","v":0},{"$f":"SUM(R1702:R1703)","v":0},null,{"$f":"SUM(T1702:T1703)","v":0},{"$f":"SUM(U1702:U1703)","v":0},null,{"$f":"SUM(W1702:W1703)","v":478889.14240177971},{"$f":"SUM(X1702:X1703)","v":1961774.4575982206},{"$f":"SUM(Y1702:Y1703)","v":0},{"$f":"SUM(Z1702:Z1703)","v":0},{"$f":"SUM(AA1702:AA1703)","v":0},0,"UACCT361",{"$f":"ROUND(SUM(-H1704,J1704:N1704),0)","v":0},{"$f":"ROUND(J1704-Q1704-R1704,0)","v":0},{"$f":"ROUND(K1704-T1704-U1704,0)","v":0},{"$f":"ROUND(L1704-W1704-X1704-Y1704-Z1704-AA1704,0)","v":0}]
[1705]
[1706,362,"Station Equipment"]
[1707,null,null,"S"]
[1708,null,null,"   Demand - Primary",362,"S","ACCT362DP",{"$f":"'JAM Download'!E1859","v":47592408.020000003},"DPW",{"$f":"VLOOKUP($I1708,Func,2)*$H1708","v":0},{"$f":"VLOOKUP($I1708,Func,3)*$H1708","v":0},{"$f":"VLOOKUP($I1708,Func,5)*$H1708","v":47592408.020000003},{"$f":"VLOOKUP($I1708,Func,6)*$H1708","v":0},{"$f":"VLOOKUP($I1708,Func,7)*$H1708","v":0},null,null,null,null,null,null,null,"SUBS",{"$f":"+$L1708*VLOOKUP($V1708,DisFac,2)","v":47592408.020000003},{"$f":"+$L1708*VLOOKUP($V1708,DisFac,3)","v":0},{"$f":"+$L1708*VLOOKUP($V1708,DisFac,4)","v":0},{"$f":"+$L1708*VLOOKUP($V1708,DisFac,5)","v":0},{"$f":"+$L1708*VLOOKUP($V1708,DisFac,6)","v":0},0,"UACCT362DP",{"$f":"ROUND(SUM(-H1708,J1708:N1708),0)","v":0},{"$f":"ROUND(J1708-Q1708-R1708,0)","v":0},{"$f":"ROUND(K1708-T1708-U1708,0)","v":0},{"$f":"ROUND(L1708-W1708-X1708-Y1708-Z1708-AA1708,0)","v":0}]
[1709,null,null,"   Assigned",362,"S","ACCT362A",0,"DPW",{"$f":"VLOOKUP($I1709,Func,2)*$H1709","v":0},{"$f":"VLOOKUP($I1709,Func,3)*$H1709","v":0},{"$f":"VLOOKUP($I1709,Func,5)*$H1709","v":0},{"$f":"VLOOKUP($I1709,Func,6)*$H1709","v":0},{"$f":"VLOOKUP($I1709,Func,7)*$H1709","v":0},null,null,null,null,null,null,null,"SUBS",{"$f":"+$L1709*VLOOKUP($V1709,DisFac,2)","v":0},{"$f":"+$L1709*VLOOKUP($V1709,DisFac,3)","v":0},{"$f":"+$L1709*VLOOKUP($V1709,DisFac,4)","v":0},{"$f":"+$L1709*VLOOKUP($V1709,DisFac,5)","v":0},{"$f":"+$L1709*VLOOKUP($V1709,DisFac,6)","v":0},0,"UACCT362A",{"$f":"ROUND(SUM(-H1709,J1709:N1709),0)","v":0},{"$f":"ROUND(J1709-Q1709-R1709,0)","v":0},{"$f":"ROUND(K1709-T1709-U1709,0)","v":0},{"$f":"ROUND(L1709-W1709-X1709-Y1709-Z1709-AA1709,0)","v":0}]
[1710,null,null,null,null,null,"ACCT362",{"$f":"'JAM Download'!E1860","v":47592408.020000003},null,{"$f":"SUM(J1708:J1709)","v":0},{"$f":"SUM(K1708:K1709)","v":0},{"$f":"SUM(L1708:L1709)","v":47592408.020000003},{"$f":"SUM(M1708:M1709)","v":0},{"$f":"SUM(N1708:N1709)","v":0},null,null,{"$f":"SUM(Q1708:Q1709)","v":0},{"$f":"SUM(R1708:R1709)","v":0},null,{"$f":"SUM(T1708:T1709)","v":0},{"$f":"SUM(U1708:U1709)","v":0},null,{"$f":"SUM(W1708:W1709)","v":47592408.020000003},{"$f":"SUM(X1708:X1709)","v":0},{"$f":"SUM(Y1708:Y1709)","v":0},{"$f":"SUM(Z1708:Z1709)","v":0},{"$f":"SUM(AA1708:AA1709)","v":0},0,"UACCT362",{"$f":"ROUND(SUM(-H1710,J1710:N1710),0)","v":0},{"$f":"ROUND(J1710-Q1710-R1710,0)","v":0},{"$f":"ROUND(K1710-T1710-U1710,0)","v":0},{"$f":"ROUND(L1710-W1710-X1710-Y1710-Z1710-AA1710,0)","v":0}]
[1711]
[1712,364,"Poles, Towers & Fixtures"]
[1713,null,null,"S"]
[1714,null,null,"   Demand - Primary",364,"S","ACCT364DP",{"$f":"'JAM Download'!E1867","v":92644359.829999998},"DPW",{"$f":"VLOOKUP($I1714,Func,2)*$H1714","v":0},{"$f":"VLOOKUP($I1714,Func,3)*$H1714","v":0},{"$f":"VLOOKUP($I1714,Func,5)*$H1714","v":92644359.829999998},{"$f":"VLOOKUP($I1714,Func,6)*$H1714","v":0},{"$f":"VLOOKUP($I1714,Func,7)*$H1714","v":0},null,null,null,null,null,null,null,"PC",{"$f":"+$L1714*VLOOKUP($V1714,DisFac,2)","v":0},{"$f":"+$L1714*VLOOKUP($V1714,DisFac,3)","v":92644359.829999998},{"$f":"+$L1714*VLOOKUP($V1714,DisFac,4)","v":0},{"$f":"+$L1714*VLOOKUP($V1714,DisFac,5)","v":0},{"$f":"+$L1714*VLOOKUP($V1714,DisFac,6)","v":0},0,"UACCT364DP",{"$f":"ROUND(SUM(-H1714,J1714:N1714),0)","v":0},{"$f":"ROUND(J1714-Q1714-R1714,0)","v":0},{"$f":"ROUND(K1714-T1714-U1714,0)","v":0},{"$f":"ROUND(L1714-W1714-X1714-Y1714-Z1714-AA1714,0)","v":0}]
[1715,null,null,"   Demand - Secondary",364,"S","ACCT364DS",0,"DPW",{"$f":"VLOOKUP($I1715,Func,2)*$H1715","v":0},{"$f":"VLOOKUP($I1715,Func,3)*$H1715","v":0},{"$f":"VLOOKUP($I1715,Func,5)*$H1715","v":0},{"$f":"VLOOKUP($I1715,Func,6)*$H1715","v":0},{"$f":"VLOOKUP($I1715,Func,7)*$H1715","v":0},null,null,null,null,null,null,null,"PC",{"$f":"+$L1715*VLOOKUP($V1715,DisFac,2)","v":0},{"$f":"+$L1715*VLOOKUP($V1715,DisFac,3)","v":0},{"$f":"+$L1715*VLOOKUP($V1715,DisFac,4)","v":0},{"$f":"+$L1715*VLOOKUP($V1715,DisFac,5)","v":0},{"$f":"+$L1715*VLOOKUP($V1715,DisFac,6)","v":0},0,"UACCT364DS",{"$f":"ROUND(SUM(-H1715,J1715:N1715),0)","v":0},{"$f":"ROUND(J1715-Q1715-R1715,0)","v":0},{"$f":"ROUND(K1715-T1715-U1715,0)","v":0},{"$f":"ROUND(L1715-W1715-X1715-Y1715-Z1715-AA1715,0)","v":0}]
[1716,null,null,"   Assigned",364,"S","ACCT364A",0,"DPW",{"$f":"VLOOKUP($I1716,Func,2)*$H1716","v":0},{"$f":"VLOOKUP($I1716,Func,3)*$H1716","v":0},{"$f":"VLOOKUP($I1716,Func,5)*$H1716","v":0},{"$f":"VLOOKUP($I1716,Func,6)*$H1716","v":0},{"$f":"VLOOKUP($I1716,Func,7)*$H1716","v":0},null,null,null,null,null,null,null,"PC",{"$f":"+$L1716*VLOOKUP($V1716,DisFac,2)","v":0},{"$f":"+$L1716*VLOOKUP($V1716,DisFac,3)","v":0},{"$f":"+$L1716*VLOOKUP($V1716,DisFac,4)","v":0},{"$f":"+$L1716*VLOOKUP($V1716,DisFac,5)","v":0},{"$f":"+$L1716*VLOOKUP($V1716,DisFac,6)","v":0},0,"UACCT364A",{"$f":"ROUND(SUM(-H1716,J1716:N1716),0)","v":0},{"$f":"ROUND(J1716-Q1716-R1716,0)","v":0},{"$f":"ROUND(K1716-T1716-U1716,0)","v":0},{"$f":"ROUND(L1716-W1716-X1716-Y1716-Z1716-AA1716,0)","v":0}]
[1717,null,null,null,null,null,"ACCT364",{"$f":"'JAM Download'!E1868","v":92644359.829999998},null,{"$f":"SUM(J1714:J1716)","v":0},{"$f":"SUM(K1714:K1716)","v":0},{"$f":"SUM(L1714:L1716)","v":92644359.829999998},{"$f":"SUM(M1714:M1716)","v":0},{"$f":"SUM(N1714:N1716)","v":0},null,null,{"$f":"SUM(Q1714:Q1716)","v":0},{"$f":"SUM(R1714:R1716)","v":0},null,{"$f":"SUM(T1714:T1716)","v":0},{"$f":"SUM(U1714:U1716)","v":0},null,{"$f":"SUM(W1714:W1716)","v":0},{"$f":"SUM(X1714:X1716)","v":92644359.829999998},{"$f":"SUM(Y1714:Y1716)","v":0},{"$f":"SUM(Z1714:Z1716)","v":0},{"$f":"SUM(AA1714:AA1716)","v":0},0,"UACCT364",{"$f":"ROUND(SUM(-H1717,J1717:N1717),0)","v":0},{"$f":"ROUND(J1717-Q1717-R1717,0)","v":0},{"$f":"ROUND(K1717-T1717-U1717,0)","v":0},{"$f":"ROUND(L1717-W1717-X1717-Y1717-Z1717-AA1717,0)","v":0}]
[1718]
[1719,365,"Overhead Conductors"]
[1720,null,null,"S"]
[1721,null,null,"   Demand - Primary",365,"S","ACCT365DP",{"$f":"'JAM Download'!E1871","v":58634040.060000002},"DPW",{"$f":"VLOOKUP($I1721,Func,2)*$H1721","v":0},{"$f":"VLOOKUP($I1721,Func,3)*$H1721","v":0},{"$f":"VLOOKUP($I1721,Func,5)*$H1721","v":58634040.060000002},{"$f":"VLOOKUP($I1721,Func,6)*$H1721","v":0},{"$f":"VLOOKUP($I1721,Func,7)*$H1721","v":0},null,null,null,null,null,null,null,"PC",{"$f":"+$L1721*VLOOKUP($V1721,DisFac,2)","v":0},{"$f":"+$L1721*VLOOKUP($V1721,DisFac,3)","v":58634040.060000002},{"$f":"+$L1721*VLOOKUP($V1721,DisFac,4)","v":0},{"$f":"+$L1721*VLOOKUP($V1721,DisFac,5)","v":0},{"$f":"+$L1721*VLOOKUP($V1721,DisFac,6)","v":0},0,"UACCT365DP",{"$f":"ROUND(SUM(-H1721,J1721:N1721),0)","v":0},{"$f":"ROUND(J1721-Q1721-R1721,0)","v":0},{"$f":"ROUND(K1721-T1721-U1721,0)","v":0},{"$f":"ROUND(L1721-W1721-X1721-Y1721-Z1721-AA1721,0)","v":0}]
[1722,null,null,"   Demand - Secondary",365,"S","ACCT365DS",0,"DPW",{"$f":"VLOOKUP($I1722,Func,2)*$H1722","v":0},{"$f":"VLOOKUP($I1722,Func,3)*$H1722","v":0},{"$f":"VLOOKUP($I1722,Func,5)*$H1722","v":0},{"$f":"VLOOKUP($I1722,Func,6)*$H1722","v":0},{"$f":"VLOOKUP($I1722,Func,7)*$H1722","v":0},null,null,null,null,null,null,null,"PC",{"$f":"+$L1722*VLOOKUP($V1722,DisFac,2)","v":0},{"$f":"+$L1722*VLOOKUP($V1722,DisFac,3)","v":0},{"$f":"+$L1722*VLOOKUP($V1722,DisFac,4)","v":0},{"$f":"+$L1722*VLOOKUP($V1722,DisFac,5)","v":0},{"$f":"+$L1722*VLOOKUP($V1722,DisFac,6)","v":0},0,"UACCT365DS",{"$f":"ROUND(SUM(-H1722,J1722:N1722),0)","v":0},{"$f":"ROUND(J1722-Q1722-R1722,0)","v":0},{"$f":"ROUND(K1722-T1722-U1722,0)","v":0},{"$f":"ROUND(L1722-W1722-X1722-Y1722-Z1722-AA1722,0)","v":0}]
[1723,null,null,"   Assigned",365,"S","ACCT365A",0,"DPW",{"$f":"VLOOKUP($I1723,Func,2)*$H1723","v":0},{"$f":"VLOOKUP($I1723,Func,3)*$H1723","v":0},{"$f":"VLOOKUP($I1723,Func,5)*$H1723","v":0},{"$f":"VLOOKUP($I1723,Func,6)*$H1723","v":0},{"$f":"VLOOKUP($I1723,Func,7)*$H1723","v":0},null,null,null,null,null,null,null,"PC",{"$f":"+$L1723*VLOOKUP($V1723,DisFac,2)","v":0},{"$f":"+$L1723*VLOOKUP($V1723,DisFac,3)","v":0},{"$f":"+$L1723*VLOOKUP($V1723,DisFac,4)","v":0},{"$f":"+$L1723*VLOOKUP($V1723,DisFac,5)","v":0},{"$f":"+$L1723*VLOOKUP($V1723,DisFac,6)","v":0},0,"UACCT365A",{"$f":"ROUND(SUM(-H1723,J1723:N1723),0)","v":0},{"$f":"ROUND(J1723-Q1723-R1723,0)","v":0},{"$f":"ROUND(K1723-T1723-U1723,0)","v":0},{"$f":"ROUND(L1723-W1723-X1723-Y1723-Z1723-AA1723,0)","v":0}]
[1724,null,null,null,null,null,"ACCT365",{"$f":"'JAM Download'!E1872","v":58634040.060000002},null,{"$f":"SUM(J1721:J1723)","v":0},{"$f":"SUM(K1721:K1723)","v":0},{"$f":"SUM(L1721:L1723)","v":58634040.060000002},{"$f":"SUM(M1721:M1723)","v":0},{"$f":"SUM(N1721:N1723)","v":0},null,null,{"$f":"SUM(Q1721:Q1723)","v":0},{"$f":"SUM(R1721:R1723)","v":0},null,{"$f":"SUM(T1721:T1723)","v":0},{"$f":"SUM(U1721:U1723)","v":0},null,{"$f":"SUM(W1721:W1723)","v":0},{"$f":"SUM(X1721:X1723)","v":58634040.060000002},{"$f":"SUM(Y1721:Y1723)","v":0},{"$f":"SUM(Z1721:Z1723)","v":0},{"$f":"SUM(AA1721:AA1723)","v":0},0,"UACCT365",{"$f":"ROUND(SUM(-H1724,J1724:N1724),0)","v":0},{"$f":"ROUND(J1724-Q1724-R1724,0)","v":0},{"$f":"ROUND(K1724-T1724-U1724,0)","v":0},{"$f":"ROUND(L1724-W1724-X1724-Y1724-Z1724-AA1724,0)","v":0}]
[{"$f":"A1724+1","v":1725}]
[1726,366,"Underground Conduit"]
[1727,null,null,"S"]
[1728,null,null,"   Demand - Primary",366,"S","ACCT366DP",{"$f":"'JAM Download'!E1875","v":16364985.75},"DPW",{"$f":"VLOOKUP($I1728,Func,2)*$H1728","v":0},{"$f":"VLOOKUP($I1728,Func,3)*$H1728","v":0},{"$f":"VLOOKUP($I1728,Func,5)*$H1728","v":16364985.75},{"$f":"VLOOKUP($I1728,Func,6)*$H1728","v":0},{"$f":"VLOOKUP($I1728,Func,7)*$H1728","v":0},null,null,null,null,null,null,null,"PC",{"$f":"+$L1728*VLOOKUP($V1728,DisFac,2)","v":0},{"$f":"+$L1728*VLOOKUP($V1728,DisFac,3)","v":16364985.75},{"$f":"+$L1728*VLOOKUP($V1728,DisFac,4)","v":0},{"$f":"+$L1728*VLOOKUP($V1728,DisFac,5)","v":0},{"$f":"+$L1728*VLOOKUP($V1728,DisFac,6)","v":0},0,"UACCT366DP",{"$f":"ROUND(SUM(-H1728,J1728:N1728),0)","v":0},{"$f":"ROUND(J1728-Q1728-R1728,0)","v":0},{"$f":"ROUND(K1728-T1728-U1728,0)","v":0},{"$f":"ROUND(L1728-W1728-X1728-Y1728-Z1728-AA1728,0)","v":0}]
[1729,null,null,"   Demand - Secondary",366,"S","ACCT366DS",0,"DPW",{"$f":"VLOOKUP($I1729,Func,2)*$H1729","v":0},{"$f":"VLOOKUP($I1729,Func,3)*$H1729","v":0},{"$f":"VLOOKUP($I1729,Func,5)*$H1729","v":0},{"$f":"VLOOKUP($I1729,Func,6)*$H1729","v":0},{"$f":"VLOOKUP($I1729,Func,7)*$H1729","v":0},null,null,null,null,null,null,null,"PC",{"$f":"+$L1729*VLOOKUP($V1729,DisFac,2)","v":0},{"$f":"+$L1729*VLOOKUP($V1729,DisFac,3)","v":0},{"$f":"+$L1729*VLOOKUP($V1729,DisFac,4)","v":0},{"$f":"+$L1729*VLOOKUP($V1729,DisFac,5)","v":0},{"$f":"+$L1729*VLOOKUP($V1729,DisFac,6)","v":0},0,"UACCT366DS",{"$f":"ROUND(SUM(-H1729,J1729:N1729),0)","v":0},{"$f":"ROUND(J1729-Q1729-R1729,0)","v":0},{"$f":"ROUND(K1729-T1729-U1729,0)","v":0},{"$f":"ROUND(L1729-W1729-X1729-Y1729-Z1729-AA1729,0)","v":0}]
[1730,null,null,"   Assigned",366,"S","ACCT366A",0,"DPW",{"$f":"VLOOKUP($I1730,Func,2)*$H1730","v":0},{"$f":"VLOOKUP($I1730,Func,3)*$H1730","v":0},{"$f":"VLOOKUP($I1730,Func,5)*$H1730","v":0},{"$f":"VLOOKUP($I1730,Func,6)*$H1730","v":0},{"$f":"VLOOKUP($I1730,Func,7)*$H1730","v":0},null,null,null,null,null,null,null,"PC",{"$f":"+$L1730*VLOOKUP($V1730,DisFac,2)","v":0},{"$f":"+$L1730*VLOOKUP($V1730,DisFac,3)","v":0},{"$f":"+$L1730*VLOOKUP($V1730,DisFac,4)","v":0},{"$f":"+$L1730*VLOOKUP($V1730,DisFac,5)","v":0},{"$f":"+$L1730*VLOOKUP($V1730,DisFac,6)","v":0},0,"UACCT366A",{"$f":"ROUND(SUM(-H1730,J1730:N1730),0)","v":0},{"$f":"ROUND(J1730-Q1730-R1730,0)","v":0},{"$f":"ROUND(K1730-T1730-U1730,0)","v":0},{"$f":"ROUND(L1730-W1730-X1730-Y1730-Z1730-AA1730,0)","v":0}]
[1731,null,null,null,null,null,"ACCT366",{"$f":"'JAM Download'!E1876","v":16364985.75},null,{"$f":"SUM(J1728:J1730)","v":0},{"$f":"SUM(K1728:K1730)","v":0},{"$f":"SUM(L1728:L1730)","v":16364985.75},{"$f":"SUM(M1728:M1730)","v":0},{"$f":"SUM(N1728:N1730)","v":0},null,null,{"$f":"SUM(Q1728:Q1730)","v":0},{"$f":"SUM(R1728:R1730)","v":0},null,{"$f":"SUM(T1728:T1730)","v":0},{"$f":"SUM(U1728:U1730)","v":0},null,{"$f":"SUM(W1728:W1730)","v":0},{"$f":"SUM(X1728:X1730)","v":16364985.75},{"$f":"SUM(Y1728:Y1730)","v":0},{"$f":"SUM(Z1728:Z1730)","v":0},{"$f":"SUM(AA1728:AA1730)","v":0},0,"UACCT366",{"$f":"ROUND(SUM(-H1731,J1731:N1731),0)","v":0},{"$f":"ROUND(J1731-Q1731-R1731,0)","v":0},{"$f":"ROUND(K1731-T1731-U1731,0)","v":0},{"$f":"ROUND(L1731-W1731-X1731-Y1731-Z1731-AA1731,0)","v":0}]
[1732]
[1733,367,"Underground Conductors "]
[1734,null,null,"S"]
[1735,null,null,"   Demand - Primary",367,"S","ACCT367DP",{"$f":"'JAM Download'!E1882","v":22764714.91},"DPW",{"$f":"VLOOKUP($I1735,Func,2)*$H1735","v":0},{"$f":"VLOOKUP($I1735,Func,3)*$H1735","v":0},{"$f":"VLOOKUP($I1735,Func,5)*$H1735","v":22764714.91},{"$f":"VLOOKUP($I1735,Func,6)*$H1735","v":0},{"$f":"VLOOKUP($I1735,Func,7)*$H1735","v":0},null,null,null,null,null,null,null,"PC",{"$f":"+$L1735*VLOOKUP($V1735,DisFac,2)","v":0},{"$f":"+$L1735*VLOOKUP($V1735,DisFac,3)","v":22764714.91},{"$f":"+$L1735*VLOOKUP($V1735,DisFac,4)","v":0},{"$f":"+$L1735*VLOOKUP($V1735,DisFac,5)","v":0},{"$f":"+$L1735*VLOOKUP($V1735,DisFac,6)","v":0},0,"UACCT367DP",{"$f":"ROUND(SUM(-H1735,J1735:N1735),0)","v":0},{"$f":"ROUND(J1735-Q1735-R1735,0)","v":0},{"$f":"ROUND(K1735-T1735-U1735,0)","v":0},{"$f":"ROUND(L1735-W1735-X1735-Y1735-Z1735-AA1735,0)","v":0}]
[1736,null,null,"   Demand - Secondary",367,"S","ACCT367DS",0,"DPW",{"$f":"VLOOKUP($I1736,Func,2)*$H1736","v":0},{"$f":"VLOOKUP($I1736,Func,3)*$H1736","v":0},{"$f":"VLOOKUP($I1736,Func,5)*$H1736","v":0},{"$f":"VLOOKUP($I1736,Func,6)*$H1736","v":0},{"$f":"VLOOKUP($I1736,Func,7)*$H1736","v":0},null,null,null,null,null,null,null,"PC",{"$f":"+$L1736*VLOOKUP($V1736,DisFac,2)","v":0},{"$f":"+$L1736*VLOOKUP($V1736,DisFac,3)","v":0},{"$f":"+$L1736*VLOOKUP($V1736,DisFac,4)","v":0},{"$f":"+$L1736*VLOOKUP($V1736,DisFac,5)","v":0},{"$f":"+$L1736*VLOOKUP($V1736,DisFac,6)","v":0},0,"UACCT367DS",{"$f":"ROUND(SUM(-H1736,J1736:N1736),0)","v":0},{"$f":"ROUND(J1736-Q1736-R1736,0)","v":0},{"$f":"ROUND(K1736-T1736-U1736,0)","v":0},{"$f":"ROUND(L1736-W1736-X1736-Y1736-Z1736-AA1736,0)","v":0}]
[1737,null,null,"   Assigned",367,"S","ACCT367A",0,"DPW",{"$f":"VLOOKUP($I1737,Func,2)*$H1737","v":0},{"$f":"VLOOKUP($I1737,Func,3)*$H1737","v":0},{"$f":"VLOOKUP($I1737,Func,5)*$H1737","v":0},{"$f":"VLOOKUP($I1737,Func,6)*$H1737","v":0},{"$f":"VLOOKUP($I1737,Func,7)*$H1737","v":0},null,null,null,null,null,null,null,"PC",{"$f":"+$L1737*VLOOKUP($V1737,DisFac,2)","v":0},{"$f":"+$L1737*VLOOKUP($V1737,DisFac,3)","v":0},{"$f":"+$L1737*VLOOKUP($V1737,DisFac,4)","v":0},{"$f":"+$L1737*VLOOKUP($V1737,DisFac,5)","v":0},{"$f":"+$L1737*VLOOKUP($V1737,DisFac,6)","v":0},0,"UACCT367A",{"$f":"ROUND(SUM(-H1737,J1737:N1737),0)","v":0},{"$f":"ROUND(J1737-Q1737-R1737,0)","v":0},{"$f":"ROUND(K1737-T1737-U1737,0)","v":0},{"$f":"ROUND(L1737-W1737-X1737-Y1737-Z1737-AA1737,0)","v":0}]
[1738,null,null,null,null,null,"ACCT367",{"$f":"'JAM Download'!E1883","v":22764714.91},null,{"$f":"SUM(J1735:J1737)","v":0},{"$f":"SUM(K1735:K1737)","v":0},{"$f":"SUM(L1735:L1737)","v":22764714.91},{"$f":"SUM(M1735:M1737)","v":0},{"$f":"SUM(N1735:N1737)","v":0},null,null,{"$f":"SUM(Q1735:Q1737)","v":0},{"$f":"SUM(R1735:R1737)","v":0},null,{"$f":"SUM(T1735:T1737)","v":0},{"$f":"SUM(U1735:U1737)","v":0},null,{"$f":"SUM(W1735:W1737)","v":0},{"$f":"SUM(X1735:X1737)","v":22764714.91},{"$f":"SUM(Y1735:Y1737)","v":0},{"$f":"SUM(Z1735:Z1737)","v":0},{"$f":"SUM(AA1735:AA1737)","v":0},0,"UACCT367",{"$f":"ROUND(SUM(-H1738,J1738:N1738),0)","v":0},{"$f":"ROUND(J1738-Q1738-R1738,0)","v":0},{"$f":"ROUND(K1738-T1738-U1738,0)","v":0},{"$f":"ROUND(L1738-W1738-X1738-Y1738-Z1738-AA1738,0)","v":0}]
[1739]
[1740,368,"Line Transformers"]
[1741,null,null,"S"]
[1742,null,null,"   Demand - Secondary",368,"S","ACCT368DS",{"$f":"'JAM Download'!E1886","v":98870912.760000005},"DPW",{"$f":"VLOOKUP($I1742,Func,2)*$H1742","v":0},{"$f":"VLOOKUP($I1742,Func,3)*$H1742","v":0},{"$f":"VLOOKUP($I1742,Func,5)*$H1742","v":98870912.760000005},{"$f":"VLOOKUP($I1742,Func,6)*$H1742","v":0},{"$f":"VLOOKUP($I1742,Func,7)*$H1742","v":0},null,null,null,null,null,null,null,"XFMR",{"$f":"+$L1742*VLOOKUP($V1742,DisFac,2)","v":0},{"$f":"+$L1742*VLOOKUP($V1742,DisFac,3)","v":0},{"$f":"+$L1742*VLOOKUP($V1742,DisFac,4)","v":98870912.760000005},{"$f":"+$L1742*VLOOKUP($V1742,DisFac,5)","v":0},{"$f":"+$L1742*VLOOKUP($V1742,DisFac,6)","v":0},0,"UACCT368DS",{"$f":"ROUND(SUM(-H1742,J1742:N1742),0)","v":0},{"$f":"ROUND(J1742-Q1742-R1742,0)","v":0},{"$f":"ROUND(K1742-T1742-U1742,0)","v":0},{"$f":"ROUND(L1742-W1742-X1742-Y1742-Z1742-AA1742,0)","v":0}]
[1743,null,null,"   Assigned",368,"S","ACCT368A",0,"DPW",{"$f":"VLOOKUP($I1743,Func,2)*$H1743","v":0},{"$f":"VLOOKUP($I1743,Func,3)*$H1743","v":0},{"$f":"VLOOKUP($I1743,Func,5)*$H1743","v":0},{"$f":"VLOOKUP($I1743,Func,6)*$H1743","v":0},{"$f":"VLOOKUP($I1743,Func,7)*$H1743","v":0},null,null,null,null,null,null,null,"XFMR",{"$f":"+$L1743*VLOOKUP($V1743,DisFac,2)","v":0},{"$f":"+$L1743*VLOOKUP($V1743,DisFac,3)","v":0},{"$f":"+$L1743*VLOOKUP($V1743,DisFac,4)","v":0},{"$f":"+$L1743*VLOOKUP($V1743,DisFac,5)","v":0},{"$f":"+$L1743*VLOOKUP($V1743,DisFac,6)","v":0},0,"UACCT368A",{"$f":"ROUND(SUM(-H1743,J1743:N1743),0)","v":0},{"$f":"ROUND(J1743-Q1743-R1743,0)","v":0},{"$f":"ROUND(K1743-T1743-U1743,0)","v":0},{"$f":"ROUND(L1743-W1743-X1743-Y1743-Z1743-AA1743,0)","v":0}]
[1744,null,null,null,null,null,"ACCT368",{"$f":"'JAM Download'!E1887","v":98870912.760000005},null,{"$f":"SUM(J1742:J1743)","v":0},{"$f":"SUM(K1742:K1743)","v":0},{"$f":"SUM(L1742:L1743)","v":98870912.760000005},{"$f":"SUM(M1742:M1743)","v":0},{"$f":"SUM(N1742:N1743)","v":0},null,null,{"$f":"SUM(Q1742:Q1743)","v":0},{"$f":"SUM(R1742:R1743)","v":0},null,{"$f":"SUM(T1742:T1743)","v":0},{"$f":"SUM(U1742:U1743)","v":0},null,{"$f":"SUM(W1742:W1743)","v":0},{"$f":"SUM(X1742:X1743)","v":0},{"$f":"SUM(Y1742:Y1743)","v":98870912.760000005},{"$f":"SUM(Z1742:Z1743)","v":0},{"$f":"SUM(AA1742:AA1743)","v":0},0,"UACCT368",{"$f":"ROUND(SUM(-H1744,J1744:N1744),0)","v":0},{"$f":"ROUND(J1744-Q1744-R1744,0)","v":0},{"$f":"ROUND(K1744-T1744-U1744,0)","v":0},{"$f":"ROUND(L1744-W1744-X1744-Y1744-Z1744-AA1744,0)","v":0}]
[1745]
[1746,369,"Services"]
[1747,null,null,"S"]
[1748,null,null,"   Customer OH",369,"S","ACCT369COH",{"$f":"'JAM Download'!E1890","v":52234063.350000001},"DPW",{"$f":"VLOOKUP($I1748,Func,2)*$H1748","v":0},{"$f":"VLOOKUP($I1748,Func,3)*$H1748","v":0},{"$f":"VLOOKUP($I1748,Func,5)*$H1748","v":52234063.350000001},{"$f":"VLOOKUP($I1748,Func,6)*$H1748","v":0},{"$f":"VLOOKUP($I1748,Func,7)*$H1748","v":0},null,null,null,null,null,null,null,"SERV",{"$f":"+$L1748*VLOOKUP($V1748,DisFac,2)","v":0},{"$f":"+$L1748*VLOOKUP($V1748,DisFac,3)","v":0},{"$f":"+$L1748*VLOOKUP($V1748,DisFac,4)","v":0},{"$f":"+$L1748*VLOOKUP($V1748,DisFac,5)","v":0},{"$f":"+$L1748*VLOOKUP($V1748,DisFac,6)","v":52234063.350000001},0,"UACCT369COH",{"$f":"ROUND(SUM(-H1748,J1748:N1748),0)","v":0},{"$f":"ROUND(J1748-Q1748-R1748,0)","v":0},{"$f":"ROUND(K1748-T1748-U1748,0)","v":0},{"$f":"ROUND(L1748-W1748-X1748-Y1748-Z1748-AA1748,0)","v":0}]
[1749,null,null,"   Customer UG",369,"S","ACCT369CUG",0,"DPW",{"$f":"VLOOKUP($I1749,Func,2)*$H1749","v":0},{"$f":"VLOOKUP($I1749,Func,3)*$H1749","v":0},{"$f":"VLOOKUP($I1749,Func,5)*$H1749","v":0},{"$f":"VLOOKUP($I1749,Func,6)*$H1749","v":0},{"$f":"VLOOKUP($I1749,Func,7)*$H1749","v":0},null,null,null,null,null,null,null,"SERV",{"$f":"+$L1749*VLOOKUP($V1749,DisFac,2)","v":0},{"$f":"+$L1749*VLOOKUP($V1749,DisFac,3)","v":0},{"$f":"+$L1749*VLOOKUP($V1749,DisFac,4)","v":0},{"$f":"+$L1749*VLOOKUP($V1749,DisFac,5)","v":0},{"$f":"+$L1749*VLOOKUP($V1749,DisFac,6)","v":0},0,"UACCT369CUG",{"$f":"ROUND(SUM(-H1749,J1749:N1749),0)","v":0},{"$f":"ROUND(J1749-Q1749-R1749,0)","v":0},{"$f":"ROUND(K1749-T1749-U1749,0)","v":0},{"$f":"ROUND(L1749-W1749-X1749-Y1749-Z1749-AA1749,0)","v":0}]
[1750,null,null,"   Assigned",369,"S","ACCT369A",0,"DPW",{"$f":"VLOOKUP($I1750,Func,2)*$H1750","v":0},{"$f":"VLOOKUP($I1750,Func,3)*$H1750","v":0},{"$f":"VLOOKUP($I1750,Func,5)*$H1750","v":0},{"$f":"VLOOKUP($I1750,Func,6)*$H1750","v":0},{"$f":"VLOOKUP($I1750,Func,7)*$H1750","v":0},null,null,null,null,null,null,null,"SERV",{"$f":"+$L1750*VLOOKUP($V1750,DisFac,2)","v":0},{"$f":"+$L1750*VLOOKUP($V1750,DisFac,3)","v":0},{"$f":"+$L1750*VLOOKUP($V1750,DisFac,4)","v":0},{"$f":"+$L1750*VLOOKUP($V1750,DisFac,5)","v":0},{"$f":"+$L1750*VLOOKUP($V1750,DisFac,6)","v":0},0,"UACCT369A",{"$f":"ROUND(SUM(-H1750,J1750:N1750),0)","v":0},{"$f":"ROUND(J1750-Q1750-R1750,0)","v":0},{"$f":"ROUND(K1750-T1750-U1750,0)","v":0},{"$f":"ROUND(L1750-W1750-X1750-Y1750-Z1750-AA1750,0)","v":0}]
[1751,null,null,null,null,null,"ACCT369",{"$f":"'JAM Download'!E1891","v":52234063.350000001},null,{"$f":"SUM(J1748:J1750)","v":0},{"$f":"SUM(K1748:K1750)","v":0},{"$f":"SUM(L1748:L1750)","v":52234063.350000001},{"$f":"SUM(M1748:M1750)","v":0},{"$f":"SUM(N1748:N1750)","v":0},null,null,{"$f":"SUM(Q1748:Q1750)","v":0},{"$f":"SUM(R1748:R1750)","v":0},null,{"$f":"SUM(T1748:T1750)","v":0},{"$f":"SUM(U1748:U1750)","v":0},null,{"$f":"SUM(W1748:W1750)","v":0},{"$f":"SUM(X1748:X1750)","v":0},{"$f":"SUM(Y1748:Y1750)","v":0},{"$f":"SUM(Z1748:Z1750)","v":0},{"$f":"SUM(AA1748:AA1750)","v":52234063.350000001},0,"UACCT369",{"$f":"ROUND(SUM(-H1751,J1751:N1751),0)","v":0},{"$f":"ROUND(J1751-Q1751-R1751,0)","v":0},{"$f":"ROUND(K1751-T1751-U1751,0)","v":0},{"$f":"ROUND(L1751-W1751-X1751-Y1751-Z1751-AA1751,0)","v":0}]
[1752]
[1753]
[1754]
[1755,"FERC",null,"DESCRIPTION &","FERC",null,"RANGE",{"$f":"+$H$250","v":"Jurisdictional"},"FUNC","GEN","TRN","DIS","RETAIL","MISC",null,"D / E","GEN","GEN","D / E","TRN","TRN","DIS","DIS","DIS","DIS","DIS","DIS","DIS","Unbundled ACCT:","Function","Generation","Transmission","Distribution"]
[1756,"ACCT",null,"CONSENSUS FACTOR","ACCT","FACTOR","NAME","ADJ Total","FACTOR","TOTAL","TOTAL","TOTAL","TOTAL","TOTAL",null,"SPLIT","DEMAND","ENERGY","SPLIT","DEMAND","ENERGY","SPLIT","SUBS","P & C","XFMR","METER","SERVICE","METER","TOTAL","Check","Check","Check","Check"]
[1757]
[1758,370,"Meters"]
[1759,null,null,"S"]
[1760,null,null,"   Customer",370,"S","ACCT370C",{"$f":"'JAM Download'!E1894","v":11451993.6},"DPW",{"$f":"VLOOKUP($I1760,Func,2)*$H1760","v":0},{"$f":"VLOOKUP($I1760,Func,3)*$H1760","v":0},{"$f":"VLOOKUP($I1760,Func,5)*$H1760","v":11451993.6},{"$f":"VLOOKUP($I1760,Func,6)*$H1760","v":0},{"$f":"VLOOKUP($I1760,Func,7)*$H1760","v":0},null,null,null,null,null,null,null,"METR",{"$f":"+$L1760*VLOOKUP($V1760,DisFac,2)","v":0},{"$f":"+$L1760*VLOOKUP($V1760,DisFac,3)","v":0},{"$f":"+$L1760*VLOOKUP($V1760,DisFac,4)","v":0},{"$f":"+$L1760*VLOOKUP($V1760,DisFac,5)","v":11451993.6},{"$f":"+$L1760*VLOOKUP($V1760,DisFac,6)","v":0},11451993.6,"UACCT370C",{"$f":"ROUND(SUM(-H1760,J1760:N1760),0)","v":0},{"$f":"ROUND(J1760-Q1760-R1760,0)","v":0},{"$f":"ROUND(K1760-T1760-U1760,0)","v":0},{"$f":"ROUND(L1760-W1760-X1760-Y1760-Z1760-AA1760,0)","v":0}]
[1761,null,null,"   Assigned",370,"S","ACCT370A",0,"DPW",{"$f":"VLOOKUP($I1761,Func,2)*$H1761","v":0},{"$f":"VLOOKUP($I1761,Func,3)*$H1761","v":0},{"$f":"VLOOKUP($I1761,Func,5)*$H1761","v":0},{"$f":"VLOOKUP($I1761,Func,6)*$H1761","v":0},{"$f":"VLOOKUP($I1761,Func,7)*$H1761","v":0},null,null,null,null,null,null,null,"METR",{"$f":"+$L1761*VLOOKUP($V1761,DisFac,2)","v":0},{"$f":"+$L1761*VLOOKUP($V1761,DisFac,3)","v":0},{"$f":"+$L1761*VLOOKUP($V1761,DisFac,4)","v":0},{"$f":"+$L1761*VLOOKUP($V1761,DisFac,5)","v":0},{"$f":"+$L1761*VLOOKUP($V1761,DisFac,6)","v":0},0,"UACCT370A",{"$f":"ROUND(SUM(-H1761,J1761:N1761),0)","v":0},{"$f":"ROUND(J1761-Q1761-R1761,0)","v":0},{"$f":"ROUND(K1761-T1761-U1761,0)","v":0},{"$f":"ROUND(L1761-W1761-X1761-Y1761-Z1761-AA1761,0)","v":0}]
[1762,null,null,null,null,null,"ACCT370",{"$f":"'JAM Download'!E1895","v":11451993.6},null,{"$f":"SUM(J1760:J1761)","v":0},{"$f":"SUM(K1760:K1761)","v":0},{"$f":"SUM(L1760:L1761)","v":11451993.6},{"$f":"SUM(M1760:M1761)","v":0},{"$f":"SUM(N1760:N1761)","v":0},null,null,{"$f":"SUM(Q1760:Q1761)","v":0},{"$f":"SUM(R1760:R1761)","v":0},null,{"$f":"SUM(T1760:T1761)","v":0},{"$f":"SUM(U1760:U1761)","v":0},null,{"$f":"SUM(W1760:W1761)","v":0},{"$f":"SUM(X1760:X1761)","v":0},{"$f":"SUM(Y1760:Y1761)","v":0},{"$f":"SUM(Z1760:Z1761)","v":11451993.6},{"$f":"SUM(AA1760:AA1761)","v":0},11451993.6,"UACCT370",{"$f":"ROUND(SUM(-H1762,J1762:N1762),0)","v":0},{"$f":"ROUND(J1762-Q1762-R1762,0)","v":0},{"$f":"ROUND(K1762-T1762-U1762,0)","v":0},{"$f":"ROUND(L1762-W1762-X1762-Y1762-Z1762-AA1762,0)","v":0}]
[1763]
[1764,371,"Installations on Customers' Premises"]
[1765,null,null,"S"]
[1766,null,null,"   Demand - Primary",371,"S","ACCT371DP",{"$f":"'JAM Download'!E1898","v":518187.33},"DPW",{"$f":"VLOOKUP($I1766,Func,2)*$H1766","v":0},{"$f":"VLOOKUP($I1766,Func,3)*$H1766","v":0},{"$f":"VLOOKUP($I1766,Func,5)*$H1766","v":518187.33},{"$f":"VLOOKUP($I1766,Func,6)*$H1766","v":0},{"$f":"VLOOKUP($I1766,Func,7)*$H1766","v":0},null,null,null,null,null,null,null,"PC",{"$f":"+$L1766*VLOOKUP($V1766,DisFac,2)","v":0},{"$f":"+$L1766*VLOOKUP($V1766,DisFac,3)","v":518187.33},{"$f":"+$L1766*VLOOKUP($V1766,DisFac,4)","v":0},{"$f":"+$L1766*VLOOKUP($V1766,DisFac,5)","v":0},{"$f":"+$L1766*VLOOKUP($V1766,DisFac,6)","v":0},0,"UACCT371DP",{"$f":"ROUND(SUM(-H1766,J1766:N1766),0)","v":0},{"$f":"ROUND(J1766-Q1766-R1766,0)","v":0},{"$f":"ROUND(K1766-T1766-U1766,0)","v":0},{"$f":"ROUND(L1766-W1766-X1766-Y1766-Z1766-AA1766,0)","v":0}]
[1767,null,null,"   Demand - Secondary",371,"S","ACCT371DS",0,"DPW",{"$f":"VLOOKUP($I1767,Func,2)*$H1767","v":0},{"$f":"VLOOKUP($I1767,Func,3)*$H1767","v":0},{"$f":"VLOOKUP($I1767,Func,5)*$H1767","v":0},{"$f":"VLOOKUP($I1767,Func,6)*$H1767","v":0},{"$f":"VLOOKUP($I1767,Func,7)*$H1767","v":0},null,null,null,null,null,null,null,"PC",{"$f":"+$L1767*VLOOKUP($V1767,DisFac,2)","v":0},{"$f":"+$L1767*VLOOKUP($V1767,DisFac,3)","v":0},{"$f":"+$L1767*VLOOKUP($V1767,DisFac,4)","v":0},{"$f":"+$L1767*VLOOKUP($V1767,DisFac,5)","v":0},{"$f":"+$L1767*VLOOKUP($V1767,DisFac,6)","v":0},0,"UACCT371DS",{"$f":"ROUND(SUM(-H1767,J1767:N1767),0)","v":0},{"$f":"ROUND(J1767-Q1767-R1767,0)","v":0},{"$f":"ROUND(K1767-T1767-U1767,0)","v":0},{"$f":"ROUND(L1767-W1767-X1767-Y1767-Z1767-AA1767,0)","v":0}]
[1768,null,null,"   Assigned",371,"S","ACCT371A",0,"DPW",{"$f":"VLOOKUP($I1768,Func,2)*$H1768","v":0},{"$f":"VLOOKUP($I1768,Func,3)*$H1768","v":0},{"$f":"VLOOKUP($I1768,Func,5)*$H1768","v":0},{"$f":"VLOOKUP($I1768,Func,6)*$H1768","v":0},{"$f":"VLOOKUP($I1768,Func,7)*$H1768","v":0},null,null,null,null,null,null,null,"PC",{"$f":"+$L1768*VLOOKUP($V1768,DisFac,2)","v":0},{"$f":"+$L1768*VLOOKUP($V1768,DisFac,3)","v":0},{"$f":"+$L1768*VLOOKUP($V1768,DisFac,4)","v":0},{"$f":"+$L1768*VLOOKUP($V1768,DisFac,5)","v":0},{"$f":"+$L1768*VLOOKUP($V1768,DisFac,6)","v":0},0,"UACCT371A",{"$f":"ROUND(SUM(-H1768,J1768:N1768),0)","v":0},{"$f":"ROUND(J1768-Q1768-R1768,0)","v":0},{"$f":"ROUND(K1768-T1768-U1768,0)","v":0},{"$f":"ROUND(L1768-W1768-X1768-Y1768-Z1768-AA1768,0)","v":0}]
[1769,null,null,null,null,null,"ACCT371",{"$f":"'JAM Download'!E1899","v":518187.33},null,{"$f":"SUM(J1766:J1768)","v":0},{"$f":"SUM(K1766:K1768)","v":0},{"$f":"SUM(L1766:L1768)","v":518187.33},{"$f":"SUM(M1766:M1768)","v":0},{"$f":"SUM(N1766:N1768)","v":0},null,null,{"$f":"SUM(Q1766:Q1768)","v":0},{"$f":"SUM(R1766:R1768)","v":0},null,{"$f":"SUM(T1766:T1768)","v":0},{"$f":"SUM(U1766:U1768)","v":0},null,{"$f":"SUM(W1766:W1768)","v":0},{"$f":"SUM(X1766:X1768)","v":518187.33},{"$f":"SUM(Y1766:Y1768)","v":0},{"$f":"SUM(Z1766:Z1768)","v":0},{"$f":"SUM(AA1766:AA1768)","v":0},0,"UACCT371",{"$f":"ROUND(SUM(-H1769,J1769:N1769),0)","v":0},{"$f":"ROUND(J1769-Q1769-R1769,0)","v":0},{"$f":"ROUND(K1769-T1769-U1769,0)","v":0},{"$f":"ROUND(L1769-W1769-X1769-Y1769-Z1769-AA1769,0)","v":0}]
[1770]
[1771,372,"Leased Property"]
[1772,null,null,"S"]
[1773,null,null,"   Demand - Primary",372,"S","ACCT372DP",{"$f":"'JAM Download'!E1902","v":0},"DPW",{"$f":"VLOOKUP($I1773,Func,2)*$H1773","v":0},{"$f":"VLOOKUP($I1773,Func,3)*$H1773","v":0},{"$f":"VLOOKUP($I1773,Func,5)*$H1773","v":0},{"$f":"VLOOKUP($I1773,Func,6)*$H1773","v":0},{"$f":"VLOOKUP($I1773,Func,7)*$H1773","v":0},null,null,null,null,null,null,null,"PLNT2",{"$f":"+$L1773*VLOOKUP($V1773,DisFac,2)","v":0},{"$f":"+$L1773*VLOOKUP($V1773,DisFac,3)","v":0},{"$f":"+$L1773*VLOOKUP($V1773,DisFac,4)","v":0},{"$f":"+$L1773*VLOOKUP($V1773,DisFac,5)","v":0},{"$f":"+$L1773*VLOOKUP($V1773,DisFac,6)","v":0},0,"UACCT372DP",{"$f":"ROUND(SUM(-H1773,J1773:N1773),0)","v":0},{"$f":"ROUND(J1773-Q1773-R1773,0)","v":0},{"$f":"ROUND(K1773-T1773-U1773,0)","v":0},{"$f":"ROUND(L1773-W1773-X1773-Y1773-Z1773-AA1773,0)","v":0}]
[1774,null,null,"   Demand - Secondary",372,"S","ACCT372DS",0,"DPW",{"$f":"VLOOKUP($I1774,Func,2)*$H1774","v":0},{"$f":"VLOOKUP($I1774,Func,3)*$H1774","v":0},{"$f":"VLOOKUP($I1774,Func,5)*$H1774","v":0},{"$f":"VLOOKUP($I1774,Func,6)*$H1774","v":0},{"$f":"VLOOKUP($I1774,Func,7)*$H1774","v":0},null,null,null,null,null,null,null,"PLNT2",{"$f":"+$L1774*VLOOKUP($V1774,DisFac,2)","v":0},{"$f":"+$L1774*VLOOKUP($V1774,DisFac,3)","v":0},{"$f":"+$L1774*VLOOKUP($V1774,DisFac,4)","v":0},{"$f":"+$L1774*VLOOKUP($V1774,DisFac,5)","v":0},{"$f":"+$L1774*VLOOKUP($V1774,DisFac,6)","v":0},0,"UACCT372DS",{"$f":"ROUND(SUM(-H1774,J1774:N1774),0)","v":0},{"$f":"ROUND(J1774-Q1774-R1774,0)","v":0},{"$f":"ROUND(K1774-T1774-U1774,0)","v":0},{"$f":"ROUND(L1774-W1774-X1774-Y1774-Z1774-AA1774,0)","v":0}]
[1775,null,null,"   Assigned",372,"S","ACCT372A",0,"DPW",{"$f":"VLOOKUP($I1775,Func,2)*$H1775","v":0},{"$f":"VLOOKUP($I1775,Func,3)*$H1775","v":0},{"$f":"VLOOKUP($I1775,Func,5)*$H1775","v":0},{"$f":"VLOOKUP($I1775,Func,6)*$H1775","v":0},{"$f":"VLOOKUP($I1775,Func,7)*$H1775","v":0},null,null,null,null,null,null,null,"PLNT2",{"$f":"+$L1775*VLOOKUP($V1775,DisFac,2)","v":0},{"$f":"+$L1775*VLOOKUP($V1775,DisFac,3)","v":0},{"$f":"+$L1775*VLOOKUP($V1775,DisFac,4)","v":0},{"$f":"+$L1775*VLOOKUP($V1775,DisFac,5)","v":0},{"$f":"+$L1775*VLOOKUP($V1775,DisFac,6)","v":0},0,"UACCT372A",{"$f":"ROUND(SUM(-H1775,J1775:N1775),0)","v":0},{"$f":"ROUND(J1775-Q1775-R1775,0)","v":0},{"$f":"ROUND(K1775-T1775-U1775,0)","v":0},{"$f":"ROUND(L1775-W1775-X1775-Y1775-Z1775-AA1775,0)","v":0}]
[1776,null,null,null,null,null,"ACCT372",{"$f":"'JAM Download'!E1903","v":0},null,{"$f":"SUM(J1773:J1775)","v":0},{"$f":"SUM(K1773:K1775)","v":0},{"$f":"SUM(L1773:L1775)","v":0},{"$f":"SUM(M1773:M1775)","v":0},{"$f":"SUM(N1773:N1775)","v":0},null,null,{"$f":"SUM(Q1773:Q1775)","v":0},{"$f":"SUM(R1773:R1775)","v":0},null,{"$f":"SUM(T1773:T1775)","v":0},{"$f":"SUM(U1773:U1775)","v":0},null,{"$f":"SUM(W1773:W1775)","v":0},{"$f":"SUM(X1773:X1775)","v":0},{"$f":"SUM(Y1773:Y1775)","v":0},{"$f":"SUM(Z1773:Z1775)","v":0},{"$f":"SUM(AA1773:AA1775)","v":0},0,"UACCT372",{"$f":"ROUND(SUM(-H1776,J1776:N1776),0)","v":0},{"$f":"ROUND(J1776-Q1776-R1776,0)","v":0},{"$f":"ROUND(K1776-T1776-U1776,0)","v":0},{"$f":"ROUND(L1776-W1776-X1776-Y1776-Z1776-AA1776,0)","v":0}]
[1777]
[1778,373,"Street Lights"]
[1779,null,null,"S"]
[1780,null,null,"   Customer",373,"S","ACCT373C",{"$f":"'JAM Download'!E1906","v":4036517},"DPW",{"$f":"VLOOKUP($I1780,Func,2)*$H1780","v":0},{"$f":"VLOOKUP($I1780,Func,3)*$H1780","v":0},{"$f":"VLOOKUP($I1780,Func,5)*$H1780","v":4036517},{"$f":"VLOOKUP($I1780,Func,6)*$H1780","v":0},{"$f":"VLOOKUP($I1780,Func,7)*$H1780","v":0},null,null,null,null,null,null,null,"PC",{"$f":"+$L1780*VLOOKUP($V1780,DisFac,2)","v":0},{"$f":"+$L1780*VLOOKUP($V1780,DisFac,3)","v":4036517},{"$f":"+$L1780*VLOOKUP($V1780,DisFac,4)","v":0},{"$f":"+$L1780*VLOOKUP($V1780,DisFac,5)","v":0},{"$f":"+$L1780*VLOOKUP($V1780,DisFac,6)","v":0},0,"UACCT373C",{"$f":"ROUND(SUM(-H1780,J1780:N1780),0)","v":0},{"$f":"ROUND(J1780-Q1780-R1780,0)","v":0},{"$f":"ROUND(K1780-T1780-U1780,0)","v":0},{"$f":"ROUND(L1780-W1780-X1780-Y1780-Z1780-AA1780,0)","v":0}]
[1781,null,null,"   Public Authority",373,"S","ACCT373PA",{"$f":"'JAM Download'!E1853","v":0},"DPW",{"$f":"VLOOKUP($I1781,Func,2)*$H1781","v":0},{"$f":"VLOOKUP($I1781,Func,3)*$H1781","v":0},{"$f":"VLOOKUP($I1781,Func,5)*$H1781","v":0},{"$f":"VLOOKUP($I1781,Func,6)*$H1781","v":0},{"$f":"VLOOKUP($I1781,Func,7)*$H1781","v":0},null,null,null,null,null,null,null,"PC",{"$f":"+$L1781*VLOOKUP($V1781,DisFac,2)","v":0},{"$f":"+$L1781*VLOOKUP($V1781,DisFac,3)","v":0},{"$f":"+$L1781*VLOOKUP($V1781,DisFac,4)","v":0},{"$f":"+$L1781*VLOOKUP($V1781,DisFac,5)","v":0},{"$f":"+$L1781*VLOOKUP($V1781,DisFac,6)","v":0},0,"UACCT373PA",{"$f":"ROUND(SUM(-H1781,J1781:N1781),0)","v":0},{"$f":"ROUND(J1781-Q1781-R1781,0)","v":0},{"$f":"ROUND(K1781-T1781-U1781,0)","v":0},{"$f":"ROUND(L1781-W1781-X1781-Y1781-Z1781-AA1781,0)","v":0}]
[1782,null,null,null,null,null,"ACCT373",{"$f":"'JAM Download'!E1907","v":4036517},null,{"$f":"SUM(J1780:J1781)","v":0},{"$f":"SUM(K1780:K1781)","v":0},{"$f":"SUM(L1780:L1781)","v":4036517},{"$f":"SUM(M1780:M1781)","v":0},{"$f":"SUM(N1780:N1781)","v":0},null,null,{"$f":"SUM(Q1780:Q1781)","v":0},{"$f":"SUM(R1780:R1781)","v":0},null,{"$f":"SUM(T1780:T1781)","v":0},{"$f":"SUM(U1780:U1781)","v":0},null,{"$f":"SUM(W1780:W1781)","v":0},{"$f":"SUM(X1780:X1781)","v":4036517},{"$f":"SUM(Y1780:Y1781)","v":0},{"$f":"SUM(Z1780:Z1781)","v":0},{"$f":"SUM(AA1780:AA1781)","v":0},0,"UACCT373",{"$f":"ROUND(SUM(-H1782,J1782:N1782),0)","v":0},{"$f":"ROUND(J1782-Q1782-R1782,0)","v":0},{"$f":"ROUND(K1782-T1782-U1782,0)","v":0},{"$f":"ROUND(L1782-W1782-X1782-Y1782-Z1782-AA1782,0)","v":0}]
[1783]
[1784,"DP","Unclassified Dist Plant - Acct 300"]
[1785,null,null,"S",300,"S","ACCTD00S",{"$f":"'JAM Download'!E1910","v":882700.80000000005},"DPW",{"$f":"VLOOKUP($I1785,Func,2)*$H1785","v":0},{"$f":"VLOOKUP($I1785,Func,3)*$H1785","v":0},{"$f":"VLOOKUP($I1785,Func,5)*$H1785","v":882700.80000000005},{"$f":"VLOOKUP($I1785,Func,6)*$H1785","v":0},{"$f":"VLOOKUP($I1785,Func,7)*$H1785","v":0},null,null,null,null,null,null,null,"PLNT2",{"$f":"+$L1785*VLOOKUP($V1785,DisFac,2)","v":173197.08832850412},{"$f":"+$L1785*VLOOKUP($V1785,DisFac,3)","v":709503.71167149593},{"$f":"+$L1785*VLOOKUP($V1785,DisFac,4)","v":0},{"$f":"+$L1785*VLOOKUP($V1785,DisFac,5)","v":0},{"$f":"+$L1785*VLOOKUP($V1785,DisFac,6)","v":0},0,"UACCTD00S",{"$f":"ROUND(SUM(-H1785,J1785:N1785),0)","v":0},{"$f":"ROUND(J1785-Q1785-R1785,0)","v":0},{"$f":"ROUND(K1785-T1785-U1785,0)","v":0},{"$f":"ROUND(L1785-W1785-X1785-Y1785-Z1785-AA1785,0)","v":0}]
[1786,null,null,null,null,null,"ACCTD00",{"$f":"'JAM Download'!E1911","v":882700.80000000005},null,{"$f":"SUM(J1785:J1785)","v":0},{"$f":"SUM(K1785:K1785)","v":0},{"$f":"SUM(L1785:L1785)","v":882700.80000000005},{"$f":"SUM(M1785:M1785)","v":0},{"$f":"SUM(N1785:N1785)","v":0},null,null,{"$f":"SUM(Q1785:Q1785)","v":0},{"$f":"SUM(R1785:R1785)","v":0},null,{"$f":"SUM(T1785:T1785)","v":0},{"$f":"SUM(U1785:U1785)","v":0},null,{"$f":"SUM(W1785:W1785)","v":173197.08832850412},{"$f":"SUM(X1785:X1785)","v":709503.71167149593},{"$f":"SUM(Y1785:Y1785)","v":0},{"$f":"SUM(Z1785:Z1785)","v":0},{"$f":"SUM(AA1785:AA1785)","v":0},0,"UACCTD00",{"$f":"ROUND(SUM(-H1786,J1786:N1786),0)","v":0},{"$f":"ROUND(J1786-Q1786-R1786,0)","v":0},{"$f":"ROUND(K1786-T1786-U1786,0)","v":0},{"$f":"ROUND(L1786-W1786-X1786-Y1786-Z1786-AA1786,0)","v":0}]
[1787]
[1788,"DS0","Unclassified Dist Sub Plant - Acct 300"]
[{"$f":"A1788+1","v":1789},null,null,"S",300,"S","ACCTDS0S",{"$f":"'JAM Download'!E1914","v":0},"DPW",{"$f":"VLOOKUP($I1789,Func,2)*$H1789","v":0},{"$f":"VLOOKUP($I1789,Func,3)*$H1789","v":0},{"$f":"VLOOKUP($I1789,Func,5)*$H1789","v":0},{"$f":"VLOOKUP($I1789,Func,6)*$H1789","v":0},{"$f":"VLOOKUP($I1789,Func,7)*$H1789","v":0},null,null,null,null,null,null,null,"PLNT2",{"$f":"+$L1789*VLOOKUP($V1789,DisFac,2)","v":0},{"$f":"+$L1789*VLOOKUP($V1789,DisFac,3)","v":0},{"$f":"+$L1789*VLOOKUP($V1789,DisFac,4)","v":0},{"$f":"+$L1789*VLOOKUP($V1789,DisFac,5)","v":0},{"$f":"+$L1789*VLOOKUP($V1789,DisFac,6)","v":0},0,"UACCTDS0S",{"$f":"ROUND(SUM(-H1789,J1789:N1789),0)","v":0},{"$f":"ROUND(J1789-Q1789-R1789,0)","v":0},{"$f":"ROUND(K1789-T1789-U1789,0)","v":0},{"$f":"ROUND(L1789-W1789-X1789-Y1789-Z1789-AA1789,0)","v":0}]
[1790,null,null,null,null,null,"ACCTDS0",{"$f":"'JAM Download'!E1915","v":0},null,{"$f":"SUM(J1789:J1789)","v":0},{"$f":"SUM(K1789:K1789)","v":0},{"$f":"SUM(L1789:L1789)","v":0},{"$f":"SUM(M1789:M1789)","v":0},{"$f":"SUM(N1789:N1789)","v":0},null,null,{"$f":"SUM(Q1789:Q1789)","v":0},{"$f":"SUM(R1789:R1789)","v":0},null,{"$f":"SUM(T1789:T1789)","v":0},{"$f":"SUM(U1789:U1789)","v":0},null,{"$f":"SUM(W1789:W1789)","v":0},{"$f":"SUM(X1789:X1789)","v":0},{"$f":"SUM(Y1789:Y1789)","v":0},{"$f":"SUM(Z1789:Z1789)","v":0},{"$f":"SUM(AA1789:AA1789)","v":0},0,"UACCTDS0",{"$f":"ROUND(SUM(-H1790,J1790:N1790),0)","v":0},{"$f":"ROUND(J1790-Q1790-R1790,0)","v":0},{"$f":"ROUND(K1790-T1790-U1790,0)","v":0},{"$f":"ROUND(L1790-W1790-X1790-Y1790-Z1790-AA1790,0)","v":0}]
[1791]
[1792]
[1793,"TOTAL DISTRIBUTION PLANT",null,null,null,null,null,{"$f":"'JAM Download'!E1918","v":409946000.73000008},null,{"$f":"+J1782+J1776+J1769+J1762+J1751+J1744+J1738+J1731+J1724+J1717+J1710+J1704+J1698+J1790+J1786","v":0},{"$f":"+K1782+K1776+K1769+K1762+K1751+K1744+K1738+K1731+K1724+K1717+K1710+K1704+K1698+K1790+K1786","v":0},{"$f":"+L1782+L1776+L1769+L1762+L1751+L1744+L1738+L1731+L1724+L1717+L1710+L1704+L1698+L1790+L1786","v":409946000.73000008},{"$f":"+M1782+M1776+M1769+M1762+M1751+M1744+M1738+M1731+M1724+M1717+M1710+M1704+M1698+M1790+M1786","v":0},{"$f":"+N1782+N1776+N1769+N1762+N1751+N1744+N1738+N1731+N1724+N1717+N1710+N1704+N1698+N1790+N1786","v":0},null,null,{"$f":"+Q1782+Q1776+Q1769+Q1762+Q1751+Q1744+Q1738+Q1731+Q1724+Q1717+Q1710+Q1704+Q1698+Q1790+Q1786","v":0},{"$f":"+R1782+R1776+R1769+R1762+R1751+R1744+R1738+R1731+R1724+R1717+R1710+R1704+R1698+R1790+R1786","v":0},{"$f":"+S1782+S1776+S1769+S1762+S1751+S1744+S1738+S1731+S1724+S1717+S1710+S1704+S1698+S1790+S1786","v":0},{"$f":"+T1782+T1776+T1769+T1762+T1751+T1744+T1738+T1731+T1724+T1717+T1710+T1704+T1698+T1790+T1786","v":0},{"$f":"+U1782+U1776+U1769+U1762+U1751+U1744+U1738+U1731+U1724+U1717+U1710+U1704+U1698+U1790+U1786","v":0},null,{"$f":"+W1782+W1776+W1769+W1762+W1751+W1744+W1738+W1731+W1724+W1717+W1710+W1704+W1698+W1790+W1786","v":48540864.420961194},{"$f":"+X1782+X1776+X1769+X1762+X1751+X1744+X1738+X1731+X1724+X1717+X1710+X1704+X1698+X1790+X1786","v":198848166.59903881},{"$f":"+Y1782+Y1776+Y1769+Y1762+Y1751+Y1744+Y1738+Y1731+Y1724+Y1717+Y1710+Y1704+Y1698+Y1790+Y1786","v":98870912.760000005},{"$f":"+Z1782+Z1776+Z1769+Z1762+Z1751+Z1744+Z1738+Z1731+Z1724+Z1717+Z1710+Z1704+Z1698+Z1790+Z1786","v":11451993.6},{"$f":"+AA1782+AA1776+AA1769+AA1762+AA1751+AA1744+AA1738+AA1731+AA1724+AA1717+AA1710+AA1704+AA1698+AA1790+AA1786","v":52234063.350000001},11451993.6,null,{"$f":"ROUND(SUM(-H1793,J1793:N1793),0)","v":0},{"$f":"ROUND(J1793-Q1793-R1793,0)","v":0},{"$f":"ROUND(K1793-T1793-U1793,0)","v":0},{"$f":"ROUND(L1793-W1793-X1793-Y1793-Z1793-AA1793,0)","v":0}]
[1794]
[1795]
[1796,"FERC",null,"DESCRIPTION &","FERC",null,"RANGE",{"$f":"+$H$250","v":"Jurisdictional"},"FUNC","GEN","TRN","DIS","RETAIL","MISC",null,"D / E","GEN","GEN","D / E","TRN","TRN","DIS","DIS","DIS","DIS","DIS","DIS","DIS","Unbundled ACCT:","Function","Generation","Transmission","Distribution"]
[1797,"ACCT",null,"CONSENSUS FACTOR","ACCT","FACTOR","NAME","ADJ Total","FACTOR","TOTAL","TOTAL","TOTAL","TOTAL","TOTAL",null,"SPLIT","DEMAND","ENERGY","SPLIT","DEMAND","ENERGY","SPLIT","SUBS","P & C","XFMR","METER","SERVICE","METER","TOTAL","Check","Check","Check","Check"]
[1798,389,"Land and Land Rights"]
[1799,null,null,"S",389,"S","ACCT389S",{"$f":"'JAM Download'!E1925","v":1098826.3500000001},"G-SITUS",{"$f":"VLOOKUP($I1799,Func,2)*$H1799","v":0},{"$f":"VLOOKUP($I1799,Func,3)*$H1799","v":279115.39252732939},{"$f":"VLOOKUP($I1799,Func,5)*$H1799","v":819710.95747267071},{"$f":"VLOOKUP($I1799,Func,6)*$H1799","v":0},{"$f":"VLOOKUP($I1799,Func,7)*$H1799","v":0},null,{"$f":"Demand","v":0.38},{"$f":"+$J1799*$P1799","v":0},{"$f":"+$J1799*(1-$P1799)","v":0},{"$f":"Demand","v":0.38},{"$f":"+$K1799*$S1799","v":106063.84916038517},{"$f":"+$K1799*(1-$S1799)","v":173051.54336694421},"PLNT",{"$f":"+$L1799*VLOOKUP($V1799,DisFac,2)","v":96299.296888982819},{"$f":"+$L1799*VLOOKUP($V1799,DisFac,3)","v":394491.09239352052},{"$f":"+$L1799*VLOOKUP($V1799,DisFac,4)","v":200057.10527525353},{"$f":"+$L1799*VLOOKUP($V1799,DisFac,5)","v":23172.160803329974},{"$f":"+$L1799*VLOOKUP($V1799,DisFac,6)","v":105691.30211158386},23172.160803329974,"UACCT389S",{"$f":"ROUND(SUM(-H1799,J1799:N1799),0)","v":0},{"$f":"ROUND(J1799-Q1799-R1799,0)","v":0},{"$f":"ROUND(K1799-T1799-U1799,0)","v":0},{"$f":"ROUND(L1799-W1799-X1799-Y1799-Z1799-AA1799,0)","v":0}]
[1800,null,null,"CN",389,"CN","ACCT389CN",{"$f":"'JAM Download'!E1926","v":78206.616385561385},"CUST",{"$f":"VLOOKUP($I1800,Func,2)*$H1800","v":0},{"$f":"VLOOKUP($I1800,Func,3)*$H1800","v":0},{"$f":"VLOOKUP($I1800,Func,5)*$H1800","v":0},{"$f":"VLOOKUP($I1800,Func,6)*$H1800","v":78206.616385561385},{"$f":"VLOOKUP($I1800,Func,7)*$H1800","v":0},null,{"$f":"Demand","v":0.38},{"$f":"+$J1800*$P1800","v":0},{"$f":"+$J1800*(1-$P1800)","v":0},{"$f":"Demand","v":0.38},{"$f":"+$K1800*$S1800","v":0},{"$f":"+$K1800*(1-$S1800)","v":0},"CUST",{"$f":"+$L1800*VLOOKUP($V1800,DisFac,2)","v":0},{"$f":"+$L1800*VLOOKUP($V1800,DisFac,3)","v":0},{"$f":"+$L1800*VLOOKUP($V1800,DisFac,4)","v":0},{"$f":"+$L1800*VLOOKUP($V1800,DisFac,5)","v":0},{"$f":"+$L1800*VLOOKUP($V1800,DisFac,6)","v":0},0,"UACCT389CN",0,0,0,0]
[1801,null,null,"DGU",389,"DGU","ACCT389SGU",{"$f":"'JAM Download'!E1927","v":0},"G-DGU",{"$f":"VLOOKUP($I1801,Func,2)*$H1801","v":0},{"$f":"VLOOKUP($I1801,Func,3)*$H1801","v":0},{"$f":"VLOOKUP($I1801,Func,5)*$H1801","v":0},{"$f":"VLOOKUP($I1801,Func,6)*$H1801","v":0},{"$f":"VLOOKUP($I1801,Func,7)*$H1801","v":0},null,{"$f":"Demand","v":0.38},{"$f":"+$J1801*$P1801","v":0},{"$f":"+$J1801*(1-$P1801)","v":0},{"$f":"Demand","v":0.38},{"$f":"+$K1801*$S1801","v":0},{"$f":"+$K1801*(1-$S1801)","v":0},"PLNT",{"$f":"+$L1801*VLOOKUP($V1801,DisFac,2)","v":0},{"$f":"+$L1801*VLOOKUP($V1801,DisFac,3)","v":0},{"$f":"+$L1801*VLOOKUP($V1801,DisFac,4)","v":0},{"$f":"+$L1801*VLOOKUP($V1801,DisFac,5)","v":0},{"$f":"+$L1801*VLOOKUP($V1801,DisFac,6)","v":0},0,"UACCT389SGU",0,0,0,0]
[1802,null,null,"SG/CAGE/CAGW",389,"SG","ACCT389SG",{"$f":"'JAM Download'!E1928+'JAM Download'!E1929+'JAM Download'!E1930","v":0},"G-SG",{"$f":"VLOOKUP($I1802,Func,2)*$H1802","v":0},{"$f":"VLOOKUP($I1802,Func,3)*$H1802","v":0},{"$f":"VLOOKUP($I1802,Func,5)*$H1802","v":0},{"$f":"VLOOKUP($I1802,Func,6)*$H1802","v":0},{"$f":"VLOOKUP($I1802,Func,7)*$H1802","v":0},null,{"$f":"Demand","v":0.38},{"$f":"+$J1802*$P1802","v":0},{"$f":"+$J1802*(1-$P1802)","v":0},{"$f":"Demand","v":0.38},{"$f":"+$K1802*$S1802","v":0},{"$f":"+$K1802*(1-$S1802)","v":0},"PLNT",{"$f":"+$L1802*VLOOKUP($V1802,DisFac,2)","v":0},{"$f":"+$L1802*VLOOKUP($V1802,DisFac,3)","v":0},{"$f":"+$L1802*VLOOKUP($V1802,DisFac,4)","v":0},{"$f":"+$L1802*VLOOKUP($V1802,DisFac,5)","v":0},{"$f":"+$L1802*VLOOKUP($V1802,DisFac,6)","v":0},0,"UACCT389SG",0,0,0,0]
[1803,null,null,"SO",389,"SO","ACCT389SO",{"$f":"'JAM Download'!E1931","v":383425.89821968507},"PTD",{"$f":"VLOOKUP($I1803,Func,2)*$H1803","v":195132.06621903169},{"$f":"VLOOKUP($I1803,Func,3)*$H1803","v":75515.08924458253},{"$f":"VLOOKUP($I1803,Func,5)*$H1803","v":112778.74275607083},{"$f":"VLOOKUP($I1803,Func,6)*$H1803","v":0},{"$f":"VLOOKUP($I1803,Func,7)*$H1803","v":0},null,{"$f":"Demand","v":0.38},{"$f":"+$J1803*$P1803","v":74150.185163232047},{"$f":"+$J1803*(1-$P1803)","v":120981.88105579965},{"$f":"Demand","v":0.38},{"$f":"+$K1803*$S1803","v":28695.733912941363},{"$f":"+$K1803*(1-$S1803)","v":46819.355331641171},"PLNT",{"$f":"+$L1803*VLOOKUP($V1803,DisFac,2)","v":13249.199040742575},{"$f":"+$L1803*VLOOKUP($V1803,DisFac,3)","v":54275.484575419418},{"$f":"+$L1803*VLOOKUP($V1803,DisFac,4)","v":27524.566564201657},{"$f":"+$L1803*VLOOKUP($V1803,DisFac,5)","v":3188.108123378584},{"$f":"+$L1803*VLOOKUP($V1803,DisFac,6)","v":14541.384452328599},3188.108123378584,"UACCT389SO",0,0,0,0]
[1804,null,null,null,null,null,"ACCT389",{"$f":"'JAM Download'!E1932","v":1560458.8646052466},null,{"$f":"SUM(J1799:J1803)","v":195132.06621903169},{"$f":"SUM(K1799:K1803)","v":354630.4817719119},{"$f":"SUM(L1799:L1803)","v":932489.70022874151},{"$f":"SUM(M1799:M1803)","v":78206.616385561385},{"$f":"SUM(N1799:N1803)","v":0},null,null,{"$f":"SUM(Q1799:Q1803)","v":74150.185163232047},{"$f":"SUM(R1799:R1803)","v":120981.88105579965},null,{"$f":"SUM(T1799:T1803)","v":134759.58307332653},{"$f":"SUM(U1799:U1803)","v":219870.8986985854},null,{"$f":"SUM(W1799:W1803)","v":109548.4959297254},{"$f":"SUM(X1799:X1803)","v":448766.57696893992},{"$f":"SUM(Y1799:Y1803)","v":227581.6718394552},{"$f":"SUM(Z1799:Z1803)","v":26360.268926708559},{"$f":"SUM(AA1799:AA1803)","v":120232.68656391246},26360.268926708559,"UACCT389",0,0,0,0]
[1805]
[1806,390,"Structures and Improvements"]
[1807,null,null,"S",390,"S","ACCT390S",{"$f":"'JAM Download'!E1935","v":13912659.390000001},"G-SITUS",{"$f":"VLOOKUP($I1807,Func,2)*$H1807","v":0},{"$f":"VLOOKUP($I1807,Func,3)*$H1807","v":3533986.4089889047},{"$f":"VLOOKUP($I1807,Func,5)*$H1807","v":10378672.981011096},{"$f":"VLOOKUP($I1807,Func,6)*$H1807","v":0},{"$f":"VLOOKUP($I1807,Func,7)*$H1807","v":0},null,{"$f":"Demand","v":0.38},{"$f":"+$J1807*$P1807","v":0},{"$f":"+$J1807*(1-$P1807)","v":0},{"$f":"Demand","v":0.38},{"$f":"+$K1807*$S1807","v":1342914.8354157838},{"$f":"+$K1807*(1-$S1807)","v":2191071.5735731209},"PLNT",{"$f":"+$L1807*VLOOKUP($V1807,DisFac,2)","v":1219282.1159711948},{"$f":"+$L1807*VLOOKUP($V1807,DisFac,3)","v":4994802.1367162066},{"$f":"+$L1807*VLOOKUP($V1807,DisFac,4)","v":2532999.2898732126},{"$f":"+$L1807*VLOOKUP($V1807,DisFac,5)","v":293391.56326842605},{"$f":"+$L1807*VLOOKUP($V1807,DisFac,6)","v":1338197.8751820559},293391.56326842605,"UACCT390S",{"$f":"ROUND(SUM(-H1807,J1807:N1807),0)","v":0},{"$f":"ROUND(J1807-Q1807-R1807,0)","v":0},{"$f":"ROUND(K1807-T1807-U1807,0)","v":0},{"$f":"ROUND(L1807-W1807-X1807-Y1807-Z1807-AA1807,0)","v":0}]
[1808,null,null,"DGP",390,"DGP","ACCT390DGP",{"$f":"'JAM Download'!E1936","v":0},"G-DGP",0,0,0,0,0,null,0.38,0,0,0.38,0,0,"PLNT",0,0,0,0,0,0,"UACCT390SGP",{"$f":"ROUND(SUM(-H1808,J1808:N1808),0)","v":0},{"$f":"ROUND(J1808-Q1808-R1808,0)","v":0},{"$f":"ROUND(K1808-T1808-U1808,0)","v":0},{"$f":"ROUND(L1808-W1808-X1808-Y1808-Z1808-AA1808,0)","v":0}]
[1809,null,null,"DGU",390,"DGU","ACCT390DGU",{"$f":"'JAM Download'!E1937","v":0},"G-DGU",0,0,0,0,0,null,0.38,0,0,0.38,0,0,"PLNT",0,0,0,0,0,0,"UACCT390DGU",{"$f":"ROUND(SUM(-H1809,J1809:N1809),0)","v":0},{"$f":"ROUND(J1809-Q1809-R1809,0)","v":0},{"$f":"ROUND(K1809-T1809-U1809,0)","v":0},{"$f":"ROUND(L1809-W1809-X1809-Y1809-Z1809-AA1809,0)","v":0}]
[1810,null,null,"CN",390,"CN","ACCT390CN",{"$f":"'JAM Download'!E1938","v":853641.7740140548},"CUST",0,0,0,853641.7740140548,0,null,0.38,0,0,0.38,0,0,"CUST",0,0,0,0,0,0,"UACCT390CN",{"$f":"ROUND(SUM(-H1810,J1810:N1810),0)","v":0},{"$f":"ROUND(J1810-Q1810-R1810,0)","v":0},{"$f":"ROUND(K1810-T1810-U1810,0)","v":0},{"$f":"ROUND(L1810-W1810-X1810-Y1810-Z1810-AA1810,0)","v":0}]
[1811,null,null,"SG/CAGE/CAGW",390,"CAGW","ACCT390CAGW",{"$f":"'JAM Download'!E1939+'JAM Download'!E1940+'JAM Download'!E1941","v":746073.38629510475},"G-SG",745314.00260015659,759.38369494822507,0,0,0,null,0.38,283219.32098805951,462094.68161209708,0.38,288.56580408032551,470.81789086789956,"PLNT",0,0,0,0,0,0,"UACCT390DGU"]
[1812,null,null,"JBG",390,"JBG","ACCT390JBG",{"$f":"'JAM Download'!E1942","v":4317.5730760483129},"G-SG",4313.1784753884767,4.3946006598359935,0,0,0,null,0.38,1639.0078206476212,2674.1706547408558,0.38,1.6699482507376775,2.724652409098316,"PLNT",0,0,0,0,0,0,"UACCT390JBG"]
[1813,null,null,"SO",390,"SO","ACCT390SO",{"$f":"'JAM Download'!E1943","v":7063921.0498090349},"PTD",3594951.5055125235,1391227.4339574801,2077742.1103390311,0,0,null,0.38,1366081.572094759,2228869.9334177645,0.38,528666.4249038425,862561.00905363762,"PLNT",244092.26510669274,999926.55624222313,507089.80807638081,58735.062462833288,267898.41845090111,58735.062462833288,"UACCT390SOU",{"$f":"ROUND(SUM(-H1813,J1813:N1813),0)","v":0},{"$f":"ROUND(J1813-Q1813-R1813,0)","v":0},{"$f":"ROUND(K1813-T1813-U1813,0)","v":0},{"$f":"ROUND(L1813-W1813-X1813-Y1813-Z1813-AA1813,0)","v":0}]
[1814,null,null,null,null,null,"ACCT390",{"$f":"'JAM Download'!E1944","v":22580613.173194245},null,{"$f":"SUM(J1807:J1813)","v":4344578.6865880685},{"$f":"SUM(K1807:K1813)","v":4925977.6212419923},{"$f":"SUM(L1807:L1813)","v":12456415.091350127},{"$f":"SUM(M1807:M1813)","v":853641.7740140548},{"$f":"SUM(N1807:N1813)","v":0},null,null,{"$f":"SUM(Q1807:Q1813)","v":1650939.9009034662},{"$f":"SUM(R1807:R1813)","v":2693638.7856846023},null,{"$f":"SUM(T1807:T1813)","v":1871871.4960719575},{"$f":"SUM(U1807:U1813)","v":3054106.1251700358},null,{"$f":"SUM(W1807:W1813)","v":1463374.3810778875},{"$f":"SUM(X1807:X1813)","v":5994728.6929584295},{"$f":"SUM(Y1807:Y1813)","v":3040089.0979495933},{"$f":"SUM(Z1807:Z1813)","v":352126.62573125935},{"$f":"SUM(AA1807:AA1813)","v":1606096.2936329569},352126.62573125935,"UACCT390",{"$f":"ROUND(SUM(-H1814,J1814:N1814),0)","v":0},{"$f":"ROUND(J1814-Q1814-R1814,0)","v":0},{"$f":"ROUND(K1814-T1814-U1814,0)","v":0},{"$f":"ROUND(L1814-W1814-X1814-Y1814-Z1814-AA1814,0)","v":0}]
[1815]
[1816,391,"Office Furniture & Equipment"]
[1817,null,null,"S",391,"S","ACCT391S",{"$f":"'JAM Download'!E1947","v":1361940.78},"G-SITUS",{"$f":"VLOOKUP($I1817,Func,2)*$H1817","v":0},{"$f":"VLOOKUP($I1817,Func,3)*$H1817","v":345949.69023875077},{"$f":"VLOOKUP($I1817,Func,5)*$H1817","v":1015991.0897612493},{"$f":"VLOOKUP($I1817,Func,6)*$H1817","v":0},{"$f":"VLOOKUP($I1817,Func,7)*$H1817","v":0},null,{"$f":"Demand","v":0.38},{"$f":"+$J1817*$P1817","v":0},{"$f":"+$J1817*(1-$P1817)","v":0},{"$f":"Demand","v":0.38},{"$f":"+$K1817*$S1817","v":131460.88229072531},{"$f":"+$K1817*(1-$S1817)","v":214488.80794802547},"PLNT",{"$f":"+$L1817*VLOOKUP($V1817,DisFac,2)","v":119358.2038858395},{"$f":"+$L1817*VLOOKUP($V1817,DisFac,3)","v":488952.14978916675},{"$f":"+$L1817*VLOOKUP($V1817,DisFac,4)","v":247960.86297268068},{"$f":"+$L1817*VLOOKUP($V1817,DisFac,5)","v":28720.744418599577},{"$f":"+$L1817*VLOOKUP($V1817,DisFac,6)","v":130999.12869496274},28720.744418599577,"UACCT391S",{"$f":"ROUND(SUM(-H1817,J1817:N1817),0)","v":0},{"$f":"ROUND(J1817-Q1817-R1817,0)","v":0},{"$f":"ROUND(K1817-T1817-U1817,0)","v":0},{"$f":"ROUND(L1817-W1817-X1817-Y1817-Z1817-AA1817,0)","v":0}]
[1818,null,null,"SGP",391,"DGP","ACCT391DGP",{"$f":"'JAM Download'!E1948","v":0},"G-DGP",0,0,0,0,0,null,0.38,0,0,0.38,0,0,"PLNT",0,0,0,0,0,0,"UACCT391SGP",0,0,0,0]
[1819,null,null,"SGU",391,"DGU","ACCT391DSGU",{"$f":"'JAM Download'!E1949","v":0},"G-DGU",0,0,0,0,0,null,0.38,0,0,0.38,0,0,"PLNT",0,0,0,0,0,0,"UACCT391SGU",0,0,0,0]
[1820,null,null,"CN",391,"CN","ACCT391CN",{"$f":"'JAM Download'!E1950","v":598562.21153627359},"CUST",0,0,0,598562.21153627359,0,null,0.38,0,0,0.38,0,0,"CUST",0,0,0,0,0,0,"UACCT391CN",0,0,0,0]
[1821,null,null,"SG/CAGE/CAGW",391,"CAGW","ACCT391CAGW",{"$f":"'JAM Download'!E1951+'JAM Download'!E1954+'JAM Download'!E1955","v":143400.74123293738},"G-SG",143254.78215339355,145.95907954383063,0,0,0,null,0.38,54436.817218289551,88817.964935103999,0.38,55.464450226655636,90.494629317174983,"PLNT",0,0,0,0,0,0,"UACCT391SG",0,0,0,0]
[1822,null,null,"SE",391,"SE","ACCT391SE",{"$f":"'JAM Download'!E1952","v":0},"P",0,0,0,0,0,null,0.38,0,0,0.38,0,0,"PLNT",0,0,0,0,0,0,"UACCT391SE",0,0,0,0]
[1823,null,null,"SO",391,"SO","ACCT391SO",{"$f":"'JAM Download'!E1953","v":3788468.7021789225},"PTD",1928017.197311878,746132.5733960591,1114318.9314709853,0,0,null,0.38,732646.53497851361,1195370.6623333644,0.38,283530.37789050245,462602.19550555665,"PLNT",130909.71717834599,536273.04666770354,271958.56997060007,31500.34439682525,143677.25325751037,31500.34439682525,"UACCT391SO",0,0,0,0]
[1824,null,null,"JBG",391,"JBG","ACCT391JBG",{"$f":"'JAM Download'!E1956","v":117251.94238626688},"G-SG",117132.59861273906,119.34377352782401,0,0,0,null,0.38,44510.387472840848,72622.211139898223,0.38,45.350633940573125,73.993139587250894,"PLNT",0,0,0,0,0,0,"UACCT391SSGCH",0,0,0,0]
[1825,null,null,"JBE",391,"JBE","ACCT391JBE",{"$f":"'JAM Download'!E1957","v":1363.1532752806384},"P",1363.1532752806384,0,0,0,0,null,0.38,517.99824460664263,845.15503067399573,0.38,0,0,"PLNT",0,0,0,0,0,0,"UACCT391JBE",0,0,0,0]
[1826,null,null,null,null,null,"ACCT391",{"$f":"'JAM Download'!E1961","v":6010987.5306096803},null,{"$f":"SUM(J1817:J1825)","v":2189767.7313532913},{"$f":"SUM(K1817:K1825)","v":1092347.5664878816},{"$f":"SUM(L1817:L1825)","v":2130310.0212322343},{"$f":"SUM(M1817:M1825)","v":598562.21153627359},{"$f":"SUM(N1817:N1825)","v":0},null,null,{"$f":"SUM(Q1817:Q1825)","v":832111.7379142507},{"$f":"SUM(R1817:R1825)","v":1357655.9934390406},null,{"$f":"SUM(T1817:T1825)","v":415092.07526539505},{"$f":"SUM(U1817:U1825)","v":677255.49122248648},null,{"$f":"SUM(W1817:W1825)","v":250267.9210641855},{"$f":"SUM(X1817:X1825)","v":1025225.1964568703},{"$f":"SUM(Y1817:Y1825)","v":519919.43294328079},{"$f":"SUM(Z1817:Z1825)","v":60221.088815424824},{"$f":"SUM(AA1817:AA1825)","v":274676.38195247308},60221.088815424824,"UACCT391",0,0,0,0]
[1827]
[1828,392,"Transportation Equipment"]
[1829,null,null,"S",392,"S","ACCT392S",{"$f":"'JAM Download'!E1964","v":5157969.76},"G-SITUS",{"$f":"VLOOKUP($I1829,Func,2)*$H1829","v":0},{"$f":"VLOOKUP($I1829,Func,3)*$H1829","v":1310187.6872596792},{"$f":"VLOOKUP($I1829,Func,5)*$H1829","v":3847782.0727403206},{"$f":"VLOOKUP($I1829,Func,6)*$H1829","v":0},{"$f":"VLOOKUP($I1829,Func,7)*$H1829","v":0},null,{"$f":"Demand","v":0.38},{"$f":"+$J1829*$P1829","v":0},{"$f":"+$J1829*(1-$P1829)","v":0},{"$f":"Demand","v":0.38},{"$f":"+$K1829*$S1829","v":497871.3211586781},{"$f":"+$K1829*(1-$S1829)","v":812316.36610100104},"PLNT",{"$f":"+$L1829*VLOOKUP($V1829,DisFac,2)","v":452035.81190297758},{"$f":"+$L1829*VLOOKUP($V1829,DisFac,3)","v":1851769.5040304998},{"$f":"+$L1829*VLOOKUP($V1829,DisFac,4)","v":939082.41214173101},{"$f":"+$L1829*VLOOKUP($V1829,DisFac,5)","v":108771.78609471214},{"$f":"+$L1829*VLOOKUP($V1829,DisFac,6)","v":496122.55857039982},108771.78609471214,"UACCT392S",{"$f":"ROUND(SUM(-H1829,J1829:N1829),0)","v":0},{"$f":"ROUND(J1829-Q1829-R1829,0)","v":0},{"$f":"ROUND(K1829-T1829-U1829,0)","v":0},{"$f":"ROUND(L1829-W1829-X1829-Y1829-Z1829-AA1829,0)","v":0}]
[1830,null,null,"SO",392,"SO","ACCT392SO",{"$f":"'JAM Download'!E1965","v":505567.10562972917},"PTD",257291.83759356113,99570.595721419173,148704.67231474887,0,0,null,0.38,97770.898285553223,159520.93930800789,0.38,37836.826374139288,61733.769347279886,"PLNT",17469.762063653201,71565.065820681804,36292.580955507896,4203.6873457297115,19173.576129176246,4203.6873457297115,"UACCT392SO",0,0,0,0]
[1831,null,null,"SG/CAGE/CAGW",392,"CAGW","ACCT392CAGW",{"$f":"'JAM Download'!E1966+'JAM Download'!E1971+'JAM Download'!E1972","v":1030867.3351237222},"G-SG",1029818.0766186909,1049.2585050313551,0,0,0,null,0.38,391330.86911510251,638487.20750358829,0.38,398.71823191191493,650.54027311944014,"PLNT",0,0,0,0,0,0,"UACCT392SG",0,0,0,0]
[1832,null,null,"CN",392,"CN","ACCT392CN",{"$f":"'JAM Download'!E1967","v":0},"CUST",0,0,0,0,0,null,0.38,0,0,0.38,0,0,"CUST",0,0,0,0,0,0,"UACCT392CN",0,0,0,0]
[1833,null,null,"SG-U",392,"DGU","ACCT392DGU",{"$f":"'JAM Download'!E1968","v":0},"G-DGU",0,0,0,0,0,null,0.38,0,0,0.38,0,0,"PLNT",0,0,0,0,0,0,"UACCT392SGU",0,0,0,0]
[1834,null,null,"SE",392,"SE","ACCT392SE",{"$f":"'JAM Download'!E1969","v":0},"P",0,0,0,0,0,null,0.38,0,0,0.38,0,0,"PLNT",0,0,0,0,0,0,"UACCT392SEU",0,0,0,0]
[1835,null,null,"SGP",392,"DGP","ACCT392DGP",{"$f":"'JAM Download'!E1970","v":0},"G-DGP",0,0,0,0,0,null,0.38,0,0,0.38,0,0,"PLNT",0,0,0,0,0,0,"UACCT392SGP",0,0,0,0]
[1836,null,null,"JBG",392,"JBG","ACCT392JBG",{"$f":"'JAM Download'!E1973","v":334103.10326653777},"G-SG",333763.0396029455,340.06366359228025,0,0,0,null,0.38,126829.95504911929,206933.08455382622,0.38,129.22419216506648,210.83947142721377,"PLNT",0,0,0,0,0,0,"UACCT392SSGCH",0,0,0,0]
[1837,null,null,"CAGE",392,"CAGE","ACCT392CAGE",0,"P",0,0,0,0,0,null,0.38,0,0,0.38,0,0,"PLNT",0,0,0,0,0,0,"UACCT392SSGCT",0,0,0,0]
[1838,null,null,null,null,null,"ACCT392",{"$f":"'JAM Download'!E1978","v":7028507.3040199894},null,{"$f":"SUM(J1829:J1837)","v":1620872.9538151976},{"$f":"SUM(K1829:K1837)","v":1411147.6051497222},{"$f":"SUM(L1829:L1837)","v":3996486.7450550692},{"$f":"SUM(M1829:M1837)","v":0},{"$f":"SUM(N1829:N1837)","v":0},null,null,{"$f":"SUM(Q1829:Q1837)","v":615931.72244977497},{"$f":"SUM(R1829:R1837)","v":1004941.2313654224},null,{"$f":"SUM(T1829:T1837)","v":536236.0899568944},{"$f":"SUM(U1829:U1837)","v":874911.51519282768},null,{"$f":"SUM(W1829:W1837)","v":469505.57396663079},{"$f":"SUM(X1829:X1837)","v":1923334.5698511817},{"$f":"SUM(Y1829:Y1837)","v":975374.99309723894},{"$f":"SUM(Z1829:Z1837)","v":112975.47344044186},{"$f":"SUM(AA1829:AA1837)","v":515296.13469957607},112975.47344044186,"UACCT392",0,0,0,0]
[1839]
[1840,393,"Stores Equipment"]
[1841,null,null,"S",393,"S","ACCT393S",{"$f":"'JAM Download'!E1981","v":597931.29},"G-SITUS",{"$f":"VLOOKUP($I1841,Func,2)*$H1841","v":0},{"$f":"VLOOKUP($I1841,Func,3)*$H1841","v":151881.89354279902},{"$f":"VLOOKUP($I1841,Func,5)*$H1841","v":446049.39645720099},{"$f":"VLOOKUP($I1841,Func,6)*$H1841","v":0},{"$f":"VLOOKUP($I1841,Func,7)*$H1841","v":0},null,{"$f":"Demand","v":0.38},{"$f":"+$J1841*$P1841","v":0},{"$f":"+$J1841*(1-$P1841)","v":0},{"$f":"Demand","v":0.38},{"$f":"+$K1841*$S1841","v":57715.119546263631},{"$f":"+$K1841*(1-$S1841)","v":94166.773996535398},"PLNT",{"$f":"+$L1841*VLOOKUP($V1841,DisFac,2)","v":52401.69460344893},{"$f":"+$L1841*VLOOKUP($V1841,DisFac,3)","v":214664.09844318611},{"$f":"+$L1841*VLOOKUP($V1841,DisFac,4)","v":108861.97171272615},{"$f":"+$L1841*VLOOKUP($V1841,DisFac,5)","v":12609.235300211472},{"$f":"+$L1841*VLOOKUP($V1841,DisFac,6)","v":57512.396397628305},12609.235300211472,"UACCT393S",{"$f":"ROUND(SUM(-H1841,J1841:N1841),0)","v":0},{"$f":"ROUND(J1841-Q1841-R1841,0)","v":0},{"$f":"ROUND(K1841-T1841-U1841,0)","v":0},{"$f":"ROUND(L1841-W1841-X1841-Y1841-Z1841-AA1841,0)","v":0}]
[1842,null,null,"SG-P",393,"DGP","ACCT393DGP",{"$f":"'JAM Download'!E1982","v":0},"G-DGP",0,0,0,0,0,null,0.38,0,0,0.38,0,0,"PLNT",0,0,0,0,0,0,"UACCT393SGP",0,0,0,0]
[1843,null,null,"SG-U",393,"DGU","ACCT393DGU",{"$f":"'JAM Download'!E1983","v":0},"G-DGU",0,0,0,0,0,null,0.38,0,0,0.38,0,0,"PLNT",0,0,0,0,0,0,"UACCT393SGU",0,0,0,0]
[1844,null,null,"SO",393,"SO","ACCT393SO",{"$f":"'JAM Download'!E1984","v":21834.236139759705},"PTD",11111.82012495271,4300.216282564591,6422.199732242404,0,0,null,0.38,4222.4916474820302,6889.3284774706799,0.38,1634.0821873745447,2666.1340951900465,"PLNT",754.47731063931349,3090.7243154989155,1567.3899149686056,181.54721923622114,828.06097189934815,181.54721923622114,"UACCT393SO",0,0,0,0]
[1845,null,null,"SG/CAGE/CAGW",393,"CAGW","ACCT393CAGW",{"$f":"'JAM Download'!E1985+'JAM Download'!E1986+'JAM Download'!E1987","v":113436.69760599808},"G-SG",113321.23714305551,115.46046294257488,0,0,0,null,0.38,43062.070114361093,70259.167028694414,0.38,43.874975918178457,71.585487024396429,"PLNT",0,0,0,0,0,0,"UACCT393SG",0,0,0,0]
[1846,null,null,"JBG",393,"JBG","ACCT393JBG",{"$f":"'JAM Download'!E1988","v":158159.07791525766},"G-SG",157998.09720319486,160.98071206280289,0,0,0,null,0.38,60039.276937214046,97958.820265980816,0.38,61.172670583865099,99.808041478937795,"PLNT",0,0,0,0,0,0,"UACCT393SSGCT",0,0,0,0]
[1847,null,null,null,null,null,"ACCT393",{"$f":"'JAM Download'!E1990","v":891361.30166101537},null,{"$f":"SUM(J1841:J1846)","v":282431.1544712031},{"$f":"SUM(K1841:K1846)","v":156458.55100036899},{"$f":"SUM(L1841:L1846)","v":452471.59618944337},{"$f":"SUM(M1841:M1846)","v":0},{"$f":"SUM(N1841:N1846)","v":0},null,null,{"$f":"SUM(Q1841:Q1846)","v":107323.83869905717},{"$f":"SUM(R1841:R1846)","v":175107.31577214593},null,{"$f":"SUM(T1841:T1846)","v":59454.249380140223},{"$f":"SUM(U1841:U1846)","v":97004.301620228784},null,{"$f":"SUM(W1841:W1846)","v":53156.171914088241},{"$f":"SUM(X1841:X1846)","v":217754.82275868504},{"$f":"SUM(Y1841:Y1846)","v":110429.36162769476},{"$f":"SUM(Z1841:Z1846)","v":12790.782519447694},{"$f":"SUM(AA1841:AA1846)","v":58340.457369527656},12790.782519447694,"UACCT393",0,0,0,0]
[1848]
[1849,394,"Tools, Shop & Garage Equipment"]
[1850,null,null,"S",394,"S","ACCT394S",{"$f":"'JAM Download'!E1993","v":2904081.83},"G-SITUS",{"$f":"VLOOKUP($I1850,Func,2)*$H1850","v":0},{"$f":"VLOOKUP($I1850,Func,3)*$H1850","v":737672.46290729661},{"$f":"VLOOKUP($I1850,Func,5)*$H1850","v":2166409.3670927035},{"$f":"VLOOKUP($I1850,Func,6)*$H1850","v":0},{"$f":"VLOOKUP($I1850,Func,7)*$H1850","v":0},null,{"$f":"Demand","v":0.38},{"$f":"+$J1850*$P1850","v":0},{"$f":"+$J1850*(1-$P1850)","v":0},{"$f":"Demand","v":0.38},{"$f":"+$K1850*$S1850","v":280315.5359047727},{"$f":"+$K1850*(1-$S1850)","v":457356.92700252391},"PLNT",{"$f":"+$L1850*VLOOKUP($V1850,DisFac,2)","v":254508.85696094795},{"$f":"+$L1850*VLOOKUP($V1850,DisFac,3)","v":1042598.2353962243},{"$f":"+$L1850*VLOOKUP($V1850,DisFac,4)","v":528729.77098907472},{"$f":"+$L1850*VLOOKUP($V1850,DisFac,5)","v":61241.570290691307},{"$f":"+$L1850*VLOOKUP($V1850,DisFac,6)","v":279330.93345576513},61241.570290691307,"UACCT394S",{"$f":"ROUND(SUM(-H1850,J1850:N1850),0)","v":0},{"$f":"ROUND(J1850-Q1850-R1850,0)","v":0},{"$f":"ROUND(K1850-T1850-U1850,0)","v":0},{"$f":"ROUND(L1850-W1850-X1850-Y1850-Z1850-AA1850,0)","v":0}]
[1851,null,null,"SG-P",394,"DGP","ACCT394DGP",{"$f":"'JAM Download'!E1994","v":0},"G-DGP",0,0,0,0,0,null,0.38,0,0,0.38,0,0,"PLNT",0,0,0,0,0,0,"UACCT394SGP",0,0,0,0]
[1852,null,null,"SG/CAGE/CAGW",394,"CAGW","ACCT394CAGW",{"$f":"'JAM Download'!E1995+'JAM Download'!E1999+'JAM Download'!E2000","v":527191.94286442944},"G-SG",526655.34556331497,536.59730111452006,0,0,0,null,0.38,200129.03131405968,326526.31424925529,0.38,203.90697442351762,332.69032669100244,"PLNT",0,0,0,0,0,0,"UACCT394SGU",0,0,0,0]
[{"$f":"A1852+1","v":1853},null,null,"SO",394,"SO","ACCT394SO",{"$f":"'JAM Download'!E1996","v":258603.51782296377},"PTD",131607.79957381188,50931.53023319046,76064.188015961408,0,0,null,0.38,50010.963838048512,81596.835735763365,0.38,19353.981488612375,31577.548744578085,"PLNT",8935.9886647760122,36606.372464458822,18564.081803302248,2150.2354946125588,9807.5095888117685,2150.2354946125588,"UACCT394SO",0,0,0,0]
[1854,null,null,"SE",392,"SE","ACCT392SE",{"$f":"'JAM Download'!E1997","v":0},"P",0,0,0,0,0,null,0.38,0,0,0.38,0,0,"PLNT",0,0,0,0,0,0,"UACCT392SE",0,0,0,0]
[1855,null,null,"SG-U",394,"DGU","ACCT394DGU",{"$f":"'JAM Download'!E1998","v":0},"G-DGU",0,0,0,0,0,null,0.38,0,0,0.38,0,0,"PLNT",0,0,0,0,0,0,"UACCT394SG",0,0,0,0]
[1856,null,null,"JBG",394,"JBG","ACCT394JBG",{"$f":"'JAM Download'!E2001","v":728928.05622083019},"G-SG",728186.12373690505,741.93248392518547,0,0,0,null,0.38,276710.72702002391,451475.39671688114,0.38,281.93434389157051,459.99814003361496,"PLNT",0,0,0,0,0,0,"UACCT394SSGCH",0,0,0,0]
[1857,null,null,"CAGE",394,"CAGE","ACCT394CAGW",0,"P",0,0,0,0,0,null,0.38,0,0,0.38,0,0,"PLNT",0,0,0,0,0,0,"UACCT394SSGCT",0,0,0,0]
[1858,null,null,null,null,null,"ACCT394",{"$f":"'JAM Download'!E2006","v":4418805.3469082238},null,{"$f":"SUM(J1850:J1857)","v":1386449.268874032},{"$f":"SUM(K1850:K1857)","v":789882.52292552672},{"$f":"SUM(L1850:L1857)","v":2242473.555108665},{"$f":"SUM(M1850:M1857)","v":0},{"$f":"SUM(N1850:N1857)","v":0},null,null,{"$f":"SUM(Q1850:Q1857)","v":526850.72217213211},{"$f":"SUM(R1850:R1857)","v":859598.54670189973},null,{"$f":"SUM(T1850:T1857)","v":300155.35871170013},{"$f":"SUM(U1850:U1857)","v":489727.16421382665},null,{"$f":"SUM(W1850:W1857)","v":263444.84562572394},{"$f":"SUM(X1850:X1857)","v":1079204.6078606832},{"$f":"SUM(Y1850:Y1857)","v":547293.852792377},{"$f":"SUM(Z1850:Z1857)","v":63391.805785303863},{"$f":"SUM(AA1850:AA1857)","v":289138.44304457691},63391.805785303863,"UACCT394",0,0,0,0]
[1859]
[1860,395,"Laboratory Equipment"]
[1861,null,null,"S",395,"S","ACCT395S",{"$f":"'JAM Download'!E2009","v":1918525.8},"G-SITUS",{"$f":"VLOOKUP($I1861,Func,2)*$H1861","v":0},{"$f":"VLOOKUP($I1861,Func,3)*$H1861","v":487329.12324209249},{"$f":"VLOOKUP($I1861,Func,5)*$H1861","v":1431196.6767579075},{"$f":"VLOOKUP($I1861,Func,6)*$H1861","v":0},{"$f":"VLOOKUP($I1861,Func,7)*$H1861","v":0},null,{"$f":"Demand","v":0.38},{"$f":"+$J1861*$P1861","v":0},{"$f":"+$J1861*(1-$P1861)","v":0},{"$f":"Demand","v":0.38},{"$f":"+$K1861*$S1861","v":185185.06683199515},{"$f":"+$K1861*(1-$S1861)","v":302144.05641009734},"PLNT",{"$f":"+$L1861*VLOOKUP($V1861,DisFac,2)","v":168136.38078789544},{"$f":"+$L1861*VLOOKUP($V1861,DisFac,3)","v":688772.46948724217},{"$f":"+$L1861*VLOOKUP($V1861,DisFac,4)","v":349295.15290918347},{"$f":"+$L1861*VLOOKUP($V1861,DisFac,5)","v":40458.065410369229},{"$f":"+$L1861*VLOOKUP($V1861,DisFac,6)","v":184534.60816321714},40458.065410369229,"UACCT395S",{"$f":"ROUND(SUM(-H1861,J1861:N1861),0)","v":0},{"$f":"ROUND(J1861-Q1861-R1861,0)","v":0},{"$f":"ROUND(K1861-T1861-U1861,0)","v":0},{"$f":"ROUND(L1861-W1861-X1861-Y1861-Z1861-AA1861,0)","v":0}]
[1862,null,null,"SGP",395,"DGP","ACCT395DGP",{"$f":"'JAM Download'!E2010","v":0},"G-DGP",0,0,0,0,0,null,0.38,0,0,0.38,0,0,"PLNT",0,0,0,0,0,0,"UACCT395SGP",0,0,0,0]
[1863,null,null,"SGU",395,"DGU","ACCT395DGU",{"$f":"'JAM Download'!E2011","v":0},"G-DGU",0,0,0,0,0,null,0.38,0,0,0.38,0,0,"PLNT",0,0,0,0,0,0,"UACCT395SGU",0,0,0,0]
[1864,null,null,"SO",395,"SO","ACCT395SO",{"$f":"'JAM Download'!E2012","v":361774.96550747193},"PTD",184113.53237632615,71250.974265436118,106410.45886570966,0,0,null,0.38,69963.142303003944,114150.39007332221,0.38,27075.370220865727,44175.604044570391,"PLNT",12501.055740423617,51210.707600464324,25970.335247586419,3008.0850347478276,13720.275242487474,3008.0850347478276,"UACCT395SO",0,0,0,0]
[1865,null,null,"SE",395,"SE","ACCT395SE",{"$f":"'JAM Download'!E2013","v":0},"P",0,0,0,0,0,null,0.38,0,0,0.38,0,0,"PLNT",0,0,0,0,0,0,"UACCT395SE",0,0,0,0]
[1866,null,null,"SG/CAGE/CAGW",395,"CAGW","ACCT395CAGW",{"$f":"'JAM Download'!E2014+'JAM Download'!E2015+'JAM Download'!E2016","v":339760.96374177706},"G-SG",339415.14127875282,345.82246302422953,0,0,0,null,0.38,128977.75368592607,210437.38759282674,0.38,131.41253594920721,214.40992707502232,"PLNT",0,0,0,0,0,0,"UACCT395SG",0,0,0,0]
[1867,null,null,"JBG",395,"JBG","ACCT395JBG",{"$f":"'JAM Download'!E2017","v":84149.483143546866},"G-SG",84063.832393082688,85.650750464182963,0,0,0,null,0.38,31944.256309371423,52119.576083711268,0.38,32.547285176389529,53.103465287793433,"PLNT",0,0,0,0,0,0,"UACCT395SSGCH",0,0,0,0]
[1868,null,null,"CAGE",395,"CAGE","ACCT395CAGE",0,"P",0,0,0,0,0,null,0.38,0,0,0.38,0,0,"PLNT",0,0,0,0,0,0,"UACCT395SSGCT",0,0,0,0]
[1869,null,null,null,null,null,"ACCT395",{"$f":"'JAM Download'!E2022","v":2704211.2123927958},null,{"$f":"SUM(J1861:J1868)","v":607592.50604816165},{"$f":"SUM(K1861:K1868)","v":559011.57072101696},{"$f":"SUM(L1861:L1868)","v":1537607.1356236171},{"$f":"SUM(M1861:M1868)","v":0},{"$f":"SUM(N1861:N1868)","v":0},null,null,{"$f":"SUM(Q1861:Q1868)","v":230885.15229830143},{"$f":"SUM(R1861:R1868)","v":376707.35374986025},null,{"$f":"SUM(T1861:T1868)","v":212424.39687398646},{"$f":"SUM(U1861:U1868)","v":346587.17384703056},null,{"$f":"SUM(W1861:W1868)","v":180637.43652831906},{"$f":"SUM(X1861:X1868)","v":739983.17708770651},{"$f":"SUM(Y1861:Y1868)","v":375265.48815676989},{"$f":"SUM(Z1861:Z1868)","v":43466.150445117055},{"$f":"SUM(AA1861:AA1868)","v":198254.8834057046},43466.150445117055,"UACCT395",0,0,0,0]
[1870]
[1871,396,"Power Operated Equipment"]
[1872,null,null,"S",396,"S","ACCT396S",{"$f":"'JAM Download'!E2025","v":8092450.5},"G-SITUS",{"$f":"VLOOKUP($I1872,Func,2)*$H1872","v":0},{"$f":"VLOOKUP($I1872,Func,3)*$H1872","v":2055581.8467726796},{"$f":"VLOOKUP($I1872,Func,5)*$H1872","v":6036868.6532273199},{"$f":"VLOOKUP($I1872,Func,6)*$H1872","v":0},{"$f":"VLOOKUP($I1872,Func,7)*$H1872","v":0},null,{"$f":"Demand","v":0.38},{"$f":"+$J1872*$P1872","v":0},{"$f":"+$J1872*(1-$P1872)","v":0},{"$f":"Demand","v":0.38},{"$f":"+$K1872*$S1872","v":781121.10177361825},{"$f":"+$K1872*(1-$S1872)","v":1274460.7449990613},"PLNT",{"$f":"+$L1872*VLOOKUP($V1872,DisFac,2)","v":709208.77831051045},{"$f":"+$L1872*VLOOKUP($V1872,DisFac,3)","v":2905281.2920672051},{"$f":"+$L1872*VLOOKUP($V1872,DisFac,4)","v":1473346.7409234205},{"$f":"+$L1872*VLOOKUP($V1872,DisFac,5)","v":170654.41166294203},{"$f":"+$L1872*VLOOKUP($V1872,DisFac,6)","v":778377.43026324199},170654.41166294203,"UACCT396S",{"$f":"ROUND(SUM(-H1872,J1872:N1872),0)","v":0},{"$f":"ROUND(J1872-Q1872-R1872,0)","v":0},{"$f":"ROUND(K1872-T1872-U1872,0)","v":0},{"$f":"ROUND(L1872-W1872-X1872-Y1872-Z1872-AA1872,0)","v":0}]
[1873,null,null,"SG-P",396,"DGP","ACCT396DGP",{"$f":"'JAM Download'!E2026","v":0},"G-DGP",0,0,0,0,0,null,0.38,0,0,0.38,0,0,"PLNT",0,0,0,0,0,0,"UACCT396SGP",0,0,0,0]
[1874,null,null,"SG/CAGE/CAGW",396,"CAGW","ACCT396CAGW",{"$f":"'JAM Download'!E2027+'JAM Download'!E2031+'JAM Download'!E2032","v":552662.36103193858},"G-SG",552099.83890812541,562.52212381322033,0,0,0,null,0.38,209797.93878508767,342301.90012303775,0.38,213.75840704902373,348.7637167641966,"PLNT",0,0,0,0,0,0,"UACCT396SG",0,0,0,0]
[1875,null,null,"SO",396,"SO","ACCT396SO",{"$f":"'JAM Download'!E2028","v":131485.495612864},"PTD",66915.241134993179,25895.848406892583,38674.406070978228,0,0,null,0.38,25427.791631297408,41487.449503695774,0.38,9840.4223946191814,16055.426012273401,"PLNT",4543.4528821195872,18612.302982566223,9438.8023684038053,1093.2750724878126,4986.5727654007997,1093.2750724878126,"UACCT396SO",0,0,0,0]
[1876,null,null,"SG-U",396,"DGU","ACCT396DGU",{"$f":"'JAM Download'!E2029","v":0},"G-DGU",0,0,0,0,0,null,0.38,0,0,0.38,0,0,"PLNT",0,0,0,0,0,0,"UACCT396SGU",0,0,0,0]
[1877,null,null,"SE",396,"SE","ACCT396SE",{"$f":"'JAM Download'!E2030","v":0},"P",0,0,0,0,0,null,0.38,0,0,0.38,0,0,"PLNT",0,0,0,0,0,0,"UACCT396SE",0,0,0,0]
[1878,null,null,"JBG",396,"JBG","ACCT396JBG",{"$f":"'JAM Download'!E2033","v":1501364.7924839491},"G-SG",1499836.6426202431,1528.1498637061316,0,0,0,null,0.38,569937.92419569241,929898.71842455072,0.38,580.69694820833001,947.45291549780154,"PLNT",0,0,0,0,0,0,"UACCT396SSGCT",0,0,0,0]
[1879,null,null,"CAGE",396,"CAGE","ACCT396CAGE",0,"G-SG",0,0,0,0,0,null,0.38,0,0,0.38,0,0,"PLNT",0,0,0,0,0,0,"UACCT396SSGCH",0,0,0,0]
[1880,null,null,null,null,null,"ACCT396",{"$f":"'JAM Download'!E2038","v":10277963.149128754},null,{"$f":"SUM(J1872:J1879)","v":2118851.7226633616},{"$f":"SUM(K1872:K1879)","v":2083568.3671670915},{"$f":"SUM(L1872:L1879)","v":6075543.0592982983},{"$f":"SUM(M1872:M1879)","v":0},{"$f":"SUM(N1872:N1879)","v":0},null,null,{"$f":"SUM(Q1872:Q1879)","v":805163.65461207752},{"$f":"SUM(R1872:R1879)","v":1313688.0680512842},null,{"$f":"SUM(T1872:T1879)","v":791755.97952349484},{"$f":"SUM(U1872:U1879)","v":1291812.3876435969},null,{"$f":"SUM(W1872:W1879)","v":713752.23119263002},{"$f":"SUM(X1872:X1879)","v":2923893.5950497715},{"$f":"SUM(Y1872:Y1879)","v":1482785.5432918244},{"$f":"SUM(Z1872:Z1879)","v":171747.68673542983},{"$f":"SUM(AA1872:AA1879)","v":783364.00302864274},171747.68673542983,"UACCT396",0,0,0,0]
[1881]
[1882]
[1883,"FERC",null,"DESCRIPTION &","FERC",null,"RANGE",{"$f":"+$H$250","v":"Jurisdictional"},"FUNC","GEN","TRN","DIS","RETAIL","MISC",null,"D / E","GEN","GEN","D / E","TRN","TRN","DIS","DIS","DIS","DIS","DIS","DIS","DIS","Unbundled ACCT:","Function","Generation","Transmission","Distribution"]
[1884,"ACCT",null,"CONSENSUS FACTOR","ACCT","FACTOR","NAME","ADJ Total","FACTOR","TOTAL","TOTAL","TOTAL","TOTAL","TOTAL",null,"SPLIT","DEMAND","ENERGY","SPLIT","DEMAND","ENERGY","SPLIT","SUBS","P & C","XFMR","METER","SERVICE","METER","TOTAL","Check","Check","Check","Check"]
[1885,397,"Communication Equipment"]
[1886,null,null,"S",397,"S","ACCT397S",{"$f":"'JAM Download'!E2040","v":11881586.869999999},"G-SITUS",{"$f":"VLOOKUP($I1886,Func,2)*$H1886","v":0},{"$f":"VLOOKUP($I1886,Func,3)*$H1886","v":3018069.0361744715},{"$f":"VLOOKUP($I1886,Func,5)*$H1886","v":8863517.8338255268},{"$f":"VLOOKUP($I1886,Func,6)*$H1886","v":0},{"$f":"VLOOKUP($I1886,Func,7)*$H1886","v":0},null,{"$f":"Demand","v":0.38},{"$f":"+$J1886*$P1886","v":0},{"$f":"+$J1886*(1-$P1886)","v":0},{"$f":"Demand","v":0.38},{"$f":"+$K1886*$S1886","v":1146866.2337462993},{"$f":"+$K1886*(1-$S1886)","v":1871202.8024281722},"PLNT",{"$f":"+$L1886*VLOOKUP($V1886,DisFac,2)","v":1041282.3295567766},{"$f":"+$L1886*VLOOKUP($V1886,DisFac,3)","v":4265624.1213316452},{"$f":"+$L1886*VLOOKUP($V1886,DisFac,4)","v":2163213.3915323922},{"$f":"+$L1886*VLOOKUP($V1886,DisFac,5)","v":250560.10128476986},{"$f":"+$L1886*VLOOKUP($V1886,DisFac,6)","v":1142837.8901199428},250560.10128476986,"UACCT397S",{"$f":"ROUND(SUM(-H1886,J1886:N1886),0)","v":0},{"$f":"ROUND(J1886-Q1886-R1886,0)","v":0},{"$f":"ROUND(K1886-T1886-U1886,0)","v":0},{"$f":"ROUND(L1886-W1886-X1886-Y1886-Z1886-AA1886,0)","v":0}]
[1887,null,null,"SGP",397,"DGP","ACCT397DGP",{"$f":"'JAM Download'!E2041","v":0},"G-DGP",0,0,0,0,0,null,0.38,0,0,0.38,0,0,"PLNT",0,0,0,0,0,0,"UACCT397SGP",0,0,0,0]
[1888,null,null,"SGU",397,"DGU","ACCT397DGU",{"$f":"'JAM Download'!E2042","v":0},"G-DGU",0,0,0,0,0,null,0.38,0,0,0.38,0,0,"PLNT",0,0,0,0,0,0,"UACCT397SGU",0,0,0,0]
[1889,null,null,"SO",397,"SO","ACCT397SO",{"$f":"'JAM Download'!E2043","v":3991231.5533585837},"PTD",2031206.7165562983,786066.37774629437,1173958.4590559909,0,0,null,0.38,771858.5522913934,1259348.164264905,0.38,298705.22354359186,487361.15420270251,"PLNT",137916.14367645537,564974.94722467731,286514.08022683288,33186.276140003712,151367.01178802157,33186.276140003712,"UACCT397SO",0,0,0,0]
[1890,null,null,"CN",392,"CN","ACCT392CN",{"$f":"'JAM Download'!E2044","v":197863.12208726082},"CUST",0,0,0,197863.12208726082,0,null,0.38,0,0,0.38,0,0,"PLNT",0,0,0,0,0,0,"UACCT392CN",0,0,0,0]
[1891,null,null,"SG/CAGE/CAGW",397,"CAGW","ACCT397CAGW",{"$f":"'JAM Download'!E2045+'JAM Download'!E2047","v":6517570.4134583836},"G-SG",6510936.5664487286,6633.8470096553992,0,0,0,null,0.38,2474155.8952505169,4036780.6711982116,0.38,2520.8618636690517,4112.9851459863476,"PLNT",0,0,0,0,0,0,"UACCT397SG",0,0,0,0]
[1892,null,null,"SE",397,"SE","ACCT397SE",{"$f":"'JAM Download'!E2046","v":0},"P",0,0,0,0,0,null,0.38,0,0,0.38,0,0,"PLNT",0,0,0,0,0,0,"UACCT397SE",0,0,0,0]
[1893,null,null,"JBG",397,"JBG","ACCT397JBG",{"$f":"'JAM Download'!E2049","v":707180.54437098315},"P",707180.54437098315,0,0,0,0,null,0.38,268728.60686097358,438451.93751000956,0.38,0,0,"PLNT",0,0,0,0,0,0,"UACCT397JBG",0,0,0,0]
[1894,null,null,"CAGE",397,"CAGE","ACCT397CAGE",0,"G-SG",0,0,0,0,0,null,{"$f":"Demand","v":0.38},0,0,0.38,0,0,"PLNT",0,0,0,0,0,0,"UACCT397SSGCH",0,0,0,0]
[1895,null,null,"CAGE",397,"CAGE","ACCT397CAGE",0,"G-SG",0,0,0,0,0,null,{"$f":"Demand","v":0.38},0,0,0.38,0,0,"PLNT",0,0,0,0,0,0,"UACCT397SSGCT",0,0,0,0]
[1896,null,null,null,null,null,"ACCT397",{"$f":"'JAM Download'!E2054","v":23295432.503275208},null,{"$f":"SUM(J1886:J1895)","v":9249323.8273760099},{"$f":"SUM(K1886:K1895)","v":3810769.2609304213},{"$f":"SUM(L1886:L1895)","v":10037476.292881519},{"$f":"SUM(M1886:M1895)","v":197863.12208726082},{"$f":"SUM(N1886:N1895)","v":0},null,null,{"$f":"SUM(Q1886:Q1895)","v":3514743.0544028836},{"$f":"SUM(R1886:R1895)","v":5734580.7729731267},null,{"$f":"SUM(T1886:T1895)","v":1448092.3191535601},{"$f":"SUM(U1886:U1895)","v":2362676.9417768614},null,{"$f":"SUM(W1886:W1895)","v":1179198.4732332318},{"$f":"SUM(X1886:X1895)","v":4830599.0685563227},{"$f":"SUM(Y1886:Y1895)","v":2449727.4717592252},{"$f":"SUM(Z1886:Z1895)","v":283746.37742477359},{"$f":"SUM(AA1886:AA1895)","v":1294204.9019079644},283746.37742477359,"UACCT397",0,0,0,0]
[1897]
[1898,398,"Misc. Equipment"]
[1899,null,null,"S",398,"S","ACCT398S",{"$f":"'JAM Download'!E2057","v":204481.76},"G-SITUS",{"$f":"VLOOKUP($I1899,Func,2)*$H1899","v":0},{"$f":"VLOOKUP($I1899,Func,3)*$H1899","v":51940.879199956536},{"$f":"VLOOKUP($I1899,Func,5)*$H1899","v":152540.88080004347},{"$f":"VLOOKUP($I1899,Func,6)*$H1899","v":0},{"$f":"VLOOKUP($I1899,Func,7)*$H1899","v":0},null,{"$f":"Demand","v":0.38},{"$f":"+$J1899*$P1899","v":0},{"$f":"+$J1899*(1-$P1899)","v":0},{"$f":"Demand","v":0.38},{"$f":"+$K1899*$S1899","v":19737.534095983483},{"$f":"+$K1899*(1-$S1899)","v":32203.345103973053},"PLNT",{"$f":"+$L1899*VLOOKUP($V1899,DisFac,2)","v":17920.438215393842},{"$f":"+$L1899*VLOOKUP($V1899,DisFac,3)","v":73411.265462417854},{"$f":"+$L1899*VLOOKUP($V1899,DisFac,4)","v":37228.83873979644},{"$f":"+$L1899*VLOOKUP($V1899,DisFac,5)","v":4312.1319615860375},{"$f":"+$L1899*VLOOKUP($V1899,DisFac,6)","v":19668.206420849285},4312.1319615860375,"UACCT398S",{"$f":"ROUND(SUM(-H1899,J1899:N1899),0)","v":0},{"$f":"ROUND(J1899-Q1899-R1899,0)","v":0},{"$f":"ROUND(K1899-T1899-U1899,0)","v":0},{"$f":"ROUND(L1899-W1899-X1899-Y1899-Z1899-AA1899,0)","v":0}]
[1900,null,null,"SGP",398,"DGP","ACCT398DGP",{"$f":"'JAM Download'!E2058","v":0},"G-DGP",0,0,0,0,0,null,0.38,0,0,0.38,0,0,"PLNT",0,0,0,0,0,0,"UACCT398SGP",0,0,0,0]
[1901,null,null,"SGU",398,"DGU","ACCT398DGU",{"$f":"'JAM Download'!E2059","v":0},"G-DGU",0,0,0,0,0,null,0.38,0,0,0.38,0,0,"PLNT",0,0,0,0,0,0,"UACCT398SGU",0,0,0,0]
[1902,null,null,"CN",398,"CN","ACCT398CN",{"$f":"'JAM Download'!E2060","v":14940.554147506919},"CUST",0,0,0,14940.554147506919,0,null,0.38,0,0,0.38,0,0,"CUST",0,0,0,0,0,0,"UACCT398CN",0,0,0,0]
[1903,null,null,"SO",398,"SO","ACCT398SO",{"$f":"'JAM Download'!E2061","v":202854.08909738791},"PTD",103235.95179758426,39951.773505505189,59666.363794298464,0,0,null,0.38,39229.66168308202,64006.290114502241,0.38,15181.673932091971,24770.099573413216,"PLNT",7009.5792046366178,28714.815652743982,14562.05985069501,1686.6903678514821,7693.2187183713704,1686.6903678514821,"UACCT398SO",0,0,0,0]
[1904,null,null,"SE",398,"SE","ACCT398SE",{"$f":"'JAM Download'!E2062","v":0},"P",0,0,0,0,0,null,0.38,0,0,0.38,0,0,"PLNT",0,0,0,0,0,0,"UACCT398SE",0,0,0,0]
[1905,null,null,"SG",398,"CAGW","ACCT398CAGW",{"$f":"'JAM Download'!E2063+'JAM Download'!E2064+'JAM Download'!E2065","v":86192.093359309234},"G-SG",86104.363557478966,87.729801830278845,0,0,0,null,0.38,32719.658151842006,53384.70540563696,0.38,33.337324695505963,54.392477134772882,"PLNT",0,0,0,0,0,0,"UACCT398SG",0,0,0,0]
[1906,null,null,"JBG",398,"JBG","ACCT398JBG",{"$f":"'JAM Download'!E2066","v":22669.70644179776},"G-SG",22646.632296871281,23.074144926481363,0,0,0,null,0.38,8605.720272811086,14040.912024060195,null,0,23.074144926481363,"PLNT",0,0,0,0,0,0,"UACCT398SSGCT",0,0,0,0]
[1907,null,null,null,null,null,"ACCT398",{"$f":"'JAM Download'!E2070","v":531138.20304600184},null,{"$f":"SUM(J1899:J1906)","v":211986.94765193452},{"$f":"SUM(K1899:K1906)","v":92003.456652218476},{"$f":"SUM(L1899:L1906)","v":212207.24459434193},{"$f":"SUM(M1899:M1906)","v":14940.554147506919},{"$f":"SUM(N1899:N1906)","v":0},null,null,{"$f":"SUM(Q1899:Q1906)","v":80555.040107735113},{"$f":"SUM(R1899:R1906)","v":131431.90754419941},null,{"$f":"SUM(T1899:T1906)","v":34952.545352770961},{"$f":"SUM(U1899:U1906)","v":57050.911299447529},null,{"$f":"SUM(W1899:W1906)","v":24930.017420030461},{"$f":"SUM(X1899:X1906)","v":102126.08111516184},{"$f":"SUM(Y1899:Y1906)","v":51790.898590491452},{"$f":"SUM(Z1899:Z1906)","v":5998.8223294375193},{"$f":"SUM(AA1899:AA1906)","v":27361.425139220657},5998.8223294375193,"UACCT398",0,0,0,0]
[1908]
[1909,399,"Coal Mine"]
[1910,null,null,"SE-P",399,"SE","ACCT399SEP",{"$f":"'JAM Download'!E2073","v":0},"P",{"$f":"VLOOKUP($I1910,Func,2)*$H1910","v":0},{"$f":"VLOOKUP($I1910,Func,3)*$H1910","v":0},{"$f":"VLOOKUP($I1910,Func,5)*$H1910","v":0},{"$f":"VLOOKUP($I1910,Func,6)*$H1910","v":0},{"$f":"VLOOKUP($I1910,Func,7)*$H1910","v":0},null,{"$f":"Demand","v":0.38},{"$f":"+$J1910*$P1910","v":0},{"$f":"+$J1910*(1-$P1910)","v":0},{"$f":"Demand","v":0.38},{"$f":"+$K1910*$S1910","v":0},{"$f":"+$K1910*(1-$S1910)","v":0},"ZERO",{"$f":"+$L1910*VLOOKUP($V1910,DisFac,2)","v":0},{"$f":"+$L1910*VLOOKUP($V1910,DisFac,3)","v":0},{"$f":"+$L1910*VLOOKUP($V1910,DisFac,4)","v":0},{"$f":"+$L1910*VLOOKUP($V1910,DisFac,5)","v":0},{"$f":"+$L1910*VLOOKUP($V1910,DisFac,6)","v":0},0,"UACCT399SEP",{"$f":"ROUND(SUM(-H1910,J1910:N1910),0)","v":0},{"$f":"ROUND(J1910-Q1910-R1910,0)","v":0},{"$f":"ROUND(K1910-T1910-U1910,0)","v":0},{"$f":"ROUND(L1910-W1910-X1910-Y1910-Z1910-AA1910,0)","v":0}]
[1911,null,null,"JBE",399,"JBE","ACCT399JBE",{"$f":"'JAM Download'!E2076","v":66750666.843093663},"P",{"$f":"VLOOKUP($I1911,Func,2)*$H1911","v":66750666.843093663},{"$f":"VLOOKUP($I1911,Func,3)*$H1911","v":0},{"$f":"VLOOKUP($I1911,Func,5)*$H1911","v":0},{"$f":"VLOOKUP($I1911,Func,6)*$H1911","v":0},{"$f":"VLOOKUP($I1911,Func,7)*$H1911","v":0},null,{"$f":"Demand","v":0.38},{"$f":"+$J1911*$P1911","v":25365253.400375593},{"$f":"+$J1911*(1-$P1911)","v":41385413.442718074},{"$f":"Demand","v":0.38},{"$f":"+$K1911*$S1911","v":0},{"$f":"+$K1911*(1-$S1911)","v":0},"ZERO",{"$f":"+$L1911*VLOOKUP($V1911,DisFac,2)","v":0},{"$f":"+$L1911*VLOOKUP($V1911,DisFac,3)","v":0},{"$f":"+$L1911*VLOOKUP($V1911,DisFac,4)","v":0},{"$f":"+$L1911*VLOOKUP($V1911,DisFac,5)","v":0},{"$f":"+$L1911*VLOOKUP($V1911,DisFac,6)","v":0},0,"UACCT399DEU",{"$f":"ROUND(SUM(-H1911,J1911:N1911),0)","v":0},{"$f":"ROUND(J1911-Q1911-R1911,0)","v":0},{"$f":"ROUND(K1911-T1911-U1911,0)","v":0},{"$f":"ROUND(L1911-W1911-X1911-Y1911-Z1911-AA1911,0)","v":0}]
[1912,null,null,"SE-U",399,"SE","ACCT399SEU",0,"P",{"$f":"VLOOKUP($I1912,Func,2)*$H1912","v":0},{"$f":"VLOOKUP($I1912,Func,3)*$H1912","v":0},{"$f":"VLOOKUP($I1912,Func,5)*$H1912","v":0},{"$f":"VLOOKUP($I1912,Func,6)*$H1912","v":0},{"$f":"VLOOKUP($I1912,Func,7)*$H1912","v":0},null,{"$f":"Demand","v":0.38},{"$f":"+$J1912*$P1912","v":0},{"$f":"+$J1912*(1-$P1912)","v":0},{"$f":"Demand","v":0.38},{"$f":"+$K1912*$S1912","v":0},{"$f":"+$K1912*(1-$S1912)","v":0},"ZERO",{"$f":"+$L1912*VLOOKUP($V1912,DisFac,2)","v":0},{"$f":"+$L1912*VLOOKUP($V1912,DisFac,3)","v":0},{"$f":"+$L1912*VLOOKUP($V1912,DisFac,4)","v":0},{"$f":"+$L1912*VLOOKUP($V1912,DisFac,5)","v":0},{"$f":"+$L1912*VLOOKUP($V1912,DisFac,6)","v":0},0,"UACCT399SEU",{"$f":"ROUND(SUM(-H1912,J1912:N1912),0)","v":0},{"$f":"ROUND(J1912-Q1912-R1912,0)","v":0},{"$f":"ROUND(K1912-T1912-U1912,0)","v":0},{"$f":"ROUND(L1912-W1912-X1912-Y1912-Z1912-AA1912,0)","v":0}]
[1913,null,null,null,null,null,"ACCT399",{"$f":"'JAM Download'!E2077","v":66750666.843093663},null,{"$f":"SUM(J1910:J1912)","v":66750666.843093663},{"$f":"SUM(K1910:K1912)","v":0},{"$f":"SUM(L1910:L1912)","v":0},{"$f":"SUM(M1910:M1912)","v":0},{"$f":"SUM(N1910:N1912)","v":0},null,null,{"$f":"SUM(Q1910:Q1912)","v":25365253.400375593},{"$f":"SUM(R1910:R1912)","v":41385413.442718074},null,{"$f":"SUM(T1910:T1912)","v":0},{"$f":"SUM(U1910:U1912)","v":0},null,{"$f":"SUM(W1910:W1912)","v":0},{"$f":"SUM(X1910:X1912)","v":0},{"$f":"SUM(Y1910:Y1912)","v":0},{"$f":"SUM(Z1910:Z1912)","v":0},{"$f":"SUM(AA1910:AA1912)","v":0},0,"UACCT399",{"$f":"ROUND(SUM(-H1913,J1913:N1913),0)","v":0},{"$f":"ROUND(J1913-Q1913-R1913,0)","v":0},{"$f":"ROUND(K1913-T1913-U1913,0)","v":0},{"$f":"ROUND(L1913-W1913-X1913-Y1913-Z1913-AA1913,0)","v":0}]
[1914]
[1915,"399L","WIDCO Capital Lease"]
[1916,null,null,"SE-P",300,"SE","ACCT399LSEP",{"$f":"'JAM Download'!E2080","v":0},"P",{"$f":"VLOOKUP($I1916,Func,2)*$H1916","v":0},{"$f":"VLOOKUP($I1916,Func,3)*$H1916","v":0},{"$f":"VLOOKUP($I1916,Func,5)*$H1916","v":0},{"$f":"VLOOKUP($I1916,Func,6)*$H1916","v":0},{"$f":"VLOOKUP($I1916,Func,7)*$H1916","v":0},null,{"$f":"Demand","v":0.38},{"$f":"+$J1916*$P1916","v":0},{"$f":"+$J1916*(1-$P1916)","v":0},{"$f":"Demand","v":0.38},{"$f":"+$K1916*$S1916","v":0},{"$f":"+$K1916*(1-$S1916)","v":0},"PLNT",{"$f":"+$L1916*VLOOKUP($V1916,DisFac,2)","v":0},{"$f":"+$L1916*VLOOKUP($V1916,DisFac,3)","v":0},{"$f":"+$L1916*VLOOKUP($V1916,DisFac,4)","v":0},{"$f":"+$L1916*VLOOKUP($V1916,DisFac,5)","v":0},{"$f":"+$L1916*VLOOKUP($V1916,DisFac,6)","v":0},0,"UACCT99LSEP",{"$f":"ROUND(SUM(-H1916,J1916:N1916),0)","v":0},{"$f":"ROUND(J1916-Q1916-R1916,0)","v":0},{"$f":"ROUND(K1916-T1916-U1916,0)","v":0},{"$f":"ROUND(L1916-W1916-X1916-Y1916-Z1916-AA1916,0)","v":0}]
[{"$f":"A1916+1","v":1917},null,null,null,null,null,"ACCT399L",{"$f":"'JAM Download'!E2081","v":0},null,{"$f":"SUM(J1916)","v":0},{"$f":"SUM(K1916)","v":0},{"$f":"SUM(L1916)","v":0},{"$f":"SUM(M1916)","v":0},{"$f":"SUM(N1916)","v":0},null,null,{"$f":"SUM(Q1916)","v":0},{"$f":"SUM(R1916)","v":0},null,{"$f":"SUM(T1916)","v":0},{"$f":"SUM(U1916)","v":0},null,{"$f":"SUM(W1916)","v":0},{"$f":"SUM(X1916)","v":0},{"$f":"SUM(Y1916)","v":0},{"$f":"SUM(Z1916)","v":0},{"$f":"SUM(AA1916)","v":0},0,"UACCT399L",{"$f":"ROUND(SUM(-H1917,J1917:N1917),0)","v":0},{"$f":"ROUND(J1917-Q1917-R1917,0)","v":0},{"$f":"ROUND(K1917-T1917-U1917,0)","v":0},{"$f":"ROUND(L1917-W1917-X1917-Y1917-Z1917-AA1917,0)","v":0}]
[1918]
[1919,null,"Remove Remaining Capital Leases",null,300,null,"ACCT399LRCL",{"$f":"'JAM Download'!E2083","v":0},"P",{"$f":"VLOOKUP($I1919,Func,2)*$H1919","v":0},{"$f":"VLOOKUP($I1919,Func,3)*$H1919","v":0},{"$f":"VLOOKUP($I1919,Func,5)*$H1919","v":0},{"$f":"VLOOKUP($I1919,Func,6)*$H1919","v":0},{"$f":"VLOOKUP($I1919,Func,7)*$H1919","v":0},null,{"$f":"Demand","v":0.38},{"$f":"+$J1919*$P1919","v":0},{"$f":"+$J1919*(1-$P1919)","v":0},{"$f":"Demand","v":0.38},{"$f":"+$K1919*$S1919","v":0},{"$f":"+$K1919*(1-$S1919)","v":0},"PLNT",{"$f":"+$L1919*VLOOKUP($V1919,DisFac,2)","v":0},{"$f":"+$L1919*VLOOKUP($V1919,DisFac,3)","v":0},{"$f":"+$L1919*VLOOKUP($V1919,DisFac,4)","v":0},{"$f":"+$L1919*VLOOKUP($V1919,DisFac,5)","v":0},{"$f":"+$L1919*VLOOKUP($V1919,DisFac,6)","v":0},0,"UACCT399LRCL",{"$f":"ROUND(SUM(-H1919,J1919:N1919),0)","v":0},{"$f":"ROUND(J1919-Q1919-R1919,0)","v":0},{"$f":"ROUND(K1919-T1919-U1919,0)","v":0},{"$f":"ROUND(L1919-W1919-X1919-Y1919-Z1919-AA1919,0)","v":0}]
[1920,null,null,null,null,null,null,{"$f":"'JAM Download'!E2084","v":0},null,{"$f":"+J1917+J1919","v":0},{"$f":"+K1917+K1919","v":0},{"$f":"+L1917+L1919","v":0},{"$f":"+M1917+M1919","v":0},{"$f":"+N1917+N1919","v":0},null,null,{"$f":"+Q1917+Q1919","v":0},{"$f":"+R1917+R1919","v":0},null,{"$f":"+T1917+T1919","v":0},{"$f":"+U1917+U1919","v":0},null,{"$f":"+W1917+W1919","v":0},{"$f":"+X1917+X1919","v":0},{"$f":"+Y1917+Y1919","v":0},{"$f":"+Z1917+Z1919","v":0},{"$f":"+AA1917+AA1919","v":0},0,null,{"$f":"ROUND(SUM(-H1920,J1920:N1920),0)","v":0},{"$f":"ROUND(J1920-Q1920-R1920,0)","v":0},{"$f":"ROUND(K1920-T1920-U1920,0)","v":0},{"$f":"ROUND(L1920-W1920-X1920-Y1920-Z1920-AA1920,0)","v":0}]
[1921]
[1922]
[1923,"1011390","General Capital Leases"]
[1924,null,null,"S",1011390,"S","ACCT1011390S",{"$f":"'JAM Download'!E2087","v":0},"G-SITUS",{"$f":"VLOOKUP($I1924,Func,2)*$H1924","v":0},{"$f":"VLOOKUP($I1924,Func,3)*$H1924","v":0},{"$f":"VLOOKUP($I1924,Func,5)*$H1924","v":0},{"$f":"VLOOKUP($I1924,Func,6)*$H1924","v":0},{"$f":"VLOOKUP($I1924,Func,7)*$H1924","v":0},null,{"$f":"Demand","v":0.38},{"$f":"+$J1924*$P1924","v":0},{"$f":"+$J1924*(1-$P1924)","v":0},{"$f":"Demand","v":0.38},{"$f":"+$K1924*$S1924","v":0},{"$f":"+$K1924*(1-$S1924)","v":0},"PLNT",{"$f":"+$L1924*VLOOKUP($V1924,DisFac,2)","v":0},{"$f":"+$L1924*VLOOKUP($V1924,DisFac,3)","v":0},{"$f":"+$L1924*VLOOKUP($V1924,DisFac,4)","v":0},{"$f":"+$L1924*VLOOKUP($V1924,DisFac,5)","v":0},{"$f":"+$L1924*VLOOKUP($V1924,DisFac,6)","v":0},0,"UACCT390LSOU",{"$f":"ROUND(SUM(-H1924,J1924:N1924),0)","v":0},{"$f":"ROUND(J1924-Q1924-R1924,0)","v":0},{"$f":"ROUND(K1924-T1924-U1924,0)","v":0},{"$f":"ROUND(L1924-W1924-X1924-Y1924-Z1924-AA1924,0)","v":0}]
[1925,null,null,"SG",1011390,"CAGW","ACCT1011390CAGW",{"$f":"'JAM Download'!E2088+'JAM Download'!E2089","v":1027253.4660644664},"P",{"$f":"VLOOKUP($I1925,Func,2)*$H1925","v":1027253.4660644664},{"$f":"VLOOKUP($I1925,Func,3)*$H1925","v":0},{"$f":"VLOOKUP($I1925,Func,5)*$H1925","v":0},{"$f":"VLOOKUP($I1925,Func,6)*$H1925","v":0},{"$f":"VLOOKUP($I1925,Func,7)*$H1925","v":0},null,{"$f":"Demand","v":0.38},{"$f":"+$J1925*$P1925","v":390356.31710449723},{"$f":"+$J1925*(1-$P1925)","v":636897.14895996917},{"$f":"Demand","v":0.38},{"$f":"+$K1925*$S1925","v":0},{"$f":"+$K1925*(1-$S1925)","v":0},"PLNT",{"$f":"+$L1925*VLOOKUP($V1925,DisFac,2)","v":0},{"$f":"+$L1925*VLOOKUP($V1925,DisFac,3)","v":0},{"$f":"+$L1925*VLOOKUP($V1925,DisFac,4)","v":0},{"$f":"+$L1925*VLOOKUP($V1925,DisFac,5)","v":0},{"$f":"+$L1925*VLOOKUP($V1925,DisFac,6)","v":0},0,"UACCT390LSG",{"$f":"ROUND(SUM(-H1925,J1925:N1925),0)","v":0},{"$f":"ROUND(J1925-Q1925-R1925,0)","v":0},{"$f":"ROUND(K1925-T1925-U1925,0)","v":0},{"$f":"ROUND(L1925-W1925-X1925-Y1925-Z1925-AA1925,0)","v":0}]
[1926,null,null,"SO-U",1011390,"SO","ACCT1011390SOU",{"$f":"'JAM Download'!E2090","v":867605.18924525299},"PTD",{"$f":"VLOOKUP($I1926,Func,2)*$H1926","v":441539.27532245265},{"$f":"VLOOKUP($I1926,Func,3)*$H1926","v":170873.39065808189},{"$f":"VLOOKUP($I1926,Func,5)*$H1926","v":255192.52326471842},{"$f":"VLOOKUP($I1926,Func,6)*$H1926","v":0},{"$f":"VLOOKUP($I1926,Func,7)*$H1926","v":0},null,{"$f":"Demand","v":0.38},{"$f":"+$J1926*$P1926","v":167784.92462253201},{"$f":"+$J1926*(1-$P1926)","v":273754.35069992061},{"$f":"Demand","v":0.38},{"$f":"+$K1926*$S1926","v":64931.888450071121},{"$f":"+$K1926*(1-$S1926)","v":105941.50220801077},"PLNT",{"$f":"+$L1926*VLOOKUP($V1926,DisFac,2)","v":29979.909793431187},{"$f":"+$L1926*VLOOKUP($V1926,DisFac,3)","v":122813.01885209221},{"$f":"+$L1926*VLOOKUP($V1926,DisFac,4)","v":62281.804368742349},{"$f":"+$L1926*VLOOKUP($V1926,DisFac,5)","v":7213.9601538689112},{"$f":"+$L1926*VLOOKUP($V1926,DisFac,6)","v":32903.830096583755},7213.9601538689112,"UACCT390LSOU",{"$f":"ROUND(SUM(-H1926,J1926:N1926),0)","v":0},{"$f":"ROUND(J1926-Q1926-R1926,0)","v":0},{"$f":"ROUND(K1926-T1926-U1926,0)","v":0},{"$f":"ROUND(L1926-W1926-X1926-Y1926-Z1926-AA1926,0)","v":0}]
[1927,null,null,null,null,null,"ACCT1011390",{"$f":"'JAM Download'!E2091","v":1894858.6553097195},null,{"$f":"SUM(J1924:J1926)","v":1468792.741386919},{"$f":"SUM(K1924:K1926)","v":170873.39065808189},{"$f":"SUM(L1924:L1926)","v":255192.52326471842},{"$f":"SUM(M1924:M1926)","v":0},{"$f":"SUM(N1924:N1926)","v":0},null,null,{"$f":"SUM(Q1924:Q1926)","v":558141.24172702921},{"$f":"SUM(R1924:R1926)","v":910651.49965988984},null,{"$f":"SUM(T1924:T1926)","v":64931.888450071121},{"$f":"SUM(U1924:U1926)","v":105941.50220801077},null,{"$f":"SUM(W1924:W1926)","v":29979.909793431187},{"$f":"SUM(X1924:X1926)","v":122813.01885209221},{"$f":"SUM(Y1924:Y1926)","v":62281.804368742349},{"$f":"SUM(Z1924:Z1926)","v":7213.9601538689112},{"$f":"SUM(AA1924:AA1926)","v":32903.830096583755},7213.9601538689112,"UACCT390L",{"$f":"ROUND(SUM(-H1927,J1927:N1927),0)","v":0},{"$f":"ROUND(J1927-Q1927-R1927,0)","v":0},{"$f":"ROUND(K1927-T1927-U1927,0)","v":0},{"$f":"ROUND(L1927-W1927-X1927-Y1927-Z1927-AA1927,0)","v":0}]
[1928]
[1929,null,"Remove Capital leases",null,null,null,null,{"$f":"'JAM Download'!E2093","v":-1894858.6553097195},"PTD",{"$f":"-J1927","v":-1468792.741386919},{"$f":"-K1927","v":-170873.39065808189},{"$f":"-L1927","v":-255192.52326471842},{"$f":"-M1927","v":0},{"$f":"-N1927","v":0},null,{"$f":"Demand","v":0.38},{"$f":"-Q1927","v":-558141.24172702921},{"$f":"-R1927","v":-910651.49965988984},{"$f":"Demand","v":0.38},{"$f":"-T1927","v":-64931.888450071121},{"$f":"-U1927","v":-105941.50220801077},"PLNT",{"$f":"-W1927","v":-29979.909793431187},{"$f":"-X1927","v":-122813.01885209221},{"$f":"-Y1927","v":-62281.804368742349},{"$f":"-Z1927","v":-7213.9601538689112},{"$f":"-AA1927","v":-32903.830096583755},-7213.9601538689112,"UACCT390LRCL",{"$f":"ROUND(SUM(-H1929,J1929:N1929),0)","v":0},{"$f":"ROUND(J1929-Q1929-R1929,0)","v":0},{"$f":"ROUND(K1929-T1929-U1929,0)","v":0},{"$f":"ROUND(L1929-W1929-X1929-Y1929-Z1929-AA1929,0)","v":0}]
[1930,null,null,null,null,null,null,{"$f":"'JAM Download'!E2094","v":0},null,{"$f":"J1927+J1929","v":0},{"$f":"K1927+K1929","v":0},{"$f":"L1927+L1929","v":0},{"$f":"M1927+M1929","v":0},{"$f":"N1927+N1929","v":0},null,null,{"$f":"Q1927+Q1929","v":0},{"$f":"R1927+R1929","v":0},null,{"$f":"T1927+T1929","v":0},{"$f":"U1927+U1929","v":0},null,{"$f":"W1927+W1929","v":0},{"$f":"X1927+X1929","v":0},{"$f":"Y1927+Y1929","v":0},{"$f":"Z1927+Z1929","v":0},{"$f":"AA1927+AA1929","v":0},0,null,{"$f":"ROUND(SUM(-H1930,J1930:N1930),0)","v":0},{"$f":"ROUND(J1930-Q1930-R1930,0)","v":0},{"$f":"ROUND(K1930-T1930-U1930,0)","v":0},{"$f":"ROUND(L1930-W1930-X1930-Y1930-Z1930-AA1930,0)","v":0}]
[1931,null,null,null,null,null,null," "]
[1932]
[1933,"1011392","General Vehicles Capital Leases"]
[1934,null,null,"SO-P",300,"SO","ACCT101392SOP",{"$f":"'JAM Download'!E2097","v":0},"LABOR",{"$f":"VLOOKUP($I1934,Func,2)*$H1934","v":0},{"$f":"VLOOKUP($I1934,Func,3)*$H1934","v":0},{"$f":"VLOOKUP($I1934,Func,5)*$H1934","v":0},{"$f":"VLOOKUP($I1934,Func,6)*$H1934","v":0},{"$f":"VLOOKUP($I1934,Func,7)*$H1934","v":0},null,{"$f":"Demand","v":0.38},{"$f":"+$J1934*$P1934","v":0},{"$f":"+$J1934*(1-$P1934)","v":0},{"$f":"Demand","v":0.38},{"$f":"+$K1934*$S1934","v":0},{"$f":"+$K1934*(1-$S1934)","v":0},"PLNT",{"$f":"+$L1934*VLOOKUP($V1934,DisFac,2)","v":0},{"$f":"+$L1934*VLOOKUP($V1934,DisFac,3)","v":0},{"$f":"+$L1934*VLOOKUP($V1934,DisFac,4)","v":0},{"$f":"+$L1934*VLOOKUP($V1934,DisFac,5)","v":0},{"$f":"+$L1934*VLOOKUP($V1934,DisFac,6)","v":0},0,"UACCT392LSOP",{"$f":"ROUND(SUM(-H1934,J1934:N1934),0)","v":0},{"$f":"ROUND(J1934-Q1934-R1934,0)","v":0},{"$f":"ROUND(K1934-T1934-U1934,0)","v":0},{"$f":"ROUND(L1934-W1934-X1934-Y1934-Z1934-AA1934,0)","v":0}]
[1935,null,null,null,null,null,"ACCT1011392",{"$f":"'JAM Download'!E2098","v":0},null,{"$f":"SUM(J1934)","v":0},{"$f":"SUM(K1934)","v":0},{"$f":"SUM(L1934)","v":0},{"$f":"SUM(M1934)","v":0},{"$f":"SUM(N1934)","v":0},null,null,{"$f":"SUM(Q1934)","v":0},{"$f":"SUM(R1934)","v":0},null,{"$f":"SUM(T1934)","v":0},{"$f":"SUM(U1934)","v":0},null,{"$f":"SUM(W1934)","v":0},{"$f":"SUM(X1934)","v":0},{"$f":"SUM(Y1934)","v":0},{"$f":"SUM(Z1934)","v":0},{"$f":"SUM(AA1934)","v":0},0,"UACCT392L",{"$f":"ROUND(SUM(-H1935,J1935:N1935),0)","v":0},{"$f":"ROUND(J1935-Q1935-R1935,0)","v":0},{"$f":"ROUND(K1935-T1935-U1935,0)","v":0},{"$f":"ROUND(L1935-W1935-X1935-Y1935-Z1935-AA1935,0)","v":0}]
[1936]
[1937,null,"Remove Capital Leases",null,300,null,"ACCT392LRCL",{"$f":"'JAM Download'!E2100","v":0},"LABOR",{"$f":"VLOOKUP($I1937,Func,2)*$H1937","v":0},{"$f":"VLOOKUP($I1937,Func,3)*$H1937","v":0},{"$f":"VLOOKUP($I1937,Func,5)*$H1937","v":0},{"$f":"VLOOKUP($I1937,Func,6)*$H1937","v":0},{"$f":"VLOOKUP($I1937,Func,7)*$H1937","v":0},null,{"$f":"Demand","v":0.38},{"$f":"+$J1937*$P1937","v":0},{"$f":"+$J1937*(1-$P1937)","v":0},{"$f":"Demand","v":0.38},{"$f":"+$K1937*$S1937","v":0},{"$f":"+$K1937*(1-$S1937)","v":0},"PLNT",{"$f":"+$L1937*VLOOKUP($V1937,DisFac,2)","v":0},{"$f":"+$L1937*VLOOKUP($V1937,DisFac,3)","v":0},{"$f":"+$L1937*VLOOKUP($V1937,DisFac,4)","v":0},{"$f":"+$L1937*VLOOKUP($V1937,DisFac,5)","v":0},{"$f":"+$L1937*VLOOKUP($V1937,DisFac,6)","v":0},0,"UACCT392LRCL",{"$f":"ROUND(SUM(-H1937,J1937:N1937),0)","v":0},{"$f":"ROUND(J1937-Q1937-R1937,0)","v":0},{"$f":"ROUND(K1937-T1937-U1937,0)","v":0},{"$f":"ROUND(L1937-W1937-X1937-Y1937-Z1937-AA1937,0)","v":0}]
[1938,null,null,null,null,null,null,{"$f":"'JAM Download'!E2101","v":0},null,{"$f":"SUM(J1937,J1935)","v":0},{"$f":"SUM(K1937,K1935)","v":0},{"$f":"SUM(L1937,L1935)","v":0},{"$f":"SUM(M1937,M1935)","v":0},{"$f":"SUM(N1937,N1935)","v":0},null,null,{"$f":"SUM(Q1937,Q1935)","v":0},{"$f":"SUM(R1937,R1935)","v":0},null,{"$f":"SUM(T1937,T1935)","v":0},{"$f":"SUM(U1937,U1935)","v":0},null,{"$f":"SUM(W1937,W1935)","v":0},{"$f":"SUM(X1937,X1935)","v":0},{"$f":"SUM(Y1937,Y1935)","v":0},{"$f":"SUM(Z1937,Z1935)","v":0},{"$f":"SUM(AA1937,AA1935)","v":0},0,null,{"$f":"ROUND(SUM(-H1938,J1938:N1938),0)","v":0},{"$f":"ROUND(J1938-Q1938-R1938,0)","v":0},{"$f":"ROUND(K1938-T1938-U1938,0)","v":0},{"$f":"ROUND(L1938-W1938-X1938-Y1938-Z1938-AA1938,0)","v":0}]
[1939]
[1940,"GP","Unclassified Gen Plant - Acct 300"]
[1941,null,null,"S",300,"S","ACCTGPS",{"$f":"'JAM Download'!E2104","v":0},"G-SITUS",{"$f":"VLOOKUP($I1941,Func,2)*$H1941","v":0},{"$f":"VLOOKUP($I1941,Func,3)*$H1941","v":0},{"$f":"VLOOKUP($I1941,Func,5)*$H1941","v":0},{"$f":"VLOOKUP($I1941,Func,6)*$H1941","v":0},{"$f":"VLOOKUP($I1941,Func,7)*$H1941","v":0},null,{"$f":"Demand","v":0.38},{"$f":"+$J1941*$P1941","v":0},{"$f":"+$J1941*(1-$P1941)","v":0},{"$f":"Demand","v":0.38},{"$f":"+$K1941*$S1941","v":0},{"$f":"+$K1941*(1-$S1941)","v":0},"PLNT",{"$f":"+$L1941*VLOOKUP($V1941,DisFac,2)","v":0},{"$f":"+$L1941*VLOOKUP($V1941,DisFac,3)","v":0},{"$f":"+$L1941*VLOOKUP($V1941,DisFac,4)","v":0},{"$f":"+$L1941*VLOOKUP($V1941,DisFac,5)","v":0},{"$f":"+$L1941*VLOOKUP($V1941,DisFac,6)","v":0},0,"UACCTG00S",{"$f":"ROUND(SUM(-H1941,J1941:N1941),0)","v":0},{"$f":"ROUND(J1941-Q1941-R1941,0)","v":0},{"$f":"ROUND(K1941-T1941-U1941,0)","v":0},{"$f":"ROUND(L1941-W1941-X1941-Y1941-Z1941-AA1941,0)","v":0}]
[1942,null,null,"SO",300,"SO","ACCTGPSO",{"$f":"'JAM Download'!E2105","v":507064.38688910223},"PTD",258053.8299034418,99865.482760742263,149145.07422491815,0,0,null,0.38,98060.45536330789,159993.37454013393,0.38,37948.883449082059,61916.599311660204,"PLNT",17521.500293954072,71777.012030563565,36400.06461240301,4216.1369339504181,19230.360354047087,4216.1369339504181,"UACCTG00SO",0,0,0,0]
[1943,null,null,"CN",300,"CN","ACCTGPCN",{"$f":"'JAM Download'!E2106","v":0},"CUST",0,0,0,0,0,null,0.38,0,0,0.38,0,0,"CUST",0,0,0,0,0,0,"UACCTG00CN",0,0,0,0]
[1944,null,null,"SG",300,"SG","ACCTGPSG",{"$f":"'JAM Download'!E2107","v":0},"G-SG",0,0,0,0,0,null,0.38,0,0,0.38,0,0,"PLNT",0,0,0,0,0,0,"UACCTG00SG",0,0,0,0]
[1945,null,null,"SGP",300,"DGP","ACCTGPDGP",{"$f":"'JAM Download'!E2108","v":0},"G-DGP",0,0,0,0,0,null,0.38,0,0,0.38,0,0,"PLNT",0,0,0,0,0,0,"UACCTG00SGP",0,0,0,0]
[1946,null,null,"SGU",300,"DGU","ACCTGPDGU",{"$f":"'JAM Download'!E2109","v":0},"G-DGU",0,0,0,0,0,null,0.38,0,0,0.38,0,0,"PLNT",0,0,0,0,0,0,"UACCTG00SGU",0,0,0,0]
[1947,null,null,null,null,null,"ACCTGP",{"$f":"'JAM Download'!E2110","v":507064.38688910223},null,{"$f":"SUM(J1941:J1946)","v":258053.8299034418},{"$f":"SUM(K1941:K1946)","v":99865.482760742263},{"$f":"SUM(L1941:L1946)","v":149145.07422491815},{"$f":"SUM(M1941:M1946)","v":0},{"$f":"SUM(N1941:N1946)","v":0},null,null,{"$f":"SUM(Q1941:Q1946)","v":98060.45536330789},{"$f":"SUM(R1941:R1946)","v":159993.37454013393},null,{"$f":"SUM(T1941:T1946)","v":37948.883449082059},{"$f":"SUM(U1941:U1946)","v":61916.599311660204},null,{"$f":"SUM(W1941:W1946)","v":17521.500293954072},{"$f":"SUM(X1941:X1946)","v":71777.012030563565},{"$f":"SUM(Y1941:Y1946)","v":36400.06461240301},{"$f":"SUM(Z1941:Z1946)","v":4216.1369339504181},{"$f":"SUM(AA1941:AA1946)","v":19230.360354047087},4216.1369339504181,"UACCTG00",0,0,0,0]
[1948]
[1949,"399G","Unclassified Gen Plant - Acct 300"]
[1950,null,null,"S",399,"S","ACCT399GS",{"$f":"'JAM Download'!E2113","v":0},"G-SITUS",{"$f":"VLOOKUP($I1950,Func,2)*$H1950","v":0},{"$f":"VLOOKUP($I1950,Func,3)*$H1950","v":0},{"$f":"VLOOKUP($I1950,Func,5)*$H1950","v":0},{"$f":"VLOOKUP($I1950,Func,6)*$H1950","v":0},{"$f":"VLOOKUP($I1950,Func,7)*$H1950","v":0},null,{"$f":"Demand","v":0.38},{"$f":"+$J1950*$P1950","v":0},{"$f":"+$J1950*(1-$P1950)","v":0},{"$f":"Demand","v":0.38},{"$f":"+$K1950*$S1950","v":0},{"$f":"+$K1950*(1-$S1950)","v":0},"PLNT",{"$f":"+$L1950*VLOOKUP($V1950,DisFac,2)","v":0},{"$f":"+$L1950*VLOOKUP($V1950,DisFac,3)","v":0},{"$f":"+$L1950*VLOOKUP($V1950,DisFac,4)","v":0},{"$f":"+$L1950*VLOOKUP($V1950,DisFac,5)","v":0},{"$f":"+$L1950*VLOOKUP($V1950,DisFac,6)","v":0},0,"UACCT399GS",{"$f":"ROUND(SUM(-H1950,J1950:N1950),0)","v":0},{"$f":"ROUND(J1950-Q1950-R1950,0)","v":0},{"$f":"ROUND(K1950-T1950-U1950,0)","v":0},{"$f":"ROUND(L1950-W1950-X1950-Y1950-Z1950-AA1950,0)","v":0}]
[1951,null,null,"SO",399,"SO","ACCT399GSO",{"$f":"'JAM Download'!E2114","v":0},"PTD",{"$f":"VLOOKUP($I1951,Func,2)*$H1951","v":0},{"$f":"VLOOKUP($I1951,Func,3)*$H1951","v":0},{"$f":"VLOOKUP($I1951,Func,5)*$H1951","v":0},{"$f":"VLOOKUP($I1951,Func,6)*$H1951","v":0},{"$f":"VLOOKUP($I1951,Func,7)*$H1951","v":0},null,{"$f":"Demand","v":0.38},{"$f":"+$J1951*$P1951","v":0},{"$f":"+$J1951*(1-$P1951)","v":0},{"$f":"Demand","v":0.38},{"$f":"+$K1951*$S1951","v":0},{"$f":"+$K1951*(1-$S1951)","v":0},"PLNT",{"$f":"+$L1951*VLOOKUP($V1951,DisFac,2)","v":0},{"$f":"+$L1951*VLOOKUP($V1951,DisFac,3)","v":0},{"$f":"+$L1951*VLOOKUP($V1951,DisFac,4)","v":0},{"$f":"+$L1951*VLOOKUP($V1951,DisFac,5)","v":0},{"$f":"+$L1951*VLOOKUP($V1951,DisFac,6)","v":0},0,"UACCT399GSO",0,0,0,0]
[1952,null,null,"SG",399,"SG","ACCT399GSG",{"$f":"'JAM Download'!E2115","v":0},"G-SG",{"$f":"VLOOKUP($I1952,Func,2)*$H1952","v":0},{"$f":"VLOOKUP($I1952,Func,3)*$H1952","v":0},{"$f":"VLOOKUP($I1952,Func,5)*$H1952","v":0},{"$f":"VLOOKUP($I1952,Func,6)*$H1952","v":0},{"$f":"VLOOKUP($I1952,Func,7)*$H1952","v":0},null,{"$f":"Demand","v":0.38},{"$f":"+$J1952*$P1952","v":0},{"$f":"+$J1952*(1-$P1952)","v":0},{"$f":"Demand","v":0.38},{"$f":"+$K1952*$S1952","v":0},{"$f":"+$K1952*(1-$S1952)","v":0},"PLNT",{"$f":"+$L1952*VLOOKUP($V1952,DisFac,2)","v":0},{"$f":"+$L1952*VLOOKUP($V1952,DisFac,3)","v":0},{"$f":"+$L1952*VLOOKUP($V1952,DisFac,4)","v":0},{"$f":"+$L1952*VLOOKUP($V1952,DisFac,5)","v":0},{"$f":"+$L1952*VLOOKUP($V1952,DisFac,6)","v":0},0,"UACCT399GSG",0,0,0,0]
[1953,null,null,"SG-P",399,"DGP","ACCT399GDGP",{"$f":"'JAM Download'!E2116","v":0},"G-DGP",{"$f":"VLOOKUP($I1953,Func,2)*$H1953","v":0},{"$f":"VLOOKUP($I1953,Func,3)*$H1953","v":0},{"$f":"VLOOKUP($I1953,Func,5)*$H1953","v":0},{"$f":"VLOOKUP($I1953,Func,6)*$H1953","v":0},{"$f":"VLOOKUP($I1953,Func,7)*$H1953","v":0},null,{"$f":"Demand","v":0.38},{"$f":"+$J1953*$P1953","v":0},{"$f":"+$J1953*(1-$P1953)","v":0},{"$f":"Demand","v":0.38},{"$f":"+$K1953*$S1953","v":0},{"$f":"+$K1953*(1-$S1953)","v":0},"PLNT",{"$f":"+$L1953*VLOOKUP($V1953,DisFac,2)","v":0},{"$f":"+$L1953*VLOOKUP($V1953,DisFac,3)","v":0},{"$f":"+$L1953*VLOOKUP($V1953,DisFac,4)","v":0},{"$f":"+$L1953*VLOOKUP($V1953,DisFac,5)","v":0},{"$f":"+$L1953*VLOOKUP($V1953,DisFac,6)","v":0},0,"UACCT399GSGP",0,0,0,0]
[1954,null,null,"SG-U",399,"DGU","ACCT399GDGU",{"$f":"'JAM Download'!E2117","v":0},"G-DGU",{"$f":"VLOOKUP($I1954,Func,2)*$H1954","v":0},{"$f":"VLOOKUP($I1954,Func,3)*$H1954","v":0},{"$f":"VLOOKUP($I1954,Func,5)*$H1954","v":0},{"$f":"VLOOKUP($I1954,Func,6)*$H1954","v":0},{"$f":"VLOOKUP($I1954,Func,7)*$H1954","v":0},null,{"$f":"Demand","v":0.38},{"$f":"+$J1954*$P1954","v":0},{"$f":"+$J1954*(1-$P1954)","v":0},{"$f":"Demand","v":0.38},{"$f":"+$K1954*$S1954","v":0},{"$f":"+$K1954*(1-$S1954)","v":0},"PLNT",{"$f":"+$L1954*VLOOKUP($V1954,DisFac,2)","v":0},{"$f":"+$L1954*VLOOKUP($V1954,DisFac,3)","v":0},{"$f":"+$L1954*VLOOKUP($V1954,DisFac,4)","v":0},{"$f":"+$L1954*VLOOKUP($V1954,DisFac,5)","v":0},{"$f":"+$L1954*VLOOKUP($V1954,DisFac,6)","v":0},0,"UACCT399GSGU",0,0,0,0]
[1955,null,null,null,null,null,"ACCT399G",{"$f":"'JAM Download'!E2118","v":0},null,{"$f":"SUM(J1950:J1954)","v":0},{"$f":"SUM(K1950:K1954)","v":0},{"$f":"SUM(L1950:L1954)","v":0},{"$f":"SUM(M1950:M1954)","v":0},{"$f":"SUM(N1950:N1954)","v":0},null,null,{"$f":"SUM(Q1950:Q1954)","v":0},{"$f":"SUM(R1950:R1954)","v":0},null,{"$f":"SUM(T1950:T1954)","v":0},{"$f":"SUM(U1950:U1954)","v":0},null,{"$f":"SUM(W1950:W1954)","v":0},{"$f":"SUM(X1950:X1954)","v":0},{"$f":"SUM(Y1950:Y1954)","v":0},{"$f":"SUM(Z1950:Z1954)","v":0},{"$f":"SUM(AA1950:AA1954)","v":0},0,"UACCT399G",0,0,0,0]
[1956]
[1957,"TOTAL GENERAL PLANT",null,null,null,null,null,{"$f":"'JAM Download'!E2120","v":146557209.81882393},null,{"$f":"+J1913+J1907+J1896+J1880+J1869+J1858+J1847+J1838+J1826+J1814+J1804+J1947+J1920+J1930+J1935+J1938+J1955","v":89215707.538057387},{"$f":"+K1913+K1907+K1896+K1880+K1869+K1858+K1847+K1838+K1826+K1814+K1804+K1947+K1920+K1930+K1935+K1938+K1955","v":15375662.486808896},{"$f":"+L1913+L1907+L1896+L1880+L1869+L1858+L1847+L1838+L1826+L1814+L1804+L1947+L1920+L1930+L1935+L1938+L1955","v":40222625.515786968},{"$f":"+M1913+M1907+M1896+M1880+M1869+M1858+M1847+M1838+M1826+M1814+M1804+M1947+M1920+M1930+M1935+M1938+M1955","v":1743214.2781706576},{"$f":"+N1913+N1907+N1896+N1880+N1869+N1858+N1847+N1838+N1826+N1814+N1804+N1947+N1920+N1930+N1935+N1938+N1955","v":0},null,null,{"$f":"+Q1913+Q1907+Q1896+Q1880+Q1869+Q1858+Q1847+Q1838+Q1826+Q1814+Q1804+Q1947+Q1920+Q1930+Q1935+Q1938+Q1955","v":33901968.864461817},{"$f":"+R1913+R1907+R1896+R1880+R1869+R1858+R1847+R1838+R1826+R1814+R1804+R1947+R1920+R1930+R1935+R1938+R1955","v":55313738.6735956},null,{"$f":"+T1913+T1907+T1896+T1880+T1869+T1858+T1847+T1838+T1826+T1814+T1804+T1947+T1920+T1930+T1935+T1938+T1955","v":5842742.9768123087},{"$f":"+U1913+U1907+U1896+U1880+U1869+U1858+U1847+U1838+U1826+U1814+U1804+U1947+U1920+U1930+U1935+U1938+U1955","v":9532919.5099965893},null,{"$f":"+W1913+W1907+W1896+W1880+W1869+W1858+W1847+W1838+W1826+W1814+W1804+W1947+W1920+W1930+W1935+W1938+W1955","v":4725337.048246407},{"$f":"+X1913+X1907+X1896+X1880+X1869+X1858+X1847+X1838+X1826+X1814+X1804+X1947+X1920+X1930+X1935+X1938+X1955","v":19357393.400694314},{"$f":"+Y1913+Y1907+Y1896+Y1880+Y1869+Y1858+Y1847+Y1838+Y1826+Y1814+Y1804+Y1947+Y1920+Y1930+Y1935+Y1938+Y1955","v":9816657.8766603563},{"$f":"+Z1913+Z1907+Z1896+Z1880+Z1869+Z1858+Z1847+Z1838+Z1826+Z1814+Z1804+Z1947+Z1920+Z1930+Z1935+Z1938+Z1955","v":1137041.2190872945},{"$f":"+AA1913+AA1907+AA1896+AA1880+AA1869+AA1858+AA1847+AA1838+AA1826+AA1814+AA1804+AA1947+AA1920+AA1930+AA1935+AA1938+AA1955","v":5186195.9710986027},1137041.2190872945,null,{"$f":"ROUND(SUM(-H1957,J1957:N1957),0)","v":0},{"$f":"ROUND(J1957-Q1957-R1957,0)","v":0},{"$f":"ROUND(K1957-T1957-U1957,0)","v":0},{"$f":"ROUND(L1957-W1957-X1957-Y1957-Z1957-AA1957,0)","v":0}]
[1958]
[1959]
[1960]
[1961,"FERC",null,"DESCRIPTION &","FERC",null,"RANGE",{"$f":"+$H$250","v":"Jurisdictional"},"FUNC","GEN","TRN","DIS","RETAIL","MISC",null,"D / E","GEN","GEN","D / E","TRN","TRN","DIS","DIS","DIS","DIS","DIS","DIS","DIS","Unbundled ACCT:","Function","Generation","Transmission","Distribution"]
[1962,"ACCT",null,"CONSENSUS FACTOR","ACCT","FACTOR","NAME","ADJ Total","FACTOR","TOTAL","TOTAL","TOTAL","TOTAL","TOTAL",null,"SPLIT","DEMAND","ENERGY","SPLIT","DEMAND","ENERGY","SPLIT","SUBS","P & C","XFMR","METER","SERVICE","METER","TOTAL","Check","Check","Check","Check"]
[1963,301,"Organization"]
[1964,null,null,"S",301,"S","ACCT301S",{"$f":"'JAM Download'!E2140","v":0},"I-SITUS",{"$f":"VLOOKUP($I1964,Func,2)*$H1964","v":0},{"$f":"VLOOKUP($I1964,Func,3)*$H1964","v":0},{"$f":"VLOOKUP($I1964,Func,5)*$H1964","v":0},{"$f":"VLOOKUP($I1964,Func,6)*$H1964","v":0},{"$f":"VLOOKUP($I1964,Func,7)*$H1964","v":0},null,{"$f":"Demand","v":0.38},{"$f":"+$J1964*$P1964","v":0},{"$f":"+$J1964*(1-$P1964)","v":0},{"$f":"Demand","v":0.38},{"$f":"+$K1964*$S1964","v":0},{"$f":"+$K1964*(1-$S1964)","v":0},"PLNT",{"$f":"+$L1964*VLOOKUP($V1964,DisFac,2)","v":0},{"$f":"+$L1964*VLOOKUP($V1964,DisFac,3)","v":0},{"$f":"+$L1964*VLOOKUP($V1964,DisFac,4)","v":0},{"$f":"+$L1964*VLOOKUP($V1964,DisFac,5)","v":0},{"$f":"+$L1964*VLOOKUP($V1964,DisFac,6)","v":0},0,"UACCT301S",{"$f":"ROUND(SUM(-H1964,J1964:N1964),0)","v":0},{"$f":"ROUND(J1964-Q1964-R1964,0)","v":0},{"$f":"ROUND(K1964-T1964-U1964,0)","v":0},{"$f":"ROUND(L1964-W1964-X1964-Y1964-Z1964-AA1964,0)","v":0}]
[1965,null,null,"SO",301,"SO","ACCT301SO",{"$f":"'JAM Download'!E2141","v":0},"PTD",{"$f":"VLOOKUP($I1965,Func,2)*$H1965","v":0},{"$f":"VLOOKUP($I1965,Func,3)*$H1965","v":0},{"$f":"VLOOKUP($I1965,Func,5)*$H1965","v":0},{"$f":"VLOOKUP($I1965,Func,6)*$H1965","v":0},{"$f":"VLOOKUP($I1965,Func,7)*$H1965","v":0},null,{"$f":"Demand","v":0.38},{"$f":"+$J1965*$P1965","v":0},{"$f":"+$J1965*(1-$P1965)","v":0},{"$f":"Demand","v":0.38},{"$f":"+$K1965*$S1965","v":0},{"$f":"+$K1965*(1-$S1965)","v":0},"PLNT",{"$f":"+$L1965*VLOOKUP($V1965,DisFac,2)","v":0},{"$f":"+$L1965*VLOOKUP($V1965,DisFac,3)","v":0},{"$f":"+$L1965*VLOOKUP($V1965,DisFac,4)","v":0},{"$f":"+$L1965*VLOOKUP($V1965,DisFac,5)","v":0},{"$f":"+$L1965*VLOOKUP($V1965,DisFac,6)","v":0},0,"UACCT301SO",{"$f":"ROUND(SUM(-H1965,J1965:N1965),0)","v":0},{"$f":"ROUND(J1965-Q1965-R1965,0)","v":0},{"$f":"ROUND(K1965-T1965-U1965,0)","v":0},{"$f":"ROUND(L1965-W1965-X1965-Y1965-Z1965-AA1965,0)","v":0}]
[1966,null,null,"SG/CAGE/CAGW",301,"CAGW","ACCT301CAGW",{"$f":"'JAM Download'!E2144+'JAM Download'!E2143+'JAM Download'!E2142","v":0},"I-SG",{"$f":"VLOOKUP($I1966,Func,2)*$H1966","v":0},{"$f":"VLOOKUP($I1966,Func,3)*$H1966","v":0},{"$f":"VLOOKUP($I1966,Func,5)*$H1966","v":0},{"$f":"VLOOKUP($I1966,Func,6)*$H1966","v":0},{"$f":"VLOOKUP($I1966,Func,7)*$H1966","v":0},null,{"$f":"Demand","v":0.38},{"$f":"+$J1966*$P1966","v":0},{"$f":"+$J1966*(1-$P1966)","v":0},{"$f":"Demand","v":0.38},{"$f":"+$K1966*$S1966","v":0},{"$f":"+$K1966*(1-$S1966)","v":0},"PLNT",{"$f":"+$L1966*VLOOKUP($V1966,DisFac,2)","v":0},{"$f":"+$L1966*VLOOKUP($V1966,DisFac,3)","v":0},{"$f":"+$L1966*VLOOKUP($V1966,DisFac,4)","v":0},{"$f":"+$L1966*VLOOKUP($V1966,DisFac,5)","v":0},{"$f":"+$L1966*VLOOKUP($V1966,DisFac,6)","v":0},0,"UACCT301SG",{"$f":"ROUND(SUM(-H1966,J1966:N1966),0)","v":0},{"$f":"ROUND(J1966-Q1966-R1966,0)","v":0},{"$f":"ROUND(K1966-T1966-U1966,0)","v":0},{"$f":"ROUND(L1966-W1966-X1966-Y1966-Z1966-AA1966,0)","v":0}]
[1967,null,null,null,null,null,"ACCT301",{"$f":"'JAM Download'!E2145","v":0},null,{"$f":"SUM(J1964:J1966)","v":0},{"$f":"SUM(K1964:K1966)","v":0},{"$f":"SUM(L1964:L1966)","v":0},{"$f":"SUM(M1964:M1966)","v":0},{"$f":"SUM(N1964:N1966)","v":0},null,null,{"$f":"SUM(Q1964:Q1966)","v":0},{"$f":"SUM(R1964:R1966)","v":0},null,{"$f":"SUM(T1964:T1966)","v":0},{"$f":"SUM(U1964:U1966)","v":0},null,{"$f":"SUM(W1964:W1966)","v":0},{"$f":"SUM(X1964:X1966)","v":0},{"$f":"SUM(Y1964:Y1966)","v":0},{"$f":"SUM(Z1964:Z1966)","v":0},{"$f":"SUM(AA1964:AA1966)","v":0},0,"UACCT301",{"$f":"ROUND(SUM(-H1967,J1967:N1967),0)","v":0},{"$f":"ROUND(J1967-Q1967-R1967,0)","v":0},{"$f":"ROUND(K1967-T1967-U1967,0)","v":0},{"$f":"ROUND(L1967-W1967-X1967-Y1967-Z1967-AA1967,0)","v":0}]
[1968,302,"Franchise & Consent"]
[1969,null,null,"S",302,"S","ACCT302S",{"$f":"'JAM Download'!E2147","v":0},"I-SITUS",{"$f":"VLOOKUP($I1969,Func,2)*$H1969","v":0},{"$f":"VLOOKUP($I1969,Func,3)*$H1969","v":0},{"$f":"VLOOKUP($I1969,Func,5)*$H1969","v":0},{"$f":"VLOOKUP($I1969,Func,6)*$H1969","v":0},{"$f":"VLOOKUP($I1969,Func,7)*$H1969","v":0},null,{"$f":"Demand","v":0.38},{"$f":"+$J1969*$P1969","v":0},{"$f":"+$J1969*(1-$P1969)","v":0},{"$f":"Demand","v":0.38},{"$f":"+$K1969*$S1969","v":0},{"$f":"+$K1969*(1-$S1969)","v":0},"PLNT",{"$f":"+$L1969*VLOOKUP($V1969,DisFac,2)","v":0},{"$f":"+$L1969*VLOOKUP($V1969,DisFac,3)","v":0},{"$f":"+$L1969*VLOOKUP($V1969,DisFac,4)","v":0},{"$f":"+$L1969*VLOOKUP($V1969,DisFac,5)","v":0},{"$f":"+$L1969*VLOOKUP($V1969,DisFac,6)","v":0},0,"UACCT302S",{"$f":"ROUND(SUM(-H1969,J1969:N1969),0)","v":0},{"$f":"ROUND(J1969-Q1969-R1969,0)","v":0},{"$f":"ROUND(K1969-T1969-U1969,0)","v":0},{"$f":"ROUND(L1969-W1969-X1969-Y1969-Z1969-AA1969,0)","v":0}]
[1970,null,null,"SG/CAGE/CAGW",302,"CAGW","ACCT302CAGW",{"$f":"'JAM Download'!E2148+'JAM Download'!E2149+'JAM Download'!E2150+'JAM Download'!E2151+'JAM Download'!E2152","v":40603923.42714794},"I-SG",{"$f":"VLOOKUP($I1970,Func,2)*$H1970","v":34731254.302026778},{"$f":"VLOOKUP($I1970,Func,3)*$H1970","v":5872669.1251211716},{"$f":"VLOOKUP($I1970,Func,5)*$H1970","v":0},{"$f":"VLOOKUP($I1970,Func,6)*$H1970","v":0},{"$f":"VLOOKUP($I1970,Func,7)*$H1970","v":0},null,{"$f":"Demand","v":0.38},{"$f":"+$J1970*$P1970","v":13197876.634770175},{"$f":"+$J1970*(1-$P1970)","v":21533377.667256601},{"$f":"Demand","v":0.38},{"$f":"+$K1970*$S1970","v":2231614.2675460451},{"$f":"+$K1970*(1-$S1970)","v":3641054.8575751265},"PLNT",{"$f":"+$L1970*VLOOKUP($V1970,DisFac,2)","v":0},{"$f":"+$L1970*VLOOKUP($V1970,DisFac,3)","v":0},{"$f":"+$L1970*VLOOKUP($V1970,DisFac,4)","v":0},{"$f":"+$L1970*VLOOKUP($V1970,DisFac,5)","v":0},{"$f":"+$L1970*VLOOKUP($V1970,DisFac,6)","v":0},0,"UACCT301SG",{"$f":"ROUND(SUM(-H1970,J1970:N1970),0)","v":0},{"$f":"ROUND(J1970-Q1970-R1970,0)","v":0},{"$f":"ROUND(K1970-T1970-U1970,0)","v":0},{"$f":"ROUND(L1970-W1970-X1970-Y1970-Z1970-AA1970,0)","v":0}]
[1971,null,null,"DGP",302,"DGP","ACCT302DGP",{"$f":"'JAM Download'!E2153","v":0},"I-DGP",{"$f":"VLOOKUP($I1971,Func,2)*$H1971","v":0},{"$f":"VLOOKUP($I1971,Func,3)*$H1971","v":0},{"$f":"VLOOKUP($I1971,Func,5)*$H1971","v":0},{"$f":"VLOOKUP($I1971,Func,6)*$H1971","v":0},{"$f":"VLOOKUP($I1971,Func,7)*$H1971","v":0},null,{"$f":"Demand","v":0.38},{"$f":"+$J1971*$P1971","v":0},{"$f":"+$J1971*(1-$P1971)","v":0},{"$f":"Demand","v":0.38},{"$f":"+$K1971*$S1971","v":0},{"$f":"+$K1971*(1-$S1971)","v":0},"PLNT",{"$f":"+$L1971*VLOOKUP($V1971,DisFac,2)","v":0},{"$f":"+$L1971*VLOOKUP($V1971,DisFac,3)","v":0},{"$f":"+$L1971*VLOOKUP($V1971,DisFac,4)","v":0},{"$f":"+$L1971*VLOOKUP($V1971,DisFac,5)","v":0},{"$f":"+$L1971*VLOOKUP($V1971,DisFac,6)","v":0},0,"UACCT302SGP",{"$f":"ROUND(SUM(-H1971,J1971:N1971),0)","v":0},{"$f":"ROUND(J1971-Q1971-R1971,0)","v":0},{"$f":"ROUND(K1971-T1971-U1971,0)","v":0},{"$f":"ROUND(L1971-W1971-X1971-Y1971-Z1971-AA1971,0)","v":0}]
[1972,null,null,"DGU",302,"DGU","ACCT302DGU",{"$f":"'JAM Download'!E2154","v":0},"I-DGU",{"$f":"VLOOKUP($I1972,Func,2)*$H1972","v":0},{"$f":"VLOOKUP($I1972,Func,3)*$H1972","v":0},{"$f":"VLOOKUP($I1972,Func,5)*$H1972","v":0},{"$f":"VLOOKUP($I1972,Func,6)*$H1972","v":0},{"$f":"VLOOKUP($I1972,Func,7)*$H1972","v":0},null,{"$f":"Demand","v":0.38},{"$f":"+$J1972*$P1972","v":0},{"$f":"+$J1972*(1-$P1972)","v":0},{"$f":"Demand","v":0.38},{"$f":"+$K1972*$S1972","v":0},{"$f":"+$K1972*(1-$S1972)","v":0},"PLNT",{"$f":"+$L1972*VLOOKUP($V1972,DisFac,2)","v":0},{"$f":"+$L1972*VLOOKUP($V1972,DisFac,3)","v":0},{"$f":"+$L1972*VLOOKUP($V1972,DisFac,4)","v":0},{"$f":"+$L1972*VLOOKUP($V1972,DisFac,5)","v":0},{"$f":"+$L1972*VLOOKUP($V1972,DisFac,6)","v":0},0,"UACCT302SGU",{"$f":"ROUND(SUM(-H1972,J1972:N1972),0)","v":0},{"$f":"ROUND(J1972-Q1972-R1972,0)","v":0},{"$f":"ROUND(K1972-T1972-U1972,0)","v":0},{"$f":"ROUND(L1972-W1972-X1972-Y1972-Z1972-AA1972,0)","v":0}]
[1973,null,null,null,null,null,"ACCT302",{"$f":"'JAM Download'!E2155","v":40603923.42714794},null,{"$f":"SUM(J1969:J1972)","v":34731254.302026778},{"$f":"SUM(K1969:K1972)","v":5872669.1251211716},{"$f":"SUM(L1969:L1972)","v":0},{"$f":"SUM(M1969:M1972)","v":0},{"$f":"SUM(N1969:N1972)","v":0},null,null,{"$f":"SUM(Q1969:Q1972)","v":13197876.634770175},{"$f":"SUM(R1969:R1972)","v":21533377.667256601},null,{"$f":"SUM(T1969:T1972)","v":2231614.2675460451},{"$f":"SUM(U1969:U1972)","v":3641054.8575751265},null,{"$f":"SUM(W1969:W1972)","v":0},{"$f":"SUM(X1969:X1972)","v":0},{"$f":"SUM(Y1969:Y1972)","v":0},{"$f":"SUM(Z1969:Z1972)","v":0},{"$f":"SUM(AA1969:AA1972)","v":0},0,"UACCT302",{"$f":"ROUND(SUM(-H1973,J1973:N1973),0)","v":0},{"$f":"ROUND(J1973-Q1973-R1973,0)","v":0},{"$f":"ROUND(K1973-T1973-U1973,0)","v":0},{"$f":"ROUND(L1973-W1973-X1973-Y1973-Z1973-AA1973,0)","v":0}]
[1974]
[1975,303,"Miscellaneous Intangible Plant"]
[1976,null,null,"S",303,"S","ACCT303S",{"$f":"'JAM Download'!E2158","v":1465231.81},"I-SITUS",{"$f":"VLOOKUP($I1976,Func,2)*$H1976","v":36952.076759221571},{"$f":"VLOOKUP($I1976,Func,3)*$H1976","v":671786.58425894461},{"$f":"VLOOKUP($I1976,Func,5)*$H1976","v":756493.14898183383},{"$f":"VLOOKUP($I1976,Func,6)*$H1976","v":0},{"$f":"VLOOKUP($I1976,Func,7)*$H1976","v":0},null,{"$f":"Demand","v":0.38},{"$f":"+$J1976*$P1976","v":14041.789168504198},{"$f":"+$J1976*(1-$P1976)","v":22910.287590717373},{"$f":"Demand","v":0.38},{"$f":"+$K1976*$S1976","v":255278.90201839895},{"$f":"+$K1976*(1-$S1976)","v":416507.68224054563},"PLNT",{"$f":"+$L1976*VLOOKUP($V1976,DisFac,2)","v":88872.495462172665},{"$f":"+$L1976*VLOOKUP($V1976,DisFac,3)","v":364067.12147678906},{"$f":"+$L1976*VLOOKUP($V1976,DisFac,4)","v":184628.28655174168},{"$f":"+$L1976*VLOOKUP($V1976,DisFac,5)","v":21385.075720924408},{"$f":"+$L1976*VLOOKUP($V1976,DisFac,6)","v":97540.169770206005},21385.075720924408,"UACCT303S",{"$f":"ROUND(SUM(-H1976,J1976:N1976),0)","v":0},{"$f":"ROUND(J1976-Q1976-R1976,0)","v":0},{"$f":"ROUND(K1976-T1976-U1976,0)","v":0},{"$f":"ROUND(L1976-W1976-X1976-Y1976-Z1976-AA1976,0)","v":0}]
[1977,null,null,"SG/CAGW",303,"CAGW","ACCT303CAGW",{"$f":"'JAM Download'!E2159+'JAM Download'!E2163","v":16543320.479094382},"I-SG",14150609.64712574,2392710.8319686465,0,0,0,null,0.38,5377231.6659077816,8773377.981217958,0.38,909230.11614808568,1483480.7158205609,"PLNT",0,0,0,0,0,0,"UACCT303SG",0,0,0,0]
[1978,null,null,"SO",303,"SO","ACCT303SO",{"$f":"'JAM Download'!E2160","v":26261795.412689157},"PTD",13365081.558897242,5172216.6747743553,7724497.1790175606,0,0,null,0.38,5078730.9923809525,8286350.5665162895,0.38,1965442.336414255,3206774.3383601001,"PLNT",907470.66435929993,3717463.2137852088,1885226.1657032161,218361.471351969,995975.66381786671,218361.471351969,"UACCT303SO",0,0,0,0]
[1979,null,null,"SE",303,"SE","ACCT303SE",{"$f":"'JAM Download'!E2161","v":0},"P",0,0,0,0,0,null,0.38,0,0,0.38,0,0,"PLNT",0,0,0,0,0,0,"UACCT303SE",0,0,0,0]
[1980,null,null,"CN",303,"CN","ACCT303CN",{"$f":"'JAM Download'!E2162","v":8509282.5923934299},"CUST",0,0,0,8509282.5923934299,0,null,0.38,0,0,0.38,0,0,"CUST",0,0,0,0,0,0,"UACCT303CN",0,0,0,0]
[{"$f":"A1980+1","v":1981},null,null,"DGU",303,"DGU","ACCT303DGU",0,"I-DGU",0,0,0,0,0,null,0.38,0,0,0.38,0,0,"PLNT",0,0,0,0,0,0,"UACCT303SGU",0,0,0,0]
[1982,null,null,"DGP",303,"DGP","ACCT303DGP",0,"I-DGP",0,0,0,0,0,null,0.38,0,0,0.38,0,0,"PLNT",0,0,0,0,0,0,"UACCT303SSGCT",0,0,0,0]
[1983,null,null,"JBG",303,"JBG","ACCT303JBG",{"$f":"'JAM Download'!E2165","v":10662.676564370302},"I-SG",9120.5011742733041,1542.1753900969991,0,0,0,null,0.38,3465.7904462238557,5654.7107280494483,0.38,586.02664823685961,956.14874186013947,"PLNT",0,0,0,0,0,0,"UACCT303SSGCH",0,0,0,0]
[1984,null,null,null,null,null,"ACCT303",{"$f":"'JAM Download'!E2170","v":52790292.970741339},null,{"$f":"SUM(J1976:J1983)","v":27561763.783956479},{"$f":"SUM(K1976:K1983)","v":8238256.2663920438},{"$f":"SUM(L1976:L1983)","v":8480990.3279993944},{"$f":"SUM(M1976:M1983)","v":8509282.5923934299},{"$f":"SUM(N1976:N1983)","v":0},null,null,{"$f":"SUM(Q1976:Q1983)","v":10473470.237903463},{"$f":"SUM(R1976:R1983)","v":17088293.546053015},null,{"$f":"SUM(T1976:T1983)","v":3130537.3812289764},{"$f":"SUM(U1976:U1983)","v":5107718.8851630669},null,{"$f":"SUM(W1976:W1983)","v":996343.1598214726},{"$f":"SUM(X1976:X1983)","v":4081530.3352619978},{"$f":"SUM(Y1976:Y1983)","v":2069854.4522549578},{"$f":"SUM(Z1976:Z1983)","v":239746.54707289342},{"$f":"SUM(AA1976:AA1983)","v":1093515.8335880728},239746.54707289342,null,0,0,0,0]
[1985,303,"Less Non-Utility Plant"]
[1986,null,null,"DOTH",303,"S","ACCT399DOTH",{"$f":"'JAM Download'!E2172","v":0},"I-SITUS",{"$f":"VLOOKUP($I1986,Func,2)*$H1986","v":0},{"$f":"VLOOKUP($I1986,Func,3)*$H1986","v":0},{"$f":"VLOOKUP($I1986,Func,5)*$H1986","v":0},{"$f":"VLOOKUP($I1986,Func,6)*$H1986","v":0},{"$f":"VLOOKUP($I1986,Func,7)*$H1986","v":0},null,{"$f":"Demand","v":0.38},{"$f":"+$J1986*$P1986","v":0},{"$f":"+$J1986*(1-$P1986)","v":0},{"$f":"Demand","v":0.38},{"$f":"+$K1986*$S1986","v":0},{"$f":"+$K1986*(1-$S1986)","v":0},"PLNT",{"$f":"+$L1986*VLOOKUP($V1986,DisFac,2)","v":0},{"$f":"+$L1986*VLOOKUP($V1986,DisFac,3)","v":0},{"$f":"+$L1986*VLOOKUP($V1986,DisFac,4)","v":0},{"$f":"+$L1986*VLOOKUP($V1986,DisFac,5)","v":0},{"$f":"+$L1986*VLOOKUP($V1986,DisFac,6)","v":0},0,"UACCT399DOTH",{"$f":"ROUND(SUM(-H1986,J1986:N1986),0)","v":0},{"$f":"ROUND(J1986-Q1986-R1986,0)","v":0},{"$f":"ROUND(K1986-T1986-U1986,0)","v":0},{"$f":"ROUND(L1986-W1986-X1986-Y1986-Z1986-AA1986,0)","v":0}]
[1987,null,null,null,null,null,"ACCT303",{"$f":"'JAM Download'!E2173","v":52790292.970741339},null,{"$f":"SUM(J1984:J1986)","v":27561763.783956479},{"$f":"SUM(K1984:K1986)","v":8238256.2663920438},{"$f":"SUM(L1984:L1986)","v":8480990.3279993944},{"$f":"SUM(M1984:M1986)","v":8509282.5923934299},{"$f":"SUM(N1984:N1986)","v":0},null,null,{"$f":"SUM(Q1984:Q1986)","v":10473470.237903463},{"$f":"SUM(R1984:R1986)","v":17088293.546053015},null,{"$f":"SUM(T1984:T1986)","v":3130537.3812289764},{"$f":"SUM(U1984:U1986)","v":5107718.8851630669},null,{"$f":"SUM(W1984:W1986)","v":996343.1598214726},{"$f":"SUM(X1984:X1986)","v":4081530.3352619978},{"$f":"SUM(Y1984:Y1986)","v":2069854.4522549578},{"$f":"SUM(Z1984:Z1986)","v":239746.54707289342},{"$f":"SUM(AA1984:AA1986)","v":1093515.8335880728},239746.54707289342,"UACCT303",{"$f":"ROUND(SUM(-H1987,J1987:N1987),0)","v":0},{"$f":"ROUND(J1987-Q1987-R1987,0)","v":0},{"$f":"ROUND(K1987-T1987-U1987,0)","v":0},{"$f":"ROUND(L1987-W1987-X1987-Y1987-Z1987-AA1987,0)","v":0}]
[1988,"IP","Unclassified Intangible Plant - Acct 300"]
[1989,null,null,"S",300,"S","ACCTI00S",{"$f":"'JAM Download'!E2175","v":0},"I-SITUS",{"$f":"VLOOKUP($I1989,Func,2)*$H1989","v":0},{"$f":"VLOOKUP($I1989,Func,3)*$H1989","v":0},{"$f":"VLOOKUP($I1989,Func,5)*$H1989","v":0},{"$f":"VLOOKUP($I1989,Func,6)*$H1989","v":0},{"$f":"VLOOKUP($I1989,Func,7)*$H1989","v":0},null,{"$f":"Demand","v":0.38},{"$f":"+$J1989*$P1989","v":0},{"$f":"+$J1989*(1-$P1989)","v":0},{"$f":"Demand","v":0.38},{"$f":"+$K1989*$S1989","v":0},{"$f":"+$K1989*(1-$S1989)","v":0},"PLNT",{"$f":"+$L1989*VLOOKUP($V1989,DisFac,2)","v":0},{"$f":"+$L1989*VLOOKUP($V1989,DisFac,3)","v":0},{"$f":"+$L1989*VLOOKUP($V1989,DisFac,4)","v":0},{"$f":"+$L1989*VLOOKUP($V1989,DisFac,5)","v":0},{"$f":"+$L1989*VLOOKUP($V1989,DisFac,6)","v":0},0,"UACCTI00S",{"$f":"ROUND(SUM(-H1989,J1989:N1989),0)","v":0},{"$f":"ROUND(J1989-Q1989-R1989,0)","v":0},{"$f":"ROUND(K1989-T1989-U1989,0)","v":0},{"$f":"ROUND(L1989-W1989-X1989-Y1989-Z1989-AA1989,0)","v":0}]
[1990,null,null,"SG",300,"SG","ACCTI00SG",{"$f":"'JAM Download'!E2176","v":0},"I-SG",{"$f":"VLOOKUP($I1990,Func,2)*$H1990","v":0},{"$f":"VLOOKUP($I1990,Func,3)*$H1990","v":0},{"$f":"VLOOKUP($I1990,Func,5)*$H1990","v":0},{"$f":"VLOOKUP($I1990,Func,6)*$H1990","v":0},{"$f":"VLOOKUP($I1990,Func,7)*$H1990","v":0},null,{"$f":"Demand","v":0.38},{"$f":"+$J1990*$P1990","v":0},{"$f":"+$J1990*(1-$P1990)","v":0},{"$f":"Demand","v":0.38},{"$f":"+$K1990*$S1990","v":0},{"$f":"+$K1990*(1-$S1990)","v":0},"PLNT",{"$f":"+$L1990*VLOOKUP($V1990,DisFac,2)","v":0},{"$f":"+$L1990*VLOOKUP($V1990,DisFac,3)","v":0},{"$f":"+$L1990*VLOOKUP($V1990,DisFac,4)","v":0},{"$f":"+$L1990*VLOOKUP($V1990,DisFac,5)","v":0},{"$f":"+$L1990*VLOOKUP($V1990,DisFac,6)","v":0},0,"UACCTI00SGP",{"$f":"ROUND(SUM(-H1990,J1990:N1990),0)","v":0},{"$f":"ROUND(J1990-Q1990-R1990,0)","v":0},{"$f":"ROUND(K1990-T1990-U1990,0)","v":0},{"$f":"ROUND(L1990-W1990-X1990-Y1990-Z1990-AA1990,0)","v":0}]
[1991,null,null,"DGU",300,"DGU","ACCTI00DGU",{"$f":"'JAM Download'!E2177","v":0},"I-DGU",{"$f":"VLOOKUP($I1991,Func,2)*$H1991","v":0},{"$f":"VLOOKUP($I1991,Func,3)*$H1991","v":0},{"$f":"VLOOKUP($I1991,Func,5)*$H1991","v":0},{"$f":"VLOOKUP($I1991,Func,6)*$H1991","v":0},{"$f":"VLOOKUP($I1991,Func,7)*$H1991","v":0},null,{"$f":"Demand","v":0.38},{"$f":"+$J1991*$P1991","v":0},{"$f":"+$J1991*(1-$P1991)","v":0},{"$f":"Demand","v":0.38},{"$f":"+$K1991*$S1991","v":0},{"$f":"+$K1991*(1-$S1991)","v":0},"PLNT",{"$f":"+$L1991*VLOOKUP($V1991,DisFac,2)","v":0},{"$f":"+$L1991*VLOOKUP($V1991,DisFac,3)","v":0},{"$f":"+$L1991*VLOOKUP($V1991,DisFac,4)","v":0},{"$f":"+$L1991*VLOOKUP($V1991,DisFac,5)","v":0},{"$f":"+$L1991*VLOOKUP($V1991,DisFac,6)","v":0},0,"UACCTI00SGU",{"$f":"ROUND(SUM(-H1991,J1991:N1991),0)","v":0},{"$f":"ROUND(J1991-Q1991-R1991,0)","v":0},{"$f":"ROUND(K1991-T1991-U1991,0)","v":0},{"$f":"ROUND(L1991-W1991-X1991-Y1991-Z1991-AA1991,0)","v":0}]
[1992,null,null,"SO",300,"SO","ACCTI00SO",{"$f":"'JAM Download'!E2178","v":0},"PTD",{"$f":"VLOOKUP($I1992,Func,2)*$H1992","v":0},{"$f":"VLOOKUP($I1992,Func,3)*$H1992","v":0},{"$f":"VLOOKUP($I1992,Func,5)*$H1992","v":0},{"$f":"VLOOKUP($I1992,Func,6)*$H1992","v":0},{"$f":"VLOOKUP($I1992,Func,7)*$H1992","v":0},null,{"$f":"Demand","v":0.38},{"$f":"+$J1992*$P1992","v":0},{"$f":"+$J1992*(1-$P1992)","v":0},{"$f":"Demand","v":0.38},{"$f":"+$K1992*$S1992","v":0},{"$f":"+$K1992*(1-$S1992)","v":0},"PLNT",{"$f":"+$L1992*VLOOKUP($V1992,DisFac,2)","v":0},{"$f":"+$L1992*VLOOKUP($V1992,DisFac,3)","v":0},{"$f":"+$L1992*VLOOKUP($V1992,DisFac,4)","v":0},{"$f":"+$L1992*VLOOKUP($V1992,DisFac,5)","v":0},{"$f":"+$L1992*VLOOKUP($V1992,DisFac,6)","v":0},0,"UACCTI00SO",{"$f":"ROUND(SUM(-H1992,J1992:N1992),0)","v":0},{"$f":"ROUND(J1992-Q1992-R1992,0)","v":0},{"$f":"ROUND(K1992-T1992-U1992,0)","v":0},{"$f":"ROUND(L1992-W1992-X1992-Y1992-Z1992-AA1992,0)","v":0}]
[1993,null,null,null,null,null,"ACCTI00",{"$f":"'JAM Download'!E2179","v":0},null,{"$f":"SUM(J1989:J1992)","v":0},{"$f":"SUM(K1989:K1992)","v":0},{"$f":"SUM(L1989:L1992)","v":0},{"$f":"SUM(M1989:M1992)","v":0},{"$f":"SUM(N1989:N1992)","v":0},null,null,{"$f":"SUM(Q1989:Q1992)","v":0},{"$f":"SUM(R1989:R1992)","v":0},null,{"$f":"SUM(T1989:T1992)","v":0},{"$f":"SUM(U1989:U1992)","v":0},null,{"$f":"SUM(W1989:W1992)","v":0},{"$f":"SUM(X1989:X1992)","v":0},{"$f":"SUM(Y1989:Y1992)","v":0},{"$f":"SUM(Z1989:Z1992)","v":0},{"$f":"SUM(AA1989:AA1992)","v":0},0,"UACCTI00",{"$f":"ROUND(SUM(-H1993,J1993:N1993),0)","v":0},{"$f":"ROUND(J1993-Q1993-R1993,0)","v":0},{"$f":"ROUND(K1993-T1993-U1993,0)","v":0},{"$f":"ROUND(L1993-W1993-X1993-Y1993-Z1993-AA1993,0)","v":0}]
[1994]
[1995,"TOTAL INTANGIBLE PLANT",null,null,null,null,null,{"$f":"'JAM Download'!E2181","v":93394216.397889271},null,{"$f":"+J1987+J1973+J1967+J1993","v":62293018.085983261},{"$f":"+K1987+K1973+K1967+K1993","v":14110925.391513215},{"$f":"+L1987+L1973+L1967+L1993","v":8480990.3279993944},{"$f":"+M1987+M1973+M1967+M1993","v":8509282.5923934299},{"$f":"+N1987+N1973+N1967+N1993","v":0},null,null,{"$f":"+Q1987+Q1973+Q1967+Q1993","v":23671346.872673638},{"$f":"+R1987+R1973+R1967+R1993","v":38621671.213309616},null,{"$f":"+T1987+T1973+T1967+T1993","v":5362151.6487750215},{"$f":"+U1987+U1973+U1967+U1993","v":8748773.7427381929},null,{"$f":"+W1987+W1973+W1967+W1993","v":996343.1598214726},{"$f":"+X1987+X1973+X1967+X1993","v":4081530.3352619978},{"$f":"+Y1987+Y1973+Y1967+Y1993","v":2069854.4522549578},{"$f":"+Z1987+Z1973+Z1967+Z1993","v":239746.54707289342},{"$f":"+AA1987+AA1973+AA1967+AA1993","v":1093515.8335880728},239746.54707289342,null,{"$f":"ROUND(SUM(-H1995,J1995:N1995),0)","v":0},{"$f":"ROUND(J1995-Q1995-R1995,0)","v":0},{"$f":"ROUND(K1995-T1995-U1995,0)","v":0},{"$f":"ROUND(L1995-W1995-X1995-Y1995-Z1995-AA1995,0)","v":0}]
[1996]
[1997]
[1998,"TOTAL ELECTRIC PLANT IN SERVICE",null,null,null,null,null,{"$f":"'JAM Download'!E2212","v":1655504559.060895},null,{"$f":"+J1995+J1957+J1793+J1688+J1615","v":883089392.36522698},{"$f":"+K1995+K1957+K1793+K1688+K1615","v":303513053.25131756},{"$f":"+L1995+L1957+L1793+L1688+L1615","v":458649616.57378644},{"$f":"+M1995+M1957+M1793+M1688+M1615","v":10252496.870564088},{"$f":"+N1995+N1957+N1793+N1688+N1615","v":0},null,null,{"$f":"+Q1995+Q1957+Q1793+Q1688+Q1615","v":335573969.09878629},{"$f":"+R1995+R1957+R1793+R1688+R1615","v":547515423.26644075},null,{"$f":"+T1995+T1957+T1793+T1688+T1615","v":115334951.46732558},{"$f":"+U1995+U1957+U1793+U1688+U1615","v":188178101.78399199},null,{"$f":"+W1995+W1957+W1793+W1688+W1615","v":54262544.629029073},{"$f":"+X1995+X1957+X1793+X1688+X1615","v":222287090.33499512},{"$f":"+Y1995+Y1957+Y1793+Y1688+Y1615","v":110757425.08891532},{"$f":"+Z1995+Z1957+Z1793+Z1688+Z1615","v":12828781.366160188},{"$f":"+AA1995+AA1957+AA1793+AA1688+AA1615","v":58513775.154686674},12828781.366160188,null,{"$f":"ROUND(SUM(-H1998,J1998:N1998),0)","v":0},{"$f":"ROUND(J1998-Q1998-R1998,0)","v":0},{"$f":"ROUND(K1998-T1998-U1998,0)","v":0},{"$f":"ROUND(L1998-W1998-X1998-Y1998-Z1998-AA1998,0)","v":0}]
[1999]
[2000]
[2001]
[2002,"FERC",null,"DESCRIPTION &","FERC",null,"RANGE",{"$f":"+$H$250","v":"Jurisdictional"},"FUNC","GEN","TRN","DIS","RETAIL","MISC",null,"D / E","GEN","GEN","D / E","TRN","TRN","DIS","DIS","DIS","DIS","DIS","DIS","DIS","Unbundled ACCT:","Function","Generation","Transmission","Distribution"]
[2003,"ACCT",null,"CONSENSUS FACTOR","ACCT","FACTOR","NAME","ADJ Total","FACTOR","TOTAL","TOTAL","TOTAL","TOTAL","TOTAL",null,"SPLIT","DEMAND","ENERGY","SPLIT","DEMAND","ENERGY","SPLIT","SUBS","P & C","XFMR","METER","SERVICE","METER","TOTAL","Check","Check","Check","Check"]
[2004,105,"Plant Held For Future Use"]
[2005,null,null,"S",105,"S","ACCT105S",{"$f":"'JAM Download'!E2231","v":0},"DPW",{"$f":"VLOOKUP($I2005,Func,2)*$H2005","v":0},{"$f":"VLOOKUP($I2005,Func,3)*$H2005","v":0},{"$f":"VLOOKUP($I2005,Func,5)*$H2005","v":0},{"$f":"VLOOKUP($I2005,Func,6)*$H2005","v":0},{"$f":"VLOOKUP($I2005,Func,7)*$H2005","v":0},null,{"$f":"Demand","v":0.38},{"$f":"+$J2005*$P2005","v":0},{"$f":"+$J2005*(1-$P2005)","v":0},{"$f":"Demand","v":0.38},{"$f":"+$K2005*$S2005","v":0},{"$f":"+$K2005*(1-$S2005)","v":0},"PLNT",{"$f":"+$L2005*VLOOKUP($V2005,DisFac,2)","v":0},{"$f":"+$L2005*VLOOKUP($V2005,DisFac,3)","v":0},{"$f":"+$L2005*VLOOKUP($V2005,DisFac,4)","v":0},{"$f":"+$L2005*VLOOKUP($V2005,DisFac,5)","v":0},{"$f":"+$L2005*VLOOKUP($V2005,DisFac,6)","v":0},0,"UACCT105S",{"$f":"ROUND(SUM(-H2005,J2005:N2005),0)","v":0},{"$f":"ROUND(J2005-Q2005-R2005,0)","v":0},{"$f":"ROUND(K2005-T2005-U2005,0)","v":0},{"$f":"ROUND(L2005-W2005-X2005-Y2005-Z2005-AA2005,0)","v":0}]
[2006,null,null,"SG/CAGE/CAGW",105,"CAGW","ACCT105CAGW",{"$f":"'JAM Download'!E2232+'JAM Download'!E2237","v":38221.431854599628},"P",38221.431854599628,0,0,0,0,null,0.38,14524.144104747858,23697.28774985177,0.38,0,0,"PLNT",0,0,0,0,0,0,"UACCT105SNPPS",0,0,0,0]
[2007,null,null,"DNPT",105,"SNPT","ACCT105SNPT",0,"T",0,0,0,0,0,null,0.38,0,0,0.38,0,0,"PLNT",0,0,0,0,0,0,"UACCT105SNPT",0,0,0,0]
[2008,null,null,"DNPPOP",105,"SNPP","ACCT105SNPP",0,"P",0,0,0,0,0,null,0.38,0,0,0.38,0,0,"PLNT",0,0,0,0,0,0,"UACCT105SNPPO",0,0,0,0]
[2009,null,null,"SE/CAEE/CAEW",105,"SE","ACCT105SE",{"$f":"'JAM Download'!E2235","v":5533.8414833463366},"P",5533.8414833463366,0,0,0,0,null,0.38,2102.8597636716081,3430.9817196747285,0.38,0,0,"PLNT",0,0,0,0,0,0,"UACCT105SEU",0,0,0,0]
[2010,null,null,"DNPG",105,"SNPG","ACCT105SNPG",0,"G",0,0,0,0,0,null,0.38,0,0,0.38,0,0,"PLNT",0,0,0,0,0,0,"UACCT105DNPG",0,0,0,0]
[2011,null,null,null,null,null,"ACCT105",{"$f":"'JAM Download'!E2241","v":43755.273337945968},null,{"$f":"SUM(J2005:J2010)","v":43755.273337945968},{"$f":"SUM(K2005:K2010)","v":0},{"$f":"SUM(L2005:L2010)","v":0},{"$f":"SUM(M2005:M2010)","v":0},{"$f":"SUM(N2005:N2010)","v":0},null,null,{"$f":"SUM(Q2005:Q2010)","v":16627.003868419466},{"$f":"SUM(R2005:R2010)","v":27128.269469526498},null,{"$f":"SUM(T2005:T2010)","v":0},{"$f":"SUM(U2005:U2010)","v":0},null,{"$f":"SUM(W2005:W2010)","v":0},{"$f":"SUM(X2005:X2010)","v":0},{"$f":"SUM(Y2005:Y2010)","v":0},{"$f":"SUM(Z2005:Z2010)","v":0},{"$f":"SUM(AA2005:AA2010)","v":0},0,"UACCT105",0,0,0,0]
[2012]
[2013,114,"Electric Plant Acquisition Adjustments"]
[2014,null,null,"S","114/115","S","ACCT114S",{"$f":"'JAM Download'!E2244+'JAM Download'!E2252","v":0},"P",{"$f":"VLOOKUP($I2014,Func,2)*$H2014","v":0},{"$f":"VLOOKUP($I2014,Func,3)*$H2014","v":0},{"$f":"VLOOKUP($I2014,Func,5)*$H2014","v":0},{"$f":"VLOOKUP($I2014,Func,6)*$H2014","v":0},{"$f":"VLOOKUP($I2014,Func,7)*$H2014","v":0},null,{"$f":"Demand","v":0.38},{"$f":"+$J2014*$P2014","v":0},{"$f":"+$J2014*(1-$P2014)","v":0},{"$f":"Demand","v":0.38},{"$f":"+$K2014*$S2014","v":0},{"$f":"+$K2014*(1-$S2014)","v":0},"PLNT",{"$f":"+$L2014*VLOOKUP($V2014,DisFac,2)","v":0},{"$f":"+$L2014*VLOOKUP($V2014,DisFac,3)","v":0},{"$f":"+$L2014*VLOOKUP($V2014,DisFac,4)","v":0},{"$f":"+$L2014*VLOOKUP($V2014,DisFac,5)","v":0},{"$f":"+$L2014*VLOOKUP($V2014,DisFac,6)","v":0},0,"UACCT114S",{"$f":"ROUND(SUM(-H2014,J2014:N2014),0)","v":0},{"$f":"ROUND(J2014-Q2014-R2014,0)","v":0},{"$f":"ROUND(K2014-T2014-U2014,0)","v":0},{"$f":"ROUND(L2014-W2014-X2014-Y2014-Z2014-AA2014,0)","v":0}]
[2015,null,null,"SG/CAGE/CAGW","114/115","CAGW","ACCT114CAGW",{"$f":"'JAM Download'!E2245+'JAM Download'!E2253","v":0},"P",{"$f":"VLOOKUP($I2015,Func,2)*$H2015","v":0},{"$f":"VLOOKUP($I2015,Func,3)*$H2015","v":0},{"$f":"VLOOKUP($I2015,Func,5)*$H2015","v":0},{"$f":"VLOOKUP($I2015,Func,6)*$H2015","v":0},{"$f":"VLOOKUP($I2015,Func,7)*$H2015","v":0},null,{"$f":"Demand","v":0.38},{"$f":"+$J2015*$P2015","v":0},{"$f":"+$J2015*(1-$P2015)","v":0},{"$f":"Demand","v":0.38},{"$f":"+$K2015*$S2015","v":0},{"$f":"+$K2015*(1-$S2015)","v":0},"PLNT",{"$f":"+$L2015*VLOOKUP($V2015,DisFac,2)","v":0},{"$f":"+$L2015*VLOOKUP($V2015,DisFac,3)","v":0},{"$f":"+$L2015*VLOOKUP($V2015,DisFac,4)","v":0},{"$f":"+$L2015*VLOOKUP($V2015,DisFac,5)","v":0},{"$f":"+$L2015*VLOOKUP($V2015,DisFac,6)","v":0},0,"UACCT114SG",{"$f":"ROUND(SUM(-H2015,J2015:N2015),0)","v":0},{"$f":"ROUND(J2015-Q2015-R2015,0)","v":0},{"$f":"ROUND(K2015-T2015-U2015,0)","v":0},{"$f":"ROUND(L2015-W2015-X2015-Y2015-Z2015-AA2015,0)","v":0}]
[2016,null,null,"DGP","114/115","DGP","ACCT114DGP",{"$f":"+'JAM Download'!E2248+'JAM Download'!E2256","v":0},"P",{"$f":"VLOOKUP($I2016,Func,2)*$H2016","v":0},{"$f":"VLOOKUP($I2016,Func,3)*$H2016","v":0},{"$f":"VLOOKUP($I2016,Func,5)*$H2016","v":0},{"$f":"VLOOKUP($I2016,Func,6)*$H2016","v":0},{"$f":"VLOOKUP($I2016,Func,7)*$H2016","v":0},null,{"$f":"Demand","v":0.38},{"$f":"+$J2016*$P2016","v":0},{"$f":"+$J2016*(1-$P2016)","v":0},{"$f":"Demand","v":0.38},{"$f":"+$K2016*$S2016","v":0},{"$f":"+$K2016*(1-$S2016)","v":0},"PLNT",{"$f":"+$L2016*VLOOKUP($V2016,DisFac,2)","v":0},{"$f":"+$L2016*VLOOKUP($V2016,DisFac,3)","v":0},{"$f":"+$L2016*VLOOKUP($V2016,DisFac,4)","v":0},{"$f":"+$L2016*VLOOKUP($V2016,DisFac,5)","v":0},{"$f":"+$L2016*VLOOKUP($V2016,DisFac,6)","v":0},0,"UACCT114DGP",{"$f":"ROUND(SUM(-H2016,J2016:N2016),0)","v":0},{"$f":"ROUND(J2016-Q2016-R2016,0)","v":0},{"$f":"ROUND(K2016-T2016-U2016,0)","v":0},{"$f":"ROUND(L2016-W2016-X2016-Y2016-Z2016-AA2016,0)","v":0}]
[2017,null,null,null,null,null,"ACCT114",{"$f":"'JAM Download'!E2249+'JAM Download'!E2257","v":0},null,{"$f":"SUM(J2014:J2016)","v":0},{"$f":"SUM(K2014:K2016)","v":0},{"$f":"SUM(L2014:L2016)","v":0},{"$f":"SUM(M2014:M2016)","v":0},{"$f":"SUM(N2014:N2016)","v":0},null,null,{"$f":"SUM(Q2014:Q2016)","v":0},{"$f":"SUM(R2014:R2016)","v":0},null,{"$f":"SUM(T2014:T2016)","v":0},{"$f":"SUM(U2014:U2016)","v":0},null,{"$f":"SUM(W2014:W2016)","v":0},{"$f":"SUM(X2014:X2016)","v":0},{"$f":"SUM(Y2014:Y2016)","v":0},{"$f":"SUM(Z2014:Z2016)","v":0},{"$f":"SUM(AA2014:AA2016)","v":0},0,"UACCT114",{"$f":"ROUND(SUM(-H2017,J2017:N2017),0)","v":0},{"$f":"ROUND(J2017-Q2017-R2017,0)","v":0},{"$f":"ROUND(K2017-T2017-U2017,0)","v":0},{"$f":"ROUND(L2017-W2017-X2017-Y2017-Z2017-AA2017,0)","v":0}]
[2018]
[2019]
[2020,120,"Nuclear Fuel","SE",120,"SE","ACCT120SE",{"$f":"'JAM Download'!E2260","v":0},"P",{"$f":"VLOOKUP($I2020,Func,2)*$H2020","v":0},{"$f":"VLOOKUP($I2020,Func,3)*$H2020","v":0},{"$f":"VLOOKUP($I2020,Func,5)*$H2020","v":0},{"$f":"VLOOKUP($I2020,Func,6)*$H2020","v":0},{"$f":"VLOOKUP($I2020,Func,7)*$H2020","v":0},null,{"$f":"Demand","v":0.38},{"$f":"+$J2020*$P2020","v":0},{"$f":"+$J2020*(1-$P2020)","v":0},{"$f":"Demand","v":0.38},{"$f":"+$K2020*$S2020","v":0},{"$f":"+$K2020*(1-$S2020)","v":0},"PLNT",{"$f":"+$L2020*VLOOKUP($V2020,DisFac,2)","v":0},{"$f":"+$L2020*VLOOKUP($V2020,DisFac,3)","v":0},{"$f":"+$L2020*VLOOKUP($V2020,DisFac,4)","v":0},{"$f":"+$L2020*VLOOKUP($V2020,DisFac,5)","v":0},{"$f":"+$L2020*VLOOKUP($V2020,DisFac,6)","v":0},0,"UACCT120SE",{"$f":"ROUND(SUM(-H2020,J2020:N2020),0)","v":0},{"$f":"ROUND(J2020-Q2020-R2020,0)","v":0},{"$f":"ROUND(K2020-T2020-U2020,0)","v":0},{"$f":"ROUND(L2020-W2020-X2020-Y2020-Z2020-AA2020,0)","v":0}]
[2021,null,null,null,null,null,"ACCT120",{"$f":"'JAM Download'!E2261","v":0},null,{"$f":"SUM(J2020)","v":0},{"$f":"SUM(K2020)","v":0},{"$f":"SUM(L2020)","v":0},{"$f":"SUM(M2020)","v":0},{"$f":"SUM(N2020)","v":0},null,null,{"$f":"SUM(Q2020)","v":0},{"$f":"SUM(R2020)","v":0},null,{"$f":"SUM(T2020)","v":0},{"$f":"SUM(U2020)","v":0},null,{"$f":"SUM(W2020)","v":0},{"$f":"SUM(X2020)","v":0},{"$f":"SUM(Y2020)","v":0},{"$f":"SUM(Z2020)","v":0},{"$f":"SUM(AA2020)","v":0},0,"UACCT120",{"$f":"ROUND(SUM(-H2021,J2021:N2021),0)","v":0},{"$f":"ROUND(J2021-Q2021-R2021,0)","v":0},{"$f":"ROUND(K2021-T2021-U2021,0)","v":0},{"$f":"ROUND(L2021-W2021-X2021-Y2021-Z2021-AA2021,0)","v":0}]
[2022]
[2023,124,"Weatherization"]
[2024,null,null,"S",124,"S","ACCT124S",{"$f":"'JAM Download'!E2264","v":1958027.4445833301},"DMSC",{"$f":"VLOOKUP($I2024,Func,2)*$H2024","v":0},{"$f":"VLOOKUP($I2024,Func,3)*$H2024","v":0},{"$f":"VLOOKUP($I2024,Func,5)*$H2024","v":0},{"$f":"VLOOKUP($I2024,Func,6)*$H2024","v":0},{"$f":"VLOOKUP($I2024,Func,7)*$H2024","v":1958027.4445833301},null,{"$f":"+Demand","v":0.38},{"$f":"+$J2024*$P2024","v":0},{"$f":"+$J2024*(1-$P2024)","v":0},{"$f":"+Demand","v":0.38},{"$f":"+$K2024*$S2024","v":0},{"$f":"+$K2024*(1-$S2024)","v":0},"MISC",{"$f":"+$L2024*VLOOKUP($V2024,DisFac,2)","v":0},{"$f":"+$L2024*VLOOKUP($V2024,DisFac,3)","v":0},{"$f":"+$L2024*VLOOKUP($V2024,DisFac,4)","v":0},{"$f":"+$L2024*VLOOKUP($V2024,DisFac,5)","v":0},{"$f":"+$L2024*VLOOKUP($V2024,DisFac,6)","v":0},0,"UACCT124S",{"$f":"ROUND(SUM(-H2024,J2024:N2024),0)","v":0},{"$f":"ROUND(J2024-Q2024-R2024,0)","v":0},{"$f":"ROUND(K2024-T2024-U2024,0)","v":0},{"$f":"ROUND(L2024-W2024-X2024-Y2024-Z2024-AA2024,0)","v":0}]
[2025,null,null,"SO",124,"SO","ACCT124SO",{"$f":"'JAM Download'!E2265","v":-305.1190918783978},"DMSC",{"$f":"VLOOKUP($I2025,Func,2)*$H2025","v":0},{"$f":"VLOOKUP($I2025,Func,3)*$H2025","v":0},{"$f":"VLOOKUP($I2025,Func,5)*$H2025","v":0},{"$f":"VLOOKUP($I2025,Func,6)*$H2025","v":0},{"$f":"VLOOKUP($I2025,Func,7)*$H2025","v":-305.1190918783978},null,{"$f":"+Demand","v":0.38},{"$f":"+$J2025*$P2025","v":0},{"$f":"+$J2025*(1-$P2025)","v":0},{"$f":"+Demand","v":0.38},{"$f":"+$K2025*$S2025","v":0},{"$f":"+$K2025*(1-$S2025)","v":0},"MISC",{"$f":"+$L2025*VLOOKUP($V2025,DisFac,2)","v":0},{"$f":"+$L2025*VLOOKUP($V2025,DisFac,3)","v":0},{"$f":"+$L2025*VLOOKUP($V2025,DisFac,4)","v":0},{"$f":"+$L2025*VLOOKUP($V2025,DisFac,5)","v":0},{"$f":"+$L2025*VLOOKUP($V2025,DisFac,6)","v":0},0,"UACCT124SO",{"$f":"ROUND(SUM(-H2025,J2025:N2025),0)","v":0},{"$f":"ROUND(J2025-Q2025-R2025,0)","v":0},{"$f":"ROUND(K2025-T2025-U2025,0)","v":0},{"$f":"ROUND(L2025-W2025-X2025-Y2025-Z2025-AA2025,0)","v":0}]
[2026,null,null,null,null,null,"ACCT124",{"$f":"'JAM Download'!E2266","v":1957722.3254914517},null,{"$f":"SUM(J2024:J2025)","v":0},{"$f":"SUM(K2024:K2025)","v":0},{"$f":"SUM(L2024:L2025)","v":0},{"$f":"SUM(M2024:M2025)","v":0},{"$f":"SUM(N2024:N2025)","v":1957722.3254914517},null,null,{"$f":"SUM(Q2024:Q2025)","v":0},{"$f":"SUM(R2024:R2025)","v":0},null,{"$f":"SUM(T2024:T2025)","v":0},{"$f":"SUM(U2024:U2025)","v":0},null,{"$f":"SUM(W2024:W2025)","v":0},{"$f":"SUM(X2024:X2025)","v":0},{"$f":"SUM(Y2024:Y2025)","v":0},{"$f":"SUM(Z2024:Z2025)","v":0},{"$f":"SUM(AA2024:AA2025)","v":0},0,"UACCT124",{"$f":"ROUND(SUM(-H2026,J2026:N2026),0)","v":0},{"$f":"ROUND(J2026-Q2026-R2026,0)","v":0},{"$f":"ROUND(K2026-T2026-U2026,0)","v":0},{"$f":"ROUND(L2026-W2026-X2026-Y2026-Z2026-AA2026,0)","v":0}]
[2027]
[2028,182,"Weatherization"]
[2029,null,null,"S",182,"S","ACCT182S",{"$f":"'JAM Download'!E2269","v":0},"DMSC",{"$f":"VLOOKUP($I2029,Func,2)*$H2029","v":0},{"$f":"VLOOKUP($I2029,Func,3)*$H2029","v":0},{"$f":"VLOOKUP($I2029,Func,5)*$H2029","v":0},{"$f":"VLOOKUP($I2029,Func,6)*$H2029","v":0},{"$f":"VLOOKUP($I2029,Func,7)*$H2029","v":0},null,{"$f":"+Demand","v":0.38},{"$f":"+$J2029*$P2029","v":0},{"$f":"+$J2029*(1-$P2029)","v":0},{"$f":"+Demand","v":0.38},{"$f":"+$K2029*$S2029","v":0},{"$f":"+$K2029*(1-$S2029)","v":0},"MISC",{"$f":"+$L2029*VLOOKUP($V2029,DisFac,2)","v":0},{"$f":"+$L2029*VLOOKUP($V2029,DisFac,3)","v":0},{"$f":"+$L2029*VLOOKUP($V2029,DisFac,4)","v":0},{"$f":"+$L2029*VLOOKUP($V2029,DisFac,5)","v":0},{"$f":"+$L2029*VLOOKUP($V2029,DisFac,6)","v":0},0,"UACCT182S",{"$f":"ROUND(SUM(-H2029,J2029:N2029),0)","v":0},{"$f":"ROUND(J2029-Q2029-R2029,0)","v":0},{"$f":"ROUND(K2029-T2029-U2029,0)","v":0},{"$f":"ROUND(L2029-W2029-X2029-Y2029-Z2029-AA2029,0)","v":0}]
[2030,null,null,"SG",182,"SG","ACCT182SG",{"$f":"'JAM Download'!E2270","v":0},"DMSC",{"$f":"VLOOKUP($I2030,Func,2)*$H2030","v":0},{"$f":"VLOOKUP($I2030,Func,3)*$H2030","v":0},{"$f":"VLOOKUP($I2030,Func,5)*$H2030","v":0},{"$f":"VLOOKUP($I2030,Func,6)*$H2030","v":0},{"$f":"VLOOKUP($I2030,Func,7)*$H2030","v":0},null,{"$f":"+Demand","v":0.38},{"$f":"+$J2030*$P2030","v":0},{"$f":"+$J2030*(1-$P2030)","v":0},{"$f":"+Demand","v":0.38},{"$f":"+$K2030*$S2030","v":0},{"$f":"+$K2030*(1-$S2030)","v":0},"MISC",{"$f":"+$L2030*VLOOKUP($V2030,DisFac,2)","v":0},{"$f":"+$L2030*VLOOKUP($V2030,DisFac,3)","v":0},{"$f":"+$L2030*VLOOKUP($V2030,DisFac,4)","v":0},{"$f":"+$L2030*VLOOKUP($V2030,DisFac,5)","v":0},{"$f":"+$L2030*VLOOKUP($V2030,DisFac,6)","v":0},0,"UACCT182CS",{"$f":"ROUND(SUM(-H2030,J2030:N2030),0)","v":0},{"$f":"ROUND(J2030-Q2030-R2030,0)","v":0},{"$f":"ROUND(K2030-T2030-U2030,0)","v":0},{"$f":"ROUND(L2030-W2030-X2030-Y2030-Z2030-AA2030,0)","v":0}]
[2031,null,null,"SGCT",182,"SGCT","ACCT182SGCT",{"$f":"'JAM Download'!E2271","v":0},"DMSC",{"$f":"VLOOKUP($I2031,Func,2)*$H2031","v":0},{"$f":"VLOOKUP($I2031,Func,3)*$H2031","v":0},{"$f":"VLOOKUP($I2031,Func,5)*$H2031","v":0},{"$f":"VLOOKUP($I2031,Func,6)*$H2031","v":0},{"$f":"VLOOKUP($I2031,Func,7)*$H2031","v":0},null,{"$f":"+Demand","v":0.38},{"$f":"+$J2031*$P2031","v":0},{"$f":"+$J2031*(1-$P2031)","v":0},{"$f":"+Demand","v":0.38},{"$f":"+$K2031*$S2031","v":0},{"$f":"+$K2031*(1-$S2031)","v":0},"MISC",{"$f":"+$L2031*VLOOKUP($V2031,DisFac,2)","v":0},{"$f":"+$L2031*VLOOKUP($V2031,DisFac,3)","v":0},{"$f":"+$L2031*VLOOKUP($V2031,DisFac,4)","v":0},{"$f":"+$L2031*VLOOKUP($V2031,DisFac,5)","v":0},{"$f":"+$L2031*VLOOKUP($V2031,DisFac,6)","v":0},0,"UACCT182CSP",{"$f":"ROUND(SUM(-H2031,J2031:N2031),0)","v":0},{"$f":"ROUND(J2031-Q2031-R2031,0)","v":0},{"$f":"ROUND(K2031-T2031-U2031,0)","v":0},{"$f":"ROUND(L2031-W2031-X2031-Y2031-Z2031-AA2031,0)","v":0}]
[2032,null,null,"SO",182,"SO","ACCT182SO",{"$f":"'JAM Download'!E2272","v":0},"DMSC",{"$f":"VLOOKUP($I2032,Func,2)*$H2032","v":0},{"$f":"VLOOKUP($I2032,Func,3)*$H2032","v":0},{"$f":"VLOOKUP($I2032,Func,5)*$H2032","v":0},{"$f":"VLOOKUP($I2032,Func,6)*$H2032","v":0},{"$f":"VLOOKUP($I2032,Func,7)*$H2032","v":0},null,{"$f":"+Demand","v":0.38},{"$f":"+$J2032*$P2032","v":0},{"$f":"+$J2032*(1-$P2032)","v":0},{"$f":"+Demand","v":0.38},{"$f":"+$K2032*$S2032","v":0},{"$f":"+$K2032*(1-$S2032)","v":0},"MISC",{"$f":"+$L2032*VLOOKUP($V2032,DisFac,2)","v":0},{"$f":"+$L2032*VLOOKUP($V2032,DisFac,3)","v":0},{"$f":"+$L2032*VLOOKUP($V2032,DisFac,4)","v":0},{"$f":"+$L2032*VLOOKUP($V2032,DisFac,5)","v":0},{"$f":"+$L2032*VLOOKUP($V2032,DisFac,6)","v":0},0,"UACCT182SO",{"$f":"ROUND(SUM(-H2032,J2032:N2032),0)","v":0},{"$f":"ROUND(J2032-Q2032-R2032,0)","v":0},{"$f":"ROUND(K2032-T2032-U2032,0)","v":0},{"$f":"ROUND(L2032-W2032-X2032-Y2032-Z2032-AA2032,0)","v":0}]
[2033,null,null,null,null,null,"ACCT182",{"$f":"'JAM Download'!E2273","v":0},null,{"$f":"SUM(J2029:J2032)","v":0},{"$f":"SUM(K2029:K2032)","v":0},{"$f":"SUM(L2029:L2032)","v":0},{"$f":"SUM(M2029:M2032)","v":0},{"$f":"SUM(N2029:N2032)","v":0},null,null,{"$f":"SUM(Q2029:Q2032)","v":0},{"$f":"SUM(R2029:R2032)","v":0},null,{"$f":"SUM(T2029:T2032)","v":0},{"$f":"SUM(U2029:U2032)","v":0},null,{"$f":"SUM(W2029:W2032)","v":0},{"$f":"SUM(X2029:X2032)","v":0},{"$f":"SUM(Y2029:Y2032)","v":0},{"$f":"SUM(Z2029:Z2032)","v":0},{"$f":"SUM(AA2029:AA2032)","v":0},0,"UACCT182",{"$f":"ROUND(SUM(-H2033,J2033:N2033),0)","v":0},{"$f":"ROUND(J2033-Q2033-R2033,0)","v":0},{"$f":"ROUND(K2033-T2033-U2033,0)","v":0},{"$f":"ROUND(L2033-W2033-X2033-Y2033-Z2033-AA2033,0)","v":0}]
[2034]
[2035,186,"Weatherization"]
[2036,null,null,"S",186,"S","ACCT186S",{"$f":"'JAM Download'!E2276","v":0},"DMSC",{"$f":"VLOOKUP($I2036,Func,2)*$H2036","v":0},{"$f":"VLOOKUP($I2036,Func,3)*$H2036","v":0},{"$f":"VLOOKUP($I2036,Func,5)*$H2036","v":0},{"$f":"VLOOKUP($I2036,Func,6)*$H2036","v":0},{"$f":"VLOOKUP($I2036,Func,7)*$H2036","v":0},null,{"$f":"+Demand","v":0.38},{"$f":"+$J2036*$P2036","v":0},{"$f":"+$J2036*(1-$P2036)","v":0},{"$f":"+Demand","v":0.38},{"$f":"+$K2036*$S2036","v":0},{"$f":"+$K2036*(1-$S2036)","v":0},"MISC",{"$f":"+$L2036*VLOOKUP($V2036,DisFac,2)","v":0},{"$f":"+$L2036*VLOOKUP($V2036,DisFac,3)","v":0},{"$f":"+$L2036*VLOOKUP($V2036,DisFac,4)","v":0},{"$f":"+$L2036*VLOOKUP($V2036,DisFac,5)","v":0},{"$f":"+$L2036*VLOOKUP($V2036,DisFac,6)","v":0},0,"UACCT186S",{"$f":"ROUND(SUM(-H2036,J2036:N2036),0)","v":0},{"$f":"ROUND(J2036-Q2036-R2036,0)","v":0},{"$f":"ROUND(K2036-T2036-U2036,0)","v":0},{"$f":"ROUND(L2036-W2036-X2036-Y2036-Z2036-AA2036,0)","v":0}]
[2037,null,null,"CN",186,"CN","ACCT186CN",{"$f":"'JAM Download'!E2277","v":0},"CUST",{"$f":"VLOOKUP($I2037,Func,2)*$H2037","v":0},{"$f":"VLOOKUP($I2037,Func,3)*$H2037","v":0},{"$f":"VLOOKUP($I2037,Func,5)*$H2037","v":0},{"$f":"VLOOKUP($I2037,Func,6)*$H2037","v":0},{"$f":"VLOOKUP($I2037,Func,7)*$H2037","v":0},null,{"$f":"Demand","v":0.38},{"$f":"+$J2037*$P2037","v":0},{"$f":"+$J2037*(1-$P2037)","v":0},{"$f":"Demand","v":0.38},{"$f":"+$K2037*$S2037","v":0},{"$f":"+$K2037*(1-$S2037)","v":0},"CUST",{"$f":"+$L2037*VLOOKUP($V2037,DisFac,2)","v":0},{"$f":"+$L2037*VLOOKUP($V2037,DisFac,3)","v":0},{"$f":"+$L2037*VLOOKUP($V2037,DisFac,4)","v":0},{"$f":"+$L2037*VLOOKUP($V2037,DisFac,5)","v":0},{"$f":"+$L2037*VLOOKUP($V2037,DisFac,6)","v":0},0,"UACCT303CN",0,0,0,0]
[2038,null,null,"CNP",186,"CNP","ACCT186CNP",{"$f":"'JAM Download'!E2278","v":0},"CUST",{"$f":"VLOOKUP($I2038,Func,2)*$H2038","v":0},{"$f":"VLOOKUP($I2038,Func,3)*$H2038","v":0},{"$f":"VLOOKUP($I2038,Func,5)*$H2038","v":0},{"$f":"VLOOKUP($I2038,Func,6)*$H2038","v":0},{"$f":"VLOOKUP($I2038,Func,7)*$H2038","v":0},null,{"$f":"Demand","v":0.38},{"$f":"+$J2038*$P2038","v":0},{"$f":"+$J2038*(1-$P2038)","v":0},{"$f":"Demand","v":0.38},{"$f":"+$K2038*$S2038","v":0},{"$f":"+$K2038*(1-$S2038)","v":0},"CUST",{"$f":"+$L2038*VLOOKUP($V2038,DisFac,2)","v":0},{"$f":"+$L2038*VLOOKUP($V2038,DisFac,3)","v":0},{"$f":"+$L2038*VLOOKUP($V2038,DisFac,4)","v":0},{"$f":"+$L2038*VLOOKUP($V2038,DisFac,5)","v":0},{"$f":"+$L2038*VLOOKUP($V2038,DisFac,6)","v":0},0,"UACCT303CNP",0,0,0,0]
[2039,null,null,"SG",186,"SG","ACCT186SG",{"$f":"'JAM Download'!E2279","v":0},"DMSC",{"$f":"VLOOKUP($I2039,Func,2)*$H2039","v":0},{"$f":"VLOOKUP($I2039,Func,3)*$H2039","v":0},{"$f":"VLOOKUP($I2039,Func,5)*$H2039","v":0},{"$f":"VLOOKUP($I2039,Func,6)*$H2039","v":0},{"$f":"VLOOKUP($I2039,Func,7)*$H2039","v":0},null,{"$f":"+Demand","v":0.38},{"$f":"+$J2039*$P2039","v":0},{"$f":"+$J2039*(1-$P2039)","v":0},{"$f":"Demand","v":0.38},{"$f":"+$K2039*$S2039","v":0},{"$f":"+$K2039*(1-$S2039)","v":0},"MISC",{"$f":"+$L2039*VLOOKUP($V2039,DisFac,2)","v":0},{"$f":"+$L2039*VLOOKUP($V2039,DisFac,3)","v":0},{"$f":"+$L2039*VLOOKUP($V2039,DisFac,4)","v":0},{"$f":"+$L2039*VLOOKUP($V2039,DisFac,5)","v":0},{"$f":"+$L2039*VLOOKUP($V2039,DisFac,6)","v":0},0,"UACCT186SG",0,0,0,0]
[2040,null,null,"SO",186,"SO","ACCT186SO",{"$f":"'JAM Download'!E2280","v":0},"DMSC",{"$f":"VLOOKUP($I2040,Func,2)*$H2040","v":0},{"$f":"VLOOKUP($I2040,Func,3)*$H2040","v":0},{"$f":"VLOOKUP($I2040,Func,5)*$H2040","v":0},{"$f":"VLOOKUP($I2040,Func,6)*$H2040","v":0},{"$f":"VLOOKUP($I2040,Func,7)*$H2040","v":0},null,{"$f":"+Demand","v":0.38},{"$f":"+$J2040*$P2040","v":0},{"$f":"+$J2040*(1-$P2040)","v":0},{"$f":"Demand","v":0.38},{"$f":"+$K2040*$S2040","v":0},{"$f":"+$K2040*(1-$S2040)","v":0},"MISC",{"$f":"+$L2040*VLOOKUP($V2040,DisFac,2)","v":0},{"$f":"+$L2040*VLOOKUP($V2040,DisFac,3)","v":0},{"$f":"+$L2040*VLOOKUP($V2040,DisFac,4)","v":0},{"$f":"+$L2040*VLOOKUP($V2040,DisFac,5)","v":0},{"$f":"+$L2040*VLOOKUP($V2040,DisFac,6)","v":0},0,"UACCT186SO",0,0,0,0]
[2041,null,null,null,null,null,"ACCT186",{"$f":"'JAM Download'!E2281","v":0},null,{"$f":"SUM(J2036:J2040)","v":0},{"$f":"SUM(K2036:K2040)","v":0},{"$f":"SUM(L2036:L2040)","v":0},{"$f":"SUM(M2036:M2040)","v":0},{"$f":"SUM(N2036:N2040)","v":0},null,null,{"$f":"SUM(Q2036:Q2040)","v":0},{"$f":"SUM(R2036:R2040)","v":0},null,{"$f":"SUM(T2036:T2040)","v":0},{"$f":"SUM(U2036:U2040)","v":0},null,{"$f":"SUM(W2036:W2040)","v":0},{"$f":"SUM(X2036:X2040)","v":0},{"$f":"SUM(Y2036:Y2040)","v":0},{"$f":"SUM(Z2036:Z2040)","v":0},{"$f":"SUM(AA2036:AA2040)","v":0},0,"UACCT186",0,0,0,0]
[2042]
[2043,null,"Total Weatherization",null,null,null,null,{"$f":"'JAM Download'!E2283","v":1957722.3254914517},null,{"$f":"+J2026+J2033+J2041","v":0},{"$f":"+K2026+K2033+K2041","v":0},{"$f":"+L2026+L2033+L2041","v":0},{"$f":"+M2026+M2033+M2041","v":0},{"$f":"+N2026+N2033+N2041","v":1957722.3254914517},null,null,{"$f":"+Q2026+Q2033+Q2041","v":0},{"$f":"+R2026+R2033+R2041","v":0},null,{"$f":"+T2026+T2033+T2041","v":0},{"$f":"+U2026+U2033+U2041","v":0},null,{"$f":"+W2026+W2033+W2041","v":0},{"$f":"+X2026+X2033+X2041","v":0},{"$f":"+Y2026+Y2033+Y2041","v":0},{"$f":"+Z2026+Z2033+Z2041","v":0},{"$f":"+AA2026+AA2033+AA2041","v":0},0,null,{"$f":"ROUND(SUM(-H2043,J2043:N2043),0)","v":0},{"$f":"ROUND(J2043-Q2043-R2043,0)","v":0},{"$f":"ROUND(K2043-T2043-U2043,0)","v":0},{"$f":"ROUND(L2043-W2043-X2043-Y2043-Z2043-AA2043,0)","v":0}]
[2044]
[{"$f":"A2044+1","v":2045},151,"Fuel Stock"]
[2046,null,null,"SE/CAEE/CAEW",151,"CAEW","ACCT151SE",{"$f":"'JAM Download'!E2287+'JAM Download'!E2288","v":-1.5174737200140953E-7},"P",{"$f":"VLOOKUP($I2046,Func,2)*$H2046","v":-1.5174737200140953E-7},{"$f":"VLOOKUP($I2046,Func,3)*$H2046","v":0},{"$f":"VLOOKUP($I2046,Func,5)*$H2046","v":0},{"$f":"VLOOKUP($I2046,Func,6)*$H2046","v":0},{"$f":"VLOOKUP($I2046,Func,7)*$H2046","v":0},null,{"$f":"Demand","v":0.38},{"$f":"+$J2046*$P2046","v":-5.766400136053562E-8},{"$f":"+$J2046*(1-$P2046)","v":-9.4083370640873904E-8},{"$f":"Demand","v":0.38},{"$f":"+$K2046*$S2046","v":0},{"$f":"+$K2046*(1-$S2046)","v":0},"PLNT",{"$f":"+$L2046*VLOOKUP($V2046,DisFac,2)","v":0},{"$f":"+$L2046*VLOOKUP($V2046,DisFac,3)","v":0},{"$f":"+$L2046*VLOOKUP($V2046,DisFac,4)","v":0},{"$f":"+$L2046*VLOOKUP($V2046,DisFac,5)","v":0},{"$f":"+$L2046*VLOOKUP($V2046,DisFac,6)","v":0},0,"UACCT151SE",{"$f":"ROUND(SUM(-H2046,J2046:N2046),0)","v":0},{"$f":"ROUND(J2046-Q2046-R2046,0)","v":0},{"$f":"ROUND(K2046-T2046-U2046,0)","v":0},{"$f":"ROUND(L2046-W2046-X2046-Y2046-Z2046-AA2046,0)","v":0}]
[2047,null,null,"JBE",151,"JBE","ACCT151JBE",{"$f":"'JAM Download'!E2290","v":0},"P",{"$f":"VLOOKUP($I2047,Func,2)*$H2047","v":0},{"$f":"VLOOKUP($I2047,Func,3)*$H2047","v":0},{"$f":"VLOOKUP($I2047,Func,5)*$H2047","v":0},{"$f":"VLOOKUP($I2047,Func,6)*$H2047","v":0},{"$f":"VLOOKUP($I2047,Func,7)*$H2047","v":0},null,{"$f":"Demand","v":0.38},{"$f":"+$J2047*$P2047","v":0},{"$f":"+$J2047*(1-$P2047)","v":0},{"$f":"Demand","v":0.38},{"$f":"+$K2047*$S2047","v":0},{"$f":"+$K2047*(1-$S2047)","v":0},"PLNT",{"$f":"+$L2047*VLOOKUP($V2047,DisFac,2)","v":0},{"$f":"+$L2047*VLOOKUP($V2047,DisFac,3)","v":0},{"$f":"+$L2047*VLOOKUP($V2047,DisFac,4)","v":0},{"$f":"+$L2047*VLOOKUP($V2047,DisFac,5)","v":0},{"$f":"+$L2047*VLOOKUP($V2047,DisFac,6)","v":0},0,"UACCT151SSECT",{"$f":"ROUND(SUM(-H2047,J2047:N2047),0)","v":0},{"$f":"ROUND(J2047-Q2047-R2047,0)","v":0},{"$f":"ROUND(K2047-T2047-U2047,0)","v":0},{"$f":"ROUND(L2047-W2047-X2047-Y2047-Z2047-AA2047,0)","v":0}]
[2048,null,null,"DEU",151,"DEU","ACCT151DEU",{"$f":"'JAM Download'!E2286","v":0},"P",{"$f":"VLOOKUP($I2048,Func,2)*$H2048","v":0},{"$f":"VLOOKUP($I2048,Func,3)*$H2048","v":0},{"$f":"VLOOKUP($I2048,Func,5)*$H2048","v":0},{"$f":"VLOOKUP($I2048,Func,6)*$H2048","v":0},{"$f":"VLOOKUP($I2048,Func,7)*$H2048","v":0},null,{"$f":"Demand","v":0.38},{"$f":"+$J2048*$P2048","v":0},{"$f":"+$J2048*(1-$P2048)","v":0},{"$f":"Demand","v":0.38},{"$f":"+$K2048*$S2048","v":0},{"$f":"+$K2048*(1-$S2048)","v":0},"PLNT",{"$f":"+$L2048*VLOOKUP($V2048,DisFac,2)","v":0},{"$f":"+$L2048*VLOOKUP($V2048,DisFac,3)","v":0},{"$f":"+$L2048*VLOOKUP($V2048,DisFac,4)","v":0},{"$f":"+$L2048*VLOOKUP($V2048,DisFac,5)","v":0},{"$f":"+$L2048*VLOOKUP($V2048,DisFac,6)","v":0},0,"UACCT151SSECH",{"$f":"ROUND(SUM(-H2048,J2048:N2048),0)","v":0},{"$f":"ROUND(J2048-Q2048-R2048,0)","v":0},{"$f":"ROUND(K2048-T2048-U2048,0)","v":0},{"$f":"ROUND(L2048-W2048-X2048-Y2048-Z2048-AA2048,0)","v":0}]
[2049,null,null,null,null,null,"ACCT151",{"$f":"'JAM Download'!E2293","v":-1.5174737200140953E-7},null,{"$f":"SUM(J2046:J2048)","v":-1.5174737200140953E-7},{"$f":"SUM(K2046:K2048)","v":0},{"$f":"SUM(L2046:L2048)","v":0},{"$f":"SUM(M2046:M2048)","v":0},{"$f":"SUM(N2046:N2048)","v":0},null,null,{"$f":"SUM(Q2046:Q2048)","v":-5.766400136053562E-8},{"$f":"SUM(R2046:R2048)","v":-9.4083370640873904E-8},null,{"$f":"SUM(T2046:T2048)","v":0},{"$f":"SUM(U2046:U2048)","v":0},null,{"$f":"SUM(W2046:W2048)","v":0},{"$f":"SUM(X2046:X2048)","v":0},{"$f":"SUM(Y2046:Y2048)","v":0},{"$f":"SUM(Z2046:Z2048)","v":0},{"$f":"SUM(AA2046:AA2048)","v":0},0,"UACCT151",{"$f":"ROUND(SUM(-H2049,J2049:N2049),0)","v":0},{"$f":"ROUND(J2049-Q2049-R2049,0)","v":0},{"$f":"ROUND(K2049-T2049-U2049,0)","v":0},{"$f":"ROUND(L2049-W2049-X2049-Y2049-Z2049-AA2049,0)","v":0}]
[2050]
[2051,152,"Fuel Stock - Undistributed"]
[2052,null,null,"SE",152,"SE","ACCT152SE",{"$f":"'JAM Download'!E2296","v":0},"P",{"$f":"VLOOKUP($I2052,Func,2)*$H2052","v":0},{"$f":"VLOOKUP($I2052,Func,3)*$H2052","v":0},{"$f":"VLOOKUP($I2052,Func,5)*$H2052","v":0},{"$f":"VLOOKUP($I2052,Func,6)*$H2052","v":0},{"$f":"VLOOKUP($I2052,Func,7)*$H2052","v":0},null,{"$f":"Demand","v":0.38},{"$f":"+$J2052*$P2052","v":0},{"$f":"+$J2052*(1-$P2052)","v":0},{"$f":"Demand","v":0.38},{"$f":"+$K2052*$S2052","v":0},{"$f":"+$K2052*(1-$S2052)","v":0},"PLNT",{"$f":"+$L2052*VLOOKUP($V2052,DisFac,2)","v":0},{"$f":"+$L2052*VLOOKUP($V2052,DisFac,3)","v":0},{"$f":"+$L2052*VLOOKUP($V2052,DisFac,4)","v":0},{"$f":"+$L2052*VLOOKUP($V2052,DisFac,5)","v":0},{"$f":"+$L2052*VLOOKUP($V2052,DisFac,6)","v":0},0,"UACCT152SE",{"$f":"ROUND(SUM(-H2052,J2052:N2052),0)","v":0},{"$f":"ROUND(J2052-Q2052-R2052,0)","v":0},{"$f":"ROUND(K2052-T2052-U2052,0)","v":0},{"$f":"ROUND(L2052-W2052-X2052-Y2052-Z2052-AA2052,0)","v":0}]
[2053,null,null,null,null,null,"ACCT152",{"$f":"'JAM Download'!E2299","v":0},null,{"$f":"SUM(J2052)","v":0},{"$f":"SUM(K2052)","v":0},{"$f":"SUM(L2052)","v":0},{"$f":"SUM(M2052)","v":0},{"$f":"SUM(N2052)","v":0},null,null,{"$f":"SUM(Q2052)","v":0},{"$f":"SUM(R2052)","v":0},null,{"$f":"SUM(T2052)","v":0},{"$f":"SUM(U2052)","v":0},null,{"$f":"SUM(W2052)","v":0},{"$f":"SUM(X2052)","v":0},{"$f":"SUM(Y2052)","v":0},{"$f":"SUM(Z2052)","v":0},{"$f":"SUM(AA2052)","v":0},0,"UACCT152",{"$f":"ROUND(SUM(-H2053,J2053:N2053),0)","v":0},{"$f":"ROUND(J2053-Q2053-R2053,0)","v":0},{"$f":"ROUND(K2053-T2053-U2053,0)","v":0},{"$f":"ROUND(L2053-W2053-X2053-Y2053-Z2053-AA2053,0)","v":0}]
[2054]
[2055,25316,"DG&T Working Capital Deposit"]
[2056,null,null,"SE",25316,"SE","ACCT25316SE",{"$f":"'JAM Download'!E2302","v":0},"P",{"$f":"VLOOKUP($I2056,Func,2)*$H2056","v":0},{"$f":"VLOOKUP($I2056,Func,3)*$H2056","v":0},{"$f":"VLOOKUP($I2056,Func,5)*$H2056","v":0},{"$f":"VLOOKUP($I2056,Func,6)*$H2056","v":0},{"$f":"VLOOKUP($I2056,Func,7)*$H2056","v":0},null,{"$f":"Demand","v":0.38},{"$f":"+$J2056*$P2056","v":0},{"$f":"+$J2056*(1-$P2056)","v":0},{"$f":"Demand","v":0.38},{"$f":"+$K2056*$S2056","v":0},{"$f":"+$K2056*(1-$S2056)","v":0},"PLNT",{"$f":"+$L2056*VLOOKUP($V2056,DisFac,2)","v":0},{"$f":"+$L2056*VLOOKUP($V2056,DisFac,3)","v":0},{"$f":"+$L2056*VLOOKUP($V2056,DisFac,4)","v":0},{"$f":"+$L2056*VLOOKUP($V2056,DisFac,5)","v":0},{"$f":"+$L2056*VLOOKUP($V2056,DisFac,6)","v":0},0,"UACCT25316SE",{"$f":"ROUND(SUM(-H2056,J2056:N2056),0)","v":0},{"$f":"ROUND(J2056-Q2056-R2056,0)","v":0},{"$f":"ROUND(K2056-T2056-U2056,0)","v":0},{"$f":"ROUND(L2056-W2056-X2056-Y2056-Z2056-AA2056,0)","v":0}]
[2057,null,null,null,null,null,"ACCT25316",{"$f":"'JAM Download'!E2305","v":0},null,{"$f":"SUM(J2056)","v":0},{"$f":"SUM(K2056)","v":0},{"$f":"SUM(L2056)","v":0},{"$f":"SUM(M2056)","v":0},{"$f":"SUM(N2056)","v":0},null,null,{"$f":"SUM(Q2056)","v":0},{"$f":"SUM(R2056)","v":0},null,{"$f":"SUM(T2056)","v":0},{"$f":"SUM(U2056)","v":0},null,{"$f":"SUM(W2056)","v":0},{"$f":"SUM(X2056)","v":0},{"$f":"SUM(Y2056)","v":0},{"$f":"SUM(Z2056)","v":0},{"$f":"SUM(AA2056)","v":0},0,"UACCT25316",{"$f":"ROUND(SUM(-H2057,J2057:N2057),0)","v":0},{"$f":"ROUND(J2057-Q2057-R2057,0)","v":0},{"$f":"ROUND(K2057-T2057-U2057,0)","v":0},{"$f":"ROUND(L2057-W2057-X2057-Y2057-Z2057-AA2057,0)","v":0}]
[2058]
[2059,25317,"DG&T Working Capital Deposit"]
[2060,null,null,"SE",25317,"SE","ACCT25317SE",{"$f":"'JAM Download'!E2308","v":0},"P",{"$f":"VLOOKUP($I2060,Func,2)*$H2060","v":0},{"$f":"VLOOKUP($I2060,Func,3)*$H2060","v":0},{"$f":"VLOOKUP($I2060,Func,5)*$H2060","v":0},{"$f":"VLOOKUP($I2060,Func,6)*$H2060","v":0},{"$f":"VLOOKUP($I2060,Func,7)*$H2060","v":0},null,{"$f":"Demand","v":0.38},{"$f":"+$J2060*$P2060","v":0},{"$f":"+$J2060*(1-$P2060)","v":0},{"$f":"Demand","v":0.38},{"$f":"+$K2060*$S2060","v":0},{"$f":"+$K2060*(1-$S2060)","v":0},"PLNT",{"$f":"+$L2060*VLOOKUP($V2060,DisFac,2)","v":0},{"$f":"+$L2060*VLOOKUP($V2060,DisFac,3)","v":0},{"$f":"+$L2060*VLOOKUP($V2060,DisFac,4)","v":0},{"$f":"+$L2060*VLOOKUP($V2060,DisFac,5)","v":0},{"$f":"+$L2060*VLOOKUP($V2060,DisFac,6)","v":0},0,"UACCT25317SE",{"$f":"ROUND(SUM(-H2060,J2060:N2060),0)","v":0},{"$f":"ROUND(J2060-Q2060-R2060,0)","v":0},{"$f":"ROUND(K2060-T2060-U2060,0)","v":0},{"$f":"ROUND(L2060-W2060-X2060-Y2060-Z2060-AA2060,0)","v":0}]
[2061,null,null,null,null,null,"ACCT25317",{"$f":"'JAM Download'!E2311","v":0},null,{"$f":"SUM(J2060)","v":0},{"$f":"SUM(K2060)","v":0},{"$f":"SUM(L2060)","v":0},{"$f":"SUM(M2060)","v":0},{"$f":"SUM(N2060)","v":0},null,null,{"$f":"SUM(Q2060)","v":0},{"$f":"SUM(R2060)","v":0},null,{"$f":"SUM(T2060)","v":0},{"$f":"SUM(U2060)","v":0},null,{"$f":"SUM(W2060)","v":0},{"$f":"SUM(X2060)","v":0},{"$f":"SUM(Y2060)","v":0},{"$f":"SUM(Z2060)","v":0},{"$f":"SUM(AA2060)","v":0},0,"UACCT25317",{"$f":"ROUND(SUM(-H2061,J2061:N2061),0)","v":0},{"$f":"ROUND(J2061-Q2061-R2061,0)","v":0},{"$f":"ROUND(K2061-T2061-U2061,0)","v":0},{"$f":"ROUND(L2061-W2061-X2061-Y2061-Z2061-AA2061,0)","v":0}]
[2062]
[2063,25319,"Provo Working Capital Deposit"]
[2064,null,null,"SE",25319,"SE","ACCT25319SE",{"$f":"'JAM Download'!E2314","v":0},"P",{"$f":"VLOOKUP($I2064,Func,2)*$H2064","v":0},{"$f":"VLOOKUP($I2064,Func,3)*$H2064","v":0},{"$f":"VLOOKUP($I2064,Func,5)*$H2064","v":0},{"$f":"VLOOKUP($I2064,Func,6)*$H2064","v":0},{"$f":"VLOOKUP($I2064,Func,7)*$H2064","v":0},null,{"$f":"Demand","v":0.38},{"$f":"+$J2064*$P2064","v":0},{"$f":"+$J2064*(1-$P2064)","v":0},{"$f":"Demand","v":0.38},{"$f":"+$K2064*$S2064","v":0},{"$f":"+$K2064*(1-$S2064)","v":0},"PLNT",{"$f":"+$L2064*VLOOKUP($V2064,DisFac,2)","v":0},{"$f":"+$L2064*VLOOKUP($V2064,DisFac,3)","v":0},{"$f":"+$L2064*VLOOKUP($V2064,DisFac,4)","v":0},{"$f":"+$L2064*VLOOKUP($V2064,DisFac,5)","v":0},{"$f":"+$L2064*VLOOKUP($V2064,DisFac,6)","v":0},0,"UACCT25319SE",{"$f":"ROUND(SUM(-H2064,J2064:N2064),0)","v":0},{"$f":"ROUND(J2064-Q2064-R2064,0)","v":0},{"$f":"ROUND(K2064-T2064-U2064,0)","v":0},{"$f":"ROUND(L2064-W2064-X2064-Y2064-Z2064-AA2064,0)","v":0}]
[2065,null,null,null,null,null,"ACCT25319",{"$f":"'JAM Download'!E2317","v":0},null,{"$f":"SUM(J2064)","v":0},{"$f":"SUM(K2064)","v":0},{"$f":"SUM(L2064)","v":0},{"$f":"SUM(M2064)","v":0},{"$f":"SUM(N2064)","v":0},null,null,{"$f":"SUM(Q2064)","v":0},{"$f":"SUM(R2064)","v":0},null,{"$f":"SUM(T2064)","v":0},{"$f":"SUM(U2064)","v":0},null,{"$f":"SUM(W2064)","v":0},{"$f":"SUM(X2064)","v":0},{"$f":"SUM(Y2064)","v":0},{"$f":"SUM(Z2064)","v":0},{"$f":"SUM(AA2064)","v":0},0,"UACCT25319",{"$f":"ROUND(SUM(-H2065,J2065:N2065),0)","v":0},{"$f":"ROUND(J2065-Q2065-R2065,0)","v":0},{"$f":"ROUND(K2065-T2065-U2065,0)","v":0},{"$f":"ROUND(L2065-W2065-X2065-Y2065-Z2065-AA2065,0)","v":0}]
[2066]
[2067,null,"Total Fuel Stock",null,null,null,null,{"$f":"'JAM Download'!E2319","v":-1.5174737200140953E-7},null,{"$f":"+J2049+J2053+J2057+J2061+J2065","v":-1.5174737200140953E-7},{"$f":"+K2049+K2053+K2057+K2061+K2065","v":0},{"$f":"+L2049+L2053+L2057+L2061+L2065","v":0},{"$f":"+M2049+M2053+M2057+M2061+M2065","v":0},{"$f":"+N2049+N2053+N2057+N2061+N2065","v":0},null,{"$f":"Demand","v":0.38},{"$f":"+Q2049+Q2053+Q2057+Q2061+Q2065","v":-5.766400136053562E-8},{"$f":"+R2049+R2053+R2057+R2061+R2065","v":-9.4083370640873904E-8},{"$f":"Demand","v":0.38},{"$f":"+T2049+T2053+T2057+T2061+T2065","v":0},{"$f":"+U2049+U2053+U2057+U2061+U2065","v":0},null,{"$f":"+W2049+W2053+W2057+W2061+W2065","v":0},{"$f":"+X2049+X2053+X2057+X2061+X2065","v":0},{"$f":"+Y2049+Y2053+Y2057+Y2061+Y2065","v":0},{"$f":"+Z2049+Z2053+Z2057+Z2061+Z2065","v":0},{"$f":"+AA2049+AA2053+AA2057+AA2061+AA2065","v":0},0,null,{"$f":"ROUND(SUM(-H2067,J2067:N2067),0)","v":0},{"$f":"ROUND(J2067-Q2067-R2067,0)","v":0},{"$f":"ROUND(K2067-T2067-U2067,0)","v":0},{"$f":"ROUND(L2067-W2067-X2067-Y2067-Z2067-AA2067,0)","v":0}]
[2068]
[2069,154,"Materials and Supplies"]
[2070,null,null,"S",154,"S","ACCT154S",{"$f":"'JAM Download'!E2321","v":6.6030770540237427E-7},"MSS",{"$f":"VLOOKUP($I2070,Func,2)*$H2070","v":5.1623058065409218E-7},{"$f":"VLOOKUP($I2070,Func,3)*$H2070","v":4.0082625586247678E-9},{"$f":"VLOOKUP($I2070,Func,5)*$H2070","v":1.4006886218965733E-7},{"$f":"VLOOKUP($I2070,Func,6)*$H2070","v":0},{"$f":"VLOOKUP($I2070,Func,7)*$H2070","v":0},null,{"$f":"Demand","v":0.38},{"$f":"+$J2070*$P2070","v":1.9616762064855503E-7},{"$f":"+$J2070*(1-$P2070)","v":3.2006296000553717E-7},{"$f":"Demand","v":0.38},{"$f":"+$K2070*$S2070","v":1.5231397722774118E-9},{"$f":"+$K2070*(1-$S2070)","v":2.4851227863473561E-9},"PLNT",{"$f":"+$L2070*VLOOKUP($V2070,DisFac,2)","v":1.6455230739493368E-8},{"$f":"+$L2070*VLOOKUP($V2070,DisFac,3)","v":6.7409027477051441E-8},{"$f":"+$L2070*VLOOKUP($V2070,DisFac,4)","v":3.4184941476514917E-8},{"$f":"+$L2070*VLOOKUP($V2070,DisFac,5)","v":3.9595642447007514E-9},{"$f":"+$L2070*VLOOKUP($V2070,DisFac,6)","v":1.8060098251896857E-8},3.9595642447007514E-9,"UACCT154S",{"$f":"ROUND(SUM(-H2070,J2070:N2070),0)","v":0},{"$f":"ROUND(J2070-Q2070-R2070,0)","v":0},{"$f":"ROUND(K2070-T2070-U2070,0)","v":0},{"$f":"ROUND(L2070-W2070-X2070-Y2070-Z2070-AA2070,0)","v":0}]
[2071,null,null,"SG/CAGE/CAGW",154,"CAGW","ACCT154CAGW",{"$f":"'JAM Download'!E2322+'JAM Download'!E2333+'JAM Download'!E2334","v":-1.7842830857262015E-7},"MSS",-1.3949579655963837E-7,-1.0831124683219674E-9,-3.7849399544659809E-8,0,0,null,0.38,-5.3008402692662579E-8,-8.648739386697579E-8,0.38,-4.1158273796234762E-10,-6.7152973035961976E-10,"PLNT",-4.4465314640404169E-9,-1.8215263364110241E-8,-9.2374528366160008E-9,-1.0699532128525711E-9,-4.8801986670405792E-9,-1.0699532128525711E-9,"UACCT154SG",0,0,0,0]
[2072,null,null,"SE/CAEE/CAEW",154,"SE","ACCT154SE",{"$f":"'JAM Download'!E2323","v":0},"MSS",0,0,0,0,0,null,0.38,0,0,0.38,0,0,"PLNT",0,0,0,0,0,0,"UACCT154SE",0,0,0,0]
[2073,null,null,"SO",154,"SO","ACCT154SO",{"$f":"'JAM Download'!E2324","v":0},"MSS",0,0,0,0,0,null,0.38,0,0,0.38,0,0,"PLNT",0,0,0,0,0,0,"UACCT154SO",0,0,0,0]
[2074,null,null,"DNPPS",154,"SNPPS","ACCT154SNPPS",{"$f":"'JAM Download'!E2325","v":0},"MSS",0,0,0,0,0,null,0.38,0,0,0.38,0,0,"PLNT",0,0,0,0,0,0,"UACCT154SNPPS",0,0,0,0]
[2075,null,null,"DNPPH",154,"SNPPH","ACCT154SNPPH",{"$f":"'JAM Download'!E2326","v":0},"MSS",0,0,0,0,0,null,0.38,0,0,0.38,0,0,"PLNT",0,0,0,0,0,0,"UACCT154SNPPH",0,0,0,0]
[2076,null,null,"DNPD",154,"SNPD","ACCT154SNPD",{"$f":"'JAM Download'!E2327","v":1.4520061085931957E-4},"MSS",1.1351828101045494E-4,8.8141054122971137E-7,3.080091930763491E-5,0,0,null,0.38,4.3136946783972879E-5,7.0381334226482064E-5,0.38,3.349360056672903E-7,5.4647453556242102E-7,"PLNT",3.6184789843539795E-6,1.4823137587249684E-5,7.5172140866587674E-6,8.7070185969876179E-7,3.9713867896737165E-6,8.7070185969876179E-7,"UACCT154SNPD",0,0,0,0]
[2077,null,null,"DNPT",154,"SNPT","ACCT154SNPT",{"$f":"'JAM Download'!E2328","v":0},"MSS",0,0,0,0,0,null,0.38,0,0,0.38,0,0,"PLNT",0,0,0,0,0,0,"UACCT154SNPT",0,0,0,0]
[2078,null,null,"DGU",154,"DGU","ACCT154DGU",{"$f":"'JAM Download'!E2329","v":0},"MSS",0,0,0,0,0,null,0.38,0,0,0.38,0,0,"PLNT",0,0,0,0,0,0,"UACCT154SG1",0,0,0,0]
[2079,null,null,"DGP",154,"DGP","ACCT154DGP",{"$f":"'JAM Download'!E2330","v":0},"MSS",0,0,0,0,0,null,0.38,0,0,0.38,0,0,"PLNT",0,0,0,0,0,0,"UACCT154SG2",0,0,0,0]
[2080,null,null,"JBG",154,"JBG","ACCT154JBG",{"$f":"'JAM Download'!E2335","v":-7.6135620474815369E-8},"MSS",-5.952306060433291E-8,-4.6216567583578958E-10,-1.6150394194646668E-8,0,0,null,{"$f":"Demand","v":0.38},-2.2618763029646507E-8,-3.6904297574686407E-8,{"$f":"Demand","v":0.38},-1.7562295681760004E-10,-2.8654271901818955E-10,"PLNT",-1.8973414851249405E-9,-7.7724795433694723E-9,-3.9416346483851821E-9,-4.5655060226274535E-10,-2.0823879155043273E-9,-4.5655060226274535E-10,"UACCT154SSGCT",0,0,0,0]
[2081,null,null,"SNPP",154,"SNPP","ACCT154SNPP",{"$f":"'JAM Download'!E2332","v":0},"MSS",0,0,0,0,0,null,{"$f":"Demand","v":0.38},0,0,0.38,0,0,"PLNT",0,0,0,0,0,0,"UACCT154SNPP",0,0,0,0]
[2082,null,null,"CAGE",154,"CAGE","ACCT154CAGE",0,"MSS",0,0,0,0,0,null,0.38,0,0,0.38,0,0,"PLNT",0,0,0,0,0,0,"UACCT154SSGCH",0,0,0,0]
[2083,null,null,null,null,null,"ACCT154",{"$f":"'JAM Download'!E2339","v":1.4560635463567451E-4},null,{"$f":"SUM(J2070:J2082)","v":1.1383549273394506E-4},{"$f":"SUM(K2070:K2082)","v":8.8387352564417842E-7},{"$f":"SUM(L2070:L2082)","v":3.0886988376085263E-5},{"$f":"SUM(M2070:M2082)","v":0},{"$f":"SUM(N2070:N2082)","v":0},null,null,{"$f":"SUM(Q2070:Q2082)","v":4.3257487238899126E-5},{"$f":"SUM(R2070:R2082)","v":7.0578005495045934E-5},null,{"$f":"SUM(T2070:T2082)","v":3.3587193974478775E-7},{"$f":"SUM(U2070:U2082)","v":5.480015858993905E-7},null,{"$f":"SUM(W2070:W2082)","v":3.6285903421443075E-6},{"$f":"SUM(X2070:X2082)","v":1.4864558871819256E-5},{"$f":"SUM(Y2070:Y2082)","v":7.5382199406502808E-6},{"$f":"SUM(Z2070:Z2082)","v":8.7313492012834719E-7},{"$f":"SUM(AA2070:AA2082)","v":3.9824843013430679E-6},8.7313492012834719E-7,"UACCT154",0,0,0,0]
[2084]
[2085]
[2086]
[2087]
[2088,"FERC",null,"DESCRIPTION &","FERC",null,"RANGE",{"$f":"+$H$250","v":"Jurisdictional"},"FUNC","GEN","TRN","DIS","RETAIL","MISC",null,"D / E","GEN","GEN","D / E","TRN","TRN","DIS","DIS","DIS","DIS","DIS","DIS","DIS","Unbundled ACCT:","Function","Generation","Transmission","Distribution"]
[2089,"ACCT",null,"CONSENSUS FACTOR","ACCT","FACTOR","NAME","ADJ Total","FACTOR","TOTAL","TOTAL","TOTAL","TOTAL","TOTAL",null,"SPLIT","DEMAND","ENERGY","SPLIT","DEMAND","ENERGY","SPLIT","SUBS","P & C","XFMR","METER","SERVICE","METER","TOTAL","Check","Check","Check","Check"]
[2090,163,"Stores Expense Undistributed"]
[2091,null,null,"SO",163,"SO","ACCT163SO",{"$f":"'JAM Download'!E2342","v":0},"MSS",{"$f":"VLOOKUP($I2091,Func,2)*$H2091","v":0},{"$f":"VLOOKUP($I2091,Func,3)*$H2091","v":0},{"$f":"VLOOKUP($I2091,Func,5)*$H2091","v":0},{"$f":"VLOOKUP($I2091,Func,6)*$H2091","v":0},{"$f":"VLOOKUP($I2091,Func,7)*$H2091","v":0},null,{"$f":"Demand","v":0.38},{"$f":"+$J2091*$P2091","v":0},{"$f":"+$J2091*(1-$P2091)","v":0},{"$f":"Demand","v":0.38},{"$f":"+$K2091*$S2091","v":0},{"$f":"+$K2091*(1-$S2091)","v":0},"PLNT",{"$f":"+$L2091*VLOOKUP($V2091,DisFac,2)","v":0},{"$f":"+$L2091*VLOOKUP($V2091,DisFac,3)","v":0},{"$f":"+$L2091*VLOOKUP($V2091,DisFac,4)","v":0},{"$f":"+$L2091*VLOOKUP($V2091,DisFac,5)","v":0},{"$f":"+$L2091*VLOOKUP($V2091,DisFac,6)","v":0},0,"UACCT163SO",{"$f":"ROUND(SUM(-H2091,J2091:N2091),0)","v":0},{"$f":"ROUND(J2091-Q2091-R2091,0)","v":0},{"$f":"ROUND(K2091-T2091-U2091,0)","v":0},{"$f":"ROUND(L2091-W2091-X2091-Y2091-Z2091-AA2091,0)","v":0}]
[2092]
[2093,null,null,null,null,null,"ACCT163",{"$f":"'JAM Download'!E2343","v":0},null,{"$f":"SUM(J2091:J2092)","v":0},{"$f":"SUM(K2091:K2092)","v":0},{"$f":"SUM(L2091:L2092)","v":0},{"$f":"SUM(M2091:M2092)","v":0},{"$f":"SUM(N2091:N2092)","v":0},null,null,{"$f":"SUM(Q2091:Q2092)","v":0},{"$f":"SUM(R2091:R2092)","v":0},null,{"$f":"SUM(T2091:T2092)","v":0},{"$f":"SUM(U2091:U2092)","v":0},null,{"$f":"SUM(W2091:W2092)","v":0},{"$f":"SUM(X2091:X2092)","v":0},{"$f":"SUM(Y2091:Y2092)","v":0},{"$f":"SUM(Z2091:Z2092)","v":0},{"$f":"SUM(AA2091:AA2092)","v":0},0,"UACCT163",{"$f":"ROUND(SUM(-H2093,J2093:N2093),0)","v":0},{"$f":"ROUND(J2093-Q2093-R2093,0)","v":0},{"$f":"ROUND(K2093-T2093-U2093,0)","v":0},{"$f":"ROUND(L2093-W2093-X2093-Y2093-Z2093-AA2093,0)","v":0}]
[2094]
[2095,25318,"Provo Working Capital Deposit"]
[2096,null,null,"SNPPS",25318,"SNPPS","ACCT25318SNPPS",{"$f":"'JAM Download'!E2347","v":0},"MSS",{"$f":"VLOOKUP($I2096,Func,2)*$H2096","v":0},{"$f":"VLOOKUP($I2096,Func,3)*$H2096","v":0},{"$f":"VLOOKUP($I2096,Func,5)*$H2096","v":0},{"$f":"VLOOKUP($I2096,Func,6)*$H2096","v":0},{"$f":"VLOOKUP($I2096,Func,7)*$H2096","v":0},null,{"$f":"Demand","v":0.38},{"$f":"+$J2096*$P2096","v":0},{"$f":"+$J2096*(1-$P2096)","v":0},{"$f":"Demand","v":0.38},{"$f":"+$K2096*$S2096","v":0},{"$f":"+$K2096*(1-$S2096)","v":0},"PLNT",{"$f":"+$L2096*VLOOKUP($V2096,DisFac,2)","v":0},{"$f":"+$L2096*VLOOKUP($V2096,DisFac,3)","v":0},{"$f":"+$L2096*VLOOKUP($V2096,DisFac,4)","v":0},{"$f":"+$L2096*VLOOKUP($V2096,DisFac,5)","v":0},{"$f":"+$L2096*VLOOKUP($V2096,DisFac,6)","v":0},0,"UACCT25318DNPPU",{"$f":"ROUND(SUM(-H2096,J2096:N2096),0)","v":0},{"$f":"ROUND(J2096-Q2096-R2096,0)","v":0},{"$f":"ROUND(K2096-T2096-U2096,0)","v":0},{"$f":"ROUND(L2096-W2096-X2096-Y2096-Z2096-AA2096,0)","v":0}]
[2097]
[2098,null,null,null,null,null,"ACCT25318",{"$f":"'JAM Download'!E2350","v":0},null,{"$f":"SUM(J2096:J2097)","v":0},{"$f":"SUM(K2096:K2097)","v":0},{"$f":"SUM(L2096:L2097)","v":0},{"$f":"SUM(M2096:M2097)","v":0},{"$f":"SUM(N2096:N2097)","v":0},null,null,{"$f":"SUM(Q2096:Q2097)","v":0},{"$f":"SUM(R2096:R2097)","v":0},null,{"$f":"SUM(T2096:T2097)","v":0},{"$f":"SUM(U2096:U2097)","v":0},null,{"$f":"SUM(W2096:W2097)","v":0},{"$f":"SUM(X2096:X2097)","v":0},{"$f":"SUM(Y2096:Y2097)","v":0},{"$f":"SUM(Z2096:Z2097)","v":0},{"$f":"SUM(AA2096:AA2097)","v":0},0,"UACCT25318",{"$f":"ROUND(SUM(-H2098,J2098:N2098),0)","v":0},{"$f":"ROUND(J2098-Q2098-R2098,0)","v":0},{"$f":"ROUND(K2098-T2098-U2098,0)","v":0},{"$f":"ROUND(L2098-W2098-X2098-Y2098-Z2098-AA2098,0)","v":0}]
[2099]
[2100,null,"Total Materials & Supplies",null,null,null,null,{"$f":"'JAM Download'!E2352","v":1.4560635463567451E-4},null,{"$f":"+J2093+J2083+J2098","v":1.1383549273394506E-4},{"$f":"+K2093+K2083+K2098","v":8.8387352564417842E-7},{"$f":"+L2093+L2083+L2098","v":3.0886988376085263E-5},{"$f":"+M2093+M2083+M2098","v":0},{"$f":"+N2093+N2083+N2098","v":0},null,null,{"$f":"+Q2093+Q2083+Q2098","v":4.3257487238899126E-5},{"$f":"+R2093+R2083+R2098","v":7.0578005495045934E-5},null,{"$f":"+T2093+T2083+T2098","v":3.3587193974478775E-7},{"$f":"+U2093+U2083+U2098","v":5.480015858993905E-7},null,{"$f":"+W2093+W2083+W2098","v":3.6285903421443075E-6},{"$f":"+X2093+X2083+X2098","v":1.4864558871819256E-5},{"$f":"+Y2093+Y2083+Y2098","v":7.5382199406502808E-6},{"$f":"+Z2093+Z2083+Z2098","v":8.7313492012834719E-7},{"$f":"+AA2093+AA2083+AA2098","v":3.9824843013430679E-6},8.7313492012834719E-7,null,{"$f":"ROUND(SUM(-H2100,J2100:N2100),0)","v":0},{"$f":"ROUND(J2100-Q2100-R2100,0)","v":0},{"$f":"ROUND(K2100-T2100-U2100,0)","v":0},{"$f":"ROUND(L2100-W2100-X2100-Y2100-Z2100-AA2100,0)","v":0}]
[2101]
[2102,165,"Prepayments"]
[2103,null,null,"S",165,"S","ACCT165S",{"$f":"'JAM Download'!E2355","v":0},"DMSC",{"$f":"VLOOKUP($I2103,Func,2)*$H2103","v":0},{"$f":"VLOOKUP($I2103,Func,3)*$H2103","v":0},{"$f":"VLOOKUP($I2103,Func,5)*$H2103","v":0},{"$f":"VLOOKUP($I2103,Func,6)*$H2103","v":0},{"$f":"VLOOKUP($I2103,Func,7)*$H2103","v":0},null,{"$f":"Demand","v":0.38},{"$f":"+$J2103*$P2103","v":0},{"$f":"+$J2103*(1-$P2103)","v":0},{"$f":"Demand","v":0.38},{"$f":"+$K2103*$S2103","v":0},{"$f":"+$K2103*(1-$S2103)","v":0},"PLNT",{"$f":"+$L2103*VLOOKUP($V2103,DisFac,2)","v":0},{"$f":"+$L2103*VLOOKUP($V2103,DisFac,3)","v":0},{"$f":"+$L2103*VLOOKUP($V2103,DisFac,4)","v":0},{"$f":"+$L2103*VLOOKUP($V2103,DisFac,5)","v":0},{"$f":"+$L2103*VLOOKUP($V2103,DisFac,6)","v":0},0,"UACCT165S",{"$f":"ROUND(SUM(-H2103,J2103:N2103),0)","v":0},{"$f":"ROUND(J2103-Q2103-R2103,0)","v":0},{"$f":"ROUND(K2103-T2103-U2103,0)","v":0},{"$f":"ROUND(L2103-W2103-X2103-Y2103-Z2103-AA2103,0)","v":0}]
[2104,null,null,"GPS",165,"GPS","ACCT165GPS",{"$f":"'JAM Download'!E2356","v":-2.3283064365386963E-8},"GP",{"$f":"VLOOKUP($I2104,Func,2)*$H2104","v":-1.176517487058296E-8},{"$f":"VLOOKUP($I2104,Func,3)*$H2104","v":-4.9584695769307554E-9},{"$f":"VLOOKUP($I2104,Func,5)*$H2104","v":-6.4062846943359198E-9},{"$f":"VLOOKUP($I2104,Func,6)*$H2104","v":-1.5313522353733222E-10},{"$f":"VLOOKUP($I2104,Func,7)*$H2104","v":0},null,{"$f":"Demand","v":0.38},{"$f":"+$J2104*$P2104","v":-4.4707664508215251E-9},{"$f":"+$J2104*(1-$P2104)","v":-7.2944084197614351E-9},{"$f":"Demand","v":0.38},{"$f":"+$K2104*$S2104","v":-1.8842184392336871E-9},{"$f":"+$K2104*(1-$S2104)","v":-3.0742511376970683E-9},"PLNT",{"$f":"+$L2104*VLOOKUP($V2104,DisFac,2)","v":-7.5260761871146457E-10},{"$f":"+$L2104*VLOOKUP($V2104,DisFac,3)","v":-3.0830651026605626E-9},{"$f":"+$L2104*VLOOKUP($V2104,DisFac,4)","v":-1.563505720930583E-9},{"$f":"+$L2104*VLOOKUP($V2104,DisFac,5)","v":-1.8109732184958963E-10},{"$f":"+$L2104*VLOOKUP($V2104,DisFac,6)","v":-8.2600893018371983E-10},-1.8109732184958963E-10,"UACCT165GPS",0,0,0,0]
[2105,null,null,"SG",165,"SG","ACCT165SG",{"$f":"'JAM Download'!E2357+'JAM Download'!E2358+'JAM Download'!E2359","v":-8.0442987382411957E-8},"PT",{"$f":"VLOOKUP($I2105,Func,2)*$H2105","v":-5.7998046622262924E-8},{"$f":"VLOOKUP($I2105,Func,3)*$H2105","v":-2.2444940760149023E-8},{"$f":"VLOOKUP($I2105,Func,5)*$H2105","v":0},{"$f":"VLOOKUP($I2105,Func,6)*$H2105","v":0},{"$f":"VLOOKUP($I2105,Func,7)*$H2105","v":0},null,{"$f":"Demand","v":0.38},{"$f":"+$J2105*$P2105","v":-2.2039257716459912E-8},{"$f":"+$J2105*(1-$P2105)","v":-3.5958788905803015E-8},{"$f":"Demand","v":0.38},{"$f":"+$K2105*$S2105","v":-8.5290774888566295E-9},{"$f":"+$K2105*(1-$S2105)","v":-1.3915863271292394E-8},"PLNT",{"$f":"+$L2105*VLOOKUP($V2105,DisFac,2)","v":0},{"$f":"+$L2105*VLOOKUP($V2105,DisFac,3)","v":0},{"$f":"+$L2105*VLOOKUP($V2105,DisFac,4)","v":0},{"$f":"+$L2105*VLOOKUP($V2105,DisFac,5)","v":0},{"$f":"+$L2105*VLOOKUP($V2105,DisFac,6)","v":0},0,"UACCT165SG",0,0,0,0]
[2106,null,null,"SE",165,"SE","ACCT165SE",{"$f":"'JAM Download'!E2360+'JAM Download'!E2361+'JAM Download'!E2362","v":0},"P",{"$f":"VLOOKUP($I2106,Func,2)*$H2106","v":0},{"$f":"VLOOKUP($I2106,Func,3)*$H2106","v":0},{"$f":"VLOOKUP($I2106,Func,5)*$H2106","v":0},{"$f":"VLOOKUP($I2106,Func,6)*$H2106","v":0},{"$f":"VLOOKUP($I2106,Func,7)*$H2106","v":0},null,{"$f":"Demand","v":0.38},{"$f":"+$J2106*$P2106","v":0},{"$f":"+$J2106*(1-$P2106)","v":0},{"$f":"Demand","v":0.38},{"$f":"+$K2106*$S2106","v":0},{"$f":"+$K2106*(1-$S2106)","v":0},"PLNT",{"$f":"+$L2106*VLOOKUP($V2106,DisFac,2)","v":0},{"$f":"+$L2106*VLOOKUP($V2106,DisFac,3)","v":0},{"$f":"+$L2106*VLOOKUP($V2106,DisFac,4)","v":0},{"$f":"+$L2106*VLOOKUP($V2106,DisFac,5)","v":0},{"$f":"+$L2106*VLOOKUP($V2106,DisFac,6)","v":0},0,"UACCT165SE",0,0,0,0]
[2107,null,null,"SO",165,"SO","ACCT165SO",{"$f":"'JAM Download'!E2363","v":0},"PTD",{"$f":"VLOOKUP($I2107,Func,2)*$H2107","v":0},{"$f":"VLOOKUP($I2107,Func,3)*$H2107","v":0},{"$f":"VLOOKUP($I2107,Func,5)*$H2107","v":0},{"$f":"VLOOKUP($I2107,Func,6)*$H2107","v":0},{"$f":"VLOOKUP($I2107,Func,7)*$H2107","v":0},null,{"$f":"Demand","v":0.38},{"$f":"+$J2107*$P2107","v":0},{"$f":"+$J2107*(1-$P2107)","v":0},{"$f":"Demand","v":0.38},{"$f":"+$K2107*$S2107","v":0},{"$f":"+$K2107*(1-$S2107)","v":0},"PLNT",{"$f":"+$L2107*VLOOKUP($V2107,DisFac,2)","v":0},{"$f":"+$L2107*VLOOKUP($V2107,DisFac,3)","v":0},{"$f":"+$L2107*VLOOKUP($V2107,DisFac,4)","v":0},{"$f":"+$L2107*VLOOKUP($V2107,DisFac,5)","v":0},{"$f":"+$L2107*VLOOKUP($V2107,DisFac,6)","v":0},0,"UACCT165SO",0,0,0,0]
[2108,null,null,null,null,null,"ACCT165",{"$f":"'JAM Download'!E2364","v":-1.0372605174779892E-7},null,{"$f":"SUM(J2103:J2107)","v":-6.9763221492845877E-8},{"$f":"SUM(K2103:K2107)","v":-2.7403410337079778E-8},{"$f":"SUM(L2103:L2107)","v":-6.4062846943359198E-9},{"$f":"SUM(M2103:M2107)","v":-1.5313522353733222E-10},{"$f":"SUM(N2103:N2107)","v":0},null,null,{"$f":"SUM(Q2103:Q2107)","v":-2.6510024167281438E-8},{"$f":"SUM(R2103:R2107)","v":-4.3253197325564449E-8},null,{"$f":"SUM(T2103:T2107)","v":-1.0413295928090316E-8},{"$f":"SUM(U2103:U2107)","v":-1.6990114408989463E-8},null,{"$f":"SUM(W2103:W2107)","v":-7.5260761871146457E-10},{"$f":"SUM(X2103:X2107)","v":-3.0830651026605626E-9},{"$f":"SUM(Y2103:Y2107)","v":-1.563505720930583E-9},{"$f":"SUM(Z2103:Z2107)","v":-1.8109732184958963E-10},{"$f":"SUM(AA2103:AA2107)","v":-8.2600893018371983E-10},-1.8109732184958963E-10,"UACCT165",0,0,0,0]
[{"$f":"A2108+1","v":2109}]
[2110,"182M","Misc Regulatory Assets"]
[2111,null,null,"S",182,"S","ACCT182MS",{"$f":"'JAM Download'!E2367","v":12474070.74},"P",{"$f":"VLOOKUP($I2111,Func,2)*$H2111","v":12474070.74},{"$f":"VLOOKUP($I2111,Func,3)*$H2111","v":0},{"$f":"VLOOKUP($I2111,Func,5)*$H2111","v":0},{"$f":"VLOOKUP($I2111,Func,6)*$H2111","v":0},{"$f":"VLOOKUP($I2111,Func,7)*$H2111","v":0},null,{"$f":"Demand","v":0.38},{"$f":"+$J2111*$P2111","v":4740146.8811999997},{"$f":"+$J2111*(1-$P2111)","v":7733923.8588000005},{"$f":"Demand","v":0.38},{"$f":"+$K2111*$S2111","v":0},{"$f":"+$K2111*(1-$S2111)","v":0},"PLNT",{"$f":"+$L2111*VLOOKUP($V2111,DisFac,2)","v":0},{"$f":"+$L2111*VLOOKUP($V2111,DisFac,3)","v":0},{"$f":"+$L2111*VLOOKUP($V2111,DisFac,4)","v":0},{"$f":"+$L2111*VLOOKUP($V2111,DisFac,5)","v":0},{"$f":"+$L2111*VLOOKUP($V2111,DisFac,6)","v":0},0,"UACCT182MS",{"$f":"ROUND(SUM(-H2111,J2111:N2111),0)","v":0},{"$f":"ROUND(J2111-Q2111-R2111,0)","v":0},{"$f":"ROUND(K2111-T2111-U2111,0)","v":0},{"$f":"ROUND(L2111-W2111-X2111-Y2111-Z2111-AA2111,0)","v":0}]
[2112,null,null,"SG/CAGW",182,"CAGW","ACCT182MCAGW",{"$f":"'JAM Download'!E2368+'JAM Download'!E2369+'JAM Download'!E2370+'JAM Download'!E2371","v":381178.72502356098},"P",381178.72502356098,0,0,0,0,null,0.38,144847.91550895319,236330.8095146078,0.38,0,0,"PLNT",0,0,0,0,0,0,"UACCT182MSG",0,0,0,0]
[2113,null,null,"CAGE",182,"CAGE","ACCT182MCAGE",{"$f":"'JAM Download'!E2369","v":0},"P",0,0,0,0,0,null,0.38,0,0,0.38,0,0,"PLNT",0,0,0,0,0,0,"UACCT182MSSGCH",0,0,0,0]
[2114,null,null,"CAEW",182,"CAEW","ACCT182MCAEW",{"$f":"'JAM Download'!E2374","v":0},"P",0,0,0,0,0,null,0.38,0,0,0.38,0,0,"PLNT",0,0,0,0,0,0,"UACCT182MSG1",0,0,0,0]
[2115,null,null,"CAEE",182,"CAEE","ACCT182MCAEE",{"$f":"'JAM Download'!E2372","v":0},"P",0,0,0,0,0,null,0.38,0,0,0.38,0,0,"PLNT",0,0,0,0,0,0,"UACCT182MSG2",0,0,0,0]
[2116,null,null,"SE",182,"SE","ACCT182MSE",{"$f":"'JAM Download'!E2373","v":0},"P",0,0,0,0,0,null,0.38,0,0,0.38,0,0,"PLNT",0,0,0,0,0,0,"UACCT182MSE",0,0,0,0]
[2117,null,null,"SO",182,"SO","ACCT182MSO",{"$f":"'JAM Download'!E2376","v":55395.802666168427},"T",0,55395.802666168427,0,0,0,null,0.38,0,0,0.38,21050.405013144002,34345.397653024425,"PLNT",0,0,0,0,0,0,"UACCT182MSO",0,0,0,0]
[2118,null,null,null,null,null,"ACCT182M",{"$f":"'JAM Download'!E2377","v":12910645.267689729},null,{"$f":"SUM(J2111:J2117)","v":12855249.46502356},{"$f":"SUM(K2111:K2117)","v":55395.802666168427},{"$f":"SUM(L2111:L2117)","v":0},{"$f":"SUM(M2111:M2117)","v":0},{"$f":"SUM(N2111:N2117)","v":0},null,null,{"$f":"SUM(Q2111:Q2117)","v":4884994.7967089526},{"$f":"SUM(R2111:R2117)","v":7970254.6683146087},null,{"$f":"SUM(T2111:T2117)","v":21050.405013144002},{"$f":"SUM(U2111:U2117)","v":34345.397653024425},null,{"$f":"SUM(W2111:W2117)","v":0},{"$f":"SUM(X2111:X2117)","v":0},{"$f":"SUM(Y2111:Y2117)","v":0},{"$f":"SUM(Z2111:Z2117)","v":0},{"$f":"SUM(AA2111:AA2117)","v":0},0,"UACCT182M",0,0,0,0]
[2119]
[2120,"186M","Misc Deferred Debits"]
[2121,null,null,"S",186,"S","ACCT186MS",{"$f":"'JAM Download'!E2380","v":0},"T",{"$f":"VLOOKUP($I2121,Func,2)*$H2121","v":0},{"$f":"VLOOKUP($I2121,Func,3)*$H2121","v":0},{"$f":"VLOOKUP($I2121,Func,5)*$H2121","v":0},{"$f":"VLOOKUP($I2121,Func,6)*$H2121","v":0},{"$f":"VLOOKUP($I2121,Func,7)*$H2121","v":0},null,{"$f":"Demand","v":0.38},{"$f":"+$J2121*$P2121","v":0},{"$f":"+$J2121*(1-$P2121)","v":0},{"$f":"Demand","v":0.38},{"$f":"+$K2121*$S2121","v":0},{"$f":"+$K2121*(1-$S2121)","v":0},"PLNT",{"$f":"+$L2121*VLOOKUP($V2121,DisFac,2)","v":0},{"$f":"+$L2121*VLOOKUP($V2121,DisFac,3)","v":0},{"$f":"+$L2121*VLOOKUP($V2121,DisFac,4)","v":0},{"$f":"+$L2121*VLOOKUP($V2121,DisFac,5)","v":0},{"$f":"+$L2121*VLOOKUP($V2121,DisFac,6)","v":0},0,"UACCT186MS",{"$f":"ROUND(SUM(-H2121,J2121:N2121),0)","v":0},{"$f":"ROUND(J2121-Q2121-R2121,0)","v":0},{"$f":"ROUND(K2121-T2121-U2121,0)","v":0},{"$f":"ROUND(L2121-W2121-X2121-Y2121-Z2121-AA2121,0)","v":0}]
[2122,null,null,"CAEW",186,"CAEW","ACCT186MCAEW",{"$f":"'JAM Download'!E2381+'JAM Download'!E2382","v":0},"P",0,0,0,0,0,null,0.38,0,0,0.38,0,0,"PLNT",0,0,0,0,0,0,"UACCT186MSG",0,0,0,0]
[2123,null,null,"CAEE",186,"CAEE","ACCT186MCAEE",{"$f":"'JAM Download'!E2381+'JAM Download'!E2382","v":0},"P",0,0,0,0,0,null,0.38,0,0,0.38,0,0,"PLNT",0,0,0,0,0,0,"UACCT186MSG",0,0,0,0]
[2124,null,null,"SG",186,"CAGW","ACCT186MCAGW",{"$f":"'JAM Download'!E2383+'JAM Download'!E2386+'JAM Download'!E2387","v":1669548.1008461947},"P",1669548.1008461947,0,0,0,0,null,0.38,634428.27832155395,1035119.8225246407,0.38,0,0,"PLNT",0,0,0,0,0,0,"UACCT186MSG",0,0,0,0]
[2125,null,null,"SO",186,"SO","ACCT186MSO",{"$f":"'JAM Download'!E2384","v":0},"LABOR",0,0,0,0,0,null,0.38,0,0,0.38,0,0,"PLNT",0,0,0,0,0,0,"UACCT186MSO",0,0,0,0]
[2126,null,null,"SE",186,"SE","ACCT186MSE",{"$f":"'JAM Download'!E2385","v":0},"P",0,0,0,0,0,null,0.38,0,0,0.38,0,0,"PLNT",0,0,0,0,0,0,"UACCT186MSE",0,0,0,0]
[2127,null,null,"JBE",186,"JBE","ACCT186MSNPPS",{"$f":"'JAM Download'!E2390","v":186539.91316402922},"P",186539.91316402922,0,0,0,0,null,0.38,70885.167002331102,115654.74616169812,0.38,0,0,"PLNT",0,0,0,0,0,0,"UACCT186MDNPPSP",0,0,0,0]
[2128,null,null,"EXCTAX",186,"EXCTAX","ACCT186MEXCTAX",{"$f":"'JAM Download'!E2391","v":0},"GP",0,0,0,0,0,null,0.38,0,0,0.38,0,0,"PLNT",0,0,0,0,0,0,"UACCT408EXCTAX",0,0,0,0]
[2129,null,null,null,null,null,"ACCT186M",{"$f":"'JAM Download'!E2392","v":1856088.0140102238},null,{"$f":"SUM(J2121:J2128)","v":1856088.0140102238},{"$f":"SUM(K2121:K2128)","v":0},{"$f":"SUM(L2121:L2128)","v":0},{"$f":"SUM(M2121:M2128)","v":0},{"$f":"SUM(N2121:N2128)","v":0},null,null,{"$f":"SUM(Q2121:Q2128)","v":705313.44532388507},{"$f":"SUM(R2121:R2128)","v":1150774.5686863388},null,{"$f":"SUM(T2121:T2128)","v":0},{"$f":"SUM(U2121:U2128)","v":0},null,{"$f":"SUM(W2121:W2128)","v":0},{"$f":"SUM(X2121:X2128)","v":0},{"$f":"SUM(Y2121:Y2128)","v":0},{"$f":"SUM(Z2121:Z2128)","v":0},{"$f":"SUM(AA2121:AA2128)","v":0},0,"UACCT186M",0,0,0,0]
[2130]
[2131,"Working Capital"]
[2132,"CWC","Cash Working Capital"]
[2133,null,null,"S",200,"S","ACCTCWCS",{"$f":"'JAM Download'!E2396","v":28493963.911447883},"CWC",{"$f":"VLOOKUP($I2133,Func,2)*$H2133","v":19879156.978276342},{"$f":"VLOOKUP($I2133,Func,3)*$H2133","v":4582113.8394118706},{"$f":"VLOOKUP($I2133,Func,5)*$H2133","v":2719707.3244591993},{"$f":"VLOOKUP($I2133,Func,6)*$H2133","v":1089502.3312838771},{"$f":"VLOOKUP($I2133,Func,7)*$H2133","v":223483.43801659052},null,{"$f":"Demand","v":0.38},{"$f":"+$J2133*$P2133","v":7554079.6517450102},{"$f":"+$J2133*(1-$P2133)","v":12325077.326531332},{"$f":"Demand","v":0.38},{"$f":"+$K2133*$S2133","v":1741203.2589765107},{"$f":"+$K2133*(1-$S2133)","v":2840910.5804353599},"PLNT",{"$f":"+$L2133*VLOOKUP($V2133,DisFac,2)","v":319510.06717873423},{"$f":"+$L2133*VLOOKUP($V2133,DisFac,3)","v":1308876.3833589954},{"$f":"+$L2133*VLOOKUP($V2133,DisFac,4)","v":663766.62354834063},{"$f":"+$L2133*VLOOKUP($V2133,DisFac,5)","v":76882.58267849742},{"$f":"+$L2133*VLOOKUP($V2133,DisFac,6)","v":350671.66769463161},76882.58267849742,"UACCTCWCS",{"$f":"ROUND(SUM(-H2133,J2133:N2133),0)","v":0},{"$f":"ROUND(J2133-Q2133-R2133,0)","v":0},{"$f":"ROUND(K2133-T2133-U2133,0)","v":0},{"$f":"ROUND(L2133-W2133-X2133-Y2133-Z2133-AA2133,0)","v":0}]
[2134,null,null,"SO",200,"SO","ACCTCWCSO",{"$f":"'JAM Download'!E2397","v":0},"CWC",{"$f":"VLOOKUP($I2134,Func,2)*$H2134","v":0},{"$f":"VLOOKUP($I2134,Func,3)*$H2134","v":0},{"$f":"VLOOKUP($I2134,Func,5)*$H2134","v":0},{"$f":"VLOOKUP($I2134,Func,6)*$H2134","v":0},{"$f":"VLOOKUP($I2134,Func,7)*$H2134","v":0},null,{"$f":"Demand","v":0.38},{"$f":"+$J2134*$P2134","v":0},{"$f":"+$J2134*(1-$P2134)","v":0},{"$f":"Demand","v":0.38},{"$f":"+$K2134*$S2134","v":0},{"$f":"+$K2134*(1-$S2134)","v":0},"PLNT",{"$f":"+$L2134*VLOOKUP($V2134,DisFac,2)","v":0},{"$f":"+$L2134*VLOOKUP($V2134,DisFac,3)","v":0},{"$f":"+$L2134*VLOOKUP($V2134,DisFac,4)","v":0},{"$f":"+$L2134*VLOOKUP($V2134,DisFac,5)","v":0},{"$f":"+$L2134*VLOOKUP($V2134,DisFac,6)","v":0},0,"UACCTCWCSO",{"$f":"ROUND(SUM(-H2134,J2134:N2134),0)","v":0},{"$f":"ROUND(J2134-Q2134-R2134,0)","v":0},{"$f":"ROUND(K2134-T2134-U2134,0)","v":0},{"$f":"ROUND(L2134-W2134-X2134-Y2134-Z2134-AA2134,0)","v":0}]
[2135,null,null,"SE",200,"SE","ACCTCWCSE",{"$f":"'JAM Download'!E2398","v":0},"CWC",{"$f":"VLOOKUP($I2135,Func,2)*$H2135","v":0},{"$f":"VLOOKUP($I2135,Func,3)*$H2135","v":0},{"$f":"VLOOKUP($I2135,Func,5)*$H2135","v":0},{"$f":"VLOOKUP($I2135,Func,6)*$H2135","v":0},{"$f":"VLOOKUP($I2135,Func,7)*$H2135","v":0},null,{"$f":"Demand","v":0.38},{"$f":"+$J2135*$P2135","v":0},{"$f":"+$J2135*(1-$P2135)","v":0},{"$f":"Demand","v":0.38},{"$f":"+$K2135*$S2135","v":0},{"$f":"+$K2135*(1-$S2135)","v":0},"PLNT",{"$f":"+$L2135*VLOOKUP($V2135,DisFac,2)","v":0},{"$f":"+$L2135*VLOOKUP($V2135,DisFac,3)","v":0},{"$f":"+$L2135*VLOOKUP($V2135,DisFac,4)","v":0},{"$f":"+$L2135*VLOOKUP($V2135,DisFac,5)","v":0},{"$f":"+$L2135*VLOOKUP($V2135,DisFac,6)","v":0},0,"UACCTCWCSE",{"$f":"ROUND(SUM(-H2135,J2135:N2135),0)","v":0},{"$f":"ROUND(J2135-Q2135-R2135,0)","v":0},{"$f":"ROUND(K2135-T2135-U2135,0)","v":0},{"$f":"ROUND(L2135-W2135-X2135-Y2135-Z2135-AA2135,0)","v":0}]
[2136,null,null,null,null,null,"ACCTCWC",{"$f":"'JAM Download'!E2399","v":28493963.911447883},null,{"$f":"SUM(J2133:J2135)","v":19879156.978276342},{"$f":"SUM(K2133:K2135)","v":4582113.8394118706},{"$f":"SUM(L2133:L2135)","v":2719707.3244591993},{"$f":"SUM(M2133:M2135)","v":1089502.3312838771},{"$f":"SUM(N2133:N2135)","v":223483.43801659052},null,null,{"$f":"SUM(Q2133:Q2135)","v":7554079.6517450102},{"$f":"SUM(R2133:R2135)","v":12325077.326531332},null,{"$f":"SUM(T2133:T2135)","v":1741203.2589765107},{"$f":"SUM(U2133:U2135)","v":2840910.5804353599},null,{"$f":"SUM(W2133:W2135)","v":319510.06717873423},{"$f":"SUM(X2133:X2135)","v":1308876.3833589954},{"$f":"SUM(Y2133:Y2135)","v":663766.62354834063},{"$f":"SUM(Z2133:Z2135)","v":76882.58267849742},{"$f":"SUM(AA2133:AA2135)","v":350671.66769463161},76882.58267849742,"UACCTCWC",{"$f":"ROUND(SUM(-H2136,J2136:N2136),0)","v":0},{"$f":"ROUND(J2136-Q2136-R2136,0)","v":0},{"$f":"ROUND(K2136-T2136-U2136,0)","v":0},{"$f":"ROUND(L2136-W2136-X2136-Y2136-Z2136-AA2136,0)","v":0}]
[2137]
[2138,null,"Other Working Capital"]
[2139,131,null,"SNP",200,"SNP","ACCTOWCSNP",{"$f":"'JAM Download'!E2402","v":0},"GP",{"$f":"VLOOKUP($I2139,Func,2)*$H2139","v":0},{"$f":"VLOOKUP($I2139,Func,3)*$H2139","v":0},{"$f":"VLOOKUP($I2139,Func,5)*$H2139","v":0},{"$f":"VLOOKUP($I2139,Func,6)*$H2139","v":0},{"$f":"VLOOKUP($I2139,Func,7)*$H2139","v":0},null,{"$f":"Demand","v":0.38},{"$f":"+$J2139*$P2139","v":0},{"$f":"+$J2139*(1-$P2139)","v":0},{"$f":"Demand","v":0.38},{"$f":"+$K2139*$S2139","v":0},{"$f":"+$K2139*(1-$S2139)","v":0},"PLNT",{"$f":"+$L2139*VLOOKUP($V2139,DisFac,2)","v":0},{"$f":"+$L2139*VLOOKUP($V2139,DisFac,3)","v":0},{"$f":"+$L2139*VLOOKUP($V2139,DisFac,4)","v":0},{"$f":"+$L2139*VLOOKUP($V2139,DisFac,5)","v":0},{"$f":"+$L2139*VLOOKUP($V2139,DisFac,6)","v":0},0,"UACCTOWCSNP",{"$f":"ROUND(SUM(-H2139,J2139:N2139),0)","v":0},{"$f":"ROUND(J2139-Q2139-R2139,0)","v":0},{"$f":"ROUND(K2139-T2139-U2139,0)","v":0},{"$f":"ROUND(L2139-W2139-X2139-Y2139-Z2139-AA2139,0)","v":0}]
[2140,135,null,"SG",200,"SG","ACCTOWCSG",{"$f":"'JAM Download'!E2403","v":0},"GP",0,0,0,0,0,null,0.38,0,0,0.38,0,0,"PLNT",0,0,0,0,0,0,"UACCTOWCSG",0,0,0,0]
[2141,143,null,"SO",200,"SO","ACCTOWCSO",{"$f":"'JAM Download'!E2404","v":0},"GP",0,0,0,0,0,null,0.38,0,0,0.38,0,0,"PLNT",0,0,0,0,0,0,"UACCTOWCSO",0,0,0,0]
[2142,232,null,"S",200,"S","ACCTOWCS",{"$f":"'JAM Download'!E2405","v":1.0756775736808777E-7},"PTD",5.4743090780362982E-8,2.1185289870108501E-8,3.1639376717616282E-8,0,0,null,{"$f":"Demand","v":0.38},2.0802374496537933E-8,3.3940716283825045E-8,0.38,8.0504101506412306E-9,1.313487971946727E-8,"PLNT",3.7169806065617755E-9,1.5226650528700174E-8,7.7218464156624352E-9,8.9440395829060562E-10,4.0794952084012917E-9,8.9440395829060562E-10,"UACCTOWC",0,0,0,0]
[2143,232,null,"SO",200,"SO","ACCTOWCSO",{"$f":"'JAM Download'!E2406","v":-3.028326206843622E-12},"PTD",-1.5411675441601685E-12,-5.964237805357603E-13,-8.9073488214769319E-13,0,0,null,0.38,-5.8564366678086405E-13,-9.5552387737930442E-13,0.38,-2.266410366035889E-13,-3.6978274393217137E-13,"PLNT",-1.0464315754638873E-13,-4.2867180618745422E-13,-2.1739106994443556E-13,-2.5179914620025887E-14,-1.1484893384938877E-13,-2.5179914620025887E-14,"UACCTOWCSO",0,0,0,0]
[2144,232,null,"P",200,"SE","ACCTOWCSE",{"$f":"'JAM Download'!E2407","v":-2.2875610738992691E-8},"P",-2.2875610738992691E-8,0,0,0,0,null,0.38,-8.6927320808172228E-9,-1.4182878658175468E-8,0.38,0,0,"PLNT",0,0,0,0,0,0,"UACCTOWCDGP",0,0,0,0]
[2145,2533,null,"SE/CAEE/CAEW",200,"SE","ACCTOWCSE",{"$f":"'JAM Download'!E2408","v":0},"P",0,0,0,0,0,null,0.38,0,0,0.38,0,0,"PLNT",0,0,0,0,0,0,"UACCTOWCSE",0,0,0,0]
[2146,2533,null,"S",200,"S","ACCTOWCS",{"$f":"'JAM Download'!E2409","v":0},"P",0,0,0,0,0,null,0.38,0,0,0.38,0,0,"PLNT",0,0,0,0,0,0,"UACCTOWCSE",0,0,0,0]
[2147,2533,null,"DEU",200,"DEU","ACCTOWCDEU",{"$f":"'JAM Download'!E2410","v":0},"P",0,0,0,0,0,null,0.38,0,0,0.38,0,0,"PLNT",0,0,0,0,0,0,"UACCTOWCSE",0,0,0,0]
[2148,2533,null,"CAEE",200,"CAEE","ACCTOWCCAEE",{"$f":"'JAM Download'!E2411","v":2.5363988243043423E-8},"P",2.5363988243043423E-8,0,0,0,0,null,0.38,9.6383155323565011E-9,1.5725672710686923E-8,0.38,0,0,"PLNT",0,0,0,0,0,0,"UACCTOWCCAEE",0,0,0,0]
[2149,null,null,null,null,null,"ACCTOWC",{"$f":"'JAM Download'!E2423","v":1.1005310654593166E-7},null,{"$f":"SUM(J2139:J2148)","v":5.7229927116869553E-8},{"$f":"SUM(K2139:K2148)","v":2.1184693446327966E-8},{"$f":"SUM(L2139:L2148)","v":3.1638485982734138E-8},{"$f":"SUM(M2139:M2148)","v":0},{"$f":"SUM(N2139:N2148)","v":0},null,null,{"$f":"SUM(Q2139:Q2148)","v":2.1747372304410432E-8},{"$f":"SUM(R2139:R2148)","v":3.5482554812459125E-8},null,{"$f":"SUM(T2139:T2148)","v":8.0501835096046272E-9},{"$f":"SUM(U2139:U2148)","v":1.3134509936723338E-8},null,{"$f":"SUM(W2139:W2148)","v":3.716875963404229E-9},{"$f":"SUM(X2139:X2148)","v":1.5226221856893987E-8},{"$f":"SUM(Y2139:Y2148)","v":7.7216290245924903E-9},{"$f":"SUM(Z2139:Z2148)","v":8.9437877837598556E-10},{"$f":"SUM(AA2139:AA2148)","v":4.0793803594674421E-9},8.9437877837598556E-10,"UACCTOWC",0,0,0,0]
[2150]
[2151,"Total Working Capital",null,null,null,null,null,{"$f":"'JAM Download'!E2425","v":28493963.911447994},null,{"$f":"+J2149+J2136","v":19879156.978276398},{"$f":"+K2149+K2136","v":4582113.839411892},{"$f":"+L2149+L2136","v":2719707.324459231},{"$f":"+M2149+M2136","v":1089502.3312838771},{"$f":"+N2149+N2136","v":223483.43801659052},null,null,{"$f":"+Q2149+Q2136","v":7554079.6517450316},{"$f":"+R2149+R2136","v":12325077.326531367},null,{"$f":"+T2149+T2136","v":1741203.2589765189},{"$f":"+U2149+U2136","v":2840910.5804353729},null,{"$f":"+W2149+W2136","v":319510.06717873795},{"$f":"+X2149+X2136","v":1308876.3833590106},{"$f":"+Y2149+Y2136","v":663766.62354834832},{"$f":"+Z2149+Z2136","v":76882.582678498307},{"$f":"+AA2149+AA2136","v":350671.66769463569},76882.582678498307,null,{"$f":"ROUND(SUM(-H2151,J2151:N2151),0)","v":0},{"$f":"ROUND(J2151-Q2151-R2151,0)","v":0},{"$f":"ROUND(K2151-T2151-U2151,0)","v":0},{"$f":"ROUND(L2151-W2151-X2151-Y2151-Z2151-AA2151,0)","v":0}]
[2152]
[2153,"Miscellaneous Rate DRB"]
[2154,18221,"Unrec Plant & Reg Study Costs"]
[2155,null,null,"S",182,"S","ACCT18221S",{"$f":"'JAM Download'!E2428","v":0},"P",{"$f":"VLOOKUP($I2155,Func,2)*$H2155","v":0},{"$f":"VLOOKUP($I2155,Func,3)*$H2155","v":0},{"$f":"VLOOKUP($I2155,Func,5)*$H2155","v":0},{"$f":"VLOOKUP($I2155,Func,6)*$H2155","v":0},{"$f":"VLOOKUP($I2155,Func,7)*$H2155","v":0},null,{"$f":"Demand","v":0.38},{"$f":"+$J2155*$P2155","v":0},{"$f":"+$J2155*(1-$P2155)","v":0},{"$f":"Demand","v":0.38},{"$f":"+$K2155*$S2155","v":0},{"$f":"+$K2155*(1-$S2155)","v":0},"PLNT",{"$f":"+$L2155*VLOOKUP($V2155,DisFac,2)","v":0},{"$f":"+$L2155*VLOOKUP($V2155,DisFac,3)","v":0},{"$f":"+$L2155*VLOOKUP($V2155,DisFac,4)","v":0},{"$f":"+$L2155*VLOOKUP($V2155,DisFac,5)","v":0},{"$f":"+$L2155*VLOOKUP($V2155,DisFac,6)","v":0},0,"UACCT18221S",{"$f":"ROUND(SUM(-H2155,J2155:N2155),0)","v":0},{"$f":"ROUND(J2155-Q2155-R2155,0)","v":0},{"$f":"ROUND(K2155-T2155-U2155,0)","v":0},{"$f":"ROUND(L2155-W2155-X2155-Y2155-Z2155-AA2155,0)","v":0}]
[2156]
[2157,null,null,null,null,null,"ACCT18221",{"$f":"'JAM Download'!E2429","v":0},null,{"$f":"SUM(J2155:J2156)","v":0},{"$f":"SUM(K2155:K2156)","v":0},{"$f":"SUM(L2155:L2156)","v":0},{"$f":"SUM(M2155:M2156)","v":0},{"$f":"SUM(N2155:N2156)","v":0},null,null,{"$f":"SUM(Q2155:Q2156)","v":0},{"$f":"SUM(R2155:R2156)","v":0},null,{"$f":"SUM(T2155:T2156)","v":0},{"$f":"SUM(U2155:U2156)","v":0},null,{"$f":"SUM(W2155:W2156)","v":0},{"$f":"SUM(X2155:X2156)","v":0},{"$f":"SUM(Y2155:Y2156)","v":0},{"$f":"SUM(Z2155:Z2156)","v":0},{"$f":"SUM(AA2155:AA2156)","v":0},0,"UACCT18221",{"$f":"ROUND(SUM(-H2157,J2157:N2157),0)","v":0},{"$f":"ROUND(J2157-Q2157-R2157,0)","v":0},{"$f":"ROUND(K2157-T2157-U2157,0)","v":0},{"$f":"ROUND(L2157-W2157-X2157-Y2157-Z2157-AA2157,0)","v":0}]
[2158]
[2159,18222,"Nuclear Plant - Trojan"]
[2160,null,null,"TROJP",18222,"S","ACCT18222SE",{"$f":"'JAM Download'!E2433","v":0},"P",{"$f":"VLOOKUP($I2160,Func,2)*$H2160","v":0},{"$f":"VLOOKUP($I2160,Func,3)*$H2160","v":0},{"$f":"VLOOKUP($I2160,Func,5)*$H2160","v":0},{"$f":"VLOOKUP($I2160,Func,6)*$H2160","v":0},{"$f":"VLOOKUP($I2160,Func,7)*$H2160","v":0},null,{"$f":"+Demand","v":0.38},{"$f":"+$J2160*$P2160","v":0},{"$f":"+$J2160*(1-$P2160)","v":0},{"$f":"Demand","v":0.38},{"$f":"+$K2160*$S2160","v":0},{"$f":"+$K2160*(1-$S2160)","v":0},"PLNT",{"$f":"+$L2160*VLOOKUP($V2160,DisFac,2)","v":0},{"$f":"+$L2160*VLOOKUP($V2160,DisFac,3)","v":0},{"$f":"+$L2160*VLOOKUP($V2160,DisFac,4)","v":0},{"$f":"+$L2160*VLOOKUP($V2160,DisFac,5)","v":0},{"$f":"+$L2160*VLOOKUP($V2160,DisFac,6)","v":0},0,"UACCT18222TROJP",{"$f":"ROUND(SUM(-H2160,J2160:N2160),0)","v":0},{"$f":"ROUND(J2160-Q2160-R2160,0)","v":0},{"$f":"ROUND(K2160-T2160-U2160,0)","v":0},{"$f":"ROUND(L2160-W2160-X2160-Y2160-Z2160-AA2160,0)","v":0}]
[2161,null,null,"TROJD",18222,"TROJP","ACCT18222TROJP",{"$f":"'JAM Download'!E2434","v":0},"P",{"$f":"VLOOKUP($I2161,Func,2)*$H2161","v":0},{"$f":"VLOOKUP($I2161,Func,3)*$H2161","v":0},{"$f":"VLOOKUP($I2161,Func,5)*$H2161","v":0},{"$f":"VLOOKUP($I2161,Func,6)*$H2161","v":0},{"$f":"VLOOKUP($I2161,Func,7)*$H2161","v":0},null,{"$f":"+Demand","v":0.38},{"$f":"+$J2161*$P2161","v":0},{"$f":"+$J2161*(1-$P2161)","v":0},{"$f":"Demand","v":0.38},{"$f":"+$K2161*$S2161","v":0},{"$f":"+$K2161*(1-$S2161)","v":0},"PLNT",{"$f":"+$L2161*VLOOKUP($V2161,DisFac,2)","v":0},{"$f":"+$L2161*VLOOKUP($V2161,DisFac,3)","v":0},{"$f":"+$L2161*VLOOKUP($V2161,DisFac,4)","v":0},{"$f":"+$L2161*VLOOKUP($V2161,DisFac,5)","v":0},{"$f":"+$L2161*VLOOKUP($V2161,DisFac,6)","v":0},0,"UACCT18222TROJP",{"$f":"ROUND(SUM(-H2161,J2161:N2161),0)","v":0},{"$f":"ROUND(J2161-Q2161-R2161,0)","v":0},{"$f":"ROUND(K2161-T2161-U2161,0)","v":0},{"$f":"ROUND(L2161-W2161-X2161-Y2161-Z2161-AA2161,0)","v":0}]
[2162,null,null,"SE",18222,"TROJD","ACCT18222TROJD",{"$f":"'JAM Download'!E2435","v":0},"P",{"$f":"VLOOKUP($I2162,Func,2)*$H2162","v":0},{"$f":"VLOOKUP($I2162,Func,3)*$H2162","v":0},{"$f":"VLOOKUP($I2162,Func,5)*$H2162","v":0},{"$f":"VLOOKUP($I2162,Func,6)*$H2162","v":0},{"$f":"VLOOKUP($I2162,Func,7)*$H2162","v":0},null,{"$f":"+Demand","v":0.38},{"$f":"+$J2162*$P2162","v":0},{"$f":"+$J2162*(1-$P2162)","v":0},{"$f":"Demand","v":0.38},{"$f":"+$K2162*$S2162","v":0},{"$f":"+$K2162*(1-$S2162)","v":0},"PLNT",{"$f":"+$L2162*VLOOKUP($V2162,DisFac,2)","v":0},{"$f":"+$L2162*VLOOKUP($V2162,DisFac,3)","v":0},{"$f":"+$L2162*VLOOKUP($V2162,DisFac,4)","v":0},{"$f":"+$L2162*VLOOKUP($V2162,DisFac,5)","v":0},{"$f":"+$L2162*VLOOKUP($V2162,DisFac,6)","v":0},0,"UACCT18222SE",{"$f":"ROUND(SUM(-H2162,J2162:N2162),0)","v":0},{"$f":"ROUND(J2162-Q2162-R2162,0)","v":0},{"$f":"ROUND(K2162-T2162-U2162,0)","v":0},{"$f":"ROUND(L2162-W2162-X2162-Y2162-Z2162-AA2162,0)","v":0}]
[2163,null,null,null,null,null,"ACCT18222",{"$f":"'JAM Download'!E2436","v":0},null,{"$f":"SUM(J2160:J2162)","v":0},{"$f":"SUM(K2160:K2162)","v":0},{"$f":"SUM(L2160:L2162)","v":0},{"$f":"SUM(M2160:M2162)","v":0},{"$f":"SUM(N2160:N2162)","v":0},null,null,{"$f":"SUM(Q2160:Q2162)","v":0},{"$f":"SUM(R2160:R2162)","v":0},null,{"$f":"SUM(T2160:T2162)","v":0},{"$f":"SUM(U2160:U2162)","v":0},null,{"$f":"SUM(W2160:W2162)","v":0},{"$f":"SUM(X2160:X2162)","v":0},{"$f":"SUM(Y2160:Y2162)","v":0},{"$f":"SUM(Z2160:Z2162)","v":0},{"$f":"SUM(AA2160:AA2162)","v":0},0,"UACCT18222",{"$f":"ROUND(SUM(-H2163,J2163:N2163),0)","v":0},{"$f":"ROUND(J2163-Q2163-R2163,0)","v":0},{"$f":"ROUND(K2163-T2163-U2163,0)","v":0},{"$f":"ROUND(L2163-W2163-X2163-Y2163-Z2163-AA2163,0)","v":0}]
[2164]
[2165,1869,"Misc Deferred Debits-Trojan"]
[2166,null,null,"S",1869,"S","ACCT1869S",{"$f":"'JAM Download'!E2441","v":0},"P",{"$f":"VLOOKUP($I2166,Func,2)*$H2166","v":0},{"$f":"VLOOKUP($I2166,Func,3)*$H2166","v":0},{"$f":"VLOOKUP($I2166,Func,5)*$H2166","v":0},{"$f":"VLOOKUP($I2166,Func,6)*$H2166","v":0},{"$f":"VLOOKUP($I2166,Func,7)*$H2166","v":0},null,{"$f":"Demand","v":0.38},{"$f":"+$J2166*$P2166","v":0},{"$f":"+$J2166*(1-$P2166)","v":0},{"$f":"Demand","v":0.38},{"$f":"+$K2166*$S2166","v":0},{"$f":"+$K2166*(1-$S2166)","v":0},"PLNT",{"$f":"+$L2166*VLOOKUP($V2166,DisFac,2)","v":0},{"$f":"+$L2166*VLOOKUP($V2166,DisFac,3)","v":0},{"$f":"+$L2166*VLOOKUP($V2166,DisFac,4)","v":0},{"$f":"+$L2166*VLOOKUP($V2166,DisFac,5)","v":0},{"$f":"+$L2166*VLOOKUP($V2166,DisFac,6)","v":0},0,"UACCT1869S",{"$f":"ROUND(SUM(-H2166,J2166:N2166),0)","v":0},{"$f":"ROUND(J2166-Q2166-R2166,0)","v":0},{"$f":"ROUND(K2166-T2166-U2166,0)","v":0},{"$f":"ROUND(L2166-W2166-X2166-Y2166-Z2166-AA2166,0)","v":0}]
[2167,null,null,"DNPPNP",1869,"SNPPN","ACCT1869DNPPNP",{"$f":"'JAM Download'!E2442","v":0},"P",{"$f":"VLOOKUP($I2167,Func,2)*$H2167","v":0},{"$f":"VLOOKUP($I2167,Func,3)*$H2167","v":0},{"$f":"VLOOKUP($I2167,Func,5)*$H2167","v":0},{"$f":"VLOOKUP($I2167,Func,6)*$H2167","v":0},{"$f":"VLOOKUP($I2167,Func,7)*$H2167","v":0},null,{"$f":"Demand","v":0.38},{"$f":"+$J2167*$P2167","v":0},{"$f":"+$J2167*(1-$P2167)","v":0},{"$f":"Demand","v":0.38},{"$f":"+$K2167*$S2167","v":0},{"$f":"+$K2167*(1-$S2167)","v":0},"PLNT",{"$f":"+$L2167*VLOOKUP($V2167,DisFac,2)","v":0},{"$f":"+$L2167*VLOOKUP($V2167,DisFac,3)","v":0},{"$f":"+$L2167*VLOOKUP($V2167,DisFac,4)","v":0},{"$f":"+$L2167*VLOOKUP($V2167,DisFac,5)","v":0},{"$f":"+$L2167*VLOOKUP($V2167,DisFac,6)","v":0},0,"UACCT1869DNPPNP",{"$f":"ROUND(SUM(-H2167,J2167:N2167),0)","v":0},{"$f":"ROUND(J2167-Q2167-R2167,0)","v":0},{"$f":"ROUND(K2167-T2167-U2167,0)","v":0},{"$f":"ROUND(L2167-W2167-X2167-Y2167-Z2167-AA2167,0)","v":0}]
[2168,null,null,null,null,null,"ACCT1869",{"$f":"'JAM Download'!E2443","v":0},null,{"$f":"SUM(J2166:J2167)","v":0},{"$f":"SUM(K2166:K2167)","v":0},{"$f":"SUM(L2166:L2167)","v":0},{"$f":"SUM(M2166:M2167)","v":0},{"$f":"SUM(N2166:N2167)","v":0},null,null,{"$f":"SUM(Q2166:Q2167)","v":0},{"$f":"SUM(R2166:R2167)","v":0},null,{"$f":"SUM(T2166:T2167)","v":0},{"$f":"SUM(U2166:U2167)","v":0},null,{"$f":"SUM(W2166:W2167)","v":0},{"$f":"SUM(X2166:X2167)","v":0},{"$f":"SUM(Y2166:Y2167)","v":0},{"$f":"SUM(Z2166:Z2167)","v":0},{"$f":"SUM(AA2166:AA2167)","v":0},0,"UACCT1869",{"$f":"ROUND(SUM(-H2168,J2168:N2168),0)","v":0},{"$f":"ROUND(J2168-Q2168-R2168,0)","v":0},{"$f":"ROUND(K2168-T2168-U2168,0)","v":0},{"$f":"ROUND(L2168-W2168-X2168-Y2168-Z2168-AA2168,0)","v":0}]
[2169]
[2170,141,"Impact Housing - Notes Receivable"]
[2171,null,null,"DGU",141,"DGU","ACCT141DGU",null,"P",{"$f":"VLOOKUP($I2171,Func,2)*$H2171","v":0},{"$f":"VLOOKUP($I2171,Func,3)*$H2171","v":0},{"$f":"VLOOKUP($I2171,Func,5)*$H2171","v":0},{"$f":"VLOOKUP($I2171,Func,6)*$H2171","v":0},{"$f":"VLOOKUP($I2171,Func,7)*$H2171","v":0},null,{"$f":"Demand","v":0.38},{"$f":"+$J2171*$P2171","v":0},{"$f":"+$J2171*(1-$P2171)","v":0},{"$f":"Demand","v":0.38},{"$f":"+$K2171*$S2171","v":0},{"$f":"+$K2171*(1-$S2171)","v":0},"PLNT",{"$f":"+$L2171*VLOOKUP($V2171,DisFac,2)","v":0},{"$f":"+$L2171*VLOOKUP($V2171,DisFac,3)","v":0},{"$f":"+$L2171*VLOOKUP($V2171,DisFac,4)","v":0},{"$f":"+$L2171*VLOOKUP($V2171,DisFac,5)","v":0},{"$f":"+$L2171*VLOOKUP($V2171,DisFac,6)","v":0},0,"UACCT141DGU",{"$f":"ROUND(SUM(-H2171,J2171:N2171),0)","v":0},{"$f":"ROUND(J2171-Q2171-R2171,0)","v":0},{"$f":"ROUND(K2171-T2171-U2171,0)","v":0},{"$f":"ROUND(L2171-W2171-X2171-Y2171-Z2171-AA2171,0)","v":0}]
[2172]
[{"$f":"A2172+1","v":2173},null,null,null,null,null,"ACCT141",null,null,{"$f":"SUM(J2171:J2172)","v":0},{"$f":"SUM(K2171:K2172)","v":0},{"$f":"SUM(L2171:L2172)","v":0},{"$f":"SUM(M2171:M2172)","v":0},{"$f":"SUM(N2171:N2172)","v":0},null,null,{"$f":"SUM(Q2171:Q2172)","v":0},{"$f":"SUM(R2171:R2172)","v":0},null,{"$f":"SUM(T2171:T2172)","v":0},{"$f":"SUM(U2171:U2172)","v":0},null,{"$f":"SUM(W2171:W2172)","v":0},{"$f":"SUM(X2171:X2172)","v":0},{"$f":"SUM(Y2171:Y2172)","v":0},{"$f":"SUM(Z2171:Z2172)","v":0},{"$f":"SUM(AA2171:AA2172)","v":0},0,"UACCT141",{"$f":"ROUND(SUM(-H2173,J2173:N2173),0)","v":0},{"$f":"ROUND(J2173-Q2173-R2173,0)","v":0},{"$f":"ROUND(K2173-T2173-U2173,0)","v":0},{"$f":"ROUND(L2173-W2173-X2173-Y2173-Z2173-AA2173,0)","v":0}]
[2174]
[2175,"TOTAL MISCELLANEOUS RATE DRB",null,null,null,null,null,{"$f":"'JAM Download'!E2445","v":0},null,{"$f":"+J2157+J2173+J2163+J2168","v":0},{"$f":"+K2157+K2173+K2163+K2168","v":0},{"$f":"+L2157+L2173+L2163+L2168","v":0},{"$f":"+M2157+M2173+M2163+M2168","v":0},{"$f":"+N2157+N2173+N2163+N2168","v":0},null,null,{"$f":"+Q2157+Q2173+Q2163+Q2168","v":0},{"$f":"+R2157+R2173+R2163+R2168","v":0},null,{"$f":"+T2157+T2173+T2163+T2168","v":0},{"$f":"+U2157+U2173+U2163+U2168","v":0},null,{"$f":"+W2157+W2173+W2163+W2168","v":0},{"$f":"+X2157+X2173+X2163+X2168","v":0},{"$f":"+Y2157+Y2173+Y2163+Y2168","v":0},{"$f":"+Z2157+Z2173+Z2163+Z2168","v":0},{"$f":"+AA2157+AA2173+AA2163+AA2168","v":0},0,null,{"$f":"ROUND(SUM(-H2175,J2175:N2175),0)","v":0},{"$f":"ROUND(J2175-Q2175-R2175,0)","v":0},{"$f":"ROUND(K2175-T2175-U2175,0)","v":0},{"$f":"ROUND(L2175-W2175-X2175-Y2175-Z2175-AA2175,0)","v":0}]
[2176]
[2177]
[2178,"TOTAL RATE DRB ADDITIONS",null,null,null,null,null,{"$f":"'JAM Download'!E2447","v":45262174.792122699},null,{"$f":"+J2175+J2151+J2129+J2118+J2108+J2100+J2067+J2043+J2021+J2017+J2011","v":34634249.730761752},{"$f":"+K2175+K2151+K2129+K2118+K2108+K2100+K2067+K2043+K2021+K2017+K2011","v":4637509.6420789175},{"$f":"+L2175+L2151+L2129+L2118+L2108+L2100+L2067+L2043+L2021+L2017+L2011","v":2719707.3244901113},{"$f":"+M2175+M2151+M2129+M2118+M2108+M2100+M2067+M2043+M2021+M2017+M2011","v":1089502.3312838769},{"$f":"+N2175+N2151+N2129+N2118+N2108+N2100+N2067+N2043+N2021+N2017+N2011","v":2181205.7635080423},null,null,{"$f":"+Q2175+Q2151+Q2129+Q2118+Q2108+Q2100+Q2067+Q2043+Q2021+Q2017+Q2011","v":13161014.897689464},{"$f":"+R2175+R2151+R2129+R2118+R2108+R2100+R2067+R2043+R2021+R2017+R2011","v":21473234.833072282},null,{"$f":"+T2175+T2151+T2129+T2118+T2108+T2100+T2067+T2043+T2021+T2017+T2011","v":1762253.6639899884},{"$f":"+U2175+U2151+U2129+U2118+U2108+U2100+U2067+U2043+U2021+U2017+U2011","v":2875255.9780889289},null,{"$f":"+W2175+W2151+W2129+W2118+W2108+W2100+W2067+W2043+W2021+W2017+W2011","v":319510.0671823658},{"$f":"+X2175+X2151+X2129+X2118+X2108+X2100+X2067+X2043+X2021+X2017+X2011","v":1308876.3833738721},{"$f":"+Y2175+Y2151+Y2129+Y2118+Y2108+Y2100+Y2067+Y2043+Y2021+Y2017+Y2011","v":663766.62355588505},{"$f":"+Z2175+Z2151+Z2129+Z2118+Z2108+Z2100+Z2067+Z2043+Z2021+Z2017+Z2011","v":76882.582679371262},{"$f":"+AA2175+AA2151+AA2129+AA2118+AA2108+AA2100+AA2067+AA2043+AA2021+AA2017+AA2011","v":350671.66769861738},76882.582679371262,null,{"$f":"ROUND(SUM(-H2178,J2178:N2178),0)","v":0},{"$f":"ROUND(J2178-Q2178-R2178,0)","v":0},{"$f":"ROUND(K2178-T2178-U2178,0)","v":0},{"$f":"ROUND(L2178-W2178-X2178-Y2178-Z2178-AA2178,0)","v":0}]
[2179]
[2180]
[2181]
[2182,"FERC",null,"DESCRIPTION &","FERC",null,"RANGE",{"$f":"+$H$250","v":"Jurisdictional"},"FUNC","GEN","TRN","DIS","RETAIL","MISC",null,"D / E","GEN","GEN","D / E","TRN","TRN","DIS","DIS","DIS","DIS","DIS","DIS","DIS","Unbundled ACCT:","Function","Generation","Transmission","Distribution"]
[2183,"ACCT",null,"CONSENSUS FACTOR","ACCT","FACTOR","NAME","ADJ Total","FACTOR","TOTAL","TOTAL","TOTAL","TOTAL","TOTAL",null,"SPLIT","DEMAND","ENERGY","SPLIT","DEMAND","ENERGY","SPLIT","SUBS","P & C","XFMR","METER","SERVICE","METER","TOTAL","Check","Check","Check","Check"]
[2184,235,"Customer Service Deposits"]
[2185,null,null,"CSU",235,"S","ACCT235CSU",{"$f":"'JAM Download'!E2449","v":-3236612.0862499997},"CUST",{"$f":"VLOOKUP($I2185,Func,2)*$H2185","v":0},{"$f":"VLOOKUP($I2185,Func,3)*$H2185","v":0},{"$f":"VLOOKUP($I2185,Func,5)*$H2185","v":0},{"$f":"VLOOKUP($I2185,Func,6)*$H2185","v":-3236612.0862499997},{"$f":"VLOOKUP($I2185,Func,7)*$H2185","v":0},null,{"$f":"Demand","v":0.38},{"$f":"+$J2185*$P2185","v":0},{"$f":"+$J2185*(1-$P2185)","v":0},{"$f":"Demand","v":0.38},{"$f":"+$K2185*$S2185","v":0},{"$f":"+$K2185*(1-$S2185)","v":0},"CUST",{"$f":"+$L2185*VLOOKUP($V2185,DisFac,2)","v":0},{"$f":"+$L2185*VLOOKUP($V2185,DisFac,3)","v":0},{"$f":"+$L2185*VLOOKUP($V2185,DisFac,4)","v":0},{"$f":"+$L2185*VLOOKUP($V2185,DisFac,5)","v":0},{"$f":"+$L2185*VLOOKUP($V2185,DisFac,6)","v":0},0,"UACCT235CSU",{"$f":"ROUND(SUM(-H2185,J2185:N2185),0)","v":0},{"$f":"ROUND(J2185-Q2185-R2185,0)","v":0},{"$f":"ROUND(K2185-T2185-U2185,0)","v":0},{"$f":"ROUND(L2185-W2185-X2185-Y2185-Z2185-AA2185,0)","v":0}]
[2186,null,null,"CN",235,"CN","ACCT235CN",{"$f":"'JAM Download'!E2450","v":0},"CUST",{"$f":"VLOOKUP($I2186,Func,2)*$H2186","v":0},{"$f":"VLOOKUP($I2186,Func,3)*$H2186","v":0},{"$f":"VLOOKUP($I2186,Func,5)*$H2186","v":0},{"$f":"VLOOKUP($I2186,Func,6)*$H2186","v":0},{"$f":"VLOOKUP($I2186,Func,7)*$H2186","v":0},null,{"$f":"Demand","v":0.38},{"$f":"+$J2186*$P2186","v":0},{"$f":"+$J2186*(1-$P2186)","v":0},{"$f":"Demand","v":0.38},{"$f":"+$K2186*$S2186","v":0},{"$f":"+$K2186*(1-$S2186)","v":0},"CUST",{"$f":"+$L2186*VLOOKUP($V2186,DisFac,2)","v":0},{"$f":"+$L2186*VLOOKUP($V2186,DisFac,3)","v":0},{"$f":"+$L2186*VLOOKUP($V2186,DisFac,4)","v":0},{"$f":"+$L2186*VLOOKUP($V2186,DisFac,5)","v":0},{"$f":"+$L2186*VLOOKUP($V2186,DisFac,6)","v":0},0,"UACCT235CN",{"$f":"ROUND(SUM(-H2186,J2186:N2186),0)","v":0},{"$f":"ROUND(J2186-Q2186-R2186,0)","v":0},{"$f":"ROUND(K2186-T2186-U2186,0)","v":0},{"$f":"ROUND(L2186-W2186-X2186-Y2186-Z2186-AA2186,0)","v":0}]
[2187,null,null,null,null,null,"ACCT235",{"$f":"'JAM Download'!E2451","v":-3236612.0862499997},null,{"$f":"SUM(J2185:J2186)","v":0},{"$f":"SUM(K2185:K2186)","v":0},{"$f":"SUM(L2185:L2186)","v":0},{"$f":"SUM(M2185:M2186)","v":-3236612.0862499997},{"$f":"SUM(N2185:N2186)","v":0},null,null,{"$f":"SUM(Q2185:Q2186)","v":0},{"$f":"SUM(R2185:R2186)","v":0},null,{"$f":"SUM(T2185:T2186)","v":0},{"$f":"SUM(U2185:U2186)","v":0},null,{"$f":"SUM(W2185:W2186)","v":0},{"$f":"SUM(X2185:X2186)","v":0},{"$f":"SUM(Y2185:Y2186)","v":0},{"$f":"SUM(Z2185:Z2186)","v":0},{"$f":"SUM(AA2185:AA2186)","v":0},0,"UACCT235",{"$f":"ROUND(SUM(-H2187,J2187:N2187),0)","v":0},{"$f":"ROUND(J2187-Q2187-R2187,0)","v":0},{"$f":"ROUND(K2187-T2187-U2187,0)","v":0},{"$f":"ROUND(L2187-W2187-X2187-Y2187-Z2187-AA2187,0)","v":0}]
[2188]
[2189,2281,"Accum Prov for Property Insurance"]
[2190,null,null,"SO",228,"SO","ACCT2281SO",{"$f":"'JAM Download'!E2453","v":0},"PTD",{"$f":"VLOOKUP($I2190,Func,2)*$H2190","v":0},{"$f":"VLOOKUP($I2190,Func,3)*$H2190","v":0},{"$f":"VLOOKUP($I2190,Func,5)*$H2190","v":0},{"$f":"VLOOKUP($I2190,Func,6)*$H2190","v":0},{"$f":"VLOOKUP($I2190,Func,7)*$H2190","v":0},null,{"$f":"Demand","v":0.38},{"$f":"+$J2190*$P2190","v":0},{"$f":"+$J2190*(1-$P2190)","v":0},{"$f":"Demand","v":0.38},{"$f":"+$K2190*$S2190","v":0},{"$f":"+$K2190*(1-$S2190)","v":0},"PLNT",{"$f":"+$L2190*VLOOKUP($V2190,DisFac,2)","v":0},{"$f":"+$L2190*VLOOKUP($V2190,DisFac,3)","v":0},{"$f":"+$L2190*VLOOKUP($V2190,DisFac,4)","v":0},{"$f":"+$L2190*VLOOKUP($V2190,DisFac,5)","v":0},{"$f":"+$L2190*VLOOKUP($V2190,DisFac,6)","v":0},0,"UACCT2281SO",{"$f":"ROUND(SUM(-H2190,J2190:N2190),0)","v":0},{"$f":"ROUND(J2190-Q2190-R2190,0)","v":0},{"$f":"ROUND(K2190-T2190-U2190,0)","v":0},{"$f":"ROUND(L2190-W2190-X2190-Y2190-Z2190-AA2190,0)","v":0}]
[2191,null,null,null,null,null,"ACCT2281",{"$f":"SUM(Acct2281SO)","v":0},null,{"$f":"SUM(J2190)","v":0},{"$f":"SUM(K2190)","v":0},{"$f":"SUM(L2190)","v":0},{"$f":"SUM(M2190)","v":0},{"$f":"SUM(N2190)","v":0},null,null,{"$f":"SUM(Q2190)","v":0},{"$f":"SUM(R2190)","v":0},null,{"$f":"SUM(T2190)","v":0},{"$f":"SUM(U2190)","v":0},null,{"$f":"SUM(W2190)","v":0},{"$f":"SUM(X2190)","v":0},{"$f":"SUM(Y2190)","v":0},{"$f":"SUM(Z2190)","v":0},{"$f":"SUM(AA2190)","v":0},0,"UACCT2281",{"$f":"ROUND(SUM(-H2191,J2191:N2191),0)","v":0},{"$f":"ROUND(J2191-Q2191-R2191,0)","v":0},{"$f":"ROUND(K2191-T2191-U2191,0)","v":0},{"$f":"ROUND(L2191-W2191-X2191-Y2191-Z2191-AA2191,0)","v":0}]
[2192]
[2193,2282,"Accum Prov for Injuries & Damages"]
[2194,null,null,"SO",228,"SO","ACCT228SO",{"$f":"'JAM Download'!E2454","v":-455823.63489991985},"PTD",{"$f":"VLOOKUP($I2194,Func,2)*$H2194","v":-231976.52564024017},{"$f":"VLOOKUP($I2194,Func,3)*$H2194","v":-89773.702373999549},{"$f":"VLOOKUP($I2194,Func,5)*$H2194","v":-134073.40688568013},{"$f":"VLOOKUP($I2194,Func,6)*$H2194","v":0},{"$f":"VLOOKUP($I2194,Func,7)*$H2194","v":0},null,{"$f":"Demand","v":0.38},{"$f":"+$J2194*$P2194","v":-88151.079743291266},{"$f":"+$J2194*(1-$P2194)","v":-143825.44589694889},{"$f":"Demand","v":0.38},{"$f":"+$K2194*$S2194","v":-34114.006902119829},{"$f":"+$K2194*(1-$S2194)","v":-55659.695471879721},"PLNT",{"$f":"+$L2194*VLOOKUP($V2194,DisFac,2)","v":-15750.887183952236},{"$f":"+$L2194*VLOOKUP($V2194,DisFac,3)","v":-64523.676621727114},{"$f":"+$L2194*VLOOKUP($V2194,DisFac,4)","v":-32721.701999249744},{"$f":"+$L2194*VLOOKUP($V2194,DisFac,5)","v":-3790.0805344655264},{"$f":"+$L2194*VLOOKUP($V2194,DisFac,6)","v":-17287.060546285513},-3790.0805344655264,"UACCT228SO",{"$f":"ROUND(SUM(-H2194,J2194:N2194),0)","v":0},{"$f":"ROUND(J2194-Q2194-R2194,0)","v":0},{"$f":"ROUND(K2194-T2194-U2194,0)","v":0},{"$f":"ROUND(L2194-W2194-X2194-Y2194-Z2194-AA2194,0)","v":0}]
[2195,null,null,null,null,null,"ACCT2282",{"$f":"SUM(Acct228SO)","v":-455823.63489991985},null,{"$f":"SUM(J2194)","v":-231976.52564024017},{"$f":"SUM(K2194)","v":-89773.702373999549},{"$f":"SUM(L2194)","v":-134073.40688568013},{"$f":"SUM(M2194)","v":0},{"$f":"SUM(N2194)","v":0},null,null,{"$f":"SUM(Q2194)","v":-88151.079743291266},{"$f":"SUM(R2194)","v":-143825.44589694889},null,{"$f":"SUM(T2194)","v":-34114.006902119829},{"$f":"SUM(U2194)","v":-55659.695471879721},null,{"$f":"SUM(W2194)","v":-15750.887183952236},{"$f":"SUM(X2194)","v":-64523.676621727114},{"$f":"SUM(Y2194)","v":-32721.701999249744},{"$f":"SUM(Z2194)","v":-3790.0805344655264},{"$f":"SUM(AA2194)","v":-17287.060546285513},-3790.0805344655264,"UACCT2282",{"$f":"ROUND(SUM(-H2195,J2195:N2195),0)","v":0},{"$f":"ROUND(J2195-Q2195-R2195,0)","v":0},{"$f":"ROUND(K2195-T2195-U2195,0)","v":0},{"$f":"ROUND(L2195-W2195-X2195-Y2195-Z2195-AA2195,0)","v":0}]
[2196]
[2197,2283,"Prov for Pension and Benefits"]
[2198,null,null,"SO",228,"SO","ACCT2283SO",{"$f":"'JAM Download'!E2455","v":-232873.29964495634},"PTD",{"$f":"VLOOKUP($I2198,Func,2)*$H2198","v":-118513.24685670668},{"$f":"VLOOKUP($I2198,Func,3)*$H2198","v":-45864.006805543555},{"$f":"VLOOKUP($I2198,Func,5)*$H2198","v":-68496.045982706084},{"$f":"VLOOKUP($I2198,Func,6)*$H2198","v":0},{"$f":"VLOOKUP($I2198,Func,7)*$H2198","v":0},null,{"$f":"Demand","v":0.38},{"$f":"+$J2198*$P2198","v":-45035.033805548541},{"$f":"+$J2198*(1-$P2198)","v":-73478.213051158149},{"$f":"Demand","v":0.38},{"$f":"+$K2198*$S2198","v":-17428.322586106551},{"$f":"+$K2198*(1-$S2198)","v":-28435.684219437004},"PLNT",{"$f":"+$L2198*VLOOKUP($V2198,DisFac,2)","v":-8046.8865368680254},{"$f":"+$L2198*VLOOKUP($V2198,DisFac,3)","v":-32964.156155318226},{"$f":"+$L2198*VLOOKUP($V2198,DisFac,4)","v":-16717.015378628388},{"$f":"+$L2198*VLOOKUP($V2198,DisFac,5)","v":-1936.2939795232235},{"$f":"+$L2198*VLOOKUP($V2198,DisFac,6)","v":-8831.6939323682182},-1936.2939795232235,"UACCT2283SO",{"$f":"ROUND(SUM(-H2198,J2198:N2198),0)","v":0},{"$f":"ROUND(J2198-Q2198-R2198,0)","v":0},{"$f":"ROUND(K2198-T2198-U2198,0)","v":0},{"$f":"ROUND(L2198-W2198-X2198-Y2198-Z2198-AA2198,0)","v":0}]
[2199,null,null,"S",228,"S","ACCT2283S",{"$f":"'JAM Download'!E2456","v":0},"PTD",{"$f":"VLOOKUP($I2199,Func,2)*$H2199","v":0},{"$f":"VLOOKUP($I2199,Func,3)*$H2199","v":0},{"$f":"VLOOKUP($I2199,Func,5)*$H2199","v":0},{"$f":"VLOOKUP($I2199,Func,6)*$H2199","v":0},{"$f":"VLOOKUP($I2199,Func,7)*$H2199","v":0},null,{"$f":"Demand","v":0.38},{"$f":"+$J2199*$P2199","v":0},{"$f":"+$J2199*(1-$P2199)","v":0},{"$f":"Demand","v":0.38},{"$f":"+$K2199*$S2199","v":0},{"$f":"+$K2199*(1-$S2199)","v":0},"PLNT",{"$f":"+$L2199*VLOOKUP($V2199,DisFac,2)","v":0},{"$f":"+$L2199*VLOOKUP($V2199,DisFac,3)","v":0},{"$f":"+$L2199*VLOOKUP($V2199,DisFac,4)","v":0},{"$f":"+$L2199*VLOOKUP($V2199,DisFac,5)","v":0},{"$f":"+$L2199*VLOOKUP($V2199,DisFac,6)","v":0},0,"UACCT2283SO",{"$f":"ROUND(SUM(-H2199,J2199:N2199),0)","v":0},{"$f":"ROUND(J2199-Q2199-R2199,0)","v":0},{"$f":"ROUND(K2199-T2199-U2199,0)","v":0},{"$f":"ROUND(L2199-W2199-X2199-Y2199-Z2199-AA2199,0)","v":0}]
[2200,null,null,null,null,null,"ACCT2283",{"$f":"Acct2283SO+H2199","v":-232873.29964495634},null,{"$f":"SUM(J2198:J2199)","v":-118513.24685670668},{"$f":"SUM(K2198:K2199)","v":-45864.006805543555},{"$f":"SUM(L2198:L2199)","v":-68496.045982706084},{"$f":"SUM(M2198:M2199)","v":0},{"$f":"SUM(N2198:N2199)","v":0},null,null,{"$f":"SUM(Q2198:Q2199)","v":-45035.033805548541},{"$f":"SUM(R2198:R2199)","v":-73478.213051158149},null,{"$f":"SUM(T2198:T2199)","v":-17428.322586106551},{"$f":"SUM(U2198:U2199)","v":-28435.684219437004},null,{"$f":"SUM(W2198:W2199)","v":-8046.8865368680254},{"$f":"SUM(X2198:X2199)","v":-32964.156155318226},{"$f":"SUM(Y2198:Y2199)","v":-16717.015378628388},{"$f":"SUM(Z2198:Z2199)","v":-1936.2939795232235},{"$f":"SUM(AA2198:AA2199)","v":-8831.6939323682182},-1936.2939795232235,"UACCT2283",{"$f":"ROUND(SUM(-H2200,J2200:N2200),0)","v":0},{"$f":"ROUND(J2200-Q2200-R2200,0)","v":0},{"$f":"ROUND(K2200-T2200-U2200,0)","v":0},{"$f":"ROUND(L2200-W2200-X2200-Y2200-Z2200-AA2200,0)","v":0}]
[2201,254,"Reg Liabilities - Insurance Provision"]
[2202,null,null,"SO",254,"SO","ACCT254SO",{"$f":"'JAM Download'!E2457","v":0},"PTD",{"$f":"VLOOKUP($I2202,Func,2)*$H2202","v":0},{"$f":"VLOOKUP($I2202,Func,3)*$H2202","v":0},{"$f":"VLOOKUP($I2202,Func,5)*$H2202","v":0},{"$f":"VLOOKUP($I2202,Func,6)*$H2202","v":0},{"$f":"VLOOKUP($I2202,Func,7)*$H2202","v":0},null,{"$f":"+Demand","v":0.38},{"$f":"+$J2202*$P2202","v":0},{"$f":"+$J2202*(1-$P2202)","v":0},{"$f":"Demand","v":0.38},{"$f":"+$K2202*$S2202","v":0},{"$f":"+$K2202*(1-$S2202)","v":0},"PLNT",{"$f":"+$L2202*VLOOKUP($V2202,DisFac,2)","v":0},{"$f":"+$L2202*VLOOKUP($V2202,DisFac,3)","v":0},{"$f":"+$L2202*VLOOKUP($V2202,DisFac,4)","v":0},{"$f":"+$L2202*VLOOKUP($V2202,DisFac,5)","v":0},{"$f":"+$L2202*VLOOKUP($V2202,DisFac,6)","v":0},0,"UACCT254SO",{"$f":"ROUND(SUM(-H2202,J2202:N2202),0)","v":0},{"$f":"ROUND(J2202-Q2202-R2202,0)","v":0},{"$f":"ROUND(K2202-T2202-U2202,0)","v":0},{"$f":"ROUND(L2202-W2202-X2202-Y2202-Z2202-AA2202,0)","v":0}]
[2203,null,null,null,null,null,"ACCT254",{"$f":"SUM(H2202)","v":0},null,{"$f":"SUM(J2202)","v":0},{"$f":"SUM(K2202)","v":0},{"$f":"SUM(L2202)","v":0},{"$f":"SUM(M2202)","v":0},{"$f":"SUM(N2202)","v":0},null,{"$f":"+Demand","v":0.38},{"$f":"SUM(Q2202)","v":0},{"$f":"SUM(R2202)","v":0},null,{"$f":"SUM(T2202)","v":0},{"$f":"SUM(U2202)","v":0},null,{"$f":"SUM(W2202)","v":0},{"$f":"SUM(X2202)","v":0},{"$f":"SUM(Y2202)","v":0},{"$f":"SUM(Z2202)","v":0},{"$f":"SUM(AA2202)","v":0},0,"UACCT22841",{"$f":"ROUND(SUM(-H2203,J2203:N2203),0)","v":0},{"$f":"ROUND(J2203-Q2203-R2203,0)","v":0},{"$f":"ROUND(K2203-T2203-U2203,0)","v":0},{"$f":"ROUND(L2203-W2203-X2203-Y2203-Z2203-AA2203,0)","v":0}]
[2204]
[2205,22844,"Hydro Relicensing Obligations",null,22844,"CAGW","ACCT22844CAGW",{"$f":"'JAM Download'!E2462","v":-335802.44440276822},"P",{"$f":"VLOOKUP($I2205,Func,2)*$H2205","v":-335802.44440276822},{"$f":"VLOOKUP($I2205,Func,3)*$H2205","v":0},{"$f":"VLOOKUP($I2205,Func,5)*$H2205","v":0},{"$f":"VLOOKUP($I2205,Func,6)*$H2205","v":0},{"$f":"VLOOKUP($I2205,Func,7)*$H2205","v":0},null,{"$f":"Demand","v":0.38},{"$f":"+$J2205*$P2205","v":-127604.92887305192},{"$f":"+$J2205*(1-$P2205)","v":-208197.5155297163},{"$f":"Demand","v":0.38},{"$f":"+$K2205*$S2205","v":0},{"$f":"+$K2205*(1-$S2205)","v":0},"PLNT",{"$f":"+$L2205*VLOOKUP($V2205,DisFac,2)","v":0},{"$f":"+$L2205*VLOOKUP($V2205,DisFac,3)","v":0},{"$f":"+$L2205*VLOOKUP($V2205,DisFac,4)","v":0},{"$f":"+$L2205*VLOOKUP($V2205,DisFac,5)","v":0},{"$f":"+$L2205*VLOOKUP($V2205,DisFac,6)","v":0},0,"UACCT22844SG",{"$f":"ROUND(SUM(-H2205,J2205:N2205),0)","v":0},{"$f":"ROUND(J2205-Q2205-R2205,0)","v":0},{"$f":"ROUND(K2205-T2205-U2205,0)","v":0},{"$f":"ROUND(L2205-W2205-X2205-Y2205-Z2205-AA2205,0)","v":0}]
[2206,null,null,null,null,null,"ACCT22844",{"$f":"'JAM Download'!E2463","v":-335802.44440276822},null,{"$f":"SUM(J2205)","v":-335802.44440276822},{"$f":"SUM(K2205)","v":0},{"$f":"SUM(L2205)","v":0},{"$f":"SUM(M2205)","v":0},{"$f":"SUM(N2205)","v":0},null,null,{"$f":"SUM(Q2205)","v":-127604.92887305192},{"$f":"SUM(R2205)","v":-208197.5155297163},null,{"$f":"SUM(T2205)","v":0},{"$f":"SUM(U2205)","v":0},null,{"$f":"SUM(W2205)","v":0},{"$f":"SUM(X2205)","v":0},{"$f":"SUM(Y2205)","v":0},{"$f":"SUM(Z2205)","v":0},{"$f":"SUM(AA2205)","v":0},0,null,{"$f":"ROUND(SUM(-H2206,J2206:N2206),0)","v":0},{"$f":"ROUND(J2206-Q2206-R2206,0)","v":0},{"$f":"ROUND(K2206-T2206-U2206,0)","v":0},{"$f":"ROUND(L2206-W2206-X2206-Y2206-Z2206-AA2206,0)","v":0}]
[2207]
[2208,22842,"Accum Misc Oper Prov-Trojan",null,22842,"TROJD","ACCT22842TROJD",{"$f":"'JAM Download'!E2465+'JAM Download'!E2466+'JAM Download'!E2467","v":384826.58383690432},"P",{"$f":"VLOOKUP($I2208,Func,2)*$H2208","v":384826.58383690432},{"$f":"VLOOKUP($I2208,Func,3)*$H2208","v":0},{"$f":"VLOOKUP($I2208,Func,5)*$H2208","v":0},{"$f":"VLOOKUP($I2208,Func,6)*$H2208","v":0},{"$f":"VLOOKUP($I2208,Func,7)*$H2208","v":0},null,{"$f":"Demand","v":0.38},{"$f":"+$J2208*$P2208","v":146234.10185802364},{"$f":"+$J2208*(1-$P2208)","v":238592.48197888068},{"$f":"Demand","v":0.38},{"$f":"+$K2208*$S2208","v":0},{"$f":"+$K2208*(1-$S2208)","v":0},"PLNT",{"$f":"+$L2208*VLOOKUP($V2208,DisFac,2)","v":0},{"$f":"+$L2208*VLOOKUP($V2208,DisFac,3)","v":0},{"$f":"+$L2208*VLOOKUP($V2208,DisFac,4)","v":0},{"$f":"+$L2208*VLOOKUP($V2208,DisFac,5)","v":0},{"$f":"+$L2208*VLOOKUP($V2208,DisFac,6)","v":0},0,null,{"$f":"ROUND(SUM(-H2208,J2208:N2208),0)","v":0},{"$f":"ROUND(J2208-Q2208-R2208,0)","v":0},{"$f":"ROUND(K2208-T2208-U2208,0)","v":0},{"$f":"ROUND(L2208-W2208-X2208-Y2208-Z2208-AA2208,0)","v":0}]
[2209,254,"Regulatory Liability",null,254,"SE","ACCT254SE",{"$f":"'JAM Download'!E2469","v":0},"P",{"$f":"VLOOKUP($I2209,Func,2)*$H2209","v":0},{"$f":"VLOOKUP($I2209,Func,3)*$H2209","v":0},{"$f":"VLOOKUP($I2209,Func,5)*$H2209","v":0},{"$f":"VLOOKUP($I2209,Func,6)*$H2209","v":0},{"$f":"VLOOKUP($I2209,Func,7)*$H2209","v":0},null,{"$f":"Demand","v":0.38},{"$f":"+$J2209*$P2209","v":0},{"$f":"+$J2209*(1-$P2209)","v":0},{"$f":"Demand","v":0.38},{"$f":"+$K2209*$S2209","v":0},{"$f":"+$K2209*(1-$S2209)","v":0},"PLNT",{"$f":"+$L2209*VLOOKUP($V2209,DisFac,2)","v":0},{"$f":"+$L2209*VLOOKUP($V2209,DisFac,3)","v":0},{"$f":"+$L2209*VLOOKUP($V2209,DisFac,4)","v":0},{"$f":"+$L2209*VLOOKUP($V2209,DisFac,5)","v":0},{"$f":"+$L2209*VLOOKUP($V2209,DisFac,6)","v":0},0,null,{"$f":"ROUND(SUM(-H2209,J2209:N2209),0)","v":0},{"$f":"ROUND(J2209-Q2209-R2209,0)","v":0},{"$f":"ROUND(K2209-T2209-U2209,0)","v":0},{"$f":"ROUND(L2209-W2209-X2209-Y2209-Z2209-AA2209,0)","v":0}]
[2210,254,"Regulatory Liability",null,254,"S","ACCT254S",{"$f":"'JAM Download'!E2470","v":85.71},"P",{"$f":"VLOOKUP($I2210,Func,2)*$H2210","v":85.71},{"$f":"VLOOKUP($I2210,Func,3)*$H2210","v":0},{"$f":"VLOOKUP($I2210,Func,5)*$H2210","v":0},{"$f":"VLOOKUP($I2210,Func,6)*$H2210","v":0},{"$f":"VLOOKUP($I2210,Func,7)*$H2210","v":0},null,{"$f":"Demand","v":0.38},{"$f":"+$J2210*$P2210","v":32.569800000000001},{"$f":"+$J2210*(1-$P2210)","v":53.140199999999993},{"$f":"Demand","v":0.38},{"$f":"+$K2210*$S2210","v":0},{"$f":"+$K2210*(1-$S2210)","v":0},"PLNT",{"$f":"+$L2210*VLOOKUP($V2210,DisFac,2)","v":0},{"$f":"+$L2210*VLOOKUP($V2210,DisFac,3)","v":0},{"$f":"+$L2210*VLOOKUP($V2210,DisFac,4)","v":0},{"$f":"+$L2210*VLOOKUP($V2210,DisFac,5)","v":0},{"$f":"+$L2210*VLOOKUP($V2210,DisFac,6)","v":0},0,null,{"$f":"ROUND(SUM(-H2210,J2210:N2210),0)","v":0},{"$f":"ROUND(J2210-Q2210-R2210,0)","v":0},{"$f":"ROUND(K2210-T2210-U2210,0)","v":0},{"$f":"ROUND(L2210-W2210-X2210-Y2210-Z2210-AA2210,0)","v":0}]
[2211,null,null,null,null,null,null,{"$f":"'JAM Download'!E2471","v":384912.29383690434},null,{"$f":"SUM(J2208:J2210)","v":384912.29383690434},{"$f":"SUM(K2208:K2210)","v":0},{"$f":"SUM(L2208:L2210)","v":0},{"$f":"SUM(M2208:M2210)","v":0},{"$f":"SUM(N2208:N2210)","v":0},null,null,{"$f":"SUM(Q2208:Q2210)","v":146266.67165802364},{"$f":"SUM(R2208:R2210)","v":238645.62217888067},null,{"$f":"SUM(T2208:T2210)","v":0},{"$f":"SUM(U2208:U2210)","v":0},null,{"$f":"SUM(W2208:W2210)","v":0},{"$f":"SUM(X2208:X2210)","v":0},{"$f":"SUM(Y2208:Y2210)","v":0},{"$f":"SUM(Z2208:Z2210)","v":0},{"$f":"SUM(AA2208:AA2210)","v":0},0,"UACCT22842",{"$f":"ROUND(SUM(-H2211,J2211:N2211),0)","v":0},{"$f":"ROUND(J2211-Q2211-R2211,0)","v":0},{"$f":"ROUND(K2211-T2211-U2211,0)","v":0},{"$f":"ROUND(L2211-W2211-X2211-Y2211-Z2211-AA2211,0)","v":0}]
[2212]
[2213,252,"Customer Advances for Construction"]
[2214,null,null,"S",252,"S","ACCT252S",{"$f":"'JAM Download'!E2474","v":-162155.840417},"DPW",{"$f":"VLOOKUP($I2214,Func,2)*$H2214","v":0},{"$f":"VLOOKUP($I2214,Func,3)*$H2214","v":0},{"$f":"VLOOKUP($I2214,Func,5)*$H2214","v":-162155.840417},{"$f":"VLOOKUP($I2214,Func,6)*$H2214","v":0},{"$f":"VLOOKUP($I2214,Func,7)*$H2214","v":0},null,{"$f":"Demand","v":0.38},{"$f":"+$J2214*$P2214","v":0},{"$f":"+$J2214*(1-$P2214)","v":0},{"$f":"Demand","v":0.38},{"$f":"+$K2214*$S2214","v":0},{"$f":"+$K2214*(1-$S2214)","v":0},"PLNT",{"$f":"+$L2214*VLOOKUP($V2214,DisFac,2)","v":-19049.999608087252},{"$f":"+$L2214*VLOOKUP($V2214,DisFac,3)","v":-78038.525703402527},{"$f":"+$L2214*VLOOKUP($V2214,DisFac,4)","v":-39575.447591088894},{"$f":"+$L2214*VLOOKUP($V2214,DisFac,5)","v":-4583.9343430603258},{"$f":"+$L2214*VLOOKUP($V2214,DisFac,6)","v":-20907.93317136099},-4583.9343430603258,"UACCT252S",{"$f":"ROUND(SUM(-H2214,J2214:N2214),0)","v":0},{"$f":"ROUND(J2214-Q2214-R2214,0)","v":0},{"$f":"ROUND(K2214-T2214-U2214,0)","v":0},{"$f":"ROUND(L2214-W2214-X2214-Y2214-Z2214-AA2214,0)","v":0}]
[2215,null,null,"SNPD",252,"SNPD","ACCT252SNPD",0,"DPW",{"$f":"VLOOKUP($I2215,Func,2)*$H2215","v":0},{"$f":"VLOOKUP($I2215,Func,3)*$H2215","v":0},{"$f":"VLOOKUP($I2215,Func,5)*$H2215","v":0},{"$f":"VLOOKUP($I2215,Func,6)*$H2215","v":0},{"$f":"VLOOKUP($I2215,Func,7)*$H2215","v":0},null,{"$f":"Demand","v":0.38},{"$f":"+$J2215*$P2215","v":0},{"$f":"+$J2215*(1-$P2215)","v":0},{"$f":"Demand","v":0.38},{"$f":"+$K2215*$S2215","v":0},{"$f":"+$K2215*(1-$S2215)","v":0},"PLNT",{"$f":"+$L2215*VLOOKUP($V2215,DisFac,2)","v":0},{"$f":"+$L2215*VLOOKUP($V2215,DisFac,3)","v":0},{"$f":"+$L2215*VLOOKUP($V2215,DisFac,4)","v":0},{"$f":"+$L2215*VLOOKUP($V2215,DisFac,5)","v":0},{"$f":"+$L2215*VLOOKUP($V2215,DisFac,6)","v":0},0,"UACCT252DNPDP",0,0,0,0]
[2216,null,null,"SG",252,"SG","ACCT252SG",{"$f":"'JAM Download'!E2475+'JAM Download'!E2476","v":18276.841740963751},"T",{"$f":"VLOOKUP($I2216,Func,2)*$H2216","v":0},{"$f":"VLOOKUP($I2216,Func,3)*$H2216","v":18276.841740963751},{"$f":"VLOOKUP($I2216,Func,5)*$H2216","v":0},{"$f":"VLOOKUP($I2216,Func,6)*$H2216","v":0},{"$f":"VLOOKUP($I2216,Func,7)*$H2216","v":0},null,{"$f":"Demand","v":0.38},{"$f":"+$J2216*$P2216","v":0},{"$f":"+$J2216*(1-$P2216)","v":0},{"$f":"Demand","v":0.38},{"$f":"+$K2216*$S2216","v":6945.199861566226},{"$f":"+$K2216*(1-$S2216)","v":11331.641879397526},"PLNT",{"$f":"+$L2216*VLOOKUP($V2216,DisFac,2)","v":0},{"$f":"+$L2216*VLOOKUP($V2216,DisFac,3)","v":0},{"$f":"+$L2216*VLOOKUP($V2216,DisFac,4)","v":0},{"$f":"+$L2216*VLOOKUP($V2216,DisFac,5)","v":0},{"$f":"+$L2216*VLOOKUP($V2216,DisFac,6)","v":0},0,"UACCT252SG",0,0,0,0]
[2217,null,null,"SO",252,"SO","ACCT252SO",{"$f":"'JAM Download'!E2477","v":0},"DPW",{"$f":"VLOOKUP($I2217,Func,2)*$H2217","v":0},{"$f":"VLOOKUP($I2217,Func,3)*$H2217","v":0},{"$f":"VLOOKUP($I2217,Func,5)*$H2217","v":0},{"$f":"VLOOKUP($I2217,Func,6)*$H2217","v":0},{"$f":"VLOOKUP($I2217,Func,7)*$H2217","v":0},null,{"$f":"Demand","v":0.38},{"$f":"+$J2217*$P2217","v":0},{"$f":"+$J2217*(1-$P2217)","v":0},{"$f":"Demand","v":0.38},{"$f":"+$K2217*$S2217","v":0},{"$f":"+$K2217*(1-$S2217)","v":0},"PLNT",{"$f":"+$L2217*VLOOKUP($V2217,DisFac,2)","v":0},{"$f":"+$L2217*VLOOKUP($V2217,DisFac,3)","v":0},{"$f":"+$L2217*VLOOKUP($V2217,DisFac,4)","v":0},{"$f":"+$L2217*VLOOKUP($V2217,DisFac,5)","v":0},{"$f":"+$L2217*VLOOKUP($V2217,DisFac,6)","v":0},0,"UACCT252SO",0,0,0,0]
[2218,null,null,"CN",252,"CN","ACCT252CN",{"$f":"'JAM Download'!E2478","v":0},"CUST",{"$f":"VLOOKUP($I2218,Func,2)*$H2218","v":0},{"$f":"VLOOKUP($I2218,Func,3)*$H2218","v":0},{"$f":"VLOOKUP($I2218,Func,5)*$H2218","v":0},{"$f":"VLOOKUP($I2218,Func,6)*$H2218","v":0},{"$f":"VLOOKUP($I2218,Func,7)*$H2218","v":0},null,{"$f":"Demand","v":0.38},{"$f":"+$J2218*$P2218","v":0},{"$f":"+$J2218*(1-$P2218)","v":0},{"$f":"Demand","v":0.38},{"$f":"+$K2218*$S2218","v":0},{"$f":"+$K2218*(1-$S2218)","v":0},"CUST",{"$f":"+$L2218*VLOOKUP($V2218,DisFac,2)","v":0},{"$f":"+$L2218*VLOOKUP($V2218,DisFac,3)","v":0},{"$f":"+$L2218*VLOOKUP($V2218,DisFac,4)","v":0},{"$f":"+$L2218*VLOOKUP($V2218,DisFac,5)","v":0},{"$f":"+$L2218*VLOOKUP($V2218,DisFac,6)","v":0},0,"UACCT252CN",0,0,0,0]
[2219,null,null,null,null,null,"ACCT252",{"$f":"'JAM Download'!E2479","v":-143878.99867603625},null,{"$f":"SUM(J2214:J2218)","v":0},{"$f":"SUM(K2214:K2218)","v":18276.841740963751},{"$f":"SUM(L2214:L2218)","v":-162155.840417},{"$f":"SUM(M2214:M2218)","v":0},{"$f":"SUM(N2214:N2218)","v":0},null,null,{"$f":"SUM(Q2214:Q2218)","v":0},{"$f":"SUM(R2214:R2218)","v":0},null,{"$f":"SUM(T2214:T2218)","v":6945.199861566226},{"$f":"SUM(U2214:U2218)","v":11331.641879397526},null,{"$f":"SUM(W2214:W2218)","v":-19049.999608087252},{"$f":"SUM(X2214:X2218)","v":-78038.525703402527},{"$f":"SUM(Y2214:Y2218)","v":-39575.447591088894},{"$f":"SUM(Z2214:Z2218)","v":-4583.9343430603258},{"$f":"SUM(AA2214:AA2218)","v":-20907.93317136099},-4583.9343430603258,"UACCT252",0,0,0,0]
[2220]
[2221,25398,"SO2 Emmissions",null,25398,"SE","ACCT25398SE",{"$f":"'JAM Download'!E2482","v":-1721174.3189683419},"P",{"$f":"VLOOKUP($I2221,Func,2)*$H2221","v":-1721174.3189683419},{"$f":"VLOOKUP($I2221,Func,3)*$H2221","v":0},{"$f":"VLOOKUP($I2221,Func,5)*$H2221","v":0},{"$f":"VLOOKUP($I2221,Func,6)*$H2221","v":0},{"$f":"VLOOKUP($I2221,Func,7)*$H2221","v":0},null,{"$f":"Demand","v":0.38},{"$f":"+$J2221*$P2221","v":-654046.24120796996},{"$f":"+$J2221*(1-$P2221)","v":-1067128.0777603721},{"$f":"Demand","v":0.38},{"$f":"+$K2221*$S2221","v":0},{"$f":"+$K2221*(1-$S2221)","v":0},"PLNT",{"$f":"+$L2221*VLOOKUP($V2221,DisFac,2)","v":0},{"$f":"+$L2221*VLOOKUP($V2221,DisFac,3)","v":0},{"$f":"+$L2221*VLOOKUP($V2221,DisFac,4)","v":0},{"$f":"+$L2221*VLOOKUP($V2221,DisFac,5)","v":0},{"$f":"+$L2221*VLOOKUP($V2221,DisFac,6)","v":0},0,"UACCT25398SE",{"$f":"ROUND(SUM(-H2221,J2221:N2221),0)","v":0},{"$f":"ROUND(J2221-Q2221-R2221,0)","v":0},{"$f":"ROUND(K2221-T2221-U2221,0)","v":0},{"$f":"ROUND(L2221-W2221-X2221-Y2221-Z2221-AA2221,0)","v":0}]
[2222,null,null,null,null,null,null,{"$f":"'JAM Download'!E2483","v":-1721174.3189683419},null,{"$f":"SUM(J2221)","v":-1721174.3189683419},{"$f":"SUM(K2221)","v":0},{"$f":"SUM(L2221)","v":0},{"$f":"SUM(M2221)","v":0},{"$f":"SUM(N2221)","v":0},null,null,{"$f":"SUM(Q2221)","v":-654046.24120796996},{"$f":"SUM(R2221)","v":-1067128.0777603721},null,null,null,null,{"$f":"SUM(W2221)","v":0},{"$f":"SUM(X2221)","v":0},{"$f":"SUM(Y2221)","v":0},{"$f":"SUM(Z2221)","v":0},{"$f":"SUM(AA2221)","v":0},0,"UACCT25398",{"$f":"ROUND(SUM(-H2222,J2222:N2222),0)","v":0},{"$f":"ROUND(J2222-Q2222-R2222,0)","v":0},{"$f":"ROUND(K2222-T2222-U2222,0)","v":0},{"$f":"ROUND(L2222-W2222-X2222-Y2222-Z2222-AA2222,0)","v":0}]
[2223]
[2224,25399,null,"Other Deferred Credits"]
[2225,null,null,"S",25399,"S","ACCT25399S",{"$f":"'JAM Download'!E2486","v":-361553.18708333297},"P",{"$f":"VLOOKUP($I2225,Func,2)*$H2225","v":-361553.18708333297},{"$f":"VLOOKUP($I2225,Func,3)*$H2225","v":0},{"$f":"VLOOKUP($I2225,Func,5)*$H2225","v":0},{"$f":"VLOOKUP($I2225,Func,6)*$H2225","v":0},{"$f":"VLOOKUP($I2225,Func,7)*$H2225","v":0},null,{"$f":"Demand","v":0.38},{"$f":"+$J2225*$P2225","v":-137390.21109166654},{"$f":"+$J2225*(1-$P2225)","v":-224162.97599166643},{"$f":"Demand","v":0.38},{"$f":"+$K2225*$S2225","v":0},{"$f":"+$K2225*(1-$S2225)","v":0},"PLNT",{"$f":"+$L2225*VLOOKUP($V2225,DisFac,2)","v":0},{"$f":"+$L2225*VLOOKUP($V2225,DisFac,3)","v":0},{"$f":"+$L2225*VLOOKUP($V2225,DisFac,4)","v":0},{"$f":"+$L2225*VLOOKUP($V2225,DisFac,5)","v":0},{"$f":"+$L2225*VLOOKUP($V2225,DisFac,6)","v":0},0,"UACCT25399S",{"$f":"ROUND(SUM(-H2225,J2225:N2225),0)","v":0},{"$f":"ROUND(J2225-Q2225-R2225,0)","v":0},{"$f":"ROUND(K2225-T2225-U2225,0)","v":0},{"$f":"ROUND(L2225-W2225-X2225-Y2225-Z2225-AA2225,0)","v":0}]
[2226,null,null,"GPS",25399,"GPS","ACCT25399GPS",{"$f":"'JAM Download'!E2487","v":0},"GP",{"$f":"VLOOKUP($I2226,Func,2)*$H2226","v":0},{"$f":"VLOOKUP($I2226,Func,3)*$H2226","v":0},{"$f":"VLOOKUP($I2226,Func,5)*$H2226","v":0},{"$f":"VLOOKUP($I2226,Func,6)*$H2226","v":0},{"$f":"VLOOKUP($I2226,Func,7)*$H2226","v":0},null,{"$f":"Demand","v":0.38},{"$f":"+$J2226*$P2226","v":0},{"$f":"+$J2226*(1-$P2226)","v":0},{"$f":"Demand","v":0.38},{"$f":"+$K2226*$S2226","v":0},{"$f":"+$K2226*(1-$S2226)","v":0},"PLNT",{"$f":"+$L2226*VLOOKUP($V2226,DisFac,2)","v":0},{"$f":"+$L2226*VLOOKUP($V2226,DisFac,3)","v":0},{"$f":"+$L2226*VLOOKUP($V2226,DisFac,4)","v":0},{"$f":"+$L2226*VLOOKUP($V2226,DisFac,5)","v":0},{"$f":"+$L2226*VLOOKUP($V2226,DisFac,6)","v":0},0,"UACCT165DGP",0,0,0,0]
[2227,null,null,"SO",25399,"SO","ACCT25399SO",{"$f":"'JAM Download'!E2488","v":0},"GP",{"$f":"VLOOKUP($I2227,Func,2)*$H2227","v":0},{"$f":"VLOOKUP($I2227,Func,3)*$H2227","v":0},{"$f":"VLOOKUP($I2227,Func,5)*$H2227","v":0},{"$f":"VLOOKUP($I2227,Func,6)*$H2227","v":0},{"$f":"VLOOKUP($I2227,Func,7)*$H2227","v":0},null,{"$f":"Demand","v":0.38},{"$f":"+$J2227*$P2227","v":0},{"$f":"+$J2227*(1-$P2227)","v":0},{"$f":"Demand","v":0.38},{"$f":"+$K2227*$S2227","v":0},{"$f":"+$K2227*(1-$S2227)","v":0},"PLNT",{"$f":"+$L2227*VLOOKUP($V2227,DisFac,2)","v":0},{"$f":"+$L2227*VLOOKUP($V2227,DisFac,3)","v":0},{"$f":"+$L2227*VLOOKUP($V2227,DisFac,4)","v":0},{"$f":"+$L2227*VLOOKUP($V2227,DisFac,5)","v":0},{"$f":"+$L2227*VLOOKUP($V2227,DisFac,6)","v":0},0,"UACCT25399SO",0,0,0,0]
[2228,null,null,"SG/CAGE/CAGW",25399,"CAGW","ACCT25399CAGW",{"$f":"'JAM Download'!E2491+'JAM Download'!E2490+'JAM Download'!E2489","v":-725502.30351634661},"P",{"$f":"VLOOKUP($I2228,Func,2)*$H2228","v":-725502.30351634661},{"$f":"VLOOKUP($I2228,Func,3)*$H2228","v":0},{"$f":"VLOOKUP($I2228,Func,5)*$H2228","v":0},{"$f":"VLOOKUP($I2228,Func,6)*$H2228","v":0},{"$f":"VLOOKUP($I2228,Func,7)*$H2228","v":0},null,{"$f":"Demand","v":0.38},{"$f":"+$J2228*$P2228","v":-275690.8753362117},{"$f":"+$J2228*(1-$P2228)","v":-449811.42818013491},{"$f":"Demand","v":0.38},{"$f":"+$K2228*$S2228","v":0},{"$f":"+$K2228*(1-$S2228)","v":0},"PLNT",{"$f":"+$L2228*VLOOKUP($V2228,DisFac,2)","v":0},{"$f":"+$L2228*VLOOKUP($V2228,DisFac,3)","v":0},{"$f":"+$L2228*VLOOKUP($V2228,DisFac,4)","v":0},{"$f":"+$L2228*VLOOKUP($V2228,DisFac,5)","v":0},{"$f":"+$L2228*VLOOKUP($V2228,DisFac,6)","v":0},0,"UACCT25399SG",0,0,0,0]
[2229,null,null,"SE/CAEE/CAEW",25399,"SE","ACCT25399SE",{"$f":"'JAM Download'!E2494+'JAM Download'!E2493+'JAM Download'!E2492","v":-296.79924082787392},"P",{"$f":"VLOOKUP($I2229,Func,2)*$H2229","v":-296.79924082787392},{"$f":"VLOOKUP($I2229,Func,3)*$H2229","v":0},{"$f":"VLOOKUP($I2229,Func,5)*$H2229","v":0},{"$f":"VLOOKUP($I2229,Func,6)*$H2229","v":0},{"$f":"VLOOKUP($I2229,Func,7)*$H2229","v":0},null,{"$f":"Demand","v":0.38},{"$f":"+$J2229*$P2229","v":-112.78371151459208},{"$f":"+$J2229*(1-$P2229)","v":-184.01552931328183},{"$f":"Demand","v":0.38},{"$f":"+$K2229*$S2229","v":0},{"$f":"+$K2229*(1-$S2229)","v":0},"PLNT",{"$f":"+$L2229*VLOOKUP($V2229,DisFac,2)","v":0},{"$f":"+$L2229*VLOOKUP($V2229,DisFac,3)","v":0},{"$f":"+$L2229*VLOOKUP($V2229,DisFac,4)","v":0},{"$f":"+$L2229*VLOOKUP($V2229,DisFac,5)","v":0},{"$f":"+$L2229*VLOOKUP($V2229,DisFac,6)","v":0},0,"UACCT25399SE",0,0,0,0]
[2230,null,null,null,25399,null,"ACCT25399",{"$f":"'JAM Download'!E2495","v":-1087352.2898405076},null,{"$f":"SUM(J2225:J2229)","v":-1087352.2898405073},{"$f":"SUM(K2225:K2229)","v":0},{"$f":"SUM(L2225:L2229)","v":0},{"$f":"SUM(M2225:M2229)","v":0},{"$f":"SUM(N2225:N2229)","v":0},null,null,{"$f":"SUM(Q2225:Q2229)","v":-413193.87013939285},{"$f":"SUM(R2225:R2229)","v":-674158.41970111465},null,{"$f":"SUM(T2225:T2229)","v":0},{"$f":"SUM(U2225:U2229)","v":0},null,{"$f":"SUM(W2225:W2229)","v":0},{"$f":"SUM(X2225:X2229)","v":0},{"$f":"SUM(Y2225:Y2229)","v":0},{"$f":"SUM(Z2225:Z2229)","v":0},{"$f":"SUM(AA2225:AA2229)","v":0},0,"UACCT25399",0,0,0,0]
[2231]
[2232,190,"Accumulated Deferred Income Taxes"]
[2233,null,null,"S",190,"S","ACCT190S",{"$f":"'JAM Download'!E2498","v":653174.87937758258},"P",{"$f":"VLOOKUP($I2233,Func,2)*$H2233","v":653174.87937758258},{"$f":"VLOOKUP($I2233,Func,3)*$H2233","v":0},{"$f":"VLOOKUP($I2233,Func,5)*$H2233","v":0},{"$f":"VLOOKUP($I2233,Func,6)*$H2233","v":0},{"$f":"VLOOKUP($I2233,Func,7)*$H2233","v":0},null,{"$f":"Demand","v":0.38},{"$f":"+$J2233*$P2233","v":248206.45416348139},{"$f":"+$J2233*(1-$P2233)","v":404968.42521410121},{"$f":"Demand","v":0.38},{"$f":"+$K2233*$S2233","v":0},{"$f":"+$K2233*(1-$S2233)","v":0},"PLNT",{"$f":"+$L2233*VLOOKUP($V2233,DisFac,2)","v":0},{"$f":"+$L2233*VLOOKUP($V2233,DisFac,3)","v":0},{"$f":"+$L2233*VLOOKUP($V2233,DisFac,4)","v":0},{"$f":"+$L2233*VLOOKUP($V2233,DisFac,5)","v":0},{"$f":"+$L2233*VLOOKUP($V2233,DisFac,6)","v":0},0,"UACCT190S",{"$f":"ROUND(SUM(-H2233,J2233:N2233),0)","v":0},{"$f":"ROUND(J2233-Q2233-R2233,0)","v":0},{"$f":"ROUND(K2233-T2233-U2233,0)","v":0},{"$f":"ROUND(L2233-W2233-X2233-Y2233-Z2233-AA2233,0)","v":0}]
[2234,null,null,"SG/CAGW",190,"CAGW","ACCT190CAGW",{"$f":"'JAM Download'!E2504+'JAM Download'!E2507+'JAM Download'!E2508","v":0.17680933605879545},"P",0.17680933605879545,0,0,0,0,null,{"$f":"Demand","v":0.38},6.7187547702342268E-2,0.10962178835645318,0.38,0,0,"PLNT",0,0,0,0,0,0,"UACCT190SG",0,0,0,0]
[2235,null,null,"DOP",190,"SO","ACCT190SO",{"$f":"'JAM Download'!E2500","v":-8.1554587855935097},"LABOR",-3.5539259978562563,-0.58742365605454128,-2.8249547278197382,-1.189154403862974,0,null,{"$f":"Demand","v":0.38},-1.3504918791853775,-2.203434118670879,0.38,-0.22322098930072568,-0.36420266675381557,"DISom",-0.37073779109395832,-2.0620175795061515,-1.944999644338663E-2,-0.37274936077624266,0,-0.37274936077624266,"UACCT190DOP",0,0,0,0]
[2236,null,null,"CN",190,"CN","ACCT190CN",{"$f":"'JAM Download'!E2499","v":-3.4650516230612993E-2},"CUST",0,0,0,-3.4650516230612993E-2,0,null,{"$f":"Demand","v":0.38},0,0,0.38,0,0,"CUST",0,0,0,0,0,0,"UACCT190SG",0,0,0,0]
[{"$f":"A2236+1","v":2237},null,null,"BADDEBT",190,"BADDEBT","ACCT190BADDEBT",{"$f":"+'JAM Download'!E2502","v":-6.3889920245856047E-2},"CUST",0,0,0,-6.3889920245856047E-2,0,null,{"$f":"Demand","v":0.38},0,0,0.38,0,0,"CUST",0,0,0,0,0,0,"UACCT190BADDEBT",0,0,0,0]
[2238,null,null,"TROJD",190,"TROJD","ACCT190TROJD",{"$f":"'JAM Download'!E2503","v":9.4293096335604787E-3},"P",9.4293096335604787E-3,0,0,0,0,null,{"$f":"+Demand","v":0.38},3.583137660752982E-3,5.8461719728074967E-3,0.38,0,0,"PLNT",0,0,0,0,0,0,"UACCT18222TROJP",0,0,0,0]
[2239,null,null,"JBE",190,"JBE","ACCT190JBE",{"$f":"'JAM Download'!E2511","v":-7912315.8657075409},"P",-7912315.8657075409,0,0,0,0,null,{"$f":"Demand","v":0.38},-3006680.0289688655,-4905635.8367386749,0.38,0,0,"PLNT",0,0,0,0,0,0,"UACCT190SG",0,0,0,0]
[2240,null,null,"SE/CAEW",190,"SE","ACCT190SE",{"$f":"'JAM Download'!E2505+'JAM Download'!E2509+'JAM Download'!E2510","v":0.11221673255204223},"P",0.11221673255204223,0,0,0,0,null,{"$f":"Demand","v":0.38},4.2642358369776048E-2,6.9574374182266183E-2,0.38,0,0,"PLNT",0,0,0,0,0,0,"UACCT190SE",0,0,0,0]
[2241,null,null,"SNP",190,"SNP","ACCT190SNP",{"$f":"'JAM Download'!E2506","v":0},"PTD",0,0,0,0,0,null,{"$f":"Demand","v":0.38},0,0,0.38,0,0,"PLNT",0,0,0,0,0,0,"UACCT190SNP",0,0,0,0]
[2242,null,null,"SNPD",190,"SNPD","ACCT190SNPD",{"$f":"'JAM Download'!E2512","v":-2.9634932536282577E-2},"DPW",0,0,-2.9634932536282577E-2,0,0,null,{"$f":"Demand","v":0.38},0,0,0.38,0,0,"PLNT",-3.4814993511802597E-3,-1.4261999065245102E-2,-7.2326455614493629E-3,-8.3774093278418823E-4,-3.8210476256236633E-3,-8.3774093278418823E-4,"UACCT190SNPD",0,0,0,0]
[2243,null,null,null,null,null,"ACCT190",{"$f":"'JAM Download'!E2514","v":-7259148.9715087349}," ",{"$f":"SUM(J2233:J2242)","v":-7259144.2418005783},{"$f":"SUM(K2233:K2242)","v":-0.58742365605454128},{"$f":"SUM(L2233:L2242)","v":-2.8545896603560208},{"$f":"SUM(M2233:M2242)","v":-1.287694840339443},{"$f":"SUM(N2233:N2242)","v":0},null,null,{"$f":"SUM(Q2233:Q2242)","v":-2758474.8118842198},{"$f":"SUM(R2233:R2242)","v":-4500669.4299163586},null,{"$f":"SUM(T2233:T2242)","v":-0.22322098930072568},{"$f":"SUM(U2233:U2242)","v":-0.36420266675381557},null,{"$f":"SUM(W2233:W2242)","v":-0.37421929044513857},{"$f":"SUM(X2233:X2242)","v":-2.0762795785713966},{"$f":"SUM(Y2233:Y2242)","v":-2.6682642004835992E-2},{"$f":"SUM(Z2233:Z2242)","v":-0.37358710170902687},{"$f":"SUM(AA2233:AA2242)","v":-3.8210476256236633E-3},-0.37358710170902687,"UACCT190",0,0,0,0]
[2244]
[2245,281,"Accumulated Deferred Income Taxes"]
[2246,null,null,"S",281,"S","ACCT281S",{"$f":"'JAM Download'!E2517","v":0},"P",{"$f":"VLOOKUP($I2246,Func,2)*$H2246","v":0},{"$f":"VLOOKUP($I2246,Func,3)*$H2246","v":0},{"$f":"VLOOKUP($I2246,Func,5)*$H2246","v":0},{"$f":"VLOOKUP($I2246,Func,6)*$H2246","v":0},{"$f":"VLOOKUP($I2246,Func,7)*$H2246","v":0},null,{"$f":"Demand","v":0.38},{"$f":"+$J2246*$P2246","v":0},{"$f":"+$J2246*(1-$P2246)","v":0},{"$f":"Demand","v":0.38},{"$f":"+$K2246*$S2246","v":0},{"$f":"+$K2246*(1-$S2246)","v":0},"PLNT",{"$f":"+$L2246*VLOOKUP($V2246,DisFac,2)","v":0},{"$f":"+$L2246*VLOOKUP($V2246,DisFac,3)","v":0},{"$f":"+$L2246*VLOOKUP($V2246,DisFac,4)","v":0},{"$f":"+$L2246*VLOOKUP($V2246,DisFac,5)","v":0},{"$f":"+$L2246*VLOOKUP($V2246,DisFac,6)","v":0},0,"UACCT281S",{"$f":"ROUND(SUM(-H2246,J2246:N2246),0)","v":0},{"$f":"ROUND(J2246-Q2246-R2246,0)","v":0},{"$f":"ROUND(K2246-T2246-U2246,0)","v":0},{"$f":"ROUND(L2246-W2246-X2246-Y2246-Z2246-AA2246,0)","v":0}]
[2247,null,null,"DGP",281,"DGP","ACCT281DGP",{"$f":"'JAM Download'!E2518","v":3.6865619942545891E-2},"PT",{"$f":"VLOOKUP($I2247,Func,2)*$H2247","v":2.6579494543409805E-2},{"$f":"VLOOKUP($I2247,Func,3)*$H2247","v":1.0286125399136082E-2},{"$f":"VLOOKUP($I2247,Func,5)*$H2247","v":0},{"$f":"VLOOKUP($I2247,Func,6)*$H2247","v":0},{"$f":"VLOOKUP($I2247,Func,7)*$H2247","v":0},null,{"$f":"Demand","v":0.38},{"$f":"+$J2247*$P2247","v":1.0100207926495726E-2},{"$f":"+$J2247*(1-$P2247)","v":1.6479286616914078E-2},{"$f":"Demand","v":0.38},{"$f":"+$K2247*$S2247","v":3.9087276516717112E-3},{"$f":"+$K2247*(1-$S2247)","v":6.3773977474643707E-3},"PLNT",{"$f":"+$L2247*VLOOKUP($V2247,DisFac,2)","v":0},{"$f":"+$L2247*VLOOKUP($V2247,DisFac,3)","v":0},{"$f":"+$L2247*VLOOKUP($V2247,DisFac,4)","v":0},{"$f":"+$L2247*VLOOKUP($V2247,DisFac,5)","v":0},{"$f":"+$L2247*VLOOKUP($V2247,DisFac,6)","v":0},0,"UACCT281DGP",{"$f":"ROUND(SUM(-H2247,J2247:N2247),0)","v":0},{"$f":"ROUND(J2247-Q2247-R2247,0)","v":0},{"$f":"ROUND(K2247-T2247-U2247,0)","v":0},{"$f":"ROUND(L2247-W2247-X2247-Y2247-Z2247-AA2247,0)","v":0}]
[2248,null,null,"DNPTU",281,"SNTP","ACCT281DNPTU",{"$f":"'JAM Download'!E2521","v":0},"T",{"$f":"VLOOKUP($I2248,Func,2)*$H2248","v":0},{"$f":"VLOOKUP($I2248,Func,3)*$H2248","v":0},{"$f":"VLOOKUP($I2248,Func,5)*$H2248","v":0},{"$f":"VLOOKUP($I2248,Func,6)*$H2248","v":0},{"$f":"VLOOKUP($I2248,Func,7)*$H2248","v":0},null,{"$f":"Demand","v":0.38},{"$f":"+$J2248*$P2248","v":0},{"$f":"+$J2248*(1-$P2248)","v":0},{"$f":"Demand","v":0.38},{"$f":"+$K2248*$S2248","v":0},{"$f":"+$K2248*(1-$S2248)","v":0},"PLNT",{"$f":"+$L2248*VLOOKUP($V2248,DisFac,2)","v":0},{"$f":"+$L2248*VLOOKUP($V2248,DisFac,3)","v":0},{"$f":"+$L2248*VLOOKUP($V2248,DisFac,4)","v":0},{"$f":"+$L2248*VLOOKUP($V2248,DisFac,5)","v":0},{"$f":"+$L2248*VLOOKUP($V2248,DisFac,6)","v":0},0,"UACCT281DNPTU",{"$f":"ROUND(SUM(-H2248,J2248:N2248),0)","v":0},{"$f":"ROUND(J2248-Q2248-R2248,0)","v":0},{"$f":"ROUND(K2248-T2248-U2248,0)","v":0},{"$f":"ROUND(L2248-W2248-X2248-Y2248-Z2248-AA2248,0)","v":0}]
[2249,null,null,null,null,null,"ACCT281",{"$f":"'JAM Download'!E2522","v":3.6865619942545891E-2},null,{"$f":"SUM(J2246:J2248)","v":2.6579494543409805E-2},{"$f":"SUM(K2246:K2248)","v":1.0286125399136082E-2},{"$f":"SUM(L2246:L2248)","v":0},{"$f":"SUM(M2246:M2248)","v":0},{"$f":"SUM(N2246:N2248)","v":0},null,null,{"$f":"SUM(Q2246:Q2248)","v":1.0100207926495726E-2},{"$f":"SUM(R2246:R2248)","v":1.6479286616914078E-2},null,{"$f":"SUM(T2246:T2248)","v":3.9087276516717112E-3},{"$f":"SUM(U2246:U2248)","v":6.3773977474643707E-3},null,{"$f":"SUM(W2246:W2248)","v":0},{"$f":"SUM(X2246:X2248)","v":0},{"$f":"SUM(Y2246:Y2248)","v":0},{"$f":"SUM(Z2246:Z2248)","v":0},{"$f":"SUM(AA2246:AA2248)","v":0},0,"UACCT281",{"$f":"ROUND(SUM(-H2249,J2249:N2249),0)","v":0},{"$f":"ROUND(J2249-Q2249-R2249,0)","v":0},{"$f":"ROUND(K2249-T2249-U2249,0)","v":0},{"$f":"ROUND(L2249-W2249-X2249-Y2249-Z2249-AA2249,0)","v":0}]
[2250]
[2251,282,"Accumulated Deferred Income Taxes "]
[2252,null,null,"S",282,"S","ACCT282S",{"$f":"'JAM Download'!E2525","v":-217245888},"GP",{"$f":"VLOOKUP($I2252,Func,2)*$H2252","v":-109776609.38973232},{"$f":"VLOOKUP($I2252,Func,3)*$H2252","v":-46265693.787399501},{"$f":"VLOOKUP($I2252,Func,5)*$H2252","v":-59774735.204993062},{"$f":"VLOOKUP($I2252,Func,6)*$H2252","v":-1428849.6178751739},{"$f":"VLOOKUP($I2252,Func,7)*$H2252","v":0},null,{"$f":"Demand","v":0.38},{"$f":"+$J2252*$P2252","v":-41715111.568098284},{"$f":"+$J2252*(1-$P2252)","v":-68061497.821634039},{"$f":"Demand","v":0.38},{"$f":"+$K2252*$S2252","v":-17580963.639211811},{"$f":"+$K2252*(1-$S2252)","v":-28684730.148187689},"PLNT",{"$f":"+$L2252*VLOOKUP($V2252,DisFac,2)","v":-7022310.6321692364},{"$f":"+$L2252*VLOOKUP($V2252,DisFac,3)","v":-28766970.080837697},{"$f":"+$L2252*VLOOKUP($V2252,DisFac,4)","v":-14588508.772135565},{"$f":"+$L2252*VLOOKUP($V2252,DisFac,5)","v":-1689753.8864395968},{"$f":"+$L2252*VLOOKUP($V2252,DisFac,6)","v":-7707191.8334109634},-1689753.8864395968,"UACCT282S",{"$f":"ROUND(SUM(-H2252,J2252:N2252),0)","v":0},{"$f":"ROUND(J2252-Q2252-R2252,0)","v":0},{"$f":"ROUND(K2252-T2252-U2252,0)","v":0},{"$f":"ROUND(L2252-W2252-X2252-Y2252-Z2252-AA2252,0)","v":0}]
[2253,null,null,"DITBAL",282,"DITBAL","ACCT282DITBAL",{"$f":"'JAM Download'!E2526","v":0.18531644344329834},"ACCMDIT",0.14643500828867728,1.516593431439804E-2,2.2945520466498559E-2,7.6998037372447115E-4,0,null,0.38,5.5645303149697366E-2,9.0789705138979909E-2,0.38,5.7630550394712548E-3,9.4028792749267839E-3,"PLNT",2.6956300480456201E-3,1.1042677119109619E-2,5.6000403089827323E-3,6.4863996890456412E-4,2.9585330214560229E-3,6.4863996890456412E-4,"UACCT282DITBAL",0,0,0,0]
[2254,null,null,"DGP",282,"DGP","ACCT282DGP",{"$f":"'JAM Download'!E2527","v":1901316.3101523968},"GP",960754.92994337727,404913.15627801011,523143.0616550679,12505.162275941848,0,null,0.38,365086.87337848335,595668.05656489392,0.38,153866.99938564384,251046.15689236627,"PLNT",61458.625812516912,251765.91332473332,127677.30576913228,14788.572773497128,67452.643975188243,14788.572773497128,"UACCT282SGP",0,0,0,0]
[2255,null,null,"SO",282,"SO","ACCT282SO",{"$f":"'JAM Download'!E2528","v":-8.5636598989367485E-2},"LABOR",-3.7318088843012312E-2,-6.1682567949793111E-3,-2.966350778655932E-2,-1.248674556481654E-2,0,null,0.38,-1.4180873760344678E-2,-2.3137215082667632E-2,0.38,-2.3439375820921383E-3,-3.8243192128871728E-3,"DISom",-3.8929414494989329E-3,-2.1652267175591353E-2,-2.0423517420126465E-4,-3.9140639872677777E-3,0,-3.9140639872677777E-3,"UACCT282SO",0,0,0,0]
[2256,null,null,"JBE",282,"JBE","ACCT282JBE",{"$f":"'JAM Download'!E2535","v":-844233.32637380378},"P",-844233.32637380378,0,0,0,0,null,0.38,-320808.66402204544,-523424.66235175834,0.38,0,0,"PLNT",0,0,0,0,0,0,"UACCT190SNP",0,0,0,0]
[2257,null,null,"SE",282,"SE","ACCT282SE",{"$f":"'JAM Download'!E2534+'JAM Download'!E2532+'JAM Download'!E2533","v":0},"P",0,0,0,0,0,null,0.38,0,0,0.38,0,0,"PLNT",0,0,0,0,0,0,"UACCT282SE",0,0,0,0]
[2258,null,null,"SG",282,"CAGW","ACCT282CAGW",{"$f":"'JAM Download'!E2536+'JAM Download'!E2530+'JAM Download'!E2531","v":-5856697.8799817171},"P",-5856697.8799817171,0,0,0,0,null,0.38,-2225545.1943930527,-3631152.6855886644,0.38,0,0,"PLNT",0,0,0,0,0,0,"UACCT282SG",0,0,0,0]
[2259,null,null,null,null,null,"ACCT282",{"$f":"'JAM Download'!E2537","v":-222045502.79652327},null,{"$f":"SUM(J2252:J2258)","v":-115516785.55702753},{"$f":"SUM(K2252:K2258)","v":-45860780.622123815},{"$f":"SUM(L2252:L2258)","v":-59251592.150055982},{"$f":"SUM(M2252:M2258)","v":-1416344.4673159972},{"$f":"SUM(N2252:N2258)","v":0},null,null,{"$f":"SUM(Q2252:Q2258)","v":-43896378.51167047},{"$f":"SUM(R2252:R2258)","v":-71620407.045357063},null,{"$f":"SUM(T2252:T2258)","v":-17427096.636407051},{"$f":"SUM(U2252:U2258)","v":-28433683.985716764},null,{"$f":"SUM(W2252:W2258)","v":-6960852.007554031},{"$f":"SUM(X2252:X2258)","v":-28515204.178122554},{"$f":"SUM(Y2252:Y2258)","v":-14460831.460970627},{"$f":"SUM(Z2252:Z2258)","v":-1674965.3169315238},{"$f":"SUM(AA2252:AA2258)","v":-7639739.186477242},-1674965.3169315238,"UACCT282",0,0,0,0]
[2260]
[2261,283,"Accumulated Deferred Income Taxes "]
[2262,null,null,"S",283,"S","ACCT283S",{"$f":"'JAM Download'!E2540","v":-2723594.0416666665},"GP",{"$f":"VLOOKUP($I2262,Func,2)*$H2262","v":-1376260.4300627497},{"$f":"VLOOKUP($I2262,Func,3)*$H2262","v":-580029.2428685039},{"$f":"VLOOKUP($I2262,Func,5)*$H2262","v":-749390.99720277253},{"$f":"VLOOKUP($I2262,Func,6)*$H2262","v":-17913.371532641009},{"$f":"VLOOKUP($I2262,Func,7)*$H2262","v":0},null,{"$f":"Demand","v":0.38},{"$f":"+$J2262*$P2262","v":-522978.96342384489},{"$f":"+$J2262*(1-$P2262)","v":-853281.46663890476},{"$f":"Demand","v":0.38},{"$f":"+$K2262*$S2262","v":-220411.11229003148},{"$f":"+$K2262*(1-$S2262)","v":-359618.1305784724},"PLNT",{"$f":"+$L2262*VLOOKUP($V2262,DisFac,2)","v":-88038.137672408397},{"$f":"+$L2262*VLOOKUP($V2262,DisFac,3)","v":-360649.16593023302},{"$f":"+$L2262*VLOOKUP($V2262,DisFac,4)","v":-182894.94882678895},{"$f":"+$L2262*VLOOKUP($V2262,DisFac,5)","v":-21184.307143203463},{"$f":"+$L2262*VLOOKUP($V2262,DisFac,6)","v":-96624.43763013868},-21184.307143203463,"UACCT283S",{"$f":"ROUND(SUM(-H2262,J2262:N2262),0)","v":0},{"$f":"ROUND(J2262-Q2262-R2262,0)","v":0},{"$f":"ROUND(K2262-T2262-U2262,0)","v":0},{"$f":"ROUND(L2262-W2262-X2262-Y2262-Z2262-AA2262,0)","v":0}]
[2263,null,null,"SG/CAGW",283,"CAGW","ACCT283CAGW",{"$f":"'JAM Download'!E2541+'JAM Download'!E2548+'JAM Download'!E2549","v":-144661.1963275364},"P",-144661.1963275364,0,0,0,0,null,0.38,-54971.254604463829,-89689.941723072567,0.38,0,0,"PLNT",0,0,0,0,0,0,"UACCT283SG",0,0,0,0]
[2264,null,null,"SE",283,"SE","ACCT283SE",{"$f":"'JAM Download'!E2542+'JAM Download'!E2550+'JAM Download'!E2551","v":4.2112661350984126E-2},"P",4.2112661350984126E-2,0,0,0,0,null,0.38,1.6002811313373968E-2,2.6109850037610158E-2,0.38,0,0,"PLNT",0,0,0,0,0,0,"UACCT283SE",0,0,0,0]
[2265,null,null,"SO",283,"SO","ACCT283SO",{"$f":"'JAM Download'!E2543","v":-21023.22272115224},"LABOR",-9161.345762596231,-1514.2665394524975,-7282.1963768656706,-3065.4140422378418,0,null,0.38,-3481.3113897865678,-5680.0343728096632,0.38,-575.42128499194905,-938.8452544605484,"DISom",-955.69156294241316,-5315.4894124983639,-50.138394160884523,-960.87700726401113,0,-960.87700726401113,"UACCT283SO",0,0,0,0]
[2266,null,null,"GPS",283,"GPS","ACCT283GPS",{"$f":"'JAM Download'!E2544","v":-2.8545528766699135E-3},"GP",-1.4424352930653851E-3,-6.0791884489869185E-4,-7.8542403680200053E-4,-1.8774701903836655E-5,0,null,0.38,-5.4812541136484638E-4,-8.9430988170053868E-4,0.38,-2.310091610615029E-4,-3.7690968383718895E-4,"PLNT",-9.2271283937620091E-5,-3.7799029456121432E-4,-1.9168910429192494E-4,-2.2202914226852098E-5,-1.0127043978438907E-4,-2.2202914226852098E-5,"UACCT283SGPP",0,0,0,0]
[2267,null,null,"SNP",283,"SNP","ACCT283SNP",{"$f":"'JAM Download'!E2545","v":-7.8475351619999856E-3},"PTD",-3.9937462701337776E-3,-1.5455589224932639E-3,-2.3082299693729436E-3,0,0,null,0.38,-1.5176235826508354E-3,-2.476122687482942E-3,0.38,-5.873123905474403E-4,-9.582465319458236E-4,"PLNT",-2.7116988138602957E-4,-1.1108502988917939E-3,-5.6334223883756484E-4,-6.5250653945489706E-5,-2.9761689631206548E-4,-6.5250653945489706E-5,"UACCT283SNP",0,0,0,0]
[2268,null,null,"TROJD",283,"TROJD","ACCT283TROJD",{"$f":"'JAM Download'!E2546","v":0},"P",0,0,0,0,0,null,0.38,0,0,0.38,0,0,"PLNT",0,0,0,0,0,0,"UACCT283TROJP",0,0,0,0]
[2269,null,null,"SNPD",283,"SNPD","ACCT283SNPD",{"$f":"'JAM Download'!E2547","v":0},"DPW",0,0,0,0,0,null,0.38,0,0,0.38,0,0,"PLNT",0,0,0,0,0,0,"UACCT283SNPD",0,0,0,0]
[2270,null,null,"JBE",283,"JBE","ACCT283JBE",{"$f":"'JAM Download'!E2552","v":0},"P",0,0,0,0,0,null,0.38,0,0,0.38,0,0,"PLNT",0,0,0,0,0,0,"UACCT283SGCT",0,0,0,0]
[2271,null,null,null,null,null,"ACCT283",{"$f":"'JAM Download'!E2555","v":-2889278.4293047814}," ",{"$f":"SUM(J2262:J2270)","v":-1530082.9354764025},{"$f":"SUM(K2262:K2270)","v":-581543.51156143413},{"$f":"SUM(L2262:L2270)","v":-756673.19667329208},{"$f":"SUM(M2262:M2270)","v":-20978.785593653552},{"$f":"SUM(N2262:N2270)","v":0},null,null,{"$f":"SUM(Q2262:Q2270)","v":-581431.5154810329},{"$f":"SUM(R2262:R2270)","v":-948651.41999536951},null,{"$f":"SUM(T2262:T2270)","v":-220986.53439334498},{"$f":"SUM(U2262:U2270)","v":-360556.97716808913},null,{"$f":"SUM(W2262:W2270)","v":-88993.82959879197},{"$f":"SUM(X2262:X2270)","v":-365964.65683157201},{"$f":"SUM(Y2262:Y2270)","v":-182945.08797598118},{"$f":"SUM(Z2262:Z2270)","v":-22145.184237921043},{"$f":"SUM(AA2262:AA2270)","v":-96624.438029026016},-22145.184237921043,"UACCT283",0,0,0,0]
[2272]
[2273,"TOTAL ACCUMULATED DEF INCOME TAX",null,null,null,null,null,{"$f":"'JAM Download'!E2557","v":-232193930.1604712},null,{"$f":"+J2271+J2259+J2249+J2243","v":-124306012.70772502},{"$f":"+K2271+K2259+K2249+K2243","v":-46442324.710822776},{"$f":"+L2271+L2259+L2249+L2243","v":-60008268.201318935},{"$f":"+M2271+M2259+M2249+M2243","v":-1437324.540604491},{"$f":"+N2271+N2259+N2249+N2243","v":0},null,null,{"$f":"+Q2271+Q2259+Q2249+Q2243","v":-47236284.828935511},{"$f":"+R2271+R2259+R2249+R2243","v":-77069727.878789499},null,{"$f":"+T2271+T2259+T2249+T2243","v":-17648083.390112657},{"$f":"+U2271+U2259+U2249+U2243","v":-28794241.320710123},null,{"$f":"+W2271+W2259+W2249+W2243","v":-7049846.2113721129},{"$f":"+X2271+X2259+X2249+X2243","v":-28881170.911233705},{"$f":"+Y2271+Y2259+Y2249+Y2243","v":-14643776.575629249},{"$f":"+Z2271+Z2259+Z2249+Z2243","v":-1697110.8747565467},{"$f":"+AA2271+AA2259+AA2249+AA2243","v":-7736363.6283273157},-1697110.8747565467,null,{"$f":"ROUND(SUM(-H2273,J2273:N2273),0)","v":0},{"$f":"ROUND(J2273-Q2273-R2273,0)","v":0},{"$f":"ROUND(K2273-T2273-U2273,0)","v":0},{"$f":"ROUND(L2273-W2273-X2273-Y2273-Z2273-AA2273,0)","v":0}]
[2274]
[2275,255,"Accumulated Investment Tax Credit"]
[2276,null,null,"S",255,"S","ACCT255S",{"$f":"'JAM Download'!E2559","v":0},"PTD",{"$f":"VLOOKUP($I2276,Func,2)*$H2276","v":0},{"$f":"VLOOKUP($I2276,Func,3)*$H2276","v":0},{"$f":"VLOOKUP($I2276,Func,5)*$H2276","v":0},{"$f":"VLOOKUP($I2276,Func,6)*$H2276","v":0},{"$f":"VLOOKUP($I2276,Func,7)*$H2276","v":0},null,{"$f":"Demand","v":0.38},{"$f":"+$J2276*$P2276","v":0},{"$f":"+$J2276*(1-$P2276)","v":0},{"$f":"Demand","v":0.38},{"$f":"+$K2276*$S2276","v":0},{"$f":"+$K2276*(1-$S2276)","v":0},"PLNT",{"$f":"+$L2276*VLOOKUP($V2276,DisFac,2)","v":0},{"$f":"+$L2276*VLOOKUP($V2276,DisFac,3)","v":0},{"$f":"+$L2276*VLOOKUP($V2276,DisFac,4)","v":0},{"$f":"+$L2276*VLOOKUP($V2276,DisFac,5)","v":0},{"$f":"+$L2276*VLOOKUP($V2276,DisFac,6)","v":0},0,"UACCT255S",{"$f":"ROUND(SUM(-H2276,J2276:N2276),0)","v":0},{"$f":"ROUND(J2276-Q2276-R2276,0)","v":0},{"$f":"ROUND(K2276-T2276-U2276,0)","v":0},{"$f":"ROUND(L2276-W2276-X2276-Y2276-Z2276-AA2276,0)","v":0}]
[2277,null,null,"SG",255,"ITC84","ACCT255SG",{"$f":"'JAM Download'!E2560","v":-66189.48080834256},"PTD",-33684.970712898328,-13035.907520860203,-19468.602574584023,0,0,null,0.38,-12800.288870901364,-20884.681841996964,0.38,-4953.6448579268772,-8082.2626629333254,"PLNT",-2287.163203385614,-9369.3883520875297,-4751.4703070874612,-550.35203001958848,-2510.2286820038298,-550.35203001958848,"UACCT255SG",0,0,0,0]
[2278,null,null,"SG",255,"ITC85","ACCT255SG",{"$f":"'JAM Download'!E2561","v":-232910.09039999999},"PTD",-118531.97030779009,-45871.252683204395,-68506.867409005499,0,0,null,0.38,-45042.148716960233,-73489.821590829859,0.38,-17431.076019617671,-28440.176663586724,"PLNT",-8048.157833456743,-32969.364035294937,-16719.656435455399,-1936.5998871459599,-8833.0892176524558,-1936.5998871459599,"UACCT255SG",0,0,0,0]
[2279,null,null,"SG",255,"ITC86","ACCT255SG",{"$f":"'JAM Download'!E2562","v":-132187.08937999999},"PTD",-67272.294328487173,-26034.026125676621,-38880.768925836193,0,0,null,0.38,-25563.471844825126,-41708.82248366205,0.38,-9892.9299277571154,-16141.096197919505,"PLNT",-4567.696303103121,-18711.616414087697,-9489.1668962936237,-1099.1086815337947,-5013.1806308179575,-1099.1086815337947,"UACCT255SG",0,0,0,0]
[2280,null,null,"SG",255,"ITC88","ACCT255SG",{"$f":"'JAM Download'!E2563","v":-24752.666400000002},"PTD",-12597.059722593427,-4874.9962402550482,-7280.6104371515266,0,0,null,0.38,-4786.8826945855026,-7810.1770280079245,0.38,-1852.4985712969183,-3022.4976689581299,"PLNT",-855.32303750332301,-3503.8399065677127,-1776.8920073779711,-205.81337147942472,-938.74211422309531,-205.81337147942472,"UACCT255SG",0,0,0,0]
[2281,null,null,"SG",255,"ITC89","ACCT255SG",{"$f":"'JAM Download'!E2564","v":-57084.699119999997},"PTD",-29051.389956958992,-11242.73599817475,-16790.573164866251,0,0,null,0.38,-11039.528183644417,-18011.861773314577,0.38,-4272.2396793064054,-6970.496318868345,"PLNT",-1972.5494400183757,-8080.5697292905279,-4097.8755165505836,-474.64762769055653,-2164.9308513162064,-474.64762769055653,"UACCT255SG",0,0,0,0]
[2282,null,null,"SG",255,"ITC90","ACCT255SG",{"$f":"'JAM Download'!E2565","v":-10203.747264},"PTD",-5192.8633304271925,-2009.610954418742,-3001.2729791540651,0,0,null,0.38,-1973.2880655623333,-3219.5752648648595,0.38,-763.65216267912194,-1245.95879173962,"PLNT",-352.58828130777459,-1444.3816388255573,-732.48500447234392,-84.842076897533573,-386.97597765085555,-84.842076897533573,"UACCT255SG",0,0,0,0]
[2283,null,null,"SG",255,"CAGE","ACCT255SG",{"$f":"'JAM Download'!E2566","v":0},"PTD",0,0,0,0,0,null,0.38,0,0,0.38,0,0,"PLNT",0,0,0,0,0,0,"UACCT255SG",0,0,0,0]
[2284,null,null,null,null,null,"ACCT255",{"$f":"'JAM Download'!E2567","v":-523327.77337234258},null,{"$f":"SUM(J2276:J2283)","v":-266330.54835915519},{"$f":"SUM(K2276:K2283)","v":-103068.52952258976},{"$f":"SUM(L2276:L2283)","v":-153928.69549059757},{"$f":"SUM(M2276:M2283)","v":0},{"$f":"SUM(N2276:N2283)","v":0},null,null,{"$f":"SUM(Q2276:Q2283)","v":-101205.60837647897},{"$f":"SUM(R2276:R2283)","v":-165124.93998267624},null,{"$f":"SUM(T2276:T2283)","v":-39166.041218584105},{"$f":"SUM(U2276:U2283)","v":-63902.488304005652},null,{"$f":"SUM(W2276:W2283)","v":-18083.478098774951},{"$f":"SUM(X2276:X2283)","v":-74079.160076153959},{"$f":"SUM(Y2276:Y2283)","v":-37567.546167237379},{"$f":"SUM(Z2276:Z2283)","v":-4351.3636747668588},{"$f":"SUM(AA2276:AA2283)","v":-19847.147473664401},-4351.3636747668588,"UACCT255",0,0,0,0]
[2285]
[2286,"TOTAL RATE DRB DEDUCTIONS",null,null,null,null,null,{"$f":"'JAM Download'!E2569","v":-239545862.71268922},null,{"$f":"+J2284+J2273+J2219+J2222+J2187+J2203+J2195+J2191+J2206+J2211+J2230+J2198","v":-127682249.78795582},{"$f":"+K2284+K2273+K2219+K2222+K2187+K2203+K2195+K2191+K2206+K2211+K2230+K2198","v":-46662754.107783943},{"$f":"+L2284+L2273+L2219+L2222+L2187+L2203+L2195+L2191+L2206+L2211+L2230+L2198","v":-60526922.190094918},{"$f":"+M2284+M2273+M2219+M2222+M2187+M2203+M2195+M2191+M2206+M2211+M2230+M2198","v":-4673936.6268544905},{"$f":"+N2284+N2273+N2219+N2222+N2187+N2203+N2195+N2191+N2206+N2211+N2230+N2198","v":0},null,null,{"$f":"+Q2284+Q2273+Q2219+Q2222+Q2187+Q2203+Q2195+Q2191+Q2206+Q2211+Q2230+Q2198","v":-48519254.919423223},{"$f":"+R2284+R2273+R2219+R2222+R2187+R2203+R2195+R2191+R2206+R2211+R2230+R2198","v":-79162994.868532613},null,{"$f":"+T2284+T2273+T2219+T2222+T2187+T2203+T2195+T2191+T2206+T2211+T2230+T2198","v":-17731846.560957901},{"$f":"+U2284+U2273+U2219+U2222+U2187+U2203+U2195+U2191+U2206+U2211+U2230+U2198","v":-28930907.546826046},null,{"$f":"+W2284+W2273+W2219+W2222+W2187+W2203+W2195+W2191+W2206+W2211+W2230+W2198","v":-7110777.4627997959},{"$f":"+X2284+X2273+X2219+X2222+X2187+X2203+X2195+X2191+X2206+X2211+X2230+X2198","v":-29130776.429790307},{"$f":"+Y2284+Y2273+Y2219+Y2222+Y2187+Y2203+Y2195+Y2191+Y2206+Y2211+Y2230+Y2198","v":-14770358.286765452},{"$f":"+Z2284+Z2273+Z2219+Z2222+Z2187+Z2203+Z2195+Z2191+Z2206+Z2211+Z2230+Z2198","v":-1711772.5472883626},{"$f":"+AA2284+AA2273+AA2219+AA2222+AA2187+AA2203+AA2195+AA2191+AA2206+AA2211+AA2230+AA2198","v":-7803237.4634509943},-1711772.5472883626,null,{"$f":"ROUND(SUM(-H2286,J2286:N2286),0)","v":0},{"$f":"ROUND(J2286-Q2286-R2286,0)","v":0},{"$f":"ROUND(K2286-T2286-U2286,0)","v":0},{"$f":"ROUND(L2286-W2286-X2286-Y2286-Z2286-AA2286,0)","v":0}]
[2287]
[2288]
[2289]
[2290]
[2291,"FERC",null,"DESCRIPTION &","FERC",null,"RANGE",{"$f":"+$H$250","v":"Jurisdictional"},"FUNC","GEN","TRN","DIS","RETAIL","MISC",null,"D / E","GEN","GEN","D / E","TRN","TRN","DIS","DIS","DIS","DIS","DIS","DIS","DIS","Unbundled ACCT:","Function","Generation","Transmission","Distribution"]
[2292,"ACCT",null,"CONSENSUS FACTOR","ACCT","FACTOR","NAME","ADJ Total","FACTOR","TOTAL","TOTAL","TOTAL","TOTAL","TOTAL",null,"SPLIT","DEMAND","ENERGY","SPLIT","DEMAND","ENERGY","SPLIT","SUBS","P & C","XFMR","METER","SERVICE","METER","TOTAL","Check","Check","Check","Check"]
[2293,"108SP","Steam Prod Plant Accumulated Depr"]
[2294,null,null,"SGP",108,"S","ACCT108SPS ",{"$f":"'JAM Download'!E2574","v":0},"P",{"$f":"VLOOKUP($I2294,Func,2)*$H2294","v":0},{"$f":"VLOOKUP($I2294,Func,3)*$H2294","v":0},{"$f":"VLOOKUP($I2294,Func,5)*$H2294","v":0},{"$f":"VLOOKUP($I2294,Func,6)*$H2294","v":0},{"$f":"VLOOKUP($I2294,Func,7)*$H2294","v":0},null,{"$f":"Demand","v":0.38},{"$f":"+$J2294*$P2294","v":0},{"$f":"+$J2294*(1-$P2294)","v":0},null,{"$f":"+$K2294*$S2294","v":0},{"$f":"+$K2294*(1-$S2294)","v":0},null,null,null,null,null,null,null,"UACCT108SPDGP",{"$f":"ROUND(SUM(-H2294,J2294:N2294),0)","v":0},{"$f":"ROUND(J2294-Q2294-R2294,0)","v":0},{"$f":"ROUND(K2294-T2294-U2294,0)","v":0},{"$f":"ROUND(L2294-W2294-X2294-Y2294-Z2294-AA2294,0)","v":0}]
[2295,null,null,"DGU/DGP",108,"DGU","ACCT108SPDGU",{"$f":"'JAM Download'!E2575+'JAM Download'!E2576","v":0},"P",{"$f":"VLOOKUP($I2295,Func,2)*$H2295","v":0},{"$f":"VLOOKUP($I2295,Func,3)*$H2295","v":0},{"$f":"VLOOKUP($I2295,Func,5)*$H2295","v":0},{"$f":"VLOOKUP($I2295,Func,6)*$H2295","v":0},{"$f":"VLOOKUP($I2295,Func,7)*$H2295","v":0},null,{"$f":"Demand","v":0.38},{"$f":"+$J2295*$P2295","v":0},{"$f":"+$J2295*(1-$P2295)","v":0},null,{"$f":"+$K2295*$S2295","v":0},{"$f":"+$K2295*(1-$S2295)","v":0},null,null,null,null,null,null,null,"UACCT108SPDGU",0,0,0,0]
[2296,null,null,"SG/CAGE/CAGW",108,"CAGW","ACCT108SPCAGW",{"$f":"'JAM Download'!E2577+'JAM Download'!E2578+'JAM Download'!E2579+'JAM Download'!E2581","v":-15082517.54103056},"P",{"$f":"VLOOKUP($I2296,Func,2)*$H2296","v":-15082517.54103056},{"$f":"VLOOKUP($I2296,Func,3)*$H2296","v":0},{"$f":"VLOOKUP($I2296,Func,5)*$H2296","v":0},{"$f":"VLOOKUP($I2296,Func,6)*$H2296","v":0},{"$f":"VLOOKUP($I2296,Func,7)*$H2296","v":0},null,{"$f":"Demand","v":0.38},{"$f":"+$J2296*$P2296","v":-5731356.6655916125},{"$f":"+$J2296*(1-$P2296)","v":-9351160.8754389472},null,{"$f":"+$K2296*$S2296","v":0},{"$f":"+$K2296*(1-$S2296)","v":0},null,null,null,null,null,null,null,"UACCT108SPSGP",0,0,0,0]
[2297,null,null,"CAEW",108,"CAEW","ACCT108SPCAEW",0,"P",{"$f":"VLOOKUP($I2297,Func,2)*$H2297","v":0},{"$f":"VLOOKUP($I2297,Func,3)*$H2297","v":0},{"$f":"VLOOKUP($I2297,Func,5)*$H2297","v":0},{"$f":"VLOOKUP($I2297,Func,6)*$H2297","v":0},{"$f":"VLOOKUP($I2297,Func,7)*$H2297","v":0},null,{"$f":"Demand","v":0.38},{"$f":"+$J2297*$P2297","v":0},{"$f":"+$J2297*(1-$P2297)","v":0},null,{"$f":"+$K2297*$S2297","v":0},{"$f":"+$K2297*(1-$S2297)","v":0},null,null,null,null,null,null,null,"UACCT108CAEW",0,0,0,0]
[2298,null,null,"JBG",108,"JBG","ACCT108SPJBG",{"$f":"'JAM Download'!E2580","v":-112606002.53872354},"P",{"$f":"VLOOKUP($I2298,Func,2)*$H2298","v":-112606002.53872354},{"$f":"VLOOKUP($I2298,Func,3)*$H2298","v":0},{"$f":"VLOOKUP($I2298,Func,5)*$H2298","v":0},{"$f":"VLOOKUP($I2298,Func,6)*$H2298","v":0},{"$f":"VLOOKUP($I2298,Func,7)*$H2298","v":0},null,{"$f":"Demand","v":0.38},{"$f":"+$J2298*$P2298","v":-42790280.964714944},{"$f":"+$J2298*(1-$P2298)","v":-69815721.574008599},null,{"$f":"+$K2298*$S2298","v":0},{"$f":"+$K2298*(1-$S2298)","v":0},null,null,null,null,null,null,null,"UACCT108SPSSGCH",0,0,0,0]
[2299,null,null,null,null,null,"ACCT108SP",{"$f":"'JAM Download'!E2582","v":-127688520.0797541},null,{"$f":"SUM(J2294:J2298)","v":-127688520.0797541},{"$f":"SUM(K2294:K2298)","v":0},{"$f":"SUM(L2294:L2298)","v":0},{"$f":"SUM(M2294:M2298)","v":0},{"$f":"SUM(N2294:N2298)","v":0},null,null,{"$f":"SUM(Q2294:Q2298)","v":-48521637.630306557},{"$f":"SUM(R2294:R2298)","v":-79166882.449447542},null,{"$f":"SUM(T2294:T2298)","v":0},{"$f":"SUM(U2294:U2298)","v":0},null,{"$f":"SUM(W2294:W2296)","v":0},{"$f":"SUM(X2294:X2296)","v":0},{"$f":"SUM(Y2294:Y2296)","v":0},{"$f":"SUM(Z2294:Z2296)","v":0},{"$f":"SUM(AA2294:AA2296)","v":0},0,"UACCT108SSGCH",0,0,0,0]
[2300]
[{"$f":"A2300+1","v":2301},"108NP","Nuclear Prod Plant Accumulated Depr"]
[2302,null,null,"DGP",108,"DGP","ACCT108NPDGP",{"$f":"'JAM Download'!E2585","v":0},"P",{"$f":"VLOOKUP($I2302,Func,2)*$H2302","v":0},{"$f":"VLOOKUP($I2302,Func,3)*$H2302","v":0},{"$f":"VLOOKUP($I2302,Func,5)*$H2302","v":0},{"$f":"VLOOKUP($I2302,Func,6)*$H2302","v":0},{"$f":"VLOOKUP($I2302,Func,7)*$H2302","v":0},null,{"$f":"Demand","v":0.38},{"$f":"+$J2302*$P2302","v":0},{"$f":"+$J2302*(1-$P2302)","v":0},null,{"$f":"+$K2302*$S2302","v":0},{"$f":"+$K2302*(1-$S2302)","v":0},null,null,null,null,null,null,null,"UACCT108NPDGP",{"$f":"ROUND(SUM(-H2302,J2302:N2302),0)","v":0},{"$f":"ROUND(J2302-Q2302-R2302,0)","v":0},{"$f":"ROUND(K2302-T2302-U2302,0)","v":0},{"$f":"ROUND(L2302-W2302-X2302-Y2302-Z2302-AA2302,0)","v":0}]
[2303,null,null,"DGU",108,"DGU","ACCT108NPDGU",{"$f":"'JAM Download'!E2586","v":0},"P",{"$f":"VLOOKUP($I2303,Func,2)*$H2303","v":0},{"$f":"VLOOKUP($I2303,Func,3)*$H2303","v":0},{"$f":"VLOOKUP($I2303,Func,5)*$H2303","v":0},{"$f":"VLOOKUP($I2303,Func,6)*$H2303","v":0},{"$f":"VLOOKUP($I2303,Func,7)*$H2303","v":0},null,{"$f":"Demand","v":0.38},{"$f":"+$J2303*$P2303","v":0},{"$f":"+$J2303*(1-$P2303)","v":0},null,{"$f":"+$K2303*$S2303","v":0},{"$f":"+$K2303*(1-$S2303)","v":0},null,null,null,null,null,null,null,"UACCT108NPDGU",{"$f":"ROUND(SUM(-H2303,J2303:N2303),0)","v":0},{"$f":"ROUND(J2303-Q2303-R2303,0)","v":0},{"$f":"ROUND(K2303-T2303-U2303,0)","v":0},{"$f":"ROUND(L2303-W2303-X2303-Y2303-Z2303-AA2303,0)","v":0}]
[2304,null,null,"SG",108,"SG","ACCT108NPSG",{"$f":"'JAM Download'!E2587","v":0},"P",{"$f":"VLOOKUP($I2304,Func,2)*$H2304","v":0},{"$f":"VLOOKUP($I2304,Func,3)*$H2304","v":0},{"$f":"VLOOKUP($I2304,Func,5)*$H2304","v":0},{"$f":"VLOOKUP($I2304,Func,6)*$H2304","v":0},{"$f":"VLOOKUP($I2304,Func,7)*$H2304","v":0},null,{"$f":"Demand","v":0.38},{"$f":"+$J2304*$P2304","v":0},{"$f":"+$J2304*(1-$P2304)","v":0},null,{"$f":"+$K2304*$S2304","v":0},{"$f":"+$K2304*(1-$S2304)","v":0},null,null,null,null,null,null,null,"UACCT108NPSGU",{"$f":"ROUND(SUM(-H2304,J2304:N2304),0)","v":0},{"$f":"ROUND(J2304-Q2304-R2304,0)","v":0},{"$f":"ROUND(K2304-T2304-U2304,0)","v":0},{"$f":"ROUND(L2304-W2304-X2304-Y2304-Z2304-AA2304,0)","v":0}]
[2305,null,null,null,null,null,"ACCT108NP",{"$f":"'JAM Download'!E2588","v":0},null,{"$f":"SUM(J2302:J2304)","v":0},{"$f":"SUM(K2302:K2304)","v":0},{"$f":"SUM(L2302:L2304)","v":0},{"$f":"SUM(M2302:M2304)","v":0},{"$f":"SUM(N2302:N2304)","v":0},null,null,{"$f":"SUM(Q2302:Q2304)","v":0},{"$f":"SUM(R2302:R2304)","v":0},null,{"$f":"SUM(T2302:T2304)","v":0},{"$f":"SUM(U2302:U2304)","v":0},null,{"$f":"SUM(W2302:W2304)","v":0},{"$f":"SUM(X2302:X2304)","v":0},{"$f":"SUM(Y2302:Y2304)","v":0},{"$f":"SUM(Z2302:Z2304)","v":0},{"$f":"SUM(AA2302:AA2304)","v":0},0,"UACCT108NP",{"$f":"ROUND(SUM(-H2305,J2305:N2305),0)","v":0},{"$f":"ROUND(J2305-Q2305-R2305,0)","v":0},{"$f":"ROUND(K2305-T2305-U2305,0)","v":0},{"$f":"ROUND(L2305-W2305-X2305-Y2305-Z2305-AA2305,0)","v":0}]
[2306]
[2307]
[2308,"108HP","Hydraulic Prod Plant Accum Depr"]
[2309,null,null,"SGP",108,"S","ACCT108HPS",{"$f":"'JAM Download'!E2592","v":0},"P",{"$f":"VLOOKUP($I2309,Func,2)*$H2309","v":0},{"$f":"VLOOKUP($I2309,Func,3)*$H2309","v":0},{"$f":"VLOOKUP($I2309,Func,5)*$H2309","v":0},{"$f":"VLOOKUP($I2309,Func,6)*$H2309","v":0},{"$f":"VLOOKUP($I2309,Func,7)*$H2309","v":0},null,{"$f":"Demand","v":0.38},{"$f":"+$J2309*$P2309","v":0},{"$f":"+$J2309*(1-$P2309)","v":0},null,{"$f":"+$K2309*$S2309","v":0},{"$f":"+$K2309*(1-$S2309)","v":0},null,null,null,null,null,null,null,"UACCT108HPDGP",{"$f":"ROUND(SUM(-H2309,J2309:N2309),0)","v":0},{"$f":"ROUND(J2309-Q2309-R2309,0)","v":0},{"$f":"ROUND(K2309-T2309-U2309,0)","v":0},{"$f":"ROUND(L2309-W2309-X2309-Y2309-Z2309-AA2309,0)","v":0}]
[2310,null,null,"DGU/DGP",108,"DGU","ACCT108HPDGU",{"$f":"'JAM Download'!E2593+'JAM Download'!E2594","v":0},"P",{"$f":"VLOOKUP($I2310,Func,2)*$H2310","v":0},{"$f":"VLOOKUP($I2310,Func,3)*$H2310","v":0},{"$f":"VLOOKUP($I2310,Func,5)*$H2310","v":0},{"$f":"VLOOKUP($I2310,Func,6)*$H2310","v":0},{"$f":"VLOOKUP($I2310,Func,7)*$H2310","v":0},null,{"$f":"Demand","v":0.38},{"$f":"+$J2310*$P2310","v":0},{"$f":"+$J2310*(1-$P2310)","v":0},null,{"$f":"+$K2310*$S2310","v":0},{"$f":"+$K2310*(1-$S2310)","v":0},null,null,null,null,null,null,null,"UACCT108HPDGU",{"$f":"ROUND(SUM(-H2310,J2310:N2310),0)","v":0},{"$f":"ROUND(J2310-Q2310-R2310,0)","v":0},{"$f":"ROUND(K2310-T2310-U2310,0)","v":0},{"$f":"ROUND(L2310-W2310-X2310-Y2310-Z2310-AA2310,0)","v":0}]
[2311,null,null,"CAEW",108,"CAEW","ACCT108HPCAEW",0,"P",{"$f":"VLOOKUP($I2311,Func,2)*$H2311","v":0},{"$f":"VLOOKUP($I2311,Func,3)*$H2311","v":0},{"$f":"VLOOKUP($I2311,Func,5)*$H2311","v":0},{"$f":"VLOOKUP($I2311,Func,6)*$H2311","v":0},{"$f":"VLOOKUP($I2311,Func,7)*$H2311","v":0},null,{"$f":"Demand","v":0.38},{"$f":"+$J2311*$P2311","v":0},{"$f":"+$J2311*(1-$P2311)","v":0},null,{"$f":"+$K2311*$S2311","v":0},{"$f":"+$K2311*(1-$S2311)","v":0},null,null,null,null,null,null,null,"UACCT108HPCAEW",{"$f":"ROUND(SUM(-H2311,J2311:N2311),0)","v":0},{"$f":"ROUND(J2311-Q2311-R2311,0)","v":0},{"$f":"ROUND(K2311-T2311-U2311,0)","v":0},{"$f":"ROUND(L2311-W2311-X2311-Y2311-Z2311-AA2311,0)","v":0}]
[2312,null,null,"SG/CAGE/CAGW",108,"CAGW","ACCT108HPCAGW",{"$f":"'JAM Download'!E2595+'JAM Download'!E2596+'JAM Download'!E2597+'JAM Download'!E2598","v":-47582292.500684649},"P",{"$f":"VLOOKUP($I2312,Func,2)*$H2312","v":-47582292.500684649},{"$f":"VLOOKUP($I2312,Func,3)*$H2312","v":0},{"$f":"VLOOKUP($I2312,Func,5)*$H2312","v":0},{"$f":"VLOOKUP($I2312,Func,6)*$H2312","v":0},{"$f":"VLOOKUP($I2312,Func,7)*$H2312","v":0},null,{"$f":"Demand","v":0.38},{"$f":"+$J2312*$P2312","v":-18081271.150260165},{"$f":"+$J2312*(1-$P2312)","v":-29501021.350424483},null,{"$f":"+$K2312*$S2312","v":0},{"$f":"+$K2312*(1-$S2312)","v":0},null,null,null,null,null,null,null,"UACCT108NPSGU",{"$f":"ROUND(SUM(-H2312,J2312:N2312),0)","v":0},{"$f":"ROUND(J2312-Q2312-R2312,0)","v":0},{"$f":"ROUND(K2312-T2312-U2312,0)","v":0},{"$f":"ROUND(L2312-W2312-X2312-Y2312-Z2312-AA2312,0)","v":0}]
[2313,null,null,null,null,null,"ACCT108HP",{"$f":"'JAM Download'!E2599","v":-47582292.500684649},null,{"$f":"SUM(J2309:J2312)","v":-47582292.500684649},{"$f":"SUM(K2309:K2312)","v":0},{"$f":"SUM(L2309:L2312)","v":0},{"$f":"SUM(M2309:M2312)","v":0},{"$f":"SUM(N2309:N2312)","v":0},null,null,{"$f":"SUM(Q2309:Q2312)","v":-18081271.150260165},{"$f":"SUM(R2309:R2312)","v":-29501021.350424483},null,{"$f":"SUM(T2309:T2312)","v":0},{"$f":"SUM(U2309:U2312)","v":0},null,{"$f":"SUM(W2309:W2312)","v":0},{"$f":"SUM(X2309:X2312)","v":0},{"$f":"SUM(Y2309:Y2312)","v":0},{"$f":"SUM(Z2309:Z2312)","v":0},{"$f":"SUM(AA2309:AA2312)","v":0},0,"UACCT108HP",{"$f":"ROUND(SUM(-H2313,J2313:N2313),0)","v":0},{"$f":"ROUND(J2313-Q2313-R2313,0)","v":0},{"$f":"ROUND(K2313-T2313-U2313,0)","v":0},{"$f":"ROUND(L2313-W2313-X2313-Y2313-Z2313-AA2313,0)","v":0}]
[2314]
[2315,"108OP","Other Production Plant - Accum Depr"]
[2316,null,null,"S",108,"S","ACCT108OPS",{"$f":"'JAM Download'!E2602","v":0},"P",{"$f":"VLOOKUP($I2316,Func,2)*$H2316","v":0},{"$f":"VLOOKUP($I2316,Func,3)*$H2316","v":0},{"$f":"VLOOKUP($I2316,Func,5)*$H2316","v":0},{"$f":"VLOOKUP($I2316,Func,6)*$H2316","v":0},{"$f":"VLOOKUP($I2316,Func,7)*$H2316","v":0},null,{"$f":"Demand","v":0.38},{"$f":"+$J2316*$P2316","v":0},{"$f":"+$J2316*(1-$P2316)","v":0},null,{"$f":"+$K2316*$S2316","v":0},{"$f":"+$K2316*(1-$S2316)","v":0},null,null,null,null,null,null,null,"UACCT108OPS",{"$f":"ROUND(SUM(-H2316,J2316:N2316),0)","v":0},{"$f":"ROUND(J2316-Q2316-R2316,0)","v":0},{"$f":"ROUND(K2316-T2316-U2316,0)","v":0},{"$f":"ROUND(L2316-W2316-X2316-Y2316-Z2316-AA2316,0)","v":0}]
[2317,null,null,"SGU",108,"DGU","ACCT108OPDGU",{"$f":"'JAM Download'!E2603","v":0},"P",0,0,0,0,0,null,0.38,0,0,null,0,0,null,null,null,null,null,null,null,"UACCT108OPDGU",0,0,0,0]
[2318,null,null,"SG-P",108,"DGP","ACCT108OPDGP",{"$f":"'JAM Download'!E2604","v":0},"P",0,0,0,0,0,null,0.38,0,0,null,0,0,null,null,null,null,null,null,null,"UACCT108OPSGP",0,0,0,0]
[2319,null,null,"SG",108,"CAGW","ACCT108OPCAGW",{"$f":"'JAM Download'!E2605+'JAM Download'!E2606+'JAM Download'!E2607+'JAM Download'!E2608","v":-59017038.952832878},"P",-59017038.952832878,0,0,0,0,null,0.38,-22426474.802076492,-36590564.150756381,null,0,0,null,null,null,null,null,null,null,"UACCT108OPSGU",0,0,0,0]
[2320,null,null,"CAEW",108,"CAEW","ACCT108OPCAEW",0,"P",0,0,0,0,0,null,0.38,0,0,null,0,0,null,null,null,null,null,null,null,"UACCT108OPCAEW",0,0,0,0]
[2321,null,null,"CAGE",108,"CAGE","ACCT108OPCAGW",0,"P",0,0,0,0,0,null,0.38,0,0,null,0,0,null,null,null,null,null,null,null,"UACCT108OPSSGCT",0,0,0,0]
[2322,null,null,null,null,null,"ACCT108OP",{"$f":"'JAM Download'!E2609","v":-59017038.952832878},null,{"$f":"SUM(J2316:J2321)","v":-59017038.952832878},{"$f":"SUM(K2316:K2321)","v":0},{"$f":"SUM(L2316:L2321)","v":0},{"$f":"SUM(M2316:M2321)","v":0},{"$f":"SUM(N2316:N2321)","v":0},null,null,{"$f":"SUM(Q2316:Q2321)","v":-22426474.802076492},{"$f":"SUM(R2316:R2321)","v":-36590564.150756381},null,{"$f":"SUM(T2316:T2321)","v":0},{"$f":"SUM(U2316:U2321)","v":0},null,{"$f":"SUM(W2316:W2319)","v":0},{"$f":"SUM(X2316:X2319)","v":0},{"$f":"SUM(Y2316:Y2319)","v":0},{"$f":"SUM(Z2316:Z2319)","v":0},{"$f":"SUM(AA2316:AA2319)","v":0},0,"UACCT108OP",0,0,0,0]
[2323]
[2324,"108EP","Experimental Plant - Accum Depr"]
[2325,null,null,"DGP",108,"DGP","ACCT108EPDGP",{"$f":"'JAM Download'!E2612","v":0},"P",{"$f":"VLOOKUP($I2325,Func,2)*$H2325","v":0},{"$f":"VLOOKUP($I2325,Func,3)*$H2325","v":0},{"$f":"VLOOKUP($I2325,Func,5)*$H2325","v":0},{"$f":"VLOOKUP($I2325,Func,6)*$H2325","v":0},{"$f":"VLOOKUP($I2325,Func,7)*$H2325","v":0},null,{"$f":"Demand","v":0.38},{"$f":"+$J2325*$P2325","v":0},{"$f":"+$J2325*(1-$P2325)","v":0},null,{"$f":"+$K2325*$S2325","v":0},{"$f":"+$K2325*(1-$S2325)","v":0},null,null,null,null,null,null,null,"UACCT108EPDGP",{"$f":"ROUND(SUM(-H2325,J2325:N2325),0)","v":0},{"$f":"ROUND(J2325-Q2325-R2325,0)","v":0},{"$f":"ROUND(K2325-T2325-U2325,0)","v":0},{"$f":"ROUND(L2325-W2325-X2325-Y2325-Z2325-AA2325,0)","v":0}]
[2326,null,null,"SG",108,"SG","ACCT108EPSG",{"$f":"'JAM Download'!E2613","v":0},"P",{"$f":"VLOOKUP($I2326,Func,2)*$H2326","v":0},{"$f":"VLOOKUP($I2326,Func,3)*$H2326","v":0},{"$f":"VLOOKUP($I2326,Func,5)*$H2326","v":0},{"$f":"VLOOKUP($I2326,Func,6)*$H2326","v":0},{"$f":"VLOOKUP($I2326,Func,7)*$H2326","v":0},null,{"$f":"Demand","v":0.38},{"$f":"+$J2326*$P2326","v":0},{"$f":"+$J2326*(1-$P2326)","v":0},null,{"$f":"+$K2326*$S2326","v":0},{"$f":"+$K2326*(1-$S2326)","v":0},null,null,null,null,null,null,null,"UACCT108EPSGP",{"$f":"ROUND(SUM(-H2326,J2326:N2326),0)","v":0},{"$f":"ROUND(J2326-Q2326-R2326,0)","v":0},{"$f":"ROUND(K2326-T2326-U2326,0)","v":0},{"$f":"ROUND(L2326-W2326-X2326-Y2326-Z2326-AA2326,0)","v":0}]
[2327,null,null,null,null,null,"ACCT108EP",{"$f":"'JAM Download'!E2614","v":0},null,{"$f":"SUM(J2325:J2326)","v":0},{"$f":"SUM(K2325:K2326)","v":0},{"$f":"SUM(L2325:L2326)","v":0},{"$f":"SUM(M2325:M2326)","v":0},{"$f":"SUM(N2325:N2326)","v":0},null,null,{"$f":"SUM(Q2325:Q2326)","v":0},{"$f":"SUM(R2325:R2326)","v":0},null,{"$f":"SUM(T2325:T2326)","v":0},{"$f":"SUM(U2325:U2326)","v":0},null,{"$f":"SUM(W2325:W2326)","v":0},{"$f":"SUM(X2325:X2326)","v":0},{"$f":"SUM(Y2325:Y2326)","v":0},{"$f":"SUM(Z2325:Z2326)","v":0},{"$f":"SUM(AA2325:AA2326)","v":0},0,"UACCT108EP",{"$f":"ROUND(SUM(-H2327,J2327:N2327),0)","v":0},{"$f":"ROUND(J2327-Q2327-R2327,0)","v":0},{"$f":"ROUND(K2327-T2327-U2327,0)","v":0},{"$f":"ROUND(L2327-W2327-X2327-Y2327-Z2327-AA2327,0)","v":0}]
[2328]
[2329]
[2330,null,null,null,null,null,null,null,null,null,null,null,null,null,null,null,null,null,null,null,null,null,null,null,null,null,null,null,null,{"$f":"ROUND(SUM(-H2330,J2330:N2330),0)","v":0},{"$f":"ROUND(J2330-Q2330-R2330,0)","v":0},{"$f":"ROUND(K2330-T2330-U2330,0)","v":0},{"$f":"ROUND(L2330-W2330-X2330-Y2330-Z2330-AA2330,0)","v":0}]
[2331,null,null,null,null,null,null,null,null,null,null,null,null,null,null,null,null,null,null,null,null,null,null,null,null,null,null,null,null,{"$f":"ROUND(SUM(-H2331,J2331:N2331),0)","v":0},{"$f":"ROUND(J2331-Q2331-R2331,0)","v":0},{"$f":"ROUND(K2331-T2331-U2331,0)","v":0},{"$f":"ROUND(L2331-W2331-X2331-Y2331-Z2331-AA2331,0)","v":0}]
[2332,null,null,null,null,null,null,null,null,null,null,null,null,null,null,null,null,null,null,null,null,null,null,null,null,null,null,null,null,{"$f":"ROUND(SUM(-H2332,J2332:N2332),0)","v":0},{"$f":"ROUND(J2332-Q2332-R2332,0)","v":0},{"$f":"ROUND(K2332-T2332-U2332,0)","v":0},{"$f":"ROUND(L2332-W2332-X2332-Y2332-Z2332-AA2332,0)","v":0}]
[2333,null,null,null,null,null,null,null,null,null,null,null,null,null,null,null,null,null,null,null,null,null,null,null,null,null,null,null,null,{"$f":"ROUND(SUM(-H2333,J2333:N2333),0)","v":0},{"$f":"ROUND(J2333-Q2333-R2333,0)","v":0},{"$f":"ROUND(K2333-T2333-U2333,0)","v":0},{"$f":"ROUND(L2333-W2333-X2333-Y2333-Z2333-AA2333,0)","v":0}]
[2334]
[2335,"TOTAL PRODUCTION PLANT DEPRECIATION",null,null,null,null,null,{"$f":"'JAM Download'!E2616","v":-234287851.53327161},null,{"$f":"+J2322+J2313+J2305+J2299+J2327+J2333","v":-234287851.53327161},{"$f":"+K2322+K2313+K2305+K2299+K2327+K2333","v":0},{"$f":"+L2322+L2313+L2305+L2299+L2327+L2333","v":0},{"$f":"+M2322+M2313+M2305+M2299+M2327+M2333","v":0},{"$f":"+N2322+N2313+N2305+N2299+N2327+N2333","v":0},null,null,{"$f":"+Q2322+Q2313+Q2305+Q2299+Q2327+Q2333","v":-89029383.582643211},{"$f":"+R2322+R2313+R2305+R2299+R2327+R2333","v":-145258467.9506284},null,{"$f":"+T2322+T2313+T2305+T2299+T2327+T2333","v":0},{"$f":"+U2322+U2313+U2305+U2299+U2327+U2333","v":0},null,{"$f":"+W2322+W2313+W2305+W2299+W2327+W2333","v":0},{"$f":"+X2322+X2313+X2305+X2299+X2327+X2333","v":0},{"$f":"+Y2322+Y2313+Y2305+Y2299+Y2327+Y2333","v":0},{"$f":"+Z2322+Z2313+Z2305+Z2299+Z2327+Z2333","v":0},{"$f":"+AA2322+AA2313+AA2305+AA2299+AA2327+AA2333","v":0},0,null,{"$f":"ROUND(SUM(-H2335,J2335:N2335),0)","v":0},{"$f":"ROUND(J2335-Q2335-R2335,0)","v":0},{"$f":"ROUND(K2335-T2335-U2335,0)","v":0},{"$f":"ROUND(L2335-W2335-X2335-Y2335-Z2335-AA2335,0)","v":0}]
[2336]
[2337]
[2338]
[2339,"FERC",null,"DESCRIPTION &","FERC",null,"RANGE",{"$f":"+$H$250","v":"Jurisdictional"},"FUNC","GEN","TRN","DIS","RETAIL","MISC",null,"D / E","GEN","GEN","D / E","TRN","TRN","DIS","DIS","DIS","DIS","DIS","DIS","DIS","Unbundled ACCT:","Function","Generation","Transmission","Distribution"]
[2340,"ACCT",null,"CONSENSUS FACTOR","ACCT","FACTOR","NAME","ADJ Total","FACTOR","TOTAL","TOTAL","TOTAL","TOTAL","TOTAL",null,"SPLIT","DEMAND","ENERGY","SPLIT","DEMAND","ENERGY","SPLIT","SUBS","P & C","XFMR","METER","SERVICE","METER","TOTAL","Check","Check","Check","Check"]
[2341,"108TP","Transmission Plant Accumulated Depr"]
[2342,null,null,"DGP",108,"DGP","ACCT108TPDGP",{"$f":"'JAM Download'!E2631","v":0},"T",{"$f":"VLOOKUP($I2342,Func,2)*$H2342","v":0},{"$f":"VLOOKUP($I2342,Func,3)*$H2342","v":0},{"$f":"VLOOKUP($I2342,Func,5)*$H2342","v":0},{"$f":"VLOOKUP($I2342,Func,6)*$H2342","v":0},{"$f":"VLOOKUP($I2342,Func,7)*$H2342","v":0},null,null,null,null,{"$f":"Demand","v":0.38},{"$f":"+$K2342*$S2342","v":0},{"$f":"+$K2342*(1-$S2342)","v":0},null,null,null,null,null,null,null,"UACCT108TPDGP",{"$f":"ROUND(SUM(-H2342,J2342:N2342),0)","v":0},{"$f":"ROUND(J2342-Q2342-R2342,0)","v":0},{"$f":"ROUND(K2342-T2342-U2342,0)","v":0},{"$f":"ROUND(L2342-W2342-X2342-Y2342-Z2342-AA2342,0)","v":0}]
[2343,null,null,"DGU",108,"DGU","ACCT108TPDGU",{"$f":"'JAM Download'!E2632","v":0},"T",{"$f":"VLOOKUP($I2343,Func,2)*$H2343","v":0},{"$f":"VLOOKUP($I2343,Func,3)*$H2343","v":0},{"$f":"VLOOKUP($I2343,Func,5)*$H2343","v":0},{"$f":"VLOOKUP($I2343,Func,6)*$H2343","v":0},{"$f":"VLOOKUP($I2343,Func,7)*$H2343","v":0},null,null,null,null,{"$f":"Demand","v":0.38},{"$f":"+$K2343*$S2343","v":0},{"$f":"+$K2343*(1-$S2343)","v":0},null,null,null,null,null,null,null,"UACCT108TPDGU",{"$f":"ROUND(SUM(-H2343,J2343:N2343),0)","v":0},{"$f":"ROUND(J2343-Q2343-R2343,0)","v":0},{"$f":"ROUND(K2343-T2343-U2343,0)","v":0},{"$f":"ROUND(L2343-W2343-X2343-Y2343-Z2343-AA2343,0)","v":0}]
[2344,null,null,"JBG",108,"JBG","ACCT108TPJBG",{"$f":"'JAM Download'!E2635","v":-9785440.4776072148},"T",{"$f":"VLOOKUP($I2344,Func,2)*$H2344","v":0},{"$f":"VLOOKUP($I2344,Func,3)*$H2344","v":-9785440.4776072148},{"$f":"VLOOKUP($I2344,Func,5)*$H2344","v":0},{"$f":"VLOOKUP($I2344,Func,6)*$H2344","v":0},{"$f":"VLOOKUP($I2344,Func,7)*$H2344","v":0},null,null,null,null,{"$f":"Demand","v":0.38},{"$f":"+$K2344*$S2344","v":-3718467.3814907419},{"$f":"+$K2344*(1-$S2344)","v":-6066973.096116473},null,null,null,null,null,null,null,"UACCT108TPCAEW",{"$f":"ROUND(SUM(-H2344,J2344:N2344),0)","v":0},{"$f":"ROUND(J2344-Q2344-R2344,0)","v":0},{"$f":"ROUND(K2344-T2344-U2344,0)","v":0},{"$f":"ROUND(L2344-W2344-X2344-Y2344-Z2344-AA2344,0)","v":0}]
[2345,null,null,"SG/CAGE/CAGW",108,"CAGW","ACCT108TPCAGW",{"$f":"'JAM Download'!E2636+'JAM Download'!E2633+'JAM Download'!E2634","v":-98917245.246046767},"T",{"$f":"VLOOKUP($I2345,Func,2)*$H2345","v":0},{"$f":"VLOOKUP($I2345,Func,3)*$H2345","v":-98917245.246046767},{"$f":"VLOOKUP($I2345,Func,5)*$H2345","v":0},{"$f":"VLOOKUP($I2345,Func,6)*$H2345","v":0},{"$f":"VLOOKUP($I2345,Func,7)*$H2345","v":0},null,null,null,null,{"$f":"Demand","v":0.38},{"$f":"+$K2345*$S2345","v":-37588553.19349777},{"$f":"+$K2345*(1-$S2345)","v":-61328692.052548997},null,null,null,null,null,null,null,"UACCT108TPSGU",{"$f":"ROUND(SUM(-H2345,J2345:N2345),0)","v":0},{"$f":"ROUND(J2345-Q2345-R2345,0)","v":0},{"$f":"ROUND(K2345-T2345-U2345,0)","v":0},{"$f":"ROUND(L2345-W2345-X2345-Y2345-Z2345-AA2345,0)","v":0}]
[2346,"TOTAL TRANS PLANT ACCUM DEPR",null,null,null,null,"ACCT108TP",{"$f":"'JAM Download'!E2637","v":-108702685.72365399},null,{"$f":"SUM(J2342:J2345)","v":0},{"$f":"SUM(K2342:K2345)","v":-108702685.72365399},{"$f":"SUM(L2342:L2345)","v":0},{"$f":"SUM(M2342:M2345)","v":0},{"$f":"SUM(N2342:N2345)","v":0},null,null,{"$f":"SUM(Q2342:Q2345)","v":0},{"$f":"SUM(R2342:R2345)","v":0},null,{"$f":"SUM(T2342:T2345)","v":-41307020.574988514},{"$f":"SUM(U2342:U2345)","v":-67395665.148665473},null,{"$f":"SUM(W2342:W2345)","v":0},{"$f":"SUM(X2342:X2345)","v":0},{"$f":"SUM(Y2342:Y2345)","v":0},{"$f":"SUM(Z2342:Z2345)","v":0},{"$f":"SUM(AA2342:AA2345)","v":0},0,"UACCT108TP",{"$f":"ROUND(SUM(-H2346,J2346:N2346),0)","v":0},{"$f":"ROUND(J2346-Q2346-R2346,0)","v":0},{"$f":"ROUND(K2346-T2346-U2346,0)","v":0},{"$f":"ROUND(L2346-W2346-X2346-Y2346-Z2346-AA2346,0)","v":0}]
[2347]
[2348]
[2349]
[2350]
[2351,"FERC",null,"DESCRIPTION &","FERC",null,"RANGE",{"$f":"+$H$250","v":"Jurisdictional"},"FUNC","GEN","TRN","DIS","RETAIL","MISC",null,"D / E","GEN","GEN","D / E","TRN","TRN","DIS","DIS","DIS","DIS","DIS","DIS","DIS","Unbundled ACCT:","Function","Generation","Transmission","Distribution"]
[2352,"ACCT",null,"CONSENSUS FACTOR","ACCT","FACTOR","NAME","ADJ Total","FACTOR","TOTAL","TOTAL","TOTAL","TOTAL","TOTAL",null,"SPLIT","DEMAND","ENERGY","SPLIT","DEMAND","ENERGY","SPLIT","SUBS","P & C","XFMR","METER","SERVICE","METER","TOTAL","Check","Check","Check","Check"]
[2353,108360,"Land and Land Rights"]
[2354,null,null,"S",108,"S","ACCT108360S",{"$f":"'JAM Download'!E2639","v":-136215.35999999999},"DPW",{"$f":"VLOOKUP($I2354,Func,2)*$H2354","v":0},{"$f":"VLOOKUP($I2354,Func,3)*$H2354","v":0},{"$f":"VLOOKUP($I2354,Func,5)*$H2354","v":-136215.35999999999},{"$f":"VLOOKUP($I2354,Func,6)*$H2354","v":0},{"$f":"VLOOKUP($I2354,Func,7)*$H2354","v":0},null,null,null,null,null,null,null,"PLNT2",{"$f":"+$L2354*VLOOKUP($V2354,DisFac,2)","v":-26727.180645603792},{"$f":"+$L2354*VLOOKUP($V2354,DisFac,3)","v":-109488.1793543962},{"$f":"+$L2354*VLOOKUP($V2354,DisFac,4)","v":0},{"$f":"+$L2354*VLOOKUP($V2354,DisFac,5)","v":0},{"$f":"+$L2354*VLOOKUP($V2354,DisFac,6)","v":0},0,"UACCT108360S",{"$f":"ROUND(SUM(-H2354,J2354:N2354),0)","v":0},{"$f":"ROUND(J2354-Q2354-R2354,0)","v":0},{"$f":"ROUND(K2354-T2354-U2354,0)","v":0},{"$f":"ROUND(L2354-W2354-X2354-Y2354-Z2354-AA2354,0)","v":0}]
[2355,null,null,null,null,null,"ACCT108360",{"$f":"'JAM Download'!E2640","v":-136215.35999999999},null,{"$f":"SUM(J2354)","v":0},{"$f":"SUM(K2354)","v":0},{"$f":"SUM(L2354)","v":-136215.35999999999},{"$f":"SUM(M2354)","v":0},{"$f":"SUM(N2354)","v":0},null,null,{"$f":"SUM(Q2354)","v":0},{"$f":"SUM(R2354)","v":0},null,{"$f":"SUM(T2354)","v":0},{"$f":"SUM(U2354)","v":0},null,{"$f":"SUM(W2354)","v":-26727.180645603792},{"$f":"SUM(X2354)","v":-109488.1793543962},{"$f":"SUM(Y2354)","v":0},{"$f":"SUM(Z2354)","v":0},{"$f":"SUM(AA2354)","v":0},0,"UACCT108360",{"$f":"ROUND(SUM(-H2355,J2355:N2355),0)","v":0},{"$f":"ROUND(J2355-Q2355-R2355,0)","v":0},{"$f":"ROUND(K2355-T2355-U2355,0)","v":0},{"$f":"ROUND(L2355-W2355-X2355-Y2355-Z2355-AA2355,0)","v":0}]
[2356]
[2357,108361,"Structures and Improvements"]
[2358,null,null,"S",108,"S","ACCT108361S",{"$f":"'JAM Download'!E2643","v":-639538.59},"DPW",{"$f":"VLOOKUP($I2358,Func,2)*$H2358","v":0},{"$f":"VLOOKUP($I2358,Func,3)*$H2358","v":0},{"$f":"VLOOKUP($I2358,Func,5)*$H2358","v":-639538.59},{"$f":"VLOOKUP($I2358,Func,6)*$H2358","v":0},{"$f":"VLOOKUP($I2358,Func,7)*$H2358","v":0},null,null,null,null,null,null,null,"PLNT2",{"$f":"+$L2358*VLOOKUP($V2358,DisFac,2)","v":-125485.57978163946},{"$f":"+$L2358*VLOOKUP($V2358,DisFac,3)","v":-514053.01021836052},{"$f":"+$L2358*VLOOKUP($V2358,DisFac,4)","v":0},{"$f":"+$L2358*VLOOKUP($V2358,DisFac,5)","v":0},{"$f":"+$L2358*VLOOKUP($V2358,DisFac,6)","v":0},0,"UACCT108361S",{"$f":"ROUND(SUM(-H2358,J2358:N2358),0)","v":0},{"$f":"ROUND(J2358-Q2358-R2358,0)","v":0},{"$f":"ROUND(K2358-T2358-U2358,0)","v":0},{"$f":"ROUND(L2358-W2358-X2358-Y2358-Z2358-AA2358,0)","v":0}]
[2359,null,null,null,null,null,"ACCT108361",{"$f":"'JAM Download'!E2644","v":-639538.59},null,{"$f":"SUM(J2358)","v":0},{"$f":"SUM(K2358)","v":0},{"$f":"SUM(L2358)","v":-639538.59},{"$f":"SUM(M2358)","v":0},{"$f":"SUM(N2358)","v":0},null,null,{"$f":"SUM(Q2358)","v":0},{"$f":"SUM(R2358)","v":0},null,{"$f":"SUM(T2358)","v":0},{"$f":"SUM(U2358)","v":0},null,{"$f":"SUM(W2358)","v":-125485.57978163946},{"$f":"SUM(X2358)","v":-514053.01021836052},{"$f":"SUM(Y2358)","v":0},{"$f":"SUM(Z2358)","v":0},{"$f":"SUM(AA2358)","v":0},0,"UACCT108361",{"$f":"ROUND(SUM(-H2359,J2359:N2359),0)","v":0},{"$f":"ROUND(J2359-Q2359-R2359,0)","v":0},{"$f":"ROUND(K2359-T2359-U2359,0)","v":0},{"$f":"ROUND(L2359-W2359-X2359-Y2359-Z2359-AA2359,0)","v":0}]
[2360]
[2361,108362,"Station Equipment"]
[2362,null,null,"S",108,"S","ACCT108362S",{"$f":"'JAM Download'!E2647","v":-15590131.540000001},"DPW",{"$f":"VLOOKUP($I2362,Func,2)*$H2362","v":0},{"$f":"VLOOKUP($I2362,Func,3)*$H2362","v":0},{"$f":"VLOOKUP($I2362,Func,5)*$H2362","v":-15590131.540000001},{"$f":"VLOOKUP($I2362,Func,6)*$H2362","v":0},{"$f":"VLOOKUP($I2362,Func,7)*$H2362","v":0},null,null,null,null,null,null,null,"SUBS",{"$f":"+$L2362*VLOOKUP($V2362,DisFac,2)","v":-15590131.540000001},{"$f":"+$L2362*VLOOKUP($V2362,DisFac,3)","v":0},{"$f":"+$L2362*VLOOKUP($V2362,DisFac,4)","v":0},{"$f":"+$L2362*VLOOKUP($V2362,DisFac,5)","v":0},{"$f":"+$L2362*VLOOKUP($V2362,DisFac,6)","v":0},0,"UACCT108362S",{"$f":"ROUND(SUM(-H2362,J2362:N2362),0)","v":0},{"$f":"ROUND(J2362-Q2362-R2362,0)","v":0},{"$f":"ROUND(K2362-T2362-U2362,0)","v":0},{"$f":"ROUND(L2362-W2362-X2362-Y2362-Z2362-AA2362,0)","v":0}]
[2363,null,null,null,null,null,"ACCT108362",{"$f":"'JAM Download'!E2648","v":-15590131.540000001},null,{"$f":"SUM(J2362)","v":0},{"$f":"SUM(K2362)","v":0},{"$f":"SUM(L2362)","v":-15590131.540000001},{"$f":"SUM(M2362)","v":0},{"$f":"SUM(N2362)","v":0},null,null,{"$f":"SUM(Q2362)","v":0},{"$f":"SUM(R2362)","v":0},null,{"$f":"SUM(T2362)","v":0},{"$f":"SUM(U2362)","v":0},null,{"$f":"SUM(W2362)","v":-15590131.540000001},{"$f":"SUM(X2362)","v":0},{"$f":"SUM(Y2362)","v":0},{"$f":"SUM(Z2362)","v":0},{"$f":"SUM(AA2362)","v":0},0,"UACCT108362",{"$f":"ROUND(SUM(-H2363,J2363:N2363),0)","v":0},{"$f":"ROUND(J2363-Q2363-R2363,0)","v":0},{"$f":"ROUND(K2363-T2363-U2363,0)","v":0},{"$f":"ROUND(L2363-W2363-X2363-Y2363-Z2363-AA2363,0)","v":0}]
[2364]
[{"$f":"A2364+1","v":2365},108364,"Poles, Towers & Fixtures"]
[2366,null,null,"S",108,"S","ACCT108364S",{"$f":"'JAM Download'!E2655","v":-49435316.059105419},"DPW",{"$f":"VLOOKUP($I2366,Func,2)*$H2366","v":0},{"$f":"VLOOKUP($I2366,Func,3)*$H2366","v":0},{"$f":"VLOOKUP($I2366,Func,5)*$H2366","v":-49435316.059105419},{"$f":"VLOOKUP($I2366,Func,6)*$H2366","v":0},{"$f":"VLOOKUP($I2366,Func,7)*$H2366","v":0},null,null,null,null,null,null,null,"PC",{"$f":"+$L2366*VLOOKUP($V2366,DisFac,2)","v":0},{"$f":"+$L2366*VLOOKUP($V2366,DisFac,3)","v":-49435316.059105419},{"$f":"+$L2366*VLOOKUP($V2366,DisFac,4)","v":0},{"$f":"+$L2366*VLOOKUP($V2366,DisFac,5)","v":0},{"$f":"+$L2366*VLOOKUP($V2366,DisFac,6)","v":0},0,"UACCT108364S",{"$f":"ROUND(SUM(-H2366,J2366:N2366),0)","v":0},{"$f":"ROUND(J2366-Q2366-R2366,0)","v":0},{"$f":"ROUND(K2366-T2366-U2366,0)","v":0},{"$f":"ROUND(L2366-W2366-X2366-Y2366-Z2366-AA2366,0)","v":0}]
[2367,null,null,null,null,null,"ACCT108364",{"$f":"'JAM Download'!E2656","v":-49435316.059105419},null,{"$f":"SUM(J2366)","v":0},{"$f":"SUM(K2366)","v":0},{"$f":"SUM(L2366)","v":-49435316.059105419},{"$f":"SUM(M2366)","v":0},{"$f":"SUM(N2366)","v":0},null,null,{"$f":"SUM(Q2366)","v":0},{"$f":"SUM(R2366)","v":0},null,{"$f":"SUM(T2366)","v":0},{"$f":"SUM(U2366)","v":0},null,{"$f":"SUM(W2366)","v":0},{"$f":"SUM(X2366)","v":-49435316.059105419},{"$f":"SUM(Y2366)","v":0},{"$f":"SUM(Z2366)","v":0},{"$f":"SUM(AA2366)","v":0},0,"UACCT108364",{"$f":"ROUND(SUM(-H2367,J2367:N2367),0)","v":0},{"$f":"ROUND(J2367-Q2367-R2367,0)","v":0},{"$f":"ROUND(K2367-T2367-U2367,0)","v":0},{"$f":"ROUND(L2367-W2367-X2367-Y2367-Z2367-AA2367,0)","v":0}]
[2368]
[2369,108365,"Overhead Conductors"]
[2370,null,null,"S",108,"S","ACCT108365S",{"$f":"'JAM Download'!E2659","v":-29234035.600000001},"DPW",{"$f":"VLOOKUP($I2370,Func,2)*$H2370","v":0},{"$f":"VLOOKUP($I2370,Func,3)*$H2370","v":0},{"$f":"VLOOKUP($I2370,Func,5)*$H2370","v":-29234035.600000001},{"$f":"VLOOKUP($I2370,Func,6)*$H2370","v":0},{"$f":"VLOOKUP($I2370,Func,7)*$H2370","v":0},null,null,null,null,null,null,null,"PC",{"$f":"+$L2370*VLOOKUP($V2370,DisFac,2)","v":0},{"$f":"+$L2370*VLOOKUP($V2370,DisFac,3)","v":-29234035.600000001},{"$f":"+$L2370*VLOOKUP($V2370,DisFac,4)","v":0},{"$f":"+$L2370*VLOOKUP($V2370,DisFac,5)","v":0},{"$f":"+$L2370*VLOOKUP($V2370,DisFac,6)","v":0},0,"UACCT108365S",{"$f":"ROUND(SUM(-H2370,J2370:N2370),0)","v":0},{"$f":"ROUND(J2370-Q2370-R2370,0)","v":0},{"$f":"ROUND(K2370-T2370-U2370,0)","v":0},{"$f":"ROUND(L2370-W2370-X2370-Y2370-Z2370-AA2370,0)","v":0}]
[2371,null,null,null,null,null,"ACCT108365",{"$f":"'JAM Download'!E2660","v":-29234035.600000001},null,{"$f":"SUM(J2370)","v":0},{"$f":"SUM(K2370)","v":0},{"$f":"SUM(L2370)","v":-29234035.600000001},{"$f":"SUM(M2370)","v":0},{"$f":"SUM(N2370)","v":0},null,null,{"$f":"SUM(Q2370)","v":0},{"$f":"SUM(R2370)","v":0},null,{"$f":"SUM(T2370)","v":0},{"$f":"SUM(U2370)","v":0},null,{"$f":"SUM(W2370)","v":0},{"$f":"SUM(X2370)","v":-29234035.600000001},{"$f":"SUM(Y2370)","v":0},{"$f":"SUM(Z2370)","v":0},{"$f":"SUM(AA2370)","v":0},0,"UACCT108365",{"$f":"ROUND(SUM(-H2371,J2371:N2371),0)","v":0},{"$f":"ROUND(J2371-Q2371-R2371,0)","v":0},{"$f":"ROUND(K2371-T2371-U2371,0)","v":0},{"$f":"ROUND(L2371-W2371-X2371-Y2371-Z2371-AA2371,0)","v":0}]
[2372]
[2373,108366,"Underground Conduit"]
[2374,null,null,"S",108,"S","ACCT108366S",{"$f":"'JAM Download'!E2663","v":-10945781.390000001},"DPW",{"$f":"VLOOKUP($I2374,Func,2)*$H2374","v":0},{"$f":"VLOOKUP($I2374,Func,3)*$H2374","v":0},{"$f":"VLOOKUP($I2374,Func,5)*$H2374","v":-10945781.390000001},{"$f":"VLOOKUP($I2374,Func,6)*$H2374","v":0},{"$f":"VLOOKUP($I2374,Func,7)*$H2374","v":0},null,null,null,null,null,null,null,"PC",{"$f":"+$L2374*VLOOKUP($V2374,DisFac,2)","v":0},{"$f":"+$L2374*VLOOKUP($V2374,DisFac,3)","v":-10945781.390000001},{"$f":"+$L2374*VLOOKUP($V2374,DisFac,4)","v":0},{"$f":"+$L2374*VLOOKUP($V2374,DisFac,5)","v":0},{"$f":"+$L2374*VLOOKUP($V2374,DisFac,6)","v":0},0,"UACCT108366S",{"$f":"ROUND(SUM(-H2374,J2374:N2374),0)","v":0},{"$f":"ROUND(J2374-Q2374-R2374,0)","v":0},{"$f":"ROUND(K2374-T2374-U2374,0)","v":0},{"$f":"ROUND(L2374-W2374-X2374-Y2374-Z2374-AA2374,0)","v":0}]
[2375,null,null,null,null,null,"ACCT108366",{"$f":"'JAM Download'!E2664","v":-10945781.390000001},null,{"$f":"SUM(J2374)","v":0},{"$f":"SUM(K2374)","v":0},{"$f":"SUM(L2374)","v":-10945781.390000001},{"$f":"SUM(M2374)","v":0},{"$f":"SUM(N2374)","v":0},null,null,{"$f":"SUM(Q2374)","v":0},{"$f":"SUM(R2374)","v":0},null,{"$f":"SUM(T2374)","v":0},{"$f":"SUM(U2374)","v":0},null,{"$f":"SUM(W2374)","v":0},{"$f":"SUM(X2374)","v":-10945781.390000001},{"$f":"SUM(Y2374)","v":0},{"$f":"SUM(Z2374)","v":0},{"$f":"SUM(AA2374)","v":0},0,"UACCT108366",{"$f":"ROUND(SUM(-H2375,J2375:N2375),0)","v":0},{"$f":"ROUND(J2375-Q2375-R2375,0)","v":0},{"$f":"ROUND(K2375-T2375-U2375,0)","v":0},{"$f":"ROUND(L2375-W2375-X2375-Y2375-Z2375-AA2375,0)","v":0}]
[2376]
[2377,108367,"Underground Conductors "]
[2378,null,null,"S",108,"S","ACCT108367S",{"$f":"'JAM Download'!E2667","v":-9516059.6799999997},"DPW",{"$f":"VLOOKUP($I2378,Func,2)*$H2378","v":0},{"$f":"VLOOKUP($I2378,Func,3)*$H2378","v":0},{"$f":"VLOOKUP($I2378,Func,5)*$H2378","v":-9516059.6799999997},{"$f":"VLOOKUP($I2378,Func,6)*$H2378","v":0},{"$f":"VLOOKUP($I2378,Func,7)*$H2378","v":0},null,null,null,null,null,null,null,"PC",{"$f":"+$L2378*VLOOKUP($V2378,DisFac,2)","v":0},{"$f":"+$L2378*VLOOKUP($V2378,DisFac,3)","v":-9516059.6799999997},{"$f":"+$L2378*VLOOKUP($V2378,DisFac,4)","v":0},{"$f":"+$L2378*VLOOKUP($V2378,DisFac,5)","v":0},{"$f":"+$L2378*VLOOKUP($V2378,DisFac,6)","v":0},0,"UACCT108367S",{"$f":"ROUND(SUM(-H2378,J2378:N2378),0)","v":0},{"$f":"ROUND(J2378-Q2378-R2378,0)","v":0},{"$f":"ROUND(K2378-T2378-U2378,0)","v":0},{"$f":"ROUND(L2378-W2378-X2378-Y2378-Z2378-AA2378,0)","v":0}]
[2379,null,null,null,null,null,"ACCT108367",{"$f":"'JAM Download'!E2668","v":-9516059.6799999997},null,{"$f":"SUM(J2378)","v":0},{"$f":"SUM(K2378)","v":0},{"$f":"SUM(L2378)","v":-9516059.6799999997},{"$f":"SUM(M2378)","v":0},{"$f":"SUM(N2378)","v":0},null,null,{"$f":"SUM(Q2378)","v":0},{"$f":"SUM(R2378)","v":0},null,{"$f":"SUM(T2378)","v":0},{"$f":"SUM(U2378)","v":0},null,{"$f":"SUM(W2378)","v":0},{"$f":"SUM(X2378)","v":-9516059.6799999997},{"$f":"SUM(Y2378)","v":0},{"$f":"SUM(Z2378)","v":0},{"$f":"SUM(AA2378)","v":0},0,"UACCT108367",{"$f":"ROUND(SUM(-H2379,J2379:N2379),0)","v":0},{"$f":"ROUND(J2379-Q2379-R2379,0)","v":0},{"$f":"ROUND(K2379-T2379-U2379,0)","v":0},{"$f":"ROUND(L2379-W2379-X2379-Y2379-Z2379-AA2379,0)","v":0}]
[2380]
[2381,108368,"Line Transformers"]
[2382,null,null,"S",108,"S","ACCT108368S",{"$f":"'JAM Download'!E2671","v":-44447504.850000001},"DPW",{"$f":"VLOOKUP($I2382,Func,2)*$H2382","v":0},{"$f":"VLOOKUP($I2382,Func,3)*$H2382","v":0},{"$f":"VLOOKUP($I2382,Func,5)*$H2382","v":-44447504.850000001},{"$f":"VLOOKUP($I2382,Func,6)*$H2382","v":0},{"$f":"VLOOKUP($I2382,Func,7)*$H2382","v":0},null,null,null,null,null,null,null,"XFMR",{"$f":"+$L2382*VLOOKUP($V2382,DisFac,2)","v":0},{"$f":"+$L2382*VLOOKUP($V2382,DisFac,3)","v":0},{"$f":"+$L2382*VLOOKUP($V2382,DisFac,4)","v":-44447504.850000001},{"$f":"+$L2382*VLOOKUP($V2382,DisFac,5)","v":0},{"$f":"+$L2382*VLOOKUP($V2382,DisFac,6)","v":0},0,"UACCT108368S",{"$f":"ROUND(SUM(-H2382,J2382:N2382),0)","v":0},{"$f":"ROUND(J2382-Q2382-R2382,0)","v":0},{"$f":"ROUND(K2382-T2382-U2382,0)","v":0},{"$f":"ROUND(L2382-W2382-X2382-Y2382-Z2382-AA2382,0)","v":0}]
[2383,null,null,null,null,null,"ACCT108368",{"$f":"'JAM Download'!E2672","v":-44447504.850000001},null,{"$f":"SUM(J2382)","v":0},{"$f":"SUM(K2382)","v":0},{"$f":"SUM(L2382)","v":-44447504.850000001},{"$f":"SUM(M2382)","v":0},{"$f":"SUM(N2382)","v":0},null,null,{"$f":"SUM(Q2382)","v":0},{"$f":"SUM(R2382)","v":0},null,{"$f":"SUM(T2382)","v":0},{"$f":"SUM(U2382)","v":0},null,{"$f":"SUM(W2382)","v":0},{"$f":"SUM(X2382)","v":0},{"$f":"SUM(Y2382)","v":-44447504.850000001},{"$f":"SUM(Z2382)","v":0},{"$f":"SUM(AA2382)","v":0},0,"UACCT108368",{"$f":"ROUND(SUM(-H2383,J2383:N2383),0)","v":0},{"$f":"ROUND(J2383-Q2383-R2383,0)","v":0},{"$f":"ROUND(K2383-T2383-U2383,0)","v":0},{"$f":"ROUND(L2383-W2383-X2383-Y2383-Z2383-AA2383,0)","v":0}]
[2384]
[2385,108369,"Services"]
[2386,null,null,"S",108,"S","ACCT108369S",{"$f":"'JAM Download'!E2675","v":-18439235.329999998},"DPW",{"$f":"VLOOKUP($I2386,Func,2)*$H2386","v":0},{"$f":"VLOOKUP($I2386,Func,3)*$H2386","v":0},{"$f":"VLOOKUP($I2386,Func,5)*$H2386","v":-18439235.329999998},{"$f":"VLOOKUP($I2386,Func,6)*$H2386","v":0},{"$f":"VLOOKUP($I2386,Func,7)*$H2386","v":0},null,null,null,null,null,null,null,"SERV",{"$f":"+$L2386*VLOOKUP($V2386,DisFac,2)","v":0},{"$f":"+$L2386*VLOOKUP($V2386,DisFac,3)","v":0},{"$f":"+$L2386*VLOOKUP($V2386,DisFac,4)","v":0},{"$f":"+$L2386*VLOOKUP($V2386,DisFac,5)","v":0},{"$f":"+$L2386*VLOOKUP($V2386,DisFac,6)","v":-18439235.329999998},0,"UACCT108369S",{"$f":"ROUND(SUM(-H2386,J2386:N2386),0)","v":0},{"$f":"ROUND(J2386-Q2386-R2386,0)","v":0},{"$f":"ROUND(K2386-T2386-U2386,0)","v":0},{"$f":"ROUND(L2386-W2386-X2386-Y2386-Z2386-AA2386,0)","v":0}]
[2387,null,null,null,null,null,"ACCT108369",{"$f":"'JAM Download'!E2676","v":-18439235.329999998},null,{"$f":"SUM(J2386)","v":0},{"$f":"SUM(K2386)","v":0},{"$f":"SUM(L2386)","v":-18439235.329999998},{"$f":"SUM(M2386)","v":0},{"$f":"SUM(N2386)","v":0},null,null,{"$f":"SUM(Q2386)","v":0},{"$f":"SUM(R2386)","v":0},null,{"$f":"SUM(T2386)","v":0},{"$f":"SUM(U2386)","v":0},null,{"$f":"SUM(W2386)","v":0},{"$f":"SUM(X2386)","v":0},{"$f":"SUM(Y2386)","v":0},{"$f":"SUM(Z2386)","v":0},{"$f":"SUM(AA2386)","v":-18439235.329999998},0,"UACCT108369",{"$f":"ROUND(SUM(-H2387,J2387:N2387),0)","v":0},{"$f":"ROUND(J2387-Q2387-R2387,0)","v":0},{"$f":"ROUND(K2387-T2387-U2387,0)","v":0},{"$f":"ROUND(L2387-W2387-X2387-Y2387-Z2387-AA2387,0)","v":0}]
[2388]
[2389,108370,"Meters"]
[2390,null,null,"S",108,"S","ACCT108370S",{"$f":"'JAM Download'!E2679","v":-1929851.31},"DPW",{"$f":"VLOOKUP($I2390,Func,2)*$H2390","v":0},{"$f":"VLOOKUP($I2390,Func,3)*$H2390","v":0},{"$f":"VLOOKUP($I2390,Func,5)*$H2390","v":-1929851.31},{"$f":"VLOOKUP($I2390,Func,6)*$H2390","v":0},{"$f":"VLOOKUP($I2390,Func,7)*$H2390","v":0},null,null,null,null,null,null,null,"METR",{"$f":"+$L2390*VLOOKUP($V2390,DisFac,2)","v":0},{"$f":"+$L2390*VLOOKUP($V2390,DisFac,3)","v":0},{"$f":"+$L2390*VLOOKUP($V2390,DisFac,4)","v":0},{"$f":"+$L2390*VLOOKUP($V2390,DisFac,5)","v":-1929851.31},{"$f":"+$L2390*VLOOKUP($V2390,DisFac,6)","v":0},-1929851.31,"UACCT108370S",{"$f":"ROUND(SUM(-H2390,J2390:N2390),0)","v":0},{"$f":"ROUND(J2390-Q2390-R2390,0)","v":0},{"$f":"ROUND(K2390-T2390-U2390,0)","v":0},{"$f":"ROUND(L2390-W2390-X2390-Y2390-Z2390-AA2390,0)","v":0}]
[2391,null,null,null,null,null,"ACCT108370",{"$f":"'JAM Download'!E2680","v":-1929851.31},null,{"$f":"SUM(J2390)","v":0},{"$f":"SUM(K2390)","v":0},{"$f":"SUM(L2390)","v":-1929851.31},{"$f":"SUM(M2390)","v":0},{"$f":"SUM(N2390)","v":0},null,null,{"$f":"SUM(Q2390)","v":0},{"$f":"SUM(R2390)","v":0},null,{"$f":"SUM(T2390)","v":0},{"$f":"SUM(U2390)","v":0},null,{"$f":"SUM(W2390)","v":0},{"$f":"SUM(X2390)","v":0},{"$f":"SUM(Y2390)","v":0},{"$f":"SUM(Z2390)","v":-1929851.31},{"$f":"SUM(AA2390)","v":0},-1929851.31,"UACCT108370",{"$f":"ROUND(SUM(-H2391,J2391:N2391),0)","v":0},{"$f":"ROUND(J2391-Q2391-R2391,0)","v":0},{"$f":"ROUND(K2391-T2391-U2391,0)","v":0},{"$f":"ROUND(L2391-W2391-X2391-Y2391-Z2391-AA2391,0)","v":0}]
[2392]
[2393,108371,"Installations on Customers' Premises"]
[2394,null,null,"S",108,"S","ACCT108371S",{"$f":"'JAM Download'!E2685","v":-281485.94},"DPW",{"$f":"VLOOKUP($I2394,Func,2)*$H2394","v":0},{"$f":"VLOOKUP($I2394,Func,3)*$H2394","v":0},{"$f":"VLOOKUP($I2394,Func,5)*$H2394","v":-281485.94},{"$f":"VLOOKUP($I2394,Func,6)*$H2394","v":0},{"$f":"VLOOKUP($I2394,Func,7)*$H2394","v":0},null,null,null,null,null,null,null,"PC",{"$f":"+$L2394*VLOOKUP($V2394,DisFac,2)","v":0},{"$f":"+$L2394*VLOOKUP($V2394,DisFac,3)","v":-281485.94},{"$f":"+$L2394*VLOOKUP($V2394,DisFac,4)","v":0},{"$f":"+$L2394*VLOOKUP($V2394,DisFac,5)","v":0},{"$f":"+$L2394*VLOOKUP($V2394,DisFac,6)","v":0},0,"UACCT108371S",{"$f":"ROUND(SUM(-H2394,J2394:N2394),0)","v":0},{"$f":"ROUND(J2394-Q2394-R2394,0)","v":0},{"$f":"ROUND(K2394-T2394-U2394,0)","v":0},{"$f":"ROUND(L2394-W2394-X2394-Y2394-Z2394-AA2394,0)","v":0}]
[2395,null,null,null,null,null,"ACCT108371",{"$f":"'JAM Download'!E2686","v":-281485.94},null,{"$f":"SUM(J2394)","v":0},{"$f":"SUM(K2394)","v":0},{"$f":"SUM(L2394)","v":-281485.94},{"$f":"SUM(M2394)","v":0},{"$f":"SUM(N2394)","v":0},null,null,{"$f":"SUM(Q2394)","v":0},{"$f":"SUM(R2394)","v":0},null,{"$f":"SUM(T2394)","v":0},{"$f":"SUM(U2394)","v":0},null,{"$f":"SUM(W2394)","v":0},{"$f":"SUM(X2394)","v":-281485.94},{"$f":"SUM(Y2394)","v":0},{"$f":"SUM(Z2394)","v":0},{"$f":"SUM(AA2394)","v":0},0,"UACCT108371",{"$f":"ROUND(SUM(-H2395,J2395:N2395),0)","v":0},{"$f":"ROUND(J2395-Q2395-R2395,0)","v":0},{"$f":"ROUND(K2395-T2395-U2395,0)","v":0},{"$f":"ROUND(L2395-W2395-X2395-Y2395-Z2395-AA2395,0)","v":0}]
[2396]
[2397,108372,"Leased Property"]
[2398,null,null,"S",108,"S","ACCT108372S",{"$f":"'JAM Download'!E2689","v":0},"DPW",{"$f":"VLOOKUP($I2398,Func,2)*$H2398","v":0},{"$f":"VLOOKUP($I2398,Func,3)*$H2398","v":0},{"$f":"VLOOKUP($I2398,Func,5)*$H2398","v":0},{"$f":"VLOOKUP($I2398,Func,6)*$H2398","v":0},{"$f":"VLOOKUP($I2398,Func,7)*$H2398","v":0},null,null,null,null,null,null,null,"PLNT2",{"$f":"+$L2398*VLOOKUP($V2398,DisFac,2)","v":0},{"$f":"+$L2398*VLOOKUP($V2398,DisFac,3)","v":0},{"$f":"+$L2398*VLOOKUP($V2398,DisFac,4)","v":0},{"$f":"+$L2398*VLOOKUP($V2398,DisFac,5)","v":0},{"$f":"+$L2398*VLOOKUP($V2398,DisFac,6)","v":0},0,"UACCT108372S",{"$f":"ROUND(SUM(-H2398,J2398:N2398),0)","v":0},{"$f":"ROUND(J2398-Q2398-R2398,0)","v":0},{"$f":"ROUND(K2398-T2398-U2398,0)","v":0},{"$f":"ROUND(L2398-W2398-X2398-Y2398-Z2398-AA2398,0)","v":0}]
[2399,null,null,null,null,null,"ACCT108372",{"$f":"'JAM Download'!E2690","v":0},null,{"$f":"SUM(J2398)","v":0},{"$f":"SUM(K2398)","v":0},{"$f":"SUM(L2398)","v":0},{"$f":"SUM(M2398)","v":0},{"$f":"SUM(N2398)","v":0},null,null,{"$f":"SUM(Q2398)","v":0},{"$f":"SUM(R2398)","v":0},null,{"$f":"SUM(T2398)","v":0},{"$f":"SUM(U2398)","v":0},null,{"$f":"SUM(W2398)","v":0},{"$f":"SUM(X2398)","v":0},{"$f":"SUM(Y2398)","v":0},{"$f":"SUM(Z2398)","v":0},{"$f":"SUM(AA2398)","v":0},0,"UACCT108372",{"$f":"ROUND(SUM(-H2399,J2399:N2399),0)","v":0},{"$f":"ROUND(J2399-Q2399-R2399,0)","v":0},{"$f":"ROUND(K2399-T2399-U2399,0)","v":0},{"$f":"ROUND(L2399-W2399-X2399-Y2399-Z2399-AA2399,0)","v":0}]
[2400]
[2401,108373,"Street Lights"]
[2402,null,null,"S",108,"S","ACCT108373S",{"$f":"'JAM Download'!E2693","v":-2201466.2200000002},"DPW",{"$f":"VLOOKUP($I2402,Func,2)*$H2402","v":0},{"$f":"VLOOKUP($I2402,Func,3)*$H2402","v":0},{"$f":"VLOOKUP($I2402,Func,5)*$H2402","v":-2201466.2200000002},{"$f":"VLOOKUP($I2402,Func,6)*$H2402","v":0},{"$f":"VLOOKUP($I2402,Func,7)*$H2402","v":0},null,null,null,null,null,null,null,"PC",{"$f":"+$L2402*VLOOKUP($V2402,DisFac,2)","v":0},{"$f":"+$L2402*VLOOKUP($V2402,DisFac,3)","v":-2201466.2200000002},{"$f":"+$L2402*VLOOKUP($V2402,DisFac,4)","v":0},{"$f":"+$L2402*VLOOKUP($V2402,DisFac,5)","v":0},{"$f":"+$L2402*VLOOKUP($V2402,DisFac,6)","v":0},0,"UACCT108373S",{"$f":"ROUND(SUM(-H2402,J2402:N2402),0)","v":0},{"$f":"ROUND(J2402-Q2402-R2402,0)","v":0},{"$f":"ROUND(K2402-T2402-U2402,0)","v":0},{"$f":"ROUND(L2402-W2402-X2402-Y2402-Z2402-AA2402,0)","v":0}]
[2403,null,null,null,null,null,"ACCT108373",{"$f":"'JAM Download'!E2694","v":-2201466.2200000002},null,{"$f":"SUM(J2402)","v":0},{"$f":"SUM(K2402)","v":0},{"$f":"SUM(L2402)","v":-2201466.2200000002},{"$f":"SUM(M2402)","v":0},{"$f":"SUM(N2402)","v":0},null,null,{"$f":"SUM(Q2402)","v":0},{"$f":"SUM(R2402)","v":0},null,{"$f":"SUM(T2402)","v":0},{"$f":"SUM(U2402)","v":0},null,{"$f":"SUM(W2402)","v":0},{"$f":"SUM(X2402)","v":-2201466.2200000002},{"$f":"SUM(Y2402)","v":0},{"$f":"SUM(Z2402)","v":0},{"$f":"SUM(AA2402)","v":0},0,"UACCT108373",{"$f":"ROUND(SUM(-H2403,J2403:N2403),0)","v":0},{"$f":"ROUND(J2403-Q2403-R2403,0)","v":0},{"$f":"ROUND(K2403-T2403-U2403,0)","v":0},{"$f":"ROUND(L2403-W2403-X2403-Y2403-Z2403-AA2403,0)","v":0}]
[2404]
[2405,"108D00","Unclassified Dist Plant - Acct 300"]
[2406,null,null,"S",108,"S","ACCT108D00S",{"$f":"'JAM Download'!E2697","v":0},"DPW",{"$f":"VLOOKUP($I2406,Func,2)*$H2406","v":0},{"$f":"VLOOKUP($I2406,Func,3)*$H2406","v":0},{"$f":"VLOOKUP($I2406,Func,5)*$H2406","v":0},{"$f":"VLOOKUP($I2406,Func,6)*$H2406","v":0},{"$f":"VLOOKUP($I2406,Func,7)*$H2406","v":0},null,null,null,null,null,null,null,"PLNT",{"$f":"+$L2406*VLOOKUP($V2406,DisFac,2)","v":0},{"$f":"+$L2406*VLOOKUP($V2406,DisFac,3)","v":0},{"$f":"+$L2406*VLOOKUP($V2406,DisFac,4)","v":0},{"$f":"+$L2406*VLOOKUP($V2406,DisFac,5)","v":0},{"$f":"+$L2406*VLOOKUP($V2406,DisFac,6)","v":0},0,"UACCT108D00S",{"$f":"ROUND(SUM(-H2406,J2406:N2406),0)","v":0},{"$f":"ROUND(J2406-Q2406-R2406,0)","v":0},{"$f":"ROUND(K2406-T2406-U2406,0)","v":0},{"$f":"ROUND(L2406-W2406-X2406-Y2406-Z2406-AA2406,0)","v":0}]
[2407,null,null,null,null,null,"ACCT108D00",{"$f":"'JAM Download'!E2698","v":0},null,{"$f":"SUM(J2406)","v":0},{"$f":"SUM(K2406)","v":0},{"$f":"SUM(L2406)","v":0},{"$f":"SUM(M2406)","v":0},{"$f":"SUM(N2406)","v":0},null,null,{"$f":"SUM(Q2406)","v":0},{"$f":"SUM(R2406)","v":0},null,{"$f":"SUM(T2406)","v":0},{"$f":"SUM(U2406)","v":0},null,{"$f":"SUM(W2406)","v":0},{"$f":"SUM(X2406)","v":0},{"$f":"SUM(Y2406)","v":0},{"$f":"SUM(Z2406)","v":0},{"$f":"SUM(AA2406)","v":0},0,"UACCT108D00",{"$f":"ROUND(SUM(-H2407,J2407:N2407),0)","v":0},{"$f":"ROUND(J2407-Q2407-R2407,0)","v":0},{"$f":"ROUND(K2407-T2407-U2407,0)","v":0},{"$f":"ROUND(L2407-W2407-X2407-Y2407-Z2407-AA2407,0)","v":0}]
[2408]
[2409,"108DS","Unclassified Dist Sub Plant - Acct 300"]
[2410,null,null,"S",108,"S","ACCT108DSS",{"$f":"'JAM Download'!E2701","v":0},"DPW",{"$f":"VLOOKUP($I2410,Func,2)*$H2410","v":0},{"$f":"VLOOKUP($I2410,Func,3)*$H2410","v":0},{"$f":"VLOOKUP($I2410,Func,5)*$H2410","v":0},{"$f":"VLOOKUP($I2410,Func,6)*$H2410","v":0},{"$f":"VLOOKUP($I2410,Func,7)*$H2410","v":0},null,null,null,null,null,null,null,"PLNT",{"$f":"+$L2410*VLOOKUP($V2410,DisFac,2)","v":0},{"$f":"+$L2410*VLOOKUP($V2410,DisFac,3)","v":0},{"$f":"+$L2410*VLOOKUP($V2410,DisFac,4)","v":0},{"$f":"+$L2410*VLOOKUP($V2410,DisFac,5)","v":0},{"$f":"+$L2410*VLOOKUP($V2410,DisFac,6)","v":0},0,"UACCT108DSS",{"$f":"ROUND(SUM(-H2410,J2410:N2410),0)","v":0},{"$f":"ROUND(J2410-Q2410-R2410,0)","v":0},{"$f":"ROUND(K2410-T2410-U2410,0)","v":0},{"$f":"ROUND(L2410-W2410-X2410-Y2410-Z2410-AA2410,0)","v":0}]
[2411,null,null,null,null,null,"ACCT108DS",{"$f":"'JAM Download'!E2702","v":0},null,{"$f":"SUM(J2410)","v":0},{"$f":"SUM(K2410)","v":0},{"$f":"SUM(L2410)","v":0},{"$f":"SUM(M2410)","v":0},{"$f":"SUM(N2410)","v":0},null,null,{"$f":"SUM(Q2410)","v":0},{"$f":"SUM(R2410)","v":0},null,{"$f":"SUM(T2410)","v":0},{"$f":"SUM(U2410)","v":0},null,{"$f":"SUM(W2410)","v":0},{"$f":"SUM(X2410)","v":0},{"$f":"SUM(Y2410)","v":0},{"$f":"SUM(Z2410)","v":0},{"$f":"SUM(AA2410)","v":0},0,"UACCT108DS",{"$f":"ROUND(SUM(-H2411,J2411:N2411),0)","v":0},{"$f":"ROUND(J2411-Q2411-R2411,0)","v":0},{"$f":"ROUND(K2411-T2411-U2411,0)","v":0},{"$f":"ROUND(L2411-W2411-X2411-Y2411-Z2411-AA2411,0)","v":0}]
[2412]
[2413,"108D","Unclassified Dist Sub Plant - Acct 300"]
[2414,null,null,"S",108,"S","ACCT108D_S",{"$f":"'JAM Download'!E2705","v":100415},"DPW",{"$f":"VLOOKUP($I2414,Func,2)*$H2414","v":0},{"$f":"VLOOKUP($I2414,Func,3)*$H2414","v":0},{"$f":"VLOOKUP($I2414,Func,5)*$H2414","v":100415},{"$f":"VLOOKUP($I2414,Func,6)*$H2414","v":0},{"$f":"VLOOKUP($I2414,Func,7)*$H2414","v":0},null,null,null,null,null,null,null,"PLNT",{"$f":"+$L2414*VLOOKUP($V2414,DisFac,2)","v":11796.711766451659},{"$f":"+$L2414*VLOOKUP($V2414,DisFac,3)","v":48325.35503103368},{"$f":"+$L2414*VLOOKUP($V2414,DisFac,4)","v":24507.094901051561},{"$f":"+$L2414*VLOOKUP($V2414,DisFac,5)","v":2838.601223827066},{"$f":"+$L2414*VLOOKUP($V2414,DisFac,6)","v":12947.237077636031},2838.601223827066,"UACCT108D_S",{"$f":"ROUND(SUM(-H2414,J2414:N2414),0)","v":0},{"$f":"ROUND(J2414-Q2414-R2414,0)","v":0},{"$f":"ROUND(K2414-T2414-U2414,0)","v":0},{"$f":"ROUND(L2414-W2414-X2414-Y2414-Z2414-AA2414,0)","v":0}]
[2415,null,null,null,null,null,"ACCT108D",{"$f":"'JAM Download'!E2706","v":100415},null,{"$f":"SUM(J2414)","v":0},{"$f":"SUM(K2414)","v":0},{"$f":"SUM(L2414)","v":100415},{"$f":"SUM(M2414)","v":0},{"$f":"SUM(N2414)","v":0},null,null,{"$f":"SUM(Q2414)","v":0},{"$f":"SUM(R2414)","v":0},null,{"$f":"SUM(T2414)","v":0},{"$f":"SUM(U2414)","v":0},null,{"$f":"SUM(W2414)","v":11796.711766451659},{"$f":"SUM(X2414)","v":48325.35503103368},{"$f":"SUM(Y2414)","v":24507.094901051561},{"$f":"SUM(Z2414)","v":2838.601223827066},{"$f":"SUM(AA2414)","v":12947.237077636031},2838.601223827066,"UACCT108D",{"$f":"ROUND(SUM(-H2415,J2415:N2415),0)","v":0},{"$f":"ROUND(J2415-Q2415-R2415,0)","v":0},{"$f":"ROUND(K2415-T2415-U2415,0)","v":0},{"$f":"ROUND(L2415-W2415-X2415-Y2415-Z2415-AA2415,0)","v":0}]
[2416]
[2417]
[2418,"TOTAL DISTRIBUTION PLANT DEPR",null,null,null,null,null,{"$f":"'JAM Download'!E2709","v":-182696206.86910543},null,{"$f":"+J2403+J2399+J2395+J2391+J2387+J2383+J2379+J2375+J2371+J2367+J2363+J2359+J2355+J2411+J2407+J2415","v":0},{"$f":"+K2403+K2399+K2395+K2391+K2387+K2383+K2379+K2375+K2371+K2367+K2363+K2359+K2355+K2411+K2407+K2415","v":0},{"$f":"+L2403+L2399+L2395+L2391+L2387+L2383+L2379+L2375+L2371+L2367+L2363+L2359+L2355+L2411+L2407+L2415","v":-182696206.86910546},{"$f":"+M2403+M2399+M2395+M2391+M2387+M2383+M2379+M2375+M2371+M2367+M2363+M2359+M2355+M2411+M2407+M2415","v":0},{"$f":"+N2403+N2399+N2395+N2391+N2387+N2383+N2379+N2375+N2371+N2367+N2363+N2359+N2355+N2411+N2407+N2415","v":0},null,null,{"$f":"+Q2403+Q2399+Q2395+Q2391+Q2387+Q2383+Q2379+Q2375+Q2371+Q2367+Q2363+Q2359+Q2355+Q2411+Q2407+Q2415","v":0},{"$f":"+R2403+R2399+R2395+R2391+R2387+R2383+R2379+R2375+R2371+R2367+R2363+R2359+R2355+R2411+R2407+R2415","v":0},null,{"$f":"+T2403+T2399+T2395+T2391+T2387+T2383+T2379+T2375+T2371+T2367+T2363+T2359+T2355+T2411+T2407+T2415","v":0},{"$f":"+U2403+U2399+U2395+U2391+U2387+U2383+U2379+U2375+U2371+U2367+U2363+U2359+U2355+U2411+U2407+U2415","v":0},null,{"$f":"+W2403+W2399+W2395+W2391+W2387+W2383+W2379+W2375+W2371+W2367+W2363+W2359+W2355+W2411+W2407+W2415","v":-15730547.588660793},{"$f":"+X2403+X2399+X2395+X2391+X2387+X2383+X2379+X2375+X2371+X2367+X2363+X2359+X2355+X2411+X2407+X2415","v":-102189360.72364715},{"$f":"+Y2403+Y2399+Y2395+Y2391+Y2387+Y2383+Y2379+Y2375+Y2371+Y2367+Y2363+Y2359+Y2355+Y2411+Y2407+Y2415","v":-44422997.755098946},{"$f":"+Z2403+Z2399+Z2395+Z2391+Z2387+Z2383+Z2379+Z2375+Z2371+Z2367+Z2363+Z2359+Z2355+Z2411+Z2407+Z2415","v":-1927012.7087761729},{"$f":"+AA2403+AA2399+AA2395+AA2391+AA2387+AA2383+AA2379+AA2375+AA2371+AA2367+AA2363+AA2359+AA2355+AA2411+AA2407+AA2415","v":-18426288.092922363},-1927012.7087761729,null,{"$f":"ROUND(SUM(-H2418,J2418:N2418),0)","v":0},{"$f":"ROUND(J2418-Q2418-R2418,0)","v":0},{"$f":"ROUND(K2418-T2418-U2418,0)","v":0},{"$f":"ROUND(L2418-W2418-X2418-Y2418-Z2418-AA2418,0)","v":0}]
[2419]
[2420]
[2421]
[2422,"FERC",null,"DESCRIPTION &","FERC",null,"RANGE",{"$f":"+$H$250","v":"Jurisdictional"},"FUNC","GEN","TRN","DIS","RETAIL","MISC",null,"D / E","GEN","GEN","D / E","TRN","TRN","DIS","DIS","DIS","DIS","DIS","DIS","DIS","Unbundled ACCT:","Function","Generation","Transmission","Distribution"]
[2423,"ACCT",null,"CONSENSUS FACTOR","ACCT","FACTOR","NAME","ADJ Total","FACTOR","TOTAL","TOTAL","TOTAL","TOTAL","TOTAL",null,"SPLIT","DEMAND","ENERGY","SPLIT","DEMAND","ENERGY","SPLIT","SUBS","P & C","XFMR","METER","SERVICE","METER","TOTAL","Check","Check","Check","Check"]
[2424,"108GP","General Plant Accumulated Depr"]
[2425,null,null,"S",108,"S","ACCT108GPS",{"$f":"'JAM Download'!E2716","v":-18470786.402896211},"G-SITUS",{"$f":"VLOOKUP($I2425,Func,2)*$H2425","v":0},{"$f":"VLOOKUP($I2425,Func,3)*$H2425","v":-4691806.6691182228},{"$f":"VLOOKUP($I2425,Func,5)*$H2425","v":-13778979.733777989},{"$f":"VLOOKUP($I2425,Func,6)*$H2425","v":0},{"$f":"VLOOKUP($I2425,Func,7)*$H2425","v":0},null,{"$f":"Demand","v":0.38},{"$f":"+$J2425*$P2425","v":0},{"$f":"+$J2425*(1-$P2425)","v":0},{"$f":"Demand","v":0.38},{"$f":"+$K2425*$S2425","v":-1782886.5342649247},{"$f":"+$K2425*(1-$S2425)","v":-2908920.1348532983},"PLNT",{"$f":"+$L2425*VLOOKUP($V2425,DisFac,2)","v":-1618748.7163786064},{"$f":"+$L2425*VLOOKUP($V2425,DisFac,3)","v":-6631221.3075759523},{"$f":"+$L2425*VLOOKUP($V2425,DisFac,4)","v":-3362871.7221068898},{"$f":"+$L2425*VLOOKUP($V2425,DisFac,5)","v":-389513.80506289442},{"$f":"+$L2425*VLOOKUP($V2425,DisFac,6)","v":-1776624.1826536455},-389513.80506289442,"UACCT108GPS",{"$f":"ROUND(SUM(-H2425,J2425:N2425),0)","v":0},{"$f":"ROUND(J2425-Q2425-R2425,0)","v":0},{"$f":"ROUND(K2425-T2425-U2425,0)","v":0},{"$f":"ROUND(L2425-W2425-X2425-Y2425-Z2425-AA2425,0)","v":0}]
[2426,null,null,"SG-P",108,"DGP","ACCT108GPDGP",{"$f":"'JAM Download'!E2717","v":0},"G-DGP",0,0,0,0,0,null,0.38,0,0,0.38,0,0,"PLNT",0,0,0,0,0,0,"UACCT108GPSGP",0,0,0,0]
[2427,null,null,"SG-U",108,"DGU","ACCT108GPDGU",{"$f":"'JAM Download'!E2718","v":0},"G-DGU",0,0,0,0,0,null,0.38,0,0,0.38,0,0,"PLNT",0,0,0,0,0,0,"UACCT108GPSGU",0,0,0,0]
[2428,null,null,"CAGW",108,"CAGW","ACCT108GPCAGW",{"$f":"'JAM Download'!E2719+'JAM Download'!E2723+'JAM Download'!E2724+'JAM Download'!E2728","v":-3559857.1171934991},"G-SG",-3556233.7505102749,-3623.3666832244612,0,0,0,null,0.38,-1351368.8251939046,-2204864.9253163706,0.38,-1376.8793396252952,-2246.4873435991658,"PLNT",0,0,0,0,0,0,"UACCT108GPSG",0,0,0,0]
[{"$f":"A2428+1","v":2429},null,null,"CN",108,"CN","ACCT108GPCN",{"$f":"'JAM Download'!E2720","v":-608529.94482340431},"CUST",0,0,0,-608529.94482340431,0,null,0.38,0,0,0.38,0,0,"CUST",0,0,0,0,0,0,"UACCT108GPCN",0,0,0,0]
[2430,null,null,"SO",108,"SO","ACCT108GPSO",{"$f":"'JAM Download'!E2721","v":-5399790.9718942465},"PTD",-2748046.9482864528,-1063479.7989338071,-1588264.2246739864,0,0,null,0.38,-1044257.8403488521,-1703789.1079376007,0.38,-404122.3235948467,-659357.47533896042,"PLNT",-186588.60994319411,-764362.22218254081,-387628.76146024466,-44898.160353735242,-204786.47073427157,-44898.160353735242,"UACCT108GPSO",0,0,0,0]
[2431,null,null,"SE",108,"SE","ACCT108GPSE",{"$f":"'JAM Download'!E2722+'JAM Download'!E2726+'JAM Download'!E2727","v":0},"P",0,0,0,0,0,null,{"$f":"Demand","v":0.38},0,0,0.38,0,0,"PLNT",0,0,0,0,0,0,"UACCT108GPSE",0,0,0,0]
[2432,null,null,"JBG",108,"JBG","ACCT108GPJBG",{"$f":"'JAM Download'!E2725","v":-1087426.0533288841},"G-SG",-1086319.2270708662,-1106.8262580180335,0,0,0,null,{"$f":"Demand","v":0.38},-412801.30628692912,-673517.92078393698,0.38,-420.59397804685273,-686.23227997118079,"PLNT",0,0,0,0,0,0,"UACCT108GPCAEW",0,0,0,0]
[2433,null,null,"CAGE",108,"CAGE","ACCT108GPCAGE",0,"P",0,0,0,0,0,null,{"$f":"P2430","v":0.38},0,0,0.38,0,0,"PLNT",0,0,0,0,0,0,"UACCT108GPSSGCT",0,0,0,0]
[2434,null,null,"CAGE",108,"CAGE","ACCT108GPCAGE",0,"P",0,0,0,0,0,null,{"$f":"Demand","v":0.38},0,0,0.38,0,0,"PLNT",0,0,0,0,0,0,"UACCT108GPSSGCH",0,0,0,0]
[2435,null,null,null,null,null,"ACCT108GP",{"$f":"'JAM Download'!E2730","v":-29126390.49013624},null,{"$f":"SUM(J2425:J2434)","v":-7390599.9258675938},{"$f":"SUM(K2425:K2434)","v":-5760016.6609932715},{"$f":"SUM(L2425:L2434)","v":-15367243.958451975},{"$f":"SUM(M2425:M2434)","v":-608529.94482340431},{"$f":"SUM(N2425:N2434)","v":0},null,null,{"$f":"SUM(Q2425:Q2434)","v":-2808427.9718296858},{"$f":"SUM(R2425:R2434)","v":-4582171.9540379085},null,{"$f":"SUM(T2425:T2434)","v":-2188806.3311774437},{"$f":"SUM(U2425:U2434)","v":-3571210.3298158292},null,{"$f":"SUM(W2425:W2434)","v":-1805337.3263218005},{"$f":"SUM(X2425:X2434)","v":-7395583.5297584934},{"$f":"SUM(Y2425:Y2434)","v":-3750500.4835671345},{"$f":"SUM(Z2425:Z2434)","v":-434411.96541662968},{"$f":"SUM(AA2425:AA2434)","v":-1981410.6533879172},-434411.96541662968,"UACCT108GP",0,0,0,0]
[2436]
[2437]
[2438,"108MP","Mining Plant Accumulated Depr."]
[2439,null,null,"S",108,"S","ACCT108MPS",{"$f":"'JAM Download'!E2734","v":0},"P",{"$f":"VLOOKUP($I2439,Func,2)*$H2439","v":0},{"$f":"VLOOKUP($I2439,Func,3)*$H2439","v":0},{"$f":"VLOOKUP($I2439,Func,5)*$H2439","v":0},{"$f":"VLOOKUP($I2439,Func,6)*$H2439","v":0},{"$f":"VLOOKUP($I2439,Func,7)*$H2439","v":0},null,{"$f":"Demand","v":0.38},{"$f":"+$J2439*$P2439","v":0},{"$f":"+$J2439*(1-$P2439)","v":0},{"$f":"Demand","v":0.38},{"$f":"+$K2439*$S2439","v":0},{"$f":"+$K2439*(1-$S2439)","v":0},null,null,null,null,null,null,null,"UACCT108MPS",{"$f":"ROUND(SUM(-H2439,J2439:N2439),0)","v":0},{"$f":"ROUND(J2439-Q2439-R2439,0)","v":0},{"$f":"ROUND(K2439-T2439-U2439,0)","v":0},{"$f":"ROUND(L2439-W2439-X2439-Y2439-Z2439-AA2439,0)","v":0}]
[2440,null,null,"SE",108,"SE","ACCT108MPSE",{"$f":"'JAM Download'!E2737","v":-34513081.458540469},"P",{"$f":"VLOOKUP($I2440,Func,2)*$H2440","v":-34513081.458540469},{"$f":"VLOOKUP($I2440,Func,3)*$H2440","v":0},{"$f":"VLOOKUP($I2440,Func,5)*$H2440","v":0},{"$f":"VLOOKUP($I2440,Func,6)*$H2440","v":0},{"$f":"VLOOKUP($I2440,Func,7)*$H2440","v":0},null,{"$f":"Demand","v":0.38},{"$f":"+$J2440*$P2440","v":-13114970.954245379},{"$f":"+$J2440*(1-$P2440)","v":-21398110.504295092},{"$f":"Demand","v":0.38},{"$f":"+$K2440*$S2440","v":0},{"$f":"+$K2440*(1-$S2440)","v":0},null,null,null,null,null,null,null,"UACCT108MPSEU",{"$f":"ROUND(SUM(-H2440,J2440:N2440),0)","v":0},{"$f":"ROUND(J2440-Q2440-R2440,0)","v":0},{"$f":"ROUND(K2440-T2440-U2440,0)","v":0},{"$f":"ROUND(L2440-W2440-X2440-Y2440-Z2440-AA2440,0)","v":0}]
[2441,null,null,null,null,null,null,{"$f":"'JAM Download'!E2738","v":-34513081.458540469}]
[2442,"108MP","Less Centralia Situs Depreciation"]
[2443,null,null,"DOTH",108,"S","ACCT108MPDOTH",{"$f":"'JAM Download'!E2740","v":0},"P",{"$f":"VLOOKUP($I2443,Func,2)*$H2443","v":0},{"$f":"VLOOKUP($I2443,Func,3)*$H2443","v":0},{"$f":"VLOOKUP($I2443,Func,5)*$H2443","v":0},{"$f":"VLOOKUP($I2443,Func,6)*$H2443","v":0},{"$f":"VLOOKUP($I2443,Func,7)*$H2443","v":0},null,{"$f":"Demand","v":0.38},{"$f":"+$J2443*$P2443","v":0},{"$f":"+$J2443*(1-$P2443)","v":0},{"$f":"Demand","v":0.38},{"$f":"+$K2443*$S2443","v":0},{"$f":"+$K2443*(1-$S2443)","v":0},null,null,null,null,null,null,null,"UACCT108MPDOTH",{"$f":"ROUND(SUM(-H2443,J2443:N2443),0)","v":0},{"$f":"ROUND(J2443-Q2443-R2443,0)","v":0},{"$f":"ROUND(K2443-T2443-U2443,0)","v":0},{"$f":"ROUND(L2443-W2443-X2443-Y2443-Z2443-AA2443,0)","v":0}]
[2444,null,null,null,null,null,"ACCT108MP",{"$f":"'JAM Download'!E2741","v":-34513081.458540469},null,{"$f":"SUM(J2439:J2443)","v":-34513081.458540469},{"$f":"SUM(K2439:K2443)","v":0},{"$f":"SUM(L2439:L2443)","v":0},{"$f":"SUM(M2439:M2443)","v":0},{"$f":"SUM(N2439:N2443)","v":0},null,null,{"$f":"SUM(Q2439:Q2443)","v":-13114970.954245379},{"$f":"SUM(R2439:R2443)","v":-21398110.504295092},null,{"$f":"SUM(T2439:T2443)","v":0},{"$f":"SUM(U2439:U2443)","v":0},null,{"$f":"SUM(W2439:W2443)","v":0},{"$f":"SUM(X2439:X2443)","v":0},{"$f":"SUM(Y2439:Y2443)","v":0},{"$f":"SUM(Z2439:Z2443)","v":0},{"$f":"SUM(AA2439:AA2443)","v":0},0,"UACCT108MP",{"$f":"ROUND(SUM(-H2444,J2444:N2444),0)","v":0},{"$f":"ROUND(J2444-Q2444-R2444,0)","v":0},{"$f":"ROUND(K2444-T2444-U2444,0)","v":0},{"$f":"ROUND(L2444-W2444-X2444-Y2444-Z2444-AA2444,0)","v":0}]
[2445]
[2446,1081390,"Accum Depr - Capital Lease"]
[2447,null,null,"SO",108,"SO","ACCT1081390SO",{"$f":"'JAM Download'!E2744","v":0},"PTD",{"$f":"VLOOKUP($I2447,Func,2)*$H2447","v":0},{"$f":"VLOOKUP($I2447,Func,3)*$H2447","v":0},{"$f":"VLOOKUP($I2447,Func,5)*$H2447","v":0},{"$f":"VLOOKUP($I2447,Func,6)*$H2447","v":0},{"$f":"VLOOKUP($I2447,Func,7)*$H2447","v":0},null,{"$f":"Demand","v":0.38},{"$f":"+$J2447*$P2447","v":0},{"$f":"+$J2447*(1-$P2447)","v":0},{"$f":"Demand","v":0.38},{"$f":"+$K2447*$S2447","v":0},{"$f":"+$K2447*(1-$S2447)","v":0},"PLNT",{"$f":"+$L2447*VLOOKUP($V2447,DisFac,2)","v":0},{"$f":"+$L2447*VLOOKUP($V2447,DisFac,3)","v":0},{"$f":"+$L2447*VLOOKUP($V2447,DisFac,4)","v":0},{"$f":"+$L2447*VLOOKUP($V2447,DisFac,5)","v":0},{"$f":"+$L2447*VLOOKUP($V2447,DisFac,6)","v":0},0,"UACCT1081390SOU",{"$f":"ROUND(SUM(-H2447,J2447:N2447),0)","v":0},{"$f":"ROUND(J2447-Q2447-R2447,0)","v":0},{"$f":"ROUND(K2447-T2447-U2447,0)","v":0},{"$f":"ROUND(L2447-W2447-X2447-Y2447-Z2447-AA2447,0)","v":0}]
[2448]
[2449]
[2450,null,"Remove Capital Leases",null,null,null,"ACCT1081390RCL",{"$f":"'JAM Download'!E2747","v":0},"P",{"$f":"VLOOKUP($I2450,Func,2)*$H2450","v":0},{"$f":"VLOOKUP($I2450,Func,3)*$H2450","v":0},{"$f":"VLOOKUP($I2450,Func,5)*$H2450","v":0},{"$f":"VLOOKUP($I2450,Func,6)*$H2450","v":0},{"$f":"VLOOKUP($I2450,Func,7)*$H2450","v":0},null,{"$f":"Demand","v":0.38},{"$f":"+$J2450*$P2450","v":0},{"$f":"+$J2450*(1-$P2450)","v":0},{"$f":"Demand","v":0.38},{"$f":"+$K2450*$S2450","v":0},{"$f":"+$K2450*(1-$S2450)","v":0},null,null,null,null,null,null,null,"UACCT1081390RCL",{"$f":"ROUND(SUM(-H2450,J2450:N2450),0)","v":0},{"$f":"ROUND(J2450-Q2450-R2450,0)","v":0},{"$f":"ROUND(K2450-T2450-U2450,0)","v":0},{"$f":"ROUND(L2450-W2450-X2450-Y2450-Z2450-AA2450,0)","v":0}]
[2451,null,null,null,null,null,"ACCT1081390",{"$f":"'JAM Download'!E2748","v":0},null,{"$f":"SUM(J2450,J2447)","v":0},{"$f":"SUM(K2450,K2447)","v":0},{"$f":"SUM(L2450,L2447)","v":0},{"$f":"SUM(M2450,M2447)","v":0},{"$f":"SUM(N2450,N2447)","v":0},null,null,{"$f":"SUM(Q2450,Q2447)","v":0},{"$f":"SUM(R2450,R2447)","v":0},null,{"$f":"SUM(T2450,T2447)","v":0},{"$f":"SUM(U2450,U2447)","v":0},null,{"$f":"SUM(W2450,W2447)","v":0},{"$f":"SUM(X2450,X2447)","v":0},{"$f":"SUM(Y2450,Y2447)","v":0},{"$f":"SUM(Z2450,Z2447)","v":0},{"$f":"SUM(AA2450,AA2447)","v":0},0,"UACCT1081390",{"$f":"ROUND(SUM(-H2451,J2451:N2451),0)","v":0},{"$f":"ROUND(J2451-Q2451-R2451,0)","v":0},{"$f":"ROUND(K2451-T2451-U2451,0)","v":0},{"$f":"ROUND(L2451-W2451-X2451-Y2451-Z2451-AA2451,0)","v":0}]
[2452]
[2453,1081399,"Accum Depr - Capital Lease"]
[2454,null,null,"S",108,"S","ACCT1081399S",{"$f":"'JAM Download'!E2751","v":0},"P",{"$f":"VLOOKUP($I2454,Func,2)*$H2454","v":0},{"$f":"VLOOKUP($I2454,Func,3)*$H2454","v":0},{"$f":"VLOOKUP($I2454,Func,5)*$H2454","v":0},{"$f":"VLOOKUP($I2454,Func,6)*$H2454","v":0},{"$f":"VLOOKUP($I2454,Func,7)*$H2454","v":0},null,{"$f":"Demand","v":0.38},{"$f":"+$J2454*$P2454","v":0},{"$f":"+$J2454*(1-$P2454)","v":0},{"$f":"Demand","v":0.38},{"$f":"+$K2454*$S2454","v":0},{"$f":"+$K2454*(1-$S2454)","v":0},"PLNT",{"$f":"+$L2454*VLOOKUP($V2454,DisFac,2)","v":0},{"$f":"+$L2454*VLOOKUP($V2454,DisFac,3)","v":0},{"$f":"+$L2454*VLOOKUP($V2454,DisFac,4)","v":0},{"$f":"+$L2454*VLOOKUP($V2454,DisFac,5)","v":0},{"$f":"+$L2454*VLOOKUP($V2454,DisFac,6)","v":0},0,"UACCT1081399S",{"$f":"ROUND(SUM(-H2454,J2454:N2454),0)","v":0},{"$f":"ROUND(J2454-Q2454-R2454,0)","v":0},{"$f":"ROUND(K2454-T2454-U2454,0)","v":0},{"$f":"ROUND(L2454-W2454-X2454-Y2454-Z2454-AA2454,0)","v":0}]
[2455,null,null,"SE",108,"SE","ACCT1081399SE",{"$f":"'JAM Download'!E2752","v":0},"P",{"$f":"VLOOKUP($I2455,Func,2)*$H2455","v":0},{"$f":"VLOOKUP($I2455,Func,3)*$H2455","v":0},{"$f":"VLOOKUP($I2455,Func,5)*$H2455","v":0},{"$f":"VLOOKUP($I2455,Func,6)*$H2455","v":0},{"$f":"VLOOKUP($I2455,Func,7)*$H2455","v":0},null,{"$f":"Demand","v":0.38},{"$f":"+$J2455*$P2455","v":0},{"$f":"+$J2455*(1-$P2455)","v":0},{"$f":"Demand","v":0.38},{"$f":"+$K2455*$S2455","v":0},{"$f":"+$K2455*(1-$S2455)","v":0},"PLNT",{"$f":"+$L2455*VLOOKUP($V2455,DisFac,2)","v":0},{"$f":"+$L2455*VLOOKUP($V2455,DisFac,3)","v":0},{"$f":"+$L2455*VLOOKUP($V2455,DisFac,4)","v":0},{"$f":"+$L2455*VLOOKUP($V2455,DisFac,5)","v":0},{"$f":"+$L2455*VLOOKUP($V2455,DisFac,6)","v":0},0,"UACCT1081399SEP",{"$f":"ROUND(SUM(-H2455,J2455:N2455),0)","v":0},{"$f":"ROUND(J2455-Q2455-R2455,0)","v":0},{"$f":"ROUND(K2455-T2455-U2455,0)","v":0},{"$f":"ROUND(L2455-W2455-X2455-Y2455-Z2455-AA2455,0)","v":0}]
[2456]
[2457]
[2458,null,"Remove Capital Leases",null,null,null,"ACCT1081399RCL",{"$f":"'JAM Download'!E2755","v":0},"P",{"$f":"VLOOKUP($I2458,Func,2)*$H2458","v":0},{"$f":"VLOOKUP($I2458,Func,3)*$H2458","v":0},{"$f":"VLOOKUP($I2458,Func,5)*$H2458","v":0},{"$f":"VLOOKUP($I2458,Func,6)*$H2458","v":0},{"$f":"VLOOKUP($I2458,Func,7)*$H2458","v":0},null,{"$f":"Demand","v":0.38},{"$f":"+$J2458*$P2458","v":0},{"$f":"+$J2458*(1-$P2458)","v":0},{"$f":"Demand","v":0.38},{"$f":"+$K2458*$S2458","v":0},{"$f":"+$K2458*(1-$S2458)","v":0},null,null,null,null,null,null,null,"UACCT1081399RCL",{"$f":"ROUND(SUM(-H2458,J2458:N2458),0)","v":0},{"$f":"ROUND(J2458-Q2458-R2458,0)","v":0},{"$f":"ROUND(K2458-T2458-U2458,0)","v":0},{"$f":"ROUND(L2458-W2458-X2458-Y2458-Z2458-AA2458,0)","v":0}]
[2459,null,null,null,null,null,"ACCT1081399",{"$f":"'JAM Download'!E2756","v":0},null,{"$f":"SUM(J2458,J2454,J2455)","v":0},{"$f":"SUM(K2458,K2454,K2455)","v":0},{"$f":"SUM(L2458,L2454,L2455)","v":0},{"$f":"SUM(M2458,M2454,M2455)","v":0},{"$f":"SUM(N2458,N2454,N2455)","v":0},null,null,{"$f":"SUM(Q2458,Q2454,Q2455)","v":0},{"$f":"SUM(R2458,R2454,R2455)","v":0},null,{"$f":"SUM(T2458,T2454,T2455)","v":0},{"$f":"SUM(U2458,U2454,U2455)","v":0},null,{"$f":"SUM(W2458,W2454,W2455)","v":0},{"$f":"SUM(X2458,X2454,X2455)","v":0},{"$f":"SUM(Y2458,Y2454,Y2455)","v":0},{"$f":"SUM(Z2458,Z2454,Z2455)","v":0},{"$f":"SUM(AA2458,AA2454,AA2455)","v":0},0,"UACCT1081399",{"$f":"ROUND(SUM(-H2459,J2459:N2459),0)","v":0},{"$f":"ROUND(J2459-Q2459-R2459,0)","v":0},{"$f":"ROUND(K2459-T2459-U2459,0)","v":0},{"$f":"ROUND(L2459-W2459-X2459-Y2459-Z2459-AA2459,0)","v":0}]
[2460]
[2461]
[2462,"TOTAL GENERAL PLANT ACCUM DEPR",null,null,null,null,null,{"$f":"'JAM Download'!E2759","v":-63639471.948676705},null,{"$f":"+J2435+J2444+J2451+J2459","v":-41903681.384408064},{"$f":"+K2435+K2444+K2451+K2459","v":-5760016.6609932715},{"$f":"+L2435+L2444+L2451+L2459","v":-15367243.958451975},{"$f":"+M2435+M2444+M2451+M2459","v":-608529.94482340431},{"$f":"+N2435+N2444+N2451+N2459","v":0},null,null,{"$f":"+Q2435+Q2444+Q2451+Q2459","v":-15923398.926075066},{"$f":"+R2435+R2444+R2451+R2459","v":-25980282.458333001},null,{"$f":"+T2435+T2444+T2451+T2459","v":-2188806.3311774437},{"$f":"+U2435+U2444+U2451+U2459","v":-3571210.3298158292},null,{"$f":"+W2435+W2444+W2451+W2459","v":-1805337.3263218005},{"$f":"+X2435+X2444+X2451+X2459","v":-7395583.5297584934},{"$f":"+Y2435+Y2444+Y2451+Y2459","v":-3750500.4835671345},{"$f":"+Z2435+Z2444+Z2451+Z2459","v":-434411.96541662968},{"$f":"+AA2435+AA2444+AA2451+AA2459","v":-1981410.6533879172},-434411.96541662968,null,{"$f":"ROUND(SUM(-H2462,J2462:N2462),0)","v":0},{"$f":"ROUND(J2462-Q2462-R2462,0)","v":0},{"$f":"ROUND(K2462-T2462-U2462,0)","v":0},{"$f":"ROUND(L2462-W2462-X2462-Y2462-Z2462-AA2462,0)","v":0}]
[2463]
[2464]
[2465,"TOTAL ACCUM DEPR - PLANT IN SERVICE",null,null,null,null,null,{"$f":"'JAM Download'!E2782","v":-589326216.07470775},null,{"$f":"+J2462+J2418+J2346+J2335","v":-276191532.91767967},{"$f":"+K2462+K2418+K2346+K2335","v":-114462702.38464727},{"$f":"+L2462+L2418+L2346+L2335","v":-198063450.82755744},{"$f":"+M2462+M2418+M2346+M2335","v":-608529.94482340431},{"$f":"+N2462+N2418+N2346+N2335","v":0},null,null,{"$f":"+Q2462+Q2418+Q2346+Q2335","v":-104952782.50871828},{"$f":"+R2462+R2418+R2346+R2335","v":-171238750.40896142},null,{"$f":"+T2462+T2418+T2346+T2335","v":-43495826.906165957},{"$f":"+U2462+U2418+U2346+U2335","v":-70966875.478481308},null,{"$f":"+W2462+W2418+W2346+W2335","v":-17535884.914982595},{"$f":"+X2462+X2418+X2346+X2335","v":-109584944.25340565},{"$f":"+Y2462+Y2418+Y2346+Y2335","v":-48173498.23866608},{"$f":"+Z2462+Z2418+Z2346+Z2335","v":-2361424.6741928025},{"$f":"+AA2462+AA2418+AA2346+AA2335","v":-20407698.746310279},-2361424.6741928025,null,{"$f":"ROUND(SUM(-H2465,J2465:N2465),0)","v":0},{"$f":"ROUND(J2465-Q2465-R2465,0)","v":0},{"$f":"ROUND(K2465-T2465-U2465,0)","v":0},{"$f":"ROUND(L2465-W2465-X2465-Y2465-Z2465-AA2465,0)","v":0}]
[2466]
[2467]
[2468]
[2469]
[2470]
[2471]
[2472,"FERC",null,"DESCRIPTION &","FERC",null,"RANGE",{"$f":"+$H$250","v":"Jurisdictional"},"FUNC","GEN","TRN","DIS","RETAIL","MISC",null,"D / E","GEN","GEN","D / E","TRN","TRN","DIS","DIS","DIS","DIS","DIS","DIS","DIS","Unbundled ACCT:","Function","Generation","Transmission","Distribution"]
[2473,"ACCT",null,"CONSENSUS FACTOR","ACCT","FACTOR","NAME","ADJ Total","FACTOR","TOTAL","TOTAL","TOTAL","TOTAL","TOTAL",null,"SPLIT","DEMAND","ENERGY","SPLIT","DEMAND","ENERGY","SPLIT","SUBS","P & C","XFMR","METER","SERVICE","METER","TOTAL","Check","Check","Check","Check"]
[2474]
[2475,"111SP","Accum Prov for Amort-Steam"]
[2476,null,null,"SG-P",111,"SG-P","ACCT111CLSSGP",0,"P",{"$f":"VLOOKUP($I2476,Func,2)*$H2476","v":0},{"$f":"VLOOKUP($I2476,Func,3)*$H2476","v":0},{"$f":"VLOOKUP($I2476,Func,5)*$H2476","v":0},{"$f":"VLOOKUP($I2476,Func,6)*$H2476","v":0},{"$f":"VLOOKUP($I2476,Func,7)*$H2476","v":0},null,{"$f":"Demand","v":0.38},{"$f":"+$J2476*$P2476","v":0},{"$f":"+$J2476*(1-$P2476)","v":0},{"$f":"Demand","v":0.38},{"$f":"+$K2476*$S2476","v":0},{"$f":"+$K2476*(1-$S2476)","v":0},"PLNT",{"$f":"+$L2476*VLOOKUP($V2476,DisFac,2)","v":0},{"$f":"+$L2476*VLOOKUP($V2476,DisFac,3)","v":0},{"$f":"+$L2476*VLOOKUP($V2476,DisFac,4)","v":0},{"$f":"+$L2476*VLOOKUP($V2476,DisFac,5)","v":0},{"$f":"+$L2476*VLOOKUP($V2476,DisFac,6)","v":0},0,"UACCT111CLSDGP",{"$f":"ROUND(SUM(-H2476,J2476:N2476),0)","v":0},{"$f":"ROUND(J2476-Q2476-R2476,0)","v":0},{"$f":"ROUND(K2476-T2476-U2476,0)","v":0},{"$f":"ROUND(L2476-W2476-X2476-Y2476-Z2476-AA2476,0)","v":0}]
[2477,null,null,"SG",111,"SG","ACCT111CLSSG",{"$f":"'JAM Download'!E2787+'JAM Download'!E2786+'JAM Download'!E2785+'JAM Download'!E2784","v":0},"P",{"$f":"VLOOKUP($I2477,Func,2)*$H2477","v":0},{"$f":"VLOOKUP($I2477,Func,3)*$H2477","v":0},{"$f":"VLOOKUP($I2477,Func,5)*$H2477","v":0},{"$f":"VLOOKUP($I2477,Func,6)*$H2477","v":0},{"$f":"VLOOKUP($I2477,Func,7)*$H2477","v":0},null,{"$f":"Demand","v":0.38},{"$f":"+$J2477*$P2477","v":0},{"$f":"+$J2477*(1-$P2477)","v":0},{"$f":"Demand","v":0.38},{"$f":"+$K2477*$S2477","v":0},{"$f":"+$K2477*(1-$S2477)","v":0},"PLNT",{"$f":"+$L2477*VLOOKUP($V2477,DisFac,2)","v":0},{"$f":"+$L2477*VLOOKUP($V2477,DisFac,3)","v":0},{"$f":"+$L2477*VLOOKUP($V2477,DisFac,4)","v":0},{"$f":"+$L2477*VLOOKUP($V2477,DisFac,5)","v":0},{"$f":"+$L2477*VLOOKUP($V2477,DisFac,6)","v":0},0,"UACCT111CLSSGP",{"$f":"ROUND(SUM(-H2477,J2477:N2477),0)","v":0},{"$f":"ROUND(J2477-Q2477-R2477,0)","v":0},{"$f":"ROUND(K2477-T2477-U2477,0)","v":0},{"$f":"ROUND(L2477-W2477-X2477-Y2477-Z2477-AA2477,0)","v":0}]
[2478,null,null,null,null,null,"ACCT111CLS",{"$f":"'JAM Download'!E2788","v":0},null,{"$f":"SUM(J2476:J2477)","v":0},{"$f":"SUM(K2476:K2477)","v":0},{"$f":"SUM(L2476:L2477)","v":0},{"$f":"SUM(M2476:M2477)","v":0},{"$f":"SUM(N2476:N2477)","v":0},null,null,{"$f":"SUM(Q2476:Q2477)","v":0},{"$f":"SUM(R2476:R2477)","v":0},null,{"$f":"SUM(T2476:T2477)","v":0},{"$f":"SUM(U2476:U2477)","v":0},null,{"$f":"SUM(W2476:W2477)","v":0},{"$f":"SUM(X2476:X2477)","v":0},{"$f":"SUM(Y2476:Y2477)","v":0},{"$f":"SUM(Z2476:Z2477)","v":0},{"$f":"SUM(AA2476:AA2477)","v":0},0,"UACCT111CLS",{"$f":"ROUND(SUM(-H2478,J2478:N2478),0)","v":0},{"$f":"ROUND(J2478-Q2478-R2478,0)","v":0},{"$f":"ROUND(K2478-T2478-U2478,0)","v":0},{"$f":"ROUND(L2478-W2478-X2478-Y2478-Z2478-AA2478,0)","v":0}]
[2479]
[2480]
[2481,"111GP","Accum Prov for Amort-General"]
[2482,null,null,"S",111,"S","ACCT111CLGS",{"$f":"'JAM Download'!E2792","v":-1704011.2},"G-SITUS",{"$f":"VLOOKUP($I2482,Func,2)*$H2482","v":0},{"$f":"VLOOKUP($I2482,Func,3)*$H2482","v":-432839.77942371473},{"$f":"VLOOKUP($I2482,Func,5)*$H2482","v":-1271171.4205762853},{"$f":"VLOOKUP($I2482,Func,6)*$H2482","v":0},{"$f":"VLOOKUP($I2482,Func,7)*$H2482","v":0},null,{"$f":"Demand","v":0.38},{"$f":"+$J2482*$P2482","v":0},{"$f":"+$J2482*(1-$P2482)","v":0},{"$f":"Demand","v":0.38},{"$f":"+$K2482*$S2482","v":-164479.1161810116},{"$f":"+$K2482*(1-$S2482)","v":-268360.66324270313},"PLNT",{"$f":"+$L2482*VLOOKUP($V2482,DisFac,2)","v":-149336.68131543431},{"$f":"+$L2482*VLOOKUP($V2482,DisFac,3)","v":-611759.30094759166},{"$f":"+$L2482*VLOOKUP($V2482,DisFac,4)","v":-310239.69167522335},{"$f":"+$L2482*VLOOKUP($V2482,DisFac,5)","v":-35934.359907800965},{"$f":"+$L2482*VLOOKUP($V2482,DisFac,6)","v":-163901.38673023498},-35934.359907800965,"UACCT111CLGS",{"$f":"ROUND(SUM(-H2482,J2482:N2482),0)","v":0},{"$f":"ROUND(J2482-Q2482-R2482,0)","v":0},{"$f":"ROUND(K2482-T2482-U2482,0)","v":0},{"$f":"ROUND(L2482-W2482-X2482-Y2482-Z2482-AA2482,0)","v":0}]
[2483,null,null,"CN",111,"CN","ACCT111CLCN",{"$f":"'JAM Download'!E2793","v":-217230.54372016733},"CUST",{"$f":"VLOOKUP($I2483,Func,2)*$H2483","v":0},{"$f":"VLOOKUP($I2483,Func,3)*$H2483","v":0},{"$f":"VLOOKUP($I2483,Func,5)*$H2483","v":0},{"$f":"VLOOKUP($I2483,Func,6)*$H2483","v":-217230.54372016733},{"$f":"VLOOKUP($I2483,Func,7)*$H2483","v":0},null,{"$f":"Demand","v":0.38},{"$f":"+$J2483*$P2483","v":0},{"$f":"+$J2483*(1-$P2483)","v":0},{"$f":"Demand","v":0.38},{"$f":"+$K2483*$S2483","v":0},{"$f":"+$K2483*(1-$S2483)","v":0},"CUST",{"$f":"+$L2483*VLOOKUP($V2483,DisFac,2)","v":0},{"$f":"+$L2483*VLOOKUP($V2483,DisFac,3)","v":0},{"$f":"+$L2483*VLOOKUP($V2483,DisFac,4)","v":0},{"$f":"+$L2483*VLOOKUP($V2483,DisFac,5)","v":0},{"$f":"+$L2483*VLOOKUP($V2483,DisFac,6)","v":0},0,"UACCT108GPCN",0,0,0,0]
[2484,null,null,"SG",111,"SG","ACCT111CLGSG",{"$f":"'JAM Download'!E2794+'JAM Download'!E2796+'JAM Download'!E2797","v":0},"I-SG",{"$f":"VLOOKUP($I2484,Func,2)*$H2484","v":0},{"$f":"VLOOKUP($I2484,Func,3)*$H2484","v":0},{"$f":"VLOOKUP($I2484,Func,5)*$H2484","v":0},{"$f":"VLOOKUP($I2484,Func,6)*$H2484","v":0},{"$f":"VLOOKUP($I2484,Func,7)*$H2484","v":0},null,{"$f":"Demand","v":0.38},{"$f":"+$J2484*$P2484","v":0},{"$f":"+$J2484*(1-$P2484)","v":0},{"$f":"Demand","v":0.38},{"$f":"+$K2484*$S2484","v":0},{"$f":"+$K2484*(1-$S2484)","v":0},"PLNT",{"$f":"+$L2484*VLOOKUP($V2484,DisFac,2)","v":0},{"$f":"+$L2484*VLOOKUP($V2484,DisFac,3)","v":0},{"$f":"+$L2484*VLOOKUP($V2484,DisFac,4)","v":0},{"$f":"+$L2484*VLOOKUP($V2484,DisFac,5)","v":0},{"$f":"+$L2484*VLOOKUP($V2484,DisFac,6)","v":0},0,"UACCT111CLGSGP",0,0,0,0]
[2485,null,null,"SO",111,"SO","ACCT111CLGSO",{"$f":"'JAM Download'!E2795","v":-828564.95723808615},"PTD",{"$f":"VLOOKUP($I2485,Func,2)*$H2485","v":-421671.0265353974},{"$f":"VLOOKUP($I2485,Func,3)*$H2485","v":-163184.48227229185},{"$f":"VLOOKUP($I2485,Func,5)*$H2485","v":-243709.44843039691},{"$f":"VLOOKUP($I2485,Func,6)*$H2485","v":0},{"$f":"VLOOKUP($I2485,Func,7)*$H2485","v":0},null,{"$f":"Demand","v":0.38},{"$f":"+$J2485*$P2485","v":-160234.990083451},{"$f":"+$J2485*(1-$P2485)","v":-261436.03645194639},{"$f":"Demand","v":0.38},{"$f":"+$K2485*$S2485","v":-62010.103263470904},{"$f":"+$K2485*(1-$S2485)","v":-101174.37900882095},"PLNT",{"$f":"+$L2485*VLOOKUP($V2485,DisFac,2)","v":-28630.883014433173},{"$f":"+$L2485*VLOOKUP($V2485,DisFac,3)","v":-117286.71632541278},{"$f":"+$L2485*VLOOKUP($V2485,DisFac,4)","v":-59479.266852229935},{"$f":"+$L2485*VLOOKUP($V2485,DisFac,5)","v":-6889.348589082746},{"$f":"+$L2485*VLOOKUP($V2485,DisFac,6)","v":-31423.233649238271},-6889.348589082746,"UACCT111CLGSOU",0,0,0,0]
[2486,null,null,"SE",111,"SE","ACCT111CLGSE",{"$f":"'JAM Download'!E2800+'JAM Download'!E2798+'JAM Download'!E2799","v":0},"P",{"$f":"VLOOKUP($I2486,Func,2)*$H2486","v":0},{"$f":"VLOOKUP($I2486,Func,3)*$H2486","v":0},{"$f":"VLOOKUP($I2486,Func,5)*$H2486","v":0},{"$f":"VLOOKUP($I2486,Func,6)*$H2486","v":0},{"$f":"VLOOKUP($I2486,Func,7)*$H2486","v":0},null,{"$f":"Demand","v":0.38},{"$f":"+$J2486*$P2486","v":0},{"$f":"+$J2486*(1-$P2486)","v":0},{"$f":"Demand","v":0.38},{"$f":"+$K2486*$S2486","v":0},{"$f":"+$K2486*(1-$S2486)","v":0},"PLNT",{"$f":"+$L2486*VLOOKUP($V2486,DisFac,2)","v":0},{"$f":"+$L2486*VLOOKUP($V2486,DisFac,3)","v":0},{"$f":"+$L2486*VLOOKUP($V2486,DisFac,4)","v":0},{"$f":"+$L2486*VLOOKUP($V2486,DisFac,5)","v":0},{"$f":"+$L2486*VLOOKUP($V2486,DisFac,6)","v":0},0,"UACCT1081399SEP",0,0,0,0]
[2487,null,null,null,null,null,"ACCT111CLG",{"$f":"'JAM Download'!E2801","v":-2749806.7009582534},null,{"$f":"SUM(J2482:J2486)","v":-421671.0265353974},{"$f":"SUM(K2482:K2486)","v":-596024.26169600664},{"$f":"SUM(L2482:L2486)","v":-1514880.8690066822},{"$f":"SUM(M2482:M2486)","v":-217230.54372016733},{"$f":"SUM(N2482:N2486)","v":0},null,null,{"$f":"SUM(Q2482:Q2486)","v":-160234.990083451},{"$f":"SUM(R2482:R2486)","v":-261436.03645194639},null,{"$f":"SUM(T2482:T2486)","v":-226489.2194444825},{"$f":"SUM(U2482:U2486)","v":-369535.04225152405},null,{"$f":"SUM(W2482:W2486)","v":-177967.56432986748},{"$f":"SUM(X2482:X2486)","v":-729046.0172730044},{"$f":"SUM(Y2482:Y2486)","v":-369718.9585274533},{"$f":"SUM(Z2482:Z2486)","v":-42823.708496883708},{"$f":"SUM(AA2482:AA2486)","v":-195324.62037947326},-42823.708496883708,"UACCT111CLG",0,0,0,0]
[2488]
[2489]
[2490,"111HP","Accum Prov for Amort-Hydro"]
[2491,null,null,"DGP/DGU",111,"DGP","ACCT111CLHDGP",{"$f":"'JAM Download'!E2805+'JAM Download'!E2806","v":0},"P",{"$f":"VLOOKUP($I2491,Func,2)*$H2491","v":0},{"$f":"VLOOKUP($I2491,Func,3)*$H2491","v":0},{"$f":"VLOOKUP($I2491,Func,5)*$H2491","v":0},{"$f":"VLOOKUP($I2491,Func,6)*$H2491","v":0},{"$f":"VLOOKUP($I2491,Func,7)*$H2491","v":0},null,{"$f":"Demand","v":0.38},{"$f":"+$J2491*$P2491","v":0},{"$f":"+$J2491*(1-$P2491)","v":0},{"$f":"Demand","v":0.38},{"$f":"+$K2491*$S2491","v":0},{"$f":"+$K2491*(1-$S2491)","v":0},"PLNT",{"$f":"+$L2491*VLOOKUP($V2491,DisFac,2)","v":0},{"$f":"+$L2491*VLOOKUP($V2491,DisFac,3)","v":0},{"$f":"+$L2491*VLOOKUP($V2491,DisFac,4)","v":0},{"$f":"+$L2491*VLOOKUP($V2491,DisFac,5)","v":0},{"$f":"+$L2491*VLOOKUP($V2491,DisFac,6)","v":0},0,"UACCT111CLHDGP",{"$f":"ROUND(SUM(-H2491,J2491:N2491),0)","v":0},{"$f":"ROUND(J2491-Q2491-R2491,0)","v":0},{"$f":"ROUND(K2491-T2491-U2491,0)","v":0},{"$f":"ROUND(L2491-W2491-X2491-Y2491-Z2491-AA2491,0)","v":0}]
[2492,null,null,"SG/CAGE/CAGW","CAGW","SG","ACCT111CLHDGU",{"$f":"'JAM Download'!E2807+'JAM Download'!E2808+'JAM Download'!E2809+'JAM Download'!E2810","v":-107221.73928561615},"P",{"$f":"VLOOKUP($I2492,Func,2)*$H2492","v":-107221.73928561615},{"$f":"VLOOKUP($I2492,Func,3)*$H2492","v":0},{"$f":"VLOOKUP($I2492,Func,5)*$H2492","v":0},{"$f":"VLOOKUP($I2492,Func,6)*$H2492","v":0},{"$f":"VLOOKUP($I2492,Func,7)*$H2492","v":0},null,{"$f":"Demand","v":0.38},{"$f":"+$J2492*$P2492","v":-40744.260928534139},{"$f":"+$J2492*(1-$P2492)","v":-66477.478357082015},{"$f":"Demand","v":0.38},{"$f":"+$K2492*$S2492","v":0},{"$f":"+$K2492*(1-$S2492)","v":0},"PLNT",{"$f":"+$L2492*VLOOKUP($V2492,DisFac,2)","v":0},{"$f":"+$L2492*VLOOKUP($V2492,DisFac,3)","v":0},{"$f":"+$L2492*VLOOKUP($V2492,DisFac,4)","v":0},{"$f":"+$L2492*VLOOKUP($V2492,DisFac,5)","v":0},{"$f":"+$L2492*VLOOKUP($V2492,DisFac,6)","v":0},0,"UACCT111CLHDGU",{"$f":"ROUND(SUM(-H2492,J2492:N2492),0)","v":0},{"$f":"ROUND(J2492-Q2492-R2492,0)","v":0},{"$f":"ROUND(K2492-T2492-U2492,0)","v":0},{"$f":"ROUND(L2492-W2492-X2492-Y2492-Z2492-AA2492,0)","v":0}]
[{"$f":"A2492+1","v":2493},null,null,null,null,null,"ACCT111CLH",{"$f":"'JAM Download'!E2811","v":-107221.73928561615},null,{"$f":"SUM(J2491:J2492)","v":-107221.73928561615},{"$f":"SUM(K2491:K2492)","v":0},{"$f":"SUM(L2491:L2492)","v":0},{"$f":"SUM(M2491:M2492)","v":0},{"$f":"SUM(N2491:N2492)","v":0},null,null,{"$f":"SUM(Q2491:Q2492)","v":-40744.260928534139},{"$f":"SUM(R2491:R2492)","v":-66477.478357082015},null,{"$f":"SUM(T2491:T2492)","v":0},{"$f":"SUM(U2491:U2492)","v":0},null,{"$f":"SUM(W2491:W2492)","v":0},{"$f":"SUM(X2491:X2492)","v":0},{"$f":"SUM(Y2491:Y2492)","v":0},{"$f":"SUM(Z2491:Z2492)","v":0},{"$f":"SUM(AA2491:AA2492)","v":0},0,"UACCT111CLH",{"$f":"ROUND(SUM(-H2493,J2493:N2493),0)","v":0},{"$f":"ROUND(J2493-Q2493-R2493,0)","v":0},{"$f":"ROUND(K2493-T2493-U2493,0)","v":0},{"$f":"ROUND(L2493-W2493-X2493-Y2493-Z2493-AA2493,0)","v":0}]
[2494]
[2495]
[2496,"111IP","Accum Prov for Amort-Intangible Plant"]
[2497,null,null,"S",111,"S","ACCT111IPS",{"$f":"'JAM Download'!E2815","v":0},"I-SITUS",{"$f":"VLOOKUP($I2497,Func,2)*$H2497","v":0},{"$f":"VLOOKUP($I2497,Func,3)*$H2497","v":0},{"$f":"VLOOKUP($I2497,Func,5)*$H2497","v":0},{"$f":"VLOOKUP($I2497,Func,6)*$H2497","v":0},{"$f":"VLOOKUP($I2497,Func,7)*$H2497","v":0},null,{"$f":"Demand","v":0.38},{"$f":"+$J2497*$P2497","v":0},{"$f":"+$J2497*(1-$P2497)","v":0},{"$f":"Demand","v":0.38},{"$f":"+$K2497*$S2497","v":0},{"$f":"+$K2497*(1-$S2497)","v":0},"PLNT",{"$f":"+$L2497*VLOOKUP($V2497,DisFac,2)","v":0},{"$f":"+$L2497*VLOOKUP($V2497,DisFac,3)","v":0},{"$f":"+$L2497*VLOOKUP($V2497,DisFac,4)","v":0},{"$f":"+$L2497*VLOOKUP($V2497,DisFac,5)","v":0},{"$f":"+$L2497*VLOOKUP($V2497,DisFac,6)","v":0},0,"UACCT111IPS",{"$f":"ROUND(SUM(-H2497,J2497:N2497),0)","v":0},{"$f":"ROUND(J2497-Q2497-R2497,0)","v":0},{"$f":"ROUND(K2497-T2497-U2497,0)","v":0},{"$f":"ROUND(L2497-W2497-X2497-Y2497-Z2497-AA2497,0)","v":0}]
[2498,null,null,"DGP",111,"DGP","ACCT111IPDGP",{"$f":"'JAM Download'!E2816","v":0},"I-DGP",0,0,0,0,0,null,0.38,0,0,0.38,0,0,"PLNT",0,0,0,0,0,0,"UACCT111IPSGP",0,0,0,0]
[2499,null,null,"DGU",111,"DGU","ACCT111IPDGU",{"$f":"'JAM Download'!E2817","v":0},"I-DGU",0,0,0,0,0,null,0.38,0,0,0.38,0,0,"PLNT",0,0,0,0,0,0,"UACCT111IPSGU",0,0,0,0]
[2500,null,null,"SE",111,"SE","ACCT111IPSE",{"$f":"'JAM Download'!E2820+'JAM Download'!E2818+'JAM Download'!E2819","v":0},"P",0,0,0,0,0,null,0.38,0,0,0.38,0,0,"PLNT",0,0,0,0,0,0,"UACCT111IPSE",0,0,0,0]
[2501,null,null,"SG",111,"SG","ACCT111IPSG",{"$f":"'JAM Download'!E2821+'JAM Download'!E2822+'JAM Download'!E2823+'JAM Download'!E2825+'JAM Download'!E2826+'JAM Download'!E2827+'JAM Download'!E2828","v":-14162176.110192712},"I-SG",-12113857.441281775,-2048318.6689109397,0,0,0,null,0.38,-4603265.8276870744,-7510591.6135947006,0.38,-778361.0941861571,-1269957.5747247827,"PLNT",0,0,0,0,0,0,"UACCT111IPSG",0,0,0,0]
[2502,null,null,"CN",111,"CN","ACCT111IPCN",{"$f":"'JAM Download'!E2824","v":-7198289.7239659186},"CUST",0,0,0,-7198289.7239659186,0,null,0.38,0,0,0.38,0,0,"CUST",0,0,0,0,0,0,"UACCT111IPCN",0,0,0,0]
[2503,null,null,"JBG",111,"JBG","ACCT111IPJBG",{"$f":"'JAM Download'!E2829","v":-3965.4081728096226},"I-SG",-3391.8791101133793,-573.52906269624418,0,0,0,null,0.38,-1288.9140618430843,-2102.965048270295,0.38,-217.9410438245728,-355.58801887167141,"PLNT",0,0,0,0,0,0,"UACCT111IPCAEW",0,0,0,0]
[2504,null,null,"CAGE",111,"CAGE","ACCT111IPCAGE",0,"P",0,0,0,0,0,null,0.38,0,0,0.38,0,0,"PLNT",0,0,0,0,0,0,"UACCT111IPSSGCT",0,0,0,0]
[2505,null,null,"CAGE",111,"CAGE","ACCT111IPCAGE",0,"P",0,0,0,0,0,null,0.38,0,0,0.38,0,0,"PLNT",0,0,0,0,0,0,"UACCT111IPSSGCH",0,0,0,0]
[2506,null,null,"SO",111,"SO","ACCT111IPSO",{"$f":"'JAM Download'!E2830","v":-19244380.976606924},"PTD",-9793798.0728677455,-3790148.6405922929,-5660434.2631468847,0,0,null,0.38,-3721643.2676897435,-6072154.8051780025,0.38,-1440256.4834250712,-2349892.1571672214,"PLNT",-664985.42523817148,-2724119.8565592864,-1381474.8759458703,-160013.10189475081,-729841.00350880576,-160013.10189475081,"UACCT111IPSOP",0,0,0,0]
[2507,null,null,null,null,null,"ACCT111IP",{"$f":"'JAM Download'!E2831","v":-40608812.218938366},null,{"$f":"SUM(J2497:J2506)","v":-21911047.393259633},{"$f":"SUM(K2497:K2506)","v":-5839040.8385659289},{"$f":"SUM(L2497:L2506)","v":-5660434.2631468847},{"$f":"SUM(M2497:M2506)","v":-7198289.7239659186},{"$f":"SUM(N2497:N2506)","v":0},null,null,{"$f":"SUM(Q2497:Q2506)","v":-8326198.0094386619},{"$f":"SUM(R2497:R2506)","v":-13584849.383820973},null,{"$f":"SUM(T2497:T2506)","v":-2218835.5186550529},{"$f":"SUM(U2497:U2506)","v":-3620205.3199108755},null,{"$f":"SUM(W2497:W2506)","v":-664985.42523817148},{"$f":"SUM(X2497:X2506)","v":-2724119.8565592864},{"$f":"SUM(Y2497:Y2506)","v":-1381474.8759458703},{"$f":"SUM(Z2497:Z2506)","v":-160013.10189475081},{"$f":"SUM(AA2497:AA2506)","v":-729841.00350880576},-160013.10189475081,null,0,0,0,0]
[2508,"111IP","Less Non-Utility Plant"]
[2509,null,null,"DOTH",111,"S","ACCT111DOTH",{"$f":"'JAM Download'!E2833","v":0},"NUTIL",{"$f":"VLOOKUP($I2509,Func,2)*$H2509","v":0},{"$f":"VLOOKUP($I2509,Func,3)*$H2509","v":0},{"$f":"VLOOKUP($I2509,Func,5)*$H2509","v":0},{"$f":"VLOOKUP($I2509,Func,6)*$H2509","v":0},{"$f":"VLOOKUP($I2509,Func,7)*$H2509","v":0},null,{"$f":"Demand","v":0.38},{"$f":"+$J2509*$P2509","v":0},{"$f":"+$J2509*(1-$P2509)","v":0},{"$f":"Demand","v":0.38},{"$f":"+$K2509*$S2509","v":0},{"$f":"+$K2509*(1-$S2509)","v":0},null,null,null,null,null,null,null,"UACCT111DOTH",{"$f":"ROUND(SUM(-H2509,J2509:N2509),0)","v":0},{"$f":"ROUND(J2509-Q2509-R2509,0)","v":0},{"$f":"ROUND(K2509-T2509-U2509,0)","v":0},{"$f":"ROUND(L2509-W2509-X2509-Y2509-Z2509-AA2509,0)","v":0}]
[2510,null,null,null,null,null,"ACCT111IP",{"$f":"'JAM Download'!E2834","v":-40608812.218938366},null,{"$f":"SUM(J2507:J2509)","v":-21911047.393259633},{"$f":"SUM(K2507:K2509)","v":-5839040.8385659289},{"$f":"SUM(L2507:L2509)","v":-5660434.2631468847},{"$f":"SUM(M2507:M2509)","v":-7198289.7239659186},{"$f":"SUM(N2507:N2509)","v":0},null,null,{"$f":"SUM(Q2507:Q2509)","v":-8326198.0094386619},{"$f":"SUM(R2507:R2509)","v":-13584849.383820973},null,{"$f":"SUM(T2507:T2509)","v":-2218835.5186550529},{"$f":"SUM(U2507:U2509)","v":-3620205.3199108755},null,{"$f":"SUM(W2507:W2509)","v":-664985.42523817148},{"$f":"SUM(X2507:X2509)","v":-2724119.8565592864},{"$f":"SUM(Y2507:Y2509)","v":-1381474.8759458703},{"$f":"SUM(Z2507:Z2509)","v":-160013.10189475081},{"$f":"SUM(AA2507:AA2509)","v":-729841.00350880576},-160013.10189475081,"UACCT111IP",{"$f":"ROUND(SUM(-H2510,J2510:N2510),0)","v":0},{"$f":"ROUND(J2510-Q2510-R2510,0)","v":0},{"$f":"ROUND(K2510-T2510-U2510,0)","v":0},{"$f":"ROUND(L2510-W2510-X2510-Y2510-Z2510-AA2510,0)","v":0}]
[2511]
[2512,111390,"'Accum Amtr - Capital Lease"]
[2513,null,null,"CAGW",111,"CAGW","ACCT111390CAGW",{"$f":"'JAM Download'!E2839","v":51481.529877819718},"P",{"$f":"VLOOKUP($I2513,Func,2)*$H2513","v":51481.529877819718},{"$f":"VLOOKUP($I2513,Func,3)*$H2513","v":0},{"$f":"VLOOKUP($I2513,Func,5)*$H2513","v":0},{"$f":"VLOOKUP($I2513,Func,6)*$H2513","v":0},{"$f":"VLOOKUP($I2513,Func,7)*$H2513","v":0},null,{"$f":"Demand","v":0.38},{"$f":"+$J2513*$P2513","v":19562.981353571493},{"$f":"+$J2513*(1-$P2513)","v":31918.548524248225},{"$f":"Demand","v":0.38},{"$f":"+$K2513*$S2513","v":0},{"$f":"+$K2513*(1-$S2513)","v":0},"PLNT",{"$f":"+$L2513*VLOOKUP($V2513,DisFac,2)","v":0},{"$f":"+$L2513*VLOOKUP($V2513,DisFac,3)","v":0},{"$f":"+$L2513*VLOOKUP($V2513,DisFac,4)","v":0},{"$f":"+$L2513*VLOOKUP($V2513,DisFac,5)","v":0},{"$f":"+$L2513*VLOOKUP($V2513,DisFac,6)","v":0},0,"UACCT111390SG",{"$f":"ROUND(SUM(-H2513,J2513:N2513),0)","v":0},{"$f":"ROUND(J2513-Q2513-R2513,0)","v":0},{"$f":"ROUND(K2513-T2513-U2513,0)","v":0},{"$f":"ROUND(L2513-W2513-X2513-Y2513-Z2513-AA2513,0)","v":0}]
[2514,null,null,"S",111,"S","ACCT111390S",{"$f":"'JAM Download'!E2838","v":0},"G-SITUS",{"$f":"VLOOKUP($I2514,Func,2)*$H2514","v":0},{"$f":"VLOOKUP($I2514,Func,3)*$H2514","v":0},{"$f":"VLOOKUP($I2514,Func,5)*$H2514","v":0},{"$f":"VLOOKUP($I2514,Func,6)*$H2514","v":0},{"$f":"VLOOKUP($I2514,Func,7)*$H2514","v":0},null,{"$f":"Demand","v":0.38},{"$f":"+$J2514*$P2514","v":0},{"$f":"+$J2514*(1-$P2514)","v":0},{"$f":"Demand","v":0.38},{"$f":"+$K2514*$S2514","v":0},{"$f":"+$K2514*(1-$S2514)","v":0},"PLNT",{"$f":"+$L2514*VLOOKUP($V2514,DisFac,2)","v":0},{"$f":"+$L2514*VLOOKUP($V2514,DisFac,3)","v":0},{"$f":"+$L2514*VLOOKUP($V2514,DisFac,4)","v":0},{"$f":"+$L2514*VLOOKUP($V2514,DisFac,5)","v":0},{"$f":"+$L2514*VLOOKUP($V2514,DisFac,6)","v":0},0,"UACCT111390S",{"$f":"ROUND(SUM(-H2514,J2514:N2514),0)","v":0},{"$f":"ROUND(J2514-Q2514-R2514,0)","v":0},{"$f":"ROUND(K2514-T2514-U2514,0)","v":0},{"$f":"ROUND(L2514-W2514-X2514-Y2514-Z2514-AA2514,0)","v":0}]
[2515,null,null,"SO",111,"SO","ACCT111390SO",{"$f":"'JAM Download'!E2840","v":51481.529877819718},"PTD",{"$f":"VLOOKUP($I2515,Func,2)*$H2515","v":26199.840292008816},{"$f":"VLOOKUP($I2515,Func,3)*$H2515","v":10139.201189127205},{"$f":"VLOOKUP($I2515,Func,5)*$H2515","v":15142.488396683695},{"$f":"VLOOKUP($I2515,Func,6)*$H2515","v":0},{"$f":"VLOOKUP($I2515,Func,7)*$H2515","v":0},null,{"$f":"Demand","v":0.38},{"$f":"+$J2515*$P2515","v":9955.9393109633493},{"$f":"+$J2515*(1-$P2515)","v":16243.900981045466},{"$f":"Demand","v":0.38},{"$f":"+$K2515*$S2515","v":3852.8964518683379},{"$f":"+$K2515*(1-$S2515)","v":6286.3047372588671},"PLNT",{"$f":"+$L2515*VLOOKUP($V2515,DisFac,2)","v":1778.9331379028658},{"$f":"+$L2515*VLOOKUP($V2515,DisFac,3)","v":7287.4184914907883},{"$f":"+$L2515*VLOOKUP($V2515,DisFac,4)","v":3695.6470664303083},{"$f":"+$L2515*VLOOKUP($V2515,DisFac,5)","v":428.05841850932114},{"$f":"+$L2515*VLOOKUP($V2515,DisFac,6)","v":1952.4312823504108},428.05841850932114,"UACCT111390SO",{"$f":"ROUND(SUM(-H2515,J2515:N2515),0)","v":0},{"$f":"ROUND(J2515-Q2515-R2515,0)","v":0},{"$f":"ROUND(K2515-T2515-U2515,0)","v":0},{"$f":"ROUND(L2515-W2515-X2515-Y2515-Z2515-AA2515,0)","v":0}]
[2516,null,null,null,null,null,"ACCT111390",{"$f":"'JAM Download'!E2841","v":102963.05975563944},null,{"$f":"SUM(J2513:J2515)","v":77681.370169828529},{"$f":"SUM(K2513:K2515)","v":10139.201189127205},{"$f":"SUM(L2513:L2515)","v":15142.488396683695},{"$f":"SUM(M2513:M2515)","v":0},{"$f":"SUM(N2513:N2515)","v":0},null,null,{"$f":"SUM(Q2513:Q2515)","v":29518.920664534842},{"$f":"SUM(R2513:R2515)","v":48162.449505293691},null,{"$f":"SUM(T2513:T2515)","v":3852.8964518683379},{"$f":"SUM(U2513:U2515)","v":6286.3047372588671},null,{"$f":"SUM(W2513:W2515)","v":1778.9331379028658},{"$f":"SUM(X2513:X2515)","v":7287.4184914907883},{"$f":"SUM(Y2513:Y2515)","v":3695.6470664303083},{"$f":"SUM(Z2513:Z2515)","v":428.05841850932114},{"$f":"SUM(AA2513:AA2515)","v":1952.4312823504108},428.05841850932114,"UACCT111390",{"$f":"ROUND(SUM(-H2516,J2516:N2516),0)","v":0},{"$f":"ROUND(J2516-Q2516-R2516,0)","v":0},{"$f":"ROUND(K2516-T2516-U2516,0)","v":0},{"$f":"ROUND(L2516-W2516-X2516-Y2516-Z2516-AA2516,0)","v":0}]
[2517]
[2518,null,"Remove Capital Lease Amtr",null,null,null,null,{"$f":"'JAM Download'!E2843","v":-102963.05975563944},null,{"$f":"-J2516","v":-77681.370169828529},{"$f":"-K2516","v":-10139.201189127205},{"$f":"-L2516","v":-15142.488396683695},{"$f":"-M2516","v":0},{"$f":"-N2516","v":0},null,null,{"$f":"-Q2516","v":-29518.920664534842},-48162.449505293691,null,-3852.8964518683379,-6286.3047372588671,null,-1778.9331379028658,-7287.4184914907883,-3695.6470664303083,-428.05841850932114,-1952.4312823504108,-428.05841850932114,null,{"$f":"ROUND(SUM(-H2518,J2518:N2518),0)","v":0},{"$f":"ROUND(J2518-Q2518-R2518,0)","v":0},{"$f":"ROUND(K2518-T2518-U2518,0)","v":0},{"$f":"ROUND(L2518-W2518-X2518-Y2518-Z2518-AA2518,0)","v":0}]
[2519,"TOTAL ACCUM PROV FOR AMORTIZATION",null,null,null,null,null,{"$f":"'JAM Download'!E2845","v":-43465840.659182236},null,{"$f":"+J2510+J2493+J2487+J2478+J2513+J2514+J2515+J2518","v":-22439940.159080647},{"$f":"+K2510+K2493+K2487+K2478+K2513+K2514+K2515+K2518","v":-6435065.100261936},{"$f":"+L2510+L2493+L2487+L2478+L2513+L2514+L2515+L2518","v":-7175315.1321535669},{"$f":"+M2510+M2493+M2487+M2478+M2513+M2514+M2515+M2518","v":-7415520.2676860858},{"$f":"+N2510+N2493+N2487+N2478+N2513+N2514+N2515+N2518","v":0},null,null,{"$f":"+Q2510+Q2493+Q2487+Q2478+Q2513+Q2514+Q2515+Q2518","v":-8527177.2604506444},{"$f":"+R2510+R2493+R2487+R2478+R2513+R2514+R2515+R2518","v":-13912762.898630003},null,{"$f":"+T2510+T2493+T2487+T2478+T2513+T2514+T2515+T2518","v":-2445324.7380995355},{"$f":"+U2510+U2493+U2487+U2478+U2513+U2514+U2515+U2518","v":-3989740.3621623996},null,{"$f":"+W2510+W2493+W2487+W2478+W2513+W2514+W2515+W2518","v":-842952.98956803896},{"$f":"+X2510+X2493+X2487+X2478+X2513+X2514+X2515+X2518","v":-3453165.873832291},{"$f":"+Y2510+Y2493+Y2487+Y2478+Y2513+Y2514+Y2515+Y2518","v":-1751193.8344733235},{"$f":"+Z2510+Z2493+Z2487+Z2478+Z2513+Z2514+Z2515+Z2518","v":-202836.81039163453},{"$f":"+AA2510+AA2493+AA2487+AA2478+AA2513+AA2514+AA2515+AA2518","v":-925165.62388827908},-202836.81039163453,null,{"$f":"+AD2510+AD2493+AD2487+AD2478+AD2513+AD2514+AD2515+AD2518","v":0},{"$f":"+AE2510+AE2493+AE2487+AE2478+AE2513+AE2514+AE2515+AE2518","v":0},{"$f":"+AF2510+AF2493+AF2487+AF2478+AF2513+AF2514+AF2515+AF2518","v":0},{"$f":"+AG2510+AG2493+AG2487+AG2478+AG2513+AG2514+AG2515+AG2518","v":0}]
[]
["END",null,null,null,null,null,null,"END",null,"END","END","END","END","END",null,null,"END","END",null,"END","END",null,"END","END","END","END","END","END"]

{"sheet":"Func Allocation Options","index":20,"n_rows":2269,"n_cols":13,"rows_kept":2269,"cut":false,"hidden":false,"merged":[]}
[null,null,"Five Function Functionalization Factors",null,null,null,null,null,"Distribution Functionalization Factors"]
[]
[null,null,"FUNC","FUNC","FUNC","FUNC","FUNC",null,"DIS","DIS","DIS","DIS","DIS"]
[null,"FERC","FACTOR","FACTOR","FACTOR","FACTOR","FACTOR",null,"FACTOR","FACTOR","FACTOR","FACTOR","FACTOR"]
[null,"Accounts","Company","MSP","WCA","Option-2","Option-3",null,"Company","WCA","MSP","Option-3","Option-4"]
[]
[null,"ACCT440S","NONE","NONE","NONE","NONE","NONE",null,"DRB","DRB","DRB","DRB","DRB"]
[null,"ACCT440"]
[]
[]
[null,"ACCT442S","NONE","NONE","NONE","NONE","NONE",null,"DRB","DRB","DRB","DRB","DRB"]
[null,"ACCT442SE","P","P","P","P","P",null,"DRB","DRB","DRB","DRB","DRB"]
[null,"ACCT442SG","PT","PT","PT","PT","PT",null,"DRB","DRB","DRB","DRB","DRB"]
[null,"ACCT442"]
[]
[]
[null,"ACCT444S","NONE","NONE","NONE","NONE","NONE",null,"DRB","DRB","DRB","DRB","DRB"]
[null,"ACCT444SO",null,null,"GP",null,null,null,"DRB","DRB","DRB","DRB","DRB"]
[null,"ACCT444"]
[null," "]
[]
[null,"ACCT445S","NONE","NONE","NONE","NONE","NONE",null,"DRB","DRB","DRB","DRB","DRB"]
[]
[null,"ACCT445"]
[]
[]
[null,"ACCT448S","DPW","DPW","DPW","DPW","DPW",null,"DRB","DRB","DRB","DRB","DRB"]
[null,"ACCT448SO","GP","GP","GP","GP","GP",null,"DRB","DRB","DRB","DRB","DRB"]
[null,"ACCT448"]
[]
[]
[]
[null,"ACCT447S","P","P","P","P","P",null,"DRB","DRB","DRB","DRB","DRB"]
[]
[]
[null,"ACCT447S","P","P","P","P","P",null,"DRB","DRB","DRB","DRB","DRB"]
[null,"ACCT447SG","P","P","P","P","P",null,"DRB","DRB","DRB","DRB","DRB"]
[null,"ACCT447SE","P","P","P","P","P",null,"DRB","DRB","DRB","DRB","DRB"]
[null,"ACCT447CAEW","P","P","P","P","P",null,"DRB","DRB","DRB","DRB","DRB"]
[null,"ACCT447CAGW","P","P","P","P","P",null,"DRB","DRB","DRB","DRB","DRB"]
[null,"ACCT447DGP","P","P","P","P","P",null,"DRB","DRB","DRB","DRB","DRB"]
[null,"ACCT447"]
[]
[]
[null,"ACCT449S","P","P","NONE","NONE","NONE",null,"DRB","DRB","DRB","DRB","DRB"]
[null,"ACCT449DGP","P","P","P","P","P",null,"DRB","DRB","DRB","DRB","DRB"]
[null,"ACCT449"]
[null,"ACCT33","REVREQ","REVREQ","REVREQ","REVREQ","REVREQ",null,"DRB","DRB","DRB","DRB","DRB"]
[null,"AGA","DPW","DPW","DPW","DPW","DPW",null,"DRB","DRB","DRB","DRB","DRB"]
[]
[]
[]
[]
[]
[null,"ACCT450S","CUST","CUST","CUST","CUST","CUST",null,"CUST","CUST","CUST","CUST","CUST"]
[null,"ACCT450SO","CUST","CUST","CUST","CUST","CUST",null,"CUST","CUST","CUST","CUST","CUST"]
[null,"ACCT450"]
[null," "]
[]
[null,"ACCT451S","CUST","CUST","CUST","CUST","CUST",null,"CUST","CUST","CUST","CUST","CUST"]
[null,"ACCT451SG","GP","GP","GP","GP","GP",null,"PLNT","PLNT","PLNT","PLNT","PLNT"]
[null,"ACCT451SO","GP","GP","GP","GP","GP",null,"PLNT","PLNT","PLNT","PLNT","PLNT"]
[null,"ACCT451"]
[]
[]
[null,"ACCT453JBG","P","P","P","P","P",null,"PLNT","PLNT","PLNT","PLNT","PLNT"]
[null,"ACCT453SG","P","P","P","P","P",null,"PLNT","PLNT","PLNT","PLNT","PLNT"]
[null,"ACCT453"]
[]
[]
[null,"ACCT454S","DPW","DPW","DPW","DPW","DPW",null,"PLNT","PLNT","PLNT","PLNT","PLNT"]
[null,"ACCT454JBG","T","T","T","T","T",null,"PLNT","PLNT","PLNT","PLNT","PLNT"]
[null,"ACCT454SG","T","T","T","T","T",null,"PLNT","PLNT","PLNT","PLNT","PLNT"]
[null,"ACCT454SO","GP","GP","GP","GP","GP",null,"PLNT","PLNT","PLNT","PLNT","PLNT"]
[null,"ACCT454"]
[]
[]
[null,"ACCT456S","DMSC","DMSC","DMSC","DMSC","DMSC",null,"PLNT","PLNT","PLNT","PLNT","PLNT"]
[null,"ACCT456WRG","CUST","CUST","OTHSGR","CUST","CUST",null,"CUST","CUST","PLNT","CUST","CUST"]
[null,"ACCT456CAGW","OTHSGR","OTHSGR","OTHSGR","OTHSGR","OTHSGR",null,"PLNT","PLNT","PLNT","PLNT","PLNT"]
[null,"ACCT456JBG","OTHSGR","OTHSGR","OTHSGR","OTHSGR","OTHSGR",null,"PLNT","PLNT","PLNT","PLNT","PLNT"]
[null,"ACCT456SO","OTHSO","OTHSO","OTHSO","OTHSO","OTHSO",null,"PLNT","PLNT","PLNT","PLNT","PLNT"]
[null,"ACCT456SG","OTHSGR","OTHSGR","OTHSGR","OTHSGR","OTHSGR",null,"PLNT","PLNT","PLNT","PLNT","PLNT"]
[null,"ACCTT456CAEW","P","P","P","OTHSGR","OTHSGR",null,"PLNT","PLNT","PLNT","PLNT","PLNT"]
[null,"ACCT456"]
[]
[]
[]
[]
[]
[]
[]
[]
[]
[]
[]
[]
[]
[]
[]
[]
[]
[]
[]
[]
[]
[]
[]
[]
[]
[]
[]
[null,"RANGE","FUNC","FUNC","FUNC","FUNC","FUNC",null,"DIS","DIS","DIS","DIS","DIS"]
[null,"NAME","FACTOR","FACTOR","FACTOR","FACTOR","FACTOR",null,"SPLIT","SPLIT","SPLIT","SPLIT","SPLIT"]
[]
[]
[null,"ACCT41160S","DPW","DPW","DPW","DPW","DPW",null,"PLNT","PLNT","PLNT","PLNT","PLNT"]
[null,"ACCT41160SG","T","T","T","T","T",null,"PLNT","PLNT","PLNT","PLNT","PLNT"]
[null,"ACCT41160SO","G","G","G","G","G",null,"PLNT","PLNT","PLNT","PLNT","PLNT"]
[null,"ACCT41160DGU","T","T","T","T","T",null,"PLNT","PLNT","PLNT","PLNT","PLNT"]
[null,"ACCT41160DGP","P","P","P","P","P",null,"PLNT","PLNT","PLNT","PLNT","PLNT"]
[null,"ACCT41160"]
[]
[]
[null,"ACCT41170S","DPW","DPW","DPW","DPW","DPW",null,"PLNT","PLNT","PLNT","PLNT","PLNT"]
[null,"ACCT41170DGU","T","T","T","T","T",null,"PLNT","PLNT","PLNT","PLNT","PLNT"]
[null,"ACCT41170"]
[]
[null,"ACCTS4118S","P","P","P","P","P",null,"PLNT","PLNT","PLNT","PLNT","PLNT"]
[null,"ACCT4118SE","P","P","P","P","P",null,"PLNT","PLNT","PLNT","PLNT","PLNT"]
[null,"ACCT4118"]
[]
[null,"ACCT41181SE","P","P","P","P","P",null,"PLNT","PLNT","PLNT","PLNT","PLNT"]
[null,"ACCT41181"]
[]
[]
[null,"ACCT4194DGU","P","P","P","P","P",null,"PLNT","PLNT","PLNT","PLNT","PLNT"]
[null,"ACCT4194"]
[]
[]
[null,"ACCT421S","DPW","DPW","DPW","DPW","DPW",null,"PLNT","PLNT","PLNT","PLNT","PLNT"]
[null,"ACCT421SG","T","T","T","T","T",null,"PLNT","PLNT","PLNT","PLNT","PLNT"]
[null,"ACCT421SG","T","T","T","T","T",null,"PLNT","PLNT","PLNT","PLNT","PLNT"]
[null,"ACCT421CN","CUST","CUST","CUST","CUST","CUST",null,"PLNT","PLNT","PLNT","PLNT","PLNT"]
[null,"ACCT421SO","PTD","PTD","PTD","PTD","PTD",null,"PLNT","PLNT","PLNT","PLNT","PLNT"]
[null,"ACCT421SG","P","P","P","P","P",null,"PLNT","PLNT","PLNT","PLNT","PLNT"]
[null,"ACCT421",null,null,null,null,null,null,"PLNT","PLNT","PLNT","PLNT","PLNT"]
[]
[]
[]
[]
[]
[null,"ACCT4311S","CUST","CUST","CUST","CUST","CUST",null,"CUST","CUST","CUST","CUST","CUST"]
[null,"ACCT4311"]
[]
[]
[]
[]
[]
[]
[]
[]
[null,"RANGE","FUNC","FUNC","FUNC","FUNC","FUNC",null,"DIS","DIS","DIS","DIS","DIS"]
[null,"NAME","FACTOR","FACTOR","FACTOR","FACTOR","FACTOR",null,"SPLIT","SPLIT","SPLIT","SPLIT","SPLIT"]
[]
[null,"ACCT500SG","P","P","P","P","P"]
[null,"ACCT500JBG","P","P","P","P","P"]
[null,"ACCT500CAGE","P","P","P","P","P"]
[null,"ACCT500"]
[]
[]
[null,"ACCT501SE","P","P","P","P","P"]
[null,"ACCT501CAGW","P","P","P","P","P"]
[null,"ACCT501JBE","P","P","P","P","P"]
[null,"ACCT501SSECH","P","P","P","P","P"]
[null,"ACCT501"]
[]
[]
[null,{"$f":"'Func Study'!H426","v":47552446.991143696},"P","P","P","P","P"]
[]
[]
[]
[]
[null,"ACCT502SG","P","P","P","P","P"]
[null,"ACCT502JBG","P","P","P","P","P"]
[null,"ACCT502"]
[]
[]
[null,"ACCT503SE","P","P","P","P","P"]
[null,"ACCT503"]
[]
[]
[null,"ACCT503NPCSE","P","P","P","P","P"]
[null,"ACCT503NPCCAEW","P","P","P","P","P"]
[null,"ACCT503NPCCAEE","P","P","P","P","P"]
[]
[]
[]
[]
[null,"ACCT505SG","P","P","P","P","P"]
[null,"ACCT505JBG","P","P","P","P","P"]
[null,"ACCT505"]
[]
[]
[null,"ACCT506SG","P","P","P","P","P"]
[null,"ACCT506SE","P","P","P","P","P"]
[null,"ACCT506JBG","P","P","P","P","P"]
[null,"ACCT506"]
[]
[]
[]
[null,"RANGE","FUNC","FUNC","FUNC","FUNC","FUNC",null,"DIS","DIS","DIS","DIS","DIS"]
[null,"NAME","FACTOR","FACTOR","FACTOR","FACTOR","FACTOR",null,"SPLIT","SPLIT","SPLIT","SPLIT","SPLIT"]
[]
[null,"ACCT507SG","P","P","P","P","P"]
[null,"ACCT507JBG","P","P","P","P","P"]
[null,"ACCT507"]
[]
[]
[null,"ACCT510SG","P","P","P","P","P"]
[null,"ACCT510JBG","P","P","P","P","P"]
[null,"ACCT510"]
[]
[]
[null,"ACCT511SG","P","P","P","P","P"]
[null,"ACCT511JBG","P","P","P","P","P"]
[null,"ACCT511"]
[]
[]
[null,"ACCT512SG","P","P","P","P","P"]
[null,"ACCT512JBG","P","P","P","P","P"]
[null,"ACCT512"]
[]
[]
[null,"ACCT513SG","P","P","P","P","P"]
[null,"ACCT513JBG","P","P","P","P","P"]
[null,"ACCT513"]
[]
[]
[null,"ACCT514SG","P","P","P","P","P"]
[null,"ACCT514JBG","P","P","P","P","P"]
[null,"ACCT514"]
[]
[]
[]
[]
[null,"RANGE","FUNC","FUNC","FUNC","FUNC","FUNC",null,"DIS","DIS","DIS","DIS","DIS"]
[null,"NAME","FACTOR","FACTOR","FACTOR","FACTOR","FACTOR",null,"SPLIT","SPLIT","SPLIT","SPLIT","SPLIT"]
[]
[null,"ACCT517SNPPN","P","P","P","P","P"]
[null,"ACCT517"]
[]
[]
[null,"ACCT518SE","P","P","P","P","P"]
[null,"ACCT518"]
[]
[]
[]
[null,"ACCT519SNPPN","P","P","P","P","P"]
[null,"ACCT519"]
[]
[]
[null,"ACCT520SNPPN","P","P","P","P","P"]
[null,"ACCT520"]
[]
[]
[null,"ACCT523SNPPN","P","P","P","P","P"]
[null,"ACCT523"]
[]
[]
[null,"ACCT524SNPPN","P","P","P","P","P"]
[null,"ACCT524"]
[]
[]
[null,"ACCT528SNPPN","P","P","P","P","P"]
[null,"ACCT528"]
[]
[]
[null,"ACCT529SNPPN","P","P","P","P","P"]
[null,"ACCT529"]
[]
[]
[null,"ACCT530SNPPN","P","P","P","P","P"]
[null,"ACCT530"]
[]
[]
[null,"ACCT531SNPPN","P","P","P","P","P"]
[null,"ACCT531"]
[]
[]
[null,"ACCT532SNPPN","P","P","P","P","P"]
[null,"ACCT532"]
[]
[]
[]
[]
[]
[]
[null,"RANGE","FUNC","FUNC","FUNC","FUNC","FUNC",null,"DIS","DIS","DIS","DIS","DIS"]
[null,"NAME","FACTOR","FACTOR","FACTOR","FACTOR","FACTOR",null,"SPLIT","SPLIT","SPLIT","SPLIT","SPLIT"]
[]
[]
[null,"ACCT535CAGE","P","P","P","P","P"]
[null,"ACCT535"]
[]
[]
[null,"ACCT536CAGE","P","P","P","P","P"]
[null,"ACCT536"]
[]
[]
[null,"ACCT537CAGE","P","P","P","P","P"]
[null,"ACCT537"]
[]
[]
[null,"ACCT538CAGE","P","P","P","P","P"]
[null,"ACCT538"]
[]
[]
[null,"ACCT539CAGE","P","P","P","P","P"]
[null,"ACCT539CAEW","P","P","P","P","P"]
[null,"ACCT539"]
[]
[]
[null,"ACCT540CAGE","P","P","P","P","P"]
[null,"ACCT540"]
[]
[]
[null,"ACCT541CAGE","P","P","P","P","P"]
[null,"ACCT541"]
[]
[]
[null,"ACCT542CAGE","P","P","P","P","P"]
[null,"ACCT542"]
[]
[]
[null,"ACCT543CAGE","P","P","P","P","P"]
[null,"ACCT543"]
[]
[]
[null,"ACCT544CAGE","P","P","P","P","P"]
[null,"ACCT544"]
[]
[]
[null,"ACCT545CAGE","P","P","P","P","P"]
[null,"ACCT545"]
[]
[]
[]
[]
[]
[]
[]
[null,"RANGE","FUNC","FUNC","FUNC","FUNC","FUNC",null,"DIS","DIS","DIS","DIS","DIS"]
[null,"NAME","FACTOR","FACTOR","FACTOR","FACTOR","FACTOR",null,"SPLIT","SPLIT","SPLIT","SPLIT","SPLIT"]
[]
[]
[null,"ACCT546SG","P","P","P","P","P"]
[null,"ACCT546CAGE","P","P","P","P","P"]
[null,"ACCT546"]
[null," "]
[]
[null,"ACCT547SE","P","P","P","P","P"]
[null,"ACCT547CAEW","P","P","P","P","P"]
[null,"ACCT547"]
[]
[null,"ACCT547NPCCAEW","P","P","P","P","P"]
[null,"ACCT547NPC"]
[]
[]
[]
[null,"ACCT548SG","P","P","P","P","P"]
[null,"ACCT548CAEW","P","P","P","P","P"]
[null,"ACCT548CAGW","P","P","P","P","P"]
[null,"ACCT548"]
[]
[]
[null,"ACCT549SG","P","P","P","P","P"]
[null,"ACCT549CAGW","P","P","P","P","P"]
[null,"ACCT549"]
[]
[]
[]
[]
[null,"RANGE","FUNC","FUNC","FUNC","FUNC","FUNC",null,"DIS","DIS","DIS","DIS","DIS"]
[null,"NAME","FACTOR","FACTOR","FACTOR","FACTOR","FACTOR",null,"SPLIT","SPLIT","SPLIT","SPLIT","SPLIT"]
[]
[null,"ACCT550/551CAGW","P","P","P","P","P"]
[null,"ACCT550/551SG","P","P","P","P","P"]
[null,"ACCT551"]
[]
[]
[null,"ACCT552SG","P","P","P","P","P"]
[null,"ACCT552CAGW","P","P","P","P","P"]
[null,"ACCT552"]
[]
[]
[]
[null,"ACCT553SG","P","P","P","P","P"]
[null,"ACCT553CAGW","P","P","P","P","P"]
[null,"ACCT553"]
[]
[]
[null,"ACCT554SG","P","P","P","P","P"]
[null,"ACCT554CAGW","P","P","P","P","P"]
[null,"ACCT554"]
[]
[]
[]
[]
[]
[]
[null,null,null,null,null,null,null,null,"DIS","DIS","DIS","DIS","DIS"]
[null,"RANGE","FUNC","FUNC","FUNC","FUNC","FUNC",null,"SPLIT","SPLIT","SPLIT","SPLIT","SPLIT"]
[null,"NAME","FACTOR","FACTOR","FACTOR","FACTOR","FACTOR"]
[]
[null,"ACCT555S","P","P","P","P","P"]
[null,"ACCT555SG","P","P","P","P","P"]
[null,"ACCT555SE","P","P","P","P","P"]
[]
[]
[null,"ACCT555NPCCAGW","P","P","P","P","P"]
[null,"ACCT555NPCCAEW","P","P","P","P","P"]
[null,"ACCT555NPCDGP","P","P","P","P","P"]
[null,"ACCT555NPC"]
[]
[]
[null,"ACCT556SG","P","P","P","P","P"]
[]
[null,"ACCT556"]
[]
[]
[null,"ACCT557S","P","P","P","P","P"]
[null,"ACCT557SG","P","P","P","P","P"]
[null,"ACCT557JBG","P","P","P","P","P"]
[null,"ACCT557SE","P","P","P","P","P"]
[null,"ACCT557CAGW","P","P","P","P","P"]
[null,"ACCT557TROJP","P","P","P","P","P"]
[null,"ACCT557"]
[]
[null,"ECDDGP","P","P","P","P","P"]
[null,"ECDSG","P","P","P","P","P"]
[null,"ECDMC","P","P","P","P","P"]
[null,"ECDSG","P","P","P","P","P"]
[null,"ECDS","P","P","P","P","P"]
[null,"ECDSG","P","P","P","P","P"]
[]
[]
[]
[]
[]
[]
[]
[]
[]
[null,null,null,null,null,null,null,null,"DIS","DIS","DIS","DIS","DIS"]
[null,"RANGE","FUNC","FUNC","FUNC","FUNC","FUNC",null,"SPLIT","SPLIT","SPLIT","SPLIT","SPLIT"]
[null,"NAME","FACTOR","FACTOR","FACTOR","FACTOR","FACTOR"]
[]
[]
[]
[]
[null,null,null,null,null,null,null,null,"DIS","DIS","DIS","DIS","DIS"]
[null,"RANGE","FUNC","FUNC","FUNC","FUNC","FUNC",null,"SPLIT","SPLIT","SPLIT","SPLIT","SPLIT"]
[null,"NAME","FACTOR","FACTOR","FACTOR","FACTOR","FACTOR"]
[]
[null,"ACCT560SG","T","T","T","T","T"]
[null,"ACCT560JBG",null,null,"T"]
[null,"ACCT560"]
[null," "]
[]
[null,"ACCT561SG","T","T","T","T","T"]
[null,"ACCT561CAGW","T","T","T","T","T"]
[null,"ACCT561"]
[]
[]
[null,"ACCT562SG","T","T","T","T","T"]
[null,"ACCT562JBG",null,null,"T"]
[null,"ACCT562CAGW","T","T","T","T","T"]
[null,"ACCT562"]
[]
[]
[null,"ACCT563SG","T","T","T","T","T"]
[null,"ACCT563CAGW","T","T","T","T","T"]
[null,"ACCT563"]
[]
[]
[null,"ACCT564SG","T","T","T","T","T"]
[null,"ACCT564"]
[]
[]
[null,"ACCT565SG","T","T","T","T","T"]
[null,"ACCT565"]
[]
[]
[null,"ACCT565NPCCAGE","T","T","T","T","T"]
[null,"ACCT565NPCSE","T","T","T","T","T"]
[null,"ACCTNPC565"]
[]
[]
[null,"ACCT566SG","T","T","T","T","T"]
[null,"ACCT566"]
[]
[]
[null,"ACCT567SG","T","T","T","T","T"]
[null,"ACCT567"]
[]
[]
[null,"ACCT568SG","T","T","T","T","T"]
[null,"ACCT568"]
[]
[]
[null,"ACCT569SG","T","T","T","T","T"]
[null,"ACCT569"]
[]
[]
[null,"ACCT570JBG","T","T","T","T","T"]
[null,"ACCT570SG","T","T","T","T","T"]
[null,"ACCT570"]
[]
[]
[null,"ACCT571SG","T","T","T","T","T"]
[null,"ACCT571JBG",null,null,"T"]
[null,"ACCT571"]
[]
[]
[null,"ACCT572CAGW","T","T","T","T","T"]
[null,"ACCT572"]
[]
[]
[null,"ACCT573SG","T","T","T","T","T"]
[null,"ACCT573"]
[]
[]
[]
[]
[]
[]
[]
[null,"RANGE","FUNC","FUNC","FUNC","FUNC","FUNC",null,"DIS","DIS","DIS","DIS","DIS"]
[null,"NAME","FACTOR","FACTOR","FACTOR","FACTOR","FACTOR",null,"SPLIT","SPLIT","SPLIT","SPLIT","SPLIT"]
[]
[null,"ACCT580S","DPW","DPW","DPW","DPW","DPW",null,"PLNT","PLNT","PLNT","PLNT","PLNT"]
[null,"ACCT580SNPD","DPW","DPW","DPW","DPW","DPW",null,"PLNT","PLNT","PLNT","PLNT","PLNT"]
[null,"ACCT580"]
[]
[]
[null,"ACCT581S","DPW","DPW","DPW","DPW","DPW",null,"SUBS","SUBS","SUBS","SUBS","SUBS"]
[null,"ACCT581SNPD","DPW","DPW","DPW","DPW","DPW",null,"SUBS","SUBS","SUBS","SUBS","SUBS"]
[null,"ACCT581"]
[]
[]
[null,"ACCT582S","DPW","DPW","DPW","DPW","DPW",null,"SUBS","SUBS","SUBS","SUBS","SUBS"]
[null,"ACCT582SNPD","DPW","DPW","DPW","DPW","DPW",null,"SUBS","SUBS","SUBS","SUBS","SUBS"]
[null,"ACCT582"]
[]
[]
[null,"ACCT583S","DPW","DPW","DPW","DPW","DPW",null,"PC","PC","PC","PC","PC"]
[null,"ACCT583SNPD","DPW","DPW","DPW","DPW","DPW",null,"PC","PC","PC","PC","PC"]
[null,"ACCT583"]
[]
[]
[null,"ACCT584S","DPW","DPW","DPW","DPW","DPW",null,"PC","PC","PC","PC","PC"]
[null,"ACCT584SNPD","DPW","DPW","DPW","DPW","DPW",null,"PC","PC","PC","PC","PC"]
[null,"ACCT584"]
[]
[]
[null,"ACCT585S","DPW","DPW","DPW","DPW","DPW",null,"PC","PC","PC","PC","PC"]
[null,"ACCT585SNPD","DPW","DPW","DPW","DPW","DPW",null,"METR","METR","METR","METR","METR"]
[null,"ACCT585"]
[]
[]
[null,"ACCT586S","DPW","DPW","DPW","DPW","DPW",null,"METR","METR","METR","METR","METR"]
[null,"ACCT586SNPD","DPW","DPW","DPW","DPW","DPW",null,"METR","METR","METR","METR","METR"]
[null,"ACCT586"]
[]
[]
[null,"ACCT587S","DPW","DPW","DPW","DPW","DPW",null,"PC","PC","PC","PC","PC"]
[null,"ACCT587SNPD","DPW","DPW","DPW","DPW","DPW",null,"PC","PC","PC","PC","PC"]
[null,"ACCT587"]
[]
[]
[null,"ACCT588S","DPW","DPW","DPW","DPW","DPW",null,"PLNT2","PLNT2","PLNT2","PLNT2","PLNT2"]
[null,"ACCT588SNPD","DPW","DPW","DPW","DPW","DPW",null,"PLNT2","PLNT2","PLNT2","PLNT2","PLNT2"]
[null,"ACCT588"]
[]
[]
[null,"ACCT589S","DPW","DPW","DPW","DPW","DPW",null,"PLNT2","PLNT2","PLNT2","PLNT2","PLNT2"]
[null,"ACCT589SNPD","DPW","DPW","DPW","DPW","DPW",null,"PLNT2","PLNT2","PLNT2","PLNT2","PLNT2"]
[null,"ACCT589"]
[]
[]
[null,"ACCT590S","DPW","DPW","DPW","DPW","DPW",null,"PLNT","PLNT","PLNT","PLNT","PLNT"]
[null,"ACCT590SNPD","DPW","DPW","DPW","DPW","DPW",null,"PLNT","PLNT","PLNT","PLNT","PLNT"]
[null,"ACCT590"]
[]
[]
[null,"ACCT591S","DPW","DPW","DPW","DPW","DPW",null,"PLNT2","PLNT2","PLNT2","PLNT2","PLNT2"]
[null,"ACCT591SNPD","DPW","DPW","DPW","DPW","DPW",null,"PLNT2","PLNT2","PLNT2","PLNT2","PLNT2"]
[null,"ACCT591"]
[]
[]
[null,"ACCT592S","DPW","DPW","DPW","DPW","DPW",null,"SUBS","SUBS","SUBS","SUBS","SUBS"]
[null,"ACCT592SNPD","DPW","DPW","DPW","DPW","DPW",null,"SUBS","SUBS","SUBS","SUBS","SUBS"]
[null,"ACCT592"]
[]
[]
[null,"ACCT593S","DPW","DPW","DPW","DPW","DPW",null,"PC","PC","PC","PC","PC"]
[null,"ACCT593SNPD","DPW","DPW","DPW","DPW","DPW",null,"PC","PC","PC","PC","PC"]
[null,"ACCT593"]
[]
[]
[null,"ACCT594S","DPW","DPW","DPW","DPW","DPW",null,"PC","PC","PC","PC","PC"]
[null,"ACCT594SNPD","DPW","DPW","DPW","DPW","DPW",null,"PC","PC","PC","PC","PC"]
[null,"ACCT594"]
[]
[]
[null,"ACCT595S","DPW","DPW","DPW","DPW","DPW",null,"XFMR","XFMR","XFMR","XFMR","XFMR"]
[null,"ACCT595SNPD","DPW","DPW","DPW","DPW","DPW",null,"XFMR","XFMR","XFMR","XFMR","XFMR"]
[null,"ACCT595"]
[]
[]
[]
[]
[null,"RANGE","FUNC","FUNC","FUNC","FUNC","FUNC",null,"DIS","DIS","DIS","DIS","DIS"]
[null,"NAME","FACTOR","FACTOR","FACTOR","FACTOR","FACTOR",null,"SPLIT","SPLIT","SPLIT","SPLIT","SPLIT"]
[]
[null,"ACCT596S","DPW","DPW","DPW","DPW","DPW",null,"PC","PC","PC","PC","PC"]
[null,"ACCT596SNPD","DPW","DPW","DPW","DPW","DPW",null,"PC","PC","PC","PC","PC"]
[null,"ACCT596"]
[]
[]
[null,"ACCT597S","DPW","DPW","DPW","DPW","DPW",null,"METR","METR","METR","METR","METR"]
[null,"ACCT597SNPD","DPW","DPW","DPW","DPW","DPW",null,"METR","METR","METR","METR","METR"]
[null,"ACCT597"]
[]
[]
[null,"ACCT598S","DPW","DPW","DPW","DPW","DPW",null,"PLNT2","PLNT2","PLNT2","PLNT2","PLNT2"]
[null,"ACCT598SNPD","DPW","DPW","DPW","DPW","DPW",null,"PLNT2","PLNT2","PLNT2","PLNT2","PLNT2"]
[null,"ACCT598"]
[]
[]
[]
[]
[]
[null,"RANGE","FUNC","FUNC","FUNC","FUNC","FUNC",null,"DIS","DIS","DIS","DIS","DIS"]
[null,"NAME","FACTOR","FACTOR","FACTOR","FACTOR","FACTOR",null,"SPLIT","SPLIT","SPLIT","SPLIT","SPLIT"]
[]
[]
[null,"ACCT901S","CUST","CUST","CUST","CUST","CUST",null,"CUST","CUST","CUST","CUST","CUST"]
[null,"ACCT901CN","CUST","CUST","CUST","CUST","CUST",null,"CUST","CUST","CUST","CUST","CUST"]
[null,"ACCT901"]
[]
[]
[null,"ACCT902S","CUST","CUST","CUST","CUST","CUST",null,"CUST","CUST","CUST","CUST","CUST"]
[null,"ACCT902CN","CUST","CUST","CUST","CUST","CUST",null,"CUST","CUST","CUST","CUST","CUST"]
[null,"ACCT902"]
[]
[]
[null,"ACCT903S","CUST","CUST","CUST","CUST","CUST",null,"CUST","CUST","CUST","CUST","CUST"]
[null,"ACCT903CN","CUST","CUST","CUST","CUST","CUST",null,"CUST","CUST","CUST","CUST","CUST"]
[null,"ACCT903"]
[]
[]
[null,"ACCT904S","CUST","CUST","CUST","CUST","CUST",null,"CUST","CUST","CUST","CUST","CUST"]
[null,"ACCT904SG","P","P","P","P","P"]
[null,"ACCT904CN","CUST","CUST","CUST","CUST","CUST",null,"CUST","CUST","CUST","CUST","CUST"]
[null,"ACCT904"]
[]
[]
[null,"ACCT905S","CUST","CUST","CUST","CUST","CUST",null,"CUST","CUST","CUST","CUST","CUST"]
[null,"ACCT905CN","CUST","CUST","CUST","CUST","CUST",null,"CUST","CUST","CUST","CUST","CUST"]
[null,"ACCT905"]
[]
[]
[]
[]
[]
[]
[]
[null,"RANGE","FUNC","FUNC","FUNC","FUNC","FUNC",null,"DIS","DIS","DIS","DIS","DIS"]
[null,"NAME","FACTOR","FACTOR","FACTOR","FACTOR","FACTOR",null,"SPLIT","SPLIT","SPLIT","SPLIT","SPLIT"]
[]
[]
[null,"ACCT907S","CUST","CUST","CUST","CUST","CUST",null,"CUST","CUST","CUST","CUST","CUST"]
[null,"ACCT907CN","CUST","CUST","CUST","CUST","CUST",null,"CUST","CUST","CUST","CUST","CUST"]
[null,"ACCT907"]
[]
[]
[null,"ACCT908S","CUST","CUST","CUST","CUST","CUST",null,"CUST","CUST","CUST","CUST","CUST"]
[null,"ACCT908CN","CUST","CUST","CUST","CUST","CUST",null,"CUST","CUST","CUST","CUST","CUST"]
[null,"ACCT908"]
[]
[]
[null,"ACCT909S","CUST","CUST","CUST","CUST","CUST",null,"CUST","CUST","CUST","CUST","CUST"]
[null,"ACCT909CN","CUST","CUST","CUST","CUST","CUST",null,"CUST","CUST","CUST","CUST","CUST"]
[null,"ACCT909"]
[]
[]
[null,"ACCT910S","CUST","CUST","CUST","CUST","CUST",null,"CUST","CUST","CUST","CUST","CUST"]
[null,"ACCT910CN","CUST","CUST","CUST","CUST","CUST",null,"CUST","CUST","CUST","CUST","CUST"]
[null,"ACCT910"]
[]
[]
[]
[]
[null,"RANGE","FUNC","FUNC","FUNC","FUNC","FUNC",null,"DIS","DIS","DIS","DIS","DIS"]
[null,"NAME","FACTOR","FACTOR","FACTOR","FACTOR","FACTOR",null,"SPLIT","SPLIT","SPLIT","SPLIT","SPLIT"]
[]
[]
[null,"ACCT911S","CUST","CUST","CUST","CUST","CUST",null,"CUST","CUST","CUST","CUST","CUST"]
[null,"ACCT911CS","CUST","CUST","CUST","CUST","CUST",null,"CUST","CUST","CUST","CUST","CUST"]
[null,"ACCT911"]
[]
[]
[null,"ACCT912S","CUST","CUST","CUST","CUST","CUST",null,"CUST","CUST","CUST","CUST","CUST"]
[null,"ACCT912CN","CUST","CUST","CUST","CUST","CUST",null,"CUST","CUST","CUST","CUST","CUST"]
[null,"ACCT912"]
[]
[]
[null,"ACCT913S","CUST","CUST","CUST","CUST","CUST",null,"CUST","CUST","CUST","CUST","CUST"]
[null,"ACCT913CN","CUST","CUST","CUST","CUST","CUST",null,"CUST","CUST","CUST","CUST","CUST"]
[null,"ACCT913"]
[]
[]
[null,"ACCT916S","CUST","CUST","CUST","CUST","CUST",null,"CUST","CUST","CUST","CUST","CUST"]
[null,"ACCT916CS","CUST","CUST","CUST","CUST","CUST",null,"CUST","CUST","CUST","CUST","CUST"]
[null,"ACCT916"]
[]
[]
[]
[null,"RANGE","FUNC","FUNC","FUNC","FUNC","FUNC",null,"DIS","DIS","DIS","DIS","DIS"]
[null,"NAME","FACTOR","FACTOR","FACTOR","FACTOR","FACTOR",null,"SPLIT","SPLIT","SPLIT","SPLIT","SPLIT"]
[]
[]
[null,"ACCT920S","PTD","PTD","PTD","PTD","PTD",null,"PLNT","PLNT","PLNT","PLNT","PLNT"]
[null,"ACCT920CN","CUST","CUST","CUST","CUST","CUST",null,"CUST","CUST","CUST","CUST","CUST"]
[null,"ACCT920SO","PTD","PTD","PTD","PTD","PTD",null,"PLNT","PLNT","PLNT","PLNT","PLNT"]
[null,"ACCT920"]
[]
[]
[null,"ACCT921S","PTD","PTD","PTD","PTD","PTD",null,"PLNT","PLNT","PLNT","PLNT","PLNT"]
[null,"ACCT921CN","CUST","CUST","CUST","CUST","CUST",null,"CUST","CUST","CUST","CUST","CUST"]
[null,"ACCT921SO","PTD","PTD","PTD","PTD","PTD",null,"PLNT","PLNT","PLNT","PLNT","PLNT"]
[null,"ACCT921"]
[]
[]
[null,"ACCT923S","PTD","PTD","PTD","PTD","PTD",null,"PLNT","PLNT","PLNT","PLNT","PLNT"]
[null,"ACCT923CAGW","P","P","P","P","P",null,"CUST","CUST","CUST","CUST","CUST"]
[null,"ACCT923SO","PTD","PTD","PTD","PTD","PTD",null,"PLNT","PLNT","PLNT","PLNT","PLNT"]
[null,"ACCT923"]
[]
[]
[null,"ACCT924SO","PTD","PTD","PTD","PTD","PTD",null,"PLNT","PLNT","PLNT","PLNT","PLNT"]
[null,"ACCT924"]
[]
[]
[null,"ACCT925SO","PTD","PTD","PTD","PTD","PTD",null,"PLNT","PLNT","PLNT","PLNT","PLNT"]
[null,"ACCT925"]
[]
[]
[null,"ACCT926S","LABOR","LABOR","LABOR","LABOR","LABOR",null,"DISom","DISom","DISom","DISom","DISom"]
[null,"ACCT926CN","CUST","CUST","CUST","CUST","CUST",null,"CUST","CUST","CUST","CUST","CUST"]
[null,"ACCT926SO","LABOR","LABOR","LABOR","LABOR","LABOR",null,"DISom","DISom","DISom","DISom","DISom"]
[null,"ACCT926"]
[]
[]
[null,"ACCT927S","DMSC","DMSC","DMSC","DMSC","DMSC",null,"MISC","MISC","MISC","MISC","MISC"]
[null,"ACCT927SO","DMSC","DMSC","DMSC","DMSC","DMSC",null,"MISC","MISC","MISC","MISC","MISC"]
[null,"ACCT927"]
[]
[]
[null,"ACCT928S","DMSC","DMSC","DMSC","DMSC","DMSC",null,"MISC","MISC","MISC","MISC","MISC"]
[null,"ACCT928CN","CUST","CUST","CUST","DMSC","DMSC",null,"MISC","MISC","MISC","MISC","MISC"]
[null,"ACCT928SO","DMSC","DMSC","DMSC","DMSC","DMSC",null,"MISC","MISC","MISC","MISC","MISC"]
[null,"ACCT928SG","FERC","FERC","FERC","FERC","FERC",null,"MISC","MISC","MISC","MISC","MISC"]
[null,"ACCT928"]
[]
[]
[null,"ACCT929S","LABOR","LABOR","LABOR","LABOR","LABOR",null,"DISom","DISom","DISom","DISom","DISom"]
[null,"ACCT929SO","LABOR","LABOR","LABOR","LABOR","LABOR",null,"DISom","DISom","DISom","DISom","DISom"]
[null,"ACCT929"]
[]
[]
[null,"ACCT930S","PTD","PTD","PTD","PTD","PTD",null,"PLNT","PLNT","PLNT","PLNT","PLNT"]
[null,"ACCT930CN","CUST","CUST","CUST","CUST","CUST",null,"CUST","CUST","CUST","CUST","CUST"]
[null,"ACCT930SO","LABOR","LABOR","LABOR","LABOR","LABOR",null,"DISom","DISom","DISom","DISom","DISom"]
[null,"ACCT930"]
[]
[]
[null,"ACCT931S","PTD","PTD","PTD","PTD","PTD",null,"PLNT","PLNT","PLNT","PLNT","PLNT"]
[null,"ACCT931SO","PTD","PTD","PTD","PTD","PTD",null,"PLNT","PLNT","PLNT","PLNT","PLNT"]
[null,"ACCT931"]
[]
[]
[null,"ACCT935S","G","G","G","G","G",null,"GENL","GENL","GENL","GENL","GENL"]
[null,"ACCT935CN","CUST","CUST","CUST","CUST","CUST",null,"CUST","CUST","CUST","CUST","CUST"]
[null,"ACCT935SO","G","G","G","G","G",null,"GENL","GENL","GENL","GENL","GENL"]
[null,"ACCT935"]
[]
[]
[]
[]
[]
[]
[]
[null,"RANGE","FUNC","FUNC","FUNC","FUNC","FUNC",null,"DIS","DIS","DIS","DIS","DIS"]
[null,"NAME","FACTOR","FACTOR","FACTOR","FACTOR","FACTOR",null,"SPLIT","SPLIT","SPLIT","SPLIT","SPLIT"]
[]
[null,"ACCT403SPDGP","P","P","P","P","P"]
[null,"ACCT403SPDGU","P","P","P","P","P"]
[null,"ACCT403SPJBG","P","P","P","P","P"]
[null,"ACCT403SPCAGE","P","P","P","P","P"]
[null,"ACCT403SPCAGW","P","P","P","P","P"]
[null,"ACCT403SP"]
[]
[]
[null,"ACCT403NPSG","P","P","P","P","P"]
[null,"ACCT403NP"]
[]
[]
[null,"ACCT403HPSGP","P","P","P","P","P"]
[null,"ACCT403HPSGU","P","P","P","P","P"]
[null,"ACCT403HPCAGW","P","P","P","P","P"]
[null,"ACCT403HPSG","P","P","P","P","P"]
[null,"ACCT403HP"]
[]
[]
[null,"ACCT403OPSGU","P","P","P","P","P"]
[null,"ACCT403OPSG","P","P","P","P","P"]
[null,"ACCT403OPCAEW","P","P","P","P","P"]
[null,"ACCT403OPCAGW","P","P","P","P","P"]
[null,"ACCT403OPCAGE","P","P","P","P","P"]
[null,"ACCT403OP"]
[]
[]
[null,"ACCT403TPSGP","T","T","T","T","T"]
[null,"ACCT403TPSGU","T","T","T","T","T"]
[null,"ACCT403JBG","T","T","T","T","T"]
[null,"ACCT403TPSG","T","T","T","T","T"]
[null,"ACCT403TP"]
[]
[]
[null,"ACCT403360","DPW","DPW","DPW","DPW","DPW",null,"PLNT2","PLNT2","PLNT2","PLNT2","PLNT2"]
[null,"ACCT403361","DPW","DPW","DPW","DPW","DPW",null,"PLNT2","PLNT2","PLNT2","PLNT2","PLNT2"]
[null,"ACCT403362","DPW","DPW","DPW","DPW","DPW",null,"SUBS","SUBS","SUBS","SUBS","SUBS"]
[null,"ACCT403363","DPW","DPW","DPW","DPW","DPW",null,"PLNT2","PLNT2","PLNT2","PLNT2","PLNT2"]
[null,"ACCT403364","DPW","DPW","DPW","DPW","DPW",null,"PC","PC","PC","PC","PC"]
[null,"ACCT403365","DPW","DPW","DPW","DPW","DPW",null,"PC","PC","PC","PC","PC"]
[null,"ACCT403366","DPW","DPW","DPW","DPW","DPW",null,"PC","PC","PC","PC","PC"]
[null,"ACCT403367","DPW","DPW","DPW","DPW","DPW",null,"PC","PC","PC","PC","PC"]
[null,"ACCT403368","DPW","DPW","DPW","DPW","DPW",null,"XFMR","XFMR","XFMR","XFMR","XFMR"]
[null,"ACCT403369","DPW","DPW","DPW","DPW","DPW",null,"SERV","SERV","SERV","SERV","SERV"]
[null,"ACCT403370","DPW","DPW","DPW","DPW","DPW",null,"METR","METR","METR","METR","METR"]
[null,"ACCT403371","DPW","DPW","DPW","DPW","DPW",null,"PC","PC","PC","PC","PC"]
[null,"ACCT403372","DPW","DPW","DPW","DPW","DPW",null,"PLNT2","PLNT2","PLNT2","PLNT2","PLNT2"]
[null,"ACCT403373","DPW","DPW","DPW","DPW","DPW",null,"PC","PC","PC","PC","PC"]
[null,"ACCT403DP"]
[]
[]
[null,"ACCT403GPS","G-SITUS","G-SITUS","G-SITUS","TD","TD",null,"PLNT","PLNT","PLNT","PLNT","PLNT"]
[null,"ACCT403GPSGP","G-DGP","G-DGP","G-DGP","G-DGP","G-DGP",null,"PLNT","PLNT","PLNT","PLNT","PLNT"]
[null,"ACCT403GPSGU","G-DGU","G-DGU","G-DGU","G-DGU","G-DGU",null,"PLNT","PLNT","PLNT","PLNT","PLNT"]
[null,"ACCT403GPSE","P","P","P","P","P",null,"PLNT","PLNT","PLNT","PLNT","PLNT"]
[null,"ACCT403GPCN","CUST","CUST","CUST","CUST","CUST",null,"CUST","CUST","CUST","CUST","CUST"]
[null,"ACCT403GPSG","G-SG","G-SG","G-SG","G-SG","G-SG",null,"PLNT","PLNT","PLNT","PLNT","PLNT"]
[null,"ACCT403GPSO","PTD","PTD","PTD","PTD","PTD",null,"PLNT","PLNT","PLNT","PLNT","PLNT"]
[null,"ACCT403CAEW","G-SG","G-SG","P","P","P",null,"PLNT","PLNT","PLNT","PLNT","PLNT"]
[null,"ACCT403GPJBG","G-SG","G-SG","G-SG","P","P",null,"PLNT","PLNT","PLNT","PLNT","PLNT"]
[null,"ACCT403GPJBE","G-SG","G-SG","P","P","P",null,"PLNT","PLNT","PLNT","PLNT","PLNT"]
[null,"ACCT403GP"]
[]
[]
[null,"ACCT403GV0SG","G-SG","G-SG","G-SG","G-SG","G-SG"]
[null,"ACCT403GV0"]
[]
[]
[null,"ACCT403MPSE","P","P","P","P","P"]
[null,"ACCT403MP"]
[]
[]
[null,"ACCT403EPSGP","P","P","P","P","P"]
[null,"ACCT403EPSG","P","P","P","P","P"]
[null,"ACCT403EP"]
[]
[]
[]
[]
[null,"RANGE","FUNC","FUNC","FUNC","FUNC","FUNC",null,"DIS","DIS","DIS","DIS","DIS"]
[null,"NAME","FACTOR","FACTOR","FACTOR","FACTOR","FACTOR",null,"SPLIT","SPLIT","SPLIT","SPLIT","SPLIT"]
[]
[]
[null,"ACCT404GPS","I-SITUS","I-SITUS","I-SITUS","TD","TD",null,"PLNT","PLNT","PLNT","PLNT","PLNT"]
[null,"ACCT404GPSG","I-SG","I-SG","I-SG","I-SG","I-SG",null,"PLNT","PLNT","PLNT","PLNT","PLNT"]
[null,"ACCT404GPSO","PTD","PTD","PTD","PTD","PTD",null,"PLNT","PLNT","PLNT","PLNT","PLNT"]
[null,"ACCT404GPSG","I-DGU","I-DGU","I-DGU","I-DGU","I-DGU",null,"PLNT","PLNT","PLNT","PLNT","PLNT"]
[null,"ACCT404GPCN","CUST","CUST","CUST","CUST","CUST",null,"CUST","CUST","CUST","CUST","CUST"]
[null,"ACCT404GPDGP","I-DGP","I-DGP","I-DGP","I-DGP","I-DGP",null,"PLNT","PLNT","PLNT","PLNT","PLNT"]
[null,"ACCT404GPSG","I-DGP","I-DGP","I-DGP","I-DGP","I-DGP",null,"PLNT","PLNT","PLNT","PLNT","PLNT"]
[null,"ACCT404GP"]
[]
[]
[null,"ACCT404SPSG","P","P","P","P","P",null,"DRB","DRB","DRB","DRB","DRB"]
[null,"ACCT404SPSG","P","P","P","P","P",null,"DRB","DRB","DRB","DRB","DRB"]
[null,"ACCT404SPS"]
[]
[]
[null,"ACCT404IPS","I-SITUS","I-SITUS","I-SITUS","TD","TD",null,"PLNT","PLNT","PLNT","PLNT","PLNT"]
[null,"ACCT404IPSE","P","P","P","P","P",null,"PLNT","PLNT","PLNT","PLNT","PLNT"]
[null,"ACCT404IPSG","I-SG","I-SG","I-SG","I-SG","I-SG",null,"PLNT","PLNT","PLNT","PLNT","PLNT"]
[null,"ACCT404IPSO","PTD","PTD","PTD","PTD","PTD",null,"PLNT","PLNT","PLNT","PLNT","PLNT"]
[null,"ACCT404IPCN","CUST","CUST","CUST","CUST","CUST",null,"CUST","CUST","CUST","CUST","CUST"]
[null,"ACCT404IPSG","I-DGP","I-DGP","I-DGP","I-DGP","I-DGP",null,"PLNT","PLNT","PLNT","PLNT","PLNT"]
[null,"ACCT404IPSG","I-DGU","I-DGU","I-DGU","I-DGU","I-DGU",null,"PLNT","PLNT","PLNT","PLNT","PLNT"]
[null,"ACCT404IPCAEW","I-DGP","I-DGP","P","P","P",null,"PLNT","PLNT","PLNT","PLNT","PLNT"]
[null,"ACCT404IPCAGW","I-SG","I-SG","P","P","P",null,"PLNT","PLNT","PLNT","PLNT","PLNT"]
[null,"ACCT404IPJBG","I-SG","I-SG","I-SG","P","P",null,"PLNT","PLNT","PLNT","PLNT","PLNT"]
[null,"ACCT404IP"]
[]
[]
[null,"ACCT404MPSE","P","P","P","P","P",null,"PLNT","PLNT","PLNT","PLNT","PLNT"]
[null,"ACCT404M"]
[]
[]
[null,"ACCT404OPCAGE","P","P","P","P","P",null,"PLNT","PLNT","PLNT","PLNT","PLNT"]
[null,"ACCT404OP"]
[]
[null,"ACCT404HPDGP","P","P","P","P","P",null,"PLNT","PLNT","PLNT","PLNT","PLNT"]
[null,"ACCT404HPDGU","P","P","P","P","P",null,"PLNT","PLNT","PLNT","PLNT","PLNT"]
[null,"ACCT404HPCAGW","P","P","P","P","P",null,"PLNT","PLNT","PLNT","PLNT","PLNT"]
[null,"ACCT404HP"]
[]
[]
[]
[]
[]
[null,"ACCT405S","GP","GP","GP","GP","GP",null,"PLNT","PLNT","PLNT","PLNT","PLNT"]
[]
[null,"ACCT405"]
[]
[]
[null,"ACCT406S","P","P","P","P","P"]
[null,"ACCT406DGP","P","P","P","P","P"]
[null,"ACCT406DGU","P","P","P","P","P"]
[null,"ACCT406SG","P","P","P","P","P"]
[null,"ACCT406SO","P","P","P","P","P"]
[null,"ACCT406"]
[]
[]
[null,"ACCT407S","DPW","DPW","DPW","DPW","DPW",null,"PLNT","PLNT","PLNT","PLNT","PLNT"]
[null,"ACCT407SO","GP","GP","GP","GP","GP",null,"PLNT","PLNT","PLNT","PLNT","PLNT"]
[null,"ACCT407DGP","P","P","P","P","P",null,"PLNT","PLNT","PLNT","PLNT","PLNT"]
[null,"ACCT407SE","P","P","P","P","P",null,"PLNT","PLNT","PLNT","PLNT","PLNT"]
[null,"ACCT407CAGW","P","P","P","P","P",null,"PLNT","PLNT","PLNT","PLNT","PLNT"]
[null,"ACCT407TROJP","P","P","P","P","P",null,"PLNT","PLNT","PLNT","PLNT","PLNT"]
[null,"ACCT407"]
[]
[]
[]
[]
[]
[]
[]
[null,"RANGE","FUNC","FUNC","FUNC","FUNC","FUNC",null,"DIS","DIS","DIS","DIS","DIS"]
[null,"NAME","FACTOR","FACTOR","FACTOR","FACTOR","FACTOR",null,"SPLIT","SPLIT","SPLIT","SPLIT","SPLIT"]
[]
[null,"ACCT408S","DMSC","DMSC","GP","DMSC","DMSC",null,"PLNT","PLNT","PLNT","PLNT","PLNT"]
[null,"ACCT408GPS","GP","GP","GP","GP","GP",null,"PLNT","PLNT","PLNT","PLNT","PLNT"]
[null,"ACCT408SO","GP","GP","GP","GP","GP",null,"PLNT","PLNT","PLNT","PLNT","PLNT"]
[null,"ACCT408SE","P","P","P","P","P",null,"PLNT","PLNT","PLNT","PLNT","PLNT"]
[null,"ACCT408SG","P","P","P","DMSC","DMSC",null,"PLNT","PLNT","PLNT","PLNT","PLNT"]
[null,"ACCT408OPRVID","DMSC","DMSC","DMSC","DMSC","DMSC",null,"PLNT","PLNT","PLNT","PLNT","PLNT"]
[null,"ACCT408EXCTAX","GP","GP","GP","GP","GP",null,"PLNT","PLNT","PLNT","PLNT","PLNT"]
[null,"ACCT408DGP","GP","GP","GP","GP","GP",null,"PLNT","PLNT","PLNT","PLNT","PLNT"]
[null,"ACCT408"]
[]
[]
[]
[]
[]
[null,"RANGE","FUNC","FUNC","FUNC","FUNC","FUNC",null,"DIS","DIS","DIS","DIS","DIS"]
[null,"NAME","FACTOR","FACTOR","FACTOR","FACTOR","FACTOR",null,"SPLIT","SPLIT","SPLIT","SPLIT","SPLIT"]
[]
[null,"ACCT41140CAGE","PTD","PTD","PTD","PTD","PTD",null,"PLNT","PLNT","PLNT","PLNT","PLNT"]
[]
[null,"ACCT41140"]
[]
[]
[null,"ACCT41141CAGE","PTD","PTD","PTD","PTD","PTD",null,"PLNT","PLNT","PLNT","PLNT","PLNT"]
[]
[null,"ACCT41141"]
[]
[]
[]
[]
[]
[]
[]
[null,"RANGE","FUNC","FUNC","FUNC","FUNC","FUNC",null,"DIS","DIS","DIS","DIS","DIS"]
[null,"NAME","FACTOR","FACTOR","FACTOR","FACTOR","FACTOR",null,"SPLIT","SPLIT","SPLIT","SPLIT","SPLIT"]
[]
[null,"ACCT427S","GP","GP","GP","GP","GP",null,"PLNT","PLNT","PLNT","PLNT","PLNT"]
[null,"ACCT427SNP","GP","GP","GP","GP","GP",null,"PLNT","PLNT","PLNT","PLNT","PLNT"]
[null,"ACCT427"]
[]
[]
[null,"ACCT428SNP","GP","GP","GP","GP","GP",null,"PLNT","PLNT","PLNT","PLNT","PLNT"]
[null,"ACCT428"]
[]
[]
[null,"ACCT429SNP","GP","GP","GP","GP","GP",null,"PLNT","PLNT","PLNT","PLNT","PLNT"]
[null,"ACCT429"]
[]
[]
[null,"ACCT431SNP","GP","GP","GP","GP","GP",null,"PLNT","PLNT","PLNT","PLNT","PLNT"]
[null,"ACCT431"]
[]
[]
[null,"ACCT432SNP","GP","GP","GP","GP","GP",null,"PLNT","PLNT","PLNT","PLNT","PLNT"]
[null,"ACCT432"]
[]
[]
[]
[]
[]
[null,"ACCT419SNP"]
[null,"ACCT419"]
[]
[]
[]
[]
[null,"RANGE","FUNC","FUNC","FUNC","FUNC","FUNC",null,"DIS","DIS","DIS","DIS","DIS"]
[null,"NAME","FACTOR","FACTOR","FACTOR","FACTOR","FACTOR",null,"SPLIT","SPLIT","SPLIT","SPLIT","SPLIT"]
[]
[null,"ACCT41010S","P","P","P","GP","GP",null,"PLNT","PLNT","PLNT","PLNT","PLNT"]
[null,"ACCT41010TROJP","P","P","P","P","P",null,"PLNT","PLNT","PLNT","PLNT","PLNT"]
[null,"ACCT41010DGP","GP","GP","GP","GP","GP",null,"PLNT","PLNT","PLNT","PLNT","PLNT"]
[null,"ACCT41010SO","LABOR","LABOR","LABOR","LABOR","LABOR",null,"DISom","DISom","DISom","DISom","DISom"]
[null,"ACCT41010SNP","GP","GP","GP","GP","GP",null,"PLNT","PLNT","PLNT","PLNT","PLNT"]
[null,"ACCT41010SE","P","P","P","P","P",null,"PLNT","PLNT","PLNT","PLNT","PLNT"]
[null,"ACCT41010SG2","PT","PT","PT","PT","PT",null,"PLNT","PLNT","PLNT","PLNT","PLNT"]
[null,"ACCT41010SGPS","GP","GP","GP","GP","GP",null,"PLNT","PLNT","PLNT","PLNT","PLNT"]
[null,"ACCT41010DITEXP","TAXDEPR","TAXDEPR","TAXDEPR","TAXDEPR","TAXDEPR",null,"PLNT","PLNT","PLNT","PLNT","PLNT"]
[null,"ACCT41010BADDEBT","CUST","CUST","CUST","CUST","CUST",null,"PLNT","PLNT","PLNT","PLNT","PLNT"]
[null,"ACCT41010CN","CUST","CUST","CUST","CUST","CUST",null,"PLNT","PLNT","PLNT","PLNT","PLNT"]
[null,"ACCT41010JBE","P","P","P","P","P",null,"PLNT","PLNT","PLNT","PLNT","PLNT"]
[null,"ACCT41010SNPD","DPW","DPW","DPW","DPW","DPW",null,"PLNT","PLNT","PLNT","PLNT","PLNT"]
[]
[]
[]
[null,"ACCT41011S","CUST","CUST","CUST","GP","GP",null,"PLNT","PLNT","PLNT","PLNT","PLNT"]
[null,"ACCT41011SG","PT","PT","PT","PT","PT",null,"PLNT","PLNT","PLNT","PLNT","PLNT"]
[null,"ACCT41011SO","LABOR","LABOR","LABOR","LABOR","LABOR",null,"DISom","DISom","DISom","DISom","DISom"]
[null,"ACCT41011SE","P","P","P","P","P",null,"PLNT","PLNT","PLNT","PLNT","PLNT"]
[null,"ACCT41011SG","PT","PT","PT","PT","PT",null,"PLNT","PLNT","PLNT","PLNT","PLNT"]
[null,"ACCT41011SGPP","GP","GP","GP","GP","GP",null,"PLNT","PLNT","PLNT","PLNT","PLNT"]
[null,"ACCT41011TROJP","P","P","P","P","P",null,"PLNT","PLNT","PLNT","PLNT","PLNT"]
[null,"ACCT41011SNP","GP","GP","GP","GP","GP",null,"PLNT","PLNT","PLNT","PLNT","PLNT"]
[null,"ACCT41011BADDEBT","CUST","CUST","CUST","CUST","CUST",null,"PLNT","PLNT","PLNT","PLNT","PLNT"]
[null,"ACCT41011DITEXP","DITEXP","DITEXP","DITEXP","DITEXP","DITEXP",null,"PLNT","PLNT","PLNT","PLNT","PLNT"]
[null,"ACCT41011SGCT","P","P","P","P","P",null,"PLNT","PLNT","PLNT","PLNT","PLNT"]
[null,"ACCT41011SNPD","DPW","DPW","DPW","DPW","DPW",null,"PLNT","PLNT","PLNT","PLNT","PLNT"]
[null,"ACCT41011"]
[]
[]
[null,"ACCT41110S","GP","GP","GP","GP","GP",null,"PLNT","PLNT","PLNT","PLNT","PLNT"]
[null,"ACCT41110SE","P","P","P","P","P",null,"PLNT","PLNT","PLNT","PLNT","PLNT"]
[null,"ACCT41110SCHMDEXP","GP","GP","GP","GP","GP",null,"PLNT","PLNT","PLNT","PLNT","PLNT"]
[null,"ACCT41110SNP","GP","GP","GP","GP","GP",null,"PLNT","PLNT","PLNT","PLNT","PLNT"]
[null,"ACCT41110SG","PT","PT","PT","PT","PT",null,"PLNT","PLNT","PLNT","PLNT","PLNT"]
[null,"ACCT41110GPS","GP","GP","GP","GP","GP",null,"PLNT","PLNT","PLNT","PLNT","PLNT"]
[null,"ACCT41110SO","LABOR","LABOR","LABOR","LABOR","LABOR",null,"DISom","DISom","DISom","DISom","DISom"]
[null,"ACCT41110SNPD","PT","PT","PT","PT","PT",null,"PLNT","PLNT","PLNT","PLNT","PLNT"]
[null,"ACCT41110BADDEBT","CUST","CUST","CUST","CUST","CUST",null,"PLNT","PLNT","PLNT","PLNT","PLNT"]
[null,"ACCT41110CIAC","DPW","DPW","DPW","DPW","DPW",null,"PLNT","PLNT","PLNT","PLNT","PLNT"]
[null,"ACCT41110DITEXP","DITEXP","DITEXP","DITEXP","DITEXP","DITEXP",null,"PLNT","PLNT","PLNT","PLNT","PLNT"]
[null,"ACCT41110TROJP","P","P","P","P","P",null,"PLNT","PLNT","PLNT","PLNT","PLNT"]
[null,"ACCT41110JBE","P","P","P","P","P",null,"PLNT","PLNT","PLNT","PLNT","PLNT"]
[null,"ACCT41110",null,null,null,null,null,null,"PLNT","PLNT","PLNT","PLNT","PLNT"]
[]
[]
[null,"ACCT41111S","GP","GP","GP","GP","GP",null,"PLNT","PLNT","PLNT","PLNT","PLNT"]
[null,"ACCT41111SNP","GP","GP","GP","GP","GP",null,"PLNT","PLNT","PLNT","PLNT","PLNT"]
[null,"ACCT41111DITEXP","DITEXP","DITEXP","DITEXP","DITEXP","DITEXP",null,"PLNT","PLNT","PLNT","PLNT","PLNT"]
[null,"ACCT41111SG","PT","PT","PT","PT","PT",null,"PLNT","PLNT","PLNT","PLNT","PLNT"]
[null,"ACCT41111SGCT","P","P","P","P","P",null,"PLNT","PLNT","PLNT","PLNT","PLNT"]
[null,"ACCT41111SG","PT","PT","PT","PT","PT",null,"PLNT","PLNT","PLNT","PLNT","PLNT"]
[null,"ACCT41111BADDEBT","CUST","CUST","CUST","CUST","CUST",null,"PLNT","PLNT","PLNT","PLNT","PLNT"]
[null,"ACCT41111GPS","GP","GP","GP","GP","GP",null,"PLNT","PLNT","PLNT","PLNT","PLNT"]
[null,"ACCT41111SO","LABOR","LABOR","LABOR","LABOR","LABOR",null,"DISom","DISom","DISom","DISom","DISom"]
[null,"ACCT41111SE","P","P","P","P","P",null,"PLNT","PLNT","PLNT","PLNT","PLNT"]
[null,"ACCT41111TROJP","P","P","P","P","P",null,"PLNT","PLNT","PLNT","PLNT","PLNT"]
[null,"ACCT41111SG","PT","PT","PT","PT","PT",null,"PLNT","PLNT","PLNT","PLNT","PLNT"]
[null,"ACCT41111"]
[]
[]
[]
[]
[null,"RANGE","FUNC","FUNC","FUNC","FUNC","FUNC",null,"DIS","DIS","DIS","DIS","DIS"]
[null,"NAME","FACTOR","FACTOR","FACTOR","FACTOR","FACTOR",null,"SPLIT","SPLIT","SPLIT","SPLIT","SPLIT"]
[]
[null,"ACCT40911S","IBT","IBT","IBT","IBT","IBT",null,"DRB","DRB","DRB","DRB","DRB"]
[null,"ACCT40911SO","IBT","IBT","IBT","IBT","IBT",null,"DRB","DRB","DRB","DRB","DRB"]
[null,"ACCT40911DGU","IBT","IBT","IBT","IBT","IBT",null,"DRB","DRB","DRB","DRB","DRB"]
[null,"ACCT40911IDSIT","IBT","IBT","IBT","IBT","IBT",null,"DRB","DRB","DRB","DRB","DRB"]
[null,"ACCT40911"]
[]
[]
[]
[]
[]
[]
[]
[]
[]
[]
[]
[]
[]
[]
[]
[]
[]
[]
[]
[]
[]
[]
[]
[]
[null,"ACCTSTTAX","IBT","IBT","IBT","IBT","IBT",null,"DRB","DRB","DRB","DRB","DRB"]
[]
[]
[]
[]
[]
[]
[]
[]
[null,"ACCTITCITC90"]
[null,"ACCT40610CAEW"]
[null,"ACCT40910FITPMI"]
[null,"FITOTH"]
[null,"IRS SETTLE"]
[]
[]
[]
[]
[null,"ACCTFIT","FIT","FIT","FIT","FIT","FIT",null,"DRB","DRB","DRB","DRB","DRB"]
[]
[]
[]
[]
[]
[]
[]
[]
[]
[null,"RANGE","FUNC","FUNC","FUNC","FUNC","FUNC",null,"DIS","DIS","DIS","DIS","DIS"]
[null,"NAME","FACTOR","FACTOR","FACTOR","FACTOR","FACTOR",null,"SPLIT","SPLIT","SPLIT","SPLIT","SPLIT"]
[]
[]
[null,"ACCT310DGP","P","P","P","P","P"]
[null,"ACCT310DGU","P","P","P","P","P"]
[null,"ACCT310CAGW","P","P","P","P","P"]
[null,"ACCT310S","P","P","P","P","P"]
[null,"ACCT310JBG","P","P","P","P","P"]
[null,"ACCT310"]
[]
[]
[null,"ACCT311DGP","P","P","P","P","P"]
[null,"ACCT311DGP","P","P","P","P","P"]
[null,"ACCT311CAGW","P","P","P","P","P"]
[null,"ACCT311JBG","P","P","P","P","P"]
[null,"ACCT311"]
[]
[]
[null,"ACCT312DGP","P","P","P","P","P"]
[null,"ACCT312DGU","P","P","P","P","P"]
[null,"ACCT312CAGW","P","P","P","P","P"]
[null,"ACCT312JBG","P","P","P","P","P"]
[null,"ACCT312"]
[]
[]
[null,"ACCT314DGP","P","P","P","P","P"]
[null,"ACCT314DGU","P","P","P","P","P"]
[null,"ACCT314CAGW","P","P","P","P","P"]
[null,"ACCT314JBG","P","P","P","P","P"]
[null,"ACCT314"]
[]
[]
[null,"ACCT315DGP","P","P","P","P","P"]
[null,"ACCT315DGU","P","P","P","P","P"]
[null,"ACCT315SG","P","P","P","P","P"]
[null,"ACCT315JBG","P","P","P","P","P"]
[null,"ACCT315"]
[]
[]
[null,"ACCT316DGP","P","P","P","P","P"]
[null,"ACCT316DGU","P","P","P","P","P"]
[null,"ACCT316CAGW","P","P","P","P","P"]
[null,"ACCT316CAEW","P","P","P","P","P"]
[null,"ACCT316JBG","P","P","P","P","P"]
[null,"ACCT316"]
[]
[]
[]
[null,"ACCTSPCAGW","P","P","P","P","P"]
[null,"ACCTSP"]
[]
[]
[]
[]
[]
[null,"RANGE","FUNC","FUNC","FUNC","FUNC","FUNC",null,"DIS","DIS","DIS","DIS","DIS"]
[null,"NAME","FACTOR","FACTOR","FACTOR","FACTOR","FACTOR",null,"SPLIT","SPLIT","SPLIT","SPLIT","SPLIT"]
[]
[null,"ACCT320DGP","P","P","P","P","P"]
[null,"ACCT320SG","P","P","P","P","P"]
[null,"ACCT320"]
[]
[]
[null,"ACCT321DGP","P","P","P","P","P"]
[null,"ACCT321SG","P","P","P","P","P"]
[null,"ACCT321"]
[]
[]
[null,"ACCT322DGP","P","P","P","P","P"]
[null,"ACCT322SG","P","P","P","P","P"]
[null,"ACCT322"]
[]
[]
[null,"ACCT323DGP","P","P","P","P","P"]
[null,"ACCT323SG","P","P","P","P","P"]
[null,"ACCT323"]
[]
[]
[null,"ACCT324DGP","P","P","P","P","P"]
[null,"ACCT324SG","P","P","P","P","P"]
[null,"ACCT324"]
[]
[]
[null,"ACCT325DGP","P","P","P","P","P"]
[null,"ACCT325SG","P","P","P","P","P"]
[null,"ACCT325"]
[]
[]
[]
[null,"ACCTNPSGP","P","P","P","P","P"]
[null,"ACCTNP"]
[]
[]
[]
[]
[]
[null,"RANGE","FUNC","FUNC","FUNC","FUNC","FUNC",null,"DIS","DIS","DIS","DIS","DIS"]
[null,"NAME","FACTOR","FACTOR","FACTOR","FACTOR","FACTOR",null,"SPLIT","SPLIT","SPLIT","SPLIT","SPLIT"]
[]
[]
[null,"ACCT330CAGW","P","P","P","P","P"]
[null,"ACCT330SGU","P","P","P","P","P"]
[null,"ACCT330"]
[]
[]
[null,"ACCT331CAGW","P","P","P","P","P"]
[null,"ACCT331SGU","P","P","P","P","P"]
[null,"ACCT331"]
[]
[]
[null,"ACCT332CAGW","P","P","P","P","P"]
[null,"ACCT332SGU","P","P","P","P","P"]
[null,"ACCT332"]
[]
[]
[null,"ACCT333CAGW","P","P","P","P","P"]
[null,"ACCT333SGU","P","P","P","P","P"]
[null,"ACCT333"]
[]
[]
[null,"ACCT334CAGW","P","P","P","P","P"]
[null,"ACCT334SGU","P","P","P","P","P"]
[null,"ACCT334"]
[]
[]
[null,"ACCT335CAGW","P","P","P","P","P"]
[null,"ACCT335SGU","P","P","P","P","P"]
[null,"ACCT335"]
[]
[]
[null,"ACCT336CAGW","P","P","P","P","P"]
[null,"ACCT336CAEW","P","P","P","P","P"]
[null,"ACCT336SGU","P","P","P","P","P"]
[null,"ACCT336"]
[]
[]
[]
[null,"ACCTHPSG","P","P","P","P","P"]
[null,"ACCTHPDGU","P","P","P","P","P"]
[null,"ACCTHP"]
[]
[]
[null,"ACCT330STEP1SGP1"]
[null,"ACCT330STEP1SGP2"]
[null,"ACCT330STEP1SGP3"]
[null,"ACCT330STEP1SGP4"]
[null,"ACCT330STEP1ADJ"]
[]
[]
[]
[]
[]
[]
[]
[null,"RANGE","FUNC","FUNC","FUNC","FUNC","FUNC",null,"DIS","DIS","DIS","DIS","DIS"]
[null,"NAME","FACTOR","FACTOR","FACTOR","FACTOR","FACTOR",null,"SPLIT","SPLIT","SPLIT","SPLIT","SPLIT"]
[]
[]
[null,"ACCT340CAGW","P","P","P","P","P"]
[null,"ACCT340DGU","P","P","P","P","P"]
[null,"ACCT340"]
[]
[]
[null,"ACCT341CAGW","P","P","P","P","P"]
[null,"ACCT341DGU","P","P","P","P","P"]
[null,"ACCT341"]
[]
[]
[null,"ACCT342CAGW","P","P","P","P","P"]
[null,"ACCT342DGU","P","P","P","P","P"]
[null,"ACCT342"]
[]
[]
[null,"ACCT343S","P","P","P","P","P"]
[null,"ACCT343DGU","P","P","P","P","P"]
[null,"ACCT343CAGW","P","P","P","P","P"]
[null,"ACCT343CAEW","P","P","P","P","P"]
[null,"ACCT343CAGE","P","P","P","P","P"]
[null,"ACCT343"]
[]
[]
[null,"ACCT344S","P","P","P","P","P"]
[null,"ACCT344CAGW","P","P","P","P","P"]
[null,"ACCT344DGU","P","P","P","P","P"]
[null,"ACCT344CAGE","P","P","P","P","P"]
[null,"ACCT344"]
[]
[]
[null,"ACCT345CAGW","P","P","P","P","P"]
[null,"ACCT345DGU","P","P","P","P","P"]
[null,"ACCT345"]
[]
[]
[null,"ACCT346CAGW","P","P","P","P","P"]
[null,"ACCT346SGU","P","P","P","P","P"]
[null,"ACCT346"]
[]
[]
[null,"ACCTO0PS","P","P","P","P","P"]
[null,"ACCTO0PSGU","P","P","P","P","P"]
[null,"ACCTO0P"]
[]
[]
[]
[]
[]
[null,"ACCT300SGP","P","P","P","P","P"]
[null,"ACCT103"]
[]
[]
[]
[]
[]
[]
[]
[]
[null,"RANGE","FUNC","FUNC","FUNC","FUNC","FUNC",null,"DIS","DIS","DIS","DIS","DIS"]
[null,"NAME","FACTOR","FACTOR","FACTOR","FACTOR","FACTOR",null,"SPLIT","SPLIT","SPLIT","SPLIT","SPLIT"]
[]
[null,"ACCT350DGP","T","T","T","T","T"]
[null,"ACCT350JBG","T","T","T","T","T"]
[null,"ACCT350CAGW","T","T","T","T","T"]
[null,"ACCT350"]
[]
[]
[null,"ACCT352S","T","T","T","T","T"]
[null,"ACCT352DGP","T","T","T","T","T"]
[null,"ACCT352JBG","T","T","T","T","T"]
[null,"ACCT352CAGW","T","T","T","T","T"]
[null,"ACCT352"]
[]
[]
[null,"ACCT353DGP","T","T","T","T","T"]
[null,"ACCT353JBG","T","T","T","T","T"]
[null,"ACCT353CAGW","T","T","T","T","T"]
[null,"ACCT353"]
[]
[]
[null,"ACCT354DGP","T","T","T","T","T"]
[null,"ACCT354JBG","T","T","T","T","T"]
[null,"ACCT354CAGW","T","T","T","T","T"]
[null,"ACCT354"]
[]
[]
[null,"ACCT355DGP","T","T","T","T","T"]
[null,"ACCT355DGU","T","T","T","T","T"]
[null,"ACCT355CAEW","T","T","T","T","T"]
[null,"ACCT355CAGW","T","T","T","T","T"]
[null,"ACCT355"]
[]
[]
[null,"ACCT356DGP","T","T","T","T","T"]
[null,"ACCT356JBG","T","T","T","T","T"]
[null,"ACCT356CAGW","T","T","T","T","T"]
[null,"ACCT356"]
[]
[]
[null,"ACCT357DGP","T","T","T","T","T"]
[null,"ACCT357JBG","T","T","T","T","T"]
[null,"ACCT357CAGW","T","T","T","T","T"]
[null,"ACCT357"]
[]
[]
[null,"ACCT358DGP","T","T","T","T","T"]
[null,"ACCT358JBG","T","T","T","T","T"]
[null,"ACCT358CAGW","T","T","T","T","T"]
[null,"ACCT358"]
[]
[]
[null,"ACCT359DGP","T","T","T","T","T"]
[null,"ACCT359JBG","T","T","T","T","T"]
[null,"ACCT359CAGW","T","T","T","T","T"]
[null,"ACCT359"]
[]
[]
[null,"ACCTTPCAGW","T","T","T","T","T"]
[null,"ACCTP"]
[]
[]
[null,"ACCTTS0SG","T","T","T","T","T"]
[null,"ACCTTS0"]
[]
[]
[]
[]
[]
[null,"RANGE","FUNC","FUNC","FUNC","FUNC","FUNC",null,"DIS","DIS","DIS","DIS","DIS"]
[null,"NAME","FACTOR","FACTOR","FACTOR","FACTOR","FACTOR",null,"SPLIT","SPLIT","SPLIT","SPLIT","SPLIT"]
[]
[]
[null,"ACCT360DP","DPW","DPW","DPW","DPW","DPW",null,"PLNT2","PLNT2","PLNT2","PLNT2","PLNT2"]
[null,"ACCT360A","DPW","DPW","DPW","DPW","DPW",null,"PLNT2","PLNT2","PLNT2","PLNT2","PLNT2"]
[null,"ACCT360"]
[]
[]
[]
[null,"ACCT361DP","DPW","DPW","DPW","DPW","DPW",null,"PLNT2","PLNT2","PLNT2","PLNT2","PLNT2"]
[null,"ACCT361A","DPW","DPW","DPW","DPW","DPW",null,"PLNT2","PLNT2","PLNT2","PLNT2","PLNT2"]
[null,"ACCT361"]
[]
[]
[]
[null,"ACCT362DP","DPW","DPW","DPW","DPW","DPW",null,"SUBS","SUBS","SUBS","SUBS","SUBS"]
[null,"ACCT362A","DPW","DPW","DPW","DPW","DPW",null,"SUBS","SUBS","SUBS","SUBS","SUBS"]
[null,"ACCT362"]
[]
[]
[]
[null,"ACCT364DP","DPW","DPW","DPW","DPW","DPW",null,"PC","PC","PC","PC","PC"]
[null,"ACCT364DS","DPW","DPW","DPW","DPW","DPW",null,"PC","PC","PC","PC","PC"]
[null,"ACCT364A","DPW","DPW","DPW","DPW","DPW",null,"PC","PC","PC","PC","PC"]
[null,"ACCT364"]
[]
[]
[]
[null,"ACCT365DP","DPW","DPW","DPW","DPW","DPW",null,"PC","PC","PC","PC","PC"]
[null,"ACCT365DS","DPW","DPW","DPW","DPW","DPW",null,"PC","PC","PC","PC","PC"]
[null,"ACCT365A","DPW","DPW","DPW","DPW","DPW",null,"PC","PC","PC","PC","PC"]
[null,"ACCT365"]
[]
[]
[]
[null,"ACCT366DP","DPW","DPW","DPW","DPW","DPW",null,"PC","PC","PC","PC","PC"]
[null,"ACCT366DS","DPW","DPW","DPW","DPW","DPW",null,"PC","PC","PC","PC","PC"]
[null,"ACCT366A","DPW","DPW","DPW","DPW","DPW",null,"PC","PC","PC","PC","PC"]
[null,"ACCT366"]
[]
[]
[]
[null,"ACCT367DP","DPW","DPW","DPW","DPW","DPW",null,"PC","PC","PC","PC","PC"]
[null,"ACCT367DS","DPW","DPW","DPW","DPW","DPW",null,"PC","PC","PC","PC","PC"]
[null,"ACCT367A","DPW","DPW","DPW","DPW","DPW",null,"PC","PC","PC","PC","PC"]
[null,"ACCT367"]
[]
[]
[]
[null,"ACCT368DS","DPW","DPW","DPW","DPW","DPW",null,"XFMR","XFMR","XFMR","XFMR","XFMR"]
[null,"ACCT368A","DPW","DPW","DPW","DPW","DPW",null,"XFMR","XFMR","XFMR","XFMR","XFMR"]
[null,"ACCT368"]
[]
[]
[]
[null,"ACCT369COH","DPW","DPW","DPW","DPW","DPW",null,"SERV","SERV","SERV","SERV","SERV"]
[null,"ACCT369CUG","DPW","DPW","DPW","DPW","DPW",null,"SERV","SERV","SERV","SERV","SERV"]
[null,"ACCT369A","DPW","DPW","DPW","DPW","DPW",null,"SERV","SERV","SERV","SERV","SERV"]
[null,"ACCT369"]
[]
[]
[]
[null,"RANGE","FUNC","FUNC","FUNC","FUNC","FUNC",null,"DIS","DIS","DIS","DIS","DIS"]
[null,"NAME","FACTOR","FACTOR","FACTOR","FACTOR","FACTOR",null,"SPLIT","SPLIT","SPLIT","SPLIT","SPLIT"]
[]
[]
[]
[null,"ACCT370C","DPW","DPW","DPW","DPW","DPW",null,"METR","METR","METR","METR","METR"]
[null,"ACCT370A","DPW","DPW","DPW","DPW","DPW",null,"METR","METR","METR","METR","METR"]
[null,"ACCT370"]
[]
[]
[]
[null,"ACCT371DP","DPW","DPW","DPW","DPW","DPW",null,"PC","PC","PC","PC","PC"]
[null,"ACCT371DS","DPW","DPW","DPW","DPW","DPW",null,"PC","PC","PC","PC","PC"]
[null,"ACCT371A","DPW","DPW","DPW","DPW","DPW",null,"PC","PC","PC","PC","PC"]
[null,"ACCT371"]
[]
[]
[]
[null,"ACCT372DP","DPW","DPW","DPW","DPW","DPW",null,"PLNT2","PLNT2","PLNT2","PLNT2","PLNT2"]
[null,"ACCT372DS","DPW","DPW","DPW","DPW","DPW",null,"PLNT2","PLNT2","PLNT2","PLNT2","PLNT2"]
[null,"ACCT372A","DPW","DPW","DPW","DPW","DPW",null,"PLNT2","PLNT2","PLNT2","PLNT2","PLNT2"]
[null,"ACCT372"]
[]
[]
[]
[null,"ACCT373C","DPW","DPW","DPW","DPW","DPW",null,"PC","PC","PC","PC","PC"]
[null,"ACCT373PA","DPW","DPW","DPW","DPW","DPW",null,"PC","PC","PC","PC","PC"]
[null,"ACCT373"]
[]
[]
[null,"ACCTD00S","DPW","DPW","DPW","DPW","DPW",null,"PLNT2","PLNT2","PLNT2","PLNT2","PLNT2"]
[null,"ACCTD00"]
[]
[]
[null,"ACCTDS0S","DPW","DPW","DPW","DPW","DPW",null,"PLNT2","PLNT2","PLNT2","PLNT2","PLNT2"]
[null,"ACCTDS0"]
[]
[]
[]
[]
[]
[null,"RANGE","FUNC","FUNC","FUNC","FUNC","FUNC",null,"DIS","DIS","DIS","DIS","DIS"]
[null,"NAME","FACTOR","FACTOR","FACTOR","FACTOR","FACTOR",null,"SPLIT","SPLIT","SPLIT","SPLIT","SPLIT"]
[]
[null,"ACCT389S","G-SITUS","G-SITUS","G-SITUS","TD","TD",null,"PLNT","PLNT","PLNT","PLNT","PLNT"]
[null,"ACCT389CN","CUST","CUST","CUST","CUST","CUST",null,"CUST","CUST","CUST","CUST","CUST"]
[null,"ACCT389SGU","G-DGU","G-DGU","G-DGU","G-DGU","G-DGU",null,"PLNT","PLNT","PLNT","PLNT","PLNT"]
[null,"ACCT389SG","G-SG","G-SG","G-SG","G-SG","G-SG",null,"PLNT","PLNT","PLNT","PLNT","PLNT"]
[null,"ACCT389SO","PTD","PTD","PTD","PTD","PTD",null,"PLNT","PLNT","PLNT","PLNT","PLNT"]
[null,"ACCT389"]
[]
[]
[null,"ACCT390S","G-SITUS","G-SITUS","G-SITUS","TD","TD",null,"PLNT","PLNT","PLNT","PLNT","PLNT"]
[null,"ACCT390DGP","G-DGP","G-DGP","G-DGP","G-DGP","G-DGP",null,"PLNT","PLNT","PLNT","PLNT","PLNT"]
[null,"ACCT390DGU","G-DGU","G-DGU","G-DGU","G-DGU","G-DGU",null,"PLNT","PLNT","PLNT","PLNT","PLNT"]
[null,"ACCT390CN","CUST","CUST","CUST","CUST","CUST",null,"CUST","CUST","CUST","CUST","CUST"]
[null,"ACCT390CAGW","G-SG","G-SG","G-SG","G-SG","G-SG",null,"PLNT","PLNT","PLNT","PLNT","PLNT"]
[null,"ACCT390JBG","G-SG","G-SG","G-SG","G-SG","G-SG",null,"PLNT","PLNT","PLNT","PLNT","PLNT"]
[null,"ACCT390SO","PTD","PTD","PTD","PTD","PTD",null,"PLNT","PLNT","PLNT","PLNT","PLNT"]
[null,"ACCT390"]
[]
[]
[null,"ACCT391S","G-SITUS","G-SITUS","G-SITUS","TD","TD",null,"PLNT","PLNT","PLNT","PLNT","PLNT"]
[null,"ACCT391DGP","G-DGP","G-DGP","G-DGP","G-DGP","G-DGP",null,"PLNT","PLNT","PLNT","PLNT","PLNT"]
[null,"ACCT391DSGU","G-DGU","G-DGU","G-DGU","G-DGU","G-DGU",null,"PLNT","PLNT","PLNT","PLNT","PLNT"]
[null,"ACCT391CN","CUST","CUST","CUST","CUST","CUST",null,"CUST","CUST","CUST","CUST","CUST"]
[null,"ACCT391CAGW","G-SG","G-SG","G-SG","G-SG","G-SG",null,"PLNT","PLNT","PLNT","PLNT","PLNT"]
[null,"ACCT391SE","P","P","P","P","P",null,"PLNT","PLNT","PLNT","PLNT","PLNT"]
[null,"ACCT391SO","PTD","PTD","PTD","PTD","PTD",null,"PLNT","PLNT","PLNT","PLNT","PLNT"]
[null,"ACCT391JBG","G-SG","G-SG","G-SG","P","P",null,"PLNT","PLNT","PLNT","PLNT","PLNT"]
[null,"ACCT391JBE","G-SG","G-SG","P","P","P",null,"PLNT","PLNT","PLNT","PLNT","PLNT"]
[null,"ACCT391"]
[]
[]
[null,"ACCT392S","G-SITUS","G-SITUS","G-SITUS","TD","TD",null,"PLNT","PLNT","PLNT","PLNT","PLNT"]
[null,"ACCT392SO","PTD","PTD","PTD","PTD","PTD",null,"PLNT","PLNT","PLNT","PLNT","PLNT"]
[null,"ACCT392CAGW","G-SG","G-SG","G-SG","G-SG","G-SG",null,"PLNT","PLNT","PLNT","PLNT","PLNT"]
[null,"ACCT392CN","CUST","CUST","CUST","CUST","CUST",null,"CUST","CUST","CUST","CUST","CUST"]
[null,"ACCT392DGU","G-DGU","G-DGU","G-DGU","G-DGU","G-DGU",null,"PLNT","PLNT","PLNT","PLNT","PLNT"]
[null,"ACCT392SE","P","P","P","P","P",null,"PLNT","PLNT","PLNT","PLNT","PLNT"]
[null,"ACCT392DGP","G-DGP","G-DGP","G-DGP","G-DGP","G-DGP",null,"PLNT","PLNT","PLNT","PLNT","PLNT"]
[null,"ACCT392JBG","G-SG","G-SG","G-SG","P","P",null,"PLNT","PLNT","PLNT","PLNT","PLNT"]
[null,"ACCT392CAGE","G-DGU","G-DGU","P","P","P",null,"PLNT","PLNT","PLNT","PLNT","PLNT"]
[null,"ACCT392"]
[]
[]
[null,"ACCT393S","G-SITUS","G-SITUS","G-SITUS","TD","TD",null,"PLNT","PLNT","PLNT","PLNT","PLNT"]
[null,"ACCT393DGP","G-DGP","G-DGP","G-DGP","G-DGP","G-DGP",null,"PLNT","PLNT","PLNT","PLNT","PLNT"]
[null,"ACCT393DGU","G-DGU","G-DGU","G-DGU","G-DGU","G-DGU",null,"PLNT","PLNT","PLNT","PLNT","PLNT"]
[null,"ACCT393SO","PTD","PTD","PTD","PTD","PTD",null,"PLNT","PLNT","PLNT","PLNT","PLNT"]
[null,"ACCT393CAGW","G-SG","G-SG","G-SG","G-SG","G-SG",null,"PLNT","PLNT","PLNT","PLNT","PLNT"]
[null,"ACCT393JBG","G-DGU","G-DGU","G-SG","P","P",null,"PLNT","PLNT","PLNT","PLNT","PLNT"]
[null,"ACCT393"]
[]
[]
[null,"ACCT394S","G-SITUS","G-SITUS","G-SITUS","TD","TD",null,"PLNT","PLNT","PLNT","PLNT","PLNT"]
[null,"ACCT394DGP","G-DGP","G-DGP","G-DGP","G-DGP","G-DGP",null,"PLNT","PLNT","PLNT","PLNT","PLNT"]
[null,"ACCT394CAGW","G-SG","G-SG","G-SG","G-SG","G-SG",null,"PLNT","PLNT","PLNT","PLNT","PLNT"]
[null,"ACCT394SO","PTD","PTD","PTD","PTD","PTD",null,"PLNT","PLNT","PLNT","PLNT","PLNT"]
[null,"ACCT392SE","P","P","P","P","P",null,"PLNT","PLNT","PLNT","PLNT","PLNT"]
[null,"ACCT394DGU","G-DGU","G-DGU","G-DGU","G-DGU","G-DGU",null,"PLNT","PLNT","PLNT","PLNT","PLNT"]
[null,"ACCT394JBG","G-SG","G-SG","G-SG","P","P",null,"PLNT","PLNT","PLNT","PLNT","PLNT"]
[null,"ACCT394CAGW","G-SG","G-SG","P","P","P",null,"PLNT","PLNT","PLNT","PLNT","PLNT"]
[null,"ACCT394"]
[]
[]
[null,"ACCT395S","G-SITUS","G-SITUS","G-SITUS","TD","TD",null,"PLNT","PLNT","PLNT","PLNT","PLNT"]
[null,"ACCT395DGP","G-DGP","G-DGP","G-DGP","G-DGP","G-DGP",null,"PLNT","PLNT","PLNT","PLNT","PLNT"]
[null,"ACCT395DGU","G-DGU","G-DGU","G-DGU","G-DGU","G-DGU",null,"PLNT","PLNT","PLNT","PLNT","PLNT"]
[null,"ACCT395SO","PTD","PTD","PTD","PTD","PTD",null,"PLNT","PLNT","PLNT","PLNT","PLNT"]
[null,"ACCT395SE","P","P","P","P","P",null,"PLNT","PLNT","PLNT","PLNT","PLNT"]
[null,"ACCT395CAGW","G-SG","G-SG","G-SG","G-SG","G-SG",null,"PLNT","PLNT","PLNT","PLNT","PLNT"]
[null,"ACCT395JBG","G-SG","G-SG","G-SG","P","P",null,"PLNT","PLNT","PLNT","PLNT","PLNT"]
[null,"ACCT395CAGE","G-SG","G-SG","P","P","P",null,"PLNT","PLNT","PLNT","PLNT","PLNT"]
[null,"ACCT395"]
[]
[]
[null,"ACCT396S","G-SITUS","G-SITUS","G-SITUS","TD","TD",null,"PLNT","PLNT","PLNT","PLNT","PLNT"]
[null,"ACCT396DGP","G-DGP","G-DGP","G-DGP","G-DGP","G-DGP",null,"PLNT","PLNT","PLNT","PLNT","PLNT"]
[null,"ACCT396CAGW","G-SG","G-SG","G-SG","G-SG","G-SG",null,"PLNT","PLNT","PLNT","PLNT","PLNT"]
[null,"ACCT396SO","PTD","PTD","PTD","PTD","PTD",null,"PLNT","PLNT","PLNT","PLNT","PLNT"]
[null,"ACCT396DGU","G-DGU","G-DGU","G-DGU","G-DGU","G-DGU",null,"PLNT","PLNT","PLNT","PLNT","PLNT"]
[null,"ACCT396SE","P","P","P","P","P",null,"PLNT","PLNT","PLNT","PLNT","PLNT"]
[null,"ACCT396JBG","P","P","G-SG","P","P",null,"PLNT","PLNT","PLNT","PLNT","PLNT"]
[null,"ACCT396CAGE","G-SG","G-SG","G-SG","P","P",null,"PLNT","PLNT","PLNT","PLNT","PLNT"]
[null,"ACCT396"]
[]
[]
[null,"RANGE","FUNC","FUNC","FUNC","FUNC","FUNC",null,"DIS","DIS","DIS","DIS","DIS"]
[null,"NAME","FACTOR","FACTOR","FACTOR","FACTOR","FACTOR",null,"SPLIT","SPLIT","SPLIT","SPLIT","SPLIT"]
[]
[null,"ACCT397S","G-SITUS","G-SITUS","G-SITUS","G-SITUS","G-SITUS",null,"PLNT","PLNT","PLNT","PLNT","PLNT"]
[null,"ACCT397DGP","G-DGP","G-DGP","G-DGP","G-DGP","G-DGP",null,"PLNT","PLNT","PLNT","PLNT","PLNT"]
[null,"ACCT397DGU","G-DGU","G-DGU","G-DGU","G-DGU","G-DGU",null,"PLNT","PLNT","PLNT","PLNT","PLNT"]
[null,"ACCT397SO","PTD","PTD","PTD","PTD","PTD",null,"PLNT","PLNT","PLNT","PLNT","PLNT"]
[null,"ACCT392CN","CUST","CUST","CUST","CUST","CUST",null,"PLNT","PLNT","PLNT","PLNT","PLNT"]
[null,"ACCT397CAGW","G-SG","G-SG","G-SG","G-SG","G-SG",null,"PLNT","PLNT","PLNT","PLNT","PLNT"]
[null,"ACCT397SE","P","P","P","P","P",null,"PLNT","PLNT","PLNT","PLNT","PLNT"]
[null,"ACCT397JBG","P","P","P","P","P",null,"PLNT","PLNT","PLNT","PLNT","PLNT"]
[null,"ACCT397CAGE","G-SG","G-SG","G-SG","G-SG","G-SG",null,"PLNT","PLNT","PLNT","PLNT","PLNT"]
[null,"ACCT397CAGE","G-SG","G-SG","G-SG","G-SG","G-SG",null,"PLNT","PLNT","PLNT","PLNT","PLNT"]
[null,"ACCT397"]
[]
[]
[null,"ACCT398S","G-SITUS","G-SITUS","G-SITUS","TD","TD",null,"PLNT","PLNT","PLNT","PLNT","PLNT"]
[null,"ACCT398DGP","G-DGP","G-DGP","G-DGP","G-DGP","G-DGP",null,"PLNT","PLNT","PLNT","PLNT","PLNT"]
[null,"ACCT398DGU","G-DGU","G-DGU","G-DGU","G-DGU","G-DGU",null,"PLNT","PLNT","PLNT","PLNT","PLNT"]
[null,"ACCT398CN","CUST","CUST","CUST","CUST","CUST",null,"CUST","CUST","CUST","CUST","CUST"]
[null,"ACCT398SO","PTD","PTD","PTD","PTD","PTD",null,"PLNT","PLNT","PLNT","PLNT","PLNT"]
[null,"ACCT398SE","P","P","P","P","P",null,"PLNT","PLNT","PLNT","PLNT","PLNT"]
[null,"ACCT398CAGW","G-SG","G-SG","G-SG","G-SG","G-SG",null,"PLNT","PLNT","PLNT","PLNT","PLNT"]
[null,"ACCT398JBG","G-SG","G-SG","G-SG","P","P",null,"PLNT","PLNT","PLNT","PLNT","PLNT"]
[null,"ACCT398"]
[]
[]
[null,"ACCT399SEP","P","P","P","P","P",null,"ZERO","ZERO","ZERO","ZERO","ZERO"]
[null,"ACCT399JBE","P","P","P","P","P",null,"ZERO","ZERO","ZERO","ZERO","ZERO"]
[null,"ACCT399SEU","P","P","P","P","P",null,"ZERO","ZERO","ZERO","ZERO","ZERO"]
[null,"ACCT399"]
[]
[]
[null,"ACCT99LSEP","P","P","P","P","P",null,"PLNT","PLNT","PLNT","PLNT","PLNT"]
[null,"ACCT399L"]
[]
[null,"ACCT399LRCL","P","P","P","P","P",null,"PLNT","PLNT","PLNT","PLNT","PLNT"]
[]
[]
[]
[]
[null,"ACCT1011390S","G-SITUS","G-SITUS","G-SITUS","TD","TD",null,"PLNT","PLNT","PLNT","PLNT","PLNT"]
[null,"ACCT1011390SG","P","P","P","P","P",null,"PLNT","PLNT","PLNT","PLNT","PLNT"]
[null,"ACCT1011390SOU","PTD","PTD","PTD","PTD","PTD",null,"PLNT","PLNT","PLNT","PLNT","PLNT"]
[null,"ACCT1011390"]
[]
[null,"ACCT1011390RCL","PTD","PTD","PTD","PTD","PTD",null,"PLNT","PLNT","PLNT","PLNT","PLNT"]
[]
[]
[]
[]
[null,"ACCT101392SOP","LABOR","LABOR","LABOR","PTD","PTD",null,"PLNT","PLNT","PLNT","PLNT","PLNT"]
[null,"ACCT1011392"]
[]
[null,"ACCT1011392RCL","LABOR","LABOR","LABOR","PTD","PTD",null,"PLNT","PLNT","PLNT","PLNT","PLNT"]
[]
[]
[]
[null,"ACCTGPS","G-SITUS","G-SITUS","G-SITUS","TD","TD",null,"PLNT","PLNT","PLNT","PLNT","PLNT"]
[null,"ACCTGPSO","PTD","PTD","PTD","PTD","PTD",null,"PLNT","PLNT","PLNT","PLNT","PLNT"]
[null,"ACCTGPCN","CUST","CUST","CUST","CUST","CUST",null,"CUST","CUST","CUST","CUST","CUST"]
[null,"ACCTGPSG","G-SG","G-SG","G-SG","G-SG","G-SG",null,"PLNT","PLNT","PLNT","PLNT","PLNT"]
[null,"ACCTGPSGP","G-DGP","G-DGP","G-DGP","G-DGP","G-DGP",null,"PLNT","PLNT","PLNT","PLNT","PLNT"]
[null,"ACCTGPSGU","G-DGU","G-DGU","G-DGU","G-DGU","G-DGU",null,"PLNT","PLNT","PLNT","PLNT","PLNT"]
[null,"ACCTGP"]
[]
[]
[null,"ACCT399GS","G-SITUS","G-SITUS","G-SITUS","TD","TD",null,"PLNT","PLNT","PLNT","PLNT","PLNT"]
[null,"ACCT399GSO","PTD","PTD","PTD","PTD","PTD",null,"PLNT","PLNT","PLNT","PLNT","PLNT"]
[null,"ACCT399GSG","G-SG","G-SG","G-SG","G-SG","G-SG",null,"PLNT","PLNT","PLNT","PLNT","PLNT"]
[null,"ACCT399GDGP","G-DGP","G-DGP","G-DGP","G-DGP","G-DGP",null,"PLNT","PLNT","PLNT","PLNT","PLNT"]
[null,"ACCT399GDGU","G-DGU","G-DGU","G-DGU","G-DGU","G-DGU",null,"PLNT","PLNT","PLNT","PLNT","PLNT"]
[null,"ACCT399G"]
[]
[]
[]
[]
[]
[null,"RANGE","FUNC","FUNC","FUNC","FUNC","FUNC",null,"DIS","DIS","DIS","DIS","DIS"]
[null,"NAME","FACTOR","FACTOR","FACTOR","FACTOR","FACTOR",null,"SPLIT","SPLIT","SPLIT","SPLIT","SPLIT"]
[]
[null,"ACCT301S","I-SITUS","I-SITUS","I-SITUS","TD","TD",null,"PLNT","PLNT","PLNT","PLNT","PLNT"]
[null,"ACCT301SO","PTD","PTD","PTD","PTD","PTD",null,"PLNT","PLNT","PLNT","PLNT","PLNT"]
[null,"ACCT301CAGW","I-SG","I-SG","I-SG","I-SG","I-SG",null,"PLNT","PLNT","PLNT","PLNT","PLNT"]
[null,"ACCT301"]
[]
[null,"ACCT302S","I-SITUS","I-SITUS","I-SITUS","TD","TD",null,"PLNT","PLNT","PLNT","PLNT","PLNT"]
[null,"ACCT302CAGW","I-SG","I-SG","I-SG","I-SG","I-SG",null,"PLNT","PLNT","PLNT","PLNT","PLNT"]
[null,"ACCT302DGP","I-DGP","I-DGP","I-DGP","I-DGP","I-DGP",null,"PLNT","PLNT","PLNT","PLNT","PLNT"]
[null,"ACCT302DGU","I-DGU","I-DGU","I-DGU","I-DGU","I-DGU",null,"PLNT","PLNT","PLNT","PLNT","PLNT"]
[null,"ACCT302"]
[]
[]
[null,"ACCT303S","I-SITUS","I-SITUS","I-SITUS","TD","TD",null,"PLNT","PLNT","PLNT","PLNT","PLNT"]
[null,"ACCT303CAGW","I-SG","I-SG","I-SG","I-SG","I-SG",null,"PLNT","PLNT","PLNT","PLNT","PLNT"]
[null,"ACCT303SO","PTD","PTD","PTD","PTD","PTD",null,"PLNT","PLNT","PLNT","PLNT","PLNT"]
[null,"ACCT303SE","P","P","P","P","P",null,"PLNT","PLNT","PLNT","PLNT","PLNT"]
[null,"ACCT303CN","CUST","CUST","CUST","CUST","CUST",null,"CUST","CUST","CUST","CUST","CUST"]
[null,"ACCT303DGU","I-DGU","I-DGU","I-DGU","I-DGU","I-DGU",null,"PLNT","PLNT","PLNT","PLNT","PLNT"]
[null,"ACCT303DGP","I-DGP","I-DGP","I-DGP","I-DGP","I-DGP",null,"PLNT","PLNT","PLNT","PLNT","PLNT"]
[null,"ACCT303JBG","P","P","I-SG","I-SG","I-SG",null,"PLNT","PLNT","PLNT","PLNT","PLNT"]
[null,"ACCT303"]
[]
[null,"ACCT399DOTH","I-SITUS","I-SITUS","I-SITUS","TD","TD",null,"PLNT","PLNT","PLNT","PLNT","PLNT"]
[null,"ACCT303"]
[]
[null,"ACCTI00S","I-SITUS","I-SITUS","I-SITUS","TD","TD",null,"PLNT","PLNT","PLNT","PLNT","PLNT"]
[null,"ACCTI00SG","I-SG","I-SG","I-SG","I-SG","I-SG",null,"PLNT","PLNT","PLNT","PLNT","PLNT"]
[null,"ACCTI00DGU","I-DGU","I-DGU","I-DGU","I-DGU","I-DGU",null,"PLNT","PLNT","PLNT","PLNT","PLNT"]
[null,"ACCTI00SO","PTD","PTD","PTD","PTD","PTD",null,"PLNT","PLNT","PLNT","PLNT","PLNT"]
[null,"ACCTI00"]
[]
[]
[]
[]
[]
[]
[]
[]
[null,"RANGE","FUNC","FUNC","FUNC","FUNC","FUNC",null,"DIS","DIS","DIS","DIS","DIS"]
[null,"NAME","FACTOR","FACTOR","FACTOR","FACTOR","FACTOR",null,"SPLIT","SPLIT","SPLIT","SPLIT","SPLIT"]
[]
[null,"ACCT105S","DPW","DPW","DPW","DPW","DPW",null,"PLNT","PLNT","PLNT","PLNT","PLNT"]
[null,"ACCT105CAGW","P","P","P","P","P",null,"PLNT","PLNT","PLNT","PLNT","PLNT"]
[null,"ACCT105SNPT","T","T","T","T","T",null,"PLNT","PLNT","PLNT","PLNT","PLNT"]
[null,"ACCT105SNPP","P","P","P","P","P",null,"PLNT","PLNT","PLNT","PLNT","PLNT"]
[null,"ACCT105SE","P","P","P","P","P",null,"PLNT","PLNT","PLNT","PLNT","PLNT"]
[null,"ACCT105SNPG","G","G","G","G","G",null,"PLNT","PLNT","PLNT","PLNT","PLNT"]
[null,"ACCT105"]
[]
[]
[null,"ACCT114S","P","P","P","P","P",null,"PLNT","PLNT","PLNT","PLNT","PLNT"]
[null,"ACCT114CAGW","P","P","P","P","P",null,"PLNT","PLNT","PLNT","PLNT","PLNT"]
[null,"ACCT114DGP","P","P","P","P","P",null,"PLNT","PLNT","PLNT","PLNT","PLNT"]
[null,"ACCT114"]
[]
[]
[null,"ACCT120SE","P","P","P","P","P",null,"PLNT","PLNT","PLNT","PLNT","PLNT"]
[null,"ACCT120"]
[]
[]
[null,"ACCT124S","DMSC","DMSC","DMSC","DMSC","DMSC",null,"MISC","MISC","MISC","MISC","MISC"]
[null,"ACCT124SO","DMSC","DMSC","DMSC","DMSC","DMSC",null,"MISC","MISC","MISC","MISC","MISC"]
[null,"ACCT124"]
[]
[]
[null,"ACCT182S","DMSC","DMSC","DMSC","DMSC","DMSC",null,"MISC","MISC","MISC","MISC","MISC"]
[null,"ACCT182SG","DMSC","DMSC","DMSC","DMSC","DMSC",null,"MISC","MISC","MISC","MISC","MISC"]
[null,"ACCT182SGCT","DMSC","DMSC","DMSC","DMSC","DMSC",null,"MISC","MISC","MISC","MISC","MISC"]
[null,"ACCT182SO","DMSC","DMSC","DMSC","DMSC","DMSC",null,"MISC","MISC","MISC","MISC","MISC"]
[null,"ACCT182"]
[]
[]
[null,"ACCT186S","DMSC","DMSC","DMSC","DMSC","DMSC",null,"MISC","MISC","MISC","MISC","MISC"]
[null,"ACCT186CN","CUST","CUST","CUST","CUST","CUST",null,"CUST","CUST","CUST","CUST","CUST"]
[null,"ACCT186CNP","CUST","CUST","CUST","CUST","CUST",null,"CUST","CUST","CUST","CUST","CUST"]
[null,"ACCT186SG","DMSC","DMSC","DMSC","DMSC","DMSC",null,"MISC","MISC","MISC","MISC","MISC"]
[null,"ACCT186SO","DMSC","DMSC","DMSC","DMSC","DMSC",null,"MISC","MISC","MISC","MISC","MISC"]
[null,"ACCT186"]
[]
[]
[]
[]
[null,"ACCT151SE","P","P","P","P","P",null,"PLNT","PLNT","PLNT","PLNT","PLNT"]
[null,"ACCT151JBE","P","P","P","P","P",null,"PLNT","PLNT","PLNT","PLNT","PLNT"]
[null,"ACCT151DEU","P","P","P","P","P",null,"PLNT","PLNT","PLNT","PLNT","PLNT"]
[null,"ACCT151"]
[]
[]
[null,"ACCT152SE","P","P","P","P","P",null,"PLNT","PLNT","PLNT","PLNT","PLNT"]
[null,"ACCT152"]
[]
[]
[null,"ACCT25316SE","P","P","P","P","P",null,"PLNT","PLNT","PLNT","PLNT","PLNT"]
[null,"ACCT25316"]
[]
[]
[null,"ACCT25317SE","P","P","P","P","P",null,"PLNT","PLNT","PLNT","PLNT","PLNT"]
[null,"ACCT25317"]
[]
[]
[null,"ACCT25319SE","P","P","P","P","P",null,"PLNT","PLNT","PLNT","PLNT","PLNT"]
[null,"ACCT25319"]
[]
[]
[]
[]
[null,"ACCT154S","MSS","MSS","MSS","MSS","MSS",null,"PLNT","PLNT","PLNT","PLNT","PLNT"]
[null,"ACCT154CAGW","MSS","MSS","MSS","MSS","MSS",null,"PLNT","PLNT","PLNT","PLNT","PLNT"]
[null,"ACCT154SE","MSS","MSS","MSS","MSS","MSS",null,"PLNT","PLNT","PLNT","PLNT","PLNT"]
[null,"ACCT154SO","MSS","MSS","MSS","MSS","MSS",null,"PLNT","PLNT","PLNT","PLNT","PLNT"]
[null,"ACCT154SNPPS","MSS","MSS","MSS","MSS","MSS",null,"PLNT","PLNT","PLNT","PLNT","PLNT"]
[null,"ACCT154SNPPH","MSS","MSS","MSS","MSS","MSS",null,"PLNT","PLNT","PLNT","PLNT","PLNT"]
[null,"ACCT154SNPD","MSS","MSS","MSS","MSS","MSS",null,"PLNT","PLNT","PLNT","PLNT","PLNT"]
[null,"ACCT154SNPT","MSS","MSS","MSS","MSS","MSS",null,"PLNT","PLNT","PLNT","PLNT","PLNT"]
[null,"ACCT154DGU","MSS","MSS","MSS","MSS","MSS",null,"PLNT","PLNT","PLNT","PLNT","PLNT"]
[null,"ACCT154DGP","MSS","MSS","MSS","MSS","MSS",null,"PLNT","PLNT","PLNT","PLNT","PLNT"]
[null,"ACCT154JBG","MSS","MSS","MSS","MSS","MSS",null,"PLNT","PLNT","PLNT","PLNT","PLNT"]
[null,"ACCT154SNPP","MSS","MSS","MSS","MSS","MSS",null,"PLNT","PLNT","PLNT","PLNT","PLNT"]
[null,"ACCT154CAGE","MSS","MSS","MSS","MSS","MSS",null,"PLNT","PLNT","PLNT","PLNT","PLNT"]
[null,"ACCT154"]
[]
[]
[]
[]
[null,"RANGE","FUNC","FUNC","FUNC","FUNC","FUNC",null,"DIS","DIS","DIS","DIS","DIS"]
[null,"NAME","FACTOR","FACTOR","FACTOR","FACTOR","FACTOR",null,"SPLIT","SPLIT","SPLIT","SPLIT","SPLIT"]
[]
[null,"ACCT163SO","MSS","MSS","MSS","MSS","MSS",null,"PLNT","PLNT","PLNT","PLNT","PLNT"]
[]
[null,"ACCT163"]
[]
[]
[null,"ACCT25318SNPPS","MSS","MSS","MSS","MSS","MSS",null,"PLNT","PLNT","PLNT","PLNT","PLNT"]
[]
[null,"ACCT25318"]
[]
[]
[]
[]
[null,"ACCT165S","DMSC","DMSC","DMSC","DMSC","DMSC",null,"PLNT","PLNT","PLNT","PLNT","PLNT"]
[null,"ACCT165GPS","GP","GP","GP","GP","GP",null,"PLNT","PLNT","PLNT","PLNT","PLNT"]
[null,"ACCT165SG","PT","PT","PT","PT","PT",null,"PLNT","PLNT","PLNT","PLNT","PLNT"]
[null,"ACCT165SE","P","P","P","P","P",null,"PLNT","PLNT","PLNT","PLNT","PLNT"]
[null,"ACCT165SO","PTD","PTD","PTD","PTD","PTD",null,"PLNT","PLNT","PLNT","PLNT","PLNT"]
[null,"ACCT165"]
[]
[]
[null,"ACCT182MS","P","P","P","P","P",null,"PLNT","PLNT","PLNT","PLNT","PLNT"]
[null,"ACCT182MCAGW","P","P","P","P","P",null,"PLNT","PLNT","PLNT","PLNT","PLNT"]
[null,"ACCT182MCAGE","P","P","P","P","P",null,"PLNT","PLNT","PLNT","PLNT","PLNT"]
[null,"ACCT182MCAEW","P","P","P","P","P",null,"PLNT","PLNT","PLNT","PLNT","PLNT"]
[null,"ACCT182MCAEE","P","P","P","P","P",null,"PLNT","PLNT","PLNT","PLNT","PLNT"]
[null,"ACCT182MSE","P","P","P","P","P",null,"PLNT","PLNT","PLNT","PLNT","PLNT"]
[null,"ACCT182MSO","T","T","T","T","T",null,"PLNT","PLNT","PLNT","PLNT","PLNT"]
[null,"ACCT182M"]
[]
[]
[null,"ACCT186MS","T","T","T","T","T",null,"PLNT","PLNT","PLNT","PLNT","PLNT"]
[null,"ACCT186MCAEW","P","P","P","P","P",null,"PLNT","PLNT","PLNT","PLNT","PLNT"]
[null,"ACCT186MCAEE","P","P","P","P","P",null,"PLNT","PLNT","PLNT","PLNT","PLNT"]
[null,"ACCT186MCAGW","P","P","P","P","P",null,"PLNT","PLNT","PLNT","PLNT","PLNT"]
[null,"ACCT186MSO","LABOR","LABOR","LABOR","DDSO6","DDSO6",null,"PLNT","PLNT","PLNT","PLNT","PLNT"]
[null,"ACCT186MSE","P","P","P","P","P",null,"PLNT","PLNT","PLNT","PLNT","PLNT"]
[null,"ACCT186MSNPPS","P","P","P","P","P",null,"PLNT","PLNT","PLNT","PLNT","PLNT"]
[null,"ACCT186MEXCTAX","GP","GP","GP","GP","GP",null,"PLNT","PLNT","PLNT","PLNT","PLNT"]
[null,"ACCT186M"]
[]
[]
[]
[null,"ACCTCWCS","CWC","CWC","CWC","CWC","CWC",null,"PLNT","PLNT","PLNT","PLNT","PLNT"]
[null,"ACCTCWCSO","CWC","CWC","CWC","CWC","CWC",null,"PLNT","PLNT","PLNT","PLNT","PLNT"]
[null,"ACCTCWCSE","CWC","CWC","CWC","CWC","CWC",null,"PLNT","PLNT","PLNT","PLNT","PLNT"]
[null,"ACCTCWC"]
[]
[]
[null,"ACCTOWCSNP","GP","GP","GP","GP","GP",null,"PLNT","PLNT","PLNT","PLNT","PLNT"]
[null,"ACCTOWCSG","GP","GP","GP","GP","GP",null,"PLNT","PLNT","PLNT","PLNT","PLNT"]
[null,"ACCTOWCSO","GP","GP","GP","GP","GP",null,"PLNT","PLNT","PLNT","PLNT","PLNT"]
[null,"ACCTOWCS","PTD","PTD","PTD","PTD","PTD",null,"PLNT","PLNT","PLNT","PLNT","PLNT"]
[null,"ACCTOWCSO","PTD","PTD","PTD","PTD","PTD",null,"PLNT","PLNT","PLNT","PLNT","PLNT"]
[null,"ACCTOWCSE","P","P","P","P","P",null,"PLNT","PLNT","PLNT","PLNT","PLNT"]
[null,"ACCTOWCSE","P","P","P","P","P",null,"PLNT","PLNT","PLNT","PLNT","PLNT"]
[null,"ACCTOWCS","P","P","P","P","P",null,"PLNT","PLNT","PLNT","PLNT","PLNT"]
[null,"ACCTOWCDEU","P","P","P","P","P",null,"PLNT","PLNT","PLNT","PLNT","PLNT"]
[null,"ACCTOWCCAEE","P","P","P","P","P",null,"PLNT","PLNT","PLNT","PLNT","PLNT"]
[null,"ACCTOWC"]
[]
[]
[]
[]
[]
[null,"ACCT18221S","P","P","P","P","P",null,"PLNT","PLNT","PLNT","PLNT","PLNT"]
[]
[null,"ACCT18221"]
[]
[]
[null,"ACCT18222SE","P","P","P","P","P",null,"PLNT","PLNT","PLNT","PLNT","PLNT"]
[null,"ACCT18222TROJP","P","P","P","P","P",null,"PLNT","PLNT","PLNT","PLNT","PLNT"]
[null,"ACCT18222TROJD","P","P","P","P","P",null,"PLNT","PLNT","PLNT","PLNT","PLNT"]
[null,"ACCT18222"]
[]
[]
[null,"ACCT1869S","P","P","P","P","P",null,"PLNT","PLNT","PLNT","PLNT","PLNT"]
[null,"ACCT1869DNPPNP","P","P","P","P","P",null,"PLNT","PLNT","PLNT","PLNT","PLNT"]
[null,"ACCT1869"]
[]
[]
[null,"ACCT141DGU","P","P","P","P","P",null,"PLNT","PLNT","PLNT","PLNT","PLNT"]
[]
[null,"ACCT141"]
[]
[]
[]
[]
[]
[]
[]
[]
[null,"RANGE","FUNC","FUNC","FUNC","FUNC","FUNC",null,"DIS","DIS","DIS","DIS","DIS"]
[null,"NAME","FACTOR","FACTOR","FACTOR","FACTOR","FACTOR",null,"SPLIT","SPLIT","SPLIT","SPLIT","SPLIT"]
[]
[null,"ACCT235CSU","CUST","CUST","CUST","CUST","CUST",null,"CUST","CUST","CUST","CUST","CUST"]
[null,"ACCT235CN","CUST","CUST","CUST","CUST","CUST",null,"CUST","CUST","CUST","CUST","CUST"]
[null,"ACCT235"]
[]
[]
[null,"ACCT2281SO","PTD","PTD","PTD","PTD","PTD",null,"PLNT","PLNT","PLNT","PLNT","PLNT"]
[null,"ACCT2281"]
[]
[]
[null,"ACCT2282SO","PTD","PTD","PTD","PTD","PTD",null,"PLNT","PLNT","PLNT","PLNT","PLNT"]
[null,"ACCT2282"]
[]
[]
[null,"ACCT2283SO","PTD","PTD","PTD","PTD","PTD",null,"PLNT","PLNT","PLNT","PLNT","PLNT"]
[null,"ACCT2283S","PTD","PTD","PTD","PTD","PTD",null,"PLNT","PLNT","PLNT","PLNT","PLNT"]
[null,"ACCT2283"]
[]
[null,"ACCT254SO","PTD","PTD","PTD","PTD","PTD",null,"PLNT","PLNT","PLNT","PLNT","PLNT"]
[]
[]
[null,"ACCT22844CAGW","P","P","P","P","P",null,"PLNT","PLNT","PLNT","PLNT","PLNT"]
[null,"ACCT22844"]
[]
[null,"ACCT22842TROJD","P","P","P","P","P",null,"PLNT","PLNT","PLNT","PLNT","PLNT"]
[null,"ACCT254SE","P","P","P","P","P",null,"PLNT","PLNT","PLNT","PLNT","PLNT"]
[null,"ACCT254S","P","P","P","P","P",null,"PLNT","PLNT","PLNT","PLNT","PLNT"]
[]
[]
[]
[null,"ACCT252S","DPW","DPW","DPW","DPW","DPW",null,"PLNT","PLNT","PLNT","PLNT","PLNT"]
[null,"ACCT252SNPD","DPW","DPW","DPW","DPW","DPW",null,"PLNT","PLNT","PLNT","PLNT","PLNT"]
[null,"ACCT252SG","T","T","T","T","T",null,"PLNT","PLNT","PLNT","PLNT","PLNT"]
[null,"ACCT252SO","DPW","DPW","DPW","DPW","DPW",null,"PLNT","PLNT","PLNT","PLNT","PLNT"]
[null,"ACCT252CN","CUST","CUST","CUST","CUST","CUST",null,"CUST","CUST","CUST","CUST","CUST"]
[null,"ACCT252"]
[]
[null,"ACCT25398SE","P","P","P","P","P",null,"PLNT","PLNT","PLNT","PLNT","PLNT"]
[]
[]
[]
[null,"ACCT25399S","P","P","P","DPW","DPW",null,"PLNT","PLNT","PLNT","PLNT","PLNT"]
[null,"ACCT25399GPS","GP","GP","GP","GP","GP",null,"PLNT","PLNT","PLNT","PLNT","PLNT"]
[null,"ACCT25399SO","GP","GP","GP","GP","GP",null,"PLNT","PLNT","PLNT","PLNT","PLNT"]
[null,"ACCT25399CAGW","P","P","P","P","P",null,"PLNT","PLNT","PLNT","PLNT","PLNT"]
[null,"ACCT25399SE","P","P","P","P","P",null,"PLNT","PLNT","PLNT","PLNT","PLNT"]
[null,"ACCT25399"]
[]
[]
[null,"ACCT190S","P","P","P","GP","GP",null,"PLNT","PLNT","PLNT","PLNT","PLNT"]
[null,"ACCT190CAGW","P","P","P","P","P",null,"PLNT","PLNT","PLNT","PLNT","PLNT"]
[null,"ACCT190SO","LABOR","LABOR","LABOR","LABOR","LABOR",null,"DISom","DISom","DISom","DISom","DISom"]
[null,"ACCT190CN","CUST","CUST","CUST","CUST","CUST",null,"CUST","CUST","PLNT","PLNT","PLNT"]
[null,"ACCT190BADDEBT","CUST","CUST","CUST","CUST","CUST",null,"CUST","CUST","CUST","CUST","CUST"]
[null,"ACCT190TROJP","P","P","P","P","P",null,"PLNT","PLNT","PLNT","PLNT","PLNT"]
[null,"ACCT190JBE","P","P","P","P","P",null,"PLNT","PLNT","PLNT","PLNT","PLNT"]
[null,"ACCT190SE","P","P","P","P","P",null,"PLNT","PLNT","PLNT","PLNT","PLNT"]
[null,"ACCT190SNP","PTD","PTD","PTD","PTD","PTD",null,"PLNT","PLNT","PLNT","PLNT","PLNT"]
[null,"ACCT190SNPD","DPW","DPW","DPW","GP","GP",null,"PLNT","PLNT","PLNT","PLNT","PLNT"]
[null,"ACCT190"," "," "," "]
[]
[]
[null,"ACCT281S","P","P","P","P","P",null,"PLNT","PLNT","PLNT","PLNT","PLNT"]
[null,"ACCT281DGP","PT","PT","PT","PT","PT",null,"PLNT","PLNT","PLNT","PLNT","PLNT"]
[null,"ACCT281DNPTU","T","T","T","T","T",null,"PLNT","PLNT","PLNT","PLNT","PLNT"]
[null,"ACCT281"]
[]
[]
[null,"ACCT282S","GP","GP","GP","GP","GP",null,"PLNT","PLNT","PLNT","PLNT","PLNT"]
[null,"ACCT282DITBAL","ACCMDIT","ACCMDIT","ACCMDIT","ACCMDIT","ACCMDIT",null,"PLNT","PLNT","PLNT","PLNT","PLNT"]
[null,"ACCT282DGP","GP","GP","GP","GP","GP",null,"PLNT","PLNT","PLNT","PLNT","PLNT"]
[null,"ACCT282SO","LABOR","LABOR","LABOR","LABOR","LABOR",null,"DISom","DISom","DISom","DISom","DISom"]
[null,"ACCT282JBE","P","P","P","P","P",null,"PLNT","PLNT","PLNT","PLNT","PLNT"]
[null,"ACCT282SE","P","P","P","P","P",null,"PLNT","PLNT","PLNT","PLNT","PLNT"]
[null,"ACCT282CAGW","P","P","P","P","P",null,"PLNT","PLNT","PLNT","PLNT","PLNT"]
[null,"ACCT282"]
[]
[]
[null,"ACCT283S","GP","GP","GP","GP","GP",null,"PLNT","PLNT","PLNT","PLNT","PLNT"]
[null,"ACCT283CAGW","P","P","P","P","P",null,"PLNT","PLNT","PLNT","PLNT","PLNT"]
[null,"ACCT283SE","P","P","P","P","P",null,"PLNT","PLNT","PLNT","PLNT","PLNT"]
[null,"ACCT283SO","LABOR","LABOR","LABOR","LABOR","LABOR",null,"DISom","DISom","DISom","DISom","DISom"]
[null,"ACCT283GPS","GP","GP","GP","GP","GP",null,"PLNT","PLNT","PLNT","PLNT","PLNT"]
[null,"ACCT283SNP","PTD","PTD","PTD","PTD","PTD",null,"PLNT","PLNT","PLNT","PLNT","PLNT"]
[null,"ACCT283TROJD","P","P","P","P","P",null,"PLNT","PLNT","PLNT","PLNT","PLNT"]
[null,"ACCT283SNPD","PTD","PTD","DPW","DPW","DPW",null,"PLNT","PLNT","PLNT","PLNT","PLNT"]
[null,"ACCT283JBE","P","P","P","P","P",null,"PLNT","PLNT","PLNT","PLNT","PLNT"]
[null,"ACCT283"," "," "," "]
[]
[]
[]
[]
[null,"ACCT255S","PTD","PTD","PTD","PTD","PTD",null,"PLNT","PLNT","PLNT","PLNT","PLNT"]
[null,"ACCT255SG","PTD","PTD","PTD","PTD","PTD",null,"PLNT","PLNT","PLNT","PLNT","PLNT"]
[null,"ACCT255SG","PTD","PTD","PTD","PTD","PTD",null,"PLNT","PLNT","PLNT","PLNT","PLNT"]
[null,"ACCT255SG","PTD","PTD","PTD","PTD","PTD",null,"PLNT","PLNT","PLNT","PLNT","PLNT"]
[null,"ACCT255SG","PTD","PTD","PTD","PTD","PTD",null,"PLNT","PLNT","PLNT","PLNT","PLNT"]
[null,"ACCT255SG","PTD","PTD","PTD","PTD","PTD",null,"PLNT","PLNT","PLNT","PLNT","PLNT"]
[null,"ACCT255SG","PTD","PTD","PTD","PTD","PTD",null,"PLNT","PLNT","PLNT","PLNT","PLNT"]
[null,"ACCT255SG","PTD","PTD","PTD","PTD","PTD",null,"PLNT","PLNT","PLNT","PLNT","PLNT"]
[null,"ACCT255"]
[]
[]
[]
[]
[]
[]
[null,"RANGE","FUNC","FUNC","FUNC","FUNC","FUNC",null,"DIS","DIS","DIS","DIS","DIS"]
[null,"NAME","FACTOR","FACTOR","FACTOR","FACTOR","FACTOR",null,"SPLIT","SPLIT","SPLIT","SPLIT","SPLIT"]
[]
[null,"ACCT108SPS ","P","P","P","P","P"]
[null,"ACCT108SPDGU","P","P","P","P","P"]
[null,"ACCT108SPCAGW","P","P","P","P","P"]
[null,"ACCT108SPCAEW","P","P","P","P","P"]
[null,"ACCT108SPJBG","P","P","P","P","P"]
[null,"ACCT108SP"]
[]
[]
[null,"ACCT108NPDGP","P","P","P","P","P"]
[null,"ACCT108NPDGU","P","P","P","P","P"]
[null,"ACCT108NPSG","P","P","P","P","P"]
[null,"ACCT108NP"]
[]
[]
[]
[null,"ACCT108HPS","P","P","P","P","P"]
[null,"ACCT108HPDGU","P","P","P","P","P"]
[null,"ACCT108HPCAEW","P","P","P","P","P"]
[null,"ACCT108HPCAGW","P","P","P","P","P"]
[null,"ACCT108HP"]
[]
[]
[null,"ACCT108OPS","P","P","P","P","P"]
[null,"ACCT108OPDGU","P","P","P","P","P"]
[null,"ACCT108OPDGP","P","P","P","P","P"]
[null,"ACCT108OPCAGW","P","P","P","P","P"]
[null,"ACCT108OPCAEW","P","P","P","P","P"]
[null,"ACCT108OPCAGW","P","P","P","P","P"]
[null,"ACCT108OP"]
[]
[]
[null,"ACCT108EPDGP","P","P","P","P","P"]
[null,"ACCT108EPSG","P","P","P","P","P"]
[null,"ACCT108EP"]
[]
[]
[]
[]
[]
[]
[]
[]
[]
[]
[]
[null,"RANGE","FUNC","FUNC","FUNC","FUNC","FUNC",null,"DIS","DIS","DIS","DIS","DIS"]
[null,"NAME","FACTOR","FACTOR","FACTOR","FACTOR","FACTOR",null,"SPLIT","SPLIT","SPLIT","SPLIT","SPLIT"]
[]
[null,"ACCT108TPDGP","T","T","T","T","T"]
[null,"ACCT108TPDGU","T","T","T","T","T"]
[null,"ACCT108TPJBG","T","T","T","T","T"]
[null,"ACCT108TPCAGW","T","T","T","T","T"]
[null,"ACCT108TP"]
[]
[]
[]
[]
[null,"RANGE","FUNC","FUNC","FUNC","FUNC","FUNC",null,"DIS","DIS","DIS","DIS","DIS"]
[null,"NAME","FACTOR","FACTOR","FACTOR","FACTOR","FACTOR",null,"SPLIT","SPLIT","SPLIT","SPLIT","SPLIT"]
[]
[null,"ACCT108360S","DPW","DPW","DPW","DPW","DPW",null,"PLNT2","PLNT2","PLNT2","PLNT2","PLNT2"]
[null,"ACCT108360"]
[]
[]
[null,"ACCT108361S","DPW","DPW","DPW","DPW","DPW",null,"PLNT2","PLNT2","PLNT2","PLNT2","PLNT2"]
[null,"ACCT108361"]
[]
[]
[null,"ACCT108362S","DPW","DPW","DPW","DPW","DPW",null,"SUBS","SUBS","SUBS","SUBS","SUBS"]
[null,"ACCT108362"]
[]
[]
[null,"ACCT108364S","DPW","DPW","DPW","DPW","DPW",null,"PC","PC","PC","PC","PC"]
[null,"ACCT108364"]
[]
[]
[null,"ACCT108365S","DPW","DPW","DPW","DPW","DPW",null,"PC","PC","PC","PC","PC"]
[null,"ACCT108365"]
[]
[]
[null,"ACCT108366S","DPW","DPW","DPW","DPW","DPW",null,"PC","PC","PC","PC","PC"]
[null,"ACCT108366"]
[]
[]
[null,"ACCT108367S","DPW","DPW","DPW","DPW","DPW",null,"PC","PC","PC","PC","PC"]
[null,"ACCT108367"]
[]
[]
[null,"ACCT108368S","DPW","DPW","DPW","DPW","DPW",null,"XFMR","XFMR","XFMR","XFMR","XFMR"]
[null,"ACCT108368"]
[]
[]
[null,"ACCT108369S","DPW","DPW","DPW","DPW","DPW",null,"SERV","SERV","SERV","SERV","SERV"]
[null,"ACCT108369"]
[]
[]
[null,"ACCT108370S","DPW","DPW","DPW","DPW","DPW",null,"METR","METR","METR","METR","METR"]
[null,"ACCT108370"]
[]
[]
[null,"ACCT108371S","DPW","DPW","DPW","DPW","DPW",null,"PC","PC","PC","PC","PC"]
[null,"ACCT108371"]
[]
[]
[null,"ACCT108372S","DPW","DPW","DPW","DPW","DPW",null,"PLNT2","PLNT2","PLNT2","PLNT2","PLNT2"]
[null,"ACCT108372"]
[]
[]
[null,"ACCT108373S","DPW","DPW","DPW","DPW","DPW",null,"PC","PC","PC","PC","PC"]
[null,"ACCT108373"]
[]
[]
[null,"ACCT108D00S","DPW","DPW","DPW","DPW","DPW",null,"PLNT","PLNT","PLNT","PLNT","PLNT"]
[null,"ACCT108D00"]
[]
[]
[null,"ACCT108DSS","DPW","DPW","DPW","DPW","DPW",null,"PLNT","PLNT","PLNT","PLNT","PLNT"]
[null,"ACCT108DS"]
[]
[]
[null,"ACCT108D_S","DPW","DPW","DPW","DPW","DPW",null,"PLNT","PLNT","PLNT","PLNT","PLNT"]
[null,"ACCT108D"]
[]
[]
[]
[]
[]
[]
[null,"RANGE","FUNC","FUNC","FUNC","FUNC","FUNC",null,"DIS","DIS","DIS","DIS","DIS"]
[null,"NAME","FACTOR","FACTOR","FACTOR","FACTOR","FACTOR",null,"SPLIT","SPLIT","SPLIT","SPLIT","SPLIT"]
[]
[null,"ACCT108GPS","G-SITUS","G-SITUS","G-SITUS","TD","TD",null,"PLNT","PLNT","PLNT","PLNT","PLNT"]
[null,"ACCT108GPDGP","G-DGP","G-DGP","G-DGP","G-DGP","G-DGP",null,"PLNT","PLNT","PLNT","PLNT","PLNT"]
[null,"ACCT108GPDGU","G-DGU","G-DGU","G-DGU","G-DGU","G-DGU",null,"PLNT","PLNT","PLNT","PLNT","PLNT"]
[null,"ACCT108GPCAGW","G-SG","G-SG","G-SG","G-SG","G-SG",null,"PLNT","PLNT","PLNT","PLNT","PLNT"]
[null,"ACCT108GPCN","CUST","CUST","CUST","CUST","CUST",null,"CUST","CUST","CUST","CUST","CUST"]
[null,"ACCT108GPSO","PTD","PTD","PTD","PTD","PTD",null,"PLNT","PLNT","PLNT","PLNT","PLNT"]
[null,"ACCT108GPSE","P","P","P","P","P",null,"PLNT","PLNT","PLNT","PLNT","PLNT"]
[null,"ACCT108GPJBG","G-SG","G-SG","G-SG","P","P",null,"PLNT","PLNT","PLNT","PLNT","PLNT"]
[null,"ACCT108GPCAGE","G-SG","G-SG","P","P","P",null,"PLNT","PLNT","PLNT","PLNT","PLNT"]
[null,"ACCT108GPCAGE","G-SG","G-SG","P","P","P",null,"PLNT","PLNT","PLNT","PLNT","PLNT"]
[null,"ACCT108GP"]
[]
[]
[]
[null,"ACCT108MPS","P","P","P","P","P"]
[null,"ACCT108MPSE","P","P","P","P","P"]
[]
[]
[null,"ACCT108MPDOTH","P","P","P","P","P"]
[null,"ACCT108MP"]
[]
[]
[null,"ACCT1081390SO","PTD","PTD","PTD","PTD","PTD",null,"PLNT","PLNT","PLNT","PLNT","PLNT"]
[]
[]
[null,"ACCT1081390RCL","P","P","P","P","P"]
[null,"ACCT1081390"]
[]
[]
[null,"ACCT1081399S","P","P","P","P","P",null,"PLNT","PLNT","PLNT","PLNT","PLNT"]
[null,"ACCT1081399SE","P","P","P","P","P",null,"PLNT","PLNT","PLNT","PLNT","PLNT"]
[]
[]
[null,"ACCT1081399RCL","P","P","P","P","P"]
[null,"ACCT1081399"]
[]
[]
[]
[]
[]
[]
[]
[]
[]
[]
[]
[]
[null,"RANGE","FUNC","FUNC","FUNC","FUNC","FUNC",null,"DIS","DIS","DIS","DIS","DIS"]
[null,"NAME","FACTOR","FACTOR","FACTOR","FACTOR","FACTOR",null,"SPLIT","SPLIT","SPLIT","SPLIT","SPLIT"]
[]
[]
[null,"ACCT111SPSGP","P","P","P","P","P",null,"PLNT","PLNT","PLNT","PLNT","PLNT"]
[null,"ACCT111SPSG","P","P","P","P","P",null,"PLNT","PLNT","PLNT","PLNT","PLNT"]
[null,"ACCT111SP"]
[]
[]
[]
[null,"ACCT111GPS","G-SITUS","G-SITUS","G-SITUS","TD","TD",null,"PLNT","PLNT","PLNT","PLNT","PLNT"]
[null,"ACCT111GPCN","CUST","CUST","CUST","CUST","CUST",null,"CUST","CUST","CUST","CUST","CUST"]
[null,"ACCT111GPSG","I-SG","I-SG","I-SG","I-SG","I-SG",null,"PLNT","PLNT","PLNT","PLNT","PLNT"]
[null,"ACCT111GPSO","PTD","PTD","PTD","PTD","PTD",null,"PLNT","PLNT","PLNT","PLNT","PLNT"]
[null,"ACCT111GPSE","P","P","P","P","P",null,"PLNT","PLNT","PLNT","PLNT","PLNT"]
[null,"ACCT111GP"]
[]
[]
[]
[null,"ACCT111HPDGP","P","P","P","P","P",null,"PLNT","PLNT","PLNT","PLNT","PLNT"]
[null,"ACCT111HPDGU","P","P","P","P","P",null,"PLNT","PLNT","PLNT","PLNT","PLNT"]
[null,"ACCT111HP"]
[]
[]
[]
[null,"ACCT111IPS","I-SITUS","I-SITUS","I-SITUS","TD","TD",null,"PLNT","PLNT","PLNT","PLNT","PLNT"]
[null,"ACCT111IPDGP","I-DGP","I-DGP","I-DGP","I-DGP","I-DGP",null,"PLNT","PLNT","PLNT","PLNT","PLNT"]
[null,"ACCT111IPDGU","I-DGU","I-DGU","I-DGU","I-DGU","I-DGU",null,"PLNT","PLNT","PLNT","PLNT","PLNT"]
[null,"ACCT111IPSE","P","P","P","P","P",null,"PLNT","PLNT","PLNT","PLNT","PLNT"]
[null,"ACCT111IPSG","I-SG","I-SG","I-SG","I-SG","I-SG",null,"PLNT","PLNT","PLNT","PLNT","PLNT"]
[null,"ACCT111IPCN","CUST","CUST","CUST","CUST","CUST",null,"CUST","CUST","CUST","CUST","CUST"]
[null,"ACCT111IPJBG","I-SG","I-SG","I-SG",null,null,null,"PLNT","PLNT","PLNT","PLNT","PLNT"]
[null,"ACCT111IPCAGE","P","P","P","P","P",null,"PLNT","PLNT","PLNT","PLNT","PLNT"]
[null,"ACCT111IPCAGE","P","P","P","P","P",null,"PLNT","PLNT","PLNT","PLNT","PLNT"]
[null,"ACCT111IPSO","PTD","PTD","PTD","PTD","PTD",null,"PLNT","PLNT","PLNT","PLNT","PLNT"]
[null,"ACCT111IP"]
[]
[null,"ACCT111DOTH","NUTIL","NUTIL","NUTIL","NUTIL","NUTIL"]
[null,"ACCT111IP"]
[]
[]
[null,"ACCT111390CAGW","P","P","P","P","P",null,"PLNT","PLNT","PLNT","PLNT","PLNT"]
[null,"ACCT111390S","G-SITUS","G-SITUS","G-SITUS","TD","TD",null,"PLNT","PLNT","PLNT","PLNT","PLNT"]
[null,"ACCT111390SO","PTD","PTD","PTD","PTD","PTD",null,"PLNT","PLNT","PLNT","PLNT","PLNT"]
[null,"ACCT111390"]

{"sheet":"Func Dist Factor Table","index":21,"n_rows":25,"n_cols":8,"rows_kept":25,"cut":false,"hidden":false,"merged":[]}
["Factor Table Dist"]
[{"$f":"Inputs!$C$3","v":"PacifiCorp"}]
["Cost Of Service By Rate Schedule"]
[{"$f":"Inputs!$C$4","v":"State of Washington"}]
[{"$f":"+Method&\" - \"&IF(PeakMethod=1,\"(Coincident Peaks)\",IF(PeakMethod=2,\"(200 Top Hours)\",\"(100 Summer, 100 Winter Hours)\"))&\" - \"&TEXT(Demand,\"0%\")&\"D\"&\" / \"&TEXT(Engy,\"0%\")&\"E\"","v":"WCA Method - (100 Summer, 100 Winter Hours) - 38%D / 62%E"}]
[{"$f":"Inputs!C5","v":"12 Months Ending June 2012"}]
["Distribution Sub-Functionalization Factors"]
[]
["A","B","C","D","E","F","G","H"]
[]
["FACTOR","SUB","PC","XFMR","METER","SERVICE","TOTAL","DESCRIPTION"]
["SUBS",1,0,0,0,0,{"$f":"SUM(B12:F12)","v":1},"Substations"]
["PC",0,1,0,0,0,1,"Poles & Conductor"]
["XFMR",0,0,1,0,0,1,"Transformer"]
["METR",0,0,0,1,0,1,"Meters"]
["SERV",0,0,0,0,1,1,"Services"]
["CUST",0,0,0,0,0,0,"Customer Accounting & Service"]
["MISC",0,0,0,0,0,0,"Miscellaneous"]
["PLNT",{"$f":"(+Acct362)/(+Acct362+Acct364+Acct365+Acct366+Acct367+Acct368+Acct369+Acct370+Acct371+Acct373)","v":0.11747957741823094},{"$f":"(+Acct364+Acct365+Acct366+Acct367+Acct371+Acct373)/(+Acct362+Acct364+Acct365+Acct366+Acct367+Acct368+Acct369+Acct370+Acct371+Acct373)","v":0.48125633651380451},{"$f":"(+Acct368)/(+Acct362+Acct364+Acct365+Acct366+Acct367+Acct368+Acct369+Acct370+Acct371+Acct373)","v":0.24405810786288465},{"$f":"(+Acct370)/(+Acct362+Acct364+Acct365+Acct366+Acct367+Acct368+Acct369+Acct370+Acct371+Acct373)","v":2.826869714511842E-2},{"$f":"(+Acct369)/(+Acct362+Acct364+Acct365+Acct366+Acct367+Acct368+Acct369+Acct370+Acct371+Acct373)","v":0.12893728105996147},0.99999999999999989,"Distribution Plant "]
["PLNT2",{"$f":"(+Acct362)/(+Acct362+Acct364+Acct365+Acct366+Acct367+Acct371+Acct373)","v":0.19621267855257876},{"$f":"(+Acct364+Acct365+Acct366+Acct367+Acct371+Acct373)/(+Acct362+Acct364+Acct365+Acct366+Acct367+Acct371+Acct373)","v":0.80378732144742127},{"$f":"(0)/(+Acct362+Acct364+Acct365+Acct366+Acct367+Acct371+Acct373)","v":0},{"$f":"(0)/(+Acct362+Acct364+Acct365+Acct366+Acct367+Acct371+Acct373)","v":0},{"$f":"(0)/(+Acct362+Acct364+Acct365+Acct366+Acct367+Acct371+Acct373)","v":0},1,"Substations, Poles & Conductor"]
["DISom",{"$f":"(+Acct582+Acct592+(Acct580+Acct581+Acct587+Acct588+Acct589+Acct590+Acct591+Acct598)*(Acct582+Acct592)/(Acct582+Acct583+Acct584+Acct585+Acct586+Acct592+Acct593+Acct594+Acct595+Acct596+Acct597))/(+Acct580+Acct581+Acct582+Acct583+Acct584+Acct585+Acct586+Acct587+Acct588+Acct589+Acct590+Acct591+Acct592+Acct593+Acct594+Acct595+Acct596+Acct597+Acct598)","v":0.13123671945712514},{"$f":"(+Acct583+Acct584+Acct585+Acct593+Acct594+Acct596+(Acct580+Acct581+Acct587+Acct588+Acct589+Acct590+Acct591+Acct598)*(Acct583+Acct584+Acct585+Acct593+Acct594+Acct596)/(Acct582+Acct583+Acct584+Acct585+Acct586+Acct592+Acct593+Acct594+Acct595+Acct596+Acct597))/(+Acct580+Acct581+Acct582+Acct583+Acct584+Acct585+Acct586+Acct587+Acct588+Acct589+Acct590+Acct591+Acct592+Acct593+Acct594+Acct595+Acct596+Acct597+Acct598)","v":0.72992942477969858},{"$f":"(+Acct595+(Acct580+Acct581+Acct587+Acct588+Acct589+Acct590+Acct591+Acct598)*(Acct595)/(Acct582+Acct583+Acct584+Acct585+Acct586+Acct592+Acct593+Acct594+Acct595+Acct596+Acct597))/(+Acct580+Acct581+Acct582+Acct583+Acct584+Acct585+Acct586+Acct587+Acct588+Acct589+Acct590+Acct591+Acct592+Acct593+Acct594+Acct595+Acct596+Acct597+Acct598)","v":6.8850648301885791E-3},{"$f":"(+Acct586+Acct597+(Acct580+Acct581+Acct587+Acct588+Acct589+Acct590+Acct591+Acct598)*(Acct586+Acct597)/(Acct582+Acct583+Acct584+Acct585+Acct586+Acct592+Acct593+Acct594+Acct595+Acct596+Acct597))/(+Acct580+Acct581+Acct582+Acct583+Acct584+Acct585+Acct586+Acct587+Acct588+Acct589+Acct590+Acct591+Acct592+Acct593+Acct594+Acct595+Acct596+Acct597+Acct598)","v":0.131948790932988},0,1.0000000000000002,"Dist. Cust. Acctg, Service, Sales O & M"]
["INTN",{"$f":"+'Func Study'!W1995/'Func Study'!$L1995","v":0.11747957741823094},{"$f":"+'Func Study'!X1995/'Func Study'!$L1995","v":0.48125633651380451},{"$f":"+'Func Study'!Y1995/'Func Study'!$L1995","v":0.24405810786288465},{"$f":"+'Func Study'!Z1995/'Func Study'!$L1995","v":2.826869714511842E-2},{"$f":"+'Func Study'!AA1995/'Func Study'!$L1995","v":0.12893728105996147},0.99999999999999989,"Distribution Related Intangible Plant"]
["GENL",{"$f":"+'Func Study'!W1957/'Func Study'!$L1957","v":0.11747957741823095},{"$f":"+'Func Study'!X1957/'Func Study'!$L1957","v":0.48125633651380456},{"$f":"+'Func Study'!Y1957/'Func Study'!$L1957","v":0.24405810786288476},{"$f":"+'Func Study'!Z1957/'Func Study'!$L1957","v":2.8268697145118423E-2},{"$f":"+'Func Study'!AA1957/'Func Study'!$L1957","v":0.12893728105996149},1,"Distribution Related General Plant"]
["ZERO",0,0,0,0,0,0,"-"]
["DRB",{"$f":"+'Func Study'!T64/'Func Study'!$I64","v":0.14873158782320062},{"$f":"+'Func Study'!U64/'Func Study'!$I64","v":0.416286128065886},{"$f":"+'Func Study'!V64/'Func Study'!$I64","v":0.23888176297833294},{"$f":"+'Func Study'!W64/'Func Study'!$I64","v":4.4117942306878773E-2},{"$f":"+'Func Study'!X64/'Func Study'!$I64","v":0.15198257882570151},0.99999999999999989,"Distribution Rate Base"]

{"sheet":"Func Factor Table","index":22,"n_rows":76,"n_cols":9,"rows_kept":76,"cut":false,"hidden":false,"merged":[]}
["Functional Factor Table"]
[{"$f":"Inputs!$C$3","v":"PacifiCorp"}]
["Cost Of Service By Rate Schedule"]
[{"$f":"Inputs!$C$4","v":"State of Washington"}]
[{"$f":"+Method&\" - \"&IF(PeakMethod=1,\"(Coincident Peaks)\",IF(PeakMethod=2,\"(200 Top Hours)\",\"(100 Summer, 100 Winter Hours)\"))&\" - \"&TEXT(Demand,\"0%\")&\"D\"&\" / \"&TEXT(Engy,\"0%\")&\"E\"","v":"WCA Method - (100 Summer, 100 Winter Hours) - 38%D / 62%E"}]
[{"$f":"Inputs!C5","v":"12 Months Ending June 2012"}]
[]
["A","B","C","D","E","F","G","H","I"]
[]
["FACTOR NAME","GEN","TRN","DIS","Distribution","Retail","Misc","TOT","Description"]
["ACCMDIT",{"$f":"LinkCos","v":0.79018896309372733},{"$f":"'JAM Download'!L4","v":8.1838038938181937E-2},{"$f":"'JAM Download'!M4","v":0.12797299796809078},{"$f":"'JAM Download'!N4","v":0.12381804895537642},{"$f":"'JAM Download'!O4","v":4.1549490127143719E-3},{"$f":"'JAM Download'!P4","v":0},{"$f":"SUM(B11:G11,-D11)","v":1},"Deferred Income Tax - Balance"]
["BOOKDEPR",{"$f":"'JAM Download'!K5","v":0.54924231762625964},{"$f":"'JAM Download'!L5","v":0.16151677382348767},{"$f":"'JAM Download'!M5","v":0.28924090855025253},{"$f":"'JAM Download'!N5","v":0.28605968276493932},{"$f":"'JAM Download'!O5","v":3.1812257853132309E-3},{"$f":"'JAM Download'!P5","v":0},0.99999999999999978,"Book Depreciation"]
["COM-EQ",{"$f":"'JAM Download'!K6","v":0},{"$f":"'JAM Download'!L6","v":0},{"$f":"'JAM Download'!M6","v":0},{"$f":"'JAM Download'!N6","v":0},{"$f":"'JAM Download'!O6","v":0},{"$f":"'JAM Download'!P6","v":0},{"$f":"G13+F13+E13+C13+B13","v":0},"Communication Equipment Acct 397"]
["CUST",{"$f":"'JAM Download'!K7","v":0},{"$f":"'JAM Download'!L7","v":0},{"$f":"'JAM Download'!M7","v":1},{"$f":"'JAM Download'!N7","v":0},{"$f":"'JAM Download'!O7","v":1},{"$f":"'JAM Download'!P7","v":0},1,"Distribution Retail"]
["CWC",{"$f":"'JAM Download'!K8","v":0.69766203958339357},{"$f":"'JAM Download'!L8","v":0.16080998255110926},{"$f":"'JAM Download'!M8","v":0.14152797786549703},{"$f":"'JAM Download'!N8","v":9.5448542467147429E-2},{"$f":"'JAM Download'!O8","v":3.8236250128966892E-2},{"$f":"'JAM Download'!P8","v":7.8431852693827079E-3},{"$f":"SUM(B15:G15,-D15)","v":0.99999999999999978},"Cash Working Capital"]
["DDS2",{"$f":"'JAM Download'!K9","v":0.85553293171941447},{"$f":"'JAM Download'!L9","v":1.076861356747129E-2},{"$f":"'JAM Download'!M9","v":0.13369845471311431},{"$f":"'JAM Download'!N9","v":1.4751124199191758E-2},{"$f":"'JAM Download'!O9","v":0.15777880740653},{"$f":"'JAM Download'!P9","v":-3.8831476892607436E-2},1,"Deferred Debits - Situs"]
["DDS6",{"$f":"'JAM Download'!K10","v":0},{"$f":"'JAM Download'!L10","v":0},{"$f":"'JAM Download'!M10","v":0},{"$f":"'JAM Download'!N10","v":0},{"$f":"'JAM Download'!O10","v":0},{"$f":"'JAM Download'!P10","v":0},0,"Deferred Debits - Situs"]
["DDSO2",{"$f":"'JAM Download'!K11","v":0.10749283238949794},{"$f":"'JAM Download'!L11","v":3.5830944129832655E-2},{"$f":"'JAM Download'!M11","v":0.85667622348066952},{"$f":"'JAM Download'!N11","v":0.21498566477899589},{"$f":"'JAM Download'!O11","v":0},{"$f":"'JAM Download'!P11","v":0.64169055870167357},0.99999999999999978,"Deferred Debits - System Overhead"]
["DDSO6",{"$f":"'JAM Download'!K12","v":0},{"$f":"'JAM Download'!L12","v":0},{"$f":"'JAM Download'!M12","v":1},{"$f":"'JAM Download'!N12","v":0},{"$f":"'JAM Download'!O12","v":0},{"$f":"'JAM Download'!P12","v":1},1,"Deferred Debits - System Overhead"]
["DEFSG",{"$f":"'JAM Download'!K13","v":0.692942089401404},{"$f":"'JAM Download'!L13","v":0.307057910598596},{"$f":"'JAM Download'!M13","v":0},{"$f":"'JAM Download'!N13","v":0},{"$f":"'JAM Download'!O13","v":0},{"$f":"'JAM Download'!P13","v":0},1,"Deferred Debit - System Generation"]
["DITEXP",{"$f":"'JAM Download'!K14","v":0.95405218631618194},{"$f":"'JAM Download'!L14","v":-1.7802878900708932E-2},{"$f":"'JAM Download'!M14","v":6.3750692584526911E-2},{"$f":"'JAM Download'!N14","v":6.0565025163669579E-2},{"$f":"'JAM Download'!O14","v":3.1856674208573287E-3},{"$f":"'JAM Download'!P14","v":0},0.99999999999999989,"Deferred Income Tax - Expense"]
["DMSC",{"$f":"'JAM Download'!K15","v":0},{"$f":"'JAM Download'!L15","v":0},{"$f":"'JAM Download'!M15","v":1},{"$f":"'JAM Download'!N15","v":0},{"$f":"'JAM Download'!O15","v":0},{"$f":"'JAM Download'!P15","v":1},1,"Distribution Miscellaneous"]
["DPW",{"$f":"'JAM Download'!K16","v":0},{"$f":"'JAM Download'!L16","v":0},{"$f":"'JAM Download'!M16","v":1},{"$f":"'JAM Download'!N16","v":1},{"$f":"'JAM Download'!O16","v":0},{"$f":"'JAM Download'!P16","v":0},1,"Distribution Poles & Wires"]
["ESD",{"$f":"'JAM Download'!K17","v":0.3},{"$f":"'JAM Download'!L17","v":0.1},{"$f":"'JAM Download'!M17","v":0.6},{"$f":"'JAM Download'!N17","v":0.6},{"$f":"'JAM Download'!O17","v":0},{"$f":"'JAM Download'!P17","v":0},1,"Environmental Services Department"]
["FERC",{"$f":"'JAM Download'!K18","v":0.51783654984003269},{"$f":"'JAM Download'!L18","v":0.48216345015996731},{"$f":"'JAM Download'!M18","v":0},{"$f":"'JAM Download'!N18","v":0},{"$f":"'JAM Download'!O18","v":0},{"$f":"'JAM Download'!P18","v":0},1,"FERC Fees"]
["FIT",{"$f":"'JAM Download'!K19","v":1.1688844574871449},{"$f":"'JAM Download'!L19","v":3.6083766826626958E-2},{"$f":"'JAM Download'!M19","v":-0.20496822431377085},{"$f":"'JAM Download'!N19","v":-0.17764648220792026},{"$f":"'JAM Download'!O19","v":-1.7789925998270745E-2},{"$f":"'JAM Download'!P19","v":-9.5318161075798238E-3},{"$f":"SUM(B26:G26,-D26)","v":1.0000000000000009},"Federal Income Taxes"]
["G",{"$f":"'JAM Download'!K20","v":0.33725965480133235},{"$f":"'JAM Download'!L20","v":0.18510139570307821},{"$f":"'JAM Download'!M20","v":0.47763894949558938},{"$f":"'JAM Download'!N20","v":0.45254539034670116},{"$f":"'JAM Download'!O20","v":2.509355914888825E-2},{"$f":"'JAM Download'!P20","v":0},0.99999999999999989,"General Plant"]
["G-DGP",{"$f":"'JAM Download'!K21","v":0.69712876692486192},{"$f":"'JAM Download'!L21","v":0.30287123307513802},{"$f":"'JAM Download'!M21","v":0},{"$f":"'JAM Download'!N21","v":0},{"$f":"'JAM Download'!O21","v":0},{"$f":"'JAM Download'!P21","v":0},1,"General Plant - DGP Factor"]
["G-DGU",{"$f":"'JAM Download'!K22","v":0.69712876692486192},{"$f":"'JAM Download'!L22","v":0.30287123307513802},{"$f":"'JAM Download'!M22","v":0},{"$f":"'JAM Download'!N22","v":0},{"$f":"'JAM Download'!O22","v":0},{"$f":"'JAM Download'!P22","v":0},1,"General Plant - DGU Factor"]
["GP",{"$f":"'JAM Download'!K23","v":0.50531041300874846},{"$f":"'JAM Download'!L23","v":0.21296464671128551},{"$f":"'JAM Download'!M23","v":0.28172494027996625},{"$f":"'JAM Download'!N23","v":0.27514783251038133},{"$f":"'JAM Download'!O23","v":6.5771077695849136E-3},{"$f":"'JAM Download'!P23","v":0},1.0000000000000002,"Total Plant"]
["G-SG",{"$f":"'JAM Download'!K24","v":0.99898215951822222},{"$f":"'JAM Download'!L24","v":1.017840481777828E-3},{"$f":"'JAM Download'!M24","v":0},{"$f":"'JAM Download'!N24","v":0},{"$f":"'JAM Download'!O24","v":0},{"$f":"'JAM Download'!P24","v":0},1,"General Plant - SG Factor"]
["G-SITUS",{"$f":"'JAM Download'!K25","v":0},{"$f":"'JAM Download'!L25","v":0.25401228549654764},{"$f":"'JAM Download'!M25","v":0.74598771450345236},{"$f":"'JAM Download'!N25","v":0.74598771450345236},{"$f":"'JAM Download'!O25","v":0},{"$f":"'JAM Download'!P25","v":0},1,"General Plant - SITUS Factor"]
["I",{"$f":"'JAM Download'!K26","v":0.55582392599416641},{"$f":"'JAM Download'!L26","v":0.14762997154346119},{"$f":"'JAM Download'!M26","v":0.29654610246237245},{"$f":"'JAM Download'!N26","v":0.14245501010267919},{"$f":"'JAM Download'!O26","v":0.15409109235969329},{"$f":"'JAM Download'!P26","v":0},0.99999999999999989,"Intangible Plant"]
["IBT",{"$f":"'JAM Download'!K27","v":1.3364001958537777},{"$f":"'JAM Download'!L27","v":7.1875093825867972E-2},{"$f":"'JAM Download'!M27","v":-0.40827528967964349},{"$f":"'JAM Download'!N27","v":-0.35385323372358174},{"$f":"'JAM Download'!O27","v":-3.5435674064311203E-2},{"$f":"'JAM Download'!P27","v":-1.8986381891750555E-2},{"$f":"SUM(B34:G34,-D34)","v":1.000000000000002},"Income Before Taxes"]
["I-DGP",{"$f":"'JAM Download'!K28","v":1},{"$f":"'JAM Download'!L28","v":0},{"$f":"'JAM Download'!M28","v":0},{"$f":"'JAM Download'!N28","v":0},{"$f":"'JAM Download'!O28","v":0},{"$f":"'JAM Download'!P28","v":0},1,"Intangible Plant - DGP Factor"]
["I-DGU",{"$f":"'JAM Download'!K29","v":1},{"$f":"'JAM Download'!L29","v":0},{"$f":"'JAM Download'!M29","v":0},{"$f":"'JAM Download'!N29","v":0},{"$f":"'JAM Download'!O29","v":0},{"$f":"'JAM Download'!P29","v":0},1,"Intangible Plant - DGU Factor"]
["I-SG",{"$f":"'JAM Download'!K30","v":0.85536695399256235},{"$f":"'JAM Download'!L30","v":0.14463304600743784},{"$f":"'JAM Download'!M30","v":0},{"$f":"'JAM Download'!N30","v":0},{"$f":"'JAM Download'!O30","v":0},{"$f":"'JAM Download'!P30","v":0},1.0000000000000002,"Intangible Plant - SG Factor"]
["I-SITUS",{"$f":"'JAM Download'!K31","v":2.5219270088888916E-2},{"$f":"'JAM Download'!L31","v":0.45848484838651204},{"$f":"'JAM Download'!M31","v":0.51629588152459904},{"$f":"'JAM Download'!N31","v":0.51629588152459904},{"$f":"'JAM Download'!O31","v":0},{"$f":"'JAM Download'!P31","v":0},1,"Intangible Plant - SITUS Factor"]
["LABOR",{"$f":"'JAM Download'!K32","v":0.43577266359732098},{"$f":"'JAM Download'!L32","v":7.2028278420365022E-2},{"$f":"'JAM Download'!M32","v":0.492199057982314},{"$f":"'JAM Download'!N32","v":0.34638820477027932},{"$f":"'JAM Download'!O32","v":0.14581085321203469},{"$f":"'JAM Download'!P32","v":0},0.99999999999999989,"Direct Labor Expense"]
["MSS",{"$f":"'JAM Download'!K33","v":0.78180305398604233},{"$f":"'JAM Download'!L33","v":6.0702949940319682E-3},{"$f":"'JAM Download'!M33","v":0.21212665101992567},{"$f":"'JAM Download'!N33","v":0.21212665101992567},{"$f":"'JAM Download'!O33","v":0},{"$f":"'JAM Download'!P33","v":0},0.99999999999999989,"Materials & Supplies"]
["NONE",{"$f":"'JAM Download'!K34","v":0},{"$f":"'JAM Download'!L34","v":0},{"$f":"'JAM Download'!M34","v":0},{"$f":"'JAM Download'!N34","v":0},{"$f":"'JAM Download'!O34","v":0},{"$f":"'JAM Download'!P34","v":0},{"$f":"SUM(B41:G41,-D41)","v":0},"Not Functionalized"]
["NUTIL",{"$f":"'JAM Download'!K35","v":0},{"$f":"'JAM Download'!L35","v":0},{"$f":"'JAM Download'!M35","v":0},{"$f":"'JAM Download'!N35","v":0},{"$f":"'JAM Download'!O35","v":0},{"$f":"'JAM Download'!P35","v":0},{"$f":"SUM(B42:G42,-D42)","v":0},"Non-Utility"]
["OTHDGP",{"$f":"'JAM Download'!K36","v":0.57874764096849529},{"$f":"'JAM Download'!L36","v":0.42125235903150471},{"$f":"'JAM Download'!M36","v":0},{"$f":"'JAM Download'!N36","v":0},{"$f":"'JAM Download'!O36","v":0},{"$f":"'JAM Download'!P36","v":0},1,"Other Revenues - DGP Factor"]
["OTHDGU",{"$f":"'JAM Download'!K37","v":0.57874764096849529},{"$f":"'JAM Download'!L37","v":0.42125235903150471},{"$f":"'JAM Download'!M37","v":0},{"$f":"'JAM Download'!N37","v":0},{"$f":"'JAM Download'!O37","v":0},{"$f":"'JAM Download'!P37","v":0},1,"Other Revenues - DGU Factor"]
["OTHSE",{"$f":"'JAM Download'!K38","v":0},{"$f":"'JAM Download'!L38","v":1},{"$f":"'JAM Download'!M38","v":0},{"$f":"'JAM Download'!N38","v":0},{"$f":"'JAM Download'!O38","v":0},{"$f":"'JAM Download'!P38","v":0},1,"Other Revenues - SE Factor"]
["OTHSG",{"$f":"'JAM Download'!K39","v":0.57874764096849529},{"$f":"'JAM Download'!L39","v":0.42125235903150471},{"$f":"'JAM Download'!M39","v":0},{"$f":"'JAM Download'!N39","v":0},{"$f":"'JAM Download'!O39","v":0},{"$f":"'JAM Download'!P39","v":0},{"$f":"SUM(B46:G46,-D46)","v":1},"Other Revenues - SG Factor"]
["OTHSGR",{"$f":"'JAM Download'!K40","v":0.57874764096849529},{"$f":"'JAM Download'!L40","v":0.42125235903150471},{"$f":"'JAM Download'!M40","v":0},{"$f":"'JAM Download'!N40","v":0},{"$f":"'JAM Download'!O40","v":0},{"$f":"'JAM Download'!P40","v":0},{"$f":"SUM(B47:G47,-D47)","v":1},"Other Revenues - Rolled-In SG Factor"]
["OTHSITUS",{"$f":"'JAM Download'!K41","v":5.7696681464325496E-3},{"$f":"'JAM Download'!L41","v":0},{"$f":"'JAM Download'!M41","v":0.99423033185356746},{"$f":"'JAM Download'!N41","v":0},{"$f":"'JAM Download'!O41","v":0},{"$f":"'JAM Download'!P41","v":0.99423033185356746},{"$f":"SUM(B48:G48,-D48)","v":1},"Other Revenues - Situs"]
["OTHSO",{"$f":"'JAM Download'!K42","v":0},{"$f":"'JAM Download'!L42","v":0},{"$f":"'JAM Download'!M42","v":1},{"$f":"'JAM Download'!N42","v":0},{"$f":"'JAM Download'!O42","v":0},{"$f":"'JAM Download'!P42","v":1},1,"Other Revenues - SO Factor"]
["P",{"$f":"'JAM Download'!K43","v":1},{"$f":"'JAM Download'!L43","v":0},{"$f":"'JAM Download'!M43","v":0},{"$f":"'JAM Download'!N43","v":0},{"$f":"'JAM Download'!O43","v":0},{"$f":"'JAM Download'!P43","v":0},1,"Production"]
["PT",{"$f":"'JAM Download'!K44","v":0.72098325173517375},{"$f":"'JAM Download'!L44","v":0.27901674826482614},{"$f":"'JAM Download'!M44","v":0},{"$f":"'JAM Download'!N44","v":0},{"$f":"'JAM Download'!O44","v":0},{"$f":"'JAM Download'!P44","v":0},0.99999999999999989,"Production / Transmission"]
["PTD",{"$f":"'JAM Download'!K45","v":0.50891728264852409},{"$f":"'JAM Download'!L45","v":0.19694832716103053},{"$f":"'JAM Download'!M45","v":0.29413439019044535},{"$f":"'JAM Download'!N45","v":0.29413439019044535},{"$f":"'JAM Download'!O45","v":0},{"$f":"'JAM Download'!P45","v":0},{"$f":"SUM(B52:G52,-D52)","v":1},"Prod, Trans, Dist Plant"]
["REVREQ",{"$f":"'JAM Download'!K46","v":0.67154025321940569},{"$f":"'JAM Download'!L46","v":0.1587111156255141},{"$f":"'JAM Download'!M46","v":0.16974863115508004},{"$f":"'JAM Download'!N46","v":0.1359418575764659},{"$f":"'JAM Download'!O46","v":2.8063040845227306E-2},{"$f":"'JAM Download'!P46","v":5.7437327333868197E-3},{"$f":"SUM(B53:G53,-D53)","v":1},"Revenue Requirement"]
["SCHMA",{"$f":"'JAM Download'!K47","v":0.51577805211332484},{"$f":"'JAM Download'!L47","v":0.17785176096280442},{"$f":"'JAM Download'!M47","v":0.3063701869238708},{"$f":"'JAM Download'!N47","v":0.29207769541570439},{"$f":"'JAM Download'!O47","v":1.2604298561731647E-2},{"$f":"'JAM Download'!P47","v":1.6881929464348014E-3},1,"Schedule M Additions"]
["SCHMAF",{"$f":"'JAM Download'!K48","v":1},{"$f":"'JAM Download'!L48","v":0},{"$f":"'JAM Download'!M48","v":0},{"$f":"'JAM Download'!N48","v":0},{"$f":"'JAM Download'!O48","v":0},{"$f":"'JAM Download'!P48","v":0},1,"Schedule M Additions - Flow Through"]
["SCHMAP",{"$f":"'JAM Download'!K49","v":0.47220936057207102},{"$f":"'JAM Download'!L49","v":0.138624571441712},{"$f":"'JAM Download'!M49","v":0.38916606798621695},{"$f":"'JAM Download'!N49","v":0.31120786939259704},{"$f":"'JAM Download'!O49","v":7.7958198593619923E-2},{"$f":"'JAM Download'!P49","v":0},1,"Schedule M Additions - Permanent"]
["SCHMAP-SO",{"$f":"'JAM Download'!K50","v":0.46695715823437201},{"$f":"'JAM Download'!L50","v":0.14000406596813605},{"$f":"'JAM Download'!M50","v":0.39303877579749191},{"$f":"'JAM Download'!N50","v":0.31430479187857707},{"$f":"'JAM Download'!O50","v":7.8733983918914854E-2},{"$f":"'JAM Download'!P50","v":0},1,"Schedule M Additions - Permanent SO"]
["SCHMAT",{"$f":"'JAM Download'!K51","v":0.5161602312280279},{"$f":"'JAM Download'!L51","v":0.17819585696461496},{"$f":"'JAM Download'!M51","v":0.30564391180735723},{"$f":"'JAM Download'!N51","v":0.2919098879214701},{"$f":"'JAM Download'!O51","v":1.2031022322004977E-2},{"$f":"'JAM Download'!P51","v":1.7030015638821614E-3},1,"Schedule M Additions - Temporary"]
["SCHMAT-GPS",{"$f":"'JAM Download'!K52","v":0},{"$f":"'JAM Download'!L52","v":0},{"$f":"'JAM Download'!M52","v":0},{"$f":"'JAM Download'!N52","v":0},{"$f":"'JAM Download'!O52","v":0},{"$f":"'JAM Download'!P52","v":0},0,"Schedule M Additions - Temporary-GPS"]
["SCHMAT-SE",{"$f":"'JAM Download'!K53","v":1},{"$f":"'JAM Download'!L53","v":0},{"$f":"'JAM Download'!M53","v":0},{"$f":"'JAM Download'!N53","v":0},{"$f":"'JAM Download'!O53","v":0},{"$f":"'JAM Download'!P53","v":0},1,"Schedule M Additions - Temporary-SE"]
["SCHMAT-SITUS",{"$f":"'JAM Download'!K54","v":0.68789997808111003},{"$f":"'JAM Download'!L54","v":0.1122395497862909},{"$f":"'JAM Download'!M54","v":0.19986047213259905},{"$f":"'JAM Download'!N54","v":0.16561182938630906},{"$f":"'JAM Download'!O54","v":1.0258460638137939E-2},{"$f":"'JAM Download'!P54","v":2.3990182108152083E-2},1,"Schedule M Additions - Temporary-SITUS"]
["SCHMAT-SNP",{"$f":"'JAM Download'!K55","v":0.50361932616077032},{"$f":"'JAM Download'!L55","v":0.21956599431989174},{"$f":"'JAM Download'!M55","v":0.27681467951933791},{"$f":"'JAM Download'!N55","v":0.27659585057984348},{"$f":"'JAM Download'!O55","v":2.1882893949445097E-4},{"$f":"'JAM Download'!P55","v":0},0.99999999999999989,"Schedule M Additions - Temporary-SNP"]
["SCHMAT-SO",{"$f":"'JAM Download'!K56","v":0.46661318737226282},{"$f":"'JAM Download'!L56","v":0.13925428020064187},{"$f":"'JAM Download'!M56","v":0.39413253242709539},{"$f":"'JAM Download'!N56","v":0.31465867797871139},{"$f":"'JAM Download'!O56","v":7.9473854448383993E-2},{"$f":"'JAM Download'!P56","v":0},1,"Schedule M Additions - Temporary-SO"]
["SCHMD",{"$f":"'JAM Download'!K57","v":0.62691120168290648},{"$f":"'JAM Download'!L57","v":0.14566463329808196},{"$f":"'JAM Download'!M57","v":0.22742416501901164},{"$f":"'JAM Download'!N57","v":0.19770155852585497},{"$f":"'JAM Download'!O57","v":5.2145868752490132E-3},{"$f":"'JAM Download'!P57","v":2.4508019617907648E-2},1.0000000000000002,"Schedule M Deductions"]
["SCHMDF",{"$f":"'JAM Download'!K58","v":1},{"$f":"'JAM Download'!L58","v":0},{"$f":"'JAM Download'!M58","v":0},{"$f":"'JAM Download'!N58","v":0},{"$f":"'JAM Download'!O58","v":0},{"$f":"'JAM Download'!P58","v":0},1,"Schedule M Deductions - Flow Through"]
["SCHMDP",{"$f":"'JAM Download'!K59","v":0.45907602575732509},{"$f":"'JAM Download'!L59","v":7.3800298018591851E-2},{"$f":"'JAM Download'!M59","v":0.46712367622408307},{"$f":"'JAM Download'!N59","v":0.33122834583438432},{"$f":"'JAM Download'!O59","v":0.13589533038969875},{"$f":"'JAM Download'!P59","v":0},1,"Schedule M Deductions - Permanent"]
["SCHMDP-SO",{"$f":"'JAM Download'!K60","v":0.43577266359732098},{"$f":"'JAM Download'!L60","v":7.2028278420365022E-2},{"$f":"'JAM Download'!M60","v":0.492199057982314},{"$f":"'JAM Download'!N60","v":0.34638820477027932},{"$f":"'JAM Download'!O60","v":0.14581085321203469},{"$f":"'JAM Download'!P60","v":0},0.99999999999999989,"Schedule M Deductions - Permanent SO"]
["SCHMDT",{"$f":"'JAM Download'!K61","v":0.62801601740022717},{"$f":"'JAM Download'!L61","v":0.14613769770006871},{"$f":"'JAM Download'!M61","v":0.22584628489970426},{"$f":"'JAM Download'!N61","v":0.19682258609061767},{"$f":"'JAM Download'!O61","v":4.3543492129729825E-3},{"$f":"'JAM Download'!P61","v":2.4669349596113603E-2},1,"Schedule M Deductions - Temporary"]
["SCHMDT-GPS",{"$f":"'JAM Download'!K62","v":0.5035611250734281},{"$f":"'JAM Download'!L62","v":0.21979318880680054},{"$f":"'JAM Download'!M62","v":0.27664568611977131},{"$f":"'JAM Download'!N62","v":0.27664568611977131},{"$f":"'JAM Download'!O62","v":0},{"$f":"'JAM Download'!P62","v":0},1,"Schedule M Deductions - Temporary-GPS"]
["SCHMDT-SG",{"$f":"'JAM Download'!K63","v":1},{"$f":"'JAM Download'!L63","v":0},{"$f":"'JAM Download'!M63","v":0},{"$f":"'JAM Download'!N63","v":0},{"$f":"'JAM Download'!O63","v":0},{"$f":"'JAM Download'!P63","v":0},1,"Schedule M Deductions - Temporary-SG"]
["SCHMDT-SITUS",{"$f":"'JAM Download'!K64","v":0.54030864816472712},{"$f":"'JAM Download'!L64","v":7.1658766797031578E-2},{"$f":"'JAM Download'!M64","v":0.38803258503824145},{"$f":"'JAM Download'!N64","v":0.1871749065492978},{"$f":"'JAM Download'!O64","v":6.606595505664814E-2},{"$f":"'JAM Download'!P64","v":0.13479172343229553},1,"Schedule M Deductions - Temporary-SITUS"]
["SCHMDT-SNP",{"$f":"'JAM Download'!K65","v":0.5035611250734281},{"$f":"'JAM Download'!L65","v":0.21979318880680054},{"$f":"'JAM Download'!M65","v":0.27664568611977131},{"$f":"'JAM Download'!N65","v":0.27664568611977131},{"$f":"'JAM Download'!O65","v":0},{"$f":"'JAM Download'!P65","v":0},1,"Schedule M Deductions - Temporary-SNP"]
["SCHMDT-SO",{"$f":"'JAM Download'!K66","v":0.44271776887128472},{"$f":"'JAM Download'!L66","v":0.16081507666864175},{"$f":"'JAM Download'!M66","v":0.39646715446007358},{"$f":"'JAM Download'!N66","v":0.36653269611301859},{"$f":"'JAM Download'!O66","v":2.9934458347055E-2},{"$f":"'JAM Download'!P66","v":0},{"$f":"SUM(B73:G73,-D73)","v":1.0000000000000002},"Schedule M Deductions - Temporary-SO"]
["T",{"$f":"'JAM Download'!K67","v":0},{"$f":"'JAM Download'!L67","v":1},{"$f":"'JAM Download'!M67","v":0},{"$f":"'JAM Download'!N67","v":0},{"$f":"'JAM Download'!O67","v":0},{"$f":"'JAM Download'!P67","v":0},1,"Transmission"]
["TAXDEPR",{"$f":"'JAM Download'!K68","v":0.57503857689425475},{"$f":"'JAM Download'!L68","v":0.17851192951080661},{"$f":"'JAM Download'!M68","v":0.24644949359493873},{"$f":"'JAM Download'!N68","v":0.24137635753524717},{"$f":"'JAM Download'!O68","v":5.0731360596915614E-3},{"$f":"'JAM Download'!P68","v":0},1,"Tax Depreciation"]
["TD",{"$f":"'JAM Download'!K69","v":0},{"$f":"'JAM Download'!L69","v":0.44273968036711486},{"$f":"'JAM Download'!M69","v":0.55726031963288514},{"$f":"'JAM Download'!N69","v":0.55726031963288514},{"$f":"'JAM Download'!O69","v":0},{"$f":"'JAM Download'!P69","v":0},1,"Transmission / Distribution"]

{"sheet":"COS Allocation Options","index":23,"n_rows":1240,"n_cols":14,"rows_kept":1240,"cut":false,"hidden":false,"merged":[]}
["COS ALLOCATION OPTIONS"]
[]
[null,null,"Select One -------------------------->","Bundled3","Commission","MSP","WCA","Description","Option-4","Description","Option-5","Description","Option-6","Description"]
[null,null,null,null,"Peak Credit ","Option","Method","(Undefined)","(Undefined)","(Undefined)","(Undefined)","(Undefined)","(Undefined)"]
[null,null,null,null,null,null,null,null,null,"C",null,"C"]
[]
["FERC",null,null,"COS","COS","COS","COS",null,"COS",null,"COS",null,"COS"]
["ACCT",null,"DESCRIPTION ","Factor","Factor","Factor","Factor",null,"Factor",null,"Factor",null,"Factor"]
["440","Residential Sales",null,"A","A","A","A",{"$f":"VLOOKUP(+G9,FactSum,2,FALSE)","v":"Direct Assignment"},"A",{"$f":"VLOOKUP(+I9,FactSum,2,FALSE)","v":"Direct Assignment"},"A",{"$f":"VLOOKUP(+K9,FactSum,2,FALSE)","v":"Direct Assignment"},"A",{"$f":"VLOOKUP(+M9,FactSum,2,FALSE)","v":"Direct Assignment"}]
[]
["442","Commercial & Industrial Sales",null,"A","A","A","A",{"$f":"VLOOKUP(+G11,FactSum,2,FALSE)","v":"Direct Assignment"},"A",{"$f":"VLOOKUP(+I11,FactSum,2,FALSE)","v":"Direct Assignment"},"A",{"$f":"VLOOKUP(+K11,FactSum,2,FALSE)","v":"Direct Assignment"},"A",{"$f":"VLOOKUP(+M11,FactSum,2,FALSE)","v":"Direct Assignment"}]
[null,null,"Interruptible Demand","F10",{"$f":"IF(Classification=\"DEMAND\",\"F12\",IF(Classification=\"ENERGY\",\"F30\",\"F10\"))","v":"F10"},{"$f":"IF(Classification=\"DEMAND\",\"F12\",IF(Classification=\"ENERGY\",\"F30\",\"F10\"))","v":"F10"},{"$f":"IF(Classification=\"DEMAND\",\"F12\",IF(Classification=\"ENERGY\",\"F30\",\"F10\"))","v":"F10"},{"$f":"VLOOKUP(+G12,FactSum,2,FALSE)","v":"100 Summer 100 Winter System Peaks"},{"$f":"IF(Classification=\"DEMAND\",\"F12\",IF(Classification=\"ENERGY\",\"F30\",\"F10\"))","v":"F10"},{"$f":"VLOOKUP(+I12,FactSum,2,FALSE)","v":"100 Summer 100 Winter System Peaks"},"F10",{"$f":"VLOOKUP(+K12,FactSum,2,FALSE)","v":"100 Summer 100 Winter System Peaks"},"F10",{"$f":"VLOOKUP(+M12,FactSum,2,FALSE)","v":"100 Summer 100 Winter System Peaks"}]
[null,null,"Interruptible Energy","F10",{"$f":"IF(Classification=\"DEMAND\",\"F12\",IF(Classification=\"ENERGY\",\"F30\",\"F10\"))","v":"F10"},"F30",{"$f":"IF(Classification=\"DEMAND\",\"F12\",IF(Classification=\"ENERGY\",\"F30\",\"F10\"))","v":"F10"},{"$f":"VLOOKUP(+G13,FactSum,2,FALSE)","v":"100 Summer 100 Winter System Peaks"},"F30",{"$f":"VLOOKUP(+I13,FactSum,2,FALSE)","v":"MWH @ Input"},"F30",{"$f":"VLOOKUP(+K13,FactSum,2,FALSE)","v":"MWH @ Input"},"F30",{"$f":"VLOOKUP(+M13,FactSum,2,FALSE)","v":"MWH @ Input"}]
[]
[]
["444","Public Street & Highway Lighting",null,"A","A","A","A",{"$f":"VLOOKUP(+G16,FactSum,2,FALSE)","v":"Direct Assignment"},"A",{"$f":"VLOOKUP(+I16,FactSum,2,FALSE)","v":"Direct Assignment"},"A",{"$f":"VLOOKUP(+K16,FactSum,2,FALSE)","v":"Direct Assignment"},"A",{"$f":"VLOOKUP(+M16,FactSum,2,FALSE)","v":"Direct Assignment"}]
[]
["445","Other Sales to Public Authority",null,"A","A","A","A",{"$f":"VLOOKUP(+G18,FactSum,2,FALSE)","v":"Direct Assignment"},"A",{"$f":"VLOOKUP(+I18,FactSum,2,FALSE)","v":"Direct Assignment"},"A",{"$f":"VLOOKUP(+K18,FactSum,2,FALSE)","v":"Direct Assignment"},"A",{"$f":"VLOOKUP(+M18,FactSum,2,FALSE)","v":"Direct Assignment"}]
[]
["448","Interdepartmental",null,"A","A","A","A",{"$f":"VLOOKUP(+G20,FactSum,2,FALSE)","v":"Direct Assignment"},"A",{"$f":"VLOOKUP(+I20,FactSum,2,FALSE)","v":"Direct Assignment"},"A",{"$f":"VLOOKUP(+K20,FactSum,2,FALSE)","v":"Direct Assignment"},"A",{"$f":"VLOOKUP(+M20,FactSum,2,FALSE)","v":"Direct Assignment"}]
[null,null,"Demand","F10",{"$f":"IF(Classification=\"DEMAND\",\"F12\",IF(Classification=\"ENERGY\",\"F30\",\"F10\"))","v":"F10"},{"$f":"IF(Classification=\"DEMAND\",\"F12\",IF(Classification=\"ENERGY\",\"F30\",\"F10\"))","v":"F10"},{"$f":"IF(Classification=\"DEMAND\",\"F12\",IF(Classification=\"ENERGY\",\"F30\",\"F10\"))","v":"F10"},{"$f":"VLOOKUP(+G21,FactSum,2,FALSE)","v":"100 Summer 100 Winter System Peaks"},{"$f":"IF(Classification=\"DEMAND\",\"F12\",IF(Classification=\"ENERGY\",\"F30\",\"F10\"))","v":"F10"},{"$f":"VLOOKUP(+I21,FactSum,2,FALSE)","v":"100 Summer 100 Winter System Peaks"},"F10",{"$f":"VLOOKUP(+K21,FactSum,2,FALSE)","v":"100 Summer 100 Winter System Peaks"},"F10",{"$f":"VLOOKUP(+M21,FactSum,2,FALSE)","v":"100 Summer 100 Winter System Peaks"}]
[]
[]
["Total Sales to Ultimate Customers"]
[]
["447","Sales for Resale",null,"F11",{"$f":"IF(Classification=\"DEMAND\",\"F12\",IF(Classification=\"ENERGY\",\"F30\",\"F11\"))","v":"F11"},{"$f":"IF(Classification=\"DEMAND\",\"F12\",IF(Classification=\"ENERGY\",\"F30\",\"F11\"))","v":"F11"},{"$f":"IF(Classification=\"DEMAND\",\"F12\",IF(Classification=\"ENERGY\",\"F30\",\"F10\"))","v":"F10"},{"$f":"VLOOKUP(+G26,FactSum,2,FALSE)","v":"100 Summer 100 Winter System Peaks"},{"$f":"IF(Classification=\"DEMAND\",\"F12\",IF(Classification=\"ENERGY\",\"F30\",\"F11\"))","v":"F11"},{"$f":"VLOOKUP(+I26,FactSum,2,FALSE)","v":"100 Summer 100 Winter System Peaks"},"F11",{"$f":"VLOOKUP(+K26,FactSum,2,FALSE)","v":"100 Summer 100 Winter System Peaks"},"F11",{"$f":"VLOOKUP(+M26,FactSum,2,FALSE)","v":"100 Summer 100 Winter System Peaks"}]
[null,null,"Demand","F10",{"$f":"IF(Classification=\"DEMAND\",\"F12\",IF(Classification=\"ENERGY\",\"F30\",\"F10\"))","v":"F10"},{"$f":"IF(Classification=\"DEMAND\",\"F12\",IF(Classification=\"ENERGY\",\"F30\",\"F10\"))","v":"F10"},{"$f":"IF(Classification=\"DEMAND\",\"F12\",IF(Classification=\"ENERGY\",\"F30\",\"F10\"))","v":"F10"},{"$f":"VLOOKUP(+G27,FactSum,2,FALSE)","v":"100 Summer 100 Winter System Peaks"},{"$f":"IF(Classification=\"DEMAND\",\"F12\",IF(Classification=\"ENERGY\",\"F30\",\"F10\"))","v":"F10"},{"$f":"VLOOKUP(+I27,FactSum,2,FALSE)","v":"100 Summer 100 Winter System Peaks"},"F10",{"$f":"VLOOKUP(+K27,FactSum,2,FALSE)","v":"100 Summer 100 Winter System Peaks"},"F10",{"$f":"VLOOKUP(+M27,FactSum,2,FALSE)","v":"100 Summer 100 Winter System Peaks"}]
[null,null,"Energy","F10",{"$f":"IF(Classification=\"DEMAND\",\"F12\",IF(Classification=\"ENERGY\",\"F30\",\"F10\"))","v":"F10"},"F30",{"$f":"IF(Classification=\"DEMAND\",\"F12\",IF(Classification=\"ENERGY\",\"F30\",\"F10\"))","v":"F10"},{"$f":"VLOOKUP(+G28,FactSum,2,FALSE)","v":"100 Summer 100 Winter System Peaks"},"F30",{"$f":"VLOOKUP(+I28,FactSum,2,FALSE)","v":"MWH @ Input"},"F30",{"$f":"VLOOKUP(+K28,FactSum,2,FALSE)","v":"MWH @ Input"},"F30",{"$f":"VLOOKUP(+M28,FactSum,2,FALSE)","v":"MWH @ Input"}]
[]
[]
["447NPC","Sales for Resale",null,"F11","F11","F11","F10","100 Summer 100 Winter System Peaks","F11","100 Summer 100 Winter System Peaks","F11","100 Summer 100 Winter System Peaks","F11","100 Summer 100 Winter System Peaks"]
[null,null,"Demand","F10","F10","F10","F10","100 Summer 100 Winter System Peaks","F10","100 Summer 100 Winter System Peaks","F10","100 Summer 100 Winter System Peaks","F10","100 Summer 100 Winter System Peaks"]
[null,null,"Energy","F10","F10","F30","F10","100 Summer 100 Winter System Peaks","F30","MWH @ Input","F30","MWH @ Input","F30","MWH @ Input"]
[]
[]
["449","Provision for Rate Refund",null,"F11",{"$f":"IF(Classification=\"DEMAND\",\"F12\",IF(Classification=\"ENERGY\",\"F30\",\"F11\"))","v":"F11"},{"$f":"IF(Classification=\"DEMAND\",\"F12\",IF(Classification=\"ENERGY\",\"F30\",\"F11\"))","v":"F11"},{"$f":"IF(Classification=\"DEMAND\",\"F12\",IF(Classification=\"ENERGY\",\"F30\",\"F10\"))","v":"F10"},{"$f":"VLOOKUP(+G36,FactSum,2,FALSE)","v":"100 Summer 100 Winter System Peaks"},{"$f":"IF(Classification=\"DEMAND\",\"F12\",IF(Classification=\"ENERGY\",\"F30\",\"F11\"))","v":"F11"},{"$f":"VLOOKUP(+I36,FactSum,2,FALSE)","v":"100 Summer 100 Winter System Peaks"},"F11",{"$f":"VLOOKUP(+K36,FactSum,2,FALSE)","v":"100 Summer 100 Winter System Peaks"},"F11",{"$f":"VLOOKUP(+M36,FactSum,2,FALSE)","v":"100 Summer 100 Winter System Peaks"}]
[]
["State Specific Revenue Credit",null,null,"F140D",{"$f":"IF(Function=\"gen\",\"F140G\",IF(Function=\"TRN\",\"F140T\",IF(Function=\"DIS\",\"F140D\",IF(Function=\"RETAIL\",\"F140R\",IF(Function=\"MISC\",\"F140M\",\"ERR\")))))","v":"F140D"},{"$f":"IF(Function=\"gen\",\"F140G\",IF(Function=\"TRN\",\"F140T\",IF(Function=\"DIS\",\"F140D\",IF(Function=\"RETAIL\",\"F140R\",IF(Function=\"MISC\",\"F140M\",\"ERR\")))))","v":"F140D"},{"$f":"IF(Function=\"gen\",\"F140G\",IF(Function=\"TRN\",\"F140T\",IF(Function=\"DIS\",\"F140D\",IF(Function=\"RETAIL\",\"F140R\",IF(Function=\"MISC\",\"F140M\",\"ERR\")))))","v":"F140D"},{"$f":"VLOOKUP(+G38,FactSum,2,FALSE)","v":"Revenue Requirement Before Rev Credits"},{"$f":"IF(Function=\"gen\",\"F140G\",IF(Function=\"TRN\",\"F140T\",IF(Function=\"DIS\",\"F140D\",IF(Function=\"RETAIL\",\"F140R\",IF(Function=\"MISC\",\"F140M\",\"ERR\")))))","v":"F140D"},{"$f":"VLOOKUP(+I38,FactSum,2,FALSE)","v":"Revenue Requirement Before Rev Credits"},{"$f":"IF(Function=\"gen\",\"F140G\",IF(Function=\"TRN\",\"F140T\",IF(Function=\"DIS\",\"F140D\",IF(Function=\"RETAIL\",\"F140R\",IF(Function=\"MISC\",\"F140M\",\"ERR\")))))","v":"F140D"},{"$f":"IF(Function=\"gen\",\"F140G\",IF(Function=\"TRN\",\"F140T\",IF(Function=\"DIS\",\"F140D\",IF(Function=\"RETAIL\",\"F140R\",IF(Function=\"MISC\",\"F140M\",\"ERR\")))))","v":"F140D"},"F10",{"$f":"VLOOKUP(+M38,FactSum,2,FALSE)","v":"100 Summer 100 Winter System Peaks"}]
[]
["AGA Revenue Credit",null,null,"A","A","A","A","A","A","A","A","A","A"]
[]
["Total Sales from Electricity"]
[]
["Other Electric Operating Revenues"]
["450","Forfeited Discounts & Interest",null,"A","A","A","A",{"$f":"VLOOKUP(+G45,FactSum,2,FALSE)","v":"Direct Assignment"},"A",{"$f":"VLOOKUP(+I45,FactSum,2,FALSE)","v":"Direct Assignment"},"A",{"$f":"VLOOKUP(+K45,FactSum,2,FALSE)","v":"Direct Assignment"},"A",{"$f":"VLOOKUP(+M45,FactSum,2,FALSE)","v":"Direct Assignment"}]
[null,null,"Customers","F40","F40","F40","F40",{"$f":"VLOOKUP(+G46,FactSum,2,FALSE)","v":"Average Customers"},"F40",{"$f":"VLOOKUP(+I46,FactSum,2,FALSE)","v":"Average Customers"},"F40",{"$f":"VLOOKUP(+K46,FactSum,2,FALSE)","v":"Average Customers"},"F40",{"$f":"VLOOKUP(+M46,FactSum,2,FALSE)","v":"Average Customers"}]
[]
[]
["451","Misc Electric Revenue",null,"A","A","A","A",{"$f":"VLOOKUP(+G49,FactSum,2,FALSE)","v":"Direct Assignment"},"A",{"$f":"VLOOKUP(+I49,FactSum,2,FALSE)","v":"Direct Assignment"},"A",{"$f":"VLOOKUP(+K49,FactSum,2,FALSE)","v":"Direct Assignment"},"A",{"$f":"VLOOKUP(+M49,FactSum,2,FALSE)","v":"Direct Assignment"}]
[null,null,"Demand","F10",{"$f":"IF(Classification=\"DEMAND\",\"F12\",IF(Classification=\"ENERGY\",\"F30\",\"F10\"))","v":"F10"},{"$f":"IF(Classification=\"DEMAND\",\"F12\",IF(Classification=\"ENERGY\",\"F30\",\"F10\"))","v":"F10"},{"$f":"IF(Classification=\"DEMAND\",\"F12\",IF(Classification=\"ENERGY\",\"F30\",\"F10\"))","v":"F10"},{"$f":"VLOOKUP(+G50,FactSum,2,FALSE)","v":"100 Summer 100 Winter System Peaks"},{"$f":"IF(Classification=\"DEMAND\",\"F12\",IF(Classification=\"ENERGY\",\"F30\",\"F10\"))","v":"F10"},{"$f":"VLOOKUP(+I50,FactSum,2,FALSE)","v":"100 Summer 100 Winter System Peaks"},"F10",{"$f":"VLOOKUP(+K50,FactSum,2,FALSE)","v":"100 Summer 100 Winter System Peaks"},"F10",{"$f":"VLOOKUP(+M50,FactSum,2,FALSE)","v":"100 Summer 100 Winter System Peaks"}]
[null,null,"Customer","F40","F40","F40","F40",{"$f":"VLOOKUP(+G51,FactSum,2,FALSE)","v":"Average Customers"},"F40",{"$f":"VLOOKUP(+I51,FactSum,2,FALSE)","v":"Average Customers"},"F40",{"$f":"VLOOKUP(+K51,FactSum,2,FALSE)","v":"Average Customers"},"F40",{"$f":"VLOOKUP(+M51,FactSum,2,FALSE)","v":"Average Customers"}]
[]
[]
["453","Water Sales",null,"F10",{"$f":"IF(Classification=\"DEMAND\",\"F12\",IF(Classification=\"ENERGY\",\"F30\",\"F10\"))","v":"F10"},{"$f":"IF(Classification=\"DEMAND\",\"F12\",IF(Classification=\"ENERGY\",\"F30\",\"F10\"))","v":"F10"},{"$f":"IF(Classification=\"DEMAND\",\"F12\",IF(Classification=\"ENERGY\",\"F30\",\"F10\"))","v":"F10"},{"$f":"VLOOKUP(+G54,FactSum,2,FALSE)","v":"100 Summer 100 Winter System Peaks"},{"$f":"IF(Classification=\"DEMAND\",\"F12\",IF(Classification=\"ENERGY\",\"F30\",\"F10\"))","v":"F10"},{"$f":"VLOOKUP(+I54,FactSum,2,FALSE)","v":"100 Summer 100 Winter System Peaks"},"F10",{"$f":"VLOOKUP(+K54,FactSum,2,FALSE)","v":"100 Summer 100 Winter System Peaks"},"F10",{"$f":"VLOOKUP(+M54,FactSum,2,FALSE)","v":"100 Summer 100 Winter System Peaks"}]
[]
["454","Rent of Electric Property",null,"A","A","A","A",{"$f":"VLOOKUP(+G56,FactSum,2,FALSE)","v":"Direct Assignment"},"A",{"$f":"VLOOKUP(+I56,FactSum,2,FALSE)","v":"Direct Assignment"},"A",{"$f":"VLOOKUP(+K56,FactSum,2,FALSE)","v":"Direct Assignment"},"A",{"$f":"VLOOKUP(+M56,FactSum,2,FALSE)","v":"Direct Assignment"}]
[null,null,"Demand","F10",{"$f":"IF(Classification=\"DEMAND\",\"F12\",IF(Classification=\"ENERGY\",\"F30\",\"F10\"))","v":"F10"},{"$f":"IF(Classification=\"DEMAND\",\"F12\",IF(Classification=\"ENERGY\",\"F30\",\"F10\"))","v":"F10"},{"$f":"IF(Classification=\"DEMAND\",\"F12\",IF(Classification=\"ENERGY\",\"F30\",\"F10\"))","v":"F10"},{"$f":"VLOOKUP(+G57,FactSum,2,FALSE)","v":"100 Summer 100 Winter System Peaks"},{"$f":"IF(Classification=\"DEMAND\",\"F12\",IF(Classification=\"ENERGY\",\"F30\",\"F10\"))","v":"F10"},{"$f":"VLOOKUP(+I57,FactSum,2,FALSE)","v":"100 Summer 100 Winter System Peaks"},"F10",{"$f":"VLOOKUP(+K57,FactSum,2,FALSE)","v":"100 Summer 100 Winter System Peaks"},"F10",{"$f":"VLOOKUP(+M57,FactSum,2,FALSE)","v":"100 Summer 100 Winter System Peaks"}]
[null,null,"Customer","F40","F40","F40","F40",{"$f":"VLOOKUP(+G58,FactSum,2,FALSE)","v":"Average Customers"},"F40",{"$f":"VLOOKUP(+I58,FactSum,2,FALSE)","v":"Average Customers"},"F40",{"$f":"VLOOKUP(+K58,FactSum,2,FALSE)","v":"Average Customers"},"F40",{"$f":"VLOOKUP(+M58,FactSum,2,FALSE)","v":"Average Customers"}]
[]
[]
["456","Other Electric Revenue",null,"A","A","A","A",{"$f":"VLOOKUP(+G61,FactSum,2,FALSE)","v":"Direct Assignment"},"A",{"$f":"VLOOKUP(+I61,FactSum,2,FALSE)","v":"Direct Assignment"},"A",{"$f":"VLOOKUP(+K61,FactSum,2,FALSE)","v":"Direct Assignment"},"A",{"$f":"VLOOKUP(+M61,FactSum,2,FALSE)","v":"Direct Assignment"}]
[null,null,"Demand","F10",{"$f":"IF(Classification=\"DEMAND\",\"F12\",IF(Classification=\"ENERGY\",\"F30\",\"F10\"))","v":"F10"},{"$f":"IF(Classification=\"DEMAND\",\"F12\",IF(Classification=\"ENERGY\",\"F30\",\"F10\"))","v":"F10"},{"$f":"IF(Classification=\"DEMAND\",\"F12\",IF(Classification=\"ENERGY\",\"F30\",\"F10\"))","v":"F10"},{"$f":"VLOOKUP(+G62,FactSum,2,FALSE)","v":"100 Summer 100 Winter System Peaks"},{"$f":"IF(Classification=\"DEMAND\",\"F12\",IF(Classification=\"ENERGY\",\"F30\",\"F10\"))","v":"F10"},{"$f":"VLOOKUP(+I62,FactSum,2,FALSE)","v":"100 Summer 100 Winter System Peaks"},"F10",{"$f":"VLOOKUP(+K62,FactSum,2,FALSE)","v":"100 Summer 100 Winter System Peaks"},"F10",{"$f":"VLOOKUP(+M62,FactSum,2,FALSE)","v":"100 Summer 100 Winter System Peaks"}]
[null,null,"Energy","F10",{"$f":"IF(Classification=\"DEMAND\",\"F12\",IF(Classification=\"ENERGY\",\"F30\",\"F10\"))","v":"F10"},"F30",{"$f":"IF(Classification=\"DEMAND\",\"F12\",IF(Classification=\"ENERGY\",\"F30\",\"F10\"))","v":"F10"},{"$f":"VLOOKUP(+G63,FactSum,2,FALSE)","v":"100 Summer 100 Winter System Peaks"},"F30",{"$f":"VLOOKUP(+I63,FactSum,2,FALSE)","v":"MWH @ Input"},"F30",{"$f":"VLOOKUP(+K63,FactSum,2,FALSE)","v":"MWH @ Input"},"F30",{"$f":"VLOOKUP(+M63,FactSum,2,FALSE)","v":"MWH @ Input"}]
[null,null,"Customer","F40","F40","F40","F40",{"$f":"VLOOKUP(+G64,FactSum,2,FALSE)","v":"Average Customers"},"F40",{"$f":"VLOOKUP(+I64,FactSum,2,FALSE)","v":"Average Customers"},"F40",{"$f":"VLOOKUP(+K64,FactSum,2,FALSE)","v":"Average Customers"},"F40",{"$f":"VLOOKUP(+M64,FactSum,2,FALSE)","v":"Average Customers"}]
[]
[]
["Total Other Electric Operating Revenues"]
[]
["Total Electric Operating Revenues"]
[]
["Miscellaneous Revenues"]
["41160","Gain on Sale of Utility Plant - CR",null,"F10",{"$f":"IF(Classification=\"DEMAND\",\"F12\",IF(Classification=\"ENERGY\",\"F30\",\"F10\"))","v":"F10"},"F10","F10",{"$f":"VLOOKUP(+G72,FactSum,2,FALSE)","v":"100 Summer 100 Winter System Peaks"},{"$f":"IF(Classification=\"DEMAND\",\"F12\",IF(Classification=\"ENERGY\",\"F30\",\"F10\"))","v":"F10"},{"$f":"VLOOKUP(+I72,FactSum,2,FALSE)","v":"100 Summer 100 Winter System Peaks"},"F10",{"$f":"VLOOKUP(+K72,FactSum,2,FALSE)","v":"100 Summer 100 Winter System Peaks"},"F10",{"$f":"VLOOKUP(+M72,FactSum,2,FALSE)","v":"100 Summer 100 Winter System Peaks"}]
["41170","Loss on Sale of Utility Plant ",null,"F10","F10","F10","F10","100 Summer 100 Winter System Peaks","F10","100 Summer 100 Winter System Peaks","F11","100 Summer 100 Winter System Peaks","F11","100 Summer 100 Winter System Peaks"]
["4118","Gain from Emission Allowances",null,"F10",{"$f":"IF(Classification=\"DEMAND\",\"F12\",IF(Classification=\"ENERGY\",\"F30\",\"F10\"))","v":"F10"},"F10","F10","100 Summer 100 Winter System Peaks","F10","100 Summer 100 Winter System Peaks","F12","100 Summer 100 Winter System Peaks","F12","100 Summer 100 Winter System Peaks"]
[41181,"Gain from Disposition of NOx Credits",null,"F10","F10","F10","F10","100 Summer 100 Winter System Peaks","F10","100 Summer 100 Winter System Peaks","F13","Seasonal System Capacity Combustion Turbine","F13","Seasonal System Capacity Combustion Turbine"]
["4194","Impact Housing Interest Income",null,"F10","F10","F10","F10","100 Summer 100 Winter System Peaks","F10","100 Summer 100 Winter System Peaks","F14","Seasonal System Generation Combustion Turbine","F14","Seasonal System Generation Combustion Turbine"]
["421","(Gain)/Loss on Sale of Utility Plant",null,"F10","F10","F10","F10","100 Summer 100 Winter System Peaks","F10","100 Summer 100 Winter System Peaks","F15","Seasonal System Capacity Cholla","F15","Seasonal System Capacity Cholla"]
[]
["Total Miscellaneous Revenues"]
[]
["Miscellaneous Expenses"]
["4311","Interest on Customer Deposits",null,"F80","F80","F80","F80",{"$f":"VLOOKUP(+G82,FactSum,2,FALSE)","v":"Uncollectables"},"F80",{"$f":"VLOOKUP(+I82,FactSum,2,FALSE)","v":"Uncollectables"},"F80",{"$f":"VLOOKUP(+K82,FactSum,2,FALSE)","v":"Uncollectables"},"F80",{"$f":"VLOOKUP(+M82,FactSum,2,FALSE)","v":"Uncollectables"}]
[]
["DFA","Divergence Fairness Adjustment"]
[null,"Production ",null,"F105","F105","F105","F105","F106","F102G","F102G","F102G",{"$f":"VLOOKUP(+K85,FactSum,2,FALSE)","v":"SGGP - System Gross Generation Plant"},"F10",{"$f":"VLOOKUP(+M85,FactSum,2,FALSE)","v":"100 Summer 100 Winter System Peaks"}]
[null,"Transmission",null,"F105","F105","F105","F105","F106","F102T","F102T","F102T",{"$f":"VLOOKUP(+K86,FactSum,2,FALSE)","v":"SGTP - System Gross Transmission Plant"},"F10",{"$f":"VLOOKUP(+M86,FactSum,2,FALSE)","v":"100 Summer 100 Winter System Peaks"}]
[null,"Distribution",null,"F105","F105","F105","F105","F106","F102D","F102D","F102D",{"$f":"VLOOKUP(+K87,FactSum,2,FALSE)","v":"SGDP - System Gross Distribution Plant"},"F10",{"$f":"VLOOKUP(+M87,FactSum,2,FALSE)","v":"100 Summer 100 Winter System Peaks"}]
[null,null,"Total DFA"]
[]
["Net Miscellaneous Revenues And Expense"]
[]
[]
[]
[]
["A",null,"B","C","C","C","C",null,"C",null,"C",null,"C"]
[]
["FERC",null,null,"COS","COS","COS","COS",null,"COS",null,"COS",null,"COS"]
["ACCT",null,"DESCRIPTION ","Factor","Factor","Factor","Factor",null,"Factor",null,"Factor",null,"Factor"]
["500","Operation Suprvn & Engineering",null,"F10",{"$f":"IF(Classification=\"DEMAND\",\"F12\",IF(Classification=\"ENERGY\",\"F30\",\"F10\"))","v":"F10"},{"$f":"IF(Classification=\"DEMAND\",\"F12\",IF(Classification=\"ENERGY\",\"F30\",\"F10\"))","v":"F10"},{"$f":"IF(Classification=\"DEMAND\",\"F12\",IF(Classification=\"ENERGY\",\"F30\",\"F10\"))","v":"F10"},{"$f":"VLOOKUP(+G99,FactSum,2,FALSE)","v":"100 Summer 100 Winter System Peaks"},{"$f":"IF(Classification=\"DEMAND\",\"F12\",IF(Classification=\"ENERGY\",\"F30\",\"F10\"))","v":"F10"},{"$f":"VLOOKUP(+I99,FactSum,2,FALSE)","v":"100 Summer 100 Winter System Peaks"},{"$f":"IF(Classification=\"DEMAND\",\"F12\",IF(Classification=\"ENERGY\",\"F30\",\"F10\"))","v":"F10"},{"$f":"VLOOKUP(+K99,FactSum,2,FALSE)","v":"100 Summer 100 Winter System Peaks"},{"$f":"IF(Classification=\"DEMAND\",\"F12\",IF(Classification=\"ENERGY\",\"F30\",\"F10\"))","v":"F10"},{"$f":"VLOOKUP(+M99,FactSum,2,FALSE)","v":"100 Summer 100 Winter System Peaks"}]
[null,null,"JBG","F10",{"$f":"IF(Classification=\"DEMAND\",\"F12\",IF(Classification=\"ENERGY\",\"F30\",\"F10\"))","v":"F10"},{"$f":"IF(Classification=\"DEMAND\",\"F15\",IF(Classification=\"ENERGY\",\"F33\",\"F16\"))","v":"F16"},{"$f":"IF(Classification=\"DEMAND\",\"F12\",IF(Classification=\"ENERGY\",\"F30\",\"F10\"))","v":"F10"},{"$f":"VLOOKUP(+G100,FactSum,2,FALSE)","v":"100 Summer 100 Winter System Peaks"},{"$f":"IF(Classification=\"DEMAND\",\"F12\",IF(Classification=\"ENERGY\",\"F30\",\"F10\"))","v":"F10"},"F15",{"$f":"IF(Classification=\"DEMAND\",\"F12\",IF(Classification=\"ENERGY\",\"F30\",\"F10\"))","v":"F10"},"F15",{"$f":"IF(Classification=\"DEMAND\",\"F12\",IF(Classification=\"ENERGY\",\"F30\",\"F10\"))","v":"F10"},{"$f":"VLOOKUP(+M100,FactSum,2,FALSE)","v":"100 Summer 100 Winter System Peaks"}]
[]
[]
["501","Fuel Related",null,"F10",{"$f":"IF(Classification=\"DEMAND\",\"F12\",IF(Classification=\"ENERGY\",\"F30\",\"F10\"))","v":"F10"},"F30",{"$f":"IF(Classification=\"DEMAND\",\"F12\",IF(Classification=\"ENERGY\",\"F30\",\"F10\"))","v":"F10"},{"$f":"VLOOKUP(+G103,FactSum,2,FALSE)","v":"100 Summer 100 Winter System Peaks"},"F30",{"$f":"VLOOKUP(+I103,FactSum,2,FALSE)","v":"MWH @ Input"},"F30",{"$f":"VLOOKUP(+K103,FactSum,2,FALSE)","v":"MWH @ Input"},"F30",{"$f":"VLOOKUP(+M103,FactSum,2,FALSE)","v":"MWH @ Input"}]
[null,null,"CAEW","F10",{"$f":"IF(Classification=\"DEMAND\",\"F12\",IF(Classification=\"ENERGY\",\"F30\",\"F10\"))","v":"F10"},"F32",{"$f":"IF(Classification=\"DEMAND\",\"F12\",IF(Classification=\"ENERGY\",\"F30\",\"F10\"))","v":"F10"},{"$f":"VLOOKUP(+G104,FactSum,2,FALSE)","v":"100 Summer 100 Winter System Peaks"},"F30","F32","F30","F32","F30"]
[null,null,"JBE","F10",{"$f":"IF(Classification=\"DEMAND\",\"F12\",IF(Classification=\"ENERGY\",\"F30\",\"F10\"))","v":"F10"},"F33",{"$f":"IF(Classification=\"DEMAND\",\"F12\",IF(Classification=\"ENERGY\",\"F30\",\"F10\"))","v":"F10"},{"$f":"VLOOKUP(+G105,FactSum,2,FALSE)","v":"100 Summer 100 Winter System Peaks"},"F30","F33","F30","F33","F30"]
[]
[]
["501NPC","Fuel Related"]
[null,null,"CAEW","F10","F10","F33","F10","100 Summer 100 Winter System Peaks","F30","F33","F30","F33","F30"]
[]
[]
["502","Steam Expenses",null,"F10",{"$f":"IF(Classification=\"DEMAND\",\"F12\",IF(Classification=\"ENERGY\",\"F30\",\"F10\"))","v":"F10"},{"$f":"IF(Classification=\"DEMAND\",\"F12\",IF(Classification=\"ENERGY\",\"F30\",\"F10\"))","v":"F10"},{"$f":"IF(Classification=\"DEMAND\",\"F12\",IF(Classification=\"ENERGY\",\"F30\",\"F10\"))","v":"F10"},{"$f":"VLOOKUP(+G112,FactSum,2,FALSE)","v":"100 Summer 100 Winter System Peaks"},{"$f":"IF(Classification=\"DEMAND\",\"F12\",IF(Classification=\"ENERGY\",\"F30\",\"F10\"))","v":"F10"},{"$f":"VLOOKUP(+I112,FactSum,2,FALSE)","v":"100 Summer 100 Winter System Peaks"},{"$f":"IF(Classification=\"DEMAND\",\"F12\",IF(Classification=\"ENERGY\",\"F30\",\"F10\"))","v":"F10"},{"$f":"VLOOKUP(+K112,FactSum,2,FALSE)","v":"100 Summer 100 Winter System Peaks"},{"$f":"IF(Classification=\"DEMAND\",\"F12\",IF(Classification=\"ENERGY\",\"F30\",\"F10\"))","v":"F10"},{"$f":"VLOOKUP(+M112,FactSum,2,FALSE)","v":"100 Summer 100 Winter System Peaks"}]
[null,null,"JBG","F10",{"$f":"IF(Classification=\"DEMAND\",\"F12\",IF(Classification=\"ENERGY\",\"F30\",\"F10\"))","v":"F10"},{"$f":"IF(Classification=\"DEMAND\",\"F15\",IF(Classification=\"ENERGY\",\"F33\",\"F16\"))","v":"F16"},{"$f":"IF(Classification=\"DEMAND\",\"F12\",IF(Classification=\"ENERGY\",\"F30\",\"F10\"))","v":"F10"},"F16",{"$f":"IF(Classification=\"DEMAND\",\"F12\",IF(Classification=\"ENERGY\",\"F30\",\"F10\"))","v":"F10"},"F15",{"$f":"IF(Classification=\"DEMAND\",\"F12\",IF(Classification=\"ENERGY\",\"F30\",\"F10\"))","v":"F10"},"F15",{"$f":"IF(Classification=\"DEMAND\",\"F12\",IF(Classification=\"ENERGY\",\"F30\",\"F10\"))","v":"F10"}]
[]
[]
["503","Steam From Other Sources",null,"F10",{"$f":"IF(Classification=\"DEMAND\",\"F12\",IF(Classification=\"ENERGY\",\"F30\",\"F10\"))","v":"F10"},{"$f":"IF(Classification=\"DEMAND\",\"F12\",IF(Classification=\"ENERGY\",\"F30\",\"F10\"))","v":"F10"},{"$f":"IF(Classification=\"DEMAND\",\"F12\",IF(Classification=\"ENERGY\",\"F30\",\"F10\"))","v":"F10"},{"$f":"VLOOKUP(+G116,FactSum,2,FALSE)","v":"100 Summer 100 Winter System Peaks"},{"$f":"IF(Classification=\"DEMAND\",\"F12\",IF(Classification=\"ENERGY\",\"F30\",\"F10\"))","v":"F10"},{"$f":"VLOOKUP(+I116,FactSum,2,FALSE)","v":"100 Summer 100 Winter System Peaks"},{"$f":"IF(Classification=\"DEMAND\",\"F12\",IF(Classification=\"ENERGY\",\"F30\",\"F10\"))","v":"F10"},{"$f":"VLOOKUP(+K116,FactSum,2,FALSE)","v":"100 Summer 100 Winter System Peaks"},{"$f":"IF(Classification=\"DEMAND\",\"F12\",IF(Classification=\"ENERGY\",\"F30\",\"F10\"))","v":"F10"},{"$f":"VLOOKUP(+M116,FactSum,2,FALSE)","v":"100 Summer 100 Winter System Peaks"}]
[]
["503NPC","Steam From Other Sources-NPC",null,"F10","F10","F10","F10","100 Summer 100 Winter System Peaks","F10","100 Summer 100 Winter System Peaks","F10","100 Summer 100 Winter System Peaks","F10","100 Summer 100 Winter System Peaks"]
[]
["505","Electric Expenses",null,"F10",{"$f":"IF(Classification=\"DEMAND\",\"F12\",IF(Classification=\"ENERGY\",\"F30\",\"F10\"))","v":"F10"},{"$f":"IF(Classification=\"DEMAND\",\"F12\",IF(Classification=\"ENERGY\",\"F30\",\"F10\"))","v":"F10"},{"$f":"IF(Classification=\"DEMAND\",\"F12\",IF(Classification=\"ENERGY\",\"F30\",\"F10\"))","v":"F10"},{"$f":"VLOOKUP(+G120,FactSum,2,FALSE)","v":"100 Summer 100 Winter System Peaks"},{"$f":"IF(Classification=\"DEMAND\",\"F12\",IF(Classification=\"ENERGY\",\"F30\",\"F10\"))","v":"F10"},{"$f":"VLOOKUP(+I120,FactSum,2,FALSE)","v":"100 Summer 100 Winter System Peaks"},{"$f":"IF(Classification=\"DEMAND\",\"F12\",IF(Classification=\"ENERGY\",\"F30\",\"F10\"))","v":"F10"},{"$f":"VLOOKUP(+K120,FactSum,2,FALSE)","v":"100 Summer 100 Winter System Peaks"},{"$f":"IF(Classification=\"DEMAND\",\"F12\",IF(Classification=\"ENERGY\",\"F30\",\"F10\"))","v":"F10"},{"$f":"VLOOKUP(+M120,FactSum,2,FALSE)","v":"100 Summer 100 Winter System Peaks"}]
[null,null,"JBG","F10",{"$f":"IF(Classification=\"DEMAND\",\"F12\",IF(Classification=\"ENERGY\",\"F30\",\"F10\"))","v":"F10"},{"$f":"IF(Classification=\"DEMAND\",\"F15\",IF(Classification=\"ENERGY\",\"F33\",\"F16\"))","v":"F16"},{"$f":"IF(Classification=\"DEMAND\",\"F12\",IF(Classification=\"ENERGY\",\"F30\",\"F10\"))","v":"F10"},null,{"$f":"IF(Classification=\"DEMAND\",\"F12\",IF(Classification=\"ENERGY\",\"F30\",\"F10\"))","v":"F10"},"F15",{"$f":"IF(Classification=\"DEMAND\",\"F12\",IF(Classification=\"ENERGY\",\"F30\",\"F10\"))","v":"F10"},"F15",{"$f":"IF(Classification=\"DEMAND\",\"F12\",IF(Classification=\"ENERGY\",\"F30\",\"F10\"))","v":"F10"}]
[]
[]
["506","Misc. Steam Expense",null,"F10",{"$f":"IF(Classification=\"DEMAND\",\"F12\",IF(Classification=\"ENERGY\",\"F30\",\"F10\"))","v":"F10"},{"$f":"IF(Classification=\"DEMAND\",\"F12\",IF(Classification=\"ENERGY\",\"F30\",\"F10\"))","v":"F10"},{"$f":"IF(Classification=\"DEMAND\",\"F12\",IF(Classification=\"ENERGY\",\"F30\",\"F10\"))","v":"F10"},{"$f":"VLOOKUP(+G124,FactSum,2,FALSE)","v":"100 Summer 100 Winter System Peaks"},{"$f":"IF(Classification=\"DEMAND\",\"F12\",IF(Classification=\"ENERGY\",\"F30\",\"F10\"))","v":"F10"},{"$f":"VLOOKUP(+I124,FactSum,2,FALSE)","v":"100 Summer 100 Winter System Peaks"},{"$f":"IF(Classification=\"DEMAND\",\"F12\",IF(Classification=\"ENERGY\",\"F30\",\"F10\"))","v":"F10"},{"$f":"VLOOKUP(+K124,FactSum,2,FALSE)","v":"100 Summer 100 Winter System Peaks"},{"$f":"IF(Classification=\"DEMAND\",\"F12\",IF(Classification=\"ENERGY\",\"F30\",\"F10\"))","v":"F10"},{"$f":"VLOOKUP(+M124,FactSum,2,FALSE)","v":"100 Summer 100 Winter System Peaks"}]
[null,null,"JBG","F10",{"$f":"IF(Classification=\"DEMAND\",\"F12\",IF(Classification=\"ENERGY\",\"F30\",\"F10\"))","v":"F10"},{"$f":"IF(Classification=\"DEMAND\",\"F15\",IF(Classification=\"ENERGY\",\"F33\",\"F16\"))","v":"F16"},{"$f":"IF(Classification=\"DEMAND\",\"F12\",IF(Classification=\"ENERGY\",\"F30\",\"F10\"))","v":"F10"},null,{"$f":"IF(Classification=\"DEMAND\",\"F12\",IF(Classification=\"ENERGY\",\"F30\",\"F10\"))","v":"F10"},"F15",{"$f":"IF(Classification=\"DEMAND\",\"F12\",IF(Classification=\"ENERGY\",\"F30\",\"F10\"))","v":"F10"},"F15",{"$f":"IF(Classification=\"DEMAND\",\"F12\",IF(Classification=\"ENERGY\",\"F30\",\"F10\"))","v":"F10"}]
[]
[]
["507","Rents",null,"F10",{"$f":"IF(Classification=\"DEMAND\",\"F12\",IF(Classification=\"ENERGY\",\"F30\",\"F10\"))","v":"F10"},{"$f":"IF(Classification=\"DEMAND\",\"F12\",IF(Classification=\"ENERGY\",\"F30\",\"F10\"))","v":"F10"},{"$f":"IF(Classification=\"DEMAND\",\"F12\",IF(Classification=\"ENERGY\",\"F30\",\"F10\"))","v":"F10"},{"$f":"VLOOKUP(+G128,FactSum,2,FALSE)","v":"100 Summer 100 Winter System Peaks"},{"$f":"IF(Classification=\"DEMAND\",\"F12\",IF(Classification=\"ENERGY\",\"F30\",\"F10\"))","v":"F10"},{"$f":"VLOOKUP(+I128,FactSum,2,FALSE)","v":"100 Summer 100 Winter System Peaks"},{"$f":"IF(Classification=\"DEMAND\",\"F12\",IF(Classification=\"ENERGY\",\"F30\",\"F10\"))","v":"F10"},{"$f":"VLOOKUP(+K128,FactSum,2,FALSE)","v":"100 Summer 100 Winter System Peaks"},{"$f":"IF(Classification=\"DEMAND\",\"F12\",IF(Classification=\"ENERGY\",\"F30\",\"F10\"))","v":"F10"},{"$f":"VLOOKUP(+M128,FactSum,2,FALSE)","v":"100 Summer 100 Winter System Peaks"}]
[null,null,"JBG","F10",{"$f":"IF(Classification=\"DEMAND\",\"F12\",IF(Classification=\"ENERGY\",\"F30\",\"F10\"))","v":"F10"},{"$f":"IF(Classification=\"DEMAND\",\"F15\",IF(Classification=\"ENERGY\",\"F33\",\"F16\"))","v":"F16"},{"$f":"IF(Classification=\"DEMAND\",\"F12\",IF(Classification=\"ENERGY\",\"F30\",\"F10\"))","v":"F10"},null,{"$f":"IF(Classification=\"DEMAND\",\"F12\",IF(Classification=\"ENERGY\",\"F30\",\"F10\"))","v":"F10"},"F15",{"$f":"IF(Classification=\"DEMAND\",\"F12\",IF(Classification=\"ENERGY\",\"F30\",\"F10\"))","v":"F10"},"F15",{"$f":"IF(Classification=\"DEMAND\",\"F12\",IF(Classification=\"ENERGY\",\"F30\",\"F10\"))","v":"F10"}]
[]
[]
["510","Maint Supervision & Engineering",null,"F10",{"$f":"IF(Classification=\"DEMAND\",\"F12\",IF(Classification=\"ENERGY\",\"F30\",\"F10\"))","v":"F10"},{"$f":"IF(Classification=\"DEMAND\",\"F12\",IF(Classification=\"ENERGY\",\"F30\",\"F10\"))","v":"F10"},{"$f":"IF(Classification=\"DEMAND\",\"F12\",IF(Classification=\"ENERGY\",\"F30\",\"F10\"))","v":"F10"},{"$f":"VLOOKUP(+G132,FactSum,2,FALSE)","v":"100 Summer 100 Winter System Peaks"},{"$f":"IF(Classification=\"DEMAND\",\"F12\",IF(Classification=\"ENERGY\",\"F30\",\"F10\"))","v":"F10"},{"$f":"VLOOKUP(+I132,FactSum,2,FALSE)","v":"100 Summer 100 Winter System Peaks"},{"$f":"IF(Classification=\"DEMAND\",\"F12\",IF(Classification=\"ENERGY\",\"F30\",\"F10\"))","v":"F10"},{"$f":"VLOOKUP(+K132,FactSum,2,FALSE)","v":"100 Summer 100 Winter System Peaks"},{"$f":"IF(Classification=\"DEMAND\",\"F12\",IF(Classification=\"ENERGY\",\"F30\",\"F10\"))","v":"F10"},{"$f":"VLOOKUP(+M132,FactSum,2,FALSE)","v":"100 Summer 100 Winter System Peaks"}]
[null,null,"JBG","F10",{"$f":"IF(Classification=\"DEMAND\",\"F12\",IF(Classification=\"ENERGY\",\"F30\",\"F10\"))","v":"F10"},{"$f":"IF(Classification=\"DEMAND\",\"F15\",IF(Classification=\"ENERGY\",\"F33\",\"F16\"))","v":"F16"},{"$f":"IF(Classification=\"DEMAND\",\"F12\",IF(Classification=\"ENERGY\",\"F30\",\"F10\"))","v":"F10"},null,{"$f":"IF(Classification=\"DEMAND\",\"F12\",IF(Classification=\"ENERGY\",\"F30\",\"F10\"))","v":"F10"},"F15",{"$f":"IF(Classification=\"DEMAND\",\"F12\",IF(Classification=\"ENERGY\",\"F30\",\"F10\"))","v":"F10"},"F15",{"$f":"IF(Classification=\"DEMAND\",\"F12\",IF(Classification=\"ENERGY\",\"F30\",\"F10\"))","v":"F10"}]
[]
[]
["511","Maintenance of Structures",null,"F10",{"$f":"IF(Classification=\"DEMAND\",\"F12\",IF(Classification=\"ENERGY\",\"F30\",\"F10\"))","v":"F10"},{"$f":"IF(Classification=\"DEMAND\",\"F12\",IF(Classification=\"ENERGY\",\"F30\",\"F10\"))","v":"F10"},{"$f":"IF(Classification=\"DEMAND\",\"F12\",IF(Classification=\"ENERGY\",\"F30\",\"F10\"))","v":"F10"},{"$f":"VLOOKUP(+G136,FactSum,2,FALSE)","v":"100 Summer 100 Winter System Peaks"},{"$f":"IF(Classification=\"DEMAND\",\"F12\",IF(Classification=\"ENERGY\",\"F30\",\"F10\"))","v":"F10"},{"$f":"VLOOKUP(+I136,FactSum,2,FALSE)","v":"100 Summer 100 Winter System Peaks"},{"$f":"IF(Classification=\"DEMAND\",\"F12\",IF(Classification=\"ENERGY\",\"F30\",\"F10\"))","v":"F10"},{"$f":"VLOOKUP(+K136,FactSum,2,FALSE)","v":"100 Summer 100 Winter System Peaks"},{"$f":"IF(Classification=\"DEMAND\",\"F12\",IF(Classification=\"ENERGY\",\"F30\",\"F10\"))","v":"F10"},{"$f":"VLOOKUP(+M136,FactSum,2,FALSE)","v":"100 Summer 100 Winter System Peaks"}]
[null,null,"JBG","F10",{"$f":"IF(Classification=\"DEMAND\",\"F12\",IF(Classification=\"ENERGY\",\"F30\",\"F10\"))","v":"F10"},{"$f":"IF(Classification=\"DEMAND\",\"F15\",IF(Classification=\"ENERGY\",\"F33\",\"F16\"))","v":"F16"},{"$f":"IF(Classification=\"DEMAND\",\"F12\",IF(Classification=\"ENERGY\",\"F30\",\"F10\"))","v":"F10"},null,{"$f":"IF(Classification=\"DEMAND\",\"F12\",IF(Classification=\"ENERGY\",\"F30\",\"F10\"))","v":"F10"},"F15",{"$f":"IF(Classification=\"DEMAND\",\"F12\",IF(Classification=\"ENERGY\",\"F30\",\"F10\"))","v":"F10"},"F15",{"$f":"IF(Classification=\"DEMAND\",\"F12\",IF(Classification=\"ENERGY\",\"F30\",\"F10\"))","v":"F10"}]
[]
[]
["512","Maintenance of Boiler Plant",null,"F10",{"$f":"IF(Classification=\"DEMAND\",\"F12\",IF(Classification=\"ENERGY\",\"F30\",\"F10\"))","v":"F10"},{"$f":"IF(Classification=\"DEMAND\",\"F12\",IF(Classification=\"ENERGY\",\"F30\",\"F10\"))","v":"F10"},{"$f":"IF(Classification=\"DEMAND\",\"F12\",IF(Classification=\"ENERGY\",\"F30\",\"F10\"))","v":"F10"},{"$f":"VLOOKUP(+G140,FactSum,2,FALSE)","v":"100 Summer 100 Winter System Peaks"},{"$f":"IF(Classification=\"DEMAND\",\"F12\",IF(Classification=\"ENERGY\",\"F30\",\"F10\"))","v":"F10"},{"$f":"VLOOKUP(+I140,FactSum,2,FALSE)","v":"100 Summer 100 Winter System Peaks"},{"$f":"IF(Classification=\"DEMAND\",\"F12\",IF(Classification=\"ENERGY\",\"F30\",\"F10\"))","v":"F10"},{"$f":"VLOOKUP(+K140,FactSum,2,FALSE)","v":"100 Summer 100 Winter System Peaks"},{"$f":"IF(Classification=\"DEMAND\",\"F12\",IF(Classification=\"ENERGY\",\"F30\",\"F10\"))","v":"F10"},{"$f":"VLOOKUP(+M140,FactSum,2,FALSE)","v":"100 Summer 100 Winter System Peaks"}]
[null,null,"JBG","F10",{"$f":"IF(Classification=\"DEMAND\",\"F12\",IF(Classification=\"ENERGY\",\"F30\",\"F10\"))","v":"F10"},{"$f":"IF(Classification=\"DEMAND\",\"F15\",IF(Classification=\"ENERGY\",\"F33\",\"F16\"))","v":"F16"},{"$f":"IF(Classification=\"DEMAND\",\"F12\",IF(Classification=\"ENERGY\",\"F30\",\"F10\"))","v":"F10"},null,{"$f":"IF(Classification=\"DEMAND\",\"F12\",IF(Classification=\"ENERGY\",\"F30\",\"F10\"))","v":"F10"},"F15",{"$f":"IF(Classification=\"DEMAND\",\"F12\",IF(Classification=\"ENERGY\",\"F30\",\"F10\"))","v":"F10"},"F15",{"$f":"IF(Classification=\"DEMAND\",\"F12\",IF(Classification=\"ENERGY\",\"F30\",\"F10\"))","v":"F10"}]
[]
[]
["513","Maintenance of Electric Plant",null,"F10",{"$f":"IF(Classification=\"DEMAND\",\"F12\",IF(Classification=\"ENERGY\",\"F30\",\"F10\"))","v":"F10"},{"$f":"IF(Classification=\"DEMAND\",\"F12\",IF(Classification=\"ENERGY\",\"F30\",\"F10\"))","v":"F10"},{"$f":"IF(Classification=\"DEMAND\",\"F12\",IF(Classification=\"ENERGY\",\"F30\",\"F10\"))","v":"F10"},{"$f":"VLOOKUP(+G144,FactSum,2,FALSE)","v":"100 Summer 100 Winter System Peaks"},{"$f":"IF(Classification=\"DEMAND\",\"F12\",IF(Classification=\"ENERGY\",\"F30\",\"F10\"))","v":"F10"},{"$f":"VLOOKUP(+I144,FactSum,2,FALSE)","v":"100 Summer 100 Winter System Peaks"},{"$f":"IF(Classification=\"DEMAND\",\"F12\",IF(Classification=\"ENERGY\",\"F30\",\"F10\"))","v":"F10"},{"$f":"VLOOKUP(+K144,FactSum,2,FALSE)","v":"100 Summer 100 Winter System Peaks"},{"$f":"IF(Classification=\"DEMAND\",\"F12\",IF(Classification=\"ENERGY\",\"F30\",\"F10\"))","v":"F10"},{"$f":"VLOOKUP(+M144,FactSum,2,FALSE)","v":"100 Summer 100 Winter System Peaks"}]
[null,null,"JBG","F10",{"$f":"IF(Classification=\"DEMAND\",\"F12\",IF(Classification=\"ENERGY\",\"F30\",\"F10\"))","v":"F10"},{"$f":"IF(Classification=\"DEMAND\",\"F15\",IF(Classification=\"ENERGY\",\"F33\",\"F16\"))","v":"F16"},{"$f":"IF(Classification=\"DEMAND\",\"F12\",IF(Classification=\"ENERGY\",\"F30\",\"F10\"))","v":"F10"},null,{"$f":"IF(Classification=\"DEMAND\",\"F12\",IF(Classification=\"ENERGY\",\"F30\",\"F10\"))","v":"F10"},"F15",{"$f":"IF(Classification=\"DEMAND\",\"F12\",IF(Classification=\"ENERGY\",\"F30\",\"F10\"))","v":"F10"},"F15",{"$f":"IF(Classification=\"DEMAND\",\"F12\",IF(Classification=\"ENERGY\",\"F30\",\"F10\"))","v":"F10"}]
[]
[]
["514","Maint of Misc. Steam Plant",null,"F10",{"$f":"IF(Classification=\"DEMAND\",\"F12\",IF(Classification=\"ENERGY\",\"F30\",\"F10\"))","v":"F10"},{"$f":"IF(Classification=\"DEMAND\",\"F12\",IF(Classification=\"ENERGY\",\"F30\",\"F10\"))","v":"F10"},{"$f":"IF(Classification=\"DEMAND\",\"F12\",IF(Classification=\"ENERGY\",\"F30\",\"F10\"))","v":"F10"},{"$f":"VLOOKUP(+G148,FactSum,2,FALSE)","v":"100 Summer 100 Winter System Peaks"},{"$f":"IF(Classification=\"DEMAND\",\"F12\",IF(Classification=\"ENERGY\",\"F30\",\"F10\"))","v":"F10"},{"$f":"VLOOKUP(+I148,FactSum,2,FALSE)","v":"100 Summer 100 Winter System Peaks"},{"$f":"IF(Classification=\"DEMAND\",\"F12\",IF(Classification=\"ENERGY\",\"F30\",\"F10\"))","v":"F10"},{"$f":"VLOOKUP(+K148,FactSum,2,FALSE)","v":"100 Summer 100 Winter System Peaks"},{"$f":"IF(Classification=\"DEMAND\",\"F12\",IF(Classification=\"ENERGY\",\"F30\",\"F10\"))","v":"F10"},{"$f":"VLOOKUP(+M148,FactSum,2,FALSE)","v":"100 Summer 100 Winter System Peaks"}]
[null,null,"JBG","F10",{"$f":"IF(Classification=\"DEMAND\",\"F12\",IF(Classification=\"ENERGY\",\"F30\",\"F10\"))","v":"F10"},{"$f":"IF(Classification=\"DEMAND\",\"F15\",IF(Classification=\"ENERGY\",\"F33\",\"F16\"))","v":"F16"},{"$f":"IF(Classification=\"DEMAND\",\"F12\",IF(Classification=\"ENERGY\",\"F30\",\"F10\"))","v":"F10"},null,{"$f":"IF(Classification=\"DEMAND\",\"F12\",IF(Classification=\"ENERGY\",\"F30\",\"F10\"))","v":"F10"},"F15",{"$f":"IF(Classification=\"DEMAND\",\"F12\",IF(Classification=\"ENERGY\",\"F30\",\"F10\"))","v":"F10"},"F15",{"$f":"IF(Classification=\"DEMAND\",\"F12\",IF(Classification=\"ENERGY\",\"F30\",\"F10\"))","v":"F10"}]
[]
["Total Steam Power Generation"]
[]
[]
[]
[]
[]
[]
["517","Operation Super & Engineering",null,"F10",{"$f":"IF(Classification=\"DEMAND\",\"F12\",IF(Classification=\"ENERGY\",\"F30\",\"F10\"))","v":"F10"},{"$f":"IF(Classification=\"DEMAND\",\"F12\",IF(Classification=\"ENERGY\",\"F30\",\"F10\"))","v":"F10"},{"$f":"IF(Classification=\"DEMAND\",\"F12\",IF(Classification=\"ENERGY\",\"F30\",\"F10\"))","v":"F10"},{"$f":"VLOOKUP(+G158,FactSum,2,FALSE)","v":"100 Summer 100 Winter System Peaks"},{"$f":"IF(Classification=\"DEMAND\",\"F12\",IF(Classification=\"ENERGY\",\"F30\",\"F10\"))","v":"F10"},{"$f":"VLOOKUP(+I158,FactSum,2,FALSE)","v":"100 Summer 100 Winter System Peaks"},"F10",{"$f":"VLOOKUP(+K158,FactSum,2,FALSE)","v":"100 Summer 100 Winter System Peaks"},"F10",{"$f":"VLOOKUP(+M158,FactSum,2,FALSE)","v":"100 Summer 100 Winter System Peaks"}]
[]
["518","Nuclear Fuel Expense",null,"F10",{"$f":"IF(Classification=\"DEMAND\",\"F12\",IF(Classification=\"ENERGY\",\"F30\",\"F10\"))","v":"F10"},"F30",{"$f":"IF(Classification=\"DEMAND\",\"F12\",IF(Classification=\"ENERGY\",\"F30\",\"F10\"))","v":"F10"},{"$f":"VLOOKUP(+G160,FactSum,2,FALSE)","v":"100 Summer 100 Winter System Peaks"},"F30",{"$f":"VLOOKUP(+I160,FactSum,2,FALSE)","v":"MWH @ Input"},"F30",{"$f":"VLOOKUP(+K160,FactSum,2,FALSE)","v":"MWH @ Input"},"F30",{"$f":"VLOOKUP(+M160,FactSum,2,FALSE)","v":"MWH @ Input"}]
[]
["519","Coolants and Water",null,"F10",{"$f":"IF(Classification=\"DEMAND\",\"F12\",IF(Classification=\"ENERGY\",\"F30\",\"F10\"))","v":"F10"},{"$f":"IF(Classification=\"DEMAND\",\"F12\",IF(Classification=\"ENERGY\",\"F30\",\"F10\"))","v":"F10"},{"$f":"IF(Classification=\"DEMAND\",\"F12\",IF(Classification=\"ENERGY\",\"F30\",\"F10\"))","v":"F10"},{"$f":"VLOOKUP(+G162,FactSum,2,FALSE)","v":"100 Summer 100 Winter System Peaks"},{"$f":"IF(Classification=\"DEMAND\",\"F12\",IF(Classification=\"ENERGY\",\"F30\",\"F10\"))","v":"F10"},{"$f":"VLOOKUP(+I162,FactSum,2,FALSE)","v":"100 Summer 100 Winter System Peaks"},"F10",{"$f":"VLOOKUP(+K162,FactSum,2,FALSE)","v":"100 Summer 100 Winter System Peaks"},"F10",{"$f":"VLOOKUP(+M162,FactSum,2,FALSE)","v":"100 Summer 100 Winter System Peaks"}]
[]
["520","Steam Expenses",null,"F10",{"$f":"IF(Classification=\"DEMAND\",\"F12\",IF(Classification=\"ENERGY\",\"F30\",\"F10\"))","v":"F10"},{"$f":"IF(Classification=\"DEMAND\",\"F12\",IF(Classification=\"ENERGY\",\"F30\",\"F10\"))","v":"F10"},{"$f":"IF(Classification=\"DEMAND\",\"F12\",IF(Classification=\"ENERGY\",\"F30\",\"F10\"))","v":"F10"},{"$f":"VLOOKUP(+G164,FactSum,2,FALSE)","v":"100 Summer 100 Winter System Peaks"},{"$f":"IF(Classification=\"DEMAND\",\"F12\",IF(Classification=\"ENERGY\",\"F30\",\"F10\"))","v":"F10"},{"$f":"VLOOKUP(+I164,FactSum,2,FALSE)","v":"100 Summer 100 Winter System Peaks"},"F10",{"$f":"VLOOKUP(+K164,FactSum,2,FALSE)","v":"100 Summer 100 Winter System Peaks"},"F10",{"$f":"VLOOKUP(+M164,FactSum,2,FALSE)","v":"100 Summer 100 Winter System Peaks"}]
[]
["523","Electric Expenses",null,"F10",{"$f":"IF(Classification=\"DEMAND\",\"F12\",IF(Classification=\"ENERGY\",\"F30\",\"F10\"))","v":"F10"},{"$f":"IF(Classification=\"DEMAND\",\"F12\",IF(Classification=\"ENERGY\",\"F30\",\"F10\"))","v":"F10"},{"$f":"IF(Classification=\"DEMAND\",\"F12\",IF(Classification=\"ENERGY\",\"F30\",\"F10\"))","v":"F10"},{"$f":"VLOOKUP(+G166,FactSum,2,FALSE)","v":"100 Summer 100 Winter System Peaks"},{"$f":"IF(Classification=\"DEMAND\",\"F12\",IF(Classification=\"ENERGY\",\"F30\",\"F10\"))","v":"F10"},{"$f":"VLOOKUP(+I166,FactSum,2,FALSE)","v":"100 Summer 100 Winter System Peaks"},"F10",{"$f":"VLOOKUP(+K166,FactSum,2,FALSE)","v":"100 Summer 100 Winter System Peaks"},"F10",{"$f":"VLOOKUP(+M166,FactSum,2,FALSE)","v":"100 Summer 100 Winter System Peaks"}]
[]
["524","Misc. Nuclear Expenses",null,"F10",{"$f":"IF(Classification=\"DEMAND\",\"F12\",IF(Classification=\"ENERGY\",\"F30\",\"F10\"))","v":"F10"},{"$f":"IF(Classification=\"DEMAND\",\"F12\",IF(Classification=\"ENERGY\",\"F30\",\"F10\"))","v":"F10"},{"$f":"IF(Classification=\"DEMAND\",\"F12\",IF(Classification=\"ENERGY\",\"F30\",\"F10\"))","v":"F10"},{"$f":"VLOOKUP(+G168,FactSum,2,FALSE)","v":"100 Summer 100 Winter System Peaks"},{"$f":"IF(Classification=\"DEMAND\",\"F12\",IF(Classification=\"ENERGY\",\"F30\",\"F10\"))","v":"F10"},{"$f":"VLOOKUP(+I168,FactSum,2,FALSE)","v":"100 Summer 100 Winter System Peaks"},"F10",{"$f":"VLOOKUP(+K168,FactSum,2,FALSE)","v":"100 Summer 100 Winter System Peaks"},"F10",{"$f":"VLOOKUP(+M168,FactSum,2,FALSE)","v":"100 Summer 100 Winter System Peaks"}]
[]
["528","Maint Supervision & Eng",null,"F10",{"$f":"IF(Classification=\"DEMAND\",\"F12\",IF(Classification=\"ENERGY\",\"F30\",\"F10\"))","v":"F10"},{"$f":"IF(Classification=\"DEMAND\",\"F12\",IF(Classification=\"ENERGY\",\"F30\",\"F10\"))","v":"F10"},{"$f":"IF(Classification=\"DEMAND\",\"F12\",IF(Classification=\"ENERGY\",\"F30\",\"F10\"))","v":"F10"},{"$f":"VLOOKUP(+G170,FactSum,2,FALSE)","v":"100 Summer 100 Winter System Peaks"},{"$f":"IF(Classification=\"DEMAND\",\"F12\",IF(Classification=\"ENERGY\",\"F30\",\"F10\"))","v":"F10"},{"$f":"VLOOKUP(+I170,FactSum,2,FALSE)","v":"100 Summer 100 Winter System Peaks"},"F10",{"$f":"VLOOKUP(+K170,FactSum,2,FALSE)","v":"100 Summer 100 Winter System Peaks"},"F10",{"$f":"VLOOKUP(+M170,FactSum,2,FALSE)","v":"100 Summer 100 Winter System Peaks"}]
[]
["529","Maintenance of Structures",null,"F10",{"$f":"IF(Classification=\"DEMAND\",\"F12\",IF(Classification=\"ENERGY\",\"F30\",\"F10\"))","v":"F10"},{"$f":"IF(Classification=\"DEMAND\",\"F12\",IF(Classification=\"ENERGY\",\"F30\",\"F10\"))","v":"F10"},{"$f":"IF(Classification=\"DEMAND\",\"F12\",IF(Classification=\"ENERGY\",\"F30\",\"F10\"))","v":"F10"},{"$f":"VLOOKUP(+G172,FactSum,2,FALSE)","v":"100 Summer 100 Winter System Peaks"},{"$f":"IF(Classification=\"DEMAND\",\"F12\",IF(Classification=\"ENERGY\",\"F30\",\"F10\"))","v":"F10"},{"$f":"VLOOKUP(+I172,FactSum,2,FALSE)","v":"100 Summer 100 Winter System Peaks"},"F10",{"$f":"VLOOKUP(+K172,FactSum,2,FALSE)","v":"100 Summer 100 Winter System Peaks"},"F10",{"$f":"VLOOKUP(+M172,FactSum,2,FALSE)","v":"100 Summer 100 Winter System Peaks"}]
[]
["530","Maintenance of Reactor Plant",null,"F10",{"$f":"IF(Classification=\"DEMAND\",\"F12\",IF(Classification=\"ENERGY\",\"F30\",\"F10\"))","v":"F10"},{"$f":"IF(Classification=\"DEMAND\",\"F12\",IF(Classification=\"ENERGY\",\"F30\",\"F10\"))","v":"F10"},{"$f":"IF(Classification=\"DEMAND\",\"F12\",IF(Classification=\"ENERGY\",\"F30\",\"F10\"))","v":"F10"},{"$f":"VLOOKUP(+G174,FactSum,2,FALSE)","v":"100 Summer 100 Winter System Peaks"},{"$f":"IF(Classification=\"DEMAND\",\"F12\",IF(Classification=\"ENERGY\",\"F30\",\"F10\"))","v":"F10"},{"$f":"VLOOKUP(+I174,FactSum,2,FALSE)","v":"100 Summer 100 Winter System Peaks"},"F10",{"$f":"VLOOKUP(+K174,FactSum,2,FALSE)","v":"100 Summer 100 Winter System Peaks"},"F10",{"$f":"VLOOKUP(+M174,FactSum,2,FALSE)","v":"100 Summer 100 Winter System Peaks"}]
[]
["531","Maintenance of Electric Plant",null,"F10",{"$f":"IF(Classification=\"DEMAND\",\"F12\",IF(Classification=\"ENERGY\",\"F30\",\"F10\"))","v":"F10"},{"$f":"IF(Classification=\"DEMAND\",\"F12\",IF(Classification=\"ENERGY\",\"F30\",\"F10\"))","v":"F10"},{"$f":"IF(Classification=\"DEMAND\",\"F12\",IF(Classification=\"ENERGY\",\"F30\",\"F10\"))","v":"F10"},{"$f":"VLOOKUP(+G176,FactSum,2,FALSE)","v":"100 Summer 100 Winter System Peaks"},{"$f":"IF(Classification=\"DEMAND\",\"F12\",IF(Classification=\"ENERGY\",\"F30\",\"F10\"))","v":"F10"},{"$f":"VLOOKUP(+I176,FactSum,2,FALSE)","v":"100 Summer 100 Winter System Peaks"},"F10",{"$f":"VLOOKUP(+K176,FactSum,2,FALSE)","v":"100 Summer 100 Winter System Peaks"},"F10",{"$f":"VLOOKUP(+M176,FactSum,2,FALSE)","v":"100 Summer 100 Winter System Peaks"}]
[]
["532","Maintenance of Misc Nuclear",null,"F10",{"$f":"IF(Classification=\"DEMAND\",\"F12\",IF(Classification=\"ENERGY\",\"F30\",\"F10\"))","v":"F10"},{"$f":"IF(Classification=\"DEMAND\",\"F12\",IF(Classification=\"ENERGY\",\"F30\",\"F10\"))","v":"F10"},{"$f":"IF(Classification=\"DEMAND\",\"F12\",IF(Classification=\"ENERGY\",\"F30\",\"F10\"))","v":"F10"},{"$f":"VLOOKUP(+G178,FactSum,2,FALSE)","v":"100 Summer 100 Winter System Peaks"},{"$f":"IF(Classification=\"DEMAND\",\"F12\",IF(Classification=\"ENERGY\",\"F30\",\"F10\"))","v":"F10"},{"$f":"VLOOKUP(+I178,FactSum,2,FALSE)","v":"100 Summer 100 Winter System Peaks"},"F10",{"$f":"VLOOKUP(+K178,FactSum,2,FALSE)","v":"100 Summer 100 Winter System Peaks"},"F10",{"$f":"VLOOKUP(+M178,FactSum,2,FALSE)","v":"100 Summer 100 Winter System Peaks"}]
[]
["Total Nuclear Power Generation"]
[]
[]
[]
[]
[]
["A",null,"B","C","C","C","C",null,"C",null,"C",null,"C"]
[]
["FERC",null,null,"COS","COS","COS","COS",null,"COS",null,"COS",null,"COS"]
["ACCT",null,"DESCRIPTION ","Factor","Factor","Factor","Factor",null,"Factor",null,"Factor",null,"Factor"]
["535","Operation Super & Engineering",null,"F10",{"$f":"IF(Classification=\"DEMAND\",\"F12\",IF(Classification=\"ENERGY\",\"F30\",\"F10\"))","v":"F10"},{"$f":"IF(Classification=\"DEMAND\",\"F12\",IF(Classification=\"ENERGY\",\"F30\",\"F10\"))","v":"F10"},{"$f":"IF(Classification=\"DEMAND\",\"F12\",IF(Classification=\"ENERGY\",\"F30\",\"F10\"))","v":"F10"},{"$f":"VLOOKUP(+G190,FactSum,2,FALSE)","v":"100 Summer 100 Winter System Peaks"},{"$f":"IF(Classification=\"DEMAND\",\"F12\",IF(Classification=\"ENERGY\",\"F30\",\"F10\"))","v":"F10"},{"$f":"VLOOKUP(+I190,FactSum,2,FALSE)","v":"100 Summer 100 Winter System Peaks"},"F10",{"$f":"VLOOKUP(+K190,FactSum,2,FALSE)","v":"100 Summer 100 Winter System Peaks"},"F10",{"$f":"VLOOKUP(+M190,FactSum,2,FALSE)","v":"100 Summer 100 Winter System Peaks"}]
[]
["536","Water For Power",null,"F10",{"$f":"IF(Classification=\"DEMAND\",\"F12\",IF(Classification=\"ENERGY\",\"F30\",\"F10\"))","v":"F10"},{"$f":"IF(Classification=\"DEMAND\",\"F12\",IF(Classification=\"ENERGY\",\"F30\",\"F10\"))","v":"F10"},{"$f":"IF(Classification=\"DEMAND\",\"F12\",IF(Classification=\"ENERGY\",\"F30\",\"F10\"))","v":"F10"},{"$f":"VLOOKUP(+G192,FactSum,2,FALSE)","v":"100 Summer 100 Winter System Peaks"},{"$f":"IF(Classification=\"DEMAND\",\"F12\",IF(Classification=\"ENERGY\",\"F30\",\"F10\"))","v":"F10"},{"$f":"VLOOKUP(+I192,FactSum,2,FALSE)","v":"100 Summer 100 Winter System Peaks"},"F10",{"$f":"VLOOKUP(+K192,FactSum,2,FALSE)","v":"100 Summer 100 Winter System Peaks"},"F10",{"$f":"VLOOKUP(+M192,FactSum,2,FALSE)","v":"100 Summer 100 Winter System Peaks"}]
[]
["537","Hydraulic Expenses",null,"F10",{"$f":"IF(Classification=\"DEMAND\",\"F12\",IF(Classification=\"ENERGY\",\"F30\",\"F10\"))","v":"F10"},{"$f":"IF(Classification=\"DEMAND\",\"F12\",IF(Classification=\"ENERGY\",\"F30\",\"F10\"))","v":"F10"},{"$f":"IF(Classification=\"DEMAND\",\"F12\",IF(Classification=\"ENERGY\",\"F30\",\"F10\"))","v":"F10"},{"$f":"VLOOKUP(+G194,FactSum,2,FALSE)","v":"100 Summer 100 Winter System Peaks"},{"$f":"IF(Classification=\"DEMAND\",\"F12\",IF(Classification=\"ENERGY\",\"F30\",\"F10\"))","v":"F10"},{"$f":"VLOOKUP(+I194,FactSum,2,FALSE)","v":"100 Summer 100 Winter System Peaks"},"F10",{"$f":"VLOOKUP(+K194,FactSum,2,FALSE)","v":"100 Summer 100 Winter System Peaks"},"F10",{"$f":"VLOOKUP(+M194,FactSum,2,FALSE)","v":"100 Summer 100 Winter System Peaks"}]
[]
["538","Electric Expenses",null,"F10",{"$f":"IF(Classification=\"DEMAND\",\"F12\",IF(Classification=\"ENERGY\",\"F30\",\"F10\"))","v":"F10"},{"$f":"IF(Classification=\"DEMAND\",\"F12\",IF(Classification=\"ENERGY\",\"F30\",\"F10\"))","v":"F10"},{"$f":"IF(Classification=\"DEMAND\",\"F12\",IF(Classification=\"ENERGY\",\"F30\",\"F10\"))","v":"F10"},{"$f":"VLOOKUP(+G196,FactSum,2,FALSE)","v":"100 Summer 100 Winter System Peaks"},{"$f":"IF(Classification=\"DEMAND\",\"F12\",IF(Classification=\"ENERGY\",\"F30\",\"F10\"))","v":"F10"},{"$f":"VLOOKUP(+I196,FactSum,2,FALSE)","v":"100 Summer 100 Winter System Peaks"},"F10",{"$f":"VLOOKUP(+K196,FactSum,2,FALSE)","v":"100 Summer 100 Winter System Peaks"},"F10",{"$f":"VLOOKUP(+M196,FactSum,2,FALSE)","v":"100 Summer 100 Winter System Peaks"}]
[]
["539","Misc. Hydro Expenses",null,"F10",{"$f":"IF(Classification=\"DEMAND\",\"F12\",IF(Classification=\"ENERGY\",\"F30\",\"F10\"))","v":"F10"},{"$f":"IF(Classification=\"DEMAND\",\"F12\",IF(Classification=\"ENERGY\",\"F30\",\"F10\"))","v":"F10"},{"$f":"IF(Classification=\"DEMAND\",\"F12\",IF(Classification=\"ENERGY\",\"F30\",\"F10\"))","v":"F10"},{"$f":"VLOOKUP(+G198,FactSum,2,FALSE)","v":"100 Summer 100 Winter System Peaks"},{"$f":"IF(Classification=\"DEMAND\",\"F12\",IF(Classification=\"ENERGY\",\"F30\",\"F10\"))","v":"F10"},{"$f":"VLOOKUP(+I198,FactSum,2,FALSE)","v":"100 Summer 100 Winter System Peaks"},"F10",{"$f":"VLOOKUP(+K198,FactSum,2,FALSE)","v":"100 Summer 100 Winter System Peaks"},"F10",{"$f":"VLOOKUP(+M198,FactSum,2,FALSE)","v":"100 Summer 100 Winter System Peaks"}]
[]
["540","Rents (Hydro Generation)",null,"F10",{"$f":"IF(Classification=\"DEMAND\",\"F12\",IF(Classification=\"ENERGY\",\"F30\",\"F10\"))","v":"F10"},{"$f":"IF(Classification=\"DEMAND\",\"F12\",IF(Classification=\"ENERGY\",\"F30\",\"F10\"))","v":"F10"},{"$f":"IF(Classification=\"DEMAND\",\"F12\",IF(Classification=\"ENERGY\",\"F30\",\"F10\"))","v":"F10"},{"$f":"VLOOKUP(+G200,FactSum,2,FALSE)","v":"100 Summer 100 Winter System Peaks"},{"$f":"IF(Classification=\"DEMAND\",\"F12\",IF(Classification=\"ENERGY\",\"F30\",\"F10\"))","v":"F10"},{"$f":"VLOOKUP(+I200,FactSum,2,FALSE)","v":"100 Summer 100 Winter System Peaks"},"F10",{"$f":"VLOOKUP(+K200,FactSum,2,FALSE)","v":"100 Summer 100 Winter System Peaks"},"F10",{"$f":"VLOOKUP(+M200,FactSum,2,FALSE)","v":"100 Summer 100 Winter System Peaks"}]
[]
["541","Maint Supervision & Engineering",null,"F10",{"$f":"IF(Classification=\"DEMAND\",\"F12\",IF(Classification=\"ENERGY\",\"F30\",\"F10\"))","v":"F10"},{"$f":"IF(Classification=\"DEMAND\",\"F12\",IF(Classification=\"ENERGY\",\"F30\",\"F10\"))","v":"F10"},{"$f":"IF(Classification=\"DEMAND\",\"F12\",IF(Classification=\"ENERGY\",\"F30\",\"F10\"))","v":"F10"},{"$f":"VLOOKUP(+G202,FactSum,2,FALSE)","v":"100 Summer 100 Winter System Peaks"},{"$f":"IF(Classification=\"DEMAND\",\"F12\",IF(Classification=\"ENERGY\",\"F30\",\"F10\"))","v":"F10"},{"$f":"VLOOKUP(+I202,FactSum,2,FALSE)","v":"100 Summer 100 Winter System Peaks"},"F10",{"$f":"VLOOKUP(+K202,FactSum,2,FALSE)","v":"100 Summer 100 Winter System Peaks"},"F10",{"$f":"VLOOKUP(+M202,FactSum,2,FALSE)","v":"100 Summer 100 Winter System Peaks"}]
[]
["542","Maintenance of Structures",null,"F10",{"$f":"IF(Classification=\"DEMAND\",\"F12\",IF(Classification=\"ENERGY\",\"F30\",\"F10\"))","v":"F10"},{"$f":"IF(Classification=\"DEMAND\",\"F12\",IF(Classification=\"ENERGY\",\"F30\",\"F10\"))","v":"F10"},{"$f":"IF(Classification=\"DEMAND\",\"F12\",IF(Classification=\"ENERGY\",\"F30\",\"F10\"))","v":"F10"},{"$f":"VLOOKUP(+G204,FactSum,2,FALSE)","v":"100 Summer 100 Winter System Peaks"},{"$f":"IF(Classification=\"DEMAND\",\"F12\",IF(Classification=\"ENERGY\",\"F30\",\"F10\"))","v":"F10"},{"$f":"VLOOKUP(+I204,FactSum,2,FALSE)","v":"100 Summer 100 Winter System Peaks"},"F10",{"$f":"VLOOKUP(+K204,FactSum,2,FALSE)","v":"100 Summer 100 Winter System Peaks"},"F10",{"$f":"VLOOKUP(+M204,FactSum,2,FALSE)","v":"100 Summer 100 Winter System Peaks"}]
[]
["543","Maint of Dams & Waterways",null,"F10",{"$f":"IF(Classification=\"DEMAND\",\"F12\",IF(Classification=\"ENERGY\",\"F30\",\"F10\"))","v":"F10"},{"$f":"IF(Classification=\"DEMAND\",\"F12\",IF(Classification=\"ENERGY\",\"F30\",\"F10\"))","v":"F10"},{"$f":"IF(Classification=\"DEMAND\",\"F12\",IF(Classification=\"ENERGY\",\"F30\",\"F10\"))","v":"F10"},{"$f":"VLOOKUP(+G206,FactSum,2,FALSE)","v":"100 Summer 100 Winter System Peaks"},{"$f":"IF(Classification=\"DEMAND\",\"F12\",IF(Classification=\"ENERGY\",\"F30\",\"F10\"))","v":"F10"},{"$f":"VLOOKUP(+I206,FactSum,2,FALSE)","v":"100 Summer 100 Winter System Peaks"},"F10",{"$f":"VLOOKUP(+K206,FactSum,2,FALSE)","v":"100 Summer 100 Winter System Peaks"},"F10",{"$f":"VLOOKUP(+M206,FactSum,2,FALSE)","v":"100 Summer 100 Winter System Peaks"}]
[]
["544","Maintenance of Electric Plant",null,"F10",{"$f":"IF(Classification=\"DEMAND\",\"F12\",IF(Classification=\"ENERGY\",\"F30\",\"F10\"))","v":"F10"},{"$f":"IF(Classification=\"DEMAND\",\"F12\",IF(Classification=\"ENERGY\",\"F30\",\"F10\"))","v":"F10"},{"$f":"IF(Classification=\"DEMAND\",\"F12\",IF(Classification=\"ENERGY\",\"F30\",\"F10\"))","v":"F10"},{"$f":"VLOOKUP(+G208,FactSum,2,FALSE)","v":"100 Summer 100 Winter System Peaks"},{"$f":"IF(Classification=\"DEMAND\",\"F12\",IF(Classification=\"ENERGY\",\"F30\",\"F10\"))","v":"F10"},{"$f":"VLOOKUP(+I208,FactSum,2,FALSE)","v":"100 Summer 100 Winter System Peaks"},"F10",{"$f":"VLOOKUP(+K208,FactSum,2,FALSE)","v":"100 Summer 100 Winter System Peaks"},"F10",{"$f":"VLOOKUP(+M208,FactSum,2,FALSE)","v":"100 Summer 100 Winter System Peaks"}]
[]
["545","Maint of Misc. Hydro Plant",null,"F10",{"$f":"IF(Classification=\"DEMAND\",\"F12\",IF(Classification=\"ENERGY\",\"F30\",\"F10\"))","v":"F10"},{"$f":"IF(Classification=\"DEMAND\",\"F12\",IF(Classification=\"ENERGY\",\"F30\",\"F10\"))","v":"F10"},{"$f":"IF(Classification=\"DEMAND\",\"F12\",IF(Classification=\"ENERGY\",\"F30\",\"F10\"))","v":"F10"},{"$f":"VLOOKUP(+G210,FactSum,2,FALSE)","v":"100 Summer 100 Winter System Peaks"},{"$f":"IF(Classification=\"DEMAND\",\"F12\",IF(Classification=\"ENERGY\",\"F30\",\"F10\"))","v":"F10"},{"$f":"VLOOKUP(+I210,FactSum,2,FALSE)","v":"100 Summer 100 Winter System Peaks"},"F10",{"$f":"VLOOKUP(+K210,FactSum,2,FALSE)","v":"100 Summer 100 Winter System Peaks"},"F10",{"$f":"VLOOKUP(+M210,FactSum,2,FALSE)","v":"100 Summer 100 Winter System Peaks"}]
[]
["Total Hydraulic Power Generation "]
[]
[]
[]
[]
[]
["546","Operation Super & Engineering",null,"F10",{"$f":"IF(Classification=\"DEMAND\",\"F12\",IF(Classification=\"ENERGY\",\"F30\",\"F10\"))","v":"F10"},{"$f":"IF(Classification=\"DEMAND\",\"F12\",IF(Classification=\"ENERGY\",\"F30\",\"F10\"))","v":"F10"},{"$f":"IF(Classification=\"DEMAND\",\"F12\",IF(Classification=\"ENERGY\",\"F30\",\"F10\"))","v":"F10"},{"$f":"VLOOKUP(+G218,FactSum,2,FALSE)","v":"100 Summer 100 Winter System Peaks"},{"$f":"IF(Classification=\"DEMAND\",\"F12\",IF(Classification=\"ENERGY\",\"F30\",\"F10\"))","v":"F10"},"F10","F10",{"$f":"VLOOKUP(+K218,FactSum,2,FALSE)","v":"100 Summer 100 Winter System Peaks"},"F10",{"$f":"VLOOKUP(+M218,FactSum,2,FALSE)","v":"100 Summer 100 Winter System Peaks"}]
[null,null,"CAGE","F10",{"$f":"IF(Classification=\"DEMAND\",\"F12\",IF(Classification=\"ENERGY\",\"F30\",\"F10\"))","v":"F10"},{"$f":"IF(Classification=\"DEMAND\",\"F13\",IF(Classification=\"ENERGY\",\"F32\",\"F14\"))","v":"F14"},{"$f":"IF(Classification=\"DEMAND\",\"F12\",IF(Classification=\"ENERGY\",\"F30\",\"F10\"))","v":"F10"},{"$f":"VLOOKUP(+G219,FactSum,2,FALSE)","v":"100 Summer 100 Winter System Peaks"},"F10","F10","F10",{"$f":"VLOOKUP(+K219,FactSum,2,FALSE)","v":"100 Summer 100 Winter System Peaks"},"F10"]
[]
[]
["547","Fuel",null,"F10",{"$f":"IF(Classification=\"DEMAND\",\"F12\",IF(Classification=\"ENERGY\",\"F30\",\"F10\"))","v":"F10"},"F30",{"$f":"IF(Classification=\"DEMAND\",\"F12\",IF(Classification=\"ENERGY\",\"F30\",\"F10\"))","v":"F10"},{"$f":"VLOOKUP(+G222,FactSum,2,FALSE)","v":"100 Summer 100 Winter System Peaks"},"F30","F30","F30",{"$f":"VLOOKUP(+K222,FactSum,2,FALSE)","v":"MWH @ Input"},"F30",{"$f":"VLOOKUP(+M222,FactSum,2,FALSE)","v":"MWH @ Input"}]
[null,null,"SSECT","F10",{"$f":"IF(Classification=\"DEMAND\",\"F12\",IF(Classification=\"ENERGY\",\"F30\",\"F10\"))","v":"F10"},"F32",{"$f":"IF(Classification=\"DEMAND\",\"F12\",IF(Classification=\"ENERGY\",\"F30\",\"F10\"))","v":"F10"},{"$f":"VLOOKUP(+G223,FactSum,2,FALSE)","v":"100 Summer 100 Winter System Peaks"},{"$f":"IF(Classification=\"DEMAND\",\"F12\",IF(Classification=\"ENERGY\",\"F30\",\"F10\"))","v":"F10"},{"$f":"IF(Classification=\"DEMAND\",\"F12\",IF(Classification=\"ENERGY\",\"F30\",\"F10\"))","v":"F10"},{"$f":"IF(Classification=\"DEMAND\",\"F12\",IF(Classification=\"ENERGY\",\"F30\",\"F10\"))","v":"F10"},{"$f":"VLOOKUP(+K223,FactSum,2,FALSE)","v":"100 Summer 100 Winter System Peaks"},"F11"]
[]
[]
[]
["547NPC","Fuel",null,"F10","F10","F30","F10","100 Summer 100 Winter System Peaks","F30","F30","F30","MWH @ Input","F30","MWH @ Input"]
[null,null,null,"F10","F10","F32","F10","100 Summer 100 Winter System Peaks","F10","F10","F10","100 Summer 100 Winter System Peaks","F11"]
[]
[]
["548","Generation Expense",null,"F10",{"$f":"IF(Classification=\"DEMAND\",\"F12\",IF(Classification=\"ENERGY\",\"F30\",\"F10\"))","v":"F10"},{"$f":"IF(Classification=\"DEMAND\",\"F12\",IF(Classification=\"ENERGY\",\"F30\",\"F10\"))","v":"F10"},{"$f":"IF(Classification=\"DEMAND\",\"F12\",IF(Classification=\"ENERGY\",\"F30\",\"F10\"))","v":"F10"},{"$f":"VLOOKUP(+G231,FactSum,2,FALSE)","v":"100 Summer 100 Winter System Peaks"},"F10","F10","F10",{"$f":"VLOOKUP(+K231,FactSum,2,FALSE)","v":"100 Summer 100 Winter System Peaks"},"F10",{"$f":"VLOOKUP(+M231,FactSum,2,FALSE)","v":"100 Summer 100 Winter System Peaks"}]
[null,null,"CAGE","F10",{"$f":"IF(Classification=\"DEMAND\",\"F12\",IF(Classification=\"ENERGY\",\"F30\",\"F10\"))","v":"F10"},{"$f":"IF(Classification=\"DEMAND\",\"F13\",IF(Classification=\"ENERGY\",\"F32\",\"F14\"))","v":"F14"},"F10",null,"F10","F10","F10","F15","F10"]
[]
[]
["549","Miscellaneous Other",null,"F10",{"$f":"IF(Classification=\"DEMAND\",\"F12\",IF(Classification=\"ENERGY\",\"F30\",\"F10\"))","v":"F10"},{"$f":"IF(Classification=\"DEMAND\",\"F12\",IF(Classification=\"ENERGY\",\"F30\",\"F10\"))","v":"F10"},{"$f":"IF(Classification=\"DEMAND\",\"F12\",IF(Classification=\"ENERGY\",\"F30\",\"F10\"))","v":"F10"},{"$f":"VLOOKUP(+G235,FactSum,2,FALSE)","v":"100 Summer 100 Winter System Peaks"},{"$f":"IF(Classification=\"DEMAND\",\"F12\",IF(Classification=\"ENERGY\",\"F30\",\"F10\"))","v":"F10"},"F10","F10",{"$f":"VLOOKUP(+K235,FactSum,2,FALSE)","v":"100 Summer 100 Winter System Peaks"},"F10",{"$f":"VLOOKUP(+M235,FactSum,2,FALSE)","v":"100 Summer 100 Winter System Peaks"}]
[null,null,"CAGE","F10",{"$f":"IF(Classification=\"DEMAND\",\"F12\",IF(Classification=\"ENERGY\",\"F30\",\"F10\"))","v":"F10"},{"$f":"IF(Classification=\"DEMAND\",\"F13\",IF(Classification=\"ENERGY\",\"F32\",\"F14\"))","v":"F14"},{"$f":"IF(Classification=\"DEMAND\",\"F12\",IF(Classification=\"ENERGY\",\"F30\",\"F10\"))","v":"F10"},null,"F10","F10","F10","F15","F10"]
[]
[]
[]
["551","Maint Supervision & Engineering",null,"F10",{"$f":"IF(Classification=\"DEMAND\",\"F12\",IF(Classification=\"ENERGY\",\"F30\",\"F10\"))","v":"F10"},{"$f":"IF(Classification=\"DEMAND\",\"F12\",IF(Classification=\"ENERGY\",\"F30\",\"F10\"))","v":"F10"},{"$f":"IF(Classification=\"DEMAND\",\"F12\",IF(Classification=\"ENERGY\",\"F30\",\"F10\"))","v":"F10"},{"$f":"VLOOKUP(+G240,FactSum,2,FALSE)","v":"100 Summer 100 Winter System Peaks"},{"$f":"IF(Classification=\"DEMAND\",\"F12\",IF(Classification=\"ENERGY\",\"F30\",\"F10\"))","v":"F10"},"F10","F10",{"$f":"VLOOKUP(+K240,FactSum,2,FALSE)","v":"100 Summer 100 Winter System Peaks"},"F10",{"$f":"VLOOKUP(+M240,FactSum,2,FALSE)","v":"100 Summer 100 Winter System Peaks"}]
[null,null,"CAGE","F10",{"$f":"IF(Classification=\"DEMAND\",\"F12\",IF(Classification=\"ENERGY\",\"F30\",\"F10\"))","v":"F10"},{"$f":"IF(Classification=\"DEMAND\",\"F13\",IF(Classification=\"ENERGY\",\"F32\",\"F14\"))","v":"F14"},{"$f":"IF(Classification=\"DEMAND\",\"F12\",IF(Classification=\"ENERGY\",\"F30\",\"F10\"))","v":"F10"},{"$f":"VLOOKUP(+G241,FactSum,2,FALSE)","v":"100 Summer 100 Winter System Peaks"},"F10","F10","F10",{"$f":"VLOOKUP(+K241,FactSum,2,FALSE)","v":"100 Summer 100 Winter System Peaks"},"F11"]
[]
[]
[]
["552","Maintenance of Structures",null,"F10",{"$f":"IF(Classification=\"DEMAND\",\"F12\",IF(Classification=\"ENERGY\",\"F30\",\"F10\"))","v":"F10"},{"$f":"IF(Classification=\"DEMAND\",\"F12\",IF(Classification=\"ENERGY\",\"F30\",\"F10\"))","v":"F10"},{"$f":"IF(Classification=\"DEMAND\",\"F12\",IF(Classification=\"ENERGY\",\"F30\",\"F10\"))","v":"F10"},{"$f":"VLOOKUP(+G245,FactSum,2,FALSE)","v":"100 Summer 100 Winter System Peaks"},{"$f":"IF(Classification=\"DEMAND\",\"F12\",IF(Classification=\"ENERGY\",\"F30\",\"F10\"))","v":"F10"},"F10","F10",{"$f":"VLOOKUP(+K245,FactSum,2,FALSE)","v":"100 Summer 100 Winter System Peaks"},"F10",{"$f":"VLOOKUP(+M245,FactSum,2,FALSE)","v":"100 Summer 100 Winter System Peaks"}]
[null,null,"CAGE","F10",{"$f":"IF(Classification=\"DEMAND\",\"F12\",IF(Classification=\"ENERGY\",\"F30\",\"F10\"))","v":"F10"},{"$f":"IF(Classification=\"DEMAND\",\"F13\",IF(Classification=\"ENERGY\",\"F32\",\"F14\"))","v":"F14"},{"$f":"IF(Classification=\"DEMAND\",\"F12\",IF(Classification=\"ENERGY\",\"F30\",\"F10\"))","v":"F10"},{"$f":"VLOOKUP(+G246,FactSum,2,FALSE)","v":"100 Summer 100 Winter System Peaks"},"F10","F10","F10",{"$f":"VLOOKUP(+K246,FactSum,2,FALSE)","v":"100 Summer 100 Winter System Peaks"},"F11"]
[]
[]
[]
["553","Maint of Generation & Elect Plant",null,"F10",{"$f":"IF(Classification=\"DEMAND\",\"F12\",IF(Classification=\"ENERGY\",\"F30\",\"F10\"))","v":"F10"},{"$f":"IF(Classification=\"DEMAND\",\"F12\",IF(Classification=\"ENERGY\",\"F30\",\"F10\"))","v":"F10"},{"$f":"IF(Classification=\"DEMAND\",\"F12\",IF(Classification=\"ENERGY\",\"F30\",\"F10\"))","v":"F10"},{"$f":"VLOOKUP(+G250,FactSum,2,FALSE)","v":"100 Summer 100 Winter System Peaks"},{"$f":"IF(Classification=\"DEMAND\",\"F12\",IF(Classification=\"ENERGY\",\"F30\",\"F10\"))","v":"F10"},"F10","F10","F10","F10",{"$f":"VLOOKUP(+M250,FactSum,2,FALSE)","v":"100 Summer 100 Winter System Peaks"}]
[null,null,"CAGE","F10",{"$f":"IF(Classification=\"DEMAND\",\"F12\",IF(Classification=\"ENERGY\",\"F30\",\"F10\"))","v":"F10"},{"$f":"IF(Classification=\"DEMAND\",\"F13\",IF(Classification=\"ENERGY\",\"F32\",\"F14\"))","v":"F14"},{"$f":"IF(Classification=\"DEMAND\",\"F12\",IF(Classification=\"ENERGY\",\"F30\",\"F10\"))","v":"F10"},{"$f":"VLOOKUP(+G251,FactSum,2,FALSE)","v":"100 Summer 100 Winter System Peaks"},"F10","F10","F10","F10","F10"]
[]
[]
[]
["554","Maintenance of Misc. Other",null,"F10",{"$f":"IF(Classification=\"DEMAND\",\"F12\",IF(Classification=\"ENERGY\",\"F30\",\"F10\"))","v":"F10"},{"$f":"IF(Classification=\"DEMAND\",\"F12\",IF(Classification=\"ENERGY\",\"F30\",\"F10\"))","v":"F10"},{"$f":"IF(Classification=\"DEMAND\",\"F12\",IF(Classification=\"ENERGY\",\"F30\",\"F10\"))","v":"F10"},{"$f":"VLOOKUP(+G255,FactSum,2,FALSE)","v":"100 Summer 100 Winter System Peaks"},{"$f":"IF(Classification=\"DEMAND\",\"F12\",IF(Classification=\"ENERGY\",\"F30\",\"F10\"))","v":"F10"},"F10","F10",{"$f":"VLOOKUP(+K255,FactSum,2,FALSE)","v":"100 Summer 100 Winter System Peaks"},"F10",{"$f":"VLOOKUP(+M255,FactSum,2,FALSE)","v":"100 Summer 100 Winter System Peaks"}]
[null,null,"CAGE","F10",{"$f":"IF(Classification=\"DEMAND\",\"F12\",IF(Classification=\"ENERGY\",\"F30\",\"F10\"))","v":"F10"},{"$f":"IF(Classification=\"DEMAND\",\"F13\",IF(Classification=\"ENERGY\",\"F32\",\"F14\"))","v":"F14"},{"$f":"IF(Classification=\"DEMAND\",\"F12\",IF(Classification=\"ENERGY\",\"F30\",\"F10\"))","v":"F10"},{"$f":"VLOOKUP(+G256,FactSum,2,FALSE)","v":"100 Summer 100 Winter System Peaks"},"F10","F10","F10",{"$f":"VLOOKUP(+K256,FactSum,2,FALSE)","v":"100 Summer 100 Winter System Peaks"},"F11"]
[]
[]
["Total Other Power Generation"]
[]
[]
[]
[]
[]
["555","Purchased Power",null,"F10",{"$f":"IF(Classification=\"DEMAND\",\"F12\",IF(Classification=\"ENERGY\",\"F30\",\"F10\"))","v":"F10"},{"$f":"IF(Classification=\"DEMAND\",\"F12\",IF(Classification=\"ENERGY\",\"F30\",\"F10\"))","v":"F10"},{"$f":"IF(Classification=\"DEMAND\",\"F12\",IF(Classification=\"ENERGY\",\"F30\",\"F10\"))","v":"F10"},{"$f":"VLOOKUP(+G265,FactSum,2,FALSE)","v":"100 Summer 100 Winter System Peaks"},"F10","F10","F10",{"$f":"VLOOKUP(+K265,FactSum,2,FALSE)","v":"100 Summer 100 Winter System Peaks"},"F10",{"$f":"VLOOKUP(+M265,FactSum,2,FALSE)","v":"100 Summer 100 Winter System Peaks"}]
[null,"Demand",null,"F10",{"$f":"IF(Classification=\"DEMAND\",\"F12\",IF(Classification=\"ENERGY\",\"F30\",\"F10\"))","v":"F10"},{"$f":"IF(Classification=\"DEMAND\",\"F12\",IF(Classification=\"ENERGY\",\"F30\",\"F10\"))","v":"F10"},"F10",{"$f":"VLOOKUP(+G266,FactSum,2,FALSE)","v":"100 Summer 100 Winter System Peaks"},"F10","F10","F10",{"$f":"VLOOKUP(+K266,FactSum,2,FALSE)","v":"100 Summer 100 Winter System Peaks"},"F10"]
[null,"Energy",null,"F10",{"$f":"IF(Classification=\"DEMAND\",\"F12\",IF(Classification=\"ENERGY\",\"F30\",\"F10\"))","v":"F10"},"F30",{"$f":"IF(Classification=\"DEMAND\",\"F12\",IF(Classification=\"ENERGY\",\"F30\",\"F10\"))","v":"F10"},{"$f":"VLOOKUP(+G267,FactSum,2,FALSE)","v":"100 Summer 100 Winter System Peaks"},"F30","F30","F30",{"$f":"VLOOKUP(+K267,FactSum,2,FALSE)","v":"MWH @ Input"},"F30"]
[null,"SSGC",null,"F10",{"$f":"IF(Classification=\"DEMAND\",\"F12\",IF(Classification=\"ENERGY\",\"F30\",\"F10\"))","v":"F10"},{"$f":"IF(Classification=\"DEMAND\",\"F17\",IF(Classification=\"ENERGY\",\"F34\",\"F18\"))","v":"F18"},{"$f":"IF(Classification=\"DEMAND\",\"F12\",IF(Classification=\"ENERGY\",\"F30\",\"F10\"))","v":"F10"},null,"F10","F10","F10","F10","F10",{"$f":"VLOOKUP(+M268,FactSum,2,FALSE)","v":"100 Summer 100 Winter System Peaks"}]
[]
[]
["555NPC","Purchased Power",null,"F10","F10","F10","F10","100 Summer 100 Winter System Peaks","F10","F10","F10","100 Summer 100 Winter System Peaks","F10","100 Summer 100 Winter System Peaks"]
[null,null,null,"F10","F10","F10","F10","100 Summer 100 Winter System Peaks","F10","F10","F10","100 Summer 100 Winter System Peaks","F10"]
[null,null,null,"F10","F10","F30","F10","100 Summer 100 Winter System Peaks","F30","F30","F30","MWH @ Input","F30"]
[null,null,null,"F10","F10","F18","F10",null,"F10","F10","F10","F10","F10","100 Summer 100 Winter System Peaks"]
[]
[]
["556","System Control & Load Dispatch",null,"F10",{"$f":"IF(Classification=\"DEMAND\",\"F12\",IF(Classification=\"ENERGY\",\"F30\",\"F10\"))","v":"F10"},{"$f":"IF(Classification=\"DEMAND\",\"F12\",IF(Classification=\"ENERGY\",\"F30\",\"F10\"))","v":"F10"},{"$f":"IF(Classification=\"DEMAND\",\"F12\",IF(Classification=\"ENERGY\",\"F30\",\"F10\"))","v":"F10"},{"$f":"VLOOKUP(+G277,FactSum,2,FALSE)","v":"100 Summer 100 Winter System Peaks"},{"$f":"IF(Classification=\"DEMAND\",\"F12\",IF(Classification=\"ENERGY\",\"F30\",\"F10\"))","v":"F10"},{"$f":"IF(Classification=\"DEMAND\",\"F12\",IF(Classification=\"ENERGY\",\"F30\",\"F10\"))","v":"F10"},{"$f":"IF(Classification=\"DEMAND\",\"F12\",IF(Classification=\"ENERGY\",\"F30\",\"F10\"))","v":"F10"},{"$f":"VLOOKUP(+K277,FactSum,2,FALSE)","v":"100 Summer 100 Winter System Peaks"},"F10",{"$f":"VLOOKUP(+M277,FactSum,2,FALSE)","v":"100 Summer 100 Winter System Peaks"}]
[]
["557","Other Expenses",null,"F10",{"$f":"IF(Classification=\"DEMAND\",\"F12\",IF(Classification=\"ENERGY\",\"F30\",\"F10\"))","v":"F10"},{"$f":"IF(Classification=\"DEMAND\",\"F12\",IF(Classification=\"ENERGY\",\"F30\",\"F10\"))","v":"F10"},{"$f":"IF(Classification=\"DEMAND\",\"F12\",IF(Classification=\"ENERGY\",\"F30\",\"F10\"))","v":"F10"},{"$f":"VLOOKUP(+G279,FactSum,2,FALSE)","v":"100 Summer 100 Winter System Peaks"},"F30","F30","F30",{"$f":"VLOOKUP(+K279,FactSum,2,FALSE)","v":"MWH @ Input"},"F30",{"$f":"VLOOKUP(+M279,FactSum,2,FALSE)","v":"MWH @ Input"}]
[null,null,"CAGE/JBG","F10",{"$f":"IF(Classification=\"DEMAND\",\"F12\",IF(Classification=\"ENERGY\",\"F30\",\"F10\"))","v":"F10"},{"$f":"IF(Classification=\"DEMAND\",\"F13\",IF(Classification=\"ENERGY\",\"F32\",\"F14\"))","v":"F14"},{"$f":"IF(Classification=\"DEMAND\",\"F12\",IF(Classification=\"ENERGY\",\"F30\",\"F10\"))","v":"F10"},null,{"$f":"IF(Classification=\"DEMAND\",\"F12\",IF(Classification=\"ENERGY\",\"F30\",\"F10\"))","v":"F10"},{"$f":"IF(Classification=\"DEMAND\",\"F12\",IF(Classification=\"ENERGY\",\"F30\",\"F10\"))","v":"F10"},{"$f":"IF(Classification=\"DEMAND\",\"F12\",IF(Classification=\"ENERGY\",\"F30\",\"F10\"))","v":"F10"},"F15","F10"]
[]
[]
["Embedded Cost Differentials"]
["Company Owned Hydro",null,null,"F10",{"$f":"IF(Classification=\"DEMAND\",\"F12\",IF(Classification=\"ENERGY\",\"F30\",\"F10\"))","v":"F10"},"F10","F10","F10","F10","F10","F10","F10","F10"]
["Company Owned Hydro",null,null,"F10","F10","F10","F10","F10","F10","F10","F10","F10","F10"]
["Mid-C Contract",null,null,"F10","F10","F10","F10","F10","F10","F10","F10","F10","F10"]
["Mid-C Contract",null,null,"F10","F10","F10","F10","F10","F10","F10","F10","F10","F10"]
["Existing QF Contracts",null,null,"F10","F10","F10","F10","F10","F10","F10","F10","F10","F10"]
["Existing QF Contracts",null,null,"F10","F10","F10","F10","F10","F10","F10","F10","F10","F10"]
["Total Embedded Cost Differential"]
[]
["Total Other Power Supply"]
[]
["TOTAL PRODUCTION EXPENSE"]
[]
[]
[]
[]
["A",null,"B","C","C","C","C",null,"C","C","C",null,"C"]
[]
["FERC",null,null,"COS","COS","COS","COS",null,"COS","COS","COS",null,"COS"]
["ACCT",null,"DESCRIPTION ","Factor","Factor","Factor","Factor",null,"Factor","Factor","Factor",null,"Factor"]
["560","Operation Supervision & Eng",null,"F106","F106","F106","F106",{"$f":"VLOOKUP(+G303,FactSum,2,FALSE)","v":"STP - System Transmission Plant"},"F106","F106","F106",{"$f":"VLOOKUP(+K303,FactSum,2,FALSE)","v":"STP - System Transmission Plant"},"F10",{"$f":"VLOOKUP(+M303,FactSum,2,FALSE)","v":"100 Summer 100 Winter System Peaks"}]
[]
["561","Load Dispatching",null,"F106","F106","F106","F106",{"$f":"VLOOKUP(+G305,FactSum,2,FALSE)","v":"STP - System Transmission Plant"},"F106","F106","F106",{"$f":"VLOOKUP(+K305,FactSum,2,FALSE)","v":"STP - System Transmission Plant"},"F10",{"$f":"VLOOKUP(+M305,FactSum,2,FALSE)","v":"100 Summer 100 Winter System Peaks"}]
[]
["562","Station Expense",null,"F106","F106","F106","F106",{"$f":"VLOOKUP(+G307,FactSum,2,FALSE)","v":"STP - System Transmission Plant"},"F106","F106","F106",{"$f":"VLOOKUP(+K307,FactSum,2,FALSE)","v":"STP - System Transmission Plant"},"F10",{"$f":"VLOOKUP(+M307,FactSum,2,FALSE)","v":"100 Summer 100 Winter System Peaks"}]
[]
["563","Overhead Line Expense",null,"F106","F106","F106","F106",{"$f":"VLOOKUP(+G309,FactSum,2,FALSE)","v":"STP - System Transmission Plant"},"F106","F106","F106",{"$f":"VLOOKUP(+K309,FactSum,2,FALSE)","v":"STP - System Transmission Plant"},"F10",{"$f":"VLOOKUP(+M309,FactSum,2,FALSE)","v":"100 Summer 100 Winter System Peaks"}]
[]
["564","Underground Line Expense",null,"F106","F106","F106","F106",{"$f":"VLOOKUP(+G311,FactSum,2,FALSE)","v":"STP - System Transmission Plant"},"F106","F106","F106",{"$f":"VLOOKUP(+K311,FactSum,2,FALSE)","v":"STP - System Transmission Plant"},"F10",{"$f":"VLOOKUP(+M311,FactSum,2,FALSE)","v":"100 Summer 100 Winter System Peaks"}]
[]
["565","Transm of Electricity by Others",null,"F10",{"$f":"IF(Classification=\"DEMAND\",\"F12\",IF(Classification=\"ENERGY\",\"F30\",\"F10\"))","v":"F10"},{"$f":"IF(Classification=\"DEMAND\",\"F12\",IF(Classification=\"ENERGY\",\"F30\",\"F10\"))","v":"F10"},{"$f":"IF(Classification=\"DEMAND\",\"F12\",IF(Classification=\"ENERGY\",\"F30\",\"F10\"))","v":"F10"},{"$f":"VLOOKUP(+G313,FactSum,2,FALSE)","v":"100 Summer 100 Winter System Peaks"},{"$f":"IF(Classification=\"DEMAND\",\"F12\",IF(Classification=\"ENERGY\",\"F30\",\"F10\"))","v":"F10"},{"$f":"IF(Classification=\"DEMAND\",\"F12\",IF(Classification=\"ENERGY\",\"F30\",\"F10\"))","v":"F10"},{"$f":"IF(Classification=\"DEMAND\",\"F12\",IF(Classification=\"ENERGY\",\"F30\",\"F10\"))","v":"F10"},{"$f":"VLOOKUP(+K313,FactSum,2,FALSE)","v":"100 Summer 100 Winter System Peaks"},"F10",{"$f":"VLOOKUP(+M313,FactSum,2,FALSE)","v":"100 Summer 100 Winter System Peaks"}]
[null,"Energy",null,"F10",{"$f":"IF(Classification=\"DEMAND\",\"F12\",IF(Classification=\"ENERGY\",\"F30\",\"F10\"))","v":"F10"},"F30",{"$f":"IF(Classification=\"DEMAND\",\"F12\",IF(Classification=\"ENERGY\",\"F30\",\"F10\"))","v":"F10"},{"$f":"VLOOKUP(+G314,FactSum,2,FALSE)","v":"100 Summer 100 Winter System Peaks"},"F30","F30","F30",{"$f":"VLOOKUP(+K314,FactSum,2,FALSE)","v":"MWH @ Input"},"F30",{"$f":"VLOOKUP(+M314,FactSum,2,FALSE)","v":"MWH @ Input"}]
[]
["565NPC","Transm of Electricity by Others",null,"F10","F10","F10","F10","100 Summer 100 Winter System Peaks","F10","F10","F10","100 Summer 100 Winter System Peaks","F10","100 Summer 100 Winter System Peaks"]
[null,"Energy",null,"F10","F10","F30","F10","100 Summer 100 Winter System Peaks","F30","F30","F30","MWH @ Input","F30","MWH @ Input"]
[]
["566","Misc. Transmission Expense",null,"F106","F106","F106","F106",{"$f":"VLOOKUP(+G319,FactSum,2,FALSE)","v":"STP - System Transmission Plant"},"F106","F106","F106",{"$f":"VLOOKUP(+K319,FactSum,2,FALSE)","v":"STP - System Transmission Plant"},"F10",{"$f":"VLOOKUP(+M319,FactSum,2,FALSE)","v":"100 Summer 100 Winter System Peaks"}]
[]
["567","Rents - Transmission",null,"F106","F106","F106","F106",{"$f":"VLOOKUP(+G321,FactSum,2,FALSE)","v":"STP - System Transmission Plant"},"F106","F106","F106",{"$f":"VLOOKUP(+K321,FactSum,2,FALSE)","v":"STP - System Transmission Plant"},"F10",{"$f":"VLOOKUP(+M321,FactSum,2,FALSE)","v":"100 Summer 100 Winter System Peaks"}]
[]
["568","Maint Supervision & Engineering",null,"F106","F106","F106","F106",{"$f":"VLOOKUP(+G323,FactSum,2,FALSE)","v":"STP - System Transmission Plant"},"F106","F106","F106",{"$f":"VLOOKUP(+K323,FactSum,2,FALSE)","v":"STP - System Transmission Plant"},"F10",{"$f":"VLOOKUP(+M323,FactSum,2,FALSE)","v":"100 Summer 100 Winter System Peaks"}]
[]
["569","Maintenance of Structures",null,"F106","F106","F106","F106",{"$f":"VLOOKUP(+G325,FactSum,2,FALSE)","v":"STP - System Transmission Plant"},"F106","F106","F106",{"$f":"VLOOKUP(+K325,FactSum,2,FALSE)","v":"STP - System Transmission Plant"},"F10",{"$f":"VLOOKUP(+M325,FactSum,2,FALSE)","v":"100 Summer 100 Winter System Peaks"}]
[]
["570","Maint of Station Equipment",null,"F106","F106","F106","F106",{"$f":"VLOOKUP(+G327,FactSum,2,FALSE)","v":"STP - System Transmission Plant"},"F106","F106","F106",{"$f":"VLOOKUP(+K327,FactSum,2,FALSE)","v":"STP - System Transmission Plant"},"F10",{"$f":"VLOOKUP(+M327,FactSum,2,FALSE)","v":"100 Summer 100 Winter System Peaks"}]
[]
["571","Maintenance of Overhead Lines",null,"F106","F106","F106","F106",{"$f":"VLOOKUP(+G329,FactSum,2,FALSE)","v":"STP - System Transmission Plant"},"F106","F106","F106",{"$f":"VLOOKUP(+K329,FactSum,2,FALSE)","v":"STP - System Transmission Plant"},"F10",{"$f":"VLOOKUP(+M329,FactSum,2,FALSE)","v":"100 Summer 100 Winter System Peaks"}]
[]
["572","Maint of Underground Lines",null,"F106","F106","F106","F106",{"$f":"VLOOKUP(+G331,FactSum,2,FALSE)","v":"STP - System Transmission Plant"},"F106","F106","F106",{"$f":"VLOOKUP(+K331,FactSum,2,FALSE)","v":"STP - System Transmission Plant"},"F10",{"$f":"VLOOKUP(+M331,FactSum,2,FALSE)","v":"100 Summer 100 Winter System Peaks"}]
[]
["573","Maint of Misc Transmission Plant",null,"F106","F106","F106","F106",{"$f":"VLOOKUP(+G333,FactSum,2,FALSE)","v":"STP - System Transmission Plant"},"F106","F106","F106",{"$f":"VLOOKUP(+K333,FactSum,2,FALSE)","v":"STP - System Transmission Plant"},"F10",{"$f":"VLOOKUP(+M333,FactSum,2,FALSE)","v":"100 Summer 100 Winter System Peaks"}]
[]
[]
["TOTAL TRANSMISSION EXPENSE"]
[]
[]
[]
[]
[]
[]
[]
[]
[]
[]
[]
[]
[]
[]
["A",null,"B","C","C","C","C",null,"C","C","C",null,"C"]
[]
["FERC",null,null,"COS","COS","COS","COS",null,"COS","COS","COS",null,"COS"]
["ACCT",null,"DESCRIPTION ","Factor","Factor","Factor","Factor",null,"Factor","Factor","Factor",null,"Factor"]
["580","Operation Supervision & Eng",null,"F131","F131","F131","F131",{"$f":"VLOOKUP(+G355,FactSum,2,FALSE)","v":"Account 581 thru 587 & 591 thru 597"},"F131","F131","F131",{"$f":"VLOOKUP(+K355,FactSum,2,FALSE)","v":"Account 581 thru 587 & 591 thru 597"},"F10",{"$f":"VLOOKUP(+M355,FactSum,2,FALSE)","v":"100 Summer 100 Winter System Peaks"}]
[]
["581","Load Dispatching",null,"F20","F20","F20","F20",{"$f":"VLOOKUP(+G357,FactSum,2,FALSE)","v":"Max. Schedule Peak"},"F20","F20","F20",{"$f":"VLOOKUP(+K357,FactSum,2,FALSE)","v":"Max. Schedule Peak"},"F20",{"$f":"VLOOKUP(+M357,FactSum,2,FALSE)","v":"Max. Schedule Peak"}]
[]
["582","Station Expense",null,"F120","F120","F120","F120",{"$f":"VLOOKUP(+G359,FactSum,2,FALSE)","v":"Account 362"},"F120","F120","F120",{"$f":"VLOOKUP(+K359,FactSum,2,FALSE)","v":"Account 362"},"F10",{"$f":"VLOOKUP(+M359,FactSum,2,FALSE)","v":"100 Summer 100 Winter System Peaks"}]
[]
["583","Overhead Line Expenses",null,"F132","F132","F132","F132",{"$f":"VLOOKUP(+G361,FactSum,2,FALSE)","v":"Account 364 + 365"},"F132","F132","F132",{"$f":"VLOOKUP(+K361,FactSum,2,FALSE)","v":"Account 364 + 365"},"F10",{"$f":"VLOOKUP(+M361,FactSum,2,FALSE)","v":"100 Summer 100 Winter System Peaks"}]
[]
["584","Underground Line Expense",null,"F133","F133","F133","F133",{"$f":"VLOOKUP(+G363,FactSum,2,FALSE)","v":"Account 366 + 367"},"F133","F133","F133",{"$f":"VLOOKUP(+K363,FactSum,2,FALSE)","v":"Account 366 + 367"},"F10",{"$f":"VLOOKUP(+M363,FactSum,2,FALSE)","v":"100 Summer 100 Winter System Peaks"}]
[]
["585","Street Lighting & Signal Systems",null,"F130","F130","F130","F130",{"$f":"VLOOKUP(+G365,FactSum,2,FALSE)","v":"Account 373"},"F130","F130","F130",{"$f":"VLOOKUP(+K365,FactSum,2,FALSE)","v":"Account 373"},"F10",{"$f":"VLOOKUP(+M365,FactSum,2,FALSE)","v":"100 Summer 100 Winter System Peaks"}]
[]
["586","Meter Expenses",null,"F127","F127","F127","F127",{"$f":"VLOOKUP(+G367,FactSum,2,FALSE)","v":"Account 370"},"F127","F127","F127",{"$f":"VLOOKUP(+K367,FactSum,2,FALSE)","v":"Account 370"},"F10",{"$f":"VLOOKUP(+M367,FactSum,2,FALSE)","v":"100 Summer 100 Winter System Peaks"}]
[]
["587","Customer Installation Expenses",null,"F20","F20","F20","F20",{"$f":"VLOOKUP(+G369,FactSum,2,FALSE)","v":"Max. Schedule Peak"},"F20","F20","F20",{"$f":"VLOOKUP(+K369,FactSum,2,FALSE)","v":"Max. Schedule Peak"},"F20",{"$f":"VLOOKUP(+M369,FactSum,2,FALSE)","v":"Max. Schedule Peak"}]
[]
["588","Misc. Distribution Expenses",null,"F131","F131","F131","F131",{"$f":"VLOOKUP(+G371,FactSum,2,FALSE)","v":"Account 581 thru 587 & 591 thru 597"},"F131","F131","F131",{"$f":"VLOOKUP(+K371,FactSum,2,FALSE)","v":"Account 581 thru 587 & 591 thru 597"},"F10",{"$f":"VLOOKUP(+M371,FactSum,2,FALSE)","v":"100 Summer 100 Winter System Peaks"}]
[]
["589","Rents",null,"F131","F131","F131","F131",{"$f":"VLOOKUP(+G373,FactSum,2,FALSE)","v":"Account 581 thru 587 & 591 thru 597"},"F131","F131","F131",{"$f":"VLOOKUP(+K373,FactSum,2,FALSE)","v":"Account 581 thru 587 & 591 thru 597"},"F10",{"$f":"VLOOKUP(+M373,FactSum,2,FALSE)","v":"100 Summer 100 Winter System Peaks"}]
[]
["590","Maint Supervision & Engineering",null,"F131","F131","F131","F131",{"$f":"VLOOKUP(+G375,FactSum,2,FALSE)","v":"Account 581 thru 587 & 591 thru 597"},"F131","F131","F131",{"$f":"VLOOKUP(+K375,FactSum,2,FALSE)","v":"Account 581 thru 587 & 591 thru 597"},"F10",{"$f":"VLOOKUP(+M375,FactSum,2,FALSE)","v":"100 Summer 100 Winter System Peaks"}]
[]
["591","Maintenance of Structures",null,"F119","F119","F119","F119",{"$f":"VLOOKUP(+G377,FactSum,2,FALSE)","v":"Account 361"},"F119","F119","F119",{"$f":"VLOOKUP(+K377,FactSum,2,FALSE)","v":"Account 361"},"F10",{"$f":"VLOOKUP(+M377,FactSum,2,FALSE)","v":"100 Summer 100 Winter System Peaks"}]
[]
["592","Maint of Station Equipment",null,"F120","F120","F120","F120",{"$f":"VLOOKUP(+G379,FactSum,2,FALSE)","v":"Account 362"},"F120","F120","F120",{"$f":"VLOOKUP(+K379,FactSum,2,FALSE)","v":"Account 362"},"F10",{"$f":"VLOOKUP(+M379,FactSum,2,FALSE)","v":"100 Summer 100 Winter System Peaks"}]
[]
["593","Maintenance of Overhead Lines",null,"F134","F134","F134","F134",{"$f":"VLOOKUP(+G381,FactSum,2,FALSE)","v":"Account 364 + 365 + 369  (OH)"},"F134","F134","F134",{"$f":"VLOOKUP(+K381,FactSum,2,FALSE)","v":"Account 364 + 365 + 369  (OH)"},"F10",{"$f":"VLOOKUP(+M381,FactSum,2,FALSE)","v":"100 Summer 100 Winter System Peaks"}]
[]
["594","Maint of Underground Lines",null,"F135","F135","F135","F135",{"$f":"VLOOKUP(+G383,FactSum,2,FALSE)","v":"Account 366 + 367 + 369  (UG)"},"F135","F135","F135",{"$f":"VLOOKUP(+K383,FactSum,2,FALSE)","v":"Account 366 + 367 + 369  (UG)"},"F10",{"$f":"VLOOKUP(+M383,FactSum,2,FALSE)","v":"100 Summer 100 Winter System Peaks"}]
[]
["595","Maint of Line Transformers",null,"F125","F125","F125","F125",{"$f":"VLOOKUP(+G385,FactSum,2,FALSE)","v":"Account 368"},"F125","F125","F125",{"$f":"VLOOKUP(+K385,FactSum,2,FALSE)","v":"Account 368"},"F10",{"$f":"VLOOKUP(+M385,FactSum,2,FALSE)","v":"100 Summer 100 Winter System Peaks"}]
[]
["596","Maint of Street Lighting & Signals",null,"F130","F130","F130","F130",{"$f":"VLOOKUP(+G387,FactSum,2,FALSE)","v":"Account 373"},"F130","F130","F130",{"$f":"VLOOKUP(+K387,FactSum,2,FALSE)","v":"Account 373"},"F10",{"$f":"VLOOKUP(+M387,FactSum,2,FALSE)","v":"100 Summer 100 Winter System Peaks"}]
[]
["597","Maintenance of Meters",null,"F127","F127","F127","F127",{"$f":"VLOOKUP(+G389,FactSum,2,FALSE)","v":"Account 370"},"F127","F127","F127",{"$f":"VLOOKUP(+K389,FactSum,2,FALSE)","v":"Account 370"},"F10",{"$f":"VLOOKUP(+M389,FactSum,2,FALSE)","v":"100 Summer 100 Winter System Peaks"}]
[]
["598","Maint of Misc. Distribution Plant",null,"F131","F131","F131","F131",{"$f":"VLOOKUP(+G391,FactSum,2,FALSE)","v":"Account 581 thru 587 & 591 thru 597"},"F131","F131","F131",{"$f":"VLOOKUP(+K391,FactSum,2,FALSE)","v":"Account 581 thru 587 & 591 thru 597"},"F10",{"$f":"VLOOKUP(+M391,FactSum,2,FALSE)","v":"100 Summer 100 Winter System Peaks"}]
[]
["TOTAL DISTRIBUTION EXPENSE"]
[]
[]
[]
[]
[]
["901","Supervision",null,"F136","F136","F136","F136",{"$f":"VLOOKUP(+G399,FactSum,2,FALSE)","v":"Account 902 + 903 + 904"},"F136","F136","F136",{"$f":"VLOOKUP(+K399,FactSum,2,FALSE)","v":"Account 902 + 903 + 904"},"F10",{"$f":"VLOOKUP(+M399,FactSum,2,FALSE)","v":"100 Summer 100 Winter System Peaks"}]
[]
["902","Meter Reading Expense",null,"F41","F41","F41","F41",{"$f":"VLOOKUP(+G401,FactSum,2,FALSE)","v":"Weighted Customers Acct 902"},"F41","F41","F41",{"$f":"VLOOKUP(+K401,FactSum,2,FALSE)","v":"Weighted Customers Acct 902"},"F41",{"$f":"VLOOKUP(+M401,FactSum,2,FALSE)","v":"Weighted Customers Acct 902"}]
[]
["903","Customer Receipts & Collections",null,"F42","F42","F42","F42",{"$f":"VLOOKUP(+G403,FactSum,2,FALSE)","v":"Weighted Customers Acct 903"},"F42","F42","F42",{"$f":"VLOOKUP(+K403,FactSum,2,FALSE)","v":"Weighted Customers Acct 903"},"F42",{"$f":"VLOOKUP(+M403,FactSum,2,FALSE)","v":"Weighted Customers Acct 903"}]
[]
["904","Uncollectible Accounts",null,"F80","F80","F80","F80",{"$f":"VLOOKUP(+G405,FactSum,2,FALSE)","v":"Uncollectables"},"F80","F80","F80",{"$f":"VLOOKUP(+K405,FactSum,2,FALSE)","v":"Uncollectables"},"F80",{"$f":"VLOOKUP(+M405,FactSum,2,FALSE)","v":"Uncollectables"}]
[]
["905","Misc. Customer Accounts Exp",null,"F136","F136","F136","F136",{"$f":"VLOOKUP(+G407,FactSum,2,FALSE)","v":"Account 902 + 903 + 904"},"F136","F136","F136",{"$f":"VLOOKUP(+K407,FactSum,2,FALSE)","v":"Account 902 + 903 + 904"},"F10",{"$f":"VLOOKUP(+M407,FactSum,2,FALSE)","v":"100 Summer 100 Winter System Peaks"}]
[]
["TOTAL CUSTOMER ACCOUNTS EXPENSE"]
[]
[]
[]
["A",null,"B","C","C","C","C",null,"C","C","C",null,"C"]
[]
["FERC",null,null,"COS","COS","COS","COS",null,"COS","COS","COS",null,"COS"]
["ACCT",null,"DESCRIPTION ","Factor","Factor","Factor","Factor",null,"Factor","Factor","Factor",null,"Factor"]
["907","Supervision",null,"F40","F40","F40","F40",{"$f":"VLOOKUP(+G417,FactSum,2,FALSE)","v":"Average Customers"},"F40","F40","F40",{"$f":"VLOOKUP(+K417,FactSum,2,FALSE)","v":"Average Customers"},"F40",{"$f":"VLOOKUP(+M417,FactSum,2,FALSE)","v":"Average Customers"}]
[]
["908","Customer Assistance",null,"F10",{"$f":"IF(Classification=\"DEMAND\",\"F12\",IF(Classification=\"ENERGY\",\"F30\",\"F10\"))","v":"F10"},{"$f":"IF(Classification=\"DEMAND\",\"F12\",IF(Classification=\"ENERGY\",\"F30\",\"F10\"))","v":"F10"},"F40",{"$f":"VLOOKUP(+G419,FactSum,2,FALSE)","v":"Average Customers"},{"$f":"IF(Classification=\"DEMAND\",\"F12\",IF(Classification=\"ENERGY\",\"F30\",\"F10\"))","v":"F10"},{"$f":"IF(Classification=\"DEMAND\",\"F12\",IF(Classification=\"ENERGY\",\"F30\",\"F10\"))","v":"F10"},{"$f":"IF(Classification=\"DEMAND\",\"F12\",IF(Classification=\"ENERGY\",\"F30\",\"F10\"))","v":"F10"},{"$f":"VLOOKUP(+K419,FactSum,2,FALSE)","v":"100 Summer 100 Winter System Peaks"},"F10",{"$f":"VLOOKUP(+M419,FactSum,2,FALSE)","v":"100 Summer 100 Winter System Peaks"}]
[]
["909","Informational & Instructional Adv",null,"F40","F40","F40","F40",{"$f":"VLOOKUP(+G421,FactSum,2,FALSE)","v":"Average Customers"},"F40","F40","F40",{"$f":"VLOOKUP(+K421,FactSum,2,FALSE)","v":"Average Customers"},"F40",{"$f":"VLOOKUP(+M421,FactSum,2,FALSE)","v":"Average Customers"}]
[]
["910","Misc. Customer Service",null,"F40","F40","F40","F40",{"$f":"VLOOKUP(+G423,FactSum,2,FALSE)","v":"Average Customers"},"F40","F40","F40",{"$f":"VLOOKUP(+K423,FactSum,2,FALSE)","v":"Average Customers"},"F40",{"$f":"VLOOKUP(+M423,FactSum,2,FALSE)","v":"Average Customers"}]
[]
["TOTAL CUSTOMER SERVICE EXPENSE"]
[]
[]
[]
[]
[]
["911","Supervision",null,"F40","F40","F40","F40",{"$f":"VLOOKUP(+G431,FactSum,2,FALSE)","v":"Average Customers"},"F40","F40","F40",{"$f":"VLOOKUP(+K431,FactSum,2,FALSE)","v":"Average Customers"},"F40",{"$f":"VLOOKUP(+M431,FactSum,2,FALSE)","v":"Average Customers"}]
[]
["912","Demonstration & Selling Expense",null,"F40","F40","F40","F40",{"$f":"VLOOKUP(+G433,FactSum,2,FALSE)","v":"Average Customers"},"F91","F91","F91",{"$f":"VLOOKUP(+K433,FactSum,2,FALSE)","v":"Sales Expense"},"F40",{"$f":"VLOOKUP(+M433,FactSum,2,FALSE)","v":"Average Customers"}]
[]
["913","Advertising Expense",null,"F40","F40","F40","F40",{"$f":"VLOOKUP(+G435,FactSum,2,FALSE)","v":"Average Customers"},"F40","F40","F40",{"$f":"VLOOKUP(+K435,FactSum,2,FALSE)","v":"Average Customers"},"F40",{"$f":"VLOOKUP(+M435,FactSum,2,FALSE)","v":"Average Customers"}]
[]
["916","Misc. Sales Expense",null,"F40","F40","F40","F40",{"$f":"VLOOKUP(+G437,FactSum,2,FALSE)","v":"Average Customers"},"F40","F40","F40",{"$f":"VLOOKUP(+K437,FactSum,2,FALSE)","v":"Average Customers"},"F40",{"$f":"VLOOKUP(+M437,FactSum,2,FALSE)","v":"Average Customers"}]
[]
["TOTAL SALES EXPENSE"]
[]
[]
[]
[]
[]
["920","Administrative & General Salaries",null,"F102D",{"$f":"IF(Function=\"gen\",\"F102G\",IF(Function=\"TRN\",\"F102T\",IF(Function=\"DIS\",\"F102D\",IF(Function=\"RETAIL\",\"F102R\",IF(Function=\"MISC\",\"F102M\",\"ERR\")))))","v":"F102D"},{"$f":"IF(Function=\"gen\",\"F102G\",IF(Function=\"TRN\",\"F102T\",IF(Function=\"DIS\",\"F102D\",IF(Function=\"RETAIL\",\"F102R\",IF(Function=\"MISC\",\"F102M\",\"ERR\")))))","v":"F102D"},{"$f":"IF(Function=\"gen\",\"F102G\",IF(Function=\"TRN\",\"F102T\",IF(Function=\"DIS\",\"F102D\",IF(Function=\"RETAIL\",\"F102R\",IF(Function=\"MISC\",\"F102M\",\"ERR\")))))","v":"F102D"},{"$f":"VLOOKUP(+G445,FactSum,2,FALSE)","v":"SGDP - System Gross Distribution Plant"},{"$f":"IF(Function=\"gen\",\"F102G\",IF(Function=\"TRN\",\"F102T\",IF(Function=\"DIS\",\"F102D\",IF(Function=\"RETAIL\",\"F102R\",IF(Function=\"MISC\",\"F102M\",\"ERR\")))))","v":"F102D"},{"$f":"IF(Function=\"gen\",\"F102G\",IF(Function=\"TRN\",\"F102T\",IF(Function=\"DIS\",\"F102D\",IF(Function=\"RETAIL\",\"F102R\",IF(Function=\"MISC\",\"F102M\",\"ERR\")))))","v":"F102D"},{"$f":"IF(Function=\"gen\",\"F102G\",IF(Function=\"TRN\",\"F102T\",IF(Function=\"DIS\",\"F102D\",IF(Function=\"RETAIL\",\"F102R\",IF(Function=\"MISC\",\"F102M\",\"ERR\")))))","v":"F102D"},{"$f":"IF(Function=\"gen\",\"F102G\",IF(Function=\"TRN\",\"F102T\",IF(Function=\"DIS\",\"F102D\",IF(Function=\"RETAIL\",\"F102R\",IF(Function=\"MISC\",\"F102M\",\"ERR\")))))","v":"F102D"},"F10",{"$f":"VLOOKUP(+M445,FactSum,2,FALSE)","v":"100 Summer 100 Winter System Peaks"}]
[null,null,null,"F42","F42","F42","F42","F42","F42","F42","F42","F42","F42"]
[]
[]
["921","Office Supplies & expenses",null,"F102D",{"$f":"IF(Function=\"gen\",\"F102G\",IF(Function=\"TRN\",\"F102T\",IF(Function=\"DIS\",\"F102D\",IF(Function=\"RETAIL\",\"F102R\",IF(Function=\"MISC\",\"F102M\",\"ERR\")))))","v":"F102D"},{"$f":"IF(Function=\"gen\",\"F102G\",IF(Function=\"TRN\",\"F102T\",IF(Function=\"DIS\",\"F102D\",IF(Function=\"RETAIL\",\"F102R\",IF(Function=\"MISC\",\"F102M\",\"ERR\")))))","v":"F102D"},{"$f":"IF(Function=\"gen\",\"F102G\",IF(Function=\"TRN\",\"F102T\",IF(Function=\"DIS\",\"F102D\",IF(Function=\"RETAIL\",\"F102R\",IF(Function=\"MISC\",\"F102M\",\"ERR\")))))","v":"F102D"},{"$f":"VLOOKUP(+G449,FactSum,2,FALSE)","v":"SGDP - System Gross Distribution Plant"},{"$f":"IF(Function=\"gen\",\"F102G\",IF(Function=\"TRN\",\"F102T\",IF(Function=\"DIS\",\"F102D\",IF(Function=\"RETAIL\",\"F102R\",IF(Function=\"MISC\",\"F102M\",\"ERR\")))))","v":"F102D"},{"$f":"IF(Function=\"gen\",\"F102G\",IF(Function=\"TRN\",\"F102T\",IF(Function=\"DIS\",\"F102D\",IF(Function=\"RETAIL\",\"F102R\",IF(Function=\"MISC\",\"F102M\",\"ERR\")))))","v":"F102D"},{"$f":"IF(Function=\"gen\",\"F102G\",IF(Function=\"TRN\",\"F102T\",IF(Function=\"DIS\",\"F102D\",IF(Function=\"RETAIL\",\"F102R\",IF(Function=\"MISC\",\"F102M\",\"ERR\")))))","v":"F102D"},{"$f":"IF(Function=\"gen\",\"F102G\",IF(Function=\"TRN\",\"F102T\",IF(Function=\"DIS\",\"F102D\",IF(Function=\"RETAIL\",\"F102R\",IF(Function=\"MISC\",\"F102M\",\"ERR\")))))","v":"F102D"},"F10",{"$f":"VLOOKUP(+M449,FactSum,2,FALSE)","v":"100 Summer 100 Winter System Peaks"}]
[null,null,null,"F42","F42","F42","F42","F42","F42","F42","F42","F42","F42"]
[]
[]
["923","Outside Services",null,"F102D",{"$f":"IF(Function=\"gen\",\"F102G\",IF(Function=\"TRN\",\"F102T\",IF(Function=\"DIS\",\"F102D\",IF(Function=\"RETAIL\",\"F102R\",IF(Function=\"MISC\",\"F102M\",\"ERR\")))))","v":"F102D"},{"$f":"IF(Function=\"gen\",\"F102G\",IF(Function=\"TRN\",\"F102T\",IF(Function=\"DIS\",\"F102D\",IF(Function=\"RETAIL\",\"F102R\",IF(Function=\"MISC\",\"F102M\",\"ERR\")))))","v":"F102D"},{"$f":"IF(Function=\"gen\",\"F102G\",IF(Function=\"TRN\",\"F102T\",IF(Function=\"DIS\",\"F102D\",IF(Function=\"RETAIL\",\"F102R\",IF(Function=\"MISC\",\"F102M\",\"ERR\")))))","v":"F102D"},{"$f":"VLOOKUP(+G453,FactSum,2,FALSE)","v":"SGDP - System Gross Distribution Plant"},{"$f":"IF(Function=\"gen\",\"F102G\",IF(Function=\"TRN\",\"F102T\",IF(Function=\"DIS\",\"F102D\",IF(Function=\"RETAIL\",\"F102R\",IF(Function=\"MISC\",\"F102M\",\"ERR\")))))","v":"F102D"},{"$f":"IF(Function=\"gen\",\"F102G\",IF(Function=\"TRN\",\"F102T\",IF(Function=\"DIS\",\"F102D\",IF(Function=\"RETAIL\",\"F102R\",IF(Function=\"MISC\",\"F102M\",\"ERR\")))))","v":"F102D"},{"$f":"IF(Function=\"gen\",\"F102G\",IF(Function=\"TRN\",\"F102T\",IF(Function=\"DIS\",\"F102D\",IF(Function=\"RETAIL\",\"F102R\",IF(Function=\"MISC\",\"F102M\",\"ERR\")))))","v":"F102D"},{"$f":"IF(Function=\"gen\",\"F102G\",IF(Function=\"TRN\",\"F102T\",IF(Function=\"DIS\",\"F102D\",IF(Function=\"RETAIL\",\"F102R\",IF(Function=\"MISC\",\"F102M\",\"ERR\")))))","v":"F102D"},"F10",{"$f":"VLOOKUP(+M453,FactSum,2,FALSE)","v":"100 Summer 100 Winter System Peaks"}]
[null,null,null,"F42","F42","F42","F42","F42","F42","F42","F42","F42","F42"]
[]
[]
["924","Property Insurance",null,"F102D",{"$f":"IF(Function=\"gen\",\"F102G\",IF(Function=\"TRN\",\"F102T\",IF(Function=\"DIS\",\"F102D\",IF(Function=\"RETAIL\",\"F102R\",IF(Function=\"MISC\",\"F102M\",\"ERR\")))))","v":"F102D"},{"$f":"IF(Function=\"gen\",\"F102G\",IF(Function=\"TRN\",\"F102T\",IF(Function=\"DIS\",\"F102D\",IF(Function=\"RETAIL\",\"F102R\",IF(Function=\"MISC\",\"F102M\",\"ERR\")))))","v":"F102D"},{"$f":"IF(Function=\"gen\",\"F102G\",IF(Function=\"TRN\",\"F102T\",IF(Function=\"DIS\",\"F102D\",IF(Function=\"RETAIL\",\"F102R\",IF(Function=\"MISC\",\"F102M\",\"ERR\")))))","v":"F102D"},{"$f":"VLOOKUP(+G457,FactSum,2,FALSE)","v":"SGDP - System Gross Distribution Plant"},{"$f":"IF(Function=\"gen\",\"F102G\",IF(Function=\"TRN\",\"F102T\",IF(Function=\"DIS\",\"F102D\",IF(Function=\"RETAIL\",\"F102R\",IF(Function=\"MISC\",\"F102M\",\"ERR\")))))","v":"F102D"},{"$f":"IF(Function=\"gen\",\"F102G\",IF(Function=\"TRN\",\"F102T\",IF(Function=\"DIS\",\"F102D\",IF(Function=\"RETAIL\",\"F102R\",IF(Function=\"MISC\",\"F102M\",\"ERR\")))))","v":"F102D"},{"$f":"IF(Function=\"gen\",\"F102G\",IF(Function=\"TRN\",\"F102T\",IF(Function=\"DIS\",\"F102D\",IF(Function=\"RETAIL\",\"F102R\",IF(Function=\"MISC\",\"F102M\",\"ERR\")))))","v":"F102D"},{"$f":"VLOOKUP(+K457,FactSum,2,FALSE)","v":"SGDP - System Gross Distribution Plant"},"F10",{"$f":"VLOOKUP(+M457,FactSum,2,FALSE)","v":"100 Summer 100 Winter System Peaks"}]
[]
["925","Injuries & Damages",null,"F102D",{"$f":"IF(Function=\"gen\",\"F102G\",IF(Function=\"TRN\",\"F102T\",IF(Function=\"DIS\",\"F102D\",IF(Function=\"RETAIL\",\"F102R\",IF(Function=\"MISC\",\"F102M\",\"ERR\")))))","v":"F102D"},{"$f":"IF(Function=\"gen\",\"F102G\",IF(Function=\"TRN\",\"F102T\",IF(Function=\"DIS\",\"F102D\",IF(Function=\"RETAIL\",\"F102R\",IF(Function=\"MISC\",\"F102M\",\"ERR\")))))","v":"F102D"},{"$f":"IF(Function=\"gen\",\"F102G\",IF(Function=\"TRN\",\"F102T\",IF(Function=\"DIS\",\"F102D\",IF(Function=\"RETAIL\",\"F102R\",IF(Function=\"MISC\",\"F102M\",\"ERR\")))))","v":"F102D"},{"$f":"VLOOKUP(+G459,FactSum,2,FALSE)","v":"SGDP - System Gross Distribution Plant"},{"$f":"IF(Function=\"gen\",\"F102G\",IF(Function=\"TRN\",\"F102T\",IF(Function=\"DIS\",\"F102D\",IF(Function=\"RETAIL\",\"F102R\",IF(Function=\"MISC\",\"F102M\",\"ERR\")))))","v":"F102D"},{"$f":"IF(Function=\"gen\",\"F102G\",IF(Function=\"TRN\",\"F102T\",IF(Function=\"DIS\",\"F102D\",IF(Function=\"RETAIL\",\"F102R\",IF(Function=\"MISC\",\"F102M\",\"ERR\")))))","v":"F102D"},{"$f":"IF(Function=\"gen\",\"F102G\",IF(Function=\"TRN\",\"F102T\",IF(Function=\"DIS\",\"F102D\",IF(Function=\"RETAIL\",\"F102R\",IF(Function=\"MISC\",\"F102M\",\"ERR\")))))","v":"F102D"},{"$f":"VLOOKUP(+K459,FactSum,2,FALSE)","v":"SGDP - System Gross Distribution Plant"},"F10",{"$f":"VLOOKUP(+M459,FactSum,2,FALSE)","v":"100 Summer 100 Winter System Peaks"}]
[]
["926","Employee Pensions & Benefits",null,"F138D",{"$f":"IF(Function=\"gen\",\"F138G\",IF(Function=\"TRN\",\"F138T\",IF(Function=\"DIS\",\"F138D\",IF(Function=\"RETAIL\",\"F138R\",IF(Function=\"MISC\",\"F138M\",\"ERR\")))))","v":"F138D"},{"$f":"IF(Function=\"gen\",\"F138G\",IF(Function=\"TRN\",\"F138T\",IF(Function=\"DIS\",\"F138D\",IF(Function=\"RETAIL\",\"F138R\",IF(Function=\"MISC\",\"F138M\",\"ERR\")))))","v":"F138D"},{"$f":"IF(Function=\"gen\",\"F138G\",IF(Function=\"TRN\",\"F138T\",IF(Function=\"DIS\",\"F138D\",IF(Function=\"RETAIL\",\"F138R\",IF(Function=\"MISC\",\"F138M\",\"ERR\")))))","v":"F138D"},{"$f":"VLOOKUP(+G461,FactSum,2,FALSE)","v":"Distribution O & M Exp "},{"$f":"IF(Function=\"gen\",\"F138G\",IF(Function=\"TRN\",\"F138T\",IF(Function=\"DIS\",\"F138D\",IF(Function=\"RETAIL\",\"F138R\",IF(Function=\"MISC\",\"F138M\",\"ERR\")))))","v":"F138D"},{"$f":"IF(Function=\"gen\",\"F138G\",IF(Function=\"TRN\",\"F138T\",IF(Function=\"DIS\",\"F138D\",IF(Function=\"RETAIL\",\"F138R\",IF(Function=\"MISC\",\"F138M\",\"ERR\")))))","v":"F138D"},{"$f":"IF(Function=\"gen\",\"F138G\",IF(Function=\"TRN\",\"F138T\",IF(Function=\"DIS\",\"F138D\",IF(Function=\"RETAIL\",\"F138R\",IF(Function=\"MISC\",\"F138M\",\"ERR\")))))","v":"F138D"},{"$f":"VLOOKUP(+K461,FactSum,2,FALSE)","v":"Distribution O & M Exp "},"F10",{"$f":"VLOOKUP(+M461,FactSum,2,FALSE)","v":"100 Summer 100 Winter System Peaks"}]
[]
["927","Franchise Requirements",null,"F102","F102","F102","F102",null,"F102","F102","F102",{"$f":"VLOOKUP(+K463,FactSum,2)","v":"100 Summer 100 Winter System Peaks"},"F10",{"$f":"VLOOKUP(+M463,FactSum,2)","v":"100 Summer 100 Winter System Peaks"}]
[]
["928","Regulatory Commission Expense",null,"F141","F141","F141","F141",{"$f":"VLOOKUP(+G463,FactSum,2)","v":"100 Summer 100 Winter System Peaks"},"F141","F141","F141","F102","F10",{"$f":"VLOOKUP(+M465,FactSum,2)","v":"100 Summer 100 Winter System Peaks"}]
[]
["929","Duplicate Charges",null,"F138D",{"$f":"IF(Function=\"gen\",\"F138G\",IF(Function=\"TRN\",\"F138T\",IF(Function=\"DIS\",\"F138D\",IF(Function=\"RETAIL\",\"F138R\",IF(Function=\"MISC\",\"F138M\",\"ERR\")))))","v":"F138D"},{"$f":"IF(Function=\"gen\",\"F138G\",IF(Function=\"TRN\",\"F138T\",IF(Function=\"DIS\",\"F138D\",IF(Function=\"RETAIL\",\"F138R\",IF(Function=\"MISC\",\"F138M\",\"ERR\")))))","v":"F138D"},{"$f":"IF(Function=\"gen\",\"F138G\",IF(Function=\"TRN\",\"F138T\",IF(Function=\"DIS\",\"F138D\",IF(Function=\"RETAIL\",\"F138R\",IF(Function=\"MISC\",\"F138M\",\"ERR\")))))","v":"F138D"},{"$f":"VLOOKUP(+G467,FactSum,2,FALSE)","v":"Distribution O & M Exp "},{"$f":"IF(Function=\"gen\",\"F138G\",IF(Function=\"TRN\",\"F138T\",IF(Function=\"DIS\",\"F138D\",IF(Function=\"RETAIL\",\"F138R\",IF(Function=\"MISC\",\"F138M\",\"ERR\")))))","v":"F138D"},{"$f":"IF(Function=\"gen\",\"F138G\",IF(Function=\"TRN\",\"F138T\",IF(Function=\"DIS\",\"F138D\",IF(Function=\"RETAIL\",\"F138R\",IF(Function=\"MISC\",\"F138M\",\"ERR\")))))","v":"F138D"},{"$f":"IF(Function=\"gen\",\"F138G\",IF(Function=\"TRN\",\"F138T\",IF(Function=\"DIS\",\"F138D\",IF(Function=\"RETAIL\",\"F138R\",IF(Function=\"MISC\",\"F138M\",\"ERR\")))))","v":"F138D"},{"$f":"VLOOKUP(+K467,FactSum,2,FALSE)","v":"Distribution O & M Exp "},"F10",{"$f":"VLOOKUP(+M467,FactSum,2)","v":"100 Summer 100 Winter System Peaks"}]
[]
["930","Misc General Expenses",null,"F138D",{"$f":"IF(Function=\"gen\",\"F138G\",IF(Function=\"TRN\",\"F138T\",IF(Function=\"DIS\",\"F138D\",IF(Function=\"RETAIL\",\"F138R\",IF(Function=\"MISC\",\"F138M\",\"ERR\")))))","v":"F138D"},{"$f":"IF(Function=\"gen\",\"F138G\",IF(Function=\"TRN\",\"F138T\",IF(Function=\"DIS\",\"F138D\",IF(Function=\"RETAIL\",\"F138R\",IF(Function=\"MISC\",\"F138M\",\"ERR\")))))","v":"F138D"},{"$f":"IF(Function=\"gen\",\"F138G\",IF(Function=\"TRN\",\"F138T\",IF(Function=\"DIS\",\"F138D\",IF(Function=\"RETAIL\",\"F138R\",IF(Function=\"MISC\",\"F138M\",\"ERR\")))))","v":"F138D"},{"$f":"VLOOKUP(+G469,FactSum,2,FALSE)","v":"Distribution O & M Exp "},{"$f":"IF(Function=\"gen\",\"F138G\",IF(Function=\"TRN\",\"F138T\",IF(Function=\"DIS\",\"F138D\",IF(Function=\"RETAIL\",\"F138R\",IF(Function=\"MISC\",\"F138M\",\"ERR\")))))","v":"F138D"},{"$f":"IF(Function=\"gen\",\"F138G\",IF(Function=\"TRN\",\"F138T\",IF(Function=\"DIS\",\"F138D\",IF(Function=\"RETAIL\",\"F138R\",IF(Function=\"MISC\",\"F138M\",\"ERR\")))))","v":"F138D"},{"$f":"IF(Function=\"gen\",\"F138G\",IF(Function=\"TRN\",\"F138T\",IF(Function=\"DIS\",\"F138D\",IF(Function=\"RETAIL\",\"F138R\",IF(Function=\"MISC\",\"F138M\",\"ERR\")))))","v":"F138D"},{"$f":"VLOOKUP(+K469,FactSum,2,FALSE)","v":"Distribution O & M Exp "},"F10",{"$f":"VLOOKUP(+M469,FactSum,2)","v":"100 Summer 100 Winter System Peaks"}]
[]
["931","Rents",null,"F102D",{"$f":"IF(Function=\"gen\",\"F102G\",IF(Function=\"TRN\",\"F102T\",IF(Function=\"DIS\",\"F102D\",IF(Function=\"RETAIL\",\"F102R\",IF(Function=\"MISC\",\"F102M\",\"ERR\")))))","v":"F102D"},{"$f":"IF(Function=\"gen\",\"F102G\",IF(Function=\"TRN\",\"F102T\",IF(Function=\"DIS\",\"F102D\",IF(Function=\"RETAIL\",\"F102R\",IF(Function=\"MISC\",\"F102M\",\"ERR\")))))","v":"F102D"},{"$f":"IF(Function=\"gen\",\"F102G\",IF(Function=\"TRN\",\"F102T\",IF(Function=\"DIS\",\"F102D\",IF(Function=\"RETAIL\",\"F102R\",IF(Function=\"MISC\",\"F102M\",\"ERR\")))))","v":"F102D"},{"$f":"VLOOKUP(+G471,FactSum,2)","v":"100 Summer 100 Winter System Peaks"},{"$f":"IF(Function=\"gen\",\"F102G\",IF(Function=\"TRN\",\"F102T\",IF(Function=\"DIS\",\"F102D\",IF(Function=\"RETAIL\",\"F102R\",IF(Function=\"MISC\",\"F102M\",\"ERR\")))))","v":"F102D"},{"$f":"IF(Function=\"gen\",\"F102G\",IF(Function=\"TRN\",\"F102T\",IF(Function=\"DIS\",\"F102D\",IF(Function=\"RETAIL\",\"F102R\",IF(Function=\"MISC\",\"F102M\",\"ERR\")))))","v":"F102D"},{"$f":"IF(Function=\"gen\",\"F102G\",IF(Function=\"TRN\",\"F102T\",IF(Function=\"DIS\",\"F102D\",IF(Function=\"RETAIL\",\"F102R\",IF(Function=\"MISC\",\"F102M\",\"ERR\")))))","v":"F102D"},{"$f":"VLOOKUP(+K471,FactSum,2)","v":"100 Summer 100 Winter System Peaks"},"F10",{"$f":"VLOOKUP(+M471,FactSum,2)","v":"100 Summer 100 Winter System Peaks"}]
[]
["935","Maintenance of General Plant",null,"F108","F108","F108","F108",{"$f":"VLOOKUP(+G473,FactSum,2)","v":"SGP - System General Plant"},"F108","F108","F108",{"$f":"VLOOKUP(+K473,FactSum,2)","v":"SGP - System General Plant"},"F10",{"$f":"VLOOKUP(+M473,FactSum,2)","v":"100 Summer 100 Winter System Peaks"}]
[]
["TOTAL ADMINISTRATIVE & GEN EXPENSE"]
[]
[]
["TOTAL O & M EXPENSE"]
[]
[]
[]
["A",null,"B","C","C","C","C",null,"C","C","C",null,"C"]
[]
["FERC",null,null,"COS","COS","COS","COS",null,"COS","COS","COS",null,"COS"]
["ACCT",null,"DESCRIPTION ","Factor","Factor","Factor","Factor",null,"Factor","Factor","Factor",null,"Factor"]
["403SP","Steam Depreciation",null,"F10",{"$f":"IF(Classification=\"DEMAND\",\"F12\",IF(Classification=\"ENERGY\",\"F30\",\"F10\"))","v":"F10"},{"$f":"IF(Classification=\"DEMAND\",\"F12\",IF(Classification=\"ENERGY\",\"F30\",\"F10\"))","v":"F10"},{"$f":"IF(Classification=\"DEMAND\",\"F12\",IF(Classification=\"ENERGY\",\"F30\",\"F10\"))","v":"F10"},{"$f":"VLOOKUP(+G486,FactSum,2,FALSE)","v":"100 Summer 100 Winter System Peaks"},"F10","F10","F10",{"$f":"VLOOKUP(+K486,FactSum,2,FALSE)","v":"100 Summer 100 Winter System Peaks"},"F10",{"$f":"VLOOKUP(+M486,FactSum,2,FALSE)","v":"100 Summer 100 Winter System Peaks"}]
[null,null,"JBG","F10",{"$f":"IF(Classification=\"DEMAND\",\"F12\",IF(Classification=\"ENERGY\",\"F30\",\"F10\"))","v":"F10"},{"$f":"IF(Classification=\"DEMAND\",\"F15\",IF(Classification=\"ENERGY\",\"F33\",\"F16\"))","v":"F16"},"F10",null,"F10","F10","F10","F10","F10"]
[]
[]
["403NP","Nuclear Depreciation",null,"F10",{"$f":"IF(Classification=\"DEMAND\",\"F12\",IF(Classification=\"ENERGY\",\"F30\",\"F10\"))","v":"F10"},{"$f":"IF(Classification=\"DEMAND\",\"F12\",IF(Classification=\"ENERGY\",\"F30\",\"F10\"))","v":"F10"},{"$f":"IF(Classification=\"DEMAND\",\"F12\",IF(Classification=\"ENERGY\",\"F30\",\"F10\"))","v":"F10"},{"$f":"VLOOKUP(+G490,FactSum,2,FALSE)","v":"100 Summer 100 Winter System Peaks"},{"$f":"IF(Classification=\"DEMAND\",\"F12\",IF(Classification=\"ENERGY\",\"F30\",\"F10\"))","v":"F10"},{"$f":"IF(Classification=\"DEMAND\",\"F12\",IF(Classification=\"ENERGY\",\"F30\",\"F10\"))","v":"F10"},{"$f":"IF(Classification=\"DEMAND\",\"F12\",IF(Classification=\"ENERGY\",\"F30\",\"F10\"))","v":"F10"},{"$f":"VLOOKUP(+K490,FactSum,2,FALSE)","v":"100 Summer 100 Winter System Peaks"},"F10",{"$f":"VLOOKUP(+M490,FactSum,2,FALSE)","v":"100 Summer 100 Winter System Peaks"}]
[]
["403HP","Hydro Depreciation",null,"F10",{"$f":"IF(Classification=\"DEMAND\",\"F12\",IF(Classification=\"ENERGY\",\"F30\",\"F10\"))","v":"F10"},{"$f":"IF(Classification=\"DEMAND\",\"F12\",IF(Classification=\"ENERGY\",\"F30\",\"F10\"))","v":"F10"},{"$f":"IF(Classification=\"DEMAND\",\"F12\",IF(Classification=\"ENERGY\",\"F30\",\"F10\"))","v":"F10"},{"$f":"VLOOKUP(+G492,FactSum,2,FALSE)","v":"100 Summer 100 Winter System Peaks"},{"$f":"IF(Classification=\"DEMAND\",\"F12\",IF(Classification=\"ENERGY\",\"F30\",\"F10\"))","v":"F10"},{"$f":"IF(Classification=\"DEMAND\",\"F12\",IF(Classification=\"ENERGY\",\"F30\",\"F10\"))","v":"F10"},{"$f":"IF(Classification=\"DEMAND\",\"F12\",IF(Classification=\"ENERGY\",\"F30\",\"F10\"))","v":"F10"},{"$f":"VLOOKUP(+K492,FactSum,2,FALSE)","v":"100 Summer 100 Winter System Peaks"},"F10",{"$f":"VLOOKUP(+M492,FactSum,2,FALSE)","v":"100 Summer 100 Winter System Peaks"}]
[]
["403OP","Other Production Depreciation",null,"F10","F10","F10",{"$f":"IF(Classification=\"DEMAND\",\"F12\",IF(Classification=\"ENERGY\",\"F30\",\"F10\"))","v":"F10"},"F12","F10","F10","F10",{"$f":"VLOOKUP(+K494,FactSum,2,FALSE)","v":"100 Summer 100 Winter System Peaks"},"F10",{"$f":"VLOOKUP(+M494,FactSum,2,FALSE)","v":"100 Summer 100 Winter System Peaks"}]
[null,null,"CAGE","F10",{"$f":"IF(Classification=\"DEMAND\",\"F12\",IF(Classification=\"ENERGY\",\"F30\",\"F10\"))","v":"F10"},{"$f":"IF(Classification=\"DEMAND\",\"F13\",IF(Classification=\"ENERGY\",\"F32\",\"F14\"))","v":"F14"},{"$f":"IF(Classification=\"DEMAND\",\"F12\",IF(Classification=\"ENERGY\",\"F30\",\"F10\"))","v":"F10"},null,"F10","F10","F10","F10","F10"]
[null,null,"SSGCH","F10",{"$f":"IF(Classification=\"DEMAND\",\"F12\",IF(Classification=\"ENERGY\",\"F30\",\"F10\"))","v":"F10"},{"$f":"IF(Classification=\"DEMAND\",\"F15\",IF(Classification=\"ENERGY\",\"F33\",\"F16\"))","v":"F16"},"F10",null,"F10","F10","F10","F10","F10"]
[]
[]
["403TP","Transmission Depreciation",null,"F106","F106","F106","F106",{"$f":"VLOOKUP(+G499,FactSum,2,FALSE)","v":"STP - System Transmission Plant"},"F106","F106","F106",{"$f":"VLOOKUP(+K499,FactSum,2,FALSE)","v":"STP - System Transmission Plant"},"F10",{"$f":"VLOOKUP(+M499,FactSum,2,FALSE)","v":"100 Summer 100 Winter System Peaks"}]
[]
["403","Distribution Depreciation"]
[null,null,"Land Rights","F118","F118","F118","F118",{"$f":"VLOOKUP(+G502,FactSum,2,FALSE)","v":"Account 360"},"F118","F118","F118",{"$f":"VLOOKUP(+K502,FactSum,2,FALSE)","v":"Account 360"},"F10",{"$f":"VLOOKUP(+M502,FactSum,2,FALSE)","v":"100 Summer 100 Winter System Peaks"}]
[null,null,"Structures","F119","F119","F119","F119","Account 361","F119","F119","F119","Account 361","F10","100 Summer 100 Winter System Peaks"]
[null,null,"Station Equip","F120","F120","F120","F120","Account 362","F120","F120","F120","Account 362","F10","100 Summer 100 Winter System Peaks"]
[null,null,"Poles & Towers","F121","F121","F121","F121","Account 364","F121","F121","F121","Account 364","F10","100 Summer 100 Winter System Peaks"]
[null,null,"OH Conductors","F122","F122","F122","F122","Account 365","F122","F122","F122","Account 365","F10","100 Summer 100 Winter System Peaks"]
[null,null,"UG Conduit","F123","F123","F123","F123","Account 366","F123","F123","F123","Account 366","F10","100 Summer 100 Winter System Peaks"]
[null,null,"UG Conductor","F124","F124","F124","F124","Account 367","F124","F124","F124","Account 367","F10","100 Summer 100 Winter System Peaks"]
[null,null,"Line Transformer","F125","F125","F125","F125","Account 368","F125","F125","F125","Account 368","F10","100 Summer 100 Winter System Peaks"]
[null,null,"Services","F126","F126","F126","F126","Account 369","F126","F126","F126","Account 369","F10","100 Summer 100 Winter System Peaks"]
[null,null,"Meters","F127","F127","F127","F127","Account 370","F127","F127","F127","Account 370","F10","100 Summer 100 Winter System Peaks"]
[null,null,"Inst Cust Premises","F128","F128","F128","F128","Account 371","F128","F128","F128","Account 371","F10","100 Summer 100 Winter System Peaks"]
[null,null,"Leased Property","F129","F129","F129","F129","Account 372","F129","F129","F129","Account 372","F10","100 Summer 100 Winter System Peaks"]
[null,null,"Street Lighting","F130","F130","F130","F130","Account 373","F130","F130","F130","Account 373","F10","100 Summer 100 Winter System Peaks"]
[null,"Total Distribution Expense"]
[]
["403GP","General Depreciation"]
[null,null,"Situs","F107D",{"$f":"IF(Function=\"gen\",\"F107G\",IF(Function=\"TRN\",\"F107T\",IF(Function=\"DIS\",\"F107D\",IF(Function=\"RETAIL\",\"F107R\",IF(Function=\"MISC\",\"F107M\",\"ERR\")))))","v":"F107D"},{"$f":"IF(Function=\"gen\",\"F107G\",IF(Function=\"TRN\",\"F107T\",IF(Function=\"DIS\",\"F107D\",IF(Function=\"RETAIL\",\"F107R\",IF(Function=\"MISC\",\"F107M\",\"ERR\")))))","v":"F107D"},"F107D","F107D","F107D","F107D","F107D",{"$f":"VLOOKUP(+K518,FactSum,2)","v":"STP - System Trans & Dist Plant"},"F10",{"$f":"VLOOKUP(+M518,FactSum,2)","v":"100 Summer 100 Winter System Peaks"}]
[null,null,"System Generation","F105D",{"$f":"IF(Function=\"gen\",\"F105G\",IF(Function=\"TRN\",\"F105T\",IF(Function=\"DIS\",\"F105D\",IF(Function=\"RETAIL\",\"F105R\",IF(Function=\"MISC\",\"F105M\",\"ERR\")))))","v":"F105D"},{"$f":"IF(Function=\"gen\",\"F105G\",IF(Function=\"TRN\",\"F105T\",IF(Function=\"DIS\",\"F105D\",IF(Function=\"RETAIL\",\"F105R\",IF(Function=\"MISC\",\"F105M\",\"ERR\")))))","v":"F105D"},{"$f":"IF(Function=\"gen\",\"F105G\",IF(Function=\"TRN\",\"F105T\",IF(Function=\"DIS\",\"F105D\",IF(Function=\"RETAIL\",\"F105R\",IF(Function=\"MISC\",\"F105M\",\"ERR\")))))","v":"F105D"},{"$f":"VLOOKUP(+G519,FactSum,2)","v":"100 Summer 100 Winter System Peaks"},{"$f":"IF(Function=\"gen\",\"F105G\",IF(Function=\"TRN\",\"F105T\",IF(Function=\"DIS\",\"F105D\",IF(Function=\"RETAIL\",\"F105R\",IF(Function=\"MISC\",\"F105M\",\"ERR\")))))","v":"F105D"},{"$f":"IF(Function=\"gen\",\"F105G\",IF(Function=\"TRN\",\"F105T\",IF(Function=\"DIS\",\"F105D\",IF(Function=\"RETAIL\",\"F105R\",IF(Function=\"MISC\",\"F105M\",\"ERR\")))))","v":"F105D"},{"$f":"IF(Function=\"gen\",\"F105G\",IF(Function=\"TRN\",\"F105T\",IF(Function=\"DIS\",\"F105D\",IF(Function=\"RETAIL\",\"F105R\",IF(Function=\"MISC\",\"F105M\",\"ERR\")))))","v":"F105D"},{"$f":"VLOOKUP(+K519,FactSum,2)","v":"100 Summer 100 Winter System Peaks"},"F10",{"$f":"VLOOKUP(+M519,FactSum,2)","v":"100 Summer 100 Winter System Peaks"}]
[null,null,"System Overheads","F102D",{"$f":"IF(Function=\"gen\",\"F102G\",IF(Function=\"TRN\",\"F102T\",IF(Function=\"DIS\",\"F102D\",IF(Function=\"RETAIL\",\"F102R\",IF(Function=\"MISC\",\"F102M\",\"ERR\")))))","v":"F102D"},{"$f":"IF(Function=\"gen\",\"F102G\",IF(Function=\"TRN\",\"F102T\",IF(Function=\"DIS\",\"F102D\",IF(Function=\"RETAIL\",\"F102R\",IF(Function=\"MISC\",\"F102M\",\"ERR\")))))","v":"F102D"},{"$f":"IF(Function=\"gen\",\"F102G\",IF(Function=\"TRN\",\"F102T\",IF(Function=\"DIS\",\"F102D\",IF(Function=\"RETAIL\",\"F102R\",IF(Function=\"MISC\",\"F102M\",\"ERR\")))))","v":"F102D"},{"$f":"VLOOKUP(+G520,FactSum,2)","v":"100 Summer 100 Winter System Peaks"},{"$f":"IF(Function=\"gen\",\"F102G\",IF(Function=\"TRN\",\"F102T\",IF(Function=\"DIS\",\"F102D\",IF(Function=\"RETAIL\",\"F102R\",IF(Function=\"MISC\",\"F102M\",\"ERR\")))))","v":"F102D"},{"$f":"IF(Function=\"gen\",\"F102G\",IF(Function=\"TRN\",\"F102T\",IF(Function=\"DIS\",\"F102D\",IF(Function=\"RETAIL\",\"F102R\",IF(Function=\"MISC\",\"F102M\",\"ERR\")))))","v":"F102D"},{"$f":"IF(Function=\"gen\",\"F102G\",IF(Function=\"TRN\",\"F102T\",IF(Function=\"DIS\",\"F102D\",IF(Function=\"RETAIL\",\"F102R\",IF(Function=\"MISC\",\"F102M\",\"ERR\")))))","v":"F102D"},{"$f":"VLOOKUP(+K520,FactSum,2)","v":"100 Summer 100 Winter System Peaks"},"F10",{"$f":"VLOOKUP(+M520,FactSum,2)","v":"100 Summer 100 Winter System Peaks"}]
[null,null,"Customer - System","F42","F42","F42","F42",{"$f":"VLOOKUP(+G521,FactSum,2)","v":"Firm Revenues"},"F42","F42","F42",{"$f":"VLOOKUP(+K521,FactSum,2)","v":"Firm Revenues"},"F42",{"$f":"VLOOKUP(+M521,FactSum,2)","v":"Firm Revenues"}]
[null,null,"Energy","F10",{"$f":"IF(Classification=\"DEMAND\",\"F12\",IF(Classification=\"ENERGY\",\"F30\",\"F10\"))","v":"F10"},"F30",{"$f":"IF(Classification=\"DEMAND\",\"F12\",IF(Classification=\"ENERGY\",\"F30\",\"F10\"))","v":"F10"},{"$f":"VLOOKUP(+G522,FactSum,2)","v":"100 Summer 100 Winter System Peaks"},"F30","F30","F30",{"$f":"VLOOKUP(+K522,FactSum,2)","v":"Firm Revenues"},"F30",{"$f":"VLOOKUP(+M522,FactSum,2)","v":"Firm Revenues"}]
[null,null,"SSGCT","F10",{"$f":"IF(Classification=\"DEMAND\",\"F12\",IF(Classification=\"ENERGY\",\"F30\",\"F10\"))","v":"F10"},{"$f":"IF(Classification=\"DEMAND\",\"F13\",IF(Classification=\"ENERGY\",\"F32\",\"F14\"))","v":"F14"},{"$f":"IF(Function=\"gen\",\"F105G\",IF(Function=\"TRN\",\"F105T\",IF(Function=\"DIS\",\"F105D\",IF(Function=\"RETAIL\",\"F105R\",IF(Function=\"MISC\",\"F105M\",\"ERR\")))))","v":"F105D"},null,"F105D","F105D","F105D","F105D","F9"]
[null,null,"SSGCH","F10",{"$f":"IF(Classification=\"DEMAND\",\"F12\",IF(Classification=\"ENERGY\",\"F30\",\"F10\"))","v":"F10"},{"$f":"IF(Classification=\"DEMAND\",\"F15\",IF(Classification=\"ENERGY\",\"F33\",\"F16\"))","v":"F16"},"F105D",null,"F105D","F105D","F105D","F105D","F10"]
[null,"Total General Expense"]
[]
["403GV0","Mining Depreciation",null,"F105D",{"$f":"IF(Function=\"gen\",\"F105G\",IF(Function=\"TRN\",\"F105T\",IF(Function=\"DIS\",\"F105D\",IF(Function=\"RETAIL\",\"F105R\",IF(Function=\"MISC\",\"F105M\",\"ERR\")))))","v":"F105D"},{"$f":"IF(Function=\"gen\",\"F105G\",IF(Function=\"TRN\",\"F105T\",IF(Function=\"DIS\",\"F105D\",IF(Function=\"RETAIL\",\"F105R\",IF(Function=\"MISC\",\"F105M\",\"ERR\")))))","v":"F105D"},{"$f":"IF(Function=\"gen\",\"F105G\",IF(Function=\"TRN\",\"F105T\",IF(Function=\"DIS\",\"F105D\",IF(Function=\"RETAIL\",\"F105R\",IF(Function=\"MISC\",\"F105M\",\"ERR\")))))","v":"F105D"},{"$f":"VLOOKUP(+G527,FactSum,2,FALSE)","v":"SGDP - System Gross Distribution Plant"},{"$f":"IF(Function=\"gen\",\"F105G\",IF(Function=\"TRN\",\"F105T\",IF(Function=\"DIS\",\"F105D\",IF(Function=\"RETAIL\",\"F105R\",IF(Function=\"MISC\",\"F105M\",\"ERR\")))))","v":"F105D"},{"$f":"IF(Function=\"gen\",\"F105G\",IF(Function=\"TRN\",\"F105T\",IF(Function=\"DIS\",\"F105D\",IF(Function=\"RETAIL\",\"F105R\",IF(Function=\"MISC\",\"F105M\",\"ERR\")))))","v":"F105D"},{"$f":"IF(Function=\"gen\",\"F105G\",IF(Function=\"TRN\",\"F105T\",IF(Function=\"DIS\",\"F105D\",IF(Function=\"RETAIL\",\"F105R\",IF(Function=\"MISC\",\"F105M\",\"ERR\")))))","v":"F105D"},{"$f":"VLOOKUP(+K527,FactSum,2,FALSE)","v":"SGDP - System Gross Distribution Plant"},"F30",{"$f":"VLOOKUP(+M527,FactSum,2,FALSE)","v":"MWH @ Input"}]
[]
["403MP","Mining Depreciation",null,"F10",{"$f":"IF(Classification=\"DEMAND\",\"F12\",IF(Classification=\"ENERGY\",\"F30\",\"F10\"))","v":"F10"},"F30",{"$f":"IF(Classification=\"DEMAND\",\"F12\",IF(Classification=\"ENERGY\",\"F30\",\"F10\"))","v":"F10"},{"$f":"VLOOKUP(+G529,FactSum,2,FALSE)","v":"100 Summer 100 Winter System Peaks"},"F30","F30","F30",{"$f":"VLOOKUP(+K529,FactSum,2,FALSE)","v":"MWH @ Input"},"F30",{"$f":"VLOOKUP(+M529,FactSum,2,FALSE)","v":"MWH @ Input"}]
[]
["403EP","Experimental Plant Depreciation",null,"F10",{"$f":"IF(Classification=\"DEMAND\",\"F12\",IF(Classification=\"ENERGY\",\"F30\",\"F10\"))","v":"F10"},{"$f":"IF(Classification=\"DEMAND\",\"F12\",IF(Classification=\"ENERGY\",\"F30\",\"F10\"))","v":"F10"},{"$f":"IF(Classification=\"DEMAND\",\"F12\",IF(Classification=\"ENERGY\",\"F30\",\"F10\"))","v":"F10"},{"$f":"VLOOKUP(+G531,FactSum,2,FALSE)","v":"100 Summer 100 Winter System Peaks"},{"$f":"IF(Classification=\"DEMAND\",\"F12\",IF(Classification=\"ENERGY\",\"F30\",\"F10\"))","v":"F10"},{"$f":"IF(Classification=\"DEMAND\",\"F12\",IF(Classification=\"ENERGY\",\"F30\",\"F10\"))","v":"F10"},{"$f":"IF(Classification=\"DEMAND\",\"F12\",IF(Classification=\"ENERGY\",\"F30\",\"F10\"))","v":"F10"},{"$f":"VLOOKUP(+K531,FactSum,2,FALSE)","v":"100 Summer 100 Winter System Peaks"},"F10",{"$f":"VLOOKUP(+M531,FactSum,2,FALSE)","v":"100 Summer 100 Winter System Peaks"}]
[]
[]
["TOTAL DEPRECIATION EXPENSE"]
[]
[]
[]
[]
["404GP","Amort of LT Plant - Cap. Lease Gen"]
[null,"Division",null,"F10",{"$f":"IF(Classification=\"DEMAND\",\"F12\",IF(Classification=\"ENERGY\",\"F30\",\"F10\"))","v":"F10"},{"$f":"IF(Classification=\"DEMAND\",\"F12\",IF(Classification=\"ENERGY\",\"F30\",\"F10\"))","v":"F10"},{"$f":"IF(Classification=\"DEMAND\",\"F12\",IF(Classification=\"ENERGY\",\"F30\",\"F10\"))","v":"F10"},{"$f":"VLOOKUP(+G540,FactSum,2)","v":"100 Summer 100 Winter System Peaks"},{"$f":"IF(Classification=\"DEMAND\",\"F12\",IF(Classification=\"ENERGY\",\"F30\",\"F10\"))","v":"F10"},{"$f":"IF(Classification=\"DEMAND\",\"F12\",IF(Classification=\"ENERGY\",\"F30\",\"F10\"))","v":"F10"},{"$f":"IF(Classification=\"DEMAND\",\"F12\",IF(Classification=\"ENERGY\",\"F30\",\"F10\"))","v":"F10"},{"$f":"VLOOKUP(+K540,FactSum,2)","v":"100 Summer 100 Winter System Peaks"},"F10",{"$f":"VLOOKUP(+M540,FactSum,2)","v":"100 Summer 100 Winter System Peaks"}]
[null,"System Overheads",null,"F102D",{"$f":"IF(Function=\"gen\",\"F102G\",IF(Function=\"TRN\",\"F102T\",IF(Function=\"DIS\",\"F102D\",IF(Function=\"RETAIL\",\"F102R\",IF(Function=\"MISC\",\"F102M\",\"ERR\")))))","v":"F102D"},{"$f":"IF(Function=\"gen\",\"F102G\",IF(Function=\"TRN\",\"F102T\",IF(Function=\"DIS\",\"F102D\",IF(Function=\"RETAIL\",\"F102R\",IF(Function=\"MISC\",\"F102M\",\"ERR\")))))","v":"F102D"},{"$f":"IF(Function=\"gen\",\"F102G\",IF(Function=\"TRN\",\"F102T\",IF(Function=\"DIS\",\"F102D\",IF(Function=\"RETAIL\",\"F102R\",IF(Function=\"MISC\",\"F102M\",\"ERR\")))))","v":"F102D"},{"$f":"VLOOKUP(+G541,FactSum,2)","v":"100 Summer 100 Winter System Peaks"},{"$f":"IF(Function=\"gen\",\"F102G\",IF(Function=\"TRN\",\"F102T\",IF(Function=\"DIS\",\"F102D\",IF(Function=\"RETAIL\",\"F102R\",IF(Function=\"MISC\",\"F102M\",\"ERR\")))))","v":"F102D"},{"$f":"IF(Function=\"gen\",\"F102G\",IF(Function=\"TRN\",\"F102T\",IF(Function=\"DIS\",\"F102D\",IF(Function=\"RETAIL\",\"F102R\",IF(Function=\"MISC\",\"F102M\",\"ERR\")))))","v":"F102D"},{"$f":"IF(Function=\"gen\",\"F102G\",IF(Function=\"TRN\",\"F102T\",IF(Function=\"DIS\",\"F102D\",IF(Function=\"RETAIL\",\"F102R\",IF(Function=\"MISC\",\"F102M\",\"ERR\")))))","v":"F102D"},{"$f":"VLOOKUP(+K541,FactSum,2)","v":"100 Summer 100 Winter System Peaks"},"F10",{"$f":"VLOOKUP(+M541,FactSum,2)","v":"100 Summer 100 Winter System Peaks"}]
[null,"Customer - System",null,"F42","F42","F42","F42",{"$f":"VLOOKUP(+G542,FactSum,2)","v":"Firm Revenues"},"F42","F42","F42",{"$f":"VLOOKUP(+K542,FactSum,2)","v":"Firm Revenues"},"F42",{"$f":"VLOOKUP(+M542,FactSum,2)","v":"Firm Revenues"}]
[null,"Total Amort. Cap. Lease General"]
[]
["404SP","Amort of LT Plant - Cap Lease Steam",null,"F10",{"$f":"IF(Classification=\"DEMAND\",\"F12\",IF(Classification=\"ENERGY\",\"F30\",\"F10\"))","v":"F10"},{"$f":"IF(Classification=\"DEMAND\",\"F12\",IF(Classification=\"ENERGY\",\"F30\",\"F10\"))","v":"F10"},{"$f":"IF(Classification=\"DEMAND\",\"F12\",IF(Classification=\"ENERGY\",\"F30\",\"F10\"))","v":"F10"},{"$f":"VLOOKUP(+G545,FactSum,2)","v":"100 Summer 100 Winter System Peaks"},{"$f":"IF(Classification=\"DEMAND\",\"F12\",IF(Classification=\"ENERGY\",\"F30\",\"F10\"))","v":"F10"},{"$f":"IF(Classification=\"DEMAND\",\"F12\",IF(Classification=\"ENERGY\",\"F30\",\"F10\"))","v":"F10"},{"$f":"IF(Classification=\"DEMAND\",\"F12\",IF(Classification=\"ENERGY\",\"F30\",\"F10\"))","v":"F10"},{"$f":"VLOOKUP(+K545,FactSum,2)","v":"100 Summer 100 Winter System Peaks"},"F10",{"$f":"VLOOKUP(+M545,FactSum,2)","v":"100 Summer 100 Winter System Peaks"}]
[]
["404IP","Amort of LT Plant - Intangible Plant"]
[null,null,"Situs","F107D",{"$f":"IF(Function=\"gen\",\"F107G\",IF(Function=\"TRN\",\"F107T\",IF(Function=\"DIS\",\"F107D\",IF(Function=\"RETAIL\",\"F107R\",IF(Function=\"MISC\",\"F107M\",\"ERR\")))))","v":"F107D"},{"$f":"IF(Function=\"gen\",\"F107G\",IF(Function=\"TRN\",\"F107T\",IF(Function=\"DIS\",\"F107D\",IF(Function=\"RETAIL\",\"F107R\",IF(Function=\"MISC\",\"F107M\",\"ERR\")))))","v":"F107D"},"F107D","F107D","F107D","F107D","F107D",{"$f":"VLOOKUP(+K548,FactSum,2)","v":"STP - System Trans & Dist Plant"},"F10",{"$f":"VLOOKUP(+M548,FactSum,2)","v":"100 Summer 100 Winter System Peaks"}]
[null,null,"System Generation","F105D",{"$f":"IF(Function=\"gen\",\"F105G\",IF(Function=\"TRN\",\"F105T\",IF(Function=\"DIS\",\"F105D\",IF(Function=\"RETAIL\",\"F105R\",IF(Function=\"MISC\",\"F105M\",\"ERR\")))))","v":"F105D"},{"$f":"IF(Function=\"gen\",\"F105G\",IF(Function=\"TRN\",\"F105T\",IF(Function=\"DIS\",\"F105D\",IF(Function=\"RETAIL\",\"F105R\",IF(Function=\"MISC\",\"F105M\",\"ERR\")))))","v":"F105D"},{"$f":"IF(Function=\"gen\",\"F105G\",IF(Function=\"TRN\",\"F105T\",IF(Function=\"DIS\",\"F105D\",IF(Function=\"RETAIL\",\"F105R\",IF(Function=\"MISC\",\"F105M\",\"ERR\")))))","v":"F105D"},{"$f":"VLOOKUP(+G549,FactSum,2)","v":"100 Summer 100 Winter System Peaks"},{"$f":"IF(Function=\"gen\",\"F105G\",IF(Function=\"TRN\",\"F105T\",IF(Function=\"DIS\",\"F105D\",IF(Function=\"RETAIL\",\"F105R\",IF(Function=\"MISC\",\"F105M\",\"ERR\")))))","v":"F105D"},{"$f":"IF(Function=\"gen\",\"F105G\",IF(Function=\"TRN\",\"F105T\",IF(Function=\"DIS\",\"F105D\",IF(Function=\"RETAIL\",\"F105R\",IF(Function=\"MISC\",\"F105M\",\"ERR\")))))","v":"F105D"},{"$f":"IF(Function=\"gen\",\"F105G\",IF(Function=\"TRN\",\"F105T\",IF(Function=\"DIS\",\"F105D\",IF(Function=\"RETAIL\",\"F105R\",IF(Function=\"MISC\",\"F105M\",\"ERR\")))))","v":"F105D"},"100 Summer 100 Winter System Peaks","F10",{"$f":"VLOOKUP(+M549,FactSum,2)","v":"100 Summer 100 Winter System Peaks"}]
[null,null,"System Overheads","F102D",{"$f":"IF(Function=\"gen\",\"F102G\",IF(Function=\"TRN\",\"F102T\",IF(Function=\"DIS\",\"F102D\",IF(Function=\"RETAIL\",\"F102R\",IF(Function=\"MISC\",\"F102M\",\"ERR\")))))","v":"F102D"},{"$f":"IF(Function=\"gen\",\"F102G\",IF(Function=\"TRN\",\"F102T\",IF(Function=\"DIS\",\"F102D\",IF(Function=\"RETAIL\",\"F102R\",IF(Function=\"MISC\",\"F102M\",\"ERR\")))))","v":"F102D"},{"$f":"IF(Function=\"gen\",\"F102G\",IF(Function=\"TRN\",\"F102T\",IF(Function=\"DIS\",\"F102D\",IF(Function=\"RETAIL\",\"F102R\",IF(Function=\"MISC\",\"F102M\",\"ERR\")))))","v":"F102D"},"100 Summer 100 Winter System Peaks",{"$f":"IF(Function=\"gen\",\"F102G\",IF(Function=\"TRN\",\"F102T\",IF(Function=\"DIS\",\"F102D\",IF(Function=\"RETAIL\",\"F102R\",IF(Function=\"MISC\",\"F102M\",\"ERR\")))))","v":"F102D"},{"$f":"IF(Function=\"gen\",\"F102G\",IF(Function=\"TRN\",\"F102T\",IF(Function=\"DIS\",\"F102D\",IF(Function=\"RETAIL\",\"F102R\",IF(Function=\"MISC\",\"F102M\",\"ERR\")))))","v":"F102D"},{"$f":"IF(Function=\"gen\",\"F102G\",IF(Function=\"TRN\",\"F102T\",IF(Function=\"DIS\",\"F102D\",IF(Function=\"RETAIL\",\"F102R\",IF(Function=\"MISC\",\"F102M\",\"ERR\")))))","v":"F102D"},"100 Summer 100 Winter System Peaks","F10",{"$f":"VLOOKUP(+M550,FactSum,2)","v":"100 Summer 100 Winter System Peaks"}]
[null,null,"Customer - System","F42","F42","F42","F42","Firm Revenues","F42","F42","F42","Firm Revenues","F42",{"$f":"VLOOKUP(+M551,FactSum,2)","v":"Firm Revenues"}]
[null,null,"Energy","F10",{"$f":"IF(Classification=\"DEMAND\",\"F12\",IF(Classification=\"ENERGY\",\"F30\",\"F10\"))","v":"F10"},"F30",{"$f":"IF(Classification=\"DEMAND\",\"F12\",IF(Classification=\"ENERGY\",\"F30\",\"F10\"))","v":"F10"},"100 Summer 100 Winter System Peaks","F30","F30","F30","Firm Revenues","F30",{"$f":"VLOOKUP(+M552,FactSum,2)","v":"Firm Revenues"}]
[null,null,"SSGCT","F10",{"$f":"IF(Classification=\"DEMAND\",\"F12\",IF(Classification=\"ENERGY\",\"F30\",\"F10\"))","v":"F10"},{"$f":"IF(Classification=\"DEMAND\",\"F13\",IF(Classification=\"ENERGY\",\"F32\",\"F14\"))","v":"F14"},{"$f":"IF(Function=\"gen\",\"F105G\",IF(Function=\"TRN\",\"F105T\",IF(Function=\"DIS\",\"F105D\",IF(Function=\"RETAIL\",\"F105R\",IF(Function=\"MISC\",\"F105M\",\"ERR\")))))","v":"F105D"},"100 Summer 100 Winter System Peaks",{"$f":"IF(Function=\"gen\",\"F105G\",IF(Function=\"TRN\",\"F105T\",IF(Function=\"DIS\",\"F105D\",IF(Function=\"RETAIL\",\"F105R\",IF(Function=\"MISC\",\"F105M\",\"ERR\")))))","v":"F105D"},"F105D","F105D","100 Summer 100 Winter System Peaks","F9"]
[null,null,"SSGCH","F10",{"$f":"IF(Classification=\"DEMAND\",\"F12\",IF(Classification=\"ENERGY\",\"F30\",\"F10\"))","v":"F10"},{"$f":"IF(Classification=\"DEMAND\",\"F15\",IF(Classification=\"ENERGY\",\"F33\",\"F16\"))","v":"F16"},{"$f":"IF(Function=\"gen\",\"F105G\",IF(Function=\"TRN\",\"F105T\",IF(Function=\"DIS\",\"F105D\",IF(Function=\"RETAIL\",\"F105R\",IF(Function=\"MISC\",\"F105M\",\"ERR\")))))","v":"F105D"},"100 Summer 100 Winter System Peaks","F105D","F105D","F105D","100 Summer 100 Winter System Peaks","F10"]
[null,"Total Amort. Intangible Plant"]
[]
[]
[]
[]
["A",null,"B","C","C","C","C",null,"C","C","C",null,"C"]
[]
["FERC",null,null,"COS","COS","COS","COS",null,"COS","COS","COS",null,"COS"]
["ACCT",null,"DESCRIPTION ","Factor","Factor","Factor","Factor",null,"Factor","Factor","Factor",null,"Factor"]
["404MP",null,"Amort of LT Plant - Mining Plant","F10",{"$f":"IF(Classification=\"DEMAND\",\"F12\",IF(Classification=\"ENERGY\",\"F30\",\"F10\"))","v":"F10"},"F30",{"$f":"IF(Classification=\"DEMAND\",\"F12\",IF(Classification=\"ENERGY\",\"F30\",\"F10\"))","v":"F10"},{"$f":"VLOOKUP(+G564,FactSum,2,FALSE)","v":"100 Summer 100 Winter System Peaks"},"F30","F30","F30",null,"F30"]
[null,null,null,null,null,null,null,null,null,null,null,null,null,{"$f":"VLOOKUP(+M568,FactSum,2,FALSE)","v":"100 Summer 100 Winter System Peaks"}]
["404OP",null,"Amort of LT Plant - Other Plant","F10",{"$f":"IF(Classification=\"DEMAND\",\"F12\",IF(Classification=\"ENERGY\",\"F30\",\"F10\"))","v":"F10"},"F30","F30","MWH @ Input","F30","F30","F30",null,"F30"]
[]
["404HP","Amort of Other Electric Plant",null,"F110","F110","F110","F110",{"$f":"VLOOKUP(+G568,FactSum,2,FALSE)","v":"SIP - System Intangible Plant"},"F110","F110","F110",{"$f":"VLOOKUP(+K568,FactSum,2,FALSE)","v":"SIP - System Intangible Plant"},"F10"]
[null,null,null,null,null,null,null,null,null,null,null,null,null,{"$f":"VLOOKUP(+M570,FactSum,2,FALSE)","v":"100 Summer 100 Winter System Peaks"}]
["405","Amort of Other Electric Plant",null,"F110","F110","F110","F110",{"$f":"VLOOKUP(+G570,FactSum,2,FALSE)","v":"SIP - System Intangible Plant"},"F110","F110","F110",{"$f":"VLOOKUP(+K570,FactSum,2,FALSE)","v":"SIP - System Intangible Plant"},"F10"]
[null,null,null,null,null,null,null,null,null,null,null,null,null,{"$f":"VLOOKUP(+M572,FactSum,2,FALSE)","v":"100 Summer 100 Winter System Peaks"}]
["406","Amort of Plant Acquisition Adj",null,"F10",{"$f":"IF(Classification=\"DEMAND\",\"F12\",IF(Classification=\"ENERGY\",\"F30\",\"F10\"))","v":"F10"},{"$f":"IF(Classification=\"DEMAND\",\"F12\",IF(Classification=\"ENERGY\",\"F30\",\"F10\"))","v":"F10"},{"$f":"IF(Classification=\"DEMAND\",\"F12\",IF(Classification=\"ENERGY\",\"F30\",\"F10\"))","v":"F10"},{"$f":"VLOOKUP(+G572,FactSum,2,FALSE)","v":"100 Summer 100 Winter System Peaks"},{"$f":"IF(Classification=\"DEMAND\",\"F12\",IF(Classification=\"ENERGY\",\"F30\",\"F10\"))","v":"F10"},{"$f":"IF(Classification=\"DEMAND\",\"F12\",IF(Classification=\"ENERGY\",\"F30\",\"F10\"))","v":"F10"},{"$f":"IF(Classification=\"DEMAND\",\"F12\",IF(Classification=\"ENERGY\",\"F30\",\"F10\"))","v":"F10"},{"$f":"VLOOKUP(+K572,FactSum,2,FALSE)","v":"100 Summer 100 Winter System Peaks"},"F10"]
[null,null,null,null,null,null,null,null,null,null,null,null,null,{"$f":"VLOOKUP(+M574,FactSum,2,FALSE)","v":"100 Summer 100 Winter System Peaks"}]
["407","Amort of Prop Losses, Unrec Plant,",null,"F110","F110","F110","F110",{"$f":"VLOOKUP(+G574,FactSum,2,FALSE)","v":"SIP - System Intangible Plant"},"F110","F110","F110",{"$f":"VLOOKUP(+K574,FactSum,2,FALSE)","v":"SIP - System Intangible Plant"},"F10"]
[]
[]
["TOTAL AMORTIZATION EXPENSE"]
[]
[]
[]
[]
[null,null,null,null,null,null,null,null,null,null,null,null,null,{"$f":"VLOOKUP(+M583,FactSum,2)","v":"100 Summer 100 Winter System Peaks"}]
["408","Taxes Other Than Income",null,"F101D",{"$f":"IF(Function=\"gen\",\"F101G\",IF(Function=\"TRN\",\"F101T\",IF(Function=\"DIS\",\"F101D\",IF(Function=\"RETAIL\",\"F101R\",IF(Function=\"MISC\",\"F101M\",\"ERR\")))))","v":"F101D"},{"$f":"IF(Function=\"gen\",\"F101G\",IF(Function=\"TRN\",\"F101T\",IF(Function=\"DIS\",\"F101D\",IF(Function=\"RETAIL\",\"F101R\",IF(Function=\"MISC\",\"F101M\",\"ERR\")))))","v":"F101D"},"F101D",{"$f":"VLOOKUP(+G583,FactSum,2)","v":"100 Summer 100 Winter System Peaks"},"F101D","F101D","F101D",{"$f":"VLOOKUP(+K583,FactSum,2)","v":"100 Summer 100 Winter System Peaks"},"F10"]
[null,null,"Customer - System","F101D",{"$f":"IF(Function=\"gen\",\"F101G\",IF(Function=\"TRN\",\"F101T\",IF(Function=\"DIS\",\"F101D\",IF(Function=\"RETAIL\",\"F101R\",IF(Function=\"MISC\",\"F101M\",\"ERR\")))))","v":"F101D"},"F101D","F101D",{"$f":"VLOOKUP(+G584,FactSum,2)","v":"100 Summer 100 Winter System Peaks"},"F101D","F101D","F101D",{"$f":"VLOOKUP(+K584,FactSum,2)","v":"100 Summer 100 Winter System Peaks"},"F10"]
[]
[]
[]
[]
[]
[null,null,null,null,null,null,null,null,null,null,null,null,null,{"$f":"VLOOKUP(+M591,FactSum,2,FALSE)","v":"100 Summer 100 Winter System Peaks"}]
["41140","Deferred I T C - Federal",null,"F101D",{"$f":"IF(Function=\"gen\",\"F101G\",IF(Function=\"TRN\",\"F101T\",IF(Function=\"DIS\",\"F101D\",IF(Function=\"RETAIL\",\"F101R\",IF(Function=\"MISC\",\"F101M\",\"ERR\")))))","v":"F101D"},{"$f":"IF(Function=\"gen\",\"F101G\",IF(Function=\"TRN\",\"F101T\",IF(Function=\"DIS\",\"F101D\",IF(Function=\"RETAIL\",\"F101R\",IF(Function=\"MISC\",\"F101M\",\"ERR\")))))","v":"F101D"},{"$f":"IF(Function=\"gen\",\"F101G\",IF(Function=\"TRN\",\"F101T\",IF(Function=\"DIS\",\"F101D\",IF(Function=\"RETAIL\",\"F101R\",IF(Function=\"MISC\",\"F101M\",\"ERR\")))))","v":"F101D"},{"$f":"VLOOKUP(+G591,FactSum,2,FALSE)","v":"Distribution Rate Base"},{"$f":"IF(Function=\"gen\",\"F101G\",IF(Function=\"TRN\",\"F101T\",IF(Function=\"DIS\",\"F101D\",IF(Function=\"RETAIL\",\"F101R\",IF(Function=\"MISC\",\"F101M\",\"ERR\")))))","v":"F101D"},{"$f":"IF(Function=\"gen\",\"F101G\",IF(Function=\"TRN\",\"F101T\",IF(Function=\"DIS\",\"F101D\",IF(Function=\"RETAIL\",\"F101R\",IF(Function=\"MISC\",\"F101M\",\"ERR\")))))","v":"F101D"},{"$f":"IF(Function=\"gen\",\"F101G\",IF(Function=\"TRN\",\"F101T\",IF(Function=\"DIS\",\"F101D\",IF(Function=\"RETAIL\",\"F101R\",IF(Function=\"MISC\",\"F101M\",\"ERR\")))))","v":"F101D"},{"$f":"VLOOKUP(+K591,FactSum,2,FALSE)","v":"Distribution Rate Base"},"F10"]
[null,null,null,null,null,null,null,null,null,null,null,null,null,{"$f":"VLOOKUP(+M593,FactSum,2,FALSE)","v":"100 Summer 100 Winter System Peaks"}]
["41141","Deferred I T C - Idaho",null,"F101D",{"$f":"IF(Function=\"gen\",\"F101G\",IF(Function=\"TRN\",\"F101T\",IF(Function=\"DIS\",\"F101D\",IF(Function=\"RETAIL\",\"F101R\",IF(Function=\"MISC\",\"F101M\",\"ERR\")))))","v":"F101D"},{"$f":"IF(Function=\"gen\",\"F101G\",IF(Function=\"TRN\",\"F101T\",IF(Function=\"DIS\",\"F101D\",IF(Function=\"RETAIL\",\"F101R\",IF(Function=\"MISC\",\"F101M\",\"ERR\")))))","v":"F101D"},{"$f":"IF(Function=\"gen\",\"F101G\",IF(Function=\"TRN\",\"F101T\",IF(Function=\"DIS\",\"F101D\",IF(Function=\"RETAIL\",\"F101R\",IF(Function=\"MISC\",\"F101M\",\"ERR\")))))","v":"F101D"},{"$f":"VLOOKUP(+G593,FactSum,2,FALSE)","v":"Distribution Rate Base"},{"$f":"IF(Function=\"gen\",\"F101G\",IF(Function=\"TRN\",\"F101T\",IF(Function=\"DIS\",\"F101D\",IF(Function=\"RETAIL\",\"F101R\",IF(Function=\"MISC\",\"F101M\",\"ERR\")))))","v":"F101D"},{"$f":"IF(Function=\"gen\",\"F101G\",IF(Function=\"TRN\",\"F101T\",IF(Function=\"DIS\",\"F101D\",IF(Function=\"RETAIL\",\"F101R\",IF(Function=\"MISC\",\"F101M\",\"ERR\")))))","v":"F101D"},{"$f":"IF(Function=\"gen\",\"F101G\",IF(Function=\"TRN\",\"F101T\",IF(Function=\"DIS\",\"F101D\",IF(Function=\"RETAIL\",\"F101R\",IF(Function=\"MISC\",\"F101M\",\"ERR\")))))","v":"F101D"},{"$f":"VLOOKUP(+K593,FactSum,2,FALSE)","v":"Distribution Rate Base"},"F10"]
[]
["TOTAL DEFERRED ITC"]
[]
[]
[]
[]
[null,null,null,null,null,null,null,null,null,null,null,null,null,{"$f":"VLOOKUP(+M601,FactSum,2,FALSE)","v":"100 Summer 100 Winter System Peaks"}]
["41010","Deferred Income Tax - Federal-DR",null,"F101D",{"$f":"IF(Function=\"gen\",\"F101G\",IF(Function=\"TRN\",\"F101T\",IF(Function=\"DIS\",\"F101D\",IF(Function=\"RETAIL\",\"F101R\",IF(Function=\"MISC\",\"F101M\",\"ERR\")))))","v":"F101D"},{"$f":"IF(Function=\"gen\",\"F101G\",IF(Function=\"TRN\",\"F101T\",IF(Function=\"DIS\",\"F101D\",IF(Function=\"RETAIL\",\"F101R\",IF(Function=\"MISC\",\"F101M\",\"ERR\")))))","v":"F101D"},{"$f":"IF(Function=\"gen\",\"F101G\",IF(Function=\"TRN\",\"F101T\",IF(Function=\"DIS\",\"F101D\",IF(Function=\"RETAIL\",\"F101R\",IF(Function=\"MISC\",\"F101M\",\"ERR\")))))","v":"F101D"},{"$f":"VLOOKUP(+G601,FactSum,2,FALSE)","v":"Distribution Rate Base"},{"$f":"IF(Function=\"gen\",\"F101G\",IF(Function=\"TRN\",\"F101T\",IF(Function=\"DIS\",\"F101D\",IF(Function=\"RETAIL\",\"F101R\",IF(Function=\"MISC\",\"F101M\",\"ERR\")))))","v":"F101D"},{"$f":"IF(Function=\"gen\",\"F101G\",IF(Function=\"TRN\",\"F101T\",IF(Function=\"DIS\",\"F101D\",IF(Function=\"RETAIL\",\"F101R\",IF(Function=\"MISC\",\"F101M\",\"ERR\")))))","v":"F101D"},{"$f":"IF(Function=\"gen\",\"F101G\",IF(Function=\"TRN\",\"F101T\",IF(Function=\"DIS\",\"F101D\",IF(Function=\"RETAIL\",\"F101R\",IF(Function=\"MISC\",\"F101M\",\"ERR\")))))","v":"F101D"},{"$f":"VLOOKUP(+K601,FactSum,2,FALSE)","v":"Distribution Rate Base"},"F10"]
[null,null,null,null,null,null,null,null,null,null,null,null,null,{"$f":"VLOOKUP(+M603,FactSum,2,FALSE)","v":"100 Summer 100 Winter System Peaks"}]
["41011","Deferred Income Tax - State-DR",null,"F101D",{"$f":"IF(Function=\"gen\",\"F101G\",IF(Function=\"TRN\",\"F101T\",IF(Function=\"DIS\",\"F101D\",IF(Function=\"RETAIL\",\"F101R\",IF(Function=\"MISC\",\"F101M\",\"ERR\")))))","v":"F101D"},{"$f":"IF(Function=\"gen\",\"F101G\",IF(Function=\"TRN\",\"F101T\",IF(Function=\"DIS\",\"F101D\",IF(Function=\"RETAIL\",\"F101R\",IF(Function=\"MISC\",\"F101M\",\"ERR\")))))","v":"F101D"},{"$f":"IF(Function=\"gen\",\"F101G\",IF(Function=\"TRN\",\"F101T\",IF(Function=\"DIS\",\"F101D\",IF(Function=\"RETAIL\",\"F101R\",IF(Function=\"MISC\",\"F101M\",\"ERR\")))))","v":"F101D"},{"$f":"VLOOKUP(+G603,FactSum,2,FALSE)","v":"Distribution Rate Base"},{"$f":"IF(Function=\"gen\",\"F101G\",IF(Function=\"TRN\",\"F101T\",IF(Function=\"DIS\",\"F101D\",IF(Function=\"RETAIL\",\"F101R\",IF(Function=\"MISC\",\"F101M\",\"ERR\")))))","v":"F101D"},{"$f":"IF(Function=\"gen\",\"F101G\",IF(Function=\"TRN\",\"F101T\",IF(Function=\"DIS\",\"F101D\",IF(Function=\"RETAIL\",\"F101R\",IF(Function=\"MISC\",\"F101M\",\"ERR\")))))","v":"F101D"},{"$f":"IF(Function=\"gen\",\"F101G\",IF(Function=\"TRN\",\"F101T\",IF(Function=\"DIS\",\"F101D\",IF(Function=\"RETAIL\",\"F101R\",IF(Function=\"MISC\",\"F101M\",\"ERR\")))))","v":"F101D"},{"$f":"VLOOKUP(+K603,FactSum,2,FALSE)","v":"Distribution Rate Base"},"F10"]
[null,null,null,null,null,null,null,null,null,null,null,null,null,{"$f":"VLOOKUP(+M605,FactSum,2,FALSE)","v":"100 Summer 100 Winter System Peaks"}]
["41110","Deferred Income Tax - Federal-CR",null,"F101D",{"$f":"IF(Function=\"gen\",\"F101G\",IF(Function=\"TRN\",\"F101T\",IF(Function=\"DIS\",\"F101D\",IF(Function=\"RETAIL\",\"F101R\",IF(Function=\"MISC\",\"F101M\",\"ERR\")))))","v":"F101D"},{"$f":"IF(Function=\"gen\",\"F101G\",IF(Function=\"TRN\",\"F101T\",IF(Function=\"DIS\",\"F101D\",IF(Function=\"RETAIL\",\"F101R\",IF(Function=\"MISC\",\"F101M\",\"ERR\")))))","v":"F101D"},{"$f":"IF(Function=\"gen\",\"F101G\",IF(Function=\"TRN\",\"F101T\",IF(Function=\"DIS\",\"F101D\",IF(Function=\"RETAIL\",\"F101R\",IF(Function=\"MISC\",\"F101M\",\"ERR\")))))","v":"F101D"},{"$f":"VLOOKUP(+G605,FactSum,2,FALSE)","v":"Distribution Rate Base"},{"$f":"IF(Function=\"gen\",\"F101G\",IF(Function=\"TRN\",\"F101T\",IF(Function=\"DIS\",\"F101D\",IF(Function=\"RETAIL\",\"F101R\",IF(Function=\"MISC\",\"F101M\",\"ERR\")))))","v":"F101D"},{"$f":"IF(Function=\"gen\",\"F101G\",IF(Function=\"TRN\",\"F101T\",IF(Function=\"DIS\",\"F101D\",IF(Function=\"RETAIL\",\"F101R\",IF(Function=\"MISC\",\"F101M\",\"ERR\")))))","v":"F101D"},{"$f":"IF(Function=\"gen\",\"F101G\",IF(Function=\"TRN\",\"F101T\",IF(Function=\"DIS\",\"F101D\",IF(Function=\"RETAIL\",\"F101R\",IF(Function=\"MISC\",\"F101M\",\"ERR\")))))","v":"F101D"},{"$f":"VLOOKUP(+K605,FactSum,2,FALSE)","v":"Distribution Rate Base"},"F10"]
[null,null,null,null,null,null,null,null,null,null,null,null,null,{"$f":"VLOOKUP(+M607,FactSum,2,FALSE)","v":"100 Summer 100 Winter System Peaks"}]
["41111","Deferred Income Tax - State-CR",null,"F101D",{"$f":"IF(Function=\"gen\",\"F101G\",IF(Function=\"TRN\",\"F101T\",IF(Function=\"DIS\",\"F101D\",IF(Function=\"RETAIL\",\"F101R\",IF(Function=\"MISC\",\"F101M\",\"ERR\")))))","v":"F101D"},{"$f":"IF(Function=\"gen\",\"F101G\",IF(Function=\"TRN\",\"F101T\",IF(Function=\"DIS\",\"F101D\",IF(Function=\"RETAIL\",\"F101R\",IF(Function=\"MISC\",\"F101M\",\"ERR\")))))","v":"F101D"},{"$f":"IF(Function=\"gen\",\"F101G\",IF(Function=\"TRN\",\"F101T\",IF(Function=\"DIS\",\"F101D\",IF(Function=\"RETAIL\",\"F101R\",IF(Function=\"MISC\",\"F101M\",\"ERR\")))))","v":"F101D"},{"$f":"VLOOKUP(+G607,FactSum,2,FALSE)","v":"Distribution Rate Base"},{"$f":"IF(Function=\"gen\",\"F101G\",IF(Function=\"TRN\",\"F101T\",IF(Function=\"DIS\",\"F101D\",IF(Function=\"RETAIL\",\"F101R\",IF(Function=\"MISC\",\"F101M\",\"ERR\")))))","v":"F101D"},{"$f":"IF(Function=\"gen\",\"F101G\",IF(Function=\"TRN\",\"F101T\",IF(Function=\"DIS\",\"F101D\",IF(Function=\"RETAIL\",\"F101R\",IF(Function=\"MISC\",\"F101M\",\"ERR\")))))","v":"F101D"},{"$f":"IF(Function=\"gen\",\"F101G\",IF(Function=\"TRN\",\"F101T\",IF(Function=\"DIS\",\"F101D\",IF(Function=\"RETAIL\",\"F101R\",IF(Function=\"MISC\",\"F101M\",\"ERR\")))))","v":"F101D"},{"$f":"VLOOKUP(+K607,FactSum,2,FALSE)","v":"Distribution Rate Base"},"F10"]
[]
["TOTAL DEFERRED INCOME TAXES"]
[]
[]
[]
[]
[null,null,null,null,null,null,null,null,null,null,null,null,null,{"$f":"VLOOKUP(+M615,FactSum,2,FALSE)","v":"100 Summer 100 Winter System Peaks"}]
["40911","State Income Taxes",null,"F101D",{"$f":"IF(Function=\"gen\",\"F101G\",IF(Function=\"TRN\",\"F101T\",IF(Function=\"DIS\",\"F101D\",IF(Function=\"RETAIL\",\"F101R\",IF(Function=\"MISC\",\"F101M\",\"ERR\")))))","v":"F101D"},{"$f":"IF(Function=\"gen\",\"F101G\",IF(Function=\"TRN\",\"F101T\",IF(Function=\"DIS\",\"F101D\",IF(Function=\"RETAIL\",\"F101R\",IF(Function=\"MISC\",\"F101M\",\"ERR\")))))","v":"F101D"},{"$f":"IF(Function=\"gen\",\"F101G\",IF(Function=\"TRN\",\"F101T\",IF(Function=\"DIS\",\"F101D\",IF(Function=\"RETAIL\",\"F101R\",IF(Function=\"MISC\",\"F101M\",\"ERR\")))))","v":"F101D"},{"$f":"VLOOKUP(+G615,FactSum,2,FALSE)","v":"Distribution Rate Base"},{"$f":"IF(Function=\"gen\",\"F101G\",IF(Function=\"TRN\",\"F101T\",IF(Function=\"DIS\",\"F101D\",IF(Function=\"RETAIL\",\"F101R\",IF(Function=\"MISC\",\"F101M\",\"ERR\")))))","v":"F101D"},{"$f":"IF(Function=\"gen\",\"F101G\",IF(Function=\"TRN\",\"F101T\",IF(Function=\"DIS\",\"F101D\",IF(Function=\"RETAIL\",\"F101R\",IF(Function=\"MISC\",\"F101M\",\"ERR\")))))","v":"F101D"},{"$f":"IF(Function=\"gen\",\"F101G\",IF(Function=\"TRN\",\"F101T\",IF(Function=\"DIS\",\"F101D\",IF(Function=\"RETAIL\",\"F101R\",IF(Function=\"MISC\",\"F101M\",\"ERR\")))))","v":"F101D"},{"$f":"VLOOKUP(+K615,FactSum,2,FALSE)","v":"Distribution Rate Base"},"F10"]
[null,null,"        SIT Adj to Produce Target ROR",null,null,null,null,null,null,null,null,null,null,{"$f":"VLOOKUP(+M617,FactSum,2,FALSE)","v":"100 Summer 100 Winter System Peaks"}]
["40910","Federal Income Tax",null,"F101D",{"$f":"IF(Function=\"gen\",\"F101G\",IF(Function=\"TRN\",\"F101T\",IF(Function=\"DIS\",\"F101D\",IF(Function=\"RETAIL\",\"F101R\",IF(Function=\"MISC\",\"F101M\",\"ERR\")))))","v":"F101D"},{"$f":"IF(Function=\"gen\",\"F101G\",IF(Function=\"TRN\",\"F101T\",IF(Function=\"DIS\",\"F101D\",IF(Function=\"RETAIL\",\"F101R\",IF(Function=\"MISC\",\"F101M\",\"ERR\")))))","v":"F101D"},{"$f":"IF(Function=\"gen\",\"F101G\",IF(Function=\"TRN\",\"F101T\",IF(Function=\"DIS\",\"F101D\",IF(Function=\"RETAIL\",\"F101R\",IF(Function=\"MISC\",\"F101M\",\"ERR\")))))","v":"F101D"},{"$f":"VLOOKUP(+G617,FactSum,2,FALSE)","v":"Distribution Rate Base"},{"$f":"IF(Function=\"gen\",\"F101G\",IF(Function=\"TRN\",\"F101T\",IF(Function=\"DIS\",\"F101D\",IF(Function=\"RETAIL\",\"F101R\",IF(Function=\"MISC\",\"F101M\",\"ERR\")))))","v":"F101D"},{"$f":"IF(Function=\"gen\",\"F101G\",IF(Function=\"TRN\",\"F101T\",IF(Function=\"DIS\",\"F101D\",IF(Function=\"RETAIL\",\"F101R\",IF(Function=\"MISC\",\"F101M\",\"ERR\")))))","v":"F101D"},{"$f":"IF(Function=\"gen\",\"F101G\",IF(Function=\"TRN\",\"F101T\",IF(Function=\"DIS\",\"F101D\",IF(Function=\"RETAIL\",\"F101R\",IF(Function=\"MISC\",\"F101M\",\"ERR\")))))","v":"F101D"},{"$f":"VLOOKUP(+K617,FactSum,2,FALSE)","v":"Distribution Rate Base"},"F10"]
[null,null,"        FIT Adj to Produce Target ROR"]
[]
["TOTAL OPERATING EXPENSES"]
[]
[]
[]
[]
["A",null,"B","C","C","C","C",null,"C","C","C",null,"C"]
[]
["FERC",null,null,"COS","COS","COS","COS",null,"COS","COS","COS",null,"COS"]
["ACCT",null,"DESCRIPTION ","Factor","Factor","Factor","Factor",null,"Factor","Factor","Factor",null,"Factor",{"$f":"VLOOKUP(+M629,FactSum,2,FALSE)","v":"100 Summer 100 Winter System Peaks"}]
["310","Land and Land Rights",null,"F10",{"$f":"IF(Classification=\"DEMAND\",\"F12\",IF(Classification=\"ENERGY\",\"F30\",\"F10\"))","v":"F10"},{"$f":"IF(Classification=\"DEMAND\",\"F12\",IF(Classification=\"ENERGY\",\"F30\",\"F10\"))","v":"F10"},{"$f":"IF(Classification=\"DEMAND\",\"F12\",IF(Classification=\"ENERGY\",\"F30\",\"F10\"))","v":"F10"},{"$f":"VLOOKUP(+G629,FactSum,2,FALSE)","v":"100 Summer 100 Winter System Peaks"},"F10","F10","F10",{"$f":"VLOOKUP(+K629,FactSum,2,FALSE)","v":"100 Summer 100 Winter System Peaks"},"F10"]
[null,null,"JBG","F10",{"$f":"IF(Classification=\"DEMAND\",\"F12\",IF(Classification=\"ENERGY\",\"F30\",\"F10\"))","v":"F10"},{"$f":"IF(Classification=\"DEMAND\",\"F15\",IF(Classification=\"ENERGY\",\"F33\",\"F16\"))","v":"F16"},"F10",null,"F10","F10","F10","F10","F10"]
[]
[null,null,null,null,null,null,null,null,null,null,null,null,null,{"$f":"VLOOKUP(+M633,FactSum,2,FALSE)","v":"100 Summer 100 Winter System Peaks"}]
["311","Structures and Improvements",null,"F10",{"$f":"IF(Classification=\"DEMAND\",\"F12\",IF(Classification=\"ENERGY\",\"F30\",\"F10\"))","v":"F10"},{"$f":"IF(Classification=\"DEMAND\",\"F12\",IF(Classification=\"ENERGY\",\"F30\",\"F10\"))","v":"F10"},{"$f":"IF(Classification=\"DEMAND\",\"F12\",IF(Classification=\"ENERGY\",\"F30\",\"F10\"))","v":"F10"},{"$f":"VLOOKUP(+G633,FactSum,2,FALSE)","v":"100 Summer 100 Winter System Peaks"},"F10","F10","F10","F10","F10"]
[null,null,"JBG","F10",{"$f":"IF(Classification=\"DEMAND\",\"F12\",IF(Classification=\"ENERGY\",\"F30\",\"F10\"))","v":"F10"},{"$f":"IF(Classification=\"DEMAND\",\"F15\",IF(Classification=\"ENERGY\",\"F33\",\"F16\"))","v":"F16"},"F10",null,"F10","F10","F10","F10","F10"]
[]
[null,null,null,null,null,null,null,null,null,null,null,null,null,{"$f":"VLOOKUP(+M637,FactSum,2,FALSE)","v":"100 Summer 100 Winter System Peaks"}]
["312","Boiler Plant Equipment",null,"F10",{"$f":"IF(Classification=\"DEMAND\",\"F12\",IF(Classification=\"ENERGY\",\"F30\",\"F10\"))","v":"F10"},{"$f":"IF(Classification=\"DEMAND\",\"F12\",IF(Classification=\"ENERGY\",\"F30\",\"F10\"))","v":"F10"},{"$f":"IF(Classification=\"DEMAND\",\"F12\",IF(Classification=\"ENERGY\",\"F30\",\"F10\"))","v":"F10"},{"$f":"VLOOKUP(+G637,FactSum,2,FALSE)","v":"100 Summer 100 Winter System Peaks"},"F10","F10","F10","F10","F10"]
[null,null,"JBG","F10",{"$f":"IF(Classification=\"DEMAND\",\"F12\",IF(Classification=\"ENERGY\",\"F30\",\"F10\"))","v":"F10"},{"$f":"IF(Classification=\"DEMAND\",\"F15\",IF(Classification=\"ENERGY\",\"F33\",\"F16\"))","v":"F16"},"F10",null,"F10","F10","F10","F10","F10"]
[]
[null,null,null,null,null,null,null,null,null,null,null,null,null,{"$f":"VLOOKUP(+M641,FactSum,2,FALSE)","v":"100 Summer 100 Winter System Peaks"}]
["314","Turbogenerator Units",null,"F10",{"$f":"IF(Classification=\"DEMAND\",\"F12\",IF(Classification=\"ENERGY\",\"F30\",\"F10\"))","v":"F10"},{"$f":"IF(Classification=\"DEMAND\",\"F12\",IF(Classification=\"ENERGY\",\"F30\",\"F10\"))","v":"F10"},{"$f":"IF(Classification=\"DEMAND\",\"F12\",IF(Classification=\"ENERGY\",\"F30\",\"F10\"))","v":"F10"},{"$f":"VLOOKUP(+G641,FactSum,2,FALSE)","v":"100 Summer 100 Winter System Peaks"},"F10","F10","F10","F10","F10"]
[null,null,"JBG","F10",{"$f":"IF(Classification=\"DEMAND\",\"F12\",IF(Classification=\"ENERGY\",\"F30\",\"F10\"))","v":"F10"},{"$f":"IF(Classification=\"DEMAND\",\"F15\",IF(Classification=\"ENERGY\",\"F33\",\"F16\"))","v":"F16"},"F10",null,"F10","F10","F10","F10","F10"]
[]
[null,null,null,null,null,null,null,null,null,null,null,null,null,{"$f":"VLOOKUP(+M645,FactSum,2,FALSE)","v":"100 Summer 100 Winter System Peaks"}]
["315","Accessory Electric Equipment",null,"F10",{"$f":"IF(Classification=\"DEMAND\",\"F12\",IF(Classification=\"ENERGY\",\"F30\",\"F10\"))","v":"F10"},{"$f":"IF(Classification=\"DEMAND\",\"F12\",IF(Classification=\"ENERGY\",\"F30\",\"F10\"))","v":"F10"},{"$f":"IF(Classification=\"DEMAND\",\"F12\",IF(Classification=\"ENERGY\",\"F30\",\"F10\"))","v":"F10"},{"$f":"VLOOKUP(+G645,FactSum,2,FALSE)","v":"100 Summer 100 Winter System Peaks"},"F10","F10","F10","F10","F10"]
[null,null,"JBG","F10",{"$f":"IF(Classification=\"DEMAND\",\"F12\",IF(Classification=\"ENERGY\",\"F30\",\"F10\"))","v":"F10"},{"$f":"IF(Classification=\"DEMAND\",\"F15\",IF(Classification=\"ENERGY\",\"F33\",\"F16\"))","v":"F16"},"F10",null,"F10","F10","F10","F10","F10"]
[]
[null,null,null,null,null,null,null,null,null,null,null,null,null,{"$f":"VLOOKUP(+M649,FactSum,2,FALSE)","v":"100 Summer 100 Winter System Peaks"}]
["316","Misc Power Plant Equipment",null,"F10",{"$f":"IF(Classification=\"DEMAND\",\"F12\",IF(Classification=\"ENERGY\",\"F30\",\"F10\"))","v":"F10"},{"$f":"IF(Classification=\"DEMAND\",\"F12\",IF(Classification=\"ENERGY\",\"F30\",\"F10\"))","v":"F10"},{"$f":"IF(Classification=\"DEMAND\",\"F12\",IF(Classification=\"ENERGY\",\"F30\",\"F10\"))","v":"F10"},{"$f":"VLOOKUP(+G649,FactSum,2,FALSE)","v":"100 Summer 100 Winter System Peaks"},"F10","F10","F10","F10","F10"]
[null,null,"JBG","F10",{"$f":"IF(Classification=\"DEMAND\",\"F12\",IF(Classification=\"ENERGY\",\"F30\",\"F10\"))","v":"F10"},{"$f":"IF(Classification=\"DEMAND\",\"F15\",IF(Classification=\"ENERGY\",\"F33\",\"F16\"))","v":"F16"},"F10",null,"F10","F10","F10","F10","F10"]
[]
[null,null,null,null,null,null,null,null,null,null,null,null,null,{"$f":"VLOOKUP(+M653,FactSum,2,FALSE)","v":"100 Summer 100 Winter System Peaks"}]
["SP","Unclassified Steam Plant - Acct 300",null,"F10",{"$f":"IF(Classification=\"DEMAND\",\"F12\",IF(Classification=\"ENERGY\",\"F30\",\"F10\"))","v":"F10"},{"$f":"IF(Classification=\"DEMAND\",\"F12\",IF(Classification=\"ENERGY\",\"F30\",\"F10\"))","v":"F10"},{"$f":"IF(Classification=\"DEMAND\",\"F12\",IF(Classification=\"ENERGY\",\"F30\",\"F10\"))","v":"F10"},{"$f":"VLOOKUP(+G653,FactSum,2,FALSE)","v":"100 Summer 100 Winter System Peaks"},{"$f":"IF(Classification=\"DEMAND\",\"F12\",IF(Classification=\"ENERGY\",\"F30\",\"F10\"))","v":"F10"},{"$f":"IF(Classification=\"DEMAND\",\"F12\",IF(Classification=\"ENERGY\",\"F30\",\"F10\"))","v":"F10"},{"$f":"IF(Classification=\"DEMAND\",\"F12\",IF(Classification=\"ENERGY\",\"F30\",\"F10\"))","v":"F10"},{"$f":"VLOOKUP(+K653,FactSum,2,FALSE)","v":"100 Summer 100 Winter System Peaks"},"F10"]
[]
[]
[]
["Total Steam Production Plant"]
[]
[]
[]
[]
[null,null,null,null,null,null,null,null,null,null,null,null,null,{"$f":"VLOOKUP(+M663,FactSum,2,FALSE)","v":"100 Summer 100 Winter System Peaks"}]
["320","Land and Land Rights",null,"F10",{"$f":"IF(Classification=\"DEMAND\",\"F12\",IF(Classification=\"ENERGY\",\"F30\",\"F10\"))","v":"F10"},{"$f":"IF(Classification=\"DEMAND\",\"F12\",IF(Classification=\"ENERGY\",\"F30\",\"F10\"))","v":"F10"},{"$f":"IF(Classification=\"DEMAND\",\"F12\",IF(Classification=\"ENERGY\",\"F30\",\"F10\"))","v":"F10"},{"$f":"VLOOKUP(+G663,FactSum,2,FALSE)","v":"100 Summer 100 Winter System Peaks"},{"$f":"IF(Classification=\"DEMAND\",\"F12\",IF(Classification=\"ENERGY\",\"F30\",\"F10\"))","v":"F10"},{"$f":"IF(Classification=\"DEMAND\",\"F12\",IF(Classification=\"ENERGY\",\"F30\",\"F10\"))","v":"F10"},{"$f":"IF(Classification=\"DEMAND\",\"F12\",IF(Classification=\"ENERGY\",\"F30\",\"F10\"))","v":"F10"},{"$f":"VLOOKUP(+K663,FactSum,2,FALSE)","v":"100 Summer 100 Winter System Peaks"},"F10"]
[null,null,null,null,null,null,null,null,null,null,null,null,null,{"$f":"VLOOKUP(+M665,FactSum,2,FALSE)","v":"100 Summer 100 Winter System Peaks"}]
["321","Structures and Improvements",null,"F10",{"$f":"IF(Classification=\"DEMAND\",\"F12\",IF(Classification=\"ENERGY\",\"F30\",\"F10\"))","v":"F10"},{"$f":"IF(Classification=\"DEMAND\",\"F12\",IF(Classification=\"ENERGY\",\"F30\",\"F10\"))","v":"F10"},{"$f":"IF(Classification=\"DEMAND\",\"F12\",IF(Classification=\"ENERGY\",\"F30\",\"F10\"))","v":"F10"},{"$f":"VLOOKUP(+G665,FactSum,2,FALSE)","v":"100 Summer 100 Winter System Peaks"},{"$f":"IF(Classification=\"DEMAND\",\"F12\",IF(Classification=\"ENERGY\",\"F30\",\"F10\"))","v":"F10"},{"$f":"IF(Classification=\"DEMAND\",\"F12\",IF(Classification=\"ENERGY\",\"F30\",\"F10\"))","v":"F10"},{"$f":"IF(Classification=\"DEMAND\",\"F12\",IF(Classification=\"ENERGY\",\"F30\",\"F10\"))","v":"F10"},{"$f":"VLOOKUP(+K665,FactSum,2,FALSE)","v":"100 Summer 100 Winter System Peaks"},"F10"]
[null,null,null,null,null,null,null,null,null,null,null,null,null,{"$f":"VLOOKUP(+M667,FactSum,2,FALSE)","v":"100 Summer 100 Winter System Peaks"}]
["322","Reactor Plant Equipment",null,"F10",{"$f":"IF(Classification=\"DEMAND\",\"F12\",IF(Classification=\"ENERGY\",\"F30\",\"F10\"))","v":"F10"},{"$f":"IF(Classification=\"DEMAND\",\"F12\",IF(Classification=\"ENERGY\",\"F30\",\"F10\"))","v":"F10"},{"$f":"IF(Classification=\"DEMAND\",\"F12\",IF(Classification=\"ENERGY\",\"F30\",\"F10\"))","v":"F10"},{"$f":"VLOOKUP(+G667,FactSum,2,FALSE)","v":"100 Summer 100 Winter System Peaks"},{"$f":"IF(Classification=\"DEMAND\",\"F12\",IF(Classification=\"ENERGY\",\"F30\",\"F10\"))","v":"F10"},{"$f":"IF(Classification=\"DEMAND\",\"F12\",IF(Classification=\"ENERGY\",\"F30\",\"F10\"))","v":"F10"},{"$f":"IF(Classification=\"DEMAND\",\"F12\",IF(Classification=\"ENERGY\",\"F30\",\"F10\"))","v":"F10"},{"$f":"VLOOKUP(+K667,FactSum,2,FALSE)","v":"100 Summer 100 Winter System Peaks"},"F10"]
[null,null,null,null,null,null,null,null,null,null,null,null,null,{"$f":"VLOOKUP(+M669,FactSum,2,FALSE)","v":"100 Summer 100 Winter System Peaks"}]
["323","Turbogenerator Units",null,"F10",{"$f":"IF(Classification=\"DEMAND\",\"F12\",IF(Classification=\"ENERGY\",\"F30\",\"F10\"))","v":"F10"},{"$f":"IF(Classification=\"DEMAND\",\"F12\",IF(Classification=\"ENERGY\",\"F30\",\"F10\"))","v":"F10"},{"$f":"IF(Classification=\"DEMAND\",\"F12\",IF(Classification=\"ENERGY\",\"F30\",\"F10\"))","v":"F10"},{"$f":"VLOOKUP(+G669,FactSum,2,FALSE)","v":"100 Summer 100 Winter System Peaks"},{"$f":"IF(Classification=\"DEMAND\",\"F12\",IF(Classification=\"ENERGY\",\"F30\",\"F10\"))","v":"F10"},{"$f":"IF(Classification=\"DEMAND\",\"F12\",IF(Classification=\"ENERGY\",\"F30\",\"F10\"))","v":"F10"},{"$f":"IF(Classification=\"DEMAND\",\"F12\",IF(Classification=\"ENERGY\",\"F30\",\"F10\"))","v":"F10"},{"$f":"VLOOKUP(+K669,FactSum,2,FALSE)","v":"100 Summer 100 Winter System Peaks"},"F10"]
[null,null,null,null,null,null,null,null,null,null,null,null,null,{"$f":"VLOOKUP(+M671,FactSum,2,FALSE)","v":"100 Summer 100 Winter System Peaks"}]
["324","Land and Land Rights",null,"F10",{"$f":"IF(Classification=\"DEMAND\",\"F12\",IF(Classification=\"ENERGY\",\"F30\",\"F10\"))","v":"F10"},{"$f":"IF(Classification=\"DEMAND\",\"F12\",IF(Classification=\"ENERGY\",\"F30\",\"F10\"))","v":"F10"},{"$f":"IF(Classification=\"DEMAND\",\"F12\",IF(Classification=\"ENERGY\",\"F30\",\"F10\"))","v":"F10"},{"$f":"VLOOKUP(+G671,FactSum,2,FALSE)","v":"100 Summer 100 Winter System Peaks"},{"$f":"IF(Classification=\"DEMAND\",\"F12\",IF(Classification=\"ENERGY\",\"F30\",\"F10\"))","v":"F10"},{"$f":"IF(Classification=\"DEMAND\",\"F12\",IF(Classification=\"ENERGY\",\"F30\",\"F10\"))","v":"F10"},{"$f":"IF(Classification=\"DEMAND\",\"F12\",IF(Classification=\"ENERGY\",\"F30\",\"F10\"))","v":"F10"},{"$f":"VLOOKUP(+K671,FactSum,2,FALSE)","v":"100 Summer 100 Winter System Peaks"},"F10"]
[null,null,null,null,null,null,null,null,null,null,null,null,null,{"$f":"VLOOKUP(+M673,FactSum,2,FALSE)","v":"100 Summer 100 Winter System Peaks"}]
["325","Misc. Power Plant Equipment",null,"F10",{"$f":"IF(Classification=\"DEMAND\",\"F12\",IF(Classification=\"ENERGY\",\"F30\",\"F10\"))","v":"F10"},{"$f":"IF(Classification=\"DEMAND\",\"F12\",IF(Classification=\"ENERGY\",\"F30\",\"F10\"))","v":"F10"},{"$f":"IF(Classification=\"DEMAND\",\"F12\",IF(Classification=\"ENERGY\",\"F30\",\"F10\"))","v":"F10"},{"$f":"VLOOKUP(+G673,FactSum,2,FALSE)","v":"100 Summer 100 Winter System Peaks"},{"$f":"IF(Classification=\"DEMAND\",\"F12\",IF(Classification=\"ENERGY\",\"F30\",\"F10\"))","v":"F10"},{"$f":"IF(Classification=\"DEMAND\",\"F12\",IF(Classification=\"ENERGY\",\"F30\",\"F10\"))","v":"F10"},{"$f":"IF(Classification=\"DEMAND\",\"F12\",IF(Classification=\"ENERGY\",\"F30\",\"F10\"))","v":"F10"},{"$f":"VLOOKUP(+K673,FactSum,2,FALSE)","v":"100 Summer 100 Winter System Peaks"},"F10"]
[null,null,null,null,null,null,null,null,null,null,null,null,null,{"$f":"VLOOKUP(+M675,FactSum,2,FALSE)","v":"100 Summer 100 Winter System Peaks"}]
["NP","Unclassified Nuclear Plt - Acct 300",null,"F10",{"$f":"IF(Classification=\"DEMAND\",\"F12\",IF(Classification=\"ENERGY\",\"F30\",\"F10\"))","v":"F10"},{"$f":"IF(Classification=\"DEMAND\",\"F12\",IF(Classification=\"ENERGY\",\"F30\",\"F10\"))","v":"F10"},{"$f":"IF(Classification=\"DEMAND\",\"F12\",IF(Classification=\"ENERGY\",\"F30\",\"F10\"))","v":"F10"},{"$f":"VLOOKUP(+G675,FactSum,2,FALSE)","v":"100 Summer 100 Winter System Peaks"},{"$f":"IF(Classification=\"DEMAND\",\"F12\",IF(Classification=\"ENERGY\",\"F30\",\"F10\"))","v":"F10"},{"$f":"IF(Classification=\"DEMAND\",\"F12\",IF(Classification=\"ENERGY\",\"F30\",\"F10\"))","v":"F10"},{"$f":"IF(Classification=\"DEMAND\",\"F12\",IF(Classification=\"ENERGY\",\"F30\",\"F10\"))","v":"F10"},{"$f":"VLOOKUP(+K675,FactSum,2,FALSE)","v":"100 Summer 100 Winter System Peaks"},"F10"]
[]
["Total Nuclear Production Plant"]
[]
[]
[]
[]
[null,null,null,null,null,null,null,null,null,null,null,null,null,{"$f":"VLOOKUP(+M683,FactSum,2,FALSE)","v":"100 Summer 100 Winter System Peaks"}]
["330","Land and Land Rights",null,"F10",{"$f":"IF(Classification=\"DEMAND\",\"F12\",IF(Classification=\"ENERGY\",\"F30\",\"F10\"))","v":"F10"},{"$f":"IF(Classification=\"DEMAND\",\"F12\",IF(Classification=\"ENERGY\",\"F30\",\"F10\"))","v":"F10"},{"$f":"IF(Classification=\"DEMAND\",\"F12\",IF(Classification=\"ENERGY\",\"F30\",\"F10\"))","v":"F10"},{"$f":"VLOOKUP(+G683,FactSum,2,FALSE)","v":"100 Summer 100 Winter System Peaks"},{"$f":"IF(Classification=\"DEMAND\",\"F12\",IF(Classification=\"ENERGY\",\"F30\",\"F10\"))","v":"F10"},{"$f":"IF(Classification=\"DEMAND\",\"F12\",IF(Classification=\"ENERGY\",\"F30\",\"F10\"))","v":"F10"},{"$f":"IF(Classification=\"DEMAND\",\"F12\",IF(Classification=\"ENERGY\",\"F30\",\"F10\"))","v":"F10"},{"$f":"VLOOKUP(+K683,FactSum,2,FALSE)","v":"100 Summer 100 Winter System Peaks"},"F10"]
[null,null,null,null,null,null,null,null,null,null,null,null,null,{"$f":"VLOOKUP(+M685,FactSum,2,FALSE)","v":"100 Summer 100 Winter System Peaks"}]
["331","Structures and Improvements",null,"F10",{"$f":"IF(Classification=\"DEMAND\",\"F12\",IF(Classification=\"ENERGY\",\"F30\",\"F10\"))","v":"F10"},{"$f":"IF(Classification=\"DEMAND\",\"F12\",IF(Classification=\"ENERGY\",\"F30\",\"F10\"))","v":"F10"},{"$f":"IF(Classification=\"DEMAND\",\"F12\",IF(Classification=\"ENERGY\",\"F30\",\"F10\"))","v":"F10"},{"$f":"VLOOKUP(+G685,FactSum,2,FALSE)","v":"100 Summer 100 Winter System Peaks"},{"$f":"IF(Classification=\"DEMAND\",\"F12\",IF(Classification=\"ENERGY\",\"F30\",\"F10\"))","v":"F10"},{"$f":"IF(Classification=\"DEMAND\",\"F12\",IF(Classification=\"ENERGY\",\"F30\",\"F10\"))","v":"F10"},{"$f":"IF(Classification=\"DEMAND\",\"F12\",IF(Classification=\"ENERGY\",\"F30\",\"F10\"))","v":"F10"},{"$f":"VLOOKUP(+K685,FactSum,2,FALSE)","v":"100 Summer 100 Winter System Peaks"},"F10"]
[null,null,null,null,null,null,null,null,null,null,null,null,null,{"$f":"VLOOKUP(+M687,FactSum,2,FALSE)","v":"100 Summer 100 Winter System Peaks"}]
["332","Reservoirs, Dams & Waterways",null,"F10",{"$f":"IF(Classification=\"DEMAND\",\"F12\",IF(Classification=\"ENERGY\",\"F30\",\"F10\"))","v":"F10"},{"$f":"IF(Classification=\"DEMAND\",\"F12\",IF(Classification=\"ENERGY\",\"F30\",\"F10\"))","v":"F10"},{"$f":"IF(Classification=\"DEMAND\",\"F12\",IF(Classification=\"ENERGY\",\"F30\",\"F10\"))","v":"F10"},{"$f":"VLOOKUP(+G687,FactSum,2,FALSE)","v":"100 Summer 100 Winter System Peaks"},{"$f":"IF(Classification=\"DEMAND\",\"F12\",IF(Classification=\"ENERGY\",\"F30\",\"F10\"))","v":"F10"},{"$f":"IF(Classification=\"DEMAND\",\"F12\",IF(Classification=\"ENERGY\",\"F30\",\"F10\"))","v":"F10"},{"$f":"IF(Classification=\"DEMAND\",\"F12\",IF(Classification=\"ENERGY\",\"F30\",\"F10\"))","v":"F10"},{"$f":"VLOOKUP(+K687,FactSum,2,FALSE)","v":"100 Summer 100 Winter System Peaks"},"F10"]
[null,null,null,null,null,null,null,null,null,null,null,null,null,{"$f":"VLOOKUP(+M689,FactSum,2,FALSE)","v":"100 Summer 100 Winter System Peaks"}]
["333","Water Wheel, Turbines, & Generators",null,"F10",{"$f":"IF(Classification=\"DEMAND\",\"F12\",IF(Classification=\"ENERGY\",\"F30\",\"F10\"))","v":"F10"},{"$f":"IF(Classification=\"DEMAND\",\"F12\",IF(Classification=\"ENERGY\",\"F30\",\"F10\"))","v":"F10"},{"$f":"IF(Classification=\"DEMAND\",\"F12\",IF(Classification=\"ENERGY\",\"F30\",\"F10\"))","v":"F10"},{"$f":"VLOOKUP(+G689,FactSum,2,FALSE)","v":"100 Summer 100 Winter System Peaks"},{"$f":"IF(Classification=\"DEMAND\",\"F12\",IF(Classification=\"ENERGY\",\"F30\",\"F10\"))","v":"F10"},{"$f":"IF(Classification=\"DEMAND\",\"F12\",IF(Classification=\"ENERGY\",\"F30\",\"F10\"))","v":"F10"},{"$f":"IF(Classification=\"DEMAND\",\"F12\",IF(Classification=\"ENERGY\",\"F30\",\"F10\"))","v":"F10"},{"$f":"VLOOKUP(+K689,FactSum,2,FALSE)","v":"100 Summer 100 Winter System Peaks"},"F10"]
[null,null,null,null,null,null,null,null,null,null,null,null,null,{"$f":"VLOOKUP(+M691,FactSum,2,FALSE)","v":"100 Summer 100 Winter System Peaks"}]
["334","Accessory Electric Equipment",null,"F10",{"$f":"IF(Classification=\"DEMAND\",\"F12\",IF(Classification=\"ENERGY\",\"F30\",\"F10\"))","v":"F10"},{"$f":"IF(Classification=\"DEMAND\",\"F12\",IF(Classification=\"ENERGY\",\"F30\",\"F10\"))","v":"F10"},{"$f":"IF(Classification=\"DEMAND\",\"F12\",IF(Classification=\"ENERGY\",\"F30\",\"F10\"))","v":"F10"},{"$f":"VLOOKUP(+G691,FactSum,2,FALSE)","v":"100 Summer 100 Winter System Peaks"},{"$f":"IF(Classification=\"DEMAND\",\"F12\",IF(Classification=\"ENERGY\",\"F30\",\"F10\"))","v":"F10"},{"$f":"IF(Classification=\"DEMAND\",\"F12\",IF(Classification=\"ENERGY\",\"F30\",\"F10\"))","v":"F10"},{"$f":"IF(Classification=\"DEMAND\",\"F12\",IF(Classification=\"ENERGY\",\"F30\",\"F10\"))","v":"F10"},{"$f":"VLOOKUP(+K691,FactSum,2,FALSE)","v":"100 Summer 100 Winter System Peaks"},"F10"]
[null,null,null,null,null,null,null,null,null,null,null,null,null,{"$f":"VLOOKUP(+M693,FactSum,2,FALSE)","v":"100 Summer 100 Winter System Peaks"}]
["335","Misc. Power Plant Equipment",null,"F10",{"$f":"IF(Classification=\"DEMAND\",\"F12\",IF(Classification=\"ENERGY\",\"F30\",\"F10\"))","v":"F10"},{"$f":"IF(Classification=\"DEMAND\",\"F12\",IF(Classification=\"ENERGY\",\"F30\",\"F10\"))","v":"F10"},{"$f":"IF(Classification=\"DEMAND\",\"F12\",IF(Classification=\"ENERGY\",\"F30\",\"F10\"))","v":"F10"},{"$f":"VLOOKUP(+G693,FactSum,2,FALSE)","v":"100 Summer 100 Winter System Peaks"},{"$f":"IF(Classification=\"DEMAND\",\"F12\",IF(Classification=\"ENERGY\",\"F30\",\"F10\"))","v":"F10"},{"$f":"IF(Classification=\"DEMAND\",\"F12\",IF(Classification=\"ENERGY\",\"F30\",\"F10\"))","v":"F10"},{"$f":"IF(Classification=\"DEMAND\",\"F12\",IF(Classification=\"ENERGY\",\"F30\",\"F10\"))","v":"F10"},{"$f":"VLOOKUP(+K693,FactSum,2,FALSE)","v":"100 Summer 100 Winter System Peaks"},"F10"]
[null,null,null,null,null,null,null,null,null,null,null,null,null,{"$f":"VLOOKUP(+M695,FactSum,2,FALSE)","v":"100 Summer 100 Winter System Peaks"}]
["336","Roads, Railroads & Bridges",null,"F10",{"$f":"IF(Classification=\"DEMAND\",\"F12\",IF(Classification=\"ENERGY\",\"F30\",\"F10\"))","v":"F10"},{"$f":"IF(Classification=\"DEMAND\",\"F12\",IF(Classification=\"ENERGY\",\"F30\",\"F10\"))","v":"F10"},{"$f":"IF(Classification=\"DEMAND\",\"F12\",IF(Classification=\"ENERGY\",\"F30\",\"F10\"))","v":"F10"},{"$f":"VLOOKUP(+G695,FactSum,2,FALSE)","v":"100 Summer 100 Winter System Peaks"},{"$f":"IF(Classification=\"DEMAND\",\"F12\",IF(Classification=\"ENERGY\",\"F30\",\"F10\"))","v":"F10"},{"$f":"IF(Classification=\"DEMAND\",\"F12\",IF(Classification=\"ENERGY\",\"F30\",\"F10\"))","v":"F10"},{"$f":"IF(Classification=\"DEMAND\",\"F12\",IF(Classification=\"ENERGY\",\"F30\",\"F10\"))","v":"F10"},{"$f":"VLOOKUP(+K695,FactSum,2,FALSE)","v":"100 Summer 100 Winter System Peaks"},"F10"]
[null,null,null,null,null,null,null,null,null,null,null,null,null,{"$f":"VLOOKUP(+M697,FactSum,2,FALSE)","v":"100 Summer 100 Winter System Peaks"}]
["HP","Unclassified Hydro Plant - Acct 300",null,"F10",{"$f":"IF(Classification=\"DEMAND\",\"F12\",IF(Classification=\"ENERGY\",\"F30\",\"F10\"))","v":"F10"},{"$f":"IF(Classification=\"DEMAND\",\"F12\",IF(Classification=\"ENERGY\",\"F30\",\"F10\"))","v":"F10"},{"$f":"IF(Classification=\"DEMAND\",\"F12\",IF(Classification=\"ENERGY\",\"F30\",\"F10\"))","v":"F10"},{"$f":"VLOOKUP(+G697,FactSum,2,FALSE)","v":"100 Summer 100 Winter System Peaks"},{"$f":"IF(Classification=\"DEMAND\",\"F12\",IF(Classification=\"ENERGY\",\"F30\",\"F10\"))","v":"F10"},{"$f":"IF(Classification=\"DEMAND\",\"F12\",IF(Classification=\"ENERGY\",\"F30\",\"F10\"))","v":"F10"},{"$f":"IF(Classification=\"DEMAND\",\"F12\",IF(Classification=\"ENERGY\",\"F30\",\"F10\"))","v":"F10"},{"$f":"VLOOKUP(+K697,FactSum,2,FALSE)","v":"100 Summer 100 Winter System Peaks"},"F10"]
[]
["Total Hydraulic Plant"]
[]
[]
["A",null,"B","C","C","C","C",null,"C","C","C",null,"C"]
[]
["FERC",null,null,"COS","COS","COS","COS",null,"COS","COS","COS",null,"COS"]
["ACCT",null,"DESCRIPTION ","Factor","Factor","Factor","Factor",null,"Factor","Factor","Factor",null,"Factor",{"$f":"VLOOKUP(+M706,FactSum,2,FALSE)","v":{"$error":"#N/A"}}]
["340","Land and Land Rights"]
[null,null,"SG","F10",{"$f":"IF(Classification=\"DEMAND\",\"F12\",IF(Classification=\"ENERGY\",\"F30\",\"F10\"))","v":"F10"},{"$f":"IF(Classification=\"DEMAND\",\"F12\",IF(Classification=\"ENERGY\",\"F30\",\"F10\"))","v":"F10"},{"$f":"IF(Classification=\"DEMAND\",\"F12\",IF(Classification=\"ENERGY\",\"F30\",\"F10\"))","v":"F10"},{"$f":"VLOOKUP(+G707,FactSum,2,FALSE)","v":"100 Summer 100 Winter System Peaks"},{"$f":"IF(Classification=\"DEMAND\",\"F12\",IF(Classification=\"ENERGY\",\"F30\",\"F10\"))","v":"F10"},"F10","F10",{"$f":"VLOOKUP(+K707,FactSum,2,FALSE)","v":"100 Summer 100 Winter System Peaks"},"F11"]
[null,null,"SSGCT","F10",{"$f":"IF(Classification=\"DEMAND\",\"F12\",IF(Classification=\"ENERGY\",\"F30\",\"F10\"))","v":"F10"},{"$f":"IF(Classification=\"DEMAND\",\"F13\",IF(Classification=\"ENERGY\",\"F32\",\"F14\"))","v":"F14"},{"$f":"IF(Classification=\"DEMAND\",\"F12\",IF(Classification=\"ENERGY\",\"F30\",\"F10\"))","v":"F10"},{"$f":"VLOOKUP(+G708,FactSum,2,FALSE)","v":"100 Summer 100 Winter System Peaks"},"F10","F10","F10",{"$f":"VLOOKUP(+K708,FactSum,2,FALSE)","v":"100 Summer 100 Winter System Peaks"},"F12"]
[]
[null,null,null,null,null,null,null,null,null,null,null,null,null,{"$f":"VLOOKUP(+M711,FactSum,2,FALSE)","v":{"$error":"#N/A"}}]
["341","Structures and Improvements"]
[null,null,"SG","F10",{"$f":"IF(Classification=\"DEMAND\",\"F12\",IF(Classification=\"ENERGY\",\"F30\",\"F10\"))","v":"F10"},{"$f":"IF(Classification=\"DEMAND\",\"F12\",IF(Classification=\"ENERGY\",\"F30\",\"F10\"))","v":"F10"},{"$f":"IF(Classification=\"DEMAND\",\"F12\",IF(Classification=\"ENERGY\",\"F30\",\"F10\"))","v":"F10"},{"$f":"VLOOKUP(+G712,FactSum,2,FALSE)","v":"100 Summer 100 Winter System Peaks"},{"$f":"IF(Classification=\"DEMAND\",\"F12\",IF(Classification=\"ENERGY\",\"F30\",\"F10\"))","v":"F10"},"F10","F10",{"$f":"VLOOKUP(+K712,FactSum,2,FALSE)","v":"100 Summer 100 Winter System Peaks"},"F11"]
[null,null,"SSGCT","F10",{"$f":"IF(Classification=\"DEMAND\",\"F12\",IF(Classification=\"ENERGY\",\"F30\",\"F10\"))","v":"F10"},{"$f":"IF(Classification=\"DEMAND\",\"F13\",IF(Classification=\"ENERGY\",\"F32\",\"F14\"))","v":"F14"},{"$f":"IF(Classification=\"DEMAND\",\"F12\",IF(Classification=\"ENERGY\",\"F30\",\"F10\"))","v":"F10"},{"$f":"VLOOKUP(+G713,FactSum,2,FALSE)","v":"100 Summer 100 Winter System Peaks"},"F10","F10","F10",{"$f":"VLOOKUP(+K713,FactSum,2,FALSE)","v":"100 Summer 100 Winter System Peaks"},"F12"]
[]
[]
[null,null,null,null,null,null,null,null,null,null,null,null,null,{"$f":"VLOOKUP(+M717,FactSum,2,FALSE)","v":"100 Summer 100 Winter System Peaks"}]
["342","Fuel Holders, Producers & Access",null,"F10",{"$f":"IF(Classification=\"DEMAND\",\"F12\",IF(Classification=\"ENERGY\",\"F30\",\"F10\"))","v":"F10"},{"$f":"IF(Classification=\"DEMAND\",\"F12\",IF(Classification=\"ENERGY\",\"F30\",\"F10\"))","v":"F10"},{"$f":"IF(Classification=\"DEMAND\",\"F12\",IF(Classification=\"ENERGY\",\"F30\",\"F10\"))","v":"F10"},{"$f":"VLOOKUP(+G717,FactSum,2,FALSE)","v":"100 Summer 100 Winter System Peaks"},{"$f":"IF(Classification=\"DEMAND\",\"F12\",IF(Classification=\"ENERGY\",\"F30\",\"F10\"))","v":"F10"},"F10","F10",{"$f":"VLOOKUP(+K717,FactSum,2,FALSE)","v":"100 Summer 100 Winter System Peaks"},"F10"]
[null,null,"SSGCT","F10",{"$f":"IF(Classification=\"DEMAND\",\"F12\",IF(Classification=\"ENERGY\",\"F30\",\"F10\"))","v":"F10"},{"$f":"IF(Classification=\"DEMAND\",\"F13\",IF(Classification=\"ENERGY\",\"F32\",\"F14\"))","v":"F14"},{"$f":"IF(Classification=\"DEMAND\",\"F12\",IF(Classification=\"ENERGY\",\"F30\",\"F10\"))","v":"F10"},{"$f":"VLOOKUP(+G718,FactSum,2,FALSE)","v":"100 Summer 100 Winter System Peaks"},"F10","F10","F10",{"$f":"VLOOKUP(+K718,FactSum,2,FALSE)","v":"100 Summer 100 Winter System Peaks"},"F11"]
[]
[null,null,null,null,null,null,null,null,null,null,null,null,null,{"$f":"VLOOKUP(+M721,FactSum,2,FALSE)","v":"100 Summer 100 Winter System Peaks"}]
["343","Prime Movers",null,"F10",{"$f":"IF(Classification=\"DEMAND\",\"F12\",IF(Classification=\"ENERGY\",\"F30\",\"F10\"))","v":"F10"},{"$f":"IF(Classification=\"DEMAND\",\"F12\",IF(Classification=\"ENERGY\",\"F30\",\"F10\"))","v":"F10"},{"$f":"IF(Classification=\"DEMAND\",\"F12\",IF(Classification=\"ENERGY\",\"F30\",\"F10\"))","v":"F10"},{"$f":"VLOOKUP(+G721,FactSum,2,FALSE)","v":"100 Summer 100 Winter System Peaks"},"F10","F10","F10",{"$f":"VLOOKUP(+K721,FactSum,2,FALSE)","v":"100 Summer 100 Winter System Peaks"},"F10"]
[null,null,"SSGCT","F10",{"$f":"IF(Classification=\"DEMAND\",\"F12\",IF(Classification=\"ENERGY\",\"F30\",\"F10\"))","v":"F10"},{"$f":"IF(Classification=\"DEMAND\",\"F13\",IF(Classification=\"ENERGY\",\"F32\",\"F14\"))","v":"F14"},"F10",null,"F10","F10","F10","F10","F10"]
[]
[]
[null,null,null,null,null,null,null,null,null,null,null,null,null,{"$f":"VLOOKUP(+M726,FactSum,2,FALSE)","v":"100 Summer 100 Winter System Peaks"}]
["344","Generators",null,"F10",{"$f":"IF(Classification=\"DEMAND\",\"F12\",IF(Classification=\"ENERGY\",\"F30\",\"F10\"))","v":"F10"},{"$f":"IF(Classification=\"DEMAND\",\"F12\",IF(Classification=\"ENERGY\",\"F30\",\"F10\"))","v":"F10"},{"$f":"IF(Classification=\"DEMAND\",\"F12\",IF(Classification=\"ENERGY\",\"F30\",\"F10\"))","v":"F10"},{"$f":"VLOOKUP(+G726,FactSum,2,FALSE)","v":"100 Summer 100 Winter System Peaks"},{"$f":"IF(Classification=\"DEMAND\",\"F12\",IF(Classification=\"ENERGY\",\"F30\",\"F10\"))","v":"F10"},"F10","F10",{"$f":"VLOOKUP(+K726,FactSum,2,FALSE)","v":"100 Summer 100 Winter System Peaks"},"F10"]
[null,null,"SSGCT","F10",{"$f":"IF(Classification=\"DEMAND\",\"F12\",IF(Classification=\"ENERGY\",\"F30\",\"F10\"))","v":"F10"},{"$f":"IF(Classification=\"DEMAND\",\"F13\",IF(Classification=\"ENERGY\",\"F32\",\"F14\"))","v":"F14"},{"$f":"IF(Classification=\"DEMAND\",\"F12\",IF(Classification=\"ENERGY\",\"F30\",\"F10\"))","v":"F10"},{"$f":"VLOOKUP(+G727,FactSum,2,FALSE)","v":"100 Summer 100 Winter System Peaks"},"F10","F10","F10",{"$f":"VLOOKUP(+K727,FactSum,2,FALSE)","v":"100 Summer 100 Winter System Peaks"},"F11"]
[]
[null,null,null,null,null,null,null,null,null,null,null,null,null,{"$f":"VLOOKUP(+M730,FactSum,2,FALSE)","v":{"$error":"#N/A"}}]
["345","Accessory Electric Plant"]
[null,null,"SG","F10",{"$f":"IF(Classification=\"DEMAND\",\"F12\",IF(Classification=\"ENERGY\",\"F30\",\"F10\"))","v":"F10"},{"$f":"IF(Classification=\"DEMAND\",\"F12\",IF(Classification=\"ENERGY\",\"F30\",\"F10\"))","v":"F10"},{"$f":"IF(Classification=\"DEMAND\",\"F12\",IF(Classification=\"ENERGY\",\"F30\",\"F10\"))","v":"F10"},{"$f":"VLOOKUP(+G731,FactSum,2,FALSE)","v":"100 Summer 100 Winter System Peaks"},{"$f":"IF(Classification=\"DEMAND\",\"F12\",IF(Classification=\"ENERGY\",\"F30\",\"F10\"))","v":"F10"},"F10","F10",{"$f":"VLOOKUP(+K731,FactSum,2,FALSE)","v":"100 Summer 100 Winter System Peaks"},"F11"]
[null,null,"SSGCT","F10",{"$f":"IF(Classification=\"DEMAND\",\"F12\",IF(Classification=\"ENERGY\",\"F30\",\"F10\"))","v":"F10"},{"$f":"IF(Classification=\"DEMAND\",\"F13\",IF(Classification=\"ENERGY\",\"F32\",\"F14\"))","v":"F14"},{"$f":"IF(Classification=\"DEMAND\",\"F12\",IF(Classification=\"ENERGY\",\"F30\",\"F10\"))","v":"F10"},{"$f":"VLOOKUP(+G732,FactSum,2,FALSE)","v":"100 Summer 100 Winter System Peaks"},"F10","F10","F10",{"$f":"VLOOKUP(+K732,FactSum,2,FALSE)","v":"100 Summer 100 Winter System Peaks"},"F12"]
[]
[null,null,null,null,null,null,null,null,null,null,null,null,null,{"$f":"VLOOKUP(+M735,FactSum,2,FALSE)","v":"100 Summer 100 Winter System Peaks"}]
["346","Misc. Power Plant Equipment",null,"F10",{"$f":"IF(Classification=\"DEMAND\",\"F12\",IF(Classification=\"ENERGY\",\"F30\",\"F10\"))","v":"F10"},{"$f":"IF(Classification=\"DEMAND\",\"F12\",IF(Classification=\"ENERGY\",\"F30\",\"F10\"))","v":"F10"},{"$f":"IF(Classification=\"DEMAND\",\"F12\",IF(Classification=\"ENERGY\",\"F30\",\"F10\"))","v":"F10"},{"$f":"VLOOKUP(+G735,FactSum,2,FALSE)","v":"100 Summer 100 Winter System Peaks"},{"$f":"IF(Classification=\"DEMAND\",\"F12\",IF(Classification=\"ENERGY\",\"F30\",\"F10\"))","v":"F10"},{"$f":"IF(Classification=\"DEMAND\",\"F12\",IF(Classification=\"ENERGY\",\"F30\",\"F10\"))","v":"F10"},{"$f":"IF(Classification=\"DEMAND\",\"F12\",IF(Classification=\"ENERGY\",\"F30\",\"F10\"))","v":"F10"},{"$f":"VLOOKUP(+K735,FactSum,2,FALSE)","v":"100 Summer 100 Winter System Peaks"},"F10"]
[null,null,null,null,null,null,null,null,null,null,null,null,null,{"$f":"VLOOKUP(+M737,FactSum,2,FALSE)","v":"100 Summer 100 Winter System Peaks"}]
["OP","Unclassified Other Prod - Acct 300",null,"F10",{"$f":"IF(Classification=\"DEMAND\",\"F12\",IF(Classification=\"ENERGY\",\"F30\",\"F10\"))","v":"F10"},{"$f":"IF(Classification=\"DEMAND\",\"F12\",IF(Classification=\"ENERGY\",\"F30\",\"F10\"))","v":"F10"},{"$f":"IF(Classification=\"DEMAND\",\"F12\",IF(Classification=\"ENERGY\",\"F30\",\"F10\"))","v":"F10"},{"$f":"VLOOKUP(+G737,FactSum,2,FALSE)","v":"100 Summer 100 Winter System Peaks"},{"$f":"IF(Classification=\"DEMAND\",\"F12\",IF(Classification=\"ENERGY\",\"F30\",\"F10\"))","v":"F10"},{"$f":"IF(Classification=\"DEMAND\",\"F12\",IF(Classification=\"ENERGY\",\"F30\",\"F10\"))","v":"F10"},{"$f":"IF(Classification=\"DEMAND\",\"F12\",IF(Classification=\"ENERGY\",\"F30\",\"F10\"))","v":"F10"},{"$f":"VLOOKUP(+K737,FactSum,2,FALSE)","v":"100 Summer 100 Winter System Peaks"},"F10"]
[]
["Total Other Production Plant"]
[]
["Experimental Plant",null,null,null,null,null,null,null,null,null,null,null,null,{"$f":"VLOOKUP(+M742,FactSum,2,FALSE)","v":"100 Summer 100 Winter System Peaks"}]
["103","Experimental Plant",null,"F10",{"$f":"IF(Classification=\"DEMAND\",\"F12\",IF(Classification=\"ENERGY\",\"F30\",\"F10\"))","v":"F10"},{"$f":"IF(Classification=\"DEMAND\",\"F12\",IF(Classification=\"ENERGY\",\"F30\",\"F10\"))","v":"F10"},{"$f":"IF(Classification=\"DEMAND\",\"F12\",IF(Classification=\"ENERGY\",\"F30\",\"F10\"))","v":"F10"},{"$f":"VLOOKUP(+G742,FactSum,2,FALSE)","v":"100 Summer 100 Winter System Peaks"},{"$f":"IF(Classification=\"DEMAND\",\"F12\",IF(Classification=\"ENERGY\",\"F30\",\"F10\"))","v":"F10"},{"$f":"IF(Classification=\"DEMAND\",\"F12\",IF(Classification=\"ENERGY\",\"F30\",\"F10\"))","v":"F10"},{"$f":"IF(Classification=\"DEMAND\",\"F12\",IF(Classification=\"ENERGY\",\"F30\",\"F10\"))","v":"F10"},{"$f":"VLOOKUP(+K742,FactSum,2,FALSE)","v":"100 Summer 100 Winter System Peaks"},"F10"]
[]
["TOTAL PRODUCTION PLANT"]
[]
[]
["350","Land and Land Rights",null,null,null,null,null,null,null,null,null,null,null,{"$f":"VLOOKUP(+M748,FactSum,2,FALSE)","v":"100 Summer 100 Winter System Peaks"}]
[null,null,"Demand","F10",{"$f":"IF(Classification=\"DEMAND\",\"F12\",IF(Classification=\"ENERGY\",\"F30\",\"F10\"))","v":"F10"},{"$f":"IF(Classification=\"DEMAND\",\"F12\",IF(Classification=\"ENERGY\",\"F30\",\"F10\"))","v":"F10"},{"$f":"IF(Classification=\"DEMAND\",\"F12\",IF(Classification=\"ENERGY\",\"F30\",\"F10\"))","v":"F10"},{"$f":"VLOOKUP(+G748,FactSum,2,FALSE)","v":"100 Summer 100 Winter System Peaks"},{"$f":"IF(Classification=\"DEMAND\",\"F12\",IF(Classification=\"ENERGY\",\"F30\",\"F10\"))","v":"F10"},{"$f":"IF(Classification=\"DEMAND\",\"F12\",IF(Classification=\"ENERGY\",\"F30\",\"F10\"))","v":"F10"},{"$f":"IF(Classification=\"DEMAND\",\"F12\",IF(Classification=\"ENERGY\",\"F30\",\"F10\"))","v":"F10"},{"$f":"VLOOKUP(+K748,FactSum,2,FALSE)","v":"100 Summer 100 Winter System Peaks"},"F10",{"$f":"VLOOKUP(+M749,FactSum,2,FALSE)","v":"Direct Assignment"}]
[null,null,"Direct Assigned","A","A","A","A",{"$f":"VLOOKUP(+G749,FactSum,2,FALSE)","v":"Direct Assignment"},"A","A","A",{"$f":"VLOOKUP(+K749,FactSum,2,FALSE)","v":"Direct Assignment"},"A"]
[]
["352","Structures and Improvements",null,null,null,null,null,null,null,null,null,null,null,{"$f":"VLOOKUP(+M752,FactSum,2,FALSE)","v":"100 Summer 100 Winter System Peaks"}]
[null,null,"Demand","F10",{"$f":"IF(Classification=\"DEMAND\",\"F12\",IF(Classification=\"ENERGY\",\"F30\",\"F10\"))","v":"F10"},{"$f":"IF(Classification=\"DEMAND\",\"F12\",IF(Classification=\"ENERGY\",\"F30\",\"F10\"))","v":"F10"},{"$f":"IF(Classification=\"DEMAND\",\"F12\",IF(Classification=\"ENERGY\",\"F30\",\"F10\"))","v":"F10"},{"$f":"VLOOKUP(+G752,FactSum,2,FALSE)","v":"100 Summer 100 Winter System Peaks"},{"$f":"IF(Classification=\"DEMAND\",\"F12\",IF(Classification=\"ENERGY\",\"F30\",\"F10\"))","v":"F10"},{"$f":"IF(Classification=\"DEMAND\",\"F12\",IF(Classification=\"ENERGY\",\"F30\",\"F10\"))","v":"F10"},{"$f":"IF(Classification=\"DEMAND\",\"F12\",IF(Classification=\"ENERGY\",\"F30\",\"F10\"))","v":"F10"},{"$f":"VLOOKUP(+K752,FactSum,2,FALSE)","v":"100 Summer 100 Winter System Peaks"},"F10",{"$f":"VLOOKUP(+M753,FactSum,2,FALSE)","v":"Direct Assignment"}]
[null,null,"Direct Assigned","A","A","A","A",{"$f":"VLOOKUP(+G753,FactSum,2,FALSE)","v":"Direct Assignment"},"A","A","A",{"$f":"VLOOKUP(+K753,FactSum,2,FALSE)","v":"Direct Assignment"},"A"]
[]
["353","Station Equipment",null,null,null,null,null,null,null,null,null,null,null,{"$f":"VLOOKUP(+M756,FactSum,2,FALSE)","v":"100 Summer 100 Winter System Peaks"}]
[null,null,"Demand","F10",{"$f":"IF(Classification=\"DEMAND\",\"F12\",IF(Classification=\"ENERGY\",\"F30\",\"F10\"))","v":"F10"},{"$f":"IF(Classification=\"DEMAND\",\"F12\",IF(Classification=\"ENERGY\",\"F30\",\"F10\"))","v":"F10"},{"$f":"IF(Classification=\"DEMAND\",\"F12\",IF(Classification=\"ENERGY\",\"F30\",\"F10\"))","v":"F10"},{"$f":"VLOOKUP(+G756,FactSum,2,FALSE)","v":"100 Summer 100 Winter System Peaks"},{"$f":"IF(Classification=\"DEMAND\",\"F12\",IF(Classification=\"ENERGY\",\"F30\",\"F10\"))","v":"F10"},{"$f":"IF(Classification=\"DEMAND\",\"F12\",IF(Classification=\"ENERGY\",\"F30\",\"F10\"))","v":"F10"},{"$f":"IF(Classification=\"DEMAND\",\"F12\",IF(Classification=\"ENERGY\",\"F30\",\"F10\"))","v":"F10"},{"$f":"VLOOKUP(+K756,FactSum,2,FALSE)","v":"100 Summer 100 Winter System Peaks"},"F10",{"$f":"VLOOKUP(+M757,FactSum,2,FALSE)","v":"Direct Assignment"}]
[null,null,"Direct Assigned","A","A","A","A",{"$f":"VLOOKUP(+G757,FactSum,2,FALSE)","v":"Direct Assignment"},"A","A","A",{"$f":"VLOOKUP(+K757,FactSum,2,FALSE)","v":"Direct Assignment"},"A"]
[]
["354","Towers and Fixtures",null,null,null,null,null,null,null,null,null,null,null,{"$f":"VLOOKUP(+M760,FactSum,2,FALSE)","v":"100 Summer 100 Winter System Peaks"}]
[null,null,"Demand","F10",{"$f":"IF(Classification=\"DEMAND\",\"F12\",IF(Classification=\"ENERGY\",\"F30\",\"F10\"))","v":"F10"},{"$f":"IF(Classification=\"DEMAND\",\"F12\",IF(Classification=\"ENERGY\",\"F30\",\"F10\"))","v":"F10"},{"$f":"IF(Classification=\"DEMAND\",\"F12\",IF(Classification=\"ENERGY\",\"F30\",\"F10\"))","v":"F10"},{"$f":"VLOOKUP(+G760,FactSum,2,FALSE)","v":"100 Summer 100 Winter System Peaks"},{"$f":"IF(Classification=\"DEMAND\",\"F12\",IF(Classification=\"ENERGY\",\"F30\",\"F10\"))","v":"F10"},{"$f":"IF(Classification=\"DEMAND\",\"F12\",IF(Classification=\"ENERGY\",\"F30\",\"F10\"))","v":"F10"},{"$f":"IF(Classification=\"DEMAND\",\"F12\",IF(Classification=\"ENERGY\",\"F30\",\"F10\"))","v":"F10"},{"$f":"VLOOKUP(+K760,FactSum,2,FALSE)","v":"100 Summer 100 Winter System Peaks"},"F10",{"$f":"VLOOKUP(+M761,FactSum,2,FALSE)","v":"Direct Assignment"}]
[null,null,"Direct Assigned","A","A","A","A",{"$f":"VLOOKUP(+G761,FactSum,2,FALSE)","v":"Direct Assignment"},"A","A","A",{"$f":"VLOOKUP(+K761,FactSum,2,FALSE)","v":"Direct Assignment"},"A"]
[]
["355","Poles and Fixtures",null,null,null,null,null,null,null,null,null,null,null,{"$f":"VLOOKUP(+M764,FactSum,2,FALSE)","v":"100 Summer 100 Winter System Peaks"}]
[null,null,"Demand","F10",{"$f":"IF(Classification=\"DEMAND\",\"F12\",IF(Classification=\"ENERGY\",\"F30\",\"F10\"))","v":"F10"},{"$f":"IF(Classification=\"DEMAND\",\"F12\",IF(Classification=\"ENERGY\",\"F30\",\"F10\"))","v":"F10"},{"$f":"IF(Classification=\"DEMAND\",\"F12\",IF(Classification=\"ENERGY\",\"F30\",\"F10\"))","v":"F10"},{"$f":"VLOOKUP(+G764,FactSum,2,FALSE)","v":"100 Summer 100 Winter System Peaks"},{"$f":"IF(Classification=\"DEMAND\",\"F12\",IF(Classification=\"ENERGY\",\"F30\",\"F10\"))","v":"F10"},{"$f":"IF(Classification=\"DEMAND\",\"F12\",IF(Classification=\"ENERGY\",\"F30\",\"F10\"))","v":"F10"},{"$f":"IF(Classification=\"DEMAND\",\"F12\",IF(Classification=\"ENERGY\",\"F30\",\"F10\"))","v":"F10"},{"$f":"VLOOKUP(+K764,FactSum,2,FALSE)","v":"100 Summer 100 Winter System Peaks"},"F10",{"$f":"VLOOKUP(+M765,FactSum,2,FALSE)","v":"Direct Assignment"}]
[null,null,"Direct Assigned","A","A","A","A",{"$f":"VLOOKUP(+G765,FactSum,2,FALSE)","v":"Direct Assignment"},"A","A","A",{"$f":"VLOOKUP(+K765,FactSum,2,FALSE)","v":"Direct Assignment"},"A"]
[]
["356","Clearing and Grading",null,null,null,null,null,null,null,null,null,null,null,{"$f":"VLOOKUP(+M768,FactSum,2,FALSE)","v":"100 Summer 100 Winter System Peaks"}]
[null,null,"Demand","F10",{"$f":"IF(Classification=\"DEMAND\",\"F12\",IF(Classification=\"ENERGY\",\"F30\",\"F10\"))","v":"F10"},{"$f":"IF(Classification=\"DEMAND\",\"F12\",IF(Classification=\"ENERGY\",\"F30\",\"F10\"))","v":"F10"},{"$f":"IF(Classification=\"DEMAND\",\"F12\",IF(Classification=\"ENERGY\",\"F30\",\"F10\"))","v":"F10"},{"$f":"VLOOKUP(+G768,FactSum,2,FALSE)","v":"100 Summer 100 Winter System Peaks"},{"$f":"IF(Classification=\"DEMAND\",\"F12\",IF(Classification=\"ENERGY\",\"F30\",\"F10\"))","v":"F10"},{"$f":"IF(Classification=\"DEMAND\",\"F12\",IF(Classification=\"ENERGY\",\"F30\",\"F10\"))","v":"F10"},{"$f":"IF(Classification=\"DEMAND\",\"F12\",IF(Classification=\"ENERGY\",\"F30\",\"F10\"))","v":"F10"},{"$f":"VLOOKUP(+K768,FactSum,2,FALSE)","v":"100 Summer 100 Winter System Peaks"},"F10",{"$f":"VLOOKUP(+M769,FactSum,2,FALSE)","v":"Direct Assignment"}]
[null,null,"Direct Assigned","A","A","A","A",{"$f":"VLOOKUP(+G769,FactSum,2,FALSE)","v":"Direct Assignment"},"A","A","A",{"$f":"VLOOKUP(+K769,FactSum,2,FALSE)","v":"Direct Assignment"},"A"]
[]
["357","Underground Conduit",null,null,null,null,null,null,null,null,null,null,null,{"$f":"VLOOKUP(+M772,FactSum,2,FALSE)","v":"100 Summer 100 Winter System Peaks"}]
[null,null,"Demand","F10",{"$f":"IF(Classification=\"DEMAND\",\"F12\",IF(Classification=\"ENERGY\",\"F30\",\"F10\"))","v":"F10"},{"$f":"IF(Classification=\"DEMAND\",\"F12\",IF(Classification=\"ENERGY\",\"F30\",\"F10\"))","v":"F10"},{"$f":"IF(Classification=\"DEMAND\",\"F12\",IF(Classification=\"ENERGY\",\"F30\",\"F10\"))","v":"F10"},{"$f":"VLOOKUP(+G772,FactSum,2,FALSE)","v":"100 Summer 100 Winter System Peaks"},{"$f":"IF(Classification=\"DEMAND\",\"F12\",IF(Classification=\"ENERGY\",\"F30\",\"F10\"))","v":"F10"},{"$f":"IF(Classification=\"DEMAND\",\"F12\",IF(Classification=\"ENERGY\",\"F30\",\"F10\"))","v":"F10"},{"$f":"IF(Classification=\"DEMAND\",\"F12\",IF(Classification=\"ENERGY\",\"F30\",\"F10\"))","v":"F10"},{"$f":"VLOOKUP(+K772,FactSum,2,FALSE)","v":"100 Summer 100 Winter System Peaks"},"F10",{"$f":"VLOOKUP(+M773,FactSum,2,FALSE)","v":"Direct Assignment"}]
[null,null,"Direct Assigned","A","A","A","A",{"$f":"VLOOKUP(+G773,FactSum,2,FALSE)","v":"Direct Assignment"},"A","A","A",{"$f":"VLOOKUP(+K773,FactSum,2,FALSE)","v":"Direct Assignment"},"A"]
[]
["358","Underground Conductors ",null,null,null,null,null,null,null,null,null,null,null,{"$f":"VLOOKUP(+M776,FactSum,2,FALSE)","v":"100 Summer 100 Winter System Peaks"}]
[null,null,"Demand","F10",{"$f":"IF(Classification=\"DEMAND\",\"F12\",IF(Classification=\"ENERGY\",\"F30\",\"F10\"))","v":"F10"},{"$f":"IF(Classification=\"DEMAND\",\"F12\",IF(Classification=\"ENERGY\",\"F30\",\"F10\"))","v":"F10"},{"$f":"IF(Classification=\"DEMAND\",\"F12\",IF(Classification=\"ENERGY\",\"F30\",\"F10\"))","v":"F10"},{"$f":"VLOOKUP(+G776,FactSum,2,FALSE)","v":"100 Summer 100 Winter System Peaks"},{"$f":"IF(Classification=\"DEMAND\",\"F12\",IF(Classification=\"ENERGY\",\"F30\",\"F10\"))","v":"F10"},{"$f":"IF(Classification=\"DEMAND\",\"F12\",IF(Classification=\"ENERGY\",\"F30\",\"F10\"))","v":"F10"},{"$f":"IF(Classification=\"DEMAND\",\"F12\",IF(Classification=\"ENERGY\",\"F30\",\"F10\"))","v":"F10"},{"$f":"VLOOKUP(+K776,FactSum,2,FALSE)","v":"100 Summer 100 Winter System Peaks"},"F10",{"$f":"VLOOKUP(+M777,FactSum,2,FALSE)","v":"Direct Assignment"}]
[null,null,"Direct Assigned","A","A","A","A",{"$f":"VLOOKUP(+G777,FactSum,2,FALSE)","v":"Direct Assignment"},"A","A","A",{"$f":"VLOOKUP(+K777,FactSum,2,FALSE)","v":"Direct Assignment"},"A"]
[]
["359","Roads and Trails",null,null,null,null,null,null,null,null,null,null,null,{"$f":"VLOOKUP(+M780,FactSum,2,FALSE)","v":"100 Summer 100 Winter System Peaks"}]
[null,null,"Demand","F10",{"$f":"IF(Classification=\"DEMAND\",\"F12\",IF(Classification=\"ENERGY\",\"F30\",\"F10\"))","v":"F10"},{"$f":"IF(Classification=\"DEMAND\",\"F12\",IF(Classification=\"ENERGY\",\"F30\",\"F10\"))","v":"F10"},{"$f":"IF(Classification=\"DEMAND\",\"F12\",IF(Classification=\"ENERGY\",\"F30\",\"F10\"))","v":"F10"},{"$f":"VLOOKUP(+G780,FactSum,2,FALSE)","v":"100 Summer 100 Winter System Peaks"},{"$f":"IF(Classification=\"DEMAND\",\"F12\",IF(Classification=\"ENERGY\",\"F30\",\"F10\"))","v":"F10"},{"$f":"IF(Classification=\"DEMAND\",\"F12\",IF(Classification=\"ENERGY\",\"F30\",\"F10\"))","v":"F10"},{"$f":"IF(Classification=\"DEMAND\",\"F12\",IF(Classification=\"ENERGY\",\"F30\",\"F10\"))","v":"F10"},{"$f":"VLOOKUP(+K780,FactSum,2,FALSE)","v":"100 Summer 100 Winter System Peaks"},"F10",{"$f":"VLOOKUP(+M781,FactSum,2,FALSE)","v":"Direct Assignment"}]
[null,null,"Direct Assigned","A","A","A","A",{"$f":"VLOOKUP(+G781,FactSum,2,FALSE)","v":"Direct Assignment"},"A","A","A",{"$f":"VLOOKUP(+K781,FactSum,2,FALSE)","v":"Direct Assignment"},"A"]
[]
[null,null,null,null,null,null,null,null,null,null,null,null,null,{"$f":"VLOOKUP(+M784,FactSum,2,FALSE)","v":"100 Summer 100 Winter System Peaks"}]
["TP","Unclassified Trans Plant - Acct 300",null,"F10",{"$f":"IF(Classification=\"DEMAND\",\"F12\",IF(Classification=\"ENERGY\",\"F30\",\"F10\"))","v":"F10"},{"$f":"IF(Classification=\"DEMAND\",\"F12\",IF(Classification=\"ENERGY\",\"F30\",\"F10\"))","v":"F10"},"F10",{"$f":"VLOOKUP(+G784,FactSum,2,FALSE)","v":"100 Summer 100 Winter System Peaks"},"F10","F10","F10",{"$f":"VLOOKUP(+K784,FactSum,2,FALSE)","v":"100 Summer 100 Winter System Peaks"},"F10",{"$f":"VLOOKUP(+M785,FactSum,2,FALSE)","v":"100 Summer 100 Winter System Peaks"}]
["TS0","Unclassified Trans Sub - Acct 300",null,"F10",{"$f":"IF(Classification=\"DEMAND\",\"F12\",IF(Classification=\"ENERGY\",\"F30\",\"F10\"))","v":"F10"},"F10","F10",{"$f":"VLOOKUP(+G785,FactSum,2,FALSE)","v":"100 Summer 100 Winter System Peaks"},"F10","F10","F10",{"$f":"VLOOKUP(+K785,FactSum,2,FALSE)","v":"100 Summer 100 Winter System Peaks"},"F10"]
[]
["TOTAL TRANSMISSION PLANT"]
[]
["A",null,"B","C","C","C","C",null,"C","C","C",null,"C"]
[]
["FERC",null,null,"COS","COS","COS","COS",null,"COS","COS","COS",null,"COS"]
["ACCT",null,"DESCRIPTION ","Factor","Factor","Factor","Factor",null,"Factor","Factor","Factor",null,"Factor"]
[]
["360","Land and Land Rights",null,null,null,null,null,null,null,null,null,null,null,{"$f":"VLOOKUP(+M795,FactSum,2,FALSE)","v":"Max. Schedule Peak Excluding Sch 60"}]
[null,null,"Demand Primary","F20A","F20A","F20A","F20A",{"$f":"VLOOKUP(+G795,FactSum,2,FALSE)","v":"Max. Schedule Peak Excluding Sch 60"},"F20A","F20A","F20A",{"$f":"VLOOKUP(+K795,FactSum,2,FALSE)","v":"Max. Schedule Peak Excluding Sch 60"},"F20A",{"$f":"VLOOKUP(+M796,FactSum,2,FALSE)","v":"Direct Assignment"}]
[null,null,"Assigned","A","A","A","A",{"$f":"VLOOKUP(+G796,FactSum,2,FALSE)","v":"Direct Assignment"},"A","A","A",{"$f":"VLOOKUP(+K796,FactSum,2,FALSE)","v":"Direct Assignment"},"A"]
[]
["361","Structures and Improvements",null,null,null,null,null,null,null,null,null,null,null,{"$f":"VLOOKUP(+M799,FactSum,2,FALSE)","v":"Max. Schedule Peak"}]
[null,null,"Demand Primary","F20","F20","F20","F20",{"$f":"VLOOKUP(+G799,FactSum,2,FALSE)","v":"Max. Schedule Peak"},"F20","F20","F20",{"$f":"VLOOKUP(+K799,FactSum,2,FALSE)","v":"Max. Schedule Peak"},"F20",{"$f":"VLOOKUP(+M800,FactSum,2,FALSE)","v":"Direct Assignment"}]
[null,null,"Assigned","A","A","A","A",{"$f":"VLOOKUP(+G800,FactSum,2,FALSE)","v":"Direct Assignment"},"A","A","A",{"$f":"VLOOKUP(+K800,FactSum,2,FALSE)","v":"Direct Assignment"},"A"]
[]
["362","Station Equipment",null,null,null,null,null,null,null,null,null,null,null,{"$f":"VLOOKUP(+M803,FactSum,2,FALSE)","v":"Max. Schedule Peak Excluding Sch 60"}]
[null,null,"Demand Primary","F20A","F20A","F20A","F20A",{"$f":"VLOOKUP(+G803,FactSum,2,FALSE)","v":"Max. Schedule Peak Excluding Sch 60"},"F20A","F20A","F20A",{"$f":"VLOOKUP(+K803,FactSum,2,FALSE)","v":"Max. Schedule Peak Excluding Sch 60"},"F20A",{"$f":"VLOOKUP(+M804,FactSum,2,FALSE)","v":"Direct Assignment"}]
[null,null,"Assigned","A","A","A","A",{"$f":"VLOOKUP(+G804,FactSum,2,FALSE)","v":"Direct Assignment"},"A","A","A",{"$f":"VLOOKUP(+K804,FactSum,2,FALSE)","v":"Direct Assignment"},"A"]
[]
["364","Poles, Towers & Fixtures",null,null,null,null,null,null,null,null,null,null,null,{"$f":"VLOOKUP(+M807,FactSum,2,FALSE)","v":"Max. Schedule Peak Excluding Sch 60"}]
[null,null,"Demand Primary","F20A","F20A","F20A","F20A",{"$f":"VLOOKUP(+G807,FactSum,2,FALSE)","v":"Max. Schedule Peak Excluding Sch 60"},"F20A","F20A","F20A",{"$f":"VLOOKUP(+K807,FactSum,2,FALSE)","v":"Max. Schedule Peak Excluding Sch 60"},"F20A",{"$f":"VLOOKUP(+M808,FactSum,2,FALSE)","v":"Secondary Lines - NCP"}]
[null,null,"Demand Secondary","F22","F22","F22","F22",{"$f":"VLOOKUP(+G808,FactSum,2,FALSE)","v":"Secondary Lines - NCP"},"F22","F22","F22",{"$f":"VLOOKUP(+K808,FactSum,2,FALSE)","v":"Secondary Lines - NCP"},"F22",{"$f":"VLOOKUP(+M809,FactSum,2,FALSE)","v":"Direct Assignment"}]
[null,null,"Assigned","A","A","A","A",{"$f":"VLOOKUP(+G809,FactSum,2,FALSE)","v":"Direct Assignment"},"A","A","A",{"$f":"VLOOKUP(+K809,FactSum,2,FALSE)","v":"Direct Assignment"},"A"]
[]
["365","Overhead Conductors",null,null,null,null,null,null,null,null,null,null,null,{"$f":"VLOOKUP(+M812,FactSum,2,FALSE)","v":"Max. Schedule Peak Excluding Sch 60"}]
[null,null,"Demand Primary","F20A","F20A","F20A","F20A",{"$f":"VLOOKUP(+G812,FactSum,2,FALSE)","v":"Max. Schedule Peak Excluding Sch 60"},"F20A","F20A","F20A",{"$f":"VLOOKUP(+K812,FactSum,2,FALSE)","v":"Max. Schedule Peak Excluding Sch 60"},"F20A",{"$f":"VLOOKUP(+M813,FactSum,2,FALSE)","v":"Secondary Lines - NCP"}]
[null,null,"Demand Secondary","F22","F22","F22","F22",{"$f":"VLOOKUP(+G813,FactSum,2,FALSE)","v":"Secondary Lines - NCP"},"F22","F22","F22",{"$f":"VLOOKUP(+K813,FactSum,2,FALSE)","v":"Secondary Lines - NCP"},"F22",{"$f":"VLOOKUP(+M814,FactSum,2,FALSE)","v":"Direct Assignment"}]
[null,null,"Assigned","A","A","A","A",{"$f":"VLOOKUP(+G814,FactSum,2,FALSE)","v":"Direct Assignment"},"A","A","A",{"$f":"VLOOKUP(+K814,FactSum,2,FALSE)","v":"Direct Assignment"},"A"]
[]
["366","Underground Conduit",null,null,null,null,null,null,null,null,null,null,null,{"$f":"VLOOKUP(+M817,FactSum,2,FALSE)","v":"Max. Schedule Peak Excluding Sch 60"}]
[null,null,"Demand Primary","F20A","F20A","F20A","F20A",{"$f":"VLOOKUP(+G817,FactSum,2,FALSE)","v":"Max. Schedule Peak Excluding Sch 60"},"F20A","F20A","F20A",{"$f":"VLOOKUP(+K817,FactSum,2,FALSE)","v":"Max. Schedule Peak Excluding Sch 60"},"F20A",{"$f":"VLOOKUP(+M818,FactSum,2,FALSE)","v":"Secondary Lines - NCP"}]
[null,null,"Demand Secondary","F22","F22","F22","F22",{"$f":"VLOOKUP(+G818,FactSum,2,FALSE)","v":"Secondary Lines - NCP"},"F22","F22","F22",{"$f":"VLOOKUP(+K818,FactSum,2,FALSE)","v":"Secondary Lines - NCP"},"F22",{"$f":"VLOOKUP(+M819,FactSum,2,FALSE)","v":"Direct Assignment"}]
[null,null,"Assigned","A","A","A","A",{"$f":"VLOOKUP(+G819,FactSum,2,FALSE)","v":"Direct Assignment"},"A","A","A",{"$f":"VLOOKUP(+K819,FactSum,2,FALSE)","v":"Direct Assignment"},"A"]
[]
["367","Underground Conductors ",null,null,null,null,null,null,null,null,null,null,null,{"$f":"VLOOKUP(+M822,FactSum,2,FALSE)","v":"Max. Schedule Peak Excluding Sch 60"}]
[null,null,"Demand Primary","F20A","F20A","F20A","F20A",{"$f":"VLOOKUP(+G822,FactSum,2,FALSE)","v":"Max. Schedule Peak Excluding Sch 60"},"F20A","F20A","F20A",{"$f":"VLOOKUP(+K822,FactSum,2,FALSE)","v":"Max. Schedule Peak Excluding Sch 60"},"F20A",{"$f":"VLOOKUP(+M823,FactSum,2,FALSE)","v":"Secondary Lines - NCP"}]
[null,null,"Demand Secondary","F22","F22","F22","F22",{"$f":"VLOOKUP(+G823,FactSum,2,FALSE)","v":"Secondary Lines - NCP"},"F22","F22","F22",{"$f":"VLOOKUP(+K823,FactSum,2,FALSE)","v":"Secondary Lines - NCP"},"F22",{"$f":"VLOOKUP(+M824,FactSum,2,FALSE)","v":"Direct Assignment"}]
[null,null,"Assigned","A","A","A","A",{"$f":"VLOOKUP(+G824,FactSum,2,FALSE)","v":"Direct Assignment"},"A","A","A",{"$f":"VLOOKUP(+K824,FactSum,2,FALSE)","v":"Direct Assignment"},"A"]
[]
["368","Line Transformers",null,null,null,null,null,null,null,null,null,null,null,{"$f":"VLOOKUP(+M827,FactSum,2,FALSE)","v":"Transformers      - NCP"}]
[null,null,"Demand Secondary","F21","F21","F21","F21",{"$f":"VLOOKUP(+G827,FactSum,2,FALSE)","v":"Transformers      - NCP"},"F21","F21","F21",{"$f":"VLOOKUP(+K827,FactSum,2,FALSE)","v":"Transformers      - NCP"},"F21",{"$f":"VLOOKUP(+M828,FactSum,2,FALSE)","v":"Direct Assignment"}]
[null,null,"Assigned","A","A","A","A",{"$f":"VLOOKUP(+G828,FactSum,2,FALSE)","v":"Direct Assignment"},"A","A","A",{"$f":"VLOOKUP(+K828,FactSum,2,FALSE)","v":"Direct Assignment"},"A"]
[]
["369","Services",null,null,null,null,null,null,null,null,null,null,null,{"$f":"VLOOKUP(+M831,FactSum,2,FALSE)","v":"Services"}]
[null,null,"Customer","F70","F70","F70","F70",{"$f":"VLOOKUP(+G831,FactSum,2,FALSE)","v":"Services"},"F70","F70","F70",{"$f":"VLOOKUP(+K831,FactSum,2,FALSE)","v":"Services"},"F70",{"$f":"VLOOKUP(+M832,FactSum,2,FALSE)","v":"Direct Assignment"}]
[null,null,"Assigned","A","A","A","A",{"$f":"VLOOKUP(+G832,FactSum,2,FALSE)","v":"Direct Assignment"},"A","A","A",{"$f":"VLOOKUP(+K832,FactSum,2,FALSE)","v":"Direct Assignment"},"A"]
[]
["370","Meters",null,null,null,null,null,null,null,null,null,null,null,{"$f":"VLOOKUP(+M835,FactSum,2,FALSE)","v":"Meters Excluding Sch 60"}]
[null,null,"Customer","F60A","F60A","F60A","F60A",{"$f":"VLOOKUP(+G835,FactSum,2,FALSE)","v":"Meters Excluding Sch 60"},"F60A","F60A","F60A",{"$f":"VLOOKUP(+K835,FactSum,2,FALSE)","v":"Meters Excluding Sch 60"},"F60A",{"$f":"VLOOKUP(+M836,FactSum,2,FALSE)","v":"Direct Assignment"}]
[null,null,"Assigned","A","A","A","A",{"$f":"VLOOKUP(+G836,FactSum,2,FALSE)","v":"Direct Assignment"},"A","A","A",{"$f":"VLOOKUP(+K836,FactSum,2,FALSE)","v":"Direct Assignment"},"A"]
[]
["371","Install on Customers' Premises",null,null,null,null,null,null,null,null,null,null,null,{"$f":"VLOOKUP(+M839,FactSum,2,FALSE)","v":"Max. Schedule Peak"}]
[null,null,"Demand Primary","F20","F20","F20","F20",{"$f":"VLOOKUP(+G839,FactSum,2,FALSE)","v":"Max. Schedule Peak"},"F20","F20","F20",{"$f":"VLOOKUP(+K839,FactSum,2,FALSE)","v":"Max. Schedule Peak"},"F20",{"$f":"VLOOKUP(+M840,FactSum,2,FALSE)","v":"Secondary Lines - NCP"}]
[null,null,"Demand Secondary","F22","F22","F22","F22",{"$f":"VLOOKUP(+G840,FactSum,2,FALSE)","v":"Secondary Lines - NCP"},"F22","F22","F22",{"$f":"VLOOKUP(+K840,FactSum,2,FALSE)","v":"Secondary Lines - NCP"},"F22",{"$f":"VLOOKUP(+M841,FactSum,2,FALSE)","v":"Direct Assignment"}]
[null,null,"Assigned","A","A","A","A",{"$f":"VLOOKUP(+G841,FactSum,2,FALSE)","v":"Direct Assignment"},"A","A","A",{"$f":"VLOOKUP(+K841,FactSum,2,FALSE)","v":"Direct Assignment"},"A"]
[]
["372","Leased Property",null,null,null,null,null,null,null,null,null,null,null,{"$f":"VLOOKUP(+M844,FactSum,2,FALSE)","v":"Max. Schedule Peak"}]
[null,null,"Demand Primary","F20","F20","F20","F20",{"$f":"VLOOKUP(+G844,FactSum,2,FALSE)","v":"Max. Schedule Peak"},"F20","F20","F20",{"$f":"VLOOKUP(+K844,FactSum,2,FALSE)","v":"Max. Schedule Peak"},"F20",{"$f":"VLOOKUP(+M845,FactSum,2,FALSE)","v":"Secondary Lines - NCP"}]
[null,null,"Demand Secondary","F22","F22","F22","F22",{"$f":"VLOOKUP(+G845,FactSum,2,FALSE)","v":"Secondary Lines - NCP"},"F22","F22","F22",{"$f":"VLOOKUP(+K845,FactSum,2,FALSE)","v":"Secondary Lines - NCP"},"F22",{"$f":"VLOOKUP(+M846,FactSum,2,FALSE)","v":"Direct Assignment"}]
[null,null,"Assigned","A","A","A","A",{"$f":"VLOOKUP(+G846,FactSum,2,FALSE)","v":"Direct Assignment"},"A","A","A",{"$f":"VLOOKUP(+K846,FactSum,2,FALSE)","v":"Direct Assignment"},"A"]
[]
[null,null,null,null,null,null,null,null,null,null,null,null,null,{"$f":"VLOOKUP(+M849,FactSum,2,FALSE)","v":"Direct Assignment"}]
["373","Street Lights",null,"A","A","A","A",{"$f":"VLOOKUP(+G849,FactSum,2,FALSE)","v":"Direct Assignment"},"A","A","A",{"$f":"VLOOKUP(+K849,FactSum,2,FALSE)","v":"Direct Assignment"},"A"]
[]
[null,null,null,null,null,null,null,null,null,null,null,null,null,{"$f":"VLOOKUP(+M852,FactSum,2,FALSE)","v":"Secondary Lines - NCP"}]
["DP","Unclassified Dist Plant - Acct 300",null,"F22","F22","F22","F22",{"$f":"VLOOKUP(+G852,FactSum,2,FALSE)","v":"Secondary Lines - NCP"},"F22","F22","F22",{"$f":"VLOOKUP(+K852,FactSum,2,FALSE)","v":"Secondary Lines - NCP"},"F22",{"$f":"VLOOKUP(+M853,FactSum,2,FALSE)","v":"Max. Schedule Peak"}]
["DS0","Unclassified Dist Sub  - Acct 300",null,"F20","F20","F20","F20",{"$f":"VLOOKUP(+G853,FactSum,2,FALSE)","v":"Max. Schedule Peak"},"F20","F20","F20",{"$f":"VLOOKUP(+K853,FactSum,2,FALSE)","v":"Max. Schedule Peak"},"F20"]
["TOTAL DISTRIBUTION PLANT"]
[]
[]
[]
["A",null,"B","C","C","C","C",null,"C","C","C",null,"C"]
[]
["FERC",null,null,"COS","COS","COS","COS",null,"COS","COS","COS",null,"COS"]
["ACCT",null,"DESCRIPTION ","Factor","Factor","Factor","Factor",null,"Factor","Factor","Factor",null,"Factor"]
["389","Land and Land Rights",null,null,null,null,null,null,null,null,null,null,null,{"$f":"VLOOKUP(+M863,FactSum,2)","v":"100 Summer 100 Winter System Peaks"}]
[null,null,"Situs","F107D",{"$f":"IF(Function=\"gen\",\"F107G\",IF(Function=\"TRN\",\"F107T\",IF(Function=\"DIS\",\"F107D\",IF(Function=\"RETAIL\",\"F107R\",IF(Function=\"MISC\",\"F107M\",\"ERR\")))))","v":"F107D"},{"$f":"IF(Function=\"gen\",\"F107G\",IF(Function=\"TRN\",\"F107T\",IF(Function=\"DIS\",\"F107D\",IF(Function=\"RETAIL\",\"F107R\",IF(Function=\"MISC\",\"F107M\",\"ERR\")))))","v":"F107D"},"F107D","F107D","F107D","F107D","F107D",{"$f":"VLOOKUP(+K863,FactSum,2)","v":"STP - System Trans & Dist Plant"},"F10",{"$f":"VLOOKUP(+M864,FactSum,2)","v":"100 Summer 100 Winter System Peaks"}]
[null,null,"System Generation","F105D",{"$f":"IF(Function=\"gen\",\"F105G\",IF(Function=\"TRN\",\"F105T\",IF(Function=\"DIS\",\"F105D\",IF(Function=\"RETAIL\",\"F105R\",IF(Function=\"MISC\",\"F105M\",\"ERR\")))))","v":"F105D"},{"$f":"IF(Function=\"gen\",\"F105G\",IF(Function=\"TRN\",\"F105T\",IF(Function=\"DIS\",\"F105D\",IF(Function=\"RETAIL\",\"F105R\",IF(Function=\"MISC\",\"F105M\",\"ERR\")))))","v":"F105D"},{"$f":"IF(Function=\"gen\",\"F105G\",IF(Function=\"TRN\",\"F105T\",IF(Function=\"DIS\",\"F105D\",IF(Function=\"RETAIL\",\"F105R\",IF(Function=\"MISC\",\"F105M\",\"ERR\")))))","v":"F105D"},{"$f":"VLOOKUP(+G864,FactSum,2)","v":"100 Summer 100 Winter System Peaks"},{"$f":"IF(Function=\"gen\",\"F105G\",IF(Function=\"TRN\",\"F105T\",IF(Function=\"DIS\",\"F105D\",IF(Function=\"RETAIL\",\"F105R\",IF(Function=\"MISC\",\"F105M\",\"ERR\")))))","v":"F105D"},{"$f":"IF(Function=\"gen\",\"F105G\",IF(Function=\"TRN\",\"F105T\",IF(Function=\"DIS\",\"F105D\",IF(Function=\"RETAIL\",\"F105R\",IF(Function=\"MISC\",\"F105M\",\"ERR\")))))","v":"F105D"},{"$f":"IF(Function=\"gen\",\"F105G\",IF(Function=\"TRN\",\"F105T\",IF(Function=\"DIS\",\"F105D\",IF(Function=\"RETAIL\",\"F105R\",IF(Function=\"MISC\",\"F105M\",\"ERR\")))))","v":"F105D"},{"$f":"VLOOKUP(+K864,FactSum,2)","v":"100 Summer 100 Winter System Peaks"},"F10",{"$f":"VLOOKUP(+M865,FactSum,2)","v":"100 Summer 100 Winter System Peaks"}]
[null,null,"System Overheads","F102D",{"$f":"IF(Function=\"gen\",\"F102G\",IF(Function=\"TRN\",\"F102T\",IF(Function=\"DIS\",\"F102D\",IF(Function=\"RETAIL\",\"F102R\",IF(Function=\"MISC\",\"F102M\",\"ERR\")))))","v":"F102D"},{"$f":"IF(Function=\"gen\",\"F102G\",IF(Function=\"TRN\",\"F102T\",IF(Function=\"DIS\",\"F102D\",IF(Function=\"RETAIL\",\"F102R\",IF(Function=\"MISC\",\"F102M\",\"ERR\")))))","v":"F102D"},{"$f":"IF(Function=\"gen\",\"F102G\",IF(Function=\"TRN\",\"F102T\",IF(Function=\"DIS\",\"F102D\",IF(Function=\"RETAIL\",\"F102R\",IF(Function=\"MISC\",\"F102M\",\"ERR\")))))","v":"F102D"},{"$f":"VLOOKUP(+G865,FactSum,2)","v":"100 Summer 100 Winter System Peaks"},{"$f":"IF(Function=\"gen\",\"F102G\",IF(Function=\"TRN\",\"F102T\",IF(Function=\"DIS\",\"F102D\",IF(Function=\"RETAIL\",\"F102R\",IF(Function=\"MISC\",\"F102M\",\"ERR\")))))","v":"F102D"},{"$f":"IF(Function=\"gen\",\"F102G\",IF(Function=\"TRN\",\"F102T\",IF(Function=\"DIS\",\"F102D\",IF(Function=\"RETAIL\",\"F102R\",IF(Function=\"MISC\",\"F102M\",\"ERR\")))))","v":"F102D"},{"$f":"IF(Function=\"gen\",\"F102G\",IF(Function=\"TRN\",\"F102T\",IF(Function=\"DIS\",\"F102D\",IF(Function=\"RETAIL\",\"F102R\",IF(Function=\"MISC\",\"F102M\",\"ERR\")))))","v":"F102D"},{"$f":"VLOOKUP(+K865,FactSum,2)","v":"100 Summer 100 Winter System Peaks"},"F10",{"$f":"VLOOKUP(+M866,FactSum,2)","v":"Firm Revenues"}]
[null,null,"Customer - System","F42","F42","F42","F42",{"$f":"VLOOKUP(+G866,FactSum,2)","v":"Firm Revenues"},"F42","F42","F42",{"$f":"VLOOKUP(+K866,FactSum,2)","v":"Firm Revenues"},"F42"]
[null,"Total Land & Land Rights"]
[]
["390","Structures and Improvements",null,null,null,null,null,null,null,null,null,null,null,{"$f":"VLOOKUP(+M870,FactSum,2)","v":"100 Summer 100 Winter System Peaks"}]
[null,null,"Situs","F107D",{"$f":"IF(Function=\"gen\",\"F107G\",IF(Function=\"TRN\",\"F107T\",IF(Function=\"DIS\",\"F107D\",IF(Function=\"RETAIL\",\"F107R\",IF(Function=\"MISC\",\"F107M\",\"ERR\")))))","v":"F107D"},{"$f":"IF(Function=\"gen\",\"F107G\",IF(Function=\"TRN\",\"F107T\",IF(Function=\"DIS\",\"F107D\",IF(Function=\"RETAIL\",\"F107R\",IF(Function=\"MISC\",\"F107M\",\"ERR\")))))","v":"F107D"},"F107D","F107D","F107D","F107D","F107D",{"$f":"VLOOKUP(+K870,FactSum,2)","v":"STP - System Trans & Dist Plant"},"F10",{"$f":"VLOOKUP(+M871,FactSum,2)","v":"100 Summer 100 Winter System Peaks"}]
[null,null,"System Generation","F105D",{"$f":"IF(Function=\"gen\",\"F105G\",IF(Function=\"TRN\",\"F105T\",IF(Function=\"DIS\",\"F105D\",IF(Function=\"RETAIL\",\"F105R\",IF(Function=\"MISC\",\"F105M\",\"ERR\")))))","v":"F105D"},{"$f":"IF(Function=\"gen\",\"F105G\",IF(Function=\"TRN\",\"F105T\",IF(Function=\"DIS\",\"F105D\",IF(Function=\"RETAIL\",\"F105R\",IF(Function=\"MISC\",\"F105M\",\"ERR\")))))","v":"F105D"},{"$f":"IF(Function=\"gen\",\"F105G\",IF(Function=\"TRN\",\"F105T\",IF(Function=\"DIS\",\"F105D\",IF(Function=\"RETAIL\",\"F105R\",IF(Function=\"MISC\",\"F105M\",\"ERR\")))))","v":"F105D"},{"$f":"VLOOKUP(+G871,FactSum,2)","v":"100 Summer 100 Winter System Peaks"},{"$f":"IF(Function=\"gen\",\"F105G\",IF(Function=\"TRN\",\"F105T\",IF(Function=\"DIS\",\"F105D\",IF(Function=\"RETAIL\",\"F105R\",IF(Function=\"MISC\",\"F105M\",\"ERR\")))))","v":"F105D"},{"$f":"IF(Function=\"gen\",\"F105G\",IF(Function=\"TRN\",\"F105T\",IF(Function=\"DIS\",\"F105D\",IF(Function=\"RETAIL\",\"F105R\",IF(Function=\"MISC\",\"F105M\",\"ERR\")))))","v":"F105D"},{"$f":"IF(Function=\"gen\",\"F105G\",IF(Function=\"TRN\",\"F105T\",IF(Function=\"DIS\",\"F105D\",IF(Function=\"RETAIL\",\"F105R\",IF(Function=\"MISC\",\"F105M\",\"ERR\")))))","v":"F105D"},{"$f":"VLOOKUP(+K871,FactSum,2)","v":"100 Summer 100 Winter System Peaks"},"F10",{"$f":"VLOOKUP(+M872,FactSum,2)","v":"100 Summer 100 Winter System Peaks"}]
[null,null,"System Overheads","F102D",{"$f":"IF(Function=\"gen\",\"F102G\",IF(Function=\"TRN\",\"F102T\",IF(Function=\"DIS\",\"F102D\",IF(Function=\"RETAIL\",\"F102R\",IF(Function=\"MISC\",\"F102M\",\"ERR\")))))","v":"F102D"},{"$f":"IF(Function=\"gen\",\"F102G\",IF(Function=\"TRN\",\"F102T\",IF(Function=\"DIS\",\"F102D\",IF(Function=\"RETAIL\",\"F102R\",IF(Function=\"MISC\",\"F102M\",\"ERR\")))))","v":"F102D"},{"$f":"IF(Function=\"gen\",\"F102G\",IF(Function=\"TRN\",\"F102T\",IF(Function=\"DIS\",\"F102D\",IF(Function=\"RETAIL\",\"F102R\",IF(Function=\"MISC\",\"F102M\",\"ERR\")))))","v":"F102D"},{"$f":"VLOOKUP(+G872,FactSum,2)","v":"100 Summer 100 Winter System Peaks"},{"$f":"IF(Function=\"gen\",\"F102G\",IF(Function=\"TRN\",\"F102T\",IF(Function=\"DIS\",\"F102D\",IF(Function=\"RETAIL\",\"F102R\",IF(Function=\"MISC\",\"F102M\",\"ERR\")))))","v":"F102D"},{"$f":"IF(Function=\"gen\",\"F102G\",IF(Function=\"TRN\",\"F102T\",IF(Function=\"DIS\",\"F102D\",IF(Function=\"RETAIL\",\"F102R\",IF(Function=\"MISC\",\"F102M\",\"ERR\")))))","v":"F102D"},{"$f":"IF(Function=\"gen\",\"F102G\",IF(Function=\"TRN\",\"F102T\",IF(Function=\"DIS\",\"F102D\",IF(Function=\"RETAIL\",\"F102R\",IF(Function=\"MISC\",\"F102M\",\"ERR\")))))","v":"F102D"},{"$f":"VLOOKUP(+K872,FactSum,2)","v":"100 Summer 100 Winter System Peaks"},"F10",{"$f":"VLOOKUP(+M873,FactSum,2)","v":"Firm Revenues"}]
[null,null,"Customer - System","F42","F42","F42","F42",{"$f":"VLOOKUP(+G873,FactSum,2)","v":"Firm Revenues"},"F42","F42","F42",{"$f":"VLOOKUP(+K873,FactSum,2)","v":"Firm Revenues"},"F42"]
[null,"Total Structures and Improvements"]
[]
["391","Office Furniture & Equipment",null,null,null,null,null,null,null,null,null,null,null,{"$f":"VLOOKUP(+M877,FactSum,2)","v":"100 Summer 100 Winter System Peaks"}]
[null,null,"Situs","F107D",{"$f":"IF(Function=\"gen\",\"F107G\",IF(Function=\"TRN\",\"F107T\",IF(Function=\"DIS\",\"F107D\",IF(Function=\"RETAIL\",\"F107R\",IF(Function=\"MISC\",\"F107M\",\"ERR\")))))","v":"F107D"},{"$f":"IF(Function=\"gen\",\"F107G\",IF(Function=\"TRN\",\"F107T\",IF(Function=\"DIS\",\"F107D\",IF(Function=\"RETAIL\",\"F107R\",IF(Function=\"MISC\",\"F107M\",\"ERR\")))))","v":"F107D"},"F107D","F107D","F107D","F107D","F107D",{"$f":"VLOOKUP(+K877,FactSum,2)","v":"STP - System Trans & Dist Plant"},"F10",{"$f":"VLOOKUP(+M878,FactSum,2)","v":"100 Summer 100 Winter System Peaks"}]
[null,null,"System Generation","F105D",{"$f":"IF(Function=\"gen\",\"F105G\",IF(Function=\"TRN\",\"F105T\",IF(Function=\"DIS\",\"F105D\",IF(Function=\"RETAIL\",\"F105R\",IF(Function=\"MISC\",\"F105M\",\"ERR\")))))","v":"F105D"},{"$f":"IF(Function=\"gen\",\"F105G\",IF(Function=\"TRN\",\"F105T\",IF(Function=\"DIS\",\"F105D\",IF(Function=\"RETAIL\",\"F105R\",IF(Function=\"MISC\",\"F105M\",\"ERR\")))))","v":"F105D"},{"$f":"IF(Function=\"gen\",\"F105G\",IF(Function=\"TRN\",\"F105T\",IF(Function=\"DIS\",\"F105D\",IF(Function=\"RETAIL\",\"F105R\",IF(Function=\"MISC\",\"F105M\",\"ERR\")))))","v":"F105D"},{"$f":"VLOOKUP(+G878,FactSum,2)","v":"100 Summer 100 Winter System Peaks"},{"$f":"IF(Function=\"gen\",\"F105G\",IF(Function=\"TRN\",\"F105T\",IF(Function=\"DIS\",\"F105D\",IF(Function=\"RETAIL\",\"F105R\",IF(Function=\"MISC\",\"F105M\",\"ERR\")))))","v":"F105D"},{"$f":"IF(Function=\"gen\",\"F105G\",IF(Function=\"TRN\",\"F105T\",IF(Function=\"DIS\",\"F105D\",IF(Function=\"RETAIL\",\"F105R\",IF(Function=\"MISC\",\"F105M\",\"ERR\")))))","v":"F105D"},{"$f":"IF(Function=\"gen\",\"F105G\",IF(Function=\"TRN\",\"F105T\",IF(Function=\"DIS\",\"F105D\",IF(Function=\"RETAIL\",\"F105R\",IF(Function=\"MISC\",\"F105M\",\"ERR\")))))","v":"F105D"},{"$f":"VLOOKUP(+K878,FactSum,2)","v":"100 Summer 100 Winter System Peaks"},"F10",{"$f":"VLOOKUP(+M879,FactSum,2)","v":"100 Summer 100 Winter System Peaks"}]
[null,null,"System Overheads","F102D",{"$f":"IF(Function=\"gen\",\"F102G\",IF(Function=\"TRN\",\"F102T\",IF(Function=\"DIS\",\"F102D\",IF(Function=\"RETAIL\",\"F102R\",IF(Function=\"MISC\",\"F102M\",\"ERR\")))))","v":"F102D"},{"$f":"IF(Function=\"gen\",\"F102G\",IF(Function=\"TRN\",\"F102T\",IF(Function=\"DIS\",\"F102D\",IF(Function=\"RETAIL\",\"F102R\",IF(Function=\"MISC\",\"F102M\",\"ERR\")))))","v":"F102D"},{"$f":"IF(Function=\"gen\",\"F102G\",IF(Function=\"TRN\",\"F102T\",IF(Function=\"DIS\",\"F102D\",IF(Function=\"RETAIL\",\"F102R\",IF(Function=\"MISC\",\"F102M\",\"ERR\")))))","v":"F102D"},{"$f":"VLOOKUP(+G879,FactSum,2)","v":"100 Summer 100 Winter System Peaks"},{"$f":"IF(Function=\"gen\",\"F102G\",IF(Function=\"TRN\",\"F102T\",IF(Function=\"DIS\",\"F102D\",IF(Function=\"RETAIL\",\"F102R\",IF(Function=\"MISC\",\"F102M\",\"ERR\")))))","v":"F102D"},{"$f":"IF(Function=\"gen\",\"F102G\",IF(Function=\"TRN\",\"F102T\",IF(Function=\"DIS\",\"F102D\",IF(Function=\"RETAIL\",\"F102R\",IF(Function=\"MISC\",\"F102M\",\"ERR\")))))","v":"F102D"},{"$f":"IF(Function=\"gen\",\"F102G\",IF(Function=\"TRN\",\"F102T\",IF(Function=\"DIS\",\"F102D\",IF(Function=\"RETAIL\",\"F102R\",IF(Function=\"MISC\",\"F102M\",\"ERR\")))))","v":"F102D"},{"$f":"VLOOKUP(+K879,FactSum,2)","v":"100 Summer 100 Winter System Peaks"},"F10",{"$f":"VLOOKUP(+M880,FactSum,2)","v":"Firm Revenues"}]
[null,null,"Customer - System","F42","F42","F42","F42",{"$f":"VLOOKUP(+G880,FactSum,2)","v":"Firm Revenues"},"F42","F42","F42",{"$f":"VLOOKUP(+K880,FactSum,2)","v":"Firm Revenues"},"F42",{"$f":"VLOOKUP(+M881,FactSum,2)","v":"Firm Revenues"}]
[null,null,"Energy","F10",{"$f":"IF(Classification=\"DEMAND\",\"F12\",IF(Classification=\"ENERGY\",\"F30\",\"F10\"))","v":"F10"},"F30",{"$f":"IF(Classification=\"DEMAND\",\"F12\",IF(Classification=\"ENERGY\",\"F30\",\"F10\"))","v":"F10"},{"$f":"VLOOKUP(+G881,FactSum,2)","v":"100 Summer 100 Winter System Peaks"},"F30","F30","F30",{"$f":"VLOOKUP(+K881,FactSum,2)","v":"Firm Revenues"},"F30"]
[null,null,"SSGCH","F10",{"$f":"IF(Classification=\"DEMAND\",\"F12\",IF(Classification=\"ENERGY\",\"F30\",\"F10\"))","v":"F10"},{"$f":"IF(Classification=\"DEMAND\",\"F15\",IF(Classification=\"ENERGY\",\"F33\",\"F16\"))","v":"F16"},{"$f":"IF(Function=\"gen\",\"F105G\",IF(Function=\"TRN\",\"F105T\",IF(Function=\"DIS\",\"F105D\",IF(Function=\"RETAIL\",\"F105R\",IF(Function=\"MISC\",\"F105M\",\"ERR\")))))","v":"F105D"},null,{"$f":"IF(Function=\"gen\",\"F105G\",IF(Function=\"TRN\",\"F105T\",IF(Function=\"DIS\",\"F105D\",IF(Function=\"RETAIL\",\"F105R\",IF(Function=\"MISC\",\"F105M\",\"ERR\")))))","v":"F105D"},"F105D","F105D","F15","F10"]
[null,null,"SSGCT","F10",{"$f":"IF(Classification=\"DEMAND\",\"F12\",IF(Classification=\"ENERGY\",\"F30\",\"F10\"))","v":"F10"},{"$f":"IF(Classification=\"DEMAND\",\"F13\",IF(Classification=\"ENERGY\",\"F32\",\"F14\"))","v":"F14"},{"$f":"IF(Function=\"gen\",\"F105G\",IF(Function=\"TRN\",\"F105T\",IF(Function=\"DIS\",\"F105D\",IF(Function=\"RETAIL\",\"F105R\",IF(Function=\"MISC\",\"F105M\",\"ERR\")))))","v":"F105D"},null,"F105D","F105D","F105D","F15","F10"]
[null,"Total Office Furniture & Equipment"]
[]
["392","Transportation Equipment",null,null,null,null,null,null,null,null,null,null,null,{"$f":"VLOOKUP(+M887,FactSum,2)","v":"100 Summer 100 Winter System Peaks"}]
[null,null,"Situs","F107D",{"$f":"IF(Function=\"gen\",\"F107G\",IF(Function=\"TRN\",\"F107T\",IF(Function=\"DIS\",\"F107D\",IF(Function=\"RETAIL\",\"F107R\",IF(Function=\"MISC\",\"F107M\",\"ERR\")))))","v":"F107D"},{"$f":"IF(Function=\"gen\",\"F107G\",IF(Function=\"TRN\",\"F107T\",IF(Function=\"DIS\",\"F107D\",IF(Function=\"RETAIL\",\"F107R\",IF(Function=\"MISC\",\"F107M\",\"ERR\")))))","v":"F107D"},"F107D","F107D","F107D","F107D","F107D",{"$f":"VLOOKUP(+K887,FactSum,2)","v":"STP - System Trans & Dist Plant"},"F10",{"$f":"VLOOKUP(+M888,FactSum,2)","v":"100 Summer 100 Winter System Peaks"}]
[null,null,"System Generation","F105D",{"$f":"IF(Function=\"gen\",\"F105G\",IF(Function=\"TRN\",\"F105T\",IF(Function=\"DIS\",\"F105D\",IF(Function=\"RETAIL\",\"F105R\",IF(Function=\"MISC\",\"F105M\",\"ERR\")))))","v":"F105D"},{"$f":"IF(Function=\"gen\",\"F105G\",IF(Function=\"TRN\",\"F105T\",IF(Function=\"DIS\",\"F105D\",IF(Function=\"RETAIL\",\"F105R\",IF(Function=\"MISC\",\"F105M\",\"ERR\")))))","v":"F105D"},{"$f":"IF(Function=\"gen\",\"F105G\",IF(Function=\"TRN\",\"F105T\",IF(Function=\"DIS\",\"F105D\",IF(Function=\"RETAIL\",\"F105R\",IF(Function=\"MISC\",\"F105M\",\"ERR\")))))","v":"F105D"},{"$f":"VLOOKUP(+G888,FactSum,2)","v":"100 Summer 100 Winter System Peaks"},{"$f":"IF(Function=\"gen\",\"F105G\",IF(Function=\"TRN\",\"F105T\",IF(Function=\"DIS\",\"F105D\",IF(Function=\"RETAIL\",\"F105R\",IF(Function=\"MISC\",\"F105M\",\"ERR\")))))","v":"F105D"},{"$f":"IF(Function=\"gen\",\"F105G\",IF(Function=\"TRN\",\"F105T\",IF(Function=\"DIS\",\"F105D\",IF(Function=\"RETAIL\",\"F105R\",IF(Function=\"MISC\",\"F105M\",\"ERR\")))))","v":"F105D"},{"$f":"IF(Function=\"gen\",\"F105G\",IF(Function=\"TRN\",\"F105T\",IF(Function=\"DIS\",\"F105D\",IF(Function=\"RETAIL\",\"F105R\",IF(Function=\"MISC\",\"F105M\",\"ERR\")))))","v":"F105D"},{"$f":"VLOOKUP(+K888,FactSum,2)","v":"100 Summer 100 Winter System Peaks"},"F10",{"$f":"VLOOKUP(+M889,FactSum,2)","v":"100 Summer 100 Winter System Peaks"}]
[null,null,"System Overheads","F102D",{"$f":"IF(Function=\"gen\",\"F102G\",IF(Function=\"TRN\",\"F102T\",IF(Function=\"DIS\",\"F102D\",IF(Function=\"RETAIL\",\"F102R\",IF(Function=\"MISC\",\"F102M\",\"ERR\")))))","v":"F102D"},{"$f":"IF(Function=\"gen\",\"F102G\",IF(Function=\"TRN\",\"F102T\",IF(Function=\"DIS\",\"F102D\",IF(Function=\"RETAIL\",\"F102R\",IF(Function=\"MISC\",\"F102M\",\"ERR\")))))","v":"F102D"},{"$f":"IF(Function=\"gen\",\"F102G\",IF(Function=\"TRN\",\"F102T\",IF(Function=\"DIS\",\"F102D\",IF(Function=\"RETAIL\",\"F102R\",IF(Function=\"MISC\",\"F102M\",\"ERR\")))))","v":"F102D"},{"$f":"VLOOKUP(+G889,FactSum,2)","v":"100 Summer 100 Winter System Peaks"},{"$f":"IF(Function=\"gen\",\"F102G\",IF(Function=\"TRN\",\"F102T\",IF(Function=\"DIS\",\"F102D\",IF(Function=\"RETAIL\",\"F102R\",IF(Function=\"MISC\",\"F102M\",\"ERR\")))))","v":"F102D"},{"$f":"IF(Function=\"gen\",\"F102G\",IF(Function=\"TRN\",\"F102T\",IF(Function=\"DIS\",\"F102D\",IF(Function=\"RETAIL\",\"F102R\",IF(Function=\"MISC\",\"F102M\",\"ERR\")))))","v":"F102D"},{"$f":"IF(Function=\"gen\",\"F102G\",IF(Function=\"TRN\",\"F102T\",IF(Function=\"DIS\",\"F102D\",IF(Function=\"RETAIL\",\"F102R\",IF(Function=\"MISC\",\"F102M\",\"ERR\")))))","v":"F102D"},{"$f":"VLOOKUP(+K889,FactSum,2)","v":"100 Summer 100 Winter System Peaks"},"F10",{"$f":"VLOOKUP(+M890,FactSum,2)","v":"Firm Revenues"}]
[null,null,"Customer - System","F42","F42","F42","F42",{"$f":"VLOOKUP(+G890,FactSum,2)","v":"Firm Revenues"},"F42","F42","F42",{"$f":"VLOOKUP(+K890,FactSum,2)","v":"Firm Revenues"},"F42",{"$f":"VLOOKUP(+M891,FactSum,2)","v":"Firm Revenues"}]
[null,null,"Energy","F10",{"$f":"IF(Classification=\"DEMAND\",\"F12\",IF(Classification=\"ENERGY\",\"F30\",\"F10\"))","v":"F10"},"F30",{"$f":"IF(Classification=\"DEMAND\",\"F12\",IF(Classification=\"ENERGY\",\"F30\",\"F10\"))","v":"F10"},{"$f":"VLOOKUP(+G891,FactSum,2)","v":"100 Summer 100 Winter System Peaks"},"F30","F30","F30",{"$f":"VLOOKUP(+K891,FactSum,2)","v":"Firm Revenues"},"F30"]
[null,null,"SSGCH","F10",{"$f":"IF(Classification=\"DEMAND\",\"F12\",IF(Classification=\"ENERGY\",\"F30\",\"F10\"))","v":"F10"},{"$f":"IF(Classification=\"DEMAND\",\"F15\",IF(Classification=\"ENERGY\",\"F33\",\"F16\"))","v":"F16"},{"$f":"IF(Function=\"gen\",\"F105G\",IF(Function=\"TRN\",\"F105T\",IF(Function=\"DIS\",\"F105D\",IF(Function=\"RETAIL\",\"F105R\",IF(Function=\"MISC\",\"F105M\",\"ERR\")))))","v":"F105D"},null,{"$f":"IF(Function=\"gen\",\"F105G\",IF(Function=\"TRN\",\"F105T\",IF(Function=\"DIS\",\"F105D\",IF(Function=\"RETAIL\",\"F105R\",IF(Function=\"MISC\",\"F105M\",\"ERR\")))))","v":"F105D"},"F105D","F105D","F15","F10"]
[null,null,"SSGCT","F10",{"$f":"IF(Classification=\"DEMAND\",\"F12\",IF(Classification=\"ENERGY\",\"F30\",\"F10\"))","v":"F10"},{"$f":"IF(Classification=\"DEMAND\",\"F13\",IF(Classification=\"ENERGY\",\"F32\",\"F14\"))","v":"F14"},{"$f":"IF(Function=\"gen\",\"F105G\",IF(Function=\"TRN\",\"F105T\",IF(Function=\"DIS\",\"F105D\",IF(Function=\"RETAIL\",\"F105R\",IF(Function=\"MISC\",\"F105M\",\"ERR\")))))","v":"F105D"},null,"F105D","F105D","F105D","F15","F10"]
[null,"Total Transportation Equipment"]
[]
["393","Stores Equipment",null,null,null,null,null,null,null,null,null,null,null,{"$f":"VLOOKUP(+M897,FactSum,2)","v":"100 Summer 100 Winter System Peaks"}]
[null,null,"Situs","F107D",{"$f":"IF(Function=\"gen\",\"F107G\",IF(Function=\"TRN\",\"F107T\",IF(Function=\"DIS\",\"F107D\",IF(Function=\"RETAIL\",\"F107R\",IF(Function=\"MISC\",\"F107M\",\"ERR\")))))","v":"F107D"},{"$f":"IF(Function=\"gen\",\"F107G\",IF(Function=\"TRN\",\"F107T\",IF(Function=\"DIS\",\"F107D\",IF(Function=\"RETAIL\",\"F107R\",IF(Function=\"MISC\",\"F107M\",\"ERR\")))))","v":"F107D"},"F107D","F107D","F107D","F107D","F107D",{"$f":"VLOOKUP(+K897,FactSum,2)","v":"STP - System Trans & Dist Plant"},"F10",{"$f":"VLOOKUP(+M898,FactSum,2)","v":"100 Summer 100 Winter System Peaks"}]
[null,null,"System Generation","F105D",{"$f":"IF(Function=\"gen\",\"F105G\",IF(Function=\"TRN\",\"F105T\",IF(Function=\"DIS\",\"F105D\",IF(Function=\"RETAIL\",\"F105R\",IF(Function=\"MISC\",\"F105M\",\"ERR\")))))","v":"F105D"},{"$f":"IF(Function=\"gen\",\"F105G\",IF(Function=\"TRN\",\"F105T\",IF(Function=\"DIS\",\"F105D\",IF(Function=\"RETAIL\",\"F105R\",IF(Function=\"MISC\",\"F105M\",\"ERR\")))))","v":"F105D"},{"$f":"IF(Function=\"gen\",\"F105G\",IF(Function=\"TRN\",\"F105T\",IF(Function=\"DIS\",\"F105D\",IF(Function=\"RETAIL\",\"F105R\",IF(Function=\"MISC\",\"F105M\",\"ERR\")))))","v":"F105D"},{"$f":"VLOOKUP(+G898,FactSum,2)","v":"100 Summer 100 Winter System Peaks"},{"$f":"IF(Function=\"gen\",\"F105G\",IF(Function=\"TRN\",\"F105T\",IF(Function=\"DIS\",\"F105D\",IF(Function=\"RETAIL\",\"F105R\",IF(Function=\"MISC\",\"F105M\",\"ERR\")))))","v":"F105D"},{"$f":"IF(Function=\"gen\",\"F105G\",IF(Function=\"TRN\",\"F105T\",IF(Function=\"DIS\",\"F105D\",IF(Function=\"RETAIL\",\"F105R\",IF(Function=\"MISC\",\"F105M\",\"ERR\")))))","v":"F105D"},{"$f":"IF(Function=\"gen\",\"F105G\",IF(Function=\"TRN\",\"F105T\",IF(Function=\"DIS\",\"F105D\",IF(Function=\"RETAIL\",\"F105R\",IF(Function=\"MISC\",\"F105M\",\"ERR\")))))","v":"F105D"},{"$f":"VLOOKUP(+K898,FactSum,2)","v":"100 Summer 100 Winter System Peaks"},"F10",{"$f":"VLOOKUP(+M899,FactSum,2)","v":"100 Summer 100 Winter System Peaks"}]
[null,null,"System Overheads","F102D",{"$f":"IF(Function=\"gen\",\"F102G\",IF(Function=\"TRN\",\"F102T\",IF(Function=\"DIS\",\"F102D\",IF(Function=\"RETAIL\",\"F102R\",IF(Function=\"MISC\",\"F102M\",\"ERR\")))))","v":"F102D"},{"$f":"IF(Function=\"gen\",\"F102G\",IF(Function=\"TRN\",\"F102T\",IF(Function=\"DIS\",\"F102D\",IF(Function=\"RETAIL\",\"F102R\",IF(Function=\"MISC\",\"F102M\",\"ERR\")))))","v":"F102D"},{"$f":"IF(Function=\"gen\",\"F102G\",IF(Function=\"TRN\",\"F102T\",IF(Function=\"DIS\",\"F102D\",IF(Function=\"RETAIL\",\"F102R\",IF(Function=\"MISC\",\"F102M\",\"ERR\")))))","v":"F102D"},{"$f":"VLOOKUP(+G899,FactSum,2)","v":"100 Summer 100 Winter System Peaks"},{"$f":"IF(Function=\"gen\",\"F102G\",IF(Function=\"TRN\",\"F102T\",IF(Function=\"DIS\",\"F102D\",IF(Function=\"RETAIL\",\"F102R\",IF(Function=\"MISC\",\"F102M\",\"ERR\")))))","v":"F102D"},{"$f":"IF(Function=\"gen\",\"F102G\",IF(Function=\"TRN\",\"F102T\",IF(Function=\"DIS\",\"F102D\",IF(Function=\"RETAIL\",\"F102R\",IF(Function=\"MISC\",\"F102M\",\"ERR\")))))","v":"F102D"},{"$f":"IF(Function=\"gen\",\"F102G\",IF(Function=\"TRN\",\"F102T\",IF(Function=\"DIS\",\"F102D\",IF(Function=\"RETAIL\",\"F102R\",IF(Function=\"MISC\",\"F102M\",\"ERR\")))))","v":"F102D"},{"$f":"VLOOKUP(+K899,FactSum,2)","v":"100 Summer 100 Winter System Peaks"},"F10"]
[null,null,"SSGCT","F10",{"$f":"IF(Classification=\"DEMAND\",\"F12\",IF(Classification=\"ENERGY\",\"F30\",\"F10\"))","v":"F10"},{"$f":"IF(Classification=\"DEMAND\",\"F13\",IF(Classification=\"ENERGY\",\"F32\",\"F14\"))","v":"F14"},{"$f":"IF(Function=\"gen\",\"F105G\",IF(Function=\"TRN\",\"F105T\",IF(Function=\"DIS\",\"F105D\",IF(Function=\"RETAIL\",\"F105R\",IF(Function=\"MISC\",\"F105M\",\"ERR\")))))","v":"F105D"},{"$f":"VLOOKUP(+G900,FactSum,2)","v":"100 Summer 100 Winter System Peaks"},{"$f":"IF(Function=\"gen\",\"F105G\",IF(Function=\"TRN\",\"F105T\",IF(Function=\"DIS\",\"F105D\",IF(Function=\"RETAIL\",\"F105R\",IF(Function=\"MISC\",\"F105M\",\"ERR\")))))","v":"F105D"},{"$f":"IF(Function=\"gen\",\"F105G\",IF(Function=\"TRN\",\"F105T\",IF(Function=\"DIS\",\"F105D\",IF(Function=\"RETAIL\",\"F105R\",IF(Function=\"MISC\",\"F105M\",\"ERR\")))))","v":"F105D"},{"$f":"IF(Function=\"gen\",\"F105G\",IF(Function=\"TRN\",\"F105T\",IF(Function=\"DIS\",\"F105D\",IF(Function=\"RETAIL\",\"F105R\",IF(Function=\"MISC\",\"F105M\",\"ERR\")))))","v":"F105D"},{"$f":"VLOOKUP(+K900,FactSum,2)","v":"100 Summer 100 Winter System Peaks"},"F10"]
[null,"Total Stores Equipment"]
[]
["394","Tools, Shop & Garage Equipment",null,null,null,null,null,null,null,null,null,null,null,{"$f":"VLOOKUP(+M904,FactSum,2)","v":"100 Summer 100 Winter System Peaks"}]
[null,null,"Situs","F107D",{"$f":"IF(Function=\"gen\",\"F107G\",IF(Function=\"TRN\",\"F107T\",IF(Function=\"DIS\",\"F107D\",IF(Function=\"RETAIL\",\"F107R\",IF(Function=\"MISC\",\"F107M\",\"ERR\")))))","v":"F107D"},{"$f":"IF(Function=\"gen\",\"F107G\",IF(Function=\"TRN\",\"F107T\",IF(Function=\"DIS\",\"F107D\",IF(Function=\"RETAIL\",\"F107R\",IF(Function=\"MISC\",\"F107M\",\"ERR\")))))","v":"F107D"},"F107D","F107D","F107D","F107D","F107D",{"$f":"VLOOKUP(+K904,FactSum,2)","v":"STP - System Trans & Dist Plant"},"F10",{"$f":"VLOOKUP(+M905,FactSum,2)","v":"100 Summer 100 Winter System Peaks"}]
[null,null,"System Generation","F105D",{"$f":"IF(Function=\"gen\",\"F105G\",IF(Function=\"TRN\",\"F105T\",IF(Function=\"DIS\",\"F105D\",IF(Function=\"RETAIL\",\"F105R\",IF(Function=\"MISC\",\"F105M\",\"ERR\")))))","v":"F105D"},{"$f":"IF(Function=\"gen\",\"F105G\",IF(Function=\"TRN\",\"F105T\",IF(Function=\"DIS\",\"F105D\",IF(Function=\"RETAIL\",\"F105R\",IF(Function=\"MISC\",\"F105M\",\"ERR\")))))","v":"F105D"},{"$f":"IF(Function=\"gen\",\"F105G\",IF(Function=\"TRN\",\"F105T\",IF(Function=\"DIS\",\"F105D\",IF(Function=\"RETAIL\",\"F105R\",IF(Function=\"MISC\",\"F105M\",\"ERR\")))))","v":"F105D"},{"$f":"VLOOKUP(+G905,FactSum,2)","v":"100 Summer 100 Winter System Peaks"},{"$f":"IF(Function=\"gen\",\"F105G\",IF(Function=\"TRN\",\"F105T\",IF(Function=\"DIS\",\"F105D\",IF(Function=\"RETAIL\",\"F105R\",IF(Function=\"MISC\",\"F105M\",\"ERR\")))))","v":"F105D"},{"$f":"IF(Function=\"gen\",\"F105G\",IF(Function=\"TRN\",\"F105T\",IF(Function=\"DIS\",\"F105D\",IF(Function=\"RETAIL\",\"F105R\",IF(Function=\"MISC\",\"F105M\",\"ERR\")))))","v":"F105D"},{"$f":"IF(Function=\"gen\",\"F105G\",IF(Function=\"TRN\",\"F105T\",IF(Function=\"DIS\",\"F105D\",IF(Function=\"RETAIL\",\"F105R\",IF(Function=\"MISC\",\"F105M\",\"ERR\")))))","v":"F105D"},{"$f":"VLOOKUP(+K905,FactSum,2)","v":"100 Summer 100 Winter System Peaks"},"F10",{"$f":"VLOOKUP(+M906,FactSum,2)","v":"100 Summer 100 Winter System Peaks"}]
[null,null,"System Overheads","F102D",{"$f":"IF(Function=\"gen\",\"F102G\",IF(Function=\"TRN\",\"F102T\",IF(Function=\"DIS\",\"F102D\",IF(Function=\"RETAIL\",\"F102R\",IF(Function=\"MISC\",\"F102M\",\"ERR\")))))","v":"F102D"},{"$f":"IF(Function=\"gen\",\"F102G\",IF(Function=\"TRN\",\"F102T\",IF(Function=\"DIS\",\"F102D\",IF(Function=\"RETAIL\",\"F102R\",IF(Function=\"MISC\",\"F102M\",\"ERR\")))))","v":"F102D"},{"$f":"IF(Function=\"gen\",\"F102G\",IF(Function=\"TRN\",\"F102T\",IF(Function=\"DIS\",\"F102D\",IF(Function=\"RETAIL\",\"F102R\",IF(Function=\"MISC\",\"F102M\",\"ERR\")))))","v":"F102D"},{"$f":"VLOOKUP(+G906,FactSum,2)","v":"100 Summer 100 Winter System Peaks"},{"$f":"IF(Function=\"gen\",\"F102G\",IF(Function=\"TRN\",\"F102T\",IF(Function=\"DIS\",\"F102D\",IF(Function=\"RETAIL\",\"F102R\",IF(Function=\"MISC\",\"F102M\",\"ERR\")))))","v":"F102D"},{"$f":"IF(Function=\"gen\",\"F102G\",IF(Function=\"TRN\",\"F102T\",IF(Function=\"DIS\",\"F102D\",IF(Function=\"RETAIL\",\"F102R\",IF(Function=\"MISC\",\"F102M\",\"ERR\")))))","v":"F102D"},{"$f":"IF(Function=\"gen\",\"F102G\",IF(Function=\"TRN\",\"F102T\",IF(Function=\"DIS\",\"F102D\",IF(Function=\"RETAIL\",\"F102R\",IF(Function=\"MISC\",\"F102M\",\"ERR\")))))","v":"F102D"},{"$f":"VLOOKUP(+K906,FactSum,2)","v":"100 Summer 100 Winter System Peaks"},"F10",{"$f":"VLOOKUP(+M907,FactSum,2)","v":"Firm Revenues"}]
[null,null,"Energy","F10",{"$f":"IF(Classification=\"DEMAND\",\"F12\",IF(Classification=\"ENERGY\",\"F30\",\"F10\"))","v":"F10"},"F30",{"$f":"IF(Classification=\"DEMAND\",\"F12\",IF(Classification=\"ENERGY\",\"F30\",\"F10\"))","v":"F10"},{"$f":"VLOOKUP(+G907,FactSum,2)","v":"100 Summer 100 Winter System Peaks"},"F30","F30","F30",{"$f":"VLOOKUP(+K907,FactSum,2)","v":"Firm Revenues"},"F30"]
[null,null,"SSGCH","F10",{"$f":"IF(Classification=\"DEMAND\",\"F12\",IF(Classification=\"ENERGY\",\"F30\",\"F10\"))","v":"F10"},{"$f":"IF(Classification=\"DEMAND\",\"F15\",IF(Classification=\"ENERGY\",\"F33\",\"F16\"))","v":"F16"},{"$f":"IF(Function=\"gen\",\"F105G\",IF(Function=\"TRN\",\"F105T\",IF(Function=\"DIS\",\"F105D\",IF(Function=\"RETAIL\",\"F105R\",IF(Function=\"MISC\",\"F105M\",\"ERR\")))))","v":"F105D"},null,{"$f":"IF(Function=\"gen\",\"F105G\",IF(Function=\"TRN\",\"F105T\",IF(Function=\"DIS\",\"F105D\",IF(Function=\"RETAIL\",\"F105R\",IF(Function=\"MISC\",\"F105M\",\"ERR\")))))","v":"F105D"},"F105D","F105D","F15","F10"]
[null,null,"SSGCT","F10",{"$f":"IF(Classification=\"DEMAND\",\"F12\",IF(Classification=\"ENERGY\",\"F30\",\"F10\"))","v":"F10"},{"$f":"IF(Classification=\"DEMAND\",\"F13\",IF(Classification=\"ENERGY\",\"F32\",\"F14\"))","v":"F14"},{"$f":"IF(Function=\"gen\",\"F105G\",IF(Function=\"TRN\",\"F105T\",IF(Function=\"DIS\",\"F105D\",IF(Function=\"RETAIL\",\"F105R\",IF(Function=\"MISC\",\"F105M\",\"ERR\")))))","v":"F105D"},null,"F105D","F105D","F105D","F15","F10"]
[null,"Total Tools, Shop & Garage Equipment"]
[]
["395","Laboratory Equipment",null,null,null,null,null,null,null,null,null,null,null,{"$f":"VLOOKUP(+M913,FactSum,2)","v":"100 Summer 100 Winter System Peaks"}]
[null,null,"Situs","F107D",{"$f":"IF(Function=\"gen\",\"F107G\",IF(Function=\"TRN\",\"F107T\",IF(Function=\"DIS\",\"F107D\",IF(Function=\"RETAIL\",\"F107R\",IF(Function=\"MISC\",\"F107M\",\"ERR\")))))","v":"F107D"},{"$f":"IF(Function=\"gen\",\"F107G\",IF(Function=\"TRN\",\"F107T\",IF(Function=\"DIS\",\"F107D\",IF(Function=\"RETAIL\",\"F107R\",IF(Function=\"MISC\",\"F107M\",\"ERR\")))))","v":"F107D"},"F107D","F107D","F107D","F107D","F107D",{"$f":"VLOOKUP(+K913,FactSum,2)","v":"STP - System Trans & Dist Plant"},"F10",{"$f":"VLOOKUP(+M914,FactSum,2)","v":"100 Summer 100 Winter System Peaks"}]
[null,null,"System Generation","F105D",{"$f":"IF(Function=\"gen\",\"F105G\",IF(Function=\"TRN\",\"F105T\",IF(Function=\"DIS\",\"F105D\",IF(Function=\"RETAIL\",\"F105R\",IF(Function=\"MISC\",\"F105M\",\"ERR\")))))","v":"F105D"},{"$f":"IF(Function=\"gen\",\"F105G\",IF(Function=\"TRN\",\"F105T\",IF(Function=\"DIS\",\"F105D\",IF(Function=\"RETAIL\",\"F105R\",IF(Function=\"MISC\",\"F105M\",\"ERR\")))))","v":"F105D"},{"$f":"IF(Function=\"gen\",\"F105G\",IF(Function=\"TRN\",\"F105T\",IF(Function=\"DIS\",\"F105D\",IF(Function=\"RETAIL\",\"F105R\",IF(Function=\"MISC\",\"F105M\",\"ERR\")))))","v":"F105D"},{"$f":"VLOOKUP(+G914,FactSum,2)","v":"100 Summer 100 Winter System Peaks"},{"$f":"IF(Function=\"gen\",\"F105G\",IF(Function=\"TRN\",\"F105T\",IF(Function=\"DIS\",\"F105D\",IF(Function=\"RETAIL\",\"F105R\",IF(Function=\"MISC\",\"F105M\",\"ERR\")))))","v":"F105D"},{"$f":"IF(Function=\"gen\",\"F105G\",IF(Function=\"TRN\",\"F105T\",IF(Function=\"DIS\",\"F105D\",IF(Function=\"RETAIL\",\"F105R\",IF(Function=\"MISC\",\"F105M\",\"ERR\")))))","v":"F105D"},{"$f":"IF(Function=\"gen\",\"F105G\",IF(Function=\"TRN\",\"F105T\",IF(Function=\"DIS\",\"F105D\",IF(Function=\"RETAIL\",\"F105R\",IF(Function=\"MISC\",\"F105M\",\"ERR\")))))","v":"F105D"},{"$f":"VLOOKUP(+K914,FactSum,2)","v":"100 Summer 100 Winter System Peaks"},"F10",{"$f":"VLOOKUP(+M915,FactSum,2)","v":"100 Summer 100 Winter System Peaks"}]
[null,null,"System Overheads","F102D",{"$f":"IF(Function=\"gen\",\"F102G\",IF(Function=\"TRN\",\"F102T\",IF(Function=\"DIS\",\"F102D\",IF(Function=\"RETAIL\",\"F102R\",IF(Function=\"MISC\",\"F102M\",\"ERR\")))))","v":"F102D"},{"$f":"IF(Function=\"gen\",\"F102G\",IF(Function=\"TRN\",\"F102T\",IF(Function=\"DIS\",\"F102D\",IF(Function=\"RETAIL\",\"F102R\",IF(Function=\"MISC\",\"F102M\",\"ERR\")))))","v":"F102D"},{"$f":"IF(Function=\"gen\",\"F102G\",IF(Function=\"TRN\",\"F102T\",IF(Function=\"DIS\",\"F102D\",IF(Function=\"RETAIL\",\"F102R\",IF(Function=\"MISC\",\"F102M\",\"ERR\")))))","v":"F102D"},{"$f":"VLOOKUP(+G915,FactSum,2)","v":"100 Summer 100 Winter System Peaks"},{"$f":"IF(Function=\"gen\",\"F102G\",IF(Function=\"TRN\",\"F102T\",IF(Function=\"DIS\",\"F102D\",IF(Function=\"RETAIL\",\"F102R\",IF(Function=\"MISC\",\"F102M\",\"ERR\")))))","v":"F102D"},{"$f":"IF(Function=\"gen\",\"F102G\",IF(Function=\"TRN\",\"F102T\",IF(Function=\"DIS\",\"F102D\",IF(Function=\"RETAIL\",\"F102R\",IF(Function=\"MISC\",\"F102M\",\"ERR\")))))","v":"F102D"},{"$f":"IF(Function=\"gen\",\"F102G\",IF(Function=\"TRN\",\"F102T\",IF(Function=\"DIS\",\"F102D\",IF(Function=\"RETAIL\",\"F102R\",IF(Function=\"MISC\",\"F102M\",\"ERR\")))))","v":"F102D"},{"$f":"VLOOKUP(+K915,FactSum,2)","v":"100 Summer 100 Winter System Peaks"},"F10",{"$f":"VLOOKUP(+M916,FactSum,2)","v":"Firm Revenues"}]
[null,null,"Energy","F10",{"$f":"IF(Classification=\"DEMAND\",\"F12\",IF(Classification=\"ENERGY\",\"F30\",\"F10\"))","v":"F10"},"F30",{"$f":"IF(Classification=\"DEMAND\",\"F12\",IF(Classification=\"ENERGY\",\"F30\",\"F10\"))","v":"F10"},{"$f":"VLOOKUP(+G916,FactSum,2)","v":"100 Summer 100 Winter System Peaks"},"F30","F30","F30",{"$f":"VLOOKUP(+K916,FactSum,2)","v":"Firm Revenues"},"F30"]
[null,null,"SSGCH","F10",{"$f":"IF(Classification=\"DEMAND\",\"F12\",IF(Classification=\"ENERGY\",\"F30\",\"F10\"))","v":"F10"},{"$f":"IF(Classification=\"DEMAND\",\"F15\",IF(Classification=\"ENERGY\",\"F33\",\"F16\"))","v":"F16"},{"$f":"IF(Function=\"gen\",\"F105G\",IF(Function=\"TRN\",\"F105T\",IF(Function=\"DIS\",\"F105D\",IF(Function=\"RETAIL\",\"F105R\",IF(Function=\"MISC\",\"F105M\",\"ERR\")))))","v":"F105D"},null,{"$f":"IF(Function=\"gen\",\"F105G\",IF(Function=\"TRN\",\"F105T\",IF(Function=\"DIS\",\"F105D\",IF(Function=\"RETAIL\",\"F105R\",IF(Function=\"MISC\",\"F105M\",\"ERR\")))))","v":"F105D"},"F105D","F105D","F15","F10"]
[null,null,"SSGCT","F10",{"$f":"IF(Classification=\"DEMAND\",\"F12\",IF(Classification=\"ENERGY\",\"F30\",\"F10\"))","v":"F10"},{"$f":"IF(Classification=\"DEMAND\",\"F13\",IF(Classification=\"ENERGY\",\"F32\",\"F14\"))","v":"F14"},{"$f":"IF(Function=\"gen\",\"F105G\",IF(Function=\"TRN\",\"F105T\",IF(Function=\"DIS\",\"F105D\",IF(Function=\"RETAIL\",\"F105R\",IF(Function=\"MISC\",\"F105M\",\"ERR\")))))","v":"F105D"},null,"F105D","F105D","F105D","F15","F10"]
[null,"Total Laboratory Equipment"]
[]
["396","Power Operated Equipment",null,null,null,null,null,null,null,null,null,null,null,{"$f":"VLOOKUP(+M922,FactSum,2)","v":"100 Summer 100 Winter System Peaks"}]
[null,null,"Situs","F107D",{"$f":"IF(Function=\"gen\",\"F107G\",IF(Function=\"TRN\",\"F107T\",IF(Function=\"DIS\",\"F107D\",IF(Function=\"RETAIL\",\"F107R\",IF(Function=\"MISC\",\"F107M\",\"ERR\")))))","v":"F107D"},{"$f":"IF(Function=\"gen\",\"F107G\",IF(Function=\"TRN\",\"F107T\",IF(Function=\"DIS\",\"F107D\",IF(Function=\"RETAIL\",\"F107R\",IF(Function=\"MISC\",\"F107M\",\"ERR\")))))","v":"F107D"},"F107D","F107D","F107D","F107D","F107D",{"$f":"VLOOKUP(+K922,FactSum,2)","v":"STP - System Trans & Dist Plant"},"F10",{"$f":"VLOOKUP(+M923,FactSum,2)","v":"100 Summer 100 Winter System Peaks"}]
[null,null,"System Generation","F105D",{"$f":"IF(Function=\"gen\",\"F105G\",IF(Function=\"TRN\",\"F105T\",IF(Function=\"DIS\",\"F105D\",IF(Function=\"RETAIL\",\"F105R\",IF(Function=\"MISC\",\"F105M\",\"ERR\")))))","v":"F105D"},{"$f":"IF(Function=\"gen\",\"F105G\",IF(Function=\"TRN\",\"F105T\",IF(Function=\"DIS\",\"F105D\",IF(Function=\"RETAIL\",\"F105R\",IF(Function=\"MISC\",\"F105M\",\"ERR\")))))","v":"F105D"},{"$f":"IF(Function=\"gen\",\"F105G\",IF(Function=\"TRN\",\"F105T\",IF(Function=\"DIS\",\"F105D\",IF(Function=\"RETAIL\",\"F105R\",IF(Function=\"MISC\",\"F105M\",\"ERR\")))))","v":"F105D"},{"$f":"VLOOKUP(+G923,FactSum,2)","v":"100 Summer 100 Winter System Peaks"},{"$f":"IF(Function=\"gen\",\"F105G\",IF(Function=\"TRN\",\"F105T\",IF(Function=\"DIS\",\"F105D\",IF(Function=\"RETAIL\",\"F105R\",IF(Function=\"MISC\",\"F105M\",\"ERR\")))))","v":"F105D"},{"$f":"IF(Function=\"gen\",\"F105G\",IF(Function=\"TRN\",\"F105T\",IF(Function=\"DIS\",\"F105D\",IF(Function=\"RETAIL\",\"F105R\",IF(Function=\"MISC\",\"F105M\",\"ERR\")))))","v":"F105D"},{"$f":"IF(Function=\"gen\",\"F105G\",IF(Function=\"TRN\",\"F105T\",IF(Function=\"DIS\",\"F105D\",IF(Function=\"RETAIL\",\"F105R\",IF(Function=\"MISC\",\"F105M\",\"ERR\")))))","v":"F105D"},{"$f":"VLOOKUP(+K923,FactSum,2)","v":"100 Summer 100 Winter System Peaks"},"F10",{"$f":"VLOOKUP(+M924,FactSum,2)","v":"100 Summer 100 Winter System Peaks"}]
[null,null,"System Overheads","F102D",{"$f":"IF(Function=\"gen\",\"F102G\",IF(Function=\"TRN\",\"F102T\",IF(Function=\"DIS\",\"F102D\",IF(Function=\"RETAIL\",\"F102R\",IF(Function=\"MISC\",\"F102M\",\"ERR\")))))","v":"F102D"},{"$f":"IF(Function=\"gen\",\"F102G\",IF(Function=\"TRN\",\"F102T\",IF(Function=\"DIS\",\"F102D\",IF(Function=\"RETAIL\",\"F102R\",IF(Function=\"MISC\",\"F102M\",\"ERR\")))))","v":"F102D"},{"$f":"IF(Function=\"gen\",\"F102G\",IF(Function=\"TRN\",\"F102T\",IF(Function=\"DIS\",\"F102D\",IF(Function=\"RETAIL\",\"F102R\",IF(Function=\"MISC\",\"F102M\",\"ERR\")))))","v":"F102D"},{"$f":"VLOOKUP(+G924,FactSum,2)","v":"100 Summer 100 Winter System Peaks"},{"$f":"IF(Function=\"gen\",\"F102G\",IF(Function=\"TRN\",\"F102T\",IF(Function=\"DIS\",\"F102D\",IF(Function=\"RETAIL\",\"F102R\",IF(Function=\"MISC\",\"F102M\",\"ERR\")))))","v":"F102D"},{"$f":"IF(Function=\"gen\",\"F102G\",IF(Function=\"TRN\",\"F102T\",IF(Function=\"DIS\",\"F102D\",IF(Function=\"RETAIL\",\"F102R\",IF(Function=\"MISC\",\"F102M\",\"ERR\")))))","v":"F102D"},{"$f":"IF(Function=\"gen\",\"F102G\",IF(Function=\"TRN\",\"F102T\",IF(Function=\"DIS\",\"F102D\",IF(Function=\"RETAIL\",\"F102R\",IF(Function=\"MISC\",\"F102M\",\"ERR\")))))","v":"F102D"},{"$f":"VLOOKUP(+K924,FactSum,2)","v":"100 Summer 100 Winter System Peaks"},"F10",{"$f":"VLOOKUP(+M925,FactSum,2)","v":"Firm Revenues"}]
[null,null,"Energy","F10",{"$f":"IF(Classification=\"DEMAND\",\"F12\",IF(Classification=\"ENERGY\",\"F30\",\"F10\"))","v":"F10"},"F30",{"$f":"IF(Classification=\"DEMAND\",\"F12\",IF(Classification=\"ENERGY\",\"F30\",\"F10\"))","v":"F10"},{"$f":"VLOOKUP(+G925,FactSum,2)","v":"100 Summer 100 Winter System Peaks"},"F30","F30","F30",{"$f":"VLOOKUP(+K925,FactSum,2)","v":"Firm Revenues"},"F30"]
[null,null,"SSGCT","F10",{"$f":"IF(Classification=\"DEMAND\",\"F12\",IF(Classification=\"ENERGY\",\"F30\",\"F10\"))","v":"F10"},"F30","F30",{"$f":"VLOOKUP(+G926,FactSum,2)","v":"Firm Revenues"},"F30","F30","F30",{"$f":"VLOOKUP(+K926,FactSum,2)","v":"Firm Revenues"},"F30"]
[null,null,"SSGCH","F10",{"$f":"IF(Classification=\"DEMAND\",\"F12\",IF(Classification=\"ENERGY\",\"F30\",\"F10\"))","v":"F10"},{"$f":"IF(Classification=\"DEMAND\",\"F15\",IF(Classification=\"ENERGY\",\"F33\",\"F16\"))","v":"F16"},{"$f":"IF(Function=\"gen\",\"F105G\",IF(Function=\"TRN\",\"F105T\",IF(Function=\"DIS\",\"F105D\",IF(Function=\"RETAIL\",\"F105R\",IF(Function=\"MISC\",\"F105M\",\"ERR\")))))","v":"F105D"},null,{"$f":"IF(Function=\"gen\",\"F105G\",IF(Function=\"TRN\",\"F105T\",IF(Function=\"DIS\",\"F105D\",IF(Function=\"RETAIL\",\"F105R\",IF(Function=\"MISC\",\"F105M\",\"ERR\")))))","v":"F105D"},{"$f":"IF(Function=\"gen\",\"F105G\",IF(Function=\"TRN\",\"F105T\",IF(Function=\"DIS\",\"F105D\",IF(Function=\"RETAIL\",\"F105R\",IF(Function=\"MISC\",\"F105M\",\"ERR\")))))","v":"F105D"},{"$f":"IF(Function=\"gen\",\"F105G\",IF(Function=\"TRN\",\"F105T\",IF(Function=\"DIS\",\"F105D\",IF(Function=\"RETAIL\",\"F105R\",IF(Function=\"MISC\",\"F105M\",\"ERR\")))))","v":"F105D"},"F15","F10"]
[null,"Total Power Operated Equipment"]
[]
["397","Communication Equipment",null,null,null,null,null,null,null,null,null,null,null,{"$f":"VLOOKUP(+M931,FactSum,2)","v":"100 Summer 100 Winter System Peaks"}]
[null,null,"Situs","F107D",{"$f":"IF(Function=\"gen\",\"F107G\",IF(Function=\"TRN\",\"F107T\",IF(Function=\"DIS\",\"F107D\",IF(Function=\"RETAIL\",\"F107R\",IF(Function=\"MISC\",\"F107M\",\"ERR\")))))","v":"F107D"},{"$f":"IF(Function=\"gen\",\"F107G\",IF(Function=\"TRN\",\"F107T\",IF(Function=\"DIS\",\"F107D\",IF(Function=\"RETAIL\",\"F107R\",IF(Function=\"MISC\",\"F107M\",\"ERR\")))))","v":"F107D"},"F107D","F107D","F107D","F107D","F107D",{"$f":"VLOOKUP(+K931,FactSum,2)","v":"STP - System Trans & Dist Plant"},"F10",{"$f":"VLOOKUP(+M932,FactSum,2)","v":"100 Summer 100 Winter System Peaks"}]
[null,null,"System Generation","F105D",{"$f":"IF(Function=\"gen\",\"F105G\",IF(Function=\"TRN\",\"F105T\",IF(Function=\"DIS\",\"F105D\",IF(Function=\"RETAIL\",\"F105R\",IF(Function=\"MISC\",\"F105M\",\"ERR\")))))","v":"F105D"},{"$f":"IF(Function=\"gen\",\"F105G\",IF(Function=\"TRN\",\"F105T\",IF(Function=\"DIS\",\"F105D\",IF(Function=\"RETAIL\",\"F105R\",IF(Function=\"MISC\",\"F105M\",\"ERR\")))))","v":"F105D"},{"$f":"IF(Function=\"gen\",\"F105G\",IF(Function=\"TRN\",\"F105T\",IF(Function=\"DIS\",\"F105D\",IF(Function=\"RETAIL\",\"F105R\",IF(Function=\"MISC\",\"F105M\",\"ERR\")))))","v":"F105D"},{"$f":"VLOOKUP(+G932,FactSum,2)","v":"100 Summer 100 Winter System Peaks"},{"$f":"IF(Function=\"gen\",\"F105G\",IF(Function=\"TRN\",\"F105T\",IF(Function=\"DIS\",\"F105D\",IF(Function=\"RETAIL\",\"F105R\",IF(Function=\"MISC\",\"F105M\",\"ERR\")))))","v":"F105D"},{"$f":"IF(Function=\"gen\",\"F105G\",IF(Function=\"TRN\",\"F105T\",IF(Function=\"DIS\",\"F105D\",IF(Function=\"RETAIL\",\"F105R\",IF(Function=\"MISC\",\"F105M\",\"ERR\")))))","v":"F105D"},{"$f":"IF(Function=\"gen\",\"F105G\",IF(Function=\"TRN\",\"F105T\",IF(Function=\"DIS\",\"F105D\",IF(Function=\"RETAIL\",\"F105R\",IF(Function=\"MISC\",\"F105M\",\"ERR\")))))","v":"F105D"},{"$f":"VLOOKUP(+K932,FactSum,2)","v":"100 Summer 100 Winter System Peaks"},"F10",{"$f":"VLOOKUP(+M933,FactSum,2)","v":"100 Summer 100 Winter System Peaks"}]
[null,null,"System Overheads","F102D",{"$f":"IF(Function=\"gen\",\"F102G\",IF(Function=\"TRN\",\"F102T\",IF(Function=\"DIS\",\"F102D\",IF(Function=\"RETAIL\",\"F102R\",IF(Function=\"MISC\",\"F102M\",\"ERR\")))))","v":"F102D"},{"$f":"IF(Function=\"gen\",\"F102G\",IF(Function=\"TRN\",\"F102T\",IF(Function=\"DIS\",\"F102D\",IF(Function=\"RETAIL\",\"F102R\",IF(Function=\"MISC\",\"F102M\",\"ERR\")))))","v":"F102D"},{"$f":"IF(Function=\"gen\",\"F102G\",IF(Function=\"TRN\",\"F102T\",IF(Function=\"DIS\",\"F102D\",IF(Function=\"RETAIL\",\"F102R\",IF(Function=\"MISC\",\"F102M\",\"ERR\")))))","v":"F102D"},{"$f":"VLOOKUP(+G933,FactSum,2)","v":"100 Summer 100 Winter System Peaks"},{"$f":"IF(Function=\"gen\",\"F102G\",IF(Function=\"TRN\",\"F102T\",IF(Function=\"DIS\",\"F102D\",IF(Function=\"RETAIL\",\"F102R\",IF(Function=\"MISC\",\"F102M\",\"ERR\")))))","v":"F102D"},{"$f":"IF(Function=\"gen\",\"F102G\",IF(Function=\"TRN\",\"F102T\",IF(Function=\"DIS\",\"F102D\",IF(Function=\"RETAIL\",\"F102R\",IF(Function=\"MISC\",\"F102M\",\"ERR\")))))","v":"F102D"},{"$f":"IF(Function=\"gen\",\"F102G\",IF(Function=\"TRN\",\"F102T\",IF(Function=\"DIS\",\"F102D\",IF(Function=\"RETAIL\",\"F102R\",IF(Function=\"MISC\",\"F102M\",\"ERR\")))))","v":"F102D"},{"$f":"VLOOKUP(+K933,FactSum,2)","v":"100 Summer 100 Winter System Peaks"},"F10",{"$f":"VLOOKUP(+M934,FactSum,2)","v":"Firm Revenues"}]
[null,null,"Customer - System","F42","F42","F42","F42",{"$f":"VLOOKUP(+G934,FactSum,2)","v":"Firm Revenues"},"F42","F42","F42",{"$f":"VLOOKUP(+K934,FactSum,2)","v":"Firm Revenues"},"F42",{"$f":"VLOOKUP(+M935,FactSum,2)","v":"Firm Revenues"}]
[null,null,"Energy","F10",{"$f":"IF(Classification=\"DEMAND\",\"F12\",IF(Classification=\"ENERGY\",\"F30\",\"F10\"))","v":"F10"},"F30",{"$f":"IF(Classification=\"DEMAND\",\"F12\",IF(Classification=\"ENERGY\",\"F30\",\"F10\"))","v":"F10"},{"$f":"VLOOKUP(+G935,FactSum,2)","v":"100 Summer 100 Winter System Peaks"},"F30","F30","F30",{"$f":"VLOOKUP(+K935,FactSum,2)","v":"Firm Revenues"},"F30"]
[null,null,"SSGCH","F10",{"$f":"IF(Classification=\"DEMAND\",\"F12\",IF(Classification=\"ENERGY\",\"F30\",\"F10\"))","v":"F10"},{"$f":"IF(Classification=\"DEMAND\",\"F15\",IF(Classification=\"ENERGY\",\"F33\",\"F16\"))","v":"F16"},{"$f":"IF(Function=\"gen\",\"F105G\",IF(Function=\"TRN\",\"F105T\",IF(Function=\"DIS\",\"F105D\",IF(Function=\"RETAIL\",\"F105R\",IF(Function=\"MISC\",\"F105M\",\"ERR\")))))","v":"F105D"},null,{"$f":"IF(Function=\"gen\",\"F105G\",IF(Function=\"TRN\",\"F105T\",IF(Function=\"DIS\",\"F105D\",IF(Function=\"RETAIL\",\"F105R\",IF(Function=\"MISC\",\"F105M\",\"ERR\")))))","v":"F105D"},"F105D","F105D","F15","F10"]
[null,null,"SSGCT","F10",{"$f":"IF(Classification=\"DEMAND\",\"F12\",IF(Classification=\"ENERGY\",\"F30\",\"F10\"))","v":"F10"},{"$f":"IF(Classification=\"DEMAND\",\"F13\",IF(Classification=\"ENERGY\",\"F32\",\"F14\"))","v":"F14"},{"$f":"IF(Function=\"gen\",\"F105G\",IF(Function=\"TRN\",\"F105T\",IF(Function=\"DIS\",\"F105D\",IF(Function=\"RETAIL\",\"F105R\",IF(Function=\"MISC\",\"F105M\",\"ERR\")))))","v":"F105D"},null,"F105D","F105D","F105D","F15","F10"]
[null,"Total Communication Equipment"]
[]
[]
[]
["A",null,"B","C","C","C","C",null,"C","C","C",null,"C"]
[]
["FERC",null,null,"COS","COS","COS","COS",null,"COS","COS","COS",null,"COS"]
["ACCT",null,"DESCRIPTION ","Factor","Factor","Factor","Factor",null,"Factor","Factor","Factor",null,"Factor"]
["398","Misc. Equipment",null,null,null,null,null,null,null,null,null,null,null,{"$f":"VLOOKUP(+M947,FactSum,2)","v":"100 Summer 100 Winter System Peaks"}]
[null,null,"Situs","F107D",{"$f":"IF(Function=\"gen\",\"F107G\",IF(Function=\"TRN\",\"F107T\",IF(Function=\"DIS\",\"F107D\",IF(Function=\"RETAIL\",\"F107R\",IF(Function=\"MISC\",\"F107M\",\"ERR\")))))","v":"F107D"},{"$f":"IF(Function=\"gen\",\"F107G\",IF(Function=\"TRN\",\"F107T\",IF(Function=\"DIS\",\"F107D\",IF(Function=\"RETAIL\",\"F107R\",IF(Function=\"MISC\",\"F107M\",\"ERR\")))))","v":"F107D"},"F107D","F107D","F107D","F107D","F107D",{"$f":"VLOOKUP(+K947,FactSum,2)","v":"STP - System Trans & Dist Plant"},"F10",{"$f":"VLOOKUP(+M948,FactSum,2)","v":"100 Summer 100 Winter System Peaks"}]
[null,null,"System Generation","F105D",{"$f":"IF(Function=\"gen\",\"F105G\",IF(Function=\"TRN\",\"F105T\",IF(Function=\"DIS\",\"F105D\",IF(Function=\"RETAIL\",\"F105R\",IF(Function=\"MISC\",\"F105M\",\"ERR\")))))","v":"F105D"},{"$f":"IF(Function=\"gen\",\"F105G\",IF(Function=\"TRN\",\"F105T\",IF(Function=\"DIS\",\"F105D\",IF(Function=\"RETAIL\",\"F105R\",IF(Function=\"MISC\",\"F105M\",\"ERR\")))))","v":"F105D"},{"$f":"IF(Function=\"gen\",\"F105G\",IF(Function=\"TRN\",\"F105T\",IF(Function=\"DIS\",\"F105D\",IF(Function=\"RETAIL\",\"F105R\",IF(Function=\"MISC\",\"F105M\",\"ERR\")))))","v":"F105D"},{"$f":"VLOOKUP(+G948,FactSum,2)","v":"100 Summer 100 Winter System Peaks"},{"$f":"IF(Function=\"gen\",\"F105G\",IF(Function=\"TRN\",\"F105T\",IF(Function=\"DIS\",\"F105D\",IF(Function=\"RETAIL\",\"F105R\",IF(Function=\"MISC\",\"F105M\",\"ERR\")))))","v":"F105D"},{"$f":"IF(Function=\"gen\",\"F105G\",IF(Function=\"TRN\",\"F105T\",IF(Function=\"DIS\",\"F105D\",IF(Function=\"RETAIL\",\"F105R\",IF(Function=\"MISC\",\"F105M\",\"ERR\")))))","v":"F105D"},{"$f":"IF(Function=\"gen\",\"F105G\",IF(Function=\"TRN\",\"F105T\",IF(Function=\"DIS\",\"F105D\",IF(Function=\"RETAIL\",\"F105R\",IF(Function=\"MISC\",\"F105M\",\"ERR\")))))","v":"F105D"},"100 Summer 100 Winter System Peaks","F10",{"$f":"VLOOKUP(+M949,FactSum,2)","v":"100 Summer 100 Winter System Peaks"}]
[null,null,"System Overheads","F102D",{"$f":"IF(Function=\"gen\",\"F102G\",IF(Function=\"TRN\",\"F102T\",IF(Function=\"DIS\",\"F102D\",IF(Function=\"RETAIL\",\"F102R\",IF(Function=\"MISC\",\"F102M\",\"ERR\")))))","v":"F102D"},{"$f":"IF(Function=\"gen\",\"F102G\",IF(Function=\"TRN\",\"F102T\",IF(Function=\"DIS\",\"F102D\",IF(Function=\"RETAIL\",\"F102R\",IF(Function=\"MISC\",\"F102M\",\"ERR\")))))","v":"F102D"},{"$f":"IF(Function=\"gen\",\"F102G\",IF(Function=\"TRN\",\"F102T\",IF(Function=\"DIS\",\"F102D\",IF(Function=\"RETAIL\",\"F102R\",IF(Function=\"MISC\",\"F102M\",\"ERR\")))))","v":"F102D"},{"$f":"VLOOKUP(+G949,FactSum,2)","v":"100 Summer 100 Winter System Peaks"},{"$f":"IF(Function=\"gen\",\"F102G\",IF(Function=\"TRN\",\"F102T\",IF(Function=\"DIS\",\"F102D\",IF(Function=\"RETAIL\",\"F102R\",IF(Function=\"MISC\",\"F102M\",\"ERR\")))))","v":"F102D"},{"$f":"IF(Function=\"gen\",\"F102G\",IF(Function=\"TRN\",\"F102T\",IF(Function=\"DIS\",\"F102D\",IF(Function=\"RETAIL\",\"F102R\",IF(Function=\"MISC\",\"F102M\",\"ERR\")))))","v":"F102D"},{"$f":"IF(Function=\"gen\",\"F102G\",IF(Function=\"TRN\",\"F102T\",IF(Function=\"DIS\",\"F102D\",IF(Function=\"RETAIL\",\"F102R\",IF(Function=\"MISC\",\"F102M\",\"ERR\")))))","v":"F102D"},"100 Summer 100 Winter System Peaks","F10",{"$f":"VLOOKUP(+M950,FactSum,2)","v":"Firm Revenues"}]
[null,null,"Customer - System","F42","F42","F42","F42",{"$f":"VLOOKUP(+G950,FactSum,2)","v":"Firm Revenues"},"F42","F42","F42","Firm Revenues","F42",{"$f":"VLOOKUP(+M951,FactSum,2)","v":"Firm Revenues"}]
[null,null,"Energy","F10",{"$f":"IF(Classification=\"DEMAND\",\"F12\",IF(Classification=\"ENERGY\",\"F30\",\"F10\"))","v":"F10"},"F30",{"$f":"IF(Classification=\"DEMAND\",\"F12\",IF(Classification=\"ENERGY\",\"F30\",\"F10\"))","v":"F10"},{"$f":"VLOOKUP(+G951,FactSum,2)","v":"100 Summer 100 Winter System Peaks"},"F30","F30","F30","Firm Revenues","F30"]
[null,null,"SSGCT","F10",{"$f":"IF(Classification=\"DEMAND\",\"F12\",IF(Classification=\"ENERGY\",\"F30\",\"F10\"))","v":"F10"},{"$f":"IF(Classification=\"DEMAND\",\"F13\",IF(Classification=\"ENERGY\",\"F32\",\"F14\"))","v":"F14"},{"$f":"IF(Function=\"gen\",\"F105G\",IF(Function=\"TRN\",\"F105T\",IF(Function=\"DIS\",\"F105D\",IF(Function=\"RETAIL\",\"F105R\",IF(Function=\"MISC\",\"F105M\",\"ERR\")))))","v":"F105D"},{"$f":"VLOOKUP(+G952,FactSum,2)","v":"100 Summer 100 Winter System Peaks"},{"$f":"IF(Function=\"gen\",\"F105G\",IF(Function=\"TRN\",\"F105T\",IF(Function=\"DIS\",\"F105D\",IF(Function=\"RETAIL\",\"F105R\",IF(Function=\"MISC\",\"F105M\",\"ERR\")))))","v":"F105D"},{"$f":"IF(Function=\"gen\",\"F105G\",IF(Function=\"TRN\",\"F105T\",IF(Function=\"DIS\",\"F105D\",IF(Function=\"RETAIL\",\"F105R\",IF(Function=\"MISC\",\"F105M\",\"ERR\")))))","v":"F105D"},{"$f":"IF(Function=\"gen\",\"F105G\",IF(Function=\"TRN\",\"F105T\",IF(Function=\"DIS\",\"F105D\",IF(Function=\"RETAIL\",\"F105R\",IF(Function=\"MISC\",\"F105M\",\"ERR\")))))","v":"F105D"},"100 Summer 100 Winter System Peaks","F10"]
[null,"Total Misc. Equipment"]
[null,null,null,null,null,null,null,null,null,null,null,null,null,{"$f":"VLOOKUP(+M955,FactSum,2,FALSE)","v":"MWH @ Input"}]
["399","Coal Mine",null,"F10",{"$f":"IF(Classification=\"DEMAND\",\"F12\",IF(Classification=\"ENERGY\",\"F30\",\"F10\"))","v":"F10"},"F30",{"$f":"IF(Classification=\"DEMAND\",\"F12\",IF(Classification=\"ENERGY\",\"F30\",\"F10\"))","v":"F10"},{"$f":"VLOOKUP(+G955,FactSum,2,FALSE)","v":"100 Summer 100 Winter System Peaks"},"F30","F30","F30",{"$f":"VLOOKUP(+K955,FactSum,2,FALSE)","v":"MWH @ Input"},"F30",{"$f":"VLOOKUP(+M956,FactSum,2,FALSE)","v":"MWH @ Input"}]
["399L","WIDCO Capital Lease",null,"F10",{"$f":"IF(Classification=\"DEMAND\",\"F12\",IF(Classification=\"ENERGY\",\"F30\",\"F10\"))","v":"F10"},"F30",{"$f":"IF(Classification=\"DEMAND\",\"F12\",IF(Classification=\"ENERGY\",\"F30\",\"F10\"))","v":"F10"},{"$f":"VLOOKUP(+G956,FactSum,2,FALSE)","v":"100 Summer 100 Winter System Peaks"},"F30","F30","F30",{"$f":"VLOOKUP(+K956,FactSum,2,FALSE)","v":"MWH @ Input"},"F30",{"$f":"VLOOKUP(+M957,FactSum,2,FALSE)","v":"MWH @ Input"}]
[null,"Remove Capital Lease",null,"F10",{"$f":"IF(Classification=\"DEMAND\",\"F12\",IF(Classification=\"ENERGY\",\"F30\",\"F10\"))","v":"F10"},"F30",{"$f":"IF(Classification=\"DEMAND\",\"F12\",IF(Classification=\"ENERGY\",\"F30\",\"F10\"))","v":"F10"},{"$f":"VLOOKUP(+G957,FactSum,2,FALSE)","v":"100 Summer 100 Winter System Peaks"},"F30","F30","F30",{"$f":"VLOOKUP(+K957,FactSum,2,FALSE)","v":"MWH @ Input"},"F30"]
[null,null,null,null,null,null,null,null,null,null,null,null,null,{"$f":"VLOOKUP(+M959,FactSum,2,FALSE)","v":"MWH @ Input"}]
["1011390","General Capital Lease",null,"F10",{"$f":"IF(Classification=\"DEMAND\",\"F12\",IF(Classification=\"ENERGY\",\"F30\",\"F10\"))","v":"F10"},"F30",{"$f":"IF(Classification=\"DEMAND\",\"F12\",IF(Classification=\"ENERGY\",\"F30\",\"F10\"))","v":"F10"},{"$f":"VLOOKUP(+G959,FactSum,2,FALSE)","v":"100 Summer 100 Winter System Peaks"},"F30","F30","F30",{"$f":"VLOOKUP(+K959,FactSum,2,FALSE)","v":"MWH @ Input"},"F30",{"$f":"VLOOKUP(+M960,FactSum,2,FALSE)","v":"MWH @ Input"}]
[null,"Remove Capital Lease",null,"F10",{"$f":"IF(Classification=\"DEMAND\",\"F12\",IF(Classification=\"ENERGY\",\"F30\",\"F10\"))","v":"F10"},"F30",{"$f":"IF(Classification=\"DEMAND\",\"F12\",IF(Classification=\"ENERGY\",\"F30\",\"F10\"))","v":"F10"},{"$f":"VLOOKUP(+G960,FactSum,2,FALSE)","v":"100 Summer 100 Winter System Peaks"},"F30","F30","F30",{"$f":"VLOOKUP(+K960,FactSum,2,FALSE)","v":"MWH @ Input"},"F30"]
[null,null,null,null,null,null,null,null,null,null,null,null,null,{"$f":"VLOOKUP(+M962,FactSum,2,FALSE)","v":"MWH @ Input"}]
["1011392","General Vehicles Capital Lease",null,"F10",{"$f":"IF(Classification=\"DEMAND\",\"F12\",IF(Classification=\"ENERGY\",\"F30\",\"F10\"))","v":"F10"},"F30",{"$f":"IF(Classification=\"DEMAND\",\"F12\",IF(Classification=\"ENERGY\",\"F30\",\"F10\"))","v":"F10"},{"$f":"VLOOKUP(+G962,FactSum,2,FALSE)","v":"100 Summer 100 Winter System Peaks"},"F30","F30","F30",{"$f":"VLOOKUP(+K962,FactSum,2,FALSE)","v":"MWH @ Input"},"F30",{"$f":"VLOOKUP(+M963,FactSum,2,FALSE)","v":"MWH @ Input"}]
[null,"Remove Capital Lease",null,"F10",{"$f":"IF(Classification=\"DEMAND\",\"F12\",IF(Classification=\"ENERGY\",\"F30\",\"F10\"))","v":"F10"},"F30",{"$f":"IF(Classification=\"DEMAND\",\"F12\",IF(Classification=\"ENERGY\",\"F30\",\"F10\"))","v":"F10"},{"$f":"VLOOKUP(+G963,FactSum,2,FALSE)","v":"100 Summer 100 Winter System Peaks"},"F30","F30","F30",{"$f":"VLOOKUP(+K963,FactSum,2,FALSE)","v":"MWH @ Input"},"F30"]
[null,null,null,null,null,null,null,null,null,null,null,null,null,{"$f":"VLOOKUP(+M965,FactSum,2)","v":"100 Summer 100 Winter System Peaks"}]
["GP","Unclassified Gen Plant - Acct 300",null,"F102D",{"$f":"IF(Function=\"gen\",\"F102G\",IF(Function=\"TRN\",\"F102T\",IF(Function=\"DIS\",\"F102D\",IF(Function=\"RETAIL\",\"F102R\",IF(Function=\"MISC\",\"F102M\",\"ERR\")))))","v":"F102D"},{"$f":"IF(Function=\"gen\",\"F102G\",IF(Function=\"TRN\",\"F102T\",IF(Function=\"DIS\",\"F102D\",IF(Function=\"RETAIL\",\"F102R\",IF(Function=\"MISC\",\"F102M\",\"ERR\")))))","v":"F102D"},"F102D",{"$f":"VLOOKUP(+G965,FactSum,2)","v":"100 Summer 100 Winter System Peaks"},"F102D","F102D","F102D",{"$f":"VLOOKUP(+K965,FactSum,2)","v":"100 Summer 100 Winter System Peaks"},"F10",{"$f":"VLOOKUP(+M966,FactSum,2)","v":"100 Summer 100 Winter System Peaks"}]
["399G","Unclassified Gen Veh - Acct 300",null,"F102D",{"$f":"IF(Function=\"gen\",\"F102G\",IF(Function=\"TRN\",\"F102T\",IF(Function=\"DIS\",\"F102D\",IF(Function=\"RETAIL\",\"F102R\",IF(Function=\"MISC\",\"F102M\",\"ERR\")))))","v":"F102D"},"F102D","F102D",{"$f":"VLOOKUP(+G966,FactSum,2)","v":"100 Summer 100 Winter System Peaks"},"F102D","F102D","F102D",{"$f":"VLOOKUP(+K966,FactSum,2)","v":"100 Summer 100 Winter System Peaks"},"F10"]
[]
["TOTAL GENERAL PLANT"]
[]
[]
[]
[]
[]
["301","Organization",null,null,null,null,null,null,null,null,null,null,null,{"$f":"VLOOKUP(+M975,FactSum,2)","v":"100 Summer 100 Winter System Peaks"}]
[null,null,"Situs","F107D",{"$f":"IF(Function=\"gen\",\"F107G\",IF(Function=\"TRN\",\"F107T\",IF(Function=\"DIS\",\"F107D\",IF(Function=\"RETAIL\",\"F107R\",IF(Function=\"MISC\",\"F107M\",\"ERR\")))))","v":"F107D"},{"$f":"IF(Function=\"gen\",\"F107G\",IF(Function=\"TRN\",\"F107T\",IF(Function=\"DIS\",\"F107D\",IF(Function=\"RETAIL\",\"F107R\",IF(Function=\"MISC\",\"F107M\",\"ERR\")))))","v":"F107D"},"F107D","F107D","F107D","F107D","F107D",{"$f":"VLOOKUP(+K975,FactSum,2)","v":"STP - System Trans & Dist Plant"},"F10",{"$f":"VLOOKUP(+M976,FactSum,2)","v":"100 Summer 100 Winter System Peaks"}]
[null,null,"System Generation","F105D",{"$f":"IF(Function=\"gen\",\"F105G\",IF(Function=\"TRN\",\"F105T\",IF(Function=\"DIS\",\"F105D\",IF(Function=\"RETAIL\",\"F105R\",IF(Function=\"MISC\",\"F105M\",\"ERR\")))))","v":"F105D"},{"$f":"IF(Function=\"gen\",\"F105G\",IF(Function=\"TRN\",\"F105T\",IF(Function=\"DIS\",\"F105D\",IF(Function=\"RETAIL\",\"F105R\",IF(Function=\"MISC\",\"F105M\",\"ERR\")))))","v":"F105D"},{"$f":"IF(Function=\"gen\",\"F105G\",IF(Function=\"TRN\",\"F105T\",IF(Function=\"DIS\",\"F105D\",IF(Function=\"RETAIL\",\"F105R\",IF(Function=\"MISC\",\"F105M\",\"ERR\")))))","v":"F105D"},{"$f":"VLOOKUP(+G976,FactSum,2)","v":"100 Summer 100 Winter System Peaks"},{"$f":"IF(Function=\"gen\",\"F105G\",IF(Function=\"TRN\",\"F105T\",IF(Function=\"DIS\",\"F105D\",IF(Function=\"RETAIL\",\"F105R\",IF(Function=\"MISC\",\"F105M\",\"ERR\")))))","v":"F105D"},{"$f":"IF(Function=\"gen\",\"F105G\",IF(Function=\"TRN\",\"F105T\",IF(Function=\"DIS\",\"F105D\",IF(Function=\"RETAIL\",\"F105R\",IF(Function=\"MISC\",\"F105M\",\"ERR\")))))","v":"F105D"},{"$f":"IF(Function=\"gen\",\"F105G\",IF(Function=\"TRN\",\"F105T\",IF(Function=\"DIS\",\"F105D\",IF(Function=\"RETAIL\",\"F105R\",IF(Function=\"MISC\",\"F105M\",\"ERR\")))))","v":"F105D"},{"$f":"VLOOKUP(+K976,FactSum,2)","v":"100 Summer 100 Winter System Peaks"},"F10",{"$f":"VLOOKUP(+M977,FactSum,2)","v":"100 Summer 100 Winter System Peaks"}]
[null,null,"System Overheads","F102D",{"$f":"IF(Function=\"gen\",\"F102G\",IF(Function=\"TRN\",\"F102T\",IF(Function=\"DIS\",\"F102D\",IF(Function=\"RETAIL\",\"F102R\",IF(Function=\"MISC\",\"F102M\",\"ERR\")))))","v":"F102D"},{"$f":"IF(Function=\"gen\",\"F102G\",IF(Function=\"TRN\",\"F102T\",IF(Function=\"DIS\",\"F102D\",IF(Function=\"RETAIL\",\"F102R\",IF(Function=\"MISC\",\"F102M\",\"ERR\")))))","v":"F102D"},{"$f":"IF(Function=\"gen\",\"F102G\",IF(Function=\"TRN\",\"F102T\",IF(Function=\"DIS\",\"F102D\",IF(Function=\"RETAIL\",\"F102R\",IF(Function=\"MISC\",\"F102M\",\"ERR\")))))","v":"F102D"},{"$f":"VLOOKUP(+G977,FactSum,2)","v":"100 Summer 100 Winter System Peaks"},{"$f":"IF(Function=\"gen\",\"F102G\",IF(Function=\"TRN\",\"F102T\",IF(Function=\"DIS\",\"F102D\",IF(Function=\"RETAIL\",\"F102R\",IF(Function=\"MISC\",\"F102M\",\"ERR\")))))","v":"F102D"},{"$f":"IF(Function=\"gen\",\"F102G\",IF(Function=\"TRN\",\"F102T\",IF(Function=\"DIS\",\"F102D\",IF(Function=\"RETAIL\",\"F102R\",IF(Function=\"MISC\",\"F102M\",\"ERR\")))))","v":"F102D"},{"$f":"IF(Function=\"gen\",\"F102G\",IF(Function=\"TRN\",\"F102T\",IF(Function=\"DIS\",\"F102D\",IF(Function=\"RETAIL\",\"F102R\",IF(Function=\"MISC\",\"F102M\",\"ERR\")))))","v":"F102D"},{"$f":"VLOOKUP(+K977,FactSum,2)","v":"100 Summer 100 Winter System Peaks"},"F10"]
[null,"Total Organization"]
[]
["302","Franchise & Consent",null,null,null,null,null,null,null,null,null,null,null,{"$f":"VLOOKUP(+M981,FactSum,2)","v":"100 Summer 100 Winter System Peaks"}]
[null,null,"Situs","F107D",{"$f":"IF(Function=\"gen\",\"F107G\",IF(Function=\"TRN\",\"F107T\",IF(Function=\"DIS\",\"F107D\",IF(Function=\"RETAIL\",\"F107R\",IF(Function=\"MISC\",\"F107M\",\"ERR\")))))","v":"F107D"},{"$f":"IF(Function=\"gen\",\"F107G\",IF(Function=\"TRN\",\"F107T\",IF(Function=\"DIS\",\"F107D\",IF(Function=\"RETAIL\",\"F107R\",IF(Function=\"MISC\",\"F107M\",\"ERR\")))))","v":"F107D"},"F107D","F107D","F107D","F107D","F107D",{"$f":"VLOOKUP(+K981,FactSum,2)","v":"STP - System Trans & Dist Plant"},"F10",{"$f":"VLOOKUP(+M982,FactSum,2)","v":"100 Summer 100 Winter System Peaks"}]
[null,null,"System Generation","F105D",{"$f":"IF(Function=\"gen\",\"F105G\",IF(Function=\"TRN\",\"F105T\",IF(Function=\"DIS\",\"F105D\",IF(Function=\"RETAIL\",\"F105R\",IF(Function=\"MISC\",\"F105M\",\"ERR\")))))","v":"F105D"},{"$f":"IF(Function=\"gen\",\"F105G\",IF(Function=\"TRN\",\"F105T\",IF(Function=\"DIS\",\"F105D\",IF(Function=\"RETAIL\",\"F105R\",IF(Function=\"MISC\",\"F105M\",\"ERR\")))))","v":"F105D"},{"$f":"IF(Function=\"gen\",\"F105G\",IF(Function=\"TRN\",\"F105T\",IF(Function=\"DIS\",\"F105D\",IF(Function=\"RETAIL\",\"F105R\",IF(Function=\"MISC\",\"F105M\",\"ERR\")))))","v":"F105D"},{"$f":"VLOOKUP(+G982,FactSum,2)","v":"100 Summer 100 Winter System Peaks"},{"$f":"IF(Function=\"gen\",\"F105G\",IF(Function=\"TRN\",\"F105T\",IF(Function=\"DIS\",\"F105D\",IF(Function=\"RETAIL\",\"F105R\",IF(Function=\"MISC\",\"F105M\",\"ERR\")))))","v":"F105D"},{"$f":"IF(Function=\"gen\",\"F105G\",IF(Function=\"TRN\",\"F105T\",IF(Function=\"DIS\",\"F105D\",IF(Function=\"RETAIL\",\"F105R\",IF(Function=\"MISC\",\"F105M\",\"ERR\")))))","v":"F105D"},{"$f":"IF(Function=\"gen\",\"F105G\",IF(Function=\"TRN\",\"F105T\",IF(Function=\"DIS\",\"F105D\",IF(Function=\"RETAIL\",\"F105R\",IF(Function=\"MISC\",\"F105M\",\"ERR\")))))","v":"F105D"},{"$f":"VLOOKUP(+K982,FactSum,2)","v":"100 Summer 100 Winter System Peaks"},"F10"]
[null,"Total Franchise & Consent"]
[]
["303","Miscellaneous Intangible Plant",null,null,null,null,null,null,null,null,null,null,null,{"$f":"VLOOKUP(+M986,FactSum,2)","v":"100 Summer 100 Winter System Peaks"}]
[null,null,"Situs","F107D",{"$f":"IF(Function=\"gen\",\"F107G\",IF(Function=\"TRN\",\"F107T\",IF(Function=\"DIS\",\"F107D\",IF(Function=\"RETAIL\",\"F107R\",IF(Function=\"MISC\",\"F107M\",\"ERR\")))))","v":"F107D"},{"$f":"IF(Function=\"gen\",\"F107G\",IF(Function=\"TRN\",\"F107T\",IF(Function=\"DIS\",\"F107D\",IF(Function=\"RETAIL\",\"F107R\",IF(Function=\"MISC\",\"F107M\",\"ERR\")))))","v":"F107D"},"F107D","F107D","F107D","F107D","F107D",{"$f":"VLOOKUP(+K986,FactSum,2)","v":"STP - System Trans & Dist Plant"},"F10",{"$f":"VLOOKUP(+M987,FactSum,2)","v":"100 Summer 100 Winter System Peaks"}]
[null,null,"System Generation","F105D",{"$f":"IF(Function=\"gen\",\"F105G\",IF(Function=\"TRN\",\"F105T\",IF(Function=\"DIS\",\"F105D\",IF(Function=\"RETAIL\",\"F105R\",IF(Function=\"MISC\",\"F105M\",\"ERR\")))))","v":"F105D"},{"$f":"IF(Function=\"gen\",\"F105G\",IF(Function=\"TRN\",\"F105T\",IF(Function=\"DIS\",\"F105D\",IF(Function=\"RETAIL\",\"F105R\",IF(Function=\"MISC\",\"F105M\",\"ERR\")))))","v":"F105D"},{"$f":"IF(Function=\"gen\",\"F105G\",IF(Function=\"TRN\",\"F105T\",IF(Function=\"DIS\",\"F105D\",IF(Function=\"RETAIL\",\"F105R\",IF(Function=\"MISC\",\"F105M\",\"ERR\")))))","v":"F105D"},{"$f":"VLOOKUP(+G987,FactSum,2)","v":"100 Summer 100 Winter System Peaks"},{"$f":"IF(Function=\"gen\",\"F105G\",IF(Function=\"TRN\",\"F105T\",IF(Function=\"DIS\",\"F105D\",IF(Function=\"RETAIL\",\"F105R\",IF(Function=\"MISC\",\"F105M\",\"ERR\")))))","v":"F105D"},{"$f":"IF(Function=\"gen\",\"F105G\",IF(Function=\"TRN\",\"F105T\",IF(Function=\"DIS\",\"F105D\",IF(Function=\"RETAIL\",\"F105R\",IF(Function=\"MISC\",\"F105M\",\"ERR\")))))","v":"F105D"},{"$f":"IF(Function=\"gen\",\"F105G\",IF(Function=\"TRN\",\"F105T\",IF(Function=\"DIS\",\"F105D\",IF(Function=\"RETAIL\",\"F105R\",IF(Function=\"MISC\",\"F105M\",\"ERR\")))))","v":"F105D"},{"$f":"VLOOKUP(+K987,FactSum,2)","v":"100 Summer 100 Winter System Peaks"},"F10",{"$f":"VLOOKUP(+M988,FactSum,2)","v":"100 Summer 100 Winter System Peaks"}]
[null,null,"System Overheads","F102D",{"$f":"IF(Function=\"gen\",\"F102G\",IF(Function=\"TRN\",\"F102T\",IF(Function=\"DIS\",\"F102D\",IF(Function=\"RETAIL\",\"F102R\",IF(Function=\"MISC\",\"F102M\",\"ERR\")))))","v":"F102D"},{"$f":"IF(Function=\"gen\",\"F102G\",IF(Function=\"TRN\",\"F102T\",IF(Function=\"DIS\",\"F102D\",IF(Function=\"RETAIL\",\"F102R\",IF(Function=\"MISC\",\"F102M\",\"ERR\")))))","v":"F102D"},{"$f":"IF(Function=\"gen\",\"F102G\",IF(Function=\"TRN\",\"F102T\",IF(Function=\"DIS\",\"F102D\",IF(Function=\"RETAIL\",\"F102R\",IF(Function=\"MISC\",\"F102M\",\"ERR\")))))","v":"F102D"},{"$f":"VLOOKUP(+G988,FactSum,2)","v":"100 Summer 100 Winter System Peaks"},{"$f":"IF(Function=\"gen\",\"F102G\",IF(Function=\"TRN\",\"F102T\",IF(Function=\"DIS\",\"F102D\",IF(Function=\"RETAIL\",\"F102R\",IF(Function=\"MISC\",\"F102M\",\"ERR\")))))","v":"F102D"},{"$f":"IF(Function=\"gen\",\"F102G\",IF(Function=\"TRN\",\"F102T\",IF(Function=\"DIS\",\"F102D\",IF(Function=\"RETAIL\",\"F102R\",IF(Function=\"MISC\",\"F102M\",\"ERR\")))))","v":"F102D"},{"$f":"IF(Function=\"gen\",\"F102G\",IF(Function=\"TRN\",\"F102T\",IF(Function=\"DIS\",\"F102D\",IF(Function=\"RETAIL\",\"F102R\",IF(Function=\"MISC\",\"F102M\",\"ERR\")))))","v":"F102D"},{"$f":"VLOOKUP(+K988,FactSum,2)","v":"100 Summer 100 Winter System Peaks"},"F10",{"$f":"VLOOKUP(+M989,FactSum,2)","v":"Firm Revenues"}]
[null,null,"Customer - System","F42","F42","F42","F42",{"$f":"VLOOKUP(+G989,FactSum,2)","v":"Firm Revenues"},"F42","F42","F42",{"$f":"VLOOKUP(+K989,FactSum,2)","v":"Firm Revenues"},"F42",{"$f":"VLOOKUP(+M990,FactSum,2,FALSE)","v":"MWH @ Input"}]
[null,null,"Energy","F10",{"$f":"IF(Classification=\"DEMAND\",\"F12\",IF(Classification=\"ENERGY\",\"F30\",\"F10\"))","v":"F10"},"F30",{"$f":"IF(Classification=\"DEMAND\",\"F12\",IF(Classification=\"ENERGY\",\"F30\",\"F10\"))","v":"F10"},{"$f":"VLOOKUP(+G990,FactSum,2,FALSE)","v":"100 Summer 100 Winter System Peaks"},"F30","F30","F30",{"$f":"VLOOKUP(+K990,FactSum,2,FALSE)","v":"MWH @ Input"},"F30"]
[null,null,"SSGCT","F10",{"$f":"IF(Classification=\"DEMAND\",\"F12\",IF(Classification=\"ENERGY\",\"F30\",\"F10\"))","v":"F10"},{"$f":"IF(Classification=\"DEMAND\",\"F13\",IF(Classification=\"ENERGY\",\"F32\",\"F14\"))","v":"F14"},{"$f":"IF(Function=\"gen\",\"F105G\",IF(Function=\"TRN\",\"F105T\",IF(Function=\"DIS\",\"F105D\",IF(Function=\"RETAIL\",\"F105R\",IF(Function=\"MISC\",\"F105M\",\"ERR\")))))","v":"F105D"},null,{"$f":"IF(Function=\"gen\",\"F105G\",IF(Function=\"TRN\",\"F105T\",IF(Function=\"DIS\",\"F105D\",IF(Function=\"RETAIL\",\"F105R\",IF(Function=\"MISC\",\"F105M\",\"ERR\")))))","v":"F105D"},"F105D","F105D","F15","F10"]
[null,null,"SSGCH","F10",{"$f":"IF(Classification=\"DEMAND\",\"F12\",IF(Classification=\"ENERGY\",\"F30\",\"F10\"))","v":"F10"},{"$f":"IF(Classification=\"DEMAND\",\"F15\",IF(Classification=\"ENERGY\",\"F33\",\"F16\"))","v":"F16"},{"$f":"IF(Function=\"gen\",\"F105G\",IF(Function=\"TRN\",\"F105T\",IF(Function=\"DIS\",\"F105D\",IF(Function=\"RETAIL\",\"F105R\",IF(Function=\"MISC\",\"F105M\",\"ERR\")))))","v":"F105D"},{"$f":"VLOOKUP(+G992,FactSum,2)","v":"100 Summer 100 Winter System Peaks"},"F105D","F105D","F105D",{"$f":"VLOOKUP(+K992,FactSum,2)","v":"100 Summer 100 Winter System Peaks"},"F10"]
[null,"Total Miscellaneous Intangible Plant"]
[null,null,null,null,null,null,null,null,null,null,null,null,null,{"$f":"VLOOKUP(+M995,FactSum,2)","v":"100 Summer 100 Winter System Peaks"}]
["IP","Unclass Intangible Plant - Acct 300",null,"F102D",{"$f":"IF(Function=\"gen\",\"F102G\",IF(Function=\"TRN\",\"F102T\",IF(Function=\"DIS\",\"F102D\",IF(Function=\"RETAIL\",\"F102R\",IF(Function=\"MISC\",\"F102M\",\"ERR\")))))","v":"F102D"},{"$f":"IF(Function=\"gen\",\"F102G\",IF(Function=\"TRN\",\"F102T\",IF(Function=\"DIS\",\"F102D\",IF(Function=\"RETAIL\",\"F102R\",IF(Function=\"MISC\",\"F102M\",\"ERR\")))))","v":"F102D"},{"$f":"IF(Function=\"gen\",\"F102G\",IF(Function=\"TRN\",\"F102T\",IF(Function=\"DIS\",\"F102D\",IF(Function=\"RETAIL\",\"F102R\",IF(Function=\"MISC\",\"F102M\",\"ERR\")))))","v":"F102D"},{"$f":"VLOOKUP(+G995,FactSum,2)","v":"100 Summer 100 Winter System Peaks"},{"$f":"IF(Function=\"gen\",\"F102G\",IF(Function=\"TRN\",\"F102T\",IF(Function=\"DIS\",\"F102D\",IF(Function=\"RETAIL\",\"F102R\",IF(Function=\"MISC\",\"F102M\",\"ERR\")))))","v":"F102D"},{"$f":"IF(Function=\"gen\",\"F102G\",IF(Function=\"TRN\",\"F102T\",IF(Function=\"DIS\",\"F102D\",IF(Function=\"RETAIL\",\"F102R\",IF(Function=\"MISC\",\"F102M\",\"ERR\")))))","v":"F102D"},{"$f":"IF(Function=\"gen\",\"F102G\",IF(Function=\"TRN\",\"F102T\",IF(Function=\"DIS\",\"F102D\",IF(Function=\"RETAIL\",\"F102R\",IF(Function=\"MISC\",\"F102M\",\"ERR\")))))","v":"F102D"},{"$f":"VLOOKUP(+K995,FactSum,2)","v":"100 Summer 100 Winter System Peaks"},"F10"]
[]
["TOTAL INTANGIBLE PLANT"]
[]
[]
["TOTAL ELECTRIC PLANT IN SERVICE"]
[]
[]
[]
[]
["A",null,"B","C","C","C","C",null,"C","C","C",null,"C"]
[]
["FERC",null,null,"COS","COS","COS","COS",null,"COS","COS","COS",null,"COS"]
["ACCT",null,"DESCRIPTION ","Factor","Factor","Factor","Factor",null,"Factor","Factor","Factor",null,"Factor"]
["105","Plant Held For Future Use",null,null,null,null,null,null,null,null,null,null,null,{"$f":"VLOOKUP(+M1010,FactSum,2)","v":"100 Summer 100 Winter System Peaks"}]
[null,null,"Production","F10",{"$f":"IF(Classification=\"DEMAND\",\"F12\",IF(Classification=\"ENERGY\",\"F30\",\"F10\"))","v":"F10"},{"$f":"IF(Classification=\"DEMAND\",\"F12\",IF(Classification=\"ENERGY\",\"F30\",\"F10\"))","v":"F10"},"F10",{"$f":"VLOOKUP(+G1010,FactSum,2)","v":"100 Summer 100 Winter System Peaks"},"F10","F10","F10",{"$f":"VLOOKUP(+K1010,FactSum,2)","v":"100 Summer 100 Winter System Peaks"},"F10",{"$f":"VLOOKUP(+M1011,FactSum,2)","v":"100 Summer 100 Winter System Peaks"}]
[null,null,"Transmission","F10",{"$f":"IF(Classification=\"DEMAND\",\"F12\",IF(Classification=\"ENERGY\",\"F30\",\"F10\"))","v":"F10"},"F10","F10",{"$f":"VLOOKUP(+G1011,FactSum,2)","v":"100 Summer 100 Winter System Peaks"},"F10","F10","F10",{"$f":"VLOOKUP(+K1011,FactSum,2)","v":"100 Summer 100 Winter System Peaks"},"F10",{"$f":"VLOOKUP(+M1012,FactSum,2)","v":"Firm Revenues"}]
[null,null,"Distribution","F20","F20","F20","F20",{"$f":"VLOOKUP(+G1012,FactSum,2)","v":"Firm Revenues"},"F20","F20","F20",{"$f":"VLOOKUP(+K1012,FactSum,2)","v":"Firm Revenues"},"F20",{"$f":"VLOOKUP(+M1013,FactSum,2)","v":"100 Summer 100 Winter System Peaks"}]
[null,null,"General ","F102","F102","F102","F102",{"$f":"VLOOKUP(+G1013,FactSum,2)","v":"100 Summer 100 Winter System Peaks"},"F102","F102","F102",{"$f":"VLOOKUP(+K1013,FactSum,2)","v":"100 Summer 100 Winter System Peaks"},"F10",{"$f":"VLOOKUP(+M1014,FactSum,2)","v":"Firm Revenues"}]
[null,null,"Mining","F10",{"$f":"IF(Classification=\"DEMAND\",\"F12\",IF(Classification=\"ENERGY\",\"F30\",\"F10\"))","v":"F10"},"F30",{"$f":"IF(Classification=\"DEMAND\",\"F12\",IF(Classification=\"ENERGY\",\"F30\",\"F10\"))","v":"F10"},{"$f":"VLOOKUP(+G1014,FactSum,2)","v":"100 Summer 100 Winter System Peaks"},"F30","F30","F30",{"$f":"VLOOKUP(+K1014,FactSum,2)","v":"Firm Revenues"},"F30"]
[null,"Total Plant Held For Future Use"]
[null,null,null,null,null,null,null,null,null,null,null,null,null,{"$f":"VLOOKUP(+M1017,FactSum,2)","v":"100 Summer 100 Winter System Peaks"}]
["114","Electric Plant Acquisition Adjust",null,"F10",{"$f":"IF(Classification=\"DEMAND\",\"F12\",IF(Classification=\"ENERGY\",\"F30\",\"F10\"))","v":"F10"},{"$f":"IF(Classification=\"DEMAND\",\"F12\",IF(Classification=\"ENERGY\",\"F30\",\"F10\"))","v":"F10"},{"$f":"IF(Classification=\"DEMAND\",\"F12\",IF(Classification=\"ENERGY\",\"F30\",\"F10\"))","v":"F10"},{"$f":"VLOOKUP(+G1017,FactSum,2)","v":"100 Summer 100 Winter System Peaks"},{"$f":"IF(Classification=\"DEMAND\",\"F12\",IF(Classification=\"ENERGY\",\"F30\",\"F10\"))","v":"F10"},{"$f":"IF(Classification=\"DEMAND\",\"F12\",IF(Classification=\"ENERGY\",\"F30\",\"F10\"))","v":"F10"},{"$f":"IF(Classification=\"DEMAND\",\"F12\",IF(Classification=\"ENERGY\",\"F30\",\"F10\"))","v":"F10"},{"$f":"VLOOKUP(+K1017,FactSum,2)","v":"100 Summer 100 Winter System Peaks"},"F10"]
[null,null,null,null,null,null,null,null,null,null,null,null,null,{"$f":"VLOOKUP(+M1019,FactSum,2)","v":"Firm Revenues"}]
["120","Nuclear Fuel",null,"F10",{"$f":"IF(Classification=\"DEMAND\",\"F12\",IF(Classification=\"ENERGY\",\"F30\",\"F10\"))","v":"F10"},"F30",{"$f":"IF(Classification=\"DEMAND\",\"F12\",IF(Classification=\"ENERGY\",\"F30\",\"F10\"))","v":"F10"},{"$f":"VLOOKUP(+G1019,FactSum,2)","v":"100 Summer 100 Winter System Peaks"},"F30","F30","F30",{"$f":"VLOOKUP(+K1019,FactSum,2)","v":"Firm Revenues"},"F30"]
[null,null,null,null,null,null,null,null,null,null,null,null,null,{"$f":"VLOOKUP(+M1021,FactSum,2)","v":"100 Summer 100 Winter System Peaks"}]
["124","Weatherization",null,"F10",{"$f":"IF(Classification=\"DEMAND\",\"F12\",IF(Classification=\"ENERGY\",\"F30\",\"F10\"))","v":"F10"},{"$f":"IF(Classification=\"DEMAND\",\"F12\",IF(Classification=\"ENERGY\",\"F30\",\"F10\"))","v":"F10"},{"$f":"IF(Classification=\"DEMAND\",\"F12\",IF(Classification=\"ENERGY\",\"F30\",\"F10\"))","v":"F10"},{"$f":"VLOOKUP(+G1021,FactSum,2)","v":"100 Summer 100 Winter System Peaks"},{"$f":"IF(Classification=\"DEMAND\",\"F12\",IF(Classification=\"ENERGY\",\"F30\",\"F10\"))","v":"F10"},{"$f":"IF(Classification=\"DEMAND\",\"F12\",IF(Classification=\"ENERGY\",\"F30\",\"F11\"))","v":"F11"},{"$f":"IF(Classification=\"DEMAND\",\"F12\",IF(Classification=\"ENERGY\",\"F30\",\"F10\"))","v":"F10"},{"$f":"VLOOKUP(+K1021,FactSum,2)","v":"100 Summer 100 Winter System Peaks"},"F10"]
[null,null,null,null,null,null,null,null,null,null,null,null,null,{"$f":"VLOOKUP(+M1023,FactSum,2)","v":"Firm Revenues"}]
["151","Fuel Stock",null,"F10",{"$f":"IF(Classification=\"DEMAND\",\"F12\",IF(Classification=\"ENERGY\",\"F30\",\"F10\"))","v":"F10"},"F30",{"$f":"IF(Classification=\"DEMAND\",\"F12\",IF(Classification=\"ENERGY\",\"F30\",\"F10\"))","v":"F10"},{"$f":"VLOOKUP(+G1023,FactSum,2)","v":"100 Summer 100 Winter System Peaks"},"F30","F30","F30",{"$f":"VLOOKUP(+K1023,FactSum,2)","v":"Firm Revenues"},"F30"]
[null,null,"JBE","F10",{"$f":"IF(Classification=\"DEMAND\",\"F12\",IF(Classification=\"ENERGY\",\"F30\",\"F10\"))","v":"F10"},"F32",{"$f":"IF(Classification=\"DEMAND\",\"F12\",IF(Classification=\"ENERGY\",\"F30\",\"F10\"))","v":"F10"},{"$f":"VLOOKUP(+G1024,FactSum,2)","v":"100 Summer 100 Winter System Peaks"},"F30","F30","F30",{"$f":"VLOOKUP(+K1024,FactSum,2)","v":"Firm Revenues"},"F30"]
[null,null,"SSECH","F10",{"$f":"IF(Classification=\"DEMAND\",\"F12\",IF(Classification=\"ENERGY\",\"F30\",\"F10\"))","v":"F10"},"F33","F30",null,"F30","F30","F30","F31","F30"]
[]
[null,null,null,null,null,null,null,null,null,null,null,null,null,{"$f":"VLOOKUP(+M1028,FactSum,2)","v":"Firm Revenues"}]
[152,"Fuel Stock - Undistributed",null,"F10",{"$f":"IF(Classification=\"DEMAND\",\"F12\",IF(Classification=\"ENERGY\",\"F30\",\"F10\"))","v":"F10"},"F30",{"$f":"IF(Classification=\"DEMAND\",\"F12\",IF(Classification=\"ENERGY\",\"F30\",\"F10\"))","v":"F10"},{"$f":"VLOOKUP(+G1028,FactSum,2)","v":"100 Summer 100 Winter System Peaks"},"F30","F30","F30",{"$f":"VLOOKUP(+K1028,FactSum,2)","v":"Firm Revenues"},"F30"]
[null,null,null,null,null,null,null,null,null,null,null,null,null,{"$f":"VLOOKUP(+M1030,FactSum,2)","v":"Firm Revenues"}]
["25316","DG&T Working Capital Deposit",null,"F10",{"$f":"IF(Classification=\"DEMAND\",\"F12\",IF(Classification=\"ENERGY\",\"F30\",\"F10\"))","v":"F10"},"F30",{"$f":"IF(Classification=\"DEMAND\",\"F12\",IF(Classification=\"ENERGY\",\"F30\",\"F10\"))","v":"F10"},{"$f":"VLOOKUP(+G1030,FactSum,2)","v":"100 Summer 100 Winter System Peaks"},"F30","F30","F30",{"$f":"VLOOKUP(+K1030,FactSum,2)","v":"Firm Revenues"},"F30"]
[null,null,null,null,null,null,null,null,null,null,null,null,null,{"$f":"VLOOKUP(+M1032,FactSum,2)","v":"Firm Revenues"}]
["25317","DG&T Working Capital Deposit",null,"F10",{"$f":"IF(Classification=\"DEMAND\",\"F12\",IF(Classification=\"ENERGY\",\"F30\",\"F10\"))","v":"F10"},"F30",{"$f":"IF(Classification=\"DEMAND\",\"F12\",IF(Classification=\"ENERGY\",\"F30\",\"F10\"))","v":"F10"},{"$f":"VLOOKUP(+G1032,FactSum,2)","v":"100 Summer 100 Winter System Peaks"},"F30","F30","F30",{"$f":"VLOOKUP(+K1032,FactSum,2)","v":"Firm Revenues"},"F30"]
[null,null,null,null,null,null,null,null,null,null,null,null,null,{"$f":"VLOOKUP(+M1034,FactSum,2)","v":"Firm Revenues"}]
["25319","Provo Working Capital Deposit",null,"F10",{"$f":"IF(Classification=\"DEMAND\",\"F12\",IF(Classification=\"ENERGY\",\"F30\",\"F10\"))","v":"F10"},"F30",{"$f":"IF(Classification=\"DEMAND\",\"F12\",IF(Classification=\"ENERGY\",\"F30\",\"F10\"))","v":"F10"},{"$f":"VLOOKUP(+G1034,FactSum,2)","v":"100 Summer 100 Winter System Peaks"},"F30","F30","F30",{"$f":"VLOOKUP(+K1034,FactSum,2)","v":"Firm Revenues"},"F30"]
[null,null,null,null,null,null,null,null,null,null,null,null,null,{"$f":"VLOOKUP(+M1036,FactSum,2)","v":"100 Summer 100 Winter System Peaks"}]
["154","Materials and Supplies",null,"F102D",{"$f":"IF(Function=\"gen\",\"F102G\",IF(Function=\"TRN\",\"F102T\",IF(Function=\"DIS\",\"F102D\",IF(Function=\"RETAIL\",\"F102R\",IF(Function=\"MISC\",\"F102M\",\"ERR\")))))","v":"F102D"},{"$f":"IF(Function=\"gen\",\"F102G\",IF(Function=\"TRN\",\"F102T\",IF(Function=\"DIS\",\"F102D\",IF(Function=\"RETAIL\",\"F102R\",IF(Function=\"MISC\",\"F102M\",\"ERR\")))))","v":"F102D"},{"$f":"IF(Function=\"gen\",\"F102G\",IF(Function=\"TRN\",\"F102T\",IF(Function=\"DIS\",\"F102D\",IF(Function=\"RETAIL\",\"F102R\",IF(Function=\"MISC\",\"F102M\",\"ERR\")))))","v":"F102D"},{"$f":"VLOOKUP(+G1036,FactSum,2)","v":"100 Summer 100 Winter System Peaks"},"F102D","F102D","F102D",{"$f":"VLOOKUP(+K1036,FactSum,2)","v":"100 Summer 100 Winter System Peaks"},"F10"]
[null,null,"JBG","F10",{"$f":"IF(Classification=\"DEMAND\",\"F12\",IF(Classification=\"ENERGY\",\"F30\",\"F10\"))","v":"F10"},{"$f":"IF(Classification=\"DEMAND\",\"F13\",IF(Classification=\"ENERGY\",\"F32\",\"F14\"))","v":"F14"},{"$f":"IF(Classification=\"DEMAND\",\"F12\",IF(Classification=\"ENERGY\",\"F30\",\"F10\"))","v":"F10"},null,"F102D","F102D","F102D","F15","F10"]
[null,null,"SSGCH","F10",{"$f":"IF(Classification=\"DEMAND\",\"F12\",IF(Classification=\"ENERGY\",\"F30\",\"F10\"))","v":"F10"},{"$f":"IF(Classification=\"DEMAND\",\"F15\",IF(Classification=\"ENERGY\",\"F33\",\"F16\"))","v":"F16"},"F102D",null,"F102D","F102D","F102D","F15","F10"]
[]
[null,null,null,null,null,null,null,null,null,null,null,null,null,{"$f":"VLOOKUP(+M1041,FactSum,2)","v":"100 Summer 100 Winter System Peaks"}]
["163","Stores Expense Undistributed",null,"F102D",{"$f":"IF(Function=\"gen\",\"F102G\",IF(Function=\"TRN\",\"F102T\",IF(Function=\"DIS\",\"F102D\",IF(Function=\"RETAIL\",\"F102R\",IF(Function=\"MISC\",\"F102M\",\"ERR\")))))","v":"F102D"},{"$f":"IF(Function=\"gen\",\"F102G\",IF(Function=\"TRN\",\"F102T\",IF(Function=\"DIS\",\"F102D\",IF(Function=\"RETAIL\",\"F102R\",IF(Function=\"MISC\",\"F102M\",\"ERR\")))))","v":"F102D"},{"$f":"IF(Function=\"gen\",\"F102G\",IF(Function=\"TRN\",\"F102T\",IF(Function=\"DIS\",\"F102D\",IF(Function=\"RETAIL\",\"F102R\",IF(Function=\"MISC\",\"F102M\",\"ERR\")))))","v":"F102D"},{"$f":"VLOOKUP(+G1041,FactSum,2)","v":"100 Summer 100 Winter System Peaks"},{"$f":"IF(Function=\"gen\",\"F102G\",IF(Function=\"TRN\",\"F102T\",IF(Function=\"DIS\",\"F102D\",IF(Function=\"RETAIL\",\"F102R\",IF(Function=\"MISC\",\"F102M\",\"ERR\")))))","v":"F102D"},{"$f":"IF(Function=\"gen\",\"F102G\",IF(Function=\"TRN\",\"F102T\",IF(Function=\"DIS\",\"F102D\",IF(Function=\"RETAIL\",\"F102R\",IF(Function=\"MISC\",\"F102M\",\"ERR\")))))","v":"F102D"},{"$f":"IF(Function=\"gen\",\"F102G\",IF(Function=\"TRN\",\"F102T\",IF(Function=\"DIS\",\"F102D\",IF(Function=\"RETAIL\",\"F102R\",IF(Function=\"MISC\",\"F102M\",\"ERR\")))))","v":"F102D"},{"$f":"VLOOKUP(+K1041,FactSum,2)","v":"100 Summer 100 Winter System Peaks"},"F10"]
[null,null,null,null,null,null,null,null,null,null,null,null,null,{"$f":"VLOOKUP(+M1043,FactSum,2)","v":"100 Summer 100 Winter System Peaks"}]
["25318","Provo Working Capital Deposit",null,"F102D",{"$f":"IF(Function=\"gen\",\"F102G\",IF(Function=\"TRN\",\"F102T\",IF(Function=\"DIS\",\"F102D\",IF(Function=\"RETAIL\",\"F102R\",IF(Function=\"MISC\",\"F102M\",\"ERR\")))))","v":"F102D"},{"$f":"IF(Function=\"gen\",\"F102G\",IF(Function=\"TRN\",\"F102T\",IF(Function=\"DIS\",\"F102D\",IF(Function=\"RETAIL\",\"F102R\",IF(Function=\"MISC\",\"F102M\",\"ERR\")))))","v":"F102D"},{"$f":"IF(Function=\"gen\",\"F102G\",IF(Function=\"TRN\",\"F102T\",IF(Function=\"DIS\",\"F102D\",IF(Function=\"RETAIL\",\"F102R\",IF(Function=\"MISC\",\"F102M\",\"ERR\")))))","v":"F102D"},{"$f":"VLOOKUP(+G1043,FactSum,2)","v":"100 Summer 100 Winter System Peaks"},{"$f":"IF(Function=\"gen\",\"F102G\",IF(Function=\"TRN\",\"F102T\",IF(Function=\"DIS\",\"F102D\",IF(Function=\"RETAIL\",\"F102R\",IF(Function=\"MISC\",\"F102M\",\"ERR\")))))","v":"F102D"},{"$f":"IF(Function=\"gen\",\"F102G\",IF(Function=\"TRN\",\"F102T\",IF(Function=\"DIS\",\"F102D\",IF(Function=\"RETAIL\",\"F102R\",IF(Function=\"MISC\",\"F102M\",\"ERR\")))))","v":"F102D"},{"$f":"IF(Function=\"gen\",\"F102G\",IF(Function=\"TRN\",\"F102T\",IF(Function=\"DIS\",\"F102D\",IF(Function=\"RETAIL\",\"F102R\",IF(Function=\"MISC\",\"F102M\",\"ERR\")))))","v":"F102D"},{"$f":"VLOOKUP(+K1043,FactSum,2)","v":"100 Summer 100 Winter System Peaks"},"F10"]
[null,null,null,null,null,null,null,null,null,null,null,null,null,{"$f":"VLOOKUP(+M1045,FactSum,2)","v":"100 Summer 100 Winter System Peaks"}]
["165","Prepayments",null,"F102D",{"$f":"IF(Function=\"gen\",\"F102G\",IF(Function=\"TRN\",\"F102T\",IF(Function=\"DIS\",\"F102D\",IF(Function=\"RETAIL\",\"F102R\",IF(Function=\"MISC\",\"F102M\",\"ERR\")))))","v":"F102D"},{"$f":"IF(Function=\"gen\",\"F102G\",IF(Function=\"TRN\",\"F102T\",IF(Function=\"DIS\",\"F102D\",IF(Function=\"RETAIL\",\"F102R\",IF(Function=\"MISC\",\"F102M\",\"ERR\")))))","v":"F102D"},{"$f":"IF(Function=\"gen\",\"F102G\",IF(Function=\"TRN\",\"F102T\",IF(Function=\"DIS\",\"F102D\",IF(Function=\"RETAIL\",\"F102R\",IF(Function=\"MISC\",\"F102M\",\"ERR\")))))","v":"F102D"},{"$f":"VLOOKUP(+G1045,FactSum,2)","v":"100 Summer 100 Winter System Peaks"},{"$f":"IF(Function=\"gen\",\"F102G\",IF(Function=\"TRN\",\"F102T\",IF(Function=\"DIS\",\"F102D\",IF(Function=\"RETAIL\",\"F102R\",IF(Function=\"MISC\",\"F102M\",\"ERR\")))))","v":"F102D"},{"$f":"IF(Function=\"gen\",\"F102G\",IF(Function=\"TRN\",\"F102T\",IF(Function=\"DIS\",\"F102D\",IF(Function=\"RETAIL\",\"F102R\",IF(Function=\"MISC\",\"F102M\",\"ERR\")))))","v":"F102D"},{"$f":"IF(Function=\"gen\",\"F102G\",IF(Function=\"TRN\",\"F102T\",IF(Function=\"DIS\",\"F102D\",IF(Function=\"RETAIL\",\"F102R\",IF(Function=\"MISC\",\"F102M\",\"ERR\")))))","v":"F102D"},{"$f":"VLOOKUP(+K1045,FactSum,2)","v":"100 Summer 100 Winter System Peaks"},"F10"]
[null,null,"Customer - System","F42","F42","F42","F42","F42","F42","F42","F42","F42","F42"]
[]
[null,null,null,null,null,null,null,null,null,null,null,null,null,{"$f":"VLOOKUP(+M1049,FactSum,2)","v":"100 Summer 100 Winter System Peaks"}]
["182","Misc Regulatory Assets",null,"F102D",{"$f":"IF(Function=\"gen\",\"F102G\",IF(Function=\"TRN\",\"F102T\",IF(Function=\"DIS\",\"F102D\",IF(Function=\"RETAIL\",\"F102R\",IF(Function=\"MISC\",\"F102M\",\"ERR\")))))","v":"F102D"},{"$f":"IF(Function=\"gen\",\"F102G\",IF(Function=\"TRN\",\"F102T\",IF(Function=\"DIS\",\"F102D\",IF(Function=\"RETAIL\",\"F102R\",IF(Function=\"MISC\",\"F102M\",\"ERR\")))))","v":"F102D"},{"$f":"IF(Function=\"gen\",\"F102G\",IF(Function=\"TRN\",\"F102T\",IF(Function=\"DIS\",\"F102D\",IF(Function=\"RETAIL\",\"F102R\",IF(Function=\"MISC\",\"F102M\",\"ERR\")))))","v":"F102D"},{"$f":"VLOOKUP(+G1049,FactSum,2)","v":"100 Summer 100 Winter System Peaks"},"F102D","F102D","F102D",{"$f":"VLOOKUP(+K1049,FactSum,2)","v":"100 Summer 100 Winter System Peaks"},"F10"]
[null,null,"SSGCH","F10",{"$f":"IF(Classification=\"DEMAND\",\"F12\",IF(Classification=\"ENERGY\",\"F30\",\"F10\"))","v":"F10"},{"$f":"IF(Classification=\"DEMAND\",\"F15\",IF(Classification=\"ENERGY\",\"F33\",\"F16\"))","v":"F16"},"F102D",null,"F102D","F102D","F102D","F15","F10"]
[]
[null,null,null,null,null,null,null,null,null,null,null,null,null,{"$f":"VLOOKUP(+M1053,FactSum,2)","v":"100 Summer 100 Winter System Peaks"}]
["186","Misc Deferred Debits & Weather",null,"F102D",{"$f":"IF(Function=\"gen\",\"F102G\",IF(Function=\"TRN\",\"F102T\",IF(Function=\"DIS\",\"F102D\",IF(Function=\"RETAIL\",\"F102R\",IF(Function=\"MISC\",\"F102M\",\"ERR\")))))","v":"F102D"},{"$f":"IF(Function=\"gen\",\"F102G\",IF(Function=\"TRN\",\"F102T\",IF(Function=\"DIS\",\"F102D\",IF(Function=\"RETAIL\",\"F102R\",IF(Function=\"MISC\",\"F102M\",\"ERR\")))))","v":"F102D"},{"$f":"IF(Function=\"gen\",\"F102G\",IF(Function=\"TRN\",\"F102T\",IF(Function=\"DIS\",\"F102D\",IF(Function=\"RETAIL\",\"F102R\",IF(Function=\"MISC\",\"F102M\",\"ERR\")))))","v":"F102D"},{"$f":"VLOOKUP(+G1053,FactSum,2)","v":"100 Summer 100 Winter System Peaks"},{"$f":"IF(Function=\"gen\",\"F102G\",IF(Function=\"TRN\",\"F102T\",IF(Function=\"DIS\",\"F102D\",IF(Function=\"RETAIL\",\"F102R\",IF(Function=\"MISC\",\"F102M\",\"ERR\")))))","v":"F102D"},{"$f":"IF(Function=\"gen\",\"F102G\",IF(Function=\"TRN\",\"F102T\",IF(Function=\"DIS\",\"F102D\",IF(Function=\"RETAIL\",\"F102R\",IF(Function=\"MISC\",\"F102M\",\"ERR\")))))","v":"F102D"},{"$f":"IF(Function=\"gen\",\"F102G\",IF(Function=\"TRN\",\"F102T\",IF(Function=\"DIS\",\"F102D\",IF(Function=\"RETAIL\",\"F102R\",IF(Function=\"MISC\",\"F102M\",\"ERR\")))))","v":"F102D"},{"$f":"VLOOKUP(+K1053,FactSum,2)","v":"100 Summer 100 Winter System Peaks"},"F10"]
[null,null,null,null,null,null,null,null,null,null,null,null,null,{"$f":"VLOOKUP(+M1055,FactSum,2)","v":"100 Summer 100 Winter System Peaks"}]
["CWC","Cash Working Capital",null,"F137D",{"$f":"IF(Function=\"gen\",\"F137G\",IF(Function=\"TRN\",\"F137T\",IF(Function=\"DIS\",\"F137D\",IF(Function=\"RETAIL\",\"F137R\",IF(Function=\"MISC\",\"F137M\",\"ERR\")))))","v":"F137D"},{"$f":"IF(Function=\"gen\",\"F137G\",IF(Function=\"TRN\",\"F137T\",IF(Function=\"DIS\",\"F137D\",IF(Function=\"RETAIL\",\"F137R\",IF(Function=\"MISC\",\"F137M\",\"ERR\")))))","v":"F137D"},{"$f":"IF(Function=\"gen\",\"F137G\",IF(Function=\"TRN\",\"F137T\",IF(Function=\"DIS\",\"F137D\",IF(Function=\"RETAIL\",\"F137R\",IF(Function=\"MISC\",\"F137M\",\"ERR\")))))","v":"F137D"},{"$f":"VLOOKUP(+G1055,FactSum,2,FALSE)","v":"Distribution O & M Exp "},{"$f":"IF(Function=\"gen\",\"F137G\",IF(Function=\"TRN\",\"F137T\",IF(Function=\"DIS\",\"F137D\",IF(Function=\"RETAIL\",\"F137R\",IF(Function=\"MISC\",\"F137M\",\"ERR\")))))","v":"F137D"},{"$f":"IF(Function=\"gen\",\"F137G\",IF(Function=\"TRN\",\"F137T\",IF(Function=\"DIS\",\"F137D\",IF(Function=\"RETAIL\",\"F137R\",IF(Function=\"MISC\",\"F137M\",\"ERR\")))))","v":"F137D"},{"$f":"IF(Function=\"gen\",\"F137G\",IF(Function=\"TRN\",\"F137T\",IF(Function=\"DIS\",\"F137D\",IF(Function=\"RETAIL\",\"F137R\",IF(Function=\"MISC\",\"F137M\",\"ERR\")))))","v":"F137D"},{"$f":"VLOOKUP(+K1055,FactSum,2,FALSE)","v":"Distribution O & M Exp "},"F10"]
[null,null,null,null,null,null,null,null,null,null,null,null,null,{"$f":"VLOOKUP(+M1057,FactSum,2)","v":"100 Summer 100 Winter System Peaks"}]
["OWC","Other Working Capital",null,"F137D",{"$f":"IF(Function=\"gen\",\"F137G\",IF(Function=\"TRN\",\"F137T\",IF(Function=\"DIS\",\"F137D\",IF(Function=\"RETAIL\",\"F137R\",IF(Function=\"MISC\",\"F137M\",\"ERR\")))))","v":"F137D"},{"$f":"IF(Function=\"gen\",\"F137G\",IF(Function=\"TRN\",\"F137T\",IF(Function=\"DIS\",\"F137D\",IF(Function=\"RETAIL\",\"F137R\",IF(Function=\"MISC\",\"F137M\",\"ERR\")))))","v":"F137D"},{"$f":"IF(Function=\"gen\",\"F137G\",IF(Function=\"TRN\",\"F137T\",IF(Function=\"DIS\",\"F137D\",IF(Function=\"RETAIL\",\"F137R\",IF(Function=\"MISC\",\"F137M\",\"ERR\")))))","v":"F137D"},{"$f":"VLOOKUP(+G1057,FactSum,2,FALSE)","v":"Distribution O & M Exp "},"F137D","F137D","F137D",{"$f":"VLOOKUP(+K1057,FactSum,2,FALSE)","v":"Distribution O & M Exp "},"F10"]
[null,null,"SSECH","F10",{"$f":"IF(Classification=\"DEMAND\",\"F12\",IF(Classification=\"ENERGY\",\"F30\",\"F10\"))","v":"F10"},"F33","F137D",null,"F137D","F137D","F137D","F33","F30"]
[]
[null,null,null,null,null,null,null,null,null,null,null,null,null,{"$f":"VLOOKUP(+M1061,FactSum,2)","v":"SGP - System General Plant"}]
["18222","Nuclear Plant",null,"F10",{"$f":"IF(Classification=\"DEMAND\",\"F12\",IF(Classification=\"ENERGY\",\"F30\",\"F10\"))","v":"F10"},{"$f":"IF(Classification=\"DEMAND\",\"F12\",IF(Classification=\"ENERGY\",\"F30\",\"F11\"))","v":"F11"},{"$f":"IF(Classification=\"DEMAND\",\"F12\",IF(Classification=\"ENERGY\",\"F30\",\"F10\"))","v":"F10"},{"$f":"VLOOKUP(+G1061,FactSum,2)","v":"100 Summer 100 Winter System Peaks"},{"$f":"IF(Classification=\"DEMAND\",\"F12\",IF(Classification=\"ENERGY\",\"F30\",\"F11\"))","v":"F11"},{"$f":"IF(Classification=\"DEMAND\",\"F12\",IF(Classification=\"ENERGY\",\"F30\",\"F11\"))","v":"F11"},{"$f":"IF(Classification=\"DEMAND\",\"F12\",IF(Classification=\"ENERGY\",\"F30\",\"F11\"))","v":"F11"},{"$f":"VLOOKUP(+K1061,FactSum,2)","v":"SGP - System General Plant"},"F11"]
[null,null,null,null,null,null,null,null,null,null,null,null,null,{"$f":"VLOOKUP(+M1063,FactSum,2)","v":"100 Summer 100 Winter System Peaks"}]
["1869","Misc Deferred Debits-Trojan",null,"F10",{"$f":"IF(Classification=\"DEMAND\",\"F12\",IF(Classification=\"ENERGY\",\"F30\",\"F10\"))","v":"F10"},{"$f":"IF(Classification=\"DEMAND\",\"F12\",IF(Classification=\"ENERGY\",\"F30\",\"F10\"))","v":"F10"},{"$f":"IF(Classification=\"DEMAND\",\"F12\",IF(Classification=\"ENERGY\",\"F30\",\"F10\"))","v":"F10"},{"$f":"VLOOKUP(+G1063,FactSum,2)","v":"100 Summer 100 Winter System Peaks"},{"$f":"IF(Classification=\"DEMAND\",\"F12\",IF(Classification=\"ENERGY\",\"F30\",\"F10\"))","v":"F10"},{"$f":"IF(Classification=\"DEMAND\",\"F12\",IF(Classification=\"ENERGY\",\"F30\",\"F10\"))","v":"F10"},{"$f":"IF(Classification=\"DEMAND\",\"F12\",IF(Classification=\"ENERGY\",\"F30\",\"F10\"))","v":"F10"},{"$f":"VLOOKUP(+K1063,FactSum,2)","v":"100 Summer 100 Winter System Peaks"},"F10"]
[null,null,null,null,null,null,null,null,null,null,null,null,null,{"$f":"VLOOKUP(+M1065,FactSum,2)","v":"Firm Revenues"}]
["141","Impact Housing - Notes Receivable",null,"F10",{"$f":"IF(Classification=\"DEMAND\",\"F12\",IF(Classification=\"ENERGY\",\"F30\",\"F10\"))","v":"F10"},"F30",{"$f":"IF(Classification=\"DEMAND\",\"F12\",IF(Classification=\"ENERGY\",\"F30\",\"F10\"))","v":"F10"},{"$f":"VLOOKUP(+G1065,FactSum,2)","v":"100 Summer 100 Winter System Peaks"},"F30","F30","F30",{"$f":"VLOOKUP(+K1065,FactSum,2)","v":"Firm Revenues"},"F30"]
[]
[]
[]
[]
[]
[]
[]
["TOTAL RATE BASE ADDITIONS"]
[null,null,null,null,null,null,null,null,null,null,null,null,null,{"$f":"VLOOKUP(+M1075,FactSum,2)","v":"Firm Revenues"}]
["235","Customer Service Deposits",null,"F51","F51","F51","F51",{"$f":"VLOOKUP(+G1075,FactSum,2)","v":"Firm Revenues"},"F51","F51","F51",{"$f":"VLOOKUP(+K1075,FactSum,2)","v":"Firm Revenues"},"F51"]
[null,null,null,"F51","F51","F51","F51",{"$f":"VLOOKUP(+G1076,FactSum,2)","v":"Firm Revenues"},"F51","F51","F51",{"$f":"VLOOKUP(+K1076,FactSum,2)","v":"Firm Revenues"},"F51",{"$f":"VLOOKUP(+M1079,FactSum,2)","v":"100 Summer 100 Winter System Peaks"}]
[]
[null,null,null,null,null,null,null,null,null,null,null,null,null,{"$f":"VLOOKUP(+M1081,FactSum,2)","v":"100 Summer 100 Winter System Peaks"}]
["2281","Accum Prov for Property Insurance",null,"F102D",{"$f":"IF(Function=\"gen\",\"F102G\",IF(Function=\"TRN\",\"F102T\",IF(Function=\"DIS\",\"F102D\",IF(Function=\"RETAIL\",\"F102R\",IF(Function=\"MISC\",\"F102M\",\"ERR\")))))","v":"F102D"},{"$f":"IF(Function=\"gen\",\"F102G\",IF(Function=\"TRN\",\"F102T\",IF(Function=\"DIS\",\"F102D\",IF(Function=\"RETAIL\",\"F102R\",IF(Function=\"MISC\",\"F102M\",\"ERR\")))))","v":"F102D"},{"$f":"IF(Function=\"gen\",\"F102G\",IF(Function=\"TRN\",\"F102T\",IF(Function=\"DIS\",\"F102D\",IF(Function=\"RETAIL\",\"F102R\",IF(Function=\"MISC\",\"F102M\",\"ERR\")))))","v":"F102D"},{"$f":"VLOOKUP(+G1079,FactSum,2)","v":"100 Summer 100 Winter System Peaks"},{"$f":"IF(Function=\"gen\",\"F102G\",IF(Function=\"TRN\",\"F102T\",IF(Function=\"DIS\",\"F102D\",IF(Function=\"RETAIL\",\"F102R\",IF(Function=\"MISC\",\"F102M\",\"ERR\")))))","v":"F102D"},{"$f":"IF(Function=\"gen\",\"F102G\",IF(Function=\"TRN\",\"F102T\",IF(Function=\"DIS\",\"F102D\",IF(Function=\"RETAIL\",\"F102R\",IF(Function=\"MISC\",\"F102M\",\"ERR\")))))","v":"F102D"},{"$f":"IF(Function=\"gen\",\"F102G\",IF(Function=\"TRN\",\"F102T\",IF(Function=\"DIS\",\"F102D\",IF(Function=\"RETAIL\",\"F102R\",IF(Function=\"MISC\",\"F102M\",\"ERR\")))))","v":"F102D"},{"$f":"VLOOKUP(+K1079,FactSum,2)","v":"100 Summer 100 Winter System Peaks"},"F10"]
[null,null,null,null,null,null,null,null,null,null,null,null,null,{"$f":"VLOOKUP(+M1083,FactSum,2)","v":"100 Summer 100 Winter System Peaks"}]
["2282","Accum Prov for Injuries & Damages",null,"F102D",{"$f":"IF(Function=\"gen\",\"F102G\",IF(Function=\"TRN\",\"F102T\",IF(Function=\"DIS\",\"F102D\",IF(Function=\"RETAIL\",\"F102R\",IF(Function=\"MISC\",\"F102M\",\"ERR\")))))","v":"F102D"},{"$f":"IF(Function=\"gen\",\"F102G\",IF(Function=\"TRN\",\"F102T\",IF(Function=\"DIS\",\"F102D\",IF(Function=\"RETAIL\",\"F102R\",IF(Function=\"MISC\",\"F102M\",\"ERR\")))))","v":"F102D"},{"$f":"IF(Function=\"gen\",\"F102G\",IF(Function=\"TRN\",\"F102T\",IF(Function=\"DIS\",\"F102D\",IF(Function=\"RETAIL\",\"F102R\",IF(Function=\"MISC\",\"F102M\",\"ERR\")))))","v":"F102D"},{"$f":"VLOOKUP(+G1081,FactSum,2)","v":"100 Summer 100 Winter System Peaks"},{"$f":"IF(Function=\"gen\",\"F102G\",IF(Function=\"TRN\",\"F102T\",IF(Function=\"DIS\",\"F102D\",IF(Function=\"RETAIL\",\"F102R\",IF(Function=\"MISC\",\"F102M\",\"ERR\")))))","v":"F102D"},{"$f":"IF(Function=\"gen\",\"F102G\",IF(Function=\"TRN\",\"F102T\",IF(Function=\"DIS\",\"F102D\",IF(Function=\"RETAIL\",\"F102R\",IF(Function=\"MISC\",\"F102M\",\"ERR\")))))","v":"F102D"},{"$f":"IF(Function=\"gen\",\"F102G\",IF(Function=\"TRN\",\"F102T\",IF(Function=\"DIS\",\"F102D\",IF(Function=\"RETAIL\",\"F102R\",IF(Function=\"MISC\",\"F102M\",\"ERR\")))))","v":"F102D"},{"$f":"VLOOKUP(+K1081,FactSum,2)","v":"100 Summer 100 Winter System Peaks"},"F10"]
[]
["2283","Accum Prov for Pensions & Benefits",null,"F102D",{"$f":"IF(Function=\"gen\",\"F102G\",IF(Function=\"TRN\",\"F102T\",IF(Function=\"DIS\",\"F102D\",IF(Function=\"RETAIL\",\"F102R\",IF(Function=\"MISC\",\"F102M\",\"ERR\")))))","v":"F102D"},{"$f":"IF(Function=\"gen\",\"F102G\",IF(Function=\"TRN\",\"F102T\",IF(Function=\"DIS\",\"F102D\",IF(Function=\"RETAIL\",\"F102R\",IF(Function=\"MISC\",\"F102M\",\"ERR\")))))","v":"F102D"},{"$f":"IF(Function=\"gen\",\"F102G\",IF(Function=\"TRN\",\"F102T\",IF(Function=\"DIS\",\"F102D\",IF(Function=\"RETAIL\",\"F102R\",IF(Function=\"MISC\",\"F102M\",\"ERR\")))))","v":"F102D"},{"$f":"VLOOKUP(+G1083,FactSum,2)","v":"100 Summer 100 Winter System Peaks"},{"$f":"IF(Function=\"gen\",\"F102G\",IF(Function=\"TRN\",\"F102T\",IF(Function=\"DIS\",\"F102D\",IF(Function=\"RETAIL\",\"F102R\",IF(Function=\"MISC\",\"F102M\",\"ERR\")))))","v":"F102D"},{"$f":"IF(Function=\"gen\",\"F102G\",IF(Function=\"TRN\",\"F102T\",IF(Function=\"DIS\",\"F102D\",IF(Function=\"RETAIL\",\"F102R\",IF(Function=\"MISC\",\"F102M\",\"ERR\")))))","v":"F102D"},{"$f":"IF(Function=\"gen\",\"F102G\",IF(Function=\"TRN\",\"F102T\",IF(Function=\"DIS\",\"F102D\",IF(Function=\"RETAIL\",\"F102R\",IF(Function=\"MISC\",\"F102M\",\"ERR\")))))","v":"F102D"},{"$f":"VLOOKUP(+K1083,FactSum,2)","v":"100 Summer 100 Winter System Peaks"},"F10"]
[null,null,null,null,null,null,null,null,null,null,null,null,null,{"$f":"VLOOKUP(+M1087,FactSum,2)","v":"Firm Revenues"}]
[254,null,"Reg Liabilities - Insurance Provision","F102D",{"$f":"IF(Function=\"gen\",\"F102G\",IF(Function=\"TRN\",\"F102T\",IF(Function=\"DIS\",\"F102D\",IF(Function=\"RETAIL\",\"F102R\",IF(Function=\"MISC\",\"F102M\",\"ERR\")))))","v":"F102D"},{"$f":"IF(Function=\"gen\",\"F102G\",IF(Function=\"TRN\",\"F102T\",IF(Function=\"DIS\",\"F102D\",IF(Function=\"RETAIL\",\"F102R\",IF(Function=\"MISC\",\"F102M\",\"ERR\")))))","v":"F102D"},{"$f":"IF(Function=\"gen\",\"F102G\",IF(Function=\"TRN\",\"F102T\",IF(Function=\"DIS\",\"F102D\",IF(Function=\"RETAIL\",\"F102R\",IF(Function=\"MISC\",\"F102M\",\"ERR\")))))","v":"F102D"},{"$f":"VLOOKUP(+G1085,FactSum,2)","v":"100 Summer 100 Winter System Peaks"},{"$f":"IF(Function=\"gen\",\"F102G\",IF(Function=\"TRN\",\"F102T\",IF(Function=\"DIS\",\"F102D\",IF(Function=\"RETAIL\",\"F102R\",IF(Function=\"MISC\",\"F102M\",\"ERR\")))))","v":"F102D"},{"$f":"IF(Function=\"gen\",\"F102G\",IF(Function=\"TRN\",\"F102T\",IF(Function=\"DIS\",\"F102D\",IF(Function=\"RETAIL\",\"F102R\",IF(Function=\"MISC\",\"F102M\",\"ERR\")))))","v":"F102D"},{"$f":"IF(Function=\"gen\",\"F102G\",IF(Function=\"TRN\",\"F102T\",IF(Function=\"DIS\",\"F102D\",IF(Function=\"RETAIL\",\"F102R\",IF(Function=\"MISC\",\"F102M\",\"ERR\")))))","v":"F102D"},{"$f":"VLOOKUP(+K1085,FactSum,2)","v":"100 Summer 100 Winter System Peaks"},"F10"]
[null,null,null,null,null,null,null,null,null,null,null,null,null,{"$f":"VLOOKUP(+M1089,FactSum,2)","v":"Firm Revenues"}]
[22841,"Accum Misc Oper Prov - Black Lung",null,"F10",{"$f":"IF(Classification=\"DEMAND\",\"F12\",IF(Classification=\"ENERGY\",\"F30\",\"F10\"))","v":"F10"},"F30",{"$f":"IF(Classification=\"DEMAND\",\"F12\",IF(Classification=\"ENERGY\",\"F30\",\"F10\"))","v":"F10"},{"$f":"VLOOKUP(+G1087,FactSum,2)","v":"100 Summer 100 Winter System Peaks"},"F30","F30","F30",{"$f":"VLOOKUP(+K1087,FactSum,2)","v":"Firm Revenues"},"F30"]
[]
["22842","Accum Misc Oper Prov - Trojan",null,"F10",{"$f":"IF(Classification=\"DEMAND\",\"F12\",IF(Classification=\"ENERGY\",\"F30\",\"F10\"))","v":"F10"},"F30",{"$f":"IF(Classification=\"DEMAND\",\"F12\",IF(Classification=\"ENERGY\",\"F30\",\"F10\"))","v":"F10"},{"$f":"VLOOKUP(+G1089,FactSum,2)","v":"100 Summer 100 Winter System Peaks"},"F30","F30","F30",{"$f":"VLOOKUP(+K1089,FactSum,2)","v":"Firm Revenues"},"F30",{"$f":"VLOOKUP(+M1092,FactSum,2)","v":"Firm Revenues"}]
[]
[null,null,null,null,null,null,null,null,null,null,null,null,null,{"$f":"VLOOKUP(+M1096,FactSum,2)","v":"100 Summer 100 Winter System Peaks"}]
["252","Customer Advances for Const",null,"F50","F50","F50","F50",{"$f":"VLOOKUP(+G1092,FactSum,2)","v":"Firm Revenues"},"F50","F50","F50",{"$f":"VLOOKUP(+K1092,FactSum,2)","v":"Firm Revenues"},"F50"]
[null,null,null,null,null,null,null,null,null,null,null,null,null,{"$f":"VLOOKUP(+M1098,FactSum,2)","v":"100 Summer 100 Winter System Peaks"}]
["25398","SO2 EMMISSIONS",null,"F10",{"$f":"IF(Classification=\"DEMAND\",\"F12\",IF(Classification=\"ENERGY\",\"F30\",\"F10\"))","v":"F10"},"F30",{"$f":"IF(Classification=\"DEMAND\",\"F12\",IF(Classification=\"ENERGY\",\"F30\",\"F10\"))","v":"F10"},null,"F30",null,"F30",null,"F30"]
[]
["25399","Other Deferred Credits",null,"F10",{"$f":"IF(Classification=\"DEMAND\",\"F12\",IF(Classification=\"ENERGY\",\"F30\",\"F10\"))","v":"F10"},{"$f":"IF(Classification=\"DEMAND\",\"F12\",IF(Classification=\"ENERGY\",\"F30\",\"F10\"))","v":"F10"},{"$f":"IF(Classification=\"DEMAND\",\"F12\",IF(Classification=\"ENERGY\",\"F30\",\"F10\"))","v":"F10"},{"$f":"VLOOKUP(+G1096,FactSum,2)","v":"100 Summer 100 Winter System Peaks"},{"$f":"IF(Classification=\"DEMAND\",\"F12\",IF(Classification=\"ENERGY\",\"F30\",\"F10\"))","v":"F10"},{"$f":"IF(Classification=\"DEMAND\",\"F12\",IF(Classification=\"ENERGY\",\"F30\",\"F10\"))","v":"F10"},{"$f":"IF(Classification=\"DEMAND\",\"F12\",IF(Classification=\"ENERGY\",\"F30\",\"F10\"))","v":"F10"},{"$f":"VLOOKUP(+K1096,FactSum,2)","v":"100 Summer 100 Winter System Peaks"},"F10"]
[]
["190","Accum Deferred Income Taxes",null,"F104D",{"$f":"IF(Function=\"gen\",\"F104G\",IF(Function=\"TRN\",\"F104T\",IF(Function=\"DIS\",\"F104D\",IF(Function=\"RETAIL\",\"F104R\",IF(Function=\"MISC\",\"F104M\",\"ERR\")))))","v":"F104D"},{"$f":"IF(Function=\"gen\",\"F104G\",IF(Function=\"TRN\",\"F104T\",IF(Function=\"DIS\",\"F104D\",IF(Function=\"RETAIL\",\"F104R\",IF(Function=\"MISC\",\"F104M\",\"ERR\")))))","v":"F104D"},{"$f":"IF(Function=\"gen\",\"F104G\",IF(Function=\"TRN\",\"F104T\",IF(Function=\"DIS\",\"F104D\",IF(Function=\"RETAIL\",\"F104R\",IF(Function=\"MISC\",\"F104M\",\"ERR\")))))","v":"F104D"},{"$f":"VLOOKUP(+G1098,FactSum,2)","v":"100 Summer 100 Winter System Peaks"},{"$f":"IF(Function=\"gen\",\"F104G\",IF(Function=\"TRN\",\"F104T\",IF(Function=\"DIS\",\"F104D\",IF(Function=\"RETAIL\",\"F104R\",IF(Function=\"MISC\",\"F104M\",\"ERR\")))))","v":"F104D"},{"$f":"IF(Function=\"gen\",\"F104G\",IF(Function=\"TRN\",\"F104T\",IF(Function=\"DIS\",\"F104D\",IF(Function=\"RETAIL\",\"F104R\",IF(Function=\"MISC\",\"F104M\",\"ERR\")))))","v":"F104D"},{"$f":"IF(Function=\"gen\",\"F104G\",IF(Function=\"TRN\",\"F104T\",IF(Function=\"DIS\",\"F104D\",IF(Function=\"RETAIL\",\"F104R\",IF(Function=\"MISC\",\"F104M\",\"ERR\")))))","v":"F104D"},{"$f":"VLOOKUP(+K1098,FactSum,2)","v":"100 Summer 100 Winter System Peaks"},"F10",{"$f":"VLOOKUP(+M1103,FactSum,2)","v":"100 Summer 100 Winter System Peaks"}]
[null,null," Labor","F138D",{"$f":"IF(Function=\"gen\",\"F138G\",IF(Function=\"TRN\",\"F138T\",IF(Function=\"DIS\",\"F138D\",IF(Function=\"RETAIL\",\"F138R\",IF(Function=\"MISC\",\"F138M\",\"ERR\")))))","v":"F138D"},{"$f":"IF(Function=\"gen\",\"F138G\",IF(Function=\"TRN\",\"F138T\",IF(Function=\"DIS\",\"F138D\",IF(Function=\"RETAIL\",\"F138R\",IF(Function=\"MISC\",\"F138M\",\"ERR\")))))","v":"F138D"},{"$f":"IF(Function=\"gen\",\"F138G\",IF(Function=\"TRN\",\"F138T\",IF(Function=\"DIS\",\"F138D\",IF(Function=\"RETAIL\",\"F138R\",IF(Function=\"MISC\",\"F138M\",\"ERR\")))))","v":"F138D"},{"$f":"VLOOKUP(+G1099,FactSum,2,FALSE)","v":"Distribution O & M Exp "},{"$f":"IF(Function=\"gen\",\"F138G\",IF(Function=\"TRN\",\"F138T\",IF(Function=\"DIS\",\"F138D\",IF(Function=\"RETAIL\",\"F138R\",IF(Function=\"MISC\",\"F138M\",\"ERR\")))))","v":"F138D"},{"$f":"IF(Function=\"gen\",\"F138G\",IF(Function=\"TRN\",\"F138T\",IF(Function=\"DIS\",\"F138D\",IF(Function=\"RETAIL\",\"F138R\",IF(Function=\"MISC\",\"F138M\",\"ERR\")))))","v":"F138D"},{"$f":"IF(Function=\"gen\",\"F138G\",IF(Function=\"TRN\",\"F138T\",IF(Function=\"DIS\",\"F138D\",IF(Function=\"RETAIL\",\"F138R\",IF(Function=\"MISC\",\"F138M\",\"ERR\")))))","v":"F138D"},{"$f":"VLOOKUP(+K1099,FactSum,2,FALSE)","v":"Distribution O & M Exp "},"F10"]
[null,null,"Customer - System","F42","F42","F42","F42","F42","F42","F42","F42","F42","F42",{"$f":"VLOOKUP(+M1105,FactSum,2)","v":"100 Summer 100 Winter System Peaks"}]
[]
[]
["281","Accum Deferred Income Taxes",null,"F104D",{"$f":"IF(Function=\"gen\",\"F104G\",IF(Function=\"TRN\",\"F104T\",IF(Function=\"DIS\",\"F104D\",IF(Function=\"RETAIL\",\"F104R\",IF(Function=\"MISC\",\"F104M\",\"ERR\")))))","v":"F104D"},{"$f":"IF(Function=\"gen\",\"F104G\",IF(Function=\"TRN\",\"F104T\",IF(Function=\"DIS\",\"F104D\",IF(Function=\"RETAIL\",\"F104R\",IF(Function=\"MISC\",\"F104M\",\"ERR\")))))","v":"F104D"},{"$f":"IF(Function=\"gen\",\"F104G\",IF(Function=\"TRN\",\"F104T\",IF(Function=\"DIS\",\"F104D\",IF(Function=\"RETAIL\",\"F104R\",IF(Function=\"MISC\",\"F104M\",\"ERR\")))))","v":"F104D"},{"$f":"VLOOKUP(+G1103,FactSum,2)","v":"100 Summer 100 Winter System Peaks"},{"$f":"IF(Function=\"gen\",\"F104G\",IF(Function=\"TRN\",\"F104T\",IF(Function=\"DIS\",\"F104D\",IF(Function=\"RETAIL\",\"F104R\",IF(Function=\"MISC\",\"F104M\",\"ERR\")))))","v":"F104D"},{"$f":"IF(Function=\"gen\",\"F104G\",IF(Function=\"TRN\",\"F104T\",IF(Function=\"DIS\",\"F104D\",IF(Function=\"RETAIL\",\"F104R\",IF(Function=\"MISC\",\"F104M\",\"ERR\")))))","v":"F104D"},{"$f":"IF(Function=\"gen\",\"F104G\",IF(Function=\"TRN\",\"F104T\",IF(Function=\"DIS\",\"F104D\",IF(Function=\"RETAIL\",\"F104R\",IF(Function=\"MISC\",\"F104M\",\"ERR\")))))","v":"F104D"},{"$f":"VLOOKUP(+K1103,FactSum,2)","v":"100 Summer 100 Winter System Peaks"},"F10"]
[]
["282","Accum Deferred Income Taxes ",null,"F104D",{"$f":"IF(Function=\"gen\",\"F104G\",IF(Function=\"TRN\",\"F104T\",IF(Function=\"DIS\",\"F104D\",IF(Function=\"RETAIL\",\"F104R\",IF(Function=\"MISC\",\"F104M\",\"ERR\")))))","v":"F104D"},{"$f":"IF(Function=\"gen\",\"F104G\",IF(Function=\"TRN\",\"F104T\",IF(Function=\"DIS\",\"F104D\",IF(Function=\"RETAIL\",\"F104R\",IF(Function=\"MISC\",\"F104M\",\"ERR\")))))","v":"F104D"},{"$f":"IF(Function=\"gen\",\"F104G\",IF(Function=\"TRN\",\"F104T\",IF(Function=\"DIS\",\"F104D\",IF(Function=\"RETAIL\",\"F104R\",IF(Function=\"MISC\",\"F104M\",\"ERR\")))))","v":"F104D"},{"$f":"VLOOKUP(+G1105,FactSum,2)","v":"100 Summer 100 Winter System Peaks"},{"$f":"IF(Function=\"gen\",\"F104G\",IF(Function=\"TRN\",\"F104T\",IF(Function=\"DIS\",\"F104D\",IF(Function=\"RETAIL\",\"F104R\",IF(Function=\"MISC\",\"F104M\",\"ERR\")))))","v":"F104D"},{"$f":"IF(Function=\"gen\",\"F104G\",IF(Function=\"TRN\",\"F104T\",IF(Function=\"DIS\",\"F104D\",IF(Function=\"RETAIL\",\"F104R\",IF(Function=\"MISC\",\"F104M\",\"ERR\")))))","v":"F104D"},{"$f":"IF(Function=\"gen\",\"F104G\",IF(Function=\"TRN\",\"F104T\",IF(Function=\"DIS\",\"F104D\",IF(Function=\"RETAIL\",\"F104R\",IF(Function=\"MISC\",\"F104M\",\"ERR\")))))","v":"F104D"},{"$f":"VLOOKUP(+K1105,FactSum,2)","v":"100 Summer 100 Winter System Peaks"},"F10",{"$f":"VLOOKUP(+M1110,FactSum,2)","v":"100 Summer 100 Winter System Peaks"}]
[null,null," Labor","F138D",{"$f":"IF(Function=\"gen\",\"F138G\",IF(Function=\"TRN\",\"F138T\",IF(Function=\"DIS\",\"F138D\",IF(Function=\"RETAIL\",\"F138R\",IF(Function=\"MISC\",\"F138M\",\"ERR\")))))","v":"F138D"},{"$f":"IF(Function=\"gen\",\"F138G\",IF(Function=\"TRN\",\"F138T\",IF(Function=\"DIS\",\"F138D\",IF(Function=\"RETAIL\",\"F138R\",IF(Function=\"MISC\",\"F138M\",\"ERR\")))))","v":"F138D"},{"$f":"IF(Function=\"gen\",\"F138G\",IF(Function=\"TRN\",\"F138T\",IF(Function=\"DIS\",\"F138D\",IF(Function=\"RETAIL\",\"F138R\",IF(Function=\"MISC\",\"F138M\",\"ERR\")))))","v":"F138D"},{"$f":"VLOOKUP(+G1106,FactSum,2,FALSE)","v":"Distribution O & M Exp "},{"$f":"IF(Function=\"gen\",\"F138G\",IF(Function=\"TRN\",\"F138T\",IF(Function=\"DIS\",\"F138D\",IF(Function=\"RETAIL\",\"F138R\",IF(Function=\"MISC\",\"F138M\",\"ERR\")))))","v":"F138D"},{"$f":"IF(Function=\"gen\",\"F138G\",IF(Function=\"TRN\",\"F138T\",IF(Function=\"DIS\",\"F138D\",IF(Function=\"RETAIL\",\"F138R\",IF(Function=\"MISC\",\"F138M\",\"ERR\")))))","v":"F138D"},{"$f":"IF(Function=\"gen\",\"F138G\",IF(Function=\"TRN\",\"F138T\",IF(Function=\"DIS\",\"F138D\",IF(Function=\"RETAIL\",\"F138R\",IF(Function=\"MISC\",\"F138M\",\"ERR\")))))","v":"F138D"},{"$f":"VLOOKUP(+K1106,FactSum,2,FALSE)","v":"Distribution O & M Exp "},"F10"]
[null,null,"Customer - System","F42","F42","F42","F42","F42","F42","F42","F42","F42","F42"]
[]
[]
["283","Accum Deferred Income Taxes ",null,"F104D",{"$f":"IF(Function=\"gen\",\"F104G\",IF(Function=\"TRN\",\"F104T\",IF(Function=\"DIS\",\"F104D\",IF(Function=\"RETAIL\",\"F104R\",IF(Function=\"MISC\",\"F104M\",\"ERR\")))))","v":"F104D"},{"$f":"IF(Function=\"gen\",\"F104G\",IF(Function=\"TRN\",\"F104T\",IF(Function=\"DIS\",\"F104D\",IF(Function=\"RETAIL\",\"F104R\",IF(Function=\"MISC\",\"F104M\",\"ERR\")))))","v":"F104D"},{"$f":"IF(Function=\"gen\",\"F104G\",IF(Function=\"TRN\",\"F104T\",IF(Function=\"DIS\",\"F104D\",IF(Function=\"RETAIL\",\"F104R\",IF(Function=\"MISC\",\"F104M\",\"ERR\")))))","v":"F104D"},{"$f":"VLOOKUP(+G1110,FactSum,2)","v":"100 Summer 100 Winter System Peaks"},{"$f":"IF(Function=\"gen\",\"F104G\",IF(Function=\"TRN\",\"F104T\",IF(Function=\"DIS\",\"F104D\",IF(Function=\"RETAIL\",\"F104R\",IF(Function=\"MISC\",\"F104M\",\"ERR\")))))","v":"F104D"},{"$f":"IF(Function=\"gen\",\"F104G\",IF(Function=\"TRN\",\"F104T\",IF(Function=\"DIS\",\"F104D\",IF(Function=\"RETAIL\",\"F104R\",IF(Function=\"MISC\",\"F104M\",\"ERR\")))))","v":"F104D"},{"$f":"IF(Function=\"gen\",\"F104G\",IF(Function=\"TRN\",\"F104T\",IF(Function=\"DIS\",\"F104D\",IF(Function=\"RETAIL\",\"F104R\",IF(Function=\"MISC\",\"F104M\",\"ERR\")))))","v":"F104D"},{"$f":"VLOOKUP(+K1110,FactSum,2)","v":"100 Summer 100 Winter System Peaks"},"F10",{"$f":"VLOOKUP(+M1115,FactSum,2)","v":"100 Summer 100 Winter System Peaks"}]
[null,null," Labor","F138D",{"$f":"IF(Function=\"gen\",\"F138G\",IF(Function=\"TRN\",\"F138T\",IF(Function=\"DIS\",\"F138D\",IF(Function=\"RETAIL\",\"F138R\",IF(Function=\"MISC\",\"F138M\",\"ERR\")))))","v":"F138D"},{"$f":"IF(Function=\"gen\",\"F138G\",IF(Function=\"TRN\",\"F138T\",IF(Function=\"DIS\",\"F138D\",IF(Function=\"RETAIL\",\"F138R\",IF(Function=\"MISC\",\"F138M\",\"ERR\")))))","v":"F138D"},{"$f":"IF(Function=\"gen\",\"F138G\",IF(Function=\"TRN\",\"F138T\",IF(Function=\"DIS\",\"F138D\",IF(Function=\"RETAIL\",\"F138R\",IF(Function=\"MISC\",\"F138M\",\"ERR\")))))","v":"F138D"},{"$f":"VLOOKUP(+G1111,FactSum,2,FALSE)","v":"Distribution O & M Exp "},{"$f":"IF(Function=\"gen\",\"F138G\",IF(Function=\"TRN\",\"F138T\",IF(Function=\"DIS\",\"F138D\",IF(Function=\"RETAIL\",\"F138R\",IF(Function=\"MISC\",\"F138M\",\"ERR\")))))","v":"F138D"},{"$f":"IF(Function=\"gen\",\"F138G\",IF(Function=\"TRN\",\"F138T\",IF(Function=\"DIS\",\"F138D\",IF(Function=\"RETAIL\",\"F138R\",IF(Function=\"MISC\",\"F138M\",\"ERR\")))))","v":"F138D"},{"$f":"IF(Function=\"gen\",\"F138G\",IF(Function=\"TRN\",\"F138T\",IF(Function=\"DIS\",\"F138D\",IF(Function=\"RETAIL\",\"F138R\",IF(Function=\"MISC\",\"F138M\",\"ERR\")))))","v":"F138D"},{"$f":"VLOOKUP(+K1111,FactSum,2,FALSE)","v":"Distribution O & M Exp "},"F10"]
[null,null,"Customer - System","F42","F42","F42","F42","F42","F42","F42","F42","F42","F42"]
[]
[]
["255","Accum Investment Tax Credit",null,"F104D",{"$f":"IF(Function=\"gen\",\"F104G\",IF(Function=\"TRN\",\"F104T\",IF(Function=\"DIS\",\"F104D\",IF(Function=\"RETAIL\",\"F104R\",IF(Function=\"MISC\",\"F104M\",\"ERR\")))))","v":"F104D"},{"$f":"IF(Function=\"gen\",\"F104G\",IF(Function=\"TRN\",\"F104T\",IF(Function=\"DIS\",\"F104D\",IF(Function=\"RETAIL\",\"F104R\",IF(Function=\"MISC\",\"F104M\",\"ERR\")))))","v":"F104D"},{"$f":"IF(Function=\"gen\",\"F104G\",IF(Function=\"TRN\",\"F104T\",IF(Function=\"DIS\",\"F104D\",IF(Function=\"RETAIL\",\"F104R\",IF(Function=\"MISC\",\"F104M\",\"ERR\")))))","v":"F104D"},{"$f":"VLOOKUP(+G1115,FactSum,2)","v":"100 Summer 100 Winter System Peaks"},{"$f":"IF(Function=\"gen\",\"F104G\",IF(Function=\"TRN\",\"F104T\",IF(Function=\"DIS\",\"F104D\",IF(Function=\"RETAIL\",\"F104R\",IF(Function=\"MISC\",\"F104M\",\"ERR\")))))","v":"F104D"},{"$f":"IF(Function=\"gen\",\"F104G\",IF(Function=\"TRN\",\"F104T\",IF(Function=\"DIS\",\"F104D\",IF(Function=\"RETAIL\",\"F104R\",IF(Function=\"MISC\",\"F104M\",\"ERR\")))))","v":"F104D"},{"$f":"IF(Function=\"gen\",\"F104G\",IF(Function=\"TRN\",\"F104T\",IF(Function=\"DIS\",\"F104D\",IF(Function=\"RETAIL\",\"F104R\",IF(Function=\"MISC\",\"F104M\",\"ERR\")))))","v":"F104D"},{"$f":"VLOOKUP(+K1115,FactSum,2)","v":"100 Summer 100 Winter System Peaks"},"F10"]
["TOTAL RATE BASE DEDUCTIONS",null,null,null,null,null,null,null,null,null,null,null,null,{"$f":"VLOOKUP(+M1121,FactSum,2,FALSE)","v":"100 Summer 100 Winter System Peaks"}]
[]
[]
[]
[null,null,null,null,null,null,null,null,null,null,null,null,null,{"$f":"VLOOKUP(+M1125,FactSum,2,FALSE)","v":"100 Summer 100 Winter System Peaks"}]
["108SP","Steam Prod Accumulated Depr",null,"F10",{"$f":"IF(Classification=\"DEMAND\",\"F12\",IF(Classification=\"ENERGY\",\"F30\",\"F10\"))","v":"F10"},{"$f":"IF(Classification=\"DEMAND\",\"F12\",IF(Classification=\"ENERGY\",\"F30\",\"F10\"))","v":"F10"},{"$f":"IF(Classification=\"DEMAND\",\"F12\",IF(Classification=\"ENERGY\",\"F30\",\"F10\"))","v":"F10"},{"$f":"VLOOKUP(+G1121,FactSum,2,FALSE)","v":"100 Summer 100 Winter System Peaks"},"F10","F10","F10",{"$f":"VLOOKUP(+K1121,FactSum,2,FALSE)","v":"100 Summer 100 Winter System Peaks"},"F10"]
[null,null,"JBG","F10",{"$f":"IF(Classification=\"DEMAND\",\"F12\",IF(Classification=\"ENERGY\",\"F30\",\"F10\"))","v":"F10"},{"$f":"IF(Classification=\"DEMAND\",\"F15\",IF(Classification=\"ENERGY\",\"F33\",\"F16\"))","v":"F16"},"F10",null,"F10","F10","F10","F10","F10",{"$f":"VLOOKUP(+M1127,FactSum,2,FALSE)","v":"100 Summer 100 Winter System Peaks"}]
[]
[null,null,null,null,null,null,null,null,null,null,null,null,null,{"$f":"VLOOKUP(+M1129,FactSum,2,FALSE)","v":"100 Summer 100 Winter System Peaks"}]
["108NP","Nuclear Prod Accumulated Depr",null,"F10",{"$f":"IF(Classification=\"DEMAND\",\"F12\",IF(Classification=\"ENERGY\",\"F30\",\"F10\"))","v":"F10"},{"$f":"IF(Classification=\"DEMAND\",\"F12\",IF(Classification=\"ENERGY\",\"F30\",\"F10\"))","v":"F10"},{"$f":"IF(Classification=\"DEMAND\",\"F12\",IF(Classification=\"ENERGY\",\"F30\",\"F10\"))","v":"F10"},{"$f":"VLOOKUP(+G1125,FactSum,2,FALSE)","v":"100 Summer 100 Winter System Peaks"},{"$f":"IF(Classification=\"DEMAND\",\"F12\",IF(Classification=\"ENERGY\",\"F30\",\"F10\"))","v":"F10"},{"$f":"IF(Classification=\"DEMAND\",\"F12\",IF(Classification=\"ENERGY\",\"F30\",\"F10\"))","v":"F10"},{"$f":"IF(Classification=\"DEMAND\",\"F12\",IF(Classification=\"ENERGY\",\"F30\",\"F10\"))","v":"F10"},{"$f":"VLOOKUP(+K1125,FactSum,2,FALSE)","v":"100 Summer 100 Winter System Peaks"},"F10"]
[]
["108HP","Hydraulic Prod Accum Depr",null,"F10",{"$f":"IF(Classification=\"DEMAND\",\"F12\",IF(Classification=\"ENERGY\",\"F30\",\"F10\"))","v":"F10"},{"$f":"IF(Classification=\"DEMAND\",\"F12\",IF(Classification=\"ENERGY\",\"F30\",\"F10\"))","v":"F10"},{"$f":"IF(Classification=\"DEMAND\",\"F12\",IF(Classification=\"ENERGY\",\"F30\",\"F10\"))","v":"F10"},{"$f":"VLOOKUP(+G1127,FactSum,2,FALSE)","v":"100 Summer 100 Winter System Peaks"},{"$f":"IF(Classification=\"DEMAND\",\"F12\",IF(Classification=\"ENERGY\",\"F30\",\"F10\"))","v":"F10"},{"$f":"IF(Classification=\"DEMAND\",\"F12\",IF(Classification=\"ENERGY\",\"F30\",\"F10\"))","v":"F10"},{"$f":"IF(Classification=\"DEMAND\",\"F12\",IF(Classification=\"ENERGY\",\"F30\",\"F10\"))","v":"F10"},{"$f":"VLOOKUP(+K1127,FactSum,2,FALSE)","v":"100 Summer 100 Winter System Peaks"},"F10"]
[null,null,null,null,null,null,null,null,null,null,null,null,null,{"$f":"VLOOKUP(+M1133,FactSum,2,FALSE)","v":"100 Summer 100 Winter System Peaks"}]
["108OP","Other Production  - Accum Depr",null,"F10",{"$f":"IF(Classification=\"DEMAND\",\"F12\",IF(Classification=\"ENERGY\",\"F30\",\"F10\"))","v":"F10"},{"$f":"IF(Classification=\"DEMAND\",\"F12\",IF(Classification=\"ENERGY\",\"F30\",\"F10\"))","v":"F10"},{"$f":"IF(Classification=\"DEMAND\",\"F12\",IF(Classification=\"ENERGY\",\"F30\",\"F10\"))","v":"F10"},{"$f":"VLOOKUP(+G1129,FactSum,2,FALSE)","v":"100 Summer 100 Winter System Peaks"},"F10","F10","F10",{"$f":"VLOOKUP(+K1129,FactSum,2,FALSE)","v":"100 Summer 100 Winter System Peaks"},"F10"]
[null,null,"SSGCT","F10",{"$f":"IF(Classification=\"DEMAND\",\"F12\",IF(Classification=\"ENERGY\",\"F30\",\"F10\"))","v":"F10"},{"$f":"IF(Classification=\"DEMAND\",\"F13\",IF(Classification=\"ENERGY\",\"F32\",\"F14\"))","v":"F14"},"F10",null,"F10","F10","F10","F10","F10"]
[]
[]
["108EP","Experimental Plant - Accum Depr",null,"F10",{"$f":"IF(Classification=\"DEMAND\",\"F12\",IF(Classification=\"ENERGY\",\"F30\",\"F10\"))","v":"F10"},{"$f":"IF(Classification=\"DEMAND\",\"F12\",IF(Classification=\"ENERGY\",\"F30\",\"F10\"))","v":"F10"},{"$f":"IF(Classification=\"DEMAND\",\"F12\",IF(Classification=\"ENERGY\",\"F30\",\"F10\"))","v":"F10"},{"$f":"VLOOKUP(+G1133,FactSum,2,FALSE)","v":"100 Summer 100 Winter System Peaks"},{"$f":"IF(Classification=\"DEMAND\",\"F12\",IF(Classification=\"ENERGY\",\"F30\",\"F10\"))","v":"F10"},{"$f":"IF(Classification=\"DEMAND\",\"F12\",IF(Classification=\"ENERGY\",\"F30\",\"F10\"))","v":"F10"},{"$f":"IF(Classification=\"DEMAND\",\"F12\",IF(Classification=\"ENERGY\",\"F30\",\"F10\"))","v":"F10"},{"$f":"VLOOKUP(+K1133,FactSum,2,FALSE)","v":"100 Summer 100 Winter System Peaks"},"F10"]
[]
[]
[]
["TOTAL PRODUCTION PLANT DEPRECIATION",null,null,null,null,null,null,null,null,null,null,null,null,{"$f":"VLOOKUP(+M1142,FactSum,2)","v":"100 Summer 100 Winter System Peaks"}]
[]
[]
[]
[]
["108TP","Transmission Plant Accum Depr",null,"F106","F106","F106","F106",{"$f":"VLOOKUP(+G1142,FactSum,2)","v":"STP - System Transmission Plant"},"F106","F106","F106",{"$f":"VLOOKUP(+K1142,FactSum,2)","v":"STP - System Transmission Plant"},"F10",{"$f":"VLOOKUP(+M1147,FactSum,2,FALSE)","v":"100 Summer 100 Winter System Peaks"}]
[]
[null,null,null,null,null,null,null,null,null,null,null,null,null,{"$f":"VLOOKUP(+M1149,FactSum,2,FALSE)","v":"100 Summer 100 Winter System Peaks"}]
[]
[null,null,null,null,null,null,null,null,null,null,null,null,null,{"$f":"VLOOKUP(+M1151,FactSum,2,FALSE)","v":"100 Summer 100 Winter System Peaks"}]
["108360","Land and Land Rights",null,"F118","F118","F118","F118",{"$f":"VLOOKUP(+G1147,FactSum,2,FALSE)","v":"Account 360"},"F118","F118","F118",{"$f":"VLOOKUP(+K1147,FactSum,2,FALSE)","v":"Account 360"},"F10"]
[]
["108361","Structures and Improvements",null,"F119","F119","F119","F119",{"$f":"VLOOKUP(+G1149,FactSum,2,FALSE)","v":"Account 361"},"F119","F119","F119",{"$f":"VLOOKUP(+K1149,FactSum,2,FALSE)","v":"Account 361"},"F10"]
[]
["108362","Station Equipment",null,"F120","F120","F120","F120",{"$f":"VLOOKUP(+G1151,FactSum,2,FALSE)","v":"Account 362"},"F120","F120","F120",{"$f":"VLOOKUP(+K1151,FactSum,2,FALSE)","v":"Account 362"},"F10"]
[]
[]
[]
[null,null,null,null,null,null,null,null,null,null,null,null,null,{"$f":"VLOOKUP(+M1160,FactSum,2,FALSE)","v":"100 Summer 100 Winter System Peaks"}]
[]
[null,null,null,null,null,null,null,null,null,null,null,null,null,{"$f":"VLOOKUP(+M1162,FactSum,2,FALSE)","v":"100 Summer 100 Winter System Peaks"}]
[]
[null,null,null,null,null,null,null,null,null,null,null,null,null,{"$f":"VLOOKUP(+M1164,FactSum,2,FALSE)","v":"100 Summer 100 Winter System Peaks"}]
["108364","Poles, Towers & Fixtures",null,"F121","F121","F121","F121",{"$f":"VLOOKUP(+G1160,FactSum,2,FALSE)","v":"Account 364"},"F121","F121","F121",{"$f":"VLOOKUP(+K1160,FactSum,2,FALSE)","v":"Account 364"},"F10"]
[null,null,null,null,null,null,null,null,null,null,null,null,null,{"$f":"VLOOKUP(+M1166,FactSum,2,FALSE)","v":"100 Summer 100 Winter System Peaks"}]
["108365","Overhead Conductors",null,"F122","F122","F122","F122",{"$f":"VLOOKUP(+G1162,FactSum,2,FALSE)","v":"Account 365"},"F122","F122","F122",{"$f":"VLOOKUP(+K1162,FactSum,2,FALSE)","v":"Account 365"},"F10"]
[null,null,null,null,null,null,null,null,null,null,null,null,null,{"$f":"VLOOKUP(+M1168,FactSum,2,FALSE)","v":"100 Summer 100 Winter System Peaks"}]
["108366","Underground Conduit",null,"F123","F123","F123","F123",{"$f":"VLOOKUP(+G1164,FactSum,2,FALSE)","v":"Account 366"},"F123","F123","F123",{"$f":"VLOOKUP(+K1164,FactSum,2,FALSE)","v":"Account 366"},"F10"]
[null,null,null,null,null,null,null,null,null,null,null,null,null,{"$f":"VLOOKUP(+M1170,FactSum,2,FALSE)","v":"100 Summer 100 Winter System Peaks"}]
["108367","Underground Conductors ",null,"F124","F124","F124","F124",{"$f":"VLOOKUP(+G1166,FactSum,2,FALSE)","v":"Account 367"},"F124","F124","F124",{"$f":"VLOOKUP(+K1166,FactSum,2,FALSE)","v":"Account 367"},"F10"]
[null,null,null,null,null,null,null,null,null,null,null,null,null,{"$f":"VLOOKUP(+M1172,FactSum,2,FALSE)","v":"100 Summer 100 Winter System Peaks"}]
["108368","Line Transformers",null,"F125","F125","F125","F125",{"$f":"VLOOKUP(+G1168,FactSum,2,FALSE)","v":"Account 368"},"F125","F125","F125",{"$f":"VLOOKUP(+K1168,FactSum,2,FALSE)","v":"Account 368"},"F10"]
[null,null,null,null,null,null,null,null,null,null,null,null,null,{"$f":"VLOOKUP(+M1174,FactSum,2,FALSE)","v":"100 Summer 100 Winter System Peaks"}]
["108369","Services",null,"F126","F126","F126","F126",{"$f":"VLOOKUP(+G1170,FactSum,2,FALSE)","v":"Account 369"},"F126","F126","F126",{"$f":"VLOOKUP(+K1170,FactSum,2,FALSE)","v":"Account 369"},"F10"]
[null,null,null,null,null,null,null,null,null,null,null,null,null,{"$f":"VLOOKUP(+M1176,FactSum,2,FALSE)","v":"100 Summer 100 Winter System Peaks"}]
["108370","Meters",null,"F127","F127","F127","F127",{"$f":"VLOOKUP(+G1172,FactSum,2,FALSE)","v":"Account 370"},"F127","F127","F127",{"$f":"VLOOKUP(+K1172,FactSum,2,FALSE)","v":"Account 370"},"F10"]
[null,null,null,null,null,null,null,null,null,null,null,null,null,{"$f":"VLOOKUP(+M1178,FactSum,2,FALSE)","v":"100 Summer 100 Winter System Peaks"}]
["108371","Install on Customers' Premises",null,"F128","F128","F128","F128",{"$f":"VLOOKUP(+G1174,FactSum,2,FALSE)","v":"Account 371"},"F128","F128","F128",{"$f":"VLOOKUP(+K1174,FactSum,2,FALSE)","v":"Account 371"},"F10"]
[null,null,null,null,null,null,null,null,null,null,null,null,null,{"$f":"VLOOKUP(+M1180,FactSum,2,FALSE)","v":"100 Summer 100 Winter System Peaks"}]
["108372","Leased Property",null,"F129","F129","F129","F129",{"$f":"VLOOKUP(+G1176,FactSum,2,FALSE)","v":"Account 372"},"F129","F129","F129",{"$f":"VLOOKUP(+K1176,FactSum,2,FALSE)","v":"Account 372"},"F10"]
[null,null,null,null,null,null,null,null,null,null,null,null,null,{"$f":"VLOOKUP(+M1182,FactSum,2,FALSE)","v":"100 Summer 100 Winter System Peaks"}]
["108373","Street Lights",null,"F130","F130","F130","F130",{"$f":"VLOOKUP(+G1178,FactSum,2,FALSE)","v":"Account 373"},"F130","F130","F130",{"$f":"VLOOKUP(+K1178,FactSum,2,FALSE)","v":"Account 373"},"F10"]
[null,null,null,null,null,null,null,null,null,null,null,null,null,{"$f":"VLOOKUP(+M1184,FactSum,2,FALSE)","v":"100 Summer 100 Winter System Peaks"}]
["108D00","Unclassified Dist Plant - Acct 300",null,"F121","F121","F121","F121",{"$f":"VLOOKUP(+G1180,FactSum,2,FALSE)","v":"Account 364"},"F121","F121","F121",{"$f":"VLOOKUP(+K1180,FactSum,2,FALSE)","v":"Account 364"},"F10"]
[]
["108DS","Unclassified Dist Sub - Acct 300",null,"F120","F120","F120","F120",{"$f":"VLOOKUP(+G1182,FactSum,2,FALSE)","v":"Account 362"},"F120","F120","F120",{"$f":"VLOOKUP(+K1182,FactSum,2,FALSE)","v":"Account 362"},"F10"]
[]
["108D","Unclassified Dist Sub  - Acct 300",null,"F102D",{"$f":"IF(Function=\"gen\",\"F102G\",IF(Function=\"TRN\",\"F102T\",IF(Function=\"DIS\",\"F102D\",IF(Function=\"RETAIL\",\"F102R\",IF(Function=\"MISC\",\"F102M\",\"ERR\")))))","v":"F102D"},{"$f":"IF(Function=\"gen\",\"F102G\",IF(Function=\"TRN\",\"F102T\",IF(Function=\"DIS\",\"F102D\",IF(Function=\"RETAIL\",\"F102R\",IF(Function=\"MISC\",\"F102M\",\"ERR\")))))","v":"F102D"},"F102D","F102D","F102D","F102D","F102D",{"$f":"VLOOKUP(+K1184,FactSum,2,FALSE)","v":"SGDP - System Gross Distribution Plant"},"F10"]
[]
[null,null,null,null,null,null,null,null,null,null,null,null,null,{"$f":"VLOOKUP(+M1191,FactSum,2)","v":"100 Summer 100 Winter System Peaks"}]
["TOTAL DISTRIBUTION PLANT DEPR",null,null,null,null,null,null,null,null,null,null,null,null,{"$f":"VLOOKUP(+M1192,FactSum,2)","v":"100 Summer 100 Winter System Peaks"}]
[null,null,null,null,null,null,null,null,null,null,null,null,null,{"$f":"VLOOKUP(+M1193,FactSum,2)","v":"100 Summer 100 Winter System Peaks"}]
[null,null,null,null,null,null,null,null,null,null,null,null,null,{"$f":"VLOOKUP(+M1194,FactSum,2)","v":"Firm Revenues"}]
["108GP","General Plant Accumulated Depr",null,null,null,null,null,null,null,null,null,null,null,{"$f":"VLOOKUP(+M1195,FactSum,2)","v":"Firm Revenues"}]
[null,null,"Situs","F107D",{"$f":"IF(Function=\"gen\",\"F107G\",IF(Function=\"TRN\",\"F107T\",IF(Function=\"DIS\",\"F107D\",IF(Function=\"RETAIL\",\"F107R\",IF(Function=\"MISC\",\"F107M\",\"ERR\")))))","v":"F107D"},{"$f":"IF(Function=\"gen\",\"F107G\",IF(Function=\"TRN\",\"F107T\",IF(Function=\"DIS\",\"F107D\",IF(Function=\"RETAIL\",\"F107R\",IF(Function=\"MISC\",\"F107M\",\"ERR\")))))","v":"F107D"},{"$f":"IF(Function=\"gen\",\"F107G\",IF(Function=\"TRN\",\"F107T\",IF(Function=\"DIS\",\"F107D\",IF(Function=\"RETAIL\",\"F107R\",IF(Function=\"MISC\",\"F107M\",\"ERR\")))))","v":"F107D"},{"$f":"VLOOKUP(+G1191,FactSum,2)","v":"STP - System Trans & Dist Plant"},{"$f":"IF(Function=\"gen\",\"F107G\",IF(Function=\"TRN\",\"F107T\",IF(Function=\"DIS\",\"F107D\",IF(Function=\"RETAIL\",\"F107R\",IF(Function=\"MISC\",\"F107M\",\"ERR\")))))","v":"F107D"},{"$f":"IF(Function=\"gen\",\"F107G\",IF(Function=\"TRN\",\"F107T\",IF(Function=\"DIS\",\"F107D\",IF(Function=\"RETAIL\",\"F107R\",IF(Function=\"MISC\",\"F107M\",\"ERR\")))))","v":"F107D"},{"$f":"IF(Function=\"gen\",\"F107G\",IF(Function=\"TRN\",\"F107T\",IF(Function=\"DIS\",\"F107D\",IF(Function=\"RETAIL\",\"F107R\",IF(Function=\"MISC\",\"F107M\",\"ERR\")))))","v":"F107D"},{"$f":"VLOOKUP(+K1191,FactSum,2)","v":"STP - System Trans & Dist Plant"},"F10"]
[null,null,"System Generation","F105D",{"$f":"IF(Function=\"gen\",\"F105G\",IF(Function=\"TRN\",\"F105T\",IF(Function=\"DIS\",\"F105D\",IF(Function=\"RETAIL\",\"F105R\",IF(Function=\"MISC\",\"F105M\",\"ERR\")))))","v":"F105D"},{"$f":"IF(Function=\"gen\",\"F105G\",IF(Function=\"TRN\",\"F105T\",IF(Function=\"DIS\",\"F105D\",IF(Function=\"RETAIL\",\"F105R\",IF(Function=\"MISC\",\"F105M\",\"ERR\")))))","v":"F105D"},{"$f":"IF(Function=\"gen\",\"F105G\",IF(Function=\"TRN\",\"F105T\",IF(Function=\"DIS\",\"F105D\",IF(Function=\"RETAIL\",\"F105R\",IF(Function=\"MISC\",\"F105M\",\"ERR\")))))","v":"F105D"},{"$f":"VLOOKUP(+G1192,FactSum,2)","v":"100 Summer 100 Winter System Peaks"},{"$f":"IF(Function=\"gen\",\"F105G\",IF(Function=\"TRN\",\"F105T\",IF(Function=\"DIS\",\"F105D\",IF(Function=\"RETAIL\",\"F105R\",IF(Function=\"MISC\",\"F105M\",\"ERR\")))))","v":"F105D"},{"$f":"IF(Function=\"gen\",\"F105G\",IF(Function=\"TRN\",\"F105T\",IF(Function=\"DIS\",\"F105D\",IF(Function=\"RETAIL\",\"F105R\",IF(Function=\"MISC\",\"F105M\",\"ERR\")))))","v":"F105D"},{"$f":"IF(Function=\"gen\",\"F105G\",IF(Function=\"TRN\",\"F105T\",IF(Function=\"DIS\",\"F105D\",IF(Function=\"RETAIL\",\"F105R\",IF(Function=\"MISC\",\"F105M\",\"ERR\")))))","v":"F105D"},{"$f":"VLOOKUP(+K1192,FactSum,2)","v":"100 Summer 100 Winter System Peaks"},"F10"]
[null,null,"System Overheads","F102D",{"$f":"IF(Function=\"gen\",\"F102G\",IF(Function=\"TRN\",\"F102T\",IF(Function=\"DIS\",\"F102D\",IF(Function=\"RETAIL\",\"F102R\",IF(Function=\"MISC\",\"F102M\",\"ERR\")))))","v":"F102D"},{"$f":"IF(Function=\"gen\",\"F102G\",IF(Function=\"TRN\",\"F102T\",IF(Function=\"DIS\",\"F102D\",IF(Function=\"RETAIL\",\"F102R\",IF(Function=\"MISC\",\"F102M\",\"ERR\")))))","v":"F102D"},{"$f":"IF(Function=\"gen\",\"F102G\",IF(Function=\"TRN\",\"F102T\",IF(Function=\"DIS\",\"F102D\",IF(Function=\"RETAIL\",\"F102R\",IF(Function=\"MISC\",\"F102M\",\"ERR\")))))","v":"F102D"},{"$f":"VLOOKUP(+G1193,FactSum,2)","v":"100 Summer 100 Winter System Peaks"},{"$f":"IF(Function=\"gen\",\"F102G\",IF(Function=\"TRN\",\"F102T\",IF(Function=\"DIS\",\"F102D\",IF(Function=\"RETAIL\",\"F102R\",IF(Function=\"MISC\",\"F102M\",\"ERR\")))))","v":"F102D"},{"$f":"IF(Function=\"gen\",\"F102G\",IF(Function=\"TRN\",\"F102T\",IF(Function=\"DIS\",\"F102D\",IF(Function=\"RETAIL\",\"F102R\",IF(Function=\"MISC\",\"F102M\",\"ERR\")))))","v":"F102D"},{"$f":"IF(Function=\"gen\",\"F102G\",IF(Function=\"TRN\",\"F102T\",IF(Function=\"DIS\",\"F102D\",IF(Function=\"RETAIL\",\"F102R\",IF(Function=\"MISC\",\"F102M\",\"ERR\")))))","v":"F102D"},{"$f":"VLOOKUP(+K1193,FactSum,2)","v":"100 Summer 100 Winter System Peaks"},"F10"]
[null,null,"Customer - System","F42","F42","F42","F42",{"$f":"VLOOKUP(+G1194,FactSum,2)","v":"Firm Revenues"},"F42","F42","F42",{"$f":"VLOOKUP(+K1194,FactSum,2)","v":"Firm Revenues"},"F42"]
[null,null,"Energy","F10",{"$f":"IF(Classification=\"DEMAND\",\"F12\",IF(Classification=\"ENERGY\",\"F30\",\"F10\"))","v":"F10"},"F30",{"$f":"IF(Classification=\"DEMAND\",\"F12\",IF(Classification=\"ENERGY\",\"F30\",\"F10\"))","v":"F10"},{"$f":"VLOOKUP(+G1195,FactSum,2)","v":"100 Summer 100 Winter System Peaks"},"F30","F30","F30",{"$f":"VLOOKUP(+K1195,FactSum,2)","v":"Firm Revenues"},"F30",{"$f":"VLOOKUP(+M1200,FactSum,2,FALSE)","v":"MWH @ Input"}]
[null,null,"SSGCT","F10",{"$f":"IF(Classification=\"DEMAND\",\"F12\",IF(Classification=\"ENERGY\",\"F30\",\"F10\"))","v":"F10"},{"$f":"IF(Classification=\"DEMAND\",\"F13\",IF(Classification=\"ENERGY\",\"F32\",\"F14\"))","v":"F14"},{"$f":"IF(Function=\"gen\",\"F105G\",IF(Function=\"TRN\",\"F105T\",IF(Function=\"DIS\",\"F105D\",IF(Function=\"RETAIL\",\"F105R\",IF(Function=\"MISC\",\"F105M\",\"ERR\")))))","v":"F105D"},null,{"$f":"IF(Function=\"gen\",\"F105G\",IF(Function=\"TRN\",\"F105T\",IF(Function=\"DIS\",\"F105D\",IF(Function=\"RETAIL\",\"F105R\",IF(Function=\"MISC\",\"F105M\",\"ERR\")))))","v":"F105D"},"F105D","F105D","F15","F10"]
[null,null,"SSGCH","F10",{"$f":"IF(Classification=\"DEMAND\",\"F12\",IF(Classification=\"ENERGY\",\"F30\",\"F10\"))","v":"F10"},{"$f":"IF(Classification=\"DEMAND\",\"F15\",IF(Classification=\"ENERGY\",\"F33\",\"F16\"))","v":"F16"},{"$f":"IF(Function=\"gen\",\"F105G\",IF(Function=\"TRN\",\"F105T\",IF(Function=\"DIS\",\"F105D\",IF(Function=\"RETAIL\",\"F105R\",IF(Function=\"MISC\",\"F105M\",\"ERR\")))))","v":"F105D"},null,"F105D","F105D","F105D","F15","F10",{"$f":"VLOOKUP(+M1202,FactSum,2)","v":"Firm Revenues"}]
[null,"Total General Plant Accumulated Depr",null,null,null,null,null,null,null,null,null,null,null,{"$f":"VLOOKUP(+M1203,FactSum,2)","v":"Firm Revenues"}]
[]
["108MP","Mining Plant Accumulated Depr.",null,"F10",{"$f":"IF(Classification=\"DEMAND\",\"F12\",IF(Classification=\"ENERGY\",\"F30\",\"F10\"))","v":"F10"},"F30",{"$f":"IF(Classification=\"DEMAND\",\"F12\",IF(Classification=\"ENERGY\",\"F30\",\"F10\"))","v":"F10"},{"$f":"VLOOKUP(+G1200,FactSum,2,FALSE)","v":"100 Summer 100 Winter System Peaks"},"F30","F30","F30",{"$f":"VLOOKUP(+K1200,FactSum,2,FALSE)","v":"MWH @ Input"},"F30",{"$f":"VLOOKUP(+M1205,FactSum,2)","v":"Firm Revenues"}]
[null,null,null,null,null,null,null,null,null,null,null,null,null,{"$f":"VLOOKUP(+M1206,FactSum,2)","v":"Firm Revenues"}]
["1081390","Accum Depr - Capital Lease",null,"F10",{"$f":"IF(Classification=\"DEMAND\",\"F12\",IF(Classification=\"ENERGY\",\"F30\",\"F10\"))","v":"F10"},"F30",{"$f":"IF(Classification=\"DEMAND\",\"F12\",IF(Classification=\"ENERGY\",\"F30\",\"F10\"))","v":"F10"},{"$f":"VLOOKUP(+G1202,FactSum,2)","v":"100 Summer 100 Winter System Peaks"},"F30","F30","F30",{"$f":"VLOOKUP(+K1202,FactSum,2)","v":"Firm Revenues"},"F30"]
[null,"Remove Capital Lease",null,"F10",{"$f":"IF(Classification=\"DEMAND\",\"F12\",IF(Classification=\"ENERGY\",\"F30\",\"F10\"))","v":"F10"},"F30",{"$f":"IF(Classification=\"DEMAND\",\"F12\",IF(Classification=\"ENERGY\",\"F30\",\"F10\"))","v":"F10"},{"$f":"VLOOKUP(+G1203,FactSum,2)","v":"100 Summer 100 Winter System Peaks"},"F30","F30","F30",{"$f":"VLOOKUP(+K1203,FactSum,2)","v":"Firm Revenues"},"F30"]
[]
["1081399"," Accum Depr - Capital Lease",null,"F10",{"$f":"IF(Classification=\"DEMAND\",\"F12\",IF(Classification=\"ENERGY\",\"F30\",\"F10\"))","v":"F10"},"F30",{"$f":"IF(Classification=\"DEMAND\",\"F12\",IF(Classification=\"ENERGY\",\"F30\",\"F10\"))","v":"F10"},{"$f":"VLOOKUP(+G1205,FactSum,2)","v":"100 Summer 100 Winter System Peaks"},"F30","F30","F30",{"$f":"VLOOKUP(+K1205,FactSum,2)","v":"Firm Revenues"},"F30"]
[null," Remove Capital Lease",null,"F10",{"$f":"IF(Classification=\"DEMAND\",\"F12\",IF(Classification=\"ENERGY\",\"F30\",\"F10\"))","v":"F10"},"F30",{"$f":"IF(Classification=\"DEMAND\",\"F12\",IF(Classification=\"ENERGY\",\"F30\",\"F10\"))","v":"F10"},{"$f":"VLOOKUP(+G1206,FactSum,2)","v":"100 Summer 100 Winter System Peaks"},"F30","F30","F30",{"$f":"VLOOKUP(+K1206,FactSum,2)","v":"Firm Revenues"},"F30"]
[]
["TOTAL GENERAL PLANT ACCUM DEPR"]
[]
[]
["TOTAL ACCUM DEPR - PLANT IN SERVICE",null,null,null,null,null,null,null,null,null,null,null,null,{"$f":"VLOOKUP(+M1216,FactSum,2)","v":"Firm Revenues"}]
[]
[]
[null,null,null,null,null,null,null,null,null,null,null,null,null,{"$f":"VLOOKUP(+M1219,FactSum,2)","v":"100 Summer 100 Winter System Peaks"}]
[null,null,null,null,null,null,null,null,null,null,null,null,null,{"$f":"VLOOKUP(+M1220,FactSum,2)","v":"100 Summer 100 Winter System Peaks"}]
["111SP","Accum Prov for Amort-Steam",null,"F10",{"$f":"IF(Classification=\"DEMAND\",\"F12\",IF(Classification=\"ENERGY\",\"F30\",\"F10\"))","v":"F10"},"F30",{"$f":"IF(Classification=\"DEMAND\",\"F12\",IF(Classification=\"ENERGY\",\"F30\",\"F10\"))","v":"F10"},{"$f":"VLOOKUP(+G1216,FactSum,2)","v":"100 Summer 100 Winter System Peaks"},"F30","F30","F30",{"$f":"VLOOKUP(+K1216,FactSum,2)","v":"Firm Revenues"},"F30"]
[]
["111SP","Accum Prov for Amort-General",null,null,null,null,null,null,null,null,null,null,null,{"$f":"VLOOKUP(+M1223,FactSum,2)","v":"Firm Revenues"}]
[null,"Division",null,"F108","F108","F108","F108",{"$f":"VLOOKUP(+G1219,FactSum,2)","v":"SGP - System General Plant"},"F108","F108","F108",{"$f":"VLOOKUP(+K1219,FactSum,2)","v":"SGP - System General Plant"},"F10"]
[null,"System Overheads",null,"F108","F108","F108","F108",{"$f":"VLOOKUP(+G1220,FactSum,2)","v":"SGP - System General Plant"},"F108","F108","F108",{"$f":"VLOOKUP(+K1220,FactSum,2)","v":"SGP - System General Plant"},"F10"]
[null,"Total Accum Prov for Amort-General",null,null,null,null,null,null,null,null,null,null,null,{"$f":"VLOOKUP(+M1226,FactSum,2)","v":"100 Summer 100 Winter System Peaks"}]
[null,null,null,null,null,null,null,null,null,null,null,null,null,{"$f":"VLOOKUP(+M1227,FactSum,2)","v":"100 Summer 100 Winter System Peaks"}]
["111HP","Accum Prov for Amort-Hydro",null,"F10",{"$f":"IF(Classification=\"DEMAND\",\"F12\",IF(Classification=\"ENERGY\",\"F30\",\"F10\"))","v":"F10"},"F30",{"$f":"IF(Classification=\"DEMAND\",\"F12\",IF(Classification=\"ENERGY\",\"F30\",\"F10\"))","v":"F10"},"F32","F30","F30","F30","F36","F30",{"$f":"VLOOKUP(+M1228,FactSum,2)","v":"100 Summer 100 Winter System Peaks"}]
[null,null,null,null,null,null,null,null,null,null,null,null,null,{"$f":"VLOOKUP(+M1229,FactSum,2)","v":"Firm Revenues"}]
["111IP","Accum Prov for Amort-Intangible"]
[null,null,"Situs","F107D",{"$f":"IF(Function=\"gen\",\"F107G\",IF(Function=\"TRN\",\"F107T\",IF(Function=\"DIS\",\"F107D\",IF(Function=\"RETAIL\",\"F107R\",IF(Function=\"MISC\",\"F107M\",\"ERR\")))))","v":"F107D"},{"$f":"IF(Function=\"gen\",\"F107G\",IF(Function=\"TRN\",\"F107T\",IF(Function=\"DIS\",\"F107D\",IF(Function=\"RETAIL\",\"F107R\",IF(Function=\"MISC\",\"F107M\",\"ERR\")))))","v":"F107D"},{"$f":"IF(Function=\"gen\",\"F107G\",IF(Function=\"TRN\",\"F107T\",IF(Function=\"DIS\",\"F107D\",IF(Function=\"RETAIL\",\"F107R\",IF(Function=\"MISC\",\"F107M\",\"ERR\")))))","v":"F107D"},{"$f":"VLOOKUP(+G1226,FactSum,2)","v":"STP - System Trans & Dist Plant"},{"$f":"IF(Function=\"gen\",\"F107G\",IF(Function=\"TRN\",\"F107T\",IF(Function=\"DIS\",\"F107D\",IF(Function=\"RETAIL\",\"F107R\",IF(Function=\"MISC\",\"F107M\",\"ERR\")))))","v":"F107D"},{"$f":"IF(Function=\"gen\",\"F107G\",IF(Function=\"TRN\",\"F107T\",IF(Function=\"DIS\",\"F107D\",IF(Function=\"RETAIL\",\"F107R\",IF(Function=\"MISC\",\"F107M\",\"ERR\")))))","v":"F107D"},{"$f":"IF(Function=\"gen\",\"F107G\",IF(Function=\"TRN\",\"F107T\",IF(Function=\"DIS\",\"F107D\",IF(Function=\"RETAIL\",\"F107R\",IF(Function=\"MISC\",\"F107M\",\"ERR\")))))","v":"F107D"},{"$f":"VLOOKUP(+K1226,FactSum,2)","v":"STP - System Trans & Dist Plant"},"F10",{"$f":"VLOOKUP(+M1232,FactSum,2)","v":"Firm Revenues"}]
[null,null,"System Generation","F105D",{"$f":"IF(Function=\"gen\",\"F105G\",IF(Function=\"TRN\",\"F105T\",IF(Function=\"DIS\",\"F105D\",IF(Function=\"RETAIL\",\"F105R\",IF(Function=\"MISC\",\"F105M\",\"ERR\")))))","v":"F105D"},{"$f":"IF(Function=\"gen\",\"F105G\",IF(Function=\"TRN\",\"F105T\",IF(Function=\"DIS\",\"F105D\",IF(Function=\"RETAIL\",\"F105R\",IF(Function=\"MISC\",\"F105M\",\"ERR\")))))","v":"F105D"},{"$f":"IF(Function=\"gen\",\"F105G\",IF(Function=\"TRN\",\"F105T\",IF(Function=\"DIS\",\"F105D\",IF(Function=\"RETAIL\",\"F105R\",IF(Function=\"MISC\",\"F105M\",\"ERR\")))))","v":"F105D"},{"$f":"VLOOKUP(+G1227,FactSum,2)","v":"100 Summer 100 Winter System Peaks"},{"$f":"IF(Function=\"gen\",\"F105G\",IF(Function=\"TRN\",\"F105T\",IF(Function=\"DIS\",\"F105D\",IF(Function=\"RETAIL\",\"F105R\",IF(Function=\"MISC\",\"F105M\",\"ERR\")))))","v":"F105D"},{"$f":"IF(Function=\"gen\",\"F105G\",IF(Function=\"TRN\",\"F105T\",IF(Function=\"DIS\",\"F105D\",IF(Function=\"RETAIL\",\"F105R\",IF(Function=\"MISC\",\"F105M\",\"ERR\")))))","v":"F105D"},{"$f":"IF(Function=\"gen\",\"F105G\",IF(Function=\"TRN\",\"F105T\",IF(Function=\"DIS\",\"F105D\",IF(Function=\"RETAIL\",\"F105R\",IF(Function=\"MISC\",\"F105M\",\"ERR\")))))","v":"F105D"},{"$f":"VLOOKUP(+K1227,FactSum,2)","v":"100 Summer 100 Winter System Peaks"},"F10"]
[null,null,"System Overheads","F102D",{"$f":"IF(Function=\"gen\",\"F102G\",IF(Function=\"TRN\",\"F102T\",IF(Function=\"DIS\",\"F102D\",IF(Function=\"RETAIL\",\"F102R\",IF(Function=\"MISC\",\"F102M\",\"ERR\")))))","v":"F102D"},{"$f":"IF(Function=\"gen\",\"F102G\",IF(Function=\"TRN\",\"F102T\",IF(Function=\"DIS\",\"F102D\",IF(Function=\"RETAIL\",\"F102R\",IF(Function=\"MISC\",\"F102M\",\"ERR\")))))","v":"F102D"},"F102D","F102D","F102D","F102D","F102D","F102D","F10"]
[null,null,"Customer - System","F42","F42","F42","F42",{"$f":"VLOOKUP(+G1229,FactSum,2)","v":"Firm Revenues"},"F42","F42","F42",{"$f":"VLOOKUP(+K1229,FactSum,2)","v":"Firm Revenues"},"F42","F38"]
[null,null,"SSGCT","F105D",{"$f":"IF(Function=\"gen\",\"F105G\",IF(Function=\"TRN\",\"F105T\",IF(Function=\"DIS\",\"F105D\",IF(Function=\"RETAIL\",\"F105R\",IF(Function=\"MISC\",\"F105M\",\"ERR\")))))","v":"F105D"},{"$f":"IF(Classification=\"DEMAND\",\"F13\",IF(Classification=\"ENERGY\",\"F32\",\"F14\"))","v":"F14"},{"$f":"IF(Function=\"gen\",\"F105G\",IF(Function=\"TRN\",\"F105T\",IF(Function=\"DIS\",\"F105D\",IF(Function=\"RETAIL\",\"F105R\",IF(Function=\"MISC\",\"F105M\",\"ERR\")))))","v":"F105D"},{"$f":"VLOOKUP(+G1230,FactSum,2)","v":"100 Summer 100 Winter System Peaks"},{"$f":"IF(Function=\"gen\",\"F105G\",IF(Function=\"TRN\",\"F105T\",IF(Function=\"DIS\",\"F105D\",IF(Function=\"RETAIL\",\"F105R\",IF(Function=\"MISC\",\"F105M\",\"ERR\")))))","v":"F105D"},"F105D","F105D",{"$f":"VLOOKUP(+K1230,FactSum,2)","v":"100 Summer 100 Winter System Peaks"},"F10"]
[null,null,"SSGCH","F105D",{"$f":"IF(Function=\"gen\",\"F105G\",IF(Function=\"TRN\",\"F105T\",IF(Function=\"DIS\",\"F105D\",IF(Function=\"RETAIL\",\"F105R\",IF(Function=\"MISC\",\"F105M\",\"ERR\")))))","v":"F105D"},{"$f":"IF(Classification=\"DEMAND\",\"F15\",IF(Classification=\"ENERGY\",\"F33\",\"F16\"))","v":"F16"},{"$f":"IF(Function=\"gen\",\"F105G\",IF(Function=\"TRN\",\"F105T\",IF(Function=\"DIS\",\"F105D\",IF(Function=\"RETAIL\",\"F105R\",IF(Function=\"MISC\",\"F105M\",\"ERR\")))))","v":"F105D"},{"$f":"VLOOKUP(+G1231,FactSum,2)","v":"100 Summer 100 Winter System Peaks"},"F105D","F105D","F105D",{"$f":"VLOOKUP(+K1231,FactSum,2)","v":"100 Summer 100 Winter System Peaks"},"F10"]
[null,null,"Energy","F10",{"$f":"IF(Classification=\"DEMAND\",\"F12\",IF(Classification=\"ENERGY\",\"F30\",\"F10\"))","v":"F10"},"F30",{"$f":"IF(Classification=\"DEMAND\",\"F12\",IF(Classification=\"ENERGY\",\"F30\",\"F10\"))","v":"F10"},{"$f":"VLOOKUP(+G1232,FactSum,2)","v":"100 Summer 100 Winter System Peaks"},"F30","F30","F30",{"$f":"VLOOKUP(+K1232,FactSum,2)","v":"Firm Revenues"},"F30"]
[null,"Total Accum Prov for Amort-Intangible"]
[]
["111390","AccumAmtr - Capital Lease"]
[null,null,"Situs","F107D",{"$f":"IF(Function=\"gen\",\"F107G\",IF(Function=\"TRN\",\"F107T\",IF(Function=\"DIS\",\"F107D\",IF(Function=\"RETAIL\",\"F107R\",IF(Function=\"MISC\",\"F107M\",\"ERR\")))))","v":"F107D"},{"$f":"IF(Function=\"gen\",\"F107G\",IF(Function=\"TRN\",\"F107T\",IF(Function=\"DIS\",\"F107D\",IF(Function=\"RETAIL\",\"F107R\",IF(Function=\"MISC\",\"F107M\",\"ERR\")))))","v":"F107D"},{"$f":"IF(Function=\"gen\",\"F107G\",IF(Function=\"TRN\",\"F107T\",IF(Function=\"DIS\",\"F107D\",IF(Function=\"RETAIL\",\"F107R\",IF(Function=\"MISC\",\"F107M\",\"ERR\")))))","v":"F107D"},{"$f":"VLOOKUP(+G1236,FactSum,2)","v":"STP - System Trans & Dist Plant"},{"$f":"IF(Function=\"gen\",\"F107G\",IF(Function=\"TRN\",\"F107T\",IF(Function=\"DIS\",\"F107D\",IF(Function=\"RETAIL\",\"F107R\",IF(Function=\"MISC\",\"F107M\",\"ERR\")))))","v":"F107D"},{"$f":"IF(Function=\"gen\",\"F107G\",IF(Function=\"TRN\",\"F107T\",IF(Function=\"DIS\",\"F107D\",IF(Function=\"RETAIL\",\"F107R\",IF(Function=\"MISC\",\"F107M\",\"ERR\")))))","v":"F107D"},{"$f":"IF(Function=\"gen\",\"F107G\",IF(Function=\"TRN\",\"F107T\",IF(Function=\"DIS\",\"F107D\",IF(Function=\"RETAIL\",\"F107R\",IF(Function=\"MISC\",\"F107M\",\"ERR\")))))","v":"F107D"},{"$f":"VLOOKUP(+K1236,FactSum,2)","v":"STP - System Trans & Dist Plant"},"F10"]
[null,null,"System Generation","F105D",{"$f":"IF(Function=\"gen\",\"F105G\",IF(Function=\"TRN\",\"F105T\",IF(Function=\"DIS\",\"F105D\",IF(Function=\"RETAIL\",\"F105R\",IF(Function=\"MISC\",\"F105M\",\"ERR\")))))","v":"F105D"},{"$f":"IF(Function=\"gen\",\"F105G\",IF(Function=\"TRN\",\"F105T\",IF(Function=\"DIS\",\"F105D\",IF(Function=\"RETAIL\",\"F105R\",IF(Function=\"MISC\",\"F105M\",\"ERR\")))))","v":"F105D"},{"$f":"IF(Function=\"gen\",\"F105G\",IF(Function=\"TRN\",\"F105T\",IF(Function=\"DIS\",\"F105D\",IF(Function=\"RETAIL\",\"F105R\",IF(Function=\"MISC\",\"F105M\",\"ERR\")))))","v":"F105D"},{"$f":"VLOOKUP(+G1237,FactSum,2)","v":"100 Summer 100 Winter System Peaks"},{"$f":"IF(Function=\"gen\",\"F105G\",IF(Function=\"TRN\",\"F105T\",IF(Function=\"DIS\",\"F105D\",IF(Function=\"RETAIL\",\"F105R\",IF(Function=\"MISC\",\"F105M\",\"ERR\")))))","v":"F105D"},{"$f":"IF(Function=\"gen\",\"F105G\",IF(Function=\"TRN\",\"F105T\",IF(Function=\"DIS\",\"F105D\",IF(Function=\"RETAIL\",\"F105R\",IF(Function=\"MISC\",\"F105M\",\"ERR\")))))","v":"F105D"},{"$f":"IF(Function=\"gen\",\"F105G\",IF(Function=\"TRN\",\"F105T\",IF(Function=\"DIS\",\"F105D\",IF(Function=\"RETAIL\",\"F105R\",IF(Function=\"MISC\",\"F105M\",\"ERR\")))))","v":"F105D"},{"$f":"VLOOKUP(+K1237,FactSum,2)","v":"100 Summer 100 Winter System Peaks"},"F10"]
[null,null,"System Overheads","F102D",{"$f":"IF(Function=\"gen\",\"F102G\",IF(Function=\"TRN\",\"F102T\",IF(Function=\"DIS\",\"F102D\",IF(Function=\"RETAIL\",\"F102R\",IF(Function=\"MISC\",\"F102M\",\"ERR\")))))","v":"F102D"},{"$f":"IF(Function=\"gen\",\"F102G\",IF(Function=\"TRN\",\"F102T\",IF(Function=\"DIS\",\"F102D\",IF(Function=\"RETAIL\",\"F102R\",IF(Function=\"MISC\",\"F102M\",\"ERR\")))))","v":"F102D"},"F102D","F102D","F102D","F102D","F102D","F102D","F10"]
[]
["TOTAL ACCUM PROV FOR AMORTIZATION"]

{"sheet":"COS Factor Table","index":24,"n_rows":115,"n_cols":15,"rows_kept":115,"cut":false,"hidden":false,"merged":[]}
["Factor Table COS"]
[{"$f":"Inputs!$C$3","v":"PacifiCorp"}]
["Cost Of Service By Rate Schedule - COS Factor Summary"]
[{"$f":"Inputs!$C$4","v":"State of Washington"}]
[{"$f":"+Method&\" - \"&IF(PeakMethod=1,\"(Coincident Peaks)\",IF(PeakMethod=2,\"(200 Top Hours)\",\"(100 Summer, 100 Winter Hours)\"))&\" - \"&TEXT(Demand,\"0%\")&\"D\"&\" / \"&TEXT(Engy,\"0%\")&\"E\"","v":"WCA Method - (100 Summer, 100 Winter Hours) - 38%D / 62%E"}]
[{"$f":"Inputs!C5","v":"12 Months Ending June 2012"}]
["Class Allocation Factors"]
[]
["A","B","C",null,"D","E","F","G","H","I","J","K",null,null,"L"]
[]
[null,null,null,null,null,null,{"$f":"'Hot Sheet'!J$10","v":"Small General"},{"$f":"'Hot Sheet'!K$10","v":"Large General"},{"$f":"'Hot Sheet'!L$10","v":"Large General"},{"$f":"'Hot Sheet'!M$10","v":"Large General"},{"$f":"'Hot Sheet'!N$10","v":"Agricultural"},{"$f":"'Hot Sheet'!O$10","v":"Street & Area"}]
["COS",null,"Dmd",null,"Eng",{"$f":"'Hot Sheet'!$I$11","v":"Residential"},{"$f":"'Hot Sheet'!J$11","v":"Service"},{"$f":"'Hot Sheet'!K$11","v":"Service <1,000 kW"},{"$f":"'Hot Sheet'!L$11","v":"Service >1,000 kW"},{"$f":"'Hot Sheet'!M$11","v":"Dedicated Facilities"},{"$f":"'Hot Sheet'!N$11","v":"Pumping"},{"$f":"'Hot Sheet'!O$11","v":"Lighting"},{"$f":"'Hot Sheet'!P$11","v":"-"},{"$f":"'Hot Sheet'!Q$11","v":"-"}]
["Factor","DESCRIPTION ","Split",null,null,{"$f":"'Hot Sheet'!$I$12","v":"Schedule 16"},{"$f":"'Hot Sheet'!J$12","v":"Schedule 24"},{"$f":"'Hot Sheet'!K$12","v":"Schedule 36"},{"$f":"'Hot Sheet'!L$12","v":"Schedule 48T"},{"$f":"'Hot Sheet'!M$12","v":"Schedule 48T"},{"$f":"'Hot Sheet'!N$12","v":"Schedule 40"},{"$f":"'Hot Sheet'!O$12","v":"Sch. 15,51-54,57"},{"$f":"'Hot Sheet'!P$12","v":"-"},{"$f":"'Hot Sheet'!Q$12","v":"-"},"Factor"]
["A","Direct Assignment"]
["F10","100 Summer 100 Winter System Peaks",{"$f":"Inputs!$D$8","v":0.38},"/",{"$f":"Inputs!$D$9","v":0.62},{"$f":"'Demand Factors'!D32","v":0.42427502206463619},{"$f":"'Demand Factors'!E32","v":0.13495083866985857},{"$f":"'Demand Factors'!F32","v":0.21381795330374381},{"$f":"'Demand Factors'!G32","v":8.4492543233334161E-2},{"$f":"'Demand Factors'!H32","v":0.10446451143427474},{"$f":"'Demand Factors'!I32","v":3.5600085140002832E-2},{"$f":"'Demand Factors'!J32","v":2.3990461541496672E-3},{"$f":"'Demand Factors'!K32","v":0},{"$f":"'Demand Factors'!L32","v":0},{"$f":"ROUND(SUM(F15:N15),6)","v":1}]
["F11","100 Summer 100 Winter System Peaks",{"$f":"Inputs!$D$11","v":0.5},"/",{"$f":"Inputs!$D$12","v":0.5},{"$f":"'Demand Factors'!D$34","v":0.43134733201280262},{"$f":"'Demand Factors'!E$34","v":0.13498968038123754},{"$f":"'Demand Factors'!F$34","v":0.21317718375496919},{"$f":"'Demand Factors'!G$34","v":8.2902031957729216E-2},{"$f":"'Demand Factors'!H$34","v":0.10079131905694716},{"$f":"'Demand Factors'!I$34","v":3.4676236853737281E-2},{"$f":"'Demand Factors'!J$34","v":2.1162159825769446E-3},{"$f":"'Demand Factors'!K$34","v":0},{"$f":"'Demand Factors'!L$34","v":0},{"$f":"ROUND(SUM(F16:N16),6)","v":1}]
["F12","100 Summer 100 Winter System Peaks",1,"/",0,{"$f":"'Demand Factors'!D$36","v":0.46081529013016298},{"$f":"'Demand Factors'!E$36","v":0.13515152084531648},{"$f":"'Demand Factors'!F$36","v":0.21050731063507491},{"$f":"'Demand Factors'!G$36","v":7.6274901642708573E-2},{"$f":"'Demand Factors'!H$36","v":8.5486350818082243E-2},{"$f":"'Demand Factors'!I$36","v":3.0826868994297509E-2},{"$f":"'Demand Factors'!J$36","v":9.3775693435726667E-4},{"$f":"'Demand Factors'!K$36","v":0},{"$f":"'Demand Factors'!L$36","v":0},{"$f":"ROUND(SUM(F17:N17),6)","v":1}]
["F13","Seasonal System Capacity Combustion Turbine","SSCCT",null,null,{"$f":"'Demand Factors'!D$38","v":{"$error":"#REF!"}},{"$f":"'Demand Factors'!E$38","v":{"$error":"#REF!"}},{"$f":"'Demand Factors'!F$38","v":{"$error":"#REF!"}},{"$f":"'Demand Factors'!G$38","v":{"$error":"#REF!"}},{"$f":"'Demand Factors'!H$38","v":{"$error":"#REF!"}},{"$f":"'Demand Factors'!I$38","v":{"$error":"#REF!"}},{"$f":"'Demand Factors'!J$38","v":{"$error":"#REF!"}},{"$f":"'Demand Factors'!#REF!","v":{"$error":"#REF!"}},{"$f":"'Demand Factors'!L$38","v":{"$error":"#REF!"}},1]
["F14","Seasonal System Generation Combustion Turbine"," SSGCT",null,null,{"$f":"'Demand Factors'!D40","v":{"$error":"#REF!"}},{"$f":"'Demand Factors'!E40","v":{"$error":"#REF!"}},{"$f":"'Demand Factors'!F40","v":{"$error":"#REF!"}},{"$f":"'Demand Factors'!G40","v":{"$error":"#REF!"}},{"$f":"'Demand Factors'!H40","v":{"$error":"#REF!"}},{"$f":"'Demand Factors'!I40","v":{"$error":"#REF!"}},{"$f":"'Demand Factors'!J40","v":{"$error":"#REF!"}},{"$f":"'Demand Factors'!#REF!","v":{"$error":"#REF!"}},{"$f":"'Demand Factors'!L40","v":{"$error":"#REF!"}},1]
["F15","Seasonal System Capacity Cholla","SSCCH",null,null,{"$f":"'Demand Factors'!D$42","v":{"$error":"#REF!"}},{"$f":"'Demand Factors'!E$42","v":{"$error":"#REF!"}},{"$f":"'Demand Factors'!F$42","v":{"$error":"#REF!"}},{"$f":"'Demand Factors'!G$42","v":{"$error":"#REF!"}},{"$f":"'Demand Factors'!H$42","v":{"$error":"#REF!"}},{"$f":"'Demand Factors'!I$42","v":{"$error":"#REF!"}},{"$f":"'Demand Factors'!J$42","v":{"$error":"#REF!"}},{"$f":"'Demand Factors'!#REF!","v":{"$error":"#REF!"}},{"$f":"'Demand Factors'!L$42","v":{"$error":"#REF!"}},1]
["F16","Seasonal System Generation Cholla","SSGCH",null,null,{"$f":"'Demand Factors'!D$44","v":{"$error":"#REF!"}},{"$f":"'Demand Factors'!E$44","v":{"$error":"#REF!"}},{"$f":"'Demand Factors'!F$44","v":{"$error":"#REF!"}},{"$f":"'Demand Factors'!G$44","v":{"$error":"#REF!"}},{"$f":"'Demand Factors'!H$44","v":{"$error":"#REF!"}},{"$f":"'Demand Factors'!I$44","v":{"$error":"#REF!"}},{"$f":"'Demand Factors'!J$44","v":{"$error":"#REF!"}},{"$f":"'Demand Factors'!#REF!","v":{"$error":"#REF!"}},{"$f":"'Demand Factors'!L$44","v":{"$error":"#REF!"}},1]
["F17","Seasonal System Capacity Purchase","SSCP",null,null,{"$f":"'Demand Factors'!D$46","v":{"$error":"#REF!"}},{"$f":"'Demand Factors'!E$46","v":{"$error":"#REF!"}},{"$f":"'Demand Factors'!F$46","v":{"$error":"#REF!"}},{"$f":"'Demand Factors'!G$46","v":{"$error":"#REF!"}},{"$f":"'Demand Factors'!H$46","v":{"$error":"#REF!"}},{"$f":"'Demand Factors'!I$46","v":{"$error":"#REF!"}},{"$f":"'Demand Factors'!J$46","v":{"$error":"#REF!"}},{"$f":"'Demand Factors'!#REF!","v":{"$error":"#REF!"}},{"$f":"'Demand Factors'!L$46","v":{"$error":"#REF!"}},1]
["F18","Seasonal System Generation Contract","SSGCP",null,null,{"$f":"'Demand Factors'!D$48","v":{"$error":"#REF!"}},{"$f":"'Demand Factors'!E$48","v":{"$error":"#REF!"}},{"$f":"'Demand Factors'!F$48","v":{"$error":"#REF!"}},{"$f":"'Demand Factors'!G$48","v":{"$error":"#REF!"}},{"$f":"'Demand Factors'!H$48","v":{"$error":"#REF!"}},{"$f":"'Demand Factors'!I$48","v":{"$error":"#REF!"}},{"$f":"'Demand Factors'!J$48","v":{"$error":"#REF!"}},{"$f":"'Demand Factors'!#REF!","v":{"$error":"#REF!"}},{"$f":"'Demand Factors'!L$48","v":{"$error":"#REF!"}},1]
["F20","Max. Schedule Peak",null,null,null,{"$f":"'Dist. Factors'!D30","v":0.47201803477697701},{"$f":"'Dist. Factors'!E30","v":0.12902986611057948},{"$f":"'Dist. Factors'!F30","v":0.18925267586174277},{"$f":"'Dist. Factors'!G30","v":7.2374433085639234E-2},{"$f":"'Dist. Factors'!H30","v":6.7692451019458075E-2},{"$f":"'Dist. Factors'!I30","v":6.6049452024005528E-2},{"$f":"'Dist. Factors'!J30","v":3.5830871215979405E-3},0,0,{"$f":"ROUND(SUM(F24:N24),6)","v":1}]
["F20A","Max. Schedule Peak Excluding Sch 60",null,null,null,{"$f":"'Dist. Factors'!D32","v":0.5062900491293012},{"$f":"'Dist. Factors'!E32","v":0.13839839251722336},{"$f":"'Dist. Factors'!F32","v":0.20299382544814365},{"$f":"'Dist. Factors'!G32","v":7.7629354352841087E-2},{"$f":"'Dist. Factors'!H32","v":0},{"$f":"'Dist. Factors'!I32","v":7.0845132699214095E-2},{"$f":"'Dist. Factors'!J32","v":3.8432458532766021E-3},0,0,1]
["F21","Transformers      - NCP",null,null,null,{"$f":"'Dist. Factors'!D45","v":0.60356207368247716},{"$f":"'Dist. Factors'!E45","v":0.13767505391972143},{"$f":"'Dist. Factors'!F45","v":0.155230232775421},{"$f":"'Dist. Factors'!G45","v":4.5750191056818122E-2},{"$f":"'Dist. Factors'!H45","v":0},{"$f":"'Dist. Factors'!I45","v":5.5625913022576752E-2},{"$f":"'Dist. Factors'!J45","v":2.1565355429856636E-3},0,0,1]
["F22","Secondary Lines - NCP",null,null,null,{"$f":"'Dist. Factors'!D52","v":0.81426314361089602},{"$f":"'Dist. Factors'!E52","v":0.18573685638910387},{"$f":"'Dist. Factors'!F52","v":0},{"$f":"'Dist. Factors'!G52","v":0},{"$f":"'Dist. Factors'!H52","v":0},{"$f":"'Dist. Factors'!I52","v":0},{"$f":"'Dist. Factors'!J52","v":0},0,0,1]
["F30","MWH @ Input",null,null,null,{"$f":"'Energy Factor'!C$34","v":0.40187937389544232},{"$f":"'Energy Factor'!D$34","v":0.13482783991715858},{"$f":"'Energy Factor'!E$34","v":0.2158470568748635},{"$f":"'Energy Factor'!F$34","v":8.9529162272749846E-2},{"$f":"'Energy Factor'!G$34","v":0.11609628729581206},{"$f":"'Energy Factor'!H$34","v":3.8525604713177057E-2},{"$f":"'Energy Factor'!I$34","v":3.2946750307966226E-3},{"$f":"'Energy Factor'!J$34","v":0},{"$f":"'Energy Factor'!K$34","v":0},1]
["F32","Seasonal System Energy Combustion Turbine","SSECT",null,null,{"$f":"'Energy Factor'!C$41","v":{"$error":"#REF!"}},{"$f":"'Energy Factor'!D$41","v":{"$error":"#REF!"}},{"$f":"'Energy Factor'!E$41","v":{"$error":"#REF!"}},{"$f":"'Energy Factor'!F$41","v":{"$error":"#REF!"}},{"$f":"'Energy Factor'!G$41","v":{"$error":"#REF!"}},{"$f":"'Energy Factor'!H$41","v":{"$error":"#REF!"}},{"$f":"'Energy Factor'!I$41","v":{"$error":"#REF!"}},{"$f":"'Energy Factor'!J$41","v":0},{"$f":"'Energy Factor'!K$41","v":0},1]
["F33","Seasonal System Energy Cholla","SSECH",null,null,{"$f":"'Energy Factor'!C$43","v":{"$error":"#REF!"}},{"$f":"'Energy Factor'!D$43","v":{"$error":"#REF!"}},{"$f":"'Energy Factor'!E$43","v":{"$error":"#REF!"}},{"$f":"'Energy Factor'!F$43","v":{"$error":"#REF!"}},{"$f":"'Energy Factor'!G$43","v":{"$error":"#REF!"}},{"$f":"'Energy Factor'!H$43","v":{"$error":"#REF!"}},{"$f":"'Energy Factor'!I$43","v":{"$error":"#REF!"}},{"$f":"'Energy Factor'!J$43","v":0},{"$f":"'Energy Factor'!K$43","v":0},1]
["F34","Seasonal System Energy Purchase","SSEP",null,null,{"$f":"'Energy Factor'!C$45","v":{"$error":"#REF!"}},{"$f":"'Energy Factor'!D$45","v":{"$error":"#REF!"}},{"$f":"'Energy Factor'!E$45","v":{"$error":"#REF!"}},{"$f":"'Energy Factor'!F$45","v":{"$error":"#REF!"}},{"$f":"'Energy Factor'!G$45","v":{"$error":"#REF!"}},{"$f":"'Energy Factor'!H$45","v":{"$error":"#REF!"}},{"$f":"'Energy Factor'!I$45","v":{"$error":"#REF!"}},{"$f":"'Energy Factor'!J$45","v":0},{"$f":"'Energy Factor'!K$45","v":0},1]
["F40","Average Customers",null,null,null,{"$f":"'Cust Factors'!D19","v":0.7878753626124787},{"$f":"'Cust Factors'!E19","v":0.14086072347404208},{"$f":"'Cust Factors'!F19","v":7.8902711919110347E-3},{"$f":"'Cust Factors'!G19","v":4.3747322841918143E-4},{"$f":"'Cust Factors'!H19","v":7.5541533359785308E-6},{"$f":"'Cust Factors'!I19","v":3.9734846547247071E-2},{"$f":"'Cust Factors'!J19","v":2.3193768792566086E-2},{"$f":"'Cust Factors'!K19","v":0},{"$f":"'Cust Factors'!L19","v":0},1]
["F41","Weighted Customers Acct 902",null,null,null,{"$f":"'Cust Factors'!D24","v":0.81034964418396394},{"$f":"'Cust Factors'!E24","v":0.14487880007847048},{"$f":"'Cust Factors'!F24","v":1.2659934375177222E-2},{"$f":"'Cust Factors'!G24","v":6.195842182980341E-3},{"$f":"'Cust Factors'!H24","v":1.0698789972791227E-4},{"$f":"'Cust Factors'!I24","v":2.5808791279679926E-2},{"$f":"'Cust Factors'!J24","v":0},{"$f":"'Cust Factors'!K24","v":0},{"$f":"'Cust Factors'!L24","v":0},1]
["F42","Weighted Customers Acct 903",null,null,null,{"$f":"'Cust Factors'!D29","v":0.80686883588972269},{"$f":"'Cust Factors'!E29","v":0.13704365778802449},{"$f":"'Cust Factors'!F29","v":8.3228980884390413E-3},{"$f":"'Cust Factors'!G29","v":1.7069542395216008E-3},{"$f":"'Cust Factors'!H29","v":2.947516150745882E-5},{"$f":"'Cust Factors'!I29","v":2.4413034606438653E-2},{"$f":"'Cust Factors'!J29","v":2.1615144226346014E-2},{"$f":"'Cust Factors'!K29","v":0},{"$f":"'Cust Factors'!L29","v":0},1]
["F50","Contribution in Aid of Construction",null,null,null,{"$f":"'Cust Advances'!C26","v":0.36831332463123317},{"$f":"'Cust Advances'!D26","v":0.57226113654330524},{"$f":"'Cust Advances'!E26","v":0},{"$f":"'Cust Advances'!F26","v":0},{"$f":"'Cust Advances'!G26","v":0},{"$f":"'Cust Advances'!H26","v":5.9425538825461609E-2},{"$f":"'Cust Advances'!I26","v":0},{"$f":"'Cust Advances'!J26","v":0},{"$f":"'Cust Advances'!K26","v":0},1]
["F51","Security Deposits",null,null,null,{"$f":"'Cust Advances'!C31","v":0.86146399395804507},{"$f":"'Cust Advances'!D31","v":9.6795602677749393E-2},{"$f":"'Cust Advances'!E31","v":2.1722150510672493E-2},{"$f":"'Cust Advances'!F31","v":0},{"$f":"'Cust Advances'!G31","v":0},{"$f":"'Cust Advances'!H31","v":1.9289872822153803E-2},{"$f":"'Cust Advances'!I31","v":7.2838003137931184E-4},{"$f":"'Cust Advances'!J31","v":0},{"$f":"'Cust Advances'!K31","v":0},1]
["F60","Meters",null,null,null,{"$f":"MetersServices!C23","v":0.68626408490926871},{"$f":"MetersServices!D23","v":0.16380388855249758},{"$f":"MetersServices!E23","v":7.7099520727939644E-2},{"$f":"MetersServices!F23","v":1.2395002305347942E-2},{"$f":"MetersServices!G23","v":7.3844770530033955E-4},{"$f":"MetersServices!H23","v":5.9699055799645864E-2},{"$f":"MetersServices!I23","v":0},0,0,1]
["F60A","Meters Excluding Sch 60",null,null,null,{"$f":"MetersServices!C25","v":0.68677122954779457},{"$f":"MetersServices!D25","v":0.16392493854720927},{"$f":"MetersServices!E25","v":7.7156496765925453E-2},{"$f":"MetersServices!F25","v":1.2404162130409315E-2},{"$f":"MetersServices!G25","v":0},{"$f":"MetersServices!H25","v":5.9743173008661471E-2},{"$f":"MetersServices!I25","v":0},0,0,1]
["F70","Services",null,null,null,{"$f":"MetersServices!C30","v":0.73667592328284026},{"$f":"MetersServices!D30","v":0.20129126522181176},{"$f":"MetersServices!E30","v":5.023620474936058E-2},{"$f":"MetersServices!F30","v":1.1796606745987464E-2},{"$f":"MetersServices!G30","v":0},{"$f":"MetersServices!H30","v":0},{"$f":"MetersServices!I30","v":0},0,0,1]
["F80","Uncollectables",null,null,null,{"$f":"Uncollectables!C30","v":0.86388736084505469},{"$f":"Uncollectables!D30","v":3.9035314661244519E-2},{"$f":"Uncollectables!E30","v":5.0808307686523314E-2},{"$f":"Uncollectables!F30","v":1.9121889873938092E-2},{"$f":"Uncollectables!G30","v":2.0770314299985736E-2},{"$f":"Uncollectables!H30","v":6.3768126332536344E-3},{"$f":"Uncollectables!I30","v":0},{"$f":"Uncollectables!J30","v":0},{"$f":"Uncollectables!K30","v":0},1]
["F90","Customer Service / DSM",null,null,null,0,0,0,0,0,0,0,0,0,1]
["F91","Sales Expense",null,null,null,0,0,0,0,0,0,0,0,0,1]
["F101","Rate Base",null,null,null,{"$f":"IF(ISERROR(+'G+T+D+R+M'!I$58/+'G+T+D+R+M'!$H$58),1/7,+'G+T+D+R+M'!I$58/+'G+T+D+R+M'!$H$58)","v":0.46360709581249915},{"$f":"IF(ISERROR(+'G+T+D+R+M'!J$58/+'G+T+D+R+M'!$H$58),1/7,+'G+T+D+R+M'!J$58/+'G+T+D+R+M'!$H$58)","v":0.13884859450903261},{"$f":"IF(ISERROR(+'G+T+D+R+M'!K$58/+'G+T+D+R+M'!$H$58),1/7,+'G+T+D+R+M'!K$58/+'G+T+D+R+M'!$H$58)","v":0.19645066522775889},{"$f":"IF(ISERROR(+'G+T+D+R+M'!L$58/+'G+T+D+R+M'!$H$58),1/7,+'G+T+D+R+M'!L$58/+'G+T+D+R+M'!$H$58)","v":7.6056126055556145E-2},{"$f":"IF(ISERROR(+'G+T+D+R+M'!M$58/+'G+T+D+R+M'!$H$58),1/7,+'G+T+D+R+M'!M$58/+'G+T+D+R+M'!$H$58)","v":8.1977739886451254E-2},{"$f":"IF(ISERROR(+'G+T+D+R+M'!N$58/+'G+T+D+R+M'!$H$58),1/7,+'G+T+D+R+M'!N$58/+'G+T+D+R+M'!$H$58)","v":3.8434339128121255E-2},{"$f":"IF(ISERROR(+'G+T+D+R+M'!O$58/+'G+T+D+R+M'!$H$58),1/7,+'G+T+D+R+M'!O$58/+'G+T+D+R+M'!$H$58)","v":4.6254393805808276E-3},{"$f":"IF(ISERROR(+'G+T+D+R+M'!P$58/+'G+T+D+R+M'!$H$58),0,+'G+T+D+R+M'!P$58/+'G+T+D+R+M'!$H$58)","v":0},{"$f":"IF(ISERROR(+'G+T+D+R+M'!Q$58/+'G+T+D+R+M'!$H$58),0,+'G+T+D+R+M'!Q$58/+'G+T+D+R+M'!$H$58)","v":0},{"$f":"ROUND(SUM(F43:N43),6)","v":1}]
["F101G","Generation Rate Base",null,null,null,{"$f":"IF(ISERROR(+Generation!I$58/+Generation!$H$58),1/7,+Generation!I$58/+Generation!$H$58)","v":0.42357886311811083},{"$f":"IF(ISERROR(+Generation!J$58/+Generation!$H$58),1/7,+Generation!J$58/+Generation!$H$58)","v":0.13494594204440968},{"$f":"IF(ISERROR(+Generation!K$58/+Generation!$H$58),1/7,+Generation!K$58/+Generation!$H$58)","v":0.21418926355183701},{"$f":"IF(ISERROR(+Generation!L$58/+Generation!$H$58),1/7,+Generation!L$58/+Generation!$H$58)","v":8.4642735686605297E-2},{"$f":"IF(ISERROR(+Generation!M$58/+Generation!$H$58),1/7,+Generation!M$58/+Generation!$H$58)","v":0.104661057435963},{"$f":"IF(ISERROR(+Generation!N$58/+Generation!$H$58),1/7,+Generation!N$58/+Generation!$H$58)","v":3.5618288065050963E-2},{"$f":"IF(ISERROR(+Generation!O$58/+Generation!$H$58),1/7,+Generation!O$58/+Generation!$H$58)","v":2.3638500980231948E-3},{"$f":"IF(ISERROR(+Generation!P$58/+Generation!$H$58),0,+Generation!P$58/+Generation!$H$58)","v":0},{"$f":"IF(ISERROR(+Generation!Q$58/+Generation!$H$58),0,+Generation!Q$58/+Generation!$H$58)","v":0},{"$f":"ROUND(SUM(F44:N44),6)","v":1}]
["F101T","Transmission Rate Base",null,null,null,{"$f":"IF(ISERROR(+Transmission!I$58/+Transmission!$H$58),1/7,+Transmission!I$58/+Transmission!$H$58)","v":0.42412752884798399},{"$f":"IF(ISERROR(+Transmission!J$58/+Transmission!$H$58),1/7,+Transmission!J$58/+Transmission!$H$58)","v":0.134999506990271},{"$f":"IF(ISERROR(+Transmission!K$58/+Transmission!$H$58),1/7,+Transmission!K$58/+Transmission!$H$58)","v":0.21385187528260274},{"$f":"IF(ISERROR(+Transmission!L$58/+Transmission!$H$58),1/7,+Transmission!L$58/+Transmission!$H$58)","v":8.451007065756605E-2},{"$f":"IF(ISERROR(+Transmission!M$58/+Transmission!$H$58),1/7,+Transmission!M$58/+Transmission!$H$58)","v":0.10452558298244635},{"$f":"IF(ISERROR(+Transmission!N$58/+Transmission!$H$58),1/7,+Transmission!N$58/+Transmission!$H$58)","v":3.5595212829302267E-2},{"$f":"IF(ISERROR(+Transmission!O$58/+Transmission!$H$58),1/7,+Transmission!O$58/+Transmission!$H$58)","v":2.3902224098274966E-3},{"$f":"IF(ISERROR(+Transmission!P$58/+Transmission!$H$58),0,+Transmission!P$58/+Transmission!$H$58)","v":0},{"$f":"IF(ISERROR(+Transmission!Q$58/+Transmission!$H$58),0,+Transmission!Q$58/+Transmission!$H$58)","v":0},1]
["F101D","Distribution Rate Base",null,null,null,{"$f":"IF(ISERROR(+Distribution!I$58/+Distribution!$H$58),1/7,+Distribution!I$58/+Distribution!$H$58)","v":0.5960448441152908},{"$f":"IF(ISERROR(+Distribution!J$58/+Distribution!$H$58),1/7,+Distribution!J$58/+Distribution!$H$58)","v":0.15091103959204161},{"$f":"IF(ISERROR(+Distribution!K$58/+Distribution!$H$58),1/7,+Distribution!K$58/+Distribution!$H$58)","v":0.13811627316189301},{"$f":"IF(ISERROR(+Distribution!L$58/+Distribution!$H$58),1/7,+Distribution!L$58/+Distribution!$H$58)","v":4.7777663772139226E-2},{"$f":"IF(ISERROR(+Distribution!M$58/+Distribution!$H$58),1/7,+Distribution!M$58/+Distribution!$H$58)","v":7.9870020419664164E-3},{"$f":"IF(ISERROR(+Distribution!N$58/+Distribution!$H$58),1/7,+Distribution!N$58/+Distribution!$H$58)","v":4.7415658751979971E-2},{"$f":"IF(ISERROR(+Distribution!O$58/+Distribution!$H$58),1/7,+Distribution!O$58/+Distribution!$H$58)","v":1.1747518564689023E-2},{"$f":"IF(ISERROR(+Distribution!P$58/+Distribution!$H$58),0,+Distribution!P$58/+Distribution!$H$58)","v":0},{"$f":"IF(ISERROR(+Distribution!Q$58/+Distribution!$H$58),0,+Distribution!Q$58/+Distribution!$H$58)","v":0},1]
["F101R","Retail Rate Base",null,null,null,{"$f":"IF(ISERROR(+Retail!I$58/+Retail!$H$58),1/7,+Retail!I$58/+Retail!$H$58)","v":0.90829712052296241},{"$f":"IF(ISERROR(+Retail!J$58/+Retail!$H$58),1/7,+Retail!J$58/+Retail!$H$58)","v":6.1604584511887481E-2},{"$f":"IF(ISERROR(+Retail!K$58/+Retail!$H$58),1/7,+Retail!K$58/+Retail!$H$58)","v":4.0302875631890868E-2},{"$f":"IF(ISERROR(+Retail!L$58/+Retail!$H$58),1/7,+Retail!L$58/+Retail!$H$58)","v":-2.6842183541343112E-3},{"$f":"IF(ISERROR(+Retail!M$58/+Retail!$H$58),1/7,+Retail!M$58/+Retail!$H$58)","v":-5.5290903340253744E-4},{"$f":"IF(ISERROR(+Retail!N$58/+Retail!$H$58),1/7,+Retail!N$58/+Retail!$H$58)","v":1.5453511278195334E-2},{"$f":"IF(ISERROR(+Retail!O$58/+Retail!$H$58),1/7,+Retail!O$58/+Retail!$H$58)","v":-2.2420964557400183E-2},{"$f":"IF(ISERROR(+Retail!P$58/+Retail!$H$58),0,+Retail!P$58/+Retail!$H$58)","v":0},{"$f":"IF(ISERROR(+Retail!Q$58/+Retail!$H$58),0,+Retail!Q$58/+Retail!$H$58)","v":0},1]
["F101M","Misc Rate Base",null,null,null,{"$f":"IF(ISERROR(+Misc!I$58/+Misc!$H$58),1/7,+Misc!I$58/+Misc!$H$58)","v":0.42619368057991652},{"$f":"IF(ISERROR(+Misc!J$58/+Misc!$H$58),1/7,+Misc!J$58/+Misc!$H$58)","v":0.13643959151250312},{"$f":"IF(ISERROR(+Misc!K$58/+Misc!$H$58),1/7,+Misc!K$58/+Misc!$H$58)","v":0.21264569621920218},{"$f":"IF(ISERROR(+Misc!L$58/+Misc!$H$58),1/7,+Misc!L$58/+Misc!$H$58)","v":8.3626955309974452E-2},{"$f":"IF(ISERROR(+Misc!M$58/+Misc!$H$58),1/7,+Misc!M$58/+Misc!$H$58)","v":0.10221304192419672},{"$f":"IF(ISERROR(+Misc!N$58/+Misc!$H$58),1/7,+Misc!N$58/+Misc!$H$58)","v":3.6163951927743333E-2},{"$f":"IF(ISERROR(+Misc!O$58/+Misc!$H$58),1/7,+Misc!O$58/+Misc!$H$58)","v":2.7170825264635286E-3},{"$f":"IF(ISERROR(+Misc!P$58/+Misc!$H$58),0,+Misc!P$58/+Misc!$H$58)","v":0},{"$f":"IF(ISERROR(+Misc!Q$58/+Misc!$H$58),0,+Misc!Q$58/+Misc!$H$58)","v":0},1]
["F102","SGP - System Gross Plant",null,null,null,{"$f":"IF(ISERROR((+'G+T+D+R+M'!I861+'G+T+D+R+M'!I904+'G+T+D+R+M'!I971)/(+'G+T+D+R+M'!$H861+'G+T+D+R+M'!$H904+'G+T+D+R+M'!$H971)),1/7,(+'G+T+D+R+M'!I861+'G+T+D+R+M'!I904+'G+T+D+R+M'!I971)/(+'G+T+D+R+M'!$H861+'G+T+D+R+M'!$H904+'G+T+D+R+M'!$H971))","v":0.47285758605720213},{"$f":"IF(ISERROR((+'G+T+D+R+M'!J861+'G+T+D+R+M'!J904+'G+T+D+R+M'!J971)/(+'G+T+D+R+M'!$H861+'G+T+D+R+M'!$H904+'G+T+D+R+M'!$H971)),1/7,(+'G+T+D+R+M'!J861+'G+T+D+R+M'!J904+'G+T+D+R+M'!J971)/(+'G+T+D+R+M'!$H861+'G+T+D+R+M'!$H904+'G+T+D+R+M'!$H971))","v":0.13935328778756348},{"$f":"IF(ISERROR((+'G+T+D+R+M'!K861+'G+T+D+R+M'!K904+'G+T+D+R+M'!K971)/(+'G+T+D+R+M'!$H861+'G+T+D+R+M'!$H904+'G+T+D+R+M'!$H971)),1/7,(+'G+T+D+R+M'!K861+'G+T+D+R+M'!K904+'G+T+D+R+M'!K971)/(+'G+T+D+R+M'!$H861+'G+T+D+R+M'!$H904+'G+T+D+R+M'!$H971))","v":0.19258670116674023},{"$f":"IF(ISERROR((+'G+T+D+R+M'!L861+'G+T+D+R+M'!L904+'G+T+D+R+M'!L971)/(+'G+T+D+R+M'!$H861+'G+T+D+R+M'!$H904+'G+T+D+R+M'!$H971)),1/7,(+'G+T+D+R+M'!L861+'G+T+D+R+M'!L904+'G+T+D+R+M'!L971)/(+'G+T+D+R+M'!$H861+'G+T+D+R+M'!$H904+'G+T+D+R+M'!$H971))","v":7.4222958586347962E-2},{"$f":"IF(ISERROR((+'G+T+D+R+M'!M861+'G+T+D+R+M'!M904+'G+T+D+R+M'!M971)/(+'G+T+D+R+M'!$H861+'G+T+D+R+M'!$H904+'G+T+D+R+M'!$H971)),1/7,(+'G+T+D+R+M'!M861+'G+T+D+R+M'!M904+'G+T+D+R+M'!M971)/(+'G+T+D+R+M'!$H861+'G+T+D+R+M'!$H904+'G+T+D+R+M'!$H971))","v":7.6180001817140117E-2},{"$f":"IF(ISERROR((+'G+T+D+R+M'!N861+'G+T+D+R+M'!N904+'G+T+D+R+M'!N971)/(+'G+T+D+R+M'!$H861+'G+T+D+R+M'!$H904+'G+T+D+R+M'!$H971)),1/7,(+'G+T+D+R+M'!N861+'G+T+D+R+M'!N904+'G+T+D+R+M'!N971)/(+'G+T+D+R+M'!$H861+'G+T+D+R+M'!$H904+'G+T+D+R+M'!$H971))","v":3.9208629139019131E-2},{"$f":"IF(ISERROR((+'G+T+D+R+M'!O861+'G+T+D+R+M'!O904+'G+T+D+R+M'!O971)/(+'G+T+D+R+M'!$H861+'G+T+D+R+M'!$H904+'G+T+D+R+M'!$H971)),1/7,(+'G+T+D+R+M'!O861+'G+T+D+R+M'!O904+'G+T+D+R+M'!O971)/(+'G+T+D+R+M'!$H861+'G+T+D+R+M'!$H904+'G+T+D+R+M'!$H971))","v":5.5908354459870326E-3},{"$f":"IF(ISERROR((+'G+T+D+R+M'!P861+'G+T+D+R+M'!P904+'G+T+D+R+M'!P971)/(+'G+T+D+R+M'!$H861+'G+T+D+R+M'!$H904+'G+T+D+R+M'!$H971)),0,(+'G+T+D+R+M'!P861+'G+T+D+R+M'!P904+'G+T+D+R+M'!P971)/(+'G+T+D+R+M'!$H861+'G+T+D+R+M'!$H904+'G+T+D+R+M'!$H971))","v":0},{"$f":"IF(ISERROR((+'G+T+D+R+M'!Q861+'G+T+D+R+M'!Q904+'G+T+D+R+M'!Q971)/(+'G+T+D+R+M'!$H861+'G+T+D+R+M'!$H904+'G+T+D+R+M'!$H971)),0,(+'G+T+D+R+M'!Q861+'G+T+D+R+M'!Q904+'G+T+D+R+M'!Q971)/(+'G+T+D+R+M'!$H861+'G+T+D+R+M'!$H904+'G+T+D+R+M'!$H971))","v":0},1]
["F102G","SGGP - System Gross Generation Plant",null,null,null,{"$f":"IF(ISERROR((+Generation!I$861+Generation!I$904+Generation!I$971)/(+Generation!$H$861+Generation!$H$904+Generation!$H$971)),1/7,(+Generation!I$861+Generation!I$904+Generation!I$971)/(+Generation!$H$861+Generation!$H$904+Generation!$H$971))","v":0.42427502206463619},{"$f":"IF(ISERROR((+Generation!J$861+Generation!J$904+Generation!J$971)/(+Generation!$H$861+Generation!$H$904+Generation!$H$971)),1/7,(+Generation!J$861+Generation!J$904+Generation!J$971)/(+Generation!$H$861+Generation!$H$904+Generation!$H$971))","v":0.13495083866985857},{"$f":"IF(ISERROR((+Generation!K$861+Generation!K$904+Generation!K$971)/(+Generation!$H$861+Generation!$H$904+Generation!$H$971)),1/7,(+Generation!K$861+Generation!K$904+Generation!K$971)/(+Generation!$H$861+Generation!$H$904+Generation!$H$971))","v":0.21381795330374387},{"$f":"IF(ISERROR((+Generation!L$861+Generation!L$904+Generation!L$971)/(+Generation!$H$861+Generation!$H$904+Generation!$H$971)),1/7,(+Generation!L$861+Generation!L$904+Generation!L$971)/(+Generation!$H$861+Generation!$H$904+Generation!$H$971))","v":8.4492543233334175E-2},{"$f":"IF(ISERROR((+Generation!M$861+Generation!M$904+Generation!M$971)/(+Generation!$H$861+Generation!$H$904+Generation!$H$971)),1/7,(+Generation!M$861+Generation!M$904+Generation!M$971)/(+Generation!$H$861+Generation!$H$904+Generation!$H$971))","v":0.10446451143427474},{"$f":"IF(ISERROR((+Generation!N$861+Generation!N$904+Generation!N$971)/(+Generation!$H$861+Generation!$H$904+Generation!$H$971)),1/7,(+Generation!N$861+Generation!N$904+Generation!N$971)/(+Generation!$H$861+Generation!$H$904+Generation!$H$971))","v":3.5600085140002839E-2},{"$f":"IF(ISERROR((+Generation!O$861+Generation!O$904+Generation!O$971)/(+Generation!$H$861+Generation!$H$904+Generation!$H$971)),1/7,(+Generation!O$861+Generation!O$904+Generation!O$971)/(+Generation!$H$861+Generation!$H$904+Generation!$H$971))","v":2.3990461541496667E-3},{"$f":"IF(ISERROR((+Generation!P$861+Generation!P$904+Generation!P$971)/(+Generation!$H$861+Generation!$H$904+Generation!$H$971)),0,(+Generation!P$861+Generation!P$904+Generation!P$971)/(+Generation!$H$861+Generation!$H$904+Generation!$H$971))","v":0},{"$f":"IF(ISERROR((+Generation!Q$861+Generation!Q$904+Generation!Q$971)/(+Generation!$H$861+Generation!$H$904+Generation!$H$971)),0,(+Generation!Q$861+Generation!Q$904+Generation!Q$971)/(+Generation!$H$861+Generation!$H$904+Generation!$H$971))","v":0},1]
["F102T","SGTP - System Gross Transmission Plant",null,null,null,{"$f":"IF(ISERROR((+Transmission!I$861+Transmission!I$904+Transmission!I$971)/(+Transmission!$H$861+Transmission!$H$904+Transmission!$H$971)),1/7,(+Transmission!I$861+Transmission!I$904+Transmission!I$971)/(+Transmission!$H$861+Transmission!$H$904+Transmission!$H$971))","v":0.42427502206463635},{"$f":"IF(ISERROR((+Transmission!J$861+Transmission!J$904+Transmission!J$971)/(+Transmission!$H$861+Transmission!$H$904+Transmission!$H$971)),1/7,(+Transmission!J$861+Transmission!J$904+Transmission!J$971)/(+Transmission!$H$861+Transmission!$H$904+Transmission!$H$971))","v":0.13495083866985863},{"$f":"IF(ISERROR((+Transmission!K$861+Transmission!K$904+Transmission!K$971)/(+Transmission!$H$861+Transmission!$H$904+Transmission!$H$971)),1/7,(+Transmission!K$861+Transmission!K$904+Transmission!K$971)/(+Transmission!$H$861+Transmission!$H$904+Transmission!$H$971))","v":0.21381795330374387},{"$f":"IF(ISERROR((+Transmission!L$861+Transmission!L$904+Transmission!L$971)/(+Transmission!$H$861+Transmission!$H$904+Transmission!$H$971)),1/7,(+Transmission!L$861+Transmission!L$904+Transmission!L$971)/(+Transmission!$H$861+Transmission!$H$904+Transmission!$H$971))","v":8.4492543233334175E-2},{"$f":"IF(ISERROR((+Transmission!M$861+Transmission!M$904+Transmission!M$971)/(+Transmission!$H$861+Transmission!$H$904+Transmission!$H$971)),1/7,(+Transmission!M$861+Transmission!M$904+Transmission!M$971)/(+Transmission!$H$861+Transmission!$H$904+Transmission!$H$971))","v":0.10446451143427476},{"$f":"IF(ISERROR((+Transmission!N$861+Transmission!N$904+Transmission!N$971)/(+Transmission!$H$861+Transmission!$H$904+Transmission!$H$971)),1/7,(+Transmission!N$861+Transmission!N$904+Transmission!N$971)/(+Transmission!$H$861+Transmission!$H$904+Transmission!$H$971))","v":3.5600085140002832E-2},{"$f":"IF(ISERROR((+Transmission!O$861+Transmission!O$904+Transmission!O$971)/(+Transmission!$H$861+Transmission!$H$904+Transmission!$H$971)),1/7,(+Transmission!O$861+Transmission!O$904+Transmission!O$971)/(+Transmission!$H$861+Transmission!$H$904+Transmission!$H$971))","v":2.399046154149668E-3},{"$f":"IF(ISERROR((+Transmission!P$861+Transmission!P$904+Transmission!P$971)/(+Transmission!$H$861+Transmission!$H$904+Transmission!$H$971)),0,(+Transmission!P$861+Transmission!P$904+Transmission!P$971)/(+Transmission!$H$861+Transmission!$H$904+Transmission!$H$971))","v":0},{"$f":"IF(ISERROR((+Transmission!Q$861+Transmission!Q$904+Transmission!Q$971)/(+Transmission!$H$861+Transmission!$H$904+Transmission!$H$971)),0,(+Transmission!Q$861+Transmission!Q$904+Transmission!Q$971)/(+Transmission!$H$861+Transmission!$H$904+Transmission!$H$971))","v":0},1]
["F102D","SGDP - System Gross Distribution Plant",null,null,null,{"$f":"IF(ISERROR((+Distribution!I$861+Distribution!I$904+Distribution!I$971)/(+Distribution!$H$861+Distribution!$H$904+Distribution!$H$971)),1/7,(+Distribution!I$861+Distribution!I$904+Distribution!I$971)/(+Distribution!$H$861+Distribution!$H$904+Distribution!$H$971))","v":0.59203175231402783},{"$f":"IF(ISERROR((+Distribution!J$861+Distribution!J$904+Distribution!J$971)/(+Distribution!$H$861+Distribution!$H$904+Distribution!$H$971)),1/7,(+Distribution!J$861+Distribution!J$904+Distribution!J$971)/(+Distribution!$H$861+Distribution!$H$904+Distribution!$H$971))","v":0.15015259848616852},{"$f":"IF(ISERROR((+Distribution!K$861+Distribution!K$904+Distribution!K$971)/(+Distribution!$H$861+Distribution!$H$904+Distribution!$H$971)),1/7,(+Distribution!K$861+Distribution!K$904+Distribution!K$971)/(+Distribution!$H$861+Distribution!$H$904+Distribution!$H$971))","v":0.14050594288475593},{"$f":"IF(ISERROR((+Distribution!L$861+Distribution!L$904+Distribution!L$971)/(+Distribution!$H$861+Distribution!$H$904+Distribution!$H$971)),1/7,(+Distribution!L$861+Distribution!L$904+Distribution!L$971)/(+Distribution!$H$861+Distribution!$H$904+Distribution!$H$971))","v":4.9031427149354288E-2},{"$f":"IF(ISERROR((+Distribution!M$861+Distribution!M$904+Distribution!M$971)/(+Distribution!$H$861+Distribution!$H$904+Distribution!$H$971)),1/7,(+Distribution!M$861+Distribution!M$904+Distribution!M$971)/(+Distribution!$H$861+Distribution!$H$904+Distribution!$H$971))","v":6.7974378972738957E-3},{"$f":"IF(ISERROR((+Distribution!N$861+Distribution!N$904+Distribution!N$971)/(+Distribution!$H$861+Distribution!$H$904+Distribution!$H$971)),1/7,(+Distribution!N$861+Distribution!N$904+Distribution!N$971)/(+Distribution!$H$861+Distribution!$H$904+Distribution!$H$971))","v":4.8060472004900892E-2},{"$f":"IF(ISERROR((+Distribution!O$861+Distribution!O$904+Distribution!O$971)/(+Distribution!$H$861+Distribution!$H$904+Distribution!$H$971)),1/7,(+Distribution!O$861+Distribution!O$904+Distribution!O$971)/(+Distribution!$H$861+Distribution!$H$904+Distribution!$H$971))","v":1.342036926351853E-2},{"$f":"IF(ISERROR((+Distribution!P$861+Distribution!P$904+Distribution!P$971)/(+Distribution!$H$861+Distribution!$H$904+Distribution!$H$971)),0,(+Distribution!P$861+Distribution!P$904+Distribution!P$971)/(+Distribution!$H$861+Distribution!$H$904+Distribution!$H$971))","v":0},{"$f":"IF(ISERROR((+Distribution!Q$861+Distribution!Q$904+Distribution!Q$971)/(+Distribution!$H$861+Distribution!$H$904+Distribution!$H$971)),0,(+Distribution!Q$861+Distribution!Q$904+Distribution!Q$971)/(+Distribution!$H$861+Distribution!$H$904+Distribution!$H$971))","v":0},{"$f":"ROUND(SUM(F52:N52),6)","v":1}]
["F102R","SGTP - System Gross Retail Plant",null,null,null,{"$f":"IF(ISERROR((+Retail!I$861+Retail!I$904+Retail!I$971)/(+Retail!$H$861+Retail!$H$904+Retail!$H$971)),F$49,(+Retail!I$861+Retail!I$904+Retail!I$971)/(+Retail!$H$861+Retail!$H$904+Retail!$H$971))","v":0.47285758605720213},{"$f":"IF(ISERROR((+Retail!J$861+Retail!J$904+Retail!J$971)/(+Retail!$H$861+Retail!$H$904+Retail!$H$971)),G$49,(+Retail!J$861+Retail!J$904+Retail!J$971)/(+Retail!$H$861+Retail!$H$904+Retail!$H$971))","v":0.13935328778756348},{"$f":"IF(ISERROR((+Retail!K$861+Retail!K$904+Retail!K$971)/(+Retail!$H$861+Retail!$H$904+Retail!$H$971)),H$49,(+Retail!K$861+Retail!K$904+Retail!K$971)/(+Retail!$H$861+Retail!$H$904+Retail!$H$971))","v":0.19258670116674023},{"$f":"IF(ISERROR((+Retail!L$861+Retail!L$904+Retail!L$971)/(+Retail!$H$861+Retail!$H$904+Retail!$H$971)),I$49,(+Retail!L$861+Retail!L$904+Retail!L$971)/(+Retail!$H$861+Retail!$H$904+Retail!$H$971))","v":7.4222958586347962E-2},{"$f":"IF(ISERROR((+Retail!M$861+Retail!M$904+Retail!M$971)/(+Retail!$H$861+Retail!$H$904+Retail!$H$971)),J$49,(+Retail!M$861+Retail!M$904+Retail!M$971)/(+Retail!$H$861+Retail!$H$904+Retail!$H$971))","v":7.6180001817140117E-2},{"$f":"IF(ISERROR((+Retail!N$861+Retail!N$904+Retail!N$971)/(+Retail!$H$861+Retail!$H$904+Retail!$H$971)),K$49,(+Retail!N$861+Retail!N$904+Retail!N$971)/(+Retail!$H$861+Retail!$H$904+Retail!$H$971))","v":3.9208629139019131E-2},{"$f":"IF(ISERROR((+Retail!O$861+Retail!O$904+Retail!O$971)/(+Retail!$H$861+Retail!$H$904+Retail!$H$971)),L$49,(+Retail!O$861+Retail!O$904+Retail!O$971)/(+Retail!$H$861+Retail!$H$904+Retail!$H$971))","v":5.5908354459870326E-3},{"$f":"IF(ISERROR((+Retail!P$861+Retail!P$904+Retail!P$971)/(+Retail!$H$861+Retail!$H$904+Retail!$H$971)),M$49,(+Retail!P$861+Retail!P$904+Retail!P$971)/(+Retail!$H$861+Retail!$H$904+Retail!$H$971))","v":0},{"$f":"IF(ISERROR((+Retail!Q$861+Retail!Q$904+Retail!Q$971)/(+Retail!$H$861+Retail!$H$904+Retail!$H$971)),N$49,(+Retail!Q$861+Retail!Q$904+Retail!Q$971)/(+Retail!$H$861+Retail!$H$904+Retail!$H$971))","v":0},1]
["F102M","SGDP - System Gross Misc Plant",null,null,null,{"$f":"IF(ISERROR((+Misc!I$861+Misc!I$904+Misc!I$971)/(+Misc!$H$861+Misc!$H$904+Misc!$H$971)),F$49,(+Misc!I$861+Misc!I$904+Misc!I$971)/(+Misc!$H$861+Misc!$H$904+Misc!$H$971))","v":0.47285758605720213},{"$f":"IF(ISERROR((+Misc!J$861+Misc!J$904+Misc!J$971)/(+Misc!$H$861+Misc!$H$904+Misc!$H$971)),G$49,(+Misc!J$861+Misc!J$904+Misc!J$971)/(+Misc!$H$861+Misc!$H$904+Misc!$H$971))","v":0.13935328778756348},{"$f":"IF(ISERROR((+Misc!K$861+Misc!K$904+Misc!K$971)/(+Misc!$H$861+Misc!$H$904+Misc!$H$971)),H$49,(+Misc!K$861+Misc!K$904+Misc!K$971)/(+Misc!$H$861+Misc!$H$904+Misc!$H$971))","v":0.19258670116674023},{"$f":"IF(ISERROR((+Misc!L$861+Misc!L$904+Misc!L$971)/(+Misc!$H$861+Misc!$H$904+Misc!$H$971)),I$49,(+Misc!L$861+Misc!L$904+Misc!L$971)/(+Misc!$H$861+Misc!$H$904+Misc!$H$971))","v":7.4222958586347962E-2},{"$f":"IF(ISERROR((+Misc!M$861+Misc!M$904+Misc!M$971)/(+Misc!$H$861+Misc!$H$904+Misc!$H$971)),J$49,(+Misc!M$861+Misc!M$904+Misc!M$971)/(+Misc!$H$861+Misc!$H$904+Misc!$H$971))","v":7.6180001817140117E-2},{"$f":"IF(ISERROR((+Misc!N$861+Misc!N$904+Misc!N$971)/(+Misc!$H$861+Misc!$H$904+Misc!$H$971)),K$49,(+Misc!N$861+Misc!N$904+Misc!N$971)/(+Misc!$H$861+Misc!$H$904+Misc!$H$971))","v":3.9208629139019131E-2},{"$f":"IF(ISERROR((+Misc!O$861+Misc!O$904+Misc!O$971)/(+Misc!$H$861+Misc!$H$904+Misc!$H$971)),L$49,(+Misc!O$861+Misc!O$904+Misc!O$971)/(+Misc!$H$861+Misc!$H$904+Misc!$H$971))","v":5.5908354459870326E-3},{"$f":"IF(ISERROR((+Misc!P$861+Misc!P$904+Misc!P$971)/(+Misc!$H$861+Misc!$H$904+Misc!$H$971)),M$49,(+Misc!P$861+Misc!P$904+Misc!P$971)/(+Misc!$H$861+Misc!$H$904+Misc!$H$971))","v":0},{"$f":"IF(ISERROR((+Misc!Q$861+Misc!Q$904+Misc!Q$971)/(+Misc!$H$861+Misc!$H$904+Misc!$H$971)),N$49,(+Misc!Q$861+Misc!Q$904+Misc!Q$971)/(+Misc!$H$861+Misc!$H$904+Misc!$H$971))","v":0},1]
["F104","SNP - System Net Plant",null,null,null,{"$f":"IF(ISERROR(('G+T+D+R+M'!I$1117+'G+T+D+R+M'!I$1328+'G+T+D+R+M'!I$1357)/('G+T+D+R+M'!$H$1117+'G+T+D+R+M'!$H$1328+'G+T+D+R+M'!$H$1357)),1/7,('G+T+D+R+M'!I$1117+'G+T+D+R+M'!I$1328+'G+T+D+R+M'!I$1357)/('G+T+D+R+M'!$H$1117+'G+T+D+R+M'!$H$1328+'G+T+D+R+M'!$H$1357))","v":0.46775866954862472},{"$f":"IF(ISERROR(('G+T+D+R+M'!J$1117+'G+T+D+R+M'!J$1328+'G+T+D+R+M'!J$1357)/('G+T+D+R+M'!$H$1117+'G+T+D+R+M'!$H$1328+'G+T+D+R+M'!$H$1357)),1/7,('G+T+D+R+M'!J$1117+'G+T+D+R+M'!J$1328+'G+T+D+R+M'!J$1357)/('G+T+D+R+M'!$H$1117+'G+T+D+R+M'!$H$1328+'G+T+D+R+M'!$H$1357))","v":0.13900510710757305},{"$f":"IF(ISERROR(('G+T+D+R+M'!K$1117+'G+T+D+R+M'!K$1328+'G+T+D+R+M'!K$1357)/('G+T+D+R+M'!$H$1117+'G+T+D+R+M'!$H$1328+'G+T+D+R+M'!$H$1357)),1/7,('G+T+D+R+M'!K$1117+'G+T+D+R+M'!K$1328+'G+T+D+R+M'!K$1357)/('G+T+D+R+M'!$H$1117+'G+T+D+R+M'!$H$1328+'G+T+D+R+M'!$H$1357))","v":0.19454520871537848},{"$f":"IF(ISERROR(('G+T+D+R+M'!L$1117+'G+T+D+R+M'!L$1328+'G+T+D+R+M'!L$1357)/('G+T+D+R+M'!$H$1117+'G+T+D+R+M'!$H$1328+'G+T+D+R+M'!$H$1357)),1/7,('G+T+D+R+M'!L$1117+'G+T+D+R+M'!L$1328+'G+T+D+R+M'!L$1357)/('G+T+D+R+M'!$H$1117+'G+T+D+R+M'!$H$1328+'G+T+D+R+M'!$H$1357))","v":7.5184019979096878E-2},{"$f":"IF(ISERROR(('G+T+D+R+M'!M$1117+'G+T+D+R+M'!M$1328+'G+T+D+R+M'!M$1357)/('G+T+D+R+M'!$H$1117+'G+T+D+R+M'!$H$1328+'G+T+D+R+M'!$H$1357)),1/7,('G+T+D+R+M'!M$1117+'G+T+D+R+M'!M$1328+'G+T+D+R+M'!M$1357)/('G+T+D+R+M'!$H$1117+'G+T+D+R+M'!$H$1328+'G+T+D+R+M'!$H$1357))","v":8.0295490923664989E-2},{"$f":"IF(ISERROR(('G+T+D+R+M'!N$1117+'G+T+D+R+M'!N$1328+'G+T+D+R+M'!N$1357)/('G+T+D+R+M'!$H$1117+'G+T+D+R+M'!$H$1328+'G+T+D+R+M'!$H$1357)),1/7,('G+T+D+R+M'!N$1117+'G+T+D+R+M'!N$1328+'G+T+D+R+M'!N$1357)/('G+T+D+R+M'!$H$1117+'G+T+D+R+M'!$H$1328+'G+T+D+R+M'!$H$1357))","v":3.848946521342908E-2},{"$f":"IF(ISERROR(('G+T+D+R+M'!O$1117+'G+T+D+R+M'!O$1328+'G+T+D+R+M'!O$1357)/('G+T+D+R+M'!$H$1117+'G+T+D+R+M'!$H$1328+'G+T+D+R+M'!$H$1357)),1/7,('G+T+D+R+M'!O$1117+'G+T+D+R+M'!O$1328+'G+T+D+R+M'!O$1357)/('G+T+D+R+M'!$H$1117+'G+T+D+R+M'!$H$1328+'G+T+D+R+M'!$H$1357))","v":4.7220385122327983E-3},{"$f":"IF(ISERROR(('G+T+D+R+M'!P$1117+'G+T+D+R+M'!P$1328+'G+T+D+R+M'!P$1357)/('G+T+D+R+M'!$H$1117+'G+T+D+R+M'!$H$1328+'G+T+D+R+M'!$H$1357)),0,('G+T+D+R+M'!P$1117+'G+T+D+R+M'!P$1328+'G+T+D+R+M'!P$1357)/('G+T+D+R+M'!$H$1117+'G+T+D+R+M'!$H$1328+'G+T+D+R+M'!$H$1357))","v":0},{"$f":"IF(ISERROR(('G+T+D+R+M'!Q$1117+'G+T+D+R+M'!Q$1328+'G+T+D+R+M'!Q$1357)/('G+T+D+R+M'!$H$1117+'G+T+D+R+M'!$H$1328+'G+T+D+R+M'!$H$1357)),0,('G+T+D+R+M'!Q$1117+'G+T+D+R+M'!Q$1328+'G+T+D+R+M'!Q$1357)/('G+T+D+R+M'!$H$1117+'G+T+D+R+M'!$H$1328+'G+T+D+R+M'!$H$1357))","v":0},1]
["F104G","SNP - System Net Generation Plant",null,null,null,{"$f":"IF(ISERROR((Generation!I$1117+Generation!I$1328+Generation!I$1357)/(Generation!$H$1117+Generation!$H$1328+Generation!$H$1357)),1/7,(Generation!I$1117+Generation!I$1328+Generation!I$1357)/(Generation!$H$1117+Generation!$H$1328+Generation!$H$1357))","v":0.42423852157765363},{"$f":"IF(ISERROR((Generation!J$1117+Generation!J$1328+Generation!J$1357)/(Generation!$H$1117+Generation!$H$1328+Generation!$H$1357)),1/7,(Generation!J$1117+Generation!J$1328+Generation!J$1357)/(Generation!$H$1117+Generation!$H$1328+Generation!$H$1357))","v":0.13494781063327949},{"$f":"IF(ISERROR((Generation!K$1117+Generation!K$1328+Generation!K$1357)/(Generation!$H$1117+Generation!$H$1328+Generation!$H$1357)),1/7,(Generation!K$1117+Generation!K$1328+Generation!K$1357)/(Generation!$H$1117+Generation!$H$1328+Generation!$H$1357))","v":0.21383423316129693},{"$f":"IF(ISERROR((Generation!L$1117+Generation!L$1328+Generation!L$1357)/(Generation!$H$1117+Generation!$H$1328+Generation!$H$1357)),1/7,(Generation!L$1117+Generation!L$1328+Generation!L$1357)/(Generation!$H$1117+Generation!$H$1328+Generation!$H$1357))","v":8.4500275260229435E-2},{"$f":"IF(ISERROR((Generation!M$1117+Generation!M$1328+Generation!M$1357)/(Generation!$H$1117+Generation!$H$1328+Generation!$H$1357)),1/7,(Generation!M$1117+Generation!M$1328+Generation!M$1357)/(Generation!$H$1117+Generation!$H$1328+Generation!$H$1357))","v":0.10448474655197619},{"$f":"IF(ISERROR((Generation!N$1117+Generation!N$1328+Generation!N$1357)/(Generation!$H$1117+Generation!$H$1328+Generation!$H$1357)),1/7,(Generation!N$1117+Generation!N$1328+Generation!N$1357)/(Generation!$H$1117+Generation!$H$1328+Generation!$H$1357))","v":3.5597713879889442E-2},{"$f":"IF(ISERROR((Generation!O$1117+Generation!O$1328+Generation!O$1357)/(Generation!$H$1117+Generation!$H$1328+Generation!$H$1357)),1/7,(Generation!O$1117+Generation!O$1328+Generation!O$1357)/(Generation!$H$1117+Generation!$H$1328+Generation!$H$1357))","v":2.3966989356747639E-3},{"$f":"IF(ISERROR((Generation!P$1117+Generation!P$1326+Generation!P$1354)/(Generation!$H$1117+Generation!$H$1326+Generation!$H$1354)),0,(Generation!P$1117+Generation!P$1326+Generation!P$1354)/(Generation!$H$1117+Generation!$H$1326+Generation!$H$1354))","v":0},{"$f":"IF(ISERROR((Generation!Q$1117+Generation!Q$1326+Generation!Q$1354)/(Generation!$H$1117+Generation!$H$1326+Generation!$H$1354)),0,(Generation!Q$1117+Generation!Q$1326+Generation!Q$1354)/(Generation!$H$1117+Generation!$H$1326+Generation!$H$1354))","v":0},1]
["F104T","SNP - System Net Transmission Plant",null,null,null,{"$f":"IF(ISERROR((Transmission!I$1117+Transmission!I$1328+Transmission!I$1357)/(Transmission!$H$1117+Transmission!$H$1328+Transmission!$H$1357)),1/7,(Transmission!I$1117+Transmission!I$1328+Transmission!I$1357)/(Transmission!$H$1117+Transmission!$H$1328+Transmission!$H$1357))","v":0.42410990005850557},{"$f":"IF(ISERROR((Transmission!J$1117+Transmission!J$1328+Transmission!J$1357)/(Transmission!$H$1117+Transmission!$H$1328+Transmission!$H$1357)),1/7,(Transmission!J$1117+Transmission!J$1328+Transmission!J$1357)/(Transmission!$H$1117+Transmission!$H$1328+Transmission!$H$1357))","v":0.13493714034646864},{"$f":"IF(ISERROR((Transmission!K$1117+Transmission!K$1328+Transmission!K$1357)/(Transmission!$H$1117+Transmission!$H$1328+Transmission!$H$1357)),1/7,(Transmission!K$1117+Transmission!K$1328+Transmission!K$1357)/(Transmission!$H$1117+Transmission!$H$1328+Transmission!$H$1357))","v":0.21389160061535301},{"$f":"IF(ISERROR((Transmission!L$1117+Transmission!L$1328+Transmission!L$1357)/(Transmission!$H$1117+Transmission!$H$1328+Transmission!$H$1357)),1/7,(Transmission!L$1117+Transmission!L$1328+Transmission!L$1357)/(Transmission!$H$1117+Transmission!$H$1328+Transmission!$H$1357))","v":8.4527521610280723E-2},{"$f":"IF(ISERROR((Transmission!M$1117+Transmission!M$1328+Transmission!M$1357)/(Transmission!$H$1117+Transmission!$H$1328+Transmission!$H$1357)),1/7,(Transmission!M$1117+Transmission!M$1328+Transmission!M$1357)/(Transmission!$H$1117+Transmission!$H$1328+Transmission!$H$1357))","v":0.10455605167127936},{"$f":"IF(ISERROR((Transmission!N$1117+Transmission!N$1328+Transmission!N$1357)/(Transmission!$H$1117+Transmission!$H$1328+Transmission!$H$1357)),1/7,(Transmission!N$1117+Transmission!N$1328+Transmission!N$1357)/(Transmission!$H$1117+Transmission!$H$1328+Transmission!$H$1357))","v":3.5589357961837584E-2},{"$f":"IF(ISERROR((Transmission!O$1117+Transmission!O$1328+Transmission!O$1357)/(Transmission!$H$1117+Transmission!$H$1328+Transmission!$H$1357)),1/7,(Transmission!O$1117+Transmission!O$1328+Transmission!O$1357)/(Transmission!$H$1117+Transmission!$H$1328+Transmission!$H$1357))","v":2.3884277362751687E-3},{"$f":"IF(ISERROR((Transmission!P$1117+Transmission!P$1326+Transmission!P$1354)/(Transmission!$H$1117+Transmission!$H$1326+Transmission!$H$1354)),0,(Transmission!P$1117+Transmission!P$1326+Transmission!P$1354)/(Transmission!$H$1117+Transmission!$H$1326+Transmission!$H$1354))","v":0},{"$f":"IF(ISERROR((Transmission!Q$1117+Transmission!Q$1326+Transmission!Q$1354)/(Transmission!$H$1117+Transmission!$H$1326+Transmission!$H$1354)),0,(Transmission!Q$1117+Transmission!Q$1326+Transmission!Q$1354)/(Transmission!$H$1117+Transmission!$H$1326+Transmission!$H$1354))","v":0},1]
["F104D","SNP - System Net Distribution Plant",null,null,null,{"$f":"IF(ISERROR((Distribution!I$1117+Distribution!I$1328+Distribution!I$1357)/(Distribution!$H$1117+Distribution!$H$1328+Distribution!$H$1357)),1/7,(Distribution!I$1117+Distribution!I$1328+Distribution!I$1357)/(Distribution!$H$1117+Distribution!$H$1328+Distribution!$H$1357))","v":0.59631992736354},{"$f":"IF(ISERROR((Distribution!J$1117+Distribution!J$1328+Distribution!J$1357)/(Distribution!$H$1117+Distribution!$H$1328+Distribution!$H$1357)),1/7,(Distribution!J$1117+Distribution!J$1328+Distribution!J$1357)/(Distribution!$H$1117+Distribution!$H$1328+Distribution!$H$1357))","v":0.15131326218964813},{"$f":"IF(ISERROR((Distribution!K$1117+Distribution!K$1328+Distribution!K$1357)/(Distribution!$H$1117+Distribution!$H$1328+Distribution!$H$1357)),1/7,(Distribution!K$1117+Distribution!K$1328+Distribution!K$1357)/(Distribution!$H$1117+Distribution!$H$1328+Distribution!$H$1357))","v":0.13791051685843547},{"$f":"IF(ISERROR((Distribution!L$1117+Distribution!L$1328+Distribution!L$1357)/(Distribution!$H$1117+Distribution!$H$1328+Distribution!$H$1357)),1/7,(Distribution!L$1117+Distribution!L$1328+Distribution!L$1357)/(Distribution!$H$1117+Distribution!$H$1328+Distribution!$H$1357))","v":4.7672056074357351E-2},{"$f":"IF(ISERROR((Distribution!M$1117+Distribution!M$1328+Distribution!M$1357)/(Distribution!$H$1117+Distribution!$H$1328+Distribution!$H$1357)),1/7,(Distribution!M$1117+Distribution!M$1328+Distribution!M$1357)/(Distribution!$H$1117+Distribution!$H$1328+Distribution!$H$1357))","v":7.7946929627862819E-3},{"$f":"IF(ISERROR((Distribution!N$1117+Distribution!N$1328+Distribution!N$1357)/(Distribution!$H$1117+Distribution!$H$1328+Distribution!$H$1357)),1/7,(Distribution!N$1117+Distribution!N$1328+Distribution!N$1357)/(Distribution!$H$1117+Distribution!$H$1328+Distribution!$H$1357))","v":4.7384994310582955E-2},{"$f":"IF(ISERROR((Distribution!O$1117+Distribution!O$1328+Distribution!O$1357)/(Distribution!$H$1117+Distribution!$H$1328+Distribution!$H$1357)),1/7,(Distribution!O$1117+Distribution!O$1328+Distribution!O$1357)/(Distribution!$H$1117+Distribution!$H$1328+Distribution!$H$1357))","v":1.1604550240649639E-2},{"$f":"IF(ISERROR((Distribution!P$1117+Distribution!P$1326+Distribution!P$1354)/(Distribution!$H$1117+Distribution!$H$1326+Distribution!$H$1354)),0,(Distribution!P$1117+Distribution!P$1326+Distribution!P$1354)/(Distribution!$H$1117+Distribution!$H$1326+Distribution!$H$1354))","v":0},{"$f":"IF(ISERROR((Distribution!Q$1117+Distribution!Q$1326+Distribution!Q$1354)/(Distribution!$H$1117+Distribution!$H$1326+Distribution!$H$1354)),0,(Distribution!Q$1117+Distribution!Q$1326+Distribution!Q$1354)/(Distribution!$H$1117+Distribution!$H$1326+Distribution!$H$1354))","v":0},1]
["F104R","SNP - System Net Retail Plant",null,null,null,{"$f":"IF(ISERROR((Retail!I$1117+Retail!I$1328+Retail!I$1357)/(Retail!$H$1117+Retail!$H$1328+Retail!$H$1357)),1/7,(Retail!I$1117+Retail!I$1328+Retail!I$1357)/(Retail!$H$1117+Retail!$H$1328+Retail!$H$1357))","v":0.83923264768712036},{"$f":"IF(ISERROR((Retail!J$1117+Retail!J$1328+Retail!J$1357)/(Retail!$H$1117+Retail!$H$1328+Retail!$H$1357)),1/7,(Retail!J$1117+Retail!J$1328+Retail!J$1357)/(Retail!$H$1117+Retail!$H$1328+Retail!$H$1357))","v":0.1368385392196749},{"$f":"IF(ISERROR((Retail!K$1117+Retail!K$1328+Retail!K$1357)/(Retail!$H$1117+Retail!$H$1328+Retail!$H$1357)),1/7,(Retail!K$1117+Retail!K$1328+Retail!K$1357)/(Retail!$H$1117+Retail!$H$1328+Retail!$H$1357))","v":-9.5092786339681379E-3},{"$f":"IF(ISERROR((Retail!L$1117+Retail!L$1328+Retail!L$1357)/(Retail!$H$1117+Retail!$H$1328+Retail!$H$1357)),1/7,(Retail!L$1117+Retail!L$1328+Retail!L$1357)/(Retail!$H$1117+Retail!$H$1328+Retail!$H$1357))","v":-5.3183433134161295E-3},{"$f":"IF(ISERROR((Retail!M$1117+Retail!M$1328+Retail!M$1357)/(Retail!$H$1117+Retail!$H$1328+Retail!$H$1357)),1/7,(Retail!M$1117+Retail!M$1328+Retail!M$1357)/(Retail!$H$1117+Retail!$H$1328+Retail!$H$1357))","v":-7.4168917203242049E-3},{"$f":"IF(ISERROR((Retail!N$1117+Retail!N$1328+Retail!N$1357)/(Retail!$H$1117+Retail!$H$1328+Retail!$H$1357)),1/7,(Retail!N$1117+Retail!N$1328+Retail!N$1357)/(Retail!$H$1117+Retail!$H$1328+Retail!$H$1357))","v":2.3002124269258586E-2},{"$f":"IF(ISERROR((Retail!O$1117+Retail!O$1328+Retail!O$1357)/(Retail!$H$1117+Retail!$H$1328+Retail!$H$1357)),1/7,(Retail!O$1117+Retail!O$1328+Retail!O$1357)/(Retail!$H$1117+Retail!$H$1328+Retail!$H$1357))","v":2.3171202491654736E-2},{"$f":"IF(ISERROR((Retail!P$1117+Retail!P$1326+Retail!P$1354)/(Retail!$H$1117+Retail!$H$1326+Retail!$H$1354)),0,(Retail!P$1117+Retail!P$1326+Retail!P$1354)/(Retail!$H$1117+Retail!$H$1326+Retail!$H$1354))","v":0},{"$f":"IF(ISERROR((Retail!Q$1117+Retail!Q$1326+Retail!Q$1354)/(Retail!$H$1117+Retail!$H$1326+Retail!$H$1354)),0,(Retail!Q$1117+Retail!Q$1326+Retail!Q$1354)/(Retail!$H$1117+Retail!$H$1326+Retail!$H$1354))","v":0},1]
["F104M","SNP - System Net Misc Plant",null,null,null,{"$f":"IF(ISERROR((Misc!I$1117+Misc!I$1328+Misc!I$1357)/(Misc!$H$1117+Misc!$H$1328+Misc!$H$1357)),F$55,(Misc!I$1117+Misc!I$1328+Misc!I$1357)/(Misc!$H$1117+Misc!$H$1328+Misc!$H$1357))","v":0.46775866954862472},{"$f":"IF(ISERROR((Misc!J$1117+Misc!J$1328+Misc!J$1357)/(Misc!$H$1117+Misc!$H$1328+Misc!$H$1357)),G$55,(Misc!J$1117+Misc!J$1328+Misc!J$1357)/(Misc!$H$1117+Misc!$H$1328+Misc!$H$1357))","v":0.13900510710757305},{"$f":"IF(ISERROR((Misc!K$1117+Misc!K$1328+Misc!K$1357)/(Misc!$H$1117+Misc!$H$1328+Misc!$H$1357)),H$55,(Misc!K$1117+Misc!K$1328+Misc!K$1357)/(Misc!$H$1117+Misc!$H$1328+Misc!$H$1357))","v":0.19454520871537848},{"$f":"IF(ISERROR((Misc!L$1117+Misc!L$1328+Misc!L$1357)/(Misc!$H$1117+Misc!$H$1328+Misc!$H$1357)),I$55,(Misc!L$1117+Misc!L$1328+Misc!L$1357)/(Misc!$H$1117+Misc!$H$1328+Misc!$H$1357))","v":7.5184019979096878E-2},{"$f":"IF(ISERROR((Misc!M$1117+Misc!M$1328+Misc!M$1357)/(Misc!$H$1117+Misc!$H$1328+Misc!$H$1357)),J$55,(Misc!M$1117+Misc!M$1328+Misc!M$1357)/(Misc!$H$1117+Misc!$H$1328+Misc!$H$1357))","v":8.0295490923664989E-2},{"$f":"IF(ISERROR((Misc!N$1117+Misc!N$1328+Misc!N$1357)/(Misc!$H$1117+Misc!$H$1328+Misc!$H$1357)),K$55,(Misc!N$1117+Misc!N$1328+Misc!N$1357)/(Misc!$H$1117+Misc!$H$1328+Misc!$H$1357))","v":3.848946521342908E-2},{"$f":"IF(ISERROR((Misc!O$1117+Misc!O$1328+Misc!O$1357)/(Misc!$H$1117+Misc!$H$1328+Misc!$H$1357)),L$55,(Misc!O$1117+Misc!O$1328+Misc!O$1357)/(Misc!$H$1117+Misc!$H$1328+Misc!$H$1357))","v":4.7220385122327983E-3},{"$f":"IF(ISERROR((Misc!P$1117+Misc!P$1326+Misc!P$1354)/(Misc!$H$1117+Misc!$H$1326+Misc!$H$1354)),M$55,(Misc!P$1117+Misc!P$1326+Misc!P$1354)/(Misc!$H$1117+Misc!$H$1326+Misc!$H$1354))","v":0},{"$f":"IF(ISERROR((Misc!Q$1117+Misc!Q$1326+Misc!Q$1354)/(Misc!$H$1117+Misc!$H$1326+Misc!$H$1354)),N$55,(Misc!Q$1117+Misc!Q$1326+Misc!Q$1354)/(Misc!$H$1117+Misc!$H$1326+Misc!$H$1354))","v":0},1]
["F105","STP - System Prod & Trans Plant",null,null,null,{"$f":"IF(ISERROR((+'G+T+D+R+M'!I861+'G+T+D+R+M'!I904)/(+'G+T+D+R+M'!$H861+'G+T+D+R+M'!$H904)),1/7,(+'G+T+D+R+M'!I861+'G+T+D+R+M'!I904)/(+'G+T+D+R+M'!$H861+'G+T+D+R+M'!$H904))","v":0.42427502206463624},{"$f":"IF(ISERROR((+'G+T+D+R+M'!J861+'G+T+D+R+M'!J904)/(+'G+T+D+R+M'!$H861+'G+T+D+R+M'!$H904)),1/7,(+'G+T+D+R+M'!J861+'G+T+D+R+M'!J904)/(+'G+T+D+R+M'!$H861+'G+T+D+R+M'!$H904))","v":0.13495083866985857},{"$f":"IF(ISERROR((+'G+T+D+R+M'!K861+'G+T+D+R+M'!K904)/(+'G+T+D+R+M'!$H861+'G+T+D+R+M'!$H904)),1/7,(+'G+T+D+R+M'!K861+'G+T+D+R+M'!K904)/(+'G+T+D+R+M'!$H861+'G+T+D+R+M'!$H904))","v":0.21381795330374384},{"$f":"IF(ISERROR((+'G+T+D+R+M'!L861+'G+T+D+R+M'!L904)/(+'G+T+D+R+M'!$H861+'G+T+D+R+M'!$H904)),1/7,(+'G+T+D+R+M'!L861+'G+T+D+R+M'!L904)/(+'G+T+D+R+M'!$H861+'G+T+D+R+M'!$H904))","v":8.4492543233334161E-2},{"$f":"IF(ISERROR((+'G+T+D+R+M'!M861+'G+T+D+R+M'!M904)/(+'G+T+D+R+M'!$H861+'G+T+D+R+M'!$H904)),1/7,(+'G+T+D+R+M'!M861+'G+T+D+R+M'!M904)/(+'G+T+D+R+M'!$H861+'G+T+D+R+M'!$H904))","v":0.10446451143427475},{"$f":"IF(ISERROR((+'G+T+D+R+M'!N861+'G+T+D+R+M'!N904)/(+'G+T+D+R+M'!$H861+'G+T+D+R+M'!$H904)),1/7,(+'G+T+D+R+M'!N861+'G+T+D+R+M'!N904)/(+'G+T+D+R+M'!$H861+'G+T+D+R+M'!$H904))","v":3.5600085140002839E-2},{"$f":"IF(ISERROR((+'G+T+D+R+M'!O861+'G+T+D+R+M'!O904)/(+'G+T+D+R+M'!$H861+'G+T+D+R+M'!$H904)),1/7,(+'G+T+D+R+M'!O861+'G+T+D+R+M'!O904)/(+'G+T+D+R+M'!$H861+'G+T+D+R+M'!$H904))","v":2.3990461541496672E-3},{"$f":"IF(ISERROR((+'G+T+D+R+M'!P861+'G+T+D+R+M'!P904)/(+'G+T+D+R+M'!$H861+'G+T+D+R+M'!$H904)),0,(+'G+T+D+R+M'!P861+'G+T+D+R+M'!P904)/(+'G+T+D+R+M'!$H861+'G+T+D+R+M'!$H904))","v":0},{"$f":"IF(ISERROR((+'G+T+D+R+M'!Q861+'G+T+D+R+M'!Q904)/(+'G+T+D+R+M'!$H861+'G+T+D+R+M'!$H904)),0,(+'G+T+D+R+M'!Q861+'G+T+D+R+M'!Q904)/(+'G+T+D+R+M'!$H861+'G+T+D+R+M'!$H904))","v":0},1]
["F105G","SGGP - System Gross Generation Plant",null,null,null,{"$f":"IF(ISERROR((+Generation!I861)/(+Generation!$H861)),1/7,(+Generation!I861)/(+Generation!$H861))","v":0.42427502206463619},{"$f":"IF(ISERROR((+Generation!J861)/(+Generation!$H861)),1/7,(+Generation!J861)/(+Generation!$H861))","v":0.13495083866985857},{"$f":"IF(ISERROR((+Generation!K861)/(+Generation!$H861)),1/7,(+Generation!K861)/(+Generation!$H861))","v":0.21381795330374387},{"$f":"IF(ISERROR((+Generation!L861)/(+Generation!$H861)),1/7,(+Generation!L861)/(+Generation!$H861))","v":8.4492543233334175E-2},{"$f":"IF(ISERROR((+Generation!M861)/(+Generation!$H861)),1/7,(+Generation!M861)/(+Generation!$H861))","v":0.10446451143427474},{"$f":"IF(ISERROR((+Generation!N861)/(+Generation!$H861)),1/7,(+Generation!N861)/(+Generation!$H861))","v":3.5600085140002839E-2},{"$f":"IF(ISERROR((+Generation!O861)/(+Generation!$H861)),1/7,(+Generation!O861)/(+Generation!$H861))","v":2.3990461541496667E-3},{"$f":"IF(ISERROR((+Generation!P861)/(+Generation!$H861)),0,(+Generation!P861)/(+Generation!$H861))","v":0},{"$f":"IF(ISERROR((+Generation!Q861)/(+Generation!$H861)),0,(+Generation!Q861)/(+Generation!$H861))","v":0},1]
["F105T","SGTP - System Gross Transmission Plant",null,null,null,{"$f":"IF(ISERROR((+Transmission!I904)/(+Transmission!$H904)),1/7,(+Transmission!I904)/(+Transmission!$H904))","v":0.42427502206463635},{"$f":"IF(ISERROR((+Transmission!J904)/(+Transmission!$H904)),1/7,(+Transmission!J904)/(+Transmission!$H904))","v":0.13495083866985863},{"$f":"IF(ISERROR((+Transmission!K904)/(+Transmission!$H904)),1/7,(+Transmission!K904)/(+Transmission!$H904))","v":0.21381795330374387},{"$f":"IF(ISERROR((+Transmission!L904)/(+Transmission!$H904)),1/7,(+Transmission!L904)/(+Transmission!$H904))","v":8.4492543233334175E-2},{"$f":"IF(ISERROR((+Transmission!M904)/(+Transmission!$H904)),1/7,(+Transmission!M904)/(+Transmission!$H904))","v":0.10446451143427476},{"$f":"IF(ISERROR((+Transmission!N904)/(+Transmission!$H904)),1/7,(+Transmission!N904)/(+Transmission!$H904))","v":3.5600085140002832E-2},{"$f":"IF(ISERROR((+Transmission!O904)/(+Transmission!$H904)),1/7,(+Transmission!O904)/(+Transmission!$H904))","v":2.399046154149668E-3},{"$f":"IF(ISERROR((+Transmission!P904)/(+Transmission!$H904)),0,(+Transmission!P904)/(+Transmission!$H904))","v":0},{"$f":"IF(ISERROR((+Transmission!Q904)/(+Transmission!$H904)),0,(+Transmission!Q904)/(+Transmission!$H904))","v":0},1]
["F105D","SGDP - System Gross Distribution Plant",null,null,null,{"$f":"IF(ISERROR(Distribution!I971/Distribution!$H971),1/7,Distribution!I971/Distribution!$H971)","v":0.59203175231402783},{"$f":"IF(ISERROR(Distribution!J971/Distribution!$H971),1/7,Distribution!J971/Distribution!$H971)","v":0.15015259848616852},{"$f":"IF(ISERROR(Distribution!K971/Distribution!$H971),1/7,Distribution!K971/Distribution!$H971)","v":0.14050594288475593},{"$f":"IF(ISERROR(Distribution!L971/Distribution!$H971),1/7,Distribution!L971/Distribution!$H971)","v":4.9031427149354288E-2},{"$f":"IF(ISERROR(Distribution!M971/Distribution!$H971),1/7,Distribution!M971/Distribution!$H971)","v":6.7974378972738957E-3},{"$f":"IF(ISERROR(Distribution!N971/Distribution!$H971),1/7,Distribution!N971/Distribution!$H971)","v":4.8060472004900892E-2},{"$f":"IF(ISERROR(Distribution!O971/Distribution!$H971),1/7,Distribution!O971/Distribution!$H971)","v":1.342036926351853E-2},{"$f":"IF(ISERROR(Distribution!P971/Distribution!$H971),0,Distribution!P971/Distribution!$H971)","v":0},{"$f":"IF(ISERROR(Distribution!Q971/Distribution!$H971),0,Distribution!Q971/Distribution!$H971)","v":0},1]
["F105R","SGTP - System Gross Retail Plant",null,null,null,{"$f":"F64","v":0.59203175231402783},{"$f":"G64","v":0.15015259848616852},0.14050594288475593,4.9031427149354288E-2,{"$f":"J64","v":6.7974378972738957E-3},4.8060472004900892E-2,1.342036926351853E-2,0,0,1]
["F105M","SGDP - System Gross Misc Plant",null,null,null,{"$f":"F64","v":0.59203175231402783},{"$f":"G64","v":0.15015259848616852},0.14050594288475593,4.9031427149354288E-2,{"$f":"J64","v":6.7974378972738957E-3},4.8060472004900892E-2,1.342036926351853E-2,0,0,1]
["F106","STP - System Transmission Plant",null,null,null,{"$f":"IF(ISERROR((+'G+T+D+R+M'!I904)/(+'G+T+D+R+M'!$H904)),1/7,(+'G+T+D+R+M'!I904)/(+'G+T+D+R+M'!$H904))","v":0.42427502206463635},{"$f":"IF(ISERROR((+'G+T+D+R+M'!J904)/(+'G+T+D+R+M'!$H904)),1/7,(+'G+T+D+R+M'!J904)/(+'G+T+D+R+M'!$H904))","v":0.13495083866985863},{"$f":"IF(ISERROR((+'G+T+D+R+M'!K904)/(+'G+T+D+R+M'!$H904)),1/7,(+'G+T+D+R+M'!K904)/(+'G+T+D+R+M'!$H904))","v":0.21381795330374387},{"$f":"IF(ISERROR((+'G+T+D+R+M'!L904)/(+'G+T+D+R+M'!$H904)),1/7,(+'G+T+D+R+M'!L904)/(+'G+T+D+R+M'!$H904))","v":8.4492543233334175E-2},{"$f":"IF(ISERROR((+'G+T+D+R+M'!M904)/(+'G+T+D+R+M'!$H904)),1/7,(+'G+T+D+R+M'!M904)/(+'G+T+D+R+M'!$H904))","v":0.10446451143427476},{"$f":"IF(ISERROR((+'G+T+D+R+M'!N904)/(+'G+T+D+R+M'!$H904)),1/7,(+'G+T+D+R+M'!N904)/(+'G+T+D+R+M'!$H904))","v":3.5600085140002832E-2},{"$f":"IF(ISERROR((+'G+T+D+R+M'!O904)/(+'G+T+D+R+M'!$H904)),1/7,(+'G+T+D+R+M'!O904)/(+'G+T+D+R+M'!$H904))","v":2.399046154149668E-3},{"$f":"IF(ISERROR((+'G+T+D+R+M'!P904)/(+'G+T+D+R+M'!$H904)),0,(+'G+T+D+R+M'!P904)/(+'G+T+D+R+M'!$H904))","v":0},{"$f":"IF(ISERROR((+'G+T+D+R+M'!Q904)/(+'G+T+D+R+M'!$H904)),0,(+'G+T+D+R+M'!Q904)/(+'G+T+D+R+M'!$H904))","v":0},1]
["F107","STP - System Trans & Dist Plant",null,null,null,{"$f":"IF(ISERROR(('G+T+D+R+M'!I904+'G+T+D+R+M'!I971)/('G+T+D+R+M'!$H904+'G+T+D+R+M'!$H971)),1/7,(('G+T+D+R+M'!I904+'G+T+D+R+M'!I971)/('G+T+D+R+M'!$H904+'G+T+D+R+M'!$H971)))","v":0.52482176052197604},{"$f":"IF(ISERROR(('G+T+D+R+M'!J904+'G+T+D+R+M'!J971)/('G+T+D+R+M'!$H904+'G+T+D+R+M'!$H971)),1/7,(('G+T+D+R+M'!J904+'G+T+D+R+M'!J971)/('G+T+D+R+M'!$H904+'G+T+D+R+M'!$H971)))","v":0.14406217128864249},{"$f":"IF(ISERROR(('G+T+D+R+M'!K904+'G+T+D+R+M'!K971)/('G+T+D+R+M'!$H904+'G+T+D+R+M'!$H971)),1/7,(('G+T+D+R+M'!K904+'G+T+D+R+M'!K971)/('G+T+D+R+M'!$H904+'G+T+D+R+M'!$H971)))","v":0.16987763850134283},{"$f":"IF(ISERROR(('G+T+D+R+M'!L904+'G+T+D+R+M'!L971)/('G+T+D+R+M'!$H904+'G+T+D+R+M'!$H971)),1/7,(('G+T+D+R+M'!L904+'G+T+D+R+M'!L971)/('G+T+D+R+M'!$H904+'G+T+D+R+M'!$H971)))","v":6.3238555038638677E-2},{"$f":"IF(ISERROR(('G+T+D+R+M'!M904+'G+T+D+R+M'!M971)/('G+T+D+R+M'!$H904+'G+T+D+R+M'!$H971)),1/7,(('G+T+D+R+M'!M904+'G+T+D+R+M'!M971)/('G+T+D+R+M'!$H904+'G+T+D+R+M'!$H971)))","v":4.5926736620592129E-2},{"$f":"IF(ISERROR(('G+T+D+R+M'!N904+'G+T+D+R+M'!N971)/('G+T+D+R+M'!$H904+'G+T+D+R+M'!$H971)),1/7,(('G+T+D+R+M'!N904+'G+T+D+R+M'!N971)/('G+T+D+R+M'!$H904+'G+T+D+R+M'!$H971)))","v":4.306834741073054E-2},{"$f":"IF(ISERROR(('G+T+D+R+M'!O904+'G+T+D+R+M'!O971)/('G+T+D+R+M'!$H904+'G+T+D+R+M'!$H971)),1/7,(('G+T+D+R+M'!O904+'G+T+D+R+M'!O971)/('G+T+D+R+M'!$H904+'G+T+D+R+M'!$H971)))","v":9.004790618077449E-3},{"$f":"IF(ISERROR(('G+T+D+R+M'!P904+'G+T+D+R+M'!P971)/('G+T+D+R+M'!$H904+'G+T+D+R+M'!$H971)),0,(('G+T+D+R+M'!P904+'G+T+D+R+M'!P971)/('G+T+D+R+M'!$H904+'G+T+D+R+M'!$H971)))","v":0},{"$f":"IF(ISERROR(('G+T+D+R+M'!Q904+'G+T+D+R+M'!Q971)/('G+T+D+R+M'!$H904+'G+T+D+R+M'!$H971)),0,(('G+T+D+R+M'!Q904+'G+T+D+R+M'!Q971)/('G+T+D+R+M'!$H904+'G+T+D+R+M'!$H971)))","v":0},1]
["F107G","SGGP - System Gross Generation Plant",null,null,null,{"$f":"IF(ISERROR((+Generation!I861)/(+Generation!$H861)),1/7,(+Generation!I861)/(+Generation!$H861))","v":0.42427502206463619},{"$f":"IF(ISERROR((+Generation!J861)/(+Generation!$H861)),1/7,(+Generation!J861)/(+Generation!$H861))","v":0.13495083866985857},{"$f":"IF(ISERROR((+Generation!K861)/(+Generation!$H861)),1/7,(+Generation!K861)/(+Generation!$H861))","v":0.21381795330374387},{"$f":"IF(ISERROR((+Generation!L861)/(+Generation!$H861)),1/7,(+Generation!L861)/(+Generation!$H861))","v":8.4492543233334175E-2},{"$f":"IF(ISERROR((+Generation!M861)/(+Generation!$H861)),1/7,(+Generation!M861)/(+Generation!$H861))","v":0.10446451143427474},{"$f":"IF(ISERROR((+Generation!N861)/(+Generation!$H861)),1/7,(+Generation!N861)/(+Generation!$H861))","v":3.5600085140002839E-2},{"$f":"IF(ISERROR((+Generation!O861)/(+Generation!$H861)),1/7,(+Generation!O861)/(+Generation!$H861))","v":2.3990461541496667E-3},{"$f":"IF(ISERROR((+Generation!P861)/(+Generation!$H861)),0,(+Generation!P861)/(+Generation!$H861))","v":0},{"$f":"IF(ISERROR((+Generation!Q861)/(+Generation!$H861)),0,(+Generation!Q861)/(+Generation!$H861))","v":0},1]
["F107T","SGTP - System Gross Transmission Plant",null,null,null,{"$f":"IF(ISERROR((+Transmission!I904)/(+Transmission!$H904)),1/7,(+Transmission!I904)/(+Transmission!$H904))","v":0.42427502206463635},{"$f":"IF(ISERROR((+Transmission!J904)/(+Transmission!$H904)),1/7,(+Transmission!J904)/(+Transmission!$H904))","v":0.13495083866985863},{"$f":"IF(ISERROR((+Transmission!K904)/(+Transmission!$H904)),1/7,(+Transmission!K904)/(+Transmission!$H904))","v":0.21381795330374387},{"$f":"IF(ISERROR((+Transmission!L904)/(+Transmission!$H904)),1/7,(+Transmission!L904)/(+Transmission!$H904))","v":8.4492543233334175E-2},{"$f":"IF(ISERROR((+Transmission!M904)/(+Transmission!$H904)),1/7,(+Transmission!M904)/(+Transmission!$H904))","v":0.10446451143427476},{"$f":"IF(ISERROR((+Transmission!N904)/(+Transmission!$H904)),1/7,(+Transmission!N904)/(+Transmission!$H904))","v":3.5600085140002832E-2},{"$f":"IF(ISERROR((+Transmission!O904)/(+Transmission!$H904)),1/7,(+Transmission!O904)/(+Transmission!$H904))","v":2.399046154149668E-3},{"$f":"IF(ISERROR((+Transmission!P904)/(+Transmission!$H904)),0,(+Transmission!P904)/(+Transmission!$H904))","v":0},{"$f":"IF(ISERROR((+Transmission!Q904)/(+Transmission!$H904)),0,(+Transmission!Q904)/(+Transmission!$H904))","v":0},1]
["F107D","SGDP - System Gross Distribution Plant",null,null,null,{"$f":"IF(ISERROR(Distribution!I971/Distribution!$H971),1/7,Distribution!I971/Distribution!$H971)","v":0.59203175231402783},{"$f":"IF(ISERROR(Distribution!J971/Distribution!$H971),1/7,Distribution!J971/Distribution!$H971)","v":0.15015259848616852},{"$f":"IF(ISERROR(Distribution!K971/Distribution!$H971),1/7,Distribution!K971/Distribution!$H971)","v":0.14050594288475593},{"$f":"IF(ISERROR(Distribution!L971/Distribution!$H971),1/7,Distribution!L971/Distribution!$H971)","v":4.9031427149354288E-2},{"$f":"IF(ISERROR(Distribution!M971/Distribution!$H971),1/7,Distribution!M971/Distribution!$H971)","v":6.7974378972738957E-3},{"$f":"IF(ISERROR(Distribution!N971/Distribution!$H971),1/7,Distribution!N971/Distribution!$H971)","v":4.8060472004900892E-2},{"$f":"IF(ISERROR(Distribution!O971/Distribution!$H971),1/7,Distribution!O971/Distribution!$H971)","v":1.342036926351853E-2},{"$f":"IF(ISERROR(Distribution!P971/Distribution!$H971),0,Distribution!P971/Distribution!$H971)","v":0},{"$f":"IF(ISERROR(Distribution!Q971/Distribution!$H971),0,Distribution!Q971/Distribution!$H971)","v":0},1]
["F107R","SGTP - System Gross Retail Plant",null,null,null,{"$f":"F71","v":0.59203175231402783},{"$f":"G71","v":0.15015259848616852},0.14050594288475593,4.9031427149354288E-2,{"$f":"J71","v":6.7974378972738957E-3},4.8060472004900892E-2,1.342036926351853E-2,0,0,1]
["F107M","SGDP - System Gross Misc Plant",null,null,null,{"$f":"F71","v":0.59203175231402783},{"$f":"G71","v":0.15015259848616852},0.14050594288475593,4.9031427149354288E-2,{"$f":"J71","v":6.7974378972738957E-3},4.8060472004900892E-2,1.342036926351853E-2,0,0,1]
["F108","SGP - System General Plant",null,null,null,{"$f":"IF(ISERROR((+'G+T+D+R+M'!I1085)/(+'G+T+D+R+M'!$H1085)),1/7,(+'G+T+D+R+M'!I1085)/(+'G+T+D+R+M'!$H1085))","v":0.47486659068647202},{"$f":"IF(ISERROR((+'G+T+D+R+M'!J1085)/(+'G+T+D+R+M'!$H1085)),1/7,(+'G+T+D+R+M'!J1085)/(+'G+T+D+R+M'!$H1085))","v":0.13914785446458602},{"$f":"IF(ISERROR((+'G+T+D+R+M'!K1085)/(+'G+T+D+R+M'!$H1085)),1/7,(+'G+T+D+R+M'!K1085)/(+'G+T+D+R+M'!$H1085))","v":0.19125322612774615},{"$f":"IF(ISERROR((+'G+T+D+R+M'!L1085)/(+'G+T+D+R+M'!$H1085)),1/7,(+'G+T+D+R+M'!L1085)/(+'G+T+D+R+M'!$H1085))","v":7.3775552814915185E-2},{"$f":"IF(ISERROR((+'G+T+D+R+M'!M1085)/(+'G+T+D+R+M'!$H1085)),1/7,(+'G+T+D+R+M'!M1085)/(+'G+T+D+R+M'!$H1085))","v":7.6417588491657279E-2},{"$f":"IF(ISERROR((+'G+T+D+R+M'!N1085)/(+'G+T+D+R+M'!$H1085)),1/7,(+'G+T+D+R+M'!N1085)/(+'G+T+D+R+M'!$H1085))","v":3.8886774679353156E-2},{"$f":"IF(ISERROR((+'G+T+D+R+M'!O1085)/(+'G+T+D+R+M'!$H1085)),1/7,(+'G+T+D+R+M'!O1085)/(+'G+T+D+R+M'!$H1085))","v":5.6524127352700704E-3},{"$f":"IF(ISERROR((+'G+T+D+R+M'!P1085)/(+'G+T+D+R+M'!$H1085)),0,(+'G+T+D+R+M'!P1085)/(+'G+T+D+R+M'!$H1085))","v":0},{"$f":"IF(ISERROR((+'G+T+D+R+M'!Q1085)/(+'G+T+D+R+M'!$H1085)),0,(+'G+T+D+R+M'!Q1085)/(+'G+T+D+R+M'!$H1085))","v":0},1]
["F110","SIP - System Intangible Plant",null,null,null,{"$f":"IF(ISERROR((+'G+T+D+R+M'!I1114)/(+'G+T+D+R+M'!$H1114)),1/7,(+'G+T+D+R+M'!I1114)/(+'G+T+D+R+M'!$H1114))","v":0.47436743963693945},{"$f":"IF(ISERROR((+'G+T+D+R+M'!J1114)/(+'G+T+D+R+M'!$H1114)),1/7,(+'G+T+D+R+M'!J1114)/(+'G+T+D+R+M'!$H1114))","v":0.13652196772818054},{"$f":"IF(ISERROR((+'G+T+D+R+M'!K1114)/(+'G+T+D+R+M'!$H1114)),1/7,(+'G+T+D+R+M'!K1114)/(+'G+T+D+R+M'!$H1114))","v":0.18843764562647192},{"$f":"IF(ISERROR((+'G+T+D+R+M'!L1114)/(+'G+T+D+R+M'!$H1114)),1/7,(+'G+T+D+R+M'!L1114)/(+'G+T+D+R+M'!$H1114))","v":7.3729656701132379E-2},{"$f":"IF(ISERROR((+'G+T+D+R+M'!M1114)/(+'G+T+D+R+M'!$H1114)),1/7,(+'G+T+D+R+M'!M1114)/(+'G+T+D+R+M'!$H1114))","v":8.6080281570315539E-2},{"$f":"IF(ISERROR((+'G+T+D+R+M'!N1114)/(+'G+T+D+R+M'!$H1114)),1/7,(+'G+T+D+R+M'!N1114)/(+'G+T+D+R+M'!$H1114))","v":3.5712325988774329E-2},{"$f":"IF(ISERROR((+'G+T+D+R+M'!O1114)/(+'G+T+D+R+M'!$H1114)),1/7,(+'G+T+D+R+M'!O1114)/(+'G+T+D+R+M'!$H1114))","v":5.1506827481859847E-3},{"$f":"IF(ISERROR((+'G+T+D+R+M'!P1114)/(+'G+T+D+R+M'!$H1114)),0,(+'G+T+D+R+M'!P1114)/(+'G+T+D+R+M'!$H1114))","v":0},{"$f":"IF(ISERROR((+'G+T+D+R+M'!Q1114)/(+'G+T+D+R+M'!$H1114)),0,(+'G+T+D+R+M'!Q1114)/(+'G+T+D+R+M'!$H1114))","v":0},1]
["F118","Account 360",null,null,null,{"$f":"IF(ISERROR((+'G+T+D+R+M'!I914)/(+'G+T+D+R+M'!$H914)),1/7,(+'G+T+D+R+M'!I914)/(+'G+T+D+R+M'!$H914))","v":0.5062900491293012},{"$f":"IF(ISERROR((+'G+T+D+R+M'!J914)/(+'G+T+D+R+M'!$H914)),1/7,(+'G+T+D+R+M'!J914)/(+'G+T+D+R+M'!$H914))","v":0.13839839251722336},{"$f":"IF(ISERROR((+'G+T+D+R+M'!K914)/(+'G+T+D+R+M'!$H914)),1/7,(+'G+T+D+R+M'!K914)/(+'G+T+D+R+M'!$H914))","v":0.20299382544814365},{"$f":"IF(ISERROR((+'G+T+D+R+M'!L914)/(+'G+T+D+R+M'!$H914)),1/7,(+'G+T+D+R+M'!L914)/(+'G+T+D+R+M'!$H914))","v":7.7629354352841087E-2},{"$f":"IF(ISERROR((+'G+T+D+R+M'!M914)/(+'G+T+D+R+M'!$H914)),1/7,(+'G+T+D+R+M'!M914)/(+'G+T+D+R+M'!$H914))","v":0},{"$f":"IF(ISERROR((+'G+T+D+R+M'!N914)/(+'G+T+D+R+M'!$H914)),1/7,(+'G+T+D+R+M'!N914)/(+'G+T+D+R+M'!$H914))","v":7.0845132699214095E-2},{"$f":"IF(ISERROR((+'G+T+D+R+M'!O914)/(+'G+T+D+R+M'!$H914)),1/7,(+'G+T+D+R+M'!O914)/(+'G+T+D+R+M'!$H914))","v":3.8432458532766021E-3},{"$f":"IF(ISERROR((+'G+T+D+R+M'!P914)/(+'G+T+D+R+M'!$H914)),0,(+'G+T+D+R+M'!P914)/(+'G+T+D+R+M'!$H914))","v":0},{"$f":"IF(ISERROR((+'G+T+D+R+M'!Q914)/(+'G+T+D+R+M'!$H914)),0,(+'G+T+D+R+M'!Q914)/(+'G+T+D+R+M'!$H914))","v":0},1]
["F119","Account 361",null,null,null,{"$f":"IF(ISERROR((+'G+T+D+R+M'!I918)/(+'G+T+D+R+M'!$H918)),1/7,(+'G+T+D+R+M'!I918)/(+'G+T+D+R+M'!$H918))","v":0.47201803477697701},{"$f":"IF(ISERROR((+'G+T+D+R+M'!J918)/(+'G+T+D+R+M'!$H918)),1/7,(+'G+T+D+R+M'!J918)/(+'G+T+D+R+M'!$H918))","v":0.12902986611057948},{"$f":"IF(ISERROR((+'G+T+D+R+M'!K918)/(+'G+T+D+R+M'!$H918)),1/7,(+'G+T+D+R+M'!K918)/(+'G+T+D+R+M'!$H918))","v":0.18925267586174277},{"$f":"IF(ISERROR((+'G+T+D+R+M'!L918)/(+'G+T+D+R+M'!$H918)),1/7,(+'G+T+D+R+M'!L918)/(+'G+T+D+R+M'!$H918))","v":7.2374433085639234E-2},{"$f":"IF(ISERROR((+'G+T+D+R+M'!M918)/(+'G+T+D+R+M'!$H918)),1/7,(+'G+T+D+R+M'!M918)/(+'G+T+D+R+M'!$H918))","v":6.7692451019458075E-2},{"$f":"IF(ISERROR((+'G+T+D+R+M'!N918)/(+'G+T+D+R+M'!$H918)),1/7,(+'G+T+D+R+M'!N918)/(+'G+T+D+R+M'!$H918))","v":6.6049452024005528E-2},{"$f":"IF(ISERROR((+'G+T+D+R+M'!O918)/(+'G+T+D+R+M'!$H918)),1/7,(+'G+T+D+R+M'!O918)/(+'G+T+D+R+M'!$H918))","v":3.5830871215979405E-3},{"$f":"IF(ISERROR((+'G+T+D+R+M'!P918)/(+'G+T+D+R+M'!$H918)),0,(+'G+T+D+R+M'!P918)/(+'G+T+D+R+M'!$H918))","v":0},{"$f":"IF(ISERROR((+'G+T+D+R+M'!Q918)/(+'G+T+D+R+M'!$H918)),0,(+'G+T+D+R+M'!Q918)/(+'G+T+D+R+M'!$H918))","v":0},1]
["F120","Account 362",null,null,null,{"$f":"IF(ISERROR((+'G+T+D+R+M'!I922)/(+'G+T+D+R+M'!$H922)),1/7,(+'G+T+D+R+M'!I922)/(+'G+T+D+R+M'!$H922))","v":0.47958240334586782},{"$f":"IF(ISERROR((+'G+T+D+R+M'!J922)/(+'G+T+D+R+M'!$H922)),1/7,(+'G+T+D+R+M'!J922)/(+'G+T+D+R+M'!$H922))","v":0.13109764613537497},{"$f":"IF(ISERROR((+'G+T+D+R+M'!K922)/(+'G+T+D+R+M'!$H922)),1/7,(+'G+T+D+R+M'!K922)/(+'G+T+D+R+M'!$H922))","v":0.19228556208089637},{"$f":"IF(ISERROR((+'G+T+D+R+M'!L922)/(+'G+T+D+R+M'!$H922)),1/7,(+'G+T+D+R+M'!L922)/(+'G+T+D+R+M'!$H922))","v":7.3534276240960567E-2},{"$f":"IF(ISERROR((+'G+T+D+R+M'!M922)/(+'G+T+D+R+M'!$H922)),1/7,(+'G+T+D+R+M'!M922)/(+'G+T+D+R+M'!$H922))","v":5.2751670370302907E-2},{"$f":"IF(ISERROR((+'G+T+D+R+M'!N922)/(+'G+T+D+R+M'!$H922)),1/7,(+'G+T+D+R+M'!N922)/(+'G+T+D+R+M'!$H922))","v":6.710793361172479E-2},{"$f":"IF(ISERROR((+'G+T+D+R+M'!O922)/(+'G+T+D+R+M'!$H922)),1/7,(+'G+T+D+R+M'!O922)/(+'G+T+D+R+M'!$H922))","v":3.640508214872521E-3},{"$f":"IF(ISERROR((+'G+T+D+R+M'!P922)/(+'G+T+D+R+M'!$H922)),0,(+'G+T+D+R+M'!P922)/(+'G+T+D+R+M'!$H922))","v":0},{"$f":"IF(ISERROR((+'G+T+D+R+M'!Q922)/(+'G+T+D+R+M'!$H922)),0,(+'G+T+D+R+M'!Q922)/(+'G+T+D+R+M'!$H922))","v":0},1]
["F121","Account 364",null,null,null,{"$f":"IF(ISERROR((+'G+T+D+R+M'!I927)/(+'G+T+D+R+M'!$H927)),1/7,(+'G+T+D+R+M'!I927)/(+'G+T+D+R+M'!$H927))","v":0.51371070799384333},{"$f":"IF(ISERROR((+'G+T+D+R+M'!J927)/(+'G+T+D+R+M'!$H927)),1/7,(+'G+T+D+R+M'!J927)/(+'G+T+D+R+M'!$H927))","v":0.1395390200520929},{"$f":"IF(ISERROR((+'G+T+D+R+M'!K927)/(+'G+T+D+R+M'!$H927)),1/7,(+'G+T+D+R+M'!K927)/(+'G+T+D+R+M'!$H927))","v":0.19810265814408193},{"$f":"IF(ISERROR((+'G+T+D+R+M'!L927)/(+'G+T+D+R+M'!$H927)),1/7,(+'G+T+D+R+M'!L927)/(+'G+T+D+R+M'!$H927))","v":7.5758863174068589E-2},{"$f":"IF(ISERROR((+'G+T+D+R+M'!M927)/(+'G+T+D+R+M'!$H927)),1/7,(+'G+T+D+R+M'!M927)/(+'G+T+D+R+M'!$H927))","v":0},{"$f":"IF(ISERROR((+'G+T+D+R+M'!N927)/(+'G+T+D+R+M'!$H927)),1/7,(+'G+T+D+R+M'!N927)/(+'G+T+D+R+M'!$H927))","v":6.9138108379901336E-2},{"$f":"IF(ISERROR((+'G+T+D+R+M'!O927)/(+'G+T+D+R+M'!$H927)),1/7,(+'G+T+D+R+M'!O927)/(+'G+T+D+R+M'!$H927))","v":3.7506422560119189E-3},{"$f":"IF(ISERROR((+'G+T+D+R+M'!P927)/(+'G+T+D+R+M'!$H927)),0,(+'G+T+D+R+M'!P927)/(+'G+T+D+R+M'!$H927))","v":0},{"$f":"IF(ISERROR((+'G+T+D+R+M'!Q927)/(+'G+T+D+R+M'!$H927)),0,(+'G+T+D+R+M'!Q927)/(+'G+T+D+R+M'!$H927))","v":0},1]
["F122","Account 365",null,null,null,{"$f":"IF(ISERROR((+'G+T+D+R+M'!I932)/(+'G+T+D+R+M'!$H932)),1/7,(+'G+T+D+R+M'!I932)/(+'G+T+D+R+M'!$H932))","v":0.63728017270084414},{"$f":"IF(ISERROR((+'G+T+D+R+M'!J932)/(+'G+T+D+R+M'!$H932)),1/7,(+'G+T+D+R+M'!J932)/(+'G+T+D+R+M'!$H932))","v":0.15853285018048921},{"$f":"IF(ISERROR((+'G+T+D+R+M'!K932)/(+'G+T+D+R+M'!$H932)),1/7,(+'G+T+D+R+M'!K932)/(+'G+T+D+R+M'!$H932))","v":0.11665450959176564},{"$f":"IF(ISERROR((+'G+T+D+R+M'!L932)/(+'G+T+D+R+M'!$H932)),1/7,(+'G+T+D+R+M'!L932)/(+'G+T+D+R+M'!$H932))","v":4.4611279392187481E-2},{"$f":"IF(ISERROR((+'G+T+D+R+M'!M932)/(+'G+T+D+R+M'!$H932)),1/7,(+'G+T+D+R+M'!M932)/(+'G+T+D+R+M'!$H932))","v":0},{"$f":"IF(ISERROR((+'G+T+D+R+M'!N932)/(+'G+T+D+R+M'!$H932)),1/7,(+'G+T+D+R+M'!N932)/(+'G+T+D+R+M'!$H932))","v":4.0712589132922111E-2},{"$f":"IF(ISERROR((+'G+T+D+R+M'!O932)/(+'G+T+D+R+M'!$H932)),1/7,(+'G+T+D+R+M'!O932)/(+'G+T+D+R+M'!$H932))","v":2.208599001791307E-3},{"$f":"IF(ISERROR((+'G+T+D+R+M'!P932)/(+'G+T+D+R+M'!$H932)),0,(+'G+T+D+R+M'!P932)/(+'G+T+D+R+M'!$H932))","v":0},{"$f":"IF(ISERROR((+'G+T+D+R+M'!Q932)/(+'G+T+D+R+M'!$H932)),0,(+'G+T+D+R+M'!Q932)/(+'G+T+D+R+M'!$H932))","v":0},1]
["F123","Account 366",null,null,null,{"$f":"IF(ISERROR((+'G+T+D+R+M'!I937)/(+'G+T+D+R+M'!$H937)),1/7,(+'G+T+D+R+M'!I937)/(+'G+T+D+R+M'!$H937))","v":0.65909449393796748},{"$f":"IF(ISERROR((+'G+T+D+R+M'!J937)/(+'G+T+D+R+M'!$H937)),1/7,(+'G+T+D+R+M'!J937)/(+'G+T+D+R+M'!$H937))","v":0.16188592379723296},{"$f":"IF(ISERROR((+'G+T+D+R+M'!K937)/(+'G+T+D+R+M'!$H937)),1/7,(+'G+T+D+R+M'!K937)/(+'G+T+D+R+M'!$H937))","v":0.10227607005654517},{"$f":"IF(ISERROR((+'G+T+D+R+M'!L937)/(+'G+T+D+R+M'!$H937)),1/7,(+'G+T+D+R+M'!L937)/(+'G+T+D+R+M'!$H937))","v":3.9112644272344052E-2},{"$f":"IF(ISERROR((+'G+T+D+R+M'!M937)/(+'G+T+D+R+M'!$H937)),1/7,(+'G+T+D+R+M'!M937)/(+'G+T+D+R+M'!$H937))","v":0},{"$f":"IF(ISERROR((+'G+T+D+R+M'!N937)/(+'G+T+D+R+M'!$H937)),1/7,(+'G+T+D+R+M'!N937)/(+'G+T+D+R+M'!$H937))","v":3.5694493362612385E-2},{"$f":"IF(ISERROR((+'G+T+D+R+M'!O937)/(+'G+T+D+R+M'!$H937)),1/7,(+'G+T+D+R+M'!O937)/(+'G+T+D+R+M'!$H937))","v":1.9363745732978355E-3},{"$f":"IF(ISERROR((+'G+T+D+R+M'!P937)/(+'G+T+D+R+M'!$H937)),0,(+'G+T+D+R+M'!P937)/(+'G+T+D+R+M'!$H937))","v":0},{"$f":"IF(ISERROR((+'G+T+D+R+M'!Q937)/(+'G+T+D+R+M'!$H937)),0,(+'G+T+D+R+M'!Q937)/(+'G+T+D+R+M'!$H937))","v":0},1]
["F124","Account 367",null,null,null,{"$f":"IF(ISERROR((+'G+T+D+R+M'!I942)/(+'G+T+D+R+M'!$H942)),1/7,(+'G+T+D+R+M'!I942)/(+'G+T+D+R+M'!$H942))","v":0.68321286986499619},{"$f":"IF(ISERROR((+'G+T+D+R+M'!J942)/(+'G+T+D+R+M'!$H942)),1/7,(+'G+T+D+R+M'!J942)/(+'G+T+D+R+M'!$H942))","v":0.16559315305825628},{"$f":"IF(ISERROR((+'G+T+D+R+M'!K942)/(+'G+T+D+R+M'!$H942)),1/7,(+'G+T+D+R+M'!K942)/(+'G+T+D+R+M'!$H942))","v":8.6378962546991206E-2},{"$f":"IF(ISERROR((+'G+T+D+R+M'!L942)/(+'G+T+D+R+M'!$H942)),1/7,(+'G+T+D+R+M'!L942)/(+'G+T+D+R+M'!$H942))","v":3.3033236737065937E-2},{"$f":"IF(ISERROR((+'G+T+D+R+M'!M942)/(+'G+T+D+R+M'!$H942)),1/7,(+'G+T+D+R+M'!M942)/(+'G+T+D+R+M'!$H942))","v":0},{"$f":"IF(ISERROR((+'G+T+D+R+M'!N942)/(+'G+T+D+R+M'!$H942)),1/7,(+'G+T+D+R+M'!N942)/(+'G+T+D+R+M'!$H942))","v":3.0146380317490586E-2},{"$f":"IF(ISERROR((+'G+T+D+R+M'!O942)/(+'G+T+D+R+M'!$H942)),1/7,(+'G+T+D+R+M'!O942)/(+'G+T+D+R+M'!$H942))","v":1.6353974751998782E-3},{"$f":"IF(ISERROR((+'G+T+D+R+M'!P942)/(+'G+T+D+R+M'!$H942)),0,(+'G+T+D+R+M'!P942)/(+'G+T+D+R+M'!$H942))","v":0},{"$f":"IF(ISERROR((+'G+T+D+R+M'!Q942)/(+'G+T+D+R+M'!$H942)),0,(+'G+T+D+R+M'!Q942)/(+'G+T+D+R+M'!$H942))","v":0},1]
["F125","Account 368",null,null,null,{"$f":"IF(ISERROR((+'G+T+D+R+M'!I946)/(+'G+T+D+R+M'!$H946)),1/7,(+'G+T+D+R+M'!I946)/(+'G+T+D+R+M'!$H946))","v":0.60356207368247716},{"$f":"IF(ISERROR((+'G+T+D+R+M'!J946)/(+'G+T+D+R+M'!$H946)),1/7,(+'G+T+D+R+M'!J946)/(+'G+T+D+R+M'!$H946))","v":0.13767505391972143},{"$f":"IF(ISERROR((+'G+T+D+R+M'!K946)/(+'G+T+D+R+M'!$H946)),1/7,(+'G+T+D+R+M'!K946)/(+'G+T+D+R+M'!$H946))","v":0.155230232775421},{"$f":"IF(ISERROR((+'G+T+D+R+M'!L946)/(+'G+T+D+R+M'!$H946)),1/7,(+'G+T+D+R+M'!L946)/(+'G+T+D+R+M'!$H946))","v":4.5750191056818122E-2},{"$f":"IF(ISERROR((+'G+T+D+R+M'!M946)/(+'G+T+D+R+M'!$H946)),1/7,(+'G+T+D+R+M'!M946)/(+'G+T+D+R+M'!$H946))","v":0},{"$f":"IF(ISERROR((+'G+T+D+R+M'!N946)/(+'G+T+D+R+M'!$H946)),1/7,(+'G+T+D+R+M'!N946)/(+'G+T+D+R+M'!$H946))","v":5.5625913022576752E-2},{"$f":"IF(ISERROR((+'G+T+D+R+M'!O946)/(+'G+T+D+R+M'!$H946)),1/7,(+'G+T+D+R+M'!O946)/(+'G+T+D+R+M'!$H946))","v":2.1565355429856636E-3},{"$f":"IF(ISERROR((+'G+T+D+R+M'!P946)/(+'G+T+D+R+M'!$H946)),0,(+'G+T+D+R+M'!P946)/(+'G+T+D+R+M'!$H946))","v":0},{"$f":"IF(ISERROR((+'G+T+D+R+M'!Q946)/(+'G+T+D+R+M'!$H946)),0,(+'G+T+D+R+M'!Q946)/(+'G+T+D+R+M'!$H946))","v":0},1]
["F126","Account 369",null,null,null,{"$f":"IF(ISERROR((+'G+T+D+R+M'!I950)/(+'G+T+D+R+M'!$H950)),1/7,(+'G+T+D+R+M'!I950)/(+'G+T+D+R+M'!$H950))","v":0.73667592328284026},{"$f":"IF(ISERROR((+'G+T+D+R+M'!J950)/(+'G+T+D+R+M'!$H950)),1/7,(+'G+T+D+R+M'!J950)/(+'G+T+D+R+M'!$H950))","v":0.20129126522181176},{"$f":"IF(ISERROR((+'G+T+D+R+M'!K950)/(+'G+T+D+R+M'!$H950)),1/7,(+'G+T+D+R+M'!K950)/(+'G+T+D+R+M'!$H950))","v":5.023620474936058E-2},{"$f":"IF(ISERROR((+'G+T+D+R+M'!L950)/(+'G+T+D+R+M'!$H950)),1/7,(+'G+T+D+R+M'!L950)/(+'G+T+D+R+M'!$H950))","v":1.1796606745987464E-2},{"$f":"IF(ISERROR((+'G+T+D+R+M'!M950)/(+'G+T+D+R+M'!$H950)),1/7,(+'G+T+D+R+M'!M950)/(+'G+T+D+R+M'!$H950))","v":0},{"$f":"IF(ISERROR((+'G+T+D+R+M'!N950)/(+'G+T+D+R+M'!$H950)),1/7,(+'G+T+D+R+M'!N950)/(+'G+T+D+R+M'!$H950))","v":0},{"$f":"IF(ISERROR((+'G+T+D+R+M'!O950)/(+'G+T+D+R+M'!$H950)),1/7,(+'G+T+D+R+M'!O950)/(+'G+T+D+R+M'!$H950))","v":0},{"$f":"IF(ISERROR((+'G+T+D+R+M'!P950)/(+'G+T+D+R+M'!$H950)),0,(+'G+T+D+R+M'!P950)/(+'G+T+D+R+M'!$H950))","v":0},{"$f":"IF(ISERROR((+'G+T+D+R+M'!Q950)/(+'G+T+D+R+M'!$H950)),0,(+'G+T+D+R+M'!Q950)/(+'G+T+D+R+M'!$H950))","v":0},1]
["F127","Account 370",null,null,null,{"$f":"IF(ISERROR(('G+T+D+R+M'!I954/'G+T+D+R+M'!$H954)),1/7,('G+T+D+R+M'!I954/'G+T+D+R+M'!$H954))","v":0.6801272623105511},{"$f":"IF(ISERROR(('G+T+D+R+M'!J954/'G+T+D+R+M'!$H954)),1/7,('G+T+D+R+M'!J954/'G+T+D+R+M'!$H954))","v":0.16233909471127583},{"$f":"IF(ISERROR(('G+T+D+R+M'!K954/'G+T+D+R+M'!$H954)),1/7,('G+T+D+R+M'!K954/'G+T+D+R+M'!$H954))","v":7.6410068822240579E-2},{"$f":"IF(ISERROR(('G+T+D+R+M'!L954/'G+T+D+R+M'!$H954)),1/7,('G+T+D+R+M'!L954/'G+T+D+R+M'!$H954))","v":1.2284161694668639E-2},{"$f":"IF(ISERROR(('G+T+D+R+M'!M954/'G+T+D+R+M'!$H954)),1/7,('G+T+D+R+M'!M954/'G+T+D+R+M'!$H954))","v":9.674207292606242E-3},{"$f":"IF(ISERROR(('G+T+D+R+M'!N954/'G+T+D+R+M'!$H954)),1/7,('G+T+D+R+M'!N954/'G+T+D+R+M'!$H954))","v":5.9165205168657642E-2},{"$f":"IF(ISERROR(('G+T+D+R+M'!O954/'G+T+D+R+M'!$H954)),1/7,('G+T+D+R+M'!O954/'G+T+D+R+M'!$H954))","v":0},{"$f":"IF(ISERROR(('G+T+D+R+M'!P954/'G+T+D+R+M'!$H954)),0,('G+T+D+R+M'!P954/'G+T+D+R+M'!$H954))","v":0},{"$f":"IF(ISERROR(('G+T+D+R+M'!Q954/'G+T+D+R+M'!$H954)),0,('G+T+D+R+M'!Q954/'G+T+D+R+M'!$H954))","v":0},1]
["F128","Account 371",null,null,null,{"$f":"IF(ISERROR((+'G+T+D+R+M'!I959)/(+'G+T+D+R+M'!$H959)),1/7,(+'G+T+D+R+M'!I959)/(+'G+T+D+R+M'!$H959))","v":0},{"$f":"IF(ISERROR((+'G+T+D+R+M'!J959)/(+'G+T+D+R+M'!$H959)),1/7,(+'G+T+D+R+M'!J959)/(+'G+T+D+R+M'!$H959))","v":0},{"$f":"IF(ISERROR((+'G+T+D+R+M'!K959)/(+'G+T+D+R+M'!$H959)),1/7,(+'G+T+D+R+M'!K959)/(+'G+T+D+R+M'!$H959))","v":0},{"$f":"IF(ISERROR((+'G+T+D+R+M'!L959)/(+'G+T+D+R+M'!$H959)),1/7,(+'G+T+D+R+M'!L959)/(+'G+T+D+R+M'!$H959))","v":0},{"$f":"IF(ISERROR((+'G+T+D+R+M'!M959)/(+'G+T+D+R+M'!$H959)),1/7,(+'G+T+D+R+M'!M959)/(+'G+T+D+R+M'!$H959))","v":0},{"$f":"IF(ISERROR((+'G+T+D+R+M'!N959)/(+'G+T+D+R+M'!$H959)),1/7,(+'G+T+D+R+M'!N959)/(+'G+T+D+R+M'!$H959))","v":0},{"$f":"IF(ISERROR((+'G+T+D+R+M'!O959)/(+'G+T+D+R+M'!$H959)),1/7,(+'G+T+D+R+M'!O959)/(+'G+T+D+R+M'!$H959))","v":1},{"$f":"IF(ISERROR((+'G+T+D+R+M'!P959)/(+'G+T+D+R+M'!$H959)),0,(+'G+T+D+R+M'!P959)/(+'G+T+D+R+M'!$H959))","v":0},{"$f":"IF(ISERROR((+'G+T+D+R+M'!Q959)/(+'G+T+D+R+M'!$H959)),0,(+'G+T+D+R+M'!Q959)/(+'G+T+D+R+M'!$H959))","v":0},1]
["F129","Account 372",null,null,null,{"$f":"IF(ISERROR((+'G+T+D+R+M'!I964)/(+'G+T+D+R+M'!$H964)),1/7,(+'G+T+D+R+M'!I964)/(+'G+T+D+R+M'!$H964))","v":0.14285714285714285},{"$f":"IF(ISERROR((+'G+T+D+R+M'!J964)/(+'G+T+D+R+M'!$H964)),1/7,(+'G+T+D+R+M'!J964)/(+'G+T+D+R+M'!$H964))","v":0.14285714285714285},{"$f":"IF(ISERROR((+'G+T+D+R+M'!K964)/(+'G+T+D+R+M'!$H964)),1/7,(+'G+T+D+R+M'!K964)/(+'G+T+D+R+M'!$H964))","v":0.14285714285714285},{"$f":"IF(ISERROR((+'G+T+D+R+M'!L964)/(+'G+T+D+R+M'!$H964)),1/7,(+'G+T+D+R+M'!L964)/(+'G+T+D+R+M'!$H964))","v":0.14285714285714285},{"$f":"IF(ISERROR((+'G+T+D+R+M'!M964)/(+'G+T+D+R+M'!$H964)),1/7,(+'G+T+D+R+M'!M964)/(+'G+T+D+R+M'!$H964))","v":0.14285714285714285},{"$f":"IF(ISERROR((+'G+T+D+R+M'!N964)/(+'G+T+D+R+M'!$H964)),1/7,(+'G+T+D+R+M'!N964)/(+'G+T+D+R+M'!$H964))","v":0.14285714285714285},{"$f":"IF(ISERROR((+'G+T+D+R+M'!O964)/(+'G+T+D+R+M'!$H964)),1/7,(+'G+T+D+R+M'!O964)/(+'G+T+D+R+M'!$H964))","v":0.14285714285714285},0,0,{"$f":"ROUND(SUM(F87:N87),6)","v":1}]
["F130","Account 373",null,null,null,{"$f":"IF(ISERROR((+'G+T+D+R+M'!I966)/(+'G+T+D+R+M'!$H966)),1/7,(+'G+T+D+R+M'!I966)/(+'G+T+D+R+M'!$H966))","v":0},{"$f":"IF(ISERROR((+'G+T+D+R+M'!J966)/(+'G+T+D+R+M'!$H966)),1/7,(+'G+T+D+R+M'!J966)/(+'G+T+D+R+M'!$H966))","v":0},{"$f":"IF(ISERROR((+'G+T+D+R+M'!K966)/(+'G+T+D+R+M'!$H966)),1/7,(+'G+T+D+R+M'!K966)/(+'G+T+D+R+M'!$H966))","v":0},{"$f":"IF(ISERROR((+'G+T+D+R+M'!L966)/(+'G+T+D+R+M'!$H966)),1/7,(+'G+T+D+R+M'!L966)/(+'G+T+D+R+M'!$H966))","v":0},{"$f":"IF(ISERROR((+'G+T+D+R+M'!M966)/(+'G+T+D+R+M'!$H966)),1/7,(+'G+T+D+R+M'!M966)/(+'G+T+D+R+M'!$H966))","v":0},{"$f":"IF(ISERROR((+'G+T+D+R+M'!N966)/(+'G+T+D+R+M'!$H966)),1/7,(+'G+T+D+R+M'!N966)/(+'G+T+D+R+M'!$H966))","v":0},{"$f":"IF(ISERROR((+'G+T+D+R+M'!O966)/(+'G+T+D+R+M'!$H966)),1/7,(+'G+T+D+R+M'!O966)/(+'G+T+D+R+M'!$H966))","v":1},{"$f":"IF(ISERROR((+'G+T+D+R+M'!P966)/(+'G+T+D+R+M'!$H966)),0,(+'G+T+D+R+M'!P966)/(+'G+T+D+R+M'!$H966))","v":0},{"$f":"IF(ISERROR((+'G+T+D+R+M'!Q966)/(+'G+T+D+R+M'!$H966)),0,(+'G+T+D+R+M'!Q966)/(+'G+T+D+R+M'!$H966))","v":0},1]
["F131","Account 581 thru 587 & 591 thru 597",null,null,null,{"$f":"IF(ISERROR((SUM('G+T+D+R+M'!I474:I486)+SUM('G+T+D+R+M'!I494:I506))/(SUM('G+T+D+R+M'!$H474:$H486)+SUM('G+T+D+R+M'!$H494:$H506))),1/7,(SUM('G+T+D+R+M'!I474:I486)+SUM('G+T+D+R+M'!I494:I506))/(SUM('G+T+D+R+M'!$H474:$H486)+SUM('G+T+D+R+M'!$H494:$H506)))","v":0.56340055257381294},{"$f":"IF(ISERROR((SUM('G+T+D+R+M'!J474:J486)+SUM('G+T+D+R+M'!J494:J506))/(SUM('G+T+D+R+M'!$H474:$H486)+SUM('G+T+D+R+M'!$H494:$H506))),1/7,(SUM('G+T+D+R+M'!J474:J486)+SUM('G+T+D+R+M'!J494:J506))/(SUM('G+T+D+R+M'!$H474:$H486)+SUM('G+T+D+R+M'!$H494:$H506)))","v":0.14746860416093852},{"$f":"IF(ISERROR((SUM('G+T+D+R+M'!K474:K486)+SUM('G+T+D+R+M'!K494:K506))/(SUM('G+T+D+R+M'!$H474:$H486)+SUM('G+T+D+R+M'!$H494:$H506))),1/7,(SUM('G+T+D+R+M'!K474:K486)+SUM('G+T+D+R+M'!K494:K506))/(SUM('G+T+D+R+M'!$H474:$H486)+SUM('G+T+D+R+M'!$H494:$H506)))","v":0.14254337870417783},{"$f":"IF(ISERROR((SUM('G+T+D+R+M'!L474:L486)+SUM('G+T+D+R+M'!L494:L506))/(SUM('G+T+D+R+M'!$H474:$H486)+SUM('G+T+D+R+M'!$H494:$H506))),1/7,(SUM('G+T+D+R+M'!L474:L486)+SUM('G+T+D+R+M'!L494:L506))/(SUM('G+T+D+R+M'!$H474:$H486)+SUM('G+T+D+R+M'!$H494:$H506)))","v":5.1792195722871325E-2},{"$f":"IF(ISERROR((SUM('G+T+D+R+M'!M474:M486)+SUM('G+T+D+R+M'!M494:M506))/(SUM('G+T+D+R+M'!$H474:$H486)+SUM('G+T+D+R+M'!$H494:$H506))),1/7,(SUM('G+T+D+R+M'!M474:M486)+SUM('G+T+D+R+M'!M494:M506))/(SUM('G+T+D+R+M'!$H474:$H486)+SUM('G+T+D+R+M'!$H494:$H506)))","v":1.9942506834469156E-2},{"$f":"IF(ISERROR((SUM('G+T+D+R+M'!N474:N486)+SUM('G+T+D+R+M'!N494:N506))/(SUM('G+T+D+R+M'!$H474:$H486)+SUM('G+T+D+R+M'!$H494:$H506))),1/7,(SUM('G+T+D+R+M'!N474:N486)+SUM('G+T+D+R+M'!N494:N506))/(SUM('G+T+D+R+M'!$H474:$H486)+SUM('G+T+D+R+M'!$H494:$H506)))","v":5.1390436668394261E-2},{"$f":"IF(ISERROR((SUM('G+T+D+R+M'!O474:O486)+SUM('G+T+D+R+M'!O494:O506))/(SUM('G+T+D+R+M'!$H474:$H486)+SUM('G+T+D+R+M'!$H494:$H506))),1/7,(SUM('G+T+D+R+M'!O474:O486)+SUM('G+T+D+R+M'!O494:O506))/(SUM('G+T+D+R+M'!$H474:$H486)+SUM('G+T+D+R+M'!$H494:$H506)))","v":2.3462325335336081E-2},{"$f":"IF(ISERROR((SUM('G+T+D+R+M'!P474:P486)+SUM('G+T+D+R+M'!P494:P506))/(SUM('G+T+D+R+M'!$H474:$H486)+SUM('G+T+D+R+M'!$H494:$H506))),0,(SUM('G+T+D+R+M'!P474:P486)+SUM('G+T+D+R+M'!P494:P506))/(SUM('G+T+D+R+M'!$H474:$H486)+SUM('G+T+D+R+M'!$H494:$H506)))","v":0},{"$f":"IF(ISERROR((SUM('G+T+D+R+M'!Q474:Q486)+SUM('G+T+D+R+M'!Q494:Q506))/(SUM('G+T+D+R+M'!$H474:$H486)+SUM('G+T+D+R+M'!$H494:$H506))),0,(SUM('G+T+D+R+M'!Q474:Q486)+SUM('G+T+D+R+M'!Q494:Q506))/(SUM('G+T+D+R+M'!$H474:$H486)+SUM('G+T+D+R+M'!$H494:$H506)))","v":0},1]
["F132","Account 364 + 365",null,null,null,{"$f":"IF(ISERROR(('G+T+D+R+M'!I927+'G+T+D+R+M'!I932)/('G+T+D+R+M'!$H927+'G+T+D+R+M'!$H932)),1/7,('G+T+D+R+M'!I927+'G+T+D+R+M'!I932)/('G+T+D+R+M'!$H927+'G+T+D+R+M'!$H932))","v":0.56160503361528979},{"$f":"IF(ISERROR(('G+T+D+R+M'!J927+'G+T+D+R+M'!J932)/('G+T+D+R+M'!$H927+'G+T+D+R+M'!$H932)),1/7,('G+T+D+R+M'!J927+'G+T+D+R+M'!J932)/('G+T+D+R+M'!$H927+'G+T+D+R+M'!$H932))","v":0.1469008443274093},{"$f":"IF(ISERROR(('G+T+D+R+M'!K927+'G+T+D+R+M'!K932)/('G+T+D+R+M'!$H927+'G+T+D+R+M'!$H932)),1/7,('G+T+D+R+M'!K927+'G+T+D+R+M'!K932)/('G+T+D+R+M'!$H927+'G+T+D+R+M'!$H932))","v":0.16653414599362371},{"$f":"IF(ISERROR(('G+T+D+R+M'!L927+'G+T+D+R+M'!L932)/('G+T+D+R+M'!$H927+'G+T+D+R+M'!$H932)),1/7,('G+T+D+R+M'!L927+'G+T+D+R+M'!L932)/('G+T+D+R+M'!$H927+'G+T+D+R+M'!$H932))","v":6.3686361901137384E-2},{"$f":"IF(ISERROR(('G+T+D+R+M'!M927+'G+T+D+R+M'!M932)/('G+T+D+R+M'!$H927+'G+T+D+R+M'!$H932)),1/7,('G+T+D+R+M'!M927+'G+T+D+R+M'!M932)/('G+T+D+R+M'!$H927+'G+T+D+R+M'!$H932))","v":0},{"$f":"IF(ISERROR(('G+T+D+R+M'!N927+'G+T+D+R+M'!N932)/('G+T+D+R+M'!$H927+'G+T+D+R+M'!$H932)),1/7,('G+T+D+R+M'!N927+'G+T+D+R+M'!N932)/('G+T+D+R+M'!$H927+'G+T+D+R+M'!$H932))","v":5.812065291061027E-2},{"$f":"IF(ISERROR(('G+T+D+R+M'!O927+'G+T+D+R+M'!O932)/('G+T+D+R+M'!$H927+'G+T+D+R+M'!$H932)),1/7,('G+T+D+R+M'!O927+'G+T+D+R+M'!O932)/('G+T+D+R+M'!$H927+'G+T+D+R+M'!$H932))","v":3.152961251929585E-3},{"$f":"IF(ISERROR(('G+T+D+R+M'!P927+'G+T+D+R+M'!P932)/('G+T+D+R+M'!$H927+'G+T+D+R+M'!$H932)),0,('G+T+D+R+M'!P927+'G+T+D+R+M'!P932)/('G+T+D+R+M'!$H927+'G+T+D+R+M'!$H932))","v":0},{"$f":"IF(ISERROR(('G+T+D+R+M'!Q927+'G+T+D+R+M'!Q932)/('G+T+D+R+M'!$H927+'G+T+D+R+M'!$H932)),0,('G+T+D+R+M'!Q927+'G+T+D+R+M'!Q932)/('G+T+D+R+M'!$H927+'G+T+D+R+M'!$H932))","v":0},1]
["F133","Account 366 + 367",null,null,null,{"$f":"IF(ISERROR(('G+T+D+R+M'!I937+'G+T+D+R+M'!I942)/('G+T+D+R+M'!$H937+'G+T+D+R+M'!$H942)),1/7,('G+T+D+R+M'!I937+'G+T+D+R+M'!I942)/('G+T+D+R+M'!$H937+'G+T+D+R+M'!$H942))","v":0.67312598262329426},{"$f":"IF(ISERROR(('G+T+D+R+M'!J937+'G+T+D+R+M'!J942)/('G+T+D+R+M'!$H937+'G+T+D+R+M'!$H942)),1/7,('G+T+D+R+M'!J937+'G+T+D+R+M'!J942)/('G+T+D+R+M'!$H937+'G+T+D+R+M'!$H942))","v":0.16404270025628409},{"$f":"IF(ISERROR(('G+T+D+R+M'!K937+'G+T+D+R+M'!K942)/('G+T+D+R+M'!$H937+'G+T+D+R+M'!$H942)),1/7,('G+T+D+R+M'!K937+'G+T+D+R+M'!K942)/('G+T+D+R+M'!$H937+'G+T+D+R+M'!$H942))","v":9.3027516803017268E-2},{"$f":"IF(ISERROR(('G+T+D+R+M'!L937+'G+T+D+R+M'!L942)/('G+T+D+R+M'!$H937+'G+T+D+R+M'!$H942)),1/7,('G+T+D+R+M'!L937+'G+T+D+R+M'!L942)/('G+T+D+R+M'!$H937+'G+T+D+R+M'!$H942))","v":3.5575791778509724E-2},{"$f":"IF(ISERROR(('G+T+D+R+M'!M937+'G+T+D+R+M'!M942)/('G+T+D+R+M'!$H937+'G+T+D+R+M'!$H942)),1/7,('G+T+D+R+M'!M937+'G+T+D+R+M'!M942)/('G+T+D+R+M'!$H937+'G+T+D+R+M'!$H942))","v":0},{"$f":"IF(ISERROR(('G+T+D+R+M'!N937+'G+T+D+R+M'!N942)/('G+T+D+R+M'!$H937+'G+T+D+R+M'!$H942)),1/7,('G+T+D+R+M'!N937+'G+T+D+R+M'!N942)/('G+T+D+R+M'!$H937+'G+T+D+R+M'!$H942))","v":3.2466735173044631E-2},{"$f":"IF(ISERROR(('G+T+D+R+M'!O937+'G+T+D+R+M'!O942)/('G+T+D+R+M'!$H937+'G+T+D+R+M'!$H942)),1/7,('G+T+D+R+M'!O937+'G+T+D+R+M'!O942)/('G+T+D+R+M'!$H937+'G+T+D+R+M'!$H942))","v":1.7612733658499812E-3},{"$f":"IF(ISERROR(('G+T+D+R+M'!P937+'G+T+D+R+M'!P942)/('G+T+D+R+M'!$H937+'G+T+D+R+M'!$H942)),0,('G+T+D+R+M'!P937+'G+T+D+R+M'!P942)/('G+T+D+R+M'!$H937+'G+T+D+R+M'!$H942))","v":0},{"$f":"IF(ISERROR(('G+T+D+R+M'!Q937+'G+T+D+R+M'!Q942)/('G+T+D+R+M'!$H937+'G+T+D+R+M'!$H942)),0,('G+T+D+R+M'!Q937+'G+T+D+R+M'!Q942)/('G+T+D+R+M'!$H937+'G+T+D+R+M'!$H942))","v":0},1]
["F134","Account 364 + 365 + 369  (OH)",null,null,null,{"$f":"IF(ISERROR('G+T+D+R+M'!I927+'G+T+D+R+M'!I932+MetersServices!E$297)/('G+T+D+R+M'!$H927+'G+T+D+R+M'!$H932+MetersServices!D$297),1/7,('G+T+D+R+M'!I927+'G+T+D+R+M'!I932+MetersServices!E$297)/('G+T+D+R+M'!$H927+'G+T+D+R+M'!$H932+MetersServices!D$297))","v":0.59909048034771484},{"$f":"IF(ISERROR('G+T+D+R+M'!J927+'G+T+D+R+M'!J932+MetersServices!F$297)/('G+T+D+R+M'!$H927+'G+T+D+R+M'!$H932+MetersServices!D$297),1/7,('G+T+D+R+M'!J927+'G+T+D+R+M'!J932+MetersServices!F$297)/('G+T+D+R+M'!$H927+'G+T+D+R+M'!$H932+MetersServices!D$297))","v":0.15993105284811515},{"$f":"IF(ISERROR('G+T+D+R+M'!K927+'G+T+D+R+M'!K932+MetersServices!G$297)/('G+T+D+R+M'!$H927+'G+T+D+R+M'!$H932+MetersServices!D$297),1/7,('G+T+D+R+M'!K927+'G+T+D+R+M'!K932+MetersServices!G$297)/('G+T+D+R+M'!$H927+'G+T+D+R+M'!$H932+MetersServices!D$297))","v":0.14016157274244298},{"$f":"IF(ISERROR('G+T+D+R+M'!L927+'G+T+D+R+M'!L932+MetersServices!H$297)/('G+T+D+R+M'!$H927+'G+T+D+R+M'!$H932+MetersServices!D$297),1/7,('G+T+D+R+M'!L927+'G+T+D+R+M'!L932+MetersServices!H$297)/('G+T+D+R+M'!$H927+'G+T+D+R+M'!$H932+MetersServices!D$297))","v":5.1381741604143188E-2},0,{"$f":"IF(ISERROR('G+T+D+R+M'!N927+'G+T+D+R+M'!N932)/('G+T+D+R+M'!$H927+'G+T+D+R+M'!$H932+MetersServices!D$297),1/7,('G+T+D+R+M'!N927+'G+T+D+R+M'!N932))/('G+T+D+R+M'!$H927+'G+T+D+R+M'!$H932+MetersServices!D$297)","v":4.6891363873993501E-2},{"$f":"IF(ISERROR('G+T+D+R+M'!O927+'G+T+D+R+M'!O932)/('G+T+D+R+M'!$H927+'G+T+D+R+M'!$H932+MetersServices!D$297),1/7,('G+T+D+R+M'!O927+'G+T+D+R+M'!O932))/('G+T+D+R+M'!$H927+'G+T+D+R+M'!$H932+MetersServices!D$297)","v":2.5437885835904294E-3},0,0,1]
["F135","Account 366 + 367 + 369  (UG)",null,null,null,{"$f":"IF(ISERROR('G+T+D+R+M'!I937+'G+T+D+R+M'!I942+MetersServices!E$304)/('G+T+D+R+M'!$H937+'G+T+D+R+M'!$H942+MetersServices!D$304),1/7,('G+T+D+R+M'!I937+'G+T+D+R+M'!I942+MetersServices!E$304)/('G+T+D+R+M'!$H937+'G+T+D+R+M'!$H942+MetersServices!D$304))","v":0.67912640217993103},{"$f":"IF(ISERROR('G+T+D+R+M'!J937+'G+T+D+R+M'!J942+MetersServices!F$304)/('G+T+D+R+M'!$H937+'G+T+D+R+M'!$H942+MetersServices!D$304),1/7,('G+T+D+R+M'!J937+'G+T+D+R+M'!J942+MetersServices!F$304)/('G+T+D+R+M'!$H937+'G+T+D+R+M'!$H942+MetersServices!D$304))","v":0.16628094456280978},{"$f":"IF(ISERROR('G+T+D+R+M'!K937+'G+T+D+R+M'!K942+MetersServices!G$304)/('G+T+D+R+M'!$H937+'G+T+D+R+M'!$H942+MetersServices!D$304),1/7,('G+T+D+R+M'!K937+'G+T+D+R+M'!K942+MetersServices!G$304)/('G+T+D+R+M'!$H937+'G+T+D+R+M'!$H942+MetersServices!D$304))","v":9.3878054478384015E-2},{"$f":"IF(ISERROR('G+T+D+R+M'!L937+'G+T+D+R+M'!L942+MetersServices!H$304)/('G+T+D+R+M'!$H937+'G+T+D+R+M'!$H942+MetersServices!D$304),1/7,('G+T+D+R+M'!L937+'G+T+D+R+M'!L942+MetersServices!H$304)/('G+T+D+R+M'!$H937+'G+T+D+R+M'!$H942+MetersServices!D$304))","v":3.6423370414347456E-2},0,{"$f":"IF(ISERROR('G+T+D+R+M'!N937+'G+T+D+R+M'!N942)/('G+T+D+R+M'!$H937+'G+T+D+R+M'!$H942+MetersServices!D$304),1/7,('G+T+D+R+M'!N937+'G+T+D+R+M'!N942)/('G+T+D+R+M'!$H937+'G+T+D+R+M'!$H942+MetersServices!D$304))","v":2.3041272688794967E-2},{"$f":"IF(ISERROR('G+T+D+R+M'!O937+'G+T+D+R+M'!O942)/('G+T+D+R+M'!$H937+'G+T+D+R+M'!$H942+MetersServices!D$304),1/7,('G+T+D+R+M'!O937+'G+T+D+R+M'!O942)/('G+T+D+R+M'!$H937+'G+T+D+R+M'!$H942+MetersServices!D$304))","v":1.249955675732809E-3},0,0,1]
["F136","Account 902 + 903 + 904",null,null,null,{"$f":"IF(ISERROR(('G+T+D+R+M'!I518+'G+T+D+R+M'!I520+'G+T+D+R+M'!I522)/('G+T+D+R+M'!$H518+'G+T+D+R+M'!$H520+'G+T+D+R+M'!$H522)),1/7,('G+T+D+R+M'!I518+'G+T+D+R+M'!I520+'G+T+D+R+M'!I522)/('G+T+D+R+M'!$H518+'G+T+D+R+M'!$H520+'G+T+D+R+M'!$H522))","v":0.82504536546651941},{"$f":"IF(ISERROR(('G+T+D+R+M'!J518+'G+T+D+R+M'!J520+'G+T+D+R+M'!J522)/('G+T+D+R+M'!$H518+'G+T+D+R+M'!$H520+'G+T+D+R+M'!$H522)),1/7,('G+T+D+R+M'!J518+'G+T+D+R+M'!J520+'G+T+D+R+M'!J522)/('G+T+D+R+M'!$H518+'G+T+D+R+M'!$H520+'G+T+D+R+M'!$H522))","v":0.10764256755620748},{"$f":"IF(ISERROR(('G+T+D+R+M'!K518+'G+T+D+R+M'!K520+'G+T+D+R+M'!K522)/('G+T+D+R+M'!$H518+'G+T+D+R+M'!$H520+'G+T+D+R+M'!$H522)),1/7,('G+T+D+R+M'!K518+'G+T+D+R+M'!K520+'G+T+D+R+M'!K522)/('G+T+D+R+M'!$H518+'G+T+D+R+M'!$H520+'G+T+D+R+M'!$H522))","v":2.2098958763555863E-2},{"$f":"IF(ISERROR(('G+T+D+R+M'!L518+'G+T+D+R+M'!L520+'G+T+D+R+M'!L522)/('G+T+D+R+M'!$H518+'G+T+D+R+M'!$H520+'G+T+D+R+M'!$H522)),1/7,('G+T+D+R+M'!L518+'G+T+D+R+M'!L520+'G+T+D+R+M'!L522)/('G+T+D+R+M'!$H518+'G+T+D+R+M'!$H520+'G+T+D+R+M'!$H522))","v":7.7152701223128948E-3},{"$f":"IF(ISERROR(('G+T+D+R+M'!M518+'G+T+D+R+M'!M520+'G+T+D+R+M'!M522)/('G+T+D+R+M'!$H518+'G+T+D+R+M'!$H520+'G+T+D+R+M'!$H522)),1/7,('G+T+D+R+M'!M518+'G+T+D+R+M'!M520+'G+T+D+R+M'!M522)/('G+T+D+R+M'!$H518+'G+T+D+R+M'!$H520+'G+T+D+R+M'!$H522))","v":6.4828248091378902E-3},{"$f":"IF(ISERROR(('G+T+D+R+M'!N518+'G+T+D+R+M'!N520+'G+T+D+R+M'!N522)/('G+T+D+R+M'!$H518+'G+T+D+R+M'!$H520+'G+T+D+R+M'!$H522)),1/7,('G+T+D+R+M'!N518+'G+T+D+R+M'!N520+'G+T+D+R+M'!N522)/('G+T+D+R+M'!$H518+'G+T+D+R+M'!$H520+'G+T+D+R+M'!$H522))","v":1.8996278559192458E-2},{"$f":"IF(ISERROR(('G+T+D+R+M'!O518+'G+T+D+R+M'!O520+'G+T+D+R+M'!O522)/('G+T+D+R+M'!$H518+'G+T+D+R+M'!$H520+'G+T+D+R+M'!$H522)),1/7,('G+T+D+R+M'!O518+'G+T+D+R+M'!O520+'G+T+D+R+M'!O522)/('G+T+D+R+M'!$H518+'G+T+D+R+M'!$H520+'G+T+D+R+M'!$H522))","v":1.2018734723073828E-2},{"$f":"IF(ISERROR(('G+T+D+R+M'!P518+'G+T+D+R+M'!P520+'G+T+D+R+M'!P522)/('G+T+D+R+M'!$H518+'G+T+D+R+M'!$H520+'G+T+D+R+M'!$H522)),0,('G+T+D+R+M'!P518+'G+T+D+R+M'!P520+'G+T+D+R+M'!P522)/('G+T+D+R+M'!$H518+'G+T+D+R+M'!$H520+'G+T+D+R+M'!$H522))","v":0},{"$f":"IF(ISERROR(('G+T+D+R+M'!Q518+'G+T+D+R+M'!Q520+'G+T+D+R+M'!Q522)/('G+T+D+R+M'!$H518+'G+T+D+R+M'!$H520+'G+T+D+R+M'!$H522)),0,('G+T+D+R+M'!Q518+'G+T+D+R+M'!Q520+'G+T+D+R+M'!Q522)/('G+T+D+R+M'!$H518+'G+T+D+R+M'!$H520+'G+T+D+R+M'!$H522))","v":0},1]
["F137","Total O & M Expense",null,null,null,{"$f":"IF(ISERROR('G+T+D+R+M'!I$595/'G+T+D+R+M'!$H$595),1/7,'G+T+D+R+M'!I$595/'G+T+D+R+M'!$H$595)","v":0.44878660596338427},{"$f":"IF(ISERROR('G+T+D+R+M'!J$595/'G+T+D+R+M'!$H$595),1/7,'G+T+D+R+M'!J$595/'G+T+D+R+M'!$H$595)","v":0.13503228306973492},{"$f":"IF(ISERROR('G+T+D+R+M'!K$595/'G+T+D+R+M'!$H$595),1/7,'G+T+D+R+M'!K$595/'G+T+D+R+M'!$H$595)","v":0.20175389592317294},{"$f":"IF(ISERROR('G+T+D+R+M'!L$595/'G+T+D+R+M'!$H$595),1/7,'G+T+D+R+M'!L$595/'G+T+D+R+M'!$H$595)","v":7.9325799228161867E-2},{"$f":"IF(ISERROR('G+T+D+R+M'!M$595/'G+T+D+R+M'!$H$595),1/7,'G+T+D+R+M'!M$595/'G+T+D+R+M'!$H$595)","v":9.4893926908733439E-2},{"$f":"IF(ISERROR('G+T+D+R+M'!N$595/'G+T+D+R+M'!$H$595),1/7,'G+T+D+R+M'!N$595/'G+T+D+R+M'!$H$595)","v":3.6104701095798782E-2},{"$f":"IF(ISERROR('G+T+D+R+M'!O$595/'G+T+D+R+M'!$H$595),1/7,'G+T+D+R+M'!O$595/'G+T+D+R+M'!$H$595)","v":4.1027878110136574E-3},{"$f":"IF(ISERROR('G+T+D+R+M'!P$595/'G+T+D+R+M'!$H$595),0,'G+T+D+R+M'!P$595/'G+T+D+R+M'!$H$595)","v":0},{"$f":"IF(ISERROR('G+T+D+R+M'!Q$595/'G+T+D+R+M'!$H$595),0,'G+T+D+R+M'!Q$595/'G+T+D+R+M'!$H$595)","v":0},1]
["F137G","Generation O & M Exp",null,null,null,{"$f":"IF(ISERROR(Generation!I$595/Generation!$H$595),1/7,Generation!I$595/Generation!$H$595)","v":0.42416013959464954},{"$f":"IF(ISERROR(Generation!J$595/Generation!$H$595),1/7,Generation!J$595/Generation!$H$595)","v":0.13498885395379023},{"$f":"IF(ISERROR(Generation!K$595/Generation!$H$595),1/7,Generation!K$595/Generation!$H$595)","v":0.21389235284384081},{"$f":"IF(ISERROR(Generation!L$595/Generation!$H$595),1/7,Generation!L$595/Generation!$H$595)","v":8.4510313706120721E-2},{"$f":"IF(ISERROR(Generation!M$595/Generation!$H$595),1/7,Generation!M$595/Generation!$H$595)","v":0.10441893653272384},{"$f":"IF(ISERROR(Generation!N$595/Generation!$H$595),1/7,Generation!N$595/Generation!$H$595)","v":3.562992287389101E-2},{"$f":"IF(ISERROR(Generation!O$595/Generation!$H$595),1/7,Generation!O$595/Generation!$H$595)","v":2.399480494983721E-3},{"$f":"IF(ISERROR(Generation!P$595/Generation!$H$595),0,Generation!P$595/Generation!$H$595)","v":0},{"$f":"IF(ISERROR(Generation!Q$595/Generation!$H$595),0,Generation!Q$595/Generation!$H$595)","v":0},1]
["F137T","Transmission O & M Exp",null,null,null,{"$f":"IF(ISERROR(Transmission!I$595/Transmission!$H$595),1/7,Transmission!I$595/Transmission!$H$595)","v":0.42487629683170502},{"$f":"IF(ISERROR(Transmission!J$595/Transmission!$H$595),1/7,Transmission!J$595/Transmission!$H$595)","v":0.13510657033397719},{"$f":"IF(ISERROR(Transmission!K$595/Transmission!$H$595),1/7,Transmission!K$595/Transmission!$H$595)","v":0.21352457690907159},{"$f":"IF(ISERROR(Transmission!L$595/Transmission!$H$595),1/7,Transmission!L$595/Transmission!$H$595)","v":8.4328619143296132E-2},{"$f":"IF(ISERROR(Transmission!M$595/Transmission!$H$595),1/7,Transmission!M$595/Transmission!$H$595)","v":0.10403661371553211},{"$f":"IF(ISERROR(Transmission!N$595/Transmission!$H$595),1/7,Transmission!N$595/Transmission!$H$595)","v":3.5674114252565066E-2},{"$f":"IF(ISERROR(Transmission!O$595/Transmission!$H$595),1/7,Transmission!O$595/Transmission!$H$595)","v":2.4532088138529461E-3},{"$f":"IF(ISERROR(Transmission!P$595/Transmission!$H$595),0,Transmission!P$595/Transmission!$H$595)","v":0},{"$f":"IF(ISERROR(Transmission!Q$595/Transmission!$H$595),0,Transmission!Q$595/Transmission!$H$595)","v":0},1]
["F137D","Distribution O & M Exp ",null,null,null,{"$f":"IF(ISERROR(Distribution!I$595/Distribution!$H$595),1/7,Distribution!I$595/Distribution!$H$595)","v":0.56253380723623592},{"$f":"IF(ISERROR(Distribution!J$595/Distribution!$H$595),1/7,Distribution!J$595/Distribution!$H$595)","v":0.14738630667514954},{"$f":"IF(ISERROR(Distribution!K$595/Distribution!$H$595),1/7,Distribution!K$595/Distribution!$H$595)","v":0.14469183107188208},{"$f":"IF(ISERROR(Distribution!L$595/Distribution!$H$595),1/7,Distribution!L$595/Distribution!$H$595)","v":5.2537406730043798E-2},{"$f":"IF(ISERROR(Distribution!M$595/Distribution!$H$595),1/7,Distribution!M$595/Distribution!$H$595)","v":2.1119245862861031E-2},{"$f":"IF(ISERROR(Distribution!N$595/Distribution!$H$595),1/7,Distribution!N$595/Distribution!$H$595)","v":5.0369334487968528E-2},{"$f":"IF(ISERROR(Distribution!O$595/Distribution!$H$595),1/7,Distribution!O$595/Distribution!$H$595)","v":2.1362067935859458E-2},{"$f":"IF(ISERROR(Distribution!P$595/Distribution!$H$595),0,Distribution!P$595/Distribution!$H$595)","v":0},{"$f":"IF(ISERROR(Distribution!Q$595/Distribution!$H$595),0,Distribution!Q$595/Distribution!$H$595)","v":0},1]
["F137R","Retail O & M Exp  (Customer)",null,null,null,{"$f":"IF(ISERROR(Retail!I$595/Retail!$H$595),1/7,Retail!I$595/Retail!$H$595)","v":0.81926722901273963},{"$f":"IF(ISERROR(Retail!J$595/Retail!$H$595),1/7,Retail!J$595/Retail!$H$595)","v":0.11144577904712072},{"$f":"IF(ISERROR(Retail!K$595/Retail!$H$595),1/7,Retail!K$595/Retail!$H$595)","v":2.1359398676464129E-2},{"$f":"IF(ISERROR(Retail!L$595/Retail!$H$595),1/7,Retail!L$595/Retail!$H$595)","v":7.2370119224949795E-3},{"$f":"IF(ISERROR(Retail!M$595/Retail!$H$595),1/7,Retail!M$595/Retail!$H$595)","v":6.1109065905392678E-3},{"$f":"IF(ISERROR(Retail!N$595/Retail!$H$595),1/7,Retail!N$595/Retail!$H$595)","v":2.136414412626347E-2},{"$f":"IF(ISERROR(Retail!O$595/Retail!$H$595),1/7,Retail!O$595/Retail!$H$595)","v":1.3215530624377881E-2},{"$f":"IF(ISERROR(Retail!P$595/Retail!$H$595),0,Retail!P$595/Retail!$H$595)","v":0},{"$f":"IF(ISERROR(Retail!Q$595/Retail!$H$595),0,Retail!Q$595/Retail!$H$595)","v":0},1]
["F137M","Misc & Customer O & M Exp ",null,null,null,{"$f":"IF(ISERROR(Misc!I$595/Misc!$H$595),1/7,Misc!I$595/Misc!$H$595)","v":0.44300119277721833},{"$f":"IF(ISERROR(Misc!J$595/Misc!$H$595),1/7,Misc!J$595/Misc!$H$595)","v":0.14948111576616038},{"$f":"IF(ISERROR(Misc!K$595/Misc!$H$595),1/7,Misc!K$595/Misc!$H$595)","v":0.20237668529834696},{"$f":"IF(ISERROR(Misc!L$595/Misc!$H$595),1/7,Misc!L$595/Misc!$H$595)","v":7.60443764071419E-2},{"$f":"IF(ISERROR(Misc!M$595/Misc!$H$595),1/7,Misc!M$595/Misc!$H$595)","v":8.2490094379798484E-2},{"$f":"IF(ISERROR(Misc!N$595/Misc!$H$595),1/7,Misc!N$595/Misc!$H$595)","v":4.1103443680509312E-2},{"$f":"IF(ISERROR(Misc!O$595/Misc!$H$595),1/7,Misc!O$595/Misc!$H$595)","v":5.5030916908246769E-3},{"$f":"IF(ISERROR(Misc!P$595/Misc!$H$595),0,Misc!P$595/Misc!$H$595)","v":0},{"$f":"IF(ISERROR(Misc!Q$595/Misc!$H$595),0,Misc!Q$595/Misc!$H$595)","v":0},1]
["F138","GTD O&M Exp  (less fuel, purchased p & wheeling)",null,null,null,{"$f":"IF(ISERROR(('G+T+D+R+M'!I411+'G+T+D+R+M'!I453+'G+T+D+R+M'!I510+'G+T+D+R+M'!I526+'G+T+D+R+M'!I543+'G+T+D+R+M'!I556-'G+T+D+R+M'!I223-'G+T+D+R+M'!I277-'G+T+D+R+M'!I341-'G+T+D+R+M'!I386-'G+T+D+R+M'!I432-'G+T+D+R+M'!I396)/('G+T+D+R+M'!$H411+'G+T+D+R+M'!$H453+'G+T+D+R+M'!$H510+'G+T+D+R+M'!$H526+'G+T+D+R+M'!$H543+'G+T+D+R+M'!$H556-'G+T+D+R+M'!$H223-'G+T+D+R+M'!$H277-'G+T+D+R+M'!$H341-'G+T+D+R+M'!$H386-'G+T+D+R+M'!$H432-'G+T+D+R+M'!$H$396)),1/7,('G+T+D+R+M'!I411+'G+T+D+R+M'!I453+'G+T+D+R+M'!I510+'G+T+D+R+M'!I526+'G+T+D+R+M'!I543+'G+T+D+R+M'!I556-'G+T+D+R+M'!I223-'G+T+D+R+M'!I277-'G+T+D+R+M'!I341-'G+T+D+R+M'!I386-'G+T+D+R+M'!I432-'G+T+D+R+M'!I396)/('G+T+D+R+M'!$H411+'G+T+D+R+M'!$H453+'G+T+D+R+M'!$H510+'G+T+D+R+M'!$H526+'G+T+D+R+M'!$H543+'G+T+D+R+M'!$H556-'G+T+D+R+M'!$H223-'G+T+D+R+M'!$H277-'G+T+D+R+M'!$H341-'G+T+D+R+M'!$H386-'G+T+D+R+M'!$H432-'G+T+D+R+M'!$H$396))","v":0.44790161447788868},{"$f":"IF(ISERROR(('G+T+D+R+M'!J411+'G+T+D+R+M'!J453+'G+T+D+R+M'!J510+'G+T+D+R+M'!J526+'G+T+D+R+M'!J543+'G+T+D+R+M'!J556-'G+T+D+R+M'!J223-'G+T+D+R+M'!J277-'G+T+D+R+M'!J341-'G+T+D+R+M'!J386-'G+T+D+R+M'!J432-'G+T+D+R+M'!J396)/('G+T+D+R+M'!$H411+'G+T+D+R+M'!$H453+'G+T+D+R+M'!$H510+'G+T+D+R+M'!$H526+'G+T+D+R+M'!$H543+'G+T+D+R+M'!$H556-'G+T+D+R+M'!$H223-'G+T+D+R+M'!$H277-'G+T+D+R+M'!$H341-'G+T+D+R+M'!$H386-'G+T+D+R+M'!$H432-'G+T+D+R+M'!$H$396)),1/7,('G+T+D+R+M'!J411+'G+T+D+R+M'!J453+'G+T+D+R+M'!J510+'G+T+D+R+M'!J526+'G+T+D+R+M'!J543+'G+T+D+R+M'!J556-'G+T+D+R+M'!J223-'G+T+D+R+M'!J277-'G+T+D+R+M'!J341-'G+T+D+R+M'!J386-'G+T+D+R+M'!J432-'G+T+D+R+M'!J396)/('G+T+D+R+M'!$H411+'G+T+D+R+M'!$H453+'G+T+D+R+M'!$H510+'G+T+D+R+M'!$H526+'G+T+D+R+M'!$H543+'G+T+D+R+M'!$H556-'G+T+D+R+M'!$H223-'G+T+D+R+M'!$H277-'G+T+D+R+M'!$H341-'G+T+D+R+M'!$H386-'G+T+D+R+M'!$H432-'G+T+D+R+M'!$H$396))","v":0.13472000615747398},{"$f":"IF(ISERROR(('G+T+D+R+M'!K411+'G+T+D+R+M'!K453+'G+T+D+R+M'!K510+'G+T+D+R+M'!K526+'G+T+D+R+M'!K543+'G+T+D+R+M'!K556-'G+T+D+R+M'!K223-'G+T+D+R+M'!K277-'G+T+D+R+M'!K341-'G+T+D+R+M'!K386-'G+T+D+R+M'!K432-'G+T+D+R+M'!K396)/('G+T+D+R+M'!$H411+'G+T+D+R+M'!$H453+'G+T+D+R+M'!$H510+'G+T+D+R+M'!$H526+'G+T+D+R+M'!$H543+'G+T+D+R+M'!$H556-'G+T+D+R+M'!$H223-'G+T+D+R+M'!$H277-'G+T+D+R+M'!$H341-'G+T+D+R+M'!$H386-'G+T+D+R+M'!$H432-'G+T+D+R+M'!$H$396)),1/7,('G+T+D+R+M'!K411+'G+T+D+R+M'!K453+'G+T+D+R+M'!K510+'G+T+D+R+M'!K526+'G+T+D+R+M'!K543+'G+T+D+R+M'!K556-'G+T+D+R+M'!K223-'G+T+D+R+M'!K277-'G+T+D+R+M'!K341-'G+T+D+R+M'!K386-'G+T+D+R+M'!K432-'G+T+D+R+M'!K396)/('G+T+D+R+M'!$H411+'G+T+D+R+M'!$H453+'G+T+D+R+M'!$H510+'G+T+D+R+M'!$H526+'G+T+D+R+M'!$H543+'G+T+D+R+M'!$H556-'G+T+D+R+M'!$H223-'G+T+D+R+M'!$H277-'G+T+D+R+M'!$H341-'G+T+D+R+M'!$H386-'G+T+D+R+M'!$H432-'G+T+D+R+M'!$H$396))","v":0.20210870418152285},{"$f":"IF(ISERROR(('G+T+D+R+M'!L411+'G+T+D+R+M'!L453+'G+T+D+R+M'!L510+'G+T+D+R+M'!L526+'G+T+D+R+M'!L543+'G+T+D+R+M'!L556-'G+T+D+R+M'!L223-'G+T+D+R+M'!L277-'G+T+D+R+M'!L341-'G+T+D+R+M'!L386-'G+T+D+R+M'!L432-'G+T+D+R+M'!L396)/('G+T+D+R+M'!$H411+'G+T+D+R+M'!$H453+'G+T+D+R+M'!$H510+'G+T+D+R+M'!$H526+'G+T+D+R+M'!$H543+'G+T+D+R+M'!$H556-'G+T+D+R+M'!$H223-'G+T+D+R+M'!$H277-'G+T+D+R+M'!$H341-'G+T+D+R+M'!$H386-'G+T+D+R+M'!$H432-'G+T+D+R+M'!$H$396)),1/7,('G+T+D+R+M'!L411+'G+T+D+R+M'!L453+'G+T+D+R+M'!L510+'G+T+D+R+M'!L526+'G+T+D+R+M'!L543+'G+T+D+R+M'!L556-'G+T+D+R+M'!L223-'G+T+D+R+M'!L277-'G+T+D+R+M'!L341-'G+T+D+R+M'!L386-'G+T+D+R+M'!L432-'G+T+D+R+M'!L396)/('G+T+D+R+M'!$H411+'G+T+D+R+M'!$H453+'G+T+D+R+M'!$H510+'G+T+D+R+M'!$H526+'G+T+D+R+M'!$H543+'G+T+D+R+M'!$H556-'G+T+D+R+M'!$H223-'G+T+D+R+M'!$H277-'G+T+D+R+M'!$H341-'G+T+D+R+M'!$H386-'G+T+D+R+M'!$H432-'G+T+D+R+M'!$H$396))","v":7.9561134937925243E-2},{"$f":"IF(ISERROR(('G+T+D+R+M'!M411+'G+T+D+R+M'!M453+'G+T+D+R+M'!M510+'G+T+D+R+M'!M526+'G+T+D+R+M'!M543+'G+T+D+R+M'!M556-'G+T+D+R+M'!M223-'G+T+D+R+M'!M277-'G+T+D+R+M'!M341-'G+T+D+R+M'!M386-'G+T+D+R+M'!M432-'G+T+D+R+M'!M396)/('G+T+D+R+M'!$H411+'G+T+D+R+M'!$H453+'G+T+D+R+M'!$H510+'G+T+D+R+M'!$H526+'G+T+D+R+M'!$H543+'G+T+D+R+M'!$H556-'G+T+D+R+M'!$H223-'G+T+D+R+M'!$H277-'G+T+D+R+M'!$H341-'G+T+D+R+M'!$H386-'G+T+D+R+M'!$H432-'G+T+D+R+M'!$H$396)),1/7,('G+T+D+R+M'!M411+'G+T+D+R+M'!M453+'G+T+D+R+M'!M510+'G+T+D+R+M'!M526+'G+T+D+R+M'!M543+'G+T+D+R+M'!M556-'G+T+D+R+M'!M223-'G+T+D+R+M'!M277-'G+T+D+R+M'!M341-'G+T+D+R+M'!M386-'G+T+D+R+M'!M432-'G+T+D+R+M'!M396)/('G+T+D+R+M'!$H411+'G+T+D+R+M'!$H453+'G+T+D+R+M'!$H510+'G+T+D+R+M'!$H526+'G+T+D+R+M'!$H543+'G+T+D+R+M'!$H556-'G+T+D+R+M'!$H223-'G+T+D+R+M'!$H277-'G+T+D+R+M'!$H341-'G+T+D+R+M'!$H386-'G+T+D+R+M'!$H432-'G+T+D+R+M'!$H$396))","v":9.5761453763161281E-2},{"$f":"IF(ISERROR(('G+T+D+R+M'!N411+'G+T+D+R+M'!N453+'G+T+D+R+M'!N510+'G+T+D+R+M'!N526+'G+T+D+R+M'!N543+'G+T+D+R+M'!N556-'G+T+D+R+M'!N223-'G+T+D+R+M'!N277-'G+T+D+R+M'!N341-'G+T+D+R+M'!N386-'G+T+D+R+M'!N432-'G+T+D+R+M'!N396)/('G+T+D+R+M'!$H411+'G+T+D+R+M'!$H453+'G+T+D+R+M'!$H510+'G+T+D+R+M'!$H526+'G+T+D+R+M'!$H543+'G+T+D+R+M'!$H556-'G+T+D+R+M'!$H223-'G+T+D+R+M'!$H277-'G+T+D+R+M'!$H341-'G+T+D+R+M'!$H386-'G+T+D+R+M'!$H432-'G+T+D+R+M'!$H$396)),1/7,('G+T+D+R+M'!N411+'G+T+D+R+M'!N453+'G+T+D+R+M'!N510+'G+T+D+R+M'!N526+'G+T+D+R+M'!N543+'G+T+D+R+M'!N556-'G+T+D+R+M'!N223-'G+T+D+R+M'!N277-'G+T+D+R+M'!N341-'G+T+D+R+M'!N386-'G+T+D+R+M'!N432-'G+T+D+R+M'!N396)/('G+T+D+R+M'!$H411+'G+T+D+R+M'!$H453+'G+T+D+R+M'!$H510+'G+T+D+R+M'!$H526+'G+T+D+R+M'!$H543+'G+T+D+R+M'!$H556-'G+T+D+R+M'!$H223-'G+T+D+R+M'!$H277-'G+T+D+R+M'!$H341-'G+T+D+R+M'!$H386-'G+T+D+R+M'!$H432-'G+T+D+R+M'!$H$396))","v":3.5925058542554338E-2},{"$f":"IF(ISERROR(('G+T+D+R+M'!O411+'G+T+D+R+M'!O453+'G+T+D+R+M'!O510+'G+T+D+R+M'!O526+'G+T+D+R+M'!O543+'G+T+D+R+M'!O556-'G+T+D+R+M'!O223-'G+T+D+R+M'!O277-'G+T+D+R+M'!O341-'G+T+D+R+M'!O386-'G+T+D+R+M'!O432-'G+T+D+R+M'!O396)/('G+T+D+R+M'!$H411+'G+T+D+R+M'!$H453+'G+T+D+R+M'!$H510+'G+T+D+R+M'!$H526+'G+T+D+R+M'!$H543+'G+T+D+R+M'!$H556-'G+T+D+R+M'!$H223-'G+T+D+R+M'!$H277-'G+T+D+R+M'!$H341-'G+T+D+R+M'!$H386-'G+T+D+R+M'!$H432-'G+T+D+R+M'!$H$396)),1/7,('G+T+D+R+M'!O411+'G+T+D+R+M'!O453+'G+T+D+R+M'!O510+'G+T+D+R+M'!O526+'G+T+D+R+M'!O543+'G+T+D+R+M'!O556-'G+T+D+R+M'!O223-'G+T+D+R+M'!O277-'G+T+D+R+M'!O341-'G+T+D+R+M'!O386-'G+T+D+R+M'!O432-'G+T+D+R+M'!O396)/('G+T+D+R+M'!$H411+'G+T+D+R+M'!$H453+'G+T+D+R+M'!$H510+'G+T+D+R+M'!$H526+'G+T+D+R+M'!$H543+'G+T+D+R+M'!$H556-'G+T+D+R+M'!$H223-'G+T+D+R+M'!$H277-'G+T+D+R+M'!$H341-'G+T+D+R+M'!$H386-'G+T+D+R+M'!$H432-'G+T+D+R+M'!$H$396))","v":4.0220279394736491E-3},{"$f":"IF(ISERROR(('G+T+D+R+M'!P411+'G+T+D+R+M'!P453+'G+T+D+R+M'!P510+'G+T+D+R+M'!P526+'G+T+D+R+M'!P543+'G+T+D+R+M'!P556-'G+T+D+R+M'!P223-'G+T+D+R+M'!P277-'G+T+D+R+M'!P341-'G+T+D+R+M'!P386-'G+T+D+R+M'!P432-'G+T+D+R+M'!P396)/('G+T+D+R+M'!$H411+'G+T+D+R+M'!$H453+'G+T+D+R+M'!$H510+'G+T+D+R+M'!$H526+'G+T+D+R+M'!$H543+'G+T+D+R+M'!$H556-'G+T+D+R+M'!$H223-'G+T+D+R+M'!$H277-'G+T+D+R+M'!$H341-'G+T+D+R+M'!$H386-'G+T+D+R+M'!$H432-'G+T+D+R+M'!$H$396)),0,('G+T+D+R+M'!P411+'G+T+D+R+M'!P453+'G+T+D+R+M'!P510+'G+T+D+R+M'!P526+'G+T+D+R+M'!P543+'G+T+D+R+M'!P556-'G+T+D+R+M'!P223-'G+T+D+R+M'!P277-'G+T+D+R+M'!P341-'G+T+D+R+M'!P386-'G+T+D+R+M'!P432-'G+T+D+R+M'!P396)/('G+T+D+R+M'!$H411+'G+T+D+R+M'!$H453+'G+T+D+R+M'!$H510+'G+T+D+R+M'!$H526+'G+T+D+R+M'!$H543+'G+T+D+R+M'!$H556-'G+T+D+R+M'!$H223-'G+T+D+R+M'!$H277-'G+T+D+R+M'!$H341-'G+T+D+R+M'!$H386-'G+T+D+R+M'!$H432-'G+T+D+R+M'!$H$396))","v":0},{"$f":"IF(ISERROR(('G+T+D+R+M'!Q411+'G+T+D+R+M'!Q453+'G+T+D+R+M'!Q510+'G+T+D+R+M'!Q526+'G+T+D+R+M'!Q543+'G+T+D+R+M'!Q556-'G+T+D+R+M'!Q223-'G+T+D+R+M'!Q277-'G+T+D+R+M'!Q341-'G+T+D+R+M'!Q386-'G+T+D+R+M'!Q432-'G+T+D+R+M'!Q396)/('G+T+D+R+M'!$H411+'G+T+D+R+M'!$H453+'G+T+D+R+M'!$H510+'G+T+D+R+M'!$H526+'G+T+D+R+M'!$H543+'G+T+D+R+M'!$H556-'G+T+D+R+M'!$H223-'G+T+D+R+M'!$H277-'G+T+D+R+M'!$H341-'G+T+D+R+M'!$H386-'G+T+D+R+M'!$H432-'G+T+D+R+M'!$H$396)),0,('G+T+D+R+M'!Q411+'G+T+D+R+M'!Q453+'G+T+D+R+M'!Q510+'G+T+D+R+M'!Q526+'G+T+D+R+M'!Q543+'G+T+D+R+M'!Q556-'G+T+D+R+M'!Q223-'G+T+D+R+M'!Q277-'G+T+D+R+M'!Q341-'G+T+D+R+M'!Q386-'G+T+D+R+M'!Q432-'G+T+D+R+M'!Q396)/('G+T+D+R+M'!$H411+'G+T+D+R+M'!$H453+'G+T+D+R+M'!$H510+'G+T+D+R+M'!$H526+'G+T+D+R+M'!$H543+'G+T+D+R+M'!$H556-'G+T+D+R+M'!$H223-'G+T+D+R+M'!$H277-'G+T+D+R+M'!$H341-'G+T+D+R+M'!$H386-'G+T+D+R+M'!$H432-'G+T+D+R+M'!$H$396))","v":0},1]
["F138G","Generation O & M Exp (less fuel & purchased power) ",null,null,null,{"$f":"IF(ISERROR((Generation!I411-Generation!I223-Generation!I277-Generation!I341-Generation!I386-Generation!I396)/(Generation!$H411-Generation!$H223-Generation!$H277-Generation!$H341-Generation!$H386-Generation!$H396)),1/7,(Generation!I411-Generation!I223-Generation!I277-Generation!I341-Generation!I386-Generation!I396)/(Generation!$H411-Generation!$H223-Generation!$H277-Generation!$H341-Generation!$H386-Generation!$H396))","v":0.42427502206463619},{"$f":"IF(ISERROR((Generation!J411-Generation!J223-Generation!J277-Generation!J341-Generation!J386-Generation!J396)/(Generation!$H411-Generation!$H223-Generation!$H277-Generation!$H341-Generation!$H386-Generation!$H396)),1/7,(Generation!J411-Generation!J223-Generation!J277-Generation!J341-Generation!J386-Generation!J396)/(Generation!$H411-Generation!$H223-Generation!$H277-Generation!$H341-Generation!$H386-Generation!$H396))","v":0.13495083866985855},{"$f":"IF(ISERROR((Generation!K411-Generation!K223-Generation!K277-Generation!K341-Generation!K386-Generation!K396)/(Generation!$H411-Generation!$H223-Generation!$H277-Generation!$H341-Generation!$H386-Generation!$H396)),1/7,(Generation!K411-Generation!K223-Generation!K277-Generation!K341-Generation!K386-Generation!K396)/(Generation!$H411-Generation!$H223-Generation!$H277-Generation!$H341-Generation!$H386-Generation!$H396))","v":0.21381795330374381},{"$f":"IF(ISERROR((Generation!L411-Generation!L223-Generation!L277-Generation!L341-Generation!L386-Generation!L396)/(Generation!$H411-Generation!$H223-Generation!$H277-Generation!$H341-Generation!$H386-Generation!$H396)),1/7,(Generation!L411-Generation!L223-Generation!L277-Generation!L341-Generation!L386-Generation!L396)/(Generation!$H411-Generation!$H223-Generation!$H277-Generation!$H341-Generation!$H386-Generation!$H396))","v":8.4492543233334147E-2},{"$f":"IF(ISERROR((Generation!M411-Generation!M223-Generation!M277-Generation!M341-Generation!M386-Generation!M396)/(Generation!$H411-Generation!$H223-Generation!$H277-Generation!$H341-Generation!$H386-Generation!$H396)),1/7,(Generation!M411-Generation!M223-Generation!M277-Generation!M341-Generation!M386-Generation!M396)/(Generation!$H411-Generation!$H223-Generation!$H277-Generation!$H341-Generation!$H386-Generation!$H396))","v":0.10446451143427474},{"$f":"IF(ISERROR((Generation!N411-Generation!N223-Generation!N277-Generation!N341-Generation!N386-Generation!N396)/(Generation!$H411-Generation!$H223-Generation!$H277-Generation!$H341-Generation!$H386-Generation!$H396)),1/7,(Generation!N411-Generation!N223-Generation!N277-Generation!N341-Generation!N386-Generation!N396)/(Generation!$H411-Generation!$H223-Generation!$H277-Generation!$H341-Generation!$H386-Generation!$H396))","v":3.5600085140002832E-2},{"$f":"IF(ISERROR((Generation!O411-Generation!O223-Generation!O277-Generation!O341-Generation!O386-Generation!O396)/(Generation!$H411-Generation!$H223-Generation!$H277-Generation!$H341-Generation!$H386-Generation!$H396)),1/7,(Generation!O411-Generation!O223-Generation!O277-Generation!O341-Generation!O386-Generation!O396)/(Generation!$H411-Generation!$H223-Generation!$H277-Generation!$H341-Generation!$H386-Generation!$H396))","v":2.3990461541496667E-3},{"$f":"IF(ISERROR((Generation!P411-Generation!P223-Generation!P277-Generation!P341-Generation!P386-Generation!P396)/(Generation!$H411-Generation!$H223-Generation!$H277-Generation!$H341-Generation!$H386-Generation!$H396)),0,(Generation!P411-Generation!P223-Generation!P277-Generation!P341-Generation!P386-Generation!P396)/(Generation!$H411-Generation!$H223-Generation!$H277-Generation!$H341-Generation!$H386-Generation!$H396))","v":0},{"$f":"IF(ISERROR((Generation!Q411-Generation!Q223-Generation!Q277-Generation!Q341-Generation!Q386-Generation!Q396)/(Generation!$H411-Generation!$H223-Generation!$H277-Generation!$H341-Generation!$H386-Generation!$H396)),0,(Generation!Q411-Generation!Q223-Generation!Q277-Generation!Q341-Generation!Q386-Generation!Q396)/(Generation!$H411-Generation!$H223-Generation!$H277-Generation!$H341-Generation!$H386-Generation!$H396))","v":0},1]
["F138T","Transmission O & M Exp - (less wheeling exp)",null,null,null,{"$f":"IF(ISERROR((Transmission!I453-Transmission!I432)/(Transmission!$H453-Transmission!$H432)),1/7,(Transmission!I453-Transmission!I432)/(Transmission!$H453-Transmission!$H432))","v":0.42427502206463619},{"$f":"IF(ISERROR((Transmission!J453-Transmission!J432)/(Transmission!$H453-Transmission!$H432)),1/7,(Transmission!J453-Transmission!J432)/(Transmission!$H453-Transmission!$H432))","v":0.1349508386698586},{"$f":"IF(ISERROR((Transmission!K453-Transmission!K432)/(Transmission!$H453-Transmission!$H432)),1/7,(Transmission!K453-Transmission!K432)/(Transmission!$H453-Transmission!$H432))","v":0.21381795330374387},{"$f":"IF(ISERROR((Transmission!L453-Transmission!L432)/(Transmission!$H453-Transmission!$H432)),1/7,(Transmission!L453-Transmission!L432)/(Transmission!$H453-Transmission!$H432))","v":8.4492543233334175E-2},{"$f":"IF(ISERROR((Transmission!M453-Transmission!M432)/(Transmission!$H453-Transmission!$H432)),1/7,(Transmission!M453-Transmission!M432)/(Transmission!$H453-Transmission!$H432))","v":0.10446451143427472},{"$f":"IF(ISERROR((Transmission!N453-Transmission!N432)/(Transmission!$H453-Transmission!$H432)),1/7,(Transmission!N453-Transmission!N432)/(Transmission!$H453-Transmission!$H432))","v":3.5600085140002825E-2},{"$f":"IF(ISERROR((Transmission!O453-Transmission!O432)/(Transmission!$H453-Transmission!$H432)),1/7,(Transmission!O453-Transmission!O432)/(Transmission!$H453-Transmission!$H432))","v":2.3990461541496667E-3},{"$f":"IF(ISERROR((Transmission!P453-Transmission!P432)/(Transmission!$H453-Transmission!$H432)),0,(Transmission!P453-Transmission!P432)/(Transmission!$H453-Transmission!$H432))","v":0},{"$f":"IF(ISERROR((Transmission!Q453-Transmission!Q432)/(Transmission!$H453-Transmission!$H432)),0,(Transmission!Q453-Transmission!Q432)/(Transmission!$H453-Transmission!$H432))","v":0},1]
["F138D","Distribution O & M Exp ",null,null,null,{"$f":"IF(ISERROR(Distribution!I510/Distribution!$H510),1/7,Distribution!I510/Distribution!$H510)","v":0.56340055257381316},{"$f":"IF(ISERROR(Distribution!J510/Distribution!$H510),1/7,Distribution!J510/Distribution!$H510)","v":0.14746860416093849},{"$f":"IF(ISERROR(Distribution!K510/Distribution!$H510),1/7,Distribution!K510/Distribution!$H510)","v":0.14254337870417785},{"$f":"IF(ISERROR(Distribution!L510/Distribution!$H510),1/7,Distribution!L510/Distribution!$H510)","v":5.1792195722871325E-2},{"$f":"IF(ISERROR(Distribution!M510/Distribution!$H510),1/7,Distribution!M510/Distribution!$H510)","v":1.9942506834469159E-2},{"$f":"IF(ISERROR(Distribution!N510/Distribution!$H510),1/7,Distribution!N510/Distribution!$H510)","v":5.1390436668394289E-2},{"$f":"IF(ISERROR(Distribution!O510/Distribution!$H510),1/7,Distribution!O510/Distribution!$H510)","v":2.3462325335336091E-2},{"$f":"IF(ISERROR(Distribution!P510/Distribution!$H510),0,Distribution!P510/Distribution!$H510)","v":0},{"$f":"IF(ISERROR(Distribution!Q510/Distribution!$H510),0,Distribution!Q510/Distribution!$H510)","v":0},1]
["F138R","Retail O & M Exp  (Customer)",null,null,null,{"$f":"IF(ISERROR((Retail!I526+Retail!I542+Retail!I556)/(Retail!$H526+Retail!$H542+Retail!$H556)),1/7,(Retail!I526+Retail!I542+Retail!I556)/(Retail!$H526+Retail!$H542+Retail!$H556))","v":0.82095816989751813},{"$f":"IF(ISERROR((Retail!J526+Retail!J542+Retail!J556)/(Retail!$H526+Retail!$H542+Retail!$H556)),1/7,(Retail!J526+Retail!J542+Retail!J556)/(Retail!$H526+Retail!$H542+Retail!$H556))","v":0.11129521994396521},{"$f":"IF(ISERROR((Retail!K526+Retail!K542+Retail!K556)/(Retail!$H526+Retail!$H542+Retail!$H556)),1/7,(Retail!K526+Retail!K542+Retail!K556)/(Retail!$H526+Retail!$H542+Retail!$H556))","v":2.0536578337807795E-2},{"$f":"IF(ISERROR((Retail!L526+Retail!L542+Retail!L556)/(Retail!$H526+Retail!$H542+Retail!$H556)),1/7,(Retail!L526+Retail!L542+Retail!L556)/(Retail!$H526+Retail!$H542+Retail!$H556))","v":6.9150070894145425E-3},{"$f":"IF(ISERROR((Retail!M526+Retail!M542+Retail!M556)/(Retail!$H526+Retail!$H542+Retail!$H556)),1/7,(Retail!M526+Retail!M542+Retail!M556)/(Retail!$H526+Retail!$H542+Retail!$H556))","v":5.7708071739387638E-3},{"$f":"IF(ISERROR((Retail!N526+Retail!N542+Retail!N556)/(Retail!$H526+Retail!$H542+Retail!$H556)),1/7,(Retail!N526+Retail!N542+Retail!N556)/(Retail!$H526+Retail!$H542+Retail!$H556))","v":2.1276681483051754E-2},{"$f":"IF(ISERROR((Retail!O526+Retail!O542+Retail!O556)/(Retail!$H526+Retail!$H542+Retail!$H556)),1/7,(Retail!O526+Retail!O542+Retail!O556)/(Retail!$H526+Retail!$H542+Retail!$H556))","v":1.3247536074303859E-2},{"$f":"IF(ISERROR((Retail!P526+Retail!P542+Retail!P556)/(Retail!$H526+Retail!$H542+Retail!$H556)),0,(Retail!P526+Retail!P542+Retail!P556)/(Retail!$H526+Retail!$H542+Retail!$H556))","v":0},{"$f":"IF(ISERROR((Retail!Q526+Retail!Q542+Retail!Q556)/(Retail!$H526+Retail!$H542+Retail!$H556)),0,(Retail!Q526+Retail!Q542+Retail!Q556)/(Retail!$H526+Retail!$H542+Retail!$H556))","v":0},1]
["F138M","Misc & Customer O & M Exp ",null,null,null,0,0,0,0,0,0,0,null,null,1]
["F140","Revenue Requirement Before Rev Credits",null,null,null,{"$f":"IF(ISERROR((+Generation!I$27+Generation!I$86+Transmission!I$27+Transmission!I$86+Distribution!I$27+Distribution!I$86+Retail!I$27+Retail!I$86+Misc!I$27+Misc!I$86)/(+Generation!$H$27+Generation!$H$86+Transmission!$H$27+Transmission!$H$86+Distribution!$H$27+Distribution!$H$86+Retail!$H$27+Retail!$H$86+Misc!$H$27+Misc!$H$86)),1/7,(+Generation!I$27+Generation!I$86+Transmission!I$27+Transmission!I$86+Distribution!I$27+Distribution!I$86+Retail!I$27+Retail!I$86+Misc!I$27+Misc!I$86)/(+Generation!$H$27+Generation!$H$86+Transmission!$H$27+Transmission!$H$86+Distribution!$H$27+Distribution!$H$86+Retail!$H$27+Retail!$H$86+Misc!$H$27+Misc!$H$86))","v":0.45727033654480992},{"$f":"IF(ISERROR((+Generation!J$27+Generation!J$86+Transmission!J$27+Transmission!J$86+Distribution!J$27+Distribution!J$86+Retail!J$27+Retail!J$86+Misc!J$27+Misc!J$86)/(+Generation!$H$27+Generation!$H$86+Transmission!$H$27+Transmission!$H$86+Distribution!$H$27+Distribution!$H$86+Retail!$H$27+Retail!$H$86+Misc!$H$27+Misc!$H$86)),1/7,(+Generation!J$27+Generation!J$86+Transmission!J$27+Transmission!J$86+Distribution!J$27+Distribution!J$86+Retail!J$27+Retail!J$86+Misc!J$27+Misc!J$86)/(+Generation!$H$27+Generation!$H$86+Transmission!$H$27+Transmission!$H$86+Distribution!$H$27+Distribution!$H$86+Retail!$H$27+Retail!$H$86+Misc!$H$27+Misc!$H$86))","v":0.13638271792436166},{"$f":"IF(ISERROR((+Generation!K$27+Generation!K$86+Transmission!K$27+Transmission!K$86+Distribution!K$27+Distribution!K$86+Retail!K$27+Retail!K$86+Misc!K$27+Misc!K$86)/(+Generation!$H$27+Generation!$H$86+Transmission!$H$27+Transmission!$H$86+Distribution!$H$27+Distribution!$H$86+Retail!$H$27+Retail!$H$86+Misc!$H$27+Misc!$H$86)),1/7,(+Generation!K$27+Generation!K$86+Transmission!K$27+Transmission!K$86+Distribution!K$27+Distribution!K$86+Retail!K$27+Retail!K$86+Misc!K$27+Misc!K$86)/(+Generation!$H$27+Generation!$H$86+Transmission!$H$27+Transmission!$H$86+Distribution!$H$27+Distribution!$H$86+Retail!$H$27+Retail!$H$86+Misc!$H$27+Misc!$H$86))","v":0.1984072097614023},{"$f":"IF(ISERROR((+Generation!L$27+Generation!L$86+Transmission!L$27+Transmission!L$86+Distribution!L$27+Distribution!L$86+Retail!L$27+Retail!L$86+Misc!L$27+Misc!L$86)/(+Generation!$H$27+Generation!$H$86+Transmission!$H$27+Transmission!$H$86+Distribution!$H$27+Distribution!$H$86+Retail!$H$27+Retail!$H$86+Misc!$H$27+Misc!$H$86)),1/7,(+Generation!L$27+Generation!L$86+Transmission!L$27+Transmission!L$86+Distribution!L$27+Distribution!L$86+Retail!L$27+Retail!L$86+Misc!L$27+Misc!L$86)/(+Generation!$H$27+Generation!$H$86+Transmission!$H$27+Transmission!$H$86+Distribution!$H$27+Distribution!$H$86+Retail!$H$27+Retail!$H$86+Misc!$H$27+Misc!$H$86))","v":7.7502261459759914E-2},{"$f":"IF(ISERROR((+Generation!M$27+Generation!M$86+Transmission!M$27+Transmission!M$86+Distribution!M$27+Distribution!M$86+Retail!M$27+Retail!M$86+Misc!M$27+Misc!M$86)/(+Generation!$H$27+Generation!$H$86+Transmission!$H$27+Transmission!$H$86+Distribution!$H$27+Distribution!$H$86+Retail!$H$27+Retail!$H$86+Misc!$H$27+Misc!$H$86)),1/7,(+Generation!M$27+Generation!M$86+Transmission!M$27+Transmission!M$86+Distribution!M$27+Distribution!M$86+Retail!M$27+Retail!M$86+Misc!M$27+Misc!M$86)/(+Generation!$H$27+Generation!$H$86+Transmission!$H$27+Transmission!$H$86+Distribution!$H$27+Distribution!$H$86+Retail!$H$27+Retail!$H$86+Misc!$H$27+Misc!$H$86))","v":8.8909811102673555E-2},{"$f":"IF(ISERROR((+Generation!N$27+Generation!N$86+Transmission!N$27+Transmission!N$86+Distribution!N$27+Distribution!N$86+Retail!N$27+Retail!N$86+Misc!N$27+Misc!N$86)/(+Generation!$H$27+Generation!$H$86+Transmission!$H$27+Transmission!$H$86+Distribution!$H$27+Distribution!$H$86+Retail!$H$27+Retail!$H$86+Misc!$H$27+Misc!$H$86)),1/7,(+Generation!N$27+Generation!N$86+Transmission!N$27+Transmission!N$86+Distribution!N$27+Distribution!N$86+Retail!N$27+Retail!N$86+Misc!N$27+Misc!N$86)/(+Generation!$H$27+Generation!$H$86+Transmission!$H$27+Transmission!$H$86+Distribution!$H$27+Distribution!$H$86+Retail!$H$27+Retail!$H$86+Misc!$H$27+Misc!$H$86))","v":3.7005883506752719E-2},{"$f":"IF(ISERROR((+Generation!O$27+Generation!O$86+Transmission!O$27+Transmission!O$86+Distribution!O$27+Distribution!O$86+Retail!O$27+Retail!O$86+Misc!O$27+Misc!O$86)/(+Generation!$H$27+Generation!$H$86+Transmission!$H$27+Transmission!$H$86+Distribution!$H$27+Distribution!$H$86+Retail!$H$27+Retail!$H$86+Misc!$H$27+Misc!$H$86)),1/7,(+Generation!O$27+Generation!O$86+Transmission!O$27+Transmission!O$86+Distribution!O$27+Distribution!O$86+Retail!O$27+Retail!O$86+Misc!O$27+Misc!O$86)/(+Generation!$H$27+Generation!$H$86+Transmission!$H$27+Transmission!$H$86+Distribution!$H$27+Distribution!$H$86+Retail!$H$27+Retail!$H$86+Misc!$H$27+Misc!$H$86))","v":4.5217797002396276E-3},{"$f":"IF(ISERROR((+Generation!P$27+Generation!P$86+Transmission!P$27+Transmission!P$86+Distribution!P$27+Distribution!P$86+Retail!P$27+Retail!P$86+Misc!P$27+Misc!P$86)/(+Generation!$H$27+Generation!$H$86+Transmission!$H$27+Transmission!$H$86+Distribution!$H$27+Distribution!$H$86+Retail!$H$27+Retail!$H$86+Misc!$H$27+Misc!$H$86)),0,(+Generation!P$27+Generation!P$86+Transmission!P$27+Transmission!P$86+Distribution!P$27+Distribution!P$86+Retail!P$27+Retail!P$86+Misc!P$27+Misc!P$86)/(+Generation!$H$27+Generation!$H$86+Transmission!$H$27+Transmission!$H$86+Distribution!$H$27+Distribution!$H$86+Retail!$H$27+Retail!$H$86+Misc!$H$27+Misc!$H$86))","v":0},{"$f":"IF(ISERROR((+Generation!Q$27+Generation!Q$86+Transmission!Q$27+Transmission!Q$86+Distribution!Q$27+Distribution!Q$86+Retail!Q$27+Retail!Q$86+Misc!Q$27+Misc!Q$86)/(+Generation!$H$27+Generation!$H$86+Transmission!$H$27+Transmission!$H$86+Distribution!$H$27+Distribution!$H$86+Retail!$H$27+Retail!$H$86+Misc!$H$27+Misc!$H$86)),0,(+Generation!Q$27+Generation!Q$86+Transmission!Q$27+Transmission!Q$86+Distribution!Q$27+Distribution!Q$86+Retail!Q$27+Retail!Q$86+Misc!Q$27+Misc!Q$86)/(+Generation!$H$27+Generation!$H$86+Transmission!$H$27+Transmission!$H$86+Distribution!$H$27+Distribution!$H$86+Retail!$H$27+Retail!$H$86+Misc!$H$27+Misc!$H$86))","v":0},{"$f":"ROUND(SUM(F107:N107),6)","v":1}]
["F140G","Revenue Requirement Before Rev Credits",null,null,null,{"$f":"IF(ISERROR((+Generation!I$27+Generation!I$86)/(+Generation!$H$27+Generation!$H$86)),1/7,(+Generation!I$27+Generation!I$86)/(+Generation!$H$27+Generation!$H$86))","v":0.42417052272438821},{"$f":"IF(ISERROR((+Generation!J$27+Generation!J$86)/(+Generation!$H$27+Generation!$H$86)),1/7,(+Generation!J$27+Generation!J$86)/(+Generation!$H$27+Generation!$H$86))","v":0.13498046649683909},{"$f":"IF(ISERROR((+Generation!K$27+Generation!K$86)/(+Generation!$H$27+Generation!$H$86)),1/7,(+Generation!K$27+Generation!K$86)/(+Generation!$H$27+Generation!$H$86))","v":0.21388553350231984},{"$f":"IF(ISERROR((+Generation!L$27+Generation!L$86)/(+Generation!$H$27+Generation!$H$86)),1/7,(+Generation!L$27+Generation!L$86)/(+Generation!$H$27+Generation!$H$86))","v":8.4510053523925571E-2},{"$f":"IF(ISERROR((+Generation!M$27+Generation!M$86)/(+Generation!$H$27+Generation!$H$86)),1/7,(+Generation!M$27+Generation!M$86)/(+Generation!$H$27+Generation!$H$86))","v":0.10442994668616266},{"$f":"IF(ISERROR((+Generation!N$27+Generation!N$86)/(+Generation!$H$27+Generation!$H$86)),1/7,(+Generation!N$27+Generation!N$86)/(+Generation!$H$27+Generation!$H$86))","v":3.5624792573511629E-2},{"$f":"IF(ISERROR((+Generation!O$27+Generation!O$86)/(+Generation!$H$27+Generation!$H$86)),1/7,(+Generation!O$27+Generation!O$86)/(+Generation!$H$27+Generation!$H$86))","v":2.3986844928528626E-3},{"$f":"IF(ISERROR((+Generation!P$27+Generation!P$86)/(+Generation!$H$27+Generation!$H$86)),0,(+Generation!P$27+Generation!P$86)/(+Generation!$H$27+Generation!$H$86))","v":0},{"$f":"IF(ISERROR((+Generation!Q$27+Generation!Q$86)/(+Generation!$H$27+Generation!$H$86)),0,(+Generation!Q$27+Generation!Q$86)/(+Generation!$H$27+Generation!$H$86))","v":0},1]
["F140T","Revenue Requirement Before Rev Credits",null,null,null,{"$f":"IF(ISERROR((+Transmission!I$27+Transmission!I$86)/(+Transmission!$H$27+Transmission!$H$86)),1/7,(+Transmission!I$27+Transmission!I$86)/(+Transmission!$H$27+Transmission!$H$86))","v":0.42461558978236946},{"$f":"IF(ISERROR((+Transmission!J$27+Transmission!J$86)/(+Transmission!$H$27+Transmission!$H$86)),1/7,(+Transmission!J$27+Transmission!J$86)/(+Transmission!$H$27+Transmission!$H$86))","v":0.13506081258848412},{"$f":"IF(ISERROR((+Transmission!K$27+Transmission!K$86)/(+Transmission!$H$27+Transmission!$H$86)),1/7,(+Transmission!K$27+Transmission!K$86)/(+Transmission!$H$27+Transmission!$H$86))","v":0.21364224994638814},{"$f":"IF(ISERROR((+Transmission!L$27+Transmission!L$86)/(+Transmission!$H$27+Transmission!$H$86)),1/7,(+Transmission!L$27+Transmission!L$86)/(+Transmission!$H$27+Transmission!$H$86))","v":8.4394011544264333E-2},{"$f":"IF(ISERROR((+Transmission!M$27+Transmission!M$86)/(+Transmission!$H$27+Transmission!$H$86)),1/7,(+Transmission!M$27+Transmission!M$86)/(+Transmission!$H$27+Transmission!$H$86))","v":0.10421114849232473},{"$f":"IF(ISERROR((+Transmission!N$27+Transmission!N$86)/(+Transmission!$H$27+Transmission!$H$86)),1/7,(+Transmission!N$27+Transmission!N$86)/(+Transmission!$H$27+Transmission!$H$86))","v":3.5645345148121302E-2},{"$f":"IF(ISERROR((+Transmission!O$27+Transmission!O$86)/(+Transmission!$H$27+Transmission!$H$86)),1/7,(+Transmission!O$27+Transmission!O$86)/(+Transmission!$H$27+Transmission!$H$86))","v":2.4308424980480107E-3},{"$f":"IF(ISERROR((+Transmission!P$27+Transmission!P$86)/(+Transmission!$H$27+Transmission!$H$86)),0,(+Transmission!P$27+Transmission!P$86)/(+Transmission!$H$27+Transmission!$H$86))","v":0},{"$f":"IF(ISERROR((+Transmission!Q$27+Transmission!Q$86)/(+Transmission!$H$27+Transmission!$H$86)),0,(+Transmission!Q$27+Transmission!Q$86)/(+Transmission!$H$27+Transmission!$H$86))","v":0},1]
["F140D","Revenue Requirement Before Rev Credits",null,null,null,{"$f":"IF(ISERROR((+Distribution!I$27+Distribution!I$86)/(+Distribution!$H$27+Distribution!$H$86)),1/7,(+Distribution!I$27+Distribution!I$86)/(+Distribution!$H$27+Distribution!$H$86))","v":0.58448278542938292},{"$f":"IF(ISERROR((+Distribution!J$27+Distribution!J$86)/(+Distribution!$H$27+Distribution!$H$86)),1/7,(+Distribution!J$27+Distribution!J$86)/(+Distribution!$H$27+Distribution!$H$86))","v":0.14948720980515137},{"$f":"IF(ISERROR((+Distribution!K$27+Distribution!K$86)/(+Distribution!$H$27+Distribution!$H$86)),1/7,(+Distribution!K$27+Distribution!K$86)/(+Distribution!$H$27+Distribution!$H$86))","v":0.14054221147422535},{"$f":"IF(ISERROR((+Distribution!L$27+Distribution!L$86)/(+Distribution!$H$27+Distribution!$H$86)),1/7,(+Distribution!L$27+Distribution!L$86)/(+Distribution!$H$27+Distribution!$H$86))","v":4.9496448541109316E-2},{"$f":"IF(ISERROR((+Distribution!M$27+Distribution!M$86)/(+Distribution!$H$27+Distribution!$H$86)),1/7,(+Distribution!M$27+Distribution!M$86)/(+Distribution!$H$27+Distribution!$H$86))","v":1.1766318420687696E-2},{"$f":"IF(ISERROR((+Distribution!N$27+Distribution!N$86)/(+Distribution!$H$27+Distribution!$H$86)),1/7,(+Distribution!N$27+Distribution!N$86)/(+Distribution!$H$27+Distribution!$H$86))","v":4.8493201504869486E-2},{"$f":"IF(ISERROR((+Distribution!O$27+Distribution!O$86)/(+Distribution!$H$27+Distribution!$H$86)),1/7,(+Distribution!O$27+Distribution!O$86)/(+Distribution!$H$27+Distribution!$H$86))","v":1.5731824824573831E-2},{"$f":"IF(ISERROR((+Distribution!P$27+Distribution!P$86)/(+Distribution!$H$27+Distribution!$H$86)),0,(+Distribution!P$27+Distribution!P$86)/(+Distribution!$H$27+Distribution!$H$86))","v":0},{"$f":"IF(ISERROR((+Distribution!Q$27+Distribution!Q$86)/(+Distribution!$H$27+Distribution!$H$86)),0,(+Distribution!Q$27+Distribution!Q$86)/(+Distribution!$H$27+Distribution!$H$86))","v":0},1]
["F140R","Revenue Requirement Before Rev Credits",null,null,null,{"$f":"IF(ISERROR((+Retail!I$27+Retail!I$86)/(+Retail!$H$27+Retail!$H$86)),1/7,(+Retail!I$27+Retail!I$86)/(+Retail!$H$27+Retail!$H$86))","v":0.82106292614311494},{"$f":"IF(ISERROR((+Retail!J$27+Retail!J$86)/(+Retail!$H$27+Retail!$H$86)),1/7,(+Retail!J$27+Retail!J$86)/(+Retail!$H$27+Retail!$H$86))","v":0.11153336648788725},{"$f":"IF(ISERROR((+Retail!K$27+Retail!K$86)/(+Retail!$H$27+Retail!$H$86)),1/7,(+Retail!K$27+Retail!K$86)/(+Retail!$H$27+Retail!$H$86))","v":2.1127602764973313E-2},{"$f":"IF(ISERROR((+Retail!L$27+Retail!L$86)/(+Retail!$H$27+Retail!$H$86)),1/7,(+Retail!L$27+Retail!L$86)/(+Retail!$H$27+Retail!$H$86))","v":6.6315135146048365E-3},{"$f":"IF(ISERROR((+Retail!M$27+Retail!M$86)/(+Retail!$H$27+Retail!$H$86)),1/7,(+Retail!M$27+Retail!M$86)/(+Retail!$H$27+Retail!$H$86))","v":5.5660414084456921E-3},{"$f":"IF(ISERROR((+Retail!N$27+Retail!N$86)/(+Retail!$H$27+Retail!$H$86)),1/7,(+Retail!N$27+Retail!N$86)/(+Retail!$H$27+Retail!$H$86))","v":2.1370619335520567E-2},{"$f":"IF(ISERROR((+Retail!O$27+Retail!O$86)/(+Retail!$H$27+Retail!$H$86)),1/7,(+Retail!O$27+Retail!O$86)/(+Retail!$H$27+Retail!$H$86))","v":1.2707930345453304E-2},{"$f":"IF(ISERROR((+Retail!P$27+Retail!P$86)/(+Retail!$H$27+Retail!$H$86)),0,(+Retail!P$27+Retail!P$86)/(+Retail!$H$27+Retail!$H$86))","v":0},{"$f":"IF(ISERROR((+Retail!Q$27+Retail!Q$86)/(+Retail!$H$27+Retail!$H$86)),0,(+Retail!Q$27+Retail!Q$86)/(+Retail!$H$27+Retail!$H$86))","v":0},1]
["F140M","Revenue Requirement Before Rev Credits",null,null,null,{"$f":"IF(ISERROR((+Misc!I$27+Misc!I$86)/(+Misc!$H$27+Misc!$H$86)),1/7,(+Misc!I$27+Misc!I$86)/(+Misc!$H$27+Misc!$H$86))","v":0.44123647129531751},{"$f":"IF(ISERROR((+Misc!J$27+Misc!J$86)/(+Misc!$H$27+Misc!$H$86)),1/7,(+Misc!J$27+Misc!J$86)/(+Misc!$H$27+Misc!$H$86))","v":0.14811180793898207},{"$f":"IF(ISERROR((+Misc!K$27+Misc!K$86)/(+Misc!$H$27+Misc!$H$86)),1/7,(+Misc!K$27+Misc!K$86)/(+Misc!$H$27+Misc!$H$86))","v":0.20345489032697797},{"$f":"IF(ISERROR((+Misc!L$27+Misc!L$86)/(+Misc!$H$27+Misc!$H$86)),1/7,(+Misc!L$27+Misc!L$86)/(+Misc!$H$27+Misc!$H$86))","v":7.6840516830599975E-2},{"$f":"IF(ISERROR((+Misc!M$27+Misc!M$86)/(+Misc!$H$27+Misc!$H$86)),1/7,(+Misc!M$27+Misc!M$86)/(+Misc!$H$27+Misc!$H$86))","v":8.4560924899474713E-2},{"$f":"IF(ISERROR((+Misc!N$27+Misc!N$86)/(+Misc!$H$27+Misc!$H$86)),1/7,(+Misc!N$27+Misc!N$86)/(+Misc!$H$27+Misc!$H$86))","v":4.0584816824645563E-2},{"$f":"IF(ISERROR((+Misc!O$27+Misc!O$86)/(+Misc!$H$27+Misc!$H$86)),1/7,(+Misc!O$27+Misc!O$86)/(+Misc!$H$27+Misc!$H$86))","v":5.2105718840022236E-3},{"$f":"IF(ISERROR((+Misc!P$27+Misc!P$86)/(+Misc!$H$27+Misc!$H$86)),0,(+Misc!P$27+Misc!P$86)/(+Misc!$H$27+Misc!$H$86))","v":0},{"$f":"IF(ISERROR((+Misc!Q$27+Misc!Q$86)/(+Misc!$H$27+Misc!$H$86)),0,(+Misc!Q$27+Misc!Q$86)/(+Misc!$H$27+Misc!$H$86))","v":0},1]
["F141","Firm Revenues",null,null,null,{"$f":"Revenues!D$36","v":0.44300119277721833},{"$f":"Revenues!E$36","v":0.14948111576616038},{"$f":"Revenues!F$36","v":0.20237668529834696},{"$f":"Revenues!G$36","v":7.60443764071419E-2},{"$f":"Revenues!H$36","v":8.2490094379798498E-2},{"$f":"Revenues!I$36","v":4.1103443680509312E-2},{"$f":"Revenues!J$36","v":5.5030916908246769E-3},{"$f":"Revenues!K$36","v":0},{"$f":"Revenues!L$36","v":0},{"$f":"ROUND(SUM(F113:N113),6)","v":1}]
[]
[1,2,3,4,5,6,7,8,9,10,11,12,13,14,{"$f":"SUM(Factorck)/COUNT(Factorck)","v":1}]

{"sheet":"Demand Factors","index":25,"n_rows":189,"n_cols":27,"rows_kept":189,"cut":false,"hidden":false,"merged":[]}
[null,"Demand Factors  ( F10-F12 )"]
[null,{"$f":"Inputs!$C$3","v":"PacifiCorp"}]
[null,"Cost Of Service By Rate Schedule"]
[null,{"$f":"Inputs!$C$4","v":"State of Washington"}]
[null,{"$f":"+Method&\" - \"&IF(PeakMethod=1,\"(Coincident Peaks)\",IF(PeakMethod=2,\"(200 Top Hours)\",\"(100 Summer, 100 Winter Hours)\"))&\" - \"&TEXT(Demand,\"0%\")&\"D\"&\" / \"&TEXT(Engy,\"0%\")&\"E\"","v":"WCA Method - (100 Summer, 100 Winter Hours) - 38%D / 62%E"}]
[null,{"$f":"Inputs!$C$5","v":"12 Months Ending June 2012"}]
[null,"Demand Factors"]
[]
[]
[null,"A",null,"B","C","D","E","F","G","H",null,null,"I"]
[]
[null,null,null,null,{"$f":"'Hot Sheet'!$J$10","v":"Small General"},{"$f":"'Hot Sheet'!$K$10","v":"Large General"},{"$f":"'Hot Sheet'!$L$10","v":"Large General"},{"$f":"'Hot Sheet'!$M$10","v":"Large General"},{"$f":"'Hot Sheet'!$N$10","v":"Agricultural"},{"$f":"'Hot Sheet'!$O$10","v":"Street & Area"}]
[null,null,null,{"$f":"'Hot Sheet'!$I$11","v":"Residential"},{"$f":"'Hot Sheet'!$J$11","v":"Service"},{"$f":"'Hot Sheet'!$K$11","v":"Service <1,000 kW"},{"$f":"'Hot Sheet'!$L$11","v":"Service >1,000 kW"},{"$f":"'Hot Sheet'!$M$11","v":"Dedicated Facilities"},{"$f":"'Hot Sheet'!$N$11","v":"Pumping"},{"$f":"'Hot Sheet'!$O$11","v":"Lighting"}]
[null,"Description",null,{"$f":"'Hot Sheet'!$I$12","v":"Schedule 16"},{"$f":"'Hot Sheet'!$J$12","v":"Schedule 24"},{"$f":"'Hot Sheet'!$K$12","v":"Schedule 36"},{"$f":"'Hot Sheet'!$L$12","v":"Schedule 48T"},{"$f":"'Hot Sheet'!$M$12","v":"Schedule 48T"},{"$f":"'Hot Sheet'!$N$12","v":"Schedule 40"},{"$f":"'Hot Sheet'!$O$12","v":"Sch. 15,51-54,57"},null,null,"Total"]
[]
[]
[1,"Secondary",null,{"$f":"IF(PeakMethod=1,(($D66)*(Inputs!$J$15)+($E66)*(Inputs!$J$16)+($F66)*(Inputs!$J$17)+($G66)*(Inputs!$J$18)+($H66)*(Inputs!$J$19)+($I66)*(Inputs!$J$20)+($J66)*(Inputs!$J$21)+($K66)*(Inputs!$J$22)+($L66)*(Inputs!$J$23)+($M66)*(Inputs!$J$24)+($N66)*(Inputs!$J$25)+($O66)*(Inputs!$J$26)),IF(PeakMethod=2,'200 Top Hrs'!J5,'100 S_100W Hrs'!J5))","v":63204355.694003023},{"$f":"IF(PeakMethod=1,(($D69)*(Inputs!$J$15)+($E69)*(Inputs!$J$16)+($F69)*(Inputs!$J$17)+($G69)*(Inputs!$J$18)+($H69)*(Inputs!$J$19)+($I69)*(Inputs!$J$20)+($J69)*(Inputs!$J$21)+($K69)*(Inputs!$J$22)+($L69)*(Inputs!$J$23)+($M69)*(Inputs!$J$24)+($N69)*(Inputs!$J$25)+($O69)*(Inputs!$J$26)),IF(PeakMethod=2,'200 Top Hrs'!K5,'100 S_100W Hrs'!K5))","v":18537068.927725915},{"$f":"IF(PeakMethod=1,(($D70)*(Inputs!$J$15)+($E70)*(Inputs!$J$16)+($F70)*(Inputs!$J$17)+($G70)*(Inputs!$J$18)+($H70)*(Inputs!$J$19)+($I70)*(Inputs!$J$20)+($J70)*(Inputs!$J$21)+($K70)*(Inputs!$J$22)+($L70)*(Inputs!$J$23)+($M70)*(Inputs!$J$24)+($N70)*(Inputs!$J$25)+($O70)*(Inputs!$J$26)),IF(PeakMethod=2,'200 Top Hrs'!L5,'100 S_100W Hrs'!L5))","v":28341342.304836795},{"$f":"IF(PeakMethod=1,(($D73)*(Inputs!$J$15)+($E73)*(Inputs!$J$16)+($F73)*(Inputs!$J$17)+($G73)*(Inputs!$J$18)+($H73)*(Inputs!$J$19)+($I73)*(Inputs!$J$20)+($J73)*(Inputs!$J$21)+($K73)*(Inputs!$J$22)+($L73)*(Inputs!$J$23)+($M73)*(Inputs!$J$24)+($N73)*(Inputs!$J$25)+($O73)*(Inputs!$J$26)),IF(PeakMethod=2,'200 Top Hrs'!O5,'100 S_100W Hrs'!O5))","v":8361118.53008301},0,{"$f":"IF(PeakMethod=1,(($D78)*(Inputs!$J$15)+($E78)*(Inputs!$J$16)+($F78)*(Inputs!$J$17)+($G78)*(Inputs!$J$18)+($H78)*(Inputs!$J$19)+($I78)*(Inputs!$J$20)+($J78)*(Inputs!$J$21)+($K78)*(Inputs!$J$22)+($L78)*(Inputs!$J$23)+($M78)*(Inputs!$J$24)+($N78)*(Inputs!$J$25)+($O78)*(Inputs!$J$26)),IF(PeakMethod=2,'200 Top Hrs'!Q5,'100 S_100W Hrs'!Q5))","v":4228141.8055760814},{"$f":"IF(PeakMethod=1,(($D81)*(Inputs!$J$15)+($E81)*(Inputs!$J$16)+($F81)*(Inputs!$J$17)+($G81)*(Inputs!$J$18)+($H81)*(Inputs!$J$19)+($I81)*(Inputs!$J$20)+($J81)*(Inputs!$J$21)+($K81)*(Inputs!$J$22)+($L81)*(Inputs!$J$23)+($M81)*(Inputs!$J$24)+($N81)*(Inputs!$J$25)+($O81)*(Inputs!$J$26)),IF(PeakMethod=2,'200 Top Hrs'!R5,'100 S_100W Hrs'!R5))","v":128620.56468849568},0,0,{"$f":"SUM(D17:L17)","v":122800647.82691333}]
[{"$f":"A17+1","v":2}]
[3,"Primary",null,0,0,{"$f":"IF(PeakMethod=1,(($D71)*(Inputs!$J$15)+($E71)*(Inputs!$J$16)+($F71)*(Inputs!$J$17)+($G71)*(Inputs!$J$18)+($H71)*(Inputs!$J$19)+($I71)*(Inputs!$J$20)+($J71)*(Inputs!$J$21)+($K71)*(Inputs!$J$22)+($L71)*(Inputs!$J$23)+($M71)*(Inputs!$J$24)+($N71)*(Inputs!$J$25)+($O71)*(Inputs!$J$26)),IF(PeakMethod=2,'200 Top Hrs'!M5,'100 S_100W Hrs'!M5))","v":531351.85817395127},{"$f":"IF(PeakMethod=1,(($D74)*(Inputs!$J$15)+($E74)*(Inputs!$J$16)+($F74)*(Inputs!$J$17)+($G74)*(Inputs!$J$18)+($H74)*(Inputs!$J$19)+($I74)*(Inputs!$J$20)+($J74)*(Inputs!$J$21)+($K74)*(Inputs!$J$22)+($L74)*(Inputs!$J$23)+($M74)*(Inputs!$J$24)+($N74)*(Inputs!$J$25)+($O74)*(Inputs!$J$26)),IF(PeakMethod=2,'200 Top Hrs'!P5,'100 S_100W Hrs'!P5))","v":2100569.9537976445},{"$f":"IF(PeakMethod=1,(($D72)*(Inputs!$J$15)+($E72)*(Inputs!$J$16)+($F72)*(Inputs!$J$17)+($G72)*(Inputs!$J$18)+($H72)*(Inputs!$J$19)+($I72)*(Inputs!$J$20)+($J72)*(Inputs!$J$21)+($K72)*(Inputs!$J$22)+($L72)*(Inputs!$J$23)+($M72)*(Inputs!$J$24)+($N72)*(Inputs!$J$25)+($O72)*(Inputs!$J$26)),IF(PeakMethod=2,'200 Top Hrs'!N5,'100 S_100W Hrs'!N5))","v":11725109.474041587},0,0,0,0,{"$f":"SUM(D19:L19)","v":14357031.286013182}]
[4]
[5,"Sub-Transmission",null,0,0,0,0,0,0,0,0,0,{"$f":"SUM(D21:L21)","v":0}]
[6]
[7,"Transmission",null,0,0,0,0,0,0,0,0,0,{"$f":"SUM(D23:L23)","v":0}]
[8]
[9,"Total KW @ Input",null,{"$f":"D17+D19+D21+D23","v":63204355.694003023},18537068.927725915,28872694.163010746,10461688.483880654,{"$f":"H17+H19+H21+H23","v":11725109.474041587},4228141.8055760814,128620.56468849568,0,0,{"$f":"SUM(D25:L25)","v":137157679.11292651}]
[10]
[11,"Total MWH @ Input",null,{"$f":"'Energy Factor'!C$31","v":1756702.6043896999},{"$f":"'Energy Factor'!D$31","v":589361.96508640004},{"$f":"'Energy Factor'!E$31","v":943514.67527809995},{"$f":"'Energy Factor'!F$31","v":391351.54165510001},{"$f":"'Energy Factor'!G$31","v":507482.25338279997},{"$f":"'Energy Factor'!H$31","v":168403.84088219999},{"$f":"'Energy Factor'!I$31","v":14401.744859700002},0,0,{"$f":"SUM(D27:L27)","v":4371218.6255339999}]
[12]
[13,"MWH %",null,{"$f":"D27/$M$27","v":0.40187937389544232},{"$f":"E27/$M$27","v":0.13482783991715858},0.2158470568748635,8.9529162272749846E-2,0.11609628729581206,3.8525604713177057E-2,3.2946750307966226E-3,0,0,{"$f":"SUM(D29:L29)","v":0.99999999999999989}]
[14]
[15]
[16,{"$f":"\"FACTOR 10 - \"&TEXT(Demand,\"0%\")&\" D\"&\" / \"&TEXT(Engy,\"0%\")&\" E\"","v":"FACTOR 10 - 38% D / 62% E"},null,{"$f":"(D36*Demand)+(D29*Engy)","v":0.42427502206463619},0.13495083866985857,0.21381795330374381,8.4492543233334161E-2,0.10446451143427474,3.5600085140002832E-2,2.3990461541496672E-3,0,0,{"$f":"SUM(D32:L32)","v":0.99999999999999978}]
[17]
[18,{"$f":"\"FACTOR 11 - \"&TEXT(Demand2,\"0%\")&\" D\"&\" / \"&TEXT(Engy2,\"0%\")&\" E\"","v":"FACTOR 11 - 50% D / 50% E"},null,{"$f":"(D36*Demand2)+(D29*Engy2)","v":0.43134733201280262},0.13498968038123754,0.21317718375496919,8.2902031957729216E-2,0.10079131905694716,3.4676236853737281E-2,2.1162159825769446E-3,0,0,{"$f":"SUM(D34:L34)","v":0.99999999999999989}]
[19]
[20,"FACTOR 12 - 100% D ",null,{"$f":"D25/$M$25","v":0.46081529013016298},0.13515152084531648,0.21050731063507491,7.6274901642708573E-2,8.5486350818082243E-2,3.0826868994297509E-2,9.3775693435726667E-4,0,0,{"$f":"SUM(D36:L36)","v":0.99999999999999989}]
[21]
[22," FACTOR 13 - SSCCT","MSP",{"$f":"$P127/$P$143","v":{"$error":"#REF!"}},{"$f":"$P130/$P$143","v":{"$error":"#REF!"}},{"$f":"$P131/$P$143","v":{"$error":"#REF!"}},{"$f":"($P133+$P134)/$P$143","v":{"$error":"#REF!"}},{"$f":"$P132/$P$143","v":{"$error":"#REF!"}},{"$f":"$P138/$P$143","v":{"$error":"#REF!"}},{"$f":"$P141/$P$143","v":{"$error":"#REF!"}},{"$f":"SUM(D38:L38)","v":{"$error":"#REF!"}},{"$f":"SUM(E38:M38)","v":{"$error":"#REF!"}}]
[23]
[24,"FACTOR 14 - SSGCT","MSP",{"$f":"(D38*Demand)+('Energy Factor'!C41*Engy)","v":{"$error":"#REF!"}},{"$f":"(E38*Demand)+('Energy Factor'!D41*Engy)","v":{"$error":"#REF!"}},{"$f":"(F38*Demand)+('Energy Factor'!E41*Engy)","v":{"$error":"#REF!"}},{"$f":"(G38*Demand)+('Energy Factor'!F41*Engy)","v":{"$error":"#REF!"}},{"$f":"(H38*Demand)+('Energy Factor'!G41*Engy)","v":{"$error":"#REF!"}},{"$f":"(I38*Demand)+('Energy Factor'!H41*Engy)","v":{"$error":"#REF!"}},{"$f":"(J38*Demand)+('Energy Factor'!I41*Engy)","v":{"$error":"#REF!"}},{"$f":"SUM(D40:L40)","v":{"$error":"#REF!"}},{"$f":"SUM(E40:M40)","v":{"$error":"#REF!"}}]
[25]
[26," FACTOR 15 - SSCCH","MSP",{"$f":"$P150/$P$166","v":{"$error":"#REF!"}},{"$f":"$P153/$P$166","v":{"$error":"#REF!"}},{"$f":"$P154/$P$166","v":{"$error":"#REF!"}},{"$f":"($P156+$P157)/$P$166","v":{"$error":"#REF!"}},{"$f":"$P155/$P$166","v":{"$error":"#REF!"}},{"$f":"$P161/$P$166","v":{"$error":"#REF!"}},{"$f":"$P164/$P$166","v":{"$error":"#REF!"}},{"$f":"SUM(D42:L42)","v":{"$error":"#REF!"}},{"$f":"SUM(E42:M42)","v":{"$error":"#REF!"}}]
[27]
[28," FACTOR 16 - SSGCH","MSP",{"$f":"(D$42*Inputs!$D$8)+('Energy Factor'!C$43*Inputs!$D$9)","v":{"$error":"#REF!"}},{"$f":"(E$42*Inputs!$D$8)+('Energy Factor'!D$43*Inputs!$D$9)","v":{"$error":"#REF!"}},{"$f":"(F$42*Inputs!$D$8)+('Energy Factor'!E$43*Inputs!$D$9)","v":{"$error":"#REF!"}},{"$f":"(G$42*Inputs!$D$8)+('Energy Factor'!F$43*Inputs!$D$9)","v":{"$error":"#REF!"}},{"$f":"(H$42*Inputs!$D$8)+('Energy Factor'!G$43*Inputs!$D$9)","v":{"$error":"#REF!"}},{"$f":"(I$42*Inputs!$D$8)+('Energy Factor'!H$43*Inputs!$D$9)","v":{"$error":"#REF!"}},{"$f":"(J$42*Inputs!$D$8)+('Energy Factor'!I$43*Inputs!$D$9)","v":{"$error":"#REF!"}},{"$f":"SUM(D44:L44)","v":{"$error":"#REF!"}},{"$f":"SUM(E44:M44)","v":{"$error":"#REF!"}}]
[29]
[30," FACTOR 17 - SSCP","MSP",{"$f":"$P173/$P$189","v":{"$error":"#REF!"}},{"$f":"$P176/$P$189","v":{"$error":"#REF!"}},{"$f":"$P177/$P$189","v":{"$error":"#REF!"}},{"$f":"($P179+$P180)/$P$189","v":{"$error":"#REF!"}},{"$f":"$P178/$P$189","v":{"$error":"#REF!"}},{"$f":"$P184/$P$189","v":{"$error":"#REF!"}},{"$f":"$P187/$P$189","v":{"$error":"#REF!"}},{"$f":"SUM(D46:L46)","v":{"$error":"#REF!"}},{"$f":"SUM(E46:M46)","v":{"$error":"#REF!"}}]
[31]
[32," FACTOR 18 - SSGCP","MSP",{"$f":"(D$46*Inputs!$D$8)+('Energy Factor'!C$45*Inputs!$D$9)","v":{"$error":"#REF!"}},{"$f":"(E$46*Inputs!$D$8)+('Energy Factor'!D$45*Inputs!$D$9)","v":{"$error":"#REF!"}},{"$f":"(F$46*Inputs!$D$8)+('Energy Factor'!E$45*Inputs!$D$9)","v":{"$error":"#REF!"}},{"$f":"(G$46*Inputs!$D$8)+('Energy Factor'!F$45*Inputs!$D$9)","v":{"$error":"#REF!"}},{"$f":"(H$46*Inputs!$D$8)+('Energy Factor'!G$45*Inputs!$D$9)","v":{"$error":"#REF!"}},{"$f":"(I$46*Inputs!$D$8)+('Energy Factor'!H$45*Inputs!$D$9)","v":{"$error":"#REF!"}},{"$f":"(J$46*Inputs!$D$8)+('Energy Factor'!I$45*Inputs!$D$9)","v":{"$error":"#REF!"}},{"$f":"SUM(D48:L48)","v":{"$error":"#REF!"}},{"$f":"SUM(E48:M48)","v":{"$error":"#REF!"}}]
[]
[null,"Demand Factor Detail"]
[null,{"$f":"Inputs!$C$3","v":"PacifiCorp"}]
[null,"KW Loads Coincident To System Peak"]
[null,"Merged Company Peaks"]
[null,{"$f":"Inputs!$C$5","v":"12 Months Ending June 2012"}]
[null,"Coincident Peaks At The Time Of The Western States (OR,WA, CA) System Peak @ Input"]
[]
[]
[null,"A","B","C","D","E","F","G","H","I","J","K","L","M","N","O"]
[]
[null,"Month    :",null,{"$f":"+D94","v":"2011-07-01"},"2011-08-01","2011-09-01","2011-10-01","2011-11-01","2011-12-01",{"$f":"+J94","v":"2012-01-01"},"2012-02-01","2012-03-01","2012-04-01","2012-05-01","2012-06-01","Sum Of"]
[null,"Peak Date:","COS",{"$f":"+D95","v":"06"},"25","9","26","2","13",{"$f":"+J95","v":"12"},"28","7","2","15","21","12"]
[null,"Peak Time:","Sch",{"$f":"+D96","v":"17:00"},"17:00","17:00","08:00","08:00","08:00",{"$f":"+J96","v":"08:00"},"08:00","08:00","08:00","17:00","18:00","CPs"]
[]
[]
[1,"Residential"]
[{"$f":"A65+1","v":2},"Sch 16       sec","16",{"$f":"(D100*Inputs!$D$15)","v":289052.97112999996},{"$f":"(E100*Inputs!$D$15)","v":311312.05489999999},{"$f":"(F100*Inputs!$D$15)","v":279710.39172999997},{"$f":"(G100*Inputs!$D$15)","v":345511.22143999999},{"$f":"(H100*Inputs!$D$15)","v":263974.46999000001},{"$f":"(I100*Inputs!$D$15)","v":382801.64999999997},{"$f":"(J100*Inputs!$D$15)","v":393451.30286},{"$f":"(K100*Inputs!$D$15)","v":364631.33168},{"$f":"(L100*Inputs!$D$15)","v":346240.20892999996},{"$f":"(M100*Inputs!$D$15)","v":241889.58870999998},{"$f":"(N100*Inputs!$D$15)","v":230953.66678999999},{"$f":"(O100*Inputs!$D$15)","v":228331.75287999999},{"$f":"SUM(D66:O66)","v":3677860.6110399994}]
[3]
[4,"General Service"]
[5,"Sch 24       sec","24",{"$f":"D105*Inputs!$D$15","v":101698.74791999999},{"$f":"E105*Inputs!$D$15","v":118405.54341},{"$f":"F105*Inputs!$D$15","v":110279.05273},{"$f":"G105*Inputs!$D$15","v":64125.379009999997},{"$f":"H105*Inputs!$D$15","v":72274.061090000003},{"$f":"I105*Inputs!$D$15","v":83201.106449999992},{"$f":"J105*Inputs!$D$15","v":83325.378289999993},{"$f":"K105*Inputs!$D$15","v":76210.815449999995},{"$f":"L105*Inputs!$D$15","v":73634.393909999999},{"$f":"M105*Inputs!$D$15","v":70778.36073},{"$f":"N105*Inputs!$D$15","v":98073.782729999992},{"$f":"O105*Inputs!$D$15","v":93752.00757999999},{"$f":"SUM(D69:O69)","v":1045758.6292999998}]
[6,"Sch 36       sec","36",{"$f":"D106*Inputs!$D$15","v":140837.72010000001},{"$f":"E106*Inputs!$D$15","v":151358.66284},{"$f":"F106*Inputs!$D$15","v":160887.65},{"$f":"G106*Inputs!$D$15","v":148256.30512},{"$f":"H106*Inputs!$D$15","v":152859.91105},{"$f":"I106*Inputs!$D$15","v":145486.81839999999},{"$f":"J106*Inputs!$D$15","v":142836.05567},{"$f":"K106*Inputs!$D$15","v":132905.40416999999},{"$f":"L106*Inputs!$D$15","v":125588.89959},{"$f":"M106*Inputs!$D$15","v":112437.16638},{"$f":"N106*Inputs!$D$15","v":139844.65495},{"$f":"O106*Inputs!$D$15","v":131690.42502},1684989.6732900003]
[7,"Sch 36       pri","36",{"$f":"D107*Inputs!$D$16","v":2640.0637199999996},{"$f":"E107*Inputs!$D$16","v":2837.3098599999998},{"$f":"F107*Inputs!$D$16","v":3016.1319099999996},{"$f":"G107*Inputs!$D$16","v":2779.8700499999995},{"$f":"H107*Inputs!$D$16","v":2865.4878799999997},{"$f":"I107*Inputs!$D$16","v":2727.8490899999997},{"$f":"J107*Inputs!$D$16","v":2677.9956699999998},{"$f":"K107*Inputs!$D$16","v":2491.5872299999996},{"$f":"L107*Inputs!$D$16","v":2355.0322099999998},{"$f":"M107*Inputs!$D$16","v":2107.9326499999997},{"$f":"N107*Inputs!$D$16","v":2621.6396299999997},{"$f":"O107*Inputs!$D$16","v":2468.8280599999998},31589.727959999997]
[8,"Sch 48T   pri, ded fac","48T",{"$f":"D108*Inputs!$D$16","v":59995.339659999998},{"$f":"E108*Inputs!$D$16","v":57178.621429999992},{"$f":"F108*Inputs!$D$16","v":58561.511949999993},{"$f":"G108*Inputs!$D$16","v":62515.104909999995},{"$f":"H108*Inputs!$D$16","v":58117.166249999995},{"$f":"I108*Inputs!$D$16","v":63109.010869999991},{"$f":"J108*Inputs!$D$16","v":57870.066689999992},{"$f":"K108*Inputs!$D$16","v":57128.768009999993},{"$f":"L108*Inputs!$D$16","v":59006.941419999996},{"$f":"M108*Inputs!$D$16","v":60686.784919999991},{"$f":"N108*Inputs!$D$16","v":45663.565179999998},{"$f":"O108*Inputs!$D$16","v":59945.486239999991},699778.36753000005]
[{"$f":"A72+1","v":9},"Sch 48T     sec       ","48T",{"$f":"D109*Inputs!$D$15","v":44451.593339999999},{"$f":"E109*Inputs!$D$15","v":44741.19111},{"$f":"F109*Inputs!$D$15","v":46969.207669999996},{"$f":"G109*Inputs!$D$15","v":47350.899749999997},{"$f":"H109*Inputs!$D$15","v":46010.539189999996},{"$f":"I109*Inputs!$D$15","v":38863.798819999996},{"$f":"J109*Inputs!$D$15","v":39110.123359999998},{"$f":"K109*Inputs!$D$15","v":38747.293969999999},{"$f":"L109*Inputs!$D$15","v":38711.787729999996},{"$f":"M109*Inputs!$D$15","v":37952.841849999997},{"$f":"N109*Inputs!$D$15","v":43033.562879999998},{"$f":"O109*Inputs!$D$15","v":45247.155029999994},511189.99469999992]
[10,"Sch 48T     pri","48T",{"$f":"D110*Inputs!$D$16","v":10195.024389999999},{"$f":"E110*Inputs!$D$16","v":12002.75275},{"$f":"F110*Inputs!$D$16","v":9889.401249999999},{"$f":"G110*Inputs!$D$16","v":11493.38085},{"$f":"H110*Inputs!$D$16","v":11164.998539999999},{"$f":"I110*Inputs!$D$16","v":11318.89388},{"$f":"J110*Inputs!$D$16","v":11504.21855},{"$f":"K110*Inputs!$D$16","v":10288.228609999998},{"$f":"L110*Inputs!$D$16","v":9544.7623899999999},{"$f":"M110*Inputs!$D$16","v":7776.0497499999992},{"$f":"N110*Inputs!$D$16","v":9945.7572899999996},{"$f":"O110*Inputs!$D$16","v":9319.3382299999994},124442.80648]
[11,"Gen Service Total",null,{"$f":"SUM(D69:D74)","v":359818.48913},386524.08139999997,389602.95551,336520.93968999997,343292.16399999999,344707.47751,{"$f":"SUM(J69:J74)","v":337323.83822999999},317772.09743999998,308841.81724999996,291739.13627999998,339182.9626599999,342423.24015999993,4097749.1992599997]
[12]
[13,"Irrigation"]
[14,"Sch 040                   sec","40",{"$f":"D114*Inputs!$D$15","v":45829.679279999997},{"$f":"E114*Inputs!$D$15","v":47404.159110000001},{"$f":"F114*Inputs!$D$15","v":43310.955379999999},{"$f":"G114*Inputs!$D$15","v":21270.456899999997},{"$f":"H114*Inputs!$D$15","v":5499.0289199999997},{"$f":"I114*Inputs!$D$15","v":905.40911999999992},{"$f":"J114*Inputs!$D$15","v":823.30093999999997},{"$f":"K114*Inputs!$D$15","v":828.84879000000001},{"$f":"L114*Inputs!$D$15","v":1502.3577799999998},{"$f":"M114*Inputs!$D$15","v":8286.268759999999},{"$f":"N114*Inputs!$D$15","v":23695.976919999997},{"$f":"O114*Inputs!$D$15","v":27073.507999999998},{"$f":"SUM(D78:O78)","v":226429.94989999995}]
[15]
[16,"Street Lights"]
[17,"Sch 15,52,54,57 sec",null,{"$f":"D117*Inputs!$D$15","v":0},{"$f":"E117*Inputs!$D$15","v":0},{"$f":"F117*Inputs!$D$15","v":0},{"$f":"G117*Inputs!$D$15","v":1862.96803},{"$f":"H117*Inputs!$D$15","v":0},{"$f":"I117*Inputs!$D$15","v":0},{"$f":"J117*Inputs!$D$15","v":0},{"$f":"K117*Inputs!$D$15","v":0},{"$f":"L117*Inputs!$D$15","v":0},{"$f":"M117*Inputs!$D$15","v":0},{"$f":"N117*Inputs!$D$15","v":0},{"$f":"O117*Inputs!$D$15","v":0},{"$f":"SUM(D81:O81)","v":1862.96803}]
[18]
[19,{"$f":"Inputs!$C$4","v":"State of Washington"},null,{"$f":"D66+D75+D78+D81","v":694701.13954},745240.2954099999,712624.30261999997,705165.58605999989,612765.66290999996,728414.53662999999,{"$f":"J66+J75+J78+J81","v":731598.44203000003},683232.27790999995,656584.38395999989,541914.99375000002,593832.60636999994,597828.50103999989,{"$f":"SUM(D83:O83)","v":8003902.7282299995}]
[]
[null,{"$f":"Inputs!$C$3","v":"PacifiCorp"}]
[null,"KW Loads Coincident To System Peak"]
[null,"Merged Company Peaks"]
[null,{"$f":"Inputs!$C$5","v":"12 Months Ending June 2012"}]
[null,"Coincident Peaks At The Time Of The Western States (OR,WA, CA) System Peak @ Sales"]
[]
[]
[null,"A","B","C","D","E","F","G","H","I","J","K","L","M","N","O"]
[]
[null,"Month    :",null,"2011-07-01","2011-08-01","2011-09-01","2011-10-01","2011-11-01","2011-12-01","2012-01-01","2012-02-01","2012-03-01","2012-04-01","2012-05-01","2012-06-01","Sum Of"]
[null,"Peak Date:","COS","06","25","9","26","2","13","12","28","7","2","15","21","12"]
[null,"Peak Time:","Sch","17:00","17:00","17:00","08:00","08:00","08:00","08:00","08:00","08:00","08:00","17:00","18:00","CPs"]
[]
[]
[1,"Residential"]
[{"$f":"A99+1","v":2},"Sch 16       sec","16",260509,280570,252089,311392,237907,345000,354598,328624,312049,218003,208147,205784,{"$f":"SUM(D100:O100)","v":3314672}]
[3]
[4," Residential Total",null,{"$f":"SUM(D100:D101)","v":260509},280570,252089,311392,237907,345000,{"$f":"SUM(J100:J101)","v":354598},328624,312049,218003,208147,205784,3314672]
[5]
[6,"General Service"]
[7,"Sch 24       sec","24",91656,106713,99389,57793,65137,74985,75097,68685,66363,63789,88389,84494,{"$f":"SUM(D105:O105)","v":942490}]
[8,"Sch 36       sec","36",126930,136412,145000,133616,137765,131120,128731,119781,113187,101334,126035,118686,1518597]
[9,"Sch 36       pri","36",2436,2618,2783,2565,2644,2517,2471,2299,2173,1945,2419,2278,29148]
[10,{"$f":"B72","v":"Sch 48T   pri, ded fac"},"48T",55358,52759,54035,57683,53625,58231,53397,52713,54446,55996,42134,55312,645689]
[11,"Sch 48T     sec       ","48T",40062,40323,42331,42675,41467,35026,35248,34921,34889,34205,38784,40779,460710]
[12,"Sch 48T     pri","48T",9407,11075,9125,10605,10302,10444,10615,9493,8807,7175,9177,8599,114824]
[13,"Gen Service Total",null,{"$f":"SUM(D105:D110)","v":325849},349900,352663,304937,310940,312323,{"$f":"SUM(J105:J110)","v":305559},287892,279865,264444,306938,310148,{"$f":"SUM(P105:P110)","v":3711458}]
[14]
[15,"Irrigation"]
[16,"Sch 040                   sec","40",41304,42723,39034,19170,4956,816,742,747,1354,7468,21356,24400,{"$f":"SUM(D114:O114)","v":204070}]
[17]
[18,"Street Lights"]
[19,"Sch 15,52,54,57      sec",null,0,0,0,1679,0,0,0,0,0,0,0,0,{"$f":"SUM(D117:O117)","v":1679}]
[20]
[21,{"$f":"Inputs!$C$4","v":"State of Washington"},null,{"$f":"D102+D111+D114+D117","v":627662},673193,643786,637178,553803,658139,{"$f":"J102+J111+J114+J117","v":660899},617263,593268,489915,536441,540332,7231879]
[]
[]
[null,"MSP Factors"]
[]
[null,"SSCCT",null,{"$f":"+$D$60","v":"2011-07-01"},{"$f":"+$E$60","v":"2011-08-01"},{"$f":"+$F$60","v":"2011-09-01"},{"$f":"+$G$60","v":"2011-10-01"},{"$f":"+$H$60","v":"2011-11-01"},{"$f":"+$I$60","v":"2011-12-01"},{"$f":"+$J$60","v":"2012-01-01"},{"$f":"+$K$60","v":"2012-02-01"},{"$f":"+$L$60","v":"2012-03-01"},{"$f":"+$M$60","v":"2012-04-01"},{"$f":"+$N$60","v":"2012-05-01"},{"$f":"+$O$60","v":"2012-06-01"},"Total"]
[null,null,null,{"$f":"+$W127","v":{"$error":"#REF!"}},{"$f":"+$W128","v":{"$error":"#REF!"}},{"$f":"+$W129","v":{"$error":"#REF!"}},{"$f":"+$W130","v":{"$error":"#REF!"}},{"$f":"+$W131","v":{"$error":"#REF!"}},{"$f":"+$W133","v":{"$error":"#REF!"}},{"$f":"+$W134","v":{"$error":"#REF!"}},{"$f":"+$W135","v":{"$error":"#REF!"}},{"$f":"+$W136","v":{"$error":"#REF!"}},{"$f":"+$W137","v":{"$error":"#REF!"}},{"$f":"+$W138","v":{"$error":"#REF!"}},{"$f":"+$W139","v":{"$error":"#REF!"}},{"$f":"SUM(D125:O125)","v":{"$error":"#REF!"}},null,null,"MWH"]
[null,"Residential",null,null,null,null,null,null,null,null,null,null,null,null,null,null,null,"MONTH","Gadsby CT","WV CT","Currant Creek","Total","Proportion"]
[null,"Sch 16       sec","16",{"$f":"+$D$125*$D$66","v":{"$error":"#REF!"}},{"$f":"+$E$125*$E$66","v":{"$error":"#REF!"}},{"$f":"+$F$125*$F$66","v":{"$error":"#REF!"}},{"$f":"+$G$125*$G$66","v":{"$error":"#REF!"}},{"$f":"+$H$125*$H$66","v":{"$error":"#REF!"}},{"$f":"+$I$125*$I$66","v":{"$error":"#REF!"}},{"$f":"+$J$125*$J$66","v":{"$error":"#REF!"}},{"$f":"+$K$125*$K$66","v":{"$error":"#REF!"}},{"$f":"+$L$125*$L$66","v":{"$error":"#REF!"}},{"$f":"+$M$125*$M$66","v":{"$error":"#REF!"}},{"$f":"+$N$125*$N$66","v":{"$error":"#REF!"}},{"$f":"+$O$125*$O$66","v":{"$error":"#REF!"}},{"$f":"SUM(D127:O127)","v":{"$error":"#REF!"}},null,{"$f":"'Energy Factor'!#REF!","v":{"$error":"#REF!"}},{"$f":"'Energy Factor'!#REF!","v":{"$error":"#REF!"}},{"$f":"'Energy Factor'!#REF!","v":{"$error":"#REF!"}},{"$f":"'Energy Factor'!#REF!","v":{"$error":"#REF!"}},{"$f":"SUM(S127:U127)","v":{"$error":"#REF!"}},{"$f":"V127/$V$141","v":{"$error":"#REF!"}}]
[null,null,null,null,null,null,null,null,null,null,null,null,null,null,null,null,null,{"$f":"'Energy Factor'!#REF!","v":{"$error":"#REF!"}},{"$f":"'Energy Factor'!#REF!","v":{"$error":"#REF!"}},{"$f":"'Energy Factor'!#REF!","v":{"$error":"#REF!"}},{"$f":"'Energy Factor'!#REF!","v":{"$error":"#REF!"}},{"$f":"SUM(S128:U128)","v":{"$error":"#REF!"}},{"$f":"V128/$V$141","v":{"$error":"#REF!"}}]
[null,"General Service",null,null,null,null,null,null,null,null,null,null,null,null,null,null,null,{"$f":"'Energy Factor'!#REF!","v":{"$error":"#REF!"}},{"$f":"'Energy Factor'!#REF!","v":{"$error":"#REF!"}},{"$f":"'Energy Factor'!#REF!","v":{"$error":"#REF!"}},{"$f":"'Energy Factor'!#REF!","v":{"$error":"#REF!"}},{"$error":"#REF!"},{"$error":"#REF!"}]
[null,"Sch 24       sec","24",{"$f":"+$D$125*$D$69","v":{"$error":"#REF!"}},{"$f":"+$E$125*$E$69","v":{"$error":"#REF!"}},{"$f":"+$F$125*$F$69","v":{"$error":"#REF!"}},{"$f":"+$G$125*$G$69","v":{"$error":"#REF!"}},{"$f":"+$H$125*$H$69","v":{"$error":"#REF!"}},{"$f":"+$I$125*$I$69","v":{"$error":"#REF!"}},{"$f":"+$J$125*$J$69","v":{"$error":"#REF!"}},{"$f":"+$K$125*$K$69","v":{"$error":"#REF!"}},{"$f":"+$L$125*$L$69","v":{"$error":"#REF!"}},{"$f":"+$M$125*$M$69","v":{"$error":"#REF!"}},{"$f":"+$N$125*$N$69","v":{"$error":"#REF!"}},{"$f":"+$O$125*$O$69","v":{"$error":"#REF!"}},{"$f":"SUM(D130:O130)","v":{"$error":"#REF!"}},null,{"$f":"'Energy Factor'!#REF!","v":{"$error":"#REF!"}},{"$f":"'Energy Factor'!#REF!","v":{"$error":"#REF!"}},{"$f":"'Energy Factor'!#REF!","v":{"$error":"#REF!"}},{"$f":"'Energy Factor'!#REF!","v":{"$error":"#REF!"}},{"$error":"#REF!"},{"$error":"#REF!"}]
[null,"Sch 36       sec","36",{"$f":"+D$125*D70","v":{"$error":"#REF!"}},{"$f":"+$E$125*$E$70","v":{"$error":"#REF!"}},{"$f":"+$F$125*$F$70","v":{"$error":"#REF!"}},{"$f":"+$G$125*$G$70","v":{"$error":"#REF!"}},{"$f":"+$H$125*$H$70","v":{"$error":"#REF!"}},{"$f":"+$I$125*$I$70","v":{"$error":"#REF!"}},{"$f":"+$J$125*$J$70","v":{"$error":"#REF!"}},{"$f":"+$K$125*$K$70","v":{"$error":"#REF!"}},{"$f":"+$L$125*$L$70","v":{"$error":"#REF!"}},{"$f":"+$M$125*$M$70","v":{"$error":"#REF!"}},{"$f":"+$N$125*$N$70","v":{"$error":"#REF!"}},{"$f":"+$O$125*$O$70","v":{"$error":"#REF!"}},{"$error":"#REF!"},null,{"$f":"'Energy Factor'!#REF!","v":{"$error":"#REF!"}},{"$f":"'Energy Factor'!#REF!","v":{"$error":"#REF!"}},{"$f":"'Energy Factor'!#REF!","v":{"$error":"#REF!"}},{"$f":"'Energy Factor'!#REF!","v":{"$error":"#REF!"}},{"$error":"#REF!"},{"$error":"#REF!"}]
[null,{"$f":"B72","v":"Sch 48T   pri, ded fac"},"48T",{"$f":"+D$125*D72","v":{"$error":"#REF!"}},{"$f":"+E$125*E72","v":{"$error":"#REF!"}},{"$error":"#REF!"},{"$error":"#REF!"},{"$error":"#REF!"},{"$error":"#REF!"},{"$f":"+J$125*J72","v":{"$error":"#REF!"}},{"$error":"#REF!"},{"$error":"#REF!"},{"$error":"#REF!"},{"$error":"#REF!"},{"$error":"#REF!"},{"$error":"#REF!"}]
[null,"Sch 48T     sec       ","48T",{"$f":"+$D$125*$D$73","v":{"$error":"#REF!"}},{"$f":"+$E$125*$E$73","v":{"$error":"#REF!"}},{"$f":"+$F$125*$F$73","v":{"$error":"#REF!"}},{"$f":"+$G$125*$G$73","v":{"$error":"#REF!"}},{"$f":"+$H$125*$H$73","v":{"$error":"#REF!"}},{"$f":"+$I$125*$I$73","v":{"$error":"#REF!"}},{"$f":"+$J$125*$J$73","v":{"$error":"#REF!"}},{"$f":"+$K$125*$K$73","v":{"$error":"#REF!"}},{"$f":"+$L$125*$L$73","v":{"$error":"#REF!"}},{"$f":"+$M$125*$M$73","v":{"$error":"#REF!"}},{"$f":"+$N$125*$N$73","v":{"$error":"#REF!"}},{"$f":"+$O$125*$O$73","v":{"$error":"#REF!"}},{"$error":"#REF!"},null,{"$f":"'Energy Factor'!#REF!","v":{"$error":"#REF!"}},{"$f":"'Energy Factor'!#REF!","v":{"$error":"#REF!"}},{"$f":"'Energy Factor'!#REF!","v":{"$error":"#REF!"}},{"$f":"'Energy Factor'!#REF!","v":{"$error":"#REF!"}},{"$error":"#REF!"},{"$error":"#REF!"}]
[null,"Sch 48T     pri","48T",{"$f":"+$D$125*$D$74","v":{"$error":"#REF!"}},{"$f":"+$E$125*$E$74","v":{"$error":"#REF!"}},{"$f":"+$F$125*$F$74","v":{"$error":"#REF!"}},{"$f":"+$G$125*$G$74","v":{"$error":"#REF!"}},{"$f":"+$H$125*$H$74","v":{"$error":"#REF!"}},{"$f":"+$I$125*$I$74","v":{"$error":"#REF!"}},{"$f":"+$J$125*$J$74","v":{"$error":"#REF!"}},{"$f":"+$K$125*$K$74","v":{"$error":"#REF!"}},{"$f":"+$L$125*$L$74","v":{"$error":"#REF!"}},{"$f":"+$M$125*$M$74","v":{"$error":"#REF!"}},{"$f":"+$N$125*$N$74","v":{"$error":"#REF!"}},{"$f":"+$O$125*$O$74","v":{"$error":"#REF!"}},{"$error":"#REF!"},null,{"$f":"'Energy Factor'!#REF!","v":{"$error":"#REF!"}},{"$f":"'Energy Factor'!#REF!","v":{"$error":"#REF!"}},{"$f":"'Energy Factor'!#REF!","v":{"$error":"#REF!"}},{"$f":"'Energy Factor'!#REF!","v":{"$error":"#REF!"}},{"$error":"#REF!"},{"$error":"#REF!"}]
[null,"Gen Service Total",null,{"$f":"SUM(D130:D134)","v":{"$error":"#REF!"}},{"$error":"#REF!"},{"$error":"#REF!"},{"$error":"#REF!"},{"$error":"#REF!"},{"$error":"#REF!"},{"$f":"SUM(J130:J134)","v":{"$error":"#REF!"}},{"$error":"#REF!"},{"$error":"#REF!"},{"$error":"#REF!"},{"$error":"#REF!"},{"$error":"#REF!"},{"$error":"#REF!"},null,{"$f":"'Energy Factor'!#REF!","v":{"$error":"#REF!"}},{"$f":"'Energy Factor'!#REF!","v":{"$error":"#REF!"}},{"$f":"'Energy Factor'!#REF!","v":{"$error":"#REF!"}},{"$f":"'Energy Factor'!#REF!","v":{"$error":"#REF!"}},{"$error":"#REF!"},{"$error":"#REF!"}]
[null,null,null,null,null,null,null,null,null,null,null,null,null,null,null,null,null,{"$f":"'Energy Factor'!#REF!","v":{"$error":"#REF!"}},{"$f":"'Energy Factor'!#REF!","v":{"$error":"#REF!"}},{"$f":"'Energy Factor'!#REF!","v":{"$error":"#REF!"}},{"$f":"'Energy Factor'!#REF!","v":{"$error":"#REF!"}},{"$error":"#REF!"},{"$error":"#REF!"}]
[null,"Irrigation",null,null,null,null,null,null,null,null,null,null,null,null,null,null,null,{"$f":"'Energy Factor'!#REF!","v":{"$error":"#REF!"}},{"$f":"'Energy Factor'!#REF!","v":{"$error":"#REF!"}},{"$f":"'Energy Factor'!#REF!","v":{"$error":"#REF!"}},{"$f":"'Energy Factor'!#REF!","v":{"$error":"#REF!"}},{"$error":"#REF!"},{"$error":"#REF!"}]
[null,"Sch 040                   sec","40",{"$f":"+$D$125*$D$78","v":{"$error":"#REF!"}},{"$f":"+$E$125*$E$78","v":{"$error":"#REF!"}},{"$f":"+$F$125*$F$78","v":{"$error":"#REF!"}},{"$f":"+$G$125*$G$78","v":{"$error":"#REF!"}},{"$f":"+$H$125*$H$78","v":{"$error":"#REF!"}},{"$f":"+$I$125*$I$78","v":{"$error":"#REF!"}},{"$f":"+$J$125*$J$78","v":{"$error":"#REF!"}},{"$f":"+$K$125*$K$78","v":{"$error":"#REF!"}},{"$f":"+$L$125*$L$78","v":{"$error":"#REF!"}},{"$f":"+$M$125*$M$78","v":{"$error":"#REF!"}},{"$f":"+$N$125*$N$78","v":{"$error":"#REF!"}},{"$f":"+$O$125*$O$78","v":{"$error":"#REF!"}},{"$f":"SUM(D138:O138)","v":{"$error":"#REF!"}},null,{"$f":"'Energy Factor'!#REF!","v":{"$error":"#REF!"}},{"$f":"'Energy Factor'!#REF!","v":{"$error":"#REF!"}},{"$f":"'Energy Factor'!#REF!","v":{"$error":"#REF!"}},{"$f":"'Energy Factor'!#REF!","v":{"$error":"#REF!"}},{"$error":"#REF!"},{"$error":"#REF!"}]
[null,null,null,null,null,null,null,null,null,null,null,null,null,null,null,null,null,{"$f":"'Energy Factor'!#REF!","v":{"$error":"#REF!"}},{"$f":"'Energy Factor'!#REF!","v":{"$error":"#REF!"}},{"$f":"'Energy Factor'!#REF!","v":{"$error":"#REF!"}},{"$f":"'Energy Factor'!#REF!","v":{"$error":"#REF!"}},{"$error":"#REF!"},{"$error":"#REF!"}]
[null,"Street Lights"]
[null,"Sch 15,52,54,57 sec",null,{"$f":"+$D$125*$D$81","v":{"$error":"#REF!"}},{"$f":"+$E$125*$E$81","v":{"$error":"#REF!"}},{"$f":"+$F$125*$F$81","v":{"$error":"#REF!"}},{"$f":"+$G$125*$G$81","v":{"$error":"#REF!"}},{"$f":"+$H$125*$H$81","v":{"$error":"#REF!"}},{"$f":"+$I$125*$I$81","v":{"$error":"#REF!"}},{"$f":"+$J$125*$J$81","v":{"$error":"#REF!"}},{"$f":"+$K$125*$K$81","v":{"$error":"#REF!"}},{"$f":"+$L$125*$L$81","v":{"$error":"#REF!"}},{"$f":"+$M$125*$M$81","v":{"$error":"#REF!"}},{"$f":"+$N$125*$N$81","v":{"$error":"#REF!"}},{"$f":"+$O$125*$O$81","v":{"$error":"#REF!"}},{"$f":"SUM(D141:O141)","v":{"$error":"#REF!"}},null,null,{"$f":"SUM(S127:S139)","v":{"$error":"#REF!"}},{"$f":"SUM(T127:T139)","v":{"$error":"#REF!"}},{"$f":"SUM(U127:U139)","v":{"$error":"#REF!"}},{"$f":"SUM(V127:V139)","v":{"$error":"#REF!"}},{"$f":"SUM(W127:W139)","v":{"$error":"#REF!"}}]
[]
[null,{"$f":"Inputs!$C$4","v":"State of Washington"},"F13",{"$f":"D127+D135+D138+D141","v":{"$error":"#REF!"}},{"$error":"#REF!"},{"$error":"#REF!"},{"$error":"#REF!"},{"$error":"#REF!"},{"$error":"#REF!"},{"$f":"J127+J135+J138+J141","v":{"$error":"#REF!"}},{"$error":"#REF!"},{"$error":"#REF!"},{"$error":"#REF!"},{"$error":"#REF!"},{"$error":"#REF!"},{"$f":"SUM(D143:O143)","v":{"$error":"#REF!"}}]
[]
[]
[]
[null,"SSCCH",null,{"$f":"+$D$60","v":"2011-07-01"},{"$f":"+$E$60","v":"2011-08-01"},{"$f":"+$F$60","v":"2011-09-01"},{"$f":"+$G$60","v":"2011-10-01"},{"$f":"+$H$60","v":"2011-11-01"},{"$f":"+$I$60","v":"2011-12-01"},{"$f":"+$J$60","v":"2012-01-01"},{"$f":"+$K$60","v":"2012-02-01"},{"$f":"+$L$60","v":"2012-03-01"},{"$f":"+$M$60","v":"2012-04-01"},{"$f":"+$N$60","v":"2012-05-01"},{"$f":"+$O$60","v":"2012-06-01"},"Total"]
[null,null,null,{"$f":"+$V150","v":{"$error":"#REF!"}},{"$f":"+$V151","v":{"$error":"#REF!"}},{"$f":"+$V152","v":{"$error":"#REF!"}},{"$f":"+$V153","v":{"$error":"#REF!"}},{"$f":"+$V154","v":{"$error":"#REF!"}},{"$f":"+$V156","v":{"$error":"#REF!"}},{"$f":"+$V157","v":{"$error":"#REF!"}},{"$f":"+$V158","v":{"$error":"#REF!"}},{"$f":"+$V159","v":{"$error":"#REF!"}},{"$f":"+$V160","v":{"$error":"#REF!"}},{"$f":"+$V161","v":{"$error":"#REF!"}},{"$f":"+$V162","v":{"$error":"#REF!"}},{"$f":"SUM(D148:O148)","v":{"$error":"#REF!"}},null,null,"MWH"]
[1,"Residential",null,null,null,null,null,null,null,null,null,null,null,null,null,null,null,"MONTH","Cholla IV","APS","Total","Proportion"]
[{"$f":"A149+1","v":2},"Sch 16       sec","16",{"$f":"D$148*D$66","v":{"$error":"#REF!"}},{"$error":"#REF!"},{"$error":"#REF!"},{"$error":"#REF!"},{"$error":"#REF!"},{"$error":"#REF!"},{"$f":"J$148*J$66","v":{"$error":"#REF!"}},{"$error":"#REF!"},{"$error":"#REF!"},{"$error":"#REF!"},{"$error":"#REF!"},{"$error":"#REF!"},{"$f":"SUM(D150:O150)","v":{"$error":"#REF!"}},null,{"$f":"'Energy Factor'!#REF!","v":{"$error":"#REF!"}},{"$f":"'Energy Factor'!#REF!","v":{"$error":"#REF!"}},{"$f":"'Energy Factor'!#REF!","v":{"$error":"#REF!"}},{"$f":"SUM(S150:T150)","v":{"$error":"#REF!"}},{"$f":"U150/$U$164","v":{"$error":"#REF!"}}]
[3,null,null,null,null,null,null,null,null,null,null,null,null,null,null,null,null,{"$f":"'Energy Factor'!#REF!","v":{"$error":"#REF!"}},{"$f":"'Energy Factor'!#REF!","v":{"$error":"#REF!"}},{"$f":"'Energy Factor'!#REF!","v":{"$error":"#REF!"}},{"$f":"SUM(S151:T151)","v":{"$error":"#REF!"}},{"$f":"U151/$U$164","v":{"$error":"#REF!"}}]
[4,"General Service",null,null,null,null,null,null,null,null,null,null,null,null,null,null,null,{"$f":"'Energy Factor'!#REF!","v":{"$error":"#REF!"}},{"$f":"'Energy Factor'!#REF!","v":{"$error":"#REF!"}},{"$f":"'Energy Factor'!#REF!","v":{"$error":"#REF!"}},{"$f":"SUM(S152:T152)","v":{"$error":"#REF!"}},{"$error":"#REF!"}]
[5,"Sch 24       sec","24",{"$f":"D$148*D$69","v":{"$error":"#REF!"}},{"$error":"#REF!"},{"$error":"#REF!"},{"$error":"#REF!"},{"$error":"#REF!"},{"$error":"#REF!"},{"$f":"J$148*J$69","v":{"$error":"#REF!"}},{"$error":"#REF!"},{"$error":"#REF!"},{"$error":"#REF!"},{"$error":"#REF!"},{"$error":"#REF!"},{"$f":"SUM(D153:O153)","v":{"$error":"#REF!"}},null,{"$f":"'Energy Factor'!#REF!","v":{"$error":"#REF!"}},{"$f":"'Energy Factor'!#REF!","v":{"$error":"#REF!"}},{"$f":"'Energy Factor'!#REF!","v":{"$error":"#REF!"}},{"$f":"SUM(S153:T153)","v":{"$error":"#REF!"}},{"$error":"#REF!"}]
[6,"Sch 36       sec","36",{"$f":"D$148*D70","v":{"$error":"#REF!"}},{"$f":"E$148*E$70","v":{"$error":"#REF!"}},{"$error":"#REF!"},{"$error":"#REF!"},{"$error":"#REF!"},{"$error":"#REF!"},{"$f":"J$148*J$70","v":{"$error":"#REF!"}},{"$error":"#REF!"},{"$error":"#REF!"},{"$error":"#REF!"},{"$error":"#REF!"},{"$error":"#REF!"},{"$error":"#REF!"},null,{"$f":"'Energy Factor'!#REF!","v":{"$error":"#REF!"}},{"$f":"'Energy Factor'!#REF!","v":{"$error":"#REF!"}},{"$f":"'Energy Factor'!#REF!","v":{"$error":"#REF!"}},{"$f":"SUM(S154:T154)","v":{"$error":"#REF!"}},{"$error":"#REF!"}]
[7,{"$f":"B72","v":"Sch 48T   pri, ded fac"},"48T",{"$f":"D$148*D72","v":{"$error":"#REF!"}},{"$f":"E$148*E72","v":{"$error":"#REF!"}},{"$error":"#REF!"},{"$error":"#REF!"},{"$error":"#REF!"},{"$error":"#REF!"},{"$f":"J$148*J72","v":{"$error":"#REF!"}},{"$error":"#REF!"},{"$error":"#REF!"},{"$error":"#REF!"},{"$error":"#REF!"},{"$error":"#REF!"},{"$error":"#REF!"}]
[8,"Sch 48T     sec       ","48T",{"$f":"D$148*D$73","v":{"$error":"#REF!"}},{"$error":"#REF!"},{"$error":"#REF!"},{"$error":"#REF!"},{"$error":"#REF!"},{"$error":"#REF!"},{"$f":"J$148*J$73","v":{"$error":"#REF!"}},{"$error":"#REF!"},{"$error":"#REF!"},{"$error":"#REF!"},{"$error":"#REF!"},{"$error":"#REF!"},{"$error":"#REF!"},null,{"$f":"'Energy Factor'!#REF!","v":{"$error":"#REF!"}},{"$f":"'Energy Factor'!#REF!","v":{"$error":"#REF!"}},{"$f":"'Energy Factor'!#REF!","v":{"$error":"#REF!"}},{"$error":"#REF!"},{"$error":"#REF!"}]
[9,"Sch 48T     pri","48T",{"$f":"D$148*D$74","v":{"$error":"#REF!"}},{"$error":"#REF!"},{"$error":"#REF!"},{"$error":"#REF!"},{"$error":"#REF!"},{"$error":"#REF!"},{"$f":"J$148*J$74","v":{"$error":"#REF!"}},{"$error":"#REF!"},{"$error":"#REF!"},{"$error":"#REF!"},{"$error":"#REF!"},{"$error":"#REF!"},{"$error":"#REF!"},null,{"$f":"'Energy Factor'!#REF!","v":{"$error":"#REF!"}},{"$f":"'Energy Factor'!#REF!","v":{"$error":"#REF!"}},{"$f":"'Energy Factor'!#REF!","v":{"$error":"#REF!"}},{"$error":"#REF!"},{"$error":"#REF!"}]
[10,"Gen Service Total",null,{"$f":"SUM(D153:D157)","v":{"$error":"#REF!"}},{"$error":"#REF!"},{"$error":"#REF!"},{"$error":"#REF!"},{"$error":"#REF!"},{"$error":"#REF!"},{"$f":"SUM(J153:J157)","v":{"$error":"#REF!"}},{"$error":"#REF!"},{"$error":"#REF!"},{"$error":"#REF!"},{"$error":"#REF!"},{"$error":"#REF!"},{"$error":"#REF!"},null,{"$f":"'Energy Factor'!#REF!","v":{"$error":"#REF!"}},{"$f":"'Energy Factor'!#REF!","v":{"$error":"#REF!"}},{"$f":"'Energy Factor'!#REF!","v":{"$error":"#REF!"}},{"$error":"#REF!"},{"$error":"#REF!"}]
[11,null,null,null,null,null,null,null,null,null,null,null,null,null,null,null,null,{"$f":"'Energy Factor'!#REF!","v":{"$error":"#REF!"}},{"$f":"'Energy Factor'!#REF!","v":{"$error":"#REF!"}},{"$f":"'Energy Factor'!#REF!","v":{"$error":"#REF!"}},{"$error":"#REF!"},{"$error":"#REF!"}]
[12,"Irrigation",null,null,null,null,null,null,null,null,null,null,null,null,null,null,null,{"$f":"'Energy Factor'!#REF!","v":{"$error":"#REF!"}},{"$f":"'Energy Factor'!#REF!","v":{"$error":"#REF!"}},{"$f":"'Energy Factor'!#REF!","v":{"$error":"#REF!"}},{"$error":"#REF!"},{"$error":"#REF!"}]
[13,"Sch 040                   sec","40",{"$f":"D$148*D$78","v":{"$error":"#REF!"}},{"$error":"#REF!"},{"$error":"#REF!"},{"$error":"#REF!"},{"$error":"#REF!"},{"$error":"#REF!"},{"$f":"J$148*J$78","v":{"$error":"#REF!"}},{"$error":"#REF!"},{"$error":"#REF!"},{"$error":"#REF!"},{"$error":"#REF!"},{"$error":"#REF!"},{"$f":"SUM(D161:O161)","v":{"$error":"#REF!"}},null,{"$f":"'Energy Factor'!#REF!","v":{"$error":"#REF!"}},{"$f":"'Energy Factor'!#REF!","v":{"$error":"#REF!"}},{"$f":"'Energy Factor'!#REF!","v":{"$error":"#REF!"}},{"$error":"#REF!"},{"$error":"#REF!"}]
[14,null,null,null,null,null,null,null,null,null,null,null,null,null,null,null,null,{"$f":"'Energy Factor'!#REF!","v":{"$error":"#REF!"}},{"$f":"'Energy Factor'!#REF!","v":{"$error":"#REF!"}},{"$f":"'Energy Factor'!#REF!","v":{"$error":"#REF!"}},{"$error":"#REF!"},{"$error":"#REF!"}]
[15,"Street Lights"]
[16,"Sch 15,52,54,57 sec",null,{"$f":"D$148*D$81","v":{"$error":"#REF!"}},{"$error":"#REF!"},{"$error":"#REF!"},{"$error":"#REF!"},{"$error":"#REF!"},{"$error":"#REF!"},{"$f":"J$148*J$81","v":{"$error":"#REF!"}},{"$error":"#REF!"},{"$error":"#REF!"},{"$error":"#REF!"},{"$error":"#REF!"},{"$error":"#REF!"},{"$f":"SUM(D164:O164)","v":{"$error":"#REF!"}},null,null,{"$f":"SUM(S150:S162)","v":{"$error":"#REF!"}},{"$f":"SUM(T150:T162)","v":{"$error":"#REF!"}},{"$f":"SUM(U150:U162)","v":{"$error":"#REF!"}},{"$f":"SUM(V150:V162)","v":{"$error":"#REF!"}}]
[17]
[18,{"$f":"Inputs!$C$4","v":"State of Washington"},"F14",{"$f":"D150+D158+D161+D164","v":{"$error":"#REF!"}},{"$f":"E150+E158+E161+E164","v":{"$error":"#REF!"}},{"$f":"F150+F158+F161+F164","v":{"$error":"#REF!"}},{"$error":"#REF!"},{"$error":"#REF!"},{"$error":"#REF!"},{"$f":"J150+J158+J161+J164","v":{"$error":"#REF!"}},{"$error":"#REF!"},{"$error":"#REF!"},{"$error":"#REF!"},{"$error":"#REF!"},{"$error":"#REF!"},{"$f":"SUM(D166:O166)","v":{"$error":"#REF!"}}]
[]
[]
[]
[null,"SSCP",null,{"$f":"+$D$60","v":"2011-07-01"},{"$f":"+$E$60","v":"2011-08-01"},{"$f":"+$F$60","v":"2011-09-01"},{"$f":"+$G$60","v":"2011-10-01"},{"$f":"+$H$60","v":"2011-11-01"},{"$f":"+$I$60","v":"2011-12-01"},{"$f":"+$J$60","v":"2012-01-01"},{"$f":"+$K$60","v":"2012-02-01"},{"$f":"+$L$60","v":"2012-03-01"},{"$f":"+$M$60","v":"2012-04-01"},{"$f":"+$N$60","v":"2012-05-01"},{"$f":"+$O$60","v":"2012-06-01"},"Total"]
[null,null,null,{"$f":"+$AA173","v":{"$error":"#REF!"}},{"$f":"+$AA174","v":{"$error":"#REF!"}},{"$f":"+$AA175","v":{"$error":"#REF!"}},{"$f":"+$AA176","v":{"$error":"#REF!"}},{"$f":"+$AA177","v":{"$error":"#REF!"}},{"$f":"+$AA179","v":{"$error":"#REF!"}},{"$f":"+$AA180","v":{"$error":"#REF!"}},{"$f":"+$AA181","v":{"$error":"#REF!"}},{"$f":"+$AA182","v":{"$error":"#REF!"}},{"$f":"+$AA183","v":{"$error":"#REF!"}},{"$f":"+$AA184","v":{"$error":"#REF!"}},{"$f":"+$AA185","v":{"$error":"#REF!"}},{"$f":"SUM(D171:O171)","v":{"$error":"#REF!"}},null,null,null,null,null,"Morgan Stanley","Morgan Stanley","UBS","UBS Summer"]
[null,"Residential",null,null,null,null,null,null,null,null,null,null,null,null,null,null,null,"MONTH","APS p167566","APS p172318","APS p205692","p19658","p206006","p223199","Purchase","Total","Proportion"]
[null,"Sch 16       sec","16",{"$f":"D$171*D$66","v":{"$error":"#REF!"}},{"$error":"#REF!"},{"$error":"#REF!"},{"$error":"#REF!"},{"$error":"#REF!"},{"$error":"#REF!"},{"$f":"J$171*J$66","v":{"$error":"#REF!"}},{"$error":"#REF!"},{"$error":"#REF!"},{"$error":"#REF!"},{"$error":"#REF!"},{"$error":"#REF!"},{"$f":"SUM(D173:O173)","v":{"$error":"#REF!"}},null,{"$f":"'Energy Factor'!#REF!","v":{"$error":"#REF!"}},{"$f":"'Energy Factor'!#REF!","v":{"$error":"#REF!"}},{"$f":"'Energy Factor'!#REF!","v":{"$error":"#REF!"}},{"$f":"'Energy Factor'!#REF!","v":{"$error":"#REF!"}},{"$f":"'Energy Factor'!#REF!","v":{"$error":"#REF!"}},{"$f":"'Energy Factor'!#REF!","v":{"$error":"#REF!"}},{"$f":"'Energy Factor'!#REF!","v":{"$error":"#REF!"}},{"$f":"'Energy Factor'!#REF!","v":{"$error":"#REF!"}},{"$f":"SUM(S173:Y173)","v":{"$error":"#REF!"}},{"$f":"Z173/$Z$187","v":{"$error":"#REF!"}}]
[null,null,null,null,null,null,null,null,null,null,null,null,null,null,null,null,null,{"$f":"'Energy Factor'!#REF!","v":{"$error":"#REF!"}},{"$f":"'Energy Factor'!#REF!","v":{"$error":"#REF!"}},{"$f":"'Energy Factor'!#REF!","v":{"$error":"#REF!"}},{"$f":"'Energy Factor'!#REF!","v":{"$error":"#REF!"}},{"$f":"'Energy Factor'!#REF!","v":{"$error":"#REF!"}},{"$f":"'Energy Factor'!#REF!","v":{"$error":"#REF!"}},{"$f":"'Energy Factor'!#REF!","v":{"$error":"#REF!"}},{"$f":"'Energy Factor'!#REF!","v":{"$error":"#REF!"}},{"$error":"#REF!"},{"$error":"#REF!"}]
[null,"General Service",null,null,null,null,null,null,null,null,null,null,null,null,null,null,null,{"$f":"'Energy Factor'!#REF!","v":{"$error":"#REF!"}},{"$f":"'Energy Factor'!#REF!","v":{"$error":"#REF!"}},{"$f":"'Energy Factor'!#REF!","v":{"$error":"#REF!"}},{"$f":"'Energy Factor'!#REF!","v":{"$error":"#REF!"}},{"$f":"'Energy Factor'!#REF!","v":{"$error":"#REF!"}},{"$f":"'Energy Factor'!#REF!","v":{"$error":"#REF!"}},{"$f":"'Energy Factor'!#REF!","v":{"$error":"#REF!"}},{"$f":"'Energy Factor'!#REF!","v":{"$error":"#REF!"}},{"$error":"#REF!"},{"$error":"#REF!"}]
[null,"Sch 24       sec","24",{"$f":"D$171*D$69","v":{"$error":"#REF!"}},{"$error":"#REF!"},{"$error":"#REF!"},{"$error":"#REF!"},{"$error":"#REF!"},{"$error":"#REF!"},{"$f":"J$171*J$69","v":{"$error":"#REF!"}},{"$error":"#REF!"},{"$error":"#REF!"},{"$error":"#REF!"},{"$error":"#REF!"},{"$error":"#REF!"},{"$f":"SUM(D176:O176)","v":{"$error":"#REF!"}},null,{"$f":"'Energy Factor'!#REF!","v":{"$error":"#REF!"}},{"$f":"'Energy Factor'!#REF!","v":{"$error":"#REF!"}},{"$f":"'Energy Factor'!#REF!","v":{"$error":"#REF!"}},{"$f":"'Energy Factor'!#REF!","v":{"$error":"#REF!"}},{"$f":"'Energy Factor'!#REF!","v":{"$error":"#REF!"}},{"$f":"'Energy Factor'!#REF!","v":{"$error":"#REF!"}},{"$f":"'Energy Factor'!#REF!","v":{"$error":"#REF!"}},{"$f":"'Energy Factor'!#REF!","v":{"$error":"#REF!"}},{"$error":"#REF!"},{"$error":"#REF!"}]
[null,"Sch 36       sec","36",{"$f":"D$171*D70","v":{"$error":"#REF!"}},{"$f":"E$171*E$70","v":{"$error":"#REF!"}},{"$error":"#REF!"},{"$error":"#REF!"},{"$error":"#REF!"},{"$error":"#REF!"},{"$f":"J$171*J$70","v":{"$error":"#REF!"}},{"$error":"#REF!"},{"$error":"#REF!"},{"$error":"#REF!"},{"$error":"#REF!"},{"$error":"#REF!"},{"$error":"#REF!"},null,{"$f":"'Energy Factor'!#REF!","v":{"$error":"#REF!"}},{"$f":"'Energy Factor'!#REF!","v":{"$error":"#REF!"}},{"$f":"'Energy Factor'!#REF!","v":{"$error":"#REF!"}},{"$f":"'Energy Factor'!#REF!","v":{"$error":"#REF!"}},{"$f":"'Energy Factor'!#REF!","v":{"$error":"#REF!"}},{"$f":"'Energy Factor'!#REF!","v":{"$error":"#REF!"}},{"$f":"'Energy Factor'!#REF!","v":{"$error":"#REF!"}},{"$f":"'Energy Factor'!#REF!","v":{"$error":"#REF!"}},{"$error":"#REF!"},{"$error":"#REF!"}]
[null,{"$f":"B72","v":"Sch 48T   pri, ded fac"},"48T",{"$f":"D$171*D72","v":{"$error":"#REF!"}},{"$f":"E$171*E72","v":{"$error":"#REF!"}},{"$error":"#REF!"},{"$error":"#REF!"},{"$error":"#REF!"},{"$error":"#REF!"},{"$f":"J$171*J72","v":{"$error":"#REF!"}},{"$error":"#REF!"},{"$error":"#REF!"},{"$error":"#REF!"},{"$error":"#REF!"},{"$error":"#REF!"},{"$error":"#REF!"}]
[null,"Sch 48T     sec       ","48T",{"$f":"D$171*D$73","v":{"$error":"#REF!"}},{"$error":"#REF!"},{"$error":"#REF!"},{"$error":"#REF!"},{"$error":"#REF!"},{"$error":"#REF!"},{"$f":"J$171*J$73","v":{"$error":"#REF!"}},{"$error":"#REF!"},{"$error":"#REF!"},{"$error":"#REF!"},{"$error":"#REF!"},{"$error":"#REF!"},{"$error":"#REF!"},null,{"$f":"'Energy Factor'!#REF!","v":{"$error":"#REF!"}},{"$f":"'Energy Factor'!#REF!","v":{"$error":"#REF!"}},{"$f":"'Energy Factor'!#REF!","v":{"$error":"#REF!"}},{"$f":"'Energy Factor'!#REF!","v":{"$error":"#REF!"}},{"$f":"'Energy Factor'!#REF!","v":{"$error":"#REF!"}},{"$f":"'Energy Factor'!#REF!","v":{"$error":"#REF!"}},{"$f":"'Energy Factor'!#REF!","v":{"$error":"#REF!"}},{"$f":"'Energy Factor'!#REF!","v":{"$error":"#REF!"}},{"$error":"#REF!"},{"$error":"#REF!"}]
[null,"Sch 48T     pri","48T",{"$f":"D$171*D$74","v":{"$error":"#REF!"}},{"$error":"#REF!"},{"$error":"#REF!"},{"$error":"#REF!"},{"$error":"#REF!"},{"$error":"#REF!"},{"$f":"J$171*J$74","v":{"$error":"#REF!"}},{"$error":"#REF!"},{"$error":"#REF!"},{"$error":"#REF!"},{"$error":"#REF!"},{"$error":"#REF!"},{"$error":"#REF!"},null,{"$f":"'Energy Factor'!#REF!","v":{"$error":"#REF!"}},{"$f":"'Energy Factor'!#REF!","v":{"$error":"#REF!"}},{"$f":"'Energy Factor'!#REF!","v":{"$error":"#REF!"}},{"$f":"'Energy Factor'!#REF!","v":{"$error":"#REF!"}},{"$f":"'Energy Factor'!#REF!","v":{"$error":"#REF!"}},{"$f":"'Energy Factor'!#REF!","v":{"$error":"#REF!"}},{"$f":"'Energy Factor'!#REF!","v":{"$error":"#REF!"}},{"$f":"'Energy Factor'!#REF!","v":{"$error":"#REF!"}},{"$error":"#REF!"},{"$error":"#REF!"}]
[null,"Gen Service Total",null,{"$f":"SUM(D176:D180)","v":{"$error":"#REF!"}},{"$error":"#REF!"},{"$error":"#REF!"},{"$error":"#REF!"},{"$error":"#REF!"},{"$error":"#REF!"},{"$f":"SUM(J176:J180)","v":{"$error":"#REF!"}},{"$error":"#REF!"},{"$error":"#REF!"},{"$error":"#REF!"},{"$error":"#REF!"},{"$error":"#REF!"},{"$error":"#REF!"},null,{"$f":"'Energy Factor'!#REF!","v":{"$error":"#REF!"}},{"$f":"'Energy Factor'!#REF!","v":{"$error":"#REF!"}},{"$f":"'Energy Factor'!#REF!","v":{"$error":"#REF!"}},{"$f":"'Energy Factor'!#REF!","v":{"$error":"#REF!"}},{"$f":"'Energy Factor'!#REF!","v":{"$error":"#REF!"}},{"$f":"'Energy Factor'!#REF!","v":{"$error":"#REF!"}},{"$f":"'Energy Factor'!#REF!","v":{"$error":"#REF!"}},{"$f":"'Energy Factor'!#REF!","v":{"$error":"#REF!"}},{"$error":"#REF!"},{"$error":"#REF!"}]
[null,null,null,null,null,null,null,null,null,null,null,null,null,null,null,null,null,{"$f":"'Energy Factor'!#REF!","v":{"$error":"#REF!"}},{"$f":"'Energy Factor'!#REF!","v":{"$error":"#REF!"}},{"$f":"'Energy Factor'!#REF!","v":{"$error":"#REF!"}},{"$f":"'Energy Factor'!#REF!","v":{"$error":"#REF!"}},{"$f":"'Energy Factor'!#REF!","v":{"$error":"#REF!"}},{"$f":"'Energy Factor'!#REF!","v":{"$error":"#REF!"}},{"$f":"'Energy Factor'!#REF!","v":{"$error":"#REF!"}},{"$f":"'Energy Factor'!#REF!","v":{"$error":"#REF!"}},{"$error":"#REF!"},{"$error":"#REF!"}]
[null,"Irrigation",null,null,null,null,null,null,null,null,null,null,null,null,null,null,null,{"$f":"'Energy Factor'!#REF!","v":{"$error":"#REF!"}},{"$f":"'Energy Factor'!#REF!","v":{"$error":"#REF!"}},{"$f":"'Energy Factor'!#REF!","v":{"$error":"#REF!"}},{"$f":"'Energy Factor'!#REF!","v":{"$error":"#REF!"}},{"$f":"'Energy Factor'!#REF!","v":{"$error":"#REF!"}},{"$f":"'Energy Factor'!#REF!","v":{"$error":"#REF!"}},{"$f":"'Energy Factor'!#REF!","v":{"$error":"#REF!"}},{"$f":"'Energy Factor'!#REF!","v":{"$error":"#REF!"}},{"$error":"#REF!"},{"$error":"#REF!"}]
[null,"Sch 040                   sec","40",{"$f":"D$171*D$78","v":{"$error":"#REF!"}},{"$error":"#REF!"},{"$error":"#REF!"},{"$error":"#REF!"},{"$error":"#REF!"},{"$error":"#REF!"},{"$f":"J$171*J$78","v":{"$error":"#REF!"}},{"$error":"#REF!"},{"$error":"#REF!"},{"$error":"#REF!"},{"$error":"#REF!"},{"$error":"#REF!"},{"$f":"SUM(D184:O184)","v":{"$error":"#REF!"}},null,{"$f":"'Energy Factor'!#REF!","v":{"$error":"#REF!"}},{"$f":"'Energy Factor'!#REF!","v":{"$error":"#REF!"}},{"$f":"'Energy Factor'!#REF!","v":{"$error":"#REF!"}},{"$f":"'Energy Factor'!#REF!","v":{"$error":"#REF!"}},{"$f":"'Energy Factor'!#REF!","v":{"$error":"#REF!"}},{"$f":"'Energy Factor'!#REF!","v":{"$error":"#REF!"}},{"$f":"'Energy Factor'!#REF!","v":{"$error":"#REF!"}},{"$f":"'Energy Factor'!#REF!","v":{"$error":"#REF!"}},{"$error":"#REF!"},{"$error":"#REF!"}]
[null,null,null,null,null,null,null,null,null,null,null,null,null,null,null,null,null,{"$f":"'Energy Factor'!#REF!","v":{"$error":"#REF!"}},0,0,0,0,0,0,0,0,{"$error":"#REF!"}]
[null,"Street Lights"]
[null,"Sch 15,52,54,57 sec",null,{"$f":"D$171*D$81","v":{"$error":"#REF!"}},{"$error":"#REF!"},{"$error":"#REF!"},{"$error":"#REF!"},{"$error":"#REF!"},{"$error":"#REF!"},{"$f":"J$171*J$81","v":{"$error":"#REF!"}},{"$error":"#REF!"},{"$error":"#REF!"},{"$error":"#REF!"},{"$error":"#REF!"},{"$error":"#REF!"},{"$f":"SUM(D187:O187)","v":{"$error":"#REF!"}},null,null,{"$f":"SUM(S173:S185)","v":{"$error":"#REF!"}},{"$error":"#REF!"},{"$error":"#REF!"},{"$error":"#REF!"},{"$error":"#REF!"},{"$error":"#REF!"},{"$error":"#REF!"},{"$error":"#REF!"},{"$error":"#REF!"}]
[]
[null,{"$f":"Inputs!$C$4","v":"State of Washington"},"F16",{"$f":"D173+D181+D184+D187","v":{"$error":"#REF!"}},{"$f":"E173+E181+E184+E187","v":{"$error":"#REF!"}},{"$f":"F173+F181+F184+F187","v":{"$error":"#REF!"}},{"$error":"#REF!"},{"$error":"#REF!"},{"$error":"#REF!"},{"$f":"J173+J181+J184+J187","v":{"$error":"#REF!"}},{"$error":"#REF!"},{"$error":"#REF!"},{"$error":"#REF!"},{"$error":"#REF!"},{"$error":"#REF!"},{"$f":"SUM(D189:O189)","v":{"$error":"#REF!"}}]

{"sheet":"Dist. Factors","index":26,"n_rows":282,"n_cols":24,"rows_kept":282,"cut":false,"hidden":false,"merged":[]}
[null,"Distribution Factors  ( F20-F22 )"]
[null,{"$f":"Inputs!$C$3","v":"PacifiCorp"}]
[null,"Cost Of Service By Rate Schedule"]
[null,{"$f":"Inputs!$C$4","v":"State of Washington"}]
[null,{"$f":"+Method&\" - \"&IF(PeakMethod=1,\"(Coincident Peaks)\",IF(PeakMethod=2,\"(200 Top Hours)\",\"(100 Summer, 100 Winter Hours)\"))&\" - \"&TEXT(Demand,\"0%\")&\"D\"&\" / \"&TEXT(Engy,\"0%\")&\"E\"","v":"WCA Method - (100 Summer, 100 Winter Hours) - 38%D / 62%E"}]
[null,{"$f":"Inputs!$C$5","v":"12 Months Ending June 2012"}]
[null,{"$f":"\"Distribution Factors  -  \"&IF(DistPeakMethod=1,\"(Distribution Peaks)\",IF(DistPeakMethod=2,\"(NCP - 12 months)\",IF(DistPeakMethod=3,\"(NCP (maximum))\",IF(DistPeakMethod=4,\"(Schedule Peaks - 12 months)\",\"Schedule Peaks (maximum)\"))))","v":"Distribution Factors  -  Schedule Peaks (maximum)"}]
[]
[]
[null,"A",null,"B","C","D","E","F","G","H","I"]
[]
[null,null,null,null,{"$f":"'Hot Sheet'!$J$10","v":"Small General"},{"$f":"'Hot Sheet'!$K$10","v":"Large General"},{"$f":"'Hot Sheet'!$L$10","v":"Large General"},{"$f":"'Hot Sheet'!$M$10","v":"Large General"},{"$f":"'Hot Sheet'!$N$10","v":"Agricultural"},{"$f":"'Hot Sheet'!$O$10","v":"Street & Area"}]
[null,null,null,{"$f":"'Hot Sheet'!$I$11","v":"Residential"},{"$f":"'Hot Sheet'!$J$11","v":"Service"},{"$f":"'Hot Sheet'!$K$11","v":"Service <1,000 kW"},{"$f":"'Hot Sheet'!$L$11","v":"Service >1,000 kW"},{"$f":"'Hot Sheet'!$M$11","v":"Dedicated Facilities"},{"$f":"'Hot Sheet'!$N$11","v":"Pumping"},{"$f":"'Hot Sheet'!$O$11","v":"Lighting"}]
[null,"Description",null,{"$f":"'Hot Sheet'!$I$12","v":"Schedule 16"},{"$f":"'Hot Sheet'!$J$12","v":"Schedule 24"},{"$f":"'Hot Sheet'!$K$12","v":"Schedule 36"},{"$f":"'Hot Sheet'!$L$12","v":"Schedule 48T"},{"$f":"'Hot Sheet'!$M$12","v":"Schedule 48T"},{"$f":"'Hot Sheet'!$N$12","v":"Schedule 40"},{"$f":"'Hot Sheet'!$O$12","v":"Sch. 15,51-54,57"},"Total"]
[]
[]
[1,"Secondary",null,{"$f":"IF(DistPeakMethod=1,($P$78),IF(DistPeakMethod=2,$P$154,IF(DistPeakMethod=3,$Q$154,IF(DistPeakMethod=4,$P$226,$Q$226))))","v":446254.62958999997},{"$f":"IF(DistPeakMethod=1,($P$81),IF(DistPeakMethod=2,$P$157,IF(DistPeakMethod=3,$Q$157,IF(DistPeakMethod=4,$P$229,$Q$229))))","v":121987.23536999999},{"$f":"IF(DistPeakMethod=1,($P$82),IF(DistPeakMethod=2,$P$158,IF(DistPeakMethod=3,$Q$158,IF(DistPeakMethod=4,$P$230,$Q$230))))","v":175630.50659},{"$f":"IF(DistPeakMethod=1,($P$85),IF(DistPeakMethod=2,$P$161,IF(DistPeakMethod=3,$Q$161,IF(DistPeakMethod=4,$P$233,$Q$233))))","v":54779.4709},0,{"$f":"IF(DistPeakMethod=1,($P$90),IF(DistPeakMethod=2,$P$166,IF(DistPeakMethod=3,$Q$166,IF(DistPeakMethod=4,$P$238,$Q$238))))","v":62444.38046},{"$f":"IF(DistPeakMethod=1,($P$93),IF(DistPeakMethod=2,$P$169,IF(DistPeakMethod=3,$Q$169,IF(DistPeakMethod=4,$P$241,$Q$241))))","v":3387.51721},{"$f":"SUM(D17:J17)","v":864483.74011999986}]
[{"$f":"A17+1","v":2}]
[3,"Primary",null,0,0,{"$f":"IF(DistPeakMethod=1,($P$83),IF(DistPeakMethod=2,$P$159,IF(DistPeakMethod=3,$Q$159,IF(DistPeakMethod=4,$P$231,$Q$231))))","v":3292.4932599999997},{"$f":"IF(DistPeakMethod=1,($P$86),IF(DistPeakMethod=2,$P$162,IF(DistPeakMethod=3,$Q$162,IF(DistPeakMethod=4,$P$234,$Q$234))))","v":13644.664299999999},{"$f":"IF(DistPeakMethod=1,($P$84),IF(DistPeakMethod=2,$P$160,IF(DistPeakMethod=3,$Q$160,IF(DistPeakMethod=4,$P$232,$Q$232))))","v":63997.702269999994},0,0,{"$f":"SUM(D19:J19)","v":80934.859830000001}]
[4]
[5,"Sub-Transmission",null,0,0,0,0,0,0,0,{"$f":"SUM(D21:J21)","v":0}]
[6]
[7,"Transmission",null,0,0,0,0,0,0,0,{"$f":"SUM(D23:J23)","v":0}]
[8]
[9,"Schedule Peaks (max)"]
[10,"@ Input",null,{"$f":"D17+D19+D21+D23","v":446254.62958999997},121987.23536999999,178922.99984999999,68424.135200000004,{"$f":"H17+H19+H21+H23","v":63997.702269999994},62444.38046,3387.51721,{"$f":"SUM(D26:J26)","v":945418.59994999995}]
[11]
[12]
[13,"Substations"]
[14,"FACTOR 20",null,{"$f":"D26/$K$26","v":0.47201803477697701},0.12902986611057948,0.18925267586174277,7.2374433085639234E-2,6.7692451019458075E-2,6.6049452024005528E-2,3.5830871215979405E-3,{"$f":"SUM(D30:J30)","v":1.0000000000000002},null,null,null,null,null,null,null,"Coincidence Factor"]
[15]
[16,"FACTOR 20A",null,{"$f":"(D26/(SUM($D$26:$J$26)-$H$26))","v":0.5062900491293012},{"$f":"(E26/(SUM($D$26:$J$26)-$H$26))","v":0.13839839251722336},0.20299382544814365,7.7629354352841087E-2,0,7.0845132699214095E-2,3.8432458532766021E-3,{"$f":"SUM(D32:J32)","v":1}]
[17,null,null,null,null,null,null,null,null,null,null,null,null,null,null,null,null,null,null,null,null,"CF for ",null,"CF for "]
[18]
[19,"Max NCP - Sec",null,{"$f":"$Q154","v":1415050.793446772},{"$f":"$Q157","v":251467.40139049912},{"$f":"$Q158","v":243837.89395422008},{"$f":"$Q161","v":71865.061565920012},0,{"$f":"$Q166","v":87377.988412405466},{"$f":"$Q169","v":3387.51721},{"$f":"SUM(D35:J35)","v":2072986.6559798166},null,null,null,null,null,null,null,1,null,null,1,null,1]
[20,null,null,null,null,null,null,null,null,null,null,null,null,null,null,null,null,null,2,null,null,0.9,null,0.77]
[21,"Cust/Transformer",null,4,3,1,1,1,1,1,null,null,null,null,null,null,null,null,3,null,null,0.86,null,0.7]
[22,null,null,null,null,null,null,null,null,null,null,null,null,null,null,null,null,null,4,null,null,0.82,null,0.67]
[23,"Coincidence Factor",null,0.67,0.86,{"$f":"V35","v":1},{"$f":"V35","v":1},1,{"$f":"V35","v":1},{"$f":"V35","v":1},null,null,null,null,null,null,null,null,5,null,null,0.78,null,0.64]
[{"$f":"A39+1","v":24},null,null,null,null,null,null,null,null,null,null,null,null,null,null,null,null,null,6,null,null,0.76,null,0.62]
[25,"Max NCP - Wgt",null,{"$f":"D35*D39","v":948084.03160933731},216261.96519582922,243837.89395422008,71865.061565920012,{"$f":"H35*H39","v":0},87377.988412405466,3387.51721,{"$f":"SUM(D41:J41)","v":1570814.4579477119},null,null,null,null,null,null,null,7,null,null,0.74,null,0.6]
[26,null,null,null,null,null,null,null,null,null,null,null,null,null,null,null,null,null,8,null,null,0.72,null,0.59]
[{"$f":"A42+1","v":27},null,null,null,null,null,null,null,null,null,null,null,null,null,null,null,null,null,9,null,null,0.71,null,0.57999999999999996]
[28,"Line Transformers",null,null,null,null,null,null,null,null,null,null,null,null,null,null,null,null,10,null,null,0.7,null,0.56999999999999995]
[29,"FACTOR 21",null,{"$f":"D41/$K$41","v":0.60356207368247716},0.13767505391972143,0.155230232775421,4.5750191056818122E-2,0,5.5625913022576752E-2,2.1565355429856636E-3,{"$f":"SUM(D45:J45)","v":1.0000000000000002},null,null,null,null,null,null,null,"11 or more",null,null,0.7,null,0.56000000000000005]
[30]
[31,null,null,null,null,null,null,null,null,null,null,null,null,null,null,null,null,null,"Source of Coincidence Factor - Distribution Construction Standard, DA411 (13 May 2004)"]
[32,"Max NCP - Wgt *",null,{"$f":"IF(D37>1,D41,0)","v":948084.03160933731},216261.96519582922,0,0,0,0,0,{"$f":"SUM(D48:J48)","v":1164345.9968051666}]
[33,"(Less Irrg & St Ltg)"]
[34]
[35,"Secondary Lines"]
[36,"FACTOR 22",null,{"$f":"D48/$K$48","v":0.81426314361089602},0.18573685638910387,0,0,0,0,0,{"$f":"SUM(D52:J52)","v":0.99999999999999989}]
[37]
[38]
[39,"*  If Line 19 > 1, "]
[40,"    Line 30 = Line 23"]
[]
[]
[]
[null,"Distribution Factors Detail"]
[]
[]
[null,{"$f":"Inputs!$C$3","v":"PacifiCorp"}]
[null,"Cost Of Service By Rate Schedule"]
[null,{"$f":"Inputs!$C$4","v":"State of Washington"}]
[null,{"$f":"+Method&\" - \"&IF(PeakMethod=1,\"(Coincident Peaks)\",IF(PeakMethod=2,\"(200 Top Hours)\",\"(100 Summer, 100 Winter Hours)\"))&\" - \"&TEXT(Demand,\"0%\")&\"D\"&\" / \"&TEXT(Engy,\"0%\")&\"E\"","v":"WCA Method - (100 Summer, 100 Winter Hours) - 38%D / 62%E"}]
[null,{"$f":"Inputs!$C$5","v":"12 Months Ending June 2012"}]
[null,"Distribution Peaks @ Input"]
[]
[]
[null,"A","B","C","D","E","F","G","H","I","J","K","L","M","N","O"]
[]
[null,null,null,{"$f":"+D111","v":"2011-07-01"},{"$f":"+E111","v":"2011-08-01"},"2011-09-01","2011-10-02","2011-11-02","2011-12-03",{"$f":"+J111","v":"2012-01-03"},"2012-02-03","2012-03-05","2012-04-05","2012-05-06","2012-06-06"]
[null,null,"COS",{"$f":"+D112","v":"6"},{"$f":"+E112","v":"25"},"12","26","16","9",{"$f":"+J112","v":"13"},"3","6","6","15","21","Sum of 12"]
[null,"        Description","Sch",{"$f":"+D113","v":"18:00"},{"$f":"+E113","v":"18:00"},"18:00","08:00","18:00","08:00",{"$f":"+J113","v":"08:00"},"08:00","21:00","09:00","17:00","15:00","Dist Peaks"]
[]
[1,"Residential"]
[{"$f":"A77+1","v":2},"Sch 16       sec","16",{"$f":"+D116*Inputs!$D$15","v":307715.93852999998},{"$f":"+E116*Inputs!$D$15","v":342911.49893},{"$f":"+F116*Inputs!$D$15","v":336165.31332999998},{"$f":"+G116*Inputs!$D$15","v":345511.22143999999},{"$f":"+H116*Inputs!$D$15","v":347728.14230000001},{"$f":"+I116*Inputs!$D$15","v":446254.62958999997},{"$f":"+J116*Inputs!$D$15","v":412717.87633999996},{"$f":"+K116*Inputs!$D$15","v":377507.89152999996},{"$f":"+L116*Inputs!$D$15","v":363931.19300999999},{"$f":"+M116*Inputs!$D$15","v":263660.46168000001},{"$f":"+N116*Inputs!$D$15","v":230953.66678999999},{"$f":"+O116*Inputs!$D$15","v":201789.72890999998},{"$f":"SUM(D78:O78)","v":3976847.5623800005}]
[3]
[4,"General Service"]
[5,"Sch 24       sec","24",{"$f":"+D119*Inputs!$D$15","v":92188.623449999999},{"$f":"+E119*Inputs!$D$15","v":116742.29797999999},{"$f":"+F119*Inputs!$D$15","v":86584.185379999995},{"$f":"+G119*Inputs!$D$15","v":64125.379009999997},{"$f":"+H119*Inputs!$D$15","v":93827.458339999997},{"$f":"+I119*Inputs!$D$15","v":79775.863859999998},{"$f":"+J119*Inputs!$D$15","v":82507.625199999995},{"$f":"+K119*Inputs!$D$15","v":75497.361940000003},{"$f":"+L119*Inputs!$D$15","v":73118.443859999999},{"$f":"+M119*Inputs!$D$15","v":78257.972099999999},{"$f":"+N119*Inputs!$D$15","v":98073.782729999992},{"$f":"+O119*Inputs!$D$15","v":113025.23848},{"$f":"SUM(D81:O81)","v":1053724.23233}]
[6,"Sch 36       sec","36",{"$f":"+D120*Inputs!$D$15","v":141031.89484999998},{"$f":"+E120*Inputs!$D$15","v":144958.66308},{"$f":"+F120*Inputs!$D$15","v":157447.98299999998},{"$f":"+G120*Inputs!$D$15","v":148256.30512},{"$f":"+H120*Inputs!$D$15","v":137187.23480000001},{"$f":"+I120*Inputs!$D$15","v":149870.72946999999},{"$f":"+J120*Inputs!$D$15","v":139902.35258999999},{"$f":"+K120*Inputs!$D$15","v":131042.43613999999},{"$f":"+L120*Inputs!$D$15","v":108930.92517999999},{"$f":"+M120*Inputs!$D$15","v":111972.25654999999},{"$f":"+N120*Inputs!$D$15","v":139844.65495},{"$f":"+O120*Inputs!$D$15","v":150891.53386999998},1661336.9696]
[7,"Sch 36       pri","36",{"$f":"D121*Inputs!$D$16","v":2644.3987999999999},{"$f":"E121*Inputs!$D$16","v":2718.0951599999999},{"$f":"F121*Inputs!$D$16","v":2952.1894799999995},{"$f":"G121*Inputs!$D$16","v":2779.8700499999995},{"$f":"H121*Inputs!$D$16","v":2571.7862099999998},{"$f":"I121*Inputs!$D$16","v":2810.2156099999997},{"$f":"J121*Inputs!$D$16","v":2622.7233999999999},{"$f":"K121*Inputs!$D$16","v":2456.9065899999996},{"$f":"L121*Inputs!$D$16","v":2041.8226799999998},{"$f":"M121*Inputs!$D$16","v":2099.2624899999996},{"$f":"N121*Inputs!$D$16","v":2621.6396299999997},{"$f":"O121*Inputs!$D$16","v":2828.6396999999997},31147.549800000001]
[8,"Sch 48T    pri, ded fac","48T",{"$f":"D122*Inputs!$D$16","v":59896.716589999996},{"$f":"E122*Inputs!$D$16","v":57622.967129999997},{"$f":"F122*Inputs!$D$16","v":59451.287119999994},{"$f":"G122*Inputs!$D$16","v":62515.104909999995},{"$f":"H122*Inputs!$D$16","v":62564.958329999994},{"$f":"I122*Inputs!$D$16","v":63109.010869999991},{"$f":"J122*Inputs!$D$16","v":62317.858769999992},{"$f":"K122*Inputs!$D$16","v":63306.257009999994},{"$f":"L122*Inputs!$D$16","v":61132.214389999994},{"$f":"M122*Inputs!$D$16","v":57919.920109999992},{"$f":"N122*Inputs!$D$16","v":45663.565179999998},{"$f":"O122*Inputs!$D$16","v":61873.513069999994},717373.37347999995]
[9,"Sch 48T     sec       ","48T",{"$f":"+D123*Inputs!$D$15","v":43168.930419999997},{"$f":"+E123*Inputs!$D$15","v":44342.855479999998},{"$f":"+F123*Inputs!$D$15","v":46152.564149999998},{"$f":"+G123*Inputs!$D$15","v":47350.899749999997},{"$f":"+H123*Inputs!$D$15","v":42183.632259999998},{"$f":"+I123*Inputs!$D$15","v":40352.841759999996},{"$f":"+J123*Inputs!$D$15","v":40603.604579999999},{"$f":"+K123*Inputs!$D$15","v":38934.811300000001},{"$f":"+L123*Inputs!$D$15","v":36623.576990000001},{"$f":"+M123*Inputs!$D$15","v":36102.079089999999},{"$f":"+N123*Inputs!$D$15","v":43033.562879999998},{"$f":"+O123*Inputs!$D$15","v":48220.802629999998},507070.1612899999]
[10,"Sch 48T     pri","48T",{"$f":"+D124*Inputs!$D$16","v":9493.8251999999993},{"$f":"+E124*Inputs!$D$16","v":10682.720889999999},{"$f":"+F124*Inputs!$D$16","v":10510.401459999999},{"$f":"+G124*Inputs!$D$16","v":11493.38085},{"$f":"+H124*Inputs!$D$16","v":9251.0607199999995},{"$f":"+I124*Inputs!$D$16","v":10061.720679999999},{"$f":"+J124*Inputs!$D$16","v":10445.375259999999},{"$f":"+K124*Inputs!$D$16","v":9914.3279599999987},{"$f":"+L124*Inputs!$D$16","v":7851.9136499999995},{"$f":"+M124*Inputs!$D$16","v":8982.2857599999988},{"$f":"+N124*Inputs!$D$16","v":9945.7572899999996},{"$f":"+O124*Inputs!$D$16","v":10987.260259999999},119620.02997999998]
[11,"General Service Total",null,{"$f":"SUM(D81:D86)","v":348424.38931},{"$f":"SUM(E81:E86)","v":377067.59972000006},363098.61059,336520.93968999997,347586.13065999997,345980.38225000002,{"$f":"SUM(J81:J86)","v":338399.53979999997},321152.10093999997,289698.89674999996,295333.77610000002,339182.9626599999,387826.98800999997,4090272.3164799991]
[12]
[13,"Irrigation"]
[14,"Sch 040                   sec","40",{"$f":"+D128*Inputs!$D$15","v":44672.397769999996},{"$f":"+E128*Inputs!$D$15","v":46391.121699999996},{"$f":"+F128*Inputs!$D$15","v":30173.646579999997},{"$f":"+G128*Inputs!$D$15","v":21270.456899999997},{"$f":"+H128*Inputs!$D$15","v":5499.0289199999997},{"$f":"+I128*Inputs!$D$15","v":905.40911999999992},{"$f":"+J128*Inputs!$D$15","v":823.30093999999997},{"$f":"+K128*Inputs!$D$15","v":828.84879000000001},{"$f":"+L128*Inputs!$D$15","v":1502.3577799999998},{"$f":"+M128*Inputs!$D$15","v":8286.268759999999},{"$f":"+N128*Inputs!$D$15","v":23695.976919999997},{"$f":"+O128*Inputs!$D$15","v":39166.711429999996},{"$f":"SUM(D90:O90)","v":223215.52560999995}]
[15]
[16,"Street Lights"]
[17,"Sch 15,52,54,57 sec",null,{"$f":"+D131*Inputs!$D$15","v":0},{"$f":"+E131*Inputs!$D$15","v":0},{"$f":"+F131*Inputs!$D$15","v":0},{"$f":"+G131*Inputs!$D$15","v":1862.96803},{"$f":"+H131*Inputs!$D$15","v":3387.51721},{"$f":"+I131*Inputs!$D$15","v":0},{"$f":"+J131*Inputs!$D$15","v":0},{"$f":"+K131*Inputs!$D$15","v":0},{"$f":"+L131*Inputs!$D$15","v":3387.51721},{"$f":"+M131*Inputs!$D$15","v":0},{"$f":"+N131*Inputs!$D$15","v":0},{"$f":"+O131*Inputs!$D$15","v":0},{"$f":"SUM(D93:O93)","v":8638.00245}]
[18]
[19]
[20]
[21,{"$f":"Inputs!$C$4","v":"State of Washington"},null,{"$f":"+D78+D87+D90+D93","v":700812.72560999996},766370.22035000008,729437.57049999991,705165.58605999989,704200.81908999989,793140.42096000002,{"$f":"+J78+J87+J90+J93","v":751940.71707999986},699488.8412599999,658519.96474999981,567280.50654000009,593832.60636999994,628783.42834999994,{"$f":"SUM(D97:O97)","v":8298973.4069200009}]
[]
[]
[]
[null,{"$f":"Inputs!$C$3","v":"PacifiCorp"}]
[null,"Cost Of Service By Rate Schedule"]
[null,{"$f":"Inputs!$C$4","v":"State of Washington"}]
[null,{"$f":"+Method&\" - \"&IF(PeakMethod=1,\"(Coincident Peaks)\",IF(PeakMethod=2,\"(200 Top Hours)\",\"(100 Summer, 100 Winter Hours)\"))&\" - \"&TEXT(Demand,\"0%\")&\"D\"&\" / \"&TEXT(Engy,\"0%\")&\"E\"","v":"WCA Method - (100 Summer, 100 Winter Hours) - 38%D / 62%E"}]
[null,{"$f":"Inputs!$C$5","v":"12 Months Ending June 2012"}]
[null,"Distribution Peaks @ Sales"]
[]
[]
[null,"A","B","C","D","E","F","G","H","I","J","K","L","M","N","O"]
[]
[null,null,null,"2011-07-01","2011-08-01","2011-09-01","2011-10-02","2011-11-02","2011-12-03","2012-01-03","2012-02-03","2012-03-05","2012-04-05","2012-05-06","2012-06-06"]
[null,null,"COS","6","25","12","26","16","9","13","3","6","6","15","21","Sum of 12"]
[null,"        Description","Sch","18:00","18:00","18:00","08:00","18:00","08:00","08:00","08:00","21:00","09:00","17:00","15:00","Dist Peaks"]
[]
[1,"Residential"]
[{"$f":"A115+1","v":2},"Sch 16       sec","16",277329,309049,302969,311392,313390,402187,371962,340229,327993,237624,208147,181863,{"$f":"SUM(D116:O116)","v":3584134}]
[3]
[4,"General Service"]
[5,"Sch 24       sec","24",83085,105214,78034,57793,84562,71898,74360,68042,65898,70530,88389,101864,{"$f":"SUM(D119:O119)","v":949669}," "]
[6,"Sch 36       sec","36",127105,130644,141900,133616,123640,135071,126087,118102,98174,100915,126035,135991,1497280]
[7,"Sch 36       pri","36",2440,2508,2724,2565,2373,2593,2420,2267,1884,1937,2419,2610,28740]
[8,"Sch 48T    pri, ded fac","48T",55267,53169,54856,57683,57729,58231,57501,58413,56407,53443,42134,57091,661924]
[9,"Sch 48T     sec       ","48T",38906,39964,41595,42675,38018,36368,36594,35090,33007,32537,38784,43459,456997]
[10,"Sch 48T     pri","48T",8760,9857,9698,10605,8536,9284,9638,9148,7245,8288,9177,10138,110374]
[11,"General Service Total",null,{"$f":"SUM(D119:D124)","v":315563},341356,328807,304937,314858,313445,{"$f":"SUM(J119:J124)","v":306600},291062,262615,267650,306938,351153,3704984]
[12]
[13,"Irrigation"]
[14,"Sch 040               sec","40",40261,41810,27194,19170,4956,816,742,747,1354,7468,21356,35299,{"$f":"SUM(D128:O128)","v":201173}]
[15]
[16,"Street Lights"]
[17,"Sch 15,52,54,57   sec",null,0,0,0,1679,3053,0,0,0,3053,0,0,0,{"$f":"SUM(D131:O131)","v":7785}]
[18]
[19]
[20]
[21,{"$f":"Inputs!$C$4","v":"State of Washington"},null,{"$f":"+D116+D125+D128+D131","v":633153},692215,658970,637178,636257,716448,{"$f":"+J116+J125+J128+J131","v":679304},632038,595015,512742,536441,568315,{"$f":"SUM(D135:O135)","v":7498076}]
[]
[]
[]
[]
[null,{"$f":"Inputs!$C$3","v":"PacifiCorp"}]
[null,"Cost Of Service By Rate Schedule"]
[null,{"$f":"Inputs!C4","v":"State of Washington"}]
[null,{"$f":"+Method&\" - \"&IF(PeakMethod=1,\"(Coincident Peaks)\",IF(PeakMethod=2,\"(200 Top Hours)\",\"(100 Summer, 100 Winter Hours)\"))&\" - \"&TEXT(Demand,\"0%\")&\"D\"&\" / \"&TEXT(Engy,\"0%\")&\"E\"","v":"WCA Method - (100 Summer, 100 Winter Hours) - 38%D / 62%E"}]
[null,{"$f":"Inputs!$C$5","v":"12 Months Ending June 2012"}]
[null,"Non Coincident Peaks @ Input"]
[]
[]
[null,"A","B","C","D","E","F","G","H","I","J","K","L","M","N","O","P"]
[]
[null,null,"COS",null,null,null,null,null,null,null,null,null,null,null,null,"NCP","Maximum"]
[null,"Description","Sch","July","August","September","October","November","December","January","February","March","April","May","June","Total","NCP"]
[]
[1,"Residential"]
[{"$f":"A153+1","v":2},"Sch 16       sec",null,{"$f":"+D189*Inputs!$D$15","v":1060111.1099937374},{"$f":"+E189*Inputs!$D$15","v":1071525.2459483983},{"$f":"+F189*Inputs!$D$15","v":1108548.0699652017},{"$f":"+G189*Inputs!$D$15","v":1281602.4484559672},{"$f":"+H189*Inputs!$D$15","v":1327358.1105849012},{"$f":"+I189*Inputs!$D$15","v":1415050.793446772},{"$f":"+J189*Inputs!$D$15","v":1338554.6260112452},{"$f":"+K189*Inputs!$D$15","v":1293331.5295144902},{"$f":"+L189*Inputs!$D$15","v":1224616.3635277583},{"$f":"+M189*Inputs!$D$15","v":1200127.9380353116},{"$f":"+N189*Inputs!$D$15","v":1088847.5854077702},{"$f":"+O189*Inputs!$D$15","v":1052480.9905682441},{"$f":"SUM(D154:O154)","v":14462154.811459797},{"$f":"MAXA(D154:O154)","v":1415050.793446772}]
[3]
[4,"General Service"]
[5,"Sch 24       sec","24",{"$f":"+D192*Inputs!$D$15","v":237128.77446744867},{"$f":"+E192*Inputs!$D$15","v":251467.40139049912},{"$f":"+F192*Inputs!$D$15","v":247607.76116286396},{"$f":"+G192*Inputs!$D$15","v":223576.40641666114},{"$f":"+H192*Inputs!$D$15","v":226649.78570301831},{"$f":"+I192*Inputs!$D$15","v":238089.65408278879},{"$f":"+J192*Inputs!$D$15","v":231181.52068336948},{"$f":"+K192*Inputs!$D$15","v":223451.34272515131},{"$f":"+L192*Inputs!$D$15","v":221023.18996039568},{"$f":"+M192*Inputs!$D$15","v":232096.14332635267},{"$f":"+N192*Inputs!$D$15","v":232452.22290767374},{"$f":"+O192*Inputs!$D$15","v":238941.01451765888},{"$f":"SUM(D157:O157)","v":2803665.2173438817},{"$f":"MAXA(D157:O157)","v":251467.40139049912}]
[6,"Sch 36       sec","36",{"$f":"+D193*Inputs!$D$15","v":201746.88645401993},{"$f":"+E193*Inputs!$D$15","v":237803.34922340041},{"$f":"+F193*Inputs!$D$15","v":243837.89395422008},{"$f":"+G193*Inputs!$D$15","v":217809.85097188063},{"$f":"+H193*Inputs!$D$15","v":204198.71762166015},{"$f":"+I193*Inputs!$D$15","v":208943.23549577952},{"$f":"+J193*Inputs!$D$15","v":205668.79181551989},{"$f":"+K193*Inputs!$D$15","v":193941.82311541992},{"$f":"+L193*Inputs!$D$15","v":198150.50920979946},{"$f":"+M193*Inputs!$D$15","v":203750.57272417989},{"$f":"+N193*Inputs!$D$15","v":203852.15114921948},{"$f":"+O193*Inputs!$D$15","v":206398.13426018064},2526101.9159952793,243837.89395422008]
[7,"Sch 36       pri","36",{"$f":"D194*Inputs!$D$16","v":3732.4206323998087},{"$f":"E194*Inputs!$D$16","v":4282.7631277185819},{"$f":"F194*Inputs!$D$16","v":5465.4360416191957},{"$f":"G194*Inputs!$D$16","v":4431.245086981372},{"$f":"H194*Inputs!$D$16","v":4363.0680287296991},{"$f":"I194*Inputs!$D$16","v":4213.2931648497761},{"$f":"J194*Inputs!$D$16","v":3885.1716519845763},{"$f":"K194*Inputs!$D$16","v":3761.7619491142132},{"$f":"L194*Inputs!$D$16","v":3610.6773561287691},{"$f":"M194*Inputs!$D$16","v":3993.7054241021542},{"$f":"N194*Inputs!$D$16","v":4200.8085190622778},{"$f":"O194*Inputs!$D$16","v":4421.6305337659214},50361.981516456348,5465.4360416191957]
[8,"Sch 48T    pri, ded fac","48T",{"$f":"D195*Inputs!$D$16","v":61823.659649999994},{"$f":"E195*Inputs!$D$16","v":62416.481839999993},{"$f":"F195*Inputs!$D$16","v":62120.612629999996},{"$f":"G195*Inputs!$D$16","v":62762.204469999997},{"$f":"H195*Inputs!$D$16","v":63503.503149999997},{"$f":"I195*Inputs!$D$16","v":63997.702269999994},{"$f":"J195*Inputs!$D$16","v":63356.110429999993},{"$f":"K195*Inputs!$D$16","v":63553.356569999996},{"$f":"L195*Inputs!$D$16","v":63256.403589999994},{"$f":"M195*Inputs!$D$16","v":62070.759209999997},{"$f":"N195*Inputs!$D$16","v":63356.110429999993},{"$f":"O195*Inputs!$D$16","v":62317.858769999992},754534.76300999988,63997.702269999994]
[9,"Sch 48T     sec       ","48T",{"$f":"+D196*Inputs!$D$15","v":60188.305093285213},{"$f":"+E196*Inputs!$D$15","v":62538.199042001906},{"$f":"+F196*Inputs!$D$15","v":64036.759872019473},{"$f":"+G196*Inputs!$D$15","v":66700.007484214249},{"$f":"+H196*Inputs!$D$15","v":62061.545523454777},{"$f":"+I196*Inputs!$D$15","v":55005.829837087134},{"$f":"+J196*Inputs!$D$15","v":53588.613568901266},{"$f":"+K196*Inputs!$D$15","v":54631.159576962506},{"$f":"+L196*Inputs!$D$15","v":54195.732735926242},{"$f":"+M196*Inputs!$D$15","v":55202.558307268759},{"$f":"+N196*Inputs!$D$15","v":70262.770136186227},{"$f":"+O196*Inputs!$D$15","v":71865.061565920012},730276.54274322791,71865.061565920012]
[10,"Sch 48T     pri","48T",{"$f":"+D197*Inputs!$D$16","v":13924.19025872513},{"$f":"+E197*Inputs!$D$16","v":14653.610818983245},{"$f":"+F197*Inputs!$D$16","v":16113.839165858113},{"$f":"+G197*Inputs!$D$16","v":14375.818892366493},{"$f":"+H197*Inputs!$D$16","v":13566.979666291623},{"$f":"+I197*Inputs!$D$16","v":14124.297550983247},{"$f":"+J197*Inputs!$D$16","v":11861.862649999999},{"$f":"+K197*Inputs!$D$16","v":12553.30791},{"$f":"+L197*Inputs!$D$16","v":12203.929362135948},{"$f":"+M197*Inputs!$D$16","v":14198.152863735948},{"$f":"+N197*Inputs!$D$16","v":13672.574990464049},{"$f":"+O197*Inputs!$D$16","v":13463.949265464049},164712.51339500787,16113.839165858113]
[11,"General Service Total",null,{"$f":"SUM(D157:D162)","v":578544.23655587866},633161.8054426033,639182.30282658094,589655.5333221039,574343.59969315457,584374.01240148838,{"$f":"SUM(J157:J162)","v":569542.07079977531},551892.75184664794,552440.44221438607,571311.89185563929,587796.63813260582,597407.64891298953,7029652.9340038523,652747.33438811649]
[12]
[13,"Irrigation"]
[14,"Sch 40       sec","40",{"$f":"+D201*Inputs!$D$15","v":87377.988412405466},{"$f":"+E201*Inputs!$D$15","v":75515.70633868908},{"$f":"+F201*Inputs!$D$15","v":60859.041752961442},{"$f":"+G201*Inputs!$D$15","v":21270.456899999997},{"$f":"+H201*Inputs!$D$15","v":5499.0289199999997},{"$f":"+I201*Inputs!$D$15","v":905.40911999999992},{"$f":"+J201*Inputs!$D$15","v":823.30093999999997},{"$f":"+K201*Inputs!$D$15","v":828.84879000000001},{"$f":"+L201*Inputs!$D$15","v":1502.3577799999998},{"$f":"+M201*Inputs!$D$15","v":8286.268759999999},{"$f":"+N201*Inputs!$D$15","v":44269.483378789562},{"$f":"+O201*Inputs!$D$15","v":66511.780163874646},{"$f":"SUM(D166:O166)","v":373649.6712567202},{"$f":"MAXA(D166:O166)","v":87377.988412405466}]
[15]
[16,"Street Lights"]
[17,"Sch 15,52,54,57 sec",null,{"$f":"+D204*Inputs!$D$15","v":3387.51721},{"$f":"+E204*Inputs!$D$15","v":3387.51721},{"$f":"+F204*Inputs!$D$15","v":3387.51721},{"$f":"+G204*Inputs!$D$15","v":3387.51721},{"$f":"+H204*Inputs!$D$15","v":3387.51721},{"$f":"+I204*Inputs!$D$15","v":3387.51721},{"$f":"+J204*Inputs!$D$15","v":3387.51721},{"$f":"+K204*Inputs!$D$15","v":3387.51721},{"$f":"+L204*Inputs!$D$15","v":3387.51721},{"$f":"+M204*Inputs!$D$15","v":3387.51721},{"$f":"+N204*Inputs!$D$15","v":3387.51721},{"$f":"+O204*Inputs!$D$15","v":3387.51721},{"$f":"SUM(D169:O169)","v":40650.206519999985},{"$f":"MAXA(D169:O169)","v":3387.51721}]
[18]
[19]
[20,{"$f":"Inputs!$C$4","v":"State of Washington"},null,{"$f":"+D154+D163+D166+D169","v":1729420.8521720215},1783590.2749396905,1811976.9317547439,1895915.9558880713,1910588.2564080555,2003717.7321782603,{"$f":"+J154+J163+J166+J169","v":1912307.5149610203},1849440.6473611379,1781946.6807321443,1783113.6158609509,1724301.2241291655,1719787.9368551082,21906107.623240367,2158563.6334572942]
[]
[]
[null,{"$f":"Inputs!$C$3","v":"PacifiCorp"}]
[null,"Cost Of Service By Rate Schedule"]
[null,{"$f":"Inputs!$C$4","v":"State of Washington"}]
[null,{"$f":"+Method&\" - \"&IF(PeakMethod=1,\"(Coincident Peaks)\",IF(PeakMethod=2,\"(200 Top Hours)\",\"(100 Summer, 100 Winter Hours)\"))&\" - \"&TEXT(Demand,\"0%\")&\"D\"&\" / \"&TEXT(Engy,\"0%\")&\"E\"","v":"WCA Method - (100 Summer, 100 Winter Hours) - 38%D / 62%E"}]
[null,{"$f":"Inputs!$C$5","v":"12 Months Ending June 2012"}]
[null,"Non Coincident Peaks @ Sales"]
[]
[]
[null,"A","B","C","D","E","F","G","H","I","J","K","L","M","N","O","P"]
[]
[null,null,"COS",null,null,null,null,null,null,null,null,null,null,null,null,"NCP","Maximum"]
[null,"Description","Sch",{"$f":"D151","v":"July"},{"$f":"E151","v":"August"},"September","October","November","December",{"$f":"J151","v":"January"},"February","March","April","May","June","Total","NCP"]
[]
[1,"Residential"]
[{"$f":"A188+1","v":2},"Sch 16       sec",null,955425.17371030001,965712.16412520013,999078.9855216,1155044.2499851,1196281.5420252001,1275314.5754181999,1206372.4019315999,1165615.0846855,1103685.5390176,1081615.3447149,981323.92314840003,948548.52832019993,{"$f":"SUM(D189:O189)","v":13034017.512603801},{"$f":"MAXA(D189:O189)","v":1275314.5754181999}]
[3]
[4,"General Service"]
[5,"Sch 24       sec","24",213712.31600299999,226635.004002,223156.50311640001,201498.2438392,204268.12702490002,214578.3087888,208352.35332910001,201385.530183,199197.15742170002,209176.65701699999,209497.57375169999,215345.59740949998,{"$f":"SUM(D192:O192)","v":2526803.3718862995},{"$f":"MAXA(D192:O192)","v":226635.004002}]
[6,"Sch 36       sec","36",181824.38823510002,214320.27652459999,219758.9101672,196301.1355497,184034.1011578,188310.09805219999,185359.00557470002,174790.07463740002,178583.15312220002,183630.21055380002,183721.75811279999,186016.32547760001,2276649.4371650997,219758.9101672]
[7,"Sch 36       pri","36",3443.9231870229005,3951.7269602577871,5042.9851736246583,4088.7320067739206,4025.8246941045609,3887.6266780311103,3584.8673168518935,3470.9965667200731,3331.5900570497147,3685.0119712689543,3876.1070329149893,4079.8606104301848,46469.252255050749,5042.9851736246583]
[8,"Sch 48T    pri, ded fac","48T",57045,57592,57319,57911,58595,59051,58459,58641,58367,57273,58459,57501,696213,59051]
[9,"Sch 48T     sec       ","48T",54244.711999500003,56362.554000199998,57713.131998900004,60113.383999400001,55932.970000499998,49574.005999700006,48296.739790100008,49236.334415099998,48843.905959900003,49751.307540100002,63324.323959899993,64768.389165100001,658161.75882839994,64768.389165100001]
[10,"Sch 48T     pri","48T",12847.920000300001,13520.959999799999,14868.3199995,13264.639999600002,12518.319999900001,13032.559999800002,10945,11583,11260.626666299999,13100.706666299999,12615.7533337,12423.2533337,151981.05999889999,14868.3199995]
[11,"General Service Total",null,{"$f":"SUM(D192:D197)","v":523118.25942492287},572382.52148685767,577858.85045562463,533177.13539467391,519374.34287720453,528433.59951853112,{"$f":"SUM(J192:J197)","v":514996.96601075196},499106.93580222008,499583.43322714971,516616.89374846901,531494.5161910149,540134.42599633022,6356277.880133749,{"$f":"SUM(Q192:Q197)","v":590124.60850742459}]
[12]
[13,"Irrigation"]
[14,"Sch 40                 sec","40",78749.415009783494,68058.53288993852,54849.213436702004,19170,4956,816,742,747,1354,7468,39897.873391304347,59943.744120582436,{"$f":"SUM(D201:O201)","v":336751.77884831082},{"$f":"MAXA(D201:O201)","v":78749.415009783494}]
[15]
[16,"Street Lights"]
[17,"Sch 15,52,54,57   sec",null,3053,3053,3053,3053,3053,3053,3053,3053,3053,3053,3053,3053,{"$f":"SUM(D204:O204)","v":36636},{"$f":"MAXA(D204:O204)","v":3053}]
[18]
[19]
[20,{"$f":"Inputs!$C$4","v":"State of Washington"},null,{"$f":"+D189+D198+D201+D204","v":1560345.8481450065},1609206.2185019962,1634840.0494139267,1710444.385379774,1723664.8849024046,1807617.1749367309,{"$f":"+J189+J198+J201+J204","v":1725164.3679423518},1668522.0204877201,1607675.9722447498,1608753.238463369,1555769.3127307193,1551679.6984371126,19763683.171585858,1947241.5989354081]
[]
[]
[]
[]
[null,{"$f":"Inputs!$C$3","v":"PacifiCorp"}]
[null,"Cost Of Service By Rate Schedule"]
[null,{"$f":"Inputs!$C$4","v":"State of Washington"}]
[null,{"$f":"+Method&\" - \"&IF(PeakMethod=1,\"(Coincident Peaks)\",IF(PeakMethod=2,\"(200 Top Hours)\",\"(100 Summer, 100 Winter Hours)\"))&\" - \"&TEXT(Demand,\"0%\")&\"D\"&\" / \"&TEXT(Engy,\"0%\")&\"E\"","v":"WCA Method - (100 Summer, 100 Winter Hours) - 38%D / 62%E"}]
[null,{"$f":"Inputs!$C$5","v":"12 Months Ending June 2012"}]
[null,"Schedule Peaks @ Input"]
[]
[]
[null,"A","B","C","D","E","F","G","H","I","J","K","L","M","N","O"]
[]
[null,null,"COS",null,null,null,null,null,null,null,null,null,null,null,null,"Schedule","Max Sch"]
[null,"        Description","Sch",{"$f":"D186","v":"July"},{"$f":"E186","v":"August"},"September","October","November","December",{"$f":"J186","v":"January"},"February","March","April","May","June","Peaks Total","Peak"]
[]
[1,"Residential"]
[{"$f":"A225+1","v":2},"Sch 16       sec","16",{"$f":"D263*Inputs!$D$15","v":312495.96609},{"$f":"E263*Inputs!$D$15","v":344831.05502999999},{"$f":"F263*Inputs!$D$15","v":371399.70867999998},{"$f":"G263*Inputs!$D$15","v":358520.92968999996},{"$f":"H263*Inputs!$D$15","v":401514.54804999998},{"$f":"I263*Inputs!$D$15","v":446254.62958999997},{"$f":"J263*Inputs!$D$15","v":426850.46943},{"$f":"K263*Inputs!$D$15","v":377507.89152999996},{"$f":"L263*Inputs!$D$15","v":364886.53278000001},{"$f":"M263*Inputs!$D$15","v":305058.51837999996},{"$f":"N263*Inputs!$D$15","v":238927.03680999999},{"$f":"O263*Inputs!$D$15","v":232208.59045999998},{"$f":"SUM(D226:O226)","v":4180455.8765199999},{"$f":"MAXA(D226:O226)","v":446254.62958999997}]
[3]
[4,"General Service"]
[5,"Sch 24       sec","24",{"$f":"D266*Inputs!$D$15","v":115667.12465},{"$f":"E266*Inputs!$D$15","v":121987.23536999999},{"$f":"F266*Inputs!$D$15","v":111578.35919999999},{"$f":"G266*Inputs!$D$15","v":87941.18948999999},{"$f":"H266*Inputs!$D$15","v":99754.781279999996},{"$f":"I266*Inputs!$D$15","v":102145.90462999999},{"$f":"J266*Inputs!$D$15","v":100307.34714},{"$f":"K266*Inputs!$D$15","v":99102.354119999989},{"$f":"L266*Inputs!$D$15","v":95187.791159999993},{"$f":"M266*Inputs!$D$15","v":107249.92663},{"$f":"N266*Inputs!$D$15","v":109703.1859},{"$f":"O266*Inputs!$D$15","v":113025.23848},{"$f":"SUM(D229:O229)","v":1263650.43805},{"$f":"MAXA(D229:O229)","v":121987.23536999999}]
[6,"Sch 36       sec","36",{"$f":"D267*Inputs!$D$15","v":154573.08713},{"$f":"E267*Inputs!$D$15","v":163416.36002999998},{"$f":"F267*Inputs!$D$15","v":175630.50659},{"$f":"G267*Inputs!$D$15","v":161302.62917999999},{"$f":"H267*Inputs!$D$15","v":158447.70556999999},{"$f":"I267*Inputs!$D$15","v":159022.46283},{"$f":"J267*Inputs!$D$15","v":152606.92908999999},{"$f":"K267*Inputs!$D$15","v":147082.38006},{"$f":"L267*Inputs!$D$15","v":143391.95024000001},{"$f":"M267*Inputs!$D$15","v":149946.18023},{"$f":"N267*Inputs!$D$15","v":159859.07861},{"$f":"O267*Inputs!$D$15","v":155173.3645},1880452.6340599998,175630.50659]
[7,"Sch 36       pri","36",{"$f":"D268*Inputs!$D$16","v":2898.0009799999998},{"$f":"E268*Inputs!$D$16","v":3063.8177899999996},{"$f":"F268*Inputs!$D$16","v":3292.4932599999997},{"$f":"G268*Inputs!$D$16","v":3023.7182999999995},{"$f":"H268*Inputs!$D$16","v":2970.6135699999995},{"$f":"I268*Inputs!$D$16","v":2981.4512699999996},{"$f":"J268*Inputs!$D$16","v":2861.1527999999998},{"$f":"K268*Inputs!$D$16","v":2757.1108799999997},{"$f":"L268*Inputs!$D$16","v":2688.8333699999998},{"$f":"M268*Inputs!$D$16","v":2811.2993799999999},{"$f":"N268*Inputs!$D$16","v":2996.6240499999999},{"$f":"O268*Inputs!$D$16","v":2908.8386799999998},35253.954329999993,3292.4932599999997]
[8,"Sch 48T    pri, ded fac","48T",{"$f":"D269*Inputs!$D$16","v":61823.659649999994},{"$f":"E269*Inputs!$D$16","v":62416.481839999993},{"$f":"F269*Inputs!$D$16","v":62120.612629999996},{"$f":"G269*Inputs!$D$16","v":62762.204469999997},{"$f":"H269*Inputs!$D$16","v":63503.503149999997},{"$f":"I269*Inputs!$D$16","v":63997.702269999994},{"$f":"J269*Inputs!$D$16","v":63356.110429999993},{"$f":"K269*Inputs!$D$16","v":63553.356569999996},{"$f":"L269*Inputs!$D$16","v":63256.403589999994},{"$f":"M269*Inputs!$D$16","v":62070.759209999997},{"$f":"N269*Inputs!$D$16","v":63356.110429999993},{"$f":"O269*Inputs!$D$16","v":62317.858769999992},{"$f":"SUM(D232:O232)","v":754534.76300999988},63997.702269999994]
[9,"Sch 48T     sec       ","48T",{"$f":"D270*Inputs!$D$15","v":49006.378189999996},{"$f":"E270*Inputs!$D$15","v":48904.297749999998},{"$f":"F270*Inputs!$D$15","v":50838.278259999999},{"$f":"G270*Inputs!$D$15","v":53555.615189999997},{"$f":"H270*Inputs!$D$15","v":50514.283819999997},{"$f":"I270*Inputs!$D$15","v":43608.320139999996},{"$f":"J270*Inputs!$D$15","v":42698.472739999997},{"$f":"K270*Inputs!$D$15","v":43183.354829999997},{"$f":"L270*Inputs!$D$15","v":43264.353439999999},{"$f":"M270*Inputs!$D$15","v":47099.02736},{"$f":"N270*Inputs!$D$15","v":52855.476519999997},{"$f":"O270*Inputs!$D$15","v":54779.4709},580307.32913999981,54779.4709]
[10,"Sch 48T     pri","48T",{"$f":"D271*Inputs!$D$16","v":12221.674289999999},{"$f":"E271*Inputs!$D$16","v":13539.53861},{"$f":"F271*Inputs!$D$16","v":13644.664299999999},{"$f":"G271*Inputs!$D$16","v":11577.91491},{"$f":"H271*Inputs!$D$16","v":12231.428219999998},{"$f":"I271*Inputs!$D$16","v":11906.297219999999},{"$f":"J271*Inputs!$D$16","v":11861.862649999999},{"$f":"K271*Inputs!$D$16","v":11125.982819999999},{"$f":"L271*Inputs!$D$16","v":10376.01398},{"$f":"M271*Inputs!$D$16","v":12140.391539999999},{"$f":"N271*Inputs!$D$16","v":12340.888989999999},{"$f":"O271*Inputs!$D$16","v":11641.857339999999},144608.51486999998,13644.664299999999]
[11,"General Service Total",null,{"$f":"SUM(D229:D234)","v":396189.92489000002},{"$f":"SUM(E229:E234)","v":413327.73139000003},417104.91424000001,380163.27153999999,387422.31560999999,383662.13836000004,{"$f":"SUM(J229:J234)","v":373691.87485000002},366804.53927999997,358165.34577999997,381317.58435000002,401111.36450000003,399846.62866999995,4658807.6334600002,{"$f":"SUM(Q229:Q234)","v":433332.07269000006}]
[12]
[13,"Irrigation"]
[14,"Sch 040                   sec","40",{"$f":"D275*Inputs!$D$15","v":62444.38046},{"$f":"E275*Inputs!$D$15","v":61020.802149999996},{"$f":"F275*Inputs!$D$15","v":57567.820309999996},{"$f":"G275*Inputs!$D$15","v":21270.456899999997},{"$f":"H275*Inputs!$D$15","v":5499.0289199999997},{"$f":"I275*Inputs!$D$15","v":905.40911999999992},{"$f":"J275*Inputs!$D$15","v":823.30093999999997},{"$f":"K275*Inputs!$D$15","v":828.84879000000001},{"$f":"L275*Inputs!$D$15","v":1502.3577799999998},{"$f":"M275*Inputs!$D$15","v":8286.268759999999},{"$f":"N275*Inputs!$D$15","v":35531.760109999996},{"$f":"O275*Inputs!$D$15","v":50621.912109999997},{"$f":"SUM(D238:O238)","v":306302.34634999995},{"$f":"MAXA(D238:O238)","v":62444.38046}]
[15]
[16,"Street Lights"]
[17,"Sch 15,52,54,57 sec",null,{"$f":"D278*Inputs!$D$15","v":3387.51721},{"$f":"E278*Inputs!$D$15","v":3387.51721},{"$f":"F278*Inputs!$D$15","v":3387.51721},{"$f":"G278*Inputs!$D$15","v":3387.51721},{"$f":"H278*Inputs!$D$15","v":3387.51721},{"$f":"I278*Inputs!$D$15","v":3387.51721},{"$f":"J278*Inputs!$D$15","v":3387.51721},{"$f":"K278*Inputs!$D$15","v":3387.51721},{"$f":"L278*Inputs!$D$15","v":3387.51721},{"$f":"M278*Inputs!$D$15","v":3387.51721},{"$f":"N278*Inputs!$D$15","v":3387.51721},{"$f":"O278*Inputs!$D$15","v":3387.51721},{"$f":"SUM(D241:O241)","v":40650.206519999985},{"$f":"MAXA(D241:O241)","v":3387.51721}]
[18]
[19]
[20]
[21,{"$f":"Inputs!$C$4","v":"State of Washington"},null,{"$f":"+D226+D235+D238+D241","v":774517.78865},822567.10577999998,849459.96043999994,763342.17533999996,797823.40978999995,834209.69427999994,{"$f":"+J226+J235+J238+J241","v":804753.16243000003},748528.79680999985,727941.75354999991,698049.88869999989,678957.67862999998,686064.64844999986,{"$f":"SUM(D245:O245)","v":9186216.0628500003},{"$f":"+Q226+Q235+Q238+Q241","v":945418.59995000006}]
[]
[]
[]
[null,{"$f":"Inputs!$C$3","v":"PacifiCorp"}]
[null,"Cost Of Service By Rate Schedule"]
[null,{"$f":"Inputs!$C$4","v":"State of Washington"}]
[null,{"$f":"+Method&\" - \"&IF(PeakMethod=1,\"(Coincident Peaks)\",IF(PeakMethod=2,\"(200 Top Hours)\",\"(100 Summer, 100 Winter Hours)\"))&\" - \"&TEXT(Demand,\"0%\")&\"D\"&\" / \"&TEXT(Engy,\"0%\")&\"E\"","v":"WCA Method - (100 Summer, 100 Winter Hours) - 38%D / 62%E"}]
[null,{"$f":"Inputs!$C$5","v":"12 Months Ending June 2012"}]
[null,"Schedule Peaks @ Sales"]
[]
[]
[null,"A","B","C","D","E","F","G","H","I","J","K","L","M","N","O"]
[]
[null,null,"COS",null,null,null,null,null,null,null,null,null,null,null,null,"Schedule","Max Sch"]
[null,"        Description","Sch",{"$f":"D223","v":"July"},{"$f":"E223","v":"August"},"September","October","November","December",{"$f":"J223","v":"January"},"February","March","April","May","June","Peaks Total","Peak"]
[]
[1,"Residential"]
[{"$f":"A262+1","v":2},"Sch 16       sec","16",281637,310779,334724,323117,361865,402187,384699,340229,328854,274934,215333,209278,{"$f":"SUM(D263:O263)","v":3767636},{"$f":"MAXA(D263:O263)","v":402187}]
[3]
[4,"General Service"]
[5,"Sch 24       sec","24",104245,109941,100560,79257,89904,92059,90402,89316,85788,96659,98870,101864,{"$f":"SUM(D266:O266)","v":1138865},{"$f":"MAXA(D266:O266)","v":109941}]
[6,"Sch 36       sec","36",139309,147279,158287,145374,142801,143319,137537,132558,129232,135139,144073,139850,1694758,158287]
[7,"Sch 36       pri","36",2674,2827,3038,2790,2741,2751,2640,2544,2481,2594,2765,2684,32529,3038]
[8,"Sch 48T    pri, ded fac","48T",57045,57592,57319,57911,58595,59051,58459,58641,58367,57273,58459,57501,696213,59051]
[9,"Sch 48T     sec       ","48T",44167,44075,45818,48267,45526,39302,38482,38919,38992,42448,47636,49370,523002,49370]
[10,"Sch 48T     pri","48T",11277,12493,12590,10683,11286,10986,10945,10266,9574,11202,11387,10742,133431,12590]
[11,"General Service Total",null,{"$f":"SUM(D266:D271)","v":358717},374207,377612,344282,350853,347468,{"$f":"SUM(J266:J271)","v":338465},332244,324434,345315,363190,362011,4218798,{"$f":"SUM(Q266:Q271)","v":392277}]
[12]
[13,"Irrigation"]
[14,"Sch 040                sec","40",56278,54995,51883,19170,4956,816,742,747,1354,7468,32023,45623,{"$f":"SUM(D275:O275)","v":276055},{"$f":"MAXA(D275:O275)","v":56278}]
[15]
[16,"Street Lights"]
[17,"Sch 15,52,54,57    sec",null,3053,3053,3053,3053,3053,3053,3053,3053,3053,3053,3053,3053,{"$f":"SUM(D278:O278)","v":36636},{"$f":"MAXA(D278:O278)","v":3053}]
[18]
[19]
[20]
[21,{"$f":"Inputs!$C$4","v":"State of Washington"},null,{"$f":"+D263+D272+D275+D278","v":699685},743034,767272,689622,720727,753524,{"$f":"+J263+J272+J275+J278","v":726959},676273,657695,630770,613599,619965,{"$f":"SUM(D282:O282)","v":8299125},{"$f":"+Q263+Q272+Q275+Q278","v":853795}]

{"sheet":"Energy Factor","index":27,"n_rows":206,"n_cols":16,"rows_kept":206,"cut":false,"hidden":false,"merged":[]}
[null,"Energy Factors ( F30-F31 )"]
[null,{"$f":"Inputs!$C$3","v":"PacifiCorp"}]
[null,"Cost Of Service By Rate Schedule"]
[null,{"$f":"Inputs!$C$4","v":"State of Washington"}]
[null,{"$f":"+Method&\" - \"&IF(PeakMethod=1,\"(Coincident Peaks)\",IF(PeakMethod=2,\"(200 Top Hours)\",\"(100 Summer, 100 Winter Hours)\"))&\" - \"&TEXT(Demand,\"0%\")&\"D\"&\" / \"&TEXT(Engy,\"0%\")&\"E\"","v":"WCA Method - (100 Summer, 100 Winter Hours) - 38%D / 62%E"}]
[null,{"$f":"Inputs!$C$5","v":"12 Months Ending June 2012"}]
[null,"Energy Factor"]
[]
[]
[null,"A","B","C","D","E","F","G","H","I","J","K"]
[]
[null,null,null,{"$f":"'Hot Sheet'!$J$10","v":"Small General"},{"$f":"'Hot Sheet'!$K$10","v":"Large General"},{"$f":"'Hot Sheet'!$L$10","v":"Large General"},{"$f":"'Hot Sheet'!$M$10","v":"Large General"},{"$f":"'Hot Sheet'!$N$10","v":"Agricultural"},{"$f":"'Hot Sheet'!$O$10","v":"Street & Area"}]
[null,null,{"$f":"'Hot Sheet'!$I$11","v":"Residential"},{"$f":"'Hot Sheet'!$J$11","v":"Service"},{"$f":"'Hot Sheet'!$K$11","v":"Service <1,000 kW"},{"$f":"'Hot Sheet'!$L$11","v":"Service >1,000 kW"},{"$f":"'Hot Sheet'!$M$11","v":"Dedicated Facilities"},{"$f":"'Hot Sheet'!$N$11","v":"Pumping"},{"$f":"'Hot Sheet'!$O$11","v":"Lighting"},{"$f":"'Hot Sheet'!P$11","v":"-"},{"$f":"'Hot Sheet'!Q$11","v":"-"}]
[null,"Description",{"$f":"'Hot Sheet'!$I$12","v":"Schedule 16"},{"$f":"'Hot Sheet'!$J$12","v":"Schedule 24"},{"$f":"'Hot Sheet'!$K$12","v":"Schedule 36"},{"$f":"'Hot Sheet'!$L$12","v":"Schedule 48T"},{"$f":"'Hot Sheet'!$M$12","v":"Schedule 48T"},{"$f":"'Hot Sheet'!$N$12","v":"Schedule 40"},{"$f":"'Hot Sheet'!$O$12","v":"Sch. 15,51-54,57"},{"$f":"'Hot Sheet'!P$12","v":"-"},{"$f":"'Hot Sheet'!Q$12","v":"-"},"Total"]
[]
[]
[1,"Secondary",{"$f":"$D$64","v":1601807.791},{"$f":"$D$65","v":537395.79200000002},{"$f":"$D$66","v":844494.64299999992},{"$f":"$D$69","v":294411.34899999999},0,{"$f":"$D$71","v":153555.06599999999},{"$f":"$D$72","v":13131.891000000001},0,0,{"$f":"SUM(C17:K17)","v":3444796.5319999997}]
[{"$f":"A17+1","v":2}]
[3,"Primary",0,0,{"$f":"$D$67","v":16209.75},{"$f":"$D$70","v":63943.421000000002},{"$f":"$D$68","v":473928.141},0,0,0,0,{"$f":"SUM(C19:K19)","v":554081.31200000003}]
[4]
[5,"Sub-Transmission",0,0,0,0,0,0,0,0,0,{"$f":"SUM(C21:K21)","v":0}]
[6]
[7,"Transmission",0,0,0,0,0,0,0,0,0,{"$f":"SUM(C23:K23)","v":0}]
[8]
[9]
[10,"Total MWH"]
[11,"@ Sales",{"$f":"C17+C19+C21+C23","v":1601807.791},537395.79200000002,860704.39299999992,358354.77,{"$f":"G17+G19+G21+G23","v":473928.141},153555.06599999999,13131.891000000001,0,0,{"$f":"SUM(C27:K27)","v":3998877.8439999996}]
[12]
[13]
[14,"Total MWH"]
[15,"@ Input",{"$f":"(C17*Inputs!$D$20)+(C19*Inputs!$D$21)+(C21*Inputs!$D$22)+(C23*Inputs!$D$22)","v":1756702.6043896999},{"$f":"(D17*Inputs!$D$20)+(D19*Inputs!$D$21)+(D21*Inputs!$D$22)+(D23*Inputs!$D$22)","v":589361.96508640004},{"$f":"(E17*Inputs!$D$20)+(E19*Inputs!$D$21)+(E21*Inputs!$D$22)+(E23*Inputs!$D$22)","v":943514.67527809995},{"$f":"(F17*Inputs!$D$20)+(F19*Inputs!$D$21)+(F21*Inputs!$D$22)+(F23*Inputs!$D$22)","v":391351.54165510001},{"$f":"(G17*Inputs!$D$20)+(G19*Inputs!$D$21)+(G21*Inputs!$D$22)+(G23*Inputs!$D$22)","v":507482.25338279997},{"$f":"(H17*Inputs!$D$20)+(H19*Inputs!$D$21)+(H21*Inputs!$D$22)+(H23*Inputs!$D$22)","v":168403.84088219999},{"$f":"(I17*Inputs!$D$20)+(I19*Inputs!$D$21)+(I21*Inputs!$D$22)+(I23*Inputs!$D$22)","v":14401.744859700002},{"$f":"(J17*Inputs!$D$20)+(J19*Inputs!$D$21)+(J21*Inputs!$D$22)+(J23*Inputs!$D$22)","v":0},{"$f":"(K17*Inputs!$D$20)+(K19*Inputs!$D$21)+(K21*Inputs!$D$22)+(K23*Inputs!$D$22)","v":0},{"$f":"(L17*Inputs!$D$20)+(L19*Inputs!$D$21)+(L21*Inputs!$D$22)+(L23*Inputs!$D$22)","v":4371218.6255339999}]
[16]
[17,"Energy"]
[{"$f":"A33+1","v":18},"FACTOR 30",{"$f":"C31/$L$31","v":0.40187937389544232},0.13482783991715858,0.2158470568748635,8.9529162272749846E-2,0.11609628729581206,3.8525604713177057E-2,3.2946750307966226E-3,0,0,{"$f":"SUM(C34:K34)","v":0.99999999999999989}]
[19]
[20,"MWH @ sales"]
[21,"(less special contracts)",{"$f":"C17+C19+C21+C23","v":1601807.791},537395.79200000002,860704.39299999992,358354.77,{"$f":"G17+G19+G21+G23","v":473928.141},153555.06599999999,13131.891000000001,0,0,{"$f":"SUM(C37:K37)","v":3998877.8439999996}]
[22]
[23,"FACTOR 31  ",{"$f":"C37/$L$37","v":0.40056432166423539},0.13438664869603856,0.21523648047699653,8.9613832675004834E-2,0.11851528340909231,3.8399539068290682E-2,3.2838940103417681E-3,0,0,{"$f":"SUM(C39:K39)","v":1}]
[24]
[25,"FACTOR 32 - SSECT",{"$f":"$P138/$P$155","v":{"$error":"#REF!"}},{"$f":"$P141/$P$155","v":{"$error":"#REF!"}},{"$f":"($P142+P143)/$P$155","v":{"$error":"#REF!"}},{"$f":"($P145+$P146)/$P$155","v":{"$error":"#REF!"}},{"$f":"$P144/$P$155","v":{"$error":"#REF!"}},{"$f":"$P150/$P$155","v":{"$error":"#REF!"}},{"$f":"$P153/$P$155","v":{"$error":"#REF!"}},0,0,{"$f":"SUM(C41:K41)","v":{"$error":"#REF!"}}]
[26]
[27,"FACTOR 33 - SSECH",{"$f":"$P164/$P$181","v":{"$error":"#REF!"}},{"$f":"$P167/$P$181","v":{"$error":"#REF!"}},{"$f":"($P168+P169)/$P$181","v":{"$error":"#REF!"}},{"$f":"($P171+$P172)/$P$181","v":{"$error":"#REF!"}},{"$f":"$P170/$P$181","v":{"$error":"#REF!"}},{"$f":"$P176/$P$181","v":{"$error":"#REF!"}},{"$f":"$P179/$P$181","v":{"$error":"#REF!"}},0,0,{"$f":"SUM(C43:K43)","v":{"$error":"#REF!"}}]
[28]
[29,"FACTOR 34 - SSEP",{"$f":"$P189/$P$206","v":{"$error":"#REF!"}},{"$f":"$P192/$P$206","v":{"$error":"#REF!"}},{"$f":"($P193+P194)/$P$206","v":{"$error":"#REF!"}},{"$f":"($P196+$P197)/$P$206","v":{"$error":"#REF!"}},{"$f":"$P195/$P$206","v":{"$error":"#REF!"}},{"$f":"$P201/$P$206","v":{"$error":"#REF!"}},{"$f":"$P204/$P$206","v":{"$error":"#REF!"}},{"$f":"J43/$L$37","v":0},{"$f":"K43/$L$37","v":0},{"$f":"SUM(C45:K45)","v":{"$error":"#REF!"}}]
[]
[]
[]
[]
[]
[]
[null,{"$f":"Inputs!$C$3","v":"PacifiCorp"}]
[null,"Cost Of Service By Rate Schedule"]
[null,{"$f":"Inputs!$C$4","v":"State of Washington"}]
[null,{"$f":"+Method&\" - \"&IF(PeakMethod=1,\"(Coincident Peaks)\",IF(PeakMethod=2,\"(200 Top Hours)\",\"(100 Summer, 100 Winter Hours)\"))&\" - \"&TEXT(Demand,\"0%\")&\"D\"&\" / \"&TEXT(Engy,\"0%\")&\"E\"","v":"WCA Method - (100 Summer, 100 Winter Hours) - 38%D / 62%E"}]
[null,{"$f":"Inputs!$C$5","v":"12 Months Ending June 2012"}]
[null,"Energy Factor",null,null,null,null,null,null,null,null,null,null,null," "]
[]
[null,"A","B","C"]
[]
[null,null,null,"MWH @ Sales"]
[null,"Rate Schedules   ","Voltage level","(Inc Unbilled)"]
[]
[1,"Sch 016                   ","secondary",{"$f":"+$P111","v":1601807.791}]
[{"$f":"+A64+1","v":2},"Sch 024                    ","secondary",{"$f":"+$P114","v":537395.79200000002}]
[3,"Sch 036                    ","secondary",844494.64299999992]
[4,"Sch 036                    ","primary",16209.75]
[5,"Sch 48T, ded fac","primary",473928.141]
[6,"Sch 48T                   ","secondary",294411.34899999999]
[7,"Sch 48T                  ","primary",63943.421000000002]
[8,"Sch 40                    ","secondary",{"$f":"+$P123","v":153555.06599999999}]
[9,"Sch 15,51,52,53,54,57 ","secondary",{"$f":"+$P126","v":13131.891000000001}]
[10]
[11]
[12,{"$f":"Inputs!$C$4","v":"State of Washington"},null,{"$f":"SUM(D64:D72)","v":3998877.8439999996}]
[]
[null,"Sch 47 - partial requirements",null,1734.4743654971501]
[]
[null,"Total mWh including Sch 47",null,{"$f":"+D75+D77","v":4000612.3183654966}]
[]
[]
[]
[]
[null,"mWh by month @ INPUT",null,{"$f":"'Demand Factors'!D$60","v":"2011-07-01"},{"$f":"'Demand Factors'!E$60","v":"2011-08-01"},{"$f":"'Demand Factors'!F$60","v":"2011-09-01"},{"$f":"'Demand Factors'!G$60","v":"2011-10-01"},{"$f":"'Demand Factors'!H$60","v":"2011-11-01"},{"$f":"'Demand Factors'!I$60","v":"2011-12-01"},{"$f":"'Demand Factors'!J$60","v":"2012-01-01"},{"$f":"'Demand Factors'!K$60","v":"2012-02-01"},{"$f":"'Demand Factors'!L$60","v":"2012-03-01"},{"$f":"'Demand Factors'!M$60","v":"2012-04-01"},{"$f":"'Demand Factors'!N$60","v":"2012-05-01"},{"$f":"'Demand Factors'!O$60","v":"2012-06-01"},"Total"]
[null,null," "]
[null,"Residential"]
[null,"Sch 16       sec","16",{"$f":"D111*Inputs!$D$20","v":124970.87216130001},{"$f":"E111*Inputs!$D$20","v":136862.76642939998},{"$f":"F111*Inputs!$D$20","v":112182.10979359999},{"$f":"G111*Inputs!$D$20","v":122326.76245900001},{"$f":"H111*Inputs!$D$20","v":182647.7179703},{"$f":"I111*Inputs!$D$20","v":226413.06246350001},{"$f":"J111*Inputs!$D$20","v":212857.8921381},{"$f":"K111*Inputs!$D$20","v":171585.7744579},{"$f":"L111*Inputs!$D$20","v":156478.05419729999},{"$f":"M111*Inputs!$D$20","v":114830.84098969999},{"$f":"N111*Inputs!$D$20","v":99919.170111200001},{"$f":"O111*Inputs!$D$20","v":95627.581218399995},{"$f":"SUM(D87:O87)","v":1756702.6043897003}]
[]
[null,"General Service"]
[null,"Sch 24       sec","24",{"$f":"D114*Inputs!$D$20","v":49618.8326887},{"$f":"E114*Inputs!$D$20","v":56869.7316374},{"$f":"F114*Inputs!$D$20","v":49172.947369699999},{"$f":"G114*Inputs!$D$20","v":44759.703739299999},{"$f":"H114*Inputs!$D$20","v":48036.053314699995},{"$f":"I114*Inputs!$D$20","v":53499.5297661},{"$f":"J114*Inputs!$D$20","v":52269.455692300005},{"$f":"K114*Inputs!$D$20","v":49073.481066500004},{"$f":"L114*Inputs!$D$20","v":48817.115377799993},{"$f":"M114*Inputs!$D$20","v":44433.510064899994},{"$f":"N114*Inputs!$D$20","v":46653.049909400004},{"$f":"O114*Inputs!$D$20","v":46158.554459600004},{"$f":"SUM(D90:O90)","v":589361.96508640004}]
[null,"Sch 36       sec","36",{"$f":"D115*Inputs!$D$20","v":75319.480642999988},{"$f":"E115*Inputs!$D$20","v":78730.002689799992},{"$f":"F115*Inputs!$D$20","v":83077.087892700001},{"$f":"G115*Inputs!$D$20","v":89541.372186200009},{"$f":"H115*Inputs!$D$20","v":84305.946822900005},{"$f":"I115*Inputs!$D$20","v":83289.697444800011},{"$f":"J115*Inputs!$D$20","v":79488.299454299995},{"$f":"K115*Inputs!$D$20","v":72609.4899783},{"$f":"L115*Inputs!$D$20","v":74020.585354099996},{"$f":"M115*Inputs!$D$20","v":68069.722262299998},{"$f":"N115*Inputs!$D$20","v":68514.357343299998},{"$f":"O115*Inputs!$D$20","v":69191.232906399993},926157.27497809997]
[null,"Sch 36        pri","36",{"$f":"D116*Inputs!$D$21","v":1411.5853123999998},{"$f":"E116*Inputs!$D$21","v":1475.5035059999998},{"$f":"F116*Inputs!$D$21","v":1556.9731824},{"$f":"G116*Inputs!$D$21","v":1678.1224235999998},{"$f":"H116*Inputs!$D$21","v":1580.0039488},{"$f":"I116*Inputs!$D$21","v":1560.9576291999999},{"$f":"J116*Inputs!$D$21","v":1489.7151636000001},{"$f":"K116*Inputs!$D$21","v":1360.7972684000001},{"$f":"L116*Inputs!$D$21","v":1387.2428159999999},{"$f":"M116*Inputs!$D$21","v":1275.7157835999999},{"$f":"N116*Inputs!$D$21","v":1284.0487491999997},{"$f":"O116*Inputs!$D$21","v":1296.7345168000002},17357.400299999998]
[null,"Sch 48T    pri, ded fac","48T",{"$f":"D117*Inputs!$D$21","v":43254.789317999996},{"$f":"E117*Inputs!$D$21","v":43393.265174},{"$f":"F117*Inputs!$D$21","v":41869.147347999999},{"$f":"G117*Inputs!$D$21","v":42749.223947599996},{"$f":"H117*Inputs!$D$21","v":42784.283010400002},{"$f":"I117*Inputs!$D$21","v":44357.374945199997},{"$f":"J117*Inputs!$D$21","v":43592.728444},{"$f":"K117*Inputs!$D$21","v":40918.124894399996},{"$f":"L117*Inputs!$D$21","v":42759.283042800002},{"$f":"M117*Inputs!$D$21","v":35432.394007599993},{"$f":"N117*Inputs!$D$21","v":43993.605981600005},{"$f":"O117*Inputs!$D$21","v":42378.033269200001},507482.25338279997]
[null,"Sch 48T     sec       ","48T",{"$f":"D118*Inputs!$D$20","v":27804.8577301},{"$f":"E118*Inputs!$D$20","v":27965.242428199999},{"$f":"F118*Inputs!$D$20","v":27936.522048600003},{"$f":"G118*Inputs!$D$20","v":31389.3295573},{"$f":"H118*Inputs!$D$20","v":26963.870882299998},{"$f":"I118*Inputs!$D$20","v":24654.550788999997},{"$f":"J118*Inputs!$D$20","v":25363.683589200002},{"$f":"K118*Inputs!$D$20","v":24103.554451900003},{"$f":"L118*Inputs!$D$20","v":25686.7385082},{"$f":"M118*Inputs!$D$20","v":24270.840683100003},{"$f":"N118*Inputs!$D$20","v":27362.7680898},{"$f":"O118*Inputs!$D$20","v":29378.967690599999},322880.92644830007]
[null,"Sch 48T     pri","48T",{"$f":"D119*Inputs!$D$21","v":5720.9685140000001},{"$f":"E119*Inputs!$D$21","v":6475.3085652},{"$f":"F119*Inputs!$D$21","v":5988.0442376000001},{"$f":"G119*Inputs!$D$21","v":5622.8361187999999},{"$f":"H119*Inputs!$D$21","v":5604.2041988000001},{"$f":"I119*Inputs!$D$21","v":6008.4922343999997},{"$f":"J119*Inputs!$D$21","v":6123.1588523999999},{"$f":"K119*Inputs!$D$21","v":5527.8786455999998},{"$f":"L119*Inputs!$D$21","v":5497.5343151999996},{"$f":"M119*Inputs!$D$21","v":5245.9048815999995},{"$f":"N119*Inputs!$D$21","v":5304.7367751999991},{"$f":"O119*Inputs!$D$21","v":5351.5478679999997},68470.615206799994]
[null,"Gen Service Total",null,{"$f":"SUM(D90:D95)","v":203130.51420619996},214909.05400059998,209600.72207899997,215740.58797280001,209274.36217789998,{"$f":"SUM(I90:I95)","v":213370.60280870003},208327.0411958,193593.3263051,198168.49941409999,178728.08768309996,193112.56684850002,193755.0707106,2431710.4354023999]
[]
[null,"Irrigation"]
[null,"Sch 040                   sec","40",{"$f":"D123*Inputs!$D$20","v":34617.292728699998},{"$f":"E123*Inputs!$D$20","v":33906.963428800002},{"$f":"F123*Inputs!$D$20","v":26511.728889800001},{"$f":"G123*Inputs!$D$20","v":15641.746261900002},{"$f":"H123*Inputs!$D$20","v":3913.2920980999997},{"$f":"I123*Inputs!$D$20","v":666.08732520000001},{"$f":"J123*Inputs!$D$20","v":605.81378990000007},{"$f":"K123*Inputs!$D$20","v":570.24122869999997},{"$f":"L123*Inputs!$D$20","v":1103.5697288000001},{"$f":"M123*Inputs!$D$20","v":5896.6433404999998},{"$f":"N123*Inputs!$D$20","v":17987.822255700001},{"$f":"O123*Inputs!$D$20","v":26982.6398061},{"$f":"SUM(D99:O99)","v":168403.84088219999}]
[]
[null,"Street Lights"]
[null,"Sch 15,52,54,57      sec",null,{"$f":"D126*Inputs!$D$20","v":894.2667272000001},{"$f":"E126*Inputs!$D$20","v":1018.6072831},{"$f":"F126*Inputs!$D$20","v":1145.9045421999999},{"$f":"G126*Inputs!$D$20","v":1357.6400244000001},{"$f":"H126*Inputs!$D$20","v":1460.4381022},{"$f":"I126*Inputs!$D$20","v":1588.0709515000001},{"$f":"J126*Inputs!$D$20","v":1550.4563349},{"$f":"K126*Inputs!$D$20","v":1329.4010960999999},{"$f":"L126*Inputs!$D$20","v":1248.7585517},{"$f":"M126*Inputs!$D$20","v":1042.8838343},{"$f":"N126*Inputs!$D$20","v":932.55142750000005},{"$f":"O126*Inputs!$D$20","v":832.76598460000002},{"$f":"SUM(D102:O102)","v":14401.744859700002}]
[]
[null,{"$f":"Inputs!$C$4","v":"State of Washington"},null,{"$f":"D87+D96+D99+D102","v":363612.94582339993},386697.39114189998,349440.46530459996,355066.73671810003,397295.81034849997,{"$f":"I87+I96+I99+I102","v":442037.82354889996},423341.20345869998,367078.74308779993,356998.88189189992,300498.45584759995,311952.11064289999,317198.05771969998,{"$f":"SUM(D104:O104)","v":4371218.6255339989}]
[]
[]
[]
[null,"mWh by month @ SALES",null,{"$f":"'Demand Factors'!D$60","v":"2011-07-01"},{"$f":"'Demand Factors'!E$60","v":"2011-08-01"},{"$f":"'Demand Factors'!F$60","v":"2011-09-01"},{"$f":"'Demand Factors'!G$60","v":"2011-10-01"},{"$f":"'Demand Factors'!H$60","v":"2011-11-01"},{"$f":"'Demand Factors'!I$60","v":"2011-12-01"},{"$f":"'Demand Factors'!J$60","v":"2012-01-01"},{"$f":"'Demand Factors'!K$60","v":"2012-02-01"},{"$f":"'Demand Factors'!L$60","v":"2012-03-01"},{"$f":"'Demand Factors'!M$60","v":"2012-04-01"},{"$f":"'Demand Factors'!N$60","v":"2012-05-01"},{"$f":"'Demand Factors'!O$60","v":"2012-06-01"},"Total"]
[]
[null,"Residential"]
[null,"Sch 16       sec","16",113951.739,124795.08199999999,102290.60799999999,111540.77,166543.00899999999,206449.405,194089.443,156456.43700000001,142680.81899999999,104705.791,91108.936000000002,87195.751999999993,{"$f":"SUM(D111:O111)","v":1601807.791}]
[]
[null,"General Service"]
[null,"Sch 24       sec","24",45243.760999999999,51855.322,44837.190999999999,40813.078999999998,43800.540999999997,48782.283000000003,47660.669000000002,44746.495000000003,44512.733999999997,40515.646999999997,42539.482000000004,42088.588000000003,{"$f":"SUM(D114:O114)","v":537395.79200000002}]
[null,"Sch 36       sec","36",68678.289999999994,71788.093999999997,75751.880999999994,81646.186000000002,76872.387000000002,75945.744000000006,72479.528999999995,66207.248999999996,67493.922999999995,62067.769,62473.199000000001,63090.392,844494.64299999992]
[null,"Sch 36       pri","36",1318.2529999999999,1377.9449999999999,1454.028,1567.1669999999999,1475.5360000000001,1457.749,1391.2170000000001,1270.8230000000001,1295.52,1191.367,1199.1489999999999,1210.9960000000001,16209.75]
[null,"Sch 48T    pri, ded fac","48T",40394.834999999999,40524.154999999999,39100.81,39922.697,39955.438000000002,41424.519,40710.43,38212.667999999998,39932.091,33089.646999999997,41084.802000000003,39576.048999999999,473928.141]
[null,"Sch 48T     sec       ","48T",25353.203000000001,25499.446,25473.258000000002,28621.618999999999,24586.368999999999,22480.67,23127.276000000002,21978.257000000001,23421.846000000001,22130.793000000001,24950.094000000001,26788.518,294411.34899999999]
[null,"Sch 48T     pri","48T",5342.7049999999999,6047.1689999999999,5592.1220000000003,5251.0609999999997,5233.6610000000001,5611.2179999999998,5718.3029999999999,5162.3819999999996,5134.0439999999999,4899.0519999999997,4953.9939999999997,4997.71,{"$f":"SUM(D119:O119)","v":63943.421000000002}]
[null,"Gen Service Total",null,{"$f":"SUM(D114:D119)","v":186331.04699999999},197092.13099999999,192209.28999999998,197821.80900000001,191923.932,{"$f":"SUM(I114:I119)","v":195702.18299999996},191087.424,177577.87400000004,181790.15799999997,163894.27499999999,177200.72000000003,177752.25300000003,2230383.0959999999]
[]
[null,"Irrigation"]
[null,"Sch 040                   sec","40",31564.960999999999,30917.263999999999,24174.094000000001,14262.557000000001,3568.2429999999999,607.35599999999999,552.39700000000005,519.96100000000001,1006.264,5376.7150000000001,16401.771000000001,24603.483,{"$f":"SUM(D123:O123)","v":153555.06599999999}]
[]
[null,"Street Lights"]
[null,"Sch 15,52,54,57      sec",null,815.41600000000005,928.79300000000001,1044.866,1237.932,1331.6659999999999,1448.0450000000001,1413.7470000000001,1212.183,1138.6510000000001,950.92899999999997,850.32500000000005,759.33799999999997,{"$f":"SUM(D126:O126)","v":13131.891000000001}]
[]
[null,{"$f":"Inputs!$C$4","v":"State of Washington"},null,{"$f":"D111+D120+D123+D126","v":332663.163},{"$f":"E111+E120+E123+E126","v":353733.27},319718.85799999995,324863.06800000003,363366.85000000003,{"$f":"I111+I120+I123+I126","v":404206.989},387143.01099999994,335766.45500000007,326615.89199999999,274927.71000000002,285561.75200000004,290310.826,{"$f":"SUM(D128:O128)","v":3998877.8439999996}]
[]
[]
[]
[]
[null,"MSP Factors"]
[]
[null,"SSECT",null,{"$f":"'Demand Factors'!D$60","v":"2011-07-01"},{"$f":"'Demand Factors'!E$60","v":"2011-08-01"},{"$f":"'Demand Factors'!F$60","v":"2011-09-01"},{"$f":"'Demand Factors'!G$60","v":"2011-10-01"},{"$f":"'Demand Factors'!H$60","v":"2011-11-01"},{"$f":"'Demand Factors'!I$60","v":"2011-12-01"},{"$f":"'Demand Factors'!J$60","v":"2012-01-01"},{"$f":"'Demand Factors'!K$60","v":"2012-02-01"},{"$f":"'Demand Factors'!L$60","v":"2012-03-01"},{"$f":"'Demand Factors'!M$60","v":"2012-04-01"},{"$f":"'Demand Factors'!N$60","v":"2012-05-01"},{"$f":"'Demand Factors'!O$60","v":"2012-06-01"},"Total"]
[null,null,null,{"$f":"#REF!","v":{"$error":"#REF!"}},{"$f":"+#REF!","v":{"$error":"#REF!"}},{"$f":"+#REF!","v":{"$error":"#REF!"}},{"$f":"+#REF!","v":{"$error":"#REF!"}},{"$f":"+#REF!","v":{"$error":"#REF!"}},{"$f":"+#REF!","v":{"$error":"#REF!"}},{"$f":"+#REF!","v":{"$error":"#REF!"}},{"$f":"+#REF!","v":{"$error":"#REF!"}},{"$f":"+#REF!","v":{"$error":"#REF!"}},{"$f":"+#REF!","v":{"$error":"#REF!"}},{"$f":"+#REF!","v":{"$error":"#REF!"}},{"$f":"+#REF!","v":{"$error":"#REF!"}},{"$f":"SUM(D136:O136)","v":{"$error":"#REF!"}}]
[null,"Residential"]
[null,"Sch 16       sec","16",{"$f":"D$87*D$136","v":{"$error":"#REF!"}},{"$error":"#REF!"},{"$error":"#REF!"},{"$error":"#REF!"},{"$error":"#REF!"},{"$f":"I$87*I$136","v":{"$error":"#REF!"}},{"$error":"#REF!"},{"$error":"#REF!"},{"$error":"#REF!"},{"$error":"#REF!"},{"$error":"#REF!"},{"$error":"#REF!"},{"$f":"SUM(D138:O138)","v":{"$error":"#REF!"}}]
[]
[null,"General Service"]
[null,"Sch 24       sec","24",{"$f":"D$90*D$136","v":{"$error":"#REF!"}},{"$error":"#REF!"},{"$error":"#REF!"},{"$error":"#REF!"},{"$error":"#REF!"},{"$f":"I$90*I$136","v":{"$error":"#REF!"}},{"$error":"#REF!"},{"$error":"#REF!"},{"$error":"#REF!"},{"$error":"#REF!"},{"$error":"#REF!"},{"$error":"#REF!"},{"$f":"SUM(D141:O141)","v":{"$error":"#REF!"}}]
[null,"Sch 36       sec","36",{"$f":"D$91*D$136","v":{"$error":"#REF!"}},{"$error":"#REF!"},{"$error":"#REF!"},{"$error":"#REF!"},{"$error":"#REF!"},{"$f":"I$91*I$136","v":{"$error":"#REF!"}},{"$error":"#REF!"},{"$error":"#REF!"},{"$error":"#REF!"},{"$error":"#REF!"},{"$error":"#REF!"},{"$error":"#REF!"},{"$error":"#REF!"}]
[null,"Sch 36       pri","36",{"$f":"D$92*D$136","v":{"$error":"#REF!"}},{"$f":"E$92*E$136","v":{"$error":"#REF!"}},{"$error":"#REF!"},{"$error":"#REF!"},{"$error":"#REF!"},{"$f":"I$92*I$136","v":{"$error":"#REF!"}},{"$error":"#REF!"},{"$error":"#REF!"},{"$error":"#REF!"},{"$error":"#REF!"},{"$error":"#REF!"},{"$error":"#REF!"},{"$error":"#REF!"}]
[null,"Sch 48T    pri, ded fac","48T",{"$f":"D$93*D$136","v":{"$error":"#REF!"}},{"$f":"E$93*E$136","v":{"$error":"#REF!"}},{"$error":"#REF!"},{"$error":"#REF!"},{"$error":"#REF!"},{"$f":"I$93*I$136","v":{"$error":"#REF!"}},{"$error":"#REF!"},{"$error":"#REF!"},{"$error":"#REF!"},{"$error":"#REF!"},{"$error":"#REF!"},{"$error":"#REF!"},{"$error":"#REF!"}]
[null,"Sch 48T     sec       ","48T",{"$f":"D$94*D$136","v":{"$error":"#REF!"}},{"$error":"#REF!"},{"$error":"#REF!"},{"$error":"#REF!"},{"$error":"#REF!"},{"$f":"I$94*I$136","v":{"$error":"#REF!"}},{"$error":"#REF!"},{"$error":"#REF!"},{"$error":"#REF!"},{"$error":"#REF!"},{"$error":"#REF!"},{"$error":"#REF!"},{"$error":"#REF!"}]
[null,"Sch 48T     pri","48T",{"$f":"D$95*D$136","v":{"$error":"#REF!"}},{"$error":"#REF!"},{"$error":"#REF!"},{"$error":"#REF!"},{"$error":"#REF!"},{"$f":"I$95*I$136","v":{"$error":"#REF!"}},{"$error":"#REF!"},{"$error":"#REF!"},{"$error":"#REF!"},{"$error":"#REF!"},{"$error":"#REF!"},{"$error":"#REF!"},{"$error":"#REF!"}]
[null,"Gen Service Total",null,{"$f":"SUM(D141:D146)","v":{"$error":"#REF!"}},{"$error":"#REF!"},{"$error":"#REF!"},{"$error":"#REF!"},{"$error":"#REF!"},{"$f":"SUM(I141:I146)","v":{"$error":"#REF!"}},{"$error":"#REF!"},{"$error":"#REF!"},{"$error":"#REF!"},{"$error":"#REF!"},{"$error":"#REF!"},{"$error":"#REF!"},{"$error":"#REF!"}]
[]
[null,"Irrigation"]
[null,"Sch 040                   sec","40",{"$f":"D$99*D$136","v":{"$error":"#REF!"}},{"$error":"#REF!"},{"$error":"#REF!"},{"$error":"#REF!"},{"$error":"#REF!"},{"$f":"I$99*I$136","v":{"$error":"#REF!"}},{"$error":"#REF!"},{"$error":"#REF!"},{"$error":"#REF!"},{"$error":"#REF!"},{"$error":"#REF!"},{"$error":"#REF!"},{"$f":"SUM(D150:O150)","v":{"$error":"#REF!"}}]
[]
[null,"Street Lights"]
[null,"Sch 15,52,54,57 sec",null,{"$f":"D$102*D$136","v":{"$error":"#REF!"}},{"$error":"#REF!"},{"$error":"#REF!"},{"$error":"#REF!"},{"$error":"#REF!"},{"$f":"I$102*I$136","v":{"$error":"#REF!"}},{"$error":"#REF!"},{"$error":"#REF!"},{"$error":"#REF!"},{"$error":"#REF!"},{"$error":"#REF!"},{"$error":"#REF!"},{"$f":"SUM(D153:O153)","v":{"$error":"#REF!"}}]
[]
[null,{"$f":"Inputs!$C$4","v":"State of Washington"},null,{"$f":"D138+D147+D150+D153","v":{"$error":"#REF!"}},{"$error":"#REF!"},{"$error":"#REF!"},{"$error":"#REF!"},{"$error":"#REF!"},{"$f":"I138+I147+I150+I153","v":{"$error":"#REF!"}},{"$error":"#REF!"},{"$error":"#REF!"},{"$error":"#REF!"},{"$error":"#REF!"},{"$error":"#REF!"},{"$error":"#REF!"},{"$f":"SUM(D155:O155)","v":{"$error":"#REF!"}}]
[]
[]
[]
[]
[]
[null,"SSECH",null,{"$f":"'Demand Factors'!D$60","v":"2011-07-01"},{"$f":"'Demand Factors'!E$60","v":"2011-08-01"},{"$f":"'Demand Factors'!F$60","v":"2011-09-01"},{"$f":"'Demand Factors'!G$60","v":"2011-10-01"},{"$f":"'Demand Factors'!H$60","v":"2011-11-01"},{"$f":"'Demand Factors'!I$60","v":"2011-12-01"},{"$f":"'Demand Factors'!J$60","v":"2012-01-01"},{"$f":"'Demand Factors'!K$60","v":"2012-02-01"},{"$f":"'Demand Factors'!L$60","v":"2012-03-01"},{"$f":"'Demand Factors'!M$60","v":"2012-04-01"},{"$f":"'Demand Factors'!N$60","v":"2012-05-01"},{"$f":"'Demand Factors'!O$60","v":"2012-06-01"},"Total"]
[null,null,null,{"$f":"+#REF!","v":{"$error":"#REF!"}},{"$f":"+#REF!","v":{"$error":"#REF!"}},{"$f":"+#REF!","v":{"$error":"#REF!"}},{"$f":"+#REF!","v":{"$error":"#REF!"}},{"$f":"+#REF!","v":{"$error":"#REF!"}},{"$f":"+#REF!","v":{"$error":"#REF!"}},{"$f":"+#REF!","v":{"$error":"#REF!"}},{"$f":"+#REF!","v":{"$error":"#REF!"}},{"$f":"+#REF!","v":{"$error":"#REF!"}},{"$f":"+#REF!","v":{"$error":"#REF!"}},{"$f":"+#REF!","v":{"$error":"#REF!"}},{"$f":"+#REF!","v":{"$error":"#REF!"}},{"$f":"SUM(D162:O162)","v":{"$error":"#REF!"}}]
[null,"Residential"]
[null,"Sch 16       sec","16",{"$f":"D$87*D$162","v":{"$error":"#REF!"}},{"$error":"#REF!"},{"$error":"#REF!"},{"$error":"#REF!"},{"$error":"#REF!"},{"$f":"I$87*I$162","v":{"$error":"#REF!"}},{"$error":"#REF!"},{"$error":"#REF!"},{"$error":"#REF!"},{"$error":"#REF!"},{"$error":"#REF!"},{"$error":"#REF!"},{"$f":"SUM(D164:O164)","v":{"$error":"#REF!"}}]
[]
[null,"General Service"]
[null,"Sch 24       sec","24",{"$f":"D$90*D$162","v":{"$error":"#REF!"}},{"$error":"#REF!"},{"$error":"#REF!"},{"$error":"#REF!"},{"$error":"#REF!"},{"$f":"I$90*I$162","v":{"$error":"#REF!"}},{"$error":"#REF!"},{"$error":"#REF!"},{"$error":"#REF!"},{"$error":"#REF!"},{"$error":"#REF!"},{"$error":"#REF!"},{"$f":"SUM(D167:O167)","v":{"$error":"#REF!"}}]
[null,"Sch 36       sec","36",{"$f":"D$91*D$162","v":{"$error":"#REF!"}},{"$error":"#REF!"},{"$error":"#REF!"},{"$error":"#REF!"},{"$error":"#REF!"},{"$f":"I$91*I$162","v":{"$error":"#REF!"}},{"$error":"#REF!"},{"$error":"#REF!"},{"$error":"#REF!"},{"$error":"#REF!"},{"$error":"#REF!"},{"$error":"#REF!"},{"$error":"#REF!"}]
[null,"Sch 36       pri","36",{"$f":"D$92*D$162","v":{"$error":"#REF!"}},{"$f":"E$92*E$162","v":{"$error":"#REF!"}},{"$error":"#REF!"},{"$error":"#REF!"},{"$error":"#REF!"},{"$f":"I$92*I$162","v":{"$error":"#REF!"}},{"$error":"#REF!"},{"$error":"#REF!"},{"$error":"#REF!"},{"$error":"#REF!"},{"$error":"#REF!"},{"$error":"#REF!"},{"$error":"#REF!"}]
[null,"Sch 48T    pri, ded fac","48T",{"$f":"D$93*D$162","v":{"$error":"#REF!"}},{"$f":"E$93*E$162","v":{"$error":"#REF!"}},{"$error":"#REF!"},{"$error":"#REF!"},{"$error":"#REF!"},{"$f":"I$93*I$162","v":{"$error":"#REF!"}},{"$error":"#REF!"},{"$error":"#REF!"},{"$error":"#REF!"},{"$error":"#REF!"},{"$error":"#REF!"},{"$error":"#REF!"},{"$error":"#REF!"}]
[null,"Sch 48T     sec       ","48T",{"$f":"D$94*D$162","v":{"$error":"#REF!"}},{"$f":"E$94*E$162","v":{"$error":"#REF!"}},{"$error":"#REF!"},{"$error":"#REF!"},{"$error":"#REF!"},{"$f":"I$94*I$162","v":{"$error":"#REF!"}},{"$error":"#REF!"},{"$error":"#REF!"},{"$error":"#REF!"},{"$error":"#REF!"},{"$error":"#REF!"},{"$error":"#REF!"},{"$error":"#REF!"}]
[null,"Sch 48T     pri","48T",{"$f":"D$95*D$162","v":{"$error":"#REF!"}},{"$error":"#REF!"},{"$error":"#REF!"},{"$error":"#REF!"},{"$error":"#REF!"},{"$f":"I$95*I$162","v":{"$error":"#REF!"}},{"$error":"#REF!"},{"$error":"#REF!"},{"$error":"#REF!"},{"$error":"#REF!"},{"$error":"#REF!"},{"$error":"#REF!"},{"$error":"#REF!"}]
[null,"Gen Service Total",null,{"$f":"SUM(D167:D172)","v":{"$error":"#REF!"}},{"$error":"#REF!"},{"$error":"#REF!"},{"$error":"#REF!"},{"$error":"#REF!"},{"$f":"SUM(I167:I172)","v":{"$error":"#REF!"}},{"$error":"#REF!"},{"$error":"#REF!"},{"$error":"#REF!"},{"$error":"#REF!"},{"$error":"#REF!"},{"$error":"#REF!"},{"$error":"#REF!"}]
[]
[null,"Irrigation"]
[null,"Sch 040                   sec","40",{"$f":"D$99*D$162","v":{"$error":"#REF!"}},{"$error":"#REF!"},{"$error":"#REF!"},{"$error":"#REF!"},{"$error":"#REF!"},{"$f":"I$99*I$162","v":{"$error":"#REF!"}},{"$error":"#REF!"},{"$error":"#REF!"},{"$error":"#REF!"},{"$error":"#REF!"},{"$error":"#REF!"},{"$error":"#REF!"},{"$f":"SUM(D176:O176)","v":{"$error":"#REF!"}}]
[]
[null,"Street Lights"]
[null,"Sch 15,52,54,57 sec",null,{"$f":"D$102*D$162","v":{"$error":"#REF!"}},{"$error":"#REF!"},{"$error":"#REF!"},{"$error":"#REF!"},{"$error":"#REF!"},{"$f":"I$102*I$162","v":{"$error":"#REF!"}},{"$error":"#REF!"},{"$error":"#REF!"},{"$error":"#REF!"},{"$error":"#REF!"},{"$error":"#REF!"},{"$error":"#REF!"},{"$f":"SUM(D179:O179)","v":{"$error":"#REF!"}}]
[]
[null,{"$f":"Inputs!$C$4","v":"State of Washington"},null,{"$f":"D164+D173+D176+D179","v":{"$error":"#REF!"}},{"$error":"#REF!"},{"$error":"#REF!"},{"$error":"#REF!"},{"$error":"#REF!"},{"$f":"I164+I173+I176+I179","v":{"$error":"#REF!"}},{"$error":"#REF!"},{"$error":"#REF!"},{"$error":"#REF!"},{"$error":"#REF!"},{"$error":"#REF!"},{"$error":"#REF!"},{"$f":"SUM(D181:O181)","v":{"$error":"#REF!"}}]
[]
[]
[]
[]
[null,"SSEP",null,{"$f":"'Demand Factors'!D$60","v":"2011-07-01"},{"$f":"'Demand Factors'!E$60","v":"2011-08-01"},{"$f":"'Demand Factors'!F$60","v":"2011-09-01"},{"$f":"'Demand Factors'!G$60","v":"2011-10-01"},{"$f":"'Demand Factors'!H$60","v":"2011-11-01"},{"$f":"'Demand Factors'!I$60","v":"2011-12-01"},{"$f":"'Demand Factors'!J$60","v":"2012-01-01"},{"$f":"'Demand Factors'!K$60","v":"2012-02-01"},{"$f":"'Demand Factors'!L$60","v":"2012-03-01"},{"$f":"'Demand Factors'!M$60","v":"2012-04-01"},{"$f":"'Demand Factors'!N$60","v":"2012-05-01"},{"$f":"'Demand Factors'!O$60","v":"2012-06-01"},"Total"]
[null,null,null,{"$f":"+#REF!","v":{"$error":"#REF!"}},{"$f":"+#REF!","v":{"$error":"#REF!"}},{"$f":"+#REF!","v":{"$error":"#REF!"}},{"$f":"+#REF!","v":{"$error":"#REF!"}},{"$f":"+#REF!","v":{"$error":"#REF!"}},{"$f":"+#REF!","v":{"$error":"#REF!"}},{"$f":"+#REF!","v":{"$error":"#REF!"}},{"$f":"+#REF!","v":{"$error":"#REF!"}},{"$f":"+#REF!","v":{"$error":"#REF!"}},{"$f":"+#REF!","v":{"$error":"#REF!"}},{"$f":"+#REF!","v":{"$error":"#REF!"}},{"$f":"+#REF!","v":{"$error":"#REF!"}},{"$f":"SUM(D187:O187)","v":{"$error":"#REF!"}}]
[null,"Residential"]
[null,"Sch 16       sec","16",{"$f":"D$87*D$187","v":{"$error":"#REF!"}},{"$error":"#REF!"},{"$error":"#REF!"},{"$error":"#REF!"},{"$error":"#REF!"},{"$f":"I$87*I$187","v":{"$error":"#REF!"}},{"$error":"#REF!"},{"$error":"#REF!"},{"$error":"#REF!"},{"$error":"#REF!"},{"$error":"#REF!"},{"$error":"#REF!"},{"$f":"SUM(D189:O189)","v":{"$error":"#REF!"}}]
[]
[null,"General Service"]
[null,"Sch 24       sec","24",{"$f":"D$90*D$187","v":{"$error":"#REF!"}},{"$error":"#REF!"},{"$error":"#REF!"},{"$error":"#REF!"},{"$error":"#REF!"},{"$f":"I$90*I$187","v":{"$error":"#REF!"}},{"$error":"#REF!"},{"$error":"#REF!"},{"$error":"#REF!"},{"$error":"#REF!"},{"$error":"#REF!"},{"$error":"#REF!"},{"$f":"SUM(D192:O192)","v":{"$error":"#REF!"}}]
[null,"Sch 36       sec","36",{"$f":"D$91*D$187","v":{"$error":"#REF!"}},{"$error":"#REF!"},{"$error":"#REF!"},{"$error":"#REF!"},{"$error":"#REF!"},{"$f":"I$91*I$187","v":{"$error":"#REF!"}},{"$error":"#REF!"},{"$error":"#REF!"},{"$error":"#REF!"},{"$error":"#REF!"},{"$error":"#REF!"},{"$error":"#REF!"},{"$error":"#REF!"}]
[null,"Sch 36       pri","36",{"$f":"D$92*D$187","v":{"$error":"#REF!"}},{"$error":"#REF!"},{"$error":"#REF!"},{"$error":"#REF!"},{"$error":"#REF!"},{"$f":"I$92*I$187","v":{"$error":"#REF!"}},{"$error":"#REF!"},{"$error":"#REF!"},{"$error":"#REF!"},{"$error":"#REF!"},{"$error":"#REF!"},{"$error":"#REF!"},{"$error":"#REF!"}]
[null,"Sch 48T    pri, ded fac","48T",{"$f":"D$93*D$187","v":{"$error":"#REF!"}},{"$f":"E$93*E$187","v":{"$error":"#REF!"}},{"$error":"#REF!"},{"$error":"#REF!"},{"$error":"#REF!"},{"$f":"I$93*I$187","v":{"$error":"#REF!"}},{"$error":"#REF!"},{"$error":"#REF!"},{"$error":"#REF!"},{"$error":"#REF!"},{"$error":"#REF!"},{"$error":"#REF!"},{"$error":"#REF!"}]
[null,"Sch 48T     sec       ","48T",{"$f":"D$94*D$187","v":{"$error":"#REF!"}},{"$error":"#REF!"},{"$error":"#REF!"},{"$error":"#REF!"},{"$error":"#REF!"},{"$f":"I$94*I$187","v":{"$error":"#REF!"}},{"$error":"#REF!"},{"$error":"#REF!"},{"$error":"#REF!"},{"$error":"#REF!"},{"$error":"#REF!"},{"$error":"#REF!"},{"$error":"#REF!"}]
[null,"Sch 48T     pri","48T",{"$f":"D$95*D$187","v":{"$error":"#REF!"}},{"$error":"#REF!"},{"$error":"#REF!"},{"$error":"#REF!"},{"$error":"#REF!"},{"$f":"I$95*I$187","v":{"$error":"#REF!"}},{"$error":"#REF!"},{"$error":"#REF!"},{"$error":"#REF!"},{"$error":"#REF!"},{"$error":"#REF!"},{"$error":"#REF!"},{"$error":"#REF!"}]
[null,"Gen Service Total",null,{"$f":"SUM(D192:D197)","v":{"$error":"#REF!"}},{"$error":"#REF!"},{"$error":"#REF!"},{"$error":"#REF!"},{"$error":"#REF!"},{"$f":"SUM(I192:I197)","v":{"$error":"#REF!"}},{"$error":"#REF!"},{"$error":"#REF!"},{"$error":"#REF!"},{"$error":"#REF!"},{"$error":"#REF!"},{"$error":"#REF!"},{"$error":"#REF!"}]
[]
[null,"Irrigation"]
[null,"Sch 040                   sec","40",{"$f":"D$99*D$187","v":{"$error":"#REF!"}},{"$error":"#REF!"},{"$error":"#REF!"},{"$error":"#REF!"},{"$error":"#REF!"},{"$f":"I$99*I$187","v":{"$error":"#REF!"}},{"$error":"#REF!"},{"$error":"#REF!"},{"$error":"#REF!"},{"$error":"#REF!"},{"$error":"#REF!"},{"$error":"#REF!"},{"$f":"SUM(D201:O201)","v":{"$error":"#REF!"}}]
[]
[null,"Street Lights"]
[null,"Sch 15,52,54,57 sec",null,{"$f":"D$102*D$187","v":{"$error":"#REF!"}},{"$error":"#REF!"},{"$error":"#REF!"},{"$error":"#REF!"},{"$error":"#REF!"},{"$f":"I$102*I$187","v":{"$error":"#REF!"}},{"$error":"#REF!"},{"$error":"#REF!"},{"$error":"#REF!"},{"$error":"#REF!"},{"$error":"#REF!"},{"$error":"#REF!"},{"$f":"SUM(D204:O204)","v":{"$error":"#REF!"}}]
[]
[null,{"$f":"Inputs!$C$4","v":"State of Washington"},null,{"$f":"D189+D198+D201+D204","v":{"$error":"#REF!"}},{"$error":"#REF!"},{"$error":"#REF!"},{"$error":"#REF!"},{"$error":"#REF!"},{"$f":"I189+I198+I201+I204","v":{"$error":"#REF!"}},{"$error":"#REF!"},{"$error":"#REF!"},{"$error":"#REF!"},{"$error":"#REF!"},{"$error":"#REF!"},{"$error":"#REF!"},{"$f":"SUM(D206:O206)","v":{"$error":"#REF!"}}]

{"sheet":"Cust Factors","index":28,"n_rows":70,"n_cols":13,"rows_kept":70,"cut":false,"hidden":false,"merged":[]}
[null,"Customer Factors  (F40-F42)"]
[null,{"$f":"Inputs!$C$3","v":"PacifiCorp"}]
[null,"Cost Of Service By Rate Schedule"]
[null,{"$f":"Inputs!$C$4","v":"State of Washington"}]
[null,{"$f":"+Method&\" - \"&IF(PeakMethod=1,\"(Coincident Peaks)\",IF(PeakMethod=2,\"(200 Top Hours)\",\"(100 Summer, 100 Winter Hours)\"))&\" - \"&TEXT(Demand,\"0%\")&\"D\"&\" / \"&TEXT(Engy,\"0%\")&\"E\"","v":"WCA Method - (100 Summer, 100 Winter Hours) - 38%D / 62%E"}]
[null,{"$f":"Inputs!$C$5","v":"12 Months Ending June 2012"}]
[null,"Weighted Customer Factors"]
[]
[]
[null,"A","B","C","D","E","F","G","H","I","J","K","J"]
[]
[null,null,null,null,{"$f":"'Hot Sheet'!$J$10","v":"Small General"},{"$f":"'Hot Sheet'!$K$10","v":"Large General"},{"$f":"'Hot Sheet'!$L$10","v":"Large General"},{"$f":"'Hot Sheet'!$M$10","v":"Large General"},{"$f":"'Hot Sheet'!$N$10","v":"Agricultural"},{"$f":"'Hot Sheet'!$O$10","v":"Street & Area"}]
[null,null,null,{"$f":"'Hot Sheet'!$I$11","v":"Residential"},{"$f":"'Hot Sheet'!$J$11","v":"Service"},{"$f":"'Hot Sheet'!$K$11","v":"Service <1,000 kW"},{"$f":"'Hot Sheet'!$L$11","v":"Service >1,000 kW"},{"$f":"'Hot Sheet'!$M$11","v":"Dedicated Facilities"},{"$f":"'Hot Sheet'!$N$11","v":"Pumping"},{"$f":"'Hot Sheet'!$O$11","v":"Lighting"},{"$f":"'Hot Sheet'!P$11","v":"-"},{"$f":"'Hot Sheet'!Q$11","v":"-"}]
[null,"Description",null,{"$f":"'Hot Sheet'!$I$12","v":"Schedule 16"},{"$f":"'Hot Sheet'!$J$12","v":"Schedule 24"},{"$f":"'Hot Sheet'!$K$12","v":"Schedule 36"},{"$f":"'Hot Sheet'!$L$12","v":"Schedule 48T"},{"$f":"'Hot Sheet'!$M$12","v":"Schedule 48T"},{"$f":"'Hot Sheet'!$N$12","v":"Schedule 40"},{"$f":"'Hot Sheet'!$O$12","v":"Sch. 15,51-54,57"},{"$f":"'Hot Sheet'!P$12","v":"-"},{"$f":"'Hot Sheet'!Q$12","v":"-"},"Total"]
[]
[1]
[{"$f":"A16+1","v":2},"Avg Customers",null,{"$f":"$E$49","v":104296.97777777778},{"$f":"$E$52","v":18646.79166666606},{"$f":"$E$53+$E$54","v":1044.4944444444434},{"$f":"$E$55+$E$57","v":57.91161616161623},{"$f":"$E$56","v":1},{"$f":"$E$61","v":5260},{"$f":"$E$66","v":3070.3333333333339},0,0,{"$f":"SUM(D17:J17)","v":132377.50883838322}]
[3]
[4,"FACTOR 40",null,{"$f":"D17/$M$17","v":0.7878753626124787},0.14086072347404208,7.8902711919110347E-3,4.3747322841918143E-4,7.5541533359785308E-6,3.9734846547247071E-2,2.3193768792566086E-2,0,0,{"$f":"SUM(D19:L19)","v":1}]
[5]
[6]
[7,"Wt Customers Acct 902",null,{"$f":"G$49","v":104296.97777777778},{"$f":"G$52","v":18646.79166666606},{"$f":"G$53+$G$54","v":1629.4113333333319},{"$f":"G$55+G$57","v":797.44295454545545},{"$f":"G$56","v":13.77},{"$f":"G$63","v":3321.75},0,0,0,{"$f":"SUM(D22:L22)","v":128706.14373232264}]
[8]
[9,"FACTOR 41",null,{"$f":"D22/$M$22","v":0.81034964418396394},0.14487880007847048,1.2659934375177222E-2,6.195842182980341E-3,1.0698789972791227E-4,2.5808791279679926E-2,0,0,0,{"$f":"SUM(D24:L24)","v":0.99999999999999978}]
[10]
[11]
[12,"Wt Customers Acct 903",null,{"$f":"I$49","v":104296.97777777778},{"$f":"I$52","v":17714.452083332755},{"$f":"I$53+$I$54","v":1075.8292777777767},{"$f":"I$55+I$57","v":220.64325757575784},{"$f":"I$56","v":3.81},{"$f":"I$63","v":3155.6624999999999},{"$f":"I$66","v":2794.003333333334},0,0,{"$f":"SUM(D27:L27)","v":129261.37822979741}]
[13]
[14,"FACTOR 42",null,{"$f":"D27/$M$27","v":0.80686883588972269},0.13704365778802449,8.3228980884390413E-3,1.7069542395216008E-3,2.947516150745882E-5,2.4413034606438653E-2,2.1615144226346014E-2,0,0,{"$f":"SUM(D29:L29)","v":0.99999999999999989}]
[]
[]
[]
[]
[null,"Customer Factors Detail"]
[]
[null,{"$f":"Inputs!$C$3","v":"PacifiCorp"}]
[null,"Cost Of Service By Rate Schedule"]
[null,{"$f":"Inputs!$C$4","v":"State of Washington"}]
[null,{"$f":"+Method&\" - \"&IF(PeakMethod=1,\"(Coincident Peaks)\",IF(PeakMethod=2,\"(200 Top Hours)\",\"(100 Summer, 100 Winter Hours)\"))&\" - \"&TEXT(Demand,\"0%\")&\"D\"&\" / \"&TEXT(Engy,\"0%\")&\"E\"","v":"WCA Method - (100 Summer, 100 Winter Hours) - 38%D / 62%E"}]
[null,{"$f":"Inputs!$C$5","v":"12 Months Ending June 2012"}]
[null,"Weighted Customer Factors"]
[]
[null,"A","B","C","D","E","F","G","H"]
[]
[null,null,null,"COS","Average","Account","Total Acct 902","Account","Total Acct 903"]
[null,null,null,"Schedule","Customers",902,"Customers",903,"Customers"]
[null,"Description",null,null,"(F 40)","Weighting","(F 41)","Weighting","(F 42)"]
[]
[1,"Residential",null,16,104296.97777777778,1,{"$f":"E49*F49","v":104296.97777777778},1,{"$f":"E49*H49","v":104296.97777777778}]
[{"$f":"+A49+1","v":2}]
[{"$f":"+A50+1","v":3}]
[4,"General Service",null,24,18646.79166666606,1,{"$f":"E52*F52","v":18646.79166666606},0.95,{"$f":"E52*H52","v":17714.452083332755}]
[5,null,null,"36-s",1032.5805555555546,1.56,1610.8256666666653,1.03,1063.5579722222212]
[6,null,null,"36-p",11.91388888888889,1.56,18.585666666666668,1.03,12.271305555555557]
[7,null,null,"48T-s",46.994949494949566,13.77,647.12045454545546,3.81,179.05075757575784]
[8,null,null,"48T-p ded fac",1,13.77,13.77,3.81,3.81]
[9,null,null,"48T-p",10.916666666666666,13.77,150.32249999999999,3.81,41.592500000000001]
[10," Total",null,null,{"$f":"SUM(E52:E57)","v":19750.197727272123},null,{"$f":"SUM(G52:G57)","v":21087.415954544846},null,{"$f":"SUM(I52:I57)","v":19014.734618686289}]
[11]
[12]
[13,"Irrigation - annual cust",null,40,5260,1,{"$f":"E61*F61","v":5260},0.95,{"$f":"E61*H61","v":4997}]
[14]
[15,"Irrigation - ave billings",null,40,3321.75,1,{"$f":"E63*F63","v":3321.75},0.95,{"$f":"E63*H63","v":3155.6624999999999}]
[16,null,null,null,2877.5]
[17]
[18,"Street Lighting",null,"15,52,54,57",3070.3333333333339,0,{"$f":"E66*F66","v":0},0.91,{"$f":"E66*H66","v":2794.003333333334}]
[19]
[20]
[21]
[22,{"$f":"Inputs!$C$4","v":"State of Washington"},null,null,{"$f":"+E49+E58+E61+E66","v":132377.50883838325}," ",{"$f":"+G49+G58+G61+G66","v":130644.39373232263},null,{"$f":"+I49+I58+I61+I66","v":131102.7157297974}]

{"sheet":"Cust Advances","index":29,"n_rows":50,"n_cols":12,"rows_kept":50,"cut":false,"hidden":false,"merged":[]}
[null,"Customer Advances Factors  ( F50-F51 )"]
[null,{"$f":"Inputs!$C$3","v":"PacifiCorp"}]
[null,"Cost Of Service By Rate Schedule"]
[null,{"$f":"Inputs!$C$4","v":"State of Washington"}]
[null,{"$f":"+Method&\" - \"&IF(PeakMethod=1,\"(Coincident Peaks)\",IF(PeakMethod=2,\"(200 Top Hours)\",\"(100 Summer, 100 Winter Hours)\"))&\" - \"&TEXT(Demand,\"0%\")&\"D\"&\" / \"&TEXT(Engy,\"0%\")&\"E\"","v":"WCA Method - (100 Summer, 100 Winter Hours) - 38%D / 62%E"}]
[null,{"$f":"Inputs!$C$5","v":"12 Months Ending June 2012"}]
[null,"Customer Advances Factor"]
[]
[]
[null,"A","B","C","D","E","F","G","H","I","J","I"]
[]
[null,null,null,{"$f":"'Hot Sheet'!$J$10","v":"Small General"},{"$f":"'Hot Sheet'!$K$10","v":"Large General"},{"$f":"'Hot Sheet'!$L$10","v":"Large General"},{"$f":"'Hot Sheet'!$M$10","v":"Large General"},{"$f":"'Hot Sheet'!$N$10","v":"Agricultural"},{"$f":"'Hot Sheet'!$O$10","v":"Street & Area"}]
[null,null,{"$f":"'Hot Sheet'!$I$11","v":"Residential"},{"$f":"'Hot Sheet'!$J$11","v":"Service"},{"$f":"'Hot Sheet'!$K$11","v":"Service <1,000 kW"},{"$f":"'Hot Sheet'!$L$11","v":"Service >1,000 kW"},{"$f":"'Hot Sheet'!M$11","v":"Dedicated Facilities"},{"$f":"'Hot Sheet'!$N$11","v":"Pumping"},{"$f":"'Hot Sheet'!$O$11","v":"Lighting"},{"$f":"'Hot Sheet'!P$11","v":"-"},{"$f":"'Hot Sheet'!Q$11","v":"-"}]
[null,"Description",{"$f":"'Hot Sheet'!$I$12","v":"Schedule 16"},{"$f":"'Hot Sheet'!$J$12","v":"Schedule 24"},{"$f":"'Hot Sheet'!$K$12","v":"Schedule 36"},{"$f":"'Hot Sheet'!$L$12","v":"Schedule 48T"},{"$f":"'Hot Sheet'!M$12","v":"Schedule 48T"},{"$f":"'Hot Sheet'!$N$12","v":"Schedule 40"},{"$f":"'Hot Sheet'!$O$12","v":"Sch. 15,51-54,57"},{"$f":"'Hot Sheet'!P$12","v":"-"},{"$f":"'Hot Sheet'!Q$12","v":"-"},"Total"]
[]
[]
[1,"Revenue"]
[{"$f":"A17+1","v":2},"  Residential",{"$f":"Revenues!D28","v":134571287.30281949},null,null,null,null,null,null,null,null,{"$f":"SUM(C18:K18)","v":134571287.30281949}]
[3,"  Com / Ind",null,{"$f":"Revenues!E28","v":45261337.330470175},{"$f":"Revenues!F28","v":61297410.543473966},{"$f":"Revenues!G28","v":23069501.570523299},{"$f":"Revenues!H28","v":25058234.385966681},null,null,null,null,{"$f":"SUM(C19:K19)","v":154686483.83043411}]
[{"$f":"A19+1","v":4},"  Irrigation",null,null,null,null,null,{"$f":"Revenues!I28","v":12299348},null,null,null,{"$f":"SUM(C20:K20)","v":12299348}]
[5]
[6,"Customer Advances"]
[7,null,{"$f":"C35","v":60101},{"$f":"C36","v":93381},null,null,null,{"$f":"C37","v":9697},{"$f":"C38","v":0},null,null,{"$f":"SUM(C23:K23)","v":163179}]
[8,"Total Cust Advances",{"$f":"SUM(C23:C23)","v":60101},93381,0,0,{"$f":"SUM(G23:G23)","v":0},9697,0,0,0,163179]
[9,null,null,null,0]
[10,"FACTOR 50",{"$f":"C24/$L$24","v":0.36831332463123317},0.57226113654330524,0,0,0,5.9425538825461609E-2,0,0,0,{"$f":"SUM(C26:K26)","v":1}]
[11]
[12]
[13,"Security Deposits",{"$f":"C49","v":1919542},{"$f":"+C45","v":215683.1},{"$f":"+C46","v":48402},{"$f":"C47","v":0},0,{"$f":"C44","v":42982.32},{"$f":"+C48","v":1623},null,null,{"$f":"SUM(C29:K29)","v":2228232.42}]
[14]
[15,"FACTOR 51",{"$f":"C29/$L29","v":0.86146399395804507},9.6795602677749393E-2,2.1722150510672493E-2,0,0,1.9289872822153803E-2,7.2838003137931184E-4,0,0,{"$f":"SUM(C31:K31)","v":1}]
[]
[]
[null,"Contribution in Aid of Construction - period ending June 2012"]
[null,"   WA   Residential Sch 16",{"$f":"57612+2489","v":60101}]
[null,"   WA   Schedule 24",93381]
[null,"   WA   Irrigation Sch 40",9697]
[null,"   WA   Streetlighting",0]
[null,"Total",{"$f":"SUM(C35:C38)","v":163179}]
[]
[]
[]
[null,"Deposits Charged by State - period ending June 2012"]
[null,"Schedule 40",42982.32]
[null,"Schedule 24",215683.1]
[null,"Schedule 36",48402]
[null,"Schedule 48",0]
[null,"Schedule 15",1623]
[null,"Residential",1919542]
[null,"Total ",{"$f":"SUM(C44:C49)","v":2228232.42}]

{"sheet":"MetersServices","index":30,"n_rows":304,"n_cols":11,"rows_kept":304,"cut":false,"hidden":false,"merged":[]}
[null,"Meters & Services  ( F60-F70 )"]
[null,{"$f":"Inputs!$C$3","v":"PacifiCorp"}]
[null,"Cost Of Service By Rate Schedule"]
[null,{"$f":"Inputs!$C$4","v":"State of Washington"}]
[null,{"$f":"+Method&\" - \"&IF(PeakMethod=1,\"(Coincident Peaks)\",IF(PeakMethod=2,\"(200 Top Hours)\",\"(100 Summer, 100 Winter Hours)\"))&\" - \"&TEXT(Demand,\"0%\")&\"D\"&\" / \"&TEXT(Engy,\"0%\")&\"E\"","v":"WCA Method - (100 Summer, 100 Winter Hours) - 38%D / 62%E"}]
[null,{"$f":"Inputs!$C$5","v":"12 Months Ending June 2012"}]
[null,"Meter & Services Factor"]
[]
[]
[null,"A","B","C","D","E","F","G","H","I"]
[]
[null,null,null,{"$f":"'Hot Sheet'!$J$10","v":"Small General"},{"$f":"'Hot Sheet'!$K$10","v":"Large General"},{"$f":"'Hot Sheet'!$L$10","v":"Large General"},{"$f":"'Hot Sheet'!$M$10","v":"Large General"},{"$f":"'Hot Sheet'!$N$10","v":"Agricultural"},{"$f":"'Hot Sheet'!$O$10","v":"Street & Area"}]
[null,null,{"$f":"'Hot Sheet'!$I$11","v":"Residential"},{"$f":"'Hot Sheet'!$J$11","v":"Service"},{"$f":"'Hot Sheet'!$K$11","v":"Service <1,000 kW"},{"$f":"'Hot Sheet'!$L$11","v":"Service >1,000 kW"},{"$f":"'Hot Sheet'!$M$11","v":"Dedicated Facilities"},{"$f":"'Hot Sheet'!$N$11","v":"Pumping"},{"$f":"'Hot Sheet'!$O$11","v":"Lighting"}]
[null,"Description",{"$f":"'Hot Sheet'!$I$12","v":"Schedule 16"},{"$f":"'Hot Sheet'!$J$12","v":"Schedule 24"},{"$f":"'Hot Sheet'!$K$12","v":"Schedule 36"},{"$f":"'Hot Sheet'!$L$12","v":"Schedule 48T"},{"$f":"'Hot Sheet'!$M$12","v":"Schedule 48T"},{"$f":"'Hot Sheet'!$N$12","v":"Schedule 40"},{"$f":"'Hot Sheet'!$O$12","v":"Sch. 15,51-54,57"},"Total"]
[]
[]
[1,"Average Customer",{"$f":"$D$47","v":104296.97777777778},{"$f":"$D$50","v":18646.79166666606},{"$f":"$D$51+$D$52","v":1044.4944444444434},{"$f":"$D$56+D57","v":57.91161616161623},{"$f":"D55","v":1},{"$f":"+$D60","v":5260},{"$f":"+$D63","v":3070.3333333333339},{"$f":"SUM(C17:I17)","v":132377.50883838322}]
[{"$f":"A17+1","v":2}]
[3]
[4,"Meter Cost",{"$f":"F$47","v":13127763.000476172},{"$f":"F$50","v":3133456.4561365652},{"$f":"F$51+F52","v":1474861.1472222209},{"$f":"F$56+F$57","v":237107.92424242434},{"$f":"F$55","v":14126},{"$f":"F$60","v":1142002.1433783304},"-",{"$f":"SUM(C20:I20)","v":19129316.671455711}]
[5]
[6]
[7,"FACTOR 60",{"$f":"C20/$J$20","v":0.68626408490926871},0.16380388855249758,7.7099520727939644E-2,1.2395002305347942E-2,7.3844770530033955E-4,5.9699055799645864E-2,0,{"$f":"SUM(C23:I23)","v":1.0000000000000002}]
[8]
[9,"FACTOR 60A",{"$f":"C20/(SUM($C$20:$I$20)-$G$20)","v":0.68677122954779457},{"$f":"D20/(SUM($C$20:$I$20)-$G$20)","v":0.16392493854720927},{"$f":"E20/(SUM($C$20:$I$20)-$G$20)","v":7.7156496765925453E-2},{"$f":"F20/(SUM($C$20:$I$20)-$G$20)","v":1.2404162130409315E-2},0,{"$f":"H20/(SUM($C$20:$I$20)-$G$20)","v":5.9743173008661471E-2},{"$f":"I20/(SUM($C$20:$I$20)-$G$20)","v":0},{"$f":"SUM(C25:I25)","v":1}]
[10]
[11,"Service Cost",{"$f":"H$47","v":71437594.039404705},{"$f":"H$50","v":19519795.929414336},{"$f":"H$51+H52","v":4871550.0093619395},{"$f":"H$56+H57","v":1143951.0606060624},"-","-","-",{"$f":"SUM(C27:I27)","v":96972891.038787037}]
[12]
[13]
[14,"FACTOR 70",{"$f":"C27/$J$27","v":0.73667592328284026},0.20129126522181176,5.023620474936058E-2,1.1796606745987464E-2,0,0,0,{"$f":"SUM(C30:I30)","v":1}]
[]
[]
[null,"Meter/Service Detail"]
["                                                PacifiCorp","PacifiCorp"]
[null,"Cost Of Service By Rate Schedule"]
[null,{"$f":"Inputs!$C$4","v":"State of Washington"}]
[null,{"$f":"+Method&\" - \"&IF(PeakMethod=1,\"(Coincident Peaks)\",IF(PeakMethod=2,\"(200 Top Hours)\",\"(100 Summer, 100 Winter Hours)\"))&\" - \"&TEXT(Demand,\"0%\")&\"D\"&\" / \"&TEXT(Engy,\"0%\")&\"E\"","v":"WCA Method - (100 Summer, 100 Winter Hours) - 38%D / 62%E"}]
[null,{"$f":"Inputs!$C$5","v":"12 Months Ending June 2012"}]
[null,"Meter & Service Data"]
[]
[null,"A","B","C","D","E","F","G"]
[]
[null,null,"COS",null,"Average","Total","Average","Total"]
[null,"Class/Schedule","Schedule","Avg Custs","Metering Cost","Metering Cost","Services Cost","Services Cost"]
[]
[1,"Residential"]
[{"$f":"A46+1","v":2}," Sch 016          sec",16,{"$f":"'Cust Factors'!E49","v":104296.97777777778},{"$f":"+F78","v":125.8690642834069},{"$f":"D47*E47","v":13127763.000476172},{"$f":"+H78","v":684.94404690819033},{"$f":"G47*D47","v":71437594.039404705}]
[3]
[4,"Commercial"]
[5," Sch 024          sec",24,{"$f":"+'Cust Factors'!E52","v":18646.79166666606},{"$f":"+F103","v":168.04265914216703},{"$f":"D50*E50","v":3133456.4561365652},{"$f":"+H103","v":1046.8179340636332},{"$f":"G50*D50","v":19519795.929414336}]
[6," Sch 036          sec",36,{"$f":"+'Cust Factors'!E53","v":1032.5805555555546},{"$f":"+F133","v":1312.7726865539141},{"$f":"D51*E51","v":1355543.5499999986},{"$f":"+H133","v":4717.8401560553521},{"$f":"G51*D51","v":4871550.0093619395}]
[7," Sch 036          pri",36,{"$f":"'Cust Factors'!E54","v":11.91388888888889},{"$f":"F140","v":10015},{"$f":"D52*E52","v":119317.59722222223},0,{"$f":"G52*D52","v":0}]
[8]
[9,"Industrial"]
[10," Sch 048T       pri, ded fac","48T-p",{"$f":"+'Cust Factors'!E56","v":1},{"$f":"E57","v":14126},{"$f":"D55*E55","v":14126},{"$f":"G57","v":0},{"$f":"G55*D55","v":0}]
[11," Sch 048T       sec","48T-s",{"$f":"+'Cust Factors'!E55","v":46.994949494949566},{"$f":"+F218","v":1764},{"$f":"D56*E56","v":82899.090909091028},{"$f":"D289","v":24342},{"$f":"G56*D56","v":1143951.0606060624}]
[12," Sch 048T       pri","48T-p",{"$f":"+'Cust Factors'!E57","v":10.916666666666666},{"$f":"+D224","v":14126},{"$f":"D57*E57","v":154208.83333333331},0,{"$f":"G57*D57","v":0}]
[13]
[14,"Irrigation"]
[15," Sch 040         sec",40,{"$f":"+'Cust Factors'!E61","v":5260},{"$f":"+F167","v":217.11067364607044},{"$f":"D60*E60","v":1142002.1433783304},0,{"$f":"G60*D60","v":0}]
[16]
[17,"Street Lighting"]
[18," Sch 15,52,54,57 sec","15,52,54,57",{"$f":"+'Cust Factors'!E66","v":3070.3333333333339},0,{"$f":"D63*E63","v":0},0,{"$f":"G63*D63","v":0}]
[19]
[20]
[21,{"$f":"Inputs!$C$4","v":"State of Washington"},null,{"$f":"SUM(D47:D63)","v":132377.50883838325},null,{"$f":"SUM(F47:F63)","v":19129316.671455711},null,{"$f":"SUM(H47:H63)","v":96972891.038787037}]
[]
[]
[null,"PacifiCorp"]
[null,"Washington Embedded Cost Study"]
[null,"Weighted Meter & Service Costs "]
[]
[null,"(A)","(B)","(C)","(D)","(E)","(F)","(G)"]
[]
[null,null,null,"% of customers",null,"Wgt Meter Costs","Service","Wgt Service Drops"]
[null,"Load Class","Customers","1 & 3 Phase","Meter Costs","1 & 3 Phase","Drop Costs","1 & 3 Phase"]
[]
[null,"Residential -",{"$f":"D47","v":104296.97777777778},1,{"$f":"+F185","v":125.8690642834069},{"$f":"E78","v":125.8690642834069},{"$f":"E245","v":684.94404690819033},{"$f":"G78","v":684.94404690819033}]
[]
[null,"Sch 24"]
[null,"  0 - 15 kW"]
[null,"   kW = 0, 1 Phase",9423.7129629624906,{"$f":"C82/$C86","v":0.57798172173784701},{"$f":"+F188","v":106},{"$f":"ROUND(+D82*E82,2)","v":61.27},{"$f":"F250","v":836.54956720561813},{"$f":"ROUND(+D82*G82,2)","v":483.51}]
[null,"   kW = 0, 3 Phase",637.20689814814443,{"$f":"C83/$C86","v":3.9081616931923031E-2},{"$f":"+F191","v":245},{"$f":"ROUND(+D83*E83,2)","v":9.57},{"$f":"F254","v":1055.8985791278785},{"$f":"ROUND(+D83*G83,2)","v":41.27}]
[null,"   kW > 1, 1 Phase",3361.8805555555191,{"$f":"C84/$C86","v":0.20619319788430007},{"$f":"+F194","v":210},{"$f":"ROUND(+D84*E84,2)","v":43.3},{"$f":"F259","v":924.81528662420374},{"$f":"ROUND(+D84*G84,2)","v":190.69}]
[null,"   kW > 1, 3 Phase",2881.716851851842,{"$f":"C85/$C86","v":0.17674346344592981},{"$f":"+F197","v":245},{"$f":"ROUND(+D85*E85,2)","v":43.3},{"$f":"F263","v":1131.0543851053405},{"$f":"ROUND(+D85*G85,2)","v":199.91}]
[null,null,{"$f":"SUM(C82:C85)","v":16304.517268517997},{"$f":"SUM(D82:D85)","v":0.99999999999999989},null,{"$f":"SUM(F82:F85)","v":157.44},null,{"$f":"SUM(H82:H85)","v":915.38}]
[]
[null,"  15 - 100 kW"]
[null,"   1 Phase",556.67222222222063,{"$f":"C89/$C92","v":0.23932844712140272},{"$f":"+F200","v":210},{"$f":"ROUND(+D89*E89,2)","v":50.26},{"$f":"F268","v":1654.1674016005225},{"$f":"ROUND(D89*G89,2)","v":395.89}]
[null,"   3 Phase W/O  KVAR",894.63432539683106,{"$f":"C90/$C92","v":0.38462749763945486},{"$f":"+F203","v":245},{"$f":"ROUND(+D90*E90,2)","v":94.23},{"$f":"F272","v":2042.2742119875877},{"$f":"ROUND(D90*G90,2)","v":785.51}]
[null,"   3 Phase With KVAR",874.66944444444437,{"$f":"C91/$C92","v":0.37604405523914242},{"$f":"+F206","v":238},{"$f":"ROUND(+D91*E91,2)","v":89.5},{"$f":"G90","v":2042.2742119875877},{"$f":"ROUND(D91*G91,2)","v":767.99}]
[null,null,{"$f":"SUM(C89:C91)","v":2325.9759920634961},{"$f":"SUM(D89:D91)","v":1},null,{"$f":"SUM(F89:F91)","v":233.99},null,{"$f":"SUM(H89:H91)","v":1949.39}]
[]
[null,"  100 kW+"]
[null,"   1 Phase",0,{"$f":"C95/$C$98","v":0},{"$f":"+F209","v":1172},{"$f":"ROUND(+D95*E95,2)","v":0},{"$f":"F277","v":3405.3161848766945},{"$f":"ROUND(D95*G95,2)","v":0}]
[null,"   3 Phase W/O  KVAR",3.6750000000000003,{"$f":"C96/$C$98","v":0.22638603696098603},{"$f":"+F212","v":1368},{"$f":"ROUND(+D96*E96,2)","v":309.7},{"$f":"F281","v":3737.0320104523926},{"$f":"ROUND(D96*G96,2)","v":846.01}]
[null,"   3 Phase With KVAR",12.558333333333307,{"$f":"C97/$C$98","v":0.77361396303901409},{"$f":"+F215","v":1368},{"$f":"ROUND(+D97*E97,2)","v":1058.3},{"$f":"G96","v":3737.0320104523926},{"$f":"ROUND(D97*G97,2)","v":2891.02}]
[null,null,{"$f":"SUM(C95:C97)","v":16.233333333333306},{"$f":"SUM(D95:D97)","v":1},null,{"$f":"SUM(F95:F97)","v":1368},null,{"$f":"SUM(H95:H97)","v":3737.0299999999997}]
[]
[null,"  0 - 15 kW",{"$f":"C86","v":16304.517268517997},{"$f":"C100/$C$103","v":0.87439032188302757},{"$f":"F86","v":157.44},{"$f":"D100*E100","v":137.66401227726385},{"$f":"H86","v":915.38},{"$f":"D100*G100","v":800.39941284528572}]
[null,"  15 - 100 kW",{"$f":"C92","v":2325.9759920634961},{"$f":"C101/$C$103","v":0.12473910529811463},{"$f":"F92","v":233.99},{"$f":"D101*E101","v":29.187703248705844},{"$f":"H92","v":1949.39},{"$f":"D101*G101","v":243.16516447709171}]
[null,"  100 kW+",{"$f":"C98","v":16.233333333333306},{"$f":"C102/$C$103","v":8.7057281885770193E-4},{"$f":"F98","v":1368},{"$f":"D102*E102","v":1.1909436161973361},{"$f":"H98","v":3737.0299999999997},{"$f":"D102*G102","v":3.2533567412557978}]
[null,"Total Sch 24",{"$f":"SUM(C100:C102)","v":18646.726593914827},{"$f":"SUM(D100:D102)","v":0.99999999999999989},null,{"$f":"SUM(F100:F102)","v":168.04265914216703},null,{"$f":"SUM(H100:H102)","v":1046.8179340636332}]
[]
[null,"Sch 36"]
[null,"Secondary Voltage"]
[null,"    0 - 100 kW",""]
[null,"     1 Phase",0.66666666666666663,{"$f":"C108/$C$111","v":1.3459705008131895E-2},{"$f":"+F200","v":210},{"$f":"+D108*E108","v":2.8265380517076979},{"$f":"G268","v":1510.6933461909352},{"$f":"D108*G108","v":20.333486797477661}]
[null,"     3 Phase W/O  KVAR",20.5,{"$f":"C109/$C$111","v":0.41388592900005583},{"$f":"+F203","v":245},{"$f":"+D109*E109","v":101.40205260501368},{"$f":"G272","v":1979.4435872709739},{"$f":"D109*G109","v":819.26384802085011}]
[null,"     3 Phase With KVAR",28.363888888888919,{"$f":"C110/$C$111","v":0.5726543659918123},{"$f":"+F206","v":238},{"$f":"+D110*E110","v":136.29173910605132},{"$f":"G109","v":1979.4435872709739},{"$f":"D110*G110","v":1133.5370124852182}]
[null,null,{"$f":"SUM(C108:C110)","v":49.530555555555587},{"$f":"SUM(D108:D110)","v":1},null,{"$f":"SUM(F108:F110)","v":240.52032976277269},null,{"$f":"SUM(H108:H110)","v":1973.1343473035458}]
[]
[null,"  100 - 300 kW"]
[null,"     1 Phase",8.5222222222222257,{"$f":"C114/$C$117","v":1.2505502747297569E-2},{"$f":"+F209","v":1172},{"$f":"+D114*E114","v":14.656449219832751},{"$f":"G277","v":3668.297974927676},{"$f":"D114*G114","v":45.873910403364164}]
[null,"     3 Phase W/O  KVAR",146.39444444444416,{"$f":"C115/$C$117","v":0.2148191022777298},{"$f":"+F212","v":1368},{"$f":"+D115*E115","v":293.87253191593436},{"$f":"G281","v":3730.8784956605596},{"$f":"D115*G115","v":801.46396914508841}]
[null,"     3 Phase With KVAR",526.56111111110999,{"$f":"C116/$C$117","v":0.77267539497497262},{"$f":"F215","v":1368},{"$f":"+D116*E116","v":1057.0199403257625},{"$f":"G115","v":3730.8784956605596},{"$f":"D116*G116","v":2882.7580152381547}]
[null,null,{"$f":"SUM(C114:C116)","v":681.4777777777764},{"$f":"SUM(D114:D116)","v":1},null,{"$f":"SUM(F114:F116)","v":1365.5489214615295},null,{"$f":"SUM(H114:H116)","v":3730.0958947866075}]
[]
[null,"300 - 1000 kW"]
[null,"     1 Phase",0,{"$f":"C120/$C$123","v":0},{"$f":"+F209","v":1172},{"$f":"+D120*E120","v":0},{"$f":"G286","v":7331.1195756991319},{"$f":"D120*G120","v":0}]
[null,"     3 Phase W/O  KVAR",27.766666666666666,{"$f":"C121/$C$123","v":9.2451120031075931E-2},{"$f":"+F212","v":1368},{"$f":"+D121*E121","v":126.47313220251188},{"$f":"G286","v":7331.1195756991319},{"$f":"D121*G121","v":677.77021585513091}]
[null,"     3 Phase With KVAR",272.57222222222248,{"$f":"C122/$C$123","v":0.90754887996892408},{"$f":"F215","v":1368},{"$f":"+D122*E122","v":1241.5268677974882},{"$f":"G286","v":7331.1195756991319},{"$f":"D122*G122","v":6653.3493598440009}]
[null,null,{"$f":"SUM(C120:C122)","v":300.33888888888913},{"$f":"SUM(D120:D122)","v":1},null,{"$f":"SUM(F120:F122)","v":1368},null,{"$f":"SUM(H120:H122)","v":7331.1195756991319}]
[]
[null,"  1000 kW+"]
[null,"     3 Phase With KVAR",1.2333333333333334,{"$f":"C126/$C$127","v":1},{"$f":"F218","v":1764},{"$f":"+D126*E126","v":1764},{"$f":"D289","v":24342},{"$f":"D126*G126","v":24342}]
[null,null,{"$f":"SUM(C126)","v":1.2333333333333334},{"$f":"SUM(D126)","v":1},null,{"$f":"SUM(F126)","v":1764},null,{"$f":"SUM(H126)","v":24342}]
[]
[null,"  0 - 100 kW",{"$f":"+C111","v":49.530555555555587},{"$f":"C129/$C$133","v":4.7967739939579722E-2},{"$f":"+F111","v":240.52032976277269},{"$f":"D129*E129","v":11.537216628242637},{"$f":"+H111","v":1973.1343473035458},{"$f":"D129*G129","v":94.646795237308865}]
[null,"  100-300 kW",{"$f":"+C117","v":681.4777777777764},{"$f":"C130/$C$133","v":0.65997541219544287},{"$f":"+F117","v":1365.5489214615295},{"$f":"D130*E130","v":901.22871231461534},{"$f":"+H117","v":3730.0958947866075},{"$f":"D130*G130","v":2461.7715756903203}]
[null,"  300-1000 kW",{"$f":"C123","v":300.33888888888913},{"$f":"C131/$C$133","v":0.29086242935041445},{"$f":"F123","v":1368},{"$f":"D131*E131","v":397.89980335136698},{"$f":"H123","v":7331.1195756991319},{"$f":"D131*G131","v":2132.3472496462291}]
[null," 1000 kW+",{"$f":"+C127","v":1.2333333333333334},{"$f":"C132/$C$133","v":1.1944185145630298E-3},{"$f":"+F127","v":1764},{"$f":"D132*E132","v":2.1069542596891844},{"$f":"+H127","v":24342},{"$f":"D132*G132","v":29.074535481493271}]
[null,"Total Secondary 36",{"$f":"SUM(C129:C132)","v":1032.5805555555544},{"$f":"SUM(D129:D132)","v":1},null,{"$f":"SUM(F129:F132)","v":1312.7726865539141},null,{"$f":"SUM(H129:H132)","v":4717.8401560553521}]
[]
[null,"Primary Voltage"]
[null,"  100 - 1000 kW"]
[null,"     1 Phase",0,{"$f":"C137/$C$140","v":0},{"$f":"$D$223","v":10015},{"$f":"D137*E137","v":0}]
[null,"     3 Phase W/O  KVAR",1.7555555555555582,{"$f":"C138/$C$140","v":0.14759458197104178},{"$f":"$D$223","v":10015},{"$f":"D138*E138","v":1478.1597384399834}]
[null,"     3 Phase With KVAR",10.138888888888888,{"$f":"C139/$C$140","v":0.8524054180289582},{"$f":"$D$223","v":10015},{"$f":"D139*E139","v":8536.8402615600171}]
[null,"Total Primary 36",{"$f":"SUM(C137:C139)","v":11.894444444444446},{"$f":"SUM(D137:D139)","v":1},null,{"$f":"SUM(F137:F139)","v":10015}]
[]
[null,"Combined Total",{"$f":"C140+C133","v":1044.4749999999988}]
[]
[null,"Sch 40"]
[null,"  0 - 50 kW"]
[null,"   kW = 0, 1 Phase",1048.8645959719099,{"$f":"C146/$C150","v":0.21605189943111475},{"$f":"+F188","v":106},{"$f":"ROUND(+D146*E146,2)","v":22.9}]
[null,"   kW = 0, 3 Phase",1029.7153993973325,{"$f":"C147/$C150","v":0.21210742432116639},{"$f":"+F191","v":245},{"$f":"ROUND(+D147*E147,2)","v":51.97}]
[null,"   kW > 1, 1 Phase",0,{"$f":"C148/$C150","v":0},{"$f":"+F194","v":210},{"$f":"ROUND(+D148*E148,2)","v":0}]
[null,"   kW > 1, 3 Phase",2776.1081547172435,{"$f":"C149/$C150","v":0.57184067624771895},{"$f":"+F197","v":245},{"$f":"ROUND(+D149*E149,2)","v":140.1}]
[null,null,{"$f":"SUM(C146:C149)","v":4854.6881500864856},{"$f":"SUM(D146:D149)","v":1},null,{"$f":"SUM(F146:F149)","v":214.97}]
[]
[null,"  51 - 300 kW"]
[null,"   1 Phase",0,{"$f":"C153/$C156","v":0},{"$f":"+F200","v":210},{"$f":"ROUND(+D153*E153,2)","v":0},null,null,null,null," "]
[null,"   3 Phase W/O  KVAR",211.849152374201,{"$f":"C154/$C156","v":0.52226497133830607},{"$f":"+F203","v":245},{"$f":"ROUND(+D154*E154,2)","v":127.95}]
[null,"   3 Phase With KVAR",193.7862319621,{"$f":"C155/$C156","v":0.47773502866169398},{"$f":"+F206","v":238},{"$f":"ROUND(+D155*E155,2)","v":113.7}]
[null,null,{"$f":"SUM(C153:C155)","v":405.635384336301},{"$f":"SUM(D153:D155)","v":1},null,{"$f":"SUM(F153:F155)","v":241.65}]
[]
[null,"  301 - 1000 kW"]
[null,"   1 Phase",0,{"$f":"C159/$C162","v":0},{"$f":"+F209","v":1172},{"$f":"ROUND(+D159*E159,2)","v":0}]
[null,"   3 Phase W/O  KVAR",0.38082193988124502,{"$f":"C160/$C162","v":1},{"$f":"+F212","v":1368},{"$f":"ROUND(+D160*E160,2)","v":1368}]
[null,"   3 Phase With KVAR",0,{"$f":"C161/$C162","v":0},{"$f":"+F215","v":1368},{"$f":"ROUND(+D161*E161,2)","v":0}]
[null,null,{"$f":"SUM(C159:C161)","v":0.38082193988124502},{"$f":"SUM(D159:D161)","v":1},null,{"$f":"SUM(F159:F161)","v":1368}]
[]
[null,"  0 - 50 kW",{"$f":"C150","v":4854.6881500864856},{"$f":"C164/$C$167","v":0.92282094206926524},{"$f":"F150","v":214.97},{"$f":"D164*E164","v":198.37881791662994}]
[null,"  51 - 300 kW",{"$f":"C156","v":405.635384336301},{"$f":"C165/$C$167","v":7.7106668015984745E-2},{"$f":"F156","v":241.65},{"$f":"D165*E165","v":18.632826326062712}]
[null,"  301 - 1000 kW",{"$f":"C162","v":0.38082193988124502},{"$f":"C166/$C$167","v":7.2389914749847512E-5},{"$f":"F162","v":1368},{"$f":"D166*E166","v":9.9029403377791397E-2}]
[null,"Total Sch 40",{"$f":"SUM(C164:C166)","v":5260.7043563626685},{"$f":"SUM(D164:D166)","v":0.99999999999999989},null,{"$f":"SUM(F164:F166)","v":217.11067364607044}]
[]
[]
[]
["PacifiCorp"]
["Washington Embedded Cost Study"]
["Summary of Average Installed Costs "]
["Meters"]
[]
[null,null,"(A)","(B)","(C)","(D)"]
[]
[null,null,null,null,"Percent","Total Installed"]
["Line","Load Class","Standard","Installed Cost","Use","Cost / Service"]
[]
[]
[null," Residential"]
[1,"   Small Load","DM221F",106,{"$f":"E293+E300","v":0.39790714292706325},{"$f":"E183*D183","v":42.178157150268703}]
[{"$f":"+A183+1","v":2},"   All Electric","DM221G",139,{"$f":"E294+E301","v":0.60209285707293669},{"$f":"E184*D184","v":83.690907133138197}]
[{"$f":"+A184+1","v":3},null,null,null,null,{"$f":"SUM(F183:F184)","v":125.8690642834069}]
[4]
[5,"0 - 10 kW  "]
[6,"   kW = 0, 1 Phase  ","DM221F",{"$f":"D183","v":106},1,{"$f":"E188*D188","v":106}]
[7]
[8]
[9,"   kW = 0, 3 Phase  ","DM241C",245,1,{"$f":"E191*D191","v":245}]
[10]
[11]
[12,"   kW > 1, 1 Phase ","DM221H",210,1,{"$f":"E194*D194","v":210}]
[13]
[14]
[15,"   kW > 1, 3 Phase  ","DM241A",245,1,{"$f":"E197*D197","v":245}]
[16]
[17,"11-100 kW"]
[18,"1 phase","DM221H",210,1,{"$f":"E200*D200","v":210}]
[19]
[20]
[21,"3 phase w/o KVAR","DM241C",{"$f":"D191","v":245},1,{"$f":"E203*D203","v":245}]
[22]
[23]
[24,"3 phase with KVAR","DM241B",238,1,{"$f":"E206*D206","v":238}]
[25]
[26,"101 - 1000 kW"]
[27,"   1 Phase  (sec)","DM231AFE",1172,1,{"$f":"E209*D209","v":1172}]
[28]
[29]
[30,"3 phase w/o KVAR","DM271AEC",1368,1,{"$f":"E212*D212","v":1368}]
[31]
[32]
[33,"3 phase with KVAR","DM271AEC",{"$f":"D212","v":1368},1,{"$f":"E215*D215","v":1368}]
[34]
[35,"Over 1 MW"]
[36,"3 phase secondary volt","DM271AEG",1764,1,{"$f":"E218*D218","v":1764}]
[37]
[38]
[39,"Primary Metering"]
[40,"    13.8 kV 3-wire ","DM101ACBI",7699]
[41,"    12.47 kV 4-wire Wye","DM121DBBI",10015]
[42,"    24.9 kV 4-wire Wye","DM121DGBI",14126]
[43,"    35 kV 4-wire Wye","DM131DBH",28492]
[]
[]
[]
["PacifiCorp"]
["Washington Cost Study"]
["Summary of Average Installed Costs "]
["Service Drops"]
[]
[null,"(A)","(B)","(C)","(D)","(E)","(F)"]
[]
[null,null,"Service",null,"Residental","Schedule 24","Schedule 36"]
["Line","   Load Class","Conductor","Installed Cost","Percent Use","Percent Use","Percent Use"]
[]
[]
[1,"Residential"]
[{"$f":"+A240+1","v":2},"  Small load - O/H","#2 Triplex",612,{"$f":"+$E293","v":0.31766790332527384},"-","-"]
[{"$f":"+A241+1","v":3},"  Large load - O/H","1/0 Triplex",703,{"$f":"+$E294","v":0.39372730209383594},"-","-"]
[4,"  Small load - U/G","1/0 Triplexed",711,{"$f":"+$E300","v":8.02392396017894E-2},"-","-"]
[5,"  Large load - U/G","4/0 Triplexed",752,{"$f":"+$E301","v":0.20836555497910081},"-","-"]
[6,{"$f":"$B$245","v":"Weighted Cost per Service"},null,null,{"$f":"(E241*D241)+(E242*D242)+(E243*D243)+(E244*D244)","v":684.94404690819033},"-","-"]
[7]
[8,"  0 - 30 kW"]
[9,"   kW = 0, 1 Phase O/H","1/0 Triplex",881,"-",{"$f":"$F$295","v":0.73852686591540095},"-"]
[10,"   kW = 0, 1 Phase U/G","1/0 Triplex",711,"-",{"$f":"$F$302","v":0.26147313408459905},"-"]
[11,{"$f":"$B$245","v":"Weighted Cost per Service"},null,null,"-",{"$f":"(F248*D248)+(F249*D249)","v":836.54956720561813},"-"]
[12]
[13,"   kW = 0, 3 Phase O/H","1/0 Quadruplex",1081,"-",{"$f":"$F$295","v":0.73852686591540095},"-"]
[14,"   kW = 0, 3 Phase U/G","1/0 Quadruplex",985,"-",{"$f":"$F$302","v":0.26147313408459905},"-"]
[15,{"$f":"$B$245","v":"Weighted Cost per Service"},null,null,"-",{"$f":"(F252*D252)+(F253*D253)","v":1055.8985791278785},"-"]
[16]
[17,"  30 - 50 kW"]
[18,"   kW > 1, 1 Phase O/H","4/0 Triplex",986,"-",{"$f":"$F$295","v":0.73852686591540095},"-"]
[19,"   kW > 1, 1 Phase U/G","4/0 Triplex",752,"-",{"$f":"$F$302","v":0.26147313408459905},"-"]
[20,{"$f":"$B$245","v":"Weighted Cost per Service"},null,null,"-",{"$f":"(F257*D257)+(F258*D258)","v":924.81528662420374},"-"]
[21]
[22,"   kW > 1, 3 Phase O/H","4/0 Quadruplex",1164,"-",{"$f":"$F$295","v":0.73852686591540095},"-"]
[23,"   kW > 1, 3 Phase U/G","4/0 Quadruplex",1038,"-",{"$f":"$F$302","v":0.26147313408459905},"-"]
[24,{"$f":"$B$245","v":"Weighted Cost per Service"},null,null,"-",{"$f":"(F261*D261)+(F262*D262)","v":1131.0543851053405},"-"]
[25]
[26,"  50 - 100 kW"]
[27,"    1 Phase O/H","2 - 4/0 Triplex",1770,"-",{"$f":"$F$295","v":0.73852686591540095},{"$f":"$G$295","v":0.41465766634522661}]
[28,"    1 Phase U/G","2 - 4/0 Triplex",1327,"-",{"$f":"$F$302","v":0.26147313408459905},{"$f":"$G$302","v":0.58534233365477339}]
[29,{"$f":"$B$245","v":"Weighted Cost per Service"},null,null,"-",{"$f":"(F266*D266)+(F267*D267)","v":1654.1674016005225},{"$f":"(G266*D266)+(G267*D267)","v":1510.6933461909352}]
[30]
[31,"    3 Phase O/H","2-4/0 Quadruplex",2093,"-",{"$f":"$F$295","v":0.73852686591540095},{"$f":"$G$295","v":0.41465766634522661}]
[32,"    3 Phase U/G","2-4/0 Quadruplex",1899,"-",{"$f":"$F$302","v":0.26147313408459905},{"$f":"$G$302","v":0.58534233365477339}]
[33,{"$f":"$B$245","v":"Weighted Cost per Service"},null,null,"-",{"$f":"(F270*D270)+(F271*D271)","v":2042.2742119875877},{"$f":"(G270*D270)+(G271*D271)","v":1979.4435872709739}]
[34]
[35,"  100-300 kW"]
[36,"    1 Phase O/H","3-500 & 350N",3193,"-",{"$f":"$F$295","v":0.73852686591540095},{"$f":"$G$295","v":0.41465766634522661}]
[37,"    1 Phase U/G","3-750 & 500N",4005,"-",{"$f":"$F$302","v":0.26147313408459905},{"$f":"$G$302","v":0.58534233365477339}]
[38,{"$f":"$B$245","v":"Weighted Cost per Service"},null,null,"-",{"$f":"(F275*D275)+(F276*D276)","v":3405.3161848766945},{"$f":"(G275*D275)+(G276*D276)","v":3668.297974927676}]
[39]
[40,"    3 Phase O/H","3-4/0 Quadruplex",3742,"-",{"$f":"$F$295","v":0.73852686591540095},{"$f":"$G$295","v":0.41465766634522661}]
[41,"    3 Phase U/G","4-350 Quadruplex",3723,"-",{"$f":"$F$302","v":0.26147313408459905},{"$f":"$G$302","v":0.58534233365477339}]
[42,{"$f":"$B$245","v":"Weighted Cost per Service"},null,null,"-",{"$f":"(F279*D279)+(F280*D280)","v":3737.0320104523926},{"$f":"(G279*D279)+(G280*D280)","v":3730.8784956605596}]
[43]
[44,"300-1000 kW"]
[45,"    3 Phase O/H (sec)","3-750 kcmil Quad",7879,"-","-",{"$f":"$G$295","v":0.41465766634522661}]
[46,"    3 Phase U/G (sec)","4-750 kcmil Quad",6943,"-","-",{"$f":"$G$302","v":0.58534233365477339}]
[47,{"$f":"$B$245","v":"Weighted Cost per Service"},null,null,"-","-",{"$f":"(G284*D284)+(G285*D285)","v":7331.1195756991319}]
[48]
[49,"1000 kW and Over"]
[50,"    3 Phase U/G (sec)","12-1000 kcmil Quad",24342]
[51]
[52]
[53,null,"Overhead % =",null,"Residential","Schedule 24","Schedule 36","Schedule 48"]
[54,null,"  % of Overhead  Which Are Small Load=",null,0.31766790332527384]
[55,null,"  % of Overhead  Which Are All Electric=",null,0.39372730209383594]
[56,null,"Total % Overhead",null,{"$f":"SUM(E293:E294)","v":0.71139520541910972},0.73852686591540095,0.41465766634522661,0]
[{"$f":"+A295+1","v":57}]
[58,null,"Account 369 - Overhead",{"$f":"SUM(E297:H297)","v":36227329.235434122},{"$f":"'G+T+D+R+M'!I950*E295","v":27374186.474214125},{"$f":"'G+T+D+R+M'!J950*F295","v":7765064.0017437041},{"$f":"'G+T+D+R+M'!K950*G295","v":1088078.7594762957},{"$f":"'G+T+D+R+M'!L950*H295","v":0}]
[59]
[60,null,"Underground % ="]
[61,null,"  % of Underground  Which Are Small Load=",null,8.02392396017894E-2]
[62,null,"  % of Underground  Which Are All Electric=",null,0.20836555497910081]
[63,null,"Total % Underground",null,{"$f":"SUM(E300:E301)","v":0.28860479458089022},{"$f":"1-F295","v":0.26147313408459905},{"$f":"1-G295","v":0.58534233365477339},{"$f":"1-H295","v":1}]
[64]
[65,null,"Account 369 - Underground",{"$f":"SUM(E304:H304)","v":16006734.114565874},{"$f":"'G+T+D+R+M'!I950*E302","v":11105390.370961489},{"$f":"'G+T+D+R+M'!J950*F302","v":2749196.6976540624},{"$f":"'G+T+D+R+M'!K950*G302","v":1535962.3418653756},{"$f":"'G+T+D+R+M'!L950*H302","v":616184.70408494654}]

{"sheet":"Uncollectables","index":31,"n_rows":41,"n_cols":12,"rows_kept":41,"cut":false,"hidden":false,"merged":[]}
[null,"Uncollectables Factor  ( F80 )"]
[null,{"$f":"Inputs!$C$3","v":"PacifiCorp"}]
[null,"Cost Of Service By Rate Schedule"]
[null,{"$f":"Inputs!$C$4","v":"State of Washington"}]
[null,{"$f":"+Method&\" - \"&IF(PeakMethod=1,\"(Coincident Peaks)\",IF(PeakMethod=2,\"(200 Top Hours)\",\"(100 Summer, 100 Winter Hours)\"))&\" - \"&TEXT(Demand,\"0%\")&\"D\"&\" / \"&TEXT(Engy,\"0%\")&\"E\"","v":"WCA Method - (100 Summer, 100 Winter Hours) - 38%D / 62%E"}]
[null,{"$f":"Inputs!$C$5","v":"12 Months Ending June 2012"}]
[null,"Uncollectables Factor"]
[]
[]
[null,"A","B","C","D","E","F","G","H","I","J","I"]
[]
[null,null,null,{"$f":"'Hot Sheet'!$J$10","v":"Small General"},{"$f":"'Hot Sheet'!$K$10","v":"Large General"},{"$f":"'Hot Sheet'!$L$10","v":"Large General"},{"$f":"'Hot Sheet'!$M$10","v":"Large General"},{"$f":"'Hot Sheet'!$N$10","v":"Agricultural"},{"$f":"'Hot Sheet'!$O$10","v":"Street & Area"}]
[null,null,{"$f":"'Hot Sheet'!$I$11","v":"Residential"},{"$f":"'Hot Sheet'!$J$11","v":"Service"},{"$f":"'Hot Sheet'!$K$11","v":"Service <1,000 kW"},{"$f":"'Hot Sheet'!$L$11","v":"Service >1,000 kW"},{"$f":"'Hot Sheet'!M$11","v":"Dedicated Facilities"},{"$f":"'Hot Sheet'!$N$11","v":"Pumping"},{"$f":"'Hot Sheet'!$O$11","v":"Lighting"},{"$f":"'Hot Sheet'!P$11","v":"-"},{"$f":"'Hot Sheet'!Q$11","v":"-"}]
[null,"Description",{"$f":"'Hot Sheet'!$I$12","v":"Schedule 16"},{"$f":"'Hot Sheet'!$J$12","v":"Schedule 24"},{"$f":"'Hot Sheet'!$K$12","v":"Schedule 36"},{"$f":"'Hot Sheet'!$L$12","v":"Schedule 48T"},{"$f":"'Hot Sheet'!M$12","v":"Schedule 48T"},{"$f":"'Hot Sheet'!$N$12","v":"Schedule 40"},{"$f":"'Hot Sheet'!$O$12","v":"Sch. 15,51-54,57"},{"$f":"'Hot Sheet'!P$12","v":"-"},{"$f":"'Hot Sheet'!Q$12","v":"-"},"Total"]
[]
[]
[1,"  Revenue"]
[{"$f":"+A17+1","v":2},"  Residential",{"$f":"Revenues!D28","v":134571287.30281949},{"$f":"Revenues!E15","v":271705.55621653527},null,null,null,null,null,null,null,{"$f":"SUM(C18:K18)","v":134842992.85903603}]
[3,"  Com / Ind",null,{"$f":"Revenues!E17+Revenues!E19","v":44989631.774253637},{"$f":"Revenues!F28","v":61297410.543473966},{"$f":"Revenues!G28","v":23069501.570523299},{"$f":"Revenues!H28","v":25058234.385966681},null,null,null,null,{"$f":"SUM(C19:K19)","v":154414778.27421758}]
[4,"  Irrigation",null,null,null,null,null,{"$f":"Revenues!$I$28","v":12299348},null,null,null,{"$f":"SUM(C20:K20)","v":12299348}]
[5,"  Total",{"$f":"SUM(C18:C20)","v":134571287.30281949},{"$f":"SUM(D18:D20)","v":45261337.330470175},61297410.543473966,23069501.570523299,{"$f":"SUM(G18:G20)","v":25058234.385966681},12299348,0,0,0,{"$f":"SUM(L18:L20)","v":301557119.13325357}]
[6]
[7]
[8,"Uncollectables "]
[9,"Write-off",{"$f":"C$18/$L$18*$C$36","v":-2538961.7506242702},{"$f":"D$19/$L$19*($C$37+$C$38)+D$18/$L$18*$C$36","v":-100425.37631176728},{"$f":"E$19/$L$19*($C$37+$C$38)","v":-129842.98023647274},{"$f":"F$19/$L$19*($C$37+$C$38)","v":-48866.873982585239},{"$f":"G$19/$L$19*($C$37+$C$38)","v":-53079.498844904665},{"$f":"+C39","v":-34322.19},{"$f":"I$19/$L$19*($C$37+$C$38)","v":0},{"$f":"J$19/$L$19*($C$37+$C$38)","v":0},{"$f":"K$19/$L$19*($C$37+$C$38)","v":0},{"$f":"SUM(C25:K25)","v":-2905498.67}]
[10,"Recovery",{"$f":"C$18/$L$18*$D$36","v":929140.21360414091},{"$f":"D$19/$L$19*($D$37+$D$38)+D$18/$L$18*$D$36","v":27684.538681547692},{"$f":"E$19/$L$19*($D$37+$D$38)","v":35163.613827753245},{"$f":"F$19/$L$19*($D$37+$D$38)","v":13233.952906530953},{"$f":"G$19/$L$19*($D$37+$D$38)","v":14374.800980027212},{"$f":"+D39","v":22439.24},{"$f":"I$19/$L$19*($D$37+$D$38)","v":0},{"$f":"J$19/$L$19*($D$37+$D$38)","v":0},{"$f":"K$19/$L$19*($D$37+$D$38)","v":0},{"$f":"SUM(C26:K26)","v":1042036.36}]
[11,"Net Write Off",{"$f":"SUM(C25:C26)","v":-1609821.5370201292},{"$f":"SUM(D25:D26)","v":-72740.837630219583},-94679.366408719492,-35632.921076054285,{"$f":"SUM(G25:G26)","v":-38704.697864877453},-11882.95,0,0,0,-1863462.31]
[12]
[13]
[14,"FACTOR 80",{"$f":"C27/$L$27","v":0.86388736084505469},3.9035314661244519E-2,5.0808307686523314E-2,1.9121889873938092E-2,2.0770314299985736E-2,6.3768126332536344E-3,0,0,0,{"$f":"SUM(C30:K30)","v":1.0000000000000002}]
[]
[]
[]
[]
[null,"Uncollectables","Writeoffs","Recoveries"," Net Write-offs"]
[null,"  Residential",-2544088.0300000003,931016.19000000006,{"$f":"C36+D36","v":-1613071.8400000003}]
[null,"  Commercial",-276772.59999999998,85049.829999999987,{"$f":"C37+D37","v":-191722.77}]
[null,"  Industrial",-50315.850000000006,3531.1000000000004,{"$f":"C38+D38","v":-46784.750000000007}]
[null,"  Irrigation",-34322.19,22439.24,{"$f":"C39+D39","v":-11882.95}]
[]
[null,"  Total",{"$f":"SUM(C36:C39)","v":-2905498.6700000004},{"$f":"SUM(D36:D39)","v":1042036.36},{"$f":"SUM(E36:E39)","v":-1863462.3100000003}]

{"sheet":"Revenues","index":32,"n_rows":163,"n_cols":18,"rows_kept":163,"cut":false,"hidden":false,"merged":[]}
[null,"Revenues"]
[null,{"$f":"Inputs!$C$3","v":"PacifiCorp"}]
[null,"Cost Of Service By Rate Schedule"]
[null,{"$f":"Inputs!$C$4","v":"State of Washington"}]
[null,{"$f":"+Method&\" - \"&IF(PeakMethod=1,\"(Coincident Peaks)\",IF(PeakMethod=2,\"(200 Top Hours)\",\"(100 Summer, 100 Winter Hours)\"))&\" - \"&TEXT(Demand,\"0%\")&\"D\"&\" / \"&TEXT(Engy,\"0%\")&\"E\"","v":"WCA Method - (100 Summer, 100 Winter Hours) - 38%D / 62%E"}]
[null,{"$f":"Inputs!$C$5","v":"12 Months Ending June 2012"}]
[null,"Revenue - Normalized"]
[]
[null,"A","B","C","D","E","F","G","H","I","J","K","L"]
[]
[null,null,null,null,{"$f":"'Hot Sheet'!$J$10","v":"Small General"},{"$f":"'Hot Sheet'!$K$10","v":"Large General"},{"$f":"'Hot Sheet'!$L$10","v":"Large General"},{"$f":"'Hot Sheet'!$M$10","v":"Large General"},{"$f":"'Hot Sheet'!$N$10","v":"Agricultural"},{"$f":"'Hot Sheet'!$O$10","v":"Street & Area"}]
[null,"Customer",null,{"$f":"'Hot Sheet'!$I$11","v":"Residential"},{"$f":"'Hot Sheet'!$J$11","v":"Service"},{"$f":"'Hot Sheet'!$K$11","v":"Service <1,000 kW"},{"$f":"'Hot Sheet'!$L$11","v":"Service >1,000 kW"},{"$f":"'Hot Sheet'!$M$11","v":"Dedicated Facilities"},{"$f":"'Hot Sheet'!$N$11","v":"Pumping"},{"$f":"'Hot Sheet'!$O$11","v":"Lighting"},{"$f":"'Hot Sheet'!P$11","v":"-"},{"$f":"'Hot Sheet'!Q$11","v":"-"}]
["Line","Class",null,{"$f":"'Hot Sheet'!$I$12","v":"Schedule 16"},{"$f":"'Hot Sheet'!$J$12","v":"Schedule 24"},{"$f":"'Hot Sheet'!$K$12","v":"Schedule 36"},{"$f":"'Hot Sheet'!$L$12","v":"Schedule 48T"},{"$f":"'Hot Sheet'!$M$12","v":"Schedule 48T"},{"$f":"'Hot Sheet'!$N$12","v":"Schedule 40"},{"$f":"'Hot Sheet'!$O$12","v":"Sch. 15,51-54,57"},{"$f":"'Hot Sheet'!P$12","v":"-"},{"$f":"'Hot Sheet'!Q$12","v":"-"},"Total",null,null,null,null,"Adjusted"]
[null,null,null,null,null,null,null,null,null,null,null,null,null,null,null,null,null,"Revenue"]
[1,"Residential",null,{"$f":"+R17+R18+R19+R20","v":134571287.30281949},{"$f":"$R$21","v":271705.55621653527},0,0,0,0,{"$f":"R24","v":156887.85984894983},0,0,{"$f":"SUM(D15:L15)","v":134999880.71888497}]
[{"$f":"A15+1","v":2},null,null,null,null,null,null,null,null,null,null,null,null,null,null,"Residential"]
[{"$f":"A16+1","v":3},"Commercial",null,0,{"$f":"$R$31+$R$32+$R$33","v":43458680.353980131},{"$f":"R36","v":52969239.478465267},{"$f":"R37","v":9080033.396697171},0,0,{"$f":"R40+R42","v":331568.73085743334},0,0,{"$f":"SUM(D17:L17)","v":105839521.96000001},null,null,"02RESD00016",null,129048567.55899252]
[4,null,null,null,null,null,null,null,null,null,null,null,null,null,null,"02RESD00017",null,5278963.2333239168]
[5,"Industrial",null,0,{"$f":"$R$49+$R$50+$R$51","v":1530951.4202735049},{"$f":"R54","v":8328171.0650087027},{"$f":"R57+R58","v":13989468.173826128},{"$f":"+R56","v":25058234.385966681},{"$f":"R61+R62","v":12299348},{"$f":"R65","v":20057.103231119261},0,0,{"$f":"SUM(D19:L19)","v":61226230.148306131},null,null,"02RESD00018",null,204464.72360287554]
[6,null,null,null,null,null,null,null,null,null,null,null,null,null,null,"02RESD0018X",null,39291.786900204534]
[7,"Lighting",null,0,0,0,0,0,0,{"$f":"R75+R76+R77+R78+R79","v":1161963.04},0,0,{"$f":"SUM(D21:L21)","v":1161963.04},null,null,"02RGNSB024",null,271705.55621653527]
[8,null,null,null,null,null,null,null,null,null,null,null,null,null,null,"Subtotal",null,{"$f":"SUM(R17:R21)","v":134842992.85903603}]
[9,"OSPA",null,0,0,0,0,0,0,0,0,0,{"$f":"SUM(D23:L23)","v":0}]
[10,null,null,null,null,null,null,null,null,null,null,null,null,null,null,"02OALTO15R",null,156887.85984894983]
[11,"Interdepartmental",null,0,0,0,0,0,0,0,0,0,{"$f":"SUM(D25:L25)","v":0}]
[12,null,null,null,null,null,null,null,null,null,null,null,null,null,null,"AGA-Revenue Credit",null,359.04999999999995]
[13]
[14,"Tariff Revenues  ",null,{"$f":"D15+D17+D19+D21+D23+D25","v":134571287.30281949},{"$f":"E15+E17+E19+E21+E23+E25","v":45261337.330470175},61297410.543473966,23069501.570523299,{"$f":"H15+H17+H19+H21+H23+H25","v":25058234.385966681},12299348,{"$f":"J15+J17+J19+J21+J23+J25","v":1670476.7339375024},0,0,{"$f":"M15+M17+M19+M21","v":303227595.86719114},null,null,"Total",null,{"$f":"+R22+R24+R26","v":135000239.76888499}]
[{"$f":"A28+1","v":15}]
[16,null,null,null,null,null,null,null,null,null,null,null,null,null,null,"Commercial"]
[17,"Total AGA Revenues",null,{"$f":"+D77","v":358},{"$f":"+E77","v":146937},{"$f":"+F77","v":179091},{"$f":"+G77","v":30700},{"$f":"+H77","v":0},{"$f":"I74","v":186753.91999999998},{"$f":"+J77","v":1212},0,0,{"$f":"SUM(D31:L31)","v":545051.91999999993},null,null,"02GNSV0024",null,43182957.813040935]
[18,"Misc Revenues",null,0,0,0,0,0,0,0,0,0,0,null,null,"02GNSV024F",null,156406.35838974404]
[19,"Gross Receipts Adj.","F31",0,0,0,0,0,0,0,0,0,0,null,null,"02GNSV24FP",null,119316.18254945622]
[20,"Unbilled Revenue Adj.",null,0,0,0,0,0,0,0,0,0,0,null,null,"Subtotal",null,{"$f":"SUM(R31:R33)","v":43458680.353980131}]
[21,"Firm Revenue",null,{"$f":"D28+D31+D32+D33+D34","v":134571645.30281949},{"$f":"E28+E31+E32+E33+E34","v":45408274.330470175},61476501.543473966,23100201.570523299,{"$f":"H28+H31+H32+H33+H34","v":25058234.385966681},12486101.92,1671688.7339375024,0,0,303772647.78719109]
[22,"Firm Revenue factor",null,{"$f":"+D35/$M$35","v":0.44300119277721833},0.14948111576616038,0.20237668529834696,7.60443764071419E-2,8.2490094379798498E-2,4.1103443680509312E-2,5.5030916908246769E-3,0,0,1,null,null,"02LGSV0036",null,52969239.478465267]
[23,null,null,null,null,null,null,null,null,null,null,null,null,null,null,"02LGSV048T",null,9080033.396697171]
[24,"Non-Firm",null,0,0,0,0,0,0,0,0,0,{"$f":"SUM(D38:L38)","v":0},null,null,"Subtotal",null,{"$f":"SUM(R36:R37)","v":62049272.875162438}]
[25,null,null,null,null,null,null,null,null,null,null,null,null,null,null,null,null," "]
[26,null,null,null,null,null,null,null,null,null,null,null,null,null,null,"02OALT015N",null,306843.11141744111]
[27,"Total Revenue",null,{"$f":"D35+D38","v":134571645.30281949},45408274.330470175,61476501.543473966,23100201.570523299,{"$f":"H35+H38","v":25058234.385966681},12486101.92,1671688.7339375024,{"$f":"K35+K38","v":0},{"$f":"L35+L38","v":0},{"$f":"SUM(D41:L41)","v":303772647.78719109}]
[null,null,null,null,null,null,null,null,null,null,null,null,null,null,null,"02RCFL0054",null,24725.619439992213]
[]
[null,null,null,null,null,null,null,null,null,null,null,null,null,null,null,"AGA-Revenue Credit",null,357848.37]
[null,{"$f":"Inputs!$C$3","v":"PacifiCorp"}]
[null,"Cost Of Service By Rate Schedule",null,null,null,null,null,null,null,null,null,null,null,null,null,"Total",null,{"$f":"+R34+R38+R40+R42+R44","v":106197370.33000001}]
[null,{"$f":"Inputs!$C$4","v":"State of Washington"},null,null,null,null,null,null,null,null,null,null,null,null,null,null,null," "]
[null,{"$f":"+Method&\" - \"&IF(PeakMethod=1,\"(Coincident Peaks)\",IF(PeakMethod=2,\"(200 Top Hours)\",\"(100 Summer, 100 Winter Hours)\"))&\" - \"&TEXT(Demand,\"0%\")&\"D\"&\" / \"&TEXT(Engy,\"0%\")&\"E\"","v":"WCA Method - (100 Summer, 100 Winter Hours) - 38%D / 62%E"},null,null,null,null,null,null,null,null,null,null,null,null,null,"Industrial",null," "]
[null,{"$f":"Inputs!$C$5","v":"12 Months Ending June 2012"},null,null,null,null,null,null,null,null,null,null,null,null,null,"02GNSV0024",null,1520674.4830125303]
[null,"Revenue - AGA Spread",null,null,null,null,null,null,null,null,null,null,null,null,null,"02GNSV024F",null,7872.2739508222903]
[null,null,null,null,null,null,null,null,null,null,null,null,null,null,null,"02GNSV24FP",null,2404.6633101525531]
[null,null,null,null,null,null,null,null,null,null,null,null,null,null,null,"Subtotal",null,{"$f":"SUM(R49:R51)","v":1530951.4202735049}]
[null,"A",null,"B","C","D","E","F","G","H","I"]
[null,null,null,null,null,null,null,null,null,null,null,null,null,null,null,"02LGSV0036",null,8328171.0650087027]
[null,null,null,null,{"$f":"'Hot Sheet'!$J$10","v":"Small General"},{"$f":"'Hot Sheet'!$K$10","v":"Large General"},{"$f":"'Hot Sheet'!$L$10","v":"Large General"},{"$f":"'Hot Sheet'!$M$10","v":"Large General"},{"$f":"'Hot Sheet'!$N$10","v":"Agricultural"},{"$f":"'Hot Sheet'!$O$10","v":"Street & Area"},null,null,null,null,null,"02PRSV47TM - partial req",null,290560.51169386157]
[null,"Customer",null,"Residential",{"$f":"'Hot Sheet'!$J$11","v":"Service"},{"$f":"'Hot Sheet'!$K$11","v":"Service <1,000 kW"},{"$f":"'Hot Sheet'!$L$11","v":"Service >1,000 kW"},{"$f":"'Hot Sheet'!$M$11","v":"Dedicated Facilities"},{"$f":"'Hot Sheet'!$N$11","v":"Pumping"},{"$f":"'Hot Sheet'!$O$11","v":"Lighting"},"Total Firm",null,null,null,null,"02LGSV048B",null,25058234.385966681]
["Line","Classes",null,"Schedule 16","Schedule 24",{"$f":"'Hot Sheet'!$K$12","v":"Schedule 36"},{"$f":"'Hot Sheet'!$L$12","v":"Schedule 48T"},{"$f":"'Hot Sheet'!$M$12","v":"Schedule 48T"},{"$f":"'Hot Sheet'!$N$12","v":"Schedule 40"},{"$f":"'Hot Sheet'!$O$12","v":"Sch. 15,51-54,57"},"Revenues",null,null,null,null,"02LGSV048M",null,0]
[null,null,null,null,null,null,null,null,null,null,null,null,null,null,null,"02LGSV048T",null,13989468.173826128]
[1,"Firm Revenues ",null,null,null,null,null,null,null,null,null,null,null,null,null,"Subtotal",null,{"$f":"SUM(R54:R58)","v":47666434.136495374}]
[{"$f":"A59+1","v":2}]
[{"$f":"A60+1","v":3},"  Residential",null,{"$f":"$D$15","v":134571287.30281949},{"$f":"$E$15","v":271705.55621653527},null,null,null,null,{"$f":"+J15","v":156887.85984894983},{"$f":"SUM(D61:J61)","v":134999880.71888497},null,null,null,null,"02APSV0040",null,11861348.20330886]
[4,"  Commercial",null,null,{"$f":"$E$17","v":43458680.353980131},{"$f":"F$17","v":52969239.478465267},{"$f":"+G17","v":9080033.396697171},null,null,{"$f":"+J17","v":331568.73085743334},{"$f":"SUM(D62:J62)","v":105839521.96000001},null,null,null,null,"02APSV040X",null,437999.79669113969]
[5,"  Industrial",null,null,{"$f":"$E$19","v":1530951.4202735049},{"$f":"F$19","v":8328171.0650087027},{"$f":"+G19","v":13989468.173826128},{"$f":"+H19","v":25058234.385966681},{"$f":"I19","v":12299348},{"$f":"+J19","v":20057.103231119261},{"$f":"SUM(D63:J63)","v":61226230.148306131},null,null,null,null,"Subtotal",null,{"$f":"SUM(R61:R62)","v":12299348}]
[6,"  Lighting",null,null,null,null,null,null,null,{"$f":"+J21","v":1161963.04},{"$f":"SUM(D64:J64)","v":1161963.04}]
[7,"  Interdepartmental",null,null,null,null,null,null,null,null,null,null,null,null,null,"02OALT015N",null,20057.103231119261]
[8,"Total Firm Revenue",null,{"$f":"SUM(D61:D65)","v":134571287.30281949},45261337.330470175,61297410.543473966,23069501.570523299,{"$f":"SUM(H61:H65)","v":25058234.385966681},12299348,1670476.7339375024,303227595.86719114]
[9,null,null,null,null,null,null,null,null,null,null,null,null,null,null,"AGA-Industrial Revenue Credit",null,0]
[10,null,null,null,null,null,null,null,null,null,null,null,null,null,null,"AGA-Irrigation Revenue Credit",null,186753.91999999998]
[11]
[12,"AGA Revenues ",null,null,null,null,null,null,null,null,null,null,null,null,null,"Total",null,{"$f":"+R52+R59+R63+R65+R68","v":61703544.579999998}]
[13]
[14,"  Residential",null,{"$f":"ROUND((D61/$K61)*$K72,0)","v":358},{"$f":"ROUND((E61/$K61)*$K72,0)","v":1},null,null,null,null,{"$f":"ROUND((J61/$K61)*$K72,0)","v":0},{"$f":"+R26","v":359.04999999999995}]
[15,"  Commercial",null,null,{"$f":"ROUND((E62/$K62)*$K73,0)","v":146936},{"$f":"ROUND((F62/$K62)*$K73,0)","v":179091},{"$f":"ROUND((G62/$K62)*$K73,0)","v":30700},null,null,{"$f":"ROUND((J62/$K62)*$K73,0)","v":1121},{"$f":"+R44","v":357848.37},null,null,null,null,"Public Street & Highway Lighting"]
[16,"  Industrial",null,null,{"$f":"ROUND((E63/($E$63+$F$63+$G$63+$J$63+$H$63))*$R$67,0)","v":0},{"$f":"ROUND((F63/($E$63+$F$63+$G$63+$J$63+$H$63))*$R$67,0)","v":0},{"$f":"ROUND((G63/($E$63+$F$63+$G$63+$J$63+$H$63))*$R$67,0)","v":0},{"$f":"ROUND((H63/($E$63+$F$63+$G$63+$J$63+$H$63))*$R$67,0)","v":0},{"$f":"R68","v":186753.91999999998},{"$f":"ROUND((J63/($E$63+$F$63+$G$63+$J$63+$H$63))*$R$67,0)","v":0},{"$f":"SUM(D74:J74)","v":186753.91999999998}]
[17,"  Lighting",null,null,null,null,null,null,null,{"$f":"ROUND((J64/$K64)*$K75,0)","v":91},{"$f":"+R82","v":90.84},null,null,null,null,"02COSL0052",null,46625.268810114016]
[18,"  Interdepartmental",null,null,null,null,null,null,null,null,null,null,null,null,null,"02CUSL053F",null,223033.97188668809]
[19,"Total AGA Revenues",null,{"$f":"SUM(D72:D76)","v":358},146937,179091,30700,{"$f":"SUM(H72:H76)","v":0},186753.91999999998,1212,{"$f":"SUM(D77:J77)","v":545051.91999999993},null,null,null,null,"02CUSL053M",null,73193.605783507781]
[null,null,null,null,null,null,null,null,null,null,null,null,null,null,null,"02HPSV0051",null,600444.97901647212]
[null,null,null,null,null,null,null,null,null,null,null,null,null,null,null,"02MVSL0057",null,218665.21450321807]
[null,null,null,null,null,null,null,null,null,null,null,null,null,null,null,"Sub Total",null,{"$f":"SUM(R75:R79)","v":1161963.04}]
[]
[null,{"$f":"Inputs!$C$3","v":"PacifiCorp"},null,null,null,null,null,null,null,null,null,null,null,null,null,"AGA-Revenue Credit",null,90.84]
[null,"Cost Of Service By Rate Schedule"]
[null,{"$f":"Inputs!$C$4","v":"State of Washington"},null,null,null,null,null,null,null,null,null,null,null,null,null,"Total",null,{"$f":"+R80+R82","v":1162053.8800000001}]
[null,{"$f":"+Method&\" - \"&IF(PeakMethod=1,\"(Coincident Peaks)\",IF(PeakMethod=2,\"(200 Top Hours)\",\"(100 Summer, 100 Winter Hours)\"))&\" - \"&TEXT(Demand,\"0%\")&\"D\"&\" / \"&TEXT(Engy,\"0%\")&\"E\"","v":"WCA Method - (100 Summer, 100 Winter Hours) - 38%D / 62%E"}]
[null,{"$f":"Inputs!$C$5","v":"12 Months Ending June 2012"},null,null,null,null,null,null,null,null,null,null,null,null,null,null,null," "]
[null,"Summary Of Sales For Resale / Other Electric Revenue",null,null,null,null,null,null,null,null,null,null,null,null,null,"Total",null,{"$f":"+R28+R46+R70+R84","v":304063208.55888498}]
[null,"Determination Of Situs Allocations"]
[]
[null,null,null,null,null,null,null,null,null,null,null,null,null,null,null,"Total less Sch 47",null,{"$f":"R87-R55","v":303772648.04719114}]
[null,"A","B","C","D","E","F","G","H","I","J","K","L","M"]
[]
[null,null,null,null,null,{"$f":"+E11","v":"Small General"},"Large General","Large General",{"$f":"+H11","v":"Large General"},{"$f":"+I11","v":"Agricultural"},"Street & Area"]
[null,null,null,null,"Residential","Service","Service <1,000 kW","Service >1,000 kW",{"$f":"+H12","v":"Dedicated Facilities"},"Pumping","Lighting",{"$f":"K12","v":"-"},{"$f":"L12","v":"-"}]
["ACCT","DESCRIPTION",null,"Total","Schedule 16","Schedule 24","Schedule 36","Schedule 48T",{"$f":"+H13","v":"Schedule 48T"},"Schedule 40","Sch. 15,51-54,57",{"$f":"K13","v":"-"},{"$f":"L13","v":"-"},"Check"]
[]
[]
["450","Forfeited Discounts & Int"]
[null,"257 Residential Discounts",null,{"$f":"$F133","v":521476.94800980977},{"$f":"$D99*(D61/$K$61)","v":519821.37923925405},{"$f":"$D99*(E61/$K$61)","v":1049.5430326205171},0,0,0,0,606.02573793516206,0,0,{"$f":"SUM(E99:M99)-D99","v":0}]
[null,"258 Commercial Discounts",null,{"$f":"$F134","v":121858.72756399492},{"$f":"$D100*(D62/$K$62)","v":0},{"$f":"$D100*(E62/$K$62)","v":50036.313387241629},60986.331035374067,10454.33024894301,0,0,381.75289243620773,0,0,{"$f":"SUM(E100:M100)-D100","v":0}]
[null,"259 Industrial Discounts",null,{"$f":"$F135","v":25152.332164227566},{"$f":"$D101*(D63/$K$63)","v":0},{"$f":"$D101*(E63/$K$63)","v":628.92976681303105},3421.2938546144173,5747.0098919474221,10294.166947698966,5052.6920496343273,8.2396535194037348,0,0,{"$f":"SUM(E101:M101)-D101","v":0}]
[null,"260 Other Discounts",null,{"$f":"$F136","v":9634.0522619677886},{"$f":"$D102*(D64/$K$64)","v":0},{"$f":"$D102*(E64/$K$64)","v":0},0,0,0,0,9634.0522619677886,0,0,{"$f":"SUM(E102:M102)-D102","v":0}]
[null,"Total Account 450",null,{"$f":"IF(G137=0,SUM(D98:D102),\" Error\")","v":678122.06},{"$f":"SUM(E98:E102)","v":519821.37923925405},51714.786186675177,64407.624889988481,16201.340140890432,{"$f":"SUM(I98:I102)","v":10294.166947698966},5052.6920496343273,10630.070545858562,{"$f":"SUM(L98:L102)","v":0},{"$f":"SUM(M98:M102)","v":0},{"$f":"SUM(E103:M103)-D103","v":0}]
[]
[]
["451","Misc. Service Revenues"]
[null,"  70 Returned Checks","F40",{"$f":"$F140","v":44740.302886494297},{"$f":"VLOOKUP($C107,FactSum,'COS Factor Table'!F$115)*$D107","v":35249.782360088822},{"$f":"VLOOKUP($C107,FactSum,'COS Factor Table'!G$115)*$D107","v":6302.1514330393593},{"$f":"VLOOKUP($C107,FactSum,'COS Factor Table'!H$115)*$D107","v":353.01312298268004},{"$f":"VLOOKUP($C107,FactSum,'COS Factor Table'!I$115)*$D107","v":19.572684744206683},{"$f":"VLOOKUP($C107,FactSum,'COS Factor Table'!J$115)*$D107","v":0.33797510830270078},{"$f":"VLOOKUP($C107,FactSum,'COS Factor Table'!K$115)*$D107","v":1777.7490696722061},{"$f":"VLOOKUP($C107,FactSum,'COS Factor Table'!L$115)*$D107","v":1037.6962408587258},{"$f":"VLOOKUP($C107,FactSum,'COS Factor Table'!M$115)*$D107","v":0},{"$f":"VLOOKUP($C107,FactSum,'COS Factor Table'!N$115)*$D107","v":0},{"$f":"SUM(E107:M107)-D107","v":0}]
[null,"  72 Misc. Service Revenue","F21",{"$f":"$F141","v":45006.629201926116},{"$f":"VLOOKUP($C108,FactSum,'COS Factor Table'!F$115)*$D108","v":27164.294450572859},{"$f":"VLOOKUP($C108,FactSum,'COS Factor Table'!G$115)*D108","v":6196.2901021200869},{"$f":"VLOOKUP($C108,FactSum,'COS Factor Table'!H$115)*D108","v":6986.389527452051},{"$f":"VLOOKUP($C108,FactSum,'COS Factor Table'!I$115)*D108","v":2059.0618848114896},{"$f":"VLOOKUP($C108,FactSum,'COS Factor Table'!J$115)*D108","v":0},{"$f":"VLOOKUP($C108,FactSum,'COS Factor Table'!K$115)*D108","v":2503.5348414257051},{"$f":"VLOOKUP($C108,FactSum,'COS Factor Table'!L$115)*D108","v":97.05839554393016},{"$f":"VLOOKUP($C108,FactSum,'COS Factor Table'!M$115)*G108","v":0},{"$f":"VLOOKUP($C108,FactSum,'COS Factor Table'!N$115)*H108","v":0},0]
[null,"  73 Temp. Service Connect","F40",{"$f":"$F142","v":11181.415683756552},{"$f":"VLOOKUP($C109,FactSum,'COS Factor Table'!F$115)*$D109","v":8809.5619363605492},{"$f":"VLOOKUP($C109,FactSum,'COS Factor Table'!G$115)*D109","v":1575.0223026779488},{"$f":"VLOOKUP($C109,FactSum,'COS Factor Table'!H$115)*D109","v":88.224402054326546},{"$f":"VLOOKUP($C109,FactSum,'COS Factor Table'!I$115)*D109","v":4.8915700174698475},{"$f":"VLOOKUP($C109,FactSum,'COS Factor Table'!J$115)*D109","v":8.4466128588412223E-2},{"$f":"VLOOKUP($C109,FactSum,'COS Factor Table'!K$115)*D109","v":444.29183637504826},{"$f":"VLOOKUP($C109,FactSum,'COS Factor Table'!L$115)*D109","v":259.3391701426217},{"$f":"VLOOKUP($C109,FactSum,'COS Factor Table'!M$115)*G109","v":0},{"$f":"VLOOKUP($C109,FactSum,'COS Factor Table'!N$115)*H109","v":0},0]
[null,"145 Connect Fee","F40",{"$f":"$F143","v":0},{"$f":"VLOOKUP($C110,FactSum,'COS Factor Table'!F$115)*$D110","v":0},{"$f":"VLOOKUP($C110,FactSum,'COS Factor Table'!G$115)*D110","v":0},{"$f":"VLOOKUP($C110,FactSum,'COS Factor Table'!H$115)*D110","v":0},{"$f":"VLOOKUP($C110,FactSum,'COS Factor Table'!I$115)*D110","v":0},{"$f":"VLOOKUP($C110,FactSum,'COS Factor Table'!J$115)*D110","v":0},{"$f":"VLOOKUP($C110,FactSum,'COS Factor Table'!K$115)*D110","v":0},{"$f":"VLOOKUP($C110,FactSum,'COS Factor Table'!L$115)*D110","v":0},{"$f":"VLOOKUP($C110,FactSum,'COS Factor Table'!M$115)*G110","v":0},{"$f":"VLOOKUP($C110,FactSum,'COS Factor Table'!N$115)*H110","v":0},0]
[null,"146 Reconnect Fee","F40",{"$f":"$F144","v":61107.99222782303},{"$f":"VLOOKUP($C111,FactSum,'COS Factor Table'!F$115)*$D111","v":48145.481535016603},{"$f":"VLOOKUP($C111,FactSum,'COS Factor Table'!G$115)*$D111","v":8607.7159952572929},{"$f":"VLOOKUP($C111,FactSum,'COS Factor Table'!H$115)*$D111","v":482.15863067071547},{"$f":"VLOOKUP($C111,FactSum,'COS Factor Table'!I$115)*$D111","v":26.733110642119989},{"$f":"VLOOKUP($C111,FactSum,'COS Factor Table'!J$115)*$D111","v":0.4616191433427595},{"$f":"VLOOKUP($C111,FactSum,'COS Factor Table'!K$115)*$D111","v":2428.116693982915},{"$f":"VLOOKUP($C111,FactSum,'COS Factor Table'!L$115)*$D111","v":1417.3246431100526},{"$f":"VLOOKUP($C111,FactSum,'COS Factor Table'!M$115)*$D111","v":0},{"$f":"VLOOKUP($C111,FactSum,'COS Factor Table'!N$115)*$D111","v":0},0]
[null,"Total Account 451",null,{"$f":"IF(G147=0,SUM(D107:D111),\" Error\")","v":162036.34},{"$f":"SUM(E107:E111)","v":119369.12028203883},{"$f":"SUM(F107:F111)","v":22681.179833094691},7909.7856831597737,2110.2592502152861,{"$f":"SUM(I107:I111)","v":0.88406038023387246},7153.6924414558744,2811.4184496553303,{"$f":"SUM(L107:L111)","v":0},{"$f":"SUM(M107:M111)","v":0},0]
[]
[]
["454","Rent From Electric Prop"]
[null,"  75 All Other","F20",{"$f":"$F148","v":1090881.68},{"$f":"VLOOKUP($C116,FactSum,'COS Factor Table'!F$115)*$D116","v":514915.82676780707},{"$f":"VLOOKUP($C116,FactSum,'COS Factor Table'!G$115)*D116","v":140756.31711288399},{"$f":"VLOOKUP($C116,FactSum,'COS Factor Table'!H$115)*D116","v":206452.27698855338},{"$f":"VLOOKUP($C116,FactSum,'COS Factor Table'!I$115)*D116","v":78951.94315350971},{"$f":"VLOOKUP($C116,FactSum,'COS Factor Table'!J$115)*D116","v":73844.454691424136},{"$f":"VLOOKUP($C116,FactSum,'COS Factor Table'!K$115)*D116","v":72052.137187026543},{"$f":"VLOOKUP($C116,FactSum,'COS Factor Table'!L$115)*D116","v":3908.7240987951254},{"$f":"VLOOKUP($C116,FactSum,'COS Factor Table'!M$115)*G116","v":0},{"$f":"VLOOKUP($C116,FactSum,'COS Factor Table'!N$115)*H116","v":0},{"$f":"SUM(E116:M116)-D116","v":0}]
[null,"  76 Temp Service Connect","F40",{"$f":"$F149","v":0},{"$f":"VLOOKUP($C117,FactSum,'COS Factor Table'!F$115)*$D117","v":0},{"$f":"VLOOKUP($C117,FactSum,'COS Factor Table'!G$115)*D117","v":0},{"$f":"VLOOKUP($C117,FactSum,'COS Factor Table'!H$115)*D117","v":0},{"$f":"VLOOKUP($C117,FactSum,'COS Factor Table'!I$115)*D117","v":0},{"$f":"VLOOKUP($C117,FactSum,'COS Factor Table'!J$115)*D117","v":0},{"$f":"VLOOKUP($C117,FactSum,'COS Factor Table'!K$115)*D117","v":0},{"$f":"VLOOKUP($C117,FactSum,'COS Factor Table'!L$115)*D117","v":0},{"$f":"VLOOKUP($C117,FactSum,'COS Factor Table'!M$115)*G117","v":0},{"$f":"VLOOKUP($C117,FactSum,'COS Factor Table'!N$115)*H117","v":0},{"$f":"SUM(E117:M117)-D117","v":0}]
[null,"Total  Account 454",null,{"$f":"IF(G150=0,SUM(D116:D117),\" Error\")","v":1090881.68},{"$f":"SUM(E116:E117)","v":514915.82676780707},140756.31711288399,206452.27698855338,78951.94315350971,{"$f":"SUM(I116:I117)","v":73844.454691424136},72052.137187026543,3908.7240987951254,{"$f":"SUM(L116:L117)","v":0},{"$f":"SUM(M116:M117)","v":0},{"$f":"SUM(E118:M118)-D118","v":0}]
[]
[]
["456","Other Electric Revenues"]
[null,"  79 Other Electric Revenues","F10",{"$f":"$F153","v":-2967338},{"$f":"VLOOKUP($C122,FactSum,'COS Factor Table'!F$115)*$D122","v":-1258967.3954232335},{"$f":"VLOOKUP($C122,FactSum,'COS Factor Table'!G$115)*$D122","v":-400444.75171694078},{"$f":"VLOOKUP($C122,FactSum,'COS Factor Table'!H$115)*$D122","v":-634470.13792042457},{"$f":"VLOOKUP($C122,FactSum,'COS Factor Table'!I$115)*$D122","v":-250717.93425291532},{"$f":"VLOOKUP($C122,FactSum,'COS Factor Table'!J$115)*$D122","v":-309981.51443035796},{"$f":"VLOOKUP($C122,FactSum,'COS Factor Table'!K$115)*$D122","v":-105637.48543916573},{"$f":"VLOOKUP($C122,FactSum,'COS Factor Table'!L$115)*$D122","v":-7118.7808169621649},{"$f":"VLOOKUP($C122,FactSum,'COS Factor Table'!M$115)*$D122","v":0},{"$f":"VLOOKUP($C122,FactSum,'COS Factor Table'!N$115)*$D122","v":0},{"$f":"SUM(E122:M122)-D122","v":0}]
[null," 163 Billing Services","F40",{"$f":"$F154","v":0},{"$f":"VLOOKUP($C123,FactSum,'COS Factor Table'!F$115)*$D123","v":0},{"$f":"VLOOKUP($C123,FactSum,'COS Factor Table'!G$115)*$D123","v":0},{"$f":"VLOOKUP($C123,FactSum,'COS Factor Table'!H$115)*$D123","v":0},{"$f":"VLOOKUP($C123,FactSum,'COS Factor Table'!I$115)*$D123","v":0},{"$f":"VLOOKUP($C123,FactSum,'COS Factor Table'!J$115)*$D123","v":0},{"$f":"VLOOKUP($C123,FactSum,'COS Factor Table'!K$115)*$D123","v":0},{"$f":"VLOOKUP($C123,FactSum,'COS Factor Table'!L$115)*$D123","v":0},{"$f":"VLOOKUP($C123,FactSum,'COS Factor Table'!M$115)*$D123","v":0},{"$f":"VLOOKUP($C123,FactSum,'COS Factor Table'!N$115)*$D123","v":0},{"$f":"SUM(E123:M123)-D123","v":0}]
[null,"Total  Account 456",null,{"$f":"IF(G155=0,SUM(D122:D123),\" Error\")","v":-2967338},{"$f":"E122+E123","v":-1258967.3954232335},-400444.75171694078,-634470.13792042457,-250717.93425291532,{"$f":"I122+I123","v":-309981.51443035796},-105637.48543916573,-7118.7808169621649,{"$f":"L122+L123","v":0},{"$f":"M122+M123","v":0},{"$f":"SUM(E124:M124)-D124","v":0}]
[]
[]
[]
[]
[null,null,null,"305 Report"]
[null,null,null,"June 2012",null,"JAM Data","check"]
[]
[450,"Forfeited Discounts & Int"]
[null," Residential Discounts",null,509015.9,{"$f":"D133/$D$137","v":0.76900159834028958},{"$f":"E133*$F$137","v":521476.94800980977}]
[null," Commercial Discounts",null,118946.83,{"$f":"D134/$D$137","v":0.17970028517284176},{"$f":"E134*$F$137","v":121858.72756399492}]
[null," Industrial Discounts",null,24551.3,{"$f":"D135/$D$137","v":3.7091157547990056E-2},{"$f":"E135*$F$137","v":25152.332164227566}]
[null," Other Forfeited Discounts",null,9403.84,{"$f":"D136/$D$137","v":1.4206958938878626E-2},{"$f":"E136*$F$137","v":9634.0522619677886}]
[null,"Total Account 450",null,{"$f":"SUM(D133:D136)","v":661917.87},{"$f":"SUM(E132:E136)","v":1},{"$f":"'Func Study'!$H$302","v":678122.06},{"$f":"SUM(F132:F136,-F137)","v":0}]
[]
[451,"Misc. Service Revenues"]
[null,"Returned Checks","F40",61120,{"$f":"D140/$D$145","v":0.27611277128633183},{"$f":"E140*$F$145","v":44740.302886494297}]
[null," Misc. Service Revenue","F21",{"$f":"221358.83-D140-D142-D143-D144","v":61483.829999999987},{"$f":"D141/$D$145","v":0.27775639218909853},{"$f":"E141*$F$145","v":45006.629201926116}]
[null," Temp. Service Connect","F44",15275,{"$f":"D142/$D$145","v":6.9005605062151809E-2},{"$f":"E142*$F$145","v":11181.415683756552}]
[null," Connect Fee","F43",0,{"$f":"D143/$D$145","v":0},{"$f":"E143*$F$145","v":0}]
[null," Reconnect Fee","F40",83480,{"$f":"D144/$D$145","v":0.37712523146241783},{"$f":"E144*$F$145","v":61107.99222782303}]
[null,"Total Account 451",null,{"$f":"SUM(D140:D144)","v":221358.83},{"$f":"SUM(E140:E144)","v":1},{"$f":"'Func Study'!$H$307","v":162036.34},{"$f":"SUM(F140:F144,-F145)","v":0}]
[]
[454,"Rent From Electric Property"]
[null," Rent on Electric Property","F20",{"$f":"D150-D149","v":1770939.7},{"$f":"D148/D150","v":1},{"$f":"E148*F150","v":1090881.68}]
[null," Temp Service Connect","F44",0,{"$f":"D149/D150","v":0},{"$f":"E149*F150","v":0}]
[null,"Total  Account 454",null,1770939.7,{"$f":"SUM(E148:E149)","v":1},{"$f":"'Func Study'!$H$318","v":1090881.68},{"$f":"SUM(F148:F149,-F150)","v":0}]
[]
[456,"Other Electric Revenues"]
[null," Other Electric Revenues","F10",{"$f":"D155-D154","v":4262946.5199999996},{"$f":"D153/$D$155","v":1},{"$f":"ROUND(E153*$F$155,0)","v":-2967338}]
[null," Billing Services","F40",0,{"$f":"D154/$D$155","v":0},{"$f":"ROUND(E154*$F$155,0)","v":0}]
[null,"Total  Account 456",null,4262946.5199999996,{"$f":"E154+E153","v":1},{"$f":"ROUND('Func Study'!$H$325,0)","v":-2967338},{"$f":"SUM(F153:F154,-F155)","v":0}]
[]
[]
[]
[]
[null,"STATE SPECIFIC REVENUE CREDIT",null,null,"Description","Amount"]
[null,{"$f":"+P55","v":"02PRSV47TM - partial req"},null,null,null,{"$f":"+R55","v":290560.51169386157}]
[null,"Misc revenues",null,null,null,0]
[null,null,null,null,null,{"$f":"SUM(F161:F161)","v":290560.51169386157}]

{"sheet":"DistInvest","index":33,"n_rows":30,"n_cols":12,"rows_kept":30,"cut":false,"hidden":false,"merged":[]}
[null,"Distribution Plant Investment to Serve"]
[null,{"$f":"Inputs!$C$3","v":"PacifiCorp"}]
[null,"Cost Of Service By Rate Schedule"]
[null,{"$f":"Inputs!$C$4","v":"State of Washington"}]
[null,{"$f":"+Method&\" - \"&IF(PeakMethod=1,\"(Coincident Peaks)\",IF(PeakMethod=2,\"(200 Top Hours)\",\"(100 Summer, 100 Winter Hours)\"))&\" - \"&TEXT(Demand,\"0%\")&\"D\"&\" / \"&TEXT(Engy,\"0%\")&\"E\"","v":"WCA Method - (100 Summer, 100 Winter Hours) - 38%D / 62%E"}]
[null,{"$f":"Inputs!$C$5","v":"12 Months Ending June 2012"}]
[null,"Distribution Direct Assignments"]
[]
[null,"A","B","C","D","E","F","G","H","I","J"]
[]
[null,null,null,"Direct Assignments",null,null,"Demand",null,"Customer",null,"Meters"]
[null,null,"Total"]
[null,"FERC","Distribution",null,null,"Schedule 48"]
["Line","Account","Investment","Schedule 09","St Lighting","Ded Facilities","Primary","Secondary","Primary","Secondary"]
[]
[1,"360",{"$f":"Acct360","v":1510453.72},0,0,0,{"$f":"(+$C16-SUM($D16:$F16))*1","v":1510453.72},0,0,0,0]
[{"$f":"A16+1","v":2},"361",{"$f":"Acct361","v":2440663.6},0,0,0,{"$f":"(+$C17-SUM($D17:$F17))*1","v":2440663.6},0,0,0,0]
[3,"362",{"$f":"Acct362","v":47592408.020000003},0,0,2510579.0200000005,{"$f":"(+$C18-SUM($D18:$F18))*1","v":45081829},0,0,0,0]
[4,"364",{"$f":"Acct364","v":92644359.829999998},0,0,0,{"$f":"(+$C19-SUM($D19:$F19))*Inputs!C27","v":90412079.795344546},{"$f":"(+$C19-SUM($D19:$F19))*(1-Inputs!C27)","v":2232280.0346554583},0,0,0]
[5,"365",{"$f":"Acct365","v":58634040.060000002},0,0,0,{"$f":"(+$C20-SUM($D20:$F20))*Inputs!C28","v":33695237.643228479},{"$f":"(+$C20-SUM($D20:$F20))*(1-Inputs!C28)","v":24938802.416771524},0,0,0]
[6,"366",{"$f":"Acct366","v":16364985.75},0,0,0,{"$f":"(+$C21-SUM($D21:$F21))*Inputs!C29","v":8245307.0941753099},{"$f":"(+$C21-SUM($D21:$F21))*(1-Inputs!C29)","v":8119678.6558246901},0,0,0]
[7,"367",{"$f":"Acct367","v":22764714.91},0,0,0,{"$f":"(+$C22-SUM($D22:$F22))*Inputs!C30","v":9686956.9912418462},{"$f":"(+$C22-SUM($D22:$F22))*(1-Inputs!C30)","v":13077757.918758152},0,0,0]
[8,"368",{"$f":"Acct368","v":98870912.760000005},0,0,0,{"$f":"(+$C23-SUM($D23:$F23))*Inputs!C31","v":0},{"$f":"(+$C23-SUM($D23:$F23))*(1-Inputs!C31)","v":98870912.760000005},0,0,0]
[9,"369",{"$f":"Acct369","v":52234063.350000001},0,0,0,0,0,0,{"$f":"(+$C24-SUM($D24:$F24))*1","v":52234063.350000001},0]
[10,"370",{"$f":"Acct370","v":11451993.6},0,0,110788.96,0,0,0,0,{"$f":"(+$C25-SUM($D25:$F25))","v":11341204.639999999}]
[11,"371",{"$f":"Acct371","v":518187.33},0,{"$f":"+C26","v":518187.33},0,0,0,0,0,0]
[12,"372",{"$f":"Acct372","v":0},0,0,0,0,0,{"$f":"C27","v":0},0,0]
[13,"373",{"$f":"Acct373","v":4036517},0,{"$f":"+C28","v":4036517},0,0,0,0,0,0,"  Allocation Check"]
[14,null,null,null,null,null,null,null,null,null,null,"  Should Equal \"0\""]
[15,"TOTAL",{"$f":"SUM(C16:C28)","v":409063299.93000007},0,4554704.33,2621367.9800000004,191072527.84399018,147239431.78600985,0,52234063.350000001,11341204.639999999,{"$f":"SUM(D30:K30)-C30","v":0}]

{"sheet":"200 Top Hrs","index":34,"n_rows":8793,"n_cols":18,"rows_kept":4500,"cut":true,"hidden":false,"merged":[],"bounds":{"rows_first":2000,"rows_last":500,"rows_between":2000,"halvings":0}}
["Data at Sales Level"]
[]
[null,null,null,null,null,null,null,null,null,"Sch 16","Sch 24","Sch 36","Sch 36","Sch 48T","Sch 48T","Sch 48T","Sch 40","Lighting"]
[null,null,null,null,null,null,null,null,null,"sec","sec","sec","pri","pri, ded fac","sec","pri","sec","sec"]
[null,null,null,null,null,null,null,null,"@ Input",{"$f":"J6*Inputs!$D$15","v":69008979.208235309},{"$f":"K6*Inputs!$D$15","v":17107808.517091282},{"$f":"L6*Inputs!$D$15","v":27129647.676119447},{"$f":"M6*Inputs!$D$16","v":508634.64931387862},{"$f":"N6*Inputs!$D$16","v":11927284.427189043},{"$f":"O6*Inputs!$D$15","v":7874467.5595623804},{"$f":"P6*Inputs!$D$16","v":2036860.1538315553},{"$f":"Q6*Inputs!$D$15","v":968418.07304593001},{"$f":"R6*Inputs!$D$15","v":210262.12887622419}]
[null,null,null,null,null,null,null,null,"@ Sales",{"$f":"SUM(J10:J209)","v":62194344.843710013},15418413.004219005,24450595.884999998,469319.73510419985,11005365.001051001,7096864.1541880015,1879421.0522819005,872786.82106215029,189498.75075590023]
[]
[]
["Rank","Date","Hour","System","WCA","Oregon","California","Washington","Season","Sch 016","Sch 024","Sch 036Sec","Sch 036Pri","Sch 48DedFac","Sch 048Sec","Sch 048Pri","Sch 040","Lighting"]
[1,"2011-12-13","KW60MN08 ",8380990.8023767509,3591427.5337819699,2676685.342552511,144154.37211,770587.8191194589,"Winter",344999.85488,74985.407447000005,131120.06771,2516.7990069000002,58230.650787999999,35026.477364999999,10443.537710000001,816.33821894000005,0]
[2,"2011-12-13","KW60MN09 ",8343372.9327268722,3509840.4893995812,2623509.1396399774,139147.81617000003,747183.53358960385,"Winter",327636.82569999999,79136.950024000005,139125.13970999999,2670.4532690999999,58002.652937999999,35047.423526999999,10569.917600999999,816.33821894000005,0]
[3,"2011-12-14","KW60MN08 ",8263315.5406737262,3477180.619605185,2592317.9312704448,137909.80422999998,746952.88410474034,"Winter",332498.03126999998,74757.387778999997,122779.70032,2356.7088795,57045.061970000002,35584.743863000003,10441.465576000001,816.33821894000005,0]
[4,"2012-01-12","KW60MN08 ",8397183.7193589397,3464313.2527792277,2528927.7669662251,148535.71342297443,786849.77239002788,"Winter",354598.29450999998,75097.250507999997,128730.55224999999,2470.9331815999999,53397.096376000001,35247.548841000003,10615.240465000001,742.46966563000001,0]
[5,"2011-12-22","KW60MN09 ",8400580.4086667243,3423667.9254878731,2531137.1599144284,136999.17041200001,755531.59516144521,"Winter",327643.50280000002,76146.051961999998,120574.17581,2314.3746891999999,57181.860679999998,36981.947347000001,9602.0682558000008,816.33821894000005,0]
[6,"2011-12-14","KW60MN09 ",8352067.2691990854,3423488.261281075,2567037.1376531702,131938.78311999998,724512.34050790477,"Winter",289849.71896000003,78674.147658999995,132917.25425,2551.2953078,56771.464549999997,35719.242376000002,10416.721851,816.33821894000005,0]
[7,"2011-12-13","KW60MN10 ",8261344.1290986976,3414088.3734263564,2544294.1296064635,130166.23462999999,739628.00918989279,"Winter",307332.39545000001,81540.915445000006,136920.70571000001,2628.1400109000001,57820.254658999998,35366.499956,10648.679028,816.33821894000005,0]
[8,"2011-12-22","KW60MN08 ",8340407.8845935874,3388155.4936922556,2490180.6808566842,137660.17366,760314.63917557173,"Winter",312525.33639000001,72990.045352000001,119585.61130999999,2295.3995756999998,57409.858528999997,36161.120498999997,9725.7665613000008,816.33821894000005,0]
[9,"2012-01-12","KW60MN09 ",8290910.4312970089,3359011.0193118881,2480437.1347607877,137559.12185306472,741014.76269803592,"Winter",341189.31774999999,82415.354777,135460.40848000001,2600.1101699999999,42863.595724999999,35194.882846,10937.315178999999,742.46966563000001,0]
[10,"2012-01-13","KW60MN08 ",8353540.7672087075,3350304.4115037159,2434237.3099151151,144866.85534540995,771200.24624319095,"Winter",371962.09740000003,74359.956548000002,126087.16607000001,2420.1944059000002,57501.057669000002,36594.125898999999,9638.1274592999998,742.46966563000001,0]
[11,"2011-12-22","KW60MN10 ",8288242.1094219266,3346886.3069792548,2484922.5018455121,134171.49170100002,727792.31343274307,"Winter",332088.97931000002,78217.219761999993,118075.27468,2266.4092482000001,54126.689494999999,37122.312161000002,9643.6328367000006,816.33821894000005,0]
[12,"2011-12-14","KW60MN10 ",8279334.424328546,3342261.6263377867,2505599.572698052,123738.03015999999,712924.02347973443,"Winter",289676.17790000001,80242.122912999999,135523.32543999999,2601.3178367999999,56543.466700999998,36298.701467999999,10398.113271,816.33821894000005,0]
[13,"2011-12-13","KW60MN07 ",8116190.7013573283,3333515.669964198,2460347.3944489933,127228.03823999999,745940.23727520474,"Winter",341671.86022999999,68977.849466,119062.4546,2285.3577848999998,57364.258958999999,34011.627008000003,10161.219537999999,816.33821894000005,1780.6270629999999]
[14,"2011-12-13","KW60MN18 ",8690561.5791128818,3322853.8181044124,2409757.7539062705,129341.883548,783754.18065014191,"Winter",364640.80379999999,83108.966218000001,128055.16387,2457.9693627000001,57136.261109999999,33785.514009999999,8854.4949371999992,816.33821894000005,3053.2304963000001]
[15,"2011-12-13","KW60MN19 ",8592745.6176188402,3320030.8587419498,2423412.246114546,131274.28158499999,765344.33104240394,"Winter",358465.94735999999,81843.820120000004,128576.14172,2467.9693311999999,56361.068421000004,33539.038153000001,8539.0022981000002,816.33821894000005,3053.2304963000001]
[16,"2011-12-06","KW60MN08 ",8379711.1267433083,3317726.9938563281,2460022.0582810864,131321.13388000001,726383.80169524171,"Winter",357444.48859000002,69568.337960000004,130430.83202,2503.5693944999998,58686.646486999998,35222.058997,10661.944751999999,816.33821894000005,0]
[17,"2011-12-13","KW60MN20 ",8462320.3498597629,3285921.1306761224,2407448.8411860499,123249.02277,755223.26672007237,"Winter",356142.13581000001,79388.515767999997,125689.99451999999,2412.5708515000001,54719.483904000001,33322.532721000003,8412.4395707000003,816.33821894000005,3053.2304963000001]
[18,"2012-01-16","KW60MN10 ",8097416.792991166,3285687.7670311946,2418163.3708000001,144249.18300417773,723275.21322701708,"Winter",350009.84324000002,78574.228675000006,110411.34888000001,2119.3031553999999,58048.252507999998,35633.323270000001,7677.3396890000004,742.46966563000001,0]
[19,"2011-12-13","KW60MN11 ",8105995.1610124931,3279701.2826076332,2421628.5628019609,120496.40393,737576.31587567215,"Winter",288401.59338999999,81449.539827000001,135540.57474000001,2601.6489305,57774.655089,36344.318663999999,10591.024932,816.33821894000005,0]
[20,"2012-02-28","KW60MN08 ",8054215.4343878096,3266358.9451564001,2402874.2390999999,147679.0037,715805.70235640008,"Winter",328624.49621999997,68684.763957999996,119781.02554,2299.1504764000001,52713.102828000003,34920.679125000002,9492.7394583999994,747.06969021999998,0]
[21,"2012-01-16","KW60MN09 ",8022348.784030173,3265796.7425754974,2407831.6007020669,141784.28723310109,716180.85464032902,"Winter",346429.59193,69818.163537999993,112232.56266,2154.2606498,57911.453798000002,34830.518627999998,7655.7041670999997,742.46966563000001,0]
[22,"2012-01-13","KW60MN09 ",8226864.2009307388,3256508.3264852334,2381514.9420693633,138988.26019740774,736005.12421846262,"Winter",327559.11695,79688.692093999998,131115.14642,2516.7045447999999,57455.458099000003,36541.897130999998,9757.3158256000006,742.46966563000001,0]
[23,"2011-12-09","KW60MN08 ",8184530.4828467611,3250874.8775350507,2354760.9573231433,129702.27038999999,766411.64982190751,"Winter",402187.42888999998,71898.154288000005,135071.0459,2592.6365058000001,58230.650787999999,36367.765963999998,9284.2597019000004,816.33821894000005,0]
[24,"2011-12-12","KW60MN08 ",8025468.7933707554,3248779.4676377061,2318470.8985246955,123843.32186,806465.24725301052,"Winter",399181.88526000001,74160.894665999993,120185.73691000001,2306.9187545999998,58641.046917,34698.434799000002,9549.3913463000008,816.33821894000005,0]
[25,"2012-01-12","KW60MN07 ",8270225.9517898783,3245428.622488461,2338960.5035201074,137574.86805992792,768893.25090842554,"Winter",355331.46146999998,68461.640216,111840.50496000001,2146.7352538,57546.657239,34847.309641,10120.812914,742.46966563000001,2085.9501132]
[26,"2011-12-14","KW60MN07 ",8084355.6807970079,3238071.4207552378,2398118.7302729301,118249.70653,721702.98395230749,"Winter",308542.65721999999,69400.226299000002,114955.64006000001,2206.5290676999998,56589.066271000003,35348.758969000002,9961.8070628000005,816.33821894000005,1831.5142378999999]
[27,"2011-12-14","KW60MN18 ",8513133.1998557653,3237978.1723731752,2372495.7748111458,128539.36857999999,736943.02898202941,"Winter",363394.15711999999,81816.915827000004,123287.52396999999,2366.4563582000001,56452.267561000001,35029.561310999998,9011.4489699999995,816.33821894000005,3053.2304963000001]
[28,"2012-01-12","KW60MN10 ",8172137.6177219385,3233800.7402299778,2393311.2154497067,130971.32522645364,709518.19955381751,"Winter",283459.21333,88740.751052000007,132666.02226999999,2546.4730070999999,46055.565619000001,36425.002968000001,10945.177100999999,742.46966563000001,0]
[29,"2011-12-14","KW60MN11 ",8112602.2410474839,3227034.4077487141,2406291.2357769129,116462.48441,704280.68756180094,"Winter",289213.99528999999,87083.096963999997,134282.15492999999,2577.4940486999999,56041.871432,36419.929641000002,10339.646573,816.33821894000005,0]
[30,"2011-12-05","KW60MN08 ",8322092.0291239414,3225077.4153260002,2384828.8037260552,128061.22295999998,712187.3886399453,"Winter",366388.26490000001,68912.981262000001,124108.79888,2382.2204124,58230.650787999999,35384.566379999997,10121.686462,816.33821894000005,0]
[31,"2012-01-16","KW60MN19 ",8387549.5790474704,3225068.2348519177,2386201.840653243,138891.14343751932,699975.2507611555,"Winter",359505.64627999999,70607.615898000004,115180.26416999999,2210.8406405000001,57090.661540000001,33502.734386999997,8430.4387000999996,742.46966563000001,3053.2304963000001]
[32,"2012-01-11","KW60MN08 ",8066250.3981124461,3223402.5273926533,2357267.8044741126,137419.66963332077,728715.05328522006,"Winter",331677.05512999999,67877.877794999993,120208.12314,2307.3484496999999,58230.650787999999,37251.613139000001,10448.08828,742.46966563000001,0]
[33,"2011-12-07","KW60MN08 ",8228814.6303606825,3223279.8574239323,2368347.5117598814,125238.14647000001,729694.19919405109,"Winter",368223.71535999997,70745.114767000006,130418.07111,2503.3244536000002,59005.843476000002,35762.824976000004,10906.436312,816.33821894000005,0]
[34,"2012-01-16","KW60MN11 ",8154981.203466624,3223054.4670801219,2380462.1015826045,135303.1485339702,707289.2169635474,"Winter",338288.00049000001,74120.104389999993,110202.68214999999,2115.2978782,57729.055519000001,36553.795172999999,7367.7993581999999,742.46966563000001,0]
[35,"2012-03-07","KW60MN08 ",7784734.1468034443,3220060.4825317329,2421164.5235052765,144399.51614756737,654496.4428788888,"Winter",312049.42862000002,66363.002527999997,113187.17088999999,2172.5839857000001,54445.886484000002,34888.684098999998,8806.7748978,1354.3257784,0]
[36,"2011-12-06","KW60MN09 ",8206033.9173410069,3218638.5719325254,2411332.866384292,124465.24059999999,682840.4649482331,"Winter",324868.29797000001,78307.552565000005,138135.50821999999,2651.4576754,59051.443046,35714.908860000003,10886.324418,816.33821894000005,0]
[37,"2011-12-12","KW60MN19 ",8323320.6178495949,3217377.8928819732,2325563.7946642144,123827.66888,767986.42933775904,"Winter",382216.56756,75283.983397999997,123019.27383999999,2361.3074006000002,57546.657239,33297.024492999997,8495.9750339999991,816.33821894000005,3053.2304963000001]
[38,"2011-12-13","KW60MN21 ",8218830.979089858,3210033.4531891486,2358454.9676416824,119101.42090999999,732477.06463746657,"Winter",360617.16113999998,75975.926978000003,124400.02752,2387.8104337,54491.486054000001,32619.205695000001,8218.4308973999996,816.33821894000005,3053.2304963000001]
[39,"2011-12-14","KW60MN19 ",8420203.6893587578,3204286.4477002369,2344073.2541548256,129774.29113,730438.90241541155,"Winter",357134.72405999998,78344.431884999998,122382.76589,2349.0898766,56406.667991000002,33878.841133000002,8762.1224306999993,816.33821894000005,3053.2304963000001]
[40,"2012-01-17","KW60MN08 ",8283262.9461301854,3202618.4981798003,2359931.4932568655,156063.38544290708,686623.61948002782,"Winter",324144.37297000003,73269.712455999994,120206.39257,2307.3152320999998,37984.441743000003,35570.215498999998,10167.151531,742.46966563000001,0]
[41,"2012-01-16","KW60MN18 ",8430622.9990969375,3201981.8787324945,2361280.6125707608,133903.37139399193,706797.89476774167,"Winter",341256.96844999999,76984.431444000002,113794.68141,2184.2449151000001,57364.258958999999,32950.476286999998,8319.7013929999994,742.46966563000001,3053.2304963000001]
[42,"2011-12-12","KW60MN09 ",7991345.2136160638,3201036.783495774,2298945.2424195758,122808.58875000001,779282.95232619822,"Winter",322622.76749,78174.358319000006,126205.29702,2422.4618836999998,58413.049068,35044.911460000003,9564.4041634000005,816.33821894000005,0]
[43,"2011-12-09","KW60MN09 ",8136454.7210770324,3201001.5396440523,2329066.7848966424,129387.45834,742547.29640740994,"Winter",363645.93685,82364.202235000004,141180.27346999999,2709.9007670999999,57501.057669000002,35657.580932999997,9473.0067786,816.33821894000005,0]
[44,"2011-12-22","KW60MN11 ",8089682.0754830297,3198033.2975529693,2376028.9772107028,127262.12604100001,694742.19430126646,"Winter",302985.97321000003,78411.252353999997,122050.23694,2342.7071119000002,51253.916590000001,36836.479897999998,9267.7435698999998,816.33821894000005,0]
[45,"2012-01-27","KW60MN08 ",8056775.1374145122,3196032.9440597976,2345825.8748538098,137364.93400163474,712842.13520435314,"Winter",335005.87647000002,74044.075339000003,115963.74146,2225.8791844000002,57546.657239,36365.845703999999,9109.4487442999998,742.46966563000001,0]
[46,"2011-12-08","KW60MN08 ",8164675.0362633113,3194139.0953126205,2332245.8512765928,126978.83501999998,734914.40901602781,"Winter",350155.39345999999,70872.611294000002,132476.01527,2542.8258962999998,45736.368629999997,35424.701343000001,10967.137665,816.33821894000005,0]
[47,"2011-12-12","KW60MN18 ",8397545.1976286322,3192408.9942905232,2304763.750770946,124119.60586999998,763525.63764957723,"Winter",364492.36017,79842.151327,123447.247,2369.5221799999999,57364.258958999999,33972.600513999998,8635.6003337000002,816.33821894000005,3053.2304963000001]
[48,"2012-01-16","KW60MN08 ",7941979.1438679602,3191413.2476659296,2332623.8248115256,136396.68402652393,722392.73882788012,"Winter",345385.14484999998,65190.454824,110887.93193999999,2128.4509828999999,58002.652937999999,35390.788419999997,7901.6787252000004,742.46966563000001,0]
[49,"2011-12-05","KW60MN09 ",8124300.4243062623,3159356.2883550925,2357857.7593909157,122006.04263999999,679492.48632417666,"Winter",326602.04452,76552.627502999996,132824.63871,2549.5175883000002,57957.053368000001,34646.339187999998,10442.603218,816.33821894000005,0]
[50,"2012-01-16","KW60MN20 ",8267496.910237411,3158911.0087172166,2328172.420352241,136152.25012746116,694586.33823751402,"Winter",363486.59788999998,72220.581607999993,112929.99819,2167.6476551000001,57364.258958999999,33615.890261,8148.9940751000004,742.46966563000001,3053.2304963000001]
[51,"2012-01-13","KW60MN10 ",8018689.7680345159,3158296.6637293566,2315246.7377200024,129899.67834263049,713150.24766672344,"Winter",312854.13595000003,81479.442412999997,133880.73189,2569.7888886000001,57409.858528999997,37323.202125000003,9937.6321595000009,742.46966563000001,0]
[52,"2011-12-12","KW60MN20 ",8197053.3503083773,3153247.1852699481,2275016.9464673526,121017.80679,757212.43201259593,"Winter",374127.56624999997,73181.936075999998,120311.48862,2309.3325101999999,57729.055519000001,32586.965660999998,8483.8672671000004,816.33821894000005,3053.2304963000001]
[53,"2012-01-11","KW60MN09 ",7932516.6139178565,3152814.8631363297,2320082.9068921665,131446.2955800519,701285.66066411138,"Winter",298482.20455000002,76197.490514999998,127872.11887000001,2454.4558848000001,58458.648636999998,37375.540694000003,10593.584628000001,742.46966563000001,0]
[54,"2012-01-27","KW60MN09 ",7971739.5936268708,3149568.7065505479,2338714.1348742675,129778.22758787895,681076.3440884013,"Winter",297438.13900999998,77700.334048999997,122128.56091,2344.2105102,57364.258958999999,36473.817608999998,9410.0707719000002,742.46966563000001,0]
[55,"2011-12-22","KW60MN19 ",8455126.703723453,3145909.8360561444,2313424.6115282415,125726.09128000001,706759.13324790297,"Winter",318440.47476999997,79097.011352999994,116133.00507,2229.1281337999999,56725.864979999998,33759.853748000001,9043.1810693000007,816.33821894000005,3053.2304963000001]
[56,"2012-01-17","KW60MN09 ",8219133.209831927,3143460.7197672585,2338914.1691492624,146373.77033018068,658172.78028781526,"Winter",279836.34515000001,79725.354495000007,129574.92624,2487.1406138000002,38531.636581999999,35874.506200000003,10440.91707,742.46966563000001,0]
[57,"2011-12-22","KW60MN07 ",7996803.0456619682,3140180.9659411288,2297518.4491497176,119381.49812,723281.01867141097,"Winter",341235.69711000001,64607.997126000002,110663.89139,2124.1506110999999,56953.862829999998,35878.392548999997,9326.0477482999995,816.33821894000005,2085.9501132]
[58,"2011-12-12","KW60MN10 ",7966812.9785048291,3139716.5248120301,2274214.2710448047,117839.04189999998,747663.21186722536,"Winter",321740.62696999998,86219.514792000002,133826.67790000001,2568.7513431000002,52758.702397000001,35627.307923,9630.7124688000004,816.33821894000005,0]
[59,"2011-12-13","KW60MN12 ",7958372.3648834191,3139025.6553165386,2291717.1005984377,111655.71120000001,735652.84351810126,"Winter",278383.34424000001,88131.679892,135943.73639000001,2609.3874624999999,57683.455949000003,36156.036742999997,10498.246123999999,816.33821894000005,0]
[60,"2012-02-28","KW60MN09 ",7897720.1412905073,3136387.8988988055,2332109.5569999013,133080.88707541529,671197.45482348895,"Winter",303159.67323999997,75204.536678999997,126354.7231,2425.3300597000002,52849.901536999998,35053.626861999997,9506.3708532000001,747.06969021999998,0]
[61,"2012-02-15","KW60MN08 ",7899599.960314705,3134748.5473424485,2291232.2898636553,151802.07581816573,691714.18166062748,"Winter",323653.31984000001,67562.276169999997,115923.05572,2225.0982371,56771.464549999997,34986.861338000002,9098.1180282999994,747.06969021999998,0]
[62,"2011-12-07","KW60MN09 ",7983132.2366010407,3134732.5198403001,2322661.8948157504,121896.90467999999,690173.72034454951,"Winter",320860.55317000003,80996.469863000006,141395.63407,2714.0345306999998,58549.847777000003,35699.622802999998,10700.502705999999,816.33821894000005,0]
[63,"2012-01-24","KW60MN08 ",8007329.1193965431,3133680.2541726609,2288727.3548865258,123358.41916671937,721594.48011941568,"Winter",330271.57822000002,69422.668502999994,116234.28492999999,2231.0721616999999,57774.655089,36384.032456000001,10106.368919,742.46966563000001,0]
[64,"2011-12-14","KW60MN17 ",8384688.9835504312,3131267.9747206504,2288127.7806740794,114160.00402000001,728980.19002657081,"Winter",336986.31542,89672.040645999994,126368.52056999999,2425.5948966999999,56361.068421000004,35576.980597000002,9206.1483561000005,816.33821894000005,3053.2304963000001]
[65,"2012-01-16","KW60MN12 ",8045456.6815442862,3128985.9341402887,2300253.4748092736,129520.61136787484,699211.84796314046,"Winter",364317.72746999998,72360.789546,110025.40850999999,2111.8951791999998,57592.256808999999,36396.278638000003,7270.9575407000002,742.46966563000001,0]
[66,"2011-08-25","KW60MN17 ",9362167.072918104,3128927.3459078614,2264259.2042,142083.61764000001,722584.52406786149,"Summer",280569.61810000002,106712.50704,136411.72034999999,2618.3702336000001,52758.702397000001,40322.506644000001,11074.888660000001,42723.498667,0]
[67,"2011-12-22","KW60MN18 ",8487049.0391760245,3126244.4133706247,2302416.4454717194,124921.51885199999,698906.44904690504,"Winter",318218.58302000002,77648.871394000002,116986.53449999999,2245.5113012000002,56862.663690000001,34262.108964999999,9065.7307684000007,816.33821894000005,3053.2304963000001]
[68,"2012-02-28","KW60MN07 ",7835566.2861307468,3125179.7971008467,2278917.0618977626,131096.33135286556,715166.40385021805,"Winter",313238.46145,62693.347909999997,105938.53415000001,2033.4492058999999,53625.094226000001,34296.415133000002,9028.2105744,747.06969021999998,0]
[69,"2011-08-25","KW60MN16 ",9367189.9566307757,3123817.6870680209,2264191.693490298,146969.02744600002,712656.96613172325,"Summer",255518.1819,104118.9181,141488.64048999999,2715.8197528999999,52530.704548000002,40674.445160000003,12287.513976,39095.465572000001,0]
[70,"2011-12-14","KW60MN20 ",8244762.8428021288,3120119.8210188085,2284472.8319043769,124384.66761,711262.32150443201,"Winter",342402.65311000001,72714.134950000007,114285.58279,2193.6675773000002,56908.26326,33745.475930000001,8596.9814346999992,816.33821894000005,3053.2304963000001]
[71,"2011-12-09","KW60MN10 ",8031003.8929799814,3119861.3172997404,2281963.8096611458,119481.57752000001,718415.93011859502,"Winter",345186.71834000002,90888.100548999995,137937.55067,2647.6579566999999,53169.098527000002,36507.007398000002,9763.6744343999999,816.33821894000005,0]
[72,"2012-01-17","KW60MN10 ",8170397.6800213959,3117719.4804218295,2327210.475194077,144486.88712830073,646022.11809945165,"Winter",272082.80991000001,77184.473473999999,126436.36766,2426.8971953999999,47697.150135999997,36596.395503,10520.247318,742.46966563000001,0]
[73,"2011-12-08","KW60MN09 ",8068077.508238106,3117258.5229786457,2300635.7425614833,119109.58358999999,697513.19682716229,"Winter",325193.81198,82865.759057999996,141134.24892000001,2709.0173436999999,43912.385833,35276.553395000003,10968.153417,816.33821894000005,0]
[74,"2012-02-06","KW60MN08 ",8079308.3425631849,3115730.231180734,2272823.6009077341,138314.78740840481,704591.842864595,"Winter",320879.32325000002,67164.732462999993,116034.95278000001,2227.2460580000002,55084.280463000003,32953.958494999999,9177.6903646999999,747.06969021999998,0]
[75,"2012-01-13","KW60MN07 ",8062150.738665361,3115068.31973411,2239288.4868294918,126778.1150974404,749001.71780717804,"Winter",380189.45249,67814.907223999995,111371.3655,2137.7303032,57592.256808999999,36307.389370999997,9213.8071273000005,742.46966563000001,2085.9501132]
[76,"2011-12-22","KW60MN20 ",8364672.4892408056,3111243.7985101053,2283558.8315598592,125486.58413000002,702198.38282024616,"Winter",322121.18997000001,74257.129253000006,110862.51414,2127.9630980000002,56634.665841000002,33331.951986,8923.3832523000001,816.33821894000005,3053.2304963000001]
[77,"2012-03-01","KW60MN08 ",7798041.9763854444,3110859.6084827003,2315035.2174,133084.90177686597,662739.4893058344,"Winter",292306.43663000001,62371.108586000002,108133.1459,2075.5739299000002,56999.462399999997,34291.059276,9019.4581763999995,1354.3257784,0]
[78,"2012-01-11","KW60MN10 ",7949572.7113946704,3108768.8685077303,2297105.5492824786,125198.88860223049,686464.43062302098,"Winter",278393.03133000003,74162.297403999997,127218.41432,2441.9082787000002,58048.252507999998,37329.703887999996,10777.374834,742.46966563000001,0]
[79,"2011-12-06","KW60MN10 ",8099552.8155146446,3103054.7039679457,2335490.5792967859,115313.13553999999,652250.98913115961,"Winter",300345.83661,81231.347360999993,136092.58593,2612.2445717999999,58869.044766999999,36301.226952999998,10986.030656000001,816.33821894000005,0]
[80,"2012-03-06","KW60MN08 ",7522025.9794238294,3101388.5504568694,2321370.8957437477,132554.29924871703,647463.35546440422,"Winter",290264.00662,57265.917763999998,110559.07769999999,2122.1387528999999,57546.657239,36505.859825,8870.3508292999995,1354.3257784,0]
[81,"2011-12-14","KW60MN12 ",8000382.6324276496,3099178.0359171294,2296697.5766482647,110036.51126999999,692443.94799886481,"Winter",295513.48035999999,86405.874903999997,136512.22500999999,2620.2993818,56315.468850999998,36181.649806000001,10190.391942,816.33821894000005,0]
[82,"2011-12-06","KW60MN07 ",8201198.5799381584,3096174.5024971892,2278078.5276565724,117431.64214,700664.33270061656,"Winter",374437.32017999998,65382.030615000003,119446.12402,2292.7221711000002,58093.852078000004,34301.224891999998,10070.41129,816.33821894000005,1424.4168388999999]
[83,"2012-01-17","KW60MN18 ",8270008.4633707246,3095815.8171448917,2295005.6477812654,136289.71023505196,664520.45912857435,"Winter",316987.84480999998,72287.324951000002,123496.55895999999,2370.4687038000002,49019.537664000003,35018.104964999999,8565.5134302000006,742.46966563000001,3053.2304963000001]
[84,"2012-02-28","KW60MN19 ",8051321.6533141145,3093295.9998328337,2292292.3745820816,139889.28116731136,661114.34408344107,"Winter",310548.1618,81759.194678,107612.41929000001,2065.5787839,56589.066271000003,32977.569703000001,7858.0335443000004,747.06969021999998,3053.2304963000001]
[85,"2012-01-12","KW60MN19 ",8244230.6785190431,3092484.3607299449,2244869.3993770084,124841.28877033957,722773.67258259701,"Winter",331642.33419999998,83621.081336999996,119311.94555999999,2290.1466673999998,56725.864979999998,33440.005710999998,8509.6876885999991,742.46966563000001,3053.2304963000001]
[86,"2012-01-11","KW60MN19 ",8193919.1219217703,3091549.8449552241,2258109.4651129213,128181.74765117334,705258.63219112949,"Winter",315506.73647,75408.099212999994,115356.14552000001,2214.2166151000001,57273.059820000002,33483.644954000003,8337.4567416999998,742.46966563000001,3053.2304963000001]
[87,"2012-02-03","KW60MN08 ",7861528.3156745229,3089184.4626222108,2255409.5529065481,146113.35792780048,687661.5517878622,"Winter",340228.68419,68042.195796999993,118101.65588999999,2266.9156251999998,58413.049068,35090.170157,9148.1184314000002,747.06969021999998,0]
[88,"2011-08-25","KW60MN18 ",9248331.5401523318,3088410.6777453991,2230245.1600143681,144247.98660799998,713917.53112303081,"Summer",309049.14186999999,105214.10632000001,130643.74507999999,2507.6561783000002,53169.098527000002,39963.517337999998,9856.5548177000001,41809.979192999999,0]
[89,"2011-12-05","KW60MN19 ",8537869.2283491436,3085033.7336316952,2304864.7467132541,120805.92447100001,659363.06244744081,"Winter",342068.82981999998,69833.132505000001,116974.60149,2245.2822517,57592.256808999999,34578.941621999998,8089.1053241999998,816.33821894000005,3053.2304963000001]
[90,"2011-12-12","KW60MN21 ",7937049.9406604394,3083788.91181876,2218354.7135891211,115417.86481000001,750016.33341963857,"Winter",362220.32264999999,68732.267452999993,117696.70178,2259.1426876,57045.061970000002,32563.330054999999,8322.0376230000002,816.33821894000005,3053.2304963000001]
[91,"2012-01-12","KW60MN11 ",8003556.7478211913,3083228.1134211305,2285903.3368504616,120468.56178995287,676856.21478071611,"Winter",255692.24228999999,87081.801881000007,127813.96588,2453.3396606000001,49338.734653,37053.260084000001,10620.298911,742.46966563000001,0]
[92,"2012-03-07","KW60MN07 ",7604229.1560167084,3083200.8388306163,2295781.0826296057,128000.77487313078,659418.98132787982,"Winter",328853.57380000001,56718.428898999999,102677.62218999999,1970.8572615,54172.289064999997,34016.191809999997,8538.7280444999997,1354.3257784,0]
[93,"2012-01-09","KW60MN08 ",7875764.6759488164,3082147.449239484,2252300.1489428496,145944.39086360816,683902.9094330261,"Winter",292566.39846,67737.915699000005,115939.57908,2225.4153967000002,53351.496806000003,34921.878231000002,9306.5249898000002,742.46966563000001,0]
[94,"2011-12-21","KW60MN09 ",7951585.3973548748,3080503.4313323353,2291660.4851711784,138767.37109999999,650075.57506115676,"Winter",262564.01856,73258.402176999996,119123.34646,2286.5265807000001,48244.344975,33972.758018,8989.1836810000004,816.33821894000005,0]
[95,"2011-12-13","KW60MN17 ",8413455.6139209438,3077946.6919407747,2192020.2272345028,113856.97628,772069.48842627183,"Winter",318947.45756000001,92058.781149999995,133837.07750000001,2568.9509594000001,57637.856378999997,34355.012274000001,8966.8371322000003,816.33821894000005,3053.2304963000001]
[96,"2012-01-18","KW60MN08 ",7986169.7133826232,3075563.0789215253,2304780.5867093033,130688.22846166296,640094.2637505593,"Winter",285662.14815000002,70685.364226999998,118709.56991000001,2278.5842997999998,45371.572070000002,37499.278949,9821.6535710000007,742.46966563000001,0]
[97,"2012-01-18","KW60MN18 ",8093968.6135021942,3073548.9891379983,2246702.113037046,128196.59665775583,698650.27944319637,"Winter",356267.45335000003,75984.123275000005,110764.73215,2126.0862106,50022.728201999998,33459.357485,8820.7313331999994,742.46966563000001,3053.2304963000001]
[98,"2012-02-29","KW60MN08 ",7815336.662022558,3073328.6932901926,2294617.6096945438,133717.31224545205,644993.7713501968,"Winter",296490.09655999998,61116.62844,110441.63583,2119.8845016999999,56862.663690000001,33432.510021000002,8687.7609028000006,747.06969021999998,0]
[99,"2011-08-25","KW60MN15 ",9226239.3624074552,3070824.3092388702,2235555.8839863734,141136.81073100001,694131.61452149693,"Summer",240781.03422999999,104489.47396,144680.36176,2777.0836086999998,52211.507557999998,42198.107152999997,12381.938302,44352.205329999997,0]
[100,"2012-01-17","KW60MN19 ",8201283.603021428,3069858.3059108616,2270655.472335997,137829.59399096094,661373.23958390334,"Winter",301478.06108000001,75544.201770999993,121584.6786,2333.7708997,48472.342825,35173.672363999998,8457.1326683999996,742.46966563000001,3053.2304963000001]
[101,"2011-12-05","KW60MN10 ",8065164.2503847806,3069207.7117148712,2309618.4965410982,115356.57528,644232.63989377301,"Winter",282661.47986000002,80509.396752999994,128775.43541000001,2471.7946965000001,57592.256808999999,35555.149052000001,10512.100984000001,816.33821894000005,0]
[102,"2012-01-18","KW60MN09 ",7962745.2325209565,3065745.3387764315,2308670.3009503353,129630.0603096488,627444.97751644719,"Winter",276326.06562000001,77439.437604999999,123829.67663,2376.8627688000001,46420.362179000003,37125.993312999999,10122.234968000001,742.46966563000001,0]
[103,"2012-01-17","KW60MN11 ",8079892.4868782954,3065525.1741628489,2291319.4651396498,138717.82073124943,635487.88829194917,"Winter",257447.49333999999,78814.357203000007,127030.63177000001,2438.3038652,48882.738954,36482.636460000002,10471.186486000001,742.46966563000001,0]
[104,"2011-12-06","KW60MN19 ",8387542.012923128,3064051.0079193185,2273642.3086602408,125678.16150400002,664730.5377550777,"Winter",304744.52042000002,73377.787567000007,123639.27061000001,2373.2079988,58413.049068,33597.478027999998,8478.1587395000006,816.33821894000005,3053.2304963000001]
[105,"2012-01-23","KW60MN08 ",7916925.7604359426,3061680.4069193313,2210853.1147021991,130467.6844491635,720359.60776796832,"Winter",329358.19309999997,67542.432165000006,113171.13957,2172.2762705999999,57820.254658999998,35342.171733000003,9184.6347234999994,742.46966563000001,0]
[106,"2011-08-26","KW60MN17 ",9116913.3538673595,3060209.0441112649,2179850.2933704657,137461.10744300002,742897.64329779905,"Summer",274598.08470000001,106986.00564,129095.19288,2477.9323175,56087.471001999998,39439.872774000003,10076.851159,43960.379682999999,0]
[107,"2011-12-23","KW60MN09 ",7974660.423432068,3059489.0591154983,2226103.2978760009,127138.76916999999,706246.99206949782,"Winter",320967.64117000002,75921.994667999999,113038.07252,2169.7221002000001,55950.672292000003,32173.331412,7594.2308425000001,816.33821894000005,0]
[108,"2011-12-06","KW60MN18 ",8471490.6329517234,3059302.3548683939,2280226.4005610961,118198.796401,660877.15790629748,"Winter",316707.38533999998,79029.339279000007,123162.80478999999,2364.0624217,58686.646486999998,33876.994843,8894.1295886000007,816.33821894000005,3053.2304963000001]
[109,"2012-01-24","KW60MN09 ",7900996.6614064649,3058802.2164023216,2244108.5576715884,121598.53381229381,693095.12491843943,"Winter",292541.87335000001,71820.497547000006,120810.30863,2318.9071674000002,56041.871432,36491.127206999998,10370.891111000001,742.46966563000001,0]
[110,"2011-12-22","KW60MN21 ",8164246.0495474739,3058605.987856654,2238599.9840603084,120233.09286400001,699772.91093234578,"Winter",342440.96694999997,72158.775968999995,111138.86525,2133.2675506999999,56999.462399999997,33033.697006000002,8894.5155749000005,816.33821894000005,3053.2304963000001]
[111,"2011-12-21","KW60MN10 ",8035875.0039401706,3058539.7059628605,2289526.7751897722,132716.71067,636296.22010308842,"Winter",290134.95838000003,81130.154183999999,117097.17259,2247.6349567000002,50752.321321000003,34156.365582999999,9567.7967762000007,816.33821894000005,0]
[112,"2012-01-16","KW60MN21 ",8044131.0405594287,3056544.5323162647,2251997.072793087,134687.01764639607,669860.44187678141,"Winter",344800.58049000002,69299.177733999997,107195.3063,2057.5724614000001,57501.057669000002,32614.574068999998,7865.0100699000004,742.46966563000001,3053.2304963000001]
[113,"2012-03-02","KW60MN08 ",7700305.9201939907,3055757.5515780859,2278549.7144323383,141136.52809204545,636071.30905370216,"Winter",285882.52429999999,66794.395126999996,108409.80590000001,2080.8843115999998,55084.280463000003,34186.411617999998,8669.7719309999993,1354.3257784,0]
[114,"2012-02-06","KW60MN09 ",7951426.8734879708,3053259.623823009,2245547.344916943,139146.12337305606,668566.15553300956,"Winter",285835.35005000001,73645.119252999997,117986.66433,2264.7084067000001,54765.083473999999,33272.752838,9568.7177243999995,747.06969021999998,0]
[115,"2012-01-11","KW60MN20 ",8123695.312190271,3052797.9584458903,2227050.8808345748,123566.4295402831,702180.64807103237,"Winter",331036.95423999999,75919.425392000005,114049.75023999999,2189.1408627000001,57546.657239,33074.533524999999,8126.3631162000001,742.46966563000001,3053.2304963000001]
[116,"2012-01-27","KW60MN10 ",7846265.8467605365,3052575.9938086965,2292240.0441151853,123638.64902059098,636697.3006729203,"Winter",297543.94458000001,75715.059456999996,121976.13460999999,2341.2847462999998,57592.256808999999,36744.103235000002,9360.4208030000009,742.46966563000001,0]
[117,"2012-03-08","KW60MN08 ",7588679.5736012533,3052131.4976983038,2288224.0966727277,133189.66031608949,630717.7407094863,"Winter",280577.37624999997,58868.844174999998,111453.36292,2139.304212,58185.051218000001,35909.144749999999,8959.1411171,1354.3257784,0]
[118,"2011-12-12","KW60MN11 ",7916405.1777111003,3052086.6599532999,2213709.3557565417,111288.37454,727088.92965675797,"Winter",280299.23787000001,80306.414275000003,132955.07941000001,2552.0213472,54810.683043999998,36250.560277999997,9469.4719612999997,816.33821894000005,0]
[119,"2012-01-16","KW60MN13 ",7982533.8506487282,3052061.7300917157,2245810.9979706658,121132.42864160729,685118.30347944295,"Winter",333606.86469000002,72263.862427,111801.1488,2145.9798274999998,57592.256808999999,36896.341755000001,7313.2534636999999,742.46966563000001,0]
[120,"2011-12-23","KW60MN10 ",7940672.0984816737,3050888.331187964,2211364.5897246012,129910.8104,709612.93106336275,"Winter",313546.37121999997,78560.760460999998,113221.70865,2173.2469246000001,56315.468850999998,32377.173158000001,7522.6812569000003,816.33821894000005,0]
[121,"2011-12-05","KW60MN20 ",8501722.248229241,3050020.0440354822,2273537.3201204357,118026.688517,658456.03539804637,"Winter",346860.58293999999,70298.316151000006,115315.87372,2213.4436135999999,57820.254658999998,33718.661985999999,8105.9871261999997,816.33821894000005,3053.2304963000001]
[122,"2011-12-05","KW60MN18 ",8562905.5725951046,3048919.6403772351,2272810.0923265056,118502.13732200001,657607.41072872945,"Winter",320996.00294999999,71198.975279000006,118157.38579,2267.9853391000001,57729.055519000001,34636.205456999996,8300.2598954999994,816.33821894000005,3053.2304963000001]
[123,"2012-02-28","KW60MN10 ",7812524.9594751075,3048497.2813965227,2274888.9107424538,132887.57359592835,640720.79705814028,"Winter",271947.98544999998,79247.570309000002,126255.92638999999,2423.4336948999999,53670.693796,36276.983927000001,8781.6908968000007,747.06969021999998,0]
[124,"2012-02-16","KW60MN08 ",7819070.9019330442,3044437.4843214611,2254030.3164348267,147408.51341342548,642998.65447320894,"Winter",295193.29742999998,72152.525508999999,113811.45119000001,2184.5668046000001,57136.261109999999,35213.181659000002,9012.7169678999999,747.06969021999998,0]
[125,"2012-01-11","KW60MN18 ",8208560.0245850785,3043422.1293906108,2219763.9170425194,119772.26014021505,703885.95220787625,"Winter",325407.05528999999,81273.693020999999,119029.64132,2284.7279468000002,57409.858528999997,33575.078088000002,8446.4672707000009,742.46966563000001,3053.2304963000001]
[126,"2012-02-27","KW60MN08 ",7786352.4191729967,3042508.2865017867,2248352.3546659718,141838.12834679906,652317.8034890159,"Winter",294563.92230999999,63002.342364999997,111696.26794000001,2143.9666799000001,56680.265411,35162.674411,8749.3628898000006,747.06969021999998,0]
[127,"2012-01-18","KW60MN19 ",7991649.6070058681,3041475.3073815042,2211854.6002672501,133397.1700290514,696223.53708520241,"Winter",384698.88079000002,73400.019279999993,111151.96686,2133.5190311000001,49840.329922999998,33634.713879000003,8585.6050090000008,742.46966563000001,3053.2304963000001]
[128,"2011-12-13","KW60MN13 ",7832701.0250952141,3041152.3531363634,2204976.692383389,106104.00110000001,730071.65965297457,"Winter",296809.74956000003,89550.090800999998,136204.43132,2614.3914009,57364.258958999999,37225.321876000002,10272.911652000001,816.33821894000005,0]
[129,"2011-08-26","KW60MN16 ",9172035.1697906591,3038795.443680827,2165310.6241906499,142602.22544400001,730882.59404617688,"Summer",251557.67494999999,106289.77189,135200.9259,2595.1295021999999,55813.873582,40367.158463,10871.372545,44204.061626000002,0]
[130,"2012-03-01","KW60MN09 ",7714949.264889637,3037701.6904938826,2285114.0211739293,124348.82560646346,628238.84371348983,"Winter",242908.07266000001,71918.258595000007,117553.43379,2256.3927139000002,56999.462399999997,34092.850756,9477.9907361000005,1354.3257784,0]
[131,"2011-12-07","KW60MN10 ",7932331.3885894204,3036799.6228098804,2263035.1840657275,113004.76932000001,660759.66942415305,"Winter",259927.12513,86443.903086999999,138969.34677,2667.4628839000002,58276.250357999998,36433.516973999998,10950.824683999999,816.33821894000005,0]
[132,"2012-01-12","KW60MN20 ",8121805.3030872867,3036644.308308573,2209077.7148599345,123282.16345854077,704284.429990098,"Winter",344574.03597000003,78072.548129000003,116901.03724000001,2243.8702143999999,56725.864979999998,32849.879272999999,8291.6666318000007,742.46966563000001,3053.2304963000001]
[133,"2011-08-26","KW60MN18 ",8996290.8865351118,3035382.3132297513,2165612.6789470054,139132.441017,730637.19326574577,"Summer",283183.96836,94352.335170000006,123596.20253,2372.3813236999999,56133.070571999997,38707.646525999997,9740.7793794999998,45293.727744999997,0]
[134,"2012-01-09","KW60MN09 ",7877625.852066501,3035225.9120128378,2233757.6676906371,138168.76062274221,663299.48369945865,"Winter",257813.65286999999,71261.650198000003,123317.88051,2367.0390401999998,52986.700247000001,35374.563817000002,9456.7344284999999,742.46966563000001,0]
[135,"2012-03-19","KW60MN08 ",7740637.198029249,3034744.5858550761,2265388.6794109009,136726.85752575126,632629.04891842394,"Winter",243973.15517000001,66628.528168000004,116600.4189,2238.0999617000002,58276.250357999998,35308.040978999998,8912.9582487000007,1354.3257784,0]
[136,"2012-01-18","KW60MN10 ",7929774.5127593121,3034428.4114737567,2275941.9126197174,125391.5169236337,633094.98193040513,"Winter",268977.70327,81918.313068999996,123082.39876,2362.5190590000002,47560.351427000001,37493.872735999998,10245.791068,742.46966563000001,0]
[137,"2012-01-24","KW60MN10 ",7870992.779326722,3031809.5886459108,2226190.5236155824,117879.13522207133,687739.92980825691,"Winter",289997.79162999999,79863.98616,119763.76338,2298.8191359000002,56497.867130999999,36814.865339999997,10485.569536999999,742.46966563000001,0]
[138,"2012-01-12","KW60MN18 ",8225581.3165273955,3030870.91732815,2187596.3467597407,124014.47808236394,719260.09248604509,"Winter",353280.37242999999,83481.220469000007,123784.63317,2375.9981769999999,57045.061970000002,34447.832113999997,8734.6768049999991,742.46966563000001,3053.2304963000001]
[139,"2011-12-09","KW60MN07 ",7956949.5449959869,3028274.7990075457,2169652.3624583506,114751.16593,743871.27061919507,"Winter",374590.59675999999,67529.462060000005,119520.93277,2294.1580961999998,57592.256808999999,35022.574616999998,8788.3694679,816.33821894000005,1577.0783635]
[140,"2012-01-18","KW60MN11 ",7764261.1799869956,3027854.0425106031,2269124.0210147649,127617.90377211673,631112.11772372143,"Winter",278050.22045999998,81952.121790000005,122693.75994,2355.0592872000002,47013.156587999998,36607.887619000001,10210.747617000001,742.46966563000001,0]
[141,"2012-02-29","KW60MN09 ",7711804.2769471947,3027746.6887594638,2279116.170054561,128066.05843644505,620564.46026845777,"Winter",240083.75404999999,69867.556632000007,117590.26442000001,2257.0996638000001,56589.066271000003,34135.316678000003,9213.9290177000003,747.06969021999998,0]
[142,"2012-03-07","KW60MN09 ",7598962.937668643,3027522.6873886576,2296591.7691933564,130871.68561390899,600059.23258139216,"Winter",247076.59783000001,72449.152409000002,121443.18723,2331.0550274000002,54217.888635000003,35537.805705999999,9363.9488493000008,1354.3257784,0]
[143,"2011-08-24","KW60MN16 ",9292066.1098780911,3027416.2193809003,2197653.2363861231,141839.40564900002,687923.57734577754,"Summer",240491.17383000001,106912.92346000001,138191.66620000001,2652.5356061000002,49703.531213000002,41557.729905,11760.115108,45288.903920999997,0]
[144,"2012-01-23","KW60MN19 ",8201834.9051170768,3026862.9316796148,2174010.8155929889,128389.15161972275,724462.96446690313,"Winter",313094.99914999999,66689.663771000007,106083.67015999999,2036.2350355000001,57045.061970000002,33617.282440000003,8266.8010180000001,742.46966563000001,3053.2304963000001]
[145,"2012-02-28","KW60MN20 ",7932874.4162925072,3025859.8505784436,2237006.2897321852,133761.09260320483,655092.46824305365,"Winter",267902.47792999999,80782.374741000007,104778.07569,2011.1746542999999,56771.464549999997,32293.318076,7729.4850220999997,747.06969021999998,3053.2304963000001]
[146,"2011-12-21","KW60MN19 ",8305289.2104350142,3025493.6498063435,2252544.9687188319,128443.88661800002,644504.7944695116,"Winter",313510.79181000002,69887.135513999994,111813.20778,2146.2112949000002,56497.867130999999,32852.059944000001,8840.5791312000001,816.33821894000005,3053.2304963000001]
[147,"2012-02-15","KW60MN09 ",7691937.2273285165,3024666.8087528432,2241775.0105263647,142037.45709010301,640854.34113637544,"Winter",263132.74864000001,74654.200561000005,130070.10231,2496.6453270000002,53305.897235999997,35249.517220000002,9502.1250089000005,747.06969021999998,0]
[148,"2011-12-14","KW60MN21 ",7989623.0628547734,3023409.3539979537,2208673.1427564383,114639.34692000001,700096.86432151555,"Winter",362083.15590000001,70932.059754999995,109289.20268,2097.7639927999999,56361.068421000004,33525.365860999998,8335.9940583999996,816.33821894000005,3053.2304963000001]
[149,"2011-08-24","KW60MN17 ",9244027.6726182606,3023180.3245148836,2199726.8300214298,139952.56180699999,683500.93268645369,"Summer",246696.57535999999,109687.19087000001,133392.29459,2560.4135236000002,49703.531213000002,40932.751493999996,10367.031252999999,45013.523567999997,0]
[150,"2011-12-21","KW60MN08 ",7793958.3752195891,3023026.5381940794,2226784.2938240077,139588.47086099998,656653.77350907156,"Winter",259101.23123999999,67507.341216000001,117566.00741999999,2256.6340599,48016.347126000001,34226.700024999998,9012.7288183000001,816.33821894000005,0]
[151,"2012-01-23","KW60MN09 ",7800942.9426786825,3022618.1145302877,2201392.3679337604,123947.89037052111,697277.85622600594,"Winter",326765.65470000001,67132.169013000006,120091.08627,2305.1019722999999,58276.250357999998,35159.184763999998,9520.990914,742.46966563000001,0]
[152,"2012-02-02","KW60MN08 ",7817878.1354240477,3022186.4663317804,2228421.2526198644,140171.2191860154,653593.99452590046,"Winter",295855.79310000001,74914.018840000004,119866.83524,2300.7975605000001,55631.475301999999,35038.447153000001,9632.7405868000005,747.06969021999998,0]
[153,"2011-12-06","KW60MN20 ",8266588.0700501725,3020459.0235021031,2243990.5079046958,117062.74872999999,659405.76686740702,"Winter",334620.21555000002,78410.052072999999,120174.91164000001,2306.7109678000002,58093.852078000004,33062.041747000003,8346.7610323000008,816.33821894000005,3053.2304963000001]
[154,"2011-12-01","KW60MN08 ",7743447.7844431615,3020306.294320371,2206131.9519161498,119105.25964000002,695069.08276422147,"Winter",348727.90331000002,63617.999806,129624.03758,2488.0832870999998,57501.057669000002,37518.631217000002,10449.896318999999,816.33821894000005,0]
[155,"2011-12-14","KW60MN13 ",7922644.1927912114,3020192.8238362009,2234012.6022976781,105767.71580999999,680412.50572852266,"Winter",277007.65992000001,81267.518081000002,134296.34740999999,2577.7664678000001,56406.667991000002,36983.427954999999,9894.1985949000009,816.33821894000005,0]
[156,"2011-12-15","KW60MN08 ",7983761.3823402254,3019289.3920866158,2202728.0921443379,121013.28872,695548.01122227777,"Winter",344819.05381000001,72427.293474000006,115634.53184,2219.5601327999998,42179.602176,36627.685563999999,10072.463109,816.33821894000005,0]
[157,"2012-02-03","KW60MN09 ",7793727.496350551,3018415.3613950768,2221384.7456092406,139524.80295614016,657505.81282969611,"Winter",281353.91258,75276.388045,127460.94465999999,2446.5635547000002,58367.449498000002,34950.167230999999,9275.4006494999994,747.06969021999998,0]
[158,"2011-12-09","KW60MN18 ",8214087.4344643904,3017941.9592001,2165752.0608310732,117356.95449,734832.94387902704,"Winter",359191.90729,85264.179405000003,136283.31164,2615.9054780000001,57364.258958999999,33230.680741999997,7689.7928117000001,816.33821894000005,3053.2304963000001]
[159,"2011-12-08","KW60MN19 ",8311149.9127441803,3017237.5887625902,2200212.0878054183,117340.40907000001,699685.09188717173,"Winter",334364.93829999998,78145.762063000002,129431.60887,2484.3896923000002,56680.265411,34218.998367,8221.6000435999995,816.33821894000005,3053.2304963000001]
[160,"2011-08-25","KW60MN19 ",8911475.3928689361,3016039.523163477,2186952.4146184982,141760.13200499999,687326.97653997899,"Summer",280720.13905,100560.22441,125202.44094,2403.2124491,53077.899386999998,38994.791960000002,9281.0092946999994,43825.915539000001,0]
[161,"2011-12-22","KW60MN12 ",7876928.500025711,3014119.2369085113,2242109.0109311175,116776.64142500001,655233.58455239388,"Winter",297027.86820999999,80944.468928999995,122389.73811000001,2349.2237057000002,55403.477453,36666.311100999999,9032.1703158,816.33821894000005,0]
[162,"2012-01-13","KW60MN11 ",7878280.7290809359,3013477.4112307895,2207747.5410959548,119289.31508164639,686440.55505318823,"Winter",265068.38741999998,78467.594865999999,136447.12356000001,2619.0497847000001,57136.261109999999,37912.978283999997,9685.0958424,742.46966563000001,0]
[163,"2011-12-07","KW60MN07 ",8040007.4162883013,3013419.0829311297,2185088.2553331205,123373.45823000002,704957.36936800927,"Winter",356814.66832,66088.228134999998,118620.82038,2276.8807870000001,58960.243906999996,34566.385752000002,10432.384751,816.33821894000005,1475.3040137999999]
[164,"2011-12-09","KW60MN11 ",7868903.2373711104,3012981.2743004304,2198979.0391491,108075.51492999999,705926.72022133041,"Winter",312498.37362000003,82419.212708999999,136712.67822999999,2624.1470038000002,56406.667991000002,35929.169524999998,9494.2766305000005,816.33821894000005,0]
[165,"2012-01-06","KW60MN08 ",7679584.4253655663,3012049.5064113718,2220917.2109672767,126762.49291983478,664369.80252426001,"Winter",298704.43544999999,69498.609179999999,113542.45617,2179.4035491999998,47605.950996,36186.813062000001,9895.5800171999999,742.46966563000001,0]
[166,"2011-07-06","KW60MN17 ",9218740.3672204819,3011548.1511134999,2138963.6669999999,149677.52239999999,722906.96171349997,"Summer",260508.83846,91656.058718999993,126930.13893,2436.3749440000001,55357.877883000001,40061.830840000002,9406.9422551000007,41304.151616000003,0]
[167,"2012-02-28","KW60MN18 ",7906798.4197623171,3011126.3543748693,2229563.2313992172,133641.33836637321,647921.78460927925,"Winter",280515.22620999999,80219.698384000003,106862.3193,2051.1809047000002,56543.466700999998,33283.229085999999,7625.3314831999996,747.06969021999998,3053.2304963000001]
[168,"2011-08-24","KW60MN18 ",9159145.5915896855,3010894.7605465413,2183060.2952452595,139770.99864600002,688063.46665528184,"Summer",261744.75938,99923.410203000007,125348.50717,2406.0161337999998,49977.128632,39662.163017999999,9701.0228377999993,44982.973270000002,0]
[169,"2011-12-13","KW60MN22 ",7668727.2613506671,3008925.8456887873,2208681.5317878048,107746.42358,692497.8903209822,"Winter",331637.41645999998,73568.121299999999,117449.18011,2254.3916048999999,54081.089925,32817.669049999997,7941.6181018999996,816.33821894000005,3053.2304963000001]
[170,"2012-01-31","KW60MN08 ",7836209.0622385982,3008484.0298141935,2184093.248687699,143667.28062678489,680723.50049970963,"Winter",307921.04025000002,66714.792547999998,113829.40369000001,2184.911396,55768.274012000002,35188.221393,9515.8715229999998,742.46966563000001,0]
[171,"2011-07-06","KW60MN18 ",9071801.4365443699,3007917.0219570906,2132368.7421451267,149701.95677699998,725846.32303496392,"Summer",277328.69072999997,83085.461918000001,127104.84123999999,2439.7282872000001,55266.678742999997,38905.896729,8760.3956514000001,40260.969899000003,0]
[172,"2011-09-09","KW60MN17 ",8269465.2258850764,3007103.0469432967,2160706.0602249969,115496.59032599999,730900.39639229991,"Summer",252088.80129,99388.505810999995,144999.57253999999,2783.2107362000002,54035.490355000002,42331.461923000003,9124.6850279999999,39034.215035000001,0]
[173,"2012-01-11","KW60MN07 ",7828742.7292466545,3006690.3913470972,2179217.7469410989,124507.20141084395,702965.4429951543,"Winter",297222.02348999999,63145.254549999998,108301.08164,2078.7973914999998,57181.860679999998,36176.925267999999,10011.782071,742.46966563000001,2136.8372881]
[174,"2011-12-08","KW60MN10 ",7929572.5225417092,3004281.8272588281,2227972.5392061435,111595.05122000001,664714.23683268484,"Winter",290407.04496999999,89029.909536000006,141993.78119000001,2725.5157334,47423.552716999999,35246.958584,10408.331738000001,816.33821894000005,0]
[175,"2011-08-25","KW60MN14 ",9274495.0344066359,3002613.790959991,2193129.5752605023,139148.49064899998,670335.72505048895,"Summer",200192.45939999999,105345.46881000001,139621.70887,2679.9847221999999,48745.940243999998,42984.918227000002,12492.939704,43767.354624,0]
[176,"2011-12-20","KW60MN10 ",8058256.7530255709,3002494.8503905302,2220266.5631145486,118368.98179000001,663859.30548598163,"Winter",292554.39026999997,78940.939459000001,123712.33869,2374.6105123000002,43365.190993999997,36039.347284000003,9573.7490844999993,816.33821894000005,0]
[177,"2012-01-17","KW60MN07 ",8091611.1676482167,3002038.0030089649,2188662.6613860521,137303.79344096145,676071.5481819514,"Winter",331174.20578000002,65745.312483000002,107670.30611,2066.6898990999998,46465.961748000002,35467.792563000003,9498.2177494000007,742.46966563000001,1984.1757625]
[178,"2012-01-11","KW60MN11 ",7833307.1612454094,2999761.0023867763,2228667.5149900839,116027.33889696437,655066.14849972818,"Winter",259670.57604000001,76936.825112999999,132317.86825,2539.7903253999998,57957.053368000001,36267.996200000001,10477.260684000001,742.46966563000001,0]
[179,"2011-12-21","KW60MN18 ",8402507.8699928429,2998586.1297881636,2228666.3301639738,125891.67994399999,644028.11968018953,"Winter",306470.85856000002,75185.206850000002,113017.89753,2169.3348489,56497.867130999999,33324.903186000003,8995.2781949,816.33821894000005,3053.2304963000001]
[180,"2011-12-07","KW60MN19 ",8261659.5835745698,2996612.7720152396,2206803.9080300345,118951.55925999999,670857.30472520494,"Winter",309475.60729999997,83566.430785999997,124508.42154,2389.8910148999998,57090.661540000001,33192.543109999999,8688.9679550000001,816.33821894000005,3053.2304963000001]
[181,"2012-02-16","KW60MN09 ",7743407.0522820456,2995976.1041039014,2224875.4234705372,141165.32000029768,629935.36063306627,"Winter",258342.36274000001,78137.302249999993,120956.77744999999,2321.7185797000002,57136.261109999999,35247.357169000003,9534.6392374000006,747.06969021999998,0]
[182,"2011-12-07","KW60MN18 ",8344827.6289545828,2995627.4860072425,2209402.0576757444,116556.90744000001,669668.52089149808,"Winter",316423.49193000002,84741.155706999998,124438.19130999999,2388.5429729000002,57227.460249999996,33179.987240000002,8893.7842326999998,816.33821894000005,3053.2304963000001]
[183,"2012-01-10","KW60MN08 ",7875810.1952488031,2995612.7949116724,2211721.3387306039,129469.9338000226,654421.52238104586,"Winter",290663.81663000002,62445.646524999996,118013.72865,2265.2278958000002,56634.665841000002,36602.558916000002,9770.3377686000003,742.46966563000001,0]
[184,"2012-01-23","KW60MN18 ",8262039.2815276645,2994411.0285050422,2155342.1867056247,120097.53213453878,718971.30966487841,"Winter",307858.81602000003,69561.690619999994,106220.06961999999,2038.8531703000001,57546.657239,33970.154994999997,8434.2782439000002,742.46966563000001,3053.2304963000001]
[185,"2012-01-23","KW60MN20 ",8082604.8525720853,2993563.8008356523,2141197.2588146147,121884.93680465846,730481.60521637928,"Winter",335490.74002999999,67846.710657000003,104674.00241,2009.1770079,57546.657239,33434.799964999998,8087.9473662999999,742.46966563000001,3053.2304963000001]
[186,"2011-12-08","KW60MN18 ",8365131.7860192889,2992195.5888624489,2192671.3401143975,108524.68497,690999.56377805141,"Winter",285721.01263000001,77384.399814999997,131517.61911,2524.4298524000001,57090.661540000001,34920.926268000003,8356.2278427000001,816.33821894000005,3053.2304963000001]
[187,"2012-01-24","KW60MN11 ",7799303.0991494562,2992066.6862852913,2202338.9874033146,117050.37791918508,672677.32096279168,"Winter",261479.22271,79867.713940000001,121988.97119,2341.5311396000002,56908.26326,36506.425131999997,10474.700988000001,742.46966563000001,0]
[188,"2011-12-19","KW60MN18 ",8308846.7047421653,2991761.9116837056,2149487.3899151939,115178.79865000001,727095.72311851173,"Winter",343541.18372999999,77968.808170999997,111018.56613000001,2130.9584556,58139.451648000002,34840.466043,8986.0551641999991,816.33821894000005,3053.2304963000001]
[189,"2012-01-11","KW60MN21 ",7951825.9572261972,2991450.9246036587,2175388.4228399354,120051.17618894666,696011.32557477662,"Winter",324409.36911999999,73845.170924000005,112339.67417,2156.3166136999998,57729.055519000001,33203.562228000003,8070.1920176000003,742.46966563000001,3053.2304963000001]
[190,"2011-12-10","KW60MN10 ",7612266.2257796302,2991073.9592709895,2142517.7154774661,122125.324622,726430.91917152342,"Winter",367151.97694999998,65300.376149999996,106756.94123,2049.1582134,57592.256808999999,28536.345546,7524.6721310000003,816.33821894000005,0]
[191,"2011-07-06","KW60MN16 ",9204020.4846928269,2990758.6496693059,2127709.5921569602,149469.15872599999,713579.89878634596,"Summer",235739.6741,89637.422097000002,133341.48585999999,2559.4382697000001,55084.280463000003,41137.627674000003,9920.5268919999999,41719.373368,0]
[192,"2011-12-21","KW60MN11 ",7977773.4089125646,2990502.158716674,2252723.7911605728,123753.976639,614024.39091710083,"Winter",247780.79889000001,80897.825073,113571.35853,2179.9583189,53670.693796,34139.075735999999,9680.9718885000002,816.33821894000005,0]
[193,"2012-02-28","KW60MN11 ",7782866.7597593889,2990164.0155527564,2245100.2352757202,127047.07257284575,618016.70770419005,"Winter",225313.16787,87226.961981999993,122218.93971999999,2345.9452965999999,53214.698097,37114.878428999997,9737.2665689999994,747.06969021999998,0]
[194,"2011-12-20","KW60MN09 ",8037840.0758176837,2988733.6266413839,2206272.4891842911,119641.30822000001,662819.82923709264,"Winter",318834.32838000002,72853.615006000007,123618.55259000001,2372.8103245000002,43319.591423999998,36485.737788999999,9553.4340391999995,816.33821894000005,0]
[195,"2011-12-05","KW60MN07 ",8032777.6320827184,2988459.2239367883,2185442.9349045279,112838.80520999999,690177.4838222604,"Winter",347413.79671000002,64917.915493,115222.73905,2211.6559293999999,58413.049068,34238.970207999999,9747.4833440999992,816.33821894000005,1373.5296639999999]
[196,"2012-01-17","KW60MN20 ",8094910.3396307137,2987886.6522065066,2197929.6498674722,135658.67941499673,654298.32292403758,"Winter",299249.57309999998,76224.328928999996,115691.90572,2220.6614024,48426.743255000001,35290.601302000003,8193.1386667000006,742.46966563000001,3053.2304963000001]
[197,"2011-09-07","KW60MN17 ",8443740.5006994493,2987677.4219464394,2203180.4272013265,117266.81250900001,667230.182236113,"Summer",240374.32454999999,97419.872868000006,136876.38211000001,2627.2892363999999,41404.409486999997,39801.632012000002,10207.659729000001,36881.454618999996,0]
[198,"2012-03-06","KW60MN09 ",7480127.913894021,2987100.109070153,2254450.0829276219,125104.79165207328,607545.23449045792,"Winter",215488.27911,65305.824815,119184.99331999999,2287.7098682999999,57318.659389,36505.099426000001,9543.7640785999993,1354.3257784,0]
[199,"2012-03-19","KW60MN09 ",7708035.0284679011,2987026.3005601806,2258202.8078637985,133901.36431259674,594922.12838378549,"Winter",211944.32790999999,69651.258585000003,116809.09183,2242.1053578000001,57592.256808999999,35632.828495000002,8889.9599259000006,1354.3257784,0]
[200,"2011-12-12","KW60MN07 ",7848759.0463011963,2986724.8346937364,2100007.6106081014,109618.97908000002,777098.24500563485,"Winter",339471.85061999998,67279.480622000003,112481.67974000001,2159.0423558000002,57683.455949000003,33087.183796999998,9228.2511242,816.33821894000005,1729.7398880999999]
[201,"2011-08-26","KW60MN15 ",9113182.9409054685,2986148.7936482504,2132915.61519418,137672.06820800001,715561.11024607043,"Summer",230019.49648999999,109655.73129,138256.35209,2653.7772267,55631.475301999999,42516.417938999999,10963.785682,44315.713294000001,0]
[202,"2011-12-21","KW60MN20 ",8217113.6616197163,2985596.826753526,2217940.9020667393,126060.75349800001,641595.17118878639,"Winter",275064.61274000001,66576.935362000004,109363.84918,2099.1968035,56589.066271000003,32593.592137,8889.9853194000007,816.33821894000005,3053.2304963000001]
[203,"2012-01-12","KW60MN21 ",7918230.4065809585,2985475.4151616939,2164358.267622157,121524.39201444665,699592.75552509027,"Winter",364498.35895999998,73785.613201,114165.95805,2191.3714267,57090.661540000001,32922.012801999997,8075.4536141999997,742.46966563000001,3053.2304963000001]
[204,"2011-09-09","KW60MN18 ",8038400.680255549,2983439.6880466035,2145746.8912633876,113347.991335,724344.80544821569,"Summer",273343.41490999999,93562.170996000001,142579.07105999999,2736.7501459999999,53944.291214999997,41460.262536000002,8798.2425788,41061.167498000003,0]
[205,"2011-08-24","KW60MN15 ",9330135.9111492168,2982526.4854610371,2158361.9745531548,144314.11789600001,679850.39301188255,"Summer",234926.91183999999,101494.79829999999,139977.41166000001,2686.8122997,49612.332072999998,43487.547569000002,12135.902799,43241.719854000003,0]
[206,"2012-01-17","KW60MN12 ",7949440.8838038044,2980206.1605805373,2229088.2345621255,129569.89807634485,621548.02794206701,"Winter",222014.44648000001,78858.553899000006,137536.72393000001,2639.9642423,48791.539814000003,36321.793020999998,10189.213669000001,742.46966563000001,0]
[207,"2011-09-07","KW60MN18 ",8327271.9068548977,2979602.4804397947,2192793.2835637308,117385.679255,669423.51762106398,"Summer",285983.13656000001,91863.387596999994,131975.94065,2533.2271572999998,41586.807766999998,38617.087846000002,9655.8421785999999,35904.415902000001,0]
[208,"2012-01-16","KW60MN17 ",8101174.7380240662,2978505.8477043021,2190275.0813427754,112497.32977892311,675733.43658260349,"Winter",293663.8702,73866.428914999997,112697.44408,2163.183869,57637.856378999997,32628.853511000001,8117.7698524999996,742.46966563000001,3053.2304963000001]
[209,"2011-07-06","KW60MN19 ",8799274.4478769712,2977572.7559321215,2114252.6201543384,145493.33365299998,717826.80212478281,"Summer",274802.51,76996.373196,124575.05237999999,2391.1699681,55221.079172999998,38703.243949000003,8495.7921979000002,40226.667097999998,0]
[210,"2012-01-24","KW60MN18 ",8048576.2831417555,2977315.7955611581,2157426.1682627914,125550.6802429887,694338.94705537811,"Winter",302949.60950000002,79419.335837000006,116866.40406,2243.2054438999999,57455.458099000003,34565.620253000001,8724.0114073000004,742.46966563000001,3053.2304963000001]
[211,"2011-12-09","KW60MN19 ",8101041.2357557761,2976244.1573534962,2139915.9233135921,116349.18076,719979.05327990395,"Winter",374835.87955999997,77412.276224000001,133904.66278000001,2570.2482328999999,57364.258958999999,32793.485417999997,7532.4324773999997,816.33821894000005,3053.2304963000001]
[212,"2011-09-08","KW60MN17 ",8490893.3807577845,2975666.5160834752,2213426.4478000002,119552.06621999999,642688.00206347485,"Summer",199192.24017,97357.091899000006,143930.45100999999,2762.6893617999999,51299.516159999999,40298.004534,9578.9903658999992,42584.144895999998,0]
[213,"2011-09-08","KW60MN18 ",8294876.1506303633,2975258.8227944821,2211620.0263280361,118720.632618,644918.16384844598,"Summer",209692.60785999999,83285.503949000005,137150.76404000001,2632.5558915000001,51801.111428999997,39400.543199,8993.4295253,38626.756126,0]
[214,"2011-12-05","KW60MN21 ",8263115.1264760103,2975042.8685612497,2212840.4463755405,111750.79000000001,650451.63218570908,"Winter",331180.19397000002,69054.223979999995,112971.66583,2168.4474492999998,57592.256808999999,32985.615437,7901.9225047999998,816.33821894000005,3053.2304963000001]
[215,"2011-12-19","KW60MN19 ",8285267.744545796,2973818.9262632756,2149648.8613668475,114908.09185,709261.97304642817,"Winter",374658.69260000001,72130.843322000001,113060.48299,2170.1522602999999,57957.053368000001,33845.751982000002,8595.1530803000005,816.33821894000005,3053.2304963000001]
[216,"2012-01-18","KW60MN12 ",7690837.5230983999,2973463.7915046234,2225435.6844505621,116539.0218921917,631489.08516186918,"Winter",267704.63435000001,87762.290569999997,121488.61502,2331.9269961999998,46465.961748000002,35136.370926000003,9917.4186903999998,742.46966563000001,0]
[217,"2011-12-06","KW60MN11 ",7948193.7346898159,2973298.5112433657,2252557.7570082354,106120.19088000001,614620.56335513026,"Winter",232252.61603999999,83432.230681999994,135845.05382,2607.4932886000001,58686.646486999998,36643.347736000003,10758.542788999999,816.33821894000005,0]
[218,"2011-12-15","KW60MN09 ",7916687.8333225828,2973283.2082482618,2190224.0599908167,113037.68344999998,670021.46480744507,"Winter",287512.42601,79090.987452000001,125351.82087,2406.0797389999998,44459.580671999996,36335.433516999998,10146.430186,816.33821894000005,0]
[219,"2012-01-06","KW60MN09 ",7692747.1171042351,2973181.8155123759,2204399.4266181514,126409.56689912437,642372.82199510001,"Winter",233518.43554000001,75155.707571999999,125159.88465000001,2402.3955974999999,48700.340674999999,36298.656749000002,9957.0127112999999,742.46966563000001,0]
[220,"2011-09-06","KW60MN17 ",8061968.3129056524,2973049.1395535721,2183341.1528071309,116581.64613099999,673126.34061544086,"Summer",232338.92022999999,100006.76466,136983.26165999999,2629.3407480999999,55175.479603,40257.253477999999,10314.496547999999,34091.054678,0]
[221,"2012-01-09","KW60MN10 ",7862572.4953688849,2972998.52592583,2194780.1591207893,133999.07247178498,644219.29433325585,"Winter",244982.20301,76854.654865000004,121011.247,2322.7641017000001,53305.897235999997,36176.498970000001,9557.3954733999999,742.46966563000001,0]
[222,"2012-02-29","KW60MN19 ",7925200.6791078951,2972132.2826341302,2213331.9772681124,138570.30080914107,620230.00455687672,"Winter",260227.65828999999,84092.693797,102259.59632,1962.8334166,57318.659389,31309.825921,7869.2813076000002,747.06969021999998,3053.2304963000001]
[223,"2011-12-08","KW60MN07 ",7942227.9195145154,2971832.7782182759,2148849.7693692222,111153.53299000002,711829.4758590532,"Winter",376492.39429000003,66351.835254000005,118547.68386999999,2275.4769597999998,50250.726051999998,34262.119398000003,10296.65994,816.33821894000005,1526.1911886]
[224,"2011-09-09","KW60MN16 ",8359302.1167259244,2971463.0006026826,2137242.8863870264,115386.73042199999,718833.38379365613,"Summer",240463.02402000001,100117.01538,154253.46625,2960.8356482999998,54126.689494999999,42981.210739000002,10472.832004,41027.768876000002,0]
[225,"2012-02-07","KW60MN08 ",7892185.8381948173,2971267.6947526345,2174631.5755025572,118251.46838027438,678384.65086980304,"Winter",324086.71672999999,68456.000341000006,113923.14684,2186.7107596000001,56680.265411,33599.719861999998,9787.3228383999995,747.06969021999998,0]
[226,"2012-01-16","KW60MN14 ",7863241.3138058698,2970566.6809374159,2193095.106058232,113022.75572042033,664448.81915876351,"Winter",286081.83049000002,69080.858330000003,111718.39237,2144.3913496999999,57455.458099000003,37117.464403999998,7331.4760587000001,742.46966563000001,0]
[227,"2012-03-02","KW60MN09 ",7548287.1520526893,2968753.0524588106,2230225.4014657056,128827.40752565155,609700.24346745352,"Winter",249550.69717,77259.127103000006,118354.89069,2271.7763693000002,51208.317020000002,34324.226278000002,8917.7813791999997,1354.3257784,0]
[228,"2012-01-23","KW60MN10 ",7723213.3102868004,2967527.4382057097,2171225.3544004606,120469.74652546337,675832.33727978577,"Winter",305901.07921,72146.038849000004,120309.09779,2309.2866190999998,57729.055519000001,35657.566916999996,9451.6353526999992,742.46966563000001,0]
[229,"2012-02-29","KW60MN10 ",7704551.483418812,2966079.2086242652,2242007.0650380543,123197.7823184751,600874.36126773595,"Winter",208431.43053000001,68650.397675999993,117090.982,2247.5161306999998,56771.464549999997,35026.099348999996,9304.7304949000008,747.06969021999998,0]
[230,"2011-09-06","KW60MN18 ",8000680.3836052539,2965983.2348524379,2182115.3086944167,118468.07364599999,665399.8525120212,"Summer",255184.62358000001,87139.506961999999,132436.85488999999,2542.0742279999999,55449.077022999998,39327.725506000002,9554.0841215,32787.495533000001,0]
[231,"2011-10-26","KW60MN08 ",7489349.2132533323,2965628.5933805918,2183000.761683492,122171.30349999999,660456.52819710004,"Summer",311391.88247999997,57792.974535000001,133615.54019,2564.6986364999998,57683.455949000003,42674.635031999998,10604.778217999999,19170.103298999999,1678.8527133]
[232,"2011-08-26","KW60MN19 ",8746358.398678802,2965323.0413201852,2112373.1494007288,142478.771289,710471.12063045637,"Summer",275279.07487999997,91191.596527999995,119677.89304,2297.1708880000001,55905.072721999997,37725.674654000002,9307.8860980000009,45491.812037999996,0]
[233,"2011-12-16","KW60MN08 ",7944988.6251977859,2963073.6005014163,2150556.0919130738,117971.55271,694545.95587834273,"Winter",344213.37709999998,71024.155218999993,121179.18871,2325.9876777999998,58869.044766999999,36178.633435999996,9242.9185866000007,816.33821894000005,0]
[234,"2011-12-10","KW60MN09 ",7598002.646161519,2962994.144546899,2131017.6395566766,123699.74335400001,708276.76163622213,"Winter",375544.02328000002,59307.737326000002,103426.37238,1985.2292319000001,57273.059820000002,28688.495117999999,7432.1777340999997,816.33821894000005,0]
[235,"2012-01-20","KW60MN18 ",7739569.6068080813,2962804.7500378937,2102283.8353866092,123578.69103501894,736942.22361626581,"Winter",363187.94066999998,80347.297745000003,118701.06382,2278.4210286000002,52667.503257999997,30425.845953,7825.5988828999998,742.46966563000001,3053.2304963000001]
[236,"2011-12-14","KW60MN14 ",7839809.4747186303,2962645.5230101915,2185389.5457696798,102121.01911000001,675134.95813051157,"Winter",267500.33623000002,79439.986457000006,132799.62820000001,2549.0375213000002,56041.871432,36752.332058,10043.595432,816.33821894000005,0]
[237,"2012-01-18","KW60MN20 ",7930714.929525095,2961527.354867015,2153803.9255167884,127722.85129735011,680000.57805287663,"Winter",361005.71545999998,72281.770235999997,112952.85245999999,2168.0863340000001,46830.758307999997,32381.322343,8312.9771130999998,742.46966563000001,3053.2304963000001]
[238,"2011-12-14","KW60MN16 ",7910269.9937987588,2957880.9946881295,2166091.3704935648,100298.91924999999,691490.70494456508,"Winter",312280.80609000003,79585.792491999993,130209.03567,2499.3120991999999,55950.672292000003,35782.141473999996,9519.8735866000006,816.33821894000005,2239.4597568999998]
[239,"2011-08-24","KW60MN19 ",8955570.4834637586,2957757.6651032795,2151253.2191852061,141716.0055,664788.44041807356,"Summer",261452.66268000001,97652.468708,120480.19633999999,2312.5707897000002,50113.927342000003,39198.059843000003,9116.7418455000006,45593.148454000002,0]
[240,"2012-01-16","KW60MN07 ",7581332.7514820341,2957555.5527181039,2151501.8060997012,121141.24517712608,684912.5014412764,"Winter",335415.47956000001,62959.320241000001,100768.09099,1934.2045482999999,57409.858528999997,33865.211571,7229.6976863,742.46966563000001,2035.0629374]
[241,"2012-02-15","KW60MN07 ",7686181.0155949546,2956266.2921242593,2130873.750761034,135207.81473691575,690184.72662630945,"Winter",304651.28476000001,63310.175103000001,105811.75599000001,2031.0157481000001,56361.068421000004,34734.809166999999,8885.5092385999997,747.06969021999998,309.52124151999999]
[242,"2011-12-23","KW60MN08 ",7828342.3816053243,2955976.926224343,2139788.540035109,123533.26516999998,692655.12101923395,"Winter",300054.83156999998,70599.766669999997,108874.2798,2089.7997086,55950.672292000003,32141.398432000002,8067.9776779000003,816.33821894000005,0]
[243,"2011-11-02","KW60MN08 ",7628462.2133433204,2955663.7496449295,2165366.875896696,127059.73727299999,663237.13647523348,"Winter",237906.71153999999,65137.102570000003,137764.53025000001,2644.3368965999998,53625.094226000001,41467.378406999997,10301.799645999999,4955.8928413000003,0]
[244,"2012-01-27","KW60MN07 ",7792452.6979647791,2955634.4870801242,2160381.460342126,115593.06797336529,679659.9587646334,"Winter",325765.77463,67621.200813999996,101854.00251000001,1955.0482001,56953.862829999998,35047.438606999996,8765.2712616000008,742.46966563000001,1577.0783635]
[245,"2011-12-08","KW60MN20 ",8205563.6601627795,2953885.0900671887,2149851.7183733946,113839.15131,690194.22038379416,"Winter",349658.58529999998,75472.911179000002,122033.43030000001,2342.3845148999999,57045.061970000002,34053.470143999999,8040.0038624999997,816.33821894000005,3053.2304963000001]
[246,"2011-12-19","KW60MN09 ",7860850.4183377232,2953797.214162414,2137957.9918987197,120645.60999,695193.61227369425,"Winter",310469.61576000002,73720.360971000002,116554.62665000001,2237.2209971000002,55357.877883000001,35723.719982000002,9043.7295754000006,816.33821894000005,0]
[247,"2011-09-09","KW60MN15 ",8362941.1164197484,2953724.1371095064,2122044.5230332217,114142.69758800001,717536.91648828483,"Summer",204512.97872000001,98904.545077999996,157657.58671999999,3026.1764247000001,54537.085623999999,45070.427007999999,11069.037926999999,36668.282025,0]
[248,"2012-01-06","KW60MN10 ",7709508.2778767711,2953543.2684537428,2193616.4558999697,124148.82712546024,635777.98542831279,"Winter",259261.06834,73659.898618000007,127743.47786,2451.9866704000001,51390.715300000003,37020.930121999998,9878.6779010999999,742.46966563000001,0]
[249,"2012-01-24","KW60MN19 ",7974673.3037260445,2953506.9618141218,2141219.4793995647,135416.81212373942,676870.67029081739,"Winter",289343.12831,78146.600814000005,114536.47924,2198.4834377000002,56953.862829999998,34389.697715000002,8707.5765362000002,742.46966563000001,3053.2304963000001]
[250,"2011-09-08","KW60MN16 ",8486338.5726366043,2953461.8173667546,2212610.7953850534,120286.501177,620564.52080470149,"Summer",193621.34348000001,97096.383451999995,149785.38139,2875.0724868000002,49749.130783000001,41089.012491000001,10437.747923000001,47569.678156000002,0]
[251,"2011-12-05","KW60MN11 ",7934353.3440226801,2953338.3541712197,2228953.1462399955,106963.03618000001,617422.17175122432,"Winter",240194.05340999999,81660.720209999999,132293.88866999999,2539.3300466000001,57227.460249999996,36113.857742,10401.851239,816.33821894000005,0]
[252,"2012-02-27","KW60MN09 ",7751620.5756765222,2952986.7028612313,2197846.266548594,135641.33635958697,619499.09995305026,"Winter",241689.66059000001,70307.961783000006,121555.2098,2333.2052573000001,57090.661540000001,36142.753298000003,9370.0196613999997,747.06969021999998,0]
[253,"2011-12-11","KW60MN18 ",8006842.0845082887,2951474.5038584978,2116323.7800819208,117412.20877400001,717738.51500257698,"Winter",362830.32358000003,68957.436652999997,93514.438689000002,1794.9734968,57911.453798000002,26533.968049999999,7900.0941515000004,816.33821894000005,3053.2304963000001]
[254,"2012-02-28","KW60MN12 ",7747495.0050173895,2950337.1323412107,2212464.8347306731,123014.82595160934,614857.4716589282,"Winter",236220.53140000001,81322.408045000004,123795.47474000001,2376.2062768000001,53123.498957000003,37130.869129999999,9438.4932110999998,747.06969021999998,0]
[255,"2011-12-15","KW60MN10 ",7857690.1924411636,2949701.7728205929,2167511.1366183753,109913.74771000001,672276.88849221764,"Winter",278659.26750999998,81908.018288000007,129368.68833999999,2483.1819571999999,48609.141535000002,38048.106803000002,10271.8959,816.33821894000005,0]
[256,"2011-12-06","KW60MN21 ",8069781.5195553908,2948893.7616460007,2186236.4003999177,114338.10754999999,648319.25369608286,"Winter",337318.61251000001,72895.409532999998,116315.81696,2232.6371374,58002.652937999999,33105.522490000003,8072.1422623999997,816.33821894000005,3053.2304963000001]
[257,"2011-09-07","KW60MN16 ",8416336.6122046206,2948817.5565918628,2179914.4528321233,116598.349783,652304.75397673959,"Summer",230417.25036999999,98484.255481,146423.56951999999,2810.5438078000002,41039.612928000002,40801.180908000002,11098.04781,34704.322601,0]
[258,"2011-11-29","KW60MN08 ",7776310.8391093053,2948559.7461645054,2160752.4605392828,119521.290335,668285.99529022234,"Winter",292015.90852,67806.731816,119767.69944,2298.8946870999998,57136.261109999999,37085.425093999998,10586.921294,4955.8928413000003,0]
[259,"2011-12-15","KW60MN18 ",8289874.3274073768,2947986.613499756,2139643.2042731829,111748.31816,696595.09106657351,"Winter",309006.71578000003,89117.721265999993,113301.84242,2174.7850613999999,50752.321321000003,34713.351200999998,8134.6313392000002,816.33821894000005,3053.2304963000001]
[260,"2011-12-07","KW60MN20 ",8176630.1817746107,2947791.219323271,2156853.1416328042,116718.73797999999,674219.33971046656,"Winter",320291.79129000002,81965.376300000004,120875.79441,2320.1641416000002,56725.864979999998,32840.616017,8413.3131173999991,816.33821894000005,3053.2304963000001]
[261,"2012-01-04","KW60MN08 ",7823329.6018016534,2947666.0865053609,2128812.2360808956,127016.87971381845,691836.97071064659,"Winter",288357.80008000002,65281.009364999998,109771.22133,2107.0161545000001,57409.858528999997,35868.978258000003,9820.8206537000005,742.46966563000001,0]
[262,"2011-12-20","KW60MN08 ",7962496.3778139204,2946951.1470334097,2159774.0821619569,122986.84337999999,664190.22149145289,"Winter",285424.00878999999,67531.538048000002,118137.64829,2267.6064852999998,43684.387983000001,37401.102578999999,9750.5306,816.33821894000005,0]
[263,"2011-12-15","KW60MN19 ",8212433.3353724265,2946370.6121257953,2130812.3768976186,116227.19156999998,699331.04365817714,"Winter",325653.42973999999,79965.491057000007,112336.74881999999,2156.2604627000001,53077.899386999998,33940.424571000003,7853.2070283000003,816.33821894000005,3053.2304963000001]
[264,"2011-12-23","KW60MN11 ",7795854.0274712639,2946180.7584655229,2134578.5692434721,124461.68413000001,687140.50509205065,"Winter",311038.88637999998,76156.012526999999,110799.28243000001,2126.7493897999998,56133.070571999997,32237.392640999999,7152.9271333999995,816.33821894000005,0]
[265,"2012-01-18","KW60MN13 ",7752170.6638212698,2945367.9475285239,2196808.8718911335,120317.08128694554,628241.99435044511,"Winter",269786.27908000001,89542.169267000005,117493.94064,2255.2507658999998,41997.203895999999,36444.406414999998,9967.9015756000008,742.46966563000001,0]
[266,"2011-12-10","KW60MN11 ",7560922.319601614,2944513.8528022822,2101431.0902565774,113734.56534,729348.19720570475,"Winter",362326.80651999998,72550.946530000001,106867.86008,2051.2872578000001,57227.460249999996,28443.600730999999,7359.3482990000002,816.33821894000005,0]
[267,"2011-12-13","KW60MN14 ",7710587.178759777,2943664.0100996755,2115654.475043484,99872.209950000004,728137.32510619145,"Winter",307162.09756000002,87576.632631,135944.50435999999,2609.4022034,57090.661540000001,36537.681364999997,10203.170104000001,816.33821894000005,0]
[268,"2011-11-08","KW60MN08 ",7738158.8859217353,2943647.6656575757,2151775.0611559656,138936.671,652935.93350160995,"Winter",311117.52779999998,59049.639930999998,130776.30562,2510.2006265999999,57227.460249999996,38616.94227,9923.0256429000001,4955.8928413000003,0]
[269,"2012-01-19","KW60MN18 ",8029207.4922666987,2943635.4374133777,2081321.9934850205,128398.73517069717,733914.70875766012,"Winter",371413.49400000001,77718.629096000004,113686.98095,2182.1776464999998,48061.946695999999,33518.885792000001,8219.8326348999999,742.46966563000001,3053.2304963000001]
[270,"2012-01-12","KW60MN12 ",7788023.1751028392,2943483.4129915321,2166995.8333191043,110580.69740298136,665906.88226944604,"Winter",238843.01076999999,85643.530899999998,132367.70864,2540.7469922999999,56269.869280999999,36433.204455999999,10192.545335999999,742.46966563000001,0]
[271,"2012-03-01","KW60MN07 ",7649422.3571044281,2942747.6262513623,2161419.1235434972,117310.71912636494,664017.78358149994,"Winter",299376.70299999998,62316.364841000002,97018.867928000007,1862.2396612,56361.068421000004,33364.383272999999,8792.8083048000008,1354.3257784,0]
[272,"2012-02-29","KW60MN20 ",7806094.4569367953,2942547.0195188494,2190811.4471232127,136867.20419381277,614868.36820182414,"Winter",280339.39587000001,74750.856129000007,101826.50334,1954.5203641999999,57683.455949000003,30444.744943000002,7753.3399630000004,747.06969021999998,3053.2304963000001]
[273,"2011-12-21","KW60MN21 ",8063912.5976195596,2942500.1917626392,2175065.2931969645,123220.08514,644214.81342567469,"Winter",284424.71162999998,63396.563205999999,108757.89929,2087.5658296000001,56315.468850999998,32528.656953999998,8765.6166174999998,816.33821894000005,3053.2304963000001]
[274,"2012-02-06","KW60MN10 ",7808825.952974082,2941363.771631306,2168419.2619343339,129606.58482973826,643337.92486723396,"Winter",262516.52635,76231.731465999997,118804.59649,2280.4082982,57090.661540000001,33746.182511999999,9643.8766173999993,747.06969021999998,0]
[275,"2011-12-14","KW60MN15 ",7801072.6048114588,2940668.408237569,2166525.9127929122,100273.81187000001,673868.68357465684,"Winter",275571.07620000001,79584.253175999998,129041.84451,2476.9083160999999,55905.072721999997,36875.792079999999,9678.1480969999993,816.33821894000005,0]
[276,"2012-01-17","KW60MN17 ",7997655.9614215633,2940149.4378539836,2183835.6988740261,122725.9034630392,633587.83551691868,"Winter",269526.52922999999,78075.605872999993,123415.00855,2368.9033754000002,49156.336373999999,34914.044909999997,8625.7069076000007,742.46966563000001,3053.2304963000001]
[277,"2012-03-08","KW60MN07 ",7462379.8126986772,2938990.5351590673,2173539.5131012057,123886.74362491984,641564.27843294165,"Winter",296780.87904000003,56540.729449999999,98619.224986000001,1892.9578962000001,57683.455949000003,34579.668851000002,8660.9636666999995,1354.3257784,0]
[278,"2012-02-28","KW60MN21 ",7721923.3384726327,2937961.1724687163,2163594.5754472343,130022.97782726398,644343.61919421772,"Winter",313845.60076,76164.803341000006,96224.117878999998,1846.9847411999999,57318.659389,32129.574531999999,7374.6776928999998,747.06969021999998,3053.2304963000001]
[279,"2012-01-24","KW60MN12 ",7678122.8414170714,2937467.3536651502,2160755.9067468899,108839.8959531931,667871.550965067,"Winter",266616.83909999998,84679.523602000001,125040.10329,2400.0964405,57729.055519000001,36820.210006000001,10330.098502000001,742.46966563000001,0]
[280,"2012-03-14","KW60MN08 ",7445318.8333426761,2937051.67058997,2163017.9866045942,116514.85295655299,657518.83102882281,"Winter",238326.79663,73208.194434000005,119193.80485,2287.8790023000001,54217.888635000003,36234.774390999999,9486.5196696999992,1354.3257784,0]
[281,"2011-07-06","KW60MN15 ",9078335.5498618241,2936817.8563030334,2090389.6927573173,145964.23348900001,700463.93005671643,"Summer",233739.09784999999,89820.285806999993,135318.21883,2597.3808947000002,54856.282614000003,42301.276356000002,10119.02519,41557.267964999999,0]
[282,"2012-03-23","KW60MN08 ",7302979.3953344552,2936637.9205280663,2202191.7133414317,123485.47669402421,610960.73049261048,"Winter",262885.25073999999,65654.314463999995,115793.72115,2222.6157100999999,56999.462399999997,37003.534607000001,8910.6118611000002,1354.3257784,0]
[283,"2011-12-20","KW60MN11 ",7987149.135352633,2935149.8435596433,2172295.3675278281,106964.47207,655890.00396181492,"Winter",265597.04430000001,75187.933592999994,124994.47489,2399.2206212000001,42270.801315999997,35741.527544999997,9471.2800005000008,816.33821894000005,0]
[284,"2011-12-11","KW60MN19 ",7955850.7606682815,2934377.7238539709,2102223.414461934,120738.16987699999,711416.13951503672,"Winter",343636.62388999999,71131.843089999995,93881.729200999995,1802.0234962,57865.854227999997,26553.251753,7705.2119303999998,816.33821894000005,3053.2304963000001]
[285,"2012-01-18","KW60MN17 ",7991200.2183913607,2933343.6881489749,2139493.9493171046,121255.9868466348,672593.75198523572,"Winter",332222.72271,79045.755974999993,113197.59564,2172.7840847000002,49201.935943999997,34298.429618000002,8613.6194560000004,742.46966563000001,3053.2304963000001]
[286,"2012-01-17","KW60MN13 ",7871823.6226093303,2932338.3493865305,2202339.7107439074,122789.31046977991,607209.32817284297,"Winter",216065.65763,79967.586326999997,132732.87450000001,2547.7562097999999,48882.738954,36848.699897999999,10103.829537,742.46966563000001,0]
[287,"2012-02-14","KW60MN08 ",7681291.8372950992,2932191.4025726062,2133407.0722551486,142619.00471031838,656165.32560713904,"Winter",323895.41246000002,69453.691028999994,115686.20602,2220.5519988000001,56771.464549999997,36531.589726999999,9210.3349474000006,747.06969021999998,0]
[288,"2012-01-31","KW60MN09 ",7749409.5658776695,2931991.1758072698,2159215.7496666149,131168.29149186349,641607.1346487914,"Winter",265311.11596999998,70897.012189000001,119410.12162999999,2292.0311191999999,54765.083473999999,35674.397800999999,8898.0707074999991,742.46966563000001,0]
[289,"2011-12-12","KW60MN12 ",7756815.418193873,2930832.3963548429,2114962.3574139327,106816.43720000001,709053.60174091009,"Winter",258539.57040999999,81401.877259000001,135180.62792,2594.7398904000001,56862.663690000001,35646.000374000003,9487.5929811000005,816.33821894000005,0]
[290,"2012-01-10","KW60MN09 ",7774481.3504814859,2930643.4060547454,2184450.2424535439,123849.94194608378,622343.2216551177,"Winter",250445.13203000001,67855.448445999995,122297.82291,2347.4594287999998,56634.665841000002,36079.727193999999,9908.9676313,742.46966563000001,0]
[291,"2012-01-20","KW60MN09 ",7659861.2668512147,2929906.7942772941,2060809.8795748402,118701.97322298605,750394.94147946779,"Winter",336946.65555999998,72479.390815999999,122229.12655,2346.1408287999998,57273.059820000002,34387.265712,9325.5601867999994,742.46966563000001,0]
[292,"2011-12-19","KW60MN10 ",7952959.1685148338,2929188.032483784,2126798.0964382514,115332.92436999999,687057.01167553233,"Winter",302289.39253000001,74079.603338999994,116060.66843999999,2227.7396601999999,55996.271862000001,36884.234539999998,9160.1754101000006,816.33821894000005,0]
[293,"2011-12-01","KW60MN09 ",7614634.1286964528,2928644.9173716516,2166799.1707590343,109936.42571000001,651909.32090261718,"Winter",270395.97265000001,70126.237294999999,139919.4185,2685.6991435999998,57227.460249999996,37087.48702,10457.819186000001,816.33821894000005,0]
[294,"2011-12-16","KW60MN09 ",7892086.9562594425,2927412.3542272816,2128542.5704334839,119142.92593,679726.85786379792,"Winter",306148.52412000002,79845.356897000005,130838.14263,2511.3875641,58641.046917,36549.248011000003,9084.2377746000002,816.33821894000005,0]
[295,"2012-01-20","KW60MN08 ",7735663.9628599584,2925006.0883262418,2058118.0760263556,120875.71555348579,746012.29674640007,"Winter",311794.87206999998,71142.685790000003,123887.04833999999,2377.9639965000001,55950.672292000003,34178.115363999997,9213.2179907000009,742.46966563000001,0]
[296,"2012-01-17","KW60MN14 ",7802386.6275650244,2924695.9148608814,2191669.4888358931,119786.42378685265,613240.00223813578,"Winter",225533.09888000001,82128.762356000007,131623.83794,2526.4686818,49201.935943999997,37234.980125000002,10118.050069000001,742.46966563000001,0]
[297,"2011-12-02","KW60MN08 ",7688150.9156495137,2924472.6309444131,2139622.5932228053,125124.238,659725.79972160771,"Winter",305986.56731000001,65973.402849999999,130681.20658,2508.3752373000002,57637.856378999997,37622.906408000003,8481.4294620000001,816.33821894000005,0]
[298,"2012-02-24","KW60MN08 ",7675533.3677615281,2924213.0405188333,2159783.5906097949,137967.82458761372,626461.62532142468,"Winter",264160.06842999998,59542.934578,114158.94747,2191.2368614000002,58413.049068,36234.109833000002,9047.4658512999995,747.06969021999998,0]
[299,"2012-01-24","KW60MN13 ",7653382.4543248704,2923845.060358109,2145990.1522870557,110302.47125926337,667552.43681178987,"Winter",262600.08551,84642.583224000002,123120.59895,2363.2522969000001,57136.261109999999,37495.819480999999,10360.672644,742.46966563000001,0]
[300,"2012-01-27","KW60MN11 ",7691369.6396503858,2923578.7126061576,2205186.8479537885,115395.19263596339,602996.67201640608,"Winter",273745.20685000002,78138.982965000003,120192.88194000001,2307.0559008999999,57729.055519000001,36366.317608999998,9267.3982140999997,742.46966563000001,0]
[301,"2012-02-02","KW60MN09 ",7630181.4717688141,2922392.1056685038,2166024.7359459479,139857.98659617218,616509.38312638341,"Winter",262967.40029000002,70532.158869000006,126780.58941,2433.5043986999999,54993.081323999999,35162.673925000003,9839.1482104000006,747.06969021999998,0]
[302,"2012-01-24","KW60MN07 ",7811649.8376661483,2921878.9845489645,2107946.614815529,111006.88243177631,702925.48730165907,"Winter",326204.86294999998,61831.859402000002,104003.97269,1996.3160465999999,57683.455949000003,35428.194305999998,9631.2203444000006,742.46966563000001,1729.7398880999999]
[303,"2012-02-16","KW60MN10 ",7640927.4538852507,2921604.6523878081,2168985.5229582335,134408.90634220865,618210.22308736597,"Winter",236285.76563000001,80963.170498000007,119522.96670999999,2294.1971368999998,56771.464549999997,36731.208122999997,9710.6741758999997,747.06969021999998,0]
[304,"2012-03-06","KW60MN07 ",7304264.0369837591,2920885.7822664464,2158893.223450887,118916.04286083199,643076.51595472754,"Winter",273660.19569000002,56427.576845000003,101172.36543000001,1941.96444,56999.462399999997,36178.540090000002,8491.5768265000006,1354.3257784,0]
[305,"2011-12-10","KW60MN18 ",7902203.8458142495,2920126.5855429797,2083236.0744374117,112939.59358399999,723950.91752156813,"Winter",364104.34636999998,73492.407181999995,107169.42677999999,2057.0757140000001,57227.460249999996,26542.705136,8108.2827256999999,816.33821894000005,3053.2304963000001]
[306,"2011-08-26","KW60MN14 ",9083819.151796218,2919315.2559447787,2087363.384493524,137780.05563699998,694171.81581425481,"Summer",186146.61431999999,106001.69478999999,140657.56229,2699.8675281000001,55494.676592999997,42998.009206000002,10753.809383,42878.759771999998,0]
[307,"2011-12-09","KW60MN20 ",7966542.2121570976,2918412.714618077,2097296.3049303517,111360.02095999998,709756.38872772548,"Winter",349361.33769000001,76436.841350000002,128017.10159000001,2457.2387718999998,57364.258958999999,32518.057175000002,7369.5667667999996,816.33821894000005,3053.2304963000001]
[308,"2012-01-16","KW60MN15 ",7803175.6617499925,2917871.9831559267,2156419.0475294702,108324.63344024771,653128.30218620854,"Winter",319126.00114000001,71680.945185000004,107364.19327,2060.8141814999999,57181.860679999998,35899.797801000001,7633.1138375,742.46966563000001,0]
[309,"2012-01-20","KW60MN10 ",7690231.7887214711,2917251.6250485848,2053988.7124761757,116557.9171766221,746704.99539578718,"Winter",310198.04849999998,81550.127240999995,123490.55416,2370.3534439999999,57273.059820000002,34691.421330999998,9650.2758567000001,742.46966563000001,0]
[310,"2012-02-28","KW60MN13 ",7680990.9197647981,2916071.3428940852,2198994.386276986,118924.90569974929,598152.05091734987,"Winter",227207.65239,74955.275089000002,123020.68025,2361.3343961,53442.695946,37371.480329999999,9159.1799730999992,747.06969021999998,0]
[311,"2011-09-06","KW60MN16 ",8035041.8517383086,2915058.7246185169,2145673.6600954994,115040.063288,654345.00123501767,"Summer",211816.54089999999,97698.212753999993,145423.55382999999,2791.3488932,55403.477453,40864.875461000003,11086.04162,33422.240342999998,0]
[312,"2012-03-23","KW60MN09 ",7329675.0972824013,2914481.7408699119,2212945.622818864,118592.57234119084,582943.54570985737,"Winter",227453.73008000001,65743.043678000002,116530.47196,2236.757357,57181.860679999998,37909.01584,8792.6779495999999,1354.3257784,0]
[313,"2012-01-10","KW60MN19 ",7916527.9043773673,2914001.6321714511,2159271.3840190284,119193.57877018119,635536.66938224132,"Winter",290181.71928999998,71912.242727999997,111800.14371999999,2145.9605353000002,56725.864979999998,34160.294167,8148.1002132000003,742.46966563000001,3053.2304963000001]
[314,"2011-12-07","KW60MN11 ",7775785.0485125026,2913596.0575495223,2179259.662454193,107736.89297,626599.50212532922,"Winter",243859.1887,85854.161756000001,136609.78193999999,2622.1719492000002,58048.252507999998,36376.46529,10790.518668999999,816.33821894000005,0]
[315,"2012-01-23","KW60MN21 ",7854621.7942952672,2913497.632701647,2080061.8544915742,117380.8594934409,716054.91871663171,"Winter",324839.05651000002,65282.527793000001,100388.11201,1926.9109988,57911.453798000002,33066.870299000002,7998.1548703999997,742.46966563000001,3053.2304963000001]
[316,"2012-01-20","KW60MN19 ",7649671.8241936266,2912888.8587481603,2067754.1490108052,122537.39226080864,722597.31747654628,"Winter",341292.69624000002,69659.691082000005,117940.80858,2263.8282233,52120.308419000001,29858.835961000001,7642.3165529999997,742.46966563000001,3053.2304963000001]
[317,"2012-01-20","KW60MN11 ",7663240.6210929053,2912010.6114145634,2051914.619789643,117440.41300930573,742655.5786156148,"Winter",313473.87696999998,83817.421296,121831.35261,2338.5057118,57136.261109999999,34550.694005999998,9772.8771488000002,742.46966563000001,0]
[318,"2012-01-19","KW60MN19 ",7916527.0897225514,2911968.7642398234,2056347.5549857949,128636.26256088295,726984.9466931459,"Winter",353717.84976999997,71712.202304000006,109456.61124,2100.9773353999999,49612.332072999998,33260.362711000002,7992.6494930999997,742.46966563000001,3053.2304963000001]
[319,"2011-08-24","KW60MN14 ",9054053.1814742181,2911558.4124947768,2108498.8171658376,140394.81387399998,662664.78145493916,"Summer",224699.16068,101701.2338,135425.38006,2599.437813,49475.533363000002,44075.316459000001,12149.107577000001,41666.856851999997,0]
[320,"2011-11-29","KW60MN09 ",7718554.770467964,2910063.7523835832,2150728.1420266149,114091.338756,645244.27160096797,"Winter",229588.06033000001,73783.458478999994,129491.04908,2485.5306242000001,56999.462399999997,36735.817793000002,10834.703890000001,4955.8928413000003,0]
[321,"2011-08-25","KW60MN20 ",8681975.3540632017,2909671.1684881118,2112391.6945976024,138885.050861,658394.42302950926,"Summer",286565.80377,95554.762965000002,121012.05091000001,2322.7795323999999,53442.695946,38422.218203999997,8978.2135579000005,45255.367655000002,265.39075265999998]
[322,"2012-03-01","KW60MN10 ",7644783.6704670908,2909282.8944181586,2197839.8739403975,119032.53695769308,592410.48352006753,"Winter",211937.48123,74536.654959000007,117741.02125000001,2259.9933827,56634.665841000002,34741.581703999997,9573.6898314999999,1354.3257784,0]
[323,"2012-02-29","KW60MN07 ",7655707.4627859108,2908875.8790478045,2154849.5265373285,123137.83336754219,630888.51914293366,"Winter",294118.40065000003,60262.793129999998,98466.054598999996,1890.0178498,56178.670141000002,33073.631646000002,8448.2617656000002,747.06969021999998,0]
[324,"2011-12-20","KW60MN18 ",8283326.1597335637,2908638.1710891435,2135148.3542655958,115814.07201999999,657675.74480354786,"Winter",328888.50670000003,69797.357057999994,116653.80333,2239.1246550999999,42134.002606000002,34802.791969999998,8085.6517667999997,816.33821894000005,3053.2304963000001]
[325,"2012-01-11","KW60MN12 ",7682022.1853222232,2908057.035872044,2153499.0423124302,112265.45898441302,642292.53457520052,"Winter",238182.22148000001,77406.445139000003,131399.86652000001,2522.169637,58276.250357999998,35226.733847000003,10114.169895000001,742.46966563000001,0]
[326,"2011-12-22","KW60MN22 ",7828920.3025143733,2907976.978995923,2125935.6917291069,112507.14403000001,669534.14323681605,"Winter",319626.97454000002,70161.204521000007,107970.96866,2072.4610005,56589.066271000003,32040.167437,8019.4653516999997,816.33821894000005,3053.2304963000001]
[327,"2011-12-12","KW60MN17 ",8200121.3342627706,2907906.3144674101,2090255.5048710541,100496.84393,717153.96566635591,"Winter",326990.58824000001,88178.220912999997,128834.43204,2472.9271140999999,57090.661540000001,34544.931812000003,8588.1037598000003,816.33821894000005,3053.2304963000001]
[328,"2011-12-20","KW60MN19 ",8227223.3279838385,2907658.3755418784,2138309.2354889363,116217.40422000001,653131.7358329423,"Winter",303161.40081000002,71091.403097000002,114716.70452,2201.9427924000001,41997.203895999999,34373.126891,7859.8703636,816.33821894000005,3053.2304963000001]
[329,"2011-07-07","KW60MN15 ",8382114.935741134,2906890.8967367541,2049076.6889310488,147562.95548,710251.25232570525,"Summer",210070.69078999999,94515.872266000006,130677.56126,2508.3052668,55540.276163000002,43566.098402000003,10182.834745,41711.312920999997,0]
[330,"2011-07-06","KW60MN20 ",8558266.4333985522,2906455.5794977015,2063873.0093642066,146849.23779400002,695733.33233949519,"Summer",267511.27396000002,72885.961536999996,119074.81499,2285.5950379999999,55266.678742999997,37785.825682000002,8190.6602310999997,41032.987982999999,0]
[331,"2011-09-06","KW60MN19 ",7783254.3783471752,2904969.173303538,2128009.3233620613,125969.86595300001,650989.98398847668,"Summer",267356.33341000002,83767.943041000006,128016.54364,2457.2280623000001,55084.280463000003,38537.011684999998,9230.8311350000004,33841.121969,0]
[332,"2011-12-19","KW60MN20 ",8160896.4249839913,2904890.6705445303,2092857.0669383262,114794.41252999999,697239.19107620441,"Winter",362355.26368999999,70499.537574000002,112071.0598,2151.1606648000002,58504.248206999997,33530.502784999997,8397.5283287000002,816.33821894000005,3053.2304963000001]
[333,"2011-08-22","KW60MN16 ",9164734.496552363,2903449.2917220108,2109879.3035775148,139309.29436500001,654260.69377949613,"Summer",251290.68627000001,91405.878037999995,131374.11077999999,2521.6752655,56634.665841000002,39354.863402000003,10662.046327,43159.302027999998,0]
[334,"2012-02-07","KW60MN09 ",7809274.4121882627,2903308.5576150166,2140214.0343593373,117054.46591085081,646040.05734482827,"Winter",266279.31690999999,70865.714898999999,119027.30274,2284.6830586000001,56224.269711000001,33294.959041000002,10091.477991,747.06969021999998,0]
[335,"2011-09-07","KW60MN19 ",8110272.3624219457,2902473.5135758491,2140458.7557433206,118508.36896099999,643506.38887152867,"Summer",286713.86585,89948.380063999997,127851.25365,2454.0553848,41222.011208000004,37845.481845000002,9076.1930169999996,37285.667764999998,0]
[336,"2011-08-04","KW60MN17 ",8356377.3824179862,2900937.4305398227,2066342.955586134,131630.835647,702963.6393066888,"Summer",263259.06245000003,99238.224832000007,130710.31448,2508.9339522999999,55175.479603,38848.457506999999,9420.1876635000008,32909.417781999997,0]
[337,"2011-12-12","KW60MN22 ",7405579.4253839338,2900679.9007646842,2075426.6436761764,103697.8867,721555.37038850808,"Winter",328589.39374000003,66840.197018000006,112953.39857999999,2168.0968165999998,57181.860679999998,32485.748079000001,8035.2501414999997,816.33821894000005,3053.2304963000001]
[338,"2012-01-16","KW60MN16 ",7834068.5666679451,2900566.4194189683,2150701.7640949544,106875.19583252454,642989.45949148946,"Winter",296134.50380000001,73023.690178999997,109521.36258,2102.2202123000002,57136.261109999999,34247.848900999998,7826.0254998,742.46966563000001,967.28038360000005]
[339,"2011-10-27","KW60MN08 ",7551675.8749968531,2900356.4591386435,2113596.9705153489,123436.01749900001,663323.47112429456,"Summer",286863.28454999998,63012.820320999999,134838.24226999999,2588.1679303000001,46830.758307999997,41501.213824999999,10306.370531,19170.103298999999,1729.7398880999999]
[340,"2012-01-15","KW60MN18 ",7588571.5955885816,2899216.1764063514,2144054.8044292312,123388.33610101286,631773.03587610729,"Winter",300203.49776,59646.730775000004,88668.120809999993,1701.9502987000001,55585.875732,26104.553877999999,6989.7566963999998,742.46966563000001,3053.2304963000001]
[341,"2012-02-28","KW60MN17 ",7551562.0297850454,2898396.1613663589,2141760.1423710273,124012.01836110439,632624.00063422741,"Winter",245690.00758,82530.914371999999,107567.59848,2064.7184658000001,56406.667991000002,34453.308298999997,7572.3701623999996,747.06969021999998,814.61885877999998]
[342,"2011-12-22","KW60MN17 ",8159772.6082967278,2898095.2540127067,2126664.506529646,108667.810875,662762.93660806096,"Winter",270578.08795000002,83718.829530999996,119284.96954000001,2289.6288733000001,57181.860679999998,35639.318749999999,8550.4396674,816.33821894000005,3053.2304963000001]
[343,"2012-02-15","KW60MN10 ",7551253.2663082452,2898094.2807191079,2158050.1883183056,132810.34310914058,607233.74929166166,"Winter",246546.77510999999,75156.618629000004,127179.13658999999,2441.1543578000001,48198.745405000001,35994.520283999998,9521.4361521999999,747.06969021999998,0]
[344,"2012-01-18","KW60MN14 ",7706284.1693248907,2897957.9669357315,2159153.7084567142,117905.54272660424,620898.71575241291,"Winter",248432.72777999999,87901.993971000004,116806.26604,2242.0511178000002,42042.803465999998,36399.458470999998,10142.367177,742.46966563000001,0]
[345,"2011-07-29","KW60MN18 ",9133497.7481599003,2896361.4963304671,2068714.7553943077,148567.881204,679078.85973215918,"Summer",255750.00451999999,97650.458597999997,131820.11522000001,2530.2361483,55357.877883000001,39394.105033,7892.8416808000002,38805.626471000003,0]
[346,"2012-02-29","KW60MN11 ",7715498.5030441284,2896253.7458828678,2188764.9359554676,120358.94167120702,587129.86825619289,"Winter",206078.55768999999,73614.426120999997,119856.2936,2300.5952177999998,56817.064120000003,34908.882524000001,9206.8712323,747.06969021999998,0]
[347,"2011-08-23","KW60MN18 ",9169443.3874619454,2895220.6419237768,2095619.7597521776,143687.372527,655913.50964459893,"Summer",266084.72709,92367.566720999996,121011.92908,2322.7771938999999,52029.109278999997,38973.758353999998,9512.8242661000004,41197.589697000003,0]
[348,"2011-08-03","KW60MN18 ",8188410.9186549718,2894887.7189498362,2091417.2084324274,138004.74992599999,665465.7605914087,"Summer",275848.11232999997,92985.345140000005,127266.22318,2442.8259512,54172.289064999997,37264.332967000002,9476.8056918999991,27518.984655,0]
[349,"2011-08-25","KW60MN13 ",9107336.1024815161,2894863.7915423168,2118972.903856413,140487.08094400002,635403.80674190423,"Summer",177613.45856999999,98371.080381000007,135048.46158999999,2592.2030086999998,49247.535514000003,42373.212640999998,12269.677366,45174.355995999998,0]
[350,"2012-01-09","KW60MN18 ",8014574.443872462,2894713.4326019958,2120994.0788409151,119311.37809907249,654407.97566200804,"Winter",283103.19663000002,65969.393878999996,113555.55422000001,2179.6549611999999,53716.293365999998,34090.736796999998,8073.1783298999999,742.46966563000001,3053.2304963000001]
[351,"2012-01-15","KW60MN19 ",7575570.8629512936,2894038.1645179032,2151019.285824128,123458.2644977707,619560.6141960047,"Winter",262103.19256,60070.282180000002,86497.464187000005,1660.2853841000001,55859.473151999999,26642.215048999999,6933.8496949,742.46966563000001,3053.2304963000001]
[352,"2011-12-19","KW60MN11 ",7975916.3601477202,2893396.4299909705,2091260.3367493784,107644.63604,694491.45720159204,"Winter",336999.50004999997,76877.937426000004,117646.81442,2258.1851191000001,57774.655089,37370.36651,9305.1029369999997,816.33821894000005,0]
[353,"2012-02-14","KW60MN19 ",7724915.970640949,2893190.6015606527,2115522.1577893719,130875.23104457092,646793.21272670978,"Winter",253130.02640999999,74353.707695000005,116606.63579,2238.2192924000001,56725.864979999998,33389.755605999999,7824.2343891999999,747.06969021999998,3053.2304963000001]
[354,"2012-03-19","KW60MN10 ",7637733.1393823307,2891919.4665435473,2207045.1300515393,124856.64957700203,560017.68691500602,"Winter",205527.13508000001,69046.140159000002,118792.37078,2280.1736304999999,57318.659389,35919.592784,8715.3402692,1354.3257784,0]
[355,"2012-01-10","KW60MN20 ",7840309.9144350635,2891675.6379945725,2137777.4783591069,117391.92009837284,636506.23953709297,"Winter",279789.92340000003,72336.234396999993,103590.98305,1988.3888701000001,56862.663690000001,33484.977007000001,7835.6345158000004,742.46966563000001,3053.2304963000001]
[356,"2012-03-14","KW60MN09 ",7430327.2327974038,2890899.2583116931,2149879.7237138283,112375.75936710932,628643.77523075545,"Winter",235323.72245999999,76908.326872999998,117328.84,2252.0817228999999,54400.286914999997,36769.335451999999,9334.991446,1354.3257784,0]
[357,"2012-02-23","KW60MN08 ",7584421.3459456032,2890720.7736506513,2141539.0318124946,130398.03430762111,618783.70753053576,"Winter",268835.11005000002,58016.181830000001,109849.90734999999,2108.5265023000002,57820.254658999998,35345.741170000001,9116.5166872999998,747.06969021999998,0]
[358,"2011-12-08","KW60MN21 ",7968212.0870095976,2890620.8904152382,2098909.4346649167,106903.19344,684808.26231032133,"Winter",359039.21363000001,72385.580893999999,121874.14671,2339.3271281000002,56908.26326,33085.511399000003,7458.4450854999995,816.33821894000005,3053.2304963000001]
[359,"2011-08-23","KW60MN17 ",9281990.1741433833,2890471.461053214,2087909.8252744579,142219.67671199999,660341.9590667563,"Summer",256067.13505000001,99756.137293000007,127470.09333,2446.7391598999998,54172.289064999997,40064.016974999999,10107.30341,39915.571533000002,0]
[360,"2011-07-29","KW60MN17 ",9222152.8011693805,2890451.1820217227,2059147.9829067425,147007.41979700001,684295.77931798028,"Summer",243537.24640999999,103995.00152999999,132044.89835999999,2534.5507738000001,55312.278313000003,40891.737603000001,8328.3352871999996,38797.965533000002,0]
[361,"2012-01-04","KW60MN09 ",7737807.7427747417,2890280.4026819752,2105644.7800287977,125438.46544448039,659197.15720869682,"Winter",273144.70224000001,72146.769944,116818.93107000001,2242.2942183,57318.659389,35430.838919000002,9813.9541692999992,742.46966563000001,0]
[362,"2012-01-20","KW60MN12 ",7588889.7084869193,2890228.5514639532,2048602.8302454178,116122.90511341959,725502.81610511581,"Winter",312379.22444999998,84705.436499000003,125287.18034000001,2404.8389889999999,57364.258958999999,33628.238373,9584.6379476999991,742.46966563000001,0]
[363,"2012-02-06","KW60MN07 ",7833328.9535974618,2890189.6609010017,2093599.0559702977,117274.5611454421,679316.04378526169,"Winter",320766.75579000002,64649.335321999999,102646.99535,1970.2693910999999,55175.479603,30978.949401999998,8623.1048888999994,747.06969021999998,966.43226404999996]
[364,"2012-01-09","KW60MN19 ",7929881.3183500348,2889599.0851032571,2118570.7010946949,128613.50222548423,642414.88178307808,"Winter",278870.87864000001,64112.666662000003,110792.92234999999,2126.6273105999999,53533.895085999997,33535.550770000002,7912.2425477999996,742.46966563000001,3053.2304963000001]
[365,"2011-11-01","KW60MN08 ",7543555.1200880175,2888833.2581835971,2169257.1078628786,121329.432705,598246.7176157186,"Winter",200589.27001000001,62589.150012999999,132629.88795,2545.7794227999998,41586.807766999998,42207.522940000003,10315.67482,4955.8928413000003,0]
[366,"2011-12-15","KW60MN20 ",8107064.7018111516,2888535.9787115115,2083094.540095431,112492.42709000001,692949.0115260802,"Winter",346254.43988999998,74575.417451000001,109747.00268000001,2106.5512868000001,56680.265411,34600.151609,7635.8969985000003,816.33821894000005,3053.2304963000001]
[367,"2012-01-06","KW60MN11 ",7590949.034165035,2888062.1067293086,2144756.9850140791,122211.01880640628,621094.10290882329,"Winter",218320.90701,77112.781182000006,128966.88361,2475.4694706999999,52530.704548000002,37174.749602000004,9829.2717128999993,742.46966563000001,0]
[368,"2012-01-03","KW60MN08 ",7677197.4934308371,2886753.5337916007,2079397.8838628496,122028.13208335223,685327.51784539851,"Winter",331419.06464,64181.121248000003,104875.34381999999,2013.0416785,58185.051218000001,33870.118949999996,9576.2478343000002,742.46966563000001,0]
[369,"2011-12-15","KW60MN11 ",7773379.8881494682,2886373.9441808192,2107939.9384333608,104103.96059000002,674330.04515745863,"Winter",252714.43512000001,86396.372277000002,128534.50072,2467.1700483,49612.332072999998,38222.368643000002,10100.680705999999,816.33821894000005,0]
[370,"2011-09-08","KW60MN15 ",8374041.8112036772,2886085.724421245,2167162.1821156074,114368.696929,604554.84537663788,"Summer",173866.13133,97624.974717999998,154613.20144,2967.7406262999998,49749.130783000001,42337.375419000004,11115.823474000001,47600.079854000003,0]
[371,"2012-02-03","KW60MN10 ",7679292.9497108497,2885517.5387523947,2133357.6024591206,130133.3054964123,622026.63079686172,"Winter",249341.09977,81919.696525000007,127341.02217,2444.2616889999999,58185.051218000001,35827.637851,9326.2390481000002,747.06969021999998,0]
[372,"2012-01-09","KW60MN11 ",7731720.6584676486,2884527.6997872014,2137115.1560720108,123399.85367221975,624012.69004297047,"Winter",219101.61916999999,74399.035579999996,124432.75055,2388.4385394999999,53397.096376000001,36859.107392999998,9249.1959344000006,742.46966563000001,0]
[373,"2011-08-22","KW60MN17 ",9142240.8034407385,2883301.4561325163,2102152.0147443363,135867.92484699999,645281.51654118043,"Summer",248805.28885000001,85857.203431999995,126258.49152,2423.4829316999999,56862.663690000001,39282.959907999997,9904.7217870000004,41675.377401999998,0]
[374,"2012-01-19","KW60MN11 ",7750121.8249149285,2882869.2003910816,2053181.5153866701,121282.85741627477,708404.82758813677,"Winter",311673.37001000001,86966.226219000004,127975.58035,2456.4417878999998,47013.156587999998,37574.970914999998,10480.043844,742.46966563000001,0]
[375,"2011-08-04","KW60MN18 ",8271353.1892487919,2882845.4698007898,2049761.5595865618,129454.98223599998,703628.92797822843,"Summer",268611.95707,88677.041352,129719.51968,2489.9160290999998,55631.475301999999,38061.438755000003,8965.6791752999998,32199.000691000001,0]
[376,"2011-12-13","KW60MN06 ",7411242.6261012303,2882771.4428255511,2115061.6709475257,103555.30383,664154.46804802562,"Winter",327287.92064000003,63941.429771000003,110785.60668,2126.4868891000001,57501.057669000002,32875.654804999998,9451.0055857000007,816.33821894000005,3053.2304963000001]
[377,"2011-08-25","KW60MN21 ",8443987.5229333043,2882706.1609706534,2080927.351322206,146922.33473199999,654856.47491644765,"Summer",265830.76405,94033.847729000001,113763.75854,2183.6513626000001,53488.295515999998,38122.644588000003,9100.4288648000002,48853.605497999997,3042.6996786999998]
[378,"2011-08-22","KW60MN15 ",9055525.9752441905,2882352.0913839135,2091804.6800039741,137345.72979399998,653201.68158593983,"Summer",237298.87272000001,93713.154148000001,127055.96184,2438.7900660999999,56589.066271000003,40873.613541999999,10965.085845,42586.528183000002,0]
[379,"2011-12-16","KW60MN10 ",7786900.7839293387,2881855.030106158,2093901.151828038,116571.89607,671381.9822081204,"Winter",304498.87727,85686.448581999997,130203.57389,2499.2072624000002,58504.248206999997,36706.850005,9157.5547700000006,816.33821894000005,0]
[380,"2011-12-11","KW60MN20 ",7867103.7828322928,2881648.2940226225,2058526.8183556173,115856.41660900001,707265.05905800487,"Winter",319824.86051000003,72347.795337999996,87779.915254000007,1684.9015365,58048.252507999998,25920.661616000001,7644.0839617000001,816.33821894000005,3053.2304963000001]
[381,"2011-12-02","KW60MN09 ",7632561.7453520996,2880479.9720808603,2128373.9971806286,122349.96656,629756.00834023173,"Winter",246253.74574000001,70071.533721,139281.03679000001,2673.4456534000001,57729.055519000001,37334.249559999997,8018.7949552999999,816.33821894000005,0]
[382,"2012-01-17","KW60MN15 ",7713263.441144567,2879695.9035164928,2159075.8727952372,116159.81395348327,604460.21676777233,"Winter",234640.95172000001,83662.165657000005,126239.34952,2423.1155082,49566.732502999999,36977.919391000003,9842.2530265000005,742.46966563000001,0]
[383,"2012-01-19","KW60MN10 ",7805136.9396615811,2879643.3216286628,2048583.4893559713,122694.18669094422,708365.64558174729,"Winter",303786.88626,77715.143943000003,126590.50547,2429.8558111000002,47013.156587999998,37173.118449000001,10304.481232,742.46966563000001,0]
[384,"2012-02-28","KW60MN14 ",7544387.1430976633,2879495.854640157,2162933.9903428527,115722.07901256591,600839.78528473875,"Winter",231991.05382999999,75395.726836999995,126053.60745,2419.5502611000002,55494.676592999997,37756.982302999997,9049.2908191000006,747.06969021999998,0]
[385,"2011-12-22","KW60MN13 ",7781173.0139064221,2879332.4548688424,2141348.0116431392,109117.82032799999,628866.62289770308,"Winter",264151.03843999997,76161.417809000006,119657.55706000001,2296.7805466,56725.864979999998,37852.279734000003,8872.9613129000008,816.33821894000005,0]
[386,"2011-12-08","KW60MN11 ",7760145.1224641595,2878917.2246333295,2149032.5131797744,106378.77824,623505.93321355514,"Winter",266659.19099999999,88756.435045999999,137551.89266000001,2640.2554003999999,42498.799164999997,35651.295292000003,10310.291334,816.33821894000005,0]
[387,"2011-07-07","KW60MN14 ",8521752.816276921,2878427.41508502,2014899.999169491,145964.55989400001,717562.85602152906,"Summer",231017.71259000001,93494.478034,137338.00000999999,2636.1498136999999,55585.875732,44167.250417000003,10609.836664,41510.627429,0]
[388,"2012-01-18","KW60MN16 ",7788204.4209146947,2878266.6656134487,2117270.9078520918,116282.77301205072,644712.98474930588,"Winter",282734.90678000002,77286.889427999995,112887.96631,2166.8408694999998,48517.942394999998,34303.624173999997,9372.8739246000005,742.46966563000001,865.50603375000003]
[389,"2012-03-13","KW60MN08 ",7342046.6162307747,2877988.1473585134,2159153.2188657909,126927.02051949974,591907.90797322302,"Winter",221750.42540000001,68959.777763999999,118944.44629000001,2283.0926611,57181.860679999998,34709.608572999998,8877.5389687999996,1354.3257784,0]
[390,"2012-01-18","KW60MN07 ",7759562.685159334,2877962.7854365767,2138291.6550418586,120701.32003906158,618969.8103556569,"Winter",326743.52487999998,60732.283003999997,108044.34138,2073.8693613999999,45234.773361,36994.901193999998,9392.8639292999997,742.46966563000001,1933.2885876]
[391,"2011-08-04","KW60MN16 ",8323851.5551755242,2877746.010226409,2047939.8163365629,131263.55095199996,698542.64293784578,"Summer",251285.14322,98166.831741999995,136427.06534999999,2618.6647748999999,55266.678742999997,39261.256550999999,9973.2850624999992,32456.734119000001,0]
[392,"2011-08-03","KW60MN17 ",8332187.8739710413,2877165.2619331768,2081139.9229470817,135295.509452,660729.82953409525,"Summer",239165.80095,102490.50781,137284.97211999999,2635.1319638,52667.503257999997,38352.125724999998,10180.010955,27742.427650000001,0]
[393,"2011-07-07","KW60MN16 ",8311913.1610539081,2876841.329014278,2031651.1484267353,141811.78210100002,703378.3984865424,"Summer",210215.84886,88237.857369999998,130804.34286999999,2510.7387907000002,55221.079172999998,41974.424243000001,9788.0931173000008,31333.823637000001,0]
[394,"2011-09-09","KW60MN19 ",7799806.6944660703,2876250.0343810846,2060139.1994329933,120739.262512,695371.57243609149,"Summer",261770.56690999999,83869.285650999998,142484.94760000001,2734.9434826000002,53807.492506000002,40457.88508,8320.3311601000005,41241.426671000001,0]
[395,"2011-09-07","KW60MN21 ",7740510.7817317992,2876016.2418995462,2114300.0346689466,133047.84685900001,628668.36037159956,"Summer",234231.00946999999,85394.261276000005,122616.11977,2353.5690141,51983.509708999998,36418.804774999997,9105.5076253000007,49902.298561000003,3053.2304963000001]
[396,"2012-03-06","KW60MN10 ",7397872.014742245,2875840.825430518,2182256.77734992,118421.43320318362,575162.61487741419,"Winter",215773.03099999999,68771.613213999997,118764.38291,2279.6364140999999,53305.897235999997,37548.427428000003,9509.9835459999995,1354.3257784,0]
[397,"2012-01-19","KW60MN08 ",7761721.1344042243,2875522.0464268471,2035460.9975649705,126854.00776469456,713207.04109718173,"Winter",304276.97492000001,68821.938253,124924.6174,2397.8797334999999,52621.903687999999,36582.861833000003,9999.3695788999994,742.46966563000001,0]
[398,"2012-01-18","KW60MN15 ",7720438.7196103837,2875435.1579716229,2130278.8514028657,117008.57065577123,628147.73591298598,"Winter",251106.57844000001,81529.489474999995,115124.8753,2209.7774727000001,43182.792714000003,35576.967178999999,9950.7556776000001,742.46966563000001,0]
[399,"2011-08-23","KW60MN16 ",9221716.3754471075,2875313.3226319682,2082107.8508420233,142999.551236,650205.92055394477,"Summer",245489.66274,103333.18388,129802.16979,2491.5024659000001,54172.289064999997,40973.222327000003,10799.315083,39275.257733999999,0]
[400,"2011-11-18","KW60MN18 ",7822628.7033510553,2875208.1135866661,2132672.2252441882,122012.35371499999,620523.53462747764,"Winter",265929.71234000003,73409.023797999995,125164.15773000001,2402.4776176999999,57455.458099000003,38127.377075999997,7284.1013751,4955.8928413000003,3053.2304963000001]
[401,"2011-11-08","KW60MN09 ",7613542.2489827704,2874621.0769456299,2110411.7961341725,134723.67444899998,629485.6063624575,"Winter",276367.38945999998,70062.627217000001,138543.92749,2659.2971253999999,57592.256808999999,39085.815193000002,10396.081767,4955.8928413000003,0]
[402,"2011-10-26","KW60MN09 ",7366239.625412073,2874347.4091010317,2137033.8391,112615.53331399999,624698.03668703209,"Summer",233349.05973000001,63292.903588000001,140397.56378999999,2694.8769575000001,57045.061970000002,42408.265336999997,10573.635254999999,19170.103298999999,0]
[403,"2011-12-21","KW60MN12 ",7817595.1379290372,2872839.4779572575,2178836.7593478193,112916.425153,581086.29345643858,"Winter",229579.50727999999,80157.873462000003,114579.05976,2199.3007544000002,53442.695946,34198.393543999999,9323.8537228000005,816.33821894000005,0]
[404,"2012-02-27","KW60MN07 ",7354391.6236328837,2872764.0701712933,2093640.2099260637,130349.92536008895,648773.93488514039,"Winter",279186.59957000002,61133.967441000001,101950.0661,1956.8921035000001,56589.066271000003,34364.587610000002,8399.9187323000006,747.06969021999998,0]
[405,"2012-02-14","KW60MN09 ",7596597.0072109289,2872715.8754113531,2110877.248413112,131778.39080298619,630060.23619525484,"Winter",265737.05145999999,74814.408362000002,124370.83832,2387.2501582999998,56725.864979999998,36482.771602000001,9437.4317499999997,747.06969021999998,0]
[406,"2011-12-13","KW60MN16 ",7863918.0294667976,2872586.9831171986,2041961.0835734131,95925.26718000001,734700.63236378541,"Winter",309092.08730000001,91607.952674,133488.49770000001,2562.2601049999998,57455.458099000003,34921.897609,9413.7681090000005,816.33821894000005,2239.4597568999998]
[407,"2011-09-08","KW60MN19 ",8037282.0488960622,2871909.9044894567,2127432.7529710163,124526.19625899999,619950.95525944047,"Summer",217343.00837,75962.373603,131079.56716999999,2516.0216148999998,51253.916590000001,38899.101824999998,8268.4262209999997,38854.859708000004,0]
[408,"2011-12-09","KW60MN12 ",7667339.9808547068,2870983.1275593564,2090957.6699810182,101637.28388,678388.17369833798,"Winter",281508.18541999999,84694.895877000003,139001.18573,2668.0740206,58048.252507999998,35695.545163000003,9405.7436665999994,816.33821894000005,0]
[409,"2011-07-06","KW60MN14 ",8949926.2685686685,2870930.3558198875,2043363.2583460931,146648.97791099999,680918.11956279422,"Summer",199113.77893,86595.826218000002,131587.24844,2525.7663604999998,54673.884334000002,42755.802767000001,10361.708710999999,41092.881434000003,0]
[410,"2011-12-07","KW60MN21 ",7910930.4171607709,2870118.0224426202,2096121.5447374319,110742.45053,663254.02717518876,"Winter",339125.67998999998,74183.847833000007,121220.71890000001,2326.7848337999999,56041.871432,32663.31595,8201.9350806000002,816.33821894000005,3053.2304963000001]
[411,"2011-09-09","KW60MN14 ",8151743.5838491265,2870079.4714543838,2065947.0025974987,114610.35192299999,689522.1169338848,"Summer",189406.97946999999,96485.784224000003,158287.08042000001,3038.2593129000002,54035.490355000002,44965.757814999997,11014.857704,37360.104022,0]
[412,"2012-01-23","KW60MN11 ",7735981.8560097069,2870048.7196178101,2107938.341270755,116776.58952273961,645333.78882431576,"Winter",278804.44678,74443.106945000007,118238.30336999999,2269.5385209000001,57592.256808999999,36702.823393999999,9535.6583764000006,742.46966563000001,0]
[413,"2012-01-13","KW60MN19 ",7787314.4937555315,2869880.2815102525,2077204.0657016574,120245.3389533076,672430.87685528782,"Winter",307868.87407000002,76085.774390999999,125019.12691000001,2399.6938070000001,56999.462399999997,33208.325021999997,7971.7046829000001,742.46966563000001,3053.2304963000001]
[414,"2012-02-27","KW60MN10 ",7658607.235917653,2869559.0976276812,2145100.1152134631,126817.42853120668,597641.55388301157,"Winter",217598.65658000001,69674.889821999997,120015.12476999999,2303.6439205000001,56087.471001999998,37016.882167000003,9442.9625207999998,747.06969021999998,0]
[415,"2011-10-25","KW60MN08 ",7210365.6331748385,2869377.8504900644,2133539.0751995258,114388.255879,621450.51941153884,"Summer",263666.59882000001,55947.445120999997,130142.31664,2498.0314533000001,52211.507557999998,43574.963186000001,9141.7496649999994,19170.103298999999,1577.0783635]
[416,"2011-09-12","KW60MN18 ",7344477.2121716514,2868301.7000783328,2051746.3767950872,108597.58625000001,707957.7370332455,"Summer",302968.85651000001,78034.203406000001,141899.64958,2723.7089135000001,54856.282614000003,41595.288703999999,9698.2396757000006,27193.729235999999,0]
[417,"2012-03-07","KW60MN10 ",7440146.2130945213,2867935.1970344884,2173880.4601556757,118738.14726884996,575316.58960996266,"Winter",203421.03943,75850.337725000005,120078.30997,2304.8567361,53898.691644999999,36573.166333000001,9474.4152883000006,1354.3257784,0]
[418,"2011-08-01","KW60MN18 ",8188171.6679789266,2867455.5266524265,2129733.3250447414,131500.619962,606221.58164568525,"Summer",242880.46338,79921.079049000007,123835.15253000001,2376.9678767,55540.276163000002,36502.284354000003,9052.5463046000004,27522.359784,0]
[419,"2011-12-10","KW60MN19 ",7773973.3273252491,2867346.6414629584,2045338.3756918579,111764.806197,710243.45957410056,"Winter",362775.80452000001,74564.116811999993,99268.779890999998,1905.4258514000001,56999.462399999997,25907.474249999999,7752.9116544999997,816.33821894000005,3053.2304963000001]
[420,"2012-01-20","KW60MN17 ",7567701.594900975,2867179.1216994366,2035329.7676793775,116132.41179737631,715716.94222268288,"Winter",325362.28691000002,83328.220780000003,117924.44173000001,2263.5140679000001,57318.659389,31184.283170999999,7875.1066461999999,742.46966563000001,3053.2304963000001]
[421,"2012-02-16","KW60MN07 ",7643413.016888367,2867109.1017504623,2100878.5720373569,132608.70027394354,633621.82943916158,"Winter",287891.61119999998,59299.785262999998,102484.64367999999,1967.1531136000001,55859.473151999999,34469.649278999997,8883.0511182999999,747.06969021999998,265.39075265999998]
[422,"2012-01-30","KW60MN08 ",7703188.8772243839,2866662.3086678456,2087565.7378647174,140512.09614139487,638584.47466173337,"Winter",268524.76260999998,68454.369437000001,108706.88995,2086.5867251999998,52348.306268,34477.365625999999,8790.6650673999993,742.46966563000001,0]
[423,"2012-01-13","KW60MN12 ",7645965.2486324748,2866418.436307692,2088828.9516706595,113249.01424375665,664340.47039327596,"Winter",257709.76564999999,79571.183449000004,136845.30536999999,2626.6927304000001,57501.057669000002,37427.476321000002,9295.5954961000007,742.46966563000001,0]
[424,"2012-01-19","KW60MN09 ",7779649.8784861751,2866348.7149124718,2039683.5263499261,123277.21375721086,703387.97480533517,"Winter",275520.35142000002,71594.590823999999,127596.45271,2449.1645794000001,47514.751857000003,36574.651402000003,10124.713404,742.46966563000001,0]
[425,"2012-03-12","KW60MN08 ",7328992.1646132842,2866306.0084653492,2116556.1472287527,128712.19575577471,621037.66548082198,"Winter",218381.40367,71209.896712000002,119299.48641,2289.9075189,57455.458099000003,35747.454230000003,8927.8000823000002,1354.3257784,0]
[426,"2011-08-24","KW60MN20 ",8786100.153740041,2865745.3982059085,2090695.5856935771,142293.64557599998,632756.16693633143,"Summer",255354.65651,88842.299331999995,117652.75607,2258.2991667000001,50250.726051999998,38396.23648,8745.9516545000006,46165.763011000003,187.30720972]
[427,"2011-08-01","KW60MN17 ",8262971.2603426594,2865577.2747057797,2127192.2661419674,138323.95334500002,600061.05521881243,"Summer",221348.18831999999,91298.694703000001,128403.20352,2464.6498492000001,55449.077022999998,37490.828544000004,9866.9967498999995,27243.439101,0]
[428,"2012-02-13","KW60MN08 ",7568351.2462079525,2865300.1973616625,2125683.1998923821,123240.62424784622,616376.3732214343,"Winter",272826.99937999999,62745.352057999997,111843.49622,2146.7926699,56725.864979999998,36407.120679,8671.7272539999994,747.06969021999998,0]
[429,"2012-03-02","KW60MN10 ",7400341.0945063224,2865277.7195551535,2144956.2896556193,123855.80223165499,596465.62766787945,"Winter",234746.49231999999,81793.472586000004,116559.92985,2237.3227900000002,48882.738954,34732.587817,9255.3446218999998,1354.3257784,0]
[430,"2011-09-12","KW60MN17 ",7386130.8843722185,2863804.8250119211,2039513.2889704253,109872.014698,714419.5213434957,"Summer",265597.22447999998,90381.879180999997,149228.10776000001,2864.3758349999998,54856.282614000003,42779.458745000004,10228.36076,26812.7408,0]
[431,"2011-09-07","KW60MN15 ",8250243.0692737289,2863386.91079068,2119126.3408933561,115923.26137600001,628337.3085213236,"Summer",199173.71385999999,100559.72629999999,148307.48220999999,2846.7047834999998,41130.812067999999,42006.246427999999,11207.261489,34481.972346000002,0]
[432,"2012-03-06","KW60MN20 ",7523054.3968409011,2863137.5963909109,2127825.8228980824,127862.47016780917,607449.30332501943,"Winter",275496.02769000002,67957.255422000002,104366.36695,2003.2720643,56452.267561000001,33390.593354999997,7570.0982624999997,1354.3257784,3053.2304963000001]
[433,"2012-03-02","KW60MN07 ",7464165.374235685,2863043.630544425,2113997.1019369075,129245.23159565755,619801.29701185995,"Winter",277268.15166999999,60443.378395,93109.496748000005,1787.2007928,54810.683043999998,33388.630334000001,8464.1836815999995,1354.3257784,0]
[434,"2011-08-04","KW60MN15 ",8347237.8127918476,2862680.3594394615,2052112.4665697804,131253.97984400002,679313.91302568081,"Summer",239386.07110999999,96438.827042000004,139932.83428000001,2685.9566543000001,55403.477453,40841.051549999996,11014.634238000001,32335.750235,0]
[435,"2012-01-17","KW60MN16 ",7724060.0181828439,2862394.46145734,2139609.2528612176,115409.99525219864,607375.21334392403,"Winter",243585.53352,76851.780295999997,123049.96739999999,2361.8965515999998,48882.738954,35464.736938000002,9309.7550816999992,742.46966563000001,916.39320871999996]
[436,"2012-04-02","KW60MN08 ",7307068.9565159651,2861814.5254712841,2143367.0967833512,135761.02493811827,582686.40374981449,"Summer",218003.24655000001,63788.907303,101333.86702999999,1945.0644007000001,55996.271862000001,34205.325683000003,7174.6015931000002,7467.6597125999997,0]
[437,"2012-03-13","KW60MN09 ",7376076.9127570214,2861497.586283152,2163546.2771531423,124928.30419966765,573023.00493034208,"Winter",188910.74364,74917.161745000005,120277.99361,2308.6895863999998,57318.659389,35115.371241000001,9005.7895377999994,1354.3257784,0]
[438,"2012-01-13","KW60MN18 ",7824272.9090422504,2860808.4193354044,2059704.4414630299,114517.43875895083,686586.53911342402,"Winter",300932.05433999997,81319.906254000001,128360.40321,2463.8283139999999,57136.261109999999,33777.714475000001,7814.7506501999997,742.46966563000001,3053.2304963000001]
[439,"2011-08-01","KW60MN16 ",8182512.300404205,2860528.2033474054,2127597.226984486,137897.92034499999,595033.05601791921,"Summer",220736.44922000001,94361.575889,131957.95817999999,2532.8819905999999,55449.077022999998,38460.311116999997,11215.570342000001,27249.691363000002,0]
[440,"2012-02-03","KW60MN07 ",7657319.1264308719,2860303.4700079467,2067475.543255517,129916.80075197709,662911.1260004529,"Winter",305946.70607999997,67838.578632000004,106855.26865,2051.0455701999999,58002.652937999999,34798.139042000003,8782.6778689999992,747.06969021999998,1169.9809634999999]
[441,"2012-03-08","KW60MN09 ",7386337.1094872132,2859871.5564295263,2163092.148301471,120569.98555287634,576209.42257517914,"Winter",219543.21935999999,73152.775833000007,127110.79999,2439.8426632000001,57865.854227999997,36136.324229999998,9439.4429393999999,1354.3257784,0]
[442,"2012-02-27","KW60MN20 ",7741861.086713626,2859786.7509350227,2114373.2599762455,122851.44349393915,622562.04746483802,"Winter",276308.56738000002,71468.471327000007,103297.45223,1982.7546594,49840.329922999998,34780.488894000002,8047.2715691000003,747.06969021999998,3053.2304963000001]
[443,"2012-02-16","KW60MN11 ",7565733.7668509483,2859670.0710346568,2123909.2590615423,123748.69678165148,612012.1151914628,"Winter",199802.49546999999,82664.971470999997,118889.07051000001,2282.0297445000001,57273.059820000002,36931.563556000001,9645.3663868999993,747.06969021999998,0]
[444,"2011-09-06","KW60MN15 ",7904780.4328257991,2859663.3320284402,2106198.2402046686,112968.609847,640496.48197677173,"Summer",178653.58142999999,96713.233477000002,147642.82115,2833.9468714,52986.700247000001,42172.650099999999,11182.700601,32460.282363999999,0]
[445,"2011-07-07","KW60MN17 ",8203518.0227475008,2859065.2910740729,2022705.6562915759,148741.62706199999,687618.00772049674,"Summer",218524.70699000001,83732.055118000004,127458.82574,2446.5228830000001,55175.479603,40737.853030999999,9155.7873602,27055.560785999998,0]
[446,"2011-12-13","KW60MN15 ",7676476.9327413579,2858462.5008279956,2039260.0343717532,99683.44690000001,719519.01955624251,"Winter",295538.56718000001,89908.009164000003,135221.34031,2595.5213490000001,56634.665841000002,36656.640929000001,9799.0632415,816.33821894000005,0]
[447,"2012-01-24","KW60MN20 ",7836565.9152331054,2857823.2073205267,2065582.6485981233,132973.58089180093,659266.97783060244,"Winter",303713.76669000002,73209.301521000001,110362.57902999999,2118.367037,57227.460249999996,33975.142570000004,8320.4733646000004,742.46966563000001,3053.2304963000001]
[448,"2012-01-19","KW60MN12 ",7700823.0732350806,2856763.646825402,2029555.6821111059,121939.45200329649,705268.51271099946,"Winter",294830.96398,90401.928855999999,125426.26952,2407.5087521,47788.349276000001,36864.13998,10364.776282999999,742.46966563000001,0]
[449,"2011-11-18","KW60MN19 ",7727710.7112308759,2856550.6198607255,2105499.1586706717,121692.24494399999,629359.21624605334,"Winter",273754.27922999999,72245.334392999997,124966.63825,2398.6863075000001,57045.061970000002,36983.271451000001,7078.4318659,4955.8928413000003,3053.2304963000001]
[450,"2011-09-08","KW60MN20 ",8013804.2715307772,2855814.4039628068,2107424.0681460062,128370.266364,620020.06945280102,"Summer",223493.90143999999,80288.617335999996,128483.4497,2466.1901438,51937.910139,38896.285189000002,8459.2657481000006,39309.278641999997,1628.8136574]
[451,"2011-09-08","KW60MN21 ",7852591.1217713533,2855502.7367771855,2110771.2378633278,134974.73624299999,609756.76267085783,"Summer",234480.42571000001,78023.175923999996,119661.67271,2296.8595449999998,52576.304118,37921.010344000002,8398.7675464999993,41180.206115000001,3053.2304963000001]
[452,"2012-01-16","KW60MN22 ",7593180.7327324934,2855263.3391867452,2096578.1902045,118159.42710524178,640525.72187700355,"Winter",334447.18323000002,66834.713002999997,103459.64773,1985.8679393,57911.453798000002,32894.507740000001,7571.4576779999998,742.46966563000001,3053.2304963000001]
[453,"2012-01-20","KW60MN13 ",7510443.4741785321,2854988.4513897593,2031588.831213698,110754.82638034107,712644.79379572009,"Winter",289972.90617999999,82440.120416999998,125906.36056,2416.7239140000001,57409.858528999997,34134.261951,9438.6743544000001,742.46966563000001,0]
[454,"2011-12-19","KW60MN08 ",7820859.6248921193,2854870.2840300598,2051368.7549738598,118321.90067999999,685179.62837619986,"Winter",325893.63582000002,66103.462224999996,110215.13348999999,2115.5368769000002,55996.271862000001,34880.153845000001,8860.4878749,816.33821894000005,0]
[455,"2012-01-10","KW60MN18 ",7921431.4396408573,2854762.1173064667,2110762.0139479777,113810.63737392955,630189.46598455973,"Winter",264120.47216,73444.291496000005,116946.96591,2244.7517974000002,56999.462399999997,34343.953905000002,8230.8230743999993,742.46966563000001,3053.2304963000001]
[456,"2011-11-02","KW60MN09 ",7458097.3151477911,2854528.7043123809,2111713.8668137644,116465.792277,626349.0452216164,"Winter",224072.59417999999,72755.076264999996,136990.72466000001,2629.4839975,53442.695946,42308.173121,10570.953669,4955.8928413000003,0]
[457,"2011-07-29","KW60MN16 ",9219673.5681394804,2854064.2107418883,2038156.7713155048,148079.35299499999,667828.0864313835,"Summer",219472.99320999999,104244.80138999999,133811.90198,2568.4677252000001,54810.683043999998,41808.252100999998,8527.3211470000006,37575.171543999997,0]
[458,"2011-12-12","KW60MN13 ",7648016.7693209872,2854032.7408628063,2067529.0986247,99282.492490000004,687221.14974810637,"Winter",235706.15080999999,81092.042447,133607.34723000001,2564.5413758999998,56908.26326,36735.178348000001,9406.8813093000008,816.33821894000005,0]
[459,"2012-02-07","KW60MN10 ",7685770.8727918742,2853316.0759472074,2112870.2983814948,114683.51623452107,625762.2613311914,"Winter",223186.41561,76018.576323999994,118949.94975,2283.1982978999999,56908.26326,34049.197778000002,10230.939077999999,747.06969021999998,0]
[460,"2012-01-31","KW60MN10 ",7686845.9362306818,2852655.3877237346,2106613.0344508523,124929.25951788505,621113.09375499736,"Winter",251771.37400000001,72140.193302999993,123198.75585,2364.7524883000001,54628.284764000004,37109.128993999999,9260.6536199999991,742.46966563000001,0]
[461,"2011-09-07","KW60MN20 ",8017396.1580406865,2852479.2131306836,2105160.6754225548,125272.21739299998,622046.32031512889,"Summer",252453.58301,85270.004062000007,129295.13753000001,2481.7701777000002,45645.16949,36958.362918999999,9187.6210346999997,43733.824719999997,1527.0393077000001]
[462,"2011-08-03","KW60MN16 ",8275047.922201273,2852467.6238950393,2067878.1314527513,134408.69574999998,650180.7966922879,"Summer",242145.83381000001,102672.70791,139775.98619,2682.9460158000002,52621.903687999999,38906.381654999997,11541.72838,27556.494200000001,0]
[463,"2012-02-27","KW60MN19 ",7783971.8966657929,2852185.063921446,2108697.6239831764,127278.18344524391,616209.25649302534,"Winter",246261.60988,67355.205988000002,106617.4381,2046.4805047,51162.717449999996,34812.266457999998,7960.1200287000001,747.06969021999998,3053.2304963000001]
[464,"2012-01-17","KW60MN21 ",7857523.0118745109,2851833.0260167336,2091266.8013664789,124537.92822977522,636028.29642047943,"Winter",327742.61005999998,68374.289638000002,107568.37173,2064.7333081000002,48244.344975,34978.725706999998,7974.9957194999997,742.46966563000001,3053.2304963000001]
[465,"2012-02-08","KW60MN08 ",7713900.7075845944,2851330.2761545819,2093804.8934660247,124516.17829176701,633009.20439679048,"Winter",255963.62937000001,68311.613112000006,117684.67564,2258.9118506,50113.927342000003,34698.771342,9308.7342511999996,747.06969021999998,0]
[466,"2012-02-29","KW60MN21 ",7504842.3751794687,2851242.9718797454,2115871.9273997773,121087.32880177585,614283.71567819233,"Winter",268022.59156999999,71288.713564999998,97015.755753000005,1862.1799242,57501.057669000002,30565.711205,7396.0372696000004,747.06969021999998,3053.2304963000001]
[467,"2011-08-22","KW60MN18 ",8959530.906524241,2851169.1935111,2097602.320991186,138018.74038000003,615548.13213991409,"Summer",244866.55137,75873.854879999999,117770.61235,2260.5613724,56862.663690000001,38188.295731999999,9309.8972873999992,42263.004710000001,0]
[468,"2011-07-29","KW60MN19 ",8859223.9204563871,2851141.9693810074,2043236.7271319192,145014.77111500001,662890.47113408789,"Summer",253871.69342,88163.097691999996,129091.52471,2477.8619084000002,55312.278313000003,38362.804998,7621.5952072,39185.617294000003,0]
[469,"2012-01-03","KW60MN09 ",7535480.5728100026,2850099.3532123794,2076665.4968356597,119323.36038511421,654110.49599160522,"Winter",257568.82581000001,70047.924979000003,112668.37785999999,2162.6259540999999,57774.655089,34290.289242999999,9600.8087228000004,742.46966563000001,0]
[470,"2011-09-06","KW60MN20 ",7746619.6381232999,2849600.331890732,2099594.8442359138,125968.189126,624037.29852881853,"Summer",250966.32751,79789.803323999993,128648.95821,2469.3670155999998,55084.280463000003,38461.313263999997,9217.7076158,34110.752546999996,1425.2649578999999]
[471,"2011-07-28","KW60MN18 ",9009789.1195224542,2849423.127180615,2025439.9049161929,145094.135121,678889.0871434221,"Summer",231902.69352,88227.922512999998,128280.11121,2462.2871399999999,56634.665841000002,39484.316914000003,8895.7751069000005,35368.870174999996,0]
[472,"2012-04-05","KW60MN08 ",7108874.3381984187,2848236.564009211,2181710.2091964358,136372.70115897505,530153.65365380002,"Summer",232029.9718,57890.727549000003,91850.052903000003,1763.0262551000001,39580.426691000001,33826.660956,7616.1135317999997,7467.6597125999997,0]
[473,"2011-11-29","KW60MN10 ",7637165.9494851967,2848124.8616213859,2098088.5570192807,113939.05046,636097.25414210523,"Winter",226538.19346000001,76599.795177000007,126818.37771,2434.2297305000002,56406.667991000002,37276.875923,10870.641204,4955.8928413000003,0]
[474,"2011-08-23","KW60MN19 ",8865734.1760047022,2848007.8257410424,2064935.924586599,145218.71978700001,637853.18136744364,"Summer",254334.88290999999,87184.593827000004,116623.7357,2238.5475185999999,53397.096376000001,38395.752049000002,9139.3321751000003,41511.808130999998,0]
[475,"2012-01-24","KW60MN14 ",7562191.1182146315,2847469.030174355,2094146.3793559761,104151.1658214838,649171.48499689531,"Winter",268025.63335999998,83386.687485000002,126826.60258999999,2434.3876039000002,56361.068421000004,37522.157999000003,10249.06179,742.46966563000001,0]
[476,"2011-12-19","KW60MN12 ",7880147.6197923282,2847188.1592878187,2050385.0696416483,104123.92206000001,692679.16758617002,"Winter",334822.44695000001,77655.722796999995,122174.46891,2345.0916965000001,58413.049068,37672.743843999997,9182.4813285,816.33821894000005,0]
[477,"2011-12-20","KW60MN12 ",7825559.2900563879,2846974.6677559074,2107675.7219344019,104805.31576,634493.63006150536,"Winter",269120.89,75458.671698999999,122957.98387,2360.1309633000001,41997.203895999999,33570.229335999997,9029.4684147000007,816.33821894000005,0]
[478,"2011-12-20","KW60MN20 ",8042160.5659416057,2846678.3342696242,2082290.074458343,116854.35657,647533.90324128116,"Winter",317554.75193000003,70926.366855,107098.78834,2055.7198364999999,42772.396585000002,34603.625577999999,7705.5979156000003,816.33821894000005,3053.2304963000001]
[479,"2011-12-10","KW60MN12 ",7396329.2239167625,2845629.8545761718,2022333.4027226479,102537.44984,720759.00201352418,"Winter",370414.74797999999,73632.650469,105377.17324,2022.6741001,57820.254658999998,28135.451997,7271.343527,816.33821894000005,0]
[480,"2012-01-10","KW60MN21 ",7631382.619416004,2845565.6760792015,2092284.8050979984,114203.56272264403,639077.30825855897,"Winter",273057.53957000002,69811.929145999995,102601.65218999999,1969.3990467000001,57455.458099000003,33322.476578000002,7800.5098035999999,742.46966563000001,3053.2304963000001]
[481,"2011-09-12","KW60MN16 ",7432159.5979197472,2845305.2477564327,2040672.9600134909,105819.59485000001,698812.69289294165,"Summer",243026.56471999999,93675.058478999999,156228.58405,2998.7472708999999,54856.282614000003,43727.319445000001,12345.655632,26024.554032,0]
[482,"2011-12-06","KW60MN12 ",7757842.1066529453,2844397.7949384865,2147793.5606585019,99942.560260000013,596661.67401998432,"Winter",213271.68273,87198.242003000007,133288.20673000001,2558.4155973000002,59005.843476000002,36653.679710999997,10431.531519,816.33821894000005,0]
[483,"2012-01-24","KW60MN17 ",7714665.6478681546,2843073.7723963661,2067866.2510255189,106351.40882512456,668856.11254572263,"Winter",260149.66339,81417.318627000001,116875.49566,2243.3799536000001,57136.261109999999,34842.032349000001,8652.9087514999992,742.46966563000001,3053.2304963000001]
[484,"2011-12-15","KW60MN21 ",7948731.5081949551,2842674.8118080059,2042186.8768813505,108361.14260000001,692126.79232665512,"Winter",345446.48939,71582.507673,107430.18072999999,2062.0807853000001,57090.661540000001,34610.735484999997,7426.6114109999999,816.33821894000005,3053.2304963000001]
[485,"2012-02-28","KW60MN15 ",7487010.473810981,2842466.0643637069,2123632.3550690175,117599.13173690285,601234.57755778625,"Winter",216163.99119999999,79577.189673999994,122011.22262,2341.9582470999999,55494.676592999997,37171.269869999996,8727.5005158000004,747.06969021999998,0]
[486,"2012-01-15","KW60MN20 ",7411085.5468506366,2842410.4317749813,2105058.7039140277,121229.26981912171,616122.45804183173,"Winter",273770.66462,59694.788615999998,81800.633138999998,1570.1315279,56087.471001999998,26245.271452000001,6777.3222767999996,742.46966563000001,3053.2304963000001]
[487,"2012-01-14","KW60MN10 ",7450170.7967023132,2842116.5840265984,2067132.9636474962,120863.92611555179,654119.69426355069,"Winter",349594.47451999999,62040.671358,88633.057943000007,1701.2772806,55266.678742999997,27062.618866000001,7076.1972109999997,742.46966563000001,0]
[488,"2012-01-09","KW60MN07 ",7743393.3168744761,2841651.8103845175,2059599.1323124126,128455.94955485738,653596.72851724748,"Winter",277528.36786,59959.411233999999,104871.16787999999,2012.9615229000001,53214.698097,33190.176122999997,8757.8765863999997,742.46966563000001,2136.8372881]
[489,"2012-03-12","KW60MN09 ",7314231.9212267157,2841502.4071666659,2107867.2103151865,122130.25353114649,611504.94332033314,"Winter",185007.08743000001,74469.045549999995,121002.41755,2322.5946239,57181.860679999998,36346.291404000003,9014.5046918000007,1354.3257784,0]
[490,"2011-11-29","KW60MN18 ",7975316.3264474776,2840763.0309243174,2099599.9611439561,114836.356846,626326.71293436119,"Winter",287892.17291999998,78699.829175999999,120447.44416,2311.9421241,56953.862829999998,36320.851991000003,8383.0233872000008,4955.8928413000003,3053.2304963000001]
[491,"2012-01-19","KW60MN20 ",7770002.1161280237,2840289.3178293789,1997948.8959688295,121804.28809445653,720536.13376609259,"Winter",341855.58650999999,72743.174683000005,106959.70604999999,2053.0502056,53625.094226000001,33171.374931999999,7688.3504436000003,742.46966563000001,3053.2304963000001]
[492,"2011-11-18","KW60MN08 ",7528179.7989315121,2840258.6859569112,2066396.4763950352,117129.65626999999,656732.55329187587,"Winter",306586.77516000002,56917.895694999999,118714.32561,2278.6755837000001,56634.665841000002,38699.434110000002,8493.1918729999998,4955.8928413000003,0]
[493,"2011-08-23","KW60MN15 ",9134508.5535808094,2840226.4080792689,2046788.8790286724,141250.23102499999,652187.29802559642,"Summer",240548.56511,102085.18878,130586.76379,2506.5624444,54445.886484000002,43087.672064999999,11124.355793000001,39555.367166999997,0]
[494,"2011-12-14","KW60MN22 ",7539232.5388781745,2839198.900085595,2070362.4574272425,105647.25874000002,663189.18391835236,"Winter",330963.66511,69185.649137,102321.58146,1964.0231974000001,52257.107128000003,33674.847356999999,8117.4651260000001,816.33821894000005,3053.2304963000001]
[495,"2012-01-27","KW60MN19 ",7730180.4798428304,2838757.7707777992,2093074.0528283441,122178.44327316286,623505.2746762922,"Winter",266489.21107000002,69543.111168000003,115996.81,2226.5139221999998,54719.483904000001,32275.803662999999,7531.7011363000001,742.46966563000001,3053.2304963000001]
[496,"2012-01-10","KW60MN10 ",7689364.4285904234,2838703.2912607896,2119627.6441159523,119762.39842194111,599313.24872289586,"Winter",233123.65985,69691.769276999999,123161.24589000001,2364.0324992000001,56041.871432,37232.805413000002,9943.0562759000004,742.46966563000001,0]
[497,"2011-10-27","KW60MN09 ",7332752.8520481149,2838167.0507277548,2083790.3476277583,117591.337952,636785.36514799658,"Summer",244259.03051000001,71418.602618999998,140009.76574,2687.4333237999999,48244.344975,41240.384495999999,9879.1248321000003,19170.103298999999,0]
[498,"2011-07-05","KW60MN18 ",8737388.3052459024,2837402.1449574018,1981413.9879593975,146504.51128200002,709483.64571600419,"Summer",246291.59325000001,83785.744800999993,114454.60284000001,2196.9118518999999,55312.278313000003,37516.002886000002,8251.9710348000008,40712.053511999999,0]
[499,"2012-03-01","KW60MN20 ",7697145.081175657,2836836.1754837893,2099998.4203408277,127508.78041818131,609328.97472478042,"Winter",270468.15954000002,70749.798595,99596.648218000002,1911.7191571999999,56133.070571999997,31306.829092,7535.6659559,1354.3257784,3053.2304963000001]
[500,"2012-02-28","KW60MN16 ",7481150.7767727654,2836542.9148148,2107847.7969613676,115870.30179169709,612824.81606173492,"Winter",242065.47542999999,80025.561350000004,112654.90444,2162.3673370000001,56315.468850999998,35593.560321999998,8320.7560830999992,747.06969021999998,0]
[501,"2012-03-19","KW60MN11 ",7626739.892780249,2836379.5350613901,2161135.8026391855,126127.03976280808,549116.69265939668,"Winter",185255.12586,69535.316571999996,117862.12646,2262.3179504,57181.860679999998,34939.393247,8610.3114896999996,1354.3257784,0]
[502,"2011-09-08","KW60MN14 ",8229197.9759741994,2836125.7435392793,2116782.0241545113,116189.363115,603154.35626976809,"Summer",132727.86145999999,97868.935469000004,153859.36932,2953.2711101999998,50113.927342000003,43380.056274000002,11141.664210999999,48114.585377000003,0]
[503,"2011-11-30","KW60MN08 ",7511767.9716284638,2835738.0520607028,2065803.762265943,124396.82391799998,645537.46587675984,"Winter",326403.48022999999,62018.479814999999,125967.16056999999,2417.8909466,56817.064120000003,37686.691389,10160.874182,4955.8928413000003,0]
[504,"2011-12-16","KW60MN18 ",8018015.4685453624,2835686.8788189725,2043759.4580065722,115155.04931,676772.37150240026,"Winter",281913.17813000001,79279.230735999998,121972.77716,2341.2203014000002,57957.053368000001,32042.139429999999,7193.4556467000002,816.33821894000005,3053.2304963000001]
[505,"2012-03-14","KW60MN10 ",7396735.9643826662,2834887.6080133915,2107066.2996055991,109469.34187222757,618351.96653556509,"Winter",211997.29957999999,81629.527361999993,115975.08013,2226.0968256000001,55038.680892999997,36902.259351000001,9083.8907259999996,1354.3257784,0]
[506,"2012-01-20","KW60MN14 ",7364833.01438691,2834874.0926963147,2018411.924550978,110680.10064361867,705782.06750171818,"Winter",270097.78177,80681.922300000006,125278.2859,2404.6682636999999,57501.057669000002,33915.334454999997,9484.1800531000008,742.46966563000001,0]
[507,"2012-01-22","KW60MN18 ",7692221.5135298371,2834852.0977981915,2095635.1044588024,120880.69841153664,618336.29492785258,"Winter",323362.19819999998,63736.800320000002,80179.049606999994,1539.0058590000001,55813.873582,25566.290111999999,7092.6320809999997,742.46966563000001,3053.2304963000001]
[508,"2012-03-01","KW60MN19 ",7763585.704502088,2834340.2478435556,2093523.4356272777,132023.82949502941,608792.98272124876,"Winter",258029.50343000001,73610.659776999993,98889.355305999998,1898.1429432,55540.276163000002,31775.937202000001,7661.1418277000002,1354.3257784,3053.2304963000001]
[509,"2012-01-11","KW60MN22 ",7537351.5365420105,2833925.8447336876,2062717.2430356226,105548.41791617262,665660.18378189264,"Winter",341970.81420999998,68718.518047999998,106555.53277000001,2045.2922556999999,57364.258958999999,32747.867226999999,7849.9159917999996,742.46966563000001,3053.2304963000001]
[510,"2012-03-22","KW60MN08 ",7376235.5671088574,2833130.4642074881,2107913.0475889537,125134.23685029335,600083.17976824113,"Winter",231767.15896,66918.501300999997,124885.11792999999,2397.1215566000001,55449.077022999998,35085.846164000002,9134.9898338999992,1354.3257784,0]
[511,"2011-12-05","KW60MN12 ",7809363.8160229698,2831875.0263685086,2139370.052096704,102005.2709,590499.70337180479,"Winter",258204.4117,79578.473509000003,129534.97285999999,2486.3737240999999,57364.258958999999,36251.931085999997,10118.171958999999,816.33821894000005,0]
[512,"2011-08-02","KW60MN16 ",8380997.8699004948,2831479.0281997062,2044296.7825897075,139515.423396,647666.82221399865,"Summer",223908.97339,109940.76029000001,128892.63935,2474.0443808,56999.462399999997,38487.500680999998,11312.615309999999,30178.818287999999,0]
[513,"2011-08-24","KW60MN21 ",8572049.7973641213,2831418.1722733239,2050396.7776690307,141853.453102,639167.94150229287,"Summer",249612.21129000001,88856.456865,111281.07601999999,2135.9972315,49794.730352999999,37355.062564,8905.3841229000009,49194.891273000001,3019.0088713999999]
[514,"2012-02-14","KW60MN20 ",7613460.2144561354,2831392.8707970148,2078541.0771795327,124643.66780226069,628208.12581522157,"Winter",249320.94128,76543.097561000002,112397.58361,2157.4281630999999,57045.061970000002,32789.896294999999,7619.6331131999996,747.06969021999998,3053.2304963000001]
[515,"2011-08-03","KW60MN19 ",7885648.132647898,2831321.9007222103,2046434.2310914251,138525.20109699998,646362.46853378497,"Summer",276876.78872999997,88842.652828999999,121783.79178,2337.5928001000002,55175.479603,36764.009005,8900.7929237999997,30332.476065999999,0]
[516,"2011-12-09","KW60MN21 ",7743180.3821858512,2830789.7557550911,2033931.9209605725,105442.80336000001,691415.03143451875,"Winter",366754.12767000002,73192.847867999997,123925.80579,2378.7079308000002,56452.267561000001,32704.799363999999,7231.8104507999997,816.33821894000005,3053.2304963000001]
[517,"2011-07-05","KW60MN17 ",8864829.7667779159,2830393.2810582062,1985692.1449322233,142900.800502,701800.3356239826,"Summer",241709.41633000001,87824.836945000003,114641.38352,2200.4970349999999,55221.079172999998,38874.105349999998,8810.9394823000002,43054.488588,0]
[518,"2011-07-28","KW60MN17 ",9074957.42793254,2830240.3269188516,2010502.1081435874,144353.245203,675384.97357226419,"Summer",231235.93723000001,94988.013363999999,131768.02317999999,2529.2362616999999,56543.466700999998,39926.950248000001,9649.6460896000008,34469.603493000002,0]
[519,"2012-01-12","KW60MN22 ",7575241.2806948004,2829954.795939872,2048723.9636312637,110984.4464283097,670246.38588029856,"Winter",357522.21853000001,70172.534081999998,107700.12089999999,2067.2621823999998,56953.862829999998,33108.727664999999,7691.3773854000001,742.46966563000001,3053.2304963000001]
[520,"2012-02-14","KW60MN10 ",7517711.125846372,2829759.0377526563,2084864.0054596639,123826.82410682942,621068.20818616333,"Winter",236369.37778000001,77286.690184999999,123361.71449,2367.8804165000001,56497.867130999999,36911.713467000001,9476.3333674999994,747.06969021999998,0]
[521,"2012-01-24","KW60MN15 ",7529801.8728103423,2829606.6131632729,2075647.2250711932,104100.73756030663,649858.65053177322,"Winter",235359.82120000001,84942.195561999994,122701.05988,2355.1994067000001,56908.26326,37034.291011000001,9905.5547043000006,742.46966563000001,0]
[522,"2012-01-18","KW60MN21 ",7686346.7024768349,2829371.8279509237,2058385.0224645152,115427.80142927435,655559.0040571338,"Winter",349265.89753000002,71446.771464999998,106074.18298,2036.0529326999999,49019.537664000003,32670.526224000001,8192.0416545000007,742.46966563000001,3053.2304963000001]
[523,"2011-11-10","KW60MN08 ",7648688.7365054488,2829083.0181315476,2062090.757134812,131000.64486299999,635991.61613373552,"Winter",319245.65904,58896.055367000001,124976.34808,2398.8726839999999,57501.057669000002,40472.239047000003,10247.477217,4955.8928413000003,0]
[524,"2011-07-05","KW60MN19 ",8569301.1773546543,2828517.660930384,1983293.9823509881,144459.42421299999,700764.25436639588,"Summer",258245.59776,77413.863744000002,114367.37145000001,2195.2374792000001,54947.481754,36856.789595000002,8001.9131533,42296.24396,0]
[525,"2012-01-19","KW60MN13 ",7612885.1044095494,2828218.2625942468,2015413.2944944764,115766.17327536277,697038.79482440744,"Winter",301202.87971000001,86035.074808999998,126525.77102,2428.6132582,46511.561318,36392.496549000003,10383.68959,742.46966563000001,0]
[526,"2011-12-09","KW60MN17 ",7971611.3962059803,2827881.7209596913,2014013.1388872843,100440.31595000002,713428.26612240681,"Winter",314606.18622999999,91675.343557,137071.74134000001,2631.0390812999999,57364.258958999999,33517.757610000001,7902.2069160000001,816.33821894000005,3053.2304963000001]
[527,"2011-08-02","KW60MN17 ",8419960.7450882792,2827788.2589658611,2044352.6796044756,137615.612169,645819.96719238535,"Summer",257271.16485999999,106463.11691,126183.23942,2422.0384967,56543.466700999998,37553.566658999996,10354.517185999999,30280.241645999999,0]
[528,"2012-01-04","KW60MN10 ",7654972.0775122801,2827498.8270029058,2062379.2973385234,118546.85710296339,646572.67256141873,"Winter",253327.60501999999,74917.010704999993,121609.67441000001,2334.2506844999998,57455.458099000003,36097.890505000003,9966.5607825999996,742.46966563000001,0]
[529,"2011-12-01","KW60MN18 ",7948416.9659342552,2827042.0321130157,2096826.1685264851,107993.77423,622222.08935653022,"Winter",284573.17645999999,79524.063978999999,127438.03986,2446.1239059999998,57865.854227999997,33564.685000999998,8357.1217046999991,816.33821894000005,3053.2304963000001]
[530,"2012-01-23","KW60MN07 ",7660242.9454076467,2827008.2090502316,2024041.0378749438,110692.93637522621,692274.23480006179,"Winter",304925.87261999998,63114.105087000004,101019.50784000001,1939.0303974999999,57455.458099000003,33108.845829999998,8453.3947007999996,742.46966563000001,1780.6270629999999]
[531,"2011-12-01","KW60MN19 ",7887717.6430718405,2826721.6480378616,2096987.0327168477,107947.5667,621787.04862101376,"Winter",288256.91224999999,74862.487091999996,127850.45456,2454.0400466999999,57546.657239,33123.070203000003,7907.7732379999998,816.33821894000005,3053.2304963000001]
[532,"2011-08-26","KW60MN20 ",8521787.107045738,2826376.9915726758,2022271.3485438216,135701.38073100001,668404.26229785418,"Summer",255594.58703,88610.14215,117013.36169000001,2246.0262389,55996.271862000001,37707.614194000002,9111.8052895000001,46059.536840000001,357.04420886999998]
[533,"2012-01-12","KW60MN06 ",7636016.7817807309,2825989.4325443627,2029483.7962793934,106087.70473340125,690417.93153156817,"Winter",322274.16979000001,62002.032590000003,101424.60479,1946.806077,57592.256808999999,32993.769225999997,9621.6519589,742.46966563000001,3053.2304963000001]
[534,"2011-10-25","KW60MN09 ",7253240.4673369871,2825898.94696406,2119270.8194713104,114665.484576,591962.64291674946,"Summer",232627.50881,65726.893710999997,137294.77898,2635.3202027000002,50524.323471000003,43732.314763000002,10126.419867000001,19170.103298999999,0]
[535,"2011-07-07","KW60MN13 ",8427603.3739547133,2825582.2707255431,1988413.4455717998,143494.99626599997,693673.82888774353,"Summer",209438.88858999999,90187.346873999995,139308.74390999999,2673.9774809,55403.477453,43247.800539000003,10315.918600999999,41713.487912999997,0]
[536,"2012-01-22","KW60MN19 ",7630085.5900540752,2824445.7381621227,2092263.9370021247,124394.23118633084,607787.56997366739,"Winter",302206.09833000001,64115.660133999998,77681.918550999995,1491.0743938000001,55768.274012000002,25646.702389999999,7044.0994406,742.46966563000001,3053.2304963000001]
[537,"2011-12-16","KW60MN11 ",7739203.2845137613,2824361.2750685611,2056952.1811994864,108318.11534999999,659090.97851907474,"Winter",300701.68374000001,84907.085330999995,129493.37469,2485.5752633000002,58139.451648000002,37029.116205999999,9073.1254448,816.33821894000005,0]
[538,"2012-03-06","KW60MN19 ",7537294.4133968456,2823915.5842520357,2101083.7603099863,122244.14449326691,600587.67944878235,"Winter",263337.75686000002,67952.067058000001,103347.29307,1983.7113351999999,56224.269711000001,33984.660903000004,7600.0426379999999,1354.3257784,3053.2304963000001]
[539,"2012-01-11","KW60MN13 ",7585644.4094694629,2823777.0642402861,2083894.7968395522,106094.38636986137,633787.88103087235,"Winter",232414.21249999999,79446.172644999999,127587.67517,2448.9960977999999,57273.059820000002,36502.962549000003,10103.321662,742.46966563000001,0]
[540,"2012-02-29","KW60MN12 ",7570931.3648211984,2823742.2420849949,2136396.0163686452,115401.31769227239,571944.9080240773,"Winter",208889.41612000001,73046.456957000002,118953.29353,2283.2624805,56680.265411,34374.039292000001,9025.0634360999993,747.06969021999998,0]
[541,"2011-12-11","KW60MN10 ",7295360.9022980491,2823737.0667929687,2007616.1169405892,116936.04239,699184.90746237931,"Winter",339140.92073999997,57719.971092,90317.053427999999,1733.6009228,56953.862829999998,26175.213258,6785.8139653999997,816.33821894000005,0]
[542,"2011-08-22","KW60MN14 ",8854288.0700222421,2823263.4208623562,2045708.925888285,136578.54365800001,640975.95131607121,"Summer",219781.11494999999,92418.470209000006,127664.18888,2450.4647490000002,56634.665841000002,40966.073170000003,11134.980562000001,42730.393115999999,0]
[543,"2012-02-29","KW60MN18 ",7771885.2551699309,2822793.2417993248,2106295.3340199129,122721.03117376899,593776.87660564308,"Winter",272193.90415999998,69227.991584000003,100431.49976999999,1927.7438101,57136.261109999999,31604.483153000001,7442.4249809000003,747.06969021999998,3053.2304963000001]
[544,"2012-01-30","KW60MN09 ",7635968.957014,2821758.771684601,2079029.3323524448,132222.25728287172,610507.18204928446,"Winter",212226.68452000001,71800.123296999998,113829.61693,2184.915489,52804.301966999999,34501.195757000001,8868.8373589999992,742.46966563000001,0]
[545,"2011-11-18","KW60MN09 ",7572661.2641734006,2821542.7858995805,2074599.3276986543,117547.522168,629395.93603292631,"Winter",271510.57169999997,67343.159792999999,126289.10861,2424.0706147000001,56589.066271000003,38920.064380000003,8715.1540475999991,4955.8928413000003,0]
[546,"2012-01-27","KW60MN12 ",7577135.8870451758,2821525.6410141736,2126276.5979706394,109367.25713272466,585881.78591080965,"Winter",243955.47675,75392.622495999996,120278.18824,2308.6933223000001,57683.455949000003,36405.423289999999,8757.0842995000003,742.46966563000001,0]
[547,"2012-02-13","KW60MN09 ",7551810.078227751,2821379.0394082828,2101603.6694877148,124153.39928763648,595621.97063293168,"Winter",217203.66892,64753.634447999997,120022.75851,2303.7904472999999,56908.26326,36339.147179,9435.3088277999996,747.06969021999998,0]
[548,"2011-12-23","KW60MN18 ",7990982.3561028875,2821176.6649924573,2031995.1799398623,116675.02056,672506.46449259506,"Winter",350996.82484999998,77675.719448000003,98001.823443999994,1881.1071122999999,56999.462399999997,28887.351976000002,7123.3281139000001,816.33821894000005,3053.2304963000001]
[549,"2012-01-06","KW60MN18 ",7701224.2919855174,2820735.3349639103,2085832.9187902818,114506.65522308028,620395.76095054823,"Winter",259540.27716999999,69419.024275999996,115146.65054,2210.1954399000001,56087.471001999998,33214.709035,7643.2307301999999,742.46966563000001,3053.2304963000001]
[550,"2012-01-14","KW60MN09 ",7388779.1396153076,2820205.3335064622,2049573.6942806831,120515.03936842244,650116.59985735698,"Winter",325118.6151,55796.328605000002,90135.022362000003,1730.1069069,55722.674442000003,26768.781369,7331.7807839999996,742.46966563000001,0]
[551,"2012-01-12","KW60MN13 ",7651729.9532434084,2820123.1030216073,2069027.5473327029,102058.08032971212,649037.47535919223,"Winter",253818.31899999999,87547.522198000006,136083.84156999999,2612.0767273000001,56224.269711000001,36621.624501999999,9969.0392183000004,742.46966563000001,0]
[552,"2011-11-01","KW60MN09 ",7386159.4220149107,2819999.6771087809,2134421.0969219645,114032.089135,571546.49105181638,"Winter",187818.93153,67549.351055000006,133107.75649999999,2554.9519249,41450.009057000003,43340.257677000001,10322.825715999999,4955.8928413000003,0]
[553,"2012-02-24","KW60MN09 ",7453544.4987217942,2819215.6878412189,2092711.1041947315,122654.52199621081,603850.06165027642,"Winter",193254.97197000001,65747.581286999994,119611.78260000001,2295.9019237000002,57911.453798000002,36501.961514000002,9516.7992434000007,747.06969021999998,0]
[554,"2011-11-20","KW60MN18 ",7744725.6664576354,2818850.5819053054,2021629.6425091131,118570.70015800001,678650.23923819209,"Winter",326869.39354999998,57586.352650000001,101455.12841,1947.3919659999999,56999.462399999997,26110.742628,6902.7676768000001,4955.8928413000003,3053.2304963000001]
[555,"2012-01-28","KW60MN10 ",7460391.2423811303,2818567.6501021991,2074852.7440730894,127419.2813137445,616295.62471536512,"Winter",333886.10531999997,66220.066240999993,82358.779915000006,1580.8449395,52393.905837999999,28242.898377000001,6710.5467263,742.46966563000001,0]
[556,"2011-08-04","KW60MN19 ",8014462.8287335467,2817743.7239218578,2005480.6836351024,125962.630678,686300.40960875526,"Summer",269269.31242999999,86078.856950000001,125015.11195999999,2399.6167415999998,55266.678742999997,37639.508120999999,8594.2998489000001,31888.081392,0]
[557,"2011-08-29","KW60MN16 ",8884580.1601253282,2817732.6113769985,1955256.2082609036,141215.92139400003,721260.48172209493,"Summer",237579.9999,96394.845656999998,145664.32707,2795.9704424000001,54582.685193999998,41406.731030000003,11878.003311,39662.740189999997,0]
[558,"2011-11-29","KW60MN19 ",7884220.4032176491,2817685.8753067283,2073126.8979648075,116457.518991,628101.45835092105,"Winter",272488.58691000001,75262.045729999998,119800.46013000001,2299.5235158,56041.871432,36004.504255,8331.8294750999994,4955.8928413000003,3053.2304963000001]
[559,"2011-08-24","KW60MN13 ",8853107.9909964595,2817650.7410978558,2046757.7308978345,136526.662576,634366.34762402112,"Summer",224670.36436000001,95354.483127,123761.19190000001,2375.5482308999999,49384.334222999998,42854.709504999999,11988.415577,40083.350247000002,0]
[560,"2011-12-01","KW60MN20 ",7833093.7163618132,2817632.0474782428,2084484.035134922,108077.72106,625070.29128332052,"Winter",304833.60142999998,76096.191288000002,127404.85431,2445.4869223000001,57273.059820000002,32964.083492999998,7555.5103683999996,816.33821894000005,3053.2304963000001]
[561,"2011-09-06","KW60MN21 ",7617564.5791344428,2817543.3565401235,2063510.1435910929,131171.72762999998,622861.48531903035,"Summer",248652.52101,73067.385553,121334.89633,2328.9764254000002,55449.077022999998,37558.175927999997,9133.6236475000005,37397.463134999998,3053.2304963000001]
[562,"2011-08-26","KW60MN13 ",8856261.4677816145,2816879.1587573816,2027796.6430353834,135400.383787,653682.13193499821,"Summer",177333.08389000001,98176.527186000007,136400.35894999999,2618.1521560000001,55722.674442000003,42567.720080999999,10580.501738999999,45640.172529000003,0]
[563,"2012-03-13","KW60MN10 ",7363230.7252171934,2816713.2451086901,2132839.1784426169,123716.85102273095,560157.21564334212,"Winter",185413.26719000001,77463.083303000007,122263.73263,2346.8050791000001,57090.661540000001,35838.495515000002,8905.8632194999991,1354.3257784,0]
[564,"2012-01-13","KW60MN20 ",7673296.1717574429,2816617.9512061849,2041472.587128981,113879.44432380365,661265.91975339991,"Winter",317446.85845,76262.016470000002,109529.20186,2102.3706843999998,57227.460249999996,32499.864551999999,7829.8040977999999,742.46966563000001,3053.2304963000001]
[565,"2012-01-27","KW60MN20 ",7640059.7480136817,2816523.8864959325,2073103.4837298822,119431.24088717003,623989.16187888,"Winter",259599.91535,69235.162740999993,110296.82146000001,2117.1048458,54993.081323999999,31328.368304,7366.9461256000004,742.46966563000001,3053.2304963000001]
[566,"2011-12-23","KW60MN19 ",7945557.3116188878,2816408.1332860379,2027196.0719281686,119651.33031,669560.73104786919,"Winter",324916.61687000003,76868.458901000005,97902.669842000003,1879.2038972,56452.267561000001,28617.137662000001,7103.0333837999997,816.33821894000005,3053.2304963000001]
[567,"2011-12-19","KW60MN21 ",7949067.8999794712,2815215.9689514609,2032220.680477035,104845.55125,678149.73722442624,"Winter",351518.31709000003,68415.118476999996,108926.49976000001,2090.8020505,57820.254658999998,33621.717797999998,8376.1162712000005,816.33821894000005,3053.2304963000001]
[568,"2011-08-29","KW60MN17 ",8830994.6890516877,2814326.0889401468,1947447.1333108975,140974.11105599999,725904.84457324923,"Summer",266581.86379999999,94429.646449000007,134815.85133,2587.7381448000001,56634.665841000002,40618.450775999998,10379.667211,38859.446838999997,0]
[569,"2012-01-15","KW60MN10 ",7070829.8146815607,2813356.4859763058,2042012.9189432801,122036.5864626985,649306.98057032726,"Winter",345886.38321,54494.794868999998,82765.186597000007,1588.6457587,55996.271862000001,24235.171434,6874.2453542000003,742.46966563000001,0]
[570,"2011-11-04","KW60MN08 ",7391088.2727384092,2812713.0440946296,2065642.7181558374,123662.427679,623407.89825979213,"Winter",261489.57751999999,69448.287354,132646.64728,2546.1011116999998,56953.862829999998,40323.912728000003,8796.2923351000009,4955.8928413000003,0]
[571,"2011-07-30","KW60MN18 ",8467636.1385164559,2812261.7518569957,2003011.7780963762,141264.997581,667984.97617961955,"Summer",279237.02757999999,80901.143119,103927.15468000001,1994.8415546000001,55175.479603,31202.339904,7984.8282010000003,38837.471186000002,0]
[572,"2012-01-20","KW60MN20 ",7410425.0474919025,2811951.3434592281,1998363.9776372486,112772.41367079964,700814.95215117978,"Winter",329722.40250000003,68675.777113999997,115454.9342,2216.1128256000002,52439.505407999997,29908.608109000001,7288.7941504,742.46966563000001,3053.2304963000001]
[573,"2011-08-01","KW60MN19 ",7982248.3877607556,2811634.2446616786,2079384.0336559461,129861.557535,602388.6534707325,"Summer",247557.38094999999,73214.888372000001,121257.60695,2327.4928857,55175.479603,36076.379427,8763.6460585999994,27765.907981,0]
[574,"2012-01-09","KW60MN20 ",7769951.3494944042,2811619.5757112354,2057102.2978121196,125266.19640321346,629251.08149590273,"Winter",275493.68540999998,62018.957034999999,110995.95093000001,2130.5243655999998,53670.693796,33246.279813000001,7745.7404436999996,742.46966563000001,3053.2304963000001]
[575,"2012-02-02","KW60MN10 ",7482179.7037757067,2811431.2011130503,2086488.2943232406,133190.26822587554,591752.63856393413,"Winter",262343.87557999999,76903.231704000005,126412.08471,2426.4310934,54765.083473999999,35342.045245000001,9761.1959987999999,747.06969021999998,0]
[576,"2011-07-28","KW60MN19 ",8826040.2540835012,2811018.314379069,2002927.495063514,142648.18189199999,665442.6374235549,"Summer",263984.45006,79932.697834000006,122467.78696,2350.7218231000002,56543.466700999998,38655.966779000002,8639.7242876,36650.585765000003,0]
[577,"2011-08-02","KW60MN18 ",8338297.5057967398,2810356.5757404431,2032912.7968798154,133911.32039100002,643532.45846962801,"Summer",270445.41499999998,100471.90332,122004.39692,2341.8272304000002,56771.464549999997,36458.158200999998,9696.9191979999996,30139.321915,0]
[578,"2011-12-01","KW60MN10 ",7487406.1756174527,2809617.9410984125,2095422.7639685888,102218.90603999999,611976.27108982368,"Winter",254179.82577,75771.821345000004,139124.07399,2670.4328131000002,57364.258958999999,37532.676144999998,10392.181278,816.33821894000005,0]
[579,"2012-01-09","KW60MN12 ",7602944.2352455184,2809175.577173173,2093727.1877268371,113178.81412675903,602269.57531957701,"Winter",234414.386,68348.445833999998,124417.86589,2388.1528343,52895.501106999996,37150.783596000001,8925.3944417000002,742.46966563000001,0]
[580,"2011-12-15","KW60MN07 ",7768703.1880905246,2809058.6357027041,2032697.2226750161,104542.69976999999,671818.71325768798,"Winter",310307.16081999999,65871.057595000006,106196.15974,2038.3942294000001,40994.013357999997,36307.499172000003,9606.4156751999999,816.33821894000005,1831.5142378999999]
[581,"2011-11-18","KW60MN10 ",7563960.5058172317,2808996.8307939116,2080746.9391315477,116391.72336,611858.16830236383,"Winter",242004.90457000001,72347.766415000006,127611.01458,2449.4440889000002,56224.269711000001,40103.516967000003,8946.5424031999992,4955.8928413000003,0]
[582,"2012-03-12","KW60MN10 ",7330674.6272340296,2807625.552503421,2090365.2591813302,119412.05354849406,597848.23977359652,"Winter",209789.78618,75681.359998,122997.43798,2360.8882696999999,54993.081323999999,36401.192214000002,9083.6858818000001,1354.3257784,0]
[583,"2012-04-02","KW60MN09 ",7301678.1794987768,2807343.3924585977,2103099.8507965486,132002.17580570481,572241.36585634435,"Summer",223668.57654000001,72179.500501000002,105060.56720999999,2016.5969697999999,55950.672292000003,34932.569624999996,7696.6542178,7467.6597125999997,0]
[584,"2011-12-06","KW60MN17 ",8144599.3200311875,2807218.5735198669,2082924.3573069202,103178.64857999999,621115.56763294665,"Winter",260530.72451999999,83040.587151,128636.95836999999,2469.1366833000002,58595.447347000001,34530.842664999996,8528.7838303000008,816.33821894000005,3053.2304963000001]
[585,"2012-02-06","KW60MN11 ",7655009.4984170282,2806439.6266855821,2068432.5751959532,121153.19841096706,616853.85307866207,"Winter",227703.57027,75417.465261999998,121203.73026,2326.4587434,57090.661540000001,34109.542991000002,9723.2441096000002,747.06969021999998,0]
[586,"2011-10-28","KW60MN08 ",7342498.4982270701,2806428.38731584,2032889.3619539598,120357.509001,653181.51636088046,"Summer",277786.64451999997,62091.386850000003,132421.53849000001,2541.7802354,57683.455949000003,42400.328670000003,9365.9058650999996,19170.103298999999,1831.5142378999999]
[587,"2012-02-15","KW60MN20 ",7672009.0195620097,2806337.3618607982,2062395.0746680943,134437.50627745604,609504.78091524763,"Winter",242385.53117,70583.790238000001,103051.23867999999,1978.0286854999999,48882.738954,31446.045356999999,7487.7698526000004,747.06969021999998,3053.2304963000001]
[588,"2012-02-07","KW60MN19 ",7827031.1759925019,2806264.1553202476,2054845.579832494,123348.36884905239,628070.20663870149,"Winter",248832.08205,71664.620076000007,116254.63297999999,2231.4627344999999,57364.258958999999,31981.290918999999,8346.5849684000004,747.06969021999998,3053.2304963000001]
[589,"2011-08-04","KW60MN14 ",8345009.2630744763,2806252.3362658899,2006337.2110882411,130868.55660100002,669046.56857664871,"Summer",224695.01663999999,94490.827042999998,141367.52402000001,2713.4949692,56406.667991000002,40367.070024000001,11758.489904,32550.991130999999,0]
[590,"2011-11-29","KW60MN20 ",7832612.0172710735,2806098.8180699036,2060184.4539907074,115181.927255,630732.43682419602,"Winter",293380.65510999999,71679.047552000004,118126.55547000001,2267.3935630999999,56406.667991000002,35592.715805,7966.5040310000004,4955.8928413000003,3053.2304963000001]
[591,"2011-12-11","KW60MN11 ",7220846.4530265266,2805669.0146908858,1997194.1095420071,108126.30392999999,700348.60121887887,"Winter",347915.44841999997,58353.322635999997,91839.957941000001,1762.8324861999999,57409.858528999997,26558.704668999999,6726.7987622999999,816.33821894000005,0]
[592,"2012-03-20","KW60MN08 ",7519286.8752676724,2804980.391654755,2104341.8132694042,122372.38256285444,578266.19582249632,"Winter",217779.76501,68130.388338999997,117878.67256000001,2262.6355463999998,57865.854227999997,34657.138789999997,8756.6813846000005,1354.3257784,0]
[593,"2012-02-27","KW60MN21 ",7557543.1126885451,2804912.788629143,2066392.0008303702,119125.52186287309,619395.26593589981,"Winter",289403.68855999998,64289.046926000003,101357.06601,1945.5096962,48791.539814000003,34119.301166999998,7713.7493277000003,747.06969021999998,3053.2304963000001]
[594,"2012-01-25","KW60MN08 ",7639975.3811880797,2804841.0866418998,2022984.1981600574,117312.02847319466,664544.86000864778,"Winter",280392.6643,68476.475818999999,113449.02983,2177.6102667,54673.884334000002,36840.120907999997,9454.1747329999998,742.46966563000001,0]
[595,"2011-12-23","KW60MN12 ",7565118.9770274954,2804815.9803560837,2038556.4997614869,112931.87506999999,653327.60552459687,"Winter",282850.33584999997,80451.889309000006,106044.55675,2035.4842686,56315.468850999998,31896.501059999999,7143.5212677,816.33821894000005,0]
[596,"2011-08-26","KW60MN21 ",8326157.4198618252,2803842.0192314899,2011168.5732483722,139983.49348800001,652689.95249511767,"Summer",254010.14259999999,89707.679514999996,106863.96490000001,2051.2124911999999,55129.880033000001,36622.945126999999,9237.0272229000002,48064.660316000001,3052.8205720999999]
[597,"2012-01-20","KW60MN15 ",7379898.7698274283,2803698.2413815516,1996389.1406827108,111693.38331487651,695615.71738396445,"Winter",283939.50890999998,79258.527092000004,122654.87596,2354.3129241000001,57045.061970000002,32470.834376999999,9255.6764335000007,742.46966563000001,0]
[598,"2012-01-19","KW60MN17 ",7862346.1663344819,2803342.0958084324,1977471.1330272546,115693.48466269381,710177.47811848379,"Winter",339575.49407000002,80954.050289000006,118533.58405999999,2275.2063195000001,48198.745405000001,33483.006564000003,8117.3635508999996,742.46966563000001,3053.2304963000001]
[599,"2011-12-05","KW60MN22 ",7759247.5466749677,2803208.6312006866,2086547.7134465324,102108.1185,614552.79925415432,"Winter",299675.45561,67214.136803999994,106731.7067,2048.6738463000002,57820.254658999998,33088.795574000003,7650.2394203000003,816.33821894000005,3053.2304963000001]
[600,"2011-12-21","KW60MN22 ",7654559.0274204314,2803115.3176501514,2073324.4977922831,114151.18028099999,615639.63957686839,"Winter",296822.63741999998,63677.568777,107483.82329,2063.1104335,56178.670141000002,32005.594691999999,8314.7648370000006,816.33821894000005,3053.2304963000001]
[601,"2011-08-29","KW60MN18 ",8728152.7816392537,2802702.1766862078,1944293.7009156968,142211.12445399998,716197.35131651105,"Summer",273194.49433999998,87500.063693999997,127935.14745,2455.6656939999998,56543.466700999998,39355.227094000002,9753.9435281000005,39501.746460000002,0]
[602,"2012-02-14","KW60MN18 ",7637393.7821569964,2802232.0885071964,2049156.7976238257,110362.65374472967,642712.63713864097,"Winter",259312.75758,76129.799159000002,118719.27239,2278.7705351,56862.663690000001,33541.254481999997,7931.7585341000004,747.06969021999998,3053.2304963000001]
[603,"2012-03-22","KW60MN09 ",7311553.2456031293,2801873.9022902204,2112880.3861916191,121058.04257103383,567935.47352756758,"Winter",233843.21823999999,70949.048473000003,125611.12753,2411.0570300999998,55585.875732,36143.288930000002,9043.9835137999999,1354.3257784,0]
[604,"2011-07-29","KW60MN15 ",9143618.0647026617,2801822.0636335518,2006394.2143966495,142535.58805600001,652892.2611809026,"Summer",205028.45097000001,103880.86715999999,135303.57727000001,2597.0998556,51253.916590000001,43297.441215999999,8899.6552811000001,36729.986708999997,0]
[605,"2011-10-26","KW60MN10 ",7206646.1295148777,2801256.4748675562,2083949.6168024065,110338.73063499999,606968.12743015005,"Summer",211411.67537000001,69606.425594999993,144169.23233,2767.2726769999999,57090.661540000001,42901.572800000002,10683.377125000001,19170.103298999999,0]
[606,"2011-07-28","KW60MN16 ",9027580.7437096853,2801169.6428077752,1998953.6846316126,142312.03302100001,659903.92515516211,"Summer",199274.62289,93001.731306999995,135974.60552000001,2609.9799836000002,55905.072721999997,40375.441929000001,10828.162446,34884.705110000003,0]
[607,"2011-08-25","KW60MN12 ",8863222.5964492206,2801014.384661397,2054961.8304046211,138894.874644,607157.67961277592,"Summer",175685.70512999999,98455.985406000007,134047.16522,2572.9835119999998,48609.141535000002,40748.318163000004,12104.841097,45078.964336999998,0]
[608,"2012-01-20","KW60MN16 ",7362561.5864961538,2800983.1057035513,1985143.3071432197,111832.88927360445,704006.90928672708,"Winter",283041.0148,78565.905440999995,117254.29799000001,2250.6509179,57364.258958999999,31807.596059,8624.8943055,742.46966563000001,712.84450892999996]
[609,"2012-03-06","KW60MN21 ",7389206.0593814729,2800909.9022587365,2076338.0716527172,123164.07066291438,601407.75994310481,"Winter",327993.16035999998,65897.995630999998,98174.162477999998,1884.4150933999999,56406.667991000002,33006.788771,7244.7511339000002,1354.3257784,3053.2304963000001]
[610,"2012-01-19","KW60MN14 ",7602521.8058972042,2800908.4080739394,1985424.3152081303,118370.05287213536,697114.03999367356,"Winter",296845.20179000002,83443.385101000007,127672.75169999999,2450.6291089000001,45873.16734,37415.013139000002,9942.4671404000001,742.46966563000001,0]
[611,"2011-09-12","KW60MN15 ",7360275.0207286114,2800730.7871600743,2014767.818458105,106504.62864899999,679458.34005296917,"Summer",214430.21286,95707.026738,157302.94563,3019.3692259999998,54035.490355000002,44546.349686000001,12589.700261,25807.867075999999,0]
[612,"2012-03-23","KW60MN10 ",7232615.1403015442,2800699.2795467312,2128917.660889375,112628.78010038445,559152.83855697175,"Winter",225097.66707,73146.245788999993,115463.24566,2216.2723608000001,56817.064120000003,38236.570550999997,8566.2887883999992,1354.3257784,0]
[613,"2012-01-31","KW60MN19 ",7709831.0364237241,2800337.2487625787,2045509.4450623859,134429.92059847558,620397.88310171699,"Winter",233006.90596,70191.066936000003,115221.54955,2211.6330974000002,55221.079172999998,34308.693368,8270.4780408999995,742.46966563000001,3053.2304963000001]
[614,"2011-09-09","KW60MN20 ",7697905.2266121721,2799851.6247436656,2016926.7661047776,122941.17602900001,659983.68260988779,"Summer",248324.21958,91932.875356999997,134551.07428,2582.6558516,53807.492506000002,39813.656752000003,8373.6784661000002,42290.611873000002,1730.5880082000001]
[615,"2012-02-08","KW60MN09 ",7674278.2411709419,2799615.3596112011,2070663.7230816514,119852.24160099508,609099.39492855431,"Winter",218040.16138000001,72503.544263999996,125243.53938,2404.0013177999999,45918.766908999998,35194.735116999997,9672.7781543000001,747.06969021999998,0]
[616,"2011-09-07","KW60MN14 ",8059565.9303980777,2799138.2130665425,2076250.8859607575,113043.20008000001,609844.12702578504,"Summer",181573.08584000001,95705.993564000004,147770.88686999999,2836.4050434000001,41176.411637999998,42292.125890000003,11082.527115999999,35510.421978999999,0]
[617,"2011-12-14","KW60MN06 ",7403047.7165823635,2798696.950310112,2056239.6828772225,102608.60773,639848.6597028895,"Winter",291737.45218000002,65126.764405000002,106903.57839,2051.9728568,56771.464549999997,33316.887523999998,9251.3696445999994,816.33821894000005,3053.2304963000001]
[618,"2011-12-01","KW60MN07 ",7509783.4982616194,2798404.18929127,2024810.4169497692,105244.73404,668349.03830150107,"Winter",325283.15795999998,61320.247212000002,120707.71135,2316.9378522000002,57409.858528999997,36733.857228000001,10127.212154000001,816.33821894000005,1169.9809634999999]
[619,"2011-11-21","KW60MN18 ",7962615.953677631,2798295.2344627925,1992287.9574448103,122324.34311,683682.93390798254,"Winter",293636.86504,73322.426810000004,113789.55056,2184.1464305,57409.858528999997,37150.766202999999,6717.9210874,4955.8928413000003,3053.2304963000001]
[620,"2011-12-11","KW60MN21 ",7622979.9187030513,2798146.9004899496,1995720.2489730259,113196.33331,689230.31820692355,"Winter",337868.16978,71315.482885999998,84499.423104000001,1621.9337579,57911.453798000002,25960.682804,7436.1797975999998,816.33821894000005,3053.2304963000001]
[621,"2012-04-04","KW60MN08 ",7009825.8044816209,2797820.9822090063,2137036.087216849,120951.93433114642,539832.96066101082,"Summer",189214.01123999999,55108.196359000001,100830.12183,1935.3952062999999,49794.730352999999,34413.958885,7781.8690577999996,7467.6597125999997,0]
[622,"2012-02-07","KW60MN07 ",7716378.7947522812,2797430.5493934546,2015706.5322525355,103059.68852383345,678664.3286170857,"Winter",290611.63984999998,64955.715510000002,100942.52505,1937.5527427,56133.070571999997,32714.19283,9443.5025631999997,747.06969021999998,915.54508908000003]
[623,"2012-01-23","KW60MN12 ",7669992.2109961426,2797169.0932637108,2053786.5409919904,110055.00400625316,633327.54826546763,"Winter",239986.23657000001,72031.464223999996,117718.72332,2259.5653824999999,58230.650787999999,36364.894114000002,9515.1401807999991,742.46966563000001,0]
[624,"2011-12-07","KW60MN12 ",7595995.4568086891,2796426.5220726985,2095504.7974089929,98616.112209999992,602305.61245370563,"Winter",234353.85754,81769.926508999997,136076.18762000001,2611.9298125,58048.252507999998,35590.673752000002,10356.650266000001,816.33821894000005,0]
[625,"2011-07-07","KW60MN18 ",7987553.5503283599,2795931.8180436902,1990297.5941272422,142132.25448199999,663501.96943444829,"Summer",220730.47162999999,74189.110109999994,122980.89636,2360.5707597000001,54901.882184000002,38322.702326999999,8284.6985722999998,26611.183185999998,0]
[626,"2011-07-06","KW60MN21 ",8411330.2011914421,2795819.1912409402,1983471.5351079132,145974.74243399999,666372.91369902738,"Summer",240029.63772999999,69812.605609999999,117827.57504,2261.6547492,55357.877883000001,36181.500251999998,7959.1906155999995,45389.399400000002,265.39075265999998]
[627,"2011-12-22","KW60MN06 ",7426477.8107181313,2795236.6801539706,2031658.1134864916,98769.604619999998,664808.962047479,"Winter",317879.92679,60039.434795000001,108392.61079000001,2080.5542583000001,56908.26326,33413.926104999999,8778.5979310999992,816.33821894000005,3053.2304963000001]
[628,"2011-08-01","KW60MN15 ",8030005.7193806767,2795040.5396211259,2084643.5477812202,129370.591462,581026.40037790616,"Summer",224236.79788999999,94774.337618000005,131243.59567000001,2519.1700784,55950.672292000003,40268.916011000001,11505.019095,28068.738168,0]
[629,"2012-03-06","KW60MN11 ",7321410.4861363275,2794975.2048286716,2123554.7204120969,112522.42260785372,558898.06180872116,"Winter",188244.11452999999,73522.128198999999,118586.82322999999,2276.2282248000001,50569.923041000002,37619.486784000001,9403.7257062000008,1354.3257784,0]
[630,"2012-02-02","KW60MN07 ",7546539.9979098486,2794388.8604106032,2037393.218062737,120383.90361109874,636611.73873676721,"Winter",286765.43851000001,68113.274290999994,107017.92587000001,2054.1677126999998,55859.473151999999,34612.653414,9260.4470832000006,747.06969021999998,1220.8681383999999]
[631,"2011-11-07","KW60MN08 ",7550852.0945068458,2794352.7136632558,1981935.4504736215,125890.144355,686527.1188346342,"Winter",303768.72029999999,60027.978296000001,130112.77389,2497.4643915000001,57045.061970000002,38537.806149999997,9719.7329931000004,4955.8928413000003,0]
[632,"2011-09-12","KW60MN19 ",7214414.77029444,2794063.4461297751,1987591.3264677178,112058.21247,694413.90719205746,"Summer",284386.78993999999,76994.428966000007,133235.18091,2557.3977871000002,54856.282614000003,40817.914784000001,9076.4164825000007,28121.536429,0]
[633,"2012-01-06","KW60MN07 ",7421993.4797239378,2793301.4094867078,2041697.2712956404,114749.61922855947,636854.51896250818,"Winter",274125.35649999999,60224.843678999998,100682.67307,1932.5649845,43593.188843999997,35028.291363999997,9233.6955558000009,742.46966563000001,2187.724463]
[634,"2011-12-19","KW60MN17 ",8160944.4423709428,2793022.7079004738,1983814.3870823479,95723.989300000001,713484.33151812572,"Winter",301979.56440999999,85733.127787000005,118244.68722000001,2269.6610562999999,58139.451648000002,35714.716581000001,9423.0317701999993,816.33821894000005,3053.2304963000001]
[635,"2012-01-28","KW60MN09 ",7424487.8149488783,2792968.6567066358,2066336.6214720705,123481.22801297906,603150.80722158623,"Winter",295390.89724999998,58256.965932999999,87732.211924999996,1683.9858895,51755.511858999998,28321.791324000002,6709.1856181000003,742.46966563000001,0]
[636,"2011-09-06","KW60MN14 ",7716246.5514547303,2792703.4379953058,2057561.2546214883,114006.93768100001,621135.24569281761,"Summer",175064.14115000001,94703.437479,148732.08001000001,2854.8547741000002,53488.295515999998,42397.137907999997,11181.705164000001,33389.751807000001,0]
[637,"2012-01-21","KW60MN19 ",7717618.2947927332,2792010.2667913125,2052399.8247011178,115481.01338343823,624129.42870675633,"Winter",277590.40132,69631.743973999997,83748.604867999995,1607.5220922000001,55768.274012000002,26174.211662000002,7321.3388518000002,742.46966563000001,3053.2304963000001]
[638,"2011-07-30","KW60MN17 ",8547846.9292523488,2791962.9178903392,1991017.5609731814,140383.58241200002,660561.77450515772,"Summer",262131.93588999999,83267.430640000006,105155.04468000001,2018.4104284,55084.280463000003,31645.729942000002,8010.7298835000001,38454.537122000002,0]
[639,"2011-11-19","KW60MN10 ",7422217.7679198897,2791960.8591942601,2023320.9309793238,125283.40590300001,643356.5223119359,"Winter",293485.26302999997,61537.528621999998,105523.09903,2025.4750893,57546.657239,32860.810448999997,6570.3729204000001,4955.8928413000003,0]
[640,"2012-02-29","KW60MN13 ",7487666.7985062683,2791725.7458751015,2113910.4196324479,113692.83131018274,564122.49493247061,"Winter",200146.58877,78069.792463999998,118182.35737,2268.4646588999999,56634.665841000002,34266.892004000001,9022.456338,747.06969021999998,0]
[641,"2012-01-05","KW60MN19 ",7621508.3421148583,2791428.1937483493,2048961.2493924268,120371.25883660834,622095.68551931449,"Winter",243636.47026,71288.143150000004,113980.77185999999,2187.8168495,56406.667991000002,34439.079124999997,7759.2702632999999,742.46966563000001,3053.2304963000001]
[642,"2012-02-06","KW60MN19 ",7855891.0326937027,2791262.3391440548,2036187.8293041706,115842.05528794564,639232.45455193834,"Winter",265408.88780999999,70998.613494000005,107930.42736,2071.6828260000002,57683.455949000003,30585.90914,8021.9827250999997,747.06969021999998,3053.2304963000001]
[643,"2012-01-28","KW60MN11 ",7424440.8992416952,2790890.2407505177,2057886.5374307034,121247.77543750471,611755.92788230977,"Winter",305253.91967999999,74089.26986,82764.499926999997,1588.6325783,54126.689494999999,28077.032242000001,6607.1837802999999,742.46966563000001,0]
[644,"2011-07-05","KW60MN16 ",8815438.4577666093,2790887.1847273502,1954731.4821360866,146911.82587299999,689243.87671826384,"Summer",238309.95548999999,86098.929120999994,115751.11559,2221.7979129999999,54947.481754,39447.098449999998,9239.3228235000006,42650.799655000003,0]
[645,"2011-11-08","KW60MN07 ",7531666.3393391212,2790790.1094126804,2015284.5719474226,132408.86380399999,643096.67366125761,"Winter",333288.39873999998,59047.160636000001,120371.46565,2310.4837461000002,57136.261109999999,38684.098864,9326.4540486999995,4955.8928413000003,0]
[646,"2011-08-23","KW60MN14 ",8981822.2530289609,2790356.9770323508,2012712.4700141056,139642.01341300001,638002.49360524525,"Summer",231391.66208000001,98590.659516999993,132290.90349999999,2539.2727473,55084.280463000003,42681.726061000001,11314.463978,42391.164502,0]
[647,"2012-01-30","KW60MN19 ",7745269.0915571796,2790348.6334280409,2028571.2517094668,130373.63106172475,631403.75065684936,"Winter",255914.51558000001,63291.083080999997,106715.97588,2048.3718993000002,54993.081323999999,32192.929216,8116.9572503999998,742.46966563000001,3053.2304963000001]
[648,"2011-09-13","KW60MN17 ",7543646.4665562948,2789962.6335194958,1991848.9368273034,108774.62238299999,689339.07430919248,"Summer",252013.80578,94866.712666000007,137039.53985999999,2630.4209864999998,53488.295515999998,41701.012708000002,10280.245384,24159.752626000001,0]
[649,"2011-12-16","KW60MN19 ",7930871.4142436972,2789840.1656424869,2015593.4026313215,112894.21489,661352.54812116525,"Winter",285078.28330000001,71684.433552000002,114485.96722000001,2197.5138790999999,57774.655089,32232.111631,7077.4770582000001,816.33821894000005,3053.2304963000001]
[650,"2012-01-06","KW60MN12 ",7424104.73208337,2789298.0142618641,2088914.5754020524,114609.96548528796,585773.47337452357,"Winter",208661.74815,75508.673771000002,129694.84677,2489.4424420999999,53989.890785000003,36816.999937000001,9583.2362102000006,742.46966563000001,0]
[651,"2012-03-14","KW60MN11 ",7339685.7078272644,2789220.0698757274,2078292.0441598785,113050.46843551789,597877.55728033104,"Winter",176002.34813,83942.846653999994,117081.56359999999,2247.3353482000002,56315.468850999998,36606.484632,8935.6399958000002,1354.3257784,0]
[652,"2011-08-02","KW60MN15 ",8284787.6222865703,2789034.7531306753,2023134.3280028899,136384.66584999999,629515.75927778543,"Summer",228666.12216999999,105577.13430999999,132327.70623000001,2539.9791616000002,57364.258958999999,39523.072625000001,12146.466622,29990.033876000001,0]
[653,"2011-12-07","KW60MN17 ",8041232.4837371018,2788575.2913912507,2059475.1222685822,98958.845839999994,630141.32328266848,"Winter",252255.54866,86545.846640999996,130568.78750999999,2506.2173966999999,57546.657239,33867.724632999998,8859.9393688,816.33821894000005,3053.2304963000001]
[654,"2011-12-10","KW60MN08 ",7371692.4270295873,2788234.2900569881,1997635.1217864659,113954.68130000001,676644.48697052232,"Winter",331489.61933999998,63482.012938,101341.97259999999,1945.2199840000001,57957.053368000001,28836.667912000001,7691.4789604999996,816.33821894000005,0]
[655,"2011-11-29","KW60MN11 ",7564102.6340985028,2788232.5068011926,2068397.5836292803,107099.884248,612735.03892391245,"Winter",229028.75237999999,77172.004690999995,127474.1681,2446.8173735999999,56862.663690000001,37816.022671999999,10175.013453,4955.8928413000003,0]
[656,"2011-08-03","KW60MN15 ",8171322.6111476067,2787961.9473082153,2015281.4796614081,134248.59777299999,638431.8698738073,"Summer",251444.55637000001,100163.70744,143598.64191000001,2756.3204144000001,52530.704548000002,40334.576098999998,11923.163654,27970.848849999998,0]
[657,"2012-04-05","KW60MN09 ",7089971.8744781828,2787955.502047501,2126508.1129637887,128759.40488619449,532687.98419751786,"Summer",229616.54930000001,62663.024342999997,101619.09168,1950.5391775999999,37710.844323999998,34369.243394999998,8290.9606841999994,7467.6597125999997,0]
[658,"2011-12-10","KW60MN20 ",7456765.5558676971,2787777.2448671674,1993488.6586302321,103022.08536700001,691266.50086993549,"Winter",345547.61038999999,72608.214561000001,95250.796522000004,1828.3022140999999,57455.458099000003,25810.395915000001,7760.0625502000003,816.33821894000005,3053.2304963000001]
[659,"2012-01-03","KW60MN10 ",7542904.22187398,2787627.6454625484,2039896.9312978892,115155.8088223115,632574.90534234722,"Winter",257405.364,70219.682472999993,116784.21728,2241.6279005000001,57409.858528999997,35060.424077999996,9606.8626062000003,742.46966563000001,0]
[660,"2012-02-15","KW60MN19 ",7670771.5358173391,2787543.7133638123,2058427.7512794132,134214.58302970961,594901.3790546892,"Winter",243534.81933999999,72778.530755,101440.63336000001,1947.1137392000001,49156.336373999999,32491.797091,7790.0255481000004,747.06969021999998,3053.2304963000001]
[661,"2012-01-15","KW60MN09 ",7095696.9077074621,2787498.0004396327,2019963.536363276,118195.55720616979,649338.90687018656,"Winter",347218.27422000002,54460.568378999997,87429.763120000003,1678.1805016000001,55905.072721999997,24262.042021000001,7092.8961768999998,742.46966563000001,0]
[662,"2011-11-18","KW60MN20 ",7606540.5048814565,2786682.8358053062,2046297.4002273988,119610.361384,620775.0741939072,"Winter",272589.48534000001,69962.419009000005,123212.34261000001,2365.0132809000002,56999.462399999997,36163.071625999997,6815.7177113999996,4955.8928413000003,3053.2304963000001]
[663,"2011-11-20","KW60MN19 ",7669880.7139271991,2786168.4473261996,2001887.8038489108,116200.38060999999,668080.26286728878,"Winter",361864.84646999999,59745.361103000003,98163.106981999998,1884.2028874,56634.665841000002,26004.018470999999,6783.7012009,4955.8928413000003,3053.2304963000001]
[664,"2012-02-23","KW60MN09 ",7417339.1505125118,2785494.1702667405,2070455.9219573713,117911.56170389646,597126.68660547258,"Winter",203832.99541,72607.652180000005,118096.10305000001,2266.8090406000001,57318.659389,36428.857896000001,9427.5061581999998,747.06969021999998,0]
[665,"2011-11-04","KW60MN09 ",7368534.568809214,2784276.3295124345,2062222.3375930712,119163.87317800001,602890.11874136317,"Winter",234475.44438,74892.850829999996,137617.94810000001,2641.5233090000002,57501.057669000002,41769.078536000001,8821.5642506000004,4955.8928413000003,0]
[666,"2011-07-05","KW60MN20 ",8402794.6561598331,2784070.5194071122,1949018.2912689596,147230.07101599997,687822.15712215286,"Summer",246974.59714999999,74542.818650999994,108974.91468,2091.7313561999999,55084.280463000003,36247.765998000003,7687.3956360000002,42881.830162999999,0]
[667,"2011-12-02","KW60MN10 ",7516194.2755237017,2783766.6998593719,2083629.095808391,110154.82573,589982.77832098061,"Winter",214149.08567999999,70831.054573000001,137668.23850000001,2642.4886136999999,57592.256808999999,38337.735487999998,8236.5519160999993,816.33821894000005,0]
[668,"2012-01-24","KW60MN16 ",7498619.2070935406,2783559.4891987164,2032749.0494169905,104753.45048361369,646056.98929811222,"Winter",244273.70952999999,82782.545994999993,117626.60636000001,2257.7972331000001,56817.064120000003,35139.770575000002,9303.9246648999997,742.46966563000001,407.5214593]
[669,"2012-01-26","KW60MN19 ",7791026.3208306059,2783374.5999692436,2031278.5891173328,118166.89401061293,633929.1168412983,"Winter",300128.37507000001,73339.532825000002,113012.25857000001,2169.2266113000001,55813.873582,33912.753099000001,7930.5870330999996,742.46966563000001,3053.2304963000001]
[670,"2011-12-06","KW60MN22 ",7601616.2237996943,2782221.8788308026,2059914.2966331388,101065.46169,621242.12050766393,"Winter",349275.33026000002,70728.447409999993,108317.69571,2079.1162921999999,58139.451648000002,33190.343561000002,7715.4303970999999,816.33821894000005,3053.2304963000001]
[671,"2012-01-31","KW60MN07 ",7642438.8209735528,2781820.4489100017,2003990.7228232035,122291.26595719311,655538.46012960514,"Winter",269208.98534999997,63855.902912999998,105512.76247,2025.276683,55494.676592999997,34388.157951000001,9273.0051664999992,742.46966563000001,1373.5296639999999]
[672,"2011-12-04","KW60MN19 ",7880059.2393394727,2781617.6846619323,2063428.4105302931,116887.260385,601302.01374663948,"Winter",313575.85645000002,59895.989151000002,93784.575094,1800.1586606000001,56269.869280999999,26156.851707999998,7401.2379203999999,816.33821894000005,3053.2304963000001]
[673,"2011-12-08","KW60MN17 ",8104396.9400597531,2780991.792296994,2036058.8759401147,97389.067940000008,647543.84841687919,"Winter",261554.65276,87646.491561999996,135024.61394000001,2591.7452623999998,56133.070571999997,35184.547891000002,8329.4729298999991,816.33821894000005,3053.2304963000001]
[674,"2011-09-13","KW60MN18 ",7433282.2074079979,2780847.4123591674,1986185.4258730887,108271.249581,686390.73690507864,"Summer",267642.61148999998,86775.555057999998,133873.47524,2569.6496000000002,53989.890785000003,40740.327338000003,9646.8629285999996,25296.57805,0]
[675,"2012-02-16","KW60MN12 ",7476950.1185821192,2779630.0204437263,2061968.8901110503,118746.50768945047,598914.62264322513,"Winter",181435.34677,82155.904456000004,120213.3207,2307.4482149,57546.657239,36941.341194000001,9435.4950494999994,747.06969021999998,0]
[676,"2012-04-06","KW60MN08 ",6980792.3164294716,2779517.7321261959,2108279.3880758495,134828.2810102829,536410.0630400636,"Summer",235349.15904,58989.084384000002,91436.656659,1755.0912740000001,53761.892935999997,31672.242105000001,7860.2309554000003,7467.6597125999997,0]
[677,"2012-02-15","KW60MN11 ",7459024.0681115091,2779217.1206483729,2084608.1946655053,123122.18058977686,571486.745393091,"Winter",200220.10047999999,76336.054694000006,125883.98857,2416.2944922000001,47788.349276000001,36280.160277000003,9390.1129328000006,747.06969021999998,0]
[678,"2011-07-06","KW60MN13 ",8738916.0629118159,2779171.842954956,1977419.0593040322,142662.98471799999,659089.7989329237,"Summer",190356.55872,85137.902440999998,127613.48797,2449.4915646999998,54765.083473999999,41944.569578000002,10055.743828000001,40183.918188000003,0]
[679,"2011-12-15","KW60MN12 ",7634470.5373655744,2778542.7862311648,2027174.737600517,98113.184070000003,653254.86456064775,"Winter",252455.98889000001,83788.556704000002,128893.02368,2474.0517579000002,49749.130783000001,37337.797063999998,9838.3728522000001,816.33821894000005,0]
[680,"2011-08-02","KW60MN14 ",8200520.9794512941,2777522.7180121448,2015608.2005064997,137916.80064300002,623997.71686264477,"Summer",216213.63492000001,106540.61618,130819.09363,2511.0219259999999,57227.460249999996,40434.316551000004,12225.288995000001,30034.928443000001,0]
[681,"2011-07-27","KW60MN18 ",8499293.1952272207,2777068.2464953493,1987734.1218246473,143253.28467600001,646080.83999470202,"Summer",218069.40285000001,84366.992576000004,105337.6608,2021.9156740999999,56680.265411,38410.847812,8318.1371345999996,34859.217670999999,0]
[682,"2011-08-23","KW60MN20 ",8567618.4308106415,2777001.4121336262,2019605.4545820246,145191.95209099998,612204.00546060165,"Summer",253868.00511999999,80811.488387000005,113745.36865,2183.2983758999999,51937.910139,37525.451462999998,8843.8904841999993,42840.232593000001,122.79358015]
[683,"2012-01-06","KW60MN19 ",7565869.7193966098,2776664.4807612719,2050988.971869457,118161.61402065413,607513.89487116109,"Winter",263858.34821999999,68852.973633999994,114065.70796,2189.447165,55585.875732,32925.464414000002,7473.4172731999997,742.46966563000001,3053.2304963000001]
[684,"2012-01-14","KW60MN11 ",7341854.6006530095,2776116.3374123694,2030280.3426794608,116542.72932322565,629293.26540968276,"Winter",309600.58568000002,70398.072847000003,87234.569470000002,1674.433835,55449.077022999998,27257.318090000001,6999.4266582,742.46966563000001,0]
[685,"2012-01-15","KW60MN11 ",7013225.1014817115,2776084.6674570488,2023166.6877214496,115371.14855777964,637546.83117781975,"Winter",344749.10321999999,54572.268434999998,80725.400362999993,1549.4928505,55221.079172999998,24464.54724,6750.4048431000001,742.46966563000001,0]
[686,"2011-12-19","KW60MN13 ",7782126.3498921962,2776056.5214792062,1990509.1771747079,96818.319270000007,688729.02503449831,"Winter",301062.31082000001,78127.711249,121308.25377,2328.4650319000002,58230.650787999999,39040.253146000003,9243.8530778999993,816.33821894000005,0]
[687,"2011-12-30","KW60MN18 ",7660212.1243315674,2775987.5696954774,2042157.3711228424,114581.952167,619248.24640563503,"Winter",233717.86890999999,71146.489090999996,99792.073015999995,1915.4702606999999,56680.265411,28292.370822000001,6631.5415185000002,816.33821894000005,3053.2304963000001]
[688,"2011-11-15","KW60MN08 ",7483859.5885520959,2775782.1898273653,1960152.356556471,123804.994924,691824.83834689436,"Winter",333893.16396999999,57728.874382000002,128353.11418,2463.6884037999998,55631.475301999999,39417.310860999998,10350.027561000001,4955.8928413000003,0]
[689,"2011-11-08","KW60MN10 ",7490047.9771242384,2775771.7801735271,2048163.5448949928,124540.32772399999,603067.90755453403,"Winter",285672.25919000001,72664.116810000007,140611.3322,2698.9801594,56178.670141000002,39347.616858000001,10443.354875000001,4955.8928413000003,0]
[690,"2012-03-01","KW60MN11 ",7524693.0304631982,2774939.3668495803,2092327.423126966,114462.18743470535,568149.75628790911,"Winter",168675.73405,78133.222580000001,116951.93932,2244.8472602000002,56953.862829999998,34949.423861000003,9330.2241818999992,1354.3257784,0]
[691,"2011-12-21","KW60MN07 ",7555320.2893014718,2772889.9833004605,2032278.8640219613,119500.29345100001,621110.8258274988,"Winter",254437.08496000001,61821.100254999998,109770.50595000001,2107.0024231000002,45873.16734,34474.607802999999,8208.7812508999996,816.33821894000005,2035.0629374]
[692,"2012-02-01","KW60MN08 ",7480338.9972390495,2772639.2760541644,2033014.4113076045,132598.69439769944,607026.17034886021,"Winter",254567.39442,66606.736718999993,111771.11148000001,2145.4032728000002,49384.334222999998,35356.747211000002,9327.8557863000005,747.06969021999998,0]
[693,"2012-01-15","KW60MN21 ",7295741.610874244,2772508.5916252066,2041740.6441447774,117620.37902712646,613147.56845330261,"Winter",301973.03568999999,56357.994284,79195.476318999994,1520.12655,56543.466700999998,26621.678293000001,6815.8802311999998,742.46966563000001,3053.2304963000001]
[694,"2012-04-04","KW60MN09 ",7002958.4063028656,2772092.4364058366,2105442.0422997153,120628.8151384028,546021.57896771864,"Summer",211399.69897999999,62653.097520000003,110725.02151999999,2125.3239804,49749.130783000001,34692.635629999997,8453.6249372999991,7467.6597125999997,0]
[695,"2011-12-24","KW60MN10 ",7352278.8996486459,2771864.3010249557,2012617.3671537768,116964.80032999998,642282.13354117912,"Winter",371582.56245999999,57055.813939,81787.431513000003,1569.8781277999999,55950.672292000003,17874.570628000001,6492.4444095999997,816.33821894000005,0]
[696,"2012-03-19","KW60MN07 ",7363775.2078402974,2771828.9441620833,2036430.6529399788,119361.81945844744,616036.47176365682,"Winter",272794.68433000002,63137.993412000003,107842.49151000001,2069.9949311999999,58185.051218000001,34545.793511000003,8415.0585191999999,1354.3257784,0]
[697,"2011-08-22","KW60MN19 ",8655995.2273299843,2771577.7708080737,2045973.8445315743,139925.78645099999,585678.1398254995,"Summer",239000.49499000001,74087.431677999994,114571.28684,2199.1515562,56634.665841000002,37336.783988000003,8716.7183060000007,43902.886353000002,0]
[698,"2011-07-29","KW60MN20 ",8590969.3383589368,2771394.0526315188,1994197.8803097447,145279.31184799998,631916.86047377368,"Summer",231369.95619999999,86979.283091999998,122540.93472999999,2352.1258662,55631.475301999999,37892.943346,7261.3078953000004,40232.966165999998,0]
[699,"2012-01-21","KW60MN18 ",7741107.8132062713,2771325.0345105003,2026257.7770318331,114621.99780536279,630445.25967330427,"Winter",270163.36575,68111.653028000001,85972.118975999998,1650.2015858,56543.466700999998,26258.748955999999,7353.4366212000004,742.46966563000001,3053.2304963000001]
[700,"2012-01-22","KW60MN10 ",7038369.695238431,2771104.0505029201,2036254.9437459414,121421.13676341323,613427.96999356535,"Winter",308690.94186999998,51200.432964,79862.491693000004,1532.9296522,55996.271862000001,24691.372139999999,6466.7865088999997,742.46966563000001,0]
[701,"2012-02-06","KW60MN20 ",7780152.8789744237,2770875.7881035078,2026689.1505669758,109725.10745211794,634461.53008441371,"Winter",241363.48947,67837.964833000005,103795.77974,1992.3198634,57592.256808999999,30443.589024000001,7734.4943743000003,747.06969021999998,3053.2304963000001]
[702,"2011-08-02","KW60MN19 ",8084551.4322230397,2770858.6378017673,2009393.6398349728,131310.55543099999,630154.44253579457,"Summer",263269.62923000002,89501.716419000004,123678.07524999999,2373.9528389000002,56133.070571999997,35605.772498999999,9187.2553647000004,30168.709383000001,0]
[703,"2011-12-03","KW60MN10 ",7341322.6947844941,2770474.1891879332,2029306.7152596498,104377.58389000001,636789.89003828366,"Winter",340705.63063000003,62254.043418000001,99585.308294000002,1911.5014917999999,56452.267561000001,28758.638771000002,6826.2205893999999,816.33821894000005,0]
[704,"2011-07-30","KW60MN19 ",8209836.9117842717,2770076.8171397513,1979586.2469572728,138847.55589399999,651643.01428847876,"Summer",262334.64422000002,78973.269923,104420.01307,2004.3017808,55038.680892999997,30430.594287,7926.5849694999997,38701.074645000001,0]
[705,"2011-11-21","KW60MN19 ",7876181.2723217532,2769819.2886813432,1969352.8821784339,121284.469037,679181.93746590917,"Winter",324028.68952999997,64158.426776,113396.78323,2176.6074134,56908.26326,36753.999982000001,6601.4752527000001,4955.8928413000003,3053.2304963000001]
[706,"2011-12-15","KW60MN17 ",8068684.1427636491,2769648.0562862577,2003037.5136133118,98773.353829999993,667837.18884294597,"Winter",306088.98132999998,86786.759288000001,122408.45044,2349.5828815,50341.925192000002,34955.346477999999,8498.4940989999996,816.33821894000005,3053.2304963000001]
[707,"2011-12-23","KW60MN20 ",7872848.2983849533,2769586.4885267927,1998849.2795937117,113728.82950000001,657008.37943308102,"Winter",328303.59259000001,71265.95,98318.940797999996,1887.1940572999999,56725.864979999998,27705.819210000001,7057.5683145000003,816.33821894000005,3053.2304963000001]
[708,"2012-01-27","KW60MN18 ",7723119.5537608936,2769579.6487822146,2033069.9835433962,112431.26444726299,624078.40079155506,"Winter",256547.11267,72261.863566,119251.57076,2288.9877965999999,55038.680892999997,33353.299875999997,7517.1758794999996,742.46966563000001,3053.2304963000001]
[709,"2011-12-11","KW60MN17 ",7733710.7794090128,2768506.9019759526,1967762.8430075273,99181.79234,701562.26662842522,"Winter",345689.90684000001,63358.261867000001,92236.460275000005,1770.4431952,57592.256808999999,26666.236703999999,7803.3945396999998,816.33821894000005,3053.2304963000001]
[710,"2011-09-13","KW60MN16 ",7518588.4908909649,2768471.4759000712,1987956.2718338238,108835.49295200002,671679.71111424733,"Summer",242387.07855999999,96522.719782,143720.29772,2758.6555506,49019.537664000003,42158.027834,12166.19253,24216.383088999999,0]
[711,"2012-02-27","KW60MN11 ",7517466.4488854501,2768007.003243132,2078551.0848066302,117447.36544357086,572008.55299293122,"Winter",192786.53619000001,78076.251808000001,117656.16725,2258.3646431000002,50889.120030999999,37638.397935000001,9649.6494762000002,747.06969021999998,0]
[712,"2012-02-15","KW60MN21 ",7507926.1695575332,2767916.5655682012,2028782.4650847511,128536.62240297337,610597.47808047687,"Winter",296396.38397000002,67127.788870999997,98819.748592999997,1896.8068693,49019.537664000003,31110.934842999999,7338.8301044999998,747.06969021999998,3053.2304963000001]
[713,"2011-09-09","KW60MN13 ",7932540.9501689738,2767849.4376411284,1999986.0462101924,113700.11267,654163.27876093599,"Summer",171772.85996,95440.054975999999,149314.60368,2866.0360906000001,54263.488205000001,44242.538941999999,10802.321709,37653.208594999996,0]
[714,"2012-02-28","KW60MN22 ",7323941.0461819861,2767784.8835023744,2031315.3608847875,118877.41133566553,617592.11128192116,"Winter",291634.98517,70851.295457999993,90787.975592999996,1742.6400917000001,57090.661540000001,32876.288122999998,7071.4722701999999,747.06969021999998,3053.2304963000001]
[715,"2011-11-30","KW60MN19 ",7858352.3050348181,2767517.2736271285,2043788.6450283781,122990.026419,600738.60217975022,"Winter",268912.57503000001,71739.138733,120566.19701,2314.2215391,55585.875732,35220.762218999997,7856.9856275000002,4955.8928413000003,3053.2304963000001]
[716,"2012-02-07","KW60MN11 ",7618925.4975618403,2767106.5801618518,2056215.6481015701,113330.61100105415,597560.32105922769,"Winter",206732.19295,79955.218771999993,119266.48906000001,2289.2741476000001,56771.464549999997,34311.146779000002,10266.246625,747.06969021999998,0]
[717,"2011-12-10","KW60MN17 ",7672785.1624553725,2767017.4826062722,1953822.6456688747,96966.27803999999,716228.55889739771,"Winter",362358.68702999997,73681.087516,104799.18653000001,2011.5798688,57683.455949000003,26561.199843999999,8112.7317214000004,816.33821894000005,3053.2304963000001]
[718,"2011-08-29","KW60MN15 ",8703426.5325056743,2766300.9838893376,1934876.2615204838,135685.947361,695738.77500785375,"Summer",239007.77621000001,97703.513594000004,146129.54102999999,2804.9000446,50980.319171000003,43260.925797999997,12166.883241,39779.568607000001,0]
[719,"2012-01-25","KW60MN19 ",7728124.5979931848,2766248.5784028424,1996193.408982828,125079.51225887521,644975.65716113872,"Winter",228110.83108,80566.764406000002,103848.69108,1993.3354761000001,56725.864979999998,34559.288968000001,7807.9247951999996,742.46966563000001,3053.2304963000001]
[720,"2012-02-14","KW60MN11 ",7440194.9715736294,2765746.5205054525,2038606.5121175589,113663.24410817452,613476.76427971886,"Winter",241703.87328,78598.333918999997,121292.73791,2328.1672109000001,56589.066271000003,36590.151923999998,9529.9650846999994,747.06969021999998,0]
[721,"2011-12-05","KW60MN17 ",8114673.9542467641,2765683.879009854,2052459.021876371,98512.47183000001,614712.38530348288,"Winter",294609.49618000002,75240.180368000001,120273.63958,2308.6060123000002,58093.852078000004,34946.456852000003,8245.0436045999995,816.33821894000005,3053.2304963000001]
[722,"2011-12-12","KW60MN14 ",7568245.7919871453,2765236.7843939448,2009545.5573164138,94745.674360000005,660945.55271753122,"Winter",232817.83799999999,81191.704341999997,131291.96408000001,2520.0984914000001,56771.464549999997,37406.657847000002,9395.2204734000006,816.33821894000005,0]
[723,"2011-12-21","KW60MN13 ",7702604.092163017,2765135.3500847863,2091507.7489542109,105904.275611,567723.32551957539,"Winter",224704.86270999999,79235.729785000003,114152.18114,2191.1069842000002,54400.286914999997,34723.872475999997,9151.0336403000001,816.33821894000005,0]
[724,"2011-11-30","KW60MN09 ",7357834.0045920955,2764708.2927345741,2039122.4129927815,118156.846149,607429.03359279281,"Winter",272338.75487,67393.386817000006,132426.83640999999,2541.8819269999999,56087.471001999998,37206.056060000003,10235.735121,4955.8928413000003,0]
[725,"2012-01-24","KW60MN21 ",7632100.0222761212,2764460.7896372271,2005512.828751713,113958.4780128618,644989.48287265224,"Winter",310418.15969,71022.649646000005,104619.97964999999,2008.1400619999999,57409.858528999997,33639.623888000002,8029.7041348000002,742.46966563000001,3053.2304963000001]
[726,"2011-12-20","KW60MN21 ",7897468.1978417747,2764425.6619603052,2021769.7126552227,109997.58211,632658.36719508225,"Winter",310299.41326,68644.836534000002,109024.54263,2092.6839455999998,43000.394435000002,33888.319520999998,7548.5626229999998,816.33821894000005,3053.2304963000001]
[727,"2011-12-11","KW60MN09 ",7195897.1881275233,2764017.3059421517,1970642.9685459894,116504.63314000001,676869.70425616205,"Winter",336296.99475999997,58365.802667999997,90993.12113,1746.577781,57273.059820000002,25999.096684,6709.2465638000003,816.33821894000005,0]
[728,"2011-12-08","KW60MN12 ",7614482.9252594793,2763728.2815831294,2068254.9696928526,94120.499390000012,601352.81250027637,"Winter",224079.54684,87113.102385000006,135181.19919000001,2594.7508557000001,45325.972500000003,35916.529192000002,10164.469945000001,816.33821894000005,0]
[729,"2012-01-26","KW60MN20 ",7700424.8341389447,2763669.6748188101,2022317.4266167791,110570.46998611216,630781.77821591857,"Winter",280404.74667999998,70481.380711000005,111830.88102,2146.550526,56087.471001999998,33468.560979000002,7742.8353923000004,742.46966563000001,3053.2304963000001]
[730,"2012-03-20","KW60MN09 ",7420124.1983168023,2763488.767935432,2086215.4411690575,117550.89568217311,559722.43108420121,"Winter",206453.17488999999,73689.929747000002,117529.78122999999,2255.9387123000001,56953.862829999998,35113.382924999998,8680.9079614999991,1354.3257784,0]
[731,"2011-12-04","KW60MN18 ",7875026.4807822919,2762845.4773203218,2062362.9688240294,112607.21636600001,587875.29213029228,"Winter",292509.14496000001,61324.673951999997,93314.352918999997,1791.1329278000001,56771.464549999997,25971.379465000002,7226.4879085000002,816.33821894000005,3053.2304963000001]
[732,"2012-03-01","KW60MN21 ",7500058.7396395365,2762770.731056645,2041088.1471658286,120801.40712551821,600881.17676529801,"Winter",273656.26361999998,67264.322052000003,97561.529615000007,1872.6558425000001,56269.869280999999,30961.307038999999,7153.2047726000001,1354.3257784,3053.2304963000001]
[733,"2011-12-27","KW60MN18 ",7907684.6354760081,2762540.0525882374,2037505.7026233526,108622.97299000001,616411.376974885,"Winter",286857.67790000001,69937.164902000004,104581.40547,2007.3996454999999,56817.064120000003,30139.370718999999,6835.2607840999999,816.33821894000005,3053.2304963000001]
[734,"2011-11-29","KW60MN07 ",7598822.8023601891,2762337.7155689187,2002194.7500666673,108745.06298999999,651397.9025122514,"Winter",285479.59830999997,59293.594255000004,108602.51204,2084.5832313999999,56725.864979999998,36763.514145000001,10276.873086,4955.8928413000003,1017.3194389]
[735,"2012-03-13","KW60MN11 ",7322524.6535838572,2762170.0715102246,2093886.6984096731,120126.24474737677,548157.12835317489,"Winter",179030.21236,77562.096051,119440.94138,2292.6226925000001,57090.661540000001,35916.002429,8843.8701689000009,1354.3257784,0]
[736,"2011-11-10","KW60MN09 ",7553668.0485817641,2762105.3441945538,2028567.292433412,123451.675632,610086.37612914166,"Winter",255301.38806999999,67661.049503999995,132213.75938,2537.7919958000002,56953.862829999998,40935.391749000002,10661.335300999999,4955.8928413000003,0]
[737,"2012-02-14","KW60MN07 ",7498210.7438465422,2761319.8605502243,1990019.0895241299,119770.3133316404,651530.45769445424,"Winter",291125.92505999998,61946.295840999999,102945.48306,1975.9987473000001,56361.068421000004,36092.742278999998,8809.8661708,747.06969021999998,406.67333975000003]
[738,"2012-01-30","KW60MN10 ",7639040.7947708899,2761154.6990842409,2032384.28519,130584.71059122453,598185.70330301614,"Winter",210077.01814,73016.798605000004,114259.3682,2193.1643984000002,54765.083473999999,35068.487914999998,8838.2632164999995,742.46966563000001,0]
[739,"2012-01-22","KW60MN11 ",7060479.6690442562,2760770.232520449,2030262.3027594169,118432.00535625765,612075.92440477409,"Winter",292596.89055000001,52981.070071000002,78818.223585,1512.8853296,55722.674442000003,25084.987442000001,6433.6120414999996,742.46966563000001,0]
[740,"2011-07-24","KW60MN18 ",8837523.2861062083,2760621.5486974893,1974937.4513512724,130895.52183099999,654788.57551521726,"Summer",261822.37273999999,71559.384185000003,101872.11761,1955.3959124999999,54856.282614000003,29672.575120000001,7540.4366055999999,39766.766199999998,0]
[741,"2012-01-31","KW60MN20 ",7629652.8216682207,2760376.9926123079,2012341.8047972247,134366.93579088108,613668.25202420203,"Winter",290509.99952000001,68318.570563999994,111002.25072,2130.6452877000002,55312.278313000003,33739.037800999999,7973.3705165000001,742.46966563000001,3053.2304963000001]
[742,"2012-01-11","KW60MN14 ",7493229.3834845033,2760369.0003906735,2037376.4592966705,98738.839286360439,624253.70180764224,"Winter",233974.96911999999,77474.912580000004,129210.79383,2480.151233,57090.661540000001,36635.989896999999,10144.662777,742.46966563000001,0]
[743,"2012-01-27","KW60MN21 ",7499714.507546071,2760222.5334322639,2039135.7201408204,112153.84566075503,608932.96763068868,"Winter",282499.35346999997,68822.444394999999,104020.27673,1996.6289962999999,55175.479603,31518.167710000002,7326.7223377,742.46966563000001,3053.2304963000001]
[744,"2012-01-05","KW60MN20 ",7568789.4157320904,2760056.2076315396,2031026.4763217419,115574.09153367385,613455.63977612369,"Winter",268611.39535000001,67782.417688000001,110952.9088,2129.6981885999999,56543.466700999998,33573.628280999998,7546.4701738000003,742.46966563000001,3053.2304963000001]
[745,"2012-01-10","KW60MN07 ",7656600.8303005258,2760027.6762665603,2016108.813537959,113342.08676528932,630576.77596331201,"Winter",278750.86038999999,58454.705415999997,102822.07406,1973.6299592,55996.271862000001,35290.625648000001,9216.8543843000007,742.46966563000001,2136.8372881]
[746,"2012-02-17","KW60MN08 ",7501422.3218375361,2759934.0398975862,1994196.7747197496,134354.1028822287,631383.16229560808,"Winter",295958.01634999999,65538.168386999998,107134.64627,2056.4081156000002,57592.256808999999,36022.15969,7933.5648793999999,747.06969021999998,0]
[747,"2011-08-27","KW60MN17 ",8761920.0483415909,2759624.2253815895,1946153.9661908557,133065.869419,680404.38977173367,"Summer",302222.02798999997,86141.845195999995,109055.05177999999,2093.2695567999999,55357.877883000001,31470.424225999999,8742.3762067000007,45882.942526999999,0]
[748,"2012-02-13","KW60MN10 ",7464319.7257382758,2759170.3861165028,2050042.4320947351,120372.24959490741,588755.70442686044,"Winter",204669.9754,70332.733850000004,121710.37359,2336.1835664,56133.070571999997,36999.106988,9405.3644523999992,747.06969021999998,0]
[749,"2011-11-16","KW60MN08 ",7506485.7178979116,2759022.7618087814,1952197.6169510814,111515.228642,695309.91621569998,"Winter",331974.44052,59837.389082000002,131443.07618,2522.9990296999999,51436.314870000002,38978.529596,10687.094777,4955.8928413000003,0]
[750,"2011-11-16","KW60MN18 ",7785263.2850222802,2758457.5915134903,1939394.8680385801,112673.725003,706388.99847191002,"Winter",313389.58650999999,84562.469681999995,123639.68777999999,2373.2160061999998,57729.055519000001,38017.59779,8536.4629167999992,4955.8928413000003,3053.2304963000001]
[751,"2012-02-14","KW60MN21 ",7425549.1458347477,2757606.9074117802,2019071.0035665417,118436.0184596742,620099.88538556453,"Winter",271281.27155,70785.477633999995,103986.99622,1995.9901898000001,56725.864979999998,33198.678658999997,7436.1679471999996,747.06969021999998,3053.2304963000001]
[752,"2011-12-29","KW60MN18 ",7641996.2401398178,2757488.8799113585,2020058.8219117902,107279.592326,630150.46567356819,"Winter",248600.52439999999,69358.288765999998,110335.5889,2117.8489718000001,54765.083473999999,29924.841254999999,6575.4110515000002,816.33821894000005,3053.2304963000001]
[753,"2011-12-22","KW60MN14 ",7633267.0003395947,2757382.7293946133,2048091.6503601188,99713.26350999999,609577.81552449439,"Winter",259533.26092,75607.275177000003,116534.72035,2236.8389032999999,56543.466700999998,37845.862925000001,8626.8039198000006,816.33821894000005,0]
[754,"2011-12-09","KW60MN13 ",7461421.554846908,2757350.6717410581,2005807.1735843022,92925.103350000005,658618.39480675547,"Winter",252845.42290000001,81964.680554000006,141376.95540000001,2713.6760006999998,58321.849928000003,36059.894474000001,9195.1985471999997,816.33821894000005,0]
[755,"2011-09-08","KW60MN13 ",8021078.5971417278,2756655.5821342571,2052892.3256250587,114048.54991100001,589714.70659819874,"Summer",142701.71317999999,96911.188271999999,145120.06112,2785.5234681000002,50113.927342000003,42763.447288000003,10906.476941999999,48404.873677000003,0]
[756,"2011-11-18","KW60MN11 ",7520030.8913951507,2756532.3754816307,2052942.5740124634,109938.408159,593651.39331016713,"Winter",205196.73512999999,67895.354980999997,128372.56818,2464.0618156999999,57181.860679999998,40413.409638999998,8848.1769578000003,4955.8928413000003,0]
[757,"2012-01-31","KW60MN18 ",7691397.7357519846,2756181.1445110017,2013768.3917133699,127772.6116618482,614640.1411357834,"Winter",249325.78482999999,76785.406518999996,116295.75369,2232.2520307999998,55357.877883000001,34364.888750999999,8399.4379430000008,742.46966563000001,3053.2304963000001]
[758,"2012-03-02","KW60MN11 ",7383825.6477377191,2755249.2537996667,2061054.3327922092,112385.72859285166,581809.19241460576,"Winter",216096.67965999999,83046.895455999998,114596.09215,2199.6276845000002,46055.565619000001,35344.922391,9210.7446345000008,1354.3257784,0]
[759,"2012-01-21","KW60MN20 ",7578879.2070497535,2754560.4338118583,2025331.7467022748,112410.85784082332,616817.82926875982,"Winter",306755.58925000002,69007.284471999999,79845.619141000003,1532.6057900999999,56133.070571999997,26067.645737999999,7099.0313201999998,742.46966563000001,3053.2304963000001]
[760,"2012-01-22","KW60MN12 ",7092975.2638087012,2754402.7054965412,2024826.5878577174,121430.66180551174,608145.45583331236,"Winter",265077.47039999999,54848.432711000001,84199.833163999996,1616.1832449000001,55813.873582,25482.232502999999,6728.1801845999998,742.46966563000001,0]
[761,"2011-07-27","KW60MN19 ",8315901.4481298747,2754290.0454187295,1978788.6458457136,144609.06960400002,630892.32996901579,"Summer",233168.97936,76784.874666999996,103420.95228,1985.1251953000001,56087.471001999998,38277.146243000003,8074.3566019999998,35491.376713999998,0]
[762,"2011-11-02","KW60MN10 ",7339045.0860239631,2754200.2918822933,2046978.229261691,114662.905717,592559.15690360218,"Winter",198003.80085999999,79485.601959000007,139096.32967000001,2669.9002716,53032.299816999999,43327.026092,10282.033108,4955.8928413000003,0]
[763,"2012-02-20","KW60MN10 ",7515568.5156244263,2753438.6175859654,2040294.9429279224,115842.15914642646,597301.51551161637,"Winter",268248.93472000002,70784.532833999998,98459.360832999999,1889.8893656,56315.468850999998,29006.353335,6515.4528899999996,747.06969021999998,0]
[764,"2011-07-30","KW60MN16 ",8533399.6264206432,2753402.9058686132,1962038.2698237465,140696.791015,650667.8450298669,"Summer",281637.27604999999,82774.990812000004,104843.36315999999,2012.4278220000001,54673.884334000002,31454.961786,7936.0720952000001,39148.873718000003,0]
[765,"2011-07-11","KW60MN16 ",8512966.6828446202,2753280.2308481787,1937515.24801991,138595.58619200002,677169.39663626894,"Summer",185895.27974,83484.904865999997,127298.1609,2443.4389833999999,55266.678742999997,40918.535153999997,10156.303298000001,23715.002519000001,0]
[766,"2012-01-23","KW60MN17 ",7950219.1892341394,2752565.4991265121,1993935.7325310793,108069.00355704424,650560.76303838857,"Winter",263503.65633999999,66973.799392999994,109530.71633,2102.3997539000002,57592.256808999999,34392.818598999998,8046.1796352000001,742.46966563000001,3053.2304963000001]
[767,"2012-02-24","KW60MN07 ",7453699.8721720818,2752371.9038944016,2014277.2593484509,124964.81070568453,613129.83384026645,"Winter",261178.90151,61772.534663999999,100950.54083,1937.7066024999999,57774.655089,35264.020213000003,8553.0857020999993,747.06969021999998,0]
[768,"2011-09-13","KW60MN15 ",7462541.7295306819,2752285.9478052761,1983234.3028905883,105008.070893,664043.5740216875,"Summer",208371.26243,99491.607870000007,146465.76572,2811.3537474,53944.291214999997,44053.211151000003,12299.398276,24038.380559000001,0]
[769,"2011-07-28","KW60MN15 ",8935662.0281310398,2752222.8531700522,1971571.5456122183,141264.793072,639386.51448583358,"Summer",199014.09933999999,91549.620939999993,134903.57751,2589.4220148999998,55859.473151999999,42319.600645999999,11162.852801999999,31940.953856,0]
[770,"2011-07-27","KW60MN17 ",8588968.5282364804,2751915.2832341501,1970129.0106776836,140133.486707,641652.78584946634,"Summer",215773.96367,93870.294565000004,111960.92603,2149.0466897000001,57045.061970000002,38888.302312,9116.5996398999996,33672.909295999998,0]
[771,"2011-11-21","KW60MN10 ",7555898.3042400097,2751747.6964287502,1960299.333862596,117349.394157,674098.9684091541,"Winter",244235.44868,75005.897385999997,125879.65244000001,2416.2112619999998,58595.447347000001,39632.713784,9941.9795789,4955.8928413000003,0]
[772,"2011-11-21","KW60MN08 ",7603218.072288584,2751692.3134776251,1938329.8361179503,118772.48488500001,694589.99247467495,"Winter",287064.06394000002,60827.646703999999,118159.77903000001,2268.0312764,58504.248206999997,38261.439851000003,8295.0186142000002,4955.8928413000003,0]
[773,"2012-02-08","KW60MN19 ",7728192.2263294682,2751500.5750679402,2000061.1653305367,117268.53950587682,634170.8702315269,"Winter",246218.78104,82615.583197,118810.59394000001,2280.5234169,51025.918740000001,32116.589416999999,8288.7632732000002,747.06969021999998,3053.2304963000001]
[774,"2011-10-28","KW60MN09 ",7296874.9775663018,2751499.1764144618,2008397.0298307922,116896.330218,626205.81636566948,"Summer",213858.32440000001,73994.296612999999,138862.42266000001,2665.4105171000001,57592.256808999999,43154.806301999997,9464.1900495000009,19170.103298999999,0]
[775,"2012-04-06","KW60MN09 ",7070723.3662135294,2751264.6494180248,2078797.1083120066,136026.91686406609,536440.6242419522,"Summer",237623.98397999999,70530.450838000004,100914.90371,1937.0225617000001,53442.695946,32537.216541999998,8287.5155916999993,7467.6597125999997,0]
[776,"2012-01-12","KW60MN17 ",7793216.9792277953,2751145.3201456624,1973964.2144237633,98674.893378990178,678506.21234290896,"Winter",295843.50935000001,84144.530836999998,126635.10580999999,2430.7118974,57090.661540000001,35055.719912,8755.9060264,742.46966563000001,3053.2304963000001]
[777,"2011-11-30","KW60MN20 ",7779378.7733968655,2750474.5605914751,2030563.6669536545,125690.01794500001,594220.87569282076,"Winter",286962.81576000003,70841.508426999993,120824.46666000001,2319.1789253000002,56543.466700999998,35007.577231000003,7723.9830314000001,4955.8928413000003,3053.2304963000001]
[778,"2011-11-02","KW60MN07 ",7437585.3037757641,2750455.3599673435,2002406.6018224119,117683.48220699999,630365.27593793161,"Winter",297384.11807999999,62134.431469000003,131776.3824,2529.3967137999998,53123.498957000003,42511.574157000003,10534.95541,4955.8928413000003,0]
[779,"2011-07-07","KW60MN12 ",8275167.4431694504,2750352.0415767706,1938289.0910523441,146239.169207,665823.78131742647,"Summer",188077.52614,89656.052966000003,137894.57238999999,2646.8330052000001,55449.077022999998,41590.810608,10242.439086,41141.534133000001,0]
[780,"2011-09-09","KW60MN21 ",7539329.2478010887,2750329.6384560466,1981216.7351650679,127362.96028099999,641749.94300997874,"Summer",252909.56547,86688.077541999999,126058.12132999999,2419.6369031999998,53579.494656000003,38858.989215000001,8209.7970031999994,44763.006909000003,3053.2304963000001]
[781,"2011-09-12","KW60MN20 ",7216540.3647332424,2750297.3815623512,1965558.2460657514,117496.59935600001,667242.53614059975,"Summer",272527.70624999999,71220.051701000004,124586.72691,2391.3940561999998,54445.886484000002,39742.778256999998,9279.6685018000007,28745.890726000001,2035.9110573999999]
[782,"2012-01-22","KW60MN20 ",7534731.7939405227,2749679.4824265325,2021808.7045434567,118854.82033677801,609015.95754629793,"Winter",306767.33247000002,65803.150928000003,77420.569449000002,1486.0578988,56087.471001999998,25924.374032,7134.6639080000004,742.46966563000001,3053.2304963000001]
[783,"2011-11-19","KW60MN11 ",7376261.641351603,2749581.5212753834,1983853.685207512,122554.45728399999,643173.3787838713,"Winter",314635.71386000002,66072.181003999998,104982.39251000001,2015.0964368,57729.055519000001,32641.087423000001,6525.3547821000002,4955.8928413000003,0]
[784,"2011-12-20","KW60MN13 ",7700333.8901020419,2749030.9466581112,2042595.238200688,92489.16274,613946.54571742332,"Winter",263465.95721000002,73890.511664000005,120912.64044,2320.8713868,41814.805616999998,34639.266540999997,8588.2662806999997,816.33821894000005,0]
[785,"2011-08-23","KW60MN21 ",8359931.2725271741,2748818.2212010203,1993276.6345080545,144187.32496,611354.26173296571,"Summer",250075.94130000001,84756.648491999993,108788.58388999999,2088.1548087000001,51983.509708999998,37363.690844999997,9054.1308783000004,44387.825430999997,2981.7481505000001]
[786,"2011-08-01","KW60MN14 ",7862889.0229988508,2748629.8458057502,2044158.0173184616,130800.62071599999,573671.20777128858,"Summer",193756.42230000001,91617.673825999998,127471.44267,2446.7650598999999,56041.871432,41263.872041000002,11563.201381999999,27678.673753999999,0]
[787,"2012-01-05","KW60MN08 ",7558435.6969669852,2748118.405189597,2016644.892374584,114053.96214297375,617419.55067203962,"Winter",253317.07003999999,61086.385212000001,106474.99756,2043.7464135,51071.518309999999,35591.072227999997,9009.3565206999992,742.46966563000001,0]
[788,"2011-12-10","KW60MN13 ",7173147.7389418846,2747893.8197767851,1945632.6623156918,97768.794410000002,704492.36305109318,"Winter",358788.45137000002,72303.572933000003,105747.96507000001,2029.7913060999999,57683.455949000003,27234.951435999999,7239.3270175999996,816.33821894000005,0]
[789,"2011-12-24","KW60MN11 ",7354816.5835002139,2747593.0140943136,1989141.2776245933,111491.5254,646960.21106972056,"Winter",349640.92807999998,63070.327766000002,79933.091321,1534.2847847999999,55813.873582,17642.345395,6366.9583801999997,816.33821894000005,0]
[790,"2012-02-21","KW60MN08 ",7495810.3552768081,2747589.6746966089,1989829.767311092,116656.00522958774,641103.90215592925,"Winter",271061.27694000001,65429.701217000002,109320.92601,2098.3729099000002,56817.064120000003,35702.295539999999,9183.4818448999995,747.06969021999998,0]
[791,"2012-01-05","KW60MN18 ",7666321.4562660977,2747142.9185695108,2013430.6328738874,115449.556327616,618262.72936800728,"Winter",242166.46924000001,73658.732078999994,116150.34577,2229.4609819000002,56406.667991000002,34923.177989000003,7836.4674320000004,742.46966563000001,3053.2304963000001]
[792,"2012-01-22","KW60MN13 ",7081760.3398431921,2746736.2709864043,2026948.3791936922,122743.23105975012,597044.66073296161,"Winter",280971.86577999999,51389.759231999997,82033.728080999994,1574.6056953,55722.674442000003,25537.988577,6564.9488030000002,742.46966563000001,0]
[793,"2011-11-07","KW60MN09 ",7393984.8865577159,2746601.5824467246,1964843.3644612969,121141.32577,660616.89221542783,"Winter",277134.8958,69319.921547999998,137137.55080999999,2632.3022688000001,56817.064120000003,38840.348932000001,10302.896658,4955.8928413000003,0]
[794,"2012-02-05","KW60MN09 ",7105267.5885651493,2746577.4045465905,1963863.2914067265,116974.04769135764,665740.06544850639,"Winter",277764.42991000001,57715.153898999997,82032.347508000006,1574.5791956999999,55905.072721999997,24701.391081999998,6318.4494406000003,747.06969021999998,0]
[795,"2011-10-26","KW60MN07 ",7250496.4042454204,2746448.5188913709,1998589.9676862643,109536.31958299999,638322.23162210628,"Summer",300606.46614999999,54527.184783999997,123381.79601999999,2368.2658737000002,57136.261109999999,42234.598229000003,9743.1562388999992,19170.103298999999,3053.2304963000001]
[796,"2012-01-19","KW60MN15 ",7569052.9040462067,2746296.9648844535,1946899.1352579677,113230.56125837904,686167.2683681068,"Winter",271763.44308,81378.059632999997,126332.31345,2424.8999149000001,46192.364329000004,35545.555618999999,9163.3648727,742.46966563000001,0]
[797,"2012-01-30","KW60MN20 ",7658526.4746550471,2746119.2085805899,2002773.2205501599,123750.63544768388,619595.3525827463,"Winter",252154.61843999999,64693.519163999998,103584.04687999999,1988.2557331,55357.877883000001,31458.376618999999,7865.0303850999999,742.46966563000001,3053.2304963000001]
[798,"2011-11-19","KW60MN18 ",7533955.9697791841,2745730.8082676334,1974953.3718548904,119945.11952400001,650832.3168887432,"Winter",311768.01527999999,71726.293957999995,107693.17416,2067.1288424999998,57455.458099000003,29919.799728000002,6992.8039534,4955.8928413000003,3053.2304963000001]
[799,"2011-11-21","KW60MN09 ",7640412.4497912508,2745400.4295804799,1950264.6044155592,119165.97998100001,675969.84518392046,"Winter",253210.95712000001,69623.697109999994,127545.97388000001,2448.1956577000001,58458.648636999998,38694.211728000002,9257.6266782999992,4955.8928413000003,0]
[800,"2011-07-28","KW60MN20 ",8566435.2054473795,2745056.7446344192,1952981.2387359615,141972.04798999999,650103.45790845773,"Summer",235683.77721999999,81916.878194000004,116687.60585000001,2239.7734814,56543.466700999998,38313.17972,8159.7610490999996,38039.573204,0]
[801,"2011-07-11","KW60MN17 ",8484349.8328058533,2745044.0939171538,1929458.2270207554,141220.89645099998,674364.97044539836,"Summer",190425.20568000001,84178.964603999993,122843.36010999999,2357.9308044999998,55175.479603,40255.185592000002,8995.4610298999996,20422.231134000001,0]
[802,"2012-01-10","KW60MN11 ",7491643.5004331023,2745044.0863517793,2057016.6194925813,112296.21661836572,575731.25024083233,"Winter",207524.68012999999,72323.550302000003,122396.6326,2349.3560427000002,56224.269711000001,37504.896823000003,9720.6674855000001,742.46966563000001,0]
[803,"2012-01-11","KW60MN17 ",7761034.5484738369,2744928.293045701,1996687.7547783901,100602.73627854847,647637.80198876222,"Winter",234099.53416000001,80022.532527999996,119110.15906999999,2286.2734538999998,57227.460249999996,34794.008673999997,8373.8816162999992,742.46966563000001,3053.2304963000001]
[804,"2011-12-30","KW60MN19 ",7562420.6797889788,2744298.6052938192,2018094.0099469076,113172.06244899999,613032.53289791162,"Winter",235404.46239999999,69379.241464999999,96456.480106000003,1851.4448444,56589.066271000003,27640.683303000002,6617.9913835999996,816.33821894000005,3053.2304963000001]
[805,"2011-08-01","KW60MN20 ",7733319.89922872,2744294.1176178125,2027075.5501308185,129957.227214,587261.34027299366,"Summer",215240.20887999999,67703.551024,110589.62841,2122.7251620000002,55266.678742999997,35716.044159999998,8400.2302297999995,28532.314471000002,0]
[806,"2011-12-27","KW60MN10 ",7482619.8336955877,2744279.0130711976,2015732.7615106455,103113.83249,625432.4190705521,"Winter",300906.95692000003,73033.305282000001,107358.69257,2060.7085975999998,57637.856378999997,32420.889411,7964.1068562999999,816.33821894000005,0]
[807,"2012-03-12","KW60MN11 ",7251957.7950780438,2744261.9441831643,2033978.3648001102,117755.78981112712,592527.7895719267,"Winter",202519.45053,74755.472471000001,124023.00915,2380.5737118000002,53898.691644999999,35645.954207000002,9114.7662072000003,1354.3257784,0]
[808,"2012-01-04","KW60MN11 ",7485251.5741951345,2744058.4133544667,2011175.5246811092,111235.63257109332,621647.25610226369,"Winter",221352.19458000001,73566.985291000005,118324.66,2271.1961030000002,57546.657239,36962.432115000003,9761.6022993000006,742.46966563000001,0]
[809,"2012-02-29","KW60MN14 ",7438084.9118090644,2743938.9516543122,2071037.079655105,110452.37970176588,562449.49229744123,"Winter",192093.09268999999,78084.520411000005,118164.15856,2268.1153396999998,56087.471001999998,34589.620656999999,8890.7979214999996,747.06969021999998,0]
[810,"2012-02-08","KW60MN10 ",7524365.1370680584,2743935.2296448359,2036650.2201270589,112441.6910509981,594843.31846677896,"Winter",215301.89259,73091.326902999994,125771.59258,2414.1370946000002,37254.848624999999,35751.688219999996,9921.8118185999992,747.06969021999998,0]
[811,"2011-11-19","KW60MN09 ",7371133.753439106,2743422.5158576253,1997845.4139015756,121234.16234699999,624342.93960904982,"Winter",302093.19173000002,53540.886321999998,104307.77979,2002.1475064000001,57273.059820000002,32087.921579000002,6411.8546281999998,4955.8928413000003,0]
[812,"2012-03-21","KW60MN09 ",7354482.7787178,2743037.6067928406,2051623.7408983433,112162.47474805504,579251.3911464425,"Winter",204582.73853999999,72255.193731000007,121298.98338999999,2328.2870905,51436.314870000002,37052.452954,9148.4536296000006,1354.3257784,0]
[813,"2012-01-31","KW60MN11 ",7496543.2855922496,2742879.7850923985,2027653.4495708349,118915.00496872637,596311.33055283758,"Winter",244910.94880000001,75120.279194999996,123161.14231,2364.0305110999998,54856.282614000003,37119.288533999999,9650.6212125000002,742.46966563000001,0]
[814,"2011-12-23","KW60MN07 ",7520941.4227278195,2742863.5714861182,1974208.5949333413,101094.59270000001,667560.38385277684,"Winter",293663.40386000002,62270.138754,97931.842048000006,1879.7638463999999,55905.072721999997,31304.028002999999,7977.5147856000003,816.33821894000005,2085.9501132]
[815,"2011-11-20","KW60MN10 ",7167959.4887844836,2742848.4394136928,1959924.7747075979,115900.031259,667023.63344709505,"Winter",328224.35765000002,50351.872783999999,101950.56260999999,1956.9016339,55129.880033000001,27264.951677000001,6241.4114062999997,4955.8928413000003,0]
[816,"2012-02-16","KW60MN19 ",7660997.7597410353,2742592.5573125659,2031236.6736508489,123614.6388525504,587741.24480916653,"Winter",246422.33726,72497.060817999998,103066.44783999999,1978.3206193999999,50068.327771999997,35687.162049999999,7911.5162848999998,747.06969021999998,3053.2304963000001]
[817,"2011-08-29","KW60MN19 ",8415196.8603476845,2742456.6920611421,1912162.5536090517,142588.97232999999,687705.16612209054,"Summer",253931.56477,78976.671522000004,122101.86933,2343.6981756,56361.068421000004,38224.300391999997,9231.2983812000002,40061.284137000002,0]
[818,"2011-07-24","KW60MN17 ",8894611.146016987,2742177.3675329867,1963817.9039589993,131996.598868,646362.86470598739,"Summer",254909.19844000001,67060.467080000002,100907.07372,1936.8722682,54628.284764000004,29970.774448,7427.2411781000001,39885.682926000001,0]
[819,"2011-07-11","KW60MN18 ",8304586.2358543109,2741707.6494920906,1924342.3934501861,140601.71901700002,676763.53702490451,"Summer",234780.67272,76975.944315000001,120678.62331,2316.3795186000002,55357.877883000001,39174.094331,8371.8094822999992,21576.144378000001,0]
[820,"2012-01-09","KW60MN13 ",7502693.8048791299,2741584.4519613814,2038921.3044929265,105493.79356157544,597169.35390687978,"Winter",222480.03124000001,69112.505902000004,123709.58902,2374.5577336000001,53625.094226000001,37710.568458000002,8934.9221978000005,742.46966563000001,0]
[821,"2011-12-02","KW60MN18 ",7862957.074905484,2741407.4667217033,2025136.9978122476,108870.94317500001,607399.52573445591,"Winter",241593.30895000001,75327.784820999994,121475.47207,2331.6747224000001,55403.477453,34352.253270000001,7293.3447200000001,816.33821894000005,3053.2304963000001]
[822,"2011-08-22","KW60MN13 ",8686975.2355507202,2740974.653575277,1985144.9804331283,133024.72314400002,622804.94999814872,"Summer",210777.17053999999,88131.114298,124678.54865,2393.1565390000001,56680.265411,40295.741389000003,10966.467268,43703.928113000002,0]
[823,"2012-03-21","KW60MN08 ",7375117.087946008,2740865.387365737,2032580.8407623754,111112.73009769341,597171.8165056681,"Winter",246201.06023,67823.095486999999,120730.17567,2317.3690461000001,51709.912289,36231.572261000001,9308.4176754,1354.3257784,0]
[824,"2011-07-24","KW60MN19 ",8740826.2029130198,2740861.2457738896,1957634.2630901479,131915.34994499999,651311.63273874193,"Summer",275591.70101999998,71393.550969000004,99267.154964000001,1905.3946616000001,54810.683043999998,29231.907316000001,7446.0325943999997,40661.839700999997,0]
[825,"2011-08-27","KW60MN18 ",8612666.6236931533,2740414.9805403971,1932172.7301641363,129241.14971299999,679001.10066326067,"Summer",310779.07293000002,93579.818503000002,109109.19396,2094.3087949999999,55221.079172999998,31150.186164999999,8539.2257635999995,46183.200947999998,0]
[826,"2012-01-19","KW60MN21 ",7532777.9965440575,2740358.3137719962,1928902.6656161735,115732.57463506611,695723.07352075668,"Winter",339491.00224,70396.846856999997,99884.754814,1917.2492519,54400.286914999997,32994.290641,7686.2579943999999,742.46966563000001,3053.2304963000001]
[827,"2012-02-09","KW60MN08 ",7560024.5875670426,2740088.4487772644,1986293.9586997249,126712.60741692765,627081.88266061188,"Winter",249651.89235000001,70635.550151000003,118876.47265,2281.7879333999999,57683.455949000003,34918.452914000001,9384.0234982999991,747.06969021999998,0]
[828,"2011-07-29","KW60MN14 ",9008065.54532432,2739384.6673594904,1959106.9032076872,145468.51694700003,634809.2472048034,"Summer",202232.88628000001,99210.436797999995,133084.60402,2554.5075219999999,50341.925192000002,43548.030986999998,9073.0645000999993,36152.414026999999,0]
[829,"2012-02-04","KW60MN10 ",7327543.7440344756,2738987.2262349054,1988372.1465584964,122084.71931492259,628530.36036148597,"Winter",320017.88175,65299.596851000002,82294.771741000004,1579.6163274,57546.657239,27026.774076999998,6810.4459571999996,747.06969021999998,0]
[830,"2011-09-10","KW60MN18 ",7303015.3861062126,2738466.3045117809,1964851.0182726565,111017.49226999999,662597.79396912456,"Summer",290713.04700000002,83185.138273999997,128646.97847,2469.3290152,53944.291214999997,35994.682047000002,7508.6232452000004,38487.957987000002,0]
[831,"2011-11-20","KW60MN20 ",7536161.5854477901,2738250.7096062806,1972021.3617616387,117412.76112299999,648816.58672164206,"Winter",347146.07672999997,59486.800949999997,94791.257112000007,1819.4815328,56862.663690000001,26336.734397,6757.6369997000002,4955.8928413000003,3053.2304963000001]
[832,"2012-02-03","KW60MN11 ",7476907.2110363105,2738156.3901576754,2030974.2532090046,113712.66024906003,593469.47669961059,"Winter",223580.01485000001,81816.493237999995,129466.26685,2485.0549388999998,53442.695946,35432.600030000001,9323.0546649000007,747.06969021999998,0]
[833,"2011-12-04","KW60MN20 ",7783847.9904720113,2737978.0351711516,2014735.3756381162,115008.87953800001,608233.77999503526,"Winter",285950.74732000002,61888.364200999997,94300.766126000002,1810.0667479000001,56680.265411,26157.866273,7226.6301141000004,816.33821894000005,3053.2304963000001]
[834,"2012-01-13","KW60MN21 ",7519424.3207833162,2737911.3399194973,1980136.1350062797,111429.10809624504,646346.0968169726,"Winter",293350.16301000002,73893.183774999998,103182.27247,1980.5438283999999,56771.464549999997,32169.557847,7818.4479873,742.46966563000001,3053.2304963000001]
[835,"2011-08-24","KW60MN12 ",8558224.9940160345,2737817.240896923,1986296.1995266599,141181.34709,610339.69428026304,"Summer",176878.98798000001,99089.179483999993,126908.45475,2435.9587246000001,49384.334222999998,41929.040562000002,11301.076364,38526.939546000001,0]
[836,"2011-12-16","KW60MN07 ",7681792.8699803716,2737694.2183497711,1959824.7995374384,102181.02770999999,675688.39110233262,"Winter",321729.15931000002,63528.666433999999,109054.88987,2093.2664491,58048.252507999998,35733.167564000003,8859.3502322000004,816.33821894000005,1882.4014127]
[837,"2012-02-07","KW60MN18 ",7725714.032611304,2737634.1546293907,1998197.3106195813,121903.73832294124,617533.10568686831,"Winter",230123.05515,73639.686654999998,119305.07002,2290.0146942000001,56589.066271000003,32083.341654,8508.4112270000005,747.06969021999998,3053.2304963000001]
[838,"2012-01-04","KW60MN18 ",7749192.6571681835,2737592.1514808964,1993149.0721042184,123302.26822470315,621140.81115197472,"Winter",269357.23820000002,70623.500742999997,109833.03813,2108.2027041000001,46602.760457999997,35533.837208999998,7923.0907815999999,742.46966563000001,3053.2304963000001]
[839,"2011-12-21","KW60MN17 ",8091357.4627654823,2737242.076970303,2031389.6318027535,107515.271645,598337.1735225491,"Winter",261665.92718999999,80477.013265999994,112963.78049999999,2168.2960933999998,55494.676592999997,33992.114261000002,8898.5785830999994,816.33821894000005,3053.2304963000001]
[840,"2012-03-22","KW60MN10 ",7218079.9942995394,2736685.6628045067,2058595.9378737258,117319.02716198901,560770.69776879228,"Winter",196194.99522000001,70881.908249999993,122336.18213,2348.1957192999998,54810.683043999998,36420.698838999997,8709.0087466999994,1354.3257784,0]
[841,"2011-08-03","KW60MN20 ",7700478.7597548673,2736615.101664491,1983583.5775450799,128415.61456699998,624615.90955241129,"Summer",249677.44550999999,83203.802886999998,118290.47304,2270.5398974999998,54901.882184000002,35935.262387000002,8532.6030587999994,31173.279463999999,0]
[842,"2012-02-13","KW60MN19 ",7614447.2894450687,2736502.5851397379,2029511.5252021712,136183.95529924679,570807.10463831993,"Winter",237571.30906999999,64161.121382999998,108685.87132000001,2086.1832806000002,56543.466700999998,34325.046027999997,7772.7255941000003,747.06969021999998,3053.2304963000001]
[843,"2011-10-27","KW60MN10 ",7243988.2292106673,2736477.5679755774,2024896.1733068151,111696.836197,599884.55847176211,"Summer",197586.87416000001,73440.963808999993,140973.12442000001,2705.9246211999998,46648.360028000003,41837.979073000002,9348.4958721999992,19170.103298999999,0]
[844,"2011-12-08","KW60MN22 ",7424282.1293770028,2736163.9294766518,1987094.0467664653,98724.587450000006,650345.29526018666,"Winter",349400.46763000003,68697.464120999997,118009.09948,2265.1390408000002,56908.26326,33179.849112999997,7152.7036680000001,816.33821894000005,3053.2304963000001]
[845,"2011-12-20","KW60MN07 ",7672560.2329403572,2736088.6535987579,1989730.5612383822,106839.1155,639518.97686037573,"Winter",265008.21931999997,62368.976360000001,111805.85283,2146.0701196,43501.989704,37287.254602000001,8908.0250792999996,816.33821894000005,2035.0629374]
[846,"2011-12-01","KW60MN21 ",7550591.677571062,2735661.0811317516,2018064.3565218691,101659.04814,615937.67646988248,"Winter",291310.71119,72767.535407999996,120666.44296,2316.1457215,57683.455949000003,32574.310419000001,7142.0179539000001,816.33821894000005,3053.2304963000001]
[847,"2012-03-05","KW60MN08 ",7285602.9678054275,2735555.8860362154,2046993.6772807529,123864.11303519487,564698.09572026762,"Winter",245807.75774,58365.304558999997,104307.40063,2002.1402286,56224.269711000001,34949.067259000003,7891.4230134999998,1354.3257784,0]
[848,"2012-04-05","KW60MN10 ",7045952.519209953,2735147.5493551511,2075283.0547856528,119345.05169943449,540519.44287006347,"Summer",234214.94203000001,70237.905215000006,103049.62626999999,1977.9977359,43228.392284000001,34667.598499,8317.8510317,7467.6597125999997,0]
[849,"2011-11-30","KW60MN18 ",7851287.0597017622,2734831.5527947014,2018504.8667408216,123324.75728799999,593001.92876587994,"Winter",251266.50031999999,73156.648226000005,120201.16137,2307.2148210999999,55768.274012000002,35494.691469999998,8070.5983192000003,4955.8928413000003,3053.2304963000001]
[850,"2011-09-12","KW60MN14 ",7247010.6694590319,2734729.9269393892,1972854.9726344342,105564.48827099999,656310.46603395476,"Summer",193573.60750000001,96489.637335000007,156808.29316999999,3009.8745632999999,52895.501106999996,44542.540841000002,12518.963276,26961.440241,0]
[851,"2012-01-26","KW60MN08 ",7559420.6961153345,2734566.7026186478,1967297.8874947457,111497.88344332379,655770.93168057839,"Winter",268260.13741000002,68083.113010000001,110869.61129,2128.0993251999998,57501.057669000002,34967.422339999997,8842.4887455000007,742.46966563000001,0]
[852,"2012-02-20","KW60MN19 ",7818252.5773925502,2733677.869387337,2016834.3190727853,128429.32901721635,588414.22129733511,"Winter",246935.24465000001,59097.161100999998,93574.395971000005,1796.1243535999999,55996.271862000001,30134.461877999998,7774.4388302999996,747.06969021999998,3053.2304963000001]
[853,"2012-02-04","KW60MN09 ",7304139.9360486409,2733538.8968444616,1976604.0954929274,119367.52889822741,637567.27245330671,"Winter",308907.03619000001,61068.792336999999,84746.863815000004,1626.6832867000001,57501.057669000002,27084.736905000002,6643.7220803999999,747.06969021999998,0]
[854,"2011-12-27","KW60MN11 ",7530499.105029922,2732874.4927947018,2005653.0721832174,104508.43247,622712.98814148467,"Winter",282182.54089,73077.016724999994,106069.31107,2035.9594182999999,58002.652937999999,33436.889969999997,7896.3155534999996,816.33821894000005,0]
[855,"2012-03-21","KW60MN10 ",7325856.1294399574,2732656.4743321543,2049200.7767331584,107139.52034317311,576316.17725582293,"Winter",216164.68010999999,73379.898904999995,118427.11077,2273.1626058000002,49612.332072999998,37617.347650999996,9070.7807498999991,1354.3257784,0]
[856,"2011-12-03","KW60MN09 ",7261386.3285475522,2732502.3578762617,1995944.6004738351,104971.84038000001,631585.91702242685,"Winter",350588.82215000002,59268.745061000001,102053.56283,1958.8786832000001,58093.852078000004,28844.580728000001,6754.2037564000002,816.33821894000005,0]
[857,"2011-12-11","KW60MN12 ",7142997.8889825223,2732072.7595202834,1936623.3744513339,101716.74088,693732.64418894972,"Winter",331770.54515000002,58917.430654999996,92371.984861000004,1773.0445371999999,57683.455949000003,26337.652575,6711.9687790999997,816.33821894000005,0]
[858,"2011-11-01","KW60MN10 ",7369057.312550907,2731888.6549128024,2078599.7688543275,110078.67686000001,543210.20919847465,"Winter",185122.27273999999,69002.587790000005,130656.13545,2507.8940066,41085.212498000001,43914.421846999998,10174.160221,4955.8928413000003,0]
[859,"2011-12-12","KW60MN16 ",7714449.9162432645,2731762.222696885,1981275.3843952734,91557.847349999982,658928.99095161166,"Winter",248537.70665000001,78719.689249000003,128592.78691,2468.2888291999998,52986.700247000001,34369.829804000001,8974.4552739999999,816.33821894000005,2290.3469318000002]
[860,"2012-02-17","KW60MN09 ",7505801.9622037485,2731482.6975773051,1976912.9499169085,133319.60257805369,621250.14508234302,"Winter",268575.91132000001,72838.152749999994,117110.91379000001,2247.8987136999999,57820.254658999998,36414.520313000001,8273.1579340000008,747.06969021999998,0]
[861,"2011-12-13","KW60MN23 ",7097236.4825188583,2731460.0382958874,2005327.9148434428,99015.550170000002,627116.5732824445,"Winter",298563.06107,70586.116886999996,106941.55087000001,2052.701724,47742.749706000002,32780.709447000001,7641.9711971999996,816.33821894000005,3053.2304963000001]
[862,"2011-11-18","KW60MN17 ",7693281.9294221662,2731349.3732275767,2022844.4753807387,111007.77263599999,597497.12521083769,"Winter",232785.20499,76078.932627999995,126534.76673,2428.7859275000001,57501.057669000002,38639.168312000002,7120.0980219000003,4955.8928413000003,3053.2304963000001]
[863,"2012-04-02","KW60MN10 ",7297493.3077164888,2731089.2145537073,2032734.602186529,129332.54897552198,569022.06339165592,"Summer",222706.58635999999,72077.132750999997,105388.64705,2022.8943354999999,56406.667991000002,35046.090520999998,7842.4468264999996,7467.6597125999997,0]
[864,"2012-01-23","KW60MN13 ",7582638.2242104933,2731047.3565003891,2005615.859234815,109399.94083526022,616031.55643031397,"Winter",237538.95162000001,71464.873697000003,117339.11019000001,2252.2788552000002,58093.852078000004,37194.945294999998,9547.1770054999997,742.46966563000001,0]
[865,"2012-03-20","KW60MN10 ",7394096.9065934289,2729561.1674166727,2059358.5237423335,116288.13165478031,553914.51201955869,"Winter",173526.51063,73862.220700000005,117264.94722,2250.8553259,51071.518309999999,35911.642917999998,8483.6810454999995,1354.3257784,0]
[866,"2011-12-16","KW60MN20 ",7814435.6439386709,2729511.1684654616,1970199.882984055,108054.91682,651256.36866140645,"Winter",296488.68695,70106.394897000006,111995.00573999999,2149.7008366,57409.858528999997,31906.521510999999,7079.8945481000001,816.33821894000005,3053.2304963000001]
[867,"2011-08-29","KW60MN14 ",8587256.8462128732,2729327.8067393308,1899303.7066681713,138662.19830499997,691361.90176615969,"Summer",242768.73321000001,93875.391340999995,147279.17550000001,2826.9668336999998,53853.092076000001,43236.880292000002,12130.986559000001,38958.111083999996,0]
[868,"2011-08-08","KW60MN17 ",8689433.0346040465,2729310.8619959215,1919518.7980741304,135973.91230099997,673818.15162079094,"Summer",256842.11338,86124.374437999999,130341.20372,2501.8490139,56862.663690000001,38112.889951999998,9779.4185937000002,35669.012058,0]
[869,"2011-08-26","KW60MN12 ",8526788.4903976079,2729170.6186570968,1969027.4101160155,139591.69323899999,620551.51530208124,"Summer",191392.94028000001,99909.262310999999,134094.08037000001,2573.8840301999999,56133.070571999997,41668.280298999998,10457.616035999999,45876.317208,0]
[870,"2011-11-04","KW60MN10 ",7285395.7707852339,2729167.9564229446,2029897.2899451242,117752.54705400001,581518.11942382006,"Winter",178025.49932999999,78604.311222999997,137123.34422,2632.0295786000001,56953.862829999998,42099.420521,8674.4223841000003,4955.8928413000003,0]
[871,"2011-10-25","KW60MN10 ",7197561.4708321113,2728738.4096292397,2054791.2587168566,106584.934048,567362.21686438355,"Summer",187652.59750999999,70273.510341000001,138223.46681000001,2653.1460066,52941.100677000002,45498.035628999998,9025.9539115000007,19170.103298999999,0]
[872,"2011-08-03","KW60MN14 ",8085408.5532698799,2728567.9724099841,1979305.4141283911,130986.00200600001,618276.55627559288,"Summer",226086.50343000001,91081.765182999996,142330.91703000001,2731.9869256000002,51801.111428999997,41209.590790000002,11852.528245,27567.701894000002,0]
[873,"2011-07-05","KW60MN15 ",8728541.1607409418,2728420.3252247833,1909197.1771005709,142120.68746400002,677102.46066021232,"Summer",231282.80411999999,86568.597351000004,117055.49909,2246.8350500000001,55038.680892999997,40763.134199,9448.6693555999991,42524.577139000001,0]
[874,"2011-07-26","KW60MN18 ",8410138.1401940901,2727948.2360148309,1966281.223255428,130387.05268699999,631279.96007240261,"Summer",229172.08749999999,83175.706346999999,115171.93927,2210.6808473999999,56497.867130999999,38285.868427000001,8584.0001212000006,35488.980043000003,0]
[875,"2012-01-25","KW60MN09 ",7436776.8053047629,2727310.6902921805,1986169.926928319,114656.9413968088,626483.82196705288,"Winter",231896.63114000001,70622.265111999994,122495.87198,2351.2609041000001,55038.680892999997,36223.634561999999,9634.3285460000006,742.46966563000001,0]
[876,"2012-02-01","KW60MN19 ",7624012.6102781361,2727246.758044628,2005874.2761223386,128924.0702472772,592448.4116750122,"Winter",252807.48,75381.371668000007,112287.74357000001,2155.3198259999999,42681.197444999998,32564.757193000001,7988.1835700000001,747.06969021999998,3053.2304963000001]
[877,"2011-12-12","KW60MN15 ",7562222.5865578996,2726555.8689332576,1982748.1821018294,91590.528050000008,652217.15878142824,"Winter",222889.22099,77467.220818999995,132653.46333999999,2546.2319431999999,56771.464549999997,36383.294483999998,9246.3315134999993,816.33821894000005,0]
[878,"2011-12-23","KW60MN21 ",7728189.9825524306,2725499.4307592791,1966788.0364922734,106858.78655999999,651852.60770700593,"Winter",332828.06027000002,70837.356451,97213.222991999995,1865.9702315,56725.864979999998,27361.571419,7001.9457232000004,816.33821894000005,3053.2304963000001]
[879,"2011-12-19","KW60MN14 ",7698689.1219004234,2725365.5434676744,1951464.3568226991,95246.523480000003,678654.66316497512,"Winter",275972.61378000001,78003.976246000006,121906.42350999999,2339.9466688000002,53397.096376000001,37972.495825999998,9477.3541980000009,816.33821894000005,0]
[880,"2011-07-27","KW60MN16 ",8665590.8415514454,2725066.7313451068,1950606.9176365002,141471.55856999999,632988.255138607,"Summer",197247.38063,92854.831038999997,114271.00036000001,2193.3876733000002,56452.267561000001,40378.799139000002,10549.297832,34061.173271,0]
[881,"2012-02-23","KW60MN07 ",7418323.8712741435,2724989.1234614034,1992082.6521810056,113437.10885732154,619469.36242307641,"Winter",263108.35073000001,60342.408562999997,97161.603119000007,1864.9794079999999,57364.258958999999,35013.631866000003,8788.9349026,747.06969021999998,0.43819510810000001]
[882,"2012-01-04","KW60MN19 ",7699373.4548141193,2724658.7570443233,1982488.0319704013,121770.46397749377,620400.26109642803,"Winter",226170.95287000001,69788.980798999997,107495.36061,2063.3318878,47788.349276000001,34680.170632000001,7599.0455081999999,742.46966563000001,3053.2304963000001]
[883,"2011-12-22","KW60MN23 ",7334307.5124672782,2723422.0613199472,1983435.1543702569,101318.87364000001,638668.03330969042,"Winter",306766.38919999998,63805.867098000002,100071.79616,1920.8394381999999,56680.265411,32204.617498,7557.1558867000003,816.33821894000005,3053.2304963000001]
[884,"2012-01-02","KW60MN11 ",7244053.6689481856,2723363.506233694,1978248.1499352774,104448.41649852206,640666.93979989435,"Winter",320893.32396000001,54515.487265000003,89949.226095999999,1726.5406194,55221.079172999998,24402.407330999999,7369.3229861,742.46966563000001,0]
[885,"2011-08-28","KW60MN18 ",8191581.17404286,2722649.9976320597,1879616.2933118739,124783.97180500001,718249.73251518595,"Summer",291432.40402000002,78261.673546999999,103395.0545,1984.6280973999999,55312.278313000003,29881.083762999999,7938.7536810000001,43186.037833000002,0]
[886,"2011-08-04","KW60MN13 ",8188592.9234850146,2722148.9747449402,1955183.1109226043,130443.09194100001,636522.77188133588,"Summer",231871.93646,90826.918349,133012.53575000001,2553.1241992999999,55859.473151999999,40219.371222000002,11730.475458000001,32881.190251,0]
[887,"2012-01-19","KW60MN16 ",7649688.2846358465,2722057.3333314038,1926617.5526304368,114207.79921237828,681231.98148858873,"Winter",291214.11579000001,81113.292402999999,121202.56659,2326.4364073000002,47560.351427000001,34442.816485000003,8698.2316150999995,742.46966563000001,763.73168391000002]
[888,"2012-02-26","KW60MN10 ",7087351.6056369059,2721966.718743131,2001452.3428893613,129360.70912492172,591153.66672884813,"Winter",265492.95569999999,50644.871526000003,78616.243044000003,1509.0083912,55722.674442000003,25255.658230000001,5748.5379562999997,747.06969021999998,0]
[889,"2012-03-19","KW60MN12 ",7524433.6030015061,2721668.4652240318,2084087.2532878062,113887.8893347601,523693.32260146551,"Winter",156206.03471000001,69522.283800999998,114455.03942,2196.9202317999998,56725.864979999998,35250.095665000001,8577.7600160999991,1354.3257784,0]
[890,"2011-11-19","KW60MN19 ",7447242.7444452327,2721610.4352594228,1957676.5842830762,119302.50414400001,644631.34683234664,"Winter",320674.34682999999,70213.485037999999,105733.54938,2029.5146023,57227.460249999996,30386.436338,6881.9650711000004,4955.8928413000003,3053.2304963000001]
[891,"2011-08-08","KW60MN18 ",8597286.1684059054,2721130.6612670375,1913362.5672295776,130156.49425600001,677611.59978145966,"Summer",265376.91191999998,80156.293976000001,120230.06292,2307.7695754000001,57181.860679999998,37155.972188,9212.1209785999999,35652.563320000001,0]
[892,"2011-12-06","KW60MN13 ",7607970.3571074829,2721050.7895782823,2062553.577878511,95227.045849999995,563270.16584977123,"Winter",201011.67618000001,78004.331349999993,131936.39916,2532.4681735999998,58777.845627000002,37351.763486999997,10516.163994,816.33821894000005,0]
[893,"2011-07-11","KW60MN15 ",8508640.0211961139,2720879.5706936815,1921804.2960867728,132657.99326400002,666417.28134290874,"Summer",202493.02828,84002.181031999993,130947.20425,2513.4809598000002,54947.481754,42520.973050000001,10541.293704,34724.921886999997,0]
[894,"2012-01-26","KW60MN18 ",7797326.9418883054,2720666.729966356,1987630.9189698698,113325.91693300888,619709.89406347752,"Winter",284292.07047999999,75223.157907000001,114306.50623,2194.0691947999999,55859.473151999999,33936.086996999999,8069.4200460000002,742.46966563000001,3053.2304963000001]
[895,"2012-02-07","KW60MN20 ",7697079.7085405849,2720515.7277378663,1980608.2917321024,121995.15435973203,617912.28164603212,"Winter",263836.16541000002,75117.001317999995,111107.16787,2132.6591317000002,56771.464549999997,31215.644291000001,8035.4837645999996,747.06969021999998,3053.2304963000001]
[896,"2011-11-21","KW60MN17 ",7865873.0783579051,2720442.1771483156,1936842.4691618793,117269.645882,666330.06210443622,"Winter",252517.71499000001,85466.718406,117589.76194,2257.0900187000002,57592.256808999999,37883.924041999999,6923.7328022000002,4955.8928413000003,3053.2304963000001]
[897,"2012-01-15","KW60MN12 ",7007605.029053756,2720242.1222638683,1984979.418478101,110885.87286949321,624376.83091627399,"Winter",333595.05787999998,55915.133938999999,84916.931328000006,1629.9476669000001,55357.877883000001,24634.805965,6328.4816868999997,742.46966563000001,0]
[898,"2011-11-15","KW60MN19 ",7720936.4250243558,2720232.2894466654,1965386.5871526175,119601.464603,635244.23769104795,"Winter",254199.57091000001,69741.541576999996,125192.94676000001,2403.0302118999998,56497.867130999999,39020.335466999997,8241.1228021000006,4955.8928413000003,3053.2304963000001]
[899,"2011-12-10","KW60MN21 ",7530248.4940084815,2719711.3007731522,1936079.8680443617,102289.88171,681341.55101879011,"Winter",334944.03379000002,73128.638453000007,92168.929646999997,1769.1469709,57273.059820000002,26377.956470000001,7627.03964,816.33821894000005,3053.2304963000001]
[900,"2011-11-16","KW60MN19 ",7659103.1532069957,2719689.5937857763,1912131.7275056876,112761.619412,694796.24686808873,"Winter",300344.31041999999,79519.585821999994,121905.58147999999,2339.9305063000002,57820.254658999998,37708.791727999997,8258.9187801999997,4955.8928413000003,3053.2304963000001]
[901,"2012-02-20","KW60MN09 ",7499644.7359602116,2719562.7831813842,2015005.2460631304,110330.19102810735,594227.34609014634,"Winter",268093.71860000002,70320.633023999995,99617.096619000004,1912.1116563999999,56269.869280999999,28541.464618999998,6575.3416409000001,747.06969021999998,0]
[902,"2012-01-04","KW60MN07 ",7597142.8388189627,2719271.9335606219,1951886.1945168413,108831.00101857889,658554.7380252016,"Winter",262191.54226999998,59778.345535,97896.310110000006,1879.0818245999999,56908.26326,34440.083256999998,9233.8783908000005,742.46966563000001,2187.724463]
[903,"2012-02-05","KW60MN10 ",7133535.0175000252,2719252.3788623484,1946601.5054544683,115245.84071181066,657405.03269606968,"Winter",265674.39269000001,53536.758447,81455.142548999997,1563.4999697000001,56269.869280999999,24965.272938999999,6052.8420851999999,747.06969021999998,0]
[904,"2012-01-09","KW60MN21 ",7569706.8150281962,2718980.677368124,1996060.8010125966,113302.54565463253,609617.3307008947,"Winter",279904.25021000003,60089.883558000001,104947.58203999999,2014.4282631000001,53625.094226000001,33112.615509000003,7692.7791229000004,742.46966563000001,3053.2304963000001]
[905,"2012-01-23","KW60MN22 ",7377737.5748620983,2718965.2532957639,1934448.0211259981,103950.01282485155,680567.21934491419,"Winter",328449.89530999999,62682.481108,97499.953492000001,1871.4739125999999,58048.252507999998,33047.863312000001,7666.6539759999996,742.46966563000001,3053.2304963000001]
[906,"2011-12-01","KW60MN11 ",7383434.5073020943,2718825.2240328221,2033243.7677253655,94899.017070000002,590682.43923745689,"Winter",203088.08523,82809.429399000001,139069.8566,2669.3921313000001,57637.856378999997,37625.181481,10440.571714,816.33821894000005,0]
[907,"2011-11-21","KW60MN11 ",7574928.1818065597,2718748.6072174096,1939157.8327197684,118045.702932,661545.07156564132,"Winter",233115.60493999999,76825.994338000004,122386.94631,2349.1701180999999,58504.248206999997,39329.300521999998,9644.7704792999994,4955.8928413000003,0]
[908,"2011-09-12","KW60MN21 ",7066920.9354574839,2718717.3373260819,1946507.8818929808,117543.14666799999,654666.30876510113,"Summer",271887.25562000001,69201.728405000002,113592.05909,2180.3556582000001,54126.689494999999,38700.411910000003,9077.6557002999998,30125.233577999999,3053.2304963000001]
[909,"2012-01-03","KW60MN11 ",7500494.4774949374,2718647.2479363652,1993882.2617218222,108135.92770451879,616629.05851002433,"Winter",241285.69594000001,71963.392057000005,115746.68072,2221.7127872000001,57455.458099000003,34510.132012000002,9414.8448069999995,742.46966563000001,0]
[910,"2012-01-13","KW60MN13 ",7467537.7197604608,2718639.780286991,1984981.1520313474,101659.3847212399,631999.24353440409,"Winter",257014.02226,78860.245861999996,132520.12839999999,2543.6726306999999,57136.261109999999,37902.895726000002,9100.7945359999994,742.46966563000001,0]
[911,"2011-07-06","KW60MN22 ",8073491.0014861105,2718473.45454873,1929047.3677797096,142166.64123299997,647259.44553602033,"Summer",235380.35063999999,67818.186707000001,119986.12123999999,2303.0872091000001,55631.475301999999,36675.221590000001,8066.6165698000004,47873.665675999997,3042.6996786999998]
[912,"2012-02-08","KW60MN11 ",7509741.0085984431,2718242.4846239183,2023115.6644990011,107775.40771439482,587351.41241052258,"Winter",235016.77715000001,74783.173737999998,124893.28092,2397.2782419,38531.636581999999,35290.868088000003,10015.611457000001,747.06969021999998,0]
[913,"2011-07-07","KW60MN19 ",7897103.5564669641,2718171.4087730329,1936097.8041217681,142069.23609900003,640004.36855226487,"Summer",234186.82402,69007.496570000003,120344.09039,2309.9582884000001,54901.882184000002,38248.250500000002,7862.3487992,27322.912155999999,0]
[914,"2012-02-20","KW60MN11 ",7562662.0829966431,2717996.5549657177,2001347.1958495276,117372.90779596624,599276.45132022386,"Winter",263725.97203,72089.027906999996,100671.8036,1932.3563491,56133.070571999997,30004.927899999999,6523.1065829999998,747.06969021999998,0]
[915,"2012-01-09","KW60MN17 ",7729806.33578311,2717580.593111774,1982753.2474875003,107312.13014837736,627515.21547589614,"Winter",273515.76892,77937.673167999994,117777.82973,2260.6999071999999,53853.092076000001,35047.768341000003,8356.8779250999996,742.46966563000001,3053.2304963000001]
[916,"2011-12-16","KW60MN12 ",7627608.7078586873,2717434.7540674862,1976280.4717568525,100522.08628,640632.19603063399,"Winter",252550.70835,82844.076870999997,132006.94333000001,2533.8222415999999,58549.847777000003,36641.0985,8945.5063355999991,816.33821894000005,0]
[917,"2012-01-22","KW60MN21 ",7380814.1602918021,2717076.5492847376,2011102.4871873143,113392.15571776633,592581.90637965663,"Winter",302884.55546,63123.982099000001,76339.493436999997,1465.3070627,56452.267561000001,26147.125887999999,7026.8519674999998,742.46966563000001,3053.2304963000001]
[918,"2012-01-12","KW60MN14 ",7522367.3061300972,2715707.9501817273,1980986.7930304417,96805.101880306524,637916.05527097883,"Winter",231829.40437999999,80406.588740000007,134898.16143000001,2589.3180554,56178.670141000002,36933.948256999996,10082.519055999999,742.46966563000001,0]
[919,"2011-11-07","KW60MN19 ",7619597.4537956677,2715580.8507287283,1944219.8428317611,125117.77308899999,646243.23480796721,"Winter",296800.84675000003,61982.582251,128931.21905,2474.7849031000001,57045.061970000002,37317.677162,7865.8836166000001,4955.8928413000003,3053.2304963000001]
[920,"2011-11-20","KW60MN09 ",7138843.7223378029,2715136.0235187532,1942546.4844674442,117689.381003,654900.15804830915,"Winter",337034.68731000001,50503.453666000001,102689.3089,1971.0815832999999,54719.483904000001,28039.212841,6186.8045671999998,4955.8928413000003,0]
[921,"2011-09-10","KW60MN17 ",7382053.1965133883,2715125.3414520118,1941024.664969523,107184.81736,666915.85912248911,"Summer",269732.34294,85408.034782999996,129400.14826,2483.7858181000001,53761.892935999997,36040.822923,7579.2992852999996,38846.003979000001,0]
[922,"2011-12-20","KW60MN17 ",8020903.7019356713,2715101.8005914814,1991012.6400801046,95725.290459999989,628363.87005137664,"Winter",276920.07329999999,77360.011773999999,119588.23684,2295.4499719,42179.602176,34960.277704,8154.5197676999996,816.33821894000005,3053.2304963000001]
[923,"2011-11-18","KW60MN21 ",7404696.8376496583,2714689.1605765782,1987923.1000211437,115477.58025100001,611288.4803044342,"Winter",300638.55862999998,67092.378167999996,116548.54698,2237.1043002000001,56908.26326,35740.896544000003,6696.9356466999998,4955.8928413000003,3053.2304963000001]
[924,"2012-03-14","KW60MN12 ",7211672.7475924417,2714510.8033535769,2017357.518293537,118756.34647801869,578396.93858202128,"Winter",178795.17838,75290.609849,115629.20922999999,2219.4579674000001,55768.274012000002,37695.493338,8763.7577913000005,1354.3257784,0]
[925,"2012-01-08","KW60MN19 ",7583944.5863635894,2714410.0191158908,2004675.3696301894,124905.78880185299,584828.86068384873,"Winter",295649.64023999998,65854.385416999998,86440.312950000007,1659.1883882,55403.477453,26286.089088000001,6738.0939270999997,742.46966563000001,3053.2304963000001]
[926,"2011-11-29","KW60MN21 ",7541377.2452317988,2714002.004867129,1987854.7654846124,110553.12638,615594.11300251679,"Winter",296145.55812,66600.521609000003,114119.87207,2190.4868240999999,56771.464549999997,34962.171193000002,7561.7064564000002,4955.8928413000003,3053.2304963000001]
[927,"2011-12-07","KW60MN13 ",7506535.278227428,2713577.4928818867,2048360.2021295892,93247.565489999994,571969.7252622972,"Winter",220743.73044000001,81589.564589000001,136651.86812,2622.9797773,58093.852078000004,35608.031669000004,10087.252462,816.33821894000005,0]
[928,"2012-01-25","KW60MN20 ",7622497.1012746328,2713329.891281256,1955243.7098579963,119670.99935624501,638415.18206701463,"Winter",229670.52784,75544.889481999999,102908.33446,1975.2856942999999,57409.858528999997,34298.501237999997,7557.6028176999998,742.46966563000001,3053.2304963000001]
[929,"2011-11-07","KW60MN18 ",7666637.0354551021,2713226.5930516617,1951614.0557762168,117240.62786199999,644371.90941344504,"Winter",280407.30093000003,67010.283439000006,130341.23437999999,2501.8496024000001,57455.458099000003,37664.749538999997,7880.5917083000004,4955.8928413000003,3053.2304963000001]
[930,"2011-11-15","KW60MN18 ",7756990.7237515496,2712880.4282488097,1965080.9719933982,128959.10366799998,618840.35258741153,"Winter",226102.25291000001,75389.248210999998,125667.06056,2412.130643,55631.475301999999,39183.759533999997,8398.9503815000007,4955.8928413000003,3053.2304963000001]
[931,"2011-08-08","KW60MN15 ",8605288.6040214337,2712684.4139428139,1924321.5524635869,132944.48211699998,655418.37936222705,"Summer",203979.56309000001,85970.462086,135417.00865999999,2599.2771272999998,57364.258958999999,40623.526087999999,10490.851449,34963.025855,0]
[932,"2011-11-29","KW60MN12 ",7390248.7045457559,2712474.2800685149,2007461.7713013259,104164.58098899999,600847.9277781893,"Winter",203888.72271,80463.268681000001,126261.97482,2423.5497922,56862.663690000001,37069.435498999999,9852.8574795000004,4955.8928413000003,0]
[933,"2011-12-27","KW60MN19 ",7806042.717157077,2712052.3037147261,2005415.8078964148,105037.76995000002,601598.72586831148,"Winter",273677.68333000003,67106.418403999996,105564.96015,2026.2785974000001,57090.661540000001,30064.546252,6726.2502562,816.33821894000005,3053.2304963000001]
[934,"2011-09-07","KW60MN13 ",7880160.7504567709,2711932.3274398665,2016829.0623978211,113887.265163,581215.99987904541,"Summer",150961.56349999999,94209.938769,141673.70967000001,2719.3720841999998,40948.413787999998,41735.534273999998,10669.501949,35349.141342000003,0]
[935,"2011-11-21","KW60MN20 ",7745648.9100768277,2711620.4457239271,1927453.952106361,117849.28584599998,666317.20777156611,"Winter",310425.16535000002,61688.998634000003,114241.73388,2192.8259145000002,56543.466700999998,36439.252597999999,6464.2674428,4955.8928413000003,3053.2304963000001]
[936,"2012-02-29","KW60MN17 ",7527602.9955743458,2710848.9099519998,2026450.1373082187,114107.95627031164,570290.81637346919,"Winter",201040.34533000001,72773.718382000006,103517.94931,1986.9870155999999,57136.261109999999,31852.156356,7362.3870911000004,747.06969021999998,763.73168391000002]
[937,"2011-08-23","KW60MN13 ",8752023.9558670092,2710468.6243250575,1950881.6604372961,139637.94283700004,619949.02105076099,"Summer",235218.27724,90417.616064000002,127012.39047,2437.9537304999999,55585.875732,41837.574141999998,11096.686702000001,43196.101317000001,0]
[938,"2011-08-17","KW60MN17 ",8660426.7953735851,2710353.3956196597,1992171.9389862954,134559.67798199999,583621.77865136391,"Summer",229433.69209999999,99357.680921000006,114897.54402,2205.4139366999998,55540.276163000002,36302.594776999998,9743.4203347999992,40386.259702000003,0]
[939,"2012-01-30","KW60MN18 ",7704690.7431629216,2709478.5570316142,1968021.6495260973,121238.15328950368,620218.75421601336,"Winter",237648.18053000001,73689.934567999997,106027.49037,2035.156686,55175.479603,32728.921557000001,8016.7228212,742.46966563000001,3053.2304963000001]
[940,"2012-02-08","KW60MN18 ",7703674.5165024474,2709383.7557693692,1962991.3520246227,108559.95088438246,637832.45286036422,"Winter",258320.97482,84472.185083999997,121801.60661,2337.9347489000002,49977.128632,32720.706068,8395.3376898000006,747.06969021999998,3053.2304963000001]
[941,"2012-03-08","KW60MN10 ",7201571.8209984163,2708655.3093470754,2053468.3192069314,110640.87392525344,544546.11621489062,"Winter",206995.51452,77529.190352000005,125744.29011,2413.6130343,57136.261109999999,36911.405511999998,8830.6857051000006,1354.3257784,0]
[942,"2012-01-06","KW60MN17 ",7519340.4209577749,2708621.9181329757,1998054.5050071334,100621.01859112692,609946.39453471568,"Winter",250195.33424,78246.523010999997,116735.56685,2240.6940743,56041.871432,34360.623189999998,7922.5625907000003,742.46966563000001,3053.2304963000001]
[943,"2011-12-27","KW60MN09 ",7453339.9239091929,2708502.420661923,1986689.2130549354,104556.22172999999,617256.98587698757,"Winter",290104.43449000001,69532.784251999998,108465.6094,2081.9554383,58549.847777000003,31806.133668999999,7832.8716689000003,816.33821894000005,0]
[944,"2011-08-12","KW60MN17 ",8355420.7469524844,2708477.7286661556,1964060.759272363,135476.584306,608940.38508779253,"Summer",264172.04482000001,93257.71415,119850.90175,2300.4917233000001,56817.064120000003,36811.616581000002,8570.0030552999997,46299.591635999997,0]
[945,"2012-01-10","KW60MN22 ",7253766.8748129383,2708211.0667374888,1993403.5794329103,103793.05349361419,611014.43381096423,"Winter",291810.99569000001,65073.129353999997,99612.788858,1912.0289706000001,58002.652937999999,34160.832751000002,7451.0504102000004,742.46966563000001,3053.2304963000001]
[946,"2011-08-08","KW60MN16 ",8710972.1988258567,2708060.791386724,1913097.1507601871,137159.852205,657803.78842153668,"Summer",224152.35905,86173.965169000003,134509.44706000001,2581.8568332,57045.061970000002,39104.369028000001,10287.680689000001,35255.984433999998,0]
[947,"2012-01-26","KW60MN21 ",7490387.350953822,2708025.5229365542,1970646.5904431846,109538.70457660373,627840.22791676584,"Winter",273075.33457000001,70861.935700999995,105550.8058,2026.0069100999999,56269.869280999999,33807.703586000003,7527.7193869000002,742.46966563000001,3053.2304963000001]
[948,"2011-07-26","KW60MN17 ",8565301.1830846518,2707842.7355491421,1950964.7449023586,127321.99879699999,629555.99184978369,"Summer",194052.65244999999,88183.746704999998,120623.63991,2315.3241333999999,56589.066271000003,39937.916203000001,9486.2928176000005,35365.542681999999,0]
[949,"2011-12-02","KW60MN19 ",7748939.0693527022,2707546.482175923,1993934.5931476951,110438.78434700001,603173.10468122782,"Winter",232843.61373000001,74988.714244999996,119670.24116000001,2297.0240130000002,54993.081323999999,33816.418516999998,7149.2704258000003,816.33821894000005,3053.2304963000001]
[950,"2012-03-05","KW60MN19 ",7363280.419267538,2707231.0399843236,2010546.5174491431,114091.57746615243,582592.94506902806,"Winter",228431.13058,61177.590509000001,104358.768,2003.1262053,53305.897235999997,33164.303680999998,7334.0442190000003,1354.3257784,3053.2304963000001]
[951,"2012-01-21","KW60MN11 ",7442971.9511152664,2707022.0961744222,1963617.769346765,109569.57799379756,633834.74883385957,"Winter",285590.45938999997,61661.331109999999,88470.311270000006,1698.1534211000001,56497.867130999999,25940.903284,6569.4384280000004,742.46966563000001,0]
[952,"2011-11-16","KW60MN09 ",7348957.5229811426,2706940.6597732324,1932694.8678932579,105754.51368600001,668491.27819397475,"Winter",280707.99307999999,75744.007601999998,142630.59344,2737.7390983,49338.734653,39549.609825,11219.430200999999,4955.8928413000003,0]
[953,"2011-07-06","KW60MN12 ",8495408.4770770911,2706722.8480349807,1934048.2677887732,138983.55649800002,633691.02374820772,"Summer",193002.22777,81442.932658000005,126213.22886,2422.6141323000002,54901.882184000002,40986.739104,9872.1567713999993,40921.525517000002,0]
[954,"2011-12-29","KW60MN19 ",7588476.9247854594,2706450.7879064288,1974611.6482233144,108418.74544700001,623420.39423611434,"Winter",236362.26613,63237.692263999998,107527.6002,2063.9507143999999,55494.676592999997,29746.260308000001,6510.1388137000004,816.33821894000005,3053.2304963000001]
[955,"2011-07-28","KW60MN14 ",8776426.609329503,2706239.2965466236,1937919.2771124137,140710.51334200002,627609.50609220995,"Summer",193315.55342000001,89615.522991999998,129903.58963,2493.4491806000001,55859.473151999999,42961.777485999999,11277.389021999999,33676.845668000002,0]
[956,"2011-07-26","KW60MN16 ",8709876.9452271219,2705864.7411576021,1947406.8172407337,130736.779777,627721.14413986856,"Summer",175237.81998999999,89529.268253000002,122716.32944,2355.4924999999998,56497.867130999999,40150.261016999997,10475.554221,35855.553199000002,0]
[957,"2011-12-05","KW60MN13 ",7644538.2453260822,2705727.5169753716,2042796.239394634,94637.160840000011,568294.11674073746,"Winter",210183.92595,78473.853359999994,123385.21364,2368.3314734999999,57409.858528999997,37743.893118,9803.3294010000009,816.33821894000005,0]
[958,"2011-08-04","KW60MN20 ",7733711.1552494038,2705437.9601108865,1931111.8527466853,121982.737205,652343.37015920132,"Summer",263549.67534999998,83568.508381000007,115221.35732,2211.6294078000001,55221.079172999998,36507.573808000001,8382.9014967999992,33788.005894000002,0]
[959,"2012-01-13","KW60MN06 ",7411654.4959209142,2704164.7401820244,1942514.2743013198,106810.8179525634,654839.64792814106,"Winter",320432.77353000001,62406.593201999996,97568.636876000004,1872.7922636000001,57592.256808999999,34537.042343000001,8850.7163392000002,742.46966563000001,3053.2304963000001]
[960,"2012-02-22","KW60MN19 ",7494483.4561051661,2703961.910078038,1974403.2365042961,122280.28959063753,607278.38398310449,"Winter",231091.33027999999,75334.396810999999,104802.0555,2011.6349375,53989.890785000003,34282.066364999999,7978.3324659999998,747.06969021999998,3053.2304963000001]
[961,"2011-08-25","KW60MN22 ",7793564.1615309427,2703741.8505639723,1954321.1776066863,136664.00986200001,612756.66309528588,"Summer",261476.21270999999,82009.402675000005,105831.39279,2031.3926689,53989.890785000003,37686.990489000003,8635.2956083999998,51823.144013999998,3053.2304963000001]
[962,"2011-08-21","KW60MN18 ",8343137.2943670489,2703605.8778050239,1961505.1576944799,133958.49862299999,608142.22148754413,"Summer",257078.91732000001,72067.488725999996,95317.490055999995,1829.5823707,55403.477453,30873.975381,7965.2038684999998,40273.526860999998,0]
[963,"2012-01-03","KW60MN19 ",7652473.7992246291,2703440.8337908606,1975842.268172645,115732.86372096221,611865.70189725317,"Winter",277115.82896999997,62571.497686000002,106463.65201000001,2043.5286401000001,57181.860679999998,32752.374644,7685.6282272999997,742.46966563000001,3053.2304963000001]
[964,"2012-03-09","KW60MN08 ",7147049.3198246462,2703099.2009283402,2000102.2058885973,118875.52842973487,584121.4666100078,"Winter",262591.83981999999,61141.847198000003,108052.31053,2074.0223262999998,57090.661540000001,35216.521952000003,8623.7939067000007,1354.3257784,0]
[965,"2012-03-13","KW60MN21 ",7233688.8757187976,2702989.4207021939,1993717.9743581058,115936.39586681202,593335.05047727586,"Winter",267188.58977000002,61558.203343000001,89346.608045999994,1714.9735989000001,55722.674442000003,34245.699181000004,7017.0025574000001,1354.3257784,3053.2304963000001]
[966,"2012-02-01","KW60MN09 ",7424441.6164055299,2702913.2248528982,1987814.8503181983,126473.91550701178,588624.4590276879,"Winter",232383.21166999999,69859.235004000002,122196.30156000001,2345.5107658000002,47697.150135999997,35594.102283,9567.0654340000001,747.06969021999998,0]
[967,"2011-08-27","KW60MN16 ",8651052.5303355884,2702359.6380041209,1906536.5117363213,126614.92232300001,669208.20394479972,"Summer",296042.65655999997,86002.214101000005,109237.18596,2096.7655519999998,55312.278313000003,31483.36565,8814.7383955999994,46281.117065999999,0]
[968,"2011-09-13","KW60MN14 ",7293967.3407004448,2702225.6864147522,1946467.1531641381,104840.45608800001,650918.07716261386,"Summer",177297.74823999999,99619.064226000002,148650.57863999999,2853.2903869000002,54217.888635000003,44834.93449,12429.780231000001,24919.009045999999,0]
[969,"2011-12-02","KW60MN07 ",7473703.3875734713,2702156.82668084,1948087.8737963783,109754.39849000001,644314.5543944618,"Winter",283880.01912000001,61933.875262000001,120463.67264,2312.2536234999998,57455.458099000003,36822.065315,7970.8920809000001,816.33821894000005,1220.8681383999999]
[970,"2012-01-27","KW60MN13 ",7429842.7338974746,2702053.1244235276,2026832.0107015073,102470.86366513668,572750.2500568839,"Winter",192426.31185999999,73437.838579000003,123623.88048000001,2372.9125912999998,57820.254658999998,37372.571060000002,8566.5698131000008,742.46966563000001,0]
[971,"2012-01-06","KW60MN13 ",7284556.4367212448,2701521.3141802726,2025150.1923306792,108075.36786771052,568295.75398188317,"Winter",178350.26084,77203.221640000003,127550.79595,2448.2882156000001,54081.089925,37593.459658,9355.1388910999995,742.46966563000001,0]
[972,"2011-12-15","KW60MN13 ",7476673.7041206844,2701336.8399691554,1983752.3590099649,95821.188979999992,621763.29197919054,"Winter",250469.56174,85417.825026999999,128273.27253,2462.1558742000002,49703.531213000002,37343.253455999999,9624.6179549000008,816.33821894000005,0]
[973,"2011-11-08","KW60MN11 ",7464706.9004409993,2701180.2228288394,1990341.9457820568,124266.869872,586571.40717478283,"Winter",225637.12388999999,73627.622785,135411.97047999999,2599.1804213999999,54491.486054000001,40002.453904000002,10604.209396,4955.8928413000003,0]
[974,"2012-02-16","KW60MN13 ",7383298.7993936837,2701084.7362977862,2015632.7157414348,109278.86968231632,576173.15087403497,"Winter",166362.00174000001,82410.111782000007,116041.64298999999,2227.3744740000002,57136.261109999999,38239.476891999999,9216.4243819999992,747.06969021999998,0]
[975,"2012-01-05","KW60MN09 ",7452352.2778437184,2701079.0994793419,2005031.7496932959,117353.9358003681,578693.41398567811,"Winter",207043.64264999999,63147.467117,114815.43210999999,2203.8378303,44778.777661,35560.485209999999,9142.6841573999991,742.46966563000001,0]
[976,"2012-01-20","KW60MN07 ",7423268.8099972056,2701023.1137290318,1885233.3958992872,106498.36793035187,709291.34989939246,"Winter",303266.50686999998,64630.627326000002,108485.25872,2082.3325992999999,54035.490355000002,32464.779910000001,9075.1163188999999,742.46966563000001,1882.4014127]
[977,"2012-01-02","KW60MN10 ",7219840.4924752973,2701006.7860921798,1967703.7486646944,104131.9388363203,629171.09859116492,"Winter",317179.77438000002,54285.275919,90035.965446000002,1728.2055476999999,54947.481754,23853.860194000001,7561.7877172999997,742.46966563000001,0]
[978,"2012-03-05","KW60MN20 ",7292591.1354271229,2700395.9241125449,1999748.3275618351,113053.36572769331,587594.23082301626,"Winter",248294.98871000001,63667.876548,102829.96146000001,1973.7813547999999,55585.875732,33094.896478000002,7275.1051964999997,1354.3257784,3053.2304963000001]
[979,"2012-02-13","KW60MN20 ",7548911.2942944979,2700099.5904283533,1997342.2050480798,132513.76118520866,570243.62419506488,"Winter",286770.15487999999,59960.965011,105002.46026000001,2015.4816294,56953.862829999998,34035.884273999996,7596.3182135999996,747.06969021999998,3053.2304963000001]
[980,"2012-02-17","KW60MN10 ",7457583.7679822911,2699662.2055685762,1944844.5106889869,128726.86351481045,626090.83136477892,"Winter",238130.03409999999,76134.867012999995,114869.16562,2204.8692242000002,57409.858528999997,37037.192485,8559.8827770000007,747.06969021999998,0]
[981,"2012-01-03","KW60MN18 ",7696638.5267518554,2699619.583168122,1972618.4869298665,110130.70885504567,616870.38738320989,"Winter",243876.2948,65226.627151000001,109876.98097,2109.0461699000002,56953.862829999998,33099.387398999999,7913.3395600000003,742.46966563000001,3053.2304963000001]
[982,"2012-01-30","KW60MN11 ",7525264.0769859878,2699582.6619513072,1991673.881741893,121198.20820655227,586710.572002862,"Winter",222085.54172000001,73838.631240000002,117803.60039000001,2261.1945651999999,55266.678742999997,35148.585918999997,8749.2833226999992,742.46966563000001,0]
[983,"2012-02-29","KW60MN22 ",7173113.9018209185,2699563.9874930354,1990477.3655103438,115053.92982013898,594032.6921625525,"Winter",261489.27015999999,66337.619877000005,92560.150941,1776.6563123999999,57409.858528999997,30302.970673,6998.6038984999996,747.06969021999998,3053.2304963000001]
[984,"2012-03-07","KW60MN11 ",7267433.3401951334,2699229.8349868199,2044267.7412471522,110735.48430505198,544226.60943461582,"Winter",144078.02280999999,80485.180640000006,119841.68798,2300.3148683999998,53716.293365999998,36351.029407000002,9262.5327613999998,1354.3257784,0]
[985,"2011-08-05","KW60MN17 ",8362973.6122124195,2699138.1924802801,1892030.8254141021,131402.41882999998,675704.94823617826,"Summer",237711.78257000001,93894.473721999995,128771.62152,2471.7214904000002,54947.481754,36973.305158000003,8449.1082260000003,32051.811461000001,0]
[986,"2011-08-25","KW60MN11 ",8551505.4539347738,2698972.2916844906,1976835.5548588585,141258.43547099998,580878.30135463225,"Summer",162022.299,95120.373680000004,128965.32792,2475.4396099000001,49338.734653,40471.739713000003,12045.866522,44840.339613999997,0]
[987,"2012-02-29","KW60MN16 ",7409292.9552252749,2698785.2962003173,2022440.4937290614,113036.20051948031,563308.60195177549,"Winter",193581.0159,74806.099589000005,106981.55282,2053.4695459999998,57136.261109999999,32841.360484999997,8123.4546781999998,747.06969021999998,0]
[988,"2011-11-29","KW60MN17 ",7753256.139398667,2698677.3059020764,1988789.0749350372,106567.783171,603320.44779603917,"Winter",239472.79923999999,85462.357545000006,122688.44227,2354.9572165,56999.462399999997,37176.844319999997,8391.9010610000005,4955.8928413000003,3053.2304963000001]
[989,"2011-12-24","KW60MN09 ",7287736.1054139156,2698621.8415529854,1965756.4285719336,113467.46163000001,619397.95135105157,"Winter",339102.68109000003,53475.752995000003,82909.273539000002,1591.4114517999999,56041.871432,17660.684088000002,6493.0538613999997,816.33821894000005,0]
[990,"2011-11-15","KW60MN20 ",7623363.6789474385,2698612.8219063496,1934434.4909790086,114890.32910599999,649288.00182134076,"Winter",264422.11816999997,66741.256576999993,124769.53524,2394.9029915000001,57820.254658999998,38781.570701999997,8174.6316617000002,4955.8928413000003,3053.2304963000001]
[991,"2012-04-12","KW60MN08 ",7006681.8973399689,2698472.4011334823,2029147.8719642246,129021.64011109264,540302.88905816549,"Summer",238159.81609000001,52779.814904999999,101395.36461,1946.244823,54856.282614000003,34484.171734000003,8972.4186910999997,7467.6597125999997,0]
[992,"2011-11-18","KW60MN12 ",7451390.7446310753,2698451.781799484,2011765.5201388798,106343.153055,580343.10860560427,"Winter",211003.06855,70043.006557999994,135806.85798999999,2606.7601344999998,57227.460249999996,40070.040771,8684.6408508000004,4955.8928413000003,0]
[993,"2012-01-25","KW60MN18 ",7713984.1176181752,2698404.7917923592,1969366.06514129,97722.554139648535,631316.17251142068,"Winter",260271.98152999999,80764.720807999998,106401.24086000001,2042.3306822,57546.657239,35196.935543,7927.1334755999997,742.46966563000001,3053.2304963000001]
[994,"2012-01-22","KW60MN09 ",6979554.2278031595,2697895.9665091331,1992170.8839594354,113034.51922334798,592690.56332634983,"Winter",273560.46309999999,50704.663842000002,82662.95435,1586.6834501999999,55950.672292000003,25299.198338999999,6574.5578189999997,742.46966563000001,0]
[995,"2012-02-06","KW60MN21 ",7584757.877450075,2697770.351070297,1955395.976810514,114600.07129683651,627774.30296294671,"Winter",246083.20408,65492.904774000002,95048.404439000005,1824.4173762999999,58230.650787999999,29983.71902,7585.8712020000003,747.06969021999998,3053.2304963000001]
[996,"2012-02-01","KW60MN20 ",7539122.3149249498,2697758.8996181334,1982867.9209786728,129032.53163131987,585858.44700814085,"Winter",251955.34405000001,75430.846709000005,111741.31462,2144.8313334999998,43365.190993999997,31622.662609999999,7659.6893019999998,747.06969021999998,3053.2304963000001]
[997,"2012-01-20","KW60MN21 ",7303982.5763266478,2697704.8341659959,1912978.3935345854,106181.14856601997,678545.29206539085,"Winter",317626.90703,68347.957366000002,107775.97837,2068.7182372000002,53260.297666999999,30008.864643000001,7178.3006240000004,742.46966563000001,3053.2304963000001]
[998,"2012-02-14","KW60MN17 ",7343444.7059880653,2697285.5181209324,1968316.9471357574,102401.53596381505,626567.0350213598,"Winter",236525.2616,75633.578525999998,122704.90455000001,2355.2732034999999,56452.267561000001,34029.013466999997,7806.5247492999997,747.06969021999998,1883.2495328]
[999,"2011-11-30","KW60MN21 ",7579704.8400081061,2697271.1005534451,1987727.3287740732,117892.47793600001,591651.29384337179,"Winter",294787.58402000001,68083.307432999994,116027.43524000001,2227.1017618000001,56908.26326,34385.440299000002,7545.7185163000004,4955.8928413000003,3053.2304963000001]
[1000,"2012-02-29","KW60MN15 ",7371381.436743821,2697185.5341856205,2022223.594199422,108182.87275816019,566779.06722803845,"Winter",175051.56065,76560.410852000001,112997.72138,2168.9475756000002,56589.066271000003,34088.722821000003,8617.2389198000001,747.06969021999998,0]
[1001,"2012-01-23","KW60MN14 ",7578183.4051089184,2697168.7237053094,1984145.2808365114,104115.3975289283,608908.04533986992,"Winter",204727.76942,70255.819451000003,119592.9109,2295.5396887000002,57911.453798000002,37628.234989999997,9299.4553551000008,742.46966563000001,0]
[1002,"2012-02-16","KW60MN20 ",7582328.1936670924,2696969.6632132418,1980409.7016574,126634.99821519657,589924.96334064496,"Winter",263160.00818,75401.729850000003,103743.08566,1991.3084208,48335.544114999997,34774.951088000002,7507.5837922000001,747.06969021999998,3053.2304963000001]
[1003,"2011-12-09","KW60MN22 ",7411606.2478225483,2696855.1753610279,1932890.9741227534,96142.89304000001,667821.30819827446,"Winter",341070.28516999999,71522.720176000003,118647.48406,2277.3925859999999,56543.466700999998,32013.845862999999,7019.3760313000002,816.33821894000005,3053.2304963000001]
[1004,"2012-03-14","KW60MN07 ",7176206.1224569175,2696835.0225121006,1962258.8730217919,101379.66615120537,633196.48333910317,"Winter",269807.39143999998,63085.425277000002,111434.27993999999,2138.9379214999999,54582.685193999998,36597.025653999997,9199.7389592,1354.3257784,0]
[1005,"2012-03-06","KW60MN12 ",7197956.9284208119,2696376.1069299611,2052800.2680933005,108945.88746230611,534629.95137435442,"Winter",175039.07553,72549.620918999994,121876.57888,2339.3738125,50889.120030999999,36763.126278999996,9363.1294751000005,1354.3257784,0]
[1006,"2012-03-13","KW60MN20 ",7345418.9286309564,2696245.5413117614,1990840.4269353892,121327.12339159909,584077.99098477338,"Winter",254872.90891999999,62014.379256,90554.304904000004,1738.1548732000001,55813.873582,34152.377675999996,7238.7920545999996,1354.3257784,3053.2304963000001]
[1007,"2012-03-23","KW60MN07 ",7033732.5463233711,2696087.6367076421,1994244.1453807352,108147.78589438033,593695.70543252688,"Winter",312888.78269000002,59827.674357000004,106261.427,2039.6470092,57181.860679999998,37025.282042999999,8694.4648674,1354.3257784,0]
[1008,"2012-02-23","KW60MN10 ",7324151.0317964749,2696034.1972046089,1999581.7394644581,112578.61368161488,583873.84405853588,"Winter",196959.32199,79547.777163999999,117634.86109000001,2257.9556794999999,57364.258958999999,36576.091159000003,9669.8731028999991,747.06969021999998,0]
[1009,"2011-09-13","KW60MN20 ",7273929.1970201833,2695711.745678992,1932303.7566645129,125215.73432,638192.25469447917,"Summer",263977.62458,84190.417889000004,122743.64201,2356.0167541999999,44915.576371000003,39249.845419999998,9226.0774139999994,27419.649861000002,2137.6854072000001]
[1010,"2012-03-13","KW60MN12 ",7224025.004878317,2695640.1328323265,2045862.6420046084,116983.68364782803,532793.80717989022,"Winter",168469.46460000001,74453.750402000005,118799.28766,2280.3063972999998,57273.059820000002,36919.998526000003,8682.3046207999996,1354.3257784,0]
[1011,"2011-08-12","KW60MN18 ",8249925.4963846328,2695503.3102555536,1954442.176335474,138278.287782,602782.84613807965,"Summer",259055.81635000001,90068.899856000004,113330.68737,2175.3387290000001,56589.066271000003,36391.077621999997,8330.8137227999996,46634.624269,0]
[1012,"2011-07-30","KW60MN20 ",8081274.9234758588,2695245.6187090953,1920508.9221474945,138390.20481900001,636346.49174260057,"Summer",249461.39358,76751.707060000001,94232.183447000003,1808.7503299,55540.276163000002,30328.543986000001,7368.2462890999996,39510.714945,0]
[1013,"2012-01-05","KW60MN21 ",7409894.6607638365,2695208.7704398176,1992283.1378928707,110586.56309199461,592339.06945495238,"Winter",282768.52545999998,63074.687018999997,104932.83368,2014.1451741999999,34974.870129000003,33257.860867000003,7343.5431950000002,742.46966563000001,3053.2304963000001]
[1014,"2011-11-15","KW60MN09 ",7389931.0622761929,2695141.0053804633,1931977.9610215023,117965.73257099999,645197.31178796117,"Winter",235784.05033,68985.939713999993,136939.61944000001,2628.5030526,55722.674442000003,40379.832087000003,10712.244801999999,4955.8928413000003,0]
[1015,"2012-01-08","KW60MN20 ",7502283.3951498847,2694882.6917285547,1979256.3372481656,123850.18897723581,591776.16550315334,"Winter",280146.33224999998,62986.645516999997,83390.979747000005,1600.6576161999999,55722.674442000003,25930.224468,6875.2001607000002,742.46966563000001,3053.2304963000001]
[1016,"2011-12-08","KW60MN13 ",7533798.1505388496,2694555.7016272498,2018938.5883728983,91864.349419999999,583752.76383435156,"Winter",192565.31215000001,84287.989333999998,128019.9492,2457.2934307,49247.535514000003,36757.151493999998,9959.1661062999992,816.33821894000005,0]
[1017,"2011-09-13","KW60MN19 ",7259295.4144972069,2694248.909919512,1925190.2870917795,112655.65201400001,656402.97081373248,"Summer",281695.70598999999,83367.27089,130878.97398,2512.1713061,53077.899386999998,39839.224102,9141.3839939000009,26639.604391000001,0]
[1018,"2011-07-11","KW60MN19 ",8112924.6939022681,2693653.1137742675,1893300.6807424498,142825.83647400001,657526.59655781765,"Summer",236662.54493,68935.177624999997,117566.05312,2256.6349371000001,54901.882184000002,38044.221942999997,7794.8825359000002,22685.103590999999,0]
[1019,"2011-12-15","KW60MN22 ",7499691.6268989779,2693457.9864220284,1933349.5533082362,96059.387839999996,664049.045273792,"Winter",329985.52269999997,70445.692032000006,106100.25231,2036.5533235,57409.858528999997,33910.202244,6963.6315494999999,816.33821894000005,3053.2304963000001]
[1020,"2011-12-28","KW60MN18 ",7779524.2024346841,2693329.2561906241,1965823.6637339082,109099.03756700001,618406.55488971609,"Winter",221327.5423,73008.436807999999,111317.56355000001,2136.6975957,56589.066271000003,30514.169753999999,6631.9681342000003,816.33821894000005,3053.2304963000001]
[1021,"2012-02-02","KW60MN11 ",7441905.4240242913,2693142.7742698588,2000974.6350178407,113347.98737197425,578820.15188004402,"Winter",212816.47396999999,79521.168522000007,127411.63592,2445.6170926,54309.087775,35213.453609999997,9763.0395891000007,747.06969021999998,0]
[1022,"2011-08-17","KW60MN18 ",8526796.4008644093,2692709.4713105159,1972305.31480155,135318.42261800001,585085.73389096605,"Summer",255810.81912999999,90932.170308000001,108571.98969,2083.9973666999999,55221.079172999998,36030.781110000004,8877.8369232000005,39924.232876000002,0]
[1023,"2011-07-30","KW60MN15 ",8478918.4376524892,2692317.8803702593,1914123.4916958266,141559.002698,636635.38597643247,"Summer",268480.40756999998,85540.947839,106746.88635,2048.9652136999998,54765.083473999999,31713.855392000001,7996.6515577999999,39793.462680999997,0]
[1024,"2011-09-06","KW60MN13 ",7639300.5346158305,2692303.4653135343,1987989.8466898724,113280.43384,591033.18478366197,"Summer",157272.67520999999,90255.472066000002,136651.15757000001,2622.9661384999999,56041.871432,42333.353427000002,10857.375479,32283.825761,0]
[1025,"2011-10-28","KW60MN10 ",7238889.5990329999,2692163.3362787296,1974054.8542793717,112131.04115399999,605977.44084535807,"Summer",217724.86439999999,75496.384950000007,140819.07847000001,2702.9677686999999,57729.055519000001,43015.906697999999,9576.5931901000004,19170.103298999999,0]
[1026,"2011-07-24","KW60MN16 ",8814645.4590228014,2691818.8468577811,1930771.9505890252,127476.702601,633570.19366775604,"Summer",228590.72391,68046.542195999995,99950.592652000007,1918.5129838,55129.880033000001,30293.016303,7315.2849684000003,39704.75776,0]
[1027,"2011-12-07","KW60MN22 ",7423908.2520222096,2691538.1078865589,1958970.1732625293,96888.457689999996,635679.4769340296,"Winter",344149.94462999998,68746.553528999997,112217.71119,2153.9755814999999,56999.462399999997,32794.642083999999,7910.1297832999999,816.33821894000005,3053.2304963000001]
[1028,"2012-02-21","KW60MN09 ",7484624.5248572379,2691365.9540772582,1956860.6291601644,113488.38461852148,621016.9402985723,"Winter",252000.67415000001,71835.256022999994,116571.63516000001,2237.5474687999999,57090.661540000001,36336.691825000002,9497.5812114,747.06969021999998,0]
[1029,"2011-08-28","KW60MN17 ",8266395.5828415127,2691276.9023604649,1855573.5344696047,124501.09968499999,711202.26820586016,"Summer",296098.09769999998,73798.482078000001,104639.35625,2008.5119883,55631.475301999999,30048.447351999999,7863.8521118999997,42635.014919000001,0]
[1030,"2012-02-13","KW60MN11 ",7412815.5345341675,2691228.0996887861,2009353.4028497306,118512.74111865209,563361.95572040335,"Winter",231484.70696000001,71042.435805999994,120812.41136,2318.9475284,54354.687344999998,37513.866126000001,9513.6707265000005,747.06969021999998,0]
[1031,"2011-08-24","KW60MN22 ",7924073.0586105268,2690960.4522222001,1957466.7528395532,135430.83426199999,598062.86512064713,"Summer",226044.91462,79252.941848000002,103534.48358,1987.3043845,50797.920891000002,37226.957998999998,8648.4800722,52530.667992000002,3053.2304963000001]
[1032,"2011-08-12","KW60MN15 ",8247677.3071454698,2690784.7813198157,1951173.7857385322,136764.565233,602846.43034828361,"Summer",236088.82292000001,103034.96303,123278.86734,2366.2901975,56817.064120000003,39256.442584999997,9538.2383860000009,47273.751205,0]
[1033,"2012-04-04","KW60MN10 ",7006497.345085755,2690594.1979340971,2038811.9433646116,111198.20327514347,540584.05129434215,"Summer",205098.29556999999,70299.101876999994,114303.41714000001,2194.0099008000002,49475.533363000002,35226.959767,8633.7194995999998,7467.6597125999997,0]
[1034,"2011-11-22","KW60MN18 ",7674237.1247053146,2690526.6119978637,1965800.8265526039,119619.16518700001,605106.6202582597,"Winter",220505.66527,69696.637887999997,111194.71491,2134.3395635000002,56817.064120000003,37696.970200999996,6516.7412032000002,4955.8928413000003,3053.2304963000001]
[1035,"2011-11-09","KW60MN08 ",7447762.4354731794,2690208.7269365294,1984196.6132668497,133932.19511500001,572079.91855467949,"Winter",259964.89845000001,57822.981562000001,124568.36022,2391.0415146999999,52257.107128000003,40303.346655000001,10020.39565,4955.8928413000003,0]
[1036,"2011-11-08","KW60MN18 ",7782464.4702540264,2690161.6743062562,1984339.9720416365,124137.51502399999,581684.18724061956,"Winter",278639.57536000002,76336.858095000003,125910.89982000001,2416.8110431999999,56634.665841000002,38345.709419999999,8180.7871201999997,4955.8928413000003,3053.2304963000001]
[1037,"2012-03-12","KW60MN12 ",7167618.9627411114,2689366.7488254965,1986288.3905017073,118571.63878410083,584506.71953968832,"Winter",200584.68083,76942.230395000006,120540.79609,2313.7339783000002,53898.691644999999,36263.615448999997,8927.0738194999994,1354.3257784,0]
[1038,"2012-02-10","KW60MN08 ",7387781.9774690196,2689190.8082187725,1946864.9219668657,115934.41334383265,626391.47290807427,"Winter",244562.3511,68238.786416999996,116259.59467999999,2231.5579724999998,56452.267561000001,36167.700426000003,9302.4958399999996,747.06969021999998,0]
[1039,"2012-02-08","KW60MN12 ",7438640.806563084,2689147.7390426463,1984808.8298483233,107722.11436427101,596616.79483005195,"Winter",235556.17038,75316.950154999999,128625.21345,2468.9112441000002,45964.366478999997,35071.132517999999,9863.9156346,747.06969021999998,0]
[1040,"2012-01-21","KW60MN21 ",7404779.6448098226,2688990.3627161784,1984864.1172766108,109060.5266461955,595065.71879337216,"Winter",281840.22814999998,68428.260511,76519.384804000001,1468.760008,55813.873582,26051.847204000002,7145.8168672000002,742.46966563000001,3053.2304963000001]
[1041,"2011-12-22","KW60MN16 ",7599792.9011465609,2688771.6060816008,1993271.8896899046,96843.395730000004,598656.32066169626,"Winter",245262.76845999999,77512.972899,117144.36884,2248.5408704000001,57090.661540000001,36707.896866000003,8691.1213499999994,816.33821894000005,2137.6854072000001]
[1042,"2012-02-06","KW60MN12 ",7488514.9079263406,2687962.8973025768,1974697.7255108953,115353.36130708341,597911.81048459816,"Winter",199682.57260000001,75494.620681,119312.21092,2290.1517610999999,56999.462399999997,33966.377334999997,9545.5518025000001,747.06969021999998,0]
[1043,"2012-01-26","KW60MN09 ",7524110.8222297681,2687779.3901938652,1956305.7408572743,108838.78776035241,622634.86157623841,"Winter",244368.55617,77713.874569000007,113829.63151000001,2184.9157688999999,57136.261109999999,35205.245906999997,9157.9204399999999,742.46966563000001,0]
[1044,"2012-01-16","KW60MN06 ",7088314.5604121834,2687616.9639152987,1943719.9007327582,109861.83172036211,634035.23146217805,"Winter",321777.46760999999,58525.909241000001,89664.206988000005,1721.0697878000001,57774.655089,30980.129653,6884.9310671000003,742.46966563000001,3053.2304963000001]
[1045,"2012-01-14","KW60MN08 ",7224013.6389788808,2687391.4519366398,1940436.1064525486,110858.50318906321,636096.84229502827,"Winter",325752.73838,62366.116252,91193.669769,1750.4272346,55403.477453,27576.926643999999,7497.8156418999997,742.46966563000001,0]
[1046,"2011-08-02","KW60MN13 ",7945462.2248957418,2687340.0818058173,1951719.0814135708,134365.79645600004,601255.20393624646,"Summer",188445.42384,104904.88048000001,128330.57236000001,2463.2557222,57181.860679999998,40181.266385000003,11989.167233,29999.627295999999,0]
[1047,"2011-08-28","KW60MN19 ",7982482.9879193697,2687299.6820761273,1855017.875536469,126826.51164300001,705455.29489665839,"Summer",280439.78555999999,76647.377405000007,98039.234995999999,1881.8252126,55038.680892999997,29301.105963999998,7894.2231031000001,43592.602319999998,0]
[1048,"2011-11-19","KW60MN20 ",7365365.9654924236,2686496.5838027745,1928736.2039909204,114518.48090900001,643241.89890285442,"Winter",328744.29190000001,68441.143849,106098.18392,2036.5136215,57273.059820000002,29606.469857,6794.6103804000004,4955.8928413000003,3053.2304963000001]
[1049,"2011-07-05","KW60MN21 ",8248863.1499262154,2686495.6550876061,1886068.6165571129,145881.64691499999,654545.39161549346,"Summer",240247.94714999999,63244.590264999999,106174.86195999999,2037.9854267000001,54719.483904000001,35456.986096000001,7498.6891886000003,44739.641559000003,265.39075265999998]
[1050,"2011-08-17","KW60MN16 ",8591342.9494924378,2686213.7895578519,1979208.8046002707,134979.01162899999,572025.97332858108,"Summer",199734.56920999999,98457.248351999995,122960.81495,2360.1853047,55540.276163000002,36826.819660000001,10944.567650000001,41861.475928,0]
[1051,"2012-02-07","KW60MN12 ",7481060.7738685431,2686116.7836468928,1993700.9578209745,109547.72091151308,582868.10491440538,"Winter",180095.77179999999,81706.597620999994,116437.25885,2234.9681675000002,56680.265411,33981.101199999997,10008.143985999999,747.06969021999998,0]
[1052,"2012-02-26","KW60MN19 ",7349656.574111497,2685719.9455412556,1973758.5754698715,133401.41391267316,578559.95615871099,"Winter",249848.46411,65558.642258000007,81101.398375000004,1556.709987,55084.280463000003,27005.850772000002,6570.7233544999999,747.06969021999998,3053.2304963000001]
[1053,"2012-02-06","KW60MN18 ",7726846.231997259,2685641.1061862116,1962996.8355675358,109405.19097800036,613239.07964067534,"Winter",244638.54425000001,70993.489403,106836.89496000001,2050.6928942,52941.100677000002,30383.494358,8187.3658078999997,747.06969021999998,3053.2304963000001]
[1054,"2011-11-01","KW60MN07 ",7234333.6233594883,2685463.6587266182,2001730.6939429047,111964.83902900001,571768.12575471366,"Winter",267474.89964999998,55856.840769000002,120608.94012,2315.0419768000002,42134.002606000002,41874.789126999996,10360.550754,4955.8928413000003,0]
[1055,"2011-12-09","KW60MN14 ",7388762.1440412048,2685084.8403301453,1944197.8171627654,89806.847599999994,651080.17556737992,"Winter",244940.31745,79023.908288000006,143318.73905999999,2750.9477874999998,58093.852078000004,36716.259827000002,9020.6110549999994,816.33821894000005,0]
[1056,"2011-11-11","KW60MN09 ",7386192.851321158,2684659.5892465459,1933589.4160748885,116492.560255,634577.6129166577,"Winter",288748.11377,69042.105479000005,124773.57971000001,2394.9806233999998,57045.061970000002,40205.351635999999,7243.3900258000003,4955.8928413000003,0]
[1057,"2012-01-22","KW60MN14 ",7012346.2449574852,2684492.5295687756,1993494.2548013257,119789.79098663217,571208.48378081748,"Winter",291194.83698000002,48139.203570999998,78414.781524000005,1505.1414152,55494.676592999997,24662.175937,6554.8928560000004,742.46966563000001,0]
[1058,"2012-01-14","KW60MN19 ",7455101.6069638878,2684457.8796799239,1983816.8429378776,109778.41160254678,590862.62513949943,"Winter",285526.36982000002,68964.180401000005,85979.644669000001,1650.3460385999999,55494.676592999997,26430.528063000002,7275.6300018000002,742.46966563000001,3053.2304963000001]
[1059,"2012-01-11","KW60MN15 ",7402594.4083668729,2684435.1944281654,1960986.8292373286,92681.70045846999,630766.6647323668,"Winter",233936.93083999999,78703.378601000004,125581.36659999999,2410.4857806,57273.059820000002,35493.951163999998,9721.0534707999996,742.46966563000001,0]
[1060,"2011-07-26","KW60MN19 ",8150512.4963782877,2684369.9776314162,1929545.2653410935,131769.44944699999,623055.26284332259,"Summer",246872.35271000001,76307.379704999999,113275.90216,2174.2871479999999,56178.670141000002,37853.886541,8290.1430039000006,35960.038611000004,0]
[1061,"2012-01-21","KW60MN10 ",7386375.9960599244,2684134.1763230017,1930865.9689505072,111770.27294045748,641497.93443203683,"Winter",297117.25659,61201.686112000003,90612.490395000001,1739.2717212,56452.267561000001,25477.220601000001,6746.6465602999997,742.46966563000001,0]
[1062,"2012-02-02","KW60MN19 ",7687247.7286243858,2684089.2537483936,1962719.0872224518,123284.28048803164,598085.88603791001,"Winter",246268.81690999999,73986.285097999993,109181.02843999999,2095.6876302000001,56771.464549999997,33073.291587,7543.7107134999997,747.06969021999998,3053.2304963000001]
[1063,"2012-02-26","KW60MN09 ",7024169.743394196,2683968.0888677682,1972657.0765179563,128494.78028241594,582816.23206739605,"Winter",235452.80249,50833.264241999997,78081.731826999996,1498.7486550000001,55768.274012000002,25103.238902000001,5899.9544471999998,747.06969021999998,0]
[1064,"2012-01-30","KW60MN21 ",7473185.2254254678,2683952.7199672908,1953017.2902787311,120744.17315162985,610191.25653692998,"Winter",271948.57896999997,62449.838670999998,97302.327332000001,1867.6805548,55540.276163000002,31562.113558000001,7634.1092746000004,742.46966563000001,3053.2304963000001]
[1065,"2011-07-27","KW60MN15 ",8672247.6095325183,2683098.7097784393,1922746.1905862617,139825.54942800003,620526.96976417722,"Summer",194418.33504999999,89740.175478999998,119146.50215,2286.9710452999998,56361.068421000004,42036.164190000003,10762.666743,34987.822626000001,0]
[1066,"2011-08-05","KW60MN18 ",8193259.2232253887,2683091.8953067958,1891804.7307691406,123181.25844800001,668105.90608965489,"Summer",244604.44863,87663.194269,122142.03191999999,2344.4690811,54856.282614000003,36960.021399999998,8205.6933645000008,30398.541657999998,0]
[1067,"2011-10-26","KW60MN11 ",7157231.6252311682,2682894.0353906183,1988403.1541922474,103857.54261999999,590633.33857837063,"Summer",198115.78539999999,71477.540116999997,145374.26576000001,2790.4028278000001,57273.059820000002,43292.999389999997,10490.729558999999,19170.103298999999,0]
[1068,"2012-03-05","KW60MN09 ",7226233.6453589108,2682865.1600009394,2024464.8272610153,115461.38431077907,542938.9484291448,"Winter",184570.85013000001,64574.215721,114756.05391,2202.6980886000001,56269.869280999999,36583.105487000001,8393.8665416999993,1354.3257784,0]
[1069,"2012-01-29","KW60MN10 ",7088858.6316171559,2682828.2584953727,1962687.2247738761,129542.25051803181,590598.7832034647,"Winter",303519.92937000003,54466.317516000003,77924.639958999993,1495.7333374,54765.083473999999,25325.597666000001,5913.3031234999999,742.46966563000001,0]
[1070,"2011-11-28","KW60MN18 ",7899174.0480481293,2682464.2684911191,1960553.6108194906,115455.92034400001,606454.73732762842,"Winter",256110.04868000001,66405.336941000001,115689.83125,2220.6215836000001,54719.483904000001,34946.249170000003,7822.5922564000002,4955.8928413000003,3053.2304963000001]
[1071,"2012-02-20","KW60MN12 ",7483716.4680448994,2681926.4460888691,1969756.1159789122,117506.35376700094,594663.97634295607,"Winter",235910.83046999999,77861.070487999998,102850.15425000001,1974.1689477,56315.468850999998,29813.129476999999,6542.9763900999997,747.06969021999998,0]
[1072,"2012-02-09","KW60MN09 ",7463871.7718749037,2681702.5618441128,1949800.4742437187,117619.41077428925,614282.6768261051,"Winter",251605.53810999999,72432.364541000003,128150.95394000001,2459.808016,57820.254658999998,35358.096274000003,9794.6413331999993,747.06969021999998,0]
[1073,"2011-12-26","KW60MN18 ",7799805.1197803169,2680910.1655868166,1972196.2065080099,111504.06827,597209.89080880675,"Winter",283993.93258999998,63740.153716000001,87380.159507000004,1677.2283795000001,56087.471001999998,23519.383431999999,6678.9365172999997,816.33821894000005,3053.2304963000001]
[1074,"2012-02-28","KW60MN06 ",7230811.090665604,2680810.5701187411,1928347.5867572031,103768.3902226925,648694.59313884587,"Winter",280221.58211999998,58346.945239000001,91751.089456000002,1761.1266900000001,53853.092076000001,32437.592456999999,8241.9100094999994,747.06969021999998,2289.4988127000001]
[1075,"2012-02-26","KW60MN20 ",7335119.3735595727,2680670.2427550978,1964060.9434001609,127328.48034783664,589280.8190071003,"Winter",246376.60441,62397.378191999996,81376.485921,1561.9901861000001,55677.074871999997,27257.291903000001,6514.7080058000001,747.06969021999998,3053.2304963000001]
[1076,"2011-08-02","KW60MN20 ",7776453.7835038332,2679427.0468290458,1948788.7175825629,124854.489445,605783.83980148262,"Summer",257045.43643,81389.169062000001,115331.08369,2213.7355628999999,56087.471001999998,35042.072960999998,8880.7419745000007,30274.639245999999,0]
[1077,"2011-07-11","KW60MN14 ",8505077.1323293839,2679335.1986536826,1891138.7197052529,141978.93880799998,646217.54014042986,"Summer",192810.20280999999,81613.849795000002,137575.49549999999,2640.7084476999999,54947.481754,42830.193981999997,10914.704535000001,34327.868450000002,0]
[1078,"2012-01-03","KW60MN20 ",7603988.4909991557,2679217.059864413,1956903.2549756381,112981.7721807569,609332.0327080182,"Winter",308029.54845,62654.387781999998,98662.405941000005,1893.7867378999999,57455.458099000003,32350.951455999999,7393.0712735999996,742.46966563000001,3053.2304963000001]
[1079,"2012-01-22","KW60MN17 ",7376273.2215613732,2678945.5452845413,1977898.8656016609,114057.53245905206,586989.14722382813,"Winter",309332.13439999998,53189.713313,79447.503708000004,1524.9641183000001,55950.672292000003,25057.832582999999,6503.4957936999999,742.46966563000001,3053.2304963000001]
[1080,"2011-12-03","KW60MN18 ",7668351.0663195355,2678911.452219815,1992863.790906973,99778.207280000002,586269.45403284219,"Winter",297111.96789999999,70972.059483999998,94730.810320000004,1818.3212799999999,57455.458099000003,27491.257454999999,7285.5234278999997,816.33821894000005,3053.2304963000001]
[1081,"2011-12-17","KW60MN10 ",7328489.1254151156,2678859.3286657054,1930733.3811921978,102210.13877999999,645915.80869350769,"Winter",331731.79676,60853.506576,91320.574699000004,1752.8631257,57501.057669000002,27163.548275000001,6769.0946842000003,816.33821894000005,0]
[1082,"2011-08-01","KW60MN13 ",7748526.0436620358,2678612.7138105957,1998909.3813797836,127782.27936,551921.05307081202,"Summer",202139.55523999999,90547.570997999996,121204.58963,2326.4752386999999,56133.070571999997,40276.679277000003,11245.392828,28347.906717999998,0]
[1083,"2012-02-10","KW60MN09 ",7270174.8244790481,2678178.6098080166,1954175.12389341,114028.27050232401,609975.21541228285,"Winter",198236.43956,72613.240638000003,124687.76483,2393.3334401000002,56908.26326,36542.169601000001,9673.6906376000006,747.06969021999998,0]
[1084,"2011-08-05","KW60MN16 ",8364785.7036108021,2678137.8329884056,1883855.3557436801,129489.257272,664793.21997272538,"Summer",242033.05439,93699.350112,127848.21634,2453.9970849000001,54491.486054000001,37763.930041,8865.7291562999999,31825.492340000001,0]
[1085,"2012-03-21","KW60MN11 ",7224242.5590383327,2678063.054930497,2007933.3429070155,102201.04123472764,567928.67078875401,"Winter",182238.98365000001,76896.094289000001,118620.81510000001,2276.8806856000001,49612.332072999998,37382.691677000003,9011.2644421999994,1354.3257784,0]
[1086,"2011-07-31","KW60MN17 ",8129014.6993621457,2677998.4990362944,1900900.8553658689,131896.13039100001,645201.51327942568,"Summer",239814.66685000001,68909.320967000007,110361.64043,2118.3490209000001,54810.683043999998,28912.119401,7677.4615793000003,29205.997775,0]
[1087,"2011-12-22","KW60MN15 ",7525876.6229947871,2677858.8203947069,1985596.147080573,95767.883259999988,596494.79005413363,"Winter",234773.23251999999,75315.486357999995,119217.75044,2288.3386286999998,57045.061970000002,37709.011833999997,8620.5672013999992,816.33821894000005,0]
[1088,"2011-11-19","KW60MN12 ",7255104.6499778917,2677799.3576254016,1929027.5363959307,116057.330181,632714.49104847072,"Winter",295470.24877000001,62875.104533999998,102202.46816999999,1961.7368637,57592.256808999999,31610.00203,6500.6923174000003,4955.8928413000003,0]
[1089,"2011-08-27","KW60MN19 ",8364641.965256324,2677606.3198524765,1883817.2711240901,132209.90499899999,661579.14372938639,"Summer",287342.93362000003,88738.221944999998,105578.33816,2026.5353829999999,55084.280463000003,30752.997619999998,7943.4464563000001,46636.618520000004,0]
[1090,"2012-01-09","KW60MN14 ",7378014.2251622938,2677582.1076668957,1988440.6336357982,100391.04077485629,588750.43325624103,"Winter",240240.93090000001,67496.037364000003,126969.12891,2437.1233415000002,53442.695946,37596.684211,8786.1551283000008,742.46966563000001,0]
[1091,"2012-03-14","KW60MN13 ",7188229.1681583151,2677579.368124079,1995514.4918496588,112586.24987745173,569478.62639696838,"Winter",206493.49186000001,74631.130097000001,116506.63694,2236.2998532000001,55540.276163000002,37438.567913999999,8420.7196440999996,1354.3257784,0]
[1092,"2011-09-09","KW60MN12 ",7725258.9644373488,2677279.1023396058,1945638.7631538783,112161.622118,619478.71706772759,"Summer",146145.06271,89155.511643000005,149552.12132000001,2870.5951500000001,53579.494656000003,43026.623731,10769.126926999999,38355.171077999999,0]
[1093,"2011-11-16","KW60MN10 ",7326651.8123850469,2677204.7097203261,1911398.085426731,103841.32076,661965.30353359517,"Winter",277387.76718000002,81696.942347999997,138575.42989999999,2659.9018018000002,51390.715300000003,40568.589994000002,11286.226067,4955.8928413000003,0]
[1094,"2012-04-13","KW60MN08 ",6969566.0629475443,2677007.5535223354,2001315.2084740347,129714.56831502118,545977.77673327969,"Summer",251071.58194999999,51333.656132999997,97239.598914000002,1866.4765070999999,42544.398735000002,35148.304234000003,8085.5027902000002,7467.6597125999997,0]
[1095,"2012-02-27","KW60MN12 ",7334465.3172173835,2676797.1624053363,2000866.5020307386,111732.25416600452,564198.40620859293,"Winter",169703.37179,80532.480070999998,122387.44845,2349.1797565000002,50250.726051999998,37478.080306000003,9577.9170544000008,747.06969021999998,0]
[1096,"2011-11-10","KW60MN10 ",7449793.2116488749,2676758.2355507254,1978991.4216133882,117777.674316,579989.13962133718,"Winter",221304.32081999999,76934.157821999994,132257.90328,2538.6393208999998,57045.061970000002,42622.130015000002,10763.966904999999,4955.8928413000003,0]
[1097,"2011-08-12","KW60MN16 ",8333053.6888193944,2676640.9878273159,1939501.3034156449,134525.36350599999,602614.32090567087,"Summer",250001.49692000001,98681.387593000007,122165.63589999999,2344.9221504000002,56543.466700999998,37673.500543000002,9176.1024054999998,46318.027832,0]
[1098,"2012-02-14","KW60MN12 ",7317239.964395632,2676513.0916212029,1974308.282534932,108163.02758859425,594041.78149767674,"Winter",222020.39228,81913.262889999998,128036.92015999999,2457.6191816999999,56908.26326,35561.525401999999,9296.4250267999996,747.06969021999998,0]
[1099,"2011-12-19","KW60MN16 ",7727130.5475640818,2676179.9398740921,1901616.5183952649,88638.71097,685924.71050882724,"Winter",298385.57734999998,79158.712549999997,117869.34510000001,2262.4565094999998,58321.849928000003,35760.787401000001,9270.7908269,816.33821894000005,2188.5725819999998]
[1100,"2011-07-29","KW60MN21 ",8395517.6962341592,2676127.0841372702,1927613.8350936589,143856.93373699998,604656.31530661124,"Summer",217326.24142999999,84001.543132000006,114769.3691,2202.9536686000001,55722.674442000003,36890.675690999997,7312.5018074,41502.405946999999,1170.8290836000001]
[1101,"2012-02-22","KW60MN08 ",7405121.798387168,2675625.3827243801,1969164.2185085388,119891.30056458828,586569.86365125317,"Winter",211331.78331999999,59911.610481000003,110273.82709999999,2116.6634779000001,56908.26326,35868.153889000001,8720.3682427000003,747.06969021999998,0]
[1102,"2011-07-24","KW60MN20 ",8459422.5239694156,2675125.7124910667,1909027.7211200388,127255.512368,638842.4790030279,"Summer",270485.13845999999,71066.185945999998,94919.930502999996,1821.9513688,55129.880033000001,29515.442643999999,7040.8490333999998,41988.034553999998,0]
[1103,"2012-02-27","KW60MN22 ",7215844.0414574919,2674973.3892168999,1956732.1271814152,110825.79541473655,607415.46662074828,"Winter",314719.48499000003,59666.412493000003,100572.45582,1930.4494070000001,49977.128632,33754.763851000003,7343.6532349999998,747.06969021999998,3053.2304963000001]
[1104,"2011-09-13","KW60MN21 ",7065589.4631310282,2674821.2431714428,1929028.3064408023,123944.94919099999,621847.98753964028,"Summer",255250.02738000001,76253.322064000007,113407.92576,2176.8212901000002,42681.197444999998,38668.235472,9003.7901987000005,29384.736418,3053.2304963000001]
[1105,"2012-02-02","KW60MN20 ",7614399.7299607471,2674654.3764828043,1949413.8214133629,123610.11857927759,601630.43649016379,"Winter",274647.9192,73559.600428999998,106704.01612,2048.1423362,56771.464549999997,32859.739404,7299.8539993000004,747.06969021999998,3053.2304963000001]
[1106,"2011-11-08","KW60MN19 ",7673544.9445239864,2674466.3458519764,1966025.9171005893,127292.15814300001,581148.27060838707,"Winter",264630.85709,72154.924463999996,125874.48795,2416.1121315999999,56817.064120000003,37825.656575000001,8064.5241205000002,4955.8928413000003,3053.2304963000001]
[1107,"2011-07-29","KW60MN13 ",8815742.5546560567,2674352.5960930269,1913180.4811634999,141094.08804499998,620078.02688452671,"Summer",183222.54193000001,94569.166675,132093.93564000001,2535.4920255000002,52074.708849000002,42790.212544000002,8956.8015004000008,37802.644676000004,0]
[1108,"2011-11-07","KW60MN10 ",7370954.2487173909,2674227.3428074117,1922710.4660605704,119304.43638500001,632212.440361841,"Winter",269525.38458000001,71828.981461000003,138186.98204,2652.4456952999999,56817.064120000003,39478.160455999998,10339.118382000001,4955.8928413000003,0]
[1109,"2011-11-29","KW60MN13 ",7343985.6242953502,2674201.8810603702,1986919.5844028825,102272.031672,585010.26498548791,"Winter",207425.20191,78327.610274999999,125204.50601,2403.2520871000002,50980.319171000003,38406.880472999997,9502.4635937000003,4955.8928413000003,0]
[1110,"2011-11-07","KW60MN20 ",7471745.3907038327,2674025.6088708816,1916624.3388552796,123155.32227800001,634245.94773760228,"Winter",298613.42548999999,61638.387583999996,124537.04429999999,2390.4404177000001,57318.659389,36531.472242999997,7772.8610275999999,4955.8928413000003,3053.2304963000001]
[1111,"2012-04-03","KW60MN08 ",7023319.0182946147,2673818.1482848087,2009267.5958412089,112584.55929194449,551965.99315165542,"Summer",219634.82282999999,57834.500725999998,100787.65866,1934.5801422,54856.282614000003,33951.757586,7700.8069519000001,7467.6597125999997,0]
[1112,"2011-12-27","KW60MN12 ",7445620.4847034859,2672649.1417563157,1957161.8285801341,99676.847959999999,615810.46521618182,"Winter",291987.89649000001,76544.137161999999,106691.82693,2047.9083694000001,58048.252507999998,33059.121269000003,7850.0378821000004,816.33821894000005,0]
[1113,"2011-09-14","KW60MN15 ",7298714.2522562277,2672224.8573867916,1932711.2238413456,109042.58358899999,630471.04995644616,"Summer",178125.11533,92467.423039000001,153205.54454999999,2940.7211965000001,54810.683043999998,41990.209134999997,12300.312453,22267.558033000001,0]
[1114,"2011-11-20","KW60MN11 ",7058787.3486422375,2672120.3898176779,1909390.5682058265,111725.90902400001,651003.9125878514,"Winter",316800.15466,50494.555197000001,99216.423628000004,1904.4208931999999,55312.278313000003,27065.620826999999,6198.1200460999999,4955.8928413000003,0]
[1115,"2011-12-11","KW60MN13 ",6993647.1914594881,2672088.3972556777,1888629.8396556189,97878.718435000003,685579.83916505892,"Winter",343494.97395000001,57373.012725000001,91518.155616999997,1756.6556149999999,57409.858528999997,26707.749433000001,6680.4195158000002,816.33821894000005,0]
[1116,"2011-08-22","KW60MN20 ",8394199.0927793328,2671848.6963659422,1974544.4153532619,135858.85219100001,561445.42882168014,"Summer",226131.46257999999,71510.690050000005,112848.41667000001,2166.0817293999999,56999.462399999997,37086.903222000001,8437.7724319000008,45506.685882999998,71.849863939000002]
[1117,"2012-02-20","KW60MN18 ",7764417.5904586008,2671586.4948237655,1966385.9010926276,117025.92142368018,588174.67230745766,"Winter",243089.57324,57804.811844999997,95245.331527999995,1828.1973155999999,56133.070571999997,29765.364622000001,7680.2667482999996,747.06969021999998,3053.2304963000001]
[1118,"2011-07-07","KW60MN11 ",8069580.1444895724,2671275.380087012,1894237.2781628235,142675.26723,634362.83469418867,"Summer",181154.52695999999,85968.672109000006,135933.67588,2609.1943548999998,55905.072721999997,41369.397795999997,10083.737958,41535.317003999997,0]
[1119,"2012-02-08","KW60MN20 ",7603976.5154127702,2670708.0254336274,1936553.0530157411,113455.9661280802,620699.00628980622,"Winter",277878.89451000001,79291.376552000002,114525.22509000001,2198.2674186999998,51527.514009999999,31074.845934000001,7967.4012794999999,747.06969021999998,3053.2304963000001]
[1120,"2012-03-07","KW60MN20 ",7354242.9060435193,2670469.3099454814,1980395.070571135,119861.20360244028,570213.03577190579,"Winter",250240.31458999999,73296.197373999996,104531.67761,2006.4451385,56269.869280999999,32747.420160000001,7468.6263093999996,1354.3257784,3053.2304963000001]
[1121,"2012-03-01","KW60MN12 ",7366757.2874724176,2670379.1203936916,2020545.4861592059,106333.406055674,543500.22817881173,"Winter",147799.94527,79076.921507000006,116823.17419000001,2242.3756632,57364.258958999999,35068.536079999998,9221.3592451999994,1354.3257784,0]
[1122,"2012-01-02","KW60MN12 ",7120412.7149051568,2669969.6007545185,1935952.2389288861,104931.84004915717,629085.52177647513,"Winter",322000.81135999999,50573.727153,90560.337262000001,1738.2706619999999,55768.274012000002,24276.048193999999,7322.9437396000003,742.46966563000001,0]
[1123,"2011-09-08","KW60MN12 ",7793188.9071341613,2669841.3550979155,1981996.0602197892,112734.87051699999,575110.42436112626,"Summer",126391.12239999999,91547.708845999994,142292.10699999999,2731.2419819000002,45964.366478999997,41458.259242,10851.870102999999,47410.894385,0]
[1124,"2011-11-30","KW60MN10 ",7337154.0655008927,2669835.3006909238,1983585.4915210851,112721.73478,573528.0743898385,"Winter",219456.49123000001,74733.401438999994,132742.99656,2547.9504987999999,51117.117879999998,37763.401891000001,10384.847546000001,4955.8928413000003,0]
[1125,"2011-07-28","KW60MN21 ",8391508.0278008059,2669268.2006832552,1904689.3399476898,140774.397069,623804.46366656537,"Summer",210255.23316,76734.631575000007,108846.83736,2089.2729614999998,56269.869280999999,38069.110102999999,7987.8754580000004,38871.865402000003,1119.9419087000001]
[1126,"2012-01-14","KW60MN18 ",7488713.58596595,2668939.0978656402,1973272.8655335582,105184.61999320882,590481.61233887332,"Winter",280320.51981000003,76559.441951000001,86925.457557999995,1668.5005513999999,55585.875732,26920.619917,7326.6004473000003,742.46966563000001,3053.2304963000001]
[1127,"2012-01-03","KW60MN07 ",7429120.7447590865,2668834.5825055987,1900993.0742496459,102939.89907514605,664901.60918080667,"Winter",297307.87193999998,60424.320116000003,94257.678985000006,1809.2397069000001,57136.261109999999,32240.53024,8951.8852597000005,742.46966563000001,2187.724463]
[1128,"2011-07-25","KW60MN17 ",8725324.839997489,2668761.0884971996,1919176.425157222,128892.818646,620691.8446939775,"Summer",199014.98962000001,88622.000348000001,124880.94521000001,2397.0414627999999,56725.864979999998,38458.847895999999,8859.9596841000002,40262.357154999998,0]
[1129,"2011-08-29","KW60MN13 ",8333669.3045807462,2668264.0235151476,1868702.0458474823,139271.77628300001,660290.20138466533,"Summer",224382.98402,89795.157030999995,136747.33322999999,2624.8121931000001,56452.267561000001,42534.095824999997,11920.136713,40417.250874999998,0]
[1130,"2012-02-24","KW60MN10 ",7251312.6963548204,2668239.9857172593,1985988.3184931572,113890.69634330201,568360.97088080039,"Winter",190502.03474999999,72177.856742999997,116111.29345,2228.7113875999999,57364.258958999999,37288.593236000001,9332.7009247999995,747.06969021999998,0]
[1131,"2012-02-16","KW60MN18 ",7578588.7065175558,2668167.8663966865,1979695.8776468907,114379.01728637054,574092.97146342532,"Winter",262861.31916000001,73227.416607000006,105492.98168,2024.8969984,50706.721750999997,36035.327733999999,8053.6962019000002,747.06969021999998,3053.2304963000001]
[1132,"2012-01-06","KW60MN20 ",7399318.4375931686,2667915.0400083489,1977317.1457398257,111143.12924198303,579454.76502654038,"Winter",254660.38631,66159.446421000001,112354.71016,2156.6052239000001,56133.070571999997,32409.385366999999,7309.3732905999996,742.46966563000001,3053.2304963000001]
[1133,"2011-07-26","KW60MN15 ",8753707.787112141,2667683.4591938928,1928561.0670544913,126526.116448,612596.27569140145,"Summer",186736.9443,85616.081900999998,123376.57894000001,2368.1657338,56133.070571999997,41676.566744999996,10814.896720999999,35925.430024000001,0]
[1134,"2011-12-02","KW60MN11 ",7362911.5595398983,2667417.3368590586,2001758.3362991824,99955.813360000015,565703.18719987618,"Winter",171897.27661999999,71602.202244999993,137621.43541999999,2641.5902467000001,54947.481754,38553.170211999997,8846.9986857999993,816.33821894000005,0]
[1135,"2012-01-04","KW60MN20 ",7561014.176028369,2667137.6496004448,1934298.3558857602,118310.6859497656,614528.60776491906,"Winter",232580.76908999999,70800.917394999997,101651.95548,1951.1699854999999,51937.910139,34527.800953999998,7278.9819840999999,742.46966563000001,3053.2304963000001]
[1136,"2011-09-14","KW60MN16 ",7349647.4469393259,2667019.2633950501,1912856.8697157737,111306.5882,642855.80547927634,"Summer",199213.85066,93940.976179000005,150505.05007999999,2888.8862491999998,54947.481754,40318.070277999999,12009.969838999999,23014.599608,0]
[1137,"2011-07-25","KW60MN16 ",8735646.2057870086,2666450.7532399795,1924005.0163632547,129253.001745,613192.73513172474,"Summer",171610.94553999999,86940.943188999998,129143.7046,2478.8634812,56315.468850999998,40014.305246999997,9468.2124282999994,41046.826698999997,0]
[1138,"2011-11-28","KW60MN19 ",7705465.5466715274,2666308.8234700179,1947880.9137671194,110443.148338,607984.76136489853,"Winter",282592.038,61294.467681000002,114955.82206000001,2206.5325610999998,52439.505407999997,34602.581201000001,7598.3344811999996,4955.8928413000003,3053.2304963000001]
[1139,"2012-01-21","KW60MN12 ",7385732.8465977609,2666217.3572979099,1938889.4536963147,107871.42859003747,619456.47501155769,"Winter",296748.87134999997,70798.626095,85657.008006000004,1644.1531526000001,56452.267561000001,25969.361959000002,6281.9399194999996,742.46966563000001,0]
[1140,"2011-12-19","KW60MN22 ",7394227.6286567217,2665853.479949472,1928505.8064661464,96571.305429999993,640776.36805332568,"Winter",312543.80969999998,62734.276371,102644.38038,1970.2191977,58093.852078000004,33489.633970000003,7217.1226731999996,816.33821894000005,3053.2304963000001]
[1141,"2012-02-26","KW60MN11 ",7010862.2072781678,2665743.9451808766,1972501.2921787621,123648.0891138724,569594.56388824212,"Winter",278006.34236000001,50517.447305000002,75806.727715999994,1455.0808307,55494.676592999997,26166.402883999999,5639.9523515000001,747.06969021999998,0]
[1142,"2011-11-11","KW60MN10 ",7338118.8075546492,2665618.1436717594,1929811.0570667309,116300.14958700001,619506.93701802846,"Winter",293631.35378,72729.928207000004,123910.62522,2378.4165456999999,55859.473151999999,40882.934431000001,7158.6153457999999,4955.8928413000003,0]
[1143,"2012-03-23","KW60MN11 ",7058124.0630269218,2665500.6181788463,2025896.6390536064,107646.72009996824,531957.25902527175,"Winter",175675.08536,74850.937399999995,113537.94,2179.316863,56862.663690000001,37052.771122999999,8452.917297,1354.3257784,0]
[1144,"2012-01-08","KW60MN18 ",7574673.7786021112,2665419.1805392839,1966096.6252490226,121182.81532825604,578139.73996200541,"Winter",251149.40728000001,60311.726677999999,87783.016176000005,1684.9610574999999,55631.475301999999,26692.261161999999,6647.6107184000002,742.46966563000001,3053.2304963000001]
[1145,"2011-12-19","KW60MN15 ",7614539.8692719741,2665030.6494634636,1903787.1400495498,86667.561180000004,674575.94823391375,"Winter",297048.56722999999,79501.515727000005,121560.2257,2333.3015356000001,55813.873582,38286.751328999999,9316.0933764000001,816.33821894000005,0]
[1146,"2012-01-15","KW60MN22 ",7054401.6117614917,2664927.0689925901,1962962.8017357332,110561.72802207607,591402.53923478082,"Winter",289464.28061000002,56694.897282999998,78223.887482000006,1501.4772779,56543.466700999998,27098.669730000001,6584.3699852,742.46966563000001,3053.2304963000001]
[1147,"2012-01-29","KW60MN19 ",7438966.3140549306,2664681.4563002982,1978168.1175797607,128368.53586405635,558144.80285648117,"Winter",272678.89490999997,63288.830345000002,80571.925797000004,1546.5469656,53761.892935999997,26585.704788999999,6531.7540202999999,742.46966563000001,3053.2304963000001]
[1148,"2012-01-25","KW60MN10 ",7457123.7113851439,2664399.1052590245,1949369.4978297895,117330.19642064061,597699.41100859444,"Winter",204972.35272,76612.763676000002,123384.74227,2368.3224258,55175.479603,36899.154519000003,9746.6301115999995,742.46966563000001,0]
[1149,"2011-12-17","KW60MN18 ",7711403.8652078956,2664341.7398910145,1904035.710850572,99967.31719999999,660338.7118404425,"Winter",345487.44228000002,71440.064673999994,94114.521458000003,1806.4918534999999,57273.059820000002,26319.780914999999,7465.0881055,816.33821894000005,3053.2304963000001]
[1150,"2011-11-30","KW60MN07 ",7343979.1486731861,2664264.2263284447,1926440.3626294855,114337.119213,623486.74448595895,"Winter",285303.37582000002,59514.447585000002,115072.82173,2208.7783244000002,56953.862829999998,37788.304958000001,10008.83639,4955.8928413000003,1119.0937887]
[1151,"2012-02-15","KW60MN12 ",7357821.9272251241,2664148.2957668756,1992984.7450061548,118034.88925546181,553128.66150525922,"Winter",196931.06619000001,80503.97219,124516.97332999999,2390.0551633,46876.357878000003,35453.283006999998,9190.6327404999993,747.06969021999998,0]
[1152,"2011-12-30","KW60MN20 ",7391885.5863795253,2663900.5147144264,1951096.6758019244,112007.570895,600796.26801750204,"Winter",256616.61812,66863.191961999997,93965.910992999998,1803.6393330999999,56634.665841000002,27780.985510999999,6414.8003099999996,816.33821894000005,3053.2304963000001]
[1153,"2011-09-10","KW60MN19 ",7193569.9918763461,2663721.310947191,1928248.369295205,105272.750764,630200.19088798575,"Summer",286405.87128999998,75942.529597999994,126684.16606,2431.6535899,53761.892935999997,35347.998294999998,7273.0703063000001,39866.522231000003,0]
[1154,"2011-11-18","KW60MN07 ",7307703.9356351234,2663654.4420558135,1918982.2950694517,108234.953649,636437.19333736168,"Winter",307262.80521000002,58892.814447999997,115020.90491,2207.7818011999998,56224.269711000001,38582.165322000001,8005.3260812999997,4955.8928413000003,309.52124151999999]
[1155,"2011-12-12","KW60MN23 ",6889650.9718054561,2663634.869141256,1898265.4615810513,94391.932449999993,670977.47511020466,"Winter",315009.85411999997,62876.915399999998,107589.98024,2065.1480750000001,57318.659389,32841.231614999997,7725.2425645000003,816.33821894000005,3053.2304963000001]
[1156,"2012-01-04","KW60MN12 ",7406641.6367869014,2663617.7182889162,1947208.8605110336,105996.24405491712,610412.61372296535,"Winter",220167.76152999999,70804.264362999995,117957.87083,2264.1557265000001,57774.655089,36946.148879,9448.9943963000005,742.46966563000001,0]
[1157,"2012-01-31","KW60MN21 ",7432615.0241203178,2663610.5764929941,1943985.8896828622,123028.81011062437,596595.87669950724,"Winter",268686.43325,68943.497646000003,101743.59189,1952.9289108999999,55403.477453,33418.066383999998,7818.1026325000003,742.46966563000001,3053.2304963000001]
[1158,"2012-01-15","KW60MN17 ",7288292.6453434033,2663581.8748378358,1959346.6113693102,108600.89801382995,595634.36545469554,"Winter",310791.97139999998,54167.666045999998,88377.671843999997,1696.3752431,55403.477453,25636.106253999998,6539.9409834999997,742.46966563000001,3053.2304963000001]
[1159,"2012-01-15","KW60MN13 ",6942890.5979996556,2663500.5090460526,1945511.8413477046,109870.72398218045,608117.94371616736,"Winter",331371.53003000002,56854.590908999999,84295.334784999999,1618.0163616,55585.875732,24707.926737999998,6125.2906122000004,742.46966563000001,0]
[1160,"2011-08-16","KW60MN18 ",8125068.6924990928,2663428.4677852169,1970131.6478140159,134376.76980000001,558920.05017120123,"Summer",226101.35203000001,87292.803908999995,107375.78122,2061.0366078000002,54445.886484000002,36116.090081000002,8674.1786033000008,40985.211590999999,0]
[1161,"2011-08-23","KW60MN12 ",8476527.8788332306,2663310.2421187279,1924161.6564340256,139176.65489400004,599971.93079070223,"Summer",186033.67592000001,91751.820905999994,126524.3452,2428.5858902,55631.475301999999,40962.917677999998,10915.456190999999,43113.431599000003,0]
[1162,"2011-07-27","KW60MN20 ",8082125.5737654706,2663296.4599703429,1916748.5744136062,142236.477831,604311.40772573673,"Summer",214217.69025000001,73338.109198000006,97532.976444999993,1872.1077754,56406.667991000002,37934.899261999999,7710.2703768000001,36838.016163,0]
[1163,"2011-07-05","KW60MN14 ",8646627.5001738742,2663033.0950369537,1874772.1777242546,141435.609712,646825.30760069937,"Summer",199398.45663,84835.180940999999,117657.20805,2258.3846208,55221.079172999998,41315.98156,9631.0171941999997,42160.603870999999,0]
[1164,"2011-08-21","KW60MN19 ",8166018.4832702288,2662562.4864420258,1937533.683461268,133587.85995499999,591440.94302575768,"Summer",246829.33309999999,69878.510200999997,90519.746935000003,1737.4915463,55221.079172999998,30959.728043999999,7868.4839425,39871.138475,0]
[1165,"2011-12-04","KW60MN21 ",7566040.7923864992,2662316.7847508998,1956931.4131145014,107895.085408,597490.28622839844,"Winter",294432.18203000003,60845.321526,91441.136891000002,1755.1772702999999,56634.665841000002,26156.314613999999,7051.1690762999997,816.33821894000005,3053.2304963000001]
[1166,"2011-07-25","KW60MN15 ",8690144.4705624729,2662239.1546034617,1923152.0882633254,131941.41487400001,607145.65146613645,"Summer",171738.37220000001,84737.156377000007,130979.68568,2514.1044281999998,56725.864979999998,41767.863247000001,9935.0927792999992,40941.484702000002,0]
[1167,"2011-12-02","KW60MN20 ",7640816.5398928868,2662208.2108573671,1955825.439397827,106058.730098,600324.04136154032,"Winter",263824.85673,69811.019696000003,117224.50709,2250.0790932,54993.081323999999,33382.657412,7022.4232881999997,816.33821894000005,3053.2304963000001]
[1168,"2011-12-18","KW60MN18 ",7671604.7500664322,2662180.5503970608,1911534.2780636905,106848.36077,643797.91156337061,"Winter",312176.71749000001,61573.625429,95296.723582000006,1829.1837662,57136.261109999999,26128.390207,7087.1063894999998,816.33821894000005,3053.2304963000001]
[1169,"2011-12-21","KW60MN14 ",7577828.573168356,2662143.8073975965,2015608.6751098151,99866.900026000003,546668.2322617817,"Winter",187618.58668000001,77832.168940999996,113994.30649,2188.0766414,53989.890785000003,34799.973348,9381.3046685000008,816.33821894000005,0]
[1170,"2011-08-08","KW60MN14 ",8426758.8209550567,2661904.883038491,1891357.1981869687,136196.212616,634351.47223552212,"Summer",196989.14637,87661.886331999995,135910.82965,2608.7558303000001,57181.860679999998,40891.384839999999,10586.921294,34424.213673999999,0]
[1171,"2011-12-03","KW60MN19 ",7579677.4224296557,2661689.8391678552,1972252.09449695,106180.63216000001,583257.11251090514,"Winter",251774.02364,68236.144834000006,95232.340725999995,1827.9479621999999,57455.458099000003,27957.818045,7193.029031,816.33821894000005,3053.2304963000001]
[1172,"2011-08-05","KW60MN15 ",8285472.3993451372,2661257.2332719974,1866990.1476070436,132938.15117700002,661328.93448795355,"Summer",215346.43839,90392.055057999998,132726.47399999999,2547.6333546999999,55357.877883000001,39084.475190999998,9247.7535662999999,31979.799223999999,0]
[1173,"2012-02-22","KW60MN20 ",7370409.6849852437,2660633.0327002248,1941147.7063168024,115194.09120195941,604291.23518146318,"Winter",263269.72461999999,72627.097697999998,104042.51805,1997.0559099,54126.689494999999,33745.466873999998,7669.6893825999996,747.06969021999998,3053.2304963000001]
[1174,"2011-08-08","KW60MN19 ",8324622.7470339295,2660390.1816160437,1874835.0007572589,125983.06486799999,659572.11599078507,"Summer",241944.20654000001,77342.947537,119083.57554000001,2285.7631932999998,56543.466700999998,35803.049871000003,8921.6361589000007,37001.498754,0]
[1175,"2011-09-14","KW60MN17 ",7334748.9521236187,2660240.0186366257,1896400.0537735212,109068.20177299999,654771.76309010456,"Summer",231195.09031999999,94968.093838999994,144331.48743000001,2770.3871008000001,54445.886484000002,40554.648408000001,9888.5510118999991,22611.593521999999,0]
[1176,"2012-01-05","KW60MN10 ",7408027.0850853063,2659704.6727352729,1974127.3343597085,113230.20485680639,572347.13351875811,"Winter",201721.62166999999,67994.700335999994,113683.02387,2182.1016918999999,46146.764758999998,36492.994271000003,9188.5148967000005,742.46966563000001,0]
[1177,"2011-10-27","KW60MN07 ",7306660.4662866769,2659588.180590726,1909271.2275626659,110330.94200299999,639986.01102505997,"Summer",323116.50206000003,58912.149096000001,125238.7366,2403.9091302000002,46420.362179000003,40821.290375999997,9495.0079716,19170.103298999999,3053.2304963000001]
[1178,"2012-01-28","KW60MN08 ",7210758.2186890133,2659577.6891047461,1959119.0903256678,116838.21293627602,583620.38584280247,"Winter",287243.39181,62280.579753999999,85422.971476999999,1639.6609119,51937.910139,28587.553005000002,6856.4900054999998,742.46966563000001,0]
[1179,"2011-08-22","KW60MN12 ",8421835.9633191619,2659021.2841737522,1927350.5903971007,134360.96404799999,597309.72972865147,"Summer",190292.03460000001,90320.168342000004,127018.35187,2438.0681571999999,57045.061970000002,39499.590048999999,10753.199932,44441.999495999997,0]
[1180,"2011-12-16","KW60MN21 ",7634592.6945201121,2658397.1777519118,1931562.5310955283,99789.731199999995,627044.91545638349,"Winter",276883.6778,68181.95865,108226.5448,2077.3666856,57227.460249999996,31888.415837,7117.8430517999996,816.33821894000005,3053.2304963000001]
[1181,"2011-12-10","KW60MN14 ",7009962.5439607901,2657894.2238851893,1871985.3759986633,91383.665970000002,694525.18191652605,"Winter",367394.67369000003,71199.606752000007,104973.54205,2014.9265556,57455.458099000003,26884.32907,7443.9198286999999,816.33821894000005,0]
[1182,"2011-08-21","KW60MN17 ",8382403.8472869284,2657869.4196711592,1923695.5140194399,132308.25050300002,601865.65514871944,"Summer",252771.61442999999,68943.777228999999,96823.158358000001,1858.4830916000001,55357.877883000001,31001.960208,8043.1933239999998,41186.226992999997,0]
[1183,"2012-03-16","KW60MN08 ",7025394.1006171377,2657279.874345175,1978452.6666200163,109717.30770710818,569109.90001805045,"Winter",232239.02867,66845.607120999994,119122.34229,2286.5073060999998,50159.526912000001,36990.071749000002,8530.1991120999992,1354.3257784,0]
[1184,"2012-01-11","KW60MN16 ",7426322.7796787443,2657226.8198634875,1942717.1441922991,94018.368458393335,620491.30721279501,"Winter",242031.60238,79544.306471000004,119952.24225,2302.4369148999999,56589.066271000003,34948.921224999998,9035.5426133000001,742.46966563000001,1272.6034333]
[1185,"2011-11-11","KW60MN08 ",7346260.0076217884,2657147.8249764279,1903268.6464155829,111398.365213,642480.81334784511,"Winter",299925.07322000002,58398.655341999998,120808.64317,2318.8751996000001,56908.26326,39544.431666999997,7428.4600805999999,4955.8928413000003,0]
[1186,"2012-01-18","KW60MN22 ",7232961.5132098598,2656963.3892995529,1930996.4158937689,103162.07215193642,622804.90125384775,"Winter",299244.45399000001,67573.433804,102568.51360000001,1968.7629643,50205.126482,33048.474290999999,7814.2834039999998,742.46966563000001,3053.2304963000001]
[1187,"2011-11-07","KW60MN07 ",7343801.7523798645,2656676.7852042937,1857704.7027659575,116761.30608900001,682210.77634933626,"Winter",327253.72963999998,58643.376108999997,121375.14435,2329.7489707,57227.460249999996,36443.470349000003,9073.4098560000002,4955.8928413000003,0]
[1188,"2012-02-20","KW60MN20 ",7679731.8229414634,2656655.2889646362,1954129.4176551804,116778.8248833369,585747.04642611893,"Winter",272267.22509999998,60763.776323999999,93620.303509999998,1797.0055311000001,56497.867130999999,29902.902463999999,7724.7550030000002,747.06969021999998,3053.2304963000001]
[1189,"2011-11-22","KW60MN08 ",7466423.9987457115,2655874.9007321009,1922540.1370374691,113874.549894,619460.2138006317,"Winter",251045.11731,59311.232120000001,118807.51977,2280.4644094999999,51117.117879999998,38940.922598999998,7875.6754676,4955.8928413000003,0]
[1190,"2011-07-31","KW60MN16 ",8207095.8068011133,2655874.8981706137,1875715.7488780092,135419.02298100002,644740.12631160417,"Summer",260389.11697,66929.523963,110414.24666999999,2119.3587773999998,54901.882184000002,28509.625005000002,7763.1504365000001,30728.060545,0]
[1191,"2011-11-16","KW60MN17 ",7645774.5415546093,2655808.5854710997,1856379.6070304166,104705.378254,694723.600186683,"Winter",291265.51887999999,89903.532613000003,131543.55752999999,2524.9277305000001,57729.055519000001,38957.170553999997,8798.8723458999993,4955.8928413000003,3053.2304963000001]
[1192,"2012-03-19","KW60MN13 ",7401510.8919001976,2655743.9155784673,2030362.4519666305,109494.30360897577,515887.16000286129,"Winter",156122.47555999999,74019.960454999993,114365.91808,2195.2095823,56953.862829999998,35866.427796000004,8266.9940105999995,1354.3257784,0]
[1193,"2011-12-03","KW60MN11 ",7204293.4801268131,2655260.0136390021,1968697.686592852,99288.454660000003,587273.87238615006,"Winter",284440.03717000003,64559.111782,92686.160443999994,1779.0750161000001,57637.856378999997,28269.095433999999,6349.6905930000003,816.33821894000005,0]
[1194,"2011-11-16","KW60MN11 ",7285534.4439336816,2655137.6788193015,1893084.9262805281,101291.75766500001,660760.99487377331,"Winter",285985.52123999997,83251.722542999996,137856.83541,2646.1086586000001,55403.477453,40818.690366000003,11183.817928,4955.8928413000003,0]
[1195,"2011-08-22","KW60MN21 ",8187218.8115428211,2655080.2329551019,1945899.77729685,140395.32254800003,568785.13311025174,"Summer",219946.89785000001,69280.455277000001,109507.91383999999,2101.9620691,56999.462399999997,36715.604484000003,8590.3587299999999,47538.667335999999,2930.9175177000002]
[1196,"2011-11-20","KW60MN21 ",7329542.7617204003,2654791.98313013,1907687.9076695247,111105.211842,635998.86361860554,"Winter",323708.40062999999,54660.393491000003,91665.219582000005,1759.4784509999999,56817.064120000003,26434.303122000001,6651.4908926999997,4955.8928413000003,3053.2304963000001]
[1197,"2011-08-24","KW60MN11 ",8245224.0596337616,2654452.4141987618,1934711.7488356214,135072.29336399998,584668.3719991406,"Summer",159059.38282999999,91773.307063,127168.16125,2440.9436903000001,49475.533363000002,41931.959054999999,10925.085521999999,40419.18662,0]
[1198,"2011-08-28","KW60MN16 ",8265726.5119132604,2654418.2682201425,1824840.4707487598,122327.09577500001,707250.70169638249,"Summer",296408.38156000001,75578.595367999995,104506.09102000001,2005.9540136999999,55266.678742999997,29688.284986999999,8272.0219840999998,42690.107219999998,0]
[1199,"2011-11-22","KW60MN19 ",7566221.5128648942,2654310.4061841941,1939226.2194621905,116768.07396299999,598316.11275900353,"Winter",225445.74544,69310.648692999996,111932.28582,2148.4969519000001,57045.061970000002,37421.464447999999,6452.6675526999998,4955.8928413000003,3053.2304963000001]
[1200,"2012-01-06","KW60MN14 ",7200567.2764641568,2654256.671072633,1985272.6337939966,100199.01279848417,568785.02448015206,"Winter",180117.12792999999,81427.364352999997,129410.44716,2483.9835014999999,54491.486054000001,37616.533822999998,9266.7887632999991,742.46966563000001,0]
[1201,"2011-12-29","KW60MN17 ",7584654.8311210284,2654247.7945614979,1937247.0834554622,99402.145413000006,617598.56569303595,"Winter",218553.42913,77325.523375999997,113807.45931999999,2184.4901822000002,53305.897235999997,31225.304268,6668.5148992000004,816.33821894000005,3053.2304963000001]
[1202,"2012-01-14","KW60MN12 ",7146517.3374104295,2653665.515475207,1941320.4413528093,109839.28229857507,602505.79182382254,"Winter",323942.03558999998,68203.510685000001,85196.642410999993,1635.316613,55175.479603,27373.788934,6741.3849637000003,742.46966563000001,0]
[1203,"2012-03-12","KW60MN20 ",7184301.2466890048,2653608.6628241222,1968422.9447837316,120933.11223330931,564252.60580708133,"Winter",256874.43903000001,60188.991106000001,93394.856090999994,1792.6781550000001,55221.079172999998,33638.653808000003,6912.2344872000003,1354.3257784,3053.2304963000001]
[1204,"2012-01-22","KW60MN15 ",7023768.7185581382,2653604.7784260595,1960221.6650616606,118532.67876282014,574850.43460157863,"Winter",299627.29569,49073.544482999998,79465.357806999993,1525.3068208,55357.877883000001,25106.763577000002,6702.1159834999999,742.46966563000001,0]
[1205,"2011-11-08","KW60MN20 ",7607306.9755331045,2653354.7486868342,1943552.410440214,125280.40263900001,584521.93560762028,"Winter",274695.37961,69394.285952000006,121585.71883,2333.7908662999998,57364.258958999999,37274.265975000002,8023.1017453000004,4955.8928413000003,3053.2304963000001]
[1206,"2012-02-16","KW60MN14 ",7310771.9360969029,2653056.6924268836,1984466.3419422153,98495.311961009109,570095.03852365888,"Winter",158604.42843999999,76066.574714000002,119389.23045,2291.6301211999998,57045.061970000002,38839.554150000004,9389.6473805000005,747.06969021999998,0]
[1207,"2012-02-08","KW60MN13 ",7399397.4733947059,2652842.5959405685,1952826.208830046,102166.36895372519,597850.01815679739,"Winter",207064.41584999999,76087.598110999999,123152.10984999999,2363.8571364999998,47332.353577000002,35333.502338999999,9632.5171214000002,747.06969021999998,0]
[1208,"2011-07-27","KW60MN14 ",8617555.0881103445,2652617.0779140233,1909643.9891680439,137709.33982999998,605263.74891597929,"Summer",175985.64477000001,84339.281667999996,116448.15244000001,2235.1772657000001,56224.269711000001,42392.082469000001,9904.8030479999998,34669.764853000001,0]
[1209,"2012-02-13","KW60MN07 ",7349777.1345017776,2652554.6124737966,1950788.5964075446,106538.0267428989,595227.98932335316,"Winter",258497.07013000001,60351.899941999996,103859.67137,1993.5462384,56543.466700999998,34468.241841000003,8261.2770182000004,747.06969021999998,508.44768959999999]
[1210,"2011-08-17","KW60MN19 ",8240242.9889485808,2652505.2291270196,1943872.4593065891,137619.37047100003,571013.39934943046,"Summer",239248.67120000001,88943.306121000001,108562.67475000001,2083.8185701000002,54993.081323999999,35981.096209000003,8438.0771571999994,40176.235188999999,0]
[1211,"2011-11-10","KW60MN07 ",7428740.5188180162,2652439.2495254753,1911168.8750352466,121774.72394,619495.65055022889,"Winter",307518.78197000001,58176.322145999999,115189.01174,2211.0085468000002,57227.460249999996,38899.064559999999,9921.5629595999999,4955.8928413000003,10.672171419]
[1212,"2011-12-20","KW60MN14 ",7582931.9098677952,2652183.4526601238,1960825.3315462111,92076.407990000007,599281.71312391257,"Winter",256859.00751,71434.302681999994,119655.68732,2296.7446577000001,41495.608627000001,36201.274844,8422.3939425000008,816.33821894000005,0]
[1213,"2011-12-31","KW60MN18 ",7429131.4958308991,2652123.6086109085,1946218.0572505582,105393.7974,600511.75396035006,"Winter",253019.71645000001,69213.478948000004,80227.133935000005,1539.9288191000001,56041.871432,17823.703723999999,6612.2219114,816.33821894000005,3053.2304963000001]
[1214,"2011-08-04","KW60MN12 ",7929790.5488012396,2652044.1171819363,1904981.3846304992,131312.37232699999,615750.3602244372,"Summer",199426.89259999999,89038.676248000003,128602.80253,2468.4810751,56087.471001999998,38802.758826999998,11586.888724,31600.993334999999,0]
[1215,"2012-01-27","KW60MN22 ",7263966.9932521498,2651963.8709966065,1949726.5701058719,105107.98005306379,597129.32083767117,"Winter",288978.69634000002,69825.400573999999,100102.46342,1921.4280845000001,55221.079172999998,30967.540535,6957.1713656000002,742.46966563000001,3053.2304963000001]
[1216,"2012-01-23","KW60MN16 ",7684783.8934303094,2651828.8951434032,1934571.6941978938,104058.86303277922,613198.33791273029,"Winter",228750.12646999999,67802.497891999999,114504.46918,2197.869017,57364.258958999999,34665.383958999999,8517.7121310000002,742.46966563000001,509.29580915000003]
[1217,"2012-04-06","KW60MN10 ",7015944.0603704965,2651478.2464524615,2000238.5300300873,128101.63623422176,523138.08018815255,"Summer",207137.52481999999,73011.542755999995,100451.91946999999,1928.1357582000001,53488.295515999998,32845.645558999997,8324.1080653999998,7467.6597125999997,0]
[1218,"2012-03-22","KW60MN11 ",7119327.9594052052,2651201.2515427764,1997148.6274028043,113026.92058932094,541025.7035506512,"Winter",185925.78242999999,70810.927771000002,123478.42157999999,2370.1205638000001,54901.882184000002,35485.613231000003,8615.6001725000006,1354.3257784,0]
[1219,"2012-01-17","KW60MN22 ",7390313.5672509084,2651099.8733053105,1939879.6160447286,113843.04624736714,597377.21101321466,"Winter",282774.84220999997,65178.787834000002,102479.35139,1967.0515301,47469.152286999997,34849.004890999997,7721.5045958000001,742.46966563000001,3053.2304963000001]
[1220,"2012-01-28","KW60MN12 ",7219746.316397192,2651063.6564756897,1938527.7787377259,111401.05363380507,601134.82410415856,"Winter",324293.38892,72673.098832999996,81702.980219999998,1568.2571178999999,54993.081323999999,27646.323418,6492.6272446000003,742.46966563000001,0]
[1221,"2011-12-17","KW60MN11 ",7246143.7092496399,2650905.3721829704,1889706.137986437,100298.19013999999,660901.04405653349,"Winter",337312.59252000001,65940.529286999998,91303.39705,1752.5334072999999,57273.059820000002,26718.423738000001,6782.9089139999996,816.33821894000005,0]
[1222,"2011-11-04","KW60MN11 ",7203080.1342543196,2650896.8363250308,1974972.3583052082,114335.91376700001,561588.56425282243,"Winter",167776.67821000001,77891.294433999996,135708.44687000001,2604.8711709999998,56725.864979999998,41538.026857999997,8640.2118491000001,4955.8928413000003,0]
[1223,"2011-12-26","KW60MN19 ",7728451.6388954325,2650871.430096942,1949850.4819800018,112001.79097,589019.15714694047,"Winter",329062.82144000003,63636.111678000001,85202.935658000002,1635.4374094,54445.886484000002,23648.101606,6658.966829,816.33821894000005,3053.2304963000001]
[1224,"2011-12-06","KW60MN14 ",7494944.4517989093,2650074.2541610496,2006038.4295582222,89450.635419999991,554585.1891828276,"Winter",188324.62129000001,77760.091016000006,134099.20788999999,2573.9824509,58504.248206999997,36269.480783999999,10281.15956,816.33821894000005,0]
[1225,"2012-02-01","KW60MN10 ",7367663.4230605699,2649078.5935773067,1951188.3231291999,119254.38912320491,578635.88132490171,"Winter",230343.62208,76335.683522000007,125147.25073,2402.1530942999998,45599.569920000002,36380.411939999998,9417.6482832999991,747.06969021999998,0]
[1226,"2011-09-10","KW60MN16 ",7396599.6200719113,2648714.3641008073,1886140.459006042,105140.93672699999,657432.96836776519,"Summer",272296.18040000001,86269.055712000001,127513.97908999999,2447.5815302000001,54035.490355000002,35518.017041999999,7764.2880791999996,38105.178796,0]
[1227,"2011-08-03","KW60MN13 ",7972096.7899373518,2648549.0709692449,1923347.4168079519,130172.75164700001,595028.90251429309,"Summer",214281.09091999999,95341.215763,141382.36906,2713.7799140000002,50068.327771999997,40684.728942000002,11577.564119000001,27516.245673000001,0]
[1228,"2012-01-26","KW60MN10 ",7496097.6048801197,2647446.2382244146,1939028.5684167014,107243.26398224247,601174.40582547081,"Winter",235575.69295999999,73880.279548000006,115857.69855,2223.8437315000001,57774.655089,36754.284664999999,9285.3973435000007,742.46966563000001,0]
[1229,"2012-02-13","KW60MN18 ",7571786.2177414121,2647403.0902047157,1971431.846455947,125436.25115626489,550534.99259250378,"Winter",217211.50127000001,70299.146867000003,110864.92563,2128.0093858,56999.462399999997,34798.405641999998,7731.0679031,747.06969021999998,3053.2304963000001]
[1230,"2012-04-12","KW60MN09 ",7058763.0574462712,2647318.5772020542,2003912.893986024,124207.65966888952,519198.02354714088,"Summer",167652.61129999999,61313.476148000002,115973.96709999999,2226.0754615000001,54172.289064999997,35161.790929000003,9385.8670884999992,7467.6597125999997,0]
[1231,"2012-01-19","KW60MN07 ",7434908.3889910067,2647237.8207613816,1855644.831472886,110797.03295042212,680795.95633807359,"Winter",293336.50144999998,61850.744145999997,109501.77481,2101.8442326999998,52941.100677000002,36603.703158999997,9886.3569876000001,742.46966563000001,1933.2885876]
[1232,"2011-09-11","KW60MN18 ",6947286.4032682264,2646364.4032952399,1902776.5631085313,102208.86512999999,641378.97505670844,"Summer",334724.20876000001,68595.729451000007,115083.46694,2208.9826552999998,53442.695946,32985.084802999998,7870.8608019000003,34091.975757,0]
[1233,"2012-02-01","KW60MN21 ",7363206.3129576938,2646238.8185314052,1938943.9940400303,118260.29700408093,589034.52748729393,"Winter",269717.28236000001,64413.048658,102612.40867,1969.6055131999999,47013.156587999998,31580.798486,7558.3663243999999,747.06969021999998,3053.2304963000001]
[1234,"2011-11-20","KW60MN17 ",7537516.7954837941,2646212.8889719741,1887992.2121627375,107276.98854400001,650943.68826523656,"Winter",314661.62737,55643.561903000002,102214.224,1961.9625123000001,56999.462399999997,26707.033973000001,6797.7388972999997,4955.8928413000003,3053.2304963000001]
[1235,"2012-01-13","KW60MN17 ",7407796.9511203039,2645966.5659389561,1894259.1416780497,96700.799222122208,655006.62503878411,"Winter",271711.01192999998,83960.645199999999,126310.97444000001,2424.4903210000002,57090.661540000001,34440.589545000003,7896.5999635999997,742.46966563000001,3053.2304963000001]
[1236,"2012-05-15","KW60MN17 ",8039745.8575820038,2645604.1047113077,1885584.0785219045,135395.54683820324,624624.47935119993,"Summer",208146.58326000001,88388.533622000003,126035.49039000001,2419.2025112000001,42134.002606000002,38783.727534999998,9177.0199682000002,21356.368259999999,0]
[1237,"2012-04-02","KW60MN07 ",6889951.0660737446,2645190.1838823212,1955330.1107507451,122211.7955300739,567648.27760150237,"Summer",243382.83579000001,55345.572435000002,92694.810874000003,1779.2410577000001,55859.473151999999,32481.069325,6669.5509668000004,7467.6597125999997,1933.2885876]
[1238,"2012-02-21","KW60MN10 ",7448494.3982946593,2645177.6465293085,1941550.3717913304,109261.5909172071,594365.68382077129,"Winter",219849.77252,70726.829360000003,112836.17971,2165.8468456999999,57318.659389,37201.114088000002,9545.3469595000006,747.06969021999998,0]
[1239,"2011-11-18","KW60MN14 ",7358717.1316226134,2644985.779768033,1963154.7313257609,111754.91324299999,570076.13519927184,"Winter",187271.46218999999,66209.180156999995,131364.86588999999,2521.4978133999998,57683.455949000003,41822.952866,8276.4709786000003,4955.8928413000003,0]
[1240,"2011-11-17","KW60MN18 ",7651259.2348510223,2644932.4363463013,1923475.68088526,108874.62193499999,612582.13352604141,"Winter",287435.76653000002,73782.401203000001,126126.97384999999,2420.9585007999999,56771.464549999997,37291.821141,7940.0538434999999,4955.8928413000003,3053.2304963000001]
[1241,"2011-07-31","KW60MN19 ",7749708.3278284399,2644919.4517860059,1912015.1260349145,102373.152218,630531.17353309121,"Summer",269092.18906,67347.188045000003,104927.2534,2014.0380628,55084.280463000003,28782.09203,7541.6961375000001,28594.364742000002,0]
[1242,"2011-11-15","KW60MN21 ",7397633.079789022,2644765.7972526029,1889206.7074334915,108960.17267099999,646598.91714811116,"Winter",290908.51650999999,62393.271205999998,118393.26048,2272.5128626000001,57455.458099000003,38588.539897000002,7904.4618861999998,4955.8928413000003,3053.2304963000001]
[1243,"2011-08-11","KW60MN17 ",8548064.2527941968,2644515.6991327242,1927677.3648923365,130391.26340800001,586447.07083238743,"Summer",211626.72044,93437.083066000007,115731.23157,2221.4162468,56406.667991000002,36746.635684000001,9251.5524796000009,45054.637738999998,0]
[1244,"2012-02-25","KW60MN10 ",7113823.8885005144,2644433.2065780992,1953309.0952165998,118784.80900043933,572339.30236106017,"Winter",253710.76467,62217.586687000003,82264.640608999995,1579.0379719,56224.269711000001,27617.938694,5838.7807697999997,747.06969021999998,0]
[1245,"2011-07-31","KW60MN18 ",7921515.1430113064,2644426.3457546681,1916154.8610621388,81258.702148000011,647012.7825445293,"Summer",267366.37026,69646.838273000001,110636.2101,2123.6192796,55038.680892999997,28952.331872999999,7733.8967727999998,28234.451185999998,0]
[1246,"2012-03-12","KW60MN13 ",7093244.0227499148,2644259.9667108762,1963570.6410630071,109082.29052258108,571607.03512528806,"Winter",158506.77317,82139.960158999995,121386.17195,2329.9606411,53442.695946,36812.505340000003,8766.2717780999992,1354.3257784,0]
[1247,"2011-08-17","KW60MN15 ",8576308.6928869132,2644210.1248351494,1952335.1484865868,133850.33244000003,558024.64390856272,"Summer",205663.39034000001,95207.039761000007,121343.14073,2329.1346733999999,54400.286914999997,38796.332084000001,11213.843564000001,41547.396652000003,0]
[1248,"2011-08-18","KW60MN17 ",8608796.755557254,2643949.9897256219,1935486.1332029516,134790.51742000002,573673.33910267043,"Summer",226217.31103000001,98252.111151999998,120536.33813,2313.6484095999999,52165.907987999999,36605.809300000001,9693.9125714999991,39981.022366999998,0]
[1249,"2012-02-14","KW60MN13 ",7247466.3069805289,2643888.8114732392,1953393.168642686,103941.74284231999,586553.89998823334,"Winter",230413.3395,78978.614146000007,128471.75898,2465.9657449000001,56771.464549999997,36343.747018000002,9193.7426348999998,747.06969021999998,0]
[1250,"2011-12-24","KW60MN12 ",7196877.5439634761,2643710.3522813255,1899488.4601000142,101753.7619,642468.13028131123,"Winter",331376.95649999997,58738.529318000001,80312.781388000003,1541.5727887999999,55905.072721999997,17519.205341000001,6172.8278166,816.33821894000005,0]
[1251,"2012-01-08","KW60MN21 ",7335305.8289454132,2643142.6785419816,1932565.1202236945,120893.99696530936,589683.56135297788,"Winter",300165.30050000001,59117.814934000002,85129.63046,1634.0303445,56361.068421000004,25725.37412,6716.5599792000003,742.46966563000001,3053.2304963000001]
[1252,"2011-08-27","KW60MN15 ",8516853.0019740742,2643008.6114330152,1861623.3785021317,128250.95059000001,653134.28234088363,"Summer",290101.42449,82812.797256000005,108838.26891,2089.1084936000002,55585.875732,31723.896711000001,8663.8788755999994,45843.499753999997,0]
[1253,"2012-02-02","KW60MN21 ",7451487.2358494727,2642949.489686185,1920345.356524328,118401.86022647048,604202.2729353864,"Winter",297273.28879000002,74539.333498000007,99114.294152000002,1902.4605574,56452.267561000001,32393.018055,6918.3052993000001,747.06969021999998,3053.2304963000001]
[1254,"2011-08-29","KW60MN20 ",8230528.662410981,2642927.8385701999,1856033.6872429359,139589.95901799999,647304.19230926409,"Summer",255278.50575000001,78457.875321,117937.42161999999,2263.7632119999998,56452.267561000001,37401.950206000001,9014.2118157000004,40970.897394,611.07015908999995]
[1255,"2012-04-05","KW60MN11 ",6967981.7927355804,2642737.4091338199,1993302.3169320328,115811.55598645769,533623.53621532943,"Summer",233321.43984000001,67748.787320999996,102923.50435,1975.5768744,48153.145836000003,35138.311081,8422.5073680000005,7467.6597125999997,0]
[1256,"2011-08-12","KW60MN19 ",7980096.9870104212,2642693.4053975092,1922013.0675433506,135930.39956399999,584749.93829015852,"Summer",248833.55525,81822.891524000006,112751.26302,2164.2169027,56361.068421000004,35625.825819999998,8022.0250471999998,46737.607295000002,0]
[1257,"2012-01-31","KW60MN12 ",7354232.996706049,2642258.2229349809,1957755.1541516227,114820.10280920444,569682.9659741536,"Winter",220404.68205999999,79193.825995000007,122722.48351999999,2355.6106251000001,54537.085623999999,37282.608825000003,9459.5175894999993,742.46966563000001,0]
[1258,"2012-03-15","KW60MN08 ",7048270.9929115791,2642214.140920246,1943621.9178479752,106152.32876555636,592439.89430671441,"Winter",216649.16211999999,66945.816934999995,115005.28823000001,2207.4820450000002,53989.890785000003,36681.633974999997,8584.6129584999999,1354.3257784,0]
[1259,"2012-01-30","KW60MN07 ",7454998.2271521697,2642082.7781008622,1915279.442824933,116081.97512446126,610721.36015146761,"Winter",244836.47261999999,60178.551713000001,97212.986216999998,1865.9656867000001,51937.910139,33356.151731999998,8316.0446852999994,742.46966563000001,1424.4168388999999]
[1260,"2012-02-25","KW60MN11 ",7121934.5151504669,2641919.5802077148,1953488.3406577099,114824.2780233283,573606.96152667655,"Winter",255812.64209000001,64805.167802000004,80659.180607999995,1548.2217879,56543.466700999998,27353.004054000001,5732.1132428999999,747.06969021999998,0]
[1261,"2011-12-17","KW60MN19 ",7655996.7390202275,2641852.5867088474,1889986.7602431572,102790.74825,649075.07821569033,"Winter",309285.05553999997,69449.494061999998,92808.819734999997,1781.4294138,57181.860679999998,26149.239981999999,7324.6502037,816.33821894000005,3053.2304963000001]
[1262,"2011-12-09","KW60MN16 ",7419148.3935825936,2641549.6637557526,1888959.4290688685,94492.510769999993,658097.72391688416,"Winter",282306.02487999998,79831.045112000007,135949.83064999999,2609.5044392999998,57683.455949000003,33772.470730000001,8331.6060096000001,816.33821894000005,2290.3469318000002]
[1263,"2011-11-21","KW60MN12 ",7484957.8000105591,2641189.7747048987,1882059.3047130695,115005.44238000001,644125.02761182934,"Winter",254472.31461999999,79414.259950000007,124895.15629,2397.3142389,50843.520461,39129.886199,9499.4366520000003,4955.8928413000003,0]
[1264,"2011-11-18","KW60MN13 ",7314042.7951375339,2641120.0077679339,1974084.3534174925,110862.39006899999,556173.26428144157,"Winter",206257.34503,65767.886444000003,132887.25907,2550.7195620000002,57318.659389,41634.294335999999,8544.9546052999995,4955.8928413000003,0]
[1265,"2011-07-11","KW60MN13 ",8352633.1917523127,2641091.7158418731,1859606.0755511224,144786.564465,636699.07582575048,"Summer",193711.8553,84531.275227999999,137497.44665,2639.2103302999999,54582.685193999998,41465.303072000002,10585.031994999999,34556.188681,0]
[1266,"2012-06-21","KW60MN18 ",8206076.5102068838,2641019.7756812023,1879707.532075084,127254.38698972088,634057.85661639739,"Summer",205783.53578000001,84493.769255000007,118686.02976999999,2278.1324559,55312.278313000003,40778.529313999999,8598.7488434000006,24400.198308999999,0]
[1267,"2011-12-23","KW60MN13 ",7313254.2759005129,2641000.4861848429,1911707.2120497362,110738.46517999998,618554.80895510653,"Winter",276567.58593,73119.179208999994,98670.499685999996,1893.9420941999999,56497.867130999999,32202.011523000001,6991.7272564000004,816.33821894000005,0]
[1268,"2012-01-29","KW60MN18 ",7424573.2501007598,2640737.4934770102,1956177.6892503574,128327.04158024708,556232.76264640561,"Winter",258995.54225999999,62643.088750000003,81259.117777000007,1559.7373499,54263.488205000001,26428.417560000002,6607.5291361,742.46966563000001,3053.2304963000001]
[1269,"2012-01-07","KW60MN10 ",7157538.2318973476,2640448.5977734663,1907775.6866525193,118669.80022796146,614003.11089298548,"Winter",315547.49858999997,58782.298605000004,88861.658070999998,1705.6651715999999,57181.860679999998,27050.349178,6540.1441338000004,742.46966563000001,0]
[1270,"2011-12-27","KW60MN17 ",7703911.6400390044,2639926.6552825733,1948890.8499877325,92256.069359999994,598779.73593484086,"Winter",273112.36599000002,79510.537920000002,105089.12199,2017.1450678000001,56953.862829999998,31030.852471999999,7106.3853661000003,816.33821894000005,3053.2304963000001]
[1271,"2011-08-09","KW60MN18 ",8337812.6383607229,2639905.3309229109,1898955.0661377979,134262.26533200004,606687.99945311295,"Summer",255492.48035999999,82710.183665999997,117620.61649,2257.6822597999999,55996.271862000001,37787.917913999998,8894.2311637000003,40478.117446999997,0]
[1272,"2011-12-26","KW60MN11 ",7220052.3336595921,2639312.2104523522,1933550.4024047263,108745.81135,597015.99669762584,"Winter",299961.79728,60579.609496999998,84589.749670000005,1623.6675415,55950.672292000003,23144.307153999998,6414.0486536999997,816.33821894000005,0]
[1273,"2011-12-11","KW60MN22 ",7201700.6424810244,2639223.5374406138,1882958.7471051151,100589.73991999999,655675.0504154989,"Winter",312474.79178999999,65677.928027000002,82989.646840999994,1592.9541862999999,57637.856378999997,25808.178478999998,7190.1849242999997,816.33821894000005,3053.2304963000001]
[1274,"2011-09-13","KW60MN13 ",7193150.2790720109,2639033.8522317722,1904971.3939049745,108822.17259300001,625240.2857337977,"Summer",158917.33014000001,95616.072102999999,146101.88524,2804.3692024000002,52576.304118,44168.145743000001,12192.317677999999,25331.617381,0]
[1275,"2011-12-28","KW60MN19 ",7636427.8748118896,2639007.038311129,1924027.8176344791,108743.98997700002,606235.23069964966,"Winter",210350.46135,67228.13205,106861.49632999999,2051.1651081,55859.473151999999,30889.293235000001,6459.0261614999999,816.33821894000005,3053.2304963000001]
[1276,"2011-11-22","KW60MN09 ",7495342.34609129,2638667.6894823285,1929683.9502434107,115211.092118,593772.64712091803,"Winter",212277.15492999999,69202.997778000004,124252.20488999999,2384.9730353999998,47423.552716999999,39304.977277999998,8243.6215518000008,4955.8928413000003,0]
[1277,"2011-12-06","KW60MN06 ",7476075.509365919,2638636.1649206588,1929820.3358435167,92645.617529999989,616170.21154714213,"Winter",314974.84703,63457.380663000004,107585.23291000001,2065.0569519999999,58595.447347000001,32627.187577000001,9381.2437238999992,816.33821894000005,3053.2304963000001]
[1278,"2012-01-13","KW60MN22 ",7247572.4467420084,2638620.5528921862,1907566.8906236815,104181.19652453592,626872.46574396873,"Winter",297890.147,66906.167488999999,97168.241422999999,1865.1068276999999,51208.317020000002,31766.166140000001,7454.6258580000003,742.46966563000001,3053.2304963000001]
[1279,"2011-12-15","KW60MN14 ",7455188.495529145,2638312.336665865,1944107.4721378256,88802.19782999999,605402.66669803951,"Winter",220814.39113999999,81623.821607999998,125315.71858,2405.3867694999999,49749.130783000001,37161.441997000002,9733.6487990999995,816.33821894000005,0]
[1280,"2011-07-25","KW60MN14 ",8531513.9618388619,2638244.408529392,1910182.9046644666,131688.21643900001,596373.28742592537,"Summer",163747.64087,80496.193660999998,126580.3012,2429.6599439000001,56680.265411,42053.651786000002,10160.671032,40855.159784000003,0]
[1281,"2012-03-22","KW60MN07 ",7116847.7828377848,2638025.9112191284,1937023.5739943094,109806.07814034591,591196.25908447325,"Winter",282996.51137999998,59339.388112000001,111411.05305,2138.4920904000001,55677.074871999997,35107.946306999998,8962.6048320999998,1354.3257784,0]
[1282,"2012-04-05","KW60MN07 ",6798072.620008111,2637965.7216333263,2000780.1756590477,118147.37229994516,519038.17367433326,"Summer",173201.21919,56140.826956999997,84220.169607999997,1616.5735950999999,47286.754007000003,32818.098099000003,7283.7272392000004,7467.6597125999997,1627.9655384]
[1283,"2012-01-08","KW60MN10 ",7068828.2807071032,2637774.4650937365,1924007.6760476027,123071.02611904248,590695.76292709145,"Winter",277545.64354000002,48239.882572000002,84295.939698000002,1618.0279726000001,51983.509708999998,26380.747765,6001.8360874,742.46966563000001,0]
[1284,"2011-08-18","KW60MN18 ",8465106.5456537269,2637584.3527740277,1927850.5116362278,133541.762445,576192.07869280013,"Summer",238316.98235000001,87085.267752999993,106258.38188,2039.5885593999999,54582.685193999998,36466.400428000001,8656.7686104999993,40896.853284999997,0]
[1285,"2012-02-09","KW60MN10 ",7456559.520122123,2637545.9775297437,1916788.6727180178,107864.7902701946,612892.51454153121,"Winter",246145.83106,77495.352708000006,128687.04518,2470.0980801999999,57592.256808999999,36450.573704000002,9807.7699305999995,747.06969021999998,0]
[1286,"2012-02-20","KW60MN13 ",7407176.7070275676,2637392.0476718098,1952528.335186986,108539.68322949034,576324.02925533312,"Winter",229999.36979,78707.463092000005,100200.87856,1923.3171251000001,55905.072721999997,30160.159189999998,6551.1328804000004,747.06969021999998,0]
[1287,"2011-08-26","KW60MN11 ",8183780.0255785929,2637280.8158415514,1911593.8312875989,134544.63366800002,591142.35088595247,"Summer",172566.31161,98466.831319999998,122249.54268,2346.5327086000002,56087.471001999998,41428.617727999997,10368.758030999999,46301.703027000003,0]
[1288,"2012-02-09","KW60MN19 ",7531997.7557366872,2637238.0785005903,1900842.9585276239,111049.68178246504,625345.43819050153,"Winter",248190.13701999999,81956.113085999998,117080.33403,2247.3117468999999,56269.869280999999,33331.212384999999,7885.8177538,747.06969021999998,3053.2304963000001]
[1289,"2012-05-15","KW60MN18 ",7983036.259083108,2637061.3444805406,1894538.7427433857,133934.05424521386,608588.5474919409,"Summer",190737.71523999999,79438.612641,116295.83947000001,2232.2536771999999,42498.799164999997,37154.279899000001,8435.1145467999995,21356.368259999999,0]
[1290,"2011-11-28","KW60MN20 ",7660813.5504900087,2636918.6550012473,1924066.0080679487,108169.202051,604683.44488229859,"Winter",283583.17424999998,61261.240621999998,111467.57354,2139.5769792999999,53533.895085999997,33844.345903000001,7448.4703995,4955.8928413000003,3053.2304963000001]
[1291,"2012-02-15","KW60MN22 ",7146089.1823468739,2636837.0094901104,1913760.6716620079,121654.45502091145,601421.882807191,"Winter",275327.89192000002,64542.617959000003,94917.721793000004,1821.9089733999999,53442.695946,31767.309649999999,7116.5936763,747.06969021999998,3053.2304963000001]
[1292,"2011-12-27","KW60MN08 ",7347237.9812546512,2636706.8687774003,1934104.6503986067,95418.988370000006,607183.23000879388,"Winter",286669.21406000003,62447.966746999999,105132.93691,2017.9860782000001,58048.252507999998,32126.172990999999,7666.1461004000003,816.33821894000005,0]
[1293,"2012-02-25","KW60MN19 ",7347632.5758314375,2636586.8104721117,1925902.7380240373,126650.69553233983,584033.37691573449,"Winter",254996.62607,67401.922149000005,81421.646735999995,1562.8570305000001,55585.875732,27368.189605,6820.7626135999999,747.06969021999998,3053.2304963000001]
[1294,"2012-03-16","KW60MN09 ",7058985.2541040909,2636585.2634675261,1983190.747975522,108304.04027277303,545090.4752192311,"Winter",199861.76269,65102.381184999998,119160.72012,2287.2439537,50250.726051999998,38001.073422000001,8468.9323232999996,1354.3257784,0]
[1295,"2011-11-02","KW60MN11 ",7210689.2177534448,2636394.6629257742,1949427.7441289946,108457.79122,578509.12757677946,"Winter",191709.4455,77507.736332,137413.33514000001,2637.5958421999999,52667.503257999997,42672.372877000002,9539.3150841000006,4955.8928413000003,0]
[1296,"2012-01-13","KW60MN14 ",7327167.6661583399,2636388.9935717108,1924205.3732268121,93900.679937361769,618282.94040753704,"Winter",201722.89350000001,79281.001430999997,132162.79574999999,2536.8137685000002,57136.261109999999,37991.528621999998,8889.3555534000006,742.46966563000001,0]
[1297,"2012-02-01","KW60MN18 ",7574698.510915312,2636104.1649175035,1938591.6022768735,114180.94979848558,583331.61284214433,"Winter",223739.39621000001,77132.478967999996,112879.44116,2166.6772325000002,42772.396585000002,32702.318873,8212.5242978000006,747.06969021999998,3053.2304963000001]
[1298,"2011-07-25","KW60MN18 ",8633983.4658910744,2636051.3259594059,1906231.652565548,129077.297724,600742.37566985819,"Summer",217609.23396000001,75987.592359999995,110950.70973,2129.6559784000001,56634.665841000002,37071.269866000002,7838.1942111999997,40012.799464999996,0]
[1299,"2011-08-02","KW60MN12 ",7688726.1210346157,2636033.1254978501,1914080.8323464785,134609.705869,587342.58728237171,"Summer",184967.31099,100874.35580999999,125102.05249,2401.2855313999999,57090.661540000001,39194.221685999997,11781.080233000001,28944.055833999999,0]
[1300,"2012-01-02","KW60MN19 ",7452031.4568524994,2635969.1883758223,1898735.5621473929,108091.88445327261,629141.7417751567,"Winter",312579.16655000002,62899.322253999999,88697.198743000001,1702.5084383999999,55996.271862000001,24587.028467,6747.1747511000003,742.46966563000001,3053.2304963000001]
[1301,"2012-03-21","KW60MN12 ",7125090.9743838571,2635947.6167210718,1971725.0259223711,103925.72941170954,560296.86138699111,"Winter",174697.68486000001,75853.173731000003,114724.2634,2202.0878821000001,49885.929492000003,38431.486943000004,8907.4461004000004,1354.3257784,0]
[1302,"2011-08-29","KW60MN21 ",7999164.9178846134,2635554.1959473109,1863040.279451509,142650.62247099998,629863.29402480158,"Summer",266941.25085000001,74178.114763999998,108697.64632,2086.4092973000002,56680.265411,36643.218058999999,9101.3024115999997,42747.798214000002,3053.2304963000001]
[1303,"2011-11-01","KW60MN20 ",7510124.4487016024,2635520.1996811414,1945770.37575982,111828.465977,577921.35794432135,"Winter",256281.81977,66340.508906999996,117739.04356999999,2259.955422,54810.683043999998,40536.596391999999,7543.7479573999999,4955.8928413000003,3053.2304963000001]
[1304,"2012-03-05","KW60MN10 ",7186995.5003959909,2635361.6975612352,1986155.9010050143,110427.42862607251,538778.36793014803,"Winter",167158.50576999999,71423.853648000004,118780.6502,2279.9486585999998,56452.267561000001,37105.601398999999,8580.0691599000002,1354.3257784,0]
[1305,"2012-01-29","KW60MN09 ",7007508.6184781035,2635033.3225769852,1935908.3609451449,113812.07036773631,585312.89126410417,"Winter",264086.37654000003,50829.372566999999,77634.944835999995,1490.1727515,51983.509708999998,25230.030002,6095.9150581000004,742.46966563000001,0]
[1306,"2012-02-23","KW60MN20 ",7503063.8211922478,2634808.1953717498,1919681.8781246906,116406.42444773397,598719.89279932505,"Winter",246484.57208000001,76077.084805999999,103074.06057,1978.4667429000001,57364.258958999999,33513.003540999998,7747.3250172999997,747.06969021999998,3053.2304963000001]
[1307,"2011-07-30","KW60MN14 ",8368793.1328474097,2634659.4977953006,1875729.4993654033,138978.85881100001,619951.13961889734,"Summer",216952.99145,87528.939532999997,105307.04337,2021.3279844000001,55038.680892999997,32224.884965000001,7738.5286034000001,40591.971594000002,0]
[1308,"2011-08-16","KW60MN17 ",8214742.0970341759,2634146.7134111337,1947025.1905421952,129853.87418900001,557267.64867993828,"Summer",223796.41654000001,93321.783773999996,111273.70776,2135.8558005999998,54400.286914999997,36406.180839000001,9582.0985674999993,41448.675283999997,0]
[1309,"2012-03-06","KW60MN22 ",7003545.6964002764,2634092.7101815999,1944157.2599606938,109373.33213230439,580562.11808860197,"Winter",311929.74952000001,65631.766210999995,93809.364671999996,1800.634487,56087.471001999998,32911.769877999999,6936.4432488000002,1354.3257784,3053.2304963000001]
[1310,"2011-10-25","KW60MN07 ",7011174.7563806493,2634065.1643273095,1930126.399620445,107276.67667299999,596662.08803386427,"Summer",246451.29256,51149.796204999999,120171.54328,2306.6463134999999,50706.721750999997,43379.110274999999,8307.8170926999992,19170.103298999999,3053.2304963000001]
[1311,"2012-03-20","KW60MN11 ",7284024.3316301918,2633748.3178699571,1995222.7486725813,109904.45152873416,528621.11766864161,"Winter",194528.90997000001,79040.811845000004,117984.39900999999,2264.6649247999999,55677.074871999997,36833.215068999998,8483.9045110000006,1354.3257784,0]
[1312,"2012-02-10","KW60MN10 ",7278933.1179475775,2633720.0953501067,1919505.5380032756,107468.24427987788,606746.31306695298,"Winter",196031.87255999999,73214.213514999996,125337.90444,2405.8126185000001,55813.873582,37148.402519000003,9859.4463247999993,747.06969021999998,0]
[1313,"2012-03-19","KW60MN21 ",7355021.4931479087,2633719.8928230526,1965706.6101707737,118607.65496820495,549405.62768407376,"Winter",236499.42228,59208.626563999998,90280.068574999998,1732.8910129000001,57774.655089,31867.242171000002,6850.6511226000002,1354.3257784,3053.2304963000001]
[1314,"2011-09-12","KW60MN13 ",7091757.7514518611,2633525.8928003311,1907406.865660531,103693.416056,622425.61108380032,"Summer",170662.07641000001,89588.151119999995,150477.18106,2888.351314,52758.702397000001,43674.900882000002,12261.937335000001,28299.868170000002,0]
[1315,"2011-11-29","KW60MN14 ",7312541.1253933525,2633128.2149306131,1964586.2903035465,99548.055724999998,568993.86890206649,"Winter",194499.50953000001,76869.247841000004,126415.0282,2426.4875926,47879.548415999998,39331.528887,9465.0839113999991,4955.8928413000003,0]
[1316,"2011-12-17","KW60MN09 ",7308074.99785857,2633047.7246316397,1901112.973266162,99146.007060000004,632788.74430547771,"Winter",288436.57928000001,59546.222094999997,92096.497140000007,1767.7566569000001,57227.460249999996,26794.172842,6690.4145171,816.33821894000005,0]
[1317,"2011-08-03","KW60MN21 ",7582429.2187015787,2632956.8727774587,1906469.7817855317,133427.47132099999,593059.61967092706,"Summer",239338.44112,76525.226708999995,119476.47401000001,2293.3047274999999,55312.278313000003,35121.314413,8685.9816437000009,31801.522568,1476.1521327999999]
[1318,"2011-08-01","KW60MN21 ",7557237.6135861482,2632861.3660242632,1936552.810378121,133243.71468900001,563064.84095714241,"Summer",212305.48491999999,67456.089051999996,99823.762703999993,1916.078532,55449.077022999998,35109.020383000003,8278.4212234000006,28923.108014000001,1374.3777831]
[1319,"2012-02-13","KW60MN12 ",7308748.241355625,2632715.2633957746,1964288.526454157,115348.2482875307,553078.48865408706,"Winter",202323.19673,76190.823892999993,124145.56843,2382.9261898,52941.100677000002,37652.761297999998,9494.3782057000008,747.06969021999998,0]
[1320,"2011-09-07","KW60MN12 ",7689055.3950603753,2632613.7004155666,1961368.6180074804,113240.64253200001,558004.43987608608,"Summer",129619.73422,89059.892460999996,138233.46865,2653.3379880000002,41222.011208000004,40703.682243000003,10472.892948999999,35269.849661,0]
[1321,"2012-01-16","KW60MN23 ",7086696.739216567,2632569.8562404513,1933418.7552116977,109019.18026507701,590131.92076367652,"Winter",306814.58091000002,61963.951381999999,98380.870934999999,1888.3827822999999,57911.453798000002,32950.929416999999,7142.2617345999997,742.46966563000001,3053.2304963000001]
[1322,"2012-03-26","KW60MN09 ",7129851.239802287,2632259.2356283977,1970977.7349710055,126801.87978586805,534479.62087152433,"Winter",174835.59349999999,74994.985593999998,112260.95690999999,2154.8056664000001,56269.869280999999,35988.378732999998,8625.6188755999992,1354.3257784,0]
[1323,"2011-11-15","KW60MN07 ",7232588.2060822919,2631949.1286244509,1843095.1345555086,112414.670722,676439.32334694231,"Winter",343228.56819000002,59621.553793999999,122200.88984,2345.5988361,54993.081323999999,38288.340749000003,9927.6574724000002,4955.8928413000003,153.35415584]
[1324,"2012-02-25","KW60MN20 ",7280241.1279498097,2631452.8395676673,1919377.6728533995,125854.59838876584,586220.56832550175,"Winter",246905.56864000001,73712.371950999994,79591.857969000004,1527.7349425,55996.271862000001,26633.857389000001,6740.0543283999996,747.06969021999998,3053.2304963000001]
[1325,"2012-02-14","KW60MN22 ",7077547.2543495828,2631409.9148011641,1916280.6482309268,104258.86670915716,610870.39986108011,"Winter",282904.39918000001,67867.767796999993,96929.963042999996,1860.5331662999999,56680.265411,33712.438041000001,7087.9342274000001,747.06969021999998,3053.2304963000001]
[1326,"2011-08-11","KW60MN18 ",8451935.5261755642,2631333.8207591521,1917893.9430247012,131900.185681,581539.69205345097,"Summer",233024.63738,89884.194751000003,110798.88225,2126.7417086,56497.867130999999,36337.594810000002,8627.0273852999999,45690.478500999998,0]
[1327,"2011-08-09","KW60MN16 ",8529015.6076851841,2630753.6503513819,1890691.4217634678,137171.40962299999,602890.81896491407,"Summer",210524.81849000001,89919.579744999995,125335.09277,2405.7586495999999,55722.674442000003,38034.966635999997,10011.030414999999,38924.519458000002,0]
[1328,"2012-03-06","KW60MN13 ",7114485.3540749373,2630665.9918178273,1995842.2483638905,105430.77388460461,529392.96956933266,"Winter",182843.60050999999,72780.897574000002,117585.91727999999,2257.0162218999999,52667.503257999997,37521.654471000002,8974.0574383999992,1354.3257784,0]
[1329,"2012-03-14","KW60MN14 ",7123492.4438023474,2630543.0630428256,1961078.4376772812,111159.16772259763,558305.45764294663,"Winter",169911.04024999999,75326.046260999996,113525.89319,2179.0856293000002,55221.079172999998,36360.250489999999,8230.4760258000006,1354.3257784,0]
[1330,"2012-02-07","KW60MN13 ",7384641.8877238613,2630305.9690679926,1959369.1626470459,104435.85046401827,566500.95595692855,"Winter",182691.96671000001,75428.481495999993,118886.93093,2281.9886759999999,56543.466700999998,35487.710035999997,9933.4320239999997,747.06969021999998,0]
[1331,"2012-03-19","KW60MN20 ",7457148.2718843352,2630296.6194709893,1983220.7016688006,115296.47299327601,531779.44480891281,"Winter",273226.41725,60262.759386999998,95249.990546999994,1828.2867437,57546.657239,31772.926754,7127.6179740999996,1354.3257784,3053.2304963000001]
[1332,"2012-04-04","KW60MN11 ",6963096.2926599588,2630270.6495295456,1993904.3707147194,112989.41238744048,523376.8664273856,"Summer",204760.57201,74308.866670999996,114311.04111999999,2194.1562402,49429.933792999997,34995.719980000002,8767.3146166000006,7467.6597125999997,0]
[1333,"2011-11-16","KW60MN20 ",7508906.2539499374,2630182.1709911982,1847033.4794452628,107180.00705900001,675968.6844869355,"Winter",312720.82708999998,80332.131141000005,122459.67737,2350.5661626000001,57911.453798000002,36651.714672000002,8062.5738768000001,4955.8928413000003,3053.2304963000001]
[1334,"2012-03-05","KW60MN21 ",7053735.8011820456,2630161.9367068224,1938635.6671032989,105352.6694635852,586173.60013993841,"Winter",269886.17064000003,61460.667246999998,101269.41585,1943.8272852,55950.672292000003,33074.014523999998,7052.1238829000004,1354.3257784,3053.2304963000001]
[1335,"2011-11-17","KW60MN19 ",7557453.8083662866,2630131.936025375,1905274.0292105379,107133.84354099999,617724.06327383721,"Winter",269431.71438000002,75039.219245999993,124492.45050000001,2389.5844569999999,56680.265411,37239.231660999998,7643.7182905999998,4955.8928413000003,3053.2304963000001]
[1336,"2012-03-02","KW60MN12 ",7290761.2093281131,2629814.8372403807,1965097.4545680741,105832.8748524361,558884.5078198706,"Winter",208070.58087999999,85788.253951000006,116567.6372,2237.4707296000001,45052.375080999998,34976.056706000003,8975.1933872000009,1354.3257784,0]
[1337,"2012-02-08","KW60MN07 ",7427250.0576091595,2629794.0837627128,1906915.7752405491,110140.99856517898,612737.30995698459,"Winter",266886.26545000001,60362.064572000003,105714.43722000001,2029.1477520000001,49794.730352999999,33813.377127,8965.1188189000004,747.06969021999998,864.65791420000005]
[1338,"2011-12-09","KW60MN15 ",7314478.8456509365,2629779.3035188871,1900322.6885868059,87969.946909999999,641486.66802208126,"Winter",251290.25172999999,75413.658748000002,139624.07741999999,2680.0301856000001,58093.852078000004,36486.629634999998,8957.0249659000001,816.33821894000005,0]
[1339,"2011-08-18","KW60MN16 ",8666826.8958110139,2629500.4519399134,1928354.5887984247,136156.502355,564989.36078648898,"Summer",204711.62779,98212.427962999995,126204.09523000001,2422.4388159,50433.124331999999,37453.455061000001,10924.19166,39817.662461,0]
[1340,"2012-03-21","KW60MN20 ",7206352.4914978575,2629269.8062281944,1943218.3323555412,109852.17101892665,576199.30285372655,"Winter",273043.24209000001,70431.343290000004,99316.661663000006,1906.3449235,48837.139384000002,32216.263610000002,7318.9975424000004,1354.3257784,3053.2304963000001]
[1341,"2012-01-25","KW60MN21 ",7437891.0431812052,2629262.6603866294,1889364.6489755679,114828.99615960081,625069.01525146083,"Winter",240015.64761000001,71440.758812,98375.358515999993,1888.2769736,57729.055519000001,33285.051996000002,7413.6097833000003,742.46966563000001,3053.2304963000001]
[1342,"2012-01-22","KW60MN16 ",7103514.079818123,2629079.6201989213,1937948.9753816777,116400.48877655593,574730.15604068781,"Winter",314758.14859,49180.774416,77363.573113999999,1484.9638762,55449.077022999998,24772.74136,6627.4175646000003,742.46966563000001,560.18298412000001]
[1343,"2012-04-02","KW60MN11 ",7156304.6438695751,2628866.328854851,1950597.6117334764,120802.69707288859,557466.02004848619,"Summer",206549.80209000001,69472.783051000006,104741.39386,2010.4705609,56725.864979999998,34777.838943000002,7953.7885060999997,7467.6597125999997,0]
[1344,"2012-01-11","KW60MN23 ",7077287.5239825761,2628808.2296436415,1908870.5688353265,101534.51621616152,618403.14459215349,"Winter",291113.42933999997,64525.140774,95111.937225000001,1825.6368636,57729.055519000001,33108.860323000001,7494.6668098,742.46966563000001,3053.2304963000001]
[1345,"2011-12-23","KW60MN22 ",7410755.1239199191,2628731.3943875688,1894173.1031796576,101718.67188000001,632839.61932791106,"Winter",310985.2046,65170.416396000001,91647.767609999995,1759.1434671,56908.26326,27080.105962000001,6897.4451344999998,816.33821894000005,3053.2304963000001]
[1346,"2011-08-04","KW60MN21 ",7629781.191197522,2628718.0322899739,1877461.4575674562,122807.476205,628449.09851751779,"Summer",251450.00404,80899.589342000007,110851.33440000001,2127.7485071999999,55677.074871999997,36201.348379000003,8610.1049528000003,35000.577297999997,1577.9264826000001]
[1347,"2011-09-14","KW60MN14 ",7120874.6475494392,2628703.7649694979,1911748.9099872587,109633.426395,607321.428587239,"Summer",142367.45535,90103.315948999996,154494.10399,2965.4545968000002,54901.882184000002,42417.155953000001,12253.384701000001,22078.754664,0]
[1348,"2012-02-22","KW60MN09 ",7384280.570815973,2628618.1881676475,1944145.7695754999,117246.10066696117,567226.31792518613,"Winter",194899.72227999999,65372.420332000002,117983.92799,2264.6558836999998,57409.858528999997,35983.823649999998,8975.0630330999993,747.06969021999998,0]
[1349,"2012-01-29","KW60MN11 ",6995288.2229736615,2628443.9667450497,1934382.1077645083,113902.2493469005,580159.60963364074,"Winter",291195.51529000001,54427.019958999997,76129.427878000002,1461.2749355000001,55266.678742999997,25398.681342,5966.5285402999998,742.46966563000001,0]
[1350,"2011-11-16","KW60MN07 ",7403515.0367704928,2627904.9386369428,1832900.1430974342,101744.951919,693259.84362050844,"Winter",311423.94316999998,59543.445541000001,118605.27329,2276.5823664999998,57820.254658999998,39331.821533000002,9815.2746470000002,4955.8928413000003,187.30720972]
[1351,"2011-12-18","KW60MN19 ",7650312.5997759234,2627877.705959063,1888278.8440439191,106899.06758,632699.79433514376,"Winter",325417.02854999999,63090.541335000002,95624.565612999999,1835.4765672999999,57136.261109999999,25764.419997000001,6961.0109082999998,816.33821894000005,3053.2304963000001]
[1352,"2011-08-09","KW60MN17 ",8449757.7118239105,2627475.2135697892,1888824.2790206843,132673.67379900001,605977.26075010467,"Summer",218074.36298000001,89142.732745999994,122240.02426999999,2346.3500063000001,55859.473151999999,37930.879755000002,9301.9134754999995,39497.385403,0]
[1353,"2011-11-19","KW60MN08 ",7124083.7194222193,2627336.5257197795,1914207.885681682,114940.694395,598187.94564309774,"Winter",274980.77802000003,55569.732563999998,100118.77228,1921.7411268000001,57181.860679999998,33093.577744000002,6263.7985845000003,4955.8928413000003,0]
[1354,"2011-12-19","KW60MN07 ",7532331.9294890519,2627235.3890070813,1868403.4151715864,104082.77097,654749.20286549511,"Winter",305344.11355000001,63112.382595000003,103547.05399,1987.5456687999999,55585.875732,33979.996113000001,8367.4011171999991,816.33821894000005,1984.1757625]
[1355,"2012-06-21","KW60MN17 ",8210650.1167546976,2626463.8026139061,1870164.4358227875,126549.64418971856,629749.72260139999,"Summer",190084.47213000001,94270.473427999998,129456.15122,2484.8607732999999,55950.672292000003,41649.659896999998,8862.2959140999992,25928.607673999999,0]
[1356,"2012-01-02","KW60MN09 ",7097342.7291654898,2626153.3012550301,1912778.9502580171,100823.3113570253,612551.03963998775,"Winter",270278.04232000001,51781.608433000001,91385.658234000002,1754.1123789999999,55221.079172999998,22846.325937000001,7626.0035723999999,742.46966563000001,0]
[1357,"2011-12-16","KW60MN17 ",7845640.7830170924,2626119.995242022,1883024.6604475998,98679.796740000005,644415.53805442224,"Winter",270721.16869999998,83294.730205999993,125489.86615,2408.7294648000002,58002.652937999999,33263.274533999996,7433.7419925000004,816.33821894000005,3053.2304963000001]
[1358,"2011-11-05","KW60MN10 ",6949719.9429413276,2625983.8795704655,1897870.04925322,121766.01443600001,606347.81588124542,"Winter",272171.11722999997,58024.918013000002,108290.9381,2078.6026901999999,57090.661540000001,30371.829969999999,6175.9969627999999,4955.8928413000003,0]
[1359,"2011-12-07","KW60MN14 ",7399550.8964592302,2625947.550355508,1980098.1135007809,90349.464449999999,555499.97240472725,"Winter",189358.15184000001,82664.691886999994,137835.27835000001,2645.6948791,56406.667991000002,35926.737948000002,10573.188324000001,816.33821894000005,0]
[1360,"2011-11-09","KW60MN09 ",7279028.6096745608,2625524.9663649914,1945465.7692749947,128051.61071200001,552007.58637799683,"Winter",218411.58841,68124.851299999995,132174.97977000001,2537.0476361000001,47742.749706000002,40341.945360999998,10385.091327,4955.8928413000003,0]
[1361,"2012-04-03","KW60MN09 ",7012720.1532242727,2625491.3670735639,1986193.3243831757,108264.3256906298,531033.71699975838,"Summer",179116.16680000001,68088.730389999997,110400.62432,2119.0973015,55357.877883000001,34380.697989,8175.5780033999999,7467.6597125999997,0]
[1362,"2012-02-27","KW60MN18 ",7575547.5856569968,2625276.7822875208,1937581.6464258421,115557.48754430821,572137.64831737056,"Winter",194859.61728000001,59545.407445999997,103928.58818999999,1994.8690703,52758.702397000001,34695.841650000002,7491.7177425,747.06969021999998,3053.2304963000001]
[1363,"2011-10-27","KW60MN11 ",7185516.4308593506,2625229.6044154996,1936302.6067949797,110447.903886,578479.09373452025,"Summer",181999.33929999999,76563.105458999999,140754.73741,2701.732767,46009.966049000002,42492.392310000003,9786.8742146999994,19170.103298999999,0]
[1364,"2012-01-10","KW60MN12 ",7370333.7654119665,2625097.4700369965,1963000.9821305242,104339.39473389731,557757.09317257488,"Winter",169563.37521999999,71642.552257000003,122583.28502,2352.9387637,56224.269711000001,37019.277601000002,9445.3376886000005,742.46966563000001,0]
[1365,"2011-07-28","KW60MN13 ",8562481.7003012132,2624986.0481307148,1884354.1337531745,140893.70773099997,599738.20664654032,"Summer",176991.27987999999,86227.143888000006,127190.01686,2441.3632004000001,56178.670141000002,42370.254402999999,11017.397084,33074.486611,0]
[1366,"2012-01-30","KW60MN12 ",7331454.8075158345,2624879.1134517798,1929111.3941343685,116573.72851963439,579193.99079777719,"Winter",183035.92223,75611.885091999997,120961.65016,2321.8121095000001,55221.079172999998,35397.170816999998,8464.4257696000004,742.46966563000001,0]
[1367,"2012-05-15","KW60MN16 ",8046816.5484568421,2624790.4217655347,1868437.99902457,134761.71300746681,621590.70973349782,"Summer",181256.31565999999,94153.099753999995,137305.43476,2635.5247362999999,40766.015507999997,39596.562521,9771.4009224000001,21356.368259999999,0]
[1368,"2011-10-25","KW60MN11 ",7096967.2666291269,2624751.1065583075,1964418.9334364836,101324.80694900001,559007.36617282394,"Summer",168057.40263999999,71299.029234000001,139251.69372000001,2672.8824245999999,56497.867130999999,45938.401843,9993.4172717000001,19170.103298999999,0]
[1369,"2011-11-15","KW60MN10 ",7301445.6976694483,2624707.9088902683,1901113.8788727042,116767.217605,606826.81241256406,"Winter",226131.70634999999,71445.855588000006,132558.37601000001,2544.4067788000002,57090.661540000001,40807.081485000002,10617.637640999999,4955.8928413000003,0]
[1370,"2012-02-07","KW60MN21 ",7477462.0518536782,2624510.3608304472,1909006.5396691114,109139.69799479694,606364.12316653866,"Winter",268131.08916999999,69721.281409999996,104304.71975,2002.0887700999999,56999.462399999997,31089.143627000001,7770.9378702000004,747.06969021999998,3053.2304963000001]
[1371,"2012-02-20","KW60MN08 ",7316657.4418908525,2624503.5362702068,1946182.0482927205,100738.55229807613,577582.93567941012,"Winter",231012.30731,63190.399259999998,94463.120202999999,1813.1830717,56497.867130999999,28643.321244999999,6712.5866957999997,747.06969021999998,0]
[1372,"2011-08-11","KW60MN16 ",8566179.9080200847,2624205.8389768749,1920984.5557915948,134161.97459599999,569059.30858928,"Summer",195745.06455000001,96706.817515999996,120417.35722999999,2311.3646171999999,56406.667991000002,37181.243915999999,9816.7576454999999,45078.743395999998,0]
[1373,"2011-08-20","KW60MN18 ",8128290.6409303723,2624057.4393204539,1927784.7886519739,130903.71043499999,565368.94023348007,"Summer",235643.53443,81494.274802,102687.49496,1971.0467655,55266.678742999997,32409.819119,7701.7583729999997,40983.648777000002,0]
[1374,"2012-04-13","KW60MN09 ",6943359.2892810395,2623804.9149500467,1987761.7013422002,126198.34793939329,509844.86566845328,"Summer",163818.34396,60499.208337999997,108134.66725,2075.6031317000002,33196.486901999997,36077.719705000003,8478.0757869000008,7467.6597125999997,0]
[1375,"2011-11-22","KW60MN10 ",7419151.9570450941,2623707.4740103623,1931408.5004146209,113606.27856599999,578692.69502974139,"Winter",196306.60879999999,72602.264572999993,122698.26085000001,2355.1456801999998,47149.955297,40508.686397999998,8326.3444130000007,4955.8928413000003,0]
[1376,"2012-01-23","KW60MN15 ",7537145.0392969325,2623665.0437432132,1931711.1953553152,100027.9693283291,591925.87905956863,"Winter",206373.27223999999,69130.582425000001,117778.66521000001,2260.715944,57592.256808999999,36570.009445000003,9052.4041001000005,742.46966563000001,0]
[1377,"2011-07-24","KW60MN15 ",8643747.4579359591,2623057.5852557379,1883287.9794897155,128638.93213500001,611130.6736310221,"Summer",251583.83223,68344.088187000001,96455.968664,1851.4350274000001,54947.481754,30357.465565999999,7196.0966021000004,39739.968047000002,0]
[1378,"2012-03-01","KW60MN22 ",7119090.3283793721,2622895.2684879196,1925349.4597430942,109336.78718639641,588209.021558429,"Winter",270690.86738000001,66631.638936999996,93596.379503000004,1796.546319,56406.667991000002,31102.617676000002,6896.7222582000004,1354.3257784,3053.2304963000001]
[1379,"2012-01-02","KW60MN18 ",7522197.375757359,2622646.7483599707,1878237.9641170218,108075.81557864395,636332.96866430482,"Winter",305176.28512999997,62133.033551,89918.222158999997,1725.9455108,56224.269711000001,24546.756372,6717.9007721999997,742.46966563000001,3053.2304963000001]
[1380,"2012-01-17","KW60MN06 ",7449134.9346137829,2622564.5853552087,1896182.4972587128,117677.56106612354,608704.52703037264,"Winter",278017.91600000003,60454.092551000002,96803.385601999995,1858.1035612000001,50524.323471000003,33112.382486000002,8909.9956382,742.46966563000001,3053.2304963000001]
[1381,"2012-02-23","KW60MN19 ",7516641.5414094618,2622355.4892254956,1912835.7266084144,116426.20769559947,593093.55492148164,"Winter",223299.86274000001,74577.967445999995,105250.53217999999,2020.2432739999999,56725.864979999998,33285.063185999999,7888.8159154000004,747.06969021999998,3053.2304963000001]
[1382,"2011-12-27","KW60MN20 ",7642041.5620085513,2622274.2675767122,1936234.231380254,100973.53435,585066.50184645783,"Winter",270257.32211000001,63536.032014999997,100105.19127,1921.4804443999999,57501.057669000002,29383.032389,6472.4137755000002,816.33821894000005,3053.2304963000001]
[1383,"2012-02-04","KW60MN08 ",7124821.361279007,2622071.7438641284,1885668.1221910578,112340.74936527014,624062.87230780034,"Winter",278070.64390999998,57672.379223000004,83179.510649000003,1596.5985487,57546.657239,26897.595239999999,6852.5319578999997,747.06969021999998,0]
[1384,"2011-12-29","KW60MN20 ",7439839.2050452577,2621759.4644549675,1914695.8611486896,100904.24539299999,606159.35791327793,"Winter",273291.70445999998,61350.402066000002,104869.32076,2012.9260681999999,55905.072721999997,29719.030994000001,6306.7039582999996,816.33821894000005,3053.2304963000001]
[1385,"2011-10-28","KW60MN11 ",7153720.0690241298,2621714.0911196684,1919968.8798965511,108453.135134,593292.07608911744,"Summer",184392.58210999999,76812.977633999995,141681.5183,2719.5219677999999,57729.055519000001,42544.481462000003,9527.2276323999995,19170.103298999999,0]
[1386,"2012-01-12","KW60MN23 ",7089359.8889736179,2621609.574795315,1896813.6521861067,101977.4415730589,622818.4810361492,"Winter",315171.38699000003,66279.447216,95984.077009000001,1842.3772495000001,56908.26326,33277.674709999999,7308.9263596000001,742.46966563000001,3053.2304963000001]
[1387,"2012-02-13","KW60MN13 ",7283768.3312627897,2621606.9529566127,1966570.0717985763,110090.20627827135,544946.67487976514,"Winter",177137.37062,78090.327393,124079.69349999999,2381.6617460000002,55540.276163000002,38205.527114999997,9350.5595413999999,747.06969021999998,0]
[1388,"2011-12-05","KW60MN14 ",7545269.5574084315,2621297.2303132219,1974273.5163923025,92318.82157,554704.89235091931,"Winter",189115.64587000001,74402.832452999995,125247.05897,2404.0688747999998,57409.858528999997,37492.740416000001,9778.6263068999997,816.33821894000005,0]
[1389,"2012-02-13","KW60MN21 ",7339182.5806192802,2621153.1320591122,1920479.2863093072,128151.468913223,572522.37683658232,"Winter",292098.41842,59962.80962,97007.232208000001,1862.016318,56269.869280999999,33830.348123000003,7310.6175866000003,747.06969021999998,3053.2304963000001]
[1390,"2011-08-05","KW60MN14 ",8134560.3999001235,2620959.1022898974,1848448.3698685076,127880.763223,644629.96919838991,"Summer",210242.11212999999,89593.280031999995,131225.08682,2518.8148083000001,54673.884334000002,40536.628687999997,9174.6803516,32061.231123000001,0]
[1391,"2011-12-16","KW60MN13 ",7476819.3472836902,2620688.7507062303,1912722.286148777,97037.774210000003,610928.69034745346,"Winter",250994.38193,83638.868635000006,129005.23686,2476.2056465999999,58048.252507999998,36872.125335999997,8635.4784433999994,816.33821894000005,0]
[1392,"2011-09-06","KW60MN12 ",7452989.0057150526,2620546.8442311706,1935400.3388886175,113080.705829,572065.7995135528,"Summer",129172.91954,87437.162215000004,136745.66467,2624.7801657,55813.873582,40524.067352999999,10687.826118999999,30266.878444999998,0]
[1393,"2012-02-26","KW60MN21 ",7179796.5447754478,2620452.7219040655,1922100.1990917788,116772.79449029881,581579.72832198814,"Winter",260100.89934999999,58217.187941999997,80876.978205000007,1552.4023285999999,55540.276163000002,26837.414951999999,6399.7536333999997,747.06969021999998,3053.2304963000001]
[1394,"2011-11-16","KW60MN12 ",7311379.3051633863,2620252.0123547455,1859617.8744330511,101284.06446999998,659350.07345169433,"Winter",267490.14039999997,82083.344490000003,139008.4278,2668.2130293,57729.055519000001,40036.057793,11138.027817,4955.8928413000003,0]
[1395,"2012-01-14","KW60MN20 ",7301668.1308564544,2619846.8942624549,1935201.4626461123,106364.11329356043,578281.31832278229,"Winter",288977.18075,69758.597779999996,82911.403363000005,1591.452333,55768.274012000002,26396.577376000001,7253.9944788000003,742.46966563000001,3053.2304963000001]
[1396,"2011-07-05","KW60MN22 ",7926401.6785035832,2619803.5820027008,1841664.3430159367,142043.355301,636095.88368576404,"Summer",229474.21045000001,62584.183387999998,107434.92277,2062.1718068999999,54810.683043999998,36135.066734,7604.4086798999997,44976.820871000004,3042.6996786999998]
[1397,"2012-01-12","KW60MN15 ",7395064.2579818694,2619687.6232428034,1905561.3077315441,91157.212249248609,622969.10326201085,"Winter",234583.50745,79874.991146999993,132144.28219,2536.458408,56497.867130999999,36930.224870999999,9758.8394535000007,742.46966563000001,0]
[1398,"2012-02-27","KW60MN13 ",7314141.8309438024,2619663.317500839,1956601.427507306,105829.89545616774,557231.99453736539,"Winter",169552.76605000001,78764.287645000004,120536.09653,2313.6437722000001,50433.124331999999,38385.530398000003,9232.0297222999998,747.06969021999998,0]
[1399,"2011-07-07","KW60MN20 ",7787617.6892227465,2619082.8615927929,1866527.5120500922,141214.439587,611340.90995570039,"Summer",230466.28997000001,66713.515140999996,112300.34785999999,2155.5617605000002,55449.077022999998,36982.725909000001,7364.4270606,36560.245497000004,0]
[1400,"2011-08-16","KW60MN19 ",7872138.0622065747,2618923.578564778,1928582.3569975453,136844.17948299999,553497.04208423244,"Summer",241779.96044,84698.289443000001,103414.85689,1985.0081964000001,53989.890785000003,35083.673628999997,8326.0600018000005,41180.980664000002,0]
[1401,"2011-12-03","KW60MN08 ",7065286.0322558759,2618667.7794223446,1903050.2298071468,98955.660739999992,616661.88887519808,"Winter",331234.978,57895.204099000002,99993.029064000002,1919.3275343,58139.451648000002,28908.862552999999,7152.7646126,816.33821894000005,0]
[1402,"2011-08-11","KW60MN19 ",8224432.1115597719,2618606.0754542905,1909332.8597524876,133922.01496499998,575351.20073680312,"Summer",251321.66589999999,76923.443666000006,105414.11468,2023.3831769000001,56269.869280999999,36421.504157000003,8281.3465899999992,45973.606237,0]
[1403,"2011-12-11","KW60MN16 ",7198359.5771093164,2618585.2169847265,1853341.4077562443,92851.323439,672392.48578948248,"Winter",351046.75474,52798.434526999998,90582.207116000005,1738.6904454,57273.059820000002,26568.235724999999,7150.1439725,816.33821894000005,2290.3469318000002]
[1404,"2011-12-10","KW60MN16 ",7151372.8545060856,2618499.7852937556,1842065.256059482,88804.162215000004,687630.36701927369,"Winter",365726.71250000002,65076.628968999998,100675.44961,1932.4263328,57592.256808999999,26327.182474000001,7501.5536106,816.33821894000005,2290.3469318000002]
[1405,"2011-07-11","KW60MN20 ",7901062.3868165296,2618461.6864430793,1847413.7307272423,141434.665591,629613.29012483673,"Summer",218421.93262000001,60269.856631000002,112532.93906,2160.0262585,54856.282614000003,37460.149608,7474.8596423999998,31143.562826000001,0]
[1406,"2012-02-21","KW60MN19 ",7548723.2006043773,2618326.7860130155,1939368.0362209342,119068.83294424436,559889.91684783692,"Winter",193401.77282000001,72624.432014000005,101832.00876,1954.6260385,55905.072721999997,34358.548709000002,7701.3469931,747.06969021999998,3053.2304963000001]
[1407,"2011-07-24","KW60MN21 ",8312628.1937875608,2617823.7773275529,1870416.7510144243,131501.49594499997,615905.53036812868,"Summer",259431.65239,65393.106301,97603.471579999998,1873.4609022,55266.678742999997,29216.578534,6910.7108593000003,43329.165108000001,916.39320871999996]
[1408,"2012-06-21","KW60MN16 ",8144069.3662976697,2617778.4895050218,1862114.1204651447,130333.05045099303,625331.3185888842,"Summer",171262.27364999999,96072.683459000007,136371.98066,2617.6074457,57364.258958999999,42526.504883000001,9800.2618287999994,35145.460307000001,0]
[1409,"2011-12-11","KW60MN14 ",6957699.9798734225,2617764.551219102,1842670.6606940597,94728.656226999999,680365.23429804214,"Winter",352594.40091999999,54709.579308,91724.448053,1760.6153185000001,57273.059820000002,27253.067547999999,6839.4659978,816.33821894000005,0]
[1410,"2012-02-17","KW60MN11 ",7379306.0733228,2617106.8306226972,1884198.5723253894,122274.6696237357,610633.58867357229,"Winter",222542.19188,79520.983739999996,115811.2775,2222.9526974999999,56771.464549999997,37110.861900999997,8470.9993790000008,747.06969021999998,0]
[1411,"2012-03-07","KW60MN06 ",6979512.6249107262,2617077.0383670721,1923699.2263703085,108513.22976087315,584864.58223589032,"Winter",280126.13136,56156.356699000004,92504.347435999996,1775.5851857,54765.083473999999,32104.785028999999,8155.3357552999996,1354.3257784,1526.1911886]
[1412,"2012-02-04","KW60MN11 ",7184935.0736217964,2616591.0630274066,1892056.3939697689,113709.3957462024,610825.27331143524,"Winter",286701.12637000001,66720.499909000006,81670.717541000005,1567.6378483000001,57865.854227999997,26928.717003000002,6897.9326959,747.06969021999998,0]
[1413,"2011-07-29","KW60MN12 ",8582115.7434525453,2616364.4128717044,1871198.5740025984,143480.32689899998,601685.51197010616,"Summer",164178.18674,90397.691718999995,130180.70228,2498.7682507,55950.672292000003,41938.100605,8902.9869481999995,36668.873061999999,0]
[1414,"2012-02-14","KW60MN14 ",7216273.8043936491,2616357.1581098163,1930810.6782618598,99632.748377182579,585913.73147077404,"Winter",179164.29491999999,74931.161810999998,129276.93584999999,2481.4208035000001,56361.068421000004,37357.715839999997,9189.4595466999999,747.06969021999998,0]
[1415,"2011-08-16","KW60MN16 ",8186093.378934145,2615955.2893658062,1943426.0968233463,124497.05451900001,548032.1380234597,"Summer",194467.63962,93978.835647999993,117082.11868,2247.3460025999998,53853.092076000001,36759.492148999998,10700.685543,40857.584647000003,0]
[1416,"2011-08-18","KW60MN15 ",8484176.5420591068,2615805.7193176276,1917752.1024308112,137236.57535,560817.04153681651,"Summer",174191.04122000001,95398.411487999998,125537.33925,2409.6406926,49885.929492000003,39138.997909999998,11245.941333999999,39741.452608,0]
[1417,"2011-07-26","KW60MN14 ",8759027.6410199739,2615792.6740037426,1889717.3607098637,126647.79098300001,599427.52231087908,"Summer",170786.85342,86798.668904999999,122839.87761,2357.8639594000001,55449.077022999998,42815.602522000001,11055.914408000001,36384.702426000003,0]
[1418,"2012-02-06","KW60MN13 ",7364169.1175625985,2615756.2751251305,1926296.4976456547,104400.10374501839,585059.67373445758,"Winter",196851.82065000001,77463.656931999998,118324.19748,2271.1872248999998,57090.661540000001,34854.709027999997,9431.5844034000002,747.06969021999998,0]
[1419,"2011-08-26","KW60MN22 ",7817712.7903047763,2615677.4962126645,1872201.3708415504,130410.54444400001,613065.58092711389,"Summer",238391.43732999999,82776.787215999997,95591.871985999998,1834.8490257999999,54947.481754,35855.563832,8649.8614945000008,49693.326464999998,3053.2304963000001]
[1420,"2012-06-01","KW60MN16 ",7791456.6014845176,2615390.1991728302,1903962.659174033,133905.96298814341,577521.5770106538,"Summer",142009.01157,84446.624077,123061.77422000001,2362.1231788,56406.667991000002,43012.672533999998,8778.9534445000008,24489.217510999999,0]
[1421,"2012-01-25","KW60MN11 ",7395524.8781724349,2615306.0015133796,1930991.034632849,114757.38240621709,569557.58447431377,"Winter",187135.93822000001,73734.637407000002,123855.58773,2377.3601223999999,55175.479603,36422.795643999998,9631.9516865999994,742.46966563000001,0]
[1422,"2011-11-19","KW60MN17 ",7366932.3316721069,2615096.1871970263,1875527.7982081417,118941.851903,620626.53708588472,"Winter",299150.19027999998,69566.359987000003,104985.42385000001,2015.1546221000001,57546.657239,30195.774009000001,6718.5508534000001,4955.8928413000003,3053.2304963000001]
[1423,"2011-11-20","KW60MN12 ",7018771.6460428368,2614674.2147405255,1869560.4201597827,106920.91291300001,638192.88166774274,"Winter",312477.11287999997,47590.233233999999,99113.341312000004,1902.442268,55540.276163000002,27032.307595999999,6166.144166,4955.8928413000003,0]
[1424,"2011-07-28","KW60MN22 ",7994124.6051919246,2614632.7149063535,1868189.8468273235,140206.08179999999,606236.78627902991,"Summer",221999.20572999999,74048.047353999995,99898.740483000001,1917.5177014999999,55768.274012000002,37155.365038000004,7838.5395670999997,41117.021618999999,3053.2304963000001]
[1425,"2012-03-15","KW60MN09 ",7040257.3719080556,2614535.7793239988,1930925.967831203,104599.689862232,579010.1216305641,"Winter",181747.64436000001,75033.322283000001,119966.61339,2302.7127635000002,52895.501106999996,37184.017090000001,8706.5506263000007,1354.3257784,0]
[1426,"2012-01-09","KW60MN15 ",7273311.7474843422,2614512.3718913663,1930452.3971610162,94068.549191772036,589991.42553857807,"Winter",246777.79222999999,67087.183376999994,126301.17929,2424.3023069000001,53761.892935999997,36973.166036000002,8843.3826074000008,742.46966563000001,0]
[1427,"2012-03-13","KW60MN13 ",7103629.5673275748,2614371.698575221,1982952.5512041659,112028.07591751074,519391.07145354443,"Winter",170330.69078999999,77039.400141000006,116771.57533000001,2241.3852430000002,56361.068421000004,37638.023328000003,8625.3767876000002,1354.3257784,0]
[1428,"2011-07-06","KW60MN11 ",8212828.4157898743,2614236.557178413,1865490.4022630311,141051.62899699999,607694.5259183821,"Summer",152798.07381999999,78216.514376000006,124031.13402,2380.7296655,55449.077022999998,40704.105557000003,9796.5644905999998,41633.240384999997,0]
[1429,"2012-03-14","KW60MN20 ",7208346.5759319887,2613943.475590053,1916519.129538961,116591.98156896917,580832.36448212294,"Winter",279564.09957999998,67365.658234999995,97854.339439000003,1878.2762138000001,56452.267561000001,32707.946687,7053.0922337000002,1354.3257784,3053.2304963000001]
[1430,"2011-07-29","KW60MN22 ",8025688.0038409168,2613134.0404253984,1886121.2510583173,143639.016497,583373.77287008124,"Summer",200441.57887999999,85228.498758999995,108289.22464,2078.5698010999999,55221.079172999998,35951.530709999999,7107.6448991999996,42132.526160000001,3053.2304963000001]
[1431,"2012-01-12","KW60MN16 ",7429128.6091282386,2613052.3615338248,1886281.2443298686,92809.589512538339,633961.52769141784,"Winter",246879.26298,82108.000866999995,128834.14601,2472.9216237000001,56543.466700999998,35949.660573000001,9220.0438458000008,742.46966563000001,1221.7162585000001]
[1432,"2011-11-21","KW60MN16 ",7492185.9419847345,2612650.0691291937,1877414.7952137331,110830.808602,624404.46531346068,"Winter",260725.05997,78103.800428000002,117419.88734,2253.8293414,55221.079172999998,38210.631079999999,7262.4049075000003,4955.8928413000003,1832.3623579]
[1433,"2011-11-18","KW60MN16 ",7369745.0855337782,2612569.5875464473,1948112.3947645903,111504.919181,552952.27360085724,"Winter",187986.97192000001,70395.187030999994,125991.04909,2418.3494775999998,57501.057669000002,39013.939530000003,7311.5063702999996,4955.8928413000003,1730.5880082000001]
[1434,"2012-01-15","KW60MN08 ",6862691.8423999026,2612490.7567444462,1876949.3861074888,104614.20434329871,630927.16629365855,"Winter",317789.30897999997,59883.851369000004,86169.444977000006,1653.9891821000001,56224.269711000001,24511.892476000001,7279.7336404999996,742.46966563000001,0]
[1435,"2011-12-27","KW60MN13 ",7341890.0529006273,2612440.5157392868,1919094.8126977987,98307.714630000002,595037.98841148813,"Winter",273711.11124,76228.983833999999,106562.13352,2045.4189547000001,58367.449498000002,33662.509597999997,7591.6102024000002,816.33821894000005,0]
[1436,"2011-11-28","KW60MN08 ",7447345.3786038812,2612185.10791574,1878449.5160348648,110539.24843200001,623196.34344887512,"Winter",327091.44426999998,62721.216284000002,115099.5659,2209.2916685,57729.055519000001,34360.618714999997,9398.0848953999994,4955.8928413000003,0]
[1437,"2012-01-06","KW60MN15 ",7144675.3548538676,2612125.638237414,1954907.2985529618,96072.793644367979,561145.54604008433,"Winter",195669.29535,77148.932621,125085.76693,2400.9729364999998,54810.683043999998,36826.291510000003,8998.5692314999997,742.46966563000001,0]
[1438,"2012-02-23","KW60MN11 ",7305269.126934831,2611986.5102397646,1926669.4832595848,105395.31077299913,579921.71620718052,"Winter",195717.47646000001,81789.820324999993,120627.98866,2315.4076061000001,57318.659389,37176.977948,9429.1821493999996,747.06969021999998,0]
[1439,"2012-03-07","KW60MN19 ",7357975.150373511,2611836.4319881704,1931984.2209350481,115477.05113185623,564375.15992126591,"Winter",205156.78909999999,75107.193398999996,106721.82773,2048.4842232999999,55540.276163000002,33256.857492000003,7676.4305911000001,1354.3257784,3053.2304963000001]
[1440,"2011-08-05","KW60MN19 ",7892012.2499206616,2611763.4175396278,1855118.4762395902,119485.52274399999,637159.41855603748,"Summer",207826.85607000001,80933.912240000005,118341.44391,2271.5182635000001,54081.089925,36115.762659,7843.0698215000002,28880.666439000001,0]
[1441,"2012-01-26","KW60MN11 ",7461007.9518759176,2611345.9042351898,1931591.6692648095,102967.45209769052,576786.78287268989,"Winter",209109.97244000001,76032.073461000007,119174.92465,2287.5166041000002,57090.661540000001,36580.480345000004,9309.6331914000002,742.46966563000001,0]
[1442,"2011-12-04","KW60MN10 ",7088680.4185598828,2611068.4296854418,1909034.162440259,113036.69361,588997.57363518293,"Winter",296910.09685999999,53018.296460999998,89620.379436999996,1720.2285349000001,56771.464549999997,26288.538058999999,6185.4840883999996,816.33821894000005,0]
[1443,"2011-08-23","KW60MN22 ",7754493.0488904621,2611038.625823996,1898976.4431778183,139090.336484,572971.84616217739,"Summer",232414.47747000001,78277.433061000003,99676.079587999993,1913.2438116999999,50706.721750999997,36868.488898000003,8589.0788816000004,47974.765871000003,3053.2304963000001]
[1444,"2011-07-15","KW60MN16 ",8557897.2513048649,2610898.837825615,1869795.9663149561,132626.16478600001,608476.70672465872,"Summer",192494.42889000001,85744.158483000007,118153.45660999999,2267.9099200999999,54901.882184000002,41087.322209999998,7980.1151116000001,40049.739590999998,0]
[1445,"2011-07-15","KW60MN17 ",8572100.4117128216,2610858.7881362201,1866167.1864197149,133022.31975499997,611669.28196150507,"Summer",199468.59799000001,83066.596455999999,112471.74335999999,2158.8516307,55540.276163000002,39760.597749,7580.7416534000004,41139.009377000002,0]
[1446,"2011-08-21","KW60MN20 ",7998652.5701193549,2610665.2432149034,1903188.709218624,130127.96470500001,577348.56929127953,"Summer",235826.12666000001,67323.849245999998,88278.373445000005,1694.4692487,55494.676592999997,31260.475213999998,7517.1758794999996,41206.610131000001,51.466723322]
[1447,"2011-07-30","KW60MN21 ",8009911.640519537,2610435.7382529927,1864544.5391322633,137524.60293300002,608366.59618772962,"Summer",253138.54766000001,73280.632282999999,90746.755434999999,1741.8488867000001,55357.877883000001,29875.834059000001,7320.5871944,41508.294863000003,1221.7162585000001]
[1448,"2011-08-19","KW60MN17 ",8461243.3224378675,2609891.7360849292,1894144.5012925076,135913.76540599999,579833.46938642149,"Summer",227743.04996,91276.193048000001,120134.91819,2305.9433088999999,55403.477453,37422.186368000002,8849.3146004999999,39946.099435999997,0]
[1449,"2012-02-08","KW60MN14 ",7325945.4636173686,2609579.6986346408,1910794.9569594245,99786.424469882506,598998.3172053335,"Winter",205253.60707999999,75240.075926000005,129322.98462,2482.3046918999999,47925.147986000004,35936.256795000001,9645.3291430999998,747.06969021999998,0]
[1450,"2011-12-28","KW60MN11 ",7379048.4859088995,2609395.7320255488,1916348.6900500534,100296.70782,592750.33415549563,"Winter",215468.08882999999,73168.874381999995,113850.90208,2185.3240492,56406.667991000002,34147.991194000002,7207.8793283000005,816.33821894000005,0]
[1451,"2011-07-25","KW60MN19 ",8431621.2304304745,2609093.9808219625,1879364.31173323,133901.55476999999,595828.11431873229,"Summer",196138.35644,68842.829893000002,106900.82987,2051.9201001000001,56452.267561000001,36526.012866999998,7852.3131664000002,40569.539708999997,0]
[1452,"2012-01-06","KW60MN16 ",7189593.9471244616,2609069.5052130315,1938745.9217303533,94513.454766147013,575810.12871653098,"Winter",260901.27187,73742.795140000002,119739.99473000001,2298.3629059,56087.471001999998,35562.101459999998,8358.1374570000007,742.46966563000001,1577.9264826000001]
[1453,"2011-11-19","KW60MN21 ",7178551.7600791333,2608769.1949747438,1868403.7226541496,109989.471911,630376.00040959415,"Winter",318835.87576999998,66429.794074000005,103513.55646000001,1986.9026965999999,56999.462399999997,29555.464330999999,6729.6428679000001,4955.8928413000003,3053.2304963000001]
[1454,"2012-03-07","KW60MN21 ",7140509.5838334123,2608753.9893782367,1930454.8176069246,112865.68041191764,565433.49135939451,"Winter",237137.60482000001,70292.027128000002,101947.01695999999,1956.8335766,56224.269711000001,33017.916928999999,7304.1929538000004,1354.3257784,3053.2304963000001]
[1455,"2011-09-11","KW60MN21 ",6879032.6767229401,2608530.1845437041,1888025.2537701484,113919.127368,606585.80340555578,"Summer",265268.09636000003,66100.014028000005,101364.71802,1945.6565734999999,53625.094226000001,32164.962487000001,7611.4580003999999,34269.749799999998,3053.2304963000001]
[1456,"2011-11-21","KW60MN21 ",7436566.7214308921,2608323.6594878519,1850483.2877180513,115000.070127,642840.30164280045,"Winter",302894.06238000002,59452.127768999999,109456.67152,2100.9784926000002,56497.867130999999,35856.538648000002,6385.2825503000004,4955.8928413000003,3053.2304963000001]
[1457,"2012-03-26","KW60MN08 ",7087859.2426271457,2608273.6847606711,1939425.5654166369,128054.49233042538,540793.62701360858,"Winter",214779.03313,70512.735845999996,110381.82541999999,2118.7364639000002,55722.674442000003,34896.355198999998,8698.1706704999997,1354.3257784,0]
[1458,"2012-02-05","KW60MN08 ",6978567.8641920323,2607984.6984245842,1854869.87125466,102329.7227574766,650785.10441244789,"Winter",264849.39968999999,61259.371911000002,80068.961079000001,1536.8927521999999,52576.304118,24819.973503000001,6557.3899141000002,747.06969021999998,0]
[1459,"2011-12-20","KW60MN22 ",7430522.7832004027,2607902.8518674839,1903085.3737656344,100817.47038,604000.0077218496,"Winter",315220.49018000002,65364.469875000003,105440.32674999999,2023.8863073,42863.595724999999,33762.140245000002,6904.0068946000001,816.33821894000005,3053.2304963000001]
[1460,"2011-11-10","KW60MN18 ",7582634.3968537282,2607535.3295036387,1919863.9115473921,110469.980268,577201.43768824672,"Winter",235161.15093,77447.151861000006,125505.73695000001,2409.0340986000001,56589.066271000003,38260.736315000002,8163.6005917000002,4955.8928413000003,3053.2304963000001]
[1461,"2011-11-10","KW60MN19 ",7544004.4165087352,2607391.0146408947,1914739.7258122608,110901.218368,581750.07046063384,"Winter",253119.38544000001,73698.653074999995,125317.13957,2405.414045,56269.869280999999,36925.753229000002,8155.5152048,4955.8928413000003,3053.2304963000001]
[1462,"2012-02-22","KW60MN10 ",7314351.7417325834,2607234.5312813949,1943286.1365610533,104908.17811459827,559040.21660574316,"Winter",168559.45709000001,72244.804149000003,117733.24833,2259.8441846000001,57181.860679999998,36715.358504000003,9192.6625523999992,747.06969021999998,0]
[1463,"2011-12-01","KW60MN12 ",7240138.3220581524,2607135.1991896019,1955837.7253744113,89182.431599999996,562115.0422151906,"Winter",212325.87658000001,79059.735153000001,136325.98597000001,2616.7245954,57683.455949000003,38045.395998,10331.845595999999,816.33821894000005,0]
[1464,"2012-05-31","KW60MN17 ",7945010.6839229297,2606881.5577338589,1911478.751100868,132743.32925348371,562659.47737950739,"Summer",132834.19695000001,86533.962732999993,106931.36530999999,2052.5062161000001,55905.072721999997,40889.086951999998,7650.0057970999997,28240.193453,0]
[1465,"2012-01-05","KW60MN11 ",7347401.5550642069,2606848.9080888247,1943742.1591883395,107366.90932026108,555739.83958022401,"Winter",163433.52033,70373.403615999996,115583.57475,2218.5820312000001,48928.338523999999,36947.234989999997,9169.6828509999996,742.46966563000001,0]
[1466,"2012-01-07","KW60MN11 ",7095952.8325546989,2606667.6193628786,1885190.5369781277,113024.72773037161,608452.35465437965,"Winter",293407.96763000003,60375.965016000002,85493.413790000006,1641.0130248999999,57409.858528999997,26716.970454999999,6359.3808688999998,742.46966563000001,0]
[1467,"2011-10-06","KW60MN08 ",7068010.1943828352,2606571.3144345833,1954520.6576959724,113842.045835,538208.61090361094,"Summer",188323.8052,54326.614114999997,119502.86371000001,2293.8112676000001,56771.464549999997,40871.920280999999,8306.5778749000001,19170.103298999999,224.65274199999999]
[1468,"2012-01-03","KW60MN21 ",7399395.7440984268,2606242.9800696736,1901681.8312696742,108250.35690069286,596310.79189930635,"Winter",255464.52132,58312.561283000003,95984.178516,1842.3791979,56999.462399999997,32376.586375999999,7265.147438,742.46966563000001,3053.2304963000001]
[1469,"2012-02-05","KW60MN11 ",6935964.9554140242,2606227.6288155667,1872367.8751888862,106624.34175969596,627235.41186698456,"Winter",282914.91295999999,57495.693665999999,79455.127693000002,1525.1104577000001,56634.665841000002,25050.522465999999,6010.4208863000003,747.06969021999998,0]
[1470,"2011-07-25","KW60MN13 ",8382135.4427360361,2606130.2114082258,1890500.4117645645,127685.605194,587944.1944496613,"Summer",175456.55335999999,81271.806635999994,122135.36513999999,2344.3411148,56178.670141000002,41040.816151999999,9878.3934898000007,40011.795435,0]
[1471,"2012-01-29","KW60MN20 ",7368413.1130688218,2605960.7898284518,1927985.3995895104,125278.37029621562,552697.01994272578,"Winter",262465.49421999999,64422.501473999997,76685.527390999996,1471.9490507,54172.289064999997,27071.305185000001,6356.435187,742.46966563000001,3053.2304963000001]
[1472,"2011-12-09","KW60MN06 ",7317314.9348263387,2605951.8114991873,1849993.1282510331,95031.072690000001,660927.61055815418,"Winter",315016.46763000003,63672.936367000002,112327.54882,2156.0838724,57409.858528999997,32555.885273,8381.4184982999996,816.33821894000005,3053.2304963000001]
[1473,"2011-12-08","KW60MN14 ",7426128.726760692,2605698.2220456032,1947779.5625302265,85951.112089999995,571967.54742537648,"Winter",175472.31344,81621.592973999999,131611.25753,2526.2272057999999,51436.314870000002,36578.462237,9872.1161408999997,816.33821894000005,0]
[1474,"2011-08-28","KW60MN21 ",7650116.8851493243,2605576.4908544566,1830403.3876044196,130158.82398899998,645014.27926103701,"Summer",294454.46023999999,76045.146401999998,93248.875639999998,1789.8761167,55768.274012000002,29380.156129999999,7832.1606431,42414.220064000001,3053.2304963000001]
[1475,"2011-08-27","KW60MN20 ",8220228.2091936581,2605468.9598950194,1848751.9109876754,127493.024655,629224.02425234404,"Summer",265798.42781000002,84525.032802000002,101960.95497999999,1957.1011114,55631.475301999999,30640.116010999998,7741.2508187000003,47311.089634999997,407.5214593]
[1476,"2011-08-12","KW60MN14 ",8022940.3956366908,2605373.9206155399,1888306.9139880412,132613.06493600001,584453.94169149862,"Summer",198794.04113999999,97018.230207999994,125930.45417,2417.1863815000002,56634.665841000002,40565.531389000003,9367.8154792999994,46965.447584000001,0]
[1477,"2011-09-23","KW60MN17 ",7204090.7720875777,2605082.9149107379,1881901.8779641767,108738.55092199998,614442.48602456099,"Summer",214898.99838999999,94666.734907000005,142930.99406,2743.5051721,55859.473151999999,42921.683757999999,9740.1496124000005,30217.333901999998,0]
[1478,"2012-05-15","KW60MN15 ",7917512.1545700338,2605033.6785450228,1854425.0875753236,136460.61469510198,614147.97627459711,"Summer",151154.79671,98869.666226000001,141583.98514,2717.6498566999999,40811.615078000003,40879.364779000003,11085.415239,21356.368259999999,0]
[1479,"2011-07-15","KW60MN18 ",8455460.3703399021,2604951.5420247111,1862217.0576192942,131783.78932899999,610950.69507641706,"Summer",222894.48848,73771.335158000002,112087.42217000001,2151.4747342000001,55403.477453,39606.732555000002,7305.7368969999998,41396.170054000002,0]
[1480,"2011-11-17","KW60MN20 ",7462685.2328640753,2604689.8489239048,1884854.3581998341,110050.0643,609785.42642407073,"Winter",313243.16720999999,79066.988257000005,121632.39606,2334.6868177000001,56725.864979999998,36722.326851999998,7467.0586644000005,4955.8928413000003,3053.2304963000001]
[1481,"2011-09-11","KW60MN17 ",6956459.542450171,2604653.3060660991,1863880.6304433739,101651.87372600001,639120.80189672508,"Summer",289359.48190999997,68968.970277999993,116727.80278,2240.5450458999999,53169.098527000002,33158.695272999998,7909.3578116999997,34265.672984999997,0]
[1482,"2012-02-18","KW60MN19 ",7208049.7439218741,2604604.9555769702,1900410.3905641332,125037.58576349565,579156.97924934153,"Winter",248668.75802000001,71392.649552999996,77810.180514000007,1493.5363325999999,53488.295515999998,26993.550157000001,6762.4381211,747.06969021999998,3053.2304963000001]
[1483,"2011-09-09","KW60MN11 ",7537203.350154181,2604407.0311016543,1903192.3634838797,113844.150909,587370.51670877426,"Summer",129040.8613,88166.642296999999,142286.44368999999,2731.1332769999999,53807.492506000002,42887.139834000001,10553.949977,39563.752269999997,0]
[1484,"2012-01-21","KW60MN13 ",7292645.9189919,2604374.5736209527,1894340.618034303,108506.33216816632,601527.6234184833,"Winter",289799.43932,65737.747659000001,82646.970335000005,1586.3766432,56725.864979999998,25942.258180000001,6543.0288699000002,742.46966563000001,0]
[1485,"2011-09-08","KW60MN22 ",7345576.3352828585,2604290.4104205798,1917782.6596623249,127187.11666599999,559320.63409225526,"Summer",228344.99596999999,70713.884963000004,106477.30306999999,2043.7906668999999,53214.698097,37548.462031000003,7904.0758998000001,43418.837241000001,3053.2304963000001]
[1486,"2011-07-05","KW60MN13 ",8469233.2549230456,2604001.6503180433,1835355.1339149582,139605.76981,629040.74659308523,"Summer",193243.40891999999,82815.149615000002,114557.66379999999,2198.8900672,55312.278313000003,40613.356087,9391.2387251,44410.926785000003,0]
[1487,"2011-09-14","KW60MN18 ",7173605.3351059435,2603964.9572811387,1853242.2001388588,105054.03064,645668.72650227987,"Summer",245283.29790000001,80480.559477999996,138152.30522000001,2651.7800873000001,54354.687344999998,39925.651485000002,9295.2095109000002,21806.735371999999,0]
[1488,"2011-08-20","KW60MN17 ",8295589.1836476661,2603937.8724501347,1912301.3261774634,131129.33742499998,560507.20884767105,"Summer",237041.91029,78184.545442999995,103887.48172,1994.0800472999999,55266.678742999997,32933.406045999996,7676.4255129000003,40349.503569,0]
[1489,"2011-12-02","KW60MN21 ",7402899.6593062561,2603866.2100161454,1904972.6893802648,102645.9102,596247.61043588037,"Winter",283571.16606999998,67499.723368000006,114246.69224999999,2192.9210886000001,57318.659389,33163.541535999997,6886.2515458999997,816.33821894000005,3053.2304963000001]
[1490,"2011-11-01","KW60MN21 ",7310842.6214187769,2603841.5457105562,1922488.3676905986,106427.31003399999,574925.8679859573,"Winter",270057.62378000002,62194.047037999997,113451.43398,2177.6564134,57227.460249999996,40171.739304000002,7238.9207159999996,4955.8928413000003,3053.2304963000001]
[1491,"2011-10-26","KW60MN20 ",7207025.7434860012,2603731.9569274108,1874638.549062348,109942.18925900001,619151.21860606258,"Summer",256490.32551,66558.611392000006,133542.02004,2563.2874456,56680.265411,40431.185405999997,7833.0341897999997,19170.103298999999,3053.2304963000001]
[1492,"2011-12-21","KW60MN23 ",7121266.6177934567,2603726.5617291066,1904651.2873339574,104034.707539,595040.56685614912,"Winter",327863.57159000001,62397.162880999997,103687.05514,1990.2329365999999,56543.466700999998,32084.188753999999,7423.0156489999999,816.33821894000005,3053.2304963000001]
[1493,"2011-11-16","KW60MN13 ",7275378.4603589298,2603587.5601130002,1849522.4016621686,98600.522666000004,655464.63578483148,"Winter",250771.6317,80394.422034999996,134627.45053999999,2584.1218644999999,57774.655089,40905.955928000003,11075.498111000001,4955.8928413000003,0]
[1494,"2012-01-03","KW60MN12 ",7348589.0596220084,2603406.8444730281,1913837.8858773443,102771.75491762311,586797.20367806067,"Winter",218259.65784999999,75930.047959999996,114240.04580000001,2192.7935124000001,56953.862829999998,34505.176439000003,9031.5405487000007,742.46966563000001,0]
[1495,"2011-11-21","KW60MN07 ",7393977.8331387071,2603265.8470156062,1823788.2330859909,108195.995354,671281.61857561546,"Winter",337559.01997000002,57160.757392,110131.27012,2113.9271518,58048.252507999998,35589.968724999999,8116.7541001999998,4955.8928413000003,508.44768959999999]
[1496,"2011-12-18","KW60MN10 ",7083525.8298668638,2602963.175378704,1868328.2900664625,104826.38417,629808.50114224141,"Winter",327090.62818,55238.051671000001,89444.943958999997,1716.8611188,56634.665841000002,26293.493132,6623.2936106999996,816.33821894000005,0]
[1497,"2011-08-28","KW60MN20 ",7863631.3027812522,2602430.9819822041,1805729.8483441942,124770.74179499999,671930.39184301009,"Summer",284744.79917000001,76457.178643000007,95039.378867000007,1824.2441339,55631.475301999999,29409.142301,7769.6106215999998,44002.983692000002,509.29580915000003]
[1498,"2011-11-21","KW60MN13 ",7429878.9329780182,2602365.3659169273,1864067.9826426685,109709.936466,628587.446808259,"Winter",249777.50665,79958.369709999999,123289.30059,2366.4904596000001,50113.927342000003,39865.559584000002,9198.0629680000002,4955.8928413000003,0]
[1499,"2011-09-08","KW60MN11 ",7592841.1421297546,2602336.6594590428,1933872.6042533615,115847.07174100001,552616.98346468143,"Summer",110313.88042,87661.474990999995,140239.43617999999,2691.8417591000002,41495.608627000001,41293.788309000003,10592.101629000001,47008.479126999999,0]
[1500,"2012-01-09","KW60MN16 ",7359916.0233165408,2602255.7201123945,1914474.0186840678,93958.233778385431,593823.46764994145,"Winter",252052.97811,72210.969719000001,120443.22619,2311.8611618,53807.492506000002,35166.657349000001,8410.0830253999993,742.46966563000001,1374.3777831]
[1501,"2011-11-18","KW60MN15 ",7292139.0825695591,2602111.5391062382,1949008.1694762097,108173.40278900001,544929.96684102865,"Winter",193165.18085,66328.273109000002,129387.74778999999,2483.5477959,57729.055519000001,40638.475280999999,8076.4693665000004,4955.8928413000003,0]
[1502,"2011-11-01","KW60MN19 ",7533087.6033244133,2601868.2515274626,1924992.6410864864,105469.189562,571406.42087897623,"Winter",241457.78498,68528.454257999998,124651.44116,2392.6362211999999,50250.726051999998,41397.804144000002,7710.8595121999997,4955.8928413000003,3053.2304963000001]
[1503,"2011-11-18","KW60MN22 ",7075985.2816462554,2601818.1822766159,1903843.400408732,113747.969274,584226.81259388383,"Winter",263399.67372999998,65902.407909000001,108024.12274000001,2073.4812726,57592.256808999999,35199.535834000002,6458.2745051000002,4955.8928413000003,3053.2304963000001]
[1504,"2012-02-14","KW60MN16 ",7197691.1903168848,2601801.3478893084,1898914.8012610555,99203.37316336717,603683.1734648858,"Winter",232195.44733,78727.570611999996,123967.66886000001,2379.5114764,56725.864979999998,35164.975545000001,8576.0840248999993,747.06969021999998,0]
[1505,"2011-11-28","KW60MN09 ",7434969.0550748128,2601743.0990256737,1896274.8141077415,105380.30052400001,600087.98439393216,"Winter",251055.97025000001,69519.317643999995,121272.11577999999,2327.771377,56953.862829999998,34829.832482999998,9563.9978628999997,4955.8928413000003,0]
[1506,"2012-03-09","KW60MN09 ",7065523.380227983,2601578.7210686347,1943227.2741781245,110983.62987107693,547367.81701943348,"Winter",235398.56959,62802.187858999998,117136.52025,2248.3902198000001,56589.066271000003,35841.462178000002,8888.9543312000005,1354.3257784,0]
[1507,"2012-05-15","KW60MN19 ",7809037.7626801115,2601451.9000932309,1875289.9496743469,135737.49387946349,590424.45653942053,"Summer",199308.06138999999,70267.788518999994,111780.06471000001,2145.5751266000002,42589.998305000001,36475.898356999998,8123.8271213999997,21356.368259999999,0]
[1508,"2011-07-27","KW60MN13 ",8442505.6705390159,2601228.5068607056,1870496.0133922542,139870.89373500002,590861.59973345126,"Summer",180226.81257000001,88000.600197000007,110839.29081000001,2127.5173352000002,56589.066271000003,42015.586693999998,9813.1618825000005,34239.315973999997,0]
[1509,"2011-11-04","KW60MN07 ",7174346.1938437046,2600972.3200502447,1892821.721382668,114498.955575,593651.64309257653,"Winter",297545.25880000001,65748.563043000002,128242.88453,2461.5725883,57090.661540000001,39838.820164999997,8638.5663296999992,4955.8928413000003,0]
[1510,"2012-03-21","KW60MN21 ",7089191.1356863119,2600868.7325426219,1917496.7095517684,107305.15550031072,576066.86749054259,"Winter",254065.23397999999,65105.273428,90291.423083000001,1733.1089583,48791.539814000003,32825.127993000002,6978.9761793999996,1354.3257784,3053.2304963000001]
[1511,"2011-12-26","KW60MN12 ",7139587.014930903,2600799.0522732823,1920032.7135783648,105784.69947000001,574981.63922491751,"Winter",278899.18744000001,58805.634190999997,83395.284293000004,1600.7402403000001,55905.072721999997,23315.989850999998,6233.0822373999999,816.33821894000005,0]
[1512,"2012-01-21","KW60MN09 ",7176299.3897400126,2600787.0991837727,1860600.3110648235,106881.20218304156,633305.5859359079,"Winter",308515.82163000002,54642.243055999999,92748.637965000002,1780.2742479000001,56771.464549999997,25495.268217000001,6831.4618707999998,742.46966563000001,0]
[1513,"2012-03-21","KW60MN13 ",7082833.8964019315,2600762.7181624346,1953502.1616474781,95799.322574556558,551461.23394039983,"Winter",187663.83199999999,80438.568920000005,114691.01480999999,2201.4496883000002,49657.931643000004,38991.674285000001,8709.0832355000002,1354.3257784,0]
[1514,"2012-01-02","KW60MN20 ",7393180.6048145676,2600588.0358790834,1864234.727435217,104388.69321553166,631964.61522833479,"Winter",325362.90162999998,63784.533587999998,84881.630537999998,1629.2700818999999,56497.867130999999,24425.583347,6639.1596603999997,742.46966563000001,3053.2304963000001]
[1515,"2011-09-11","KW60MN19 ",6867650.9764252352,2600361.7379630818,1867409.4041507519,107029.92680100001,625922.40701132978,"Summer",303634.20319999999,69433.822922000007,109575.93811,2103.2677687,53442.695946,32653.858925,7532.8997235999996,33042.314566000001,0]
[1516,"2011-08-01","KW60MN12 ",7567110.7769192662,2600295.8452913146,1934167.4732532026,124736.71984400001,541391.65219411184,"Summer",189555.71986000001,86640.262327999997,119916.68091,2301.7543289,56041.871432,39037.084245999999,11099.530809,29113.828674,0]
[1517,"2012-02-03","KW60MN19 ",7281609.8639406879,2600201.9071655013,1889641.1968057863,109654.22425447068,600906.48610524402,"Winter",228736.46489999999,73919.948277000003,103330.7789,1983.394352,58093.852078000004,32161.596314999999,7050.4292692999998,747.06969021999998,3053.2304963000001]
[1518,"2011-08-09","KW60MN19 ",8132049.9663255764,2600140.1047232873,1867890.6940017091,136255.353286,595994.05743557832,"Summer",227419.28472,74722.195600999999,115067.01604,2208.6668865000001,55813.873582,38140.074052000004,8619.7545993000003,42249.804274000002,0]
[1519,"2011-09-10","KW60MN20 ",7192339.0789917223,2600034.6308557233,1880940.2229636675,109456.398031,609638.00986105553,"Summer",264285.30118000001,75091.107703999995,119238.12444,2288.7296996,53761.892935999997,34671.892629000002,7388.9270044000004,42473.248468999998,1832.3623579]
[1520,"2012-01-07","KW60MN09 ",7033776.2609986635,2599460.3050059308,1866078.4063442897,118160.93636411749,615220.96229752351,"Winter",301651.46435000002,54233.732924000004,92268.898870000005,1771.0658415,57592.256808999999,27238.087049999998,6573.6436418000003,742.46966563000001,0]
[1521,"2012-02-16","KW60MN21 ",7352499.4316663416,2599394.9166533928,1906867.3433206559,115699.02825735163,576828.54507538537,"Winter",260246.58734999999,72928.745855000001,98266.575693999999,1886.1889292999999,48973.938093999997,34969.325519999999,7159.8342482999997,747.06969021999998,3053.2304963000001]
[1522,"2011-12-10","KW60MN15 ",6997407.8593541272,2599125.3543255269,1824745.8111731207,86844.722842999996,687534.82030940603,"Winter",360957.40716,68710.980538999996,103805.54699,1992.5073419,57592.256808999999,26401.338679,7443.0056525999998,816.33821894000005,0]
[1523,"2012-03-20","KW60MN07 ",7283838.105682441,2599072.8693385804,1921661.6490775647,107800.46067405521,569610.75958696043,"Winter",252295.20851999999,58887.099052999998,105951.35823,2033.6953590000001,58367.449498000002,34331.739753000002,8599.1195927000008,1354.3257784,0]
[1524,"2011-10-06","KW60MN09 ",7088436.2242025621,2599058.2411408937,1954302.9430765712,114601.37548199999,530153.92258232262,"Summer",149810.68554000001,59129.200732999998,126936.33021,2436.4937832000001,56771.464549999997,40822.841039999999,8846.5517548000007,19170.103298999999,0]
[1525,"2012-02-14","KW60MN15 ",7200671.1798473205,2599027.0277832872,1910748.0214260714,97927.576142815858,590351.43021440005,"Winter",206536.02394000001,77886.557581999994,127833.84587999999,2453.7212494999999,56725.864979999998,36539.233098999997,9062.9967027999992,747.06969021999998,0]
[1526,"2011-12-07","KW60MN16 ",7489549.8437121864,2598753.4327510358,1944217.8307685612,90852.746689999985,563682.85529247462,"Winter",245359.74541999999,78732.164459000007,133481.10313999999,2562.1181692999999,56589.066271000003,34203.536923,8851.5492553999993,816.33821894000005,2239.4597568999998]
[1527,"2012-03-01","KW60MN13 ",7262856.6323766168,2598572.3023067508,1958603.5226891411,103288.56021429243,536680.21940331697,"Winter",159586.43932,77721.855555000002,117905.77235,2263.1557164999999,55221.079172999998,36058.349302000002,9072.1587877999991,1354.3257784,0]
[1528,"2011-11-20","KW60MN08 ",7005579.814952895,2598441.1056300555,1856808.5984293597,109815.008862,631817.49833869573,"Winter",289207.75273000001,51599.975532999997,100887.19579,1936.4907188,55084.280463000003,28120.412377000001,6368.3601189000001,4955.8928413000003,0]
[1529,"2011-12-03","KW60MN20 ",7460065.6410096735,2598331.2377536343,1930051.4506578557,99457.11301999999,568822.67407577834,"Winter",252681.25098000001,65567.921539999996,91566.504163000005,1757.5836466999999,57592.256808999999,27916.498094999999,7071.3012844000004,816.33821894000005,3053.2304963000001]
[1530,"2011-08-09","KW60MN15 ",8444246.7708131261,2598265.1989271007,1871799.2993327058,133841.37754299998,592624.52205139492,"Summer",212169.33564,88581.899390000006,129000.12496,2476.1075255999999,55540.276163000002,40725.610175000002,10303.871779999999,38699.570520000001,0]
[1531,"2012-02-12","KW60MN19 ",7299739.415693095,2598222.0622407347,1928263.1278651322,114403.10680489615,555555.82757070614,"Winter",232196.4754,57673.009088999999,81125.984362999996,1557.1819055000001,55631.475301999999,27124.305248000001,6646.0126016000004,747.06969021999998,3053.2304963000001]
[1532,"2011-11-07","KW60MN11 ",7314821.8301661015,2598207.242252612,1872312.3048006168,115745.37565,610149.56180199503,"Winter",236811.13694,73792.061296999993,139107.78086,2670.1200727999999,57181.860679999998,40116.696882999997,10268.422027000001,4955.8928413000003,0]
[1533,"2011-11-05","KW60MN09 ",7059640.1038633185,2598160.6674766475,1853949.5063723878,121372.34520700001,622838.81589726009,"Winter",312584.09487999999,60193.628337000002,107674.53315,2066.7710354999999,56771.464549999997,30227.799406999999,6343.2100938000003,4955.8928413000003,0]
[1534,"2011-12-01","KW60MN17 ",7620424.1251164172,2597819.4556104275,1910349.6645310738,90682.85037,596786.94070935377,"Winter",236115.10738999999,83054.574363000007,134439.95804,2580.5230185,57683.455949000003,34980.266432999997,8274.6629395,816.33821894000005,3053.2304963000001]
[1535,"2011-10-25","KW60MN20 ",7176239.0739439307,2597797.8925180407,1908147.7467702734,109176.68341100001,580473.46233676712,"Summer",241194.27264000001,61410.144570999997,128271.56309,2462.1230621999998,55996.271862000001,41997.093477000002,7946.0264669999997,19170.103298999999,3053.2304963000001]
[1536,"2012-02-07","KW60MN17 ",7399430.8295414029,2597639.5720106973,1907121.6013179836,105517.65707603827,585000.31361667544,"Winter",200071.21171,78072.157676000003,118823.20719,2280.7655233999999,56589.066271000003,32995.477693000001,8248.0553104999999,747.06969021999998,2443.0084563999999]
[1537,"2012-02-23","KW60MN21 ",7339655.1938188151,2597519.6315371552,1897679.7065888634,110909.53468788945,588930.39026040258,"Winter",247073.81041000001,72562.137906000004,98140.698931000006,1883.7727735999999,56634.665841000002,32792.206186000003,7387.0055398000004,747.06969021999998,3053.2304963000001]
[1538,"2012-01-28","KW60MN19 ",7408783.5524931941,2597500.394905162,1887507.5767183669,114261.79897753074,595731.01920926408,"Winter",269514.57403999998,67796.348660999996,86520.887430000002,1660.7349842000001,54172.289064999997,27168.474397000002,7184.9030135000003,742.46966563000001,3053.2304963000001]
[1539,"2011-08-21","KW60MN16 ",8306445.9958964419,2597363.4456855184,1889682.2186906028,129075.37882299999,578605.84817191563,"Summer",227456.13596000001,63596.593990000001,97413.009749999997,1869.805061,55221.079172999998,31160.413304000002,8135.2611052000002,40398.029434999997,0]
[1540,"2012-03-01","KW60MN18 ",7501706.0434324928,2597351.838728019,1928441.2840808732,106267.56520897801,562642.98943816777,"Winter",205450.51798,69099.849123000007,96761.282879000006,1857.2954156999999,55084.280463000003,31687.394571000001,7402.5922576000003,1354.3257784,3053.2304963000001]
[1541,"2011-08-11","KW60MN15 ",8475463.7603489291,2597217.8199810944,1902857.7889829848,132420.928648,561939.10235010961,"Summer",185481.90354999999,95419.733749999999,123497.25998,2370.4821597,54400.286914999997,39017.035394999999,10194.719046,45013.409827000003,0]
[1542,"2011-11-01","KW60MN11 ",7264432.2056473251,2597016.6840497437,1969341.1632070811,105746.407544,521929.11329866241,"Winter",164014.79913,70913.629736000003,130656.02785,2507.8919414000002,41358.809916999999,43471.175900000002,10081.462674,4955.8928413000003,0]
[1543,"2012-02-07","KW60MN14 ",7329863.8873987235,2596877.2151610199,1927491.760700888,105981.27899137244,563404.17546875949,"Winter",169361.35579999999,75643.355916999993,119035.53692,2284.8411105,56589.066271000003,35672.833224000002,9887.3236445000002,747.06969021999998,0]
[1544,"2012-02-25","KW60MN12 ",7051398.3222358702,2596584.949780473,1914676.0550005995,112831.83714275005,569077.05763712351,"Winter",256297.79182000001,62394.643414999999,80796.754178999996,1550.8624594,56452.267561000001,27265.818751999999,5721.2006779000003,747.06969021999998,0]
[1545,"2011-12-15","KW60MN15 ",7419668.9799246201,2596376.0611789003,1911895.778566513,89115.790720000005,595364.49189238762,"Winter",219596.10623999999,77996.135051999998,122373.03217999999,2348.9030416999999,50113.927342000003,36934.301514999999,9406.9219398000005,816.33821894000005,0]
[1546,"2011-12-26","KW60MN10 ",7155366.7901223097,2596241.2930180095,1900033.5264232655,106660.64018999998,589547.12640474434,"Winter",281844.55236999999,57825.388551999997,86832.827432999999,1666.7225519000001,56178.670141000002,23237.416161000001,6757.4541636000004,816.33821894000005,0]
[1547,"2011-11-30","KW60MN22 ",7178753.2076578438,2595981.9582276335,1915652.5293826426,107312.91864799999,573016.51019699103,"Winter",287315.98144,64538.454734999999,108819.78234000001,2088.753651,56543.466700999998,34841.593889000003,7326.6613931000002,4955.8928413000003,3053.2304963000001]
[1548,"2012-03-12","KW60MN21 ",7034563.137039586,2595847.4396063378,1927370.6687162824,121244.37458851478,547232.39630154055,"Winter",213053.19312000001,56873.755235999997,89019.389528999993,1708.6927659999999,55585.875732,33911.853560000003,6616.4592908000004,1354.3257784,3053.2304963000001]
[1549,"2012-02-09","KW60MN11 ",7381408.4375547441,2595714.5486381277,1881986.3874185041,103146.42551370159,610581.73570592201,"Winter",218739.22213000001,81418.435354000001,128045.66854,2457.7871034999998,57911.453798000002,37076.794393999997,9865.0515845000009,747.06969021999998,0]
[1550,"2011-12-10","KW60MN22 ",7190897.8742861897,2595600.68091885,1846724.3771411644,95472.289120000001,653404.01465768542,"Winter",317377.59677,73555.353650999998,89242.442559999996,1712.9741827,56908.26326,25949.683557,7363.390993,816.33821894000005,3053.2304963000001]
[1551,"2011-09-11","KW60MN20 ",6899599.1560553955,2595573.8305729539,1871713.6975623956,111058.26536900002,612801.86764155829,"Summer",283447.55489999999,71833.144685000007,106767.14953,2049.3541577000001,53488.295515999998,32580.443026000001,7738.4879729000004,31868.726204999999,1934.1367077]
[1552,"2012-03-16","KW60MN10 ",7072652.9687269321,2595548.2136288229,1955124.8502254174,109277.68818381046,531145.67521959497,"Winter",168140.12450999999,67968.495001999996,120045.99963999999,2304.2365516999998,50341.925192000002,38186.312394,8372.8049193999996,1354.3257784,0]
[1553,"2012-02-16","KW60MN15 ",7238582.7625287324,2595485.5102360533,1949056.0550680459,92290.114435184587,554139.34073282278,"Winter",170791.51678999999,76304.924511000005,119931.15207,2302.0320972,54400.286914999997,38051.142331000003,9192.6439298999994,747.06969021999998,0]
[1554,"2012-01-06","KW60MN21 ",7244761.0038345959,2594887.1702214968,1910004.0756711515,109582.39270649356,575300.70184385183,"Winter",239769.49573,65231.871752999999,102254.56021,1962.7367503999999,56634.665841000002,32009.772698000001,7192.5008400999996,742.46966563000001,3053.2304963000001]
[1555,"2012-02-10","KW60MN11 ",7278165.4087127838,2594594.0859827581,1884887.7990891179,104739.18705219249,604967.09984144778,"Winter",210033.51099000001,76039.765222000002,125301.44848000001,2405.1128606000002,54263.488205000001,37203.628307999999,9721.9033166999998,747.06969021999998,0]
[1556,"2011-08-20","KW60MN19 ",7801425.6608958105,2594248.0163171934,1918021.5213114175,124655.59732100001,551570.89768477576,"Summer",227430.52979999999,78351.988675000001,100803.62602,1934.8866296000001,54765.083473999999,31889.091552000002,7431.4463919,41706.607634,0]
[1557,"2011-08-19","KW60MN18 ",8338467.0816532578,2594196.0597780687,1881420.1022783313,133125.57518699998,579650.38231273752,"Summer",226579.87765000001,86080.261295000004,116281.69924,2231.9822610000001,55859.473151999999,36739.158109999997,8485.6956214999991,41409.958116000002,0]
[1558,"2011-11-22","KW60MN11 ",7366480.7363383863,2594149.7620306262,1915238.788807377,112552.426288,566358.54693524924,"Winter",177242.24351,73436.977333000003,124727.59787,2394.0980199000001,48381.143685000003,40698.139893,8672.0048931000001,4955.8928413000003,0]
[1559,"2012-04-17","KW60MN08 ",6983479.0204894878,2594135.700531411,1943024.3137395817,120030.38716530148,531080.99962652754,"Summer",210179.55934000001,51730.928290999997,101461.84570999999,1947.520902,35658.863677000001,34354.511263,9278.8271196000005,7467.6597125999997,0]
[1560,"2012-05-14","KW60MN17 ",7708211.9360621329,2593834.1926066158,1840771.8260493868,136865.80976334531,616196.55679388356,"Summer",170970.77046999999,78289.908272000001,123017.67118999999,2361.2766384000001,50387.524762000001,38160.818925,8865.3042332999994,21356.368259999999,0]
[1561,"2011-12-31","KW60MN10 ",6849718.4476553965,2593769.4243822359,1909670.8107301837,105762.38972000001,578336.22393205215,"Winter",294258.86355000001,52782.99798,79480.254289000004,1525.5927529999999,56269.869280999999,20595.985021,5949.1591767999998,816.33821894000005,0]
[1562,"2011-08-02","KW60MN21 ",7615305.2390947808,2593563.3847644809,1878040.0098814126,136760.11038900001,578763.26449406811,"Summer",235786.74236,76240.488536999997,114655.95516,2200.7767319,56041.871432,34618.007866,9065.4869887999994,31136.740749000001,1425.2649578999999]
[1563,"2011-12-04","KW60MN09 ",7009822.1947500063,2593461.0450940756,1879718.6720206994,116089.12311999999,597653.24995337636,"Winter",295349.76418,51211.462053000003,91743.487288999997,1760.9807693,56817.064120000003,25989.467250999998,6301.8486632000004,816.33821894000005,0]
[1564,"2011-10-26","KW60MN19 ",7231206.1156265736,2593445.3343159733,1874188.0622222803,107138.77247000001,612118.49962369329,"Summer",254304.42259999999,68298.673534999994,138711.96025999999,2662.5224493000001,56953.862829999998,40368.681305999999,7848.9611840999996,19170.103298999999,3032.5505136000002]
[1565,"2012-03-06","KW60MN18 ",7284218.780599243,2593361.7629289404,1929168.8564786019,112239.05331572265,551953.85313461593,"Winter",233237.81709,69519.727379000004,98238.998789000005,1885.6596013000001,56543.466700999998,34028.101767,6958.7153087999995,1354.3257784,3049.4563644999998]
[1566,"2011-11-03","KW60MN08 ",7343565.5493531637,2593352.8742734836,1906556.5736902568,116315.22365700001,570481.07692622649,"Winter",207306.65685999999,68402.416706999997,138202.23413999999,2652.7384536,55540.276163000002,42364.987802000003,10233.947397,4955.8928413000003,0]
[1567,"2012-02-03","KW60MN12 ",7266004.2296817796,2593165.4404193144,1916829.6872043235,103989.46036660748,572346.29284838366,"Winter",216832.13591000001,79401.614417999997,127672.95276,2450.6329682000001,51071.518309999999,34987.349294,9162.0850243999994,747.06969021999998,0]
[1568,"2011-12-06","KW60MN16 ",7558441.1128902184,2593165.3569165883,1949566.274644054,89914.776279999991,553684.30599253438,"Winter",224030.52843999999,78295.524044999998,122019.57978,2342.1186595999998,58185.051218000001,34513.703858000001,8609.2720365999994,816.33821894000005,2239.4597568999998]
[1569,"2011-11-16","KW60MN14 ",7223880.8731914172,2592713.5892342064,1839984.9654587479,99081.431060000003,653647.19271545822,"Winter",272886.49978000001,78583.927332000007,137421.84972,2637.7592764000001,57683.455949000003,40619.852385999999,10986.883887,4955.8928413000003,0]
[1570,"2011-11-08","KW60MN12 ",7327675.7134056147,2592601.3935140143,1918316.3042288704,118286.40188300001,555998.68740214396,"Winter",201190.65429999999,76602.779007999998,130691.26836,2508.5683693000001,54354.687344999998,40314.678291999997,10382.186276,4955.8928413000003,0]
[1571,"2011-08-08","KW60MN13 ",8236080.1828145646,2592531.3635302447,1847051.1123299564,135385.47326099998,610094.77793928818,"Summer",188832.58975000001,86110.510949999996,130772.18180999999,2510.1214716999998,57181.860679999998,40044.723832999996,10275.390088,34191.836558000003,0]
[1572,"2011-12-30","KW60MN21 ",7252199.4452960594,2592486.7320655286,1890566.3247148087,100239.81611499999,601680.59123572009,"Winter",266283.82130000001,65767.875197000001,97107.546602999995,1863.941814,56452.267561000001,27387.058283999999,6330.8991766999998,816.33821894000005,3053.2304963000001]
[1573,"2011-08-29","KW60MN12 ",8043241.753899944,2592417.7915466852,1814628.1060726063,134753.51593200001,643036.16954207874,"Summer",213852.17723,93523.551510000005,135631.5564,2603.3952883000002,57045.061970000002,41353.151331000001,11851.735957999999,39968.953055999998,0]
[1574,"2011-12-11","KW60MN08 ",6973074.1599687319,2592311.6264358917,1848168.2805720964,101568.74853,642574.59733379539,"Winter",285932.63436000003,63505.559013999999,89813.240248000002,1723.9304236,57090.661540000001,26341.176723,7130.6008998999996,816.33821894000005,0]
[1575,"2012-02-20","KW60MN17 ",7459725.8091791887,2592272.5844468512,1914884.4247108921,102031.07033865547,575357.08939730353,"Winter",235242.99312,60040.405303,96410.262187999993,1850.5577092999999,55813.873582,30210.825034000001,7098.5674606000002,747.06969021999998,1425.2649578999999]
[1576,"2012-04-04","KW60MN21 ",6906936.9324157424,2592212.2353903283,1958229.6761303034,119373.65842373247,514608.90083629236,"Summer",187198.91495000001,62152.122359000001,86865.120425999994,1667.3424034,50934.719600999997,31958.992774999999,7093.9119293000003,7467.6597125999997,3053.2304963000001]
[1577,"2012-03-13","KW60MN07 ",7006383.5948992558,2591639.1071534953,1924145.8410519492,107904.87488252975,559588.39121901628,"Winter",226413.15148,60834.931944000004,110775.84874,2126.2995891999999,56817.064120000003,34953.135842000003,8700.6287909000002,1354.3257784,0]
[1578,"2011-12-15","KW60MN16 ",7554561.2798772343,2591531.9004093143,1896492.154715481,87863.302750000003,607176.44294383342,"Winter",269441.94201,76117.492662999997,123466.86635,2369.8987658000001,50068.327771999997,34987.548252000001,8878.8323602,816.33821894000005,2239.4597568999998]
[1579,"2012-03-05","KW60MN11 ",7152850.9967833664,2590984.5316183036,1953873.6853346145,106937.28022533224,530173.56605835678,"Winter",167632.59059000001,71180.766998000006,118930.97815,2282.8341452999998,56497.867130999999,37492.391618000001,8504.2026265999993,1354.3257784,0]
[1580,"2012-02-09","KW60MN20 ",7401899.760781398,2590881.4811988445,1868546.4203833537,108593.38074250758,613741.68007298349,"Winter",281487.11546,74672.717346999998,113277.82897,2174.3241324000001,56406.667991000002,32927.270679000001,7802.4837490999998,747.06969021999998,3053.2304963000001]
[1581,"2011-12-06","KW60MN15 ",7440000.6737138154,2590854.6501096762,1961702.9521130617,89432.000219999987,539719.69777661434,"Winter",196954.29826000001,76935.035136000006,127022.76412000001,2438.1528487,58777.845627000002,36003.377898999999,9187.5804052999993,816.33821894000005,0]
[1582,"2011-08-27","KW60MN14 ",8377749.8952531312,2590826.7938856184,1825389.878645448,128251.684441,637185.23079917033,"Summer",256075.49731999999,82233.251084000003,109755.90240000001,2106.7221135,55631.475301999999,31387.491183999999,8460.9722122000003,44503.847591999998,0]
[1583,"2011-11-05","KW60MN11 ",7110075.105995724,2590756.4152661096,1888223.4972944204,122124.50639100002,580408.41158068948,"Winter",242672.05301999999,61661.621941999998,106450.82311,2043.2823943999999,57181.860679999998,30180.551052999999,6066.2957231999999,4955.8928413000003,0]
[1584,"2011-11-23","KW60MN18 ",7387112.5457883142,2590705.260591154,1908859.8539755133,118209.17898700001,563636.2276286406,"Winter",221596.38573000001,70689.114503000004,110066.85775,2112.6907812999998,55677.074871999997,34760.292006000003,6250.3906551999999,4955.8928413000003,3053.2304963000001]
[1585,"2012-03-14","KW60MN15 ",7035412.5737267723,2590691.679037001,1917259.5105935161,111045.96046723328,562386.20797625137,"Winter",167600.33913000001,71849.890776,111846.47255999999,2146.8497994999998,55996.271862000001,34689.299227000003,8013.0627268999997,1354.3257784,0]
[1586,"2011-07-27","KW60MN21 ",8014384.3549034754,2590646.1416326407,1868098.3618240715,139429.75028500002,583118.02952356939,"Summer",194674.90533000001,69532.695877999999,91245.822557000007,1751.4282872000001,55905.072721999997,37235.637453000003,7548.8673484000001,39705.259710999999,1069.0547337999999]
[1587,"2011-08-19","KW60MN16 ",8489046.8784018047,2590623.7867355924,1877803.8967071262,136243.45690399999,576576.43312446645,"Summer",205481.07367000001,93488.378614000001,125356.67705,2406.1729515000002,55357.877883000001,37996.792734000002,9435.8302476999997,40054.733806999997,0]
[1588,"2012-05-31","KW60MN15 ",7823842.5348678622,2590556.128184929,1897962.778590983,128682.42637285516,563910.92322109081,"Summer",112556.17835,86160.855270999993,125322.33714,2405.5138100999998,53169.098527000002,43089.928899999999,8886.9431418000004,28456.725944999998,0]
[1589,"2011-11-19","KW60MN13 ",7054771.3084941041,2589977.4964138935,1861179.4777887629,114438.893052,614359.12557313044,"Winter",311796.14389000001,61261.910658000001,100846.10665,1935.7020287,57546.657239,31273.138405000002,6352.0674523999996,4955.8928413000003,0]
[1590,"2011-11-22","KW60MN17 ",7560828.61888518,2589715.0174949607,1888599.4496237005,113194.737427,587920.83044426015,"Winter",234990.88484000001,80099.373015000005,117738.58633000001,2259.9466453,56589.066271000003,38490.736662000003,6893.4633862000001,4955.8928413000003,3053.2304963000001]
[1591,"2011-08-23","KW60MN11 ",8181551.7304359972,2589712.7120754919,1869892.6426910316,140115.36275,579704.70663446025,"Summer",161538.05015,83824.862395999997,125488.8009,2408.7090176000002,55722.674442000003,40905.697567000003,10542.553237,42717.775353999998,0]
[1592,"2011-07-26","KW60MN20 ",7980718.6504993336,2589572.6564103151,1869137.743723799,128224.487893,592210.42479351605,"Summer",239492.31122,72364.456267999994,104362.39862000001,2003.1958936999999,56315.468850999998,37105.714422999998,7892.4150639,37585.104530999997,0]
[1593,"2012-03-13","KW60MN22 ",6850604.5551239569,2589496.3849814287,1907305.6347309363,112339.96326425849,569850.78698623402,"Winter",234782.75004000001,59019.912487000001,84887.703775000002,1629.3866553,55221.079172999998,33855.296226999999,6605.6957034999996,1354.3257784,3053.2304963000001]
[1594,"2011-08-17","KW60MN14 ",8331702.7381462539,2589339.7360882796,1907008.2778180314,132748.24983599997,549583.20843424846,"Summer",205859.42157000001,94646.085894999997,118912.43014,2282.4781235999999,53807.492506000002,40160.072295999998,11321.249204,41066.157697000002,0]
[1595,"2011-12-30","KW60MN17 ",7434702.481076532,2589081.3888538722,1901329.9350009044,97913.172970999993,589838.28088196774,"Winter",232173.59307,70467.644161000004,101697.59007999999,1952.0459238999999,56315.468850999998,28582.997679,6607.5291361,816.33821894000005,3053.2304963000001]
[1596,"2011-09-23","KW60MN18 ",7107032.8466803478,2588774.7373942453,1874713.4605860377,113959.60006,600101.67674820777,"Summer",220937.11202999999,84144.445676000003,137477.96268999999,2638.8363430999998,56041.871432,42549.476779999997,9388.0898930000003,30217.333901999998,0]
[1597,"2011-09-05","KW60MN18 ",7184065.5794945545,2588703.8988380479,1894028.3366342469,116143.767658,578531.79454580101,"Summer",257040.62468000001,60405.689247000002,104238.69463,2000.8214433999999,55312.278313000003,23039.834714000001,7225.1268013999997,34386.330473000002,0]
[1598,"2012-04-18","KW60MN08 ",6962121.1296729799,2588418.6820726842,1936673.4970307085,120362.16959485183,531383.01544712391,"Summer",210306.62565,50831.496759000001,99180.206858000005,1903.7257262999999,35294.067117999999,35337.475567000001,9090.2036260000004,7467.6597125999997,0]
[1599,"2011-09-07","KW60MN22 ",7339182.0361454962,2588302.7704406702,1906120.0985595905,123940.85348599999,558241.81839507958,"Summer",239276.30168,76686.157571999996,105521.56757,2025.4456935999999,53807.492506000002,36004.782987999999,8498.4331543000008,51882.993544999998,3053.2304963000001]
[1600,"2011-08-03","KW60MN12 ",7770502.6246801382,2588286.0399534814,1880359.6555122091,131107.34369799998,576819.0407432724,"Summer",184355.06315999999,94394.569961000001,139651.92451000001,2680.5646998000002,48745.940243999998,39798.304118,11468.431699999999,29206.468266,0]
[1601,"2012-01-27","KW60MN14 ",7253167.5554883135,2588131.8619067045,1935036.1824577251,95002.265383493694,558093.41406548582,"Winter",189585.35347999999,76910.539439,127462.73586,2446.5979361,57592.256808999999,36908.936534,8607.9921883000006,742.46966563000001,0]
[1602,"2011-12-31","KW60MN11 ",6914813.3593357177,2588113.2063203072,1904779.8065735397,105323.34389999999,578010.05584676773,"Winter",286483.92979000002,57737.874080000001,80112.279941999994,1537.7242411,56224.269711000001,20339.300402000001,5761.5903722000003,816.33821894000005,0]
[1603,"2012-02-15","KW60MN18 ",7530327.4962529503,2587949.7308740979,1911601.2096102841,112033.6241111554,564314.89715265878,"Winter",208978.84688,68043.040974999996,105552.65809,2026.0424640000001,48745.940243999998,33146.720183999998,7605.2009667000002,747.06969021999998,3053.2304963000001]
[1604,"2011-12-31","KW60MN19 ",7297216.7577424916,2587671.8206667015,1902928.6338601117,107266.12793000002,577477.05887658964,"Winter",264772.92038000003,69166.417323999995,79254.277514999994,1521.2552161999999,55813.873582,17589.045919,6596.1527114999999,816.33821894000005,3053.2304963000001]
[1605,"2011-12-23","KW60MN17 ",7662705.4371466981,2587306.283933348,1847286.8560169442,104011.15097,636008.27694640355,"Winter",302843.78274,80794.880481,97682.421937000006,1874.9763238,56953.862829999998,29321.697372999999,6831.3399804000001,816.33821894000005,3053.2304963000001]
[1606,"2012-05-31","KW60MN18 ",7856504.1174054677,2587082.6272270377,1898760.6531651157,129254.74670413189,559067.22735779011,"Summer",154894.30218999999,68675.791574999996,99509.475393999994,1910.0459086000001,55768.274012000002,40118.685293000002,7138.3443176000001,28093.387304,0]
[1607,"2011-08-28","KW60MN15 ",8144436.0199506134,2586989.8653161554,1773474.0786789542,120811.95487099999,692703.83176620107,"Summer",290070.37066999997,75673.137992000004,104980.0955,2015.0523465000001,55540.276163000002,29698.054031,8358.4624975999996,42618.858964999999,0]
[1608,"2011-11-09","KW60MN18 ",7577391.5217770217,2586374.2334932727,1898038.0102445404,117902.39372199999,570433.82952673221,"Winter",233058.47862000001,73115.176665999999,130791.60950999999,2510.4943788,57045.061970000002,38135.122453000004,7948.5455320000001,4955.8928413000003,3053.2304963000001]
[1609,"2012-03-26","KW60MN10 ",7108146.4407931268,2586364.8301601931,1947037.3109969483,120760.77519047614,518566.74397276866,"Winter",152368.90575999999,74889.738454999999,110594.91416,2122.8266199,56087.471001999998,36564.918730999998,8560.9256167000003,1354.3257784,0]
[1610,"2012-04-03","KW60MN10 ",7010988.3800929105,2586308.1903107474,1953747.6994360476,108143.56884804432,524416.9220266554,"Summer",204298.76034000001,67598.035548999993,112427.98057,2158.0116210000001,55266.678742999997,34795.580551999999,8235.9695515999992,7467.6597125999997,0]
[1611,"2012-01-15","KW60MN14 ",6876708.1682791347,2586241.9166833851,1897924.2285673455,104637.77525272041,583679.91286331939,"Winter",316738.8737,49123.17699,82143.924203000002,1576.7208671999999,55540.276163000002,25374.503827,5985.8481474,742.46966563000001,0]
[1612,"2012-03-19","KW60MN14 ",7317377.721480079,2586136.5581471855,1980060.1239555352,101656.20044196679,504420.23374968325,"Winter",150864.73493000001,75019.153502999994,110396.08713,2119.0102120000001,56953.862829999998,35529.799407999999,7971.1629478000004,1354.3257784,0]
[1613,"2012-03-20","KW60MN20 ",7259636.0603932207,2586025.8524109432,1908193.2080373992,110066.42625220276,567766.2181213412,"Winter",238523.84531,67006.145923999997,96762.637961,1857.321426,55585.875732,32546.819527,7209.0338996999999,1354.3257784,3053.2304963000001]
[1614,"2012-03-12","KW60MN19 ",6986520.6493054181,2586009.6772590182,1914552.7399591864,120133.9826660524,551322.95463377924,"Winter",258755.98269,63695.582634999999,100736.11607,1933.5908019999999,53989.890785000003,33646.044685000001,7127.9904162000003,1354.3257784,3053.2304963000001]
[1615,"2011-11-09","KW60MN19 ",7522289.9612288745,2585879.2135678045,1891457.3749941976,120170.44383999999,574251.39473360684,"Winter",242160.54464000001,67109.352423999997,128213.44121999999,2461.0074352000001,57136.261109999999,37091.541307,7968.3120700999998,4955.8928413000003,3053.2304963000001]
[1616,"2012-01-10","KW60MN17 ",7570828.056829107,2585592.9914497328,1909146.7171761671,97465.153676255926,578981.12059730978,"Winter",210923.28247999999,73247.467889000007,118283.30343,2270.4022795000001,56315.468850999998,34985.628926999998,8129.6947831999996,742.46966563000001,3053.2304963000001]
[1617,"2012-02-08","KW60MN17 ",7478434.299768609,2585562.2636765554,1872384.8815324528,97624.94332633006,615552.43881777267,"Winter",237057.38420999999,80843.608359000005,123513.9534,2370.8025834999999,50797.920891000002,33313.321907999998,8235.1129345999998,747.06969021999998,2341.2341065999999]
[1618,"2012-02-15","KW60MN13 ",7245085.2788188392,2585195.5379306935,1947016.3940709946,103408.33085200575,534770.81300769339,"Winter",176118.77346,79466.553322000007,119279.47044999999,2289.5233202999998,45417.17164,35710.008477000003,9085.8832929,747.06969021999998,0]
[1619,"2011-07-31","KW60MN20 ",7609672.3550595781,2585154.3284548339,1859998.1580197425,115259.94790599999,609896.22252909152,"Summer",261663.61670000001,68513.605800000005,97823.977618000004,1877.6934303999999,55175.479603,28507.238141000002,7114.2269735,28531.430480999999,0]
[1620,"2012-02-02","KW60MN12 ",7308543.468482906,2585093.4207195062,1909082.1242875366,105907.19455551104,570104.10187645862,"Winter",191848.04306,76770.686604999995,129172.19059,2479.4102588999999,54217.888635000003,35299.494673000001,9402.7573553999991,747.06969021999998,0]
[1621,"2011-11-16","KW60MN16 ",7293089.2848148094,2585091.8922329592,1820482.9634705563,100538.44186100001,664070.48690140294,"Winter",295874.23462,86674.631823000003,130864.39109,2511.8913932,57501.057669000002,39731.643874000001,8977.9088315000008,4955.8928413000003,1628.8136574]
[1622,"2012-02-12","KW60MN20 ",7258349.9241457358,2584239.6612673984,1914645.7340183354,114157.21146776063,555436.71578130242,"Winter",219592.99025999999,62058.212815999999,78545.161942999999,1507.6440170000001,55722.674442000003,26822.432272999999,6569.1032298,747.06969021999998,3053.2304963000001]
[1623,"2011-11-21","KW60MN15 ",7381998.5280725779,2583898.0543911872,1856124.3749541773,111053.114403,616720.56503400987,"Winter",243558.48595999999,74222.817601999996,120494.90302,2312.8530786000001,54263.488205000001,40100.037038000002,7785.9032870000001,4955.8928413000003,0]
[1624,"2011-12-07","KW60MN15 ",7335600.5433132173,2583648.5784893068,1944511.5651304361,86418.256689999995,552718.7566688708,"Winter",199120.21226,79607.670708999998,136268.67741999999,2615.6245798999998,57729.055519000001,35146.687997000001,9358.9581197000007,816.33821894000005,0]
[1625,"2012-03-14","KW60MN21 ",7104189.9865029659,2583612.6441102172,1898219.7557011331,106923.80410377026,578469.08430531388,"Winter",268118.93261000002,60683.167887000003,92764.060358000002,1780.5702748000001,56133.070571999997,33164.363523,6843.4257392999998,1354.3257784,3053.2304963000001]
[1626,"2011-12-18","KW60MN20 ",7570708.3497283524,2583515.6097407527,1850010.2056889066,105435.79374000001,628069.61031184625,"Winter",323147.37570999999,61228.212806000003,98134.533947000004,1883.6544391,57318.659389,25715.989638999999,6909.9795170999996,816.33821894000005,3053.2304963000001]
[1627,"2012-06-21","KW60MN15 ",8098824.9062375939,2583033.1896497435,1840096.1021643644,127379.1398707473,615557.94761463185,"Summer",181863.38079,101864.25511,135990.64305000001,2610.2878175999999,57090.661540000001,43458.610689000001,10137.694716,35299.471086999998,0]
[1628,"2012-02-03","KW60MN20 ",7227316.0581233408,2582817.5214404115,1871809.6912519298,108517.63083110595,602490.19935737574,"Winter",226664.78283000001,70576.410195999997,102092.56692,1959.6273518,58413.049068,31900.633935999998,6886.5545785000004,747.06969021999998,3053.2304963000001]
[1629,"2011-11-07","KW60MN21 ",7165081.6871529808,2582159.5193601004,1842549.2965938319,119016.22993,620593.9928362685,"Winter",308208.88692000002,61947.780526000002,115047.49407,2208.2921698,57181.860679999998,36113.326113000003,7550.8988529999997,4955.8928413000003,3053.2304963000001]
[1630,"2012-02-25","KW60MN09 ",6985645.9082221789,2581946.4769565063,1901663.0228194837,113300.74289921885,566982.7112378038,"Winter",227980.98795000001,51244.064065999999,79259.515151,1521.3557506,56178.670141000002,27481.441954000002,5788.0168589000004,747.06969021999998,0]
[1631,"2011-07-31","KW60MN15 ",8202190.1917913184,2581591.1743022278,1824989.5886379888,131730.07768799999,624871.50797623931,"Summer",252118.39251000001,65277.583662999998,107520.84970999999,2063.8211412999999,55449.077022999998,28463.371838999999,7766.1976935000002,32229.868473999999,0]
[1632,"2012-03-20","KW60MN12 ",7201033.8172865668,2581322.5206383411,1945966.6127735849,107572.9551622826,527782.95270247338,"Winter",186275.93812000001,78888.225105000005,113649.07851000001,2181.4501237999998,51481.91444,37929.984877000003,8504.6123136999995,1354.3257784,0]
[1633,"2011-12-01","KW60MN22 ",7122638.9427170707,2581188.2789994413,1903882.0514323709,89249.383059999993,588056.84450707037,"Winter",284051.55703999999,73434.642649999994,112749.07533000001,2164.1749107000001,57592.256808999999,32999.302136999999,6727.0628571999996,816.33821894000005,3053.2304963000001]
[1634,"2011-08-03","KW60MN22 ",7209348.9221298117,2581182.7171144472,1876496.7447664053,124601.90685,580084.0654980418,"Summer",267976.04262999998,76876.880151000005,111362.84207,2137.5666992000001,54810.683043999998,35355.059012999998,8412.3176803000006,32714.015599999999,3053.2304963000001]
[1635,"2012-02-22","KW60MN21 ",7012143.4012724627,2580939.0427904846,1877613.8043836534,108963.68461306806,594361.55379376328,"Winter",240492.59404,66551.851576000001,97163.212199999994,1865.0102936999999,53670.693796,32309.900361,7371.6795313000002,747.06969021999998,3053.2304963000001]
[1636,"2012-02-01","KW60MN07 ",7370426.3326002043,2580826.1853689002,1868203.7119307781,117229.12986524634,595393.34357287595,"Winter",284623.47729000001,59696.197782000003,102905.72592,1975.2356244,49338.734653,34870.690486,8985.6894941999999,747.06969021999998,1322.6424892]
[1637,"2011-10-28","KW60MN07 ",7130867.2070567859,2580756.6596447458,1844671.3430504571,108995.632283,627089.68431128853,"Summer",284685.83929999999,55368.854996000002,121348.78095,2329.2429353000002,57592.256808999999,40597.657643999999,8425.5427746000005,19170.103298999999,3053.2304963000001]
[1638,"2012-06-01","KW60MN17 ",7753598.5907178521,2580606.6503688372,1874868.4459259375,135570.17680696273,570168.02763593686,"Summer",176312.62138,86891.525993000003,111467.52945,2139.576133,56315.468850999998,41479.608419999997,8048.9848042000003,24768.804353,0]
[1639,"2012-02-08","KW60MN21 ",7352491.8574004965,2580038.8655758887,1862588.0569233862,108254.4712549649,609196.33739753754,"Winter",257742.66362000001,73124.210107000006,106716.73901999999,2048.3865474999998,51618.713149000003,31127.4748,7632.7058442999996,747.06969021999998,3053.2304963000001]
[1640,"2011-09-14","KW60MN13 ",7002978.4209284866,2579726.0157967061,1887295.370780624,108407.29292400001,584023.35209208238,"Summer",144119.82359000001,89448.307927000002,146884.80906999999,2819.3971225999999,54354.687344999998,42176.390378999997,12105.267712000001,23392.023765000002,0]
[1641,"2012-01-11","KW60MN06 ",7152979.9108662624,2579423.9177442407,1867277.3908610833,96660.213765650959,615486.31311750633,"Winter",272734.89778,58009.444509000001,97034.427196000004,1862.5383153,57729.055519000001,34118.616484999999,9390.9543150000009,742.46966563000001,3053.2304963000001]
[1642,"2011-12-28","KW60MN12 ",7325624.746793217,2579324.0450664465,1897174.8954422122,97317.167060000007,584831.98256423406,"Winter",202642.39399000001,76074.918835999997,110221.14151,2115.6521984000001,56817.064120000003,33873.936239000002,6960.9093332000002,816.33821894000005,0]
[1643,"2011-11-03","KW60MN20 ",7310078.7456495306,2579186.7095926404,1905797.0174270202,114346.88160400001,559042.81056162005,"Winter",266889.41321999999,68911.646009000004,119437.86193,2292.5635836000001,54765.083473999999,40189.227395000002,7318.7791551999999,4955.8928413000003,3053.2304963000001]
[1644,"2012-02-20","KW60MN14 ",7316849.3067758074,2578978.5661628107,1906966.5865938077,102982.28372075909,569029.69584824366,"Winter",210134.33523,73117.098400999996,102519.51157,1967.8223892999999,55950.672292000003,31128.424932999998,6834.8223180000005,747.06969021999998,0]
[1645,"2011-12-28","KW60MN10 ",7332317.7406553095,2578937.231253719,1894213.0096214525,99820.792930000011,584903.42870226654,"Winter",202315.95791,70379.965794999996,111159.10374000001,2133.6560208999999,56087.471001999998,33786.760605000003,7334.9905607000001,816.33821894000005,0]
[1646,"2011-12-20","KW60MN15 ",7478568.0762631884,2578643.209152278,1912789.3113895115,81560.844650000014,584293.05311276659,"Winter",262374.96120000002,74187.233364999993,121367.66310000001,2329.6053708999998,41267.610778000002,36111.554347999998,8213.7381220999996,816.33821894000005,0]
[1647,"2011-11-10","KW60MN11 ",7288633.0000998396,2578210.2761061797,1923286.123792113,109038.829835,545885.32247906667,"Winter",199072.30671,73663.030274999997,133003.0736,2552.9425771000001,56953.862829999998,41373.379547999997,10691.259362000001,4955.8928413000003,0]
[1648,"2011-08-18","KW60MN19 ",8190517.5290372884,2578111.9920250843,1885475.6923153433,136588.53268400001,556047.76702574117,"Summer",230209.12617,79084.544175999996,105726.21131,2029.3737510000001,54719.483904000001,35536.558947999998,8251.9913500000002,41487.121435000001,0]
[1649,"2012-06-21","KW60MN19 ",8166537.1577118561,2578052.0084303883,1833698.9968877952,128124.05177718717,616228.95976540574,"Summer",209278.46857,77630.812546000001,108149.46705000001,2075.8872081,52986.700247000001,40028.563971000003,8360.1283311999996,25036.247754,0]
[1650,"2012-03-02","KW60MN19 ",7389856.7514607953,2578014.803665536,1893356.1671225061,113321.90872168982,571336.7278213402,"Winter",227371.66532,70992.335718999995,97973.648975999997,1880.5663142000001,56361.068421000004,30858.180167999999,7483.8964503999996,1354.3257784,3053.2304963000001]
[1651,"2012-03-12","KW60MN14 ",6977207.3402374871,2577813.7767271623,1917397.3974729346,109282.2663828192,551134.11287140823,"Winter",187528.79556,77621.531657,116971.00371,2245.2131936999999,53214.698097,36536.099076999999,8501.6141509000008,1354.3257784,0]
[1652,"2011-12-21","KW60MN15 ",7489865.9150321502,2577580.2560459301,1947947.7186785133,92039.048790000015,537593.48857741663,"Winter",210489.00591000001,74691.301619000005,113429.9837,2177.2446837000002,54765.083473999999,34705.524339000003,9093.5014346999997,816.33821894000005,0]
[1653,"2011-11-30","KW60MN11 ",7262293.3876146367,2577551.9394659055,1923683.9211155269,106020.77863099999,547847.23971937853,"Winter",221201.14369999999,76828.859265999999,132933.56885000001,2551.6084602999999,48335.544114999997,38240.584116999999,10458.184857,4955.8928413000003,0]
[1654,"2012-01-31","KW60MN17 ",7279469.2797028311,2577542.6873159241,1889509.7789823762,107494.72938151748,580538.17895203026,"Winter",219216.00958000001,72553.348698999995,118566.05791,2275.8296424,54673.884334000002,34375.607759999999,8199.0097139999998,742.46966563000001,2900.4134826]
[1655,"2011-12-11","KW60MN15 ",6952673.906253593,2577361.855372522,1826087.1376220689,88765.908257999996,662508.80949245335,"Winter",342619.16077999998,52377.976216000003,92554.089991000001,1776.5399748,57318.659389,26847.234325000001,6784.5747486999999,816.33821894000005,0]
[1656,"2011-12-26","KW60MN20 ",7567102.6661833702,2577314.5946015213,1892893.7989965735,105401.93015,579018.86545494804,"Winter",308255.40405999997,63580.310658000002,85102.983429999993,1633.5188651000001,53853.092076000001,24156.684692999999,6618.3570546999999,816.33821894000005,3053.2304963000001]
[1657,"2012-06-01","KW60MN15 ",7706498.5298074139,2577238.993368417,1874939.6556125535,136388.73289851198,565910.60485735175,"Summer",158949.88896000001,84795.788583000001,126065.89505000001,2419.7861167000001,56589.066271000003,45825.405855999998,9357.7104369999997,23938.122662000002,0]
[1658,"2011-12-20","KW60MN16 ",7597917.3037156006,2576814.085333189,1898669.282176052,87924.722049999997,590220.08110713726,"Winter",261330.35514,70306.896473000001,118904.08147999999,2282.3178742,41085.212498000001,34691.586732000003,8024.9504138000002,816.33821894000005,2188.5725819999998]
[1659,"2012-03-15","KW60MN10 ",7012080.1360849552,2576613.0780488262,1925235.5464010551,103198.08909946107,548179.44254831027,"Winter",155390.14588,71851.140868000002,120524.30832,2313.4175019999998,46192.364329000004,36704.873985999999,8572.6389323999992,1354.3257784,0]
[1660,"2011-07-26","KW60MN13 ",8625214.8567014541,2576577.5936183631,1863327.0285392194,129332.352749,583918.21233014355,"Summer",133377.37387000001,86629.406772999995,118210.84911,2269.0115467999999,54993.081323999999,42386.508323000002,10933.841307000001,35669.384281999999,0]
[1661,"2012-05-14","KW60MN18 ",7638760.1117838845,2576521.117842692,1823528.7256594996,134787.81262366936,618204.57955952315,"Summer",196617.42259,69407.517965999999,111361.97087,2137.5499768999998,50889.120030999999,37584.964885000001,8288.4280749999998,21356.368259999999,0]
[1662,"2011-12-27","KW60MN14 ",7262537.4562159739,2576507.1912978236,1895445.5712447253,90614.121339999998,590447.49871309835,"Winter",245149.69227999999,70447.673219000004,107869.04587,2070.5046320000001,57820.254658999998,33055.077409999998,7426.8348765000001,816.33821894000005,0]
[1663,"2011-08-10","KW60MN17 ",8239302.0357738808,2576163.7582849255,1874971.7969464748,132995.11499999999,568196.84633845044,"Summer",200225.47396,86101.64301,122409.97167,2349.6120810000002,54993.081323999999,39510.693631000002,9041.7183860000005,45867.552692999998,0]
[1664,"2012-02-13","KW60MN14 ",7235546.1944506019,2576081.5280495835,1932808.3589755651,106992.37628762852,536280.79278639005,"Winter",165478.65298000001,72699.562862999999,123933.3355,2378.8524606999999,55449.077022999998,38880.228299000002,9407.5246195,747.06969021999998,0]
[1665,"2011-08-10","KW60MN18 ",8223304.7211315222,2576049.9004426468,1879455.1758836065,123438.501495,573156.22306404007,"Summer",188547.36093,82875.970285000003,116462.3324,2235.4494445,56041.871432,38291.844029,8630.7247234999995,46843.132144000003,0]
[1666,"2012-01-04","KW60MN13 ",7302401.2626859918,2575981.0152361966,1901229.1456753833,100893.24053056001,573858.62903025327,"Winter",190854.61751000001,68282.065629000004,117777.33447,2260.6904009999998,51390.715300000003,37469.582781999998,9229.0434110000006,742.46966563000001,0]
[1667,"2012-02-25","KW60MN21 ",7140814.0023805397,2575877.1291727526,1886934.3226633226,118463.70349769051,570479.10301173967,"Winter",258391.97467,69816.127720000004,79148.063502999998,1519.2164792999999,55905.072721999997,26402.020667000001,6493.4974057999998,747.06969021999998,3053.2304963000001]
[1668,"2012-01-08","KW60MN11 ",6974722.8007429978,2575870.6161978524,1891076.417014403,115836.94261945445,568957.25656399492,"Winter",266136.29975000001,46945.388234999999,81598.927609999999,1566.2598683000001,52941.100677000002,26308.520328999999,5709.3603936,742.46966563000001,0]
[1669,"2012-02-09","KW60MN18 ",7514387.0963125182,2575803.0084233424,1846976.6442142816,97874.257512489799,630952.10669657111,"Winter",273708.72655999998,89316.342883999998,121116.27059,2324.7799888999998,56041.871432,33546.458065999999,8163.2315350999997,747.06969021999998,3053.2304963000001]
[1670,"2011-11-11","KW60MN11 ",7247998.8159674928,2575720.8361940337,1863440.2260819685,113258.22456100001,599022.38555106532,"Winter",264199.27256000001,77498.678788999998,123896.63232,2378.1479573000001,56452.267561000001,41296.416640000003,7084.5060635,4955.8928413000003,0]
[1671,"2012-01-27","KW60MN06 ",7153420.6268765507,2575605.0556520447,1879796.7144120436,98708.719788960821,597099.62145104038,"Winter",289057.09399999998,61565.737637999999,88486.044502000004,1698.4554144000001,56953.862829999998,33155.622126000002,8001.7709488,742.46966563000001,3053.2304963000001]
[1672,"2011-08-05","KW60MN13 ",7988009.8034754731,2575346.6585172461,1820466.6577974539,129261.068811,625618.93190879188,"Summer",209050.32367000001,90903.087192000006,124264.98923000001,2385.2184259000001,54993.081323999999,40022.291099000002,9023.1707504999995,31513.147369999999,0]
[1673,"2012-01-04","KW60MN17 ",7493942.6040559206,2575283.6118474137,1882580.3925464069,99749.84296128439,592953.37633972231,"Winter",245143.33313000001,74437.108754000001,109639.68092,2104.4912872,46511.561318,36428.989189,8039.7397664999999,742.46966563000001,3053.2304963000001]
[1674,"2011-08-21","KW60MN21 ",7809261.0679032402,2575106.1561014801,1876324.7954961222,130584.97116199999,568196.38944335806,"Summer",226022.60462999999,65093.648216000001,84308.226490999994,1618.2638128999999,55768.274012000002,30580.558224,7766.6243092000004,41550.412563999998,2900.4134826]
[1675,"2011-11-22","KW60MN20 ",7427721.628483668,2575049.3450882067,1875040.6572449871,116664.425065,583344.26277821953,"Winter",249288.0539,69601.905660999997,109299.84996000001,2097.9683633,56999.462399999997,36432.254481000004,6240.5988041999999,4955.8928413000003,3053.2304963000001]
[1676,"2011-08-22","KW60MN11 ",8164144.882647262,2574939.8081037491,1864126.4931140607,132570.580503,578242.73448668851,"Summer",171177.15651,84212.079186999996,119469.4492,2293.1698888999999,56908.26326,39228.683130999998,11216.870505000001,44576.021381999999,0]
[1677,"2011-12-17","KW60MN20 ",7575884.2428543726,2574719.3259032629,1840645.467981495,97768.654569999999,636305.20335176808,"Winter",319360.15544,69097.088636999993,92794.540221999996,1781.1553240000001,57501.057669000002,26544.237917999999,7281.5213643999996,816.33821894000005,3053.2304963000001]
[1678,"2012-05-31","KW60MN16 ",7920894.3399640014,2574614.1609903714,1892599.0313597757,128803.00934280377,553212.12028779206,"Summer",112774.25461,85614.937858000005,120672.23258,2316.2568508999998,54172.289064999997,42644.631946000001,8297.9998470999999,28290.374253000002,0]
[1679,"2011-11-14","KW60MN18 ",7601825.6302095177,2574575.3074451778,1848188.172272475,118358.107829,608029.02734370274,"Winter",229048.07358,65802.731553000005,115467.58258,2216.3556064999998,57273.059820000002,38677.827635000001,7647.2327937999999,4955.8928413000003,3053.2304963000001]
[1680,"2012-01-26","KW60MN22 ",7143210.919102258,2574464.8310710741,1869153.5352583537,100299.18398770469,605012.11182501609,"Winter",275533.04850999999,67244.537498999998,101768.47413,1953.406516,56224.269711000001,34000.6302,6994.4088423000003,742.46966563000001,3053.2304963000001]
[1681,"2011-11-29","KW60MN22 ",7137581.3155446388,2574388.6804734673,1876044.2422650219,104788.05145300001,593556.38675544551,"Winter",301478.41084000003,63906.915663,107867.49421,2070.4748482999998,56999.462399999997,34638.151614000002,7310.2265219999999,4955.8928413000003,3053.2304963000001]
[1682,"2011-11-21","KW60MN14 ",7393140.3582368372,2574351.044598748,1846221.5963009752,109944.61180300001,618184.83649477246,"Winter",239307.87482999999,77783.423387999996,123891.26642,2378.0449610000001,52530.704548000002,40731.284686999999,9088.0570031000007,4955.8928413000003,0]
[1683,"2011-07-15","KW60MN15 ",8476658.9439678099,2574119.3863101313,1849878.00186041,132761.212841,591480.17160872114,"Summer",176847.6268,86263.006101999999,123901.61435,2378.2435854,55813.873582,42913.599525999998,8420.1999182,38337.580248999999,0]
[1684,"2012-02-21","KW60MN07 ",7311830.7020964222,2574103.7431980334,1839855.6441704317,103430.72460136059,630817.37442624127,"Winter",264544.20315000002,60828.631673999997,99103.735975000003,1902.2578973,56315.468850999998,35190.194143000001,8851.8776825999994,747.06969021999998,34.476060996000001]
[1685,"2011-07-28","KW60MN12 ",8341946.6462094132,2573792.3667352824,1843748.5205075254,137378.58798400001,592665.25824375707,"Summer",154301.36497,86614.304441,129783.03341,2491.1351504999998,55950.672292000003,41319.563844999997,10789.076300999999,33664.725893000003,0]
[1686,"2011-08-08","KW60MN20 ",8046433.4164505173,2573601.6285174368,1821630.443928526,122386.169798,629585.01479091088,"Summer",237200.49676000001,71058.092485000001,113394.09706,2176.5558535,56862.663690000001,35093.188786999999,8539.7945837999996,39198.914008,0]
[1687,"2011-12-10","KW60MN07 ",7060788.6238934686,2573520.5907771192,1834516.1793646556,98373.535379999987,640630.87603246339,"Winter",310908.07877000002,63694.141333,96006.931624999997,1842.8159350000001,57501.057669000002,28928.245628000001,7252.6536858999998,816.33821894000005,1627.9655384]
[1688,"2011-09-10","KW60MN15 ",7392958.6964531727,2573150.331800418,1816260.7600379612,108325.840803,648563.73095945676,"Summer",251252.06507000001,90461.083272000003,125706.69954,2412.8914979000001,54719.483904000001,36379.430486999998,7825.8832941000001,37971.310956000001,0]
[1689,"2012-01-08","KW60MN09 ",6959802.2132286504,2572979.7641159045,1876183.1764299632,121146.35693659642,575650.23074934469,"Winter",264551.60094999999,51418.365127999998,86862.965110000005,1667.301033,51618.713149000003,25924.120676999999,6144.4070689999999,742.46966563000001,0]
[1690,"2011-11-10","KW60MN20 ",7470517.00644664,2572875.3906571302,1885842.4086298076,108988.878152,578044.10387532262,"Winter",268179.11131000001,71550.527491999994,121590.47901,2333.8822362000001,56908.26326,36471.760432000003,8011.7253205999996,4955.8928413000003,3053.2304963000001]
[1691,"2011-11-09","KW60MN10 ",7275848.8233060176,2572639.2408599476,1907503.3468981779,125938.28234000001,539197.61162176984,"Winter",196098.20903999999,75453.778986999998,134573.49278,2583.0861660999999,47469.152286999997,41089.945571999997,10136.089828,4955.8928413000003,0]
[1692,"2011-12-05","KW60MN23 ",7169895.7691019,2572574.1991052008,1913675.1660723537,90589.580819999988,568309.45221284695,"Winter",279215.03554000001,61070.616056999999,97549.418393999993,1872.4233721999999,57957.053368000001,32504.854905,7070.0011219999997,816.33821894000005,3053.2304963000001]
[1693,"2011-07-25","KW60MN12 ",8218060.6638388326,2572384.1766630523,1852737.1895115552,130551.08598799998,589095.90116349712,"Summer",153985.18831,80976.111680999995,124908.64429,2397.5731359000001,56041.871432,39677.373055999997,9799.6523780999996,40943.107996999999,0]
[1694,"2011-11-29","KW60MN15 ",7237634.2288095625,2572384.1009517936,1919981.7562862621,98055.305370000002,554347.03929553158,"Winter",201654.42671,74716.698732000004,124345.02804,2386.7547399,48700.340674999999,38735.135690000003,9107.6203898999993,4955.8928413000003,0]
[1695,"2011-07-06","KW60MN23 ",7560145.5214286679,2572109.2614805279,1830373.3566417824,139754.087573,601981.81726574525,"Summer",200551.27413000001,62896.135966000002,109852.9411,2108.5847339000002,55494.676592999997,36353.826863000002,7672.0577782,47860.398401999999,3053.2304963000001]
[1696,"2012-01-31","KW60MN13 ",7232439.5251969285,2572039.731624824,1909027.7334711952,112957.00440815141,550054.9937454774,"Winter",190590.62823,82327.719794999997,121321.33874000001,2328.7161927000002,54901.882184000002,37648.131782999997,9310.9130397000008,742.46966563000001,0]
[1697,"2011-10-18","KW60MN08 ",6972312.4971629241,2572016.8850744804,1878507.7787908739,100793.15673399999,592715.94954960654,"Summer",246055.47821,57387.494831999997,125551.59523000001,2409.9143304999998,55996.271862000001,42919.667046000002,9761.5819852000004,19170.103298999999,1068.2066138]
[1698,"2011-08-25","KW60MN10 ",8140659.7350977696,2571875.7004222292,1878992.7692108552,134369.866373,558513.0648383738,"Summer",149825.78851000001,85082.900001000002,127955.20314,2456.0506552000002,49019.537664000003,40072.236349999999,11896.043068999999,44755.296925000002,0]
[1699,"2011-11-29","KW60MN16 ",7314146.4768565558,2571621.6256777751,1911566.7035170756,98684.862746999992,561370.05941369955,"Winter",237232.45146000001,74116.341260000001,121617.88632000001,2334.4083088000002,55585.875732,37804.110717000003,8522.1814407000002,4955.8928413000003,2137.6854072000001]
[1700,"2011-11-28","KW60MN10 ",7371012.164641276,2571407.8688198556,1889244.4424272573,107219.941647,574943.48474559828,"Winter",218576.79897999999,69637.597554000007,123008.89732,2361.1082273000002,57227.460249999996,35393.451531999999,9772.7958889000001,4955.8928413000003,0]
[1701,"2012-03-21","KW60MN19 ",6935664.3440249953,2571384.7010435872,1905323.9360410953,97245.740491206452,568815.02451128536,"Winter",260205.97360999999,72035.614593999999,104759.50702,2010.8182357999999,49065.137234000002,32670.103952000001,7459.0359147999998,1354.3257784,3053.2304963000001]
[1702,"2011-11-28","KW60MN21 ",7446117.9546584934,2570846.1996262334,1863832.6350830703,109153.63177400001,597859.93276916305,"Winter",276573.41514,59643.587870000003,110585.74827,2122.6506841999999,54081.089925,33687.666556999997,7482.3965232,4955.8928413000003,3053.2304963000001]
[1703,"2011-12-17","KW60MN12 ",7120601.9221487725,2570418.870574832,1825914.5383573566,94084.916280000005,650419.41593747563,"Winter",335308.10541000002,69004.061226999998,92990.172972999993,1784.910419,57227.460249999996,25899.964875999998,6732.3447690000003,816.33821894000005,0]
[1704,"2011-07-24","KW60MN22 ",7978640.2989577046,2570334.9232602711,1835348.9089677979,130355.792208,604630.222084473,"Summer",250859.09114,63716.880794999997,96136.019429000007,1845.2937254999999,55312.278313000003,29583.087642999999,6854.0318851000002,47299.020849,3053.2304963000001]
[1705,"2011-10-13","KW60MN08 ",6861650.317463655,2570317.9857989862,1906223.7033274162,109310.28064300001,554784.0018285698,"Summer",222352.13824999999,58886.649147999997,120631.82471,2315.4812375000001,48609.141535000002,43117.561010999998,9125.6601498,19170.103298999999,711.99638938999999]
[1706,"2012-01-02","KW60MN13 ",7002727.7051543323,2569781.1878343811,1867784.4998763364,98580.908711197,603415.77924684749,"Winter",271875.14145,51012.761702000003,89033.304464000001,1708.9598578,55129.880033000001,24700.765153,7291.9632965999999,742.46966563000001,0]
[1707,"2012-03-13","KW60MN19 ",7154714.702120062,2569769.4446289279,1898736.7103483421,112330.17237589073,558702.56190469535,"Winter",269093.69406000001,65332.827123000003,99066.296749000001,1901.5392658000001,55859.473151999999,34229.713827,7375.7763990000003,1354.3257784,3053.2304963000001]
[1708,"2011-12-05","KW60MN16 ",7585828.1583665917,2569503.469325982,1918881.054584905,86097.407430000007,564525.00731107686,"Winter",220433.30880999999,73295.606071000002,123739.09182,2375.1240283000002,57865.854227999997,35285.508102,8456.4622718999999,816.33821894000005,2239.4597568999998]
[1709,"2012-01-19","KW60MN22 ",7137897.5107390834,2569435.8442211077,1799861.4859683891,104649.95130582186,664924.40694689692,"Winter",304924.33581999998,69216.086788000001,94702.447763999997,1817.7768716999999,56361.068421000004,32743.186651,7411.5579633999996,742.46966563000001,3053.2304963000001]
[1710,"2011-12-08","KW60MN16 ",7516574.0978356479,2569243.1000668271,1901133.6854902634,86190.132990000013,581919.28158656356,"Winter",218008.40805,83054.101962999994,130715.65891,2509.0365364999998,54856.282614000003,34938.505281999998,8613.7210310999999,816.33821894000005,2239.4597568999998]
[1711,"2012-01-22","KW60MN22 ",7041293.3884382565,2569168.3848790885,1893817.7367572777,105446.92372703963,569903.72439477092,"Winter",268844.04465,62449.091507999998,71773.813072000004,1377.6705933000001,56680.265411,26327.495986999998,6477.8988375999998,742.46966563000001,3053.2304963000001]
[1712,"2012-02-08","KW60MN15 ",7338574.2787603494,2569150.5343213174,1875917.5868562926,96865.338398522115,596367.60906650242,"Winter",206368.29091000001,71949.890100000004,128767.27241999999,2471.6380110999999,49794.730352999999,35035.378811000002,9493.0374126999995,747.06969021999998,0]
[1713,"2012-01-25","KW60MN07 ",7419186.3803378595,2569146.2480654148,1826943.3024156243,106923.92367430113,635279.02197548933,"Winter",279081.20734999998,60626.886433,100363.66886999999,1926.4418221000001,54445.886484000002,36841.421320000001,9259.1503061999992,742.46966563000001,1678.8527133]
[1714,"2011-08-16","KW60MN15 ",8099123.8782540765,2568912.5327283191,1907856.0461782587,127755.71116300001,533300.77538706025,"Summer",187326.38399999999,88681.222250000006,117861.90599,2262.3137185999999,53123.498957000003,38704.943669,10937.904316,40611.696947999997,0]
[1715,"2011-11-03","KW60MN19 ",7369699.5555985197,2568834.49572537,1890590.6146714855,114544.50880499999,563699.37224888441,"Winter",257197.82273000001,69102.281820999997,125983.01437,2418.1952541000001,55631.475301999999,40407.721712999999,7510.0859284999997,4955.8928413000003,3053.2304963000001]
[1716,"2011-12-31","KW60MN12 ",6888209.7992117954,2568819.0621230048,1889134.1722046072,101258.34067000001,578426.54924839758,"Winter",283166.90466,62216.220906000002,80935.657684999998,1553.5286584999999,56406.667991000002,20468.688328,5659.0197129999997,816.33821894000005,0]
[1717,"2012-02-17","KW60MN07 ",7270010.1653699875,2568804.473326874,1834638.0151268307,118030.69145471473,616135.76674532855,"Winter",270473.39523999998,64225.502725999999,92373.747350999998,1773.0783676000001,57592.256808999999,35376.734496999998,7536.7832834000001,747.06969021999998,187.30720972]
[1718,"2012-02-16","KW60MN16 ",7215985.9419979919,2568720.2644549245,1923335.2166664691,93898.181298661191,551486.86648979422,"Winter",169328.22466000001,79403.486342000004,115270.44881,2212.5716997999998,55540.276163000002,36284.523673000003,8678.6360626999995,747.06969021999998,0]
[1719,"2011-12-29","KW60MN11 ",7205411.8376776883,2568240.5461218096,1901924.4707273836,98033.670200000008,568282.40519442607,"Winter",221442.30366000001,70683.501944000003,107206.86635,2057.7943521000002,35978.060666999998,33888.545586,7058.7059571999998,816.33821894000005,0]
[1720,"2012-02-26","KW60MN12 ",6947896.004914552,2568171.6012154967,1896453.2095648127,120139.562603043,551578.82904764113,"Winter",227814.74931000001,48494.195947,77150.166758000007,1480.8676237,55540.276163000002,26156.597032000001,5659.8594013000002,747.06969021999998,0]
[1721,"2012-02-16","KW60MN17 ",7243298.1746494062,2568014.2231621542,1915467.7451470955,95404.485376389232,557141.99263866944,"Winter",220398.45009999999,75967.542684999993,108484.10837,2082.3105188999998,51481.91444,36250.217785000001,8044.3851402999999,747.06969021999998,1730.5880082000001]
[1722,"2011-09-10","KW60MN21 ",7089882.8529972062,2567899.3541824277,1869922.7225761756,107627.92485,590348.70675625186,"Summer",246715.14405999999,73856.767214000007,110487.83113000001,2120.7712025999999,54081.089925,34036.532064999999,7304.7820904,42037.448107999997,3053.2304963000001]
[1723,"2012-01-07","KW60MN19 ",7394328.7208982157,2567769.3466427475,1890352.7876100936,113077.40649952029,564339.1525331334,"Winter",270246.88251000002,65040.721764000002,86556.988454000006,1661.4279294,56041.871432,26414.321341999999,6737.8704616000005,742.46966563000001,3053.2304963000001]
[1724,"2012-02-20","KW60MN16 ",7359799.9837503098,2567728.8302957695,1905301.0778511919,98368.621363741287,564059.13108083606,"Winter",219150.98733,63806.805469999999,98397.165674000003,1888.6955535,54993.081323999999,30405.956456,6823.3883330999997,747.06969021999998,0]
[1725,"2011-09-13","KW60MN12 ",7028083.8338307906,2567426.2648331956,1871300.0337329879,104242.875337,591883.35576320754,"Summer",151814.29298,93382.356996000002,143981.50891,2763.6693985000002,50022.728201999998,43330.475214999999,12069.513234,26197.690887000001,0]
[1726,"2012-01-12","KW60MN05 ",7013411.7656309968,2567357.1476264447,1822528.1873876243,98087.030374119873,646741.92986470065,"Winter",309967.78388,57147.930291999997,91569.548016000001,1757.6420722,57409.858528999997,32332.053306999998,8609.4142410999993,742.46966563000001,3053.2304963000001]
[1727,"2012-01-29","KW60MN12 ",6937341.7100029942,2567345.0421727984,1896015.1965593169,108084.5732709505,563245.27234253113,"Winter",257840.92300000001,58748.440072999998,74878.748716000002,1437.2686325,54993.081323999999,25633.255099000002,5848.1730913000001,742.46966563000001,0]
[1728,"2011-08-04","KW60MN11 ",7665263.6725301659,2567174.5264804969,1850506.0905922693,133695.70401099999,582972.73187722778,"Summer",187473.90555,87970.358577000006,119338.29438000001,2290.6524229000001,56543.466700999998,38725.884861999999,11298.719819,31264.797493999999,0]
[1729,"2011-08-04","KW60MN22 ",7218824.6687521292,2567068.1927830577,1841293.433430617,122073.35023900001,603701.40911344043,"Summer",263883.76360000001,79033.041351000007,108420.77481,2081.0948557000002,55859.473151999999,35829.216425999999,8289.5538672999992,36861.776579999998,3053.2304963000001]
[1730,"2011-12-30","KW60MN11 ",7113186.7358142938,2566857.2556171734,1853460.4309989244,107951.111532,605445.71308624931,"Winter",233075.19257000001,65522.121254999998,101545.13943,1949.1196927000001,55722.674442000003,31489.232940999998,7181.3478797999996,816.33821894000005,0]
[1731,"2012-01-07","KW60MN18 ",7472986.7544820867,2566744.8980172817,1881447.8088501689,110714.3008899548,574582.78827715793,"Winter",259817.64186,68656.476207999993,88863.188724000007,1705.6945519000001,56041.871432,26735.263939,6797.3732262000003,742.46966563000001,3053.2304963000001]
[1732,"2012-02-21","KW60MN11 ",7355867.61246516,2566738.6173013872,1896733.404090117,104354.31618677272,565650.89702449774,"Winter",207540.72636999999,71595.360482000004,113314.62194,2175.0303592999999,55084.280463000003,36944.391050999999,9432.5899981000002,747.06969021999998,0]
[1733,"2011-12-26","KW60MN17 ",7539953.8947631782,2566685.797063557,1870795.87505187,99172.705529999992,596717.21648168704,"Winter",256355.14069999999,63579.920205000002,88596.015675999995,1700.5662686000001,55859.473151999999,23836.798896,6616.0817704000001,816.33821894000005,3053.2304963000001]
[1734,"2011-08-02","KW60MN11 ",7469926.5061272793,2566476.8644006816,1871433.2705237942,134914.891982,560128.70189488737,"Summer",160532.99797,90733.576006000003,117101.67097000001,2247.7213012000002,56634.665841000002,39031.571207000001,11504.389329,26556.568773999999,0]
[1735,"2011-07-27","KW60MN22 ",7730943.0886384938,2566386.1667138212,1852822.7129986268,141140.82639700003,572422.62731819425,"Summer",197596.80502,69305.073090000005,86238.155115000001,1655.3080467,55905.072721999997,36549.124297000002,7600.3050412000002,41534.67325,3053.2304963000001]
[1736,"2012-03-06","KW60MN14 ",7031358.4054111112,2566321.1690697037,1945663.6819521268,98835.021437566844,521822.46568001038,"Winter",157836.50875000001,72988.311612000005,115487.74621,2216.7426395000002,55813.873582,37476.492376000002,8516.2511403999997,1354.3257784,0]
[1737,"2012-01-14","KW60MN21 ",7200514.8109019324,2566005.447967764,1894632.6165093016,102083.26848156008,569289.56297690235,"Winter",275306.47220000002,67078.289728000003,78577.985325999995,1508.2740491,55905.072721999997,26293.409662999999,7375.9863201999997,742.46966563000001,3053.2304963000001]
[1738,"2012-02-20","KW60MN21 ",7451146.2962542539,2565880.3648440093,1881484.7489698979,111600.31596662944,572795.29990748211,"Winter",259938.87895000001,60955.614023000002,91005.008436999997,1746.8059533000001,56497.867130999999,29759.894924,7332.6475596999999,747.06969021999998,3053.2304963000001]
[1739,"2012-04-06","KW60MN07 ",6684029.2933578296,2565526.8861987111,1914391.872008841,127348.47176288333,523786.54242698679,"Summer",205832.23623000001,54347.476832,82516.675690999997,1583.8756879,53351.496806000003,31361.101348,7416.5588506000004,7467.6597125999997,1526.1911886]
[1740,"2011-07-07","KW60MN10 ",7587999.2594068786,2565521.9176604385,1831936.8036076261,140239.42166399999,593345.69238881255,"Summer",170673.27910000001,78827.044511999993,128034.876,2457.5799447999998,55449.077022999998,40759.995110000003,9810.7037620999999,40818.314791999997,0]
[1741,"2012-02-01","KW60MN11 ",7239990.529012152,2565369.6840384929,1895634.2885968706,107192.6621541229,562542.7332874994,"Winter",223993.95275999999,76573.485400000005,122541.29368,2352.1327562000001,45781.968200000003,36378.544758999997,9478.3699503999997,747.06969021999998,0]
[1742,"2012-01-22","KW60MN08 ",6776198.8029439896,2564309.7243909868,1877323.9933527214,104857.1635212554,582128.56751701003,"Winter",261431.32775,58276.925627999997,80429.784610000002,1543.8186204000001,56133.070571999997,25818.358824999999,6668.5961601999998,742.46966563000001,0]
[1743,"2011-08-01","KW60MN22 ",7178621.2785905758,2563520.8012622134,1890309.1700679653,130035.53757199999,543176.09362224827,"Summer",227892.45806,64207.606165999998,90811.044706999994,1743.0828945000001,55266.678742999997,34282.27706,8101.7615972000003,29150.378084,3053.2304963000001]
[1744,"2011-12-08","KW60MN15 ",7356538.0946022505,2563467.4661321607,1912327.7033002921,85589.141629999998,565550.62120186852,"Winter",198904.70086000001,85567.357237000004,132997.57370000001,2552.8370086,51755.511858999998,35658.156282000004,9321.5581232000004,816.33821894000005,0]
[1745,"2012-02-15","KW60MN06 ",7039451.3873727797,2563446.6551448791,1825476.6343827876,108926.62692326029,629043.39383883111,"Winter",254081.4498,58530.265281,95905.461718999999,1840.8682593999999,56680.265411,32685.169824000001,8045.4652226999997,747.06969021999998,3048.6082443999999]
[1746,"2012-05-14","KW60MN16 ",7644697.3968063192,2563240.8974024961,1821435.42037757,137866.76198347102,603938.715041455,"Summer",168884.23978999999,81015.605267999999,131519.15504000001,2524.4593341,53351.496806000003,39174.286652000003,10105.295607,21356.368259999999,0]
[1747,"2011-10-31","KW60MN08 ",7067667.633255857,2562867.1964062867,1836414.6913876007,110881.59129099999,615570.91372768616,"Summer",204889.09031999999,62819.223172999998,128103.39517,2458.8951440000001,56680.265411,41551.201306000003,8505.8481448000002,19170.103298999999,0]
[1748,"2012-05-15","KW60MN14 ",7804573.0153504452,2562687.5166383293,1828454.1598515585,134440.4915950209,599792.86519174988,"Summer",145811.31361000001,95452.150980999999,144072.76501,2765.4210240000002,40902.814218,42088.909194,11249.494774000001,21356.368259999999,0]
[1749,"2012-02-22","KW60MN11 ",7214282.6986913513,2562653.5469926652,1909014.7963415212,102204.71865979308,551434.03199135093,"Winter",165932.43093,76747.895724999995,114837.38211999999,2204.2591521999998,56862.663690000001,36667.360124999999,9205.9401264999997,747.06969021999998,0]
[1750,"2011-11-08","KW60MN21 ",7327754.4435909605,2562203.4888964402,1876794.1408820979,122835.519225,562573.82878934254,"Winter",268406.95945000002,65091.152851999999,115725.06211,2221.2978263999998,57273.059820000002,36851.189608000001,7638.5379549999998,4955.8928413000003,3053.2304963000001]
[1751,"2011-09-06","KW60MN11 ",7349705.1831426639,2561933.7832723521,1893989.3180980163,114722.475406,553221.98976833594,"Summer",119874.34536000001,80122.167107999994,132461.29402,2542.5433275,56041.871432,39159.354311000003,10081.401728000001,30711.663041,0]
[1752,"2012-03-12","KW60MN07 ",6998522.3692134963,2561807.890812445,1864826.5651192768,102707.24685655393,594274.07883661427,"Winter",249256.36416999999,69017.934355999998,106533.39466999999,2044.8673236,57045.061970000002,35722.122277000002,8535.1153527999995,1354.3257784,0]
[1753,"2012-02-17","KW60MN19 ",7330539.2920987615,2561659.2812261092,1855328.467565146,112800.48885274088,593530.32480822236,"Winter",282836.60009999998,72373.770898999996,101992.15424,1957.6999691000001,55905.072721999997,32588.709921999998,7314.6958317999997,747.06969021999998,3053.2304963000001]
[1754,"2011-10-26","KW60MN12 ",7015141.6545022987,2561342.9929264761,1896444.3316204862,99870.476083000001,565028.18522298976,"Summer",196647.64971999999,75887.589823000002,144769.16295,2778.7881133000001,56634.665841000002,42910.519559,10366.949993,19170.103298999999,0]
[1755,"2012-01-10","KW60MN13 ",7278648.1945480537,2561278.4399729646,1920318.1260678305,99636.860598334344,541323.45330679987,"Winter",154728.75247000001,68472.746432,122443.82034999999,2350.2617933000001,55996.271862000001,37865.231096000003,9354.8951104000007,742.46966563000001,0]
[1756,"2011-07-21","KW60MN15 ",8723470.6998635214,2561148.059006982,1858081.6653595846,128966.53578299998,574099.85786439746,"Summer",174501.92919,93130.277075000005,132304.95439,2539.5424487,53989.890785000003,42429.316336000004,10425.233855,43304.070509999998,0]
[1757,"2012-02-18","KW60MN20 ",7090545.8768688645,2561123.263356199,1880343.177236899,114727.93680077021,566052.14931852976,"Winter",237754.49481999999,67700.858024000001,77429.792065000001,1486.2349234000001,49840.329922999998,26802.505319,6599.4200473000001,747.06969021999998,3053.2304963000001]
[1758,"2012-01-13","KW60MN15 ",7223479.1891242918,2561020.0838077683,1860128.023637458,91430.259845551846,609461.8003247584,"Winter",221790.11705999999,80954.837622000006,128264.98461,2461.9967907999999,57090.661540000001,36925.636964999998,8447.4627077000005,742.46966563000001,0]
[1759,"2011-08-27","KW60MN21 ",8040409.1698971866,2561016.4905355317,1812966.6628872696,134638.31051700001,613411.51713126211,"Summer",241949.49523,85314.522119000001,100216.07888,1923.6088893000001,55449.077022999998,30960.519024000001,7972.6188601000003,47390.286587000002,3053.2304963000001]
[1760,"2011-07-11","KW60MN12 ",8123821.8080968801,2560612.978659939,1821508.5862653391,137024.76353400003,602079.62886059983,"Summer",176876.17936000001,80191.490974,133324.12748,2559.1050820999999,54856.282614000003,40018.716272999998,10179.706227999999,34617.640166999998,0]
[1761,"2012-03-21","KW60MN14 ",7019977.1800414361,2559975.8081447184,1908234.5802092208,98437.196027375408,553304.03190812236,"Winter",186046.37301000001,82332.530561000007,112188.60616,2153.4169216999999,49156.336373999999,37762.628111999999,8548.0391061999999,1354.3257784,0]
[1762,"2012-06-01","KW60MN18 ",7660968.5151112676,2559741.6612307923,1857207.1141549388,133253.70592982366,569280.84114602976,"Summer",187531.97514,77584.131733000002,102705.89622,1971.3999705000001,56361.068421000004,40446.205461999998,7531.8484201000001,25132.364734999999,0]
[1763,"2011-07-15","KW60MN19 ",8281513.867020607,2559670.6556004062,1815900.022406566,127282.77094,616487.86225384031,"Summer",211443.06834999999,66557.869049999994,112718.07713000001,2163.5799123000002,55129.880033000001,39281.357571,7045.6027532999997,42095.308068999999,0]
[1764,"2011-08-09","KW60MN14 ",8296439.5437068595,2559582.9701093356,1836754.2408180663,135734.05910900002,587094.67018226918,"Summer",177515.96229,88035.993224999998,130056.96303,2496.3931237000002,55768.274012000002,41386.804902999997,10364.329352000001,38746.758035999999,0]
[1765,"2012-02-19","KW60MN09 ",6941127.8941823253,2559489.0206479891,1883609.7641228901,121900.88277207506,553978.37375302415,"Winter",235260.09922,51472.617191999998,76321.689402999997,1464.9653212000001,46283.563469000001,25118.802455000001,6153.8484859,747.06969021999998,0]
[1766,"2012-02-21","KW60MN20 ",7433159.7622932522,2559444.6208148981,1897617.5108878461,119861.92556139955,541965.18436565227,"Winter",229514.30484999999,70890.226664000002,100157.63250000001,1922.4870337,47605.950996,32670.079141999999,7311.3438495,747.06969021999998,3053.2304963000001]
[1767,"2011-12-12","KW60MN06 ",7179180.155453586,2559254.5630470552,1780054.3032483254,91191.033080000008,688009.22671872971,"Winter",308012.26218000002,64206.241991000003,102238.39374,1962.4264410999999,57911.453798000002,30712.773714999999,8529.2510765000006,816.33821894000005,3053.2304963000001]
[1768,"2011-11-16","KW60MN15 ",7160225.1582418494,2559207.9345753095,1812278.0775401227,98769.726415000012,648160.1306201868,"Winter",281322.65737999999,82605.760817000002,138664.34729999999,2661.6085370000001,57957.053368000001,40405.557439999997,9819.8455319000004,4955.8928413000003,0]
[1769,"2011-07-02","KW60MN18 ",8520456.2177751195,2558972.8167109597,1812442.0063976371,134189.16819900001,612341.64211432252,"Summer",209434.09804000001,68148.228661999994,105528.48801,2025.5785287000001,54947.481754,30691.262638,7193.3743868000001,46398.507430999998,0]
[1770,"2012-01-26","KW60MN12 ",7373014.8619169155,2558965.5235795421,1885102.0555816258,106843.78887998046,567019.67911793583,"Winter",182078.29866999999,74372.581191000005,119334.73346,2290.5840724,56953.862829999998,36342.255900999997,8897.4815708999995,742.46966563000001,0]
[1771,"2012-02-24","KW60MN11 ",7129258.3421687623,2558601.8114093128,1896336.9465335936,111484.33662972116,550780.5282459982,"Winter",172178.78534999999,75615.143687000003,119613.18051999999,2295.9287561000001,56908.26326,37550.518394999999,9190.9306949000002,747.06969021999998,0]
[1772,"2012-02-27","KW60MN14 ",7113710.9748812541,2558597.097700926,1908426.2682710071,101848.70666971013,548322.12276020891,"Winter",159009.85569,72670.804319999996,121304.52727000001,2328.3935031000001,50478.723900999998,38905.655607000001,9165.9770480000007,747.06969021999998,0]
[1773,"2011-09-06","KW60MN22 ",7132322.2342003994,2558593.21537543,1881512.0063614361,118530.95445599999,558550.25455799408,"Summer",214760.14647000001,65291.639967000003,108310.65827,2078.9812112,55129.880033000001,36703.600611000002,8450.3271285999999,37861.046211000001,3053.2304963000001]
[1774,"2011-12-28","KW60MN17 ",7576495.4107531467,2558498.440278817,1864933.2745500866,96514.596073000008,597050.56965573027,"Winter",238391.14056999999,81931.938750000001,110752.66468,2125.8545801999999,56452.267561000001,32082.890981,6675.0563441000004,816.33821894000005,3053.2304963000001]
[1775,"2011-12-18","KW60MN11 ",7054806.3088717191,2558464.2120621172,1837720.4311398147,101268.80151,619474.97941230249,"Winter",302011.84766999999,54297.548672999998,89213.765950000001,1712.4237462999999,56999.462399999997,26229.836839,6391.2958031999997,816.33821894000005,0]
[1776,"2012-03-15","KW60MN11 ",6981861.8869834319,2558389.518923922,1924716.4491147192,102161.40593921032,531511.66386999225,"Winter",161421.11608000001,77540.756112999996,119184.18895,2287.6944288,45918.766908999998,37028.471520999999,8620.0322383999992,1354.3257784,0]
[1777,"2011-08-19","KW60MN15 ",8429793.5588039607,2558232.4205292226,1856057.0338017002,134039.37314400001,568136.01358352241,"Summer",194919.10707999999,95113.681349999999,122769.4051,2356.5112666999999,55312.278313000003,40259.918575000003,9580.8796648999996,39768.96787,0]
[1778,"2012-03-05","KW60MN07 ",7025800.7006451739,2558191.5019774972,1890952.1342835014,114839.83122446205,552399.53646953369,"Winter",250144.00534,54526.317110000004,93475.553897000005,1794.2271181999999,56087.471001999998,33953.36692,7423.0579711999999,1354.3257784,0]
[1779,"2011-07-23","KW60MN19 ",8234279.0977100907,2557976.8190330509,1848229.3948200063,135616.547265,574130.87694804452,"Summer",201162.08055000001,62925.458495999999,107032.03372000001,2054.4385072999999,52302.706698000002,32352.542365000001,7075.2830338000003,44722.199310000004,0]
[1780,"2012-03-12","KW60MN18 ",6849212.9008059623,2557959.3441832475,1893717.7525141193,110124.36708087404,554117.224588254,"Winter",229127.88084,55190.920954000001,98956.118885000004,1899.4244443,52485.104978000003,33161.756866999996,6809.8686710000002,1354.3257784,2866.5169701999998]
[1781,"2012-04-05","KW60MN12 ",6841186.5651449868,2557677.9014621014,1903278.2169980083,120987.09238606594,533412.59207802708,"Summer",209771.48243999999,68452.537683000002,102573.71563999999,1968.8628154999999,49612.332072999998,34491.590339000002,8204.0698530999998,7467.6597125999997,0]
[1782,"2011-12-02","KW60MN12 ",7218665.1521566072,2557625.8005387564,1916970.5604585467,94342.82965,546312.41043020971,"Winter",193482.1948,75504.476804999998,138535.20334000001,2659.1296686999999,54810.683043999998,38517.660411999997,8675.7428617999994,816.33821894000005,0]
[1783,"2012-03-07","KW60MN12 ",7073674.7470194008,2557430.0914204493,1921760.0585961081,105053.61966026374,530616.41316407733,"Winter",157501.86937,76455.737341999993,123742.86884,2375.1965269000002,53989.890785000003,35795.096002999999,9192.6997962999994,1354.3257784,0]
[1784,"2011-07-27","KW60MN12 ",8276497.1510108495,2557335.7616646886,1841305.3743980252,139418.63373400003,576611.75353266357,"Summer",178109.02669999999,83575.473868000001,114576.51242,2199.2518592000001,56634.665841000002,41404.000352000003,9597.7005212000004,33981.021901,0]
[1785,"2012-02-28","KW60MN23 ",6817507.2615139885,2556840.6570068579,1869962.6708849946,103019.97850234056,583858.00761952251,"Winter",261112.80880999999,63877.671866999997,85989.023564999996,1650.5260628999999,57409.858528999997,32978.123338999998,6594.5782953999997,747.06969021999998,3053.2304963000001]
[1786,"2012-05-31","KW60MN14 ",7629564.3628909606,2556602.2938330066,1861752.4513081976,128886.29517881764,565963.54734599136,"Summer",113146.49772,90778.129413000002,126808.20512,2434.0344716999998,52074.708849000002,44120.871146999998,8996.4784749999999,28759.188134,0]
[1787,"2011-09-05","KW60MN21 ",7168644.6752363779,2556567.7485050359,1859125.901279381,127922.44793400003,569519.3992916547,"Summer",261209.18164,63916.010162999999,91848.378716000007,1762.9941197000001,55129.880033000001,23329.681515,7354.3914289000004,35434.586127000002,3053.2304963000001]
[1788,"2012-02-20","KW60MN15 ",7278223.8578156186,2556191.2365675475,1895403.693613847,101831.90867776259,558955.63427593792,"Winter",205796.38125000001,70321.948994999999,101889.43156,1955.7282471000001,55722.674442000003,30971.753120000001,6788.1925185999999,747.06969021999998,0]
[1789,"2011-12-13","KW60MN05 ",6745411.9126009597,2555960.8176500001,1853668.4065670939,92722.308890000015,609570.10219290608,"Winter",301883.10678999999,59663.248699000003,103327.23417,1983.3263122000001,57729.055519000001,31646.906975999998,7986.7174999999997,816.33821894000005,3053.2304963000001]
[1790,"2012-02-17","KW60MN12 ",7242170.5892830361,2555639.5962262629,1844833.3206720082,106212.59974708926,604593.67580716568,"Winter",198406.29230999999,84294.374765999994,114200.65886,2192.0374955000002,55677.074871999997,36930.213041000003,8364.6111851999995,747.06969021999998,0]
[1791,"2012-04-13","KW60MN10 ",6887834.3088783249,2555379.8770185411,1945614.626199746,123987.29484606473,485777.95597273065,"Summer",148673.90367999999,64757.743040000001,110421.5248,2119.4984780999998,28818.928188999998,36815.951689000001,8537.7783161999996,7467.6597125999997,0]
[1792,"2012-02-02","KW60MN18 ",7623853.5399517752,2555371.2141804546,1860271.8143616009,115688.78585954184,579410.61395931174,"Winter",240301.87270000001,76977.494879000005,112228.27224000001,2154.1782968000002,56953.862829999998,32921.341239000001,7605.5547874000004,747.06969021999998,3053.2304963000001]
[1793,"2011-09-14","KW60MN20 ",7070152.0163143529,2555238.7554659881,1828223.8520623851,121121.041413,605893.86199060292,"Summer",224442.47382000001,76415.981845999995,130723.61474999999,2509.1892456999999,54400.286914999997,38536.962497,8966.5730373000006,23170.062146,2239.4597568999998]
[1794,"2011-08-12","KW60MN13 ",7787794.6173131689,2555184.624836857,1855796.4433914588,135465.29819900001,563922.88324639807,"Summer",181581.15135999999,91905.882689999999,121026.6989,2323.0606950000001,56817.064120000003,40043.378366999998,9162.0037644999993,45830.947418000003,0]
[1795,"2012-04-18","KW60MN09 ",6948901.7419000901,2555083.5313313082,1931146.1855147558,118626.1632866087,505311.18252994376,"Summer",157728.42449,64352.761445999997,112253.98262,2154.6717976,35111.668837999998,35042.605739999999,9769.5200882000008,7467.6597125999997,0]
[1796,"2012-02-10","KW60MN19 ",7244627.0686238389,2555007.5915871789,1859612.1795319768,106643.95185985924,588751.46019534278,"Winter",226431.10547000001,79103.988087000005,112108.60662000001,2151.8813614999999,55403.477453,33311.69457,7474.6971215000003,747.06969021999998,3053.2304963000001]
[1797,"2012-01-21","KW60MN22 ",7036433.216080823,2555003.5585513227,1885880.2670990846,102286.83457234214,566836.45687989565,"Winter",262274.75167999999,66509.096181000001,73504.667788000006,1410.8936804,55129.880033000001,25754.333254000001,6827.8457924000004,742.46966563000001,3053.2304963000001]
[1798,"2012-01-04","KW60MN21 ",7307887.0255867569,2554856.4889050545,1851426.6698396211,111174.80911271009,592255.00995272317,"Winter",226324.18705000001,65959.161762999996,94871.555202000003,1821.0228236,54810.683043999998,34421.082756999996,7012.3876565,742.46966563000001,3053.2304963000001]
[1799,"2012-02-08","KW60MN16 ",7355160.3690622905,2554448.5720551857,1854781.1141022071,95258.396906377471,604409.06104660104,"Winter",238462.53255999999,75203.460120999996,124200.26499,2383.9760692,50843.520461,33651.71774,9089.8125614,747.06969021999998,0]
[1800,"2012-01-09","KW60MN22 ",7154268.4305172134,2554177.8342606192,1868322.0612639063,106977.18565222291,578878.58734448999,"Winter",273380.63709999999,59175.163305000002,97183.156967000003,1865.3931256999999,53761.892935999997,33076.702767000002,7255.1118063000004,742.46966563000001,3053.2304963000001]
[1801,"2012-01-30","KW60MN13 ",7234844.0639878754,2554097.6813104236,1883980.2108887476,98642.770791751493,571474.69962992438,"Winter",188445.37085000001,71413.218225999997,121886.38654000001,2339.5620668000001,55631.475301999999,37027.633285999997,8473.6487992999992,742.46966563000001,0]
[1802,"2011-11-20","KW60MN13 ",6928439.9484394332,2553747.2487799143,1825759.4909148184,103911.316196,624076.44166909589,"Winter",330558.87377000001,51054.789214999997,98746.444543000005,1895.3998263999999,56725.864979999998,26814.659909999998,6167.4849590000003,4955.8928413000003,0]
[1803,"2011-10-17","KW60MN08 ",6950833.058609643,2553656.3510078732,1873942.7669727178,102310.079216,577403.50481915532,"Summer",186731.78279,56044.364204999998,119968.29906,2302.7451193000002,56953.862829999998,42174.985289999997,8408.1937264000007,19170.103298999999,1017.3194389]
[1804,"2011-09-23","KW60MN16 ",7187504.0733393012,2553366.9199060798,1849071.0365328016,108686.542017,595609.3413562784,"Summer",188012.48269,97521.392225999996,148498.11881000001,2850.3639793000002,55357.877883000001,43780.384908,10680.025142,30217.333901999998,0]
[1805,"2011-12-04","KW60MN11 ",7085629.2219404504,2553292.4982207716,1890613.6140962744,103737.78550299999,558941.09862149705,"Winter",280161.83795999998,52381.517607000002,89833.369428000005,1724.3167954999999,56953.862829999998,26039.902397000002,6152.1877305999997,816.33821894000005,0]
[1806,"2012-01-01","KW60MN19 ",7135020.2361749839,2553180.8253533128,1873426.9744204285,106302.15878861528,573451.69214426877,"Winter",307272.56649,59250.186498000003,78300.299343000006,1502.943974,55175.479603,16976.852921999998,6692.4460216999996,742.46966563000001,3053.2304963000001]
[1807,"2011-09-09","KW60MN22 ",7206702.7815927695,2552986.3430132843,1844830.2520737536,116217.48532699999,591938.60561253049,"Summer",199424.94245999999,76849.292967000001,117642.48152,2258.1019505999998,53442.695946,37425.761693,7627.2631054000003,47352.171141999999,3053.2304963000001]
[1808,"2011-08-30","KW60MN15 ",8567954.1351876538,2552641.0147141344,1847905.7311946461,132977.92988899999,571757.35363048827,"Summer",197270.6869,94284.746650000001,133152.75988,2555.8157474,53533.895085999997,41596.174586000001,11283.950781,35608.756720999998,0]
[1809,"2011-11-23","KW60MN19 ",7269513.5132125458,2552538.4891441958,1874411.5827046493,112654.43302,565472.47341954673,"Winter",200222.94089999999,64488.512114999998,107993.66343,2072.8966178999999,55768.274012000002,33617.686367000002,6114.6048991999996,4955.8928413000003,3053.2304963000001]
[1810,"2012-02-19","KW60MN10 ",6967944.9848316545,2552500.3761329083,1882888.9429317599,119043.49466461176,550567.93853653676,"Winter",252688.63819,49787.125259,72751.370192999995,1396.4344243,47742.749706000002,25107.689868000001,6097.8145146999996,747.06969021999998,0]
[1811,"2012-03-20","KW60MN21 ",7129872.1444079224,2552491.8146137479,1883964.3324435346,108510.55641695637,560016.92575325677,"Winter",252482.65489999999,63449.211681000001,91455.757786999995,1755.4579128,51801.111428999997,32534.1482,6914.6926076,1354.3257784,3053.2304963000001]
[1812,"2011-07-11","KW60MN21 ",7805505.7016861336,2552347.6401974023,1812886.9687140465,141835.830712,597624.84077135602,"Summer",199953.42976,57433.253340000003,110284.30524,2116.8646017999999,54810.683043999998,36586.681111999998,7367.4743176000002,36501.359281999998,407.5214593]
[1813,"2012-03-21","KW60MN18 ",6851848.2552201599,2552270.4030698119,1887958.5538894844,99188.041678609254,565123.80750171817,"Winter",258043.54654000001,66450.216528000004,100963.87059999999,1937.9624623,48791.539814000003,33380.410464000001,6954.2459989999998,1354.3257784,2290.3469318000002]
[1814,"2011-12-21","KW60MN16 ",7591051.4435177036,2552218.1962472331,1919843.5621228218,94512.768037999995,537861.86608641106,"Winter",222918.62143,74421.820032000003,114942.67073,2206.2801264,55221.079172999998,34093.143537999997,9040.8448392999999,816.33821894000005,2137.6854072000001]
[1815,"2012-05-31","KW60MN19 ",7694766.1010185638,2552218.0066706431,1874201.6373778258,129390.22087296718,548626.14841985016,"Summer",147427.35238999999,60331.570682999998,98893.106841999994,1898.2149525,55540.276163000002,39200.41257,7039.2746172999996,28645.388214999999,0]
[1816,"2012-01-24","KW60MN22 ",7125394.9662772054,2552163.1831096308,1847526.9714209414,98688.338124739719,605947.8735639496,"Winter",280414.91071000003,68639.554975999999,97236.948690000005,1866.4256370999999,57546.657239,34046.668962999996,7520.7513273000004,742.46966563000001,3053.2304963000001]
[1817,"2011-08-24","KW60MN10 ",7856263.2700421205,2551941.7335627764,1863444.7716778417,131924.952899,556572.0089859349,"Summer",140639.86658,82328.945785000004,115210.12626,2211.4138318,49612.332072999998,41023.612259000001,10502.918584999999,40737.433944999997,0]
[1818,"2011-12-03","KW60MN12 ",7067241.7836637348,2551877.8408099138,1894580.3397812326,88728.975540000014,568568.52548868128,"Winter",275894.87323000003,66086.470293999999,92472.794966999994,1774.9795482,57592.256808999999,28234.878936000001,6521.9418540999995,816.33821894000005,0]
[1819,"2011-11-22","KW60MN12 ",7250902.5112448744,2551862.9721001941,1869673.0684772339,113360.51080499998,568829.39281796,"Winter",167142.19456999999,77631.572562999994,123722.12074,2374.7982751,55540.276163000002,40161.706434,8426.8023076999998,4955.8928413000003,0]
[1820,"2011-08-15","KW60MN18 ",8126681.8774995608,2551774.0277625225,1889385.0698450557,130297.775041,532091.18287646677,"Summer",217078.72232999999,74480.799306999994,107462.55181,2062.7021355000002,49110.736804,33944.215034000001,8098.0439438000003,43484.599440999998,0]
[1821,"2011-07-21","KW60MN16 ",8785881.0903009716,2551692.6182056395,1852649.5312292457,125969.13009200001,573073.95688439405,"Summer",168197.35681,88066.321612999993,130983.31905999999,2514.1741695000001,54354.687344999998,40574.828427,9972.0255295000006,43863.015491999999,0]
[1822,"2011-07-10","KW60MN18 ",7395585.4604406971,2551688.0020383056,1831749.02059963,129842.38031699999,590096.60112167581,"Summer",242163.32146000001,55664.064697000002,101723.84508,1952.5498786999999,53169.098527000002,28854.992198,6796.4184195999997,33955.765885000001,0]
[1823,"2011-10-05","KW60MN20 ",7151738.7804980408,2551653.6409475962,1880132.2201880917,113372.94180100001,558148.47895850427,"Summer",189596.66214999999,64487.162401000001,123823.80124,2376.7499929999999,56406.667991000002,38032.757148999997,7622.8547403000002,19170.103298999999,3053.2304963000001]
[1824,"2011-08-01","KW60MN11 ",7447049.1595574254,2551615.9390634159,1892747.6369051954,124972.879028,533895.4231302205,"Summer",162047.71437999999,79173.042010999998,113589.14556999999,2180.2997341999999,56041.871432,39153.802026999998,10916.309423999999,28882.378099000001,0]
[1825,"2011-11-14","KW60MN19 ",7502401.0958639951,2551560.5490348451,1828374.6575345811,116347.793622,606838.09787826426,"Winter",259494.70331000001,64259.128272000002,112689.31634999999,2163.0278601999999,57181.860679999998,37938.687735,7545.1090655999997,4955.8928413000003,3053.2304963000001]
[1826,"2012-05-16","KW60MN16 ",7670074.8832241818,2551410.1855022879,1835029.0631035762,133202.12195036453,583179.00044834742,"Summer",162643.51321999999,87505.477010000002,124108.85721,2382.2215320999999,53670.693796,38027.994272000004,10064.811109,21356.368259999999,0]
[1827,"2012-03-13","KW60MN14 ",7074835.7019065367,2551357.34386522,1928253.6252614099,106325.20791888988,516778.51068492018,"Winter",166380.46445,75750.081313000002,111067.49329,2131.8975936000002,56224.269711000001,36974.351541999997,8302.3201802999993,1354.3257784,0]
[1828,"2011-12-07","KW60MN06 ",7334163.8277141983,2551295.631875718,1835470.1297335983,100383.02605,615442.47609211982,"Winter",336247.88097,62127.792162999998,109708.20239999999,2105.8065305,59051.443046,33015.786595999998,9692.7749289000003,816.33821894000005,3053.2304963000001]
[1829,"2012-03-02","KW60MN20 ",7280245.5445411811,2551284.6423445488,1876142.3496737832,108969.76888018513,566172.52379058045,"Winter",271278.97165999998,70113.715486999994,95468.493759999998,1832.4808284000001,56452.267561000001,30970.316977999999,7276.8370539999996,1354.3257784,3053.2304963000001]
[1830,"2011-11-15","KW60MN11 ",7204008.4369801832,2551209.7467350727,1857108.144802171,111553.55455500001,582548.04737790185,"Winter",210341.13459999999,75776.816892000003,129851.6642,2492.4524919999999,57501.057669000002,41230.503161000001,10569.206574,4955.8928413000003,0]
[1831,"2011-07-15","KW60MN14 ",8356834.5078896564,2551077.9981086962,1831938.7117904567,135439.961228,583699.32509023976,"Summer",156539.76261000001,86640.159492000006,122496.3337,2351.2697667000002,55540.276163000002,43071.787306999999,8281.7935209999996,38960.698278000003,0]
[1832,"2011-08-07","KW60MN18 ",7796628.0591560239,2551000.6947195809,1815565.2885402786,122783.62061000001,612651.78556930204,"Summer",272030.31517000002,70539.193448000005,106014.06839,2034.8990563,55175.479603,28623.910212999999,7601.2598478,28792.058380999999,0]
[1833,"2011-12-29","KW60MN13 ",7120675.0820601024,2550872.8881840436,1881735.537547397,95983.454077000002,573153.89655964659,"Winter",234797.61984,69247.303736999995,110384.99765,2118.7973536,43000.394435000002,34813.461804999999,6971.8591421000001,816.33821894000005,0]
[1834,"2011-08-08","KW60MN12 ",8010193.1070922809,2550662.962887845,1832316.9105545117,133707.07320499999,584638.97912833339,"Summer",178934.32706000001,87777.980991000004,129200.19546,2479.9478015,57318.659389,38389.444551000001,10071.589561999999,35338.666483000001,0]
[1835,"2011-12-03","KW60MN21 ",7336851.6845993232,2550653.1036436632,1881568.8494050142,97829.025150000001,571255.22908864927,"Winter",261905.40197000001,64242.888324,86792.793904999999,1665.9541237999999,57136.261109999999,27538.998683000002,6885.7030387000004,816.33821894000005,3053.2304963000001]
[1836,"2012-05-14","KW60MN19 ",7533418.3301677601,2550574.4986819695,1800041.5750681956,138521.08860467415,612011.83500909968,"Summer",215333.25377000001,62595.029302000003,109094.42976,2094.0254018999999,53305.897235999997,37017.811863000003,7838.9831114999997,21356.368259999999,0]
[1837,"2011-10-31","KW60MN09 ",7089957.4801731016,2550216.4350584922,1843718.0938951827,108846.37225200002,597651.96891130926,"Summer",174610.32081,63153.634022999999,127576.15921,2448.7750535,56680.265411,43127.659961999998,9367.7951641,19170.103298999999,0]
[1838,"2012-02-29","KW60MN06 ",7081910.1991802594,2550076.9246336748,1864664.4797560112,98258.502640283477,587153.94223738031,"Winter",264080.12339000002,56881.193122999997,88639.726217000003,1701.4052755,56224.269711000001,31841.263179000001,7869.9889480000002,747.06969021999998,2187.724463]
[1839,"2011-07-24","KW60MN14 ",8338799.8673290368,2549925.5716238264,1825213.0414571036,129371.42033800001,595341.1098287229,"Summer",215991.11786,66287.551926,96554.707162999999,1853.3302747,54993.081323999999,30109.404758000001,7010.9046578999996,39779.177017000002,0]
[1840,"2011-09-05","KW60MN17 ",7187213.2098770104,2549558.2673617769,1861005.8012963408,112655.583467,575896.88259843597,"Summer",279707.21211999998,59500.344684000003,104329.75001,2002.5692162,54628.284764000004,23191.738844,7292.9384195000002,35033.501828,0]
[1841,"2012-02-05","KW60MN20 ",7128534.4672376327,2549543.3950368436,1815288.509785105,109993.93520015343,624260.95005158498,"Winter",259541.95175000001,61281.362603000001,76761.666077000002,1473.4105033000001,56725.864979999998,25356.178445000001,6619.4202084999997,747.06969021999998,3053.2304963000001]
[1842,"2012-01-05","KW60MN22 ",7015008.6804256942,2548835.6343026543,1886413.7276711152,102772.26249780769,559649.64413373149,"Winter",283839.50076999998,60394.476982,100304.57957,1925.3076258999999,31326.904535000001,33152.917909999996,7029.6351285000001,742.46966563000001,3053.2304963000001]
[1843,"2011-11-24","KW60MN11 ",6950101.1799510792,2548815.6974914093,1841379.5272547433,113009.95024200001,594426.21999466582,"Winter",316413.15831999999,49198.428349000002,75694.508100000006,1452.9268185000001,53214.698097,18440.630202,5484.7775777999996,4955.8928413000003,0]
[1844,"2011-12-16","KW60MN14 ",7430055.0637028888,2548776.9676184393,1857063.1087201273,91766.45319,599947.40570831217,"Winter",245139.78260999999,81066.317546000006,128124.97004,2459.3092651000002,58230.650787999999,37322.813585999997,8537.2552035999997,816.33821894000005,0]
[1845,"2011-07-02","KW60MN19 ",8403238.9971746597,2548745.5601206003,1802765.6182431229,138158.23613500001,607821.70574247744,"Summer",224755.84185999999,63201.396213,106714.01519999999,2048.3342646999999,54081.089925,30381.977615,7217.6914945999997,47931.126428000003,0]
[1846,"2012-03-08","KW60MN11 ",6991841.6431357274,2548703.5403685905,1925220.9518729928,100130.66267559773,523351.92581999989,"Winter",180205.32926,80314.964068000001,126086.69666,2420.1853956,56908.26326,36499.100420000002,8826.6633263000003,1354.3257784,0]
[1847,"2011-09-05","KW60MN19 ",7164540.2620575549,2548510.4779719845,1859059.4371925737,117469.59117299999,571981.44960641081,"Summer",244268.24067,57973.879552999999,103145.5361,1979.8386880999999,54947.481754,23175.831228999999,7081.0321907999996,35231.048020000002,0]
[1848,"2011-12-28","KW60MN09 ",7204552.7039098935,2547695.0540924729,1866793.6367618211,94873.778120000003,586027.63921065186,"Winter",204832.61051999999,65943.824838,105454.74256,2024.1630133000001,57181.860679999998,32931.811162999998,7294.0557470000003,816.33821894000005,0]
[1849,"2011-09-12","KW60MN12 ",6953954.9733120818,2547384.0350954551,1851745.8367674432,104828.184165,590810.01416301192,"Summer",160331.02093999999,86554.578003000002,147927.39598999999,2839.4091754000001,53123.498957000003,42449.881908000003,11627.457868,27657.200148,0]
[1850,"2011-09-07","KW60MN11 ",7485467.6135719167,2547312.1749195978,1894754.9549031504,115387.18792300002,537170.03209344752,"Summer",130348.64056,85897.731799999994,130195.09742000001,2499.0445599,40583.617229000003,40705.805776000001,9987.9322097000004,34669.068449999999,0]
[1851,"2011-07-30","KW60MN13 ",8175537.934716559,2546906.5200280179,1813688.8904168494,143803.413069,589414.2165421684,"Summer",202833.48628000001,83744.951310999997,105027.78746000001,2015.9677753000001,55449.077022999998,32212.986917999999,7493.5494823999998,40631.362754000002,0]
[1852,"2011-08-20","KW60MN16 ",8181298.7430364387,2546878.0211747359,1859815.9397767731,134549.439641,552512.64175696264,"Summer",223867.97811,74271.907011000003,107343.68252,2060.4204854999998,55084.280463000003,33138.129696000004,7870.5560765999999,40435.020473999997,0]
[1853,"2012-03-20","KW60MN13 ",7148394.2078015143,2546849.248834827,1918299.0643684419,101232.71209671826,527317.47236966656,"Winter",175812.77142999999,79912.792770999993,116139.45448,2229.2519278,50661.122180999999,37914.552673999999,8323.7356221999999,1354.3257784,0]
[1854,"2012-03-09","KW60MN07 ",6971263.3311181404,2546801.5557125793,1853604.9668267844,108595.02317028047,584601.56571551447,"Winter",277121.87014999997,56515.693868000002,93829.279813000001,1801.0167504000001,56543.466700999998,33926.37601,8285.3926694999991,1354.3257784,0]
[1855,"2012-02-07","KW60MN15 ",7237020.3899349328,2546590.3939866396,1888031.0367961288,100558.08327650053,558001.2739140105,"Winter",179102.0177,77365.919985,120614.06615,2315.1403688,56406.667991000002,35600.356698000003,9711.7356369999998,747.06969021999998,0]
[1856,"2011-12-28","KW60MN13 ",7264758.5657253563,2546314.4863465568,1869293.7730854056,97759.852719999995,579260.86054115114,"Winter",195549.9872,75124.125878999999,113241.33981999999,2173.6237374000002,56543.466700999998,34864.267596999998,6953.4740273999996,816.33821894000005,0]
[1857,"2011-07-21","KW60MN17 ",8783996.9978827275,2546223.3279768564,1856593.8040711274,131109.769187,558519.75471872871,"Summer",180970.36613000001,82787.697402000005,125170.88112999999,2402.6066706000001,54081.089925,39201.369852999997,8462.2114299999994,45082.220692000003,0]
[1858,"2011-12-05","KW60MN15 ",7458722.9837539755,2546158.0565190958,1913380.5714578182,86105.612070000003,546671.87299127749,"Winter",181597.27179,70980.181868,126668.81613000001,2431.3589538000001,57729.055519000001,36889.627339999999,8898.0503922000007,816.33821894000005,0]
[1859,"2011-08-11","KW60MN14 ",8366523.4293890949,2545937.265549012,1869452.5943215094,131193.39174699999,545291.27948050282,"Summer",153718.61296999999,89882.72292,128361.81204,2463.8553557,49247.535514000003,39925.007570000002,10125.993251,45245.151802,0]
[1860,"2011-10-06","KW60MN10 ",7162995.5274434527,2545822.1262788223,1915196.3545258245,108976.595191,521649.1765619975,"Summer",128862.4767,64698.315468000001,127526.56318,2447.8230767999999,56680.265411,42325.454024999999,8871.3564239999996,19170.103298999999,0]
[1861,"2011-12-29","KW60MN12 ",7159130.429958907,2545510.7779658674,1885474.9892074913,94873.452940999996,565162.33581737627,"Winter",208798.95728999999,68994.262948999996,105756.2329,2029.9500038000001,39033.231851999997,33588.284332000003,7095.4761877000001,816.33821894000005,0]
[1862,"2011-12-28","KW60MN20 ",7421287.716807995,2545298.0513707348,1849660.3003772157,104133.547584,591504.20340951916,"Winter",212466.42426999999,65788.625438000003,103914.46864000001,1994.5980508,56224.269711000001,31090.605022,6295.2462736999996,816.33821894000005,3053.2304963000001]
[1863,"2011-11-23","KW60MN17 ",7292168.680195909,2545172.5313764079,1874927.6573389089,115074.663711,555170.21032649919,"Winter",203389.21191000001,74877.533186999994,111091.51685,2132.3587166000002,55813.873582,35408.897074,6331.2851620000001,4955.8928413000003,3053.2304963000001]
[1864,"2012-02-05","KW60MN21 ",7120808.0442652218,2545121.1623590519,1807802.3750381961,105590.50676877364,631728.28055208235,"Winter",286178.16093000001,60587.985756000002,74916.855551000001,1438.0000785,56543.466700999998,25525.740018,6660.2585264999998,747.06969021999998,3053.2304963000001]
[1865,"2012-01-21","KW60MN17 ",7427358.1001108931,2544975.7275671437,1853941.7041316759,99653.642190069411,591380.3812453982,"Winter",258066.38647,59634.118986000001,80522.492358999996,1545.5981098,56589.066271000003,26086.38564,6715.1176112000003,742.46966563000001,3053.2304963000001]
[1866,"2011-08-10","KW60MN19 ",8026622.8031846797,2544389.5205102889,1864485.9050414569,124428.77815100001,555474.83731783228,"Summer",204887.35214999999,75055.627909000003,114394.26364,2195.7536642999999,56041.871432,37807.468922,8303.2055774,47205.191352000002,0]
[1867,"2011-11-09","KW60MN20 ",7441161.8046242036,2544299.4303499628,1852674.2349222873,122322.34377599999,569302.85165167577,"Winter",224063.11905000001,66722.667484999998,121269.81314,2327.7271787,56999.462399999997,36796.785137999999,7844.9388053000002,4955.8928413000003,3053.2304963000001]
[1868,"2012-01-01","KW60MN18 ",7169511.587278408,2544245.3006832548,1858220.9540577077,105892.86331379977,580131.48331174732,"Winter",294447.65594999999,61164.718417999997,78459.156801999998,1505.9931815,55129.880033000001,16920.777053999998,6597.2700389000001,742.46966563000001,3053.2304963000001]
[1869,"2011-08-02","KW60MN22 ",7211129.1763596367,2544244.4351146193,1844742.614579916,135979.74419699999,563522.07633770315,"Summer",253744.94508,73820.888932000002,103378.20630000001,1984.3047025000001,56178.670141000002,34529.192628999997,8739.2680051000007,31846.284898000002,3053.2304963000001]
[1870,"2012-02-12","KW60MN09 ",6935425.5560935996,2544231.0372840269,1857463.61471068,116060.43224504487,570706.99032830202,"Winter",274526.04619999998,52973.156571,82805.604913000003,1589.4215726,55221.079172999998,25219.050232000001,6140.5336668999998,747.06969021999998,0]
[1871,"2011-11-09","KW60MN07 ",7286392.0431765392,2543892.8605681499,1849593.3725127557,127423.76687200001,566875.7211833942,"Winter",279010.72683,56648.881687000001,116808.50552000001,2242.0941038000001,57318.659389,39522.647820999999,9621.6316437000005,4955.8928413000003,0.43819510810000001]
[1872,"2011-08-19","KW60MN19 ",8116414.0978522943,2543889.873039098,1845209.3282559637,135346.78878900001,563333.75599413412,"Summer",214510.24269000001,82259.941672999994,111352.34647,2137.3652403000001,55996.271862000001,36536.879951000003,8104.6869637999998,41833.191779000001,0]
[1873,"2012-04-04","KW60MN07 ",6729756.5295163514,2543761.244792325,1932097.7480069606,106782.78934094349,504880.70744442061,"Summer",179447.06487999999,54420.158915,90135.745777000004,1730.1207926,50022.728201999998,33831.984213000003,7332.6848036000001,7467.6597125999997,1729.7398880999999]
[1874,"2011-12-24","KW60MN08 ",7040502.6396496985,2543530.4908142788,1845959.479014392,103075.30149,594495.71030988684,"Winter",277874.66567000002,57015.966855999999,82474.985314000005,1583.0754572000001,55312.278313000003,17944.344129000001,6919.2634924000004,816.33821894000005,0]
[1875,"2011-08-18","KW60MN14 ",8318199.10871631,2543501.3303252719,1861695.3064168387,135050.48154399998,546755.54236443364,"Summer",166161.89006000001,92508.946016999995,126271.83875,2423.7391265000001,49977.128632,39359.948652999999,11205.941011999999,39405.454430999998,0]
[1876,"2011-12-02","KW60MN17 ",7656256.8886763938,2543411.7336301026,1875614.9331385437,94668.929019999996,573127.87147155893,"Winter",217504.57303999999,72662.820120999997,126858.58245,2435.0014449,54765.083473999999,35835.603913999999,7397.9062534000004,816.33821894000005,3053.2304963000001]
[1877,"2011-09-14","KW60MN19 ",7029608.2573241219,2542735.7780265259,1812011.2702949585,110694.103577,620030.40415456705,"Summer",228985.93414,75823.187592000002,135132.98373000001,2593.8253785000002,54263.488205000001,39069.138460000002,8706.5201534000007,22092.747041999999,0]
[1878,"2011-08-10","KW60MN16 ",8224991.5057136659,2542618.9885597099,1849235.4076108779,133651.24752999999,559732.33341883216,"Summer",203870.42957000001,89024.994328000001,124789.14047,2395.2793062000001,53944.291214999997,40147.818510999998,9767.6968132000002,46007.449002000001,0]
[1879,"2011-08-16","KW60MN20 ",7654479.5044698538,2542493.7749606459,1871768.2829063181,137105.75231700001,533619.73973732791,"Summer",229568.69674000001,76948.153068,98802.421323000002,1896.474279,53807.492506000002,34339.101178999998,7757.5231698999996,42512.385431000002,0]
[1880,"2012-03-28","KW60MN08 ",6962796.6169564966,2542252.2990965163,1882263.5015671528,124125.86854103753,535862.92898832634,"Winter",184269.31009000001,60886.359250000001,116516.34183,2236.4861347999999,40811.615078000003,33102.343786999998,8799.9405779999997,1354.3257784,0]
[1881,"2011-11-04","KW60MN19 ",7151833.6919739218,2542058.7480067126,1873999.2151230406,116268.98484,551790.54804367176,"Winter",218809.67084999999,69972.614168,124401.22070000001,2387.8333361999998,56953.862829999998,36668.573256000003,6876.6831592999997,4955.8928413000003,3053.2304963000001]
[1882,"2012-03-16","KW60MN11 ",6906183.1170715336,2541961.3766078921,1907264.8339004777,107289.55313226374,527406.98957515066,"Winter",166360.80410000001,71899.158540000004,119656.51638,2296.7605711000001,50159.526912000001,37636.444155999998,8176.3415112000002,1354.3257784,0]
[1883,"2012-03-02","KW60MN13 ",7183017.059906357,2541915.1695166244,1896074.960839401,96558.345675111588,549281.86300211202,"Winter",185894.54844000001,80008.082557999995,115788.19219,2222.5095839999999,47058.756157000003,36038.851924000002,8955.3049587999994,1354.3257784,0]
[1884,"2012-04-17","KW60MN09 ",6985007.6531004254,2541912.482675157,1927306.4079707616,116388.09321382811,498217.98149056733,"Summer",175212.31982,64606.080212000001,112362.50696,2156.7548803999998,35476.465398,34459.819104000002,9681.0277547999995,7467.6597125999997,0]
[1885,"2011-07-23","KW60MN18 ",8313271.8328882344,2541894.8073534346,1831000.7199234765,134418.659075,576475.42835495819,"Summer",218241.40710000001,65663.256317000007,107112.54252,2055.9838426000001,52667.503257999997,32644.172854,7097.0404460999998,42982.279967000002,0]
[1886,"2012-01-13","KW60MN16 ",7219434.6237737369,2541853.1700622328,1825255.7297110094,90237.007914490649,626360.43243673246,"Winter",275247.59711999999,77869.964137999996,126212.56894,2422.6014654999999,56680.265411,34919.488387999998,7844.4512449000003,742.46966563000001,1170.8290836000001]
[1887,"2011-12-14","KW60MN23 ",6920371.6687480323,2541510.3494704422,1841190.3231721339,96182.486500000014,604137.53979830816,"Winter",306322.84947000002,68580.488933999994,96651.687995,1855.1917843000001,51481.91444,33920.986348999999,7784.1968229000004,816.33821894000005,3053.2304963000001]
[1888,"2012-04-04","KW60MN12 ",6864401.0826678509,2541270.7370571177,1919988.2519082609,108651.68193910236,512630.80320975487,"Summer",187556.17168,76841.671904999996,115519.12678000001,2217.3449774999999,49521.132933000001,34078.251925999997,8705.0608566999999,7467.6597125999997,0]
[1889,"2011-08-10","KW60MN15 ",8142125.278626617,2541016.6149455751,1850914.5834081343,133849.35756600002,556252.67397144099,"Summer",177406.76517999999,89645.194197999997,126034.20536000001,2419.1778454,54628.284764000004,41482.836872,10106.937739999999,46501.268601999996,0]
[1890,"2011-07-29","KW60MN11 ",8272879.3301680395,2541001.6235130099,1817988.302236161,139343.01418600001,583670.30709084892,"Summer",151817.68452000001,87579.634137000001,126453.74075,2427.2306650999999,55950.672292000003,41440.647932,8806.4092266999996,38228.783060000002,0]
[1891,"2012-03-15","KW60MN12 ",6971229.7002879428,2540934.32170064,1904915.8602989062,113360.98094527767,522657.48045645613,"Winter",151162.27929999999,75535.158689000004,116839.53128,2242.6896311999999,46374.762608999998,38539.777984,8396.8647032000008,1354.3257784,0]
[1892,"2012-05-14","KW60MN15 ",7596219.9971772265,2540907.1089831595,1807130.8211877148,137346.05759795278,596430.23019749206,"Summer",124818.29401,81225.153139000002,137330.48121,2636.0054931,54400.286914999997,40271.227219,10972.770011000001,21356.368259999999,0]
[1893,"2011-10-13","KW60MN09 ",6874197.7766577806,2540863.4680898404,1892735.9018622465,104956.88824499999,543170.67798259412,"Summer",156873.70249,63022.642701999997,126600.68253999999,2430.0511559000001,49338.734653,42951.458923999999,9636.9288720000004,19170.103298999999,0]
[1894,"2012-01-20","KW60MN22 ",6963034.4964592671,2540614.5225616996,1793129.8326512584,100420.96614670384,647063.72376373725,"Winter",302785.03483999998,67342.750058000005,101960.05346,1957.0838071999999,56497.867130999999,29412.971752000001,6882.6557828000005,742.46966563000001,3053.2304963000001]
[1895,"2012-02-03","KW60MN21 ",7222106.3300313083,2540472.5241860012,1834770.1390902938,105838.92616975015,599863.45892595744,"Winter",271275.80268000002,70127.665741999997,95673.027495000002,1836.4067743999999,58139.451648000002,31261.547322999999,6876.0330781000002,747.06969021999998,3053.2304963000001]
[1896,"2011-08-15","KW60MN17 ",8224207.5817470234,2539863.4131002733,1881062.0591281613,128008.08271699998,530793.27125511225,"Summer",203084.59828999999,81088.672982999997,113834.39124,2185.00713,50433.124331999999,34682.972365000001,8945.8923219999997,42681.019723999998,0]
[1897,"2012-03-01","KW60MN14 ",7181488.70179749,2539733.9460219536,1906733.9870723938,101113.12768472372,531886.83126483625,"Winter",159178.25643000001,77565.855966999996,119608.58775000001,2295.8405997999998,54719.483904000001,36410.586979,9089.6822061999992,1354.3257784,0]
[1898,"2012-01-02","KW60MN08 ",6962655.8804335911,2539642.796284026,1848997.320836175,94269.844177858409,596375.63126999268,"Winter",251590.97567000001,54894.170330000001,87759.979328999994,1684.5188740999999,54081.089925,22618.180328999999,8146.5765852000004,742.46966563000001,0]
[1899,"2011-08-30","KW60MN14 ",8440980.4955993351,2539630.642527801,1845438.3901975174,133842.10050300002,560350.15182728355,"Summer",195789.37719,92708.935022999998,136866.22732000001,2627.0943192,54217.888635000003,42725.168550000002,11460.102532000001,36077.675982000001,0]
[1900,"2012-02-09","KW60MN07 ",7327190.5048912345,2539474.2139059831,1820164.6203930061,109515.49674938551,609794.09676359163,"Winter",250613.43739000001,63898.211617000001,108179.23808,2076.4586515000001,57729.055519000001,33769.326196000002,9064.9147807999998,747.06969021999998,762.88356425999996]
[1901,"2011-07-05","KW60MN12 ",8262393.3614349756,2539244.2161924662,1796864.561633057,139242.08942100001,603137.56513840915,"Summer",161820.03581,80484.912303999998,113584.34198,2180.2075312000002,55175.479603,39105.388062999999,9275.9914788999995,44730.613493999997,0]
[1902,"2012-04-06","KW60MN11 ",6904187.2840130543,2538960.6064804005,1907622.73542173,117856.66928066335,513481.20177800715,"Summer",211685.64851,70992.06899,99038.011012999996,1900.9963319999999,53488.295515999998,33256.599158999998,8518.7092608000003,7467.6597125999997,0]
[1903,"2011-07-10","KW60MN19 ",7293687.4781699711,2538643.8984115301,1822056.5356722386,133356.90760699997,583230.45513229177,"Summer",236459.97438999999,53259.443700999997,98447.133520000003,1889.654667,52941.100677000002,29115.604905,6784.9201033999998,34993.704489999996,0]
[1904,"2011-07-25","KW60MN11 ",8022134.8747016229,2538124.4091643924,1823816.6219262627,128897.03727099999,585410.74996712967,"Summer",149865.71333999999,86186.117412000007,120106.90356000001,2305.4055790000002,56178.670141000002,40186.931954,9900.2524771999997,40824.207555000001,0]
[1905,"2012-03-27","KW60MN10 ",6976614.4790858524,2537960.1430604844,1882915.5987535545,123650.8525197369,531393.69178719306,"Winter",191391.54126999999,72132.350502999994,116678.75182999999,2239.6035318999998,42954.794865000003,35804.429469000002,8706.2526718999998,1354.3257784,0]
[1906,"2012-02-06","KW60MN14 ",7256502.5526448414,2537905.0049319416,1865985.9002527755,94312.382104888617,577606.72257427743,"Winter",211983.11869,72553.867696000001,116760.54406,2241.1735021,56953.862829999998,34766.583326,9327.0584211999994,747.06969021999998,0]
[1907,"2011-12-31","KW60MN17 ",7262976.9402677324,2537880.8568874318,1847083.983127435,95980.673739999984,594816.20001999673,"Winter",281539.59960000002,62787.575600999997,79165.184886999996,1519.5451175999999,56269.869280999999,19124.797239,6343.6976542000002,816.33821894000005,3053.2304963000001]
[1908,"2011-07-02","KW60MN17 ",8473489.7890211511,2537834.4042927991,1795738.1658432169,133087.882874,609008.35557558213,"Summer",207579.66553,66455.636270999996,103098.97874999999,1978.9450377999999,54491.486054000001,31119.979730999999,7142.6070904999997,46220.621153,0]
[1909,"2012-04-03","KW60MN11 ",6945568.0486764954,2537658.3439196721,1915480.5117952561,105455.77709517625,516722.05502923962,"Summer",199055.57156000001,71911.170991000006,110428.69361,2119.6360805999998,55221.079172999998,35197.978598000002,8175.3731604000004,7467.6597125999997,0]
[1910,"2012-02-06","KW60MN22 ",7182200.1113764765,2537644.0901151635,1836534.8771863568,96534.436732703194,604574.77619610378,"Winter",290300.63529000001,60408.554174999997,92393.410445999994,1773.4557930999999,58048.252507999998,30120.002187999999,7231.4176934999996,747.06969021999998,3053.2304963000001]
[1911,"2012-05-16","KW60MN17 ",7442747.6044396041,2537442.0063238051,1816649.9623981584,131998.31063837046,588793.73328727623,"Summer",158865.42892000001,89820.088170999996,114623.40966,2200.1520335999999,53625.094226000001,37001.669860000002,8698.3382696000008,21356.368259999999,0]
[1912,"2011-12-25","KW60MN10 ",6668679.1098898789,2537367.2729981593,1810614.9313764223,108281.62871,618470.7129117368,"Winter",326428.95919999998,47304.881264000003,69639.282735000001,1336.6991086999999,56178.670141000002,16252.823688,6462.5406647,816.33821894000005,0]
[1913,"2012-02-13","KW60MN15 ",7181733.1497733314,2536862.8232806674,1899817.2720309647,105785.00326843564,531260.54798126698,"Winter",153823.52825999999,71970.879753999994,120651.95194,2315.8675718999998,55677.074871999997,38250.717428000004,9148.5839847999996,747.06969021999998,0]
[1914,"2012-01-31","KW60MN14 ",7131277.4335619239,2536717.0174986571,1879327.300333966,111490.48958205935,545899.22758263187,"Winter",179167.13534000001,79559.831391999993,125201.95453,2403.2031126000002,55357.877883000001,38482.429120000001,9197.3722562999992,742.46966563000001,0]
[1915,"2012-02-26","KW60MN08 ",6851635.2102048649,2536670.4105335982,1863124.5800989936,118309.51759842022,555236.31283618428,"Winter",239352.60081,52132.464900999999,75681.001837000003,1452.667571,55996.271862000001,25180.645594000001,6001.3705339999997,747.06969021999998,0]
[1916,"2012-02-09","KW60MN12 ",7295934.1611779444,2536648.0013223561,1835601.542934248,97786.78372167777,603259.67466643045,"Winter",203720.72471000001,83490.962509000005,132558.04542000001,2544.4004332999998,56953.862829999998,36851.287013000001,9658.6067170999995,747.06969021999998,0]
[1917,"2011-12-30","KW60MN12 ",7067557.819610198,2536276.9370884085,1850442.3040221084,104675.50071200001,581159.13235429989,"Winter",229378.36754000001,69969.908313000007,100560.43899,1930.2187484999999,55950.672292000003,30807.849251,7199.7126804,816.33821894000005,0]
[1918,"2011-11-19","KW60MN22 ",6952008.9293613695,2536105.7738172277,1816492.6282805805,103292.29292399999,616320.85261264734,"Winter",328448.12534000003,66444.640925,97092.167958999999,1863.6466269,57227.460249999996,28184.843756999999,6606.0258235000001,4955.8928413000003,3053.2304963000001]
[1919,"2012-02-12","KW60MN10 ",6995537.9696181854,2536058.9284844398,1851560.8253129066,114938.68478697515,569559.41838455782,"Winter",287394.25190999999,51447.784067000001,78426.038427000007,1505.3574871000001,55038.680892999997,24732.057969000001,5946.2304247000002,747.06969021999998,0]
[1920,"2011-12-27","KW60MN15 ",7184417.4253924517,2536043.8747022822,1871620.2946671296,89999.017089999994,574424.56294515263,"Winter",226958.40572000001,69513.592608000006,105205.66314,2019.3820301999999,57409.858528999997,33306.330474000002,7305.9806777000003,816.33821894000005,0]
[1921,"2011-12-26","KW60MN13 ",6993789.1852629678,2535946.8415620388,1867725.3866692684,101865.1081,566356.34679277043,"Winter",274063.08987999998,60601.834781999998,81729.412062999996,1568.7644668999999,55768.274012000002,23985.915206000001,6027.5752491000003,816.33821894000005,0]
[1922,"2012-01-05","KW60MN12 ",7161620.3160171052,2535921.2376420852,1882168.0849302358,101262.76177624344,552490.39093560609,"Winter",161153.43849,75752.117131999999,113131.14933,2171.5086735,54901.882184000002,36685.268377,8968.2998155000005,742.46966563000001,0]
[1923,"2011-11-06","KW60MN18 ",7304256.1072005471,2535625.2531694872,1867748.0742105711,111642.95301200001,556234.22594691603,"Winter",267512.42920000001,59968.214902,102314.80353,1963.8930975999999,55722.674442000003,28710.900027,6852.4066808999996,4955.8928413000003,3053.2304963000001]
[1924,"2011-10-12","KW60MN08 ",6855972.1125888815,2535492.7611673516,1906471.7041982776,107823.43278900001,521197.6241800742,"Summer",196269.05804999999,57057.319513000002,122871.07814,2358.4628413,34108.478300000002,40716.932210999999,9110.8301676999999,19170.103298999999,661.10921441000005]
[1925,"2012-03-28","KW60MN09 ",6915445.2744183149,2535442.3062674664,1900071.5118513571,120323.40563553387,515047.38878057536,"Winter",166028.65538000001,67570.607438999999,114856.10535,2204.6185372999998,40538.017658999997,33629.487699999998,8870.7977602999999,1354.3257784,0]
[1926,"2011-08-22","KW60MN22 ",7596046.4624692751,2535265.9267032277,1857318.3027057261,133774.25402900003,544173.36996850139,"Summer",189001.75359000001,65616.120779999997,101383.3348,1946.0139154000001,56862.663690000001,36579.587596999998,8042.4822969999996,51571.481162999997,3053.2304963000001]
[1927,"2011-11-23","KW60MN11 ",7166441.2607480772,2535156.6198884575,1852524.101996559,114404.19474799999,568228.32314389874,"Winter",195298.06969,72269.939352999994,116350.86249,2233.3098227999999,52393.905837999999,39992.250118000004,8070.2529633000004,4955.8928413000003,0]
[1928,"2011-11-28","KW60MN11 ",7362183.4372485094,2535019.853902569,1878734.0132228541,102267.38630100001,554018.45437871525,"Winter",211744.40701,71861.986782000007,122477.02772,2350.8991959,57409.858528999997,36470.178466999998,9609.4019876000002,4955.8928413000003,0]
[1929,"2011-10-25","KW60MN19 ",7156631.7176685529,2535005.6037936723,1858360.399516362,104370.01722400001,572275.18705331034,"Summer",182371.09487999999,62290.702605999999,131720.37577000001,2528.3216880999998,55585.875732,42406.759386999998,8006.1589974999997,19170.103298999999,3019.0088713999999]
[1930,"2012-05-16","KW60MN15 ",7694748.9703674354,2534927.2167569338,1823006.4402316345,129704.33082615171,582216.44569914753,"Summer",148396.96294,90118.299377999996,131159.34578,2517.5529344000001,52895.501106999996,40287.769123999999,10634.871569999999,21356.368259999999,0]
[1931,"2011-12-06","KW60MN23 ",6998302.9620865164,2534893.1841681255,1865456.7236809602,94619.935570000016,574816.52491716528,"Winter",292132.91678000003,65479.782021999999,101073.17049,1940.0604315,58048.252507999998,33246.721513999997,7350.0846388,816.33821894000005,3053.2304963000001]
[1932,"2011-07-30","KW60MN22 ",7733737.8749533715,2534885.714724333,1813521.3829094535,138130.39596699999,583233.93584787962,"Summer",231039.73642,74825.614199999996,88331.845602999994,1695.4956261,55221.079172999998,29496.187263,7272.4811696999996,43650.211507,3053.2304963000001]
[1933,"2012-02-10","KW60MN18 ",7229094.4340508524,2534874.0704773236,1829417.6606832575,104337.41649050656,601118.99330355972,"Winter",205764.14038999999,77881.987836999993,112925.78941,2167.5668691999999,55403.477453,33894.515747999998,7742.1108222000003,747.06969021999998,3053.2304963000001]
[1934,"2012-01-28","KW60MN20 ",7283709.7955824891,2534821.8342640875,1839708.5611263262,114860.34315090709,580252.92998685397,"Winter",285183.88748999999,68779.462440999996,83245.388905999993,1597.8630562999999,54537.085623999999,26997.904801000001,7052.8958544999996,742.46966563000001,3053.2304963000001]
[1935,"2012-01-25","KW60MN12 ",7279342.9263852909,2534625.4771417668,1865703.0327835428,111313.78141566963,557608.6629425541,"Winter",171705.45303,73385.927626000004,122669.05224,2354.5850323,55175.479603,36750.896691000002,9325.2351462000006,742.46966563000001,0]
[1936,"2011-07-21","KW60MN14 ",8578550.6364130396,2534608.8129926194,1836386.0359699621,127737.01107900002,570485.76594365714,"Summer",154799.75231000001,87587.081663999998,131464.9295,2523.4184957000002,53807.492506000002,42814.555659999998,10580.62363,43152.521205999998,0]
[1937,"2011-10-25","KW60MN21 ",7006806.0300518349,2534509.9491209444,1856874.5455534661,105716.56432400001,571918.83924347849,"Summer",234586.12529,60489.419699999999,120017.96595,2303.6984559000002,55722.674442000003,41597.023703999999,7519.2276983000002,19170.103298999999,3053.2304963000001]
[1938,"2012-04-07","KW60MN09 ",6580085.8833503081,2534444.3693993818,1887528.7616677214,112043.89333687355,534871.71439478674,"Summer",274933.55076999997,45589.292323000001,74646.881741000005,1432.8180356,55996.271862000001,24029.80154,5850.1588872000002,7467.6597125999997,0]
[1939,"2011-08-07","KW60MN19 ",7630103.8766948478,2534177.0095958933,1805544.971778488,124491.645859,604140.39195840526,"Summer",268976.35725,68460.218196000002,103152.84259,1979.9789333000001,55175.479603,28276.569037000001,7405.0368337,30362.557935000001,0]
[1940,"2011-12-08","KW60MN06 ",7196785.384573156,2534099.8955007549,1808749.5107555503,92085.270750000011,633265.1139952048,"Winter",305791.72313,61983.165520000002,110790.01974,2126.5715960000002,52257.107128000003,32603.389997999999,9754.5529788000003,816.33821894000005,3053.2304963000001]
[1941,"2012-04-10","KW60MN08 ",6797501.5699851923,2533880.4038083153,1918294.1526542068,123645.57432209491,491940.67683201341,"Summer",212414.38527,51993.920004,97784.382272000003,1876.933413,55585.875732,35388.613316000003,8829.0283364000006,7467.6597125999997,0]
[1942,"2012-02-25","KW60MN13 ",6941182.5093710236,2533838.5827433905,1864892.7909268867,107797.44976480129,561148.34205170267,"Winter",246871.74859,65856.535317999995,81456.226064000002,1563.5207673,56133.070571999997,27602.412597999999,5854.0881557000002,747.06969021999998,0]
[1943,"2011-08-30","KW60MN16 ",8667946.6964594554,2533722.2708050339,1825561.165256375,134493.63152300002,573667.4740256588,"Summer",211606.57255000001,95913.259776000006,132681.95702999999,2546.7788685999999,54263.488205000001,39971.002370000002,10888.132457,35249.517018999999,0]
[1944,"2011-08-11","KW60MN20 ",7917932.9433958735,2533599.6177448896,1848428.0306354852,131548.836167,553622.7509424045,"Summer",226164.44534000001,69352.385376000006,99400.705891000005,1907.95812,56452.267561000001,35858.012797000003,7863.8521118999997,46703.606753,0]
[1945,"2011-08-17","KW60MN20 ",7958612.067255009,2533475.5913561471,1860995.9974143577,133586.20794799997,538893.38599378918,"Summer",253633.07712999999,84079.500344999993,104495.10464999999,2005.7431345,54856.282614000003,34863.302219999998,8052.9445456000003,41586.753742000001,0]
[1946,"2011-08-21","KW60MN15 ",8114409.8848186452,2533453.7618652796,1834780.7599222818,131310.52936000002,567362.47258299787,"Summer",215916.58867999999,62366.448859999997,97415.540208000006,1869.8536322,54993.081323999999,30682.732239000001,8051.3599719000003,40101.934658999999,0]
[1947,"2011-10-17","KW60MN09 ",6926261.7365188254,2533349.8811483057,1874578.0544895756,96142.709761999999,562629.11689673015,"Summer",147114.88523000001,57909.954541999999,125370.39356,2406.4362345999998,56908.26326,42037.436121999999,8470.3983931999992,19170.103298999999,0]
[1948,"2012-03-05","KW60MN12 ",7011071.2314275,2533320.8009564606,1904375.9092662067,103252.78458742137,525692.10710283229,"Winter",166862.05306000001,70660.074770000007,124239.56856,2384.7304859999999,56178.670141000002,37131.008756000003,8456.3623895000001,1354.3257784,0]
[1949,"2011-12-27","KW60MN16 ",7253943.8846939886,2532824.124713337,1868317.3851873863,91088.664770000003,573418.07475595106,"Winter",254845.85076,66055.871962999998,103765.58143999999,1991.7402185999999,57136.261109999999,31615.175714000001,6917.2319877999998,816.33821894000005,1985.0238824999999]
[1950,"2011-11-07","KW60MN17 ",7467076.5611372553,2532627.482538606,1821900.2721079155,107307.937701,603419.27272969089,"Winter",235150.45697,74674.242201999994,133058.17264,2554.0001818000001,56908.26326,37909.093918999999,7895.5638959999997,4955.8928413000003,3053.2304963000001]
[1951,"2011-11-07","KW60MN12 ",7224061.119865776,2532573.7840931169,1831747.6681256255,115246.878044,585579.2379234914,"Winter",191577.95959000001,75559.852022000006,135976.42634999999,2610.0149335000001,56680.265411,39923.762465,10195.470703000001,4955.8928413000003,0]
[1952,"2011-08-15","KW60MN16 ",8288466.0314426711,2531822.6629785481,1875412.323712185,128855.89592,527554.44334636291,"Summer",186623.28519,86016.755659000002,117604.17969999999,2257.3667621999998,50068.327771999997,35286.28269,10108.014437,44018.482612,0]
[1953,"2011-11-17","KW60MN08 ",7300681.6421151962,2530412.2373633566,1784152.7739235945,107387.485218,638871.97822176223,"Winter",315722.32206999999,59792.583406999998,125754.36681000001,2413.8064528,56589.066271000003,39206.783021000003,9986.5914166999992,4955.8928413000003,0]
[1954,"2011-11-08","KW60MN13 ",7244986.5115568507,2530203.733828241,1874884.0833308902,114516.770125,540802.88037235057,"Winter",168315.55210999999,76256.302681999994,130669.03152,2508.1415416999998,53944.291214999997,41490.164400000001,10223.363259,4955.8928413000003,0]
[1955,"2011-11-06","KW60MN19 ",7222206.8730050344,2530193.3387057236,1859075.0803614017,113226.63282700001,557891.6255173221,"Winter",258910.77486999999,59183.737201000004,102026.8918,1958.3667430999999,55859.473151999999,28656.384761000001,6741.9944155000003,4955.8928413000003,3053.2304963000001]
[1956,"2012-01-05","KW60MN07 ",7333876.698714437,2530022.7783467178,1834810.8089806181,105415.3668023943,589796.60256370541,"Winter",223183.02406,56655.387628999997,95841.310700000002,1839.6369053999999,55540.276163000002,35515.331573000003,8397.8533693000008,742.46966563000001,2187.724463]
[1957,"2012-03-21","KW60MN07 ",7106132.4317690078,2529951.3203941202,1846355.2423436167,101191.06519500811,582405.01285549521,"Winter",250826.22495999999,60575.417350000003,107480.77163,2063.0518579999998,52120.308419000001,37036.743447000001,9101.3210340999995,1354.3257784,0]
[1958,"2012-02-07","KW60MN16 ",7217318.2147073224,2529925.1040179869,1864272.8815278567,99219.710381779092,566432.5121083511,"Winter",195493.48620000001,74653.646213999993,116380.44336999999,2233.8776163000002,56543.466700999998,33728.934213,9223.3704345999995,747.06969021999998,0]
[1959,"2011-11-05","KW60MN12 ",7014494.739265698,2529854.9876607805,1862300.7886733559,120084.356031,547469.84295642457,"Winter",206907.95970000001,60762.780106999999,103545.33801000001,1987.5127312,57409.858528999997,30403.410687,6034.6245695999996,4955.8928413000003,0]
[1960,"2011-11-04","KW60MN12 ",7074085.7002053792,2529632.1394450781,1885473.0801157493,107483.60359200001,536675.45573732897,"Winter",149260.2274,77357.187017000004,133437.01538999999,2561.2719219999999,53579.494656000003,42263.011036000004,8304.5463703000005,4955.8928413000003,0]
[1961,"2011-12-01","KW60MN13 ",7131678.1766922101,2529622.2011294197,1895281.8253986328,87721.365289999987,546619.01044078707,"Winter",193833.82368999999,77170.033144999994,134461.85258000001,2580.9432757,57774.655089,38129.805673000003,10140.315356999999,816.33821894000005,0]
[1962,"2012-01-21","KW60MN14 ",7187189.9542098977,2529596.6679745163,1835920.8321268712,103725.13551989678,589950.70032774808,"Winter",283692.84830000001,62271.883740999998,80844.242551000003,1551.7739804,56315.468850999998,26010.033673999998,6606.3914934000004,742.46966563000001,0]
[1963,"2011-09-11","KW60MN16 ",6891274.3694274537,2529545.7343171332,1804092.3032623781,97871.958859000006,627581.47219575546,"Summer",294119.86324999999,68602.871685999999,113667.84824000001,2181.8104016000002,53169.098527000002,33026.025162999998,7988.5255391999999,34330.850169999998,0]
[1964,"2012-02-09","KW60MN21 ",7177101.2578186151,2529437.8322358187,1822450.3110678301,105115.62261681263,601871.89855117619,"Winter",272254.36903,75105.239528000006,101003.97326,1938.7322173,56543.466700999998,32291.046618,7536.8391498000001,747.06969021999998,3053.2304963000001]
[1965,"2012-02-19","KW60MN19 ",7274429.5291557005,2528828.6187533196,1853270.3585447297,121581.50200251646,553976.75820607331,"Winter",236178.9002,61173.147701000002,76338.329314000002,1465.2847178,52029.109278999997,26286.639885000001,6684.5045319999999,747.06969021999998,3053.2304963000001]
[1966,"2011-12-29","KW60MN16 ",7155463.832506842,2528755.5110035613,1853761.2070051469,90157.909090000001,584836.39490841446,"Winter",195706.0724,67596.735646000001,111195.59943,2134.3565414999998,49156.336373999999,31818.822197000001,6699.9829037,816.33821894000005,1934.1367077]
[1967,"2012-02-13","KW60MN17 ",7255930.1094681034,2528722.2095311685,1891604.3704414328,110677.7067854684,526440.13230426726,"Winter",179615.04167999999,71257.649260999999,111217.45067999999,2134.7759678000002,56543.466700999998,34603.859479999999,7707.5295378999999,747.06969021999998,1985.0238824999999]
[1968,"2012-03-29","KW60MN09 ",6939055.8225599872,2528687.4459389956,1888816.9919732362,123531.58748888793,516338.86647687142,"Winter",169359.67063000001,74725.920169000005,114098.50423999999,2190.076677,45645.16949,36999.405214999999,8897.5949963999992,1354.3257784,0]
[1969,"2012-02-26","KW60MN18 ",7100924.1129977703,2528244.4786759289,1869277.5995810081,115847.0647361257,543119.81435879529,"Winter",240285.49789999999,52541.248188999998,81797.748206999997,1570.0761528,55266.678742999997,26712.121778000001,6536.8124667000002,747.06969021999998,3053.2304963000001]
[1970,"2011-07-31","KW60MN21 ",7587345.3315160805,2527847.4411004428,1826385.0108623705,113744.35765000001,587718.07258807239,"Summer",223653.95050000001,61564.367036000003,93379.571605999998,1792.3847753,55129.880033000001,28694.524378999999,7088.7722229999999,28520.318839,1323.4906082]
[1971,"2012-04-12","KW60MN10 ",6974272.5389209939,2527645.5447675609,1913773.6673613477,123388.62107940552,490483.25632680766,"Summer",152913.66187000001,65649.720616999999,120761.63019,2317.9728034999998,53397.096376000001,35936.635778000003,9139.5150100999999,7467.6597125999997,0]
[1972,"2012-01-07","KW60MN12 ",6983426.9687856222,2527431.7635398819,1830645.5879275338,106580.75666264659,590205.41894970147,"Winter",287859.53990999999,61433.444807,85510.326302999994,1641.3376539999999,57273.059820000002,26667.211024,5956.4522780999996,742.46966563000001,0]
[1973,"2011-11-24","KW60MN12 ",6893600.32082956,2527388.5110784192,1834045.6927898179,113408.791375,579934.02691360121,"Winter",348518.46489,50194.157132,76430.273572999999,1467.0495523,49201.935943999997,18384.773440000001,5467.2863238999998,4955.8928413000003,0]
[1974,"2012-06-01","KW60MN14 ",7531077.5275270035,2527202.5830775416,1836568.5189800449,131628.87434619403,559005.18975130236,"Summer",151950.78141,87664.005703999996,125422.75189,2407.4412324999998,56543.466700999998,45794.743831,9366.7980342999999,20953.672284,0]
[1975,"2011-12-24","KW60MN18 ",7346644.054640647,2526950.6957497261,1809603.0720937217,102491.85483,614855.76882600412,"Winter",331040.40938000003,67809.426422999997,82821.083916000003,1589.7186861,56406.667991000002,17817.177614,7071.8497905000004,816.33821894000005,3053.2304963000001]
[1976,"2011-12-18","KW60MN09 ",7023467.837840599,2526873.729781948,1812088.225753072,98155.847910000011,616629.6561188763,"Winter",301505.53259000002,55061.920461000002,90437.989499000003,1735.9222440000001,56999.462399999997,26085.69498,6559.0574403999999,816.33821894000005,0]
[1977,"2011-12-30","KW60MN10 ",7061915.1352281952,2526836.5064429049,1824268.8036366256,108975.900937,593591.80186927924,"Winter",232152.69269,62908.334806999999,102237.89526999999,1962.4168732000001,55722.674442000003,31322.361237000001,7157.3151833000002,816.33821894000005,0]
[1978,"2011-11-30","KW60MN17 ",7608044.619771976,2526732.5823985753,1853252.9530302272,108362.45207299999,565117.17729534826,"Winter",213392.16732000001,76958.218076000005,123692.74885,2374.2344929999999,54993.081323999999,37031.386805000002,8363.2568480000009,4955.8928413000003,3053.2304963000001]
[1979,"2011-11-04","KW60MN20 ",7123595.7450970216,2526682.7990017422,1869236.9609136386,110454.122929,546991.71515910362,"Winter",218865.37695999999,65942.214821999994,120524.77119,2313.4263867,56543.466700999998,36320.663185999998,6706.0367859999997,4955.8928413000003,3053.2304963000001]
[1980,"2012-01-26","KW60MN07 ",7336503.6440974474,2526567.9242609199,1795356.5108888589,93639.228460759041,637572.18491130183,"Winter",266640.95085000002,62170.057483999997,99660.254954000004,1912.9400639,57273.059820000002,34779.761579999999,8522.5674271000007,742.46966563000001,1627.9655384]
[1981,"2012-01-14","KW60MN13 ",6962205.3400148703,2526404.7947081854,1866748.5038154975,102089.52809303856,557566.76279964938,"Winter",292802.97983000003,68323.954958000002,85241.920465000003,1636.1857077,55357.877883000001,26993.277127000001,6578.7427186000004,742.46966563000001,0]
[1982,"2011-09-14","KW60MN21 ",6919579.5697229337,2526173.7836630167,1813212.5699170798,120018.464674,592942.74907193705,"Summer",219120.76019999999,71393.379040999993,118845.98142,2281.2026660000001,54810.683043999998,37876.477270000003,8727.0992936000002,25313.236803,3053.2304963000001]
[1983,"2012-01-15","KW60MN15 ",6842674.4593434678,2525996.3494724892,1861407.7331912492,105053.85377468269,559534.76250655751,"Winter",287321.64107999997,46443.781602000003,80911.487603000001,1553.0647231,55357.877883000001,25741.384581999999,6179.2880004999997,742.46966563000001,0]
[1984,"2011-08-12","KW60MN20 ",7668660.5901413327,2525914.7242817483,1829017.3394122289,136593.07423600001,560304.31063351955,"Summer",226645.62061000001,77536.032114999995,106788.69775000001,2049.7677675,56999.462399999997,35258.693657999997,7562.0721274999996,48324.915056999998,0]
[1985,"2011-12-05","KW60MN06 ",7339261.8208967829,2525887.1495320625,1841668.2894438729,87125.067039999994,597093.79304818937,"Winter",303159.54606000002,58776.570355999997,105141.75694000001,2018.1553753000001,58367.449498000002,30947.130434999999,9129.0933920000007,816.33821894000005,3053.2304963000001]
[1986,"2012-03-15","KW60MN20 ",7066194.9559482429,2525775.0599222397,1872073.65178719,106410.39357036306,547291.01456468669,"Winter",246209.82524999999,64496.4931,96484.167820000002,1851.9762992999999,55996.271862000001,33004.388392000001,7009.7771728999996,1354.3257784,3053.2304963000001]
[1987,"2011-11-20","KW60MN22 ",7002418.5258429367,2525749.8677374274,1809623.4692540909,108331.34377400001,607795.05470933637,"Winter",295152.21736000001,53066.980954999999,85901.928480000002,1648.8543064,56589.066271000003,26985.800543000001,6469.4680947999996,4955.8928413000003,3053.2304963000001]
[1988,"2011-11-23","KW60MN12 ",7115101.0659673102,2525688.2481539203,1860832.161185059,117413.37405499999,547442.71291386127,"Winter",149088.48811000001,73448.562374999994,118914.33581999999,2282.5147023999998,52165.907987999999,39135.788266000003,7880.5104484000003,4955.8928413000003,0]
[1989,"2012-04-09","KW60MN08 ",6685109.4640869489,2525552.6708581946,1902100.9066492449,115020.8087507747,508430.95545817504,"Summer",199677.72904999999,51822.787555000003,91039.909167999998,1747.4758592999999,45781.968200000003,33192.825111999999,8570.8139646,7467.6597125999997,0]
[1990,"2011-08-03","KW60MN11 ",7523269.492203665,2525286.5529468427,1844421.3285525257,130239.11096800001,550626.11342631711,"Summer",166610.61249,91580.884487000003,132908.2885,2551.1232138,46739.559168,39854.069952999998,11012.887144,28914.683841999999,0]
[1991,"2011-08-29","KW60MN11 ",7781296.0598956523,2525119.6759357248,1784501.5731686116,135625.84028400003,604992.2624831131,"Summer",166314.61551,92371.225409000006,131791.28773000001,2529.6828157,56178.670141000002,40787.442040000002,11131.181648,38269.839874999998,0]
[1992,"2012-01-27","KW60MN17 ",7303120.517198802,2524923.4185588011,1856413.8830383066,94644.004610951786,573865.53090954258,"Winter",241217.10196999999,70799.641594000001,119949.40153,2302.3823883,54947.481754,33835.739494000001,7225.0455405000002,742.46966563000001,3032.5505136000002]
[1996,"2012-03-22","KW60MN12 ",7000191.0123973805,2524555.9959870763,1893841.5037707929,104465.40905371854,526249.08316256502,"Winter",162436.58666,71950.916845999993,119658.02555999999,2296.7895392,54582.685193999998,36489.108239000001,8318.9683592000001,1354.3257784,0]
[1999,"2011-08-20","KW60MN20 ",7632297.422940854,2524284.2849639351,1873406.5505286497,126713.69214500001,524164.04229028558,"Summer",202865.37739000001,68396.011994,94209.446530000001,1808.3139036,54810.683043999998,31441.578661,7015.1708175000003,42731.692587999998,20.877877062]
[2003,"2011-09-13","KW60MN11 ",6941675.4198787045,2523945.2812577942,1853480.3523851177,105968.183678,564496.74519467668,"Summer",135279.13961000001,90721.811002000002,141723.73113999999,2720.3322269999999,46876.357878000003,42692.591650000002,11986.079346,25966.042636999999,0]
[2006,"2012-03-14","KW60MN16 ",6964471.40220642,2523569.4566789614,1864448.7552368739,103095.68270039662,556025.01874169079,"Winter",218254.51754,72236.294525000005,107409.94706000001,2061.6924076999999,55905.072721999997,33831.997350999998,7332.8151588999999,1354.3257784,0]
[2009,"2011-12-29","KW60MN21 ",7208563.2397114849,2523205.9247900061,1836192.6085312155,95870.775089999996,591142.54116879101,"Winter",254057.27445,60541.303336999998,98227.949838,1885.4475210000001,55494.676592999997,28942.692012,6190.3800149999997,816.33821894000005,3053.2304963000001]
[2013,"2011-11-11","KW60MN18 ",7326299.9875198798,2522806.8464402803,1829213.5508941086,113656.30284600001,579936.99270017154,"Winter",270602.86742000002,75319.958087999999,124171.53212,2383.4245528000001,56178.670141000002,37679.575517999998,6693.4414588,4955.8928413000003,3053.2304963000001]
[2014,"2011-08-09","KW60MN13 ",8160132.6808546232,2522795.3830568446,1827578.2831805341,133708.18200599999,561508.91787031048,"Summer",160793.66990000001,85509.181362999996,124330.50016,2386.4758827999999,55540.276163000002,40970.109570000001,10244.389329,38710.360365,0]
[2018,"2012-01-03","KW60MN13 ",7204982.7919202996,2522296.403012183,1857784.6806607752,96650.165455504975,567861.55689590273,"Winter",209999.01263000001,75382.470721000005,111537.79045,2140.9247657000001,57136.261109999999,35168.451971000002,9000.6210513999995,742.46966563000001,0]
[2021,"2011-12-04","KW60MN22 ",7189916.9980724072,2521603.267518797,1847108.3195035311,96505.258987000008,577989.68902826612,"Winter",282535.16605,55372.343363,86121.145002000005,1653.0620828000001,56953.862829999998,26222.06264,6866.7287874000003,816.33821894000005,3053.2304963000001]
[2024,"2011-07-25","KW60MN20 ",8226964.6469238633,2521171.1506508123,1835851.2669631985,127100.15790200001,558219.72578561376,"Summer",167980.66896000001,67209.285868999999,97805.429959000001,1877.3374153,56589.066271000003,35519.216928000002,7339.2364049999996,40854.671168000001,0]
[2028,"2011-07-06","KW60MN10 ",8010710.5820669858,2520769.4711253955,1808155.0697429595,135503.90493300001,577110.49644943606,"Summer",127937.67693,73926.166599999997,120427.95501999999,2311.5680376999999,55449.077022999998,39975.456124999997,9425.6727255999995,40544.736922999997,0]
[2031,"2012-01-15","KW60MN16 ",6930785.4537212159,2520582.7405238841,1856536.9207764477,101047.34745138568,562998.47229605063,"Winter",305760.21357000002,47460.769981999998,82806.786718999996,1589.4442569,54947.481754,25412.858086,6109.0588914,742.46966563000001,1018.167559]
[2034,"2011-10-12","KW60MN09 ",6830161.5970259923,2519944.1111256918,1900309.2407273832,105249.011571,514385.85882730852,"Summer",152785.42971999999,58311.174613000003,132297.71059999999,2539.4034068999999,34518.874429000003,41995.345559000001,9742.1201724000002,19170.103298999999,0]
[2036,"2011-07-28","KW60MN11 ",8159866.6318610953,2519643.646810215,1820905.0609871491,138585.89195700001,560152.69386606594,"Summer",144072.92490000001,79937.004063999993,122670.20052,2354.6070731,55175.479603,40590.175596000001,10002.213685999999,34618.849335999999,0]
[2039,"2011-12-31","KW60MN09 ",6728916.7667563809,2519502.7887485595,1850342.4594911814,98952.383599999986,570207.94565737806,"Winter",279079.02403999999,50971.119821,82408.160646999997,1581.7927835999999,56406.667991000002,20630.722218999999,6054.9599291000004,816.33821894000005,0]
[2043,"2011-12-16","KW60MN22 ",7285819.3221203629,2519061.5588471536,1820655.7294878981,91196.377840000001,607209.45151925576,"Winter",292283.23635000002,66902.290276,104149.67445999999,1999.1127356,57501.057669000002,30788.398605999999,6937.0594715999996,816.33821894000005,3053.2304963000001]
[2046,"2011-10-27","KW60MN20 ",7166331.928101778,2518799.4205238088,1823003.2153481313,109188.34314899999,586607.86202667747,"Summer",232866.23108999999,71929.565661000001,128561.57342,2467.6896981999998,53898.691644999999,39457.693755,7944.9091396000003,19170.103298999999,3053.2304963000001]
[2049,"2012-01-27","KW60MN23 ",6835179.3411106579,2517834.783827723,1849254.2066786266,101621.00835452923,566959.56879456691,"Winter",297660.26393000002,67277.481759999995,87200.209348000004,1673.7743057,55357.877883000001,30797.837878999999,6515.0347392000003,742.46966563000001,3053.2304963000001]
[2053,"2011-07-26","KW60MN21 ",7956342.6872684173,2517649.9855029276,1822357.2129185235,127814.605973,567478.16661140439,"Summer",226948.93059999999,68544.646001000001,96827.801990000007,1858.5722243,56178.670141000002,36164.892578999999,7911.2471107000001,38422.702406999997,1018.167559]
[2055,"2011-12-25","KW60MN09 ",6721624.355860468,2517245.587585968,1804261.9790329728,104160.00391,608823.60464299493,"Winter",285233.6372,50458.990241,71234.001522999999,1367.3091193,55950.672292000003,16521.632908,6620.0432035000003,816.33821894000005,0]
[2058,"2012-04-11","KW60MN08 ",6684238.4892694987,2517018.9733561804,1894832.766002639,117118.20844004213,505067.99891349941,"Summer",166909.85263000001,52602.745323000003,96400.841264000002,1850.3768783,56315.468850999998,34901.152071999997,8877.3341258,7467.6597125999997,0]
[2061,"2012-03-21","KW60MN15 ",6915496.5674599111,2516680.2819960872,1872235.1049080994,96469.148222561518,547976.02886542608,"Winter",206096.00294000001,77533.099700999999,109223.72218,2096.5071200000002,49065.137234000002,36007.321502999999,7991.3493306999999,1354.3257784,0]
[2064,"2011-11-03","KW60MN21 ",7098285.9501244705,2516505.2894337308,1850530.5590671992,107464.041444,558510.68892253155,"Winter",275095.79373999999,68041.760353999998,115807.61622,2222.8824205999999,55905.072721999997,39628.587450999999,6941.0818503999999,4955.8928413000003,3053.2304963000001]
[2068,"2011-10-26","KW60MN21 ",6998898.1768468255,2515969.0697769839,1806968.5957768518,105407.726695,603592.74730513233,"Summer",261900.66441,65835.094152000005,124179.43858,2383.5763142000001,56817.064120000003,39978.143582999997,7647.3546841999996,19170.103298999999,3053.2304963000001]
[2071,"2011-11-08","KW60MN17 ",7493133.5455594473,2515001.1706412374,1854443.518727225,113800.719252,546756.93266201217,"Winter",229339.23761000001,74499.534618999998,128812.17097000001,2472.4998214000002,57729.055519000001,39211.605435999998,7982.4310263999996,4955.8928413000003,3053.2304963000001]
[2074,"2011-12-13","KW60MN24 ",6665841.2543685697,2514777.617783091,1845505.9656566728,92995.655099999989,576275.99702641787,"Winter",263226.00550000003,66447.798290999999,100360.79623000001,1926.3866828,51846.710999000003,31528.960488000001,7495.6216175,816.33821894000005,3053.2304963000001]
[2076,"2011-07-26","KW60MN12 ",8476564.897568658,2514329.6522750687,1821569.0997718479,125884.417477,566876.13502622047,"Summer",143110.00205000001,84184.093515999994,117514.17144000001,2255.6390882999999,55631.475301999999,41003.737305000002,10675.921503,35754.374125000002,0]
[2082,"2011-10-28","KW60MN12 ",6990739.5656863907,2513679.4481676002,1832859.17423977,102739.816481,578080.45744683011,"Summer",184416.45009999999,72713.787880999997,138502.78622000001,2658.5074346000001,57364.258958999999,42107.450096,9401.3759320000008,19170.103298999999,0]
[2083,"2012-04-10","KW60MN09 ",6840591.2962059602,2513678.3668731945,1905426.0824784059,118998.2700560918,489254.01433869672,"Summer",179689.89941000001,63107.383834,110104.34624,2113.4103583000001,57136.261109999999,35949.573708000004,9448.2512048000008,7467.6597125999997,0]
[2086,"2012-04-04","KW60MN20 ",6908035.7163370941,2513432.9489836562,1895522.6263854501,123074.3208911512,494836.00170705502,"Summer",167508.33291,58352.194661000001,91787.660814999996,1761.8286631000001,50159.526912000001,31377.627686,6867.7276111000001,7467.6597125999997,1323.4906082]
[2089,"2011-10-24","KW60MN08 ",6838723.9303555219,2513341.8484737705,1821497.0684165088,106827.82891899999,585016.95113826194,"Summer",238398.89872999999,55402.638008000002,125909.84673,2416.7908296999999,56725.864979999998,42806.253811000002,9036.8021453000001,19170.103298999999,1526.1911886]
[2093,"2012-02-01","KW60MN22 ",6993762.4133448908,2512789.7620288935,1833443.707156959,104910.5326570748,574435.52221485949,"Winter",246614.98754,67326.471546999994,94828.875583999994,1820.2036048,52211.507557999998,31703.954960999999,7235.3469609000003,747.06969021999998,3053.2304963000001]
[2096,"2011-12-29","KW60MN10 ",7159443.4499805467,2512636.1001910055,1857242.245787499,93845.733589999989,561548.12081350654,"Winter",232444.35485,71650.289009,104921.22586999999,2013.9223666,36479.655936000003,34249.463657,6906.6681651999997,816.33821894000005,0]
[2101,"2012-01-02","KW60MN21 ",7193470.60011975,2511830.2946232352,1797226.1660024468,99044.69554374188,615559.43307704688,"Winter",295988.34947000002,57027.625810999998,81634.012409000003,1566.9333075,56497.867130999999,24132.870222000001,6525.4969866000001,742.46966563000001,3053.2304963000001]
[2104,"2011-10-10","KW60MN20 ",7100445.2104698345,2511519.837040564,1865173.8667978838,105851.347287,540494.62295568024,"Summer",198639.40794999999,54882.575646999998,121530.48222999999,2332.7306211999999,48061.946695999999,38787.924904,7476.7489414000001,19170.103298999999,3053.2304963000001]
[2107,"2012-03-15","KW60MN13 ",6970303.9636272304,2511339.5679940437,1883834.2708733231,105276.62182648771,522228.67529423285,"Winter",140971.86691000001,72650.208331999995,119028.49877999999,2284.7060161999998,47788.349276000001,38536.570016999998,8278.4838607999991,1354.3257784,0]
[2108,"2012-02-17","KW60MN18 ",7303305.3835708713,2511173.8174196277,1810892.6128153158,107818.08709459886,592463.11750971293,"Winter",264716.29220000003,80681.665211,110077.63158,2112.8975807000002,55996.271862000001,32578.295459000001,7575.5173006000005,747.06969021999998,3053.2304963000001]
[2111,"2011-11-06","KW60MN10 ",6805347.1347738663,2510719.6439678548,1850318.1389288076,113373.45541099999,547028.04962804751,"Winter",277444.64973,51727.867333000002,96338.171982,1849.1739656,56908.26326,28634.026056999999,5970.2055632000001,4955.8928413000003,0]
[2114,"2012-02-19","KW60MN20 ",7213812.5302267922,2510440.7242987752,1833179.9408451035,120484.30269846524,556776.48075520643,"Winter",235122.98546,59334.694643000003,76389.958947000006,1466.2757286999999,54217.888635000003,26407.933564999999,6626.2172844999996,747.06969021999998,3053.2304963000001]
[2118,"2012-04-09","KW60MN09 ",6770137.559000208,2510140.8266027942,1894282.4255126405,121101.82077689888,494756.5803132549,"Summer",181166.42915000001,60893.456493999998,100756.33022,1933.9788048999999,45964.366478999997,33926.173143,8621.3544087999999,7467.6597125999997,0]
[2122,"2011-07-04","KW60MN17 ",7870443.2176722251,2509504.1871667625,1772816.2843496464,129851.16359200001,606836.73922511633,"Summer",217274.66876999999,59220.896103999999,93968.490367999999,1803.6888432000001,54582.685193999998,26504.683273999999,6858.5011949,48201.750031000003,0]
[2126,"2011-12-09","KW60MN23 ",6944118.097219781,2508678.3540486903,1789516.1906214105,95251.201979999983,623910.96144728002,"Winter",333419.88465000002,69381.523123000006,108190.80054,2076.6805884999999,53716.293365999998,31062.817252000001,6968.9947211999997,816.33821894000005,3053.2304963000001]
[2129,"2011-12-23","KW60MN06 ",7088932.4869664032,2507747.1477775224,1788316.0139359792,92665.815800000011,626765.31804154336,"Winter",280466.45157999999,59355.904430000002,92196.143582000004,1769.6693319000001,56269.869280999999,29925.489644000001,7715.0647270999998,816.33821894000005,3053.2304963000001]
[2132,"2011-11-02","KW60MN12 ",6953411.7683720291,2507035.9076718353,1849676.4230065029,104407.28496,552952.1997053324,"Winter",173171.59617999999,77051.464009999996,135000.87159,2591.2895371999998,52439.505407999997,42810.241023000002,9950.2478019999999,4955.8928413000003,0]
[2133,"2011-07-18","KW60MN14 ",8794104.3984014168,2507034.323855048,1746863.9398203997,126442.31559199998,633728.06844264839,"Summer",186078.27471999999,84671.753108000004,120153.12515000001,2306.2927845999998,47742.749706000002,42135.368539000003,10040.243449,44068.187386999998,0]
[2136,"2011-08-15","KW60MN19 ",7896448.1951631121,2506628.8614660036,1861820.3518919677,128975.958658,515832.55091603613,"Summer",228190.50055999999,60751.506783999997,105282.26148,2020.8523057,46009.966049000002,33426.853126000002,7864.6443987000002,44263.826390000002,0]
[2139,"2011-10-13","KW60MN10 ",6875406.5461753281,2506431.6304322882,1869191.1241885026,97872.099336999992,539368.40690678568,"Summer",148721.56547,69597.225047,132621.25083999999,2545.6136368000002,48381.143685000003,44426.434684,9886.6413976999993,19170.103298999999,0]
[2144,"2011-07-12","KW60MN16 ",8298276.4234759547,2505399.6602855045,1771528.3687206521,136880.59031299999,596990.70125185244,"Summer",177385.10169000001,82863.554525,119994.22601,2303.2427769999999,39899.623679999997,41075.266668999997,9981.9392707999996,35420.100708999998,0]
[2147,"2011-11-22","KW60MN14 ",7181819.8664470436,2504958.6271737842,1838851.2872813642,108149.02948700001,557958.31040542014,"Winter",175761.35775,70280.811648999996,122646.86833,2354.1592208000002,56725.864979999998,41003.177353999999,8675.8241216000006,4955.8928413000003,0]
[2151,"2011-10-04","KW60MN20 ",7187777.6724666469,2504429.4568331977,1855968.0924768618,115750.88180800001,532710.48254833592,"Summer",177989.12503,62672.588027999998,123053.40454,2361.9625261000001,51299.516159999999,39361.795933000001,7866.2086571999998,19170.103298999999,3053.2304963000001]
[2154,"2012-02-02","KW60MN13 ",7233181.5849212958,2504088.8720979486,1858690.8695489899,98491.139295439702,546906.86325351906,"Winter",196763.7041,80301.190562000003,122891.12039,2358.8475447000001,54537.085623999999,35757.062076000002,9098.0621620000002,747.06969021999998,0]
[2157,"2011-11-07","KW60MN13 ",7194079.9596883766,2502953.0363149354,1807660.159488152,107255.492702,588037.38412478357,"Winter",194513.95538,71599.220021000001,136664.81185,2623.2282270000001,56543.466700999998,41056.185679000002,10181.961198000001,4955.8928413000003,0]
[2158,"2011-12-02","KW60MN22 ",7126290.3418208379,2502924.1640964886,1827462.8284915378,94775.114760000011,580686.22084495064,"Winter",276456.34328999999,67586.039164999995,106989.45561,2053.6212369,58185.051218000001,32556.009481000001,6643.5883395999999,816.33821894000005,3053.2304963000001]
[2164,"2012-01-29","KW60MN21 ",7146105.5125878714,2501962.0307359705,1849882.6045420927,118300.21589190974,533779.21030196827,"Winter",233859.65663000001,55887.384467999997,74143.404431000003,1423.1539832999999,54582.685193999998,26713.788035000001,6385.4653864000002,742.46966563000001,3053.2304963000001]
[2166,"2012-05-31","KW60MN13 ",7501844.8709652927,2501930.2320542289,1813777.5823899128,131687.69332364271,556464.95634067338,"Summer",119845.33706999999,89451.960187999997,123393.92688,2368.4987207999998,48837.139384000002,44191.659526000003,9027.0373804999999,27829.575407,0]
[2169,"2012-03-05","KW60MN13 ",6953658.1264971141,2501575.0585877197,1881784.8894579152,99145.427619697584,520644.74151010677,"Winter",159075.02632,66517.448338000002,117902.79843,2263.0986332000002,56178.670141000002,37180.952638000002,8375.4678827000007,1354.3257784,0]
[2172,"2011-07-15","KW60MN13 ",8203298.4270068919,2501426.2915269416,1793591.995953138,138592.83135199998,569241.46422180382,"Summer",147706.55063000001,87050.480490000002,119422.5825,2292.2703007999999,55677.074871999997,42252.099238000003,8067.5510622000002,39650.202811000003,0]
[2176,"2012-01-08","KW60MN22 ",6985493.7174192611,2501117.9880236909,1828041.7730528254,103044.99590589404,570031.21906497166,"Winter",300817.07040999999,57639.087892000003,81988.320961000005,1573.7341231,56406.667991000002,25724.684496000002,6385.9732620000004,742.46966563000001,3053.2304963000001]
[2179,"2012-01-08","KW60MN12 ",6941388.3412724035,2500483.5318307849,1851339.4723666408,109918.09168776101,539225.96777638281,"Winter",263072.28378,44419.517958999997,86181.991051000005,1654.2299992000001,55038.680892999997,26619.257149000001,5587.6123318,742.46966563000001,0]
[2182,"2011-11-20","KW60MN14 ",6913964.7715236256,2500110.1357530858,1784445.8884423408,100760.26768400001,614903.97962674499,"Winter",310294.02918999997,49415.150591999998,100120.20832000001,1921.7686908999999,56862.663690000001,27058.471171000001,6185.3825133,4955.8928413000003,0]
[2185,"2011-12-28","KW60MN14 ",7184778.4947735108,2499927.0493242312,1833975.3149923352,91804.509080000003,574147.22525189607,"Winter",190447.44149,75456.690512999994,113012.57492,2169.2326834999999,56497.867130999999,34910.020928999998,6955.1804915000002,816.33821894000005,0]
[2187,"2011-12-27","KW60MN21 ",7356766.9270454692,2499784.3386429292,1844819.9547596425,90437.48765000001,564526.89623328671,"Winter",261901.56529,63734.166771999997,102235.80747,1962.3767988,57090.661540000001,29297.759188,6355.0131342000004,816.33821894000005,3053.2304963000001]
[2191,"2012-06-28","KW60MN15 ",8165283.6164377006,2498830.1965752235,1809790.1881835351,129147.0951127701,559892.91327891801,"Summer",146643.01551999999,93895.146972000002,139850.25158000001,2684.3715112,55996.271862000001,46844.422578999998,10741.721931,35580.488708999997,0]
[2194,"2011-09-21","KW60MN18 ",6981387.4068107558,2498193.0169429048,1841595.0661132559,109281.268467,547316.68236264877,"Summer",174702.77217000001,74116.183793000004,132235.43953999999,2538.208138,50569.923041000002,39185.567568999999,8992.6372396000006,30217.333901999998,0]
[2197,"2011-08-11","KW60MN21 ",7764284.5828321353,2497795.4904462192,1812619.2949486044,135187.426897,549988.76860061463,"Summer",223896.26569999999,70817.089856999999,97702.173219999997,1875.3554420999999,56680.265411,35437.245294,8093.1480183000003,49021.431270000001,2086.7982323000001]
[2201,"2011-09-21","KW60MN17 ",7041321.3391600046,2497051.7897333549,1829627.2770448695,107236.68737700001,560187.82531148556,"Summer",157940.07801999999,87598.138068999993,141335.24802999999,2712.8754438999999,55540.276163000002,40243.746139000003,9778.5450469999996,30217.333901999998,0]
[2204,"2012-03-06","KW60MN15 ",6949325.994865072,2496581.5131731741,1879198.8408282199,100804.66288264163,516578.0094623128,"Winter",170331.82483999999,73358.412748000002,115938.58375000001,2225.3962918000002,55813.873582,36628.955001000002,8346.7525674999997,1354.3257784,0]
[2206,"2011-07-20","KW60MN17 ",8440069.4113085847,2496191.2339255847,1786819.0744179171,130231.002133,579141.15737466759,"Summer",186256.28836999999,85538.084518000003,118552.48367,2275.5690900999998,50706.721750999997,37241.641876000002,8880.5388242999998,44873.836823999998,0]
[2209,"2011-11-14","KW60MN20 ",7377228.4838627484,2495922.6617444083,1781405.7386006536,112021.43467800001,602495.48846575478,"Winter",274044.01244999998,61959.564811999997,115361.81651,2214.3254677,57729.055519000001,37092.590152999997,7404.6102179999998,4955.8928413000003,3053.2304963000001]
[2212,"2011-12-30","KW60MN14 ",6995219.913944806,2495729.5421873573,1855234.5321201086,96641.563997000005,543853.44607024861,"Winter",218886.82847000001,66018.656822000004,102323.87078,1964.0671400000001,56087.471001999998,31439.203726,6649.9875788999998,816.33821894000005,0]
[2216,"2012-03-14","KW60MN17 ",6895342.6363362269,2495089.3667535842,1833795.9299908343,98888.331240762462,562405.10552198743,"Winter",245668.15332000001,61945.179113999999,101751.65532000001,1953.0836853999999,56315.468850999998,33005.520472999997,6895.5490644000001,1354.3257784,10.672171419]
[2219,"2011-08-18","KW60MN21 ",7858946.5066834213,2494806.7947581573,1822991.3046252634,138279.51949599999,533535.970636894,"Summer",226119.97373,79088.601351000005,95563.234303000005,1834.2993365,54491.486054000001,34805.530601999999,8034.1734446,46063.306415999999,2646.5571568999999]
[2222,"2012-04-03","KW60MN21 ",6893958.8984257812,2494586.2676425208,1888248.1064282451,105250.63662238246,501087.52459189313,"Summer",191497.95095999999,61852.167772000001,86709.693215000007,1664.3590382,55905.072721999997,32072.998222999999,6688.5455333,7467.6597125999997,3053.2304963000001]
[2226,"2012-02-21","KW60MN12 ",7262382.5023251493,2494180.1361992932,1858765.0865749617,99343.081998442591,536071.96762588888,"Winter",204096.79391000001,75977.893702999994,116606.14857999999,2238.2099404999999,48153.145836000003,36941.308599999997,9264.7674162999992,747.06969021999998,0]
[2227,"2011-07-08","KW60MN19 ",7904342.6225211332,2493546.302068654,1792119.8732773417,144868.71065599998,556557.71813531208,"Summer",194876.15104999999,63916.572543000002,100136.44484,1922.0803447000001,55950.672292000003,35975.139984000001,6874.4078749999999,35984.029557000002,0]
[2231,"2011-07-08","KW60MN16 ",8093798.7376837693,2493042.5725654289,1796630.9819673134,147079.91040699996,549331.68019111548,"Summer",157501.01089000001,79796.379965,108623.61277000001,2084.9882518999998,55996.271862000001,38420.462336999997,7814.3240334000002,38368.451321,0]
[2234,"2011-08-11","KW60MN13 ",8151862.8318491848,2492902.2504336508,1836192.2255347043,129630.67253400001,527079.35236494686,"Summer",140596.60320000001,89274.750813999999,124950.43526,2398.3752973999999,48745.940243999998,40114.488885999999,9883.7769767999998,45813.395613000001,0]
[2237,"2011-12-08","KW60MN23 ",6911510.3523366544,2492607.0326390639,1802897.901624253,92919.024770000004,596790.10624481086,"Winter",325996.01805000001,65862.136629999994,106534.64572,2044.891337,56771.464549999997,32735.187144,6808.2417752000001,816.33821894000005,3053.2304963000001]
[2241,"2011-09-21","KW60MN20 ",6972544.4700381393,2492019.3512062421,1817192.1693600654,114950.431406,559876.75044017693,"Summer",162965.86885,71327.998267000003,128042.36126999999,2457.7236217999998,55677.074871999997,37991.011895000003,8782.3155845000001,30217.333901999998,2900.4134826]
[2244,"2011-10-17","KW60MN10 ",6947018.3870863719,2491765.3174633421,1845963.3776373346,96535.142737999995,549266.79708800733,"Summer",157050.02035999999,61851.067112999997,126957.59273999999,2436.9019093000002,56999.462399999997,43015.131614999998,8701.0350913000002,19170.103298999999,0]
[2248,"2012-03-21","KW60MN16 ",6854285.3419642439,2491323.2922215061,1843006.2826110132,93974.379424669751,554342.63018582342,"Winter",232797.05419,72813.033614,106502.41254999999,2044.2726338,49110.736804,33950.821561999997,7165.7188398999997,1354.3257784,0]
[2252,"2011-12-03","KW60MN17 ",7424693.7477767086,2490984.1174170384,1848175.8684207988,82991.974969999996,559816.27402623964,"Winter",305092.03706,65080.949658999998,91471.477125000005,1755.7596394,57501.057669000002,27612.384270999999,7030.3867859000002,816.33821894000005,3053.2304963000001]
[2255,"2011-09-22","KW60MN17 ",7049018.4307482485,2490643.4535075757,1848195.6286768855,96532.664145999996,545915.16068469011,"Summer",148704.07782000001,85002.209617999993,139435.50300999999,2676.4105728,50387.524762000001,41207.117472999998,9440.2386127999998,30217.333901999998,0]
[2256,"2011-10-06","KW60MN11 ",7070910.3486328674,2490623.710888485,1864721.6673678185,104462.194067,521439.8494536666,"Summer",123646.89721,70090.905325999993,126223.15961,2422.8047492999999,57136.261109999999,42400.324201000003,9315.8699109000008,19170.103298999999,0]
[2259,"2012-03-29","KW60MN11 ",6973689.3861289322,2490364.1154802721,1853987.4860790686,118340.78272695123,518035.84667425219,"Winter",160686.82566999999,78284.858093000003,112827.10557,2165.6726709999998,50205.126482,37134.652624000002,8994.9328390999999,1354.3257784,0]
[2262,"2011-08-05","KW60MN11 ",7574247.8625668669,2490072.0781055931,1781932.4930382052,132223.84357800003,575915.7414893877,"Summer",186112.82607000001,91594.444289000006,121501.53853000001,2332.1750579999998,54537.085623999999,37655.443062999999,8944.2874331000003,32933.637054999999,0]
[2266,"2012-02-13","KW60MN16 ",7127213.1414371263,2489748.8234258275,1877110.8511705038,99971.750549464865,512666.221705859,"Winter",168869.81513999999,70193.751902999997,115632.70148,2219.5249998999998,55859.473151999999,35174.888427999998,8569.3055724999995,747.06969021999998,0]
[2269,"2012-04-10","KW60MN10 ",6860072.0924110394,2489310.202267339,1872078.8607632276,122947.31320456807,494284.02829954319,"Summer",169421.69349000001,71658.199294999999,116588.39885,2237.8692415,56999.462399999997,36666.85514,9372.5522705999992,7467.6597125999997,0]
[2273,"2011-11-23","KW60MN10 ",7130457.9930189848,2489093.7255605841,1809390.146518345,113670.14989100001,566033.42915123922,"Winter",185850.76573000001,68029.545444999996,117661.56485,2258.4682478,52713.102828000003,39733.358996000003,8177.6586034000002,4955.8928413000003,0]
[2277,"2012-03-01","KW60MN15 ",7138361.8585573211,2488390.9063959629,1860045.1775673439,98370.621718725437,529975.10710989358,"Winter",176963.73418,78309.681578000003,115602.74993999999,2218.9500916000002,54765.083473999999,35085.538208999998,8812.5291342,1354.3257784,0]
[2280,"2011-09-22","KW60MN16 ",7042942.3047854295,2488013.2135829274,1838891.0010418661,107082.71937400001,542039.49316706136,"Summer",128480.58888,83846.202332999994,146561.90452000001,2813.1990944999998,51983.509708999998,41864.095939999999,11346.561749,30217.333901999998,0]
[2281,"2011-09-01","KW60MN15 ",8066700.55631008,2487812.2471357002,1812246.9970351076,119704.57900199998,555860.67109859269,"Summer",133157.69722999999,93597.723098000002,132620.75477999999,2545.6041151999998,55950.672292000003,41386.128192999997,10774.327579000001,36727.07836,0]
[2284,"2011-09-01","KW60MN14 ",7977269.8805904305,2487327.6299310401,1813149.5736498446,118324.602232,555853.4540491954,"Summer",131750.38677000001,91613.582907999997,133059.71385,2554.0297648000001,55859.473151999999,42297.166920999996,10445.528584,38494.336607999998,0]
[2287,"2012-03-29","KW60MN08 ",6897632.9414978148,2487216.0837851809,1832754.7451799894,124850.68887289921,529610.64973229251,"Winter",193846.59497000001,63896.521261000002,111724.32597000001,2144.5052430000001,45827.567770000001,36194.556576000003,8875.7698674000003,1354.3257784,0]
[2290,"2011-09-22","KW60MN18 ",6977634.8036737349,2486993.7598144729,1842761.5831172825,98392.122349999991,545840.05434719054,"Summer",159510.15078,73636.177398999993,132667.00141,2546.4918013000001,50433.124331999999,40728.800442,8881.3920557000001,30217.333901999998,0]
[2295,"2011-12-17","KW60MN08 ",7083439.0354183661,2486559.080013765,1791875.1982177184,91474.271819999994,603209.60997604684,"Winter",269158.66331999999,57701.716214,90603.928037999998,1739.1073701,55996.271862000001,26894.795692,7306.4682392000004,816.33821894000005,0]
[2299,"2011-09-01","KW60MN17 ",8053130.4002091959,2486156.5569734061,1796212.4706231966,120390.54580499999,569553.54054520966,"Summer",179674.06513999999,88948.165089999995,125865.85406,2415.9464072999999,51345.115729999998,39007.521731000001,9149.8756823999993,40727.928095000003,0]
[2302,"2011-10-26","KW60MN13 ",6929332.945178194,2485710.150696388,1826808.0199703181,95786.298253000001,563115.83247306978,"Summer",171397.58564999999,77341.353589000006,143432.08548000001,2753.1234282,54263.488205000001,43841.257355000002,10105.109385,19170.103298999999,0]
[2305,"2012-03-02","KW60MN21 ",7142244.0249981573,2485311.388364845,1824912.8146777938,108356.11051976173,552042.46316728939,"Winter",256514.11931000001,67273.762014000007,91317.807925999994,1752.8100185000001,56497.867130999999,30528.060637999999,6961.7693367000002,1354.3257784,3053.2304963000001]
[2306,"2012-01-27","KW60MN15 ",7137431.4801615272,2485289.2803157335,1848118.3566005251,92522.738502276305,544648.18521293183,"Winter",182055.87208999999,76643.117773000005,121343.12281,2329.1343296,57318.659389,35874.865131999999,8567.7074558000004,742.46966563000001,0]
[2309,"2011-12-16","KW60MN15 ",7342174.7652165834,2484874.1906568734,1802012.0093072902,89261.61987000001,593600.56147958315,"Winter",257694.94884,75850.006724000006,125118.16108999999,2401.5947298000001,58002.652937999999,35960.358723999998,8174.0425250999997,816.33821894000005,0]
[2315,"2012-02-16","KW60MN06 ",7084347.9779002247,2483770.7853019098,1807303.4619120911,103660.34619254367,572806.97719727526,"Winter",243465.01712999999,54501.697690000001,91405.780639999997,1754.4986208,56178.670141000002,32666.944635,7903.5646376000004,747.06969021999998,3041.8515585999999]
[2317,"2012-06-21","KW60MN13 ",7689149.4284977298,2483371.8830543766,1770215.7569003394,130044.95784356138,583111.16831047588,"Summer",137802.04538,93107.021829999998,131034.92928,2515.1648079000001,55905.072721999997,43389.142182000003,9797.1536271999994,35687.156904000003,0]
[2320,"2012-02-27","KW60MN15 ",7147247.2538278159,2483236.065186698,1850271.9003019617,97936.706400581519,535027.45848415454,"Winter",157856.77322,67903.099767000007,116726.73993,2240.524645,53898.691644999999,38018.403939000003,8836.9986052000004,747.06969021999998,0]
[2324,"2011-07-12","KW60MN12 ",7757577.6386724478,2482636.6477334872,1770462.8386918474,141881.15257400001,570292.65646763961,"Summer",146898.45175000001,84989.745653999998,126470.48871000001,2427.5521358000001,42134.002606000002,41209.616126000001,10463.588658999999,34650.494296999997,0]
[2327,"2011-11-15","KW60MN12 ",7152713.938140789,2482417.7345124083,1815476.0810176122,108989.00170800001,557952.65178679605,"Winter",170875.29852000001,79032.559309999997,131435.11231,2522.8461662,57227.460249999996,41573.694157999998,10549.216571000001,4955.8928413000003,0]
[2330,"2012-04-12","KW60MN07 ",6769426.4042567685,2482307.4921671292,1843611.9771770057,113988.46120588836,524707.05378423538,"Summer",202809.28972999999,47461.796729000002,91330.455163000006,1753.0527774,54537.085623999999,32786.075340000003,7652.4452950000004,7467.6597125999997,966.43226404999996]
[2331,"2011-12-26","KW60MN09 ",6940623.7959011896,2482044.1594083398,1804374.295241249,98181.745580000003,579488.11858709063,"Winter",282856.72678999999,54712.939130999999,88846.863211000004,1705.3811900000001,56497.867130999999,22358.591635000001,6779.3944119999996,816.33821894000005,0]
[2336,"2011-08-17","KW60MN12 ",7950264.6712245271,2481585.0056433845,1826739.8220341331,133030.99084300001,521814.19276625174,"Summer",172279.33402000001,91495.139104000002,113176.53176,2172.3797717000002,52941.100677000002,38028.855395999999,10676.510639,40096.903860999999,0]
[2339,"2011-07-04","KW60MN19 ",7620828.6573697422,2481417.0293019339,1756221.9028624413,128795.68134000001,596399.44509949279,"Summer",218985.32102,54820.001956,88422.470033000005,1697.2351269999999,54582.685193999998,25726.448307999999,6912.9048837,49604.462334000003,0]
[2342,"2011-08-12","KW60MN21 ",7426055.4301873073,2481306.0399487312,1792119.1120689909,138383.28537699999,550803.64250274014,"Summer",209710.57243999999,69416.120785000006,99596.555093000003,1911.7173697000001,56680.265411,34683.219792000004,7698.1422946000002,48553.054670999998,2188.5725819999998]
[2345,"2011-11-11","KW60MN12 ",7120012.2132325629,2480907.1777608432,1791519.4803306686,111401.79818099999,577985.8992491744,"Winter",262242.25644999999,77026.049222999995,125402.33288,2407.0492976,56315.468850999998,40874.310125000004,6819.3541039000002,4955.8928413000003,0]
[2349,"2011-09-06","KW60MN10 ",7201878.9054881539,2480734.4288295396,1833800.2742060639,116754.02540300001,530180.12922047544,"Summer",111574.31584,73211.878830999995,130327.69103,2501.5896429999998,55950.672292000003,38228.831651,9370.3345442999998,31601.169243,0]
[2352,"2011-08-18","KW60MN20 ",7939245.9345004698,2480267.6152410409,1815059.0041548153,133390.61702500001,531817.99406122556,"Summer",234224.83050000001,78824.727503000002,101058.13932,1939.7719139000001,55129.880033000001,35000.128968999998,7786.0251773,43136.451931000003,0]
[2355,"2012-01-14","KW60MN17 ",7107313.767425281,2480085.4253677353,1836332.5020233565,95240.34499056176,548512.57835381723,"Winter",275302.04199,65614.853013,82530.886652000001,1584.1484618,55403.477453,26837.672963000001,6801.8222206999999,742.46966563000001,3053.2304963000001]
[2357,"2012-01-13","KW60MN23 ",6839636.5977306617,2479689.633514612,1791635.6577624655,98493.770963224903,589560.2047889214,"Winter",302328.92521000002,64926.103755999997,89945.499249,1726.4690840000001,50478.723900999998,31505.516672000002,7343.9698108000002,742.46966563000001,3053.2304963000001]
[2360,"2012-01-26","KW60MN17 ",7482420.4032265171,2479135.9844921795,1817384.7706055737,97080.656416068989,564670.55747053691,"Winter",212688.32660999999,74622.978791000001,115211.90643,2211.4480016000002,55540.276163000002,34366.969988999997,7754.7806382999997,742.46966563000001,3049.4563644999998]
[2364,"2011-11-22","KW60MN21 ",7172575.0164615335,2478659.1810827437,1809063.1923934384,108277.906113,561318.08257630526,"Winter",231210.77621000001,64551.571060000002,106922.46708,2052.3354181,56953.862829999998,36112.32993,6173.5185271999999,4955.8928413000003,3053.2304963000001]
[2367,"2011-07-02","KW60MN16 ",8378095.6487598829,2478373.6201608032,1752552.6817671666,133056.89499600002,592764.04339763673,"Summer",191355.26235,65199.816052000002,103510.99569,1986.8535434999999,54856.282614000003,31086.636193999999,7185.1264789999996,46383.599553,0]
[2370,"2011-09-09","KW60MN10 ",7270672.1264056629,2478009.968144597,1814904.5193213297,110993.094728,552112.35409526725,"Summer",121898.04769000001,80975.152419999999,133280.22459999999,2558.2623834000001,53625.094226000001,41869.901619999997,9995.3472000999991,40840.138991,0]
[2374,"2011-12-18","KW60MN12 ",6975896.8864502804,2477493.5708079194,1779549.2706619357,101733.63521000001,596210.66493598383,"Winter",282494.11777999997,50865.109450999997,89072.016554999995,1709.7029213999999,57090.661540000001,26380.003982999999,6353.4895063000004,816.33821894000005,0]
[2378,"2011-09-20","KW60MN15 ",6902540.5837880829,2477073.3752474058,1822843.8269402084,99427.72103500001,554801.82727219723,"Summer",113177.42436,82880.544850000006,138720.90947000001,2662.6942260000001,56087.471001999998,42782.792103,11348.999554,30217.333901999998,0]
[2381,"2012-02-22","KW60MN07 ",7166484.0110931974,2476797.5384078627,1805770.8566722174,108023.85270082677,563002.82903481869,"Winter",200513.07686999999,61542.665567999997,95270.138443999997,1828.6734747999999,56406.667991000002,35509.294494000002,8468.0384613000006,747.06969021999998,10.672171419]
[2382,"2011-12-25","KW60MN11 ",6617298.5311938515,2476667.8532679314,1766170.2704784859,107654.54809,602843.03469944582,"Winter",312875.55566999997,44925.686303000002,67702.756456999996,1299.5282354000001,55266.678742999997,16395.405938,6253.4582274000004,816.33821894000005,0]
[2385,"2011-10-27","KW60MN21 ",7022906.1142826946,2476329.1455701543,1781115.9540546059,109723.12930099999,585490.06221454858,"Summer",245777.59419999999,67127.872424000001,117259.46683999999,2250.7501321,56634.665841000002,39468.119137000002,7738.4676577,19170.103298999999,3053.2304963000001]
[2389,"2012-02-06","KW60MN15 ",7162041.6641980726,2475732.3754055351,1813791.5413532197,93918.623240609115,568022.21081170603,"Winter",188615.43557,72985.061052000005,115861.71395999999,2223.9208057999999,57181.860679999998,33472.888380999997,9293.5199754999994,747.06969021999998,0]
[2392,"2012-03-06","KW60MN16 ",6978974.5691381665,2475261.531437479,1854219.572397127,98810.846450467274,522231.11258988478,"Winter",173301.30152000001,74374.261906,108277.27165,2078.3403681,56087.471001999998,35026.570763000003,7869.0019757999999,1354.3257784,0]
[2395,"2012-01-29","KW60MN17 ",7054474.3244408024,2475024.8077583089,1841683.401383786,102650.31161793652,530691.09475658659,"Winter",245570.09531999999,51412.272134999999,78377.048913000006,1504.4171523,54081.089925,26244.145259000001,6173.3356922000003,742.46966563000001,2981.7481505000001]
[2399,"2012-03-19","KW60MN16 ",7139212.9423556095,2474384.9935135408,1882666.7466519603,101322.42099678268,490395.82586479804,"Winter",169762.17267999999,67283.449422999998,103711.421,1990.70063,57455.458099000003,32869.087464999997,6832.4759303000001,1354.3257784,0]
[2403,"2012-06-28","KW60MN16 ",8143411.9383651521,2474206.6661158437,1774533.5372415329,135393.68631886638,564279.44255544432,"Summer",151190.21713999999,94505.015104999999,135126.27492,2593.6966056000001,55813.873582,46011.497172000003,9864.1120138000006,25545.041998000001,0]
[2404,"2012-01-06","KW60MN22 ",6944554.1888516834,2474076.3971318509,1807472.6907714591,99532.800791726535,567070.90556866548,"Winter",240171.45725000001,64518.475759000001,97687.17856,1875.0676254,56680.265411,31686.942571,6903.3161829000001,742.46966563000001,3053.2304963000001]
[2407,"2012-02-17","KW60MN14 ",7041148.3657960547,2473217.2091070367,1781975.2151900872,97594.36303918864,593647.63087776105,"Winter",207295.42236999999,80447.851416000005,120118.82577,2305.6344213000002,57045.061970000002,37218.856668,8308.1861492999997,747.06969021999998,0]
[2410,"2011-07-21","KW60MN13 ",8420899.8655581959,2473087.0806108061,1789546.9125134766,127135.70383599999,556404.46426132973,"Summer",157693.35381,90895.647698999994,129651.1786,2488.6042484999998,54309.087775,42052.048949000004,9952.8481279999996,43314.899701000002,0]
[2414,"2011-07-10","KW60MN16 ",7608294.0362567352,2472496.9595636446,1773204.5014227217,130709.90482700001,568582.55331392295,"Summer",225798.44477999999,53514.901119000002,97280.752011999997,1867.2664248999999,52895.501106999996,29368.192502000002,6847.3482357000003,33975.027466,0]
[2417,"2012-01-01","KW60MN21 ",6940389.617980645,2472349.194754682,1801723.4918773714,100457.81121436467,570167.89166294609,"Winter",251044.49199000001,53690.739890999997,75114.105878999995,1441.7862223,55677.074871999997,16734.889941000001,6632.8416821000001,742.46966563000001,3053.2304963000001]
[2420,"2012-04-04","KW60MN22 ",6580293.4910434941,2471985.5448905947,1855276.9190588135,117479.4748748501,499229.15095693106,"Summer",241449.31672,60732.135177999997,83057.007524000001,1594.2471485000001,51025.918740000001,31719.412949000001,6736.3485252999999,7467.6597125999997,3053.2304963000001]
[2425,"2011-11-11","KW60MN19 ",7158829.8039027546,2471547.4166563354,1787019.05140379,115357.51222199999,569170.85303054529,"Winter",261902.03161999999,68283.903810999996,121724.44068,2336.4535786000001,55996.271862000001,37307.150422999999,6577.9098013000003,4955.8928413000003,3053.2304963000001]
[2428,"2012-02-19","KW60MN11 ",6865532.2794038644,2471450.0587774897,1828260.2960346688,110010.54260766211,533179.22013515898,"Winter",255028.47479000001,49012.217669999998,73854.064471000005,1417.6002146000001,46465.961748000002,24791.814998000002,5944.4799457999998,747.06969021999998,0]
[2429,"2011-07-09","KW60MN19 ",7564652.9742234666,2471282.6341770189,1780483.8215574559,141039.70501700003,549759.10760256299,"Summer",186260.06146,59401.311048000003,105187.97129,2019.0424419999999,55449.077022999998,31379.000530000001,6644.4415722000003,38004.977824000001,0]
[2432,"2012-06-15","KW60MN18 ",7438011.7385269646,2471135.4905407475,1807802.2859730807,129892.55561699945,533440.64895066747,"Summer",147619.15479,68433.296228000007,105473.73208,2024.5275097000001,55813.873582,40989.396998999997,7885.3047987999998,31015.617526999999,0]
[2435,"2011-12-23","KW60MN23 ",6961712.0806997186,2470935.8098229971,1774814.9871601916,96377.960099999997,599742.86256280518,"Winter",309280.86910000001,62452.603977999999,85798.488819999999,1646.8688221,56452.267561000001,26860.424176,6604.908496,816.33821894000005,3053.2304963000001]
[2439,"2011-09-19","KW60MN15 ",6951949.8029778656,2470587.1019944386,1829597.2719015789,97841.605975999992,543148.22411685961,"Summer",152046.92108,78378.433422000002,140654.77093999999,2699.8139492999999,56315.468850999998,41936.564349,10148.624211,30217.333901999998,0]
[2441,"2011-08-15","KW60MN13 ",7963962.1368386587,2470164.9943168047,1832375.0811323456,130116.13579100001,507673.77739345899,"Summer",146031.74275999999,81032.947482000003,115826.27353999999,2223.2405405999998,49293.135084000001,36691.740829000002,9898.6882188,43112.167608000003,0]
[2447,"2012-03-09","KW60MN10 ",6923878.7546590921,2469632.9603228355,1844557.8659223977,105601.55871549617,519473.53568494145,"Winter",170261.34432,66744.441258999999,119859.08702000001,2300.6488362,56269.869280999999,36730.819893,8799.0839610000003,1354.3257784,0]
[2450,"2011-10-05","KW60MN21 ",6938157.8573304908,2469446.9786219522,1822879.0452872373,109343.25809100001,537224.67524371506,"Summer",174213.28763000001,59382.81033,117599.95037000001,2257.2855817,56452.267561000001,37987.667109000002,7468.9682787000002,19170.103298999999,3053.2304963000001]
[2453,"2011-12-04","KW60MN12 ",7041291.5739312433,2468823.9613691214,1846744.9920525081,95550.976439999999,526527.99287661363,"Winter",232272.25520000001,50659.567337,89643.883059,1720.6796778999999,56725.864979999998,25719.196298999999,6088.9673126999996,816.33821894000005,0]
[2454,"2012-05-31","KW60MN21 ",7539776.8507030979,2468675.9599849116,1803063.4503365706,132895.7811914217,532716.72845691908,"Summer",141260.78404,61029.621718000002,92785.643372000006,1780.9845524,55996.271862000001,37913.981524000003,6500.9090119000002,30044.368227999999,814.61885877999998]
[2457,"2011-09-13","KW60MN10 ",6820556.0110259885,2468335.7027777019,1808332.3532520605,105703.18154100001,554300.16798464127,"Summer",129532.30658,78325.241848000005,130411.72629999999,2503.2026676,49794.730352999999,41932.213441,11449.538708,25828.589273000001,0]
[2460,"2011-10-18","KW60MN10 ",6886762.6687982297,2467958.5111505184,1814346.641431066,101697.475725,551914.39399445266,"Summer",161770.57225999999,67076.062699999995,133027.77246000001,2553.4166621999998,55357.877883000001,44585.162039000003,10326.076123000001,19170.103298999999,0]
[2466,"2011-07-12","KW60MN18 ",8175155.2206959361,2466941.5624671336,1725415.5291251398,137898.70825599998,603627.32508599397,"Summer",208249.43182,72299.978516000003,112562.25376000001,2160.5889430000002,43593.188843999997,38458.29391,7800.3879132000002,34889.093431000001,0]
[2468,"2012-02-07","KW60MN22 ",7059479.3459332334,2466757.359837018,1782825.0119478302,99873.710911396673,584058.63697779132,"Winter",263875.21055000002,65861.704400999995,98439.679021000004,1889.5115808,56178.670141000002,31313.357896000001,7420.2832750999996,747.06969021999998,3053.2304963000001]
[2472,"2011-07-08","KW60MN13 ",7759666.3740126789,2466249.3631855883,1779470.2223976543,144054.76645600001,542724.37433193391,"Summer",145552.52823,75822.981920999999,115426.11440000001,2215.5596406999998,56133.070571999997,40400.120916,7933.7561793000004,39312.828839000002,0]
[2475,"2011-08-29","KW60MN22 ",7421730.1553285234,2465898.0360102626,1743484.024956987,134212.773116,588201.23793727567,"Summer",210775.44297,67184.402933000005,98379.456372000001,1888.3556303,56589.066271000003,36171.245785999999,8551.1913237000008,44829.006603000002,3053.2304963000001]
[2478,"2011-07-09","KW60MN17 ",8033116.4323597355,2465772.3734221961,1771699.1114804521,141304.55269800001,552768.70924374391,"Summer",195937.90560999999,62618.851748000001,96677.440516999995,1855.6860939999999,55631.475301999999,31526.860311,6883.6715352000001,37645.425825999999,0]
[2479,"2012-05-16","KW60MN13 ",7630436.9907637807,2465734.1930121621,1787521.2118529461,131886.40223095979,546326.57892825606,"Summer",125556.67546,91860.554805000007,127795.9292,2452.9934535000002,41814.805616999998,39936.660128000003,10903.868151000001,21356.368259999999,0]
[2483,"2011-09-01","KW60MN21 ",7526455.6861499147,2465276.6829545717,1780321.2162607568,125330.33392199999,559625.13277181506,"Summer",192258.70600000001,71215.944715000005,110165.68639,2114.5877589000002,55631.475301999999,36701.905860999999,8084.9204257000001,46064.229634000003,3053.2304963000001]
[2486,"2011-11-04","KW60MN13 ",7006750.6146290526,2465114.0452728514,1840423.2041869659,105617.53359200001,519073.30749388563,"Winter",146550.64895,77689.777359,132649.23791,2546.1508377999999,50478.723900999998,42192.751619000002,8084.9610550999996,4955.8928413000003,0]
[2490,"2012-03-19","KW60MN22 ",6977829.3567320881,2464632.9314826862,1839422.3765097994,107777.10083246844,517433.45414041856,"Winter",185208.44974000001,55459.322769999999,84994.140207999997,1631.4296615000001,57501.057669000002,32099.075488999999,6374.7627437000001,1354.3257784,3053.2304963000001]
[2493,"2011-12-29","KW60MN09 ",7061263.8075743308,2463758.6794763003,1807996.5801035117,92233.20392,563528.89545278833,"Winter",216158.22557000001,66029.719654,102210.40287999999,1961.8891673999999,36844.452494999998,33849.070935999996,6997.7608246,816.33821894000005,0]
[2497,"2012-04-03","KW60MN07 ",6767923.2536506569,2463027.22653904,1821221.9224573197,101753.83507423147,540051.46900748869,"Summer",193675.93672999999,56225.950508000002,90637.175478999998,1739.7455418,54719.483904000001,33381.836877000002,7318.4575011999996,7467.6597125999997,1831.5142378999999]
[2500,"2012-06-15","KW60MN17 ",7639861.2217620295,2462467.151201562,1792136.4796570709,132620.89486535572,537709.77667913528,"Summer",141072.17181999999,77236.874502000006,110819.12844,2127.1303263999998,55540.276163000002,41222.133740999998,8180.7871201999997,30604.977795999999,0]
[2503,"2011-07-05","KW60MN23 ",7460306.0403902587,2461737.7020026799,1740567.5117261829,135439.096487,585731.09378949681,"Summer",198381.93679000001,58800.355845999999,96713.525005999996,1856.3787218,55221.079172999998,35417.189484000002,7175.1314767000003,45685.926361999998,3053.2304963000001]
[2504,"2011-07-25","KW60MN21 ",8079007.035789134,2461537.4835760836,1786379.7446968807,129513.19386699998,545644.54501220293,"Summer",189714.57128999999,60836.562848000001,86041.928818999993,1651.5415588000001,56497.867130999999,34936.554655,7384.2545432999996,42260.410176999998,967.28038360000005]
[2508,"2012-01-21","KW60MN08 ",6887729.5857790709,2461294.8433470903,1753995.0301523823,93426.527620032459,613873.28557467542,"Winter",290137.70341000002,55220.357566999999,91930.218252000006,1764.5649980000001,56862.663690000001,25960.971325999999,6959.1216093000003,742.46966563000001,0]
[2512,"2012-04-12","KW60MN11 ",6861572.0642576003,2460524.3355643386,1858171.4507801901,118927.70646581151,483425.17831833707,"Summer",125192.39187000001,70973.385095999998,118202.12897999999,2268.8441671999999,52804.301966999999,35935.130555999996,9078.4716879000007,7467.6597125999997,0]
[2515,"2012-06-16","KW60MN19 ",7433869.8525731675,2460299.5824068035,1775360.3924360485,125480.90253520453,559458.28743555059,"Summer",160542.50489000001,66542.331273999996,102209.35415,1961.8690376,54810.683043999998,34006.934243000003,6855.8805536,33639.104227999997,0]
[2518,"2011-07-28","KW60MN23 ",7454350.9283917248,2459937.7214691378,1764939.2085040282,134268.81181499999,560729.70115010988,"Summer",186715.54577999999,67375.938553999993,92990.037821000005,1784.9078248000001,55768.274012000002,37720.591393000002,7445.2606216000004,42958.605192000003,3053.2304963000001]
[2522,"2011-07-24","KW60MN13 ",8032026.0639653942,2459563.0729751536,1765539.3781431899,129434.051227,564589.64360496355,"Summer",228117.91091999999,63306.874731000004,92046.811310000005,1766.8029566,54582.685193999998,29220.774917999999,6811.0655655999999,39933.662639000002,0]
[2525,"2011-08-30","KW60MN18 ",8455822.1590092685,2458828.1552479747,1765919.2853279011,131335.16659099999,561573.7033290735,"Summer",244143.09270000001,92375.692318999994,123402.41196,2368.6615886,54217.888635000003,38058.294197000003,8764.5196053,32049.434464000002,0]
[2529,"2012-01-03","KW60MN14 ",7121950.1004293505,2457833.7301666648,1817163.723080023,91622.307878696418,549047.69920794561,"Winter",171229.96919999999,71115.053616000005,113360.93103000001,2175.9192444,56725.864979999998,36128.309091000003,8968.0763499999994,742.46966563000001,0]
[2530,"2011-11-30","KW60MN13 ",7166082.6364608156,2457390.9470987255,1836925.8669318729,101176.17523399999,519288.90493285237,"Winter",182860.28266,73731.255088000005,133048.75941,2553.8194985,52758.702397000001,38713.298186,9913.1119003999993,4955.8928413000003,0]
[2533,"2012-05-31","KW60MN22 ",7244674.0817541722,2457085.5404323102,1791916.054509524,131892.17405117222,533277.31187161396,"Summer",172949.9376,59144.953820000002,87272.509458999994,1675.1620783999999,56087.471001999998,38059.514478999998,6387.7609859000004,31764.948273000002,3053.2304963000001]
[2537,"2012-03-22","KW60MN13 ",6922877.9659408592,2456568.2310835901,1846426.0777453191,99913.499573867812,510228.65376440313,"Winter",145329.11029000001,71894.485958999998,122440.86675,2350.2051001999998,54400.286914999997,36919.574302000001,8130.3076205999996,1354.3257784,0]
[2540,"2011-07-26","KW60MN11 ",8273141.3030089149,2456288.823128284,1781594.1878369744,124845.69590699999,549848.93938430946,"Summer",145055.55048999999,82223.316227000003,116527.66074000001,2236.7033968999999,55038.680892999997,40823.557495000001,10465.924889,36378.278480000001,0]
[2543,"2011-10-04","KW60MN08 ",6921754.3231995367,2455704.263046091,1831600.2541102562,107153.91374600001,516950.09518983477,"Summer",173727.56557999999,56558.286976000003,110603.70307,2122.9953197,54354.687344999998,40630.388568000002,8177.9633286999997,19170.103298999999,153.35415584]
[2547,"2012-05-14","KW60MN21 ",7341044.4590289937,2455439.8431029045,1732363.7597130775,137250.28832817706,585825.79506164987,"Summer",193962.77653999999,65098.388282,103316.65727,1983.1232927999999,56361.068421000004,35985.086114999998,7466.5964974999997,21356.368259999999,1730.5880082000001]
[2550,"2012-01-18","KW60MN23 ",6742323.7844220558,2455156.9373406204,1782218.1784466982,96207.295162365597,576731.46373155667,"Winter",284752.19696999999,63247.574095999997,96259.814020999998,1847.6699149000001,48837.139384000002,33414.069200999998,7646.5623973000002,742.46966563000001,3053.2304963000001]
[2554,"2011-08-15","KW60MN20 ",7704508.4078716449,2454952.214315997,1820009.5336579336,134101.61640799997,500841.06425006327,"Summer",198443.54629999999,56818.862058999999,102316.61207,1963.9278116999999,46329.163038999999,32808.157867000002,7535.2968993000004,45428.017376000003,0]
[2555,"2012-02-14","KW60MN23 ",6690946.059489958,2454865.4190551946,1779020.114122693,98326.638443923235,577518.66648857854,"Winter",253825.71681000001,63448.763383999998,92456.074101999999,1774.6585977,56771.464549999997,33539.665581000001,6647.4092608999999,747.06969021999998,3053.2304963000001]
[2558,"2012-02-22","KW60MN14 ",7000123.4039086029,2454368.8794999882,1820422.054513304,92873.940067293428,541072.88491939066,"Winter",152894.77520999999,74051.508405,115811.81488999999,2222.9630124999999,56634.665841000002,37116.187106999998,8887.0176307000002,747.06969021999998,0]
[2562,"2012-03-05","KW60MN14 ",6850625.5828963341,2453710.0336742299,1848456.2636208769,96707.510709127819,508546.25934422523,"Winter",143311.83069,64441.712398999996,120327.87649,2309.6470688999998,55950.672292000003,36921.648730000001,8497.9083489999994,1354.3257784,0]
[2565,"2012-01-10","KW60MN15 ",7126192.5368418237,2453625.9686100418,1842330.6849219541,89824.221510180883,521471.06217790692,"Winter",156719.94897,70848.113989999998,119071.91881,2285.5394468999998,56133.070571999997,36600.864164999999,9165.5385817999995,742.46966563000001,0]
[2568,"2011-09-01","KW60MN13 ",7807117.3005108507,2453314.4491972821,1799656.1743991771,118770.581592,534887.6932061048,"Summer",116347.71223,87994.621287000002,125663.14195,2412.0554268000001,54081.089925,41880.289241999999,10312.525989,38346.185655000001,0]
[2571,"2011-12-01","KW60MN14 ",7095928.6153049478,2453174.4546871581,1835167.288907215,85067.939326000007,532939.22645394306,"Winter",170399.29535999999,78011.631051000004,133557.08084000001,2563.5765317999999,57683.455949000003,37940.370066000003,9935.1537239000008,816.33821894000005,0]
[2576,"2011-08-31","KW60MN13 ",8363636.3430157602,2452731.9476609505,1795358.062812299,128802.37223099999,528571.51261765126,"Summer",126631.78422,82525.793493999998,119460.14448,2292.9912884999999,56452.267561000001,40549.664518999998,10283.211380000001,35203.685595000003,0]
[2577,"2012-02-09","KW60MN17 ",7241309.3084033895,2452713.7284839535,1747110.1419212746,89825.427543284619,615778.15901939454,"Winter",230195.80377,84228.524804999994,121590.1614,2333.8761396999998,55768.274012000002,33818.563197000003,8169.2651033000002,747.06969021999998,2290.3469318000002]
[2580,"2011-10-05","KW60MN19 ",7077116.0105224615,2452277.9000909482,1794273.1216343599,107380.866591,550623.91186558816,"Summer",158404.17898,63168.970948000002,126260.88039999999,2423.5287852000001,56133.070571999997,38076.195167999998,7519.4105344,19170.103298999999,1323.4906082]
[2583,"2012-02-24","KW60MN12 ",7091289.7027560445,2451988.6144644362,1812456.4981030326,101448.37117306973,538083.74518833379,"Winter",166792.61120000001,74919.441797000007,119281.47936,2289.5618804999999,56908.26326,37276.362191,8976.2920933000005,747.06969021999998,0]
[2587,"2011-10-10","KW60MN19 ",7081339.7782799061,2451737.7075934461,1823626.2798659718,103508.562739,524602.86498847452,"Summer",184064.31247,53366.180345000001,125061.46984999999,2400.5065635000001,48061.946695999999,39941.915838000001,7324.3454782999997,19170.103298999999,1832.3623579]
[2590,"2011-10-04","KW60MN09 ",6891636.6084341444,2451698.8270376544,1838229.2715247786,109480.20694100001,503989.34857187595,"Summer",124095.03671,61646.201462999998,119545.08172,2294.6216260000001,54901.882184000002,41523.730028999998,9332.7923422999993,19170.103298999999,0]
[2592,"2012-05-31","KW60MN12 ",7427928.0600926196,2451489.579951908,1772704.5799754807,130381.27298037356,548403.72699605383,"Summer",130924.43988999999,84315.891451000003,125382.66416,2406.6717641,49110.736804,43326.287616000001,9007.0372193000003,27846.108015999998,0]
[2598,"2011-08-28","KW60MN22 ",7189387.9760206267,2450632.5190436775,1715455.730986461,120235.688265,614941.09979221656,"Summer",247613.16123999999,65943.803950000001,87498.225229999996,1679.4946054,55631.475301999999,29096.672965999998,7447.0483456000002,43302.164550000001,3053.2304963000001]
[2601,"2012-06-15","KW60MN19 ",7309671.8896846222,2450382.2231438253,1789486.0114390876,131757.07298850609,529139.13871623145,"Summer",154789.52468999999,67253.691449999998,103381.78260000001,1984.3733483999999,55768.274012000002,40731.403717000001,7529.7712068000001,30869.977542000001,0]
[2602,"2012-03-02","KW60MN06 ",6966162.8521972401,2450352.8989086328,1798836.1002893371,106403.91698110715,545112.88163818873,"Winter",232843.42296,56419.359660000002,82046.128094999993,1574.8437087,54810.683043999998,31730.727432,7882.2609284999999,1354.3257784,1984.1757625]
[2605,"2012-03-29","KW60MN12 ",6895759.0112360241,2450002.8649386223,1819262.2790192999,112292.46414728709,518448.12177203549,"Winter",151945.33374999999,78380.719901999997,110131.83048,2113.9379076999999,46830.758307999997,37871.169214000001,8717.1652369999993,1354.3257784,0]
[2608,"2011-12-26","KW60MN14 ",6892941.5537991319,2449647.0959986919,1805810.3405538772,96843.464739999996,546993.2907048146,"Winter",249044.59406,59273.602423999997,84005.787790999995,1612.458619,55768.274012000002,24023.313526000002,6322.1840227000002,816.33821894000005,0]
[2613,"2011-09-15","KW60MN14 ",6961370.3943351787,2448629.7501746542,1791604.0290100896,99696.703975000011,557329.01718956465,"Summer",124057.16800999999,87454.628152999998,137917.93523,2647.2814459000001,48289.944544999998,42029.789121000002,11085.147757999999,21600.90868,0]
[2616,"2011-08-06","KW60MN19 ",7613346.2204926237,2448113.8556420356,1758858.9896430154,123905.33578000001,565349.53021902021,"Summer",249864.04401000001,80286.144467000006,109275.39017,2097.4988669999998,54172.289064999997,28837.070854000001,7719.6559273000003,31471.794771000001,0]
[2620,"2012-02-26","KW60MN14 ",6751635.7464918187,2447459.7325938488,1801516.9254441382,112769.33188009117,533173.47526961926,"Winter",236435.08893999999,46173.969014000002,83577.764909000005,1604.2428852,55038.680892999997,26717.652773999998,5691.0514595000004,747.06969021999998,0]
[2623,"2011-12-13","KW60MN04 ",6369905.8124929909,2447141.7195794727,1763150.5994109903,93553.279551,590437.84061748243,"Winter",296965.94073999999,58335.798853,101309.11925,1944.5893765999999,57273.059820000002,31111.002661999999,7765.2428868999996,816.33821894000005,3053.2304963000001]
[2626,"2011-09-21","KW60MN19 ",6923242.7089375034,2446749.3807274769,1798975.0618263921,109369.537,538404.78190108493,"Summer",172826.93054999999,64479.269789999998,130008.86768,2495.4699520999998,52165.907987999999,37870.125056999997,8610.2268432000001,30217.333901999998,51.466723322]
[2627,"2012-05-10","KW60MN08 ",6778697.4258565484,2446332.0558117293,1799883.295798996,124306.19330815684,522142.56670457643,"Summer",172790.71522000001,53039.978647000004,96407.582454000003,1850.5062728,55950.672292000003,33612.653896999997,8597.8905326000004,21356.368259999999,0]
[2630,"2011-07-08","KW60MN20 ",7704785.8589170715,2446044.3088749219,1760239.997276553,143199.10620100002,542605.20539736911,"Summer",180879.64233999999,62500.256905000002,93531.551231000005,1795.3019654,55768.274012000002,35469.458001999999,6543.0288699000002,36127.940874,0]
[2634,"2012-05-16","KW60MN19 ",7227846.2499097269,2445863.5291356202,1760550.23915693,129994.11102246506,555319.17895622528,"Summer",160788.12684000001,65537.816497000007,105212.50997,2019.5134525000001,53488.295515999998,35289.204265,7576.1504531999999,21356.368259999999,0]
[2638,"2012-02-17","KW60MN17 ",7041459.3849772681,2445380.7004075237,1755851.2894084724,97486.762594918662,592042.64840413234,"Winter",221953.38810000001,76590.850109999999,111763.27668,2145.2528867000001,56087.471001999998,33786.117185000003,7512.7607434000001,747.06969021999998,1679.7008333000001]
[2641,"2011-08-25","KW60MN09 ",7707073.5710401842,2444255.2904265937,1788137.9875539453,129943.608356,526173.69451664854,"Summer",148477.54389999999,73373.209787999993,120498.26127,2312.9175389000002,49156.336373999999,38739.145757999999,11358.486679,47231.206961999997,0]
[2645,"2012-06-20","KW60MN17 ",7597919.1237462014,2443602.6486329795,1758446.3367901032,127841.56396029388,557314.74788258236,"Summer",139590.56534999999,83429.232388999997,115402.374,2215.1039529999998,55312.278313000003,40650.776890000001,8408.0515219000008,37213.374949999998,0]
[2648,"2011-08-31","KW60MN12 ",8186140.7469415236,2443353.6607866525,1787287.4189398261,131551.82490199999,524514.4169448266,"Summer",107749.48123999999,85236.441181999995,123303.4461,2366.7619771999998,56133.070571999997,39822.016733999997,10190.249737,35084.548124000001,0]
[2651,"2011-07-23","KW60MN16 ",8152541.8120380109,2442992.9602666507,1751680.5906824684,131343.14810499997,559969.22147918225,"Summer",170587.27166999999,71189.369816000006,110355.84921,2118.2378606000002,52074.708849000002,33285.084716999998,6967.0851069999999,42980.280497,0]
[2652,"2011-07-09","KW60MN16 ",7983685.0018704813,2442744.6098377402,1754900.1410267609,143026.70605199999,544817.76275897934,"Summer",154568.25826,64413.104895999997,94821.831709000006,1820.0684002999999,55540.276163000002,31712.774745999999,6997.0904282000001,37359.333417000002,0]
[2655,"2011-07-12","KW60MN11 ",7599862.2845463911,2442185.1433266108,1753544.3890455775,136087.318791,552553.43549003347,"Summer",139789.77614999999,82397.247724999994,124041.90715,2380.9364516000001,42316.400886000003,41156.733508999998,10379.078073999999,34622.318118000003,0]
[2659,"2011-07-21","KW60MN11 ",7986511.9093481852,2441799.2132134354,1772658.1862755741,127539.384173,541601.64276486123,"Summer",148046.01235999999,88079.873382000005,127236.99712,2442.2649683,52986.700247000001,40515.893192000003,10102.651265,42369.051589000002,0]
[2663,"2012-03-11","KW60MN21 ",6658224.3617837569,2440986.690467386,1803952.3029458267,106101.22172521292,530933.1657963465,"Winter",252276.63982000001,50859.063054999999,70894.164934999993,1360.7860874,55905.072721999997,26244.793764999999,5969.0052831000003,1354.3257784,3053.2304963000001]
[2666,"2011-10-14","KW60MN10 ",6792657.145139873,2439987.9841958438,1816264.2481776201,99387.415955000004,524336.32006322348,"Summer",171063.11585,58825.965057000001,127488.04008999999,2447.0836411,52621.903687999999,44204.403794999998,8023.5893056000004,19170.103298999999,0]
[2670,"2012-02-01","KW60MN13 ",7081924.5856764549,2438988.6347290142,1800571.1175819328,106982.47467496105,531435.04247212026,"Winter",198299.72365,83041.104542000001,122934.35715,2359.6774575999998,42772.396585000002,36275.904878000001,9208.9315170999998,747.06969021999998,0]
[2673,"2011-10-25","KW60MN13 ",6829373.3068924081,2438685.828725507,1815696.3067531139,96996.172874000011,525993.34909839323,"Summer",125940.97976,66497.797149000005,140611.5196,2698.9837564999998,55996.271862000001,45850.594212999997,9609.6051377999993,19170.103298999999,0]
[2676,"2012-03-13","KW60MN16 ",6902512.5783505626,2437851.4721700936,1824524.2935649699,102893.74881262284,510433.4297925008,"Winter",183461.19002000001,69648.650745000006,103049.44702000001,1977.9942954000001,56771.464549999997,35230.725751999998,7400.0410259,1354.3257784,0]
[2680,"2011-10-24","KW60MN21 ",6854981.6396591235,2437359.2862387169,1776876.699071585,100870.498121,559612.08904613217,"Summer",231967.91714999999,51892.525976999998,119732.21941000001,2298.2136614999999,56041.871432,42829.906304999997,7428.8460659000002,19170.103298999999,3053.2304963000001]
[2681,"2011-07-18","KW60MN18 ",8723456.3117620479,2437309.1078551668,1691441.9116791347,124059.899126,621807.29705003207,"Summer",196107.83254999999,74516.034868999996,106131.40093,2037.1512092,48016.347126000001,37209.465437999999,8372.1548382000001,43879.910019000003,0]
[2685,"2011-12-03","KW60MN13 ",6911190.1060905792,2437070.0777230193,1814669.4640402959,88570.467799999984,533830.1458827235,"Winter",263628.96328000003,65386.654991000003,91081.540867999996,1748.2749636999999,56817.064120000003,27664.236429,6286.7342699000001,816.33821894000005,0]
[2688,"2011-07-21","KW60MN20 ",8257505.7683233647,2436634.878351423,1796905.4315073702,133827.84469599999,505901.60214805289,"Summer",170827.61553000001,65917.172812999997,101198.68313999999,1942.4695981,54582.685193999998,36285.622912999999,6846.1090179000003,47268.108109000001,0]
[2691,"2012-06-15","KW60MN16 ",7691731.1485902593,2436076.4436558574,1787257.1134249279,130024.31987009368,518795.0103608357,"Summer",119982.42962,82026.605097000007,119623.05214,2296.118238,51755.511858999998,43378.989947000002,8882.3874928000005,30036.876501999999,0]
[2695,"2012-05-15","KW60MN22 ",7216947.2418826995,2435991.4422594816,1761865.9308034501,136159.24465657215,537966.26679945958,"Summer",174662.55058000001,68025.149233999997,95436.246467999998,1831.8618541000001,46785.158737999998,35096.205167,7092.5711363,21356.368259999999,3053.2304963000001]
[2698,"2011-11-03","KW60MN18 ",7149672.6995719457,2435778.6247664653,1802063.4436478822,108258.464745,525456.71637358295,"Winter",237759.73052000001,70736.245219999997,130514.84192000001,2505.1819319000001,55540.276163000002,40525.533059000001,7625.6175860000003,4955.8928413000003,3053.2304963000001]
[2701,"2012-06-29","KW60MN18 ",8182530.5968891615,2435358.9809015696,1710811.7557799439,126319.90871399333,598227.3164076322,"Summer",180867.17842000001,81452.462599999999,127201.54131,2441.5844078,55312.278313000003,41982.707657999999,8465.7259321000001,35815.154820000003,0]
[2703,"2012-02-24","KW60MN19 ",7125557.4580661366,2435212.3054549368,1790641.9447380854,106001.80963237275,538568.55108447885,"Winter",184102.55213,73331.886054000002,96319.368602000002,1848.813042,55905.072721999997,33239.310969999999,7127.3572635999999,747.06969021999998,3053.2304963000001]
[2706,"2011-07-02","KW60MN15 ",8227833.8051009756,2434947.1546039861,1721997.9963799173,130399.30558500001,582549.85263906897,"Summer",185373.89348,58628.948634,101790.62026,1953.8316024000001,55175.479603,30637.29639,7012.3470260000004,46006.072712000001,0]
[2710,"2011-09-12","KW60MN10 ",6800753.1403608955,2434392.0175390006,1788348.2937678944,103365.873874,542677.84989710629,"Summer",122196.78969999999,76171.789715999999,133931.34299999999,2570.7603493000001,55038.680892999997,40776.20779,11245.738182999999,25436.139792000002,0]
[2713,"2011-11-25","KW60MN18 ",7097349.0651128292,2433992.8625384499,1785955.1109152506,102104.06733200001,545933.6842911992,"Winter",267928.74118999997,73347.597364000001,88305.209480999998,1694.9843561,51801.111428999997,21002.26888,6513.4501655000004,4955.8928413000003,3053.2304963000001]
[2716,"2011-12-07","KW60MN23 ",6775988.9075085875,2433711.5216219369,1764285.7895630058,91317.259850000002,578108.47220893123,"Winter",320981.29213000002,68817.628809999995,106015.72076,2034.9307729,57090.661540000001,33049.278188999997,7487.6784350999997,816.33821894000005,3053.2304963000001]
[2720,"2011-07-14","KW60MN17 ",8449740.1098679975,2433181.412291606,1743757.8640389307,136259.35772599999,553164.1905266752,"Summer",180715.00409,76606.420020999998,111915.51317000001,2148.1750072999998,55950.672292000003,38943.508200999997,8328.0102466000008,37558.157780000001,0]
[2722,"2011-08-10","KW60MN20 ",7737273.4487978332,2433070.1268081954,1790678.4080828978,116095.185359,526296.53336629772,"Summer",201943.83137,70719.468599999993,108929.51525,2090.8599316999998,55996.271862000001,37350.094573000002,7866.8384231,47758.206000999999,0]
[2727,"2011-11-14","KW60MN21 ",7104121.9593051579,2432506.5041595683,1725562.1342074673,111240.307822,595704.06213010114,"Winter",255012.34375999999,59593.979464999997,111648.65131,2143.0526970000001,58139.451648000002,37047.865299999998,7298.4031664000004,4955.8928413000003,3053.2304963000001]
[2728,"2011-12-17","KW60MN22 ",7168020.149018147,2432502.1459412971,1739298.7528523109,91843.581330000001,601359.81175898633,"Winter",299295.57092000003,66231.856954000003,91987.966937999998,1765.6734617,57090.661540000001,26495.988912000001,6998.9594119000003,816.33821894000005,3053.2304963000001]
[2731,"2011-10-28","KW60MN13 ",6888927.0839633988,2432294.8031417881,1775812.8702863622,96696.328603000002,559785.60425242595,"Summer",163012.12103000001,70135.217711999998,136888.67131000001,2627.5251229,56497.867130999999,43308.944759999998,9150.2616687999998,19170.103298999999,0]
[2735,"2012-02-25","KW60MN14 ",6810541.851341174,2432009.3081173343,1791413.6815381944,100186.07420781403,540409.55237132602,"Winter",213750.90784999999,63703.316172999999,79640.152430999995,1528.661936,55905.072721999997,27562.186025999999,6043.8848430999997,747.06969021999998,0]
[2738,"2012-02-06","KW60MN16 ",7132701.3409107076,2431862.1825471031,1779666.9822699877,88288.361160084096,563906.83911703143,"Winter",196456.90718000001,69341.981333000003,109503.50572,2101.8774569000002,57318.659389,31864.950766000002,8907.1853910000009,747.06969021999998,0]
[2743,"2012-05-30","KW60MN16 ",7530315.7171739787,2431264.4476016695,1756170.2026861913,119094.71952946465,555999.52538601356,"Summer",126467.47453000001,83482.451279000001,109876.2579,2109.0322907999998,56862.663690000001,41114.454710999998,8317.7765428999992,25549.079464999999,0]
[2746,"2012-06-16","KW60MN20 ",7269972.176404546,2430930.9042268973,1755161.7232587936,124808.71862247662,550960.4623456269,"Summer",174680.92851,61937.080832,101968.98603,1957.2552642999999,55084.280463000003,33473.512558000002,6664.6347260000002,34600.128646999998,0]
[2749,"2012-06-01","KW60MN12 ",7340187.2293502782,2430833.1331956186,1753877.8819503747,134012.01330014368,542943.23794510041,"Summer",116544.86691,82887.386612999995,125040.25463,2400.0993454999998,56862.663690000001,43957.396638999999,9317.1514509000008,28977.605650000001,0]
[2750,"2012-04-04","KW60MN19 ",6655515.8841335466,2430824.1395338289,1839359.9007984432,113016.65696583019,478447.58176955563,"Summer",169126.39601,52879.917064000001,89307.566628999994,1714.2242140000001,49749.130783000001,31846.414220999999,6518.1530984000001,7467.6597125999997,0]
[2753,"2012-04-19","KW60MN10 ",6803316.468988088,2430359.7672334141,1842219.2833028813,105168.97736641494,482971.50656411808,"Summer",129348.70749,71226.493369999997,113659.59225,2181.6519309999999,34929.270558999997,37135.831895000003,9228.0818323000003,7467.6597125999997,0]
[2756,"2012-02-19","KW60MN21 ",7054540.24579411,2430195.4231879385,1765162.6570070272,115044.80873387314,549987.9574470385,"Winter",229818.44154,59527.631395999997,76454.829247000001,1467.5208889999999,55266.678742999997,25874.628639999999,6513.1437474000004,747.06969021999998,3053.2304963000001]
[2760,"2011-10-19","KW60MN09 ",6734274.1597098634,2429829.8937829616,1786929.7124699384,92868.735509999999,550031.44580302318,"Summer",168914.90147000001,57571.438312999999,130131.90532999999,2497.8316120999998,45417.17164,42726.420609000001,10080.629757000001,19170.103298999999,0]
[2764,"2011-08-15","KW60MN11 ",7613476.8499585427,2429450.6634195945,1791295.4585612321,131641.20196000001,506514.00289836235,"Summer",160354.20001999999,76852.394094999996,114669.20478,2201.0310533000002,55585.875732,35656.140564000001,9145.7517284999994,43740.716077999998,0]
[2767,"2012-01-08","KW60MN13 ",6809155.9431459904,2428608.9520475855,1804612.2158114973,102494.55515833,521502.18107775855,"Winter",271710.03685999999,44716.585121999997,86451.111575999996,1659.3956636,55494.676592999997,26872.166207999999,5677.2423079,742.46966563000001,0]
[2771,"2012-03-08","KW60MN12 ",6856446.2635500599,2427885.8780094176,1824087.7420441289,96410.589423404686,507387.54654188378,"Winter",162058.97005999999,79431.439876999997,129231.50163,2480.5487112000001,56680.265411,35591.333619999998,8930.7610000000004,1354.3257784,0]
[2774,"2011-07-09","KW60MN20 ",7425846.5009305347,2427501.2383324145,1741047.4612096606,139018.83361599999,547434.943506754,"Summer",183766.38656000001,63871.423013,98631.362848000004,1893.1908777000001,55449.077022999998,30853.028229,6402.6925431,37431.892184999997,0]
[2775,"2011-09-01","KW60MN19 ",7692126.813042012,2427387.000935134,1751222.6721973484,120851.39334799998,555312.93538978568,"Summer",181836.69357999999,75283.575270000001,118520.51276,2274.9554210000001,54582.685193999998,37499.578053999998,7800.5910635,42903.644177000002,0]
[2778,"2012-01-12","KW60MN04 ",6705179.2328088358,2427102.0985909984,1731234.7394381345,92060.692943660091,603806.66620920389,"Winter",280564.15983000002,56946.967563999999,95711.142710999993,1837.1383811999999,57273.059820000002,31827.400293999999,7585.9016748000004,742.46966563000001,3053.2304963000001]
[2781,"2012-05-31","KW60MN11 ",7358434.9088559439,2426635.569996763,1754201.3871428582,131962.64506127985,540471.53779262467,"Summer",133570.78724999999,78448.755113000007,124649.38413999999,2392.5967375,49977.128632,43353.954759,8931.0030869000002,27814.420338,0]
[2785,"2011-12-30","KW60MN09 ",6930928.2239630688,2426340.433098299,1743152.6624517501,101475.54161700001,581712.22902954882,"Winter",226575.27786999999,62148.296563999997,100965.26461,1937.9892198,55677.074871999997,30386.443788,6752.3550879000004,816.33821894000005,0]
[2789,"2011-09-08","KW60MN09 ",7052753.7220022185,2426045.2000404089,1805714.9493289243,108695.39979,511634.85092148458,"Summer",125678.65445,70550.699756999995,127687.04395000001,2450.9034433000002,46192.364329000004,39794.027241000003,9725.7259307999993,46304.499331999999,0]
[2793,"2012-02-22","KW60MN15 ",6946312.5058801882,2425640.630795449,1794153.1344468805,92566.000713092129,538921.4956354762,"Winter",156548.07190000001,73838.133130999995,115619.82321,2219.2778065000002,56634.665841000002,36885.284951000001,8717.2397259000008,747.06969021999998,0]
[2796,"2011-07-14","KW60MN16 ",8383297.2292082999,2425226.099286708,1742717.5116195525,131591.48463299999,550917.10303415556,"Summer",177219.99711,81063.165001000001,115052.90165,2208.3959662000002,55677.074871999997,40126.691993,9446.2315505000006,37162.896365000001,0]
[2799,"2012-03-06","KW60MN23 ",6479494.8190305037,2425047.0453153751,1782318.3983754665,102042.54110421991,540686.10583568877,"Winter",279889.38042,60313.659660999998,87948.908209000001,1688.1452909,54126.689494999999,33025.719379000002,6567.4086160999996,1354.3257784,3053.2304963000001]
[2800,"2011-10-04","KW60MN11 ",7050501.6879201476,2424984.9059272273,1807792.3445306816,106298.80760600002,510893.75379054563,"Summer",114733.74017999999,69402.204272000003,128352.88808999999,2463.684064,55221.079172999998,42479.844884999999,9813.4056631999993,19170.103298999999,0]
[2803,"2011-10-04","KW60MN21 ",6963936.3528549457,2424827.0364847342,1793637.2302045394,114216.551043,516973.25523719471,"Summer",183316.69966000001,57703.409783000003,111136.07023,2133.2139013999999,50478.723900999998,38516.725340999998,7405.4431353,19170.103298999999,3053.2304963000001]
[2806,"2011-11-17","KW60MN13 ",7172879.159962358,2424580.7302807369,1767401.6998415054,101931.11194399999,555247.91849523166,"Winter",168704.01104000001,73957.794890999998,136441.62538000001,2618.9442491999998,56589.066271000003,40145.202598000003,10201.646476,4955.8928413000003,0]
[2811,"2012-02-17","KW60MN15 ",6993676.4886441343,2423548.5954481252,1747296.697914883,92662.426245859286,583589.47128738265,"Winter",214577.29986999999,76427.293732000006,114520.64576,2198.1795203000001,56452.267561000001,36285.006767999999,8379.2854184999997,747.06969021999998,0]
[2814,"2011-08-16","KW60MN12 ",7512988.2730133049,2423406.7856855891,1797132.4914799607,129119.71368299998,497154.58052262844,"Summer",151082.56742000001,86377.076191,111442.19891000001,2139.0899232000002,52485.104978000003,37852.161480000002,10366.848416999999,40841.042173000002,0]
[2818,"2012-03-27","KW60MN13 ",6850080.4714296376,2423059.1852953047,1807021.6238861391,120620.16488768731,495417.39652147837,"Winter",144777.39092000001,79456.665062,116748.44386,2240.9412434999999,40674.816369,38227.540664,8657.3137299999999,1354.3257784,0]
[2821,"2012-04-16","KW60MN10 ",6778296.9534249315,2422779.1366087878,1830402.566419648,113055.05910515993,479321.51108397992,"Summer",157394.41042999999,67697.440356000006,112967.45349,2168.3665950999998,36114.859377000001,35680.564646999999,9462.8323278999997,7467.6597125999997,0]
[2824,"2011-12-23","KW60MN16 ",7112571.4032654101,2422522.9924765099,1739413.9539097252,97845.264609999998,585263.77395678463,"Winter",265374.94057999999,72646.536789000005,92805.253072000007,1781.3609530000001,56862.663690000001,29884.488670999999,6410.6357256000001,816.33821894000005,2086.7982323000001]
[2825,"2011-10-19","KW60MN20 ",6886462.465643242,2422305.5146939419,1763196.4997743084,106688.896467,552420.11845263361,"Summer",190508.00174000001,67715.203552000006,125848.04888,2415.6046437,51846.710999000003,44341.475986999998,7445.9513334000003,19170.103298999999,3053.2304963000001]
[2831,"2011-12-15","KW60MN06 ",7114699.7348989006,2421776.4385588416,1742259.6815310817,87460.481520000001,592056.27550775988,"Winter",266990.97936,61520.983380999998,98579.818990999993,1892.2015133,40994.013357999997,34832.475718000002,9243.8937084000008,816.33821894000005,3053.2304963000001]
[2832,"2011-12-21","KW60MN06 ",7024175.0974894837,2421706.7756842435,1763862.9520881837,98385.297640000004,559458.52595605981,"Winter",230533.80288999999,56428.462192999999,100872.20997,1936.2030718999999,46009.966049000002,33971.040411000002,7551.5692495000003,816.33821894000005,3053.2304963000001]
[2836,"2011-11-14","KW60MN10 ",7181159.6672424749,2421036.3685773243,1756102.7574710397,111486.42588299999,553447.18522328476,"Winter",153806.27377999999,68173.958383000005,126656.98209999999,2431.1318041999998,56452.267561000001,40197.499432999997,10004.163929,4955.8928413000003,0]
[2839,"2011-11-01","KW60MN13 ",7071451.6660844544,2420676.8639033642,1822315.1954063284,97397.665590999997,500964.00290603586,"Winter",133140.87729,73000.208373999994,133514.51318000001,2562.759462,40127.621529999997,45525.658941000002,9645.9893819000008,4955.8928413000003,0]
[2843,"2012-02-10","KW60MN17 ",6969775.8713958692,2420185.8914585421,1736822.5673237201,96268.718616594313,587094.60551822744,"Winter",209471.25664000001,81186.978736999998,113145.13017999999,2171.7770304000001,55084.280463000003,34168.543516999998,7823.7502144,747.06969021999998,2188.5725819999998]
[2846,"2011-09-19","KW60MN12 ",6817417.3705417821,2420075.7222642368,1784892.3661880905,105642.912749,529540.44332714635,"Summer",112578.81690000001,75419.729246000003,134345.93942000001,2578.7183673999998,53761.892935999997,39603.443416000002,10947.675852,30217.333901999998,0]
[2849,"2011-10-12","KW60MN20 ",6967664.4694129089,2419713.6645801282,1787340.4424212063,101190.039305,531183.18285392178,"Summer",186250.55454000001,65107.073046999998,128062.01472000001,2458.1008621000001,39215.630130999998,40113.165777000002,7415.113096,19170.103298999999,3053.2304963000001]
[2852,"2012-04-03","KW60MN13 ",6785937.166404115,2419174.3206456006,1833204.9761763967,99561.233192161642,486408.11127704231,"Summer",158602.30872,73476.620351999998,106842.51543,2050.8007769999999,54537.085623999999,36440.676877999998,8164.1998858999996,7467.6597125999997,0]
[2854,"2012-04-05","KW60MN14 ",6718004.82936309,2419024.0239182613,1809269.8482758547,109562.09163132423,500192.08401108236,"Summer",180385.86537000001,73624.381865999996,101464.62741,1947.5742957,48609.141535000002,35911.706164000003,8165.5965452999999,7467.6597125999997,0]
[2858,"2011-07-23","KW60MN22 ",7591887.0650570849,2418692.7819358511,1746433.20648759,133452.71684100002,538806.85860726109,"Summer",190394.48042000001,62061.188612999998,89260.008671000003,1713.3113573999999,55038.680892999997,31073.407587999998,6622.4403792000003,49129.924982999997,3053.2304963000001]
[2861,"2011-08-19","KW60MN12 ",7887996.8460883871,2418360.4647946116,1762145.059033992,131065.537882,525149.86787861958,"Summer",169859.59477,87508.502617999999,116516.61581,2236.4913937000001,55038.680892999997,39333.368717999998,9431.1374723999998,40041.152009999998,0]
[2864,"2011-11-17","KW60MN12 ",7156651.3679634016,2417972.3044769512,1757777.7408376359,99186.10143699999,561008.46220231522,"Winter",169292.73003999999,76278.555282999994,137141.97156999999,2632.3871233999998,56361.068421000004,39371.335933000002,10016.881148,4955.8928413000003,0]
[2868,"2011-08-05","KW60MN21 ",7337505.9505381258,2417707.2088136813,1733855.6563233752,128544.595961,555306.9565293059,"Summer",203126.929,75902.118526999999,106582.04625,2045.8011718,54582.685193999998,34106.319969999997,7513.7629514999999,35203.650113000003,1628.8136574]
[2869,"2012-03-28","KW60MN12 ",6819406.574971877,2417585.5493846256,1823459.0732734178,110480.9896567206,483645.48645448708,"Winter",141078.73233,75728.689958000003,115947.98033000001,2225.5766555,40355.619379000003,34889.89256,8626.3451385000008,1354.3257784,0]
[2875,"2011-08-03","KW60MN10 ",7331241.9123895038,2417034.7449088208,1765915.5169537521,127559.66187500001,523559.56608006865,"Summer",142425.07980000001,79797.564178000001,121696.82703,2335.9235453000001,48472.342825,38697.472054999998,10650.649587,29303.441864,0]
[2876,"2012-01-29","KW60MN14 ",6725701.3558833376,2416950.8252926352,1795937.2267241026,100526.00409779951,520487.5944707329,"Winter",257392.13698000001,53519.766516000003,73541.176795000007,1411.5944566000001,54628.284764000004,25961.775022999998,6012.9890465999997,742.46966563000001,0]
[2879,"2011-10-20","KW60MN09 ",6814708.2639981434,2416816.2831365233,1804674.5511125305,97019.631802999997,515122.10022099258,"Summer",146637.35587999999,59955.333169999998,129270.95045,2481.3059161000001,49384.334222999998,45124.967114999999,9734.0957300999999,19170.103298999999,0]
[2883,"2011-11-24","KW60MN09 ",6689261.1884575281,2416289.1197155686,1726923.6769381813,108291.19154300001,581074.25123438751,"Winter",305730.42096999998,46405.881961999999,79841.401519999999,1532.5248345,54947.481754,18317.329668999999,5831.5757004999996,4955.8928413000003,0]
[2886,"2012-02-22","KW60MN17 ",7036485.3461360792,2416106.3019827837,1765112.3874959138,97007.732179004088,553986.1823078657,"Winter",180404.69904000001,72783.122994999998,107051.42088000001,2054.8106364,52576.304118,34731.376923000003,7862.5959654999997,747.06969021999998,1272.6034333]
[2889,"2011-08-07","KW60MN21 ",7311805.9369197674,2415175.9519898905,1728122.0807665393,124541.801401,562512.06982235122,"Summer",225246.18487999999,65584.296459000005,104164.09991,1999.3896267,55221.079172999998,27886.895831000002,7051.6972672000002,33249.938947000002,1781.4751831000001]
[2894,"2012-03-08","KW60MN20 ",7022003.7715356294,2414308.4680459294,1768544.0549132216,119450.28909566594,526314.12403704168,"Winter",212782.97188,75316.736449999997,107614.97925999999,2065.6279215999998,53807.492506000002,33480.561424,7508.9990740000003,1354.3257784,3053.2304963000001]
[2897,"2012-03-11","KW60MN20 ",6720822.752591867,2413944.1314684236,1786850.6368056166,103514.53478713424,523578.95987567294,"Winter",264744.23003999999,51933.338748000002,72995.983961000005,1401.1296910000001,56133.070571999997,26033.973269999999,6118.8575145000004,1354.3257784,3053.2304963000001]
[2898,"2012-02-21","KW60MN14 ",7126668.614851621,2413909.21863592,1802481.5726868301,92652.472065817215,518775.17388327263,"Winter",148527.43139000001,76317.390081000005,118673.17504,2277.8857143,48745.940243999998,36849.256369000002,9125.9767255000006,747.06969021999998,0]
[2901,"2011-11-15","KW60MN14 ",7029362.1895804545,2413567.9518396351,1776590.7835415148,105245.441188,531731.7271101207,"Winter",136940.56148,74550.140847999995,129789.71064,2491.2633173999998,57227.460249999996,42082.783033,10215.420077000001,4955.8928413000003,0]
[2904,"2011-07-04","KW60MN15 ",7669400.0694173034,2413483.1955370638,1710744.7444896225,130378.92926,572359.52178744134,"Summer",205972.1692,56191.442827999999,91890.878628000006,1763.8098891,54856.282614000003,25620.172307000001,7055.4555499999997,48170.593302000001,0]
[2908,"2011-07-14","KW60MN15 ",8310607.7838374805,2412843.6943639391,1739789.9198771697,125040.121312,548013.65317476937,"Summer",150188.62009000001,81128.934620999993,121122.71599,2324.9037057999999,56133.070571999997,41385.624388999997,9864.5386295999997,36112.340520999998,0]
[2911,"2012-04-19","KW60MN11 ",6840350.6255446123,2411816.8153231125,1822616.1421906862,104521.1721355098,484679.50099691644,"Summer",134508.71866000001,75655.660806,118554.58891999999,2275.6094996000002,34883.670988999998,37744.524549000002,9266.0337204000007,7467.6597125999997,0]
[2915,"2011-08-27","KW60MN22 ",7511418.866468058,2411544.9334345907,1706523.9051013221,125627.29766500001,579393.73066826863,"Summer",234100.21247,77765.576637999999,94465.522398999994,1813.2291809000001,55175.479603,30097.985678000001,7674.6377890000003,50423.681667999997,3053.2304963000001]
[2919,"2012-03-03","KW60MN10 ",6909999.0487416554,2411231.7024996509,1768017.5125475752,107881.28085595147,535332.90909612447,"Winter",249345.2862,57009.385394999998,80760.551072999995,1550.1675548000001,54765.083473999999,24491.298871999999,6032.1529049999999,1354.3257784,0]
[2922,"2012-01-20","KW60MN23 ",6598574.5993318148,2410446.7794922427,1696807.5754978375,97901.0033440509,615738.20065035438,"Winter",268645.52276000002,67098.498477000001,95848.363876000003,1839.7722884,55813.873582,28688.534419,6695.2901284,742.46966563000001,3053.2304963000001]
[2923,"2012-05-02","KW60MN08 ",6712480.214855588,2410300.0291653047,1769908.6570031443,122155.71825302586,518235.65390913474,"Summer",171516.10949999999,52176.131352999997,97043.939522999994,1862.7209006999999,56589.066271000003,32686.673103000001,8079.5809546999999,21356.368259999999,0]
[2926,"2011-07-08","KW60MN11 ",7580761.1632788181,2409995.130464369,1744452.0584308191,139407.50169600002,526135.57033754967,"Summer",132735.84218000001,73762.337067,109567.19536,2103.0999550000001,56315.468850999998,39193.963820999998,7454.9102681000004,38663.030355000003,0]
[2929,"2011-09-29","KW60MN21 ",7006554.4421644816,2409687.3800566155,1764112.410786507,106572.05773499999,539002.91153510835,"Summer",159688.65195999999,64210.046898000001,108708.98384,2086.6269164999999,56315.468850999998,39205.700388999998,8013.6146196,30217.333901999998,3053.2304963000001]
[2933,"2012-03-20","KW60MN17 ",6828399.6346463924,2408838.0197701566,1792531.5892571693,100360.06253050973,515946.36798247759,"Winter",197243.02462000001,64170.734880000004,101714.45286999999,1952.3695987000001,49429.933792999997,33472.583343999999,6957.9704234000001,1354.3257784,0]
[2936,"2011-11-28","KW60MN07 ",7179934.9603577843,2408273.7615837338,1721284.5412233325,98553.859545999992,588435.36081440153,"Winter",308458.88608999999,58957.681044999998,105996.353,2034.5590162999999,57273.059820000002,33531.656962000001,9237.1491133,4955.8928413000003,966.43226404999996]
[2940,"2011-12-31","KW60MN16 ",6815046.0884507811,2407699.9530994706,1761028.9889188232,89160.01195,557510.95223064721,"Winter",296410.79803000001,56085.438885000003,73403.052165999994,1408.9432078,55768.274012000002,20419.502266,5677.1610479999999,816.33821894000005,1832.3623579]
[2944,"2011-11-05","KW60MN17 ",6883473.6818112088,2407602.7727382081,1793725.8544904531,113687.366396,500189.55185175507,"Winter",252914.58919,64378.041261999999,100359.21172000001,1926.3562688,56406.667991000002,29240.821284000001,6143.1272207000002,4955.8928413000003,3053.2304963000001]
[2947,"2012-05-03","KW60MN08 ",6595352.5094268518,2406764.8606879851,1747665.7309943377,124229.91930407259,534869.21038957487,"Summer",158439.21786,56194.089230999998,95457.523581000001,1832.2702601000001,55585.875732,34339.513988999999,8829.2890458000002,21356.368259999999,0]
[2948,"2011-11-03","KW60MN13 ",7006686.2883535204,2406640.6301008598,1779727.9767286656,106019.46676699999,520893.18660519429,"Winter",147762.99864000001,72293.930514000007,130419.70407000001,2503.3557977,54901.882184000002,44362.301910000002,9273.8990285,4955.8928413000003,0]
[2951,"2011-10-28","KW60MN19 ",6882250.0664492911,2406122.1027605608,1741761.0858354343,100295.727732,564065.28919312637,"Summer",225836.01673,67351.613178,135476.15468000001,2600.4124124,55996.271862000001,40296.237243000003,7243.4712855999996,19170.103298999999,3052.8205720999999]
[2954,"2011-10-25","KW60MN22 ",6639530.8070505271,2405849.7760251989,1762562.6078128859,96963.105350000013,546324.06286231289,"Summer",205299.61549,55409.855763,114262.35705000001,2193.2217682999999,56452.267561000001,41568.641202999999,7194.8370701000003,19170.103298999999,3053.2304963000001]
[2957,"2011-12-02","KW60MN14 ",7072513.1730551254,2405341.806487706,1799381.1583707384,85161.740304999999,520798.90781196766,"Winter",139153.1728,70812.153760999994,134121.68231,2574.4138386999998,54628.284764000004,39301.937056000002,8183.9562663999995,816.33821894000005,0]
[2962,"2011-08-10","KW60MN11 ",7368357.534930734,2404889.6581860655,1765754.2100618724,132334.102785,506801.34533919318,"Summer",128510.72063,78077.693109,116768.11029,2241.3187329000002,55950.672292000003,38997.485377999998,9622.7896015999995,44670.298777000004,0]
[2966,"2011-11-17","KW60MN14 ",7135005.3216246879,2404360.6996710273,1754639.4702863148,95498.835663000005,554222.39372171229,"Winter",166324.35560000001,73692.622747000001,134270.77746000001,2577.2756626,56543.466700999998,39780.399168000004,10200.427573999999,4955.8928413000003,0]
[2969,"2011-08-31","KW60MN18 ",8390489.997756457,2403915.2077238485,1757756.5483215328,123230.97418500001,522927.68521731603,"Summer",184584.79785,84790.068367999993,109793.45978,2107.4430130000001,55905.072721999997,36382.908925999996,8117.0994559999999,33797.044446,0]
[2972,"2011-11-08","KW60MN22 ",6881861.2878475096,2403400.7470927378,1753203.3199960247,114454.675147,535742.75194971298,"Winter",278458.98625999998,63831.894076999997,113500.0735,2178.5900302,57820.254658999998,36691.816349000001,7184.9233277000003,4955.8928413000003,3053.2304963000001]
[2973,"2011-09-01","KW60MN20 ",7579880.2525077285,2403400.4402846182,1733701.2168645142,123245.71897099999,546453.50444910384,"Summer",196948.10868999999,69488.602016999997,118737.25268000001,2279.1156599000001,54947.481754,37142.265614999997,7857.2497223999999,43081.182453000001,916.39320871999996]
[2978,"2012-06-12","KW60MN14 ",7250738.0844467357,2402634.7065154491,1729270.0413377956,134681.02833973899,538683.63683791459,"Summer",137455.91714999999,83404.093972000002,132241.51506999999,2538.3247554999998,56406.667991000002,45916.787690999998,9832.6033800000005,30482.309548000001,0]
[2980,"2011-09-28","KW60MN21 ",7128644.1855059164,2402433.0550767747,1764866.5996717394,108857.66581499999,528708.78959003522,"Summer",168587.23595,61679.703285000003,109466.19683,2101.1613271000001,55813.873582,35088.963582999997,7787.9144764000002,30217.333901999998,3053.2304963000001]
[2984,"2011-09-29","KW60MN19 ",7296697.4949686043,2402130.4009084506,1779366.0085027649,98929.964534000013,523834.42787168553,"Summer",135060.63941,62023.779047999997,127066.71223999999,2438.9964157999998,56133.070571999997,39938.759356000002,7952.5679108000004,30217.333901999998,712.84450892999996]
[2987,"2011-10-10","KW60MN13 ",6932476.3032369157,2401804.762609195,1780289.948399601,100121.23740300001,521393.57680659409,"Summer",144453.29712,70157.491200999997,135707.23509,2604.8479114000002,49475.533363000002,43955.771608000003,9092.8919829000006,19170.103298999999,0]
[2991,"2011-08-20","KW60MN14 ",7924836.6366665773,2401222.3950351579,1739336.8755826252,131170.09880000001,530715.4206525326,"Summer",223679.51426,71257.697465000005,105986.78440999999,2034.3753509000001,55129.880033000001,34242.757685999997,7680.2853708000002,40431.856094000002,0]
[2994,"2011-12-10","KW60MN06 ",6764938.7373110428,2401068.5146752233,1695452.833434779,93075.775793000008,612539.9054474443,"Winter",312252.26413000003,61671.155098000003,92920.859989000004,1783.5799830999999,57820.254658999998,28939.599622000002,6892.3257434999996,816.33821894000005,3053.2304963000001]
[2997,"2012-03-27","KW60MN21 ",6796951.2314978251,2400934.8009490236,1770800.8865820502,121838.6577355567,508295.25663141691,"Winter",207855.89616999999,62467.981073000003,93490.773963,1794.5192615000001,40583.617229000003,33427.784666,6518.5627855000002,1354.3257784,3053.2304963000001]
[2999,"2012-03-30","KW60MN09 ",6814978.2081175065,2400510.79843874,1761810.4416361819,118799.75547147084,519900.60133108753,"Winter",164347.05382999999,67315.689905000007,108105.23772,2075.0382432000001,53260.297666999999,35306.590241999998,8594.0171303999996,1354.3257784,0]
[3002,"2011-08-17","KW60MN11 ",7623811.1978537664,2399837.557176719,1775017.7830766796,131999.05927599999,492820.71482403966,"Summer",151653.43841999999,84885.260139999999,106109.21393,2036.7253381999999,49931.529062000001,37602.900285999996,10311.855593,39461.922829000003,0]
[3005,"2012-05-22","KW60MN10 ",7431371.7175348708,2399638.017149521,1762173.9481795847,133678.90168305399,503785.16728688253,"Summer",117735.60610999999,66615.744451000006,116396.23275,2234.1806873999999,56224.269711000001,42670.378390999998,8948.1913081000002,21356.368259999999,0]
[3009,"2012-02-22","KW60MN16 ",6992939.9394481992,2398934.2667234652,1771072.5137209499,88647.762800646815,539213.9902018687,"Winter",145044.79294000001,72382.937705000004,110520.99395,2121.4077499999999,56634.665841000002,35777.199688000001,8374.9092189999992,747.06969021999998,0]
[3012,"2011-11-30","KW60MN23 ",6688430.4585947376,2398750.0694174571,1768974.3738939539,102193.46132499998,527582.23419850343,"Winter",269590.70358999999,60937.132587,101190.41817999999,1942.3109555999999,56862.663690000001,34825.845266999997,6799.8719769999998,4955.8928413000003,3053.2304963000001]
[3016,"2012-01-03","KW60MN15 ",7027365.2945073815,2398609.0828991048,1760903.1412221729,88922.040184402707,548783.90149252943,"Winter",184001.09198,70247.536386000007,112487.43766,2159.1528769000001,56908.26326,35464.265431,8859.3096029000008,742.46966563000001,0]
[3019,"2012-03-20","KW60MN16 ",6865708.1075926349,2398191.5364992381,1791464.0735432564,98089.235796424138,508638.22715955769,"Winter",188599.08197,73123.131942000007,106837.15068000001,2050.6978027,48837.139384000002,34066.633377999999,7056.8352807000001,1354.3257784,0]
[3020,"2011-09-23","KW60MN21 ",6676054.2168332273,2398140.3910820736,1745907.3264381594,108180.281089,544052.78355491441,"Summer",207336.84160000001,71556.606023999993,116369.28062000001,2233.6633517,56041.871432,38860.950774999998,8942.9872706000006,30217.333901999998,3053.2304963000001]
[3024,"2011-11-15","KW60MN16 ",7098775.0914435089,2397956.4253611984,1764144.6096376227,107392.561111,526419.25461257563,"Winter",165456.91529999999,71469.186354000005,125012.64787,2399.5694444000001,57364.258958999999,39445.298863999997,8459.5095289000001,4955.8928413000003,1577.9264826000001]
[3027,"2012-03-23","KW60MN13 ",6773327.1679369295,2397344.8098947322,1800076.5976400813,106296.19454497485,490972.01770967589,"Winter",150813.19406000001,66884.477268000002,110710.12745,2125.0380945000002,56634.665841000002,38848.181707000003,7838.4430702,1354.3257784,0]
[3031,"2012-05-23","KW60MN10 ",7155288.5028996272,2396997.7923869141,1773616.3121089297,129509.31083763453,493872.16944034985,"Summer",131164.88974000001,69112.237567000004,116121.34018,2228.9042307999998,57227.460249999996,41238.684402999999,8679.6230348999998,21356.368259999999,0]
[3034,"2011-11-29","KW60MN06 ",7031606.5749255018,2396576.7577870116,1727229.2522644033,94730.098454999985,574617.40706760844,"Winter",238013.86313000001,56954.739665000001,101205.96643,1942.6093980999999,56817.064120000003,34711.426406999999,9043.1404399000003,4955.8928413000003,3053.2304963000001]
[3037,"2011-11-05","KW60MN21 ",6984583.8687558211,2396196.5915578404,1753580.9010004862,108004.38276600001,534611.30779135413,"Winter",227171.37346999999,61917.575861999998,94532.444554999995,1814.5137258,54582.685193999998,28130.878999,6396.5573998,4955.8928413000003,3053.2304963000001]
[3041,"2012-06-14","KW60MN16 ",7697682.7150284862,2395659.2150907647,1733564.0571145283,133211.61214711866,528883.54582911753,"Summer",136485.36332,89467.785581000004,121347.49752,2329.2183003999999,55631.475301999999,39868.183100000002,9511.6866234000008,31542.916021000001,0]
[3045,"2012-01-26","KW60MN16 ",7284578.7803305434,2395238.4377684011,1770158.5435713583,94281.50417728677,530798.39001975616,"Winter",188533.99613000001,71264.325524,115738.16486999999,2221.5493287999998,56133.070571999997,34647.138341999998,8257.3138923999995,742.46966563000001,309.52124151999999]
[3048,"2011-09-13","KW60MN09 ",6658130.3306866763,2395139.5322590545,1759468.6189782689,105253.66023500002,530417.25304578547,"Summer",120093.71464999999,67015.987586000003,122495.33906,2351.2506749999998,51299.516159999999,40842.123753,10772.661744000001,27632.979039000002,0]
[3049,"2012-03-15","KW60MN17 ",6754285.532002816,2395129.4105116203,1780486.3983380599,105200.35935366675,509442.65281989361,"Winter",175833.89439,63614.225427999998,98801.975447000004,1896.4657205999999,56862.663690000001,34063.517847000003,6921.8807471,1354.3257784,0.43819510810000001]
[3052,"2012-05-25","KW60MN09 ",7047562.8828959111,2394992.2927059825,1782333.818847501,127403.37981395895,485255.09404452262,"Summer",116158.96223,61864.842227000001,108622.95929,2084.9757085000001,48426.743255000001,42718.103357,7663.9537676999998,27219.101344999999,0]
[3056,"2011-07-01","KW60MN17 ",7689376.7820556415,2394593.1037435075,1732346.4846185141,128599.582435,533647.03668999323,"Summer",164693.37283000001,80823.201973999996,115070.90962000001,2208.7416222000002,56224.269711000001,36284.994895999997,6965.1348632999998,43058.096096000001,0]
[3059,"2012-02-18","KW60MN22 ",6738472.6801844267,2394407.6299439259,1751462.5820568865,102409.03808997723,540536.00979706214,"Winter",243640.34933999999,69781.885162000006,72863.544106999994,1398.5875592,48563.541964999997,26976.329586,6298.8217215000004,747.06969021999998,3053.2304963000001]
[3062,"2011-10-24","KW60MN12 ",6935467.7555822507,2394230.3913760898,1766088.9825864555,96040.640306000001,532100.76848363446,"Summer",129242.90192,67299.279636000007,136450.09588000001,2619.1068371000001,55677.074871999997,45591.221150999998,9762.1508054000005,19170.103298999999,0]
[3066,"2011-09-02","KW60MN11 ",7038245.0157314083,2393835.2451327099,1743434.821977905,128193.66121300001,522206.7619418049,"Summer",108607.13905,79450.973769000004,120241.15367,2307.982458,56224.269711000001,40762.149943999997,8380.0573901000007,42498.305977999997,0]
[3070,"2011-12-31","KW60MN15 ",6672122.7090219697,2393420.2692757589,1750838.3755400039,93525.264250000007,549056.62948575499,"Winter",275047.63381999999,53868.169396999998,77376.156507000007,1485.2054095999999,55996.271862000001,20737.638654999999,5680.9599613999999,816.33821894000005,0]
[3071,"2012-01-26","KW60MN23 ",6707715.5758951288,2393305.4530911292,1736218.4193105095,92010.793671974665,565076.24010864506,"Winter",233610.1238,62841.809989000001,95511.516138000006,1833.3066263000001,56817.064120000003,34074.134690999999,6470.8698323999997,742.46966563000001,3053.2304963000001]
[3074,"2012-02-18","KW60MN13 ",6754366.2483466677,2393000.3803783171,1719722.2399615541,99958.997972363766,573319.14244439895,"Winter",301378.02114000003,67557.804440000007,79338.396726000006,1522.8698519,52576.304118,27298.808176999999,6350.7215812000004,747.06969021999998,0]
[3077,"2011-12-18","KW60MN22 ",7023450.2203900525,2392902.6814213814,1704065.0596970925,95783.265710000007,593054.35601428919,"Winter",305123.64201000001,59776.801398000003,90844.291343999997,1743.7210508000001,57364.258958999999,25573.083441999999,6759.0184220000001,816.33821894000005,3053.2304963000001]
[3081,"2012-04-17","KW60MN07 ",6666856.2439216934,2392661.5009421813,1765953.6865569332,107397.21762864324,519310.59675660491,"Summer",221820.68335000001,46963.270335000001,88795.062485000002,1704.3868950999999,34883.670988999998,33932.544807999999,7879.6165865000003,7467.6597125999997,457.56051463]
[3084,"2011-07-13","KW60MN12 ",8016758.685231152,2392221.7788111819,1716663.963840038,136264.56236099999,539293.25261014386,"Summer",144781.32298999999,78214.407858999999,116200.88489,2230.4310607000002,54172.289064999997,39972.931140000001,9700.8196864000001,34850.345512,0]
[3087,"2011-08-17","KW60MN22 ",7212689.6843574224,2391983.4480031091,1750952.0694848082,133288.73576700001,507742.64275130088,"Summer",223313.36533,76679.229040999999,94362.941305,1811.2601764999999,54582.685193999998,34238.476339000001,7968.1698644999997,47110.942644000002,3053.2304963000001]
[3092,"2012-05-22","KW60MN12 ",7516913.8995042285,2391694.0379440193,1751346.9068598324,130781.51654107984,509565.61454310699,"Summer",107955.88847000001,73300.391126999995,116038.50038,2227.3141529,56589.066271000003,43050.484130999997,9097.3917655000005,21356.368259999999,0]
[3095,"2011-08-19","KW60MN11 ",7675562.7108469503,2391645.4350485774,1745350.0280892858,131597.86319800001,514697.54376129142,"Summer",154130.31458000001,85249.580002000002,112676.23748,2162.7768163000001,55357.877883000001,39211.905035999996,9260.6942493999995,40863.575203,0]
[3096,"2012-05-21","KW60MN14 ",7646926.1510035768,2391616.9018799379,1753350.1649035313,131926.60587795411,506340.13109845249,"Summer",128890.97627,75118.609727000003,111372.29571999999,2137.7481584000002,56953.862829999998,47636.266637000001,9465.6256465000006,21356.368259999999,0]
[3099,"2011-07-20","KW60MN21 ",7947318.420398742,2391224.6823606365,1713822.4510547041,131232.11299899998,546170.11830693262,"Summer",210134.97114000001,61650.636235999998,97661.960101000004,1874.5835668,53397.096376000001,35400.534608000002,7426.5301510999998,46474.010466,712.84450892999996]
[3102,"2012-05-14","KW60MN22 ",7017175.3993738145,2390953.3830938358,1682796.6350540677,136055.54935324841,572101.1986865194,"Summer",191416.36313000001,63407.185774999998,95941.111699999994,1841.552547,51253.916590000001,35635.655531999997,7285.3473639000003,21356.368259999999,3053.2304963000001]
[3108,"2011-10-20","KW60MN20 ",6893551.1219773274,2390643.8917418905,1742585.7973876051,106087.08913699999,541971.00521728524,"Summer",190120.35889999999,70961.107522000006,135143.45577999999,2594.0263856000001,57409.858528999997,44426.093349000002,7400.5065793000003,19170.103298999999,3053.2304963000001]
[3110,"2011-11-05","KW60MN14 ",6812039.35816376,2390579.0036461498,1768983.1352480317,115342.726113,506253.14228511811,"Winter",200262.96111999999,55498.027416999998,98055.720004999996,1882.1416359,57181.860679999998,30321.786341999999,6029.2207674000001,4955.8928413000003,0]
[3113,"2011-07-13","KW60MN13 ",8162116.5730432691,2389963.00035943,1708867.5305755325,134880.96146699999,546214.50831689767,"Summer",181612.08859999999,79486.643167000002,118966.05215,2283.5073772999999,54263.488205000001,40998.693293999997,9683.6331590999998,35055.331499,0]
[3117,"2011-10-06","KW60MN07 ",6792716.9727149252,2389179.4691460482,1776958.6914128412,108028.422165,504192.35556820681,"Summer",172881.77817000001,49266.675658,112739.35021999999,2163.9882410999999,56497.867130999999,39704.753909999999,7733.5920474000004,19170.103298999999,3031.7023945999999]
[3120,"2011-10-06","KW60MN21 ",6877640.4349883441,2388923.6354762437,1757607.7224579882,106827.81524,524488.09777825559,"Summer",234738.75536000001,62207.557029000003,110531.91267999999,2121.6173309000001,55540.276163000002,38957.466180000003,7369.3026707999998,19170.103298999999,3053.2304963000001]
[3121,"2011-10-18","KW60MN19 ",6896030.4823799068,2388722.2690224154,1735186.5710336545,107096.23853300001,546439.45945576113,"Summer",196498.62317000001,65660.948950000005,133461.20051,2561.7361461,54947.481754,43393.594914000001,7726.3192614,19170.103298999999,2595.6699819999999]
[3124,"2012-03-15","KW60MN07 ",6747967.7645166712,2388118.7017399641,1738793.7917780364,93565.119000171122,555759.79096175672,"Winter",223558.19239000001,61619.322877999999,105911.27383000001,2032.9259545,52713.102828000003,36404.298502999998,8547.8715069999998,1354.3257784,0]
[3129,"2011-11-14","KW60MN11 ",7154979.7178581674,2387144.3705654973,1731288.523410857,106734.20826,549121.63889464049,"Winter",165173.45644000001,74917.663067000001,129609.98622999999,2487.8135769,56087.471001999998,41321.836928999997,10000.283756000001,4955.8928413000003,0]
[3132,"2012-05-24","KW60MN10 ",7035195.2744102301,2386489.9335356425,1750552.1297921394,130227.88016855628,505709.92357494682,"Summer",111348.73579000001,68533.274663999997,108994.76884,2092.1124491999999,54719.483904000001,43340.974505999999,8821.7470856,21356.368259999999,0]
[3135,"2012-03-26","KW60MN21 ",6798849.8170441538,2386262.5592467366,1759996.7521013462,115031.11152356445,511234.69562182593,"Winter",191651.21694000001,53814.696633,84627.240225000001,1624.3871581999999,55768.274012000002,33132.311088000002,6506.5515155000003,1354.3257784,3053.2304963000001]
[3139,"2012-05-23","KW60MN08 ",6961667.8425696259,2385858.7668099217,1755548.1384234356,126300.96429057054,504009.66409591568,"Summer",156713.46264000001,50587.854156000001,95275.231625999993,1828.7712365,57592.256808999999,41573.869833999997,7940.3060890999996,21356.368259999999,0]
[3142,"2012-04-17","KW60MN12 ",6832790.6477107713,2385698.8876592088,1805559.4808676876,107057.1257302795,473082.2810612414,"Summer",138758.39710999999,76502.048590000006,115068.74132,2208.7000026999999,35339.666687999998,36566.840401000001,9634.1372460999992,7467.6597125999997,0]
[3145,"2012-04-27","KW60MN09 ",6707595.7145271841,2385472.9340461087,1779432.291280221,116430.11315160134,489610.52961428667,"Summer",159052.8965,62261.148696999997,111753.25899,2145.0606011999998,55266.678742999997,30709.033995999998,9366.7235454000001,7467.6597125999997,0]
[3146,"2011-10-10","KW60MN18 ",6935956.7173660602,2385290.6555615109,1783868.9714942765,98593.46089599999,502828.22317123419,"Summer",170229.58038999999,53195.186081,121606.18388,2334.1836850999998,48472.342825,40873.305003000001,6837.3126038999999,19170.103298999999,0]
[3150,"2011-07-13","KW60MN14 ",8281470.1443832163,2385195.0889190668,1715680.4439243772,123330.23881699999,546184.40617768979,"Summer",175382.51172000001,82719.697541000001,119150.76892,2287.0529443,50159.526912000001,42030.548304999997,10172.149031999999,35824.664305999999,0]
[3153,"2012-06-01","KW60MN21 ",7209754.953235466,2385093.3719317652,1726449.6647222843,130542.20303743958,528101.50417204155,"Summer",143082.79551,69577.448527,88057.681270999994,1690.2331478000001,56817.064120000003,38546.186625000002,7064.8614158,26771.880615999999,763.73168391000002]
[3157,"2011-07-22","KW60MN12 ",8170721.7085841736,2384515.632041153,1738902.9334928605,130533.00849799998,515079.6900502927,"Summer",146422.07764,83268.029976999998,117325.82932999999,2252.0239342999998,54993.081323999999,41625.135915999999,7502.5084171999997,44685.035324999997,0]
[3160,"2012-05-14","KW60MN11 ",7120629.3880363656,2384218.5062848395,1712232.6803370495,137690.90771335148,534294.91823443817,"Summer",123554.65781,72583.566218000007,123262.16554,2365.9696128999999,57136.261109999999,38042.657809999997,9574.4160943999996,21356.368259999999,0]
[3164,"2012-03-02","KW60MN15 ",6961147.9717503823,2383556.69074638,1759186.7167114206,90733.44926560251,533636.52476935671,"Winter",189135.79376,77989.159925,109543.81954,2102.6512650999998,47013.156587999998,35246.721315000003,8513.1040021999997,1354.3257784,0]
[3167,"2012-03-29","KW60MN20 ",6883998.4548406024,2383298.6329623056,1757524.7271208635,109543.51423721596,516230.39160422602,"Winter",204482.74098999999,65181.138586000001,93130.671434999997,1787.6072326999999,48426.743255000001,31800.949522999999,6798.9188621000003,1354.3257784,3053.2304963000001]
[3170,"2012-02-21","KW60MN17 ",7205056.0984082986,2383124.1830113614,1759551.2374615618,93231.088158244078,530341.85739155568,"Winter",148860.08882999999,67676.429812999995,104673.65161,2009.1702745,55677.074871999997,34982.438098999999,7898.8346185,747.06969021999998,1374.3777831]
[3171,"2012-03-16","KW60MN20 ",6773399.7731124917,2383044.0088193943,1776614.8893085849,109063.69890098782,497365.42060982174,"Winter",212343.07806,64177.7791,96050.738161000001,1843.6567846,56406.667991000002,32659.580029000001,6273.4770110999998,1354.3257784,3053.2304963000001]
[3175,"2011-10-31","KW60MN13 ",6898314.3900873475,2382485.9174720268,1738165.3384034946,102290.79501700001,542029.78405153204,"Summer",113633.52340000001,64031.968244000003,129995.57029,2495.2147138,56315.468850999998,45086.617327,9093.3998596000001,19170.103298999999,0]
[3179,"2012-05-22","KW60MN14 ",7506358.470482422,2381669.0585509236,1741777.1634077572,128185.3211882966,511706.57395486982,"Summer",122739.87123999999,74838.645363999996,115175.45208,2210.7482743999999,56406.667991000002,43493.775250999999,9027.5215564999999,21356.368259999999,0]
[3182,"2011-10-06","KW60MN19 ",7024175.3002100261,2381405.9808536759,1755360.3234073699,102523.258158,523522.39928830625,"Summer",173157.42588,53762.409688,120692.64343,2316.6486292999998,56041.871432,39897.626220999999,7683.3732571999999,19170.103298999999,1425.2649578999999]
[3185,"2012-03-17","KW60MN11 ",6515071.6321420064,2381027.1114201769,1764807.6222482009,107041.65324347907,509177.83592849679,"Winter",244072.93014000001,54066.728349999998,80768.736336000002,1550.3246678,55950.672292000003,27533.803244999999,5416.5427295,1354.3257784,0]
[3189,"2011-10-19","KW60MN11 ",6773108.6127899457,2380985.647639411,1765658.3463672178,91049.528334999995,524277.77293719328,"Summer",162003.6985,65329.417488999999,131473.04667000001,2523.5743017,46055.565619000001,44749.216611999997,9786.9554745999994,19170.103298999999,0]
[3192,"2012-03-30","KW60MN13 ",6778184.0654958691,2379942.4048643908,1752897.0400497643,103432.9357266554,523612.4290879711,"Winter",154440.63023000001,74784.761257999999,111529.83139000001,2140.7719947999999,53898.691644999999,36197.510106000002,8655.4328958000006,1354.3257784,0]
[3196,"2012-05-23","KW60MN11 ",7182080.7556943176,2379469.7403129302,1754436.691010227,126627.09665656229,498405.95264614117,"Summer",119778.58725,71606.813767,118211.51224,2269.0242753000002,57045.061970000002,42662.601236000002,8944.2992835000005,21356.368259999999,0]
[3197,"2011-07-08","KW60MN21 ",7556338.5861494187,2379404.2536674179,1714158.2892016787,143940.616893,521305.34757273906,"Summer",160238.27282000001,58908.834263999997,86132.655215999999,1653.2830168999999,55950.672292000003,34046.920678000002,6382.6619102000004,37541.837003000001,309.52124151999999]
[3200,"2012-05-25","KW60MN10 ",7141703.9915227862,2379019.6515012844,1761527.5781827306,127661.06897000765,489831.00434854627,"Summer",101760.93713000001,68281.252588000003,115329.88167,2213.7124907000002,46557.160887999999,43557.868928999997,7783.5450490000003,25675.018607000002,0]
[3204,"2011-11-28","KW60MN16 ",7259660.3893309664,2378459.8311004261,1761351.5646611799,94826.799377000003,522281.46706224617,"Winter",168573.36241999999,66537.187900999998,115687.46717,2220.5762061999999,56041.871432,35332.205949000003,7912.5675884000002,4955.8928413000003,2086.7982323000001]
[3207,"2012-05-04","KW60MN10 ",6816308.0946837142,2378158.9681873526,1763405.4886733575,121893.95266318787,492859.52685080707,"Summer",139533.61921,67854.760735000003,113230.81839,2173.4217825999999,57181.860679999998,35184.591148,8353.6055099000005,21356.368259999999,0]
[3210,"2011-10-28","KW60MN20 ",6827542.8855830096,2377814.6174715301,1713621.0690720275,103349.44009500001,560844.10830450268,"Summer",195126.23501,66201.229701000004,134993.43122,2591.146722,55722.674442000003,39611.820290000003,7160.9922063000004,19170.103298999999,3053.2304963000001]
[3214,"2011-07-04","KW60MN14 ",7563186.6909168558,2377511.5932278084,1687834.1661029379,129343.23327999999,560334.19384487066,"Summer",192964.91019,54456.273396999997,93016.819313999993,1785.4218853,54947.481754,25190.977746,6909.9795170999996,48198.292915999999,0]
[3217,"2011-08-08","KW60MN10 ",7396485.2329059104,2377193.6933549941,1726652.6309428429,125801.441045,524739.62136715138,"Summer",116595.4857,73295.723368000006,116855.96438,2243.0050583000002,57364.258958999999,37701.047339999997,9366.2512208999997,35812.280351000001,0]
[3221,"2012-06-29","KW60MN13 ",8057356.5974732805,2376734.2590802354,1693511.3633505525,134099.29748634325,549123.59824333969,"Summer",130470.65134,85979.042409000001,133890.15476,2569.9697569999998,56178.670141000002,43209.282906,8962.6319184000004,36603.134792999997,0]
[3222,"2012-01-12","KW60MN03 ",6592011.136138008,2376634.0594358407,1689562.3122868226,89117.685460892913,597954.06168812502,"Winter",307030.71763000003,54921.278686999998,95945.706414999993,1841.6407408,57501.057669000002,31977.247965999999,7493.1634972000002,742.46966563000001,3053.2304963000001]
[3225,"2012-02-14","KW60MN06 ",6899873.0897179311,2376369.3488484016,1694209.5341420611,94944.797894913921,587215.0168114265,"Winter",246485.16560000001,56495.110734000002,93655.533106000003,1797.6817496000001,56361.068421000004,33724.412700000001,8063.8452592000003,747.06969021999998,3053.2304963000001]
[3229,"2012-01-08","KW60MN17 ",7188082.4865095597,2376132.0559152183,1754852.8962729839,99215.267697571471,522063.89194466284,"Winter",239991.9068,48455.059071000003,85118.022299000004,1633.8075303000001,55221.079172999998,26767.734013000001,6073.1012629999996,742.46966563000001,3053.2304963000001]
[3232,"2011-07-02","KW60MN14 ",8059647.604206278,2375779.0313768866,1684691.8760219517,132183.02487599998,558904.1304789352,"Summer",166137.74651,58141.316357999996,100850.36308,1935.7837293,55449.077022999998,30754.882164999999,6701.1814910000003,46764.652742999999,0]
[3234,"2011-07-15","KW60MN22 ",7502789.6956067411,2375663.3767950251,1682379.4786395365,126428.617636,566855.2805194885,"Summer",194415.14488000001,65736.957112000004,97324.122663000002,1868.0989078,55266.678742999997,35900.644433000001,6803.4271096000002,48077.700456999999,3053.2304963000001]
[3240,"2011-10-25","KW60MN14 ",6732642.6459452827,2375211.4242571942,1768359.1372570936,92308.463208000001,514543.82379210065,"Summer",114560.26272,65902.983143999998,138792.16534000001,2664.0619548,54993.081323999999,46312.805390000001,9486.6381734000006,19170.103298999999,0]
[3243,"2012-03-08","KW60MN19 ",6977916.0635591857,2374916.1330435257,1744911.6903165388,106999.87177145475,523004.57095553202,"Winter",196963.46603000001,73395.688947999995,113951.97112,2187.2640304000001,53351.496806000003,33516.846390999999,7550.1912126999996,1354.3257784,3053.2304963000001]
[3244,"2012-05-30","KW60MN20 ",7237866.8152933149,2374688.2822249252,1707222.9668108504,126507.14781694481,540958.16759712971,"Summer",153264.86682,64583.421090000003,85863.765839,1648.1217893,56315.468850999998,36763.238662999996,6584.7271914000003,25959.296397999999,0]
[3247,"2011-09-15","KW60MN20 ",6881609.2720334604,2374414.430323144,1727287.0106638703,109902.40615400001,537225.01350527362,"Summer",179515.59526,71661.308457000006,113443.36010000001,2177.5014384000001,53442.695946,37655.432630000003,8108.6483968000002,20268.018961000002,2341.2341065999999]
[3250,"2011-10-03","KW60MN11 ",6853249.6734956726,2373862.6204299214,1747368.7026557443,107761.545036,518732.37273817719,"Summer",102361.40994,73708.276213000005,134653.04517999999,2584.6131436000001,54628.284764000004,42374.804544999999,9477.8823900000007,19170.103298999999,0]
[3254,"2012-01-02","KW60MN07 ",6729324.6096772673,2373586.0696476102,1713909.617681805,89382.204595901523,570294.24736990372,"Winter",244344.24304,55628.652387000002,81551.058009999993,1565.3410297999999,50615.522611,22044.574615000001,8399.9864491000008,742.46966563000001,2187.724463]
[3259,"2011-07-31","KW60MN12 ",7642095.7660255833,2373414.5283385022,1671226.7406916297,131058.808005,571128.97964187246,"Summer",197799.60873000001,68596.685498000006,101931.90162,1956.5434433999999,55266.678742999997,27563.299071000001,7336.5548191999997,36478.052219999998,0]
[3261,"2012-06-20","KW60MN14 ",7394575.7194977552,2372922.6723407786,1715889.8895013498,125090.05543295117,531942.72740647779,"Summer",112220.5321,85158.970828999998,122061.4029,2342.9214382,54263.488205000001,43127.636385999998,9523.8350195999992,37263.572172,0]
[3265,"2011-11-30","KW60MN16 ",7174732.124240132,2372367.5374582028,1765481.5225903522,97891.85643699998,508994.15843085072,"Winter",185248.56534999999,68500.250062000006,123385.5285,2368.3375170999998,53123.498957000003,37422.509319999997,8546.4782343999996,4955.8928413000003,2137.6854072000001]
[3268,"2012-02-21","KW60MN15 ",7103050.1477198554,2371868.0915004606,1769523.4432798892,87680.385173275397,514664.26304729591,"Winter",160058.65878,74636.578762999998,118173.47946,2268.2942509999998,50980.319171000003,37216.936458999997,8929.2712293999994,747.06969021999998,0]
[3269,"2011-09-29","KW60MN14 ",7221344.8739833878,2371707.3488058057,1759396.996054743,90863.342852000002,521447.00989906298,"Summer",110938.88893,71022.082444999993,139048.09675,2668.9744593999999,50752.321321000003,43096.465299000003,10513.705873000001,30217.333901999998,0]
[3272,"2012-01-19","KW60MN23 ",6656096.8609874677,2371600.0220118277,1658314.1565978811,97005.195659817327,616280.66975412914,"Winter",291370.38117000001,67401.422433999993,93774.429952000006,1799.9639285999999,56589.066271000003,32272.538286999999,7226.7723196999996,742.46966563000001,3053.2304963000001]
[3275,"2011-07-18","KW60MN20 ",8321055.7843463179,2371492.0701366263,1660841.9220327819,128580.45805799997,582069.6900458443,"Summer",208220.5613,60381.982490000002,91280.091161000004,1752.0860597999999,47332.353577000002,36348.350594000003,7515.1646901000004,45412.132326999999,0]
[3280,"2012-03-18","KW60MN20 ",6868420.0845213775,2370900.0418401831,1769136.5783246323,103412.21035159878,498351.25316395226,"Winter",253411.07939,55803.234640000002,71733.071861000004,1376.8885815000001,56589.066271000003,25458.073498000002,6130.8874070000002,1354.3257784,3053.2304963000001]
[3283,"2012-02-25","KW60MN17 ",6848868.7254991038,2370724.7881670017,1728453.9392095478,100545.22287207549,541725.62608537858,"Winter",209525.36236,58111.113299999997,79973.906940999994,1535.0682248000001,55722.674442000003,27406.293581999998,5977.4783491999997,747.06969021999998,1069.0547337999999]
[3286,"2011-09-06","KW60MN09 ",6916165.9163076859,2370649.5356702958,1752463.8101420742,113881.57044000001,504304.15508822171,"Summer",120293.88992,66547.170962000004,120446.66493,2311.9271672,55950.672292000003,35996.545729999998,8482.1201736999992,33643.918954000001,0]
[3290,"2012-06-01","KW60MN11 ",7194400.3801253503,2370346.2416527742,1712404.1640333785,132475.05070431976,525467.02691507596,"Summer",115801.38754,87018.820063000006,121398.85236999999,2330.2040369000001,56680.265411,43878.854456000001,9098.9560239000002,28465.469627999999,0]
[3293,"2012-03-07","KW60MN18 ",7000180.6229404351,2370030.2120762509,1749081.025455117,95768.967788744761,525180.21883238922,"Winter",195572.93311000001,63757.413982999999,104728.18225,2010.2169690000001,55722.674442000003,33527.726916,7284.4721245000001,1354.3257784,3042.6996786999998]
[3294,"2011-09-27","KW60MN11 ",6852881.5003586765,2369828.0628568865,1758919.2233860365,95131.888453000007,515776.95101785002,"Summer",109107.28576,67048.049713999993,142631.67936000001,2737.7599421999998,55859.473151999999,43239.917033999998,10761.204059,30217.333901999998,0]
[3297,"2012-06-14","KW60MN18 ",7632884.215001598,2369409.170021316,1725223.2574304149,130429.73078731546,513756.1818035855,"Summer",140341.40012999999,72123.649669999999,106424.7307,2042.7815605999999,55677.074871999997,38355.692990000003,8072.1422623999997,31339.352039000001,0]
[3301,"2012-01-17","KW60MN05 ",6835234.1075904658,2369208.6583055463,1704652.8365135014,103811.0678507221,560744.75394132291,"Winter",288969.79353999998,58152.928716000002,88248.481039000006,1693.8954756000001,50250.726051999998,32298.05989,8171.5031448,742.46966563000001,3053.2304963000001]
[3305,"2012-03-29","KW60MN21 ",6809503.1270003906,2368926.8232335122,1744595.5039133758,106786.95135400427,517544.3679661323,"Winter",198359.27703999999,61092.716011999997,89064.127089000001,1709.5514862,48061.946695999999,32432.764450999999,6502.7153571999997,1354.3257784,3053.2304963000001]
[3308,"2012-05-21","KW60MN11 ",7266985.3570456989,2368630.3686813544,1724068.3277655682,134645.22594276958,509916.81497301685,"Summer",100362.95342000001,71948.116190000001,114773.73933,2203.0375534,56862.663690000001,46136.722238000002,9003.4990164999999,21356.368259999999,0]
[3312,"2011-12-02","KW60MN16 ",7217994.9245507605,2368189.1927972911,1753001.2022363266,88876.163257000007,526311.8273039643,"Winter",176412.65072999999,66818.407175999993,129932.44583,2494.0030642000002,55129.880033000001,36425.461063000002,7456.0682261000002,816.33821894000005,2188.5725819999998]
[3315,"2011-11-13","KW60MN18 ",7107230.5027167806,2367597.2853272296,1713367.749236773,109035.01551100001,545194.52057945658,"Winter",272157.46626000002,57162.810884999999,98943.165745999999,1899.1758138,56041.871432,27926.224904999999,6759.8107088999996,4955.8928413000003,3053.2304963000001]
[3318,"2011-07-19","KW60MN13 ",8546130.5914235562,2367346.8819218446,1702520.1651187225,124503.983937,540322.73286612192,"Summer",147695.77187999999,76436.388231999998,113788.68476,2184.1298118,50752.321321000003,41130.746815999999,10351.916859999999,44305.729539,0]
[3319,"2012-04-03","KW60MN14 ",6711965.2678748686,2367062.4540035566,1789151.8800993902,98197.719431240141,479712.85447292653,"Summer",150017.26235,77532.465014999994,110625.24842,2123.4088744000001,53169.098527000002,36567.494740000002,8159.3767555000004,7467.6597125999997,0]
[3322,"2011-12-29","KW60MN22 ",6825901.7191349212,2366738.1058981204,1712978.6975477748,88231.286559999993,565528.12179034576,"Winter",263775.44618000003,59905.348772999998,93027.450750999997,1785.6259516,55357.877883000001,28921.357316000001,5956.3303876999998,816.33821894000005,3053.2304963000001]
[3326,"2012-03-15","KW60MN22 ",6569418.2667576447,2366282.3511080518,1757241.7489500691,96273.205971494084,512767.3961864888,"Winter",174678.76639999999,57575.326774000001,85700.112141999998,1644.9805197999999,56224.269711000001,33901.510613999999,6228.9515124999998,1354.3257784,3053.2304963000001]
[3330,"2011-10-24","KW60MN13 ",6962466.7478183378,2365608.1833499977,1750342.0061662211,93614.366280000017,521651.81090377679,"Summer",126723.54667,64842.893906999998,135310.54902999999,2597.2336759,55768.274012000002,46524.349284999997,9703.5419027999997,19170.103298999999,0]
[3333,"2012-02-12","KW60MN17 ",7040666.2825704971,2365574.6640602918,1742408.2447486105,103058.59542839977,520107.82388328161,"Winter",209693.11658999999,47148.229314999997,79549.037572000001,1526.9130215,55403.477453,26920.952980999999,6209.9569460000002,747.06969021999998,2035.9110573999999]
[3337,"2011-07-28","KW60MN09 ",7476376.5104691535,2365539.1430725129,1723245.7614868546,133373.66765800002,508919.71392765851,"Summer",124248.45107,67887.055848999997,97803.710758999994,1877.3044159000001,54993.081323999999,39231.184764999998,7621.2701666000003,36515.859830000001,0]
[3340,"2011-10-07","KW60MN13 ",6897700.699738862,2365136.8293514014,1725235.9918426382,99865.139354999992,540035.69815376308,"Summer",102118.43763,73236.458081999997,137657.49614,2642.2824181999999,55996.271862000001,42701.935390999999,8264.0788016000006,19170.103298999999,0]
[3343,"2012-04-07","KW60MN11 ",6424283.9586501801,2364809.7990087159,1767330.954841749,102662.84725014093,494815.99691682594,"Summer",209477.85954999999,57004.166502,73900.838730000003,1418.4980284000001,55722.674442000003,24453.930965,5658.1461663,7467.6597125999997,0]
[3347,"2012-06-16","KW60MN21 ",7173665.8114562156,2364258.4919701708,1716213.334716317,119651.54814264947,528393.60911120416,"Summer",153585.09213,64496.536483999997,92475.892559,1775.0390053000001,55129.880033000001,32998.767877999999,6469.6102993000004,35848.660388999997,309.52124151999999]
[3348,"2012-01-01","KW60MN22 ",6579474.0024886345,2364226.170196496,1718268.4909290527,95046.111138181121,550911.56812926219,"Winter",246053.86723,54150.487724999999,72632.021844000003,1394.1435789,55722.674442000003,16799.709360000001,6395.9073185999996,742.46966563000001,3053.2304963000001]
[3352,"2011-12-13","KW60MN02 ",6232791.4159907866,2363939.616905577,1695268.2253019693,84890.957800000004,583780.43380360783,"Winter",296519.49700999999,58552.403799,98696.714275999999,1894.4452730999999,57546.657239,31183.269848,7706.7152431000004,816.33821894000005,3053.2304963000001]
[3355,"2011-11-26","KW60MN11 ",6781713.0117033795,2363334.8377131992,1719157.5021203116,108078.81246000002,536098.52313288755,"Winter",239362.38329999999,56615.039223,82466.363477000006,1582.9099644,56178.670141000002,29320.453262999999,5568.8006014000002,4955.8928413000003,0]
[3358,"2011-10-18","KW60MN12 ",6784859.6289742207,2363170.9101991905,1736095.0216461739,101316.316442,525759.57211101672,"Summer",134481.80888,71020.785755000004,135804.45590999999,2606.7140275000002,55540.276163000002,44957.216981999998,10208.066031,19170.103298999999,0]
[3362,"2011-08-31","KW60MN10 ",7673483.9139508707,2362860.0038460935,1731678.7379155667,132481.74618399999,498699.51974652696,"Summer",102214.45011999999,68085.436446000007,107448.66764,2062.4356343999998,55038.680892999997,39520.805500000002,9650.1539663000003,35138.564535999998,0]
[3364,"2011-10-31","KW60MN21 ",6727401.3049070081,2362668.8071041997,1717077.6825376065,95194.795308000015,550396.32925859315,"Summer",208968.85243,50068.778371,110381.9546,2118.7389435,56999.462399999997,39748.202857999997,6580.8961124999996,19170.103298999999,3053.2304963000001]
[3369,"2012-03-04","KW60MN10 ",6433132.2587604811,2362256.9591583586,1737919.6124615967,103405.55123047534,520931.79546628654,"Winter",231981.02757999999,49372.772794999997,75065.967237999997,1440.8622197,55084.280463000003,24307.554422000001,5715.3160873999996,1354.3257784,0]
[3370,"2011-08-10","KW60MN22 ",7166516.5180282146,2362040.9976776754,1736312.6694349193,123611.05821700001,502117.27002575638,"Summer",174513.96917,70178.797395999994,96621.088250999994,1854.6044340000001,55494.676592999997,35246.492040999998,7870.8404878000001,52944.430657999997,3053.2304963000001]
[3373,"2011-10-26","KW60MN16 ",6718267.7331802277,2361766.1610106705,1714536.3145905763,88591.228887000005,558638.61753309402,"Summer",196502.36446000001,73889.554010000007,136167.60195000001,2613.6844753,56452.267561000001,42651.694518999997,8284.9423518999993,19170.103298999999,0]
[3377,"2012-02-02","KW60MN23 ",6720891.530707364,2361679.4669652674,1696730.3883380007,94596.507761398214,570352.57086586859,"Winter",241346.13959999999,65709.623802999995,90745.835321000006,1741.8312255000001,57911.453798000002,32506.383759,6093.4755601999996,747.06969021999998,3053.2304963000001]
[3380,"2011-11-05","KW60MN16 ",6796430.7813622467,2361158.1703514755,1758686.21138395,114091.073661,488380.88530652574,"Winter",212394.42814999999,55903.744925999999,97494.646271000005,1871.3720424999999,57181.860679999998,29765.094860000001,5720.3711472000005,4955.8928413000003,967.28038360000005]
[3383,"2011-07-19","KW60MN11 ",8189029.5684885485,2361061.208428029,1703550.1079138436,131569.74785099999,525941.35266318521,"Summer",133650.35075000001,78454.703494000001,113363.70585,2175.9725059000002,48153.145836000003,39714.782310000002,10160.792923000001,44126.504724999999,0]
[3385,"2011-12-05","KW60MN24 ",6783887.4121202584,2360725.9552452881,1742815.4138519121,85003.198927000005,532907.34246637626,"Winter",279931.22359000001,55268.328641,94075.819472000003,1805.7489839,58413.049068,31968.769241000002,6996.1356205000002,816.33821894000005,3053.2304963000001]
[3391,"2011-08-07","KW60MN22 ",6904789.4159369264,2360246.4530458841,1701207.0566372948,121365.669374,537673.72703458916,"Summer",232685.12265,66978.923483999999,98217.198980000001,1885.2411623999999,55403.477453,27834.101151999999,6873.4124368000003,36171.876626999998,3053.2304963000001]
[3394,"2011-10-20","KW60MN19 ",6905841.3339050477,2359709.6191526074,1717572.1443058802,100849.343332,541288.13151472702,"Summer",182388.0632,66558.850806000002,136532.27851999999,2620.6843011000001,57409.858528999997,44851.000598999999,7489.8318300999999,19170.103298999999,2744.4725620999998]
[3395,"2011-12-02","KW60MN15 ",7073957.6060862429,2359644.0675249519,1762769.3393309803,83351.447654999996,513523.28053897177,"Winter",163795.90677999999,70964.399858999997,132062.42681,2534.8872256,54628.284764000004,37746.584545999998,8035.2907720000003,816.33821894000005,0]
[3398,"2011-11-03","KW60MN22 ",6719090.1554799639,2359272.885927544,1732676.4036670239,98775.198427999989,527821.2838325199,"Winter",216272.92334000001,59188.321407000003,108461.76072000001,2081.8815644000001,56452.267561000001,39189.892640999999,6383.6573472,4955.8928413000003,3053.2304963000001]
[3402,"2011-07-13","KW60MN18 ",8267530.7742876178,2359055.4750879076,1659794.8462967635,131309.20263700001,567951.42615414422,"Summer",236439.50854000001,76572.183890999993,110148.56488999999,2114.2591183,54673.884334000002,38358.94945,7660.2547366999997,33213.939987999998,0]
[3405,"2012-02-25","KW60MN15 ",6744841.4387933053,2358789.3278470919,1722437.4463425111,98196.488110343271,538155.39339423773,"Winter",210562.26324999999,59729.823326999998,79448.396607999995,1524.9812571,55996.271862000001,26630.061729000001,6107.9263281000003,747.06969021999998,0]
[3410,"2011-10-21","KW60MN08 ",6541322.9164023288,2358422.362907791,1721716.3253056852,102347.85568200001,534358.18192010594,"Summer",193046.34964,56670.454611000001,128552.28202,2467.5113534000002,57683.455949000003,46176.459586999998,8150.5177030000004,19170.103298999999,1271.7553132999999]
[3413,"2011-09-28","KW60MN09 ",6881742.4674848327,2358342.7149654226,1752350.1674438794,97223.866023999988,508768.68149754318,"Summer",113094.6177,59610.155140000003,123114.64031,2363.1379231000001,55038.680892999997,38996.851897,8230.2339377999997,30217.333901999998,0]
[3416,"2011-09-23","KW60MN11 ",6757654.9510555649,2358215.4984254437,1727844.3039030237,104781.42817900001,525589.76634341967,"Summer",136445.67165999999,80680.897159999993,137002.71726,2629.7141909000002,56406.667991000002,43247.994308000001,10607.866104000001,30217.333901999998,0]
[3417,"2011-11-26","KW60MN18 ",7165735.2526546651,2358197.2811951656,1707042.4482438345,120598.59646299999,530556.23648833088,"Winter",227112.93293000001,65686.580654999998,87732.134300999998,1683.9843996,55631.475301999999,27858.458181999998,6406.3492519000001,4955.8928413000003,3053.2304963000001]
[3420,"2011-09-13","KW60MN08 ",6560766.4600427728,2358122.4004283627,1734529.7180693471,104762.477061,518830.2052980155,"Summer",149534.58209000001,58282.716542000002,113123.95617999999,2171.3706037000002,53989.890785000003,39304.886355000002,9029.7121953999995,27894.001092999999,0]
[3423,"2012-02-19","KW60MN22 ",6851069.3229291625,2358041.3986485936,1716382.8065523738,100360.04806097603,541298.54403524357,"Winter",238825.00380000001,56408.653537999999,72373.365797000006,1389.178776,55129.880033000001,25347.663271000001,6368.1705118,747.06969021999998,3053.2304963000001]
[3427,"2012-02-19","KW60MN12 ",6743884.3919117283,2357765.1347426958,1739253.5594508629,103432.82959747086,515078.74569436227,"Winter",271289.11449000001,47980.486880999997,72562.094647999998,1392.8013533000001,41997.203895999999,24552.253667000001,6006.4357524999996,747.06969021999998,0]
[3431,"2012-05-21","KW60MN16 ",7856276.4113763524,2357507.6234726887,1729322.3609452089,127476.03133604549,500709.23119143397,"Summer",121168.32527,66995.428555000006,101057.26949999999,1939.755218,56999.462399999997,43548.296106000002,8328.3166646999998,21356.368259999999,0]
[3434,"2011-07-24","KW60MN12 ",7746361.1081267847,2357341.6916325632,1694028.2303722275,124753.90010499999,538559.56115533586,"Summer",203470.31219999999,62110.261953000001,90192.850508999996,1731.2168958,55129.880033000001,28879.281160999999,6429.2646221000005,39825.951535,0]
[3438,"2012-04-03","KW60MN19 ",6635060.8000831874,2356724.4761920362,1768924.1998977128,98881.7272203108,488918.54907401244,"Summer",160890.02153,54206.460674000002,92415.708377000003,1773.8837931999999,55585.875732,32184.986164999998,6301.8757495,7467.6597125999997,0]
[3441,"2012-05-17","KW60MN11 ",7365817.8249173518,2356549.8666422269,1714698.7196121425,131783.33853072449,510067.80849936017,"Summer",108339.79002,77242.316739999995,119261.89434,2289.1859537999999,55129.880033000001,37304.859784,8597.0711594999993,21356.368259999999,0]
[3442,"2012-05-17","KW60MN15 ",7413417.0211461987,2356496.0222450038,1704195.6483844905,120943.83553163896,531356.53832887462,"Summer",114483.55024,82407.296665000002,123907.94721,2378.3651423000001,54309.087775,37829.580936999999,9138.1369732999992,21356.368259999999,0]
[3445,"2012-06-11","KW60MN17 ",7305246.2508866601,2355781.4680839446,1699806.9069483755,128497.23698577836,527477.3241497908,"Summer",139806.18273999999,75584.236850000001,114690.7801,2201.4451832,53670.693796,40453.580283000003,8084.8797952000004,29727.187000000002,0]
[3448,"2012-05-16","KW60MN09 ",7141049.4883878082,2355378.2462455705,1705108.8106084953,128458.9348606969,521810.5007763785,"Summer",108435.96148,70331.388957000003,120205.28919,2307.2940531999998,53488.295515999998,37464.078896999999,10035.909573000001,21356.368259999999,0]
[3452,"2012-06-13","KW60MN18 ",7562295.6364751831,2355234.6099936441,1704763.4265223118,127452.99513856767,523018.1883327649,"Summer",135630.56713000001,68466.638976999995,108263.86782,2078.0830866000001,56041.871432,38724.259965999998,7932.6591670999996,31870.377368000001,0]
[3456,"2011-09-20","KW60MN12 ",6635038.610277866,2354727.8685773509,1730889.5653259659,101904.17573,521934.12752138521,"Summer",121552.92633,76958.388397000002,133040.7806,2553.6663484000001,56634.665841000002,41788.322989,10617.556381,30217.333901999998,0]
[3459,"2011-12-06","KW60MN05 ",6830421.356556233,2354472.2203587135,1702708.8311219879,88708.256559000001,563055.13267772575,"Winter",307534.08630999998,56150.104632000002,97504.268257999996,1871.5567328,58367.449498000002,31399.886074999999,7640.0412677000004,816.33821894000005,3053.2304963000001]
[3463,"2011-10-21","KW60MN09 ",6620659.9545101468,2354324.1961103594,1730622.4620222901,99451.944514999996,524249.78957306937,"Summer",151873.31644,57605.650342000001,132642.08931000001,2546.0136232,57911.453798000002,46401.325495999998,8486.5082225000006,19170.103298999999,0]
[3466,"2011-08-07","KW60MN15 ",7419530.8972994862,2354192.2472960139,1674033.5265113912,121023.974791,559134.74599362304,"Summer",222711.68427999999,60771.612696999997,105458.15581,2024.2285294000001,55403.477453,28066.049642000002,7729.5899839000003,28930.206040000001,0]
[3467,"2011-12-01","KW60MN23 ",6614527.8090698859,2354170.6449328153,1732515.0367991137,86980.121530000004,534675.48660370137,"Winter",294257.99446999998,65948.193732999993,99651.518288000007,1912.772367,57637.856378999997,33163.960879999999,5892.4802036999999,816.33821894000005,3053.2304963000001]
[3473,"2012-04-05","KW60MN19 ",6597444.7601533178,2353767.3794042296,1748008.8459176987,103230.26635259988,502528.26713393111,"Summer",200112.88531000001,63412.011000999999,82755.749941999995,1588.4646256999999,48928.338523999999,32140.458466,6641.0777394999996,7467.6597125999997,0]
[3474,"2012-02-03","KW60MN15 ",6878830.3737444906,2353739.9881028524,1720510.3216330395,90248.408441540974,542981.25802827196,"Winter",164423.52254000001,75332.131219999996,120350.4213,2310.0798077999998,53944.291214999997,34333.802501999999,8791.3371566000005,747.06969021999998,0]
[3478,"2012-01-02","KW60MN22 ",6797211.6495307731,2353339.4249316626,1681414.574681642,90393.989376513578,581530.8608735071,"Winter",271585.33403999999,52639.500918999998,79774.332498999996,1531.2374706000001,56634.665841000002,24637.595771,6339.5533850000002,742.46966563000001,3053.2304963000001]
[3481,"2011-09-27","KW60MN10 ",6787949.2627361342,2353084.4010284226,1742848.6223951003,97295.228067000004,512940.55056632258,"Summer",103335.35531,65909.355721,138581.89423999999,2660.0258823999998,56361.068421000004,42774.180220000002,10415.116962,30217.333901999998,0]
[3485,"2011-12-16","KW60MN06 ",7008859.6362954834,2352634.0212553032,1661937.6981224471,91413.079169999997,599283.24396285589,"Winter",276590.41525999998,59305.642055999997,100546.58928,1929.9529086,58549.847777000003,33735.472871999998,8546.8235901999997,816.33821894000005,3053.2304963000001]
[3488,"2012-04-04","KW60MN17 ",6525234.5574649582,2352497.9500490455,1771806.7153199881,115516.24113690149,465174.99359215592,"Summer",144995.23400999999,66384.082164000007,96258.537481000007,1847.6454122,49429.933792999997,33127.861578999997,7016.2949159,7467.6597125999997,0]
[3491,"2011-10-11","KW60MN21 ",6837511.9799151681,2352144.9177404288,1755147.484342502,95982.024676000001,501015.40872192685,"Summer",183220.70837000001,62246.653736,122013.26828,2341.9975126999998,40492.418088999999,40621.402555000001,7168.2446769999997,19170.103298999999,3053.2304963000001]
[3494,"2012-03-02","KW60MN16 ",6922106.9389370177,2351937.2449969724,1734131.0340487428,91487.30662537177,526318.90432285774,"Winter",218334.74875,73491.701795999994,104660.7552,2008.9227327999999,52941.100677000002,33272.355856000002,7815.0536828000004,1354.3257784,0]
[3496,"2012-03-22","KW60MN19 ",6790284.2935501728,2351655.1127610356,1767186.831405519,96023.297848901988,488444.9835066144,"Winter",238723.70263000001,70120.431920000003,105484.81547,2024.7402513,56771.464549999997,32886.989618,6996.3133772000001,1354.3257784,3053.2304963000001]
[3499,"2012-03-28","KW60MN20 ",6823128.3105052039,2351186.7121021631,1751283.7673703022,103760.77823535676,496142.16649650416,"Winter",208263.28416000001,65815.979636000004,94221.167566999997,1808.5388843999999,39306.829271000002,32171.246003,6913.1655929999997,1354.3257784,3053.2304963000001]
[3503,"2011-12-26","KW60MN08 ",6703471.7333959322,2351050.7299655117,1700015.0345471846,92855.018079999994,558180.67733832728,"Winter",254432.79253000001,56820.129825999997,84919.736913000001,1630.0015189999999,56680.265411,22028.619306000001,7347.2608485000001,816.33821894000005,0]
[3506,"2012-03-02","KW60MN17 ",6955989.1773106214,2350900.2091796296,1726223.7921921425,93858.626077532128,530817.79090995528,"Winter",198660.77467000001,71676.986025000006,98832.821037999995,1897.0577897999999,54719.483904000001,31773.126220999999,7131.4541313,1354.3257784,611.07015908999995]
[3510,"2012-04-03","KW60MN22 ",6540590.8082774393,2350418.9825113034,1766994.4006469084,99762.560915100083,483662.02094929456,"Summer",192956.55851999999,61443.498568000003,84825.971485999995,1628.2017278999999,55859.473151999999,32232.773891000001,6385.8056629000002,7467.6597125999997,3053.2304963000001]
[3513,"2011-07-13","KW60MN17 ",8380189.0507814009,2350203.5039057289,1656992.1075477493,130776.07832199999,562435.31803597964,"Summer",209848.30090999999,84705.418823999993,110771.23611,2126.2110514999999,50889.120030999999,38938.655974000001,8535.1424391,35009.385489,0]
[3515,"2011-11-14","KW60MN12 ",7094407.0176245309,2350120.3974385215,1703096.5791027399,105187.690762,541836.12757378165,"Winter",155421.49647000001,75462.661389000001,129587.30202,2487.3781622000001,56178.670141000002,41123.961845999998,9919.4908245000006,4955.8928413000003,0]
[3518,"2012-02-27","KW60MN24 ",6440701.999731916,2349981.8072272437,1695455.9043310306,90197.076054911871,564328.82684130105,"Winter",279605.60359000001,53800.269158000003,86546.482063999996,1661.2262633,54126.689494999999,33940.669807999999,6772.9782439999999,747.06969021999998,3053.2304963000001]
[3521,"2012-05-24","KW60MN12 ",6976858.3572118022,2349746.5690286825,1720592.5185528016,124759.05647123915,504394.99400464172,"Summer",132542.84215000001,78069.191519999993,116668.4991,2239.4067346000002,54582.685193999998,44133.265168999998,8805.9741460999994,21356.368259999999,0]
[3525,"2012-02-01","KW60MN23 ",6584417.2143485025,2349635.6598056704,1702181.4261411384,94263.886603064544,553190.34706146747,"Winter",243062.65286999999,63964.320271999997,89829.046625000003,1724.2338209,57181.860679999998,31906.879594000002,6847.4108730999997,747.06969021999998,3053.2304963000001]
[3528,"2012-02-02","KW60MN15 ",7020433.5283434587,2349108.7304746183,1736101.6920385279,92195.228670751429,520811.80976533866,"Winter",161729.31200999999,73390.233854999999,121481.70675,2331.7943948000002,55129.880033000001,35330.087122999998,9009.0297873,747.06969021999998,0]
[3531,"2011-09-16","KW60MN12 ",6699464.8433035053,2348086.8138087867,1722590.9161485485,100436.46187099999,525059.43578923796,"Summer",108171.02892,81780.012405000001,134049.83564999999,2573.0347700000002,54765.083473999999,39633.489861000002,9097.7066484999996,30217.333901999998,0]
[3535,"2012-05-16","KW60MN22 ",6902962.5356596727,2347480.4173061219,1676422.3858207269,132742.54417395656,538315.48731143842,"Summer",176197.38308999999,64907.450390999998,89978.057608999996,1727.0940290999999,55585.875732,33967.374657,6801.4514712999999,21356.368259999999,3053.2304963000001]
[3536,"2012-02-03","KW60MN17 ",6980605.8301035296,2347305.2487940234,1690671.5467649032,90369.10112242926,566264.60090669082,"Winter",203319.98203000001,72029.296648999996,111056.04497,2131.6778475000001,58549.847777000003,32510.968032000001,7180.5792948999997,747.06969021999998,2744.4725620999998]
[3542,"2011-09-27","KW60MN21 ",6891621.7045058459,2346892.1643373682,1718881.5283852026,113784.247386,514226.38856616581,"Summer",183527.30392000001,61786.359589,109085.40820000001,2093.8522367,56908.26326,38221.934890999997,8086.5659439999999,30217.333901999998,3053.2304963000001]
[3543,"2011-09-27","KW60MN13 ",7044202.2139781509,2346855.9498080569,1743916.9677506897,94276.302771999995,508662.67928536719,"Summer",117610.28857,71660.373298999999,146630.76277999999,2814.5208023,56634.665841000002,43734.216205999997,11157.48963,30217.333901999998,0]
[3546,"2011-09-28","KW60MN11 ",7080919.880536736,2346138.3069853745,1739800.4104306805,93627.099627999996,512710.79692669399,"Summer",106567.35868,67965.318354000003,129308.6903,2482.0303179000002,55266.678742999997,41223.009189999997,8925.0897163000009,30217.333901999998,0]
[3550,"2012-06-15","KW60MN12 ",7427966.1766491327,2345695.7757071238,1709234.4171010684,132463.0914384918,503998.26716756332,"Summer",138432.18359999999,76937.217172999997,121773.82094999999,2337.4014137999998,49566.732502999999,44127.523033999998,8820.9547987000005,29556.334168000001,0]
[3553,"2011-12-27","KW60MN22 ",6945353.8638414247,2345524.8975185039,1723639.2219999223,81941.984060000003,539943.69145858171,"Winter",241230.32899000001,61405.730686000003,95255.314761999995,1828.38894,56908.26326,30091.190274,6103.1268983,816.33821894000005,3053.2304963000001]
[3556,"2012-02-23","KW60MN06 ",6840778.0041212514,2345224.151964338,1698609.9872712842,90676.428522651549,555937.73617040215,"Winter",230688.22412,54344.184495000001,86394.163008999996,1658.3025579,57683.455949000003,33013.835694000001,7774.2898525999999,747.06969021999998,2696.1580168999999]
[3561,"2011-12-02","KW60MN23 ",6650148.3745563943,2344990.1875183838,1701036.4947456254,91861.985749999993,552091.70702275855,"Winter",264227.39056999999,62365.844703000002,94482.374741000007,1813.5526551,58367.449498000002,32068.49727,6181.7664360999997,816.33821894000005,3053.2304963000001]
[3564,"2012-06-29","KW60MN20 ",7825263.2241868451,2344710.9018094027,1646694.62453466,130183.0060559376,567833.27121880499,"Summer",167795.02434,74092.248869999996,123195.78078,2364.6953830000002,56041.871432,40250.991823999997,7820.1747666000001,37211.052528,0]
[3567,"2011-11-19","KW60MN06 ",6595959.0971168829,2344517.0229115221,1699947.9415112433,97540.923921999987,547028.15747827885,"Winter",250124.86431999999,53963.301718000002,90883.924698000003,1744.4817977,57409.858528999997,33968.067264999998,6122.6496568000002,4955.8928413000003,3051.972452]
[3568,"2011-10-19","KW60MN12 ",6718265.0431226045,2344402.9080329784,1737419.4452966712,91131.969983000003,515851.49275330716,"Summer",134655.79506999999,68135.660256999996,134018.56151999999,2572.4344752000002,47423.552716999999,44745.441057999997,9922.9240678000006,19170.103298999999,0]
[3571,"2012-06-20","KW60MN22 ",7145057.9475682415,2343745.8142592739,1687868.9107268692,137933.03438227874,517943.86915012595,"Summer",174026.02142,65255.776145999997,94786.102497,1819.3825919000001,54628.284764000004,38902.652454000003,7163.2878057999997,42513.600548000002,3042.6996786999998]
[3575,"2011-08-01","KW60MN09 ",6947991.1476172665,2343249.4114172133,1738241.286818634,113847.60063999999,491160.52395857894,"Summer",111850.65247,61385.502655999997,97174.675908000005,1865.2303351,55768.274012000002,36815.505415,9468.2530588000009,26426.192532000001,0]
[3578,"2011-10-05","KW60MN15 ",6842316.6793750096,2342561.8676526584,1726914.2751636566,101073.18673799999,514574.4057510019,"Summer",142402.0385,67228.736208000002,129758.04897,2490.6555837999999,56817.064120000003,41908.416856999997,9531.7172575000004,19170.103298999999,0]
[3582,"2011-12-22","KW60MN03 ",6473658.6628257819,2341980.467179561,1694923.1325873954,88522.359427999982,558534.97516416584,"Winter",251188.37823,54292.794146,94249.421380999993,1809.0812054,56589.066271000003,31236.783961000001,7439.9787108999999,816.33821894000005,3053.2304963000001]
[3586,"2011-08-15","KW60MN10 ",7300861.1376306619,2341740.9390060734,1731119.1119511661,126906.623794,483715.2032609075,"Summer",123611.39198,69971.744888000001,107245.94497,2058.5444511000001,55540.276163000002,35217.267381999998,8274.6223100999996,43079.653758,0]
[3589,"2011-10-10","KW60MN10 ",6804646.4433567626,2341460.0304810829,1736894.7309051612,96889.392416999995,507675.90715892176,"Summer",145207.47046000001,61634.057252999999,126104.79683000001,2420.5328215,53077.899386999998,41995.811607000003,7533.2653946999999,19170.103298999999,0]
[3590,"2011-09-05","KW60MN14 ",7015872.9882757515,2341149.6175050819,1707016.182031641,113216.71431600001,520916.72115744086,"Summer",198525.98201000001,58136.863909,106574.36278,2045.6536907,53989.890785000003,22259.764887000001,7209.3420115999998,36816.716581000001,0]
[3593,"2012-05-24","KW60MN14 ",6960809.3835600475,2340582.0623949394,1711188.0579392868,122731.41086882095,506662.59358683153,"Summer",117505.61705,72582.216503999996,120602.11236,2314.9109204000001,55357.877883000001,46054.885493000002,8941.3011219,21356.368259999999,0]
[3596,"2012-02-04","KW60MN13 ",6768574.0512257516,2340154.7559086862,1680537.2482138176,99269.001012223525,560348.50668264506,"Winter",245028.92152,60749.628431999998,77660.293510000003,1490.6593095000001,57683.455949000003,26252.455618,6770.8739433000001,747.06969021999998,0]
[3599,"2012-01-13","KW60MN01 ",6597364.0060403636,2339819.297727732,1689495.1775566321,89557.357329495455,560766.76284160465,"Winter",270668.11223999999,63312.058275000003,90114.592103999996,1729.7147560000001,56999.462399999997,32913.614066000002,7108.9247475000002,742.46966563000001,3053.2304963000001]
[3604,"2011-08-11","KW60MN10 ",7396054.6155492729,2339530.9470880004,1732165.1619491216,126832.52279300001,480533.26234587864,"Summer",124676.45329,79994.376537000004,108108.84686999999,2075.1075194,46602.760457999997,38976.626664000003,9099.4131125000004,46740.371693000001,0]
[3607,"2011-07-19","KW60MN15 ",8649176.7930831183,2339303.9120585979,1670110.9155518175,119337.226996,549855.76951078034,"Summer",153926.83256000001,80855.080925999995,119430.81852,2292.4283879999998,51162.717449999996,40772.707984000001,10354.700021000001,44199.027081,0]
[3611,"2012-06-01","KW60MN22 ",6971556.2961539691,2338911.8702423321,1687192.2431651084,130325.67960930917,521393.94746791472,"Summer",174283.88472999999,69523.715461,84588.905687000006,1623.6513414999999,56543.466700999998,36863.726762999999,6896.2753272999998,29065.943857999999,3053.2304963000001]
[3614,"2011-11-18","KW60MN06 ",6796714.8536307868,2338735.821691216,1677508.6001535403,94864.816059000004,566362.40547867573,"Winter",245467.39512999999,54484.324947000001,107671.92576,2066.7209876000002,56634.665841000002,37310.860890999997,7240.4443449999999,4955.8928413000003,3048.6082443999999]
[3615,"2011-11-03","KW60MN17 ",6870884.9902020786,2338727.3966548871,1736636.0973499932,104798.871115,497292.42818989418,"Winter",206716.63424000001,64148.283035,126341.69349000001,2425.0799612999999,53442.695946,40660.926893000003,7274.5533038000003,4955.8928413000003,3053.2304963000001]
[3618,"2012-06-29","KW60MN12 ",7975905.3545782166,2338327.3957757591,1671160.304864736,133885.44516441002,533281.64574661327,"Summer",120073.00503,84210.612175999995,129838.13370999999,2492.1927795000001,56041.871432,41766.60428,8873.6926540000004,36985.819285999998,0]
[3624,"2011-07-03","KW60MN20 ",7701213.0126060788,2337226.6556664705,1670203.7343918493,128600.03939800001,538422.8818766214,"Summer",193464.35740000001,55460.714261000001,84392.475456999993,1619.8809392000001,54126.689494999999,25186.35009,6505.9945445000003,48535.541880999997,0]
[3626,"2011-11-14","KW60MN13 ",7045956.9728686716,2337185.886559302,1701397.9730099197,101012.63437100001,534775.27917838236,"Winter",162403.32832999999,69359.019860999993,128999.39305,2476.0934769,56361.068421000004,41851.723405999997,9766.6201151000005,4955.8928413000003,0]
[3629,"2011-09-19","KW60MN10 ",6662067.2044879962,2337032.6160783619,1732899.4473195586,103948.208939,500184.95981980325,"Summer",114042.35279999999,68251.488186999995,119394.74609,2291.7359916,56041.871432,38545.836719999999,10031.182939,30217.333901999998,0]
[3633,"2011-10-03","KW60MN13 ",6878961.975753108,2336214.0624818741,1701837.1514783602,105964.433284,528412.47771951405,"Summer",107195.64215,76250.489272000006,131671.07311999999,2527.3753428,56315.468850999998,42733.279608999997,10150.513510000001,19170.103298999999,0]
[3636,"2012-06-11","KW60MN16 ",7250737.2660529716,2336136.8370940336,1690013.806037992,128685.03213030448,517437.99892573722,"Summer",124732.64693,83884.336565999998,116276.87556,2231.8896722999998,53670.693796,41354.017018999999,9159.3831233000001,30110.908231000001,0]
[3639,"2011-09-04","KW60MN18 ",7289899.6418913836,2335717.9123126669,1713186.4379400411,110786.76817799998,511744.70619462588,"Summer",190511.95501000001,61158.342626999998,90274.011989000006,1732.7747591,54628.284764000004,25247.266265999999,5676.2265556000002,34202.180186999998,0]
[3640,"2011-10-07","KW60MN19 ",6852522.217748588,2335709.145734577,1681178.2812364241,100336.96778399999,554193.89671415288,"Summer",151115.33820999999,58511.864184999999,128121.31564,2459.2391204999999,55859.473151999999,39876.067446000001,7162.7799302000003,19170.103298999999,1527.0393077000001]
[3645,"2012-03-30","KW60MN14 ",6670339.5523008145,2335384.8827563063,1713964.2505281849,102369.97035941458,519050.66186870681,"Winter",173190.23907000001,73525.219685999997,111921.44965,2148.2889556999999,54081.089925,34830.254717999997,8301.7242716000001,1354.3257784,0]
[3647,"2012-05-22","KW60MN15 ",7561958.0229528546,2335204.108673553,1704791.1754831637,126381.95697269459,504030.97621769481,"Summer",114222.53915,73246.267607999995,106435.71466,2042.9923934000001,56497.867130999999,44798.048122,8535.3201958000009,21356.368259999999,0]
[3651,"2011-11-30","KW60MN06 ",6760330.9553972771,2334573.072932167,1680769.9665309822,99465.052698,554338.05370318447,"Winter",228330.52892000001,56806.026924999998,107169.89126,2057.0846295000001,57364.258958999999,35701.165023000001,9101.9524927999992,4955.8928413000003,3053.2304963000001]
[3654,"2012-02-18","KW60MN08 ",6700147.5325698014,2334040.9718923746,1674633.5704099343,98585.888702431068,560821.51278000907,"Winter",245550.117,49958.291450999997,78527.170165999996,1507.2986717000001,56224.269711000001,29208.040316999999,6018.7822206999999,747.06969021999998,0]
[3658,"2011-09-28","KW60MN12 ",7141978.8998956988,2333543.4286162569,1730149.3898734751,92182.401851999995,511211.63689078181,"Summer",108400.24428,69635.095763000005,133873.0932,2569.6422670000002,51117.117879999998,41622.084269999999,9285.5192339000005,30217.333901999998,0]
[3661,"2012-02-11","KW60MN20 ",6877968.8964999458,2333257.7131153499,1706747.1520835834,99483.305456140923,527027.25557562558,"Winter",227913.88837,67808.762812999994,83261.597869000005,1598.1741810999999,55859.473151999999,26843.501531999998,6657.1113882999998,747.06969021999998,3053.2304963000001]
[3664,"2011-11-04","KW60MN15 ",6802527.3332811603,2332774.0583013492,1739240.5537885881,100082.112429,493451.39208376128,"Winter",160251.00171000001,73837.140127999999,125527.49634,2409.4517617000001,56634.665841000002,39244.648378999998,7257.8340226,4955.8928413000003,0]
[3666,"2012-05-22","KW60MN16 ",7648422.6457775235,2332697.6272545978,1694956.6361548386,128990.96694686671,508750.02415289264,"Summer",115071.35775,73647.629077000005,101035.33040000001,1939.3341055999999,57364.258958999999,42964.547665999999,7866.1714132999996,21356.368259999999,0]
[3669,"2011-08-16","KW60MN10 ",7138891.3929587994,2331879.4598477217,1730671.1249185291,128463.50627499999,472744.8286541925,"Summer",125652.43358,71845.62311,99038.131236999994,1900.9986397,51573.113579999997,36740.912483,9617.1623338999998,42142.312602999998,0]
[3672,"2012-01-28","KW60MN06 ",6640159.8323991252,2331838.4989710376,1712140.4521463367,101143.52936936602,518554.5174553346,"Winter",252470.99647000001,59246.882913000001,74258.499561999997,1425.3631898000001,52758.702397000001,27871.464467999998,6625.3048000999997,742.46966563000001,3053.2304963000001]
[3676,"2012-06-28","KW60MN11 ",7689204.8779560858,2331450.1458683047,1692352.4856067346,125190.41077059605,513907.24949097401,"Summer",123444.76119999999,85805.136620000005,125788.07839,2414.4535334000002,55996.271862000001,45542.765120999997,9721.3988265999997,38834.157669,0]
[3679,"2012-04-11","KW60MN13 ",6714262.6787971798,2331257.368254764,1745870.7790344709,106425.17442773908,478961.41479255375,"Summer",111137.78178,83316.288669000001,118644.49475,2277.3352073999999,57273.059820000002,37657.543085999998,9143.9843197999999,7467.6597125999997,0]
[3683,"2012-06-27","KW60MN15 ",7885550.8753159214,2331035.966095807,1673260.3068737437,132465.08902463672,525310.57019742671,"Summer",112185.82177,87920.345256999994,111277.06107,2135.9201661000002,55631.475301999999,44195.949461999997,9534.8254591000004,36149.472953999997,0]
[3686,"2011-07-14","KW60MN22 ",7569494.5850832229,2330281.4063009568,1683426.0894942493,138155.66091100001,508699.65589570726,"Summer",189439.47469999999,55737.122771000002,92606.995014999993,1777.5554663,55813.873582,36147.706073000001,6989.4316558,44656.642082999999,3053.2304963000001]
[3687,"2012-06-13","KW60MN13 ",7327104.867475953,2330275.6256517246,1687789.1774724389,131882.2078725,510604.24030678562,"Summer",124722.34510999999,77665.779771000001,112337.45925,2156.2740993000002,56269.869280999999,41667.563506999999,10007.394022,31578.072445000002,0]
[3691,"2012-01-28","KW60MN17 ",6989207.1653358256,2330050.6071536485,1667060.1985716927,94827.858221857328,568162.5503600986,"Winter",248153.88988999999,67059.670106000005,82507.298402,1583.6956944999999,54081.089925,26875.516986999999,6625.3860599999998,742.46966563000001,3019.0088713999999]
[3694,"2011-07-01","KW60MN15 ",7579918.4342114674,2329422.1383756483,1685040.6115766575,126774.66797200001,517606.85882699065,"Summer",168930.95830999999,73628.313710000002,117862.54122,2262.3259115000001,56406.667991000002,37539.511792999998,7352.7865399000002,41799.163692000002,0]
[3698,"2011-12-16","KW60MN23 ",6771679.2574559031,2328964.828843263,1678757.2117035768,88339.96994000001,561867.64719968615,"Winter",267489.10174000001,64356.203216000002,93333.897052999993,1791.5080699,57227.460249999996,30301.238162000001,6500.3266474000002,816.33821894000005,3053.2304963000001]
[3701,"2012-02-13","KW60MN06 ",6766658.2143875668,2328781.1403034967,1694394.6353277853,89570.234159675179,544816.27081603638,"Winter",219300.95715,55993.772437,93808.817976999999,1800.6239934,56543.466700999998,31295.057304000002,7609.8006316999999,747.06969021999998,3053.2304963000001]
[3704,"2011-10-19","KW60MN13 ",6722078.2285081744,2328444.1004706603,1733941.0409382286,88847.492120999988,505655.56741143146,"Summer",137302.70415999999,72265.125373999996,135264.53872000001,2596.3505258,49019.537664000003,45611.524883999999,9718.8797615999993,19170.103298999999,0]
[3708,"2011-10-18","KW60MN14 ",6768412.3457143167,2327972.3873872338,1713913.883161505,98292.644880999986,515765.85934472881,"Summer",135816.05277000001,73237.947587000002,134904.72498,2589.4440402,55768.274012000002,46444.406776999997,9793.3343986,19170.103298999999,0]
[3712,"2011-09-16","KW60MN10 ",6652720.2933706781,2327360.7308454141,1724905.0620180739,105675.37957800001,496780.28924934019,"Summer",104840.95695000001,73125.442523999998,120392.13269,2310.8804418,54673.884334000002,38922.579925999999,8294.7545193000005,30217.333901999998,0]
[3715,"2011-07-13","KW60MN19 ",8017073.0223113718,2327046.617592074,1641852.7707188956,131037.13111900001,554156.71575417812,"Summer",206559.21361999999,65611.637803000005,109013.90224,2092.4797073,54445.886484000002,37750.741685000001,7434.3311279999998,34768.674057999997,0]
[3716,"2011-09-30","KW60MN16 ",7609988.6983719775,2326907.8257863387,1700876.5126423445,92077.793000999998,533953.52014299401,"Summer",93928.082160000005,80570.347573999999,143909.88318,2762.2945703999999,56224.269711000001,39148.400283000003,10178.06071,30217.333901999998,0]
[3719,"2011-09-27","KW60MN15 ",7171316.8747920785,2326796.7121791262,1719730.4231648757,90663.507390000013,516402.78162425081,"Summer",121263.48987,77788.311279000001,145021.79204,2783.6372310000002,56497.867130999999,43371.667477000003,10819.345717,30217.333901999998,0]
[3723,"2012-03-29","KW60MN19 ",6642415.3451767312,2326227.11184425,1713432.0704270387,112372.2620181815,500422.77939902985,"Winter",194142.49656,64149.605432999997,95241.419806999998,1828.1222316999999,48107.546265999998,32589.100580999999,6891.7129060999996,1354.3257784,3053.2304963000001]
[3726,"2012-05-29","KW60MN13 ",7071427.4708983917,2325897.5051667723,1684998.038789175,120939.61724756476,519959.8491300327,"Summer",116088.15315,77675.651962999997,102944.18229,1975.9737795000001,56041.871432,38775.264904000003,8040.0648070999996,23045.259860999999,0]
[3729,"2012-05-17","KW60MN17 ",7377324.1983464072,2325267.1858544736,1676929.3487927208,115912.87802898332,532424.95903276966,"Summer",148270.1722,83146.068883,104557.87681,2006.948022,55677.074871999997,37184.186391000003,8120.3075399999998,21356.368259999999,0]
[3734,"2011-10-12","KW60MN19 ",6865721.3817118444,2324777.3520416236,1717062.0048002296,93857.711020000002,513857.63622139371,"Summer",179966.38441,65327.899061999997,128260.9599,2461.9195380000001,32102.097224000001,40156.791600999997,7588.156645,19170.103298999999,2035.9110573999999]
[3737,"2011-10-31","KW60MN14 ",6746674.1378454687,2324367.6001261482,1696341.6511779595,98378.611434999999,529647.33751318848,"Summer",123167.62969,62073.559381999999,124941.07519,2398.1956344999999,56497.867130999999,44764.803260000001,7982.2685055000002,19170.103298999999,0]
[3740,"2011-11-14","KW60MN07 ",6974724.1138154315,2324134.181823371,1642639.3056183171,108606.55809400001,572888.31811105378,"Winter",256801.0863,54697.242281999999,112340.53836000001,2156.3332015000001,56269.869280999999,36567.668192999998,8962.6116031000001,4955.8928413000003,95.625482946999995]
[3741,"2012-05-30","KW60MN10 ",6951869.7658236362,2324074.2763127727,1691989.4346594007,123976.47929571726,508108.36235765443,"Summer",109334.46619000001,64222.419273,101028.02564000001,1939.1938935000001,56908.26326,39747.234351999999,7984.8129650999999,25455.701008,0]
[3744,"2011-09-20","KW60MN11 ",6581457.8365612654,2323850.1037706411,1711327.8450301504,102215.74361999999,510306.51512049057,"Summer",109502.89873,71669.610803000003,127216.5021,2441.8715742999998,56452.267561000001,41402.920696000001,10429.073399000001,30217.333901999998,0]
[3748,"2011-07-12","KW60MN09 ",7334204.095193889,2323080.3414571984,1674929.9198654538,130310.28055600001,517840.1410357444,"Summer",129134.58448999999,64844.233978999997,116545.43561,2237.0445786,42042.803465999998,39362.765289000003,9677.2745503000006,37386.503514000004,0]
[3750,"2011-11-22","KW60MN22 ",6815659.8884606902,2322879.7827344597,1689398.621617829,104884.52919300001,528596.63192363072,"Winter",222721.9437,61565.772987999997,101990.5192,1957.6685852999999,56771.464549999997,35944.430740999996,5937.9046424999997,4955.8928413000003,3053.2304963000001]
[3755,"2011-08-02","KW60MN23 ",6568529.3996646609,2322526.8571593002,1683155.8544412164,127662.26859200001,511708.73412608373,"Summer",190186.23963,66621.511264000001,95551.082662000001,1834.0660903999999,56497.867130999999,34051.069866999998,8268.7715769000006,32736.852360000001,3053.2304963000001]
[3759,"2012-03-08","KW60MN13 ",6728928.4929027278,2322104.3657399309,1745370.0361232483,88117.42861812425,488616.90099855833,"Winter",149424.88685000001,73770.528542999993,128022.29432,2457.3384445000002,56497.867130999999,36609.98158,8755.2288589,1354.3257784,0]
[3762,"2011-08-28","KW60MN12 ",7448965.7619667882,2321851.2789232573,1608098.3204817146,119032.090568,594720.86787354248,"Summer",224877.41810000001,72465.835833999998,93657.163314999998,1797.7130408,55084.280463000003,27808.422008000001,7629.3149242,43343.639322000003,0]
[3763,"2012-01-06","KW60MN23 ",6560593.4526290298,2321695.0517083397,1686965.3591332659,94917.176124101068,539812.51645097288,"Winter",252135.30783999999,61159.157275999998,87412.031656000006,1677.8401531,56680.265411,30151.818772999999,6593.9180565999995,742.46966563000001,3053.2304963000001]
[3766,"2011-11-27","KW60MN10 ",6622101.082044797,2321581.0548248566,1657129.288578247,104652.96500899999,559798.8012376097,"Winter",302106.78970000002,45313.113584999999,81820.416802000007,1570.5112677,55768.274012000002,24083.512247999999,5507.3069616000002,4955.8928413000003,0]
[3769,"2011-08-19","KW60MN10 ",7421938.0976268444,2321387.9017013581,1695381.3628456299,129462.078947,496544.45990872808,"Summer",133523.39043,75198.810035999995,104508.95436,2006.0089743999999,55221.079172999998,37809.578542000003,8912.3115529999995,40503.709544999998,0]
[3775,"2012-04-12","KW60MN13 ",6700859.2302400861,2320614.8776944443,1744430.1607536641,106545.78509333206,469638.93184744794,"Summer",131960.30212000001,80188.585875999997,115850.44683,2223.7045376999999,52302.706698000002,36394.502379999998,9201.4335728999995,7467.6597125999997,0]
[3777,"2011-07-10","KW60MN13 ",7457501.6356880954,2320235.9256720152,1660348.8836049798,130962.55813900002,528924.48392803548,"Summer",186240.60248,51145.743849999999,90556.828471999994,1738.2033120999999,53214.698097,28255.378923,6449.7015566999999,32250.757195999999,0]
[3780,"2011-11-11","KW60MN15 ",6858122.2407899424,2320063.4815887217,1662509.9261638117,100866.529843,556687.02558191016,"Winter",220926.84200999999,74256.661672999995,125820.6557,2415.0788422000001,50250.726051999998,41582.063578000001,6495.3494609999998,4955.8928413000003,0]
[3784,"2011-07-16","KW60MN18 ",8222456.5111696227,2319475.3013818134,1637162.0687755255,129122.01942600001,553191.21318028762,"Summer",211695.96093,61054.679794999996,95879.664298999996,1840.3730879,55996.271862000001,31943.850770000001,6613.6642793999999,44104.387088000003,0]
[3787,"2012-04-10","KW60MN13 ",6623440.2981903702,2319339.9915670189,1726723.1318365627,112491.07186121655,480125.78786923969,"Summer",129882.45168,77251.719746000002,119393.27490999999,2291.7077530000001,56497.867130999999,38122.973275999997,9366.9470108999994,7467.6597125999997,0]
[3788,"2012-06-27","KW60MN20 ",7764084.5039657289,2319312.2457811674,1666033.4157384422,131673.19273298557,521605.63730973966,"Summer",154244.11147,65041.341990000001,103952.35569,1995.3252782,55631.475301999999,40332.990570000002,7475.9160241,35664.612501000003,0]
[3791,"2011-12-25","KW60MN13 ",6443177.3806719277,2319114.7196399276,1649786.0030862391,101639.75585,567688.96070368856,"Winter",339966.58146000002,42663.323522999999,63800.303645,1224.6221625000001,55905.072721999997,16518.187265,6145.6056564,816.33821894000005,0]
[3796,"2011-10-10","KW60MN16 ",6787942.103711647,2318710.2196393572,1727073.2401853125,94619.29738399999,497017.68207004486,"Summer",148577.81701,64339.265915999997,129575.30253,2487.1478364999998,48654.741105000001,42376.763124999998,7595.5310061,19170.103298999999,0]
[3799,"2011-10-05","KW60MN16 ",6808773.8620136799,2318437.2896290119,1712619.0950737756,97347.026998999994,508471.16755623627,"Summer",135618.09260999999,70512.562311000002,127732.27872,2451.7717071000002,56178.670141000002,39693.821244999999,9125.3554244000006,19170.103298999999,0]
[3802,"2011-11-11","KW60MN16 ",6911774.5225369632,2318243.3694814928,1656537.5577977451,101404.19059299999,560301.62109074753,"Winter",239177.01423999999,73997.939232999997,125423.03873,2407.4467383000001,54126.689494999999,40234.981226999997,6296.1401357000004,4955.8928413000003,1374.3777831]
[3806,"2012-05-29","KW60MN09 ",6827720.8818710055,2318135.7724862178,1701120.9938559784,122782.56109967182,494232.21753056766,"Summer",112151.23863000001,61389.701228999998,97217.120932999998,1866.0450509,55585.875732,36081.062921999997,7231.9577347000004,23319.254298,0]
[3809,"2012-06-15","KW60MN11 ",7256429.1420567892,2318002.1957436167,1681353.7495011103,134645.60349030537,502002.84275220102,"Summer",131015.51343000001,72683.179908999999,119694.2692,2297.4852218999999,49566.732502999999,41217.859371999999,8519.7842660999995,29751.510856000001,0]
[3812,"2011-11-10","KW60MN16 ",6959390.7611125382,2317787.256819238,1725430.403472739,94801.998649000001,497554.85469749873,"Winter",159082.23334999999,77013.217302000005,123924.69506,2378.6866107999999,56315.468850999998,39728.828727,8082.8889209999998,4955.8928413000003,1272.6034333]
[3813,"2011-08-05","KW60MN09 ",6958839.922984113,2317604.9739466589,1679374.636223732,120588.721546,517641.61617692653,"Summer",137587.86939000001,74595.716180999996,106696.86912,2048.0051524999999,54947.481754,37673.084679,8377.1320235000003,32450.721041000001,0]
[3817,"2011-11-10","KW60MN06 ",6856259.4154758519,2317167.0665466413,1665021.5361423444,106869.71755299999,545275.8128512972,"Winter",249915.09734000001,55940.760824999998,105711.17371,2029.08511,57546.657239,36439.102548000003,8877.7556633000004,4955.8928413000003,2787.6983909]
[3820,"2012-05-21","KW60MN19 ",7619872.5210601091,2316813.4782267259,1698043.3116492948,131774.38647562717,486995.78010180383,"Summer",147431.70840999999,49580.675302000003,86188.723742999995,1654.3592306,56224.269711000001,41148.413245000003,6314.9484806,21356.368259999999,0]
[3824,"2012-06-16","KW60MN22 ",6920936.472052197,2316494.2473696838,1680271.4266901207,116573.42230141169,519649.39837815129,"Summer",160462.48564999999,65881.575721000001,88423.219742999994,1697.2495174000001,55403.477453,32002.00649,6534.1308808000003,37878.774911,3049.4563644999998]
[3827,"2012-03-19","KW60MN06 ",6636385.3961463189,2316345.7788294065,1684009.8691725072,97111.648601404391,535224.26105549501,"Winter",322681.65315999999,60525.714143999998,94834.677597999995,1820.3149722000001,57501.057669000002,33112.609382000002,8045.2231358999998,1354.3257784,309.52124151999999]
[3831,"2011-10-04","KW60MN15 ",7097737.4533471148,2316182.0907341246,1711887.9872360509,102467.145741,501826.95775707369,"Summer",108416.82045,73785.799589999995,130034.80266,2495.9677640999998,55175.479603,43272.224145,9841.6029440999991,19170.103298999999,0]
[3834,"2011-07-26","KW60MN09 ",7679295.7717019692,2315909.5075791697,1701146.3377835124,118405.510232,496357.6595636573,"Summer",129225.35068,60728.733579,103078.91307,1978.5598848,55403.477453,38728.356188999998,9713.2524938999995,38287.781204999999,0]
[3837,"2012-02-05","KW60MN14 ",6658064.2155493423,2315798.9968750002,1648799.2929077533,90956.334159210091,576043.36980803695,"Winter",232503.06035000001,45691.086444,76638.053142999997,1471.0378008,56224.269711000001,25156.321668,6151.3158767000004,747.06969021999998,0]
[3838,"2012-03-30","KW60MN08 ",6655451.3731324365,2315533.7308286522,1679861.6945736781,116180.39849186526,519491.637763109,"Winter",178353.97034,67074.782078999997,109302.49123,2098.0190613999998,53533.895085999997,34225.289131999998,8397.4606120000008,1354.3257784,0]
[3842,"2011-11-09","KW60MN15 ",6871431.1011407962,2314808.2206833162,1719676.0522400448,101476.35677699999,493655.81166627147,"Winter",153793.88404,74157.308283999999,133984.19049000001,2571.7747365,57136.261109999999,40314.912800999999,8520.1499361000006,4955.8928413000003,0]
[3845,"2012-04-11","KW60MN20 ",6804802.3042268958,2314558.7405609386,1716576.5665580789,113349.49778809947,484632.67621476005,"Summer",185766.04071999999,59284.451550999998,100208.28415000001,1923.4592723999999,54993.081323999999,32255.689403,6378.8409889000004,7467.6597125999997,814.61885877999998]
[3849,"2011-10-17","KW60MN07 ",6684724.6689398717,2314319.247461882,1680719.0335948002,90707.163879999993,542893.04998708179,"Summer",199533.20689999999,51286.149424000003,113839.64104,2185.1078980000002,55266.678742999997,39283.752382999999,7021.6513166000004,19170.103298999999,3053.2304963000001]
[3852,"2012-03-18","KW60MN12 ",6506991.3306884794,2314079.94132277,1713152.7017002399,101609.81771027949,499317.42191225069,"Winter",221793.32842999999,46862.421012999999,77739.321949999998,1492.1762298000001,55540.276163000002,24761.252224,5686.7869927000002,1354.3257784,0]
[3856,"2011-08-31","KW60MN20 ",7954498.2931552092,2313498.8179420223,1693453.8230894962,120538.16426600001,499506.8305865259,"Summer",175293.30351999999,69482.655241999993,102551.09401,1968.428602,56269.869280999999,34637.477389,7583.8092244999998,34900.341306000002,814.61885877999998]
[3859,"2011-10-27","KW60MN22 ",6670510.0299977716,2313103.0840232288,1663168.3881304504,94736.884909,555197.81098377833,"Summer",243072.15979000001,61806.190738999998,114409.28758,2196.0420430999998,56224.269711000001,38856.694769000002,7279.6117500999999,19170.103298999999,3053.2304963000001]
[3863,"2011-11-14","KW60MN16 ",7022041.2040830124,2312527.7768453024,1686795.6028602517,96132.598873999988,529599.57511105062,"Winter",169013.33043,66932.282842000001,119453.86007,2292.8706616999998,56725.864979999998,39556.888169999998,7703.2616856000004,4955.8928413000003,1527.0393077000001]
[3864,"2012-06-15","KW60MN22 ",6942006.1262521893,2312313.0508852224,1683047.6192988949,129473.05652108372,499792.37506524369,"Summer",135199.72448999999,68173.833052000002,81414.860648999995,1562.7267741000001,55722.674442000003,38112.646868000003,6758.5105463999998,34030.560040999997,3049.4563644999998]
[3867,"2011-11-14","KW60MN14 ",6969722.9060240109,2312149.4137057005,1683203.6907031294,102118.925435,526826.79756757105,"Winter",156332.28492999999,68966.627561000001,130129.93167000001,2497.7937284999998,56862.663690000001,41752.829091,9555.1405032000002,4955.8928413000003,0]
[3871,"2011-09-03","KW60MN18 ",6983680.7324573938,2311881.6966024358,1683023.5015663106,122411.555185,506446.63985112502,"Summer",191364.05916999999,67754.313112999997,90665.926840999993,1740.2974131000001,55221.079172999998,29181.852760000002,6831.6243905000001,38566.636853000004,0]
[3874,"2011-08-06","KW60MN21 ",7124897.6787966387,2311739.8345487867,1670780.8756511339,124254.26717000001,516704.69172765274,"Summer",180196.12969999999,74919.705312000006,91729.344649999999,1760.7093067999999,53077.899386999998,27761.822542999998,7632.9310025000004,32929.911265000002,1730.5880082000001]
[3877,"2011-11-01","KW60MN15 ",6956407.0346687362,2311592.0934623247,1731219.5938957017,94811.062911999979,485561.43665462313,"Winter",138788.14731,70610.843963000007,124224.40832,2384.4394910000001,44140.383683,43362.408199999998,8153.5852752999999,4955.8928413000003,0]
[3880,"2011-10-04","KW60MN17 ",7086526.96043579,2310720.18032555,1703503.2127318881,107250.175452,499966.79214166204,"Summer",130074.19048,71574.971770999997,126656.76324,2431.1276032000001,53351.496806000003,41281.346218999999,7931.2574295000004,19170.103298999999,0]
[3885,"2011-12-19","KW60MN06 ",6956306.3430048591,2310054.2788714487,1620464.0838778235,91011.824699999997,598578.37029362493,"Winter",282076.21600000001,57397.542164999999,93450.464504000003,1793.745537,55859.473151999999,31598.989369999999,7770.8701535,816.33821894000005,3053.2304963000001]
[3888,"2012-02-11","KW60MN21 ",6821475.7410573326,2309721.4504743884,1675148.3526703122,106256.5612403876,528316.53656368854,"Winter",198837.21973000001,63984.717017000003,78215.367725999997,1501.3137445,55449.077022999998,26785.663245,6606.6454317999996,747.06969021999998,3053.2304963000001]
[3889,"2011-11-13","KW60MN20 ",6937681.7963495506,2309674.0182747296,1651643.6499637156,117655.36144800001,540375.00686301407,"Winter",244648.78247000001,55820.776097000002,97256.178081000005,1866.7947377999999,56224.269711000001,28260.692723,6475.2172517999998,4955.8928413000003,3053.2304963000001]
[3892,"2012-05-17","KW60MN08 ",6852574.658290959,2309483.0102716764,1695947.8224529384,128767.12843710903,484768.0593816287,"Summer",151111.46973000001,51834.726093999998,97224.183409999998,1866.1806125000001,54445.886484000002,35121.011210999997,8129.1902931000004,21356.368259999999,0]
[3896,"2012-06-18","KW60MN12 ",7850875.0319196647,2308873.2661304232,1665310.5559227387,138247.5711434634,505315.13906422094,"Summer",123167.01497,79126.480102000001,106340.64031,2041.1674780999999,56178.670141000002,43610.534765999997,8981.5045945000002,33389.371835999998,0]
[3899,"2011-09-29","KW60MN11 ",6958117.6120957825,2308322.3414609348,1711490.5884303183,92428.707355000006,504403.04567561642,"Summer",103956.52714000001,78916.467864000006,131671.58973000001,2527.3852588999998,51253.916590000001,40965.806360000002,8703.3713212999992,30217.333901999998,0]
[3901,"2012-01-24","KW60MN23 ",6638080.277274658,2308060.9061396117,1664892.6056275947,92927.293638139803,550241.00687387725,"Winter",245365.73361,62972.068609000002,88315.650305000003,1695.1847637000001,56999.462399999997,34139.052011,7165.5224607,742.46966563000001,3053.2304963000001]
[3907,"2012-04-05","KW60MN17 ",6521173.4418020416,2307311.3212349177,1719342.3399273076,98941.377171078813,489027.6041365313,"Summer",176498.41438999999,71553.811795000001,92945.232053,1784.0477954999999,49749.130783000001,32881.552515000003,7436.3914126999998,7467.6597125999997,0]
[3910,"2011-12-18","KW60MN15 ",6750899.1524122069,2307042.9136575367,1662151.5465808976,86819.986290000001,558071.38078663929,"Winter",277973.82592999999,49129.396921,87161.990097999995,1673.040702,56908.26326,26377.636001999999,6223.5341672000004,816.33821894000005,0]
[3913,"2012-05-22","KW60MN17 ",7633609.0007648449,2306707.0689314748,1675523.6356152738,125521.3317448075,505662.10157139332,"Summer",110888.46092,71183.676917000004,94884.553696999996,1821.2723246999999,57273.059820000002,41876.901641999997,6773.4251750000003,21356.368259999999,0]
[3914,"2012-04-17","KW60MN14 ",6686985.4179992434,2306390.6654959363,1740001.1238530811,103951.45816112394,462438.08348173113,"Summer",126673.65919000001,78644.362370000003,110840.06613000001,2127.5322170999998,35339.666687999998,38116.76556,9482.5904011000002,7467.6597125999997,0]
[3917,"2011-11-15","KW60MN23 ",6547459.7637444353,2306262.6737507451,1645104.7941062518,91727.175866999998,569430.70377749333,"Winter",273160.46231999999,59847.216283000002,105780.22086,2030.4104434999999,56999.462399999997,37640.809864000003,7062.5455009999996,4955.8928413000003,3053.2304963000001]
[3921,"2011-12-24","KW60MN15 ",6735364.4150730651,2305931.4161791452,1629894.5931456543,90126.461309999999,585910.36172349099,"Winter",283722.92705,57382.144181000003,80437.851714999997,1543.9734653999999,55859.473151999999,17609.771475000001,6121.5120140999998,816.33821894000005,0]
[3926,"2011-08-13","KW60MN16 ",7896343.6263525272,2305653.2088325666,1618624.2727141385,126099.63925299999,560929.29686542833,"Summer",226700.60600999999,78930.765188999998,106875.81546,2051.4399582000001,49749.130783000001,30321.076346000002,7837.3206645,45989.996342999999,0]
[3928,"2012-06-12","KW60MN10 ",6920738.2071131868,2305161.6936942358,1652897.9794329547,132700.19656986749,519563.5176914137,"Summer",138336.48907000001,73989.150026000003,124337.36146,2386.6075827999998,56178.670141000002,45295.395978,8996.9643436999995,30863.8318,0]
[3932,"2012-05-24","KW60MN16 ",7022285.0793860331,2304707.6546239406,1685024.976663491,119593.73568775054,500088.94227269909,"Summer",128292.32640999999,77236.638302000007,113122.05899,2171.3341879999998,55950.672292000003,44235.096009000001,8262.3012354000002,21356.368259999999,0]
[3935,"2012-04-20","KW60MN09 ",6532195.9855290726,2304426.4749978795,1734875.5677250354,101932.94606528834,467617.96120755584,"Summer",157003.98016000001,66812.076375999997,110393.9758,2118.9696856999999,28636.529910000001,35946.337036999998,9174.5804692999991,7467.6597125999997,0]
[3936,"2012-05-18","KW60MN09 ",6822538.6417555595,2304349.8557085185,1688070.143846865,126946.22049435363,489333.49136729963,"Summer",111070.55502,59750.240961000003,108418.22001,2081.0458173000002,55038.680892999997,39956.119557999999,7982.0382689999997,21356.368259999999,0]
[3939,"2011-09-30","KW60MN13 ",7352183.6034576343,2303860.8660464096,1693226.0942635722,95687.897142000016,514946.87464083743,"Summer",106389.38742,73597.471145999996,141447.88308999999,2715.0374302999999,56315.468850999998,41101.117720000002,9340.7152095000001,30217.333901999998,0]
[3942,"2011-11-18","KW60MN24 ",6390057.0272830874,2303196.524561367,1669831.7445125061,97848.626227000001,535516.15382186114,"Winter",236684.11303000001,56140.264577000002,96249.709757000004,1847.4759673999999,57136.261109999999,34727.728519999997,5855.1614671999996,4955.8928413000003,3053.2304963000001]
[3947,"2011-10-20","KW60MN13 ",6772928.9454959435,2302782.5732197389,1699740.0627299247,91889.402692999996,511153.10779681453,"Summer",100078.08494,70137.451167000007,134706.75490999999,2585.6440812999999,57592.256808999999,47860.524808000002,9824.3961015000004,19170.103298999999,0]
[3950,"2011-10-31","KW60MN07 ",6773931.4213340329,2302580.8086863323,1628120.9425982239,98934.207017000008,575525.65907110821,"Summer",241485.59564000001,60408.745384000002,119647.32855000001,2296.5842143999998,56817.064120000003,40992.907980999997,8245.1654949999993,19170.103298999999,0]
[3953,"2012-05-08","KW60MN16 ",6973904.5774781406,2302128.5697081997,1670885.9031627385,115475.98687593981,515766.6796695214,"Summer",114923.63483,88132.333861000006,117305.48162999999,2251.6333681000001,56452.267561000001,37115.954078000002,9040.7618867000001,21356.368259999999,0]
[3957,"2012-01-19","KW60MN06 ",6703449.393799915,2301605.3923115171,1584138.4845328785,96279.756338537263,621187.15144010156,"Winter",284406.78944999998,58626.792306000003,98954.912735000005,1899.4012927000001,52530.704548000002,34662.352135000001,9501.9354017999995,742.46966563000001,3053.2304963000001]
[3960,"2011-07-08","KW60MN09 ",7298364.7858038656,2301406.7185408832,1666058.7838086993,133692.09755000001,501655.83718218363,"Summer",136946.63446,59991.587443999997,107842.15609999999,2069.9884931000001,56224.269711000001,37491.780008000002,6842.1272685000004,39149.680813999999,0]
[3961,"2012-06-17","KW60MN17 ",7464992.6062732637,2301339.8312886069,1711124.2357935223,121228.73347119345,468986.86202389112,"Summer",144671.34159,54671.292429000001,81533.543455999999,1565.0048446999999,53077.899386999998,30040.281709999999,6292.1787015,32895.594967999998,0]
[3964,"2011-09-26","KW60MN13 ",7160628.6233554194,2301007.179929297,1697885.6728371615,91036.297223000001,512085.20986913552,"Summer",108797.55303,64695.664244,136803.76633000001,2625.8954047000002,57090.661540000001,42225.058229000002,11310.014983999999,30217.333901999998,0]
[3968,"2011-09-16","KW60MN09 ",6579119.8213803377,2300671.8734451747,1701028.9766042624,103736.226417,495906.67042391247,"Summer",123097.96526,61659.746804000002,115907.57132,2224.8010201000002,54810.683043999998,37840.569996999999,8475.7615648999999,30217.333901999998,0]
[3972,"2012-01-01","KW60MN08 ",6422317.7445019195,2300082.1108331038,1690744.0866898673,96305.895364141354,513032.12877909507,"Winter",216427.80030999999,54787.062514999998,72576.788459000003,1393.0833954,55905.072721999997,16757.464277999999,6412.3828200999997,742.46966563000001,0]
[3975,"2012-06-01","KW60MN10 ",7044620.3016598178,2299837.2862604009,1661962.2485603392,129819.35099319737,508055.6867068641,"Summer",101070.63081,73006.672539000007,114165.20707,2191.3570120999998,56680.265411,42074.462637999997,8883.3676940000005,28737.984469999999,0]
[3979,"2011-09-16","KW60MN15 ",6532188.1850563167,2299349.9777385937,1680960.9100036416,93878.946197000012,524510.12153795222,"Summer",112605.5359,78412.563504000005,135325.44873,2597.5196698,55038.680892999997,39464.811615999999,8915.9276312999991,30217.333901999998,0]
[3982,"2011-07-25","KW60MN23 ",7289044.7139358735,2299130.4715721938,1678261.417035416,118571.157779,502297.89675777766,"Summer",180785.10305999999,53804.880679000002,75249.779741000006,1444.3904296000001,56406.667991000002,34467.814883999999,7087.0657590000001,46875.146437000003,3053.2304963000001]
[3985,"2012-03-26","KW60MN14 ",6789787.080330098,2298564.3215409582,1712181.8642511084,112954.71653377874,473427.74075607111,"Winter",131386.12437000001,73345.359089000005,109744.18343,2106.4971724000002,56087.471001999998,36904.51281,7977.6993134000004,1354.3257784,0]
[3989,"2011-09-29","KW60MN12 ",6997469.777585811,2298467.1533802454,1703413.6955494669,91345.698283999998,503707.75954677869,"Summer",93918.161894999997,76674.326688000001,135155.05429999999,2594.2490146999999,50387.524762000001,41319.945919999998,9758.9003993000006,30217.333901999998,0]
[3990,"2011-09-02","KW60MN20 ",6885874.2447942561,2298256.0131435385,1667256.9453692017,124345.580369,506653.48740533681,"Summer",161904.96218,69759.986057000002,109459.14158,2101.0259043999999,56862.663690000001,35674.751536000003,7559.3905415999998,38258.097223999997,1018.167559]
[3993,"2011-11-14","KW60MN15 ",6942746.8451846968,2297907.9487675568,1677120.6495882114,95729.829051000008,525057.47012834542,"Winter",179397.86629999999,67824.242744000003,128051.95053,2457.9076838999999,56589.066271000003,41138.436050999997,8231.8997713000008,4955.8928413000003,0]
[3997,"2012-01-07","KW60MN07 ",6533401.0503997067,2297528.4586621504,1634931.306169603,97403.57149910678,565193.58099344047,"Winter",251818.68603000001,55718.949840000001,85517.213208999994,1641.4698455,57364.258958999999,27417.477864,6535.3497834,742.46966563000001,2187.724463]
[4000,"2011-08-13","KW60MN15 ",7785731.1406838587,2297268.2712746672,1613755.4463192075,125830.040183,557682.78477245988,"Summer",222698.70102000001,82882.992008999994,106405.72626,2042.4167777,53579.494656000003,30825.526642000001,7830.8604795000001,45455.020549000001,0]
[4004,"2011-11-02","KW60MN22 ",6689895.352898295,2296670.7357201735,1650400.8929742204,99544.656495000003,546725.18625095324,"Winter",226490.71184999999,54508.235766999998,111151.36044999999,2133.5073914,55266.678742999997,39123.074896999999,6306.3992329000002,4955.8928413000003,3053.2304963000001]
[4007,"2011-10-01","KW60MN20 ",6680429.709505205,2296204.5926144263,1718103.7668838035,94491.138804000002,483609.68692662288,"Summer",142331.79115,62299.262041000002,91754.818371000001,1761.1982651000001,55266.678742999997,31198.718869,7455.1134184000002,19170.103298999999,3053.2304963000001]
[4010,"2012-05-18","KW60MN11 ",7004656.2386042522,2295997.604034238,1660299.5760790664,128136.50373868353,507561.52421648806,"Summer",117624.46945999999,66935.673194000003,116564.61436000001,2237.4127073999998,53077.899386999998,40947.828178000003,8417.0324636000005,21356.368259999999,0]
[4012,"2012-06-17","KW60MN18 ",7399613.8060414912,2295926.9350661049,1708408.2945087308,121514.87719029086,466003.76336708339,"Summer",138221.00701,56996.375118999997,79617.896183000004,1528.2347359,52713.102828000003,29857.792425,6097.0323854999997,32883.194329999998,0]
[4015,"2011-12-04","KW60MN16 ",7071261.1626120331,2295749.6905010035,1721170.4184797786,87480.721786999988,487098.55023422488,"Winter",217870.54180000001,44192.454338000003,84763.478235000002,1627.0021941,56452.267561000001,25911.269677,6165.7378656000001,816.33821894000005,2239.4597568999998]
[4018,"2011-12-30","KW60MN23 ",6431410.6765355356,2295290.8956026249,1654123.1996079206,92817.038270000019,548350.65772470401,"Winter",238472.10308,62935.205356999999,82490.175065999996,1583.3670187,56862.663690000001,26775.882831999999,5747.5933063000002,816.33821894000005,3053.2304963000001]
[4022,"2012-01-25","KW60MN23 ",6611464.8826707406,2294751.1816859255,1640641.212178679,92844.054166424146,561265.91534082242,"Winter",205341.66003,65794.806805,90376.360786000005,1734.7393046,57090.661540000001,33453.297105999998,6691.0036536999996,742.46966563000001,3053.2304963000001]
[4025,"2011-10-24","KW60MN22 ",6478820.2470041998,2294494.2613865295,1672633.4513334665,92863.660650000005,528997.14940306311,"Summer",219186.68333,50046.411687,110084.83529,2113.0358532,56543.466700999998,42727.970778000003,7090.1333311999997,19170.103298999999,3053.2304963000001]
[4029,"2012-05-31","KW60MN08 ",6858032.4931135327,2293810.5082442593,1679084.1066007069,124645.46059447275,490080.94104907982,"Summer",152707.10626,51307.407415000001,95384.008822000003,1830.8591727,53898.691644999999,39492.196541999998,7637.5662186999998,29268.591218000001,0]
[4031,"2012-01-27","KW60MN05 ",6553416.5264919093,2293809.3916537715,1664919.4146893355,85967.177446849644,542922.79951758613,"Winter",277641.40165999997,58123.890590000003,83275.665296000006,1598.4441999000001,57045.061970000002,32097.262798,7174.6439152000003,742.46966563000001,3053.2304963000001]
[4036,"2012-04-17","KW60MN18 ",6512742.0601553423,2293627.2804561611,1708064.4544430207,109274.28611580317,476288.53989733697,"Summer",169190.27361999999,56459.690390999996,100378.99537999999,1926.7360086000001,35522.064967999999,33871.924724999997,6540.3506705999998,7467.6597125999997,0]
[4037,"2012-06-11","KW60MN13 ",7082087.3159252768,2293246.2791392263,1654979.2303734047,131434.8502680556,506832.1984977657,"Summer",133408.53367999999,72207.319063999996,113609.58915,2180.6921407999998,55175.479603,42041.390991,9433.2096065000005,29726.838621999999,0]
[4040,"2012-05-08","KW60MN18 ",6873974.7479741052,2292958.7130972957,1658943.1381806722,117090.80399103055,516924.77092559304,"Summer",159581.21421999999,78165.085464000003,100832.42849000001,1935.4394817,56817.064120000003,36293.497618000001,7601.4392973000004,21356.368259999999,0]
[4044,"2012-06-13","KW60MN11 ",7097434.8057692833,2292715.6521865232,1660608.7238365628,130836.28080143168,501270.64754852874,"Summer",130655.2573,75718.506047000003,108108.65143,2075.1037679999999,56406.667991000002,40541.888914000003,9771.6785615000008,32385.397342,0]
[4047,"2012-01-23","KW60MN24 ",6486922.003055349,2292450.2460457212,1626462.180093803,86255.834938649918,579732.23101326835,"Winter",289986.71612,56519.498775,85468.419131000002,1640.5332619999999,58002.652937999999,32903.277085000002,7161.6219721999996,742.46966563000001,3053.2304963000001]
[4050,"2012-05-04","KW60MN12 ",6686212.8496018881,2292001.522727753,1692620.345409998,114711.45994247978,484669.71737527504,"Summer",117447.04932999999,73811.908515999996,114811.52969,2203.7629249000001,57136.261109999999,35761.478019000002,8434.0344631999997,21356.368259999999,0]
[4052,"2011-10-04","KW60MN16 ",7103563.4369183183,2291866.3589093084,1697524.8958633929,100909.222851,493432.24019491556,"Summer",124281.75178999999,70059.591967999993,129957.06948000001,2494.4757055999999,55129.880033000001,41805.594452999998,9386.2818539,19170.103298999999,0]
[4058,"2012-06-22","KW60MN16 ",7800900.5850932607,2291347.6123094261,1641985.7396014689,122108.07492755342,527253.79778040398,"Summer",129891.03651999999,78945.613645999998,114978.38305999999,2206.9656107999999,56999.462399999997,40587.380850000001,8592.7559046000006,35885.70925,0]
[4061,"2012-05-17","KW60MN21 ",7287367.0196532011,2291224.7292883475,1653773.5879367099,128298.59605744801,509152.54529418959,"Summer",166638.58212000001,57046.237398999998,82953.572341999999,1592.2617502000001,55038.680892999997,34472.216530999998,6892.3460587,21356.368259999999,1527.0393077000001]
[4062,"2011-09-21","KW60MN11 ",6607085.3979095202,2291206.5468940074,1693925.942088108,93814.715456000005,503465.88934989937,"Summer",103273.48083,74944.890327000001,130008.47003,2495.4623194000001,55813.873582,40026.307626000002,10723.438392,30217.333901999998,0]
[4065,"2012-03-29","KW60MN07 ",6643207.0702751791,2291014.734004959,1664804.9003691208,109206.05587463077,517003.77776120754,"Winter",228516.66107999999,61393.451504999997,103185.88288,1980.6131289,45781.968200000003,35509.444819999997,8712.4165954,1354.3257784,0]
[4069,"2012-02-05","KW60MN23 ",6517663.5796534745,2290859.5086724786,1612444.7801295244,89329.872343019451,589084.85619993496,"Winter",230874.52585000001,54988.859172999997,68314.975479999994,1311.2795429,56543.466700999998,25312.522062,6327.1273497000002,747.06969021999998,3053.2304963000001]
[4072,"2011-08-06","KW60MN14 ",7332582.7419868046,2290461.8537004106,1629430.6278628141,125530.46316699999,535500.76267059648,"Summer",212654.02963,77626.281363999995,112517.90145,2159.7376174999999,55722.674442000003,29477.636413,7658.4060681999999,30104.641188000001,0]
[4077,"2011-08-10","KW60MN09 ",6700485.2956618974,2289981.610252976,1685816.4494919321,125246.82932799999,478918.33143304399,"Summer",126016.72777,62185.530986999998,102896.53764,1975.0592588,56133.070571999997,37655.536966,8806.5920628999993,43954.723557999998,0]
[4080,"2012-05-16","KW60MN08 ",6894136.4595127376,2289723.5436584074,1655785.7034864337,128017.29887061169,505920.54130136198,"Summer",151357.75940000001,60866.627720999997,103507.46152,1986.7857065999999,53670.693796,36444.073607999999,8738.4503248000001,21356.368259999999,0]
[4083,"2011-09-29","KW60MN08 ",6712861.0006685862,2288841.6340372097,1677743.919803824,94832.410740000007,516265.30349338579,"Summer",176421.12958000001,52622.361162000001,108703.71094999999,2086.5257053999999,56406.667991000002,39811.615693,7826.8990464999997,30217.333901999998,10.672171419]
[4084,"2012-04-20","KW60MN10 ",6597094.4198179618,2288812.4659175952,1720505.729802266,105894.63332005692,462412.10279527225,"Summer",125046.37532000001,73831.545243,112538.77793,2160.1383334000002,28545.33077,36667.955112000003,9260.2422401999993,7467.6597125999997,0]
[4087,"2011-08-24","KW60MN08 ",6973349.6162492773,2288293.5830441518,1673232.0576690407,123657.09730199999,491404.42807311099,"Summer",133056.88359000001,57800.926597999998,96123.045276999997,1845.0446916999999,49293.135084000001,39138.017630000002,9001.3117631000005,42915.95766,0]
[4090,"2012-02-23","KW60MN16 ",6884998.5163240777,2288136.5901119914,1664595.9276829676,87684.176912623647,535856.48551639996,"Winter",156545.60243,78045.547428000005,112130.42756,2152.3002059,57136.261109999999,35100.257208000003,8320.7933269000005,747.06969021999998,0]
[4094,"2012-03-17","KW60MN12 ",6422037.8136487063,2287645.2514576497,1697642.0814894612,102295.10756552377,487708.0624026648,"Winter",231256.09570999999,57891.314032000002,77215.234675999993,1482.1165771999999,55768.274012000002,27262.695920999999,5447.3623444000004,1354.3257784,0]
[4098,"2012-05-22","KW60MN19 ",7255711.7067866335,2287429.2921953257,1674100.1235190558,125663.88302037811,487665.28565589152,"Summer",142699.67825,57320.719354000001,84762.613123000003,1626.9855886,57318.659389,39287.097263000003,6186.5116910999996,21356.368259999999,0]
[4101,"2011-12-03","KW60MN15 ",6722317.8277294384,2287106.678232858,1706689.0158271368,81016.923376999999,499400.73902872129,"Winter",251971.37969,58675.097594999999,87469.925369999997,1678.9514005000001,57227.460249999996,27197.902399999999,6248.3185211999999,816.33821894000005,0]
[4105,"2011-09-16","KW60MN16 ",6467973.0965550626,2286737.6592394952,1674086.8453972703,89745.694671999998,522905.11917022523,"Summer",130258.90243,78875.349801000004,133623.06864000001,2564.8431421999999,55038.680892999997,37329.921509,8495.6703075000005,30217.333901999998,0]
[4108,"2011-07-21","KW60MN09 ",7414220.6103554433,2286664.7630691864,1665566.038623224,123896.124648,497202.59979796247,"Summer",114798.11592,71666.806933999993,112527.62815999999,2159.9243179,53305.897235999997,38356.666926999998,9209.5003383999992,43484.715660000002,0]
[4109,"2012-01-13","KW60MN02 ",6529298.2700197576,2286603.4852711381,1653761.0006225235,88564.476856981972,544278.00779163279,"Winter",267262.05909,59163.375805000003,91261.223593000002,1751.7239041,56908.26326,32544.612763000001,7136.0453313999997,742.46966563000001,3053.2304963000001]
[4112,"2011-09-23","KW60MN10 ",6636532.5590003086,2286299.4098749952,1674239.8627785908,104579.172485,507480.37461140438,"Summer",130146.69533,73624.099069000004,129424.36599999999,2484.2506681999998,56041.871432,42557.464125999999,9955.1030981000004,30217.333901999998,0]
[4115,"2011-10-07","KW60MN17 ",6756442.4810525402,2285772.0674037617,1644142.475521845,96579.934146999993,545049.65773491643,"Summer",120666.09063999999,69887.392603,126635.22592,2430.7142029000001,55996.271862000001,41336.439816999999,7288.3878488,19170.103298999999,0]
[4120,"2011-09-09","KW60MN08 ",6802213.8221501047,2284472.7183649903,1671463.3428615991,107036.226893,505973.14861039096,"Summer",134786.49669,61250.96673,113726.57216,2182.9375845,53898.691644999999,39617.895263999999,8179.5885318000001,41472.716294999998,0]
[4123,"2011-09-30","KW60MN11 ",7074889.4305029074,2284154.8036722941,1681585.3322840752,97275.736919000003,505293.73446921876,"Summer",122547.32694,69795.020768000002,133359.84221999999,2559.7906128,56133.070571999997,39592.328405,10011.843016999999,30217.333901999998,0]
[4126,"2011-10-06","KW60MN17 ",6764979.7368043428,2283582.8485889859,1680155.498281463,93967.23434499999,509460.11596252263,"Summer",133086.99414,67803.744770999998,123118.39185,2363.2099324000001,56361.068421000004,41380.640995000002,8634.6658413000005,19170.103298999999,0]
[4130,"2012-02-07","KW60MN23 ",6646518.0740194097,2283139.3554732753,1644529.6189254792,90769.447033645221,547840.2895141507,"Winter",236873.65792999999,62829.675421,89623.483229999998,1720.2881110000001,51937.910139,31330.666523,7054.9730679000004,747.06969021999998,3053.2304963000001]
[4133,"2011-11-01","KW60MN06 ",6516617.0266036298,2282947.0641329824,1697197.3306792518,87243.726861000003,498506.00659273064,"Winter",252529.25683,51122.650891999998,112271.0025,2154.9984875,42544.398735000002,41300.332805999999,9275.2195061999992,4955.8928413000003,2085.9501132]
[4134,"2011-08-20","KW60MN12 ",7530240.8306619646,2282857.0191807039,1652805.5472578425,131554.82379799997,498496.64812486165,"Summer",179324.35459,72285.543007,102921.01970999999,1975.5291827000001,55357.877883000001,32421.597916999999,7247.1076792000003,40519.707344000002,0]
[4140,"2011-09-26","KW60MN12 ",7033295.2814578209,2282330.5740140229,1678521.2834817283,93964.59431700001,509844.69621529459,"Summer",99482.392086000007,66640.183910000007,135998.02142,2610.4294426000001,56862.663690000001,41157.759004,11210.694732,30217.333901999998,0]
[4141,"2012-06-19","KW60MN16 ",7658213.5829664767,2281974.5135383336,1627165.9276010459,133064.57812051501,521744.00781677262,"Summer",120775.74348999999,78087.801500999994,111372.46601,2137.7514270000001,53670.693796,43253.154322000002,8621.6032677999992,35003.334153000003,0]
[4145,"2011-10-31","KW60MN18 ",6722473.8245475097,2281831.0058900202,1669871.2438078974,92180.778076000002,519778.98400612263,"Summer",168653.7738,64852.889821999997,119315.25363000001,2290.2101646000001,56315.468850999998,41412.431879000003,7182.9933993000004,19170.103298999999,3053.2304963000001]
[4148,"2012-05-03","KW60MN13 ",6869706.2120137075,2281309.6421505865,1665258.8299629947,117579.70393193525,498471.10825565649,"Summer",105558.60759,73507.001764999994,107474.08717,2062.9235523000002,56543.466700999998,36130.488682000003,9224.8788265999992,21356.368259999999,0]
[4152,"2012-03-16","KW60MN15 ",6645590.3932186179,2280955.9794865628,1701349.5507467501,102629.21177581053,476977.21696400235,"Winter",151820.64152,74695.860115999996,108436.13933000001,2081.3897717,51436.314870000002,35074.088480999999,7016.5742478000002,1354.3257784,0]
[4155,"2011-09-05","KW60MN13 ",6932742.5649942188,2280768.9933355153,1668027.8424771708,113693.068805,499048.08205334464,"Summer",172331.86055000001,55566.861209000002,96995.717057000002,1861.7952891,53944.291214999997,21519.604460999999,6968.9540907000001,35441.710674000002,0]
[4158,"2012-05-09","KW60MN09 ",6828125.5539650852,2280121.6265651267,1691985.8484260954,120670.61908282913,467465.15905620204,"Summer",117569.97159,62039.504820000002,103315.46616,1983.10043,56315.468850999998,36234.259191999998,8897.7625955000003,21356.368259999999,0]
[4161,"2012-06-19","KW60MN19 ",7444449.6264005974,2279776.9694349477,1616252.9341974223,132207.94601805916,531316.08921946608,"Summer",153791.94450000001,63854.48732,101896.37588000001,1955.8615405999999,55084.280463000003,41795.393286999999,7106.6088315999996,36607.848427999998,0]
[4163,"2011-09-15","KW60MN08 ",6472757.3897104738,2279630.0978638544,1676318.7263347183,102408.55554000002,500902.81598913606,"Summer",144876.37100000001,51786.176571000004,113855.00199999999,2185.4027457000002,44322.781962000001,39129.526481000001,8604.4776861999999,24248.151104,0]
[4166,"2011-07-05","KW60MN24 ",6968667.6304457756,2279230.4404101023,1620939.1141991466,129039.38506299999,529251.9411479556,"Summer",154720.28421000001,53048.003016000002,86652.776570999995,1663.2665452000001,55175.479603,34093.868935999999,6650.8611256000004,44911.304286999999,3053.2304963000001]
[4170,"2012-05-23","KW60MN15 ",7140158.9857700318,2278637.2338452856,1672465.1671974172,118084.26034238192,488087.80630548653,"Summer",101745.34663,79431.635907000003,116333.40201999999,2232.9746758000001,57136.261109999999,44301.667417999997,8196.2113172000008,21356.368259999999,0]
[4173,"2012-04-19","KW60MN21 ",6637189.0141472975,2278331.2898259461,1695385.9327532977,105788.35053438449,477157.00653826381,"Summer",184497.53979000001,60167.625460000003,99703.078680000006,1913.7620488,35294.067117999999,32620.286556999999,6663.0332237000002,7467.6597125999997,3049.4563644999998]
[4177,"2011-12-07","KW60MN05 ",6648479.9611031832,2277795.2045650026,1630930.7208446586,84611.293600000005,562253.19012034393,"Winter",297576.65178000001,56663.635343000002,101456.69064,1947.4219524,58549.847777000003,31739.010361000001,7831.5308759999998,816.33821894000005,3053.2304963000001]
[4180,"2011-10-03","KW60MN17 ",6861678.5354022551,2277338.9810420251,1661901.4098147866,99938.37430499999,515499.19692223863,"Summer",116285.79536,69700.323891000007,123132.60166,2363.4826843000001,57090.661540000001,40719.685746000003,8158.2171059000002,19170.103298999999,0]
[4182,"2011-10-13","KW60MN18 ",6637658.4715151461,2277000.3555131746,1669174.449016388,90447.745880000002,517378.16061678645,"Summer",155849.80604,58208.896844000003,122907.36013,2359.1592601000002,52165.907987999999,41134.838363000003,7041.4584840999996,19170.103298999999,0]
[4185,"2011-12-12","KW60MN05 ",6511259.9457220174,2276778.4988200059,1563141.6249083171,84520.475390000007,629116.39852168853,"Winter",305003.69795,59854.776286,90421.533657000007,1735.6063804,58048.252507999998,29075.551422,7484.1233025000001,816.33821894000005,3053.2304963000001]
[4188,"2011-09-03","KW60MN19 ",6826636.0340181906,2276367.5241405657,1668578.8993158753,116092.85432600002,491695.7704986902,"Summer",187180.20845999999,64589.848297999997,90444.459581000003,1736.0464347,54719.483904000001,28443.811393,6583.6589593999997,39174.668442000002,0]
[4191,"2012-04-11","KW60MN22 ",6380782.9662849912,2276098.6850971845,1689729.2768418475,110014.54618858195,476354.86206675501,"Summer",157694.09570999999,58032.913460000003,89514.658265999999,1718.1992579,55357.877883000001,32059.054703000002,6212.1171119999999,7467.6597125999997,3053.2304963000001]
[4195,"2011-11-12","KW60MN11 ",6821889.8364843605,2275719.4848907804,1619838.6784990642,104019.820494,551860.98589771625,"Winter",273510.71340000001,67233.407181000002,98461.709977999999,1889.9344564999999,50341.925192000002,32880.113529000002,5914.1766713999996,4955.8928413000003,0]
[4198,"2011-12-23","KW60MN02 ",6487211.357137911,2275193.5267192102,1623566.8032776685,88865.062345000013,562761.66109654156,"Winter",288102.61820999999,55670.581886,83073.576587000003,1594.5651852999999,55859.473151999999,29413.984093999999,7424.6205368000001,816.33821894000005,3053.2304963000001]
[4202,"2011-08-06","KW60MN22 ",6797715.3034288157,2274982.9439216061,1655064.0212618154,125260.6905,494658.23215979035,"Summer",191027.33186999999,78049.140237,88873.982067999998,1705.9017260000001,53853.092076000001,27320.442752999999,7294.9902382999999,36155.020607999999,3053.2304963000001]
[4203,"2011-10-18","KW60MN18 ",6696564.4343215683,2274946.4391302271,1659496.1169280969,102169.37549600001,513280.94670613029,"Summer",173061.46638999999,63927.281879000002,125430.57613,2407.5914158999999,54172.289064999997,43515.583271000003,7294.0354317000001,19170.103298999999,0]
[4209,"2011-12-28","KW60MN22 ",6746834.9075814374,2274341.2307962473,1647373.9972834901,85431.607419999986,541535.62609275698,"Winter",219158.81967999999,66164.668527999995,91571.220711000002,1757.6741790000001,55494.676592999997,30469.195978,5987.0264206000002,816.33821894000005,3053.2304963000001]
[4210,"2012-05-01","KW60MN10 ",6733940.4286246011,2273989.3560752315,1678866.6809299509,101556.91991965364,493565.75522562681,"Summer",111555.38679,65379.895174999998,107188.34705,2057.4388813999999,56133.070571999997,34472.453939999999,9234.1340218999994,21356.368259999999,0]
[4213,"2012-06-19","KW60MN11 ",7326520.6696917927,2273763.6119875088,1645751.1291553248,132040.4316116799,495972.05122050422,"Summer",122479.08272000001,77995.244884,104859.61586999999,2012.7397865,53305.897235999997,42846.332062000001,9155.6857851000004,36183.973868000001,0]
[4217,"2012-04-26","KW60MN11 ",6757440.2738467399,2273423.3194723753,1696235.3154060952,106360.64328800244,470827.36077827762,"Summer",125700.06357,73196.549939999997,113636.84028999999,2181.2152159000002,51436.314870000002,34513.351880000002,9404.5078353999997,7467.6597125999997,0]
[4220,"2011-11-27","KW60MN12 ",6551998.2950660978,2272910.3506794181,1637927.9912712313,105128.64627100001,529853.7131371866,"Winter",256588.48951000001,45376.710808999997,83981.575223000007,1611.9938681000001,46921.957448000001,24242.512870999999,5517.8910993999998,4955.8928413000003,0]
[4224,"2012-04-11","KW60MN19 ",6674996.7798967892,2272723.0312420377,1679514.3107354925,111867.21058188431,481341.5099246609,"Summer",147362.21356,58898.880125000003,92965.619021999999,1784.4391154,55129.880033000001,32704.746014,6163.3271467000004,7467.6597125999997,0]
[4228,"2011-12-04","KW60MN15 ",6881368.7667028159,2271883.1129282662,1706082.3718718896,86140.613966999998,479660.12708937662,"Winter",230066.02423000001,42515.801422999997,86926.590448000003,1668.5222967,56406.667991000002,26183.844518000002,5943.7350605000001,816.33821894000005,0]
[4231,"2012-05-29","KW60MN19 ",7127488.7243936881,2271621.2652363186,1637065.0658975504,127420.63498244098,507135.564356327,"Summer",175079.60446999999,56123.171416999998,86268.293940000003,1655.8865498,56041.871432,34904.511341999998,6560.9094955,25287.198052,0]
[4234,"2012-03-07","KW60MN17 ",6726170.1367928181,2271440.7666435903,1683301.1618179383,87022.95679488586,501116.64803076599,"Winter",174620.06090000001,74782.486027000006,109533.13391,2102.4461584999999,55859.473151999999,34128.580629999997,7253.5407767999995,1354.3257784,265.39075265999998]
[4235,"2012-02-19","KW60MN13 ",6601966.7345465412,2271381.8775183125,1671649.7699379895,94312.01700754941,505420.0905727736,"Winter",218711.27369,46737.736389999998,75841.879230000006,1455.7555503999999,41814.805616999998,25333.664777000002,6060.7378661000002,747.06969021999998,0]
[4238,"2012-02-08","KW60MN06 ",6815381.8979299981,2271121.8885030304,1627777.4841946613,89513.926294649704,553830.47801371955,"Winter",212865.77854,55501.544707000001,95534.806983999995,1833.7536851,50068.327771999997,31942.526274,8216.5839204999993,747.06969021999998,3053.2304963000001]
[4242,"2012-01-08","KW60MN16 ",6826188.9117842196,2270688.1205595573,1682649.5825685961,94156.01105799996,493882.52693296148,"Winter",207254.81922999999,44772.344365999998,81245.852650999994,1559.4827310000001,55312.278313000003,26537.347616999999,5766.9535439000001,742.46966563000001,1425.2649578999999]
[4245,"2012-05-18","KW60MN14 ",6804011.9200083427,2270348.4645176083,1623811.3593734882,126068.84439650891,520468.26074761088,"Summer",105445.10747,74975.605953999999,121519.7641,2332.5248907999999,54537.085623999999,46199.872107000003,8639.3433807000001,21356.368259999999,0]
[4249,"2012-05-24","KW60MN19 ",6880430.9925667085,2269772.4338641167,1662449.0880390445,119472.40085176185,487850.94497331034,"Summer",129142.73480000001,64690.670303999999,87848.440749000001,1686.2168569,56133.070571999997,41799.074130000001,6472.3240507999999,21356.368259999999,0]
[4253,"2011-08-31","KW60MN22 ",7251962.6038213558,2268833.136707013,1657135.6693178967,120718.253557,490979.21383211605,"Summer",175268.40747000001,61250.481475000001,92807.919485999999,1781.4121338,56589.066271000003,34426.230113999998,7234.1873113000001,40456.765366,3053.2304963000001]
[4256,"2012-01-07","KW60MN15 ",6711385.9079790479,2268286.6753044114,1647767.044075313,92807.251610725565,527712.37961837288,"Winter",252315.37761,57276.495342000002,84492.859897000002,1621.8077797000001,56361.068421000004,27592.270832999999,6455.8570153000001,742.46966563000001,0]
[4257,"2012-04-18","KW60MN14 ",6608743.3302402673,2268237.5194649431,1694487.8629826398,104104.51167389286,469645.14480841038,"Summer",118350.00545,74345.776519999999,121479.88673,2331.7594601999999,34929.270558999997,37303.524830000002,9372.9992015999997,7467.6597125999997,0]
[4260,"2012-03-07","KW60MN16 ",6711968.868645723,2267978.1842796695,1686065.3278122141,86484.399698103764,495428.45676935156,"Winter",153019.99736000001,79070.323978,112457.65009,2158.5811159999998,55859.473151999999,34274.375803000003,7945.6320157999999,1354.3257784,0]
[4263,"2012-06-15","KW60MN10 ",7037619.5794263175,2267813.7898815023,1647632.0467819297,133124.84971123378,487056.89338833885,"Summer",128080.46092,71214.741219999996,113643.98647,2181.3523842,49475.533363000002,40227.974628000004,8398.8284910999992,30505.735871000001,0]
[4266,"2012-04-12","KW60MN14 ",6644269.8773392821,2267573.0056051817,1696658.8314639931,103256.56326429738,467657.61087689112,"Summer",147520.02632999999,82467.103443,119047.70349,2285.0746430999998,52029.109278999997,36863.005772999997,9242.6815767999997,7467.6597125999997,0]
[4271,"2011-11-06","KW60MN22 ",6458286.5846333299,2267257.8508099895,1641189.1493443768,100688.569019,525380.13244661258,"Winter",236308.65854999999,51218.266860000003,93767.293067000006,1799.8269388000001,56589.066271000003,28630.068657,6528.0769974000004,4955.8928413000003,3053.2304963000001]
[4274,"2012-06-13","KW60MN20 ",7301413.5639358321,2266912.4415167626,1640345.2368100164,129859.76551929738,496707.43918744847,"Summer",131679.64128000001,61201.689324999999,96648.879654000004,1855.1378792999999,55768.274012000002,38553.128948999998,7353.8022922999999,33611.562624999999,0]
[4278,"2012-05-08","KW60MN13 ",6892441.5756086539,2265931.8874747939,1653882.8387592179,117066.63001800301,494982.41869757301,"Summer",119180.61569999999,89006.840679000001,119361.04347,2291.0890829,55038.680892999997,37995.319606999998,10055.295204,21356.368259999999,0]
[4281,"2012-04-11","KW60MN07 ",6332147.0394510841,2265727.9231760665,1680595.4862914686,107884.49257149232,477247.94431310572,"Summer",157779.55201000001,44636.653148999998,85735.121614000003,1645.6525131000001,56224.269711000001,34225.899685999997,7935.7250465999996,7467.6597125999997,1017.3194389]
[4282,"2012-01-31","KW60MN23 ",6499176.520780771,2265715.0739835822,1648898.0461876378,93144.582511147964,523672.44528479624,"Winter",238204.12873,66707.740294000003,90258.919381,1732.4850623,55266.678742999997,33450.960943999999,6800.5017429999998,742.46966563000001,3053.2304963000001]
[4285,"2012-01-16","KW60MN03 ",6216759.9395197518,2265470.8562701875,1643934.3996709064,93097.670222582208,528438.78637669899,"Winter",267581.64848999999,52199.282157000001,79782.184762000004,1531.3881917000001,57318.659389,27924.616107999998,6404.9678285,742.46966563000001,3053.2304963000001]
[4291,"2011-11-15","KW60MN06 ",6747501.1012294525,2264971.2495102235,1573818.6883973738,96058.966767000005,595093.59434584959,"Winter",286595.58577000001,55693.490061999997,110840.38374,2127.5383136,55038.680892999997,36462.982601999996,9003.1198022999997,4955.8928413000003,3001.226631]
[4293,"2012-06-12","KW60MN21 ",7213695.6262239553,2264873.8648534669,1647513.2337622726,131275.59997759326,486085.03111360117,"Summer",141226.93220000001,57579.808145000003,96944.812560999999,1860.8181970000001,56725.864979999998,44578.886616999996,7205.9290836,34074.555396999996,407.5214593]
[4296,"2012-03-18","KW60MN13 ",6412248.7941868333,2264823.403370989,1683746.1718473181,100604.6818830775,480472.54964059353,"Winter",189678.26058,41550.089309000003,78003.375014000005,1497.2446262999999,55859.473151999999,24686.640951000001,5597.8104844,1354.3257784,0]
[4299,"2012-03-24","KW60MN11 ",6285746.3257395346,2264370.2094636522,1651300.3040156614,105988.5662331441,507081.33921484696,"Winter",222180.78049999999,59668.147838999997,75657.907231000005,1452.224279,55996.271862000001,29104.257160000001,5390.5090000999999,1354.3257784,0]
[4303,"2012-01-01","KW60MN14 ",6283926.8723367136,2263941.7328633042,1658828.9904472132,91146.010768565495,513966.73164752545,"Winter",239659.72628999999,48207.899178,73093.869521000001,1403.0085664000001,54582.685193999998,16449.237539000002,5837.1826529999998,742.46966563000001,0]
[4306,"2012-05-30","KW60MN08 ",6675450.2482928997,2263584.6191474553,1649451.4900601364,125439.95392758948,488693.17515972909,"Summer",147538.37246000001,48339.403068,82142.276310999994,1576.6892366,57455.458099000003,38097.340181,7209.573942,25573.665104,0]
[4307,"2011-08-17","KW60MN09 ",7009794.6137835393,2263500.9731478388,1671486.663234541,127067.021016,464947.28889729769,"Summer",117455.00886,64287.175002000004,94630.258461000005,1816.3912259000001,52393.905837999999,36022.892140999997,9630.3467977,43556.925851,0]
[4312,"2012-05-11","KW60MN07 ",6448240.1846762039,2263275.6175121116,1648553.1303435948,114030.71170182234,500691.77546669455,"Summer",166437.00784000001,43924.939477,83377.131181999997,1600.3917984,57364.258958999999,34640.889274000001,6885.0089415000002,21356.368259999999,0]
[4314,"2012-04-06","KW60MN14 ",6558066.242981974,2263080.7116333079,1675813.7961001764,102022.63177804367,485244.28375508799,"Summer",183348.03964,77215.389951999998,97052.525649000003,1862.8857081000001,53305.897235999997,33392.250849999997,8166.3786744999998,7467.6597125999997,0]
[4318,"2011-09-19","KW60MN22 ",6430576.0308467038,2262276.9949734453,1661125.5235588218,97213.039712000013,503938.43170262378,"Summer",188245.46054,53849.52246,101340.06887,1945.1834426999999,57227.460249999996,36034.970044000002,7399.9987037000001,30217.333901999998,3053.2304963000001]
[4321,"2012-02-04","KW60MN06 ",6565914.3882591734,2262191.4912173715,1587132.1320317059,88284.146174712252,586775.21301095316,"Winter",248890.01386000001,57579.530167999998,70897.606092000002,1360.8521390000001,57227.460249999996,27113.081248999999,6612.6045111000003,747.06969021999998,3053.2304963000001]
[4325,"2012-05-24","KW60MN20 ",6888231.9668397801,2261940.2262630528,1659772.6071615082,120479.63415268791,481687.98494885676,"Summer",157811.35832999999,61719.645169000003,83919.840523000006,1610.8088944000001,55996.271862000001,40830.095669000002,6155.4127443999996,21356.368259999999,0]
[4328,"2012-05-11","KW60MN12 ",6843477.6765710069,2261658.0183888413,1641038.7927572883,128373.28288801064,492245.94274354255,"Summer",99139.401031999994,69763.697769999999,111627.50039,2142.6467134,57592.256808999999,37625.137457999997,8135.7266587000004,21356.368259999999,0]
[4331,"2012-02-25","KW60MN07 ",6457917.6048517833,2261039.3422213527,1650998.6970992622,94186.316263175773,515854.32885891484,"Winter",216050.95741,55502.054063000003,71458.851723,1371.6250319000001,56361.068421000004,27083.067729999999,6071.4828310000003,747.06969021999998,0]
[4333,"2011-10-24","KW60MN07 ",6615239.6711711576,2260883.5798869375,1625178.2087323507,91742.850237000006,543962.52091758675,"Summer",237203.77171999999,50505.744965999998,117309.32296,2251.707101,55859.473151999999,40878.441425999998,7975.1988708999997,19170.103298999999,3053.2304963000001]
[4336,"2011-07-19","KW60MN09 ",7666936.7326332396,2260675.7840788173,1643445.9892685683,122045.82642599999,495183.96838424908,"Summer",122447.90171999999,58846.588360000002,100005.92272,1919.5750231,47925.147986000004,38901.473286,9010.6363679000006,45499.979893000003,0]
[4339,"2011-07-16","KW60MN20 ",7821978.9770768285,2260376.2976862686,1605100.4892217228,124738.54142499999,530537.2670395457,"Summer",187631.77131000001,55339.677078000001,89199.413751,1712.1482613000001,55038.680892999997,31134.368973000001,6345.6682142,45570.721894000002,0]
[4343,"2011-11-26","KW60MN21 ",7009417.47723745,2259883.4318461292,1623969.7599465819,110543.93537300001,525369.73652654735,"Winter",236614.52278999999,62199.998632000003,85199.978845000005,1635.3806545,55859.473151999999,27269.507288000001,6214.0470415999998,4955.8928413000003,3053.2304963000001]
[4346,"2011-10-02","KW60MN20 ",6600133.9476630315,2259754.4819326778,1662068.9440612877,104146.68708800001,493538.85078339005,"Summer",189886.81932000001,54726.569631999999,90622.200568999993,1739.4581042,54719.483904000001,30455.621567999999,7543.5448071999999,19170.103298999999,3053.2304963000001]
[4350,"2012-04-03","KW60MN16 ",6593303.1809395766,2259017.5249746782,1697836.9680152582,94231.394261814698,466949.16269760532,"Summer",137799.38514,71844.544945999995,99178.786210000006,1903.6984574999999,54719.483904000001,34404.825857999997,7571.9418527999997,7467.6597125999997,0]
[4354,"2011-07-21","KW60MN23 ",7276423.0867335247,2258446.2460018094,1658267.955575201,124797.78383999999,475380.50658660854,"Summer",172849.46312,54254.434960999999,84914.975927000007,1629.9101337,54673.884334000002,35837.192838000003,6639.5050161999998,54031.985644,3053.2304963000001]
[4357,"2011-11-19","KW60MN24 ",6320565.2651801296,2258274.2040549996,1606726.9720596417,88983.458480999994,562563.77351435798,"Winter",276732.59512999997,57970.524551000002,90602.222617000007,1739.0746352000001,57136.261109999999,28071.201968000001,6160.3543786,4955.8928413000003,3053.2304963000001]
[4358,"2011-11-27","KW60MN09 ",6500093.7748392466,2258242.7472222364,1597819.2090115172,106016.261317,554407.2768937191,"Winter",262721.52396999998,48581.458150999999,83771.184815999994,1607.9555055000001,56041.871432,23922.011979999999,5656.5615926,4955.8928413000003,0]
[4361,"2012-04-01","KW60MN22 ",6303989.6674426831,2258180.0167506393,1669402.0955724143,111995.0289577567,476782.89222046832,"Summer",230304.02580999999,50107.626022999997,70553.396175999995,1354.2451627999999,54765.083473999999,25399.069077,5900.8110642000001,7467.6597125999997,3053.2304963000001]
[4365,"2011-10-29","KW60MN10 ",6582381.8573930906,2258052.34166699,1595492.7858508388,105232.227684,557327.32813215116,"Summer",252749.08186000001,49970.919307999997,101990.62565,1957.6706285,56497.867130999999,36297.171171000002,5719.4976004999999,19170.103298999999,0]
[4368,"2012-06-16","KW60MN13 ",7017552.0890758904,2257874.3406960941,1616104.7089625595,122607.86607760897,519161.76565592585,"Summer",174677.25081,63674.041847,98024.222882999995,1881.5370608000001,52621.903687999999,33849.197971000001,6666.7678058000001,31636.8243,0]
[4371,"2011-07-10","KW60MN12 ",7300775.2072279397,2257426.6093938523,1618831.9289940244,129013.14526600001,509581.53513382789,"Summer",171887.39874999999,51097.435347999999,90874.259076999995,1744.2962697999999,54719.483904000001,28195.459929000001,6475.1766224000003,32445.092977,0]
[4375,"2012-06-07","KW60MN10 ",6862846.8320396794,2257268.1818905408,1649457.9042565038,124671.44038321861,483138.83725081832,"Summer",140181.85980000001,67816.808071000007,104180.88428,1999.7117960999999,56406.667991000002,42107.017133000001,8699.1762651999998,26543.571042,0]
[4379,"2011-08-26","KW60MN08 ",7040346.8167342069,2256565.6281782133,1628071.5104104851,119599.17134999999,508894.94641772803,"Summer",150323.80491000001,66266.679566999999,97992.107757999998,1880.9206234000001,54993.081323999999,38802.648031999997,8851.9149264999996,48469.950494999997,0]
[4382,"2012-06-30","KW60MN12 ",7486013.6656916644,2256430.8749821368,1599870.6295370762,128963.9610763353,527596.28436872538,"Summer",185001.27942000001,66840.944180999999,109683.62536999999,2105.3347838,55266.678742999997,33793.149026999999,6688.5658485000004,36370.975382999997,0]
[4383,"2012-04-13","KW60MN21 ",6439789.7284552781,2256288.5480627944,1691538.9269461974,113411.76619613271,451337.85492046416,"Summer",143340.39384999999,62830.742337000003,96403.315457000004,1850.4243695,39215.630130999998,31317.207556000001,6350.0139409000003,7467.6597125999997,3053.2304963000001]
[4386,"2012-01-18","KW60MN05 ",6585875.9970942102,2256228.5811175182,1660008.5217418747,94522.049058482546,501698.01031716086,"Winter",238530.19386,52025.450279999997,88468.837341999999,1698.1251296,50022.728201999998,33721.916839999998,8043.0714336000001,742.46966563000001,3053.2304963000001]
[4390,"2012-04-26","KW60MN21 ",6542821.6821794556,2255639.0073764049,1669648.3602635935,109527.55894761095,476463.08816520049,"Summer",192480.27979,61521.977992,92787.699936000005,1781.0240274,49749.130783000001,30927.680297999999,6815.7346401000004,7467.6597125999997,2829.2279797000001]
[4393,"2012-03-26","KW60MN19 ",6675828.3788698753,2254776.9814693118,1666290.8033240552,117910.03800266045,470576.14014259609,"Winter",199158.5791,54434.975235999998,97033.658769000001,1862.5235656,54765.083473999999,33581.206183000002,6761.9167023999998,1354.3257784,3053.2304963000001]
[4396,"2011-12-17","KW60MN07 ",6738399.7162245987,2254676.3958021486,1610594.9670543706,84827.823420000001,559253.60532777826,"Winter",270280.13024000003,57917.080709000002,86625.134214000005,1662.7359609,53625.094226000001,26483.690902999999,6856.2259094999999,816.33821894000005,1933.2885876]
[4401,"2012-03-01","KW60MN05 ",6456564.1691808766,2253990.8017796157,1627254.1784190251,85446.750569014519,541289.87279157597,"Winter",228233.31880000001,55740.159627000001,76752.507763999994,1473.2347130999999,54217.888635000003,30160.959964000001,6986.3691630000003,1354.3257784,3053.2304963000001]
[4404,"2011-10-27","KW60MN17 ",6676356.8448923854,2253781.240100137,1645446.8610805296,95436.076512,512898.30250760744,"Summer",154770.11869999999,71224.512182999999,128587.24545,2468.1824628999998,47651.550565999998,41372.228845999998,7469.0698537999997,19170.103298999999,0]
[4407,"2012-01-08","KW60MN15 ",6656815.9406734016,2253278.0011335681,1675622.8468553291,95495.010570738494,482160.1437075006,"Winter",207691.02475000001,44032.187084999998,81941.101974999998,1572.827773,54719.483904000001,26740.829140999998,5968.4584697999999,742.46966563000001,0]
[4408,"2012-02-20","KW60MN06 ",6751754.1407534527,2253137.9786031418,1631037.1437409008,79144.636309699912,542956.1985525412,"Winter",206185.07336000001,57804.214115000002,75994.314375000002,1458.6814841,55722.674442000003,26694.482334,6701.5251540999998,747.06969021999998,2899.5653634999999]
[4411,"2011-12-10","KW60MN05 ",6398256.0273523116,2252601.9801949915,1580497.4026599748,86538.593026999995,585565.9845080165,"Winter",297812.40646000003,58421.353026999997,90576.217703000002,1738.5754809,57865.854227999997,29529.34647,6726.0877354000004,816.33821894000005,3053.2304963000001]
[4415,"2012-03-30","KW60MN20 ",6536237.1848232467,2252342.2229059916,1649903.9218794964,101065.56261749816,501372.73840899678,"Winter",208897.83137999999,68621.431855999996,96044.519782000003,1843.5374251999999,53670.693796,29383.165481,6686.944031,1354.3257784,3053.2304963000001]
[4417,"2012-06-19","KW60MN10 ",7219605.9371306468,2252255.5572338989,1636347.7514377516,131037.92427061149,484869.88152553595,"Summer",109566.71275000001,70433.567104000002,103933.41475,1994.9617141000001,52439.505407999997,40549.933159,9120.9064299000001,36852.855841999997,0]
[4422,"2012-05-23","KW60MN16 ",7093558.6703899605,2251624.4478652193,1646998.1364214094,121476.77962387945,483149.53181993036,"Summer",126238.50293,79463.717315999995,112219.72848000001,2154.0143026999999,57501.057669000002,42498.774497999999,8169.0230164000004,21356.368259999999,0]
[4426,"2011-12-23","KW60MN03 ",6478417.1933025178,2251335.7191908159,1600556.9262027028,84923.027726000015,565855.7652621133,"Winter",278364.65895000001,53383.257437,83693.841587000003,1606.4709322000001,55813.873582,29006.579834,7464.1942435000001,816.33821894000005,3053.2304963000001]
[4429,"2012-03-21","KW60MN23 ",6258262.4575870214,2250868.074744992,1658827.0736109836,90141.908620471455,501899.09251353709,"Winter",221486.93424999999,57664.364494000001,82408.954450999998,1581.8080203,48700.340674999999,32330.346414,6386.0477509000002,1354.3257784,3053.2304963000001]
[4430,"2012-02-16","KW60MN05 ",6510703.4202105012,2250745.2918089968,1621794.0125880861,88484.496834242527,540466.78238666826,"Winter",235703.34218000001,51604.113047999999,80568.232478999998,1546.4760736999999,56178.670141000002,31324.109015000002,6944.2086744999997,747.06969021999998,3053.2304963000001]
[4433,"2012-04-27","KW60MN11 ",6568871.8372954121,2250530.2538690651,1660586.1661115189,109546.74043792016,480397.34731962578,"Summer",138354.98358999999,66487.603596999994,115364.02649,2214.3678872999999,55266.678742999997,30612.391660000001,9464.9738713999996,7467.6597125999997,0]
[4436,"2012-04-19","KW60MN15 ",6584509.1109495685,2249961.5586056206,1694737.0816645685,100525.84716097296,454698.62978007901,"Summer",121703.9984,79619.792423000006,113818.23854000001,2184.6970851999999,34838.071419,37651.373807000004,8970.6682110999991,7467.6597125999997,0]
[4442,"2012-06-26","KW60MN13 ",7791500.8526450386,2249051.5540669844,1622334.0234771625,134307.85011499625,492409.68047482573,"Summer",104165.02228999999,77157.080713999996,108813.49563999999,2088.6329802,54172.289064999997,45425.913659999998,9327.3682258999997,37276.995846999998,0]
[4444,"2012-06-28","KW60MN22 ",7578263.9754078342,2248796.8364119027,1621782.0403277199,131800.18329654145,495214.61278764118,"Summer",130995.12178,62552.461903000003,103735.30746,1991.1591212999999,55449.077022999998,44518.435354000001,7317.5805678999996,41300.865862999999,3032.5505136000002]
[4447,"2012-05-08","KW60MN12 ",6854648.7079222482,2248487.1250375421,1640387.109392677,121158.82018913818,486941.19545572693,"Summer",123555.60109,85055.054122000001,117060.34551,2246.9280751000001,50341.925192000002,36986.812210999997,9911.2903181000001,21356.368259999999,0]
[4451,"2011-09-16","KW60MN08 ",6480399.0894511389,2248326.2999502649,1654814.4414661154,101428.12960200002,492083.72888214921,"Summer",138769.87536999999,51246.331264,108300.4084,2078.7844690000002,54537.085623999999,36992.163557,7904.3603111000002,30217.333901999998,0]
[4454,"2011-09-10","KW60MN11 ",6793468.6781494208,2248107.6341707008,1594966.1489587335,108750.420189,544391.06502296752,"Summer",173789.21747999999,78847.309498999995,114873.88665,2204.9598424999999,55768.274012000002,34911.538308000003,7239.8552084000003,36436.730636,0]
[4455,"2012-05-09","KW60MN13 ",7078954.0691501293,2247998.9170083804,1651587.9244496997,122949.0756156704,473461.91694301035,"Summer",105309.97564999999,78358.465693999999,108872.98305,2089.7748179999999,53123.498957000003,37240.543290000001,9311.3041042999994,21356.368259999999,0]
[4459,"2012-02-20","KW60MN23 ",6609298.419731969,2247484.7369442289,1627413.6325646054,87746.221815713638,532324.88256390986,"Winter",250787.34938999999,53138.600940999997,80279.913797000001,1540.9419081000001,57090.661540000001,29701.697114999999,6743.3504443000002,747.06969021999998,3053.2304963000001]
[4462,"2012-05-17","KW60MN22 ",6967235.5235152571,2247135.1717508091,1627713.5983884688,121606.89291780088,497814.68044453923,"Summer",161562.16190000001,55996.381883000002,82613.295620000004,1585.7302701000001,55221.079172999998,34701.277296,6682.9775185999997,21356.368259999999,3053.2304963000001]
[4466,"2012-03-04","KW60MN19 ",6650763.4456796879,2246429.3051785603,1654231.2642987068,97831.909498134613,494366.13138171867,"Winter",144859.74184,59628.202741000001,79470.071828,1525.3973046000001,54719.483904000001,27313.286848,6189.1001667,1354.3257784,3053.2304963000001]
[4469,"2011-12-19","KW60MN24 ",6521601.8441637754,2245927.5111599946,1608934.8517952508,84790.210849999989,552202.44851474406,"Winter",251924.86254999999,56032.568671000001,95039.579586000007,1824.2479866000001,54537.085623999999,34028.464724999998,6706.4837170000001,816.33821894000005,3053.2304963000001]
[4472,"2011-08-15","KW60MN09 ",6979294.3312074319,2245456.7759147519,1654884.2974258109,125483.21850299998,465089.25998594076,"Summer",115334.31898,62406.636585,99803.796463999999,1915.6952877000001,55540.276163000002,34786.418811000003,8101.4568718,45371.379372000003,0]
[4476,"2012-05-04","KW60MN13 ",6607933.5167762684,2245330.1697910051,1652945.9572368115,109916.01502004061,482468.19753415306,"Summer",114958.56773,69405.406629000005,111713.59406,2144.2992481000001,57318.659389,36827.494342999998,8248.8560622000005,21356.368259999999,0]
[4479,"2012-02-12","KW60MN15 ",6725955.6208569622,2244861.1914299517,1642954.3337067228,98886.300047611672,503020.55767561728,"Winter",212863.69062000001,44512.272212000003,80811.092713999999,1551.1376820999999,55221.079172999998,26686.578201,6006.9013047999997,747.06969021999998,0]
[4480,"2012-04-01","KW60MN12 ",6267702.8435333194,2244757.4890217553,1657532.4845570249,108476.65420122645,478748.35026350385,"Summer",198555.48843999999,44343.236640000003,75497.660357000001,1449.1484022,54491.486054000001,24623.99898,5632.93181,7467.6597125999997,0]
[4484,"2012-06-14","KW60MN09 ",6942775.836132098,2244084.5806754851,1639620.4656703896,129206.68606316797,475257.42894192768,"Summer",110294.17767,63978.355688000003,98705.743063000002,1894.6185771999999,49566.732502999999,39373.707528999999,9218.6014777,31715.523852999999,0]
[4487,"2011-10-14","KW60MN15 ",6722487.793359057,2243873.8094250271,1662100.8900040451,88979.732860000004,492793.18656098191,"Summer",132867.08433000001,72577.092413000006,123232.91731999999,2365.4082045,52621.903687999999,45028.560520999999,7407.8809405000002,19170.103298999999,0]
[4491,"2012-05-03","KW60MN14 ",6826027.3602446513,2243613.3651957675,1634379.3432122155,116237.08681002799,492996.93517352408,"Summer",125524.65717000001,76522.541742000001,109254.27737,2097.0936151000001,56224.269711000001,36527.116379999999,9306.9651498000003,21356.368259999999,0]
[4494,"2012-02-12","KW60MN07 ",6382865.0873418087,2242788.8796765981,1613007.0999485594,93410.816784964962,536370.96294307371,"Winter",225222.25330000001,59645.117546000001,76799.504904000001,1474.1368050000001,55266.678742999997,25427.741322999998,6638.3030423,747.06969021999998,559.33486457000004]
[4498,"2012-03-25","KW60MN10 ",6128531.019076122,2242166.082268205,1629353.0702562851,115020.95303801581,497792.05897390394,"Winter",207286.14861999999,51047.365790000003,72160.966134999995,1385.1018466,55175.479603,25702.794147000001,5268.6644425000004,1354.3257784,0]
[4501,"2012-04-11","KW60MN18 ",6508700.9680020679,2241762.3767132834,1661666.9265459217,107700.0132959505,472395.43687141122,"Summer",138199.72506999999,63432.743566999998,94566.293233999997,1815.1634380999999,55996.271862000001,33089.477859999999,6387.1464557999998,7467.6597125999997,0]
[4505,"2012-05-07","KW60MN11 ",6712850.082916731,2241170.3395604165,1629969.9955829515,113121.17687653701,498079.16710092808,"Summer",129721.16258,68578.976932999998,104359.74759,2003.1450083,57045.061970000002,36804.583693,8878.4142093999999,21356.368259999999,0]
[4506,"2012-02-08","KW60MN23 ",6561587.9176818021,2241136.9825804713,1597400.8713580191,87901.935699737165,555834.1755227152,"Winter",240422.50567000001,65524.025315999999,99605.507519000006,1911.8892080999999,50980.319171000003,31384.700879,6946.7599050999997,747.06969021999998,3053.2304963000001]
[4509,"2012-03-28","KW60MN22 ",6422320.2863645218,2240925.6174438335,1664036.2314622549,97969.296295259381,478920.08968631912,"Winter",198664.13441999999,62630.706733999999,86417.010735000003,1658.7411112,39170.030561,31969.228203999999,6238.9515930999996,1354.3257784,3053.2304963000001]
[4512,"2012-03-17","KW60MN08 ",6219283.298834445,2240750.212506169,1651455.9295154226,102353.97235850709,486940.3106322395,"Winter",226906.87546000001,49576.520111999998,82790.841516,1589.1381948999999,55768.274012000002,27661.258903000002,5495.9847105999997,1354.3257784,0]
[4516,"2012-05-07","KW60MN21 ",6737952.2505788058,2240304.9873391138,1632871.3463361845,117674.08393535383,489759.55706757528,"Summer",172047.79757,52790.707415999997,92578.428295000005,1777.0071390999999,57227.460249999996,33595.668306,6745.6037217000003,21356.368259999999,2137.6854072000001]
[4519,"2011-10-31","KW60MN16 ",6680092.9914695751,2240130.7243707553,1639597.8765327106,86907.192554000008,513625.65528404457,"Summer",152350.0085,61246.433941000003,121123.51346,2324.9190131,56680.265411,42849.835912000002,6848.3030423,19170.103298999999,611.07015908999995]
[4523,"2011-12-24","KW60MN23 ",6483157.1106777471,2239663.7422161065,1606899.9576042132,93658.183690000005,539105.60092189314,"Winter",294637.58240000001,53744.381370000003,67440.019891999997,1294.4851087,57045.061970000002,17133.094046999999,6567.5084985000003,816.33821894000005,3053.2304963000001]
[4526,"2011-07-16","KW60MN12 ",7499953.5722330594,2239315.7390283449,1596782.8361966403,128768.882967,513764.01986470458,"Summer",147752.27288,58074.905622999999,94731.005757000006,1818.3250313000001,55813.873582,33356.605136999999,6577.0971992000004,42564.853219999997,0]
[4530,"2011-12-25","KW60MN21 ",6724304.349980399,2239079.5559804188,1611666.2545798153,94681.294170000008,532732.00723060337,"Winter",267896.06579000002,55898.174143999997,70700.133686000001,1357.0617325000001,51436.314870000002,16369.901685999999,6545.7104557000002,816.33821894000005,3053.2304963000001]
[4531,"2012-05-08","KW60MN11 ",6816721.4136391664,2239077.1728413859,1638031.1796732813,122462.05736045382,478583.93580765114,"Summer",123236.35084,80576.112779999996,112314.21503000001,2155.8279354000001,49977.128632,36675.847569999998,9699.2401921000001,21356.368259999999,0]
[4534,"2011-07-22","KW60MN23 ",7223756.3344960446,2238936.9655666985,1621746.4599955964,126274.922812,490915.58275910193,"Summer",150688.20508000001,54325.065157999998,74704.075465000002,1433.915847,55540.276163000002,34658.766875000001,5716.0846724000003,47786.452633000001,3053.2304963000001]
[4538,"2011-09-18","KW60MN20 ",6521590.4104703274,2238336.8197851852,1632790.7139464261,104275.55663799999,501270.54920075892,"Summer",180840.35342,60423.858963999999,94758.002896000005,1818.8432310000001,54719.483904000001,30421.953588,7004.1194334000002,30217.333901999998,2646.5571568999999]
[4541,"2012-05-07","KW60MN14 ",6770551.2688209247,2237909.668584547,1624890.2519618359,112558.42528390401,500460.99133880733,"Summer",113317.23015,71348.467317999995,113219.73534,2173.2090475999998,57364.258958999999,38381.411220000002,9425.6439455,21356.368259999999,0]
[4544,"2011-08-21","KW60MN23 ",6600223.4024190921,2237828.2233874099,1638458.5222842903,115769.78889900001,483599.91220411938,"Summer",193373.14606999999,56242.495748000001,69180.936499999996,1327.9013299000001,56087.471001999998,30408.198322,6546.1777019000001,48069.104036999997,3053.2304963000001]
[4547,"2012-04-09","KW60MN20 ",6686620.8578946637,2237645.6434905538,1666460.4921871764,108674.1940903708,462510.95721300645,"Summer",155660.81226999999,52079.136748999998,99065.656239999997,1901.5269714999999,56224.269711000001,32914.395019000003,6532.9949309000003,7467.6597125999997,967.28038360000005]
[4552,"2011-10-17","KW60MN18 ",6665563.592731813,2237078.8791413521,1634242.3239271094,89347.832414999997,513488.72279924282,"Summer",140013.8406,55297.316957000003,120506.58362999999,2313.0772834999998,56862.663690000001,43692.670190999997,7051.6363215000001,19170.103298999999,0]
[4555,"2011-08-08","KW60MN23 ",6722431.4814886488,2236812.6313273725,1602171.8443893855,122047.40854699998,512593.37839098682,"Summer",191113.39228999999,62609.884186000003,93527.370813000001,1795.2217238999999,56953.862829999998,33420.052257000003,7680.0415900999997,46036.243856000001,3053.2304963000001]
[4556,"2011-10-17","KW60MN15 ",6707155.2669133963,2236612.4891351322,1643568.386305436,86214.518412000005,506829.58441769605,"Summer",118604.63619,64365.760475000003,131727.49002999999,2528.4582436999999,56725.864979999998,45441.958271000003,8580.1402620999997,19170.103298999999,0]
[4559,"2011-12-08","KW60MN05 ",6539191.3515741108,2236182.3105674521,1577732.0158125672,84969.328720000005,573480.9660348848,"Winter",326214.11550999997,57624.159094000002,104039.97669,1997.0071293000001,55859.473151999999,31818.949889,7928.5352131999998,816.33821894000005,3053.2304963000001]
[4563,"2011-07-30","KW60MN24 ",6862060.704576524,2235599.812694225,1611436.646633504,117460.80729900001,506702.35876172106,"Summer",168126.50534,62747.770295000002,73233.357613999993,1405.6859864999999,54993.081323999999,28742.875241000002,6570.2916593999998,43196.318892000003,3053.2304963000001]
[4566,"2012-05-29","KW60MN21 ",7016060.1706086509,2235419.9634311851,1618582.1030693136,125656.84768769793,491181.01267417334,"Summer",142813.21017999999,58958.363936000002,81243.047181000002,1559.4288810999999,56087.471001999998,33743.255253000003,6250.7207752000004,27027.051381000001,916.39320871999996]
[4568,"2012-06-22","KW60MN18 ",7642253.175711222,2235041.2933134735,1613967.1854380076,124483.27453131773,496590.83334414836,"Summer",120891.37393,71493.937531999996,98144.858678999997,1883.8526182999999,56634.665841000002,37770.888847000002,7447.4140166999996,26586.490773000001,0]
[4574,"2012-04-11","KW60MN17 ",6474106.9257186977,2234627.5279514673,1650681.5643036899,108127.57222409637,475818.39142368117,"Summer",139312.04542000001,74203.788245999996,105847.33111,2031.6985987,56315.468850999998,34908.499165000001,7247.2651206999999,7467.6597125999997,0]
[4577,"2011-10-19","KW60MN07 ",6618269.0708369343,2234210.3505576844,1603833.5349604166,88467.008734999996,541909.8068622679,"Summer",251961.13086999999,53801.271802000003,112718.76529,2163.5931212999999,45462.771209999999,42223.672517999999,8848.4207385999998,19170.103298999999,3053.2304963000001]
[4580,"2012-05-07","KW60MN15 ",6738926.3783306787,2233326.6807228653,1631574.6319976437,110289.47028709242,491462.57843812904,"Summer",109235.70868,78579.542369999996,109321.85451,2098.3907319999998,56817.064120000003,37523.276457,9601.5112848000008,21356.368259999999,0]
[4581,"2011-10-11","KW60MN17 ",6713579.5904061338,2233254.0071171336,1660009.2146702681,87632.195747000005,485612.59669986565,"Summer",119319.87036,69554.273621999993,125835.53277000001,2415.3644020000002,41176.411637999998,42330.973022999999,7461.6954926999997,19170.103298999999,0]
[4584,"2011-08-12","KW60MN23 ",6513949.5341423992,2233080.5815196801,1619044.0916416447,121939.809964,492096.67991403543,"Summer",179672.40116000001,67351.174520999994,85462.137940999994,1640.412697,57045.061970000002,32630.59447,7014.7035711999997,52464.234501999999,3053.2304963000001]
[4589,"2012-05-07","KW60MN09 ",6482637.3904651552,2232579.6579423002,1629398.0612974865,114884.2192158456,488297.37742896815,"Summer",133212.72502000001,61278.989356999999,98976.244391,1899.8107456,57409.858528999997,35253.177145000001,8831.4305903999993,21356.368259999999,0]
[4592,"2011-11-24","KW60MN17 ",6422083.4116549613,2232175.486569101,1616655.340442634,99673.718663000007,515846.42746346717,"Winter",226177.78894999999,52527.291507000002,76950.282856000005,1477.0309295,54400.286914999997,18280.564829999999,5962.9937229999996,4955.8928413000003,3053.2304963000001]
[4595,"2011-07-18","KW60MN23 ",7474608.6261184104,2231967.251042685,1582997.6786581655,118351.62106300001,530617.95132151956,"Summer",207753.29136999999,51980.247726000001,80291.023950999996,1541.1551632000001,48426.743255000001,35511.794006999997,7366.2757290999998,51863.364826999998,3053.2304963000001]
[4599,"2012-05-02","KW60MN12 ",6661970.2164258314,2230595.2771556107,1639653.8052860559,110691.20146539151,480250.27040416311,"Summer",96033.510097000006,70299.752632000003,113269.87278999999,2174.1714166000002,56771.464549999997,34607.526213999998,9203.4447622999996,21356.368259999999,0]
[4602,"2011-08-30","KW60MN08 ",6873299.3847423019,2230395.1306334771,1615594.0216730924,123716.296428,491084.81253238482,"Summer",129571.10795999999,58630.344944999997,105303.66204,2021.2630810999999,56817.064120000003,38466.688671000004,8611.2019650000002,39939.487075999998,0]
[4603,"2012-06-17","KW60MN13 ",6861543.7917573731,2230131.6879182947,1630289.6646364566,119104.53309716424,480737.49018467392,"Summer",182189.23394999999,54525.197168999999,83172.256869000004,1596.4593152,53442.695946,31088.146790999999,6313.4891839000002,33519.443669,0]
[4606,"2012-04-30","KW60MN11 ",6619614.2801161595,2229443.9249223806,1662492.2751926905,109591.30656470264,457360.34316498763,"Summer",101458.81418,65058.362843000003,110868.81267,2128.0839958000001,55677.074871999997,35794.018896000001,8163.8646877000001,7467.6597125999997,0]
[4610,"2012-03-11","KW60MN11 ",6147892.8986765677,2228793.0133848079,1652917.0009640085,96918.496282540553,478957.51613825897,"Winter",205128.63928999999,47193.235839000001,76237.700175999998,1463.3531803999999,53260.297666999999,24972.764034,5500.8450849999999,1354.3257784,0]
[4614,"2012-06-30","KW60MN20 ",7693571.9937290363,2228525.9161989139,1589862.0411502209,126138.22498020911,512525.65006848384,"Summer",154728.67827999999,62562.126816999997,102176.02335,1961.2292656,56406.667991000002,32140.673986000002,6412.9922709000002,37029.400861000002,0]
[4617,"2012-06-19","KW60MN22 ",7018005.0817133356,2228245.5855119824,1586521.5647463545,133010.30281165184,508713.71795397601,"Summer",148956.65244000001,56559.464762000003,95372.519967,1830.6386485,55175.479603,36991.891255000002,6653.5630266999997,41210.75763,3042.6996786999998]
[4620,"2011-10-01","KW60MN19 ",6575638.2406559298,2227719.0808527996,1668453.7945760661,92396.493979999985,466868.79229673353,"Summer",147377.10454999999,61375.097006000004,93253.840905000005,1789.9714231,54765.083473999999,31560.449787000001,7190.4693354999999,19170.103298999999,916.39320871999996]
[4624,"2011-11-12","KW60MN08 ",6554570.4325653194,2227508.0768293901,1551013.5376529258,106386.77263799999,570107.76653846412,"Winter",291411.74739999999,50671.824023000001,96507.756873999999,1852.4290821,55449.077022999998,32622.182815,5870.9259417000003,4955.8928413000003,0]
[4627,"2011-12-10","KW60MN01 ",6349314.85503502,2227257.3131263498,1572354.3940363738,85377.596378999995,569525.322710976,"Winter",307746.99047000002,63795.702468000003,92032.798083000001,1766.5339782000001,57501.057669000002,30915.675421,6796.4793642000004,816.33821894000005,3053.2304963000001]
[4628,"2012-05-07","KW60MN13 ",6757419.0880691754,2227061.5662764115,1617603.2016571451,113660.79808734094,495797.56653192552,"Summer",110115.74008,75000.316963000005,110756.88311,2125.9355512000002,57136.261109999999,38062.885909999997,9359.0326084999997,21356.368259999999,0]
[4631,"2012-04-19","KW60MN19 ",6415191.0439849608,2226816.5743169943,1657391.3627571817,94888.254917110156,474536.9566427024,"Summer",177362.78109999999,63657.051522000002,98958.100237000006,1899.4624756000001,34655.673138999999,33668.210021999999,6436.6626839999999,7467.6597125999997,0]
[4635,"2012-05-23","KW60MN20 ",6893031.5330628371,2226222.8157105907,1631524.0524660088,125802.80032142502,468895.96292315674,"Summer",137844.80003000001,57468.551567000002,84171.543867999993,1615.6402427999999,57546.657239,38726.172874999997,6006.1005542000003,21356.368259999999,0]
[4639,"2011-11-20","KW60MN05 ",6236129.9964301661,2225576.5968454164,1567998.4393219529,86786.467906000005,570791.68961746327,"Winter",253863.87166999999,52044.780108999999,89815.865667999999,1723.9808175999999,55449.077022999998,28180.557935000001,6381.5242675,4955.8928413000003,3053.2304963000001]
[4642,"2011-11-24","KW60MN19 ",6467587.6994975042,2225185.3471498229,1621237.3738831764,102587.05059,501360.92267664656,"Winter",225505.58499,55781.963795000003,75928.424750000006,1457.4167582,54719.483904000001,18176.443662999998,6096.6667144000003,4955.8928413000003,3053.2304963000001]
[4645,"2011-08-06","KW60MN12 ",7009206.8678186219,2224780.3895307323,1589266.6758935985,126216.192475,509297.52116213366,"Summer",189792.28004000001,75960.627009000003,102034.92376000001,1958.5209136999999,55859.473151999999,29851.051231000001,7191.1600472,29941.670443999999,0]
[4649,"2012-06-22","KW60MN19 ",7659957.8479650002,2224199.6168838078,1611601.6943848114,124849.76014627964,487748.16235271684,"Summer",120400.67055,65593.193322000006,94001.556611000007,1804.323537,56634.665841000002,36884.611636000001,6906.8916307,27495.121347,0]
[4652,"2012-05-10","KW60MN13 ",6919200.4040548299,2223783.0889561009,1621347.2214680847,124863.76372642885,477572.10376158729,"Summer",101832.67888000001,79878.342936000001,110310.07028,2117.3591517,50068.327771999997,37005.713148000003,9172.9603444999993,21356.368259999999,0]
[4656,"2012-02-19","KW60MN23 ",6521763.9750051275,2222854.3208288504,1601470.8902154921,87891.094123931369,533492.33648942702,"Winter",226820.66665,56727.598918000003,70471.444451999996,1352.6721310999999,55266.678742999997,25899.720259999998,6103.2335528000003,747.06969021999998,3053.2304963000001]
[4657,"2012-02-11","KW60MN22 ",6576280.0912802676,2222538.766573743,1613797.6735233671,91240.923681672153,517500.1693687035,"Winter",221141.99306000001,67698.201979999998,76887.26599,1475.8213450999999,55722.674442000003,26281.952481,6370.9638304,747.06969021999998,3053.2304963000001]
[4660,"2011-11-12","KW60MN12 ",6763919.4380741715,2222192.7012552619,1578701.9193989795,103395.5552,540095.2266562822,"Winter",265576.15451000002,68408.659132999994,98288.243220999997,1886.6048292,49749.130783000001,32909.196086999997,5797.2839057000001,4955.8928413000003,0]
[4664,"2011-11-06","KW60MN16 ",6699379.3751926972,2221999.3340193564,1647279.7359630289,102089.44547000001,472630.15258632757,"Winter",217690.18586999999,44545.489629999996,96311.751506999994,1848.6668348000001,55996.271862000001,28546.439031999998,5785.4605500999996,4955.8928413000003,1018.167559]
[4667,"2012-03-11","KW60MN13 ",6151096.7144398661,2221585.4895967841,1640357.6073378245,98537.359487689275,482690.52277127007,"Winter",204167.79376,46330.630603999998,72862.817362999995,1398.5736096000001,53123.498957000003,25295.304409,5515.7427838000003,1354.3257784,0]
[4671,"2012-03-26","KW60MN15 ",6643964.81029882,2221501.2273319312,1643989.5869883643,104311.10309088114,473200.53725268587,"Winter",117612.42948000001,69001.999700999993,106214.18493,2038.7402159999999,56041.871432,35808.093769999999,7411.5308771,1354.3257784,0]
[4674,"2012-01-07","KW60MN23 ",6456183.3606980965,2221351.7224818356,1635119.0876461123,94341.63789551126,491890.99694021232,"Winter",197846.22125999999,56613.628450999997,74517.994770000005,1430.3441,54719.483904000001,25538.121668,5917.6708582000001,742.46966563000001,3053.2304963000001]
[4677,"2012-05-21","KW60MN08 ",6805583.9618750159,2220749.8886008295,1609947.2684208758,122913.14786942348,487889.47231053031,"Summer",142757.35569,51250.195621999999,91947.453775000002,1764.8958272,55631.475301999999,38257.727866000001,7518.9432882000001,21356.368259999999,0]
[4679,"2012-01-14","KW60MN01 ",6304528.0644153683,2220522.4563520458,1599926.740920187,87331.838687880372,533263.87674397836,"Winter",296512.18398999999,64651.419344000002,80125.561602999995,1537.9791774,56133.070571999997,30528.463603,7098.8484853,742.46966563000001,3053.2304963000001]
[4682,"2012-03-05","KW60MN23 ",6118594.6748878881,2219859.1933117015,1613849.6003366327,84688.507637767601,521321.08533730148,"Winter",242252.92181,55599.665678999998,84492.272438,1621.7965036999999,53761.892935999997,33298.781453000003,6375.7310933999997,1354.3257784,3053.2304963000001]
[4685,"2011-07-24","KW60MN24 ",6952384.6234648786,2219228.4285585498,1603544.8145416833,111899.306058,503784.30795886624,"Summer",158752.51170999999,54534.809058999999,78427.398331999997,1505.3835899999999,55585.875732,29443.788572000001,6297.5418731999998,50772.358661999999,3053.2304963000001]
[4689,"2012-05-09","KW60MN21 ",7031104.6035202257,2218313.807202253,1616862.4712001134,123190.44570648199,478260.89029565739,"Summer",158237.71776999999,53357.081024999999,88835.572203000003,1705.1644635,55722.674442000003,33236.835178000001,6512.6781939000002,21356.368259999999,2035.9110573999999]
[4692,"2012-04-02","KW60MN22 ",6374238.8734431351,2218063.1604803931,1625358.2497006126,109758.45320007842,482946.45757970226,"Summer",193372.11801000001,57635.191397000002,86895.637608999998,1667.928169,56133.070571999997,30955.838313,6447.2400496999999,7467.6597125999997,3053.2304963000001]
[4696,"2011-09-19","KW60MN08 ",6422061.4603621,2217789.8749649134,1634607.6124823575,103751.257891,479431.0045915558,"Summer",172707.15606000001,55392.785098,103130.21889,1979.5446801999999,56361.068421000004,36866.694775999997,8000.5926755999999,30217.333901999998,0]
[4698,"2011-09-22","KW60MN08 ",6481702.0605716454,2217605.8260398679,1625982.2174411432,102866.81251599999,488756.79608272464,"Summer",154020.84190999999,49951.783902000003,107183.06613000001,2057.3375160000001,56041.871432,39910.102596999997,8260.5642996000006,30217.333901999998,0]
[4703,"2011-07-25","KW60MN08 ",7008136.5741927167,2216713.1042497144,1599590.2370594314,111712.596863,505410.27032728313,"Summer",134891.49676000001,58069.313951999997,94364.289957000001,1811.2860633,56589.066271000003,36383.239331999997,8396.3500554999991,45422.58842,0]
[4704,"2012-04-19","KW60MN20 ",6548454.9528108733,2216590.1459482843,1649716.073528992,101420.17323375294,465453.89918553957,"Summer",164053.08118000001,59033.512459999998,97424.402264999997,1870.0237360000001,35020.469699000001,33184.298748000001,6515.1735582000001,7467.6597125999997,309.52124151999999]
[4707,"2012-04-18","KW60MN20 ",6564537.7358065601,2216430.5107187373,1660622.2612602564,108293.89924554442,447514.35021293652,"Summer",148828.75945000001,52651.259495999999,95653.948988000004,1836.0405698,35066.069267999999,31533.731263000001,6254.1286239000001,7467.6597125999997,357.04420886999998]
[4711,"2012-03-17","KW60MN13 ",6335290.599636971,2216284.9581900197,1630294.2495784923,95560.330877695669,490430.37773383164,"Winter",191202.95024999999,57686.242710999999,77549.532091000001,1488.5332868999999,55950.672292000003,26632.766659000001,5378.8515496999999,1354.3257784,0]
[4714,"2011-12-06","KW60MN04 ",6555673.5294136526,2216101.9865753725,1610181.9967328471,79448.798630999998,526471.19121152535,"Winter",284965.70525,56001.849829999999,96882.504182000004,1859.6222118000001,58686.646486999998,30668.938217999999,7265.2286990000002,816.33821894000005,3053.2304963000001]
[4719,"2012-01-28","KW60MN05 ",6350959.3572897259,2215429.7373897848,1621904.0495935141,93355.484845577055,500170.20295069373,"Winter",248917.49596,57023.828937999999,71732.713023999997,1376.8816936999999,54856.282614000003,27975.155189000001,6472.7388160999999,742.46966563000001,3053.2304963000001]
[4722,"2011-08-28","KW60MN23 ",6474392.1412125267,2215094.9688279806,1557385.974139499,111481.14857200001,546227.84611648135,"Summer",207827.06804000001,60921.021182999997,79743.913723999998,1530.6535939,55722.674442000003,29548.556637999998,7108.3762414000003,45827.272584999999,3053.2304963000001]
[4725,"2011-08-20","KW60MN11 ",7275718.364232786,2214967.6393297799,1607422.6562437944,132943.87626299998,474601.10682298528,"Summer",175257.77710000001,67927.920037000004,92521.115265,1775.9070377,55494.676592999997,32215.149706,6957.3135712000003,40421.271588000003,0]
[4728,"2012-04-30","KW60MN13 ",6628736.3230953142,2214654.0783635383,1651175.8662739375,107101.82280361876,456376.389285982,"Summer",108583.89637,71841.006768000007,112882.06785000001,2166.7276507000001,54081.089925,37027.600205000002,9213.7986624999994,7467.6597125999997,0]
[4729,"2012-01-01","KW60MN23 ",6285398.7516444083,2214553.6381749976,1606132.421452557,89669.269270502875,518751.94745193765,"Winter",248751.66007000001,52760.340465000001,67186.211525999999,1289.6133551999999,55996.271862000001,16401.830195999999,6188.6329205000002,742.46966563000001,3053.2304963000001]
[4732,"2011-11-06","KW60MN07 ",6286049.6008064561,2214302.9502869449,1606869.9283795205,99953.112775000001,507479.90913242445,"Winter",241548.42399000001,54308.317459999998,93649.018127000003,1797.5566971000001,56908.26326,28208.448555999999,6393.4085677000003,4955.8928413000003,0]
[4736,"2012-04-10","KW60MN22 ",6354203.3781892173,2213970.7617934281,1639167.6111013177,108846.86580136348,465956.2848907467,"Summer",167969.08472000001,58456.177247,87114.761465999996,1672.1341666999999,56634.665841000002,34127.758931999997,6438.9532053000003,7467.6597125999997,3053.2304963000001]
[4740,"2011-08-05","KW60MN23 ",6425801.7608492635,2213284.1761334352,1591900.6629379741,121527.827615,499855.68558046129,"Summer",165367.80249,73164.613142999995,89880.512742999999,1725.2216931999999,54810.683043999998,31711.392513999999,6906.6072194999997,38243.763619999998,3053.2304963000001]
[4743,"2012-04-05","KW60MN23 ",6024115.6160804564,2212732.6227810066,1621147.2353926117,107872.5769791495,483712.81040924555,"Summer",198768.58337000001,60929.109823999999,75803.909958999997,1455.0267449,55221.079172999998,31501.883161999998,6615.8261393000002,7467.6597125999997,3053.2304963000001]
[4747,"2012-02-06","KW60MN24 ",6475005.6637862176,2212551.7089371188,1579067.739858194,78830.042622977591,554653.92645594687,"Winter",234079.84200999999,53796.141282999997,82791.384879999998,1589.1486245999999,57501.057669000002,30418.543130999999,6732.6054783999998,747.06969021999998,3053.2304963000001]
[4750,"2012-05-09","KW60MN15 ",7135556.7793641957,2212271.7283545556,1618159.8494227068,120224.44732044837,473887.43161140051,"Summer",102260.46911999999,71471.975762000002,108813.86091,2088.6399913,55768.274012000002,37257.884997000001,9161.8988028000003,21356.368259999999,0]
[4753,"2012-06-17","KW60MN20 ",7246451.2546386234,2212076.7593218051,1636320.1661273765,121829.49190390977,453927.10129051883,"Summer",138194.88153000001,49256.110934999997,78737.149948999999,1511.3291525,54582.685193999998,30203.919685000001,5736.4606623,33793.389437999998,0]
[4754,"2011-09-21","KW60MN09 ",6539416.4349296726,2212022.4339056164,1625921.1865958811,98871.486661999996,487229.76064773515,"Summer",105652.63814,58292.352533999998,116757.99546000001,2241.1245826999998,55768.274012000002,37797.419653999998,9877.2558472000001,30217.333901999998,0]
[4757,"2012-06-11","KW60MN10 ",6836153.035039234,2211472.7721974682,1597778.3059434681,128073.55401115489,485620.9122428454,"Summer",119193.91691,67369.792535999994,103909.12329,1994.495449,56361.068421000004,40195.332076999999,8827.4962436000005,29771.823725999999,0]
[4761,"2012-04-30","KW60MN21 ",6615285.69323014,2211186.4808295625,1632467.6487308529,111472.23180884402,467246.60028986551,"Summer",186236.04509,47970.195313999997,91697.415087000001,1760.0964312000001,55859.473151999999,30910.625137999999,6821.0047015,7467.6597125999997,2595.6699819999999]
[4765,"2012-03-28","KW60MN18 ",6508492.2503785007,2210291.5568105117,1647791.803840403,99689.817762424645,462809.93520768418,"Winter",157069.56414,61535.497624000003,94868.027006000004,1820.9551011999999,39261.229700999997,32084.975316,6478.0224207000001,1354.3257784,1781.4751831000001]
[4768,"2012-03-22","KW60MN23 ",6161971.815503398,2209927.2112847581,1637927.8781589014,90541.117253395394,481458.21587246121,"Winter",201818.75760000001,56702.809177000003,80590.139192999995,1546.8965645999999,56725.864979999998,32359.693426999998,6235.8975639999999,1354.3257784,3053.2304963000001]
[4772,"2011-11-26","KW60MN17 ",6964435.3088622773,2209562.2101505878,1597575.4480985529,103430.901637,508555.86041503481,"Winter",235296.38873999999,60604.177499999998,85909.192364999995,1648.9937339000001,55540.276163000002,28307.621604,6159.7449279000002,4955.8928413000003,3053.2304963000001]
[4775,"2012-02-26","KW60MN24 ",6249430.8989694025,2209166.2281133654,1590411.6198022109,92078.524645123558,526676.08366603078,"Winter",236735.47372000001,51562.259069,72124.718934999997,1384.4060956000001,56771.464549999997,27510.178418,5949.7127622999997,747.06969021999998,3053.2304963000001]
[4776,"2012-04-12","KW60MN19 ",6461652.4790504398,2209103.502310487,1636606.3334771632,113861.62862251057,458635.54021081346,"Summer",147914.71721999999,59368.906671999997,89480.633210999993,1717.5461602,51709.912289,31722.418049,6003.1582578999996,7467.6597125999997,0]
[4779,"2012-05-07","KW60MN16 ",6704604.1657411717,2208811.4980890583,1613814.4577039955,111259.85354918614,483737.1868358769,"Summer",118894.76156,71705.265740000003,107574.00264999999,2064.8413913999998,56406.667991000002,36172.052151000004,8912.3995849999992,21356.368259999999,0]
[4782,"2012-03-11","KW60MN10 ",6084292.3723352225,2208700.3670479748,1626547.3634841749,97325.187477531683,484827.81608626834,"Winter",165785.70426999999,47219.323877000003,71435.193543000001,1371.1709223,53169.098527000002,24824.700315999999,5458.6101076000004,1354.3257784,0]
[4787,"2011-10-11","KW60MN22 ",6451825.772627742,2207795.7580109062,1642652.9824782726,92574.091214999993,472568.68431763328,"Summer",166268.36332999999,55718.609197999998,115222.27662999999,2211.6470536000002,36206.058515999997,40040.401742000002,6751.9487873999997,19170.103298999999,3053.2304963000001]
[4790,"2011-08-29","KW60MN23 ",6710090.885076792,2207442.6227488318,1576338.7457547567,121677.230901,509426.64609307511,"Summer",176463.53448,59880.223209999996,88066.226978000006,1690.3971793000001,56725.864979999998,36093.799446999998,7896.7624845,45004.014574000001,3053.2304963000001]
[4793,"2011-10-01","KW60MN21 ",6450124.8958477126,2207219.4146865378,1647388.61230465,93775.587048999994,466055.21533288789,"Summer",130003.4662,57984.691723999997,87629.422189000004,1682.0128803,54719.483904000001,30575.055123999999,7308.9466737000002,19170.103298999999,3053.2304963000001]
[4797,"2012-06-25","KW60MN18 ",8075594.0147990491,2206616.6190266572,1551719.2612942196,130221.46444594176,524675.89328649594,"Summer",173759.45668999999,71651.032957999996,107964.49443999999,2072.3367303999999,55859.473151999999,41702.717854000002,7855.9901892999997,25872.940990999999,0]
[4800,"2012-04-20","KW60MN12 ",6524829.4794303495,2206477.2096583135,1648414.5396837629,99469.924247470946,458592.74572707992,"Summer",118953.98639000001,70494.775013000006,120610.45332,2315.0710220000001,28043.735500999999,36274.692036,9466.5939961999993,7467.6597125999997,0]
[4801,"2012-05-07","KW60MN18 ",6637187.0474846819,2206312.7783862231,1613173.9228848554,112215.89071227772,480922.96478909015,"Summer",145022.87508999999,57001.568303,95199.480943000002,1827.3172314000001,57045.061970000002,34076.387664000002,7047.2635086,21356.368259999999,0]
[4807,"2012-03-30","KW60MN18 ",6368339.8074122202,2205427.094362617,1612209.4397400231,96814.054583413657,496403.60003918019,"Winter",193812.05421999999,54267.192969999996,94051.244047999993,1805.2772680999999,53716.293365999998,29597.745147000001,6150.0868165000002,1354.3257784,1679.7008333000001]
[4808,"2012-05-07","KW60MN12 ",6696027.44234135,2205215.8663894711,1598382.8623033504,114035.36126197051,492797.64282415039,"Summer",111439.50198,73990.046621000001,107829.36039,2069.7428844000001,57090.661540000001,36946.459637,9152.4573858999993,21356.368259999999,0]
[4812,"2011-11-11","KW60MN22 ",6501204.7508541765,2204749.8178960164,1578350.5557594933,95120.207863999996,531279.05427252327,"Winter",221092.32814,64160.120346000003,106072.31405,2036.0170591999999,57045.061970000002,36289.090423000001,6294.0883157999997,4955.8928413000003,3053.2304963000001]
[4815,"2012-02-18","KW60MN07 ",6506220.9733224288,2204505.033245001,1563143.2539094677,82512.631464838429,558849.14787069464,"Winter",228005.1103,57694.537022999997,73386.150103000007,1408.6187792000001,56634.665841000002,29551.929198999998,6346.8668015000003,747.06969021999998,153.35415584]
[4819,"2012-03-09","KW60MN13 ",6555336.6977108549,2203966.2520799506,1638410.9695777765,86268.09685421364,479287.18564796064,"Winter",135440.13195000001,71637.453875000007,120993.69226,2322.4271451999998,55266.678742999997,38020.286201000003,8648.5427096000003,1354.3257784,0]
[4822,"2012-02-16","KW60MN01 ",6285709.5538592031,2203144.1496544033,1588681.1182755616,86132.975735737884,528330.05564310378,"Winter",225894.28769,52819.212083999999,82218.479644999999,1578.1519301000001,54947.481754,30933.047831,6463.1247218999997,747.06969021999998,3053.2304963000001]
[4825,"2011-07-27","KW60MN08 ",7076458.2252573604,2202859.2858877787,1608034.7655303499,121381.142427,473443.37793042895,"Summer",119818.53327,53927.417007999997,86206.611143000002,1654.7025722999999,56406.667991000002,38228.574285000002,8100.7255296000003,37024.897427999997,0]
[4828,"2011-10-17","KW60MN17 ",6615253.3572788257,2202512.476878366,1611971.8076881911,86623.477695000009,503917.19149517483,"Summer",131738.21960000001,68838.219977999994,128545.9139,2467.3891199,57227.460249999996,44571.185178,7429.7196137000001,19170.103298999999,0]
[4830,"2011-10-17","KW60MN16 ",6632114.5081544062,2202227.4537192085,1614630.1063074574,84451.677855000002,503145.66955675115,"Summer",106379.73212,64184.995247999999,133026.33321000001,2553.3890363,56817.064120000003,44055.786319999999,8168.5777781999996,19170.103298999999,0]
[4833,"2011-09-21","KW60MN22 ",6371279.6284329249,2201504.9049238274,1601779.5972216781,99371.598345999999,500353.70935614896,"Summer",178313.89713,59390.428178000002,101241.86363000001,1943.2984311,55768.274012000002,36480.374804999999,7544.9262294999999,30217.333901999998,3053.2304963000001]
[4837,"2012-04-18","KW60MN15 ",6545155.888020508,2201105.9836815363,1650660.4689925406,102241.46460088941,448204.05008810631,"Summer",113011.66266,73164.500667,115766.57197,2222.0945922000001,34883.670988999998,37072.104066,9165.6977160999995,7467.6597125999997,0]
[4840,"2012-03-08","KW60MN22 ",6450263.5959340418,2200458.7816567635,1604476.0528148562,94338.098914435672,501644.62992747192,"Winter",229497.72868,61878.045318999997,93464.550992000004,1794.0159217,55722.674442000003,32731.202258000001,6909.1618367000001,1354.3257784,3053.2304963000001]
[4844,"2012-04-01","KW60MN13 ",6196095.5879957415,2199986.9414768009,1629231.0873474444,110162.22733107867,460593.62679827801,"Summer",210569.66106000001,45000.502219000002,78261.391814999995,1502.1971590999999,54719.483904000001,24373.702093,5646.0045410000002,7467.6597125999997,0]
[4845,"2011-11-22","KW60MN06 ",6833192.4702190235,2199963.3943672129,1560502.2227605989,88350.051097999996,551111.120508614,"Winter",208904.22232,55556.529472000002,100838.88559000001,1935.5634233000001,56862.663690000001,36091.173601000002,6725.0922983,4955.8928413000003,3053.2304963000001]
[4851,"2011-08-19","KW60MN23 ",6703834.8563707909,2199639.8939557429,1607202.8735319164,122408.95120099999,470028.06922282634,"Summer",183576.19515000001,64205.043316000003,71594.082234999994,1374.2207292999999,55266.678742999997,33371.727725999997,6951.2800029999999,47387.219968999998,3053.2304963000001]
[4852,"2011-09-02","KW60MN22 ",6603894.2869922454,2199588.5246628146,1592625.1348957438,121211.473579,485751.9161880709,"Summer",165847.50456,65514.741214000001,94589.306886000006,1815.6051763,57045.061970000002,33693.275482999998,7162.9424498999997,46514.194853000001,3053.2304963000001]
[4855,"2012-06-17","KW60MN12 ",6729367.9115144396,2199451.3645769563,1591415.0184941541,121974.32529750165,486062.02078530058,"Summer",160171.22623999999,51781.544160999998,81113.490879999998,1556.9420978999999,53579.494656000003,30416.166590000001,6337.2984159999996,34087.930166999999,0]
[4858,"2011-10-02","KW60MN19 ",6512552.522515255,2198899.0634901891,1621747.8872042862,102794.17889299999,474356.99739290302,"Summer",148686.16623,48792.116323000002,92269.679354000007,1771.0808225999999,54491.486054000001,29913.919517999999,7381.6135879000003,19170.103298999999,1018.167559]
[4862,"2012-01-25","KW60MN06 ",6765364.5038903141,2198558.5028649233,1548150.3919628598,82605.662743739449,567802.44815832411,"Winter",225755.23439999999,54537.772001999998,92826.871222999995,1781.7759051,54765.083473999999,34506.605127000003,8669.9530742999996,742.46966563000001,3053.2304963000001]
[4865,"2012-06-04","KW60MN11 ",7414564.5903514111,2198422.8547595059,1599233.8909209394,119395.27366941619,479793.69016915042,"Summer",97536.207725,77165.008675000005,113549.87875,2179.5460226999999,56497.867130999999,43573.149344999998,8896.1052268000003,29380.106887000002,0]
[4870,"2012-05-03","KW60MN15 ",6758235.2644631723,2197715.2981423703,1598856.7251542825,110880.40668202403,487978.16630606359,"Summer",139461.95165999999,78114.938779999997,106507.56935000001,2044.3716165000001,55494.676592999997,35449.677571,9367.5242971000007,21356.368259999999,0]
[4873,"2012-05-07","KW60MN17 ",6659432.6978693325,2197537.3727184976,1608860.5753759686,108208.99754779272,480467.79979473638,"Summer",116150.35619000001,65894.667944000001,101760.23467000001,1953.2483626999999,56953.862829999998,34804.364271999999,7718.0324159000002,21356.368259999999,0]
[4876,"2012-05-10","KW60MN22 ",6559440.5714070229,2197378.586532332,1580496.9526690266,127383.8432980723,489497.79056523321,"Summer",149532.79092999999,57159.748320999999,83885.706267000001,1610.1537005,57409.858528999997,32513.789230999999,6368.0215341000003,21356.368259999999,3053.2304963000001]
[4877,"2011-09-08","KW60MN07 ",6625460.9331050199,2197321.8283435022,1612620.3507783359,103693.939535,481007.53803016618,"Summer",147852.4718,55759.434824000004,96695.528061000005,1856.0332774000001,50934.719600999997,36998.312061999997,7871.3280482,46008.808606999999,1424.4168388999999]
[4880,"2012-01-02","KW60MN06 ",6361719.804732848,2197065.175747362,1582341.1276896251,84314.136302182858,530409.91175555403,"Winter",222591.47524999999,52970.669242000004,75371.322331999996,1446.7233927,50478.723900999998,20700.392868999999,8043.0104890000002,742.46966563000001,3053.2304963000001]
[4884,"2012-06-06","KW60MN10 ",6801960.4489793349,2196617.599979158,1620104.4297307848,121211.52111489698,455301.64913347637,"Summer",113864.41334,66620.082817000002,111577.28899,2141.6829250000001,47514.751857000003,43335.038745999998,8778.5065135999994,27167.425636,0]
[4887,"2012-06-05","KW60MN08 ",6969687.1623615008,2196221.110878889,1607026.1487367454,121106.71615091195,468088.2459912317,"Summer",147665.02541999999,49173.089080999998,88883.415047999995,1706.0827884,55175.479603,40701.637820999997,7808.9083818999998,32755.633913000001,0]
[4891,"2012-04-30","KW60MN09 ",6458373.8757426282,2195631.0683135255,1647300.6570997976,107612.57420533377,440717.83700839401,"Summer",102614.90664,60591.237923000001,103212.32552,1981.1206850999999,55084.280463000003,35053.710541,7746.1145796000001,7467.6597125999997,0]
[4895,"2011-11-17","KW60MN23 ",6375286.4726318177,2194958.8215334876,1587665.0441043349,90857.166190999997,516436.61123815266,"Winter",233754.93212000001,58583.389369999997,100592.68869,1930.8377691000001,56269.869280999999,36184.930501000003,6130.3287432999996,4955.8928413000003,3053.2304963000001]
[4898,"2011-07-01","KW60MN09 ",7005413.1234324118,2194557.6362013863,1587983.827739279,127554.27658799999,479019.53187410731,"Summer",117951.976,59737.646847000004,99339.460013000004,1906.7825290999999,56133.070571999997,36660.450269000001,6618.2554796000004,46109.875778000001,0]
[4901,"2012-05-10","KW60MN21 ",6822499.9898673771,2194170.9316686471,1583074.6022265733,130841.68439425871,480254.64504781488,"Summer",187319.89767000001,63384.145839999997,88345.777073000005,1695.7630353,57227.460249999996,32970.999061000002,6465.6759524999998,21356.368259999999,1985.0238824999999]
[4902,"2011-12-25","KW60MN22 ",6564888.4176508971,2194098.9058048073,1574178.4107113373,86896.586169999995,533023.90892346983,"Winter",258432.29164000001,53057.470293999999,71615.367385000005,1374.6292896,56224.269711000001,16405.960499000001,6482.0227914999996,816.33821894000005,3053.2304963000001]
[4905,"2012-02-02","KW60MN24 ",6396364.5335510885,2193837.820003998,1572220.5940356064,81843.781981217806,539773.44398717361,"Winter",241467.58866000001,58930.974389000003,86440.126470000003,1659.1848087000001,57774.655089,32772.945733,5894.3864314000002,747.06969021999998,3053.2304963000001]
[4909,"2012-03-18","KW60MN14 ",6375227.5968797579,2193546.9780603875,1637829.7842376374,98939.164242157844,456778.02958059218,"Winter",173357.97210000001,41053.307902,74124.850227999996,1422.7978424999999,55585.875732,24479.035717999999,5815.5776028999999,1354.3257784,0]
[4912,"2011-11-06","KW60MN15 ",6517151.3068083283,2193356.8859801576,1629191.1728378416,99353.426273999998,464812.28686831618,"Winter",210739.13226000001,46334.308573000002,93551.86735,1795.6919255,55996.271862000001,28777.833535000002,5766.1612570999996,4955.8928413000003,0]
[4916,"2012-06-22","KW60MN20 ",7548021.7202787977,2193020.3436856051,1598640.2438160405,121832.59486309488,472547.50500646996,"Summer",121834.01111000001,63817.315562000003,88709.125321,1702.7373645,56817.064120000003,36199.654585999997,6829.2881605000002,35408.536534999999,0]
[4920,"2011-08-02","KW60MN08 ",6508760.9121396719,2192829.0339564863,1603072.0148048075,120580.63959999999,469176.37955167895,"Summer",127329.80631,62134.945646,94192.326293999999,1807.9852873,56452.267561000001,35617.587567000002,9184.6956692000003,26806.839423000001,0]
[4923,"2011-10-14","KW60MN16 ",6757705.6706017852,2192591.0324654952,1618225.976783084,86035.628135999999,488329.42754641123,"Summer",126831.33417,70778.925094999999,123581.91463,2372.1070730000001,53397.096376000001,42975.660935,6932.0213405000004,19170.103298999999,0]
[4926,"2012-02-29","KW60MN02 ",6210346.8633400826,2192380.8883455084,1588236.4592279969,82409.234370121019,521735.19474739034,"Winter",214425.18914,54181.024998000001,80263.313156999997,1540.6232652000001,56680.265411,31790.950046999998,6312.6207154000003,747.06969021999998,3053.2304963000001]
[4927,"2011-11-12","KW60MN16 ",6771140.6084488649,2192363.7931368547,1576905.1607475551,94088.87702,521369.75536929956,"Winter",225494.22331,66961.811042999994,96905.125467999998,1860.0564185999999,49885.929492000003,30919.361046999999,6163.0562797000002,4955.8928413000003,1425.2649578999999]
[4930,"2012-05-13","KW60MN19 ",6417698.8032929013,2192240.9799234658,1622098.0394882257,117106.90569870771,453036.03473653237,"Summer",137967.02278,55927.217089999998,82529.077311999994,1584.1137322,52621.903687999999,27460.663627000002,5868.3713244999999,21356.368259999999,0]
[4933,"2012-06-18","KW60MN22 ",7166766.7610504245,2191680.478518208,1585682.565931262,131471.98993372516,474525.92265322094,"Summer",147542.38931999999,50724.504633999997,82738.223561000006,1588.1282136,56771.464549999997,37679.307549999998,6634.7919257000003,39859.460704999998,3042.6996786999998]
[4938,"2012-06-19","KW60MN09 ",7022077.8677978851,2191213.7500604684,1596801.2521935122,124286.11438422232,470126.3834827338,"Summer",121639.40009,64465.298646000003,100086.6885,1921.1252910999999,52211.507557999998,37142.757195999999,8799.9490428000008,38093.167189,0]
[4941,"2011-07-17","KW60MN16 ",8206586.2192075616,2190294.403110791,1493788.738231923,117981.34244100002,578524.32243786787,"Summer",204643.93470000001,57681.507465000002,97699.918806999995,1875.3121695,54081.089925,29720.992554,7010.0107959999996,40304.195886000001,0]
[4945,"2012-06-30","KW60MN21 ",7540407.2548153196,2189702.3963570492,1571660.7287052746,125312.34556459841,492729.32208717591,"Summer",153233.7812,59858.364275,100891.33900000001,1936.5702461999999,55813.873582,31770.563836000001,6312.7375264000002,38396.448450000004,224.65274199999999]
[4948,"2012-06-18","KW60MN21 ",7506059.0701130601,2189397.8270536056,1580441.2573771125,132113.93360465052,476842.63607184245,"Summer",136041.00751,45105.016656,88552.398146000007,1699.7290469,56817.064120000003,37300.481302,6489.4784135999998,37154.679955,265.39075265999998]
[4949,"2012-03-13","KW60MN24 ",5995684.9033691864,2189326.6658853381,1610536.6342884575,80820.602374710972,497969.42922216945,"Winter",196977.56213000001,54912.825301999997,78124.203032000005,1499.5638733999999,55585.875732,33080.983605000001,6384.0738054000003,1354.3257784,3053.2304963000001]
[4954,"2011-10-12","KW60MN16 ",6638334.7731743474,2188682.0819109171,1636813.639595699,85432.08546799999,466436.35684721795,"Summer",117526.48564,70317.597775000002,130280.81435,2500.6898632000002,31782.900234000001,43011.215948999998,8203.1946136999995,19170.103298999999,0]
[4956,"2011-07-13","KW60MN08 ",7038623.9316068292,2188297.9984944328,1588238.0490002676,123299.843396,476760.10609816515,"Summer",115923.11216,51136.017877999999,90240.920368999999,1732.1395782,52621.903687999999,38156.611668999998,7828.3210993000002,37252.105288999999,0]
[4960,"2012-02-19","KW60MN17 ",6691944.0198305398,2187719.9449751964,1598321.5145618636,87866.681945804012,501531.74846752896,"Winter",162208.37815999999,50685.176547000003,74320.508929999996,1426.5534356999999,51208.317020000002,25414.773230999999,5995.8770081000002,747.06969021999998,1527.0393077000001]
[4963,"2011-10-08","KW60MN20 ",6447962.1753035858,2187507.8613070687,1597100.5050121162,100771.83128600002,489635.52500895259,"Summer",184568.45485000001,60435.948541999998,99059.466568000003,1901.4081630999999,54172.289064999997,35288.369953000001,6150.2171717000001,19170.103298999999,3053.2304963000001]
[4966,"2012-05-18","KW60MN18 ",6551007.5236581089,2187237.8894020803,1560776.7949795071,122516.10558511042,503944.98883746291,"Summer",148776.19052,69838.653477,94678.922669000007,1817.3253166,55540.276163000002,39607.021253999999,6797.3918486000002,21356.368259999999,0]
[4970,"2012-04-10","KW60MN16 ",6497254.7524141399,2186754.656372176,1622291.2375935158,104772.10617188409,459691.31260677625,"Summer",106149.67947,75981.112127999993,112888.27864999999,2166.8468646000001,56406.667991000002,36806.654712000003,8578.4304126000006,7467.6597125999997,0]
[4973,"2012-06-01","KW60MN23 ",6528694.8905608393,2186451.8553812616,1577125.8937753118,117978.10368073745,491347.85792521236,"Summer",159450.48081000001,62183.278251000003,77177.166308999993,1481.3858696,56178.670141000002,35935.337804000003,6491.8400370999998,30342.604216,3053.2304963000001]
[4975,"2012-01-28","KW60MN02 ",6264865.2294808058,2186023.9695808566,1595330.8108081114,89253.237619475985,501439.92115326913,"Winter",236370.6814,64007.737669000002,74370.941598999998,1427.5214712,55494.676592999997,29496.239775999999,6253.6816928999997,742.46966563000001,3053.2304963000001]
[4978,"2011-08-05","KW60MN08 ",6567034.1524327612,2185538.6010907968,1593324.3580822081,111176.673219,481037.56978958874,"Summer",133954.74179,61993.590451999997,96641.100191999998,1854.9885555000001,55357.877883000001,36167.806597000003,7653.1444715999996,32506.364435,0]
[4981,"2012-01-22","KW60MN24 ",6244101.6236618934,2184639.9971892429,1598626.3705068459,89162.057580911802,496851.56910148519,"Winter",227171.60664000001,55122.953228999999,66587.312974,1278.1177290000001,56680.265411,27165.187615999999,6164.9455786999997,742.46966563000001,3053.2304963000001]
[4985,"2011-11-16","KW60MN23 ",6368330.987239222,2184322.3008654816,1526670.5465953229,91603.026517000006,566048.72775315889,"Winter",269279.55066000001,63050.223459000001,102461.49361999999,1966.7087571,57501.057669000002,36111.712842000001,6818.3992973000004,4955.8928413000003,3053.2304963000001]
[4988,"2011-09-11","KW60MN12 ",6422279.9234660883,2184118.0956234005,1560250.7147667969,99945.170605000007,523922.21025160357,"Summer",223820.69787,67438.186063999994,103208.85324,1981.0540361000001,53716.293365999998,31480.472002999999,7330.3587312,36189.662483,0]
[4992,"2011-11-20","KW60MN24 ",6239385.3522671824,2183843.2327883323,1556670.5657987606,88402.705382,538769.96160757157,"Winter",250984.54646000001,49470.815033999999,81700.110675999997,1568.2020381,57592.256808999999,28206.181932,6248.0137957999996,4955.8928413000003,3053.2304963000001]
[4995,"2011-10-08","KW60MN11 ",6406708.6105228048,2183590.8107764334,1592978.4810681492,100683.43027899999,489928.89942928409,"Summer",178155.97837999999,53546.505308,101481.41982,1947.8966194,54993.081323999999,38855.989737999997,5485.8136442000005,19170.103298999999,0]
[4996,"2011-10-25","KW60MN23 ",6172356.0935630556,2183198.1032199748,1594615.4102927456,88288.414686999997,500294.27824022935,"Summer",182287.36614,51920.778376000002,108867.66653,2089.6727694000001,56361.068421000004,41365.1875,6701.8518875,19170.103298999999,3053.2304963000001]
[5000,"2012-02-09","KW60MN06 ",6768932.8862470835,2182897.4111266858,1541645.8618494843,90390.983343143904,550860.56593405758,"Winter",209072.51707999999,54166.918882999998,97728.323504999993,1875.8573867,57683.455949000003,31560.077076000001,8231.2767762999993,747.06969021999998,3053.2304963000001]
[5003,"2012-03-03","KW60MN19 ",6816870.4796279203,2182605.4166184338,1589557.9610076896,97690.628760932377,495356.82684981194,"Winter",186082.38696,63911.149587,81973.956934999995,1573.4584112,54628.284764000004,24724.098859999998,6388.9155572,1354.3257784,3053.2304963000001]
[5006,"2012-05-02","KW60MN14 ",6737825.9072926622,2182542.2835457125,1596203.9648447391,110699.40238384786,475638.91631712561,"Summer",104780.37549999999,69840.531829,110857.08669,2127.8589203000001,55722.674442000003,36171.433325999998,9266.1268316999995,21356.368259999999,0]
[5010,"2011-11-12","KW60MN13 ",6755155.6945619788,2182035.9416405284,1548302.0699505052,101244.230014,532489.64167602314,"Winter",247979.88250000001,73540.277027999997,98779.445219999994,1896.0332616000001,49429.933792999997,32809.414895000002,5736.3590872000004,4955.8928413000003,0]
[5013,"2012-06-26","KW60MN16 ",7817179.237367928,2181620.6491068914,1569710.167805437,130339.68938929218,481570.79191216204,"Summer",105434.96463,73758.729796,99860.093957999998,1916.7758964,53670.693796,44389.569334,8585.1377637999994,36816.813079,0]
[5017,"2011-09-24","KW60MN16 ",6670880.8232108457,2181202.9040290229,1563576.7325943715,94026.941806999996,523599.22962765145,"Summer",236092.82918,70396.538350999996,127168.23083,2440.9450259999999,55768.274012000002,34024.977342999999,8276.0849933999998,30217.333901999998,0]
[5021,"2012-06-27","KW60MN09 ",6998568.2815932184,2180402.0091055017,1581553.5995531979,129352.39082624011,469496.01872606366,"Summer",97952.689291999995,63131.646544000003,100807.17615,1934.9547729000001,55357.877883000001,42906.946793000003,8866.6839639999998,40147.873222000002,0]
[5024,"2011-07-03","KW60MN23 ",7145624.8128141277,2179993.358564069,1570509.9829739337,127934.13994199999,481549.23564813542,"Summer",164549.28521999999,46903.174332000002,74405.445024999994,1428.1837512,54354.687344999998,24115.381635999998,6286.5920642999999,56201.213419,3053.2304963000001]
[5025,"2011-10-19","KW60MN22 ",6237412.1911639031,2179909.3451516037,1584643.8126443499,90045.990207999988,505219.54229925381,"Summer",171749.00257000001,58868.039167000003,112275.95041999999,2155.0934609999999,55540.276163000002,43843.346608,6843.8540476999997,19170.103298999999,3053.2304963000001]
[5028,"2011-09-17","KW60MN20 ",6377543.9471145477,2179541.0566002661,1595289.1908233929,107090.947313,477160.91846387327,"Summer",159501.91568999999,62770.228565999998,99041.781954000005,1901.0687138000001,54947.481754,29550.956418999998,6200.1921812999999,30217.333901999998,2544.7828070999999]
[5031,"2011-10-14","KW60MN17 ",6707496.7760505918,2179363.1534762443,1603907.3298555005,87724.480459000013,487731.34316174366,"Summer",138906.61817,66214.265685999999,123740.56735,2375.1523507000002,53077.899386999998,42494.567017000001,6292.930359,19170.103298999999,0]
[5035,"2012-04-23","KW60MN17 ",6871040.8279368216,2179036.6073563141,1627575.7186733801,90930.507484026268,460530.38119890768,"Summer",137746.60423999999,79562.060027,125596.5621,2410.7774522,39170.030561,38491.407436000001,8958.4148542000003,7467.6597125999997,0]
[5038,"2012-02-24","KW60MN05 ",6458972.743977081,2178734.8214443098,1568189.2535994451,87627.551405824241,522918.01643904025,"Winter",189540.99844,51786.899632000001,83634.686721000005,1605.3354773999999,57683.455949000003,32580.064364999998,6840.7441534,747.06969021999998,3053.2304963000001]
[5042,"2011-09-13","KW60MN07 ",6322669.8958892561,2178287.6903733741,1573998.053125934,104521.802965,499767.8342824399,"Summer",152552.32467999999,54642.937193999998,100635.94727,1931.6681008,53533.895085999997,38137.087492999999,8032.7717058999997,29956.403659,1729.7398880999999]
[5046,"2011-11-20","KW60MN04 ",6176868.9526077313,2178017.4313109815,1529924.424575052,82249.246347000008,565843.76038892951,"Winter",262337.18787999998,52022.853688000003,89186.090867999999,1711.8925337000001,57273.059820000002,27740.944946,6181.3195051000002,4955.8928413000003,3053.2304963000001]
[5049,"2011-07-09","KW60MN10 ",7061021.9031691309,2177409.885876948,1567721.1387322422,133546.39493800001,476142.35220670572,"Summer",152389.59417999999,50178.916615000002,87250.810813999997,1674.7455812999999,55996.271862000001,31223.501201999999,5855.4865078000003,36112.199102999999,0]
[5050,"2011-09-07","KW60MN07 ",6562331.9219917897,2177398.8269885029,1603732.2915163508,111070.279932,462596.25554015191,"Summer",146227.31825000001,51764.144101999998,93535.820984000005,1795.3839217,37665.244753999999,35767.340837000003,7694.6887372000001,36208.114221000003,1373.5296639999999]
[5053,"2012-04-16","KW60MN19 ",6376865.8861638391,2177071.2862313208,1612805.1578942088,107831.12800411772,456435.0003329945,"Summer",165902.95629,48800.392959999997,100499.68502999999,1929.0525998000001,35020.469699000001,32177.253280000001,6113.7736746,7467.6597125999997,0]
[5057,"2011-10-20","KW60MN22 ",6336234.4033876592,2176465.1751411366,1590206.8608109346,94114.794357999999,492143.51997220219,"Summer",176916.96268,56887.520708999997,121202.12715,2326.4279723,57318.659389,43160.654711000003,6691.9381461000003,19170.103298999999,3053.2304963000001]
[5060,"2012-01-14","KW60MN04 ",6261130.6108140489,2176267.1768431757,1557601.5837298792,88035.240172259786,530630.35294103657,"Winter",266761.65801000001,58463.139519999997,82348.853979000007,1580.654415,55449.077022999998,29661.877959000001,7090.5193164000002,742.46966563000001,3053.2304963000001]
[5063,"2012-05-01","KW60MN22 ",6391496.1893579904,2176024.5941976104,1589751.125251719,105833.827415315,480439.64153057651,"Summer",189283.70746000001,60131.766458999999,84800.364679999999,1627.7102150999999,56224.269711000001,30246.191492000002,6512.2498853999996,21356.368259999999,3053.2304963000001]
[5068,"2012-03-04","KW60MN12 ",6290878.2249740809,2175196.4300407064,1601479.1310086469,92425.769289177246,481291.5297428823,"Winter",205505.36561000001,54843.369678000003,78540.923997999998,1507.5626712000001,55038.680892999997,24447.968929999999,5628.5928554000002,1354.3257784,0]
[5071,"2012-02-16","KW60MN02 ",6217066.2407823959,2174868.0859803087,1567221.1154238121,85916.108622975109,521730.86193352129,"Winter",238481.09067000001,50762.140757000001,81988.774875000003,1573.7428358,54765.083473999999,31106.823937000001,6410.8337976000003,747.06969021999998,3053.2304963000001]
[5074,"2011-07-17","KW60MN22 ",7643191.2819918068,2174644.4171372415,1532512.092366033,122715.36491399999,519416.95985720842,"Summer",197361.68625,52371.759499,69526.558107999997,1334.5354030000001,53989.890785000003,29304.989828999998,6535.9389199999996,48680.284013999997,3053.2304963000001]
[5075,"2012-05-03","KW60MN19 ",6545990.4407804236,2174559.4582600398,1573712.1919946875,118406.90268654187,482440.36357881059,"Summer",135130.40982,56437.521343,88268.098777000007,1694.2720305,56269.869280999999,31719.830849999998,6525.4343492999997,21356.368259999999,0]
[5078,"2012-03-10","KW60MN19 ",6515583.9500919692,2174224.4675600696,1597648.6478537736,94725.51038434566,481850.30932195054,"Winter",202504.90929000001,61818.342983000002,82112.416975999993,1576.1160981999999,54856.282614000003,26679.997831000001,6278.0580535999998,1354.3257784,3053.2304963000001]
[5084,"2011-07-04","KW60MN23 ",6931393.4756191187,2173646.30541971,1559659.498549148,121241.467709,492745.33916156209,"Summer",154264.55611999999,50953.621746999997,63256.949661999999,1214.1926928,54491.486054000001,25231.701475999998,6396.4355095000001,51491.591509999998,3053.2304963000001]
[5086,"2012-04-23","KW60MN13 ",6793886.9680708926,2173614.7133139977,1640835.1010615551,94772.489961270359,438007.12229117233,"Summer",111513.55422000001,84218.099874000007,130156.47834,2498.3032816,31919.698944,42448.176275999998,10809.379494999999,7467.6597125999997,0]
[5089,"2012-05-02","KW60MN19 ",6592320.5495731486,2173470.9380737459,1581868.6902851555,120431.08681944439,471171.160969146,"Summer",149554.52859999999,57187.152328999997,90773.521427,1742.3626495999999,55631.475301999999,32644.208153,6454.1116135000002,21356.368259999999,0]
[5093,"2012-02-15","KW60MN01 ",6194157.7685389454,2172853.6690192176,1546792.0199584812,83637.838893941647,542423.81016679492,"Winter",236537.92689999999,59170.108306000002,86896.155022999999,1667.9381005,56634.665841000002,31772.486472000001,6446.1041009,747.06969021999998,3053.2304963000001]
[5096,"2012-04-25","KW60MN21 ",6624587.759108359,2172035.0523253973,1604344.3550594137,107838.75870689875,459851.9385590849,"Summer",184872.80350000001,60190.276548000002,97721.651442000002,1875.729319,45097.974650999997,32207.347074000001,7425.8885348000003,7467.6597125999997,2900.4134826]
[5097,"2012-01-28","KW60MN24 ",6329616.9880031394,2172031.3540548403,1571004.8596011354,93605.948377820299,507420.54607588495,"Winter",246940.15179,61265.869817999999,68295.133828000005,1310.8986901000001,54856.282614000003,25709.760794999998,6006.0616165000001,742.46966563000001,3053.2304963000001]
[5100,"2012-02-05","KW60MN17 ",6553351.8341053855,2171740.3362755189,1537229.966419471,81782.162339221279,552728.20751682646,"Winter",202107.50515000001,42321.404088000003,75641.697004999995,1451.9131299999999,56406.667991000002,25163.918331000001,6064.3691803000002,747.06969021999998,2595.6699819999999]
[5105,"2012-03-30","KW60MN22 ",6329206.6132794926,2170723.2965350589,1587818.4745459086,95521.63802235703,487383.18396679324,"Winter",200340.62747000001,58699.623821000001,80108.456869000001,1537.6508587000001,51299.516159999999,28457.582155,5965.4484567,1354.3257784,3053.2304963000001]
[5108,"2012-05-02","KW60MN20 ",6628911.2621436743,2170212.4671819918,1579193.2542492051,116721.04555474989,474298.16737803671,"Summer",136938.69613,53253.644752,92565.437953000001,1776.7577945,55859.473151999999,32354.410550000001,6402.1186435,21356.368259999999,0]
[5111,"2011-10-18","KW60MN22 ",6336777.1235360038,2169521.7352712322,1571642.8504618758,96044.396700999991,501834.4881083566,"Summer",179903.11092000001,60644.654449000001,111718.62949000001,2144.3959012,55038.680892999997,41119.422133,7074.6735820000004,19170.103298999999,3053.2304963000001]
[5114,"2011-10-21","KW60MN18 ",6470218.1014603851,2169352.1619367157,1585283.9606063152,92331.360895000005,491736.84043540061,"Summer",126416.21982,63940.920414,134685.40489000001,2585.2342757000001,57181.860679999998,43724.638945999999,6837.2719735000001,19170.103298999999,20.877877062]
[5118,"2011-07-17","KW60MN20 ",7840228.155357304,2169028.5602323902,1502269.2580485044,122631.831879,544127.47030488576,"Summer",192077.29021000001,58025.703738999997,79874.680078999998,1533.1636036,54400.286914999997,29668.961533999998,6536.9546723000003,44509.387759999998,0]
[5121,"2012-05-20","KW60MN19 ",6750589.393335212,2168627.924483499,1579429.2978870168,112468.3017307846,476730.32486569765,"Summer",149806.92305000001,50963.762274000001,74147.583125999998,1423.2341917000001,53397.096376000001,29654.870711,5289.5584656999999,21356.368259999999,0]
[5122,"2012-02-26","KW60MN01 ",6226245.325083727,2168607.8305352004,1564478.8551853655,89082.466346774017,515046.50900306104,"Winter",199666.74893,58442.728314,62977.056232000003,1208.8202467000001,56269.869280999999,25722.687049,5808.5756838999996,747.06969021999998,3053.2304963000001]
[5126,"2012-04-26","KW60MN22 ",6231830.9630896524,2168414.0410998296,1593277.8674861628,106851.49446290545,468284.67915076128,"Summer",189699.41532999999,61210.942898000001,86156.297319999998,1653.7368180000001,49156.336373999999,31046.286070999999,6543.4605650000003,7467.6597125999997,3053.2304963000001]
[5129,"2012-05-01","KW60MN13 ",6641554.8432057649,2168285.751444425,1590030.6616294761,94381.383140783219,483873.70667416567,"Summer",103407.61639,72363.662507999994,107225.33914,2058.1489302,56269.869280999999,35106.694062000002,9372.8129800000006,21356.368259999999,0]
[5133,"2012-06-14","KW60MN08 ",6702018.561608972,2168098.8676316077,1574318.8351176339,125625.00362465909,468155.02888931462,"Summer",121827.48239,50153.360429,86820.872147000002,1666.4930747999999,56133.070571999997,37778.186802999997,8637.9771942000007,32338.491666000002,0]
[5136,"2011-11-22","KW60MN23 ",6359203.7913309857,2167751.2809374952,1584436.8526024919,91961.076594999991,491353.35174000327,"Winter",192110.0822,56959.441167999998,93774.576472999994,1799.966741,56543.466700999998,36172.953954999997,5493.1067455000002,4955.8928413000003,3053.2304963000001]
[5139,"2011-11-09","KW60MN23 ",6372753.8964375127,2167426.7395668016,1566614.2827458654,99126.291665000012,501686.16515593627,"Winter",234475.22180999999,55566.046560000003,108921.05405999999,2090.6975223999998,56999.462399999997,36536.418872000002,6817.2413393999996,4955.8928413000003,3053.2304963000001]
[5143,"2012-01-11","KW60MN02 ",6222319.5211905995,2166829.7330906736,1585837.2941729231,80882.585486882293,500109.85343086824,"Winter",228356.49543000001,54744.403528000003,89402.186948000002,1716.0404145,56087.471001999998,33504.03514,7145.5121417999999,742.46966563000001,3053.2304963000001]
[5146,"2011-07-31","KW60MN10 ",7048608.546477804,2166567.8232329395,1544492.0068243064,122857.195935,499218.62047363288,"Summer",184093.99908000001,56494.874534000002,87165.698342999996,1673.1118802999999,55266.678742999997,26903.684818000002,6809.5419376,33453.355321000003,0]
[5147,"2011-11-05","KW60MN23 ",6362920.7351526292,2166392.8436798947,1577044.4934124749,97207.808443000002,492140.54182441963,"Winter",200051.33939000001,57925.394303000001,87181.240042000005,1673.4101972000001,54901.882184000002,27177.308506000001,5883.1352826000002,4955.8928413000003,3053.2304963000001]
[5151,"2012-06-05","KW60MN10 ",7372158.3157851519,2165690.3170895698,1583643.4543474286,119599.9338438269,462446.92889831413,"Summer",118634.72554,60889.743175000003,107749.90420999999,2068.2177538999999,45234.773361,43480.685052000001,7756.8967894999996,30692.022069999999,0]
[5154,"2011-08-14","KW60MN22 ",6947164.151799948,2165492.1309943148,1585825.7949053473,120277.60838199999,459388.72770696768,"Summer",159346.4558,57192.147877000003,75212.451438000004,1443.6739273000001,55266.678742999997,26972.620631000002,6693.8071299000003,52350.067938,3053.2304963000001]
[5158,"2012-04-25","KW60MN15 ",6652249.0192007637,2165001.3491329877,1581896.1219655068,101858.41515695675,481246.81201052421,"Summer",114808.52372,81133.048034000007,114950.33606,2206.4272593000001,43593.188843999997,39529.6204,10797.759289,7467.6597125999997,0]
[5161,"2011-11-24","KW60MN21 ",6355790.8328218851,2164787.5902749454,1573374.1772035637,97497.035764,493916.37730738183,"Winter",203021.27181000001,54353.892792999999,76846.169961000007,1475.0325227000001,54856.282614000003,17910.732791999999,6027.0673723999998,4955.8928413000003,3053.2304963000001]
[5165,"2012-03-18","KW60MN18 ",6408999.577246123,2164291.8001799583,1613615.5780356233,94216.005517721918,456460.21662661334,"Winter",207647.45400999999,46289.093164999998,77194.328112000003,1481.7152838,56087.471001999998,25020.613539999998,5554.2160917000001,1354.3257784,2493.8956323000002]
[5168,"2012-05-01","KW60MN07 ",6341868.0646479437,2164212.0133060571,1573458.1963761486,107084.41661280909,483669.40031709935,"Summer",167636.88300999999,42270.256366000001,82242.516642000002,1578.6133109,54993.081323999999,31754.740487999999,7093.4277543999997,21356.368259999999,0]
[5172,"2011-10-01","KW60MN15 ",6554544.4701801939,2163506.0603392785,1601406.9018029149,87970.813188999993,474128.34534736362,"Summer",134399.92430000001,57010.042577,102596.44004,1969.2990016000001,55221.079172999998,33614.282954000002,7169.3620044999998,19170.103298999999,0]
[5173,"2012-01-01","KW60MN07 ",6237038.3205608018,2163442.8431818387,1570436.0911643535,92695.684731268702,500311.06728621642,"Winter",209497.55170000001,55697.936083000001,69272.494019999998,1329.6587411,55540.276163000002,16956.702714999999,6340.5488231999998,742.46966563000001,2187.724463]
[5176,"2011-07-19","KW60MN08 ",7291758.0842094468,2163151.6551391124,1567399.4010404495,119707.19797600001,476045.05612266314,"Summer",137242.00612999999,50171.565496000003,89065.060064000005,1709.5693943000001,46192.364329000004,37750.291538999998,8305.1964515,46457.819823999998,0]
[5179,"2012-03-10","KW60MN20 ",6487315.6267635217,2162958.9602355803,1588211.1003961423,91335.043696802182,483412.81614263594,"Winter",187366.36181999999,62208.535571,80485.353866999998,1544.8852508,55129.880033000001,26388.733434000002,6163.4016356000002,1354.3257784,3053.2304963000001]
[5183,"2012-01-24","KW60MN04 ",6274863.6104827393,2162490.7952060518,1530887.2754382265,80936.669315366569,550666.8504524586,"Winter",267490.01322000002,53187.1826,86501.970715000003,1660.3718851000001,57729.055519000001,31669.873834000002,7282.3949111000002,742.46966563000001,3053.2304963000001]
[5186,"2012-04-30","KW60MN08 ",6284872.914386441,2161859.2006385741,1616743.2851686177,108005.84761036813,437110.06785958807,"Summer",124319.6311,50676.544806999998,93126.675086999996,1787.5305243,55084.280463000003,34526.045587000001,7033.1479388999996,7467.6597125999997,0]
[5190,"2012-04-18","KW60MN17 ",6437448.7690482736,2160798.1959805186,1604245.8284496362,105193.80726717321,451358.56026370911,"Summer",110536.58826,62619.929912,109233.74032,2096.6994144,35066.069267999999,34154.032255999999,6976.6111702999997,7467.6597125999997,0]
[5193,"2011-08-10","KW60MN08 ",6422676.0294937938,2160598.0211279099,1583849.196373147,116113.8786,460634.94615476287,"Summer",117854.37373000001,52092.490880999998,92299.690721000006,1771.6568792,55996.271862000001,36708.162681000002,8281.6513154000004,45431.949260000001,0]
[5197,"2011-11-25","KW60MN23 ",6264140.0243166061,2160093.3014207557,1559549.4601798048,93445.162652000014,507098.67858895095,"Winter",242869.9178,58679.484164000001,76430.352918999997,1467.0510753000001,55449.077022999998,19956.911499000002,5806.6694562000002,4955.8928413000003,3053.2304963000001]
[5198,"2011-10-21","KW60MN16 ",6502999.1500747688,2159928.254460068,1580158.6056167048,94014.280058999982,485755.36878436309,"Summer",108124.71315,67539.584912000006,139852.77755999999,2684.4199963999999,56543.466700999998,45435.918572000002,7722.4390882999996,19170.103298999999,0]
[5201,"2011-12-09","KW60MN02 ",6264479.0572848143,2159576.0502783926,1535765.8152995012,81074.878627999991,542735.35635089129,"Winter",296335.85551000002,60454.928088000001,99791.163350999996,1915.4528,51117.117879999998,31342.181037999999,6598.8749277999996,816.33821894000005,3053.2304963000001]
[5204,"2011-12-15","KW60MN01 ",6306167.922712463,2159011.2084159437,1550903.4180821688,83253.83041699999,524853.959916775,"Winter",251734.1942,62027.371857999999,91823.535743,1762.5172685,50022.728201999998,32935.843588000003,7325.7269005999997,816.33821894000005,3053.2304963000001]
[5208,"2011-10-09","KW60MN21 ",6363258.7539938577,2158331.762407376,1582294.9863250309,105978.09016900002,470058.68591334525,"Summer",196559.58617,48355.406816000002,84810.887260999996,1627.912192,52576.304118,31123.031376999999,6001.4907315999999,19170.103298999999,3053.2304963000001]
[5210,"2011-11-13","KW60MN11 ",6462546.0297254771,2158027.9344657757,1545412.887660627,101306.547252,511308.49955314846,"Winter",218569.37998,47562.875823000002,91483.894591999997,1755.9979879,55905.072721999997,28236.395315000002,5584.6463358999999,4955.8928413000003,0]
[5216,"2011-07-21","KW60MN08 ",7052834.6340543404,2157044.2912445473,1574914.7271097174,116880.918655,465248.64547982992,"Summer",110385.09224,60129.301625,99659.734209999995,1912.9300685000001,51892.310569000001,38178.102378000003,8039.1709451999996,45535.646871999998,0]
[5219,"2012-01-09","KW60MN24 ",6340780.8432471734,2156532.1289428528,1578328.4724128866,89068.820228140641,489134.83630182559,"Winter",225340.26843,52545.584948000003,87767.015511000005,1684.6539309,54172.289064999997,32450.529930000001,6724.8078869999999,742.46966563000001,3053.2304963000001]
[5222,"2011-11-27","KW60MN22 ",6566816.1792669836,2156346.4888682426,1578370.5976999416,94624.282487000004,483351.608681301,"Winter",221913.46327000001,50261.580152000002,80657.367249000003,1548.1869812,55813.873582,24963.011499,6008.5806825999998,4955.8928413000003,3053.2304963000001]
[5223,"2012-06-07","KW60MN15 ",6939835.4386362387,2155902.108961923,1574947.9789997474,115827.53159256137,465126.5983696141,"Summer",111799.95948999999,78027.037068999998,103856.68252,1993.4888685999999,56361.068421000004,45520.660115999999,8426.0641945000007,25607.840929999998,0]
[5226,"2012-05-05","KW60MN09 ",6154871.6446549967,2155216.9067409895,1581817.0418742944,119159.51351242316,454240.35135427164,"Summer",171350.57037999999,44250.585222000002,64995.700389999998,1247.5673408,55768.274012000002,25463.646336000002,5559.4116642999998,21356.368259999999,0]
[5230,"2012-05-13","KW60MN17 ",6425575.1823225152,2154995.1456696219,1591667.8666231688,115423.36553887832,447903.91350757488,"Summer",147667.98241999999,51704.089876999999,81635.524344999998,1566.9623285,55357.877883000001,26952.824438,6149.4350425000002,21356.368259999999,0]
[5235,"2011-07-14","KW60MN08 ",7062615.8579181293,2154206.7858699635,1557631.1176693924,126188.35763,470387.31057057099,"Summer",118452.40887,50792.016026999998,89960.465431000004,1726.7563541,55494.676592999997,38197.346831000003,7594.5965136000004,38411.858729,0]
[5237,"2012-06-26","KW60MN17 ",7786556.5090082604,2154162.0324149616,1556356.4469892324,127200.49883006519,470605.08659566392,"Summer",99091.866427000001,71483.927154999998,96949.873477000001,1860.9153394,53761.892935999997,44478.375650000002,7356.3010431000002,36505.022703000002,0]
[5241,"2012-03-07","KW60MN04 ",6005555.7240292886,2153074.3783698911,1561794.4399403597,87956.620492531671,503323.31793699961,"Winter",238416.76792000001,51508.665795000001,82002.328907000003,1574.0030002000001,54491.486054000001,30575.173588000001,6563.1255278999997,1354.3257784,3053.2304963000001]
[5244,"2012-05-09","KW60MN19 ",6942057.799336249,2152561.2637661733,1564415.1562665838,125761.50624415134,462384.60125543806,"Summer",143508.70981,54117.279948000003,89214.027757000003,1712.4287715,53397.096376000001,33348.737502000004,6452.5846000000001,21356.368259999999,0]
[5247,"2011-08-20","KW60MN10 ",6928459.8102321196,2152184.8062637751,1563941.1408530974,129445.91038999999,458797.75502067764,"Summer",155965.10793,60716.666494999998,86334.549750999999,1657.1583045,55859.473151999999,32069.056721000001,6618.5398907999997,40806.491921000001,0]
[5248,"2011-08-25","KW60MN07 ",6868106.1085071322,2151974.6361966464,1560647.8312944788,118376.00221600001,472950.80268616736,"Summer",130413.88538000001,57356.478733000004,92042.087528999997,1766.7122855,52393.905837999999,36961.557160999997,8866.4808137,49250.782407999999,508.44768959999999]
[5251,"2011-07-15","KW60MN08 ",7023004.2215754846,2151581.1283289506,1553962.8762356371,124511.865468,473106.38662531337,"Summer",143881.31328,51022.915084,89513.796254000001,1718.1827119,54673.884334000002,37637.648912999997,6455.8773294000002,39968.047237999999,0]
[5256,"2012-04-13","KW60MN19 ",6139857.8774754107,2151251.9963766518,1613762.4585424336,108601.23464759602,428888.3031866221,"Summer",116672.13459,55517.749304999998,96057.220759000003,1843.7812154999999,38987.632281999999,31838.444413000001,5949.6568958999997,7467.6597125999997,0]
[5259,"2012-04-16","KW60MN07 ",6381960.3025577748,2150881.4574683709,1612647.2278221825,101317.43256297747,436916.79708321101,"Summer",151417.05841999999,52321.276992999999,86575.928249000004,1661.7914714000001,35430.865828000002,32154.148518999998,6885.7538267999998,7467.6597125999997,559.33486457000004]
[5262,"2012-06-08","KW60MN10 ",6877258.9523127647,2150704.3384147054,1555101.9200312537,122613.50538150629,472988.9130019453,"Summer",103110.55955000001,65065.570957000004,104090.2711,1997.9725112000001,55722.674442000003,44396.195436000002,7209.6484297999996,28754.751542999998,0]
[5266,"2012-02-02","KW60MN05 ",6347692.93544925,2150446.6795912166,1537143.5321709604,85344.960949579588,527958.18647067668,"Winter",224067.00873,54701.085751999999,84819.228344999996,1628.0722959,55996.271862000001,31178.245733,7243.1310090999996,747.06969021999998,3053.2304963000001]
[5269,"2011-12-01","KW60MN24 ",6240918.7136310823,2150172.8226917814,1567370.4844751353,81230.928702999998,501571.40951364592,"Winter",251810.36614999999,60148.424175,97770.766463000007,1876.6720628,57273.059820000002,32964.332414999997,5795.5571264,816.33821894000005,3053.2304963000001]
[5270,"2012-02-10","KW60MN06 ",6593058.7607435156,2150143.6227282928,1519317.6325783648,82388.085921829887,548437.90422809822,"Winter",202252.49364999999,60627.122632999999,94519.767347000001,1814.2703916999999,55813.873582,32887.79623,7848.4245283,747.06969021999998,3053.2304963000001]
[5273,"2012-05-18","KW60MN19 ",6526036.7060863134,2150095.1948384726,1535079.1934501536,121334.42582217378,493681.57556614518,"Summer",125208.16254999999,62661.615177,87869.695699999997,1686.6248373999999,56361.068421000004,38373.155346,6505.6204084999999,21356.368259999999,0]
[5277,"2011-11-08","KW60MN05 ",6255568.4787002821,2149819.5878371052,1540236.1112492038,100458.83974899999,509124.63683890126,"Winter",270967.63854000001,52001.240594000003,106042.36663999999,2035.4422302999999,57318.659389,35773.20018,6933.6871741000004,4955.8928413000003,3053.2304963000001]
[5281,"2011-09-27","KW60MN22 ",6513626.2027835185,2149266.9193441262,1571954.3633471702,100228.452942,477084.10305495618,"Summer",159581.23542000001,56717.225403999997,101174.90956,1942.0132733999999,57318.659389,38337.144237,7499.1158044000003,30217.333901999998,3053.2304963000001]
[5284,"2012-05-25","KW60MN17 ",6861316.3815362714,2148979.8576323981,1565589.9328587893,110224.99311959186,473164.93165401695,"Summer",111191.77091000001,69700.312644000005,99517.858160000003,1910.2068125000001,55357.877883000001,39715.357061000002,6921.9366134000002,22908.908052999999,0]
[5287,"2012-06-04","KW60MN09 ",6951750.0186620969,2148642.6443479215,1565461.8046107336,119191.82671172341,463989.01302546432,"Summer",95075.123437999995,61775.287116,105370.42148,2022.5445027999999,56406.667991000002,41948.945668,7505.5353588999997,31938.222994,0]
[5291,"2011-08-11","KW60MN08 ",6635904.5838671448,2148236.792631472,1594193.6933945974,115592.37632299999,438450.7229138746,"Summer",124113.63721,55241.066032000002,91674.077275999996,1759.648471,46785.158737999998,37516.622952999998,7992.4666581000001,48492.766747000001,0]
[5294,"2012-03-10","KW60MN11 ",6283781.2302659107,2148054.0617646789,1570728.532206024,94169.064235812242,483156.46532284241,"Winter",189563.23425000001,54464.985477000002,75957.181049999999,1457.9687243000001,52393.905837999999,26590.194683000002,5505.9289247999995,1354.3257784,0]
[5295,"2011-12-07","KW60MN04 ",6339291.322856579,2148013.0352318785,1538619.9074787272,81660.958127000005,527732.16962615144,"Winter",274436.74261000002,56551.446819999997,99349.011266000001,1906.9658617,58321.849928000003,30943.669882999999,7469.7605654999998,816.33821894000005,3053.2304963000001]
[5298,"2012-04-09","KW60MN18 ",6414110.851761071,2147774.3969133385,1597024.1783337861,98704.019146879466,452046.19943267282,"Summer",138604.33624,51309.758166,94854.664852000002,1820.6986198,55950.672292000003,33599.610401999998,6629.9789528000001,7467.6597125999997,0]
[5302,"2012-03-25","KW60MN20 ",6306149.3469048366,2147449.1482316698,1596018.4630952871,101034.62245915581,450396.06267722708,"Winter",177536.70370000001,53967.056814000003,74047.726320000002,1421.3174789,55540.276163000002,26780.808482,5779.8976136000001,1354.3257784,3053.2304963000001]
[5306,"2011-07-20","KW60MN08 ",6918043.9310072158,2147204.5931527265,1565091.3904033317,116432.437704,465680.76504539471,"Summer",137550.92275999999,51349.886440000002,93954.985367999994,1803.4296200000001,52439.505407999997,34259.7693,7869.8247355000003,48660.876527,0]
[5309,"2012-02-15","KW60MN02 ",6163649.72439388,2147040.1094602011,1513453.0715916175,85528.043112808722,548058.99475577462,"Winter",214306.05056999999,54755.321748000002,86681.496815000006,1663.8178192,55540.276163000002,31753.071313,6420.5359238000001,747.06969021999998,3053.2304963000001]
[5312,"2012-02-18","KW60MN24 ",6215838.0261349129,2146820.7505803858,1548079.8683817654,90308.708410620457,508432.17378799984,"Winter",234366.36386000001,60978.477208999997,64892.448933,1245.5854690000001,50068.327771999997,25761.592291000001,5751.6850956999997,747.06969021999998,3053.2304963000001]
[5316,"2011-10-25","KW60MN06 ",6275404.1139094001,2146330.4710061527,1564935.0256397442,84674.905600999991,496720.53976540861,"Summer",178760.28787999999,47372.447289000003,108929.27250000001,2090.8552722999998,52302.706698000002,41715.759187000003,7606.4604998000004,19170.103298999999,3053.2304963000001]
[5319,"2012-05-09","KW60MN18 ",7018577.2756208517,2145639.4213681268,1564853.7179491858,120670.31368841964,460115.38973052165,"Summer",132586.85803,63886.255403000003,88904.569524999999,1706.4888404000001,51527.514009999999,34014.271602000001,6681.8229461999999,21356.368259999999,0]
[5323,"2011-11-20","KW60MN03 ",6124671.9657878429,2145310.0825425228,1508366.3532086632,81892.637575000001,555051.09175885946,"Winter",271462.33759000001,51623.733708,88710.416903000005,1702.7621558999999,57409.858528999997,27944.660984999999,6207.7900079000001,4955.8928413000003,3053.2304963000001]
[5324,"2011-11-19","KW60MN03 ",6138427.9705243567,2145159.4558674269,1551328.852828356,85771.675248999993,508058.92779007083,"Winter",236461.3628,50803.748894999997,92021.173729999995,1766.3108532000001,56953.862829999998,33934.811671000003,5810.1230136000004,4955.8928413000003,3053.2304963000001]
[5327,"2012-03-11","KW60MN18 ",6011136.6916932063,2144629.4556160136,1586769.3492618601,93073.909921855113,464786.19643229811,"Winter",217929.60764999999,40254.879945000001,71698.372768000001,1376.2225458,55449.077022999998,25528.684300000001,5630.0453810999998,1354.3257784,2930.9175177000002]
[5331,"2012-01-20","KW60MN01 ",6181548.1542718001,2144158.9221929833,1476015.4941177159,82070.025043615882,586073.40303165186,"Winter",272852.27698000002,59077.053581,92993.850904000006,1784.9810155,56862.663690000001,30869.163833999999,7130.8853099999997,742.46966563000001,3053.2304963000001]
[5334,"2011-12-29","KW60MN23 ",6315130.9323256295,2144021.0174077582,1542481.1015760133,80759.292375000005,520780.62345674494,"Winter",218583.28531000001,57807.00995,83898.678008000003,1610.4026881,54947.481754,28719.150203000001,5580.6849017000004,816.33821894000005,3053.2304963000001]
[5338,"2012-05-25","KW60MN16 ",6918587.9141146047,2143661.8179532792,1562514.8269012561,110091.98286999686,471055.00818202639,"Summer",112302.55447,75231.052125999995,108148.8642,2075.8756367000001,55585.875732,41132.151564,7528.0122629999996,22894.536513999999,0]
[5340,"2012-06-08","KW60MN08 ",6553231.5273516532,2143436.8985574618,1548046.2749519721,120114.82398346321,475275.79962202633,"Summer",173892.94573000001,51635.447294999998,88690.004442999998,1702.3703465999999,55813.873582,42524.190125000001,6682.1581444000003,29116.846822,0]
[5345,"2012-04-24","KW60MN14 ",6798921.9896227652,2142786.0721900319,1590242.3024502306,82264.28185212423,470279.48788767721,"Summer",108081.42858000001,96659.045685000005,133343.81203999999,2559.4829198000002,40401.218949000002,42023.617273000003,11134.521779999999,7467.6597125999997,0]
[5346,"2012-04-30","KW60MN20 ",6520886.1664579893,2142679.7956705815,1589877.3527546858,105550.41505553217,447252.02786036348,"Summer",150367.99036,42399.542869999997,87097.116467999993,1671.7954778000001,55996.271862000001,31301.395398000001,6485.7692250999999,7467.6597125999997,0]
[5349,"2012-06-11","KW60MN23 ",6388974.0082311239,2142169.7978968746,1539198.1229336825,120899.89444707095,482071.78051612107,"Summer",156986.87406,56013.974757999997,80254.985163000005,1540.4634126000001,56452.267561000001,39324.370795000003,6578.0520069000004,34775.062583999999,3053.2304963000001]
[5352,"2012-04-01","KW60MN18 ",6201685.0510345614,2141965.7044913424,1585699.9488460973,108804.18176816852,447461.57387707639,"Summer",170138.86720000001,42305.421227999999,71365.876999999993,1369.8404181000001,55129.880033000001,24815.680157999999,5491.1057136999998,7467.6597125999997,0]
[5356,"2012-06-02","KW60MN20 ",6863575.0989238331,2141553.819993481,1537198.8970392973,127288.69879963227,477066.22415455151,"Summer",157072.25617000001,54538.503097000001,79296.781216999996,1522.0710583,56087.471001999998,29460.237950999999,6644.9883855999997,29909.951266,0]
[5359,"2011-08-12","KW60MN08 ",6462569.5718499776,2141383.8213214381,1570621.155634847,117305.26315699999,453457.40252959094,"Summer",113598.92965000001,58200.382400000002,89582.037205999994,1719.4925705999999,55859.473151999999,35644.830293999999,7584.7030863999998,49520.354643999999,0]
[5361,"2011-12-31","KW60MN23 ",6362525.4615308903,2141189.3956905399,1548660.0623426267,88280.402170000001,504248.93117791298,"Winter",228099.16205000001,59101.925268999999,64797.960436000001,1243.7717989,55768.274012000002,16884.375412000001,5974.6951882000003,816.33821894000005,3053.2304963000001]
[5367,"2012-03-10","KW60MN09 ",6303574.2881859383,2140267.4904975528,1565389.4553369135,94055.969417643035,480822.0657429964,"Winter",206418.80371000001,44668.418017999997,75373.910548,1446.7730724999999,52302.706698000002,26056.203304999999,5582.0934114000002,1354.3257784,0]
[5370,"2012-04-13","KW60MN18 ",6138990.9830671037,2140086.5384573541,1607430.6340603493,106017.254065199,426638.65033180563,"Summer",99633.962293999997,55319.542242000003,96887.928413000001,1859.7263278,39352.428841000001,32367.109604000001,6104.9281664999999,7467.6597125999997,0]
[5371,"2012-06-02","KW60MN19 ",6976907.8896812713,2139971.8953335844,1548528.5789811672,118986.06095465463,472457.25539776258,"Summer",148538.21014000001,58099.460771999999,80698.014072000005,1548.9671813,56087.471001999998,30376.135590000002,6808.8444548999996,29686.687944000001,0]
[5374,"2012-01-08","KW60MN24 ",6282807.9951110305,2139228.2504099719,1559988.1864190483,89660.550070254147,489579.51392066944,"Winter",251836.53403000001,51330.191868000002,75355.312365999998,1446.4160875,49749.130783000001,26980.795287000001,6098.5560133999998,742.46966563000001,3053.2304963000001]
[5377,"2011-09-17","KW60MN13 ",6181998.9038274363,2139117.1064658305,1559334.0454753051,99817.669532999993,479965.39145752531,"Summer",169029.77940999999,55251.731982999998,94006.773233,1804.4236679999999,54947.481754,31367.200864999999,5799.1935199999998,30217.333901999998,0]
[5381,"2012-05-04","KW60MN22 ",6367215.514921912,2138124.9574119863,1564235.0107782907,112058.49101269388,461831.45562100189,"Summer",132131.05575,59546.024458,80122.054879999996,1537.9118672,57455.458099000003,30320.025833,6375.0606969999999,21356.368259999999,3053.2304963000001]
[5386,"2012-06-28","KW60MN23 ",7095806.5629647328,2137182.5500992648,1547533.7876084833,125068.85127963932,464579.91121114214,"Summer",128701.55855,57691.394117999997,94247.727671999994,1809.0486953,56087.471001999998,43248.862924000001,6571.6933981000002,42539.082227999999,3053.2304963000001]
[5389,"2012-05-14","KW60MN23 ",6427582.0415198551,2136562.7459474518,1515252.9797755277,126553.62395696931,494756.14221495471,"Summer",172867.95762999999,56279.511645999999,85815.521212000007,1647.1957523000001,50889.120030999999,35513.474484999999,6554.9876600999996,21356.368259999999,3053.2304963000001]
[5392,"2011-10-22","KW60MN10 ",6175351.2470485596,2135755.8588711233,1560127.4191334147,95860.34532800001,479768.09440970869,"Summer",165066.86658,47932.512592999999,112104.65965,2151.8056009000002,56361.068421000004,34885.386161000002,5597.3635533999995,19170.103298999999,0]
[5395,"2012-02-04","KW60MN15 ",6442146.27573073,2134706.9788787109,1522854.8260889214,88131.744664246187,523720.40812554315,"Winter",197536.58392,66847.074131000001,77539.814681999997,1488.346765,57409.858528999997,26363.865604999999,6632.2508527,747.06969021999998,0]
[5396,"2011-09-26","KW60MN22 ",6532933.6407518918,2134358.3191035725,1552870.6449846851,93603.723070000007,487883.95104888722,"Summer",140137.05963,52311.644215,104957.5322,2014.6192527000001,56543.466700999998,37577.957474000003,7754.5978033000001,30217.333901999998,3053.2304963000001]
[5399,"2012-04-24","KW60MN11 ",6706447.0423483653,2133478.6314366669,1592004.1513536461,88122.296796938826,453352.18328608182,"Summer",111040.04173,86936.646601,132110.07983999999,2535.8019072000002,40173.221100000002,40309.380339000003,10906.307650000001,7467.6597125999997,0]
[5403,"2011-07-10","KW60MN10 ",6849260.6716637369,2132718.4487482919,1533167.9736417823,124801.531243,474748.94386350963,"Summer",135936.75993,44611.879476000002,84449.795031999995,1620.9811663,54354.687344999998,28251.610821999999,6067.4739964,33749.273916999999,0]
[5407,"2012-06-06","KW60MN07 ",6308422.1302294759,2131847.9321895004,1574485.0803068976,112081.9704249225,445280.88145768037,"Summer",167706.89718999999,43003.420845000001,74970.524294000003,1439.0302293,47332.353577000002,39117.613045999999,6551.6542992000004,28985.652372,0]
[5410,"2011-10-15","KW60MN11 ",6320791.3691876214,2131091.9262694092,1550629.5035238753,95372.321878000002,485090.10086753382,"Summer",180152.56956,54265.645619000003,104965.66683,2014.7753937,55540.276163000002,34617.370410000003,5614.4485057000002,19170.103298999999,0]
[5414,"2012-06-08","KW60MN11 ",6937763.6370904185,2130384.7745831101,1535655.2090532833,123670.89452037953,471058.67100944708,"Summer",111687.22245,68153.580919999993,104185.35957,1999.7976977000001,55129.880033000001,45495.811258000002,7255.8685420000002,28345.086975999999,0]
[5417,"2011-10-15","KW60MN10 ",6281516.7254990051,2130123.8874330618,1552776.3984485639,92560.615988000005,484786.8729964979,"Summer",189030.28495,50972.930687,106087.75998,2036.3135379,55859.473151999999,34917.501987000003,5661.5184638999999,19170.103298999999,0]
[5420,"2012-02-05","KW60MN24 ",6241592.7929332536,2129909.6136763105,1495026.9566143861,77858.784072808383,557023.87298911612,"Winter",211660.16954,50772.202551000002,68235.321458999999,1309.7506148,56452.267561000001,25838.375781999999,6163.4947457999997,747.06969021999998,3053.2304963000001]
[5421,"2011-10-16","KW60MN21 ",6308460.7494011894,2129739.4381146291,1564960.2027700176,89756.753232000003,475022.48211261182,"Summer",195649.70918000001,46821.511833999997,92588.998300000007,1777.2100263,47788.349276000001,33217.015409,6095.2852921000003,19170.103298999999,3053.2304963000001]
[5424,"2011-10-22","KW60MN11 ",6199544.3968509585,2129431.8787310254,1557204.3266241697,94203.699111000009,478023.85299585568,"Summer",148683.20923000001,51633.064406999998,112638.67929,2162.0559014,56224.269711000001,35986.647008,5624.1184673999996,19170.103298999999,0]
[5428,"2012-02-22","KW60MN24 ",6147397.1169382464,2129139.4089217307,1537735.9946287719,79248.907242889822,512154.50705006899,"Winter",224419.40072000001,57580.429977,82735.468154999995,1588.0753247,56315.468850999998,31977.057414999999,6493.8326040000002,747.06969021999998,3053.2304963000001]
[5432,"2012-03-07","KW60MN01 ",5959882.3095973292,2128307.6191394399,1549758.3181105407,88384.161793366831,490165.13923553244,"Winter",216301.75146,55048.935894000002,82518.609274999995,1583.9128023000001,54628.284764000004,31584.184510999999,6370.9265853999996,1354.3257784,3053.2304963000001]
[5435,"2012-04-24","KW60MN12 ",6713220.5876282724,2128075.585545938,1581997.5014946498,86185.898085206849,459892.18596608157,"Summer",114680.33396,85840.123126999999,131407.29185000001,2522.3121633999999,40036.42239,40357.237631000004,11031.951121,7467.6597125999997,0]
[5439,"2012-04-25","KW60MN20 ",6587626.0070884749,2127781.174713193,1568836.698090726,107483.85385368144,451460.62276878551,"Summer",141251.29832,61922.280577999998,95250.364425000007,1828.2939202,46602.760457999997,32468.388756,7248.7735126999996,7467.6597125999997,51.466723322]
[5442,"2012-06-19","KW60MN23 ",6540655.7926066779,2127471.2358873095,1523520.644148597,122054.71895160382,481895.87278710853,"Summer",134425.31847999999,51244.144405999999,89769.299822000001,1723.0870041000001,55585.875732,37111.101744,6243.1178702999996,42385.081317999997,3053.2304963000001]
[5443,"2012-02-26","KW60MN02 ",6169475.2081273906,2127427.1372213801,1536522.6651204079,87709.29624819872,503195.17585277354,"Winter",195195.62387000001,52925.350998000002,63839.903010000002,1225.382257,56041.871432,26127.233471,5812.2256205000003,747.06969021999998,3053.2304963000001]
[5449,"2012-03-01","KW60MN02 ",6099829.2503752196,2126640.2042618049,1537028.499250504,83627.378595707691,505984.3264155931,"Winter",212020.90260999999,54200.867396000001,83131.393481000006,1595.6749582,57181.860679999998,29557.152725,6459.9030948,1354.3257784,3053.2304963000001]
[5450,"2011-07-23","KW60MN10 ",7047292.2547084549,2126553.2883842546,1526398.2316675449,124630.148069,475524.90864770964,"Summer",138631.04464000001,55324.131268999998,96450.347043999995,1851.3271225999999,53032.299816999999,31846.724741000002,5786.2528358,43250.645366999997,0]
[5454,"2012-06-30","KW60MN10 ",7012254.7803666852,2126222.280462963,1511517.2787108514,122714.28603157858,491990.71572053293,"Summer",124301.64532,61522.619105999998,105084.5701,2017.0576960999999,55494.676592999997,32283.738934000001,6211.5889212000002,37273.012994999997,0]
[5457,"2012-03-08","KW60MN05 ",6150546.297634582,2126002.2129677553,1540834.5707914955,86551.470609756972,498616.17156650271,"Winter",242426.77022000001,52850.334232000001,81181.691642000005,1558.2511852,57592.256808999999,31663.874338000001,7060.4293498999996,1354.3257784,3053.2304963000001]
[5460,"2012-06-03","KW60MN20 ",7049772.047493509,2125603.5396193154,1540659.7406491311,120252.93645376594,464690.86251641833,"Summer",160158.22179000001,46668.892956999996,69412.369770999998,1332.3436021,55357.877883000001,28771.591301,5397.9206050000003,29149.613064000001,0]
[5464,"2011-08-13","KW60MN10 ",6643780.0262363395,2125005.895171864,1533033.2086483652,123072.79612899999,468899.89039449906,"Summer",155287.86963999999,62286.759513999998,85812.999710000004,1647.1473530999999,55996.271862000001,30245.475307000001,6768.3430279000004,44614.854429999999,0]
[5467,"2011-08-06","KW60MN23 ",6258870.7889411328,2124818.8234000038,1547013.6974208634,118502.87052600001,459302.25545314047,"Summer",170868.74859999999,68757.237156000003,78852.194900000002,1513.5373958,53807.492506000002,26787.135965000001,6802.5738769999998,37558.108465999998,3053.2304963000001]
[5470,"2011-09-17","KW60MN19 ",6247390.2475531483,2124313.6260413313,1562325.5819199015,100292.972066,461695.07205542963,"Summer",152575.27059999999,56521.407656000003,100056.97661,1920.5549827,54673.884334000002,29358.064235000002,5635.5152072999999,30217.333901999998,0]
[5472,"2012-04-23","KW60MN19 ",6678245.6771812998,2124205.3623187519,1561859.5212612981,98386.972917845007,463958.86813960894,"Summer",182672.75149,61647.030572000003,117937.29531,2263.7607874999999,39671.625829999997,37209.936731000002,7915.1475990999998,7467.6597125999997,0]
[5475,"2012-06-04","KW60MN16 ",7795792.2570390049,2123766.3446289944,1536542.7394558424,112802.75478711177,474420.85038604034,"Summer",117244.53178,68328.741620999994,100501.28206,1929.0832539999999,57136.261109999999,42407.354229999997,8230.1594488999999,29501.662977,0]
[5479,"2012-01-20","KW60MN02 ",6119581.5229915734,2123165.3440059833,1460496.5891375998,80588.842413197301,582079.91245518613,"Winter",282061.16602,57192.432281000001,92222.572094999996,1770.1766170000001,54217.888635000003,30184.307977,6967.5117227000001,742.46966563000001,3053.2304963000001]
[5482,"2012-06-13","KW60MN23 ",6599806.9784922125,2122107.307683106,1540529.0629758867,118485.40247993186,463092.84222728718,"Summer",128640.36238999999,56231.807301000001,76706.772467000003,1472.3568416999999,54217.888635000003,36874.129065000001,6674.9547689999999,36822.841566000003,3053.2304963000001]
[5485,"2012-04-09","KW60MN17 ",6445056.7710558744,2122020.6399343121,1568412.3188172788,103418.2509178226,450190.07019921049,"Summer",134514.89762999999,61917.142026000001,104330.50132,2002.5836374,55950.672292000003,34054.933589,7070.8391175999996,7467.6597125999997,0]
[5489,"2012-03-30","KW60MN07 ",6385753.8784418115,2121364.4675917886,1522822.7031325067,100240.37086962239,498301.39358965983,"Winter",198705.50065999999,59622.834414999998,100950.74672,1937.7105544000001,51436.314870000002,34642.765698000003,7956.8984016000004,1354.3257784,0]
[5491,"2012-01-24","KW60MN24 ",6271955.3753375672,2121172.3366786805,1518225.127964556,84135.462558711006,518811.74615541339,"Winter",234267.36257999999,59053.137939,84029.472265999997,1612.9132333,56725.864979999998,34112.011963999998,6958.6543641999997,742.46966563000001,3053.2304963000001]
[5494,"2012-05-01","KW60MN15 ",6635543.8406864712,2120930.5911175949,1557406.7870514204,89841.947611569994,473681.85645460471,"Summer",96851.635227000006,73201.200024999998,106283.84342999999,2040.077284,55813.873582,34735.812812999997,8950.0535197999998,21356.368259999999,0]
[5497,"2011-09-17","KW60MN18 ",6225998.9749030974,2120669.6463715066,1562361.2510279659,96045.488979000002,462262.90636454098,"Summer",149815.4761,55623.332265999998,99378.802851999993,1907.5376997000001,54810.683043999998,29995.57069,5818.7772219999997,30217.333901999998,0]
[5500,"2011-09-17","KW60MN10 ",6196552.8500455553,2120462.978482279,1549659.3399097263,100678.26042400001,470125.37814855273,"Summer",159426.86718,52080.202059000003,93447.302609000006,1793.6848457000001,54628.284764000004,31827.766970000001,5689.6548002,30217.333901999998,0]
[5504,"2012-05-20","KW60MN22 ",6506206.6213556174,2120163.7471416164,1528642.0277423286,119882.74750422753,471638.97189506044,"Summer",160038.16114000001,52459.354311000003,66461.573086000004,1275.7042005000001,54172.289064999997,29893.630297,5376.0023646999998,21356.368259999999,3053.2304963000001]
[5507,"2011-10-15","KW60MN19 ",6451538.4351609703,2119898.8950323611,1547472.2399425646,97169.739643999987,475256.91544579645,"Summer",169424.39611999999,64349.122040000002,105675.66209,2028.4034783,55221.079172999998,33140.205535000001,6210.9388399999998,19170.103298999999,2290.3469318000002]
[5511,"2012-02-14","KW60MN05 ",6340848.130733938,2119496.7116082301,1493297.3899846699,86027.966606751157,540171.35501680919,"Winter",239537.29157,52638.506308000004,85440.230079000001,1639.9921841,56361.068421000004,32878.919102,7176.6872702000001,747.06969021999998,3053.2304963000001]
[5512,"2012-06-13","KW60MN08 ",6413993.4875638057,2119445.1204664255,1537981.0224709783,122757.0773787107,458707.0206167365,"Summer",129477.59675,49613.597068000003,94381.823227000001,1811.6226076,56589.066271000003,37647.605880000003,8433.9328881000001,33742.672815999998,0]
[5518,"2012-02-07","KW60MN01 ",6312192.4775526468,2119143.8506064545,1504128.9252989115,76697.68141772224,538317.24388982053,"Winter",220222.50317000001,51293.908670999997,82426.353831999993,1582.1419946999999,57273.059820000002,30450.910330999999,6791.2465476999996,747.06969021999998,3053.2304963000001]
[5519,"2011-11-12","KW60MN15 ",6671560.1575698582,2118974.4871905781,1517076.7237500472,94630.45214400001,507267.31129653123,"Winter",220194.46994000001,68673.829670000006,97719.627603999994,1875.6904721999999,48791.539814000003,32177.968006999999,6159.0542162000002,4955.8928413000003,0]
[5522,"2012-03-17","KW60MN14 ",6218177.3190691825,2118543.429910324,1554999.3175433751,92702.032178767651,470842.08018818113,"Winter",170249.52690999999,56329.388387999999,76822.548181000006,1474.5791118,55859.473151999999,26495.903103000001,5471.0496861000001,1354.3257784,0]
[5525,"2012-04-24","KW60MN10 ",6640205.2999714483,2117885.5093194549,1578824.899602063,90819.250514674102,448241.3592027179,"Summer",98353.559158999997,81517.933355000001,127830.70006,2453.6608667999999,40036.42239,39420.214790999999,10425.056097999999,7467.6597125999997,0]
[5529,"2012-06-20","KW60MN08 ",6602977.5195384575,2117038.3386431099,1540231.1280759114,116257.06076722557,460550.1497999726,"Summer",117796.31474,53573.653834999997,88929.713117000007,1706.9714618999999,55449.077022999998,38079.796578000001,7433.3356909000004,39285.370991999996,0]
[5532,"2011-12-30","KW60MN07 ",6452855.5003310107,2116738.1234007291,1484398.6707163951,81363.630124000003,550975.82256033423,"Winter",194762.76751000001,53816.730843999998,85065.209596000001,1632.7938108999999,55540.276163000002,29486.431135999999,6435.7451213000004,816.33821894000005,2187.724463]
[5537,"2011-10-22","KW60MN19 ",6374690.5936548626,2115909.9788217521,1543315.8045747129,91953.640725999998,480640.53352103918,"Summer",161452.65744000001,58353.014130000003,109514.85529000001,2102.0953075000002,55585.875732,36339.220995000003,6201.8376995999997,19170.103298999999,2900.4134826]
[5540,"2011-07-20","KW60MN24 ",6724328.802343362,2115401.6026049759,1545874.4566355315,114041.17953800001,455485.96643144469,"Summer",133348.68353000001,51212.349007999997,84623.062334000002,1624.3069651999999,53761.892935999997,33361.437985999997,6658.9465136999997,50166.723269000002,3053.2304963000001]
[5543,"2011-07-12","KW60MN24 ",6635664.9095177054,2115121.5363956774,1515049.6874987364,120945.55458499999,479126.2943119409,"Summer",128362.05443,47580.393178999999,81933.438718999998,1572.6806796999999,53989.890785000003,35593.190792000001,6506.5836810999999,39057.100293000003,3053.2304963000001]
[5544,"2012-03-24","KW60MN13 ",6121503.6193211153,2114975.7344865808,1546539.4800062696,99516.155934187584,468920.09854612336,"Winter",205816.49734999999,59854.917685,73128.242157999994,1403.6683359000001,55677.074871999997,29468.970100999999,5349.0375295000003,1354.3257784,0]
[5547,"2011-10-08","KW60MN12 ",6328861.2238390082,2114706.1040080618,1547149.4060947616,97022.809638999999,470533.8882743002,"Summer",188053.17061999999,53312.609565999999,101670.57318000001,1951.5273451999999,48928.338523999999,37848.068437000002,5486.6668768,19170.103298999999,0]
[5551,"2012-01-18","KW60MN03 ",6266591.5895621637,2114530.7274813387,1559212.2907068504,88153.697584440451,467164.73919004778,"Winter",207500.75915,50580.848499,90494.794760999997,1737.0125989999999,49429.933792999997,33486.900307000004,7232.3589568999996,742.46966563000001,3053.2304963000001]
[5554,"2012-05-01","KW60MN19 ",6487019.1273004692,2114038.7104882146,1550108.0833294922,101025.13869781423,462905.488460908,"Summer",137698.5821,50766.851901000002,84822.984244000007,1628.1443889,55950.672292000003,30957.861661999999,6442.2120762000004,21356.368259999999,0]
[5558,"2012-03-24","KW60MN21 ",6299718.4568043556,2113794.4279715344,1558341.2440112084,96376.963063672301,459076.22089665371,"Winter",176218.09270000001,61378.940476000003,71189.382924999998,1366.4526825,56224.269711000001,26993.680049999999,5779.6555256000001,1354.3257784,3053.2304963000001]
[5562,"2012-05-11","KW60MN21 ",6514506.8963462636,2113502.2910197559,1523534.7692094131,123856.35114289189,466111.17066745105,"Summer",119793.55243,59458.011877999998,91364.477002,1753.7058133999999,57409.858528999997,30575.383760000001,6329.7158252999998,21356.368259999999,1883.2495328]
[5565,"2012-06-27","KW60MN08 ",6746598.1445484422,2113078.0580346282,1538756.7382337346,120324.95720684039,453996.36259405309,"Summer",107334.38808,58069.873119999997,91158.955289999998,1749.7609035999999,55996.271862000001,41815.742037000004,8226.6584899999998,40720.738383000004,0]
[5568,"2012-04-25","KW60MN17 ",6576370.0305147581,2112020.1937180329,1541500.6674231335,104475.14740348599,466044.37889141322,"Summer",115725.89389000001,76783.791683000003,99755.960854000004,1914.7771017,45189.173791000001,35016.524092,8571.7823143000005,7467.6597125999997,0]
[5569,"2012-06-26","KW60MN21 ",7230907.799374097,2111982.6477730214,1518230.0922785408,132255.80355057024,461496.75194391038,"Summer",119948.06904,55987.756569999998,91641.512025999997,1759.0233936,55540.276163000002,42423.458771999998,6504.5724916999998,41058.857004999998,224.65274199999999]
[5572,"2011-11-01","KW60MN24 ",6102821.8237674423,2111874.3627689774,1554942.8954570403,88378.937403999997,468552.5299079371,"Winter",185451.33726,50017.603333999999,103073.07535,1978.4478319,54445.886484000002,39247.84809,6464.4299637000004,4955.8928413000003,3053.2304963000001]
[5575,"2012-04-30","KW60MN16 ",6499006.7728056358,2111380.9611554453,1559825.4198089456,100748.66424425306,450806.87710224662,"Summer",96187.910124000002,64900.648798000002,106113.42833,2036.8062321,55905.072721999997,33658.740339000004,7854.2346310000003,7467.6597125999997,0]
[5580,"2012-04-25","KW60MN19 ",6466261.7574114259,2111111.0779476175,1553797.3511964588,104939.89725377297,452373.829497386,"Summer",142958.99356,60482.947501000002,92524.383606000003,1775.9697722000001,46465.961748000002,33008.242913000002,7392.8156424999997,7467.6597125999997,0]
[5583,"2011-08-23","KW60MN07 ",6576430.1796192657,2110455.0421492648,1537467.965814251,115344.61082199999,457642.46551301365,"Summer",103272.38918,52531.637906000004,81394.915422000005,1562.3439332,55585.875732,36406.530122999997,7787.3253397999997,47602.607067999998,406.67333975000003]
[5587,"2011-07-21","KW60MN24 ",6813400.9989384171,2109798.158401785,1557641.2262224944,114057.395951,438099.5362282907,"Summer",132705.2335,50197.099187,81785.667071000003,1569.8442600999999,54445.886484000002,34970.040288999997,6315.2972229999996,53897.712041999999,3053.2304963000001]
[5590,"2011-12-11","KW60MN01 ",6109724.9893418988,2108569.2648818064,1469136.0412383138,82298.274589000008,557134.94905449264,"Winter",265550.92989999999,64442.036973000002,78093.669313999999,1498.9777905000001,57090.661540000001,25541.684076000001,6593.9383717999999,816.33821894000005,3053.2304963000001]
[5593,"2012-05-01","KW60MN18 ",6532395.6277867155,2108360.3673571413,1539685.6438471344,103980.04484984506,464694.67866016174,"Summer",136898.49574000001,59362.939009000002,87949.245228,1688.1517598999999,55950.672292000003,31927.630193000001,6551.0956354,21356.368259999999,0]
[5594,"2011-10-24","KW60MN23 ",6009154.1039841194,2108159.73659844,1541980.6292238212,82360.957408000002,483818.14996661863,"Summer",181359.02643999999,44701.352638999997,104199.21698,2000.0636852,56133.070571999997,42291.485950000002,6530.4944883999997,19170.103298999999,3053.2304963000001]
[5600,"2012-05-10","KW60MN19 ",6648029.1448862916,2107285.1953094988,1510890.4511942966,124630.07484462252,471764.66927057953,"Summer",149789.14924,58368.921470000001,90909.609586999999,1744.9748092,57318.659389,34056.559951000003,6598.0606330000001,21356.368259999999,0]
[5602,"2011-09-16","KW60MN22 ",6240487.9826715086,2107210.8521799333,1537578.5746056135,97743.683353000015,471888.59422131989,"Summer",143979.96479999999,60762.944000000003,90054.731161999996,1728.5657484000001,54217.888635000003,32819.327035000002,6732.7916999999998,30217.333901999998,3053.2304963000001]
[5605,"2012-04-01","KW60MN15 ",6064947.8477695379,2106546.6622853628,1562735.0290366204,104371.33518520415,439440.29806353827,"Summer",146817.54224000001,41971.156598000001,72661.928832999998,1394.7176319,54445.886484000002,25036.516672000002,5553.9181384000003,7467.6597125999997,0]
[5608,"2011-11-21","KW60MN05 ",6323119.5616135877,2106433.5086960667,1463488.8639755384,83497.395141000001,559447.24957952835,"Winter",232862.18242999999,49470.424580999999,95667.863003999999,1836.307644,58002.652937999999,31002.278191000001,6717.8398275,4955.8928413000003,3053.2304963000001]
[5612,"2012-01-20","KW60MN03 ",6094991.6005618665,2105573.459957724,1433055.3557287441,81196.186857393812,591321.91737158631,"Winter",275726.46188999998,56911.079640999997,92538.897712000005,1776.2483649000001,52348.306268,30223.734745999998,6880.6852227999998,742.46966563000001,3053.2304963000001]
[5615,"2012-06-26","KW60MN08 ",7091679.8927710401,2105436.6372525673,1529353.4149668973,126038.87445772452,450044.34782794543,"Summer",97702.679527999993,52635.013121000004,102389.51353,1965.3271271000001,56178.670141000002,40834.497017000002,8400.3318049000009,41461.106349000002,0]
[5616,"2012-06-02","KW60MN10 ",6411805.2186236829,2105289.9016064629,1502742.002007752,131303.57440572864,471244.32519298256,"Summer",160091.33418999999,55825.332988000002,77343.052716000006,1484.5699950999999,56771.464549999997,30855.628972999999,6131.7998914,28695.568230000001,0]
[5621,"2011-08-30","KW60MN23 ",6582042.2033559261,2104437.5652935579,1535422.8244429952,119757.783847,449256.95700356259,"Summer",139364.85811999999,56283.639520999997,88936.712782999995,1707.1058178000001,56406.667991000002,35419.961901000002,7345.4934387000003,37967.506929000003,3053.2304963000001]
[5623,"2012-05-12","KW60MN18 ",6357880.9969278947,2103661.5382562452,1533068.0457109867,122006.02054210084,448587.47200315783,"Summer",129113.36615,58190.648393000003,79762.428541999994,1531.0089786999999,56224.269711000001,26993.371126999999,5605.5572875999997,21356.368259999999,0]
[5627,"2012-06-03","KW60MN22 ",6796858.8471971191,2103364.5011615916,1514395.0642043815,116529.48639704766,472439.95056016225,"Summer",163973.27390999999,49135.832162999999,62682.89615,1203.1739576,55540.276163000002,29859.779770000001,5574.7376727000001,31549.860454000001,3053.2304963000001]
[5630,"2012-06-15","KW60MN08 ",6667673.4564729743,2103141.3665668005,1532157.695627474,118833.60055511256,452150.07038421393,"Summer",123022.6094,50040.591849999997,93649.192895,1797.5600517,49885.929492000003,38106.098607,7353.4163059000002,33524.298276000001,0]
[5633,"2012-06-03","KW60MN18 ",7161580.3919020975,2102889.7237558179,1524025.8854087479,116906.82142574836,461957.0169213218,"Summer",141758.02674,50353.887713999997,72800.840031999993,1397.3839786999999,54947.481754,29188.902461000001,5670.7533438999999,28074.158028000002,0]
[5637,"2012-03-18","KW60MN16 ",6239104.8380638128,2102340.3151815115,1572399.129970947,92627.43402580604,437313.7511847585,"Winter",201641.24208,41178.031088000003,73816.073382999995,1416.8709904,55996.271862000001,25057.073161,5502.0741451000004,1354.3257784,0]
[5640,"2012-02-03","KW60MN02 ",6185004.1088129841,2101939.4264878565,1488862.9252777309,77392.996944452447,535683.50426567311,"Winter",241023.21165000001,54300.792806999998,87760.657042000006,1684.5318824999999,57637.856378999997,32161.088900999999,6003.0092813000001,747.06969021999998,3053.2304963000001]
[5642,"2012-05-20","KW60MN17 ",6805520.7355806036,2101749.2651812136,1526514.7077101762,111288.13783315751,463946.41963787959,"Summer",148030.29467,53592.752284000002,76880.834375999999,1475.6978927,52941.100677000002,29525.823719,5616.3767424999996,21356.368259999999,0]
[5645,"2011-08-21","KW60MN10 ",6670189.7007851312,2101225.3198016104,1533677.4119557966,120343.239258,447204.66858781379,"Summer",140885.49913000001,51161.704214999998,76320.617255999998,1464.9447416999999,54947.481754,28643.315644999999,6776.1846352000002,39422.514278000002,0]
[5648,"2011-09-12","KW60MN07 ",6296362.8783391248,2100870.4958057189,1522336.9133954681,93251.658590000006,485281.92382025078,"Summer",145058.12594999999,51715.777755000003,99517.469698000001,1910.1993560999999,54947.481754,36025.894597999999,7166.5991575999997,32220.187967000002,1678.8527133]
[5652,"2012-05-01","KW60MN16 ",6609106.2950537074,2100503.1462441185,1538881.5802032731,93276.359975082538,468345.20606576296,"Summer",104601.84252000001,70070.784950999994,105305.88694,2021.3057871999999,55631.475301999999,33380.358408,7647.8083860999996,21356.368259999999,0]
[5655,"2012-03-07","KW60MN02 ",5883969.7873822441,2100032.5855289232,1523621.4018700153,86023.487680627077,490387.69597828109,"Winter",226416.18267000001,51993.566508000004,82833.083755,1589.9490184000001,54035.490355000002,30918.787113999999,6408.0404790000002,1354.3257784,3053.2304963000001]
[5658,"2012-02-03","KW60MN03 ",6170996.9761900455,2099378.4353946219,1484509.6997507466,77564.234587439729,537304.50105643563,"Winter",229455.12242,53785.608696000003,89593.071689000004,1719.7043733,58002.652937999999,31849.247587000002,6031.4638871999996,747.06969021999998,3053.2304963000001]
[5662,"2012-06-23","KW60MN11 ",7045629.5263717435,2098269.2593799378,1497567.1335336759,119800.90207510341,480901.22377115855,"Summer",127094.63455,56516.138952000001,87265.807195999994,1675.0334310999999,55540.276163000002,36632.180482999996,5644.7788675000002,39757.832281000003,0]
[5663,"2011-07-28","KW60MN01 ",6535658.7108022915,2097902.6673981715,1533812.0552043682,110305.43362,453785.17857380334,"Summer",108833.72596,49628.411783000003,74892.037265999999,1437.5237010999999,55631.475301999999,34839.796291999999,6675.0969734999999,42363.239599,3053.2304963000001]
[5667,"2012-03-11","KW60MN15 ",6013466.3564347411,2097332.9334376045,1549665.1710209616,93240.276381381831,454427.48603526124,"Winter",171630.05476999999,41731.333362999998,73399.204748999997,1408.8693581,53077.899386999998,25463.007077999999,5488.3868839999996,1354.3257784,0]
[5670,"2011-08-30","KW60MN07 ",6553740.6234956942,2097064.4666310998,1512935.6417513937,116652.911024,467475.91385570605,"Summer",123668.65608,54085.717535999996,91444.248263000001,1755.2369919,56452.267561000001,36794.039552000002,7800.5707481999998,41744.447204999997,813.77073923]
[5673,"2012-02-27","KW60MN03 ",6046876.8331851708,2097013.3958576771,1492788.0315100409,82901.41942934136,521323.94491829484,"Winter",226935.12065999999,50510.599114999997,78038.622063999996,1497.9211797999999,56452.267561000001,28843.450944,5968.3162641999998,747.06969021999998,3053.2304963000001]
[5677,"2011-07-22","KW60MN24 ",6769050.9326549824,2096466.0888317747,1535464.0468584176,116527.213124,444474.82884935715,"Summer",136714.4939,48123.429595000001,71209.058191999997,1366.8303417,55129.880033000001,33409.169276000001,5451.0952336999999,48893.259675000001,3053.2304963000001]
[5680,"2012-02-19","KW60MN24 ",6277699.4783789059,2095744.8541490536,1508138.5395432464,78862.744375745868,508743.57023006148,"Winter",248724.08257999999,55225.669654999998,66159.805210000006,1269.9118828000001,54993.081323999999,25730.35815,6061.5013729000002,747.06969021999998,3053.2304963000001]
[5684,"2012-06-07","KW60MN21 ",6815109.3401134834,2094962.9109980909,1523126.1323777586,116331.09354047044,455505.68507986196,"Summer",146902.33082999999,54384.283845999998,84379.276817000005,1619.6275963999999,56087.471001999998,40516.280633000002,6005.7839774000004,28813.974481000001,560.18298412000001]
[5688,"2012-04-23","KW60MN10 ",6466287.8377430085,2094266.0012488484,1571814.8485673124,100697.2610870551,421753.89159448096,"Summer",97878.774835999997,68398.820684000006,115858.17840999999,2223.8529423999998,29730.919588000001,39784.306960000002,10051.384558,7467.6597125999997,0]
[5691,"2012-01-19","KW60MN01 ",6176560.0179370428,2094062.0854222947,1476050.4977194821,87652.255019102377,530359.33268371026,"Winter",258312.25219,56010.240551000003,91994.203001000002,1765.7931605000001,51071.518309999999,33350.727906,7688.9598943999999,742.46966563000001,3053.2304963000001]
[5692,"2012-01-15","KW60MN01 ",6060025.9598734537,2094029.1998880603,1521146.6287926445,84334.150109575989,488548.4209858398,"Winter",252518.19192000001,63851.842524,70623.965030000007,1355.5997046,52941.100677000002,25198.048899000001,6758.8762175000002,742.46966563000001,3053.2304963000001]
[5695,"2011-08-26","KW60MN07 ",6567285.0422541518,2093574.1296550937,1508321.060726966,117028.09406500001,468224.97486312751,"Summer",123558.78066,57245.914685999996,84755.786615999998,1626.8545564000001,54673.884334000002,37114.948358000001,8136.3784326000005,48996.008777000003,559.33486457000004]
[5698,"2012-03-16","KW60MN23 ",5921668.7454613568,2093048.6386989586,1542418.9139418227,91567.064960948599,459062.65979618713,"Winter",144282.59649,53992.998632000003,74878.80257,1437.2696662999999,56178.670141000002,30870.118342999998,5444.4200491000001,1354.3257784,3053.2304963000001]
[5702,"2011-07-06","KW60MN01 ",6581308.8094507949,2092054.2010174149,1500487.9342257371,111413.005317,480153.26147467777,"Summer",112295.78198,48118.241232,76140.118451000002,1461.4801368999999,55494.676592999997,33546.586776999997,6368.5226387000002,44738.658812000001,3053.2304963000001]
[5705,"2012-02-07","KW60MN02 ",6236635.9502976649,2090953.5654031346,1478274.1936113297,73047.201449307759,539632.17034249695,"Winter",211418.26769000001,51781.357772000003,84009.551842999994,1612.5308685,57774.655089,30368.452814,6815.9953506000002,747.06969021999998,3053.2304963000001]
[5710,"2011-12-04","KW60MN06 ",6259978.5441159606,2090170.5930439907,1478484.7697859027,90859.173169000002,520826.65008908795,"Winter",264945.29558999999,56040.048334999999,82590.094912999994,1585.2849415000001,56999.462399999997,25867.055085,6496.6699386,816.33821894000005,3053.2304963000001]
[5713,"2012-03-23","KW60MN19 ",6279877.2790262755,2089969.2412584459,1542810.5412774235,91465.916205664646,455692.7837753577,"Winter",186797.75891999999,59271.663013999998,92830.734026999999,1781.8500501000001,56634.665841000002,32942.689258999999,6448.8787970000003,1354.3257784,3053.2304963000001]
[5716,"2011-08-14","KW60MN13 ",7227958.0853400668,2089270.6658880138,1521421.4834204293,119070.96228099999,448778.22018658475,"Summer",188259.33408,56257.998174,95960.648598999993,1841.9275502999999,50843.520461,25238.073066000001,6777.1800722999997,43897.609954,0]
[5717,"2012-05-01","KW60MN17 ",6547335.5504596047,2089186.9608325949,1526127.0742733965,100255.44414678407,462804.44241241436,"Summer",97297.527837000001,69399.239723000006,97183.049257999999,1865.3910582999999,56041.871432,32521.632065999998,7007.5238955000004,21356.368259999999,0]
[5720,"2012-02-11","KW60MN17 ",6557317.6535785366,2088214.1744528674,1513688.2237310072,83835.693657907235,490690.25706395309,"Winter",179586.95546,61636.772748000003,80716.373988000007,1549.3195926999999,54856.282614000003,26818.456126000001,6277.5366338000003,747.06969021999998,2137.6854072000001]
[5724,"2011-10-09","KW60MN11 ",6110187.706229086,2087951.1492992181,1539647.7136064144,98999.761375000002,449303.67431780376,"Summer",147917.17608999999,46784.018714999998,97200.151236000005,1865.7193242000001,51709.912289,29930.765684000002,5404.4315771000001,19170.103298999999,0]
[5726,"2012-06-03","KW60MN17 ",7152135.7865711255,2087589.4360662904,1515045.4725206136,117899.31558702704,454644.6479586499,"Summer",140171.70637,45929.309304000002,72611.275580000001,1393.7453622999999,54993.081323999999,29084.285935,5743.6403381,27890.750477000001,0]
[5731,"2011-08-06","KW60MN10 ",6457583.459525343,2086960.1713973638,1503592.3362171836,114064.45529900001,469303.37988118024,"Summer",145167.48204,69742.825412000006,91296.389574999994,1752.3989016,55859.473151999999,30097.126627000001,6781.7509571999999,29580.167613000001,0]
[5735,"2012-06-28","KW60MN08 ",6906096.3165576309,2085883.9898555959,1509439.6696642509,113180.60944797212,463263.71074337291,"Summer",112887.98789999999,62768.838683000002,99185.242626000007,1903.8223860000001,56133.070571999997,43274.593802000003,8260.3002035999998,39932.851654999999,0]
[5738,"2012-01-22","KW60MN03 ",5943341.9356980007,2085687.3320273317,1513160.2463022463,84023.031822347664,488504.05390273751,"Winter",253755.31047999999,54529.231849000003,68415.988601999998,1313.2184506999999,56087.471001999998,24770.883427000001,6647.2044179000004,742.46966563000001,3053.2304963000001]
[5741,"2012-01-06","KW60MN04 ",6114622.8245444885,2085565.295049147,1526140.8824292428,85205.200326401682,474219.21229350241,"Winter",205629.16755000001,49844.838373999999,89859.189929,1724.81241,36388.456795999999,31460.444018999999,6831.8681711999998,742.46966563000001,3053.2304963000001]
[5742,"2011-07-14","KW60MN24 ",6652153.2048277454,2085555.8930340796,1511745.6909499974,123664.58411800001,450145.61796608224,"Summer",122296.02415,46236.803007000002,71698.656277999995,1376.2279876,54901.882184000002,34284.633116999998,6294.3320965000003,47516.393677,3053.2304963000001]
[5745,"2012-06-23","KW60MN12 ",7125946.7338474151,2085183.4953253823,1485832.9728412097,114997.47009660627,484353.05238756625,"Summer",141126.54250000001,58101.965775999997,90706.348027999993,1741.0732822,54947.481754,36616.243784999999,5882.8915029999998,39336.826204999998,0]
[5751,"2011-09-10","KW60MN23 ",6263823.8471660586,2084011.1619181144,1507827.0475075576,91689.322834999999,484494.79157555674,"Summer",161839.35701000001,61955.959149000002,93365.091948999994,1792.1068438,54582.685193999998,32487.152172999999,6355.1756550999999,44528.773694000003,3053.2304963000001]
[5753,"2011-11-26","KW60MN16 ",6480741.070261905,2083583.6809211751,1521915.9481500837,95012.190432999996,466655.54233809147,"Winter",221555.17847000001,57157.897284999999,82078.546480000005,1575.4659670999999,55631.475301999999,28485.75936,5528.0486215000001,4955.8928413000003,2035.9110573999999]
[5756,"2011-09-03","KW60MN13 ",6423738.7547693914,2083275.1115512722,1495419.9607608144,118885.13802900001,468970.01276145777,"Summer",164740.10193999999,64460.738541999999,88308.615844999993,1695.0497399000001,55905.072721999997,29013.969969000002,6032.7149552999999,37869.898968000001,0]
[5760,"2012-03-25","KW60MN22 ",5958396.2935828269,2082747.4316009581,1537804.3818341626,104951.58874728388,439991.46101951168,"Winter",164397.72560999999,48961.402556000001,63852.792534,1225.6296663999999,55494.676592999997,27382.201233,5307.2867269999997,1354.3257784,3053.2304963000001]
[5763,"2011-09-18","KW60MN17 ",6353422.9729171116,2081955.8344635018,1514801.0283012174,92849.259319999997,474305.54684228438,"Summer",187065.38351000001,52345.481859,109134.82498999999,2094.8007727999998,54719.483904000001,30355.158201999999,6440.5394716999999,30217.333901999998,0]
[5766,"2012-03-11","KW60MN17 ",5971774.3746373001,2081475.5375757175,1543356.2573333967,89521.515578253631,448597.76466406719,"Winter",203505.55246000001,41276.415575999999,70566.673702,1354.5000198,55357.877883000001,25355.674917,5538.4617748000001,1354.3257784,71.849863939000002]
[5767,"2011-07-01","KW60MN24 ",6441727.2090968769,2081225.1919554074,1513738.0623469343,118184.404673,449302.72493547288,"Summer",115647.27367,46741.011052000002,77946.422886999993,1496.1514523000001,55950.672292000003,30584.732251000001,5534.7322721,53669.518485000001,3053.2304963000001]
[5772,"2011-08-31","KW60MN23 ",6627903.1138440678,2079997.6488260746,1524349.5615071924,111746.999043,443901.08827588224,"Summer",132515.75219,53851.087484999996,86056.615741000001,1651.8234686000001,56589.066271000003,33546.634474999999,6881.3353052000002,42225.278628,3053.2304963000001]
[5775,"2012-02-23","KW60MN05 ",6255743.0935865352,2079434.4138623413,1483269.3681336935,79861.892315036021,516303.15341361187,"Winter",199119.25839,51413.183191999997,80676.160868999999,1548.5477175000001,57318.659389,31535.748284000001,6871.5823908000002,747.06969021999998,3053.2304963000001]
[5778,"2012-04-26","KW60MN18 ",6410004.289187449,2079322.4157145235,1542613.4715668005,92510.386419259128,444198.55772846402,"Summer",115742.44886999999,58155.387123,91923.253723000002,1764.4313165000001,47833.948845999999,31784.521949999998,6681.8974349999999,7467.6597125999997,0]
[5781,"2012-06-03","KW60MN14 ",6821871.1275856644,2079191.5572428247,1499755.085540436,116383.60302315088,463052.8686792379,"Summer",158173.36322999999,45983.407115000002,73126.898444999999,1403.6425439,55403.477453,28984.908016000001,5742.7837200000004,27341.559407000001,0]
[5785,"2012-06-16","KW60MN10 ",6582009.2735954672,2078540.3352143981,1492479.5842284702,119698.55757520105,466362.19341072667,"Summer",130842.73548,49637.535205,84415.433302999998,1620.3216061999999,53260.297666999999,32117.858199999999,5999.5201727000003,32146.531103000001,0]
[5788,"2012-02-12","KW60MN24 ",6087389.0576210096,2078447.7742436591,1513668.5259274791,80888.224098982406,483891.02421719744,"Winter",215289.92679999999,50321.465663000003,71751.568075999996,1377.2436092,56041.871432,28089.558591000001,5902.4870553999999,747.06969021999998,3053.2304963000001]
[5789,"2012-02-20","KW60MN24 ",6268513.1587478472,2078350.0367896198,1494705.4907541519,76249.311592073529,507395.23444339441,"Winter",211349.63131999999,51818.768944000003,77374.426397999996,1485.1722007999999,57455.458099000003,30126.675965999999,6612.8465991000003,747.06969021999998,3053.2304963000001]
[5793,"2012-06-18","KW60MN23 ",6679805.3615843151,2077936.8629932876,1501156.2353171119,122072.26279720409,454708.36487897154,"Summer",125931.12308999999,46557.048288999998,75883.064595000003,1456.5460875000001,56999.462399999997,34689.917565999996,6276.9017884000004,40930.114606000003,3053.2304963000001]
[5796,"2011-07-04","KW60MN24 ",6554578.3778131744,2077656.4399162459,1496703.9491574992,115057.63952400001,465894.85123474669,"Summer",148329.28044999999,49531.074930000002,58081.558225000001,1114.8530550999999,54309.087775,24792.260394000001,6047.5043070000002,50693.693785000003,3053.2304963000001]
[5800,"2011-11-16","KW60MN05 ",6314966.9188145315,2077120.3574153318,1430645.3399536959,75725.896242999996,570749.12121863593,"Winter",256912.67869,52793.853534000002,101206.60372,1942.6216307,57455.458099000003,36317.022278999997,7469.8418253999998,4955.8928413000003,3053.2304963000001]
[5803,"2012-06-08","KW60MN15 ",7117634.5698927073,2076501.2617662628,1507371.0931787805,111744.2327397312,457385.9358477511,"Summer",112206.4042,73085.921621000001,101341.08074,1945.202865,55449.077022999998,43733.386208999997,7902.0850257000002,28567.526418000001,0]
[5806,"2012-05-11","KW60MN20 ",6398179.0698627951,2075848.1528978748,1501362.0222269169,123505.81845307928,450980.31221787864,"Summer",119923.17299000001,56473.388378000003,97393.611676999994,1869.4327225,57318.659389,30755.950889,6179.4352843999995,21356.368259999999,0]
[5810,"2012-05-12","KW60MN17 ",6360471.7486794908,2075274.129607206,1507830.846506834,116631.15683934982,450812.12626102223,"Summer",132351.99363000001,59608.834348999997,79227.124668999997,1520.7340277999999,56224.269711000001,26962.321849,5580.2498211000002,21356.368259999999,0]
[5813,"2012-02-07","KW60MN03 ",6241522.5979539743,2075040.3486187321,1462772.5807278324,71883.328108344911,540384.43978255475,"Winter",211327.09875,51409.508435999996,82257.294162000006,1578.8969597,57409.858528999997,30105.246219000001,6884.5620104999998,747.06969021999998,3053.2304963000001]
[5814,"2012-02-12","KW60MN06 ",6149527.168343001,2074979.7223685593,1476415.5494060176,84355.330081640699,514208.84288090101,"Winter",198443.21773999999,56816.130495999998,73530.905457999994,1411.3973023000001,55403.477453,26028.003454000002,6414.3906229000004,747.06969021999998,3053.2304963000001]
[5818,"2012-02-19","KW60MN05 ",6164285.5637229979,2074350.1945458236,1480478.0275881689,88142.200939921444,505729.96601773321,"Winter",199611.33958,55319.932695000003,65141.057785999998,1250.3574199,47286.754007000003,25858.548907,5966.3609411999996,747.06969021999998,3053.2304963000001]
[5821,"2012-04-24","KW60MN16 ",6800599.3215293642,2073819.3108203765,1542464.9665456854,79658.894008192729,451695.45026649849,"Summer",124857.95387,94371.674639000004,121221.53176,2326.8004363999999,40811.615078000003,38712.087786999997,10254.049133,7467.6597125999997,0]
[5825,"2012-03-11","KW60MN16 ",6007896.2566175126,2073517.7894131425,1532822.3380317714,89054.05993070094,451641.39145066997,"Winter",168123.46354999999,41328.218872999998,71519.87874,1372.7964219,53260.297666999999,25581.219759,5539.8025676999996,1354.3257784,0]
[5828,"2012-04-27","KW60MN15 ",6338293.183167736,2073190.7102217076,1523920.4019107923,96680.59928705034,452589.709023865,"Summer",107167.81028999999,78662.705621999994,111158.86421,2133.6514232,56862.663690000001,32255.106576999999,8948.1913081000002,7467.6597125999997,0]
[5831,"2011-10-03","KW60MN07 ",6369045.8868287001,2073121.4161016787,1516274.8071049154,93245.121578999999,463601.48741776339,"Summer",154709.36767000001,53084.168916000002,100620.26353,1931.3670574,54263.488205000001,36998.914741000001,6831.7056515000004,19170.103298999999,2957.1809536999999]
[5835,"2011-10-08","KW60MN13 ",6257417.0524151884,2072165.5983963178,1513939.809564404,89185.468951000003,469040.31988091394,"Summer",186298.11034000001,53687.058707999997,102700.28148999999,1971.2921979,46465.961748000002,38727.113068999999,5673.6262296000004,19170.103298999999,0]
[5839,"2012-02-06","KW60MN03 ",6161346.5469900202,2071559.7569052042,1444104.6939908166,75989.594240495018,551465.46867389267,"Winter",224681.09010999999,49853.367278999998,76157.764597999994,1461.8188479,55266.678742999997,27297.187653000001,6237.4432010999999,747.06969021999998,3053.2304963000001]
[5840,"2011-12-17","KW60MN06 ",6408809.5414408157,2071402.3409936256,1464292.129812907,81954.050480000005,525156.16070071864,"Winter",262750.58526000002,55523.107989999997,81361.600003,1561.7044566,50205.126482,27691.399662,6516.9646687000004,816.33821894000005,3053.2304963000001]
[5843,"2012-01-09","KW60MN04 ",6187996.500608881,2071028.4676825663,1483671.4351675897,91456.448844318656,495900.58367065777,"Winter",224070.26248999999,50807.579511000004,86003.283901999996,1650.7997846000001,53305.897235999997,27889.170903999999,6988.3346436000002,742.46966563000001,3053.2304963000001]
[5846,"2011-12-03","KW60MN05 ",6120414.5018809242,2070084.8494463644,1479765.1363313925,78896.233141999997,511423.47997297207,"Winter",252968.02720000001,53606.175508,87424.482652999999,1678.0791451,58185.051218000001,28889.138643999999,6514.5268624999999,816.33821894000005,3053.2304963000001]
[5850,"2012-06-23","KW60MN13 ",7218023.1462848363,2069715.0750279389,1466037.3204680821,116884.76850148235,486792.98605837434,"Summer",150654.37443,55374.017651000002,88808.335991999993,1704.6416750000001,55221.079172999998,36969.375639999998,6172.2589951999998,38212.570994000002,0]
[5853,"2011-09-17","KW60MN17 ",6191204.0834186636,2069500.5610481135,1515077.7865073986,95462.086462999985,458960.68807771505,"Summer",152354.67186999999,55559.010373999998,96546.309469,1853.1690842,54765.083473999999,30270.464327999998,5915.6393535999996,30217.333901999998,0]
[5856,"2011-10-30","KW60MN13 ",6094976.0938190641,2069173.8556177677,1491957.5732999342,88966.995634000006,488249.28668383358,"Summer",191271.56541000001,43889.983499000002,96978.774116000001,1861.4700759,53442.695946,32091.256431000002,5815.2627198999999,19170.103298999999,0]
[5861,"2011-10-22","KW60MN13 ",6102639.9683649456,2068520.215801029,1513708.8301670421,86594.982177000013,468216.40345698694,"Summer",129777.56819000001,54753.464285000002,119974.46244,2302.8634228999999,56178.670141000002,37171.627401999998,5662.6764206999997,19170.103298999999,0]
[5864,"2011-11-06","KW60MN06 ",6090344.5992694879,2068390.2353514587,1508274.8542152026,86021.549536999999,474093.83159925602,"Winter",205420.92676999999,50696.184748,90410.000708000007,1735.3850099000001,56771.464549999997,27545.541686,6366.1660934000001,4955.8928413000003,2493.0475121999998]
[5865,"2011-12-05","KW60MN04 ",6294679.3105380945,2068388.1412874639,1497117.2553309631,75739.039244,495531.84671250079,"Winter",257171.47467,53308.883392000003,92684.072646999994,1779.0349415999999,57820.254658999998,28354.047171999999,6482.1649970999997,816.33821894000005,3053.2304963000001]
[5868,"2012-02-24","KW60MN01 ",6153873.7401712239,2067977.8891476868,1483075.3119351321,79497.07568774723,505405.50152480742,"Winter",194693.96157000001,56842.723069,84006.348150000005,1612.4693748,57045.061970000002,31884.581935999999,6488.2832117999997,747.06969021999998,3053.2304963000001]
[5871,"2012-04-11","KW60MN23 ",5879072.6915826881,2067764.4891405646,1522644.5000820747,98004.790144838858,447115.19891365094,"Summer",166024.25698000001,55512.046764999999,82576.399758,1585.0220683,55403.477453,32280.377716999999,5824.0879138999999,7467.6597125999997,3053.2304963000001]
[5875,"2012-04-08","KW60MN21 ",6133728.6655809218,2067532.8949216055,1528442.8498379451,104748.83629639374,434341.20878726663,"Summer",171192.37606000001,48767.527432000003,69872.497443,1341.1755748,48426.743255000001,21074.536467000002,5952.7481688999997,7467.6597125999997,3053.2304963000001]
[5877,"2011-11-29","KW60MN04 ",6124549.0790850595,2067284.5827392391,1486454.099698591,75553.683103000003,505276.79993764806,"Winter",215831.7683,51714.349307999997,95526.931641999996,1833.6025208999999,56589.066271000003,32840.521119999998,6759.0590524999998,4955.8928413000003,3053.2304963000001]
[5883,"2012-04-26","KW60MN07 ",6209681.404165999,2066545.0682584909,1540726.7226775743,97025.643107245836,428792.70247367071,"Summer",134217.36386000001,50999.034791999999,85719.695890999996,1645.3564223000001,45006.775511,33033.531566999998,7147.5250239999996,7467.6597125999997,3.8589440678]
[5886,"2011-09-24","KW60MN21 ",6378047.6505304957,2065398.1799117099,1487904.0722604732,93557.459722,483936.64792923664,"Summer",180559.21565,68109.549723999997,115208.79621,2211.3883019999998,55357.877883000001,32388.885875,8302.0069899999999,30217.333901999998,3053.2304963000001]
[5889,"2011-10-29","KW60MN21 ",6312551.6860718597,2064999.2997824114,1482579.4709564385,91115.143494000004,491304.68533197307,"Summer",146094.23194999999,61922.834925000003,98321.208301000006,1887.2375810999999,56041.871432,33113.975878999998,6192.7365591999996,19170.103298999999,3053.2304963000001]
[5890,"2012-01-01","KW60MN06 ",6061025.1252165344,2064959.9314154221,1495213.2870993351,90289.753119347923,479456.8911967391,"Winter",213802.65009000001,52294.636214999999,66116.655373000001,1269.0836383000001,55221.079172999998,16788.889480000002,6081.1663357999996,742.46966563000001,3053.2304963000001]
[5893,"2012-06-07","KW60MN20 ",6773428.0282639284,2064655.1750546452,1503442.5334142735,116327.5749375022,444885.0667028696,"Summer",129637.81539,54718.493844999997,84075.568811999998,1613.7980387,56406.667991000002,41855.15713,6159.9379204999996,27603.367038,0]
[5897,"2011-07-31","KW60MN01 ",6507554.8166833259,2064549.9791909636,1489405.7505060351,107466.512546,467677.71613892837,"Summer",139237.35727000001,58214.432277,70765.558258999998,1358.3175318999999,55129.880033000001,27729.559152000002,6418.6195385999999,42004.384819999999,3053.2304963000001]
[5902,"2011-07-27","KW60MN07 ",6714712.6727921218,2063834.0050040365,1508624.70546513,110851.12124600001,444358.17829290644,"Summer",104340.61946,46285.738162000001,75888.582639999993,1456.6520043,56224.269711000001,37280.571983000002,7112.3783049000003,38664.464409,0]
[5904,"2011-10-02","KW60MN13 ",6256974.9136948325,2063276.9934916757,1504062.167864148,98630.552377999993,460584.27324952767,"Summer",162904.70447999999,45284.168654000001,94533.164294999995,1814.5275409000001,55084.280463000003,29634.918433999999,6899.4360096999999,19170.103298999999,0]
[5908,"2012-05-04","KW60MN19 ",6353729.2865614016,2062828.3558648753,1513615.386305707,108618.3065417247,440594.66301744367,"Summer",114079.88235,51289.718132000002,91046.992658999996,1747.6118242,56771.464549999997,31559.093377000001,6190.1616278000001,21356.368259999999,0]
[5911,"2012-01-06","KW60MN02 ",6031494.0338082695,2062086.0389449541,1510436.771651234,83171.534336408979,468477.73295731103,"Winter",221193.27956,48632.247556000002,87366.868889999998,1676.9732712,31646.101524000002,32450.456395000001,6639.7081664999996,742.46966563000001,3053.2304963000001]
[5914,"2012-06-05","KW60MN07 ",6597954.6267113769,2061006.6749739058,1515725.4879261749,107582.01459697152,437699.17245075951,"Summer",137278.45462,40778.165551999999,75696.138193999999,1452.9581075999999,55540.276163000002,41466.734707000003,6135.4498270000004,33624.217364999997,0]
[5915,"2012-04-24","KW60MN17 ",6722248.3113789903,2060754.3267676623,1531027.0038426362,81739.871945473162,447987.45097955293,"Summer",129281.47013,88549.837262999994,110522.489,2121.436447,41222.011208000004,37685.214118999997,8985.7521316000002,7467.6597125999997,0]
[5918,"2012-06-03","KW60MN13 ",6675967.4416647442,2060447.880069528,1483278.7712557404,119994.6653754775,457174.44343831023,"Summer",157024.28703000001,47247.780340999998,75695.027581000002,1452.9367898,55540.276163000002,28726.013252000001,5607.2519013000001,27152.583701,0]
[5923,"2011-10-02","KW60MN12 ",6176214.8303290568,2059761.5790596551,1507553.7921474683,96565.343999999997,455642.44291218667,"Summer",182257.40398,44624.783703000001,90370.846071000007,1734.6334518000001,54810.683043999998,29270.040478999999,6571.063631,19170.103298999999,0]
[5926,"2011-09-16","KW60MN07 ",6227686.2392165242,2059268.2988761463,1498726.2576854667,100010.89659199999,460531.14459867968,"Summer",155760.15270000001,53055.624078000001,99461.997929999998,1909.134597,54537.085623999999,36241.490795999998,7348.9063667999999,30217.333901999998,1933.2885876]
[5929,"2012-03-21","KW60MN24 ",5889066.0065056104,2059017.3046988877,1506624.9637407453,80479.383538047972,471912.95742009429,"Winter",195304.40763999999,52552.013763000003,82498.475156999993,1583.5263356999999,48654.741105000001,32690.696925,6312.0248078000004,1354.3257784,3053.2304963000001]
[5933,"2012-03-03","KW60MN22 ",6355971.6381526357,2058472.5280654284,1486178.8533946336,91833.866374727237,480459.80829606741,"Winter",186415.35177000001,62297.774142000002,71522.268419,1372.8422909000001,55494.676592999997,24152.796985000001,5985.9886603000004,1354.3257784,3053.2304963000001]
[5936,"2012-05-31","KW60MN07 ",6391508.583051282,2058147.3799759196,1504848.7141584684,114613.75445336037,438684.91136409075,"Summer",118593.63486999999,46100.954322999998,76006.915911000004,1458.9233657,53853.092076000001,37746.884061999997,6677.1674159000004,28231.925157000001,0]
[5939,"2012-03-02","KW60MN02 ",6056072.4583168253,2057917.0213714896,1487081.9751676612,88544.135392718512,482290.91081110993,"Winter",200761.80420000001,52449.840435999999,80307.813137999998,1541.4774252,49931.529062000001,29772.544355999999,6365.1351052,1354.3257784,3053.2304963000001]
[5940,"2012-02-11","KW60MN15 ",6339877.3974982072,2057480.3860136336,1482559.0180211877,81092.763128643768,493828.60486380209,"Winter",191122.89921999999,53562.954140000002,82954.494523999994,1592.2794511,54810.683043999998,27577.772931,6405.3030268000002,747.06969021999998,0]
[5944,"2012-05-12","KW60MN10 ",6205624.6942565581,2057003.174826141,1472657.9497914533,127803.52864107014,456541.69639361755,"Summer",156346.13725999999,47988.626940000002,74159.799530000004,1423.4686809,56406.667991000002,26976.841871000001,4966.5018571999999,21356.368259999999,0]
[5948,"2011-09-04","KW60MN14 ",6715007.4683804968,2056514.0963739878,1494813.7168813131,100786.86039199999,460913.5191006746,"Summer",169614.26957999999,56235.772889,88310.268215999997,1695.0814565000001,54628.284764000004,24865.838766000001,6543.1101307999998,34801.479203000003,0]
[5951,"2011-09-22","KW60MN07 ",6309362.3174922038,2056167.5399657157,1493562.8625167101,93577.760044999988,469026.91740400577,"Summer",151148.50115,52161.642819000001,95690.517015999998,1836.742479,55221.079172999998,37671.826160999997,7253.1412473999999,30217.333901999998,2340.3859876000001]
[5954,"2011-10-30","KW60MN14 ",6097095.489897565,2055749.4789752937,1488089.0381787834,83808.615592000002,483851.82520451018,"Summer",161053.32436,43989.888021999999,96013.551441000003,1842.9429998999999,54400.286914999997,31834.579762000001,5840.0470738000004,19170.103298999999,0]
[5958,"2012-05-26","KW60MN11 ",6274796.0380232939,2054293.7973805661,1477080.832114415,124358.30645600456,452854.6588101465,"Summer",193780.70363999999,56871.402878000001,78818.346565,1512.8876902,54035.490355000002,31345.640931000002,4655.8848282999998,23951.870711,0]
[5961,"2012-06-23","KW60MN10 ",6891726.74539416,2053635.9052305515,1468627.5053051799,115115.80593233804,469892.59399303357,"Summer",127677.21696999999,50579.424873000004,84808.685784000001,1627.8699355000001,55722.674442000003,35925.294052999998,5539.2828417000001,39804.990880999998,0]
[5965,"2011-10-30","KW60MN17 ",6178410.1417157101,2052854.4545489503,1491491.3947963833,85751.887923999995,475611.17182856711,"Summer",193809.71192999999,46476.237395999997,101231.17879999999,1943.0933399,54673.884334000002,32260.141369000001,6080.9428703000003,19170.103298999999,3053.2304963000001]
[5966,"2011-12-17","KW60MN24 ",6251915.5375999492,2052718.8496411061,1444911.6005220867,81461.753714999999,526345.49540401949,"Winter",275626.10398999997,62253.670639999997,79417.170822999993,1524.3818902999999,57318.659389,25881.767779000002,6568.3211005000003,816.33821894000005,3053.2304963000001]
[5969,"2011-08-11","KW60MN24 ",6099887.6405357644,2052236.5905868511,1504831.1836254094,113428.38747900001,433977.01948244177,"Summer",142378.77463,58145.863606999999,71398.706009000001,1370.4705581999999,56406.667991000002,33234.986435999999,6717.9820331000001,54442.635005999997,3053.2304963000001]
[5973,"2012-02-11","KW60MN07 ",6257808.3546280395,2051344.1893262917,1468825.6777690379,80545.991000225404,501972.52055702847,"Winter",188538.47932000001,56751.363519999999,72345.589435999995,1388.6456195000001,54947.481754,28331.463874000001,6519.2331819999999,747.06969021999998,661.10921441000005]
[5976,"2011-11-05","KW60MN24 ",6065638.6198162623,2050823.4152142811,1499586.3458062646,89487.431036999988,461749.63837101671,"Winter",203458.48418999999,57595.206128999998,85830.976446000001,1647.4924094999999,54901.882184000002,27584.176662000002,5809.2494668999998,4955.8928413000003,3053.2304963000001]
[5979,"2011-07-03","KW60MN24 ",6771469.1735735703,2050665.0294216427,1489223.0725010626,114753.26278599999,446688.69413457997,"Summer",128238.57044,43982.556184000001,69550.877924999993,1335.0022125,54309.087775,23955.073305999998,5659.5275897000001,55914.029923000002,3053.2304963000001]
[5983,"2012-04-25","KW60MN22 ",6192584.5571028497,2050265.9855677711,1506935.7439530496,100658.04398788097,442672.19762684061,"Summer",187018.86637,58225.013068,94034.838040999995,1804.9623611,44413.981101999998,33056.036962999999,6942.4209505999997,7467.6597125999997,3053.2304963000001]
[5986,"2012-03-17","KW60MN07 ",5923885.6479568789,2050119.3377280484,1489985.3262933695,94685.972552729887,465448.03888194897,"Winter",187031.47867000001,47501.203547999998,77934.338879999996,1495.9195044000001,55768.274012000002,28146.365013999999,5643.0808682999996,1354.3257784,0]
[5988,"2012-03-19","KW60MN24 ",6093835.8940949934,2050063.6317127266,1512863.2984344268,84492.910633590611,452707.42264470918,"Winter",170914.37546000001,49351.879548999997,78165.613115,1500.3587239000001,57683.455949000003,31467.524242,6199.8823764999997,1354.3257784,3053.2304963000001]
[5991,"2012-01-06","KW60MN03 ",6033300.4492059257,2049597.8155189231,1501585.2760810792,84004.144113000119,464008.39532484382,"Winter",204984.91203000001,49616.389690000004,88096.007425999996,1690.9688034999999,31691.701094,31908.362837000001,6731.1868111000003,742.46966563000001,3053.2304963000001]
[5994,"2011-07-02","KW60MN09 ",6772956.8793342579,2049093.4658869538,1467947.8821257316,122791.276124,458354.30763722223,"Summer",129515.70922,41829.669646000002,81390.142724000005,1562.2523231,56315.468850999998,28745.115534,5472.6291804000002,47189.469258999998,0]
[5998,"2011-11-13","KW60MN14 ",6294970.9392110892,2048477.1066690492,1479614.6441557698,93514.460920999991,475348.00159227941,"Winter",205435.5422,44301.956289000002,91974.161892999997,1765.4084792000001,50615.522611,28203.694702000001,5706.9632179,4955.8928413000003,0]
[6001,"2012-04-08","KW60MN12 ",5883045.211508695,2047765.724859993,1490975.1361024897,106972.52953651096,449818.05922099215,"Summer",203050.51328000001,38888.150217000002,68846.007417999994,1321.4724957000001,51618.713149000003,19544.268258,5504.2715550000003,7467.6597125999997,0]
[6005,"2011-08-13","KW60MN23 ",6574610.1765120085,2047433.5412653035,1471324.3582570914,116486.79702700001,459622.38598121214,"Summer",183080.07589000001,62910.150493000001,82060.630029000007,1575.1220676999999,47514.751857000003,27637.220262999999,6819.0900089999996,51352.970576,3053.2304963000001]
[6007,"2012-05-12","KW60MN11 ",6234626.6248907652,2046956.4019077136,1471917.220878094,123046.99977987252,451992.18124974717,"Summer",144332.42038,54528.847823999997,75389.109257000004,1447.0648057999999,55905.072721999997,27724.205904999999,5028.3459310999997,21356.368259999999,0]
[6012,"2012-03-17","KW60MN19 ",6292400.0650350386,2045721.1172337183,1511916.0910520768,90857.61174350392,442947.41443813767,"Winter",187472.94107999999,58824.737459999997,84600.856608999995,1623.8807349000001,56133.070571999997,25929.968270000001,6043.3448018999998,1354.3257784,3053.2304963000001]
[6013,"2012-05-17","KW60MN23 ",6426596.1604076838,2045669.4444967057,1476083.4585675751,115955.18060533583,453630.80532379472,"Summer",161057.78636,54849.469098000001,76399.554178999999,1466.4599054,55175.479603,34065.799524000002,6149.1370882000001,21356.368259999999,3053.2304963000001]
[6016,"2011-12-24","KW60MN03 ",6113435.7750620386,2045236.2456938783,1448468.2522562037,87514.596764000002,509253.39667367475,"Winter",280476.18106999999,52030.119647,75469.850812000004,1448.6146087,51937.910139,25114.804828,6625.8736214,816.33821894000005,3053.2304963000001]
[6019,"2012-06-09","KW60MN10 ",6426257.6025152085,2044727.7735338067,1480634.7129840294,117522.09164901866,446570.96890075848,"Summer",164649.7597,45845.795769999997,74005.678253999999,1420.5103826,54856.282614000003,30856.478397999999,5664.2609942999998,30149.858661999999,0]
[6023,"2012-01-07","KW60MN01 ",5966003.7834189367,2044114.1773541586,1468367.4404902346,80927.371316353252,494819.36554757057,"Winter",214525.34565999999,57678.856242000002,77336.479863999994,1484.4438316999999,57045.061970000002,29041.760223000001,6502.7847677999998,742.46966563000001,3053.2304963000001]
[6026,"2012-06-06","KW60MN16 ",6694534.0290459357,2043756.66195928,1486655.5372692347,112895.90689175083,444205.21779829456,"Summer",110707.2677,78618.245410000003,104320.17533,2002.3854339,48244.344975,41714.039147000003,8095.8194464999997,27979.641081999998,0]
[6028,"2012-06-07","KW60MN07 ",6196425.6239854069,2043582.9944684659,1488969.788341528,109310.55445512073,445302.65167181712,"Summer",142551.76454999999,40583.417932999997,71871.46312,1379.5449481999999,56452.267561000001,39105.346482000001,6433.6086549000001,26953.614479,0]
[6034,"2011-10-29","KW60MN18 ",6341136.5007312819,2042383.8759460601,1477863.7976690461,86548.925724000001,477971.15255301399,"Summer",152705.05012999999,59965.115381000003,103476.75866000001,1986.1963771000001,56087.471001999998,35385.210794999999,5629.8269939000002,19170.103298999999,458.40863426999999]
[6037,"2011-07-23","KW60MN09 ",6740508.9839117415,2042142.1311722123,1473621.1861310767,119717.92254900001,448803.0224921357,"Summer",125038.97752,49804.920591000002,93888.959096999999,1802.1622712000001,53533.895085999997,31589.692332999999,5519.0896879000002,44225.336746000001,0]
[6038,"2012-05-30","KW60MN07 ",6258106.9814809235,2042062.2457886953,1488016.8715525549,111399.92437637557,442645.44985976489,"Summer",120000.34121,43469.907607000001,71954.454264,1381.1379311000001,56589.066271000003,35576.703167,6267.4620642999998,24520.490642000001,0]
[6041,"2011-11-08","KW60MN24 ",6149476.1931810239,2041709.4684486338,1485616.1448848106,96530.920326000007,459562.40323782322,"Winter",209839.83265,54436.278353000002,102159.10475,1960.9045197,57911.453798000002,36389.515030000002,6633.6339678000004,4955.8928413000003,3053.2304963000001]
[6044,"2012-06-08","KW60MN16 ",7220240.2093988108,2041522.3802920999,1469920.3319694092,113471.57568580032,458130.47263689036,"Summer",117570.49092,67124.440294999993,93206.419248000006,1789.0611827,55449.077022999998,41218.907773999999,7400.4253195000001,28427.802082999999,0]
[6048,"2012-02-17","KW60MN01 ",6142244.0933795059,2041156.7438766737,1453723.5158074219,76817.245265181016,510615.98280407098,"Winter",218305.49668000001,58942.157730999999,78813.157502000002,1512.7880881000001,51846.710999000003,32659.403912999998,6395.6567668999996,747.06969021999998,3053.2304963000001]
[6053,"2011-09-30","KW60MN22 ",6610565.8729012161,2040129.5166650268,1477992.3839196097,89594.717113999985,472542.41563141713,"Summer",138260.57149,66217.842426999996,104210.86407,2000.2872465999999,55677.074871999997,35493.522384999997,7272.0139234999997,30217.333901999998,3053.2304963000001]
[6056,"2012-04-03","KW60MN06 ",6170546.0861216849,2040082.6226875037,1465323.2410560702,90278.35863172097,484481.02299971256,"Summer",152524.32324999999,50395.076477000002,83346.277440000005,1599.7995727,55266.678742999997,31585.660058000001,6743.6111536999997,7467.6597125999997,3053.2304963000001]
[6059,"2012-06-24","KW60MN18 ",7543938.057406636,2039654.281606066,1463478.2227708427,107432.42246889875,468743.63636632444,"Summer",136817.76639999999,52565.938308999997,88470.545977999995,1698.1579262,55859.473151999999,30912.41302,6140.2018552999998,37534.574036999998,0]
[6062,"2011-11-30","KW60MN04 ",6046438.0368198268,2039478.7167911772,1484218.7297887178,81753.321767000001,473506.66523545928,"Winter",210649.55311000001,50791.615933000001,96457.286886000002,1851.4603302,56908.26326,33230.304626999998,6580.5101273,4955.8928413000003,3053.2304963000001]
[6063,"2012-03-25","KW60MN19 ",6034500.6604247829,2039460.3337137697,1520863.5457215903,96439.559615681792,422157.22837649746,"Winter",182691.35199,54126.041838999998,79450.984135000006,1525.0309236999999,55266.678742999997,26509.233144000002,5711.4985515999997,1354.3257784,3053.2304963000001]
[6066,"2012-06-28","KW60MN24 ",6663211.7032246683,2039291.4924588222,1473577.5901818394,117661.8073547961,448052.09492218687,"Summer",108096.19239,55051.209518999996,88071.762476999997,1690.5034310999999,55722.674442000003,41979.433039000003,6258.9229741999998,41997.256443999999,3053.2304963000001]
[6070,"2011-12-11","KW60MN03 ",5970343.5034151487,2038798.9958553296,1412955.0930127625,80345.645465000009,545498.25737756689,"Winter",266474.17168999999,59200.296902000002,77620.006326999996,1489.8860126,56999.462399999997,25593.316623999999,6675.2391791,816.33821894000005,3053.2304963000001]
[6074,"2011-11-13","KW60MN15 ",6335538.5849516261,2038152.5897130964,1469422.3760256572,91857.879583000002,476872.33410443924,"Winter",193346.04551,49256.024168000004,90173.545102999997,1730.8463360000001,55038.680892999997,28556.133551999999,5681.1224811000002,4955.8928413000003,0]
[6077,"2011-08-21","KW60MN24 ",6160002.1716689654,2037437.5268207558,1490187.7616741208,104619.07893599999,442630.68621063512,"Summer",149308.81125999999,52424.303530999998,64395.695358999998,1236.0504762,56543.466700999998,30253.486499999999,6270.0149887999996,48139.748481000002,3053.2304963000001]
[6081,"2011-08-18","KW60MN07 ",6218881.3104775501,2037100.5965289767,1486134.1781956719,114095.02011699999,436871.39821630472,"Summer",99615.881127000001,50484.191323999999,76695.994969000007,1472.1499718,54309.087775,34157.928671000001,7263.2175096000001,47748.179634,122.79358015]
[6084,"2012-04-24","KW60MN18 ",6641796.4363807701,2036492.782410111,1516425.6205544032,85475.392251466954,434591.76960424101,"Summer",145632.19771000001,74560.919276000001,101096.99506,1940.5177348,41313.210348000001,36314.694818000004,8249.0795276999997,7467.6597125999997,0]
[6087,"2012-03-17","KW60MN23 ",5904653.7468844457,2035946.8715684749,1482044.4225973648,87660.878237122743,466241.57073398761,"Winter",195355.48217,55721.60267,70235.967982999995,1348.1522513,55996.271862000001,24469.956209,5424.3453989999998,1354.3257784,3053.2304963000001]
[6088,"2012-04-15","KW60MN11 ",5943420.2572887521,2035669.719823203,1512722.9149881564,104675.00774807557,418271.79708697117,"Summer",181104.43809000001,43273.173982,73239.881089999995,1405.8112020999999,35430.865828000002,24155.739323999998,5266.2435660000001,7467.6597125999997,0]
[6091,"2011-09-03","KW60MN11 ",6277245.3665075283,2035278.084965534,1460098.3609500022,117830.606061,457349.11795453203,"Summer",143598.74468999999,60020.402224999998,83545.260288999998,1603.6189715999999,55540.276163000002,28239.159288999999,5600.7967956000002,38529.207174000003,0]
[6096,"2012-02-24","KW60MN02 ",6092482.5694179432,2034613.6275498595,1462018.9677557808,74402.163539614819,498192.49625446391,"Winter",172412.11296,53432.533234000002,83931.405509000004,1611.0308798000001,57045.061970000002,32082.239253,6462.8640125000002,747.06969021999998,3053.2304963000001]
[6099,"2011-09-25","KW60MN21 ",6498158.1247565234,2034198.2546947415,1482932.1052011747,97813.716334000012,453452.43315956678,"Summer",177766.94712,49788.643687000003,89519.047095000002,1718.2834998000001,55357.877883000001,30543.809777999999,7422.4671417999998,30217.333901999998,3053.2304963000001]
[6102,"2012-05-20","KW60MN14 ",6476334.2537181647,2033646.2045419384,1475218.5629389279,110421.64529090168,448005.99631210876,"Summer",149408.62862999999,51137.605398,76044.799291000003,1459.6505225000001,50113.927342000003,29371.038057999998,5739.6924471000002,21356.368259999999,0]
[6106,"2011-12-24","KW60MN04 ",6104137.7027185215,2032565.2049750611,1445657.6843538252,83873.20485699999,503034.31576423603,"Winter",271755.18679000001,51874.989339,76851.684791000007,1475.1383777000001,51664.312719000001,23892.049004,6599.2609130999999,816.33821894000005,3053.2304963000001]
[6109,"2011-11-08","KW60MN04 ",5983302.2688787282,2032185.4148639692,1456588.1363890853,91127.541717,484469.73675788392,"Winter",231834.56589,51441.438804999998,104387.16465999999,2003.6712682,57045.061970000002,35054.918992999999,6294.7383981000003,4955.8928413000003,3053.2304963000001]
[6112,"2012-02-23","KW60MN01 ",5981640.6407845411,2031698.7758741046,1454008.409701172,75065.883556084023,502624.48261684855,"Winter",188905.18999000001,52693.508748,81982.102123000004,1573.6147549,56315.468850999998,31790.445548,6406.5693308,747.06969021999998,3053.2304963000001]
[6116,"2012-02-14","KW60MN01 ",6081369.4695988186,2031584.6604411812,1458269.2539621878,81487.414957142231,491827.99152185128,"Winter",203869.14713999999,51049.967203,84132.212281,1614.8852882000001,56497.867130999999,32826.769921999999,6556.1422314000001,747.06969021999998,3053.2304963000001]
[6117,"2012-04-24","KW60MN20 ",6527510.6149116047,2031321.5234277393,1515380.1800791158,93554.511347963489,422386.83200066013,"Summer",135755.66209999999,65190.697451,94168.251403999995,1807.5231791000001,41450.009057000003,35049.828773000001,7482.7232566000002,7467.6597125999997,71.849863939000002]
[6121,"2012-06-24","KW60MN22 ",6991236.764689777,2030859.2940237888,1455003.2414079322,113183.89218105166,462672.1604348048,"Summer",114341.56114000001,57391.513443999997,77296.550254000002,1483.6773983,55677.074871999997,30278.692479000001,5658.0039606999999,42038.612523999996,3032.5505136000002]
[6124,"2011-10-23","KW60MN13 ",6044507.0238348907,2030477.9798489911,1482106.042193783,93992.778814999998,454379.15884020814,"Summer",163719.96799,41059.134166000003,106546.38329,2045.1166352,54947.481754,32418.125436999999,5313.1154521999997,19170.103298999999,0]
[6127,"2011-11-16","KW60MN01 ",6045943.4132253779,2030066.4993579481,1437867.8658619621,73822.44372000001,518376.18977598596,"Winter",224151.15080999999,54964.545044999999,97252.895501999999,1866.73173,57090.661540000001,37021.876616000001,6877.5363919000001,4955.8928413000003,3053.2304963000001]
[6131,"2012-06-05","KW60MN18 ",6684279.5306572691,2029981.440290893,1469001.7319256824,114147.77071854468,446831.93764666596,"Summer",146139.63623999999,63219.978878000002,84294.560387000005,1618.0014973,54354.687344999998,40121.607686000003,6467.6126541000003,27375.312744999999,0]
[6134,"2012-01-01","KW60MN01 ",5991276.9012032244,2029002.3499566936,1466775.2247772203,88567.157197926994,473659.96798154654,"Winter",214951.98066,59581.537995999999,63470.079743000002,1218.2836423000001,55950.672292000003,17010.701258000001,5913.4453291999998,742.46966563000001,3053.2304963000001]
[6137,"2012-06-17","KW60MN23 ",6559625.1846952084,2028716.9705325812,1487746.1040553453,113146.73005624441,427824.1364209915,"Summer",147472.17376000001,48094.828520000003,61913.542083,1188.4065037,55357.877883000001,29432.068255999999,5243.8614660000003,37616.311032999998,3053.2304963000001]
[6139,"2012-04-07","KW60MN06 ",5835089.8668145025,2028644.3979052291,1437999.0015814174,93514.714779620947,497130.68154419074,"Summer",201874.59088999999,48962.339322,62856.022671999999,1206.4970542999999,56224.269711000001,25062.698049999999,6205.5993689999996,7467.6597125999997,3053.2304963000001]
[6142,"2012-03-18","KW60MN07 ",5818469.2719242973,2028273.8757963569,1455414.9675220295,83687.318033131567,489171.59024119587,"Winter",225741.44565000001,49629.710078999997,75656.597506999999,1452.1991393000001,55631.475301999999,24460.840694999999,5931.2209930999998,1354.3257784,0]
[6146,"2011-10-09","KW60MN13 ",6003152.2163042687,2027517.2446461457,1496716.6709578824,94779.679625999983,436020.89406226337,"Summer",159461.81068,43773.646213,102113.07090000001,1960.0209178,51345.115729999998,30441.074821999999,5554.0112486999997,19170.103298999999,0]
[6149,"2011-12-05","KW60MN02 ",6164232.1332636951,2027384.7387595843,1473259.6870867319,76333.105272999994,477791.94639985252,"Winter",256399.84549000001,51511.320231999998,87438.752290999997,1678.3530453000001,57729.055519000001,27901.401336999999,6446.6136692,816.33821894000005,3053.2304963000001]
[6152,"2012-03-31","KW60MN15 ",5812172.6746501364,2027150.6917427126,1442451.9408471999,105493.66743459461,479205.08346091816,"Winter",190847.10312000001,60808.839086,76758.063357999999,1473.3413505000001,53533.895085999997,24831.530262,5777.4953595999996,1354.3257784,0]
[6156,"2012-06-20","KW60MN07 ",6378385.2021740722,2026660.8903673002,1474964.0181858907,106484.12535713796,445212.74682427151,"Summer",118839.71256,39441.680657999997,78256.529207,1502.1038232000001,55175.479603,37054.563382,6727.0425419000003,39581.766004999998,0]
[6158,"2011-11-13","KW60MN08 ",6281973.9999634884,2026434.630601278,1424504.285067606,94874.852863000007,507055.49267067213,"Winter",228971.49888,45049.267053000003,89973.337501000002,1727.0034284999999,56133.070571999997,28196.794962,5869.2194777000004,4955.8928413000003,0]
[6161,"2012-05-20","KW60MN12 ",6314167.3442539629,2026172.4253844107,1462807.9403147686,113674.97909895268,449689.50597068941,"Summer",141373.86022999999,50392.897654,70997.886956999995,1362.7769914999999,50797.920891000002,29102.817612999999,5610.6597499999998,21356.368259999999,0]
[6164,"2011-12-03","KW60MN02 ",5978459.0732359532,2025704.7883189432,1456374.2822696979,79321.407836999992,490009.0982122455,"Winter",248042.92282000001,56844.194900000002,90503.214731999993,1737.1742171000001,58185.051218000001,30972.754926000001,6288.9486095000002,816.33821894000005,3053.2304963000001]
[6167,"2011-11-21","KW60MN02 ",5916238.7184779663,2024960.0488403754,1429164.9010863204,78893.705284999989,516901.44246905507,"Winter",232896.36283,47566.786779000002,86870.978705000001,1667.4548508,57729.055519000001,29142.440215999999,6135.9560110000002,4955.8928413000003,3053.2304963000001]
[6171,"2011-07-15","KW60MN07 ",6629225.1721968213,2024194.9794146123,1477230.0175427047,114292.212999,432672.74887290766,"Summer",102449.91864,38561.002113000002,78812.881685,1512.7827938999999,53077.899386999998,36065.586874000001,5845.4508760999997,41814.802893,0]
[6174,"2011-09-24","KW60MN11 ",6179151.2552378001,2023623.5556514668,1467094.5614323153,96876.595298,459652.39892115159,"Summer",179622.3229,65077.866205999999,114337.41624000001,2194.6625004000002,55631.475301999999,32977.896391000002,7356.4635629000004,30217.333901999998,0]
[6178,"2012-05-19","KW60MN19 ",6365249.4631932126,2022894.4149292656,1452212.0652214207,121754.15294044817,448928.1967673967,"Summer",161523.96463999999,59459.994671,78520.496610000002,1507.1705754,53032.299816999999,32913.808306999999,6334.1851350999996,21356.368259999999,0]
[6179,"2012-03-24","KW60MN22 ",6027489.2407298358,2022852.8419860092,1486295.0398216471,90609.034346459113,445948.76781790279,"Winter",199696.81708000001,59752.146628000002,65228.165044000001,1252.0294100000001,56224.269711000001,26799.702119000001,5461.5524028999998,1354.3257784,3053.2304963000001]
[6185,"2011-07-03","KW60MN09 ",6759828.3261649208,2021477.5302238483,1449608.0631943252,116225.977285,455643.48974452307,"Summer",135406.05752999999,46317.372880000003,83259.229317999998,1598.1287176999999,49201.935943999997,25219.513771999998,5853.9019341000003,47475.035357000001,0]
[6186,"2011-07-29","KW60MN02 ",6319451.8708490888,2021356.2775115538,1472164.8434518646,105973.89651600001,443217.53754368948,"Summer",96940.059129999994,54832.334161999999,73165.517869999996,1404.3838287999999,55813.873582,35110.276911000001,6327.1612081000003,42256.872159999999,3053.2304963000001]
[6189,"2011-10-08","KW60MN14 ",6178760.6981284218,2020977.5514741312,1476573.3588685347,88552.015628000008,455852.17697759648,"Summer",130606.67344,57096.645991999998,102580.08536,1968.9850798,48837.139384000002,38827.634568000001,5732.8648992999997,19170.103298999999,0]
[6192,"2011-09-14","KW60MN23 ",5969857.3431657637,2020913.9111294565,1457363.7244256474,93911.950599999996,469638.23610380886,"Summer",150025.17947999999,58230.579030000001,96574.718645000001,1853.7143874000001,49065.137234000002,36592.406302000003,7409.3233085000002,28498.695255999999,3053.2304963000001]
[6196,"2011-10-08","KW60MN08 ",6011140.5048122881,2019997.5513152406,1457743.3877160556,95104.113115,467150.05048418493,"Summer",143079.74312,42534.107719,92202.709889000005,1769.7953696,55494.676592999997,37066.769408,5415.6861114000003,19170.103298999999,357.04420886999998]
[6200,"2011-07-21","KW60MN07 ",6657474.9990566289,2019077.4501085454,1476845.176590933,107965.635307,434266.63821061235,"Summer",101479.4708,46049.510950000004,84854.935738999993,1628.7576855,50433.124331999999,36289.379090000002,6942.7273686999997,45970.063792000001,0]
[6204,"2011-11-15","KW60MN05 ",6128339.4818777172,2018812.771063216,1400719.3965076734,82915.255238999991,535178.1193165424,"Winter",251330.85487000001,50109.512409000003,99704.559154000002,1913.7904659000001,54765.083473999999,34934.488258999998,7469.8215111999998,4955.8928413000003,3053.2304963000001]
[6207,"2012-04-04","KW60MN24 ",5659800.3407704094,2018469.5850590393,1487125.7703720303,97857.637686878516,433486.17700013041,"Summer",169267.90818,54265.330686000001,74454.285952999999,1429.1212339000001,46511.561318,31224.902835000001,6162.0235988000004,7467.6597125999997,3053.2304963000001]
[6210,"2012-03-17","KW60MN18 ",6180372.0576373665,2018241.4424973505,1494844.0354276292,86326.67227402248,437070.73479569866,"Winter",164921.35876,55515.948080000002,75689.261966999999,1452.8261210000001,55722.674442000003,25894.676735000001,5449.2618009999997,1354.3257784,2544.7828070999999]
[6211,"2012-03-08","KW60MN23 ",5962012.0069980752,2018166.5362963467,1458047.3406282123,85288.794735482021,474830.40093265235,"Winter",230912.11898999999,56458.107690999997,81083.839267999996,1556.3729467000001,56178.670141000002,32254.353482999999,6531.0023639999999,1354.3257784,3053.2304963000001]
[6214,"2012-04-27","KW60MN20 ",6273875.2489879634,2017793.7482249716,1484519.8728005278,100286.06878244044,432987.80664200336,"Summer",128578.05336999999,61088.721503000001,84604.958140000002,1623.9594621000001,57136.261109999999,28323.494065999999,6200.8507274000003,7467.6597125999997,10.672171419]
[6217,"2011-11-30","KW60MN02 ",5976300.0644398602,2017542.3790572006,1472177.8496278843,79469.439186000003,465895.09024331637,"Winter",205666.03998999999,53074.094267,94865.148276000007,1820.8998451,56908.26326,34279.226405000001,6501.4642889999996,4955.8928413000003,3053.2304963000001]
[6221,"2011-07-16","KW60MN24 ",6551945.3019852014,2017288.850509454,1451006.6239580759,113710.20634,452572.020211378,"Summer",121386.77248,47596.152693000004,68615.848733999999,1317.0546887,55722.674442000003,28416.240248999999,5843.6022063999999,51328.405020999999,3053.2304963000001]
[6225,"2012-05-19","KW60MN14 ",6318508.5035262359,2016553.3580686667,1438088.0822953575,124611.22088504019,453854.05488826899,"Summer",162597.75917,60466.191769999998,80965.511622999999,1554.1016933000001,51527.514009999999,36065.754778000002,6788.6953160000003,21356.368259999999,0]
[6229,"2012-01-09","KW60MN02 ",6065171.0628211452,2016164.3221840879,1452272.3596560485,88257.460440757946,475634.50208728149,"Winter",232120.55781,49215.137482999999,79903.917507000006,1533.7248047,48472.342825,27198.803684999999,6182.8228177999999,742.46966563000001,3053.2304963000001]
[6232,"2012-02-21","KW60MN24 ",6125548.5693395985,2015896.6914927387,1468806.6483414015,78694.439885671731,468395.60326566547,"Winter",153491.26295999999,56879.904468000001,82205.654079999993,1577.9057482999999,53761.892935999997,33035.962597999998,6282.3970080999998,747.06969021999998,3053.2304963000001]
[6235,"2011-10-16","KW60MN18 ",6322470.5462543527,2015577.3547798325,1483992.6346698643,88673.985151000015,442910.73495896807,"Summer",152777.09924000001,39620.276702000003,99898.448015999995,1917.5120876999999,47697.150135999997,34199.301289000003,5492.9645399000001,19170.103298999999,0]
[6236,"2012-02-10","KW60MN24 ",6084640.4925696682,2015419.3562995805,1435445.7659030284,78297.825875532333,501675.76452101982,"Winter",219639.97373999999,59413.072839,82939.472649999996,1591.9911121,55905.072721999997,31469.441531,6151.6696973999997,747.06969021999998,3053.2304963000001]
[6239,"2011-10-08","KW60MN22 ",6112701.5625184355,2014952.6155520873,1466573.618354186,94718.482380999994,453660.51481690141,"Summer",186029.79684,55775.682805999997,89249.204419000002,1713.1039740000001,55084.280463000003,33508.173395999998,5792.7536502000003,19170.103298999999,3053.2304963000001]
[6242,"2011-09-21","KW60MN07 ",6280868.6169117726,2014813.4515518672,1461546.8782135893,90823.524843000007,462443.04849527788,"Summer",156612.72320000001,53699.694599000002,94114.491947000002,1806.4912870999999,55859.473151999999,36920.112007000003,7402.8834397999999,30217.333901999998,2238.6116379]
[6247,"2012-03-29","KW60MN23 ",5949552.6257399553,2014280.3906839846,1471342.5810452371,98257.647881666169,444680.16175708134,"Winter",173123.64822999999,58059.732592,78501.297993,1506.8020653999999,48016.347126000001,32245.711330999999,5934.2750211000002,1354.3257784,3053.2304963000001]
[6250,"2012-05-19","KW60MN17 ",6354906.1626098342,2013961.0960230776,1435518.5261374633,123780.50493971568,454662.06494589883,"Summer",157737.87841999999,59747.367999000002,76075.375151,1460.2374143,55677.074871999997,33317.153563,6750.2592519999998,21356.368259999999,0]
[6254,"2011-07-10","KW60MN09 ",6531020.3250973057,2013626.8726676372,1451699.8136647514,117711.170683,444215.88831988577,"Summer",113443.80892,42859.631346000002,80219.200373999993,1539.7765374000001,54537.085623999999,27686.178274999998,5905.3193117000001,35081.324864000002,0]
[6257,"2012-02-19","KW60MN02 ",6030606.6688581426,2013054.6527528281,1443944.3345073874,82708.250146768842,486402.06809867203,"Winter",192414.87599,57329.595328000003,63894.087674000002,1226.4223105999999,46465.961748000002,25101.724432999999,5718.3514929000003,747.06969021999998,3053.2304963000001]
[6260,"2011-07-29","KW60MN06 ",6471033.7246915037,2012423.7625998487,1470500.6376508761,104754.591055,437168.53389397258,"Summer",86553.477736000001,49727.917818000002,72466.495538000003,1390.9663654000001,56087.471001999998,36308.219605999999,6123.5841480999998,38777.298617,1882.4014127]
[6261,"2011-09-05","KW60MN23 ",6218888.6931021446,2012408.609354855,1464081.6931499045,97900.982512000017,450425.93369295052,"Summer",173461.92292000001,53367.276184000002,76296.098442999995,1464.4741125999999,55357.877883000001,22680.766414000002,6320.6603948000002,37646.424997000002,3053.2304963000001]
[6267,"2012-03-24","KW60MN14 ",5960062.1000691233,2011400.05418396,1464644.4653674387,94248.484514033771,452507.10430248739,"Winter",200551.31651999999,59504.167265999997,73202.922648000007,1405.101799,55950.672292000003,28129.194555999999,5357.4174853000004,1354.3257784,0]
[6269,"2012-03-31","KW60MN17 ",5857087.7990827579,2011238.5804362132,1428653.7741442558,104781.26212841428,477803.54416354303,"Winter",180224.47029,52803.557011999997,72904.956141999995,1399.3824471999999,52120.308419000001,24479.961037000001,5675.7999399,1354.3257784,0]
[6272,"2011-10-30","KW60MN16 ",6111867.2133109085,2011034.9510277139,1464061.7595808392,83839.253612999993,463133.93783387478,"Summer",201073.65664999999,46439.599095999998,100319.94822999999,1925.6026211999999,55494.676592999997,32196.671891000002,5598.3386753000004,19170.103298999999,509.29580915000003]
[6275,"2011-08-16","KW60MN24 ",5960504.3331434987,2010814.0691531664,1482406.6187621292,111052.111657,417355.33873403736,"Summer",151536.94949,56223.800606999997,70921.121541,1361.3035090000001,53807.492506000002,32395.439310999998,6415.3081855999999,49040.112815,3053.2304963000001]
[6279,"2012-01-23","KW60MN03 ",5962120.7146460814,2010356.939184403,1412968.2262176592,81481.936546500729,515906.7764202432,"Winter",218614.09536000001,52088.951095999997,77109.569310999999,1480.0883713999999,57136.261109999999,29230.370574,6244.7024428000004,742.46966563000001,3053.2304963000001]
[6282,"2011-08-10","KW60MN07 ",6022062.0371932015,2010226.9949425415,1479649.5564006984,106010.351251,424567.08729084302,"Summer",92350.357227,43391.265895999997,78951.111382000003,1515.4360595000001,55677.074871999997,35540.159611000003,7256.9401607,46365.878295000002,0]
[6283,"2012-04-27","KW60MN17 ",6176950.9028683929,2010213.5917167955,1468874.907744285,98916.543845555265,442422.14012695517,"Summer",110216.58551,67252.934645999994,95697.400246999998,1836.8745999,56315.468850999998,29789.641352999999,6803.0343522000003,7467.6597125999997,0]
[6288,"2011-10-08","KW60MN17 ",6153059.9134074245,2009798.9241888905,1465320.6684522524,86113.416482000001,458364.83925463812,"Summer",175031.15839,54061.270042999997,104409.3922,2004.0979173000001,54172.289064999997,37156.112299,5669.1366056999996,19170.103298999999,0]
[6290,"2011-12-16","KW60MN04 ",6165826.3875291264,2009432.5252369372,1403247.1287382301,81667.605790000001,524517.7907087073,"Winter",244912.75055,55870.129021000001,91937.182436999996,1764.6986727999999,58002.652937999999,32561.264653999999,6642.8976290000001,816.33821894000005,3053.2304963000001]
[6294,"2011-09-04","KW60MN13 ",6452451.4772565989,2008927.0450385599,1456967.7514267513,100009.60763099999,451949.68598080869,"Summer",144345.26586000001,56615.080999999998,82404.568148000006,1581.723827,54673.884334000002,24332.574207000001,6137.1749135,35351.449239000001,0]
[6297,"2012-02-19","KW60MN04 ",6037114.4491398074,2008770.8813229201,1432397.7023186618,85840.08259867593,490533.09640558221,"Winter",198844.9037,54606.896625000001,65988.427972000005,1266.622363,41586.807766999998,25813.131889,5777.2346490999998,747.06969021999998,3053.2304963000001]
[6300,"2012-02-11","KW60MN24 ",6014452.0828708019,2008644.7217072072,1436459.8247425344,79961.059089047296,492223.83787562547,"Winter",212569.06086,58558.686394999997,69743.803383000006,1338.7053421000001,55449.077022999998,26211.550868999999,5882.0585856999996,747.06969021999998,3053.2304963000001]
[6304,"2012-02-17","KW60MN02 ",6086062.9564681062,2008499.4380990039,1413751.5635508986,73872.270681783761,520875.60386632162,"Winter",225040.34998,55007.149401000002,79345.564731000006,1523.007439,57455.458099000003,33317.896448,6298.9334543000004,747.06969021999998,3053.2304963000001]
[6307,"2011-11-22","KW60MN01 ",6072742.3329496244,2008185.7242167538,1426245.3963211009,78838.708262000015,503101.61963365297,"Winter",218822.47393000001,50219.485153000001,89331.20104,1714.6778674,57045.061970000002,35310.846906999999,5685.5308462000003,4955.8928413000003,3053.2304963000001]
[6309,"2012-05-15","KW60MN07 ",6358589.903539259,2008079.1212932887,1455269.4377550846,119118.53602590557,433691.14751229848,"Summer",109308.97662,47498.343440999997,84993.106069999994,1631.4098116,48335.544114999997,34851.779334999999,7187.3577472999996,21356.368259999999,0]
[6312,"2011-09-11","KW60MN10 ",6066503.7508256836,2007763.9338003315,1443847.117964135,98439.552980000008,465477.26285619667,"Summer",156786.85777,52424.989635999998,91449.869881999999,1755.3448966999999,53351.496806000003,29980.096827000001,6737.7892006000002,36319.591670000002,0]
[6315,"2011-11-30","KW60MN03 ",5953975.1608024128,2007655.8333192428,1464318.9658863307,79755.064308000001,463581.80312491202,"Winter",218151.42520999999,51097.350186999996,95349.598177000007,1830.1986735999999,56725.864979999998,33101.474167,6468.6148622000001,4955.8928413000003,3053.2304963000001]
[6319,"2011-10-23","KW60MN09 ",5894093.7350520669,2007229.1050166283,1478541.2454139458,93640.614106000008,435047.24549668247,"Summer",168991.86830999999,39333.258478000003,98493.018897999995,1890.5354190999999,53807.492506000002,30573.578985,5223.3229564000003,19170.103298999999,0]
[6322,"2011-08-16","KW60MN07 ",6190447.6397258257,2006281.7358901717,1482633.4783195092,110830.988428,412817.2691426627,"Summer",104750.15896,46730.592548000001,72145.463592,1384.8042813,45097.974650999997,32938.973243,6979.1928737999997,47145.753217999998,71.849863939000002]
[6325,"2012-04-29","KW60MN21 ",6207389.7056313222,2005881.3031202613,1453768.8359378313,99845.066099942036,452267.40108248801,"Summer",162873.22670999999,51059.799224000002,73062.228749000002,1402.4012341,54537.085623999999,27159.884300999998,5835.2053219999998,7467.6597125999997,2697.0061369]
[6330,"2012-06-24","KW60MN16 ",7475439.7622209601,2005450.2743710661,1445875.0081892074,106952.45696526364,452622.80921659496,"Summer",136005.92623000001,55936.178225000003,81831.993845999998,1570.7334846000001,55905.072721999997,30681.908328000001,5982.6383707000005,36796.356734000001,0]
[6333,"2012-04-23","KW60MN22 ",6258421.5052672848,2005270.5209237393,1481680.1442785233,96575.269356366029,427015.10728885001,"Summer",207643.80809999999,60789.702074000001,94890.558841999999,1821.3875911,25490.159585000001,34057.735818000001,7146.2959638000002,7467.6597125999997,3053.2304963000001]
[6334,"2011-07-28","KW60MN06 ",6520034.0427930672,2005246.7772988654,1474327.9496378039,104181.503606,426737.3240550615,"Summer",87655.135920000001,49557.1469,66456.563154000003,1275.6080368,55950.672292000003,34437.60845,6608.1589021,40749.525334999998,1831.5142378999999]
[6337,"2012-06-23","KW60MN22 ",7150654.0518227676,2004918.7038325863,1428956.9195727541,116353.91390416026,459607.87035567209,"Summer",125006.81084000001,58414.313627000003,80170.694858999996,1538.8454928000001,55357.877883000001,32174.737598,5764.1500677000004,43375.055139999997,3032.5505136000002]
[6340,"2011-10-15","KW60MN14 ",6257159.1499975305,2004790.6421562633,1458905.6250612631,90244.200970999998,455640.81612400047,"Summer",159906.46325999999,54117.731459000002,100238.92098,1924.0473346000001,55357.877883000001,34435.159979999997,5738.8984675000002,19170.103298999999,0]
[6344,"2012-06-23","KW60MN17 ",7563300.5684050843,2004522.1817052497,1418589.7596895311,106865.32570523393,479067.09631048475,"Summer",137627.76243,55613.739657999999,86139.814377999995,1653.4204342999999,55768.274012000002,33858.363593000002,5777.5173676000004,37082.823047999998,0]
[6347,"2011-08-13","KW60MN09 ",6252758.8459582571,2004095.1475188432,1453934.3654306422,117142.94867499999,433017.83341320109,"Summer",155068.26719000001,53814.169602000002,79521.559878999993,1526.3855977999999,56133.070571999997,29631.721213000001,6592.3131677000001,45162.908739999999,0]
[6351,"2011-12-01","KW60MN01 ",5978659.7529064538,2002693.9308232833,1453426.7241687661,77680.941136000009,471586.26551851735,"Winter",217706.76204,54352.017655000003,97715.739767999999,1875.6158467,57455.458099000003,33787.157092000001,6804.7272720000001,816.33821894000005,3053.2304963000001]
[6355,"2012-01-31","KW60MN02 ",6011522.1405900912,2002451.5763626657,1430334.2142854512,82258.796880948459,489858.56519626605,"Winter",206593.80736999999,53518.849031999998,80047.373242000001,1536.4783821000001,56087.471001999998,31630.343924000001,6709.6731796000004,742.46966563000001,3053.2304963000001]
[6358,"2012-02-02","KW60MN02 ",5978201.9981760113,2002325.7928193714,1426567.5061990311,77792.454005586405,497965.83261475392,"Winter",213835.62226,52782.241176000003,86641.800765000007,1663.0558689,57957.053368000001,31275.472838000002,6622.1576606999997,747.06969021999998,3053.2304963000001]
[6359,"2012-06-24","KW60MN14 ",7425826.5932332939,2002091.0383602746,1443485.631821915,104716.96525717819,453888.44128118135,"Summer",136461.47414000001,55448.913907000002,82652.704026000007,1586.4866992,55677.074871999997,30848.205501,5796.5119341,37736.507785000002,0]
[6362,"2011-11-16","KW60MN24 ",6040269.3374866974,2001414.8873459578,1405163.0782254611,80101.880493000004,516149.92862749682,"Winter",220466.56713000001,59210.231759000002,100869.85474,1936.1578641000001,57455.458099000003,36268.688807999999,6691.3693248,4955.8928413000003,3053.2304963000001]
[6365,"2012-06-08","KW60MN21 ",6956826.7719130637,2001038.9110545197,1451482.0871953918,117115.35873593167,432441.46512319631,"Summer",130411.5007,48307.699258000001,76981.146703999999,1477.6233491,55677.074871999997,37613.146741999997,6349.1624009999996,31465.291799999999,509.29580915000003]
[6369,"2011-07-27","KW60MN06 ",6505434.5723032989,2000180.6760037267,1468257.5212554117,103198.087527,428725.06722131511,"Summer",88734.409914999997,50377.543053000001,68707.919993000003,1318.8219609,56224.269711000001,35109.731374000003,6503.8005190000003,40996.888160000002,1780.6270629999999]
[6372,"2012-03-06","KW60MN04 ",5691562.0993629787,1999482.0669995197,1432032.4047135091,77409.953496407456,490039.70878960303,"Winter",231918.26282999999,51065.095243999996,78367.201979000005,1504.2281442000001,54673.884334000002,32287.156093000001,6330.3862218000004,1354.3257784,3053.2304963000001]
[6377,"2011-09-18","KW60MN14 ",6081759.9293737169,1998327.2145318703,1457563.7471286624,90350.849709999995,450412.61769320787,"Summer",173895.18202000001,49166.390324,107047.53833,2054.7361123000001,54856.282614000003,29219.342008,6322.7122135,30217.333901999998,0]
[6380,"2012-04-21","KW60MN10 ",6008173.4010222377,1997996.1954133804,1472043.3655718395,96156.838261256446,429795.99158028443,"Summer",182445.33789,50297.702667999998,71189.960393999994,1366.4637668,35978.060666999998,27440.535744000001,5414.6246503000002,7467.6597125999997,0]
[6383,"2012-04-20","KW60MN19 ",6132230.6126306402,1997640.5041317781,1483121.0815844554,90986.518964450472,423532.90358287224,"Summer",135541.16816,52254.784312000003,95995.459419000006,1842.5957304999999,33880.480451000003,32092.183268000001,6409.3626494,7467.6597125999997,0]
[6384,"2012-04-20","KW60MN22 ",6066259.9733567731,1997369.168201352,1480335.6705801683,94878.635306536351,422154.86231464718,"Summer",142353.67720000001,65032.245883000003,88466.314922000005,1698.0767126999999,35202.867978000002,30541.920483000002,6364.6881741999996,7467.6597125999997,3053.2304963000001]
[6387,"2012-06-23","KW60MN09 ",6678214.7088620476,1997188.9571676508,1442125.4697072636,110173.0294776568,444890.4579827303,"Summer",105174.91802,45851.736117,80591.743105999994,1546.9273510999999,55677.074871999997,34873.060218999999,5396.7118601000002,40462.241301000002,0]
[6390,"2012-06-26","KW60MN07 ",6653266.3075382439,1996805.3344974318,1452065.0552778693,109417.60983664548,435322.66938291688,"Summer",86110.616318,48195.547689999999,89760.506890999997,1722.9182272,55768.274012000002,39528.273775000001,6739.4347200000002,42589.603817000003,0]
[6393,"2011-08-29","KW60MN24 ",6161922.090290186,1996609.756563985,1432967.8269826241,109822.797781,453819.13180036104,"Summer",142909.42402999999,55650.876065999997,82033.818335999997,1574.6074277,56634.665841000002,34701.785550000001,7518.2119470999996,45229.648099999999,3053.2304963000001]
[6398,"2012-05-06","KW60MN09 ",5835188.3936733557,1995916.4809960462,1454285.6010782213,109268.09134668618,432362.78857113863,"Summer",140839.74509000001,42767.275580000001,60646.482864999998,1164.0857919,55494.676592999997,25193.37919,5336.4675956999999,21356.368259999999,0]
[6402,"2012-05-05","KW60MN12 ",6063572.2016917607,1995003.71331275,1445693.4041525372,107921.06346420063,441389.24569601222,"Summer",158603.38978,53892.433714999999,64706.92699,1242.0244471000001,55722.674442000003,25252.799083999998,5548.4618553999999,21356.368259999999,0]
[6405,"2011-12-31","KW60MN06 ",5914631.1006008955,1994738.8265320861,1427543.0160565688,80379.312980000002,486816.49749551743,"Winter",205687.56568999999,51342.021143999998,73066.624007999999,1402.4855994,56725.864979999998,21440.350581999999,6218.8820212999999,816.33821894000005,3053.2304963000001]
[6408,"2011-10-07","KW60MN23 ",5972096.6538425125,1994491.3175139159,1457886.4655400896,82704.254642999993,453900.59733082628,"Summer",121683.96709999999,54025.051119000003,95712.912091000006,1837.1723437999999,56041.871432,37411.682979999998,6184.1026660999996,19170.103298999999,3053.2304963000001]
[6409,"2012-03-17","KW60MN17 ",6108665.968325872,1994442.3788263178,1467804.4503379869,86218.421864383825,440419.50662394712,"Winter",154091.20584000001,50912.616158999997,75113.469849000001,1441.7740139,56178.670141000002,25710.530436000001,5362.3151035000001,1354.3257784,0]
[6412,"2011-12-21","KW60MN02 ",6065257.1714086793,1993750.8749216278,1428612.7432739553,80102.279963000008,485035.85168467258,"Winter",228058.82386999999,54090.067149000002,90463.706770000004,1736.4158769999999,44140.383683,33527.772102000003,6076.9611219999997,816.33821894000005,3053.2304963000001]
[6418,"2012-03-03","KW60MN18 ",6597643.6999971159,1992630.801841618,1440421.7593238715,88462.452348548759,463746.590169198,"Winter",173191.17173999999,56689.842283999998,78448.825524999993,1505.7948766,54856.282614000003,24597.574358999998,5781.9646694000003,1354.3257784,3053.2304963000001]
[6420,"2011-08-10","KW60MN24 ",6043924.7601796929,1992249.8977339431,1462986.8789948996,110640.936743,418622.08199604333,"Summer",134217.72420999999,58063.158294000001,81438.596107999998,1563.1823671,55677.074871999997,34233.871544000001,7012.6720666000001,53877.206801,3053.2304963000001]
[6423,"2011-09-18","KW60MN15 ",6119634.8766610054,1991457.3130666714,1450143.0947218523,89954.00757999999,451360.21076481912,"Summer",158684.79741999999,48496.977321999999,104486.72521,2005.5822945,54537.085623999999,29578.930014000001,6446.8980805000001,30217.333901999998,0]
[6427,"2011-10-29","KW60MN15 ",6137016.5283517372,1990450.1028375048,1436992.3695966969,83995.116657999999,469462.61658280785,"Summer",150296.58777000001,58315.647948999998,103384.8864,1984.4329244999999,56269.869280999999,36320.327315000002,5656.6834829999998,19170.103298999999,0]
[6430,"2011-11-16","KW60MN02 ",5985804.2468145173,1989941.4689681476,1395852.8106670179,72160.626598000003,521928.0317031297,"Winter",221305.12630999999,51270.611648999999,97421.196964000002,1869.9622115,57455.458099000003,36791.092242999999,6892.2851141000001,4955.8928413000003,3053.2304963000001]
[6433,"2011-10-08","KW60MN16 ",6137987.2679443499,1989660.889683553,1453913.7517206979,82168.055009999982,453579.08295285515,"Summer",158457.41561,56480.643088999997,103659.79837,1989.7097536000001,54126.689494999999,37283.991295,5702.9205238000004,19170.103298999999,0]
[6435,"2011-09-23","KW60MN07 ",6174714.5047660377,1988993.4832554935,1437642.830152944,89073.35794799999,462277.29515454941,"Summer",146686.91480999999,52821.643174999997,99326.896943999993,1906.5413857999999,55585.875732,39698.277978999999,7286.7220152999998,30217.333901999998,2391.2731625000001]
[6438,"2012-01-07","KW60MN04 ",5867469.3833853882,1988002.8738598861,1411795.6983625572,86109.392643561077,490097.7828537678,"Winter",233747.89467000001,52018.295190999997,81734.835030999995,1568.8685587,56817.064120000003,28146.557564999999,6444.1758640999997,742.46966563000001,3053.2304963000001]
[6442,"2011-07-27","KW60MN01 ",6412504.7994045857,1987696.2532663967,1450361.7485614086,108304.19433699999,429030.31036798825,"Summer",106579.51523999999,49677.150908000003,69556.056884000005,1335.1016205999999,56497.867130999999,33539.869378000003,6664.7159859000003,43015.389496000003,3053.2304963000001]
[6445,"2012-04-28","KW60MN09 ",5966319.964864837,1987515.7980387125,1454302.9492024023,108715.08450173783,424497.76433457242,"Summer",138462.29415,47475.493109000003,70943.764528999993,1361.7381324,56497.867130999999,24657.626206000001,5158.5332005999999,7467.6597125999997,0]
[6448,"2011-08-04","KW60MN01 ",5673131.2040806534,1987094.3780709626,1450754.3433390704,105257.823796,431082.21093589207,"Summer",140228.35574,59335.091523000003,91744.341837,1760.9971720000001,54947.481754,32616.649409000001,7103.9881914999996,34998.161045000001,3053.2304963000001]
[6452,"2011-07-16","KW60MN01 ",6248739.0536138508,1986980.0282118649,1427450.0220246343,107510.350131,452019.65605623071,"Summer",126908.82034999999,49000.656730000002,76022.878110000005,1459.2297539000001,56224.269711000001,33888.533168000002,5825.5421323,50623.028710999999,3053.2304963000001]
[6455,"2012-01-02","KW60MN01 ",5868988.8087394144,1986830.5497916681,1427280.1653540758,80506.592795880744,479043.79164171149,"Winter",261344.10149,49184.927999,65260.491566999997,1252.6499051000001,56452.267561000001,16491.483617000002,6171.2432429,742.46966563000001,3053.2304963000001]
[6456,"2012-02-17","KW60MN04 ",6110936.4097996019,1986823.4942669594,1386838.3349781523,75372.480689384101,524612.67859942291,"Winter",211513.04014,55853.087278999999,78046.596848000001,1498.0742527,57911.453798000002,33134.075127999997,6337.1088089000004,747.06969021999998,3053.2304963000001]
[6460,"2011-09-26","KW60MN07 ",6334139.3633735608,1986205.8772776991,1458167.800282733,83692.577462000001,444345.49953296589,"Summer",148814.71634000001,53211.485481000003,100903.01227000001,1936.7943101000001,56634.665841000002,36546.863137,6756.4993569999997,30217.333901999998,2594.8218619999998]
[6463,"2011-10-10","KW60MN23 ",5935254.8048929423,1985857.5843009204,1483672.6782948636,79292.366251999993,422892.5397540569,"Summer",162562.20095999999,46180.368906000003,101771.30555,1953.4608639999999,45189.173791000001,38806.580589999998,6216.7692568000002,19170.103298999999,3053.2304963000001]
[6467,"2012-01-31","KW60MN03 ",5997416.6161887804,1984970.3540199355,1420719.4889158669,80514.784280476291,483736.0808235922,"Winter",206041.25070999999,54817.993454000003,79487.226857000001,1525.7265887999999,56133.070571999997,31305.823989,6804.3209715000003,742.46966563000001,3053.2304963000001]
[6470,"2011-09-09","KW60MN24 ",6193677.1025083102,1984532.1257089002,1420192.2546466023,95882.354991,468457.51607129787,"Summer",143535.77856000001,60376.230137999999,96282.397184000001,1848.10339,53533.895085999997,35715.100644999999,6568.3211005000003,49503.156846999998,3053.2304963000001]
[6473,"2012-02-14","KW60MN03 ",5988603.0624026619,1984216.3825592964,1395961.4631869306,77040.019218998932,511214.90015336691,"Winter",207392.91865000001,51261.809587000003,85199.892265000002,1635.3789927,56133.070571999997,32504.048568999999,6572.4179682000004,747.06969021999998,3053.2304963000001]
[6477,"2011-11-02","KW60MN04 ",5879797.130686475,1984007.7367622058,1446240.4518959348,77797.320275999999,459969.96459027106,"Winter",201115.11827000001,44709.168124000003,102964.86504999999,1976.3707772,53214.698097,38824.198858999996,6893.2196053999996,4955.8928413000003,3053.2304963000001]
[6481,"2012-02-01","KW60MN01 ",6054705.8153808182,1983608.3976192954,1416262.5358272102,77166.296836927198,490179.56495515798,"Winter",199739.26436999999,59223.786741000004,80193.307188000006,1539.2795277,55449.077022999998,32884.119766999997,6653.0348359,747.06969021999998,3053.2304963000001]
[6482,"2012-02-08","KW60MN01 ",6113806.5498970775,1983467.2399324074,1404535.9402960304,76372.749151350115,502558.55048502679,"Winter",184507.97938,53142.095736000003,83282.047533999998,1598.5667045,51117.117879999998,30782.409081000002,6920.9682636999996,747.06969021999998,3053.2304963000001]
[6485,"2011-12-02","KW60MN01 ",5963643.1682437062,1983086.7714103856,1431321.363456415,73973.378459,477792.02949497045,"Winter",237765.34776,57905.150203999998,96126.678654999996,1845.114433,57136.261109999999,32720.654310999998,5696.7447511999999,816.33821894000005,3053.2304963000001]
[6488,"2012-06-07","KW60MN23 ",6238006.504075354,1982279.7184957918,1446887.4952873515,106434.23559483222,428957.98761360825,"Summer",167312.70443000001,54002.930275999999,77853.004126,1494.3583152000001,56178.670141000002,40761.611345999998,5743.8824249999998,31743.479090000001,3053.2304963000001]
[6492,"2012-06-08","KW60MN20 ",6920367.9229740435,1981498.939628185,1430847.3517483829,115143.74548246757,435507.84239733458,"Summer",122140.51127,47420.278571000003,77741.181469000003,1492.2119226,55813.873582,38509.912848,6393.2257327999996,30606.417119999998,0]
[6495,"2012-06-04","KW60MN23 ",6585410.9436599594,1981238.4891315009,1434132.0350093965,107573.48254939182,439532.97157271241,"Summer",144846.55721,47499.079356000002,72150.663105,1384.904084,56680.265411,40979.928774,5936.9752294,35094.205871999999,3053.2304963000001]
[6498,"2012-01-29","KW60MN24 ",6059956.7222411623,1980658.7531196335,1449888.8563717792,84805.300388345175,445964.59635950893,"Winter",198322.83914,53158.745417999999,68849.100187000004,1321.5318602,55357.877883000001,27231.101768,5691.2393738000001,742.46966563000001,3053.2304963000001]
[6502,"2011-09-23","KW60MN23 ",5987906.2815416465,1980454.7514533724,1434922.478683166,89958.917983000007,455573.35478720657,"Summer",149944.26996999999,59756.248792999999,100546.64635,1929.9540039999999,55996.271862000001,37121.222070999997,7142.6070904999997,30217.333901999998,3053.2304963000001]
[6506,"2012-01-01","KW60MN05 ",5893732.6161593618,1980222.0867635845,1431271.3907010977,86991.923363681359,461958.77269880532,"Winter",206100.39074999999,52012.178096000003,67466.973282999999,1295.0024685999999,54491.486054000001,16894.455979999999,6036.5951285000001,742.46966563000001,3053.2304963000001]
[6507,"2012-04-17","KW60MN06 ",6004989.8423195118,1980194.3607997652,1425187.0107215554,94261.780881439772,460745.56919676997,"Summer",168824.62281999999,49075.980394999999,82334.983252000005,1580.3881718,34838.071419,32187.191948,6540.8907117999997,7467.6597125999997,3053.2304963000001]
[6510,"2011-08-03","KW60MN07 ",6126284.3873334052,1980031.2103955909,1457371.4661843395,105913.06563799999,416746.67857325153,"Summer",112588.44040000001,52031.583444000004,84445.383581999995,1620.8964902,47925.147986000004,35062.262418999999,7727.4162735999998,30332.801813999999,0]
[6513,"2012-01-10","KW60MN04 ",6140605.6991358828,1978954.0295235957,1424923.6167994379,80867.170925927843,473163.24179822998,"Winter",191531.67561999999,49064.588168000002,86631.193211999998,1662.852261,55813.873582,31523.179654,6838.8971764999997,742.46966563000001,3053.2304963000001]
[6517,"2011-10-02","KW60MN10 ",5950733.204610223,1978254.0625495333,1437396.6083793908,92366.856839999993,448490.59733014251,"Summer",168803.00172,40362.860255,87006.575402999995,1670.057577,54628.284764000004,27804.980834000002,5797.6292615000002,19170.103298999999,0]
[6520,"2011-08-05","KW60MN01 ",5740143.4737121183,1978108.794026426,1424119.2130183282,103738.146246,450251.43476209795,"Summer",131450.78627000001,62321.537136999999,77041.343515999994,1478.7788035999999,55175.479603,33049.442153000004,7184.0700962000001,38153.220949000002,3053.2304963000001]
[6523,"2011-07-18","KW60MN07 ",6952684.7756536063,1977851.4376682122,1436027.5040033034,111165.50836199999,430658.42530290887,"Summer",115993.85764,43211.945183999997,71131.999851,1365.3512366,50022.728201999998,34065.038775000001,6355.2162845000003,45815.159941999998,0]
[6528,"2011-07-22","KW60MN07 ",6661367.7565917429,1977201.5472813305,1443407.0815145248,107343.86574499999,426450.60002180561,"Summer",110538.60199,42793.770138,78407.994632999995,1505.0111434999999,54217.888635000003,36877.546452000002,5722.1791862999999,49397.247889999999,0]
[6531,"2012-06-18","KW60MN24 ",6279658.8290837239,1977051.3706677316,1440613.2909729546,109563.48392430527,426874.59577047179,"Summer",107522.25840999999,45203.663052000004,71297.276062999998,1368.5236496,56953.862829999998,34390.132643999998,6161.5123364999999,40548.113611000001,3053.2304963000001]
[6532,"2011-07-12","KW60MN06 ",6466320.6983629884,1976914.8145440905,1444530.1975238272,107224.308047,425160.30897326313,"Summer",87158.666914000001,49335.986669999998,77756.573548,1492.5073676,42909.195294999998,35001.231473,6288.0344335,37309.569245999999,1017.3194389]
[6535,"2012-06-24","KW60MN11 ",7001086.2950505512,1976232.8029850295,1430564.1239912622,109673.60338300253,435995.07561076479,"Summer",126770.57255,49486.67899,77710.057881999994,1491.6145174000001,55403.477453,29660.047048,5548.2824059000004,39341.981021,0]
[6538,"2012-01-02","KW60MN04 ",5871747.8771618539,1975902.4187849455,1413037.2593432725,77891.486855282492,484973.67258639046,"Winter",223152.43658000001,49829.658915,69137.856708000007,1327.0744299,56224.269711000001,17930.404533000001,6829.1459560000003,742.46966563000001,3053.2304963000001]
[6542,"2011-08-19","KW60MN07 ",6258133.5385456877,1975117.5800235139,1441468.2440637706,111120.268652,422529.06730774319,"Summer",105500.87716,51495.314876999997,72946.952764000001,1400.1885560999999,55175.479603,34843.905726999998,6940.5739737000004,43203.198085000004,187.30720972]
[6544,"2011-09-08","KW60MN24 ",6255244.2095475402,1974804.4993495042,1440284.6658241467,98555.919665999987,435963.91385935771,"Summer",134948.79264999999,58399.940782999998,89512.200263999999,1718.1520774999999,51618.713149000003,36430.217397,6991.8288315999998,45421.004655999997,3053.2304963000001]
[6550,"2011-09-04","KW60MN12 ",6386121.0420940574,1974205.331235993,1425822.6027611457,104343.66442,444039.06405484723,"Summer",163945.32547000001,53158.550994999998,78969.695785000004,1515.7927798999999,55084.280463000003,23902.818701,6110.1355893999998,36059.614149000001,0]
[6553,"2011-09-07","KW60MN24 ",6257061.7599896453,1973472.8046654686,1436252.7688511987,98887.928638999991,438332.10717526992,"Summer",144892.53383,57331.304965000003,87727.091643000007,1683.8876077,53488.295515999998,34593.045676000002,7410.8266223000001,50367.613117000001,3053.2304963000001]
[6556,"2011-12-18","KW60MN06 ",6125983.0488899089,1972821.0995667991,1356400.8102000374,84273.937520000007,532146.35184676189,"Winter",231075.20985000001,56920.052022999997,83600.276419999995,1604.6749850000001,57136.261109999999,25650.756345999998,6948.2733754000001,816.33821894000005,3053.2304963000001]
[6557,"2012-03-24","KW60MN15 ",5922385.7992553758,1972792.1279434252,1441058.1346600961,90843.165597490442,440890.82768583851,"Winter",166355.73798000001,55813.208059999997,73374.431018000003,1408.3938359000001,55540.276163000002,27945.167936000002,5300.2661865999999,1354.3257784,0]
[6560,"2011-10-15","KW60MN17 ",6249881.723278177,1972392.2283556999,1439914.7873310309,89515.813300000009,442961.627724669,"Summer",153462.81638999999,55850.485867000003,100764.03354999999,1934.1266673,55403.477453,34065.850627,5427.4891518000004,19170.103298999999,0]
[6565,"2011-07-19","KW60MN01 ",6685406.6784906276,1971166.0269447807,1430291.8512241524,100129.39064,440744.78508062835,"Summer",103924.04251,45736.081721000002,67840.304879999996,1302.1684243,42407.600026,33390.909576999999,6810.6389497999999,51588.460729999999,3053.2304963000001]
[6568,"2012-03-18","KW60MN24 ",5830015.6753120106,1970414.2045384515,1441873.8594090873,82437.549047393812,446102.79608197056,"Winter",191630.60271000001,49689.208351000001,68853.394283999995,1321.6142837,57546.657239,26989.792934000001,5528.2754736999996,1354.3257784,3053.2304963000001]
[6571,"2011-11-18","KW60MN03 ",5830823.054233727,1970031.2870139461,1421120.7056082408,75898.978279999996,473011.60312570544,"Winter",203822.56641,49023.878233000003,98134.045929,1883.6450718000001,55996.271862000001,35260.294010999998,5956.9601548000001,4955.8928413000003,3053.2304963000001]
[6575,"2011-11-05","KW60MN02 ",5801310.1408831738,1969502.1864921006,1427316.1333027685,84701.467822999984,457484.58536633221,"Winter",189615.86676999999,49875.171582000003,92147.143043999997,1768.7287855,55905.072721999997,31177.236112999999,5768.1521312000004,4955.8928413000003,3053.2304963000001]
[6578,"2012-05-20","KW60MN10 ",6084355.4629361667,1968976.8393620071,1419313.2817421383,115175.89477041971,434487.6628494492,"Summer",110146.81510000001,44751.786940999998,71768.945181999996,1377.5771560000001,54445.886484000002,28878.575126,5077.2848731000004,21356.368259999999,0]
[6581,"2011-07-25","KW60MN02 ",6320266.6243537264,1968242.4845510204,1429707.1471104671,98732.565342000002,439802.77209855331,"Summer",113523.24524,48135.932121999998,66058.934015000006,1267.9756992,56269.869280999999,29357.707993,6023.4309799000002,50493.163045000001,3053.2304963000001]
[6582,"2011-11-04","KW60MN04 ",5800751.250947983,1967968.5356769827,1444300.2303053059,74914.741725,448753.56364667672,"Winter",195804.53315,51074.522351,101379.85724,1945.9471650999999,55996.271862000001,37318.158608999998,6306.0945075,4955.8928413000003,3053.2304963000001]
[6586,"2012-01-07","KW60MN03 ",5812109.6776479855,1966830.87750399,1405724.5994113639,81364.650516619615,479741.62757600629,"Winter",225477.42457,52352.567855000001,78066.805833999999,1498.4621563999999,56680.265411,28472.367791000001,6496.9543499000001,742.46966563000001,3053.2304963000001]
[6590,"2012-04-15","KW60MN12 ",5899812.0453886231,1965973.9783098642,1453680.7045639704,100571.91008965515,411721.36365623854,"Summer",162181.44717999999,42782.961180999999,71528.461305999997,1372.9611609999999,35613.264108000003,24407.470892000001,5282.5751692000003,7467.6597125999997,0]
[6593,"2011-08-06","KW60MN09 ",6082824.6686082687,1965150.622133448,1420092.8755882438,105373.243525,439684.50302020414,"Summer",157228.9031,59451.452912000001,91021.463017000002,1747.1217925999999,55768.274012000002,29041.180400000001,6573.4811220000001,30053.110103999999,0]
[6596,"2011-10-16","KW60MN17 ",6224246.7961773295,1964667.2889727899,1448434.782817476,84358.507743999988,431873.99841131386,"Summer",139489.39136000001,39506.100564,99590.857801000006,1911.6080124,46374.762608999998,33973.475467999997,5404.3909465999996,19170.103298999999,0]
[6600,"2011-10-15","KW60MN15 ",6230028.7784942957,1964217.3623529039,1429996.5975448964,90352.034545000002,443868.73026300746,"Summer",162623.36533,57917.469555000003,101311.27985000001,1944.6308485,55494.676592999997,34254.085349000001,5663.9359537,19170.103298999999,0]
[6603,"2012-03-25","KW60MN17 ",5881307.2690649461,1964092.704800579,1458350.3816494856,98863.166169220087,406879.15698187338,"Winter",136894.89223,43908.615976000001,78189.478443999993,1500.8168097,55494.676592999997,26593.508705,5213.8409089999996,1354.3257784,0]
[6606,"2011-07-11","KW60MN01 ",6032893.785306545,1963567.9536437087,1430754.3909161263,99875.201442999998,432938.36128458235,"Summer",127149.22779999999,45783.771605000002,64339.004120999998,1234.9623098,53214.698097,30019.797546999998,5610.7917980000002,32788.114313999999,3053.2304963000001]
[6607,"2012-06-24","KW60MN23 ",6670335.4612933863,1963538.5247479377,1419571.8072386074,105333.48895010547,438633.22855922492,"Summer",112560.69334,52579.453120999999,66971.740602000005,1285.4966687000001,55813.873582,29894.722974,5380.8458104000001,43755.120538000003,3053.2304963000001]
[6611,"2012-04-21","KW60MN12 ",5999555.0361122647,1963462.7431957617,1434176.6298488155,94699.13253822297,434586.98080872331,"Summer",146944.02562,52909.652542000003,76416.391134000005,1466.7830842999999,35750.062816999998,28002.621888999998,5776.0987003,7467.6597125999997,0]
[6615,"2011-10-22","KW60MN22 ",5921327.6884903181,1963003.8994396504,1441440.3096116486,87760.788466000013,433802.80136200186,"Summer",138481.26560000001,54699.207401,99151.231696000003,1903.1695592999999,55677.074871999997,35534.185497999999,5898.8184972999998,19170.103298999999,3053.2304963000001]
[6618,"2011-07-17","KW60MN24 ",6806258.6259717299,1962592.7574158194,1411676.5305680628,103491.06838699999,447425.15846075671,"Summer",152238.21474,47489.856312000004,56317.432988,1080.9913532,53989.890785000003,29337.626845999999,5912.6124129999998,51009.701699999998,3053.2304963000001]
[6621,"2011-10-09","KW60MN16 ",5989463.747934958,1962093.1228788877,1447519.7255475919,87097.036119000011,427476.36121229577,"Summer",130099.71185000001,41410.888835999998,98120.476626000003,1883.3846142,52074.708849000002,30853.374034,5612.4170009999998,19170.103298999999,0]
[6625,"2012-03-10","KW60MN22 ",6068831.11605372,1961648.4244714789,1422365.3699654795,83446.669334950348,455836.38517104916,"Winter",165731.48196,60055.271435000002,69357.313106000001,1331.2868106999999,55175.479603,26032.615454999999,5788.6127675999996,1354.3257784,3053.2304963000001]
[6628,"2012-06-22","KW60MN01 ",6220299.3557044817,1961194.8845838141,1401360.7138610987,97555.858028177769,462278.31269453745,"Summer",107641.52416,56617.703301000001,79590.043346999999,1527.7001115,54810.683043999998,36590.863670999999,6642.1459715999999,41069.318361999998,3053.2304963000001]
[6632,"2012-05-13","KW60MN23 ",5871728.7267579995,1960675.3228056603,1433466.0527471991,106711.93953499039,420497.33052347088,"Summer",156566.89496000001,49710.974090999996,63022.634904999999,1209.6951117000001,56087.471001999998,27374.748565999998,5278.3851912,21356.368259999999,3053.2304963000001]
[6633,"2011-07-06","KW60MN06 ",6501072.436960483,1960649.620556426,1422049.9024632061,104777.13935200001,433822.57874121977,"Summer",87439.253563999999,44518.212559,74773.346420999995,1435.2454762,55084.280463000003,35131.370138999999,5925.0858497999998,43449.214588000003,813.77073923]
[6636,"2012-01-25","KW60MN05 ",6218639.3812117632,1960462.6838220397,1367379.1184645945,78579.115983349708,514504.44937409554,"Winter",189601.32553,52072.439597999997,87207.085690000007,1673.9062945000001,54810.683043999998,33398.077640000003,7841.5665087999996,742.46966563000001,3053.2304963000001]
[6640,"2011-07-28","KW60MN03 ",6234339.4075508099,1958941.5569781514,1437187.4073146125,101114.659216,420639.49044753885,"Summer",89599.688099999999,47956.654794000002,67594.246694000001,1297.4454324999999,56224.269711000001,33746.021968000001,6555.4413621000003,42310.653861999999,3053.2304963000001]
[6643,"2012-05-10","KW60MN06 ",6019601.0883930074,1958608.0790294232,1422668.4482748897,96698.13857219553,439241.49218233785,"Summer",135380.16522,44411.602852000004,76540.916834000003,1469.1733068999999,54719.483904000001,31879.702358999999,6153.2339558000003,21356.368259999999,1678.8527133]
[6646,"2012-01-02","KW60MN02 ",5799678.0652340641,1957979.0948763315,1409494.6325306725,79622.90533403201,468861.55701162713,"Winter",220634.38495000001,49013.104625,67776.488928000006,1300.9435017000001,56406.667991000002,16784.121717000002,6192.5740394000004,742.46966563000001,3053.2304963000001]
[6650,"2011-08-15","KW60MN07 ",6201591.6199089894,1957330.9063989255,1438298.1556574982,107708.092584,411324.65815742721,"Summer",98233.784673000002,44180.814664999998,76929.364694000004,1476.6294134,55768.274012000002,32609.766556999999,6415.4503912,46564.666048999999,51.466723322]
[6653,"2012-05-28","KW60MN10 ",5944477.1554108206,1956999.1992566369,1407335.893568587,117703.87713043229,431959.42855761765,"Summer",133127.93643,47764.447529999998,64248.878962000003,1233.2323922999999,55312.278313000003,24418.714833000002,4825.5323790000002,21790.817984000001,0]
[6655,"2011-09-06","KW60MN24 ",6130822.4907053085,1956913.0522534854,1423602.5186389331,92825.967514000004,440484.5661005525,"Summer",131970.56154,56451.971314000002,90742.916056000002,1741.7751913,54765.083473999999,35355.689514999998,7111.8094836,39565.165828999998,3053.2304963000001]
[6658,"2012-01-02","KW60MN03 ",5789369.3685999783,1955830.7090990099,1400921.6257958335,78996.766674011451,475912.31662916479,"Winter",221310.82835,49679.726611999999,68991.673471000002,1324.2684992,55996.271862000001,17334.703449000001,6250.2078202000002,742.46966563000001,3053.2304963000001]
[6661,"2012-06-08","KW60MN23 ",6435771.4700210206,1955161.2373249477,1410705.558429904,109797.88367379185,434657.79522125184,"Summer",155797.3113,48940.851559000002,62333.168532999996,1196.4610712000001,55950.672292000003,37287.880516999998,6310.5435020000004,34311.536269999997,3053.2304963000001]
[6665,"2011-11-22","KW60MN02 ",5979357.6098294258,1954590.2672093064,1388411.3483721653,76085.706577999998,490093.21225914091,"Winter",189883.17340999999,49725.525289999998,92478.286257,1775.0849513999999,57045.061970000002,35211.953582000002,5683.9665877999996,4955.8928413000003,3053.2304963000001]
[6668,"2011-10-30","KW60MN08 ",5922705.9529251475,1954075.2265800936,1349443.3188727899,89707.077078999995,514924.83062830387,"Summer",233809.61017,47211.461795000003,97811.971923000005,1877.4629857,55905.072721999997,30643.415583000002,5520.1460696000004,19170.103298999999,0]
[6671,"2011-11-23","KW60MN06 ",6285668.9748533182,1953527.6918647285,1390328.9588365855,83482.243857999987,479716.48917014297,"Winter",155460.36144000001,52696.049101999997,98095.408016999994,1882.9034320000001,56452.267561000001,36518.161658999998,6954.0834781000003,4955.8928413000003,3053.2304963000001]
[6674,"2012-06-21","KW60MN01 ",5990337.6155078048,1953290.0692079021,1412907.9980861691,109453.38562561183,430928.68549612112,"Summer",82524.133042000001,52032.973327,73324.384284999993,1407.4332082000001,54582.685193999998,36944.078228999999,6285.6372577000002,43366.637208,3053.2304963000001]
[6679,"2011-08-26","KW60MN02 ",5947968.8632160518,1952686.139288831,1411175.2437485897,104361.06018,437149.8353602413,"Summer",115966.85247,59326.021126,76331.347445000007,1465.1507036,54947.481754,35203.191649,7118.7775431,51497.018829000001,3053.2304963000001]
[6680,"2012-05-26","KW60MN14 ",6111247.422285622,1952676.9795296928,1399578.7296093588,113066.06122047039,440032.18869986356,"Summer",140021.74713999999,57170.983079999998,82324.033398,1580.1779936,54947.481754,33192.367807000002,4870.5420524000001,22740.448149,0]
[6683,"2012-03-10","KW60MN17 ",5991807.161095785,1951812.9701480356,1423322.9546411047,83917.431247505141,444572.58425942581,"Winter",164679.58408999999,50493.036768999998,73416.882473000005,1409.2086752,54856.282614000003,26472.276815000001,5502.4279647000003,1354.3257784,95.625482946999995]
[6686,"2011-10-15","KW60MN22 ",6033482.0471673952,1951442.1846458244,1424185.4271055043,84146.918538000013,443109.83900232008,"Summer",127778.86788999999,51554.355210000002,96370.489203999998,1849.7942822,55312.278313000003,31524.676656,5979.9364696000002,19170.103298999999,3053.2304963000001]
[6690,"2011-10-16","KW60MN16 ",6174376.8744050255,1950829.556831195,1438829.8779993118,82366.375151,429633.30368088337,"Summer",139417.93578,40170.111497999998,98438.767059000005,1889.4940759999999,47013.156587999998,32594.039298,5503.3658427,19170.103298999999,0]
[6695,"2012-06-09","KW60MN22 ",6186205.0185585693,1950228.0366825433,1412844.6519724526,108032.77000560735,429350.61470448331,"Summer",137579.18916000001,49428.972303000002,68899.482447000002,1322.4989281999999,54673.884334000002,30042.340081999999,5841.6519627999996,29867.96457,3053.2304963000001]
[6698,"2012-04-08","KW60MN20 ",6014142.8462997964,1949921.7238122898,1435807.0073376561,98937.385465975967,415177.33100865758,"Summer",156331.46883999999,42696.598786000002,69957.211003000004,1342.8016189,48289.944544999998,21067.450141000001,5708.1465693,7467.6597125999997,1018.167559]
[6701,"2011-07-08","KW60MN06 ",6384802.9506985331,1948799.7674774686,1425117.6383146113,105148.049704,418534.07945885754,"Summer",78833.773142000005,44762.774253000003,69848.555179999996,1340.7160123000001,55585.875732,34172.732782999999,5519.3334674999996,42401.200167000003,864.65791420000005]
[6704,"2011-11-04","KW60MN02 ",5741030.7334363647,1948476.6614626192,1427993.5051219061,75446.796106000009,445036.36023471318,"Winter",191724.35769999999,49773.295513999998,100187.00129,1923.0507562,56087.471001999998,36341.003687999997,6051.6079467,4955.8928413000003,3053.2304963000001]
[6705,"2011-11-24","KW60MN06 ",5827413.9631439131,1948399.5904822326,1379881.987275379,82298.519723999998,486219.08348285366,"Winter",221315.71429,49876.947097999997,80274.415271999998,1540.8363661000001,55494.676592999997,19850.261373000001,6107.7993594,4955.8928413000003,3053.2304963000001]
[6708,"2011-10-05","KW60MN06 ",6135270.8260991462,1947983.4435082134,1444168.8470573041,85148.677385999996,418665.91906490916,"Summer",107111.82863,47441.534955000003,99946.878779000006,1918.4416974999999,56406.667991000002,37851.002332999997,6740.0035403000002,19170.103298999999,3053.2304963000001]
[6711,"2011-11-10","KW60MN01 ",5899748.2190991817,1947600.8616367106,1411783.717230014,84810.160353999992,451006.98405269644,"Winter",231167.53403000001,53696.635247999999,98010.079440000001,1881.2655829,57227.460249999996,35805.043726999997,6600.1750903000002,4955.8928413000003,3053.2304963000001]
[6716,"2012-04-25","KW60MN07 ",6126800.5361468401,1946756.83486349,1441525.6768945644,90965.73387120913,414265.4240977164,"Summer",133783.95637,41573.293137000001,83522.553341000006,1603.1831205000001,40720.415938999999,34743.372506,7590.6570874999998,7467.6597125999997,10.672171419]
[6719,"2011-12-25","KW60MN01 ",5897728.9132319093,1946517.264994689,1372510.6830977185,84017.233142000012,489989.34875497053,"Winter",217978.17032,51112.839759000002,67234.697291000004,1290.5440206999999,56953.862829999998,17106.009319000001,6494.9837899000004,816.33821894000005,3053.2304963000001]
[6723,"2011-08-25","KW60MN02 ",6023720.8414411796,1946022.7427358038,1410488.5512370507,104811.144868,430723.04663075315,"Summer",102853.60772,63212.953939999999,73506.246553999998,1410.9239841999999,55859.473151999999,35001.293579999998,7602.0724498999998,54155.780221000001,3053.2304963000001]
[6726,"2011-11-04","KW60MN03 ",5748228.9189990219,1945834.3401994649,1427391.0926136975,75790.908688999989,442652.33889676747,"Winter",179744.08992,50470.629914999998,98575.736522000007,1892.1231519,55813.873582,36466.781512000001,6109.9121240000004,4955.8928413000003,3053.2304963000001]
[6729,"2011-08-24","KW60MN06 ",6173724.7782647032,1945528.2437047367,1419995.4056391832,104030.183651,421502.65441455349,"Summer",106240.25489,56688.069982000001,71519.484651000006,1372.7888574999999,49338.734653,35446.800196999997,7650.3613106000003,44835.857895000001,3053.2304963000001]
[6730,"2012-02-10","KW60MN01 ",5920084.0263801599,1945027.1033635328,1370959.3009131108,75494.543835280012,498573.25861514191,"Winter",173104.64498000001,58362.793126999997,85559.616435999997,1642.2837591,55585.875732,31708.477449000002,6499.6240853999998,747.06969021999998,3053.2304963000001]
[6733,"2011-12-17","KW60MN02 ",6056890.6499608373,1944686.3587933767,1373055.9531736386,77107.275861999995,494523.12975773821,"Winter",247025.49150999999,57883.615843,79144.549889999995,1519.1490369000001,53944.291214999997,29391.591604000001,6229.9334065000003,816.33821894000005,3053.2304963000001]
[6737,"2012-04-05","KW60MN05 ",5642995.7736628084,1944028.248203397,1413392.5118073935,96064.041466790892,434571.69492921251,"Summer",161929.80523999999,48399.074874999998,73154.821670000005,1404.1785193999999,49977.128632,30617.297502000001,6604.1686889000002,7467.6597125999997,3053.2304963000001]
[6741,"2011-11-22","KW60MN03 ",5932250.2511769468,1943592.0068656469,1374299.8705868863,75746.116704,493546.01957476069,"Winter",181940.28404,50212.982425000002,92158.293273000003,1768.9428098000001,57409.858528999997,34505.862088000002,5630.7411711000004,4955.8928413000003,3053.2304963000001]
[6744,"2011-12-02","KW60MN02 ",5889163.6210460113,1943215.9145644403,1384367.8128276714,76860.228241000004,481987.8734957687,"Winter",228367.8677,55636.554639000002,101391.35976000001,1946.1679515000001,57592.256808999999,32261.56782,5733.7384460000003,816.33821894000005,3053.2304963000001]
[6748,"2012-04-30","KW60MN07 ",5936300.5910403123,1942664.2965244255,1435934.5704483544,95771.265112248424,410958.46096382267,"Summer",129689.71661,40859.368504999999,80319.709860999996,1541.7057781999999,54765.083473999999,32524.755383,6265.6557190000003,7467.6597125999997,0]
[6751,"2011-09-21","KW60MN23 ",5906452.5104481634,1941896.5684132979,1413042.5247352126,85631.636662999997,443222.40701508528,"Summer",141937.30162000001,52465.824902,90849.170488000003,1743.8147041,55494.676592999997,36629.138351000001,6878.6740333999996,30217.333901999998,3053.2304963000001]
[6754,"2012-06-10","KW60MN11 ",5942822.9760341747,1941093.4452033425,1415086.7151364763,107924.14989174579,418082.58017512038,"Summer",154983.27721999999,51961.851450000002,75986.239232000007,1458.5264847999999,54172.289064999997,28766.582803000001,5365.3657460000004,28663.978519,0]
[6755,"2011-07-10","KW60MN01 ",6176913.3090750482,1940924.6149086442,1413028.4428537404,110847.08368700001,417049.08836790378,"Summer",103557.61801000001,46798.054130999997,75496.671805999998,1449.1294273000001,54856.282614000003,28049.190562,5483.8634006000002,43210.618659,3053.2304963000001]
[6758,"2012-05-27","KW60MN10 ",5838225.5381580228,1940429.2457507246,1406810.8507326143,112389.06983789946,421229.32518021087,"Summer",134280.93411,44346.752322,68668.068121999997,1318.0570197,55129.880033000001,26433.942233000002,4705.9597202000004,20817.784983000001,0]
[6763,"2012-06-25","KW60MN24 ",6615853.2400104925,1939743.6519213803,1405516.7645149352,106962.30970518736,427264.57770125772,"Summer",117984.11087,48363.810390999999,81050.391107999996,1555.7309221999999,56315.468850999998,37913.160802999999,6295.8354103000001,45511.944800999998,3053.2304963000001]
[6766,"2012-04-14","KW60MN22 ",5940604.8725138158,1939282.9038969795,1433759.2387450936,100798.57053729045,404725.09461459535,"Summer",137810.41824999999,56819.924155000001,75989.054118999993,1458.5805155,35157.268408000004,24843.306434999999,5666.3585229999999,7467.6597125999997,3053.2304963000001]
[6769,"2012-04-22","KW60MN22 ",6035756.4363087351,1938453.3185623544,1430642.2987083136,86335.669645685964,421475.35020835482,"Summer",189647.01598,53245.066035999997,71692.713829,1376.1139247000001,35339.666687999998,28444.019561000001,6012.0223896999996,7467.6597125999997,3053.2304963000001]
[6773,"2011-07-28","KW60MN04 ",6193175.0959508074,1937940.7456861332,1422702.5194378546,98065.879632000011,417172.34661627834,"Summer",92979.700555000003,47271.389083000002,65006.191852000004,1247.7687203999999,55905.072721999997,33671.615850000002,6475.3188269000002,41377.922375000002,3053.2304963000001]
[6776,"2011-12-01","KW60MN02 ",5837900.7097507212,1937627.7615675596,1392181.9007928132,75638.446175000005,469807.41459974641,"Winter",208176.18507000001,51905.139371999998,98366.799029999995,1888.1126775,57729.055519000001,33665.416168000003,6891.9803875999996,816.33821894000005,3053.2304963000001]
[6779,"2012-03-03","KW60MN15 ",6251300.4985689195,1937166.2100051371,1394963.4000528567,82939.511446550125,459263.2985057304,"Winter",178441.82191999999,55860.954182000001,84292.123399000004,1617.9547203,54537.085623999999,24478.848902999998,5693.1557591000001,1354.3257784,0]
[6783,"2011-07-30","KW60MN07 ",6285484.8930324558,1936391.1841860916,1411081.3925459725,104024.627993,421285.16364711907,"Summer",103832.74639,48076.033755999997,71138.32789,1365.4727009000001,55403.477453,29397.264132,5749.4826063999999,40459.221537999998,0]
[6784,"2012-04-07","KW60MN15 ",5752357.3206118159,1936298.6931638767,1408311.9868743576,94659.563566657685,433327.14272286143,"Summer",152074.64694999999,52763.113805000001,73268.717539999998,1406.3647066000001,55449.077022999998,24969.104109,5599.4864755999997,7467.6597125999997,0]
[6788,"2011-08-30","KW60MN24 ",6142519.3841754943,1935683.0218339488,1411197.6856372531,109406.030677,415079.30551969568,"Summer",119013.45499,53677.350409999999,83123.468416999996,1595.5228397000001,55813.873582,34618.598617000003,6645.9855153999997,37354.224864000003,3053.2304963000001]
[6791,"2011-07-27","KW60MN02 ",6239525.0245637568,1935121.3528520642,1421173.1353998221,96970.170872000002,416978.04658024211,"Summer",90642.661978999997,48011.981807999997,66444.369141000003,1275.3739774000001,56680.265411,33398.519812999999,6548.4529873000001,42977.112115999997,3053.2304963000001]
[6794,"2011-07-29","KW60MN04 ",6164447.5462073199,1934142.6419038135,1413249.4633295499,98694.928605999987,422198.24996826344,"Summer",76949.410262999998,48245.030765000003,67835.540219999995,1302.0769683999999,55585.875732,34462.141366000003,6107.8196736,40051.196979,3053.2304963000001]
[6798,"2011-12-04","KW60MN03 ",5932674.0156988474,1933906.2764701669,1372682.8253144703,78328.491116999998,482894.96003869665,"Winter",254955.09026,54686.325668999998,78135.913620000007,1499.7886536000001,57090.661540000001,26083.603246999999,6034.8683492,816.33821894000005,3053.2304963000001]
[6801,"2011-07-25","KW60MN03 ",6233914.0038410723,1933459.6886286777,1413192.0608889868,94105.671581999995,426161.95615769085,"Summer",102827.90618000001,46390.414885999999,61861.714257,1187.4116887,56361.068421000004,29308.513982,6064.8736704000003,49606.282563000001,3053.2304963000001]
[6804,"2012-02-25","KW60MN01 ",5928531.7461393131,1933017.0726822312,1409945.3652662791,74175.0859830462,448896.62143290607,"Winter",180434.20546999999,58371.326852999999,67906.661854000005,1303.4421207,55403.477453,29757.590865999999,5879.0976678999996,747.06969021999998,3053.2304963000001]
[6806,"2011-10-07","KW60MN06 ",6062840.6534483461,1932852.7203789908,1424938.3438570874,81756.908697000006,426157.46782490332,"Summer",118651.73625,44425.689684999998,100309.20987999999,1925.3965029000001,56087.471001999998,39050.410234000003,7005.5821167000004,19170.103298999999,3053.2304963000001]
[6809,"2011-07-13","KW60MN06 ",6241111.1721936902,1932430.1145302372,1409196.169674309,107220.712684,416013.23217192828,"Summer",87098.477612000002,43793.482184,70538.031197000004,1353.9502379,52348.306268,35020.526603999999,6268.5319902000001,37717.508799000003,1068.2066138]
[6813,"2011-11-26","KW60MN06 ",6087741.000271746,1931836.0729361866,1386904.9760539941,87502.940623999995,457428.15625819226,"Winter",206232.01444,52807.845566000004,76031.328280000002,1459.3919516999999,55768.274012000002,22617.746085999999,6009.2307638000002,4955.8928413000003,3053.2304963000001]
[6816,"2011-07-23","KW60MN08 ",6348601.4581352621,1931238.7514495715,1412761.9684293931,106163.105214,412313.67780617828,"Summer",108010.49232,45246.958332000002,82856.104412000001,1590.390891,54172.289064999997,31315.797861999999,5262.4903615000003,46673.954379000003,0]
[6819,"2011-07-10","KW60MN08 ",6234148.5389813455,1930908.9533472057,1406672.241905506,106774.03333600001,417462.67810569948,"Summer",84708.711129999996,39245.268392999998,73889.413029000003,1418.2787165,54537.085623999999,27220.464312,5643.1536632999996,36899.053395000003,0]
[6821,"2012-03-08","KW60MN03 ",5684687.1675070422,1930616.3767781849,1394525.6377143508,79083.218163253099,457007.52090058103,"Winter",188428.66750000001,50685.110668000001,80291.052656999993,1541.1557141999999,57592.256808999999,31558.154439000002,6517.7247899000004,1354.3257784,3053.2304963000001]
[6827,"2011-11-10","KW60MN03 ",5843686.6299103508,1929378.8555696239,1394939.0894232672,82312.497552999994,452127.26859335665,"Winter",235608.0822,49441.792975999997,97086.540254000007,1863.5386053,57637.856378999997,35146.976664000002,6595.0963287000004,4955.8928413000003,3053.2304963000001]
[6828,"2012-05-26","KW60MN22 ",6031325.3459689952,1929161.1434557308,1406656.5227157613,104131.31666442526,418373.30407554435,"Summer",139608.0742,59049.358740999996,72433.700517999998,1390.3368777000001,51983.509708999998,28690.455599000001,5243.2638645999996,19088.670664000001,3053.2304963000001]
[6831,"2012-03-10","KW60MN15 ",5916430.7777250176,1928688.069235438,1403250.0201966595,79337.818840118067,446100.2301986604,"Winter",157897.21737999999,52175.342412999998,76583.040571000005,1469.9818557999999,54993.081323999999,27003.528229,5684.7013155000004,1354.3257784,0]
[6834,"2011-07-08","KW60MN02 ",6167369.277098204,1927678.4778942247,1401482.3397612961,109777.226696,416418.91143692855,"Summer",92417.001059999995,44789.937241,78366.559057999999,1504.2158036000001,55677.074871999997,32961.545589000001,5843.5006313000004,44039.689139000002,3053.2304963000001]
[6838,"2012-06-10","KW60MN16 ",6145574.0160722742,1926709.6208495584,1399497.375337343,100507.75893672553,426704.48657548986,"Summer",123152.61151,44627.250143999998,89605.546570000006,1719.9438238,53214.698097,28940.975792000001,5765.4096006999998,27889.336490000002,0]
[6841,"2011-07-15","KW60MN06 ",6349488.4237567363,1926228.8889062183,1412003.3651693088,107377.478827,406848.0449099096,"Summer",83500.961219999997,45219.666799999999,67835.087453999993,1302.0682778,51755.511858999998,34554.759484000002,5479.9832274,42301.182181999997,1169.9809634999999]
[6846,"2011-07-16","KW60MN08 ",6392374.9757371498,1925753.1691155802,1394013.3702618063,101950.53681599999,429789.26203777391,"Summer",104914.1825,40421.150211,78964.989457000003,1515.7024438000001,56269.869280999999,31405.265457000001,5671.0868493999997,44908.583623999999,0]
[6849,"2011-09-18","KW60MN10 ",5866275.317102042,1925251.8775327569,1401303.9503990563,94752.37831,429195.54882370046,"Summer",169957.03805999999,41604.111599000003,78516.248214000007,1507.0890291000001,54719.483904000001,28634.923368,5681.4068923000004,30217.333901999998,0]
[6852,"2011-12-17","KW60MN03 ",6000624.0211773003,1924373.7879228294,1356406.1749330726,76357.996185999989,491609.6168037568,"Winter",228010.34599999999,54292.030915000003,79356.712891999996,1523.2214237000001,53989.890785000003,29173.458993,6258.6791935000001,816.33821894000005,3053.2304963000001]
[6853,"2011-07-14","KW60MN01 ",6274981.9661236731,1924279.2478677679,1392006.4883383927,112104.21032400001,420168.5492053752,"Summer",106934.16473,43588.200371999999,73545.63854,1411.6800980999999,53853.092076000001,33499.997745000001,6179.4098909000004,41097.969664999997,3053.2304963000001]
[6856,"2012-03-31","KW60MN23 ",5581946.5737350816,1923583.4122190643,1383853.5703954562,96629.340328212871,443100.50149539544,"Winter",207307.98168,55530.380376000001,68157.014941000001,1308.2475514,50159.526912000001,24945.229706999999,5491.3291792,1354.3257784,3053.2304963000001]
[6859,"2012-01-08","KW60MN04 ",5896054.0695821028,1923073.3848185199,1390411.3667947615,87968.931589629792,444693.08643412881,"Winter",187267.97526000001,49606.382527000002,73572.406025000004,1412.1938895999999,51481.91444,24751.283768000001,5839.4579372999997,742.46966563000001,3053.2304963000001]
[6863,"2012-02-12","KW60MN02 ",5805432.7704770295,1922113.3863957024,1370231.8956437681,72890.030152563631,478991.46059937053,"Winter",190561.00521,56614.349905000003,70377.847708000001,1350.8755778,55631.475301999999,26215.611667000001,5886.3975401999996,747.06969021999998,3053.2304963000001]
[6867,"2012-03-16","KW60MN24 ",5634641.1625298467,1921579.0684532772,1399171.0054753015,88534.510508362568,433873.55246961297,"Winter",135659.43763999999,56712.064356000003,70452.449309999996,1352.3075266999999,56406.667991000002,30026.118295,5374.9409035999997,1354.3257784,3053.2304963000001]
[6871,"2011-07-31","KW60MN08 ",6392733.2147275563,1920645.8596736118,1389750.2418035225,103505.205621,427390.41224908945,"Summer",112572.35176999999,48650.830221999997,71347.387558999995,1369.4855204,55494.676592999997,26430.671154,6273.4685461999998,35547.810101000003,0]
[6874,"2012-06-30","KW60MN02 ",6077499.5965195317,1920470.9455497605,1378954.985183368,102837.20399423745,438678.75637215527,"Summer",108070.69222,52873.330782999998,86301.059909000003,1656.5154798999999,56361.068421000004,34378.006683,6213.8235760999996,40553.515754,3053.2304963000001]
[6877,"2012-06-16","KW60MN01 ",5879220.4732413189,1920039.8497085148,1396372.7755015932,104047.10351630177,419619.97069061978,"Summer",81994.893246000007,52474.11118,69239.199269999997,1329.0196612,55221.079172999998,33848.156382000001,5739.7923294000002,34982.583490999998,3053.2304963000001]
[6878,"2011-11-12","KW60MN06 ",5930385.2155988002,1919928.5120021708,1326519.6881884127,83392.218391999995,510016.60542175802,"Winter",250315.06633,53645.707657999999,89830.249559999997,1724.2569108,57455.458099000003,33644.926610000002,6196.2510623999997,4955.8928413000003,2899.5653634999999]
[6881,"2012-03-20","KW60MN05 ",6056291.6548106177,1919502.412841822,1388007.5968941844,83295.743059561268,448199.07288807625,"Winter",201466.99093,50547.227773999999,85614.350665000005,1643.3343614,57911.453798000002,31880.761952000001,7762.6137808000003,1354.3257784,3031.7023945999999]
[6884,"2011-08-24","KW60MN02 ",5851689.4430960026,1918068.9427079037,1402059.4411950547,103311.99117699999,412697.51033584919,"Summer",124240.33256,56108.956038999997,70116.646733999994,1345.8619260999999,48973.938093999997,35079.427062000002,7236.3407052000002,47595.714004000001,3053.2304963000001]
[6888,"2011-10-14","KW60MN23 ",5873384.0154924588,1917793.7686377526,1404126.0073764096,76699.351393000004,436968.40986834315,"Summer",134669.48843,51406.890955000003,99210.081005999993,1904.2991489999999,55540.276163000002,38466.106363999999,5558.9071741999996,19170.103298999999,3053.2304963000001]
[6892,"2012-06-10","KW60MN15 ",6075417.51911298,1917479.3132536816,1388024.466958872,102599.78510257791,426855.06119223166,"Summer",136758.01164000001,44829.453323000002,87750.089103999999,1684.3290351000001,54309.087775,29034.092961999999,5784.2010170000003,27696.854169999999,0]
[6896,"2012-03-04","KW60MN06 ",5826218.4662199747,1916405.1692951717,1348552.019009135,81092.553711415298,486760.59657462139,"Winter",182734.74255,55027.481872999997,71463.537956,1371.7149824000001,55494.676592999997,23907.143721,5895.5782477000002,1354.3257784,1780.6270629999999]
[6899,"2012-06-10","KW60MN09 ",5881528.685696532,1916027.1878287024,1401564.4538093484,105905.62983641695,408557.10418293683,"Summer",122676.70372999999,40310.507430999998,68740.123995000002,1319.4401043,54491.486054000001,28156.062382,5340.4595017000001,27768.720064000001,0]
[6902,"2011-11-13","KW60MN23 ",5952671.0739353774,1915268.1565291185,1369671.1451634341,84355.533377,461241.47798868461,"Winter",217819.22349999999,47790.694640000002,78561.750411999994,1507.9624262,56178.670141000002,29915.390192999999,5769.5741851000002,4955.8928413000003,3053.2304963000001]
[6903,"2011-07-27","KW60MN05 ",6254743.3453298304,1915136.782818778,1403104.4426018449,99209.824056999991,412822.516159933,"Summer",92375.528839999999,48645.143749000003,62957.633011999998,1208.4474255,56862.663690000001,33781.854716000002,6593.7149062999997,42136.618437999998,3053.2304963000001]
[6906,"2012-06-09","KW60MN17 ",6390256.232245448,1914462.0764148668,1371905.842164946,109409.06866547829,433147.16558444238,"Summer",130777.90399999999,46487.430377999997,69617.824309999996,1336.2872225000001,53944.291214999997,31474.787168999999,5658.6540419000003,27931.262349000001,0]
[6909,"2012-06-29","KW60MN01 ",6341756.0894192094,1914352.8587041644,1387826.5630532359,107360.10708573755,419166.18856519094,"Summer",90498.881722999999,49106.549803000002,77859.631290999998,1494.4855210999999,55950.672292000003,41029.183290000001,6287.6890776,41698.542248999998,3053.2304963000001]
[6914,"2012-04-02","KW60MN05 ",5731009.5785502819,1913610.4833039923,1364032.8356648285,90853.274016116149,458724.37362304778,"Summer",168876.52403,46863.234055000001,76255.559557999994,1463.6959844,56178.670141000002,28084.593391999999,5962.6178941999997,7467.6597125999997,3053.2304963000001]
[6917,"2011-09-24","KW60MN22 ",6080160.9329799507,1913038.0033187554,1373540.3960624281,88117.86042099999,451379.74683532736,"Summer",176183.62614000001,66066.523453999995,106046.73882,2035.5261525999999,55312.278313000003,32706.385803000001,7969.1246721999996,30217.333901999998,3053.2304963000001]
[6921,"2012-03-24","KW60MN23 ",5686277.2709408682,1912213.5181628042,1385044.5586009237,92196.836316034096,434972.12324584625,"Winter",185161.81602,59303.352362999998,62797.45205,1205.3728137999999,56224.269711000001,25687.857685999999,5366.6168141999997,1354.3257784,3053.2304963000001]
[6924,"2012-04-07","KW60MN16 ",5779124.5707966089,1911198.230348692,1386074.0686667447,95856.177133122139,429267.98454882513,"Summer",154986.52038999999,52435.041789000003,72559.321903000004,1392.7481316000001,55494.676592999997,24698.348521,5543.0986836000002,7467.6597125999997,0]
[6927,"2012-01-08","KW60MN03 ",5907575.5192891574,1910591.9218646227,1384357.4426119281,88312.314402336764,437922.16485035804,"Winter",203099.27731999999,51343.843258000001,72267.946393000006,1387.1552913,52348.306268,24941.002082999999,5894.8976935999999,742.46966563000001,3053.2304963000001]
[6930,"2012-04-28","KW60MN12 ",5939467.2141851764,1910118.9090414769,1380995.1557148646,100662.48081480751,428461.27251180483,"Summer",152340.08824000001,53227.289985000003,71400.988438999993,1370.5143685999999,56087.471001999998,25367.571253999999,5255.2937571000002,7467.6597125999997,0]
[6932,"2011-10-15","KW60MN08 ",5763718.2049071901,1910093.0415310601,1378055.9427799687,80196.121167999998,451840.97758309147,"Summer",154906.24679,44325.725710999999,94597.643377,1815.7651920000001,55905.072721999997,34071.206162000002,5696.1352993,19170.103298999999,864.65791420000005]
[6936,"2012-06-09","KW60MN18 ",6315703.4066271726,1909543.6166593614,1370493.788763551,107136.53623027698,431913.29166553321,"Summer",122832.65115000001,44339.330503999998,69399.639169000002,1332.0992431,53989.890785000003,31031.287826,5753.5659298,28320.728650000001,0]
[6939,"2011-07-12","KW60MN04 ",6053554.8970167618,1909110.4952329407,1380308.2337932987,106237.58671500001,422564.67472464184,"Summer",87599.885553,43954.197735000002,66553.126931000006,1277.4615412000001,54309.087775,33172.808767000002,6243.7070057999999,37870.285992999998,3053.2304963000001]
[6942,"2012-05-26","KW60MN15 ",6046060.5770286061,1908762.5054339003,1362816.4631533991,110312.1987982045,435633.84348229656,"Summer",137289.38175,54667.82013,77527.179617000002,1488.1042398,54810.683043999998,31904.4977,4961.0083312999996,22028.300062999999,0]
[6946,"2012-03-04","KW60MN15 ",5943027.4539918629,1907862.9477866925,1390908.8087949806,81734.888074537113,435219.2509171748,"Winter",146855.27316000001,46181.940358,78098.727704000004,1499.0748842999999,53989.890785000003,25765.688602999999,5501.5341028000003,1354.3257784,0]
[6949,"2012-03-20","KW60MN01 ",5896519.9533845503,1907347.8716833019,1406322.5194221551,79601.841769987979,421423.51049115876,"Winter",168128.17991000001,48122.753131999998,78144.671757999997,1499.9567626999999,57820.254658999998,31213.696355,6158.7274828,1354.3257784,3053.2304963000001]
[6951,"2011-09-25","KW60MN13 ",6313239.180908951,1907305.8551060336,1376420.1991931878,87685.04234700001,443200.61356584594,"Summer",176027.51973999999,46498.208806000002,104897.75255999999,2013.4718055999999,54491.486054000001,29551.913352,7041.1537587000003,30217.333901999998,0]
[6954,"2012-06-30","KW60MN08 ",6299559.0380978212,1907101.5371971976,1359352.2549126623,105229.62067871113,442519.66160582408,"Summer",105428.5101,50793.301468999998,90963.312434000007,1746.0056145999999,55266.678742999997,31843.619288000002,5863.6125252000002,38652.346912000001,0]
[6957,"2012-06-09","KW60MN20 ",6162996.0196035272,1906287.9769319934,1379594.7887121511,106991.68718930415,419701.50103053817,"Summer",150377.71984999999,42193.877031999997,68162.007419000001,1308.3433801000001,54217.888635000003,30384.308270000001,5465.4173401999997,27968.734419,0]
[6961,"2012-02-08","KW60MN03 ",6019843.8152188165,1905850.5419938967,1341385.0566805135,73357.326302539906,491108.15901084314,"Winter",177129.82444,50681.291299999997,80937.108647999994,1553.5565091999999,49338.734653,31008.729887000001,6644.7835414000001,747.06969021999998,3053.2304963000001]
[6964,"2011-07-22","KW60MN06 ",6424567.5659833662,1905327.2627810463,1402566.5771700453,100899.424061,401861.26155000081,"Summer",97296.361994000006,45715.763708999999,67877.935524,1302.8907299,54354.687344999998,35214.657433,5462.8982741,50558.066261,1526.1911886]
[6967,"2011-10-05","KW60MN24 ",5758832.724592803,1904823.5358354738,1415069.1626179155,82494.166540999999,407260.20667655842,"Summer",118751.34165,48263.756436000003,97902.990212000004,1879.2100465999999,56224.269711000001,36666.050751000002,6306.0132476999997,19170.103298999999,3053.2304963000001]
[6971,"2012-02-01","KW60MN03 ",5934310.1841114629,1904631.7805564504,1340776.6442434774,72807.208472010068,491047.92784096295,"Winter",196873.96106999999,54384.335264000001,83126.448311,1595.5800376,54628.284764000004,31457.949476000002,6614.4565663000003,747.06969021999998,3053.2304963000001]
[6972,"2012-05-27","KW60MN13 ",5838303.0380532509,1904540.2990648726,1360152.1949903751,103391.92857227771,440996.17550221976,"Summer",133688.88716000001,50597.829183000002,73183.012329000005,1404.7196282,55494.676592999997,26981.743823000001,4988.2338759000004,20196.468032000001,0]
[6976,"2012-05-26","KW60MN18 ",5988150.1804281212,1903732.6464255571,1371580.67623828,108260.23006736622,423891.74011991086,"Summer",129078.24247,55030.019013999998,76979.787257999997,1477.5972551,55494.676592999997,30549.266598999999,4800.4297554000004,20004.61939,0]
[6979,"2012-02-18","KW60MN02 ",5921702.5745333526,1903264.7237133223,1334947.7444339767,67588.242184165021,500728.73709518061,"Winter",191898.32269,59416.207710000002,67438.797665999999,1294.4616484999999,56543.466700999998,29938.546224999998,6091.5761034999996,747.06969021999998,3053.2304963000001]
[6982,"2011-10-04","KW60MN06 ",6103771.8054683739,1902075.4132188242,1408222.6772212111,78597.062022999991,415255.67397461308,"Summer",110387.89027,47450.152234000001,96340.896154000002,1849.2262550999999,54400.286914999997,37759.763962999998,6836.8453577,19170.103298999999,3053.2304963000001]
[6986,"2011-07-20","KW60MN06 ",6354993.1783875767,1901704.8650904747,1401146.3594537906,99807.537861999997,400750.96777468413,"Summer",91298.236778000006,43016.410233000002,71852.554212999996,1379.1819989999999,52576.304118,31710.163306999999,6293.4991803000003,49757.637112999997,1373.5296639999999]
[6989,"2012-02-22","KW60MN01 ",5930617.951406219,1900745.7428781483,1374129.9129339391,70323.666678315887,456292.16326589335,"Winter",143788.14121,51183.392828999997,79340.926380999997,1522.9184077,54263.488205000001,32882.844655000001,6176.2509011000002,747.06969021999998,3053.2304963000001]
[6992,"2012-03-12","KW60MN05 ",5691752.7617606688,1900470.5841274457,1354309.7671533118,75437.394537632877,470723.42243650107,"Winter",195883.15337000001,49110.576449,84185.381064999994,1615.9058424,56953.862829999998,30573.357491999999,7432.8159648999999,1354.3257784,3053.2304963000001]
[6997,"2012-05-27","KW60MN21 ",6003270.7639804026,1899701.9490820759,1369825.8790860299,101224.44232268342,428651.62767336244,"Summer",127331.83064,52235.922062999998,69069.916949000006,1325.7703524999999,55813.873582,26985.36191,4863.2421801999999,20434.872608000001,1018.167559]
[7000,"2012-03-11","KW60MN08 ",5749077.5273756683,1899499.9128234107,1381085.70812712,81280.832883555602,437133.37181273499,"Winter",171900.29722000001,46282.314066999999,71097.644207000005,1364.6917933,55494.676592999997,25266.319345,5699.5990143999998,1354.3257784,0]
[7001,"2012-05-27","KW60MN19 ",5830912.1281941198,1899221.9489169256,1360484.1358210756,100295.55043277316,438442.26266307692,"Summer",137920.26186999999,53516.464538,74120.757308999993,1422.7192805,55859.473151999999,27965.201926000002,4931.0825772999997,19621.181494,0]
[7004,"2011-08-07","KW60MN09 ",5862837.0149222743,1898061.7953300409,1366722.881361424,109839.331426,421499.58254261682,"Summer",134285.4809,53779.806534000003,83336.286395999996,1599.6077984999999,55905.072721999997,24975.603144000001,6177.3987015000002,30168.252906999998,0]
[7007,"2012-02-18","KW60MN04 ",5933285.7903927434,1897793.2949031757,1323933.0136332787,68493.514000164374,505366.76726973261,"Winter",203157.70726,53672.261667999999,68146.521066999994,1308.0461256000001,56543.466700999998,29701.447543999999,6167.8895677999999,747.06969021999998,3053.2304963000001]
[7011,"2011-07-04","KW60MN01 ",6433518.3120128103,1896882.8354408434,1378374.7101305746,103807.45171200001,414700.67359826871,"Summer",105263.60688000001,43683.091672000002,66117.208498000007,1269.0942554000001,53898.691644999999,23646.816757000001,5422.0447201999996,56278.092042999997,3053.2304963000001]
[7014,"2012-04-21","KW60MN18 ",6061024.2462863745,1896452.4891192664,1384592.691410617,86197.686866380245,425662.11084226921,"Summer",130301.04236000001,60024.404769000001,77457.324416999996,1486.7633962,34929.270558999997,27463.268336000001,5942.1708019999996,7467.6597125999997,0]
[7018,"2012-04-21","KW60MN19 ",6040099.7682891609,1896204.5361220955,1391265.2706262367,88640.360734223694,416298.90476163523,"Summer",138045.40984000001,56473.624578000003,77387.697035000005,1485.4269254999999,34473.274859999998,27018.096411999999,5873.6413860000002,7467.6597125999997,0]
[7022,"2012-05-26","KW60MN16 ",6020986.2640675781,1894853.7593642757,1358922.5946538651,107765.79312437683,428165.37158603373,"Summer",106348.37093999999,54191.186414000003,78134.428323999993,1499.7601439,54993.081323999999,30895.797651000001,4842.1060690000004,20683.636837999999,0]
[7025,"2012-04-29","KW60MN20 ",6048843.7651024237,1894387.6840052968,1372643.8207583763,96483.968045187474,425259.89520173316,"Summer",135211.78567000001,46064.176231999998,71063.882568000001,1364.0437517,53397.096376000001,26696.007989000002,5391.0676638000004,7467.6597125999997,0.43819510810000001]
[7026,"2011-11-24","KW60MN01 ",5660957.5487186154,1894168.2459459237,1369040.2296140308,77764.189838000006,447363.82649389288,"Winter",189248.59437999999,52591.436650000003,77909.696970999998,1495.4465124999999,55221.079172999998,27804.447215,5383.3445602000002,4955.8928413000003,3053.2304963000001]
[7029,"2011-11-15","KW60MN02 ",5778964.6426621154,1894013.2445338252,1337189.5171459988,74581.627441000004,482242.09994682646,"Winter",196935.86734,48175.613705000003,90650.304992999998,1739.9975578000001,55859.473151999999,34874.676085999999,6589.1440215000002,4955.8928413000003,3053.2304963000001]
[7032,"2012-06-26","KW60MN06 ",6243922.1496363105,1893454.804888055,1382853.3038635452,100405.07549171105,410196.42553279869,"Summer",77295.898845999996,51163.953737999997,75024.339556999999,1440.0631923999999,55813.873582,37542.338419,6584.1465196999998,42955.132203000001,559.33486457000004]
[7036,"2012-04-11","KW60MN24 ",5511039.7784662461,1891906.0502759465,1379606.8987022953,95289.580762593498,417009.5708110577,"Summer",141017.84353000001,52459.323780999999,77129.381682000007,1480.4686621999999,55677.074871999997,31647.138322999999,5540.6591858000002,7467.6597125999997,3053.2304963000001]
[7039,"2011-12-30","KW60MN06 ",6072181.5144238472,1891179.5251666075,1311077.6708983697,75324.866357000006,504776.98791123764,"Winter",192864.31912999999,50257.008800000003,80034.109723999994,1536.223794,55494.676592999997,28239.773892000001,5919.9055130999996,816.33821894000005,3053.2304963000001]
[7044,"2012-05-06","KW60MN12 ",5829899.6197496783,1890572.8953535021,1362488.1705917495,103944.84273090211,424139.88203085063,"Summer",174538.96061000001,42928.847557000001,65965.466795999993,1266.1816320999999,55540.276163000002,25364.592911,5281.4578417000002,21356.368259999999,0]
[7047,"2011-08-30","KW60MN06 ",6145414.6870832164,1890372.9289082268,1362315.0550892546,104613.63589799999,423444.23792097211,"Summer",108003.73043,56144.236591000001,80852.904808000007,1551.940249,56589.066271000003,34744.730694999998,7462.8128201,42642.178874999998,3053.2304963000001]
[7050,"2012-03-22","KW60MN04 ",5643962.6632954869,1889780.4060399337,1366332.4414669829,74874.856511754406,448573.10806119628,"Winter",196480.5632,50180.668029,79678.768985999995,1529.4031659,55312.278313000003,32307.766581,6965.3820296000004,1354.3257784,3053.2304963000001]
[7051,"2012-04-28","KW60MN21 ",6029950.799028662,1889482.8443795277,1365787.6176700084,97926.383343865135,425768.84336565417,"Summer",114199.1587,56229.713638000001,80984.703808999999,1554.4700799,55768.274012000002,26057.978050000002,5669.8222380999996,7467.6597125999997,2744.4725620999998]
[7054,"2012-04-21","KW60MN13 ",5927693.4740154166,1889190.961338097,1384367.328036906,87126.429004057485,417697.20429713355,"Summer",144526.19411000001,50754.869978000002,78361.824368000001,1504.1249230999999,35795.662386999997,27822.528608000001,5994.3872375000001,7467.6597125999997,0]
[7060,"2012-04-29","KW60MN11 ",5828577.9977797465,1888045.1425896238,1370357.9234934263,96747.944200144644,420939.27489605296,"Summer",157573.31435999999,45627.106801000002,71069.460896999997,1364.1508256,55403.477453,25630.362381999999,5225.8708015000002,7467.6597125999997,0]
[7062,"2012-04-29","KW60MN10 ",5796111.0260549532,1887904.2349917993,1373016.5870120137,99482.876715526698,415404.77126425895,"Summer",153125.55916,43205.644912999996,73034.074145999999,1401.8608173,55357.877883000001,24305.737840999998,5090.8790239999998,7467.6597125999997,0]
[7065,"2012-04-07","KW60MN05 ",5583488.1343964906,1887497.7934194412,1329377.8388569318,88575.068301993262,469544.88626051618,"Summer",198150.65470000001,47407.592869,62415.858714000002,1198.0482773000001,56543.466700999998,24708.608763,5951.8729283000002,7467.6597125999997,3053.2304963000001]
[7069,"2012-03-23","KW60MN02 ",5515389.2342189699,1886951.6787920489,1377875.3041628529,75046.003113337822,434030.37151585816,"Winter",190732.41595,48464.535989000004,78359.792835999993,1504.0859286,56953.862829999998,32111.171289000002,6296.2518683999997,1354.3257784,3053.2304963000001]
[7072,"2011-10-20","KW60MN06 ",5978370.4073869502,1886759.4548131791,1369307.9650953787,75690.116915000006,441761.37280280044,"Summer",121331.16176,46051.496957000003,105465.85352,2024.3762838,56862.663690000001,41942.471884999999,7915.2694895000004,19170.103298999999,3053.2304963000001]
[7075,"2011-09-25","KW60MN17 ",6576260.0980283236,1885448.6456640679,1369593.0057985466,87303.586469000002,428552.05339652149,"Summer",164612.10297000001,48305.994441000003,99306.209357,1906.1442956000001,54947.481754,30478.696723000001,7025.3892841999996,30217.333901999998,0]
[7076,"2011-08-26","KW60MN03 ",5807140.9426833885,1885054.5889344411,1367964.1328174544,101031.40272900001,416059.05338798661,"Summer",106515.61644,56377.908988000003,72611.209669000003,1393.7440971999999,54673.884334000002,34359.989208999999,7091.5960144999999,50786.802672999998,3053.2304963000001]
[7081,"2011-08-12","KW60MN06 ",5786134.0861676615,1884311.0368156384,1378627.5688641856,98110.561671999982,407572.90627945279,"Summer",89844.674140000003,51659.729287000002,70216.054334,1347.7700165000001,56178.670141000002,33273.746620999998,6655.1069699,50678.454668999999,2743.6244430000002]
[7084,"2011-10-06","KW60MN24 ",5713828.4959466103,1883741.6679529902,1398299.2050474384,77238.567439000006,408203.89546655171,"Summer",130220.10105,47335.110030000003,97678.810375999994,1874.9070013,55768.274012000002,37879.447436000002,6205.3928321000003,19170.103298999999,3053.2304963000001]
[7087,"2011-09-12","KW60MN24 ",5703843.776648052,1883457.3066877611,1341304.1050051735,79522.641740999999,462630.55994158762,"Summer",138784.69216999999,50043.390898999998,90240.870188999994,1732.1386150000001,53351.496806000003,36980.696282999997,7438.1300412999999,34399.792339,3053.2304963000001]
[7090,"2012-04-05","KW60MN01 ",5445775.1284555737,1883200.4115679257,1381341.3540155799,93073.228694695179,408785.82885765051,"Summer",169331.83877,51455.389060000001,75868.156858999995,1456.2599393,46830.758307999997,31162.403408999999,6158.3550396000001,7467.6597125999997,3053.2304963000001]
[7094,"2011-11-01","KW60MN02 ",5537401.4309769878,1882582.2910098124,1375646.8382691448,73874.080889000004,433061.37185166759,"Winter",156432.70642,40762.224469000001,94769.470623999994,1819.0633496,56543.466700999998,37808.558012000001,6173.9857733999997,4955.8928413000003,3053.2304963000001]
[7097,"2012-03-09","KW60MN23 ",5772789.8350855112,1882254.3677510172,1374888.4307593675,82662.330325230752,424703.60666641896,"Winter",162289.38305999999,56311.599482999998,75924.179684999996,1457.3352758000001,53670.693796,30353.189912000002,5973.3814816000004,1354.3257784,3053.2304963000001]
[7100,"2012-04-09","KW60MN06 ",5831336.9827726074,1882136.0140584821,1376837.7725644102,88245.035490570343,417053.20600350155,"Summer",157619.04720999999,48250.800791000001,74732.096179,1434.4536938000001,45553.970350000003,27033.568995000001,6371.31765,7467.6597125999997,3053.2304963000001]
[7102,"2011-07-02","KW60MN02 ",6012071.4027337683,1881917.2227138667,1368432.5971573798,102590.62379699999,410894.00175948709,"Summer",73055.398761000004,42827.471204000001,67809.055097000004,1301.5685966999999,56543.466700999998,29126.353234999999,5249.0824321,52195.661465999998,3053.2304963000001]
[7105,"2012-05-27","KW60MN18 ",5774361.1450875159,1881111.474583972,1336936.1873889386,99381.433348588282,444793.85384644521,"Summer",122388.27413999999,55334.279829999999,74807.778080000004,1435.9063785999999,55768.274012000002,27927.708984000001,5047.0611657999998,19732.699457999999,0]
[7109,"2011-07-09","KW60MN06 ",5958093.3543349421,1879580.6195630406,1374715.7851621122,102848.26175799999,402016.57264292851,"Summer",80384.916851000002,44009.693463000003,66272.038604000001,1272.0661594000001,56087.471001999998,31286.664126,4915.6719235,38264.142586000002,915.54508908000003]
[7112,"2012-02-09","KW60MN04 ",6012068.1537571289,1878907.2173068796,1307806.6068860022,74027.423386759154,497073.18703411822,"Winter",177262.27481999999,51277.715321000003,82471.722485000006,1583.0128285000001,55996.271862000001,30011.042207999999,6638.9361949000004,747.06969021999998,3053.2304963000001]
[7115,"2011-07-23","KW60MN02 ",6168071.2091303784,1878601.594568216,1377261.0002262995,98805.560174999991,402535.03416691656,"Summer",92742.811826000005,44535.709025999997,65612.154374000005,1259.3999366999999,55357.877883000001,33399.355017000002,5190.5141589000004,52317.949916999998,3053.2304963000001]
[7119,"2011-07-10","KW60MN02 ",6022046.6055087345,1878183.1550703221,1365394.8993300158,101885.03671300001,410903.21902730648,"Summer",97901.710149999999,44869.522145000003,73552.508681000007,1411.8119678,54537.085623999999,28182.330194999999,5450.7295625999996,42146.676688,3053.2304963000001]
[7122,"2011-07-18","KW60MN06 ",6677756.309321953,1877749.0351288072,1366546.5541457725,99000.973039000004,412201.50794403465,"Summer",98277.302418000007,47354.182769999999,60857.589797000001,1168.1379078,50661.122180999999,31795.240254,5653.0267752999998,45291.797189999997,1322.6424892]
[7123,"2012-06-04","KW60MN24 ",6198963.9913668223,1877697.273262359,1370912.0785114476,96110.706696374386,410674.48805453692,"Summer",115754.62663,44849.178424999998,65783.212046000001,1262.6833226000001,56771.464549999997,40973.904473000002,5741.9271018999998,34744.372468000001,3053.2304963000001]
[7127,"2012-06-18","KW60MN07 ",6280300.2842895417,1876947.6861363631,1361192.1197512811,105509.62871671512,410245.93766836694,"Summer",94830.338770999995,45912.781738999998,78895.046528999999,1514.3599162999999,55722.674442000003,35248.282002,6007.2195744000001,36594.027763999999,0]
[7130,"2011-08-20","KW60MN08 ",6038636.6079687215,1876001.1202806209,1359108.6233750561,114777.421802,402115.07510356494,"Summer",110263.11324999999,47159.880235999997,71942.887784000006,1380.915917,55585.875732,30702.849655999999,5793.7287730999997,41132.683664999997,0]
[7134,"2011-08-29","KW60MN01 ",5711714.1355050607,1875469.0836750802,1327446.7270449377,93829.179023999997,454193.17760614265,"Summer",147953.47620999999,54155.925143,72901.781959999993,1399.32152,56361.068421000004,29903.373901999999,6265.6878846,44181.659953000002,3053.2304963000001]
[7137,"2012-06-19","KW60MN01 ",5994820.0286079356,1875080.9235351835,1365205.7196772688,103186.09707096676,406689.10678694799,"Summer",75151.648333000005,43257.621744999997,66500.995616,1276.4609006999999,57136.261109999999,32877.432851999998,6072.1261412000003,40331.778812999997,3053.2304963000001]
[7140,"2012-04-28","KW60MN08 ",5768118.3080792557,1874814.6717833844,1366180.8061144538,101430.22731885093,407203.63835007965,"Summer",121802.74532,45435.101993999997,68497.951577999993,1314.7916984000001,56543.466700999998,24840.364581000002,5144.2872756999996,7467.6597125999997,0]
[7144,"2012-03-23","KW60MN03 ",5493998.051661999,1874454.1646539769,1359558.6028822358,73197.937925418402,441697.62384632271,"Winter",182235.86767000001,48954.602570000003,77768.693152000007,1492.7399986999999,57136.261109999999,31959.574625000001,6385.2656217000003,1354.3257784,3053.2304963000001]
[7148,"2012-06-13","KW60MN06 ",5810431.293760852,1873760.727568143,1363007.2511527224,99768.838916138877,410984.63749928161,"Summer",86721.910275000002,44459.933850000001,70078.418527000002,1345.1281504000001,56497.867130999999,35246.127303000001,6588.5752001000001,32252.912347000001,457.56051463]
[7149,"2012-05-14","KW60MN24 ",5927133.9636386279,1873686.5670218789,1329134.9870927257,114684.7076919012,429866.87223725196,"Summer",131075.29999,53745.719835999997,79800.048162000006,1531.7310728,51025.918740000001,34434.363096000001,6258.1510025999996,21356.368259999999,3053.2304963000001]
[7152,"2011-08-21","KW60MN01 ",5727602.6792053906,1873233.2324253875,1370782.8480265744,106337.98394099998,396112.40045781329,"Summer",121561.88211999999,53304.127258,65534.186482999998,1257.9033732,55403.477453,28669.010687000002,5836.1262702000004,48943.400544999997,3053.2304963000001]
[7155,"2012-01-30","KW60MN01 ",5860752.3578346903,1872567.1581870883,1356372.7933534579,74106.808135782267,442087.55669784796,"Winter",181624.26636000001,50157.599173000002,71519.256833000007,1372.7844846999999,55403.477453,27641.222969999999,5689.37039,742.46966563000001,3053.2304963000001]
[7159,"2011-07-08","KW60MN04 ",6102224.3769795364,1871619.2610230003,1366744.383009773,100931.32566,403943.55235322722,"Summer",80240.797441000002,43672.742259999999,65221.087179000002,1251.8935531,55631.475301999999,32780.208122999997,5681.7928775999999,41996.776064999998,3053.2304963000001]
[7162,"2012-01-25","KW60MN03 ",5941872.2260820586,1871006.4253963414,1314177.8914420595,73990.435500597552,482838.09845368424,"Winter",184926.36869,50500.657830999997,84435.268410000004,1620.7023334,55905.072721999997,32657.995989999999,6873.2092866000003,742.46966563000001,3053.2304963000001]
[7165,"2011-11-09","KW60MN02 ",5880175.284054447,1870017.3058789787,1354610.5417955089,86003.248864999987,429403.51521846972,"Winter",189151.19349000001,50247.392090000001,98500.356043000007,1890.6762527999999,57637.856378999997,35889.228331999999,6526.3705332999998,4955.8928413000003,3053.2304963000001]
[7169,"2012-06-24","KW60MN09 ",6505135.2543108482,1869641.1147361333,1358333.5744435908,103770.31850130849,407537.22179123398,"Summer",122362.47721,41428.921975999998,71764.539013000001,1377.4925813,55631.475301999999,29343.540706,5094.7287254000003,40663.890749999999,0]
[7173,"2011-10-30","KW60MN23 ",5719144.2908651028,1869484.2550024218,1353035.9499164515,75390.751585000005,441057.55350097024,"Summer",140682.93917999999,46602.673433000004,92725.584122999993,1779.8317383999999,56315.468850999998,33904.313589999998,5500.0748061000004,19170.103298999999,3053.2304963000001]
[7174,"2012-06-24","KW60MN24 ",6323812.1356072528,1869473.4727591577,1355708.2904616091,94454.039679925438,419311.14261762303,"Summer",104496.58808,49269.590397,64273.893371999999,1233.7125341999999,56361.068421000004,30669.013701,5189.5999817000002,43224.557307000003,3053.2304963000001]
[7177,"2012-04-15","KW60MN18 ",5818594.7508703582,1869153.813127398,1383047.816439115,94390.334623828996,391715.66206445399,"Summer",123942.87298,44472.269268999997,73455.461020000002,1409.9491754999999,35339.666687999998,25543.841633,5455.8540328999998,7467.6597125999997,0]
[7180,"2012-04-29","KW60MN19 ",5846558.186415541,1868413.1801319809,1352322.7629106303,94717.323440159031,421373.09378119156,"Summer",128969.5223,50605.268676,72016.498882999993,1382.3288536,50934.719600999997,26832.016771999999,5415.7233551999998,7467.6597125999997,0]
[7184,"2012-04-04","KW60MN05 ",5616880.8728560917,1867101.9867122613,1366007.5667840927,85990.093587675699,415104.32634049305,"Summer",149565.33915000001,49450.458459000001,75026.609471000003,1440.1067625999999,50022.728201999998,30890.766292,6162.9733270999996,7467.6597125999997,3053.2304963000001]
[7186,"2011-10-26","KW60MN02 ",5578305.0197000531,1866701.2022853985,1356821.9050800665,70414.625398999997,439464.6718063319,"Summer",156095.49158999999,43013.720445999999,102420.24831,1965.9170693999999,56589.066271000003,40078.853382000001,6537.7672732999999,19170.103298999999,3053.2304963000001]
[7192,"2011-11-03","KW60MN05 ",5946427.0315077556,1866194.4499563461,1350165.6874506201,77479.098689000006,438549.66381672601,"Winter",195228.1403,47946.445174,111244.59698,2135.2970304999999,55722.674442000003,39703.438749000001,7991.7353169999997,4955.8928413000003,3053.2304963000001]
[7195,"2012-03-22","KW60MN03 ",5568017.9943117751,1865792.0470597369,1348196.1327506131,73027.630474157733,444568.28383496613,"Winter",190811.67209000001,50079.373622999999,79016.342241000006,1516.6881406,55084.280463000003,30008.956103,6548.3768056999997,1354.3257784,3053.2304963000001]
[7198,"2012-03-17","KW60MN06 ",5596491.5934622074,1865176.1390885124,1346674.7295921762,85242.762944244692,433258.64655209135,"Winter",158207.18328,49975.384610000001,72420.153030999994,1390.0768389,55722.674442000003,28542.880814,5845.6709548999997,1354.3257784,508.44768959999999]
[7199,"2012-04-01","KW60MN24 ",5567169.891323382,1864928.5416621787,1345259.3076673353,88325.377973241921,431343.85602160147,"Summer",200548.21114,49418.277429000002,65318.20523,1253.7576965999999,56087.471001999998,25059.468187999999,5513.7502168999999,7467.6597125999997,3053.2304963000001]
[7202,"2011-07-20","KW60MN02 ",6259188.6814994207,1864430.376784635,1368542.6161788111,95688.252752,400199.50785382395,"Summer",95798.200555000003,40098.097844999997,67772.729355000003,1300.8713382000001,55266.678742999997,32914.351392999997,6196.2104319,51045.292264000003,3053.2304963000001]
[7205,"2011-08-10","KW60MN06 ",5732642.0925949588,1863784.61757574,1360440.1731292487,99291.56147500001,404052.88297149132,"Summer",92043.814668999999,50730.745453000003,72741.282923999999,1396.2408029999999,55540.276163000002,33891.665798000002,6849.0546985999999,46743.253229000002,2594.8218619999998]
[7211,"2011-07-04","KW60MN08 ",6421529.1715288702,1862910.5990277338,1341958.1268076168,110323.898321,410628.57389911712,"Summer",109589.24531,39060.624345999997,68041.356121000004,1306.0275251,51983.509708999998,22284.335563000001,5666.2924990000001,50509.343943,0]
[7213,"2012-06-15","KW60MN06 ",5964203.1641617659,1862808.4657899495,1369453.3174746789,96519.214147007428,396835.9341682634,"Summer",85486.741854000007,38986.582908999997,69349.980783000006,1331.1460695999999,49429.933792999997,33686.222609999997,6156.0069592,34356.290988000001,457.56051463]
[7217,"2012-06-17","KW60MN08 ",5819545.5539341439,1862380.9272933933,1340257.7512115757,100090.33667968333,422032.83940213436,"Summer",96852.440719000006,44342.955449000001,65846.151173999999,1263.8914147999999,54901.882184000002,27732.843191,5506.6975098000003,36331.303448999999,0]
[7220,"2011-08-09","KW60MN06 ",5894270.7155473949,1861845.7013812813,1356304.3047900915,98362.925723999986,407178.47086718981,"Summer",84422.962975000002,53157.630297000003,75450.154532,1448.2365463000001,56543.466700999998,32351.770756999998,6921.2746817999996,41261.430660999999,2543.9346870999998]
[7223,"2011-10-08","KW60MN23 ",5747256.6417694269,1861437.6251338937,1354630.8746319313,87365.742538000006,419441.00796396233,"Summer",152825.94807000001,51747.921828999999,84737.863735000006,1626.5105337,55084.280463000003,32218.791608,5332.6788401000003,19170.103298999999,3053.2304963000001]
[7224,"2011-08-06","KW60MN01 ",5522130.2734322399,1861370.6049968922,1335988.9938450824,105255.07391799999,420126.53723380965,"Summer",130054.97527,59688.880405000004,80255.575033000001,1540.4747348999999,54217.888635000003,30679.697981000001,6197.2261841999998,36273.460154,3053.2304963000001]
[7227,"2011-07-16","KW60MN07 ",6108307.9259449933,1860798.9126686831,1354409.440733484,95697.476968000003,410691.99496719922,"Summer",95061.769235,40451.692303999997,73648.277736000004,1413.6502178000001,55768.274012000002,31397.180734000001,5417.7379313000001,44842.165965,0]
[7232,"2011-10-02","KW60MN23 ",5599062.4113749871,1859818.0753123318,1368214.0553689001,82727.550350999983,408876.46959243191,"Summer",121289.37159,46438.586811000001,76634.456508999996,1470.9687649,55038.680892999997,31010.235226000001,5964.9236514000004,19170.103298999999,3053.2304963000001]
[7235,"2011-10-23","KW60MN08 ",5651772.3486133758,1859560.8701634491,1368246.8383429407,84559.718077999991,406754.3137425083,"Summer",130796.98144,42729.621782000002,97438.680974000003,1870.2978103,52986.700247000001,30923.179831000001,5476.4687242,19170.103298999999,1424.4168388999999]
[7238,"2011-12-18","KW60MN02 ",5867160.2095633019,1859170.7887861282,1281761.4214342169,80426.437044999999,496982.93030691112,"Winter",252653.81127999999,58381.409535999999,75020.134682000004,1439.9824814999999,57318.659389,25524.874185000001,6545.8526613000004,816.33821894000005,3053.2304963000001]
[7242,"2011-08-29","KW60MN06 ",6055643.0044704759,1858323.7915483071,1333659.8710437368,96200.780564000001,428463.13994057023,"Summer",117236.19070000001,57859.947650000002,75497.150521999996,1449.1386161,56680.265411,32054.937263,6727.1847475000004,42207.233734000001,3053.2304963000001]
[7245,"2011-10-26","KW60MN03 ",5583056.808025226,1857965.8782233235,1353094.5672665071,70135.725252999997,434735.58570381644,"Summer",186415.17159000001,41663.079626999999,100453.99555000001,1928.1756078999999,56543.466700999998,39067.826779000003,6511.2155106,19170.103298999999,3053.2304963000001]
[7248,"2012-04-06","KW60MN04 ",5453354.1669796193,1857135.7024689126,1336693.6453802092,86798.680955184755,433643.37613351847,"Summer",189999.78951999999,48664.163464999998,71080.250566999995,1364.3579291000001,56178.670141000002,28102.131162000001,6465.7318188999998,7467.6597125999997,3053.2304963000001]
[7249,"2012-06-21","KW60MN06 ",6023950.4776862012,1856913.3474659822,1345411.5384579396,99323.734186735135,412178.07482130727,"Summer",80399.659467999998,42659.104060999998,70607.755147999997,1355.2885621999999,54856.282614000003,35743.499972999998,6260.4872326000004,40871.260963000001,457.56051463]
[7253,"2012-06-16","KW60MN02 ",5722489.0351623762,1856007.3511014385,1348927.2421800036,99015.669497892828,408064.4394235423,"Summer",73131.040783999997,48162.519874999998,66063.304587000006,1268.0595906000001,55357.877883000001,33295.577866,5531.8272207,34865.172437000001,3053.2304963000001]
[7257,"2012-03-28","KW60MN24 ",5558119.1207445487,1855535.7224101853,1361251.9815771515,85044.455159134421,409239.28567389934,"Winter",122480.26976,51386.102150999999,78549.904326999997,1507.7350452000001,41541.208197,31859.469391999999,5871.3694861000004,1354.3257784,3053.2304963000001]
[7260,"2011-07-22","KW60MN05 ",6224096.8187527778,1855008.9594819094,1364696.7533360685,96905.441177999994,393406.76496784092,"Summer",102830.55583,45232.148437999997,65648.503196000005,1260.0976383,54537.085623999999,33879.976433000003,5787.7358342999996,50407.599068000003,3053.2304963000001]
[7263,"2012-03-08","KW60MN24 ",5657973.2223194428,1854610.6090843801,1325557.6566998335,82125.204861440478,446927.74752310617,"Winter",183163.51847000001,58584.952788000002,77925.482334999993,1495.7495064,55813.873582,32163.000348000001,6474.3352402,1354.3257784,3053.2304963000001]
[7267,"2011-08-17","KW60MN01 ",5646107.5839636782,1853992.9367844774,1357998.0067679009,105771.615444,390223.31457257638,"Summer",120433.62152,52463.843716000003,67438.682264000003,1294.4594334000001,53898.691644999999,31980.391529,6141.9692639000004,48014.329055000002,3053.2304963000001]
[7270,"2012-05-23","KW60MN06 ",6057509.6360346247,1853704.6559372332,1357755.8101884564,98535.063244511592,397413.78250426525,"Summer",91272.121891999996,45548.244958000003,72774.094593999995,1396.8706104,57364.258958999999,37568.483794,6034.1082280000001,21356.368259999999,966.43226404999996]
[7273,"2011-08-03","KW60MN06 ",5814515.4134398,1852903.4522415064,1355551.8873208156,99598.678125999999,397752.8867946908,"Summer",95368.608552999998,53853.234172999997,78315.331321999998,1503.2325069999999,48107.546265999998,33015.873045,7239.6520582000003,30719.296329000001,2187.724463]
[7274,"2012-03-20","KW60MN02 ",5799267.4809505697,1852637.4903004845,1350210.5134298406,76095.622770062648,426331.35410058132,"Winter",155252.80955999999,47303.468885000002,76187.097448,1462.3818805999999,57637.856378999997,30615.599141999999,6220.1060031999996,1354.3257784,3053.2304963000001]
[7278,"2012-03-26","KW60MN24 ",5588199.5960048269,1852278.4779263309,1352238.5799313991,85152.942346502314,414886.95564842952,"Winter",141268.66938000001,45899.469384000004,75821.225976000002,1455.3591191999999,55677.074871999997,32516.529189000001,5926.2116421000001,1354.3257784,3053.2304963000001]
[7282,"2011-10-19","KW60MN06 ",6006096.8201583121,1851219.3929515711,1323926.2772468354,68735.132133000006,458557.98357173573,"Summer",155676.78432000001,47191.952004999999,103642.74451,1989.3824112,46648.360028000003,41189.478837000002,8135.4033108000003,19170.103298999999,3053.2304963000001]
[7285,"2012-06-08","KW60MN06 ",5877784.0678124418,1850347.4866290509,1338079.8280559508,96928.240837417601,415339.41773568251,"Summer",115792.20917,40547.695510999998,66271.341486000005,1272.0527784999999,55540.276163000002,39103.951695999996,5911.7981180999996,30495.300882,457.56051463]
[7288,"2011-08-23","KW60MN02 ",5717941.3948231675,1850100.8345997029,1345643.4804829219,105096.55976,399360.79435678083,"Summer",104486.62542,53496.946713999998,69281.026406999998,1329.8225170000001,55859.473151999999,34049.363189000003,6833.4527448999997,51729.534976000003,3053.2304963000001]
[7292,"2011-09-24","KW60MN09 ",5928500.8485069126,1849561.1495813266,1330296.465255037,90814.41627799999,428450.2680482897,"Summer",136689.50245999999,46796.442508,102402.56611,1965.5776662999999,55722.674442000003,31961.584304,6026.2344561999998,30217.333901999998,0]
[7295,"2012-01-30","KW60MN04 ",5894063.452009636,1849364.371543267,1317800.3411821201,78602.135160233651,452961.89520091325,"Winter",181284.49726999999,51643.884612000002,74432.441590999995,1428.7019398,52758.702397000001,26860.921075999999,5819.3663585000004,742.46966563000001,3053.2304963000001]
[7299,"2011-09-25","KW60MN16 ",6509312.4922931241,1848535.8756596278,1339908.1945393833,83985.800954999999,424641.88016524439,"Summer",165011.51023000001,46621.108271999998,103271.81419,1982.2625470999999,54856.282614000003,30785.149710999998,7173.5672181999998,30217.333901999998,0]
[7300,"2012-05-03","KW60MN06 ",5740298.0813209768,1848188.7428480892,1336720.534343783,93162.984436653263,418305.22406765277,"Summer",115135.35193999999,43755.323849,75698.122875999994,1452.9962028,55357.877883000001,31986.812187,6449.4933271,21356.368259999999,2187.724463]
[7303,"2011-07-11","KW60MN05 ",6061252.4688794008,1847938.7647201985,1351844.6269505925,95585.534090999994,400508.60367860604,"Summer",73760.384112999993,44029.365539999999,59441.061433000003,1140.9481934999999,53761.892935999997,30799.346674,5649.4919569000003,29707.782149999999,3053.2304963000001]
[7307,"2011-08-14","KW60MN24 ",5835939.8738680501,1847301.1762595023,1355094.0393472165,105367.057288,386840.07962428598,"Summer",125341.54561,47990.269092000002,62995.473905999999,1209.1737668000001,52621.903687999999,27258.549281,5946.5791671999996,53269.240643999998,3053.2304963000001]
[7310,"2012-06-27","KW60MN01 ",5890990.7465443201,1846688.2450475253,1345004.4029540662,104145.91317256716,397537.92892089178,"Summer",81642.458861999999,47608.351534000001,65184.777628000003,1251.1966053000001,55677.074871999997,39773.787412999998,6059.5714433000003,44346.688664000001,3053.2304963000001]
[7313,"2012-06-29","KW60MN06 ",6271132.0899404921,1845874.7602416603,1337136.0008599346,104422.55698670937,404316.20239501633,"Summer",71266.179281999997,44625.712434000001,80508.713839000004,1545.3336365,56041.871432,39071.602497,6435.7857506999999,40495.618419999999,610.22203944]
[7316,"2012-05-20","KW60MN09 ",5830344.5318105305,1845601.7279365037,1329862.8155679891,112358.64094968488,403380.27141882968,"Summer",112575.065,43217.565777000003,66806.035508000001,1282.3160235,54719.483904000001,28809.898641,5034.3236329000001,21356.368259999999,0]
[7321,"2011-09-11","KW60MN09 ",5875928.5444976706,1844797.7566100392,1322261.1008493269,92326.385878000001,430210.26988271216,"Summer",129883.52213,50577.943400999997,87375.575240999999,1677.1403862,52986.700247000001,29194.883120999999,6159.1354760000004,37575.426592999997,0]
[7322,"2011-10-29","KW60MN23 ",5747228.6364508411,1844676.6941823845,1319277.3479940721,76509.264534999995,448890.08165331231,"Summer",147994.47149,55124.447554999999,86562.968221000003,1661.5427087,56315.468850999998,32270.219948000002,5558.1148874,19170.103298999999,3053.2304963000001]
[7325,"2011-12-28","KW60MN05 ",5935778.4058567677,1844004.5645809178,1296437.3593694908,71905.146198000002,475662.05901342706,"Winter",173310.00294999999,52009.743791000001,80940.009195000006,1553.6121840999999,57546.657239,29395.109791999999,5951.6782429000004,816.33821894000005,3053.2304963000001]
[7328,"2012-01-03","KW60MN03 ",5764003.9138718024,1843881.563951561,1277270.7976730547,76409.248373857728,490201.51790464862,"Winter",223677.02359999999,48374.964810999998,80348.932247000004,1542.2666905999999,57227.460249999996,25560.220023000002,6285.6169424999998,742.46966563000001,3053.2304963000001]
[7332,"2011-09-17","KW60MN23 ",5730270.1638643434,1843396.685792502,1344215.8037015852,88930.289052000007,410250.59303891688,"Summer",127196.70941,54674.779190000001,80363.754665999993,1542.5512011999999,55129.880033000001,28354.069533999998,5541.1111950000004,30217.333901999998,3053.2304963000001]
[7335,"2012-04-27","KW60MN23 ",5708943.7090271004,1842217.5859732055,1335784.9897159871,95881.185426800846,410551.41083041765,"Summer",163179.50430999999,57785.705362000001,71554.427867000006,1373.4595790999999,54445.886484000002,27738.214614,6115.4124218999996,7467.6597125999997,3053.2304963000001]
[7337,"2012-04-04","KW60MN01 ",5488610.9934509248,1841484.6529250001,1345079.7906101837,83111.932916340607,413292.92939847568,"Summer",138381.59661000001,51989.504512,75850.1296,1455.9139130999999,55905.072721999997,31662.682905000001,5806.3410290000002,7467.6597125999997,3053.2304963000001]
[7343,"2011-12-27","KW60MN02 ",5867266.8919972628,1840897.2182211629,1315402.7057907386,77635.476118000006,447859.0363124244,"Winter",224738.48139,50409.879944,77384.546392999997,1485.3664501999999,57911.453798000002,26014.875612,6058.8604175,816.33821894000005,3053.2304963000001]
[7346,"2011-12-31","KW60MN04 ",5582313.046054936,1840606.8844453059,1302484.2791448792,79392.218979999991,458730.38632042677,"Winter",206341.65669,49935.402556000001,77212.764502999999,1482.0691632,56680.265411,23111.531515999999,5826.1922136000003,816.33821894000005,3053.2304963000001]
[7347,"2012-01-26","KW60MN03 ",5874628.7599003175,1840323.6642298028,1285388.6988484021,71328.668109851904,483606.29727154889,"Winter",217294.11715000001,54324.843418999997,84022.419548999998,1612.7778590999999,57181.860679999998,32197.218185999998,6483.7292556000002,742.46966563000001,3053.2304963000001]
[7350,"2012-03-03","KW60MN02 ",5784706.4698798284,1839914.1227975781,1299224.7302257747,81884.137935900551,458805.25463590282,"Winter",197862.61726,56074.231441000004,68403.303356000004,1312.9749623,56224.269711000001,28273.675213999999,6048.5962409000003,1354.3257784,3053.2304963000001]
[7353,"2012-03-03","KW60MN24 ",5730207.8784646485,1839162.1749244325,1307293.3949049392,79811.914645110315,452056.86537438311,"Winter",172280.12891,55557.170586,65084.256544000003,1249.2671419999999,55768.274012000002,23398.441969,5558.7785127999996,1354.3257784,3053.2304963000001]
[7357,"2011-09-17","KW60MN08 ",5797311.9953952879,1838319.5838819579,1347643.850539255,88860.43725100001,401815.296091703,"Summer",94173.916085999997,46976.812462000002,88504.435536000005,1698.8084232000001,54400.286914999997,31739.261768,5308.6055119000002,30217.333901999998,0]
[7362,"2012-03-20","KW60MN03 ",5762526.6801461512,1837837.0338303554,1333663.6044115818,76513.605035440036,427659.82438333367,"Winter",181660.47109000001,48893.020276000003,78440.754056000005,1505.6399478999999,57273.059820000002,30147.665922,6357.1089701000001,1354.3257784,3053.2304963000001]
[7365,"2012-06-02","KW60MN07 ",5636748.7222267045,1837479.8072900884,1330585.2949420421,102764.01430151936,404130.49804652692,"Summer",71843.377626000001,40083.938706000001,63549.481603,1219.8077303,56543.466700999998,31375.027353000001,5839.8608522000004,28845.743758000001,0]
[7368,"2012-06-05","KW60MN24 ",5793007.7830510959,1837281.4590031141,1333818.7908754726,92164.373289984142,411298.29483765748,"Summer",122482.59084999999,49834.890661999998,66501.437013999996,1276.4693732000001,55175.479603,39433.022819999998,5664.5521766000002,29647.736629999999,3053.2304963000001]
[7371,"2012-06-20","KW60MN05 ",5843528.6380746746,1836561.8807254406,1331249.8493458056,101684.15124250134,403627.8801371337,"Summer",102988.12483,44330.554150999997,61672.577538999998,1183.7812825000001,56406.667991000002,33898.889363000002,6126.1032142000004,40585.313312999999,3053.2304963000001]
[7372,"2012-05-27","KW60MN09 ",5564030.706765472,1836329.628602057,1339878.7256689197,107686.7335415464,388764.16939159081,"Summer",102822.79767,39154.455156000004,64302.033047999998,1234.2526644,55449.077022999998,26128.041058999999,4586.0146193,19321.507323000002,0]
[7375,"2011-11-09","KW60MN03 ",5852363.3185315663,1836009.760209346,1334174.7857330546,86686.454196000006,415148.52028029133,"Winter",195966.47936,48927.495819999996,96150.492197,1845.5715247000001,57364.258958999999,35530.874496999997,6488.4017156,4955.8928413000003,3053.2304963000001]
[7378,"2011-08-19","KW60MN01 ",5791985.9188320441,1835415.5264725508,1343805.1908393034,104209.67695400001,387400.65867924737,"Summer",109009.20655,56745.705970000003,63489.428440000003,1218.6550331000001,54491.486054000001,32208.515281,6590.1191433000004,49136.849241000004,3053.2304963000001]
[7383,"2011-08-16","KW60MN06 ",5874153.8217210462,1834298.7682836559,1352622.4887164617,99722.033732999989,381954.24583419412,"Summer",92306.426137000002,52686.144775000001,63693.540182999997,1222.5728790999999,47013.156587999998,31390.335147000002,6736.9969137999997,47709.777772000001,2930.0693977000001]
[7386,"2011-08-28","KW60MN08 ",5918982.1512862891,1833272.2385830048,1315743.4745851487,95914.982205000008,421613.78179285611,"Summer",111482.83955,50341.308061000003,75653.796858999995,1452.1453819999999,55494.676592999997,25790.548291999999,6289.8831019999998,46491.309045000002,0]
[7390,"2012-06-14","KW60MN05 ",5785630.9478071788,1832819.9293456885,1333608.3704228993,97064.761137387832,402146.79778540152,"Summer",76249.215467000002,49975.429601000003,62184.304413999998,1193.6036819999999,55129.880033000001,33307.456684999997,6334.9825001999998,33632.504784999997,3053.2304963000001]
[7393,"2012-06-13","KW60MN02 ",5675894.7326805545,1832387.7043339673,1335872.9138340757,96273.337169567632,400241.45333032403,"Summer",88994.912267000007,44904.378500999999,64299.031337,1234.1950477,56087.471001999998,36554.517404999999,6240.3956539000001,33782.284943999999,3053.2304963000001]
[7396,"2012-04-23","KW60MN07 ",5913825.1636376595,1831863.6441034763,1345508.3284765189,90799.926852759061,395555.38877419854,"Summer",121724.62323,49267.488700000002,81420.117689999999,1562.827681,35339.666687999998,34676.014912999999,6930.8379891000004,7467.6597125999997,71.849863939000002]
[7397,"2011-08-19","KW60MN06 ",5905387.7010533148,1831845.2136446531,1331287.7731084938,102642.45688000001,397914.98365615937,"Summer",89369.105523000006,53794.966711000001,64310.846302999998,1234.4218314,55631.475301999999,33105.063901000001,6992.6414324999996,44926.711469000002,3018.1607514000002]
[7400,"2011-11-12","KW60MN05 ",5700814.8546139477,1831292.1773345892,1266419.8826694202,75437.917486000006,489434.37717916881,"Winter",237352.13055999999,50704.107888999999,90422.493845999998,1735.6248109000001,57546.657239,34345.607916000001,5916.8176266999999,4955.8928413000003,3053.2304963000001]
[7404,"2012-04-07","KW60MN01 ",5493065.8382472359,1830597.432461808,1308985.6264891347,85364.091757937567,436247.71421473572,"Summer",186566.96437,54091.514878000002,64626.366288999998,1240.4781155999999,55996.271862000001,25935.851001999999,6205.6738567000002,7467.6597125999997,3053.2304963000001]
[7408,"2011-07-14","KW60MN04 ",6035258.947636907,1830222.1541721397,1328817.0262561324,104079.72917200001,397325.3987440074,"Summer",78701.121388,41898.014969999997,57922.688823999997,1111.8036182999999,54810.683043999998,32705.614195999999,5924.8014386000004,40469.014003999997,3053.2304963000001]
[7411,"2012-05-06","KW60MN13 ",5775559.9858153854,1828936.6791516612,1314939.6775139109,99667.495011532126,414329.50662621821,"Summer",151738.35419000001,43582.378927999998,66405.540156000003,1274.6286700999999,55859.473151999999,24678.949903000001,5409.7456534000003,21356.368259999999,0]
[7415,"2012-04-21","KW60MN16 ",5927434.5111124339,1828674.441926026,1328903.0080112151,83010.076223049356,416761.35769176157,"Summer",141211.76564,57894.911660999998,79856.180647999994,1532.8085140999999,34610.073569,28011.440637,5928.6697624999997,7467.6597125999997,0]
[7418,"2012-06-30","KW60MN06 ",5809647.5211363118,1828028.4729437744,1327559.5752418968,95848.84057627221,404620.05712560553,"Summer",80750.016531000001,46158.201464999998,73025.170291000002,1401.6899112999999,55905.072721999997,31310.450099000002,5529.1659490000002,39003.609327999999,661.10921441000005]
[7421,"2012-06-12","KW60MN02 ",5640301.2607093826,1826623.2437706445,1330895.767398438,94523.536860197826,401203.93951200892,"Summer",79351.036548999997,47276.932549999998,69988.692737999998,1343.4058986,56178.670141000002,37237.116884000003,6139.4095684000004,34373.251032,3053.2304963000001]
[7425,"2011-09-05","KW60MN09 ",6084373.5091495113,1826057.4680290716,1325390.6844224879,100662.49400299999,400004.28960358363,"Summer",122906.83057000001,42722.950340000003,74115.262688999996,1422.6138134,54445.886484000002,19383.229271,5836.1465853999998,35826.581160000002,0]
[7426,"2012-04-17","KW60MN24 ",5526643.7674737694,1825805.5052342317,1337411.6487634815,86642.261846971815,401751.59462377842,"Summer",129765.45402,56030.626047999998,79577.099509000007,1527.4516596000001,35202.867978000002,32624.297245999998,5856.1365889999997,7467.6597125999997,3053.2304963000001]
[7430,"2012-03-29","KW60MN24 ",5582218.1218251418,1825385.5487970146,1323087.1031088501,93627.784293244258,408670.66139492008,"Winter",129227.63997,51762.428037999998,77462.563316,1486.8639548000001,48426.743255000001,31461.266416999999,5897.9991241999996,1354.3257784,3053.2304963000001]
[7433,"2011-08-27","KW60MN03 ",5748528.3724667402,1824897.7873574281,1309754.8337621796,98612.286869999996,416530.66672524862,"Summer",108344.45339,59861.640545000002,69104.664269000001,1326.4373138999999,55768.274012000002,32154.517231999998,6769.2165746000001,48514.897529000002,3053.2304963000001]
[7436,"2011-07-10","KW60MN03 ",5881716.2893395685,1824350.4793747119,1325164.926354354,100091.11939499999,399094.43362535792,"Summer",94996.874165999994,45091.485776000001,73851.527124,1417.5515112,54537.085623999999,27305.820986999999,5432.2835021000001,40196.145405000003,3053.2304963000001]
[7440,"2011-11-26","KW60MN03 ",5753192.9962644661,1823249.3896965862,1312542.4287117368,77569.256718999997,433137.70426584937,"Winter",185649.75317000001,51941.136557999998,69419.796711999996,1332.4861593000001,56041.871432,20616.490970999999,5699.6498025000001,4955.8928413000003,3053.2304963000001]
[7443,"2012-06-30","KW60MN05 ",5833468.5358149158,1823058.1843383892,1315953.7136510711,96084.487904485766,411019.98278283241,"Summer",85085.066495000006,48445.069582999997,69338.120574999994,1330.9184174,55950.672292000003,31446.239468,6000.9422254999999,39431.272297000003,3053.2304963000001]
[7446,"2011-11-25","KW60MN05 ",5644411.7993856939,1822957.2184037089,1310956.8876436206,71425.728376999992,440574.60238308838,"Winter",210956.82696999999,49555.422801000001,76785.951790000006,1473.8766582000001,54126.689494999999,19230.357779000002,5909.1385403000004,4955.8928413000003,3053.2304963000001]
[7448,"2012-05-28","KW60MN09 ",5732877.5218206821,1822695.5321251657,1315868.5900009628,110463.2496551349,396363.69246906793,"Summer",112755.13477999999,42507.817223999999,60963.630189000003,1170.1733122000001,55540.276163000002,23923.839360000002,4747.5429236,21062.086115999999,0]
[7451,"2012-04-29","KW60MN18 ",5812523.7352409838,1822078.1608361921,1308403.9426476373,93778.343018898988,419895.87516965577,"Summer",131897.16641999999,50478.095116999997,72010.577449000004,1382.2151939,52576.304118,26900.878130000001,5449.7645984000001,7467.6597125999997,0]
[7455,"2012-05-05","KW60MN20 ",5899361.8662823243,1821242.3424608917,1319388.6678836583,102489.565011208,399364.10956602544,"Summer",117382.44042,50614.768089999998,63876.649481,1226.0875913,55859.473151999999,24984.599068,5398.2185594000002,21356.368259999999,0]
[7458,"2012-03-30","KW60MN24 ",5485331.5205633165,1820393.3656044516,1303258.1008542965,85094.228777952463,432041.03597220266,"Winter",149893.13185000001,56086.476879000002,67839.669309000004,1302.1562246999999,51345.115729999998,27608.972535000001,5853.2501602000002,1354.3257784,3053.2304963000001]
[7461,"2012-05-05","KW60MN18 ",5820959.8254560847,1820063.5949654686,1311467.5518001388,102265.54954579157,406330.49361953844,"Summer",119906.61801999999,51619.056306999999,65736.864602000001,1261.7937013000001,55950.672292000003,25977.740425,5511.0313861000004,21356.368259999999,0]
[7465,"2011-07-24","KW60MN05 ",5918482.6731154351,1819843.4545455358,1334492.5255619469,91280.728841999997,394070.20014158892,"Summer",77843.103226000007,46591.048219999997,59136.132004999999,1135.0951911,55631.475301999999,27429.150831999999,5384.3196830999996,47329.908716999998,3053.2304963000001]
[7467,"2011-10-27","KW60MN04 ",5699906.6068645818,1819127.6320553229,1274835.6327948791,74772.229210000005,469519.77005044365,"Summer",215219.01173999999,45182.710354000003,99563.356224000003,1911.0801303000001,56817.064120000003,37906.085498,6469.9150258,19170.103298999999,3053.2304963000001]
[7470,"2012-06-21","KW60MN03 ",5717008.4028745294,1818444.2871461385,1303798.3589569211,102584.59437438783,412061.33381482965,"Summer",94348.898543999996,44908.283029999999,66682.899223999993,1279.9524701,54901.882184000002,34540.451277,6190.5222194999997,42551.005447000003,3053.2304963000001]
[7473,"2012-05-13","KW60MN09 ",5754219.7880689157,1817797.1888554017,1304657.8691266971,113391.24911798954,399748.07061071502,"Summer",148291.25276999999,42025.400627000003,64603.047999000002,1240.03053,55905.072721999997,23738.434492,4883.4658068999997,21356.368259999999,0]
[7476,"2011-08-12","KW60MN02 ",5518677.9186779736,1817133.2582112632,1329065.2911049835,98429.861889000007,389638.10521727963,"Summer",101443.13889,50945.597377999999,64073.673599000002,1229.8693929999999,55859.473151999999,32088.142179999999,6297.3387229999998,52754.826024000002,3053.2304963000001]
[7480,"2012-06-09","KW60MN06 ",5598363.1293848325,1816736.0416506445,1331684.7376245633,90406.826193684465,394644.47783239681,"Summer",117213.27658000001,42293.987224999997,55355.374734999998,1062.5250169999999,55357.877883000001,31054.775949999999,5777.1720117000004,31810.018261000001,457.56051463]
[7483,"2012-06-20","KW60MN03 ",5743067.9380412083,1815810.7315823522,1319187.572886883,99216.277407973059,397406.88128749601,"Summer",70932.589162999997,40525.772303999998,64257.305708,1233.3941404,56634.665841000002,34381.700173999998,5863.9578811000001,41209.162603999997,3053.2304963000001]
[7486,"2012-03-03","KW60MN03 ",5733709.4233600181,1815737.8138462177,1278835.6956365658,83553.495349170887,453348.62286048103,"Winter",190404.84581999999,53077.597095999998,68394.802546999999,1312.8117926,55813.873582,27911.589360999998,6063.6987839000003,1354.3257784,3053.2304963000001]
[7488,"2011-07-17","KW60MN02 ",6024408.7354704812,1815374.9600829682,1313510.9318463702,99931.972533000007,401932.05570359796,"Summer",95248.282940999998,45208.804818999997,59261.655098000003,1137.5045583000001,56041.871432,27591.086841,5545.5195600999996,50327.711173999996,3053.2304963000001]
[7494,"2011-07-18","KW60MN02 ",6340745.5757012349,1815039.3123388477,1324007.2049598489,90292.985197000002,400739.12218199886,"Summer",94051.290584000002,42626.468306000002,54024.738522,1036.9839692999999,53761.892935999997,29694.112034000002,5519.3740980000002,50100.538443999998,3053.2304963000001]
[7495,"2011-10-27","KW60MN02 ",5636946.7875002725,1815031.9742828191,1280995.2689292044,73235.327495999998,460801.3778576146,"Summer",181032.06043000001,46480.172454,101690.72671,1951.9141843,56862.663690000001,38563.952332000001,6410.7779312000002,19170.103298999999,3053.2304963000001]
[7498,"2011-09-18","KW60MN23 ",5623376.7177957101,1814680.0180314721,1317486.5459658783,82852.529696999991,414340.94236859371,"Summer",126078.37966999999,46234.291575000003,73820.646280999994,1416.9587653999999,54765.083473999999,30121.975536000002,5793.6678273999996,30217.333901999998,3053.2304963000001]
[7501,"2011-07-01","KW60MN04 ",5937704.1399505474,1813605.5503121566,1337919.32004524,94097.341881,381588.88838591654,"Summer",76909.262864000004,39317.894237,64019.69528,1228.8333001000001,56041.871432,31905.518869,5190.6157340999998,48832.706700000002,3053.2304963000001]
[7505,"2011-10-12","KW60MN24 ",5643382.0297910227,1813191.4059720056,1341491.1530076435,73525.161775,398175.09118936217,"Summer",126786.34323,45913.212361999998,101531.0782,1948.8497929,42635.597874999999,39318.385739999998,6233.7932644000002,19170.103298999999,3053.2304963000001]
[7508,"2011-09-10","KW60MN08 ",5987862.6057847003,1812846.5325063057,1291984.9502214994,91795.752553999992,429065.82973080652,"Summer",109867.07634,49840.596416,94697.180961999999,1817.6757774,54081.089925,32308.446023,5955.4365256999999,43839.337440000003,0]
[7513,"2012-04-05","KW60MN03 ",5304382.2609458491,1811841.8460002791,1318434.2831063929,85173.3160799498,408234.24681393633,"Summer",143210.20097000001,48043.515296999998,74570.685180999993,1431.3554721,47651.550565999998,30749.846798999999,6235.0968135000003,7467.6597125999997,3053.2304963000001]
[7516,"2012-06-22","KW60MN04 ",5891941.5508273747,1811595.5920066615,1305191.8443105153,88044.551176238892,418359.19651990721,"Summer",86793.758008999997,49898.748187999998,70149.433256999997,1346.4912506999999,56406.667991000002,34559.779358,6354.0380124000003,40134.280734,3053.2304963000001]
[7519,"2011-11-03","KW60MN04 ",5712200.8654526602,1811286.8310877355,1315368.0335999671,74590.147096999994,421328.65039076842,"Winter",172893.37301000001,44183.187911000001,104235.58808,2000.7618144,55403.477453,38780.722580000001,6649.4187576000004,4955.8928413000003,3053.2304963000001]
[7520,"2012-05-26","KW60MN08 ",5796552.1494206702,1811049.580405121,1301519.1527156793,111089.65137294856,398440.77631649311,"Summer",106235.84587999999,39366.146502000003,64880.033532000001,1245.3471602,55038.680892999997,29912.648478999999,4529.1240299999999,24105.501122000001,0]
[7523,"2012-06-25","KW60MN06 ",6206887.4729571417,1810344.512057333,1321853.9796431309,89480.426558146384,399010.10585605563,"Summer",73147.828926000002,43926.451478000003,68184.126103999995,1308.7679396999999,55859.473151999999,32225.884590000001,5292.1096963,41813.536752,508.44768959999999]
[7526,"2012-03-13","KW60MN04 ",5462295.0500875218,1809991.0828138273,1308875.3192235108,79250.094476715283,421865.66911360121,"Winter",149510.30074999999,49245.573527,79294.699850000005,1522.0311073,56224.269711000001,32160.181096,6480.9833385000002,1354.3257784,3053.2304963000001]
[7530,"2012-03-30","KW60MN06 ",5875300.7853029808,1808717.4999921867,1281090.0027885174,92081.713111153891,435545.78409251553,"Winter",173275.96033,56774.826043000001,87327.218196999995,1676.2121915,52348.306268,33103.534734000001,7870.6779668999998,1354.3257784,0]
[7534,"2012-06-20","KW60MN04 ",5747034.8512891699,1807993.8505764417,1315412.6789026768,96745.889465898203,395835.28220786655,"Summer",71189.646978999997,40684.272076000001,63851.169673999997,1225.5985161999999,56497.867130999999,33770.699576999999,5935.9137683999998,40819.059794000001,3053.2304963000001]
[7538,"2012-06-09","KW60MN24 ",5663250.129057439,1807508.233530242,1318993.36305076,92316.928117866162,396197.94236161583,"Summer",115589.24648,43449.324473000001,56640.388067,1087.1903511,54491.486054000001,28497.318823000001,5423.7714994999997,30162.031711,3053.2304963000001]
[7541,"2011-08-22","KW60MN02 ",5636702.2734469213,1807319.7274255492,1322905.490756972,93046.241767,391367.99490157719,"Summer",120999.11904000001,48028.388863,61453.025604000002,1179.5670680000001,56680.265411,30404.081432999999,5930.8350068,46808.212986999999,3053.2304963000001]
[7544,"2012-06-26","KW60MN05 ",5994811.6633903058,1806566.4105303821,1313643.3048667766,94527.720755847011,398395.38490775856,"Summer",85605.509474999999,50537.255960000002,68880.249725999995,1322.1297635000001,55950.672292000003,36245.17815,6342.6006420000003,42996.914292000001,3053.2304963000001]
[7545,"2012-06-03","KW60MN01 ",5678873.1255752696,1806507.3053352525,1308369.8543771217,99399.078510679945,398738.37244745076,"Summer",95248.505510999996,50287.057605000002,59440.674233999998,1140.9407613999999,53533.895085999997,27261.218427,5692.2991420999997,33445.358467999999,3053.2304963000001]
[7548,"2011-11-03","KW60MN03 ",5660487.0412738323,1805801.7693046601,1308853.2801222205,74488.53117799999,422459.95800443977,"Winter",168800.58525,44443.735678999998,100080.73917,1921.0110958,55722.674442000003,38062.412081000002,6121.6542196999999,4955.8928413000003,3053.2304963000001]
[7551,"2011-07-02","KW60MN06 ",5866541.4895578427,1805079.7507377861,1322217.4304662945,94891.027386999995,387971.29288449156,"Summer",78522.482422000001,42744.804453999997,62264.864310999998,1195.1499980999999,56680.265411,27936.359135999999,4804.7517813000004,50116.35009,661.10921441000005]
[7556,"2012-06-02","KW60MN04 ",5529946.4574306579,1804277.8933608304,1303942.4749744125,93433.98754664298,406901.43083977496,"Summer",75368.707129999995,44852.425772000002,61229.020192000004,1175.2673706999999,56406.667991000002,33211.517338999998,5940.4761884,28529.865059,3053.2304963000001]
[7559,"2012-05-26","KW60MN23 ",5714442.9595856601,1803944.9857333777,1306999.5464095133,101069.4540937241,395875.98523014039,"Summer",118617.06832000001,54563.927524999999,67219.418432000006,1290.2507489,55768.274012000002,28705.094814,4879.4061830999999,19236.452012999998,3053.2304963000001]
[7563,"2012-04-28","KW60MN18 ",5766576.3885383476,1802884.8004395531,1292574.611334211,91210.308548861081,419099.88055648096,"Summer",129377.52501,54621.783646000004,75191.122998000006,1443.2645361,55449.077022999998,26492.610484000001,5291.1599679999999,7467.6597125999997,0]
[7566,"2012-06-21","KW60MN04 ",5757725.893696269,1802234.6499917377,1300989.8453040554,99220.433475779791,402024.37121190259,"Summer",89707.486197000006,44506.431487000002,64131.675824999998,1230.9827233000001,54856.282614000003,34775.663321,6236.5764253999996,41382.638066,3053.2304963000001]
[7569,"2011-10-03","KW60MN24 ",5546087.5539657027,1801274.26381801,1326704.9577435297,77165.597113999989,397403.70896048029,"Summer",87916.390769999998,42352.559978999998,91636.568924000007,1758.9285126,56269.869280999999,37781.814618999997,6295.6932047,19170.103298999999,3053.2304963000001]
[7570,"2011-10-27","KW60MN03 ",5650509.7519795895,1801064.5576836383,1266353.5789416453,72727.532380000004,461983.44636199309,"Summer",212914.46838999999,43671.876192999996,100162.27899999999,1922.5762215,56999.462399999997,38019.359616000002,6401.7580518000004,19170.103298999999,3053.2304963000001]
[7576,"2012-04-20","KW60MN23 ",5649994.7040957734,1800326.2764424563,1327072.8381079272,88167.430810341539,385086.00752418744,"Summer",136567.64004999999,58135.417786999998,76525.447935999997,1468.8763874000001,35339.666687999998,29735.836139999999,5955.8394406999996,7467.6597125999997,3053.2304963000001]
[7577,"2012-05-05","KW60MN16 ",5796612.9723741971,1800043.2397625104,1288988.8185827909,98374.953643583707,412679.46753613581,"Summer",113663.55976,52750.310806000001,65114.398929000003,1249.8457134,55494.676592999997,25968.388473999999,5610.9390819,21356.368259999999,0]
[7581,"2012-05-18","KW60MN06 ",5960922.9775153929,1799189.6489715436,1319664.6630669942,98312.639513541653,381212.34639100771,"Summer",90433.997252999994,45124.976349999997,66944.328819000002,1284.9705102,55905.072721999997,35341.109707000003,6359.3808688999998,21356.368259999999,1169.9809634999999]
[7584,"2012-01-05","KW60MN02 ",5698698.2446301654,1798772.9117377179,1290719.8525024885,78518.265100065168,429534.79413516429,"Winter",149494.74205,47688.415265000003,80840.105079999994,1551.6945631999999,54217.888635000003,33738.906095999999,6221.2588818000004,742.46966563000001,3053.2304963000001]
[7588,"2011-10-20","KW60MN24 ",5583995.3894210747,1797931.6516835364,1318840.2178458949,72322.916163000002,406768.51767464133,"Summer",113595.23075,48793.592973999999,108750.02153,2087.4146191999998,57501.057669000002,42265.088361000002,6022.8824739000002,19170.103298999999,3053.2304963000001]
[7591,"2012-06-01","KW60MN05 ",5658090.8645966137,1797401.7587540685,1299338.8404673352,93283.207381899309,404779.71090483404,"Summer",75132.835863999993,49758.342614000001,61746.272806000001,1185.1958345999999,56725.864979999998,36679.084728000002,6174.9845971000004,29710.055934,3053.2304963000001]
[7594,"2012-03-21","KW60MN02 ",5558493.8334295535,1796638.9048634665,1289312.0029586477,73693.722133148171,433633.17977167061,"Winter",174800.91497000001,48478.940969000003,83143.269880000007,1595.9029211,51299.516159999999,31208.757427,6434.9308265,1354.3257784,3053.2304963000001]
[7597,"2012-02-11","KW60MN04 ",5758525.4043545974,1795962.9460511934,1257855.1733076789,68037.371298088619,470070.40144542581,"Winter",170919.44158000001,51559.243102,68436.860717000003,1313.6190829,54947.481754,29707.844018,6092.4140991000004,747.06969021999998,3053.2304963000001]
[7599,"2012-05-29","KW60MN24 ",5778840.2156762443,1795435.0352622981,1307236.2449422232,104596.04369916719,383602.74662090762,"Summer",114665.91989999999,51141.272120000001,63930.081564,1227.1131994,55221.079172999998,32784.780286000001,5696.4146312000003,28759.764827999999,3053.2304963000001]
[7603,"2012-06-01","KW60MN04 ",5579932.3539656959,1795096.1714583666,1306072.4031613283,92937.276927766419,396086.49136927183,"Summer",77764.493602000002,45796.984338000002,57879.892770999999,1110.9821647000001,56269.869280999999,36386.918363999997,5767.1973245999998,29790.507688000002,3053.2304963000001]
[7606,"2012-06-23","KW60MN02 ",5901754.5095506515,1794142.3896249942,1306028.1565047526,87185.480095172141,400928.75302506948,"Summer",65750.310383999997,47459.325467000002,72626.834732999996,1394.0440143000001,56543.466700999998,33762.505978000001,5762.7686454000004,41631.028503000001,3053.2304963000001]
[7609,"2012-06-26","KW60MN04 ",5881302.8465109132,1793347.7963565902,1306479.1191607784,94602.787716114166,392265.88947969762,"Summer",66843.765270999997,44032.977631000002,63709.075106999997,1222.8710659000001,55813.873582,35319.300005999998,6123.7263536999999,43362.518982000001,3053.2304963000001]
[7613,"2012-06-01","KW60MN02 ",5649992.2324832631,1792500.2186742746,1306239.8306988406,95197.547379320909,391062.840596113,"Summer",81795.396286000003,45106.176766999997,65315.139446000001,1253.69885,55950.672292000003,36675.859246,5740.6607979,30259.528504999998,3053.2304963000001]
[7616,"2012-06-29","KW60MN04 ",6003487.1249251282,1791911.982533541,1297481.5902880968,96896.97732131138,397533.41492413281,"Summer",70027.873682999998,43775.680423999998,68608.775693000003,1316.9189243999999,55768.274012000002,40299.755949999999,6419.9400162000002,40924.345524999997,3053.2304963000001]
[7618,"2011-08-20","KW60MN02 ",5650399.5329557266,1791528.8033015677,1304231.5911912119,103785.70787100001,383511.5042393558,"Summer",99370.937481000001,57467.182570999998,62400.552411999997,1197.7544786999999,55403.477453,31852.616875,6059.8964839,46487.351368000003,3053.2304963000001]
[7621,"2011-07-17","KW60MN03 ",5914864.1460993914,1790761.4249654021,1296891.6065727593,93347.066545999987,400522.75184664264,"Summer",88556.237286000003,42641.745778999997,56952.303037999998,1093.1774382999999,55859.473151999999,27456.713531000001,5536.4793655000003,50123.074566000003,3053.2304963000001]
[7624,"2011-07-17","KW60MN06 ",5885269.5592125617,1790046.6913636567,1310803.5784805254,92959.990970999992,386283.12191213126,"Summer",79738.425029999999,44134.731583000001,55569.935339000003,1066.6434248,55175.479603,27285.713008999999,5087.7606648000001,47546.670870000002,1271.7553132999999]
[7628,"2011-10-11","KW60MN06 ",5916123.149894827,1788442.5331311617,1313636.9219251163,72781.982367999997,402023.62883804541,"Summer",118966.5033,47750.72062,107065.95841000001,2055.0896787000001,43137.193143999997,39145.840018000003,7611.8236715000003,19170.103298999999,3053.2304963000001]
[7631,"2011-12-26","KW60MN04 ",5579052.929651821,1787811.3437297307,1254644.6506737829,78679.685507000002,454487.00754894788,"Winter",236462.16829,49417.482062000003,70913.154794999995,1361.1505904000001,56224.269711000001,17517.065910000001,6351.0720153000002,816.33821894000005,3053.2304963000001]
[7634,"2012-06-19","KW60MN03 ",5771582.9925259901,1786280.5250672775,1301294.8931253415,95495.097693654665,389490.53424828133,"Summer",72839.283236999996,42826.961847999999,59748.007464000002,1146.8399039000001,55768.274012000002,32884.841243000003,5995.3555882999999,39090.356486999997,3053.2304963000001]
[7638,"2012-03-04","KW60MN24 ",5576498.6591514479,1785715.7884277562,1297558.8187485461,75637.332213534508,412519.63746567571,"Winter",153289.5085,52276.850524000001,66424.581802999994,1274.9941670999999,53488.295515999998,28730.331407000001,5357.9016601000003,1354.3257784,3053.2304963000001]
[7639,"2012-03-21","KW60MN03 ",5549082.1468178397,1785497.3015029442,1281441.6558154703,73011.050908277102,431044.59477919689,"Winter",179918.76501,49271.722623000001,81199.985071999996,1558.6023204999999,51573.113579999997,31241.196134999998,6513.6651660999996,1354.3257784,3053.2304963000001]
[7643,"2012-05-22","KW60MN06 ",6071231.2775261961,1784197.9485542229,1300316.1355327414,102429.38464496928,381452.42837651214,"Summer",91184.047741000002,46402.170250000003,72703.758841000003,1395.5205427999999,56041.871432,37568.276546000001,6012.9721179999997,21356.368259999999,1017.3194389]
[7646,"2012-06-12","KW60MN03 ",5520702.7422309089,1783704.6146209091,1297920.2072510417,93325.553505798103,392458.85386406927,"Summer",73204.912846000007,46680.113255999997,67541.338225,1296.4298749,55950.672292000003,36533.932217000001,6223.5138519000002,33568.385404000001,3053.2304963000001]
[7649,"2012-05-06","KW60MN17 ",5742518.5726382034,1783450.4735144675,1280925.1383623206,94803.307451140179,407722.02770100679,"Summer",109112.00212,49479.480517000004,67665.400250999999,1298.8111974999999,56178.670141000002,26636.095763000001,5525.5938877999997,21356.368259999999,0]
[7653,"2011-08-18","KW60MN02 ",5495760.9337346451,1781981.0578579572,1297896.7008564712,104726.986446,379357.37055548606,"Summer",94757.303996999995,53963.950865999999,67094.037840999998,1287.8441170000001,54172.289064999997,31345.799093000001,6614.7409774999996,48529.607809000001,3053.2304963000001]
[7656,"2012-06-16","KW60MN05 ",5603883.2347434433,1781848.6893593173,1299895.8541154258,93750.297125727462,388202.53811816411,"Summer",63044.558015000002,46007.888350000001,58627.328871999998,1125.3289116000001,54993.081323999999,31217.719206000002,5601.8531784999996,33141.194108999996,3053.2304963000001]
[7659,"2012-03-21","KW60MN04 ",5603239.9090951271,1781224.7882016881,1277444.6278196515,72292.476432206007,431487.68394983053,"Winter",164745.50722,50653.864796000002,80440.340375999993,1544.0212343000001,51892.310569000001,32340.288971999998,6933.1471328999996,1354.3257784,3053.2304963000001]
[7664,"2012-04-07","KW60MN02 ",5400887.5853137877,1780100.9830968301,1267127.8317881993,83475.810927897444,429497.34038073331,"Summer",196666.15483000001,51744.486486000002,64699.684117999997,1241.8854229000001,56041.871432,25355.442859999999,6010.3650199000003,7467.6597125999997,3053.2304963000001]
[7667,"2012-04-15","KW60MN07 ",5417023.4824907407,1779862.1619230742,1317209.0909386433,93474.556806319422,369178.51417811157,"Summer",117231.7075,44879.301141999997,60998.508183999998,1170.8427818,36297.257656000002,24014.959943000002,5334.8102270999998,7467.6597125999997,661.10921441000005]
[7668,"2012-05-06","KW60MN14 ",5695752.4004268609,1779712.4629159365,1279809.8889187977,95921.788893479301,403980.78510365932,"Summer",126130.55645,42814.020664000003,67003.855611999999,1286.1131038999999,56041.871432,25890.885455,5471.9435481,21356.368259999999,0]
[7671,"2011-10-25","KW60MN04 ",5434375.1126479423,1779453.7892103456,1295543.986086146,70060.852275999991,413848.95084819966,"Summer",147581.9008,41525.162988999997,98412.173423999993,1888.9836215,56361.068421000004,39418.539073,6422.6216021,19170.103298999999,3053.2304963000001]
[7674,"2012-05-09","KW60MN24 ",5736353.0652072039,1779192.3981126971,1301825.123748349,100917.61571041417,376449.6586539339,"Summer",123360.75689999999,50556.319060000002,73508.477197,1410.9668005000001,54491.486054000001,32836.654105000001,5806.8996926999998,21356.368259999999,3053.2304963000001]
[7678,"2012-04-29","KW60MN17 ",5773966.2488670573,1778784.1704625485,1274156.0868128287,87428.511844598062,417199.57180512184,"Summer",136629.95967000001,48123.879500000003,73803.056744999994,1416.6211410000001,54081.089925,26838.934288,5759.9905626,7467.6597125999997,0]
[7681,"2011-08-05","KW60MN03 ",5413459.4107900131,1778488.7455024906,1283778.9014401231,90896.435483999987,403813.40857836732,"Summer",105361.60129999999,55031.045760000001,72615.391694000005,1393.8243695000001,54993.081323999999,32417.820873000001,6848.1202073000004,36854.973727999997,3053.2304963000001]
[7685,"2011-08-02","KW60MN03 ",5281180.864247473,1777595.8533621272,1302613.2274807806,100321.03189600001,374661.59398534673,"Summer",100075.78505000001,48119.017316999998,69583.491746999993,1335.6282222,55996.271862000001,30552.952795000001,6855.2914180999996,30698.377070999999,3053.2304963000001]
[7689,"2011-10-06","KW60MN01 ",5505066.1888662148,1776282.7090003979,1314878.5368577689,72598.496989000007,388805.67515362881,"Summer",105765.11021,45977.667617999999,95433.390358999997,1831.8070322000001,56315.468850999998,36257.310468000003,6203.9707792999998,19170.103298999999,3053.2304963000001]
[7692,"2011-08-04","KW60MN05 ",5484290.0702436175,1775600.5641194021,1282650.7435157711,95419.19077500001,397530.62982863089,"Summer",101359.8023,49774.605058000001,78505.852633000002,1506.8894898999999,52667.503257999997,32123.232141,7078.2896602999999,32807.236482,3053.2304963000001]
[7693,"2012-04-15","KW60MN15 ",5681970.9866746888,1775559.6416148811,1304471.3148380679,88784.762883713658,382303.56389309949,"Summer",124542.45552,41383.010821000003,74257.570605999994,1425.3453589000001,35978.060666999998,24897.229383999998,5580.8829736999996,7467.6597125999997,0]
[7696,"2011-08-23","KW60MN05 ",5794543.7269265214,1774776.7323895406,1284991.2107039806,100145.197376,389640.32430955995,"Summer",82554.529752999995,53930.842709999997,70036.556597000003,1344.3246269000001,56224.269711000001,33380.643189000002,6901.8128691000002,49285.071834000002,3053.2304963000001]
[7699,"2012-04-01","KW60MN06 ",5237219.9146152539,1774120.7204227904,1257085.0212254436,81597.311789329586,435438.38740801706,"Summer",149337.14124999999,48895.960723999997,65751.625931999995,1262.0770394000001,51937.910139,24996.616054999999,6001.1284470999999,7467.6597125999997,3053.2304963000001]
[7702,"2012-04-28","KW60MN17 ",5728030.9856299562,1772877.1475794509,1265599.2168616056,89235.966959592712,418041.96375825262,"Summer",117191.80387,56902.966896999998,76522.072690000001,1468.8116009,55768.274012000002,26056.117198,5441.8315734999996,7467.6597125999997,0]
[7707,"2011-10-29","KW60MN06 ",5734885.6175305378,1772124.0883427639,1226800.6639989936,79971.960918000012,465351.46342577029,"Summer",174843.73321000001,48529.717519999998,91924.422323999999,1764.4537474000001,56497.867130999999,35125.357276000002,5985.4418469000002,19170.103298999999,3053.2304963000001]
[7711,"2011-08-17","KW60MN02 ",5469625.6624936163,1770705.3265459309,1292256.4231552698,102661.808189,375787.09520166111,"Summer",104712.49163,50808.882627999999,65261.037801999999,1252.6603898999999,53625.094226000001,32197.73962,6055.9350508999996,46351.561077999999,3053.2304963000001]
[7714,"2012-04-16","KW60MN24 ",5438551.0692685442,1769854.7138908016,1293808.2152301648,86768.821015122128,389277.6776455146,"Summer",128423.63215,48398.520528000001,73986.168109999999,1420.1358929,34974.870129000003,31782.207192000002,5579.2069824999999,7467.6597125999997,3053.2304963000001]
[7717,"2012-05-10","KW60MN24 ",5664229.3927197838,1769379.2191214575,1272749.5513847985,104324.05105934155,392305.61667731748,"Summer",136281.82831000001,53991.300242999998,75755.676240000001,1454.1009173,57318.659389,32153.936890000001,5854.1440221000003,21356.368259999999,3053.2304963000001]
[7718,"2012-06-27","KW60MN04 ",5723193.1462460645,1769109.1676829797,1283939.7075434276,95769.059987309331,389400.40015224274,"Summer",71802.944065999996,47633.824165999999,60747.993305000004,1166.0342456000001,55859.473151999999,36330.999313,6043.6241338,43233.844048999999,3053.2304963000001]
[7721,"2012-04-04","KW60MN04 ",5406302.6995768212,1768644.6992295999,1288642.5059664024,78888.947020228094,401113.24624296953,"Summer",140121.84007000001,47798.084323000003,75253.575026000006,1444.4632786,49977.128632,29820.258131999999,5837.5330870999996,7467.6597125999997,3053.2304963000001]
[7727,"2011-09-28","KW60MN06 ",6031206.3564246446,1767809.1928350916,1275036.52411867,76507.272754999998,416265.39596142143,"Summer",93336.342573000002,47478.454445000003,96909.202195999998,1860.1346698,54947.481754,35948.415467999999,6493.8055178000004,30217.333901999998,3053.2304963000001]
[7729,"2011-08-14","KW60MN01 ",5780561.7333840374,1767098.1123332498,1275610.4863375884,101023.11933500001,390464.50666066137,"Summer",128536.40097,55207.371393000001,66545.731912999996,1277.3195966999999,50524.323471000003,26428.930195000001,5903.0033968999996,53033.757402000003,3053.2304963000001]
[7732,"2011-07-05","KW60MN03 ",5898712.6701817783,1766579.8445876436,1276792.6388048213,94957.74616200001,394829.45962082234,"Summer",89700.565327999997,43362.075124000003,54283.440730000002,1041.9496581999999,54400.286914999997,24836.484924,5376.2952408000001,48965.758183999998,3053.2304963000001]
[7736,"2011-07-04","KW60MN04 ",6056747.4135663994,1764836.327245336,1293460.7681509843,90090.579755000013,381284.97933935153,"Summer",73343.679975999999,40329.726390000003,58853.626360000002,1129.6726044,53123.498957000003,22400.774110999999,5254.3237134999999,53106.539176999999,3053.2304963000001]
[7739,"2012-01-05","KW60MN03 ",5681678.9748685481,1763760.7799980468,1265522.795398308,80909.756445375097,417328.22815436369,"Winter",137765.14113999999,48091.524935000001,80946.967638999995,1553.7457486999999,52074.708849000002,33449.795127999998,6242.7318839,742.46966563000001,3053.2304963000001]
[7742,"2011-08-08","KW60MN01 ",5470524.3083410403,1763414.5015908929,1274325.0978427208,92333.21878000001,396756.18496817211,"Summer",127702.66413999999,52661.991327000003,70236.916803999993,1348.1704635999999,55859.473151999999,28770.791694,5980.3630853000004,37093.741759999997,3053.2304963000001]
[7743,"2012-04-15","KW60MN16 ",5704787.1768606966,1763177.4593671085,1293255.0205783038,87012.691425092431,382909.74736371206,"Summer",138494.48202,42391.193927,75505.822883999994,1449.3050788,35020.469699000001,25213.687560999999,5496.2081760999999,7467.6597125999997,0]
[7748,"2011-11-25","KW60MN04 ",5487004.8566120947,1761869.8507723433,1267308.7815218973,67386.003245,427175.06600544596,"Winter",201177.68165000001,48425.704404999997,73912.383851000006,1418.7196326000001,55540.276163000002,18800.007541999999,5545.7836561000004,4955.8928413000003,3053.2304963000001]
[7750,"2012-04-28","KW60MN15 ",5694039.1341024665,1761641.3170503154,1258820.1800086081,91134.478521509154,411686.65852019831,"Summer",154608.85079999999,51381.656129000003,78596.185400999995,1508.6233924999999,55768.274012000002,25342.558446999999,5460.9751167000004,7467.6597125999997,0]
[7754,"2011-10-05","KW60MN01 ",5474915.6520490926,1761170.5359473769,1308924.1629859013,76035.422754999992,376210.95020647545,"Summer",104668.39096,46514.752439999997,86016.014964000002,1651.0441524,56178.670141000002,37960.370223999998,6102.639338,19170.103298999999,3053.2304963000001]
[7757,"2012-04-08","KW60MN17 ",5552702.47063269,1759796.0043810026,1292649.211554969,91041.802905535238,376104.9899204984,"Summer",146379.23821000001,36053.285486000001,66638.257201,1279.0955838,48381.143685000003,20937.136793000001,5336.2255077999998,7467.6597125999997,0]
[7761,"2012-05-06","KW60MN07 ",5370710.6769116456,1758501.753955978,1267544.9939925754,94328.567712700766,396628.19225070177,"Summer",132218.15483000001,39127.856156000002,54049.856620999999,1037.4661014999999,55403.477453,24691.354626,5210.1909722999999,21356.368259999999,0]
[7764,"2012-06-25","KW60MN01 ",6011699.1051719347,1757909.866351339,1283325.0072066435,85698.029842240183,388886.82930245518,"Summer",91008.906304999997,44274.303226000004,63138.946635,1211.9276703,56771.464549999997,30583.754927000002,5090.1375252999997,42543.713225,3053.2304963000001]
[7767,"2011-10-07","KW60MN01 ",5482212.3566143392,1757046.8440362224,1301462.9574023047,70862.506189999986,384721.38044391753,"Summer",110368.20871000001,44462.978739999999,94713.364891999998,1817.9864216999999,55312.278313000003,37609.939147999998,6199.0342233000001,19170.103298999999,3053.2304963000001]
[7769,"2012-04-22","KW60MN13 ",5669183.3617702071,1756960.7013599323,1294079.3533401547,86603.026998628324,376278.32102114911,"Summer",138105.93828999999,50638.505376000001,83656.690119000006,1605.7578241000001,33515.683891000001,26752.281212999998,5974.4801876000001,7467.6597125999997,0]
[7772,"2012-04-29","KW60MN15 ",5695136.7679047631,1756835.3566566743,1253526.0979085343,87585.554469032984,415723.70427910704,"Summer",124550.41505,49779.804668999997,74334.003366000004,1426.8124561,55357.877883000001,26151.645452000001,5687.6622332999996,7467.6597125999997,0]
[7776,"2012-05-06","KW60MN16 ",5709182.0875556264,1754316.6798451021,1255632.8955442177,96590.968095624485,402092.81620525994,"Summer",108634.90731,47464.439917999996,67287.910053,1291.5654191000001,56041.871432,26171.842906000002,5404.7549249000003,21356.368259999999,0]
[7779,"2011-08-13","KW60MN07 ",5426119.8214403652,1753159.4697457347,1276658.7089487105,98087.920215000006,378412.84058202436,"Summer",89447.301802000002,45729.803946,67144.491523000004,1288.8125559,56041.871432,28805.850849999999,5951.779818,48345.484661000002,10.672171419]
[7782,"2011-08-02","KW60MN04 ",5291622.2427905854,1752847.0842043739,1277016.851243821,98290.499737999999,377539.73322255269,"Summer",88495.963195000004,47776.128980000001,66586.606553999998,1278.1041696,55677.074871999997,30942.946964999999,6797.6170069,30335.049719999999,3053.2304963000001]
[7786,"2012-04-23","KW60MN23 ",5701034.1642159866,1752245.4715326971,1300047.6453805962,79012.467783649365,373185.35836845142,"Summer",151313.45736,55808.368371999997,87356.733852999998,1676.7787331,14819.860224,34581.737441999998,6509.0655022000001,7467.6597125999997,3053.2304963000001]
[7789,"2012-06-23","KW60MN03 ",5792134.559991478,1751820.8072539046,1271175.0805103325,86334.98264159284,394310.74410197942,"Summer",63033.927645000003,45119.270597000002,69052.259090000007,1325.4314168000001,56406.667991000002,33341.483812999999,5843.2974811000004,41031.068223000002,3053.2304963000001]
[7790,"2011-11-23","KW60MN02 ",5671124.4355678689,1751558.2486782693,1252031.1727119412,71989.244015999997,427537.83195032802,"Winter",136528.40413000001,50259.600572000003,86453.786831999998,1659.4470140999999,56634.665841000002,35538.378406999997,5415.5845362999999,4955.8928413000003,3053.2304963000001]
[7794,"2012-03-17","KW60MN05 ",5363127.6737956479,1751045.6366785083,1259279.6452527579,78446.141193770076,413319.85023198015,"Winter",146675.51074999999,45691.489751000001,68491.383663999994,1314.6656298,55905.072721999997,28586.019564999999,5705.3346282000002,1354.3257784,3053.2304963000001]
[7797,"2011-10-25","KW60MN03 ",5374860.6925439881,1750816.5083642481,1273081.2956932439,69665.550822999983,408069.66184800415,"Summer",134810.64024000001,41198.533882000003,95174.448734999998,1826.8367478,56269.869280999999,40118.961023000003,6364.1142745999996,19170.103298999999,3053.2304963000001]
[7801,"2012-05-30","KW60MN06 ",5724902.6658517988,1750312.9215032279,1270377.5568073799,97820.066194177954,382115.29850167013,"Summer",81399.878698999994,49742.779130000003,64504.105106000003,1238.1313594000001,56452.267561000001,33360.790488999999,6014.4618874999996,25109.901586,661.10921441000005]
[7804,"2011-09-24","KW60MN23 ",5719981.0069735469,1749595.0952185774,1247746.8992800512,78500.271978000004,423347.92396052612,"Summer",140196.62361000001,58586.435866,98791.107579999996,1896.2571161000001,55084.280463000003,32309.591756000002,7282.1917609000002,30217.333901999998,3053.2304963000001]
[7807,"2011-11-25","KW60MN02 ",5391401.0953749493,1748983.6572319088,1257366.1321932941,69513.538371999995,422103.98666661477,"Winter",208678.58927999999,47679.773884000002,70184.017521999995,1347.1550823,55403.477453,18459.937257000001,5510.2729576000002,4955.8928413000003,3053.2304963000001]
[7811,"2012-03-25","KW60MN24 ",5294966.4491494773,1748393.725495718,1282090.2137134059,83415.397352680578,382888.11442963156,"Winter",120912.04115,45848.029223999998,63945.809053999998,1227.4150824999999,56452.267561000001,28133.460653999999,5161.6803399,1354.3257784,3053.2304963000001]
[7815,"2012-06-03","KW60MN02 ",5510901.2821115805,1747628.2320538228,1274442.979624419,93652.273800167954,379532.97862923576,"Summer",79943.168283999999,46506.626841999998,61109.231593999997,1172.9680748999999,47149.955297,27115.455363000001,5553.0615203999996,32780.821128000003,3053.2304963000001]
[7816,"2011-08-12","KW60MN04 ",5407681.8713816656,1747430.5463486598,1273767.2495362037,95647.084487,378016.21232545597,"Summer",87232.401194000005,45623.194237999996,59552.347268999998,1143.0842821000001,55859.473151999999,31582.496963000001,6227.5159155000001,50377.341803000003,3053.2304963000001]
[7819,"2012-03-24","KW60MN24 ",5374664.6800358966,1746984.3117004521,1250270.240663586,80916.762379594322,415797.30865727173,"Winter",154124.95170000001,58276.194533000002,58639.265555999998,1125.5580316999999,56224.269711000001,25559.693199000001,5331.7003316,1354.3257784,3053.2304963000001]
[7822,"2012-05-02","KW60MN24 ",5470020.735881391,1746771.9357249946,1266051.0311952098,95077.549432256332,385643.35509752843,"Summer",131258.58113000001,49843.099814000001,76334.702825999993,1465.2151088000001,56269.869280999999,31219.638438000002,5753.1562426999999,21356.368259999999,3053.2304963000001]
[7826,"2012-06-17","KW60MN05 ",5488009.1653067265,1745437.2204613213,1268596.7869731821,85804.412377881381,391036.02111025783,"Summer",73889.739709000001,48409.924002,59614.680680999998,1144.2807479000001,55266.678742999997,29080.31465,5477.1797512000003,37079.408647999997,3053.2304963000001]
[7829,"2011-10-29","KW60MN01 ",5465572.9243194778,1744626.4478864302,1242440.2187948972,73908.897487999988,428277.33160353318,"Summer",134257.26749,52493.466718000003,97313.100351999994,1867.8873388,56361.068421000004,36159.489345000002,6015.8940979999998,19170.103298999999,3053.2304963000001]
[7832,"2011-08-07","KW60MN08 ",5432484.6686478006,1743969.6876951805,1259606.5107491538,96067.580434999996,388295.59651102673,"Summer",111485.12884,48479.665636999998,73911.489228000006,1418.7024606,55494.676592999997,25179.703742000002,5846.5682035,31032.217304000002,0]
[7837,"2012-05-06","KW60MN15 ",5657904.9577669892,1742740.6202844996,1251027.0148852495,94037.239461146179,397676.36593810387,"Summer",104492.35924999999,45880.406284999997,64568.658710999996,1239.3704408999999,55813.873582,26041.589394999999,5519.8396515000004,21356.368259999999,0]
[7840,"2011-08-29","KW60MN05 ",5619616.0560080279,1742393.0757149209,1242331.2037432662,94683.678973000016,405378.19299865467,"Summer",121337.23475,55082.034409,69330.931442000001,1330.7804248,56269.869280999999,30813.587855000002,6294.7587122000004,43084.272244,3053.2304963000001]
[7841,"2011-08-03","KW60MN05 ",5494420.3732755408,1742391.3148662781,1266740.3760343192,96013.992735999986,379636.94609595911,"Summer",92016.300770000002,50209.792923000001,76170.459602999996,1462.0625236000001,49065.137234000002,31723.303969000001,7271.343527,30655.728648,3053.2304963000001]
[7844,"2012-06-09","KW60MN04 ",5556976.8967247652,1741841.9967556195,1273185.93987983,90840.644067347544,377815.41280844191,"Summer",85152.674799,41928.507252000003,51606.590663000003,990.56855602999997,55494.676592999997,32608.122648,6123.9091887000004,31874.138524999998,3053.2304963000001]
[7847,"2012-06-10","KW60MN06 ",5378400.7939442098,1740335.6771970631,1280465.8114617127,85996.036853802754,373873.82888154755,"Summer",89583.345098999998,40824.595702999999,56651.094372,1087.3958544,54810.683043999998,27746.055992000001,4948.2775695,26058.156718999999,457.56051463]
[7851,"2012-06-09","KW60MN02 ",5609333.5065514129,1738499.9181894322,1265436.3143538882,86378.516006468009,386685.08782907604,"Summer",86376.958484999996,41937.040977999997,55755.609887999999,1070.2073760000001,55494.676592999997,33943.093058999999,6009.2917084000001,32497.289144999999,3053.2304963000001]
[7853,"2011-08-30","KW60MN05 ",5711301.1628619814,1737916.152639711,1252723.5902302579,96662.254526999997,388530.30788245314,"Summer",101244.74417999999,51517.994887000001,74044.311918000007,1421.2519408000001,56452.267561000001,33632.798027999997,7040.6458831,42790.115854999996,3053.2304963000001]
[7858,"2012-04-04","KW60MN03 ",5327000.2372752149,1736941.7952135592,1263271.9668690481,74862.935992586994,398806.89235192415,"Summer",130764.518,47035.266313,73522.946750000003,1411.2445379999999,50296.325621999997,30518.247001,5840.2519167999999,7467.6597125999997,3053.2304963000001]
[7862,"2012-03-04","KW60MN02 ",5496392.6053951541,1736689.9902993799,1219590.165627694,77246.930183047603,439852.89448863827,"Winter",166008.34852,56221.470743999998,65931.764637999993,1265.5347322,55312.278313000003,23762.001909999999,5497.9027886000003,1354.3257784,3053.2304963000001]
[7865,"2012-03-29","KW60MN01 ",5304382.399412917,1736397.9945723624,1260144.9954367948,85194.297977340029,391058.70115822775,"Winter",133086.49601,48328.359517999997,76874.293904999999,1475.5723508999999,39215.630130999998,31345.502762,5843.5480328000003,1354.3257784,3053.2304963000001]
[7866,"2012-03-09","KW60MN04 ",5516944.5339720519,1735898.8030771897,1220384.6671190804,74294.129686144093,441220.0062719651,"Winter",193500.66811,51795.692052999999,79791.503603999998,1531.5670633,56406.667991000002,30914.051544000002,6479.8287670999998,1354.3257784,3053.2304963000001]
[7869,"2011-08-13","KW60MN06 ",5380240.2088761795,1735266.7588328125,1252199.9691483199,98340.283549,384726.50613549264,"Summer",90542.367673000001,57696.388058999997,63127.745538000003,1211.7126696,56497.867130999999,29729.482713000001,6182.0914767000004,48764.536182999997,2787.6983909]
[7872,"2012-06-06","KW60MN03 ",5467416.2488078428,1734608.3309178499,1283864.0711749163,87752.160962951413,362992.09877998225,"Summer",90892.555158999996,42642.243887999997,59836.693028000002,1148.5421891000001,49840.329922999998,37539.345000000001,5591.9258928999998,28425.731554000002,3053.2304963000001]
[7878,"2012-04-17","KW60MN05 ",5458781.6059334781,1732917.4168047733,1231304.887322403,84304.044977669808,417308.48450470052,"Summer",138696.53323,45323.066117000002,72705.762010000006,1395.5589927999999,34883.670988999998,30899.786936,5954.9828238,7467.6597125999997,3053.2304963000001]
[7880,"2011-12-29","KW60MN05 ",5695080.9266717676,1732746.8317121975,1214898.7827073266,67610.520764000001,450237.5282408708,"Winter",170483.42684,50213.930438000003,81469.595107999994,1563.7773809,55677.074871999997,30147.063429000002,5857.6602168999998,816.33821894000005,3053.2304963000001]
[7884,"2012-03-04","KW60MN04 ",5482315.2174864421,1731510.9292556394,1210236.168922791,74496.717650155173,446778.04268269334,"Winter",185422.89069,54229.002499000002,66690.905125000005,1280.1061403000001,55266.678742999997,23162.728835000002,5571.5532894999997,1354.3257784,3053.2304963000001]
[7887,"2011-08-13","KW60MN03 ",5338732.139523482,1731042.8869479001,1246461.9470328598,97221.575844999999,387359.36407004023,"Summer",94293.637579000002,54673.034203000003,61482.725443000003,1180.1371449000001,56589.066271000003,30004.541300000001,6038.9110432999996,50474.385608999997,3053.2304963000001]
[7890,"2011-11-13","KW60MN05 ",5621786.9984587319,1730844.891423563,1191731.5115959328,73482.567318999994,465630.81250863022,"Winter",177406.39423000001,49527.668510000003,82316.010387000002,1580.023995,55768.274012000002,28492.818588999999,5798.4012331000004,4955.8928413000003,3053.2304963000001]
[7891,"2011-08-19","KW60MN05 ",5596740.2045826493,1730808.4857283211,1253626.5434351866,99839.312297000011,377342.62999613432,"Summer",88081.845109999995,48021.754376999997,59120.161768999998,1134.7886486,55312.278313000003,31935.607549,6634.7716105,45246.906743,3053.2304963000001]
[7894,"2011-11-13","KW60MN02 ",5589787.2877515331,1729080.4177962833,1205278.2235714695,68817.18033599999,454985.01388881373,"Winter",185107.04259,52690.892874999998,81926.464888999995,1572.5468197,55813.873582,28817.924778000001,5765.6127509999997,4955.8928413000003,3053.2304963000001]
[7899,"2011-10-07","KW60MN05 ",5573331.7597093806,1727864.2620200166,1272880.2308782705,71068.047493999999,383915.98364774592,"Summer",97199.204865000007,41726.868060000001,91954.652094000005,1765.0339961,55813.873582,37815.694751000003,6523.2013870999999,19170.103298999999,3053.2304963000001]
[7902,"2012-06-09","KW60MN03 ",5560433.7113227285,1726372.8211575684,1262670.1330720079,85776.603369126329,377926.08471643418,"Summer",88070.515234999999,41314.678352000003,55002.232143000001,1055.7465814,55631.475301999999,32953.977470999998,5961.3888340000003,32182.323445999999,3053.2304963000001]
[7905,"2012-05-19","KW60MN07 ",5605219.3305783933,1726225.7121056812,1258755.2269809702,98222.48212871961,369248.0029959915,"Summer",87736.575362999996,42004.664847,62307.172117000002,1195.9620801000001,56087.471001999998,32359.397153000002,5579.5049368999998,21356.368259999999,0]
[7909,"2011-10-29","KW60MN24 ",5500596.836718834,1724781.5073528823,1227326.0116345906,71680.774512000004,425774.72120629175,"Summer",140050.17251999999,53067.464602,84222.316082999998,1616.6147957999999,56178.670141000002,31957.075400999998,5479.5362963999996,19170.103298999999,3053.2304963000001]
[7912,"2011-08-11","KW60MN05 ",5528888.674366245,1723639.656137926,1263043.5795042687,90491.775508999999,370104.30112465733,"Summer",96072.661229999998,46892.023126,66541.740846999994,1277.2429897,55905.072721999997,32821.845561000002,6652.8316857,49451.694259999997,3053.2304963000001]
[7915,"2012-03-18","KW60MN02 ",5307725.0939850379,1723433.6691006066,1220395.5078270494,73200.028482044989,429838.13279151218,"Winter",187814.57552000001,47832.828202999997,65635.426273999998,1259.8466318000001,55631.475301999999,23717.809410000002,5541.0316278999999,1354.3257784,3053.2304963000001]
[7916,"2011-09-15","KW60MN06 ",5751577.4709705664,1723316.6907832986,1231995.8816931441,77097.88214799999,414222.92694215447,"Summer",110999.02524,49826.540112000002,85560.285306999998,1642.2965978,54445.886484000002,34302.421303000003,7373.5891455999999,26676.433438,3053.2304963000001]
[7920,"2012-03-05","KW60MN04 ",5566707.8975711158,1722759.1465012322,1235092.8210816334,74172.286957744567,413494.03846185427,"Winter",155328.05944000001,48432.718094999997,71411.854584000001,1370.7229400000001,56406.667991000002,28961.462220000001,5487.9213305000003,1354.3257784,3053.2304963000001]
[7924,"2011-10-08","KW60MN01 ",5461293.3287551366,1721638.7441065409,1251053.8514682557,69867.783040000009,400717.10959828494,"Summer",105870.27986,48465.058199999999,86370.503106999997,1657.8484152000001,56041.871432,36610.429996999999,5943.3693893999998,19170.103298999999,3053.2304963000001]
[7927,"2011-10-21","KW60MN24 ",5407430.5398062794,1721176.2151990167,1249754.0601004234,73477.23593000001,397944.9191685933,"Summer",115152.35206,47496.759134,99730.080986999994,1914.2803475999999,56634.665841000002,37488.668240999999,6035.7825264000003,19170.103298999999,3053.2304963000001]
[7930,"2011-08-16","KW60MN05 ",5524866.4681431968,1719978.2829334359,1264794.4737681667,96325.226504999999,358858.58266026923,"Summer",85388.217510000002,48546.041020999997,60475.852466999997,1160.8106074,45553.970350000003,29842.912345000001,6478.6504950999997,47969.431090999999,3053.2304963000001]
[7934,"2012-06-07","KW60MN02 ",5524117.9716644343,1719353.6576327034,1258861.7723235735,85061.306037020448,375430.57927210967,"Summer",73094.708872000003,43410.129752000001,60662.086916,1164.3853056,55449.077022999998,37125.461707000002,5491.8505990000003,28709.263978999999,3053.2304963000001]
[7937,"2012-05-08","KW60MN24 ",5587403.8140723314,1718936.8754631211,1250985.1871466045,97134.348398842529,370817.3399176739,"Summer",115679.7583,56885.224588999998,73562.234242999999,1411.9986461999999,56725.864979999998,33684.634681000003,5995.7466529000003,21356.368259999999,3053.2304963000001]
[7941,"2011-08-21","KW60MN03 ",5386590.9153114697,1718556.8150305254,1255000.2084662251,98657.362282999995,364899.24428130023,"Summer",86550.912880999997,51678.011480000001,59108.435793999997,1134.5635729999999,55403.477453,27326.778077999999,5573.6152670000001,46961.419195000002,3053.2304963000001]
[7942,"2012-05-15","KW60MN06 ",5818107.9472046234,1718467.209556303,1239561.2053891388,101666.54199555198,377239.46217161219,"Summer",77223.266818000004,50755.046726,75421.807707,1447.6924399,48882.738954,33364.200353,6517.2964803000004,21356.368259999999,1373.5296639999999]
[7945,"2011-09-19","KW60MN24 ",5574578.1926678848,1717879.368157773,1251865.0043202217,71464.026902999991,394550.33693455136,"Summer",106215.6026,46109.205252,85171.845254999993,1634.8406411999999,56908.26326,35112.437214999998,6452.6066080000001,30217.333901999998,3053.2304963000001]
[7949,"2012-04-12","KW60MN04 ",5345335.8018134478,1717152.6131560835,1232715.3772410641,83398.673931064259,401038.56198395498,"Summer",118163.73551,45296.933088999998,75085.626772999996,1441.2395769,54628.284764000004,30036.960388,5588.5739105000002,7467.6597125999997,3053.2304963000001]
[7952,"2012-06-17","KW60MN06 ",5377969.4879107298,1716388.8051237038,1247897.3149152079,85249.053636736091,383242.43657175993,"Summer",68796.266382999995,43569.781600000002,61082.862102999999,1172.4619227000001,54947.481754,28473.148626999999,5181.5755393999998,36615.066850000003,457.56051463]
[7955,"2011-10-03","KW60MN06 ",5839903.6912502917,1715737.3756395488,1253080.2362349846,73231.930517000001,389425.20888756431,"Summer",103980.91446,50311.029483999999,91159.812592999995,1749.7773592000001,56361.068421000004,34001.394404999999,6230.8678977999998,19170.103298999999,3053.2304963000001]
[7959,"2011-10-13","KW60MN05 ",5550476.4597388133,1714770.4000976935,1254363.6943620243,69892.256322999994,390514.44941266929,"Summer",105964.85094,41312.701986,95502.834015999993,1833.1399762999999,45143.574221000003,37625.950603999998,6857.6479633999998,19170.103298999999,3053.2304963000001]
[7962,"2011-08-18","KW60MN04 ",5383371.15465903,1714408.6466409985,1246776.5803086639,100988.81229999999,366643.25403233449,"Summer",89168.962050000002,48465.074267999997,64788.865278999998,1243.5972208000001,54673.884334000002,31138.165894999998,6508.4323495999997,47601.702420000001,3053.2304963000001]
[7966,"2011-09-21","KW60MN24 ",5603661.6931948652,1714207.2481619355,1234886.6939544473,78334.581445999997,400985.97276148829,"Summer",107950.64217000001,49214.820942999999,84783.085063999999,1627.3785396000001,55357.877883000001,35762.729083999999,6438.1219806999998,30217.333901999998,3053.2304963000001]
[7967,"2012-03-28","KW60MN05 ",5515072.3017615564,1714182.0512360437,1245561.4473369231,77359.898419489415,391260.7054796312,"Winter",156992.00377000001,51758.481732,86851.315151000003,1667.0774165,40401.218949000002,32391.096389999999,6918.2680553999999,1354.3257784,2442.1603372999998]
[7970,"2012-05-20","KW60MN24 ",5613034.1067532962,1713718.954306137,1239813.4456759871,99246.559374149685,374658.9492560004,"Summer",119128.70388,46766.679714999998,57381.064376000002,1101.4073464999999,54810.683043999998,30743.166206999998,4820.4299166000001,21356.368259999999,3053.2304963000001]
[7974,"2012-03-18","KW60MN04 ",5236364.7629033159,1712981.8245223574,1205665.3475630998,72710.591845148258,434605.88511410932,"Winter",195506.59664,47709.708605,63232.735141999998,1213.7279045,55905.072721999997,23946.657574000001,5738.3888991000003,1354.3257784,3053.2304963000001]
[7977,"2012-03-15","KW60MN04 ",5388912.5082936781,1712040.335375804,1202496.9153383924,69392.504368262686,440150.91566914902,"Winter",185931.98259999999,49918.715917000001,78642.511371999994,1509.5126015999999,53214.698097,31621.653126000001,6640.0162784000004,1354.3257784,3053.2304963000001]
[7980,"2011-08-20","KW60MN04 ",5444367.0375102963,1711187.6870756953,1241987.9528612725,100814.337073,368385.39714142279,"Summer",84906.660698000007,50007.302126000002,59105.623779000001,1134.5095974999999,55084.280463000003,31369.859998,5925.4515209000001,44514.767032000003,3053.2304963000001]
[7983,"2012-03-11","KW60MN07 ",5489458.6930781305,1709948.8742316584,1226564.3571418384,69024.569786438704,414359.9473033814,"Winter",162824.62164999999,51242.619551000003,68691.520875999995,1318.5071862,55266.678742999997,25164.002496000001,5892.1703989999996,1354.3257784,0]
[7988,"2012-06-07","KW60MN04 ",5482671.4430010375,1708861.5036038044,1253851.0285636061,80994.709508333719,374015.76553186437,"Summer",76242.442978000006,45098.534815999999,58674.987993000002,1126.24371,55813.873582,35717.458710999999,5652.2615747,27785.258224000001,3053.2304963000001]
[7989,"2012-06-25","KW60MN02 ",5862207.8921143292,1708832.5850304118,1248164.7852295542,83059.708821689768,377608.0909791679,"Summer",75943.393612,43031.742337999996,61825.560527000001,1186.7177317999999,56543.466700999998,30589.13754,5011.7011388000001,42190.405911000002,3053.2304963000001]
[7992,"2011-10-05","KW60MN05 ",5587257.9182500681,1708609.6483989437,1256769.5035688854,74333.401717000001,377506.74311305839,"Summer",86418.515494000007,42316.545119000002,92258.316349999994,1770.8627140999999,56178.670141000002,36496.975022999999,6308.7964086000002,19170.103298999999,3053.2304963000001]
[7995,"2011-08-19","KW60MN03 ",5486432.8725222303,1707629.7884422892,1246960.4660139156,96829.164919000003,363840.15750937368,"Summer",81737.263107000006,49472.158321000003,58246.700433999998,1118.0228959000001,55038.680892999997,31192.007928999999,6378.0097642999999,46750.758535000001,3053.2304963000001]
[7999,"2011-08-11","KW60MN03 ",5404591.3940667538,1705835.1190953376,1254147.5770600352,92068.146974000003,359619.39506130246,"Summer",85709.439092999994,48335.978972999997,70217.833014999997,1347.8041576000001,55722.674442000003,32677.314668999999,6426.6846114,51758.43187,3053.2304963000001]
[8002,"2011-10-12","KW60MN05 ",5579549.7034980562,1705294.1833844837,1263513.6256691583,67606.256905999995,374174.30080932542,"Summer",111864.48361,40117.424460000002,96739.706755000007,1856.8812703999999,44505.180242000002,38339.392478000002,6760.7045707999996,19170.103298999999,3053.2304963000001]
[8004,"2012-06-05","KW60MN04 ",5761178.2514667101,1704994.2929377127,1249321.465715368,83731.507868552537,371941.31935379212,"Summer",79031.849891999998,42071.575297000003,59082.162987000003,1134.0592766,55038.680892999997,40962.790424999999,5328.9628794,33797.140577999999,3053.2304963000001]
[8010,"2012-03-17","KW60MN03 ",5227245.6854015654,1701990.1236182917,1223100.1212210213,76573.631146367727,402316.37125090288,"Winter",149628.62323999999,45787.756474000002,67046.035959000001,1286.9227394,56133.070571999997,28911.947427999999,5499.5042919999996,1354.3257784,3053.2304963000001]
[8013,"2011-08-30","KW60MN04 ",5511367.9383159848,1701382.1403907149,1224155.6536840929,94876.376088999998,382350.11061762209,"Summer",90275.029240000003,49095.324683999999,69754.759783000001,1338.9156459999999,56269.869280999999,33337.107788000001,6770.0088613999997,42549.083184000003,3053.2304963000001]
[8014,"2011-09-29","KW60MN24 ",5756218.7363880314,1700935.0361015012,1228423.9972404789,74168.308250999995,398342.73061002238,"Summer",95801.401324999999,46588.573745000002,90624.364382,1739.4996378000001,56224.269711000001,36957.290720999998,6083.2587850999998,30217.333901999998,3053.2304963000001]
[8017,"2012-04-29","KW60MN08 ",5471708.5818000101,1700291.5878240396,1233476.9852132052,93657.058253235009,373157.54435759957,"Summer",106656.13232999999,36522.57933,62354.790474000001,1196.876096,55221.079172999998,24208.199860000001,5051.6422082999998,7467.6597125999997,0]
[8020,"2011-09-16","KW60MN24 ",5548510.4036479937,1699224.3983760313,1220952.8728139231,84472.330513000008,393799.19504910812,"Summer",108201.31965,52717.053218000001,81251.403881000006,1559.5892847,54582.685193999998,32194.063431999999,5867.0254532999998,30217.333901999998,3053.2304963000001]
[8024,"2011-08-22","KW60MN04 ",5450959.4676402947,1698635.7451612148,1238536.3000166127,91855.941024,368243.50412060216,"Summer",88991.700899000003,47409.943620999999,59779.810028,1147.4503419,56680.265411,29920.95391,6123.8279289000002,44771.279247999999,3053.2304963000001]
[8029,"2011-08-16","KW60MN03 ",5340666.9703175109,1697847.6777640546,1258238.3176286847,94902.920612000002,344706.43952337001,"Summer",101064.56842,46620.258274,60586.843999999997,1162.9410468999999,43137.193143999997,29389.865553,6242.6303088000004,48573.515943999999,3053.2304963000001]
[8031,"2011-10-31","KW60MN05 ",5615965.6737846676,1697250.5524182115,1200631.7163461747,68195.185925999991,428423.65014603693,"Summer",155441.01904000001,50438.863439000001,101758.83021,1953.2214047,56953.862829999998,36345.384406999998,6511.2155106,19170.103298999999,3053.2304963000001]
[8035,"2012-03-31","KW60MN01 ",5309091.4858227996,1696850.5858982422,1202131.4312619367,84874.035136174905,409845.11950013071,"Winter",140245.35586000001,50291.211188000001,68848.595633999998,1321.5221755,51390.715300000003,27100.324301000001,5821.4063280999999,1354.3257784,3053.2304963000001]
[8038,"2011-08-11","KW60MN04 ",5395718.045803206,1696576.4523188404,1241417.0522606412,90276.513623000006,364882.88643519935,"Summer",89671.302664999996,46004.578337999999,67595.295874999996,1297.4655711,55813.873582,32414.821391000001,6514.2830827999996,50323.045817999999,3053.2304963000001]
[8039,"2011-08-21","KW60MN04 ",5329194.0673507238,1696088.9360534826,1237125.0576125805,97009.558453000005,361954.31998790218,"Summer",89651.589317999998,47770.275399999999,59698.392483000003,1145.8875636,55449.077022999998,27033.070758999998,5664.1391039999999,45527.825705000003,3053.2304963000001]
[8042,"2012-03-16","KW60MN04 ",5348311.9900683677,1695859.4703734796,1211507.7886951156,68759.550100717403,415592.13157764671,"Winter",174016.5251,48878.996107999999,75518.380325999999,1449.546114,56133.070571999997,32688.670176,6590.3510735999998,1354.3257784,3053.2304963000001]
[8046,"2012-03-18","KW60MN03 ",5217628.0748002771,1695320.6427690201,1197781.380779733,72019.949017983803,425519.31297130318,"Winter",209682.65578999999,47331.861077000001,65061.708977000002,1248.8343500999999,55768.274012000002,23793.341626000001,5593.1921979999997,1354.3257784,3053.2304963000001]
[8050,"2012-05-12","KW60MN07 ",5470629.8131618798,1694753.3597893794,1209426.6798057689,97584.08495695857,387742.59502665192,"Summer",125416.98626000001,36992.99151,60198.812964999997,1155.4929411999999,55175.479603,25952.671672,5281.9978829000001,21356.368259999999,0]
[8053,"2012-06-07","KW60MN03 ",5467150.1036983524,1693837.9688835661,1237689.1066064513,81718.614088987568,374430.2481881273,"Summer",69871.110174000001,42272.395020000004,58410.37124,1121.1644937999999,55357.877883000001,37798.031543999998,5607.9222977999998,28004.170871999999,3053.2304963000001]
[8057,"2012-04-12","KW60MN03 ",5295959.8819615962,1693371.2505381308,1217561.647461436,83174.533282621545,392635.06979407324,"Summer",103441.7438,47517.914289,74234.061243000004,1424.8941057,55449.077022999998,30124.806842000002,5629.6543165000003,7467.6597125999997,3053.2304963000001]
[8060,"2012-04-28","KW60MN23 ",5464084.9123800863,1692690.1797917006,1216571.5693163988,84331.219898832846,391787.39057646866,"Summer",113897.06754,53396.256464999999,69169.383686000001,1327.6795781000001,55813.873582,25335.904611999998,5203.1145655,7467.6597125999997,3053.2304963000001]
[8063,"2011-09-07","KW60MN02 ",5694829.1112620858,1691402.2532901261,1220668.4482903448,91394.752470000007,379339.05252978124,"Summer",85446.795828999995,47464.142659999998,78791.992920000004,1512.3818421000001,52941.100677000002,33691.485334999998,6710.1404258000002,39785.486887999999,3053.2304963000001]
[8064,"2011-08-16","KW60MN04 ",5401042.1369654126,1691051.8750553285,1250612.3875371385,93801.096835999982,346638.39068219007,"Summer",83899.213239999997,45847.762495000003,59974.205856,1151.1816945999999,45189.173791000001,29366.971244,6272.2090132000003,47818.032793999999,3053.2304963000001]
[8067,"2011-08-06","KW60MN07 ",5276041.081106713,1690481.7289685654,1221758.7725291804,96163.277434999996,372559.67900438502,"Summer",99737.425573999994,44998.143432999997,74375.824072000003,1427.6151884000001,55996.271862000001,28409.108974999999,5707.511724,31099.181127,0]
[8071,"2011-09-08","KW60MN02 ",5739863.3559601586,1689069.1226517872,1215696.1234606295,86576.794385000001,386796.20480615791,"Summer",107047.82384,54462.260341000001,83424.810972000007,1601.3069935000001,53442.695946,33465.853287999998,6985.4295923,49272.423881000002,3053.2304963000001]
[8075,"2012-06-24","KW60MN06 ",5649743.1866482841,1688062.5692077531,1232851.2784085956,86000.693851145566,369210.59694801184,"Summer",68027.583601000006,43763.595666000001,59551.990384999997,1143.0774319,55813.873582,28414.234208999998,4853.5688329000004,41814.300385000002,508.44768959999999]
[8078,"2011-09-21","KW60MN06 ",5827043.2004038347,1687527.9239849607,1211648.2942997345,75300.175575000001,400579.45411022624,"Summer",100320.06099,49206.251867999999,83591.447088999994,1604.5055093999999,55768.274012000002,35292.343751,6888.5268302000004,30217.333901999998,3053.2304963000001]
[8082,"2011-08-20","KW60MN05 ",5449125.339266845,1684387.1113802677,1220053.5105989815,98483.852545000002,365849.74823628622,"Summer",83441.482023000004,50005.316118000002,59267.544151000002,1137.6175963999999,55312.278313000003,31494.092622,6046.6104450000003,43864.099606999996,3053.2304963000001]
[8085,"2012-06-11","KW60MN01 ",5398520.2475430295,1683455.2665589291,1235045.2809802841,84864.505580770143,363545.47999787488,"Summer",85206.377773999993,43893.622905999997,56926.988353000001,1092.6915328,54217.888635000003,30324.456857000001,5002.4171634000004,31428.657899000002,3053.2304963000001]
[8088,"2011-09-27","KW60MN06 ",5904101.013596151,1682150.2943286288,1206737.1593513177,74088.552802999999,401324.58217431116,"Summer",101047.30334,48537.714572999997,101038.83472,1939.4013695000001,56634.665841000002,38333.901802,6547.4169198,30217.333901999998,3053.2304963000001]
[8092,"2012-03-25","KW60MN06 ",5228412.0417311694,1680945.9386813827,1172422.7450697666,77964.817792824761,430558.37581879133,"Winter",174777.15296000001,53228.869471999998,68955.287100000001,1323.5700769,55722.674442000003,25440.870445,5900.0289350000003,1354.3257784,3.8589440678]
[8093,"2012-06-24","KW60MN05 ",5704909.654218683,1680752.7625606295,1231477.6947619375,82962.301810981182,366312.76598771079,"Summer",74111.154519999996,48627.817603000003,52870.777695999997,1014.8341374,55722.674442000003,28662.003737999999,5132.0271467000002,42514.248841000001,3053.2304963000001]
[8097,"2011-10-22","KW60MN24 ",5368122.2573891478,1679162.7057887348,1236639.5600253548,66505.997308999998,376017.14845438011,"Summer",112825.6153,49482.678053000003,90568.068496000007,1738.4190599999999,55312.278313000003,34951.498377999997,5357.199098,19170.103298999999,3053.2304963000001]
[8100,"2012-06-10","KW60MN05 ",5335921.1494535403,1678860.5601424878,1230770.8536297095,82742.428015746278,365347.27849703206,"Summer",92464.355488999994,43756.508063000001,56286.894332000003,1080.4051755,54810.683043999998,27861.625046000001,5264.4406061999998,27028.820530000001,3053.2304963000001]
[8103,"2011-09-09","KW60MN02 ",5703800.7599715116,1675708.5246904455,1200410.3998271234,84510.722389999995,390787.40247332206,"Summer",92487.163621,50320.554605999998,83407.323862000005,1600.9713352000001,51345.115729999998,35262.068255999999,6507.4775430999998,44398.172268000002,3053.2304963000001]
[8107,"2011-11-14","KW60MN04 ",5589097.3186550913,1674257.8586085101,1173014.7048758178,70464.656671000004,430778.49706169241,"Winter",158513.00513999999,46128.110884000002,90691.891795000003,1740.7958004,56178.670141000002,31814.215413000002,5705.4802192999996,4955.8928413000003,3053.2304963000001]
[8110,"2012-05-05","KW60MN01 ",5307136.468183388,1673947.4042586717,1214659.6230714559,91981.414875878589,367306.36631133733,"Summer",113691.04186,51652.231948000001,60384.900203999998,1159.0648139,56315.468850999998,28586.439899000001,5748.6124452000004,21356.368259999999,3053.2304963000001]
[8113,"2012-03-28","KW60MN02 ",5309997.4517325526,1672868.038393029,1218229.519070473,81310.322832777121,373328.1964897787,"Winter",135677.38102999999,47226.384165000003,74956.854630999995,1438.7678453999999,40173.221100000002,32263.972519999999,6052.4323980999998,1354.3257784,3053.2304963000001]
[8115,"2012-05-23","KW60MN01 ",5663700.7935434114,1672736.3527835961,1223839.3437090772,96545.511259522274,352351.49781499663,"Summer",91270.998443000004,47416.70665,65452.770429999997,1256.3406235,57227.460249999996,38361.482314000001,5461.1054719000003,21356.368259999999,3053.2304963000001]
[8118,"2011-09-27","KW60MN24 ",5673071.3482493814,1668809.4130843491,1205118.233096946,78540.589158000002,385150.59082940308,"Summer",103643.8904,46018.343810999999,92144.929854999995,1768.6863042,56589.066271000003,36514.423863999997,6341.1785891999998,30217.333901999998,3053.2304963000001]
[8122,"2012-04-17","KW60MN01 ",5258487.8943804847,1667099.5445285144,1212935.4728643186,81010.006300134046,373154.06536406162,"Summer",124287.85657,44843.464636999997,72873.308940000003,1398.7749914000001,35020.469699000001,31404.938708000001,5591.7955387000002,7467.6597125999997,3053.2304963000001]
[8125,"2012-05-20","KW60MN08 ",5479863.05193091,1666475.6823109626,1202959.7434445866,100480.8988255147,363035.04004086135,"Summer",81597.075767999995,40438.968038999999,61566.124454999997,1181.7379567,54445.886484000002,28291.788991000001,4852.2365049,21356.368259999999,0]
[8128,"2011-10-23","KW60MN24 ",5311861.0449124938,1665302.3383693302,1218434.4199765902,65075.50458600001,381792.41380673996,"Summer",119816.91168999999,42940.387608999998,92734.226628999997,1779.9976279,55175.479603,35278.297333000002,5321.0789499000002,19170.103298999999,3053.2304963000001]
[8132,"2011-09-30","KW60MN06 ",5808949.7949138964,1664067.1690108906,1186899.4611455456,72609.719276999997,404557.988588345,"Summer",104561.20758,48340.577641000003,95750.262210999994,1837.8892648999999,56725.864979999998,36901.590469000002,6447.9950927,30217.333901999998,3053.2304963000001]
[8134,"2011-09-26","KW60MN24 ",5668675.0012930967,1663355.2987242332,1197680.6310365151,74369.935603999998,391304.73208371812,"Summer",93986.077558000005,45044.936721999999,96074.702701999995,1844.1167747,56224.269711000001,36559.700720000001,6303.4332369000003,30217.333901999998,3053.2304963000001]
[8139,"2011-10-29","KW60MN03 ",5388805.0839551799,1661905.0775259635,1167950.9183003062,70737.043072999993,423217.11615265743,"Summer",146874.90171999999,47400.939101999997,91429.524596000003,1754.9543768000001,56634.665841000002,36210.376122000001,5966.0003494000002,19170.103298999999,3053.2304963000001]
[8140,"2011-08-06","KW60MN06 ",5164531.7106300611,1661606.2760254245,1200783.2941906024,93687.585370999994,367135.39646382205,"Summer",99547.212964999999,51759.760746,68634.445653999996,1317.4116494,56589.066271000003,28781.782491000002,5800.4327377999998,31470.243532,2340.3859876000001]
[8143,"2011-10-07","KW60MN04 ",5362956.3209614847,1661143.5246481204,1225499.5699984604,68389.393305999998,367254.56134366011,"Summer",94502.980614,39600.003681000002,89659.278468000004,1720.9751868000001,55722.674442000003,37207.494435000001,6225.9110277,19170.103298999999,3053.2304963000001]
[8147,"2012-06-10","KW60MN04 ",5304179.924796924,1660321.0883608921,1213923.3290689529,83169.070082119317,363228.68920981971,"Summer",83215.181268999993,42365.955887999997,54756.861774999998,1051.0367921,54673.884334000002,28050.197987,5288.4529886,28226.357831000001,3053.2304963000001]
[8150,"2012-03-24","KW60MN04 ",5115565.2835842324,1659357.9380102099,1145126.0475749688,77435.542377197475,436796.34805804375,"Winter",168157.01863000001,48883.279842000004,66546.758816999994,1277.3393077000001,57364.258958999999,29691.959371000001,5814.0319669,1354.3257784,3053.2304963000001]
[8153,"2011-10-09","KW60MN24 ",5371470.0307921609,1658304.5989802929,1226251.0367076243,67372.093823999996,364681.46844866843,"Summer",119868.95069,40981.734513000003,78003.111598999996,1497.2395701999999,52576.304118,33491.386357000003,5124.6121550999997,19170.103298999999,3053.2304963000001]
[8155,"2011-12-29","KW60MN04 ",5541270.5079346355,1657927.1397071257,1154508.1474288183,66507.795708000005,436911.19657030754,"Winter",166895.83071000001,49410.649939000003,80090.332810000007,1537.3029744,55585.875732,29278.341832999999,5648.5980949000004,816.33821894000005,3053.2304963000001]
[8161,"2012-04-18","KW60MN04 ",5268671.8997889403,1654522.836571652,1185616.6165595679,76858.058780782536,392048.16123130161,"Summer",141284.28107999999,46053.312642999997,73685.638764999996,1414.3673483,34838.071419,31299.796278999998,5678.6677473,7467.6597125999997,3053.2304963000001]
[8162,"2011-10-29","KW60MN04 ",5386570.6901001213,1654466.1194888353,1151532.0825537222,71123.634686999998,431810.4022481133,"Summer",143249.68066000001,45304.260106000002,90688.256005999996,1740.7260128,56817.064120000003,35435.681706000003,5950.6828058999999,19170.103298999999,3053.2304963000001]
[8165,"2012-04-11","KW60MN05 ",5305455.5667076288,1653676.4225842389,1184271.8110519035,81253.177298085444,388151.43423424987,"Summer",97776.318419999996,45026.206230000003,72631.988658999995,1394.1429419000001,56361.068421000004,31802.696054,6213.7558593000003,7467.6597125999997,3053.2304963000001]
[8168,"2012-04-19","KW60MN05 ",5371683.663819164,1652888.1133745026,1183023.8628995218,77926.491587096039,391937.75888788473,"Summer",140357.49937000001,46412.738187000003,82602.468630999996,1585.5224502000001,35522.064967999999,31564.964437999999,6188.8208348999997,7467.6597125999997,3053.2304963000001]
[8172,"2011-10-30","KW60MN01 ",5352178.6788238389,1651825.7826100574,1168238.7798306893,67240.098543,416346.90423636808,"Summer",149812.73107000001,50835.396467999999,81846.209744000007,1571.0063533,55905.072721999997,31474.752772,5470.3742113999997,19170.103298999999,3053.2304963000001]
[8176,"2011-10-13","KW60MN04 ",5395168.740987123,1650960.7331982451,1210050.9686235015,66506.437063000005,374403.32751174358,"Summer",111163.26075,41274.558111999999,94305.399193999998,1810.1556779,42498.799164999997,38326.308954,6151.5173341999998,19170.103298999999,3053.2304963000001]
[8179,"2012-05-28","KW60MN08 ",5406478.0057616457,1650393.7461600231,1203354.0491707069,96593.940867301746,350445.75612201449,"Summer",88651.306494999997,38153.574966,57031.057154000002,1094.6890931999999,55585.875732,23644.775356999999,4812.4968918000004,19038.039875999999,0]
[8183,"2012-04-18","KW60MN02 ",5255840.378059037,1649140.5457032165,1192356.85945945,78505.730152369855,378277.95609139663,"Summer",129952.42346000001,47075.034662999999,74454.682912000004,1429.1288534,35020.469699000001,32093.115401999999,5649.6917216000002,7467.6597125999997,3053.2304963000001]
[8186,"2011-08-15","KW60MN05 ",5446377.5980008105,1647587.2061005966,1201014.7527903491,92230.41618900001,354342.03712124738,"Summer",81055.605217000004,45736.422362999998,64881.250247000004,1245.3705146,55950.672292000003,27910.111596999999,5736.6638125999998,47025.356537,3053.2304963000001]
[8187,"2012-04-03","KW60MN03 ",5242154.3680525441,1647410.8746506691,1157824.1929670768,71201.474037413005,418385.2076461793,"Summer",135451.80098,46253.166678000001,73650.337516,1413.6897544999999,54172.289064999997,29731.915935000001,6085.5797792000003,7467.6597125999997,3053.2304963000001]
[8190,"2011-09-23","KW60MN06 ",5731063.3613292361,1646851.0241557155,1172805.2222635727,75836.806861999998,398208.99503014289,"Summer",100167.83367000001,48281.538913999997,87024.673051999998,1670.4049544,56087.471001999998,37970.508429000001,6706.747813,30217.333901999998,3053.2304963000001]
[8193,"2012-05-13","KW60MN08 ",5482894.5267917719,1646033.7482872435,1181503.8065843782,99359.168390194158,365170.77331267105,"Summer",118662.13344999999,44245.983340999999,60991.390358999997,1170.7061579000001,55950.672292000003,23490.669825000001,4859.9274416999997,21356.368259999999,0]
[8197,"2012-05-30","KW60MN01 ",5504827.6651556632,1644516.3472822297,1191518.1400722435,98299.469030251435,354698.73817973473,"Summer",80862.795958000002,46810.979246000003,59679.038390000002,1145.5160691999999,55631.475301999999,32369.337277999999,5644.0305965999996,28317.966699000001,3053.2304963000001]
[8201,"2012-03-25","KW60MN01 ",5133973.721851822,1643218.8659367149,1167621.3188517147,77188.168349825297,398409.37873517489,"Winter",145781.86017999999,51703.360389000001,59180.950862999998,1135.9554717000001,56041.871432,25710.800445000001,5255.6475778000004,1354.3257784,3053.2304963000001]
[8205,"2012-05-04","KW60MN05 ",5364503.8072269438,1642386.8304538694,1187520.2493033898,86392.71020374418,368473.87094673526,"Summer",117461.77075,44389.917452000002,74075.305636000005,1421.8468531999999,56908.26326,29599.727139999999,6247.2198162000004,21356.368259999999,3053.2304963000001]
[8208,"2011-10-18","KW60MN02 ",5290636.7365824068,1640932.6895011731,1193269.7608761857,61085.820068000001,386577.10855698748,"Summer",112749.19958,41139.056497999998,94633.218145000006,1816.4480358999999,56817.064120000003,40091.643766000001,6198.7904425999996,19170.103298999999,3053.2304963000001]
[8211,"2012-03-27","KW60MN02 ",5264542.1995301796,1638982.5215245888,1160187.5217083003,83865.014743384847,394929.98507290351,"Winter",133055.90852,43955.701701999998,78684.157999999996,1510.3119925000001,55312.278313000003,31854.779069,5961.2026124000004,1354.3257784,3053.2304963000001]
[8212,"2012-05-23","KW60MN05 ",5649153.5940523837,1637816.2319741226,1186588.538601127,94403.339709389678,356824.35366360581,"Summer",103172.58241,47850.308601999997,64105.065539000003,1230.4719491999999,57592.256808999999,37491.180722999998,5947.3477522000003,21356.368259999999,3053.2304963000001]
[8215,"2011-10-16","KW60MN07 ",5298055.0128292562,1635430.7920981722,1184218.5635572406,65003.364749,386208.8637919316,"Summer",111183.03769,46253.576413000003,92867.988725000003,1782.5651396000001,54719.483904000001,29820.245101,5661.0512176000002,19170.103298999999,3053.2304963000001]
[8218,"2011-10-19","KW60MN05 ",5488903.1415257966,1634941.8135370323,1169714.1041881181,62796.233440000004,402431.475908914,"Summer",137022.53085000001,41060.289456999999,96112.577239999999,1844.8437618,47377.953147,40105.283761999999,7006.0087323999996,19170.103298999999,3053.2304963000001]
[8223,"2012-03-26","KW60MN01 ",5161344.6111745508,1633980.4006672269,1187074.4793339539,81242.490468016535,365663.43086525641,"Winter",119629.25334,44831.048878000001,64761.655018999998,1243.0749304000001,56497.867130999999,28045.889074999999,5202.1089708,1354.3257784,3053.2304963000001]
[8226,"2011-09-08","KW60MN05 ",5749144.1688424563,1633123.089275002,1168734.3010276433,85251.352375999995,379137.43587135861,"Summer",87933.401482000001,47263.343825000004,78346.480402000001,1503.8304016,52211.507557999998,33551.253683000003,7146.9341946000004,46697.225879999998,3053.2304963000001]
[8230,"2012-04-17","KW60MN04 ",5202442.3046611398,1632087.5129229352,1162456.0585795227,80195.725345443832,389435.72899796849,"Summer",136800.05619,44218.177631999999,70766.800810000001,1358.3413822,34792.471849000001,30600.771169,5620.2128996000001,7467.6597125999997,3053.2304963000001]
[8233,"2011-08-14","KW60MN07 ",5340510.5181590701,1630951.7379821856,1193581.9044981808,93194.631328000003,344175.20215600467,"Summer",79514.742123999997,43373.615175999999,63750.665469,1223.6693769000001,54582.685193999998,25438.888998999999,5461.1511805999999,44541.400797000002,20.877877062]
[8236,"2011-10-30","KW60MN05 ",5290589.2007243009,1629572.9197445265,1133390.1798681209,66222.239421000006,429960.50045540562,"Summer",151077.78747000001,48166.000207999998,87995.086855999994,1689.0316722,55996.271862000001,30612.880238000002,5696.1149840999997,19170.103298999999,3053.2304963000001]
[8237,"2012-04-25","KW60MN06 ",5648150.4088303251,1629314.5329290382,1179155.4950539153,76486.401015309224,373672.63685981382,"Summer",98331.111378999994,44391.925953999998,72875.187061000004,1398.8110412000001,41404.409486999997,33307.265979999996,6767.6150723000001,7467.6597125999997,2787.6983909]
[8243,"2012-05-25","KW60MN04 ",5494466.188542787,1626382.8630927207,1190703.0768439947,93656.964067947498,342022.82218077843,"Summer",80832.918577000004,42323.860888000003,66826.933919000003,1282.7171605000001,52804.301966999999,38113.615486000002,5725.2230566999997,29648.627171,3053.2304963000001]
[8244,"2012-04-20","KW60MN24 ",5284025.7909273887,1626248.8350596223,1188130.11364128,80641.699989401634,357477.0214289407,"Summer",112878.68236000001,55173.310404000003,71444.255170000004,1371.3448567,35476.465398,28727.553992000001,5812.4304634999999,7467.6597125999997,3053.2304963000001]
[8248,"2011-09-12","KW60MN01 ",5390624.315847436,1625494.7867062946,1161812.7022649122,69441.622415999998,394240.46202538226,"Summer",117781.10579,47700.959567999998,84227.571056999994,1616.7156629999999,55175.479603,31523.050471999999,6000.4952945000005,34935.388937999996,3053.2304963000001]
[8251,"2012-05-02","KW60MN01 ",5202288.6488775853,1625078.7550982588,1187487.9245907094,78403.537660259477,359187.29284728988,"Summer",108302.59961999999,45373.506845999997,66509.958952000001,1276.6329485000001,56178.670141000002,29070.777830999999,5897.7942800999999,21356.368259999999,3053.2304963000001]
[8255,"2011-10-13","KW60MN03 ",5319587.893369833,1624096.0205504512,1195364.3569033679,65052.009205999995,363679.65444108332,"Summer",99312.083599000005,42104.039125000003,93942.974619999994,1803.1990783000001,39033.231851999997,37653.482497999998,6057.4993093000003,19170.103298999999,3053.2304963000001]
[8258,"2011-08-14","KW60MN06 ",5266845.9545365479,1622508.8939917872,1178700.8502854507,91548.553046000001,352259.49066033651,"Summer",86447.121045000007,52290.813632999998,64517.322462999997,1238.3850614999999,53853.092076000001,25710.544672,5730.8537098999996,45068.975337999997,2828.3798597]
[8261,"2012-05-31","KW60MN02 ",5501614.3050482534,1621926.9663311606,1172704.6392301354,93843.232312711538,355379.09478831373,"Summer",77907.394176000002,44933.133829999999,59981.566080999997,1151.3229713000001,55905.072721999997,35039.255227000001,5627.6617495999999,29217.909564000001,3053.2304963000001]
[8264,"2012-03-30","KW60MN05 ",5384810.5727714794,1620682.4449203503,1139936.1213095644,84249.315693707365,396497.0079170785,"Winter",122415.76684,50668.125163999997,79615.114826000005,1528.1813489000001,52393.905837999999,31490.447539000001,6587.0735790999997,1354.3257784,2238.6116379]
[8266,"2011-10-15","KW60MN01 ",5326235.8395058401,1620089.2563301581,1177388.1249087811,63540.829037999996,379160.3023833771,"Summer",91396.220595999999,47963.501377000001,90619.587205999997,1739.4079417,55494.676592999997,36342.671611999998,5193.5614158999997,19170.103298999999,3053.2304963000001]
[8270,"2011-10-09","KW60MN01 ",5308532.8962159175,1619268.4176492433,1177474.1007043284,67224.234670999998,374570.08227391494,"Summer",105829.13619999999,47036.26253,80283.526620999997,1541.0112549,54673.884334000002,31527.968778999999,5161.6464815999998,19170.103298999999,3053.2304963000001]
[8273,"2011-08-07","KW60MN04 ",5002325.6311427383,1617744.3573606568,1166024.9364323521,90218.44576799999,361500.97516030457,"Summer",83799.258088000002,46920.940741999999,67699.620397000006,1299.46804,55129.880033000001,24369.939242,5770.4274165999996,35257.092533000003,3053.2304963000001]
[8276,"2012-05-03","KW60MN01 ",5231934.8666073931,1616639.7578725184,1173483.6354326007,86023.926937961325,357132.19550195633,"Summer",110269.52539,43652.665268999997,71675.068142000004,1375.7752224999999,55357.877883000001,31383.481714000001,5740.3069771999999,21356.368259999999,3053.2304963000001]
[8280,"2012-05-11","KW60MN02 ",5307584.8183479607,1614278.9851750007,1161050.542684451,92521.204708569887,360707.23778197984,"Summer",96389.802362000002,43033.439121000003,72502.235772999993,1391.6523854,57090.661540000001,31445.512154,5778.6685533999998,21356.368259999999,3053.2304963000001]
[8281,"2011-10-08","KW60MN03 ",5264778.692881152,1613366.7331013014,1175541.6075492601,62941.690628999997,374883.43492304115,"Summer",99250.060744000002,44423.538177000002,82620.901347000006,1585.8762591,56178.670141000002,34968.304794000003,5704.6473030999996,19170.103298999999,3053.2304963000001]
[8285,"2011-09-05","KW60MN08 ",5749154.7997356905,1611703.9254166817,1164472.8891659754,89868.300705999995,357362.73554470623,"Summer",93491.548091000004,40673.922663999998,68073.590093000006,1306.6462437,54263.488205000001,19153.722793000001,5503.2845828,37362.855968000003,0]
[8286,"2012-03-31","KW60MN05 ",5170616.8286645599,1611140.1488455185,1123568.9057717088,80410.344708928547,407160.89836488094,"Winter",152496.59737999999,51026.907986999999,65767.374091000005,1262.3793192000001,52257.107128000003,26489.585922999999,6284.5571741000003,1354.3257784,2136.8372881]
[8287,"2011-09-15","KW60MN01 ",5336879.5943414951,1610702.3840227311,1142151.5383248078,79925.725157000008,388625.12054092321,"Summer",111105.19116,49380.999622000003,82558.307390999995,1584.6747923,51618.713149000003,35071.141605999997,6992.9258436999999,30140.680221999999,3053.2304963000001]
[8288,"2011-10-20","KW60MN02 ",5250349.1517400546,1610386.4530739398,1171273.6793702948,60819.630681000002,378293.14302264497,"Summer",94699.011840000006,42116.745714999997,97014.290666999994,1862.1518024,57045.061970000002,41224.982177999998,6078.1393940999997,19170.103298999999,3053.2304963000001]
[8289,"2011-08-08","KW60MN04 ",5186285.324638918,1610355.3986289643,1168239.0469811538,84693.976601000002,357422.37504681054,"Summer",90220.393591,48502.956231999997,63587.832330999998,1220.5438577,56589.066271000003,28409.657497,5727.9486585000004,35637.666575000003,3053.2304963000001]
[8290,"2011-10-12","KW60MN04 ",5345709.7936039455,1610222.266004947,1190638.2419542253,59913.424939999997,359670.59911072173,"Summer",94523.944592999993,40690.096732999998,91329.957154999996,1753.0432183,43410.790564000003,37796.838341000002,5999.4389117000001,19170.103298999999,3053.2304963000001]
[8291,"2012-05-19","KW60MN06 ",5394169.8560793744,1609938.0259690098,1168243.5549825074,93877.094335182177,347817.37665132032,"Summer",78286.664149000004,47452.130208000002,59173.859334000001,1135.8193526,56543.466700999998,31805.65396,5624.9615413000001,21356.368259999999,1119.0937887]
[8292,"2012-05-11","KW60MN04 ",5277441.1445735311,1609890.2302417248,1160228.5260945526,85632.441037396609,364029.26310977538,"Summer",109559.54811,43536.829303999999,66177.020063000004,1270.2423151999999,57318.659389,30591.354513999999,5854.6654408000004,21356.368259999999,3053.2304963000001]
[8293,"2012-03-29","KW60MN04 ",5240231.6408520425,1609795.728469698,1157908.2494146482,73915.500527237164,377971.97852781269,"Winter",136651.13561999999,48784.140158000002,77526.849371999997,1488.0979007999999,42635.597874999999,31327.535421,6353.9432083000002,1354.3257784,3053.2304963000001]
[8294,"2011-10-12","KW60MN03 ",5292286.1667866204,1609149.1051486144,1196794.3305638728,63390.132017999997,348964.64256674156,"Summer",97139.344119000001,40811.691476,92600.892152,1777.4383241999999,41814.805616999998,37652.696481999999,6022.2323914999997,19170.103298999999,3053.2304963000001]
[8295,"2012-05-05","KW60MN24 ",5253235.7248480851,1609030.5390249162,1158332.6837783577,91466.314263780383,359231.54098277813,"Summer",127705.73772999999,52217.758773000001,55109.304377,1057.8017915999999,55494.676592999997,24890.775016,5238.1800247000001,21356.368259999999,3053.2304963000001]
[8296,"2011-10-08","KW60MN04 ",5293097.4480578071,1608623.3584897784,1172312.3906730234,64134.06324499999,372176.90457175474,"Summer",99152.023933999997,43970.413581000001,81412.137969000003,1562.6745134,55722.674442000003,34737.871694000001,5736.8263335000001,19170.103298999999,3053.2304963000001]
[8297,"2011-10-22","KW60MN06 ",5256108.3979502888,1608178.2114135206,1152096.0683399991,67723.182713000002,388358.96036052145,"Summer",121289.13842,43413.438156999997,96231.698229000001,1847.1302430999999,57227.460249999996,35245.176385999999,5730.6099291999999,19170.103298999999,3053.2304963000001]
[8298,"2011-09-10","KW60MN03 ",5521489.2419050736,1607895.3710433436,1136734.8184703586,80228.101469000016,390932.45110398484,"Summer",91582.373951000001,53942.811778000003,85554.873248000004,1642.1927154,53442.695946,33365.995581000003,6217.7850091,46713.643221999999,3053.2304963000001]
[8299,"2012-04-20","KW60MN01 ",5177938.9099772992,1607210.7717505191,1165029.6845858404,78455.676326684683,363725.4108379939,"Summer",105517.59110999999,47078.548738999998,75479.102593999996,1448.7921931000001,34929.270558999997,31825.239882999998,5763.9012087000001,7467.6597125999997,3053.2304963000001]
[8300,"2012-03-26","KW60MN04 ",5114986.3461271208,1606993.1620519601,1170347.3489477257,70819.30487879875,365826.50822543568,"Winter",148492.4137,47310.940514000002,74293.091864999995,1426.0271757,56087.471001999998,29478.320596000001,5787.9237487,1354.3257784,3053.2304963000001]
[8301,"2011-09-07","KW60MN04 ",5609526.5057162829,1606911.5578837653,1151465.0428526814,89075.026920999997,366371.48811008385,"Summer",79923.889477999997,44895.422186999996,75915.25275,1457.1639267,51937.910139,32932.217088999998,6667.4178869999996,37597.578096999998,3053.2304963000001]
[8302,"2012-05-23","KW60MN02 ",5554011.9934656899,1605693.3037147198,1172470.0653458301,93369.721675694745,339853.51669319515,"Summer",76170.330279999995,42702.413803000003,67887.255629000007,1303.0696257,57637.856378999997,37247.169879000001,5474.1595804999997,21356.368259999999,3053.2304963000001]
[8303,"2011-08-15","KW60MN03 ",5229429.9005570766,1605645.3697798373,1176391.5964190292,92739.564182000002,336514.20917880809,"Summer",77560.810205000002,44974.441497,61020.938051999998,1171.2733143999999,53625.094226000001,26947.852211000001,5459.8713335000002,48355.645782,3053.2304963000001]
[8304,"2011-09-16","KW60MN01 ",5355498.1759860609,1605550.0366386168,1152390.8558344482,77427.966681999984,375731.21412216855,"Summer",83433.543690999999,49941.101883000003,84406.213558000003,1620.1446367000001,54309.087775,34935.562941999997,6312.5546913999997,30217.333901999998,3053.2304963000001]
[8305,"2011-09-08","KW60MN04 ",5617761.695764089,1605380.0030136497,1143675.1351035296,80679.721455000006,381025.14645512,"Summer",85060.244634999995,48769.497370999998,77022.084959,1478.4091430999999,52849.901536999998,32696.311689999999,6912.0516521999998,46938.107205,3053.2304963000001]
[8306,"2011-10-30","KW60MN03 ",5253309.1490241336,1604430.319572669,1127757.4761388812,62434.466613999997,414238.37681978778,"Summer",150747.69488,47116.146299,79509.680609000003,1526.1575797999999,55813.873582,31569.108372999999,5539.7500878999999,19170.103298999999,3053.2304963000001]
[8307,"2012-04-01","KW60MN04 ",4992015.9526107227,1604422.7301100986,1132658.744374278,72302.555007350093,399461.43072847032,"Summer",139573.37445999999,45678.439305,64171.417576,1231.7455508999999,51618.713149000003,24154.952655000001,5518.1822817000002,7467.6597125999997,3053.2304963000001]
[8308,"2011-09-26","KW60MN06 ",5816001.0026175948,1603899.8969814661,1149146.8214612892,73391.121951999987,381361.95356817677,"Summer",99252.625599000006,49595.427350999998,92896.631345000002,1783.1149237,56771.464549999997,33875.761661999997,6242.8537742999997,30217.333901999998,3053.2304963000001]
[8309,"2012-03-11","KW60MN01 ",5255602.3898866056,1603701.3624672915,1139871.4642819632,68432.852728806611,395397.04545652162,"Winter",164748.71859,52669.446887999999,60775.077254999997,1166.5541115000001,55221.079172999998,25694.751359000002,5306.9142849,1354.3257784,3053.2304963000001]
[8310,"2012-05-26","KW60MN01 ",5505587.8660011198,1603687.9344851996,1154701.0730010536,95629.686965909365,353357.1745182366,"Summer",110095.24244,50923.654888999998,68416.570892999996,1313.2296276,55357.877883000001,29880.118301999999,5399.7828178,26938.372735000001,3053.2304963000001]
[8311,"2011-09-01","KW60MN02 ",5672002.1889520558,1603632.7335480056,1152085.3688803799,91135.748909000002,360411.61575862562,"Summer",72919.249479000006,45878.545608,73435.565629000004,1409.5672910999999,56771.464549999997,32193.362379999999,6258.5573031000004,47483.426682999998,3053.2304963000001]
[8312,"2011-09-18","KW60MN24 ",5318779.5770576708,1602840.8264180683,1156939.8227467325,73567.671172000002,372333.33249933569,"Summer",104686.98086,43736.381260000002,75200.689522999994,1443.4481619000001,55175.479603,30394.326297,5727.1766870000001,30217.333901999998,3053.2304963000001]
[8313,"2012-03-30","KW60MN02 ",5220225.1481633121,1602744.5785392798,1143819.9726076589,82291.70290200827,376632.90302961261,"Winter",108872.0822,47794.048036,75453.858643,1448.3076452,47697.150135999997,30730.348932000001,5893.0270171000002,1354.3257784,3053.2304963000001]
[8314,"2012-04-01","KW60MN03 ",4980690.4409571178,1601092.634262173,1135200.0681778432,70587.534734783985,395305.03134954587,"Summer",148435.56294999999,45627.858784999997,63518.558388999998,1219.2141712,51573.113579999997,24296.345508999999,5508.2101343000004,7467.6597125999997,3053.2304963000001]
[8315,"2012-04-14","KW60MN02 ",5105504.8705022521,1601003.6781539046,1175821.7252470544,78646.993380691492,346534.95952615887,"Summer",102299.71563999999,51719.619617999997,68481.910608000006,1314.4837981999999,37938.842172999997,27375.829568000001,5412.5203506999997,7467.6597125999997,3053.2304963000001]
[8316,"2011-08-14","KW60MN04 ",5269010.5560839502,1600487.5207695456,1163026.2827983764,89412.161026999995,348049.07694416918,"Summer",86314.638869000002,47744.542465999999,61327.735610999996,1177.1621749999999,51436.314870000002,25538.161913,5578.1455213999998,47446.547507000003,3053.2304963000001]
[8317,"2011-10-30","KW60MN04 ",5248702.9577573882,1600419.7048849247,1120901.8392186307,65942.28951799999,413575.57614829391,"Summer",154108.71468999999,47206.215585999998,84491.353587000005,1621.7788667,55905.072721999997,31290.772571000001,5534.3869162000001,19170.103298999999,3053.2304963000001]
[8318,"2011-10-31","KW60MN04 ",5352799.7177149598,1599878.3322549998,1128657.9209722807,66035.213724000001,405185.19755871926,"Summer",123914.54300000001,47371.976496000003,93001.118463999999,1785.1205135,57501.057669000002,35553.048870999999,5896.9495134999997,19170.103298999999,3053.2304963000001]
[8319,"2012-05-22","KW60MN05 ",5720039.7608397156,1598253.1030512475,1152791.9654598974,94239.077686664314,351222.05990468559,"Summer",75938.751436000006,48364.798574,62818.901518999999,1205.7845281,56771.464549999997,36862.770796999997,5776.3966535,21356.368259999999,3053.2304963000001]
[8320,"2012-04-17","KW60MN03 ",5123751.2386049014,1597835.7140993401,1147384.0103296665,77499.574769314626,372952.12900035892,"Summer",126077.39401,45394.372776999997,71632.456042999998,1374.9572997,34792.471849000001,30543.873770999999,5681.6286651,7467.6597125999997,3053.2304963000001]
[8321,"2012-05-17","KW60MN02 ",5461418.1419933811,1597680.0836412245,1144223.2919181469,99299.398881885092,354157.39284119272,"Summer",81986.255407999997,44280.910395999999,71809.333526999995,1378.3523947000001,55722.674442000003,31906.067144000001,5839.4511662000004,21356.368259999999,3053.2304963000001]
[8322,"2011-08-15","KW60MN04 ",5221400.1024873992,1597536.6869775746,1163033.5780551441,92642.876247000007,341860.23267543054,"Summer",83303.870137000005,44412.198974999999,58500.610537,1122.8966022,55768.274012000002,27050.316386999999,5535.6058187999997,47238.282213999999,3053.2304963000001]
[8323,"2012-03-11","KW60MN06 ",5280322.4343065964,1597440.5755540649,1137275.2951459119,66310.181960143527,393855.09844800935,"Winter",146654.69515000001,51119.797210999997,65898.056737999999,1264.8877221,55038.680892999997,24849.514146000001,5988.7074899999998,1354.3257784,1119.0937887]
[8324,"2011-09-24","KW60MN01 ",5392486.4789030179,1597311.5719295084,1141664.5440674359,69793.863646000013,385853.16421607247,"Summer",101261.88207000001,53373.076738999996,85550.237309999997,1642.1037303999999,56041.871432,35270.188259000002,6001.5516772999999,30217.333901999998,3053.2304963000001]
[8325,"2011-10-20","KW60MN04 ",5297952.2698717508,1597129.2203781789,1162103.8711669883,61038.668741000001,373986.68047019071,"Summer",102705.91658999999,40189.897658000002,92539.286519000001,1776.2558279,56999.462399999997,40835.440138999998,6184.6105416999999,19170.103298999999,3053.2304963000001]
[8326,"2012-05-11","KW60MN03 ",5244150.6098288624,1596949.2978836559,1149365.6946164831,87341.802938247129,360241.80032892566,"Summer",92342.864035000006,42886.848965999998,67770.762126999995,1300.833578,57136.261109999999,31385.975505999999,5849.2091589000001,21356.368259999999,3053.2304963000001]
[8327,"2012-05-27","KW60MN24 ",5264355.0692660874,1596412.5220384623,1156457.5321112003,82856.313320756177,357098.67660650588,"Summer",96947.393343999996,45707.313538000002,56813.408833000001,1090.5114177999999,55585.875732,26725.009595,4687.4493285999997,20413.319973999998,3053.2304963000001]
[8328,"2012-05-03","KW60MN05 ",5250998.8905958142,1596240.8739330503,1144833.6729948402,84599.113028601569,366808.08790960861,"Summer",98708.823361999996,43670.704834999997,69848.018244999999,1340.7057061,55859.473151999999,30896.317720999999,6086.5853739000004,21356.368259999999,3053.2304963000001]
[8329,"2012-05-05","KW60MN03 ",5119412.1301752878,1596171.051813937,1156892.2327407198,88000.931166228911,351277.88790698844,"Summer",105189.21549,46798.132863999999,54834.716906000001,1052.5311912,56725.864979999998,27448.324579,5797.1230776000002,21356.368259999999,3053.2304963000001]
[8330,"2011-10-14","KW60MN03 ",5185215.8223863682,1595451.0925110958,1171301.363820717,58563.931052,365585.7976383788,"Summer",114884.18694,41802.439172999999,94619.593380000006,1816.1865138000001,52485.104978000003,38387.382629,5284.5931295999999,19170.103298999999,3053.2304963000001]
[8331,"2011-09-06","KW60MN01 ",5578741.1502183117,1595045.2521642842,1140213.1409852698,84451.088176000005,370381.02300301456,"Summer",91385.823394999999,47531.154338,76347.706487999996,1465.4647090999999,55859.473151999999,23579.514087,5664.9517060999997,37962.508412000003,3053.2304963000001]
[8332,"2012-04-15","KW60MN24 ",5185909.7615424562,1594854.2941444796,1170407.1006234824,79852.739681017207,344594.45383998007,"Summer",105978.38532,47099.348790999997,58361.620452000003,1120.2287412000001,35795.662386999997,26214.153634999999,5171.2148671000004,7467.6597125999997,3053.2304963000001]
[8333,"2012-03-25","KW60MN05 ",5066654.2293332098,1594613.5569390343,1109286.1672368404,73751.279194297327,411576.11050789664,"Winter",150496.41328000001,51077.734347999998,65041.598743000002,1248.4483419999999,56178.670141000002,25149.095711000002,5744.1058905,1354.3257784,2743.6244430000002]
[8334,"2011-10-22","KW60MN01 ",5200158.4977467041,1594543.1318371841,1154655.9987579419,64793.871580999992,375093.26149824215,"Summer",101731.07034999999,48025.294161999998,94427.149393999993,1812.4926258999999,56817.064120000003,36701.236108999998,5879.6817252000001,19170.103298999999,3053.2304963000001]
[8335,"2011-09-14","KW60MN03 ",5290613.6851790287,1594505.909360515,1134676.0646755937,76413.936839000002,383415.90784592112,"Summer",90883.832532,46137.677782999999,80185.361455999999,1539.1270125000001,53625.094226000001,35094.031440999999,6756.1946317000002,31665.057511999999,3053.2304963000001]
[8336,"2012-03-26","KW60MN02 ",5107381.229020495,1594477.8943805336,1156878.6335122276,74859.843037469574,362739.41783083644,"Winter",120765.08132,44364.473742000002,65383.777127000001,1255.0163238,56269.869280999999,28198.682034000001,5297.1935360999996,1354.3257784,3053.2304963000001]
[8337,"2011-08-14","KW60MN05 ",5242770.8256398374,1593814.5449589463,1155448.4976668288,92300.183239000005,346065.86405311746,"Summer",85796.824336000005,47047.826684,58420.953301000001,1121.3676123,52257.107128000003,25842.36666,5662.3716953000003,46576.471388999998,3053.2304963000001]
[8338,"2011-10-04","KW60MN03 ",5269477.1622162992,1593789.3306847024,1169830.0073272374,65974.527472999995,357984.79588446481,"Summer",82528.065113000004,43353.488374,85889.235885000002,1648.6106769999999,56178.670141000002,36788.213004999998,6210.3293881,19170.103298999999,3053.2304963000001]
[8339,"2011-09-13","KW60MN05 ",5423600.6228177557,1593109.1472479778,1124384.3186751921,74319.724706000008,394405.10386678576,"Summer",88590.534270999997,46629.049088,82702.003805,1587.4329894,52895.501106999996,35105.650750000001,7187.8283789999996,30791.20579,3053.2304963000001]
[8340,"2011-10-21","KW60MN05 ",5387948.4283370404,1592820.41041951,1153220.8706193715,64977.555722999998,374621.98407713842,"Summer",105850.77849,41566.422450999999,99688.074603999994,1913.4740514,57364.258958999999,40950.473598999997,6013.4969233000002,19170.103298999999,3053.2304963000001]
[8341,"2011-10-19","KW60MN02 ",5232424.2343185702,1592674.7244314728,1144711.2084544965,59114.056171000004,388849.45980597631,"Summer",122148.97953,42084.289921000003,95517.529435000004,1833.4220491999999,50980.319171000003,39611.370640000001,6096.9714408999998,19170.103298999999,3053.2304963000001]
[8342,"2012-05-10","KW60MN04 ",5360027.9996757573,1592381.1449430166,1153671.5683038011,84447.830143541156,354261.74649567431,"Summer",97874.546004999997,42388.332213000002,65982.280671999994,1266.5043679,54217.888635000003,30754.328903000001,5692.7088280999997,21356.368259999999,3053.2304963000001]
[8343,"2011-09-09","KW60MN03 ",5583257.0450173588,1591653.1275438636,1124750.0598066165,83549.070923999985,383353.99681324715,"Summer",83944.776509999996,46709.567543999998,80167.336951999998,1538.7810391,51436.314870000002,35019.687429999998,6369.9040621000004,43206.887155999997,3053.2304963000001]
[8344,"2011-10-11","KW60MN02 ",5265954.2204124741,1591508.8063112041,1174641.3350878172,61418.199270999998,355449.27195238683,"Summer",105132.38593999999,39333.552522999998,93035.026968000006,1785.7713741,43638.788413000002,37988.615098000002,6038.5047427999998,19170.103298999999,3053.2304963000001]
[8345,"2012-05-18","KW60MN02 ",5494799.3360410836,1591164.8449236534,1155716.267076192,90621.336170026858,344827.24167743459,"Summer",71862.105305999998,44905.649482000001,64885.297119000003,1245.4481926999999,56041.871432,33582.257018999997,5808.7432829999998,21356.368259999999,3053.2304963000001]
[8346,"2012-04-08","KW60MN02 ",5010002.5374651523,1590703.4046895574,1123278.2585353951,79300.374420092136,388124.77173407003,"Summer",151262.21325,47957.800444,62082.803735000001,1191.6554157,55996.271862000001,23859.608974999999,5444.9787128999997,7467.6597125999997,3053.2304963000001]
[8347,"2012-05-01","KW60MN01 ",5199861.1274102591,1590142.008280419,1155926.7186904456,77264.049051378024,356951.24053859548,"Summer",96740.593966,41558.774074000001,68087.978692000004,1306.9224273,55129.880033000001,29363.117386000002,5851.2762145999995,21356.368259999999,3053.2304963000001]
[8348,"2011-10-02","KW60MN01 ",5219700.6034363303,1589994.6213210118,1168224.941952737,62534.54866,359235.13070827461,"Summer",88001.136968999999,49431.022581999998,73937.359448999996,1419.1990295000001,54856.282614000003,28904.460471999999,5733.6571861000002,19170.103298999999,3053.2304963000001]
[8349,"2011-10-14","KW60MN04 ",5197150.7773604132,1589244.458929705,1161784.3218023498,60134.118334999999,367326.01879235526,"Summer",112422.12758,41326.517269000004,90582.603615999993,1738.698056,52804.301966999999,38394.347954999997,5360.1447798999998,19170.103298999999,3053.2304963000001]
[8350,"2011-10-20","KW60MN03 ",5219314.4619282437,1588552.1715158746,1159379.7819852086,60735.610198000002,368436.77933266584,"Summer",95033.545232000004,40234.258247999998,93921.747342000002,1802.7916289,56725.864979999998,40858.992766000003,6067.8802968999998,19170.103298999999,3053.2304963000001]
[8351,"2011-10-04","KW60MN04 ",5286942.4232492475,1588469.138029037,1165029.5730026446,68152.915178999989,355286.64984739246,"Summer",75293.870597999994,43279.143251000001,82798.446553999995,1589.2841707,56041.871432,36251.103831,6186.9874022000004,19170.103298999999,3053.2304963000001]
[8352,"2011-09-18","KW60MN08 ",5401630.9197441358,1588428.4580807528,1137576.9409020678,84100.349189999994,366751.16798868502,"Summer",101793.34757,39820.447276999999,73594.330535999994,1412.6147221000001,54628.284764000004,27388.105640000002,5481.1005548000003,30217.333901999998,0]
[8353,"2012-05-04","KW60MN02 ",5182219.0504062008,1588339.4692872243,1148668.0836994892,84431.541949079037,355239.84363865602,"Summer",100390.04337,44065.285599000003,69128.611355999994,1326.8969689999999,56908.26326,29591.183261999999,5890.6247630999997,21356.368259999999,3053.2304963000001]
[8354,"2012-05-15","KW60MN02 ",5430627.9308377746,1588251.7116020012,1129594.2476222524,99411.690480583187,359245.77349916572,"Summer",86961.459245999999,46323.081848000002,76755.763244000002,1473.2972007000001,54126.689494999999,33178.187850000002,6062.6559441999998,21356.368259999999,3053.2304963000001]
[8355,"2012-04-19","KW60MN04 ",5194450.1430843817,1588048.7491687813,1134599.6540605952,78443.797964215628,375005.29714397038,"Summer",110610.50272,45027.337419000003,77537.364373999997,1488.2997322000001,35339.666687999998,30804.163326000002,5735.5955805000003,7467.6597125999997,3053.2304963000001]
[8356,"2011-10-23","KW60MN06 ",5260123.9102481818,1587934.1979339845,1159269.614979388,67523.078302999987,361141.50465159665,"Summer",90483.524388999998,42300.946284999998,91641.017577999999,1759.0139028000001,53077.899386999998,32635.151566,5573.4527461999996,19170.103298999999,3053.2304963000001]
[8357,"2012-03-31","KW60MN03 ",5077227.4283455331,1587167.588765258,1116446.6450232142,79341.998270229495,391378.94547181437,"Winter",146658.22446999999,50359.797531999997,67570.478050000005,1296.9892026,51253.916590000001,26264.563579999998,5933.3625376999998,1354.3257784,3053.2304963000001]
[8358,"2012-05-05","KW60MN04 ",5125819.6473436207,1587089.5307734031,1145402.3172606525,84875.481370128939,356811.73214262171,"Summer",107908.93678,43582.754919999999,55893.596149999998,1072.8559689000001,56589.066271000003,27161.802562000001,5592.8011334000003,21356.368259999999,3053.2304963000001]
[8359,"2012-04-30","KW60MN06 ",5422773.5508629028,1586788.174625193,1148553.0158077457,77609.475393836503,360625.6834236107,"Summer",86178.404798000003,43055.309303000002,71417.040777000002,1370.8224869999999,54537.085623999999,29599.530105999998,5824.5907113000003,7467.6597125999997,2391.2731625000001]
[8360,"2011-09-23","KW60MN01 ",5372600.9193170089,1586121.4514546918,1137603.2108090387,73407.176366,375111.06427965319,"Summer",113309.14344,48394.458532999997,83003.962180999995,1593.2289636999999,56725.864979999998,37119.955109000002,6261.8483408000002,30217.333901999998,3053.2304963000001]
[8361,"2012-04-27","KW60MN02 ",5118483.1263710568,1586033.6081250096,1125502.1266623263,81183.996395921553,379347.48506676167,"Summer",107029.08556000001,46178.010120999999,71643.803660999998,1375.1751128999999,46557.160887999999,29813.535703000001,5984.6292448000004,7467.6597125999997,3053.2304963000001]
[8362,"2012-05-09","KW60MN01 ",5364551.0747327171,1585934.9106022133,1150900.7022417886,91727.658454822595,343306.54990560201,"Summer",83834.816304000007,46611.957535000001,69155.638005999994,1327.4157350999999,56953.862829999998,32738.373240000001,5916.6771139000002,21356.368259999999,3053.2304963000001]
[8363,"2012-05-31","KW60MN05 ",5534187.5552765764,1585767.0598871275,1140990.2079598282,94155.427120246808,350621.42480705248,"Summer",73309.043835999997,51212.295983000004,63538.463311,1219.5962385,56452.267561000001,35123.005852000002,6112.0418171000001,28391.792565,3053.2304963000001]
[8364,"2012-05-16","KW60MN03 ",5466062.3565829787,1585504.3772119733,1135023.1277749264,96256.602491976519,354224.64694507042,"Summer",75915.127215,43838.964322,66662.294196999996,1279.5569645999999,55129.880033000001,32458.111970999998,6135.9340030000003,21356.368259999999,3053.2304963000001]
[8365,"2011-10-02","KW60MN07 ",5241037.8272466054,1584087.0437348604,1148705.6953004699,68433.330399000013,366948.01803539036,"Summer",94525.693358000004,47618.975708999998,79108.643039999995,1518.4598188,54810.683043999998,27762.730781999999,5827.4314314000003,19170.103298999999,2930.0693977000001]
[8366,"2011-10-23","KW60MN01 ",5184623.0702544237,1583433.3383642514,1156999.7028693717,63945.025176999996,362488.61031787965,"Summer",103471.23963,46653.843650000003,87680.934353000004,1683.0016364000001,55403.477453,34025.902974999997,5224.2777629000002,19170.103298999999,3053.2304963000001]
[8367,"2011-09-14","KW60MN05 ",5418534.5215763962,1583319.0247241571,1118599.8775609534,77523.286185000004,387195.86097820365,"Summer",99759.205644000001,46379.501487000001,81031.601508000007,1555.3702631000001,53989.890785000003,34965.631248999998,6986.7907003999999,31600.919512,3053.2304963000001]
[8368,"2012-03-25","KW60MN02 ",5020849.3002881883,1583031.8271431474,1112875.2717853051,73762.468840593196,396394.08651724894,"Winter",143895.36699000001,50433.562598999997,62024.300285999998,1190.5324645999999,55996.271862000001,26096.558313000001,5406.2819384000004,1354.3257784,3053.2304963000001]
[8369,"2011-10-31","KW60MN02 ",5236378.0260679377,1582494.6354669079,1131417.4797612147,63152.841235,387924.31447069324,"Summer",111171.34746,45190.435857999997,93225.757954000001,1789.4323817,57409.858528999997,34933.435934000001,5359.6572183999997,19170.103298999999,3053.2304963000001]
[8370,"2011-10-09","KW60MN06 ",5350726.0835739281,1582202.2558576497,1148205.5867274608,69349.039804,364647.62932618905,"Summer",106767.88370000001,47223.238046999999,85216.258197000003,1635.6931304,54126.689494999999,30729.259168,5502.6954462000003,19170.103298999999,3053.2304963000001]
[8371,"2011-09-21","KW60MN01 ",5196402.3989173919,1582091.712272184,1136529.7041705605,71022.385616999993,374539.62248462334,"Summer",81607.536561000001,46939.788529999998,81593.928241999994,1566.1639074,55950.672292000003,35218.106561000001,6342.9663130999998,30217.333901999998,3053.2304963000001]
[8372,"2012-04-28","KW60MN06 ",5232414.5829777392,1581407.4278590523,1124372.0323878007,83104.72620312545,373930.66926812608,"Summer",102907.73464,47218.568679999997,60906.637183999999,1169.0793535,56634.665841000002,24859.855148999999,5554.1416038999996,7467.6597125999997,2543.9346870999998]
[8373,"2012-04-08","KW60MN04 ",5033401.134962162,1581253.7362794303,1114563.1084081803,78171.53658604197,388519.09128520801,"Summer",135094.45946000001,44896.456967999999,61191.852877999998,1174.5539584999999,56041.871432,22680.728526999999,5425.9655237999996,7467.6597125999997,3053.2304963000001]
[8374,"2012-03-31","KW60MN04 ",5107035.0232625222,1581020.3929265104,1109925.9996059884,77728.176431687083,393366.21688883496,"Winter",146562.25438,49665.739399999999,65138.54593,1250.3092058,52029.109278999997,26078.051930000001,6129.7142131999999,1354.3257784,3053.2304963000001]
[8375,"2011-10-31","KW60MN03 ",5235942.7866910966,1580910.5101361359,1123714.7009283884,65060.225961000004,392135.58324674738,"Summer",125852.67243999999,45810.642155000001,91998.416144000003,1765.8740301,57729.055519000001,35050.549202000002,5441.2221216999997,19170.103298999999,3053.2304963000001]
[8376,"2011-10-24","KW60MN01 ",5178140.0853102785,1580114.2140283631,1145645.6206436087,62252.860746000006,372215.73263875436,"Summer",97914.799389000007,41833.575782,94719.572822000002,1818.1055805000001,55494.676592999997,35532.464416000003,5194.9225241000004,19170.103298999999,3053.2304963000001]
[8377,"2012-04-19","KW60MN02 ",5155984.0456066215,1579394.0884979325,1139860.0119393866,76914.321947276083,362619.75461126986,"Summer",113190.08966,45621.026662999997,74772.775038000007,1435.2345088,35522.064967999999,30823.244264000001,5662.0754348,7467.6597125999997,3053.2304963000001]
[8378,"2012-04-11","KW60MN02 ",5098220.1413545739,1579373.5414809191,1137882.9898944458,81708.801692994675,359781.74989347858,"Summer",89775.126296999995,42753.685249000002,73073.101439000005,1402.6099311,56680.265411,32145.349227999999,5785.4097619000004,7467.6597125999997,3053.2304963000001]
[8379,"2011-09-24","KW60MN24 ",5430591.0070820348,1578713.6097326209,1119761.3753081767,74050.351717000012,384901.88270744396,"Summer",116375.01416000001,56108.729480000002,90095.148673999996,1729.3415468999999,54582.685193999998,32222.540331,6665.0816569999997,30217.333901999998,3053.2304963000001]
[8380,"2011-09-02","KW60MN02 ",5645639.1466140151,1578511.9245381686,1116269.4181637387,90147.412855000002,372095.09351942991,"Summer",75074.586100999994,48944.756088000002,77716.574468000006,1491.7396007,55449.077022999998,33990.769784999997,6447.6700521000002,49931.666274000003,3053.2304963000001]
[8381,"2012-05-01","KW60MN05 ",5281776.978637171,1578488.9431525902,1133496.5731401197,75157.693975106129,369834.67603736441,"Summer",99746.413165000005,43503.521905000001,69030.189322000006,1325.0077961,55266.678742999997,29627.491576,6165.9528662000002,21356.368259999999,3053.2304963000001]
[8382,"2012-04-27","KW60MN04 ",5149136.9369681804,1578418.2132497292,1112662.2401761261,79323.643327668338,386432.32974593487,"Summer",122579.16506,45059.865518999999,69108.709533999994,1326.5149612,51664.312719000001,29939.691439999999,6012.8231403,7467.6597125999997,3053.2304963000001]
[8383,"2012-03-26","KW60MN03 ",5096297.9027125696,1577085.1839319004,1141132.9291056269,72293.534946948494,363658.71987932501,"Winter",124015.66399,46219.762870999999,69466.878135000006,1333.3898690000001,56133.070571999997,28204.506390999999,5361.8495512,1354.3257784,3053.2304963000001]
[8384,"2012-05-10","KW60MN02 ",5313959.6978504816,1576956.9317616622,1147589.2379501977,86495.342936553992,342872.3508749106,"Summer",100688.6476,46427.599499000004,67056.227950999993,1287.1183707,54993.081323999999,31712.840359999998,5719.1894885000002,21356.368259999999,3053.2304963000001]
[8385,"2011-09-17","KW60MN01 ",5382512.5106726773,1576327.4056794513,1129610.3276071053,78017.029517000003,368700.04855534586,"Summer",91613.989497000002,50130.524558999998,76956.697476000001,1477.1540556,54947.481754,31887.405245999998,5640.4517622000003,30217.333901999998,3053.2304963000001]
[8386,"2011-10-21","KW60MN02 ",5234084.397508326,1575955.1487370362,1144489.7935824771,62625.274873999995,368840.0802805592,"Summer",101537.39201,43637.337983999998,101834.64727,1954.6766837,57136.261109999999,41570.820878999999,5917.9552694000004,19170.103298999999,3053.2304963000001]
[8387,"2011-09-09","KW60MN05 ",5624036.5636932859,1575599.5360095513,1108097.4138114478,84958.766236999989,382543.35596110346,"Summer",85162.404290000006,47235.93821,79077.258793000001,1517.8574103000001,51345.115729999998,35969.154942000001,6719.2618802999996,42624.026576999997,3053.2304963000001]
[8388,"2012-05-16","KW60MN05 ",5547712.671037307,1575562.7830723296,1129967.890766839,92592.681197109894,353002.21110838075,"Summer",92488.721611000001,49866.894945,69634.945693000001,1336.6158608000001,53716.293365999998,32351.224957999999,6367.9470462999998,21356.368259999999,3053.2304963000001]
[8389,"2012-05-24","KW60MN02 ",5427085.9089559689,1575314.3446538937,1145236.6793753298,89666.270148337833,340411.39513022604,"Summer",88878.147775999998,42995.463962000002,65893.135911000005,1264.7932687,57820.254658999998,36923.221575000003,5471.0310636000004,21356.368259999999,3053.2304963000001]
[8390,"2012-04-14","KW60MN03 ",5060683.1384086218,1574564.9293277194,1147682.3715469053,80271.962470294937,346610.5953105191,"Summer",110838.21308,50388.631593999999,65735.342101999995,1261.7644775000001,38121.240452999999,26670.269329999999,5529.8955984000004,7467.6597125999997,3053.2304963000001]
[8391,"2012-04-14","KW60MN04 ",5100477.3996067895,1574546.6793630454,1134688.0350028349,84055.917492684559,355802.72686752572,"Summer",123140.13698,46905.626312,65265.448793000003,1252.7450570999999,38258.039163000001,26960.988362,5508.1822011000004,7467.6597125999997,3053.2304963000001]
[8392,"2011-10-11","KW60MN05 ",5428623.3752251929,1573454.1581542394,1154754.6193468736,62552.670825999994,356146.86798136594,"Summer",107570.65150000001,42398.546652999998,94009.626126999996,1804.4784282000001,43228.392284000001,37748.174959999997,6851.4721896000001,19170.103298999999,3053.2304963000001]
[8393,"2012-03-10","KW60MN05 ",5279390.1942106616,1573385.55134572,1109167.6124706347,70247.218189760373,393970.72068532498,"Winter",133366.67991000001,47034.234746000002,62871.230222999999,1206.7889573,53077.899386999998,27675.831952,5763.1935683000002,1354.3257784,3053.2304963000001]
[8394,"2012-05-17","KW60MN03 ",5394434.1039351728,1573295.9948512788,1133784.5365861759,99457.538210226645,340053.9200548763,"Summer",75854.312596999996,44400.343990000001,64715.204459,1242.1833299,55403.477453,31359.38985,5834.6280358000004,21356.368259999999,3053.2304963000001]
[8395,"2012-03-10","KW60MN02 ",5195908.474302236,1572645.9691138766,1120364.608972714,68721.588138369305,383559.77200279309,"Winter",129571.08676999999,47073.093646000001,64863.727080999997,1245.0341642000001,52667.503257999997,28598.159635,5750.6981224000001,1354.3257784,3053.2304963000001]
[8396,"2011-09-04","KW60MN08 ",5548788.5801094584,1572164.5076743749,1120273.0399627371,96224.215421999994,355667.25228963763,"Summer",103995.14834,39435.822258,62674.632460000001,1203.0153393000001,54765.083473999999,22410.374228000001,5049.4871204999999,38306.504234,0]
[8397,"2012-05-23","KW60MN03 ",5475173.8361020358,1571618.9900641625,1141291.3749622675,90335.67612345895,339991.93897843617,"Summer",77739.957903000002,41760.027632999998,64714.927264999998,1242.1780093,57592.256808999999,37247.436478000003,5551.0689535000001,21356.368259999999,3053.2304963000001]
[8398,"2012-04-19","KW60MN03 ",5146006.0733511988,1571362.6102829129,1133863.9837579771,74257.87967623875,363240.74684869696,"Summer",110693.16099,45606.324423999999,73356.099465000007,1408.0419687999999,35476.465398,30950.581700999999,5724.0312414999999,7467.6597125999997,3053.2304963000001]
[8399,"2011-09-29","KW60MN01 ",5567550.9793544207,1571130.3417915481,1136811.8634139157,64184.146110000001,370134.33226763224,"Summer",92883.454903999998,46073.028103999997,86564.537685999996,1661.5728339,55859.473151999999,34080.995079,5832.7133432000001,30217.333901999998,3053.2304963000001]
[8400,"2012-05-23","KW60MN04 ",5496104.5257813456,1570817.5256971903,1148780.1922704901,90671.993773269089,331365.33965343109,"Summer",101135.11253,42515.533087999996,60014.225259999999,1151.9498516000001,57364.258958999999,37131.254922,5704.9435635999998,21356.368259999999,3053.2304963000001]
[8401,"2012-04-11","KW60MN04 ",5144404.7827417664,1570089.1868555071,1124540.901837274,80584.763591661496,364963.52142657147,"Summer",89356.503817999997,43656.425185,69489.756634999998,1333.829013,56543.466700999998,31673.621329000001,5840.1960504999997,7467.6597125999997,3053.2304963000001]
[8402,"2011-10-03","KW60MN01 ",5111314.4643405499,1569873.0545551958,1152343.8735468783,66964.32471999999,350564.85628831765,"Summer",90863.038130000001,41670.165624000001,76666.186272999999,1471.5778054,55813.873582,31425.658628000001,5535.1182572999996,19170.103298999999,3053.2304963000001]
[8403,"2012-03-25","KW60MN03 ",4974995.4627688043,1569802.9005773747,1101286.6473902196,71579.246079024189,396937.00710813096,"Winter",163609.84881,48751.276235999998,63842.898290999998,1225.4397501999999,56224.269711000001,25280.632119000002,5401.9243612999999,1354.3257784,3053.2304963000001]
[8404,"2011-09-28","KW60MN01 ",5512506.6483711889,1569669.2793491399,1132835.6810364788,68930.711594000008,367902.88671866118,"Summer",75860.692937999993,45604.643709000004,81250.737076999998,1559.5764856000001,56680.265411,36484.662110999998,6046.0416236999999,30217.333901999998,3053.2304963000001]
[8405,"2011-09-25","KW60MN08 ",5514567.5804284094,1569239.1979315009,1112421.9461110691,76840.461763000014,379976.79005743162,"Summer",92438.897714000006,48958.047553999997,88689.571886999998,1702.3620438999999,54856.282614000003,30315.713856999999,6395.1962917000001,30217.333901999998,0]
[8406,"2012-04-23","KW60MN24 ",5333186.6727405665,1568713.5130263641,1144121.1808534926,73708.85298361961,350883.47918925196,"Summer",109495.21477000001,54153.736679000001,79744.601886000004,1530.6668029,22845.384529999999,34143.774447000003,6182.7872667000001,7467.6597125999997,3053.2304963000001]
[8407,"2012-04-08","KW60MN03 ",5012645.6307709077,1568663.947742885,1109217.9053850044,76381.973377605958,383064.06898027472,"Summer",135097.27867999999,45249.595094999997,62076.177027999998,1191.5282185999999,56133.070571999997,23465.954268000001,5493.2472582999999,7467.6597125999997,3053.2304963000001]
[8408,"2011-09-22","KW60MN01 ",5315087.8786526341,1568434.8207177441,1126421.7587695967,70201.263857999991,371811.7980901472,"Summer",87298.610486000005,47742.114587999997,78303.852572000003,1503.0121769,55813.873582,34923.304187000002,6121.3698084999996,30217.333901999998,3053.2304963000001]
[8409,"2012-05-21","KW60MN01 ",5295067.3888407024,1568345.7131477455,1131316.4221209839,92112.808078745162,344916.48294801649,"Summer",91239.987015000006,44014.063965000001,58277.782109,1118.6194966999999,55084.280463000003,30779.910913,4779.2564003999996,21356.368259999999,3053.2304963000001]
[8410,"2011-09-20","KW60MN01 ",5331513.6510141417,1567740.7660850133,1127872.690249596,69830.577545999986,370037.49828941736,"Summer",90673.662807999994,41634.534788999998,79550.154731000002,1526.934465,56999.462399999997,34528.667458999997,6239.3189570000004,30217.333901999998,3053.2304963000001]
[8411,"2012-05-26","KW60MN06 ",5331916.5866610473,1567465.3547501685,1126525.6040520086,95209.985226801786,345729.76547135814,"Summer",87796.404313000006,46496.140851999997,60191.759902999998,1155.3575604,54947.481754,28681.758476999999,4833.2605597000002,25284.665746999999,813.77073923]
[8412,"2012-03-25","KW60MN04 ",4974001.258381729,1567128.1379718923,1093779.2851756429,72634.732351228115,400714.1204450212,"Winter",155935.96184999999,50421.587103999998,64342.034194,1235.0204709,56224.269711000001,25161.509681,5563.7319974000002,1354.3257784,3053.2304963000001]
[8413,"2012-04-10","KW60MN02 ",5043521.4593306249,1566110.6118033433,1132468.8981260336,80770.748473703949,352870.96520360588,"Summer",89798.061610999997,43619.539438,75217.439094000001,1443.7696633999999,54263.488205000001,30998.213745000001,5844.9260707000003,7467.6597125999997,3053.2304963000001]
[8414,"2012-05-14","KW60MN01 ",5199387.1268389225,1565973.0638215195,1140926.2525945727,89338.035786566048,335708.77544038073,"Summer",99294.076621999993,42903.611124000003,64175.656210000001,1231.8269098000001,56452.267561000001,27662.223631000001,4969.7607293000001,21356.368259999999,3053.2304963000001]
[8415,"2012-05-22","KW60MN02 ",5626868.1389226783,1565956.3078254568,1139593.8532758676,96257.572368967347,330104.88218062185,"Summer",77168.641766999994,42398.111210000003,67395.154643999995,1293.6239376000001,56953.862829999998,39136.386028000001,5568.4433951999999,21356.368259999999,3053.2304963000001]
[8416,"2012-05-04","KW60MN04 ",5123847.0172764165,1565794.0906258167,1132300.5598258891,82890.542710984504,350602.98808894312,"Summer",104912.97426,43044.142029000002,68392.947390999994,1312.7761836,56817.064120000003,28995.489833,5887.5893564999997,21356.368259999999,3053.2304963000001]
[8417,"2012-05-30","KW60MN02 ",5339204.1750832293,1565729.2043496049,1126204.2373522634,93058.202124333548,346466.76487300801,"Summer",72531.320470000006,43309.516629999998,57904.914875000002,1111.4624543,56224.269711000001,31628.813889000001,5499.9326005000003,28046.182207999998,3053.2304963000001]
[8418,"2012-03-30","KW60MN03 ",5138365.9018331999,1565677.1174298683,1114603.229959005,73585.454192588615,377488.43327827478,"Winter",112353.93635,46973.923432000003,71779.108924999993,1377.7722451,52257.107128000003,30687.864525000001,5989.9924166000001,1354.3257784,3053.2304963000001]
[8419,"2012-05-03","KW60MN02 ",5121314.0100924801,1564716.3911984235,1127867.6121783436,82744.586995844642,354104.19202423509,"Summer",88506.212016000005,42428.868613999999,71684.512835000001,1375.9565097,56224.269711000001,30881.961648,5727.0107805999996,21356.368259999999,3053.2304963000001]
[8420,"2012-05-30","KW60MN05 ",5430116.2244717339,1564255.9028581327,1125114.8082721701,92469.243719480699,346671.85086648184,"Summer",82426.498978000003,49102.867013000003,58666.490399000002,1126.080602,56543.466700999998,32176.643210999999,5969.8432787000002,26168.740641,3053.2304963000001]
[8421,"2011-09-10","KW60MN04 ",5471749.4033368845,1563866.4262119066,1099447.44960524,82767.541360999996,381651.43524566677,"Summer",89131.951828999998,50464.618867999998,81591.663264999996,1566.1204319999999,54400.286914999997,32617.332079,6317.3084123999997,46169.210653000002,3053.2304963000001]
[8422,"2012-05-20","KW60MN01 ",5301520.0150676584,1563486.6112668936,1109451.3583819445,95209.026118843234,358826.22676610597,"Summer",81997.871444999997,50888.157419000003,60613.427531000001,1163.4513075,54947.481754,30661.731798000001,5705.0180524999996,21356.368259999999,3053.2304963000001]
[8423,"2012-04-27","KW60MN03 ",5088637.0380225284,1563250.3598964764,1104220.1426624407,79000.43709520642,380029.78013882926,"Summer",110438.57265,45971.317536000002,69642.176049000002,1336.7546447,46921.957448000001,29882.930748999999,6063.8663829999996,7467.6597125999997,3053.2304963000001]
[8424,"2012-04-24","KW60MN06 ",5564040.3933194252,1562888.8441346888,1134680.2168681026,66178.259914557828,362030.36735202849,"Summer",79778.498238999993,45406.704982000003,79268.447367999994,1521.5272010000001,39671.625829999997,34558.604949,6575.2299082,7467.6597125999997,2865.6688512000001]
[8425,"2011-10-17","KW60MN04 ",5171140.85223334,1562456.6077460358,1137469.8473439356,57585.349107999995,367401.41129410011,"Summer",113305.58232,38540.194026999998,89553.462562999994,1718.9440913999999,54901.882184000002,34837.622080000001,5321.0586346999999,19170.103298999999,3053.2304963000001]
[8426,"2011-10-10","KW60MN01 ",5230226.2874204973,1562412.1922563806,1150133.6480374003,61666.758733000002,350611.78548598033,"Summer",98896.439320000005,40309.871138000002,80074.253717,1536.9943424000001,52986.700247000001,33752.406475999996,5028.603255,19170.103298999999,3053.2304963000001]
[8427,"2011-09-11","KW60MN07 ",5408635.5193182193,1562309.7024023235,1108070.8149571849,81422.992394999994,372815.89505013835,"Summer",99998.309475000002,50773.541018000004,77646.153627000007,1490.3878999000001,53898.691644999999,29110.054106,5661.9450796000001,40388.916053000001,1627.9655384]
[8428,"2011-10-19","KW60MN04 ",5245761.4192889044,1562114.3911058756,1117120.5066712361,58674.651524000001,386319.23291063932,"Summer",120808.73685,40266.834552,94658.521116999997,1816.9337167000001,49657.931643000004,39285.870947000003,6266.8661566999999,19170.103298999999,3053.2304963000001]
[8429,"2012-05-15","KW60MN05 ",5502000.5314426236,1561925.1215446237,1113200.7715525052,99059.484013605717,349664.86597851291,"Summer",72163.147203999994,50751.764029999998,71204.470824999997,1366.7422888999999,54263.488205000001,32111.324047999999,6462.2494823999996,21356.368259999999,3053.2304963000001]
[8430,"2011-10-19","KW60MN03 ",5200542.5177970715,1561707.967580037,1120901.7759258125,57590.874998000007,383215.31665622443,"Summer",121743.96562,41043.030795999999,93554.110509999999,1795.7349819999999,49885.929492000003,39413.564621999998,6081.7961017999996,19170.103298999999,3053.2304963000001]
[8431,"2012-03-30","KW60MN04 ",5191219.447827829,1561254.7562627962,1100962.3267187341,79484.907033826792,380807.52251023537,"Winter",138477.92705,48869.845371000003,75845.860535999993,1455.83197,52713.102828000003,31415.554096,6174.6680201999998,1354.3257784,3053.2304963000001]
[8432,"2011-10-10","KW60MN05 ",5374512.5821797987,1560938.5497696986,1137610.5020036069,65381.300980999993,357946.74678509159,"Summer",96104.319170000002,41129.545836999998,88797.529328000004,1704.4342452000001,53169.098527000002,35545.077423000002,5606.2412284000002,19170.103298999999,3053.2304963000001]
[8433,"2012-05-06","KW60MN24 ",5219170.9285423281,1560771.5824077153,1129321.7510324633,85700.467669778998,345749.3637054729,"Summer",112122.32571999999,48375.985130000001,54349.961448000002,1043.2264975999999,57136.261109999999,26830.206028000001,5022.2751189999999,21356.368259999999,3053.2304963000001]
[8434,"2011-09-01","KW60MN05 ",5709058.8699154314,1560558.3598846232,1106378.0113860564,91090.896500999996,363089.45199756679,"Summer",83078.003924999997,46641.969383000003,71996.822008999996,1381.9511636,56087.471001999998,32474.037347000001,6415.1456658999996,45454.228866999998,3053.2304963000001]
[8435,"2012-05-19","KW60MN02 ",5305181.3763100337,1560527.5414033434,1125517.3703876515,92769.300656058156,342240.87035963387,"Summer",79430.494059000004,45132.483329000002,62471.243786999999,1199.1113723000001,56361.068421000004,34456.998384999999,5626.4326893999996,21356.368259999999,3053.2304963000001]
[8436,"2012-04-10","KW60MN04 ",5105674.8067161934,1560317.4012891995,1130192.2889366995,77243.222452973903,352881.88989952597,"Summer",100549.19156000001,44954.377359999999,71396.101945999995,1370.4205741999999,54217.888635000003,31154.38495,5860.2148342,7467.6597125999997,3053.2304963000001]
[8437,"2012-05-04","KW60MN03 ",5115184.3754067309,1559803.4409791552,1127087.102497726,83218.489811356834,349497.84867007227,"Summer",96652.307843999995,42855.072848999996,67455.463873000001,1294.7815499000001,56771.464549999997,29612.724907,5997.0315793999998,21356.368259999999,3053.2304963000001]
[8438,"2012-04-21","KW60MN24 ",5207606.0120502496,1559582.2989080285,1127445.4017391033,74070.173745811175,358066.7234231141,"Summer",105636.19976,52999.045365999998,58356.749806,1120.1352511,34199.677439999999,25428.005002999998,5317.3985403999995,7467.6597125999997,3053.2304963000001]
[8439,"2012-04-10","KW60MN03 ",5043640.1314504156,1559036.5533824714,1125288.416306698,80698.778094936075,353049.35898083728,"Summer",87340.729219999994,44305.738701000002,74644.434303000002,1432.771058,53989.890785000003,30896.529831,5891.8910672000002,7467.6597125999997,3053.2304963000001]
[8440,"2011-10-16","KW60MN01 ",5187420.0848934343,1558452.1090805982,1130807.0926878925,60473.217927999998,367171.79846470559,"Summer",95380.118604000003,47405.933042999997,85479.600017999997,1640.7478748999999,55403.477453,31099.134925999999,5276.2639619000001,19170.103298999999,3053.2304963000001]
[8441,"2011-10-15","KW60MN02 ",5203799.2596495692,1558436.6032186304,1129926.6987340276,59943.876275999995,368566.02820860286,"Summer",84065.398881000001,45469.471489000003,88897.612689000001,1706.3553065999999,55585.875732,36086.038667000001,5216.2330054000004,19170.103298999999,3053.2304963000001]
[8442,"2012-04-20","KW60MN05 ",5258414.1820038762,1558280.1626709502,1119489.4379930838,74369.1560557466,364421.56862211967,"Summer",104800.4598,44971.179688999997,74544.533402999994,1430.8534987999999,35111.668837999998,31523.942438999999,6062.4324786999996,7467.6597125999997,3053.2304963000001]
[8443,"2011-09-05","KW60MN01 ",5551059.6099624606,1557767.8859318499,1121319.7228088423,88726.217275999996,347721.9458470078,"Summer",98889.391268000007,42975.652092999997,57885.223073000001,1111.0844777,54217.888635000003,22446.689917,5466.4940371000002,39846.67179,3053.2304963000001]
[8444,"2012-05-02","KW60MN02 ",5086090.4911608845,1557212.4902473018,1128093.073114652,79753.776061604425,349365.64107104536,"Summer",94914.714019000006,42601.230265999999,67733.543139999994,1300.1191739000001,55768.274012000002,28388.915392999999,5774.4971968999998,21356.368259999999,3053.2304963000001]
[8445,"2011-10-09","KW60MN02 ",5203755.2131232936,1556934.0011194418,1138267.5317924749,62542.891883000004,356123.57744396676,"Summer",90929.840941999995,45435.127702999998,80783.996937000004,1550.6175891,54719.483904000001,31586.885136000001,5092.7581653999996,19170.103298999999,3053.2304963000001]
[8446,"2011-10-24","KW60MN04 ",5190683.6802605996,1556548.4895140959,1124222.0642967664,58150.312808999995,374176.11240832944,"Summer",105901.33368,41222.345080999999,94186.597884999996,1807.8753326999999,55540.276163000002,35703.809746999999,5282.5616249000004,19170.103298999999,3053.2304963000001]
[8447,"2012-04-24","KW60MN24 ",5292711.7973180562,1556535.2615344422,1134513.5602446636,76886.944373351449,345134.75691642694,"Summer",94710.861046000005,53658.923605000004,73900.841944999993,1418.4980900999999,41495.608627000001,33398.199262000002,6322.9746168000001,7467.6597125999997,3053.2304963000001]
[8448,"2012-04-11","KW60MN03 ",5081968.0555491662,1556364.6153557124,1111988.9065503385,77972.705374714569,366403.0034306593,"Summer",90822.901329999993,43157.728470000002,71822.578787000006,1378.6066323,56589.066271000003,31657.116395000001,5854.1626434999998,7467.6597125999997,3053.2304963000001]
[8449,"2011-09-11","KW60MN02 ",5411183.893767844,1556107.0101847963,1100114.8414223932,74230.321261999998,381761.84750040312,"Summer",94822.432235,56497.416494999998,74814.204872000002,1436.0297384,53761.892935999997,30194.079258999998,5744.871091,44713.496831999997,3053.2304963000001]
[8450,"2012-05-10","KW60MN03 ",5295393.222631569,1555645.8688132889,1125143.0804571523,84154.36482166723,346348.4235344691,"Summer",100810.66898,46916.867499,63233.064122999996,1213.7342191,54856.282614000003,30838.866687000002,5701.5915813000001,21356.368259999999,3053.2304963000001]
[8451,"2011-09-10","KW60MN05 ",5482298.8451111196,1555520.7768791334,1085223.5499172071,83628.652822000004,386668.57413992629,"Summer",92647.657827999996,48149.162530000001,81719.317100999993,1568.570698,54856.282614000003,32996.583378000003,6147.2511758000001,45359.956579999998,3053.2304963000001]
[8452,"2012-03-11","KW60MN03 ",5191080.2730711494,1554534.7719540065,1098543.2857881065,64011.962241162822,391979.52392473724,"Winter",142981.35655999999,45766.055006000002,62864.989566999997,1206.6691702999999,54993.081323999999,25656.151153999999,5349.1865060999999,1354.3257784,3053.2304963000001]
[8453,"2012-05-31","KW60MN03 ",5395174.3942172108,1553361.9281469926,1126460.8343049125,92708.163904099987,334192.92993798008,"Summer",75061.327285000007,42731.529055999999,58527.339669000001,1123.4096575000001,56041.871432,34274.069309999999,5674.5150132999997,28796.985642,3053.2304963000001]
[8454,"2011-09-30","KW60MN01 ",5498669.1812831499,1553126.1005833636,1116306.2823925351,68663.887472000002,368155.93071882846,"Summer",85899.641103000002,45501.617170999998,85453.351899999994,1640.2440524000001,56269.869280999999,36834.996305000001,5846.8322983999997,30217.333901999998,3053.2304963000001]
[8455,"2011-10-24","KW60MN02 ",5134805.2975908061,1552807.7965068733,1127685.9764571232,59360.305573999998,365761.51447575033,"Summer",95696.221076000002,40701.962965999999,94247.987412999995,1809.0536809,55631.475301999999,35853.106418000003,5259.0571192999996,19170.103298999999,3053.2304963000001]
[8456,"2012-05-27","KW60MN07 ",5179333.259947041,1552668.0649358197,1143362.4340170433,88557.905096471339,320747.72582230507,"Summer",87190.558023999998,38947.523158999997,55815.304903999997,1071.3531986999999,55221.079172999998,25987.035945,4591.1170817000002,17810.247418999999,0]
[8457,"2011-09-03","KW60MN07 ",5499265.2519033421,1552611.3673658038,1089007.9420922319,93286.482636999994,370316.94263657177,"Summer",80195.605121000001,43125.288743999998,62651.893474999997,1202.5788732999999,56452.267561000001,27264.727102000001,5381.1302205000002,42984.749641000002,1068.2066138]
[8458,"2011-10-09","KW60MN05 ",5188124.8094642377,1551706.8441800196,1136152.2775125795,62408.085825000002,353146.48084244021,"Summer",100833.73148,43404.902824999997,81502.517242000002,1564.4093086,54719.483904000001,30205.131168,5301.8609178999995,19170.103298999999,3053.2304963000001]
[8459,"2012-05-02","KW60MN04 ",5076332.1128428411,1550397.6441565519,1124169.362199795,76673.007183561131,349555.27477319597,"Summer",102074.44295,43554.410931999999,67318.375448999999,1292.1501906000001,54765.083473999999,28711.993353999998,5789.1714314000001,21356.368259999999,3053.2304963000001]
[8460,"2012-04-29","KW60MN07 ",5131622.1671729656,1548806.5611493781,1114673.1888479008,82423.984786689034,351709.38751478813,"Summer",93766.888447000005,36565.281701,58511.615854000003,1123.107845,55129.880033000001,23921.930828,5061.8843768999996,7467.6597125999997,0]
[8461,"2012-05-08","KW60MN01 ",5216731.3458943749,1548193.7202102651,1123436.982929985,87450.524645319994,337306.21263496025,"Summer",81177.552410999997,43709.573376,66158.727780999994,1269.891202,57227.460249999996,32362.021808000001,5523.5640758999998,21356.368259999999,3053.2304963000001]
[8462,"2012-05-03","KW60MN03 ",5072578.5349327326,1547503.390831528,1112190.4528838876,83186.68380958616,352126.25413805427,"Summer",86688.683745999995,42304.140607000001,69416.768591,1332.4280357,56315.468850999998,30334.554606999998,5751.3312749999996,21356.368259999999,3053.2304963000001]
[8463,"2011-09-13","KW60MN03 ",5224280.2932791607,1547279.1450115992,1090082.0901507321,70500.381280000001,386696.67358086689,"Summer",85473.302861999997,47568.809742999998,80918.100873999996,1553.1916623,53214.698097,35224.246126999999,6922.8592554999996,33539.681037000002,3053.2304963000001]
[8464,"2011-10-17","KW60MN01 ",5134572.806927097,1546997.618517546,1134864.1365398874,57901.446325999997,354232.0356516586,"Summer",94627.482063000003,38598.283132999997,89349.594484999994,1715.0309225000001,52895.501106999996,33758.337363999999,5250.6670058,19170.103298999999,3053.2304963000001]
[8465,"2011-10-21","KW60MN03 ",5204178.8282896178,1546448.7305568315,1122534.5569809105,59370.811100999992,364543.36247492087,"Summer",101123.13614,40621.884773999998,96345.140071000002,1849.3077154,57501.057669000002,40501.922294999997,5871.1494071999996,19170.103298999999,3053.2304963000001]
[8466,"2012-04-22","KW60MN08 ",5187240.1331760399,1546315.5492839185,1125008.5734096789,82831.775551341052,338475.20032289857,"Summer",102589.51246,40686.325569000001,59810.576846999997,1148.0408990999999,34427.675289999999,24176.324026999999,5366.3747272999999,7467.6597125999997,0]
[8467,"2012-04-28","KW60MN24 ",5184734.6330931792,1546251.5618654131,1093950.6415281536,78968.689464978874,373332.23087228078,"Summer",116449.67052,50009.198151999997,61483.301189999998,1180.1481961,55905.072721999997,24913.940104000001,5059.3517676000001,7467.6597125999997,3053.2304963000001]
[8468,"2011-10-17","KW60MN03 ",5109381.2866747472,1545043.5170678394,1125381.5792788253,58029.729742999996,361632.20804601425,"Summer",110541.32582,38249.885071999997,89081.242731000006,1709.8800143000001,53488.295515999998,34764.245927000004,5246.8477773000004,19170.103298999999,3053.2304963000001]
[8469,"2011-10-03","KW60MN05 ",5328967.4223900894,1544528.832873276,1131722.607679225,66516.223209000003,346290.00198505097,"Summer",74029.683281000005,42718.134753999999,80134.712222000002,1538.15482,56497.867130999999,32820.008215000002,5701.5594156999996,19170.103298999999,3053.2304963000001]
[8470,"2012-05-24","KW60MN03 ",5396358.2721373364,1544506.126166414,1120177.9540287361,88655.639714459234,335672.53242321871,"Summer",84000.991345999995,41880.277482999998,63158.791042999997,1212.3085761,57637.856378999997,36547.510863000003,5548.3687450999996,21356.368259999999,3053.2304963000001]
[8471,"2011-09-17","KW60MN06 ",5379514.9440633729,1544439.4071262903,1101439.6543834431,76929.674180000002,366070.07856284716,"Summer",79163.134428999998,48790.801958999997,80415.811113000003,1543.5504046000001,54582.685193999998,31472.826492,5622.9605094999997,30217.333901999998,3053.2304963000001]
[8472,"2011-09-27","KW60MN01 ",5450157.6694462001,1544438.7285990641,1100805.832880503,72667.692307999998,370965.20341056085,"Summer",76604.161712000001,42871.571492000003,88848.314863000007,1705.4090538999999,56771.464549999997,36008.635556000001,6136.2810516,30217.333901999998,3053.2304963000001]
[8473,"2011-09-04","KW60MN01 ",5459726.4560547331,1544355.1854389238,1104936.2145289958,90044.964756000001,349374.00615392788,"Summer",94864.444982999994,51011.702818999998,58392.499687000003,1120.8214562000001,55175.479603,24997.606101000001,5311.3277282999998,42225.384919999997,3053.2304963000001]
[8474,"2011-10-22","KW60MN02 ",5067536.5069745062,1543682.8344012338,1115897.6670766512,60967.168465999996,366817.99885858269,"Summer",102078.32203,47559.260519000003,92680.010731999995,1778.9569747,56908.26326,36289.525659999999,5858.6353399,19170.103298999999,3053.2304963000001]
[8475,"2012-04-15","KW60MN05 ",5088056.7221835516,1543381.7745854468,1115959.6767434583,82393.200330459105,345028.89751152939,"Summer",102625.46282,44940.872189000002,57885.857037000002,1111.0966464000001,36434.056365999997,24340.912616000001,5396.2818577999997,7467.6597125999997,3053.2304963000001]
[8476,"2012-04-15","KW60MN01 ",5103757.496755763,1543056.2405205695,1118590.3083722536,82656.665254506501,341809.26689380943,"Summer",104883.18167000001,49810.126629999999,64040.025639,1229.2235335,34974.870129000003,24067.388370000001,5100.4694175000004,7467.6597125999997,3053.2304963000001]
[8477,"2011-09-12","KW60MN05 ",5387094.3013086952,1542752.4051432363,1098802.9110186854,68421.395379999987,375528.09874455095,"Summer",82686.259430000006,45324.399762000001,80042.506615000006,1536.384969,54719.483904000001,33137.448020999997,6058.6166366999996,34138.115575999997,3053.2304963000001]
[8478,"2012-05-19","KW60MN05 ",5329286.3001534957,1542742.4815537399,1116066.5882780773,88171.29991984916,338504.59335581341,"Summer",76074.190614000006,48270.066348,57523.744793999998,1104.1460419,56589.066271000003,32268.576249000002,5892.6545739000003,21356.368259999999,3053.2304963000001]
[8479,"2012-05-24","KW60MN04 ",5425772.2302090777,1542494.9912636245,1122504.6120228197,86179.798520836805,333810.58071996813,"Summer",91643.305152999994,42913.796642000001,58974.497324000004,1131.9926757999999,57409.858528999997,36186.898122999999,5554.7188889999998,21356.368259999999,3053.2304963000001]
[8480,"2011-09-03","KW60MN02 ",5459463.6776621714,1542143.8585784936,1086654.0314328042,93049.283332000006,362440.54381368944,"Summer",78955.105616999994,48616.346643999997,62913.807873999998,1207.6062188999999,56953.862829999998,31445.480914,5804.8004713,46942.948812000002,3053.2304963000001]
[8481,"2012-05-16","KW60MN04 ",5413577.0913163638,1541981.3352430274,1103286.9412577432,95518.638401800767,343175.75558348349,"Summer",84127.305152000001,44163.809879,67253.351739000005,1290.9020856,54126.689494999999,31839.363893999998,6009.0614718999996,21356.368259999999,3053.2304963000001]
[8482,"2012-05-17","KW60MN04 ",5377459.0294725057,1541856.7276749983,1111800.689484624,96425.744269926858,333630.29392044764,"Summer",78709.738029,43189.284455000001,61347.270443000001,1177.5371385000001,54901.882184000002,30774.525870000001,5656.7867508999998,21356.368259999999,3053.2304963000001]
[8483,"2011-09-14","KW60MN04 ",5307527.4573469581,1541644.0927451642,1090619.1153587541,78323.717988000004,372701.2593984101,"Summer",87358.799788000004,45564.357968999997,80173.936558999994,1538.9077159999999,53579.494656000003,35021.742397000002,6813.6049469,31252.106743,3053.2304963000001]
[8484,"2012-04-09","KW60MN01 ",5001604.2778966129,1541483.0710405591,1108068.6541233447,75603.947970095323,357810.4689471192,"Summer",150518.97764999999,43867.867475999999,61181.705783999998,1174.3591888999999,52302.706698000002,22391.256388999998,5308.6275199000002,7467.6597125999997,3053.2304963000001]
[8485,"2012-05-15","KW60MN03 ",5323152.6457641581,1541214.5715589756,1093833.5611867206,97848.530002545987,349532.48036970897,"Summer",70462.341029999996,46787.266062000002,71392.670091000007,1370.3547011000001,57181.860679999998,32427.170698999998,6053.3076386000002,21356.368259999999,3053.2304963000001]
[8486,"2011-09-09","KW60MN04 ",5530132.3235946167,1540451.6853655502,1086177.3640839965,82778.172486999989,371496.14879455377,"Summer",84045.197998999996,47097.557206999998,76537.260030999998,1469.103116,51071.518309999999,34988.877326000002,6469.8947104999997,42701.891179999999,3053.2304963000001]
[8487,"2012-04-28","KW60MN01 ",5143930.502249646,1540101.7223678692,1092593.5218894291,81347.973925756043,366160.22655268421,"Summer",116635.87686,52886.591719999997,62860.096643999997,1206.5752526000001,56087.471001999998,25681.014115999998,5760.6050926999997,7467.6597125999997,3053.2304963000001]
[8488,"2011-10-24","KW60MN03 ",5115625.563457191,1539363.4805364467,1109000.9523419689,60473.192177000004,369889.33601747773,"Summer",104739.10464999999,40162.196390999998,91120.752229999998,1749.0276105999999,55677.074871999997,35729.275744999999,5192.1190478999997,19170.103298999999,3053.2304963000001]
[8489,"2012-05-27","KW60MN01 ",5196172.5014362661,1538671.1092223842,1111198.9155453849,84815.438935980856,342656.75474101829,"Summer",98319.823896999995,48129.259073000001,55976.368777000003,1074.4447574999999,55768.274012000002,27730.631083,4581.1914888000001,19155.827931,3053.2304963000001]
[8490,"2011-10-21","KW60MN04 ",5210300.1892415974,1537945.1502339987,1108882.2819932066,61789.053586999995,367273.81465379213,"Summer",104970.30194999999,40986.694710999996,96061.925938999993,1843.8715296,57683.455949000003,40633.822787999998,5780.4021037000002,19170.103298999999,3053.2304963000001]
[8491,"2012-05-12","KW60MN02 ",5230602.0433851834,1537607.9130350808,1098663.5522271015,94644.388038745237,344299.97276923398,"Summer",94140.827338000003,47344.583735,61642.091933000003,1183.1961231,56953.862829999998,28599.487775000001,5622.1868451999999,21356.368259999999,3053.2304963000001]
[8492,"2012-05-18","KW60MN03 ",5407568.4346397193,1537036.2555966352,1116746.2632681623,87888.589427535509,332401.40290093742,"Summer",73573.902201999997,42543.761384999998,60537.567646000003,1161.9952063999999,55859.473151999999,32730.653002999999,5896.5093534999996,21356.368259999999,3053.2304963000001]
[8493,"2011-09-12","KW60MN02 ",5271230.3867652975,1536615.6299192184,1099212.7474359323,63981.776730999998,373421.10575228609,"Summer",93839.838432999997,45382.508151000002,84267.044685999994,1617.473344,55038.680892999997,32367.079667000002,5880.8599983000004,35208.367042999998,3053.2304963000001]
[8494,"2011-09-24","KW60MN07 ",5496194.4779845597,1536185.2668104987,1087528.91531231,75127.979953999995,373528.37154418859,"Summer",85769.363429999998,48124.523827999998,93131.579377000002,1787.6246603,55540.276163000002,31731.773260999998,5733.7587611999998,30217.333901999998,2442.1603372999998]
[8495,"2011-10-11","KW60MN03 ",5171708.7657541558,1535409.890326638,1134964.9434542356,61067.096724000003,339377.85014840245,"Summer",96728.140641999998,40286.654455000004,91382.502653999996,1754.0518087999999,43319.591423999998,37651.005207000002,6044.8227211000003,19170.103298999999,3053.2304963000001]
[8496,"2012-03-10","KW60MN04 ",5192768.5534023531,1534698.2820146927,1083311.8695640152,67400.399270098875,383986.01318057853,"Winter",133894.96583,46118.593796000001,64715.529766,1242.189574,53169.098527000002,27910.971506999998,5695.8187236000003,1354.3257784,3053.2304963000001]
[8497,"2011-09-05","KW60MN07 ",5516770.559486337,1533779.3073646231,1094142.3068181674,86654.283303999982,352982.71724245558,"Summer",82283.036678999997,44600.071087999997,62805.336234000002,1205.5241477,54582.685193999998,19300.896918999999,5392.0394001000004,36152.322384999999,1220.8681383999999]
[8498,"2011-10-15","KW60MN05 ",5199834.9734538449,1533548.6725027296,1102372.9239894669,61349.363000999998,369826.38551226276,"Summer",107827.27477,40962.695516,84347.848477000007,1619.0243416000001,55768.274012000002,35518.851746,5458.5305404999999,19170.103298999999,3053.2304963000001]
[8499,"2012-05-03","KW60MN04 ",5080261.8863226455,1533496.4334672971,1101396.1664607199,82310.981724459605,349789.28528211761,"Summer",96252.529630000005,41521.939744000003,68114.153206000003,1307.424837,56406.667991000002,30216.068512999998,5786.6388220999997,21356.368259999999,3053.2304963000001]
[8500,"2011-10-11","KW60MN04 ",5217746.2796979956,1533322.7842727255,1129839.2684570719,60117.851327000004,343365.66448865365,"Summer",106824.76625,39856.470171000001,90733.525103000007,1741.5949356000001,43182.792714000003,37198.107470000003,6023.4106646999999,19170.103298999999,3053.2304963000001]
[8501,"2012-04-20","KW60MN02 ",5065517.4020294715,1532497.2944046035,1115407.1937446867,66577.576639514795,350512.52402040205,"Summer",97905.038102999999,45488.616535000001,74243.262386000002,1425.0707181,35111.668837999998,31031.597723999999,5605.5572875999997,7467.6597125999997,3053.2304963000001]
[8502,"2012-05-13","KW60MN01 ",5159442.6090139262,1531912.1648988852,1107480.4213742588,92825.406028715865,331606.33749591053,"Summer",111668.33579,49545.11838,56913.878245,1092.4398893,53898.691644999999,24398.300894,4879.4248055999997,21356.368259999999,3053.2304963000001]
[8503,"2012-04-23","KW60MN06 ",5451389.0355690829,1531363.1464763831,1100146.2322074184,77608.121474684027,353608.79279428069,"Summer",87616.111969999998,46614.452898000003,74025.641623999996,1420.8935716999999,35978.060666999998,32455.404607,6071.5945637000004,7467.6597125999997,2930.0693977000001]
[8504,"2012-05-18","KW60MN04 ",5403348.1039052689,1531204.8715569142,1119897.5605834543,87004.355368700577,324302.95560475928,"Summer",73092.069828000007,42471.024672,61402.619116000002,1178.5995349,55905.072721999997,32757.185146,5907.9060934999998,21356.368259999999,3053.2304963000001]
[8505,"2011-10-23","KW60MN02 ",5074880.1191368457,1530729.9132694164,1119228.1925515998,61426.173532000001,350075.54718581645,"Summer",84128.407403999998,45246.232058000001,89068.225747999997,1709.6301582999999,55403.477453,34103.271305000002,5306.2083372999996,19170.103298999999,3053.2304963000001]
[8506,"2011-09-13","KW60MN04 ",5253935.3832146302,1530497.6610825791,1067556.9495581668,79619.138103999983,383321.57342041243,"Summer",82948.489350000003,46292.448167000002,80892.120303999996,1552.6929752999999,53123.498957000003,35011.163485999998,7015.0895565000001,30879.550786,3053.2304963000001]
[8507,"2011-09-06","KW60MN05 ",5548104.50806263,1530363.136071525,1084343.570973007,82979.213304000004,363040.35179451818,"Summer",89461.546285999997,45653.710621999999,73211.378100000002,1405.2640982,56452.267561000001,25888.093659999999,5899.2247977999996,35565.296894999999,3053.2304963000001]
[8508,"2012-05-31","KW60MN04 ",5407981.5295709083,1530280.0682110577,1108449.0655057942,90104.9443949735,331726.05831028993,"Summer",75902.705686000001,44221.024884999999,60966.421650999997,1170.2268931999999,56452.267561000001,34635.646287000003,5695.3345476000004,28461.745358,3053.2304963000001]
[8509,"2012-05-12","KW60MN05 ",5212684.9135362739,1530004.7157949833,1082750.7152775931,90042.877499035909,357211.12301835412,"Summer",102571.78104,42906.821515000003,56225.234154999998,1079.2216321999999,56497.867130999999,26962.209955999999,5623.6021258000001,21356.368259999999,3053.2304963000001]
[8510,"2012-03-11","KW60MN05 ",5119774.725197698,1529725.811976287,1080003.2211473174,65218.34735046819,384504.24347850145,"Winter",147924.75407,46960.392551999998,62032.059078999999,1190.6813916000001,55266.678742999997,25080.431873000001,5653.453391,1354.3257784,3053.2304963000001]
[8511,"2012-05-02","KW60MN03 ",5035540.9751005322,1528041.5516258692,1109665.3453463581,75011.836781618797,343364.36949789216,"Summer",93680.711441000007,43736.662450999997,66248.014123999994,1271.6050187999999,55859.473151999999,27848.947881,5806.6017394999999,21356.368259999999,3053.2304963000001]
[8512,"2012-04-09","KW60MN04 ",5007662.1907717818,1527367.2510460049,1098499.0189689759,78036.536150087835,350831.69592694117,"Summer",129793.02091000001,45201.294626000003,64431.771809999998,1236.7429497999999,47742.749706000002,24155.92614,5339.4843798000002,7467.6597125999997,3053.2304963000001]
[8513,"2011-10-17","KW60MN02 ",5089670.6174920164,1526942.2838897975,1117813.8594351558,57195.363597000003,351933.0608576418,"Summer",100475.95541,38572.399160000001,90290.274806000001,1733.0869175,53579.494656000003,34095.724665000002,5259.7884603000002,19170.103298999999,3053.2304963000001]
[8514,"2011-10-09","KW60MN03 ",5162037.8775435118,1524549.0397575896,1114865.2595906155,63693.018301999997,345990.76186497422,"Summer",93805.848805999995,43889.12386,78483.068750999999,1506.4521620999999,54765.083473999999,31070.958622999999,5167.6597345,19170.103298999999,3053.2304963000001]
[8515,"2012-03-11","KW60MN04 ",5089146.5890143253,1524543.2494283288,1075695.0281307031,64203.297985211335,384644.92331241438,"Winter",129985.20484999999,47578.305942999999,62182.045179000001,1193.5603169000001,55084.280463000003,25863.523347999999,5440.6211358,1354.3257784,3053.2304963000001]
[8516,"2011-09-02","KW60MN05 ",5622365.2648816118,1524416.2985230596,1067117.1131073963,85956.929608999999,371342.25580666331,"Summer",92949.950358000002,45445.907738000002,76481.106071999995,1468.0252625000001,56041.871432,34720.966406,6629.6319041999996,48129.025667000002,3053.2304963000001]
[8517,"2012-05-26","KW60MN02 ",5338148.6810908793,1524167.7144911662,1103663.8237725834,89255.827730201796,331248.06298838102,"Summer",79121.079287,46056.805830999998,65531.857087999997,1257.8586614000001,54856.282614000003,28726.017143000001,5321.1974536999996,26720.415360999999,3053.2304963000001]
[8518,"2011-09-28","KW60MN05 ",5515780.5288936635,1524143.2044755144,1091520.8379710391,67529.676840999993,365092.6896634752,"Summer",83491.358911999996,40272.271970000002,81728.448659000001,1568.7459748000001,54765.083473999999,35460.856548000003,5999.5811173000002,30217.333901999998,3053.2304963000001]
[8519,"2012-05-22","KW60MN03 ",5532592.2063067397,1524047.2113023172,1106777.4831255877,91642.70500677565,325627.0231699539,"Summer",76871.648524999997,42466.350485000003,64900.221849000001,1245.7346672000001,56817.064120000003,38021.542336999999,5624.2911448000004,21356.368259999999,3053.2304963000001]
[8520,"2011-10-01","KW60MN06 ",5305900.4193034032,1523596.2504510148,1102812.45291656,62021.443943999999,358762.35359045485,"Summer",81272.038698000004,47505.050232000001,79878.970616000006,1533.2459587999999,55859.473151999999,31141.523599,6017.6208772999998,19170.103298999999,3053.2304963000001]
[8521,"2011-10-22","KW60MN05 ",5085614.6858539227,1523467.5977479662,1096775.2146736989,62921.952500000007,363770.43057426729,"Summer",103769.36692,40850.278826000002,93518.355345999997,1795.0486754999999,57318.659389,35639.218883000001,5709.4822839999997,19170.103298999999,3053.2304963000001]
[8522,"2011-10-01","KW60MN01 ",5458245.7324232366,1523205.6287825513,1092365.2124862936,64713.413100999998,366127.00319525774,"Summer",85988.117998999995,52154.198506000001,81826.333413999993,1570.6248347999999,55540.276163000002,34071.547992,5798.0965066999997,19170.103298999999,3053.2304963000001]
[8523,"2011-09-15","KW60MN02 ",5219293.465165847,1522761.9829365863,1079747.4749385826,68417.374558999989,374597.13343900361,"Summer",80358.568796000007,49835.890093000002,82884.832349000004,1590.9423125999999,52804.301966999999,34195.272833000003,6834.1434565999998,30294.093953,3053.2304963000001]
[8524,"2012-04-26","KW60MN01 ",5164674.0870170118,1522165.334696502,1092496.0561948144,76309.242164648414,353360.03633703932,"Summer",95616.752966999993,45185.788986,75287.984064000004,1445.1237467999999,44824.377230999999,31972.492117999998,6248.6909632999996,7467.6597125999997,3053.2304963000001]
[8525,"2012-05-06","KW60MN01 ",5084329.3488239395,1522049.0362909129,1093718.9353627046,83242.701206981699,345087.39972122677,"Summer",105744.47478999999,50174.889969000003,53824.017870000003,1033.131214,55585.875732,24757.892953999999,5199.2039194999998,21356.368259999999,3053.2304963000001]
[8526,"2012-03-10","KW60MN03 ",5147246.1491410797,1521735.4224969679,1077329.0856748824,67092.417033636622,377313.91978844884,"Winter",123829.81799,45252.090457999999,65112.001670999998,1249.7996989999999,52849.901536999998,28140.659369000001,5738.7613412000001,1354.3257784,3053.2304963000001]
[8527,"2011-09-16","KW60MN05 ",5320500.4996360131,1521259.7913864886,1089565.5956760796,72744.621287000002,358949.57442340901,"Summer",80683.319703999994,44819.071775999997,80368.542405999993,1542.6431,54673.884334000002,33720.769121999998,6404.2974321000002,30217.333901999998,3053.2304963000001]
[8528,"2012-04-16","KW60MN05 ",5268811.9664259776,1519609.7766776718,1105027.8989569091,72239.677219012621,342342.20050175028,"Summer",98592.482814000003,45579.984119000001,71938.830348000003,1380.8380361,35978.060666999998,27893.121896000001,5469.8951147999996,7467.6597125999997,3053.2304963000001]
[8529,"2011-10-15","KW60MN03 ",5114162.7469437309,1519134.6925687145,1097029.9252235242,59885.645690999998,362219.12165419041,"Summer",87290.354196999993,43466.785591,87982.653313000003,1688.7930151999999,55677.074871999997,35643.114676999998,5159.8790718,19170.103298999999,3053.2304963000001]
[8530,"2012-05-22","KW60MN04 ",5545069.8342621224,1519003.6231942787,1104732.521158535,91342.053916714518,322929.04811902915,"Summer",71471.834013,42122.607328999999,59933.353031999999,1150.3975405000001,56817.064120000003,37389.546432000003,5619.2631713000001,21356.368259999999,3053.2304963000001]
[8531,"2011-10-02","KW60MN02 ",5075717.6243786691,1518086.0936193024,1109958.2633677882,62142.469007,345985.36124451406,"Summer",83566.375618999999,49265.065643000002,75215.490009000001,1443.7322515000001,55084.280463000003,28261.697355,5600.3295494000004,19170.103298999999,3053.2304963000001]
[8532,"2012-05-19","KW60MN03 ",5177803.9929524427,1517322.4194935204,1101169.3288027148,87497.01164899797,328656.07904180762,"Summer",70884.291461000001,43316.978618000001,59044.609736999999,1133.3384564999999,56269.869280999999,33766.330827999998,5637.5128525,21356.368259999999,3053.2304963000001]
[8533,"2011-09-02","KW60MN03 ",5548834.7180532375,1516678.2221321198,1066122.1111780475,87933.632989999998,362622.47796407214,"Summer",71854.484932000007,45039.653556999998,72533.178622000007,1392.2463213999999,55950.672292000003,34139.972546999998,6401.7986811999999,47021.282571000003,3053.2304963000001]
[8534,"2011-09-15","KW60MN05 ",5326485.1583167026,1516486.2255458983,1070065.9235827965,71109.563657999999,375310.73830510187,"Summer",88039.482610000006,46724.372618000001,79343.326050000003,1522.9644684,54400.286914999997,34047.225742000002,7011.3719042000002,27463.922563,3053.2304963000001]
[8535,"2011-10-09","KW60MN04 ",5101933.9822030691,1516082.2937330313,1108214.5876677448,62644.257061999997,345223.44900328643,"Summer",87605.704169999997,41941.620363000002,80135.586175000004,1538.1715952,54537.085623999999,30792.572637000001,5167.8425694999996,19170.103298999999,3053.2304963000001]
[8536,"2012-05-15","KW60MN04 ",5330178.2736651665,1515724.6478987827,1073774.2618957267,94956.120969395764,346994.26503366028,"Summer",72449.096732999998,46009.829366999998,67540.025286000004,1296.4046734999999,57409.858528999997,31786.397883000001,6078.4847499999996,21356.368259999999,3053.2304963000001]
[8537,"2011-10-23","KW60MN05 ",5098362.6685908865,1515494.2456154507,1112197.5728564626,59866.434273000006,343430.238485988,"Summer",80722.248267000003,39343.758929000003,86660.568893000003,1663.4161157999999,52895.501106999996,32828.445205999997,5322.1759621000001,19170.103298999999,3053.2304963000001]
[8538,"2011-09-03","KW60MN06 ",5431467.340250792,1515488.8071313698,1062194.9171039502,91350.947704000006,361942.94232341967,"Summer",82331.599346000003,49235.389616,59227.888177000001,1136.8564153,56725.864979999998,27796.227845000001,5844.0288221000001,45802.910011,3053.2304963000001]
[8539,"2011-09-16","KW60MN02 ",5240505.2045113239,1515228.7068109789,1083221.3752944842,71816.112376999998,360191.2191394947,"Summer",79792.361174000005,47620.778541,83876.019058000005,1609.9677583,54628.284764000004,34220.949993000002,6209.6996221999998,30217.333901999998,3053.2304963000001]
[8540,"2011-10-02","KW60MN06 ",5120388.7669143574,1512529.8529025964,1100505.516919214,64589.304867999999,347435.03111538209,"Summer",84943.321165999994,45858.385063000002,78747.376732999997,1511.5254517000001,54856.282614000003,27225.515777000001,5807.7258379000004,19170.103298999999,3053.2304963000001]
[8541,"2012-04-22","KW60MN24 ",5163258.3138477253,1512527.006280194,1094708.6873355822,70679.02099013995,347139.2979544719,"Summer",110376.44381,48530.437366999999,61730.987173000001,1184.9024328,35613.264108000003,29319.196833000002,5437.1387983000004,7467.6597125999997,3053.2304963000001]
[8542,"2012-05-28","KW60MN07 ",5129070.9680408882,1511888.0285318061,1103961.8381314974,86432.016642030154,321494.1737582786,"Summer",71223.848576999997,34279.875774,55001.948518999998,1055.7411374000001,55175.479603,23525.738545,4622.4022500999999,19333.132824,0]
[8543,"2012-05-29","KW60MN05 ",5263203.5541455019,1511690.1978270335,1092424.4560781806,83709.626593687819,335556.11515516503,"Summer",83965.708692999993,49161.385135999997,56311.092317000002,1080.8696465,55631.475301999999,28319.563160000002,4768.8093888000003,22716.480111000001,3053.2304963000001]
[8544,"2011-10-16","KW60MN06 ",5077682.2595512914,1511674.1724486339,1088553.240759898,59448.418249000002,363672.51343973581,"Summer",99487.617182999995,44689.065424,88339.437206000002,1695.6413439999999,54673.884334000002,29803.413347999998,5477.3625861999999,19170.103298999999,3053.2304963000001]
[8545,"2012-05-06","KW60MN05 ",5055944.1103866082,1511640.9309654864,1078572.8324745023,82251.444330921164,350816.65416006307,"Summer",115385.41469999999,45153.214289000003,53097.464794,1019.1853086,55677.074871999997,24739.856528,5428.4795106000001,21356.368259999999,3053.2304963000001]
[8546,"2011-10-10","KW60MN02 ",5156921.3958265083,1511276.4683820743,1113316.1419014628,57996.271138000004,339964.05534261139,"Summer",93400.008207000006,39107.236064999997,82370.497277000002,1581.0698497999999,53077.899386999998,33133.982995999999,5064.6421442999999,19170.103298999999,3053.2304963000001]
[8547,"2012-05-09","KW60MN02 ",5230178.9347049855,1511154.2082991444,1092319.3472613243,89371.724281266885,329463.13675655337,"Summer",68993.240881999998,44408.948414999999,69772.098880000005,1339.2484632000001,57045.061970000002,32526.675105999999,5769.7299339000001,21356.368259999999,3053.2304963000001]
[8548,"2012-05-01","KW60MN02 ",5084801.8900269009,1510661.2216634725,1091102.0804592837,74237.573336188507,345321.5678680003,"Summer",93134.789489999996,41384.680289000004,68266.985771000007,1310.358399,55038.680892999997,29115.002444999998,5800.5309262999999,21356.368259999999,3053.2304963000001]
[8549,"2012-04-09","KW60MN02 ",4959033.144173204,1509737.2898585391,1082675.0120348562,76293.722953402976,350768.55487028003,"Summer",141213.04806,43487.895755999998,60545.383048999996,1162.1452200000001,52348.306268,22407.666453000002,5287.1934554999998,7467.6597125999997,3053.2304963000001]
[8550,"2012-04-29","KW60MN24 ",5110297.8346171975,1509698.3062698571,1071743.9016132867,73966.799618217832,363987.60503835266,"Summer",109365.84857,46048.784675000003,59265.663617999999,1137.5815003,55357.877883000001,27066.699508000002,5068.7186967999996,7467.6597125999997,3053.2304963000001]
[8551,"2011-10-15","KW60MN04 ",5115567.9575335039,1508992.8950230528,1084376.627486527,58370.179101000002,366246.08843552571,"Summer",103945.47283,40776.300053999999,85734.203108000002,1645.6348826999999,55175.479603,35504.959353999999,5244.0239858000004,19170.103298999999,3053.2304963000001]
[8552,"2012-05-30","KW60MN03 ",5277128.7022560406,1508910.4255001219,1084299.0725613397,88891.693803971022,335719.6591348112,"Summer",82493.238198999999,41556.940713000004,56785.032498,1089.9667449999999,56725.864979999998,31596.686537000001,5618.1458438999998,27483.943447000001,3053.2304963000001]
[8553,"2012-05-09","KW60MN05 ",5349293.1927631963,1507704.6337718661,1094901.0476889324,87301.981087904147,325501.60499502951,"Summer",79178.237397000004,44413.397649999999,62153.28153,1193.0082097,57318.659389,32256.995161999999,6009.3035588000002,21356.368259999999,3053.2304963000001]
[8554,"2012-05-30","KW60MN04 ",5301100.6139826942,1506118.303691993,1080675.8652802475,87774.757557614372,337667.68085413106,"Summer",72669.759044999999,42307.309221000003,56932.218295999999,1092.7919194999999,56452.267561000001,31621.662368000001,5744.4969551000004,26847.402021999998,3053.2304963000001]
[8555,"2012-05-26","KW60MN05 ",5321501.7372355703,1505716.0584911441,1088326.5443226474,89248.475105202931,328141.03906329378,"Summer",90610.686081000007,48890.902511,59196.823265999999,1136.2601363000001,53123.498957000003,28206.495679,5267.0443176999997,25592.516898999998,3053.2304963000001]
[8556,"2012-05-12","KW60MN03 ",5171357.5665309671,1505559.2935659073,1070894.286986216,92230.469772091237,342434.53680760012,"Summer",91025.726242000004,46756.004121999998,57932.267980999997,1111.9874864999999,56771.464549999997,27959.662173000001,5608.5368279000004,21356.368259999999,3053.2304963000001]
[8557,"2012-05-19","KW60MN04 ",5248485.0457492042,1505405.5437406823,1091811.3856273801,89030.709847112084,324563.44826618989,"Summer",73283.458878000005,42522.418233999997,54824.227396000002,1052.3298491,56406.667991000002,32638.980731,5662.7085863000002,21356.368259999999,3053.2304963000001]
[8558,"2011-09-02","KW60MN04 ",5560941.1197375404,1504802.0891984208,1055520.4066184203,87244.253712999998,362037.42886700039,"Summer",76490.057463999998,44893.056973999999,73229.750186999998,1405.6167433000001,56087.471001999998,34344.344923999997,6472.6169269000002,46955.930975000003,3053.2304963000001]
[8559,"2011-09-06","KW60MN02 ",5410375.2285436206,1504724.0556143811,1073961.0603231923,77995.922363000005,352767.07292818883,"Summer",90881.447853000005,45545.955264999997,74767.688286000004,1435.1368705,56269.869280999999,23592.895223,5619.6897870000003,36169.971001999998,3053.2304963000001]
[8560,"2011-10-10","KW60MN03 ",5152005.2893391652,1503688.6442659867,1109025.0335318614,57148.571609999999,337515.03912412532,"Summer",89604.340874000001,38849.667308999997,80158.039927999998,1538.6025863,53260.297666999999,34120.866220999997,5024.2558356,19170.103298999999,3053.2304963000001]
[8561,"2012-04-21","KW60MN06 ",5093459.3507565707,1503316.7424359005,1073126.254406719,72621.292624138703,357569.19540504261,"Summer",104555.97189,47611.990940000003,59723.34259,1146.3664712,35613.264108000003,27020.029267999998,5563.4340431000001,7467.6597125999997,3001.226631]
[8562,"2012-04-21","KW60MN01 ",5057651.5895466637,1502991.0398690053,1091813.9238323087,71321.606398886477,339855.50963781017,"Summer",103761.3544,52044.945609000002,65789.110056000005,1262.7965326000001,36069.259807000002,28097.790626999998,5688.3884961000003,7467.6597125999997,3053.2304963000001]
[8563,"2011-10-10","KW60MN04 ",5172749.2165239807,1502396.6436378811,1103557.103829683,60327.611799000006,338511.92800919811,"Summer",93908.601981,38504.754400999998,79742.580919,1530.6280113,53442.695946,34576.748032000003,5138.0200844000001,19170.103298999999,3053.2304963000001]
[8564,"2011-10-22","KW60MN03 ",5013809.5450746166,1502158.6618696535,1084166.7087041375,60359.424112000001,357632.52905351599,"Summer",110904.39058000001,43422.988987999997,92226.389542000004,1770.2498914,57045.061970000002,35793.973435,5769.3304043999997,19170.103298999999,3053.2304963000001]
[8565,"2012-04-09","KW60MN03 ",4952398.9453910785,1500409.1565131769,1074714.2604342215,74296.55153358994,351398.34454536549,"Summer",128637.93531,43471.975560999999,62654.188076999999,1202.6229172000001,50797.920891000002,23338.13276,5334.7916046,7467.6597125999997,3053.2304963000001]
[8566,"2012-04-20","KW60MN03 ",5062829.7907177527,1499728.8741621037,1078076.8377559304,68556.889052595201,353095.14735357818,"Summer",95413.864463999998,45737.050623000003,69763.777661,1339.0887407,35111.668837999998,30811.937561999999,5673.7515065999996,7467.6597125999997,3053.2304963000001]
[8567,"2011-09-16","KW60MN03 ",5201931.4507539039,1499515.0393327498,1067296.4450785466,74961.220625999995,357257.37362820294,"Summer",92003.349312999999,44174.202674,80217.317314999993,1539.7403928000001,54217.888635000003,34206.711791000002,6150.9078835,30217.333901999998,3053.2304963000001]
[8568,"2011-09-28","KW60MN02 ",5414802.7747202907,1499014.3330616681,1077283.2798211393,64189.742182000002,357541.31105852866,"Summer",75339.815417000005,41055.510826999998,81859.655264000001,1571.2644347999999,56953.862829999998,35945.304200999999,6025.76721,30217.333901999998,3053.2304963000001]
[8569,"2011-09-12","KW60MN03 ",5244769.1661959151,1498593.4671220826,1067558.0876267496,64841.424400999997,366193.95509433298,"Summer",92182.104863,44077.916669999999,80073.325104999996,1536.9765179999999,54719.483904000001,32370.216275999999,5774.8764111,35373.784958999997,3053.2304963000001]
[8570,"2011-09-01","KW60MN03 ",5593052.6251248317,1498310.2880647779,1066583.2001665395,87399.552307000005,344327.53559123835,"Summer",65141.114945000001,44073.575090999999,69687.115015999996,1337.6172308,55996.271862000001,31832.087566999999,6193.5085319,46847.279306999997,3053.2304963000001]
[8571,"2011-10-23","KW60MN03 ",5033076.966837259,1497898.8681585751,1096626.3558327355,59439.812480000001,341832.69984583947,"Summer",86057.125314999997,42759.609528000001,87087.012205000006,1671.6015302999999,53214.698097,33757.455456000003,5225.7607614999997,19170.103298999999,3053.2304963000001]
[8572,"2012-04-26","KW60MN05 ",5230254.7288637292,1497640.5489408886,1070023.4489737437,74689.068228126751,352928.0317390181,"Summer",65021.594825,41232.564341999998,68918.865936000002,1322.8709867,45781.968200000003,31372.827408000001,6373.2543517000004,7467.6597125999997,3053.2304963000001]
[8573,"2011-09-17","KW60MN02 ",5235889.857154456,1497272.4993354459,1068535.9113345877,75081.486470999997,353655.10152985842,"Summer",77046.524997,51816.744373000001,76763.305128000007,1473.4419643000001,54901.882184000002,30871.807628999999,5692.7020571000003,30217.333901999998,3053.2304963000001]
[8574,"2012-04-15","KW60MN02 ",5023409.4147406109,1496813.5287232501,1080699.6792586891,78426.585879429855,337687.26358513115,"Summer",100048.17577,49932.842920000003,57297.290336999999,1099.7993362,35476.465398,24027.534457000002,5077.0614076000002,7467.6597125999997,3053.2304963000001]
[8575,"2012-04-28","KW60MN02 ",5062521.3000491224,1496097.1493884339,1056887.0373115868,79410.797036629199,359799.31504021789,"Summer",103997.40584000001,50643.674458000001,61985.042763999998,1189.7789316000001,56361.068421000004,25331.008011999998,5708.3700348000002,7467.6597125999997,3053.2304963000001]
[8576,"2011-09-23","KW60MN02 ",5247136.5137742059,1494661.125035462,1068781.7584619278,68193.351692000011,357686.01488153415,"Summer",86693.039759000007,44751.732309999999,82661.551500000001,1586.6565230000001,55905.072721999997,37305.749308999999,6125.4734472,30217.333901999998,3053.2304963000001]
[8577,"2012-04-15","KW60MN04 ",5018393.2195030656,1494428.8679121416,1082139.6123395616,78985.480546159422,333303.77502642066,"Summer",101020.03320999999,44551.319108000003,58516.010653999998,1123.1922015,36160.458946999999,23784.374008999999,5085.5903410999999,7467.6597125999997,3053.2304963000001]
[8578,"2012-05-27","KW60MN06 ",5033859.2926780414,1494419.7002774097,1091699.8087408959,86671.638122949167,316048.2534135647,"Summer",71106.575354999994,45544.563775000002,55460.912182,1064.5507674999999,55585.875732,26929.623350999998,4542.4388491,18674.642249,762.88356425999996]
[8579,"2011-10-16","KW60MN02 ",5041466.3052962879,1494311.3231637599,1086135.4885256023,57601.310991999992,350574.52364615776,"Summer",92714.312260000006,45863.542898,85663.185622000005,1644.2717295,54901.882184000002,30294.198806,5252.4953601999996,19170.103298999999,3053.2304963000001]
[8580,"2011-09-22","KW60MN05 ",5404025.6691232454,1494151.0031659033,1064910.011061263,67590.504673000003,361650.48743164033,"Summer",84398.300092999998,43763.894530999998,76544.980700999993,1469.2513113,55813.873582,33945.877493,6336.2826636999998,30217.333901999998,3053.2304963000001]
[8581,"2012-05-20","KW60MN07 ",5185282.850770276,1493555.0918837911,1074785.275949083,90766.871297987687,328002.94463672047,"Summer",80138.934546000004,40162.214066,59034.769232999999,1133.1495719,54582.685193999998,28428.780986999998,4799.0517185999997,21356.368259999999,0]
[8582,"2012-05-29","KW60MN01 ",5121643.9916024646,1493355.3064406198,1079176.8949407341,85238.715740071828,328939.69575981377,"Summer",85467.473647000006,42573.623801000002,50528.452861999998,969.87411775999999,55129.880033000001,26923.227844000001,4702.9988025000002,26325.816353999999,3053.2304963000001]
[8583,"2011-10-01","KW60MN02 ",5269886.7583416887,1493028.8586561834,1075638.236754138,61158.995306000004,356231.62659604521,"Summer",74568.239224000004,50545.224091999997,80420.674524999995,1543.6437559000001,55905.072721999997,32624.931380999999,5682.7883146000004,19170.103298999999,3053.2304963000001]
[8584,"2011-10-23","KW60MN04 ",5036111.5886595864,1492802.9042439726,1090923.023465558,58602.209467000001,343277.67131141468,"Summer",87693.068216,39680.698884999998,87419.722355999998,1677.9877730999999,53442.695946,33083.198571000001,5260.0728716000003,19170.103298999999,3053.2304963000001]
[8585,"2012-05-21","KW60MN02 ",5271665.0750693269,1492317.305394256,1075594.133680942,88233.682570347475,328489.48914296651,"Summer",81456.496281999993,42176.451265000003,59660.398983999999,1145.158293,55221.079172999998,30816.762162999999,4702.5891154000001,21356.368259999999,3053.2304963000001]
[8586,"2011-10-03","KW60MN02 ",5041281.4109665658,1491890.3770699482,1096695.1476610589,59925.655858999999,335269.57354988926,"Summer",72898.380885999999,41387.392570999997,79028.196018999995,1516.9156693,55950.672292000003,31427.929226,5431.9584615000003,19170.103298999999,3053.2304963000001]
[8587,"2011-10-22","KW60MN04 ",4987686.7184617165,1489411.404565752,1074958.746978685,60380.421246999998,354072.23634006683,"Summer",102245.8113,40903.364350999997,91029.643800999998,1747.2788195999999,56908.26326,35176.127787999998,5708.0602300999999,19170.103298999999,3053.2304963000001]
[8588,"2012-05-26","KW60MN03 ",5288658.7375928098,1489329.1831125242,1073007.8064014539,90002.285573198984,326319.09113787132,"Summer",84806.186216000002,44404.333680000003,62816.332594,1205.7352186000001,52758.702397000001,28383.971603999998,5332.4265943999999,26027.963273000001,3053.2304963000001]
[8589,"2011-09-29","KW60MN05 ",5485232.0373043437,1488749.3360403739,1061873.6152875617,67367.796105000001,359507.92464781221,"Summer",80532.279425000001,42104.458500000001,88564.050057,1699.9527009000001,56452.267561000001,34755.963954999999,6134.4526972000003,30217.333901999998,3053.2304963000001]
[8590,"2011-09-03","KW60MN03 ",5375016.6227765782,1488648.7801457224,1048170.5644301835,91576.487149000008,348901.72856653901,"Summer",76206.884762000002,44374.035820999998,58324.571754999997,1119.5176058,56771.464549999997,30908.392607000002,5687.3592005999999,46557.890841,3053.2304963000001]
[8591,"2012-05-07","KW60MN05 ",5263397.6483508423,1487590.8175619999,1063385.4315563163,79208.487903652553,344996.89810203115,"Summer",103718.59974999999,46514.921154000003,62595.205108000002,1201.4907619999999,57911.453798000002,28773.026471000001,5369.1680458999999,21356.368259999999,3053.2304963000001]
[8592,"2012-05-12","KW60MN04 ",5144036.8892570948,1487546.5839313755,1054630.8089616734,92169.643054083383,340746.13191561867,"Summer",96192.244940999997,43338.729896999997,55983.843140999998,1074.588225,56315.468850999998,27249.536152000001,5418.0883653999999,21356.368259999999,3053.2304963000001]
[8593,"2012-05-20","KW60MN02 ",5116471.4519285606,1487371.7438642685,1058686.7256117992,90065.523997070981,338619.49425539846,"Summer",74662.290970999995,46408.420709999999,63143.088584999998,1212.0071734999999,54765.083473999999,30299.90914,5510.6961878000002,21356.368259999999,3053.2304963000001]
[8594,"2011-09-20","KW60MN02 ",5244657.9227541834,1487262.6021993116,1062493.185537199,67643.778067999985,357125.63859411265,"Summer",77370.618793999995,43712.377245000003,76879.233332999996,1475.6671613999999,56817.064120000003,34376.789166000002,6214.7174379999997,30217.333901999998,3053.2304963000001]
[8595,"2012-04-20","KW60MN04 ",5083781.802411058,1486685.9388968053,1070301.2379849262,69459.35806953955,346925.34284233948,"Summer",95431.945630999995,45582.754244999996,69603.935784999994,1336.0206376000001,35111.668837999998,30601.342318999999,5641.3862546999999,7467.6597125999997,3053.2304963000001]
[8596,"2011-09-19","KW60MN01 ",5153742.9549292689,1486680.2281843321,1064443.7083450179,68770.544351999983,353465.9754873144,"Summer",79830.304069000005,41938.419613999999,73072.589537000007,1402.6001054000001,55905.072721999997,30278.447694999999,5484.7978918999997,30217.333901999998,3053.2304963000001]
[8597,"2012-04-16","KW60MN01 ",5006048.1007471699,1486635.2467687996,1083017.0994506362,73232.89307388349,330385.25424428005,"Summer",107595.38857,43607.004776000002,60091.285667999997,1153.4289964,35886.861527000001,26055.782485,5188.2354881000001,7467.6597125999997,3053.2304963000001]
[8598,"2011-10-03","KW60MN04 ",5111910.6745980782,1485500.2448965223,1089334.3809206591,63607.683918000002,332558.18005786324,"Summer",70744.930810999998,41161.762218000003,75009.965081000002,1439.7872798999999,56133.070571999997,31682.911141,5322.5619472999997,19170.103298999999,3053.2304963000001]
[8599,"2012-05-21","KW60MN05 ",5391456.8122134218,1485239.1592852767,1063784.877344419,84587.731329016315,336866.5506118412,"Summer",75173.333014999997,49561.949631000003,58188.118097999999,1116.8984306,55859.473151999999,30713.854706999999,5011.0087344000003,21356.368259999999,3053.2304963000001]
[8600,"2011-09-20","KW60MN05 ",5366851.7292066431,1484446.9335384178,1059116.5099673595,67001.874656999993,358328.54891405831,"Summer",87472.448298000003,42836.928841000001,79037.247541000004,1517.0894098000001,56680.265411,33900.319915,6402.3065579000004,30217.333901999998,3053.2304963000001]
[8601,"2012-04-26","KW60MN02 ",5098673.893273118,1483736.118132601,1062166.9828097362,74159.618045032199,347409.51727783261,"Summer",74020.695691000001,44834.505108999998,74882.211001000003,1437.3350898000001,45462.771209999999,31750.776017,6122.7122941999996,7467.6597125999997,3053.2304963000001]
[8602,"2011-09-21","KW60MN02 ",5099758.3516645674,1483607.3607574292,1061793.6608270931,65769.799129999999,356043.90080033615,"Summer",71256.629967000001,43270.840904999997,79941.477188000004,1534.4457482,56041.871432,35022.717213000004,6260.4262879999997,30217.333901999998,3053.2304963000001]
[8603,"2011-09-29","KW60MN02 ",5410814.691955613,1482065.1804117307,1066345.6733018614,65900.154651000004,349819.35245886928,"Summer",84811.103954000006,45712.625625000001,87114.495983999994,1672.1290709,56634.665841000002,34198.892377999997,5798.6246985999996,30217.333901999998,3053.2304963000001]
[8604,"2011-09-18","KW60MN01 ",5160288.6539658075,1481988.7467124476,1055291.1623856761,75794.752064999993,350902.8322617716,"Summer",94691.497451000003,49199.694509000001,72192.115674000001,1385.69975,55266.678742999997,28022.095895999999,5318.1738986,30217.333901999998,3053.2304963000001]
[8605,"2012-04-28","KW60MN05 ",5095885.9983816314,1481813.1878452837,1050344.1423847857,77071.281951288023,354397.76350921002,"Summer",92742.907212999999,48284.680211999999,60118.323572000001,1153.9479785000001,56452.267561000001,24545.906812000001,5736.9363733999999,7467.6597125999997,3053.2304963000001]
[8606,"2012-04-15","KW60MN03 ",5004546.5437300643,1481129.5395990224,1071218.2606234092,77326.145970547441,332585.13300506596,"Summer",99243.012692000004,48313.809926000002,58072.574679999998,1114.6806194000001,35522.064967999999,23924.643053,5167.9932399999998,7467.6597125999997,3053.2304963000001]
[8607,"2012-05-01","KW60MN03 ",5017373.0706664035,1478817.2039609607,1067046.7917306351,71626.061151269299,340144.35107905627,"Summer",101116.37424999999,41684.670225000002,65859.026228999996,1264.1385465000001,54993.081323999999,28805.863137,5888.0735314000003,21356.368259999999,3053.2304963000001]
[8608,"2011-09-01","KW60MN04 ",5548074.2239664048,1478162.4562587549,1046519.7163447849,85588.356392000002,346054.3835219699,"Summer",75887.782894000004,43451.692899000001,70177.781344000003,1347.0353812999999,57136.261109999999,31581.280179000001,6221.1369913999997,46319.716152000001,3053.2304963000001]
[8609,"2011-09-24","KW60MN02 ",5250981.2268482866,1477855.7346473346,1052752.3940961575,63062.584039000001,362040.75651217689,"Summer",77971.865302000006,50956.015882,83438.022242999999,1601.5605788,55540.276163000002,34104.063284000003,5920.2305537000002,30217.333901999998,3053.2304963000001]
[8610,"2011-09-18","KW60MN07 ",5177191.287247329,1477774.779059913,1052052.6893044738,75909.20968,349812.880075439,"Summer",80127.519881,46838.783347999997,73931.441229999997,1419.0854316,54582.685193999998,27665.640028000002,5507.5304271000005,30217.333901999998,2085.9501132]
[8611,"2012-05-08","KW60MN05 ",5220152.1385910651,1477682.772742416,1061597.3592892508,84421.545687999605,331663.86776516563,"Summer",77622.462111000001,44077.657975000002,63974.572244000003,1227.9671808999999,57045.061970000002,30996.303756000001,5809.0412372999999,21356.368259999999,3053.2304963000001]
[8612,"2011-09-22","KW60MN02 ",5238823.8798887683,1477146.8544224219,1056375.4059304215,69107.746912999995,351663.70157900034,"Summer",79893.132415999993,43301.450484000001,79083.088824999999,1517.9693155,55813.873582,34787.058750999997,6113.7922970999998,30217.333901999998,3053.2304963000001]
[8613,"2011-10-02","KW60MN03 ",4997880.1422944004,1475862.3155126548,1080724.5531606402,56934.302303999997,338203.46004801465,"Summer",88935.634441999995,45879.761957000002,72610.144297000006,1393.7236478,54810.683043999998,28108.929205,5528.0079922000004,19170.103298999999,3053.2304963000001]
[8614,"2011-10-01","KW60MN03 ",5101934.86487169,1475083.1047543723,1077833.7096444031,57690.749840000004,339558.6452699693,"Summer",68051.324406999993,47832.953534,75323.461228999993,1445.8047173,55585.875732,31802.063978999999,5768.3552825999996,19170.103298999999,3053.2304963000001]
[8615,"2012-05-13","KW60MN07 ",5091421.954006494,1474907.9562387918,1055649.0501127159,88879.135879093563,330379.77024698246,"Summer",89103.823214000004,41194.929824999999,58683.795507000003,1126.4127669,54856.282614000003,23363.910341999999,4680.2053226999997,21356.368259999999,0]
[8616,"2011-09-11","KW60MN03 ",5288932.5955104921,1474303.2001074287,1032809.6249401877,73333.794309999997,368159.78085724096,"Summer",98586.526415,52807.770046999998,71922.773071999996,1380.5298229,54263.488205000001,29917.455098999999,5673.4840250999996,42352.781733999997,3053.2304963000001]
[8617,"2011-09-21","KW60MN05 ",5320527.38458216,1474289.7609322949,1051125.255620945,65345.161938000005,357819.34337334981,"Summer",79040.063787000006,43434.238209000003,73197.386345000006,1404.9955319000001,55905.072721999997,34803.468184999998,6528.8286537000004,30217.333901999998,3053.2304963000001]
[8618,"2012-05-06","KW60MN04 ",5009958.6202835664,1473991.5950743605,1059015.9106904813,82470.798066111078,332504.88631776808,"Summer",97135.549828999996,43741.468395999997,54573.262967000002,1047.5126839,55813.873582,24349.375252000002,5102.4619855000001,21356.368259999999,3053.2304963000001]
[8619,"2011-09-11","KW60MN06 ",5308790.8798552388,1473751.5603771748,1036777.9196825018,73462.458869000009,363511.18182567303,"Summer",78276.701490000007,50772.864554,71877.987399999998,1379.6701791999999,54126.689494999999,29563.445713000001,5792.1645146999999,41870.118952999997,3053.2304963000001]
[8620,"2012-05-01","KW60MN04 ",5027517.934856656,1473522.2312258673,1060622.426973843,75807.111327177132,337092.69292484719,"Summer",103425.77175,41719.169871999999,67693.010685999994,1299.3411690999999,55129.880033000001,28978.720732999998,5871.1460206000002,21356.368259999999,3053.2304963000001]
[8621,"2011-09-05","KW60MN02 ",5406387.0692458581,1473405.4452471151,1057774.0408659631,83038.804765000008,332592.59961615194,"Summer",84267.100344000006,43114.703133000003,57261.999193000003,1099.1219363,54628.284764000004,22246.230721,5398.4995840000001,39759.215784,3053.2304963000001]
[8622,"2011-10-03","KW60MN03 ",5039766.0909043942,1473165.2905959762,1080407.5696714337,63068.712417000002,329689.0085075426,"Summer",78272.917799000003,43118.042067000002,75530.158777000004,1449.7721968000001,55996.271862000001,31869.704009000001,5366.3408688999998,19170.103298999999,3053.2304963000001]
[8623,"2012-05-28","KW60MN01 ",5031551.6650209278,1472602.6715130396,1058912.3698214879,81718.653450832906,331971.64824071864,"Summer",88633.310115999993,42855.074456000002,54237.385866999997,1041.0656529,55813.873582,26107.099264,4651.3037857999998,20716.809456999999,3053.2304963000001]
[8624,"2011-09-25","KW60MN24 ",5414502.4990756884,1471878.3595313544,1057267.0151060992,69926.037828999994,344685.30659625516,"Summer",102872.86533,42853.297333000002,81630.822035999998,1566.8720695,55585.875732,31121.567661000001,5775.5061782000002,30217.333901999998,3053.2304963000001]
[8625,"2011-09-25","KW60MN01 ",5257343.3320432492,1471428.6224092706,1036580.1206073288,67612.756362,367235.7454399417,"Summer",104934.06542,55614.313285999997,82715.186369000003,1587.6860236,54947.481754,31658.332515999999,6199.9484005000004,30217.333901999998,3053.2304963000001]
[8626,"2011-09-23","KW60MN05 ",5335809.59481043,1470796.5874860964,1041997.9931942478,69056.355618999994,359742.23867284856,"Summer",78807.743044000003,42153.249043000003,79095.785782999999,1518.2130287,56269.869280999999,36801.641839000004,6430.7069902000003,30217.333901999998,3053.2304963000001]
[8627,"2012-05-06","KW60MN02 ",4939058.6173864901,1470157.1365559692,1058563.5676123349,84779.23614432312,326814.33279931138,"Summer",102105.99490999999,49306.574159000003,56011.005172999998,1075.1095897,55540.276163000002,24562.109142000001,5120.2461131999999,21356.368259999999,3053.2304963000001]
[8628,"2012-05-14","KW60MN02 ",5030022.8620780911,1469606.9640216064,1067398.8328984631,85490.820317245976,316717.31080589723,"Summer",84575.253884999998,42116.107815000003,66018.927242000005,1267.2077847,56862.663690000001,27645.587833000001,4912.6094306000005,21356.368259999999,3053.2304963000001]
[8629,"2011-09-30","KW60MN05 ",5394615.5383602856,1469476.4089627317,1039736.6454447985,70953.893849,358785.86966893298,"Summer",94233.692043999996,40887.071379000001,84668.089833000005,1625.1712505999999,56178.670141000002,35997.705870999998,6121.1869735,30217.333901999998,3053.2304963000001]
[8630,"2011-09-16","KW60MN04 ",5193104.6044921605,1469086.5477105263,1046827.7869592018,71639.906953000012,350618.85379832436,"Summer",81692.876279000004,44553.779122,76189.476563000004,1462.4275468000001,54309.087775,34003.484152999998,6195.9666521999998,30217.333901999998,3053.2304963000001]
[8631,"2012-05-26","KW60MN04 ",5251591.5005564382,1468782.5171717405,1057983.0346796927,89022.869286660047,321776.61320538772,"Summer",80028.889551,43820.211335,62179.413214,1193.5097972999999,52530.704548000002,28524.173026,5264.4185981999999,25874.409008999999,3053.2304963000001]
[8632,"2011-09-28","KW60MN03 ",5350821.1057513226,1467222.0514437016,1049774.8165854511,61713.764622999995,355733.47023525054,"Summer",74370.395642000003,40486.497242999998,80719.229753000007,1549.3744079999999,54901.882184000002,35717.124806,5815.5268146999997,30217.333901999998,3053.2304963000001]
[8633,"2011-09-15","KW60MN03 ",5144441.1759639867,1465240.8589709664,1034360.6229282991,65854.563991000003,365025.67205166718,"Summer",80208.556578999996,46940.916505000001,79457.638284999994,1525.1586476,54217.888635000003,34027.293651,6619.1087109999999,29062.251800999999,3053.2304963000001]
[8634,"2011-09-12","KW60MN04 ",5192624.7984947572,1465139.7360427948,1035554.1008734867,70008.825670999999,359576.80949830811,"Summer",82560.094003999999,44665.964432000001,76412.629837999993,1466.7108877000001,54856.282614000003,32431.017678,5786.0496855000001,35109.210362999998,3053.2304963000001]
[8635,"2011-09-05","KW60MN06 ",5441072.714328059,1464744.6455641144,1046968.7786180055,82581.697997999989,335194.16894810897,"Summer",85039.937766999996,50277.662633,62998.287987999996,1209.2277819999999,54719.483904000001,18892.157131,5598.2371001000001,36317.569158999999,3053.2304963000001]
[8636,"2011-10-01","KW60MN05 ",5139366.5180100091,1463300.6015599382,1056556.9808831455,61457.216113000002,345286.40456379281,"Summer",88506.614761999997,44832.376096,76122.518809999994,1461.1423186,55631.475301999999,30981.059754999998,6045.7368982999997,19170.103298999999,3053.2304963000001]
[8637,"2012-05-27","KW60MN02 ",5063958.5466053188,1463112.1078525672,1059582.8524189924,81905.956517036146,321623.29891653871,"Summer",83344.854823000001,44998.559594999999,59517.297263,1142.4115108000001,55905.072721999997,27737.442544000001,4470.2222524999997,18730.897641,3053.2304963000001]
[8638,"2011-09-30","KW60MN02 ",5359415.7703227112,1462671.849277986,1051090.7096704582,58666.955030999998,352914.18457652774,"Summer",81907.465607999999,43410.211698999999,88059.537230999995,1690.2687722000001,56133.070571999997,35855.219512999996,5772.7433313000001,30217.333901999998,3053.2304963000001]
[8639,"2011-09-25","KW60MN07 ",5306051.862545331,1460445.5705018921,1025285.7931055846,71523.632633000001,363636.1447633077,"Summer",88521.304386000003,51697.611251000002,86681.984372999999,1663.8271777,54810.683043999998,30857.341872000001,6534.7606468000004,30217.333901999998,2543.9346870999998]
[8640,"2011-09-27","KW60MN05 ",5415652.9741781233,1460054.9357325775,1037365.0548501726,70050.578068000003,352639.30281440483,"Summer",75527.622149000003,45836.460249999996,88273.604764999996,1694.3777158,56452.267561000001,36526.873407999999,6103.7363501999998,30217.333901999998,3053.2304963000001]
[8641,"2012-05-09","KW60MN04 ",5194857.9266770603,1459605.5365305734,1054213.7756711473,86283.18028405201,319108.58057537413,"Summer",66209.652585000003,46395.609677,64290.706099000003,1234.0352479999999,56999.462399999997,31762.382398000002,5657.5316362000003,21356.368259999999,3053.2304963000001]
[8642,"2011-09-17","KW60MN05 ",5198229.8273441754,1459588.3314225813,1037066.2979424297,74380.862385,348141.17109515169,"Summer",75297.760274999993,45455.246470999999,75047.870393000005,1440.5148577,54491.486054000001,31131.079339,5585.2964171000003,30217.333901999998,3053.2304963000001]
[8643,"2011-09-03","KW60MN04 ",5345200.2791380854,1458740.7003945175,1021057.0352229618,87469.682849999997,350213.98232155567,"Summer",76934.847821999996,41977.435980000002,55534.389736999998,1065.9611407,56680.265411,30105.912411000001,5776.9891755999997,46052.075996,3053.2304963000001]
[8644,"2011-09-04","KW60MN02 ",5319878.1282191789,1457877.3367558345,1040235.3178586527,78566.621619999991,339075.39727718197,"Summer",83040.972506999999,48722.408431000003,58507.784627000001,1123.0343061000001,55357.877883000001,24668.55344,5255.0347405000002,41374.329309000001,3053.2304963000001]
[8645,"2011-09-28","KW60MN04 ",5368470.3266659491,1457646.7507586775,1042937.7922861876,61980.113163000002,352728.84530948981,"Summer",76784.496450000006,38878.803449999999,77679.057962999999,1491.0194859000001,54673.884334000002,35286.932567999997,5811.8904223,30217.333901999998,3053.2304963000001]
[8646,"2012-05-14","KW60MN05 ",5195900.9447974321,1456751.0741870492,1050135.4354953426,84391.015504834431,322224.62318687222,"Summer",71493.221936000002,43370.422460000002,63951.791233000004,1227.5299081000001,56771.464549999997,28807.060893999998,5428.9450641000003,21356.368259999999,3053.2304963000001]
[8647,"2011-09-22","KW60MN03 ",5213907.8108417606,1456260.955696631,1036488.9445388037,66517.204949000006,353254.80620882736,"Summer",75752.990229000003,41004.200818999998,75535.186853000007,1449.8687087999999,55449.077022999998,33884.087362999999,6032.8774751000001,30217.333901999998,3053.2304963000001]
[8648,"2012-05-20","KW60MN06 ",5066289.3630028879,1456258.1572597723,1044005.076637572,85766.894112248017,326486.18650995218,"Summer",64038.502890000003,50204.127338999999,57764.655598999998,1108.7702317000001,54901.882184000002,29215.871476,5205.7961513999999,21356.368259999999,1068.2066138]
[8649,"2011-09-06","KW60MN04 ",5388468.7912179921,1456115.086027879,1033733.7497036523,75919.926123000012,346461.41020122659,"Summer",82940.180066999994,44105.126255000003,72479.113609000007,1391.2085643999999,56361.068421000004,24660.501007999999,5627.6329695000004,35194.278843,3053.2304963000001]
[8650,"2011-10-16","KW60MN05 ",4939034.9334102655,1455898.485497111,1054848.4632259805,54036.870896,347013.15137513052,"Summer",91071.777046000003,40842.074495000001,82877.277491000001,1590.7973,54810.683043999998,30276.186535000001,5303.2626554999997,19170.103298999999,3053.2304963000001]
[8651,"2012-04-24","KW60MN01 ",5088968.3324638065,1455831.0801713688,1048098.0976489647,71091.505174996782,336641.47734740726,"Summer",95933.660931000006,47296.122585999998,75547.576417000004,1450.1065217,30369.313567000001,34237.620393999998,6156.9956253,7467.6597125999997,3053.2304963000001]
[8652,"2012-05-08","KW60MN02 ",5069861.1492771562,1455699.8328282735,1053157.5109976102,85454.90975466794,317087.41207599535,"Summer",71542.134355000002,45607.402587999997,66842.164206000001,1283.0094999,57045.061970000002,31968.709108999999,5466.5245100000002,21356.368259999999,3053.2304963000001]
[8653,"2011-09-27","KW60MN02 ",5310502.1087936386,1453704.3275088286,1036010.2033988832,67761.535402000009,349932.58870794531,"Summer",77414.634672,44993.213765,86803.058466999995,1666.1511481,56406.667991000002,35330.141043000003,6087.3421096000002,30217.333901999998,3053.2304963000001]
[8654,"2012-05-09","KW60MN03 ",5145360.1075628828,1452836.5118543403,1055827.2571186842,86655.035829337707,310354.21890631836,"Summer",66504.579104999997,44073.742198,64781.742171999998,1243.4604956000001,56953.862829999998,32017.464478000002,5671.9079162999997,21356.368259999999,3053.2304963000001]
[8655,"2011-09-06","KW60MN03 ",5361363.4794259192,1452335.3917693968,1030880.5437989988,77858.728583000004,343596.11938739801,"Summer",94712.811182999998,44745.186198000003,72391.837784000003,1389.5333387000001,55950.672292000003,24242.424932999998,5503.1423771999998,35135.161168999999,3053.2304963000001]
[8656,"2012-04-26","KW60MN03 ",5028120.6155174319,1450884.1016210818,1034670.4715088542,71536.712319298618,344676.9177929291,"Summer",68585.598526000002,43818.067861000003,71893.866232999993,1379.9749672999999,45280.372930999998,30632.942306000001,6060.4771557000004,7467.6597125999997,3053.2304963000001]
[8657,"2011-09-19","KW60MN05 ",5202577.9289678065,1450502.2633881897,1032337.3246672883,70731.056797999991,347433.88192290138,"Summer",78827.032447999998,42485.622468000001,74888.914067999998,1437.4637525000001,55813.873582,31220.428690000001,5685.5308462000003,30217.333901999998,3053.2304963000001]
[8658,"2012-05-21","KW60MN03 ",5167913.9813474957,1450320.6441535109,1039371.6530178349,86192.879915976475,324756.11121969949,"Summer",79474.668915999995,42675.154407000002,57325.073471999996,1100.3326227,56133.070571999997,30166.657342999999,4807.6923838000002,21356.368259999999,3053.2304963000001]
[8659,"2012-04-28","KW60MN03 ",5007988.9735430451,1450017.0666558784,1024187.5433031528,75052.35260933805,350777.1707433876,"Summer",87661.537458000006,48601.445162000004,59895.806212000003,1149.6768437999999,56269.869280999999,24524.381709000001,5623.6766146999998,7467.6597125999997,3053.2304963000001]
[8660,"2012-05-06","KW60MN03 ",4959955.8740674872,1449561.2923332127,1039036.5099862295,81017.510078930645,329507.27226805268,"Summer",92969.250360999999,45464.107984000002,52926.13854,1015.8967674,55403.477453,24334.790041,5193.8779916000003,21356.368259999999,3053.2304963000001]
[8661,"2011-09-03","KW60MN05 ",5349761.0070309415,1449215.8083206685,1011033.276411605,88039.347970999996,350143.18393806356,"Summer",80637.830623999995,44133.712870000003,57239.448754999998,1098.6890894000001,56908.26326,29170.792901000001,5762.4436046999999,46662.023725999999,3053.2304963000001]
[8662,"2011-09-15","KW60MN04 ",5154844.0705398368,1448911.5997290567,1016918.0221834638,70132.907750999992,361860.66979459295,"Summer",88371.726710000003,48011.073964000003,76213.672481000001,1462.8919781,54491.486054000001,33485.612973000003,6689.0127794999999,28140.201501,3053.2304963000001]
[8663,"2012-05-21","KW60MN04 ",5205136.6004030537,1446576.4843580998,1038672.698343732,85327.243648753138,322576.5423656145,"Summer",77637.098742000002,42976.302847999999,55038.820036999998,1056.4488719000001,56133.070571999997,29752.076412999999,4783.6512212999996,21356.368259999999,3053.2304963000001]
[8664,"2011-10-02","KW60MN05 ",5003885.4945797902,1446493.1969381061,1050156.0593851113,60384.687332999994,335952.45021999488,"Summer",77216.462534000006,42188.222695999997,73439.498477000001,1409.6427805999999,54765.083473999999,27234.499306000002,5629.4206934000003,19170.103298999999,3053.2304963000001]
[8665,"2011-10-02","KW60MN04 ",4954599.6576628555,1445734.3290961096,1056672.2659824595,58588.528847999994,330473.53426564997,"Summer",79354.311509000006,44312.831124999997,70084.451688999994,1345.2439546000001,54491.486054000001,27679.829042000001,5554.1940837000002,19170.103298999999,3053.2304963000001]
[8666,"2011-10-16","KW60MN03 ",4921716.4675215781,1444239.0572537421,1046193.2931358897,54600.837277000006,343444.92684085242,"Summer",91768.930051999996,43123.307557,83328.203559999994,1599.4526516000001,54765.083473999999,29870.061665000001,5172.8400701,19170.103298999999,3053.2304963000001]
[8667,"2012-04-29","KW60MN06 ",4945840.6387475282,1443236.9393902647,1020340.3204124593,75201.450884282051,347695.16809352319,"Summer",78222.309607999996,42643.910142000001,57310.702211999997,1100.0567719000001,54993.081323999999,24484.283573000001,5289.6329533999997,7467.6597125999997,2493.0475121999998]
[8668,"2011-09-23","KW60MN03 ",5192511.3954641121,1442981.4214038639,1023145.4307740637,67519.267594000019,352316.72303580033,"Summer",76016.629759000003,41633.022788000002,78707.527732999995,1510.7605655,55996.271862000001,37342.579234999997,5990.8050186,30217.333901999998,3053.2304963000001]
[8669,"2012-04-28","KW60MN04 ",5001784.1313343411,1442532.8226151569,1019461.2742093209,78228.553424461425,344842.99498137465,"Summer",91761.850204000002,45515.633305000003,59007.070267000003,1132.6179009,56041.871432,24237.589201999999,5527.0277910000004,7467.6597125999997,3053.2304963000001]
[8670,"2012-05-27","KW60MN05 ",5001919.4615696138,1442208.6674769311,1046631.7591296572,81642.514684527312,313934.39366274665,"Summer",78145.236776999998,48941.865450999998,55033.336439999999,1056.3436164,55768.274012000002,26783.890447999998,4719.9449357000003,19058.421963000001,3053.2304963000001]
[8671,"2011-10-16","KW60MN04 ",4879865.1659879591,1440933.4077090526,1048222.7366240282,53499.223357999996,339211.44772702432,"Summer",98904.843989000001,41283.673499999997,79376.211324000004,1523.5956885000001,55084.280463000003,30119.320378,5237.4622268000003,19170.103298999999,3053.2304963000001]
[8672,"2011-09-29","KW60MN03 ",5320432.6720704008,1440486.9887920758,1026457.3602684822,63873.991612999998,350155.6369105936,"Summer",89050.724358000007,43949.218256,83865.477417000002,1609.7654156000001,56452.267561000001,33894.366174000003,5751.2500151000004,30217.333901999998,3053.2304963000001]
[8673,"2012-05-29","KW60MN04 ",5050470.9610847589,1439913.2404132301,1041744.02548686,81888.259829109171,316280.95509726112,"Summer",86172.575582000005,42337.878628999999,51473.480329999999,988.01355464000005,55859.473151999999,27147.911588999999,4461.6374525000001,23277.865629,3053.2304963000001]
[8674,"2012-04-22","KW60MN01 ",4975434.5028788131,1439552.3133879306,1036950.7225612983,68996.133098131875,333605.45772850054,"Summer",96330.026404000004,48926.901303999999,56320.620490000001,1081.0525359999999,34336.476150000002,25528.031909000001,5254.1019408000002,7467.6597125999997,3053.2304963000001]
[8675,"2011-10-01","KW60MN04 ",5070785.4737500083,1437424.1586664419,1031663.0572164354,59115.109489000002,346645.99196100654,"Summer",76164.373881000007,48179.910293000001,73109.671879000001,1403.3118866,55585.875732,31205.517257,6037.8952909999998,19170.103298999999,3053.2304963000001]
[8676,"2012-04-16","KW60MN04 ",5007100.1633757874,1437375.1135411605,1042986.616123929,70740.552788467132,323647.94462876447,"Summer",95242.930661000006,44986.629090000002,64894.734922000003,1245.6293476999999,36069.259807000002,26199.908488000001,5149.6876912999996,7467.6597125999997,3053.2304963000001]
[8677,"2011-09-21","KW60MN03 ",5082687.0342120565,1436933.8735617378,1025035.1939457094,63212.959932000005,348685.71968402847,"Summer",76740.438177999997,41086.274659000002,73953.467707999996,1419.5082213000001,55859.473151999999,34988.906142,6188.2266200000004,30217.333901999998,3053.2304963000001]
[8678,"2012-05-14","KW60MN03 ",4975790.5116133858,1436525.5830283272,1036061.8419555974,84954.428774862317,315509.31229786773,"Summer",83862.107631999999,41498.069093999999,63941.474883000003,1227.3318898,56953.862829999998,27306.167436,4848.5307018000003,21356.368259999999,3053.2304963000001]
[8679,"2011-09-17","KW60MN03 ",5183328.1268443307,1436084.1768982646,1022904.0688580731,71014.515635999996,342165.59240419144,"Summer",77442.561914000005,47558.948798999998,75808.466436999995,1455.1142047000001,54719.483904000001,30646.387734,5553.2189619000001,30217.333901999998,3053.2304963000001]
[8680,"2012-05-13","KW60MN02 ",5028649.1621592119,1435969.1558670111,1036504.2962519203,86344.892498016867,313119.96711707389,"Summer",85739.178692000001,49124.430295999999,58441.593579,1121.7637944999999,53898.691644999999,23975.550687999999,4763.0365300000003,21356.368259999999,3053.2304963000001]
[8681,"2012-04-26","KW60MN04 ",5036863.6882278305,1435316.6392446642,1026567.7546479324,72898.790108171437,335850.09448856051,"Summer",67738.263726000005,40403.520380000002,71574.654995999997,1373.847831,45553.970350000003,30394.155478000001,5947.9064159,7467.6597125999997,3053.2304963000001]
[8682,"2012-04-25","KW60MN01 ",5064754.0232158937,1434038.6637859126,1037773.4241217843,69258.64462566319,327006.59503846487,"Summer",98770.538858,47753.317212000002,70751.219379999995,1358.0423026999999,41814.805616999998,32811.927844999998,6160.0310307,7467.6597125999997,3053.2304963000001]
[8683,"2012-05-20","KW60MN05 ",5052764.9515798194,1433945.2179670641,1017293.5523354458,85473.33883536284,331178.3267962556,"Summer",62727.713643000003,49431.459631999998,56424.848211999997,1083.0531469,55175.479603,29695.369234999998,5516.3945578000003,21356.368259999999,3053.2304963000001]
[8684,"2011-09-05","KW60MN03 ",5355690.674116971,1433913.4436544033,1025297.8344405426,82586.269084999993,326029.34012886061,"Summer",78588.977876000004,42904.845148,55249.218595999999,1060.4873909,54491.486054000001,21739.507838000001,5192.7488137999999,38504.396870999997,3053.2304963000001]
[8685,"2011-09-11","KW60MN04 ",5261242.1702374127,1433362.8390965809,1009817.0562298187,71368.960703999997,352176.82216276199,"Summer",92110.808254999996,50911.944516000003,68048.602322999999,1306.1666130999999,54081.089925,29718.45664,5668.1817979999996,41475.126848,3053.2304963000001]
[8686,"2012-05-27","KW60MN04 ",4995994.8482174352,1432638.6301978885,1037420.8440768757,79007.319610534192,316210.4665104787,"Summer",78056.53731,43827.163968000001,56805.262153000003,1090.3550454000001,55631.475301999999,27158.867522,4574.0964596000003,18548.679665,3053.2304963000001]
[8687,"2012-04-16","KW60MN02 ",4961397.76563178,1432434.8360194231,1044311.204773434,69802.025326958377,318321.60591903079,"Summer",86117.590179999999,44316.515522000002,61820.115398000002,1186.6132146,35886.861527000001,26299.563706000001,5109.6687474999999,7467.6597125999997,3053.2304963000001]
[8688,"2011-09-17","KW60MN04 ",5159732.4042592626,1432204.2451597359,1017324.8999011851,71079.978099,343799.36715955066,"Summer",74215.889628999998,45445.191103999998,72646.026574999996,1394.4123942000001,54765.083473999999,29972.357408,5661.7012989000004,30217.333901999998,3053.2304963000001]
[8689,"2012-05-07","KW60MN01 ",5008547.9645551015,1432159.9345171291,1030881.1693018483,76944.059143555234,324334.70607172558,"Summer",98234.399390000006,45236.702115,56404.352042999999,1082.6597308,57683.455949000003,27592.804261000001,5033.5042598,21356.368259999999,3053.2304963000001]
[8690,"2011-09-24","KW60MN06 ",5325740.5082597658,1431620.3842161631,1001743.2177607798,71008.956357000003,358868.21009838319,"Summer",85587.237534,49185.691229999997,88041.416501999993,1689.9209518,55631.475301999999,32817.184619,5802.2814062999996,30217.333901999998,3053.2304963000001]
[8691,"2011-09-11","KW60MN05 ",5236708.4470463805,1431586.6258880366,1000609.7718226427,74485.477836000005,356491.37622939388,"Summer",86930.967149000004,48292.612994000003,69054.268001000004,1325.469977,53351.496806000003,29602.184034999998,5715.7596317999996,41387.050302000003,3053.2304963000001]
[8692,"2012-05-20","KW60MN03 ",5009054.0384193184,1431018.5991333495,1019188.8914865339,88685.856290002019,323143.85135681345,"Summer",65721.143108999997,43509.396373000003,58611.993404000001,1125.0345531999999,55084.280463000003,29871.756377999998,5478.2005817999998,21356.368259999999,3053.2304963000001]
[8693,"2011-09-20","KW60MN03 ",5170969.5877625458,1430198.8786531454,1020214.6316780022,66697.142111000008,343287.10486414336,"Summer",82263.694281999997,43690.727194999999,75003.115839000006,1439.6558113999999,56543.466700999998,34145.271443999998,6187.6171682000004,30217.333901999998,3053.2304963000001]
[8694,"2012-05-29","KW60MN02 ",5010760.7946542846,1427998.2913995371,1034624.5189476174,83890.886000081096,309482.88645183865,"Summer",74571.885133999996,40035.631809999999,52260.040753000001,1003.1112779,55540.276163000002,27178.804694999999,4495.3434974000002,25049.893545999999,3053.2304963000001]
[8695,"2011-09-05","KW60MN05 ",5348069.8039867198,1427186.3355875437,1011885.5706166383,84237.673399999985,331063.09157090535,"Summer",76192.375314000004,44356.611660000002,57994.02289,1113.1728482000001,54537.085623999999,20431.886723,5292.3737922999999,36402.145307999999,3053.2304963000001]
[8696,"2012-05-14","KW60MN04 ",5020815.6372128157,1424298.1077189338,1029622.4625864058,84817.901716138658,309857.74341638933,"Summer",67509.196744999994,41759.336708000003,64566.690678999999,1239.3326652999999,55905.072721999997,27380.541300000001,4967.3212314000002,21356.368259999999,3053.2304963000001]
[8697,"2011-09-22","KW60MN04 ",5230304.257501008,1423779.7324183739,1017494.8585897676,64860.38939299999,341424.48443560628,"Summer",77315.177653000006,42032.216680999998,75550.016505000007,1450.1533582,55403.477453,33685.389993999997,6108.4494407000002,30217.333901999998,3053.2304963000001]
[8698,"2011-09-19","KW60MN02 ",5059186.6363743311,1423083.7662914644,1013888.2192004946,66013.293516000005,343182.25357496989,"Summer",77709.645980999994,42744.916929999999,74299.572050999996,1426.1515604000001,55859.473151999999,30321.99353,5528.0486215000001,30217.333901999998,3053.2304963000001]
[8699,"2012-05-27","KW60MN03 ",4988233.7407891545,1422642.5519566,1027889.7260427943,79777.062519764047,314975.76339404174,"Summer",87275.547988999999,43689.674739000002,57825.784927000001,1109.9435854999999,55813.873582,27540.381672,4538.5282029999998,18384.247273000001,3053.2304963000001]
[8700,"2011-09-04","KW60MN07 ",5266161.2295621885,1422275.8650347553,1003232.0854150696,83055.515434000001,335988.26418568572,"Summer",92334.872709999996,42899.682493,60317.631383,1157.7736147999999,54856.282614000003,22041.736615999998,5073.1744623000004,38218.087185999997,1169.9809634999999]
[8701,"2011-09-27","KW60MN03 ",5250388.4607214369,1422128.6136613002,1009969.4041880318,65853.353097999992,346305.85637526837,"Summer",69517.573539000005,45486.432891999997,87052.401987999998,1670.9372006000001,56406.667991000002,35165.931949999998,5964.1516798000002,30217.333901999998,3053.2304963000001]
[8702,"2011-09-29","KW60MN04 ",5352035.4493812975,1420993.2452167855,1010250.3721908717,65555.19601,345187.67701591365,"Summer",88375.436210999993,43281.914985000003,81625.104879999999,1566.7623309000001,56178.670141000002,34318.809370000003,5777.4157925,30217.333901999998,3053.2304963000001]
[8703,"2012-05-28","KW60MN06 ",4979136.5447359625,1419919.7857855023,1036907.5164200135,79027.655830532007,303984.61353495682,"Summer",78848.536955000003,41587.439422000003,53920.751477999998,1034.9879782,55403.477453,24635.785853000001,4583.7240981000004,19312.161633,762.88356425999996]
[8704,"2011-09-21","KW60MN04 ",5133653.713636565,1418835.9965720684,1006932.9999273354,60444.931358000002,351458.06528673304,"Summer",76345.429321999996,41949.662407000003,69917.829236999998,1342.0457011000001,56041.871432,34469.886249000003,6219.4914730999999,30217.333901999998,3053.2304963000001]
[8705,"2012-04-21","KW60MN02 ",4865827.279071169,1418550.6260860288,1022468.1180498449,68984.514183548366,327097.99385263555,"Summer",89795.984291000001,47752.526664999998,62321.890157000002,1196.2445871,36069.259807000002,27549.881516000001,5592.6149118000003,7467.6597125999997,3053.2304963000001]
[8706,"2011-09-23","KW60MN04 ",5208721.0090515744,1418114.7449740702,1007150.2698235542,67764.644445999991,343199.83070451597,"Summer",80058.268798000005,41781.041389999999,74591.418470000004,1431.7534396000001,55449.077022999998,36885.662480999999,6047.4839916999999,30217.333901999998,3053.2304963000001]
[8707,"2011-09-27","KW60MN04 ",5286989.0089472942,1418020.5333807324,1007085.8292621047,66416.119856999998,344518.58426162775,"Summer",74505.453271999999,45295.988289000001,86170.062061000004,1654.0010268000001,56406.667991000002,35353.912285999999,5879.9255058999997,30217.333901999998,3053.2304963000001]
[8708,"2012-04-16","KW60MN03 ",4938405.2374074385,1417046.5499303192,1020682.8833170503,71237.82401760669,325125.84259566216,"Summer",89464.397301999998,44736.575345999998,61571.156089999997,1181.834537,35658.863677000001,26155.982583000001,5214.2133511000002,7467.6597125999997,3053.2304963000001]
[8709,"2012-04-30","KW60MN05 ",5032761.7172180619,1416955.3448707822,1007098.0443950107,72651.265023548884,337206.03545222268,"Summer",80021.406958000007,42944.772572000002,69562.635018000001,1335.2278854000001,54537.085623999999,28637.941063999999,5316.5791673000003,7467.6597125999997,3053.2304963000001]
[8710,"2012-04-22","KW60MN07 ",4944955.5433799317,1416815.4515053821,1027094.3481916267,76245.565276279143,313475.53803747601,"Summer",91282.847649000003,39380.768400000001,58397.84216,1120.9240029,33926.080020000001,24173.182224,5224.9769395000003,7467.6597125999997,95.625482946999995]
[8711,"2011-09-30","KW60MN03 ",5279574.2141007408,1416445.7437415109,1006016.6572750495,65562.951133999988,344866.13533246133,"Summer",82759.930118000004,41385.716675999996,82425.992125000004,1582.1350519,56041.871432,36197.894782000003,5751.8797809999996,30217.333901999998,3053.2304963000001]
[8712,"2012-04-25","KW60MN05 ",5157038.5451383749,1416379.8508473989,1006876.7482296408,68637.794998111785,340865.30761964613,"Summer",85615.493331999998,43279.790792,66648.558967000004,1279.2933221999999,41313.210348000001,32066.784669000001,6326.0845110999999,7467.6597125999997,3053.2304963000001]
[8713,"2012-04-29","KW60MN01 ",4963424.2985838465,1415134.3861630745,999470.12831184338,72105.912929640384,343558.34492159064,"Summer",100061.82673,49863.385689000002,59479.378287,1141.6836707,55175.479603,25188.341503,5028.6625080000003,7467.6597125999997,3053.2304963000001]
[8714,"2012-05-20","KW60MN04 ",5042346.5026287585,1415048.7745628809,1007506.2163704833,84790.140561554363,322752.41763084318,"Summer",65648.988016000003,41972.107824999999,57849.068884,1110.3905119999999,55221.079172999998,29345.564050000001,5475.3141529000004,21356.368259999999,3053.2304963000001]
[8715,"2012-04-30","KW60MN01 ",4899438.8572328864,1411184.7060397717,999326.30757288518,73259.722660458676,338598.67580642778,"Summer",86268.270107999997,41130.598293000003,61322.059333999998,1177.0532209999999,55084.280463000003,27490.345839000001,5043.3181187999999,7467.6597125999997,3053.2304963000001]
[8716,"2011-09-20","KW60MN04 ",5190487.4657097952,1410677.2266325322,1003278.9811738299,64973.014144000001,342425.23131470254,"Summer",82401.783102999994,43811.518536000003,75813.606010000003,1455.2128568999999,56315.468850999998,33356.726366000003,6164.9049494000001,30217.333901999998,3053.2304963000001]
[8717,"2012-04-21","KW60MN05 ",4937797.9372040108,1409941.8829735084,1005857.9208893812,70086.328599894041,333997.63348423323,"Summer",87872.396089000002,45704.522523,59235.198222999999,1136.9967288,35476.465398,27154.441849999999,5584.3280661999997,7467.6597125999997,3053.2304963000001]
[8718,"2012-05-13","KW60MN06 ",4961356.7844136376,1409492.0682681503,1009301.8364065136,87078.621896342884,313111.60996529384,"Summer",82121.175256000002,42941.274563999999,56504.346411999999,1084.5790841,54445.886484000002,24165.160355,4776.9472567000003,21356.368259999999,1475.3040137999999]
[8719,"2012-05-08","KW60MN03 ",4988373.3471602043,1409404.3598175859,1017623.0301018663,79782.193249556178,311999.13646616333,"Summer",77942.189295000004,45697.116772000001,64558.445247000003,1239.1743974000001,56862.663690000001,31421.269960000001,5493.8245434,21356.368259999999,3053.2304963000001]
[8720,"2011-09-04","KW60MN06 ",5282335.8093011975,1408725.6145898213,992474.97979894816,78789.941770999998,337460.69301987317,"Summer",76228.389269000007,47879.277635999999,58581.568887000001,1124.4505664000001,55084.280463000003,23332.786822999999,5381.0286453999997,39129.246618999998,3053.2304963000001]
[8721,"2012-05-29","KW60MN03 ",4997243.3261007275,1408185.9308052412,1020936.4417730058,78963.754311598357,308285.73472063709,"Summer",75614.996794000006,39832.859822999999,52612.238542999999,1009.8715783,55540.276163000002,27490.992881999999,4515.6974792999999,23916.913466000002,3053.2304963000001]
[8722,"2012-05-28","KW60MN02 ",4932628.9281652849,1408050.8885102803,1014648.4254972161,79834.370554040404,313568.09245902393,"Summer",83149.109758000006,41710.264974999998,54840.143892,1052.6353601000001,55677.074871999997,26162.786258,4558.2304099000003,20564.723892999998,3053.2304963000001]
[8723,"2012-05-08","KW60MN04 ",5008757.4649201781,1408009.5840886277,1016032.9792314935,78084.706078193485,313891.89877894073,"Summer",73862.988907999999,43101.728206,62182.014750000002,1193.5597327999999,56725.864979999998,31033.796212000001,5489.8952760000002,21356.368259999999,3053.2304963000001]
[8724,"2011-09-24","KW60MN03 ",5211919.1978737134,1406844.2936341802,994318.7105960981,65667.258073999998,346858.32496408204,"Summer",72042.842789999995,47333.495194000003,82232.125883000001,1578.4138644,55768.274012000002,33592.483204999997,5822.2307793999998,30217.333901999998,3053.2304963000001]
[8725,"2011-09-19","KW60MN03 ",5019780.2758921674,1403331.7224392928,996103.43627778068,66880.209323000003,340348.07683851209,"Summer",79688.728315999993,41320.973802,72176.107774999997,1385.3924844999999,55859.473151999999,30121.674446000001,5466.9409680999997,30217.333901999998,3053.2304963000001]
[8726,"2011-09-19","KW60MN04 ",5060645.7919107024,1400268.31973706,998489.04522852914,65833.421566999983,335945.85294153087,"Summer",79190.044209,43482.532250999997,72476.127284999995,1391.151243,55585.875732,30276.795179000001,5618.5115150000001,30217.333901999998,3053.2304963000001]
[8727,"2011-09-05","KW60MN04 ",5299372.1299552573,1400209.820092459,994937.17544737959,80331.035962999988,324941.60868207953,"Summer",81837.112273999999,42258.531532000001,52973.665378999998,1016.8090267,54263.488205000001,21457.922146000001,5231.4692891000004,37501.096110999999,3053.2304963000001]
[8728,"2011-09-04","KW60MN03 ",5268351.2745236373,1399674.8250538837,992148.01293246937,77046.382083999997,330480.43003741448,"Summer",74889.566793000005,45209.987424999999,56135.530184000003,1077.4997992000001,55449.077022999998,24164.366969999999,5187.3653268999997,40165.535674999999,3053.2304963000001]
[8729,"2011-09-18","KW60MN02 ",5044124.314859624,1399464.6233427599,989690.6968645606,71242.359739000007,338531.56673919922,"Summer",88301.330981000006,50997.705967000002,69047.403831000003,1325.3382219,54810.683043999998,27744.632558000001,5244.8365879000003,30217.333901999998,3053.2304963000001]
[8730,"2011-09-30","KW60MN04 ",5240870.9708769247,1398841.2742999345,990428.23260623938,64535.162763,343877.87893069524,"Summer",86665.494065000006,40590.240415,79262.374131000004,1521.4106276,56041.871432,35527.371712,5890.2658640999998,30217.333901999998,3053.2304963000001]
[8731,"2012-05-28","KW60MN05 ",4973297.9355492564,1398203.694187881,1010241.4453669244,75854.984639800692,312107.26418115594,"Summer",73159.582743999999,48014.340593000001,53178.820101999998,1020.7468923,55722.674442000003,25366.821075,4937.9727634999999,19438.801418999999,3053.2304963000001]
[8732,"2012-05-13","KW60MN03 ",4952999.81824998,1396702.2463926324,1004661.8931679798,83585.532019902021,308454.82120475057,"Summer",83541.553759000002,46397.345023000002,55159.001115999999,1058.7557013000001,53716.293365999998,23622.816787,4763.8931481,21356.368259999999,3053.2304963000001]
[8733,"2012-04-24","KW60MN02 ",5005245.333018682,1391848.9694508999,996500.53291571548,65328.566197601358,330019.87033758301,"Summer",74524.202149000004,47359.046560000003,75036.170714000007,1440.2902869,34838.071419,33972.647320999997,6042.2460970000002,7467.6597125999997,3053.2304963000001]
[8734,"2012-04-24","KW60MN05 ",5152028.7404111316,1391838.2677470869,996102.35639633471,59739.12327874756,335996.78807200457,"Summer",72298.808952000007,45025.889690000004,72126.620137999998,1384.4425885000001,39534.827121000002,33957.701131000002,6181.9120272,7467.6597125999997,3053.2304963000001]
[8735,"2012-04-21","KW60MN03 ",4792467.6260971101,1390956.5952354297,996768.01501028403,68749.305058959537,325439.27516618598,"Summer",90003.737540000002,45791.797580999999,62656.277826999998,1202.6630292,35613.264108000003,26805.490957999998,5464.7181635999996,7467.6597125999997,3053.2304963000001]
[8736,"2011-09-18","KW60MN06 ",5085285.2633062564,1387317.872167632,976782.10069697385,73343.763402000011,337192.00806865818,"Summer",71489.374653000006,48050.500066000001,69311.322201999996,1330.404033,55038.680892999997,27826.717481,5473.8277688999997,30217.333901999998,3053.2304963000001]
[8737,"2012-05-07","KW60MN04 ",5019492.5150496904,1385030.5068146351,991923.04188959557,74033.538413767703,319073.92651127191,"Summer",84930.931433000005,44127.155510999997,58640.156963000001,1125.5751419000001,57820.254658999998,26911.981474,5001.343852,21356.368259999999,3053.2304963000001]
[8738,"2011-09-25","KW60MN02 ",5166250.7965258602,1384183.5397594299,973542.48944606981,67397.64048300001,343243.40983036009,"Summer",80902.434624999994,53254.056092999999,81869.896745999999,1571.4610161000001,54901.882184000002,31171.029476,6073.0200031000004,30217.333901999998,3053.2304963000001]
[8739,"2012-04-25","KW60MN02 ",4992291.1382069467,1383726.7307602526,990738.4245984843,70357.497633419262,322630.80852834909,"Summer",91771.664483999994,43858.294150000002,71943.753584999999,1380.9325357,41951.604326000001,31968.652191000001,5985.8024386999996,7467.6597125999997,3053.2304963000001]
[8740,"2011-09-26","KW60MN05 ",5366649.0717300205,1382679.6679970035,986120.65867363522,65590.389131000004,330968.62019236817,"Summer",70327.802731000003,42292.627870999997,82509.817492000002,1583.7440474,56589.066271000003,32223.210086999999,5783.0430591000004,30217.333901999998,3053.2304963000001]
[8741,"2012-05-07","KW60MN02 ",4949188.1678471901,1380431.0129285101,992679.17113546864,75042.558332491346,312709.28346055013,"Summer",96245.714747000005,43016.757301999998,57482.655655000002,1103.3573518000001,57865.854227999997,27453.430861000001,4995.9620578000004,21356.368259999999,3053.2304963000001]
[8742,"2012-05-13","KW60MN05 ",4970625.456477101,1379670.4537646419,987352.15273716534,84277.777494673617,308040.523532803,"Summer",75260.898434000002,43571.388401999997,55194.438665000001,1059.4359113,53625.094226000001,23924.216394999999,4980.9526261999999,21356.368259999999,3053.2304963000001]
[8743,"2011-09-24","KW60MN04 ",5165971.162329087,1376922.7981935451,967465.3336196834,65964.521588000003,343492.9429858618,"Summer",75508.587109999993,44037.39473,83364.098354000002,1600.1416383000001,55677.074871999997,33061.828594999999,5787.9796150000002,30217.333901999998,3053.2304963000001]
[8744,"2012-04-23","KW60MN01 ",4961971.8638021098,1375776.9402207348,989537.89898902411,67431.573000192773,318807.46823151788,"Summer",78510.007901000004,44782.597370000003,63686.65741,1222.4407669,36342.857226,29571.207166,5366.5981928000001,7467.6597125999997,3053.2304963000001]
[8745,"2011-09-26","KW60MN01 ",5268145.7278433228,1375357.0852878105,984759.43125493219,63291.120892999999,327306.53313987824,"Summer",88137.922166000004,41380.562055000002,81526.516115999999,1564.8699577,56361.068421000004,30856.417235000001,5501.4765436999996,30217.333901999998,3053.2304963000001]
[8746,"2012-04-21","KW60MN04 ",4826250.509269096,1375262.6181315086,984003.6772635848,65657.14468312313,325601.79618480057,"Summer",90895.162408000004,45180.486539999998,61094.916598999996,1172.6933041,35704.463247,26542.131114,5397.8274947999998,7467.6597125999997,3053.2304963000001]
[8747,"2012-04-29","KW60MN05 ",4870613.0901603736,1374610.6774292679,965013.84112884395,73032.33456909965,336564.5017313243,"Summer",72109.550214999996,42488.169248999999,55869.745748000001,1072.3981696999999,55312.278313000003,24125.201358999999,5243.1148880000001,7467.6597125999997,3053.2304963000001]
[8748,"2012-04-29","KW60MN02 ",4873592.0091086086,1374171.7639912958,961121.15118474839,71516.881287562734,341533.73151898466,"Summer",85252.704142000002,47475.385453000003,60335.686545999997,1158.1201767,55449.077022999998,24814.812732999999,5013.4109884,7467.6597125999997,3053.2304963000001]
[8749,"2011-09-04","KW60MN04 ",5245866.868329254,1372982.5759399177,971730.49901146744,75119.884329999986,326132.19259845029,"Summer",79016.481960000005,42994.509521,53630.479347,1029.4163168,54765.083473999999,24045.638445000001,5191.6314863999996,39273.776839999999,3053.2304963000001]
[8750,"2011-09-25","KW60MN06 ",5173203.5677714981,1371360.2767131007,956167.71401741903,67581.793375999987,347610.76931968157,"Summer",76011.934590000004,51356.003535000003,81098.333853000004,1556.6511647,55084.280463000003,31273.849395000001,6319.5836966999996,30217.333901999998,3053.2304963000001]
[8751,"2011-09-24","KW60MN05 ",5169263.5457081385,1369903.7454410926,964837.04856906598,64807.92912999999,340258.76774202666,"Summer",73462.341610999996,43087.866325000003,85732.531675999999,1645.6028002,55722.674442000003,32533.023759,5740.1580004999996,30217.333901999998,3053.2304963000001]
[8752,"2011-09-04","KW60MN05 ",5198882.0590555146,1369818.0557206583,964259.88171301223,76694.772521999999,328863.40148564597,"Summer",80640.660443999994,42998.794862000002,56658.502366000001,1087.5380479999999,54673.884334000002,23928.078506000002,5278.1532608999996,39245.791340000003,3053.2304963000001]
[8753,"2012-05-07","KW60MN03 ",4923948.9952375079,1367335.4436325789,983856.81213462423,75053.368881172573,308425.26261678233,"Summer",89869.803358999998,44234.682701999998,54972.607171000003,1055.1779415999999,57683.455949000003,27518.232876999999,5053.1319788999999,21356.368259999999,3053.2304963000001]
[8754,"2012-04-22","KW60MN06 ",4863810.1852549519,1361849.436063207,975056.14845910994,69829.941802649584,316963.34580144758,"Summer",87381.756299999994,41762.588876000002,57317.360496000001,1100.1845751000001,34199.677439999999,25766.505433999999,5505.8358134,7467.6597125999997,2957.1809536999999]
[8755,"2012-04-30","KW60MN02 ",4821627.6669413205,1360659.8177878081,954942.08178687259,65782.288875130689,339935.44712580484,"Summer",82967.21703,40880.285854000002,61737.951701999998,1185.0361143,55175.479603,27055.376262999998,4985.3660695999997,7467.6597125999997,3053.2304963000001]
[8756,"2012-05-13","KW60MN04 ",4919059.1503940262,1359466.0540051661,973839.5656203496,83687.370988661714,301939.11739615456,"Summer",85577.359662999996,42403.796074999998,54325.093903000001,1042.7491746999999,53488.295515999998,23633.642827,4810.0201489000001,21356.368259999999,3053.2304963000001]
[8757,"2012-05-28","KW60MN03 ",4849022.5865772888,1357702.6349910502,979334.55472265172,75959.087131406835,302408.99313699175,"Summer",81809.333411,40148.070995000002,52324.704823,1004.3524797,55722.674442000003,26051.510059,4574.1895709,20315.728465,3053.2304963000001]
[8758,"2011-09-25","KW60MN03 ",5023317.0039941519,1355066.3258112497,946275.446738953,66022.127283999987,342768.75178829674,"Summer",73622.751029999999,47043.796824999998,79285.052026999998,1521.8459210999999,55038.680892999997,31106.731747999998,5901.5407137000002,30217.333901999998,3053.2304963000001]
[8759,"2012-04-25","KW60MN03 ",4910593.6273955153,1352920.9759797836,959249.82652118232,67055.234315193593,326615.91514340765,"Summer",75854.863723000002,42301.470101999999,68879.893760000006,1322.1229309,41860.405186999997,31419.072932999999,6110.7755129999996,7467.6597125999997,3053.2304963000001]
[8760,"2012-04-25","KW60MN04 ",4947366.9338975912,1347821.0098576322,954600.14165427885,68448.006332660851,324772.86187069252,"Summer",74815.472162000005,41987.717905999998,68695.589221000002,1318.5852765,41404.409486999997,31167.780185,5918.1855059,7467.6597125999997,3053.2304963000001]
[8761,"2012-04-22","KW60MN02 ",4811780.1204313552,1344933.7696224533,966232.54107267759,66715.122016144305,311986.10653363133,"Summer",86955.163692999995,45298.152651999997,56795.829860999998,1090.1739961999999,34154.077870000001,25475.229366,5141.5125796000002,7467.6597125999997,3053.2304963000001]
[8762,"2011-09-25","KW60MN05 ",5107410.7044752538,1344192.6439815392,938085.14832959301,67272.156363000002,338835.33928894607,"Summer",72685.211765999993,45696.790590999997,77602.387625000003,1489.5478284000001,55038.680892999997,31003.111901,6047.5652527000002,30217.333901999998,3053.2304963000001]
[8763,"2012-04-29","KW60MN04 ",4848532.3097069217,1343624.7650096572,937961.71495690313,69942.523541677539,335720.5265110766,"Summer",82459.259170000005,40958.312160000001,55375.092028999999,1062.9034827999999,55129.880033000001,24551.720464000002,5013.5599650000004,7467.6597125999997,3053.2304963000001]
[8764,"2012-05-28","KW60MN04 ",4854941.4613131871,1342458.1960578659,973433.40324993641,73979.061909706215,295045.73089822329,"Summer",82194.676366999993,41633.506436000003,53594.643688999997,1028.7284652999999,55631.475301999999,25560.910416999999,4607.7280155999997,19661.651651,3053.2304963000001]
[8765,"2012-04-24","KW60MN03 ",4943486.035494836,1341795.355871985,951466.49438941316,66000.313306179683,324328.54817639216,"Summer",72764.457303999996,47374.224412000003,72010.404288999998,1382.2118702,39078.831421000003,33601.704772999998,6001.3146675999997,7467.6597125999997,3053.2304963000001]
[8766,"2012-04-29","KW60MN03 ",4812870.7988153705,1339651.2497257635,937870.59013315383,68690.630899457159,333090.02869315242,"Summer",80422.457001000002,46258.947952000002,57771.538027000002,1108.9023371999999,55266.678742999997,24760.063224000001,5041.0834639000004,7467.6597125999997,3053.2304963000001]
[8767,"2012-04-30","KW60MN04 ",4851892.7156965462,1339468.2930928995,944622.52744043421,69966.62124484824,324879.14440761699,"Summer",89149.280497999993,42009.236198999999,64949.850609000001,1246.6872719999999,54628.284764000004,27899.981518000001,4948.4011526000004,7467.6597125999997,3053.2304963000001]
[8768,"2012-04-24","KW60MN04 ",4962220.4193525445,1337871.4573270488,945603.9600888209,65074.698428221098,327192.79881000682,"Summer",70814.605836000002,42966.490107999998,71335.190675999998,1369.2514059,39306.829271000002,33136.626814000003,5833.4920857999996,7467.6597125999997,3053.2304963000001]
[8769,"2012-04-23","KW60MN05 ",5025441.7994618583,1336476.9337788403,948791.11437765067,68173.780710527615,319512.03869066207,"Summer",59180.158928999997,45097.818183000003,65763.864153000002,1262.3119472999999,36662.054215999997,31000.799969,5541.4785588000004,7467.6597125999997,3053.2304963000001]
[8770,"2011-09-18","KW60MN03 ",4966091.9167753374,1331978.5608797127,941559.56358866033,67018.460917000004,323400.53637405246,"Summer",90922.167574999999,46463.829669999999,67212.620288000006,1290.1202612,55084.280463000003,27980.277606,5170.4428955000003,30217.333901999998,3053.2304963000001]
[8771,"2012-04-30","KW60MN03 ",4793492.3791432455,1330126.1242435323,933766.60062962037,66782.852516746338,329576.6710971655,"Summer",87524.540290000004,41349.558810000002,59512.599432000003,1142.3213378,54673.884334000002,27134.303753,5054.0444623000003,7467.6597125999997,3053.2304963000001]
[8772,"2011-09-18","KW60MN05 ",4964252.6146666612,1327432.2805142934,929561.73503869446,70409.375303000008,327461.17017259897,"Summer",76038.505216000005,42445.563286999997,66172.138852999997,1270.1486222999999,54901.882184000002,27940.975858000002,5247.1931330999996,30217.333901999998,3053.2304963000001]
[8773,"2011-09-18","KW60MN04 ",4959894.2637332147,1326380.0208248473,930762.78483267222,68736.139102000001,326881.09689017496,"Summer",79966.601731000002,41527.083118000002,65627.586183000007,1259.6961443,54719.483904000001,27540.988560000002,5194.2114971000001,30217.333901999998,3053.2304963000001]
[8774,"2011-09-25","KW60MN04 ",5059184.8067608261,1325593.1373981121,924790.81684526848,62697.286443999998,338105.03410884377,"Summer",73368.968173999994,46278.234397,75305.620106000002,1445.4622638000001,55084.280463000003,30936.744802000001,5952.7752551000003,30217.333901999998,3053.2304963000001]
[8775,"2011-09-26","KW60MN02 ",5157046.9891155176,1322963.4198381598,943300.9068293575,64302.664900000011,315359.84810880246,"Summer",67846.390379000004,40917.624718999999,80249.680697999996,1540.3615955,56452.267561000001,30975.916377000001,5537.7998432000004,30217.333901999998,3053.2304963000001]
[8776,"2011-09-26","KW60MN04 ",5197100.445281974,1318716.3536166404,934882.56544271298,62351.171647999996,321482.61652592744,"Summer",74578.435052999994,40507.022532000003,78970.930298000007,1515.8164758999999,56725.864979999998,30681.312741999998,5490.1204342999999,30217.333901999998,3053.2304963000001]
[8777,"2012-04-23","KW60MN02 ",4837585.6648008265,1312178.7272880315,933896.25128837675,65262.933040187716,313019.5429594671,"Summer",70318.475986000005,43565.766201999999,63545.01182,1219.7219345999999,36114.859377000001,29303.376895000001,5264.6793076000004,7467.6597125999997,3053.2304963000001]
[8778,"2011-09-26","KW60MN03 ",5147584.7504314668,1308992.0116358092,928440.32078351488,61212.496676000002,319339.19417629432,"Summer",70028.435406999997,41161.039156999999,76648.181633999993,1471.2322133,56634.665841000002,31409.071817,5459.5056623,30217.333901999998,3053.2304963000001]
[8779,"2012-04-22","KW60MN03 ",4743177.0577612147,1302305.2425554544,932582.65970898687,64617.526037001611,305105.05680946581,"Summer",87652.942014999993,44178.19397,56658.341721999997,1087.5349644999999,34062.878729999997,25270.530959,5167.0062667000002,7467.6597125999997,3053.2304963000001]
[8780,"2012-04-22","KW60MN05 ",4773706.9241878856,1301470.080824245,927846.93503192451,64676.486904506419,308946.65888781397,"Summer",76837.828475000002,42452.718375999997,55414.006791,1063.6504365999999,34062.878729999997,25611.230849,5364.6614911999995,7467.6597125999997,3053.2304963000001]
[8781,"2012-04-22","KW60MN04 ",4737663.0579323396,1289864.6449914353,919447.37192660559,64373.36221646436,306043.91084836546,"Summer",76835.973723999996,41444.498313999997,56995.009409999999,1093.9971705999999,34017.279159999998,25248.637578999998,5126.2238150000003,7467.6597125999997,3053.2304963000001]
[8782,"2012-04-23","KW60MN03 ",4798907.695604709,1285087.3020585452,914843.00255800795,61982.134564768639,308262.16493576858,"Summer",68338.015836000006,43348.921842000003,61993.305764999997,1189.9375368000001,36297.257656000002,29245.923912999999,5312.8361203000004,7467.6597125999997,3053.2304963000001]
[8783,"2012-04-23","KW60MN04 ",4811332.5431244867,1268019.3283930337,898553.95151558134,62855.868183720813,306609.50869373162,"Summer",66022.269795,44417.266829,64108.539077000001,1230.5386223999999,35978.060666999998,29745.431825,5273.2827288999997,7467.6597125999997,3053.2304963000001]
[8784,"2012-03-11","KW60MN02 ",0,0,0,0,0,"Winter",0,0,0,0,0,0,0,0,0]

{"sheet":"100 S_100W Hrs","index":35,"n_rows":8795,"n_cols":18,"rows_kept":4500,"cut":true,"hidden":false,"merged":[],"bounds":{"rows_first":2000,"rows_last":500,"rows_between":2000,"halvings":0}}
["Data at Sales Level"]
[]
[null,null,null,null,null,null,null,null,null,"Sch 16","Sch 24","Sch 36","Sch 36","Sch 48T","Sch 48T","Sch 48T","Sch 40","Lighting"]
[null,null,null,null,null,null,null,null,null,"sec","sec","sec","pri","pri, ded fac","sec","pri","sec","sec"]
[null,null,null,null,null,null,"Top 100 Sum/100 Win Hrs @ input",null,null,{"$f":"J6*Inputs!$D$15","v":63204355.694003023},{"$f":"K6*Inputs!$D$15","v":18537068.927725915},{"$f":"L6*Inputs!$D$15","v":28341342.304836795},{"$f":"M6*Inputs!$D$16","v":531351.85817395127},{"$f":"N6*Inputs!$D$16","v":11725109.474041587},{"$f":"O6*Inputs!$D$15","v":8361118.53008301},{"$f":"P6*Inputs!$D$16","v":2100569.9537976445},{"$f":"Q6*Inputs!$D$15","v":4228141.8055760814},{"$f":"R6*Inputs!$D$15","v":128620.56468849568}]
[null,null,null,null,null,null,"Top 100 Sum/100 Win Hrs @ sales",null,null,{"$f":"J7+J8","v":56962927.705330014},16706533.997608006,25542635.710083,490281.01735049998,10818817.160506001,7535458.3578170016,1938206.4033859996,3810612.9451734293,115919.28827248004]
[null,null,null,null,null,null,"Top 100 Winter Hours @ Sales",null,null,{"$f":"SUM(J5148:J5247)","v":32704918.245860014},7537311.9148890032,12301595.634180002,236124.37224599996,5521651.9216070008,3519101.2750080004,947585.00894249999,80646.224536229944,93731.631879500041]
[null,null,null,null,null,null,"Top 100 Summer Hours @ Sales",null,null,{"$f":"SUM(J12:J111)","v":24258009.459469996},9169222.0827190019,13241040.075902997,254156.64510450006,5297165.238899,4016357.0828090012,990621.39444349962,3729966.7206371995,22187.656392980003]
[]
[]
["Rank","Date","Hour","Forecast System","WCA","Oregon","California","Washington","Season","Sch 016","Sch 024","Sch 036 Sec","Sch 036 Pri","Sch 48DedFac","Sch 048Sec","Sch 048Pri","Sch 040","Lighting"]
[1,"2011-08-25","KW60MN17 ",9362167.072918104,3128927.3459078614,2264259.2042,142083.61764000001,722584.52406786149,"Summer",280569.61810000002,106712.50704,136411.72034999999,2618.3702336000001,52758.702397000001,40322.506644000001,11074.888660000001,42723.498667,0]
[2,"2011-08-25","KW60MN16 ",9367189.9566307757,3123817.6870680209,2264191.693490298,146969.02744600002,712656.96613172325,"Summer",255518.1819,104118.9181,141488.64048999999,2715.8197528999999,52530.704548000002,40674.445160000003,12287.513976,39095.465572000001,0]
[3,"2011-08-25","KW60MN18 ",9248331.5401523318,3088410.6777453991,2230245.1600143681,144247.98660799998,713917.53112303081,"Summer",309049.14186999999,105214.10632000001,130643.74507999999,2507.6561783000002,53169.098527000002,39963.517337999998,9856.5548177000001,41809.979192999999,0]
[4,"2011-08-25","KW60MN15 ",9226239.3624074552,3070824.3092388702,2235555.8839863734,141136.81073100001,694131.61452149693,"Summer",240781.03422999999,104489.47396,144680.36176,2777.0836086999998,52211.507557999998,42198.107152999997,12381.938302,44352.205329999997,0]
[5,"2011-08-26","KW60MN17 ",9116913.3538673595,3060209.0441112649,2179850.2933704657,137461.10744300002,742897.64329779905,"Summer",274598.08470000001,106986.00564,129095.19288,2477.9323175,56087.471001999998,39439.872774000003,10076.851159,43960.379682999999,0]
[6,"2011-08-26","KW60MN16 ",9172035.1697906591,3038795.443680827,2165310.6241906499,142602.22544400001,730882.59404617688,"Summer",251557.67494999999,106289.77189,135200.9259,2595.1295021999999,55813.873582,40367.158463,10871.372545,44204.061626000002,0]
[7,"2011-08-26","KW60MN18 ",8996290.8865351118,3035382.3132297513,2165612.6789470054,139132.441017,730637.19326574577,"Summer",283183.96836,94352.335170000006,123596.20253,2372.3813236999999,56133.070571999997,38707.646525999997,9740.7793794999998,45293.727744999997,0]
[8,"2011-08-24","KW60MN16 ",9292066.1098780911,3027416.2193809003,2197653.2363861231,141839.40564900002,687923.57734577754,"Summer",240491.17383000001,106912.92346000001,138191.66620000001,2652.5356061000002,49703.531213000002,41557.729905,11760.115108,45288.903920999997,0]
[9,"2011-08-24","KW60MN17 ",9244027.6726182606,3023180.3245148836,2199726.8300214298,139952.56180699999,683500.93268645369,"Summer",246696.57535999999,109687.19087000001,133392.29459,2560.4135236000002,49703.531213000002,40932.751493999996,10367.031252999999,45013.523567999997,0]
[10,"2011-08-25","KW60MN19 ",8911475.3928689361,3016039.523163477,2186952.4146184982,141760.13200499999,687326.97653997899,"Summer",280720.13905,100560.22441,125202.44094,2403.2124491,53077.899386999998,38994.791960000002,9281.0092946999994,43825.915539000001,0]
[11,"2011-07-06","KW60MN17 ",9218740.3672204819,3011548.1511134999,2138963.6669999999,149677.52239999999,722906.96171349997,"Summer",260508.83846,91656.058718999993,126930.13893,2436.3749440000001,55357.877883000001,40061.830840000002,9406.9422551000007,41304.151616000003,0]
[12,"2011-08-24","KW60MN18 ",9159145.5915896855,3010894.7605465413,2183060.2952452595,139770.99864600002,688063.46665528184,"Summer",261744.75938,99923.410203000007,125348.50717,2406.0161337999998,49977.128632,39662.163017999999,9701.0228377999993,44982.973270000002,0]
[13,"2011-07-06","KW60MN18 ",9071801.4365443699,3007917.0219570906,2132368.7421451267,149701.95677699998,725846.32303496392,"Summer",277328.69072999997,83085.461918000001,127104.84123999999,2439.7282872000001,55266.678742999997,38905.896729,8760.3956514000001,40260.969899000003,0]
[14,"2011-09-09","KW60MN17 ",8269465.2258850764,3007103.0469432967,2160706.0602249969,115496.59032599999,730900.39639229991,"Summer",252088.80129,99388.505810999995,144999.57253999999,2783.2107362000002,54035.490355000002,42331.461923000003,9124.6850279999999,39034.215035000001,0]
[15,"2011-08-25","KW60MN14 ",9274495.0344066359,3002613.790959991,2193129.5752605023,139148.49064899998,670335.72505048895,"Summer",200192.45939999999,105345.46881000001,139621.70887,2679.9847221999999,48745.940243999998,42984.918227000002,12492.939704,43767.354624,0]
[16,"2011-07-06","KW60MN16 ",9204020.4846928269,2990758.6496693059,2127709.5921569602,149469.15872599999,713579.89878634596,"Summer",235739.6741,89637.422097000002,133341.48585999999,2559.4382697000001,55084.280463000003,41137.627674000003,9920.5268919999999,41719.373368,0]
[17,"2011-09-07","KW60MN17 ",8443740.5006994493,2987677.4219464394,2203180.4272013265,117266.81250900001,667230.182236113,"Summer",240374.32454999999,97419.872868000006,136876.38211000001,2627.2892363999999,41404.409486999997,39801.632012000002,10207.659729000001,36881.454618999996,0]
[18,"2011-08-26","KW60MN15 ",9113182.9409054685,2986148.7936482504,2132915.61519418,137672.06820800001,715561.11024607043,"Summer",230019.49648999999,109655.73129,138256.35209,2653.7772267,55631.475301999999,42516.417938999999,10963.785682,44315.713294000001,0]
[19,"2011-09-09","KW60MN18 ",8038400.680255549,2983439.6880466035,2145746.8912633876,113347.991335,724344.80544821569,"Summer",273343.41490999999,93562.170996000001,142579.07105999999,2736.7501459999999,53944.291214999997,41460.262536000002,8798.2425788,41061.167498000003,0]
[20,"2011-08-24","KW60MN15 ",9330135.9111492168,2982526.4854610371,2158361.9745531548,144314.11789600001,679850.39301188255,"Summer",234926.91183999999,101494.79829999999,139977.41166000001,2686.8122997,49612.332072999998,43487.547569000002,12135.902799,43241.719854000003,0]
[21,"2011-09-07","KW60MN18 ",8327271.9068548977,2979602.4804397947,2192793.2835637308,117385.679255,669423.51762106398,"Summer",285983.13656000001,91863.387596999994,131975.94065,2533.2271572999998,41586.807766999998,38617.087846000002,9655.8421785999999,35904.415902000001,0]
[22,"2011-07-06","KW60MN19 ",8799274.4478769712,2977572.7559321215,2114252.6201543384,145493.33365299998,717826.80212478281,"Summer",274802.51,76996.373196,124575.05237999999,2391.1699681,55221.079172999998,38703.243949000003,8495.7921979000002,40226.667097999998,0]
[23,"2011-09-08","KW60MN17 ",8490893.3807577845,2975666.5160834752,2213426.4478000002,119552.06621999999,642688.00206347485,"Summer",199192.24017,97357.091899000006,143930.45100999999,2762.6893617999999,51299.516159999999,40298.004534,9578.9903658999992,42584.144895999998,0]
[24,"2011-09-08","KW60MN18 ",8294876.1506303633,2975258.8227944821,2211620.0263280361,118720.632618,644918.16384844598,"Summer",209692.60785999999,83285.503949000005,137150.76404000001,2632.5558915000001,51801.111428999997,39400.543199,8993.4295253,38626.756126,0]
[25,"2011-09-06","KW60MN17 ",8061968.3129056524,2973049.1395535721,2183341.1528071309,116581.64613099999,673126.34061544086,"Summer",232338.92022999999,100006.76466,136983.26165999999,2629.3407480999999,55175.479603,40257.253477999999,10314.496547999999,34091.054678,0]
[26,"2011-09-09","KW60MN16 ",8359302.1167259244,2971463.0006026826,2137242.8863870264,115386.73042199999,718833.38379365613,"Summer",240463.02402000001,100117.01538,154253.46625,2960.8356482999998,54126.689494999999,42981.210739000002,10472.832004,41027.768876000002,0]
[27,"2011-09-06","KW60MN18 ",8000680.3836052539,2965983.2348524379,2182115.3086944167,118468.07364599999,665399.8525120212,"Summer",255184.62358000001,87139.506961999999,132436.85488999999,2542.0742279999999,55449.077022999998,39327.725506000002,9554.0841215,32787.495533000001,0]
[28,"2011-10-26","KW60MN08 ",7489349.2132533323,2965628.5933805918,2183000.761683492,122171.30349999999,660456.52819710004,"Summer",311391.88247999997,57792.974535000001,133615.54019,2564.6986364999998,57683.455949000003,42674.635031999998,10604.778217999999,19170.103298999999,1678.8527133]
[29,"2011-08-26","KW60MN19 ",8746358.398678802,2965323.0413201852,2112373.1494007288,142478.771289,710471.12063045637,"Summer",275279.07487999997,91191.596527999995,119677.89304,2297.1708880000001,55905.072721999997,37725.674654000002,9307.8860980000009,45491.812037999996,0]
[30,"2011-08-24","KW60MN19 ",8955570.4834637586,2957757.6651032795,2151253.2191852061,141716.0055,664788.44041807356,"Summer",261452.66268000001,97652.468708,120480.19633999999,2312.5707897000002,50113.927342000003,39198.059843000003,9116.7418455000006,45593.148454000002,0]
[31,"2011-09-09","KW60MN15 ",8362941.1164197484,2953724.1371095064,2122044.5230332217,114142.69758800001,717536.91648828483,"Summer",204512.97872000001,98904.545077999996,157657.58671999999,3026.1764247000001,54537.085623999999,45070.427007999999,11069.037926999999,36668.282025,0]
[32,"2011-09-08","KW60MN16 ",8486338.5726366043,2953461.8173667546,2212610.7953850534,120286.501177,620564.52080470149,"Summer",193621.34348000001,97096.383451999995,149785.38139,2875.0724868000002,49749.130783000001,41089.012491000001,10437.747923000001,47569.678156000002,0]
[33,"2011-09-07","KW60MN16 ",8416336.6122046206,2948817.5565918628,2179914.4528321233,116598.349783,652304.75397673959,"Summer",230417.25036999999,98484.255481,146423.56951999999,2810.5438078000002,41039.612928000002,40801.180908000002,11098.04781,34704.322601,0]
[34,"2011-07-06","KW60MN15 ",9078335.5498618241,2936817.8563030334,2090389.6927573173,145964.23348900001,700463.93005671643,"Summer",233739.09784999999,89820.285806999993,135318.21883,2597.3808947000002,54856.282614000003,42301.276356000002,10119.02519,41557.267964999999,0]
[35,"2011-08-26","KW60MN14 ",9083819.151796218,2919315.2559447787,2087363.384493524,137780.05563699998,694171.81581425481,"Summer",186146.61431999999,106001.69478999999,140657.56229,2699.8675281000001,55494.676592999997,42998.009206000002,10753.809383,42878.759771999998,0]
[36,"2011-09-06","KW60MN16 ",8035041.8517383086,2915058.7246185169,2145673.6600954994,115040.063288,654345.00123501767,"Summer",211816.54089999999,97698.212753999993,145423.55382999999,2791.3488932,55403.477453,40864.875461000003,11086.04162,33422.240342999998,0]
[37,"2011-08-24","KW60MN14 ",9054053.1814742181,2911558.4124947768,2108498.8171658376,140394.81387399998,662664.78145493916,"Summer",224699.16068,101701.2338,135425.38006,2599.437813,49475.533363000002,44075.316459000001,12149.107577000001,41666.856851999997,0]
[38,"2011-08-25","KW60MN20 ",8681975.3540632017,2909671.1684881118,2112391.6945976024,138885.050861,658394.42302950926,"Summer",286565.80377,95554.762965000002,121012.05091000001,2322.7795323999999,53442.695946,38422.218203999997,8978.2135579000005,45255.367655000002,265.39075265999998]
[39,"2011-07-07","KW60MN15 ",8382114.935741134,2906890.8967367541,2049076.6889310488,147562.95548,710251.25232570525,"Summer",210070.69078999999,94515.872266000006,130677.56126,2508.3052668,55540.276163000002,43566.098402000003,10182.834745,41711.312920999997,0]
[40,"2011-07-06","KW60MN20 ",8558266.4333985522,2906455.5794977015,2063873.0093642066,146849.23779400002,695733.33233949519,"Summer",267511.27396000002,72885.961536999996,119074.81499,2285.5950379999999,55266.678742999997,37785.825682000002,8190.6602310999997,41032.987982999999,0]
[41,"2011-09-06","KW60MN19 ",7783254.3783471752,2904969.173303538,2128009.3233620613,125969.86595300001,650989.98398847668,"Summer",267356.33341000002,83767.943041000006,128016.54364,2457.2280623000001,55084.280463000003,38537.011684999998,9230.8311350000004,33841.121969,0]
[42,"2011-08-22","KW60MN16 ",9164734.496552363,2903449.2917220108,2109879.3035775148,139309.29436500001,654260.69377949613,"Summer",251290.68627000001,91405.878037999995,131374.11077999999,2521.6752655,56634.665841000002,39354.863402000003,10662.046327,43159.302027999998,0]
[43,"2011-09-07","KW60MN19 ",8110272.3624219457,2902473.5135758491,2140458.7557433206,118508.36896099999,643506.38887152867,"Summer",286713.86585,89948.380063999997,127851.25365,2454.0553848,41222.011208000004,37845.481845000002,9076.1930169999996,37285.667764999998,0]
[44,"2011-08-04","KW60MN17 ",8356377.3824179862,2900937.4305398227,2066342.955586134,131630.835647,702963.6393066888,"Summer",263259.06245000003,99238.224832000007,130710.31448,2508.9339522999999,55175.479603,38848.457506999999,9420.1876635000008,32909.417781999997,0]
[45,"2011-10-27","KW60MN08 ",7551675.8749968531,2900356.4591386435,2113596.9705153489,123436.01749900001,663323.47112429456,"Summer",286863.28454999998,63012.820320999999,134838.24226999999,2588.1679303000001,46830.758307999997,41501.213824999999,10306.370531,19170.103298999999,1729.7398880999999]
[46,"2011-07-29","KW60MN18 ",9133497.7481599003,2896361.4963304671,2068714.7553943077,148567.881204,679078.85973215918,"Summer",255750.00451999999,97650.458597999997,131820.11522000001,2530.2361483,55357.877883000001,39394.105033,7892.8416808000002,38805.626471000003,0]
[47,"2011-08-23","KW60MN18 ",9169443.3874619454,2895220.6419237768,2095619.7597521776,143687.372527,655913.50964459893,"Summer",266084.72709,92367.566720999996,121011.92908,2322.7771938999999,52029.109278999997,38973.758353999998,9512.8242661000004,41197.589697000003,0]
[48,"2011-08-03","KW60MN18 ",8188410.9186549718,2894887.7189498362,2091417.2084324274,138004.74992599999,665465.7605914087,"Summer",275848.11232999997,92985.345140000005,127266.22318,2442.8259512,54172.289064999997,37264.332967000002,9476.8056918999991,27518.984655,0]
[49,"2011-08-25","KW60MN13 ",9107336.1024815161,2894863.7915423168,2118972.903856413,140487.08094400002,635403.80674190423,"Summer",177613.45856999999,98371.080381000007,135048.46158999999,2592.2030086999998,49247.535514000003,42373.212640999998,12269.677366,45174.355995999998,0]
[50,"2011-08-23","KW60MN17 ",9281990.1741433833,2890471.461053214,2087909.8252744579,142219.67671199999,660341.9590667563,"Summer",256067.13505000001,99756.137293000007,127470.09333,2446.7391598999998,54172.289064999997,40064.016974999999,10107.30341,39915.571533000002,0]
[51,"2011-07-29","KW60MN17 ",9222152.8011693805,2890451.1820217227,2059147.9829067425,147007.41979700001,684295.77931798028,"Summer",243537.24640999999,103995.00152999999,132044.89835999999,2534.5507738000001,55312.278313000003,40891.737603000001,8328.3352871999996,38797.965533000002,0]
[52,"2011-09-08","KW60MN15 ",8374041.8112036772,2886085.724421245,2167162.1821156074,114368.696929,604554.84537663788,"Summer",173866.13133,97624.974717999998,154613.20144,2967.7406262999998,49749.130783000001,42337.375419000004,11115.823474000001,47600.079854000003,0]
[53,"2011-08-22","KW60MN17 ",9142240.8034407385,2883301.4561325163,2102152.0147443363,135867.92484699999,645281.51654118043,"Summer",248805.28885000001,85857.203431999995,126258.49152,2423.4829316999999,56862.663690000001,39282.959907999997,9904.7217870000004,41675.377401999998,0]
[54,"2011-08-04","KW60MN18 ",8271353.1892487919,2882845.4698007898,2049761.5595865618,129454.98223599998,703628.92797822843,"Summer",268611.95707,88677.041352,129719.51968,2489.9160290999998,55631.475301999999,38061.438755000003,8965.6791752999998,32199.000691000001,0]
[55,"2011-08-25","KW60MN21 ",8443987.5229333043,2882706.1609706534,2080927.351322206,146922.33473199999,654856.47491644765,"Summer",265830.76405,94033.847729000001,113763.75854,2183.6513626000001,53488.295515999998,38122.644588000003,9100.4288648000002,48853.605497999997,3042.6996786999998]
[56,"2011-08-22","KW60MN15 ",9055525.9752441905,2882352.0913839135,2091804.6800039741,137345.72979399998,653201.68158593983,"Summer",237298.87272000001,93713.154148000001,127055.96184,2438.7900660999999,56589.066271000003,40873.613541999999,10965.085845,42586.528183000002,0]
[57,"2011-07-07","KW60MN14 ",8521752.816276921,2878427.41508502,2014899.999169491,145964.55989400001,717562.85602152906,"Summer",231017.71259000001,93494.478034,137338.00000999999,2636.1498136999999,55585.875732,44167.250417000003,10609.836664,41510.627429,0]
[58,"2011-08-04","KW60MN16 ",8323851.5551755242,2877746.010226409,2047939.8163365629,131263.55095199996,698542.64293784578,"Summer",251285.14322,98166.831741999995,136427.06534999999,2618.6647748999999,55266.678742999997,39261.256550999999,9973.2850624999992,32456.734119000001,0]
[59,"2011-08-03","KW60MN17 ",8332187.8739710413,2877165.2619331768,2081139.9229470817,135295.509452,660729.82953409525,"Summer",239165.80095,102490.50781,137284.97211999999,2635.1319638,52667.503257999997,38352.125724999998,10180.010955,27742.427650000001,0]
[60,"2011-07-07","KW60MN16 ",8311913.1610539081,2876841.329014278,2031651.1484267353,141811.78210100002,703378.3984865424,"Summer",210215.84886,88237.857369999998,130804.34286999999,2510.7387907000002,55221.079172999998,41974.424243000001,9788.0931173000008,31333.823637000001,0]
[61,"2011-09-09","KW60MN19 ",7799806.6944660703,2876250.0343810846,2060139.1994329933,120739.262512,695371.57243609149,"Summer",261770.56690999999,83869.285650999998,142484.94760000001,2734.9434826000002,53807.492506000002,40457.88508,8320.3311601000005,41241.426671000001,0]
[62,"2011-09-07","KW60MN21 ",7740510.7817317992,2876016.2418995462,2114300.0346689466,133047.84685900001,628668.36037159956,"Summer",234231.00946999999,85394.261276000005,122616.11977,2353.5690141,51983.509708999998,36418.804774999997,9105.5076253000007,49902.298561000003,3053.2304963000001]
[63,"2011-08-23","KW60MN16 ",9221716.3754471075,2875313.3226319682,2082107.8508420233,142999.551236,650205.92055394477,"Summer",245489.66274,103333.18388,129802.16979,2491.5024659000001,54172.289064999997,40973.222327000003,10799.315083,39275.257733999999,0]
[64,"2011-10-26","KW60MN09 ",7366239.625412073,2874347.4091010317,2137033.8391,112615.53331399999,624698.03668703209,"Summer",233349.05973000001,63292.903588000001,140397.56378999999,2694.8769575000001,57045.061970000002,42408.265336999997,10573.635254999999,19170.103298999999,0]
[65,"2011-09-08","KW60MN19 ",8037282.0488960622,2871909.9044894567,2127432.7529710163,124526.19625899999,619950.95525944047,"Summer",217343.00837,75962.373603,131079.56716999999,2516.0216148999998,51253.916590000001,38899.101824999998,8268.4262209999997,38854.859708000004,0]
[66,"2011-07-06","KW60MN14 ",8949926.2685686685,2870930.3558198875,2043363.2583460931,146648.97791099999,680918.11956279422,"Summer",199113.77893,86595.826218000002,131587.24844,2525.7663604999998,54673.884334000002,42755.802767000001,10361.708710999999,41092.881434000003,0]
[67,"2011-09-09","KW60MN14 ",8151743.5838491265,2870079.4714543838,2065947.0025974987,114610.35192299999,689522.1169338848,"Summer",189406.97946999999,96485.784224000003,158287.08042000001,3038.2593129000002,54035.490355000002,44965.757814999997,11014.857704,37360.104022,0]
[68,"2011-10-25","KW60MN08 ",7210365.6331748385,2869377.8504900644,2133539.0751995258,114388.255879,621450.51941153884,"Summer",263666.59882000001,55947.445120999997,130142.31664,2498.0314533000001,52211.507557999998,43574.963186000001,9141.7496649999994,19170.103298999999,1577.0783635]
[69,"2011-09-12","KW60MN18 ",7344477.2121716514,2868301.7000783328,2051746.3767950872,108597.58625000001,707957.7370332455,"Summer",302968.85651000001,78034.203406000001,141899.64958,2723.7089135000001,54856.282614000003,41595.288703999999,9698.2396757000006,27193.729235999999,0]
[70,"2011-08-01","KW60MN18 ",8188171.6679789266,2867455.5266524265,2129733.3250447414,131500.619962,606221.58164568525,"Summer",242880.46338,79921.079049000007,123835.15253000001,2376.9678767,55540.276163000002,36502.284354000003,9052.5463046000004,27522.359784,0]
[71,"2011-08-24","KW60MN20 ",8786100.153740041,2865745.3982059085,2090695.5856935771,142293.64557599998,632756.16693633143,"Summer",255354.65651,88842.299331999995,117652.75607,2258.2991667000001,50250.726051999998,38396.23648,8745.9516545000006,46165.763011000003,187.30720972]
[72,"2011-08-01","KW60MN17 ",8262971.2603426594,2865577.2747057797,2127192.2661419674,138323.95334500002,600061.05521881243,"Summer",221348.18831999999,91298.694703000001,128403.20352,2464.6498492000001,55449.077022999998,37490.828544000004,9866.9967498999995,27243.439101,0]
[73,"2011-09-12","KW60MN17 ",7386130.8843722185,2863804.8250119211,2039513.2889704253,109872.014698,714419.5213434957,"Summer",265597.22447999998,90381.879180999997,149228.10776000001,2864.3758349999998,54856.282614000003,42779.458745000004,10228.36076,26812.7408,0]
[74,"2011-09-07","KW60MN15 ",8250243.0692737289,2863386.91079068,2119126.3408933561,115923.26137600001,628337.3085213236,"Summer",199173.71385999999,100559.72629999999,148307.48220999999,2846.7047834999998,41130.812067999999,42006.246427999999,11207.261489,34481.972346000002,0]
[75,"2011-08-04","KW60MN15 ",8347237.8127918476,2862680.3594394615,2052112.4665697804,131253.97984400002,679313.91302568081,"Summer",239386.07110999999,96438.827042000004,139932.83428000001,2685.9566543000001,55403.477453,40841.051549999996,11014.634238000001,32335.750235,0]
[76,"2012-04-02","KW60MN08 ",7307068.9565159651,2861814.5254712841,2143367.0967833512,135761.02493811827,582686.40374981449,"Summer",218003.24655000001,63788.907303,101333.86702999999,1945.0644007000001,55996.271862000001,34205.325683000003,7174.6015931000002,7467.6597125999997,0]
[77,"2011-08-01","KW60MN16 ",8182512.300404205,2860528.2033474054,2127597.226984486,137897.92034499999,595033.05601791921,"Summer",220736.44922000001,94361.575889,131957.95817999999,2532.8819905999999,55449.077022999998,38460.311116999997,11215.570342000001,27249.691363000002,0]
[78,"2011-09-06","KW60MN15 ",7904780.4328257991,2859663.3320284402,2106198.2402046686,112968.609847,640496.48197677173,"Summer",178653.58142999999,96713.233477000002,147642.82115,2833.9468714,52986.700247000001,42172.650099999999,11182.700601,32460.282363999999,0]
[79,"2011-07-07","KW60MN17 ",8203518.0227475008,2859065.2910740729,2022705.6562915759,148741.62706199999,687618.00772049674,"Summer",218524.70699000001,83732.055118000004,127458.82574,2446.5228830000001,55175.479603,40737.853030999999,9155.7873602,27055.560785999998,0]
[80,"2011-09-08","KW60MN20 ",8013804.2715307772,2855814.4039628068,2107424.0681460062,128370.266364,620020.06945280102,"Summer",223493.90143999999,80288.617335999996,128483.4497,2466.1901438,51937.910139,38896.285189000002,8459.2657481000006,39309.278641999997,1628.8136574]
[81,"2011-09-08","KW60MN21 ",7852591.1217713533,2855502.7367771855,2110771.2378633278,134974.73624299999,609756.76267085783,"Summer",234480.42571000001,78023.175923999996,119661.67271,2296.8595449999998,52576.304118,37921.010344000002,8398.7675464999993,41180.206115000001,3053.2304963000001]
[82,"2011-07-29","KW60MN16 ",9219673.5681394804,2854064.2107418883,2038156.7713155048,148079.35299499999,667828.0864313835,"Summer",219472.99320999999,104244.80138999999,133811.90198,2568.4677252000001,54810.683043999998,41808.252100999998,8527.3211470000006,37575.171543999997,0]
[83,"2011-09-07","KW60MN20 ",8017396.1580406865,2852479.2131306836,2105160.6754225548,125272.21739299998,622046.32031512889,"Summer",252453.58301,85270.004062000007,129295.13753000001,2481.7701777000002,45645.16949,36958.362918999999,9187.6210346999997,43733.824719999997,1527.0393077000001]
[84,"2011-08-03","KW60MN16 ",8275047.922201273,2852467.6238950393,2067878.1314527513,134408.69574999998,650180.7966922879,"Summer",242145.83381000001,102672.70791,139775.98619,2682.9460158000002,52621.903687999999,38906.381654999997,11541.72838,27556.494200000001,0]
[85,"2011-08-22","KW60MN18 ",8959530.906524241,2851169.1935111,2097602.320991186,138018.74038000003,615548.13213991409,"Summer",244866.55137,75873.854879999999,117770.61235,2260.5613724,56862.663690000001,38188.295731999999,9309.8972873999992,42263.004710000001,0]
[86,"2011-07-29","KW60MN19 ",8859223.9204563871,2851141.9693810074,2043236.7271319192,145014.77111500001,662890.47113408789,"Summer",253871.69342,88163.097691999996,129091.52471,2477.8619084000002,55312.278313000003,38362.804998,7621.5952072,39185.617294000003,0]
[87,"2011-09-06","KW60MN20 ",7746619.6381232999,2849600.331890732,2099594.8442359138,125968.189126,624037.29852881853,"Summer",250966.32751,79789.803323999993,128648.95821,2469.3670155999998,55084.280463000003,38461.313263999997,9217.7076158,34110.752546999996,1425.2649578999999]
[88,"2011-07-28","KW60MN18 ",9009789.1195224542,2849423.127180615,2025439.9049161929,145094.135121,678889.0871434221,"Summer",231902.69352,88227.922512999998,128280.11121,2462.2871399999999,56634.665841000002,39484.316914000003,8895.7751069000005,35368.870174999996,0]
[89,"2012-04-05","KW60MN08 ",7108874.3381984187,2848236.564009211,2181710.2091964358,136372.70115897505,530153.65365380002,"Summer",232029.9718,57890.727549000003,91850.052903000003,1763.0262551000001,39580.426691000001,33826.660956,7616.1135317999997,7467.6597125999997,0]
[90,"2011-08-23","KW60MN19 ",8865734.1760047022,2848007.8257410424,2064935.924586599,145218.71978700001,637853.18136744364,"Summer",254334.88290999999,87184.593827000004,116623.7357,2238.5475185999999,53397.096376000001,38395.752049000002,9139.3321751000003,41511.808130999998,0]
[91,"2011-09-12","KW60MN16 ",7432159.5979197472,2845305.2477564327,2040672.9600134909,105819.59485000001,698812.69289294165,"Summer",243026.56471999999,93675.058478999999,156228.58405,2998.7472708999999,54856.282614000003,43727.319445000001,12345.655632,26024.554032,0]
[92,"2011-08-23","KW60MN15 ",9134508.5535808094,2840226.4080792689,2046788.8790286724,141250.23102499999,652187.29802559642,"Summer",240548.56511,102085.18878,130586.76379,2506.5624444,54445.886484000002,43087.672064999999,11124.355793000001,39555.367166999997,0]
[93,"2011-10-27","KW60MN09 ",7332752.8520481149,2838167.0507277548,2083790.3476277583,117591.337952,636785.36514799658,"Summer",244259.03051000001,71418.602618999998,140009.76574,2687.4333237999999,48244.344975,41240.384495999999,9879.1248321000003,19170.103298999999,0]
[94,"2011-07-05","KW60MN18 ",8737388.3052459024,2837402.1449574018,1981413.9879593975,146504.51128200002,709483.64571600419,"Summer",246291.59325000001,83785.744800999993,114454.60284000001,2196.9118518999999,55312.278313000003,37516.002886000002,8251.9710348000008,40712.053511999999,0]
[95,"2011-09-08","KW60MN14 ",8229197.9759741994,2836125.7435392793,2116782.0241545113,116189.363115,603154.35626976809,"Summer",132727.86145999999,97868.935469000004,153859.36932,2953.2711101999998,50113.927342000003,43380.056274000002,11141.664210999999,48114.585377000003,0]
[96,"2011-08-02","KW60MN16 ",8380997.8699004948,2831479.0281997062,2044296.7825897075,139515.423396,647666.82221399865,"Summer",223908.97339,109940.76029000001,128892.63935,2474.0443808,56999.462399999997,38487.500680999998,11312.615309999999,30178.818287999999,0]
[97,"2011-08-24","KW60MN21 ",8572049.7973641213,2831418.1722733239,2050396.7776690307,141853.453102,639167.94150229287,"Summer",249612.21129000001,88856.456865,111281.07601999999,2135.9972315,49794.730352999999,37355.062564,8905.3841229000009,49194.891273000001,3019.0088713999999]
[98,"2011-08-03","KW60MN19 ",7885648.132647898,2831321.9007222103,2046434.2310914251,138525.20109699998,646362.46853378497,"Summer",276876.78872999997,88842.652828999999,121783.79178,2337.5928001000002,55175.479603,36764.009005,8900.7929237999997,30332.476065999999,0]
[99,"2011-07-05","KW60MN17 ",8864829.7667779159,2830393.2810582062,1985692.1449322233,142900.800502,701800.3356239826,"Summer",241709.41633000001,87824.836945000003,114641.38352,2200.4970349999999,55221.079172999998,38874.105349999998,8810.9394823000002,43054.488588,0]
[100,"2011-07-28","KW60MN17 ",9074957.42793254,2830240.3269188516,2010502.1081435874,144353.245203,675384.97357226419,"Summer",231235.93723000001,94988.013363999999,131768.02317999999,2529.2362616999999,56543.466700999998,39926.950248000001,9649.6460896000008,34469.603493000002,0]
[101,"2011-07-05","KW60MN19 ",8569301.1773546543,2828517.660930384,1983293.9823509881,144459.42421299999,700764.25436639588,"Summer",258245.59776,77413.863744000002,114367.37145000001,2195.2374792000001,54947.481754,36856.789595000002,8001.9131533,42296.24396,0]
[102,"2011-08-02","KW60MN17 ",8419960.7450882792,2827788.2589658611,2044352.6796044756,137615.612169,645819.96719238535,"Summer",257271.16485999999,106463.11691,126183.23942,2422.0384967,56543.466700999998,37553.566658999996,10354.517185999999,30280.241645999999,0]
[103,"2011-08-26","KW60MN20 ",8521787.107045738,2826376.9915726758,2022271.3485438216,135701.38073100001,668404.26229785418,"Summer",255594.58703,88610.14215,117013.36169000001,2246.0262389,55996.271862000001,37707.614194000002,9111.8052895000001,46059.536840000001,357.04420886999998]
[104,"2011-10-25","KW60MN09 ",7253240.4673369871,2825898.94696406,2119270.8194713104,114665.484576,591962.64291674946,"Summer",232627.50881,65726.893710999997,137294.77898,2635.3202027000002,50524.323471000003,43732.314763000002,10126.419867000001,19170.103298999999,0]
[105,"2011-07-07","KW60MN13 ",8427603.3739547133,2825582.2707255431,1988413.4455717998,143494.99626599997,693673.82888774353,"Summer",209438.88858999999,90187.346873999995,139308.74390999999,2673.9774809,55403.477453,43247.800539000003,10315.918600999999,41713.487912999997,0]
[106,"2011-08-22","KW60MN14 ",8854288.0700222421,2823263.4208623562,2045708.925888285,136578.54365800001,640975.95131607121,"Summer",219781.11494999999,92418.470209000006,127664.18888,2450.4647490000002,56634.665841000002,40966.073170000003,11134.980562000001,42730.393115999999,0]
[107,"2011-08-04","KW60MN19 ",8014462.8287335467,2817743.7239218578,2005480.6836351024,125962.630678,686300.40960875526,"Summer",269269.31242999999,86078.856950000001,125015.11195999999,2399.6167415999998,55266.678742999997,37639.508120999999,8594.2998489000001,31888.081392,0]
[108,"2011-08-29","KW60MN16 ",8884580.1601253282,2817732.6113769985,1955256.2082609036,141215.92139400003,721260.48172209493,"Summer",237579.9999,96394.845656999998,145664.32707,2795.9704424000001,54582.685193999998,41406.731030000003,11878.003311,39662.740189999997,0]
[109,"2011-08-24","KW60MN13 ",8853107.9909964595,2817650.7410978558,2046757.7308978345,136526.662576,634366.34762402112,"Summer",224670.36436000001,95354.483127,123761.19190000001,2375.5482308999999,49384.334222999998,42854.709504999999,11988.415577,40083.350247000002,0]
[110,"2011-09-06","KW60MN21 ",7617564.5791344428,2817543.3565401235,2063510.1435910929,131171.72762999998,622861.48531903035,"Summer",248652.52101,73067.385553,121334.89633,2328.9764254000002,55449.077022999998,37558.175927999997,9133.6236475000005,37397.463134999998,3053.2304963000001]
[111,"2011-08-26","KW60MN13 ",8856261.4677816145,2816879.1587573816,2027796.6430353834,135400.383787,653682.13193499821,"Summer",177333.08389000001,98176.527186000007,136400.35894999999,2618.1521560000001,55722.674442000003,42567.720080999999,10580.501738999999,45640.172529000003,0]
[112,"2011-08-29","KW60MN17 ",8830994.6890516877,2814326.0889401468,1947447.1333108975,140974.11105599999,725904.84457324923,"Summer",266581.86379999999,94429.646449000007,134815.85133,2587.7381448000001,56634.665841000002,40618.450775999998,10379.667211,38859.446838999997,0]
[113,"2011-07-30","KW60MN18 ",8467636.1385164559,2812261.7518569957,2003011.7780963762,141264.997581,667984.97617961955,"Summer",279237.02757999999,80901.143119,103927.15468000001,1994.8415546000001,55175.479603,31202.339904,7984.8282010000003,38837.471186000002,0]
[114,"2011-08-01","KW60MN19 ",7982248.3877607556,2811634.2446616786,2079384.0336559461,129861.557535,602388.6534707325,"Summer",247557.38094999999,73214.888372000001,121257.60695,2327.4928857,55175.479603,36076.379427,8763.6460585999994,27765.907981,0]
[115,"2011-07-28","KW60MN19 ",8826040.2540835012,2811018.314379069,2002927.495063514,142648.18189199999,665442.6374235549,"Summer",263984.45006,79932.697834000006,122467.78696,2350.7218231000002,56543.466700999998,38655.966779000002,8639.7242876,36650.585765000003,0]
[116,"2011-08-02","KW60MN18 ",8338297.5057967398,2810356.5757404431,2032912.7968798154,133911.32039100002,643532.45846962801,"Summer",270445.41499999998,100471.90332,122004.39692,2341.8272304000002,56771.464549999997,36458.158200999998,9696.9191979999996,30139.321915,0]
[117,"2012-04-02","KW60MN09 ",7301678.1794987768,2807343.3924585977,2103099.8507965486,132002.17580570481,572241.36585634435,"Summer",223668.57654000001,72179.500501000002,105060.56720999999,2016.5969697999999,55950.672292000003,34932.569624999996,7696.6542178,7467.6597125999997,0]
[118,"2011-10-28","KW60MN08 ",7342498.4982270701,2806428.38731584,2032889.3619539598,120357.509001,653181.51636088046,"Summer",277786.64451999997,62091.386850000003,132421.53849000001,2541.7802354,57683.455949000003,42400.328670000003,9365.9058650999996,19170.103298999999,1831.5142378999999]
[119,"2011-08-04","KW60MN14 ",8345009.2630744763,2806252.3362658899,2006337.2110882411,130868.55660100002,669046.56857664871,"Summer",224695.01663999999,94490.827042999998,141367.52402000001,2713.4949692,56406.667991000002,40367.070024000001,11758.489904,32550.991130999999,0]
[120,"2011-08-26","KW60MN21 ",8326157.4198618252,2803842.0192314899,2011168.5732483722,139983.49348800001,652689.95249511767,"Summer",254010.14259999999,89707.679514999996,106863.96490000001,2051.2124911999999,55129.880033000001,36622.945126999999,9237.0272229000002,48064.660316000001,3052.8205720999999]
[121,"2011-08-29","KW60MN18 ",8728152.7816392537,2802702.1766862078,1944293.7009156968,142211.12445399998,716197.35131651105,"Summer",273194.49433999998,87500.063693999997,127935.14745,2455.6656939999998,56543.466700999998,39355.227094000002,9753.9435281000005,39501.746460000002,0]
[122,"2011-07-29","KW60MN15 ",9143618.0647026617,2801822.0636335518,2006394.2143966495,142535.58805600001,652892.2611809026,"Summer",205028.45097000001,103880.86715999999,135303.57727000001,2597.0998556,51253.916590000001,43297.441215999999,8899.6552811000001,36729.986708999997,0]
[123,"2011-10-26","KW60MN10 ",7206646.1295148777,2801256.4748675562,2083949.6168024065,110338.73063499999,606968.12743015005,"Summer",211411.67537000001,69606.425594999993,144169.23233,2767.2726769999999,57090.661540000001,42901.572800000002,10683.377125000001,19170.103298999999,0]
[124,"2011-07-28","KW60MN16 ",9027580.7437096853,2801169.6428077752,1998953.6846316126,142312.03302100001,659903.92515516211,"Summer",199274.62289,93001.731306999995,135974.60552000001,2609.9799836000002,55905.072721999997,40375.441929000001,10828.162446,34884.705110000003,0]
[125,"2011-08-25","KW60MN12 ",8863222.5964492206,2801014.384661397,2054961.8304046211,138894.874644,607157.67961277592,"Summer",175685.70512999999,98455.985406000007,134047.16522,2572.9835119999998,48609.141535000002,40748.318163000004,12104.841097,45078.964336999998,0]
[126,"2011-09-12","KW60MN15 ",7360275.0207286114,2800730.7871600743,2014767.818458105,106504.62864899999,679458.34005296917,"Summer",214430.21286,95707.026738,157302.94563,3019.3692259999998,54035.490355000002,44546.349686000001,12589.700261,25807.867075999999,0]
[127,"2011-09-09","KW60MN20 ",7697905.2266121721,2799851.6247436656,2016926.7661047776,122941.17602900001,659983.68260988779,"Summer",248324.21958,91932.875356999997,134551.07428,2582.6558516,53807.492506000002,39813.656752000003,8373.6784661000002,42290.611873000002,1730.5880082000001]
[128,"2011-09-07","KW60MN14 ",8059565.9303980777,2799138.2130665425,2076250.8859607575,113043.20008000001,609844.12702578504,"Summer",181573.08584000001,95705.993564000004,147770.88686999999,2836.4050434000001,41176.411637999998,42292.125890000003,11082.527115999999,35510.421978999999,0]
[129,"2012-04-04","KW60MN08 ",7009825.8044816209,2797820.9822090063,2137036.087216849,120951.93433114642,539832.96066101082,"Summer",189214.01123999999,55108.196359000001,100830.12183,1935.3952062999999,49794.730352999999,34413.958885,7781.8690577999996,7467.6597125999997,0]
[130,"2011-07-07","KW60MN18 ",7987553.5503283599,2795931.8180436902,1990297.5941272422,142132.25448199999,663501.96943444829,"Summer",220730.47162999999,74189.110109999994,122980.89636,2360.5707597000001,54901.882184000002,38322.702326999999,8284.6985722999998,26611.183185999998,0]
[131,"2011-07-06","KW60MN21 ",8411330.2011914421,2795819.1912409402,1983471.5351079132,145974.74243399999,666372.91369902738,"Summer",240029.63772999999,69812.605609999999,117827.57504,2261.6547492,55357.877883000001,36181.500251999998,7959.1906155999995,45389.399400000002,265.39075265999998]
[132,"2011-08-01","KW60MN15 ",8030005.7193806767,2795040.5396211259,2084643.5477812202,129370.591462,581026.40037790616,"Summer",224236.79788999999,94774.337618000005,131243.59567000001,2519.1700784,55950.672292000003,40268.916011000001,11505.019095,28068.738168,0]
[133,"2011-09-12","KW60MN19 ",7214414.77029444,2794063.4461297751,1987591.3264677178,112058.21247,694413.90719205746,"Summer",284386.78993999999,76994.428966000007,133235.18091,2557.3977871000002,54856.282614000003,40817.914784000001,9076.4164825000007,28121.536429,0]
[134,"2011-09-06","KW60MN14 ",7716246.5514547303,2792703.4379953058,2057561.2546214883,114006.93768100001,621135.24569281761,"Summer",175064.14115000001,94703.437479,148732.08001000001,2854.8547741000002,53488.295515999998,42397.137907999997,11181.705164000001,33389.751807000001,0]
[135,"2011-07-30","KW60MN17 ",8547846.9292523488,2791962.9178903392,1991017.5609731814,140383.58241200002,660561.77450515772,"Summer",262131.93588999999,83267.430640000006,105155.04468000001,2018.4104284,55084.280463000003,31645.729942000002,8010.7298835000001,38454.537122000002,0]
[136,"2011-07-05","KW60MN16 ",8815438.4577666093,2790887.1847273502,1954731.4821360866,146911.82587299999,689243.87671826384,"Summer",238309.95548999999,86098.929120999994,115751.11559,2221.7979129999999,54947.481754,39447.098449999998,9239.3228235000006,42650.799655000003,0]
[137,"2011-08-23","KW60MN14 ",8981822.2530289609,2790356.9770323508,2012712.4700141056,139642.01341300001,638002.49360524525,"Summer",231391.66208000001,98590.659516999993,132290.90349999999,2539.2727473,55084.280463000003,42681.726061000001,11314.463978,42391.164502,0]
[138,"2011-09-13","KW60MN17 ",7543646.4665562948,2789962.6335194958,1991848.9368273034,108774.62238299999,689339.07430919248,"Summer",252013.80578,94866.712666000007,137039.53985999999,2630.4209864999998,53488.295515999998,41701.012708000002,10280.245384,24159.752626000001,0]
[139,"2011-08-02","KW60MN15 ",8284787.6222865703,2789034.7531306753,2023134.3280028899,136384.66584999999,629515.75927778543,"Summer",228666.12216999999,105577.13430999999,132327.70623000001,2539.9791616000002,57364.258958999999,39523.072625000001,12146.466622,29990.033876000001,0]
[140,"2011-08-03","KW60MN15 ",8171322.6111476067,2787961.9473082153,2015281.4796614081,134248.59777299999,638431.8698738073,"Summer",251444.55637000001,100163.70744,143598.64191000001,2756.3204144000001,52530.704548000002,40334.576098999998,11923.163654,27970.848849999998,0]
[141,"2012-04-05","KW60MN09 ",7089971.8744781828,2787955.502047501,2126508.1129637887,128759.40488619449,532687.98419751786,"Summer",229616.54930000001,62663.024342999997,101619.09168,1950.5391775999999,37710.844323999998,34369.243394999998,8290.9606841999994,7467.6597125999997,0]
[142,"2011-07-05","KW60MN20 ",8402794.6561598331,2784070.5194071122,1949018.2912689596,147230.07101599997,687822.15712215286,"Summer",246974.59714999999,74542.818650999994,108974.91468,2091.7313561999999,55084.280463000003,36247.765998000003,7687.3956360000002,42881.830162999999,0]
[143,"2011-09-13","KW60MN18 ",7433282.2074079979,2780847.4123591674,1986185.4258730887,108271.249581,686390.73690507864,"Summer",267642.61148999998,86775.555057999998,133873.47524,2569.6496000000002,53989.890785000003,40740.327338000003,9646.8629285999996,25296.57805,0]
[144,"2012-04-06","KW60MN08 ",6980792.3164294716,2779517.7321261959,2108279.3880758495,134828.2810102829,536410.0630400636,"Summer",235349.15904,58989.084384000002,91436.656659,1755.0912740000001,53761.892935999997,31672.242105000001,7860.2309554000003,7467.6597125999997,0]
[145,"2011-07-06","KW60MN13 ",8738916.0629118159,2779171.842954956,1977419.0593040322,142662.98471799999,659089.7989329237,"Summer",190356.55872,85137.902440999998,127613.48797,2449.4915646999998,54765.083473999999,41944.569578000002,10055.743828000001,40183.918188000003,0]
[146,"2011-08-02","KW60MN14 ",8200520.9794512941,2777522.7180121448,2015608.2005064997,137916.80064300002,623997.71686264477,"Summer",216213.63492000001,106540.61618,130819.09363,2511.0219259999999,57227.460249999996,40434.316551000004,12225.288995000001,30034.928443000001,0]
[147,"2011-07-27","KW60MN18 ",8499293.1952272207,2777068.2464953493,1987734.1218246473,143253.28467600001,646080.83999470202,"Summer",218069.40285000001,84366.992576000004,105337.6608,2021.9156740999999,56680.265411,38410.847812,8318.1371345999996,34859.217670999999,0]
[148,"2011-08-23","KW60MN20 ",8567618.4308106415,2777001.4121336262,2019605.4545820246,145191.95209099998,612204.00546060165,"Summer",253868.00511999999,80811.488387000005,113745.36865,2183.2983758999999,51937.910139,37525.451462999998,8843.8904841999993,42840.232593000001,122.79358015]
[149,"2012-04-04","KW60MN09 ",7002958.4063028656,2772092.4364058366,2105442.0422997153,120628.8151384028,546021.57896771864,"Summer",211399.69897999999,62653.097520000003,110725.02151999999,2125.3239804,49749.130783000001,34692.635629999997,8453.6249372999991,7467.6597125999997,0]
[150,"2011-08-22","KW60MN19 ",8655995.2273299843,2771577.7708080737,2045973.8445315743,139925.78645099999,585678.1398254995,"Summer",239000.49499000001,74087.431677999994,114571.28684,2199.1515562,56634.665841000002,37336.783988000003,8716.7183060000007,43902.886353000002,0]
[151,"2011-07-29","KW60MN20 ",8590969.3383589368,2771394.0526315188,1994197.8803097447,145279.31184799998,631916.86047377368,"Summer",231369.95619999999,86979.283091999998,122540.93472999999,2352.1258662,55631.475301999999,37892.943346,7261.3078953000004,40232.966165999998,0]
[152,"2011-08-02","KW60MN19 ",8084551.4322230397,2770858.6378017673,2009393.6398349728,131310.55543099999,630154.44253579457,"Summer",263269.62923000002,89501.716419000004,123678.07524999999,2373.9528389000002,56133.070571999997,35605.772498999999,9187.2553647000004,30168.709383000001,0]
[153,"2011-07-30","KW60MN19 ",8209836.9117842717,2770076.8171397513,1979586.2469572728,138847.55589399999,651643.01428847876,"Summer",262334.64422000002,78973.269923,104420.01307,2004.3017808,55038.680892999997,30430.594287,7926.5849694999997,38701.074645000001,0]
[154,"2011-09-13","KW60MN16 ",7518588.4908909649,2768471.4759000712,1987956.2718338238,108835.49295200002,671679.71111424733,"Summer",242387.07855999999,96522.719782,143720.29772,2758.6555506,49019.537664000003,42158.027834,12166.19253,24216.383088999999,0]
[155,"2011-09-09","KW60MN13 ",7932540.9501689738,2767849.4376411284,1999986.0462101924,113700.11267,654163.27876093599,"Summer",171772.85996,95440.054975999999,149314.60368,2866.0360906000001,54263.488205000001,44242.538941999999,10802.321709,37653.208594999996,0]
[156,"2011-08-29","KW60MN15 ",8703426.5325056743,2766300.9838893376,1934876.2615204838,135685.947361,695738.77500785375,"Summer",239007.77621000001,97703.513594000004,146129.54102999999,2804.9000446,50980.319171000003,43260.925797999997,12166.883241,39779.568607000001,0]
[157,"2011-07-24","KW60MN18 ",8837523.2861062083,2760621.5486974893,1974937.4513512724,130895.52183099999,654788.57551521726,"Summer",261822.37273999999,71559.384185000003,101872.11761,1955.3959124999999,54856.282614000003,29672.575120000001,7540.4366055999999,39766.766199999998,0]
[158,"2011-08-27","KW60MN17 ",8761920.0483415909,2759624.2253815895,1946153.9661908557,133065.869419,680404.38977173367,"Summer",302222.02798999997,86141.845195999995,109055.05177999999,2093.2695567999999,55357.877883000001,31470.424225999999,8742.3762067000007,45882.942526999999,0]
[159,"2011-09-08","KW60MN13 ",8021078.5971417278,2756655.5821342571,2052892.3256250587,114048.54991100001,589714.70659819874,"Summer",142701.71317999999,96911.188271999999,145120.06112,2785.5234681000002,50113.927342000003,42763.447288000003,10906.476941999999,48404.873677000003,0]
[160,"2011-07-27","KW60MN19 ",8315901.4481298747,2754290.0454187295,1978788.6458457136,144609.06960400002,630892.32996901579,"Summer",233168.97936,76784.874666999996,103420.95228,1985.1251953000001,56087.471001999998,38277.146243000003,8074.3566019999998,35491.376713999998,0]
[161,"2011-07-30","KW60MN16 ",8533399.6264206432,2753402.9058686132,1962038.2698237465,140696.791015,650667.8450298669,"Summer",281637.27604999999,82774.990812000004,104843.36315999999,2012.4278220000001,54673.884334000002,31454.961786,7936.0720952000001,39148.873718000003,0]
[162,"2011-07-11","KW60MN16 ",8512966.6828446202,2753280.2308481787,1937515.24801991,138595.58619200002,677169.39663626894,"Summer",185895.27974,83484.904865999997,127298.1609,2443.4389833999999,55266.678742999997,40918.535153999997,10156.303298000001,23715.002519000001,0]
[163,"2011-09-13","KW60MN15 ",7462541.7295306819,2752285.9478052761,1983234.3028905883,105008.070893,664043.5740216875,"Summer",208371.26243,99491.607870000007,146465.76572,2811.3537474,53944.291214999997,44053.211151000003,12299.398276,24038.380559000001,0]
[164,"2011-07-28","KW60MN15 ",8935662.0281310398,2752222.8531700522,1971571.5456122183,141264.793072,639386.51448583358,"Summer",199014.09933999999,91549.620939999993,134903.57751,2589.4220148999998,55859.473151999999,42319.600645999999,11162.852801999999,31940.953856,0]
[165,"2011-07-27","KW60MN17 ",8588968.5282364804,2751915.2832341501,1970129.0106776836,140133.486707,641652.78584946634,"Summer",215773.96367,93870.294565000004,111960.92603,2149.0466897000001,57045.061970000002,38888.302312,9116.5996398999996,33672.909295999998,0]
[166,"2011-10-28","KW60MN09 ",7296874.9775663018,2751499.1764144618,2008397.0298307922,116896.330218,626205.81636566948,"Summer",213858.32440000001,73994.296612999999,138862.42266000001,2665.4105171000001,57592.256808999999,43154.806301999997,9464.1900495000009,19170.103298999999,0]
[167,"2012-04-06","KW60MN09 ",7070723.3662135294,2751264.6494180248,2078797.1083120066,136026.91686406609,536440.6242419522,"Summer",237623.98397999999,70530.450838000004,100914.90371,1937.0225617000001,53442.695946,32537.216541999998,8287.5155916999993,7467.6597125999997,0]
[168,"2011-07-07","KW60MN12 ",8275167.4431694504,2750352.0415767706,1938289.0910523441,146239.169207,665823.78131742647,"Summer",188077.52614,89656.052966000003,137894.57238999999,2646.8330052000001,55449.077022999998,41590.810608,10242.439086,41141.534133000001,0]
[169,"2011-09-09","KW60MN21 ",7539329.2478010887,2750329.6384560466,1981216.7351650679,127362.96028099999,641749.94300997874,"Summer",252909.56547,86688.077541999999,126058.12132999999,2419.6369031999998,53579.494656000003,38858.989215000001,8209.7970031999994,44763.006909000003,3053.2304963000001]
[170,"2011-09-12","KW60MN20 ",7216540.3647332424,2750297.3815623512,1965558.2460657514,117496.59935600001,667242.53614059975,"Summer",272527.70624999999,71220.051701000004,124586.72691,2391.3940561999998,54445.886484000002,39742.778256999998,9279.6685018000007,28745.890726000001,2035.9110573999999]
[171,"2011-08-23","KW60MN21 ",8359931.2725271741,2748818.2212010203,1993276.6345080545,144187.32496,611354.26173296571,"Summer",250075.94130000001,84756.648491999993,108788.58388999999,2088.1548087000001,51983.509708999998,37363.690844999997,9054.1308783000004,44387.825430999997,2981.7481505000001]
[172,"2011-08-01","KW60MN14 ",7862889.0229988508,2748629.8458057502,2044158.0173184616,130800.62071599999,573671.20777128858,"Summer",193756.42230000001,91617.673825999998,127471.44267,2446.7650598999999,56041.871432,41263.872041000002,11563.201381999999,27678.673753999999,0]
[173,"2011-10-26","KW60MN07 ",7250496.4042454204,2746448.5188913709,1998589.9676862643,109536.31958299999,638322.23162210628,"Summer",300606.46614999999,54527.184783999997,123381.79601999999,2368.2658737000002,57136.261109999999,42234.598229000003,9743.1562388999992,19170.103298999999,3053.2304963000001]
[174,"2011-07-28","KW60MN20 ",8566435.2054473795,2745056.7446344192,1952981.2387359615,141972.04798999999,650103.45790845773,"Summer",235683.77721999999,81916.878194000004,116687.60585000001,2239.7734814,56543.466700999998,38313.17972,8159.7610490999996,38039.573204,0]
[175,"2011-07-11","KW60MN17 ",8484349.8328058533,2745044.0939171538,1929458.2270207554,141220.89645099998,674364.97044539836,"Summer",190425.20568000001,84178.964603999993,122843.36010999999,2357.9308044999998,55175.479603,40255.185592000002,8995.4610298999996,20422.231134000001,0]
[176,"2011-08-01","KW60MN20 ",7733319.89922872,2744294.1176178125,2027075.5501308185,129957.227214,587261.34027299366,"Summer",215240.20887999999,67703.551024,110589.62841,2122.7251620000002,55266.678742999997,35716.044159999998,8400.2302297999995,28532.314471000002,0]
[177,"2011-08-29","KW60MN19 ",8415196.8603476845,2742456.6920611421,1912162.5536090517,142588.97232999999,687705.16612209054,"Summer",253931.56477,78976.671522000004,122101.86933,2343.6981756,56361.068421000004,38224.300391999997,9231.2983812000002,40061.284137000002,0]
[178,"2011-07-24","KW60MN17 ",8894611.146016987,2742177.3675329867,1963817.9039589993,131996.598868,646362.86470598739,"Summer",254909.19844000001,67060.467080000002,100907.07372,1936.8722682,54628.284764000004,29970.774448,7427.2411781000001,39885.682926000001,0]
[179,"2011-07-11","KW60MN18 ",8304586.2358543109,2741707.6494920906,1924342.3934501861,140601.71901700002,676763.53702490451,"Summer",234780.67272,76975.944315000001,120678.62331,2316.3795186000002,55357.877883000001,39174.094331,8371.8094822999992,21576.144378000001,0]
[180,"2011-08-22","KW60MN13 ",8686975.2355507202,2740974.653575277,1985144.9804331283,133024.72314400002,622804.94999814872,"Summer",210777.17053999999,88131.114298,124678.54865,2393.1565390000001,56680.265411,40295.741389000003,10966.467268,43703.928113000002,0]
[181,"2011-07-24","KW60MN19 ",8740826.2029130198,2740861.2457738896,1957634.2630901479,131915.34994499999,651311.63273874193,"Summer",275591.70101999998,71393.550969000004,99267.154964000001,1905.3946616000001,54810.683043999998,29231.907316000001,7446.0325943999997,40661.839700999997,0]
[182,"2011-08-27","KW60MN18 ",8612666.6236931533,2740414.9805403971,1932172.7301641363,129241.14971299999,679001.10066326067,"Summer",310779.07293000002,93579.818503000002,109109.19396,2094.3087949999999,55221.079172999998,31150.186164999999,8539.2257635999995,46183.200947999998,0]
[183,"2011-07-29","KW60MN14 ",9008065.54532432,2739384.6673594904,1959106.9032076872,145468.51694700003,634809.2472048034,"Summer",202232.88628000001,99210.436797999995,133084.60402,2554.5075219999999,50341.925192000002,43548.030986999998,9073.0645000999993,36152.414026999999,0]
[184,"2011-09-10","KW60MN18 ",7303015.3861062126,2738466.3045117809,1964851.0182726565,111017.49226999999,662597.79396912456,"Summer",290713.04700000002,83185.138273999997,128646.97847,2469.3290152,53944.291214999997,35994.682047000002,7508.6232452000004,38487.957987000002,0]
[185,"2011-08-24","KW60MN12 ",8558224.9940160345,2737817.240896923,1986296.1995266599,141181.34709,610339.69428026304,"Summer",176878.98798000001,99089.179483999993,126908.45475,2435.9587246000001,49384.334222999998,41929.040562000002,11301.076364,38526.939546000001,0]
[186,"2011-08-03","KW60MN20 ",7700478.7597548673,2736615.101664491,1983583.5775450799,128415.61456699998,624615.90955241129,"Summer",249677.44550999999,83203.802886999998,118290.47304,2270.5398974999998,54901.882184000002,35935.262387000002,8532.6030587999994,31173.279463999999,0]
[187,"2011-10-27","KW60MN10 ",7243988.2292106673,2736477.5679755774,2024896.1733068151,111696.836197,599884.55847176211,"Summer",197586.87416000001,73440.963808999993,140973.12442000001,2705.9246211999998,46648.360028000003,41837.979073000002,9348.4958721999992,19170.103298999999,0]
[188,"2012-04-05","KW60MN10 ",7045952.519209953,2735147.5493551511,2075283.0547856528,119345.05169943449,540519.44287006347,"Summer",234214.94203000001,70237.905215000006,103049.62626999999,1977.9977359,43228.392284000001,34667.598499,8317.8510317,7467.6597125999997,0]
[189,"2011-09-12","KW60MN14 ",7247010.6694590319,2734729.9269393892,1972854.9726344342,105564.48827099999,656310.46603395476,"Summer",193573.60750000001,96489.637335000007,156808.29316999999,3009.8745632999999,52895.501106999996,44542.540841000002,12518.963276,26961.440241,0]
[190,"2012-04-02","KW60MN10 ",7297493.3077164888,2731089.2145537073,2032734.602186529,129332.54897552198,569022.06339165592,"Summer",222706.58635999999,72077.132750999997,105388.64705,2022.8943354999999,56406.667991000002,35046.090520999998,7842.4468264999996,7467.6597125999997,0]
[191,"2011-08-29","KW60MN14 ",8587256.8462128732,2729327.8067393308,1899303.7066681713,138662.19830499997,691361.90176615969,"Summer",242768.73321000001,93875.391340999995,147279.17550000001,2826.9668336999998,53853.092076000001,43236.880292000002,12130.986559000001,38958.111083999996,0]
[192,"2011-08-08","KW60MN17 ",8689433.0346040465,2729310.8619959215,1919518.7980741304,135973.91230099997,673818.15162079094,"Summer",256842.11338,86124.374437999999,130341.20372,2501.8490139,56862.663690000001,38112.889951999998,9779.4185937000002,35669.012058,0]
[193,"2011-08-26","KW60MN12 ",8526788.4903976079,2729170.6186570968,1969027.4101160155,139591.69323899999,620551.51530208124,"Summer",191392.94028000001,99909.262310999999,134094.08037000001,2573.8840301999999,56133.070571999997,41668.280298999998,10457.616035999999,45876.317208,0]
[194,"2011-10-25","KW60MN10 ",7197561.4708321113,2728738.4096292397,2054791.2587168566,106584.934048,567362.21686438355,"Summer",187652.59750999999,70273.510341000001,138223.46681000001,2653.1460066,52941.100677000002,45498.035628999998,9025.9539115000007,19170.103298999999,0]
[195,"2011-08-03","KW60MN14 ",8085408.5532698799,2728567.9724099841,1979305.4141283911,130986.00200600001,618276.55627559288,"Summer",226086.50343000001,91081.765182999996,142330.91703000001,2731.9869256000002,51801.111428999997,41209.590790000002,11852.528245,27567.701894000002,0]
[196,"2011-07-05","KW60MN15 ",8728541.1607409418,2728420.3252247833,1909197.1771005709,142120.68746400002,677102.46066021232,"Summer",231282.80411999999,86568.597351000004,117055.49909,2246.8350500000001,55038.680892999997,40763.134199,9448.6693555999991,42524.577139000001,0]
[197,"2011-07-26","KW60MN18 ",8410138.1401940901,2727948.2360148309,1966281.223255428,130387.05268699999,631279.96007240261,"Summer",229172.08749999999,83175.706346999999,115171.93927,2210.6808473999999,56497.867130999999,38285.868427000001,8584.0001212000006,35488.980043000003,0]
[198,"2011-07-27","KW60MN16 ",8665590.8415514454,2725066.7313451068,1950606.9176365002,141471.55856999999,632988.255138607,"Summer",197247.38063,92854.831038999997,114271.00036000001,2193.3876733000002,56452.267561000001,40378.799139000002,10549.297832,34061.173271,0]
[199,"2011-08-28","KW60MN18 ",8191581.17404286,2722649.9976320597,1879616.2933118739,124783.97180500001,718249.73251518595,"Summer",291432.40402000002,78261.673546999999,103395.0545,1984.6280973999999,55312.278313000003,29881.083762999999,7938.7536810000001,43186.037833000002,0]
[200,"2011-08-04","KW60MN13 ",8188592.9234850146,2722148.9747449402,1955183.1109226043,130443.09194100001,636522.77188133588,"Summer",231871.93646,90826.918349,133012.53575000001,2553.1241992999999,55859.473151999999,40219.371222000002,11730.475458000001,32881.190251,0]
[201,"2011-08-08","KW60MN18 ",8597286.1684059054,2721130.6612670375,1913362.5672295776,130156.49425600001,677611.59978145966,"Summer",265376.91191999998,80156.293976000001,120230.06292,2307.7695754000001,57181.860679999998,37155.972188,9212.1209785999999,35652.563320000001,0]
[202,"2011-07-11","KW60MN15 ",8508640.0211961139,2720879.5706936815,1921804.2960867728,132657.99326400002,666417.28134290874,"Summer",202493.02828,84002.181031999993,130947.20425,2513.4809598000002,54947.481754,42520.973050000001,10541.293704,34724.921886999997,0]
[203,"2011-09-12","KW60MN21 ",7066920.9354574839,2718717.3373260819,1946507.8818929808,117543.14666799999,654666.30876510113,"Summer",271887.25562000001,69201.728405000002,113592.05909,2180.3556582000001,54126.689494999999,38700.411910000003,9077.6557002999998,30125.233577999999,3053.2304963000001]
[204,"2011-07-06","KW60MN22 ",8073491.0014861105,2718473.45454873,1929047.3677797096,142166.64123299997,647259.44553602033,"Summer",235380.35063999999,67818.186707000001,119986.12123999999,2303.0872091000001,55631.475301999999,36675.221590000001,8066.6165698000004,47873.665675999997,3042.6996786999998]
[205,"2011-07-07","KW60MN19 ",7897103.5564669641,2718171.4087730329,1936097.8041217681,142069.23609900003,640004.36855226487,"Summer",234186.82402,69007.496570000003,120344.09039,2309.9582884000001,54901.882184000002,38248.250500000002,7862.3487992,27322.912155999999,0]
[206,"2011-09-10","KW60MN17 ",7382053.1965133883,2715125.3414520118,1941024.664969523,107184.81736,666915.85912248911,"Summer",269732.34294,85408.034782999996,129400.14826,2483.7858181000001,53761.892935999997,36040.822923,7579.2992852999996,38846.003979000001,0]
[207,"2011-08-08","KW60MN15 ",8605288.6040214337,2712684.4139428139,1924321.5524635869,132944.48211699998,655418.37936222705,"Summer",203979.56309000001,85970.462086,135417.00865999999,2599.2771272999998,57364.258958999999,40623.526087999999,10490.851449,34963.025855,0]
[208,"2011-09-07","KW60MN13 ",7880160.7504567709,2711932.3274398665,2016829.0623978211,113887.265163,581215.99987904541,"Summer",150961.56349999999,94209.938769,141673.70967000001,2719.3720841999998,40948.413787999998,41735.534273999998,10669.501949,35349.141342000003,0]
[209,"2011-08-23","KW60MN13 ",8752023.9558670092,2710468.6243250575,1950881.6604372961,139637.94283700004,619949.02105076099,"Summer",235218.27724,90417.616064000002,127012.39047,2437.9537304999999,55585.875732,41837.574141999998,11096.686702000001,43196.101317000001,0]
[210,"2011-08-17","KW60MN17 ",8660426.7953735851,2710353.3956196597,1992171.9389862954,134559.67798199999,583621.77865136391,"Summer",229433.69209999999,99357.680921000006,114897.54402,2205.4139366999998,55540.276163000002,36302.594776999998,9743.4203347999992,40386.259702000003,0]
[211,"2011-08-12","KW60MN17 ",8355420.7469524844,2708477.7286661556,1964060.759272363,135476.584306,608940.38508779253,"Summer",264172.04482000001,93257.71415,119850.90175,2300.4917233000001,56817.064120000003,36811.616581000002,8570.0030552999997,46299.591635999997,0]
[212,"2011-08-08","KW60MN16 ",8710972.1988258567,2708060.791386724,1913097.1507601871,137159.852205,657803.78842153668,"Summer",224152.35905,86173.965169000003,134509.44706000001,2581.8568332,57045.061970000002,39104.369028000001,10287.680689000001,35255.984433999998,0]
[213,"2011-07-26","KW60MN17 ",8565301.1830846518,2707842.7355491421,1950964.7449023586,127321.99879699999,629555.99184978369,"Summer",194052.65244999999,88183.746704999998,120623.63991,2315.3241333999999,56589.066271000003,39937.916203000001,9486.2928176000005,35365.542681999999,0]
[214,"2011-07-06","KW60MN12 ",8495408.4770770911,2706722.8480349807,1934048.2677887732,138983.55649800002,633691.02374820772,"Summer",193002.22777,81442.932658000005,126213.22886,2422.6141323000002,54901.882184000002,40986.739104,9872.1567713999993,40921.525517000002,0]
[215,"2011-07-28","KW60MN14 ",8776426.609329503,2706239.2965466236,1937919.2771124137,140710.51334200002,627609.50609220995,"Summer",193315.55342000001,89615.522991999998,129903.58963,2493.4491806000001,55859.473151999999,42961.777485999999,11277.389021999999,33676.845668000002,0]
[216,"2011-07-26","KW60MN16 ",8709876.9452271219,2705864.7411576021,1947406.8172407337,130736.779777,627721.14413986856,"Summer",175237.81998999999,89529.268253000002,122716.32944,2355.4924999999998,56497.867130999999,40150.261016999997,10475.554221,35855.553199000002,0]
[217,"2011-08-04","KW60MN20 ",7733711.1552494038,2705437.9601108865,1931111.8527466853,121982.737205,652343.37015920132,"Summer",263549.67534999998,83568.508381000007,115221.35732,2211.6294078000001,55221.079172999998,36507.573808000001,8382.9014967999992,33788.005894000002,0]
[218,"2011-08-25","KW60MN22 ",7793564.1615309427,2703741.8505639723,1954321.1776066863,136664.00986200001,612756.66309528588,"Summer",261476.21270999999,82009.402675000005,105831.39279,2031.3926689,53989.890785000003,37686.990489000003,8635.2956083999998,51823.144013999998,3053.2304963000001]
[219,"2011-08-21","KW60MN18 ",8343137.2943670489,2703605.8778050239,1961505.1576944799,133958.49862299999,608142.22148754413,"Summer",257078.91732000001,72067.488725999996,95317.490055999995,1829.5823707,55403.477453,30873.975381,7965.2038684999998,40273.526860999998,0]
[220,"2011-08-27","KW60MN16 ",8651052.5303355884,2702359.6380041209,1906536.5117363213,126614.92232300001,669208.20394479972,"Summer",296042.65655999997,86002.214101000005,109237.18596,2096.7655519999998,55312.278313000003,31483.36565,8814.7383955999994,46281.117065999999,0]
[221,"2011-09-13","KW60MN14 ",7293967.3407004448,2702225.6864147522,1946467.1531641381,104840.45608800001,650918.07716261386,"Summer",177297.74823999999,99619.064226000002,148650.57863999999,2853.2903869000002,54217.888635000003,44834.93449,12429.780231000001,24919.009045999999,0]
[222,"2011-08-05","KW60MN17 ",8362973.6122124195,2699138.1924802801,1892030.8254141021,131402.41882999998,675704.94823617826,"Summer",237711.78257000001,93894.473721999995,128771.62152,2471.7214904000002,54947.481754,36973.305158000003,8449.1082260000003,32051.811461000001,0]
[223,"2011-08-25","KW60MN11 ",8551505.4539347738,2698972.2916844906,1976835.5548588585,141258.43547099998,580878.30135463225,"Summer",162022.299,95120.373680000004,128965.32792,2475.4396099000001,49338.734653,40471.739713000003,12045.866522,44840.339613999997,0]
[224,"2012-04-12","KW60MN08 ",7006681.8973399689,2698472.4011334823,2029147.8719642246,129021.64011109264,540302.88905816549,"Summer",238159.81609000001,52779.814904999999,101395.36461,1946.244823,54856.282614000003,34484.171734000003,8972.4186910999997,7467.6597125999997,0]
[225,"2011-09-13","KW60MN20 ",7273929.1970201833,2695711.745678992,1932303.7566645129,125215.73432,638192.25469447917,"Summer",263977.62458,84190.417889000004,122743.64201,2356.0167541999999,44915.576371000003,39249.845419999998,9226.0774139999994,27419.649861000002,2137.6854072000001]
[226,"2011-08-12","KW60MN18 ",8249925.4963846328,2695503.3102555536,1954442.176335474,138278.287782,602782.84613807965,"Summer",259055.81635000001,90068.899856000004,113330.68737,2175.3387290000001,56589.066271000003,36391.077621999997,8330.8137227999996,46634.624269,0]
[227,"2011-07-30","KW60MN20 ",8081274.9234758588,2695245.6187090953,1920508.9221474945,138390.20481900001,636346.49174260057,"Summer",249461.39358,76751.707060000001,94232.183447000003,1808.7503299,55540.276163000002,30328.543986000001,7368.2462890999996,39510.714945,0]
[228,"2011-09-13","KW60MN19 ",7259295.4144972069,2694248.909919512,1925190.2870917795,112655.65201400001,656402.97081373248,"Summer",281695.70598999999,83367.27089,130878.97398,2512.1713061,53077.899386999998,39839.224102,9141.3839939000009,26639.604391000001,0]
[229,"2011-07-11","KW60MN19 ",8112924.6939022681,2693653.1137742675,1893300.6807424498,142825.83647400001,657526.59655781765,"Summer",236662.54493,68935.177624999997,117566.05312,2256.6349371000001,54901.882184000002,38044.221942999997,7794.8825359000002,22685.103590999999,0]
[230,"2011-08-17","KW60MN18 ",8526796.4008644093,2692709.4713105159,1972305.31480155,135318.42261800001,585085.73389096605,"Summer",255810.81912999999,90932.170308000001,108571.98969,2083.9973666999999,55221.079172999998,36030.781110000004,8877.8369232000005,39924.232876000002,0]
[231,"2011-07-30","KW60MN15 ",8478918.4376524892,2692317.8803702593,1914123.4916958266,141559.002698,636635.38597643247,"Summer",268480.40756999998,85540.947839,106746.88635,2048.9652136999998,54765.083473999999,31713.855392000001,7996.6515577999999,39793.462680999997,0]
[232,"2011-09-06","KW60MN13 ",7639300.5346158305,2692303.4653135343,1987989.8466898724,113280.43384,591033.18478366197,"Summer",157272.67520999999,90255.472066000002,136651.15757000001,2622.9661384999999,56041.871432,42333.353427000002,10857.375479,32283.825761,0]
[233,"2011-10-28","KW60MN10 ",7238889.5990329999,2692163.3362787296,1974054.8542793717,112131.04115399999,605977.44084535807,"Summer",217724.86439999999,75496.384950000007,140819.07847000001,2702.9677686999999,57729.055519000001,43015.906697999999,9576.5931901000004,19170.103298999999,0]
[234,"2011-07-24","KW60MN16 ",8814645.4590228014,2691818.8468577811,1930771.9505890252,127476.702601,633570.19366775604,"Summer",228590.72391,68046.542195999995,99950.592652000007,1918.5129838,55129.880033000001,30293.016303,7315.2849684000003,39704.75776,0]
[235,"2011-08-28","KW60MN17 ",8266395.5828415127,2691276.9023604649,1855573.5344696047,124501.09968499999,711202.26820586016,"Summer",296098.09769999998,73798.482078000001,104639.35625,2008.5119883,55631.475301999999,30048.447351999999,7863.8521118999997,42635.014919000001,0]
[236,"2011-08-24","KW60MN22 ",7924073.0586105268,2690960.4522222001,1957466.7528395532,135430.83426199999,598062.86512064713,"Summer",226044.91462,79252.941848000002,103534.48358,1987.3043845,50797.920891000002,37226.957998999998,8648.4800722,52530.667992000002,3053.2304963000001]
[237,"2011-08-12","KW60MN15 ",8247677.3071454698,2690784.7813198157,1951173.7857385322,136764.565233,602846.43034828361,"Summer",236088.82292000001,103034.96303,123278.86734,2366.2901975,56817.064120000003,39256.442584999997,9538.2383860000009,47273.751205,0]
[238,"2012-04-04","KW60MN10 ",7006497.345085755,2690594.1979340971,2038811.9433646116,111198.20327514347,540584.05129434215,"Summer",205098.29556999999,70299.101876999994,114303.41714000001,2194.0099008000002,49475.533363000002,35226.959767,8633.7194995999998,7467.6597125999997,0]
[239,"2011-08-02","KW60MN13 ",7945462.2248957418,2687340.0818058173,1951719.0814135708,134365.79645600004,601255.20393624646,"Summer",188445.42384,104904.88048000001,128330.57236000001,2463.2557222,57181.860679999998,40181.266385000003,11989.167233,29999.627295999999,0]
[240,"2011-08-28","KW60MN19 ",7982482.9879193697,2687299.6820761273,1855017.875536469,126826.51164300001,705455.29489665839,"Summer",280439.78555999999,76647.377405000007,98039.234995999999,1881.8252126,55038.680892999997,29301.105963999998,7894.2231031000001,43592.602319999998,0]
[241,"2011-07-05","KW60MN21 ",8248863.1499262154,2686495.6550876061,1886068.6165571129,145881.64691499999,654545.39161549346,"Summer",240247.94714999999,63244.590264999999,106174.86195999999,2037.9854267000001,54719.483904000001,35456.986096000001,7498.6891886000003,44739.641559000003,265.39075265999998]
[242,"2011-08-17","KW60MN16 ",8591342.9494924378,2686213.7895578519,1979208.8046002707,134979.01162899999,572025.97332858108,"Summer",199734.56920999999,98457.248351999995,122960.81495,2360.1853047,55540.276163000002,36826.819660000001,10944.567650000001,41861.475928,0]
[243,"2011-07-26","KW60MN19 ",8150512.4963782877,2684369.9776314162,1929545.2653410935,131769.44944699999,623055.26284332259,"Summer",246872.35271000001,76307.379704999999,113275.90216,2174.2871479999999,56178.670141000002,37853.886541,8290.1430039000006,35960.038611000004,0]
[244,"2011-07-27","KW60MN15 ",8672247.6095325183,2683098.7097784393,1922746.1905862617,139825.54942800003,620526.96976417722,"Summer",194418.33504999999,89740.175478999998,119146.50215,2286.9710452999998,56361.068421000004,42036.164190000003,10762.666743,34987.822626000001,0]
[245,"2011-08-05","KW60MN18 ",8193259.2232253887,2683091.8953067958,1891804.7307691406,123181.25844800001,668105.90608965489,"Summer",244604.44863,87663.194269,122142.03191999999,2344.4690811,54856.282614000003,36960.021399999998,8205.6933645000008,30398.541657999998,0]
[246,"2011-10-26","KW60MN11 ",7157231.6252311682,2682894.0353906183,1988403.1541922474,103857.54261999999,590633.33857837063,"Summer",198115.78539999999,71477.540116999997,145374.26576000001,2790.4028278000001,57273.059820000002,43292.999389999997,10490.729558999999,19170.103298999999,0]
[247,"2011-08-02","KW60MN20 ",7776453.7835038332,2679427.0468290458,1948788.7175825629,124854.489445,605783.83980148262,"Summer",257045.43643,81389.169062000001,115331.08369,2213.7355628999999,56087.471001999998,35042.072960999998,8880.7419745000007,30274.639245999999,0]
[248,"2011-07-11","KW60MN14 ",8505077.1323293839,2679335.1986536826,1891138.7197052529,141978.93880799998,646217.54014042986,"Summer",192810.20280999999,81613.849795000002,137575.49549999999,2640.7084476999999,54947.481754,42830.193981999997,10914.704535000001,34327.868450000002,0]
[249,"2011-08-01","KW60MN13 ",7748526.0436620358,2678612.7138105957,1998909.3813797836,127782.27936,551921.05307081202,"Summer",202139.55523999999,90547.570997999996,121204.58963,2326.4752386999999,56133.070571999997,40276.679277000003,11245.392828,28347.906717999998,0]
[250,"2011-08-05","KW60MN16 ",8364785.7036108021,2678137.8329884056,1883855.3557436801,129489.257272,664793.21997272538,"Summer",242033.05439,93699.350112,127848.21634,2453.9970849000001,54491.486054000001,37763.930041,8865.7291562999999,31825.492340000001,0]
[251,"2011-07-31","KW60MN17 ",8129014.6993621457,2677998.4990362944,1900900.8553658689,131896.13039100001,645201.51327942568,"Summer",239814.66685000001,68909.320967000007,110361.64043,2118.3490209000001,54810.683043999998,28912.119401,7677.4615793000003,29205.997775,0]
[252,"2011-08-27","KW60MN19 ",8364641.965256324,2677606.3198524765,1883817.2711240901,132209.90499899999,661579.14372938639,"Summer",287342.93362000003,88738.221944999998,105578.33816,2026.5353829999999,55084.280463000003,30752.997619999998,7943.4464563000001,46636.618520000004,0]
[253,"2011-09-09","KW60MN12 ",7725258.9644373488,2677279.1023396058,1945638.7631538783,112161.622118,619478.71706772759,"Summer",146145.06271,89155.511643000005,149552.12132000001,2870.5951500000001,53579.494656000003,43026.623731,10769.126926999999,38355.171077999999,0]
[254,"2012-04-13","KW60MN08 ",6969566.0629475443,2677007.5535223354,2001315.2084740347,129714.56831502118,545977.77673327969,"Summer",251071.58194999999,51333.656132999997,97239.598914000002,1866.4765070999999,42544.398735000002,35148.304234000003,8085.5027902000002,7467.6597125999997,0]
[255,"2011-08-12","KW60MN16 ",8333053.6888193944,2676640.9878273159,1939501.3034156449,134525.36350599999,602614.32090567087,"Summer",250001.49692000001,98681.387593000007,122165.63589999999,2344.9221504000002,56543.466700999998,37673.500543000002,9176.1024054999998,46318.027832,0]
[256,"2011-07-29","KW60MN21 ",8395517.6962341592,2676127.0841372702,1927613.8350936589,143856.93373699998,604656.31530661124,"Summer",217326.24142999999,84001.543132000006,114769.3691,2202.9536686000001,55722.674442000003,36890.675690999997,7312.5018074,41502.405946999999,1170.8290836000001]
[257,"2011-07-24","KW60MN20 ",8459422.5239694156,2675125.7124910667,1909027.7211200388,127255.512368,638842.4790030279,"Summer",270485.13845999999,71066.185945999998,94919.930502999996,1821.9513688,55129.880033000001,29515.442643999999,7040.8490333999998,41988.034553999998,0]
[258,"2011-09-13","KW60MN21 ",7065589.4631310282,2674821.2431714428,1929028.3064408023,123944.94919099999,621847.98753964028,"Summer",255250.02738000001,76253.322064000007,113407.92576,2176.8212901000002,42681.197444999998,38668.235472,9003.7901987000005,29384.736418,3053.2304963000001]
[259,"2011-07-29","KW60MN13 ",8815742.5546560567,2674352.5960930269,1913180.4811634999,141094.08804499998,620078.02688452671,"Summer",183222.54193000001,94569.166675,132093.93564000001,2535.4920255000002,52074.708849000002,42790.212544000002,8956.8015004000008,37802.644676000004,0]
[260,"2012-04-03","KW60MN08 ",7023319.0182946147,2673818.1482848087,2009267.5958412089,112584.55929194449,551965.99315165542,"Summer",219634.82282999999,57834.500725999998,100787.65866,1934.5801422,54856.282614000003,33951.757586,7700.8069519000001,7467.6597125999997,0]
[261,"2011-09-14","KW60MN15 ",7298714.2522562277,2672224.8573867916,1932711.2238413456,109042.58358899999,630471.04995644616,"Summer",178125.11533,92467.423039000001,153205.54454999999,2940.7211965000001,54810.683043999998,41990.209134999997,12300.312453,22267.558033000001,0]
[262,"2011-08-22","KW60MN20 ",8394199.0927793328,2671848.6963659422,1974544.4153532619,135858.85219100001,561445.42882168014,"Summer",226131.46257999999,71510.690050000005,112848.41667000001,2166.0817293999999,56999.462399999997,37086.903222000001,8437.7724319000008,45506.685882999998,71.849863939000002]
[263,"2011-07-07","KW60MN11 ",8069580.1444895724,2671275.380087012,1894237.2781628235,142675.26723,634362.83469418867,"Summer",181154.52695999999,85968.672109000006,135933.67588,2609.1943548999998,55905.072721999997,41369.397795999997,10083.737958,41535.317003999997,0]
[264,"2011-09-08","KW60MN12 ",7793188.9071341613,2669841.3550979155,1981996.0602197892,112734.87051699999,575110.42436112626,"Summer",126391.12239999999,91547.708845999994,142292.10699999999,2731.2419819000002,45964.366478999997,41458.259242,10851.870102999999,47410.894385,0]
[265,"2011-07-28","KW60MN21 ",8391508.0278008059,2669268.2006832552,1904689.3399476898,140774.397069,623804.46366656537,"Summer",210255.23316,76734.631575000007,108846.83736,2089.2729614999998,56269.869280999999,38069.110102999999,7987.8754580000004,38871.865402000003,1119.9419087000001]
[266,"2011-07-25","KW60MN17 ",8725324.839997489,2668761.0884971996,1919176.425157222,128892.818646,620691.8446939775,"Summer",199014.98962000001,88622.000348000001,124880.94521000001,2397.0414627999999,56725.864979999998,38458.847895999999,8859.9596841000002,40262.357154999998,0]
[267,"2011-08-29","KW60MN13 ",8333669.3045807462,2668264.0235151476,1868702.0458474823,139271.77628300001,660290.20138466533,"Summer",224382.98402,89795.157030999995,136747.33322999999,2624.8121931000001,56452.267561000001,42534.095824999997,11920.136713,40417.250874999998,0]
[268,"2011-07-26","KW60MN15 ",8753707.787112141,2667683.4591938928,1928561.0670544913,126526.116448,612596.27569140145,"Summer",186736.9443,85616.081900999998,123376.57894000001,2368.1657338,56133.070571999997,41676.566744999996,10814.896720999999,35925.430024000001,0]
[269,"2011-09-14","KW60MN16 ",7349647.4469393259,2667019.2633950501,1912856.8697157737,111306.5882,642855.80547927634,"Summer",199213.85066,93940.976179000005,150505.05007999999,2888.8862491999998,54947.481754,40318.070277999999,12009.969838999999,23014.599608,0]
[270,"2011-07-25","KW60MN16 ",8735646.2057870086,2666450.7532399795,1924005.0163632547,129253.001745,613192.73513172474,"Summer",171610.94553999999,86940.943188999998,129143.7046,2478.8634812,56315.468850999998,40014.305246999997,9468.2124282999994,41046.826698999997,0]
[271,"2011-09-10","KW60MN19 ",7193569.9918763461,2663721.310947191,1928248.369295205,105272.750764,630200.19088798575,"Summer",286405.87128999998,75942.529597999994,126684.16606,2431.6535899,53761.892935999997,35347.998294999998,7273.0703063000001,39866.522231000003,0]
[272,"2011-08-16","KW60MN18 ",8125068.6924990928,2663428.4677852169,1970131.6478140159,134376.76980000001,558920.05017120123,"Summer",226101.35203000001,87292.803908999995,107375.78122,2061.0366078000002,54445.886484000002,36116.090081000002,8674.1786033000008,40985.211590999999,0]
[273,"2011-08-23","KW60MN12 ",8476527.8788332306,2663310.2421187279,1924161.6564340256,139176.65489400004,599971.93079070223,"Summer",186033.67592000001,91751.820905999994,126524.3452,2428.5858902,55631.475301999999,40962.917677999998,10915.456190999999,43113.431599000003,0]
[274,"2011-07-27","KW60MN20 ",8082125.5737654706,2663296.4599703429,1916748.5744136062,142236.477831,604311.40772573673,"Summer",214217.69025000001,73338.109198000006,97532.976444999993,1872.1077754,56406.667991000002,37934.899261999999,7710.2703768000001,36838.016163,0]
[275,"2011-07-05","KW60MN14 ",8646627.5001738742,2663033.0950369537,1874772.1777242546,141435.609712,646825.30760069937,"Summer",199398.45663,84835.180940999999,117657.20805,2258.3846208,55221.079172999998,41315.98156,9631.0171941999997,42160.603870999999,0]
[276,"2011-08-21","KW60MN19 ",8166018.4832702288,2662562.4864420258,1937533.683461268,133587.85995499999,591440.94302575768,"Summer",246829.33309999999,69878.510200999997,90519.746935000003,1737.4915463,55221.079172999998,30959.728043999999,7868.4839425,39871.138475,0]
[277,"2011-07-25","KW60MN15 ",8690144.4705624729,2662239.1546034617,1923152.0882633254,131941.41487400001,607145.65146613645,"Summer",171738.37220000001,84737.156377000007,130979.68568,2514.1044281999998,56725.864979999998,41767.863247000001,9935.0927792999992,40941.484702000002,0]
[278,"2011-08-08","KW60MN14 ",8426758.8209550567,2661904.883038491,1891357.1981869687,136196.212616,634351.47223552212,"Summer",196989.14637,87661.886331999995,135910.82965,2608.7558303000001,57181.860679999998,40891.384839999999,10586.921294,34424.213673999999,0]
[279,"2011-08-05","KW60MN15 ",8285472.3993451372,2661257.2332719974,1866990.1476070436,132938.15117700002,661328.93448795355,"Summer",215346.43839,90392.055057999998,132726.47399999999,2547.6333546999999,55357.877883000001,39084.475190999998,9247.7535662999999,31979.799223999999,0]
[280,"2011-08-08","KW60MN19 ",8324622.7470339295,2660390.1816160437,1874835.0007572589,125983.06486799999,659572.11599078507,"Summer",241944.20654000001,77342.947537,119083.57554000001,2285.7631932999998,56543.466700999998,35803.049871000003,8921.6361589000007,37001.498754,0]
[281,"2011-09-14","KW60MN17 ",7334748.9521236187,2660240.0186366257,1896400.0537735212,109068.20177299999,654771.76309010456,"Summer",231195.09031999999,94968.093838999994,144331.48743000001,2770.3871008000001,54445.886484000002,40554.648408000001,9888.5510118999991,22611.593521999999,0]
[282,"2011-10-27","KW60MN07 ",7306660.4662866769,2659588.180590726,1909271.2275626659,110330.94200299999,639986.01102505997,"Summer",323116.50206000003,58912.149096000001,125238.7366,2403.9091302000002,46420.362179000003,40821.290375999997,9495.0079716,19170.103298999999,3053.2304963000001]
[283,"2011-08-22","KW60MN12 ",8421835.9633191619,2659021.2841737522,1927350.5903971007,134360.96404799999,597309.72972865147,"Summer",190292.03460000001,90320.168342000004,127018.35187,2438.0681571999999,57045.061970000002,39499.590048999999,10753.199932,44441.999495999997,0]
[284,"2011-08-21","KW60MN17 ",8382403.8472869284,2657869.4196711592,1923695.5140194399,132308.25050300002,601865.65514871944,"Summer",252771.61442999999,68943.777228999999,96823.158358000001,1858.4830916000001,55357.877883000001,31001.960208,8043.1933239999998,41186.226992999997,0]
[285,"2011-07-31","KW60MN16 ",8207095.8068011133,2655874.8981706137,1875715.7488780092,135419.02298100002,644740.12631160417,"Summer",260389.11697,66929.523963,110414.24666999999,2119.3587773999998,54901.882184000002,28509.625005000002,7763.1504365000001,30728.060545,0]
[286,"2011-08-22","KW60MN21 ",8187218.8115428211,2655080.2329551019,1945899.77729685,140395.32254800003,568785.13311025174,"Summer",219946.89785000001,69280.455277000001,109507.91383999999,2101.9620691,56999.462399999997,36715.604484000003,8590.3587299999999,47538.667335999999,2930.9175177000002]
[287,"2011-08-24","KW60MN11 ",8245224.0596337616,2654452.4141987618,1934711.7488356214,135072.29336399998,584668.3719991406,"Summer",159059.38282999999,91773.307063,127168.16125,2440.9436903000001,49475.533363000002,41931.959054999999,10925.085521999999,40419.18662,0]
[288,"2011-08-28","KW60MN16 ",8265726.5119132604,2654418.2682201425,1824840.4707487598,122327.09577500001,707250.70169638249,"Summer",296408.38156000001,75578.595367999995,104506.09102000001,2005.9540136999999,55266.678742999997,29688.284986999999,8272.0219840999998,42690.107219999998,0]
[289,"2011-07-27","KW60MN14 ",8617555.0881103445,2652617.0779140233,1909643.9891680439,137709.33982999998,605263.74891597929,"Summer",175985.64477000001,84339.281667999996,116448.15244000001,2235.1772657000001,56224.269711000001,42392.082469000001,9904.8030479999998,34669.764853000001,0]
[290,"2011-08-17","KW60MN19 ",8240242.9889485808,2652505.2291270196,1943872.4593065891,137619.37047100003,571013.39934943046,"Summer",239248.67120000001,88943.306121000001,108562.67475000001,2083.8185701000002,54993.081323999999,35981.096209000003,8438.0771571999994,40176.235188999999,0]
[291,"2011-08-04","KW60MN12 ",7929790.5488012396,2652044.1171819363,1904981.3846304992,131312.37232699999,615750.3602244372,"Summer",199426.89259999999,89038.676248000003,128602.80253,2468.4810751,56087.471001999998,38802.758826999998,11586.888724,31600.993334999999,0]
[292,"2012-04-06","KW60MN10 ",7015944.0603704965,2651478.2464524615,2000238.5300300873,128101.63623422176,523138.08018815255,"Summer",207137.52481999999,73011.542755999995,100451.91946999999,1928.1357582000001,53488.295515999998,32845.645558999997,8324.1080653999998,7467.6597125999997,0]
[293,"2011-09-10","KW60MN16 ",7396599.6200719113,2648714.3641008073,1886140.459006042,105140.93672699999,657432.96836776519,"Summer",272296.18040000001,86269.055712000001,127513.97908999999,2447.5815302000001,54035.490355000002,35518.017041999999,7764.2880791999996,38105.178796,0]
[294,"2011-08-03","KW60MN13 ",7972096.7899373518,2648549.0709692449,1923347.4168079519,130172.75164700001,595028.90251429309,"Summer",214281.09091999999,95341.215763,141382.36906,2713.7799140000002,50068.327771999997,40684.728942000002,11577.564119000001,27516.245673000001,0]
[295,"2012-04-12","KW60MN09 ",7058763.0574462712,2647318.5772020542,2003912.893986024,124207.65966888952,519198.02354714088,"Summer",167652.61129999999,61313.476148000002,115973.96709999999,2226.0754615000001,54172.289064999997,35161.790929000003,9385.8670884999992,7467.6597125999997,0]
[296,"2011-09-11","KW60MN18 ",6947286.4032682264,2646364.4032952399,1902776.5631085313,102208.86512999999,641378.97505670844,"Summer",334724.20876000001,68595.729451000007,115083.46694,2208.9826552999998,53442.695946,32985.084802999998,7870.8608019000003,34091.975757,0]
[297,"2012-05-15","KW60MN17 ",8039745.8575820038,2645604.1047113077,1885584.0785219045,135395.54683820324,624624.47935119993,"Summer",208146.58326000001,88388.533622000003,126035.49039000001,2419.2025112000001,42134.002606000002,38783.727534999998,9177.0199682000002,21356.368259999999,0]
[298,"2012-04-02","KW60MN07 ",6889951.0660737446,2645190.1838823212,1955330.1107507451,122211.7955300739,567648.27760150237,"Summer",243382.83579000001,55345.572435000002,92694.810874000003,1779.2410577000001,55859.473151999999,32481.069325,6669.5509668000004,7467.6597125999997,1933.2885876]
[299,"2011-07-31","KW60MN19 ",7749708.3278284399,2644919.4517860059,1912015.1260349145,102373.152218,630531.17353309121,"Summer",269092.18906,67347.188045000003,104927.2534,2014.0380628,55084.280463000003,28782.09203,7541.6961375000001,28594.364742000002,0]
[300,"2011-08-11","KW60MN17 ",8548064.2527941968,2644515.6991327242,1927677.3648923365,130391.26340800001,586447.07083238743,"Summer",211626.72044,93437.083066000007,115731.23157,2221.4162468,56406.667991000002,36746.635684000001,9251.5524796000009,45054.637738999998,0]
[301,"2011-07-31","KW60MN18 ",7921515.1430113064,2644426.3457546681,1916154.8610621388,81258.702148000011,647012.7825445293,"Summer",267366.37026,69646.838273000001,110636.2101,2123.6192796,55038.680892999997,28952.331872999999,7733.8967727999998,28234.451185999998,0]
[302,"2011-08-17","KW60MN15 ",8576308.6928869132,2644210.1248351494,1952335.1484865868,133850.33244000003,558024.64390856272,"Summer",205663.39034000001,95207.039761000007,121343.14073,2329.1346733999999,54400.286914999997,38796.332084000001,11213.843564000001,41547.396652000003,0]
[303,"2011-08-18","KW60MN17 ",8608796.755557254,2643949.9897256219,1935486.1332029516,134790.51742000002,573673.33910267043,"Summer",226217.31103000001,98252.111151999998,120536.33813,2313.6484095999999,52165.907987999999,36605.809300000001,9693.9125714999991,39981.022366999998,0]
[304,"2011-08-27","KW60MN15 ",8516853.0019740742,2643008.6114330152,1861623.3785021317,128250.95059000001,653134.28234088363,"Summer",290101.42449,82812.797256000005,108838.26891,2089.1084936000002,55585.875732,31723.896711000001,8663.8788755999994,45843.499753999997,0]
[305,"2011-08-29","KW60MN20 ",8230528.662410981,2642927.8385701999,1856033.6872429359,139589.95901799999,647304.19230926409,"Summer",255278.50575000001,78457.875321,117937.42161999999,2263.7632119999998,56452.267561000001,37401.950206000001,9014.2118157000004,40970.897394,611.07015908999995]
[306,"2012-04-05","KW60MN11 ",6967981.7927355804,2642737.4091338199,1993302.3169320328,115811.55598645769,533623.53621532943,"Summer",233321.43984000001,67748.787320999996,102923.50435,1975.5768744,48153.145836000003,35138.311081,8422.5073680000005,7467.6597125999997,0]
[307,"2011-08-12","KW60MN19 ",7980096.9870104212,2642693.4053975092,1922013.0675433506,135930.39956399999,584749.93829015852,"Summer",248833.55525,81822.891524000006,112751.26302,2164.2169027,56361.068421000004,35625.825819999998,8022.0250471999998,46737.607295000002,0]
[308,"2011-07-11","KW60MN13 ",8352633.1917523127,2641091.7158418731,1859606.0755511224,144786.564465,636699.07582575048,"Summer",193711.8553,84531.275227999999,137497.44665,2639.2103302999999,54582.685193999998,41465.303072000002,10585.031994999999,34556.188681,0]
[309,"2012-06-21","KW60MN18 ",8206076.5102068838,2641019.7756812023,1879707.532075084,127254.38698972088,634057.85661639739,"Summer",205783.53578000001,84493.769255000007,118686.02976999999,2278.1324559,55312.278313000003,40778.529313999999,8598.7488434000006,24400.198308999999,0]
[310,"2011-08-09","KW60MN18 ",8337812.6383607229,2639905.3309229109,1898955.0661377979,134262.26533200004,606687.99945311295,"Summer",255492.48035999999,82710.183665999997,117620.61649,2257.6822597999999,55996.271862000001,37787.917913999998,8894.2311637000003,40478.117446999997,0]
[311,"2011-09-13","KW60MN13 ",7193150.2790720109,2639033.8522317722,1904971.3939049745,108822.17259300001,625240.2857337977,"Summer",158917.33014000001,95616.072102999999,146101.88524,2804.3692024000002,52576.304118,44168.145743000001,12192.317677999999,25331.617381,0]
[312,"2011-07-25","KW60MN14 ",8531513.9618388619,2638244.408529392,1910182.9046644666,131688.21643900001,596373.28742592537,"Summer",163747.64087,80496.193660999998,126580.3012,2429.6599439000001,56680.265411,42053.651786000002,10160.671032,40855.159784000003,0]
[313,"2012-04-05","KW60MN07 ",6798072.620008111,2637965.7216333263,2000780.1756590477,118147.37229994516,519038.17367433326,"Summer",173201.21919,56140.826956999997,84220.169607999997,1616.5735950999999,47286.754007000003,32818.098099000003,7283.7272392000004,7467.6597125999997,1627.9655384]
[314,"2011-08-18","KW60MN18 ",8465106.5456537269,2637584.3527740277,1927850.5116362278,133541.762445,576192.07869280013,"Summer",238316.98235000001,87085.267752999993,106258.38188,2039.5885593999999,54582.685193999998,36466.400428000001,8656.7686104999993,40896.853284999997,0]
[315,"2011-08-26","KW60MN11 ",8183780.0255785929,2637280.8158415514,1911593.8312875989,134544.63366800002,591142.35088595247,"Summer",172566.31161,98466.831319999998,122249.54268,2346.5327086000002,56087.471001999998,41428.617727999997,10368.758030999999,46301.703027000003,0]
[316,"2012-05-15","KW60MN18 ",7983036.259083108,2637061.3444805406,1894538.7427433857,133934.05424521386,608588.5474919409,"Summer",190737.71523999999,79438.612641,116295.83947000001,2232.2536771999999,42498.799164999997,37154.279899000001,8435.1145467999995,21356.368259999999,0]
[317,"2011-07-25","KW60MN18 ",8633983.4658910744,2636051.3259594059,1906231.652565548,129077.297724,600742.37566985819,"Summer",217609.23396000001,75987.592359999995,110950.70973,2129.6559784000001,56634.665841000002,37071.269866000002,7838.1942111999997,40012.799464999996,0]
[318,"2011-08-02","KW60MN12 ",7688726.1210346157,2636033.1254978501,1914080.8323464785,134609.705869,587342.58728237171,"Summer",184967.31099,100874.35580999999,125102.05249,2401.2855313999999,57090.661540000001,39194.221685999997,11781.080233000001,28944.055833999999,0]
[319,"2011-08-29","KW60MN21 ",7999164.9178846134,2635554.1959473109,1863040.279451509,142650.62247099998,629863.29402480158,"Summer",266941.25085000001,74178.114763999998,108697.64632,2086.4092973000002,56680.265411,36643.218058999999,9101.3024115999997,42747.798214000002,3053.2304963000001]
[320,"2011-07-30","KW60MN14 ",8368793.1328474097,2634659.4977953006,1875729.4993654033,138978.85881100001,619951.13961889734,"Summer",216952.99145,87528.939532999997,105307.04337,2021.3279844000001,55038.680892999997,32224.884965000001,7738.5286034000001,40591.971594000002,0]
[321,"2011-08-16","KW60MN17 ",8214742.0970341759,2634146.7134111337,1947025.1905421952,129853.87418900001,557267.64867993828,"Summer",223796.41654000001,93321.783773999996,111273.70776,2135.8558005999998,54400.286914999997,36406.180839000001,9582.0985674999993,41448.675283999997,0]
[322,"2011-10-25","KW60MN07 ",7011174.7563806493,2634065.1643273095,1930126.399620445,107276.67667299999,596662.08803386427,"Summer",246451.29256,51149.796204999999,120171.54328,2306.6463134999999,50706.721750999997,43379.110274999999,8307.8170926999992,19170.103298999999,3053.2304963000001]
[323,"2011-09-12","KW60MN13 ",7091757.7514518611,2633525.8928003311,1907406.865660531,103693.416056,622425.61108380032,"Summer",170662.07641000001,89588.151119999995,150477.18106,2888.351314,52758.702397000001,43674.900882000002,12261.937335000001,28299.868170000002,0]
[324,"2011-08-03","KW60MN21 ",7582429.2187015787,2632956.8727774587,1906469.7817855317,133427.47132099999,593059.61967092706,"Summer",239338.44112,76525.226708999995,119476.47401000001,2293.3047274999999,55312.278313000003,35121.314413,8685.9816437000009,31801.522568,1476.1521327999999]
[325,"2011-08-01","KW60MN21 ",7557237.6135861482,2632861.3660242632,1936552.810378121,133243.71468900001,563064.84095714241,"Summer",212305.48491999999,67456.089051999996,99823.762703999993,1916.078532,55449.077022999998,35109.020383000003,8278.4212234000006,28923.108014000001,1374.3777831]
[326,"2011-09-07","KW60MN12 ",7689055.3950603753,2632613.7004155666,1961368.6180074804,113240.64253200001,558004.43987608608,"Summer",129619.73422,89059.892460999996,138233.46865,2653.3379880000002,41222.011208000004,40703.682243000003,10472.892948999999,35269.849661,0]
[327,"2011-08-11","KW60MN18 ",8451935.5261755642,2631333.8207591521,1917893.9430247012,131900.185681,581539.69205345097,"Summer",233024.63738,89884.194751000003,110798.88225,2126.7417086,56497.867130999999,36337.594810000002,8627.0273852999999,45690.478500999998,0]
[328,"2011-08-09","KW60MN16 ",8529015.6076851841,2630753.6503513819,1890691.4217634678,137171.40962299999,602890.81896491407,"Summer",210524.81849000001,89919.579744999995,125335.09277,2405.7586495999999,55722.674442000003,38034.966635999997,10011.030414999999,38924.519458000002,0]
[329,"2012-04-04","KW60MN11 ",6963096.2926599588,2630270.6495295456,1993904.3707147194,112989.41238744048,523376.8664273856,"Summer",204760.57201,74308.866670999996,114311.04111999999,2194.1562402,49429.933792999997,34995.719980000002,8767.3146166000006,7467.6597125999997,0]
[330,"2011-08-18","KW60MN16 ",8666826.8958110139,2629500.4519399134,1928354.5887984247,136156.502355,564989.36078648898,"Summer",204711.62779,98212.427962999995,126204.09523000001,2422.4388159,50433.124331999999,37453.455061000001,10924.19166,39817.662461,0]
[331,"2012-04-02","KW60MN11 ",7156304.6438695751,2628866.328854851,1950597.6117334764,120802.69707288859,557466.02004848619,"Summer",206549.80209000001,69472.783051000006,104741.39386,2010.4705609,56725.864979999998,34777.838943000002,7953.7885060999997,7467.6597125999997,0]
[332,"2011-08-04","KW60MN21 ",7629781.191197522,2628718.0322899739,1877461.4575674562,122807.476205,628449.09851751779,"Summer",251450.00404,80899.589342000007,110851.33440000001,2127.7485071999999,55677.074871999997,36201.348379000003,8610.1049528000003,35000.577297999997,1577.9264826000001]
[333,"2011-09-14","KW60MN14 ",7120874.6475494392,2628703.7649694979,1911748.9099872587,109633.426395,607321.428587239,"Summer",142367.45535,90103.315948999996,154494.10399,2965.4545968000002,54901.882184000002,42417.155953000001,12253.384701000001,22078.754664,0]
[334,"2011-08-09","KW60MN17 ",8449757.7118239105,2627475.2135697892,1888824.2790206843,132673.67379900001,605977.26075010467,"Summer",218074.36298000001,89142.732745999994,122240.02426999999,2346.3500063000001,55859.473151999999,37930.879755000002,9301.9134754999995,39497.385403,0]
[335,"2012-06-21","KW60MN17 ",8210650.1167546976,2626463.8026139061,1870164.4358227875,126549.64418971856,629749.72260139999,"Summer",190084.47213000001,94270.473427999998,129456.15122,2484.8607732999999,55950.672292000003,41649.659896999998,8862.2959140999992,25928.607673999999,0]
[336,"2012-04-03","KW60MN09 ",7012720.1532242727,2625491.3670735639,1986193.3243831757,108264.3256906298,531033.71699975838,"Summer",179116.16680000001,68088.730389999997,110400.62432,2119.0973015,55357.877883000001,34380.697989,8175.5780033999999,7467.6597125999997,0]
[337,"2011-10-27","KW60MN11 ",7185516.4308593506,2625229.6044154996,1936302.6067949797,110447.903886,578479.09373452025,"Summer",181999.33929999999,76563.105458999999,140754.73741,2701.732767,46009.966049000002,42492.392310000003,9786.8742146999994,19170.103298999999,0]
[338,"2011-07-28","KW60MN13 ",8562481.7003012132,2624986.0481307148,1884354.1337531745,140893.70773099997,599738.20664654032,"Summer",176991.27987999999,86227.143888000006,127190.01686,2441.3632004000001,56178.670141000002,42370.254402999999,11017.397084,33074.486611,0]
[339,"2012-05-15","KW60MN16 ",8046816.5484568421,2624790.4217655347,1868437.99902457,134761.71300746681,621590.70973349782,"Summer",181256.31565999999,94153.099753999995,137305.43476,2635.5247362999999,40766.015507999997,39596.562521,9771.4009224000001,21356.368259999999,0]
[340,"2011-10-25","KW60MN11 ",7096967.2666291269,2624751.1065583075,1964418.9334364836,101324.80694900001,559007.36617282394,"Summer",168057.40263999999,71299.029234000001,139251.69372000001,2672.8824245999999,56497.867130999999,45938.401843,9993.4172717000001,19170.103298999999,0]
[341,"2011-08-11","KW60MN16 ",8566179.9080200847,2624205.8389768749,1920984.5557915948,134161.97459599999,569059.30858928,"Summer",195745.06455000001,96706.817515999996,120417.35722999999,2311.3646171999999,56406.667991000002,37181.243915999999,9816.7576454999999,45078.743395999998,0]
[342,"2011-08-20","KW60MN18 ",8128290.6409303723,2624057.4393204539,1927784.7886519739,130903.71043499999,565368.94023348007,"Summer",235643.53443,81494.274802,102687.49496,1971.0467655,55266.678742999997,32409.819119,7701.7583729999997,40983.648777000002,0]
[343,"2012-04-13","KW60MN09 ",6943359.2892810395,2623804.9149500467,1987761.7013422002,126198.34793939329,509844.86566845328,"Summer",163818.34396,60499.208337999997,108134.66725,2075.6031317000002,33196.486901999997,36077.719705000003,8478.0757869000008,7467.6597125999997,0]
[344,"2011-07-24","KW60MN15 ",8643747.4579359591,2623057.5852557379,1883287.9794897155,128638.93213500001,611130.6736310221,"Summer",251583.83223,68344.088187000001,96455.968664,1851.4350274000001,54947.481754,30357.465565999999,7196.0966021000004,39739.968047000002,0]
[345,"2011-10-28","KW60MN11 ",7153720.0690241298,2621714.0911196684,1919968.8798965511,108453.135134,593292.07608911744,"Summer",184392.58210999999,76812.977633999995,141681.5183,2719.5219677999999,57729.055519000001,42544.481462000003,9527.2276323999995,19170.103298999999,0]
[346,"2011-08-05","KW60MN14 ",8134560.3999001235,2620959.1022898974,1848448.3698685076,127880.763223,644629.96919838991,"Summer",210242.11212999999,89593.280031999995,131225.08682,2518.8148083000001,54673.884334000002,40536.628687999997,9174.6803516,32061.231123000001,0]
[347,"2011-09-06","KW60MN12 ",7452989.0057150526,2620546.8442311706,1935400.3388886175,113080.705829,572065.7995135528,"Summer",129172.91954,87437.162215000004,136745.66467,2624.7801657,55813.873582,40524.067352999999,10687.826118999999,30266.878444999998,0]
[348,"2011-07-05","KW60MN22 ",7926401.6785035832,2619803.5820027008,1841664.3430159367,142043.355301,636095.88368576404,"Summer",229474.21045000001,62584.183387999998,107434.92277,2062.1718068999999,54810.683043999998,36135.066734,7604.4086798999997,44976.820871000004,3042.6996786999998]
[349,"2011-07-07","KW60MN20 ",7787617.6892227465,2619082.8615927929,1866527.5120500922,141214.439587,611340.90995570039,"Summer",230466.28997000001,66713.515140999996,112300.34785999999,2155.5617605000002,55449.077022999998,36982.725909000001,7364.4270606,36560.245497000004,0]
[350,"2011-08-16","KW60MN19 ",7872138.0622065747,2618923.578564778,1928582.3569975453,136844.17948299999,553497.04208423244,"Summer",241779.96044,84698.289443000001,103414.85689,1985.0081964000001,53989.890785000003,35083.673628999997,8326.0600018000005,41180.980664000002,0]
[351,"2011-08-11","KW60MN19 ",8224432.1115597719,2618606.0754542905,1909332.8597524876,133922.01496499998,575351.20073680312,"Summer",251321.66589999999,76923.443666000006,105414.11468,2023.3831769000001,56269.869280999999,36421.504157000003,8281.3465899999992,45973.606237,0]
[352,"2011-07-11","KW60MN20 ",7901062.3868165296,2618461.6864430793,1847413.7307272423,141434.665591,629613.29012483673,"Summer",218421.93262000001,60269.856631000002,112532.93906,2160.0262585,54856.282614000003,37460.149608,7474.8596423999998,31143.562826000001,0]
[353,"2011-07-24","KW60MN21 ",8312628.1937875608,2617823.7773275529,1870416.7510144243,131501.49594499997,615905.53036812868,"Summer",259431.65239,65393.106301,97603.471579999998,1873.4609022,55266.678742999997,29216.578534,6910.7108593000003,43329.165108000001,916.39320871999996]
[354,"2012-06-21","KW60MN16 ",8144069.3662976697,2617778.4895050218,1862114.1204651447,130333.05045099303,625331.3185888842,"Summer",171262.27364999999,96072.683459000007,136371.98066,2617.6074457,57364.258958999999,42526.504883000001,9800.2618287999994,35145.460307000001,0]
[355,"2011-07-29","KW60MN12 ",8582115.7434525453,2616364.4128717044,1871198.5740025984,143480.32689899998,601685.51197010616,"Summer",164178.18674,90397.691718999995,130180.70228,2498.7682507,55950.672292000003,41938.100605,8902.9869481999995,36668.873061999999,0]
[356,"2011-08-16","KW60MN16 ",8186093.378934145,2615955.2893658062,1943426.0968233463,124497.05451900001,548032.1380234597,"Summer",194467.63962,93978.835647999993,117082.11868,2247.3460025999998,53853.092076000001,36759.492148999998,10700.685543,40857.584647000003,0]
[357,"2011-08-18","KW60MN15 ",8484176.5420591068,2615805.7193176276,1917752.1024308112,137236.57535,560817.04153681651,"Summer",174191.04122000001,95398.411487999998,125537.33925,2409.6406926,49885.929492000003,39138.997909999998,11245.941333999999,39741.452608,0]
[358,"2011-07-26","KW60MN14 ",8759027.6410199739,2615792.6740037426,1889717.3607098637,126647.79098300001,599427.52231087908,"Summer",170786.85342,86798.668904999999,122839.87761,2357.8639594000001,55449.077022999998,42815.602522000001,11055.914408000001,36384.702426000003,0]
[359,"2011-08-26","KW60MN22 ",7817712.7903047763,2615677.4962126645,1872201.3708415504,130410.54444400001,613065.58092711389,"Summer",238391.43732999999,82776.787215999997,95591.871985999998,1834.8490257999999,54947.481754,35855.563832,8649.8614945000008,49693.326464999998,3053.2304963000001]
[360,"2012-06-01","KW60MN16 ",7791456.6014845176,2615390.1991728302,1903962.659174033,133905.96298814341,577521.5770106538,"Summer",142009.01157,84446.624077,123061.77422000001,2362.1231788,56406.667991000002,43012.672533999998,8778.9534445000008,24489.217510999999,0]
[361,"2011-07-28","KW60MN22 ",7994124.6051919246,2614632.7149063535,1868189.8468273235,140206.08179999999,606236.78627902991,"Summer",221999.20572999999,74048.047353999995,99898.740483000001,1917.5177014999999,55768.274012000002,37155.365038000004,7838.5395670999997,41117.021618999999,3053.2304963000001]
[362,"2011-07-06","KW60MN11 ",8212828.4157898743,2614236.557178413,1865490.4022630311,141051.62899699999,607694.5259183821,"Summer",152798.07381999999,78216.514376000006,124031.13402,2380.7296655,55449.077022999998,40704.105557000003,9796.5644905999998,41633.240384999997,0]
[363,"2011-07-29","KW60MN22 ",8025688.0038409168,2613134.0404253984,1886121.2510583173,143639.016497,583373.77287008124,"Summer",200441.57887999999,85228.498758999995,108289.22464,2078.5698010999999,55221.079172999998,35951.530709999999,7107.6448991999996,42132.526160000001,3053.2304963000001]
[364,"2011-08-05","KW60MN19 ",7892012.2499206616,2611763.4175396278,1855118.4762395902,119485.52274399999,637159.41855603748,"Summer",207826.85607000001,80933.912240000005,118341.44391,2271.5182635000001,54081.089925,36115.762659,7843.0698215000002,28880.666439000001,0]
[365,"2011-08-23","KW60MN22 ",7754493.0488904621,2611038.625823996,1898976.4431778183,139090.336484,572971.84616217739,"Summer",232414.47747000001,78277.433061000003,99676.079587999993,1913.2438116999999,50706.721750999997,36868.488898000003,8589.0788816000004,47974.765871000003,3053.2304963000001]
[366,"2011-07-15","KW60MN16 ",8557897.2513048649,2610898.837825615,1869795.9663149561,132626.16478600001,608476.70672465872,"Summer",192494.42889000001,85744.158483000007,118153.45660999999,2267.9099200999999,54901.882184000002,41087.322209999998,7980.1151116000001,40049.739590999998,0]
[367,"2011-07-15","KW60MN17 ",8572100.4117128216,2610858.7881362201,1866167.1864197149,133022.31975499997,611669.28196150507,"Summer",199468.59799000001,83066.596455999999,112471.74335999999,2158.8516307,55540.276163000002,39760.597749,7580.7416534000004,41139.009377000002,0]
[368,"2011-08-21","KW60MN20 ",7998652.5701193549,2610665.2432149034,1903188.709218624,130127.96470500001,577348.56929127953,"Summer",235826.12666000001,67323.849245999998,88278.373445000005,1694.4692487,55494.676592999997,31260.475213999998,7517.1758794999996,41206.610131000001,51.466723322]
[369,"2011-07-30","KW60MN21 ",8009911.640519537,2610435.7382529927,1864544.5391322633,137524.60293300002,608366.59618772962,"Summer",253138.54766000001,73280.632282999999,90746.755434999999,1741.8488867000001,55357.877883000001,29875.834059000001,7320.5871944,41508.294863000003,1221.7162585000001]
[370,"2011-08-19","KW60MN17 ",8461243.3224378675,2609891.7360849292,1894144.5012925076,135913.76540599999,579833.46938642149,"Summer",227743.04996,91276.193048000001,120134.91819,2305.9433088999999,55403.477453,37422.186368000002,8849.3146004999999,39946.099435999997,0]
[371,"2011-07-25","KW60MN19 ",8431621.2304304745,2609093.9808219625,1879364.31173323,133901.55476999999,595828.11431873229,"Summer",196138.35644,68842.829893000002,106900.82987,2051.9201001000001,56452.267561000001,36526.012866999998,7852.3131664000002,40569.539708999997,0]
[372,"2011-09-11","KW60MN21 ",6879032.6767229401,2608530.1845437041,1888025.2537701484,113919.127368,606585.80340555578,"Summer",265268.09636000003,66100.014028000005,101364.71802,1945.6565734999999,53625.094226000001,32164.962487000001,7611.4580003999999,34269.749799999998,3053.2304963000001]
[373,"2012-05-31","KW60MN17 ",7945010.6839229297,2606881.5577338589,1911478.751100868,132743.32925348371,562659.47737950739,"Summer",132834.19695000001,86533.962732999993,106931.36530999999,2052.5062161000001,55905.072721999997,40889.086951999998,7650.0057970999997,28240.193453,0]
[374,"2011-10-06","KW60MN08 ",7068010.1943828352,2606571.3144345833,1954520.6576959724,113842.045835,538208.61090361094,"Summer",188323.8052,54326.614114999997,119502.86371000001,2293.8112676000001,56771.464549999997,40871.920280999999,8306.5778749000001,19170.103298999999,224.65274199999999]
[375,"2011-07-25","KW60MN13 ",8382135.4427360361,2606130.2114082258,1890500.4117645645,127685.605194,587944.1944496613,"Summer",175456.55335999999,81271.806635999994,122135.36513999999,2344.3411148,56178.670141000002,41040.816151999999,9878.3934898000007,40011.795435,0]
[376,"2011-08-28","KW60MN21 ",7650116.8851493243,2605576.4908544566,1830403.3876044196,130158.82398899998,645014.27926103701,"Summer",294454.46023999999,76045.146401999998,93248.875639999998,1789.8761167,55768.274012000002,29380.156129999999,7832.1606431,42414.220064000001,3053.2304963000001]
[377,"2011-08-27","KW60MN20 ",8220228.2091936581,2605468.9598950194,1848751.9109876754,127493.024655,629224.02425234404,"Summer",265798.42781000002,84525.032802000002,101960.95497999999,1957.1011114,55631.475301999999,30640.116010999998,7741.2508187000003,47311.089634999997,407.5214593]
[378,"2011-08-12","KW60MN14 ",8022940.3956366908,2605373.9206155399,1888306.9139880412,132613.06493600001,584453.94169149862,"Summer",198794.04113999999,97018.230207999994,125930.45417,2417.1863815000002,56634.665841000002,40565.531389000003,9367.8154792999994,46965.447584000001,0]
[379,"2011-09-23","KW60MN17 ",7204090.7720875777,2605082.9149107379,1881901.8779641767,108738.55092199998,614442.48602456099,"Summer",214898.99838999999,94666.734907000005,142930.99406,2743.5051721,55859.473151999999,42921.683757999999,9740.1496124000005,30217.333901999998,0]
[380,"2012-05-15","KW60MN15 ",7917512.1545700338,2605033.6785450228,1854425.0875753236,136460.61469510198,614147.97627459711,"Summer",151154.79671,98869.666226000001,141583.98514,2717.6498566999999,40811.615078000003,40879.364779000003,11085.415239,21356.368259999999,0]
[381,"2011-07-15","KW60MN18 ",8455460.3703399021,2604951.5420247111,1862217.0576192942,131783.78932899999,610950.69507641706,"Summer",222894.48848,73771.335158000002,112087.42217000001,2151.4747342000001,55403.477453,39606.732555000002,7305.7368969999998,41396.170054000002,0]
[382,"2011-09-11","KW60MN17 ",6956459.542450171,2604653.3060660991,1863880.6304433739,101651.87372600001,639120.80189672508,"Summer",289359.48190999997,68968.970277999993,116727.80278,2240.5450458999999,53169.098527000002,33158.695272999998,7909.3578116999997,34265.672984999997,0]
[383,"2011-09-09","KW60MN11 ",7537203.350154181,2604407.0311016543,1903192.3634838797,113844.150909,587370.51670877426,"Summer",129040.8613,88166.642296999999,142286.44368999999,2731.1332769999999,53807.492506000002,42887.139834000001,10553.949977,39563.752269999997,0]
[384,"2011-09-08","KW60MN22 ",7345576.3352828585,2604290.4104205798,1917782.6596623249,127187.11666599999,559320.63409225526,"Summer",228344.99596999999,70713.884963000004,106477.30306999999,2043.7906668999999,53214.698097,37548.462031000003,7904.0758998000001,43418.837241000001,3053.2304963000001]
[385,"2011-07-05","KW60MN13 ",8469233.2549230456,2604001.6503180433,1835355.1339149582,139605.76981,629040.74659308523,"Summer",193243.40891999999,82815.149615000002,114557.66379999999,2198.8900672,55312.278313000003,40613.356087,9391.2387251,44410.926785000003,0]
[386,"2011-09-14","KW60MN18 ",7173605.3351059435,2603964.9572811387,1853242.2001388588,105054.03064,645668.72650227987,"Summer",245283.29790000001,80480.559477999996,138152.30522000001,2651.7800873000001,54354.687344999998,39925.651485000002,9295.2095109000002,21806.735371999999,0]
[387,"2011-08-20","KW60MN17 ",8295589.1836476661,2603937.8724501347,1912301.3261774634,131129.33742499998,560507.20884767105,"Summer",237041.91029,78184.545442999995,103887.48172,1994.0800472999999,55266.678742999997,32933.406045999996,7676.4255129000003,40349.503569,0]
[388,"2011-10-26","KW60MN20 ",7207025.7434860012,2603731.9569274108,1874638.549062348,109942.18925900001,619151.21860606258,"Summer",256490.32551,66558.611392000006,133542.02004,2563.2874456,56680.265411,40431.185405999997,7833.0341897999997,19170.103298999999,3053.2304963000001]
[389,"2011-08-28","KW60MN20 ",7863631.3027812522,2602430.9819822041,1805729.8483441942,124770.74179499999,671930.39184301009,"Summer",284744.79917000001,76457.178643000007,95039.378867000007,1824.2441339,55631.475301999999,29409.142301,7769.6106215999998,44002.983692000002,509.29580915000003]
[390,"2011-09-08","KW60MN11 ",7592841.1421297546,2602336.6594590428,1933872.6042533615,115847.07174100001,552616.98346468143,"Summer",110313.88042,87661.474990999995,140239.43617999999,2691.8417591000002,41495.608627000001,41293.788309000003,10592.101629000001,47008.479126999999,0]
[391,"2012-05-15","KW60MN19 ",7809037.7626801115,2601451.9000932309,1875289.9496743469,135737.49387946349,590424.45653942053,"Summer",199308.06138999999,70267.788518999994,111780.06471000001,2145.5751266000002,42589.998305000001,36475.898356999998,8123.8271213999997,21356.368259999999,0]
[392,"2011-07-27","KW60MN13 ",8442505.6705390159,2601228.5068607056,1870496.0133922542,139870.89373500002,590861.59973345126,"Summer",180226.81257000001,88000.600197000007,110839.29081000001,2127.5173352000002,56589.066271000003,42015.586693999998,9813.1618825000005,34239.315973999997,0]
[393,"2011-09-11","KW60MN19 ",6867650.9764252352,2600361.7379630818,1867409.4041507519,107029.92680100001,625922.40701132978,"Summer",303634.20319999999,69433.822922000007,109575.93811,2103.2677687,53442.695946,32653.858925,7532.8997235999996,33042.314566000001,0]
[394,"2011-08-01","KW60MN12 ",7567110.7769192662,2600295.8452913146,1934167.4732532026,124736.71984400001,541391.65219411184,"Summer",189555.71986000001,86640.262327999997,119916.68091,2301.7543289,56041.871432,39037.084245999999,11099.530809,29113.828674,0]
[395,"2011-08-09","KW60MN19 ",8132049.9663255764,2600140.1047232873,1867890.6940017091,136255.353286,595994.05743557832,"Summer",227419.28472,74722.195600999999,115067.01604,2208.6668865000001,55813.873582,38140.074052000004,8619.7545993000003,42249.804274000002,0]
[396,"2011-09-10","KW60MN20 ",7192339.0789917223,2600034.6308557233,1880940.2229636675,109456.398031,609638.00986105553,"Summer",264285.30118000001,75091.107703999995,119238.12444,2288.7296996,53761.892935999997,34671.892629000002,7388.9270044000004,42473.248468999998,1832.3623579]
[397,"2011-10-06","KW60MN09 ",7088436.2242025621,2599058.2411408937,1954302.9430765712,114601.37548199999,530153.92258232262,"Summer",149810.68554000001,59129.200732999998,126936.33021,2436.4937832000001,56771.464549999997,40822.841039999999,8846.5517548000007,19170.103298999999,0]
[398,"2011-08-09","KW60MN15 ",8444246.7708131261,2598265.1989271007,1871799.2993327058,133841.37754299998,592624.52205139492,"Summer",212169.33564,88581.899390000006,129000.12496,2476.1075255999999,55540.276163000002,40725.610175000002,10303.871779999999,38699.570520000001,0]
[399,"2011-10-25","KW60MN20 ",7176239.0739439307,2597797.8925180407,1908147.7467702734,109176.68341100001,580473.46233676712,"Summer",241194.27264000001,61410.144570999997,128271.56309,2462.1230621999998,55996.271862000001,41997.093477000002,7946.0264669999997,19170.103298999999,3053.2304963000001]
[400,"2011-08-21","KW60MN16 ",8306445.9958964419,2597363.4456855184,1889682.2186906028,129075.37882299999,578605.84817191563,"Summer",227456.13596000001,63596.593990000001,97413.009749999997,1869.805061,55221.079172999998,31160.413304000002,8135.2611052000002,40398.029434999997,0]
[401,"2011-08-11","KW60MN15 ",8475463.7603489291,2597217.8199810944,1902857.7889829848,132420.928648,561939.10235010961,"Summer",185481.90354999999,95419.733749999999,123497.25998,2370.4821597,54400.286914999997,39017.035394999999,10194.719046,45013.409827000003,0]
[402,"2011-09-11","KW60MN20 ",6899599.1560553955,2595573.8305729539,1871713.6975623956,111058.26536900002,612801.86764155829,"Summer",283447.55489999999,71833.144685000007,106767.14953,2049.3541577000001,53488.295515999998,32580.443026000001,7738.4879729000004,31868.726204999999,1934.1367077]
[403,"2011-08-20","KW60MN19 ",7801425.6608958105,2594248.0163171934,1918021.5213114175,124655.59732100001,551570.89768477576,"Summer",227430.52979999999,78351.988675000001,100803.62602,1934.8866296000001,54765.083473999999,31889.091552000002,7431.4463919,41706.607634,0]
[404,"2011-08-19","KW60MN18 ",8338467.0816532578,2594196.0597780687,1881420.1022783313,133125.57518699998,579650.38231273752,"Summer",226579.87765000001,86080.261295000004,116281.69924,2231.9822610000001,55859.473151999999,36739.158109999997,8485.6956214999991,41409.958116000002,0]
[405,"2012-04-17","KW60MN08 ",6983479.0204894878,2594135.700531411,1943024.3137395817,120030.38716530148,531080.99962652754,"Summer",210179.55934000001,51730.928290999997,101461.84570999999,1947.520902,35658.863677000001,34354.511263,9278.8271196000005,7467.6597125999997,0]
[406,"2012-05-14","KW60MN17 ",7708211.9360621329,2593834.1926066158,1840771.8260493868,136865.80976334531,616196.55679388356,"Summer",170970.77046999999,78289.908272000001,123017.67118999999,2361.2766384000001,50387.524762000001,38160.818925,8865.3042332999994,21356.368259999999,0]
[407,"2011-08-02","KW60MN21 ",7615305.2390947808,2593563.3847644809,1878040.0098814126,136760.11038900001,578763.26449406811,"Summer",235786.74236,76240.488536999997,114655.95516,2200.7767319,56041.871432,34618.007866,9065.4869887999994,31136.740749000001,1425.2649578999999]
[408,"2011-10-26","KW60MN19 ",7231206.1156265736,2593445.3343159733,1874188.0622222803,107138.77247000001,612118.49962369329,"Summer",254304.42259999999,68298.673534999994,138711.96025999999,2662.5224493000001,56953.862829999998,40368.681305999999,7848.9611840999996,19170.103298999999,3032.5505136000002]
[409,"2011-08-08","KW60MN13 ",8236080.1828145646,2592531.3635302447,1847051.1123299564,135385.47326099998,610094.77793928818,"Summer",188832.58975000001,86110.510949999996,130772.18180999999,2510.1214716999998,57181.860679999998,40044.723832999996,10275.390088,34191.836558000003,0]
[410,"2011-08-29","KW60MN12 ",8043241.753899944,2592417.7915466852,1814628.1060726063,134753.51593200001,643036.16954207874,"Summer",213852.17723,93523.551510000005,135631.5564,2603.3952883000002,57045.061970000002,41353.151331000001,11851.735957999999,39968.953055999998,0]
[411,"2012-04-04","KW60MN21 ",6906936.9324157424,2592212.2353903283,1958229.6761303034,119373.65842373247,514608.90083629236,"Summer",187198.91495000001,62152.122359000001,86865.120425999994,1667.3424034,50934.719600999997,31958.992774999999,7093.9119293000003,7467.6597125999997,3053.2304963000001]
[412,"2011-08-27","KW60MN14 ",8377749.8952531312,2590826.7938856184,1825389.878645448,128251.684441,637185.23079917033,"Summer",256075.49731999999,82233.251084000003,109755.90240000001,2106.7221135,55631.475301999999,31387.491183999999,8460.9722122000003,44503.847591999998,0]
[413,"2011-07-27","KW60MN21 ",8014384.3549034754,2590646.1416326407,1868098.3618240715,139429.75028500002,583118.02952356939,"Summer",194674.90533000001,69532.695877999999,91245.822557000007,1751.4282872000001,55905.072721999997,37235.637453000003,7548.8673484000001,39705.259710999999,1069.0547337999999]
[414,"2011-08-19","KW60MN16 ",8489046.8784018047,2590623.7867355924,1877803.8967071262,136243.45690399999,576576.43312446645,"Summer",205481.07367000001,93488.378614000001,125356.67705,2406.1729515000002,55357.877883000001,37996.792734000002,9435.8302476999997,40054.733806999997,0]
[415,"2012-05-31","KW60MN15 ",7823842.5348678622,2590556.128184929,1897962.778590983,128682.42637285516,563910.92322109081,"Summer",112556.17835,86160.855270999993,125322.33714,2405.5138100999998,53169.098527000002,43089.928899999999,8886.9431418000004,28456.725944999998,0]
[416,"2011-08-23","KW60MN11 ",8181551.7304359972,2589712.7120754919,1869892.6426910316,140115.36275,579704.70663446025,"Summer",161538.05015,83824.862395999997,125488.8009,2408.7090176000002,55722.674442000003,40905.697567000003,10542.553237,42717.775353999998,0]
[417,"2011-07-26","KW60MN20 ",7980718.6504993336,2589572.6564103151,1869137.743723799,128224.487893,592210.42479351605,"Summer",239492.31122,72364.456267999994,104362.39862000001,2003.1958936999999,56315.468850999998,37105.714422999998,7892.4150639,37585.104530999997,0]
[418,"2011-08-17","KW60MN14 ",8331702.7381462539,2589339.7360882796,1907008.2778180314,132748.24983599997,549583.20843424846,"Summer",205859.42157000001,94646.085894999997,118912.43014,2282.4781235999999,53807.492506000002,40160.072295999998,11321.249204,41066.157697000002,0]
[419,"2011-09-23","KW60MN18 ",7107032.8466803478,2588774.7373942453,1874713.4605860377,113959.60006,600101.67674820777,"Summer",220937.11202999999,84144.445676000003,137477.96268999999,2638.8363430999998,56041.871432,42549.476779999997,9388.0898930000003,30217.333901999998,0]
[420,"2011-09-05","KW60MN18 ",7184065.5794945545,2588703.8988380479,1894028.3366342469,116143.767658,578531.79454580101,"Summer",257040.62468000001,60405.689247000002,104238.69463,2000.8214433999999,55312.278313000003,23039.834714000001,7225.1268013999997,34386.330473000002,0]
[421,"2012-04-18","KW60MN08 ",6962121.1296729799,2588418.6820726842,1936673.4970307085,120362.16959485183,531383.01544712391,"Summer",210306.62565,50831.496759000001,99180.206858000005,1903.7257262999999,35294.067117999999,35337.475567000001,9090.2036260000004,7467.6597125999997,0]
[422,"2011-09-07","KW60MN22 ",7339182.0361454962,2588302.7704406702,1906120.0985595905,123940.85348599999,558241.81839507958,"Summer",239276.30168,76686.157571999996,105521.56757,2025.4456935999999,53807.492506000002,36004.782987999999,8498.4331543000008,51882.993544999998,3053.2304963000001]
[423,"2011-08-03","KW60MN12 ",7770502.6246801382,2588286.0399534814,1880359.6555122091,131107.34369799998,576819.0407432724,"Summer",184355.06315999999,94394.569961000001,139651.92451000001,2680.5646998000002,48745.940243999998,39798.304118,11468.431699999999,29206.468266,0]
[424,"2012-05-31","KW60MN18 ",7856504.1174054677,2587082.6272270377,1898760.6531651157,129254.74670413189,559067.22735779011,"Summer",154894.30218999999,68675.791574999996,99509.475393999994,1910.0459086000001,55768.274012000002,40118.685293000002,7138.3443176000001,28093.387304,0]
[425,"2011-08-28","KW60MN15 ",8144436.0199506134,2586989.8653161554,1773474.0786789542,120811.95487099999,692703.83176620107,"Summer",290070.37066999997,75673.137992000004,104980.0955,2015.0523465000001,55540.276163000002,29698.054031,8358.4624975999996,42618.858964999999,0]
[426,"2012-04-03","KW60MN10 ",7010988.3800929105,2586308.1903107474,1953747.6994360476,108143.56884804432,524416.9220266554,"Summer",204298.76034000001,67598.035548999993,112427.98057,2158.0116210000001,55266.678742999997,34795.580551999999,8235.9695515999992,7467.6597125999997,0]
[427,"2011-07-31","KW60MN20 ",7609672.3550595781,2585154.3284548339,1859998.1580197425,115259.94790599999,609896.22252909152,"Summer",261663.61670000001,68513.605800000005,97823.977618000004,1877.6934303999999,55175.479603,28507.238141000002,7114.2269735,28531.430480999999,0]
[428,"2012-06-21","KW60MN15 ",8098824.9062375939,2583033.1896497435,1840096.1021643644,127379.1398707473,615557.94761463185,"Summer",181863.38079,101864.25511,135990.64305000001,2610.2878175999999,57090.661540000001,43458.610689000001,10137.694716,35299.471086999998,0]
[429,"2011-07-31","KW60MN15 ",8202190.1917913184,2581591.1743022278,1824989.5886379888,131730.07768799999,624871.50797623931,"Summer",252118.39251000001,65277.583662999998,107520.84970999999,2063.8211412999999,55449.077022999998,28463.371838999999,7766.1976935000002,32229.868473999999,0]
[430,"2011-08-03","KW60MN22 ",7209348.9221298117,2581182.7171144472,1876496.7447664053,124601.90685,580084.0654980418,"Summer",267976.04262999998,76876.880151000005,111362.84207,2137.5666992000001,54810.683043999998,35355.059012999998,8412.3176803000006,32714.015599999999,3053.2304963000001]
[431,"2011-10-28","KW60MN07 ",7130867.2070567859,2580756.6596447458,1844671.3430504571,108995.632283,627089.68431128853,"Summer",284685.83929999999,55368.854996000002,121348.78095,2329.2429353000002,57592.256808999999,40597.657643999999,8425.5427746000005,19170.103298999999,3053.2304963000001]
[432,"2012-06-01","KW60MN17 ",7753598.5907178521,2580606.6503688372,1874868.4459259375,135570.17680696273,570168.02763593686,"Summer",176312.62138,86891.525993000003,111467.52945,2139.576133,56315.468850999998,41479.608419999997,8048.9848042000003,24768.804353,0]
[433,"2011-09-14","KW60MN13 ",7002978.4209284866,2579726.0157967061,1887295.370780624,108407.29292400001,584023.35209208238,"Summer",144119.82359000001,89448.307927000002,146884.80906999999,2819.3971225999999,54354.687344999998,42176.390378999997,12105.267712000001,23392.023765000002,0]
[434,"2011-08-18","KW60MN19 ",8190517.5290372884,2578111.9920250843,1885475.6923153433,136588.53268400001,556047.76702574117,"Summer",230209.12617,79084.544175999996,105726.21131,2029.3737510000001,54719.483904000001,35536.558947999998,8251.9913500000002,41487.121435000001,0]
[435,"2012-06-21","KW60MN19 ",8166537.1577118561,2578052.0084303883,1833698.9968877952,128124.05177718717,616228.95976540574,"Summer",209278.46857,77630.812546000001,108149.46705000001,2075.8872081,52986.700247000001,40028.563971000003,8360.1283311999996,25036.247754,0]
[436,"2012-06-01","KW60MN15 ",7706498.5298074139,2577238.993368417,1874939.6556125535,136388.73289851198,565910.60485735175,"Summer",158949.88896000001,84795.788583000001,126065.89505000001,2419.7861167000001,56589.066271000003,45825.405855999998,9357.7104369999997,23938.122662000002,0]
[437,"2011-07-26","KW60MN13 ",8625214.8567014541,2576577.5936183631,1863327.0285392194,129332.352749,583918.21233014355,"Summer",133377.37387000001,86629.406772999995,118210.84911,2269.0115467999999,54993.081323999999,42386.508323000002,10933.841307000001,35669.384281999999,0]
[438,"2012-05-14","KW60MN18 ",7638760.1117838845,2576521.117842692,1823528.7256594996,134787.81262366936,618204.57955952315,"Summer",196617.42259,69407.517965999999,111361.97087,2137.5499768999998,50889.120030999999,37584.964885000001,8288.4280749999998,21356.368259999999,0]
[439,"2011-08-10","KW60MN17 ",8239302.0357738808,2576163.7582849255,1874971.7969464748,132995.11499999999,568196.84633845044,"Summer",200225.47396,86101.64301,122409.97167,2349.6120810000002,54993.081323999999,39510.693631000002,9041.7183860000005,45867.552692999998,0]
[440,"2011-08-10","KW60MN18 ",8223304.7211315222,2576049.9004426468,1879455.1758836065,123438.501495,573156.22306404007,"Summer",188547.36093,82875.970285000003,116462.3324,2235.4494445,56041.871432,38291.844029,8630.7247234999995,46843.132144000003,0]
[441,"2011-08-05","KW60MN13 ",7988009.8034754731,2575346.6585172461,1820466.6577974539,129261.068811,625618.93190879188,"Summer",209050.32367000001,90903.087192000006,124264.98923000001,2385.2184259000001,54993.081323999999,40022.291099000002,9023.1707504999995,31513.147369999999,0]
[442,"2011-08-21","KW60MN21 ",7809261.0679032402,2575106.1561014801,1876324.7954961222,130584.97116199999,568196.38944335806,"Summer",226022.60462999999,65093.648216000001,84308.226490999994,1618.2638128999999,55768.274012000002,30580.558224,7766.6243092000004,41550.412563999998,2900.4134826]
[443,"2011-08-22","KW60MN11 ",8164144.882647262,2574939.8081037491,1864126.4931140607,132570.580503,578242.73448668851,"Summer",171177.15651,84212.079186999996,119469.4492,2293.1698888999999,56908.26326,39228.683130999998,11216.870505000001,44576.021381999999,0]
[444,"2012-05-31","KW60MN16 ",7920894.3399640014,2574614.1609903714,1892599.0313597757,128803.00934280377,553212.12028779206,"Summer",112774.25461,85614.937858000005,120672.23258,2316.2568508999998,54172.289064999997,42644.631946000001,8297.9998470999999,28290.374253000002,0]
[445,"2011-07-15","KW60MN15 ",8476658.9439678099,2574119.3863101313,1849878.00186041,132761.212841,591480.17160872114,"Summer",176847.6268,86263.006101999999,123901.61435,2378.2435854,55813.873582,42913.599525999998,8420.1999182,38337.580248999999,0]
[446,"2011-07-28","KW60MN12 ",8341946.6462094132,2573792.3667352824,1843748.5205075254,137378.58798400001,592665.25824375707,"Summer",154301.36497,86614.304441,129783.03341,2491.1351504999998,55950.672292000003,41319.563844999997,10789.076300999999,33664.725893000003,0]
[447,"2011-08-08","KW60MN20 ",8046433.4164505173,2573601.6285174368,1821630.443928526,122386.169798,629585.01479091088,"Summer",237200.49676000001,71058.092485000001,113394.09706,2176.5558535,56862.663690000001,35093.188786999999,8539.7945837999996,39198.914008,0]
[448,"2011-09-10","KW60MN15 ",7392958.6964531727,2573150.331800418,1816260.7600379612,108325.840803,648563.73095945676,"Summer",251252.06507000001,90461.083272000003,125706.69954,2412.8914979000001,54719.483904000001,36379.430486999998,7825.8832941000001,37971.310956000001,0]
[449,"2011-07-25","KW60MN12 ",8218060.6638388326,2572384.1766630523,1852737.1895115552,130551.08598799998,589095.90116349712,"Summer",153985.18831,80976.111680999995,124908.64429,2397.5731359000001,56041.871432,39677.373055999997,9799.6523780999996,40943.107996999999,0]
[450,"2011-07-06","KW60MN23 ",7560145.5214286679,2572109.2614805279,1830373.3566417824,139754.087573,601981.81726574525,"Summer",200551.27413000001,62896.135966000002,109852.9411,2108.5847339000002,55494.676592999997,36353.826863000002,7672.0577782,47860.398401999999,3053.2304963000001]
[451,"2011-10-18","KW60MN08 ",6972312.4971629241,2572016.8850744804,1878507.7787908739,100793.15673399999,592715.94954960654,"Summer",246055.47821,57387.494831999997,125551.59523000001,2409.9143304999998,55996.271862000001,42919.667046000002,9761.5819852000004,19170.103298999999,1068.2066138]
[452,"2011-08-25","KW60MN10 ",8140659.7350977696,2571875.7004222292,1878992.7692108552,134369.866373,558513.0648383738,"Summer",149825.78851000001,85082.900001000002,127955.20314,2456.0506552000002,49019.537664000003,40072.236349999999,11896.043068999999,44755.296925000002,0]
[453,"2011-07-24","KW60MN22 ",7978640.2989577046,2570334.9232602711,1835348.9089677979,130355.792208,604630.222084473,"Summer",250859.09114,63716.880794999997,96136.019429000007,1845.2937254999999,55312.278313000003,29583.087642999999,6854.0318851000002,47299.020849,3053.2304963000001]
[454,"2011-10-13","KW60MN08 ",6861650.317463655,2570317.9857989862,1906223.7033274162,109310.28064300001,554784.0018285698,"Summer",222352.13824999999,58886.649147999997,120631.82471,2315.4812375000001,48609.141535000002,43117.561010999998,9125.6601498,19170.103298999999,711.99638938999999]
[455,"2011-08-16","KW60MN15 ",8099123.8782540765,2568912.5327283191,1907856.0461782587,127755.71116300001,533300.77538706025,"Summer",187326.38399999999,88681.222250000006,117861.90599,2262.3137185999999,53123.498957000003,38704.943669,10937.904316,40611.696947999997,0]
[456,"2011-09-10","KW60MN21 ",7089882.8529972062,2567899.3541824277,1869922.7225761756,107627.92485,590348.70675625186,"Summer",246715.14405999999,73856.767214000007,110487.83113000001,2120.7712025999999,54081.089925,34036.532064999999,7304.7820904,42037.448107999997,3053.2304963000001]
[457,"2011-09-13","KW60MN12 ",7028083.8338307906,2567426.2648331956,1871300.0337329879,104242.875337,591883.35576320754,"Summer",151814.29298,93382.356996000002,143981.50891,2763.6693985000002,50022.728201999998,43330.475214999999,12069.513234,26197.690887000001,0]
[458,"2011-08-04","KW60MN11 ",7665263.6725301659,2567174.5264804969,1850506.0905922693,133695.70401099999,582972.73187722778,"Summer",187473.90555,87970.358577000006,119338.29438000001,2290.6524229000001,56543.466700999998,38725.884861999999,11298.719819,31264.797493999999,0]
[459,"2011-08-04","KW60MN22 ",7218824.6687521292,2567068.1927830577,1841293.433430617,122073.35023900001,603701.40911344043,"Summer",263883.76360000001,79033.041351000007,108420.77481,2081.0948557000002,55859.473151999999,35829.216425999999,8289.5538672999992,36861.776579999998,3053.2304963000001]
[460,"2011-08-02","KW60MN11 ",7469926.5061272793,2566476.8644006816,1871433.2705237942,134914.891982,560128.70189488737,"Summer",160532.99797,90733.576006000003,117101.67097000001,2247.7213012000002,56634.665841000002,39031.571207000001,11504.389329,26556.568773999999,0]
[461,"2011-07-27","KW60MN22 ",7730943.0886384938,2566386.1667138212,1852822.7129986268,141140.82639700003,572422.62731819425,"Summer",197596.80502,69305.073090000005,86238.155115000001,1655.3080467,55905.072721999997,36549.124297000002,7600.3050412000002,41534.67325,3053.2304963000001]
[462,"2012-04-06","KW60MN07 ",6684029.2933578296,2565526.8861987111,1914391.872008841,127348.47176288333,523786.54242698679,"Summer",205832.23623000001,54347.476832,82516.675690999997,1583.8756879,53351.496806000003,31361.101348,7416.5588506000004,7467.6597125999997,1526.1911886]
[463,"2011-07-07","KW60MN10 ",7587999.2594068786,2565521.9176604385,1831936.8036076261,140239.42166399999,593345.69238881255,"Summer",170673.27910000001,78827.044511999993,128034.876,2457.5799447999998,55449.077022999998,40759.995110000003,9810.7037620999999,40818.314791999997,0]
[464,"2011-08-01","KW60MN22 ",7178621.2785905758,2563520.8012622134,1890309.1700679653,130035.53757199999,543176.09362224827,"Summer",227892.45806,64207.606165999998,90811.044706999994,1743.0828945000001,55266.678742999997,34282.27706,8101.7615972000003,29150.378084,3053.2304963000001]
[465,"2012-05-14","KW60MN16 ",7644697.3968063192,2563240.8974024961,1821435.42037757,137866.76198347102,603938.715041455,"Summer",168884.23978999999,81015.605267999999,131519.15504000001,2524.4593341,53351.496806000003,39174.286652000003,10105.295607,21356.368259999999,0]
[466,"2011-10-31","KW60MN08 ",7067667.633255857,2562867.1964062867,1836414.6913876007,110881.59129099999,615570.91372768616,"Summer",204889.09031999999,62819.223172999998,128103.39517,2458.8951440000001,56680.265411,41551.201306000003,8505.8481448000002,19170.103298999999,0]
[467,"2012-05-15","KW60MN14 ",7804573.0153504452,2562687.5166383293,1828454.1598515585,134440.4915950209,599792.86519174988,"Summer",145811.31361000001,95452.150980999999,144072.76501,2765.4210240000002,40902.814218,42088.909194,11249.494774000001,21356.368259999999,0]
[468,"2011-09-06","KW60MN11 ",7349705.1831426639,2561933.7832723521,1893989.3180980163,114722.475406,553221.98976833594,"Summer",119874.34536000001,80122.167107999994,132461.29402,2542.5433275,56041.871432,39159.354311000003,10081.401728000001,30711.663041,0]
[469,"2011-10-26","KW60MN12 ",7015141.6545022987,2561342.9929264761,1896444.3316204862,99870.476083000001,565028.18522298976,"Summer",196647.64971999999,75887.589823000002,144769.16295,2778.7881133000001,56634.665841000002,42910.519559,10366.949993,19170.103298999999,0]
[470,"2011-07-21","KW60MN15 ",8723470.6998635214,2561148.059006982,1858081.6653595846,128966.53578299998,574099.85786439746,"Summer",174501.92919,93130.277075000005,132304.95439,2539.5424487,53989.890785000003,42429.316336000004,10425.233855,43304.070509999998,0]
[471,"2011-08-27","KW60MN21 ",8040409.1698971866,2561016.4905355317,1812966.6628872696,134638.31051700001,613411.51713126211,"Summer",241949.49523,85314.522119000001,100216.07888,1923.6088893000001,55449.077022999998,30960.519024000001,7972.6188601000003,47390.286587000002,3053.2304963000001]
[472,"2011-07-11","KW60MN12 ",8123821.8080968801,2560612.978659939,1821508.5862653391,137024.76353400003,602079.62886059983,"Summer",176876.17936000001,80191.490974,133324.12748,2559.1050820999999,54856.282614000003,40018.716272999998,10179.706227999999,34617.640166999998,0]
[473,"2012-06-01","KW60MN18 ",7660968.5151112676,2559741.6612307923,1857207.1141549388,133253.70592982366,569280.84114602976,"Summer",187531.97514,77584.131733000002,102705.89622,1971.3999705000001,56361.068421000004,40446.205461999998,7531.8484201000001,25132.364734999999,0]
[474,"2011-07-15","KW60MN19 ",8281513.867020607,2559670.6556004062,1815900.022406566,127282.77094,616487.86225384031,"Summer",211443.06834999999,66557.869049999994,112718.07713000001,2163.5799123000002,55129.880033000001,39281.357571,7045.6027532999997,42095.308068999999,0]
[475,"2011-08-09","KW60MN14 ",8296439.5437068595,2559582.9701093356,1836754.2408180663,135734.05910900002,587094.67018226918,"Summer",177515.96229,88035.993224999998,130056.96303,2496.3931237000002,55768.274012000002,41386.804902999997,10364.329352000001,38746.758035999999,0]
[476,"2011-07-02","KW60MN18 ",8520456.2177751195,2558972.8167109597,1812442.0063976371,134189.16819900001,612341.64211432252,"Summer",209434.09804000001,68148.228661999994,105528.48801,2025.5785287000001,54947.481754,30691.262638,7193.3743868000001,46398.507430999998,0]
[477,"2011-09-06","KW60MN22 ",7132322.2342003994,2558593.21537543,1881512.0063614361,118530.95445599999,558550.25455799408,"Summer",214760.14647000001,65291.639967000003,108310.65827,2078.9812112,55129.880033000001,36703.600611000002,8450.3271285999999,37861.046211000001,3053.2304963000001]
[478,"2011-08-19","KW60MN15 ",8429793.5588039607,2558232.4205292226,1856057.0338017002,134039.37314400001,568136.01358352241,"Summer",194919.10707999999,95113.681349999999,122769.4051,2356.5112666999999,55312.278313000003,40259.918575000003,9580.8796648999996,39768.96787,0]
[479,"2011-07-23","KW60MN19 ",8234279.0977100907,2557976.8190330509,1848229.3948200063,135616.547265,574130.87694804452,"Summer",201162.08055000001,62925.458495999999,107032.03372000001,2054.4385072999999,52302.706698000002,32352.542365000001,7075.2830338000003,44722.199310000004,0]
[480,"2012-04-05","KW60MN12 ",6841186.5651449868,2557677.9014621014,1903278.2169980083,120987.09238606594,533412.59207802708,"Summer",209771.48243999999,68452.537683000002,102573.71563999999,1968.8628154999999,49612.332072999998,34491.590339000002,8204.0698530999998,7467.6597125999997,0]
[481,"2011-07-27","KW60MN12 ",8276497.1510108495,2557335.7616646886,1841305.3743980252,139418.63373400003,576611.75353266357,"Summer",178109.02669999999,83575.473868000001,114576.51242,2199.2518592000001,56634.665841000002,41404.000352000003,9597.7005212000004,33981.021901,0]
[482,"2012-05-31","KW60MN14 ",7629564.3628909606,2556602.2938330066,1861752.4513081976,128886.29517881764,565963.54734599136,"Summer",113146.49772,90778.129413000002,126808.20512,2434.0344716999998,52074.708849000002,44120.871146999998,8996.4784749999999,28759.188134,0]
[483,"2011-09-05","KW60MN21 ",7168644.6752363779,2556567.7485050359,1859125.901279381,127922.44793400003,569519.3992916547,"Summer",261209.18164,63916.010162999999,91848.378716000007,1762.9941197000001,55129.880033000001,23329.681515,7354.3914289000004,35434.586127000002,3053.2304963000001]
[484,"2012-04-13","KW60MN10 ",6887834.3088783249,2555379.8770185411,1945614.626199746,123987.29484606473,485777.95597273065,"Summer",148673.90367999999,64757.743040000001,110421.5248,2119.4984780999998,28818.928188999998,36815.951689000001,8537.7783161999996,7467.6597125999997,0]
[485,"2011-09-14","KW60MN20 ",7070152.0163143529,2555238.7554659881,1828223.8520623851,121121.041413,605893.86199060292,"Summer",224442.47382000001,76415.981845999995,130723.61474999999,2509.1892456999999,54400.286914999997,38536.962497,8966.5730373000006,23170.062146,2239.4597568999998]
[486,"2011-08-12","KW60MN13 ",7787794.6173131689,2555184.624836857,1855796.4433914588,135465.29819900001,563922.88324639807,"Summer",181581.15135999999,91905.882689999999,121026.6989,2323.0606950000001,56817.064120000003,40043.378366999998,9162.0037644999993,45830.947418000003,0]
[487,"2012-04-18","KW60MN09 ",6948901.7419000901,2555083.5313313082,1931146.1855147558,118626.1632866087,505311.18252994376,"Summer",157728.42449,64352.761445999997,112253.98262,2154.6717976,35111.668837999998,35042.605739999999,9769.5200882000008,7467.6597125999997,0]
[488,"2011-10-17","KW60MN08 ",6950833.058609643,2553656.3510078732,1873942.7669727178,102310.079216,577403.50481915532,"Summer",186731.78279,56044.364204999998,119968.29906,2302.7451193000002,56953.862829999998,42174.985289999997,8408.1937264000007,19170.103298999999,1017.3194389]
[489,"2011-09-23","KW60MN16 ",7187504.0733393012,2553366.9199060798,1849071.0365328016,108686.542017,595609.3413562784,"Summer",188012.48269,97521.392225999996,148498.11881000001,2850.3639793000002,55357.877883000001,43780.384908,10680.025142,30217.333901999998,0]
[490,"2011-09-09","KW60MN22 ",7206702.7815927695,2552986.3430132843,1844830.2520737536,116217.48532699999,591938.60561253049,"Summer",199424.94245999999,76849.292967000001,117642.48152,2258.1019505999998,53442.695946,37425.761693,7627.2631054000003,47352.171141999999,3053.2304963000001]
[491,"2011-08-30","KW60MN15 ",8567954.1351876538,2552641.0147141344,1847905.7311946461,132977.92988899999,571757.35363048827,"Summer",197270.6869,94284.746650000001,133152.75988,2555.8157474,53533.895085999997,41596.174586000001,11283.950781,35608.756720999998,0]
[492,"2011-07-11","KW60MN21 ",7805505.7016861336,2552347.6401974023,1812886.9687140465,141835.830712,597624.84077135602,"Summer",199953.42976,57433.253340000003,110284.30524,2116.8646017999999,54810.683043999998,36586.681111999998,7367.4743176000002,36501.359281999998,407.5214593]
[493,"2012-05-31","KW60MN19 ",7694766.1010185638,2552218.0066706431,1874201.6373778258,129390.22087296718,548626.14841985016,"Summer",147427.35238999999,60331.570682999998,98893.106841999994,1898.2149525,55540.276163000002,39200.41257,7039.2746172999996,28645.388214999999,0]
[494,"2011-08-24","KW60MN10 ",7856263.2700421205,2551941.7335627764,1863444.7716778417,131924.952899,556572.0089859349,"Summer",140639.86658,82328.945785000004,115210.12626,2211.4138318,49612.332072999998,41023.612259000001,10502.918584999999,40737.433944999997,0]
[495,"2011-08-15","KW60MN18 ",8126681.8774995608,2551774.0277625225,1889385.0698450557,130297.775041,532091.18287646677,"Summer",217078.72232999999,74480.799306999994,107462.55181,2062.7021355000002,49110.736804,33944.215034000001,8098.0439438000003,43484.599440999998,0]
[496,"2011-07-21","KW60MN16 ",8785881.0903009716,2551692.6182056395,1852649.5312292457,125969.13009200001,573073.95688439405,"Summer",168197.35681,88066.321612999993,130983.31905999999,2514.1741695000001,54354.687344999998,40574.828427,9972.0255295000006,43863.015491999999,0]
[497,"2011-07-10","KW60MN18 ",7395585.4604406971,2551688.0020383056,1831749.02059963,129842.38031699999,590096.60112167581,"Summer",242163.32146000001,55664.064697000002,101723.84508,1952.5498786999999,53169.098527000002,28854.992198,6796.4184195999997,33955.765885000001,0]
[498,"2011-10-05","KW60MN20 ",7151738.7804980408,2551653.6409475962,1880132.2201880917,113372.94180100001,558148.47895850427,"Summer",189596.66214999999,64487.162401000001,123823.80124,2376.7499929999999,56406.667991000002,38032.757148999997,7622.8547403000002,19170.103298999999,3053.2304963000001]
[499,"2011-08-01","KW60MN11 ",7447049.1595574254,2551615.9390634159,1892747.6369051954,124972.879028,533895.4231302205,"Summer",162047.71437999999,79173.042010999998,113589.14556999999,2180.2997341999999,56041.871432,39153.802026999998,10916.309423999999,28882.378099000001,0]
[500,"2012-05-16","KW60MN16 ",7670074.8832241818,2551410.1855022879,1835029.0631035762,133202.12195036453,583179.00044834742,"Summer",162643.51321999999,87505.477010000002,124108.85721,2382.2215320999999,53670.693796,38027.994272000004,10064.811109,21356.368259999999,0]
[501,"2011-07-15","KW60MN14 ",8356834.5078896564,2551077.9981086962,1831938.7117904567,135439.961228,583699.32509023976,"Summer",156539.76261000001,86640.159492000006,122496.3337,2351.2697667000002,55540.276163000002,43071.787306999999,8281.7935209999996,38960.698278000003,0]
[502,"2011-08-07","KW60MN18 ",7796628.0591560239,2551000.6947195809,1815565.2885402786,122783.62061000001,612651.78556930204,"Summer",272030.31517000002,70539.193448000005,106014.06839,2034.8990563,55175.479603,28623.910212999999,7601.2598478,28792.058380999999,0]
[503,"2011-08-08","KW60MN12 ",8010193.1070922809,2550662.962887845,1832316.9105545117,133707.07320499999,584638.97912833339,"Summer",178934.32706000001,87777.980991000004,129200.19546,2479.9478015,57318.659389,38389.444551000001,10071.589561999999,35338.666483000001,0]
[504,"2012-05-14","KW60MN19 ",7533418.3301677601,2550574.4986819695,1800041.5750681956,138521.08860467415,612011.83500909968,"Summer",215333.25377000001,62595.029302000003,109094.42976,2094.0254018999999,53305.897235999997,37017.811863000003,7838.9831114999997,21356.368259999999,0]
[505,"2011-10-31","KW60MN09 ",7089957.4801731016,2550216.4350584922,1843718.0938951827,108846.37225200002,597651.96891130926,"Summer",174610.32081,63153.634022999999,127576.15921,2448.7750535,56680.265411,43127.659961999998,9367.7951641,19170.103298999999,0]
[506,"2011-07-24","KW60MN14 ",8338799.8673290368,2549925.5716238264,1825213.0414571036,129371.42033800001,595341.1098287229,"Summer",215991.11786,66287.551926,96554.707162999999,1853.3302747,54993.081323999999,30109.404758000001,7010.9046578999996,39779.177017000002,0]
[507,"2011-09-05","KW60MN17 ",7187213.2098770104,2549558.2673617769,1861005.8012963408,112655.583467,575896.88259843597,"Summer",279707.21211999998,59500.344684000003,104329.75001,2002.5692162,54628.284764000004,23191.738844,7292.9384195000002,35033.501828,0]
[508,"2011-07-02","KW60MN19 ",8403238.9971746597,2548745.5601206003,1802765.6182431229,138158.23613500001,607821.70574247744,"Summer",224755.84185999999,63201.396213,106714.01519999999,2048.3342646999999,54081.089925,30381.977615,7217.6914945999997,47931.126428000003,0]
[509,"2011-09-05","KW60MN19 ",7164540.2620575549,2548510.4779719845,1859059.4371925737,117469.59117299999,571981.44960641081,"Summer",244268.24067,57973.879552999999,103145.5361,1979.8386880999999,54947.481754,23175.831228999999,7081.0321907999996,35231.048020000002,0]
[510,"2011-09-12","KW60MN12 ",6953954.9733120818,2547384.0350954551,1851745.8367674432,104828.184165,590810.01416301192,"Summer",160331.02093999999,86554.578003000002,147927.39598999999,2839.4091754000001,53123.498957000003,42449.881908000003,11627.457868,27657.200148,0]
[511,"2011-09-07","KW60MN11 ",7485467.6135719167,2547312.1749195978,1894754.9549031504,115387.18792300002,537170.03209344752,"Summer",130348.64056,85897.731799999994,130195.09742000001,2499.0445599,40583.617229000003,40705.805776000001,9987.9322097000004,34669.068449999999,0]
[512,"2011-07-30","KW60MN13 ",8175537.934716559,2546906.5200280179,1813688.8904168494,143803.413069,589414.2165421684,"Summer",202833.48628000001,83744.951310999997,105027.78746000001,2015.9677753000001,55449.077022999998,32212.986917999999,7493.5494823999998,40631.362754000002,0]
[513,"2011-08-20","KW60MN16 ",8181298.7430364387,2546878.0211747359,1859815.9397767731,134549.439641,552512.64175696264,"Summer",223867.97811,74271.907011000003,107343.68252,2060.4204854999998,55084.280463000003,33138.129696000004,7870.5560765999999,40435.020473999997,0]
[514,"2011-07-21","KW60MN17 ",8783996.9978827275,2546223.3279768564,1856593.8040711274,131109.769187,558519.75471872871,"Summer",180970.36613000001,82787.697402000005,125170.88112999999,2402.6066706000001,54081.089925,39201.369852999997,8462.2114299999994,45082.220692000003,0]
[515,"2011-08-11","KW60MN14 ",8366523.4293890949,2545937.265549012,1869452.5943215094,131193.39174699999,545291.27948050282,"Summer",153718.61296999999,89882.72292,128361.81204,2463.8553557,49247.535514000003,39925.007570000002,10125.993251,45245.151802,0]
[516,"2011-10-06","KW60MN10 ",7162995.5274434527,2545822.1262788223,1915196.3545258245,108976.595191,521649.1765619975,"Summer",128862.4767,64698.315468000001,127526.56318,2447.8230767999999,56680.265411,42325.454024999999,8871.3564239999996,19170.103298999999,0]
[517,"2011-08-10","KW60MN19 ",8026622.8031846797,2544389.5205102889,1864485.9050414569,124428.77815100001,555474.83731783228,"Summer",204887.35214999999,75055.627909000003,114394.26364,2195.7536642999999,56041.871432,37807.468922,8303.2055774,47205.191352000002,0]
[518,"2011-08-02","KW60MN22 ",7211129.1763596367,2544244.4351146193,1844742.614579916,135979.74419699999,563522.07633770315,"Summer",253744.94508,73820.888932000002,103378.20630000001,1984.3047025000001,56178.670141000002,34529.192628999997,8739.2680051000007,31846.284898000002,3053.2304963000001]
[519,"2011-08-19","KW60MN19 ",8116414.0978522943,2543889.873039098,1845209.3282559637,135346.78878900001,563333.75599413412,"Summer",214510.24269000001,82259.941672999994,111352.34647,2137.3652403000001,55996.271862000001,36536.879951000003,8104.6869637999998,41833.191779000001,0]
[520,"2012-04-04","KW60MN07 ",6729756.5295163514,2543761.244792325,1932097.7480069606,106782.78934094349,504880.70744442061,"Summer",179447.06487999999,54420.158915,90135.745777000004,1730.1207926,50022.728201999998,33831.984213000003,7332.6848036000001,7467.6597125999997,1729.7398880999999]
[521,"2011-08-18","KW60MN14 ",8318199.10871631,2543501.3303252719,1861695.3064168387,135050.48154399998,546755.54236443364,"Summer",166161.89006000001,92508.946016999995,126271.83875,2423.7391265000001,49977.128632,39359.948652999999,11205.941011999999,39405.454430999998,0]
[522,"2011-09-14","KW60MN19 ",7029608.2573241219,2542735.7780265259,1812011.2702949585,110694.103577,620030.40415456705,"Summer",228985.93414,75823.187592000002,135132.98373000001,2593.8253785000002,54263.488205000001,39069.138460000002,8706.5201534000007,22092.747041999999,0]
[523,"2011-08-10","KW60MN16 ",8224991.5057136659,2542618.9885597099,1849235.4076108779,133651.24752999999,559732.33341883216,"Summer",203870.42957000001,89024.994328000001,124789.14047,2395.2793062000001,53944.291214999997,40147.818510999998,9767.6968132000002,46007.449002000001,0]
[524,"2011-08-16","KW60MN20 ",7654479.5044698538,2542493.7749606459,1871768.2829063181,137105.75231700001,533619.73973732791,"Summer",229568.69674000001,76948.153068,98802.421323000002,1896.474279,53807.492506000002,34339.101178999998,7757.5231698999996,42512.385431000002,0]
[525,"2012-04-17","KW60MN09 ",6985007.6531004254,2541912.482675157,1927306.4079707616,116388.09321382811,498217.98149056733,"Summer",175212.31982,64606.080212000001,112362.50696,2156.7548803999998,35476.465398,34459.819104000002,9681.0277547999995,7467.6597125999997,0]
[526,"2011-07-23","KW60MN18 ",8313271.8328882344,2541894.8073534346,1831000.7199234765,134418.659075,576475.42835495819,"Summer",218241.40710000001,65663.256317000007,107112.54252,2055.9838426000001,52667.503257999997,32644.172854,7097.0404460999998,42982.279967000002,0]
[527,"2012-04-04","KW60MN12 ",6864401.0826678509,2541270.7370571177,1919988.2519082609,108651.68193910236,512630.80320975487,"Summer",187556.17168,76841.671904999996,115519.12678000001,2217.3449774999999,49521.132933000001,34078.251925999997,8705.0608566999999,7467.6597125999997,0]
[528,"2011-08-10","KW60MN15 ",8142125.278626617,2541016.6149455751,1850914.5834081343,133849.35756600002,556252.67397144099,"Summer",177406.76517999999,89645.194197999997,126034.20536000001,2419.1778454,54628.284764000004,41482.836872,10106.937739999999,46501.268601999996,0]
[529,"2011-07-29","KW60MN11 ",8272879.3301680395,2541001.6235130099,1817988.302236161,139343.01418600001,583670.30709084892,"Summer",151817.68452000001,87579.634137000001,126453.74075,2427.2306650999999,55950.672292000003,41440.647932,8806.4092266999996,38228.783060000002,0]
[530,"2012-05-14","KW60MN15 ",7596219.9971772265,2540907.1089831595,1807130.8211877148,137346.05759795278,596430.23019749206,"Summer",124818.29401,81225.153139000002,137330.48121,2636.0054931,54400.286914999997,40271.227219,10972.770011000001,21356.368259999999,0]
[531,"2011-10-13","KW60MN09 ",6874197.7766577806,2540863.4680898404,1892735.9018622465,104956.88824499999,543170.67798259412,"Summer",156873.70249,63022.642701999997,126600.68253999999,2430.0511559000001,49338.734653,42951.458923999999,9636.9288720000004,19170.103298999999,0]
[532,"2011-08-15","KW60MN17 ",8224207.5817470234,2539863.4131002733,1881062.0591281613,128008.08271699998,530793.27125511225,"Summer",203084.59828999999,81088.672982999997,113834.39124,2185.00713,50433.124331999999,34682.972365000001,8945.8923219999997,42681.019723999998,0]
[533,"2011-08-30","KW60MN14 ",8440980.4955993351,2539630.642527801,1845438.3901975174,133842.10050300002,560350.15182728355,"Summer",195789.37719,92708.935022999998,136866.22732000001,2627.0943192,54217.888635000003,42725.168550000002,11460.102532000001,36077.675982000001,0]
[534,"2011-07-05","KW60MN12 ",8262393.3614349756,2539244.2161924662,1796864.561633057,139242.08942100001,603137.56513840915,"Summer",161820.03581,80484.912303999998,113584.34198,2180.2075312000002,55175.479603,39105.388062999999,9275.9914788999995,44730.613493999997,0]
[535,"2012-04-06","KW60MN11 ",6904187.2840130543,2538960.6064804005,1907622.73542173,117856.66928066335,513481.20177800715,"Summer",211685.64851,70992.06899,99038.011012999996,1900.9963319999999,53488.295515999998,33256.599158999998,8518.7092608000003,7467.6597125999997,0]
[536,"2011-07-10","KW60MN19 ",7293687.4781699711,2538643.8984115301,1822056.5356722386,133356.90760699997,583230.45513229177,"Summer",236459.97438999999,53259.443700999997,98447.133520000003,1889.654667,52941.100677000002,29115.604905,6784.9201033999998,34993.704489999996,0]
[537,"2011-07-25","KW60MN11 ",8022134.8747016229,2538124.4091643924,1823816.6219262627,128897.03727099999,585410.74996712967,"Summer",149865.71333999999,86186.117412000007,120106.90356000001,2305.4055790000002,56178.670141000002,40186.931954,9900.2524771999997,40824.207555000001,0]
[538,"2011-07-02","KW60MN17 ",8473489.7890211511,2537834.4042927991,1795738.1658432169,133087.882874,609008.35557558213,"Summer",207579.66553,66455.636270999996,103098.97874999999,1978.9450377999999,54491.486054000001,31119.979730999999,7142.6070904999997,46220.621153,0]
[539,"2012-04-03","KW60MN11 ",6945568.0486764954,2537658.3439196721,1915480.5117952561,105455.77709517625,516722.05502923962,"Summer",199055.57156000001,71911.170991000006,110428.69361,2119.6360805999998,55221.079172999998,35197.978598000002,8175.3731604000004,7467.6597125999997,0]
[540,"2012-05-16","KW60MN17 ",7442747.6044396041,2537442.0063238051,1816649.9623981584,131998.31063837046,588793.73328727623,"Summer",158865.42892000001,89820.088170999996,114623.40966,2200.1520335999999,53625.094226000001,37001.669860000002,8698.3382696000008,21356.368259999999,0]
[541,"2011-10-12","KW60MN08 ",6855972.1125888815,2535492.7611673516,1906471.7041982776,107823.43278900001,521197.6241800742,"Summer",196269.05804999999,57057.319513000002,122871.07814,2358.4628413,34108.478300000002,40716.932210999999,9110.8301676999999,19170.103298999999,661.10921441000005]
[542,"2011-08-22","KW60MN22 ",7596046.4624692751,2535265.9267032277,1857318.3027057261,133774.25402900003,544173.36996850139,"Summer",189001.75359000001,65616.120779999997,101383.3348,1946.0139154000001,56862.663690000001,36579.587596999998,8042.4822969999996,51571.481162999997,3053.2304963000001]
[543,"2011-10-25","KW60MN19 ",7156631.7176685529,2535005.6037936723,1858360.399516362,104370.01722400001,572275.18705331034,"Summer",182371.09487999999,62290.702605999999,131720.37577000001,2528.3216880999998,55585.875732,42406.759386999998,8006.1589974999997,19170.103298999999,3019.0088713999999]
[544,"2012-05-16","KW60MN15 ",7694748.9703674354,2534927.2167569338,1823006.4402316345,129704.33082615171,582216.44569914753,"Summer",148396.96294,90118.299377999996,131159.34578,2517.5529344000001,52895.501106999996,40287.769123999999,10634.871569999999,21356.368259999999,0]
[545,"2011-07-30","KW60MN22 ",7733737.8749533715,2534885.714724333,1813521.3829094535,138130.39596699999,583233.93584787962,"Summer",231039.73642,74825.614199999996,88331.845602999994,1695.4956261,55221.079172999998,29496.187263,7272.4811696999996,43650.211507,3053.2304963000001]
[546,"2011-07-21","KW60MN14 ",8578550.6364130396,2534608.8129926194,1836386.0359699621,127737.01107900002,570485.76594365714,"Summer",154799.75231000001,87587.081663999998,131464.9295,2523.4184957000002,53807.492506000002,42814.555659999998,10580.62363,43152.521205999998,0]
[547,"2011-10-25","KW60MN21 ",7006806.0300518349,2534509.9491209444,1856874.5455534661,105716.56432400001,571918.83924347849,"Summer",234586.12529,60489.419699999999,120017.96595,2303.6984559000002,55722.674442000003,41597.023703999999,7519.2276983000002,19170.103298999999,3053.2304963000001]
[548,"2012-04-07","KW60MN09 ",6580085.8833503081,2534444.3693993818,1887528.7616677214,112043.89333687355,534871.71439478674,"Summer",274933.55076999997,45589.292323000001,74646.881741000005,1432.8180356,55996.271862000001,24029.80154,5850.1588872000002,7467.6597125999997,0]
[549,"2011-08-07","KW60MN19 ",7630103.8766948478,2534177.0095958933,1805544.971778488,124491.645859,604140.39195840526,"Summer",268976.35725,68460.218196000002,103152.84259,1979.9789333000001,55175.479603,28276.569037000001,7405.0368337,30362.557935000001,0]
[550,"2012-04-10","KW60MN08 ",6797501.5699851923,2533880.4038083153,1918294.1526542068,123645.57432209491,491940.67683201341,"Summer",212414.38527,51993.920004,97784.382272000003,1876.933413,55585.875732,35388.613316000003,8829.0283364000006,7467.6597125999997,0]
[551,"2011-08-30","KW60MN16 ",8667946.6964594554,2533722.2708050339,1825561.165256375,134493.63152300002,573667.4740256588,"Summer",211606.57255000001,95913.259776000006,132681.95702999999,2546.7788685999999,54263.488205000001,39971.002370000002,10888.132457,35249.517018999999,0]
[552,"2011-08-11","KW60MN20 ",7917932.9433958735,2533599.6177448896,1848428.0306354852,131548.836167,553622.7509424045,"Summer",226164.44534000001,69352.385376000006,99400.705891000005,1907.95812,56452.267561000001,35858.012797000003,7863.8521118999997,46703.606753,0]
[553,"2011-08-17","KW60MN20 ",7958612.067255009,2533475.5913561471,1860995.9974143577,133586.20794799997,538893.38599378918,"Summer",253633.07712999999,84079.500344999993,104495.10464999999,2005.7431345,54856.282614000003,34863.302219999998,8052.9445456000003,41586.753742000001,0]
[554,"2011-08-21","KW60MN15 ",8114409.8848186452,2533453.7618652796,1834780.7599222818,131310.52936000002,567362.47258299787,"Summer",215916.58867999999,62366.448859999997,97415.540208000006,1869.8536322,54993.081323999999,30682.732239000001,8051.3599719000003,40101.934658999999,0]
[555,"2011-10-17","KW60MN09 ",6926261.7365188254,2533349.8811483057,1874578.0544895756,96142.709761999999,562629.11689673015,"Summer",147114.88523000001,57909.954541999999,125370.39356,2406.4362345999998,56908.26326,42037.436121999999,8470.3983931999992,19170.103298999999,0]
[556,"2011-08-15","KW60MN16 ",8288466.0314426711,2531822.6629785481,1875412.323712185,128855.89592,527554.44334636291,"Summer",186623.28519,86016.755659000002,117604.17969999999,2257.3667621999998,50068.327771999997,35286.28269,10108.014437,44018.482612,0]
[557,"2011-09-11","KW60MN16 ",6891274.3694274537,2529545.7343171332,1804092.3032623781,97871.958859000006,627581.47219575546,"Summer",294119.86324999999,68602.871685999999,113667.84824000001,2181.8104016000002,53169.098527000002,33026.025162999998,7988.5255391999999,34330.850169999998,0]
[558,"2011-07-31","KW60MN21 ",7587345.3315160805,2527847.4411004428,1826385.0108623705,113744.35765000001,587718.07258807239,"Summer",223653.95050000001,61564.367036000003,93379.571605999998,1792.3847753,55129.880033000001,28694.524378999999,7088.7722229999999,28520.318839,1323.4906082]
[559,"2012-04-12","KW60MN10 ",6974272.5389209939,2527645.5447675609,1913773.6673613477,123388.62107940552,490483.25632680766,"Summer",152913.66187000001,65649.720616999999,120761.63019,2317.9728034999998,53397.096376000001,35936.635778000003,9139.5150100999999,7467.6597125999997,0]
[560,"2012-06-01","KW60MN14 ",7531077.5275270035,2527202.5830775416,1836568.5189800449,131628.87434619403,559005.18975130236,"Summer",151950.78141,87664.005703999996,125422.75189,2407.4412324999998,56543.466700999998,45794.743831,9366.7980342999999,20953.672284,0]
[561,"2011-09-14","KW60MN21 ",6919579.5697229337,2526173.7836630167,1813212.5699170798,120018.464674,592942.74907193705,"Summer",219120.76019999999,71393.379040999993,118845.98142,2281.2026660000001,54810.683043999998,37876.477270000003,8727.0992936000002,25313.236803,3053.2304963000001]
[562,"2011-08-12","KW60MN20 ",7668660.5901413327,2525914.7242817483,1829017.3394122289,136593.07423600001,560304.31063351955,"Summer",226645.62061000001,77536.032114999995,106788.69775000001,2049.7677675,56999.462399999997,35258.693657999997,7562.0721274999996,48324.915056999998,0]
[563,"2012-04-09","KW60MN08 ",6685109.4640869489,2525552.6708581946,1902100.9066492449,115020.8087507747,508430.95545817504,"Summer",199677.72904999999,51822.787555000003,91039.909167999998,1747.4758592999999,45781.968200000003,33192.825111999999,8570.8139646,7467.6597125999997,0]
[564,"2011-08-03","KW60MN11 ",7523269.492203665,2525286.5529468427,1844421.3285525257,130239.11096800001,550626.11342631711,"Summer",166610.61249,91580.884487000003,132908.2885,2551.1232138,46739.559168,39854.069952999998,11012.887144,28914.683841999999,0]
[565,"2011-08-29","KW60MN11 ",7781296.0598956523,2525119.6759357248,1784501.5731686116,135625.84028400003,604992.2624831131,"Summer",166314.61551,92371.225409000006,131791.28773000001,2529.6828157,56178.670141000002,40787.442040000002,11131.181648,38269.839874999998,0]
[566,"2011-10-18","KW60MN09 ",6937235.7583707254,2524899.269037581,1860301.7134453789,100352.57751999999,564244.97807220207,"Summer",189583.41394,60263.361937000001,129461.95656999999,2484.9722046000002,55494.676592999997,43029.282369,10190.635722999999,19170.103298999999,0]
[567,"2011-10-25","KW60MN12 ",6977821.2566383136,2524799.6766507332,1890691.7177278465,96763.871308999995,537344.08761388669,"Summer",143101.39601,70276.185666000005,138979.17061999999,2667.651449,55677.074871999997,45692.128699000001,9800.0586784999996,19170.103298999999,0]
[568,"2011-08-05","KW60MN12 ",7793759.389501215,2524630.4564337088,1788577.2715949279,130168.85876,605884.32607878069,"Summer",191877.52828999999,92286.760647000003,124251.93343999999,2384.9678250000002,54810.683043999998,38144.606306000001,9079.6872038000001,32463.219903000001,0]
[569,"2012-06-21","KW60MN20 ",8038136.6769409832,2524444.8496357067,1791543.8500285847,129030.92256145643,603870.07704566559,"Summer",207028.79404000001,71739.177297000002,109993.63741,2111.2853451999999,54172.289064999997,39273.607648999998,7925.1629155999999,32519.666062,0]
[570,"2011-08-20","KW60MN20 ",7632297.422940854,2524284.2849639351,1873406.5505286497,126713.69214500001,524164.04229028558,"Summer",202865.37739000001,68396.011994,94209.446530000001,1808.3139036,54810.683043999998,31441.578661,7015.1708175000003,42731.692587999998,20.877877062]
[571,"2011-07-21","KW60MN18 ",8713632.3840087242,2524064.3823445137,1851054.0863888799,132365.87986199997,540644.41609363374,"Summer",186509.86984999999,68778.017926,116662.02327000001,2239.2824337000002,53898.691644999999,37858.225525000002,7514.0676778999996,45378.282757000001,0]
[572,"2011-09-13","KW60MN11 ",6941675.4198787045,2523945.2812577942,1853480.3523851177,105968.183678,564496.74519467668,"Summer",135279.13961000001,90721.811002000002,141723.73113999999,2720.3322269999999,46876.357878000003,42692.591650000002,11986.079346,25966.042636999999,0]
[573,"2012-06-21","KW60MN14 ",7883349.513206373,2523605.346643195,1793530.3638998661,131148.94928386196,598926.03345946677,"Summer",154698.99166999999,96920.702145999996,137215.59276999999,2633.8002538999999,56452.267561000001,44316.556689999998,9991.4060823,35311.441002,0]
[574,"2011-09-14","KW60MN12 ",6866122.4314670321,2522878.6804823889,1848781.017917607,108578.694948,565518.96761678206,"Summer",138532.88065000001,87474.923670000004,148012.61984,2841.0450142999998,54081.089925,40324.448332,11935.698036,24528.927926,0]
[575,"2011-08-09","KW60MN13 ",8160132.6808546232,2522795.3830568446,1827578.2831805341,133708.18200599999,561508.91787031048,"Summer",160793.66990000001,85509.181362999996,124330.50016,2386.4758827999999,55540.276163000002,40970.109570000001,10244.389329,38710.360365,0]
[576,"2011-08-16","KW60MN14 ",7933420.1341038933,2522682.9160645027,1879478.8056778514,123743.46799600001,519460.64239065116,"Summer",166137.86309,90048.310295000003,114971.52739,2206.8340189,52530.704548000002,39322.870795000003,10923.704100000001,39748.928976000003,0]
[577,"2011-09-05","KW60MN20 ",7203366.8004043205,2522103.5906322906,1839785.4238861869,126135.40418100002,556182.76256510336,"Summer",230701.65251000001,62301.943792999999,99104.440787,1902.2714258999999,54901.882184000002,23544.81018,7383.4825717000003,37030.366799000003,1323.4906082]
[578,"2011-07-25","KW60MN20 ",8226964.6469238633,2521171.1506508123,1835851.2669631985,127100.15790200001,558219.72578561376,"Summer",167980.66896000001,67209.285868999999,97805.429959000001,1877.3374153,56589.066271000003,35519.216928000002,7339.2364049999996,40854.671168000001,0]
[579,"2011-07-06","KW60MN10 ",8010710.5820669858,2520769.4711253955,1808155.0697429595,135503.90493300001,577110.49644943606,"Summer",127937.67693,73926.166599999997,120427.95501999999,2311.5680376999999,55449.077022999998,39975.456124999997,9425.6727255999995,40544.736922999997,0]
[580,"2011-10-05","KW60MN08 ",6927546.5306526693,2520643.6827594335,1878840.579318251,113766.74029599999,528036.36314518261,"Summer",166952.43770000001,55148.785785,117660.33447,2258.4446311000002,56452.267561000001,41184.055236,8306.5169291999991,19170.103298999999,187.30720972]
[581,"2011-07-10","KW60MN17 ",7547352.9895804888,2520170.265309819,1806307.1191112604,132339.91841499999,581523.22778355854,"Summer",230751.58239,57856.973459000001,96208.731885999994,1846.6894130999999,53032.299816999999,29424.474068,6837.2719735000001,33675.896513,0]
[582,"2011-10-12","KW60MN09 ",6830161.5970259923,2519944.1111256918,1900309.2407273832,105249.011571,514385.85882730852,"Summer",152785.42971999999,58311.174613000003,132297.71059999999,2539.4034068999999,34518.874429000003,41995.345559000001,9742.1201724000002,19170.103298999999,0]
[583,"2011-08-17","KW60MN13 ",8180484.8158444185,2519807.2099085962,1860391.0170762199,132145.95391300003,527270.23891937628,"Summer",192610.56807000001,91274.194185999993,110771.24794,2126.2112785999998,54217.888635000003,39464.428047000001,10816.278145,40765.912738999999,0]
[584,"2011-07-28","KW60MN11 ",8159866.6318610953,2519643.646810215,1820905.0609871491,138585.89195700001,560152.69386606594,"Summer",144072.92490000001,79937.004063999993,122670.20052,2354.6070731,55175.479603,40590.175596000001,10002.213685999999,34618.849335999999,0]
[585,"2011-08-27","KW60MN13 ",8208185.8809982026,2519231.3248363328,1774396.6991071452,128382.731466,616451.89426318777,"Summer",231316.83614,83290.616792999994,105793.50528,2030.6654327000001,55813.873582,31694.589081999999,8057.8404711000003,44455.999897000002,0]
[586,"2012-05-15","KW60MN13 ",7632492.0056396285,2518852.4766723858,1799487.2906879974,138060.94048562011,581304.24549876852,"Summer",143046.64377,94772.020608999999,140373.29208000001,2694.4110715000002,40994.013357999997,40832.051875999998,11386.646718,21356.368259999999,0]
[587,"2011-10-27","KW60MN20 ",7166331.928101778,2518799.4205238088,1823003.2153481313,109188.34314899999,586607.86202667747,"Summer",232866.23108999999,71929.565661000001,128561.57342,2467.6896981999998,53898.691644999999,39457.693755,7944.9091396000003,19170.103298999999,3053.2304963000001]
[588,"2012-05-15","KW60MN20 ",7660986.6193925338,2518622.2565663299,1823526.4849808062,134990.57037650474,560105.20120901882,"Summer",195567.52784,67302.149384999997,108463.92534,2081.9231134000001,44961.175941000001,35942.009148999998,7704.8665744999998,21356.368259999999,0]
[589,"2011-08-20","KW60MN21 ",7498603.3735661162,2517722.6957901493,1866339.4474133947,133583.52981400001,517799.71856275474,"Summer",205594.98715,70584.694866999998,90516.830885000003,1737.4355739,54947.481754,31555.918028,7369.4245612000004,44411.794574,2829.2279797000001]
[590,"2011-07-26","KW60MN21 ",7956342.6872684173,2517649.9855029276,1822357.2129185235,127814.605973,567478.16661140439,"Summer",226948.93059999999,68544.646001000001,96827.801990000007,1858.5722243,56178.670141000002,36164.892578999999,7911.2471107000001,38422.702406999997,1018.167559]
[591,"2012-05-15","KW60MN21 ",7650408.3423743574,2517150.8115554163,1821344.9376931968,137231.50619901955,558574.36766320013,"Summer",176506.39511000001,66958.849707000001,106072.04018,2036.0118024999999,50843.520461,35386.430403999999,7613.4319458999998,21356.368259999999,1679.7008333000001]
[592,"2011-08-08","KW60MN21 ",7865782.3714247188,2517060.0870948709,1781545.8846938987,127660.52057800001,607853.68182297202,"Summer",224074.71389000001,69648.171918000007,108320.38463,2079.1679049999998,56771.464549999997,34416.267795,8457.4577090000002,41437.794220000003,1832.3623579]
[593,"2012-04-11","KW60MN08 ",6684238.4892694987,2517018.9733561804,1894832.766002639,117118.20844004213,505067.99891349941,"Summer",166909.85263000001,52602.745323000003,96400.841264000002,1850.3768783,56315.468850999998,34901.152071999997,8877.3341258,7467.6597125999997,0]
[594,"2011-07-12","KW60MN15 ",8233189.0419232277,2516915.3079757369,1785314.7929895474,137420.88518499999,594179.62980118964,"Summer",194626.63941999999,82882.050422999993,122993.47113999999,2360.8121277,35567.664537999997,42503.540107000001,10399.169653000001,35714.449089000002,0]
[595,"2011-10-26","KW60MN21 ",6998898.1768468255,2515969.0697769839,1806968.5957768518,105407.726695,603592.74730513233,"Summer",261900.66441,65835.094152000005,124179.43858,2383.5763142000001,56817.064120000003,39978.143582999997,7647.3546841999996,19170.103298999999,3053.2304963000001]
[596,"2011-09-23","KW60MN15 ",7094268.8288418362,2515489.2835847358,1818671.7525833598,107481.873639,589335.65736237599,"Summer",153403.75052999999,91450.759231999997,148161.75013,2843.9075125999998,55859.473151999999,45817.657595999997,10942.739296,30217.333901999998,0]
[597,"2011-08-19","KW60MN14 ",8262513.5175247267,2515030.3644963503,1828883.1102996611,128855.87218800001,557291.38200868911,"Summer",180844.90020999999,92868.056626999998,121187.49213,2326.1470588000002,55038.680892999997,40921.057159999997,9430.4670760000008,39105.616753000002,0]
[598,"2011-07-04","KW60MN18 ",7795871.1325365081,2514938.070369767,1775270.038779112,131899.37235099997,607768.65923965501,"Summer",217038.00261,60222.552380000001,89267.603948999997,1713.4571458,54354.687344999998,26374.887927,7005.0539246999997,48307.378326999999,0]
[599,"2011-07-08","KW60MN18 ",8055937.3050626591,2514579.111016999,1804869.0583084468,148355.90754499999,561354.14516355214,"Summer",167334.41031000001,65794.835728000005,101454.89290000001,1947.3874453999999,56087.471001999998,37120.405748999998,7027.3192136999996,36162.966022000001,0]
[600,"2011-07-26","KW60MN12 ",8476564.897568658,2514329.6522750687,1821569.0997718479,125884.417477,566876.13502622047,"Summer",143110.00205000001,84184.093515999994,117514.17144000001,2255.6390882999999,55631.475301999999,41003.737305000002,10675.921503,35754.374125000002,0]
[601,"2011-08-30","KW60MN17 ",8628121.6465633158,2513864.7231219346,1804985.0163026133,135967.99703999999,572911.7097793211,"Summer",226702.68333,95986.369267999995,128195.72055,2460.6672938000002,54491.486054000001,39400.206833999997,9476.3384456999993,34409.681808000001,0]
[602,"2011-10-28","KW60MN12 ",6990739.5656863907,2513679.4481676002,1832859.17423977,102739.816481,578080.45744683011,"Summer",184416.45009999999,72713.787880999997,138502.78622000001,2658.5074346000001,57364.258958999999,42107.450096,9401.3759320000008,19170.103298999999,0]
[603,"2012-04-10","KW60MN09 ",6840591.2962059602,2513678.3668731945,1905426.0824784059,118998.2700560918,489254.01433869672,"Summer",179689.89941000001,63107.383834,110104.34624,2113.4103583000001,57136.261109999999,35949.573708000004,9448.2512048000008,7467.6597125999997,0]
[604,"2012-04-04","KW60MN20 ",6908035.7163370941,2513432.9489836562,1895522.6263854501,123074.3208911512,494836.00170705502,"Summer",167508.33291,58352.194661000001,91787.660814999996,1761.8286631000001,50159.526912000001,31377.627686,6867.7276111000001,7467.6597125999997,1323.4906082]
[605,"2011-10-24","KW60MN08 ",6838723.9303555219,2513341.8484737705,1821497.0684165088,106827.82891899999,585016.95113826194,"Summer",238398.89872999999,55402.638008000002,125909.84673,2416.7908296999999,56725.864979999998,42806.253811000002,9036.8021453000001,19170.103298999999,1526.1911886]
[606,"2011-08-26","KW60MN10 ",7775348.6535354704,2513026.9054592168,1817555.0000947465,133227.989699,562243.91566547006,"Summer",185983.07832,87542.165120999998,116949.42529,2244.7990043,56315.468850999998,41184.549100999997,10051.416724000001,46031.402668000002,0]
[607,"2011-07-23","KW60MN20 ",7991961.0828832993,2512532.4912316087,1816232.2138731754,133880.61453199998,562419.66282643343,"Summer",199169.61220999999,59150.942370999997,100014.98917,1919.7490501,53761.892935999997,32198.065052000002,6638.6111542999997,46384.775516000002,0]
[608,"2011-08-15","KW60MN15 ",8219699.7390085123,2511597.4639212894,1864978.8302222197,129256.47059299999,517362.16310606973,"Summer",174044.12379000001,86510.863347999999,121035.33119,2323.2263883999999,47651.550565999998,37005.884041999998,10253.73425,43935.144537,0]
[609,"2011-10-10","KW60MN20 ",7100445.2104698345,2511519.837040564,1865173.8667978838,105851.347287,540494.62295568024,"Summer",198639.40794999999,54882.575646999998,121530.48222999999,2332.7306211999999,48061.946695999999,38787.924904,7476.7489414000001,19170.103298999999,3053.2304963000001]
[610,"2012-05-14","KW60MN14 ",7479548.3001560513,2511487.9234267748,1793680.5558601692,135510.37409110455,582296.99347550108,"Summer",123248.23183999999,83377.345539000002,137311.97029999999,2635.6501833000002,55129.880033000001,41072.11333,10827.964373999999,21356.368259999999,0]
[611,"2011-07-27","KW60MN11 ",8103112.7524859784,2511447.0805932507,1813633.9164728585,135539.68323300002,562273.48088739207,"Summer",139618.28062000001,81295.728703999994,109106.24438,2094.2521790000001,56908.26326,40343.854257999999,9424.6366579999994,33623.079096000001,0]
[612,"2011-09-08","KW60MN10 ",7341261.4182172325,2510802.4960174067,1865817.4906504245,113255.02450200001,531729.98086498212,"Summer",123354.54614000001,79639.816390000007,138305.17774000001,2654.7144162999998,43456.390134000001,40888.306363000003,10420.642655,45970.593038999999,0]
[613,"2011-07-12","KW60MN14 ",8086139.3476176877,2510787.7985227872,1792317.7534426325,137591.669754,580878.37532615475,"Summer",181698.68953999999,81630.464128000007,126030.25184,2419.1019591999998,37254.848624999999,43014.257161000001,10748.100855000001,35184.695213999999,0]
[614,"2011-07-31","KW60MN14 ",8003335.3979556346,2510521.3815539544,1771727.1321793029,133838.99543099999,604955.25394365168,"Summer",226581.73240000001,66316.358672000002,106694.13841,2047.9527373999999,55221.079172999998,28578.665654,7588.4816855999998,33217.729813999998,0]
[615,"2011-07-23","KW60MN17 ",8288724.8891936848,2510452.5370374257,1805001.6183661553,132449.07502999998,573001.84364127065,"Summer",202496.55760999999,68463.629436999996,108987.53883,2091.9736720000001,52029.109278999997,33167.262436999998,7016.8772804,42108.436873999999,0]
[616,"2012-04-09","KW60MN09 ",6770137.559000208,2510140.8266027942,1894282.4255126405,121101.82077689888,494756.5803132549,"Summer",181166.42915000001,60893.456493999998,100756.33022,1933.9788048999999,45964.366478999997,33926.173143,8621.3544087999999,7467.6597125999997,0]
[617,"2011-10-27","KW60MN19 ",7160709.2829982573,2509615.7359979767,1819488.9035778432,105270.29164299999,584856.54077713331,"Summer",223411.31735,70234.431309000007,133921.01057000001,2570.5620223999999,48244.344975,39998.776231999997,7955.1885519999996,19170.103298999999,3049.4563644999998]
[618,"2011-07-07","KW60MN21 ",7735470.3114070157,2509554.2895685793,1792954.7103252914,140803.281131,575796.29811228788,"Summer",185882.55085,60654.836754000004,108234.20243,2077.5136708999999,55129.880033000001,36113.135323000002,7095.6996532000003,42855.484085999997,309.52124151999999]
[619,"2011-07-04","KW60MN17 ",7870443.2176722251,2509504.1871667625,1772816.2843496464,129851.16359200001,606836.73922511633,"Summer",217274.66876999999,59220.896103999999,93968.490367999999,1803.6888432000001,54582.685193999998,26504.683273999999,6858.5011949,48201.750031000003,0]
[620,"2011-07-12","KW60MN13 ",7923116.0610008864,2509417.4940966046,1791975.8249854485,138826.67365099999,578614.99546015623,"Summer",159913.02377999999,80008.241630999997,125837.35153,2415.3993123,40538.017658999997,42474.618032999999,10614.773219999999,34953.412255000003,0]
[621,"2011-07-11","KW60MN11 ",7901041.4111934882,2509383.9112516879,1790404.2322101004,134162.621656,584817.05738558748,"Summer",132663.65529,77337.039325999998,126888.64916,2435.5785639000001,54765.083473999999,40014.158176999998,9563.9369172000006,33064.529006999997,0]
[622,"2011-07-22","KW60MN17 ",8738483.8058326226,2507748.154338541,1824196.7369812448,136819.19887399999,546732.21848329634,"Summer",162337.07665,88256.724438999998,118413.21524,2272.8958864000001,55449.077022999998,38711.127449,6956.399394,45316.559460999997,0]
[623,"2011-08-16","KW60MN21 ",7566328.6867498606,2507746.17857579,1845644.745772751,137724.60085999998,524376.83194303897,"Summer",224364.47891000001,77132.695886000001,93090.117966999998,1786.8288246,54126.689494999999,34080.309430000001,7849.3674856999996,46061.417978999998,2493.8956323000002]
[624,"2011-07-18","KW60MN14 ",8794104.3984014168,2507034.323855048,1746863.9398203997,126442.31559199998,633728.06844264839,"Summer",186078.27471999999,84671.753108000004,120153.12515000001,2306.2927845999998,47742.749706000002,42135.368539000003,10040.243449,44068.187386999998,0]
[625,"2012-04-13","KW60MN07 ",6699595.9204977537,2506966.9108949271,1849353.4587237556,116889.50713418964,540723.94503698184,"Summer",249178.04070000001,47431.241781999997,88756.604506999996,1703.6487090999999,43501.989704,33875.565188,7247.1347654000001,7467.6597125999997,864.65791420000005]
[626,"2011-08-18","KW60MN13 ",8144666.7643739609,2506837.8668169971,1834917.0572413139,137368.224946,534552.58462968317,"Summer",164330.95459000001,89465.614791,120389.68157,2310.8333937000002,49885.929492000003,39589.868010999999,10976.42164,39185.111145000003,0]
[627,"2011-08-15","KW60MN19 ",7896448.1951631121,2506628.8614660036,1861820.3518919677,128975.958658,515832.55091603613,"Summer",228190.50055999999,60751.506783999997,105282.26148,2020.8523057,46009.966049000002,33426.853126000002,7864.6443987000002,44263.826390000002,0]
[628,"2011-07-11","KW60MN22 ",7536673.9310962008,2506618.5181576689,1785264.2400283101,139953.53848399999,581400.73964535887,"Summer",208462.28297999999,63981.114566999997,110287.94516,2116.9344686999998,54628.284764000004,36496.517423999998,7461.9799039,38344.949889000003,3053.2304963000001]
[629,"2011-10-31","KW60MN10 ",7064910.8849563925,2506587.6178140524,1826515.6631677567,106382.48642299999,573689.46822329576,"Summer",143559.99630999999,64922.226542999997,129689.43150000001,2489.3384980000001,56953.862829999998,43536.665070000003,9438.3289986,19170.103298999999,0]
[630,"2011-10-13","KW60MN10 ",6875406.5461753281,2506431.6304322882,1869191.1241885026,97872.099336999992,539368.40690678568,"Summer",148721.56547,69597.225047,132621.25083999999,2545.6136368000002,48381.143685000003,44426.434684,9886.6413976999993,19170.103298999999,0]
[631,"2011-07-08","KW60MN17 ",8138253.473869673,2506403.2495663632,1800403.5422521264,146189.04273299998,559810.6645812369,"Summer",159016.82954999999,78645.835806999996,104238.34497999999,2000.814732,56133.070571999997,37900.939136000001,7399.7142924999998,37291.535168000002,0]
[632,"2012-04-04","KW60MN13 ",6847186.7507761875,2506196.9440984232,1890967.5625247452,116487.51780001281,498741.86377366539,"Summer",168584.71348999999,73063.283387999996,113829.88069000001,2184.9205517999999,49612.332072999998,35822.728604000004,8475.4873112999994,7467.6597125999997,0]
[633,"2011-08-30","KW60MN13 ",8290827.4311974458,2505993.7454014597,1818667.2209469709,135066.97211099998,552259.55234348867,"Summer",178951.49674999999,87260.928169999999,129829.71351,2492.0311569999999,55266.678742999997,42371.585462000003,11375.246590999999,36460.292589999997,0]
[634,"2011-07-12","KW60MN16 ",8298276.4234759547,2505399.6602855045,1771528.3687206521,136880.59031299999,596990.70125185244,"Summer",177385.10169000001,82863.554525,119994.22601,2303.2427769999999,39899.623679999997,41075.266668999997,9981.9392707999996,35420.100708999998,0]
[635,"2011-07-02","KW60MN20 ",8212895.2856742237,2505071.1899293186,1775085.4748019492,134947.360311,595038.35481636936,"Summer",230327.20488999999,60929.942148000002,100527.70987999999,1929.5905259000001,54673.884334000002,30022.641015000001,6773.82809,50041.849674999998,0]
[636,"2011-10-27","KW60MN12 ",7049805.1381186834,2504481.4238195326,1842176.7362237675,106745.341258,555559.34633776476,"Summer",164882.84354,72793.559173999995,139672.54573000001,2680.9605160999999,46557.160887999999,42057.385106000002,10058.912974000001,19170.103298999999,0]
[637,"2011-10-04","KW60MN20 ",7187777.6724666469,2504429.4568331977,1855968.0924768618,115750.88180800001,532710.48254833592,"Summer",177989.12503,62672.588027999998,123053.40454,2361.9625261000001,51299.516159999999,39361.795933000001,7866.2086571999998,19170.103298999999,3053.2304963000001]
[638,"2012-05-16","KW60MN18 ",7359781.3292883309,2504305.2568707662,1788286.4623249646,133645.76152172667,582373.03302407474,"Summer",170578.48545000001,72649.229789000005,107117.50019999999,2056.0790034000001,53442.695946,36390.849754000003,7837.9030290000001,21356.368259999999,0]
[639,"2011-07-18","KW60MN15 ",8858202.9136699867,2503869.9411474066,1743237.6408411867,122834.812936,637797.4873702199,"Summer",195323.38967999999,84712.598014999996,119286.83147999999,2289.6646123999999,47514.751857000003,41586.058248000001,9872.7459080000008,44091.012370999997,0]
[640,"2012-04-05","KW60MN21 ",6772556.9259561002,2502775.2063792916,1861371.6809924967,118202.64229806767,523200.88308872719,"Summer",227678.39866000001,65461.649260999999,85239.965408999997,1636.1481812,52257.107128000003,32639.922592999999,7198.0654692999997,7467.6597125999997,3053.2304963000001]
[641,"2011-08-23","KW60MN10 ",7827025.4357652795,2502596.921071935,1817369.6983688159,134861.999774,550365.22292911913,"Summer",140836.10978,80708.048899999994,116916.62394999999,2244.1693952999999,55859.473151999999,40815.941794999999,10152.707533999999,43029.984562999998,0]
[642,"2011-09-23","KW60MN20 ",6935783.0787565839,2502379.141533833,1816216.931371137,115282.956571,570879.25359169627,"Summer",213060.73931,80722.767206999997,127386.73473,2445.1391239,56133.070571999997,40590.596425000003,9454.5607182000003,30217.333901999998,3002.0747501000001]
[643,"2011-08-09","KW60MN20 ",7853709.5555472514,2502265.2310432224,1809768.6983329239,136817.79291599998,555678.73979429866,"Summer",248146.32251,70068.517752999993,107825.73424000001,2069.6732820000002,55494.676592999997,36215.488204000001,8157.1607230999998,45342.82559,0]
[644,"2012-05-31","KW60MN13 ",7501844.8709652927,2501930.2320542289,1813777.5823899128,131687.69332364271,556464.95634067338,"Summer",119845.33706999999,89451.960187999997,123393.92688,2368.4987207999998,48837.139384000002,44191.659526000003,9027.0373804999999,27829.575407,0]
[645,"2011-07-15","KW60MN13 ",8203298.4270068919,2501426.2915269416,1793591.995953138,138592.83135199998,569241.46422180382,"Summer",147706.55063000001,87050.480490000002,119422.5825,2292.2703007999999,55677.074871999997,42252.099238000003,8067.5510622000002,39650.202811000003,0]
[646,"2011-09-23","KW60MN19 ",6973193.1172853997,2501269.6669334737,1813572.5276156918,112409.506263,575287.63305478182,"Summer",235448.12852,77559.354846000002,131102.04194,2516.4530092999998,55813.873582,41367.016402000001,9124.0146315000002,30217.333901999998,153.35415584]
[647,"2011-09-12","KW60MN11 ",6885439.7307316614,2501180.4602234992,1834655.6484853027,104665.32519,561859.48654819641,"Summer",135497.68221,80913.750088000001,144108.83572,2766.1133872999999,54901.882184000002,41267.363893000002,11076.249768,25711.552369000001,0]
[648,"2011-10-24","KW60MN20 ",7076496.3760062149,2500731.0695667649,1823412.485007585,103037.51777200001,574281.06678717968,"Summer",224188.48959000001,55976.976535000002,130243.06198,2499.9652212000001,56041.871432,43098.349348999996,7758.0513608000001,19170.103298999999,3053.2304963000001]
[649,"2011-08-19","KW60MN20 ",7886152.5089097293,2499838.0447282852,1825731.1381145902,135754.73342999999,538352.17318369495,"Summer",193957.81641,73487.170614000002,107122.3867,2056.1727977999999,55905.072721999997,35178.144501000002,7618.8323614999999,41195.474533000001,3.8589440678]
[650,"2011-07-22","KW60MN18 ",8607352.1192413568,2499741.2807389265,1824450.2247656097,133597.550257,541693.50571631663,"Summer",192236.98952999999,73428.636423999997,114081.35139,2189.7474347000002,55585.875732,37856.943655000003,6765.5192364000004,45306.192090999997,0]
[651,"2011-09-20","KW60MN20 ",6842853.2802830683,2499487.5391955003,1827263.3558120944,105381.712031,566842.47135240596,"Summer",206965.19200000001,68501.586920999995,129413.43348000001,2484.0408228000001,55905.072721999997,38770.880499999999,8428.264991,30217.333901999998,2829.2279797000001]
[652,"2012-06-28","KW60MN15 ",8165283.6164377006,2498830.1965752235,1809790.1881835351,129147.0951127701,559892.91327891801,"Summer",146643.01551999999,93895.146972000002,139850.25158000001,2684.3715112,55996.271862000001,46844.422578999998,10741.721931,35580.488708999997,0]
[653,"2011-07-18","KW60MN16 ",8942694.8739966881,2498397.4953499082,1735067.9983630169,124008.76746700001,639320.72951989155,"Summer",184813.37729999999,83476.269912000003,118168.6056,2268.2006990999998,46648.360028000003,38960.119353000002,9594.2063343000009,43499.453015999999,0]
[654,"2011-09-21","KW60MN18 ",6981387.4068107558,2498193.0169429048,1841595.0661132559,109281.268467,547316.68236264877,"Summer",174702.77217000001,74116.183793000004,132235.43953999999,2538.208138,50569.923041000002,39185.567568999999,8992.6372396000006,30217.333901999998,0]
[655,"2011-08-11","KW60MN21 ",7764284.5828321353,2497795.4904462192,1812619.2949486044,135187.426897,549988.76860061463,"Summer",223896.26569999999,70817.089856999999,97702.173219999997,1875.3554420999999,56680.265411,35437.245294,8093.1480183000003,49021.431270000001,2086.7982323000001]
[656,"2011-08-04","KW60MN10 ",7403382.4892716538,2497726.2232135106,1819653.9402817199,127872.01480500001,550200.26812679053,"Summer",152296.50690000001,78086.880802999993,117620.45871000001,2257.6792313999999,56041.871432,37906.318021999999,10367.112513,30266.938038,0]
[657,"2011-09-21","KW60MN17 ",7041321.3391600046,2497051.7897333549,1829627.2770448695,107236.68737700001,560187.82531148556,"Summer",157940.07801999999,87598.138068999993,141335.24802999999,2712.8754438999999,55540.276163000002,40243.746139000003,9778.5450469999996,30217.333901999998,0]
[658,"2012-04-18","KW60MN10 ",6933616.8176969625,2496985.5913200215,1894656.3933544001,112929.27012806459,489399.9278375571,"Summer",127781.61292,70585.798739999998,114531.35861,2198.3851493000002,35202.867978000002,35570.139824999998,9715.0131316000006,7467.6597125999997,0]
[659,"2011-09-10","KW60MN14 ",7293029.733142117,2496712.0941387787,1761962.4716519932,106781.243296,627968.37919078581,"Summer",234893.75949999999,81902.220946000001,127518.00771000001,2447.6588578999999,54719.483904000001,36962.821643000003,7811.2361469999996,37798.226541999997,0]
[660,"2011-07-20","KW60MN17 ",8440069.4113085847,2496191.2339255847,1786819.0744179171,130231.002133,579141.15737466759,"Summer",186256.28836999999,85538.084518000003,118552.48367,2275.5690900999998,50706.721750999997,37241.641876000002,8880.5388242999998,44873.836823999998,0]
[661,"2011-08-28","KW60MN14 ",7965270.1153873317,2495998.8365198802,1712690.3243794662,118363.19513599999,664945.31700441416,"Summer",263189.52520999999,72404.648813000007,104831.92414,2012.2082544,55403.477453,28796.856392000002,8142.4932607000001,42803.455825999998,0]
[662,"2011-07-26","KW60MN22 ",7677523.8729190463,2495935.8029140588,1812144.9969210515,128525.965603,555264.84039000724,"Summer",208681.93843000001,66346.029878000001,91062.826478999996,1747.9157482000001,56269.869280999999,35953.500223000003,7835.8376660000004,40944.927456999998,3053.2304963000001]
[663,"2012-05-31","KW60MN20 ",7580144.755785699,2495575.745311467,1830025.3761119277,134038.46609326531,531511.90310627408,"Summer",139153.54375000001,61844.717031,94632.077216999998,1816.4261362,55813.873582,38637.878358000002,6718.5643976000001,29273.646636000001,0]
[664,"2011-09-20","KW60MN17 ",6923344.5847457433,2495526.0543445093,1830081.2499393104,98826.787143000009,566618.01726219896,"Summer",187537.31682000001,84835.179334,138835.48546,2664.8934678999999,56133.070571999997,40607.595120999998,9378.9481233000006,30217.333901999998,0]
[665,"2011-09-22","KW60MN15 ",7016658.6722407294,2494833.3722058879,1839819.1282290805,105486.537149,549527.70682780724,"Summer",98416.111942999996,84482.481471000006,148028.34125,2841.3467805999999,55266.678742999997,43015.095840000002,11826.606248,30217.333901999998,0]
[666,"2011-08-18","KW60MN21 ",7858946.5066834213,2494806.7947581573,1822991.3046252634,138279.51949599999,533535.970636894,"Summer",226119.97373,79088.601351000005,95563.234303000005,1834.2993365,54491.486054000001,34805.530601999999,8034.1734446,46063.306415999999,2646.5571568999999]
[667,"2011-08-10","KW60MN14 ",7968388.991260808,2494691.7475468777,1819021.283816989,132271.766363,543398.69736688863,"Summer",171312.56388999999,87483.680741000004,125963.5652,2417.8219347999998,56133.070571999997,40865.401125999997,10234.780312999999,46202.664340000003,0]
[668,"2011-09-21","KW60MN16 ",7042800.6958009489,2494619.2393675153,1832235.41218321,106848.90167800001,555534.92550630507,"Summer",161623.82441,85993.781604000003,143118.58532000001,2747.1059137000002,50341.925192000002,40618.441832999997,11503.739247,30217.333901999998,0]
[669,"2012-04-03","KW60MN21 ",6893958.8984257812,2494586.2676425208,1888248.1064282451,105250.63662238246,501087.52459189313,"Summer",191497.95095999999,61852.167772000001,86709.693215000007,1664.3590382,55905.072721999997,32072.998222999999,6688.5455333,7467.6597125999997,3053.2304963000001]
[670,"2011-07-08","KW60MN19 ",7904342.6225211332,2493546.302068654,1792119.8732773417,144868.71065599998,556557.71813531208,"Summer",194876.15104999999,63916.572543000002,100136.44484,1922.0803447000001,55950.672292000003,35975.139984000001,6874.4078749999999,35984.029557000002,0]
[671,"2011-09-01","KW60MN16 ",8097152.2545803785,2493505.9404577781,1804271.9100814131,119832.86699900001,569401.16337736486,"Summer",150597.53427999999,95530.651293999996,129739.13593,2490.2925553999999,54217.888635000003,39463.636066999999,10444.634722000001,37059.771652000003,0]
[672,"2011-07-10","KW60MN20 ",7181675.0414231401,2493390.2532564392,1790100.7008565457,130436.81567800001,572852.73672189342,"Summer",223588.52551000001,56408.627828999997,93625.885972999997,1797.1126843,53533.895085999997,29503.494423,6439.1986786999996,35602.315175999996,0]
[673,"2011-07-08","KW60MN16 ",8093798.7376837693,2493042.5725654289,1796630.9819673134,147079.91040699996,549331.68019111548,"Summer",157501.01089000001,79796.379965,108623.61277000001,2084.9882518999998,55996.271862000001,38420.462336999997,7814.3240334000002,38368.451321,0]
[674,"2011-08-11","KW60MN13 ",8151862.8318491848,2492902.2504336508,1836192.2255347043,129630.67253400001,527079.35236494686,"Summer",140596.60320000001,89274.750813999999,124950.43526,2398.3752973999999,48745.940243999998,40114.488885999999,9883.7769767999998,45813.395613000001,0]
[675,"2011-08-17","KW60MN21 ",7765471.5042263744,2492432.7869539922,1827636.6872935581,138583.19872399999,526212.90093643405,"Summer",227262.92395,79529.920773000005,101490.50694000001,1948.0710431,54993.081323999999,34410.741343000002,8360.2908520000001,44380.668898999997,2595.6699819999999]
[676,"2011-09-21","KW60MN20 ",6972544.4700381393,2492019.3512062421,1817192.1693600654,114950.431406,559876.75044017693,"Summer",162965.86885,71327.998267000003,128042.36126999999,2457.7236217999998,55677.074871999997,37991.011895000003,8782.3155845000001,30217.333901999998,2900.4134826]
[677,"2012-06-01","KW60MN13 ",7380484.8114132285,2492007.5351946438,1799586.7781912962,135306.02768136602,557114.72932198166,"Summer",127395.78243000001,85796.096751999998,125286.73527,2404.8304459999999,56725.864979999998,45002.980043000003,9273.4825703999995,28703.946832000001,0]
[678,"2011-10-17","KW60MN10 ",6947018.3870863719,2491765.3174633421,1845963.3776373346,96535.142737999995,549266.79708800733,"Summer",157050.02035999999,61851.067112999997,126957.59273999999,2436.9019093000002,56999.462399999997,43015.131614999998,8701.0350913000002,19170.103298999999,0]
[679,"2011-10-05","KW60MN10 ",7043036.1348997457,2491560.9351609228,1864378.9681709474,110566.64918199999,516615.31780797552,"Summer",128979.36838,63393.635612999999,129597.89223,2487.5814372999998,56452.267561000001,41673.078367000002,9737.8946434000009,19170.103298999999,0]
[680,"2011-07-18","KW60MN13 ",8719818.5324018802,2491492.1826511994,1745000.6655855104,132487.945863,614003.57120268873,"Summer",170823.64107000001,80135.344490999996,118632.53947,2277.1057302999998,47833.948845999999,41587.439485000003,9673.8006776000002,44058.088365000003,0]
[681,"2011-07-08","KW60MN15 ",8001656.5376114296,2490855.3580014985,1794439.9173927396,144609.74086200001,551805.69974675868,"Summer",150014.39014,81355.739545999997,115684.92822,2220.5274718999999,56133.070571999997,39848.281661000001,8125.8146101000002,39424.799408999999,0]
[682,"2011-10-05","KW60MN09 ",6945307.1767871408,2490760.7202547742,1857265.8333932499,114188.612857,519306.27400452434,"Summer",136322.28305999999,58049.839511999999,125749.72146,2413.7172869999999,56361.068421000004,40894.728631999998,9281.1718144999995,19170.103298999999,0]
[683,"2011-09-22","KW60MN17 ",7049018.4307482485,2490643.4535075757,1848195.6286768855,96532.664145999996,545915.16068469011,"Summer",148704.07782000001,85002.209617999993,139435.50300999999,2676.4105728,50387.524762000001,41207.117472999998,9440.2386127999998,30217.333901999998,0]
[684,"2011-10-06","KW60MN11 ",7070910.3486328674,2490623.710888485,1864721.6673678185,104462.194067,521439.8494536666,"Summer",123646.89721,70090.905325999993,126223.15961,2422.8047492999999,57136.261109999999,42400.324201000003,9315.8699109000008,19170.103298999999,0]
[685,"2011-09-19","KW60MN14 ",6946876.0676451763,2490346.9990053577,1841785.4101031313,103076.921246,545484.66765622608,"Summer",119747.14128,75159.350191999998,143073.84982,2746.2472332000002,56315.468850999998,41976.061856,10347.914795999999,30217.333901999998,0]
[686,"2011-08-05","KW60MN11 ",7574247.8625668669,2490072.0781055931,1781932.4930382052,132223.84357800003,575915.7414893877,"Summer",186112.82607000001,91594.444289000006,121501.53853000001,2332.1750579999998,54537.085623999999,37655.443062999999,8944.2874331000003,32933.637054999999,0]
[687,"2011-07-20","KW60MN18 ",8386785.7344106957,2490013.859829607,1778285.862201564,129548.117862,582179.87976604316,"Summer",195427.51008000001,77611.662679000001,111210.29025999999,2134.6385261999999,50478.723900999998,36231.160311,8051.7459571999998,44384.233637999998,0]
[688,"2012-06-01","KW60MN19 ",7493801.9648442315,2489801.6366080716,1805388.8922264585,131785.05610232524,552627.68827928777,"Summer",177542.46932,72959.058174999998,99407.081699000002,1908.0805012000001,56361.068421000004,40117.200014000002,7429.9481574000001,25354.805501999999,0]
[689,"2012-05-16","KW60MN14 ",7653032.2187991049,2489760.6778020123,1801219.5948999478,132690.26844558862,555850.81445647613,"Summer",148050.24119,90250.404211999994,134091.26422000001,2573.8299753000001,44915.576371000003,40787.240546000001,10971.783038,21356.368259999999,0]
[690,"2011-10-24","KW60MN10 ",6937815.297430383,2489609.9804678932,1837163.9356152928,101656.82024,550789.22461260017,"Summer",154112.36060000001,62119.838493000003,131581.41725999999,2525.6544333000002,55540.276163000002,44935.809246999997,9509.7363796999998,19170.103298999999,0]
[691,"2012-04-11","KW60MN09 ",6737231.1830164231,2489576.4141168236,1876605.6922552271,117575.49933613128,495395.22252546495,"Summer",146732.30850000001,65697.807381000006,108362.71034999999,2079.9803308,56680.265411,35143.100164000003,9690.2829500999997,7467.6597125999997,0]
[692,"2012-04-10","KW60MN10 ",6860072.0924110394,2489310.202267339,1872078.8607632276,122947.31320456807,494284.02829954319,"Summer",169421.69349000001,71658.199294999999,116588.39885,2237.8692415,56999.462399999997,36666.85514,9372.5522705999992,7467.6597125999997,0]
[693,"2011-07-22","KW60MN16 ",8735317.9182537161,2489171.9034839459,1819949.1897767007,132604.986347,536617.72736024531,"Summer",145231.00988999999,90678.698896999995,119758.96954999999,2298.7271202000002,55266.678742999997,40063.694022999996,7314.5129968000001,45923.240167999997,0]
[694,"2011-08-09","KW60MN12 ",7927565.9044162612,2488315.3495342275,1803804.7622888344,133397.94815100002,551112.63909439289,"Summer",152165.70989999999,86949.613492999997,124644.74935,2392.5077744999999,55540.276163000002,39274.103083000002,10053.204448,39542.416107999998,0]
[695,"2011-09-22","KW60MN16 ",7042942.3047854295,2488013.2135829274,1838891.0010418661,107082.71937400001,542039.49316706136,"Summer",128480.58888,83846.202332999994,146561.90452000001,2813.1990944999998,51983.509708999998,41864.095939999999,11346.561749,30217.333901999998,0]
[696,"2011-09-01","KW60MN15 ",8066700.55631008,2487812.2471357002,1812246.9970351076,119704.57900199998,555860.67109859269,"Summer",133157.69722999999,93597.723098000002,132620.75477999999,2545.6041151999998,55950.672292000003,41386.128192999997,10774.327579000001,36727.07836,0]
[697,"2011-08-07","KW60MN17 ",7755431.1461977735,2487596.5609852774,1763779.5881358145,122080.946717,601736.02613246255,"Summer",249111.39687,67610.597527000005,105611.79998,2027.1776698000001,55266.678742999997,28283.159242999998,7566.4804925999997,29218.794376999998,0]
[698,"2011-08-05","KW60MN20 ",7522426.367086635,2487537.0796119664,1766689.8993610626,130083.301291,590763.87895990396,"Summer",201326.95196999999,77973.340958999994,112736.74857,2163.9383034000002,54172.289064999997,35774.259459000001,7484.7733836999996,33605.064702000003,0]
[699,"2011-09-01","KW60MN14 ",7977269.8805904305,2487327.6299310401,1813149.5736498446,118324.602232,555853.4540491954,"Summer",131750.38677000001,91613.582907999997,133059.71385,2554.0297648000001,55859.473151999999,42297.166920999996,10445.528584,38494.336607999998,0]
[700,"2012-04-19","KW60MN08 ",6772590.387285742,2487270.2241644892,1862002.9838045465,105632.68662840399,519634.55373153865,"Summer",221816.22135000001,55897.181140000001,105629.27343,2027.5130658,34701.272708999997,35836.120430000003,8970.0164370999992,7467.6597125999997,0]
[701,"2012-04-02","KW60MN12 ",6971204.9278443316,2487099.8276680824,1841301.9538724092,114514.1669769736,531283.70681869949,"Summer",193309.98916999999,65582.037295999995,101816.03335,1954.3193968,56589.066271000003,34589.384219,7823.3032833999996,7467.6597125999997,0]
[702,"2011-07-20","KW60MN16 ",8394903.3713438828,2487050.225303282,1786843.558959285,128257.23341099999,571949.43293299701,"Summer",165479.71283999999,87529.125922000007,123938.25954,2378.9469757000002,49475.533363000002,37731.092795999997,10165.770108000001,44844.066967999999,0]
[703,"2011-09-22","KW60MN18 ",6977634.8036737349,2486993.7598144729,1842761.5831172825,98392.122349999991,545840.05434719054,"Summer",159510.15078,73636.177398999993,132667.00141,2546.4918013000001,50433.124331999999,40728.800442,8881.3920557000001,30217.333901999998,0]
[704,"2011-08-30","KW60MN12 ",8065823.9791779872,2486901.6042169156,1804050.4936861221,134802.42391300001,548048.68661779375,"Summer",152908.16120999999,94582.260504999998,132121.01155,2536.0117371000001,55403.477453,41250.260361000001,11504.450274000001,36115.341796000001,0]
[705,"2011-08-12","KW60MN12 ",7622730.7998349806,2486792.3492908226,1812399.1954135946,133155.714523,541237.43935422821,"Summer",179253.6727,89192.699468999999,116623.07210999999,2238.5347812,56543.466700999998,39169.092554000003,9296.2658926000004,45546.649426999997,0]
[706,"2011-08-31","KW60MN15 ",8614707.9480636939,2486737.1614454621,1814515.0523125934,130692.02706800001,541530.08206486888,"Summer",131004.95726,83579.285203000007,123364.37804,2367.9315422,56041.871432,40032.300121,10615.545190999999,33821.313543999997,0]
[707,"2011-09-14","KW60MN11 ",6819839.7306357324,2486596.4674888789,1828853.8417702832,107065.555742,550677.06997659581,"Summer",119765.25423999999,85212.319870000007,142326.33609999999,2731.8989962999999,53807.492506000002,40464.998466999998,10951.08878,24928.887171999999,0]
[708,"2011-07-21","KW60MN19 ",8524525.0172931701,2486391.8669898403,1829830.9786786111,130438.99061399998,526121.89769722929,"Summer",180368.37771999999,65505.593690000002,113608.6974,2180.6750240000001,54445.886484000002,36853.408039000002,7226.8332644000002,46313.538486999998,0]
[709,"2011-09-01","KW60MN17 ",8053130.4002091959,2486156.5569734061,1796212.4706231966,120390.54580499999,569553.54054520966,"Summer",179674.06513999999,88948.165089999995,125865.85406,2415.9464072999999,51345.115729999998,39007.521731000001,9149.8756823999993,40727.928095000003,0]
[710,"2011-07-22","KW60MN19 ",8440200.2311660629,2485852.8572408422,1807365.0082994401,133350.87190499998,545136.97703640221,"Summer",194843.69821999999,65741.083379999996,104822.69865000001,2012.0311747999999,55540.276163000002,37714.413572999998,6542.3584733999996,45700.853857000002,0]
[711,"2011-10-26","KW60MN13 ",6929332.945178194,2485710.150696388,1826808.0199703181,95786.298253000001,563115.83247306978,"Summer",171397.58564999999,77341.353589000006,143432.08548000001,2753.1234282,54263.488205000001,43841.257355000002,10105.109385,19170.103298999999,0]
[712,"2011-09-29","KW60MN20 ",7297275.2757649822,2484691.9840997932,1827417.4836231582,110669.510132,546604.99034463509,"Summer",169629.52092000001,65267.198901999996,117336.73762,2252.2333146999999,55950.672292000003,39340.139280000003,8306.6388196000007,30217.333901999998,3053.2304963000001]
[713,"2011-09-20","KW60MN16 ",6925204.9617017237,2483608.4307465572,1828601.685142789,99152.146294000006,555854.59930976806,"Summer",142350.44464,82243.285562999998,140100.30037000001,2689.1711011000002,56315.468850999998,41236.852894000003,11112.044876,30217.333901999998,0]
[714,"2012-06-21","KW60MN13 ",7689149.4284977298,2483371.8830543766,1770215.7569003394,130044.95784356138,583111.16831047588,"Summer",137802.04538,93107.021829999998,131034.92928,2515.1648079000001,55905.072721999997,43389.142182000003,9797.1536271999994,35687.156904000003,0]
[715,"2011-10-24","KW60MN09 ",6875378.0386779578,2483310.2711536987,1821734.8971427451,101761.53607099999,559813.83793995343,"Summer",161074.48970999999,59133.704598999997,129669.22573000001,2488.950656,55585.875732,43856.190154999997,9431.1781028999994,19170.103298999999,0]
[716,"2011-08-10","KW60MN13 ",7816502.878008049,2483178.638470287,1820729.8993047951,129295.11469900001,533153.62446649175,"Summer",155560.92071000001,83128.519392000002,121157.19748,2325.5655646999999,56178.670141000002,40605.258941,9906.9564418999998,45820.256593999999,0]
[717,"2011-09-20","KW60MN18 ",6831541.7163918503,2482659.2687010956,1821425.5075427897,99140.730238999997,562093.03091930598,"Summer",197415.80257,73573.676015000005,133901.13539000001,2570.1805260000001,56452.267561000001,39884.214274999998,8679.1964191999996,30217.333901999998,0]
[718,"2011-07-12","KW60MN12 ",7757577.6386724478,2482636.6477334872,1770462.8386918474,141881.15257400001,570292.65646763961,"Summer",146898.45175000001,84989.745653999998,126470.48871000001,2427.5521358000001,42134.002606000002,41209.616126000001,10463.588658999999,34650.494296999997,0]
[719,"2011-07-08","KW60MN14 ",7837286.8043832034,2482399.5162583822,1787088.1223544711,144904.60340600001,550406.79049791105,"Summer",153825.69036000001,77557.312600999998,118131.04053,2267.4796519000001,56087.471001999998,40871.224693999997,8197.3845110000002,39110.569412999997,0]
[720,"2012-04-07","KW60MN10 ",6565837.8719491148,2482313.1884654858,1855972.7135407019,108946.0351862754,517394.43973850849,"Summer",246052.19265000001,50749.760348000003,74455.112252999999,1429.1370944,56133.070571999997,24190.550201999999,5681.4983098000002,7467.6597125999997,0]
[721,"2012-04-12","KW60MN07 ",6769426.4042567685,2482307.4921671292,1843611.9771770057,113988.46120588836,524707.05378423538,"Summer",202809.28972999999,47461.796729000002,91330.455163000006,1753.0527774,54537.085623999999,32786.075340000003,7652.4452950000004,7467.6597125999997,966.43226404999996]
[722,"2011-08-08","KW60MN11 ",7745857.3542166036,2481638.5470593106,1785983.6263944455,131252.72855100001,564402.1921138654,"Summer",134980.63076999999,82878.218200999996,125189.54442000001,2402.9649052,56999.462399999997,38558.075102000003,9683.0846529999999,36472.149642999997,0]
[723,"2011-08-17","KW60MN12 ",7950264.6712245271,2481585.0056433845,1826739.8220341331,133030.99084300001,521814.19276625174,"Summer",172279.33402000001,91495.139104000002,113176.53176,2172.3797717000002,52941.100677000002,38028.855395999999,10676.510639,40096.903860999999,0]
[724,"2012-05-14","KW60MN13 ",7345459.9176904997,2481571.8738573794,1776338.8353120696,137043.24118496582,568189.79736034374,"Summer",117574.45479,82896.797651999994,133374.45014,2560.0710061999998,55221.079172999998,40332.523531999999,10593.660809000001,21356.368259999999,0]
[725,"2011-07-04","KW60MN19 ",7620828.6573697422,2481417.0293019339,1756221.9028624413,128795.68134000001,596399.44509949279,"Summer",218985.32102,54820.001956,88422.470033000005,1697.2351269999999,54582.685193999998,25726.448307999999,6912.9048837,49604.462334000003,0]
[726,"2011-09-22","KW60MN20 ",6924877.1740125464,2481314.032109092,1816226.2076737054,102828.50657699999,562259.31785838678,"Summer",200907.93734,79169.409031000003,129031.48497999999,2476.7094691000002,55449.077022999998,40827.183498999999,8679.7855557999992,30217.333901999998,2958.0290737]
[727,"2011-08-12","KW60MN21 ",7426055.4301873073,2481306.0399487312,1792119.1120689909,138383.28537699999,550803.64250274014,"Summer",209710.57243999999,69416.120785000006,99596.555093000003,1911.7173697000001,56680.265411,34683.219792000004,7698.1422946000002,48553.054670999998,2188.5725819999998]
[728,"2012-04-05","KW60MN13 ",6695380.4472777173,2480966.6321449475,1851450.4688311494,116420.36115437902,513095.80215941899,"Summer",183401.11730000001,73433.783009999999,101317.45941,1944.7494629,48928.338523999999,35580.792183999998,8262.0963924000007,7467.6597125999997,0]
[729,"2011-09-19","KW60MN17 ",7015340.0095733851,2480822.1707254783,1825868.3311313705,102428.14321899999,552525.69637510797,"Summer",175527.21405000001,74555.229590000003,132917.45370000001,2551.2991363000001,56315.468850999998,40017.203863000002,9164.8275549000009,30217.333901999998,0]
[730,"2011-07-09","KW60MN18 ",7831279.3004175574,2480768.2451505335,1785405.7712719585,140081.95072300002,555280.52315557515,"Summer",183461.76233999999,64645.504706,102456.76823,1966.6180549999999,55540.276163000002,31413.054559,6766.8397140999996,37875.321785,0]
[731,"2011-10-12","KW60MN10 ",6916278.3082029354,2480745.7261416251,1878638.2866734271,99236.723999000009,502870.71546919824,"Summer",155511.59494000001,61125.522088999998,132945.89515,2551.8450588000001,36570.855076,42658.331923999998,9949.6992958999999,19170.103298999999,0]
[732,"2011-09-06","KW60MN10 ",7201878.9054881539,2480734.4288295396,1833800.2742060639,116754.02540300001,530180.12922047544,"Summer",111574.31584,73211.878830999995,130327.69103,2501.5896429999998,55950.672292000003,38228.831651,9370.3345442999998,31601.169243,0]
[733,"2011-09-07","KW60MN10 ",7271904.9944014195,2480397.1806048858,1853528.181942686,111467.732938,515401.26572419977,"Summer",114549.82312,78212.680546999996,123576.21734,2371.9977156999998,40036.42239,39743.156857000002,9705.0858459999999,33668.174380999997,0]
[734,"2011-08-18","KW60MN20 ",7939245.9345004698,2480267.6152410409,1815059.0041548153,133390.61702500001,531817.99406122556,"Summer",234224.83050000001,78824.727503000002,101058.13932,1939.7719139000001,55129.880033000001,35000.128968999998,7786.0251773,43136.451931000003,0]
[735,"2011-09-19","KW60MN16 ",7000870.3212106163,2480135.6270813141,1832570.8000347833,101344.241861,546220.58518553106,"Summer",170214.62580000001,74025.507135000007,140236.82362000001,2691.791612,55813.873582,40414.948380000002,9957.8253132999998,30217.333901999998,0]
[736,"2011-10-05","KW60MN11 ",7063576.2132779229,2479491.4017616883,1840070.5438714167,111079.14958900001,528341.70830127131,"Summer",118853.13036,67605.442907000004,134382.57702999999,2579.4216121999998,56634.665841000002,41836.926747999998,10004.976531,19170.103298999999,0]
[737,"2011-08-11","KW60MN12 ",7939895.9359873934,2479185.2737046736,1822038.5952076977,133141.98638599998,524004.69211097597,"Summer",149030.37612,87031.181190000003,123795.00337000001,2376.1972291000002,49110.736804,39622.719664999997,9747.0364131999995,46518.296491000001,0]
[738,"2011-08-20","KW60MN15 ",8099767.992114515,2478761.7069849167,1802564.7565107853,130534.355167,545662.59530713141,"Summer",237357.23907000001,73675.508698999998,108038.97674,2073.7663892999999,55175.479603,33959.483702999998,7849.2252799999997,40559.448940000002,0]
[739,"2011-09-19","KW60MN20 ",6959903.8654944599,2478496.8053391259,1819701.0260813423,109241.900117,549553.87914078357,"Summer",195075.29826000001,61085.654117999999,122359.85421,2348.6500956,56315.468850999998,37441.873511999998,8738.0287872999997,30217.333901999998,2744.4725620999998]
[740,"2011-07-02","KW60MN16 ",8378095.6487598829,2478373.6201608032,1752552.6817671666,133056.89499600002,592764.04339763673,"Summer",191355.26235,65199.816052000002,103510.99569,1986.8535434999999,54856.282614000003,31086.636193999999,7185.1264789999996,46383.599553,0]
[741,"2011-07-30","KW60MN12 ",7936436.5514026154,2478196.4071700159,1769143.8185576268,139757.908406,569294.68020638905,"Summer",205720.9724,78170.235264999996,104218.16688,2000.4274212,55129.880033000001,31450.223835000001,7372.3702431000002,39821.566292000003,0]
[742,"2011-09-09","KW60MN10 ",7270672.1264056629,2478009.968144597,1814904.5193213297,110993.094728,552112.35409526725,"Summer",121898.04769000001,80975.152419999999,133280.22459999999,2558.2623834000001,53625.094226000001,41869.901619999997,9995.3472000999991,40840.138991,0]
[743,"2011-08-31","KW60MN16 ",8679926.599122161,2477880.7681895718,1803005.8193727564,134103.07465700002,540771.87415981526,"Summer",160149.95490000001,85986.337289999996,123596.88873999999,2372.3944952000002,55768.274012000002,38157.060818999998,9812.3899108999994,32908.122965000002,0]
[744,"2012-04-17","KW60MN10 ",6957802.6697422881,2477594.9207890783,1884901.382625299,112190.63837161456,480502.8997921648,"Summer",165351.08854,70570.346124999996,114873.54549,2204.9532942000001,35020.469699000001,35591.837634000003,9568.8108358000009,7467.6597125999997,0]
[745,"2012-06-28","KW60MN14 ",8303762.9845029153,2477401.7279667864,1797418.3389205071,125586.07342708307,554397.31561919628,"Summer",141535.89123000001,93532.167182000005,139653.70686999999,2680.5989115000002,55722.674442000003,49102.178462999997,10598.460239,37072.714193,0]
[746,"2011-10-07","KW60MN08 ",6905683.8301241891,2477306.55838073,1843121.7222814304,117739.809072,516445.0270272998,"Summer",184306.78664999999,52848.749924999996,121474.79883,2331.6617999,56543.466700999998,39627.149077000002,7791.0023627,19170.103298999999,309.52124151999999]
[747,"2011-09-20","KW60MN15 ",6902540.5837880829,2477073.3752474058,1822843.8269402084,99427.72103500001,554801.82727219723,"Summer",113177.42436,82880.544850000006,138720.90947000001,2662.6942260000001,56087.471001999998,42782.792103,11348.999554,30217.333901999998,0]
[748,"2011-08-02","KW60MN10 ",7175821.5069784485,2476408.9227964585,1812315.5983722007,132253.87004400001,531839.45438025787,"Summer",143902.74359,82116.859167000002,109129.99890000001,2094.7081377999998,56908.26326,37792.597234000001,11098.210331,25069.031470000002,0]
[749,"2011-10-27","KW60MN21 ",7022906.1142826946,2476329.1455701543,1781115.9540546059,109723.12930099999,585490.06221454858,"Summer",245777.59419999999,67127.872424000001,117259.46683999999,2250.7501321,56634.665841000002,39468.119137000002,7738.4676577,19170.103298999999,3053.2304963000001]
[750,"2011-07-12","KW60MN17 ",8246772.7662586244,2476141.7044320633,1729316.9958426482,136809.98519900002,610014.72339041508,"Summer",187273.91046000001,83617.000058999998,115270.35775,2212.5699519999998,42179.602176,40064.015485000004,8789.8727806000006,35694.173862000003,0]
[751,"2011-10-13","KW60MN11 ",6886746.702006761,2475747.2620618111,1845327.008373433,98927.360892000012,531492.89279637788,"Summer",138305.32926999999,71142.753276000003,132055.45298,2534.7533656000001,48335.544114999997,43965.925217000004,9620.7580969999999,19170.103298999999,0]
[752,"2011-08-31","KW60MN14 ",8453200.4183909651,2475741.3600050933,1803097.0436115833,131163.23706799999,541481.07932550996,"Summer",127522.44598999999,90106.036265000002,124508.97018999999,2389.9015460000001,56178.670141000002,40928.383198000003,10502.573229,34414.920083999998,0]
[753,"2012-05-14","KW60MN20 ",7370049.2567594489,2475664.0798763167,1745914.8810718488,136030.16257951554,593719.03622495232,"Summer",210200.50211999999,61051.323186000001,105111.20783,2017.5689970000001,54993.081323999999,36266.51887,7470.5630099999998,21356.368259999999,0]
[754,"2011-09-02","KW60MN17 ",7407987.8928741962,2474641.3930386347,1798909.9095768125,124459.647861,551271.83560082212,"Summer",198798.29117000001,88631.795413999993,119250.47025,2288.9666728000002,56406.667991000002,37887.991748,8245.0232904999993,40863.311259000002,0]
[755,"2012-06-28","KW60MN16 ",8143411.9383651521,2474206.6661158437,1774533.5372415329,135393.68631886638,564279.44255544432,"Summer",151190.21713999999,94505.015104999999,135126.27492,2593.6966056000001,55813.873582,46011.497172000003,9864.1120138000006,25545.041998000001,0]
[756,"2012-04-13","KW60MN11 ",6778925.3145425012,2474070.5734014651,1885017.2459564286,121764.7730833086,467288.55436172814,"Summer",139673.27661999999,65175.807217000001,111516.47682,2140.5156588,29958.917437,36493.859865999999,8514.686882,7467.6597125999997,0]
[757,"2011-10-19","KW60MN08 ",6865383.3668901492,2473707.1613084883,1800186.6675012333,99003.498324,574516.99548325501,"Summer",231946.49742999999,57394.077899999997,122020.04874,2342.127661,45690.769059999999,44029.722120999999,9763.1868728999998,19170.103298999999,1169.9809634999999]
[758,"2011-07-21","KW60MN13 ",8420899.8655581959,2473087.0806108061,1789546.9125134766,127135.70383599999,556404.46426132973,"Summer",157693.35381,90895.647698999994,129651.1786,2488.6042484999998,54309.087775,42052.048949000004,9952.8481279999996,43314.899701000002,0]
[759,"2011-09-23","KW60MN14 ",6922014.9378794795,2472560.3164233784,1800983.0384129421,109071.97011800001,562505.30789243651,"Summer",128462.68789,92645.720218000002,148904.15815999999,2858.1577476000002,56087.471001999998,45501.045044999999,11149.729283999999,30217.333901999998,0]
[760,"2011-07-10","KW60MN16 ",7608294.0362567352,2472496.9595636446,1773204.5014227217,130709.90482700001,568582.55331392295,"Summer",225798.44477999999,53514.901119000002,97280.752011999997,1867.2664248999999,52895.501106999996,29368.192502000002,6847.3482357000003,33975.027466,0]
[761,"2011-07-04","KW60MN16 ",7800322.3039435837,2472422.3469140376,1746177.4547291799,130359.114605,595885.77757985773,"Summer",226631.83186000001,61224.975100000003,95118.107835999996,1825.7553061000001,54719.483904000001,26081.299357,6916.3584411000002,48268.891191000002,0]
[762,"2011-08-15","KW60MN14 ",8119616.4617567603,2472360.1192015843,1832148.532569482,129867.32263499999,510344.26399710221,"Summer",164875.02179,85497.025905999995,118351.90058,2271.7189752999998,47469.152286999997,37408.647233000003,10241.220182999999,43435.519336999998,0]
[763,"2012-04-04","KW60MN22 ",6580293.4910434941,2471985.5448905947,1855276.9190588135,117479.4748748501,499229.15095693106,"Summer",241449.31672,60732.135177999997,83057.007524000001,1594.2471485000001,51025.918740000001,31719.412949000001,6736.3485252999999,7467.6597125999997,3053.2304963000001]
[764,"2011-08-08","KW60MN22 ",7435073.7633318305,2471863.0634560511,1765374.4344612178,131984.57603599998,574504.05295883329,"Summer",221692.86455,69781.419188999993,103224.09157,1981.3465299,57090.661540000001,34318.027828999999,8119.2528499,44547.168524000001,3053.2304963000001]
[765,"2011-08-22","KW60MN10 ",7811022.6492124181,2471750.7093260931,1797514.9546596105,125993.888169,548241.86649748264,"Summer",145251.52872999999,81804.188347999996,110222.91939,2115.6863241000001,57181.860679999998,37700.466027000002,10887.46206,43200.912937000001,0]
[766,"2011-07-09","KW60MN19 ",7564652.9742234666,2471282.6341770189,1780483.8215574559,141039.70501700003,549759.10760256299,"Summer",186260.06146,59401.311048000003,105187.97129,2019.0424419999999,55449.077022999998,31379.000530000001,6644.4415722000003,38004.977824000001,0]
[767,"2011-10-31","KW60MN11 ",7010726.6037843972,2471173.8896584874,1799095.0111049754,104902.072292,567176.80626151199,"Summer",118754.45763,68619.156625000003,131149.65294999999,2517.3668842000002,56953.862829999998,42984.030359999997,9489.6244857999991,19170.103298999999,0]
[768,"2012-06-15","KW60MN18 ",7438011.7385269646,2471135.4905407475,1807802.2859730807,129892.55561699945,533440.64895066747,"Summer",147619.15479,68433.296228000007,105473.73208,2024.5275097000001,55813.873582,40989.396998999997,7885.3047987999998,31015.617526999999,0]
[769,"2011-07-20","KW60MN19 ",8302345.7052476862,2470680.025510266,1762539.6896071534,127642.871495,580497.46440811246,"Summer",225991.5932,69401.166278000004,105340.83498,2021.9766013000001,52029.109278999997,35602.203631999997,7786.2486428000002,44300.699260000001,0]
[770,"2011-09-19","KW60MN15 ",6951949.8029778656,2470587.1019944386,1829597.2719015789,97841.605975999992,543148.22411685961,"Summer",152046.92108,78378.433422000002,140654.77093999999,2699.8139492999999,56315.468850999998,41936.564349,10148.624211,30217.333901999998,0]
[771,"2011-09-01","KW60MN18 ",7934325.3965482991,2470170.9382517627,1779333.2157219006,120479.422125,570358.30040486227,"Summer",187468.23530999999,83767.700414000006,122461.52644,2350.6016547999998,52849.901536999998,38248.281800999997,8526.7116963000008,41634.010897,0]
[772,"2011-08-15","KW60MN13 ",7963962.1368386587,2470164.9943168047,1832375.0811323456,130116.13579100001,507673.77739345899,"Summer",146031.74275999999,81032.947482000003,115826.27353999999,2223.2405405999998,49293.135084000001,36691.740829000002,9898.6882188,43112.167608000003,0]
[773,"2011-09-05","KW60MN16 ",7139995.4024271248,2470142.6429038816,1802996.0363027765,110933.69546300001,556212.91113810509,"Summer",249949.61689999999,57243.094748000003,108528.43646,2083.1613794,54856.282614000003,22689.906446000001,7521.3201486999997,36443.167492,0]
[774,"2012-04-19","KW60MN09 ",6754994.7732258029,2469615.2317655785,1867939.303572831,107150.7425177813,494525.18567496614,"Summer",157735.38776000001,66122.043283999999,112972.13238,2168.4564045000002,35476.465398,36305.305410000001,9228.5287633000007,7467.6597125999997,0]
[775,"2011-10-05","KW60MN21 ",6938157.8573304908,2469446.9786219522,1822879.0452872373,109343.25809100001,537224.67524371506,"Summer",174213.28763000001,59382.81033,117599.95037000001,2257.2855817,56452.267561000001,37987.667109000002,7468.9682787000002,19170.103298999999,3053.2304963000001]
[776,"2011-07-25","KW60MN10 ",7716534.4503562152,2469086.326506516,1776609.9020079863,125318.36958899999,567158.05490952951,"Summer",147569.41568000001,81581.901750000005,116122.6746,2228.9298444000001,56224.269711000001,39532.923153000003,9871.8317308000005,41769.446915,0]
[777,"2011-10-07","KW60MN09 ",6856286.758264483,2469062.0265488424,1840368.339216464,115164.367117,513529.32021537842,"Summer",144795.48267999999,59611.970826999997,131077.55505,2515.9829929000002,56406.667991000002,40840.601900000001,8369.8795527999991,19170.103298999999,0]
[778,"2012-05-31","KW60MN21 ",7539776.8507030979,2468675.9599849116,1803063.4503365706,132895.7811914217,532716.72845691908,"Summer",141260.78404,61029.621718000002,92785.643372000006,1780.9845524,55996.271862000001,37913.981524000003,6500.9090119000002,30044.368227999999,814.61885877999998]
[779,"2011-09-13","KW60MN10 ",6820556.0110259885,2468335.7027777019,1808332.3532520605,105703.18154100001,554300.16798464127,"Summer",129532.30658,78325.241848000005,130411.72629999999,2503.2026676,49794.730352999999,41932.213441,11449.538708,25828.589273000001,0]
[780,"2011-10-18","KW60MN10 ",6886762.6687982297,2467958.5111505184,1814346.641431066,101697.475725,551914.39399445266,"Summer",161770.57225999999,67076.062699999995,133027.77246000001,2553.4166621999998,55357.877883000001,44585.162039000003,10326.076123000001,19170.103298999999,0]
[781,"2011-08-01","KW60MN10 ",7270101.8568063919,2467818.4989858707,1834507.0764700719,122460.16182200001,510851.26069379883,"Summer",151817.40896,72027.130678999994,107650.83202,2066.3161015999999,55996.271862000001,37937.076453000001,10510.252316,27150.041945000001,0]
[782,"2011-07-15","KW60MN12 ",8049571.2866062019,2467206.3954487927,1768607.8655551109,139407.65176799998,559190.87812568212,"Summer",164039.01686999999,86464.982722999994,119139.24103,2286.8316708000002,55540.276163000002,40374.431338000002,7976.6412388999997,38564.294749000001,0]
[783,"2011-08-16","KW60MN13 ",7743250.795090666,2467020.1112367711,1822411.4487546305,130196.98469499999,514411.6777871403,"Summer",147849.06966000001,85880.926256999999,110064.47736999999,2112.6450909,52986.700247000001,38905.148973000003,10690.162349,40008.702831000002,0]
[784,"2011-07-12","KW60MN18 ",8175155.2206959361,2466941.5624671336,1725415.5291251398,137898.70825599998,603627.32508599397,"Summer",208249.43182,72299.978516000003,112562.25376000001,2160.5889430000002,43593.188843999997,38458.29391,7800.3879132000002,34889.093431000001,0]
[785,"2011-10-24","KW60MN19 ",7100173.8902229816,2466510.2664845856,1797468.732338995,104977.15771900001,564064.37642659072,"Summer",222041.60003,58339.512173000003,130626.62289,2507.3275245,55905.072721999997,43997.918813999997,7892.0087635,19170.103298999999,2981.7481505000001]
[786,"2011-07-31","KW60MN22 ",7351736.2830623919,2466437.1183684422,1794315.18454036,112714.285991,559407.64783708216,"Summer",215692.23806999999,61223.059792,87864.046522000004,1686.5164036000001,55266.678742999997,28701.550321999999,7048.5078045999999,28746.056489999999,3053.2304963000001]
[787,"2011-07-08","KW60MN13 ",7759666.3740126789,2466249.3631855883,1779470.2223976543,144054.76645600001,542724.37433193391,"Summer",145552.52823,75822.981920999999,115426.11440000001,2215.5596406999998,56133.070571999997,40400.120916,7933.7561793000004,39312.828839000002,0]
[788,"2012-04-09","KW60MN10 ",6788358.9148638947,2465964.1601499002,1872380.2416600455,114892.79588075321,478691.12260910164,"Summer",146349.47740999999,68309.315384999994,103095.11434,1978.8708618999999,45827.567770000001,34964.301941999998,8635.6748226,7467.6597125999997,0]
[789,"2011-08-29","KW60MN22 ",7421730.1553285234,2465898.0360102626,1743484.024956987,134212.773116,588201.23793727567,"Summer",210775.44297,67184.402933000005,98379.456372000001,1888.3556303,56589.066271000003,36171.245785999999,8551.1913237000008,44829.006603000002,3053.2304963000001]
[790,"2011-08-06","KW60MN18 ",7768147.9716937682,2465829.3361914605,1767695.1412617173,125494.407989,572639.78694074322,"Summer",257017.01105,82904.163232999999,110567.98638,2122.3097514999999,48882.738954,29445.402338,7830.3932344000004,31129.53716,0]
[791,"2011-07-09","KW60MN17 ",8033116.4323597355,2465772.3734221961,1771699.1114804521,141304.55269800001,552768.70924374391,"Summer",195937.90560999999,62618.851748000001,96677.440516999995,1855.6860939999999,55631.475301999999,31526.860311,6883.6715352000001,37645.425825999999,0]
[792,"2012-05-16","KW60MN13 ",7630436.9907637807,2465734.1930121621,1787521.2118529461,131886.40223095979,546326.57892825606,"Summer",125556.67546,91860.554805000007,127795.9292,2452.9934535000002,41814.805616999998,39936.660128000003,10903.868151000001,21356.368259999999,0]
[793,"2011-08-07","KW60MN20 ",7421325.9107284965,2465647.2405016208,1766207.0666791594,122899.04581200001,576541.12801046111,"Summer",235965.85827,66497.511138999995,101825.01839,1954.4918611999999,55266.678742999997,28287.702431000002,6929.0756586999996,31611.882829999999,0]
[794,"2011-09-01","KW60MN21 ",7526455.6861499147,2465276.6829545717,1780321.2162607568,125330.33392199999,559625.13277181506,"Summer",192258.70600000001,71215.944715000005,110165.68639,2114.5877589000002,55631.475301999999,36701.905860999999,8084.9204257000001,46064.229634000003,3053.2304963000001]
[795,"2011-08-21","KW60MN22 ",7322803.0224142903,2465267.0444953307,1797136.9565285486,127078.02953499999,541052.05843178218,"Summer",209524.11173,60629.370548999999,77891.452458,1495.0963161,55677.074871999997,30154.347732999999,7201.3988292000004,45672.072502000003,3053.2304963000001]
[796,"2011-09-19","KW60MN18 ",6947951.3039940102,2465078.8344385223,1814719.6637766075,103513.62237900001,546845.54828291468,"Summer",181089.57889,60917.137541999997,128519.12518,2466.8749207000001,56269.869280999999,38704.657981999997,8627.4336858000006,30217.333901999998,0]
[797,"2011-09-02","KW60MN15 ",7379710.1799576869,2464768.0028246283,1791723.3227585545,123096.69923900001,549947.98082707392,"Summer",152949.1035,95025.737861999994,127178.01829000001,2441.1328923999999,56087.471001999998,40626.569785,8761.8989652,40174.461672999998,0]
[798,"2011-07-22","KW60MN15 ",8641524.6092738919,2464445.6410060031,1797684.6870806289,131785.64616800001,534975.30775737425,"Summer",139148.30804999999,92076.531491999995,129224.36864,2480.4117964000002,55540.276163000002,41756.319952999998,7712.7691265000003,46532.929119,0]
[799,"2011-07-20","KW60MN15 ",8291463.2334661605,2463105.9509842899,1775982.1022172163,128136.01231300001,558987.83645407355,"Summer",169037.15601999999,87272.778334999995,125692.7884,2412.6244787999999,48700.340674999999,39461.681961000002,10441.810932,45933.645874000002,0]
[800,"2012-06-29","KW60MN17 ",8333974.7796015814,2463075.6073102644,1727459.4083952359,129848.81985836275,605767.37905666558,"Summer",167596.77801000001,90741.378637000002,132717.11371000001,2547.4536874999999,56315.468850999998,42887.264542999998,8580.0996326999993,35103.762477999997,0]
[801,"2012-04-03","KW60MN07 ",6767923.2536506569,2463027.22653904,1821221.9224573197,101753.83507423147,540051.46900748869,"Summer",193675.93672999999,56225.950508000002,90637.175478999998,1739.7455418,54719.483904000001,33381.836877000002,7318.4575011999996,7467.6597125999997,1831.5142378999999]
[802,"2011-08-24","KW60MN23 ",7237991.1118322033,2462856.3395112553,1792396.0984923597,128046.43412800002,542413.80689089547,"Summer",176636.29123999999,69480.519803000003,95419.813821000003,1831.5464357999999,54400.286914999997,36694.720928000002,8018.9371609,54442.391543999998,3053.2304963000001]
[803,"2012-06-15","KW60MN17 ",7639861.2217620295,2462467.151201562,1792136.4796570709,132620.89486535572,537709.77667913528,"Summer",141072.17181999999,77236.874502000006,110819.12844,2127.1303263999998,55540.276163000002,41222.133740999998,8180.7871201999997,30604.977795999999,0]
[804,"2012-06-16","KW60MN18 ",7567473.4950522361,2462233.538357005,1771891.9656007597,123762.71250229528,566578.86025394977,"Summer",172428.55134000001,70077.131819000002,102131.25513000001,1960.3699570000001,54901.882184000002,34412.846265,7027.8880350999998,32174.913231999999,0]
[805,"2011-10-04","KW60MN19 ",7161828.0312976278,2462020.0374812977,1825249.1170350483,116927.86894199999,519843.05150424939,"Summer",171877.79644000001,61605.004666000001,122902.48626999999,2359.0657083000001,53944.291214999997,39421.348254999997,7684.6937360000002,19170.103298999999,1221.7162585000001]
[806,"2011-07-05","KW60MN23 ",7460306.0403902587,2461737.7020026799,1740567.5117261829,135439.096487,585731.09378949681,"Summer",198381.93679000001,58800.355845999999,96713.525005999996,1856.3787218,55221.079172999998,35417.189484000002,7175.1314767000003,45685.926361999998,3053.2304963000001]
[807,"2011-07-25","KW60MN21 ",8079007.035789134,2461537.4835760836,1786379.7446968807,129513.19386699998,545644.54501220293,"Summer",189714.57128999999,60836.562848000001,86041.928818999993,1651.5415588000001,56497.867130999999,34936.554655,7384.2545432999996,42260.410176999998,967.28038360000005]
[808,"2012-04-03","KW60MN12 ",6866717.0216540005,2461324.4813851374,1860001.3766871307,102106.44287405783,499216.66182394896,"Summer",183437.30082999999,71199.168095000001,112305.72960999999,2155.6650610000002,55084.280463000003,34963.409702999998,8123.5291671000004,7467.6597125999997,0]
[809,"2011-10-03","KW60MN20 ",6929917.0599283213,2460999.9250825308,1801466.0270365018,112492.93107600001,547040.96697002905,"Summer",187111.5191,60522.347892999998,122555.81215,2352.4114325999999,56269.869280999999,38889.394388000001,7893.2276659999998,19170.103298999999,3053.2304963000001]
[810,"2011-09-19","KW60MN13 ",6891605.0502625573,2460932.0528175309,1824597.767296029,103389.147975,532945.1375465017,"Summer",123157.13710000001,73724.397257000004,136071.69245999999,2611.8435297000001,54354.687344999998,41050.704441000002,10624.077509000001,30217.333901999998,0]
[811,"2012-04-12","KW60MN11 ",6861572.0642576003,2460524.3355643386,1858171.4507801901,118927.70646581151,483425.17831833707,"Summer",125192.39187000001,70973.385095999998,118202.12897999999,2268.8441671999999,52804.301966999999,35935.130555999996,9078.4716879000007,7467.6597125999997,0]
[812,"2011-07-29","KW60MN10 ",7947829.1534278775,2460442.6249617971,1772293.114574447,136112.79763700001,552036.71275035001,"Summer",130624.06570000001,78352.393588999999,117015.65251,2246.0702101000002,55996.271862000001,40987.993648000003,8405.0042649000006,37475.774748000003,0]
[813,"2011-07-18","KW60MN17 ",8911025.643746784,2460394.3032139437,1705009.3051596328,122617.262095,632767.73595931102,"Summer",197641.10706000001,82807.848306,113472.03671,2178.0518748999998,46465.961748000002,38355.430765999998,8970.0672252000004,43554.264774000003,0]
[814,"2012-06-16","KW60MN19 ",7433869.8525731675,2460299.5824068035,1775360.3924360485,125480.90253520453,559458.28743555059,"Summer",160542.50489000001,66542.331273999996,102209.35415,1961.8690376,54810.683043999998,34006.934243000003,6855.8805536,33639.104227999997,0]
[815,"2011-08-21","KW60MN14 ",7920911.4866823955,2460264.9610502701,1789074.2232381057,127616.77233800001,543573.96547416458,"Summer",222834.75492000001,63829.617238999999,97628.479674000002,1873.9409230000001,54628.284764000004,30211.849062000001,7913.8474366999999,40574.765673000002,0]
[816,"2011-07-28","KW60MN23 ",7454350.9283917248,2459937.7214691378,1764939.2085040282,134268.81181499999,560729.70115010988,"Summer",186715.54577999999,67375.938553999993,92990.037821000005,1784.9078248000001,55768.274012000002,37720.591393000002,7445.2606216000004,42958.605192000003,3053.2304963000001]
[817,"2011-07-05","KW60MN11 ",8029663.0855533956,2459663.0949866255,1742882.4205164502,140940.833881,575839.84058917512,"Summer",125226.81604000001,79589.317815999995,112245.70917,2154.5129919000001,55768.274012000002,38489.746443000004,8910.4222539999992,43194.398400999999,0]
[818,"2011-07-21","KW60MN12 ",8214126.7625459554,2459583.1966290339,1773813.6154117729,132071.839182,553697.74203526124,"Summer",167341.74452000001,93878.283584000004,128724.54136,2470.8178048999998,53716.293365999998,41111.178416000002,10167.334365999999,42720.391847999999,0]
[819,"2011-07-24","KW60MN13 ",8032026.0639653942,2459563.0729751536,1765539.3781431899,129434.051227,564589.64360496355,"Summer",228117.91091999999,63306.874731000004,92046.811310000005,1766.8029566,54582.685193999998,29220.774917999999,6811.0655655999999,39933.662639000002,0]
[820,"2011-10-07","KW60MN10 ",6967005.4986254591,2459436.2787666498,1828790.0151430445,111646.133667,519000.1299566052,"Summer",123201.20597,62777.094430999998,134910.98952,2589.5642855999999,55813.873582,41560.325441000001,8484.3345133000003,19170.103298999999,0]
[821,"2012-06-20","KW60MN19 ",7545074.7877881434,2458963.8476685146,1775496.6160880032,134190.66435684959,549276.56722366181,"Summer",155298.28804000001,68988.190843999997,103218.35258999999,1981.2363725,54126.689494999999,39387.567368999997,7762.1143701000001,37468.783177999998,0]
[822,"2011-08-30","KW60MN18 ",8455822.1590092685,2458828.1552479747,1765919.2853279011,131335.16659099999,561573.7033290735,"Summer",244143.09270000001,92375.692318999994,123402.41196,2368.6615886,54217.888635000003,38058.294197000003,8764.5196053,32049.434464000002,0]
[823,"2011-10-24","KW60MN11 ",6979411.5407281071,2458112.5862561762,1817231.0213293594,99337.488167000003,541544.07675981685,"Summer",122842.99536,64755.408357,134380.67491,2579.3851017000002,55905.072721999997,45354.939142000003,9695.1314741000006,19170.103298999999,0]
[824,"2011-10-20","KW60MN08 ",6776115.3867644034,2458082.9540093238,1826880.4314879724,103040.17486499999,528162.34765635163,"Summer",185026.6312,57419.168113,124168.89165999999,2383.3738701000002,48289.944544999998,45776.622343000003,9351.4821833999995,19170.103298999999,1220.8681383999999]
[825,"2012-04-11","KW60MN10 ",6743677.9751283331,2457142.0486460659,1857241.8090393194,111802.4857335922,488097.75387315429,"Summer",152619.61502999999,73700.921879999994,110887.93722000001,2128.4510842,56543.466700999998,35964.284916999997,9778.2911086999993,7467.6597125999997,0]
[826,"2012-05-31","KW60MN22 ",7244674.0817541722,2457085.5404323102,1791916.054509524,131892.17405117222,533277.31187161396,"Summer",172949.9376,59144.953820000002,87272.509458999994,1675.1620783999999,56087.471001999998,38059.514478999998,6387.7609859000004,31764.948273000002,3053.2304963000001]
[827,"2012-04-07","KW60MN08 ",6422873.7706313562,2456760.892007431,1808235.220396013,102965.91043597455,545559.7611754433,"Summer",249492.24603000001,47519.492168999997,68025.967371999999,1305.7321440000001,56087.471001999998,24017.584599000002,5784.2924345000001,7467.6597125999997,0]
[828,"2011-09-19","KW60MN21 ",6827009.9821941182,2456615.6765342765,1800684.6316454031,106903.60530699999,549027.43958187324,"Summer",218199.07639999999,57912.835537999999,111104.70342999999,2132.6118279000002,56817.064120000003,36399.474369000003,8025.1535640000002,30217.333901999998,3053.2304963000001]
[829,"2011-08-18","KW60MN12 ",7898831.1081860429,2456403.5252441578,1798368.6578653785,136005.992084,522028.87529477925,"Summer",166484.77562,88992.213959999994,125140.61117,2402.0256503999999,49657.931643000004,38490.928941999999,10890.549947,39374.567059000001,0]
[830,"2011-07-26","KW60MN11 ",8273141.3030089149,2456288.823128284,1781594.1878369744,124845.69590699999,549848.93938430946,"Summer",145055.55048999999,82223.316227000003,116527.66074000001,2236.7033968999999,55038.680892999997,40823.557495000001,10465.924889,36378.278480000001,0]
[831,"2011-09-02","KW60MN16 ",7385181.0250065783,2456247.5591398361,1779406.3240763142,125940.87821800001,550900.35684552183,"Summer",172389.31542,92213.995011000006,125152.44508,2402.2527977999998,56041.871432,38536.352863,8572.2173949000007,40924.825223,0]
[832,"2011-07-10","KW60MN21 ",7204497.7887928849,2455923.1920414851,1755685.7843470306,133653.30389299997,566584.10380145465,"Summer",197218.08617,54041.883976999998,89661.878396999993,1721.0250914000001,53123.498957000003,29989.970707,6180.8319437,32070.111534,357.04420886999998]
[833,"2011-10-04","KW60MN08 ",6921754.3231995367,2455704.263046091,1831600.2541102562,107153.91374600001,516950.09518983477,"Summer",173727.56557999999,56558.286976000003,110603.70307,2122.9953197,54354.687344999998,40630.388568000002,8177.9633286999997,19170.103298999999,153.35415584]
[834,"2012-05-14","KW60MN21 ",7341044.4590289937,2455439.8431029045,1732363.7597130775,137250.28832817706,585825.79506164987,"Summer",193962.77653999999,65098.388282,103316.65727,1983.1232927999999,56361.068421000004,35985.086114999998,7466.5964974999997,21356.368259999999,1730.5880082000001]
[835,"2011-09-02","KW60MN18 ",7331328.8805525322,2455411.4487731638,1779342.3272340056,126853.24165399998,549215.87988515815,"Summer",196453.05989999999,79038.644268999997,118076.93682,2266.4411521000002,56589.066271000003,37059.945686999999,7888.7989866999997,40267.794459999997,0]
[836,"2012-05-15","KW60MN12 ",7470128.421879678,2455310.1329986397,1755919.5300520854,137949.07585708291,561441.52708947146,"Summer",117004.83442,90593.843682000006,138285.69102,2654.3403761999998,41176.411637999998,39316.737642,11221.636076000001,21356.368259999999,0]
[837,"2012-05-30","KW60MN18 ",7457635.2522491915,2455131.063259759,1761405.2106852366,124140.95289956688,569584.89967495564,"Summer",147055.22586000001,72214.276517000006,92418.095186000006,1773.9296071000001,56497.867130999999,38846.084411999997,7133.1115,25933.344098000001,0]
[838,"2011-07-07","KW60MN22 ",7450933.9557928862,2455115.0453259484,1756242.8996102114,138636.70821900002,560235.43749673699,"Summer",205435.33022999999,60559.193469999998,107257.10691,2058.7587002999999,55357.877883000001,35033.716954000003,7064.3129097000001,44879.575988999997,3049.4563644999998]
[839,"2011-09-20","KW60MN19 ",6792189.1789236031,2455108.0480293361,1799716.4213894557,103348.709262,552042.91737788054,"Summer",172157.20665000001,68587.975025000007,131353.23624999999,2521.2745871000002,55722.674442000003,38713.662873000001,8117.3635508999996,30217.333901999998,20.877877062]
[840,"2011-08-15","KW60MN20 ",7704508.4078716449,2454952.214315997,1820009.5336579336,134101.61640799997,500841.06425006327,"Summer",198443.54629999999,56818.862058999999,102316.61207,1963.9278116999999,46329.163038999999,32808.157867000002,7535.2968993000004,45428.017376000003,0]
[841,"2012-06-21","KW60MN21 ",7885927.3330544531,2454725.2295097061,1742407.7688348999,127247.86130902964,585069.59936577675,"Summer",186718.76775,68814.505187000002,108804.32389,2088.4569320000001,54628.284764000004,38943.157300999999,7372.0858318000001,38015.131247999998,265.39075265999998]
[842,"2011-10-06","KW60MN20 ",7077148.5896153217,2454257.006943726,1810353.7396963029,107251.196081,536652.07116642292,"Summer",203112.77989999999,61216.695248999997,120702.06836999999,2316.8295374999998,56452.267561000001,39526.087010000003,7767.8432118000001,19170.103298999999,3053.2304963000001]
[843,"2011-07-25","KW60MN22 ",7801629.22966915,2454013.8762639789,1777642.0192369355,129454.61748600002,546917.23954104306,"Summer",187015.93057,65336.326738000003,79763.495060999994,1531.0294501000001,56771.464549999997,34659.965271000001,7282.0698705000004,44498.784736000001,3053.2304963000001]
[844,"2011-07-28","KW60MN10 ",7801600.3745918265,2453708.0040261955,1783762.9617306292,131748.11425200003,538196.92804356629,"Summer",138100.72378999999,74236.759823999993,107555.18595,2064.4802120999998,55221.079172999998,40601.406371999998,9476.9072670999994,35172.428379999998,0]
[845,"2011-07-18","KW60MN12 ",8566567.7545880806,2453365.3897385309,1732664.3877835036,132241.03431300001,588459.96764202719,"Summer",156506.92822999999,82958.526165000003,116253.77648,2231.4462942999999,48654.741105000001,40366.915005000003,9399.7304136999992,43904.473560999999,0]
[846,"2011-09-01","KW60MN13 ",7807117.3005108507,2453314.4491972821,1799656.1743991771,118770.581592,534887.6932061048,"Summer",116347.71223,87994.621287000002,125663.14195,2412.0554268000001,54081.089925,41880.289241999999,10312.525989,38346.185655000001,0]
[847,"2012-04-04","KW60MN14 ",6770999.2000425868,2453264.7638114695,1847898.7576145486,112182.06941635684,493183.93678056408,"Summer",160394.05066000001,73972.542119999998,112522.11907,2159.8185730999999,49338.734653,36245.581456,8541.4654967000006,7467.6597125999997,0]
[848,"2011-08-11","KW60MN22 ",7352320.782598828,2452947.3242791826,1785050.9686564365,134050.521503,533845.83411974588,"Summer",211045.802,70156.650844000003,90053.065472000002,1728.5337761000001,56953.862829999998,35087.189828000002,7853.2070283000003,52308.707412000003,3053.2304963000001]
[849,"2011-08-31","KW60MN13 ",8363636.3430157602,2452731.9476609505,1795358.062812299,128802.37223099999,528571.51261765126,"Summer",126631.78422,82525.793493999998,119460.14448,2292.9912884999999,56452.267561000001,40549.664518999998,10283.211380000001,35203.685595000003,0]
[850,"2012-05-30","KW60MN17 ",7547704.4701187033,2452537.7004561662,1764305.0176183849,123129.05360179525,565103.62923598581,"Summer",141272.46367,84624.288176000002,102526.53065,1967.9571177,56452.267561000001,38387.234110999998,7799.5973191000003,25578.869905,0]
[851,"2011-10-05","KW60MN19 ",7077116.0105224615,2452277.9000909482,1794273.1216343599,107380.866591,550623.91186558816,"Summer",158404.17898,63168.970948000002,126260.88039999999,2423.5287852000001,56133.070571999997,38076.195167999998,7519.4105344,19170.103298999999,1323.4906082]
[852,"2011-09-22","KW60MN14 ",6927333.8214555103,2451984.3682563305,1813422.195756274,105521.15260099999,533041.01989905653,"Summer",98390.749555000002,83065.269237,146675.16849000001,2815.3731527,55312.278313000003,43499.154954999998,11774.823200000001,30217.333901999998,0]
[853,"2011-10-10","KW60MN19 ",7081339.7782799061,2451737.7075934461,1823626.2798659718,103508.562739,524602.86498847452,"Summer",184064.31247,53366.180345000001,125061.46984999999,2400.5065635000001,48061.946695999999,39941.915838000001,7324.3454782999997,19170.103298999999,1832.3623579]
[854,"2011-10-04","KW60MN09 ",6891636.6084341444,2451698.8270376544,1838229.2715247786,109480.20694100001,503989.34857187595,"Summer",124095.03671,61646.201462999998,119545.08172,2294.6216260000001,54901.882184000002,41523.730028999998,9332.7923422999993,19170.103298999999,0]
[855,"2011-08-25","KW60MN23 ",7114924.9236783227,2451547.9589344822,1776921.1302223289,124390.45398200001,550236.37473015347,"Summer",214802.3076,72487.133994999997,94104.188573000007,1806.2935178,54081.089925,37480.039965000004,7956.8950150000001,53470.074110000001,3053.2304963000001]
[856,"2012-05-31","KW60MN12 ",7427928.0600926196,2451489.579951908,1772704.5799754807,130381.27298037356,548403.72699605383,"Summer",130924.43988999999,84315.891451000003,125382.66416,2406.6717641,49110.736804,43326.287616000001,9007.0372193000003,27846.108015999998,0]
[857,"2012-06-20","KW60MN18 ",7608577.6889098668,2451473.8295402504,1773174.2409878916,125855.44282458957,552444.14572776936,"Summer",166968.68531,75256.325515000004,105983.47392,2034.3118073999999,54810.683043999998,39344.666517999998,8086.8097246999996,37174.252171,0]
[858,"2011-08-28","KW60MN22 ",7189387.9760206267,2450632.5190436775,1715455.730986461,120235.688265,614941.09979221656,"Summer",247613.16123999999,65943.803950000001,87498.225229999996,1679.4946054,55631.475301999999,29096.672965999998,7447.0483456000002,43302.164550000001,3053.2304963000001]
[859,"2011-08-09","KW60MN21 ",7661700.4360152008,2450554.9013366573,1783146.5364128028,132735.91237000003,534672.45255385444,"Summer",227297.01957,67109.696280000004,105437.14533,2023.8252413,55631.475301999999,35298.184211,8196.0234027999995,47263.845121999999,1934.1367077]
[860,"2012-06-15","KW60MN19 ",7309671.8896846222,2450382.2231438253,1789486.0114390876,131757.07298850609,529139.13871623145,"Summer",154789.52468999999,67253.691449999998,103381.78260000001,1984.3733483999999,55768.274012000002,40731.403717000001,7529.7712068000001,30869.977542000001,0]
[861,"2011-08-19","KW60MN21 ",7655943.3105139965,2449834.7681833045,1776387.8692194053,141021.51491299999,532425.38405089907,"Summer",185084.81737999999,76405.746517000007,95870.052072000006,1840.1885850000001,55677.074871999997,34761.094914000001,7727.3350137999996,42297.859446000002,2744.4725620999998]
[862,"2011-10-17","KW60MN20 ",6990934.5414261166,2449823.4563903771,1784478.4725319594,106453.67943600001,558891.30442241742,"Summer",200913.53339,64105.741345000002,121436.32019,2330.9232172000002,56133.070571999997,41614.396524999996,7529.8727818999996,19170.103298999999,3053.2304963000001]
[863,"2011-09-12","KW60MN22 ",6585833.6642218037,2448851.4691775809,1752899.5626701373,104388.913738,591562.99276944378,"Summer",233650.58916,64602.908384000002,103508.02349000001,1986.7964933000001,53305.897235999997,38381.556577000003,8336.5425656000007,31587.093669999998,3053.2304963000001]
[864,"2011-09-15","KW60MN14 ",6961370.3943351787,2448629.7501746542,1791604.0290100896,99696.703975000011,557329.01718956465,"Summer",124057.16800999999,87454.628152999998,137917.93523,2647.2814459000001,48289.944544999998,42029.789121000002,11085.147757999999,21600.90868,0]
[865,"2011-08-06","KW60MN19 ",7613346.2204926237,2448113.8556420356,1758858.9896430154,123905.33578000001,565349.53021902021,"Summer",249864.04401000001,80286.144467000006,109275.39017,2097.4988669999998,54172.289064999997,28837.070854000001,7719.6559273000003,31471.794771000001,0]
[866,"2011-10-14","KW60MN09 ",6703440.4511441402,2448026.8255677577,1822958.3364022537,98866.335353999995,526202.15381150367,"Summer",145777.39817999999,58765.663383999999,127364.23861,2444.7073194999998,53077.899386999998,44084.318371000001,7805.8526601000003,19170.103298999999,0]
[867,"2011-09-11","KW60MN15 ",6742907.6752749886,2447580.7398197008,1738315.0923362109,97123.69614,612141.95134349016,"Summer",252029.41748,67620.196563000005,114460.58054,2197.0265915999998,53351.496806000003,32838.911827999997,7925.8942577999997,33839.699051000003,0]
[868,"2012-06-28","KW60MN17 ",8086825.6033989936,2447387.2468672222,1748586.3951138086,131452.61921379465,567348.23253961897,"Summer",169627.96293000001,95278.902373999998,123951.44336999999,2379.2000342000001,56269.869280999999,45201.804473999997,8748.4300901000006,24605.947129,0]
[869,"2011-09-02","KW60MN14 ",7267206.1761352429,2447199.8791876575,1780559.5833528342,124034.53543999999,542605.76039482339,"Summer",134684.68679000001,87574.759099000003,130692.20903,2508.586425,56133.070571999997,42137.055840000001,8718.3841396000007,40842.642395000003,0]
[870,"2011-09-21","KW60MN19 ",6923242.7089375034,2446749.3807274769,1798975.0618263921,109369.537,538404.78190108493,"Summer",172826.93054999999,64479.269789999998,130008.86768,2495.4699520999998,52165.907987999999,37870.125056999997,8610.2268432000001,30217.333901999998,51.466723322]
[871,"2012-05-10","KW60MN08 ",6778697.4258565484,2446332.0558117293,1799883.295798996,124306.19330815684,522142.56670457643,"Summer",172790.71522000001,53039.978647000004,96407.582454000003,1850.5062728,55950.672292000003,33612.653896999997,8597.8905326000004,21356.368259999999,0]
[872,"2012-06-29","KW60MN16 ",8377854.3045335263,2446252.949128333,1720401.1945823848,133281.22475019348,592570.52979575458,"Summer",151317.51660999999,80594.94932,139777.58517000001,2682.9767075,56497.867130999999,43205.965477999998,9045.1516293000004,34485.841064,0]
[873,"2011-07-27","KW60MN10 ",7851751.4299084144,2446128.763236349,1776286.7332302255,134644.475963,535197.5540431235,"Summer",134104.44665,74637.504281000001,104376.96888,2003.4755642,56680.265411,40374.116334999999,9004.3590201000006,34425.722084000001,0]
[874,"2011-07-08","KW60MN20 ",7704785.8589170715,2446044.3088749219,1760239.997276553,143199.10620100002,542605.20539736911,"Summer",180879.64233999999,62500.256905000002,93531.551231000005,1795.3019654,55768.274012000002,35469.458001999999,6543.0288699000002,36127.940874,0]
[875,"2012-04-17","KW60MN11 ",6917925.4598450027,2446041.3295230181,1854274.4998050993,110043.62173104419,481723.20798687462,"Summer",153787.04796,73260.359261999998,115812.19279,2222.9702661000001,35111.668837999998,36612.394125999999,9642.2378700999998,7467.6597125999997,0]
[876,"2011-09-20","KW60MN14 ",6834948.4859460779,2445902.8973850836,1801734.6657926962,98317.730720000007,545850.50087238743,"Summer",112428.91067,78527.184726000007,140520.95981,2697.2454965000002,56224.269711000001,42709.264908999998,11248.297879,30217.333901999998,0]
[877,"2011-10-07","KW60MN11 ",6977006.4875240298,2445897.6636534985,1814674.4473841251,106004.86351499999,525218.35275437345,"Summer",128340.52873000001,67573.525391000003,136988.07535,2629.4331450999998,56406.667991000002,42016.608214,8620.4859403999999,19170.103298999999,0]
[878,"2012-05-16","KW60MN19 ",7227846.2499097269,2445863.5291356202,1760550.23915693,129994.11102246506,555319.17895622528,"Summer",160788.12684000001,65537.816497000007,105212.50997,2019.5134525000001,53488.295515999998,35289.204265,7576.1504531999999,21356.368259999999,0]
[879,"2011-08-19","KW60MN13 ",8033301.5357102845,2445401.8988458081,1780808.2515959579,129266.97334,535326.67390985019,"Summer",172772.26310000001,92015.680292000005,115984.67662,2226.2810266000001,55403.477453,40405.201692000002,9235.9302107000003,38561.977099000003,0]
[880,"2012-06-01","KW60MN20 ",7350582.444977141,2445116.0974735436,1774041.3840341324,131802.66868600587,539272.04475340527,"Summer",148436.19886,69623.419133000003,94059.315516999995,1805.4321967999999,56680.265411,38940.403237999999,7112.2547218,25995.804271000001,0]
[881,"2011-09-02","KW60MN13 ",7157614.290597653,2444642.0436323872,1783655.1750914119,125263.305571,535723.56296997506,"Summer",137540.26060000001,89086.154034000007,122721.03174999999,2355.5827589999999,56771.464549999997,41604.489353999998,8512.4302191000006,42611.565566999998,0]
[882,"2011-08-25","KW60MN09 ",7707073.5710401842,2444255.2904265937,1788137.9875539453,129943.608356,526173.69451664854,"Summer",148477.54389999999,73373.209787999993,120498.26127,2312.9175389000002,49156.336373999999,38739.145757999999,11358.486679,47231.206961999997,0]
[883,"2011-07-07","KW60MN09 ",7444792.4585572397,2443667.9121555882,1746580.8011606054,132972.608863,564114.50213198259,"Summer",152944.63089999999,69434.801464999997,120778.6403,2318.2993061000002,55768.274012000002,39996.646735000002,9225.6711135000005,41852.900134000003,0]
[884,"2012-06-20","KW60MN17 ",7597919.1237462014,2443602.6486329795,1758446.3367901032,127841.56396029388,557314.74788258236,"Summer",139590.56534999999,83429.232388999997,115402.374,2215.1039529999998,55312.278313000003,40650.776890000001,8408.0515219000008,37213.374949999998,0]
[885,"2011-08-10","KW60MN12 ",7576463.3323693667,2443598.9321335885,1785999.1833645497,130583.327131,527016.42163803882,"Summer",146474.37101,80417.968112000002,121396.92441000001,2330.1670304999998,56224.269711000001,39431.714015999998,10093.773590000001,45260.684694000003,0]
[886,"2011-10-11","KW60MN20 ",7072953.9169915859,2443456.2889123154,1810681.2323254645,100504.92162899999,532270.13495785103,"Summer",191738.85655,64968.190720999999,127467.99013999999,2446.6987901000002,38805.234001999997,40942.036608000002,7530.2384529999999,19170.103298999999,3053.2304963000001]
[887,"2011-08-31","KW60MN12 ",8186140.7469415236,2443353.6607866525,1787287.4189398261,131551.82490199999,524514.4169448266,"Summer",107749.48123999999,85236.441181999995,123303.4461,2366.7619771999998,56133.070571999997,39822.016733999997,10190.249737,35084.548124000001,0]
[888,"2012-04-18","KW60MN11 ",6931733.4032640774,2443161.2335770568,1849288.5566979977,112084.95192944679,481787.72494961228,"Summer",144496.48631000001,70779.061673000004,118482.90164,2274.2334900000001,34838.071419,36043.839989,9668.0295126000001,7467.6597125999997,0]
[889,"2011-07-23","KW60MN16 ",8152541.8120380109,2442992.9602666507,1751680.5906824684,131343.14810499997,559969.22147918225,"Summer",170587.27166999999,71189.369816000006,110355.84921,2118.2378606000002,52074.708849000002,33285.084716999998,6967.0851069999999,42980.280497,0]
[890,"2011-07-09","KW60MN16 ",7983685.0018704813,2442744.6098377402,1754900.1410267609,143026.70605199999,544817.76275897934,"Summer",154568.25826,64413.104895999997,94821.831709000006,1820.0684002999999,55540.276163000002,31712.774745999999,6997.0904282000001,37359.333417000002,0]
[891,"2011-08-15","KW60MN12 ",7783399.7774672424,2442613.9156213906,1798318.0142486808,131317.591732,512978.30964070989,"Summer",161331.48394000001,78212.053893999997,117499.65044,2255.3603634000001,55038.680892999997,35542.429714999998,9194.5078355000005,44316.389829,0]
[892,"2011-09-15","KW60MN13 ",6906588.6510937838,2442310.0305922711,1801199.7352854728,99200.239483999991,541910.05582279817,"Summer",127537.49597,88426.206701999996,133081.74228000001,2554.4525920999999,48244.344975,41577.340034000001,10982.556783,21675.086292,0]
[893,"2011-07-12","KW60MN11 ",7599862.2845463911,2442185.1433266108,1753544.3890455775,136087.318791,552553.43549003347,"Summer",139789.77614999999,82397.247724999994,124041.90715,2380.9364516000001,42316.400886000003,41156.733508999998,10379.078073999999,34622.318118000003,0]
[894,"2011-08-12","KW60MN11 ",7414050.672404089,2442137.6369763953,1779551.1200397527,134549.017299,528037.49963764276,"Summer",139314.96002999999,85270.731943999999,111829.47335,2146.5235063,56315.468850999998,38901.516510000001,8878.4260596999993,45882.166719000001,0]
[895,"2011-07-21","KW60MN11 ",7986511.9093481852,2441799.2132134354,1772658.1862755741,127539.384173,541601.64276486123,"Summer",148046.01235999999,88079.873382000005,127236.99712,2442.2649683,52986.700247000001,40515.893192000003,10102.651265,42369.051589000002,0]
[896,"2011-10-04","KW60MN10 ",6906856.4894730682,2441664.8948041867,1829933.0607707249,106684.14874600001,505047.68528746197,"Summer",124136.7527,68631.565956999999,123217.39698,2365.1102976000002,57546.657239,42033.623802000002,9530.4170938999996,19170.103298999999,0]
[897,"2012-05-11","KW60MN08 ",6753954.5851041172,2441307.1250484344,1790277.0207213976,126321.84121402548,524708.26311301126,"Summer",166243.49908000001,52803.709658,91703.564683999997,1760.2144704,57957.053368000001,35930.089463999997,7876.0597612000001,21356.368259999999,0]
[898,"2011-10-14","KW60MN10 ",6792657.145139873,2439987.9841958438,1816264.2481776201,99387.415955000004,524336.32006322348,"Summer",171063.11585,58825.965057000001,127488.04008999999,2447.0836411,52621.903687999999,44204.403794999998,8023.5893056000004,19170.103298999999,0]
[899,"2011-07-22","KW60MN14 ",8506527.7190491054,2439735.8783444362,1779138.133256051,132216.45980499999,528381.28528338543,"Summer",133706.43840000001,85302.903334000002,125933.14849000001,2417.2380979,55038.680892999997,43149.500451,7725.0597283999996,46415.661973000002,0]
[900,"2011-07-23","KW60MN21 ",7851064.2328030048,2439711.4831424952,1767031.0216714039,130427.02605900001,542253.43541209097,"Summer",193824.44394999999,57751.395319000003,95064.798389000003,1824.7320517999999,54765.083473999999,31898.291206999998,6578.8646090000002,46531.667638999999,865.50603375000003]
[901,"2011-10-25","KW60MN13 ",6829373.3068924081,2438685.828725507,1815696.3067531139,96996.172874000011,525993.34909839323,"Summer",125940.97976,66497.797149000005,140611.5196,2698.9837564999998,55996.271862000001,45850.594212999997,9609.6051377999993,19170.103298999999,0]
[902,"2011-09-21","KW60MN21 ",6823249.3753496781,2438207.4432891486,1781123.4527149969,110952.172741,546131.81783315178,"Summer",169831.49794999999,66380.094081000003,115216.97297,2211.5452519,55449.077022999998,37520.369197,8296.3187777000003,30217.333901999998,3053.2304963000001]
[903,"2011-09-20","KW60MN21 ",6638684.4768983489,2437694.0299052447,1789278.4921733511,104892.29682199999,543523.24090989341,"Summer",186511.01449999999,65394.415845000003,111411.52247,2138.5011006,56041.871432,37694.228089999997,7958.4999039000004,30217.333901999998,3053.2304963000001]
[904,"2012-06-16","KW60MN17 ",7515383.9032136593,2437584.035824595,1744251.84160362,126313.68929679717,567018.50492417801,"Summer",198160.16162999999,71980.785688999997,100460.24791999999,1928.2956196,52849.901536999998,34523.457415999997,6934.9467070999999,32849.461025999997,0]
[905,"2011-10-24","KW60MN21 ",6854981.6396591235,2437359.2862387169,1776876.699071585,100870.498121,559612.08904613217,"Summer",231967.91714999999,51892.525976999998,119732.21941000001,2298.2136614999999,56041.871432,42829.906304999997,7428.8460659000002,19170.103298999999,3053.2304963000001]
[906,"2011-07-18","KW60MN18 ",8723456.3117620479,2437309.1078551668,1691441.9116791347,124059.899126,621807.29705003207,"Summer",196107.83254999999,74516.034868999996,106131.40093,2037.1512092,48016.347126000001,37209.465437999999,8372.1548382000001,43879.910019000003,0]
[907,"2011-10-18","KW60MN20 ",6936132.335169903,2437245.5747303618,1767976.1343956885,111441.293387,557828.14694767317,"Summer",210487.95665000001,70277.090295999995,128616.71505,2468.7481206000002,52849.901536999998,42264.902045000003,7778.8945958000004,19170.103298999999,3053.2304963000001]
[908,"2012-04-27","KW60MN08 ",6633371.5085160043,2437113.5498908507,1803971.2332234762,125528.4057862941,507613.9108810802,"Summer",185159.67511000001,57674.029409000002,95527.5524,1833.6144362,54628.284764000004,30323.20753,8931.0589533000002,7467.6597125999997,0]
[909,"2012-05-16","KW60MN11 ",7526286.7564742444,2436996.3357228665,1761777.8604617761,131603.94640843346,543614.52885265672,"Summer",142076.56688999999,81814.351370999997,129259.71043000001,2481.0901681999999,47469.152286999997,38624.373662999998,10515.820331000001,21356.368259999999,0]
[910,"2011-09-15","KW60MN12 ",6816668.4648908582,2436649.7568203746,1789382.3005615636,103560.618533,543706.83772581106,"Summer",139776.99427,83096.703104999993,137413.94566999999,2637.6075612999998,53077.899386999998,41558.376303999998,10557.301959,22078.10872,0]
[911,"2011-07-21","KW60MN20 ",8257505.7683233647,2436634.878351423,1796905.4315073702,133827.84469599999,505901.60214805289,"Summer",170827.61553000001,65917.172812999997,101198.68313999999,1942.4695981,54582.685193999998,36285.622912999999,6846.1090179000003,47268.108109000001,0]
[912,"2012-06-29","KW60MN15 ",8369848.3322859919,2436257.2234517024,1712522.2848435591,133093.3363696484,590641.60223849479,"Summer",143382.4172,89236.292006999996,138081.85774000001,2650.4278751000002,56406.667991000002,43026.326588000004,9071.6627614999998,34882.44801,0]
[913,"2012-06-15","KW60MN16 ",7691731.1485902593,2436076.4436558574,1787257.1134249279,130024.31987009368,518795.0103608357,"Summer",119982.42962,82026.605097000007,119623.05214,2296.118238,51755.511858999998,43378.989947000002,8882.3874928000005,30036.876501999999,0]
[914,"2011-10-27","KW60MN13 ",6940231.8593528876,2436068.5043632574,1794661.5414367209,100917.35271199999,540489.61021453666,"Summer",134809.85595,67900.826142000005,136160.70379,2613.5520677999998,48609.141535000002,43008.607490000002,9951.6495395000002,19170.103298999999,0]
[915,"2012-05-15","KW60MN22 ",7216947.2418826995,2435991.4422594816,1761865.9308034501,136159.24465657215,537966.26679945958,"Summer",174662.55058000001,68025.149233999997,95436.246467999998,1831.8618541000001,46785.158737999998,35096.205167,7092.5711363,21356.368259999999,3053.2304963000001]
[916,"2011-07-29","KW60MN23 ",7471971.6436184989,2435930.7494819723,1748066.2160920156,137494.180631,550370.35275895684,"Summer",201397.22051000001,75299.670606,92031.400169999994,1766.5071458,55722.674442000003,34329.372879000002,6675.2594944000002,44548.213759999999,3053.2304963000001]
[917,"2011-08-29","KW60MN10 ",7417874.8116300106,2435771.947027456,1732920.2982758265,131161.567389,571690.08136262954,"Summer",144050.78448,82521.781308999998,119674.04884,2297.0971,56589.066271000003,39587.478663000002,10702.920196999999,37257.579028,0]
[918,"2012-06-29","KW60MN18 ",8182530.5968891615,2435358.9809015696,1710811.7557799439,126319.90871399333,598227.3164076322,"Summer",180867.17842000001,81452.462599999999,127201.54131,2441.5844078,55312.278313000003,41982.707657999999,8465.7259321000001,35815.154820000003,0]
[919,"2011-07-08","KW60MN12 ",7707400.0495269615,2435204.2882377007,1756258.1085322527,143879.69795999999,535066.48174544785,"Summer",142899.51436999999,77687.739933999997,113515.96898000001,2178.8951379,56133.070571999997,39200.786550999997,7627.0599541000001,38973.478987000002,0]
[920,"2011-07-02","KW60MN15 ",8227833.8051009756,2434947.1546039861,1721997.9963799173,130399.30558500001,582549.85263906897,"Summer",185373.89348,58628.948634,101790.62026,1953.8316024000001,55175.479603,30637.29639,7012.3470260000004,46006.072712000001,0]
[921,"2011-07-11","KW60MN10 ",7659282.3574536983,2434535.6614474175,1746637.7031344972,135249.10686699999,552648.85144592042,"Summer",119268.01154000001,73425.496732,118064.94100000001,2266.2108969999999,54901.882184000002,38645.580647000003,8991.9465278999996,30674.416287,0]
[922,"2011-09-12","KW60MN10 ",6800753.1403608955,2434392.0175390006,1788348.2937678944,103365.873874,542677.84989710629,"Summer",122196.78969999999,76171.789715999999,133931.34299999999,2570.7603493000001,55038.680892999997,40776.20779,11245.738182999999,25436.139792000002,0]
[923,"2011-07-15","KW60MN20 ",7951081.4446883919,2433676.1001969329,1728195.6423311096,118054.324678,587426.13318782335,"Summer",219951.37044999999,62259.072709,107802.45028999999,2069.2263555,55449.077022999998,37941.207255000001,6743.1523723,42261.205220999997,0]
[924,"2012-06-20","KW60MN20 ",7357645.1707630269,2433383.2396683684,1752106.2958265059,138676.64139755041,542600.30244431214,"Summer",166687.91849000001,67574.629264000003,101222.70716000001,1942.9307299,54901.882184000002,39700.478003999997,7372.2280374000002,38239.577877000003,0]
[925,"2011-07-14","KW60MN17 ",8449740.1098679975,2433181.412291606,1743757.8640389307,136259.35772599999,553164.1905266752,"Summer",180715.00409,76606.420020999998,111915.51317000001,2148.1750072999998,55950.672292000003,38943.508200999997,8328.0102466000008,37558.157780000001,0]
[926,"2012-05-16","KW60MN12 ",7593713.7911291188,2433166.1293997476,1760159.3933451565,134462.54290825981,538544.19314633124,"Summer",124471.91141,86022.763491999998,128931.37119000001,2474.7878234999998,44277.182392000002,38270.021667000001,10671.184711,21356.368259999999,0]
[927,"2011-08-10","KW60MN20 ",7737273.4487978332,2433070.1268081954,1790678.4080828978,116095.185359,526296.53336629772,"Summer",201943.83137,70719.468599999993,108929.51525,2090.8599316999998,55996.271862000001,37350.094573000002,7866.8384231,47758.206000999999,0]
[928,"2011-08-27","KW60MN12 ",7937175.4271062193,2432969.1452417383,1720224.923095786,127682.38088900001,585061.84125695261,"Summer",203564.62891,80021.251906999998,103049.39810000001,1977.9933564,55449.077022999998,31594.080007,7947.6516701,44585.203997999997,0]
[929,"2011-08-30","KW60MN11 ",7806133.6421761187,2432759.4275815366,1769863.4864449876,135114.88992699998,527781.05120954895,"Summer",144477.53606000001,87929.545805000002,126566.948,2429.4036344000001,56361.068421000004,41363.41375,11192.675287,36515.124443000001,0]
[930,"2011-07-22","KW60MN20 ",8137744.4102907768,2432367.4503710065,1769966.0027036853,129488.03166299999,532913.41600432107,"Summer",163204.22018,63874.178678999997,94867.724434999996,1820.9492935000001,55631.475301999999,37619.054339000002,6201.1266726000003,46284.994338999997,0]
[931,"2011-09-22","KW60MN21 ",6759318.6994947447,2432319.5550493142,1774614.6853098921,104016.54559000001,553688.32414942223,"Summer",200835.84583999999,75466.765161000003,112725.51578,2163.7226943000001,55722.674442000003,40396.318529999997,8176.3178103999999,30217.333901999998,3053.2304963000001]
[932,"2011-10-28","KW60MN13 ",6888927.0839633988,2432294.8031417881,1775812.8702863622,96696.328603000002,559785.60425242595,"Summer",163012.12103000001,70135.217711999998,136888.67131000001,2627.5251229,56497.867130999999,43308.944759999998,9150.2616687999998,19170.103298999999,0]
[933,"2012-06-12","KW60MN16 ",7469284.9772550818,2432030.7259825366,1748588.9311746226,132873.02183048212,550568.77297743165,"Summer",140186.36418999999,83923.091023000001,129753.85397,2490.5750624000002,56178.670141000002,44837.546405000001,10029.781201,30109.408511000001,0]
[934,"2011-10-26","KW60MN14 ",6822787.1651884057,2431943.8139566071,1780427.7784955725,91545.451254,559970.58420703467,"Summer",169197.58663999999,74963.289816999997,143391.99935999999,2752.3539906000001,54765.083473999999,44156.735107,9862.3242898999997,19170.103298999999,0]
[935,"2011-10-12","KW60MN11 ",6878856.5278289113,2431638.0178766623,1827952.9749068348,102842.29801599999,500842.74495382729,"Summer",134451.58175000001,66594.195630000002,134923.85,2589.8111374,35111.668837999998,43957.75503,9296.4893580000007,19170.103298999999,0]
[936,"2011-09-21","KW60MN15 ",6948236.9026397048,2431417.9352379749,1799991.3817560892,96321.974021000002,535104.57946088549,"Summer",122876.40207,84491.844305999999,145200.98434,2787.0767578,43912.385833,41903.193485000003,11731.531841,30217.333901999998,0]
[937,"2011-10-26","KW60MN18 ",6926697.3785586273,2431266.5727243181,1755544.6447380993,94235.251235999996,581486.6767502185,"Summer",236096.84604,65106.072009000003,133234.63707999999,2557.3873486000002,56771.464549999997,41325.320336999997,7530.2384529999999,19170.103298999999,224.65274199999999]
[938,"2012-05-30","KW60MN16 ",7530315.7171739787,2431264.4476016695,1756170.2026861913,119094.71952946465,555999.52538601356,"Summer",126467.47453000001,83482.451279000001,109876.2579,2109.0322907999998,56862.663690000001,41114.454710999998,8317.7765428999992,25549.079464999999,0]
[939,"2011-08-18","KW60MN11 ",7680042.4999196799,2431078.7818058552,1785766.3037953414,133820.99904699999,511491.47896351392,"Summer",154014.40857,87438.340001000004,115924.17724,2225.1197643,49429.933792999997,38081.056834000003,10666.596898,39382.460395000002,0]
[940,"2011-08-16","KW60MN22 ",7090216.7604857311,2430937.5518395817,1789098.1938050159,131330.60400799999,510508.75402656588,"Summer",210272.54063,67011.798653999998,85158.512610999998,1634.5847262,54263.488205000001,33674.726618000001,7456.6370473999996,47897.339462000004,3053.2304963000001]
[941,"2012-06-16","KW60MN20 ",7269972.176404546,2430930.9042268973,1755161.7232587936,124808.71862247662,550960.4623456269,"Summer",174680.92851,61937.080832,101968.98603,1957.2552642999999,55084.280463000003,33473.512558000002,6664.6347260000002,34600.128646999998,0]
[942,"2011-07-10","KW60MN22 ",7062357.4463954354,2430906.8053101432,1742844.6345240131,130331.308422,557730.86236413021,"Summer",200020.15838000001,52739.929258999997,84432.54952,1620.6501453000001,53169.098527000002,30343.759493000001,6485.4966641999999,30089.638975000002,3052.8205720999999]
[943,"2012-06-01","KW60MN12 ",7340187.2293502782,2430833.1331956186,1753877.8819503747,134012.01330014368,542943.23794510041,"Summer",116544.86691,82887.386612999995,125040.25463,2400.0993454999998,56862.663690000001,43957.396638999999,9317.1514509000008,28977.605650000001,0]
[944,"2012-04-04","KW60MN19 ",6655515.8841335466,2430824.1395338289,1839359.9007984432,113016.65696583019,478447.58176955563,"Summer",169126.39601,52879.917064000001,89307.566628999994,1714.2242140000001,49749.130783000001,31846.414220999999,6518.1530984000001,7467.6597125999997,0]
[945,"2012-05-30","KW60MN15 ",7463172.1386283627,2430644.2143017985,1759352.4071131214,116435.27533181914,554856.53185685806,"Summer",106290.30134999999,78052.087111999994,115913.91394,2224.9227642999999,56862.663690000001,43946.377460000003,8550.7393145000005,25686.623729999999,0]
[946,"2011-07-10","KW60MN15 ",7637641.7121761059,2430407.0775632062,1745903.8893201989,126959.68453700001,557543.50370600738,"Summer",228918.74978000001,53314.807671000002,95028.898658000006,1824.0429704000001,52804.301966999999,28635.141979,6807.2869675000002,33289.949332999997,0]
[947,"2012-04-19","KW60MN10 ",6803316.468988088,2430359.7672334141,1842219.2833028813,105168.97736641494,482971.50656411808,"Summer",129348.70749,71226.493369999997,113659.59225,2181.6519309999999,34929.270558999997,37135.831895000003,9228.0818323000003,7467.6597125999997,0]
[948,"2012-04-03","KW60MN20 ",6890405.698781223,2430308.9104120662,1827075.3359550165,104951.72509611367,498281.84936093586,"Summer",164400.61902000001,60753.097518000002,91234.114381000007,1751.2035533000001,55950.672292000003,32324.685519999999,6627.9677634,7467.6597125999997,1374.3777831]
[949,"2012-05-30","KW60MN19 ",7357996.9516808055,2430102.4406284932,1751015.4247069256,126968.61525706,552118.40066450776,"Summer",159585.48543999999,66953.272496999998,89398.700893999994,1715.9735009999999,56452.267561000001,37652.442156999998,6882.0294024000004,26213.105320999999,0]
[950,"2011-09-13","KW60MN22 ",6635943.2468918683,2429872.2383740223,1752771.4638183585,113856.513359,563244.26119666395,"Summer",236720.44493999999,67811.262996999998,100207.94379999999,1923.4527395,45462.771209999999,38319.206995,8483.0546649999997,32426.514566999998,3053.2304963000001]
[951,"2011-10-19","KW60MN09 ",6734274.1597098634,2429829.8937829616,1786929.7124699384,92868.735509999999,550031.44580302318,"Summer",168914.90147000001,57571.438312999999,130131.90532999999,2497.8316120999998,45417.17164,42726.420609000001,10080.629757000001,19170.103298999999,0]
[952,"2011-10-13","KW60MN20 ",6942064.6326623112,2429568.0294254818,1775690.8376756387,99228.614938000013,554648.57681184297,"Summer",179785.56213999999,63959.324724999999,127376.70935999999,2444.9466907000001,52804.301966999999,40457.083162000003,7287.1892614999997,19170.103298999999,3053.2304963000001]
[953,"2011-08-15","KW60MN11 ",7613476.8499585427,2429450.6634195945,1791295.4585612321,131641.20196000001,506514.00289836235,"Summer",160354.20001999999,76852.394094999996,114669.20478,2201.0310533000002,55585.875732,35656.140564000001,9145.7517284999994,43740.716077999998,0]
[954,"2011-08-24","KW60MN09 ",7420190.0668863039,2428914.1091385754,1776455.6438267301,126575.905518,525882.55979384505,"Summer",124878.67408,68889.362878999993,105876.35519,2032.2557045999999,49612.332072999998,39094.455897,10041.056049999999,42082.660825999999,0]
[955,"2011-09-14","KW60MN10 ",6730295.136475997,2428453.8130399096,1795874.2461505975,107963.108582,524616.45830731199,"Summer",119514.12102999999,76742.125698999997,132024.90904,2534.1670865000001,53989.890785000003,40256.881831999999,10218.284498000001,26049.950706,0]
[956,"2011-08-05","KW60MN10 ",7274701.2339290259,2427943.7962899189,1752924.6996898234,126522.33132300001,548496.76527709549,"Summer",151004.64671,85405.664749999996,115062.50341999999,2208.5802686000002,54582.685193999998,38715.421714999997,8715.1337323999996,31699.216958000001,0]
[957,"2011-07-20","KW60MN14 ",8178018.4051184906,2427679.9614137085,1742766.2323134972,129435.11129000002,555478.61781021161,"Summer",175383.51858,86721.633994999997,126412.73853,2426.4436433999999,50113.927342000003,39630.319467000001,10440.835809,46571.566006000001,0]
[958,"2011-07-09","KW60MN20 ",7425846.5009305347,2427501.2383324145,1741047.4612096606,139018.83361599999,547434.943506754,"Summer",183766.38656000001,63871.423013,98631.362848000004,1893.1908777000001,55449.077022999998,30853.028229,6402.6925431,37431.892184999997,0]
[959,"2011-09-01","KW60MN19 ",7692126.813042012,2427387.000935134,1751222.6721973484,120851.39334799998,555312.93538978568,"Summer",181836.69357999999,75283.575270000001,118520.51276,2274.9554210000001,54582.685193999998,37499.578053999998,7800.5910635,42903.644177000002,0]
[960,"2012-05-03","KW60MN09 ",6644610.3755312068,2427160.8825307195,1769222.0776056363,123997.15274437671,533941.65218070638,"Summer",130125.77374,64432.560055000002,105851.84935,2031.7853246,55129.880033000001,34695.694729000003,9340.2801288999999,21356.368259999999,0]
[961,"2011-08-06","KW60MN17 ",7793254.286504142,2426869.1931014541,1741918.2226468048,116819.02096400001,568131.94949064939,"Summer",255477.67415000001,81982.310385999997,111314.01435,2136.6294699999999,49429.933792999997,29295.937739000001,7818.0620019999997,31547.873141,0]
[962,"2012-05-31","KW60MN11 ",7358434.9088559439,2426635.569996763,1754201.3871428582,131962.64506127985,540471.53779262467,"Summer",133570.78724999999,78448.755113000007,124649.38413999999,2392.5967375,49977.128632,43353.954759,8931.0030869000002,27814.420338,0]
[963,"2011-08-09","KW60MN11 ",7684964.787529245,2426634.9255098021,1765627.7520100276,131093.87075599999,529913.30274377461,"Summer",140051.27476999999,86031.295610999994,119254.94474000001,2289.0525588999999,55905.072721999997,39090.734000999997,9716.3810107999998,39136.834403000001,0]
[964,"2011-07-03","KW60MN18 ",8102583.0950706052,2426124.7690124935,1723531.5838264392,129300.16680399998,573293.01838205417,"Summer",211663.53988999999,52466.200894000001,98063.004558999994,1882.2814601,54126.689494999999,25911.647782,6998.9187813999997,44955.514560000003,0]
[965,"2011-09-08","KW60MN09 ",7052753.7220022185,2426045.2000404089,1805714.9493289243,108695.39979,511634.85092148458,"Summer",125678.65445,70550.699756999995,127687.04395000001,2450.9034433000002,46192.364329000004,39794.027241000003,9725.7259307999993,46304.499331999999,0]
[966,"2011-09-22","KW60MN19 ",6885998.0267129969,2425895.9592216779,1784485.1308363606,98078.913249000005,543331.91513631737,"Summer",183616.99966,73676.758791,132546.87992000001,2544.1861158000002,54309.087775,40511.002705999999,8357.9952525000008,30217.333901999998,95.625482946999995]
[967,"2011-09-23","KW60MN13 ",6896763.2455694228,2425281.6572768032,1764924.5482912869,108806.804582,551550.30440351611,"Summer",124571.79237,88166.651937999995,147221.21254000001,2825.8542572000001,56269.869280999999,44897.287055000001,10871.860107,30217.333901999998,0]
[968,"2011-07-14","KW60MN16 ",8383297.2292082999,2425226.099286708,1742717.5116195525,131591.48463299999,550917.10303415556,"Summer",177219.99711,81063.165001000001,115052.90165,2208.3959662000002,55677.074871999997,40126.691993,9446.2315505000006,37162.896365000001,0]
[969,"2012-06-20","KW60MN16 ",7559583.1214523418,2425221.3577153953,1752652.5567548042,126200.07711067887,546368.72384991194,"Summer",121762.39654,84588.477379999997,122091.43654,2343.4979223,54856.282614000003,42494.993923000002,8959.7674975000009,37740.121047000001,0]
[970,"2012-04-05","KW60MN20 ",6807066.7992490111,2425160.6798768151,1810924.421764998,108425.1106270701,505811.14748474699,"Summer",214859.64589000001,63670.135711000003,86488.810083000004,1660.1192719000001,49931.529062000001,32062.424191999999,6996.4995988000001,7467.6597125999997,1221.7162585000001]
[971,"2011-10-04","KW60MN11 ",7050501.6879201476,2424984.9059272273,1807792.3445306816,106298.80760600002,510893.75379054563,"Summer",114733.74017999999,69402.204272000003,128352.88808999999,2463.684064,55221.079172999998,42479.844884999999,9813.4056631999993,19170.103298999999,0]
[972,"2011-07-02","KW60MN21 ",7987682.0660398128,2424898.8066907814,1714516.0158803747,138462.29349899999,571920.497311407,"Summer",204293.22789000001,54384.412389999998,89818.188517999995,1724.0254038,54445.886484000002,29555.043496999999,6564.4409274,51111.424907000001,224.65274199999999]
[973,"2012-06-28","KW60MN13 ",8053109.7599017909,2424827.1993614989,1771214.5794636635,122524.34546403526,531088.27443380037,"Summer",134844.47089,90926.078922000001,136494.07994,2619.9510940999999,55813.873582,48905.735444999998,10391.22647,38150.088327999998,0]
[974,"2011-10-04","KW60MN21 ",6963936.3528549457,2424827.0364847342,1793637.2302045394,114216.551043,516973.25523719471,"Summer",183316.69966000001,57703.409783000003,111136.07023,2133.2139013999999,50478.723900999998,38516.725340999998,7405.4431353,19170.103298999999,3053.2304963000001]
[975,"2012-05-15","KW60MN11 ",7340132.1385330847,2424743.3362064082,1741263.5504915386,140100.40494039073,543379.38077447901,"Summer",110384.30795,88301.003081999996,131894.24304,2531.6590031999999,41997.203895999999,39100.632807000002,11013.682817000001,21356.368259999999,0]
[976,"2011-07-04","KW60MN20 ",7428001.1503555337,2424686.9231454218,1711571.5751573574,128099.27588299999,585016.07210506429,"Summer",191128.65424,55021.257122000003,87577.343464999998,1681.0132493000001,54719.483904000001,26209.777554,6787.3782238000003,49480.143386000003,0]
[977,"2012-06-12","KW60MN15 ",7330951.8940137466,2423997.11099777,1750756.5950012661,130793.64985756848,542446.86613893532,"Summer",140991.19871,85286.406296999994,136273.62293000001,2615.7195071000001,56178.670141000002,47630.092492000003,10553.929661,29870.640820000001,0]
[978,"2011-09-28","KW60MN20 ",7314840.2717517428,2423786.9000354931,1779168.4795073585,100334.629873,544283.79065513448,"Summer",155029.20084,65140.107289,118733.95643999999,2279.0523898000001,55905.072721999997,38028.972650999996,8148.6893497999999,30217.333901999998,3053.2304963000001]
[979,"2011-08-15","KW60MN21 ",7556236.5723929713,2423543.8709458522,1794065.4007928686,130669.32987000002,498809.14028298343,"Summer",191763.85858,60740.328262000003,96609.027782999998,1854.372938,45234.773361,32649.981018999999,7793.4604830999997,47758.434365000001,2392.1212814999999]
[980,"2011-08-16","KW60MN12 ",7512988.2730133049,2423406.7856855891,1797132.4914799607,129119.71368299998,497154.58052262844,"Summer",151082.56742000001,86377.076191,111442.19891000001,2139.0899232000002,52485.104978000003,37852.161480000002,10366.848416999999,40841.042173000002,0]
[981,"2011-08-31","KW60MN17 ",8575260.3567806911,2423225.7899486609,1762236.8347654482,128603.23869900001,532385.71648421267,"Summer",180430.05082999999,89314.027482000005,120788.87777000001,2318.4958102000001,55813.873582,37413.343945000001,8728.0134708000005,32660.095691999999,0]
[982,"2011-09-19","KW60MN19 ",6855649.4812839422,2422974.2908383892,1779295.5812544727,104415.833176,539262.87640791642,"Summer",187018.67559999999,58207.756013999999,124571.63591,2391.1043903,56087.471001999998,37979.931669999998,8317.6292589999994,30217.333901999998,3.8589440678]
[983,"2012-04-16","KW60MN10 ",6778296.9534249315,2422779.1366087878,1830402.566419648,113055.05910515993,479321.51108397992,"Summer",157394.41042999999,67697.440356000006,112967.45349,2168.3665950999998,36114.859377000001,35680.564646999999,9462.8323278999997,7467.6597125999997,0]
[984,"2011-10-13","KW60MN12 ",6811563.8502843538,2422709.020508884,1804189.4567927674,91752.270409999997,526767.29330611636,"Summer",122275.75968,71658.816307000001,134005.40364999999,2572.1819148,48791.539814000003,43132.788441999997,9546.4253492000007,19170.103298999999,0]
[985,"2011-10-05","KW60MN12 ",7022940.063084526,2422616.7142926878,1804284.7686011326,109499.10209700001,508832.84359455522,"Summer",130467.228,67723.703534999993,133375.35245999999,2560.0883257999999,56497.867130999999,41193.821296000002,9916.9108137000003,19170.103298999999,0]
[986,"2011-10-19","KW60MN20 ",6886462.465643242,2422305.5146939419,1763196.4997743084,106688.896467,552420.11845263361,"Summer",190508.00174000001,67715.203552000006,125848.04888,2415.6046437,51846.710999000003,44341.475986999998,7445.9513334000003,19170.103298999999,3053.2304963000001]
[987,"2011-09-01","KW60MN12 ",7688565.7972050169,2422196.7074753917,1770225.1603122575,123464.292082,528507.25508113427,"Summer",120462.43904,82223.247134999998,123513.34447,2370.7908953000001,53670.693796,41003.539061000003,9973.9148284999992,39975.641272000001,0]
[988,"2011-08-11","KW60MN11 ",7711390.4295606948,2422061.491133051,1784109.9094292552,129705.26952999998,508246.31217379565,"Summer",136497.24432999999,84271.211108000003,117936.47361,2263.7450150999998,48381.143685000003,39202.005818999998,9567.9389818,46769.162018000003,0]
[989,"2012-05-14","KW60MN12 ",7237888.9556488534,2422019.0052031288,1732944.47525044,139097.67374632246,549976.85620636621,"Summer",129555.11472,82890.646814000007,129235.26568,2480.6209607000001,56315.468850999998,38312.315858000002,10423.752549000001,21356.368259999999,0]
[990,"2011-09-15","KW60MN15 ",7004434.6306842025,2421782.7479184782,1771264.554043392,98173.299495000014,552344.89438008622,"Summer",126217.56015,86744.551812999998,137507.03580000001,2639.3943902000001,48381.143685000003,41953.921767,11040.881276,22009.096430000001,0]
[991,"2012-06-15","KW60MN15 ",7720175.0873723608,2421367.6887100618,1778123.1036249828,128572.6951903734,514671.88989470585,"Summer",99907.458498000007,83475.574166000006,130701.37549000001,2508.7623718,50159.526912000001,44844.354460000002,9434.1237837000008,29778.806753000001,0]
[992,"2011-07-14","KW60MN18 ",8379739.0338784242,2421289.9246634347,1734113.2266952121,134769.22528099999,552407.47268722299,"Summer",199586.06198999999,67810.207328000004,112066.41674,2151.0715430999999,55950.672292000003,38063.945357999997,7426.9567668,37839.779557000002,0]
[993,"2011-07-12","KW60MN19 ",8010576.7108104452,2420719.5309716519,1692997.6015799057,136556.02599599998,591165.9033957459,"Summer",190716.38031000001,61493.294969000002,113487.76178,2178.3537117000001,47651.550565999998,38599.132717,7490.2990751999996,35172.763013999996,0]
[994,"2012-05-04","KW60MN08 ",6687092.578017096,2420697.0542935026,1778513.4472841443,124898.04732546421,517285.55968389421,"Summer",159685.27101999999,56697.988770999997,97377.356897999998,1869.1207182999999,56953.862829999998,33886.295387999999,8002.6157153000004,21356.368259999999,0]
[995,"2011-10-14","KW60MN11 ",6872261.3617657842,2420465.8456703429,1800452.6238302758,94469.397646999991,525543.82419306727,"Summer",156992.89405,70747.129696999997,127663.14866000001,2450.4447823,52074.708849000002,45071.994566000001,8063.670889,19170.103298999999,0]
[996,"2011-09-01","KW60MN11 ",7521418.9142772118,2420385.3724888521,1778744.5144151598,124199.94476099999,517440.91331269237,"Summer",111595.20563,76824.606060999999,120025.03646,2303.8341716999998,52576.304118,40267.566075000002,9738.5244094000009,40224.332902000002,0]
[997,"2011-09-19","KW60MN12 ",6817417.3705417821,2420075.7222642368,1784892.3661880905,105642.912749,529540.44332714635,"Summer",112578.81690000001,75419.729246000003,134345.93942000001,2578.7183673999998,53761.892935999997,39603.443416000002,10947.675852,30217.333901999998,0]
[998,"2011-10-18","KW60MN11 ",6835828.5322224768,2419990.4868800165,1774907.9205232505,103573.507729,541509.05862776632,"Summer",155668.83538999999,67966.864098000005,133742.12130999999,2567.1283121000001,55722.674442000003,45031.562483000002,10302.205946,19170.103298999999,0]
[999,"2011-10-12","KW60MN20 ",6967664.4694129089,2419713.6645801282,1787340.4424212063,101190.039305,531183.18285392178,"Summer",186250.55454000001,65107.073046999998,128062.01472000001,2458.1008621000001,39215.630130999998,40113.165777000002,7415.113096,19170.103298999999,3053.2304963000001]
[1000,"2012-04-10","KW60MN11 ",6768584.7450359762,2419610.7844669158,1808807.0806592708,115341.3212479288,495462.38255971612,"Summer",147561.8377,71325.689293000003,117623.09837000001,2257.7298986999999,56908.26326,37251.397545,9484.3781249999993,7467.6597125999997,0]
[1001,"2011-07-03","KW60MN17 ",8162042.9887817102,2419454.9115809551,1714947.174524514,126085.777585,578421.95947144111,"Summer",192356.96538000001,53644.229399999997,96775.819262000005,1857.5744360000001,54217.888635000003,26204.165643,6807.3072828000004,44109.490575999997,0]
[1002,"2012-04-03","KW60MN13 ",6785937.166404115,2419174.3206456006,1833204.9761763967,99561.233192161642,486408.11127704231,"Summer",158602.30872,73476.620351999998,106842.51543,2050.8007769999999,54537.085623999999,36440.676877999998,8164.1998858999996,7467.6597125999997,0]
[1003,"2012-04-05","KW60MN14 ",6718004.82936309,2419024.0239182613,1809269.8482758547,109562.09163132423,500192.08401108236,"Summer",180385.86537000001,73624.381865999996,101464.62741,1947.5742957,48609.141535000002,35911.706164000003,8165.5965452999999,7467.6597125999997,0]
[1004,"2011-07-23","KW60MN22 ",7591887.0650570849,2418692.7819358511,1746433.20648759,133452.71684100002,538806.85860726109,"Summer",190394.48042000001,62061.188612999998,89260.008671000003,1713.3113573999999,55038.680892999997,31073.407587999998,6622.4403792000003,49129.924982999997,3053.2304963000001]
[1005,"2011-08-26","KW60MN23 ",7199181.039196521,2418563.840750128,1739450.8579216141,122021.12980800001,557091.85302051413,"Summer",209857.14012,75282.527635000006,86174.210095999995,1654.0806468000001,55312.278313000003,34658.615335000002,8041.6087502999999,51643.547377000003,3053.2304963000001]
[1006,"2011-08-19","KW60MN12 ",7887996.8460883871,2418360.4647946116,1762145.059033992,131065.537882,525149.86787861958,"Summer",169859.59477,87508.502617999999,116516.61581,2236.4913937000001,55038.680892999997,39333.368717999998,9431.1374723999998,40041.152009999998,0]
[1007,"2012-06-28","KW60MN18 ",7977385.3496369356,2417965.2079438572,1732064.8617978275,132880.67606584614,553019.67008018354,"Summer",191070.9768,85145.301764000003,117027.63902,2246.3002867,55813.873582,46860.749936,8415.3446220000005,25317.960070000001,0]
[1008,"2011-08-05","KW60MN21 ",7337505.9505381258,2417707.2088136813,1733855.6563233752,128544.595961,555306.9565293059,"Summer",203126.929,75902.118526999999,106582.04625,2045.8011718,54582.685193999998,34106.319969999997,7513.7629514999999,35203.650113000003,1628.8136574]
[1009,"2011-07-18","KW60MN19 ",8502287.0348196141,2417328.7410707348,1682164.5251947783,125959.79811900001,609204.41775695654,"Summer",200202.45386000001,63705.946508000001,102206.59518999999,1961.8160803000001,47104.355727000002,36683.918931,8050.7708352999998,44556.006500000003,0]
[1010,"2011-10-19","KW60MN10 ",6731118.971977138,2417053.2322880421,1787399.1937794886,93431.914864000006,536222.12364455359,"Summer",149726.32089,64587.161724999998,130118.06687,2497.5659882999998,45553.970350000003,43814.725618999997,9487.4507754999995,19170.103298999999,0]
[1011,"2011-08-03","KW60MN10 ",7331241.9123895038,2417034.7449088208,1765915.5169537521,127559.66187500001,523559.56608006865,"Summer",142425.07980000001,79797.564178000001,121696.82703,2335.9235453000001,48472.342825,38697.472054999998,10650.649587,29303.441864,0]
[1012,"2011-07-20","KW60MN20 ",8076737.1058384571,2416866.0621934794,1724801.8245998395,129410.43974500003,562653.79784863966,"Summer",197231.79013000001,63145.074589000003,99906.594008,1917.6684468000001,53214.698097,35843.042737000003,7427.1192877000003,45400.232307999999,0]
[1013,"2011-10-17","KW60MN11 ",6928809.8325559208,2416828.1525744726,1793940.7695411097,92526.231415999995,530361.15161736275,"Summer",158978.90784999999,64508.227574999997,130394.1146,2502.8646177999999,56725.864979999998,44125.536963999999,9715.8528198999993,19170.103298999999,0]
[1014,"2011-10-20","KW60MN09 ",6814708.2639981434,2416816.2831365233,1804674.5511125305,97019.631802999997,515122.10022099258,"Summer",146637.35587999999,59955.333169999998,129270.95045,2481.3059161000001,49384.334222999998,45124.967114999999,9734.0957300999999,19170.103298999999,0]
[1015,"2011-10-06","KW60MN12 ",6985493.042626895,2416341.8091126988,1796436.9180946655,99703.609326999998,520201.28169103293,"Summer",113957.87156,68975.993610000005,129064.73518,2477.3476937,56543.466700999998,42110.520128999997,9985.7991299000005,19170.103298999999,0]
[1016,"2011-08-07","KW60MN21 ",7311805.9369197674,2415175.9519898905,1728122.0807665393,124541.801401,562512.06982235122,"Summer",225246.18487999999,65584.296459000005,104164.09991,1999.3896267,55221.079172999998,27886.895831000002,7051.6972672000002,33249.938947000002,1781.4751831000001]
[1017,"2011-07-31","KW60MN13 ",7834157.3893247759,2415087.078202995,1706759.8116256285,130290.82008200001,578036.44649536663,"Summer",216944.90474,69787.867285999993,105085.16204,2017.0690580999999,55221.079172999998,27909.815476,7363.5128833999997,35925.941463000003,0]
[1018,"2011-09-29","KW60MN18 ",7357849.0857831454,2414868.4405883038,1801088.2469345839,92624.747467000008,521155.44618672004,"Summer",141601.58119,67452.852952999994,127512.63217,2447.5556763999998,55722.674442000003,40444.209803999998,7998.0532953000002,30217.333901999998,0]
[1019,"2011-09-26","KW60MN20 ",7202964.2865381045,2413907.9410394332,1767745.1749101514,100452.014123,545710.75200628187,"Summer",182467.88106000001,61783.568573999997,125498.88047,2408.9024912,56680.265411,37986.725083999998,8787.0693044,30217.333901999998,3053.2304963000001]
[1020,"2011-07-04","KW60MN15 ",7669400.0694173034,2413483.1955370638,1710744.7444896225,130378.92926,572359.52178744134,"Summer",205972.1692,56191.442827999999,91890.878628000006,1763.8098891,54856.282614000003,25620.172307000001,7055.4555499999997,48170.593302000001,0]
[1021,"2011-08-16","KW60MN11 ",7374708.7467653677,2412901.596360703,1791651.2775672041,128521.28180600001,492729.0369874991,"Summer",130431.23523999999,81921.248695999995,106661.07067,2047.3180150000001,52895.501106999996,37396.565849999999,10019.522102999999,41126.835663999998,0]
[1022,"2011-07-14","KW60MN15 ",8310607.7838374805,2412843.6943639391,1739789.9198771697,125040.121312,548013.65317476937,"Summer",150188.62009000001,81128.934620999993,121122.71599,2324.9037057999999,56133.070571999997,41385.624388999997,9864.5386295999997,36112.340520999998,0]
[1023,"2011-08-28","KW60MN13 ",7701573.4757579081,2412548.6339325057,1659275.5653286378,119664.39595000001,633608.67265386763,"Summer",245573.81542,72224.817137999999,99895.207120000006,1917.4498799,55631.475301999999,28259.381042000001,7810.2000795000004,42840.080224999998,0]
[1024,"2012-04-19","KW60MN11 ",6840350.6255446123,2411816.8153231125,1822616.1421906862,104521.1721355098,484679.50099691644,"Summer",134508.71866000001,75655.660806,118554.58891999999,2275.6094996000002,34883.670988999998,37744.524549000002,9266.0337204000007,7467.6597125999997,0]
[1025,"2012-04-11","KW60MN11 ",6766073.1030187923,2411783.5921045071,1818081.2868511619,109863.7468916723,483838.5583616732,"Summer",153035.17452,77007.366936000006,118896.56589,2282.1736154,56224.269711000001,36778.650919,9667.9550237999993,7467.6597125999997,0]
[1026,"2011-07-18","KW60MN11 ",8362912.1289765863,2411783.3579203556,1716388.5723307659,135186.92670700001,560207.85888258973,"Summer",137502.30710000001,84461.061193000001,107822.4512,2069.6102652999998,50615.522611,39890.233107,9407.1860347000002,43873.795705999997,0]
[1027,"2011-09-29","KW60MN17 ",7430845.9578387039,2411596.23755517,1794179.1595069487,91430.141191999995,525986.93685622141,"Summer",126147.25981,79543.012996000005,132472.31586999999,2542.7548876000001,55768.274012000002,40872.994968999999,9043.6280002999993,30217.333901999998,0]
[1028,"2011-08-27","KW60MN22 ",7511418.866468058,2411544.9334345907,1706523.9051013221,125627.29766500001,579393.73066826863,"Summer",234100.21247,77765.576637999999,94465.522398999994,1813.2291809000001,55175.479603,30097.985678000001,7674.6377890000003,50423.681667999997,3053.2304963000001]
[1029,"2011-10-31","KW60MN12 ",6926854.3778605442,2411525.897745715,1754976.8304777497,111916.10369600001,544632.96357196523,"Summer",110935.33841,69351.377911000003,131932.53474999999,2532.3939977999999,56315.468850999998,44228.039400000001,9228.2104937000004,19170.103298999999,0]
[1030,"2012-04-11","KW60MN21 ",6764979.3943552487,2410689.8046266143,1788747.1227712424,114238.27437245344,507704.40748291864,"Summer",174750.25378,59908.901411999999,95265.283184,1828.5802799999999,54993.081323999999,32062.543379999999,6543.8516295999998,7467.6597125999997,3053.2304963000001]
[1031,"2012-05-02","KW60MN08 ",6712480.214855588,2410300.0291653047,1769908.6570031443,122155.71825302586,518235.65390913474,"Summer",171516.10949999999,52176.131352999997,97043.939522999994,1862.7209006999999,56589.066271000003,32686.673103000001,8079.5809546999999,21356.368259999999,0]
[1032,"2011-09-29","KW60MN16 ",7465005.5428582691,2410179.8661909392,1788856.7627037757,90824.426049000002,530498.67743816355,"Summer",114661.15054,75703.945206999997,137759.73975000001,2644.2449449000001,56452.267561000001,42313.645911,10176.963698,30217.333901999998,0]
[1033,"2011-10-20","KW60MN10 ",6863853.6206373731,2410068.4997884124,1798943.720629981,97968.708062000005,513156.07109643123,"Summer",133771.14269000001,66091.992872999996,132453.49434999999,2542.3936158000001,49749.130783000001,45405.891004999998,9850.0133728000001,19170.103298999999,0]
[1034,"2011-07-08","KW60MN11 ",7580761.1632788181,2409995.130464369,1744452.0584308191,139407.50169600002,526135.57033754967,"Summer",132735.84218000001,73762.337067,109567.19536,2103.0999550000001,56315.468850999998,39193.963820999998,7454.9102681000004,38663.030355000003,0]
[1035,"2011-09-29","KW60MN21 ",7006554.4421644816,2409687.3800566155,1764112.410786507,106572.05773499999,539002.91153510835,"Summer",159688.65195999999,64210.046898000001,108708.98384,2086.6269164999999,56315.468850999998,39205.700388999998,8013.6146196,30217.333901999998,3053.2304963000001]
[1036,"2011-08-10","KW60MN21 ",7612137.6560115553,2409637.830049661,1772974.1503687918,122354.31248400001,514309.36719686905,"Summer",186280.17754999999,71087.419834999993,104028.58256,1996.7884234999999,55585.875732,36061.462530999997,8071.4921811000004,50343.630772999997,1985.0238824999999]
[1037,"2012-06-21","KW60MN12 ",7495614.6217868468,2408553.1174627426,1726601.5985783755,133760.35139209987,548191.16749226709,"Summer",126902.493,91653.606738999995,127973.91374,2456.4097978999998,49749.130783000001,41794.502509999998,9477.7401843999996,36435.214523000002,0]
[1038,"2012-05-22","KW60MN11 ",7498073.2012765808,2408484.1050011711,1766708.6901283718,132268.83048627942,509506.58438651962,"Summer",107875.86923,67970.373353999996,114410.57984999999,2196.0668476999999,56543.466700999998,43105.870949999997,9131.898561,21356.368259999999,0]
[1039,"2011-07-12","KW60MN10 ",7487275.7034771862,2408249.5074408082,1739966.1303650129,137851.26665100001,530432.11042479496,"Summer",113510.70712000001,75674.293283000006,118162.70599,2268.0874582000001,42134.002606000002,40178.693700999997,10119.350232000001,35125.474621000001,0]
[1040,"2012-04-16","KW60MN09 ",6723156.0226013372,2408083.5094925622,1826284.2344937467,115038.13624821107,466761.13875060447,"Summer",160236.37567000001,62304.292937999999,106730.65063,2048.6535754000001,35430.865828000002,34759.120446000001,9452.5715368000001,7467.6597125999997,0]
[1041,"2012-04-06","KW60MN12 ",6758541.043861066,2408012.9610145511,1803445.7149691416,104716.68759539786,499850.55845001148,"Summer",200990.83939000001,75634.828618,100432.83338,1927.7694082,53853.092076000001,32945.714787999997,8420.0120038000005,7467.6597125999997,0]
[1042,"2011-08-18","KW60MN22 ",7322551.7283495637,2407676.069492979,1766747.7452967095,132003.7922,508924.53199626959,"Summer",211771.47576999999,71180.003767000002,89841.706378000003,1724.4768200000001,54263.488205000001,34444.500246000003,7683.1091623000002,48901.270376,3053.2304963000001]
[1043,"2011-07-15","KW60MN11 ",7905146.8111096863,2406900.2449791771,1730768.2045541164,136865.08811000001,539266.95231506077,"Summer",128536.65534,78597.707267000005,116948.72266,2244.7855175,55859.473151999999,40643.761755,7758.9858531999998,38720.176986999999,0]
[1044,"2012-05-03","KW60MN08 ",6595352.5094268518,2406764.8606879851,1747665.7309943377,124229.91930407259,534869.21038957487,"Summer",158439.21786,56194.089230999998,95457.523581000001,1832.2702601000001,55585.875732,34339.513988999999,8829.2890458000002,21356.368259999999,0]
[1045,"2011-10-05","KW60MN13 ",6972278.461258187,2406226.7484978125,1785422.194288804,109119.10974999999,511685.44445900864,"Summer",128301.314,66690.566793999998,133448.00497000001,2561.4828628,55403.477453,42403.834439999999,9804.1826323999994,19170.103298999999,0]
[1046,"2011-10-10","KW60MN14 ",6895555.1676702313,2406126.8591091717,1793445.1293371322,99897.128670000006,512784.60110203968,"Summer",143356.29170999999,71899.931410999998,136830.97946999999,2626.4177503000001,49338.734653,43865.375400999998,9159.3628079999999,19170.103298999999,0]
[1047,"2011-10-28","KW60MN19 ",6882250.0664492911,2406122.1027605608,1741761.0858354343,100295.727732,564065.28919312637,"Summer",225836.01673,67351.613178,135476.15468000001,2600.4124124,55996.271862000001,40296.237243000003,7243.4712855999996,19170.103298999999,3052.8205720999999]
[1048,"2011-08-07","KW60MN16 ",7606902.8510920694,2406084.6614213185,1710652.8953282256,117870.073957,577561.69213609293,"Summer",242835.20746999999,62736.310582999999,104697.0667,2009.6197181,55449.077022999998,28463.817514999999,7713.5207840000003,28851.926443,0]
[1049,"2011-10-25","KW60MN22 ",6639530.8070505271,2405849.7760251989,1762562.6078128859,96963.105350000013,546324.06286231289,"Summer",205299.61549,55409.855763,114262.35705000001,2193.2217682999999,56452.267561000001,41568.641202999999,7194.8370701000003,19170.103298999999,3053.2304963000001]
[1050,"2011-07-01","KW60MN18 ",7680419.7807350438,2405661.6218648935,1739034.2401971533,130799.289764,535828.09190373996,"Summer",183125.55437,68950.080713999996,112848.90744,2166.0911495999999,55859.473151999999,36121.605105000002,6749.8766521999996,41287.400558000001,0]
[1051,"2011-07-20","KW60MN13 ",8032422.5282247299,2405604.742082011,1732393.5635216716,126958.90699,546252.27157033933,"Summer",141887.92287000001,84651.740388999999,123368.5944,2368.0124735999998,50569.923041000002,38781.342151999997,10497.697618,47155.328391000003,0]
[1052,"2011-08-30","KW60MN21 ",7879560.6626356142,2405327.0408200016,1743322.1986302207,134900.465669,527104.37652078096,"Summer",218674.54962999999,73321.522180999993,105030.90136,2016.0275452999999,56589.066271000003,35517.46355,8508.8954018000004,35542.323607999999,3053.2304963000001]
[1053,"2011-08-12","KW60MN22 ",7046594.8232313571,2404981.3199792369,1744861.2575805273,134271.63486700002,525848.42753170955,"Summer",201328.98689,75767.601882999996,94614.433481999993,1816.0874716000001,56862.663690000001,33904.645981000001,7429.3539425999998,51032.283595000001,3053.2304963000001]
[1054,"2011-07-03","KW60MN19 ",8025536.9822979532,2404941.0725035938,1715119.796304299,126767.12815599999,563054.14804329455,"Summer",197623.47102999999,52787.678593999997,94305.482214999996,1810.1572713999999,53944.291214999997,25519.408350000002,6922.0466533999997,46214.707107000002,0]
[1055,"2011-08-10","KW60MN11 ",7368357.534930734,2404889.6581860655,1765754.2100618724,132334.102785,506801.34533919318,"Summer",128510.72063,78077.693109,116768.11029,2241.3187329000002,55950.672292000003,38997.485377999998,9622.7896015999995,44670.298777000004,0]
[1056,"2012-04-05","KW60MN22 ",6503675.31067748,2404853.4385445151,1781571.3238516734,110928.66302132598,512353.45167151559,"Summer",219285.86478,61780.63134,82029.543990000006,1574.5253832000001,52713.102828000003,32370.128809000002,6865.2136244000003,7467.6597125999997,3053.2304963000001]
[1057,"2011-09-22","KW60MN13 ",6842383.2632421982,2404419.9705814128,1778293.8570989987,106728.133116,519397.98036641412,"Summer",96873.892231999998,82090.602415000001,135701.95496999999,2604.7465615000001,55403.477453,42536.736579999997,10682.950508,30217.333901999998,0]
[1058,"2012-04-04","KW60MN15 ",6692848.9655446112,2404359.6269014026,1816107.0287280218,111912.56463479801,476340.03353858256,"Summer",164012.24486999999,67487.694847999999,105533.33925,2025.6716463,49749.130783000001,34966.601619000001,8152.1886158999996,7467.6597125999997,0]
[1059,"2011-09-10","KW60MN13 ",7110525.7173888804,2404334.7436256465,1701054.6678117248,106553.13490599999,596726.94090792153,"Summer",219320.27835000001,79501.440207000007,122862.95683,2358.3069559999999,54491.486054000001,36164.110043000001,7425.6769197000003,36847.209644000002,0]
[1060,"2011-08-31","KW60MN18 ",8390489.997756457,2403915.2077238485,1757756.5483215328,123230.97418500001,522927.68521731603,"Summer",184584.79785,84790.068367999993,109793.45978,2107.4430130000001,55905.072721999997,36382.908925999996,8117.0994559999999,33797.044446,0]
[1061,"2011-09-01","KW60MN20 ",7579880.2525077285,2403400.4402846182,1733701.2168645142,123245.71897099999,546453.50444910384,"Summer",196948.10868999999,69488.602016999997,118737.25268000001,2279.1156599000001,54947.481754,37142.265614999997,7857.2497223999999,43081.182453000001,916.39320871999996]
[1062,"2011-10-10","KW60MN21 ",6820743.8059727307,2403283.0170317246,1787922.459828058,102437.889205,512922.6679986667,"Summer",171651.94083000001,54038.557896999999,114466.85473000001,2197.1470221,47879.548415999998,38600.935288000001,7198.8391337000003,19170.103298999999,3053.2304963000001]
[1063,"2011-07-14","KW60MN14 ",8210136.1897166846,2403271.3885912946,1730695.9739084784,126763.273856,545812.14082681609,"Summer",158609.42035999999,81845.426921999999,121202.38195,2326.4328632000002,55722.674442000003,41602.057281000001,10199.899383,34595.969604999998,0]
[1064,"2011-07-22","KW60MN13 ",8314047.0250596246,2403105.6677339333,1750585.8095634431,131710.692515,520809.16565549036,"Summer",138697.23274000001,83933.848563000007,122826.31187000001,2357.6035701000001,54993.081323999999,42658.110827999997,7686.0954734999996,46226.791366999998,0]
[1065,"2012-06-12","KW60MN14 ",7250738.0844467357,2402634.7065154491,1729270.0413377956,134681.02833973899,538683.63683791459,"Summer",137455.91714999999,83404.093972000002,132241.51506999999,2538.3247554999998,56406.667991000002,45916.787690999998,9832.6033800000005,30482.309548000001,0]
[1066,"2011-09-28","KW60MN21 ",7128644.1855059164,2402433.0550767747,1764866.5996717394,108857.66581499999,528708.78959003522,"Summer",168587.23595,61679.703285000003,109466.19683,2101.1613271000001,55813.873582,35088.963582999997,7787.9144764000002,30217.333901999998,3053.2304963000001]
[1067,"2011-09-05","KW60MN15 ",7139144.9204203309,2402266.0335631571,1756843.8209784671,110147.73248899999,535274.48009568977,"Summer",222611.05080999999,57258.328838000001,109517.41044000001,2102.1443525,54719.483904000001,22512.319693000001,7321.0544405999999,36791.922470999998,0]
[1068,"2012-06-29","KW60MN14 ",8259931.078794905,2402149.3169922242,1703470.874028726,133567.01033146412,565111.43263203406,"Summer",142389.04465,87940.089640000006,139266.05327,2673.1580505000002,56133.070571999997,41810.738405999997,8779.0245467999994,35689.806787000001,0]
[1069,"2012-05-03","KW60MN10 ",6862220.4854480857,2402136.2778694141,1753628.824719867,124936.99870423733,523570.4544453097,"Summer",120574.2116,71354.497646000003,111700.83968999999,2144.0544328999999,54810.683043999998,35587.590991999998,9291.6577637999999,21356.368259999999,0]
[1070,"2011-09-29","KW60MN19 ",7296697.4949686043,2402130.4009084506,1779366.0085027649,98929.964534000013,523834.42787168553,"Summer",135060.63941,62023.779047999997,127066.71223999999,2438.9964157999998,56133.070571999997,39938.759356000002,7952.5679108000004,30217.333901999998,712.84450892999996]
[1071,"2012-06-29","KW60MN19 ",8039448.411360479,2401843.4745140271,1686188.1798818519,128956.09212011225,586699.20251206332,"Summer",178115.42822999999,75998.491297999994,123966.13098,2379.4819572000001,53898.691644999999,41455.816721000003,8228.5274737,36199.542167,0]
[1072,"2011-10-10","KW60MN13 ",6932476.3032369157,2401804.762609195,1780289.948399601,100121.23740300001,521393.57680659409,"Summer",144453.29712,70157.491200999997,135707.23509,2604.8479114000002,49475.533363000002,43955.771608000003,9092.8919829000006,19170.103298999999,0]
[1073,"2011-07-15","KW60MN21 ",7799821.1044603819,2401722.4574718839,1706646.2865780271,124328.54729500001,570747.62359885674,"Summer",193203.93982999999,60692.533936,101989.38310000001,1957.6467782,55175.479603,36711.181036000002,6645.3760634999999,44168.852971,509.29580915000003]
[1074,"2012-04-09","KW60MN11 ",6757033.2036034092,2401325.0243388787,1819901.4125872073,110373.79952388885,471049.81222778279,"Summer",142460.22467,70780.16876,106040.65915000001,2035.4094557999999,46237.963899000002,34916.771577,8820.8346010999994,7467.6597125999997,0]
[1075,"2012-05-30","KW60MN14 ",7362551.2175116418,2401274.6142291045,1732571.9592900032,119125.04753915744,549577.60739994398,"Summer",113515.60365999999,79497.566206999996,114551.44255000001,2198.7706527,56862.663690000001,43688.198334000001,8635.9169094999997,26113.591446999999,0]
[1076,"2011-08-20","KW60MN14 ",7924836.6366665773,2401222.3950351579,1739336.8755826252,131170.09880000001,530715.4206525326,"Summer",223679.51426,71257.697465000005,105986.78440999999,2034.3753509000001,55129.880033000001,34242.757685999997,7680.2853708000002,40431.856094000002,0]
[1077,"2012-06-12","KW60MN17 ",7502147.3277639477,2401150.4113527499,1735291.8695908678,131017.94002080632,534840.60174107575,"Summer",151197.26519000001,77174.871226000003,122618.64655,2353.6175146999999,55859.473151999999,42556.614728,8596.2297772999991,30053.196207000001,0]
[1078,"2012-06-21","KW60MN22 ",7531956.9605627218,2401117.4917834727,1696634.6298785324,125534.49152226832,578948.37038267183,"Summer",192604.88722999999,76224.328928999996,106932.03889,2052.5191451999999,54810.683043999998,38846.356853999998,7655.9073172999997,40006.399485000002,3042.6996786999998]
[1079,"2011-10-06","KW60MN13 ",6985441.7001696546,2401027.7745898841,1780914.6231090194,99388.699664,520724.45181686501,"Summer",123772.42672,68191.245966000002,127255.49414,2442.6200113999998,56862.663690000001,42938.116539000002,9839.8558506999998,19170.103298999999,0]
[1080,"2012-05-23","KW60MN09 ",7091799.5574524216,2400977.7961311871,1776713.7991882898,130392.3236375495,493871.67330534762,"Summer",118780.91167,62269.300002999997,108021.12665999999,2073.4237638999998,57409.858528999997,41396.393428000003,8434.1648184000005,21356.368259999999,0]
[1081,"2012-04-17","KW60MN21 ",6771007.0612651845,2399973.9473536448,1782108.6069369407,112361.90851368457,505503.43190301955,"Summer",203563.49486000001,63314.937663999997,96817.526173999999,1858.374984,35522.064967999999,32999.799256999999,6816.7402347999996,7467.6597125999997,3053.2304963000001]
[1082,"2011-08-17","KW60MN11 ",7623811.1978537664,2399837.557176719,1775017.7830766796,131999.05927599999,492820.71482403966,"Summer",151653.43841999999,84885.260139999999,106109.21393,2036.7253381999999,49931.529062000001,37602.900285999996,10311.855593,39461.922829000003,0]
[1083,"2011-08-09","KW60MN22 ",7211937.6514172889,2399754.2308283332,1744246.6004617792,133907.46233599997,521600.16803055396,"Summer",210250.26243,68587.560469999997,95881.005600999997,1840.3988337000001,55494.676592999997,34640.517610000003,7905.9651989000004,49088.267259,3053.2304963000001]
[1084,"2012-05-22","KW60MN13 ",7548812.5805351324,2399732.656988719,1760553.1802630979,131096.93275607584,508082.54396954528,"Summer",111267.47653,73136.188815999994,116128.25017,2229.0368653,56497.867130999999,44563.629557,9192.3832206000006,21356.368259999999,0]
[1085,"2012-05-22","KW60MN10 ",7431371.7175348708,2399638.017149521,1762173.9481795847,133678.90168305399,503785.16728688253,"Summer",117735.60610999999,66615.744451000006,116396.23275,2234.1806873999999,56224.269711000001,42670.378390999998,8948.1913081000002,21356.368259999999,0]
[1086,"2011-09-15","KW60MN11 ",6753173.4580594795,2399539.5528285191,1770726.4905612629,101466.305349,527346.75691825629,"Summer",136542.24587000001,82322.238993999999,133450.99061000001,2561.5401708999998,53123.498957000003,40946.103318000001,10292.800080000001,22669.834981,0]
[1087,"2011-07-09","KW60MN15 ",7903444.0229618642,2399507.7376542138,1726385.8174807932,139804.339691,533317.58048242051,"Summer",173821.11919,59571.053612999996,98350.636572000003,1887.8024453999999,55357.877883000001,32074.595096000001,7002.0066688999996,36994.358297999999,0]
[1088,"2011-09-02","KW60MN12 ",7076293.8574276511,2399311.6478170487,1748909.7291931962,123038.044083,527363.87454085262,"Summer",131270.16537,81269.169873999999,121347.12973,2329.2112407,56361.068421000004,40574.926308000002,8657.5405821000004,42828.588569,0]
[1089,"2012-06-15","KW60MN20 ",7178054.4462321661,2398907.7328525106,1747332.9205126802,129157.93055024119,522416.8817895893,"Summer",136980.5393,63642.445692000001,103167.53789000001,1980.261004,55905.072721999997,40127.239870999998,7102.5661387,31179.41029,0]
[1090,"2011-09-29","KW60MN15 ",7397206.5853345105,2398738.1750154872,1779648.2724849661,91089.446973000013,528000.45555752132,"Summer",108597.33537,75902.377221999996,139649.09516,2680.5103915,55996.271862000001,42634.269529999998,10336.172699999999,30217.333901999998,0]
[1091,"2011-08-31","KW60MN21 ",7789446.636504598,2398428.8184745992,1752380.3029301036,126258.034655,519790.4808894957,"Summer",195169.4454,67569.177385000003,96511.056792000003,1852.4924226999999,56452.267561000001,34384.440641000001,7739.7475059999997,38021.938045000003,3053.2304963000001]
[1092,"2011-09-23","KW60MN21 ",6676054.2168332273,2398140.3910820736,1745907.3264381594,108180.281089,544052.78355491441,"Summer",207336.84160000001,71556.606023999993,116369.28062000001,2233.6633517,56041.871432,38860.950774999998,8942.9872706000006,30217.333901999998,3053.2304963000001]
[1093,"2011-07-27","KW60MN23 ",7268465.4394827643,2398092.809855015,1737174.4451305005,132720.96879300001,528197.39593151421,"Summer",167287.45861999999,61273.468385,79731.168537999998,1530.4089550000001,55722.674442000003,36116.983418000003,7233.7200651000003,42170.186967000001,3053.2304963000001]
[1094,"2011-07-24","KW60MN23 ",7422303.102802678,2397978.4515427458,1716492.213988137,122313.602409,559172.63514560892,"Summer",211596.46150999999,57986.722721999999,88138.099585999997,1691.7767463,55038.680892999997,29887.473740000001,6665.1629168999998,49712.114074999998,3053.2304963000001]
[1095,"2011-07-03","KW60MN16 ",8141659.3958146097,2397504.690318834,1697164.8263370688,123991.696683,576348.16729876515,"Summer",201397.77163999999,50733.546108000002,95721.644278000007,1837.3399546999999,54354.687344999998,26121.793046999999,6789.9785498000001,43925.689738000001,0]
[1096,"2011-10-03","KW60MN21 ",6762885.2632903522,2397125.5745154591,1751227.6644201856,108944.194731,536953.71536427387,"Summer",180641.07902999999,56923.180466999998,114509.98435,2197.9748786999999,56224.269711000001,37883.699967,7517.9275359000003,19170.103298999999,3053.2304963000001]
[1097,"2012-04-04","KW60MN18 ",6618697.2087665638,2397125.1207184521,1803917.78578934,117851.8954383291,475355.43949078291,"Summer",183158.69612000001,53050.087037999998,90388.798003000004,1734.9780321999999,49384.334222999998,32351.819946,6710.9479485000002,7467.6597125999997,0]
[1098,"2011-09-07","KW60MN09 ",7054746.6625260301,2397107.3747192859,1785500.4755397439,113250.769262,498356.1299175421,"Summer",106694.57335999999,66767.855578000002,118919.05398,2282.6052654999999,39808.42454,38625.342990999998,9068.2498345000004,34669.998293999997,0]
[1099,"2012-05-23","KW60MN10 ",7155288.5028996272,2396997.7923869141,1773616.3121089297,129509.31083763453,493872.16944034985,"Summer",131164.88974000001,69112.237567000004,116121.34018,2228.9042307999998,57227.460249999996,41238.684402999999,8679.6230348999998,21356.368259999999,0]
[1100,"2011-08-20","KW60MN22 ",7101371.389103435,2396744.0896426276,1766415.374170281,129342.317415,500986.3980573467,"Summer",187385.89499,70666.130806999994,84406.766682999994,1620.1552538000001,55494.676592999997,30842.05631,6930.8430674000001,47516.268178999999,3053.2304963000001]
[1101,"2012-06-12","KW60MN18 ",7482924.0597706726,2396475.4884006823,1738414.4626790304,135055.95142021831,523005.07430143363,"Summer",154779.69980999999,67173.211557000002,108726.26493999999,2086.9586207000002,56087.471001999998,46048.434044000001,7977.7179359000002,30301.027767,0]
[1102,"2011-08-23","KW60MN09 ",7355767.4266739087,2396173.7525592814,1744133.5578650737,133408.542865,518631.65182920784,"Summer",134150.25369000001,70600.301735000001,107824.02721,2069.6405162999999,55540.276163000002,38900.093038999999,9785.5537370000002,45315.212566000002,0]
[1103,"2011-10-07","KW60MN12 ",6936675.5161073292,2395987.9456880474,1760284.3185817208,101752.18472599999,533951.4423803268,"Summer",114684.14945,72679.323583999998,139100.03137000001,2669.9713243000001,56178.670141000002,42269.470568999997,8564.7617738999998,19170.103298999999,0]
[1104,"2012-06-14","KW60MN16 ",7697682.7150284862,2395659.2150907647,1733564.0571145283,133211.61214711866,528883.54582911753,"Summer",136485.36332,89467.785581000004,121347.49752,2329.2183003999999,55631.475301999999,39868.183100000002,9511.6866234000008,31542.916021000001,0]
[1105,"2012-06-20","KW60MN15 ",7478063.2232127422,2395575.5533786844,1739771.6628409312,122593.91069680339,533209.97984094976,"Summer",122521.95395,86474.663704999999,124442.18524999999,2388.619635,54582.685193999998,42695.825155999999,9382.1985304999998,37660.026509000003,0]
[1106,"2012-05-16","KW60MN10 ",7354378.2569247345,2395406.616015546,1729069.0690542543,132727.79034295815,533609.75661833363,"Summer",122866.58779000001,79170.130485000001,126113.40041,2420.6979639000001,48153.145836000003,38425.28458,10279.729042000001,21356.368259999999,0]
[1107,"2012-05-30","KW60MN13 ",7302377.3869787715,2395172.7378981183,1737241.7540165286,118445.67475439612,539485.30912719353,"Summer",104184.04673,74700.479672000001,112365.69160000001,2156.8160081999999,56817.064120000003,41323.926148999999,8598.0208877999994,25127.636917,0]
[1108,"2011-09-13","KW60MN09 ",6658130.3306866763,2395139.5322590545,1759468.6189782689,105253.66023500002,530417.25304578547,"Summer",120093.71464999999,67015.987586000003,122495.33906,2351.2506749999998,51299.516159999999,40842.123753,10772.661744000001,27632.979039000002,0]
[1109,"2012-05-16","KW60MN21 ",7261694.8799251495,2395064.4770377432,1710319.7161292764,139813.92378949851,544930.83711896825,"Summer",159511.44381,63439.639962000001,98129.253366000004,1883.5530804,54901.882184000002,34466.459315,7123.8749271999995,21356.368259999999,1577.9264826000001]
[1110,"2012-04-16","KW60MN11 ",6740666.9915731931,2395047.4784070784,1804987.2636873939,115133.34642126835,474926.86829841608,"Summer",144674.87091,67689.023927000002,116938.35222,2244.5864611000002,36388.456795999999,35857.131305000003,9384.8428724999994,7467.6597125999997,0]
[1111,"2012-05-25","KW60MN09 ",7047562.8828959111,2394992.2927059825,1782333.818847501,127403.37981395895,485255.09404452262,"Summer",116158.96223,61864.842227000001,108622.95929,2084.9757085000001,48426.743255000001,42718.103357,7663.9537676999998,27219.101344999999,0]
[1112,"2012-05-31","KW60MN10 ",7245611.0649084337,2394953.3999295295,1737809.9246746188,131969.19013376895,525174.28512114182,"Summer",117309.55403,74248.007438000001,121830.61542,2338.4915617000001,51664.312719000001,42060.989074999998,8774.2792917999996,27500.925276000002,0]
[1113,"2012-05-21","KW60MN13 ",7527744.0083081927,2394738.2786858445,1752582.7781894349,132084.33753957128,510071.1629568385,"Summer",117348.39780000001,76334.648742000005,109617.52136,2104.0659430000001,56817.064120000003,45703.719088999998,9129.6825286000003,21356.368259999999,0]
[1114,"2011-07-01","KW60MN17 ",7689376.7820556415,2394593.1037435075,1732346.4846185141,128599.582435,533647.03668999323,"Summer",164693.37283000001,80823.201973999996,115070.90962000001,2208.7416222000002,56224.269711000001,36284.994895999997,6965.1348632999998,43058.096096000001,0]
[1115,"2011-08-31","KW60MN11 ",7954674.2558887033,2394342.1906622769,1751993.144118106,129536.67721899999,512812.36932517093,"Summer",115150.44431000001,75529.697169000006,117109.10686,2247.8640304,56224.269711000001,40115.892979999997,9799.2867069000004,35675.259789999996,0]
[1116,"2011-10-24","KW60MN12 ",6935467.7555822507,2394230.3913760898,1766088.9825864555,96040.640306000001,532100.76848363446,"Summer",129242.90192,67299.279636000007,136450.09588000001,2619.1068371000001,55677.074871999997,45591.221150999998,9762.1508054000005,19170.103298999999,0]
[1117,"2011-07-14","KW60MN19 ",8227930.789928738,2393920.0008878992,1725411.8978233014,132890.39626099999,535617.70680359786,"Summer",206643.22852,60111.528788000003,112096.713,2151.6530680000001,55950.672292000003,37527.111932,7068.5790692,39363.339974000002,0]
[1118,"2011-07-14","KW60MN13 ",8111019.3367463257,2393845.4358608453,1715168.8163306564,129820.05102,548856.56851018907,"Summer",166245.02527000001,79555.269681000005,119823.24814,2299.9609228999998,56133.070571999997,42240.154987000002,10064.824653,33934.976269999999,0]
[1119,"2011-09-02","KW60MN11 ",7038245.0157314083,2393835.2451327099,1743434.821977905,128193.66121300001,522206.7619418049,"Summer",108607.13905,79450.973769000004,120241.15367,2307.982458,56224.269711000001,40762.149943999997,8380.0573901000007,42498.305977999997,0]
[1120,"2012-04-18","KW60MN07 ",6615250.4230811652,2393824.0120321601,1773706.2781662396,106191.68334238535,513926.05052353494,"Summer",230445.35779000001,46976.296678999999,89914.839678999997,1725.8805854,34746.872279000003,34864.616071999997,7712.8182219,7467.6597125999997,357.04420886999998]
[1121,"2011-10-05","KW60MN14 ",6890624.7501183348,2393293.9117802819,1769112.036020973,104198.91902399999,519982.95673530904,"Summer",134193.37929000001,64995.44369,134840.19813,2588.2054723000001,56680.265411,42515.639377,9879.4092421999994,19170.103298999999,0]
[1122,"2011-07-06","KW60MN09 ",7642070.5147450045,2393063.8659649305,1714363.0661690352,127573.20117900001,551127.59861689515,"Summer",132392.74514000001,69000.277209000007,115333.61620999999,2213.7841736999999,55312.278313000003,38513.316463000003,8863.4132415000004,41242.503451999997,0]
[1123,"2011-10-03","KW60MN19 ",6901958.3645710107,2392944.1769180214,1747957.8004912615,107108.937164,537877.43926275964,"Summer",165804.44255000001,59980.529433000003,122582.86957,2352.9307893999999,56315.468850999998,39460.885512000001,7750.0878630999996,19170.103298999999,1119.9419087000001]
[1124,"2012-06-14","KW60MN15 ",7630632.2478786409,2392856.7612650739,1736172.8090302672,131239.96355449376,525443.98868031276,"Summer",135405.67598,87266.274000000005,125146.45050000001,2402.1377342000001,55677.074871999997,41916.017542000001,10402.074704000001,31140.734879,0]
[1125,"2011-07-02","KW60MN22 ",7654729.1501321364,2392753.2703537634,1699443.1705219378,135835.12681099999,557474.9730208253,"Summer",199147.22803,59683.177864999998,87341.937384999997,1676.4947205999999,54537.085623999999,29584.317845000001,6801.0299338000004,53195.562063999998,3032.5505136000002]
[1126,"2011-10-14","KW60MN08 ",6760819.040325352,2392685.2865764322,1772507.352424603,101232.12026900001,518945.81388282927,"Summer",173879.10399,60698.246117000002,121886.10326,2339.5566294,54081.089925,43167.254856,7345.9606849000002,19170.103298999999,762.88356425999996]
[1127,"2012-04-17","KW60MN07 ",6666856.2439216934,2392661.5009421813,1765953.6865569332,107397.21762864324,519310.59675660491,"Summer",221820.68335000001,46963.270335000001,88795.062485000002,1704.3868950999999,34883.670988999998,33932.544807999999,7879.6165865000003,7467.6597125999997,457.56051463]
[1128,"2011-07-13","KW60MN11 ",7884571.2945112642,2392572.1765854731,1717591.6576260116,140404.98952900001,534575.52943046181,"Summer",144951.84344999999,74228.393205,115927.36485,2225.1809493999999,54628.284764000004,39854.101254000001,9092.5059975999993,35748.023772,0]
[1129,"2012-05-10","KW60MN09 ",6856628.0827023815,2392388.3491417784,1759396.9107120887,124648.4331183133,508343.0053113763,"Summer",137707.80286,66631.174570999996,109061.82891,2093.3996412000001,55996.271862000001,34691.805666,9104.4681722999994,21356.368259999999,0]
[1130,"2011-07-13","KW60MN12 ",8016758.685231152,2392221.7788111819,1716663.963840038,136264.56236099999,539293.25261014386,"Summer",144781.32298999999,78214.407858999999,116200.88489,2230.4310607000002,54172.289064999997,39972.931140000001,9700.8196864000001,34850.345512,0]
[1131,"2012-05-11","KW60MN09 ",6850005.2321266839,2392212.052111954,1758585.1074451888,131887.26981702051,501739.67484974483,"Summer",141924.67872,61171.044396999998,104533.81915,2006.4862445000001,58458.648636999998,36491.675976999999,8294.3126666000007,21356.368259999999,0]
[1132,"2011-08-17","KW60MN22 ",7212689.6843574224,2391983.4480031091,1750952.0694848082,133288.73576700001,507742.64275130088,"Summer",223313.36533,76679.229040999999,94362.941305,1811.2601764999999,54582.685193999998,34238.476339000001,7968.1698644999997,47110.942644000002,3053.2304963000001]
[1133,"2011-09-21","KW60MN14 ",6816411.1816527732,2391773.4134493349,1777102.165557473,91329.072482000003,523342.17540986161,"Summer",130820.86001999999,84259.076539000002,142334.04712,2732.0470064000001,44596.379381999999,42237.714465999998,11787.032542000001,30217.333901999998,0]
[1134,"2012-05-22","KW60MN12 ",7516913.8995042285,2391694.0379440193,1751346.9068598324,130781.51654107984,509565.61454310699,"Summer",107955.88847000001,73300.391126999995,116038.50038,2227.3141529,56589.066271000003,43050.484130999997,9097.3917655000005,21356.368259999999,0]
[1135,"2011-08-19","KW60MN11 ",7675562.7108469503,2391645.4350485774,1745350.0280892858,131597.86319800001,514697.54376129142,"Summer",154130.31458000001,85249.580002000002,112676.23748,2162.7768163000001,55357.877883000001,39211.905035999996,9260.6942493999995,40863.575203,0]
[1136,"2012-05-21","KW60MN14 ",7646926.1510035768,2391616.9018799379,1753350.1649035313,131926.60587795411,506340.13109845249,"Summer",128890.97627,75118.609727000003,111372.29571999999,2137.7481584000002,56953.862829999998,47636.266637000001,9465.6256465000006,21356.368259999999,0]
[1137,"2012-04-02","KW60MN13 ",6841404.9048006767,2391262.568531706,1760964.2785800304,110495.65516485524,519802.63478682027,"Summer",155327.23275,65619.769828000004,101046.54412999999,1939.5493488,55950.672292000003,35678.412866999999,7917.9781616,7467.6597125999997,0]
[1138,"2011-07-20","KW60MN21 ",7947318.420398742,2391224.6823606365,1713822.4510547041,131232.11299899998,546170.11830693262,"Summer",210134.97114000001,61650.636235999998,97661.960101000004,1874.5835668,53397.096376000001,35400.534608000002,7426.5301510999998,46474.010466,712.84450892999996]
[1139,"2011-07-26","KW60MN10 ",8028573.8038478475,2390964.5285149971,1749343.2011198075,121361.760981,520259.56641418976,"Summer",134492.26967000001,73459.363299000004,109215.13765999999,2096.3423435,55403.477453,39967.434499000003,10030.451596999999,36398.990398000002,0]
[1140,"2012-05-14","KW60MN22 ",7017175.3993738145,2390953.3830938358,1682796.6350540677,136055.54935324841,572101.1986865194,"Summer",191416.36313000001,63407.185774999998,95941.111699999994,1841.552547,51253.916590000001,35635.655531999997,7285.3473639000003,21356.368259999999,3053.2304963000001]
[1141,"2011-10-20","KW60MN20 ",6893551.1219773274,2390643.8917418905,1742585.7973876051,106087.08913699999,541971.00521728524,"Summer",190120.35889999999,70961.107522000006,135143.45577999999,2594.0263856000001,57409.858528999997,44426.093349000002,7400.5065793000003,19170.103298999999,3053.2304963000001]
[1142,"2011-08-30","KW60MN19 ",8143923.9836330265,2390626.5199679309,1720321.4796632938,131414.29203799999,538890.74826663721,"Summer",230464.64720000001,82604.700326999999,118394.04257000001,2272.5278745000001,54172.289064999997,37448.786670000001,8147.0438315000001,32456.957450000002,0]
[1143,"2011-09-20","KW60MN13 ",6736796.0424702959,2390138.8576583709,1760095.20652321,99606.531955999992,530437.11917916068,"Summer",115070.02233000001,77774.801288000002,132246.29190000001,2538.4164449999998,56953.862829999998,42428.242147999998,10673.727478000001,30217.333901999998,0]
[1144,"2011-07-13","KW60MN13 ",8162116.5730432691,2389963.00035943,1708867.5305755325,134880.96146699999,546214.50831689767,"Summer",181612.08859999999,79486.643167000002,118966.05215,2283.5073772999999,54263.488205000001,40998.693293999997,9683.6331590999998,35055.331499,0]
[1145,"2011-07-05","KW60MN10 ",7729117.7833226305,2389911.9586285106,1700713.5655952073,133294.16779100001,555904.22524230334,"Summer",123078.13533,77522.054543999999,103743.98028,1991.3255927,55585.875732,37587.664906999998,8662.2130421000002,41454.315971999997,0]
[1146,"2011-07-12","KW60MN20 ",7789269.7685293248,2389583.2896020347,1674169.8840212065,135505.237207,579908.16837382817,"Summer",208112.20147999999,61205.757748000004,100455.58809999999,1928.2061761,49612.332072999998,38439.079768000003,7057.9746161000003,36623.491569999998,0]
[1147,"2011-09-19","KW60MN11 ",6764582.0318497065,2389231.0438159518,1774018.8316538041,103317.61213300002,511894.60002914781,"Summer",105856.87267,72037.618275999994,125870.04458,2416.0268427999999,53807.492506000002,39329.266731999996,10495.320759,30217.333901999998,0]
[1148,"2011-10-06","KW60MN07 ",6792716.9727149252,2389179.4691460482,1776958.6914128412,108028.422165,504192.35556820681,"Summer",172881.77817000001,49266.675658,112739.35021999999,2163.9882410999999,56497.867130999999,39704.753909999999,7733.5920474000004,19170.103298999999,3031.7023945999999]
[1149,"2012-05-04","KW60MN09 ",6762010.3702920498,2388973.6926425379,1763790.140572936,124416.68505438551,500766.86701521644,"Summer",127109.75870999999,62027.037643000003,107786.54033,2068.9209701,57181.860679999998,34563.680096999997,8315.8957086999999,21356.368259999999,0]
[1150,"2012-05-03","KW60MN11 ",6885855.5968347164,2388945.2746718316,1741671.7800383719,125942.87937470064,521330.61525875906,"Summer",127553.97675,71772.854259999993,109215.32173,2096.3458765999999,55221.079172999998,36064.750641999999,9220.1860514,21356.368259999999,0]
[1151,"2011-10-06","KW60MN21 ",6877640.4349883441,2388923.6354762437,1757607.7224579882,106827.81524,524488.09777825559,"Summer",234738.75536000001,62207.557029000003,110531.91267999999,2121.6173309000001,55540.276163000002,38957.466180000003,7369.3026707999998,19170.103298999999,3053.2304963000001]
[1152,"2011-10-18","KW60MN19 ",6896030.4823799068,2388722.2690224154,1735186.5710336545,107096.23853300001,546439.45945576113,"Summer",196498.62317000001,65660.948950000005,133461.20051,2561.7361461,54947.481754,43393.594914000001,7726.3192614,19170.103298999999,2595.6699819999999]
[1153,"2012-05-17","KW60MN14 ",7554275.8823852306,2388358.4204307492,1730950.7611837513,125184.56695500226,532223.09229199553,"Summer",133589.35595,81867.610430999994,126001.13348999999,2418.5430437,54993.081323999999,38666.420221,9939.8752793000003,21356.368259999999,0]
[1154,"2011-08-04","KW60MN23 ",6671153.0444712834,2388345.3150049029,1723198.1754338131,120296.223325,544850.91624609008,"Summer",204030.20306999999,72957.996079000004,97660.094035999995,1874.5477484,56041.871432,34856.370178999998,7790.8195277000004,38817.216643,3053.2304963000001]
[1155,"2011-07-01","KW60MN19 ",7357063.6490470199,2387781.9332818985,1722894.5345476752,131726.47865499998,533160.92007922311,"Summer",201651.32133000001,62168.310890000001,113365.19757,2176.001139,55631.475301999999,35089.338202999999,6541.4442972999996,42615.978492000002,0]
[1156,"2011-10-10","KW60MN12 ",6921519.3724640738,2387236.2903354438,1765418.5456524892,103706.120542,518111.62414095475,"Summer",137608.50482,72074.108749999999,133017.11668000001,2553.2121286000001,49384.334222999998,43273.111017000003,9028.1479369999997,19170.103298999999,0]
[1157,"2012-05-24","KW60MN10 ",7035195.2744102301,2386489.9335356425,1750552.1297921394,130227.88016855628,505709.92357494682,"Summer",111348.73579000001,68533.274663999997,108994.76884,2092.1124491999999,54719.483904000001,43340.974505999999,8821.7470856,21356.368259999999,0]
[1158,"2012-05-23","KW60MN08 ",6961667.8425696259,2385858.7668099217,1755548.1384234356,126300.96429057054,504009.66409591568,"Summer",156713.46264000001,50587.854156000001,95275.231625999993,1828.7712365,57592.256808999999,41573.869833999997,7940.3060890999996,21356.368259999999,0]
[1159,"2011-08-03","KW60MN23 ",6588440.1684451737,2385807.6875487929,1734922.7105169524,124597.631475,526287.34555684077,"Summer",219380.80681000001,68287.495013000007,102408.10965,1965.6840724000001,55175.479603,34670.999793000003,7708.8686380999998,34278.753466000002,3053.2304963000001]
[1160,"2012-04-17","KW60MN12 ",6832790.6477107713,2385698.8876592088,1805559.4808676876,107057.1257302795,473082.2810612414,"Summer",138758.39710999999,76502.048590000006,115068.74132,2208.7000026999999,35339.666687999998,36566.840401000001,9634.1372460999992,7467.6597125999997,0]
[1161,"2011-08-30","KW60MN10 ",7557359.4708940368,2385551.3630751139,1738209.8516956018,130235.12277699998,517106.38860251219,"Summer",129245.43498000001,80180.51973,117009.81776999999,2245.9582144999999,56680.265411,40685.604886000001,10785.724318,38002.967364999997,0]
[1162,"2012-04-27","KW60MN09 ",6707595.7145271841,2385472.9340461087,1779432.291280221,116430.11315160134,489610.52961428667,"Summer",159052.8965,62261.148696999997,111753.25899,2145.0606011999998,55266.678742999997,30709.033995999998,9366.7235454000001,7467.6597125999997,0]
[1163,"2011-10-10","KW60MN18 ",6935956.7173660602,2385290.6555615109,1783868.9714942765,98593.46089599999,502828.22317123419,"Summer",170229.58038999999,53195.186081,121606.18388,2334.1836850999998,48472.342825,40873.305003000001,6837.3126038999999,19170.103298999999,0]
[1164,"2011-09-14","KW60MN09 ",6655764.5592877977,2385283.3080268721,1756035.5068649324,105979.16374100001,523268.63742093986,"Summer",138059.73910999999,67882.302928000005,126918.13416,2436.1445170000002,54172.289064999997,38890.128729999997,9493.1389878000009,26834.054272000001,0]
[1165,"2012-06-12","KW60MN13 ",7175247.9688797416,2385203.0337442276,1714464.6874430319,136571.72387306349,534166.62242813222,"Summer",129822.43195,81685.138779999994,129214.96206999999,2480.2312409000001,56315.468850999998,45327.191542,9855.8234754999994,30152.605470999999,0]
[1166,"2011-07-13","KW60MN14 ",8281470.1443832163,2385195.0889190668,1715680.4439243772,123330.23881699999,546184.40617768979,"Summer",175382.51172000001,82719.697541000001,119150.76892,2287.0529443,50159.526912000001,42030.548304999997,10172.149031999999,35824.664305999999,0]
[1167,"2012-06-01","KW60MN21 ",7209754.953235466,2385093.3719317652,1726449.6647222843,130542.20303743958,528101.50417204155,"Summer",143082.79551,69577.448527,88057.681270999994,1690.2331478000001,56817.064120000003,38546.186625000002,7064.8614158,26771.880615999999,763.73168391000002]
[1168,"2011-08-26","KW60MN09 ",7447626.2840699553,2384850.474552216,1720599.9811256761,128304.17841000002,535946.31501654012,"Summer",146160.35644999999,80138.699494,106975.10341,2053.3457520000002,56133.070571999997,40231.829214999998,9506.5672324000006,48253.709580000002,0]
[1169,"2011-10-07","KW60MN20 ",6871613.185127195,2384678.1802211152,1714209.5659022559,114062.25726999999,556406.35704885924,"Summer",144597.43773000001,65832.674308999995,123456.41254999999,2369.6981090999998,56224.269711000001,38886.088356,7177.853693,19170.103298999999,3053.2304963000001]
[1170,"2011-07-22","KW60MN12 ",8170721.7085841736,2384515.632041153,1738902.9334928605,130533.00849799998,515079.6900502927,"Summer",146422.07764,83268.029976999998,117325.82932999999,2252.0239342999998,54993.081323999999,41625.135915999999,7502.5084171999997,44685.035324999997,0]
[1171,"2012-05-14","KW60MN11 ",7120629.3880363656,2384218.5062848395,1712232.6803370495,137690.90771335148,534294.91823443817,"Summer",123554.65781,72583.566218000007,123262.16554,2365.9696128999999,57136.261109999999,38042.657809999997,9574.4160943999996,21356.368259999999,0]
[1172,"2012-06-15","KW60MN14 ",7650859.25880663,2383769.4363573226,1746903.6615523144,132326.05258855454,504539.72221645369,"Summer",102628.66359,79912.778309999994,135808.88308999999,2606.7990055,49293.135084000001,43952.836203999999,9280.2779525000005,30615.391721,0]
[1173,"2012-05-24","KW60MN11 ",7076006.8132588919,2383468.4075494492,1744358.1640660386,130894.16618285338,508216.07730055758,"Summer",102928.39126,69693.978629999998,114618.84606,2200.0644370999999,54673.884334000002,43938.731168999999,8958.5452083,21356.368259999999,0]
[1174,"2011-07-12","KW60MN22 ",7493536.0414395807,2383289.3481938737,1673385.4080394797,137833.93472699999,572070.0054273936,"Summer",198152.85921,58666.562261999999,98829.699101999999,1896.9978655,54537.085623999999,37116.791173999998,7027.5020487000002,38585.093723999998,3053.2304963000001]
[1175,"2011-09-27","KW60MN20 ",7132952.9028535644,2382744.5521583497,1740758.4881108904,115935.72052800001,526050.34351945925,"Summer",175182.95116999999,66278.672737999994,119854.81587999999,2300.5668535,56771.464549999997,38928.784078999997,8443.0543426000004,30217.333901999998,3053.2304963000001]
[1176,"2012-04-13","KW60MN12 ",6613641.4338398641,2382632.8573873346,1809950.3972927267,113542.4783213785,459139.98177322943,"Summer",139162.13918999999,68491.560475999999,110595.91764,2122.8458813000002,30642.910985999999,35938.280630000001,8275.8767638000008,7467.6597125999997,0]
[1177,"2011-10-31","KW60MN13 ",6898314.3900873475,2382485.9174720268,1738165.3384034946,102290.79501700001,542029.78405153204,"Summer",113633.52340000001,64031.968244000003,129995.57029,2495.2147138,56315.468850999998,45086.617327,9093.3998596000001,19170.103298999999,0]
[1178,"2011-07-23","KW60MN15 ",7947286.5081247548,2382428.8220550101,1707830.5823746738,128742.429835,545855.80984533601,"Summer",178857.25422999999,69920.458981000003,111221.95112,2134.8623520000001,51892.310569000001,33916.384533999997,6768.2820822000003,43163.546047999997,0]
[1179,"2011-10-10","KW60MN11 ",6936237.2307024682,2381724.8010189985,1765799.6476724797,98412.227501000001,517512.92584551871,"Summer",129257.65514,71072.715989999997,128713.20063000001,2470.6001240000001,51345.115729999998,42181.939191999998,7733.1248011999996,19170.103298999999,0]
[1180,"2012-05-22","KW60MN14 ",7506358.470482422,2381669.0585509236,1741777.1634077572,128185.3211882966,511706.57395486982,"Summer",122739.87123999999,74838.645363999996,115175.45208,2210.7482743999999,56406.667991000002,43493.775250999999,9027.5215564999999,21356.368259999999,0]
[1181,"2011-10-06","KW60MN19 ",7024175.3002100261,2381405.9808536759,1755360.3234073699,102523.258158,523522.39928830625,"Summer",173157.42588,53762.409688,120692.64343,2316.6486292999998,56041.871432,39897.626220999999,7683.3732571999999,19170.103298999999,1425.2649578999999]
[1182,"2011-10-19","KW60MN19 ",6900959.0923607424,2381285.529125913,1739902.1678902514,100892.51324,540490.84799566155,"Summer",156945.52901999999,71628.346520999999,129047.28608000001,2477.0127649999999,51664.312719000001,45078.840152999997,7524.4892948999995,19170.103298999999,2646.5571568999999]
[1183,"2011-10-19","KW60MN11 ",6773108.6127899457,2380985.647639411,1765658.3463672178,91049.528334999995,524277.77293719328,"Summer",162003.6985,65329.417488999999,131473.04667000001,2523.5743017,46055.565619000001,44749.216611999997,9786.9554745999994,19170.103298999999,0]
[1184,"2012-04-16","KW60MN08 ",6638228.9878258109,2380938.7425599955,1792401.414582398,117052.00391817497,471485.32405942236,"Summer",191579.3904,55291.381430000001,96042.248261000001,1843.4938242000001,35613.264108000003,34170.803298999999,8574.3521674000003,7467.6597125999997,0]
[1185,"2011-07-09","KW60MN14 ",7834711.1903150631,2380295.0197451729,1709170.7040766117,139606.73851999998,531517.57714856125,"Summer",165339.13334999999,60039.357667999997,101579.90948,1949.7870905,55677.074871999997,32468.677838,6792.7413955000002,36590.674877999998,0]
[1186,"2012-05-23","KW60MN11 ",7182080.7556943176,2379469.7403129302,1754436.691010227,126627.09665656229,498405.95264614117,"Summer",119778.58725,71606.813767,118211.51224,2269.0242753000002,57045.061970000002,42662.601236000002,8944.2992835000005,21356.368259999999,0]
[1187,"2011-07-08","KW60MN21 ",7556338.5861494187,2379404.2536674179,1714158.2892016787,143940.616893,521305.34757273906,"Summer",160238.27282000001,58908.834263999997,86132.655215999999,1653.2830168999999,55950.672292000003,34046.920678000002,6382.6619102000004,37541.837003000001,309.52124151999999]
[1188,"2012-05-16","KW60MN20 ",7192110.9925139053,2379216.2474228209,1707554.9341317792,132300.73136378647,539360.58192725538,"Summer",155767.41273000001,57689.705369000003,102634.68398,1970.0330792,54126.689494999999,34707.475764000003,7161.4357505999997,21356.368259999999,0]
[1189,"2011-10-26","KW60MN15 ",6760821.0438992502,2379179.8510141717,1737424.693327069,88609.737937999991,553145.4197491029,"Summer",154284.87359,74047.679396000007,138635.30129,2661.0510100000001,56725.864979999998,44161.557522000003,8740.0806071999996,19170.103298999999,0]
[1190,"2012-05-25","KW60MN10 ",7141703.9915227862,2379019.6515012844,1761527.5781827306,127661.06897000765,489831.00434854627,"Summer",101760.93713000001,68281.252588000003,115329.88167,2213.7124907000002,46557.160887999999,43557.868928999997,7783.5450490000003,25675.018607000002,0]
[1191,"2011-10-13","KW60MN19 ",6853908.036780606,2378874.9990890874,1729276.3388103689,96228.640363000013,553370.01991571835,"Summer",188438.17442,63103.347546999998,128335.48469,2463.3500124000002,52895.501106999996,40737.251345999997,7476.5864204999998,19170.103298999999,2086.7982323000001]
[1192,"2011-10-20","KW60MN11 ",6824302.8719871286,2378585.8794406611,1765351.2246983612,94528.753194999998,518705.90154729964,"Summer",109658.77196,68371.620739999998,134392.82449,2579.6183080999999,56680.265411,46583.596042999998,9771.3128904000005,19170.103298999999,0]
[1193,"2011-07-21","KW60MN22 ",7754665.2277860502,2378324.6924945265,1747464.7493688851,126543.85225600001,504316.09086964157,"Summer",181075.93853000001,60037.010130000002,92519.026664999998,1775.8669477999999,54628.284764000004,35954.745324000003,6818.3383516000004,52453.612570999998,3053.2304963000001]
[1194,"2012-05-04","KW60MN10 ",6816308.0946837142,2378158.9681873526,1763405.4886733575,121893.95266318787,492859.52685080707,"Summer",139533.61921,67854.760735000003,113230.81839,2173.4217825999999,57181.860679999998,35184.591148,8353.6055099000005,21356.368259999999,0]
[1195,"2011-08-27","KW60MN11 ",7680700.1863256302,2377913.2931957077,1684693.5861931001,128123.981283,565095.72571960755,"Summer",194073.38326,71814.581302000006,98562.000029000003,1891.8594852000001,55677.074871999997,31789.381905999999,7820.9061075999998,44636.887325000003,0]
[1196,"2011-09-01","KW60MN10 ",7342626.1256936518,2377863.088911694,1756649.4382804122,124830.606258,496383.04437328182,"Summer",118701.23159,71977.634749999997,112904.22741000001,2167.1529949000001,52576.304118,38981.796377999999,9472.6411086999997,41152.544775000002,0]
[1197,"2011-10-28","KW60MN20 ",6827542.8855830096,2377814.6174715301,1713621.0690720275,103349.44009500001,560844.10830450268,"Summer",195126.23501,66201.229701000004,134993.43122,2591.146722,55722.674442000003,39611.820290000003,7160.9922063000004,19170.103298999999,3053.2304963000001]
[1198,"2011-09-15","KW60MN16 ",7009926.1321400143,2377808.544184315,1731838.5013457108,97180.900256000008,548789.14258260443,"Summer",140649.45829000001,89771.742712000007,136071.86596,2611.8468600000001,48609.141535000002,40657.643717999999,10731.848821,22069.418191000001,0]
[1199,"2011-07-21","KW60MN21 ",8078707.8091535056,2377542.280490947,1746013.4010630371,130633.00263099998,500895.87679690984,"Summer",152561.60902999999,57627.517311000003,98646.314677000002,1893.4778722999999,55084.280463000003,36455.529869999998,6821.4871837000001,48645.267071000002,763.73168391000002]
[1200,"2011-07-04","KW60MN14 ",7563186.6909168558,2377511.5932278084,1687834.1661029379,129343.23327999999,560334.19384487066,"Summer",192964.91019,54456.273396999997,93016.819313999993,1785.4218853,54947.481754,25190.977746,6909.9795170999996,48198.292915999999,0]
[1201,"2011-09-15","KW60MN21 ",6762200.7744257683,2377274.0453032674,1728054.7550551863,111675.53780199999,537543.75244608114,"Summer",197618.78646,70898.397253000003,104221.799,2000.4971383,53807.492506000002,36525.818102999998,7860.6829645999997,20805.720968000001,3053.2304963000001]
[1202,"2011-08-08","KW60MN10 ",7396485.2329059104,2377193.6933549941,1726652.6309428429,125801.441045,524739.62136715138,"Summer",116595.4857,73295.723368000006,116855.96438,2243.0050583000002,57364.258958999999,37701.047339999997,9366.2512208999997,35812.280351000001,0]
[1203,"2011-07-30","KW60MN11 ",7637310.3033030666,2377083.8631690601,1695293.3987891346,136978.47221599999,544811.99216392566,"Summer",202993.89569999999,73858.284035999997,100658.52435000001,1932.101459,54993.081323999999,30754.541826000001,7212.0032823000001,38125.134488999996,0]
[1204,"2012-05-21","KW60MN15 ",7789275.657644134,2376935.3272595075,1742886.3014277082,129277.25590340531,504771.76992839377,"Summer",135854.96014000001,73964.111229999995,106729.65496,2048.6344638999999,57227.460249999996,46729.240779,9090.5946906000008,21356.368259999999,0]
[1205,"2012-06-29","KW60MN13 ",8057356.5974732805,2376734.2590802354,1693511.3633505525,134099.29748634325,549123.59824333969,"Summer",130470.65134,85979.042409000001,133890.15476,2569.9697569999998,56178.670141000002,43209.282906,8962.6319184000004,36603.134792999997,0]
[1206,"2011-08-05","KW60MN22 ",6970784.7435555682,2376528.6301495875,1705904.7595187391,128095.16676299999,542528.70386784838,"Summer",203690.14782000001,77725.875773000007,100279.90861,1924.8340763000001,54765.083473999999,32301.043470000001,7434.1482930000002,39065.635719999998,3053.2304963000001]
[1207,"2011-07-20","KW60MN22 ",7640617.3771130638,2376343.069918354,1702009.2756883407,128424.85541000002,545908.93882001331,"Summer",200625.60193,63333.313051999998,94544.600904000006,1814.7470622000001,54400.286914999997,34818.902298000001,7399.5517728000004,49525.683988999997,3053.2304963000001]
[1208,"2011-07-19","KW60MN14 ",8722544.5656682122,2376149.4543789811,1695647.5053545369,123490.424002,557011.52502244408,"Summer",151870.84697000001,78643.092996000007,118536.74492,2275.266991,50797.920891000002,41638.853916,10517.748567000001,45284.381651000003,0]
[1209,"2012-04-19","KW60MN12 ",6793623.0563114174,2376146.6630900698,1791785.0952024979,105884.49022190497,478477.07766566699,"Summer",152061.58950999999,79788.132249999995,122609.90300000001,2353.4496855000002,35385.266258000003,36082.931075,9273.2963488000005,7467.6597125999997,0]
[1210,"2012-06-15","KW60MN13 ",7580731.5416908972,2376040.7171998653,1735895.3175812359,132056.75785712668,508088.64176150277,"Summer",114686.84149000001,75813.546778999997,128064.91699,2458.1565701,49475.533363000002,44505.007524000001,9147.8238636000005,27567.477030999999,0]
[1211,"2011-07-30","KW60MN23 ",7264917.0032699173,2375876.5787884193,1699630.9746356115,130756.60034399999,545489.00380880781,"Summer",214466.78854000001,68013.535269,78589.141984999995,1508.4881968,55403.477453,29132.033216,6944.1697367999996,44372.752872999998,3053.2304963000001]
[1212,"2011-07-02","KW60MN14 ",8059647.604206278,2375779.0313768866,1684691.8760219517,132183.02487599998,558904.1304789352,"Summer",166137.74651,58141.316357999996,100850.36308,1935.7837293,55449.077022999998,30754.882164999999,6701.1814910000003,46764.652742999999,0]
[1213,"2011-07-15","KW60MN22 ",7502789.6956067411,2375663.3767950251,1682379.4786395365,126428.617636,566855.2805194885,"Summer",194415.14488000001,65736.957112000004,97324.122663000002,1868.0989078,55266.678742999997,35900.644433000001,6803.4271096000002,48077.700456999999,3053.2304963000001]
[1214,"2012-06-16","KW60MN16 ",7406466.4249840435,2375542.7570673302,1702716.9013638294,123989.99809123224,548835.85761226853,"Summer",180651.90018,69680.849451000002,99560.095117000004,1911.0175346000001,52348.306268,34342.667472000001,7097.8936776,32912.679337000001,0]
[1215,"2011-10-12","KW60MN12 ",6832468.3680970958,2375487.6240356658,1781320.1733574134,98230.098494000005,495937.35218425229,"Summer",132013.62354999999,69093.476546000005,135588.22696999999,2602.5635966999998,34427.675289999999,44293.073950999998,10007.678432999999,19170.103298999999,0]
[1216,"2011-09-28","KW60MN16 ",7481209.6779815434,2375401.2835936137,1757011.2731919708,89042.383770999993,529347.62663064292,"Summer",109567.31687,73900.690753999996,129978.7896,2494.8926148999999,57136.261109999999,40392.278651000001,9190.5260861000006,30217.333901999998,0]
[1217,"2011-07-14","KW60MN12 ",7935237.1649391297,2375270.9992428897,1695278.4371307327,136862.05292099999,543130.50919115683,"Summer",162366.21213,77480.770980000001,123460.14204000001,2369.7696952000001,55722.674442000003,40461.308865999999,9968.2266161999996,34962.082735999997,0]
[1218,"2011-10-25","KW60MN14 ",6732642.6459452827,2375211.4242571942,1768359.1372570936,92308.463208000001,514543.82379210065,"Summer",114560.26272,65902.983143999998,138792.16534000001,2664.0619548,54993.081323999999,46312.805390000001,9486.6381734000006,19170.103298999999,0]
[1219,"2011-07-20","KW60MN12 ",7872924.8942134958,2375010.4877769654,1710082.7356671898,130422.56720599999,534505.18490377557,"Summer",133506.36911999999,79840.771084000007,124845.83894,2396.3676114,51253.916590000001,36756.889158999998,10348.097631000001,46948.238056000002,0]
[1220,"2012-05-30","KW60MN20 ",7237866.8152933149,2374688.2822249252,1707222.9668108504,126507.14781694481,540958.16759712971,"Summer",153264.86682,64583.421090000003,85863.765839,1648.1217893,56315.468850999998,36763.238662999996,6584.7271914000003,25959.296397999999,0]
[1221,"2012-06-14","KW60MN17 ",7680118.0917978333,2374619.5111967386,1717762.9125964954,132003.72835335351,524852.87024688988,"Summer",131397.93118000001,87751.643899999995,114347.5724,2194.8574441000001,55996.271862000001,39414.300431000003,8325.9177973000005,31270.880954,0]
[1222,"2011-07-12","KW60MN21 ",7730999.5907049282,2374446.8771354831,1661554.2837503864,137253.88774299997,575638.70564209681,"Summer",212694.85532999999,58955.029821999997,98562.661550999997,1891.8721829000001,53989.890785000003,37720.114915999999,7158.3309344999998,39329.862476000002,407.5214593]
[1223,"2011-09-15","KW60MN20 ",6881609.2720334604,2374414.430323144,1727287.0106638703,109902.40615400001,537225.01350527362,"Summer",179515.59526,71661.308457000006,113443.36010000001,2177.5014384000001,53442.695946,37655.432630000003,8108.6483968000002,20268.018961000002,2341.2341065999999]
[1224,"2011-10-17","KW60MN12 ",6892254.9397176486,2374135.3121922687,1754568.1797297313,92509.911103999999,527057.22135853721,"Summer",145024.10453000001,67117.052219999998,132066.50273000001,2534.9654614000001,55266.678742999997,44560.642541000001,9912.5633942999993,19170.103298999999,0]
[1225,"2011-10-03","KW60MN11 ",6853249.6734956726,2373862.6204299214,1747368.7026557443,107761.545036,518732.37273817719,"Summer",102361.40994,73708.276213000005,134653.04517999999,2584.6131436000001,54628.284764000004,42374.804544999999,9477.8823900000007,19170.103298999999,0]
[1226,"2012-05-21","KW60MN12 ",7365269.5022963397,2373729.0507401265,1733362.1320500243,133186.91108818035,507180.00760192215,"Summer",114072.34676,78476.216966000007,112405.95133,2157.5887782999998,56817.064120000003,44962.770985000003,8688.8596087999995,21356.368259999999,0]
[1227,"2011-09-08","KW60MN08 ",6910528.5225418229,2373554.9818150653,1755041.4400820567,108168.81363199999,510344.72810100863,"Summer",141127.78253,55671.602205000003,113692.86840000001,2182.2906538000002,50387.524762000001,38101.401810000003,8662.8631232999996,45533.919137999997,0]
[1228,"2011-09-28","KW60MN08 ",6686709.892343048,2373480.7113153506,1758382.3713333865,100963.39558899999,514134.94439296413,"Summer",145702.52984999999,49302.229366,113417.62858999999,2177.0075320999999,54856.282614000003,38418.773550999998,7676.6286631000003,30217.333901999998,3.8589440678]
[1229,"2012-06-28","KW60MN12 ",7879048.5413858006,2373454.3510787501,1724268.2456047155,124861.37720421275,524324.72826982173,"Summer",136502.23624999999,90116.851649000004,133745.59932000001,2567.1950713000001,55813.873582,45384.708741000002,10277.015291,38290.637574,0]
[1230,"2011-07-31","KW60MN12 ",7642095.7660255833,2373414.5283385022,1671226.7406916297,131058.808005,571128.97964187246,"Summer",197799.60873000001,68596.685498000006,101931.90162,1956.5434433999999,55266.678742999997,27563.299071000001,7336.5548191999997,36478.052219999998,0]
[1231,"2011-08-04","KW60MN09 ",7036473.0247143405,2373344.755618894,1736267.5030682331,114655.13729999999,522422.11525066092,"Summer",136953.69310999999,75592.553656999997,116048.38739,2227.5039302,56133.070571999997,37289.030336999997,10768.009599000001,30562.912026000002,0]
[1232,"2012-06-20","KW60MN14 ",7394575.7194977552,2372922.6723407786,1715889.8895013498,125090.05543295117,531942.72740647779,"Summer",112220.5321,85158.970828999998,122061.4029,2342.9214382,54263.488205000001,43127.636385999998,9523.8350195999992,37263.572172,0]
[1233,"2012-05-25","KW60MN08 ",6829154.7310805582,2372813.193776242,1760047.0518256922,129769.28400288313,482996.85794766661,"Summer",158803.52265,51420.627505999997,92066.875727999999,1767.1880854000001,53898.691644999999,42053.678467999998,7087.2452085000004,28088.964656,0]
[1234,"2011-08-31","KW60MN19 ",8108140.5067196181,2372425.7706385013,1727578.3829728558,123532.537803,521314.84986264561,"Summer",164607.3866,70675.863207000002,103881.87376,1993.9724048,55859.473151999999,35908.063879000001,7621.9608783000003,34049.300665000002,0]
[1235,"2011-07-21","KW60MN10 ",7715377.1225925796,2371868.3607859472,1728774.9372976811,128288.05916600001,514805.36432226584,"Summer",118024.93657999999,81590.676496,123231.03219,2365.3720202999998,53123.498957000003,39981.558425000003,9496.1456142999996,40896.696832000001,0]
[1236,"2011-09-29","KW60MN14 ",7221344.8739833878,2371707.3488058057,1759396.996054743,90863.342852000002,521447.00989906298,"Summer",110938.88893,71022.082444999993,139048.09675,2668.9744593999999,50752.321321000003,43096.465299000003,10513.705873000001,30217.333901999998,0]
[1237,"2011-10-31","KW60MN19 ",6815338.50772887,2371623.7608241322,1730070.1956877448,94372.671804999991,547180.89333138766,"Summer",190973.07777,57851.887930999997,116621.82635,2238.5108691999999,56634.665841000002,40483.750540000001,7094.5213811000003,19170.103298999999,3053.2304963000001]
[1238,"2011-07-22","KW60MN21 ",7915730.4242136441,2371588.9546591351,1718980.4612824249,133975.240555,518633.25282171014,"Summer",167996.92717000001,63018.688362000001,87375.463971999998,1677.1382504999999,55813.873582,36643.466976000003,6212.3812079999998,47623.528081999997,814.61885877999998]
[1239,"2011-07-10","KW60MN14 ",7642610.6434027497,2371523.3790971991,1698350.5462409009,128004.67473899999,545168.15811729839,"Summer",196351.11220999999,52090.962811999998,93154.534008000002,1788.0652656,52667.503257999997,28497.056217000001,6627.4988245000004,32153.634373000001,0]
[1240,"2011-07-18","KW60MN20 ",8321055.7843463179,2371492.0701366263,1660841.9220327819,128580.45805799997,582069.6900458443,"Summer",208220.5613,60381.982490000002,91280.091161000004,1752.0860597999999,47332.353577000002,36348.350594000003,7515.1646901000004,45412.132326999999,0]
[1241,"2011-10-17","KW60MN21 ",6714469.2684524804,2371479.2804097496,1726805.41247271,104243.601396,540430.26654103945,"Summer",232354.43654,59591.848845,113853.38351,2185.3716792999999,55677.074871999997,40930.268242999999,7245.7059405,19170.103298999999,3053.2304963000001]
[1242,"2011-09-23","KW60MN12 ",6786347.3821591334,2371449.5752667412,1724595.1120403598,107195.99605099999,539658.46717538126,"Summer",119212.59159,84100.473931999994,146119.79079,2804.7128923999999,56133.070571999997,44026.509491999997,10793.30183,30217.333901999998,0]
[1243,"2011-10-04","KW60MN12 ",7084741.484215905,2371250.2504461347,1759286.2825358589,102641.180905,509322.7870052756,"Summer",118709.69985,72479.734672000006,129393.44633999999,2483.6571773999999,55494.676592999997,42434.511386999999,10073.397601000001,19170.103298999999,0]
[1244,"2012-04-12","KW60MN12 ",6778225.3446209356,2371062.0770464404,1788410.6638686955,105923.61926853302,476727.79390921182,"Summer",148393.77277000001,80918.959340000001,117985.43763,2264.6848605999999,52393.905837999999,35521.360613999997,9185.7723662000008,7467.6597125999997,0]
[1245,"2012-06-14","KW60MN14 ",7516510.6093107294,2370761.3722029347,1718498.2933817345,131172.62996939413,521090.44885180617,"Summer",107452.73176,79128.885483999999,125801.38507999999,2414.7089503000002,55403.477453,42088.051012000004,10173.692975,30960.725817999999,0]
[1246,"2012-05-15","KW60MN10 ",7159457.77983486,2370683.7511077533,1710409.8364481824,135788.06417803888,524485.85048153205,"Summer",92877.127554999999,79741.624972999998,123954.06431,2379.2503422,47013.156587999998,38374.807008000003,10732.768076,21356.368259999999,0]
[1247,"2011-09-02","KW60MN19 ",7004809.1875675889,2370657.311801957,1722019.2497093957,123411.482906,525226.57918656105,"Summer",170730.06625999999,69682.067406999995,114556.17839,2198.8615553,56452.267561000001,36348.922962999997,7612.0674521999999,38584.120715999998,0]
[1248,"2011-09-06","KW60MN09 ",6916165.9163076859,2370649.5356702958,1752463.8101420742,113881.57044000001,504304.15508822171,"Summer",120293.88992,66547.170962000004,120446.66493,2311.9271672,55950.672292000003,35996.545729999998,8482.1201736999992,33643.918954000001,0]
[1249,"2011-09-09","KW60MN09 ",7041882.8794378964,2370604.8194553372,1736054.67260545,108158.66052199999,526391.48632788716,"Summer",117096.95723,69556.381745999999,125006.98985,2399.4608409000002,54309.087775,40191.331056000003,9245.8845825999997,42699.471268000001,0]
[1250,"2011-07-25","KW60MN09 ",7409822.8448836021,2370604.748114211,1707584.6774710633,120986.601324,542033.46931914776,"Summer",138710.14180000001,75773.709336999993,112051.76243,2150.7902592999999,56680.265411,38027.328078999999,9601.9869959000007,43919.599656999999,0]
[1251,"2011-10-06","KW60MN14 ",6970393.7638289966,2370470.5368344262,1752468.343425971,95712.369342999998,522289.82406545535,"Summer",103220.13821,66165.756332999998,134415.75545999999,2580.0584592999999,56862.663690000001,43475.592883999998,9874.0663857,19170.103298999999,0]
[1252,"2012-06-01","KW60MN11 ",7194400.3801253503,2370346.2416527742,1712404.1640333785,132475.05070431976,525467.02691507596,"Summer",115801.38754,87018.820063000006,121398.85236999999,2330.2040369000001,56680.265411,43878.854456000001,9098.9560239000002,28465.469627999999,0]
[1253,"2011-08-23","KW60MN23 ",7020727.298384307,2370304.4561930932,1733943.1873373601,126221.13317500001,510140.13568073313,"Summer",199252.18570999999,67266.790099999998,89848.513938000004,1724.6074885,49293.135084000001,36720.453731000001,7897.8391813999997,49647.042339,3053.2304963000001]
[1254,"2011-09-27","KW60MN11 ",6852881.5003586765,2369828.0628568865,1758919.2233860365,95131.888453000007,515776.95101785002,"Summer",109107.28576,67048.049713999993,142631.67936000001,2737.7599421999998,55859.473151999999,43239.917033999998,10761.204059,30217.333901999998,0]
[1255,"2011-10-17","KW60MN19 ",6940001.3782596001,2369457.07205493,1728425.7849487106,99324.828301999994,541706.45880421938,"Summer",168569.10178999999,59326.855056,122548.59603,2352.2729220000001,56406.667991000002,41877.879526999997,7452.8990787000002,19170.103298999999,2493.8956323000002]
[1256,"2012-06-14","KW60MN18 ",7632884.215001598,2369409.170021316,1725223.2574304149,130429.73078731546,513756.1818035855,"Summer",140341.40012999999,72123.649669999999,106424.7307,2042.7815605999999,55677.074871999997,38355.692990000003,8072.1422623999997,31339.352039000001,0]
[1257,"2011-08-09","KW60MN10 ",7421673.2633189838,2369228.3222498605,1724567.7543135502,129054.596003,515605.97193331044,"Summer",127148.5071,78781.094794000004,112357.15358,2156.6521243000002,55038.680892999997,38629.892637999998,9332.3250960999994,38494.289684000003,0]
[1258,"2011-10-11","KW60MN10 ",6852366.1974000297,2369227.4499570518,1779889.1688440868,95484.546171000009,493853.73494196514,"Summer",132966.66853,63210.977572999996,128441.01777000001,2465.3756791999999,42179.602176,42836.943181000002,9209.8253789999999,19170.103298999999,0]
[1259,"2011-10-04","KW60MN13 ",7111915.0557617778,2369223.8180686771,1759983.6282650647,101783.53552199999,507456.65428161243,"Summer",108808.59673999999,69588.601339999994,135269.47091,2596.4451973,55175.479603,43627.194433999997,10034.169250999999,19170.103298999999,0]
[1260,"2011-09-11","KW60MN14 ",6641003.0215516379,2369090.9008120699,1679390.4822958158,101032.77352,588667.64499625424,"Summer",248318.00881,65320.695767999998,114955.6574,2206.5294005000001,53351.496806000003,32244.717685,7831.7340273,33307.027770000001,0]
[1261,"2011-07-13","KW60MN16 ",8414019.5818397887,2368753.0106908786,1685186.2811197299,134943.25705100002,548623.47252014896,"Summer",211852.34289,84226.832842999997,111479.19628,2139.8000734000002,48016.347126000001,39379.693929000001,9707.9705821000007,36407.280985999998,0]
[1262,"2012-05-21","KW60MN11 ",7266985.3570456989,2368630.3686813544,1724068.3277655682,134645.22594276958,509916.81497301685,"Summer",100362.95342000001,71948.116190000001,114773.73933,2203.0375534,56862.663690000001,46136.722238000002,9003.4990164999999,21356.368259999999,0]
[1263,"2012-04-12","KW60MN21 ",6736258.4552545538,2368352.5789340301,1764996.0069299643,114651.80667702136,488704.76532704436,"Summer",187793.32537000001,64100.795608,93818.103403999994,1800.8022235999999,50889.120030999999,31743.798174,6375.3586513,7467.6597125999997,3053.2304963000001]
[1264,"2011-07-29","KW60MN09 ",7599069.2747789333,2368341.9084787434,1715160.1471788925,132363.99218099998,520817.7691188507,"Summer",126018.33875,73778.774651,109907.47576,2109.6315055999999,56224.269711000001,39254.260418999998,8044.1684458,38521.998812999998,0]
[1265,"2011-07-22","KW60MN22 ",7656913.3237259947,2368293.266622351,1720760.5386918124,134679.71375800003,512853.01417253847,"Summer",166423.49466,59541.465961000002,81914.679548,1572.3206047000001,55585.875732,35754.430214,6122.3855608000003,46232.991711000002,3053.2304963000001]
[1266,"2012-05-30","KW60MN21 ",7241516.3158735475,2367545.3469066499,1700859.0872172506,129244.96815684464,537441.29153255455,"Summer",163310.56627000001,63996.040151000001,81507.445762000003,1564.5039096,55950.672292000003,37653.383533,6268.3745486999997,27425.023986,865.50603375000003]
[1267,"2011-07-19","KW60MN13 ",8546130.5914235562,2367346.8819218446,1702520.1651187225,124503.983937,540322.73286612192,"Summer",147695.77187999999,76436.388231999998,113788.68476,2184.1298118,50752.321321000003,41130.746815999999,10351.916859999999,44305.729539,0]
[1268,"2012-04-03","KW60MN14 ",6711965.2678748686,2367062.4540035566,1789151.8800993902,98197.719431240141,479712.85447292653,"Summer",150017.26235,77532.465014999994,110625.24842,2123.4088744000001,53169.098527000002,36567.494740000002,8159.3767555000004,7467.6597125999997,0]
[1269,"2012-05-01","KW60MN08 ",6708538.6679958859,2366771.6442199452,1730559.3349037492,114493.36143219018,521718.94788400549,"Summer",182592.10694,49766.196663000002,91325.970107999994,1752.9666884999999,55449.077022999998,32699.977359,8315.1135794999991,21356.368259999999,0]
[1270,"2011-09-05","KW60MN22 ",6805398.3232174581,2366678.3199288184,1733209.8505037073,119577.668022,513890.80140311102,"Summer",201858.85201,58780.121388,84121.787190000003,1614.6851826,55221.079172999998,22825.348479,6810.2123340999997,36272.040074999997,3053.2304963000001]
[1271,"2011-09-15","KW60MN17 ",6949925.4391104728,2366431.8292040443,1706160.7782776677,98828.221778000006,561442.82914837648,"Summer",138819.33890999999,86335.593382999999,132261.60957,2538.7104617,51299.516159999999,40188.456782000001,8642.1824080000006,21701.811548000001,0]
[1272,"2011-10-14","KW60MN12 ",6856808.8662960744,2365876.7009886052,1754695.0670739191,92103.994707000005,519077.63920768606,"Summer",169760.47691,70477.570984000005,129800.32967000001,2491.4671456999999,52211.507557999998,44758.002887000002,7890.2210395000002,19170.103298999999,0]
[1273,"2011-07-13","KW60MN15 ",8366101.8787938412,2365830.3792536897,1691251.6377584301,127112.93696399999,547465.80453125958,"Summer",185119.81387000001,85500.978638999994,116156.99417999999,2229.5885956000002,47970.747556000002,41469.818929000001,9980.8219434000002,36270.059911999997,0]
[1274,"2011-08-13","KW60MN18 ",7888667.0988483084,2365615.5855912697,1666099.4738269094,126810.04744899998,572706.06431536004,"Summer",253872.50951,80097.886723000003,101763.71958,1953.3152540999999,47514.751857000003,29866.693525999999,7778.3867202000001,46969.010184999999,0]
[1275,"2011-10-24","KW60MN13 ",6962466.7478183378,2365608.1833499977,1750342.0061662211,93614.366280000017,521651.81090377679,"Summer",126723.54667,64842.893906999998,135310.54902999999,2597.2336759,55768.274012000002,46524.349284999997,9703.5419027999997,19170.103298999999,0]
[1276,"2011-07-19","KW60MN12 ",8393771.5234772246,2365595.2860172042,1706072.6136308389,127622.75158700001,531899.92079936515,"Summer",126475.44465,79637.669701999999,112471.29346,2158.8429952000001,48472.342825,39212.071979,10409.774106000001,44172.556638000002,0]
[1277,"2011-10-31","KW60MN20 ",6785026.9663058734,2365563.1091643134,1728985.9837801612,96266.144180999996,540310.98120315198,"Summer",211501.58308000001,53790.539970999998,115382.79300999999,2214.7281033999998,56908.26326,39513.819306999998,6927.6536059,19170.103298999999,3053.2304963000001]
[1278,"2011-10-04","KW60MN18 ",7022754.7685426231,2365561.2034167042,1759571.6949283234,111430.58933200002,494558.9191563807,"Summer",140162.5068,60678.916289000001,119918.16413999999,2301.7827989000002,52029.109278999997,40132.398801000003,7511.5282966000004,19170.103298999999,0]
[1279,"2012-04-01","KW60MN21 ",6583194.3583679907,2365544.2268044632,1762913.3479469223,114764.45606670871,487866.42279083218,"Summer",246677.28594999999,51037.929042000003,75036.789749999996,1440.3021690999999,54537.085623999999,24975.030139999999,6114.4813161000002,7467.6597125999997,3053.2304963000001]
[1280,"2011-07-28","KW60MN09 ",7476376.5104691535,2365539.1430725129,1723245.7614868546,133373.66765800002,508919.71392765851,"Summer",124248.45107,67887.055848999997,97803.710758999994,1877.3044159000001,54993.081323999999,39231.184764999998,7621.2701666000003,36515.859830000001,0]
[1281,"2011-07-18","KW60MN21 ",8265561.3595597968,2365317.1159295961,1674029.3650461452,129779.754134,561507.99674945069,"Summer",188153.41193,57098.837670000001,90839.459969000003,1743.6283143999999,47332.353577000002,35740.607877000002,7391.8726852,47037.908158999999,611.07015908999995]
[1282,"2011-07-08","KW60MN10 ",7457877.3754650233,2365248.3706791592,1708068.0234334029,140447.026297,516733.32094875647,"Summer",134275.04130000001,66120.802832999994,110179.99128,2114.8623357000001,56361.068421000004,38684.025332999998,7233.4153385999998,37640.089119999997,0]
[1283,"2011-10-07","KW60MN13 ",6897700.699738862,2365136.8293514014,1725235.9918426382,99865.139354999992,540035.69815376308,"Summer",102118.43763,73236.458081999997,137657.49614,2642.2824181999999,55996.271862000001,42701.935390999999,8264.0788016000006,19170.103298999999,0]
[1284,"2011-10-26","KW60MN17 ",6729163.3463130472,2365012.7943077828,1711169.2245788621,91871.556668999998,561972.01305992063,"Summer",198551.18541999999,74880.480060999995,132419.83467000001,2541.7475313999998,56953.862829999998,41818.112068000002,7635.5110132999998,19170.103298999999,0]
[1285,"2012-04-07","KW60MN11 ",6424283.9586501801,2364809.7990087159,1767330.954841749,102662.84725014093,494815.99691682594,"Summer",209477.85954999999,57004.166502,73900.838730000003,1418.4980284000001,55722.674442000003,24453.930965,5658.1461663,7467.6597125999997,0]
[1286,"2012-05-23","KW60MN12 ",7222669.2773743616,2364459.4056125046,1739799.7491244583,127399.58101413074,497260.07547391544,"Summer",124316.70589,75073.903674999994,118862.57678,2281.5212074999999,57455.458099000003,42468.069664000002,8922.0644673999996,21356.368259999999,0]
[1287,"2012-06-16","KW60MN21 ",7173665.8114562156,2364258.4919701708,1716213.334716317,119651.54814264947,528393.60911120416,"Summer",153585.09213,64496.536483999997,92475.892559,1775.0390053000001,55129.880033000001,32998.767877999999,6469.6102993000004,35848.660388999997,309.52124151999999]
[1288,"2011-07-03","KW60MN15 ",8116393.6813583691,2364073.6254975605,1673270.5224258986,123040.157596,567762.94547566201,"Summer",207392.64309,53095.082315,96356.130919000003,1849.5186805000001,54172.289064999997,26546.817556000002,6783.5183659000004,43957.422909000001,0]
[1289,"2011-08-19","KW60MN22 ",7231865.0779489344,2363890.2373257219,1722560.4981705381,129887.10395600001,511442.63519918401,"Summer",199891.73546,70124.440891000006,85586.142552999998,1642.7929176,55449.077022999998,34083.777435000004,7346.7529717999996,44786.337167999998,3053.2304963000001]
[1290,"2011-10-25","KW60MN18 ",6865332.7440307382,2363451.6510091787,1734988.761559621,96586.455478999997,531876.43397055764,"Summer",161714.62239,53992.304494000004,123139.7916,2363.6206923,56224.269711000001,42994.502940999999,7333.1418922000003,19170.103298999999,187.30720972]
[1291,"2012-06-15","KW60MN21 ",7179489.0968441395,2363282.675911983,1723112.3019674483,128248.96788408808,511921.40606044652,"Summer",142271.28388999999,61716.322303000001,94342.319283999997,1810.8643446999999,55722.674442000003,39273.501594000001,6757.8604652000004,32842.138606,309.52124151999999]
[1292,"2011-10-18","KW60MN12 ",6784859.6289742207,2363170.9101991905,1736095.0216461739,101316.316442,525759.57211101672,"Summer",134481.80888,71020.785755000004,135804.45590999999,2606.7140275000002,55540.276163000002,44957.216981999998,10208.066031,19170.103298999999,0]
[1293,"2011-10-11","KW60MN11 ",6891642.7173788771,2363149.8560265834,1774206.6744514846,97071.110455999995,491872.07111909875,"Summer",128346.24136,71282.217264000006,130595.35933000001,2506.7274324999998,42270.801315999997,43198.185694,9631.5250708999993,19170.103298999999,0]
[1294,"2011-09-21","KW60MN13 ",6758398.9986533383,2363146.484970612,1754103.2499836145,95582.648560000001,513460.58642699744,"Summer",117895.08285000001,82021.929302999997,137445.03010999999,2638.2042148999999,42134.002606000002,41066.904697999998,11290.126555000001,30217.333901999998,0]
[1295,"2011-08-31","KW60MN10 ",7673483.9139508707,2362860.0038460935,1731678.7379155667,132481.74618399999,498699.51974652696,"Summer",102214.45011999999,68085.436446000007,107448.66764,2062.4356343999998,55038.680892999997,39520.805500000002,9650.1539663000003,35138.564535999998,0]
[1296,"2011-10-13","KW60MN21 ",6733795.1286167828,2362716.7883161269,1722940.229918153,98503.905076999989,541272.65332097386,"Summer",182087.45584000001,60140.881846999997,121547.71488,2333.0613951999999,54081.089925,39829.230976999999,6871.3403028000002,19170.103298999999,3053.2304963000001]
[1297,"2011-10-31","KW60MN21 ",6727401.3049070081,2362668.8071041997,1717077.6825376065,95194.795308000015,550396.32925859315,"Summer",208968.85243,50068.778371,110381.9546,2118.7389435,56999.462399999997,39748.202857999997,6580.8961124999996,19170.103298999999,3053.2304963000001]
[1298,"2012-06-11","KW60MN18 ",7284996.7877609804,2362650.8566263057,1699234.9590214177,130390.92151927121,533024.97608561697,"Summer",157718.63141,65410.925734999997,108466.17011000001,2081.9662008,53533.895085999997,40379.440909999998,7902.2678606999998,29517.144070999999,0]
[1299,"2011-09-28","KW60MN14 ",7312089.9078724943,2362480.7509555724,1748044.2906329515,88338.61430500001,526097.84601762099,"Summer",95133.510982000007,68754.634137000001,136585.65239,2621.7087918000002,56269.869280999999,42820.266938000001,9452.1432282999995,30217.333901999998,0]
[1300,"2012-05-24","KW60MN13 ",7000240.3079223372,2362340.8430662071,1733435.0916056111,123928.57068526233,504977.18077533349,"Summer",118278.75122999999,82053.951260999995,119006.82551,2284.2900061999999,54537.085623999999,45308.586399,8233.6231640000005,21356.368259999999,0]
[1301,"2011-10-12","KW60MN21 ",6778480.654400182,2362303.077703163,1740213.5838076216,96561.999425999995,525527.49446954159,"Summer",193108.63746,63752.643387999997,119510.90131,2293.9655461000002,42453.199595999999,40145.556851000001,7152.9068182000001,19170.103298999999,3053.2304963000001]
[1302,"2011-08-10","KW60MN22 ",7166516.5180282146,2362040.9976776754,1736312.6694349193,123611.05821700001,502117.27002575638,"Summer",174513.96917,70178.797395999994,96621.088250999994,1854.6044340000001,55494.676592999997,35246.492040999998,7870.8404878000001,52944.430657999997,3053.2304963000001]
[1303,"2011-10-13","KW60MN07 ",6627005.158633342,2361926.9220264521,1731436.4359159763,101492.649907,528997.83620347583,"Summer",198036.50805999999,55135.219555000003,112509.26388,2159.5718227000002,46921.957448000001,42186.205136999997,8627.3321106999992,19170.103298999999,3053.2304963000001]
[1304,"2012-05-24","KW60MN09 ",6898532.7438045377,2361853.4681659923,1738665.6414674949,128701.66016851169,494486.16652998544,"Summer",135300.71831,60753.332111000003,104408.19455,2004.0749288,54445.886484000002,42071.797111,8585.2647324999998,21356.368259999999,0]
[1305,"2011-10-26","KW60MN16 ",6718267.7331802277,2361766.1610106705,1714536.3145905763,88591.228887000005,558638.61753309402,"Summer",196502.36446000001,73889.554010000007,136167.60195000001,2613.6844753,56452.267561000001,42651.694518999997,8284.9423518999993,19170.103298999999,0]
[1306,"2011-09-10","KW60MN22 ",6745592.4245974217,2361744.4705685726,1719125.3800329547,101236.28007199999,541382.81046361814,"Summer",219916.58593,70015.785724999994,104286.45858999999,2001.7382540999999,54309.087775,33359.246880999999,6935.8405690999998,43127.684760999997,3053.2304963000001]
[1307,"2012-05-31","KW60MN09 ",7110703.4328693775,2361378.6299621188,1724171.5349968185,129476.68180665659,507730.41315864358,"Summer",117771.82143,66397.010492999994,117010.76165,2245.9763320000002,52485.104978000003,41354.297242000001,8485.9343229000006,29133.100467,0]
[1308,"2011-10-27","KW60MN14 ",6828282.771169058,2361225.7349554216,1733091.9239528321,101189.299413,526944.51158958941,"Summer",119474.47176,68067.658788999994,137215.62836999999,2633.8009372000001,48517.942394999998,43560.759760000001,9348.4552416999995,19170.103298999999,0]
[1309,"2011-10-13","KW60MN13 ",6778114.7392638708,2361086.3973167734,1757625.5534354115,90716.699558000008,512744.14432336198,"Summer",126806.32154,72575.276727000004,127838.55669,2453.8116716999998,49065.137234000002,44297.025391000003,9469.0047150999999,19170.103298999999,0]
[1310,"2011-07-19","KW60MN11 ",8189029.5684885485,2361061.208428029,1703550.1079138436,131569.74785099999,525941.35266318521,"Summer",133650.35075000001,78454.703494000001,113363.70585,2175.9725059000002,48153.145836000003,39714.782310000002,10160.792923000001,44126.504724999999,0]
[1311,"2012-06-12","KW60MN12 ",7090610.9113261402,2360729.9045320326,1687171.2265807239,136054.96796868485,537503.70998262381,"Summer",144410.62726000001,81404.322811999999,129732.75805,2490.1701345000001,56133.070571999997,44491.679425000002,9392.2138470000009,30240.438568000001,0]
[1312,"2011-09-27","KW60MN14 ",7140621.7838556338,2360715.3144357838,1746731.6973916648,90838.867611000009,523144.74943311862,"Summer",113552.20054000001,76517.184664999993,147508.82801999999,2831.3749250999999,56361.068421000004,44139.432836,11127.931241,30217.333901999998,0]
[1313,"2012-04-04","KW60MN16 ",6633079.5410141228,2360581.437622223,1776535.7607026177,111489.06302894307,472556.61389066244,"Summer",151784.23542000001,67266.783672000005,99699.303719999996,1913.6895899000001,50022.728201999998,33802.04464,7605.3499432999997,7467.6597125999997,0]
[1314,"2011-08-21","KW60MN13 ",7594426.589597539,2360523.6538496683,1715545.1164879471,126661.431855,518317.10550672119,"Summer",213411.29775,60409.212962999998,92607.686736999996,1777.5687436000001,53351.496806000003,30253.346883999999,7486.6829980000002,40723.517844000002,0]
[1315,"2011-08-07","KW60MN22 ",6904789.4159369264,2360246.4530458841,1701207.0566372948,121365.669374,537673.72703458916,"Summer",232685.12265,66978.923483999999,98217.198980000001,1885.2411623999999,55403.477453,27834.101151999999,6873.4124368000003,36171.876626999998,3053.2304963000001]
[1316,"2011-08-06","KW60MN16 ",7663149.7524757329,2360030.5674465648,1683151.7891893617,117977.581741,558901.19651620288,"Summer",230773.79699999999,78787.358108999993,110948.67211,2129.6168671,54081.089925,29038.642992000001,7873.5627029999996,31668.786817,0]
[1317,"2011-10-20","KW60MN19 ",6905841.3339050477,2359709.6191526074,1717572.1443058802,100849.343332,541288.13151472702,"Summer",182388.0632,66558.850806000002,136532.27851999999,2620.6843011000001,57409.858528999997,44851.000598999999,7489.8318300999999,19170.103298999999,2744.4725620999998]
[1318,"2012-05-30","KW60MN22 ",6988020.3746334305,2359607.3502268773,1692820.8821592638,127549.85585513114,539236.61221248226,"Summer",170682.20310000001,62219.085833999998,79732.576556,1530.4359813999999,55084.280463000003,37272.455123,6235.9534303999999,29193.571209999998,3053.2304963000001]
[1319,"2012-06-13","KW60MN16 ",7552756.7966916263,2359328.2186219878,1700306.3214629567,131804.39312728849,527217.50403174257,"Summer",110205.26624,83474.153753000006,120861.69782,2319.8935630000001,56680.265411,41365.623886000001,9456.0437168000008,30804.638911999999,0]
[1320,"2012-05-25","KW60MN11 ",7130197.9285425553,2359200.5706999619,1745156.562314189,125997.58949042112,488046.41889535188,"Summer",99900.272664999997,72784.84388,113954.13619999999,2187.3055881999999,48563.541964999997,44139.603267999999,7838.3872038999998,25854.062927999999,0]
[1321,"2011-07-13","KW60MN18 ",8267530.7742876178,2359055.4750879076,1659794.8462967635,131309.20263700001,567951.42615414422,"Summer",236439.50854000001,76572.183890999993,110148.56488999999,2114.2591183,54673.884334000002,38358.94945,7660.2547366999997,33213.939987999998,0]
[1322,"2011-09-28","KW60MN15 ",7404968.9959353702,2358882.526992952,1745786.5364366928,88864.083767999997,524231.90678825928,"Summer",101114.45591,71514.618681000007,132549.99335999999,2544.2458771000001,56817.064120000003,42206.721025999999,9283.7924557000006,30217.333901999998,0]
[1323,"2011-10-10","KW60MN15 ",6845368.3050228404,2358858.6808667798,1763714.9914578176,96235.78865100001,498907.90075796191,"Summer",126678.70411000001,70241.808137,133889.34028999999,2569.9541235000002,48973.938093999997,43972.399658000002,7929.3275000000003,19170.103298999999,0]
[1324,"2011-07-09","KW60MN21 ",7395812.0409994069,2358588.1681703012,1692008.7868105152,140132.11526300001,526447.26609678625,"Summer",173554.71343,55727.024019999997,96150.006246000004,1845.5621971,55175.479603,30045.356452,6226.3579587000004,38341.614191000001,357.04420886999998]
[1325,"2012-05-17","KW60MN12 ",7462572.8349647708,2358526.6428808901,1719562.3011962182,125378.72128724394,513585.62039742776,"Summer",117179.90167000001,85778.339982999998,122464.084,2350.6507461000001,55266.678742999997,36737.221724000003,9206.8712323,21356.368259999999,0]
[1326,"2011-10-28","KW60MN14 ",6722675.2214566171,2358425.8981678267,1720497.9625880413,93120.885383000001,544807.05019678548,"Summer",154011.9921,68087.351754000003,133921.03847,2570.5625580000001,56406.667991000002,43436.404415999998,8915.3181805999993,19170.103298999999,0]
[1327,"2011-10-21","KW60MN08 ",6541322.9164023288,2358422.362907791,1721716.3253056852,102347.85568200001,534358.18192010594,"Summer",193046.34964,56670.454611000001,128552.28202,2467.5113534000002,57683.455949000003,46176.459586999998,8150.5177030000004,19170.103298999999,1271.7553132999999]
[1328,"2011-07-15","KW60MN10 ",7684403.6010462847,2358405.0287207444,1695858.8768388771,140815.71934899999,521730.43253286742,"Summer",120907.16581000001,74244.769732000001,107092.1838,2055.5930647999999,54400.286914999997,40321.101555000001,7393.2744237999996,38241.215672999999,0]
[1329,"2011-09-28","KW60MN09 ",6881742.4674848327,2358342.7149654226,1752350.1674438794,97223.866023999988,508768.68149754318,"Summer",113094.6177,59610.155140000003,123114.64031,2363.1379231000001,55038.680892999997,38996.851897,8230.2339377999997,30217.333901999998,0]
[1330,"2011-09-26","KW60MN21 ",6971597.1735708341,2358242.2636969886,1719087.685389651,103279.84216999999,535874.7361373374,"Summer",181887.0368,57008.136910000001,112670.99892,2162.6762643000002,56361.068421000004,37671.141005999998,8319.2138326999993,30217.333901999998,3053.2304963000001]
[1331,"2011-09-23","KW60MN11 ",6757654.9510555649,2358215.4984254437,1727844.3039030237,104781.42817900001,525589.76634341967,"Summer",136445.67165999999,80680.897159999993,137002.71726,2629.7141909000002,56406.667991000002,43247.994308000001,10607.866104000001,30217.333901999998,0]
[1332,"2011-08-18","KW60MN10 ",7384985.9824044853,2358155.7297432544,1736155.7412345542,131718.521591,490281.4669176999,"Summer",131769.24163,76632.310421999995,106570.05812,2045.5710644000001,49110.736804,37345.589640999999,10405.751727000001,40031.182387000001,0]
[1333,"2011-09-13","KW60MN08 ",6560766.4600427728,2358122.4004283627,1734529.7180693471,104762.477061,518830.2052980155,"Summer",149534.58209000001,58282.716542000002,113123.95617999999,2171.3706037000002,53989.890785000003,39304.886355000002,9029.7121953999995,27894.001092999999,0]
[1334,"2012-06-28","KW60MN19 ",8062313.5972000863,2358084.8532843878,1696691.7454391203,131334.84447210695,530058.26337316062,"Summer",184781.98431999999,67502.533664999995,112536.37057,2160.0921250000001,55266.678742999997,49369.645809000001,7805.7104544000003,26144.900343000001,0]
[1335,"2012-04-16","KW60MN12 ",6725419.6418856829,2358039.2612975435,1772018.1759983127,110812.98635441561,475208.09894481546,"Summer",124640.15317000001,69857.928673999995,117358.71988999999,2252.6552557999998,36297.257656000002,35107.91517,9322.3097796000002,7467.6597125999997,0]
[1336,"2012-06-20","KW60MN21 ",7365753.2484804317,2357949.9585029022,1696856.6364286053,139847.78173149447,521245.54034280253,"Summer",162534.58106999999,62312.031296000001,98442.066632999995,1889.5574101,54673.884334000002,38918.450502,7064.7395254000003,39868.376678000001,265.39075265999998]
[1337,"2011-09-16","KW60MN11 ",6709846.4940244835,2357898.4173752777,1737249.2786391394,103433.31424599999,517215.82449013839,"Summer",104579.50072,78889.062248999995,130265.01325,2500.3865672000002,55084.280463000003,39506.291550000002,8927.4665767999995,30217.333901999998,0]
[1338,"2011-10-05","KW60MN18 ",6912925.5752809886,2357748.8753261943,1731056.1874426242,99235.65578999999,527457.03209357022,"Summer",153872.43007999999,60701.602725999997,121458.35401,2331.3461480000001,56589.066271000003,38583.670277999998,7142.9321311000003,19170.103298999999,0]
[1339,"2011-09-28","KW60MN17 ",7435174.0127975121,2357522.3380055744,1738589.6069547515,90721.859954,528210.8710968229,"Summer",141624.01837000001,70467.624878999995,130848.33106,2511.5831271000002,56725.864979999998,39618.725499,8450.3474437999994,30217.333901999998,0]
[1340,"2012-04-18","KW60MN12 ",6830652.1540301247,2357513.4939268371,1768744.3948491141,109199.18157712281,479569.91750060039,"Summer",113779.02062,77542.483424999999,118896.46060000001,2282.1715942999999,34929.270558999997,36478.873291000004,9386.0533101000001,7467.6597125999997,0]
[1341,"2012-05-21","KW60MN16 ",7856276.4113763524,2357507.6234726887,1729322.3609452089,127476.03133604549,500709.23119143397,"Summer",121168.32527,66995.428555000006,101057.26949999999,1939.755218,56999.462399999997,43548.296106000002,8328.3166646999998,21356.368259999999,0]
[1342,"2011-07-24","KW60MN12 ",7746361.1081267847,2357341.6916325632,1694028.2303722275,124753.90010499999,538559.56115533586,"Summer",203470.31219999999,62110.261953000001,90192.850508999996,1731.2168958,55129.880033000001,28879.281160999999,6429.2646221000005,39825.951535,0]
[1343,"2011-10-03","KW60MN10 ",6794150.1930835266,2357331.3834531917,1749027.2412806863,105431.87366099999,502872.26851150527,"Summer",97855.648746999999,67956.302588000006,127691.40603,2450.9871715999998,54993.081323999999,40754.537222999999,8793.8748441000007,19170.103298999999,0]
[1344,"2012-06-14","KW60MN13 ",7399341.6671467135,2357042.6475436962,1709049.6644934237,129819.08833845233,518173.89471182,"Summer",122294.9007,77969.447677999997,118329.6015,2271.2909530000002,55221.079172999998,41813.203978999998,10009.263005999999,31142.826325000002,0]
[1345,"2012-04-03","KW60MN19 ",6635060.8000831874,2356724.4761920362,1768924.1998977128,98881.7272203108,488918.54907401244,"Summer",160890.02153,54206.460674000002,92415.708377000003,1773.8837931999999,55585.875732,32184.986164999998,6301.8757495,7467.6597125999997,0]
[1346,"2012-04-17","KW60MN20 ",6784656.7118165307,2356596.3346845414,1750713.2671686821,110419.21299412384,495463.85452173575,"Summer",180913.47299000001,57606.280207999996,101837.77529000001,1954.7367248999999,35522.064967999999,32759.373411,6628.7312713000001,7467.6597125999997,407.5214593]
[1347,"2011-10-11","KW60MN19 ",6979970.6602776395,2356569.3387031788,1742605.7174814278,94291.52358400001,519672.09763775091,"Summer",192731.38120999999,61575.055482999996,133250.09760000001,2557.6841073000001,41313.210348000001,40447.514350999998,7353.0506359000001,19170.103298999999,1934.1367077]
[1348,"2012-05-17","KW60MN11 ",7365817.8249173518,2356549.8666422269,1714698.7196121425,131783.33853072449,510067.80849936017,"Summer",108339.79002,77242.316739999995,119261.89434,2289.1859537999999,55129.880033000001,37304.859784,8597.0711594999993,21356.368259999999,0]
[1349,"2012-05-17","KW60MN15 ",7413417.0211461987,2356496.0222450038,1704195.6483844905,120943.83553163896,531356.53832887462,"Summer",114483.55024,82407.296665000002,123907.94721,2378.3651423000001,54309.087775,37829.580936999999,9138.1369732999992,21356.368259999999,0]
[1350,"2011-10-12","KW60MN13 ",6856878.0154814459,2356117.4445005064,1770557.6813419047,94141.004217999987,491418.75894060166,"Summer",116861.71128,70671.759435,131913.20741,2532.023017,35157.268408000004,45458.153558999998,9999.3086342999995,19170.103298999999,0]
[1351,"2012-06-11","KW60MN17 ",7305246.2508866601,2355781.4680839446,1699806.9069483755,128497.23698577836,527477.3241497908,"Summer",139806.18273999999,75584.236850000001,114690.7801,2201.4451832,53670.693796,40453.580283000003,8084.8797952000004,29727.187000000002,0]
[1352,"2011-10-11","KW60MN08 ",6757139.7932263948,2355777.3724891529,1752267.532616575,94531.895392999999,508977.94447957783,"Summer",181176.88995000001,57192.144662999999,120905.74871,2320.7391028000002,42362.000456000002,42201.370455999997,8912.0068276000002,19170.103298999999,559.33486457000004]
[1353,"2011-09-14","KW60MN08 ",6487746.6845485242,2355554.770168358,1733569.3152788628,106642.946384,515342.50850549527,"Summer",154738.22758999999,59628.223629,113088.81155,2170.6960162,54217.888635000003,38698.657532999998,8812.5646852999998,29474.248361999998,0]
[1354,"2012-05-16","KW60MN09 ",7141049.4883878082,2355378.2462455705,1705108.8106084953,128458.9348606969,521810.5007763785,"Summer",108435.96148,70331.388957000003,120205.28919,2307.2940531999998,53488.295515999998,37464.078896999999,10035.909573000001,21356.368259999999,0]
[1355,"2012-05-30","KW60MN12 ",7165474.728370457,2355306.3626258522,1707941.627926487,120161.4344888397,527203.30021052551,"Summer",102590.02119,75272.231247999996,109947.53638999999,2110.4004538999998,56908.26326,39716.110646000001,8313.6982977000007,25043.746638000001,0]
[1356,"2012-06-13","KW60MN18 ",7562295.6364751831,2355234.6099936441,1704763.4265223118,127452.99513856767,523018.1883327649,"Summer",135630.56713000001,68466.638976999995,108263.86782,2078.0830866000001,56041.871432,38724.259965999998,7932.6591670999996,31870.377368000001,0]
[1357,"2012-06-27","KW60MN18 ",8016647.3758168574,2355216.0266374559,1702838.4912166141,129157.91646950078,523219.61895134108,"Summer",127530.47971,78693.463025999998,105237.69881,2019.9969424000001,55859.473151999999,42009.361907999999,8112.2644750999998,35582.896567999996,0]
[1358,"2011-09-15","KW60MN10 ",6663325.3652804783,2354865.0898426892,1738292.4821762049,101431.5223,515141.08536648448,"Summer",121601.48899,76341.072736000002,124200.90102999999,2383.9882775000001,48061.946695999999,40316.756611999997,10098.628886,22109.152945000002,0]
[1359,"2011-09-20","KW60MN12 ",6635038.610277866,2354727.8685773509,1730889.5653259659,101904.17573,521934.12752138521,"Summer",121552.92633,76958.388397000002,133040.7806,2553.6663484000001,56634.665841000002,41788.322989,10617.556381,30217.333901999998,0]
[1360,"2011-10-18","KW60MN21 ",6748982.004185833,2354675.7138707344,1709144.3334402358,103968.028488,541563.35194249882,"Summer",209990.69274999999,65230.446518999997,119952.07713000001,2302.4337455,53488.295515999998,42018.653243000001,7477.439652,19170.103298999999,3053.2304963000001]
[1361,"2011-10-26","KW60MN22 ",6597985.471491619,2354415.3233557725,1686722.1816823841,100306.372754,567386.76891938841,"Summer",252380.65422999999,60074.24134,118369.34118,2272.0537408999999,56680.265411,39771.276523,7335.5796972999997,19170.103298999999,3053.2304963000001]
[1362,"2012-05-22","KW60MN09 ",7279467.9469655165,2354349.4463636996,1741175.1515780455,128810.1252629848,484364.16952266917,"Summer",130807.89797000001,56977.75389,111601.96489,2142.1565692999998,56133.070571999997,41069.136939000004,8555.1341353999996,21356.368259999999,0]
[1363,"2011-10-21","KW60MN09 ",6620659.9545101468,2354324.1961103594,1730622.4620222901,99451.944514999996,524249.78957306937,"Summer",151873.31644,57605.650342000001,132642.08931000001,2546.0136232,57911.453798000002,46401.325495999998,8486.5082225000006,19170.103298999999,0]
[1364,"2012-06-13","KW60MN17 ",7622425.8845983297,2354323.5833940958,1697893.7866856733,127599.53978599356,528830.25692242885,"Summer",134143.29042999999,78541.269952999995,117282.61483999999,2251.1944490000001,56087.471001999998,39997.529291999999,8364.0897652999993,31070.814451999999,0]
[1365,"2011-08-07","KW60MN15 ",7419530.8972994862,2354192.2472960139,1674033.5265113912,121023.974791,559134.74599362304,"Summer",222711.68427999999,60771.612696999997,105458.15581,2024.2285294000001,55403.477453,28066.049642000002,7729.5899839000003,28930.206040000001,0]
[1366,"2012-06-12","KW60MN11 ",7002200.0370916519,2354063.7926392402,1683983.5209810513,135614.2841911664,534465.98746702261,"Summer",126219.78585,77318.786055000004,123396.76162999999,2368.5531326999999,56224.269711000001,45049.461035,9290.8214609999995,30759.923376999999,0]
[1367,"2012-06-21","KW60MN11 ",7335151.6918654181,2354045.5680077388,1690138.9246786004,128890.34667829311,535016.29665084544,"Summer",116955.78422,82966.208285999994,123431.45303,2369.2190206999999,48061.946695999999,41502.484528000001,9563.9572324000001,36895.184435000003,0]
[1368,"2011-07-08","KW60MN22 ",7391550.4451107504,2353948.6352124792,1688718.9258640911,143497.84375300002,521731.86559538782,"Summer",184573.02283,60107.756015999999,87735.151857999997,1684.0423204000001,56315.468850999998,34181.999514000003,6177.9878368999998,39191.633268999998,3049.4563644999998]
[1369,"2012-05-17","KW60MN09 ",7112147.3182916073,2353939.0546872397,1732598.1146346754,130871.34445435692,490469.59559820744,"Summer",104298.86108,61948.796025000003,111789.43661,2145.7550164999998,55038.680892999997,35473.904685000001,8216.7887645999999,21356.368259999999,0]
[1370,"2012-04-05","KW60MN19 ",6597444.7601533178,2353767.3794042296,1748008.8459176987,103230.26635259988,502528.26713393111,"Summer",200112.88531000001,63412.011000999999,82755.749941999995,1588.4646256999999,48928.338523999999,32140.458466,6641.0777394999996,7467.6597125999997,0]
[1371,"2012-05-24","KW60MN08 ",6838674.5767162954,2353663.2834171718,1731744.8206300316,123206.27848179816,498712.18430534215,"Summer",176327.77734,49444.386355000002,92058.917939000006,1767.0353387,54947.481754,41632.866959999999,8073.8267183999997,21356.368259999999,0]
[1372,"2011-09-28","KW60MN18 ",7362750.8229615679,2353553.2968220399,1741486.2680483453,90912.958165000004,521154.0706086944,"Summer",138624.48413,64463.402620000001,124104.52867,2382.1384474000001,56361.068421000004,39054.390490999998,7948.6471070999996,30217.333901999998,0]
[1373,"2011-07-01","KW60MN16 ",7652233.9450217439,2353533.9950741841,1704604.7191664509,130540.40698699998,518388.86892073322,"Summer",158119.04553999999,78070.754937999998,116929.20849,2244.4109506999998,56315.468850999998,36528.766902000003,7145.8574976999998,43076.306080000002,0]
[1374,"2012-04-10","KW60MN12 ",6684052.9430331942,2353243.7874785471,1747310.1537752061,117213.20875563749,488720.42494770366,"Summer",123746.92655,76619.920371999993,117809.18883,2261.301833,56908.26326,37163.296651999997,9272.7376850000001,7467.6597125999997,0]
[1375,"2011-09-27","KW60MN10 ",6787949.2627361342,2353084.4010284226,1742848.6223951003,97295.228067000004,512940.55056632258,"Summer",103335.35531,65909.355721,138581.89423999999,2660.0258823999998,56361.068421000004,42774.180220000002,10415.116962,30217.333901999998,0]
[1376,"2011-07-11","KW60MN23 ",7079014.1857472677,2352959.5721683735,1680500.5048567546,134198.277852,538260.78945961921,"Summer",184522.05429,57888.863659000002,91754.968106,1761.2011391999999,54719.483904000001,36372.412992999998,7097.9139928000004,40305.828028000004,3053.2304963000001]
[1377,"2011-09-11","KW60MN22 ",6480853.5157645056,2352630.6412036824,1700564.5212002522,100478.92890999999,551587.19109343027,"Summer",233408.46474,56016.709536000002,97291.047233999998,1867.4640377000001,54126.689494999999,31884.183678000001,7042.8805380000003,35435.785758999999,3053.2304963000001]
[1378,"2012-04-17","KW60MN13 ",6751035.2302684132,2352579.3101193905,1780821.3559067189,102062.69003448135,469695.26417819055,"Summer",138445.96174999999,79775.361388000005,111036.36844000001,2131.3001641000001,35294.067117999999,37581.307393000003,9488.7170795999991,7467.6597125999997,0]
[1379,"2012-04-04","KW60MN17 ",6525234.5574649582,2352497.9500490455,1771806.7153199881,115516.24113690149,465174.99359215592,"Summer",144995.23400999999,66384.082164000007,96258.537481000007,1847.6454122,49429.933792999997,33127.861578999997,7016.2949159,7467.6597125999997,0]
[1380,"2011-10-18","KW60MN07 ",6726323.1328094136,2352294.0300770099,1693204.2815831678,88646.186726999993,570443.56176684203,"Summer",224249.18762000001,56589.282186999997,116593.9161,2237.9751428,55631.475301999999,41660.236311000001,8860.0206287000001,19170.103298999999,3053.2304963000001]
[1381,"2011-10-11","KW60MN21 ",6837511.9799151681,2352144.9177404288,1755147.484342502,95982.024676000001,501015.40872192685,"Summer",183220.70837000001,62246.653736,122013.26828,2341.9975126999998,40492.418088999999,40621.402555000001,7168.2446769999997,19170.103298999999,3053.2304963000001]
[1382,"2012-06-13","KW60MN15 ",7534987.504556343,2352133.7383678672,1703384.5423143918,127269.20959107197,521479.98646240344,"Summer",107027.09303,85123.916836000004,122747.29605999999,2356.0868922,56543.466700999998,42550.821999,10164.998136,31529.251499999998,0]
[1383,"2011-07-27","KW60MN09 ",7523189.2605528859,2352105.6050698417,1711697.0565840881,131438.24118700001,508970.30729875353,"Summer",126642.61596,65335.627779000002,100616.11825,1931.2874904,56862.663690000001,39325.612411000002,8596.2297772999991,36658.905842,0]
[1384,"2011-08-12","KW60MN10 ",7143015.1073470721,2351781.150820794,1723870.2271726995,128729.81316599998,499181.11048209446,"Summer",128645.17414,81837.291683999996,105631.87059999999,2027.5629174999999,56634.665841000002,38231.694495999996,8716.1901151999991,45529.158142,0]
[1385,"2011-08-06","KW60MN20 ",7279099.6566293184,2351564.0848419713,1696466.8785060756,124094.88914700001,531002.31718889566,"Summer",225197.06049,75536.770311999993,98094.182461000004,1882.8799079,51481.91444,28073.070615000001,7346.8545469000001,32988.030172999999,0]
[1386,"2012-06-30","KW60MN15 ",7875853.8533872422,2351153.605622516,1655190.2160892384,127369.46868451399,568593.92084876378,"Summer",169747.03791000001,69984.800155000004,113253.83859,2173.8636464000001,55038.680892999997,34523.547419000002,7140.3521203999999,36091.907793999999,0]
[1387,"2011-09-07","KW60MN08 ",6847161.5807801643,2351120.2396307569,1754041.9697175061,111192.126711,485886.14320225077,"Summer",130817.25651000001,55678.778183000002,108242.11291,2077.6655095000001,37346.047764000003,36920.583514999998,8282.8702178999993,36341.401781,0]
[1388,"2011-10-04","KW60MN14 ",7108361.791892617,2351119.2562144259,1746338.3468934989,100532.544813,504248.36450792727,"Summer",108619.3698,70274.429432000004,133180.94847999999,2556.3568166,55175.479603,43297.431281999998,10157.156529,19170.103298999999,0]
[1389,"2011-09-28","KW60MN10 ",6985126.0130602326,2350988.4040360725,1747490.7651877103,96744.051411000008,506753.58743736218,"Summer",96222.50387,62549.076371000003,127201.9904,2441.5930278999999,55175.479603,40154.732659000001,8723.2394356999994,30217.333901999998,0]
[1390,"2011-10-13","KW60MN14 ",6794383.6544109248,2350918.2074913322,1744005.4969003589,87190.607430999997,519722.10315997311,"Summer",116134.74449,74589.378954,131169.55924999999,2517.7489778999998,51162.717449999996,44713.615889000001,9239.7697544999992,19170.103298999999,0]
[1391,"2012-06-12","KW60MN19 ",7415157.2606223151,2350693.2893259618,1713979.7185805889,132935.11795250452,503778.45279286872,"Summer",175813.65111000001,62991.221688999998,99662.168328,1912.9767904,55677.074871999997,44784.30747,7724.9175238999997,30684.406364999999,0]
[1392,"2011-07-14","KW60MN11 ",7743354.298455921,2350678.2141256905,1684136.6821771213,134248.70336699998,532292.82858156913,"Summer",136339.08180000001,78984.821221999999,122295.44873,2347.4138573999999,55768.274012000002,40246.703387000001,9771.8410824000002,34995.441766000004,0]
[1393,"2012-04-03","KW60MN22 ",6540590.8082774393,2350418.9825113034,1766994.4006469084,99762.560915100083,483662.02094929456,"Summer",192956.55851999999,61443.498568000003,84825.971485999995,1628.2017278999999,55859.473151999999,32232.773891000001,6385.8056629000002,7467.6597125999997,3053.2304963000001]
[1394,"2012-06-14","KW60MN19 ",7525949.5877860626,2350252.632529085,1706285.9067682535,131844.54496835437,512122.18079247739,"Summer",122187.06021,60655.164540999998,102275.66370999999,1963.1418238000001,55357.877883000001,36794.447991000001,7695.5419687000003,31798.147924000001,0]
[1395,"2011-07-13","KW60MN17 ",8380189.0507814009,2350203.5039057289,1656992.1075477493,130776.07832199999,562435.31803597964,"Summer",209848.30090999999,84705.418823999993,110771.23611,2126.2110514999999,50889.120030999999,38938.655974000001,8535.1424391,35009.385489,0]
[1396,"2011-09-02","KW60MN10 ",6898647.9522342347,2350179.8503653836,1709614.0674090888,124648.47656700001,515917.30638929468,"Summer",120443.67956,72703.727692999993,112259.47919,2154.7773022000001,56224.269711000001,40526.851693999997,8259.0406705000005,40834.789304999998,0]
[1397,"2012-04-11","KW60MN12 ",6704872.0723829726,2350077.5663231495,1766615.8870193756,102896.04289635117,480565.63640742266,"Summer",117355.74261,76790.596489000003,123019.66667000001,2361.3149407999999,56771.464549999997,36576.123754,9306.0526652999997,7467.6597125999997,0]
[1398,"2012-05-17","KW60MN13 ",7539572.3430959368,2350010.3952838643,1707138.9576100016,124907.28471608587,517964.15295777685,"Summer",107874.22645,82220.639295000001,121598.02744000001,2334.0271253999999,55494.676592999997,38054.722957999998,9842.2022383000003,21356.368259999999,0]
[1399,"2012-05-24","KW60MN12 ",6976858.3572118022,2349746.5690286825,1720592.5185528016,124759.05647123915,504394.99400464172,"Summer",132542.84215000001,78069.191519999993,116668.4991,2239.4067346000002,54582.685193999998,44133.265168999998,8805.9741460999994,21356.368259999999,0]
[1400,"2012-05-04","KW60MN11 ",6745430.6010169797,2349718.4174633506,1737299.248311406,118906.10240463956,493513.06674730481,"Summer",135885.16607000001,68120.475978000002,115895.93927,2224.5777474000001,56908.26326,35688.096121000002,8599.1195927000008,21356.368259999999,0]
[1401,"2011-07-14","KW60MN20 ",7958954.7911655391,2349704.1611374188,1691625.4173710172,136879.57801000003,521199.16575640184,"Summer",210939.33932,57140.868396999998,104560.16946,2006.9920285999999,55631.475301999999,37398.037519999998,6823.7015233000002,39856.114362,0]
[1402,"2011-10-03","KW60MN09 ",6661026.1463894919,2348940.5470428946,1743253.2270118161,103127.56480000001,502559.75523107831,"Summer",98762.960877999998,62445.926108,117287.51546,2251.2885144000002,54035.490355000002,39514.527818000002,8653.2541072999993,19170.103298999999,0]
[1403,"2011-07-01","KW60MN20 ",7380470.5369453365,2348580.1286350824,1698179.7609272585,131876.83529199997,518523.53241582389,"Summer",210804.13331,61902.671167,108527.09435,2083.1356182,55585.875732,34586.396343,6150.0546508999996,45636.439642999998,0]
[1404,"2011-09-16","KW60MN12 ",6699464.8433035053,2348086.8138087867,1722590.9161485485,100436.46187099999,525059.43578923796,"Summer",108171.02892,81780.012405000001,134049.83564999999,2573.0347700000002,54765.083473999999,39633.489861000002,9097.7066484999996,30217.333901999998,0]
[1405,"2012-06-27","KW60MN19 ",7923844.9953450635,2347849.3084055805,1687512.8193831663,131010.44650590944,529326.04251650488,"Summer",151799.73053999999,69099.836269000007,105535.39512,2025.7111081,55403.477453,41492.101201999998,7838.8239771999997,35469.104815999999,0]
[1406,"2012-05-03","KW60MN12 ",6865848.1364265205,2347834.5694463453,1717214.940649451,120864.1552862105,509755.47351068392,"Summer",107807.28586,78395.772423000002,107317.53591000001,2059.9186113999999,56497.867130999999,35888.597508999999,9037.9871894999997,21356.368259999999,0]
[1407,"2011-09-15","KW60MN18 ",6866503.4684166862,2347818.5958808661,1702674.0880383467,94125.600619999997,551018.90722251951,"Summer",167180.06327000001,77064.366630000004,126116.22092000001,2420.7521025000001,53670.693796,39147.847786999999,8024.6863188999996,20978.372621999999,0]
[1408,"2012-05-16","KW60MN22 ",6902962.5356596727,2347480.4173061219,1676422.3858207269,132742.54417395656,538315.48731143842,"Summer",176197.38308999999,64907.450390999998,89978.057608999996,1727.0940290999999,55585.875732,33967.374657,6801.4514712999999,21356.368259999999,3053.2304963000001]
[1409,"2011-08-22","KW60MN09 ",7391547.1108747479,2347229.1258312399,1718595.0412713953,121551.19120399999,507082.89335584448,"Summer",131530.31797,70493.094297999996,99930.232782000006,1918.1221840000001,56725.864979999998,36170.500014999998,10192.281241000001,44450.924307000001,0]
[1410,"2011-10-18","KW60MN13 ",6774551.9317655237,2347193.9915279942,1726108.019873095,100325.912645,520760.05900989915,"Summer",124268.64135999999,74513.958880000006,136147.23024999999,2613.2934484000002,55585.875732,45914.575943000003,9855.0921343999998,19170.103298999999,0]
[1411,"2011-10-11","KW60MN09 ",6797768.0334994327,2346902.7486519348,1756805.9148169525,94132.460421999989,495964.37341298215,"Summer",140580.88550999999,55015.197871999997,125436.07030000001,2407.6968741999999,42316.400886000003,42158.086466000001,9430.5483358000001,19170.103298999999,0]
[1412,"2011-09-27","KW60MN21 ",6891621.7045058459,2346892.1643373682,1718881.5283852026,113784.247386,514226.38856616581,"Summer",183527.30392000001,61786.359589,109085.40820000001,2093.8522367,56908.26326,38221.934890999997,8086.5659439999999,30217.333901999998,3053.2304963000001]
[1413,"2011-09-27","KW60MN13 ",7044202.2139781509,2346855.9498080569,1743916.9677506897,94276.302771999995,508662.67928536719,"Summer",117610.28857,71660.373298999999,146630.76277999999,2814.5208023,56634.665841000002,43734.216205999997,11157.48963,30217.333901999998,0]
[1414,"2012-05-11","KW60MN10 ",6859904.758012332,2346451.5898543149,1720573.0845883177,130810.17441843243,495068.33084756479,"Summer",130284.79475,68294.791501,107439.19298000001,2062.2537719000002,57820.254658999998,36537.700145000003,8235.4295103999993,21356.368259999999,0]
[1415,"2011-07-18","KW60MN22 ",7957604.4519745465,2346181.6349444413,1661031.8200255698,122504.64381000001,562645.17110887135,"Summer",202629.82407999999,61829.055531999998,87809.931903000004,1685.4776945000001,46921.957448000001,35934.449045000001,7582.9153624999999,49378.546596,3053.2304963000001]
[1416,"2011-09-28","KW60MN11 ",7080919.880536736,2346138.3069853745,1739800.4104306805,93627.099627999996,512710.79692669399,"Summer",106567.35868,67965.318354000003,129308.6903,2482.0303179000002,55266.678742999997,41223.009189999997,8925.0897163000009,30217.333901999998,0]
[1417,"2012-04-10","KW60MN21 ",6692668.0800893214,2345988.4610192748,1743629.9594250801,117105.66006846749,485252.8415257273,"Summer",171544.07913999999,61841.418267000001,96535.241456999996,1852.9566380000001,56543.466700999998,34027.610890999997,6845.9955923999996,7467.6597125999997,3053.2304963000001]
[1418,"2012-06-15","KW60MN12 ",7427966.1766491327,2345695.7757071238,1709234.4171010684,132463.0914384918,503998.26716756332,"Summer",138432.18359999999,76937.217172999997,121773.82094999999,2337.4014137999998,49566.732502999999,44127.523033999998,8820.9547987000005,29556.334168000001,0]
[1419,"2011-09-12","KW60MN09 ",6658942.7341102939,2345637.1825333317,1727986.4945771797,99684.533171999996,517966.15478415199,"Summer",125475.53277999999,66583.937804999994,122776.46505,2356.6467797,55038.680892999997,39137.214721999997,9180.7545503000001,26666.351188000001,0]
[1420,"2011-10-21","KW60MN11 ",6738861.4122032057,2345353.2712564357,1714189.4218565496,105188.23479,525975.61460988631,"Summer",145776.06276,67355.054948000005,139412.49142999999,2675.9688743000002,57911.453798000002,46945.332425000001,8613.1928403000002,19170.103298999999,0]
[1421,"2011-08-13","KW60MN19 ",7647428.0041574836,2345097.7622134462,1657755.2148387856,127748.927071,559593.62030366063,"Summer",228966.11481,75374.960527999996,100150.66476,1922.3532905,46967.557018,29349.585504999999,7557.1965172,48280.763459000002,0]
[1422,"2012-05-02","KW60MN09 ",6724798.7733580023,2345069.5989403366,1733949.1355143092,113543.7916473342,497576.67177869315,"Summer",134385.24527000001,60939.958951000001,108646.71013000001,2085.4315968000001,56953.862829999998,33376.792866000003,9245.5493843000004,21356.368259999999,0]
[1423,"2012-05-17","KW60MN10 ",7233896.254894834,2345041.1222829805,1713960.4309799136,133331.60917034012,497749.08213272691,"Summer",111348.92657,68400.570491999999,115741.88482000001,2221.6207319,54947.481754,36877.179893,8372.6373203000003,21356.368259999999,0]
[1424,"2011-07-02","KW60MN13 ",7829014.657536502,2344987.51048837,1670437.073857391,132024.34608300001,542526.09054797876,"Summer",152598.68285000001,56215.493439999998,98829.326486000005,1896.9907132000001,55312.278313000003,30142.163009,6325.5766354999996,47078.476178999998,0]
[1425,"2012-06-29","KW60MN20 ",7825263.2241868451,2344710.9018094027,1646694.62453466,130183.0060559376,567833.27121880499,"Summer",167795.02434,74092.248869999996,123195.78078,2364.6953830000002,56041.871432,40250.991823999997,7820.1747666000001,37211.052528,0]
[1426,"2011-08-10","KW60MN10 ",7068132.6132619567,2344657.4779216489,1724216.5114090834,128142.73325200003,492298.23326056555,"Summer",133579.87023,71861.855024000004,107426.63920999999,2062.0128072000002,55540.276163000002,38687.346268000001,9274.7116306000007,44063.960984999998,0]
[1427,"2011-10-03","KW60MN12 ",6867213.5468228618,2344620.0333187953,1717968.7509702039,102851.10365400001,523800.17869459162,"Summer",109041.42621999999,79257.143635,136101.84943,2612.4223809999999,55813.873582,41805.458315999997,10178.690476,19170.103298999999,0]
[1428,"2011-10-19","KW60MN12 ",6718265.0431226045,2344402.9080329784,1737419.4452966712,91131.969983000003,515851.49275330716,"Summer",134655.79506999999,68135.660256999996,134018.56151999999,2572.4344752000002,47423.552716999999,44745.441057999997,9922.9240678000006,19170.103298999999,0]
[1429,"2011-08-06","KW60MN15 ",7516705.8102739817,2344285.0668165185,1672297.8712109206,125631.53574199999,546355.65986359783,"Summer",213938.11047000001,80067.153420000002,115017.10687,2207.7088993000002,54172.289064999997,28938.284460999999,7897.0265792999999,30734.052281,0]
[1430,"2011-09-27","KW60MN12 ",6923976.2190260394,2343867.4193184874,1736489.2632308293,91458.088686000003,515920.06740165822,"Summer",108847.47231,69369.386947999999,148029.42108999999,2841.3675076999998,56543.466700999998,43321.841970000001,11062.740263,30217.333901999998,0]
[1431,"2012-06-20","KW60MN22 ",7145057.9475682415,2343745.8142592739,1687868.9107268692,137933.03438227874,517943.86915012595,"Summer",174026.02142,65255.776145999997,94786.102497,1819.3825919000001,54628.284764000004,38902.652454000003,7163.2878057999997,42513.600548000002,3042.6996786999998]
[1432,"2012-06-11","KW60MN15 ",7230144.5616813498,2343679.5786808161,1693504.4920773732,127729.75037587454,522445.3362275681,"Summer",110084.79224,78978.024449999997,119218.47706999999,2288.3525761000001,54126.689494999999,42875.588591,9900.9025595000003,30141.098685000001,0]
[1433,"2011-09-22","KW60MN12 ",6758104.3589768866,2343459.780675523,1725574.5132599045,103556.79794399999,514328.46947161865,"Summer",107767.81677,80776.235151000001,137280.98749,2635.0554803,55357.877883000001,41867.134171999998,10445.284803,30217.333901999998,0]
[1434,"2011-08-01","KW60MN09 ",6947991.1476172665,2343249.4114172133,1738241.286818634,113847.60063999999,491160.52395857894,"Summer",111850.65247,61385.502655999997,97174.675908000005,1865.2303351,55768.274012000002,36815.505415,9468.2530588000009,26426.192532000001,0]
[1435,"2011-10-21","KW60MN10 ",6716551.3436308643,2343146.7943955744,1717569.9942595267,104149.635998,521427.16413804772,"Summer",148092.29633000001,64640.044793000001,137022.05551000001,2630.0853809999999,57592.256808999999,47109.020321999997,8639.1757815000001,19170.103298999999,0]
[1436,"2011-10-05","KW60MN15 ",6842316.6793750096,2342561.8676526584,1726914.2751636566,101073.18673799999,514574.4057510019,"Summer",142402.0385,67228.736208000002,129758.04897,2490.6555837999999,56817.064120000003,41908.416856999997,9531.7172575000004,19170.103298999999,0]
[1437,"2011-10-05","KW60MN07 ",6724813.5476219151,2342315.4914165908,1739598.1824777275,101771.279843,500946.02909586334,"Summer",168119.03333999999,51323.894810999998,107087.66085,2055.5062484999999,56224.269711000001,40399.603199999998,7348.8657363000002,19170.103298999999,3018.1607514000002]
[1438,"2012-06-30","KW60MN16 ",7922768.4990392383,2342042.4290771866,1641683.1036702723,126824.19332581788,573535.13208109629,"Summer",185947.03257000001,69647.399046999999,107307.12448,2059.7187681,55449.077022999998,34619.066920999998,7162.6783550999999,35926.630337000002,0]
[1439,"2011-08-02","KW60MN09 ",6860143.7059689201,2341894.7411453533,1715790.590016997,125321.75347499999,500782.3976533566,"Summer",129417.53462999999,73812.925621000002,102418.39522000001,1965.8815,57136.261109999999,36526.561885000003,10863.937239000001,25057.177186000001,0]
[1440,"2012-06-11","KW60MN19 ",7194809.7387379669,2341845.0337568037,1681218.8380441824,128299.87067663581,532326.32503598556,"Summer",186592.31615999999,58678.989268999998,104773.04474,2011.0780872,54263.488205000001,40794.016006999998,7705.9026420999999,30261.811449000001,0]
[1441,"2011-08-15","KW60MN10 ",7300861.1376306619,2341740.9390060734,1731119.1119511661,126906.623794,483715.2032609075,"Summer",123611.39198,69971.744888000001,107245.94497,2058.5444511000001,55540.276163000002,35217.267381999998,8274.6223100999996,43079.653758,0]
[1442,"2011-07-19","KW60MN10 ",8031060.8231391283,2341701.811971087,1698086.3384528977,128064.60332200001,515550.8701961895,"Summer",140732.25435,69309.689431999999,108604.05635,2084.6128739999999,48928.338523999999,39587.621754,10004.895272,43963.360674000003,0]
[1443,"2011-08-17","KW60MN10 ",7315817.5167633332,2341680.8233982613,1734025.5506277145,131534.76370799998,476120.50906254665,"Summer",134617.42822999999,73445.716729000007,99310.934745999999,1906.2349976,49247.535514000003,37182.011049000001,10106.307973000001,40004.896011999997,0]
[1444,"2011-10-10","KW60MN10 ",6804646.4433567626,2341460.0304810829,1736894.7309051612,96889.392416999995,507675.90715892176,"Summer",145207.47046000001,61634.057252999999,126104.79683000001,2420.5328215,53077.899386999998,41995.811607000003,7533.2653946999999,19170.103298999999,0]
[1445,"2011-09-05","KW60MN14 ",7015872.9882757515,2341149.6175050819,1707016.182031641,113216.71431600001,520916.72115744086,"Summer",198525.98201000001,58136.863909,106574.36278,2045.6536907,53989.890785000003,22259.764887000001,7209.3420115999998,36816.716581000001,0]
[1446,"2012-04-19","KW60MN13 ",6667158.1661847718,2341123.4085520641,1767569.7628648751,102160.45720366851,471393.18848352053,"Summer",140342.41759999999,77390.926645,124046.23604,2381.0195429999999,35020.469699000001,37125.579438000001,9067.5032563999994,7467.6597125999997,0]
[1447,"2011-07-18","KW60MN10 ",8094019.7027203906,2340736.5610271995,1671960.207760805,128789.40897999999,539986.94428639452,"Summer",133365.28090000001,74589.681031999993,103734.44521999999,1991.1425709,50250.726051999998,39174.490317999996,8996.1517416000006,44166.048456999997,0]
[1448,"2012-05-24","KW60MN14 ",6960809.3835600475,2340582.0623949394,1711188.0579392868,122731.41086882095,506662.59358683153,"Summer",117505.61705,72582.216503999996,120602.11236,2314.9109204000001,55357.877883000001,46054.885493000002,8941.3011219,21356.368259999999,0]
[1449,"2011-08-01","KW60MN23 ",6531557.406853918,2340201.5217536092,1725159.3634088496,123452.29363,491589.86471475963,"Summer",200654.41944999999,57763.764480999998,82842.769700999997,1590.1349362999999,55494.676592999997,33521.011973000001,7677.5225251000002,29797.762731999999,3053.2304963000001]
[1450,"2011-07-11","KW60MN09 ",7283363.6794695593,2340120.0482368595,1684771.6223749619,134078.409204,521270.01665789774,"Summer",126646.0711,67980.872197999997,109442.55438,2100.7075193999999,54810.683043999998,37545.729362999999,8327.5226851000007,31055.67513,0]
[1451,"2011-07-04","KW60MN21 ",7309753.2083056821,2339925.4839800652,1659298.0524553547,127207.52643399998,553419.90509071085,"Summer",191959.54005000001,52829.415277,77403.540731000001,1485.7310391999999,54856.282614000003,25760.479979,6608.3011077000001,49062.133529999999,265.39075265999998]
[1452,"2011-09-01","KW60MN09 ",7098870.252963013,2339682.8295627646,1724640.9641869771,122572.927723,492468.93765278743,"Summer",111681.08588,63123.464708,104769.72542,2011.0143740999999,54491.486054000001,37627.981225000003,9057.9501068000009,43047.279169000001,0]
[1453,"2011-10-07","KW60MN14 ",6856108.1416725218,2339675.351481243,1700054.888983272,98710.304595000009,540910.15790297079,"Summer",105585.54917,73090.880212000004,140773.38657,2702.0907305000001,53944.291214999997,43944.731627000001,8204.3728857000006,19170.103298999999,0]
[1454,"2012-06-16","KW60MN15 ",7238614.2405289095,2339618.0465278076,1669546.5567122349,124305.59191541917,545765.89790015377,"Summer",182809.07034999999,68994.127976999996,101116.58742,1940.8938026000001,52485.104978000003,34562.023568999997,7091.7179048999997,32871.100530999996,0]
[1455,"2011-08-11","KW60MN10 ",7396054.6155492729,2339530.9470880004,1732165.1619491216,126832.52279300001,480533.26234587864,"Summer",124676.45329,79994.376537000004,108108.84686999999,2075.1075194,46602.760457999997,38976.626664000003,9099.4131125000004,46740.371693000001,0]
[1456,"2012-05-23","KW60MN13 ",7209172.0062194057,2339477.0258074729,1723821.3086851507,122982.72374887769,492672.99337344442,"Summer",134408.91188999999,75100.901161999995,116800.65728,2241.9434597999998,57318.659389,44265.927820999997,8801.2627494999997,21356.368259999999,0]
[1457,"2011-07-19","KW60MN15 ",8649176.7930831183,2339303.9120585979,1670110.9155518175,119337.226996,549855.76951078034,"Summer",153926.83256000001,80855.080925999995,119430.81852,2292.4283879999998,51162.717449999996,40772.707984000001,10354.700021000001,44199.027081,0]
[1458,"2011-07-06","KW60MN24 ",7044063.1016077194,2339179.7570973588,1672282.5869682475,126365.263689,540531.90644011123,"Summer",161716.13798999999,58987.503291000001,100262.04797,1924.4912482,55494.676592999997,35490.223803000001,7034.0841229999996,48128.566099000003,3053.2304963000001]
[1459,"2011-08-30","KW60MN20 ",8021378.3881443376,2338996.2410270968,1694105.3873403682,127734.54580500002,517156.30788172845,"Summer",203701.4883,74817.938506999999,112286.30190999999,2155.2921538000001,55357.877883000001,36231.604992,8219.6904293000007,32926.922403999997,712.84450892999996]
[1460,"2012-06-01","KW60MN22 ",6971556.2961539691,2338911.8702423321,1687192.2431651084,130325.67960930917,521393.94746791472,"Summer",174283.88472999999,69523.715461,84588.905687000006,1623.6513414999999,56543.466700999998,36863.726762999999,6896.2753272999998,29065.943857999999,3053.2304963000001]
[1461,"2011-08-13","KW60MN17 ",7956648.722823428,2338884.0391134676,1645722.6031133768,126143.13418699999,567018.30181309092,"Summer",246993.89715999999,79442.443257000006,105350.43262000001,2022.1608243000001,49065.137234000002,30008.458460000002,7708.0966664999996,46230.406833000001,0]
[1462,"2012-04-05","KW60MN18 ",6512879.7919844706,2338854.3589602243,1734335.0309199037,101568.95957227454,502950.3684680463,"Summer",203007.04853,60634.878665999997,88655.136094000001,1701.7010620999999,49110.736804,32110.888143,6956.3316772999997,7467.6597125999997,0]
[1463,"2012-04-05","KW60MN15 ",6620047.177052455,2338574.9606793388,1747456.0348052215,101726.5984044939,489392.32746962341,"Summer",168076.60725,73603.388997000002,96520.519398000004,1852.6740537999999,49201.935943999997,35058.922876999997,8173.7716581000004,7467.6597125999997,0]
[1464,"2012-06-29","KW60MN12 ",7975905.3545782166,2338327.3957757591,1671160.304864736,133885.44516441002,533281.64574661327,"Summer",120073.00503,84210.612175999995,129838.13370999999,2492.1927795000001,56041.871432,41766.60428,8873.6926540000004,36985.819285999998,0]
[1465,"2012-04-06","KW60MN13 ",6640950.3129888,2337998.265974842,1741974.0340557804,102298.92829702275,493725.30362203898,"Summer",184874.12831999999,78172.394807000004,98853.869183999996,1897.4618008,53397.096376000001,33213.785392999998,8299.6758382999997,7467.6597125999997,0]
[1466,"2011-07-07","KW60MN23 ",7063425.9683216084,2337927.0274938405,1683944.4971050252,136367.55114399997,517614.97924481524,"Summer",152483.65651999999,53761.786248999997,94407.514202000006,1812.115736,55129.880033000001,34749.074644,6510.7888948999998,45354.072054999997,3053.2304963000001]
[1467,"2011-10-19","KW60MN21 ",6682592.937148462,2337748.7491926658,1703394.0965428725,101330.33708499999,533024.3155647933,"Summer",178463.77157000001,69854.748812999998,118558.69366,2275.6882885999999,54856.282614000003,43623.368695999998,7141.7132284999998,19170.103298999999,3053.2304963000001]
[1468,"2011-07-03","KW60MN20 ",7701213.0126060788,2337226.6556664705,1670203.7343918493,128600.03939800001,538422.8818766214,"Summer",193464.35740000001,55460.714261000001,84392.475456999993,1619.8809392000001,54126.689494999999,25186.35009,6505.9945445000003,48535.541880999997,0]
[1469,"2012-05-10","KW60MN10 ",6832374.6151355114,2337188.1367527829,1717802.7423704686,125867.62025142016,493517.77413089393,"Summer",120854.20473,67129.636692999993,111156.81247,2133.6120408000002,52895.501106999996,35751.751951999999,9181.7872313000007,21356.368259999999,0]
[1470,"2011-07-22","KW60MN11 ",7977040.6571407467,2337164.2607225161,1699113.8678984749,132922.82235,505127.57047404104,"Summer",132394.05937,77255.738358000002,112780.60804000001,2164.7801690000001,54765.083473999999,41237.184789999999,7247.6765004999997,43796.350383999998,0]
[1471,"2011-07-01","KW60MN14 ",7506608.2505755452,2337164.1564514749,1686394.1615480811,133599.51377500003,517170.48112839391,"Summer",143089.47261,74838.057274999999,116983.9681,2245.4620402,56361.068421000004,38745.837320999999,7338.8301044999998,42557.289467000002,0]
[1472,"2011-09-19","KW60MN10 ",6662067.2044879962,2337032.6160783619,1732899.4473195586,103948.208939,500184.95981980325,"Summer",114042.35279999999,68251.488186999995,119394.74609,2291.7359916,56041.871432,38545.836719999999,10031.182939,30217.333901999998,0]
[1473,"2012-06-27","KW60MN14 ",7749978.837506406,2336535.0122962119,1685517.335826864,132273.15347540597,518744.52299394214,"Summer",121983.59938,84134.607227,112823.31716999999,2165.5999542,55768.274012000002,44597.722849999998,9508.5174760000009,37290.800160999999,0]
[1474,"2011-07-13","KW60MN10 ",7609748.8906715689,2336370.4344862206,1691042.0183343003,133526.643102,511801.77304992056,"Summer",157447.50928999999,67294.467264000006,111246.27955000001,2135.3293268000002,52621.903687999999,40315.625782000003,8576.9101702000007,36552.986889,0]
[1475,"2011-10-03","KW60MN13 ",6878961.975753108,2336214.0624818741,1701837.1514783602,105964.433284,528412.47771951405,"Summer",107195.64215,76250.489272000006,131671.07311999999,2527.3753428,56315.468850999998,42733.279608999997,10150.513510000001,19170.103298999999,0]
[1476,"2011-07-03","KW60MN14 ",7995713.6509178402,2336175.686128038,1645250.9080688029,124567.390522,566357.38753723516,"Summer",225596.9129,50270.872287999999,96918.985285999996,1860.3224525000001,54263.488205000001,26452.865895999999,6906.7900556000004,45018.123162000004,0]
[1477,"2012-06-11","KW60MN16 ",7250737.2660529716,2336136.8370940336,1690013.806037992,128685.03213030448,517437.99892573722,"Summer",124732.64693,83884.336565999998,116276.87556,2231.8896722999998,53670.693796,41354.017018999999,9159.3831233000001,30110.908231000001,0]
[1478,"2012-05-29","KW60MN16 ",7335434.9368842421,2335895.9530532835,1689656.4762265175,119391.51394655579,526847.96288021037,"Summer",111309.09712999999,80796.908265999999,107787.89208999999,2068.9469164000002,56041.871432,37540.674595999997,8020.5301994000001,23600.210736000001,0]
[1479,"2011-09-04","KW60MN18 ",7289899.6418913836,2335717.9123126669,1713186.4379400411,110786.76817799998,511744.70619462588,"Summer",190511.95501000001,61158.342626999998,90274.011989000006,1732.7747591,54628.284764000004,25247.266265999999,5676.2265556000002,34202.180186999998,0]
[1480,"2011-10-07","KW60MN19 ",6852522.217748588,2335709.145734577,1681178.2812364241,100336.96778399999,554193.89671415288,"Summer",151115.33820999999,58511.864184999999,128121.31564,2459.2391204999999,55859.473151999999,39876.067446000001,7162.7799302000003,19170.103298999999,1527.0393077000001]
[1481,"2012-06-27","KW60MN16 ",8007927.9001587415,2335503.0511079845,1680445.1349490001,129359.77867751553,525698.13748146896,"Summer",119700.126,88636.071114000006,105279.05216000001,2020.7907041000001,55631.475301999999,43431.377994000002,9363.2242791999997,35846.120543999998,0]
[1482,"2012-05-29","KW60MN11 ",7002251.9423226062,2335389.0259586573,1706069.7563248202,121512.64593014467,507806.62370369257,"Summer",93439.445500999995,71529.698518000005,103298.35454,1982.7719790000001,55859.473151999999,37073.009438000001,7697.8646554999996,22817.780756,0]
[1483,"2012-04-27","KW60MN10 ",6724761.2249192167,2335347.0499105761,1743714.1280399589,111175.33444392025,480457.58742669679,"Summer",129389.78756,65759.846007,116642.46341,2238.9069896999999,55084.280463000003,31302.34115,9369.1630432999991,7467.6597125999997,0]
[1484,"2012-05-22","KW60MN15 ",7561958.0229528546,2335204.108673553,1704791.1754831637,126381.95697269459,504030.97621769481,"Summer",114222.53915,73246.267607999995,106435.71466,2042.9923934000001,56497.867130999999,44798.048122,8535.3201958000009,21356.368259999999,0]
[1485,"2011-07-20","KW60MN11 ",7725186.4207989322,2334786.9725938523,1690136.8749623429,128388.15287000001,516261.94476150943,"Summer",126727.39396,74652.992245000001,122025.66714000001,2342.2355041000001,50706.721750999997,37095.946867999999,9952.6043472000001,46882.284397000003,0]
[1486,"2012-05-25","KW60MN12 ",7127758.5363630876,2334759.6075086454,1711357.9285356714,123803.56475123655,499598.11422173725,"Summer",91625.382964000004,73233.835781000002,115451.68640999999,2216.0504855999998,54993.081323999999,43393.680722999998,7977.6062031000001,25477.035926,0]
[1487,"2011-09-28","KW60MN19 ",7306391.4326318288,2334703.9859263171,1721047.2026816811,93101.144868000003,520555.63837663614,"Summer",141098.77424,58248.734285999999,122368.15429999999,2348.8094126999999,56041.871432,38376.014722,7753.2366952000002,30217.333901999998,611.07015908999995]
[1488,"2011-08-30","KW60MN09 ",7240771.9436064754,2334419.4188112603,1699389.6529610602,129601.319942,505428.44590820017,"Summer",119493.40081000001,69260.937451999998,112621.14969000001,2161.7194276,56999.462399999997,39712.015851999997,7844.1668337000001,39862.551743999997,0]
[1489,"2011-08-20","KW60MN13 ",7733709.7920719953,2334243.5643633171,1691245.1981883966,131376.01975099999,511622.34642392048,"Summer",211809.85320000001,73611.680095999996,103537.16653,1987.3558826999999,55357.877883000001,33814.823627999998,7447.5562222999997,40487.865374000001,0]
[1490,"2012-06-20","KW60MN13 ",7281698.6454420211,2333554.1439761715,1687923.6552759199,124747.87687524493,520882.61182500637,"Summer",110278.86272999999,85406.204635000002,116200.39285,2230.4216161999998,53853.092076000001,42038.605300000003,9457.8517558999993,37908.249902000003,0]
[1491,"2011-09-28","KW60MN12 ",7141978.8998956988,2333543.4286162569,1730149.3898734751,92182.401851999995,511211.63689078181,"Summer",108400.24428,69635.095763000005,133873.0932,2569.6422670000002,51117.117879999998,41622.084269999999,9285.5192339000005,30217.333901999998,0]
[1492,"2011-10-12","KW60MN07 ",6716192.0394726451,2333409.366397304,1728047.6774309194,99361.835420999996,505999.85354538466,"Summer",191294.24635999999,53461.217863999998,114695.73136000001,2201.5402205999999,41313.210348000001,40948.007741000001,8619.4295586999997,19170.103298999999,3053.2304963000001]
[1493,"2012-05-30","KW60MN11 ",7105140.0858108187,2332880.3789730743,1695266.3612754368,125550.97531628617,512063.04238135112,"Summer",109356.6914,69559.924744999997,106353.53833,2041.4150506000001,56862.663690000001,39725.494705999998,8131.1828599999999,25189.89014,0]
[1494,"2012-05-22","KW60MN16 ",7648422.6457775235,2332697.6272545978,1694956.6361548386,128990.96694686671,508750.02415289264,"Summer",115071.35775,73647.629077000005,101035.33040000001,1939.3341055999999,57364.258958999999,42964.547665999999,7866.1714132999996,21356.368259999999,0]
[1495,"2011-09-30","KW60MN14 ",7515207.5571605433,2332215.7023713188,1714489.2352506977,94092.806880000018,523633.6602406209,"Summer",92446.602878000005,72718.213013999994,145511.95817999999,2793.0457805000001,56315.468850999998,40657.299399000003,10619.120639000001,30217.333901999998,0]
[1496,"2011-08-16","KW60MN10 ",7138891.3929587994,2331879.4598477217,1730671.1249185291,128463.50627499999,472744.8286541925,"Summer",125652.43358,71845.62311,99038.131236999994,1900.9986397,51573.113579999997,36740.912483,9617.1623338999998,42142.312602999998,0]
[1497,"2011-10-03","KW60MN14 ",6926100.279838006,2331870.8302831841,1699542.6182215668,103460.345663,528867.86639861751,"Summer",101807.48607,72491.843531999999,134511.35032999999,2581.8933656999998,56269.869280999999,43419.049978000003,10456.681543000001,19170.103298999999,0]
[1498,"2012-04-09","KW60MN12 ",6721686.8287643483,2331864.2093129298,1751841.3292354047,113614.33256448866,466408.54751303635,"Summer",119660.37075,69691.565214000002,107411.8269,2061.7284906,46283.563469000001,34244.376388999997,9108.5836624000003,7467.6597125999997,0]
[1499,"2012-05-21","KW60MN17 ",7838498.5262274435,2331814.8688779967,1700690.1549226786,132180.41473961069,498944.29921570746,"Summer",132470.53868,64581.905874999997,97310.938949999996,1867.8458515,56999.462399999997,43056.047231999997,7028.4179187,21356.368259999999,0]
[1500,"2012-06-28","KW60MN11 ",7689204.8779560858,2331450.1458683047,1692352.4856067346,125190.41077059605,513907.24949097401,"Summer",123444.76119999999,85805.136620000005,125788.07839,2414.4535334000002,55996.271862000001,45542.765120999997,9721.3988265999997,38834.157669,0]
[1501,"2011-10-27","KW60MN18 ",6826519.5442853654,2331373.7780936453,1700272.9323660349,96223.434935999991,534877.41079161013,"Summer",192606.75258,61307.307634999997,129783.99232999999,2491.1535567000001,47879.548415999998,40757.248524000002,7415.7428630000004,19170.103298999999,309.52124151999999]
[1502,"2012-04-11","KW60MN13 ",6714262.6787971798,2331257.368254764,1745870.7790344709,106425.17442773908,478961.41479255375,"Summer",111137.78178,83316.288669000001,118644.49475,2277.3352073999999,57273.059820000002,37657.543085999998,9143.9843197999999,7467.6597125999997,0]
[1503,"2011-07-09","KW60MN13 ",7676591.5107862614,2331233.3980790912,1676282.8861055213,135675.19503399997,519275.31693956984,"Summer",143392.0619,57221.333828000003,98002.879054999998,1881.1273742999999,55494.676592999997,31889.146700000001,6635.2388566999998,35932.290405,0]
[1504,"2012-04-02","KW60MN21 ",6735775.1323218858,2331054.2720579542,1720739.1906991112,111821.37280990041,498493.70854894246,"Summer",210525.65578,57188.121230999997,91656.805812000006,1759.3169519,56224.269711000001,30840.847704,6860.1111620000001,7467.6597125999997,3053.2304963000001]
[1505,"2012-06-27","KW60MN15 ",7885550.8753159214,2331035.966095807,1673260.3068737437,132465.08902463672,525310.57019742671,"Summer",112185.82177,87920.345256999994,111277.06107,2135.9201661000002,55631.475301999999,44195.949461999997,9534.8254591000004,36149.472953999997,0]
[1506,"2011-09-29","KW60MN13 ",7148262.6023062421,2330675.8909675498,1730864.3526014325,90604.143051000006,509207.39531511709,"Summer",97115.115778000007,73209.894430999993,135738.91467,2605.4559887999999,50524.323471000003,42127.957541999996,10185.841371,30217.333901999998,0]
[1507,"2011-07-14","KW60MN22 ",7569494.5850832229,2330281.4063009568,1683426.0894942493,138155.66091100001,508699.65589570726,"Summer",189439.47469999999,55737.122771000002,92606.995014999993,1777.5554663,55813.873582,36147.706073000001,6989.4316558,44656.642082999999,3053.2304963000001]
[1508,"2012-06-13","KW60MN13 ",7327104.867475953,2330275.6256517246,1687789.1774724389,131882.2078725,510604.24030678562,"Summer",124722.34510999999,77665.779771000001,112337.45925,2156.2740993000002,56269.869280999999,41667.563506999999,10007.394022,31578.072445000002,0]
[1509,"2011-07-14","KW60MN21 ",7820027.1201825878,2330177.3555250079,1678698.3794425747,138915.67073700001,512563.30534543312,"Summer",190317.23801,52693.042776000002,99227.960940999998,1904.6423474999999,55585.875732,36077.084454000003,6868.5977722999996,42305.342540999998,458.40863426999999]
[1510,"2011-10-31","KW60MN22 ",6437111.6337065762,2329717.5729655107,1687236.9767960375,96414.894531999991,546065.70163747319,"Summer",211170.99234999999,45777.577383000003,102905.54828,1975.2322147,56589.066271000003,39807.041205000001,6084.3151679000002,19170.103298999999,3053.2304963000001]
[1511,"2011-07-01","KW60MN15 ",7579918.4342114674,2329422.1383756483,1685040.6115766575,126774.66797200001,517606.85882699065,"Summer",168930.95830999999,73628.313710000002,117862.54122,2262.3259115000001,56406.667991000002,37539.511792999998,7352.7865399000002,41799.163692000002,0]
[1512,"2012-05-21","KW60MN10 ",7182935.4896229794,2329303.6265940419,1695122.7466881925,131873.50995838933,502307.36994746001,"Summer",99035.651589999994,68447.551775999993,112292.92780999999,2155.4193355000002,56725.864979999998,40614.271056999998,8524.0165660999992,21356.368259999999,0]
[1513,"2011-10-10","KW60MN17 ",6803893.6712941779,2329165.4206573642,1737269.5175718695,94877.340649999998,497018.56243549468,"Summer",148854.56698,64502.100838999999,128317.01476999999,2462.9954895000001,48700.340674999999,41996.695499000001,7078.9600567999996,19170.103298999999,0]
[1514,"2012-05-24","KW60MN15 ",7048756.5483815232,2328981.4438606538,1704494.7602920858,119128.69744169012,505357.98612687783,"Summer",107895.77335,74834.814748000004,118508.55748,2274.7259438999999,55722.674442000003,45246.622614,8957.4278809000007,21356.368259999999,0]
[1515,"2011-09-22","KW60MN11 ",6709690.793962948,2328810.4217254766,1719596.3365029474,105180.336779,504033.74844352913,"Summer",98181.692681999994,71245.132274000003,131195.08877,2518.2390073000001,55859.473151999999,41497.419887999997,10147.263102999999,30217.333901999998,0]
[1516,"2012-06-30","KW60MN14 ",7733010.8223022409,2328543.7441412322,1644696.6706751266,126741.8567206296,557105.21674547577,"Summer",182154.04668,65978.155769999998,117718.00070999999,2259.5515123,55631.475301999999,34395.644183999997,6989.2691360999997,35398.522250000002,0]
[1517,"2011-09-28","KW60MN13 ",7192224.6411545863,2328503.8271496557,1727293.7903285504,90125.179263000013,511084.85755810555,"Summer",105697.59729999999,70749.718255,132930.62891999999,2551.5520295000001,49429.933792999997,42426.239349000003,9172.5675871000003,30217.333901999998,0]
[1518,"2011-10-19","KW60MN13 ",6722078.2285081744,2328444.1004706603,1733941.0409382286,88847.492120999988,505655.56741143146,"Summer",137302.70415999999,72265.125373999996,135264.53872000001,2596.3505258,49019.537664000003,45611.524883999999,9718.8797615999993,19170.103298999999,0]
[1519,"2011-07-04","KW60MN13 ",7496522.3213925436,2328259.5073800641,1654787.2638791054,128853.720396,544618.52310495882,"Summer",193284.21343,55815.815900000001,89451.774141000002,1716.9922214000001,54901.882184000002,24512.302377,6657.0368994,47213.726245999998,0]
[1520,"2012-06-18","KW60MN14 ",7949839.8168005561,2328203.8437866843,1673456.3333525746,134680.27411771397,520067.23631639557,"Summer",120269.93713999999,78174.321362000002,116170.18971999999,2229.8418789000002,57090.661540000001,45452.161199000002,9306.4843603999998,33262.239635999998,0]
[1521,"2011-10-18","KW60MN14 ",6768412.3457143167,2327972.3873872338,1713913.883161505,98292.644880999986,515765.85934472881,"Summer",135816.05277000001,73237.947587000002,134904.72498,2589.4440402,55768.274012000002,46444.406776999997,9793.3343986,19170.103298999999,0]
[1522,"2011-07-19","KW60MN16 ",8600757.2624776307,2327730.3679047101,1657433.8680227562,120827.239224,549469.26065795415,"Summer",170366.49277000001,82858.427219999998,118853.67017,2281.3502486000002,51481.91444,39013.693093000002,9794.8377123999999,44414.766485,0]
[1523,"2012-06-11","KW60MN20 ",7133687.0844570119,2327643.379239439,1668343.4948463424,134024.73659062089,525275.14780247584,"Summer",162715.32915999999,55937.362437999996,96009.611013999995,1842.8673649,56041.871432,40884.556196999998,7467.8915816999997,31045.621197,0]
[1524,"2011-09-16","KW60MN10 ",6652720.2933706781,2327360.7308454141,1724905.0620180739,105675.37957800001,496780.28924934019,"Summer",104840.95695000001,73125.442523999998,120392.13269,2310.8804418,54673.884334000002,38922.579925999999,8294.7545193000005,30217.333901999998,0]
[1525,"2012-05-29","KW60MN10 ",6915269.3021726934,2327112.4569363119,1711754.0532184266,123670.42181117582,491687.98190670967,"Summer",89079.382901999998,67256.937189999997,100752.34524,1933.9023147,55677.074871999997,36927.813141999999,6173.1782506999998,22937.394189999999,0]
[1526,"2011-07-13","KW60MN19 ",8017073.0223113718,2327046.617592074,1641852.7707188956,131037.13111900001,554156.71575417812,"Summer",206559.21361999999,65611.637803000005,109013.90224,2092.4797073,54445.886484000002,37750.741685000001,7434.3311279999998,34768.674057999997,0]
[1527,"2011-09-30","KW60MN16 ",7609988.6983719775,2326907.8257863387,1700876.5126423445,92077.793000999998,533953.52014299401,"Summer",93928.082160000005,80570.347573999999,143909.88318,2762.2945703999999,56224.269711000001,39148.400283000003,10178.06071,30217.333901999998,0]
[1528,"2012-05-14","KW60MN10 ",7021399.8002324756,2326870.0438094046,1677595.0030652157,134531.77839076458,514743.26235342462,"Summer",101099.07738,73017.701627999995,117628.11554,2257.8262012,57181.860679999998,37345.427391999998,8494.7984534999996,21356.368259999999,0]
[1529,"2011-09-27","KW60MN15 ",7171316.8747920785,2326796.7121791262,1719730.4231648757,90663.507390000013,516402.78162425081,"Summer",121263.48987,77788.311279000001,145021.79204,2783.6372310000002,56497.867130999999,43371.667477000003,10819.345717,30217.333901999998,0]
[1530,"2012-06-22","KW60MN13 ",7758280.3505827216,2326716.1115553495,1663195.8641314269,128987.62861894289,534532.61880497995,"Summer",114455.37923000001,79388.451495999994,122241.78274,2346.3837595,57181.860679999998,46976.710625,9397.5973338999993,37741.631225999998,0]
[1531,"2011-09-16","KW60MN13 ",6663163.3836114304,2326474.5818820409,1706939.8782585452,98060.600866999986,521474.10275649565,"Summer",105012.73864,84173.943348000001,131899.12586,2531.752727,55175.479603,40367.353726000001,8977.2384349999993,30217.333901999998,0]
[1532,"2011-07-01","KW60MN21 ",7311325.6681804582,2326183.7518090825,1681714.9079519284,134173.48357500002,510295.36028215406,"Summer",165900.09468000001,58712.250071000002,104507.97407,2005.9901583000001,55585.875732,33673.055719000004,6236.6780005000001,48369.662807000001,224.65274199999999]
[1533,"2011-07-09","KW60MN22 ",7175041.247661734,2326015.3925460856,1674418.0244243119,137439.331087,514158.03703477356,"Summer",179077.85295,59150.037742,96319.251248,1848.8107895000001,54901.882184000002,29049.295934000002,6359.5637039000003,40410.385239000003,3052.8205720999999]
[1534,"2012-05-29","KW60MN13 ",7071427.4708983917,2325897.5051667723,1684998.038789175,120939.61724756476,519959.8491300327,"Summer",116088.15315,77675.651962999997,102944.18229,1975.9737795000001,56041.871432,38775.264904000003,8040.0648070999996,23045.259860999999,0]
[1535,"2012-05-17","KW60MN17 ",7377324.1983464072,2325267.1858544736,1676929.3487927208,115912.87802898332,532424.95903276966,"Summer",148270.1722,83146.068883,104557.87681,2006.948022,55677.074871999997,37184.186391000003,8120.3075399999998,21356.368259999999,0]
[1536,"2011-10-05","KW60MN17 ",6854143.345908572,2324907.9087037342,1709021.8736840601,99052.590750999996,516833.44426867395,"Summer",155656.29728,67752.259619999997,124735.39284,2394.2476412000001,56452.267561000001,39537.601977999999,8189.5835341000002,19170.103298999999,0]
[1537,"2011-09-02","KW60MN21 ",6885454.160567618,2324782.7329647522,1691444.3439095879,125535.109073,507803.27998216421,"Summer",186930.60144999999,73378.107321000003,98729.332920000001,1895.0713754000001,56953.862829999998,34483.120814000002,7592.1180780000004,42158.839933000003,3053.2304963000001]
[1538,"2011-10-12","KW60MN19 ",6865721.3817118444,2324777.3520416236,1717062.0048002296,93857.711020000002,513857.63622139371,"Summer",179966.38441,65327.899061999997,128260.9599,2461.9195380000001,32102.097224000001,40156.791600999997,7588.156645,19170.103298999999,2035.9110573999999]
[1539,"2012-06-27","KW60MN17 ",8044585.5487934118,2324411.8475585487,1674740.0518443838,126396.17454401102,523275.62117015407,"Summer",127070.93614000001,88418.153409999999,105649.13643,2027.8943286000001,55950.672292000003,42184.725942999998,8302.1288803999996,35563.028562,0]
[1540,"2011-10-31","KW60MN14 ",6746674.1378454687,2324367.6001261482,1696341.6511779595,98378.611434999999,529647.33751318848,"Summer",123167.62969,62073.559381999999,124941.07519,2398.1956344999999,56497.867130999999,44764.803260000001,7982.2685055000002,19170.103298999999,0]
[1541,"2011-09-30","KW60MN15 ",7614121.6105983946,2324301.2064228766,1707302.2135866249,92239.814834000004,524759.17800225166,"Summer",91634.444745000001,75455.554504,144268.64981,2769.180957,56269.869280999999,40337.802141,10700.076091000001,30217.333901999998,0]
[1542,"2012-05-30","KW60MN10 ",6951869.7658236362,2324074.2763127727,1691989.4346594007,123976.47929571726,508108.36235765443,"Summer",109334.46619000001,64222.419273,101028.02564000001,1939.1938935000001,56908.26326,39747.234351999999,7984.8129650999999,25455.701008,0]
[1543,"2011-10-06","KW60MN15 ",6856237.056633288,2323873.3428374501,1719372.3914175751,93062.383598,511438.56782187498,"Summer",119532.63674,71010.971409000005,129073.21337,2477.5104292999999,56634.665841000002,43315.867361999997,9667.1576587,19170.103298999999,0]
[1544,"2011-09-20","KW60MN11 ",6581457.8365612654,2323850.1037706411,1711327.8450301504,102215.74361999999,510306.51512049057,"Summer",109502.89873,71669.610803000003,127216.5021,2441.8715742999998,56452.267561000001,41402.920696000001,10429.073399000001,30217.333901999998,0]
[1545,"2012-06-14","KW60MN12 ",7278795.4257778525,2323744.9883338874,1689986.0944680714,130867.51757252935,502891.37629328686,"Summer",125044.19201,76900.535489999995,110521.83792999999,2121.4239499,52895.501106999996,40951.412695999999,9669.6970388999998,30973.609913,0]
[1546,"2011-10-03","KW60MN18 ",6819401.9773535924,2323393.9605868338,1700626.2805481141,104117.28921,518650.39082871954,"Summer",140482.32936999999,60571.385884000003,117566.82878,2256.6498256,56680.265411,39861.426797,7786.6143128000003,19170.103298999999,0]
[1547,"2011-07-12","KW60MN09 ",7334204.095193889,2323080.3414571984,1674929.9198654538,130310.28055600001,517840.1410357444,"Summer",129134.58448999999,64844.233978999997,116545.43561,2237.0445786,42042.803465999998,39362.765289000003,9677.2745503000006,37386.503514000004,0]
[1548,"2012-05-29","KW60MN15 ",7282227.9979168819,2322864.7595471437,1684057.0675763907,117789.13894578804,521018.55302496493,"Summer",120328.13391,82076.549324000007,108316.46120000001,2079.0925962000001,56269.869280999999,40382.785098,8194.5353259999993,23500.076656000001,0]
[1549,"2012-05-29","KW60MN14 ",7210969.6672922028,2322813.5144212218,1683335.6428332848,122998.40989639141,516479.46169154532,"Summer",100710.90459999999,78607.439666000006,110338.81359999999,2117.9108686999998,56634.665841000002,42374.408584999997,8246.5841622999997,23352.419869000001,0]
[1550,"2012-04-17","KW60MN19 ",6564857.8535703449,2322775.1660577431,1731302.7077236818,109257.49832424244,482214.96000981866,"Summer",171288.60050999999,54496.289193999997,100409.98715,1927.3308836000001,35202.867978000002,33360.525347000003,6420.1821042000001,7467.6597125999997,0]
[1551,"2011-10-05","KW60MN22 ",6576796.2707012305,2322591.7404754045,1723916.6469096891,101705.01220500001,496970.08136071538,"Summer",180942.42829000001,55324.091098999997,107633.63576999999,2065.9860262000002,56315.468850999998,37859.372253000001,7012.1641909999998,19170.103298999999,3053.2304963000001]
[1552,"2011-08-02","KW60MN23 ",6568529.3996646609,2322526.8571593002,1683155.8544412164,127662.26859200001,511708.73412608373,"Summer",190186.23963,66621.511264000001,95551.082662000001,1834.0660903999999,56497.867130999999,34051.069866999998,8268.7715769000006,32736.852360000001,3053.2304963000001]
[1553,"2011-10-12","KW60MN14 ",6815766.2176348828,2322249.6522167027,1741605.0045764111,93694.044561000002,486950.60307929147,"Summer",112013.02262,68223.965274999995,136042.39439999999,2611.2811648000002,35795.662386999997,45434.843889999996,9926.3369946999992,19170.103298999999,0]
[1554,"2011-08-15","KW60MN22 ",7046492.6448811125,2322179.635965561,1722398.2967235879,124839.912407,474941.4268349731,"Summer",200130.76509999999,57137.868498000003,88549.146685,1699.6666364,44915.576371000003,32273.163282000001,7358.5966426000005,50115.399309,3053.2304963000001]
[1555,"2011-08-28","KW60MN12 ",7448965.7619667882,2321851.2789232573,1608098.3204817146,119032.090568,594720.86787354248,"Summer",224877.41810000001,72465.835833999998,93657.163314999998,1797.7130408,55084.280463000003,27808.422008000001,7629.3149242,43343.639322000003,0]
[1556,"2012-06-22","KW60MN14 ",7841402.6528852936,2321626.5234549181,1663221.2662650056,124087.19205298286,534318.06513692939,"Summer",118191.65214999999,81749.189121999996,122811.17711999999,2357.3130645000001,57090.661540000001,45727.996797,9224.0865398000005,37318.465499999998,0]
[1557,"2012-06-13","KW60MN14 ",7403593.3655037377,2321626.3055115761,1674082.5477993863,131241.54253013336,516302.2151820563,"Summer",112793.48042000001,79672.140425999998,120704.05903,2316.8677472999998,56497.867130999999,42480.407740000002,10118.903301,31930.580479,0]
[1558,"2012-05-15","KW60MN09 ",7019511.858155991,2321568.5426013609,1682675.6585367359,133354.20969838614,505538.67436623876,"Summer",121555.57597000001,73004.779725999993,116176.43084,2229.9616746000002,45736.368629999997,37138.736778999999,10064.99733,21356.368259999999,0]
[1559,"2011-08-19","KW60MN10 ",7421938.0976268444,2321387.9017013581,1695381.3628456299,129462.078947,496544.45990872808,"Summer",133523.39043,75198.810035999995,104508.95436,2006.0089743999999,55221.079172999998,37809.578542000003,8912.3115529999995,40503.709544999998,0]
[1560,"2012-05-29","KW60MN12 ",7041537.0006472245,2321283.0037963819,1691965.3771400871,120940.25964125388,508377.36701504089,"Summer",108216.96314000001,77416.458729000005,106141.82855000001,2037.3513633,56178.670141000002,38380.860016999999,7872.7450226999999,22919.569382999998,0]
[1561,"2011-10-25","KW60MN15 ",6643279.9853204358,2321270.818075092,1726156.4709317558,88438.945502999995,506675.40164033609,"Summer",95563.961469999995,67095.770126999996,135471.79822999999,2600.3287919999998,55403.477453,45491.859298000003,8445.5734087000001,19170.103298999999,0]
[1562,"2011-10-17","KW60MN13 ",6814992.1177112665,2321028.816352339,1714422.5760297193,91573.534232000005,515032.70609061996,"Summer",124680.07799999999,66045.898543000003,132648.63391,2546.1392443,56406.667991000002,45109.701925000001,9664.2932366999994,19170.103298999999,0]
[1563,"2011-08-31","KW60MN09 ",7274287.3379198173,2320655.332666215,1699374.4156007676,128446.321625,492834.59544044716,"Summer",119990.45273999999,60666.987391000002,105816.28962,2031.1027693999999,56041.871432,38654.121979000003,9288.4649157000003,33394.400393999997,0]
[1564,"2012-06-30","KW60MN17 ",7974185.7214537645,2320615.9303196985,1630768.0655282475,124279.65778761238,565568.20700383838,"Summer",177341.05402000001,72136.762780999998,105996.12678999999,2034.5546743,55585.875732,34289.896547999997,6962.9814683000004,36548.854255999999,0]
[1565,"2012-04-12","KW60MN13 ",6700859.2302400861,2320614.8776944443,1744430.1607536641,106545.78509333206,469638.93184744794,"Summer",131960.30212000001,80188.585875999997,115850.44683,2223.7045376999999,52302.706698000002,36394.502379999998,9201.4335728999995,7467.6597125999997,0]
[1566,"2011-08-22","KW60MN23 ",6896481.1737060156,2320530.8008238347,1698528.4786503715,125121.440714,496880.88145946321,"Summer",171922.10907999999,60526.395428000003,88035.756070999996,1689.812302,57136.261109999999,36448.527773000002,7633.6013990000001,53812.890992000001,3053.2304963000001]
[1567,"2011-07-10","KW60MN13 ",7457501.6356880954,2320235.9256720152,1660348.8836049798,130962.55813900002,528924.48392803548,"Summer",186240.60248,51145.743849999999,90556.828471999994,1738.2033120999999,53214.698097,28255.378923,6449.7015566999999,32250.757195999999,0]
[1568,"2011-07-16","KW60MN17 ",8191468.4843782885,2319675.7630655272,1641447.130690848,125741.69116900001,552486.94120567909,"Summer",204655.68852,63681.656481999999,90069.284079999998,1728.845086,55677.074871999997,32888.799937000003,6583.3948633999998,43847.671307999997,0]
[1569,"2011-07-16","KW60MN18 ",8222456.5111696227,2319475.3013818134,1637162.0687755255,129122.01942600001,553191.21318028762,"Summer",211695.96093,61054.679794999996,95879.664298999996,1840.3730879,55996.271862000001,31943.850770000001,6613.6642793999999,44104.387088000003,0]
[1570,"2011-09-21","KW60MN12 ",6688767.1933369832,2319363.4010109887,1714288.5026818595,95082.017737000002,509992.88059212937,"Summer",112150.6663,81585.661666999993,135063.32316,2592.4882708999999,49201.935943999997,39964.922431999999,11113.974806,30217.333901999998,0]
[1571,"2012-04-10","KW60MN13 ",6623440.2981903702,2319339.9915670189,1726723.1318365627,112491.07186121655,480125.78786923969,"Summer",129882.45168,77251.719746000002,119393.27490999999,2291.7077530000001,56497.867130999999,38122.973275999997,9366.9470108999994,7467.6597125999997,0]
[1572,"2012-06-27","KW60MN20 ",7764084.5039657289,2319312.2457811674,1666033.4157384422,131673.19273298557,521605.63730973966,"Summer",154244.11147,65041.341990000001,103952.35569,1995.3252782,55631.475301999999,40332.990570000002,7475.9160241,35664.612501000003,0]
[1573,"2012-06-13","KW60MN19 ",7515851.0611813702,2319230.821547884,1672057.7611867378,129606.02583877741,517567.03452236875,"Summer",132851.70579000001,66994.792260999995,101276.73278999999,1943.967731,56178.670141000002,38996.844784000001,7682.8653815999996,32670.024100999999,0]
[1574,"2011-10-20","KW60MN12 ",6783280.9538729796,2318991.7861737753,1718228.0745632742,92987.699389000001,507776.01222150127,"Summer",95011.754564000003,73000.487957999998,135375.72982000001,2598.4847960000002,57181.860679999998,47535.279006999997,9043.4045348,19170.103298999999,0]
[1575,"2011-09-16","KW60MN14 ",6637212.3304107031,2318763.9371849271,1695751.7478786979,92706.309140999991,530305.8801652292,"Summer",97183.275208000006,82135.827464000002,135927.01599000001,2609.0665208,55449.077022999998,40510.661371000002,9068.8389711,30217.333901999998,0]
[1576,"2011-10-10","KW60MN16 ",6787942.103711647,2318710.2196393572,1727073.2401853125,94619.29738399999,497017.68207004486,"Summer",148577.81701,64339.265915999997,129575.30253,2487.1478364999998,48654.741105000001,42376.763124999998,7595.5310061,19170.103298999999,0]
[1577,"2011-10-28","KW60MN21 ",6661253.9088893142,2318497.8483023471,1669445.538835675,101246.174164,547806.13530267228,"Summer",194770.05932999999,62555.709249,121741.48513,2336.7807401999999,56224.269711000001,38144.474142999999,7013.9925443000002,19170.103298999999,3053.2304963000001]
[1578,"2011-10-05","KW60MN16 ",6808773.8620136799,2318437.2896290119,1712619.0950737756,97347.026998999994,508471.16755623627,"Summer",135618.09260999999,70512.562311000002,127732.27872,2451.7717071000002,56178.670141000002,39693.821244999999,9125.3554244000006,19170.103298999999,0]
[1579,"2011-10-11","KW60MN12 ",6852159.0840005567,2318202.7893369985,1727173.2411534628,97782.687907999993,493246.8602755355,"Summer",126015.45594,74880.163520999995,131291.05452999999,2520.0810329000001,41222.011208000004,43889.600269000002,9800.5665552999999,19170.103298999999,0]
[1580,"2011-10-24","KW60MN14 ",6914788.7500839643,2318179.7918686871,1715566.6422794517,89983.048484000014,512630.10110523534,"Summer",104472.79428,67113.046461999998,137857.90078,2646.1291078999998,55494.676592999997,46774.973832999996,9565.5824365999997,19170.103298999999,0]
[1581,"2012-05-23","KW60MN14 ",7176091.1060480773,2318139.4788018041,1703324.9735039682,122849.41254369103,491965.09275414486,"Summer",115451.43322000001,78265.086395000006,122118.84063000001,2344.0239332000001,56999.462399999997,44963.659819,8332.7673531,21356.368259999999,0]
[1582,"2012-05-29","KW60MN09 ",6827720.8818710055,2318135.7724862178,1701120.9938559784,122782.56109967182,494232.21753056766,"Summer",112151.23863000001,61389.701228999998,97217.120932999998,1866.0450509,55585.875732,36081.062921999997,7231.9577347000004,23319.254298,0]
[1583,"2011-07-16","KW60MN16 ",8079886.2411518237,2318127.5097794533,1640190.2644347667,126184.33082100001,551752.91452368675,"Summer",191223.09813,63178.324142999998,89219.697948999994,1712.5376087,55722.674442000003,32907.258373999997,6615.9801942000004,43825.186983,0]
[1584,"2012-05-17","KW60MN16 ",7421084.6336346632,2318026.4210004695,1669709.0854673733,119063.6237646096,529253.71176848677,"Summer",129902.71614999999,86857.426441000003,117414.48538,2253.725653,55221.079172999998,38535.422369,8627.5555760999996,21356.368259999999,0]
[1585,"2012-06-15","KW60MN11 ",7256429.1420567892,2318002.1957436167,1681353.7495011103,134645.60349030537,502002.84275220102,"Summer",131015.51343000001,72683.179908999999,119694.2692,2297.4852218999999,49566.732502999999,41217.859371999999,8519.7842660999995,29751.510856000001,0]
[1586,"2012-06-22","KW60MN15 ",7929052.4931117827,2317994.918661742,1659634.1531844547,124698.3949511299,533662.37052615744,"Summer",145076.46148,81987.111510000002,120343.89851,2309.9546054000002,56725.864979999998,42407.886947999999,9197.5550923999999,36007.960621999999,0]
[1587,"2011-08-05","KW60MN09 ",6958839.922984113,2317604.9739466589,1679374.636223732,120588.721546,517641.61617692653,"Summer",137587.86939000001,74595.716180999996,106696.86912,2048.0051524999999,54947.481754,37673.084679,8377.1320235000003,32450.721041000001,0]
[1588,"2011-09-14","KW60MN22 ",6501432.0718720444,2317563.1005325918,1670595.1975706832,109528.847346,537439.05561590882,"Summer",213827.73692,64586.528644999999,106232.31174,2039.0881532000001,52302.706698000002,37172.849154000003,8051.8678474999997,26970.325830999998,3053.2304963000001]
[1589,"2012-06-29","KW60MN21 ",7669571.3166272342,2317197.2439103103,1636364.3520279003,127907.8635227152,552925.02835969499,"Summer",151204.14366999999,70717.744502000001,119709.18784,2297.7715794999999,55813.873582,39211.059090000002,7574.5658795999998,38185.039997,224.65274199999999]
[1590,"2011-09-26","KW60MN19 ",7147012.0518730767,2317072.5665466636,1699874.3390227396,92283.292379999999,524914.93514392385,"Summer",173722.11791,57361.128817999997,127343.65138,2444.3121556000001,56315.468850999998,37984.130537999998,8321.9157326000004,30217.333901999998,407.5214593]
[1591,"2012-05-21","KW60MN19 ",7619872.5210601091,2316813.4782267259,1698043.3116492948,131774.38647562717,486995.78010180383,"Summer",147431.70840999999,49580.675302000003,86188.723742999995,1654.3592306,56224.269711000001,41148.413245000003,6314.9484806,21356.368259999999,0]
[1592,"2012-05-18","KW60MN10 ",6954896.5155371968,2316717.1577335838,1683584.1499634695,128735.80143144068,504397.20633867348,"Summer",112357.66705,63560.648222000003,113592.65677,2180.3671304,49885.929492000003,40799.075099000002,8247.7201122000006,21356.368259999999,0]
[1593,"2012-06-16","KW60MN22 ",6920936.472052197,2316494.2473696838,1680271.4266901207,116573.42230141169,519649.39837815129,"Summer",160462.48564999999,65881.575721000001,88423.219742999994,1697.2495174000001,55403.477453,32002.00649,6534.1308808000003,37878.774911,3049.4563644999998]
[1594,"2012-06-30","KW60MN18 ",8005981.6360724671,2316439.4616747517,1624135.4632691834,126076.22121421347,566227.77719135466,"Summer",180890.88743,66653.030291999996,106051.07460000001,2035.6093762,55950.672292000003,33781.259504000001,6776.4893605999996,36418.355972999998,0]
[1595,"2012-05-22","KW60MN08 ",7075926.9061739985,2316367.8898032205,1696582.3990689402,130801.95622458047,488983.53450969962,"Summer",169370.97931,51246.834193000002,100366.85189000001,1926.502919,56178.670141000002,39923.962045,7397.1173531000004,21356.368259999999,0]
[1596,"2012-04-10","KW60MN07 ",6486094.5390627449,2316303.756761278,1734468.733510609,110543.99286487841,471291.03038579086,"Summer",161641.02588999999,50721.405112,90078.084703999994,1729.0140105999999,54263.488205000001,34505.716783000003,7588.7948758000002,7467.6597125999997,1119.0937887]
[1597,"2011-07-26","KW60MN23 ",7183921.6828004625,2316256.8456105473,1687642.5023378804,119077.68632200001,509536.65695066669,"Summer",190094.01084,60007.007922999997,79818.696179999999,1532.0890142999999,56497.867130999999,35364.982082000002,7290.8459691999997,42591.957030999998,3053.2304963000001]
[1598,"2011-09-01","KW60MN22 ",7028908.1079124836,2316227.1618293249,1678978.5483159074,121587.60533399999,515661.00817941764,"Summer",207324.61085,63131.983973000002,102434.81455,1966.1966626999999,55996.271862000001,35972.165348000002,7721.8296363999998,49164.530766000003,3053.2304963000001]
[1599,"2011-10-04","KW60MN15 ",7097737.4533471148,2316182.0907341246,1711887.9872360509,102467.145741,501826.95775707369,"Summer",108416.82045,73785.799589999995,130034.80266,2495.9677640999998,55175.479603,43272.224145,9841.6029440999991,19170.103298999999,0]
[1600,"2012-04-18","KW60MN13 ",6735043.012839308,2316002.5780424629,1737349.268395826,107169.78210800234,471483.52753863466,"Summer",100409.43876,76179.029966000002,118652.42912,2277.4875044,34792.471849000001,37103.536212999999,9341.7512771000002,7467.6597125999997,0]
[1601,"2011-07-26","KW60MN09 ",7679295.7717019692,2315909.5075791697,1701146.3377835124,118405.510232,496357.6595636573,"Summer",129225.35068,60728.733579,103078.91307,1978.5598848,55403.477453,38728.356188999998,9713.2524938999995,38287.781204999999,0]
[1602,"2011-10-20","KW60MN21 ",6677468.1281126654,2315897.3417709814,1689895.4944373525,101482.71704300001,524519.13029062864,"Summer",179548.59922,62985.406671999997,125494.79145999999,2408.8240040999999,57181.860679999998,43579.068646,7079.7929729999996,19170.103298999999,3053.2304963000001]
[1603,"2012-05-11","KW60MN11 ",6874990.8553974032,2315862.129026046,1687020.9717477863,132500.77940040859,496340.37787785137,"Summer",109242.89451,66019.100298999998,107021.7029,2054.2402112,57409.858528999997,37746.976498000004,8133.4175149000002,21356.368259999999,0]
[1604,"2011-09-26","KW60MN14 ",7228103.2541690422,2315466.8036683723,1703968.466262277,89628.318624000007,521870.01878209517,"Summer",115923.97064,67594.518259999997,140918.85639,2704.8829673,56771.464549999997,41467.361513999997,11702.156285999999,30217.333901999998,0]
[1605,"2012-06-18","KW60MN13 ",7949283.0401202971,2314719.8540958483,1666404.469136097,137351.70065132968,510963.68430842133,"Summer",128516.69822000001,80253.267691000001,108131.08405,2075.5343536,56999.462399999997,44555.543470999997,9373.0770759000006,33460.845602000001,0]
[1606,"2012-04-11","KW60MN20 ",6804802.3042268958,2314558.7405609386,1716576.5665580789,113349.49778809947,484632.67621476005,"Summer",185766.04071999999,59284.451550999998,100208.28415000001,1923.4592723999999,54993.081323999999,32255.689403,6378.8409889000004,7467.6597125999997,814.61885877999998]
[1607,"2011-10-06","KW60MN18 ",6822921.049880553,2314541.2567767631,1717281.6581015757,94964.901261999999,502294.69741318753,"Summer",165166.70514999999,55116.726870999999,117164.18282,2248.9211921000001,56178.670141000002,40790.902095999998,7380.1712199000003,19170.103298999999,0]
[1608,"2012-04-09","KW60MN21 ",6653002.1303853998,2314369.1807525246,1718857.9258997764,112786.73570365197,482724.51914909616,"Summer",155369.37268,53725.731219000001,93515.261658999996,1794.9892934,56315.468850999998,32971.124091999998,6642.0460892000001,7467.6597125999997,3053.2304963000001]
[1609,"2011-10-17","KW60MN07 ",6684724.6689398717,2314319.247461882,1680719.0335948002,90707.163879999993,542893.04998708179,"Summer",199533.20689999999,51286.149424000003,113839.64104,2185.1078980000002,55266.678742999997,39283.752382999999,7021.6513166000004,19170.103298999999,3053.2304963000001]
[1610,"2012-06-18","KW60MN15 ",8085999.4106705254,2314317.1476718676,1668647.4340733935,134031.16512142742,511638.54847704648,"Summer",132963.62674000001,78091.134007999994,108496.1228,2082.5411310999998,57318.659389,45035.749090999998,8999.2599432000006,32287.741310000001,0]
[1611,"2012-05-08","KW60MN17 ",6942266.4808603479,2314172.3806121014,1676862.1522436033,116366.77834676389,520943.4500217344,"Summer",124892.83378,84752.578462999998,107549.63311,2064.3736276,56771.464549999997,36281.966639999999,8276.5099164000003,21356.368259999999,0]
[1612,"2011-09-30","KW60MN17 ",7593452.7459021378,2313582.3253030004,1689362.7604434986,94419.870957000006,529799.69390250207,"Summer",122032.64959,80632.807182000004,137712.17318000001,2643.3319230000002,56087.471001999998,39090.779710000003,8925.8007433000002,30217.333901999998,0]
[1613,"2011-08-31","KW60MN20 ",7954498.2931552092,2313498.8179420223,1693453.8230894962,120538.16426600001,499506.8305865259,"Summer",175293.30351999999,69482.655241999993,102551.09401,1968.428602,56269.869280999999,34637.477389,7583.8092244999998,34900.341306000002,814.61885877999998]
[1614,"2011-10-11","KW60MN13 ",6853209.0955017777,2313339.1033662274,1725198.8598304598,92550.149893999987,495590.09364176751,"Summer",113226.53816,72173.349663000001,130698.58116,2508.7087357,41495.608627000001,45216.110588000003,9827.7480837999992,19170.103298999999,0]
[1615,"2012-04-19","KW60MN14 ",6628435.0128318137,2313170.7203736734,1739431.4311575377,102539.67894563357,471199.6102705021,"Summer",141572.80606,76661.607243999999,120269.45755000001,2308.52574,34792.471849000001,38504.606127999999,9036.2553318999999,7467.6597125999997,0]
[1616,"2011-10-27","KW60MN22 ",6670510.0299977716,2313103.0840232288,1663168.3881304504,94736.884909,555197.81098377833,"Summer",243072.15979000001,61806.190738999998,114409.28758,2196.0420430999998,56224.269711000001,38856.694769000002,7279.6117500999999,19170.103298999999,3053.2304963000001]
[1617,"2011-07-03","KW60MN13 ",7808958.7198809963,2312677.8218374969,1629925.6751486554,130618.46630299999,552133.68038584164,"Summer",228277.98118999999,51914.037841999998,94717.734316000002,1818.0702911000001,53989.890785000003,26097.680469999999,6664.4722051999997,44898.776156,0]
[1618,"2012-05-25","KW60MN13 ",7079645.3295569131,2312528.755682257,1702317.1393252811,117598.15756100771,492613.45879596833,"Summer",94505.375891000003,75376.316669000007,113827.34058,2184.8717953999999,54901.882184000002,46342.519155000002,7926.5257165000003,25271.326251999999,0]
[1619,"2012-06-15","KW60MN22 ",6942006.1262521893,2312313.0508852224,1683047.6192988949,129473.05652108372,499792.37506524369,"Summer",135199.72448999999,68173.833052000002,81414.860648999995,1562.7267741000001,55722.674442000003,38112.646868000003,6758.5105463999998,34030.560040999997,3049.4563644999998]
[1620,"2012-05-29","KW60MN17 ",7285695.7530667959,2311981.0480043399,1662250.9882245269,123604.43597352431,526125.62380628858,"Summer",142359.48522,73136.694957999993,95351.652329000004,1830.2381023,56087.471001999998,36330.586764,7495.9822093000002,23213.491017,0]
[1621,"2011-09-03","KW60MN18 ",6983680.7324573938,2311881.6966024358,1683023.5015663106,122411.555185,506446.63985112502,"Summer",191364.05916999999,67754.313112999997,90665.926840999993,1740.2974131000001,55221.079172999998,29181.852760000002,6831.6243905000001,38566.636853000004,0]
[1622,"2011-10-03","KW60MN15 ",6990346.7725074645,2311797.5990210776,1684978.4677663201,101524.52171100001,525294.6095437574,"Summer",111451.05443,73725.934966999994,131943.03907,2532.5956242000002,56634.665841000002,43121.817022000003,10220.600412,19170.103298999999,0]
[1623,"2011-08-06","KW60MN21 ",7124897.6787966387,2311739.8345487867,1670780.8756511339,124254.26717000001,516704.69172765274,"Summer",180196.12969999999,74919.705312000006,91729.344649999999,1760.7093067999999,53077.899386999998,27761.822542999998,7632.9310025000004,32929.911265000002,1730.5880082000001]
[1624,"2012-05-21","KW60MN18 ",7780652.3768144092,2311625.6658977713,1687447.463586946,130736.33052995775,493441.87178086751,"Summer",144242.61867,57497.247444000001,89333.069057000001,1714.7137233000001,56862.663690000001,42742.060462000001,6517.5944347000004,21356.368259999999,0]
[1625,"2012-06-12","KW60MN20 ",7272370.8701325795,2311620.9733901061,1684750.9034690282,133561.52898316502,493308.54093791288,"Summer",147650.62195999999,62750.953369000003,99591.043936999995,1911.6115852,56224.269711000001,44405.154296000001,7445.9716485999998,31701.984248000001,0]
[1626,"2012-04-16","KW60MN13 ",6679358.7079741247,2311291.4061406739,1732266.6266741022,106609.9146546207,472414.86481195124,"Summer",145915.66717999999,72564.861436000007,113714.28789000001,2182.7017928,35750.062816999998,36772.620775000003,8703.7573076999997,7467.6597125999997,0]
[1627,"2012-06-13","KW60MN12 ",7190171.0560975,2310981.3011340275,1673010.2519807061,130812.20216174588,507158.84699157561,"Summer",113903.84003000001,77402.818587000002,111130.23583000001,2133.1019123999999,56497.867130999999,40770.043816999998,9735.6599884999996,31930.431258000001,0]
[1628,"2011-10-04","KW60MN17 ",7086526.96043579,2310720.18032555,1703503.2127318881,107250.175452,499966.79214166204,"Summer",130074.19048,71574.971770999997,126656.76324,2431.1276032000001,53351.496806000003,41281.346218999999,7931.2574295000004,19170.103298999999,0]
[1629,"2011-10-14","KW60MN13 ",6820678.2794521311,2310695.8725706711,1714853.1433354986,90570.289913000001,505272.43932217226,"Summer",156255.72083000001,69028.129514999993,129588.07883,2487.3930727000002,52120.308419000001,44819.995236000002,7731.9668432999997,19170.103298999999,0]
[1630,"2012-04-19","KW60MN07 ",6538325.2323407214,2310181.5419772896,1705922.7033708848,95972.460533448218,508286.37807295652,"Summer",213885.21298000001,47967.573013000001,93622.896663000007,1797.0553057,35157.268408000004,33854.161225999997,7371.5491761000003,7467.6597125999997,309.52124151999999]
[1631,"2011-09-04","KW60MN19 ",7117559.2365014087,2310077.1697688992,1700571.0491475936,112626.11750900002,496880.00311230577,"Summer",189211.85973,56891.653403999997,86627.436394000004,1662.7801503000001,49338.734653,25003.607540000001,5298.1838950000001,34172.363373,0]
[1632,"2011-07-01","KW60MN13 ",7415649.3204558808,2309828.8383741514,1670048.8217890041,128275.50916199999,511504.50742314744,"Summer",145869.30901,74098.803016000005,116764.21992,2241.2440588999998,56178.670141000002,38778.226909999998,7233.8622696000002,42955.458607,0]
[1633,"2012-06-27","KW60MN13 ",7610811.8640909269,2309669.0411341926,1671882.4208504236,130233.65125131451,507552.96903245471,"Summer",123939.44965,81213.042673000004,108897.35223999999,2090.2425751999999,55540.276163000002,43978.405567000002,9790.3277722000003,37476.315362000001,0]
[1634,"2012-05-17","KW60MN08 ",6852574.658290959,2309483.0102716764,1695947.8224529384,128767.12843710903,484768.0593816287,"Summer",151111.46973000001,51834.726093999998,97224.183409999998,1866.1806125000001,54445.886484000002,35121.011210999997,8129.1902931000004,21356.368259999999,0]
[1635,"2011-10-03","KW60MN08 ",6643163.5268182782,2309373.4696205864,1714164.9207127246,104773.93146000001,490434.61744786194,"Summer",156432.97138,55576.577539999998,109238.47502,2096.7902949999998,54172.289064999997,39011.593902000001,7562.8237837999995,19170.103298999999,95.625482946999995]
[1636,"2012-06-11","KW60MN14 ",7148341.7605192149,2309192.28261489,1667436.6426026258,127688.80824175739,514066.83177050704,"Summer",127416.38606,74696.387147000001,117426.3085,2253.9525932000001,53853.092076000001,43006.287245,9676.3400578000001,30391.424572,0]
[1637,"2012-06-18","KW60MN12 ",7850875.0319196647,2308873.2661304232,1665310.5559227387,138247.5711434634,505315.13906422094,"Summer",123167.01497,79126.480102000001,106340.64031,2041.1674780999999,56178.670141000002,43610.534765999997,8981.5045945000002,33389.371835999998,0]
[1638,"2011-07-02","KW60MN12 ",7654955.3829840338,2308485.4441338098,1637349.1121356294,135502.16295,535634.16904818045,"Summer",148051.93695999999,55618.778589000001,97728.792461000005,1875.8663881,55996.271862000001,30041.047278999999,6200.2734411000001,46360.867395000001,0]
[1639,"2011-09-29","KW60MN11 ",6958117.6120957825,2308322.3414609348,1711490.5884303183,92428.707355000006,504403.04567561642,"Summer",103956.52714000001,78916.467864000006,131671.58973000001,2527.3852588999998,51253.916590000001,40965.806360000002,8703.3713212999992,30217.333901999998,0]
[1640,"2011-09-26","KW60MN11 ",7006569.3721770933,2308115.3348093997,1701194.8050743926,96288.473117999994,510632.05661700701,"Summer",100680.27472,66420.554963000002,131306.05780000001,2520.3690148999999,56725.864979999998,40887.008590999998,10540.928032,30217.333901999998,0]
[1641,"2011-07-23","KW60MN14 ",7712777.2136490094,2307734.6898000413,1655734.4342438409,126755.678929,525244.57662720035,"Summer",186937.79788,70067.900741000005,111701.43323,2144.0658257999999,52257.107128000003,33446.474684000001,6616.9756324,43097.842788000002,0]
[1642,"2011-09-26","KW60MN18 ",7201322.0904701864,2307661.6782338768,1696142.6396698167,91510.748905999993,520008.28965806012,"Summer",172984.26637999999,57825.825601999997,127759.13829,2452.2872662999998,56771.464549999997,38593.236609,8783.4938566000001,30217.333901999998,0]
[1643,"2012-04-03","KW60MN18 ",6552648.3454379821,2307542.4605866317,1738055.8415260413,95208.468636775055,474278.15042381542,"Summer",160856.44524999999,56033.415456000002,93938.93303,1803.1215015,55357.877883000001,32782.522932,6714.0019764999997,7467.6597125999997,0]
[1644,"2011-07-09","KW60MN12 ",7544568.0582936238,2307489.9320933227,1656072.2820643713,138288.20232500002,513129.44770395133,"Summer",154640.47693999999,55636.520897000002,94281.223945000005,1809.6916432999999,55859.473151999999,31463.71875,6353.3473007000002,35512.824954999996,0]
[1645,"2012-04-05","KW60MN17 ",6521173.4418020416,2307311.3212349177,1719342.3399273076,98941.377171078813,489027.6041365313,"Summer",176498.41438999999,71553.811795000001,92945.232053,1784.0477954999999,49749.130783000001,32881.552515000003,7436.3914126999998,7467.6597125999997,0]
[1646,"2012-05-30","KW60MN09 ",6885421.219294236,2307123.6843107007,1678632.6330716205,128908.38816169791,499582.66307738243,"Summer",118941.41648,57224.163407,96019.035153000004,1843.0482575999999,57181.860679999998,38474.680664,7829.8768928,25345.835294,0]
[1647,"2011-09-10","KW60MN12 ",6918866.4712886866,2306862.1297159595,1638765.3039243333,104282.894071,563813.93172062642,"Summer",170080.06630999999,76620.244946000006,118887.10042,2281.9919292,54582.685193999998,35658.108088000001,7323.0859452000004,36380.480192000003,0]
[1648,"2012-05-22","KW60MN17 ",7633609.0007648449,2306707.0689314748,1675523.6356152738,125521.3317448075,505662.10157139332,"Summer",110888.46092,71183.676917000004,94884.553696999996,1821.2723246999999,57273.059820000002,41876.901641999997,6773.4251750000003,21356.368259999999,0]
[1649,"2012-04-17","KW60MN14 ",6686985.4179992434,2306390.6654959363,1740001.1238530811,103951.45816112394,462438.08348173113,"Summer",126673.65919000001,78644.362370000003,110840.06613000001,2127.5322170999998,35339.666687999998,38116.76556,9482.5904011000002,7467.6597125999997,0]
[1650,"2011-09-26","KW60MN15 ",7225324.9127127463,2306381.2941639484,1695918.974489636,88607.734675999993,521854.58499831246,"Summer",99985.199038999999,70566.856151,137010.30048000001,2629.8597479,56133.070571999997,40967.006745999999,11261.177616999999,30217.333901999998,0]
[1651,"2012-06-22","KW60MN12 ",7693139.2643524613,2306217.6660703383,1645610.5160872496,129470.29055323616,531136.85942985245,"Summer",132015.59487999999,75933.335477000001,120319.00949,2309.4768703,57181.860679999998,48554.087407999999,9363.9759355000006,37849.928180000003,0]
[1652,"2011-09-27","KW60MN09 ",6676147.5306493454,2306093.0996403354,1707369.2834241334,95125.839334999997,503597.97688120214,"Summer",105160.71593000001,57483.547850000003,133873.82764,2569.6563643,56361.068421000004,42127.487519000002,9692.3076837000008,30217.333901999998,0]
[1653,"2011-09-26","KW60MN17 ",7258629.0835865047,2305881.9228930878,1693479.3830163362,86270.897140000001,526131.6427367517,"Summer",132924.66638000001,69075.933481999993,133278.34682000001,2558.2263401999999,56680.265411,38847.993948000003,9142.5825822999996,30217.333901999998,0]
[1654,"2011-07-14","KW60MN10 ",7645196.1417171396,2305839.2518101991,1668934.576250795,125621.325039,511283.35052040423,"Summer",133870.62091,68818.176728999999,113028.41264,2169.5366825000001,55494.676592999997,39787.784828999997,9271.2174426000001,36007.101477999997,0]
[1655,"2011-08-29","KW60MN09 ",7074149.1271952651,2305715.2195330281,1649149.413746797,126010.802876,530555.00291023077,"Summer",139783.68197000001,71126.087526000003,111017.59824000001,2130.9398775,56497.867130999999,37666.661415000002,10207.192483000001,37762.190990000003,0]
[1656,"2011-08-13","KW60MN16 ",7896343.6263525272,2305653.2088325666,1618624.2727141385,126099.63925299999,560929.29686542833,"Summer",226700.60600999999,78930.765188999998,106875.81546,2051.4399582000001,49749.130783000001,30321.076346000002,7837.3206645,45989.996342999999,0]
[1657,"2012-06-12","KW60MN10 ",6920738.2071131868,2305161.6936942358,1652897.9794329547,132700.19656986749,519563.5176914137,"Summer",138336.48907000001,73989.150026000003,124337.36146,2386.6075827999998,56178.670141000002,45295.395978,8996.9643436999995,30863.8318,0]
[1658,"2011-07-13","KW60MN20 ",7791011.9439102812,2305063.9823447899,1629432.8894663737,132138.85720999999,543492.23566841614,"Summer",187260.72583000001,60857.497872,102775.19736999999,1972.7301794,54035.490355000002,37154.350972,7045.5011781000003,35237.090941000002,0]
[1659,"2011-08-30","KW60MN22 ",7300176.0793117099,2304879.9028300266,1673148.4781591974,125823.89445699999,505907.53021382919,"Summer",197869.63351000001,67382.222756999996,97095.234891999993,1863.7054955000001,56634.665841000002,35484.054430999997,7966.6665518,37014.690256000002,3053.2304963000001]
[1660,"2012-05-24","KW60MN16 ",7022285.0793860331,2304707.6546239406,1685024.976663491,119593.73568775054,500088.94227269909,"Summer",128292.32640999999,77236.638302000007,113122.05899,2171.3341879999998,55950.672292000003,44235.096009000001,8262.3012354000002,21356.368259999999,0]
[1661,"2012-06-29","KW60MN11 ",7922813.8847478693,2304576.3008829006,1647984.1698037516,134552.88550410877,522039.24557504,"Summer",120890.37767,81593.808153000005,128350.02509,2463.6291098000002,55859.473151999999,41821.666120000002,8482.6280492999995,37798.369705999998,0]
[1662,"2012-04-20","KW60MN09 ",6532195.9855290726,2304426.4749978795,1734875.5677250354,101932.94606528834,467617.96120755584,"Summer",157003.98016000001,66812.076375999997,110393.9758,2118.9696856999999,28636.529910000001,35946.337036999998,9174.5804692999991,7467.6597125999997,0]
[1663,"2012-05-18","KW60MN09 ",6822538.6417555595,2304349.8557085185,1688070.143846865,126946.22049435363,489333.49136729963,"Summer",111070.55502,59750.240961000003,108418.22001,2081.0458173000002,55038.680892999997,39956.119557999999,7982.0382689999997,21356.368259999999,0]
[1664,"2012-06-28","KW60MN20 ",7982782.4161906121,2304233.8547038976,1661922.8469236458,132188.46854627333,510122.53923397849,"Summer",173600.10712,62658.035221999999,106451.84714,2043.3020503,55768.274012000002,47979.774107999998,7469.2120593999998,34786.483784999997,0]
[1665,"2011-10-28","KW60MN18 ",6691175.4996572854,2303869.8355095452,1663341.5685008969,92899.094367999991,547629.17264064797,"Summer",189280.55968000001,64429.918471999998,130391.78372000001,2502.8198772999999,56361.068421000004,40485.568013999997,7251.6988793,19170.103298999999,357.04420886999998]
[1666,"2011-09-30","KW60MN13 ",7352183.6034576343,2303860.8660464096,1693226.0942635722,95687.897142000016,514946.87464083743,"Summer",106389.38742,73597.471145999996,141447.88308999999,2715.0374302999999,56315.468850999998,41101.117720000002,9340.7152095000001,30217.333901999998,0]
[1667,"2011-09-29","KW60MN09 ",6788017.808567713,2303678.1434035609,1702184.0977487518,93071.279737000004,508422.76591780933,"Summer",150351.47777999999,58913.786427999999,120296.36731,2309.0422623999998,56953.862829999998,39477.069374999999,8319.2138326999993,30217.333901999998,0]
[1668,"2011-10-26","KW60MN06 ",6560337.1969256224,2302926.3704400109,1667401.5392103891,89038.346737,546486.48449262208,"Summer",218606.33721,47985.623827000003,113701.37931,2182.4540175000002,56953.862829999998,40718.422263,8330.7934076000001,19170.103298999999,3053.2304963000001]
[1669,"2012-05-18","KW60MN08 ",6751724.8186669163,2302848.2239340707,1690463.3774409352,126193.73089146154,486191.11560167384,"Summer",143014.74205999999,52395.829393,92490.850128999999,1775.3261101000001,55677.074871999997,38849.993911999998,7523.1146435999999,21356.368259999999,0]
[1670,"2011-09-04","KW60MN21 ",6919994.3260548189,2302814.4770234968,1693130.1771347825,114441.470352,495242.8295367143,"Summer",180576.06737999999,57604.464522000002,77938.496561000007,1495.9993095,53214.698097,24437.807820999999,6781.8322171,36456.921579000002,3053.2304963000001]
[1671,"2012-04-18","KW60MN21 ",6665643.8637075741,2302785.8745818343,1720467.7078020973,111871.88043993477,470446.28633980203,"Summer",194998.94613,62194.699398999997,90573.196815999996,1738.5174961,35476.465398,32113.178091000002,6717.8940011000004,7467.6597125999997,3052.8205720999999]
[1672,"2011-10-20","KW60MN13 ",6772928.9454959435,2302782.5732197389,1699740.0627299247,91889.402692999996,511153.10779681453,"Summer",100078.08494,70137.451167000007,134706.75490999999,2585.6440812999999,57592.256808999999,47860.524808000002,9824.3961015000004,19170.103298999999,0]
[1673,"2011-10-10","KW60MN09 ",6670113.9592239745,2302728.921394954,1703995.2283763932,93015.371960999997,505718.32105756103,"Summer",167641.35561,57404.796876,121604.0714,2334.1431367999999,53716.293365999998,41346.170106999998,7871.4499384999999,19170.103298999999,0]
[1674,"2011-07-13","KW60MN22 ",7463649.5369347082,2302725.1002033264,1640556.3948361317,141444.01701299998,520724.68835419446,"Summer",239784.32313,61478.648969000002,98195.262526999999,1884.8201007,54081.089925,35380.207027999997,7295.4777998,39964.916039000003,3053.2304963000001]
[1675,"2011-10-31","KW60MN07 ",6773931.4213340329,2302580.8086863323,1628120.9425982239,98934.207017000008,575525.65907110821,"Summer",241485.59564000001,60408.745384000002,119647.32855000001,2296.5842143999998,56817.064120000003,40992.907980999997,8245.1654949999993,19170.103298999999,0]
[1676,"2011-09-29","KW60MN10 ",6893836.098163249,2302177.8500998635,1714060.0204464856,92384.883551999985,495732.94610137818,"Summer",114403.24484,66233.177744999994,125816.08808,2414.9911686,56999.462399999997,40360.795815999998,8572.1767655000003,30217.333901999998,0]
[1677,"2012-05-08","KW60MN16 ",6973904.5774781406,2302128.5697081997,1670885.9031627385,115475.98687593981,515766.6796695214,"Summer",114923.63483,88132.333861000006,117305.48162999999,2251.6333681000001,56452.267561000001,37115.954078000002,9040.7618867000001,21356.368259999999,0]
[1678,"2011-07-20","KW60MN10 ",7550506.381617683,2302116.3923502616,1677446.9012456625,126961.70864999999,497707.78245459934,"Summer",110668.15896,64396.22062,113321.07227,2175.1541708999998,51937.910139,36993.273519000002,9550.8743436999994,46302.712630000002,0]
[1679,"2011-10-07","KW60MN18 ",6777102.5637751585,2301975.301314807,1651809.9137938973,98519.031920999987,551646.35559990979,"Summer",141979.66412,57311.279391999997,123470.32014,2369.9650599000001,56133.070571999997,40697.328041000001,6946.6278572000001,19170.103298999999,0]
[1680,"2011-07-19","KW60MN17 ",8522947.1880883519,2301880.1997579932,1636863.855936985,119018.513951,545997.82987000793,"Summer",167575.61266000001,79982.899149999997,112150.69602,2152.6892512999998,51618.713149000003,38144.781197999997,8313.9522359999992,44391.287875000002,0]
[1681,"2012-05-22","KW60MN18 ",7469695.8254608009,2301412.4125211881,1672315.3901205601,126396.90877289415,502700.11362773384,"Summer",129056.23983000001,60866.129611999997,86792.694348999998,1665.9522128999999,57045.061970000002,40114.222647000002,6328.9895624999999,21356.368259999999,0]
[1682,"2011-07-08","KW60MN09 ",7298364.7858038656,2301406.7185408832,1666058.7838086993,133692.09755000001,501655.83718218363,"Summer",136946.63446,59991.587443999997,107842.15609999999,2069.9884931000001,56224.269711000001,37491.780008000002,6842.1272685000004,39149.680813999999,0]
[1683,"2012-06-17","KW60MN17 ",7464992.6062732637,2301339.8312886069,1711124.2357935223,121228.73347119345,468986.86202389112,"Summer",144671.34159,54671.292429000001,81533.543455999999,1565.0048446999999,53077.899386999998,30040.281709999999,6292.1787015,32895.594967999998,0]
[1684,"2012-06-14","KW60MN20 ",7370201.1910777967,2301300.8808907992,1670517.7957008095,129847.49481384296,500935.59037614678,"Summer",119613.29188,55550.753018000003,100033.63271000001,1920.1069055999999,54765.083473999999,36955.232658000001,7150.9159440000003,32820.900656999998,0]
[1685,"2012-05-02","KW60MN10 ",6780689.5778897703,2301298.8137940788,1700343.2236517954,113448.67318145047,487506.91696083295,"Summer",125775.30284999999,64135.480037000001,114145.088,2190.9708341999999,56406.667991000002,34202.697137000003,9416.5191054000006,21356.368259999999,0]
[1686,"2011-09-26","KW60MN13 ",7160628.6233554194,2301007.179929297,1697885.6728371615,91036.297223000001,512085.20986913552,"Summer",108797.55303,64695.664244,136803.76633000001,2625.8954047000002,57090.661540000001,42225.058229000002,11310.014983999999,30217.333901999998,0]
[1687,"2012-05-01","KW60MN09 ",6688971.3056763588,2300941.7069128267,1698042.1596886758,104069.04410251071,498830.50312164053,"Summer",123549.97325,60227.517398000004,104041.68463,1997.0399127000001,55631.475301999999,33487.294557000001,9322.4028897999997,21356.368259999999,0]
[1688,"2012-05-17","KW60MN18 ",7282153.7476505535,2300820.4596854113,1655714.6547986518,118760.38590020053,526345.41898655891,"Summer",156094.11377,71658.923962999994,93879.803195999993,1801.9865272,55585.875732,36432.597605000003,7556.7834445999997,21356.368259999999,0]
[1689,"2012-04-05","KW60MN16 ",6532975.6775172781,2300687.6282764026,1717331.245752784,103109.31499683094,480247.06752678793,"Summer",169268.39571000001,73814.005392000006,95857.982648000005,1839.956917,49566.732502999999,33864.352383999998,7676.9333884999996,7467.6597125999997,0]
[1690,"2011-09-16","KW60MN09 ",6579119.8213803377,2300671.8734451747,1701028.9766042624,103736.226417,495906.67042391247,"Summer",123097.96526,61659.746804000002,115907.57132,2224.8010201000002,54810.683043999998,37840.569996999999,8475.7615648999999,30217.333901999998,0]
[1691,"2012-06-19","KW60MN14 ",7458623.8616258334,2300596.6481063515,1651574.9175306482,133315.85392476342,515705.8766509401,"Summer",131729.59236000001,77983.388292000003,111312.65364,2136.6033517000001,53077.899386999998,44500.734611,9481.3156321999995,35667.177387999996,0]
[1692,"2012-04-02","KW60MN14 ",6671640.6611652048,2300263.1127463495,1692754.0025215806,105499.96203238559,502009.14819238329,"Summer",159364.75954,70749.035363999996,104133.2061,1998.7966317999999,56133.070571999997,36083.452111999999,7965.3528451000002,7467.6597125999997,0]
[1693,"2011-07-22","KW60MN10 ",7756553.0143626807,2300093.3637543302,1677963.2308277304,128310.238543,493819.89438359987,"Summer",118671.09985,74445.208641999998,110041.32777,2112.2007431000002,54993.081323999999,40205.563793000001,7111.1390871000003,44519.28613,0]
[1694,"2012-04-13","KW60MN13 ",6552228.2935958831,2299874.4556771261,1741910.571616184,113900.07465166674,444063.8094092753,"Summer",141416.13793999999,68158.660021000003,112532.39202,2160.0157583,30414.913137,36684.998596999998,8075.7447964000003,7467.6597125999997,0]
[1695,"2011-07-16","KW60MN15 ",7959748.2512508873,2299869.908408246,1636044.6678313315,123988.66449700001,539836.57607991458,"Summer",163206.58366,63191.919295,92191.498571999997,1769.5801727,55540.276163000002,33701.640929000001,6896.8356837000001,44540.400890999998,0]
[1696,"2012-06-01","KW60MN10 ",7044620.3016598178,2299837.2862604009,1661962.2485603392,129819.35099319737,508055.6867068641,"Summer",101070.63081,73006.672539000007,114165.20707,2191.3570120999998,56680.265411,42074.462637999997,8883.3676940000005,28737.984469999999,0]
[1697,"2011-08-18","KW60MN09 ",7059677.1436592136,2299641.6444605845,1691718.8251378397,131513.09671400001,476409.72260874481,"Summer",126862.66356,68994.037997000007,97675.665361000007,1874.846634,50205.126482,35916.131709000001,9701.4900828999998,42040.188426000001,0]
[1698,"2012-06-14","KW60MN10 ",7131570.825656618,2299444.4826233019,1671779.9567763242,132604.59071319827,495059.93513377925,"Summer",112896.2124,68833.367436,102073.88584,1959.2687756,47332.353577000002,40956.033939000001,8643.1981603000004,30822.993941000001,0]
[1699,"2011-09-26","KW60MN16 ",7253839.1729836762,2299403.1611075071,1691806.3754822416,88976.197142999998,518620.58848226548,"Summer",116577.34093999999,69473.527000000002,138532.50627000001,2659.0778994000002,56497.867130999999,39415.021879,10923.541579000001,30217.333901999998,0]
[1700,"2011-09-16","KW60MN15 ",6532188.1850563167,2299349.9777385937,1680960.9100036416,93878.946197000012,524510.12153795222,"Summer",112605.5359,78412.563504000005,135325.44873,2597.5196698,55038.680892999997,39464.811615999999,8915.9276312999991,30217.333901999998,0]
[1701,"2012-06-19","KW60MN13 ",7461177.8291078322,2299311.4100486576,1652104.3592164575,133259.439353233,513947.61147896701,"Summer",127425.42664000001,81212.070556999999,105946.27021,2033.5976965,53807.492506000002,43726.310582999999,9558.5940606999993,35754.422440000002,0]
[1702,"2011-10-07","KW60MN15 ",6792613.0416274341,2299178.8580124043,1660961.6514354269,93888.976756999997,544328.22981997742,"Summer",128359.93472,71462.500450000007,134844.81352,2588.2940628000001,53944.291214999997,43551.576003000002,8210.0001534000003,19170.103298999999,0]
[1703,"2011-07-25","KW60MN23 ",7289044.7139358735,2299130.4715721938,1678261.417035416,118571.157779,502297.89675777766,"Summer",180785.10305999999,53804.880679000002,75249.779741000006,1444.3904296000001,56406.667991000002,34467.814883999999,7087.0657590000001,46875.146437000003,3053.2304963000001]
[1704,"2012-06-14","KW60MN11 ",7193236.3520598272,2298860.2107751635,1675144.1770824825,129819.29794512854,493896.73574755265,"Summer",132717.1569,73657.236147000003,108374.12354,2080.1994024999999,50797.920891000002,40901.969906999999,9470.7721237999995,31360.256487999999,0]
[1705,"2011-07-04","KW60MN12 ",7448001.2974352324,2298543.1328354804,1637566.8850025092,129407.015189,531569.2326439711,"Summer",162849.50709999999,50544.059159999997,88213.870020000002,1693.2311304,54628.284764000004,24260.586748999998,6637.4125670000003,47295.087809999997,0]
[1706,"2011-09-26","KW60MN10 ",6825144.775487287,2298525.5519059449,1698514.0708708186,95043.601737000005,504967.87929812633,"Summer",111903.05181999999,61424.904654999998,126061.01303,2419.6924084000002,56908.26326,40254.989332999998,10028.095052000001,30217.333901999998,0]
[1707,"2011-09-29","KW60MN12 ",6997469.777585811,2298467.1533802454,1703413.6955494669,91345.698283999998,503707.75954677869,"Summer",93918.161894999997,76674.326688000001,135155.05429999999,2594.2490146999999,50387.524762000001,41319.945919999998,9758.9003993000006,30217.333901999998,0]
[1708,"2011-09-02","KW60MN20 ",6885874.2447942561,2298256.0131435385,1667256.9453692017,124345.580369,506653.48740533681,"Summer",161904.96218,69759.986057000002,109459.14158,2101.0259043999999,56862.663690000001,35674.751536000003,7559.3905415999998,38258.097223999997,1018.167559]
[1709,"2012-05-24","KW60MN21 ",7007208.9575033514,2298068.0631477926,1675041.7581320191,123138.54341023721,499887.76160553627,"Summer",169611.47154999999,65414.680831999998,79638.877498999995,1528.6374642000001,55813.873582,40170.614572999999,6279.0077818999998,21356.368259999999,1170.8290836000001]
[1710,"2011-09-15","KW60MN19 ",6765536.8640435841,2298014.1950255237,1667424.5158144452,101567.71451999999,529021.96469107852,"Summer",171375.80557999999,73410.278711000006,119556.01022,2294.8313942999998,53351.496806000003,38318.984409999997,7583.8701701999998,20000.482798000001,0]
[1711,"2011-07-01","KW60MN22 ",7144899.7684710613,2297882.0263748858,1657209.8709469438,133116.44480199998,507555.71062594221,"Summer",160243.22235,57917.633449000001,98811.251457999999,1896.6437701,55768.274012000002,32534.110864999999,6317.6943977000001,51873.340893000001,3032.5505136000002]
[1712,"2011-09-27","KW60MN08 ",6657849.7128371606,2297556.8960622707,1699426.3023169241,97948.565033000006,500182.02871234651,"Summer",161699.75258999999,55697.791470999997,122460.96562,2350.5908900999998,56817.064120000003,41590.924881999999,6991.8491457,30217.333901999998,0]
[1713,"2011-09-27","KW60MN16 ",7236648.9966285815,2297545.5501233111,1696521.9335191201,90270.231341999999,510753.38526219118,"Summer",125836.31884000001,79061.451216999994,141173.52343,2709.7712028999999,56634.665841000002,41801.341922,10472.913264000001,30217.333901999998,0]
[1714,"2012-06-19","KW60MN15 ",7598038.9871360669,2297468.8825706616,1648073.3318227017,130672.18777694536,518723.36297101469,"Summer",138848.28362,80458.339011999997,113398.86332999999,2176.6473402000001,53397.096376000001,44342.507468000003,9474.9570234000003,35187.136483000002,0]
[1715,"2012-05-08","KW60MN15 ",6966747.0442178873,2297344.357635499,1669065.1353810634,118720.36397037785,509558.85828405776,"Summer",119823.06946,86926.515713999994,120285.94417,2308.8421942,55677.074871999997,38591.926678999997,9758.9054775000004,21356.368259999999,0]
[1716,"2011-08-13","KW60MN15 ",7785731.1406838587,2297268.2712746672,1613755.4463192075,125830.040183,557682.78477245988,"Summer",222698.70102000001,82882.992008999994,106405.72626,2042.4167777,53579.494656000003,30825.526642000001,7830.8604795000001,45455.020549000001,0]
[1717,"2011-10-19","KW60MN14 ",6737123.2524825921,2297167.3439140776,1706277.3660971234,87025.087685999999,503864.89013095445,"Summer",128781.63078000001,76155.319996000006,135133.47610999999,2593.8348295999999,49840.329922999998,46302.897224,9675.2227304000007,19170.103298999999,0]
[1718,"2012-06-21","KW60MN10 ",7130127.9591619242,2297036.080149902,1655263.2672512366,127016.82476821492,514755.98813045042,"Summer",101343.81965,74470.821066999997,118619.34921,2276.8525484000002,47605.950996,41183.980622000003,9142.9279370000004,37857.241320000001,0]
[1719,"2012-05-09","KW60MN10 ",6938137.6415719753,2296580.6831239751,1700926.8865867229,124001.49020493947,471652.30633231252,"Summer",99759.968741000004,69691.994229999997,104335.92750999999,2002.6877909,55403.477453,36532.66489,8958.5638307999998,21356.368259999999,0]
[1720,"2011-10-01","KW60MN20 ",6680429.709505205,2296204.5926144263,1718103.7668838035,94491.138804000002,483609.68692662288,"Summer",142331.79115,62299.262041000002,91754.818371000001,1761.1982651000001,55266.678742999997,31198.718869,7455.1134184000002,19170.103298999999,3053.2304963000001]
[1721,"2012-05-18","KW60MN11 ",7004656.2386042522,2295997.604034238,1660299.5760790664,128136.50373868353,507561.52421648806,"Summer",117624.46945999999,66935.673194000003,116564.61436000001,2237.4127073999998,53077.899386999998,40947.828178000003,8417.0324636000005,21356.368259999999,0]
[1722,"2012-05-10","KW60MN07 ",6592061.2497436116,2295997.4679202111,1685074.2583109508,115672.32440426134,495250.88520499913,"Summer",163005.88905999999,44644.802849,87256.157651000001,1674.8482117999999,55038.680892999997,32461.025120999999,6822.0661626000001,21356.368259999999,0]
[1723,"2012-06-17","KW60MN18 ",7399613.8060414912,2295926.9350661049,1708408.2945087308,121514.87719029086,466003.76336708339,"Summer",138221.00701,56996.375118999997,79617.896183000004,1528.2347359,52713.102828000003,29857.792425,6097.0323854999997,32883.194329999998,0]
[1724,"2011-07-01","KW60MN12 ",7381804.3132806215,2295902.5395020712,1652201.2057774113,131615.22264699999,512086.11107765953,"Summer",156238.33916999999,70034.977368000007,113252.16589,2173.8315395999998,56406.667991000002,38158.076378999998,7279.0022982999999,43472.499982000001,0]
[1725,"2011-07-23","KW60MN23 ",7151105.1457014335,2295471.1642394532,1664159.1748296865,126032.503373,505279.48603676661,"Summer",169140.90546000001,55258.451629000003,79873.153101000004,1533.1342938,54993.081323999999,30636.19786,6074.1373305999996,50692.313324000002,3053.2304963000001]
[1726,"2011-07-16","KW60MN19 ",8067567.6351330159,2295401.2971933857,1622933.7686230382,126615.78264400001,545851.74592634733,"Summer",188686.42481999999,58389.964148999999,96459.436575,1851.5015926000001,55813.873582,31207.062953000001,6472.1090501999997,43909.396911000003,0]
[1727,"2012-05-02","KW60MN11 ",6724838.1555012735,2295193.2345743477,1695427.6876186824,109401.89658373318,490363.65037193237,"Summer",116056.49520999999,67553.417870999998,113210.41317,2173.0301122000001,56725.864979999998,34736.280336999997,9300.6708710999992,21356.368259999999,0]
[1728,"2012-06-18","KW60MN16 ",8099973.2952322466,2295091.7292840495,1656763.6093987951,131436.85353481141,506891.26635044295,"Summer",135855.20391000001,74455.278470999998,107107.87338999999,2055.8942204999998,57501.057669000002,43141.659689,8482.1404877999994,32017.668797999999,0]
[1729,"2011-07-10","KW60MN23 ",6650836.4225621102,2294820.920988034,1656424.3132473384,125377.35531300001,513019.25242769538,"Summer",182739.18336,49699.986778999999,71773.622113999998,1377.6669279,53169.098527000002,30298.732550000001,6172.2589951999998,31132.592858,3053.2304963000001]
[1730,"2011-09-06","KW60MN08 ",6842988.7507568384,2294713.0164818289,1686602.2454878923,112052.783644,496057.98734993674,"Summer",157073.84596000001,51315.939533999997,105877.59659,2032.2795329,55950.672292000003,34592.862835,7573.3469770000002,34803.144869999996,0]
[1731,"2011-10-24","KW60MN22 ",6478820.2470041998,2294494.2613865295,1672633.4513334665,92863.660650000005,528997.14940306311,"Summer",219186.68333,50046.411687,110084.83529,2113.0358532,56543.466700999998,42727.970778000003,7090.1333311999997,19170.103298999999,3053.2304963000001]
[1732,"2012-04-20","KW60MN08 ",6504004.0338245034,2294443.6033213022,1716608.2053581479,111952.50528681,465882.89267634437,"Summer",176805.84723000001,60645.224864000003,98971.100684000005,1899.7120142000001,28545.33077,35110.640532999998,8540.2364366000002,7467.6597125999997,0]
[1733,"2012-05-31","KW60MN08 ",6858032.4931135327,2293810.5082442593,1679084.1066007069,124645.46059447275,490080.94104907982,"Summer",152707.10626,51307.407415000001,95384.008822000003,1830.8591727,53898.691644999999,39492.196541999998,7637.5662186999998,29268.591218000001,0]
[1734,"2012-04-03","KW60MN15 ",6645909.6755265351,2293810.0351076764,1728863.5005611,94335.62897645669,470610.90557012003,"Summer",157376.83799,76521.963294000001,105658.19358000001,2028.0681771,53625.094226000001,36440.517790999998,7915.1289766,7467.6597125999997,0]
[1735,"2012-04-09","KW60MN07 ",6404253.5220814822,2293703.1463156249,1705801.9895849337,107343.02279006169,480558.13394062931,"Summer",206626.91730999999,50575.340382000002,84033.251705000002,1612.9857781999999,45553.970350000003,31111.301664999999,7447.6950413000004,7467.6597125999997,1220.8681383999999]
[1736,"2011-07-16","KW60MN14 ",7814796.153064182,2293662.6641182816,1631653.2720756351,126180.26661599999,535829.12542664655,"Summer",160553.87716,65526.613874000002,90789.295077999996,1742.6654186999999,55357.877883000001,33969.999014000001,6787.5407446999998,44961.130641000003,0]
[1737,"2012-04-17","KW60MN18 ",6512742.0601553423,2293627.2804561611,1708064.4544430207,109274.28611580317,476288.53989733697,"Summer",169190.27361999999,56459.690390999996,100378.99537999999,1926.7360086000001,35522.064967999999,33871.924724999997,6540.3506705999998,7467.6597125999997,0]
[1738,"2012-06-11","KW60MN13 ",7082087.3159252768,2293246.2791392263,1654979.2303734047,131434.8502680556,506832.1984977657,"Summer",133408.53367999999,72207.319063999996,113609.58915,2180.6921407999998,55175.479603,42041.390991,9433.2096065000005,29726.838621999999,0]
[1739,"2011-10-18","KW60MN15 ",6708107.946287754,2292994.9186597648,1687639.0980146874,100335.361344,505020.45930107718,"Summer",142036.33470000001,74246.485795999994,130748.26986,2509.6624910999999,55038.680892999997,45937.610363,8692.4215124000002,19170.103298999999,0]
[1740,"2011-08-25","KW60MN08 ",7298174.1381115969,2292982.4338955721,1664106.2604002024,124491.606663,504384.56683236943,"Summer",127958.88467,63262.771229999998,107871.16398,2070.5452882999998,49566.732502999999,37761.863149999997,9736.7366853999993,48688.988773999998,0]
[1741,"2012-05-08","KW60MN18 ",6873974.7479741052,2292958.7130972957,1658943.1381806722,117090.80399103055,516924.77092559304,"Summer",159581.21421999999,78165.085464000003,100832.42849000001,1935.4394817,56817.064120000003,36293.497618000001,7601.4392973000004,21356.368259999999,0]
[1742,"2011-10-11","KW60MN14 ",6823368.1231221175,2292832.0780903064,1707683.4178868092,92129.371594000011,493019.28860949702,"Summer",118228.84255,74045.306150000004,132401.95910000001,2541.4044167000002,41632.407336999997,45564.911006000002,9964.2245526000006,19170.103298999999,0]
[1743,"2012-04-26","KW60MN10 ",6757197.6052293209,2292784.2226650673,1720031.3304802494,108431.10724758678,464321.78493723128,"Summer",120029.98542,67176.349640999993,114776.48738000001,2203.0903013000002,50341.925192000002,34141.761803000001,9385.6808679999995,7467.6597125999997,0]
[1744,"2012-06-13","KW60MN11 ",7097434.8057692833,2292715.6521865232,1660608.7238365628,130836.28080143168,501270.64754852874,"Summer",130655.2573,75718.506047000003,108108.65143,2075.1037679999999,56406.667991000002,40541.888914000003,9771.6785615000008,32385.397342,0]
[1745,"2011-07-31","KW60MN23 ",6826315.5846713129,2292579.5329405218,1659706.1965431885,107323.45697499999,525549.87942233309,"Summer",186967.43148999999,56382.480340000002,78392.673746999993,1504.717065,55312.278313000003,29021.111677000001,6722.3700818999996,30665.92338,3053.2304963000001]
[1746,"2012-05-24","KW60MN18 ",6935764.6733665941,2292306.901107199,1678159.698746308,119516.53557676579,494630.66678412497,"Summer",143318.64558000001,66976.927836000003,97392.590859000004,1869.4131282999999,56178.670141000002,41689.084233000001,6674.1133867999997,21356.368259999999,0]
[1747,"2012-05-04","KW60MN12 ",6686212.8496018881,2292001.522727753,1692620.345409998,114711.45994247978,484669.71737527504,"Summer",117447.04932999999,73811.908515999996,114811.52969,2203.7629249000001,57136.261109999999,35761.478019000002,8434.0344631999997,21356.368259999999,0]
[1748,"2012-05-21","KW60MN09 ",7035923.4528398421,2292000.7323806155,1670830.5961384878,126258.93453682199,494911.20170530578,"Summer",138211.50008999999,60156.250908000002,103808.08547999999,1992.5560673,57090.661540000001,39435.784668,8261.7984379999998,21356.368259999999,0]
[1749,"2011-10-04","KW60MN16 ",7103563.4369183183,2291866.3589093084,1697524.8958633929,100909.222851,493432.24019491556,"Summer",124281.75178999999,70059.591967999993,129957.06948000001,2494.4757055999999,55129.880033000001,41805.594452999998,9386.2818539,19170.103298999999,0]
[1750,"2012-04-12","KW60MN20 ",6707996.4671819555,2291861.7769070794,1704914.7056394806,116354.51594241211,470592.55532518658,"Summer",152496.20522999999,54321.496450999999,94991.451394000003,1823.3241846000001,50752.321321000003,31696.156401,6117.7029431999999,7467.6597125999997,763.73168391000002]
[1751,"2011-09-30","KW60MN12 ",7215479.9399493439,2291646.7617864497,1683256.2352760355,95454.70577299998,512935.82073741435,"Summer",110616.62869,69131.152839999995,137168.62708999999,2632.8987658999999,56634.665841000002,39647.518395999999,9924.8133667999991,30217.333901999998,0]
[1752,"2012-06-30","KW60MN13 ",7605212.063230087,2291383.6217989647,1622475.8522151548,128054.72904447895,540853.04053933104,"Summer",181491.79478,64832.557349000002,116497.56073,2236.1256388000002,55585.875732,34239.586329999998,6767.0022349999999,35417.426876999998,0]
[1753,"2012-06-22","KW60MN16 ",7800900.5850932607,2291347.6123094261,1641985.7396014689,122108.07492755342,527253.79778040398,"Summer",129891.03651999999,78945.613645999998,114978.38305999999,2206.9656107999999,56999.462399999997,40587.380850000001,8592.7559046000006,35885.70925,0]
[1754,"2012-05-17","KW60MN21 ",7287367.0196532011,2291224.7292883475,1653773.5879367099,128298.59605744801,509152.54529418959,"Summer",166638.58212000001,57046.237398999998,82953.572341999999,1592.2617502000001,55038.680892999997,34472.216530999998,6892.3460587,21356.368259999999,1527.0393077000001]
[1755,"2011-09-21","KW60MN11 ",6607085.3979095202,2291206.5468940074,1693925.942088108,93814.715456000005,503465.88934989937,"Summer",103273.48083,74944.890327000001,130008.47003,2495.4623194000001,55813.873582,40026.307626000002,10723.438392,30217.333901999998,0]
[1756,"2011-10-13","KW60MN15 ",6740764.9004298514,2291157.9152545016,1702101.0391132287,85302.683793999997,503754.19234727294,"Summer",131388.24408999999,72571.878339999996,129643.71077999999,2488.4609065999998,52758.702397000001,43662.290853999999,8104.7682236999999,19170.103298999999,0]
[1757,"2012-06-16","KW60MN14 ",7119801.4948062813,2291048.0121790823,1641663.4412191911,123610.18022986998,525774.39073002129,"Summer",175026.52681000001,64346.47885,102926.47861000001,1975.6339642999999,52530.704548000002,34323.410419,7001.7628881999999,32232.632767999999,0]
[1758,"2012-05-10","KW60MN11 ",6883295.142515636,2290950.5611079591,1678532.1934232793,126844.481372984,485573.88631169579,"Summer",109178.47637999999,71098.130776999998,109035.08428,2092.8862883000002,44733.178092000002,36178.829068999999,9342.7382493000005,21356.368259999999,0]
[1759,"2011-10-10","KW60MN08 ",6708582.5746104866,2290915.3108944362,1687842.518330886,96877.206558999998,506195.58600454987,"Summer",210917.70762999999,57368.020390999998,113341.40539,2175.5444572000001,53579.494656000003,41247.887910999998,7980.4807816000002,19170.103298999999,508.44768959999999]
[1760,"2011-07-13","KW60MN21 ",7724345.7710049367,2290892.6254168693,1626956.3969119128,135322.55571700001,528613.67278795666,"Summer",199271.44331,61721.052728000002,99316.953783999998,1906.3505307,54309.087775,36463.433742000001,7075.6487037999996,37477.273933999997,458.40863426999999]
[1761,"2012-04-01","KW60MN10 ",6280518.0403972622,2290677.3514774512,1676005.1327083942,117270.82687389787,497401.39189515915,"Summer",220260.54144999999,44239.612371000003,74186.719276000003,1423.9853949999999,54126.689494999999,23231.984742000001,5508.7222433999996,7467.6597125999997,0]
[1762,"2011-08-06","KW60MN14 ",7332582.7419868046,2290461.8537004106,1629430.6278628141,125530.46316699999,535500.76267059648,"Summer",212654.02963,77626.281363999995,112517.90145,2159.7376174999999,55722.674442000003,29477.636413,7658.4060681999999,30104.641188000001,0]
[1763,"2011-09-27","KW60MN17 ",7203637.0119523238,2290382.1584740169,1682799.0453922884,92342.78055499999,515240.33252672839,"Summer",149685.65416000001,77758.513135999994,131634.54792000001,2526.6742558000001,56634.665841000002,41730.712849000003,8633.3250484,30217.333901999998,0]
[1764,"2012-06-20","KW60MN11 ",7049931.0155892139,2290311.3432359304,1653049.5705488948,130354.90136315704,506906.87132387853,"Summer",116477.2798,73288.205140999999,106297.99296,2040.3488786999999,54035.490355000002,40881.139523999998,9005.3138266999995,38880.242703999997,0]
[1765,"2011-07-28","KW60MN24 ",6958536.604779169,2290139.403015302,1662600.9795384035,118990.49526499999,508547.92821189843,"Summer",154555.02064,61373.952963000003,86231.330560000002,1655.177052,55677.074871999997,36164.255618000003,6920.3808198999996,42726.726302000003,3053.2304963000001]
[1766,"2011-08-10","KW60MN09 ",6700485.2956618974,2289981.610252976,1685816.4494919321,125246.82932799999,478918.33143304399,"Summer",126016.72777,62185.530986999998,102896.53764,1975.0592588,56133.070571999997,37655.536966,8806.5920628999993,43954.723557999998,0]
[1767,"2012-04-10","KW60MN20 ",6753980.0771914423,2289923.2766237995,1712698.6471006612,113016.61497219327,464208.01455094508,"Summer",140508.22169000001,54564.592741,100644.89361,1931.8398222999999,56817.064120000003,34429.924287000002,6666.1244956,7467.6597125999997,916.39320871999996]
[1768,"2012-05-16","KW60MN08 ",6894136.4595127376,2289723.5436584074,1655785.7034864337,128017.29887061169,505920.54130136198,"Summer",151357.75940000001,60866.627720999997,103507.46152,1986.7857065999999,53670.693796,36444.073607999999,8738.4503248000001,21356.368259999999,0]
[1769,"2011-10-21","KW60MN12 ",6690575.0377136804,2289012.9449259797,1669774.0699095582,103136.842194,516102.03282242175,"Summer",169169.96674999999,68401.226066999996,140149.09043000001,2690.1076073999998,56406.667991000002,47055.388949,8765.3728379000004,19170.103298999999,0]
[1770,"2011-09-29","KW60MN08 ",6712861.0006685862,2288841.6340372097,1677743.919803824,94832.410740000007,516265.30349338579,"Summer",176421.12958000001,52622.361162000001,108703.71094999999,2086.5257053999999,56406.667991000002,39811.615693,7826.8990464999997,30217.333901999998,10.672171419]
[1771,"2012-04-20","KW60MN10 ",6597094.4198179618,2288812.4659175952,1720505.729802266,105894.63332005692,462412.10279527225,"Summer",125046.37532000001,73831.545243,112538.77793,2160.1383334000002,28545.33077,36667.955112000003,9260.2422401999993,7467.6597125999997,0]
[1772,"2012-05-29","KW60MN18 ",7239254.9082929492,2288730.6831534589,1658994.8403540067,120423.42854816484,509312.41425128706,"Summer",147364.49225000001,63578.805084,88462.499542000005,1698.0034780000001,56178.670141000002,35793.667646000002,6777.1123556000002,23932.311226000002,0]
[1773,"2012-06-19","KW60MN12 ",7384318.9870107407,2288347.8410334364,1644558.503675784,135228.96592122607,508560.37143642647,"Summer",133601.59729999999,82990.104646000007,107227.27318,2058.1860534000002,53077.899386999998,43371.237601000001,9435.5052070999991,35680.360218000002,0]
[1774,"2011-08-24","KW60MN08 ",6973349.6162492773,2288293.5830441518,1673232.0576690407,123657.09730199999,491404.42807311099,"Summer",133056.88359000001,57800.926597999998,96123.045276999997,1845.0446916999999,49293.135084000001,39138.017630000002,9001.3117631000005,42915.95766,0]
[1775,"2011-07-07","KW60MN08 ",7223383.7970267255,2288252.3963944833,1637829.112032942,124679.049717,525744.23464454117,"Summer",151576.31258999999,59428.384055000002,108881.78574000001,2089.9437822,55631.475301999999,38929.314218,8603.8072897999991,39730.161734000001,0]
[1776,"2011-08-03","KW60MN09 ",6941641.265204411,2287985.0482024718,1673871.5527201286,121753.01551300001,492360.47996934311,"Summer",154383.55691000001,69841.182583000002,110127.86571,2113.8618053999999,48061.946695999999,37246.016130999997,10450.119784,30452.280384000002,0]
[1777,"2011-10-27","KW60MN15 ",6729574.0708704451,2287943.2764346967,1684338.5649431441,95061.086856000009,508543.62463555258,"Summer",125359.31942,69892.007337999996,135742.86163999999,2605.5317494000001,45964.366478999997,42968.990239999999,8589.9117989999995,19170.103298999999,0]
[1778,"2011-09-15","KW60MN09 ",6553128.0045650918,2287659.9223313518,1693682.8879793773,98817.326602999994,495159.7077489745,"Summer",120471.18286,65879.255499000006,120210.95742999999,2307.4028527999999,46876.357878000003,39563.599605000003,10025.596302,23474.111515000001,0]
[1779,"2012-06-17","KW60MN16 ",7376935.8074584864,2287638.5005639363,1695445.9457811026,119385.19984706459,472807.35493576922,"Summer",151755.89483,53022.019420999997,85064.894394000003,1632.7877607,52849.901536999998,30009.122972000001,6250.4516008999999,32958.030495999999,0]
[1780,"2011-10-06","KW60MN16 ",6806307.1734550828,2287520.2473496832,1695143.5002900704,92508.000948000001,499868.74611161271,"Summer",115509.38622,71678.122034,126725.05735,2432.4384823999999,56543.466700999998,41680.752695000003,9360.6036380000005,19170.103298999999,0]
[1781,"2011-10-07","KW60MN16 ",6747428.6653620945,2287501.1845785747,1645436.885329297,96070.168743999995,545994.13050527778,"Summer",117188.34874,68350.958872999996,129983.54014,2494.9837996000001,55813.873582,41496.343216000001,7901.0895885999998,19170.103298999999,0]
[1782,"2012-05-22","KW60MN19 ",7255711.7067866335,2287429.2921953257,1674100.1235190558,125663.88302037811,487665.28565589152,"Summer",142699.67825,57320.719354000001,84762.613123000003,1626.9855886,57318.659389,39287.097263000003,6186.5116910999996,21356.368259999999,0]
[1783,"2012-05-09","KW60MN11 ",7001548.9160170984,2287424.4067202774,1687599.0003100524,125983.41722727394,473841.98918295087,"Summer",117244.51058,72995.370293999993,105419.83379,2023.4929529999999,53625.094226000001,36766.492844,9242.1042916999995,21356.368259999999,0]
[1784,"2012-05-24","KW60MN17 ",6985523.6996944398,2287139.8108095033,1668479.2567998392,118781.63913278928,499878.91487687477,"Summer",145462.03761,74579.264135000005,106616.32954999999,2046.4592265000001,56133.070571999997,42531.980417999999,7177.0969573000002,21356.368259999999,0]
[1785,"2012-06-20","KW60MN12 ",7189188.0856223013,2286994.5806024489,1654542.8228303858,126167.26361036794,506284.4941616953,"Summer",110054.09877,80266.144602999993,109303.46921,2098.0378335,53944.291214999997,41304.242922999998,9196.9862711000005,38571.863191999997,0]
[1786,"2012-05-29","KW60MN08 ",6650248.0244992804,2286869.0513213528,1682740.4527488407,121455.26418524893,482673.33438726328,"Summer",151942.51452999999,52086.584277000002,84677.840886000005,1625.3584183,55631.475301999999,35527.543030000001,6405.3775156000002,21523.498426999999,0]
[1787,"2012-06-19","KW60MN18 ",7582635.1672019484,2286847.1770937005,1621536.8538722841,129888.12396704702,535422.19925436913,"Summer",148816.47570000001,68401.592418,103081.87356000001,1978.6167101999999,55084.280463000003,41699.534696000002,7221.2059977999997,35478.849972999997,0]
[1788,"2011-09-16","KW60MN16 ",6467973.0965550626,2286737.6592394952,1674086.8453972703,89745.694671999998,522905.11917022523,"Summer",130258.90243,78875.349801000004,133623.06864000001,2564.8431421999999,55038.680892999997,37329.921509,8495.6703075000005,30217.333901999998,0]
[1789,"2012-05-22","KW60MN21 ",7280354.2106821872,2286682.2295796201,1675675.8330632953,128118.0421564701,482888.35435985465,"Summer",167463.77650000001,60570.643541999998,83762.501546,1607.7888335,57227.460249999996,39879.696079000001,6063.4008295000003,21356.368259999999,1272.6034333]
[1790,"2012-06-11","KW60MN21 ",7126894.9509873437,2286665.1756820586,1649606.964474349,129292.93792676105,507765.27328094846,"Summer",150509.97946,51122.398624000001,90705.178278000007,1741.0508293,56452.267561000001,40035.940253000001,7141.1240919000002,32766.96732,407.5214593]
[1791,"2011-07-21","KW60MN09 ",7414220.6103554433,2286664.7630691864,1665566.038623224,123896.124648,497202.59979796247,"Summer",114798.11592,71666.806933999993,112527.62815999999,2159.9243179,53305.897235999997,38356.666926999998,9209.5003383999992,43484.715660000002,0]
[1792,"2011-09-20","KW60MN08 ",6459988.9942946378,2286392.6672960594,1680989.8206276086,108088.75973000001,497314.08693845058,"Summer",147810.10930000001,52906.655855999998,102641.62061,1970.1662249999999,56771.464549999997,39139.843547999997,8008.7186941,30217.333901999998,0]
[1793,"2012-05-18","KW60MN12 ",6925274.6948643904,2286374.211532943,1644338.5860543461,127676.10720578922,514359.51827280771,"Summer",109581.82631,74253.044762000005,117494.30763,2255.2578100999999,54810.683043999998,41704.819525999999,8532.3965219999991,21356.368259999999,0]
[1794,"2011-09-23","KW60MN10 ",6636532.5590003086,2286299.4098749952,1674239.8627785908,104579.172485,507480.37461140438,"Summer",130146.69533,73624.099069000004,129424.36599999999,2484.2506681999998,56041.871432,42557.464125999999,9955.1030981000004,30217.333901999998,0]
[1795,"2012-05-17","KW60MN19 ",7204360.5646433402,2286251.2483558464,1651421.4988078927,119234.88858497125,515594.86096298235,"Summer",149170.26670000001,60899.027277000001,91331.517319000006,1753.073165,54810.683043999998,36390.837592999997,7128.1021490000003,21356.368259999999,0]
[1796,"2011-10-24","KW60MN18 ",6853215.0371929752,2285949.9619530742,1671439.5068974693,92940.866747999986,521569.58830760507,"Summer",181482.98736,52371.65827,125085.31784,2400.9643163999999,55996.271862000001,43773.560683000003,7192.6227305000002,19170.103298999999,122.79358015]
[1797,"2011-10-07","KW60MN17 ",6756442.4810525402,2285772.0674037617,1644142.475521845,96579.934146999993,545049.65773491643,"Summer",120666.09063999999,69887.392603,126635.22592,2430.7142029000001,55996.271862000001,41336.439816999999,7288.3878488,19170.103298999999,0]
[1798,"2012-04-06","KW60MN21 ",6559714.9676090032,2285339.7354188804,1684768.0222942964,105908.71438386841,494662.99874071544,"Summer",162600.69498,63876.134157,85834.469045000005,1647.5594486,55905.072721999997,28229.599954000001,6641.4315591000004,7467.6597125999997,3053.2304963000001]
[1799,"2012-04-16","KW60MN21 ",6603305.0360442083,2285285.4092464354,1704534.6360669625,110618.36061717692,470132.41256229591,"Summer",234309.47070999999,51461.030542,90462.264764000007,1736.3881983000001,33743.681741,31484.678162,6571.6172164999998,7467.6597125999997,3053.2304963000001]
[1800,"2011-10-07","KW60MN21 ",6663492.6933055967,2285128.5466360087,1648975.3196925588,108802.69465600001,527350.53228744958,"Summer",150282.16310999999,60417.696878000002,113964.81988,2187.5106574000001,56406.667991000002,38280.365327,7090.5802622000001,19170.103298999999,3053.2304963000001]
[1801,"2011-09-09","KW60MN08 ",6802213.8221501047,2284472.7183649903,1671463.3428615991,107036.226893,505973.14861039096,"Summer",134786.49669,61250.96673,113726.57216,2182.9375845,53898.691644999999,39617.895263999999,8179.5885318000001,41472.716294999998,0]
[1802,"2011-08-09","KW60MN09 ",7055664.2019120418,2284420.3432544312,1663256.4177688006,125356.351194,495807.57429163047,"Summer",124764.13529000001,68949.699901999993,108745.19577999999,2087.3219908000001,54354.687344999998,38097.809591999998,8999.4630935000005,39169.988552000003,0]
[1803,"2011-10-03","KW60MN16 ",6965148.0127115296,2284166.9611426345,1668326.7897266273,101412.655879,514427.51553700736,"Summer",111675.30966,71750.582376999999,130266.08298000001,2500.4071004000002,57090.661540000001,41691.011139000002,9674.3491837000001,19170.103298999999,0]
[1804,"2011-09-30","KW60MN11 ",7074889.4305029074,2284154.8036722941,1681585.3322840752,97275.736919000003,505293.73446921876,"Summer",122547.32694,69795.020768000002,133359.84221999999,2559.7906128,56133.070571999997,39592.328405,10011.843016999999,30217.333901999998,0]
[1805,"2011-09-20","KW60MN10 ",6434856.7507965788,2284009.4530259604,1688649.0091277773,101263.245341,494097.19855718297,"Summer",108358.89925,65063.932019,119683.61629000001,2297.2807434000001,56361.068421000004,40919.586485,9996.3020078000009,30217.333901999998,0]
[1806,"2011-10-14","KW60MN14 ",6805273.1043638708,2283853.9338685488,1692378.5587886458,87793.129849999983,503682.24522990326,"Summer",138942.12338999999,66745.850424000004,129193.44417,2479.818213,52439.505407999997,45204.582197000003,7742.1243665000002,19170.103298999999,0]
[1807,"2011-10-06","KW60MN17 ",6764979.7368043428,2283582.8485889859,1680155.498281463,93967.23434499999,509460.11596252263,"Summer",133086.99414,67803.744770999998,123118.39185,2363.2099324000001,56361.068421000004,41380.640995000002,8634.6658413000005,19170.103298999999,0]
[1808,"2012-04-11","KW60MN14 ",6637859.3510775389,2283503.4656387805,1710434.2716247961,104218.01152951794,468851.1824844667,"Summer",111259.67598,85696.597143999999,119634.79224,2296.3435847000001,57273.059820000002,37587.014504999999,9561.9578934000001,7467.6597125999997,0]
[1809,"2011-10-19","KW60MN15 ",6698219.379585267,2283160.7556128567,1701383.9767499466,86505.425264999998,495271.35359791038,"Summer",111351.83057999999,72048.520428000003,133429.66365999999,2561.1308084000002,49977.128632,46370.237653999997,8566.9557982999995,19170.103298999999,0]
[1810,"2012-06-18","KW60MN11 ",7697954.0914598815,2283042.7008258924,1649309.6335074746,136026.07120378365,497706.99611463438,"Summer",127485.39337999999,69301.096254999997,109069.75076,2093.5516980000002,55905.072721999997,40506.144444999998,8708.2672480000001,33819.869555999998,0]
[1811,"2011-09-27","KW60MN19 ",7087362.6396555835,2283014.8311614343,1677800.6160065464,101943.77281000001,503270.44234488788,"Summer",145890.51676,66292.815809000007,121649.00026,2335.0055289000002,56908.26326,39431.259896000003,8028.3430265999996,30217.333901999998,509.29580915000003]
[1812,"2011-08-20","KW60MN12 ",7530240.8306619646,2282857.0191807039,1652805.5472578425,131554.82379799997,498496.64812486165,"Summer",179324.35459,72285.543007,102921.01970999999,1975.5291827000001,55357.877883000001,32421.597916999999,7247.1076792000003,40519.707344000002,0]
[1813,"2012-06-28","KW60MN21 ",7868031.2689245827,2282794.6299257986,1647962.2883076463,135826.97788475099,499005.36373340106,"Summer",165609.83153,64333.285399,107644.42384,2066.1930987999999,55677.074871999997,46359.575287,7236.0562951000002,38199.436331999997,224.65274199999999]
[1814,"2012-06-18","KW60MN17 ",8102697.0323551837,2282751.3457579529,1641186.9360419165,134637.05281365622,506927.35690238012,"Summer",133650.19177,76350.891902999996,100825.88434,1935.3138693999999,57136.261109999999,41371.682247999997,7513.8238971999999,32128.934404,0]
[1815,"2012-06-11","KW60MN22 ",6908544.6856304025,2282684.6693364098,1638644.2307728028,130554.89010123577,513485.54846237105,"Summer",168934.72080000001,59001.127365,88898.143997000006,1706.3655048999999,56452.267561000001,40305.372082000002,7122.1904711999996,34572.551248999996,3053.2304963000001]
[1816,"2012-06-25","KW60MN14 ",8289072.4128452968,2282493.5864858432,1624107.0299760681,130432.45819741375,527954.09831236163,"Summer",133232.86231,77684.732000999997,122484.54089,2351.0434083999999,56087.471001999998,46183.274256999997,10261.372706,37342.587843000001,0]
[1817,"2011-09-26","KW60MN12 ",7033295.2814578209,2282330.5740140229,1678521.2834817283,93964.59431700001,509844.69621529459,"Summer",99482.392086000007,66640.183910000007,135998.02142,2610.4294426000001,56862.663690000001,41157.759004,11210.694732,30217.333901999998,0]
[1818,"2012-06-19","KW60MN16 ",7658213.5829664767,2281974.5135383336,1627165.9276010459,133064.57812051501,521744.00781677262,"Summer",120775.74348999999,78087.801500999994,111372.46601,2137.7514270000001,53670.693796,43253.154322000002,8621.6032677999992,35003.334153000003,0]
[1819,"2011-09-12","KW60MN08 ",6485933.962621822,2281955.0516378433,1679888.1526471272,100204.814881,501862.08410971588,"Summer",159570.05392000001,55816.440946000002,112368.02821999999,2156.8608589,54582.685193999998,37327.460120000003,8209.2891264999998,28999.643238000001,0]
[1820,"2011-10-14","KW60MN20 ",6759069.2745707342,2281873.2792891045,1678156.3287896137,94862.724761000005,508854.22573849099,"Summer",163944.21262000001,61886.805604000001,119408.77872,2292.0053425999999,53761.892935999997,40291.457057,6461.1389259999996,19170.103298999999,3053.2304963000001]
[1821,"2012-05-21","KW60MN20 ",7500525.4228451783,2281865.0667702956,1666164.7125407462,131998.56440942257,483701.78982012667,"Summer",144655.29535,51250.280783000002,85876.706002000006,1648.3701707,57273.059820000002,40490.567754999996,6235.4320116999997,21356.368259999999,0]
[1822,"2011-10-31","KW60MN18 ",6722473.8245475097,2281831.0058900202,1669871.2438078974,92180.778076000002,519778.98400612263,"Summer",168653.7738,64852.889821999997,119315.25363000001,2290.2101646000001,56315.468850999998,41412.431879000003,7182.9933993000004,19170.103298999999,3053.2304963000001]
[1823,"2011-08-07","KW60MN14 ",7230133.504808181,2281454.8641027641,1617840.4940702934,120837.94534399999,542776.42468847102,"Summer",229717.04498000001,61563.684144999999,104241.0037,2000.8657651000001,55540.276163000002,27652.372668,7330.1149505000003,28735.456990999999,0]
[1824,"2012-05-08","KW60MN19 ",6815492.5578692527,2281384.5771682216,1647595.8030627971,119158.6896842287,514630.08442119556,"Summer",155613.26706000001,68512.556557999997,98234.828936000005,1885.5795625999999,57181.860679999998,36349.229362999999,7233.7268360999997,21356.368259999999,0]
[1825,"2012-05-03","KW60MN13 ",6869706.2120137075,2281309.6421505865,1665258.8299629947,117579.70393193525,498471.10825565649,"Summer",105558.60759,73507.001764999994,107474.08717,2062.9235523000002,56543.466700999998,36130.488682000003,9224.8788265999992,21356.368259999999,0]
[1826,"2011-08-23","KW60MN08 ",6942895.8238593182,2281270.249141125,1661654.4344866024,127479.81250799999,492136.0021465224,"Summer",124759.6309,58618.099506999999,97286.397859999997,1867.3747948,55859.473151999999,38279.509259999999,8919.5640249000007,46767.429220999999,0]
[1827,"2012-06-07","KW60MN11 ",6932866.3882122757,2281268.3301304299,1653432.8273850726,129496.59892602472,498338.9038193326,"Summer",126163.04108,73184.150248999998,104357.80792000001,2003.1077771,56315.468850999998,42837.209738999998,8752.4541616999995,26028.830507999999,0]
[1828,"2011-07-01","KW60MN11 ",7351191.1053627459,2281137.0801822958,1643961.5880707651,132814.919635,504360.57247653074,"Summer",144895.85118,68687.477845999994,106834.39091,2050.6448300000002,56406.667991000002,37962.410287999999,7044.0384948000001,43449.576658999998,0]
[1829,"2011-08-13","KW60MN20 ",7513868.4209998194,2280882.958950859,1615911.7741985815,126700.369867,538270.81488527742,"Summer",227642.75565000001,69732.540271999998,93339.568851999997,1791.6169379,47879.548415999998,29306.658248,7219.9261495000001,49947.741759999997,0]
[1830,"2012-04-09","KW60MN13 ",6680669.0987728741,2280803.3482677746,1713989.8719135982,106101.3455797674,460712.1307744091,"Summer",121160.01599,73871.673517000003,106847.32372,2050.8930703000001,46785.158737999998,35487.630252000003,9157.8578025999996,7467.6597125999997,0]
[1831,"2011-09-05","KW60MN13 ",6932742.5649942188,2280768.9933355153,1668027.8424771708,113693.068805,499048.08205334464,"Summer",172331.86055000001,55566.861209000002,96995.717057000002,1861.7952891,53944.291214999997,21519.604460999999,6968.9540907000001,35441.710674000002,0]
[1832,"2012-05-08","KW60MN14 ",6953301.0924831331,2280719.032723519,1658559.2080378598,116575.73555782663,505584.08912783238,"Summer",123033.86508,88990.054418999993,121895.57965,2339.7385250000002,55403.477453,38951.110080999999,10203.676288000001,21356.368259999999,0]
[1833,"2012-06-22","KW60MN11 ",7569037.7049944159,2280368.1884295228,1630027.4346021486,130300.13055946674,520040.62326790759,"Summer",141132.21273999999,77422.162876999995,120848.43797,2319.6390454000002,57409.858528999997,48578.711990000003,9166.3918133000006,37328.321873000001,0]
[1834,"2012-05-09","KW60MN09 ",6828125.5539650852,2280121.6265651267,1691985.8484260954,120670.61908282913,467465.15905620204,"Summer",117569.97159,62039.504820000002,103315.46616,1983.10043,56315.468850999998,36234.259191999998,8897.7625955000003,21356.368259999999,0]
[1835,"2011-07-02","KW60MN23 ",7264396.7238765089,2279818.1190686617,1621896.470933069,132583.80639800002,525337.84173759271,"Summer",182790.53344999999,52916.508765999999,77154.871134000001,1480.9579223999999,54901.882184000002,29399.307670999999,6514.6487527999998,54734.245755999997,3053.2304963000001]
[1836,"2012-06-19","KW60MN19 ",7444449.6264005974,2279776.9694349477,1616252.9341974223,132207.94601805916,531316.08921946608,"Summer",153791.94450000001,63854.48732,101896.37588000001,1955.8615405999999,55084.280463000003,41795.393286999999,7106.6088315999996,36607.848427999998,0]
[1837,"2012-06-17","KW60MN15 ",7228878.3673341153,2279756.6580947,1683274.5995275844,119073.07197151367,477408.98659560218,"Summer",157449.87276999999,53853.936345000002,84420.848232999997,1620.4255436999999,52804.301966999999,30809.831029000001,6326.1251415999996,33081.597898,0]
[1838,"2011-09-15","KW60MN08 ",6472757.3897104738,2279630.0978638544,1676318.7263347183,102408.55554000002,500902.81598913606,"Summer",144876.37100000001,51786.176571000004,113855.00199999999,2185.4027457000002,44322.781962000001,39129.526481000001,8604.4776861999999,24248.151104,0]
[1839,"2011-09-27","KW60MN18 ",7112825.4625370512,2279605.6048119473,1684321.9903130948,93321.901334000009,501961.71316485264,"Summer",130407.51562999999,67727.378291000001,119920.64764,2301.8304686000001,57090.661540000001,40793.936353999998,8016.1946304000003,30217.333901999998,0]
[1840,"2011-10-31","KW60MN15 ",6758066.3759362232,2279495.9362821528,1670077.7155924928,91004.836655000006,518413.38403465989,"Summer",150227.98319999999,60579.509875000003,122865.93879,2358.3641935999999,56589.066271000003,43186.111270000001,7544.8043402000003,19170.103298999999,0]
[1841,"2011-07-05","KW60MN24 ",6968667.6304457756,2279230.4404101023,1620939.1141991466,129039.38506299999,529251.9411479556,"Summer",154720.28421000001,53048.003016000002,86652.776570999995,1663.2665452000001,55175.479603,34093.868935999999,6650.8611256000004,44911.304286999999,3053.2304963000001]
[1842,"2011-09-03","KW60MN17 ",6962481.919647417,2279144.3069629702,1653746.5357002229,117693.75485700001,507704.01640574745,"Summer",201258.15661999999,70486.201117000004,92165.422464999996,1769.0796519,55403.477453,29205.143056000001,6704.4318982000004,39345.075783,0]
[1843,"2012-05-21","KW60MN21 ",7414014.0838544974,2278685.2348088967,1663090.7000046135,132014.68593198093,483579.84887230251,"Summer",156576.41248,53886.859718,85228.929319000003,1635.9363476999999,57409.858528999997,41045.601625000003,6326.1031335999996,21356.368259999999,1323.4906082]
[1844,"2012-05-23","KW60MN15 ",7140158.9857700318,2278637.2338452856,1672465.1671974172,118084.26034238192,488087.80630548653,"Summer",101745.34663,79431.635907000003,116333.40201999999,2232.9746758000001,57136.261109999999,44301.667417999997,8196.2113172000008,21356.368259999999,0]
[1845,"2011-09-30","KW60MN18 ",7355183.88715831,2278608.6598996343,1663037.9840074957,94188.139819999997,521382.53607213858,"Summer",146003.61413999999,67992.235501999996,132549.37914999999,2544.2340875,55950.672292000003,38350.906460999999,7922.2375500999997,30217.333901999998,0]
[1846,"2011-09-20","KW60MN09 ",6387611.3318401314,2278355.4038784192,1677062.6985603941,105000.53040900001,496292.17490902491,"Summer",112248.94688,57586.211251000001,115858.95647999999,2223.8678771999998,56589.066271000003,40466.250026000002,9245.3360764999998,30217.333901999998,0]
[1847,"2012-04-19","KW60MN21 ",6637189.0141472975,2278331.2898259461,1695385.9327532977,105788.35053438449,477157.00653826381,"Summer",184497.53979000001,60167.625460000003,99703.078680000006,1913.7620488,35294.067117999999,32620.286556999999,6663.0332237000002,7467.6597125999997,3049.4563644999998]
[1848,"2012-04-26","KW60MN09 ",6693103.8090821169,2278321.0569658517,1720859.2961765067,108199.700624574,449262.06016477087,"Summer",146599.48717000001,61087.694755999997,113032.78999,2169.6207039999999,46739.559168,33925.261446999997,8979.1040333000001,7467.6597125999997,0]
[1849,"2012-06-29","KW60MN22 ",7397988.5893601254,2278049.4903635429,1608809.077913004,127981.17964782493,541259.23280271399,"Summer",145253.45767,75094.096355999995,115464.61234000001,2216.2985936999999,55813.873582,37873.561813,7551.6505094000004,40423.700968999998,3032.5505136000002]
[1850,"2011-10-28","KW60MN15 ",6657017.3142376654,2277417.9416243848,1661837.0356628855,90170.380972999992,525410.52498849935,"Summer",135438.53156,75280.085296000005,134142.89947999999,2574.8210942000001,56315.468850999998,42976.950753999998,8440.8196876999991,19170.103298999999,0]
[1851,"2011-10-03","KW60MN17 ",6861678.5354022551,2277338.9810420251,1661901.4098147866,99938.37430499999,515499.19692223863,"Summer",116285.79536,69700.323891000007,123132.60166,2363.4826843000001,57090.661540000001,40719.685746000003,8158.2171059000002,19170.103298999999,0]
[1852,"2011-10-13","KW60MN18 ",6637658.4715151461,2277000.3555131746,1669174.449016388,90447.745880000002,517378.16061678645,"Summer",155849.80604,58208.896844000003,122907.36013,2359.1592601000002,52165.907987999999,41134.838363000003,7041.4584840999996,19170.103298999999,0]
[1853,"2012-06-27","KW60MN21 ",7652086.016490533,2276971.1985689956,1633720.2783407585,130902.0793533156,512348.84087492153,"Summer",166205.59857999999,62645.555190999999,100215.56135,1923.5989555000001,55768.274012000002,39944.341441999997,7028.8428415999997,37975.724758999997,224.65274199999999]
[1854,"2011-08-08","KW60MN09 ",6939044.6017168015,2276639.9485507975,1653407.0378712101,123708.394818,499524.51586158754,"Summer",139593.98869,66825.163778999995,105432.49079,2023.7358991999999,57592.256808999999,36730.746951000001,9034.2830802999997,36067.758952999997,0]
[1855,"2011-07-24","KW60MN11 ",7404313.240672145,2276623.2426305171,1641210.8317688133,123655.09136200001,511757.31949970376,"Summer",168920.16896000001,55134.329386999998,87265.835099000004,1675.0339667000001,54993.081323999999,28554.763738000001,6291.3661005000004,40218.203807999998,0]
[1856,"2011-09-03","KW60MN19 ",6826636.0340181906,2276367.5241405657,1668578.8993158753,116092.85432600002,491695.7704986902,"Summer",187180.20845999999,64589.848297999997,90444.459581000003,1736.0464347,54719.483904000001,28443.811393,6583.6589593999997,39174.668442000002,0]
[1857,"2011-07-19","KW60MN18 ",8420794.5169583652,2276319.6165013271,1619365.8879272109,123433.41675999999,533520.31181411631,"Summer",195129.71134000001,65239.086294000001,100818.30284,1935.1683453999999,52621.903687999999,36719.113728999997,7352.6037050000004,44240.102437000001,0]
[1858,"2012-04-11","KW60MN22 ",6380782.9662849912,2276098.6850971845,1689729.2768418475,110014.54618858195,476354.86206675501,"Summer",157694.09570999999,58032.913460000003,89514.658265999999,1718.1992579,55357.877883000001,32059.054703000002,6212.1171119999999,7467.6597125999997,3053.2304963000001]
[1859,"2012-05-18","KW60MN13 ",6875695.4361085836,2275959.2960464852,1630964.6101264569,125596.00901436125,519398.67690566677,"Summer",113556.92750000001,73878.651857999997,119299.72433,2289.9120856999998,54445.886484000002,42194.753642999996,8611.8571255999996,21356.368259999999,0]
[1860,"2011-10-30","KW60MN20 ",6624656.7063059611,2275848.8452119315,1653863.6940366966,96495.701091999988,525489.45008323493,"Summer",220356.62812000001,51632.976032999999,96970.518119,1861.3116053000001,55905.072721999997,31516.722601000001,6190.8878906,19170.103298999999,3053.2304963000001]
[1861,"2011-09-04","KW60MN20 ",7026490.640652718,2275618.6063779662,1677166.712444026,113958.14071600001,484493.75321794004,"Summer",187315.76423,59716.776095000001,82111.524076000002,1576.0989592999999,48791.539814000003,24606.770268,5698.9794060000004,36567.448088999998,1221.7162585000001]
[1862,"2011-08-21","KW60MN12 ",7352082.7991810152,2275108.6525081466,1652523.4030816252,126866.798536,495718.45089052111,"Summer",183778.05559,61385.947740000003,88117.950425000003,1691.3899908999999,54947.481754,30167.352758000001,7289.7895875000004,40491.270196999998,0]
[1863,"2011-10-24","KW60MN15 ",6848857.6707310695,2275101.790043015,1683345.3570110172,88254.73780100001,503501.6952309981,"Summer",117404.01912,70392.224088000003,131885.18382999999,2531.4851150999998,55403.477453,46087.130609,8528.2556394000003,19170.103298999999,0]
[1864,"2011-08-06","KW60MN22 ",6797715.3034288157,2274982.9439216061,1655064.0212618154,125260.6905,494658.23215979035,"Summer",191027.33186999999,78049.140237,88873.982067999998,1705.9017260000001,53853.092076000001,27320.442752999999,7294.9902382999999,36155.020607999999,3053.2304963000001]
[1865,"2011-10-18","KW60MN18 ",6696564.4343215683,2274946.4391302271,1659496.1169280969,102169.37549600001,513280.94670613029,"Summer",173061.46638999999,63927.281879000002,125430.57613,2407.5914158999999,54172.289064999997,43515.583271000003,7294.0354317000001,19170.103298999999,0]
[1866,"2011-10-11","KW60MN15 ",6792342.498354625,2274683.1136999847,1698120.9412749412,88599.722448000015,487962.44997704338,"Summer",106695.50603999999,71094.888250999997,131689.15377,2527.7223939999999,41541.208197,44912.277982,8685.5550280000007,19170.103298999999,0]
[1867,"2012-06-27","KW60MN22 ",7344906.8956209375,2274606.8972617649,1634418.8274279654,134796.07172214682,505391.99811165273,"Summer",150047.53187999999,65336.310669999999,94781.574036999998,1819.2956698999999,55631.475301999999,40002.489628000003,6955.0179705999999,40349.628878000003,3032.5505136000002]
[1868,"2012-04-12","KW60MN22 ",6422552.6333041694,2274536.9988380973,1685128.9461405647,115194.99874735599,474213.05395017669,"Summer",199457.84044,62081.792634999998,88700.694556999995,1702.5755392000001,48107.546265999998,31543.290953,6006.9757937000004,7467.6597125999997,3053.2304963000001]
[1869,"2012-05-01","KW60MN10 ",6733940.4286246011,2273989.3560752315,1678866.6809299509,101556.91991965364,493565.75522562681,"Summer",111555.38679,65379.895174999998,107188.34705,2057.4388813999999,56133.070571999997,34472.453939999999,9234.1340218999994,21356.368259999999,0]
[1870,"2012-05-07","KW60MN08 ",6443030.6000094963,2273936.0820023785,1653517.6294879538,119816.56328584097,500601.88922858378,"Summer",165032.70738000001,54436.945175000001,89242.917602000001,1712.9833008999999,57273.059820000002,33779.801466999998,8096.7877973000004,21356.368259999999,0]
[1871,"2012-06-22","KW60MN17 ",7713792.7736451831,2273843.0331485583,1637423.8596317654,124779.08228361186,511640.09123318089,"Summer",120257.81237,77606.127246000004,105002.26678000001,2015.4779156,56862.663690000001,38296.930358999998,8076.9975574,26903.530535000002,0]
[1872,"2012-06-19","KW60MN11 ",7326520.6696917927,2273763.6119875088,1645751.1291553248,132040.4316116799,495972.05122050422,"Summer",122479.08272000001,77995.244884,104859.61586999999,2012.7397865,53305.897235999997,42846.332062000001,9155.6857851000004,36183.973868000001,0]
[1873,"2011-08-14","KW60MN18 ",7723085.5491831964,2273618.6140386644,1649813.5681739058,118565.78614,505239.25972475868,"Summer",225149.90744000001,62480.292390000002,93660.134711000006,1797.7700755999999,54126.689494999999,26931.240064000001,7134.4607577999996,45631.676137000002,0]
[1874,"2012-05-02","KW60MN07 ",6429895.4709919496,2273584.2867184635,1654301.864963209,112186.32741770912,507096.09433754557,"Summer",167127.8229,42399.799959000004,85869.207064000002,1648.2262315,55677.074871999997,31513.185483000001,7219.1084690999996,21356.368259999999,0]
[1875,"2011-07-04","KW60MN22 ",7145723.5970345763,2273506.1384277362,1615987.676380445,125271.55441300001,532246.90763429157,"Summer",160192.01003999999,55698.826251999999,73539.173626000003,1411.5560066,54582.685193999998,25618.389117999999,6749.0640501999997,50703.145591,3042.6996786999998]
[1876,"2012-04-26","KW60MN11 ",6757440.2738467399,2273423.3194723753,1696235.3154060952,106360.64328800244,470827.36077827762,"Summer",125700.06357,73196.549939999997,113636.84028999999,2181.2152159000002,51436.314870000002,34513.351880000002,9404.5078353999997,7467.6597125999997,0]
[1877,"2011-09-04","KW60MN17 ",7263760.0313161593,2272775.9484926886,1666492.8489980702,105704.90245199999,500578.19704261859,"Summer",213295.35993999999,59200.923555000001,91544.164204999994,1757.1548398,54628.284764000004,25344.024624000001,6773.6249398,34439.978867999998,0]
[1878,"2012-04-11","KW60MN19 ",6674996.7798967892,2272723.0312420377,1679514.3107354925,111867.21058188431,481341.5099246609,"Summer",147362.21356,58898.880125000003,92965.619021999999,1784.4391154,55129.880033000001,32704.746014,6163.3271467000004,7467.6597125999997,0]
[1879,"2012-04-01","KW60MN11 ",6252679.1155055696,2272303.0104374141,1661315.6871483722,114084.48221114394,496902.84107789776,"Summer",216092.56740999999,45641.503747000002,74559.240420000002,1431.1357943,53989.890785000003,23958.665805000001,5495.3888018999996,7467.6597125999997,0]
[1880,"2011-10-12","KW60MN15 ",6747102.0641140873,2271833.8030904573,1706877.449538921,84319.608732000008,480636.74481953634,"Summer",98990.289692999999,74010.046486000007,133540.95799,2563.2670601,35978.060666999998,44879.326457000003,8646.0016366,19170.103298999999,0]
[1881,"2011-09-30","KW60MN20 ",7175976.21681068,2271712.967895024,1646406.7054027529,98858.952626999991,526447.30986527109,"Summer",147661.54908999999,65761.430313999997,127774.02777,2452.5730640000002,55859.473151999999,36979.628554000003,8277.2429501999995,30217.333901999998,3053.2304963000001]
[1882,"2012-05-29","KW60MN19 ",7127488.7243936881,2271621.2652363186,1637065.0658975504,127420.63498244098,507135.564356327,"Summer",175079.60446999999,56123.171416999998,86268.293940000003,1655.8865498,56041.871432,34904.511341999998,6560.9094955,25287.198052,0]
[1883,"2011-10-20","KW60MN14 ",6749241.9782797033,2271615.0550465002,1672004.1798952881,92378.756487000006,507232.11866421194,"Summer",94898.710172000006,71503.814543999993,136389.29496,2617.9397868999999,57455.458099000003,48266.671045000003,9459.2331792999994,19170.103298999999,0]
[1884,"2011-07-29","KW60MN24 ",6991445.9694668772,2271519.7713067918,1647048.3042298825,123893.49263199999,500577.97444490914,"Summer",154004.47771000001,63161.716237000001,85542.439245999994,1641.9540495000001,55175.479603,33449.236171999997,6278.0597464000002,44864.661571999997,3053.2304963000001]
[1885,"2011-10-11","KW60MN18 ",6734223.3331774343,2271179.0069731348,1688574.3717013677,93488.158110000004,489116.47716176708,"Summer",151661.24957000001,61005.203147,125055.19486,2400.3861175000002,41404.409486999997,40748.877613999997,7069.0869448000003,19170.103298999999,0]
[1886,"2011-10-30","KW60MN19 ",6674880.9163580071,2270516.7286482272,1652084.0517530646,98963.551900999984,519469.12499416247,"Summer",238984.16258,53103.840992999998,99285.386616999996,1905.7446110999999,55540.276163000002,32376.535202999999,6395.8260587000004,19170.103298999999,3053.2304963000001]
[1887,"2012-05-18","KW60MN14 ",6804011.9200083427,2270348.4645176083,1623811.3593734882,126068.84439650891,520468.26074761088,"Summer",105445.10747,74975.605953999999,121519.7641,2332.5248907999999,54537.085623999999,46199.872107000003,8639.3433807000001,21356.368259999999,0]
[1888,"2012-05-03","KW60MN21 ",6749963.4737478634,2270313.7835631021,1639712.3167929514,120715.62095846375,509885.84581168689,"Summer",167229.41023000001,61132.288331999996,92270.270487000002,1771.0921691999999,56862.663690000001,30492.016974999999,6836.9266176000001,21356.368259999999,2392.1212814999999]
[1889,"2012-06-19","KW60MN17 ",7648746.5604173234,2270297.7024607449,1616327.4558583666,129613.87737763005,524356.36922474822,"Summer",136012.22177999999,79091.352196000007,106515.60649000001,2044.5258862000001,53214.698097,42963.085739000002,7463.4629023999996,34596.594341000004,0]
[1890,"2012-04-01","KW60MN20 ",6543059.0611780696,2270267.2577426052,1689096.0245362329,106648.22277732514,474523.01042904682,"Summer",218235.42950999999,46694.433076000001,77641.127273999999,1490.2914209999999,54582.685193999998,24864.598018000001,5978.9681188000004,7467.6597125999997,1527.0393077000001]
[1891,"2012-05-24","KW60MN19 ",6880430.9925667085,2269772.4338641167,1662449.0880390445,119472.40085176185,487850.94497331034,"Summer",129142.73480000001,64690.670303999999,87848.440749000001,1686.2168569,56133.070571999997,41799.074130000001,6472.3240507999999,21356.368259999999,0]
[1892,"2011-08-31","KW60MN22 ",7251962.6038213558,2268833.136707013,1657135.6693178967,120718.253557,490979.21383211605,"Summer",175268.40747000001,61250.481475000001,92807.919485999999,1781.4121338,56589.066271000003,34426.230113999998,7234.1873113000001,40456.765366,3053.2304963000001]
[1893,"2011-07-15","KW60MN23 ",7061310.2036341783,2268795.4175636144,1615365.2816493753,124392.565959,529037.56995523884,"Summer",160097.41777,57016.571013000001,85412.525370999996,1639.4604029,55221.079172999998,35192.201846000004,6433.5104664,50576.288168999999,3053.2304963000001]
[1894,"2011-10-17","KW60MN14 ",6748903.4118131343,2268770.6817756696,1676002.2680777593,86119.233447999984,506649.18024991028,"Summer",133144.29003,66755.483202000003,135513.86202999999,2601.1361903000002,56497.867130999999,46008.781994999998,9622.6880265,19170.103298999999,0]
[1895,"2012-04-18","KW60MN14 ",6608743.3302402673,2268237.5194649431,1694487.8629826398,104104.51167389286,469645.14480841038,"Summer",118350.00545,74345.776519999999,121479.88673,2331.7594601999999,34929.270558999997,37303.524830000002,9372.9992015999997,7467.6597125999997,0]
[1896,"2011-09-19","KW60MN09 ",6526542.1123039415,2268189.9233697094,1676843.959431893,102638.952976,488707.01096181653,"Summer",117190.21408000001,59704.877725999999,114696.34144,2201.5519309000001,56315.468850999998,37616.870189000001,9377.2213451000007,30217.333901999998,0]
[1897,"2012-06-30","KW60MN19 ",7871150.2934496533,2267938.6175996168,1610447.6273507443,125650.65873710945,531840.33151176316,"Summer",185461.41651000001,63922.199564000002,102777.02175,1972.7651977,56041.871432,32831.971557999997,6607.8135474000001,36885.196517999997,0]
[1898,"2011-10-04","KW60MN22 ",6568687.6642812071,2267911.2459489945,1685015.4371219415,104441.71928999999,478454.08953705325,"Summer",184742.75899999999,56103.565218999996,105029.95943,2016.0094653000001,51527.514009999999,37904.180581000001,6885.4592591000001,19170.103298999999,3053.2304963000001]
[1899,"2012-06-15","KW60MN10 ",7037619.5794263175,2267813.7898815023,1647632.0467819297,133124.84971123378,487056.89338833885,"Summer",128080.46092,71214.741219999996,113643.98647,2181.3523842,49475.533363000002,40227.974628000004,8398.8284910999992,30505.735871000001,0]
[1900,"2011-08-14","KW60MN19 ",7520592.8569394536,2267679.8095389907,1651649.2401752898,120665.385868,495365.18349570083,"Summer",207591.95988000001,60415.815312999999,89023.065392999997,1708.7633228,54081.089925,27013.538629999999,7003.8959679,46329.431428000004,0]
[1901,"2011-07-30","KW60MN10 ",7284094.2377795456,2267674.646473635,1627220.5267055444,134118.135156,506335.9846120904,"Summer",162168.14597000001,72552.002198999995,93580.782227999996,1796.2469354,55813.873582,30095.863139000001,6821.7715949000003,37393.299916000004,0]
[1902,"2012-04-12","KW60MN14 ",6644269.8773392821,2267573.0056051817,1696658.8314639931,103256.56326429738,467657.61087689112,"Summer",147520.02632999999,82467.103443,119047.70349,2285.0746430999998,52029.109278999997,36863.005772999997,9242.6815767999997,7467.6597125999997,0]
[1903,"2012-04-26","KW60MN08 ",6610147.7673407709,2267527.427254336,1701138.1178289882,114393.20485191127,451996.10457343678,"Summer",147495.37404,53658.668123000003,101207.30370999999,1942.6350666999999,45371.572070000002,33851.840630999999,8030.046104,7467.6597125999997,0]
[1904,"2011-09-22","KW60MN10 ",6646789.0707309833,2267370.4074516394,1674207.1772756164,103155.057095,490008.17308102298,"Summer",104389.47889,63798.035544999999,118437.03498,2273.3530971999999,55494.676592999997,41282.704107999998,10586.068061,30217.333901999998,0]
[1905,"2011-07-13","KW60MN09 ",7328312.8953187382,2267279.0270645884,1642616.6677909761,134536.35298199998,490126.0062916124,"Summer",147773.40643999999,57490.559933999997,102826.32521,1973.7115584000001,52621.903687999999,38831.719661000003,8216.3993926999992,37906.073234000003,0]
[1906,"2012-06-13","KW60MN20 ",7301413.5639358321,2266912.4415167626,1640345.2368100164,129859.76551929738,496707.43918744847,"Summer",131679.64128000001,61201.689324999999,96648.879654000004,1855.1378792999999,55768.274012000002,38553.128948999998,7353.8022922999999,33611.562624999999,0]
[1907,"2012-05-08","KW60MN13 ",6892441.5756086539,2265931.8874747939,1653882.8387592179,117066.63001800301,494982.41869757301,"Summer",119180.61569999999,89006.840679000001,119361.04347,2291.0890829,55038.680892999997,37995.319606999998,10055.295204,21356.368259999999,0]
[1908,"2012-04-11","KW60MN07 ",6332147.0394510841,2265727.9231760665,1680595.4862914686,107884.49257149232,477247.94431310572,"Summer",157779.55201000001,44636.653148999998,85735.121614000003,1645.6525131000001,56224.269711000001,34225.899685999997,7935.7250465999996,7467.6597125999997,1017.3194389]
[1909,"2011-07-08","KW60MN23 ",7029117.0281041125,2265574.3266135682,1632976.4192786964,138095.17141899999,494502.73591587169,"Summer",165850.80071000001,54620.390548000003,79593.518148000003,1527.766809,56269.869280999999,33861.126977,5848.5590776999998,40903.343996000003,3053.2304963000001]
[1910,"2012-04-03","KW60MN17 ",6541906.1079914737,2265074.5689420905,1694841.2868105071,93373.514276382208,476859.76785520121,"Summer",125692.50679,69202.739082999993,97341.980437000006,1868.4416808000001,55312.278313000003,33503.688079,7112.0685002,7467.6597125999997,0]
[1911,"2011-10-14","KW60MN19 ",6795567.5470757866,2265019.8278184826,1659699.6641128955,91442.474228000006,513877.68947758694,"Summer",179293.57633000001,61889.085656000003,122694.71646,2355.0776470999999,53077.899386999998,41304.702591000001,6482.1446819000003,19170.103298999999,2188.5725819999998]
[1912,"2011-09-01","KW60MN08 ",6832456.0611686073,2264982.3176062796,1663594.7286794488,118394.89753300001,482992.69139383093,"Summer",129943.48886,50905.467496999998,97190.522360000003,1865.5345016000001,53579.494656000003,36780.840756999998,7753.2570103999997,44287.154466,0]
[1913,"2012-06-11","KW60MN12 ",7020340.1435336024,2264971.1712527047,1627920.3228391777,128790.980033653,508259.86837987398,"Summer",123590.38561,70458.528772999998,112564.39737000001,2160.6300885999999,56315.468850999998,41346.582356999999,8817.8059666000008,29628.933644000001,0]
[1914,"2012-06-12","KW60MN21 ",7213695.6262239553,2264873.8648534669,1647513.2337622726,131275.59997759326,486085.03111360117,"Summer",141226.93220000001,57579.808145000003,96944.812560999999,1860.8181970000001,56725.864979999998,44578.886616999996,7205.9290836,34074.555396999996,407.5214593]
[1915,"2011-08-12","KW60MN09 ",6822879.0108533129,2264867.1171580851,1662233.9702450479,124236.59312799999,478396.55378503725,"Summer",138797.88740000001,68645.294473000002,97947.957542000004,1880.0731771000001,56224.269711000001,36943.447016999999,8310.5393079999994,46623.778937000003,0]
[1916,"2012-06-28","KW60MN10 ",7457872.6072280928,2264406.2150336462,1651320.9209641095,121898.56181525881,491186.73225427809,"Summer",110075.67747,74475.406879999995,122605.02742,2353.3561006,55677.074871999997,45489.285858000003,9665.0652083000004,39544.202899999997,0]
[1917,"2011-10-25","KW60MN16 ",6628274.7018818017,2264195.0048179533,1672199.7288479819,87572.191412999993,504423.08455697156,"Summer",119796.50943000001,71259.559748999993,130004.35438,2495.3833209999998,55540.276163000002,44371.456351000001,8078.0539402000004,19170.103298999999,0]
[1918,"2011-08-11","KW60MN09 ",7052981.1043234663,2264024.089600191,1675638.9783408854,125187.958998,463197.15226130548,"Summer",122161.63423,71378.896934999997,103372.38557,1984.1929759,46648.360028000003,37417.032550999997,8705.4434564999992,47687.144714000002,0]
[1919,"2012-06-27","KW60MN12 ",7432575.4254239118,2263822.0019102586,1635429.0107642796,131768.78222481423,496624.20892116468,"Summer",142286.98037999999,79983.117675000001,104782.01933,2011.2503509999999,55221.079172999998,45180.198612,9733.9128939999991,37672.990591000002,0]
[1920,"2012-05-30","KW60MN08 ",6675450.2482928997,2263584.6191474553,1649451.4900601364,125439.95392758948,488693.17515972909,"Summer",147538.37246000001,48339.403068,82142.276310999994,1576.6892366,57455.458099000003,38097.340181,7209.573942,25573.665104,0]
[1921,"2011-08-17","KW60MN09 ",7009794.6137835393,2263500.9731478388,1671486.663234541,127067.021016,464947.28889729769,"Summer",117455.00886,64287.175002000004,94630.258461000005,1816.3912259000001,52393.905837999999,36022.892140999997,9630.3467977,43556.925851,0]
[1922,"2012-06-17","KW60MN19 ",7371749.925687287,2263447.4500580681,1675142.4442066427,123360.33090561222,464944.67494581296,"Summer",130717.14238,54731.811021000001,79802.500077999997,1531.7781362999999,52895.501106999996,30289.364784000001,5993.8725897000004,32705.943127999999,0]
[1923,"2012-05-09","KW60MN12 ",7031168.796321189,2263412.7126577711,1663689.9036634972,123429.5958629306,476293.21313134301,"Summer",111662.98351999999,76842.552431999997,108145.53902,2075.8118110999999,52895.501106999996,36457.185702000002,9426.5191859999995,21356.368259999999,0]
[1924,"2011-07-19","KW60MN19 ",8293337.2646270823,2263355.2137610926,1618752.6825350248,121929.37435500001,522673.15687106771,"Summer",188956.28571,56630.588245999999,98776.089840000001,1895.9688564,51481.91444,35783.921683,7164.9942698000004,44881.653667999999,0]
[1925,"2012-05-11","KW60MN07 ",6448240.1846762039,2263275.6175121116,1648553.1303435948,114030.71170182234,500691.77546669455,"Summer",166437.00784000001,43924.939477,83377.131181999997,1600.3917984,57364.258958999999,34640.889274000001,6885.0089415000002,21356.368259999999,0]
[1926,"2012-04-06","KW60MN14 ",6558066.242981974,2263080.7116333079,1675813.7961001764,102022.63177804367,485244.28375508799,"Summer",183348.03964,77215.389951999998,97052.525649000003,1862.8857081000001,53305.897235999997,33392.250849999997,8166.3786744999998,7467.6597125999997,0]
[1927,"2012-04-27","KW60MN07 ",6377364.4252808765,2262705.0278339256,1653215.3892439073,115003.7179264873,494485.92066353094,"Summer",169123.94774,46545.631960999999,82616.423641000001,1585.7903111999999,54172.289064999997,29957.831001999999,7707.7343819999996,7467.6597125999997,0]
[1928,"2011-07-03","KW60MN21 ",7671051.5801467281,2262412.6173743997,1623967.8312731155,127250.269705,511194.5163962841,"Summer",177003.62721999999,46785.755667999998,84739.065407000002,1626.5335993000001,54126.689494999999,24578.204431999999,6442.9569615,51212.773093999996,265.39075265999998]
[1929,"2011-09-19","KW60MN22 ",6430576.0308467038,2262276.9949734453,1661125.5235588218,97213.039712000013,503938.43170262378,"Summer",188245.46054,53849.52246,101340.06887,1945.1834426999999,57227.460249999996,36034.970044000002,7399.9987037000001,30217.333901999998,3053.2304963000001]
[1930,"2011-10-18","KW60MN17 ",6629478.6305927355,2262163.3295246428,1660495.3534788373,98121.742397000009,503546.23364880524,"Summer",141561.10524,74516.857550999994,127190.84144,2441.3790278000001,54081.089925,44604.855147000002,7464.1129836999999,19170.103298999999,0]
[1931,"2012-06-14","KW60MN22 ",7057300.2747696368,2262043.4914728794,1657091.0893029117,131842.91166295178,473109.49050701602,"Summer",159084.76641000001,58294.203569999998,90934.114736000003,1745.4451761,45599.569920000002,36173.448888999999,7011.8594645000003,35614.540930000003,3052.8205720999999]
[1932,"2011-07-16","KW60MN13 ",7647781.6956285601,2262022.0677290941,1611827.7226677176,128556.982315,521637.36274637643,"Summer",139166.07126,64293.144270999997,94357.055582000001,1811.1472022999999,55722.674442000003,33641.388054000003,6634.3856251999996,44606.156461999999,0]
[1933,"2012-05-24","KW60MN20 ",6888231.9668397801,2261940.2262630528,1659772.6071615082,120479.63415268791,481687.98494885676,"Summer",157811.35832999999,61719.645169000003,83919.840523000006,1610.8088944000001,55996.271862000001,40830.095669000002,6155.4127443999996,21356.368259999999,0]
[1934,"2011-10-25","KW60MN17 ",6597806.747136876,2261769.9301535469,1665448.2451492394,91066.527958999999,505255.15704530745,"Summer",124014.26498000001,66252.975153000007,126253.81148999999,2423.3931001999999,55768.274012000002,43607.893343999996,7443.2900626999999,19170.103298999999,0]
[1935,"2012-05-11","KW60MN12 ",6843477.6765710069,2261658.0183888413,1641038.7927572883,128373.28288801064,492245.94274354255,"Summer",99139.401031999994,69763.697769999999,111627.50039,2142.6467134,57592.256808999999,37625.137457999997,8135.7266587000004,21356.368259999999,0]
[1936,"2011-07-20","KW60MN23 ",7163942.4367726166,2261385.0150849596,1634865.8803974162,125915.30452599999,500603.83016154321,"Summer",181349.34993999999,54891.355213000003,90784.780396999995,1742.5787611999999,53853.092076000001,34790.065182999999,7038.0049267000004,51142.942040000002,3053.2304963000001]
[1937,"2012-04-10","KW60MN14 ",6477566.6119923806,2261367.4477301491,1681177.4206621,110064.46237453153,470125.56469351781,"Summer",118068.41193,77320.433027000006,123812.90823,2376.5409058,56269.869280999999,38641.657476,9520.6726443999996,7467.6597125999997,0]
[1938,"2011-09-11","KW60MN13 ",6505387.9107052414,2261008.3217346105,1609202.2834273316,96832.344956000001,554973.69335127878,"Summer",222403.81690000001,66606.172732000006,105921.61108,2033.124374,53807.492506000002,31519.355405999999,7478.1913094000001,35820.269392000002,0]
[1939,"2011-10-24","KW60MN07 ",6615239.6711711576,2260883.5798869375,1625178.2087323507,91742.850237000006,543962.52091758675,"Summer",237203.77171999999,50505.744965999998,117309.32296,2251.707101,55859.473151999999,40878.441425999998,7975.1988708999997,19170.103298999999,3053.2304963000001]
[1940,"2012-05-08","KW60MN21 ",6833102.3386973972,2260713.8796469541,1639424.6806318723,121366.20770339701,499922.99131168518,"Summer",161989.00888000001,66947.939520999993,95484.338604000004,1832.7849641,57136.261109999999,35208.606146999999,7123.3907511999996,21356.368259999999,2086.7982323000001]
[1941,"2011-07-19","KW60MN09 ",7666936.7326332396,2260675.7840788173,1643445.9892685683,122045.82642599999,495183.96838424908,"Summer",122447.90171999999,58846.588360000002,100005.92272,1919.5750231,47925.147986000004,38901.473286,9010.6363679000006,45499.979893000003,0]
[1942,"2011-10-18","KW60MN16 ",6657914.4482563194,2260668.8212904911,1662257.3513015623,99498.492209999997,498912.97777892888,"Summer",140094.79251,72597.281879999995,128331.16383,2463.2670754000001,53898.691644999999,45584.630944999997,8157.5060788999999,19170.103298999999,0]
[1943,"2011-07-16","KW60MN20 ",7821978.9770768285,2260376.2976862686,1605100.4892217228,124738.54142499999,530537.2670395457,"Summer",187631.77131000001,55339.677078000001,89199.413751,1712.1482613000001,55038.680892999997,31134.368973000001,6345.6682142,45570.721894000002,0]
[1944,"2012-04-17","KW60MN17 ",6554373.1837755712,2260325.5457275999,1689520.4146270799,101866.8827067346,468938.24839378532,"Summer",153897.90904999999,67815.566013000003,107098.17011000001,2055.7079696999999,35157.268408000004,34741.586085000003,7181.0076034000003,7467.6597125999997,0]
[1945,"2011-08-11","KW60MN23 ",6683759.4255407993,2259999.8626222513,1648834.3417752218,123745.023101,487420.4977460294,"Summer",191235.50907,61755.006061,78864.733739999996,1513.7780740000001,56862.663690000001,34138.805446999999,7310.1655774000001,54994.963305999998,3053.2304963000001]
[1946,"2011-07-05","KW60MN09 ",7371286.855013906,2259875.1387459501,1616722.2532860911,128931.88351699999,514221.00194285909,"Summer",128415.73621,61645.981331000003,97713.369149999999,1875.5703435999999,55494.676592999997,35863.592411999998,8113.8084183000001,42144.638498,0]
[1947,"2011-10-02","KW60MN20 ",6600133.9476630315,2259754.4819326778,1662068.9440612877,104146.68708800001,493538.85078339005,"Summer",189886.81932000001,54726.569631999999,90622.200568999993,1739.4581042,54719.483904000001,30455.621567999999,7543.5448071999999,19170.103298999999,3053.2304963000001]
[1948,"2012-04-16","KW60MN14 ",6614602.9981547305,2259301.7884005597,1691611.1311677727,105855.45679319244,461835.20043959434,"Summer",131935.41667000001,73190.273772,115834.66836,2223.401676,35567.664537999997,37008.167041000001,9376.6491370999993,7467.6597125999997,0]
[1949,"2012-04-03","KW60MN16 ",6593303.1809395766,2259017.5249746782,1697836.9680152582,94231.394261814698,466949.16269760532,"Summer",137799.38514,71844.544945999995,99178.786210000006,1903.6984574999999,54719.483904000001,34404.825857999997,7571.9418527999997,7467.6597125999997,0]
[1950,"2011-10-21","KW60MN19 ",6630954.5684830183,2258972.2099731099,1636502.8994683067,104376.438589,518092.87191580312,"Summer",162370.14420000001,69131.893576000002,139752.73336000001,2682.4996866000001,56725.864979999998,42998.128944999997,7233.8825849000004,19170.103298999999,2829.2279797000001]
[1951,"2012-06-19","KW60MN20 ",7293057.3341188692,2258571.9469008883,1602996.8281026133,131275.65426843433,524299.46452984051,"Summer",144279.80906,61508.737943,101436.07218,1947.0261889999999,55221.079172999998,41457.776334000002,6962.0876062999996,37746.615609,0]
[1952,"2011-07-21","KW60MN23 ",7276423.0867335247,2258446.2460018094,1658267.955575201,124797.78383999999,475380.50658660854,"Summer",172849.46312,54254.434960999999,84914.975927000007,1629.9101337,54673.884334000002,35837.192838000003,6639.5050161999998,54031.985644,3053.2304963000001]
[1953,"2011-07-31","KW60MN11 ",7347807.0012475559,2258432.6229566997,1595721.864632783,130932.52308500001,531778.23523891694,"Summer",197505.65728000001,66880.606482000003,95384.890469000005,1830.8760956000001,55129.880033000001,27237.776521,7230.6524928999997,36501.513906,0]
[1954,"2011-07-03","KW60MN12 ",7624380.5776952682,2258376.6436368581,1585059.3818928546,126879.38049600001,546437.8812480038,"Summer",201489.33272000001,58110.390239,94866.653781999994,1820.9287426999999,54081.089925,26181.202278000001,6575.1266403,46188.942601000002,0]
[1955,"2012-04-17","KW60MN22 ",6399892.9190780474,2258234.8572746702,1671985.9240152768,105522.6118853228,480726.32137407083,"Summer",216714.06779,61503.747216000003,91725.321662000002,1760.6320871,35795.662386999997,32410.753339999999,6576.2727478999996,7467.6597125999997,3053.2304963000001]
[1956,"2011-10-29","KW60MN11 ",6577121.0744675985,2258219.5362122473,1616977.8651581896,100473.255017,540768.41603705788,"Summer",239721.45238999999,55045.527866999997,102958.16714999999,1976.2422136,56315.468850999998,36657.065237000003,5656.5819079000003,19170.103298999999,0]
[1957,"2012-04-01","KW60MN22 ",6303989.6674426831,2258180.0167506393,1669402.0955724143,111995.0289577567,476782.89222046832,"Summer",230304.02580999999,50107.626022999997,70553.396175999995,1354.2451627999999,54765.083473999999,25399.069077,5900.8110642000001,7467.6597125999997,3053.2304963000001]
[1958,"2011-10-11","KW60MN16 ",6759801.1233382169,2258075.3188173557,1681816.7405324685,89383.185252999989,486875.39303188742,"Summer",132024.75205000001,73167.958505000002,131878.37385999999,2531.3544003000002,41450.009057000003,43075.831655000002,8082.9904962000001,19170.103298999999,0]
[1959,"2011-07-12","KW60MN23 ",7000875.3859162722,2258055.0980827976,1603414.8511873595,133221.900857,521418.34603843791,"Summer",172481.80918000001,53133.488097000001,87173.706655999995,1673.2655967999999,54765.083473999999,36214.517857999999,6689.1549851,39279.223384999998,3053.2304963000001]
[1960,"2011-10-29","KW60MN10 ",6582381.8573930906,2258052.34166699,1595492.7858508388,105232.227684,557327.32813215116,"Summer",252749.08186000001,49970.919307999997,101990.62565,1957.6706285,56497.867130999999,36297.171171000002,5719.4976004999999,19170.103298999999,0]
[1961,"2012-06-18","KW60MN18 ",7966957.9643685054,2257986.7439978188,1627088.8045943484,131261.48722618667,499636.4521772837,"Summer",145446.39410999999,61966.708654000002,95761.594442000001,1838.1067826999999,56862.663690000001,40799.668624999998,7261.9376613000004,32495.569056,0]
[1962,"2011-08-13","KW60MN21 ",7399501.7067868374,2257964.5013126493,1612099.0850254686,127470.27953699998,518395.13675018074,"Summer",203149.80072,70505.153346999999,94427.835949,1812.5058039999999,46283.563469000001,28529.439342000001,7468.8260742000002,46816.335441000003,2239.4597568999998]
[1963,"2012-06-16","KW60MN13 ",7017552.0890758904,2257874.3406960941,1616104.7089625595,122607.86607760897,519161.76565592585,"Summer",174677.25081,63674.041847,98024.222882999995,1881.5370608000001,52621.903687999999,33849.197971000001,6666.7678058000001,31636.8243,0]
[1964,"2011-10-20","KW60MN07 ",6467447.9577777712,2257616.7656224505,1655710.8471971839,93706.477092000001,508199.44133326673,"Summer",189259.47912,52113.724770000001,112516.60906,2159.7128106,54628.284764000004,44264.361047999999,8877.7759784999998,19170.103298999999,3053.2304963000001]
[1965,"2012-06-21","KW60MN23 ",7006745.5127840396,2257483.0042666169,1601689.1408926768,115314.9084849778,540478.95488896244,"Summer",179680.90122,67063.857432000004,93814.615283000006,1800.7352704,54856.282614000003,38294.403972,7054.9883037999998,41502.257084999997,3053.2304963000001]
[1966,"2011-07-10","KW60MN12 ",7300775.2072279397,2257426.6093938523,1618831.9289940244,129013.14526600001,509581.53513382789,"Summer",171887.39874999999,51097.435347999999,90874.259076999995,1744.2962697999999,54719.483904000001,28195.459929000001,6475.1766224000003,32445.092977,0]
[1967,"2012-06-25","KW60MN13 ",8146400.9185104957,2257331.08928642,1615501.8572923648,129339.94525913235,512489.28673492267,"Summer",132403.52389000001,81575.556488999995,120226.83018,2307.7075240999998,55996.271862000001,45292.416667999998,9115.3604221000005,38078.756417999997,0]
[1968,"2012-06-07","KW60MN10 ",6862846.8320396794,2257268.1818905408,1649457.9042565038,124671.44038321861,483138.83725081832,"Summer",140181.85980000001,67816.808071000007,104180.88428,1999.7117960999999,56406.667991000002,42107.017133000001,8699.1762651999998,26543.571042,0]
[1969,"2012-05-23","KW60MN21 ",6976070.0902298298,2257182.4894855698,1660409.9174360037,126038.83219491277,470733.73985465337,"Summer",124162.17868,62382.481530999998,81983.500035000005,1573.6415873000001,57592.256808999999,38859.828468,6111.9487068999997,21356.368259999999,1221.7162585000001]
[1970,"2011-10-19","KW60MN18 ",6621475.6438052682,2257158.3152264962,1655985.3500658099,94907.463910000006,506265.50125068624,"Summer",133747.59265999999,60825.426103999998,124675.72974,2393.1024312,51208.317020000002,43469.672929,7056.4713023000004,19170.103298999999,0]
[1971,"2011-08-26","KW60MN08 ",7040346.8167342069,2256565.6281782133,1628071.5104104851,119599.17134999999,508894.94641772803,"Summer",150323.80491000001,66266.679566999999,97992.107757999998,1880.9206234000001,54993.081323999999,38802.648031999997,8851.9149264999996,48469.950494999997,0]
[1972,"2011-10-06","KW60MN22 ",6507663.3073842097,2256543.0138493483,1664830.3654793312,98891.020856000003,492821.62751401711,"Summer",183224.59805,56481.370970000004,101350.41588,1945.3820495,55859.473151999999,38871.685696,6906.3837540000004,19170.103298999999,3053.2304963000001]
[1973,"2011-10-21","KW60MN13 ",6687164.8718508426,2256461.1563162166,1650797.6115175071,99840.192118000006,505823.35268070939,"Summer",133797.76631000001,67474.226632999998,139814.22807000001,2683.6800538000002,51846.710999000003,47514.622010999999,8495.6296781000001,19170.103298999999,0]
[1974,"2012-06-30","KW60MN12 ",7486013.6656916644,2256430.8749821368,1599870.6295370762,128963.9610763353,527596.28436872538,"Summer",185001.27942000001,66840.944180999999,109683.62536999999,2105.3347838,55266.678742999997,33793.149026999999,6688.5658485000004,36370.975382999997,0]
[1975,"2012-04-13","KW60MN21 ",6439789.7284552781,2256288.5480627944,1691538.9269461974,113411.76619613271,451337.85492046416,"Summer",143340.39384999999,62830.742337000003,96403.315457000004,1850.4243695,39215.630130999998,31317.207556000001,6350.0139409000003,7467.6597125999997,3053.2304963000001]
[1976,"2012-05-29","KW60MN22 ",6838677.9381900616,2256273.8300739271,1635146.9763824856,125821.80696937942,495305.04672206205,"Summer",162469.47403000001,57943.821107999996,78749.125098999997,1511.5590109,56361.068421000004,33429.679575000002,6160.4407178000001,28699.888857999998,3053.2304963000001]
[1977,"2011-09-08","KW60MN23 ",6709996.7220134465,2256267.2074569133,1658625.1470708591,107779.569252,489862.49113405443,"Summer",188404.86309999999,61711.301046,96927.252995000003,1860.4811479,53032.299816999999,37475.829662999997,7289.7286416999996,45868.922257999999,3053.2304963000001]
[1978,"2011-09-18","KW60MN21 ",6372682.9624262396,2256150.435499005,1654776.2495681294,105177.821056,496196.36487487564,"Summer",196407.49663000001,53353.449653000003,85567.527031000005,1642.4355998999999,54810.683043999998,30242.764497,6804.0365603,30217.333901999998,3053.2304963000001]
[1979,"2012-06-26","KW60MN12 ",7828473.8736945502,2255830.2885316922,1632853.5313355091,135654.29289743589,487322.46429874707,"Summer",124216.40098000001,75687.973595000003,110132.99047,2113.9601732000001,49201.935943999997,45393.050232000001,9313.3102154000007,38261.506985,0]
[1980,"2011-08-13","KW60MN14 ",7563486.797601616,2255697.6027811598,1591537.6791807392,125579.46589100001,538580.45770942036,"Summer",231423.16104000001,75095.161665000007,106059.99292,2035.7805599999999,55449.077022999998,31010.415582000001,7639.6552824,45270.536296999999,0]
[1981,"2012-04-26","KW60MN21 ",6542821.6821794556,2255639.0073764049,1669648.3602635935,109527.55894761095,476463.08816520049,"Summer",192480.27979,61521.977992,92787.699936000005,1781.0240274,49749.130783000001,30927.680297999999,6815.7346401000004,7467.6597125999997,2829.2279797000001]
[1982,"2011-07-23","KW60MN13 ",7639567.3876740281,2254864.9759641523,1616670.3361128538,124692.86205,513501.77780129842,"Summer",184655.38435000001,67969.725812000004,111048.85262000001,2131.5397931000002,53032.299816999999,33010.472296,6438.6908020000001,43593.863381000003,0]
[1983,"2012-05-14","KW60MN09 ",6806163.7792314393,2254684.012404819,1631071.3455319027,128500.1331385964,495112.53373431973,"Summer",115191.92713,66275.211685999995,109431.46202000001,2100.4946058999999,56953.862829999998,36017.834726000001,8333.4936159000008,21356.368259999999,0]
[1984,"2011-07-01","KW60MN10 ",7205471.2360533979,2254496.2841561278,1627976.4474789198,131837.277948,494682.55872920831,"Summer",147037.14468999999,66898.932058999999,105624.32906,2027.4181606,56406.667991000002,37570.776016999997,6853.3411734000001,44290.749476999998,0]
[1985,"2012-05-24","KW60MN22 ",6716613.3138540331,2254130.5544633111,1642167.2754264055,119888.02399155489,492075.2550453507,"Summer",163270.01613,57997.192644000002,76079.722987000001,1460.3208694,55449.077022999998,38483.123839,6203.9978656000003,21356.368259999999,3053.2304963000001]
[1986,"2011-09-07","KW60MN23 ",6740812.2850081101,2254091.4933339749,1656770.2231139599,107604.15095200001,489717.11926801479,"Summer",186044.42287000001,67178.589523000002,94445.780301999999,1812.8502390000001,53625.094226000001,35313.862777000002,7726.2380015999997,51443.682238000001,3053.2304963000001]
[1987,"2012-05-22","KW60MN22 ",6904556.7737645563,2253957.0713121938,1643682.0107601327,123608.39227239159,486666.66827966936,"Summer",154658.54751,61963.239568999998,82031.640742999996,1574.5656296,57637.856378999997,39264.772358000002,5927.6455452999999,21356.368259999999,3053.2304963000001]
[1988,"2011-10-13","KW60MN17 ",6632045.3650049362,2253834.288650136,1656203.2486554917,88888.003735999999,508743.03625864425,"Summer",149194.74940999999,65770.495890999999,125622.59009,2411.2770495,52439.505407999997,41580.796616,7245.8684614000003,19170.103298999999,0]
[1989,"2011-10-27","KW60MN17 ",6676356.8448923854,2253781.240100137,1645446.8610805296,95436.076512,512898.30250760744,"Summer",154770.11869999999,71224.512182999999,128587.24545,2468.1824628999998,47651.550565999998,41372.228845999998,7469.0698537999997,19170.103298999999,0]
[1990,"2011-07-16","KW60MN21 ",7718534.4274785267,2253064.9145082063,1600958.1231955038,129263.49015899998,522843.30115370243,"Summer",160862.75140000001,53008.477293000004,89777.199393000003,1723.2386334,56452.267561000001,30547.140160999999,6369.2742950000002,47166.114886000003,560.18298412000001]
[1994,"2011-07-15","KW60MN09 ",7408955.2102394244,2252109.1904298859,1628720.8796818228,133059.81971000001,490328.49103806284,"Summer",126353.9638,66438.331013000003,100816.17267,1935.1274576999999,54856.282614000003,38220.791147000004,7088.2846615999997,39262.407964999999,0]
[1997,"2011-10-04","KW60MN07 ",6642233.1911202967,2251513.5714119733,1669550.2377228811,99243.613846000007,482719.71984309197,"Summer",150595.70073000001,54059.343487999999,102873.99133,1974.6264913,54035.490355000002,39951.800152000003,7448.2672492000002,19170.103298999999,3001.226631]
[2001,"2012-05-25","KW60MN14 ",7011426.1818270879,2250557.9935235698,1654765.8642344153,112422.74610515694,483369.38318399782,"Summer",109068.02864,72370.174876000005,116924.70196000001,2244.3244496000002,55084.280463000003,46274.397273000002,7954.0492166000004,24904.440268999999,0]
[2004,"2012-06-17","KW60MN14 ",7054317.8465768285,2250100.9042726504,1654691.6703224625,120737.68148048292,474671.552469705,"Summer",202697.65495,54489.990530000003,86635.923423999993,1662.9430556,53032.299816999999,31094.590945,6298.8217215000004,32853.050130000003,0]
[2007,"2011-10-13","KW60MN16 ",6670054.2359934766,2249690.8114253762,1658857.4100591706,84827.751128000004,506005.65023820568,"Summer",141004.40453,70520.959459000005,132379.19141,2540.9673997,52485.104978000003,42045.960561,7726.5630422000004,19170.103298999999,0]
[2011,"2012-04-07","KW60MN07 ",6122789.8639468011,2248857.3475513952,1625829.5942879582,92475.080743410668,530552.67252002656,"Summer",234635.8432,49440.840142000001,64167.992610000001,1231.6798100000001,55084.280463000003,24797.761953000001,6112.1349284999997,7467.6597125999997,1424.4168388999999]
[2012,"2012-06-28","KW60MN22 ",7578263.9754078342,2248796.8364119027,1621782.0403277199,131800.18329654145,495214.61278764118,"Summer",130995.12178,62552.461903000003,103735.30746,1991.1591212999999,55449.077022999998,44518.435354000001,7317.5805678999996,41300.865862999999,3032.5505136000002]
[2016,"2012-06-13","KW60MN10 ",6927647.7939985991,2248487.0416627876,1631227.3249739385,129308.79641197108,487950.92027687794,"Summer",131556.18909,67353.076975000004,106458.48396,2043.4294413,56543.466700999998,40366.294279000002,9508.6596817000009,32282.256970999999,0]
[2019,"2012-04-10","KW60MN19 ",6527613.3396983109,2248285.308615081,1674902.8230263365,114447.23836799579,458935.24722074857,"Summer",125477.79028,57807.970818000002,98414.626487999994,1889.0307071,56634.665841000002,35159.998184999997,6474.5959506999998,7467.6597125999997,0]
[2022,"2012-05-09","KW60MN13 ",7078954.0691501293,2247998.9170083804,1651587.9244496997,122949.0756156704,473461.91694301035,"Summer",105309.97564999999,78358.465693999999,108872.98305,2089.7748179999999,53123.498957000003,37240.543290000001,9311.3041042999994,21356.368259999999,0]
[2026,"2012-06-20","KW60MN10 ",6919771.8231096463,2247153.4469422754,1632030.2029827493,124425.35637560923,490697.88758391666,"Summer",106289.66544,67176.797938999996,105106.9421,2017.4871178999999,54765.083473999999,40208.509359999996,8822.0924414000001,38250.525491,0]
[2029,"2012-05-07","KW60MN10 ",6668210.0275283093,2246886.9110279717,1637731.5574160456,114909.72721526725,494245.62639665889,"Summer",103507.78350999999,63825.524713999999,103432.61671,1985.3490893999999,57045.061970000002,36364.140044,8714.3719184000001,21356.368259999999,0]
[2032,"2012-06-22","KW60MN10 ",7454244.082837916,2246157.8772974815,1607651.904130552,128197.17480698187,510308.79835994769,"Summer",132901.99603000001,78717.083016000004,121926.03976,2340.3231950999998,57318.659389,47729.455326000003,8840.5791312000001,37923.626261999998,0]
[2034,"2011-10-27","KW60MN16 ",6648050.3075229432,2245571.9275091216,1649053.9462061168,91995.634088000006,504522.34721500479,"Summer",153295.81464999999,72003.677796999997,132141.12098000001,2536.3977298999998,45918.766908999998,41453.838278000003,8086.7690941999999,19170.103298999999,0]
[2037,"2011-10-24","KW60MN17 ",6695017.1327434983,2245363.6951723495,1653228.8953237173,89975.767120999997,502159.03272763226,"Summer",132186.03055,64973.551012999997,127010.95282999999,2437.9261354999999,56041.871432,45291.609774999997,7273.2531412999997,19170.103298999999,0]
[2041,"2011-07-19","KW60MN22 ",7733376.6683943868,2244452.4850736563,1611379.8755250529,124671.86873199999,508400.74081660341,"Summer",180398.32928999999,55657.460740000002,85201.416028000007,1635.4082407000001,53351.496806000003,33973.567881000003,7017.2632666999998,50742.581881999999,3053.2304963000001]
[2044,"2012-06-14","KW60MN09 ",6942775.836132098,2244084.5806754851,1639620.4656703896,129206.68606316797,475257.42894192768,"Summer",110294.17767,63978.355688000003,98705.743063000002,1894.6185771999999,49566.732502999999,39373.707528999999,9218.6014777,31715.523852999999,0]
[2047,"2012-04-02","KW60MN20 ",6731424.9759624219,2243846.73175913,1661333.6783594566,106211.62144535895,476301.43195431441,"Summer",168716.66574,55274.179007999999,92775.593651999996,1780.7916519,56224.269711000001,31192.020922,6603.9266021000003,7467.6597125999997,1425.2649578999999]
[2051,"2012-05-22","KW60MN20 ",7197298.4584499113,2242307.3666588357,1642412.8550557091,125459.60124171354,474434.91036141297,"Summer",137927.08734999999,57231.962824000002,83533.882356999995,1603.4005766,57364.258958999999,38724.004067000002,5912.1519377000004,21356.368259999999,0]
[2053,"2011-09-30","KW60MN10 ",6951954.5639326768,2241938.1771187023,1656164.1955521354,96154.027654999998,489619.95391156676,"Summer",120621.95818,65564.409071000002,128255.13194000001,2461.8076725000001,51436.314870000002,39636.198187000002,9517.1513701999993,30217.333901999998,0]
[2056,"2012-06-01","KW60MN09 ",6843746.2310847649,2241060.9947170927,1608596.0143986202,129304.27873057828,503160.70158789417,"Summer",112120.33318,61014.053413000001,109312.43369999999,2098.2099033,56862.663690000001,41267.643195999997,8409.1553050999992,29402.624776000001,0]
[2059,"2011-09-21","KW60MN10 ",6593067.4995563347,2240775.1434040163,1650425.4129513281,94180.71977299999,496169.01067968807,"Summer",98351.132085000005,68040.765742999996,123906.47202,2378.3368266000002,55768.274012000002,39578.736606999999,10525.610489999999,30217.333901999998,0]
[2062,"2012-05-07","KW60MN21 ",6737952.2505788058,2240304.9873391138,1632871.3463361845,117674.08393535383,489759.55706757528,"Summer",172047.79757,52790.707415999997,92578.428295000005,1777.0071390999999,57227.460249999996,33595.668306,6745.6037217000003,21356.368259999999,2137.6854072000001]
[2066,"2012-05-23","KW60MN17 ",7033036.6282071155,2239808.1816870091,1640509.4027684897,120278.89768934452,479019.88122917473,"Summer",130783.46825000001,76065.398534000007,102300.12222999999,1963.6112958000001,57683.455949000003,41582.766908999998,7068.8837946000003,21356.368259999999,0]
[2069,"2012-05-17","KW60MN20 ",7218467.6904016947,2239629.8807572383,1625934.3981867568,123773.65320418372,489921.82936629758,"Summer",147612.00075000001,57775.216159000003,84119.307371000003,1614.6375834,54947.481754,34715.419306000003,6856.3308711999998,21356.368259999999,0]
[2072,"2011-09-02","KW60MN09 ",6703553.3839202868,2239252.7499205433,1629140.1167730256,118484.44871500001,491628.18443251756,"Summer",124435.95045,61638.143349999998,108272.54868000001,2078.2497122999998,56452.267561000001,39175.903360999997,7762.6222457000003,43311.490384999997,0]
[2074,"2012-05-08","KW60MN11 ",6816721.4136391664,2239077.1728413859,1638031.1796732813,122462.05736045382,478583.93580765114,"Summer",123236.35084,80576.112779999996,112314.21503000001,2155.8279354000001,49977.128632,36675.847569999998,9699.2401921000001,21356.368259999999,0]
[2080,"2012-05-09","KW60MN08 ",6680327.3560848618,2238283.7469099378,1647131.7206588639,122375.55076926562,468776.47548180819,"Summer",145711.00870999999,51339.847140999998,93384.683850000001,1792.4829027999999,56634.665841000002,35332.895190000003,8256.7890869999992,21356.368259999999,0]
[2081,"2012-06-25","KW60MN11 ",7720962.3946992448,2238094.8716057362,1614826.8475366726,128033.22637099055,495234.79769807332,"Summer",110413.15727,75986.440283000004,110604.35529000001,2123.0078388000002,55722.674442000003,43698.903233999998,9232.1312973999993,38624.285467000002,0]
[2084,"2012-05-10","KW60MN12 ",6875487.8757354068,2237834.9627571627,1627911.2923675433,125757.97857890348,484165.69181071571,"Summer",105674.17445000001,77042.187942000004,109145.4415,2095.0045525999999,48107.546265999998,36191.297528000003,9295.3635656999995,21356.368259999999,0]
[2087,"2012-04-09","KW60MN20 ",6686620.8578946637,2237645.6434905538,1666460.4921871764,108674.1940903708,462510.95721300645,"Summer",155660.81226999999,52079.136748999998,99065.656239999997,1901.5269714999999,56224.269711000001,32914.395019000003,6532.9949309000003,7467.6597125999997,967.28038360000005]
[2091,"2011-10-17","KW60MN18 ",6665563.592731813,2237078.8791413521,1634242.3239271094,89347.832414999997,513488.72279924282,"Summer",140013.8406,55297.316957000003,120506.58362999999,2313.0772834999998,56862.663690000001,43692.670190999997,7051.6363215000001,19170.103298999999,0]
[2095,"2012-04-30","KW60MN10 ",6599603.4889798164,2236367.2945345892,1681359.2653977682,106848.78034184637,448159.24879497458,"Summer",89318.719901999997,62905.347761999998,108271.17017,2078.2232524000001,55266.678742999997,35471.906150000003,7911.1624641999997,7467.6597125999997,0]
[2098,"2011-07-30","KW60MN24 ",6862060.704576524,2235599.812694225,1611436.646633504,117460.80729900001,506702.35876172106,"Summer",168126.50534,62747.770295000002,73233.357613999993,1405.6859864999999,54993.081323999999,28742.875241000002,6570.2916593999998,43196.318892000003,3053.2304963000001]
[2102,"2011-07-02","KW60MN11 ",7413752.721564264,2234952.7356051831,1593006.4623070678,132038.01582899998,509908.25746911543,"Summer",142779.00857999999,49645.006834,93626.23792,1797.1194398,56133.070571999997,29459.562535000001,5977.2751989999997,46493.106269000004,0]
[2105,"2012-04-11","KW60MN17 ",6474106.9257186977,2234627.5279514673,1650681.5643036899,108127.57222409637,475818.39142368117,"Summer",139312.04542000001,74203.788245999996,105847.33111,2031.6985987,56315.468850999998,34908.499165000001,7247.2651206999999,7467.6597125999997,0]
[2106,"2011-10-21","KW60MN14 ",6653758.3611605996,2234461.0166352335,1639579.7541769862,97587.728342999995,497293.53411524731,"Summer",118151.07021000001,67644.383753000002,141240.52241000001,2711.0572222999999,51162.717449999996,47433.244107999999,8491.6479287000002,19170.103298999999,0]
[2109,"2011-10-12","KW60MN18 ",6610207.891194026,2233569.6277927654,1660064.9052418137,90215.434848999997,483289.28770195163,"Summer",153051.07238,63128.702882999998,123631.76145000001,2373.0638634000002,29958.917437,40518.944343000003,7239.2051271999999,19170.103298999999,0]
[2112,"2011-09-05","KW60MN12 ",6826862.1097866232,2233130.4791050893,1632701.7591931887,116694.63428100001,483734.08563090063,"Summer",150244.27321000001,52961.806122000002,95155.827011999994,1826.4793110999999,54172.289064999997,21027.931132000002,6855.9821287000004,36490.987240000002,0]
[2116,"2012-05-18","KW60MN15 ",6783435.6268100506,2233006.3748211577,1597943.2140605876,119034.04305639723,516029.11770417303,"Summer",95984.989824999997,74296.460552999997,117213.4152,2249.8661885000001,55084.280463000003,47221.689601999999,8427.7215630999999,21356.368259999999,0]
[2120,"2011-07-28","KW60MN08 ",7164739.039169007,2232510.8093213807,1631141.6928393734,124033.772528,477335.34395400732,"Summer",115641.22188,56838.106726999999,85878.548183000006,1648.4055306,55905.072721999997,38432.879090000002,7819.0574391,37987.418002999999,0]
[2124,"2011-07-18","KW60MN23 ",7474608.6261184104,2231967.251042685,1582997.6786581655,118351.62106300001,530617.95132151956,"Summer",207753.29136999999,51980.247726000001,80291.023950999996,1541.1551632000001,48426.743255000001,35511.794006999997,7366.2757290999998,51863.364826999998,3053.2304963000001]
[2127,"2012-05-02","KW60MN12 ",6661970.2164258314,2230595.2771556107,1639653.8052860559,110691.20146539151,480250.27040416311,"Summer",96033.510097000006,70299.752632000003,113269.87278999999,2174.1714166000002,56771.464549999997,34607.526213999998,9203.4447622999996,21356.368259999999,0]
[2130,"2012-06-17","KW60MN13 ",6861543.7917573731,2230131.6879182947,1630289.6646364566,119104.53309716424,480737.49018467392,"Summer",182189.23394999999,54525.197168999999,83172.256869000004,1596.4593152,53442.695946,31088.146790999999,6313.4891839000002,33519.443669,0]
[2131,"2011-08-14","KW60MN17 ",7757614.2818332678,2229602.2233616295,1624159.8760897769,117121.940999,488320.40627285256,"Summer",238387.60065000001,62429.797030000002,96347.469465999995,1849.3524272,54035.490355000002,27204.249648000001,7201.2972540999999,44660.529964000001,0]
[2134,"2012-06-30","KW60MN20 ",7693571.9937290363,2228525.9161989139,1589862.0411502209,126138.22498020911,512525.65006848384,"Summer",154728.67827999999,62562.126816999997,102176.02335,1961.2292656,56406.667991000002,32140.673986000002,6412.9922709000002,37029.400861000002,0]
[2137,"2011-10-24","KW60MN16 ",6769225.3079395685,2227971.3599184365,1639292.2163260919,86761.368877000001,501917.77471534448,"Summer",129175.69636,67333.367941000004,130162.10363,2498.4112570000002,55996.271862000001,45378.558348999999,7984.3000101999996,19170.103298999999,0]
[2142,"2011-10-28","KW60MN16 ",6576354.2754249228,2227463.7041373821,1618420.7456691051,90046.93813200001,518996.02033627697,"Summer",160272.10347,75963.331256999998,132566.3787,2544.5603873,56315.468850999998,42413.709310999999,7897.7985509,19170.103298999999,0]
[2145,"2012-04-06","KW60MN22 ",6359903.3291277187,2227024.5579389329,1633592.2823067652,107521.99881305323,485910.27681911457,"Summer",191742.67202999999,65267.349941,83021.111122999995,1593.558131,55996.271862000001,27581.660050999999,6349.2131891999998,7467.6597125999997,3053.2304963000001]
[2149,"2012-06-26","KW60MN14 ",7780715.8810960921,2226644.7880368219,1608205.194392106,130503.13105719224,487936.46258752339,"Summer",107766.70392,76110.684643000001,110633.14352,2123.5604176000002,54993.081323999999,46417.104157000002,9447.3082474999992,36888.971080000003,0]
[2152,"2012-05-11","KW60MN14 ",6851391.2414885126,2225647.2226500977,1610054.6683496183,126320.87506699994,489271.6792334792,"Summer",87956.601760000005,71489.885177000004,118996.62652000001,2284.0942404000002,57364.258958999999,37863.127407,8194.1442614000007,21356.368259999999,0]
[2155,"2011-07-29","KW60MN08 ",7158176.2586206961,2224517.0434716949,1601892.373843292,123601.05850700001,499023.6111214027,"Summer",117861.67615,59469.590493000003,98821.484328999999,1896.8401861,56269.869280999999,39721.955319000001,7063.5612533000003,37810.418954000001,0]
[2156,"2011-10-23","KW60MN19 ",6548167.612300273,2224507.7754118685,1617806.078736708,105176.37733600001,501525.31933916017,"Summer",181513.23569999999,54109.527128000002,104779.40274999999,2011.2001267999999,54673.884334000002,33593.797371000001,6171.2432429,19170.103298999999,2930.9175177000002]
[2162,"2011-08-14","KW60MN21 ",7329519.2048232723,2223625.566012708,1626270.1095330459,125141.41803099999,472214.03844866203,"Summer",198807.50133,56790.842645999997,82000.075643000004,1573.9597497,55403.477453,26765.760034999999,7014.4597905000001,49259.279555000001,2341.2341065999999]
[2164,"2012-04-02","KW60MN15 ",6586981.7209611265,2223171.5455869725,1629659.2267204896,99682.367201657718,493829.95166482526,"Summer",151811.71752000001,63858.618408000002,104452.27735999999,2004.9210813,55859.473151999999,35378.712109,7739.5782141,7467.6597125999997,0]
[2167,"2012-06-13","KW60MN21 ",7298649.3363137124,2222191.0250454592,1611151.4480239076,127944.04275058251,483095.53427096904,"Summer",147696.14283,59218.301119000003,89493.209140999999,1717.7875503,53944.291214999997,37176.941949,7096.6138303999996,35375.696345999997,357.04420886999998]
[2170,"2011-08-28","KW60MN11 ",7099354.0673540924,2221781.3178086258,1548792.5625447272,116179.96198400001,556808.7932798987,"Summer",222753.05051,68190.572715999995,88316.538037999999,1695.2018032999999,55084.280463000003,27311.571019999999,7532.2902728999998,43892.161306000002,0]
[2174,"2012-05-18","KW60MN16 ",6779676.5912456764,2221561.1561618508,1583861.8582551214,122229.7812631033,515469.51664362632,"Summer",100610.26054,78612.603927999997,115269.65373999999,2212.5564387999998,55494.676592999997,44517.521224999997,8171.4811368000001,21356.368259999999,0]
[2177,"2012-05-21","KW60MN08 ",6805583.9618750159,2220749.8886008295,1609947.2684208758,122913.14786942348,487889.47231053031,"Summer",142757.35569,51250.195621999999,91947.453775000002,1764.8958272,55631.475301999999,38257.727866000001,7518.9432882000001,21356.368259999999,0]
[2180,"2012-05-08","KW60MN22 ",6519062.0186022725,2219986.5623360071,1606088.0771873249,122400.86277462973,491497.62237405265,"Summer",183970.86485000001,65551.789248000001,90237.517219999994,1732.0742561,56999.462399999997,34481.528588000001,6769.7007494999998,21356.368259999999,3053.2304963000001]
[2183,"2012-06-18","KW60MN10 ",7505447.6208884167,2218879.9652673816,1609060.9120917073,129058.66464515369,480760.38853052049,"Summer",118862.4783,64899.863072,109465.67114000001,2101.1512367999999,55677.074871999997,39287.021860000001,8596.0266269999993,34719.160946999997,0]
[2185,"2011-10-01","KW60MN18 ",6572149.6640128018,2218682.1018798719,1664265.3797280372,91649.725467000011,462766.99668483465,"Summer",156539.24328,55887.572463999997,95756.728273999994,1838.0133785,55129.880033000001,32419.367563,6964.1394251000002,19170.103298999999,0]
[2189,"2012-05-04","KW60MN14 ",6691027.3063900704,2217956.0595772453,1627759.6398536295,109393.31330275458,480803.10642086098,"Summer",103986.84966000001,69911.330738999997,114555.06938,2198.8402683999998,56908.26326,36677.280307000001,8055.7446351999997,21356.368259999999,0]
[2192,"2011-08-27","KW60MN23 ",6938353.395395143,2217755.4629854485,1570591.550531924,117228.054841,529935.85761252465,"Summer",207744.37797,70151.770986000003,87348.689828000002,1676.6243311000001,55768.274012000002,29483.644806,7039.5691851000001,53161.757654000001,3053.2304963000001]
[2195,"2011-07-23","KW60MN12 ",7442633.2512807623,2217030.1883185124,1592488.9517485672,124710.51287000001,499830.72369994532,"Summer",167796.05239999999,60020.336345999996,109424.53309,2100.3616077000001,52758.702397000001,32733.323466000002,6237.8359584,43834.794310999998,0]
[2199,"2012-06-20","KW60MN23 ",6666996.8856395669,2216503.046096337,1598868.6594249392,127605.84754573024,490028.53912566765,"Summer",159114.96174999999,61204.812947999999,87006.593200999996,1670.0579187000001,54673.884334000002,38276.741177000004,6747.1747511000003,43691.849639,3053.2304963000001]
[2200,"2012-04-16","KW60MN20 ",6606618.4513175432,2216463.4666591138,1643309.0610170898,108195.71653312616,464958.68910889799,"Summer",204080.80067,48659.942395999999,95786.786145999999,1838.5903277,35294.067117999999,31918.640196,6240.3854963000003,7467.6597125999997,509.29580915000003]
[2206,"2011-09-16","KW60MN20 ",6444242.9839754747,2215957.9456775221,1611587.3400150572,104845.842047,499524.76361546468,"Summer",151826.51313000001,68476.021093999996,110173.38364,2114.7355044999999,54445.886484000002,33874.007784000001,7253.6694381999996,30217.333901999998,2443.0084563999999]
[2207,"2011-07-17","KW60MN18 ",8142482.5048114397,2215902.0999555904,1501061.6049908728,120884.61117400001,593955.88379071746,"Summer",221897.59719999999,59512.700990999998,91535.927154999998,1756.9967328,54400.286914999997,29638.750630999999,6936.1249791999999,39544.308859999997,0]
[2210,"2012-06-13","KW60MN09 ",6618761.9905585237,2215384.8052145857,1610213.2127082592,127302.49434383448,477869.09816249216,"Summer",133056.95778,58689.907488999997,104001.7138,1996.272688,56452.267561000001,39226.042740999997,9305.5904984000008,32873.904495000002,0]
[2214,"2012-04-30","KW60MN13 ",6628736.3230953142,2214654.0783635383,1651175.8662739375,107101.82280361876,456376.389285982,"Summer",108583.89637,71841.006768000007,112882.06785000001,2166.7276507000001,54081.089925,37027.600205000002,9213.7986624999994,7467.6597125999997,0]
[2217,"2011-07-14","KW60MN23 ",7055208.6109625744,2214169.3656024607,1604116.9264076906,131457.84145000001,478594.59774476988,"Summer",172590.49755999999,49137.008342000001,78569.055634999997,1508.1026471,55084.280463000003,35291.279002000003,6579.2505941999998,47777.634322999998,3053.2304963000001]
[2220,"2011-08-05","KW60MN23 ",6425801.7608492635,2213284.1761334352,1591900.6629379741,121527.827615,499855.68558046129,"Summer",165367.80249,73164.613142999995,89880.512742999999,1725.2216931999999,54810.683043999998,31711.392513999999,6906.6072194999997,38243.763619999998,3053.2304963000001]
[2225,"2011-07-09","KW60MN23 ",6834361.1478295792,2212584.167522639,1599850.0137079407,132063.18467100002,480670.96914369799,"Summer",163161.02038999999,54149.078560000002,85854.235255000007,1647.9388534,54673.884334000002,29406.791708000001,6015.6096878999997,43015.275002000002,3053.2304963000001]
[2228,"2012-05-09","KW60MN15 ",7135556.7793641957,2212271.7283545556,1618159.8494227068,120224.44732044837,473887.43161140051,"Summer",102260.46911999999,71471.975762000002,108813.86091,2088.6399913,55768.274012000002,37257.884997000001,9161.8988028000003,21356.368259999999,0]
[2229,"2012-05-13","KW60MN21 ",6613676.9554473031,2212165.4998199465,1628506.4138257492,120331.87943418545,463327.20656001172,"Summer",160238.95113,63590.169994999997,75330.395789000002,1445.9378234999999,55540.276163000002,26793.902576,5703.9379688999998,21356.368259999999,1781.4751831000001]
[2232,"2011-09-15","KW60MN22 ",6398821.1350801336,2211673.792596377,1604232.2605302229,104651.84787899999,502789.68418715399,"Summer",188808.14944000001,64104.238985000004,97621.942418999999,1873.8154429000001,53716.293365999998,36334.966479000002,7344.7620975999998,22037.873315000001,3053.2304963000001]
[2235,"2012-06-20","KW60MN09 ",6759416.6604848262,2211281.7555900761,1604903.9555431786,125506.0325857649,480871.76746113249,"Summer",106115.08573000001,61991.397167000003,102698.4648,1971.2573273,55494.676592999997,39432.563081,8292.1745085999992,39059.482534000002,0]
[2239,"2012-04-30","KW60MN12 ",6617800.0361701334,2210295.7054301491,1648367.9989040713,104350.18237892463,457577.52414715296,"Summer",110347.79586,69830.492530000003,111910.76803000001,2148.0839262,56269.869280999999,36560.659927000001,8811.2255851000009,7467.6597125999997,0]
[2242,"2011-08-14","KW60MN20 ",7393775.5625796989,2209852.5673960657,1609369.8970371522,124576.454828,475906.21553091373,"Summer",203482.60655,56601.379799000002,84247.977891000002,1617.1073643,54947.481754,27199.267743,6646.8184315999997,48012.830786999999,0]
[2246,"2012-04-12","KW60MN19 ",6461652.4790504398,2209103.502310487,1636606.3334771632,113861.62862251057,458635.54021081346,"Summer",147914.71721999999,59368.906671999997,89480.633210999993,1717.5461602,51709.912289,31722.418049,6003.1582578999996,7467.6597125999997,0]
[2250,"2011-10-01","KW60MN17 ",6694610.1482289825,2208783.6142838839,1657193.329659167,87554.999527000007,464035.28509771707,"Summer",162411.71181000001,58466.851233000001,100617.33979,1931.3109373,55221.079172999998,32858.625803000003,7168.5900328999996,19170.103298999999,0]
[2253,"2011-07-17","KW60MN13 ",7818516.4121756908,2207705.453127102,1540940.1599461967,125330.567777,541434.7254039055,"Summer",172464.13076,56998.600539999999,92238.744313000003,1770.4870364000001,54856.282614000003,29245.585572,6550.9111076999998,40263.398110000002,0]
[2254,"2011-09-21","KW60MN08 ",6497772.4414364062,2207513.3186218776,1610361.8258673386,104475.68524599999,492675.80750853888,"Summer",162282.30322,51559.476088000003,104552.31260999999,2006.8412192999999,56224.269711000001,37721.094207000002,8321.2453361999997,30217.333901999998,0]
[2257,"2011-10-19","KW60MN17 ",6581624.2986698532,2207364.7947222525,1632016.1285542327,86395.388250999997,488953.27791702002,"Summer",124305.58799,64181.539016000002,127090.23733,2439.4479709000002,50205.126482,44138.565836000002,7433.7419925000004,19170.103298999999,0]
[2260,"2012-06-29","KW60MN23 ",6966437.2102424884,2206829.7202061773,1563851.9331139841,125699.74445913154,517278.04263306188,"Summer",168014.89176,66287.330187,97762.527002000003,1876.5139096,56315.468850999998,36848.308668999998,6783.8027760000004,41026.245433999997,3053.2304963000001]
[2264,"2012-05-07","KW60MN18 ",6637187.0474846819,2206312.7783862231,1613173.9228848554,112215.89071227772,480922.96478909015,"Summer",145022.87508999999,57001.568303,95199.480943000002,1827.3172314000001,57045.061970000002,34076.387664000002,7047.2635086,21356.368259999999,0]
[2267,"2012-06-28","KW60MN09 ",7184021.726698922,2205464.4687029845,1602588.6776243427,119935.0270015719,482940.76407707011,"Summer",110779.87853,68168.874460999999,114225.92578000001,2192.5224840999999,56041.871432,44307.150254,9167.8748118999993,39952.776814999997,0]
[2271,"2011-08-29","KW60MN08 ",6808413.9213759275,2205160.2228577118,1574796.1254742693,118694.745572,511669.35181144264,"Summer",152852.39150999999,57902.773743999998,100878.75572,1936.3287151,56543.466700999998,36551.621956000003,8217.9230207000001,38731.083218,0]
[2275,"2011-10-27","KW60MN06 ",6587792.6462323228,2204039.6006926335,1566023.0701931939,89877.626438000007,548138.90406143956,"Summer",242026.08053000001,51217.744649,112271.13397,2155.0010112,48426.743255000001,39261.905935000003,8122.5032571000002,19170.103298999999,3053.2304963000001]
[2278,"2012-05-02","KW60MN13 ",6722943.1209178623,2202941.1569717634,1619848.5577886761,108007.06568219108,475085.53350089624,"Summer",102631.83256,67778.641703000001,107246.25937,2058.5504858999998,54126.689494999999,36023.095227999998,9230.2233758999992,21356.368259999999,0]
[2279,"2011-07-27","KW60MN08 ",7076458.2252573604,2202859.2858877787,1608034.7655303499,121381.142427,473443.37793042895,"Summer",119818.53327,53927.417007999997,86206.611143000002,1654.7025722999999,56406.667991000002,38228.574285000002,8100.7255296000003,37024.897427999997,0]
[2282,"2011-10-17","KW60MN16 ",6632114.5081544062,2202227.4537192085,1614630.1063074574,84451.677855000002,503145.66955675115,"Summer",106379.73212,64184.995247999999,133026.33321000001,2553.3890363,56817.064120000003,44055.786319999999,8168.5777781999996,19170.103298999999,0]
[2288,"2012-05-18","KW60MN17 ",6735988.8230814366,2201251.9578860081,1568639.6286235228,119829.96589941351,512782.36336307193,"Summer",123172.36725,75849.696611000007,104497.59549000001,2005.7909453,56361.068421000004,40964.394896999998,7452.8161260999996,21356.368259999999,0]
[2290,"2011-07-08","KW60MN08 ",7019886.7417207779,2200503.9220728306,1590820.5145494917,126610.374993,483073.03253033903,"Summer",123211.69856,53634.435941999996,93683.521439000004,1798.2189748000001,56452.267561000001,36819.935322999998,6282.7728368999997,41729.083778,0]
[2293,"2012-04-01","KW60MN13 ",6196095.5879957415,2199986.9414768009,1629231.0873474444,110162.22733107867,460593.62679827801,"Summer",210569.66106000001,45000.502219000002,78261.391814999995,1502.1971590999999,54719.483904000001,24373.702093,5646.0045410000002,7467.6597125999997,0]
[2297,"2011-08-19","KW60MN23 ",6703834.8563707909,2199639.8939557429,1607202.8735319164,122408.95120099999,470028.06922282634,"Summer",183576.19515000001,64205.043316000003,71594.082234999994,1374.2207292999999,55266.678742999997,33371.727725999997,6951.2800029999999,47387.219968999998,3053.2304963000001]
[2300,"2012-06-17","KW60MN12 ",6729367.9115144396,2199451.3645769563,1591415.0184941541,121974.32529750165,486062.02078530058,"Summer",160171.22623999999,51781.544160999998,81113.490879999998,1556.9420978999999,53579.494656000003,30416.166590000001,6337.2984159999996,34087.930166999999,0]
[2303,"2011-10-17","KW60MN22 ",6334427.2326027108,2198553.1878671525,1606544.9571275886,91008.530589000002,500999.70015056367,"Summer",204807.51308999999,55021.846818999999,108701.08093,2086.4752232999999,55996.271862000001,41171.175418999999,6884.8091766999996,19170.103298999999,3053.2304963000001]
[2304,"2011-08-09","KW60MN23 ",6590351.5699220076,2198489.2904635249,1604286.6447905644,123330.32249599999,470872.32317696046,"Summer",194243.50096999999,64207.823084000003,86058.560691999999,1651.8608012,55905.072721999997,34625.499852000001,7359.8561756999998,49965.531867999998,3053.2304963000001]
[2309,"2011-07-17","KW60MN19 ",7981798.5379846198,2197610.5403725216,1501837.5646127323,120255.194928,575517.78083178948,"Summer",222874.48897000001,56785.307213,87351.289067999998,1676.6742225,54400.286914999997,29987.638996999998,6735.0669853999998,40741.499505,0]
[2311,"2012-05-07","KW60MN17 ",6659432.6978693325,2197537.3727184976,1608860.5753759686,108208.99754779272,480467.79979473638,"Summer",116150.35619000001,65894.667944000001,101760.23467000001,1953.2483626999999,56953.862829999998,34804.364271999999,7718.0324159000002,21356.368259999999,0]
[2315,"2011-10-02","KW60MN21 ",6347252.1155462917,2197196.2984160618,1613765.207602531,102157.066507,481274.02430653071,"Summer",188066.11147,51161.541927999999,85820.408049000005,1647.2895533000001,54993.081323999999,30573.153186,7183.7247403000001,19170.103298999999,3053.2304963000001]
[2318,"2012-06-02","KW60MN14 ",6867476.3115266552,2196636.6412027124,1571528.8190499584,126399.12855707391,498708.69359568041,"Summer",168074.10599000001,66201.147754000005,84650.166608,1624.8272211999999,56771.464549999997,32477.964006999999,6909.4225460999996,28424.891910999999,0]
[2322,"2012-06-25","KW60MN10 ",7667489.6360600675,2196008.2502364116,1590945.3758523364,126459.98759781406,478602.88678626134,"Summer",95017.859341999996,65100.472304000003,105477.36626,2024.5972664000001,55768.274012000002,40433.174615000004,8959.9909630000002,39411.846503000001,0]
[2325,"2011-07-03","KW60MN11 ",7395736.4194063749,2195142.8002064954,1552112.409638613,126424.30813999999,516606.08242788224,"Summer",172303.37159,54535.716902,91151.201778999995,1749.6120780000001,51618.713149000003,25996.661627000001,6394.7696759,47242.047944999998,0]
[2328,"2012-06-07","KW60MN08 ",6515955.7059277324,2194234.9979583761,1598366.4863067786,121823.55835554929,474044.95329604804,"Summer",160640.08596,51252.959322000002,87457.931960999995,1678.7211917,56452.267561000001,40371.442883000003,7888.2013852999999,26807.320457000002,0]
[2330,"2011-10-20","KW60MN17 ",6607313.933084839,2193955.7051015645,1596424.4814192923,92451.067667999989,505080.15601427201,"Summer",106907.45632,70917.458744999996,133710.49431000001,2566.5212442000002,57592.256808999999,46408.515896999997,7562.4581138000003,19170.103298999999,0]
[2333,"2012-04-23","KW60MN14 ",6880238.1658532517,2193583.2992977155,1648564.3059862906,94879.665510364968,450139.3278010597,"Summer",110878.80562,83642.972406999994,135138.71982999999,2593.9354807999998,35658.863677000001,42164.99699,10775.971404,7467.6597125999997,0]
[2337,"2012-05-13","KW60MN18 ",6447530.7795731081,2193044.681276585,1622344.5767847965,115555.14316243572,455144.96132935287,"Summer",162738.64601999999,57370.101199999997,81562.029796000003,1565.551629,52849.901536999998,26759.565060000001,6015.9516571000004,21356.368259999999,0]
[2340,"2012-06-04","KW60MN12 ",7435868.8292260328,2192928.0033042659,1590085.5564533235,120200.3645609809,482642.08228996146,"Summer",117698.50049999999,77874.047021999999,114072.39816,2189.5755809000002,56817.064120000003,43751.828374999997,9391.6958137000001,29412.947224,0]
[2343,"2012-06-02","KW60MN17 ",7094138.914404341,2192775.976835018,1580413.5493051293,125842.18746447394,486520.24006541492,"Summer",150118.15018,63661.375426999999,83529.432094000003,1603.3151554999999,56725.864979999998,31515.759054999999,7102.6084608000001,29466.888368,0]
[2347,"2012-04-09","KW60MN15 ",6574850.5607807217,2192254.1347020515,1627065.0425438832,102553.85954760203,462635.23261056613,"Summer",130443.50839,72370.856159999996,109119.39938,2094.5046842000002,53442.695946,35894.384403999997,9201.2845950999999,7467.6597125999997,0]
[2350,"2012-04-12","KW60MN18 ",6412963.0692441873,2191390.5483729648,1618192.2357589384,110908.18126618612,462290.13134784036,"Summer",127245.44166,55547.470322000001,92982.725019000005,1784.7674583999999,51937.910139,32018.776560999999,6247.0708384999998,7467.6597125999997,0]
[2351,"2011-10-12","KW60MN17 ",6594346.2220074162,2191314.684051936,1628902.4761797732,88737.844073,473674.36379916279,"Summer",133278.24541,69861.061937999999,127632.14678,2449.8497133000001,31418.103674999998,41859.418604999999,7590.8382308,19170.103298999999,0]
[2355,"2012-05-01","KW60MN12 ",6604150.4560969127,2190788.9737204597,1611781.5289432814,96364.505108332771,482642.93966884562,"Summer",100347.77626,75519.598417999994,105031.87315,2016.0461984000001,56041.871432,34633.643369999998,9472.2551222999991,21356.368259999999,0]
[2358,"2012-05-13","KW60MN20 ",6468950.4352331981,2189982.8193028495,1613325.7523919626,119456.22425127334,457200.84265961353,"Summer",137130.25476000001,57051.944759999998,79149.823581999997,1519.2502632999999,53898.691644999999,27458.399463999998,5647.6432882999998,21356.368259999999,0]
[2362,"2012-06-18","KW60MN21 ",7506059.0701130601,2189397.8270536056,1580441.2573771125,132113.93360465052,476842.63607184245,"Summer",136041.00751,45105.016656,88552.398146000007,1699.7290469,56817.064120000003,37300.481302,6489.4784135999998,37154.679955,265.39075265999998]
[2365,"2011-10-29","KW60MN12 ",6467669.778574287,2189207.1084685074,1574436.1312809645,97526.124400000001,517244.85278754274,"Summer",195503.80921000001,56649.119493999999,104240.76095,2000.8611057000001,56269.869280999999,36288.169759999997,5611.6247142000002,19170.103298999999,0]
[2368,"2011-07-13","KW60MN08 ",7038623.9316068292,2188297.9984944328,1588238.0490002676,123299.843396,476760.10609816515,"Summer",115923.11216,51136.017877999999,90240.920368999999,1732.1395782,52621.903687999999,38156.611668999998,7828.3210993000002,37252.105288999999,0]
[2372,"2011-10-08","KW60MN20 ",6447962.1753035858,2187507.8613070687,1597100.5050121162,100771.83128600002,489635.52500895259,"Summer",184568.45485000001,60435.948541999998,99059.466568000003,1901.4081630999999,54172.289064999997,35288.369953000001,6150.2171717000001,19170.103298999999,3053.2304963000001]
[2376,"2012-04-30","KW60MN14 ",6537148.5214754874,2187003.2436224758,1623527.1667553177,103955.88740944541,459520.18945771264,"Summer",102678.73125,70007.930070000002,115236.44063,2211.9189259999998,53807.492506000002,36566.077569000001,9252.7375238000004,7467.6597125999997,0]
[2379,"2012-06-04","KW60MN13 ",7626334.8255533408,2186596.339827491,1586339.2948253271,114205.13033566529,486051.91466649837,"Summer",104320.07943,69831.988461999994,109958.67043,2110.6141674,56725.864979999998,46017.886345999999,9457.0222252000003,29922.099716000001,0]
[2380,"2012-06-01","KW60MN23 ",6528694.8905608393,2186451.8553812616,1577125.8937753118,117978.10368073745,491347.85792521236,"Summer",159450.48081000001,62183.278251000003,77177.166308999993,1481.3858696,56178.670141000002,35935.337804000003,6491.8400370999998,30342.604216,3053.2304963000001]
[2383,"2011-08-05","KW60MN08 ",6567034.1524327612,2185538.6010907968,1593324.3580822081,111176.673219,481037.56978958874,"Summer",133954.74179,61993.590451999997,96641.100191999998,1854.9885555000001,55357.877883000001,36167.806597000003,7653.1444715999996,32506.364435,0]
[2387,"2011-10-28","KW60MN06 ",6517431.6993572731,2184417.0881679822,1556987.9217349058,90855.303100999998,536573.86333207646,"Summer",232167.75326,51323.939801,112660.48243,2162.4744042000002,57637.856378999997,38305.029906000003,7319.4698668999999,19170.103298999999,3053.2304963000001]
[2390,"2011-10-28","KW60MN22 ",6408964.4357454786,2183912.5460789213,1577247.0036488215,92922.283035999993,513743.25939409982,"Summer",207369.73957000001,55705.819054,113069.13387999999,2170.3183107999998,56224.269711000001,38034.615862999999,6758.2870808999996,19170.103298999999,3053.2304963000001]
[2393,"2012-04-25","KW60MN10 ",6640418.4471059786,2182564.730784364,1632046.5703977137,101499.60323976302,449018.55714688735,"Summer",93340.221651,66796.024424000003,116113.55233999999,2228.7547462000002,37710.844323999998,38106.189095000002,10105.630805000001,7467.6597125999997,0]
[2398,"2012-04-18","KW60MN16 ",6513544.425081905,2181828.3405656558,1626268.1828416381,105034.07886049699,450526.07886352082,"Summer",114021.68558,66764.781766,114605.56486,2199.8095096000002,34701.272708999997,35250.937310000001,8279.8618987000009,7467.6597125999997,0]
[2401,"2011-09-24","KW60MN16 ",6670880.8232108457,2181202.9040290229,1563576.7325943715,94026.941806999996,523599.22962765145,"Summer",236092.82918,70396.538350999996,127168.23083,2440.9450259999999,55768.274012000002,34024.977342999999,8276.0849933999998,30217.333901999998,0]
[2402,"2011-09-29","KW60MN22 ",6578472.5900367396,2180788.8443855066,1595687.421719037,95368.882110000006,489732.54055646929,"Summer",158807.66669000001,55817.186501999997,100355.14992,1926.2783041,56315.468850999998,38293.580024000003,7389.2723603000004,30217.333901999998,3053.2304963000001]
[2405,"2011-07-03","KW60MN23 ",7145624.8128141277,2179993.358564069,1570509.9829739337,127934.13994199999,481549.23564813542,"Summer",164549.28521999999,46903.174332000002,74405.445024999994,1428.1837512,54354.687344999998,24115.381635999998,6286.5920642999999,56201.213419,3053.2304963000001]
[2408,"2011-09-17","KW60MN20 ",6377543.9471145477,2179541.0566002661,1595289.1908233929,107090.947313,477160.91846387327,"Summer",159501.91568999999,62770.228565999998,99041.781954000005,1901.0687138000001,54947.481754,29550.956418999998,6200.1921812999999,30217.333901999998,2544.7828070999999]
[2412,"2011-09-17","KW60MN21 ",6282611.8198344298,2179227.0622801092,1603557.55052609,107818.160831,467851.35092301946,"Summer",142115.85579999999,58587.819323000003,90879.985073999997,1744.4061782000001,55312.278313000003,29307.836276999999,6110.1355893999998,30217.333901999998,3053.2304963000001]
[2414,"2012-04-23","KW60MN17 ",6871040.8279368216,2179036.6073563141,1627575.7186733801,90930.507484026268,460530.38119890768,"Summer",137746.60423999999,79562.060027,125596.5621,2410.7774522,39170.030561,38491.407436000001,8958.4148542000003,7467.6597125999997,0]
[2419,"2011-09-13","KW60MN07 ",6322669.8958892561,2178287.6903733741,1573998.053125934,104521.802965,499767.8342824399,"Summer",152552.32467999999,54642.937193999998,100635.94727,1931.6681008,53533.895085999997,38137.087492999999,8032.7717058999997,29956.403659,1729.7398880999999]
[2423,"2012-05-11","KW60MN16 ",6738466.6612877445,2177772.1262946455,1563289.9474408217,123788.33654530738,490693.84230851615,"Summer",90020.621067999993,75648.256662999993,109569.05086,2103.1355705999999,57273.059820000002,34787.933289000001,7672.1288805000004,21356.368259999999,0]
[2426,"2012-04-16","KW60MN19 ",6376865.8861638391,2177071.2862313208,1612805.1578942088,107831.12800411772,456435.0003329945,"Summer",165902.95629,48800.392959999997,100499.68502999999,1929.0525998000001,35020.469699000001,32177.253280000001,6113.7736746,7467.6597125999997,0]
[2427,"2011-07-13","KW60MN23 ",7018666.2743268479,2177063.6425379915,1564313.7096986761,130226.651732,482523.28110731515,"Summer",191838.59972999999,53664.751474999997,85730.642070999995,1645.5665300000001,53214.698097,34667.468191,6696.2043045,42540.690854,3053.2304963000001]
[2430,"2011-10-20","KW60MN22 ",6336234.4033876592,2176465.1751411366,1590206.8608109346,94114.794357999999,492143.51997220219,"Summer",176916.96268,56887.520708999997,121202.12715,2326.4279723,57318.659389,43160.654711000003,6691.9381461000003,19170.103298999999,3053.2304963000001]
[2433,"2012-05-01","KW60MN22 ",6391496.1893579904,2176024.5941976104,1589751.125251719,105833.827415315,480439.64153057651,"Summer",189283.70746000001,60131.766458999999,84800.364679999999,1627.7102150999999,56224.269711000001,30246.191492000002,6512.2498853999996,21356.368259999999,3053.2304963000001]
[2439,"2012-04-14","KW60MN09 ",6191898.9195786621,2174949.9979166733,1618087.9552653574,119903.50947448952,436958.53317682625,"Summer",166634.23671,44697.178167999999,72551.997273999994,1392.6075381999999,35476.465398,25529.801301,5701.4053608000004,7467.6597125999997,0]
[2441,"2011-07-17","KW60MN22 ",7643191.2819918068,2174644.4171372415,1532512.092366033,122715.36491399999,519416.95985720842,"Summer",197361.68625,52371.759499,69526.558107999997,1334.5354030000001,53989.890785000003,29304.989828999998,6535.9389199999996,48680.284013999997,3053.2304963000001]
[2445,"2011-07-04","KW60MN23 ",6931393.4756191187,2173646.30541971,1559659.498549148,121241.467709,492745.33916156209,"Summer",154264.55611999999,50953.621746999997,63256.949661999999,1214.1926928,54491.486054000001,25231.701475999998,6396.4355095000001,51491.591509999998,3053.2304963000001]
[2448,"2011-09-14","KW60MN07 ",6337470.3299773429,2173487.7914458332,1572260.818979464,106890.30640099999,494336.66606536909,"Summer",158579.79735000001,55166.111930999999,100134.97642000001,1922.0521590000001,53989.890785000003,38026.052172999996,7931.6840453000004,31022.719295999999,1780.6270629999999]
[2451,"2011-07-23","KW60MN11 ",7217934.2160868412,2172363.0713520474,1560678.372896608,126212.76255,485471.93590543937,"Summer",151308.59260999999,59747.539926999998,103519.43058,1987.0154481,52849.901536999998,32386.035453,6120.7603577999998,42799.095829999998,0]
[2452,"2012-04-25","KW60MN21 ",6624587.759108359,2172035.0523253973,1604344.3550594137,107838.75870689875,459851.9385590849,"Summer",184872.80350000001,60190.276548000002,97721.651442000002,1875.729319,45097.974650999997,32207.347074000001,7425.8885348000003,7467.6597125999997,2900.4134826]
[2455,"2011-08-03","KW60MN08 ",6568619.1734794267,2171189.4031933607,1586935.0469345609,118646.395923,465607.96033579978,"Summer",124911.20110999999,60133.639990000003,98683.187342999998,1894.1856289,48426.743255000001,36421.001843999999,9034.2221344999998,29939.071499999998,0]
[2460,"2012-04-23","KW60MN18 ",6825418.3754590042,2170025.57050659,1615334.0795428362,96330.002597350278,458361.48836640344,"Summer",156604.40332000001,69290.803081999999,119968.50139,2302.7490029000001,39534.827121000002,37305.901862999999,8239.9174426000009,7467.6597125999997,0]
[2463,"2012-04-12","KW60MN16 ",6493827.7149367584,2169507.2960689892,1616322.3354244221,100685.81391508511,452499.14672948216,"Summer",114797.25743,71827.075794000004,107445.48508,2062.3745463,51892.310569000001,33924.476725,8027.0665649000002,7467.6597125999997,0]
[2466,"2011-07-17","KW60MN20 ",7840228.155357304,2169028.5602323902,1502269.2580485044,122631.831879,544127.47030488576,"Summer",192077.29021000001,58025.703738999997,79874.680078999998,1533.1636036,54400.286914999997,29668.961533999998,6536.9546723000003,44509.387759999998,0]
[2470,"2012-04-23","KW60MN21 ",6720208.1654913612,2168502.883300114,1590775.6239096513,98965.537398494911,478761.72199196776,"Summer",206430.48334000001,66425.272532999996,112998.63782,2168.9651663,39854.024109999998,36015.162389999998,7888.8717816999997,7467.6597125999997,2958.0290737]
[2473,"2012-05-02","KW60MN22 ",6407333.6841020305,2168292.3060476282,1569267.4584941904,115996.05189883339,483028.79565460439,"Summer",169380.18947000001,59097.088795000003,93953.311984,1803.3975,56269.869280999999,31896.531296000001,6408.9157183999996,21356.368259999999,3053.2304963000001]
[2476,"2012-05-03","KW60MN17 ",6652216.6082487842,2168201.4851688198,1569902.7110267247,113994.47431677036,484304.29982532485,"Summer",114014.34076000001,66074.353400000007,96582.383967999995,1853.8615202999999,56817.064120000003,32670.074762,7201.0822533999999,21356.368259999999,0]
[2477,"2012-06-14","KW60MN08 ",6702018.561608972,2168098.8676316077,1574318.8351176339,125625.00362465909,468155.02888931462,"Summer",121827.48239,50153.360429,86820.872147000002,1666.4930747999999,56133.070571999997,37778.186802999997,8637.9771942000007,32338.491666000002,0]
[2481,"2012-06-02","KW60MN12 ",6737030.646952481,2167073.8688687626,1547848.86171764,131266.83822344313,487958.16892767965,"Summer",183053.04952999999,63653.820243000002,80470.533859999996,1544.6007864999999,56771.464549999997,32560.872992000001,6600.3883980999999,28672.955623999998,0]
[2484,"2012-05-20","KW60MN21 ",6817608.3953977358,2165757.2929100264,1564588.2698027713,121671.41379325189,479497.60931400338,"Summer",158550.02595000001,55209.47309,67863.568627000001,1302.6149628999999,53898.691644999999,29139.517076,5452.9489815999996,21356.368259999999,1374.3777831]
[2488,"2012-04-06","KW60MN15 ",6394670.4461398879,2165229.0983986496,1589675.7487411711,100519.3497397063,475033.99991777207,"Summer",188921.3952,69303.684813,90942.260267999998,1745.6015264,54309.087775,32629.534401000001,7896.9351618000001,7467.6597125999997,0]
[2491,"2011-10-01","KW60MN14 ",6517636.1843072465,2164590.7273571542,1601724.0192838737,88519.707064999995,474347.00100828049,"Summer",129918.17947,54874.159218000001,103036.08004,1977.7377214000001,55266.678742999997,34239.595244999997,7048.6093797000003,19170.103298999999,0]
[2495,"2011-08-26","KW60MN24 ",6594842.5479173055,2163627.4326056573,1553808.1963428578,111074.355928,498744.88033479929,"Summer",168598.98976999999,67727.771957999998,81902.905805000002,1572.0946122,54993.081323999999,33384.866899000001,7602.9256813000002,50983.594037000003,3053.2304963000001]
[2498,"2011-07-19","KW60MN08 ",7291758.0842094468,2163151.6551391124,1567399.4010404495,119707.19797600001,476045.05612266314,"Summer",137242.00612999999,50171.565496000003,89065.060064000005,1709.5693943000001,46192.364329000004,37750.291538999998,8305.1964515,46457.819823999998,0]
[2502,"2012-04-13","KW60MN15 ",6359286.9692090275,2162499.8132608747,1623886.9952055728,104733.47376922771,433879.34428607399,"Summer",107176.69190000001,71383.698059000002,110347.59643000001,2118.0794516999999,32603.692492999999,35698.192900000002,8021.0516181000003,7467.6597125999997,0]
[2503,"2012-06-04","KW60MN15 ",7753304.3971466105,2162174.0044666314,1562183.9348390352,118339.96264406233,481650.10698353418,"Summer",105940.15626,71493.068251999997,104122.45316999999,1998.5902335999999,57364.258958999999,43386.057302000001,9030.6873171999996,29569.031479000001,0]
[2506,"2011-09-28","KW60MN07 ",6550544.6498677693,2161429.5081369458,1575941.8368127674,89396.292451999994,496091.3788721782,"Summer",158336.75085000001,53233.252827999997,106457.46922,2043.4099639000001,54810.683043999998,37759.603979,7042.0069912999998,30217.333901999998,2743.6244430000002]
[2510,"2012-04-01","KW60MN14 ",6160949.0810985137,2160794.324308027,1604558.6977231633,105635.45374010578,450600.1728447582,"Summer",182433.21312,42768.450151999998,75946.348091000007,1457.7607898000001,54445.886484000002,25171.869653999998,5597.3449308999998,7467.6597125999997,0]
[2513,"2011-10-21","KW60MN16 ",6502999.1500747688,2159928.254460068,1580158.6056167048,94014.280058999982,485755.36878436309,"Summer",108124.71315,67539.584912000006,139852.77755999999,2684.4199963999999,56543.466700999998,45435.918572000002,7722.4390882999996,19170.103298999999,0]
[2516,"2012-06-04","KW60MN21 ",7485388.27302159,2159095.0465516951,1576945.2582473275,119368.45806181811,462781.33024254948,"Summer",157630.66325000001,51929.813424,80184.817286999998,1539.1165673999999,53898.691644999999,40872.254610999997,6358.5801172000001,33111.247886999998,661.95733396000003]
[2520,"2011-10-09","KW60MN21 ",6363258.7539938577,2158331.762407376,1582294.9863250309,105978.09016900002,470058.68591334525,"Summer",196559.58617,48355.406816000002,84810.887260999996,1627.912192,52576.304118,31123.031376999999,6001.4907315999999,19170.103298999999,3053.2304963000001]
[2523,"2011-10-29","KW60MN19 ",6520327.7165465439,2156447.6780878245,1547786.5734499388,99767.895969999998,508893.20866788557,"Summer",180755.11968999999,61577.001320000003,104137.97960000001,1998.8882573999999,56133.070571999997,34702.801605000001,6293.0522492999999,19170.103298999999,3053.2304963000001]
[2527,"2012-06-05","KW60MN11 ",7367098.823363442,2155024.1399322757,1571728.1336859898,116201.40376679602,467094.60247948981,"Summer",118779.2371,65101.221074000001,107175.92878,2057.2005174000001,45781.968200000003,44395.519693000002,8626.0285616000001,29880.919224000001,0]
[2528,"2012-05-13","KW60MN17 ",6425575.1823225152,2154995.1456696219,1591667.8666231688,115423.36553887832,447903.91350757488,"Summer",147667.98241999999,51704.089876999999,81635.524344999998,1566.9623285,55357.877883000001,26952.824438,6149.4350425000002,21356.368259999999,0]
[2531,"2012-06-14","KW60MN23 ",6605562.1936729727,2154387.1128719188,1572549.6324336375,122355.4928939712,459481.98754430987,"Summer",136535.24020999999,53750.125687,80854.594039000003,1551.9726731999999,49338.734653,35968.193932000002,6589.0018158000003,37125.947386,3053.2304963000001]
[2535,"2012-06-26","KW60MN19 ",7560938.5090052001,2153811.6076054447,1550536.1452690715,129336.93431584148,473938.52802053175,"Summer",134782.68119999999,54238.315523999998,96130.117744000003,1845.180445,55722.674442000003,44544.463483,7011.5141087000002,38002.907525000002,0]
[2538,"2012-05-09","KW60MN19 ",6942057.799336249,2152561.2637661733,1564415.1562665838,125761.50624415134,462384.60125543806,"Summer",143508.70981,54117.279948000003,89214.027757000003,1712.4287715,53397.096376000001,33348.737502000004,6452.5846000000001,21356.368259999999,0]
[2541,"2011-08-20","KW60MN10 ",6928459.8102321196,2152184.8062637751,1563941.1408530974,129445.91038999999,458797.75502067764,"Summer",155965.10793,60716.666494999998,86334.549750999999,1657.1583045,55859.473151999999,32069.056721000001,6618.5398907999997,40806.491921000001,0]
[2544,"2011-09-12","KW60MN23 ",6095687.4791401448,2151752.4822648563,1552348.6047248859,94003.309217999995,505400.56832197035,"Summer",157967.39053999999,54523.024772999997,93990.248149999999,1804.1064753999999,53351.496806000003,37713.364226999998,7637.8878726000003,33768.898381999999,3053.2304963000001]
[2549,"2012-04-13","KW60MN19 ",6139857.8774754107,2151251.9963766518,1613762.4585424336,108601.23464759602,428888.3031866221,"Summer",116672.13459,55517.749304999998,96057.220759000003,1843.7812154999999,38987.632281999999,31838.444413000001,5949.6568958999997,7467.6597125999997,0]
[2552,"2012-06-12","KW60MN08 ",6560337.9074826958,2150802.2972817682,1552270.084908036,123299.91157435309,475232.30079937907,"Summer",118149.12007,53910.968176000002,102233.38346,1962.3302708000001,56361.068421000004,45481.991793000001,8011.6034301999998,31815.585827999999,0]
[2553,"2012-06-08","KW60MN10 ",6877258.9523127647,2150704.3384147054,1555101.9200312537,122613.50538150629,472988.9130019453,"Summer",103110.55955000001,65065.570957000004,104090.2711,1997.9725112000001,55722.674442000003,44396.195436000002,7209.6484297999996,28754.751542999998,0]
[2556,"2011-07-07","KW60MN24 ",6630519.5914855283,2150462.0536273103,1559053.8083736917,123072.233419,468336.0118346184,"Summer",131397.92058999999,50519.912139,87820.813320000001,1685.686559,55221.079172999998,34241.246770999998,6165.3518802999997,44142.557154000002,3053.2304963000001]
[2560,"2012-05-18","KW60MN22 ",6438899.4166071014,2149872.5509032831,1544032.8013599205,125211.24789387832,480628.50164948439,"Summer",140277.54373,62854.047394000001,79429.269184000004,1524.6141136000001,56543.466700999998,35951.709917,6380.7963118999996,21356.368259999999,3053.2304963000001]
[2563,"2012-05-09","KW60MN20 ",6945383.0969898328,2149284.3816422969,1565474.3248229409,124941.8730543141,458868.18376504182,"Summer",138508.09059000001,50038.843649000002,87351.520216000004,1676.6786592999999,54993.081323999999,32780.013573999997,6212.0798682000004,21356.368259999999,0]
[2565,"2012-04-30","KW60MN18 ",6444792.0297403708,2149225.2570319101,1600164.0313272395,105251.11885618251,443810.10684848804,"Summer",137807.46124999999,51435.725016999997,90172.063366000002,1730.8178946999999,56133.070571999997,32340.475301999999,6779.4214982000003,7467.6597125999997,0]
[2571,"2012-06-04","KW60MN19 ",7629413.0855797138,2148475.2834468223,1560406.0765862528,122225.86494388315,465843.34191668662,"Summer",149339.70611,51529.436925000002,82073.915708,1575.3770812,54217.888635000003,41090.513172999999,6445.6013034999996,29994.080507999999,0]
[2574,"2011-08-11","KW60MN08 ",6635904.5838671448,2148236.792631472,1594193.6933945974,115592.37632299999,438450.7229138746,"Summer",124113.63721,55241.066032000002,91674.077275999996,1759.648471,46785.158737999998,37516.622952999998,7992.4666581000001,48492.766747000001,0]
[2575,"2012-04-26","KW60MN20 ",6502587.0531922812,2148210.4240292171,1592532.9308801345,102080.23479143904,453597.25835764367,"Summer",160958.71088999999,59917.476914999999,89734.424583999993,1722.4175874,49156.336373999999,30994.888533000001,6423.3292424000001,7467.6597125999997,20.877877062]
[2578,"2012-05-24","KW60MN07 ",6530390.8732051039,2147735.5325807305,1577092.3476780318,109835.878350738,460807.30655196053,"Summer",146152.53471000001,40306.853562999997,79090.442506000007,1518.1104665,54445.886484000002,39656.949085,6504.6520588000003,21356.368259999999,0]
[2581,"2011-07-19","KW60MN23 ",7280964.2458382156,2147336.7565594534,1550639.0528530176,120222.21644999999,476475.48725643597,"Summer",171065.57472,48217.091692000002,80824.467384999996,1551.3944037000001,53442.695946,34275.012132999997,6829.4913119000003,52695.344186000002,3053.2304963000001]
[2586,"2012-04-09","KW60MN16 ",6518588.035863189,2146886.3469386618,1586004.5558069244,100081.14965716738,460800.64147457003,"Summer",143474.68838000001,65956.616588999997,107183.6382,2057.3484966999999,56041.871432,34361.114500000003,8351.8736523000007,7467.6597125999997,0]
[2589,"2011-10-25","KW60MN06 ",6275404.1139094001,2146330.4710061527,1564935.0256397442,84674.905600999991,496720.53976540861,"Summer",178760.28787999999,47372.447289000003,108929.27250000001,2090.8552722999998,52302.706698000002,41715.759187000003,7606.4604998000004,19170.103298999999,3053.2304963000001]
[2592,"2011-08-14","KW60MN15 ",7546385.6938385293,2145541.060201373,1567051.2707905811,116430.91028700001,462058.87912379194,"Summer",213135.08830999999,57840.558369999999,97936.433892999994,1879.8519851000001,54035.490355000002,25961.168224000001,7208.0215340000004,44768.168844,0]
[2596,"2012-06-17","KW60MN21 ",7230636.0084633874,2144106.9782417151,1582679.6860316249,120391.60739571395,441035.68481437612,"Summer",127663.13146,49265.004584000002,70971.862521999996,1362.2774625,55084.280463000003,29235.102254000001,5389.9875801999997,34566.629265000003,309.52124151999999]
[2599,"2011-10-30","KW60MN18 ",6382991.2440312803,2143702.0957755111,1561395.6397650279,88495.015117999996,493811.44089248328,"Summer",203340.67043999999,54788.336709000003,103305.21906,1982.9037407000001,53853.092076000001,32708.754279000001,6326.1048264000001,19170.103298999999,3053.2304963000001]
[2600,"2012-05-25","KW60MN16 ",6918587.9141146047,2143661.8179532792,1562514.8269012561,110091.98286999686,471055.00818202639,"Summer",112302.55447,75231.052125999995,108148.8642,2075.8756367000001,55585.875732,41132.151564,7528.0122629999996,22894.536513999999,0]
[2603,"2012-06-17","KW60MN11 ",6535573.917194359,2142986.9160862314,1551255.7394687745,120472.85598591127,471258.32063154568,"Summer",181015.35707999999,55501.666824,79851.166696999993,1532.7122733000001,54856.282614000003,29488.052015000001,6041.6942042999999,34668.764862999997,0]
[2607,"2011-10-16","KW60MN19 ",6518011.3204986518,2142189.0966097722,1572956.4117478456,92284.240797999999,476948.44406392681,"Summer",157735.54673,47975.671296,100015.01271,1919.7495019,47286.754007000003,33950.293487000003,5931.3835140000001,19170.103298999999,2392.1212814999999]
[2611,"2012-04-23","KW60MN11 ",6612360.9989719801,2141793.6125205141,1617816.3852643785,97637.65191529179,426339.57534084364,"Summer",97182.194153999997,78848.148249000005,125435.01227000001,2407.6765657999999,28864.527759000001,40006.694914,10548.539403000001,7467.6597125999997,0]
[2614,"2012-06-02","KW60MN20 ",6863575.0989238331,2141553.819993481,1537198.8970392973,127288.69879963227,477066.22415455151,"Summer",157072.25617000001,54538.503097000001,79296.781216999996,1522.0710583,56087.471001999998,29460.237950999999,6644.9883855999997,29909.951266,0]
[2618,"2012-04-08","KW60MN11 ",5952624.6092058467,2141282.304495858,1566994.6902200556,111098.84814390255,463188.76613189973,"Summer",222875.72899999999,40397.864436000003,68376.699615999998,1312.4643137999999,51299.516159999999,19813.498187000001,5446.0774178000001,7467.6597125999997,0]
[2621,"2012-04-16","KW60MN16 ",6317126.0525993081,2140384.481728076,1587341.0306848036,102305.96039238269,450737.4906508897,"Summer",125053.57175,66416.123403000005,110548.833,2121.9421099000001,35567.664537999997,33395.568282,7953.7326397999996,7467.6597125999997,0]
[2624,"2012-06-02","KW60MN19 ",6976907.8896812713,2139971.8953335844,1548528.5789811672,118986.06095465463,472457.25539776258,"Summer",148538.21014000001,58099.460771999999,80698.014072000005,1548.9671813,56087.471001999998,30376.135590000002,6808.8444548999996,29686.687944000001,0]
[2625,"2012-04-23","KW60MN12 ",6668932.0659355549,2139231.3582418589,1609144.2722771834,96559.572559314518,433527.5134053611,"Summer",113932.26541000001,85768.822893999997,130203.88185000001,2499.2131737,30414.913137,40259.357643000003,10724.909540000001,7467.6597125999997,0]
[2628,"2011-09-17","KW60MN13 ",6181998.9038274363,2139117.1064658305,1559334.0454753051,99817.669532999993,479965.39145752531,"Summer",169029.77940999999,55251.731982999998,94006.773233,1804.4236679999999,54947.481754,31367.200864999999,5799.1935199999998,30217.333901999998,0]
[2632,"2012-05-04","KW60MN22 ",6367215.514921912,2138124.9574119863,1564235.0107782907,112058.49101269388,461831.45562100189,"Summer",132131.05575,59546.024458,80122.054879999996,1537.9118672,57455.458099000003,30320.025833,6375.0606969999999,21356.368259999999,3053.2304963000001]
[2636,"2012-06-25","KW60MN09 ",7481331.1221592156,2137305.3326529446,1552508.2179926313,122713.65127495707,462083.46338535636,"Summer",129453.77115,57210.536118999997,104445.15023,2004.7842788999999,55996.271862000001,42135.519592999997,8425.6240345000006,39824.514044000003,0]
[2639,"2011-10-15","KW60MN20 ",6475889.6449217126,2136652.4248908861,1556278.9397277983,97145.300686000017,483228.18447708758,"Summer",166774.71020999999,61225.183984000003,104746.61702999999,2010.5708176000001,55312.278313000003,32494.483676,6288.0547476000002,19170.103298999999,3053.2304963000001]
[2643,"2011-08-28","KW60MN10 ",6782868.8526865747,2134911.8317387966,1502190.4230021087,114546.99263100002,518174.41610568768,"Summer",183352.33205999999,58366.615708999998,85754.641059999994,1646.0271812999999,55266.678742999997,26745.876136999999,7054.5413728000003,44661.224113999997,0]
[2646,"2011-07-30","KW60MN09 ",6908644.138874365,2133492.5059923911,1540612.0715873647,120581.79734799999,472298.63705702615,"Summer",145085.32188999999,64341.684153000002,88713.852778,1702.8281062000001,55631.475301999999,29716.758905999999,6617.6257136000004,37394.855644000003,0]
[2649,"2011-08-15","KW60MN08 ",6652304.5050963424,2133151.2414391227,1564367.7292116545,117870.18938,450913.32284746814,"Summer",116954.91514,52586.976168000001,93559.242962999997,1795.8334975,55449.077022999998,33876.655993,7421.3701295999999,45410.705511,0]
[2653,"2011-07-15","KW60MN24 ",6636475.3420123504,2132299.7554143807,1518581.413594296,117730.84558800001,495987.4962320847,"Summer",141833.54157999999,50060.186801000003,84399.524615000002,1620.0162451000001,55768.274012000002,34489.255905999999,5957.2242495999999,50767.792895999999,3053.2304963000001]
[2654,"2012-06-06","KW60MN07 ",6308422.1302294759,2131847.9321895004,1574485.0803068976,112081.9704249225,445280.88145768037,"Summer",167706.89718999999,43003.420845000001,74970.524294000003,1439.0302293,47332.353577000002,39117.613045999999,6551.6542992000004,28985.652372,0]
[2657,"2011-10-15","KW60MN11 ",6320791.3691876214,2131091.9262694092,1550629.5035238753,95372.321878000002,485090.10086753382,"Summer",180152.56956,54265.645619000003,104965.66683,2014.7753937,55540.276163000002,34617.370410000003,5614.4485057000002,19170.103298999999,0]
[2661,"2011-07-23","KW60MN24 ",6739115.7736769244,2130025.3715030579,1556976.2381063842,111983.92021899999,461065.21317767398,"Summer",130437.30823,51066.745429000002,77135.969920999996,1480.5951209,55357.877883000001,29706.757336999999,5726.6078656,50563.867608,3053.2304963000001]
[2664,"2012-04-30","KW60MN22 ",6263819.9446334392,2129357.3681732304,1576198.9147337186,103107.28531488389,450051.1681246279,"Summer",162116.70050000001,49745.072036999998,87590.423257999995,1681.2643109000001,55540.276163000002,30772.855232999998,6429.3814331000003,7467.6597125999997,3053.2304963000001]
[2668,"2012-04-24","KW60MN12 ",6713220.5876282724,2128075.585545938,1581997.5014946498,86185.898085206849,459892.18596608157,"Summer",114680.33396,85840.123126999999,131407.29185000001,2522.3121633999999,40036.42239,40357.237631000004,11031.951121,7467.6597125999997,0]
[2670,"2012-04-25","KW60MN20 ",6587626.0070884749,2127781.174713193,1568836.698090726,107483.85385368144,451460.62276878551,"Summer",141251.29832,61922.280577999998,95250.364425000007,1828.2939202,46602.760457999997,32468.388756,7248.7735126999996,7467.6597125999997,51.466723322]
[2675,"2012-06-03","KW60MN21 ",7059647.2864792012,2127335.596085174,1542063.4930015404,119220.06174061606,466052.04134301725,"Summer",175610.23267999999,45945.920424000004,64758.986192999997,1243.0237033000001,55494.676592999997,29368.265504999999,5637.4942311000004,29764.690888000001,712.84450892999996]
[2676,"2012-05-01","KW60MN20 ",6634035.5964037776,2127204.4359171977,1548066.109521816,105646.20893960117,473492.11745578033,"Summer",142068.14102000001,52474.822994000002,86547.601175000003,1661.2477441999999,55585.875732,30600.309969000002,6402.3234865000004,21356.368259999999,0]
[2679,"2012-04-01","KW60MN08 ",5799588.4451674065,2126427.2750622793,1535666.7671251805,102450.95713930992,488309.55079778872,"Summer",201046.91644,44613.320777000001,70488.720163999998,1353.0037316999999,52393.905837999999,24301.095678000001,5820.1214014999996,7467.6597125999997,0]
[2683,"2012-04-24","KW60MN21 ",6589900.5986165144,2125396.3395882696,1583161.497405658,96090.584293329273,446144.25788928219,"Summer",173803.68453,65304.023589999997,91040.672657000003,1747.4905142,41450.009057000003,34073.912363000003,7629.3911058000003,7467.6597125999997,2930.9175177000002]
[2686,"2012-04-04","KW60MN06 ",6149511.0301449914,2124937.5216037952,1571743.2628991047,93386.005209493596,459808.25349519693,"Summer",153836.86126000001,50325.633707000001,82159.188018999994,1577.0138503000001,49840.329922999998,31833.268556999999,6529.4939719000004,7467.6597125999997,3053.2304963000001]
[2689,"2012-04-07","KW60MN13 ",6080829.843679769,2124354.0211336808,1556726.0237825525,105570.48611790447,462057.51123322401,"Summer",218978.34716,54642.210919999998,72555.325555000003,1392.6714231999999,55585.875732,24778.640148999999,5646.8984030000001,7467.6597125999997,0]
[2691,"2012-05-10","KW60MN18 ",6758651.7768004462,2124267.901479878,1526526.0927309007,125212.4150687299,472529.39368024748,"Summer",118018.68342,60590.493973999997,93215.554938999994,1789.2365388000001,57637.856378999997,34142.494954000002,6814.5428248999997,21356.368259999999,0]
[2697,"2012-06-13","KW60MN23 ",6599806.9784922125,2122107.307683106,1540529.0629758867,118485.40247993186,463092.84222728718,"Summer",128640.36238999999,56231.807301000001,76706.772467000003,1472.3568416999999,54217.888635000003,36874.129065000001,6674.9547689999999,36822.841566000003,3053.2304963000001]
[2700,"2011-09-09","KW60MN07 ",6480823.3744040318,2121867.6958809583,1539162.8994511766,103099.85944,479604.93698978162,"Summer",141139.44097,55989.768285999999,101383.03625,1946.0081848,53579.494656000003,38139.150904000002,7486.4392172999997,42085.022283999999,1475.3040137999999]
[2701,"2011-07-30","KW60MN01 ",6612438.8416347196,2121220.1351533369,1540209.9086509619,112998.60408799999,468011.62241437502,"Summer",125920.6305,59696.792298,81907.429327000005,1572.1814394999999,55312.278313000003,32015.307099000001,5987.8187062999996,44846.855839999997,3053.2304963000001]
[2704,"2012-05-01","KW60MN15 ",6635543.8406864712,2120930.5911175949,1557406.7870514204,89841.947611569994,473681.85645460471,"Summer",96851.635227000006,73201.200024999998,106283.84342999999,2040.077284,55813.873582,34735.812812999997,8950.0535197999998,21356.368259999999,0]
[2708,"2012-06-22","KW60MN22 ",7195881.0531471744,2120611.7711815624,1536161.5263197739,119244.34976567207,465205.89509611647,"Summer",106835.69338,64424.697973000002,91973.994819,1765.4052721999999,56361.068421000004,35480.382891000001,6674.3046867000003,41314.936505999998,3032.5505136000002]
[2711,"2011-07-02","KW60MN24 ",6816179.7206700053,2120115.2184761502,1524380.036401026,117629.806457,478105.37561812397,"Summer",146524.18431000001,50809.973645999999,73148.315187999993,1404.0536300000001,54765.083473999999,28690.610702000002,6052.4002325000001,55458.785180999999,3053.2304963000001]
[2716,"2012-06-05","KW60MN12 ",7274410.2890159823,2119425.8720555874,1540399.1295925721,116465.08978548749,462561.65267752804,"Summer",133594.04052000001,69817.662215000004,107158.07549,2056.8578302999999,46101.165188999999,44015.409575999998,8648.4495993,28789.333917,0]
[2719,"2011-07-08","KW60MN24 ",6635349.8007123768,2119180.5594105851,1533223.7931756268,128786.33674299999,457170.42949195835,"Summer",129018.05317,51673.236063999997,75791.720310000004,1454.7927692999999,55813.873582,33376.764287999998,5456.6006109999998,41509.579294000003,3053.2304963000001]
[2722,"2012-04-24","KW60MN10 ",6640205.2999714483,2117885.5093194549,1578824.899602063,90819.250514674102,448241.3592027179,"Summer",98353.559158999997,81517.933355000001,127830.70006,2453.6608667999999,40036.42239,39420.214790999999,10425.056097999999,7467.6597125999997,0]
[2725,"2012-06-20","KW60MN08 ",6602977.5195384575,2117038.3386431099,1540231.1280759114,116257.06076722557,460550.1497999726,"Summer",117796.31474,53573.653834999997,88929.713117000007,1706.9714618999999,55449.077022999998,38079.796578000001,7433.3356909000004,39285.370991999996,0]
[2726,"2012-05-10","KW60MN17 ",6829063.9468141235,2116717.3073052797,1523337.6578704841,120841.82302465822,472537.82641013741,"Summer",108460.62436,73626.724583000003,97954.445076999997,1880.1977027999999,57364.258958999999,34966.476102000001,7138.8657363000002,21356.368259999999,0]
[2729,"2012-05-10","KW60MN20 ",6675491.3171286583,2115860.4086663499,1526442.6520893462,124031.05337815484,465386.70319884899,"Summer",155986.59124000001,58070.025765999999,88368.608609000003,1696.2012778000001,57090.661540000001,33194.578937999999,6256.8660761000001,21356.368259999999,0]
[2733,"2012-05-11","KW60MN22 ",6348280.5962542146,2114954.3486517426,1520031.8476663695,123964.48409900889,470958.01688636426,"Summer",140292.67848999999,60220.346240999999,85218.185006,1635.7301147999999,57227.460249999996,30401.279266000001,6187.7593737999996,21356.368259999999,3053.2304963000001]
[2737,"2012-06-08","KW60MN13 ",7022898.8417886905,2114604.5198288746,1527881.7000570006,118290.85638375513,468431.96338811866,"Summer",101140.71918,69556.312653999994,106734.09672,2048.7197219,55357.877883000001,44947.551381999998,7408.1788948000003,28614.231609999999,0]
[2740,"2012-05-01","KW60MN19 ",6487019.1273004692,2114038.7104882146,1550108.0833294922,101025.13869781423,462905.488460908,"Summer",137698.5821,50766.851901000002,84822.984244000007,1628.1443889,55950.672292000003,30957.861661999999,6442.2120762000004,21356.368259999999,0]
[2744,"2012-06-07","KW60MN16 ",6918673.8347541625,2113669.0710680932,1536908.267620815,115901.02362913202,460859.77981814643,"Summer",120791.30220000001,75690.432002000001,100817.20474,1935.1472679000001,56634.665841000002,41982.453220000003,7818.5546418000004,25564.887613999999,0]
[2747,"2012-06-27","KW60MN08 ",6746598.1445484422,2113078.0580346282,1538756.7382337346,120324.95720684039,453996.36259405309,"Summer",107334.38808,58069.873119999997,91158.955289999998,1749.7609035999999,55996.271862000001,41815.742037000004,8226.6584899999998,40720.738383000004,0]
[2748,"2011-08-22","KW60MN24 ",6377035.6189040765,2113032.6239326149,1549593.1187307062,114411.52073299998,449027.98446890857,"Summer",144026.56672999999,56154.921824999998,82715.728126000002,1587.6964224000001,56452.267561000001,35343.057130000001,7226.2441288999999,53241.985578,3053.2304963000001]
[2751,"2012-06-26","KW60MN22 ",6978052.4196493318,2111982.2558379383,1528007.6006585523,131898.97232991579,452075.68284947047,"Summer",132041.37062,57165.812392,88465.107164000001,1698.0535302999999,55221.079172999998,41846.837043,6595.1979037999999,43364.289154999999,3032.5505136000002]
[2754,"2012-04-30","KW60MN16 ",6499006.7728056358,2111380.9611554453,1559825.4198089456,100748.66424425306,450806.87710224662,"Summer",96187.910124000002,64900.648798000002,106113.42833,2036.8062321,55905.072721999997,33658.740339000004,7854.2346310000003,7467.6597125999997,0]
[2758,"2012-04-25","KW60MN19 ",6466261.7574114259,2111111.0779476175,1553797.3511964588,104939.89725377297,452373.829497386,"Summer",142958.99356,60482.947501000002,92524.383606000003,1775.9697722000001,46465.961748000002,33008.242913000002,7392.8156424999997,7467.6597125999997,0]
[2762,"2012-05-18","KW60MN20 ",6510572.5347276647,2109870.6076536421,1514115.7196634358,121480.83067427571,474274.05731593049,"Summer",114966.69684,63010.464749999999,86234.457777999996,1655.2370777000001,56452.267561000001,37077.892905000001,6256.7729657999998,21356.368259999999,0]
[2765,"2012-04-02","KW60MN17 ",6365448.5718073184,2109384.8112665941,1544930.8170523061,96910.958229658485,467543.03598462965,"Summer",165450.56675999999,59578.767870000003,99254.481430999993,1905.151398,56224.269711000001,33470.722001000002,6736.2367925999997,7467.6597125999997,0]
[2769,"2011-10-24","KW60MN23 ",6009154.1039841194,2108159.73659844,1541980.6292238212,82360.957408000002,483818.14996661863,"Summer",181359.02643999999,44701.352638999997,104199.21698,2000.0636852,56133.070571999997,42291.485950000002,6530.4944883999997,19170.103298999999,3053.2304963000001]
[2772,"2012-05-10","KW60MN19 ",6648029.1448862916,2107285.1953094988,1510890.4511942966,124630.07484462252,471764.66927057953,"Summer",149789.14924,58368.921470000001,90909.609586999999,1744.9748092,57318.659389,34056.559951000003,6598.0606330000001,21356.368259999999,0]
[2773,"2011-09-16","KW60MN22 ",6240487.9826715086,2107210.8521799333,1537578.5746056135,97743.683353000015,471888.59422131989,"Summer",143979.96479999999,60762.944000000003,90054.731161999996,1728.5657484000001,54217.888635000003,32819.327035000002,6732.7916999999998,30217.333901999998,3053.2304963000001]
[2779,"2011-10-05","KW60MN23 ",6121912.8312747367,2105582.0885649193,1561329.1937451581,91348.977956999996,452903.91686276131,"Summer",152418.70845999999,50808.476107000002,102487.34569,1967.2049777,56452.267561000001,37112.954008000001,6458.2745051000002,19170.103298999999,3053.2304963000001]
[2780,"2012-06-26","KW60MN08 ",7091679.8927710401,2105436.6372525673,1529353.4149668973,126038.87445772452,450044.34782794543,"Summer",97702.679527999993,52635.013121000004,102389.51353,1965.3271271000001,56178.670141000002,40834.497017000002,8400.3318049000009,41461.106349000002,0]
[2784,"2011-09-17","KW60MN14 ",6176056.3630358921,2104460.7376840701,1522300.0829244715,97441.581212000005,484719.07354759879,"Summer",174796.58014999999,55799.174250999997,95679.690142000007,1836.5346612999999,54901.882184000002,31489.941447000001,6093.2944168000004,30217.333901999998,0]
[2787,"2011-08-27","KW60MN09 ",6721873.9223549226,2103605.3201699969,1508123.4743423073,117021.054819,478460.79100868967,"Summer",149398.83554999999,59326.390691000001,88953.296428999995,1707.4241345,56133.070571999997,30299.666131000002,7001.7832034000003,46011.774325999999,0]
[2791,"2012-05-19","KW60MN11 ",6354067.5048098452,2103210.7214782974,1506566.2555811971,127676.99997695698,468967.46592014353,"Summer",131606.32034999999,60636.358530999998,76958.064270000003,1477.1802906999999,56497.867130999999,34850.639473000003,6123.8854879999999,21356.368259999999,0]
[2794,"2012-04-06","KW60MN16 ",6297084.5566431899,2102698.2481753761,1543847.5520381276,96384.094194266116,462466.60194298252,"Summer",157289.55874000001,65996.299778000001,90193.434408000001,1731.2281035000001,55905.072721999997,31662.815235999999,7157.7113262000003,7467.6597125999997,0]
[2797,"2012-05-20","KW60MN17 ",6805520.7355806036,2101749.2651812136,1526514.7077101762,111288.13783315751,463946.41963787959,"Summer",148030.29467,53592.752284000002,76880.834375999999,1475.6978927,52941.100677000002,29525.823719,5616.3767424999996,21356.368259999999,0]
[2800,"2012-04-24","KW60MN15 ",6784852.6365843248,2100931.7932856157,1559275.66395064,81237.45116922239,460418.67816575355,"Summer",104727.60520000001,95502.117702999996,127148.28365,2440.5621476000001,40446.818519,41353.035752999996,11118.357776000001,7467.6597125999997,0]
[2802,"2011-09-24","KW60MN14 ",6411192.7890945803,2100698.1198659376,1516418.3552158929,95359.597127999994,488920.16752204497,"Summer",184854.21359999999,64548.879667000001,121664.36122000001,2335.3003766000002,55631.475301999999,34090.474961,8190.7618062000001,30217.333901999998,0]
[2805,"2012-05-01","KW60MN16 ",6609106.2950537074,2100503.1462441185,1538881.5802032731,93276.359975082538,468345.20606576296,"Summer",104601.84252000001,70070.784950999994,105305.88694,2021.3057871999999,55631.475301999999,33380.358408,7647.8083860999996,21356.368259999999,0]
[2809,"2012-04-06","KW60MN18 ",6225434.665613886,2099669.9442886263,1540624.2669590216,93746.980841438344,465298.69648816669,"Summer",165925.2133,58242.252446999999,81691.468743999998,1568.0361596,55950.672292000003,29946.678526,6203.3274690999997,7467.6597125999997,0]
[2812,"2012-06-23","KW60MN11 ",7045629.5263717435,2098269.2593799378,1497567.1335336759,119800.90207510341,480901.22377115855,"Summer",127094.63455,56516.138952000001,87265.807195999994,1675.0334310999999,55540.276163000002,36632.180482999996,5644.7788675000002,39757.832281000003,0]
[2816,"2011-07-09","KW60MN09 ",6774837.3516564546,2097716.9345836784,1515197.6236542768,125419.50116400002,457099.8097654017,"Summer",122337.94151,43642.102151999999,81961.225988000006,1573.2140456,55722.674442000003,30967.603099,5568.9021764999998,36948.299973000001,0]
[2819,"2012-04-15","KW60MN10 ",5963626.9430525098,2097049.4391388106,1561044.6691394991,108500.57605310784,427504.19394620368,"Summer",178726.43603000001,42251.929183,69544.683315000002,1334.8833093999999,35339.666687999998,23883.028015,5252.6121712000004,7467.6597125999997,0]
[2821,"2011-10-08","KW60MN19 ",6434457.9124999465,2096680.0529683558,1521082.6169208596,94619.714243999988,480977.7218034963,"Summer",183079.78972999999,55742.031551,101394.89967,1946.2358987,54081.089925,35410.093985,5964.7205010999996,19170.103298999999,1628.8136574]
[2824,"2012-06-04","KW60MN22 ",7098493.6739718271,2094545.2521274351,1519837.4137774485,115892.70460239374,458815.13374759292,"Summer",137513.18124000001,49186.700300999997,76186.998351000002,1462.3799785000001,55175.479603,40573.348303999999,6150.5337474999997,34775.456479,3053.2304963000001]
[2827,"2011-10-30","KW60MN09 ",6095276.4264628347,2094139.7574560901,1463869.2744250176,97190.245634999999,533080.23739607236,"Summer",227080.56489000001,47814.751680000001,96731.147268000001,1856.7169742999999,55631.475301999999,30463.526435,5489.7344479000003,19170.103298999999,0]
[2830,"2011-10-01","KW60MN11 ",6290896.419871551,2092588.5166428594,1527331.0508317344,90197.600339000011,475059.86547212489,"Summer",153294.90317999999,57555.882862999999,101229.36579,1943.0585397,55494.676592999997,33617.007672,6478.4676589999999,19170.103298999999,0]
[2834,"2012-06-06","KW60MN13 ",6720134.0575952893,2090822.8349604271,1531407.4725727485,111531.1321687232,447884.23021895543,"Summer",112328.63756,72560.616265000004,110293.36078,2117.0384193999998,48061.946695999999,45345.819551000001,8716.0665320999997,27653.708914999999,0]
[2837,"2011-10-23","KW60MN18 ",6295386.4133338304,2090164.6669716579,1532322.9577865833,93043.072925,464798.63626007456,"Summer",187714.39778999999,45675.596873000002,104727.19014000001,2010.1979257999999,54947.481754,33251.856943999999,5614.6516559000002,19170.103298999999,71.849863939000002]
[2841,"2011-08-14","KW60MN13 ",7227958.0853400668,2089270.6658880138,1521421.4834204293,119070.96228099999,448778.22018658475,"Summer",188259.33408,56257.998174,95960.648598999993,1841.9275502999999,50843.520461,25238.073066000001,6777.1800722999997,43897.609954,0]
[2842,"2012-05-01","KW60MN17 ",6547335.5504596047,2089186.9608325949,1526127.0742733965,100255.44414678407,462804.44241241436,"Summer",97297.527837000001,69399.239723000006,97183.049257999999,1865.3910582999999,56041.871432,32521.632065999998,7007.5238955000004,21356.368259999999,0]
[2848,"2011-09-15","KW60MN07 ",6247919.9115323555,2087261.6835099757,1514885.1167309161,94815.649510999996,477560.91726805962,"Summer",166347.61947000001,52340.124780999999,98097.426114000002,1882.9421686000001,52302.706698000002,36716.267776000001,7884.3499922000001,25251.042874999999,1882.4014127]
[2849,"2011-08-06","KW60MN10 ",6457583.459525343,2086960.1713973638,1503592.3362171836,114064.45529900001,469303.37988118024,"Summer",145167.48204,69742.825412000006,91296.389574999994,1752.3989016,55859.473151999999,30097.126627000001,6781.7509571999999,29580.167613000001,0]
[2852,"2012-06-06","KW60MN14 ",6707060.2152146045,2085636.9431281339,1519790.2263547305,112777.28653203697,453069.43024136638,"Summer",115273.15459999999,76269.594148000004,107104.37758,2055.8271196999999,48426.743255000001,45724.912398,8738.6365463999991,28039.888677999999,0]
[2856,"2011-09-24","KW60MN19 ",6511615.9745799992,2085338.3455657861,1494128.094857679,92999.229579000006,498211.02112910704,"Summer",193920.65781,74596.040754999995,126883.21126,2435.4741856000001,55722.674442000003,34025.799629000001,8194.4794595999992,30217.333901999998,224.65274199999999]
[2859,"2011-10-23","KW60MN11 ",6013747.7712016487,2084692.510081917,1531224.6175489321,90388.415179000003,463079.4773539849,"Summer",205777.97153000001,46715.581804000001,98090.438962999993,1882.8080528999999,54719.483904000001,32329.322624,5262.8763478000001,19170.103298999999,0]
[2863,"2012-04-01","KW60MN16 ",6070032.9769477928,2083294.3570460468,1544260.3545338393,103080.34369273279,435953.65881947463,"Summer",152464.02796000001,41918.353869999999,72651.862578,1394.5244141000001,54719.483904000001,24708.724064999999,5432.7998436999997,7467.6597125999997,0]
[2867,"2012-04-12","KW60MN06 ",6164322.0484993402,2082800.9792638258,1525759.1408454252,96581.656537364266,460460.18188103632,"Summer",151136.40818,48819.663336999998,82646.985262000002,1586.3769296999999,54628.284764000004,31251.922930000001,6487.3893498999996,7467.6597125999997,3053.2304963000001]
[2870,"2011-09-18","KW60MN17 ",6353422.9729171116,2081955.8344635018,1514801.0283012174,92849.259319999997,474305.54684228438,"Summer",187065.38351000001,52345.481859,109134.82498999999,2094.8007727999998,54719.483904000001,30355.158201999999,6440.5394716999999,30217.333901999998,0]
[2873,"2011-10-01","KW60MN22 ",6145091.2083960678,2080443.1678113693,1551152.516385745,86317.367919000011,442973.28350662417,"Summer",132011.82178999999,56267.283882999996,82226.054713000005,1578.2973305999999,54582.685193999998,29964.796361000001,7004.0178582999997,19170.103298999999,3053.2304963000001]
[2874,"2012-04-15","KW60MN21 ",6231233.1938835187,2080321.8860869,1545827.2690514983,101526.13229649758,432968.48473890423,"Summer",174982.90307999999,51408.229420999996,69275.116225000005,1329.7090733,35294.067117999999,25381.849966999998,5890.2895649000002,7467.6597125999997,3053.2304963000001]
[2877,"2011-10-04","KW60MN23 ",6062070.044174402,2079377.6173424381,1543801.3322412195,92149.233316000013,443427.05178521865,"Summer",142386.49038999999,49640.695784000003,101266.73371,1943.7758025000001,56315.468850999998,38334.723592000002,6362.712536,19170.103298999999,3053.2304963000001]
[2881,"2012-06-03","KW60MN14 ",6821871.1275856644,2079191.5572428247,1499755.085540436,116383.60302315088,463052.8686792379,"Summer",158173.36322999999,45983.407115000002,73126.898444999999,1403.6425439,55403.477453,28984.908016000001,5742.7837200000004,27341.559407000001,0]
[2884,"2012-06-16","KW60MN10 ",6582009.2735954672,2078540.3352143981,1492479.5842284702,119698.55757520105,466362.19341072667,"Summer",130842.73548,49637.535205,84415.433302999998,1620.3216061999999,53260.297666999999,32117.858199999999,5999.5201727000003,32146.531103000001,0]
[2888,"2012-06-18","KW60MN23 ",6679805.3615843151,2077936.8629932876,1501156.2353171119,122072.26279720409,454708.36487897154,"Summer",125931.12308999999,46557.048288999998,75883.064595000003,1456.5460875000001,56999.462399999997,34689.917565999996,6276.9017884000004,40930.114606000003,3053.2304963000001]
[2892,"2012-04-24","KW60MN08 ",6313182.7373613594,2077354.2862223377,1557254.2173912227,93465.282733555476,426634.78609755973,"Summer",159442.20332,51554.287725000002,101428.7836,1946.8862876000001,39899.623679999997,37663.573719,8930.6865111999996,7467.6597125999997,0]
[2895,"2012-06-08","KW60MN15 ",7117634.5698927073,2076501.2617662628,1507371.0931787805,111744.2327397312,457385.9358477511,"Summer",112206.4042,73085.921621000001,101341.08074,1945.202865,55449.077022999998,43733.386208999997,7902.0850257000002,28567.526418000001,0]
[2896,"2011-10-02","KW60MN17 ",6398130.3027271358,2076426.3649463761,1527569.4117486475,95357.664980000001,453499.28821772849,"Summer",170165.01388000001,44690.20304,95877.760225999999,1840.33654,54719.483904000001,30337.170281999999,7048.8328451999996,19170.103298999999,0]
[2899,"2012-05-12","KW60MN19 ",6300683.4564246647,2074820.0424856846,1514319.4358192082,122587.65270228418,437912.95396419225,"Summer",135744.25803,57903.233289000003,78611.482747000002,1508.9170191000001,56041.871432,27219.456953000001,5567.3260676999998,21356.368259999999,0]
[2902,"2012-04-24","KW60MN16 ",6800599.3215293642,2073819.3108203765,1542464.9665456854,79658.894008192729,451695.45026649849,"Summer",124857.95387,94371.674639000004,121221.53176,2326.8004363999999,40811.615078000003,38712.087786999997,10254.049133,7467.6597125999997,0]
[2905,"2012-04-27","KW60MN15 ",6338293.183167736,2073190.7102217076,1523920.4019107923,96680.59928705034,452589.709023865,"Summer",107167.81028999999,78662.705621999994,111158.86421,2133.6514232,56862.663690000001,32255.106576999999,8948.1913081000002,7467.6597125999997,0]
[2910,"2012-05-12","KW60MN21 ",6432290.0785106383,2072068.5607906112,1510878.2872567608,122148.97860263412,439041.29493121646,"Summer",119915.6692,66931.847399000006,72955.286040000006,1400.3485101000001,56133.070571999997,27034.315279999999,5725.6141213000001,21356.368259999999,1832.3623579]
[2913,"2011-07-08","KW60MN07 ",6678001.771614342,2071033.9950711238,1506624.2913447495,114880.235565,449529.46816137421,"Summer",95872.475363000005,43642.797896999997,83074.936147,1594.5912814999999,55859.473151999999,36120.036552999998,5769.5945003999996,42067.367673000001,0]
[2917,"2012-06-23","KW60MN13 ",7218023.1462848363,2069715.0750279389,1466037.3204680821,116884.76850148235,486792.98605837434,"Summer",150654.37443,55374.017651000002,88808.335991999993,1704.6416750000001,55221.079172999998,36969.375639999998,6172.2589951999998,38212.570994000002,0]
[2920,"2012-04-12","KW60MN23 ",6005978.9624937838,2069237.2189600843,1522156.442625276,106058.09639505837,441022.67993974988,"Summer",161829.69111000001,55720.868362000001,81141.132891999994,1557.4726757000001,46693.959598000001,31781.727017000001,5651.0138932,7467.6597125999997,3053.2304963000001]
[2921,"2011-10-30","KW60MN13 ",6094976.0938190641,2069173.8556177677,1491957.5732999342,88966.995634000006,488249.28668383358,"Summer",191271.56541000001,43889.983499000002,96978.774116000001,1861.4700759,53442.695946,32091.256431000002,5815.2627198999999,19170.103298999999,0]
[2924,"2011-10-22","KW60MN21 ",6195342.1246830625,2068405.2877597199,1513308.2645138409,98678.217155999999,456418.80608987901,"Summer",166438.91558999999,57418.401668999999,104740.4083,2010.4516432999999,55357.877883000001,35940.661145999999,6067.6974619000002,19170.103298999999,3053.2304963000001]
[2930,"2012-04-26","KW60MN17 ",6467733.5439821156,2067606.4086284847,1528207.740787226,87577.425158773927,451821.24268248474,"Summer",99339.258342999994,66093.760355000006,101385.12359,1946.0482505,47651.550565999998,32813.491935999999,7112.0871226999998,7467.6597125999997,0]
[2932,"2011-10-02","KW60MN14 ",6276419.6045912243,2067116.8134491122,1516314.6357141938,95240.607500000013,455561.57023491844,"Summer",151494.94734000001,41967.385434000003,97750.099084999994,1876.2753605,54856.282614000003,30030.732197000001,7068.0711924999996,19170.103298999999,0]
[2935,"2012-06-06","KW60MN21 ",6675920.3262845445,2065569.1697077556,1495760.0512359522,116982.55175853976,452826.56671326357,"Summer",120371.42908,58676.376608999999,84074.939327,1613.7859559000001,51025.918740000001,39093.756643000001,6119.1740914000002,27798.884445,560.18298412000001]
[2938,"2011-09-24","KW60MN13 ",6318474.040786732,2064751.1315949557,1500431.1218529476,94525.886753999992,469794.12298800796,"Summer",178295.46621000001,66905.544049999997,118221.09782,2269.2082669000001,55859.473151999999,33663.482928999998,7822.8766677000003,30217.333901999998,0]
[2942,"2012-04-20","KW60MN21 ",6338494.4710891768,2064484.5537461988,1532092.4562576523,98836.171233787609,433555.92625475873,"Summer",155285.53795999999,62654.018216999997,93108.340777999998,1787.1786044,35020.469699000001,31429.029600999998,6768.3785790000002,7467.6597125999997,3032.5505136000002]
[2945,"2011-07-13","KW60MN07 ",6615266.8038086994,2063321.8670957997,1504161.7700941688,115178.32598200001,443981.77101963077,"Summer",101366.45819999999,41671.192369999997,84207.485511000006,1616.3301286999999,52074.708849000002,36992.610223000003,6995.3839641000004,36810.551819,0]
[2946,"2011-10-02","KW60MN13 ",6256974.9136948325,2063276.9934916757,1504062.167864148,98630.552377999993,460584.27324952767,"Summer",162904.70447999999,45284.168654000001,94533.164294999995,1814.5275409000001,55084.280463000003,29634.918433999999,6899.4360096999999,19170.103298999999,0]
[2951,"2012-06-06","KW60MN15 ",6702577.0643768273,2061616.2674952638,1507309.4753815555,110714.87362717029,443591.91848653817,"Summer",102334.21400000001,81278.309364000001,106591.18309000001,2045.9765499,49065.137234000002,45471.537925999997,8739.5862746999992,27644.679516,0]
[2953,"2012-04-24","KW60MN17 ",6722248.3113789903,2060754.3267676623,1531027.0038426362,81739.871945473162,447987.45097955293,"Summer",129281.47013,88549.837262999994,110522.489,2121.436447,41222.011208000004,37685.214118999997,8985.7521316000002,7467.6597125999997,0]
[2957,"2012-05-20","KW60MN16 ",6731241.6630669329,2060110.5109582625,1494910.6328263131,109891.78962585419,455308.08850609511,"Summer",125826.22900000001,56720.800539000003,76734.906860000003,1472.8968705,52393.905837999999,29557.963717999999,5715.2229760999999,21356.368259999999,0]
[2960,"2011-08-14","KW60MN12 ",6997410.7755716825,2059192.0587626514,1499715.5258187559,117730.29992399999,441746.23301989568,"Summer",168734.72571,54172.889758999998,92721.979911000002,1779.7625568999999,54491.486054000001,25131.760300000002,6725.4985987999999,44772.682018,0]
[2964,"2011-10-09","KW60MN12 ",6098473.5135521796,2058370.4422797984,1523017.7354501374,96080.160493000003,439272.54633666109,"Summer",156520.74877000001,47257.978712999997,99655.967287000007,1912.8577637999999,51618.713149000003,30254.708253000001,5427.7735629999997,19170.103298999999,0]
[2967,"2011-07-07","KW60MN02 ",6427357.2086873101,2057132.152989052,1485995.7375865937,108495.782332,462640.63307045813,"Summer",131561.88052999999,50939.549375000002,81952.470262000003,1573.0459828,54628.284764000004,34275.653068,6679.4647081000003,47063.791004999999,3053.2304963000001]
[2968,"2012-05-12","KW60MN10 ",6205624.6942565581,2057003.174826141,1472657.9497914533,127803.52864107014,456541.69639361755,"Summer",156346.13725999999,47988.626940000002,74159.799530000004,1423.4686809,56406.667991000002,26976.841871000001,4966.5018571999999,21356.368259999999,0]
[2972,"2011-09-04","KW60MN14 ",6715007.4683804968,2056514.0963739878,1494813.7168813131,100786.86039199999,460913.5191006746,"Summer",169614.26957999999,56235.772889,88310.268215999997,1695.0814565000001,54628.284764000004,24865.838766000001,6543.1101307999998,34801.479203000003,0]
[2975,"2011-10-30","KW60MN14 ",6097095.489897565,2055749.4789752937,1488089.0381787834,83808.615592000002,483851.82520451018,"Summer",161053.32436,43989.888021999999,96013.551441000003,1842.9429998999999,54400.286914999997,31834.579762000001,5840.0470738000004,19170.103298999999,0]
[2978,"2012-05-25","KW60MN22 ",6461567.120595987,2053827.0646762969,1488804.6924789259,116924.20560299624,448098.16659437463,"Summer",163950.10543,61841.803898999999,83421.643335000001,1601.2461920000001,55585.875732,33185.764080000001,6039.3224231000004,26625.850423,3053.2304963000001]
[2982,"2012-06-06","KW60MN17 ",6644027.2556886217,2052625.4122663746,1491256.761142218,112356.16103379783,449012.49009035877,"Summer",125980.39586,74744.242532000004,96300.910394000006,1848.4587438999999,48016.347126000001,42555.250590000003,7207.5068861999998,27399.329763999998,0]
[2985,"2012-05-28","KW60MN12 ",6084831.3569259029,2051040.6858808629,1461035.8179979101,119946.26244540421,470058.60543754854,"Summer",155836.10208000001,53124.978474000003,67189.273979999998,1289.6721378,55038.680892999997,24850.025460000001,5101.0280812000001,21850.536757000002,0]
[2989,"2012-04-07","KW60MN20 ",6133613.8781577041,2050621.8754840589,1511893.6442474215,96376.998477035188,442351.23275960219,"Summer",157110.52762000001,53334.278897999997,73529.682658000005,1411.3738311,55631.475301999999,25066.360894000001,5695.5766356000004,7467.6597125999997,1119.9419087000001]
[2993,"2011-07-13","KW60MN24 ",6616786.8393825199,2050211.5491048335,1482590.9526753821,121873.013337,445747.58309245144,"Summer",131602.09151999999,48560.163203999997,79657.398287999997,1528.9929635999999,52302.706698000002,34319.739472000001,6379.4318181999997,41725.532427999999,3053.2304963000001]
[2996,"2011-07-25","KW60MN01 ",6582016.6638567215,2049178.8472317774,1483402.0864866411,104024.20676,461752.55398513639,"Summer",136296.95246999999,48933.007150999998,73874.783635999993,1417.9979109999999,55722.674442000003,29211.273673,6097.7230971999998,50396.136637000003,3053.2304963000001]
[2997,"2011-07-02","KW60MN09 ",6772956.8793342579,2049093.4658869538,1467947.8821257316,122791.276124,458354.30763722223,"Summer",129515.70922,41829.669646000002,81390.142724000005,1562.2523231,56315.468850999998,28745.115534,5472.6291804000002,47189.469258999998,0]
[3000,"2012-04-08","KW60MN12 ",5883045.211508695,2047765.724859993,1490975.1361024897,106972.52953651096,449818.05922099215,"Summer",203050.51328000001,38888.150217000002,68846.007417999994,1321.4724957000001,51618.713149000003,19544.268258,5504.2715550000003,7467.6597125999997,0]
[3003,"2012-06-14","KW60MN07 ",6330203.2464912683,2047023.9650731091,1495584.0575136058,112009.56097206664,439430.3465874368,"Summer",99729.179883000004,42878.623745999997,71877.230800000005,1379.6556565999999,55813.873582,36166.643265999999,7472.7468767,33636.899356000002,0]
[3007,"2011-09-25","KW60MN20 ",6639913.6301952489,2046358.5954026792,1494188.0029671367,99794.709620000009,452375.88281554246,"Summer",179882.58147999999,54313.386920999998,97240.033880999996,1866.4848560999999,55129.880033000001,30808.597506999999,7564.5911925,30217.333901999998,3049.4563644999998]
[3010,"2012-05-20","KW60MN15 ",6505037.0851083416,2045319.4327991586,1481243.0272977559,110833.84850984429,453242.55699155835,"Summer",139010.88694,52594.174640999998,74188.008331999998,1424.0101379,51481.91444,29126.213301,5760.5492262999996,21356.368259999999,0]
[3014,"2011-08-25","KW60MN01 ",6257848.3303976553,2044439.5713686,1482437.3449790648,108891.717351,453110.50903853512,"Summer",123437.49058,62738.613129999998,76971.855765,1477.4450131000001,55357.877883000001,35518.717099000001,7774.9737932999997,54381.728800999997,3053.2304963000001]
[3018,"2012-06-06","KW60MN16 ",6694534.0290459357,2043756.66195928,1486655.5372692347,112895.90689175083,444205.21779829456,"Summer",110707.2677,78618.245410000003,104320.17533,2002.3854339,48244.344975,41714.039147000003,8095.8194464999997,27979.641081999998,0]
[3021,"2011-10-28","KW60MN23 ",6055744.6435883455,2043315.748621617,1463123.3166263422,86720.877232999992,493471.55476227467,"Summer",184345.02630999999,55168.367880999998,104695.37265,2009.5872013999999,56406.667991000002,37585.476286999998,6225.8703972000003,19170.103298999999,3053.2304963000001]
[3022,"2012-06-06","KW60MN20 ",6530098.447481473,2043115.6517109871,1483457.6695393431,114149.18068877622,445508.80148286768,"Summer",103707.47125,60558.356327000001,87885.324093999996,1686.9248184,49384.334222999998,39674.859509000002,6333.1981629000002,26669.421977000002,0]
[3025,"2012-05-20","KW60MN13 ",6390048.6125864107,2042531.0290594017,1474941.4707474646,111446.03258376692,456143.52572817024,"Summer",151854.17541,47438.756795000001,72846.457861000003,1398.2595953,50524.323471000003,29133.349741000002,5670.3622793000004,21356.368259999999,0]
[3029,"2011-07-23","KW60MN09 ",6740508.9839117415,2042142.1311722123,1473621.1861310767,119717.92254900001,448803.0224921357,"Summer",125038.97752,49804.920591000002,93888.959096999999,1802.1622712000001,53533.895085999997,31589.692332999999,5519.0896879000002,44225.336746000001,0]
[3032,"2011-09-19","KW60MN07 ",6197423.3499068255,2041571.0358246323,1492034.5941745047,88486.386263999986,461050.05538612755,"Summer",155133.08807,52441.057655999997,95204.833062000005,1827.4199632,55677.074871999997,35301.307407,7011.3719042000002,30217.333901999998,2136.8372881]
[3035,"2011-07-14","KW60MN07 ",6658059.0978012029,2041386.1676634289,1480839.461167735,117348.226521,443198.47997469385,"Summer",100522.40896,42225.196816999996,83619.204962000003,1605.038311,54628.284764000004,36918.960310000002,6586.0358188,39770.796552,0]
[3040,"2012-04-03","KW60MN06 ",6170546.0861216849,2040082.6226875037,1465323.2410560702,90278.35863172097,484481.02299971256,"Summer",152524.32324999999,50395.076477000002,83346.277440000005,1599.7995727,55266.678742999997,31585.660058000001,6743.6111536999997,7467.6597125999997,3053.2304963000001]
[3043,"2012-06-24","KW60MN18 ",7543938.057406636,2039654.281606066,1463478.2227708427,107432.42246889875,468743.63636632444,"Summer",136817.76639999999,52565.938308999997,88470.545977999995,1698.1579262,55859.473151999999,30912.41302,6140.2018552999998,37534.574036999998,0]
[3046,"2012-06-28","KW60MN24 ",6663211.7032246683,2039291.4924588222,1473577.5901818394,117661.8073547961,448052.09492218687,"Summer",108096.19239,55051.209518999996,88071.762476999997,1690.5034310999999,55722.674442000003,41979.433039000003,6258.9229741999998,41997.256443999999,3053.2304963000001]
[3047,"2011-07-12","KW60MN01 ",6349907.154325664,2039268.6180963961,1468152.0487292109,115991.68045299999,455124.88891418529,"Summer",102041.42839,46727.881872999998,71184.275962999993,1366.3546564000001,54172.289064999997,34838.705707000001,6516.8834077000001,39903.703412000003,3053.2304963000001]
[3050,"2011-08-21","KW60MN24 ",6160002.1716689654,2037437.5268207558,1490187.7616741208,104619.07893599999,442630.68621063512,"Summer",149308.81125999999,52424.303530999998,64395.695358999998,1236.0504762,56543.466700999998,30253.486499999999,6270.0149887999996,48139.748481000002,3053.2304963000001]
[3056,"2012-04-24","KW60MN18 ",6641796.4363807701,2036492.782410111,1516425.6205544032,85475.392251466954,434591.76960424101,"Summer",145632.19771000001,74560.919276000001,101096.99506,1940.5177348,41313.210348000001,36314.694818000004,8249.0795276999997,7467.6597125999997,0]
[3058,"2012-05-12","KW60MN12 ",6242628.9916886911,2036023.5972211477,1457320.3330841437,124421.46137645538,454281.80276054854,"Summer",127745.18562,56435.358588000003,75747.006290000005,1453.934501,55677.074871999997,27801.689953000001,5226.8019072999996,21356.368259999999,0]
[3061,"2012-05-28","KW60MN20 ",6236815.587446576,2035448.1890738891,1458251.2060502083,117199.64730916705,459997.33571451379,"Summer",167369.96851999999,46263.328093999997,65000.760846999998,1247.6644742999999,53761.892935999997,25926.573487000001,5012.0701953999996,23132.601876000001,0]
[3065,"2012-05-13","KW60MN15 ",6276959.279476786,2034817.2789630936,1499970.1964226793,109391.24989272976,425455.83264768461,"Summer",119255.89737000001,53559.706793999998,79806.127829000005,1531.8477696,52758.702397000001,26436.176715000001,6074.1644168000003,21356.368259999999,0]
[3068,"2012-06-09","KW60MN11 ",6461204.162183214,2034074.1196177551,1463596.9980880234,118663.83814059834,451813.28338913334,"Summer",181370.88625000001,47545.329545000001,76276.925661999994,1464.1060984999999,54901.882184000002,31103.114874999999,5659.3041241999999,29164.494919000001,0]
[3069,"2012-05-20","KW60MN14 ",6476334.2537181647,2033646.2045419384,1475218.5629389279,110421.64529090168,448005.99631210876,"Summer",149408.62862999999,51137.605398,76044.799291000003,1459.6505225000001,50113.927342000003,29371.038057999998,5739.6924471000002,21356.368259999999,0]
[3072,"2011-10-21","KW60MN22 ",6063341.9164782297,2031829.4728015615,1472492.4101866742,91629.575074000008,467707.48754088709,"Summer",144379.35086999999,59530.282618999998,113759.42023,2183.5680904999999,56862.663690000001,40968.322401999998,6613.8877449000001,19170.103298999999,3053.2304963000001]
[3077,"2011-10-23","KW60MN17 ",6176217.1706574885,2031212.8990828684,1495327.2638369717,84594.419231999986,451291.2160138968,"Summer",158490.55736000001,40278.577061000004,105993.19064,2034.4983161,54400.286914999997,33553.836300000003,5483.2945792,19170.103298999999,0]
[3080,"2012-06-01","KW60MN07 ",6248417.4797669183,2030819.9388357995,1464615.9213449815,110366.32456730561,455837.69292351231,"Summer",124271.59836,45681.932493,78047.007127000004,1498.0821278999999,56589.066271000003,39557.861607999999,6541.6542185999997,31289.056712000001,0]
[3083,"2012-06-14","KW60MN24 ",6189740.7762744902,2030237.3503722991,1489753.9773261086,108177.02975349774,432306.34329269279,"Summer",123596.65996,50264.668425000003,74626.224927000003,1432.4215360000001,49201.935943999997,35071.368955999998,6372.6262772999999,37326.024641000004,3053.2304963000001]
[3086,"2012-06-05","KW60MN18 ",6684279.5306572691,2029981.440290893,1469001.7319256824,114147.77071854468,446831.93764666596,"Summer",146139.63623999999,63219.978878000002,84294.560387000005,1618.0014973,54354.687344999998,40121.607686000003,6467.6126541000003,27375.312744999999,0]
[3090,"2012-06-05","KW60MN21 ",6528319.055811286,2028818.0908938637,1466639.3586844495,111889.75272603874,450288.97948337544,"Summer",143040.00906000001,56131.848147999997,81739.904674000005,1568.9658684999999,55449.077022999998,39770.493332999999,6091.7064577000001,28916.842188999999,611.07015908999995]
[3093,"2011-10-16","KW60MN13 ",6123985.9710110435,2028278.7494806792,1500532.0955361912,86837.20111200001,440909.45283248788,"Summer",160778.0264,40175.609974999999,99221.253511000003,1904.5136010000001,47286.754007000003,31456.973529999999,5404.2081115999999,19170.103298999999,0]
[3094,"2011-07-19","KW60MN24 ",6833235.4754043957,2027660.9826820986,1474229.6174161637,108884.830413,444546.53485293488,"Summer",128720.30743,43187.015651000002,76991.441235999999,1477.8209486999999,53716.293365999998,33776.104682999998,6570.9823711999998,52132.076912999997,3053.2304963000001]
[3098,"2012-06-08","KW60MN17 ",7231415.4088518834,2027420.920274294,1461585.8546599753,110159.62003709193,455675.44557722693,"Summer",140589.80950999999,62104.996463000003,86075.972934999998,1652.1950224,55266.678742999997,41386.707249999999,7039.0409941999997,28698.897486999998,0]
[3101,"2011-08-08","KW60MN24 ",6173529.7000483703,2027101.9559364486,1458022.3045408381,110646.717965,458432.93343061052,"Summer",148941.35870000001,58551.396334999998,86269.808862000005,1655.9156281,56817.064120000003,31856.367587000001,7283.2684577999999,46498.320505999996,3053.2304963000001]
[3105,"2011-10-16","KW60MN10 ",5970752.9886298105,2026375.7199619752,1481951.438060364,87805.842224999986,456618.43967661134,"Summer",196503.03218000001,41154.869036999997,95068.234263000006,1824.7980021000001,52120.308419000001,29696.409959000001,5499.3434638999997,19170.103298999999,0]
[3108,"2012-06-23","KW60MN14 ",7283847.1642476646,2025530.6607171809,1436102.2577774427,111038.09161647758,478390.31132326077,"Summer",150125.32540999999,58341.347140999998,88353.030853999997,1695.9022688,55449.077022999998,36603.356938999998,6276.6580076999999,37754.922031000002,0]
[3111,"2012-05-19","KW60MN22 ",6280906.0246529151,2024277.3559483332,1453759.5544891728,116897.2830411145,453620.51841804595,"Summer",122886.29054,60967.072129,69900.781113000005,1341.7184689000001,54537.085623999999,31988.318383999998,6362.4348969000002,21356.368259999999,3053.2304963000001]
[3115,"2011-08-12","KW60MN24 ",6002010.8624846954,2023365.0966564147,1466755.31955707,115586.48822499999,441023.28887434455,"Summer",155819.88626999999,59639.967745000002,75238.0579,1444.1654334,56589.066271000003,31495.01527,6554.9131711999999,51893.686040000001,3053.2304963000001]
[3118,"2012-04-05","KW60MN24 ",5689620.1517423922,2021560.6118443089,1463566.0995535618,97798.716051731608,460195.79623901536,"Summer",186860.33290000001,56967.234156999999,71197.462545999995,1366.6077677000001,55722.674442000003,31270.817537999999,6406.4017316999998,7467.6597125999997,3053.2304963000001]
[3119,"2011-07-03","KW60MN09 ",6759828.3261649208,2021477.5302238483,1449608.0631943252,116225.977285,455643.48974452307,"Summer",135406.05752999999,46317.372880000003,83259.229317999998,1598.1287176999999,49201.935943999997,25219.513771999998,5853.9019341000003,47475.035357000001,0]
[3123,"2012-04-27","KW60MN19 ",6123615.3976313509,2020929.5267686145,1474973.1833083525,105645.79903500997,440310.54442525213,"Summer",152006.39212999999,61884.217044999998,86256.396068000002,1655.6581747,56725.864979999998,28534.264938,6169.3048484999999,7467.6597125999997,0]
[3126,"2012-04-20","KW60MN18 ",6185617.4720012266,2020088.915986866,1494235.9145190155,91727.65967232309,434125.34179552743,"Summer",142956.12135,56929.644631000003,99104.096877999997,1902.2648247,34382.075720000001,32383.653942000001,6637.1670935000002,7467.6597125999997,0]
[3130,"2011-09-17","KW60MN22 ",6056300.547488804,2019014.7862022279,1482122.74040237,97354.411546999996,439537.63425285788,"Summer",140390.83188000001,55872.709544999998,85764.890234999999,1646.2239102999999,55312.278313000003,28556.250311,5907.8993223999996,30217.333901999998,3053.2304963000001]
[3133,"2011-10-22","KW60MN14 ",5975121.8699292419,2018597.3532550856,1469097.2882880929,87921.566919999997,461578.49804699275,"Summer",143422.07706000001,56406.304392999999,119932.8033,2302.0637918000002,56315.468850999998,37158.521520000002,5909.6057854000001,19170.103298999999,0]
[3137,"2012-06-24","KW60MN17 ",7544467.6847774722,2018052.1480081088,1451492.1833275647,108052.3435692116,458507.6211113325,"Summer",128603.95628,55550.630900999997,84744.177651000005,1626.6317268,55950.672292000003,30311.768988,6032.1258187000003,37059.896975000003,0]
[3140,"2012-06-08","KW60MN22 ",6790255.1749943057,2017772.7021393431,1456575.9518590409,115970.35023372812,445226.40004657418,"Summer",134847.68226,54962.027185999999,74012.669538999995,1420.6445776,55722.674442000003,37356.433432999998,6698.2154939000002,33666.334574,3053.2304963000001]
[3144,"2012-06-23","KW60MN19 ",7527207.9254526235,2016930.8511463613,1422515.8954368692,114166.18745131677,480248.76825817529,"Summer",148166.75132000001,56018.427207000001,90265.469152000005,1732.6107826,55449.077022999998,33949.814997000001,5648.5168350000004,38741.023480999997,0]
[3145,"2011-09-30","KW60MN07 ",6355640.8293552604,2016610.9779909062,1456384.688561992,82604.15276099999,477622.13666791416,"Summer",178598.90338999999,52325.040122999999,102848.32378000001,1974.1338126000001,56589.066271000003,38555.053763000004,6921.7419281000002,30217.333901999998,2828.3798597]
[3148,"2011-09-18","KW60MN16 ",6255077.0058837617,2016526.6399103915,1459976.3161854984,92260.683881000004,464289.63984389335,"Summer",167403.09967,49140.792361,105353.07882,2022.2116172000001,54582.685193999998,30055.696376,6653.8271226999996,30217.333901999998,0]
[3151,"2012-05-19","KW60MN20 ",6295804.8374407766,2016080.5372491064,1443040.6844385704,123448.2638965065,449591.58891402953,"Summer",155283.48183,56093.394161999997,75352.751592999994,1446.3669345000001,54719.483904000001,32526.274719000001,6075.7845416,21356.368259999999,0]
[3155,"2012-06-03","KW60MN11 ",6408092.2404834591,2015128.7003034283,1447340.4461072504,118039.51784109305,449748.73635508487,"Summer",133829.27587000001,45049.673574,72894.846137,1399.1883895000001,55221.079172999998,27824.037239000001,5362.6875467,27683.301159999999,0]
[3158,"2011-09-21","KW60MN07 ",6280868.6169117726,2014813.4515518672,1461546.8782135893,90823.524843000007,462443.04849527788,"Summer",156612.72320000001,53699.694599000002,94114.491947000002,1806.4912870999999,55859.473151999999,36920.112007000003,7402.8834397999999,30217.333901999998,2238.6116379]
[3161,"2011-10-03","KW60MN23 ",5875372.4842848154,2014370.2884667211,1475728.2948052245,89088.874291999979,449553.11936949659,"Summer",135245.80708999999,45611.808439,97168.943020000006,1865.1202945,56269.869280999999,38299.055297999999,6529.3365303999999,19170.103298999999,3053.2304963000001]
[3166,"2011-07-08","KW60MN01 ",6339730.571343042,2013715.1845315676,1460522.7182606861,113679.092704,439513.37356688164,"Summer",95012.242098000002,48751.907708999999,79839.087511999998,1532.4804180000001,55403.477453,33522.055854999999,6046.7932811000001,44324.884062999998,3053.2304963000001]
[3169,"2011-10-01","KW60MN10 ",6135519.1893720543,2012764.5302722019,1460800.7962593867,90708.309085000015,461255.42492781515,"Summer",157393.81690999999,50373.832948000003,95713.626204999993,1837.1860509000001,55449.077022999998,32854.146708,6117.3271144999999,19170.103298999999,0]
[3170,"2011-07-29","KW60MN06 ",6471033.7246915037,2012423.7625998487,1470500.6376508761,104754.591055,437168.53389397258,"Summer",86553.477736000001,49727.917818000002,72466.495538000003,1390.9663654000001,56087.471001999998,36308.219605999999,6123.5841480999998,38777.298617,1882.4014127]
[3173,"2012-05-09","KW60MN07 ",6291527.2943487847,2012054.1907142261,1479111.5823421341,109139.66774035859,423802.94063173345,"Summer",117753.11495,41653.535222999999,80096.261134,1537.4167662,56543.466700999998,34882.959964000001,6467.7057643999997,21356.368259999999,0]
[3177,"2012-04-14","KW60MN12 ",6015127.9925155407,2010861.0998881103,1488144.9209722583,106280.7918948204,416435.38702103152,"Summer",157819.60402999999,52099.141433999997,77384.545245000001,1485.3664280999999,34838.071419,26173.469268000001,5629.2632518999999,7467.6597125999997,0]
[3180,"2011-08-02","KW60MN07 ",6076529.0824345723,2010466.3976512274,1475781.6949831822,110332.766445,424351.93622304517,"Summer",111721.18029,51260.594845,80912.107902000003,1553.0766295000001,56087.471001999998,34048.540903000001,7797.8688481999998,30501.646477999999,0]
[3182,"2011-09-17","KW60MN09 ",6031866.4219742836,2010261.471921013,1475826.4066105767,98249.124075,436185.9412354363,"Summer",118896.77528,49553.955791,91176.337677000003,1750.0945518000001,54445.886484000002,31380.941223000002,5456.4990359000003,30217.333901999998,0]
[3188,"2012-05-23","KW60MN23 ",6191659.3124760957,2009172.9279799378,1470285.9698165944,112129.69314349926,426757.26501984411,"Summer",134960.79024,58567.049800000001,72182.521131000001,1385.5155864000001,57637.856378999997,38972.246477000001,5680.9582686000003,21356.368259999999,3053.2304963000001]
[3191,"2011-09-18","KW60MN12 ",6004934.4388323743,2008916.2765388284,1463774.4301750057,96007.079743999988,449134.76661982277,"Summer",186500.99883999999,49125.064982999997,94246.803539,1809.0309569000001,54537.085623999999,28939.965798000001,5993.7100700000001,30217.333901999998,0]
[3194,"2012-04-27","KW60MN18 ",6131501.2011771305,2008590.8843243103,1470191.0249869358,97174.375314478326,441225.48402289615,"Summer",133085.71171,63047.297471999998,90125.825238000005,1729.9303717,56041.871432,29150.754693999999,6323.6822571000002,7467.6597125999997,0]
[3195,"2012-05-15","KW60MN07 ",6358589.903539259,2008079.1212932887,1455269.4377550846,119118.53602590557,433691.14751229848,"Summer",109308.97662,47498.343440999997,84993.106069999994,1631.4098116,48335.544114999997,34851.779334999999,7187.3577472999996,21356.368259999999,0]
[3198,"2011-09-11","KW60MN10 ",6066503.7508256836,2007763.9338003315,1443847.117964135,98439.552980000008,465477.26285619667,"Summer",156786.85777,52424.989635999998,91449.869881999999,1755.3448966999999,53351.496806000003,29980.096827000001,6737.7892006000002,36319.591670000002,0]
[3202,"2011-10-23","KW60MN09 ",5894093.7350520669,2007229.1050166283,1478541.2454139458,93640.614106000008,435047.24549668247,"Summer",168991.86830999999,39333.258478000003,98493.018897999995,1890.5354190999999,53807.492506000002,30573.578985,5223.3229564000003,19170.103298999999,0]
[3207,"2012-04-29","KW60MN21 ",6207389.7056313222,2005881.3031202613,1453768.8359378313,99845.066099942036,452267.40108248801,"Summer",162873.22670999999,51059.799224000002,73062.228749000002,1402.4012341,54537.085623999999,27159.884300999998,5835.2053219999998,7467.6597125999997,2697.0061369]
[3209,"2011-08-14","KW60MN23 ",6361351.551725354,2005740.1193484813,1470978.0870225653,114673.73872400001,420088.29360191588,"Summer",133116.19321,50309.845270999998,67838.457072999998,1302.1329562999999,55357.877883000001,26971.827161000001,6271.3151512000004,54387.010359,3053.2304963000001]
[3213,"2012-04-23","KW60MN22 ",6258421.5052672848,2005270.5209237393,1481680.1442785233,96575.269356366029,427015.10728885001,"Summer",207643.80809999999,60789.702074000001,94890.558841999999,1821.3875911,25490.159585000001,34057.735818000001,7146.2959638000002,7467.6597125999997,3053.2304963000001]
[3216,"2012-06-23","KW60MN22 ",7150654.0518227676,2004918.7038325863,1428956.9195727541,116353.91390416026,459607.87035567209,"Summer",125006.81084000001,58414.313627000003,80170.694858999996,1538.8454928000001,55357.877883000001,32174.737598,5764.1500677000004,43375.055139999997,3032.5505136000002]
[3219,"2011-10-15","KW60MN14 ",6257159.1499975305,2004790.6421562633,1458905.6250612631,90244.200970999998,455640.81612400047,"Summer",159906.46325999999,54117.731459000002,100238.92098,1924.0473346000001,55357.877883000001,34435.159979999997,5738.8984675000002,19170.103298999999,0]
[3220,"2012-05-13","KW60MN14 ",6192921.3389427941,2004749.4611730862,1462297.897123358,113839.5104650657,428612.05358466244,"Summer",149268.05974999999,53804.503081000003,81759.237638999999,1569.3369573,52804.301966999999,26226.185213000001,5855.5965477999998,21356.368259999999,0]
[3223,"2011-08-13","KW60MN09 ",6252758.8459582571,2004095.1475188432,1453934.3654306422,117142.94867499999,433017.83341320109,"Summer",155068.26719000001,53814.169602000002,79521.559878999993,1526.3855977999999,56133.070571999997,29631.721213000001,6592.3131677000001,45162.908739999999,0]
[3228,"2011-07-07","KW60MN06 ",6536863.5837148428,2002423.374769168,1451922.6694401214,105360.30691699999,445140.39841204643,"Summer",94132.380273999996,46583.118651999997,82755.785883000004,1588.4653155999999,55859.473151999999,34937.703368000002,6495.6541863000002,41681.023291999998,813.77073923]
[3231,"2011-07-28","KW60MN02 ",6320883.2886012541,2001476.6942804288,1466827.72420113,100761.803182,433887.16689729883,"Summer",86954.294609999997,47617.150382,71770.496847999995,1377.6069396,55494.676592999997,34331.916747000003,6474.1202395999999,42072.630016000003,3053.2304963000001]
[3234,"2011-08-09","KW60MN24 ",6073993.2508458244,2000795.5505856185,1459920.7395682014,110329.56249699999,430545.24852041714,"Summer",154314.78276,59683.211607999998,77668.640220000001,1490.8195214,56041.871432,34382.568014999997,7025.2877091,49744.397550000002,3053.2304963000001]
[3238,"2011-10-08","KW60MN15 ",6142799.8835690189,1999808.0460609635,1459679.3499483548,84623.669708999994,455505.02640360867,"Summer",139292.40627000001,59269.954983000003,102797.41366000001,1973.1566124000001,54309.087775,38630.287635000001,5924.2732477,19170.103298999999,0]
[3241,"2012-06-13","KW60MN24 ",6145939.9900210863,1998985.1292464477,1460213.6841457067,108723.25738880002,430048.18771194102,"Summer",110359.62387,55984.059319,71255.635062000001,1367.7243667,54263.488205000001,35271.388709999999,6278.2019520000003,36702.175792000002,3053.2304963000001]
[3242,"2011-10-26","KW60MN05 ",5961833.2380285943,1998953.8615451884,1447276.1387046557,77706.77995099999,473970.94288953277,"Summer",188750.14345,43317.237312999998,101907.35283,1956.0722390000001,57045.061970000002,39187.247415999998,7111.1797164999998,19170.103298999999,3053.2304963000001]
[3245,"2012-04-21","KW60MN10 ",6008173.4010222377,1997996.1954133804,1472043.3655718395,96156.838261256446,429795.99158028443,"Summer",182445.33789,50297.702667999998,71189.960393999994,1366.4637668,35978.060666999998,27440.535744000001,5414.6246503000002,7467.6597125999997,0]
[3249,"2012-04-20","KW60MN22 ",6066259.9733567731,1997369.168201352,1480335.6705801683,94878.635306536351,422154.86231464718,"Summer",142353.67720000001,65032.245883000003,88466.314922000005,1698.0767126999999,35202.867978000002,30541.920483000002,6364.6881741999996,7467.6597125999997,3053.2304963000001]
[3253,"2012-06-26","KW60MN07 ",6653266.3075382439,1996805.3344974318,1452065.0552778693,109417.60983664548,435322.66938291688,"Summer",86110.616318,48195.547689999999,89760.506890999997,1722.9182272,55768.274012000002,39528.273775000001,6739.4347200000002,42589.603817000003,0]
[3256,"2012-05-06","KW60MN09 ",5835188.3936733557,1995916.4809960462,1454285.6010782213,109268.09134668618,432362.78857113863,"Summer",140839.74509000001,42767.275580000001,60646.482864999998,1164.0857919,55494.676592999997,25193.37919,5336.4675956999999,21356.368259999999,0]
[3259,"2011-10-09","KW60MN17 ",6050407.0702198828,1995215.8203073323,1470823.0065669103,91183.532120000003,433209.28162042185,"Summer",188145.79154999999,40353.987494000001,93066.573925000004,1786.3769058,53853.092076000001,31402.873629000002,5566.2205906999998,19170.103298999999,0]
[3263,"2011-10-07","KW60MN23 ",5972096.6538425125,1994491.3175139159,1457886.4655400896,82704.254642999993,453900.59733082628,"Summer",121683.96709999999,54025.051119000003,95712.912091000006,1837.1723437999999,56041.871432,37411.682979999998,6184.1026660999996,19170.103298999999,3053.2304963000001]
[3266,"2011-08-28","KW60MN09 ",6367491.9755021865,1993127.0693192582,1417041.6966441786,107157.38981199999,468927.98286307947,"Summer",144398.01496,58381.976736999997,82186.675933000006,1577.5414701,55038.680892999997,26114.391984000002,6651.7346723000001,45745.076328000003,0]
[3270,"2011-09-18","KW60MN15 ",6119634.8766610054,1991457.3130666714,1450143.0947218523,89954.00757999999,451360.21076481912,"Summer",158684.79741999999,48496.977321999999,104486.72521,2005.5822945,54537.085623999999,29578.930014000001,6446.8980805000001,30217.333901999998,0]
[3271,"2012-05-28","KW60MN16 ",6120302.3711767048,1990908.779102548,1415537.5565665113,111981.97184133931,463389.25069469761,"Summer",139443.01199999999,49392.240809000003,70599.603988999996,1355.1321038999999,53533.895085999997,25361.761007000001,5453.8614660000003,21327.585041999999,0]
[3274,"2011-10-29","KW60MN15 ",6137016.5283517372,1990450.1028375048,1436992.3695966969,83995.116657999999,469462.61658280785,"Summer",150296.58777000001,58315.647948999998,103384.8864,1984.4329244999999,56269.869280999999,36320.327315000002,5656.6834829999998,19170.103298999999,0]
[3278,"2012-06-24","KW60MN13 ",7272290.3425924471,1989837.5252732225,1432941.9364758732,109115.13013159201,447780.45866575727,"Summer",129638.4725,52635.104708999999,83432.574588000003,1601.4560131000001,55585.875732,30343.163187999999,5748.4262236000004,37784.951480000003,0]
[3281,"2012-06-15","KW60MN07 ",6292339.5720343115,1988644.2416148891,1450953.5134472256,107817.79030778192,429872.93785988173,"Summer",117233.9862,38878.922353000002,76988.847278999994,1477.7711586999999,49429.933792999997,36477.799107999999,6671.1964851000002,34167.346952,0]
[3284,"2012-04-18","KW60MN06 ",6026903.9395986376,1987836.7368088528,1442748.9987236278,90401.275716131568,454686.4623690935,"Summer",178552.29086000001,49038.742758,82944.755183000001,1592.0925083,34929.270558999997,33129.543888,6437.8917442000002,7467.6597125999997,3051.972452]
[3288,"2012-06-04","KW60MN07 ",6394287.34832884,1987373.8023389587,1453501.9107942819,103874.39696159899,429997.4945830779,"Summer",112539.09344,42891.653303999999,79053.393807999993,1517.3993310999999,56087.471001999998,37876.684644000001,5918.2413723,31925.258618,0]
[3291,"2011-07-16","KW60MN01 ",6248739.0536138508,1986980.0282118649,1427450.0220246343,107510.350131,452019.65605623071,"Summer",126908.82034999999,49000.656730000002,76022.878110000005,1459.2297539000001,56224.269711000001,33888.533168000002,5825.5421323,50623.028710999999,3053.2304963000001]
[3293,"2011-10-11","KW60MN23 ",5972054.0568574797,1986865.177587644,1482539.8602473394,80993.282353000002,423332.03498730453,"Summer",138336.57386,50177.484955,107370.72812,2060.9396152999998,37938.842172999997,39219.243992999996,6232.5134160999996,19170.103298999999,3053.2304963000001]
[3296,"2011-09-26","KW60MN07 ",6334139.3633735608,1986205.8772776991,1458167.800282733,83692.577462000001,444345.49953296589,"Summer",148814.71634000001,53211.485481000003,100903.01227000001,1936.7943101000001,56634.665841000002,36546.863137,6756.4993569999997,30217.333901999998,2594.8218619999998]
[3299,"2012-06-03","KW60MN10 ",6241286.3486330714,1985770.4259974461,1428272.5029279669,117668.27264704595,439829.65042243322,"Summer",110888.20655,41959.473540999999,69653.662838000004,1336.9751292000001,55129.880033000001,27829.783754,5128.2722494,27916.414962999999,0]
[3303,"2011-09-09","KW60MN24 ",6193677.1025083102,1984532.1257089002,1420192.2546466023,95882.354991,468457.51607129787,"Summer",143535.77856000001,60376.230137999999,96282.397184000001,1848.10339,53533.895085999997,35715.100644999999,6568.3211005000003,49503.156846999998,3053.2304963000001]
[3306,"2011-07-07","KW60MN05 ",6389299.8805177212,1984188.2235912303,1428929.4085355271,103516.472288,451742.34276770346,"Summer",92207.806404999996,49144.288761999996,75034.302582000004,1440.2544289,55813.873582,33927.537799999998,6708.9215231999997,42797.682931000003,3053.2304963000001]
[3310,"2011-09-02","KW60MN23 ",6199302.3375820862,1982942.0011970347,1436649.6677695201,110692.19121,435600.14221751457,"Summer",127763.86031,61323.562044999999,82171.414871999994,1577.24854,56999.462399999997,33194.418716,6629.0021383000003,49029.104371000001,3053.2304963000001]
[3312,"2012-06-07","KW60MN23 ",6238006.504075354,1982279.7184957918,1446887.4952873515,106434.23559483222,428957.98761360825,"Summer",167312.70443000001,54002.930275999999,77853.004126,1494.3583152000001,56178.670141000002,40761.611345999998,5743.8824249999998,31743.479090000001,3053.2304963000001]
[3317,"2012-06-24","KW60MN12 ",7167378.5765079698,1980776.6482556791,1427181.8639826293,108998.5158001973,444596.26847285242,"Summer",128986.44822000001,52556.112715000003,81372.150141999999,1561.9069625,55494.676592999997,30466.217989000001,5524.6153793000003,38473.112090000002,0]
[3318,"2012-06-09","KW60MN08 ",6061714.5803034669,1980541.5024052393,1448437.0357607466,105431.30175526567,426673.16488922702,"Summer",142537.44588000001,41894.251839999997,63306.450275000003,1215.142838,55266.678742999997,30728.761974000001,5853.1502778000004,31389.033985999999,0]
[3321,"2011-09-23","KW60MN23 ",5987906.2815416465,1980454.7514533724,1434922.478683166,89958.917983000007,455573.35478720657,"Summer",149944.26996999999,59756.248792999999,100546.64635,1929.9540039999999,55996.271862000001,37121.222070999997,7142.6070904999997,30217.333901999998,3053.2304963000001]
[3324,"2012-04-17","KW60MN06 ",6004989.8423195118,1980194.3607997652,1425187.0107215554,94261.780881439772,460745.56919676997,"Summer",168824.62281999999,49075.980394999999,82334.983252000005,1580.3881718,34838.071419,32187.191948,6540.8907117999997,7467.6597125999997,3053.2304963000001]
[3328,"2012-06-30","KW60MN24 ",6420924.4957713448,1978709.7905496936,1421211.5275507458,109837.09988272785,447661.16311621992,"Summer",134134.27103999999,56407.144751,83444.228105999995,1601.6796979000001,56133.070571999997,30107.869413,5642.3816917000004,41055.509039999997,3053.2304963000001]
[3331,"2011-07-17","KW60MN09 ",6660783.5938651953,1978223.0766860633,1429399.9939781264,115034.39544599999,433788.68726193707,"Summer",123241.89389000001,43899.685369999999,73516.115420999995,1411.1134132,54263.488205000001,27667.784428999999,5862.0888973000001,42605.640867000002,0]
[3333,"2012-04-15","KW60MN22 ",5942995.9347184598,1978004.424902535,1460383.7695019057,96923.518494238466,420697.13690639101,"Summer",157562.44021999999,50534.400672999996,66909.255388000005,1284.2972892,35248.467548000001,25768.982197000001,5627.6989935000001,7467.6597125999997,3053.2304963000001]
[3339,"2011-07-22","KW60MN07 ",6661367.7565917429,1977201.5472813305,1443407.0815145248,107343.86574499999,426450.60002180561,"Summer",110538.60199,42793.770138,78407.994632999995,1505.0111434999999,54217.888635000003,36877.546452000002,5722.1791862999999,49397.247889999999,0]
[3342,"2011-07-12","KW60MN06 ",6466320.6983629884,1976914.8145440905,1444530.1975238272,107224.308047,425160.30897326313,"Summer",87158.666914000001,49335.986669999998,77756.573548,1492.5073676,42909.195294999998,35001.231473,6288.0344335,37309.569245999999,1017.3194389]
[3343,"2011-10-29","KW60MN16 ",6023739.0766960457,1976303.6762878068,1429001.2547759202,83603.597567999997,463698.82394388673,"Summer",175937.17749999999,55609.939571000003,101433.5199,1946.9771989999999,56087.471001999998,35317.507662999997,5466.0064768000002,19170.103298999999,0]
[3346,"2012-04-21","KW60MN21 ",6232450.8326887405,1975699.212627809,1454529.0600181937,94343.333675831949,426826.81893378339,"Summer",141889.93659999999,64114.612499000003,79443.855286999998,1524.8940881999999,34792.471849000001,26186.532709999999,6030.7376242999999,7467.6597125999997,3019.0088713999999]
[3350,"2012-04-08","KW60MN22 ",5853392.3233208554,1975111.5700296462,1453570.2690634378,94188.415400480997,427352.88556572737,"Summer",178001.31339,48844.811394999997,64922.598666999998,1246.1641815,48244.344975,21447.275168,5793.8828279999998,7467.6597125999997,3053.2304963000001]
[3354,"2011-09-04","KW60MN12 ",6386121.0420940574,1974205.331235993,1425822.6027611457,104343.66442,444039.06405484723,"Summer",163945.32547000001,53158.550994999998,78969.695785000004,1515.7927798999999,55084.280463000003,23902.818701,6110.1355893999998,36059.614149000001,0]
[3357,"2012-06-06","KW60MN23 ",6168875.4815514395,1973242.8992133797,1426563.9100755735,107683.91960112379,438995.06953668245,"Summer",150176.15617,55083.062762000001,75869.477836999999,1456.2852949999999,55449.077022999998,38316.265244000002,5868.3527020000001,30106.448844999999,3053.2304963000001]
[3361,"2012-04-08","KW60MN13 ",5765689.9336777171,1972125.7247573412,1439287.7293712373,99673.127721458877,433164.8676646449,"Summer",232995.44889999999,39044.085532999998,65239.757015000003,1252.2519133999999,52074.708849000002,20051.734788000002,5522.5026147999997,7467.6597125999997,0]
[3364,"2011-07-19","KW60MN01 ",6685406.6784906276,1971166.0269447807,1430291.8512241524,100129.39064,440744.78508062835,"Summer",103924.04251,45736.081721000002,67840.304879999996,1302.1684243,42407.600026,33390.909576999999,6810.6389497999999,51588.460729999999,3053.2304963000001]
[3367,"2012-06-10","KW60MN21 ",6354328.9065033309,1969896.4760464299,1428898.0790040139,108206.04327585852,432792.35376655759,"Summer",141695.15599999999,47328.557492,80205.015249999997,1539.5042595,53898.691644999999,28908.277289000001,5492.8020200999999,30159.719601000001,458.40863426999999]
[3368,"2012-04-28","KW60MN11 ",5986185.9984576916,1969344.802904574,1435309.3343651448,102297.98919183837,431737.47934759088,"Summer",143682.37804000001,53372.419557000001,70828.302408999996,1359.5218815999999,56269.869280999999,25168.821260000001,5246.6530918999997,7467.6597125999997,0]
[3371,"2011-08-25","KW60MN06 ",6445070.5556207811,1967938.5907761687,1427496.1130077031,103958.665372,436483.81239646551,"Summer",106864.5003,63730.636628,81427.695974000002,1562.9731432000001,53807.492506000002,35437.418690999999,8184.0375262999996,50286.073022999997,3053.2304963000001]
[3375,"2011-07-22","KW60MN01 ",6474052.9104211694,1965988.9157857359,1456086.6067090069,103526.692964,406375.61611272901,"Summer",99079.593278,45490.788932000003,75227.751310000007,1443.9676024,54035.490355000002,34726.736811000002,6205.8397630999998,52922.305751,3053.2304963000001]
[3379,"2011-08-06","KW60MN09 ",6082824.6686082687,1965150.622133448,1420092.8755882438,105373.243525,439684.50302020414,"Summer",157228.9031,59451.452912000001,91021.463017000002,1747.1217925999999,55768.274012000002,29041.180400000001,6573.4811220000001,30053.110103999999,0]
[3382,"2011-10-09","KW60MN15 ",5964302.5144341495,1964555.5292258235,1446876.21850719,89955.974306000004,427723.33641263348,"Summer",142368.5576,43095.99353,101374.87407000001,1945.8515149,51025.918740000001,31110.042254,5728.7815758999996,19170.103298999999,0]
[3386,"2011-07-03","KW60MN01 ",6423688.5655363156,1963937.7247452033,1408926.7389106036,109026.196241,445984.78959359968,"Summer",114721.54122,47259.847424,66777.615078999996,1281.7705043999999,54582.685193999998,27556.049047,5830.1739619,55885.207042000002,3053.2304963000001]
[3389,"2012-06-24","KW60MN23 ",6670335.4612933863,1963538.5247479377,1419571.8072386074,105333.48895010547,438633.22855922492,"Summer",112560.69334,52579.453120999999,66971.740602000005,1285.4966687000001,55813.873582,29894.722974,5380.8458104000001,43755.120538000003,3053.2304963000001]
[3392,"2011-09-24","KW60MN10 ",6078662.7282490376,1963021.0006185672,1420758.8390243915,96907.34197899999,445354.81961517566,"Summer",159704.66641000001,53135.271647000001,105579.62836,2026.5601478999999,55494.676592999997,32251.073872000001,6801.5174952999996,30217.333901999998,0]
[3393,"2011-10-22","KW60MN22 ",5921327.6884903181,1963003.8994396504,1441440.3096116486,87760.788466000013,433802.80136200186,"Summer",138481.26560000001,54699.207401,99151.231696000003,1903.1695592999999,55677.074871999997,35534.185497999999,5898.8184972999998,19170.103298999999,3053.2304963000001]
[3396,"2011-10-18","KW60MN23 ",5873034.6514429525,1962272.9137451639,1427604.5447720389,76529.584189000001,458138.78478412499,"Summer",151517.79787000001,56545.978872,105910.88250000001,2032.918443,55403.477453,40465.556922999996,6477.6753720999995,19170.103298999999,3053.2304963000001]
[3401,"2012-06-22","KW60MN01 ",6220299.3557044817,1961194.8845838141,1401360.7138610987,97555.858028177769,462278.31269453745,"Summer",107641.52416,56617.703301000001,79590.043346999999,1527.7001115,54810.683043999998,36590.863670999999,6642.1459715999999,41069.318361999998,3053.2304963000001]
[3404,"2011-09-18","KW60MN11 ",5928918.7899209717,1961053.6087895781,1423119.7485952482,96201.064673000001,441732.7955213298,"Summer",164158.08124999999,45684.485700999998,85470.646903000001,1640.5760233000001,54719.483904000001,28612.32071,5890.7331092000004,30217.333901999998,0]
[3407,"2012-05-13","KW60MN11 ",6064881.6281770375,1960566.5809268223,1412330.9193217403,117265.08293151714,430970.57867356489,"Summer",157509.97727999999,49085.245215000003,73716.982936999993,1414.9689876,55540.276163000002,24493.164105,5212.5187384999999,21356.368259999999,0]
[3411,"2012-05-10","KW60MN06 ",6019601.0883930074,1958608.0790294232,1422668.4482748897,96698.13857219553,439241.49218233785,"Summer",135380.16522,44411.602852000004,76540.916834000003,1469.1733068999999,54719.483904000001,31879.702358999999,6153.2339558000003,21356.368259999999,1678.8527133]
[3414,"2011-08-21","KW60MN09 ",6236593.1049162541,1957895.9760676294,1420494.570115695,117089.31024899999,420312.09570293431,"Summer",125760.54964,48773.501521999999,70501.600617000004,1353.2509669999999,54673.884334000002,28301.808965,6368.9492544000004,41522.023732000001,0]
[3415,"2012-06-09","KW60MN14 ",6463966.1027167058,1957557.9101231303,1402898.9875582573,109573.60396062357,445085.31860424945,"Summer",161406.47945000001,52358.673703,74841.388491999998,1436.5515175,54126.689494999999,32630.596421999999,5763.1749458000004,27803.737579000001,0]
[3421,"2012-04-07","KW60MN18 ",5852042.9825894786,1955713.9355680058,1436952.8164488587,99843.488519138715,418917.6306000083,"Summer",148241.36528,47281.770630999999,70445.811694999997,1352.1801203,55175.479603,24998.640374999999,5380.2668315000001,7467.6597125999997,0]
[3422,"2012-06-08","KW60MN23 ",6435771.4700210206,1955161.2373249477,1410705.558429904,109797.88367379185,434657.79522125184,"Summer",155797.3113,48940.851559000002,62333.168532999996,1196.4610712000001,55950.672292000003,37287.880516999998,6310.5435020000004,34311.536269999997,3053.2304963000001]
[3426,"2012-06-21","KW60MN07 ",6311744.017345258,1954436.0399655558,1413787.3867957231,103057.0715640017,437591.58160583087,"Summer",92667.583146999998,42618.278436000001,82959.600221999994,1592.3774530000001,54445.886484000002,36485.457070999997,6518.7930219999998,40909.273203999997,0]
[3429,"2011-08-07","KW60MN24 ",5842326.9825729094,1953378.2933335293,1409818.4264131794,103484.16045700001,440075.70646334998,"Summer",145441.2856,60418.238369999999,79696.216480000003,1529.7380638,55449.077022999998,28608.586890999999,6209.6386763999999,37921.048415999998,3053.2304963000001]
[3432,"2012-05-01","KW60MN23 ",5842007.657564451,1953036.8744946809,1428651.699114043,96039.201594960468,428345.9737856774,"Summer",154530.29417000001,56069.915570999998,79424.238352999993,1524.5175488,56041.871432,29564.772260000002,6172.0236794000002,21356.368259999999,3053.2304963000001]
[3436,"2011-10-15","KW60MN22 ",6033482.0471673952,1951442.1846458244,1424185.4271055043,84146.918538000013,443109.83900232008,"Summer",127778.86788999999,51554.355210000002,96370.489203999998,1849.7942822,55312.278313000003,31524.676656,5979.9364696000002,19170.103298999999,3053.2304963000001]
[3439,"2011-09-22","KW60MN23 ",5924942.1456916025,1950881.9132148251,1412666.5662106569,87697.082618999993,450518.26438516827,"Summer",143519.46736000001,55948.921772000002,95362.829198000007,1830.452638,56178.670141000002,39436.510098999999,6751.5221705000004,30217.333901999998,3053.2304963000001]
[3442,"2012-04-08","KW60MN20 ",6014142.8462997964,1949921.7238122898,1435807.0073376561,98937.385465975967,415177.33100865758,"Summer",156331.46883999999,42696.598786000002,69957.211003000004,1342.8016189,48289.944544999998,21067.450141000001,5708.1465693,7467.6597125999997,1018.167559]
[3444,"2012-06-10","KW60MN17 ",6213434.3586601857,1948620.6130360684,1405567.1216014326,105001.96978316749,438051.5216514683,"Summer",138289.68577000001,47901.142998000003,91526.772861000005,1756.8210197000001,54126.689494999999,29371.390284000001,5856.8882452999997,27710.800045,0]
[3447,"2012-04-16","KW60MN23 ",5778800.4072075458,1947873.081460655,1447368.2160204048,91140.380060298019,409364.4853799523,"Summer",155645.17937,51024.751659000001,79693.167805000005,1529.6795456,35020.469699000001,31604.980352999999,5817.3653267999998,7467.6597125999997,3053.2304963000001]
[3451,"2012-04-25","KW60MN07 ",6126800.5361468401,1946756.83486349,1441525.6768945644,90965.73387120913,414265.4240977164,"Summer",133783.95637,41573.293137000001,83522.553341000006,1603.1831205000001,40720.415938999999,34743.372506,7590.6570874999998,7467.6597125999997,10.672171419]
[3454,"2011-09-20","KW60MN23 ",5760307.5082380483,1946487.8811636791,1418733.0494262858,80012.886576000004,447741.94516139338,"Summer",123846.33057000001,53227.916638000002,93538.449733999994,1795.4343795,55357.877883000001,36690.688498000003,6905.5711529999999,30217.333901999998,3053.2304963000001]
[3457,"2011-07-23","KW60MN01 ",6405413.3799489327,1946009.4009482746,1421774.2211074913,106101.28595,418133.89389078342,"Summer",101786.76586,44975.164557999997,69382.955967999995,1331.7790155,55357.877883000001,33377.902566999997,5330.0378847000002,52673.976718999998,3053.2304963000001]
[3459,"2011-10-27","KW60MN24 ",5929803.1888438836,1945763.4411653327,1398063.7916246122,75107.355949000004,472592.29359172046,"Summer",202643.67642,52662.404275000001,108139.87251,2075.7030445,57090.661540000001,38679.422024,6599.9719400000004,19170.103298999999,3053.2304963000001]
[3465,"2012-04-19","KW60MN23 ",5775940.1066151196,1944126.566068776,1435922.2318097714,90430.615615387083,417773.71864361764,"Summer",151776.14871000001,54477.296795000002,80692.606492000006,1548.8633847999999,35248.467548000001,32683.958444,6026.0262266,7467.6597125999997,3053.2304963000001]
[3466,"2012-04-05","KW60MN05 ",5642995.7736628084,1944028.248203397,1413392.5118073935,96064.041466790892,434571.69492921251,"Summer",161929.80523999999,48399.074874999998,73154.821670000005,1404.1785193999999,49977.128632,30617.297502000001,6604.1686889000002,7467.6597125999997,3053.2304963000001]
[3469,"2012-04-01","KW60MN07 ",5458041.4948373809,1943118.0188145377,1394474.1474613678,90536.91434742893,458106.95700574107,"Summer",182440.0704,49699.665417999997,69598.968338999999,1335.9252894000001,51801.111428999997,24809.460770999998,6163.5692347000004,7467.6597125999997,2035.0629374]
[3472,"2012-04-30","KW60MN07 ",5936300.5910403123,1942664.2965244255,1435934.5704483544,95771.265112248424,410958.46096382267,"Summer",129689.71661,40859.368504999999,80319.709860999996,1541.7057781999999,54765.083473999999,32524.755383,6265.6557190000003,7467.6597125999997,0]
[3476,"2011-07-10","KW60MN01 ",6176913.3090750482,1940924.6149086442,1413028.4428537404,110847.08368700001,417049.08836790378,"Summer",103557.61801000001,46798.054130999997,75496.671805999998,1449.1294273000001,54856.282614000003,28049.190562,5483.8634006000002,43210.618659,3053.2304963000001]
[3479,"2011-07-02","KW60MN01 ",6150807.4157771738,1940090.2843166785,1417942.8862907148,107375.281191,414772.11683496379,"Summer",94948.375090999994,44221.696528,72663.223171000005,1394.7424762000001,56361.068421000004,29930.850148000001,5333.5930172999997,52581.247600000002,3053.2304963000001]
[3484,"2011-10-24","KW60MN24 ",5709134.7179329032,1939129.6698861555,1417696.9454704423,75401.454645999998,446031.26976971317,"Summer",144733.87317000001,42187.737441999998,100558.13314000001,1930.1744885000001,56406.667991000002,41532.426376000003,6345.5260085999998,19170.103298999999,3053.2304963000001]
[3487,"2011-07-06","KW60MN03 ",6224124.7451649569,1938184.4833442033,1401402.1894952063,104470.38260300001,432311.91124599706,"Summer",94876.421371000004,45036.547608000001,73090.441225000002,1402.9427616,55312.278313000003,32625.118195999999,6139.8768147000001,44054.340465000001,3053.2304963000001]
[3490,"2011-10-29","KW60MN07 ",6044079.0352613209,1937373.7380257861,1336959.6085860648,93010.208599000005,507403.92084072134,"Summer",180318.28886,48847.64258,97339.941212000005,1868.4025386999999,56543.466700999998,35983.429908999999,5983.8166428000004,19170.103298999999,3053.2304963000001]
[3491,"2012-06-06","KW60MN06 ",5949762.1651568562,1937104.2926073861,1436949.6544586031,97115.548434615761,403039.08971416723,"Summer",117625.81548,44542.157122999997,69168.432912000004,1327.6613284,47879.548415999998,37901.257656000002,6006.3426411,28989.306291000001,508.44768959999999]
[3494,"2011-07-30","KW60MN07 ",6285484.8930324558,1936391.1841860916,1411081.3925459725,104024.627993,421285.16364711907,"Summer",103832.74639,48076.033755999997,71138.32789,1365.4727009000001,55403.477453,29397.264132,5749.4826063999999,40459.221537999998,0]
[3497,"2012-05-02","KW60MN23 ",5875669.5103166839,1935743.8385742358,1402335.6593598924,102795.36060317821,430612.81861116533,"Summer",157744.69330000001,52837.916866,86385.597897,1658.1381538999999,55722.674442000003,31827.725890000002,6041.0170367999999,21356.368259999999,3053.2304963000001]
[3501,"2011-07-27","KW60MN02 ",6239525.0245637568,1935121.3528520642,1421173.1353998221,96970.170872000002,416978.04658024211,"Summer",90642.661978999997,48011.981807999997,66444.369141000003,1275.3739774000001,56680.265411,33398.519812999999,6548.4529873000001,42977.112115999997,3053.2304963000001]
[3505,"2012-06-10","KW60MN12 ",6036787.1170109222,1934120.9116754197,1404335.0876806222,107815.03717213585,421970.78682266141,"Summer",136297.04785999999,52041.773781999997,76827.415613000005,1474.6725402,54628.284764000004,28563.641631999999,5444.9397750999997,28641.804884000001,0]
[3509,"2012-05-14","KW60MN07 ",6154678.153102519,1933232.6643067487,1403370.2728538988,109091.93408278635,420770.45737006346,"Summer",130728.05891000001,42252.033624999996,81848.811740000005,1571.0562976000001,56680.265411,33184.544919,5951.5377300999999,21356.368259999999,0]
[3512,"2012-05-26","KW60MN21 ",6194837.803743558,1932797.4066392889,1407794.470634633,110604.49681391292,414398.43919074297,"Summer",132981.28396,55701.244488999997,69280.277386000002,1329.8081397999999,49657.931643000004,28328.878135999999,5109.2404379,19846.758765999999,1069.0547337999999]
[3515,"2012-04-21","KW60MN09 ",5878400.7109380048,1932306.9163455325,1424302.3286641126,89404.415229004255,418600.17245241551,"Summer",172882.48827,43906.965790000002,68572.691548000003,1316.2263032000001,35248.467548000001,27507.445755000001,5436.0214708000003,7467.6597125999997,0]
[3516,"2012-06-05","KW60MN23 ",6072491.2456152588,1931635.5760215835,1396138.9376925759,105576.99265904211,429919.64566996554,"Summer",157020.81069000001,52418.374431999997,73369.704366000005,1408.3031096,55585.875732,40481.136018999998,5879.7121980000002,29928.916434999999,3053.2304963000001]
[3519,"2012-05-27","KW60MN12 ",5903249.1331294486,1930948.0910210442,1388059.1029981438,106101.64274515696,436787.34527774341,"Summer",123692.10012,49386.758399999999,73543.080524000005,1411.6309980000001,55403.477453,26992.858357000001,4963.5223181000001,20610.161370000002,0]
[3523,"2012-05-26","KW60MN22 ",6031325.3459689952,1929161.1434557308,1406656.5227157613,104131.31666442526,418373.30407554435,"Summer",139608.0742,59049.358740999996,72433.700517999998,1390.3368777000001,51983.509708999998,28690.455599000001,5243.2638645999996,19088.670664000001,3053.2304963000001]
[3526,"2011-07-08","KW60MN02 ",6167369.277098204,1927678.4778942247,1401482.3397612961,109777.226696,416418.91143692855,"Summer",92417.001059999995,44789.937241,78366.559057999999,1504.2158036000001,55677.074871999997,32961.545589000001,5843.5006313000004,44039.689139000002,3053.2304963000001]
[3530,"2012-04-14","KW60MN13 ",5901884.0563606732,1926662.3475949396,1422129.3805541119,104306.36682632721,400226.60021450039,"Summer",161829.69111000001,50601.287020999996,78819.934288000004,1512.9181659000001,35202.867978000002,26491.696841000001,5624.9801637999999,7467.6597125999997,0]
[3534,"2011-07-30","KW60MN04 ",6157993.9420026066,1925826.8085042411,1413674.784643478,95105.499828999993,417046.52403176291,"Summer",102076.89122,49512.407103999998,69917.195617000005,1342.033539,55221.079172999998,29324.178634,5741.7425741999996,43155.369441000003,3053.2304963000001]
[3537,"2011-07-11","KW60MN06 ",6264635.3160823453,1925358.0533616925,1411331.8450425279,100735.46569900001,413290.74262016459,"Summer",83505.794169999994,44789.623914999996,70741.018891,1357.8465083000001,53670.693796,31288.940688999999,5574.5903889000001,29564.856272000001,966.43226404999996]
[3540,"2011-07-14","KW60MN01 ",6274981.9661236731,1924279.2478677679,1392006.4883383927,112104.21032400001,420168.5492053752,"Summer",106934.16473,43588.200371999999,73545.63854,1411.6800980999999,53853.092076000001,33499.997745000001,6179.4098909000004,41097.969664999997,3053.2304963000001]
[3541,"2011-07-30","KW60MN06 ",6220407.156356249,1923884.6936184193,1413488.7993620648,97752.864106000008,412643.03015035455,"Summer",95510.120714000004,53578.053259,70685.714198000001,1356.784956,55403.477453,29844.303026000001,5509.6635069000004,41270.430129,1933.2885876]
[3547,"2011-07-14","KW60MN06 ",6351231.1097385753,1921861.2228165898,1399235.2428968297,107625.45430299999,415000.52561676002,"Summer",84557.776836999998,46079.908430000003,70024.037278000003,1344.0843233999999,54810.683043999998,34575.554601000003,6008.3572170999996,40155.403144999997,1119.0937887]
[3549,"2011-07-31","KW60MN08 ",6392733.2147275563,1920645.8596736118,1389750.2418035225,103505.205621,427390.41224908945,"Summer",112572.35176999999,48650.830221999997,71347.387558999995,1369.4855204,55494.676592999997,26430.671154,6273.4685461999998,35547.810101000003,0]
[3552,"2012-06-30","KW60MN02 ",6077499.5965195317,1920470.9455497605,1378954.985183368,102837.20399423745,438678.75637215527,"Summer",108070.69222,52873.330782999998,86301.059909000003,1656.5154798999999,56361.068421000004,34378.006683,6213.8235760999996,40553.515754,3053.2304963000001]
[3555,"2011-07-24","KW60MN02 ",6175285.4421505854,1919719.6344729036,1401686.7786384681,100729.857227,417302.99860743555,"Summer",96950.837880000006,47776.790982999999,65990.137411999996,1266.6551750000001,55038.680892999997,28574.036508000001,5302.5516295999996,49598.710733,3053.2304963000001]
[3559,"2012-05-27","KW60MN22 ",5943641.3229426481,1917873.8085494274,1377303.1517810076,103535.04852874378,437035.6082396761,"Summer",132345.62388,52440.196409999997,69868.678734000001,1341.1022762,55722.674442000003,27120.383099999999,5069.7056689999999,21555.124207000001,3053.2304963000001]
[3562,"2011-07-16","KW60MN02 ",6039131.3996823765,1917749.8880503222,1384816.7889978306,98822.563653999998,434110.5353984916,"Summer",96023.070502000002,46587.285089999998,65922.761687000006,1265.361924,56041.871432,33478.91992,5741.1534376,48993.331508000003,3053.2304963000001]
[3565,"2012-04-30","KW60MN23 ",5814173.713889475,1916728.6788484163,1404231.7309670253,94375.392838309621,418121.55504308146,"Summer",138241.58944000001,46595.609930999999,77725.103640000001,1491.9033148999999,55357.877883000001,30413.415445999999,6123.6620224999997,7467.6597125999997,3053.2304963000001]
[3568,"2012-06-10","KW60MN09 ",5881528.685696532,1916027.1878287024,1401564.4538093484,105905.62983641695,408557.10418293683,"Summer",122676.70372999999,40310.507430999998,68740.123995000002,1319.4401043,54491.486054000001,28156.062382,5340.4595017000001,27768.720064000001,0]
[3570,"2011-07-27","KW60MN05 ",6254743.3453298304,1915136.782818778,1403104.4426018449,99209.824056999991,412822.516159933,"Summer",92375.528839999999,48645.143749000003,62957.633011999998,1208.4474255,56862.663690000001,33781.854716000002,6593.7149062999997,42136.618437999998,3053.2304963000001]
[3574,"2012-06-29","KW60MN01 ",6341756.0894192094,1914352.8587041644,1387826.5630532359,107360.10708573755,419166.18856519094,"Summer",90498.881722999999,49106.549803000002,77859.631290999998,1494.4855210999999,55950.672292000003,41029.183290000001,6287.6890776,41698.542248999998,3053.2304963000001]
[3577,"2012-06-24","KW60MN10 ",6745444.6771838777,1914020.7289023406,1393452.1213547282,107943.47307572544,412625.13447188708,"Summer",131989.73436,43663.366569999998,73466.453475000002,1410.1601714000001,55403.477453,29559.296724,5329.1643369000003,39733.510339,0]
[3580,"2012-05-05","KW60MN21 ",6073355.0032086736,1912771.4392649892,1386047.7782357933,106594.89466888901,420128.76636030682,"Summer",116462.53719,55150.738049,65755.568081999998,1262.1527074000001,55722.674442000003,24918.444102000001,5882.6731158000002,21356.368259999999,2290.3469318000002]
[3584,"2011-07-31","KW60MN03 ",6174203.1801159428,1911199.5204721892,1386590.5678727885,95819.542436999996,428789.41016240063,"Summer",102972.70389999999,54580.257453999999,68231.212350000002,1309.671742,55221.079172999998,27275.170867000001,6197.8356359999998,40239.388187999997,3053.2304963000001]
[3587,"2012-05-02","KW60MN06 ",5861485.8157754764,1910805.1049422342,1381662.7324023275,91663.919564951138,437478.45297495555,"Summer",132637.39202999999,45809.605768000001,74101.342587000006,1422.3466223999999,55677.074871999997,30706.849622000002,6457.2215089000001,21356.368259999999,2238.6116379]
[3589,"2012-04-28","KW60MN12 ",5939467.2141851764,1910118.9090414769,1380995.1557148646,100662.48081480751,428461.27251180483,"Summer",152340.08824000001,53227.289985000003,71400.988438999993,1370.5143685999999,56087.471001999998,25367.571253999999,5255.2937571000002,7467.6597125999997,0]
[3592,"2011-07-15","KW60MN02 ",6168777.0348542556,1909860.9155050809,1394106.3336406273,107131.206355,408623.37550945359,"Summer",84494.556341999996,43411.881165999999,62407.205069000003,1197.8821739,55038.680892999997,33809.272335000001,5931.0381581000001,46257.040352999997,3053.2304963000001]
[3595,"2012-06-09","KW60MN18 ",6315703.4066271726,1909543.6166593614,1370493.788763551,107136.53623027698,431913.29166553321,"Summer",122832.65115000001,44339.330503999998,69399.639169000002,1332.0992431,53989.890785000003,31031.287826,5753.5659298,28320.728650000001,0]
[3599,"2011-08-31","KW60MN24 ",6095727.9615088413,1908876.3011875618,1398487.1273620916,103053.235485,407335.93834047014,"Summer",106672.00900000001,49690.296155999997,77596.329889000001,1489.4315525,56634.665841000002,32686.976891999999,6705.5898550000002,41558.242612000002,3053.2304963000001]
[3602,"2011-07-05","KW60MN07 ",6542580.4943990763,1908363.8472214679,1371477.6340060909,107815.552432,429070.66078337707,"Summer",100264.19590000001,40881.815529,76267.463860000003,1463.9244828000001,53853.092076000001,31409.823552999998,6016.0363035999999,46958.137708000002,0]
[3605,"2011-07-21","KW60MN02 ",6213816.7368678097,1907854.6448116952,1401427.2892283034,96480.584549000007,409946.77103439189,"Summer",92296.898019,47427.681107999997,69841.260521000004,1340.5759942,53579.494656000003,33586.051492999999,6419.8384410999997,49142.657613000003,3053.2304963000001]
[3609,"2012-04-29","KW60MN22 ",5927405.8287340505,1907171.4071335418,1379593.5985199672,94375.163002317015,433202.64561125753,"Summer",152850.81232,49143.406627999997,70819.089093999995,1359.3450356000001,53442.695946,27250.153030000001,5685.1296240000001,7467.6597125999997,3053.2304963000001]
[3610,"2012-06-30","KW60MN08 ",6299559.0380978212,1907101.5371971976,1359352.2549126623,105229.62067871113,442519.66160582408,"Summer",105428.5101,50793.301468999998,90963.312434000007,1746.0056145999999,55266.678742999997,31843.619288000002,5863.6125252000002,38652.346912000001,0]
[3614,"2011-07-13","KW60MN02 ",6151015.0153739238,1906176.338754938,1381039.460862644,106562.008804,418574.86908829404,"Summer",87982.335097999996,43524.103432000004,72565.700926000005,1392.8705745,52530.704548000002,35172.633451000002,6379.5943379999999,38689.312069,3053.2304963000001]
[3617,"2011-07-27","KW60MN03 ",6124168.3324044105,1905204.7456130343,1397905.0241046064,98589.605316999994,408710.11619142781,"Summer",82862.651498000007,46413.146313999998,64291.947042,1234.0590674,56497.867130999999,33283.432196000002,6554.5881306000001,43266.017245000003,3053.2304963000001]
[3620,"2011-08-09","KW60MN01 ",5834927.5916406875,1904632.4331031656,1370448.7108138776,104093.78636899999,430089.93592028797,"Summer",124684.5294,53184.370696999998,78181.638353000002,1500.6663222,56999.462399999997,31961.134158000001,7057.9746161000003,46827.360822000002,3053.2304963000001]
[3624,"2012-06-03","KW60MN09 ",5997274.1118065575,1904411.3015561556,1375741.4923571134,111561.20029400912,417108.60890503292,"Summer",105486.13455,41672.482631999999,65408.254258000001,1255.4861527999999,54993.081323999999,27437.749572000001,5216.4107621000003,28678.835037000001,0]
[3627,"2012-05-25","KW60MN23 ",6122520.8875852758,1903567.1006343127,1377814.1696228662,108852.04025228856,416900.89075915789,"Summer",129053.31462999999,59997.405674000001,75867.306330000007,1456.2436138,55722.674442000003,32016.818411,5512.4280454,26957.555468999999,3053.2304963000001]
[3631,"2012-04-10","KW60MN06 ",5869950.9955173824,1901832.1868949463,1402670.3054636563,91336.042123970154,407825.83930731972,"Summer",113854.87462,47495.362823000003,81614.783018000002,1566.5642067000001,54309.087775,32768.790065000001,6679.7186465000004,7467.6597125999997,3053.2304963000001]
[3635,"2012-06-02","KW60MN24 ",5922701.9156842455,1901702.9868415906,1376821.8017698501,103996.70381709476,420884.48125464586,"Summer",120248.15707,53060.862252999999,60319.002541000002,1157.7999337000001,54993.081323999999,27880.071586999999,5904.7030888999998,33879.680980999998,3053.2304963000001]
[3638,"2011-08-05","KW60MN06 ",5797857.1428092662,1900554.9961117574,1387639.9378548402,94522.388282999993,418392.66997391707,"Summer",98288.833666999999,56165.783805999999,75066.003639000002,1440.8629183999999,55175.479603,33310.905462000002,6577.2190896000002,33669.660084000003,2289.4988127000001]
[3639,"2012-04-21","KW60MN22 ",5961435.0802683663,1900224.7242266561,1390176.8934861152,87495.484181929176,422552.34655861184,"Summer",155995.22907999999,61957.402056999999,75352.055737000002,1446.3535778,34245.277009999998,26141.471322000001,5737.0108612000004,7467.6597125999997,3053.2304963000001]
[3642,"2012-05-27","KW60MN19 ",5830912.1281941198,1899221.9489169256,1360484.1358210756,100295.55043277316,438442.26266307692,"Summer",137920.26186999999,53516.464538,74120.757308999993,1422.7192805,55859.473151999999,27965.201926000002,4931.0825772999997,19621.181494,0]
[3645,"2011-08-07","KW60MN09 ",5862837.0149222743,1898061.7953300409,1366722.881361424,109839.331426,421499.58254261682,"Summer",134285.4809,53779.806534000003,83336.286395999996,1599.6077984999999,55905.072721999997,24975.603144000001,6177.3987015000002,30168.252906999998,0]
[3649,"2011-07-04","KW60MN01 ",6433518.3120128103,1896882.8354408434,1378374.7101305746,103807.45171200001,414700.67359826871,"Summer",105263.60688000001,43683.091672000002,66117.208498000007,1269.0942554000001,53898.691644999999,23646.816757000001,5422.0447201999996,56278.092042999997,3053.2304963000001]
[3652,"2012-04-21","KW60MN18 ",6061024.2462863745,1896452.4891192664,1384592.691410617,86197.686866380245,425662.11084226921,"Summer",130301.04236000001,60024.404769000001,77457.324416999996,1486.7633962,34929.270558999997,27463.268336000001,5942.1708019999996,7467.6597125999997,0]
[3657,"2011-08-12","KW60MN01 ",5746771.1388762416,1896163.3658323332,1385587.0071860431,105459.12319699999,405117.23544929019,"Summer",107488.74572000001,55475.802131999997,65754.117922999998,1262.1248722,56361.068421000004,32489.365634999998,6400.4578883000004,53062.777977999998,3053.2304963000001]
[3660,"2012-05-26","KW60MN16 ",6020986.2640675781,1894853.7593642757,1358922.5946538651,107765.79312437683,428165.37158603373,"Summer",106348.37093999999,54191.186414000003,78134.428323999993,1499.7601439,54993.081323999999,30895.797651000001,4842.1060690000004,20683.636837999999,0]
[3663,"2012-05-30","KW60MN24 ",6003059.5084257266,1893836.7176532154,1376296.3044508579,106378.69465582467,411161.71854653279,"Summer",140673.98339000001,54585.315667000003,66929.343001000001,1284.6828631999999,56680.265411,36415.841157000003,5781.8343140999996,30091.941341999998,3053.2304963000001]
[3664,"2012-06-26","KW60MN06 ",6243922.1496363105,1893454.804888055,1382853.3038635452,100405.07549171105,410196.42553279869,"Summer",77295.898845999996,51163.953737999997,75024.339556999999,1440.0631923999999,55813.873582,37542.338419,6584.1465196999998,42955.132203000001,559.33486457000004]
[3667,"2012-04-11","KW60MN24 ",5511039.7784662461,1891906.0502759465,1379606.8987022953,95289.580762593498,417009.5708110577,"Summer",141017.84353000001,52459.323780999999,77129.381682000007,1480.4686621999999,55677.074871999997,31647.138322999999,5540.6591858000002,7467.6597125999997,3053.2304963000001]
[3670,"2012-04-08","KW60MN14 ",5683864.9481446827,1890639.5704201018,1378718.2509615622,93982.202634604924,417939.11682393483,"Summer",181205.31531999999,39483.031708000002,65970.724757000004,1266.2825565999999,49521.132933000001,20686.811202000001,5492.9306815,7467.6597125999997,0]
[3673,"2011-08-30","KW60MN06 ",6145414.6870832164,1890372.9289082268,1362315.0550892546,104613.63589799999,423444.23792097211,"Summer",108003.73043,56144.236591000001,80852.904808000007,1551.940249,56589.066271000003,34744.730694999998,7462.8128201,42642.178874999998,3053.2304963000001]
[3678,"2012-04-21","KW60MN13 ",5927693.4740154166,1889190.961338097,1384367.328036906,87126.429004057485,417697.20429713355,"Summer",144526.19411000001,50754.869978000002,78361.824368000001,1504.1249230999999,35795.662386999997,27822.528608000001,5994.3872375000001,7467.6597125999997,0]
[3682,"2012-06-27","KW60MN06 ",6071741.3890017858,1888113.9436486373,1381681.1138702368,103967.0255239253,402465.80425447522,"Summer",79376.335345,46628.317992999997,71722.700968000005,1376.6895162000001,56133.070571999997,37952.972392999996,6220.0806097000004,41609.827821999999,559.33486457000004]
[3685,"2012-04-07","KW60MN05 ",5583488.1343964906,1887497.7934194412,1329377.8388569318,88575.068301993262,469544.88626051618,"Summer",198150.65470000001,47407.592869,62415.858714000002,1198.0482773000001,56543.466700999998,24708.608763,5951.8729283000002,7467.6597125999997,3053.2304963000001]
[3688,"2012-06-14","KW60MN01 ",5876954.5005726982,1886867.3216698139,1385125.4263286539,100271.16945926727,401470.72588189272,"Summer",98500.783951000005,49862.545332000002,60347.275302000002,1158.3426184,53533.895085999997,34357.050297000002,6110.6028356999996,36066.364541000003,3053.2304963000001]
[3689,"2012-05-27","KW60MN20 ",5877048.318960974,1886842.1238064729,1349690.7746912572,102442.55083025928,434708.79828495649,"Summer",129894.70363,52367.874251000001,69409.149084000004,1332.2817822,56041.871432,27268.102372000001,4765.2153184999997,19501.002702999998,0]
[3692,"2012-06-15","KW60MN01 ",5885488.7166000623,1886221.4892547221,1378289.0872185607,99704.577262944498,408227.82477321691,"Summer",97733.743948000003,45427.840856000003,66580.769746999998,1277.9921343000001,49110.736804,34547.521066000001,6288.2985282999998,37293.979017999998,3053.2304963000001]
[3698,"2011-08-12","KW60MN06 ",5786134.0861676615,1884311.0368156384,1378627.5688641856,98110.561671999982,407572.90627945279,"Summer",89844.674140000003,51659.729287000002,70216.054334,1347.7700165000001,56178.670141000002,33273.746620999998,6655.1069699,50678.454668999999,2743.6244430000002]
[3700,"2012-06-02","KW60MN02 ",5675795.6433360949,1883967.8711775073,1350913.5960279095,98059.890381383753,434994.38476821413,"Summer",84505.345690999995,49151.106422999997,63728.816744000003,1223.2499989999999,56315.468850999998,34894.067202999999,5979.1729629000001,29272.735013000001,3053.2304963000001]
[3703,"2012-06-09","KW60MN23 ",5920393.1340692053,1883535.6300845132,1368613.9933665302,101432.04872874623,413489.58798923687,"Summer",124091.45439,45774.259337000003,62344.841113000002,1196.6851219,54309.087775,29594.607234999999,5569.9788735000002,30383.740074000001,3053.2304963000001]
[3707,"2012-04-05","KW60MN01 ",5445775.1284555737,1883200.4115679257,1381341.3540155799,93073.228694695179,408785.82885765051,"Summer",169331.83877,51455.389060000001,75868.156858999995,1456.2599393,46830.758307999997,31162.403408999999,6158.3550396000001,7467.6597125999997,3053.2304963000001]
[3710,"2011-08-13","KW60MN01 ",5661204.9264315441,1882406.4604289194,1366721.978187406,105224.331444,410460.15079751355,"Summer",122411.70759000001,58323.413624000001,71474.686461999998,1371.9289736000001,56634.665841000002,30939.435734999999,6213.1734948000003,51765.739638999999,3053.2304963000001]
[3713,"2012-04-09","KW60MN06 ",5831336.9827726074,1882136.0140584821,1376837.7725644102,88245.035490570343,417053.20600350155,"Summer",157619.04720999999,48250.800791000001,74732.096179,1434.4536938000001,45553.970350000003,27033.568995000001,6371.31765,7467.6597125999997,3053.2304963000001]
[3714,"2012-04-15","KW60MN13 ",5817230.4401554633,1882127.4137244551,1389194.2949203476,93464.611147714284,399468.50765639311,"Summer",153086.38683,41682.679398,72159.225462000002,1385.0684351,35157.268408000004,25145.490761000001,5358.5906790999998,7467.6597125999997,0]
[3719,"2011-09-04","KW60MN10 ",6088137.7824714202,1879645.4713365566,1352985.2284191914,111668.38917900001,414991.85373836517,"Summer",144884.31993,47466.903145999997,69795.334264999998,1339.6944575,55038.680892999997,23064.460042999999,5563.5999493999998,35140.974069000004,0]
[3722,"2011-08-04","KW60MN02 ",5504940.4157325663,1878617.1419084372,1368673.0660664402,97393.204240999999,412550.87160099699,"Summer",124392.58108,55749.429267,87883.899426999997,1686.8974725,54035.490355000002,32530.704962,6997.1920032999997,34846.851954999998,3053.2304963000001]
[3725,"2012-05-12","KW60MN23 ",5835394.6824471112,1878340.6904257159,1364897.9457845036,110249.05056715883,403193.69407405355,"Summer",116875.63781,56006.715227000001,62277.517175000001,1195.3928648999999,53853.092076000001,26454.977916,5221.3456253000004,21356.368259999999,3053.2304963000001]
[3728,"2012-06-01","KW60MN06 ",5854736.893773363,1878086.9888338433,1363721.3443319153,96843.127678219535,417522.5168237086,"Summer",83597.196272999994,45250.08999,67381.948655,1293.3704537000001,56361.068421000004,37686.440093999998,6123.7178888999997,30565.164595999999,610.22203944]
[3732,"2012-05-25","KW60MN06 ",6049116.4315840332,1876779.2859911043,1394918.6304611361,101536.81333766191,380323.84219230607,"Summer",90993.061436999997,47422.439720000002,72222.044479999997,1386.2742218000001,52576.304118,38580.745007999998,5937.6828697999999,29397.945786,864.65791420000005]
[3735,"2012-06-19","KW60MN06 ",6042374.4378612693,1875823.0402796455,1371414.0747429735,100303.2371640481,404105.72837262391,"Summer",88172.855066000004,40819.272367999998,68281.346466999996,1310.634047,55175.479603,33626.894182000004,6044.8430362999998,38560.939883999999,457.56051463]
[3736,"2011-08-18","KW60MN06 ",5913528.9791887123,1875777.853951565,1367870.1011291109,104589.17052699999,403318.58229545417,"Summer",93356.681236000004,56771.409981999997,69328.030895000004,1330.7247499,54263.488205000001,32283.135044999999,7049.7063930000004,47483.396872999998,2980.9000314]
[3740,"2011-07-09","KW60MN04 ",5981212.3295656638,1875097.8538718554,1369931.5809203254,106778.13683600001,398388.13611552992,"Summer",81434.451247999998,43410.418976000001,61847.919546999998,1187.1469044999999,56178.670141000002,30194.837447999998,5319.4943762000003,38935.283022000003,3053.2304963000001]
[3743,"2011-07-17","KW60MN01 ",6222259.0644803634,1874968.9543959489,1353361.9614456305,105089.68745900001,416517.3054913184,"Summer",114423.6047,48078.416643999997,61726.374199999998,1184.8138885999999,55859.473151999999,27603.397763000001,5658.9587683999998,50600.908125000002,3053.2304963000001]
[3747,"2011-07-31","KW60MN04 ",6092437.966495635,1874416.3493278418,1359730.2292222558,95699.693228000004,418986.426877586,"Summer",95150.458102000004,50054.276983000003,66256.066646000007,1271.7595838,54993.081323999999,26737.808797000002,6076.1078895000001,38665.047645999999,3053.2304963000001]
[3750,"2012-06-13","KW60MN06 ",5810431.293760852,1873760.727568143,1363007.2511527224,99768.838916138877,410984.63749928161,"Summer",86721.910275000002,44459.933850000001,70078.418527000002,1345.1281504000001,56497.867130999999,35246.127303000001,6588.5752001000001,32252.912347000001,457.56051463]
[3753,"2011-08-21","KW60MN01 ",5727602.6792053906,1873233.2324253875,1370782.8480265744,106337.98394099998,396112.40045781329,"Summer",121561.88211999999,53304.127258,65534.186482999998,1257.9033732,55403.477453,28669.010687000002,5836.1262702000004,48943.400544999997,3053.2304963000001]
[3757,"2011-07-26","KW60MN05 ",6358866.6441731695,1871647.1953304415,1376912.9912332846,91428.311523000011,403305.89257415681,"Summer",80507.648339000007,45133.601664000002,60141.480529,1154.3924672999999,55677.074871999997,32895.920281999999,6575.5329407999998,42341.412619000002,3053.2304963000001]
[3761,"2011-07-09","KW60MN05 ",5965567.1540816342,1870128.8461920728,1362652.0883900428,102850.45538300001,404626.30241903011,"Summer",72016.462939000005,43943.237738999997,59783.345917999999,1147.5182119000001,56178.670141000002,31303.880438,5285.2025813999999,38983.590061000003,3053.2304963000001]
[3762,"2012-06-12","KW60MN06 ",5882636.0106076188,1870022.6789776399,1361207.0993352134,97395.732306507096,411419.84733591927,"Summer",74541.922965000005,46102.855170000003,74433.602039999998,1428.7242142,56041.871432,35396.154523999998,6446.8980805000001,31672.793851999999,457.56051463]
[3765,"2011-09-13","KW60MN24 ",5717405.2756409878,1869835.197812886,1356328.8395749377,86885.484938999987,426620.87329894822,"Summer",118390.95834,56666.942142,87293.198768999995,1675.5592016999999,46420.362179000003,36756.435039000004,7200.2205571000004,34986.378236999997,3053.2304963000001]
[3768,"2011-10-31","KW60MN06 ",6069281.3559203567,1869551.5411619865,1311990.9247802896,78794.698418999993,478765.91796269687,"Summer",219047.59823999999,55954.164767000002,109666.33852,2105.0029694,56953.862829999998,38965.410296000002,7629.9040607999996,19170.103298999999,2035.0629374]
[3772,"2012-04-15","KW60MN18 ",5818594.7508703582,1869153.813127398,1383047.816439115,94390.334623828996,391715.66206445399,"Summer",123942.87298,44472.269268999997,73455.461020000002,1409.9491754999999,35339.666687999998,25543.841633,5455.8540328999998,7467.6597125999997,0]
[3775,"2012-04-29","KW60MN19 ",5846558.186415541,1868413.1801319809,1352322.7629106303,94717.323440159031,421373.09378119156,"Summer",128969.5223,50605.268676,72016.498882999993,1382.3288536,50934.719600999997,26832.016771999999,5415.7233551999998,7467.6597125999997,0]
[3778,"2011-10-28","KW60MN01 ",5779235.9887298374,1867175.3144050308,1332974.141171122,74423.113303000006,459778.05993090867,"Summer",163813.11885999999,48458.311238000002,103754.05697999999,1991.5190112,57045.061970000002,38864.035215999997,6468.6554926999997,19170.103298999999,3053.2304963000001]
[3782,"2011-08-13","KW60MN08 ",5814858.1908314554,1866699.8197141595,1351785.379719883,108610.812517,406303.62747727666,"Summer",116679.82915000001,45996.976558000002,72504.814803000001,1391.7018889000001,55722.674442000003,29080.461281,6197.2668147000004,46729.809583000002,0]
[3786,"2012-05-06","KW60MN20 ",5994619.1284515429,1865796.0173470681,1344861.7403220844,101009.84118670272,419924.43583828106,"Summer",115285.94708,46274.673723,66325.363094,1273.0897024000001,56224.269711000001,26451.801085999999,5169.054701,21356.368259999999,0]
[3787,"2011-08-31","KW60MN06 ",6245650.1758124093,1865444.3821473005,1352833.8325297176,103966.023751,408644.52586658305,"Summer",90900.334512000001,50685.557358999999,74583.044316,1431.5927009,54628.284764000004,35025.652599000001,6953.6974928999998,35848.966653000003,3053.2304963000001]
[3790,"2011-07-20","KW60MN02 ",6259188.6814994207,1864430.376784635,1368542.6161788111,95688.252752,400199.50785382395,"Summer",95798.200555000003,40098.097844999997,67772.729355000003,1300.8713382000001,55266.678742999997,32914.351392999997,6196.2104319,51045.292264000003,3053.2304963000001]
[3793,"2012-06-04","KW60MN06 ",6003056.3447895953,1863633.244543605,1356033.2420195197,96930.613799022554,410669.38872506272,"Summer",83473.118766,47849.857090999998,67169.913916000005,1289.3005289,56178.670141000002,33403.301166999998,5222.1091319999996,31518.494058,559.33486457000004]
[3797,"2011-07-04","KW60MN08 ",6421529.1715288702,1862910.5990277338,1341958.1268076168,110323.898321,410628.57389911712,"Summer",109589.24531,39060.624345999997,68041.356121000004,1306.0275251,51983.509708999998,22284.335563000001,5666.2924990000001,50509.343943,0]
[3800,"2011-10-28","KW60MN24 ",5693913.343524443,1862585.7320744593,1331533.7676112896,81162.875367000015,449889.08909616963,"Summer",152505.70155999999,53138.716631000003,101764.61374,1953.3324172,56361.068421000004,36266.532484000003,6099.3686154999996,19170.103298999999,3053.2304963000001]
[3803,"2012-05-27","KW60MN15 ",5744846.0769926338,1861876.6423201319,1320239.9895166983,98445.701182271907,443190.95162116172,"Summer",128101.82764,48437.91128,72927.803064000007,1399.8209850000001,55266.678742999997,28135.937418000001,5225.2935152999999,19804.551786,0]
[3808,"2011-08-06","KW60MN01 ",5522130.2734322399,1861370.6049968922,1335988.9938450824,105255.07391799999,420126.53723380965,"Summer",130054.97527,59688.880405000004,80255.575033000001,1540.4747348999999,54217.888635000003,30679.697981000001,6197.2261841999998,36273.460154,3053.2304963000001]
[3811,"2011-07-16","KW60MN07 ",6108307.9259449933,1860798.9126686831,1354409.440733484,95697.476968000003,410691.99496719922,"Summer",95061.769235,40451.692303999997,73648.277736000004,1413.6502178000001,55768.274012000002,31397.180734000001,5417.7379313000001,44842.165965,0]
[3812,"2012-06-13","KW60MN01 ",5790077.5362937078,1860415.8283073916,1356459.764383015,100474.37574364404,403481.68818073248,"Summer",89535.227572999996,47856.981651000002,67437.063423,1294.4283604,56269.869280999999,39889.450851000001,6321.6355166000003,35708.226629999997,3053.2304963000001]
[3815,"2011-10-02","KW60MN23 ",5599062.4113749871,1859818.0753123318,1368214.0553689001,82727.550350999983,408876.46959243191,"Summer",121289.37159,46438.586811000001,76634.456508999996,1470.9687649,55038.680892999997,31010.235226000001,5964.9236514000004,19170.103298999999,3053.2304963000001]
[3818,"2011-10-23","KW60MN08 ",5651772.3486133758,1859560.8701634491,1368246.8383429407,84559.718077999991,406754.3137425083,"Summer",130796.98144,42729.621782000002,97438.680974000003,1870.2978103,52986.700247000001,30923.179831000001,5476.4687242,19170.103298999999,1424.4168388999999]
[3822,"2011-09-07","KW60MN06 ",6154220.6910377415,1858153.0079223991,1349990.1490103479,96174.752885999987,411988.10602605116,"Summer",89062.764337999994,52065.511068,83124.966230000005,1595.5515895999999,39854.024109999998,34810.350536999998,7340.7194036000001,37345.424399000003,3053.2304963000001]
[3824,"2011-10-26","KW60MN03 ",5583056.808025226,1857965.8782233235,1353094.5672665071,70135.725252999997,434735.58570381644,"Summer",186415.17159000001,41663.079626999999,100453.99555000001,1928.1756078999999,56543.466700999998,39067.826779000003,6511.2155106,19170.103298999999,3053.2304963000001]
[3830,"2012-06-16","KW60MN02 ",5722489.0351623762,1856007.3511014385,1348927.2421800036,99015.669497892828,408064.4394235423,"Summer",73131.040783999997,48162.519874999998,66063.304587000006,1268.0595906000001,55357.877883000001,33295.577866,5531.8272207,34865.172437000001,3053.2304963000001]
[3833,"2011-07-22","KW60MN05 ",6224096.8187527778,1855008.9594819094,1364696.7533360685,96905.441177999994,393406.76496784092,"Summer",102830.55583,45232.148437999997,65648.503196000005,1260.0976383,54537.085623999999,33879.976433000003,5787.7358342999996,50407.599068000003,3053.2304963000001]
[3836,"2011-07-11","KW60MN03 ",5887343.6668823864,1854114.8307064567,1362342.9512715733,94348.488066999984,397423.39136788348,"Summer",71710.407915999996,43554.179552000001,61836.278659000003,1186.9234621999999,53579.494656000003,29307.575431000001,5539.221896,30623.844250999999,3053.2304963000001]
[3837,"2011-07-24","KW60MN04 ",5960203.1105935387,1854107.6082440712,1361001.3858681901,90981.490331000008,402124.73204488115,"Summer",80467.426751000006,47088.653917000003,60130.260714999997,1154.1771073,55312.278313000003,27679.608441,5244.1255609,47989.145288,3053.2304963000001]
[3840,"2012-05-23","KW60MN06 ",6057509.6360346247,1853704.6559372332,1357755.8101884564,98535.063244511592,397413.78250426525,"Summer",91272.121891999996,45548.244958000003,72774.094593999995,1396.8706104,57364.258958999999,37568.483794,6034.1082280000001,21356.368259999999,966.43226404999996]
[3845,"2012-04-14","KW60MN14 ",5822929.1251266124,1852464.4128546482,1359914.509903932,96856.144129739929,395693.75882097636,"Summer",157579.01639,52475.309855,78549.797078000003,1507.7329866,34701.272708999997,27020.636902999999,5747.9234262999998,7467.6597125999997,0]
[3848,"2011-07-22","KW60MN03 ",6162974.2042493979,1851350.7329094491,1365434.0489425862,95444.283058999994,390472.40090786293,"Summer",88953.620221999998,44633.468467999999,65789.675696999999,1262.8073899000001,54081.089925,34169.908691999997,5883.9072542000004,51044.244898999998,3053.2304963000001]
[3851,"2011-10-07","KW60MN24 ",5684669.1034121867,1850578.112250335,1354381.0345041144,74523.812435,421673.2653112206,"Summer",125535.43592,49455.298147000001,91623.567213000002,1758.6789498000001,56133.070571999997,36357.685891000001,5975.9953507,19170.103298999999,3053.2304963000001]
[3855,"2012-05-24","KW60MN24 ",5911921.8961602002,1849622.3715040253,1351281.6735348084,101622.87291751362,396717.8250517032,"Summer",124275.65760999999,52034.141472000003,67763.129644999994,1300.6870753999999,52120.308419000001,38154.169471000001,5685.3717120000001,21356.368259999999,3053.2304963000001]
[3858,"2011-08-26","KW60MN05 ",5917280.7848293604,1849470.5777045286,1327048.8973671144,101989.30445000001,420432.37588741427,"Summer",101289.47016,55246.755718,70197.759986000005,1347.4188635999999,54810.683043999998,35056.509901999998,7133.0387049999999,50561.064212999998,3053.2304963000001]
[3861,"2011-07-19","KW60MN04 ",6375918.9645612454,1848785.5145584245,1348386.8790775873,92140.046487999993,408258.58899283712,"Summer",90614.247201999999,42923.559570999998,58827.653827000002,1129.1740717,47013.156587999998,32234.928268,6672.2731831000001,50034.212585000001,3053.2304963000001]
[3862,"2011-09-25","KW60MN16 ",6509312.4922931241,1848535.8756596278,1339908.1945393833,83985.800954999999,424641.88016524439,"Summer",165011.51023000001,46621.108271999998,103271.81419,1982.2625470999999,54856.282614000003,30785.149710999998,7173.5672181999998,30217.333901999998,0]
[3866,"2011-07-11","KW60MN05 ",6061252.4688794008,1847938.7647201985,1351844.6269505925,95585.534090999994,400508.60367860604,"Summer",73760.384112999993,44029.365539999999,59441.061433000003,1140.9481934999999,53761.892935999997,30799.346674,5649.4919569000003,29707.782149999999,3053.2304963000001]
[3870,"2012-06-08","KW60MN24 ",6027949.5897589102,1846829.039514245,1336291.0558284703,96412.036445487116,414125.94724028761,"Summer",130215.69203999999,44807.120382000001,58221.355089999997,1117.5364018,55859.473151999999,36690.039688999997,6127.7487325000002,33715.394891000004,3053.2304963000001]
[3873,"2012-06-29","KW60MN06 ",6271132.0899404921,1845874.7602416603,1337136.0008599346,104422.55698670937,404316.20239501633,"Summer",71266.179281999997,44625.712434000001,80508.713839000004,1545.3336365,56041.871432,39071.602497,6435.7857506999999,40495.618419999999,610.22203944]
[3876,"2011-10-27","KW60MN01 ",5650496.5734839914,1845531.7975490331,1308209.4946329959,73791.39370500001,463530.9092110371,"Summer",195313.99935,48740.518697,104908.80725,2013.6839961000001,56862.663690000001,38744.026306,6404.1552264000002,19170.103298999999,3053.2304963000001]
[3880,"2011-10-29","KW60MN23 ",5747228.6364508411,1844676.6941823845,1319277.3479940721,76509.264534999995,448890.08165331231,"Summer",147994.47149,55124.447554999999,86562.968221000003,1661.5427087,56315.468850999998,32270.219948000002,5558.1148874,19170.103298999999,3053.2304963000001]
[3883,"2011-07-24","KW60MN07 ",6005897.365184973,1843903.1882152199,1349428.1617641435,93211.634428999998,401263.39202207641,"Summer",86043.887696000005,42133.556078000001,62200.741309999998,1193.9191819,55312.278313000003,26713.452762000001,5157.7663073000003,44410.519327000002,0]
[3886,"2012-06-23","KW60MN07 ",5993891.9484386854,1843848.6957116006,1349965.4757842727,89489.628678967216,404393.59124836058,"Summer",67885.647496999998,38488.601220999997,69074.499607999998,1325.8583149000001,55859.473151999999,32704.791256,5217.8378942999998,40215.450456999999,0]
[3887,"2011-08-22","KW60MN06 ",6045262.1732869344,1843797.5715497907,1343026.17708295,97013.350294000003,403758.0441728406,"Summer",89950.458507999996,54267.769810999998,68240.072455000001,1309.8418082999999,56771.464549999997,31987.276866,6686.7984398999997,44006.873551999997,3048.6082443999999]
[3891,"2012-04-27","KW60MN23 ",5708943.7090271004,1842217.5859732055,1335784.9897159871,95881.185426800846,410551.41083041765,"Summer",163179.50430999999,57785.705362000001,71554.427867000006,1373.4595790999999,54445.886484000002,27738.214614,6115.4124218999996,7467.6597125999997,3053.2304963000001]
[3895,"2011-07-10","KW60MN07 ",5942806.9254635843,1841173.3031767076,1354771.8559810673,94598.185507000017,391803.26168864046,"Summer",93898.872489999994,39702.708858999998,68712.268748000002,1318.9054335999999,54354.687344999998,27040.064901999998,5165.0594085000002,37636.523922,0]
[3898,"2011-07-02","KW60MN07 ",6017198.766777223,1840089.9482783824,1340892.9769524159,99176.668537999998,400020.30278796644,"Summer",80656.462918000005,36902.028840999999,68192.385316,1308.9264721,56361.068421000004,27236.471299000001,4924.1229814999997,49627.761960000003,0]
[3901,"2011-07-31","KW60MN05 ",6061153.730094769,1838645.7322767721,1339485.8818980549,92314.651267000008,406845.19911171735,"Summer",81090.262554000001,49953.639758999998,64020.595184999998,1228.8505734,55312.278313000003,26744.082015,6137.9672004000004,37749.664172999997,3053.2304963000001]
[3905,"2011-07-16","KW60MN06 ",5963218.2921762103,1837519.0363536738,1339253.1594894954,93932.765665999992,404333.11119817814,"Summer",93557.354638000004,46833.754057999999,64764.375631000003,1243.1271515000001,56087.471001999998,31689.683193000001,5331.0130065000003,44723.111154999999,1220.8681383999999]
[3908,"2012-06-05","KW60MN24 ",5793007.7830510959,1837281.4590031141,1333818.7908754726,92164.373289984142,411298.29483765748,"Summer",122482.59084999999,49834.890661999998,66501.437013999996,1276.4693732000001,55175.479603,39433.022819999998,5664.5521766000002,29647.736629999999,3053.2304963000001]
[3912,"2012-05-27","KW60MN09 ",5564030.706765472,1836329.628602057,1339878.7256689197,107686.7335415464,388764.16939159081,"Summer",102822.79767,39154.455156000004,64302.033047999998,1234.2526644,55449.077022999998,26128.041058999999,4586.0146193,19321.507323000002,0]
[3913,"2012-06-23","KW60MN01 ",6106384.4334649919,1836172.8348882992,1337325.5508282213,96067.248565813177,402780.03549426486,"Summer",76022.808726999996,50269.736278999997,75188.234851000001,1443.2090992999999,56634.665841000002,33550.834600000002,6024.5076768999998,42206.556214999997,3053.2304963000001]
[3916,"2011-07-20","KW60MN03 ",6117181.7869246341,1835468.0383305927,1351689.551536239,94925.387235000002,388853.09955935378,"Summer",83005.573269,39050.114254,64864.802098,1245.0547987,55859.473151999999,32021.014402000001,6269.4867979000001,50330.890581,3053.2304963000001]
[3920,"2012-04-15","KW60MN14 ",5738710.4138333201,1834828.3815169628,1348087.7782014075,91960.791741045396,394779.81157450972,"Summer",140981.52221,39692.139316000001,73389.942517999996,1408.6915732,35613.264108000003,24961.408684999999,5384.0098784000002,7467.6597125999997,0]
[3923,"2011-08-28","KW60MN08 ",5918982.1512862891,1833272.2385830048,1315743.4745851487,95914.982205000008,421613.78179285611,"Summer",111482.83955,50341.308061000003,75653.796858999995,1452.1453819999999,55494.676592999997,25790.548291999999,6289.8831019999998,46491.309045000002,0]
[3926,"2012-06-14","KW60MN05 ",5785630.9478071788,1832819.9293456885,1333608.3704228993,97064.761137387832,402146.79778540152,"Summer",76249.215467000002,49975.429601000003,62184.304413999998,1193.6036819999999,55129.880033000001,33307.456684999997,6334.9825001999998,33632.504784999997,3053.2304963000001]
[3929,"2012-06-13","KW60MN02 ",5675894.7326805545,1832387.7043339673,1335872.9138340757,96273.337169567632,400241.45333032403,"Summer",88994.912267000007,44904.378500999999,64299.031337,1234.1950477,56087.471001999998,36554.517404999999,6240.3956539000001,33782.284943999999,3053.2304963000001]
[3934,"2011-07-24","KW60MN06 ",5918768.3208347876,1831705.7338800323,1349829.1290911085,90965.913602000001,390910.69118692377,"Summer",79683.980154999997,47961.811021000001,60734.754475000002,1165.7801313,55312.278313000003,26991.492943000001,5077.6844025,45484.784819,1627.9655384]
[3935,"2011-07-04","KW60MN02 ",6249507.1959697595,1831414.3497973045,1332485.4414109031,99627.785680000001,399301.12270640139,"Summer",86871.540943999993,41512.668496999999,64353.060983000003,1235.2321259,54081.089925,23453.440642000001,5337.4325599000003,56014.916289000001,3053.2304963000001]
[3938,"2012-04-07","KW60MN01 ",5493065.8382472359,1830597.432461808,1308985.6264891347,85364.091757937567,436247.71421473572,"Summer",186566.96437,54091.514878000002,64626.366288999998,1240.4781155999999,55996.271862000001,25935.851001999999,6205.6738567000002,7467.6597125999997,3053.2304963000001]
[3941,"2012-06-03","KW60MN08 ",5722409.8594245706,1830298.4069121866,1332491.0317457623,98173.356363818573,399634.01880260569,"Summer",84993.802173999997,41167.476005999997,60128.822726999999,1154.1495057,54719.483904000001,26924.076298,5135.5721217,29911.831182000002,0]
[3945,"2012-05-05","KW60MN15 ",5813232.0960523849,1828830.9392434484,1312532.0299622151,100827.57639857318,415471.33288266032,"Summer",107511.53264999999,51776.701260000002,64067.246004000001,1229.7460177999999,55631.475301999999,25754.616396000001,5780.4376548,21356.368259999999,0]
[3948,"2012-06-30","KW60MN06 ",5809647.5211363118,1828028.4729437744,1327559.5752418968,95848.84057627221,404620.05712560553,"Summer",80750.016531000001,46158.201464999998,73025.170291000002,1401.6899112999999,55905.072721999997,31310.450099000002,5529.1659490000002,39003.609327999999,661.10921441000005]
[3950,"2011-07-16","KW60MN05 ",5931263.1887882464,1827319.1655267326,1328201.1246899983,91472.621255999999,407645.41958073439,"Summer",81726.314780000001,44544.244358000004,55808.609070999999,1071.2246748,56087.471001999998,31886.185483000001,5593.3208593999998,45667.968698999997,3053.2304963000001]
[3956,"2012-04-17","KW60MN24 ",5526643.7674737694,1825805.5052342317,1337411.6487634815,86642.261846971815,401751.59462377842,"Summer",129765.45402,56030.626047999998,79577.099509000007,1527.4516596000001,35202.867978000002,32624.297245999998,5856.1365889999997,7467.6597125999997,3053.2304963000001]
[3959,"2011-10-23","KW60MN23 ",5563573.917119178,1825418.71056775,1338267.8468329522,75344.723543,411806.14019179781,"Summer",142388.82208000001,45927.573958000001,91072.185052000001,1748.0953824000001,54628.284764000004,34986.271352000003,5344.8881819999997,19170.103298999999,3053.2304963000001]
[3960,"2011-10-13","KW60MN24 ",5563447.5519795921,1825354.3834796122,1337851.755651816,72823.347530999992,414679.28029679618,"Summer",124038.20716000001,47502.222261000003,104839.62092,2012.3559912999999,52530.704548000002,38707.158620000002,5432.3444479,19170.103298999999,3053.2304963000001]
[3963,"2011-07-10","KW60MN03 ",5881716.2893395685,1824350.4793747119,1325164.926354354,100091.11939499999,399094.43362535792,"Summer",94996.874165999994,45091.485776000001,73851.527124,1417.5515112,54537.085623999999,27305.820986999999,5432.2835021000001,40196.145405000003,3053.2304963000001]
[3966,"2012-06-26","KW60MN02 ",6169385.6018047007,1823140.3077442273,1325462.6542846081,96024.063950437354,401653.58950918179,"Summer",77418.651530999996,44082.274317000003,69660.200551999995,1337.1006181,55677.074871999997,36417.292866000003,6202.0611650999999,44269.630097000001,3053.2304963000001]
[3970,"2011-08-21","KW60MN08 ",5778667.3896302367,1823046.8660656593,1334134.6345542679,106239.824034,382672.40747739136,"Summer",112163.50118000001,47917.527558000002,62829.631248999998,1205.9904810999999,54765.083473999999,27610.051071000002,5813.3327903999998,43958.020300999997,0]
[3975,"2012-04-29","KW60MN18 ",5812523.7352409838,1822078.1608361921,1308403.9426476373,93778.343018898988,419895.87516965577,"Summer",131897.16641999999,50478.095116999997,72010.577449000004,1382.2151939,52576.304118,26900.878130000001,5449.7645984000001,7467.6597125999997,0]
[3978,"2012-05-05","KW60MN20 ",5899361.8662823243,1821242.3424608917,1319388.6678836583,102489.565011208,399364.10956602544,"Summer",117382.44042,50614.768089999998,63876.649481,1226.0875913,55859.473151999999,24984.599068,5398.2185594000002,21356.368259999999,0]
[3981,"2012-04-07","KW60MN04 ",5455972.6951983562,1820322.680303246,1283627.0876133398,84134.132954580477,452561.45973532583,"Summer",188338.37823999999,47790.246342999999,60693.134143000003,1164.9812451,56361.068421000004,24467.228898000001,5751.2567860999998,7467.6597125999997,3053.2304963000001]
[3984,"2011-08-21","KW60MN02 ",5532508.1693063974,1819953.2644091602,1314006.6213059898,102542.00807,403404.63503317052,"Summer",107380.78864,54365.982370999998,63901.438943000001,1226.5634153999999,55266.678742999997,28015.824667000001,5735.0995542000001,48137.104744999997,3053.2304963000001]
[3985,"2012-04-02","KW60MN24 ",5566399.0180734545,1819951.0895959295,1306766.6804842814,89103.085912481154,424081.32319916686,"Summer",161182.43619000001,50811.231771999999,75777.953617000006,1454.528523,53488.295515999998,30669.513819,6002.8230596000003,7467.6597125999997,3053.2304963000001]
[3988,"2011-10-27","KW60MN04 ",5699906.6068645818,1819127.6320553229,1274835.6327948791,74772.229210000005,469519.77005044365,"Summer",215219.01173999999,45182.710354000003,99563.356224000003,1911.0801303000001,56817.064120000003,37906.085498,6469.9150258,19170.103298999999,3053.2304963000001]
[3991,"2012-06-21","KW60MN03 ",5717008.4028745294,1818444.2871461385,1303798.3589569211,102584.59437438783,412061.33381482965,"Summer",94348.898543999996,44908.283029999999,66682.899223999993,1279.9524701,54901.882184000002,34540.451277,6190.5222194999997,42551.005447000003,3053.2304963000001]
[3996,"2012-04-29","KW60MN13 ",5750355.4569944255,1817455.4779119631,1307644.4402433045,88389.62653622069,421421.41113243788,"Summer",140581.05509000001,45198.010323000002,76065.639485000007,1460.050542,56133.070571999997,25771.308631,5502.0182788000002,7467.6597125999997,0]
[3999,"2011-09-14","KW60MN06 ",5879746.3859831439,1816944.8963202483,1297920.9966990552,86509.278372999994,432514.62124819309,"Summer",104092.8566,52494.321536000003,86859.572067000001,1667.2359048000001,54309.087775,35890.570318999999,7457.6121692999996,31721.287007999999,3053.2304963000001]
[4003,"2012-06-20","KW60MN03 ",5743067.9380412083,1815810.7315823522,1319187.572886883,99216.277407973059,397406.88128749601,"Summer",70932.589162999997,40525.772303999998,64257.305708,1233.3941404,56634.665841000002,34381.700173999998,5863.9578811000001,41209.162603999997,3053.2304963000001]
[4006,"2011-07-17","KW60MN02 ",6024408.7354704812,1815374.9600829682,1313510.9318463702,99931.972533000007,401932.05570359796,"Summer",95248.282940999998,45208.804818999997,59261.655098000003,1137.5045583000001,56041.871432,27591.086841,5545.5195600999996,50327.711173999996,3053.2304963000001]
[4009,"2011-10-15","KW60MN23 ",5691170.8127967063,1815166.3120409311,1321554.6992575431,74977.991754999995,418633.62102838792,"Summer",136333.30557999999,48083.407371000001,91273.443555999998,1751.9584616,55129.880033000001,31973.269198999998,5482.9085929000003,19170.103298999999,3053.2304963000001]
[4010,"2011-08-24","KW60MN05 ",5785930.1297963643,1815118.5048100448,1314246.4099023263,99598.607700999986,401273.48720671836,"Summer",104657.03989,50484.703893999998,65706.302981000001,1261.2070828000001,49521.132933000001,34670.776706999997,7209.2607518000004,45319.083300999999,3053.2304963000001]
[4013,"2011-10-27","KW60MN02 ",5636946.7875002725,1815031.9742828191,1280995.2689292044,73235.327495999998,460801.3778576146,"Summer",181032.06043000001,46480.172454,101690.72671,1951.9141843,56862.663690000001,38563.952332000001,6410.7779312000002,19170.103298999999,3053.2304963000001]
[4017,"2012-06-29","KW60MN05 ",6113480.1589825079,1814074.7683811598,1310563.7113583155,100393.0445569104,403118.01246593369,"Summer",75602.045337000003,48194.670377000002,69667.101926999996,1337.2330873000001,55585.875732,39658.645017000003,6631.3993129,40588.847913999998,3053.2304963000001]
[4021,"2012-06-13","KW60MN05 ",5664526.1439988082,1813445.3618537833,1319860.5720928386,96667.637220096207,396917.1525408483,"Summer",84198.569963999995,49559.107197999998,62991.622126000002,1209.0998333,56452.267561000001,34645.551870000003,6538.4986154999997,32389.460032999999,3053.2304963000001]
[4024,"2012-04-28","KW60MN14 ",5769459.4838408744,1813010.5815573756,1304329.3782333953,89341.955700779654,419339.24762320076,"Summer",138708.88057000001,50767.419102,79442.614344000001,1524.8702688000001,56041.871432,25651.195683999998,5553.8995158999996,7467.6597125999997,0]
[4028,"2012-06-28","KW60MN05 ",5917277.7453318508,1812147.3248937898,1319108.8382506566,96652.953874273808,396385.53276885964,"Summer",72542.957704999993,49739.202388999998,65080.659106999999,1249.1980905999999,55768.274012000002,36482.234993999999,6372.9716331999998,40017.136157000001,3053.2304963000001]
[4031,"2012-04-05","KW60MN03 ",5304382.2609458491,1811841.8460002791,1318434.2831063929,85173.3160799498,408234.24681393633,"Summer",143210.20097000001,48043.515296999998,74570.685180999993,1431.3554721,47651.550565999998,30749.846798999999,6235.0968135000003,7467.6597125999997,3053.2304963000001]
[4034,"2012-04-08","KW60MN18 ",5588601.7122180648,1811343.9196697003,1337696.7342833637,94479.202418189336,379167.98296814744,"Summer",131196.53708000001,38412.589844000002,65971.616049000004,1266.2996645999999,48381.143685000003,20871.051878999999,5349.4844604,7467.6597125999997,0]
[4038,"2012-04-14","KW60MN18 ",5927657.6859233798,1810318.7913795353,1325917.2757870927,94945.734220562139,389455.7813718805,"Summer",119948.50358999999,51876.657200000001,72766.986415000007,1396.7341716000001,34929.270558999997,26990.928906000001,5648.2391958999997,7467.6597125999997,0]
[4039,"2011-07-10","KW60MN05 ",5831319.5679230308,1810233.1564586114,1319870.7783857889,96192.048097999999,394170.32997482241,"Summer",79905.999085000003,44367.999065999997,61382.591098999997,1178.2151048999999,54719.483904000001,27154.390355,5372.3338065999997,38785.98474,3053.2304963000001]
[4043,"2011-07-10","KW60MN04 ",5836363.7808529809,1808409.2796610722,1315622.9947871866,98389.677474000011,394396.6073998856,"Summer",87440.133245999998,44426.581460000001,65577.544273000007,1258.7356092,54582.685193999998,27510.997761999999,5427.0422208,39537.654901000002,3053.2304963000001]
[4046,"2012-06-20","KW60MN04 ",5747034.8512891699,1807993.8505764417,1315412.6789026768,96745.889465898203,395835.28220786655,"Summer",71189.646978999997,40684.272076000001,63851.169673999997,1225.5985161999999,56497.867130999999,33770.699576999999,5935.9137683999998,40819.059794000001,3053.2304963000001]
[4049,"2012-06-09","KW60MN24 ",5663250.129057439,1807508.233530242,1318993.36305076,92316.928117866162,396197.94236161583,"Summer",115589.24648,43449.324473000001,56640.388067,1087.1903511,54491.486054000001,28497.318823000001,5423.7714994999997,30162.031711,3053.2304963000001]
[4053,"2012-06-26","KW60MN05 ",5994811.6633903058,1806566.4105303821,1313643.3048667766,94527.720755847011,398395.38490775856,"Summer",85605.509474999999,50537.255960000002,68880.249725999995,1322.1297635000001,55950.672292000003,36245.17815,6342.6006420000003,42996.914292000001,3053.2304963000001]
[4056,"2011-07-02","KW60MN06 ",5866541.4895578427,1805079.7507377861,1322217.4304662945,94891.027386999995,387971.29288449156,"Summer",78522.482422000001,42744.804453999997,62264.864310999998,1195.1499980999999,56680.265411,27936.359135999999,4804.7517813000004,50116.35009,661.10921441000005]
[4059,"2012-06-19","KW60MN02 ",5837065.2482858682,1804679.851328372,1308085.081770425,94857.629227639409,401737.14033030765,"Summer",63058.134788000003,42263.960916000004,65186.621875999997,1251.2320049,56817.064120000003,32701.928704999998,6002.5877437999998,39886.276975000001,3053.2304963000001]
[4061,"2012-06-02","KW60MN04 ",5529946.4574306579,1804277.8933608304,1303942.4749744125,93433.98754664298,406901.43083977496,"Summer",75368.707129999995,44852.425772000002,61229.020192000004,1175.2673706999999,56406.667991000002,33211.517338999998,5940.4761884,28529.865059,3053.2304963000001]
[4064,"2011-10-25","KW60MN01 ",5505577.1465188246,1803299.9587083235,1311457.1358280524,67747.452498999992,424095.37038127129,"Summer",140341.05038,41281.689100000003,99673.298347000004,1913.1904268000001,56406.667991000002,41954.314774999999,6278.8114027000001,19170.103298999999,3053.2304963000001]
[4068,"2012-06-15","KW60MN03 ",5703241.9604323506,1802734.8010298363,1322361.4069329365,89992.543840421204,390380.85025647853,"Summer",65399.762546999998,41785.954990999999,63210.563062000001,1213.30232,49521.132933000001,34393.117796999999,6027.6971395,36618.961319000002,3053.2304963000001]
[4071,"2012-04-22","KW60MN10 ",5586169.2979176491,1802123.5370121649,1320657.6503983394,95700.798178549318,385765.08843527606,"Summer",148233.7873,41942.145788000002,69050.900792999993,1325.4053448,33606.883030999998,24580.575144999999,5333.0038807000001,7467.6597125999997,0]
[4074,"2011-10-27","KW60MN03 ",5650509.7519795895,1801064.5576836383,1266353.5789416453,72727.532380000004,461983.44636199309,"Summer",212914.46838999999,43671.876192999996,100162.27899999999,1922.5762215,56999.462399999997,38019.359616000002,6401.7580518000004,19170.103298999999,3053.2304963000001]
[4078,"2012-04-20","KW60MN23 ",5649994.7040957734,1800326.2764424563,1327072.8381079272,88167.430810341539,385086.00752418744,"Summer",136567.64004999999,58135.417786999998,76525.447935999997,1468.8763874000001,35339.666687999998,29735.836139999999,5955.8394406999996,7467.6597125999997,3053.2304963000001]
[4080,"2012-06-13","KW60MN03 ",5636335.945342768,1799579.5901164955,1308493.8071946509,95552.223777927793,395533.55914391688,"Summer",81691.254696999997,43040.253568,59319.584866999998,1138.6164977999999,56406.667991000002,35270.285333,6244.1336215000001,33204.439377000002,3053.2304963000001]
[4083,"2012-05-18","KW60MN06 ",5960922.9775153929,1799189.6489715436,1319664.6630669942,98312.639513541653,381212.34639100771,"Summer",90433.997252999994,45124.976349999997,66944.328819000002,1284.9705102,55905.072721999997,35341.109707000003,6359.3808688999998,21356.368259999999,1169.9809634999999]
[4086,"2011-08-16","KW60MN01 ",5617775.6350822728,1798271.8451194095,1336749.2472324772,99979.56186799999,361543.03601893224,"Summer",110149.18918,45114.564273000004,64689.372590999999,1241.6874972000001,40811.615078000003,30478.313654000001,6350.6453996,49487.096943999997,3053.2304963000001]
[4089,"2012-06-01","KW60MN05 ",5658090.8645966137,1797401.7587540685,1299338.8404673352,93283.207381899309,404779.71090483404,"Summer",75132.835863999993,49758.342614000001,61746.272806000001,1185.1958345999999,56725.864979999998,36679.084728000002,6174.9845971000004,29710.055934,3053.2304963000001]
[4093,"2012-06-06","KW60MN05 ",5686227.3673156323,1796198.4443219227,1327790.1464831671,89871.185650401007,378537.11218835466,"Summer",107796.51771,47328.279515000002,64503.646370000002,1238.1225540999999,48335.544114999997,36632.630492999997,5866.9932877000001,28550.031801000001,3053.2304963000001]
[4096,"2011-07-18","KW60MN05 ",6386702.4097459354,1795304.8465865818,1311000.1272492826,89917.321802000006,394387.39753529913,"Summer",90040.313219000003,43300.508898,53428.226089999996,1025.5341438,50569.923041000002,30986.625456999998,5632.7117311000002,46707.510214000002,3053.2304963000001]
[4099,"2012-06-01","KW60MN04 ",5579932.3539656959,1795096.1714583666,1306072.4031613283,92937.276927766419,396086.49136927183,"Summer",77764.493602000002,45796.984338000002,57879.892770999999,1110.9821647000001,56269.869280999999,36386.918363999997,5767.1973245999998,29790.507688000002,3053.2304963000001]
[4101,"2012-04-28","KW60MN19 ",5715590.2460855236,1794594.7849065117,1286278.2979509656,94105.282336819379,414211.20461872657,"Summer",123111.69041,52359.107539999997,75862.268150000004,1456.1469078,55722.674442000003,26527.391682000001,5247.4724649999998,7467.6597125999997,0]
[4107,"2012-06-01","KW60MN02 ",5649992.2324832631,1792500.2186742746,1306239.8306988406,95197.547379320909,391062.840596113,"Summer",81795.396286000003,45106.176766999997,65315.139446000001,1253.69885,55950.672292000003,36675.859246,5740.6607979,30259.528504999998,3053.2304963000001]
[4108,"2012-04-02","KW60MN04 ",5448113.7758642519,1792391.5619655028,1272690.5726737957,86028.935548106791,433672.05374360038,"Summer",176887.23368,45203.95549,73587.676386000006,1412.4869983000001,56269.869280999999,26761.995605,5633.5463400999997,7467.6597125999997,3053.2304963000001]
[4111,"2011-08-20","KW60MN02 ",5650399.5329557266,1791528.8033015677,1304231.5911912119,103785.70787100001,383511.5042393558,"Summer",99370.937481000001,57467.182570999998,62400.552411999997,1197.7544786999999,55403.477453,31852.616875,6059.8964839,46487.351368000003,3053.2304963000001]
[4114,"2012-06-12","KW60MN05 ",5640753.3337276122,1790520.7303138522,1298899.8350394091,95648.387254299829,395972.50802014332,"Summer",76311.036949000001,51164.747497999997,72700.988047999999,1395.4673585,56041.871432,35085.652048999997,6824.4938100999998,31683.703019,3053.2304963000001]
[4118,"2011-10-10","KW60MN24 ",5572403.7162733609,1789563.1882558439,1333473.9355459411,69587.196647999997,386502.05606190272,"Summer",127136.31874,41582.315329999998,99369.410751000003,1907.3574219,44003.584972999997,37925.6057,6154.2395505000004,19170.103298999999,3053.2304963000001]
[4122,"2012-05-17","KW60MN06 ",5871460.6962072542,1787508.6362979671,1298886.1902060728,104156.82281927128,384465.62327262288,"Summer",81213.068232000005,47884.239439999998,70964.868482000005,1362.1432146,54901.882184000002,32068.103566000002,5966.7892496000004,21356.368259999999,1271.7553132999999]
[4125,"2011-09-18","KW60MN09 ",5661088.433536741,1786245.8465360999,1285052.0022931912,95332.266579999996,405861.57766290882,"Summer",136774.81038000001,39850.039750000004,75133.106648000001,1442.1509347000001,54947.481754,28461.364570000002,5512.7513932000002,30217.333901999998,0]
[4129,"2012-06-15","KW60MN04 ",5696992.3926450387,1784418.1268708948,1306270.5458167563,92646.003877562558,385501.57717657596,"Summer",67987.054654000007,43242.964497000001,60251.310121000002,1156.5006039,49247.535514000003,33660.363782,6035.4371706000002,35474.365102999996,3053.2304963000001]
[4132,"2012-06-12","KW60MN03 ",5520702.7422309089,1783704.6146209091,1297920.2072510417,93325.553505798103,392458.85386406927,"Summer",73204.912846000007,46680.113255999997,67541.338225,1296.4298749,55950.672292000003,36533.932217000001,6223.5138519000002,33568.385404000001,3053.2304963000001]
[4133,"2011-07-23","KW60MN04 ",5959681.2568142693,1783703.0712677012,1299300.9060122806,95207.426397999996,389194.73885742074,"Summer",95914.307933999997,44099.046116999998,56432.066052000002,1083.1916905,56178.670141000002,31974.793036999999,5405.5285893,49884.753396,3053.2304963000001]
[4136,"2011-09-11","KW60MN24 ",5633511.060379494,1783281.3342141814,1277731.4465448973,80014.740337999989,425535.14733128418,"Summer",159375.50649,49481.286563000001,84387.372629000005,1619.7829924,54537.085623999999,31980.340356000001,6165.1284148000004,33888.710555999998,3053.2304963000001]
[4139,"2012-05-03","KW60MN24 ",5561738.5349249952,1781959.3578610569,1289377.1477487099,95069.195719961732,397513.01439238526,"Summer",137018.88493999999,52058.902290999999,73531.797210000004,1411.4144191,56862.663690000001,29379.676804999999,5954.9642013000002,21356.368259999999,3053.2304963000001]
[4143,"2012-06-13","KW60MN04 ",5559801.0056274915,1781314.5302238471,1295363.8810769981,93061.392853532321,392889.25629331678,"Summer",80089.057656000004,45060.219016000003,58091.839323,1115.0503968,56315.468850999998,34339.546097999999,6349.9953183999996,32525.664939999999,3053.2304963000001]
[4147,"2011-08-02","KW60MN05 ",5483096.4836350624,1779912.2427811588,1300060.4021255728,95700.525634999998,384151.31502058596,"Summer",92499.002227999998,48496.154639,67419.868090999997,1294.0983025999999,55722.674442000003,31393.080732999999,7055.5164956999997,30211.360069999999,3053.2304963000001]
[4151,"2012-06-23","KW60MN06 ",5747330.2839638889,1779550.0713566616,1295668.9849598671,86663.697908745991,397217.38848804834,"Summer",59551.236205000001,42980.098114,66220.122936,1271.0696582,56087.471001999998,32607.447876999999,5317.0565710999999,39799.506099999999,508.44768959999999]
[4154,"2012-05-09","KW60MN24 ",5736353.0652072039,1779192.3981126971,1301825.123748349,100917.61571041417,376449.6586539339,"Summer",123360.75689999999,50556.319060000002,73508.477197,1410.9668005000001,54491.486054000001,32836.654105000001,5806.8996926999998,21356.368259999999,3053.2304963000001]
[4157,"2012-06-12","KW60MN04 ",5544279.183074668,1778501.5639859717,1293228.68849114,92172.884938678035,393099.99055615364,"Summer",68169.138156000001,45107.312775999999,67160.154364999995,1289.1131981000001,56133.070571999997,35883.484903999997,6332.7072158999999,32742.821997999999,3053.2304963000001]
[4158,"2011-08-05","KW60MN03 ",5413459.4107900131,1778488.7455024906,1283778.9014401231,90896.435483999987,403813.40857836732,"Summer",105361.60129999999,55031.045760000001,72615.391694000005,1393.8243695000001,54993.081323999999,32417.820873000001,6848.1202073000004,36854.973727999997,3053.2304963000001]
[4161,"2012-04-12","KW60MN01 ",5388142.5367870899,1777922.0120362728,1293387.8644676413,86766.522783138105,397767.62478549324,"Summer",124263.23608,46874.17959,75533.291276999997,1449.8323238999999,55585.875732,31566.398633000001,5552.0373031999998,7467.6597125999997,3053.2304963000001]
[4164,"2011-08-10","KW60MN02 ",5490449.9356695516,1776570.566797964,1293135.0252507569,99656.221583000006,383779.31996420718,"Summer",88065.491510000007,47044.969790000003,70189.086475000004,1347.2523788999999,56041.871432,33494.607429999996,6527.2237659000002,49416.114169,3053.2304963000001]
[4169,"2011-07-18","KW60MN03 ",6229923.179525977,1775555.8634178031,1292030.8226642697,90394.009038000004,393131.03171553341,"Summer",101145.18118,42998.426905,52559.801786000004,1008.865075,51573.113579999997,29776.991912000001,5534.6713263000001,48873.151508000003,3053.2304963000001]
[4172,"2012-04-08","KW60MN16 ",5587348.4668194316,1774591.4809797979,1299016.142606653,90628.033778362427,384947.30459478236,"Summer",137560.76884,34592.236478999999,67047.972412999996,1286.9599089000001,48061.946695999999,20329.618059,5392.0918799000001,7467.6597125999997,0]
[4176,"2011-07-17","KW60MN04 ",5827481.3423834331,1772976.4028076278,1286675.5903020492,95405.728896999994,390895.08360857854,"Summer",85790.380403000003,42918.814684999998,51768.500128,993.67634558999998,55859.473151999999,27166.732082999999,5428.1189188999997,49666.376537999997,3053.2304963000001]
[4179,"2011-10-19","KW60MN24 ",5549488.6615401199,1772806.5449820757,1291358.7627182936,67028.095239000002,414419.68702478212,"Summer",133755.32962,47520.959178999998,103766.61799,1991.7601148000001,56908.26326,42032.898402999999,6113.0406407999999,19170.103298999999,3053.2304963000001]
[4182,"2012-04-14","KW60MN23 ",5603773.4677122096,1772108.697162221,1303474.0945130908,93019.994107505394,375614.60854162485,"Summer",138539.83332000001,54614.975624999999,67210.742511000004,1290.084218,35248.467548000001,24404.899749,5263.7109567999996,7467.6597125999997,3053.2304963000001]
[4183,"2011-08-12","KW60MN05 ",5512081.6089535626,1771494.8590466899,1287867.7893778458,97939.868216999996,385687.20145184401,"Summer",87968.207198999997,47036.985590999997,62677.025698999998,1203.0612765999999,56315.468850999998,32012.164031,6396.4761399999998,50321.694004999998,3053.2304963000001]
[4189,"2012-05-10","KW60MN24 ",5664229.3927197838,1769379.2191214575,1272749.5513847985,104324.05105934155,392305.61667731748,"Summer",136281.82831000001,53991.300242999998,75755.676240000001,1454.1009173,57318.659389,32153.936890000001,5854.1440221000003,21356.368259999999,3053.2304963000001]
[4190,"2012-06-27","KW60MN04 ",5723193.1462460645,1769109.1676829797,1283939.7075434276,95769.059987309331,389400.40015224274,"Summer",71802.944065999996,47633.824165999999,60747.993305000004,1166.0342456000001,55859.473151999999,36330.999313,6043.6241338,43233.844048999999,3053.2304963000001]
[4194,"2012-04-02","KW60MN01 ",5387724.7466175267,1768454.7278044431,1266944.8270886128,82969.166749678363,418540.73396615195,"Summer",169093.0741,48171.622408000003,66545.118963000001,1277.3078313000001,56087.471001999998,25840.273123999999,5561.9256509999996,7467.6597125999997,3053.2304963000001]
[4197,"2012-04-15","KW60MN23 ",5511130.0954400254,1768201.739348819,1305464.8959730065,88251.181751710188,374485.6616241025,"Summer",127533.00217000001,49027.463007999999,61520.771534,1180.8674249000001,35157.268408000004,25563.905298999998,5346.1324781000003,7467.6597125999997,3053.2304963000001]
[4201,"2011-08-14","KW60MN01 ",5780561.7333840374,1767098.1123332498,1275610.4863375884,101023.11933500001,390464.50666066137,"Summer",128536.40097,55207.371393000001,66545.731912999996,1277.3195966999999,50524.323471000003,26428.930195000001,5903.0033968999996,53033.757402000003,3053.2304963000001]
[4204,"2012-04-28","KW60MN16 ",5676943.8830645662,1766479.2447951548,1265467.0744816291,86460.852799936605,414551.31751358899,"Summer",128212.8901,56047.937732999999,77375.468575000006,1485.1922050000001,55494.676592999997,25670.91588,5370.7881706999997,7467.6597125999997,0]
[4207,"2011-07-04","KW60MN04 ",6056747.4135663994,1764836.327245336,1293460.7681509843,90090.579755000013,381284.97933935153,"Summer",73343.679975999999,40329.726390000003,58853.626360000002,1129.6726044,53123.498957000003,22400.774110999999,5254.3237134999999,53106.539176999999,3053.2304963000001]
[4210,"2011-08-08","KW60MN01 ",5470524.3083410403,1763414.5015908929,1274325.0978427208,92333.21878000001,396756.18496817211,"Summer",127702.66413999999,52661.991327000003,70236.916803999993,1348.1704635999999,55859.473151999999,28770.791694,5980.3630853000004,37093.741759999997,3053.2304963000001]
[4212,"2011-08-28","KW60MN07 ",5597341.5577991167,1762604.4470611038,1258581.2585526907,96430.408064000003,407592.78044441307,"Summer",92843.074336999998,49554.424977000002,72597.780224999995,1393.4863241999999,55357.877883000001,25827.300212999999,6218.7601321000002,47034.219821999999,711.99638938999999]
[4216,"2012-06-09","KW60MN05 ",5559347.6538398555,1761741.1352610497,1283324.3551160453,87770.802835009075,390645.97730999527,"Summer",109477.30318,45957.502252999999,52221.464273999998,1002.3708173,55677.074871999997,32022.161616000001,6227.3737099,31746.558368999998,3053.2304963000001]
[4219,"2012-06-23","KW60MN05 ",5772752.6706702821,1761373.6034554462,1284504.8046949583,85324.070844001661,391544.72791648627,"Summer",66079.205335000006,47361.794192000001,62787.053941999999,1205.1732262,55950.672292000003,32473.145243999999,5742.5348610000001,40038.319897000001,3053.2304963000001]
[4222,"2011-08-04","KW60MN04 ",5335026.4775916813,1761164.6847931552,1274851.0415270932,96333.174408999999,389980.46885706193,"Summer",99797.233326999994,50706.469888,77699.910327999998,1491.4197389999999,52986.700247000001,31433.174961000001,7011.1687539000004,33911.578279000001,3053.2304963000001]
[4226,"2012-06-09","KW60MN01 ",5731502.8744743122,1758695.7016108232,1279740.303918832,91255.918273210642,387699.47941878054,"Summer",110777.1335,42895.209156999998,57146.421785999999,1096.9034727000001,55813.873582,35923.703203999998,6114.8283646999998,33220.043029,3053.2304963000001]
[4227,"2012-05-06","KW60MN07 ",5370710.6769116456,1758501.753955978,1267544.9939925754,94328.567712700766,396628.19225070177,"Summer",132218.15483000001,39127.856156000002,54049.856620999999,1037.4661014999999,55403.477453,24691.354626,5210.1909722999999,21356.368259999999,0]
[4233,"2012-04-22","KW60MN13 ",5669183.3617702071,1756960.7013599323,1294079.3533401547,86603.026998628324,376278.32102114911,"Summer",138105.93828999999,50638.505376000001,83656.690119000006,1605.7578241000001,33515.683891000001,26752.281212999998,5974.4801876000001,7467.6597125999997,0]
[4234,"2011-09-05","KW60MN24 ",5828569.9135243632,1756937.9446616531,1266185.1763372368,92642.560433999999,398110.2078904162,"Summer",145882.71621000001,50194.769324000001,76358.316107999999,1465.6683565999999,55905.072721999997,23164.118011999999,5943.5115949999999,38765.821229000001,3053.2304963000001]
[4237,"2011-08-28","KW60MN03 ",5529752.7207776206,1755602.3645507009,1240437.561605532,92777.637153999996,422387.16579116875,"Summer",106995.66825,55694.002632000003,71091.037826,1364.5649864,55449.077022999998,27419.707719000002,6007.2805189999999,50284.458622999999,3053.2304963000001]
[4241,"2012-04-22","KW60MN16 ",5805972.0770528112,1753948.3206510823,1303245.5764752775,78344.215291008077,372358.52888479672,"Summer",131648.17412000001,49348.203185999999,81857.327936000002,1571.2197627,33926.080020000001,27457.782094999999,6113.5129653000004,7467.6597125999997,0]
[4244,"2012-04-29","KW60MN16 ",5719695.7657504175,1752895.5652387636,1253338.9987254369,86050.056578781179,413506.50993454555,"Summer",119003.89507,48386.353822999998,75886.903974000001,1456.6197829,54856.282614000003,26656.678037000001,5707.7555046999996,7467.6597125999997,0]
[4247,"2011-07-04","KW60MN05 ",6007888.1571267722,1752592.5939470297,1284138.1453198737,91192.161339999991,377262.28728715621,"Summer",76333.696700999993,41499.788372000003,52626.275998999998,1010.1410218,52393.905837999999,21899.858896999998,5427.1641111999998,52616.361470999997,3053.2304963000001]
[4252,"2012-06-23","KW60MN03 ",5792134.559991478,1751820.8072539046,1271175.0805103325,86334.98264159284,394310.74410197942,"Summer",63033.927645000003,45119.270597000002,69052.259090000007,1325.4314168000001,56406.667991000002,33341.483812999999,5843.2974811000004,41031.068223000002,3053.2304963000001]
[4255,"2012-04-13","KW60MN01 ",5260430.1875891937,1750950.5020800284,1267757.0040363423,92102.022478180763,391091.47556550545,"Summer",124429.99404999999,50337.596348999999,72502.777530000007,1391.6627842,45781.968200000003,30618.00244,5533.3406910000003,7467.6597125999997,3053.2304963000001]
[4256,"2012-06-08","KW60MN01 ",5663194.8749178741,1750889.5270776895,1276052.751865264,89066.82899763617,385769.94621478935,"Summer",92696.061516000002,48003.023886000003,62890.135455000003,1207.1518358999999,55905.072721999997,38120.913441999997,5522.1487940999996,31145.719999000001,3053.2304963000001]
[4259,"2011-08-09","KW60MN05 ",5589025.576879207,1750725.0503449142,1269002.5224166445,93706.780936999989,388015.74699126976,"Summer",92232.522280000005,48660.173775000003,71776.315512000001,1377.7186266000001,57045.061970000002,30838.130209999999,6768.6680685000001,41553.197345,3053.2304963000001]
[4262,"2012-04-26","KW60MN24 ",5405391.836171234,1749631.5525281916,1262872.6160575221,86382.281571761967,400376.65489890747,"Summer",138210.90656999999,54201.285164000001,74364.661787000005,1427.4009327000001,48700.340674999999,30263.287518000001,6081.6132668,7467.6597125999997,3053.2304963000001]
[4266,"2012-06-07","KW60MN01 ",5618874.2075785398,1748639.7679103836,1278591.9055452221,88175.936419123667,381871.92594603769,"Summer",78807.467481,46639.099633999998,60018.348263,1152.0289911,55449.077022999998,37810.377400999998,5583.0058958,29895.657456000001,3053.2304963000001]
[4269,"2011-08-09","KW60MN03 ",5434958.438328051,1748033.9952606184,1266355.4401750895,96298.423768000008,385380.1313175289,"Summer",92924.471386000005,48021.879708,70531.712343000007,1353.8289500000001,57045.061970000002,31121.919924000002,6698.3170701999998,44551.878985000003,3053.2304963000001]
[4273,"2012-06-04","KW60MN05 ",5701713.9840126252,1746861.5855853052,1276238.7518503519,88554.934618937754,382067.89911601553,"Summer",84518.148767999999,47817.648743999998,63348.274195999998,1215.9456319999999,56315.468850999998,32058.655288000002,5188.0120225999999,30984.628675,3053.2304963000001]
[4277,"2011-10-06","KW60MN05 ",5627521.2698981129,1746412.7589955889,1294536.9868331626,71993.066575000004,379882.70558742608,"Summer",109045.60206,41594.652355999999,94223.251344999997,1808.5788817,56452.267561000001,35956.769489999999,6608.3214230000003,19170.103298999999,3053.2304963000001]
[4280,"2012-05-31","KW60MN06 ",5860467.4036039561,1745344.2971911852,1270065.3487748108,98769.364026898795,376509.5843894757,"Summer",84280.931482999993,48460.774465000002,67079.463449999996,1287.5643672000001,55312.278313000003,36126.186580000001,6152.3400939000003,28572.24568,661.10921441000005]
[4281,"2012-05-01","KW60MN24 ",5442988.9727594685,1745067.8553433034,1278168.4176360113,86955.337757050787,379944.09995024133,"Summer",127555.51354,51391.610267999997,71993.780912999995,1381.8927908999999,55494.676592999997,29280.637978999999,5960.8860366999997,21356.368259999999,3053.2304963000001]
[4284,"2012-04-19","KW60MN24 ",5393071.2678427473,1744032.1234753772,1273066.5778132994,82813.625532818638,388151.92012925918,"Summer",115745.68143,53070.485390000002,76376.054115999999,1466.0088307999999,35111.668837999998,32479.976160999999,5764.9254258999999,7467.6597125999997,3053.2304963000001]
[4287,"2012-06-24","KW60MN01 ",6053922.0755746011,1743294.6481394309,1260948.3783340445,90372.79926057905,391973.47054480738,"Summer",80230.357845999999,48955.214762000003,66554.500499999995,1277.4879063000001,55677.074871999997,29750.566323999999,4969.9334066000001,43789.956130999999,3053.2304963000001]
[4291,"2011-08-01","KW60MN05 ",5738591.9159370521,1742553.3595807077,1279117.2420016844,79098.23219499999,384337.88538402348,"Summer",86899.987517000001,47134.796450000002,59604.929627999998,1144.0935801999999,55677.074871999997,29549.440035,5936.2591241999999,28501.164637999998,3053.2304963000001]
[4294,"2012-04-22","KW60MN14 ",5705203.4604057241,1742111.1378256553,1290923.0731762978,81899.067896414243,369288.99675294303,"Summer",141702.67039000001,47878.748998000003,84814.717682999995,1627.9857155,33652.482601000003,26955.322115999999,6130.3473658000003,7467.6597125999997,0]
[4298,"2012-06-10","KW60MN06 ",5378400.7939442098,1740335.6771970631,1280465.8114617127,85996.036853802754,373873.82888154755,"Summer",89583.345098999998,40824.595702999999,56651.094372,1087.3958544,54810.683043999998,27746.055992000001,4948.2775695,26058.156718999999,457.56051463]
[4302,"2012-04-18","KW60MN05 ",5508876.7466771631,1738341.5529537848,1248858.9503411823,82450.480372662598,407032.12223993993,"Summer",153493.44626,47891.465229000001,74465.049786000003,1429.3278415,34929.270558999997,31901.212866999998,5943.8467932000003,7467.6597125999997,3053.2304963000001]
[4305,"2012-05-13","KW60MN24 ",5484752.5412005307,1737320.4473788133,1268410.0696163629,101935.2197260582,366975.15803639218,"Summer",112152.69063,45855.047736,61847.139063000002,1187.1319234,56269.869280999999,27458.194649000001,5084.8082119000001,21356.368259999999,3053.2304963000001]
[4306,"2012-06-05","KW60MN05 ",5876129.2467872268,1737119.0883657504,1272892.66141876,82914.990422955932,381311.43652403448,"Summer",78000.025712999995,46892.195054000003,65360.302671999998,1254.5657407000001,55813.873582,39480.612541000002,5565.0727903999996,33640.028571000003,3053.2304963000001]
[4309,"2012-06-04","KW60MN02 ",5581071.6010613469,1736843.5402209398,1268395.2819751881,85167.171455071046,383281.08679068071,"Summer",77534.207783999998,42076.125760000003,58595.408495000003,1124.7162123000001,55950.672292000003,31135.551154000001,4764.7497661999996,31695.406310999999,3053.2304963000001]
[4315,"2012-06-06","KW60MN01 ",5584711.5160745345,1734608.9090118026,1266543.5178873444,87938.46100490581,380126.93011955253,"Summer",91996.915978000005,46522.592026999999,61881.071565999999,1187.7832447000001,55312.278313000003,39314.561049000004,5557.1583879999998,29317.870515999999,3053.2304963000001]
[4317,"2012-05-07","KW60MN06 ",5694083.7171326084,1734560.6327468939,1242712.603127307,87155.543856850301,404692.48576273659,"Summer",129181.08044000001,45053.284057999997,69364.274764999995,1331.420437,57820.254658999998,29465.070819,5831.7043618999996,21356.368259999999,1882.4014127]
[4320,"2012-06-18","KW60MN02 ",5746365.1270167734,1733221.6702214621,1267947.7744704722,89394.234573630994,375879.66117735888,"Summer",85210.649000000005,42949.814716000001,57111.423107000002,1096.2316866000001,55540.276163000002,30000.876345000001,5065.6172661999999,37167.882818999999,3053.2304963000001]
[4324,"2012-06-24","KW60MN07 ",5851511.2337413607,1732314.1925157444,1266277.9942105683,86886.972546525969,379149.22575864999,"Summer",70467.322360000006,39166.196059000002,63279.354498000001,1214.6227449999999,55494.676592999997,28400.552426999999,4873.0712750000002,41442.255341999997,0]
[4327,"2011-08-13","KW60MN03 ",5338732.139523482,1731042.8869479001,1246461.9470328598,97221.575844999999,387359.36407004023,"Summer",94293.637579000002,54673.034203000003,61482.725443000003,1180.1371449000001,56589.066271000003,30004.541300000001,6038.9110432999996,50474.385608999997,3053.2304963000001]
[4330,"2011-08-18","KW60MN03 ",5408220.8488239795,1730414.2704339556,1264301.8412047201,101761.59476500002,364350.83446423546,"Summer",90869.036923000007,51037.983673000002,64722.313327000003,1242.3197819,54217.888635000003,31124.450873999998,6408.3807555000003,47775.342346999998,3053.2304963000001]
[4331,"2011-08-17","KW60MN05 ",5528862.8915090626,1729668.730577759,1255665.8280299138,100807.6321,373195.27044784499,"Summer",91213.066636999996,46965.100482000002,63323.921997999998,1215.4782009,53123.498957000003,31994.589985999999,6404.3990071999997,45976.447762999996,3053.2304963000001]
[4336,"2011-08-31","KW60MN05 ",5774702.0615120847,1727376.5628482341,1244003.0524212064,97994.949270000012,385378.56115702784,"Summer",81963.934810999999,45861.860575999999,70810.581051000001,1359.1817269999999,56497.867130999999,34157.359776999998,6570.6979609999999,36305.425554000001,3053.2304963000001]
[4338,"2012-06-09","KW60MN03 ",5560433.7113227285,1726372.8211575684,1262670.1330720079,85776.603369126329,377926.08471643418,"Summer",88070.515234999999,41314.678352000003,55002.232143000001,1055.7465814,55631.475301999999,32953.977470999998,5961.3888340000003,32182.323445999999,3053.2304963000001]
[4342,"2012-06-04","KW60MN04 ",5541566.2463244852,1725225.7697303612,1257909.7534702278,84702.7549,382613.26136013324,"Summer",66729.321869000007,42809.658196999997,57812.818928000001,1109.6947081999999,56087.471001999998,31365.754215000001,4877.4322387000002,31176.727263000001,3053.2304963000001]
[4345,"2011-08-20","KW60MN06 ",5547446.8871816248,1724388.9941354585,1246850.7826433424,102715.785936,374822.4255561161,"Summer",77584.815975999998,54679.734567,61180.348291000002,1174.3331324000001,55312.278313000003,31837.187726,6165.7988113000001,42907.051094000002,3031.7023945999999]
[4349,"2012-04-07","KW60MN24 ",5325869.790059302,1723451.5935126564,1233502.40483567,85167.707449856054,404781.48122713045,"Summer",173782.96432,54432.423634999999,60729.678287000002,1165.6826959,55950.672292000003,24616.722919,5594.2164141000003,7467.6597125999997,3053.2304963000001]
[4352,"2011-08-10","KW60MN03 ",5344453.7176955612,1722112.9417493178,1250118.0529166833,95932.557558999993,376062.33127363445,"Summer",89713.145835999996,45256.337235999999,66759.504455000002,1281.4228779,55813.873582,32888.963900000002,6528.1176279000001,48849.929533000002,3053.2304963000001]
[4355,"2011-10-08","KW60MN01 ",5461293.3287551366,1721638.7441065409,1251053.8514682557,69867.783040000009,400717.10959828494,"Summer",105870.27986,48465.058199999999,86370.503106999997,1657.8484152000001,56041.871432,36610.429996999999,5943.3693893999998,19170.103298999999,3053.2304963000001]
[4357,"2011-08-29","KW60MN03 ",5434186.5257168142,1721435.1137156384,1228410.7718616412,91951.121316999997,401073.22053699725,"Summer",114023.94306999999,53241.510182999999,67172.941577999998,1289.3586436999999,56041.871432,29786.516008999999,6024.4873616000004,43704.268079000001,3053.2304963000001]
[4360,"2011-08-16","KW60MN05 ",5524866.4681431968,1719978.2829334359,1264794.4737681667,96325.226504999999,358858.58266026923,"Summer",85388.217510000002,48546.041020999997,60475.852466999997,1160.8106074,45553.970350000003,29842.912345000001,6478.6504950999997,47969.431090999999,3053.2304963000001]
[4364,"2012-04-03","KW60MN01 ",5386655.2446453031,1719286.368130727,1217392.4492383793,81663.745915150168,420230.17297719745,"Summer",155308.74883,48693.879660999999,74913.350779999993,1437.9328058000001,56178.670141000002,30775.806329999999,6025.2440974000001,7467.6597125999997,3053.2304963000001]
[4367,"2012-04-28","KW60MN07 ",5445863.3874691278,1718736.6974033671,1244890.7441122807,91584.94915896903,382261.00413211732,"Summer",105963.83348,43024.093959999998,64744.375401999998,1242.7432549,56178.670141000002,24748.827068999999,5158.7566661000001,7467.6597125999997,0]
[4370,"2011-08-21","KW60MN03 ",5386590.9153114697,1718556.8150305254,1255000.2084662251,98657.362282999995,364899.24428130023,"Summer",86550.912880999997,51678.011480000001,59108.435793999997,1134.5635729999999,55403.477453,27326.778077999999,5573.6152670000001,46961.419195000002,3053.2304963000001]
[4374,"2011-09-19","KW60MN24 ",5574578.1926678848,1717879.368157773,1251865.0043202217,71464.026902999991,394550.33693455136,"Summer",106215.6026,46109.205252,85171.845254999993,1634.8406411999999,56908.26326,35112.437214999998,6452.6066080000001,30217.333901999998,3053.2304963000001]
[4377,"2011-08-06","KW60MN02 ",5284820.607228511,1717219.6157296516,1235920.7186375528,97115.54205399999,384183.35503809876,"Summer",106468.78134,56574.483540000001,78977.874618000002,1515.9497693999999,54035.490355000002,30334.768510999998,6076.3719854999999,34529.557089000002,3053.2304963000001]
[4378,"2012-04-12","KW60MN04 ",5345335.8018134478,1717152.6131560835,1232715.3772410641,83398.673931064259,401038.56198395498,"Summer",118163.73551,45296.933088999998,75085.626772999996,1441.2395769,54628.284764000004,30036.960388,5588.5739105000002,7467.6597125999997,3053.2304963000001]
[4382,"2011-08-17","KW60MN03 ",5371375.767955224,1716215.7227128493,1256451.050730787,97949.745062999995,361814.92691906233,"Summer",93578.615376999995,46641.188477000003,61448.850010000002,1179.4869189999999,53670.693796,31608.591472,6039.2563990999997,44939.896051000003,3053.2304963000001]
[4385,"2011-10-13","KW60MN01 ",5453089.5206928793,1714804.1531846225,1264294.8076777651,68895.863207999995,381613.48229885736,"Summer",100758.93734,44829.422793999998,96995.367522,1861.7885799000001,43228.392284000001,38371.614629999996,6149.4858307000004,19170.103298999999,3053.2304963000001]
[4389,"2011-08-18","KW60MN04 ",5383371.15465903,1714408.6466409985,1246776.5803086639,100988.81229999999,366643.25403233449,"Summer",89168.962050000002,48465.074267999997,64788.865278999998,1243.5972208000001,54673.884334000002,31138.165894999998,6508.4323495999997,47601.702420000001,3053.2304963000001]
[4392,"2011-08-01","KW60MN03 ",5470601.4716109186,1714301.5019803741,1267318.644236106,76907.423710000003,370075.43403426808,"Summer",84134.363803,46327.698190000003,63272.331292000003,1214.4879373000001,55585.875732,29516.946110000001,5904.2426136000004,29974.023872999998,3053.2304963000001]
[4395,"2012-05-20","KW60MN24 ",5613034.1067532962,1713718.954306137,1239813.4456759871,99246.559374149685,374658.9492560004,"Summer",119128.70388,46766.679714999998,57381.064376000002,1101.4073464999999,54810.683043999998,30743.166206999998,4820.4299166000001,21356.368259999999,3053.2304963000001]
[4399,"2011-08-09","KW60MN04 ",5431227.6293378165,1712576.9115329499,1237393.8061863522,92834.521437000003,382348.58390959766,"Summer",88674.220612000005,47968.212521000001,70307.131643999994,1349.5182103,56771.464549999997,30867.298226999999,6686.3921382999997,42847.722172000002,3053.2304963000001]
[4403,"2011-08-20","KW60MN04 ",5444367.0375102963,1711187.6870756953,1241987.9528612725,100814.337073,368385.39714142279,"Summer",84906.660698000007,50007.302126000002,59105.623779000001,1134.5095974999999,55084.280463000003,31369.859998,5925.4515209000001,44514.767032000003,3053.2304963000001]
[4406,"2011-10-07","KW60MN02 ",5394719.4312152984,1709483.5804046867,1265395.1854716691,71352.072736000016,372736.32219701784,"Summer",103999.63154,42302.630212999997,94278.347626000002,1809.6364335000001,55813.873582,36976.604729999999,6164.0923473000003,19170.103298999999,3053.2304963000001]
[4407,"2011-10-01","KW60MN24 ",5435812.9578220993,1709005.3806727882,1260148.6208285077,69665.707733000003,379191.05211128062,"Summer",105677.00427,49902.072661999999,76667.243147000001,1471.5980916999999,54719.483904000001,28904.185217999999,6078.4644347000003,19170.103298999999,3053.2304963000001]
[4410,"2012-06-25","KW60MN02 ",5862207.8921143292,1708832.5850304118,1248164.7852295542,83059.708821689768,377608.0909791679,"Summer",75943.393612,43031.742337999996,61825.560527000001,1186.7177317999999,56543.466700999998,30589.13754,5011.7011388000001,42190.405911000002,3053.2304963000001]
[4414,"2011-08-15","KW60MN01 ",5486571.7637018925,1707974.6131253205,1253029.9147095666,93757.063150999995,361187.63526475389,"Summer",100388.53836999999,45523.047089,62237.977750999999,1194.6339209,54263.488205000001,27063.180305999998,5656.5615926,50765.298223999998,3053.2304963000001]
[4417,"2011-10-30","KW60MN06 ",5489689.9032505956,1706517.4117588131,1177391.6933968456,71735.825590000008,457389.89277196751,"Summer",198830.01269999999,50024.811447,93607.027935000006,1796.7507115999999,55950.672292000003,29894.744130999999,5868.0005750999999,19170.103298999999,1933.2885876]
[4420,"2011-08-13","KW60MN04 ",5268776.2735574171,1705495.025337988,1229382.7247842294,96953.945282999994,379158.35527075874,"Summer",86980.844037999996,52948.554826,60910.887991000003,1169.1609461,56315.468850999998,29447.760385000001,6098.7388494999996,49681.268226,3053.2304963000001]
[4425,"2011-08-19","KW60MN04 ",5481038.4345370019,1704290.2780594253,1240116.3650355053,98750.515023,365423.39800092007,"Summer",79590.680907000002,48085.250373000003,57879.626945000004,1110.9770622000001,55585.875732,31263.604864000001,6427.6800485000003,45468.668149999998,3053.2304963000001]
[4428,"2012-05-07","KW60MN24 ",5499359.4080826528,1701972.156268084,1244951.5949711506,90999.819285709556,366020.7420112238,"Summer",107864.63473999999,47146.015141999997,71615.015782999995,1374.6225406999999,57136.261109999999,32220.023261999999,5636.7121018999997,21356.368259999999,3053.2304963000001]
[4429,"2011-10-14","KW60MN01 ",5342289.0940200007,1701513.8847525318,1249832.2947482325,62610.201101999999,389071.3889022994,"Summer",113368.9512,44729.633962,97923.793544999993,1879.6093585000001,52895.501106999996,38343.536698999997,5341.5768291000004,19170.103298999999,3053.2304963000001]
[4432,"2011-08-17","KW60MN04 ",5370951.6253927248,1700434.5402279696,1237422.300564843,96836.324265000003,366175.9153981267,"Summer",91849.341432999994,45755.123932000002,60564.303323,1162.5083873999999,53898.691644999999,31421.549686999999,6177.2971262999999,45719.743168000001,3053.2304963000001]
[4435,"2011-09-29","KW60MN06 ",5950065.0088495798,1700057.2446123699,1213314.3132029108,74736.629186000006,412006.30222345918,"Summer",109843.49451,49739.260234000001,91781.549570000003,1761.7113601000001,56315.468850999998,36428.524136,6490.5347953,30217.333901999998,3053.2304963000001]
[4439,"2011-10-02","KW60MN08 ",5411164.1237078635,1698803.0165340339,1232778.5950136932,78282.583643999998,387741.83787634055,"Summer",111243.40716,40603.973751999998,79991.288868999996,1535.4018642000001,54719.483904000001,27997.677754,5499.8513406000002,19170.103298999999,71.849863939000002]
[4441,"2011-09-20","KW60MN24 ",5400227.6118975654,1698057.5224791863,1235487.472931575,70315.506370999996,392254.54317661125,"Summer",95503.570795000007,51456.198888999999,87493.045467000004,1679.3951818,55540.276163000002,35904.608292999998,6574.8015997000002,30217.333901999998,3053.2304963000001]
[4446,"2011-10-31","KW60MN05 ",5615965.6737846676,1697250.5524182115,1200631.7163461747,68195.185925999991,428423.65014603693,"Summer",155441.01904000001,50438.863439000001,101758.83021,1953.2214047,56953.862829999998,36345.384406999998,6511.2155106,19170.103298999999,3053.2304963000001]
[4450,"2011-08-11","KW60MN04 ",5395718.045803206,1696576.4523188404,1241417.0522606412,90276.513623000006,364882.88643519935,"Summer",89671.302664999996,46004.578337999999,67595.295874999996,1297.4655711,55813.873582,32414.821391000001,6514.2830827999996,50323.045817999999,3053.2304963000001]
[4453,"2012-06-03","KW60MN05 ",5314965.6250033528,1696007.8739404241,1234654.7979109169,87136.766145642861,374216.30988386436,"Summer",68261.57892,45967.723120000002,56604.403478,1086.4996408,51618.713149000003,26875.939268999999,5482.2974494,31747.299169000002,3053.2304963000001]
[4454,"2012-05-25","KW60MN05 ",5686209.2080735154,1695670.7203581589,1243593.7199668919,94536.364785901329,357540.63560536568,"Summer",87405.475909000001,48954.604177000001,67765.590861000004,1300.7343175999999,53077.899386999998,38575.699053999997,6026.6593792000003,29681.304144999998,3053.2304963000001]
[4457,"2011-08-10","KW60MN04 ",5339847.4001523163,1694921.8162898819,1237583.1466630262,92011.511761999995,365327.15786485584,"Summer",82687.107315999994,45751.725545000001,66490.112477000002,1276.2520030999999,55996.271862000001,32094.806911,6551.0533132999999,47597.888429999999,3053.2304963000001]
[4460,"2012-06-07","KW60MN03 ",5467150.1036983524,1693837.9688835661,1237689.1066064513,81718.614088987568,374430.2481881273,"Summer",69871.110174000001,42272.395020000004,58410.37124,1121.1644937999999,55357.877883000001,37798.031543999998,5607.9222977999998,28004.170871999999,3053.2304963000001]
[4466,"2012-04-28","KW60MN23 ",5464084.9123800863,1692690.1797917006,1216571.5693163988,84331.219898832846,391787.39057646866,"Summer",113897.06754,53396.256464999999,69169.383686000001,1327.6795781000001,55813.873582,25335.904611999998,5203.1145655,7467.6597125999997,3053.2304963000001]
[4468,"2012-06-25","KW60MN03 ",5804133.1534526711,1692001.4898181837,1231399.1279525717,80958.752525083415,379643.60934052855,"Summer",74590.867180000001,43124.049899999998,58366.933759,1120.3307281,56497.867130999999,29980.973227999999,4999.4308510999999,42185.38912,3053.2304963000001]
[4471,"2011-09-17","KW60MN07 ",5567097.970204737,1690905.5208276713,1227748.2570271962,82575.350336999996,380581.91346347489,"Summer",78197.116796999995,51124.313931999997,85957.136832999997,1649.9140093999999,54126.689494999999,31612.007309000001,5394.8022457999996,30217.333901999998,1984.1757625]
[4475,"2011-08-13","KW60MN05 ",5281710.6828210549,1690144.366930441,1218846.4230663674,96144.917758999989,375153.02610507363,"Summer",86384.642451000007,53251.615360999996,62524.940088000003,1200.1420521,56269.869280999999,30243.677210999998,6142.2943045000002,49335.781436999998,3053.2304963000001]
[4478,"2011-08-21","KW60MN06 ",5388669.2076668721,1688465.3178721122,1228509.0227308595,97477.204687999998,362479.09045325272,"Summer",82390.591008999996,54056.671375999998,59736.886057000003,1146.6264328,55175.479603,27051.515283000001,5819.3866737999997,45279.327613000001,3041.8515585999999]
[4479,"2012-05-15","KW60MN01 ",5624264.4324878305,1688316.4098609115,1204020.3970917473,103474.03815787737,380821.97461128706,"Summer",104646.08097,48614.087480000002,74632.091704000006,1432.5341464999999,51117.117879999998,33911.514956999999,6125.2262809000003,21356.368259999999,3053.2304963000001]
[4482,"2011-10-05","KW60MN02 ",5345484.8293157946,1687671.0733108926,1257439.2701349962,69419.404316,360812.39885989635,"Summer",93953.635322000002,42752.239127000001,88228.375283999994,1693.5095534,56315.468850999998,36922.029842999997,6051.7907816999996,19170.103298999999,3053.2304963000001]
[4487,"2011-08-20","KW60MN05 ",5449125.339266845,1684387.1113802677,1220053.5105989815,98483.852545000002,365849.74823628622,"Summer",83441.482023000004,50005.316118000002,59267.544151000002,1137.6175963999999,55312.278313000003,31494.092622,6046.6104450000003,43864.099606999996,3053.2304963000001]
[4490,"2012-06-11","KW60MN01 ",5398520.2475430295,1683455.2665589291,1235045.2809802841,84864.505580770143,363545.47999787488,"Summer",85206.377773999993,43893.622905999997,56926.988353000001,1092.6915328,54217.888635000003,30324.456857000001,5002.4171634000004,31428.657899000002,3053.2304963000001]
[4493,"2012-05-21","KW60MN06 ",5789207.8323593801,1681634.4179445782,1211316.1671821463,94916.202505814683,375402.04825661721,"Summer",94242.1921,48387.955804999998,66981.174845000001,1285.6777554,55905.072721999997,31953.738106000001,5343.1529379000003,21356.368259999999,1068.2066138]
[4497,"2011-10-29","KW60MN02 ",5380060.4198293323,1680339.183547782,1179315.6564695903,75908.969674000007,425114.5574041917,"Summer",130823.12811999999,50800.784346,95367.661837000007,1830.5453986,56452.267561000001,36287.199414000002,6002.7502646000003,19170.103298999999,3053.2304963000001]
[4500,"2011-08-06","KW60MN03 ",5165576.6147373635,1678974.857371256,1204178.158726397,97816.697992000001,376980.00065285893,"Summer",103565.10060000001,51041.518638000001,71718.358299,1376.6061603000001,54400.286914999997,29869.752131000001,5898.8184972999998,33494.890417000002,3053.2304963000001]
[4503,"2012-04-14","KW60MN01 ",5242920.1268058252,1676812.5334031796,1231695.954593909,79739.973100785282,365376.60570848559,"Summer",112797.16872,52116.944800999998,74356.109534999996,1427.2367755,38303.638733,28365.497329999998,5480.0627944999997,7467.6597125999997,3053.2304963000001]
[4504,"2011-08-31","KW60MN04 ",5566464.7132405667,1676502.8966182363,1216637.5913150879,94230.276721000002,365635.02858214843,"Summer",77484.956210999997,43962.715392999999,68728.176288000002,1319.2107727,56087.471001999998,33669.391454999997,6352.0065077999998,36419.409678000004,3053.2304963000001]
[4508,"2012-05-19","KW60MN24 ",5529752.5424066912,1674521.8018778348,1197860.9280711508,100858.61892258274,375802.2548841011,"Summer",95909.602167999998,52837.577831000002,61214.395621999996,1174.9866577,55038.680892999997,30754.990055999999,5750.1022148000002,21356.368259999999,3053.2304963000001]
[4511,"2012-05-08","KW60MN06 ",5628682.3034489844,1673350.6801334459,1210014.7970915665,89179.386045745399,374156.496996134,"Summer",101902.3857,43240.334161999999,69555.180519000001,1335.0847991999999,56725.864979999998,32324.041885999999,5989.1916649000004,21356.368259999999,1831.5142378999999]
[4515,"2011-09-24","KW60MN08 ",5674672.6936292192,1669472.1263786613,1196188.8317717845,81788.642781000002,391494.65182587667,"Summer",112246.74238,40776.647124000003,95034.244002000007,1824.1455722000001,55494.676592999997,31757.713251000001,5731.0771753999998,30217.333901999998,0]
[4518,"2012-06-08","KW60MN03 ",5453272.5644055782,1667630.6411776394,1206848.7851361716,84772.251727273106,376009.60431419441,"Summer",80556.285195999997,42739.577527000001,60648.866344000002,1164.1315419,55996.271862000001,38700.812222,5578.8345404000002,30524.604703000001,3053.2304963000001]
[4522,"2012-05-20","KW60MN08 ",5479863.05193091,1666475.6823109626,1202959.7434445866,100480.8988255147,363035.04004086135,"Summer",81597.075767999995,40438.968038999999,61566.124454999997,1181.7379567,54445.886484000002,28291.788991000001,4852.2365049,21356.368259999999,0]
[4525,"2011-08-07","KW60MN03 ",5056216.0142832203,1665065.7370179878,1198600.3953727135,91405.212830999997,375060.12881427427,"Summer",96700.149808000002,50986.145025999998,69001.825158000007,1324.4633569,54810.683043999998,24718.008795999998,5794.4194836999995,35365.129508999999,3053.2304963000001]
[4529,"2011-09-07","KW60MN05 ",5756833.760904666,1663143.7270584833,1188652.1182797111,92008.308032000001,382483.30074677215,"Summer",88016.897047999999,47343.976364000002,76419.664757000006,1466.8459201999999,49247.535514000003,33427.121424999998,6854.7632261999997,37131.39847,3053.2304963000001]
[4530,"2011-10-06","KW60MN03 ",5342934.038618519,1662933.4343605712,1234209.5059483761,69165.638037000012,359558.29037519492,"Summer",100046.32102,40434.091395000003,90516.533941000002,1737.4298742000001,56087.471001999998,35649.255232000003,6194.8696388999997,19170.103298999999,3053.2304963000001]
[4533,"2011-10-29","KW60MN03 ",5388805.0839551799,1661905.0775259635,1167950.9183003062,70737.043072999993,423217.11615265743,"Summer",146874.90171999999,47400.939101999997,91429.524596000003,1754.9543768000001,56634.665841000002,36210.376122000001,5966.0003494000002,19170.103298999999,3053.2304963000001]
[4537,"2011-10-07","KW60MN04 ",5362956.3209614847,1661143.5246481204,1225499.5699984604,68389.393305999998,367254.56134366011,"Summer",94502.980614,39600.003681000002,89659.278468000004,1720.9751868000001,55722.674442000003,37207.494435000001,6225.9110277,19170.103298999999,3053.2304963000001]
[4540,"2012-06-10","KW60MN04 ",5304179.924796924,1660321.0883608921,1213923.3290689529,83169.070082119317,363228.68920981971,"Summer",83215.181268999993,42365.955887999997,54756.861774999998,1051.0367921,54673.884334000002,28050.197987,5288.4529886,28226.357831000001,3053.2304963000001]
[4543,"2011-10-14","KW60MN05 ",5391238.5549682053,1659307.3293880005,1212336.5588508807,64226.769578999993,382744.00095811964,"Summer",127384.00741999999,42484.349881000002,92576.226473999996,1776.964876,53214.698097,38444.825826,5728.3143295999998,19170.103298999999,3053.2304963000001]
[4547,"2012-05-12","KW60MN24 ",5409657.5093704844,1657763.1220930605,1201811.5365544939,96878.601131517134,359072.98440704943,"Summer",106278.24017999999,52651.004014999999,58397.560488000003,1120.9185963,53898.691644999999,25191.848183999999,4913.8571132999996,21356.368259999999,3053.2304963000001]
[4550,"2011-10-17","KW60MN05 ",5423696.7825612845,1656406.5414019884,1203506.3131587009,59068.834859000002,393831.39338428748,"Summer",109948.31441000001,40067.563786999999,92163.994583000007,1769.0522443,56361.068421000004,36141.552599000002,5803.1549530000002,19170.103298999999,3053.2304963000001]
[4554,"2012-04-27","KW60MN01 ",5231961.1060178922,1653861.0464138002,1180151.560916007,83272.891528172564,390436.59396962053,"Summer",114093.74528,49293.433731999998,71881.677043000003,1379.7410004999999,48107.546265999998,30077.390317000001,6013.9963341000002,7467.6597125999997,3053.2304963000001]
[4555,"2012-04-18","KW60MN03 ",5236430.9009822961,1653685.3987703407,1189196.7165603912,77209.477690959393,387279.20451899013,"Summer",127460.00979,46286.723131999999,70846.173158999998,1359.8649038000001,34974.870129000003,31822.815176,5746.5081444999996,7467.6597125999997,3053.2304963000001]
[4558,"2011-10-20","KW60MN05 ",5499633.9507577699,1653523.5018373916,1207583.086859846,61916.081057000003,384024.33392054558,"Summer",101052.27407,43067.983757000002,97776.517493000007,1876.7824516999999,57136.261109999999,40956.023902000001,6810.1513894999998,19170.103298999999,3053.2304963000001]
[4562,"2012-05-11","KW60MN01 ",5419876.8601141786,1651873.0764917422,1193833.9796402052,93488.146264208306,364550.95058732881,"Summer",117583.01844,46340.012720999999,73045.857533999995,1402.0869949,57364.258958999999,31518.430905000001,5816.9742622000003,21356.368259999999,3053.2304963000001]
[4565,"2011-10-05","KW60MN03 ",5285161.1737232851,1651714.3668060724,1222068.8415237297,67905.917465999984,361739.60781634273,"Summer",87829.090316000002,41144.947034999997,86124.910203000007,1653.1343543999999,56497.867130999999,36178.751186000001,6089.1704628999996,19170.103298999999,3053.2304963000001]
[4568,"2011-08-08","KW60MN05 ",5363420.6177508859,1650698.5380581026,1190719.6451925742,88709.402101,371269.49076452834,"Summer",93289.274304999999,50163.255116,66611.221248999995,1278.5766391,56361.068421000004,29759.830748,5857.2945468999997,35388.255404000003,3053.2304963000001]
[4571,"2012-06-10","KW60MN02 ",5372478.4762637308,1650200.0715139068,1206456.234469993,80040.321129258067,363703.51591465581,"Summer",103426.66203000001,40923.068564000001,55900.331597999997,1072.9852533000001,54765.083473999999,27940.257226999998,5225.9435965000002,29328.36104,3053.2304963000001]
[4576,"2011-08-15","KW60MN05 ",5446377.5980008105,1647587.2061005966,1201014.7527903491,92230.41618900001,354342.03712124738,"Summer",81055.605217000004,45736.422362999998,64881.250247000004,1245.3705146,55950.672292000003,27910.111596999999,5736.6638125999998,47025.356537,3053.2304963000001]
[4579,"2012-04-25","KW60MN24 ",5402798.1324892221,1647144.6161661684,1192862.5300946478,84893.231479522146,369388.85459199862,"Summer",103803.60030999999,50282.907234999999,79696.415590999997,1529.7418855999999,44641.978951999998,31777.728003,6258.0392699000004,7467.6597125999997,3053.2304963000001]
[4580,"2011-09-23","KW60MN06 ",5731063.3613292361,1646851.0241557155,1172805.2222635727,75836.806861999998,398208.99503014289,"Summer",100167.83367000001,48281.538913999997,87024.673051999998,1670.4049544,56087.471001999998,37970.508429000001,6706.747813,30217.333901999998,3053.2304963000001]
[4583,"2012-05-28","KW60MN24 ",5348903.2689569127,1645163.6730580488,1194828.198365716,93640.909112098394,356694.56558023428,"Summer",103192.32755,43830.491654999998,50328.909539,966.04396081000004,54445.886484000002,26409.184348999999,4724.1349135999999,26143.242923999998,3053.2304963000001]
[4587,"2012-04-21","KW60MN07 ",5310384.8845607974,1644447.0119452807,1194347.974910452,77535.91664542706,372563.12038940162,"Summer",107763.8423,42247.155374000002,60077.452490000003,1153.1634739000001,35157.268408000004,26256.713936,5317.379919,7467.6597125999997,153.35415584]
[4590,"2011-08-07","KW60MN07 ",5113504.7020447263,1643157.2412399347,1192868.3099010536,92478.184986000007,357810.74635288125,"Summer",91770.890788000004,41972.646102999999,67967.961930999998,1304.6187520000001,55357.877883000001,25095.098806999998,5529.2268947000002,32096.395125999999,0]
[4592,"2012-05-04","KW60MN05 ",5364503.8072269438,1642386.8304538694,1187520.2493033898,86392.71020374418,368473.87094673526,"Summer",117461.77075,44389.917452000002,74075.305636000005,1421.8468531999999,56908.26326,29599.727139999999,6247.2198162000004,21356.368259999999,3053.2304963000001]
[4598,"2011-10-31","KW60MN01 ",5320831.2066588318,1635769.9188078709,1170290.5831652668,68398.637191999995,397080.69845060416,"Summer",132129.82631999999,45628.000182999996,91998.971221,1765.8846845999999,57227.460249999996,34620.630732999998,5372.1509716,19170.103298999999,3053.2304963000001]
[4601,"2011-09-14","KW60MN02 ",5350976.4956994923,1635356.6215490694,1166224.4190785913,78133.804193000004,390998.39827747806,"Summer",88182.308994000006,51049.795274999997,85437.121119999996,1639.9325088000001,51527.514009999999,35372.525741999998,6890.4973902000002,32807.463782999999,3053.2304963000001]
[4602,"2012-04-15","KW60MN06 ",5246234.2028750852,1635238.0267039156,1195198.0303784707,83239.421494738825,356800.574830706,"Summer",111924.28075999999,45590.298180999998,58867.251584999998,1129.9341353,36525.255506000001,24755.05327,5508.6477544999998,7467.6597125999997,3053.2304963000001]
[4605,"2011-10-18","KW60MN04 ",5324474.4711459288,1634311.6343120211,1176087.6139838498,59903.298299000002,398320.72202917142,"Summer",132104.44273000001,40904.585521000001,95786.384363999998,1838.5826156000001,55540.276163000002,39004.815889999998,6220.7916355999996,19170.103298999999,3053.2304963000001]
[4608,"2011-08-06","KW60MN04 ",5086680.4761601966,1633558.1760725523,1179023.670143832,90336.498054999989,364198.0078737202,"Summer",95386.679120999994,48662.661104999999,67469.232631999999,1295.0458358999999,54765.083473999999,29530.489718000001,5870.5196401000003,33140.961087000003,3053.2304963000001]
[4613,"2012-04-17","KW60MN04 ",5202442.3046611398,1632087.5129229352,1162456.0585795227,80195.725345443832,389435.72899796849,"Summer",136800.05619,44218.177631999999,70766.800810000001,1358.3413822,34792.471849000001,30600.771169,5620.2128996000001,7467.6597125999997,3053.2304963000001]
[4616,"2011-08-14","KW60MN07 ",5340510.5181590701,1630951.7379821856,1193581.9044981808,93194.631328000003,344175.20215600467,"Summer",79514.742123999997,43373.615175999999,63750.665469,1223.6693769000001,54582.685193999998,25438.888998999999,5461.1511805999999,44541.400797000002,20.877877062]
[4619,"2011-10-30","KW60MN05 ",5290589.2007243009,1629572.9197445265,1133390.1798681209,66222.239421000006,429960.50045540562,"Summer",151077.78747000001,48166.000207999998,87995.086855999994,1689.0316722,55996.271862000001,30612.880238000002,5696.1149840999997,19170.103298999999,3053.2304963000001]
[4623,"2011-09-08","KW60MN03 ",5645338.3630691534,1628070.6499003104,1168979.324911319,80769.691829000003,378321.63315999159,"Summer",89485.244697999995,51591.894926000001,78120.638091000001,1499.4954456999999,52895.501106999996,32983.598729999998,6983.4793474999997,47741.611072,3053.2304963000001]
[4626,"2012-05-25","KW60MN04 ",5494466.188542787,1626382.8630927207,1190703.0768439947,93656.964067947498,342022.82218077843,"Summer",80832.918577000004,42323.860888000003,66826.933919000003,1282.7171605000001,52804.301966999999,38113.615486000002,5725.2230566999997,29648.627171,3053.2304963000001]
[4627,"2012-04-20","KW60MN24 ",5284025.7909273887,1626248.8350596223,1188130.11364128,80641.699989401634,357477.0214289407,"Summer",112878.68236000001,55173.310404000003,71444.255170000004,1371.3448567,35476.465398,28727.553992000001,5812.4304634999999,7467.6597125999997,3053.2304963000001]
[4630,"2011-09-12","KW60MN01 ",5390624.315847436,1625494.7867062946,1161812.7022649122,69441.622415999998,394240.46202538226,"Summer",117781.10579,47700.959567999998,84227.571056999994,1616.7156629999999,55175.479603,31523.050471999999,6000.4952945000005,34935.388937999996,3053.2304963000001]
[4634,"2011-08-08","KW60MN03 ",5194991.627246921,1625026.9522291243,1175341.3540331009,85961.583975000016,363724.01422102336,"Summer",89811.225040000005,49964.773289999997,64549.125027000002,1238.9954994,56589.066271000003,28204.469289000001,5754.9676674000002,36320.358786999997,3053.2304963000001]
[4638,"2011-10-18","KW60MN03 ",5262348.2593790404,1623425.6804163803,1169148.3823147144,58967.545351000008,395309.75275066582,"Summer",125611.84104,40398.389861000003,92052.656270000007,1766.9151483999999,56087.471001999998,39518.685945999998,6152.5127713000002,19170.103298999999,3053.2304963000001]
[4641,"2012-04-01","KW60MN02 ",5013917.2147043142,1622239.5433382776,1151692.3605393348,74328.494418335264,396218.68838060758,"Summer",157297.75143999999,45577.278264,62865.699202000003,1206.6827914999999,51527.514009999999,24437.738363,5498.2379867999998,7467.6597125999997,3053.2303723]
[4644,"2011-10-15","KW60MN01 ",5326235.8395058401,1620089.2563301581,1177388.1249087811,63540.829037999996,379160.3023833771,"Summer",91396.220595999999,47963.501377000001,90619.587205999997,1739.4079417,55494.676592999997,36342.671611999998,5193.5614158999997,19170.103298999999,3053.2304963000001]
[4648,"2011-10-09","KW60MN01 ",5308532.8962159175,1619268.4176492433,1177474.1007043284,67224.234670999998,374570.08227391494,"Summer",105829.13619999999,47036.26253,80283.526620999997,1541.0112549,54673.884334000002,31527.968778999999,5161.6464815999998,19170.103298999999,3053.2304963000001]
[4651,"2011-08-07","KW60MN04 ",5002325.6311427383,1617744.3573606568,1166024.9364323521,90218.44576799999,361500.97516030457,"Summer",83799.258088000002,46920.940741999999,67699.620397000006,1299.46804,55129.880033000001,24369.939242,5770.4274165999996,35257.092533000003,3053.2304963000001]
[4652,"2012-05-05","KW60MN02 ",5184845.7486036792,1617544.6034659515,1178569.1517841239,84445.046221584402,354530.40546024335,"Summer",119701.38722999999,49457.051167999998,58236.655651000001,1117.8300902000001,56817.064120000003,28081.808192,5740.1766230000003,21356.368259999999,3053.2304963000001]
[4655,"2011-08-07","KW60MN05 ",5015159.4077501902,1616614.3519541745,1167689.7770411426,90266.067093000005,358658.50782003184,"Summer",88280.600170000005,46369.259730999998,66712.611923999997,1280.5227938999999,55403.477453,24796.015081000001,5762.7280148999998,33902.234612,3053.2304963000001]
[4659,"2012-05-12","KW60MN06 ",5319105.7591521572,1612684.2043358777,1142497.6250244116,92044.573784295513,378142.00552717067,"Summer",112000.72828,41266.289509000002,58230.875913999997,1117.7191504,56589.066271000003,26301.482453000001,5418.6284065999998,21356.368259999999,1526.1911886]
[4663,"2011-10-20","KW60MN02 ",5250349.1517400546,1610386.4530739398,1171273.6793702948,60819.630681000002,378293.14302264497,"Summer",94699.011840000006,42116.745714999997,97014.290666999994,1862.1518024,57045.061970000002,41224.982177999998,6078.1393940999997,19170.103298999999,3053.2304963000001]
[4666,"2012-05-19","KW60MN06 ",5394169.8560793744,1609938.0259690098,1168243.5549825074,93877.094335182177,347817.37665132032,"Summer",78286.664149000004,47452.130208000002,59173.859334000001,1135.8193526,56543.466700999998,31805.65396,5624.9615413000001,21356.368259999999,1119.0937887]
[4670,"2011-10-08","KW60MN04 ",5293097.4480578071,1608623.3584897784,1172312.3906730234,64134.06324499999,372176.90457175474,"Summer",99152.023933999997,43970.413581000001,81412.137969000003,1562.6745134,55722.674442000003,34737.871694000001,5736.8263335000001,19170.103298999999,3053.2304963000001]
[4673,"2012-04-20","KW60MN01 ",5177938.9099772992,1607210.7717505191,1165029.6845858404,78455.676326684683,363725.4108379939,"Summer",105517.59110999999,47078.548738999998,75479.102593999996,1448.7921931000001,34929.270558999997,31825.239882999998,5763.9012087000001,7467.6597125999997,3053.2304963000001]
[4676,"2011-08-15","KW60MN03 ",5229429.9005570766,1605645.3697798373,1176391.5964190292,92739.564182000002,336514.20917880809,"Summer",77560.810205000002,44974.441497,61020.938051999998,1171.2733143999999,53625.094226000001,26947.852211000001,5459.8713335000002,48355.645782,3053.2304963000001]
[4680,"2012-04-01","KW60MN04 ",4992015.9526107227,1604422.7301100986,1132658.744374278,72302.555007350093,399461.43072847032,"Summer",139573.37445999999,45678.439305,64171.417576,1231.7455508999999,51618.713149000003,24154.952655000001,5518.1822817000002,7467.6597125999997,3053.2304963000001]
[4681,"2011-09-26","KW60MN06 ",5816001.0026175948,1603899.8969814661,1149146.8214612892,73391.121951999987,381361.95356817677,"Summer",99252.625599000006,49595.427350999998,92896.631345000002,1783.1149237,56771.464549999997,33875.761661999997,6242.8537742999997,30217.333901999998,3053.2304963000001]
[4684,"2011-09-18","KW60MN24 ",5318779.5770576708,1602840.8264180683,1156939.8227467325,73567.671172000002,372333.33249933569,"Summer",104686.98086,43736.381260000002,75200.689522999994,1443.4481619000001,55175.479603,30394.326297,5727.1766870000001,30217.333901999998,3053.2304963000001]
[4688,"2011-10-30","KW60MN04 ",5248702.9577573882,1600419.7048849247,1120901.8392186307,65942.28951799999,413575.57614829391,"Summer",154108.71468999999,47206.215585999998,84491.353587000005,1621.7788667,55905.072721999997,31290.772571000001,5534.3869162000001,19170.103298999999,3053.2304963000001]
[4691,"2012-04-17","KW60MN03 ",5123751.2386049014,1597835.7140993401,1147384.0103296665,77499.574769314626,372952.12900035892,"Summer",126077.39401,45394.372776999997,71632.456042999998,1374.9572997,34792.471849000001,30543.873770999999,5681.6286651,7467.6597125999997,3053.2304963000001]
[4695,"2011-10-20","KW60MN04 ",5297952.2698717508,1597129.2203781789,1162103.8711669883,61038.668741000001,373986.68047019071,"Summer",102705.91658999999,40189.897658000002,92539.286519000001,1776.2558279,56999.462399999997,40835.440138999998,6184.6105416999999,19170.103298999999,3053.2304963000001]
[4698,"2012-05-03","KW60MN05 ",5250998.8905958142,1596240.8739330503,1144833.6729948402,84599.113028601569,366808.08790960861,"Summer",98708.823361999996,43670.704834999997,69848.018244999999,1340.7057061,55859.473151999999,30896.317720999999,6086.5853739000004,21356.368259999999,3053.2304963000001]
[4701,"2011-09-06","KW60MN01 ",5578741.1502183117,1595045.2521642842,1140213.1409852698,84451.088176000005,370381.02300301456,"Summer",91385.823394999999,47531.154338,76347.706487999996,1465.4647090999999,55859.473151999999,23579.514087,5664.9517060999997,37962.508412000003,3053.2304963000001]
[4703,"2011-10-22","KW60MN01 ",5200158.4977467041,1594543.1318371841,1154655.9987579419,64793.871580999992,375093.26149824215,"Summer",101731.07034999999,48025.294161999998,94427.149393999993,1812.4926258999999,56817.064120000003,36701.236108999998,5879.6817252000001,19170.103298999999,3053.2304963000001]
[4706,"2011-10-04","KW60MN03 ",5269477.1622162992,1593789.3306847024,1169830.0073272374,65974.527472999995,357984.79588446481,"Summer",82528.065113000004,43353.488374,85889.235885000002,1648.6106769999999,56178.670141000002,36788.213004999998,6210.3293881,19170.103298999999,3053.2304963000001]
[4710,"2012-05-10","KW60MN04 ",5360027.9996757573,1592381.1449430166,1153671.5683038011,84447.830143541156,354261.74649567431,"Summer",97874.546004999997,42388.332213000002,65982.280671999994,1266.5043679,54217.888635000003,30754.328903000001,5692.7088280999997,21356.368259999999,3053.2304963000001]
[4713,"2012-05-18","KW60MN02 ",5494799.3360410836,1591164.8449236534,1155716.267076192,90621.336170026858,344827.24167743459,"Summer",71862.105305999998,44905.649482000001,64885.297119000003,1245.4481926999999,56041.871432,33582.257018999997,5808.7432829999998,21356.368259999999,3053.2304963000001]
[4716,"2011-10-02","KW60MN01 ",5219700.6034363303,1589994.6213210118,1168224.941952737,62534.54866,359235.13070827461,"Summer",88001.136968999999,49431.022581999998,73937.359448999996,1419.1990295000001,54856.282614000003,28904.460471999999,5733.6571861000002,19170.103298999999,3053.2304963000001]
[4718,"2011-10-20","KW60MN03 ",5219314.4619282437,1588552.1715158746,1159379.7819852086,60735.610198000002,368436.77933266584,"Summer",95033.545232000004,40234.258247999998,93921.747342000002,1802.7916289,56725.864979999998,40858.992766000003,6067.8802968999998,19170.103298999999,3053.2304963000001]
[4724,"2011-10-23","KW60MN06 ",5260123.9102481818,1587934.1979339845,1159269.614979388,67523.078302999987,361141.50465159665,"Summer",90483.524388999998,42300.946284999998,91641.017577999999,1759.0139028000001,53077.899386999998,32635.151566,5573.4527461999996,19170.103298999999,3053.2304963000001]
[4727,"2011-09-23","KW60MN01 ",5372600.9193170089,1586121.4514546918,1137603.2108090387,73407.176366,375111.06427965319,"Summer",113309.14344,48394.458532999997,83003.962180999995,1593.2289636999999,56725.864979999998,37119.955109000002,6261.8483408000002,30217.333901999998,3053.2304963000001]
[4728,"2012-04-27","KW60MN02 ",5118483.1263710568,1586033.6081250096,1125502.1266623263,81183.996395921553,379347.48506676167,"Summer",107029.08556000001,46178.010120999999,71643.803660999998,1375.1751128999999,46557.160887999999,29813.535703000001,5984.6292448000004,7467.6597125999997,3053.2304963000001]
[4731,"2012-05-16","KW60MN03 ",5466062.3565829787,1585504.3772119733,1135023.1277749264,96256.602491976519,354224.64694507042,"Summer",75915.127215,43838.964322,66662.294196999996,1279.5569645999999,55129.880033000001,32458.111970999998,6135.9340030000003,21356.368259999999,3053.2304963000001]
[4735,"2011-10-31","KW60MN02 ",5236378.0260679377,1582494.6354669079,1131417.4797612147,63152.841235,387924.31447069324,"Summer",111171.34746,45190.435857999997,93225.757954000001,1789.4323817,57409.858528999997,34933.435934000001,5359.6572183999997,19170.103298999999,3053.2304963000001]
[4738,"2012-04-28","KW60MN06 ",5232414.5829777392,1581407.4278590523,1124372.0323878007,83104.72620312545,373930.66926812608,"Summer",102907.73464,47218.568679999997,60906.637183999999,1169.0793535,56634.665841000002,24859.855148999999,5554.1416038999996,7467.6597125999997,2543.9346870999998]
[4743,"2012-04-11","KW60MN02 ",5098220.1413545739,1579373.5414809191,1137882.9898944458,81708.801692994675,359781.74989347858,"Summer",89775.126296999995,42753.685249000002,73073.101439000005,1402.6099311,56680.265411,32145.349227999999,5785.4097619000004,7467.6597125999997,3053.2304963000001]
[4746,"2012-05-01","KW60MN05 ",5281776.978637171,1578488.9431525902,1133496.5731401197,75157.693975106129,369834.67603736441,"Summer",99746.413165000005,43503.521905000001,69030.189322000006,1325.0077961,55266.678742999997,29627.491576,6165.9528662000002,21356.368259999999,3053.2304963000001]
[4749,"2011-09-17","KW60MN01 ",5382512.5106726773,1576327.4056794513,1129610.3276071053,78017.029517000003,368700.04855534586,"Summer",91613.989497000002,50130.524558999998,76956.697476000001,1477.1540556,54947.481754,31887.405245999998,5640.4517622000003,30217.333901999998,3053.2304963000001]
[4752,"2012-05-16","KW60MN05 ",5547712.671037307,1575562.7830723296,1129967.890766839,92592.681197109894,353002.21110838075,"Summer",92488.721611000001,49866.894945,69634.945693000001,1336.6158608000001,53716.293365999998,32351.224957999999,6367.9470462999998,21356.368259999999,3053.2304963000001]
[4753,"2012-05-24","KW60MN02 ",5427085.9089559689,1575314.3446538937,1145236.6793753298,89666.270148337833,340411.39513022604,"Summer",88878.147775999998,42995.463962000002,65893.135911000005,1264.7932687,57820.254658999998,36923.221575000003,5471.0310636000004,21356.368259999999,3053.2304963000001]
[4756,"2011-10-11","KW60MN05 ",5428623.3752251929,1573454.1581542394,1154754.6193468736,62552.670825999994,356146.86798136594,"Summer",107570.65150000001,42398.546652999998,94009.626126999996,1804.4784282000001,43228.392284000001,37748.174959999997,6851.4721896000001,19170.103298999999,3053.2304963000001]
[4760,"2012-04-19","KW60MN03 ",5146006.0733511988,1571362.6102829129,1133863.9837579771,74257.87967623875,363240.74684869696,"Summer",110693.16099,45606.324423999999,73356.099465000007,1408.0419687999999,35476.465398,30950.581700999999,5724.0312414999999,7467.6597125999997,3053.2304963000001]
[4764,"2011-10-03","KW60MN01 ",5111314.4643405499,1569873.0545551958,1152343.8735468783,66964.32471999999,350564.85628831765,"Summer",90863.038130000001,41670.165624000001,76666.186272999999,1471.5778054,55813.873582,31425.658628000001,5535.1182572999996,19170.103298999999,3053.2304963000001]
[4767,"2012-04-23","KW60MN24 ",5333186.6727405665,1568713.5130263641,1144121.1808534926,73708.85298361961,350883.47918925196,"Summer",109495.21477000001,54153.736679000001,79744.601886000004,1530.6668029,22845.384529999999,34143.774447000003,6182.7872667000001,7467.6597125999997,3053.2304963000001]
[4771,"2011-09-20","KW60MN01 ",5331513.6510141417,1567740.7660850133,1127872.690249596,69830.577545999986,370037.49828941736,"Summer",90673.662807999994,41634.534788999998,79550.154731000002,1526.934465,56999.462399999997,34528.667458999997,6239.3189570000004,30217.333901999998,3053.2304963000001]
[4774,"2012-05-14","KW60MN01 ",5199387.1268389225,1565973.0638215195,1140926.2525945727,89338.035786566048,335708.77544038073,"Summer",99294.076621999993,42903.611124000003,64175.656210000001,1231.8269098000001,56452.267561000001,27662.223631000001,4969.7607293000001,21356.368259999999,3053.2304963000001]
[4775,"2012-05-22","KW60MN02 ",5626868.1389226783,1565956.3078254568,1139593.8532758676,96257.572368967347,330104.88218062185,"Summer",77168.641766999994,42398.111210000003,67395.154643999995,1293.6239376000001,56953.862829999998,39136.386028000001,5568.4433951999999,21356.368259999999,3053.2304963000001]
[4778,"2012-05-03","KW60MN02 ",5121314.0100924801,1564716.3911984235,1127867.6121783436,82744.586995844642,354104.19202423509,"Summer",88506.212016000005,42428.868613999999,71684.512835000001,1375.9565097,56224.269711000001,30881.961648,5727.0107805999996,21356.368259999999,3053.2304963000001]
[4781,"2012-05-20","KW60MN01 ",5301520.0150676584,1563486.6112668936,1109451.3583819445,95209.026118843234,358826.22676610597,"Summer",81997.871444999997,50888.157419000003,60613.427531000001,1163.4513075,54947.481754,30661.731798000001,5705.0180524999996,21356.368259999999,3053.2304963000001]
[4785,"2011-10-10","KW60MN01 ",5230226.2874204973,1562412.1922563806,1150133.6480374003,61666.758733000002,350611.78548598033,"Summer",98896.439320000005,40309.871138000002,80074.253717,1536.9943424000001,52986.700247000001,33752.406475999996,5028.603255,19170.103298999999,3053.2304963000001]
[4789,"2011-10-19","KW60MN03 ",5200542.5177970715,1561707.967580037,1120901.7759258125,57590.874998000007,383215.31665622443,"Summer",121743.96562,41043.030795999999,93554.110509999999,1795.7349819999999,49885.929492000003,39413.564621999998,6081.7961017999996,19170.103298999999,3053.2304963000001]
[4792,"2011-09-01","KW60MN05 ",5709058.8699154314,1560558.3598846232,1106378.0113860564,91090.896500999996,363089.45199756679,"Summer",83078.003924999997,46641.969383000003,71996.822008999996,1381.9511636,56087.471001999998,32474.037347000001,6415.1456658999996,45454.228866999998,3053.2304963000001]
[4796,"2012-04-21","KW60MN24 ",5207606.0120502496,1559582.2989080285,1127445.4017391033,74070.173745811175,358066.7234231141,"Summer",105636.19976,52999.045365999998,58356.749806,1120.1352511,34199.677439999999,25428.005002999998,5317.3985403999995,7467.6597125999997,3053.2304963000001]
[4799,"2011-10-15","KW60MN02 ",5203799.2596495692,1558436.6032186304,1129926.6987340276,59943.876275999995,368566.02820860286,"Summer",84065.398881000001,45469.471489000003,88897.612689000001,1706.3553065999999,55585.875732,36086.038667000001,5216.2330054000004,19170.103298999999,3053.2304963000001]
[4800,"2012-04-20","KW60MN05 ",5258414.1820038762,1558280.1626709502,1119489.4379930838,74369.1560557466,364421.56862211967,"Summer",104800.4598,44971.179688999997,74544.533402999994,1430.8534987999999,35111.668837999998,31523.942438999999,6062.4324786999996,7467.6597125999997,3053.2304963000001]
[4806,"2012-04-11","KW60MN03 ",5081968.0555491662,1556364.6153557124,1111988.9065503385,77972.705374714569,366403.0034306593,"Summer",90822.901329999993,43157.728470000002,71822.578787000006,1378.6066323,56589.066271000003,31657.116395000001,5854.1626434999998,7467.6597125999997,3053.2304963000001]
[4807,"2011-09-11","KW60MN02 ",5411183.893767844,1556107.0101847963,1100114.8414223932,74230.321261999998,381761.84750040312,"Summer",94822.432235,56497.416494999998,74814.204872000002,1436.0297384,53761.892935999997,30194.079258999998,5744.871091,44713.496831999997,3053.2304963000001]
[4811,"2011-09-30","KW60MN01 ",5498669.1812831499,1553126.1005833636,1116306.2823925351,68663.887472000002,368155.93071882846,"Summer",85899.641103000002,45501.617170999998,85453.351899999994,1640.2440524000001,56269.869280999999,36834.996305000001,5846.8322983999997,30217.333901999998,3053.2304963000001]
[4814,"2011-09-03","KW60MN07 ",5499265.2519033421,1552611.3673658038,1089007.9420922319,93286.482636999994,370316.94263657177,"Summer",80195.605121000001,43125.288743999998,62651.893474999997,1202.5788732999999,56452.267561000001,27264.727102000001,5381.1302205000002,42984.749641000002,1068.2066138]
[4818,"2012-05-08","KW60MN01 ",5216731.3458943749,1548193.7202102651,1123436.982929985,87450.524645319994,337306.21263496025,"Summer",81177.552410999997,43709.573376,66158.727780999994,1269.891202,57227.460249999996,32362.021808000001,5523.5640758999998,21356.368259999999,3053.2304963000001]
[4821,"2011-10-17","KW60MN01 ",5134572.806927097,1546997.618517546,1134864.1365398874,57901.446325999997,354232.0356516586,"Summer",94627.482063000003,38598.283132999997,89349.594484999994,1715.0309225000001,52895.501106999996,33758.337363999999,5250.6670058,19170.103298999999,3053.2304963000001]
[4824,"2012-04-28","KW60MN24 ",5184734.6330931792,1546251.5618654131,1093950.6415281536,78968.689464978874,373332.23087228078,"Summer",116449.67052,50009.198151999997,61483.301189999998,1180.1481961,55905.072721999997,24913.940104000001,5059.3517676000001,7467.6597125999997,3053.2304963000001]
[4827,"2012-05-24","KW60MN03 ",5396358.2721373364,1544506.126166414,1120177.9540287361,88655.639714459234,335672.53242321871,"Summer",84000.991345999995,41880.277482999998,63158.791042999997,1212.3085761,57637.856378999997,36547.510863000003,5548.3687450999996,21356.368259999999,3053.2304963000001]
[4829,"2011-09-27","KW60MN01 ",5450157.6694462001,1544438.7285990641,1100805.832880503,72667.692307999998,370965.20341056085,"Summer",76604.161712000001,42871.571492000003,88848.314863000007,1705.4090538999999,56771.464549999997,36008.635556000001,6136.2810516,30217.333901999998,3053.2304963000001]
[4832,"2012-04-15","KW60MN05 ",5088056.7221835516,1543381.7745854468,1115959.6767434583,82393.200330459105,345028.89751152939,"Summer",102625.46282,44940.872189000002,57885.857037000002,1111.0966464000001,36434.056365999997,24340.912616000001,5396.2818577999997,7467.6597125999997,3053.2304963000001]
[4836,"2012-05-24","KW60MN04 ",5425772.2302090777,1542494.9912636245,1122504.6120228197,86179.798520836805,333810.58071996813,"Summer",91643.305152999994,42913.796642000001,58974.497324000004,1131.9926757999999,57409.858528999997,36186.898122999999,5554.7188889999998,21356.368259999999,3053.2304963000001]
[4839,"2012-05-17","KW60MN04 ",5377459.0294725057,1541856.7276749983,1111800.689484624,96425.744269926858,333630.29392044764,"Summer",78709.738029,43189.284455000001,61347.270443000001,1177.5371385000001,54901.882184000002,30774.525870000001,5656.7867508999998,21356.368259999999,3053.2304963000001]
[4843,"2011-09-09","KW60MN04 ",5530132.3235946167,1540451.6853655502,1086177.3640839965,82778.172486999989,371496.14879455377,"Summer",84045.197998999996,47097.557206999998,76537.260030999998,1469.103116,51071.518309999999,34988.877326000002,6469.8947104999997,42701.891179999999,3053.2304963000001]
[4846,"2012-05-27","KW60MN01 ",5196172.5014362661,1538671.1092223842,1111198.9155453849,84815.438935980856,342656.75474101829,"Summer",98319.823896999995,48129.259073000001,55976.368777000003,1074.4447574999999,55768.274012000002,27730.631083,4581.1914888000001,19155.827931,3053.2304963000001]
[4848,"2012-05-12","KW60MN02 ",5230602.0433851834,1537607.9130350808,1098663.5522271015,94644.388038745237,344299.97276923398,"Summer",94140.827338000003,47344.583735,61642.091933000003,1183.1961231,56953.862829999998,28599.487775000001,5622.1868451999999,21356.368259999999,3053.2304963000001]
[4851,"2011-09-24","KW60MN07 ",5496194.4779845597,1536185.2668104987,1087528.91531231,75127.979953999995,373528.37154418859,"Summer",85769.363429999998,48124.523827999998,93131.579377000002,1787.6246603,55540.276163000002,31731.773260999998,5733.7587611999998,30217.333901999998,2442.1603372999998]
[4854,"2011-10-15","KW60MN05 ",5199834.9734538449,1533548.6725027296,1102372.9239894669,61349.363000999998,369826.38551226276,"Summer",107827.27477,40962.695516,84347.848477000007,1619.0243416000001,55768.274012000002,35518.851746,5458.5305404999999,19170.103298999999,3053.2304963000001]
[4857,"2012-04-20","KW60MN02 ",5065517.4020294715,1532497.2944046035,1115407.1937446867,66577.576639514795,350512.52402040205,"Summer",97905.038102999999,45488.616535000001,74243.262386000002,1425.0707181,35111.668837999998,31031.597723999999,5605.5572875999997,7467.6597125999997,3053.2304963000001]
[4861,"2011-10-23","KW60MN02 ",5074880.1191368457,1530729.9132694164,1119228.1925515998,61426.173532000001,350075.54718581645,"Summer",84128.407403999998,45246.232058000001,89068.225747999997,1709.6301582999999,55403.477453,34103.271305000002,5306.2083372999996,19170.103298999999,3053.2304963000001]
[4864,"2012-05-31","KW60MN04 ",5407981.5295709083,1530280.0682110577,1108449.0655057942,90104.9443949735,331726.05831028993,"Summer",75902.705686000001,44221.024884999999,60966.421650999997,1170.2268931999999,56452.267561000001,34635.646287000003,5695.3345476000004,28461.745358,3053.2304963000001]
[4868,"2011-10-17","KW60MN02 ",5089670.6174920164,1526942.2838897975,1117813.8594351558,57195.363597000003,351933.0608576418,"Summer",100475.95541,38572.399160000001,90290.274806000001,1733.0869175,53579.494656000003,34095.724665000002,5259.7884603000002,19170.103298999999,3053.2304963000001]
[4869,"2011-10-09","KW60MN03 ",5162037.8775435118,1524549.0397575896,1114865.2595906155,63693.018301999997,345990.76186497422,"Summer",93805.848805999995,43889.12386,78483.068750999999,1506.4521620999999,54765.083473999999,31070.958622999999,5167.6597345,19170.103298999999,3053.2304963000001]
[4875,"2011-10-22","KW60MN05 ",5085614.6858539227,1523467.5977479662,1096775.2146736989,62921.952500000007,363770.43057426729,"Summer",103769.36692,40850.278826000002,93518.355345999997,1795.0486754999999,57318.659389,35639.218883000001,5709.4822839999997,19170.103298999999,3053.2304963000001]
[4876,"2011-10-01","KW60MN01 ",5458245.7324232366,1523205.6287825513,1092365.2124862936,64713.413100999998,366127.00319525774,"Summer",85988.117998999995,52154.198506000001,81826.333413999993,1570.6248347999999,55540.276163000002,34071.547992,5798.0965066999997,19170.103298999999,3053.2304963000001]
[4879,"2012-05-06","KW60MN01 ",5084329.3488239395,1522049.0362909129,1093718.9353627046,83242.701206981699,345087.39972122677,"Summer",105744.47478999999,50174.889969000003,53824.017870000003,1033.131214,55585.875732,24757.892953999999,5199.2039194999998,21356.368259999999,3053.2304963000001]
[4883,"2012-05-22","KW60MN04 ",5545069.8342621224,1519003.6231942787,1104732.521158535,91342.053916714518,322929.04811902915,"Summer",71471.834013,42122.607328999999,59933.353031999999,1150.3975405000001,56817.064120000003,37389.546432000003,5619.2631713000001,21356.368259999999,3053.2304963000001]
[4886,"2011-09-02","KW60MN03 ",5548834.7180532375,1516678.2221321198,1066122.1111780475,87933.632989999998,362622.47796407214,"Summer",71854.484932000007,45039.653556999998,72533.178622000007,1392.2463213999999,55950.672292000003,34139.972546999998,6401.7986811999999,47021.282571000003,3053.2304963000001]
[4889,"2012-05-15","KW60MN04 ",5330178.2736651665,1515724.6478987827,1073774.2618957267,94956.120969395764,346994.26503366028,"Summer",72449.096732999998,46009.829366999998,67540.025286000004,1296.4046734999999,57409.858528999997,31786.397883000001,6078.4847499999996,21356.368259999999,3053.2304963000001]
[4894,"2012-04-22","KW60MN24 ",5163258.3138477253,1512527.006280194,1094708.6873355822,70679.02099013995,347139.2979544719,"Summer",110376.44381,48530.437366999999,61730.987173000001,1184.9024328,35613.264108000003,29319.196833000002,5437.1387983000004,7467.6597125999997,3053.2304963000001]
[4897,"2011-10-16","KW60MN06 ",5077682.2595512914,1511674.1724486339,1088553.240759898,59448.418249000002,363672.51343973581,"Summer",99487.617182999995,44689.065424,88339.437206000002,1695.6413439999999,54673.884334000002,29803.413347999998,5477.3625861999999,19170.103298999999,3053.2304963000001]
[4900,"2012-05-09","KW60MN02 ",5230178.9347049855,1511154.2082991444,1092319.3472613243,89371.724281266885,329463.13675655337,"Summer",68993.240881999998,44408.948414999999,69772.098880000005,1339.2484632000001,57045.061970000002,32526.675105999999,5769.7299339000001,21356.368259999999,3053.2304963000001]
[4901,"2012-05-01","KW60MN02 ",5084801.8900269009,1510661.2216634725,1091102.0804592837,74237.573336188507,345321.5678680003,"Summer",93134.789489999996,41384.680289000004,68266.985771000007,1310.358399,55038.680892999997,29115.002444999998,5800.5309262999999,21356.368259999999,3053.2304963000001]
[4904,"2011-10-15","KW60MN04 ",5115567.9575335039,1508992.8950230528,1084376.627486527,58370.179101000002,366246.08843552571,"Summer",103945.47283,40776.300053999999,85734.203108000002,1645.6348826999999,55175.479603,35504.959353999999,5244.0239858000004,19170.103298999999,3053.2304963000001]
[4908,"2012-05-26","KW60MN05 ",5321501.7372355703,1505716.0584911441,1088326.5443226474,89248.475105202931,328141.03906329378,"Summer",90610.686081000007,48890.902511,59196.823265999999,1136.2601363000001,53123.498957000003,28206.495679,5267.0443176999997,25592.516898999998,3053.2304963000001]
[4911,"2011-09-02","KW60MN04 ",5560941.1197375404,1504802.0891984208,1055520.4066184203,87244.253712999998,362037.42886700039,"Summer",76490.057463999998,44893.056973999999,73229.750186999998,1405.6167433000001,56087.471001999998,34344.344923999997,6472.6169269000002,46955.930975000003,3053.2304963000001]
[4915,"2012-04-21","KW60MN01 ",5057651.5895466637,1502991.0398690053,1091813.9238323087,71321.606398886477,339855.50963781017,"Summer",103761.3544,52044.945609000002,65789.110056000005,1262.7965326000001,36069.259807000002,28097.790626999998,5688.3884961000003,7467.6597125999997,3053.2304963000001]
[4919,"2012-04-20","KW60MN03 ",5062829.7907177527,1499728.8741621037,1078076.8377559304,68556.889052595201,353095.14735357818,"Summer",95413.864463999998,45737.050623000003,69763.777661,1339.0887407,35111.668837999998,30811.937561999999,5673.7515065999996,7467.6597125999997,3053.2304963000001]
[4922,"2011-09-12","KW60MN03 ",5244769.1661959151,1498593.4671220826,1067558.0876267496,64841.424400999997,366193.95509433298,"Summer",92182.104863,44077.916669999999,80073.325104999996,1536.9765179999999,54719.483904000001,32370.216275999999,5774.8764111,35373.784958999997,3053.2304963000001]
[4925,"2012-04-26","KW60MN05 ",5230254.7288637292,1497640.5489408886,1070023.4489737437,74689.068228126751,352928.0317390181,"Summer",65021.594825,41232.564341999998,68918.865936000002,1322.8709867,45781.968200000003,31372.827408000001,6373.2543517000004,7467.6597125999997,3053.2304963000001]
[4926,"2011-09-17","KW60MN02 ",5235889.857154456,1497272.4993354459,1068535.9113345877,75081.486470999997,353655.10152985842,"Summer",77046.524997,51816.744373000001,76763.305128000007,1473.4419643000001,54901.882184000002,30871.807628999999,5692.7020571000003,30217.333901999998,3053.2304963000001]
[4929,"2011-09-23","KW60MN02 ",5247136.5137742059,1494661.125035462,1068781.7584619278,68193.351692000011,357686.01488153415,"Summer",86693.039759000007,44751.732309999999,82661.551500000001,1586.6565230000001,55905.072721999997,37305.749308999999,6125.4734472,30217.333901999998,3053.2304963000001]
[4932,"2011-10-16","KW60MN02 ",5041466.3052962879,1494311.3231637599,1086135.4885256023,57601.310991999992,350574.52364615776,"Summer",92714.312260000006,45863.542898,85663.185622000005,1644.2717295,54901.882184000002,30294.198806,5252.4953601999996,19170.103298999999,3053.2304963000001]
[4937,"2011-10-23","KW60MN04 ",5036111.5886595864,1492802.9042439726,1090923.023465558,58602.209467000001,343277.67131141468,"Summer",87693.068216,39680.698884999998,87419.722355999998,1677.9877730999999,53442.695946,33083.198571000001,5260.0728716000003,19170.103298999999,3053.2304963000001]
[4940,"2011-10-22","KW60MN04 ",4987686.7184617165,1489411.404565752,1074958.746978685,60380.421246999998,354072.23634006683,"Summer",102245.8113,40903.364350999997,91029.643800999998,1747.2788195999999,56908.26326,35176.127787999998,5708.0602300999999,19170.103298999999,3053.2304963000001]
[4944,"2012-05-07","KW60MN05 ",5263397.6483508423,1487590.8175619999,1063385.4315563163,79208.487903652553,344996.89810203115,"Summer",103718.59974999999,46514.921154000003,62595.205108000002,1201.4907619999999,57911.453798000002,28773.026471000001,5369.1680458999999,21356.368259999999,3053.2304963000001]
[4947,"2011-09-20","KW60MN02 ",5244657.9227541834,1487262.6021993116,1062493.185537199,67643.778067999985,357125.63859411265,"Summer",77370.618793999995,43712.377245000003,76879.233332999996,1475.6671613999999,56817.064120000003,34376.789166000002,6214.7174379999997,30217.333901999998,3053.2304963000001]
[4948,"2012-04-20","KW60MN04 ",5083781.802411058,1486685.9388968053,1070301.2379849262,69459.35806953955,346925.34284233948,"Summer",95431.945630999995,45582.754244999996,69603.935784999994,1336.0206376000001,35111.668837999998,30601.342318999999,5641.3862546999999,7467.6597125999997,3053.2304963000001]
[4951,"2011-10-03","KW60MN04 ",5111910.6745980782,1485500.2448965223,1089334.3809206591,63607.683918000002,332558.18005786324,"Summer",70744.930810999998,41161.762218000003,75009.965081000002,1439.7872798999999,56133.070571999997,31682.911141,5322.5619472999997,19170.103298999999,3053.2304963000001]
[4957,"2011-09-18","KW60MN01 ",5160288.6539658075,1481988.7467124476,1055291.1623856761,75794.752064999993,350902.8322617716,"Summer",94691.497451000003,49199.694509000001,72192.115674000001,1385.69975,55266.678742999997,28022.095895999999,5318.1738986,30217.333901999998,3053.2304963000001]
[4959,"2012-04-15","KW60MN03 ",5004546.5437300643,1481129.5395990224,1071218.2606234092,77326.145970547441,332585.13300506596,"Summer",99243.012692000004,48313.809926000002,58072.574679999998,1114.6806194000001,35522.064967999999,23924.643053,5167.9932399999998,7467.6597125999997,3053.2304963000001]
[4962,"2011-09-24","KW60MN02 ",5250981.2268482866,1477855.7346473346,1052752.3940961575,63062.584039000001,362040.75651217689,"Summer",77971.865302000006,50956.015882,83438.022242999999,1601.5605788,55540.276163000002,34104.063284000003,5920.2305537000002,30217.333901999998,3053.2304963000001]
[4965,"2011-09-22","KW60MN02 ",5238823.8798887683,1477146.8544224219,1056375.4059304215,69107.746912999995,351663.70157900034,"Summer",79893.132415999993,43301.450484000001,79083.088824999999,1517.9693155,55813.873582,34787.058750999997,6113.7922970999998,30217.333901999998,3053.2304963000001]
[4969,"2011-09-11","KW60MN03 ",5288932.5955104921,1474303.2001074287,1032809.6249401877,73333.794309999997,368159.78085724096,"Summer",98586.526415,52807.770046999998,71922.773071999996,1380.5298229,54263.488205000001,29917.455098999999,5673.4840250999996,42352.781733999997,3053.2304963000001]
[4972,"2011-09-11","KW60MN06 ",5308790.8798552388,1473751.5603771748,1036777.9196825018,73462.458869000009,363511.18182567303,"Summer",78276.701490000007,50772.864554,71877.987399999998,1379.6701791999999,54126.689494999999,29563.445713000001,5792.1645146999999,41870.118952999997,3053.2304963000001]
[4973,"2012-05-01","KW60MN04 ",5027517.934856656,1473522.2312258673,1060622.426973843,75807.111327177132,337092.69292484719,"Summer",103425.77175,41719.169871999999,67693.010685999994,1299.3411690999999,55129.880033000001,28978.720732999998,5871.1460206000002,21356.368259999999,3053.2304963000001]
[4978,"2011-09-25","KW60MN01 ",5257343.3320432492,1471428.6224092706,1036580.1206073288,67612.756362,367235.7454399417,"Summer",104934.06542,55614.313285999997,82715.186369000003,1587.6860236,54947.481754,31658.332515999999,6199.9484005000004,30217.333901999998,3053.2304963000001]
[4980,"2012-05-06","KW60MN02 ",4939058.6173864901,1470157.1365559692,1058563.5676123349,84779.23614432312,326814.33279931138,"Summer",102105.99490999999,49306.574159000003,56011.005172999998,1075.1095897,55540.276163000002,24562.109142000001,5120.2461131999999,21356.368259999999,3053.2304963000001]
[4984,"2012-05-26","KW60MN04 ",5251591.5005564382,1468782.5171717405,1057983.0346796927,89022.869286660047,321776.61320538772,"Summer",80028.889551,43820.211335,62179.413214,1193.5097972999999,52530.704548000002,28524.173026,5264.4185981999999,25874.409008999999,3053.2304963000001]
[4987,"2011-09-12","KW60MN04 ",5192624.7984947572,1465139.7360427948,1035554.1008734867,70008.825670999999,359576.80949830811,"Summer",82560.094003999999,44665.964432000001,76412.629837999993,1466.7108877000001,54856.282614000003,32431.017678,5786.0496855000001,35109.210362999998,3053.2304963000001]
[4991,"2011-09-30","KW60MN02 ",5359415.7703227112,1462671.849277986,1051090.7096704582,58666.955030999998,352914.18457652774,"Summer",81907.465607999999,43410.211698999999,88059.537230999995,1690.2687722000001,56133.070571999997,35855.219512999996,5772.7433313000001,30217.333901999998,3053.2304963000001]
[4994,"2012-05-09","KW60MN04 ",5194857.9266770603,1459605.5365305734,1054213.7756711473,86283.18028405201,319108.58057537413,"Summer",66209.652585000003,46395.609677,64290.706099000003,1234.0352479999999,56999.462399999997,31762.382398000002,5657.5316362000003,21356.368259999999,3053.2304963000001]
[4995,"2011-09-17","KW60MN05 ",5198229.8273441754,1459588.3314225813,1037066.2979424297,74380.862385,348141.17109515169,"Summer",75297.760274999993,45455.246470999999,75047.870393000005,1440.5148577,54491.486054000001,31131.079339,5585.2964171000003,30217.333901999998,3053.2304963000001]
[4999,"2012-05-14","KW60MN05 ",5195900.9447974321,1456751.0741870492,1050135.4354953426,84391.015504834431,322224.62318687222,"Summer",71493.221936000002,43370.422460000002,63951.791233000004,1227.5299081000001,56771.464549999997,28807.060893999998,5428.9450641000003,21356.368259999999,3053.2304963000001]
[5002,"2011-09-06","KW60MN04 ",5388468.7912179921,1456115.086027879,1033733.7497036523,75919.926123000012,346461.41020122659,"Summer",82940.180066999994,44105.126255000003,72479.113609000007,1391.2085643999999,56361.068421000004,24660.501007999999,5627.6329695000004,35194.278843,3053.2304963000001]
[5005,"2012-05-08","KW60MN02 ",5069861.1492771562,1455699.8328282735,1053157.5109976102,85454.90975466794,317087.41207599535,"Summer",71542.134355000002,45607.402587999997,66842.164206000001,1283.0094999,57045.061970000002,31968.709108999999,5466.5245100000002,21356.368259999999,3053.2304963000001]
[5009,"2012-04-26","KW60MN03 ",5028120.6155174319,1450884.1016210818,1034670.4715088542,71536.712319298618,344676.9177929291,"Summer",68585.598526000002,43818.067861000003,71893.866232999993,1379.9749672999999,45280.372930999998,30632.942306000001,6060.4771557000004,7467.6597125999997,3053.2304963000001]
[5012,"2012-04-28","KW60MN03 ",5007988.9735430451,1450017.0666558784,1024187.5433031528,75052.35260933805,350777.1707433876,"Summer",87661.537458000006,48601.445162000004,59895.806212000003,1149.6768437999999,56269.869280999999,24524.381709000001,5623.6766146999998,7467.6597125999997,3053.2304963000001]
[5016,"2012-05-21","KW60MN04 ",5205136.6004030537,1446576.4843580998,1038672.698343732,85327.243648753138,322576.5423656145,"Summer",77637.098742000002,42976.302847999999,55038.820036999998,1056.4488719000001,56133.070571999997,29752.076412999999,4783.6512212999996,21356.368259999999,3053.2304963000001]
[5020,"2012-04-29","KW60MN06 ",4945840.6387475282,1443236.9393902647,1020340.3204124593,75201.450884282051,347695.16809352319,"Summer",78222.309607999996,42643.910142000001,57310.702211999997,1100.0567719000001,54993.081323999999,24484.283573000001,5289.6329533999997,7467.6597125999997,2493.0475121999998]
[5023,"2012-05-27","KW60MN05 ",5001919.4615696138,1442208.6674769311,1046631.7591296572,81642.514684527312,313934.39366274665,"Summer",78145.236776999998,48941.865450999998,55033.336439999999,1056.3436164,55768.274012000002,26783.890447999998,4719.9449357000003,19058.421963000001,3053.2304963000001]
[5024,"2011-10-16","KW60MN04 ",4879865.1659879591,1440933.4077090526,1048222.7366240282,53499.223357999996,339211.44772702432,"Summer",98904.843989000001,41283.673499999997,79376.211324000004,1523.5956885000001,55084.280463000003,30119.320378,5237.4622268000003,19170.103298999999,3053.2304963000001]
[5027,"2012-04-22","KW60MN01 ",4975434.5028788131,1439552.3133879306,1036950.7225612983,68996.133098131875,333605.45772850054,"Summer",96330.026404000004,48926.901303999999,56320.620490000001,1081.0525359999999,34336.476150000002,25528.031909000001,5254.1019408000002,7467.6597125999997,3053.2304963000001]
[5030,"2011-09-21","KW60MN03 ",5082687.0342120565,1436933.8735617378,1025035.1939457094,63212.959932000005,348685.71968402847,"Summer",76740.438177999997,41086.274659000002,73953.467707999996,1419.5082213000001,55859.473151999999,34988.906142,6188.2266200000004,30217.333901999998,3053.2304963000001]
[5034,"2012-04-26","KW60MN04 ",5036863.6882278305,1435316.6392446642,1026567.7546479324,72898.790108171437,335850.09448856051,"Summer",67738.263726000005,40403.520380000002,71574.654995999997,1373.847831,45553.970350000003,30394.155478000001,5947.9064159,7467.6597125999997,3053.2304963000001]
[5037,"2011-09-05","KW60MN03 ",5355690.674116971,1433913.4436544033,1025297.8344405426,82586.269084999993,326029.34012886061,"Summer",78588.977876000004,42904.845148,55249.218595999999,1060.4873909,54491.486054000001,21739.507838000001,5192.7488137999999,38504.396870999997,3053.2304963000001]
[5041,"2011-09-17","KW60MN04 ",5159732.4042592626,1432204.2451597359,1017324.8999011851,71079.978099,343799.36715955066,"Summer",74215.889628999998,45445.191103999998,72646.026574999996,1394.4123942000001,54765.083473999999,29972.357408,5661.7012989000004,30217.333901999998,3053.2304963000001]
[5045,"2012-05-20","KW60MN03 ",5009054.0384193184,1431018.5991333495,1019188.8914865339,88685.856290002019,323143.85135681345,"Summer",65721.143108999997,43509.396373000003,58611.993404000001,1125.0345531999999,55084.280463000003,29871.756377999998,5478.2005817999998,21356.368259999999,3053.2304963000001]
[5048,"2011-09-05","KW60MN05 ",5348069.8039867198,1427186.3355875437,1011885.5706166383,84237.673399999985,331063.09157090535,"Summer",76192.375314000004,44356.611660000002,57994.02289,1113.1728482000001,54537.085623999999,20431.886723,5292.3737922999999,36402.145307999999,3053.2304963000001]
[5049,"2012-05-14","KW60MN04 ",5020815.6372128157,1424298.1077189338,1029622.4625864058,84817.901716138658,309857.74341638933,"Summer",67509.196744999994,41759.336708000003,64566.690678999999,1239.3326652999999,55905.072721999997,27380.541300000001,4967.3212314000002,21356.368259999999,3053.2304963000001]
[5052,"2012-05-27","KW60MN03 ",4988233.7407891545,1422642.5519566,1027889.7260427943,79777.062519764047,314975.76339404174,"Summer",87275.547988999999,43689.674739000002,57825.784927000001,1109.9435854999999,55813.873582,27540.381672,4538.5282029999998,18384.247273000001,3053.2304963000001]
[5056,"2012-05-28","KW60MN06 ",4979136.5447359625,1419919.7857855023,1036907.5164200135,79027.655830532007,303984.61353495682,"Summer",78848.536955000003,41587.439422000003,53920.751477999998,1034.9879782,55403.477453,24635.785853000001,4583.7240981000004,19312.161633,762.88356425999996]
[5059,"2011-09-23","KW60MN04 ",5208721.0090515744,1418114.7449740702,1007150.2698235542,67764.644445999991,343199.83070451597,"Summer",80058.268798000005,41781.041389999999,74591.418470000004,1431.7534396000001,55449.077022999998,36885.662480999999,6047.4839916999999,30217.333901999998,3053.2304963000001]
[5062,"2012-04-30","KW60MN05 ",5032761.7172180619,1416955.3448707822,1007098.0443950107,72651.265023548884,337206.03545222268,"Summer",80021.406958000007,42944.772572000002,69562.635018000001,1335.2278854000001,54537.085623999999,28637.941063999999,5316.5791673000003,7467.6597125999997,3053.2304963000001]
[5067,"2012-05-20","KW60MN04 ",5042346.5026287585,1415048.7745628809,1007506.2163704833,84790.140561554363,322752.41763084318,"Summer",65648.988016000003,41972.107824999999,57849.068884,1110.3905119999999,55221.079172999998,29345.564050000001,5475.3141529000004,21356.368259999999,3053.2304963000001]
[5070,"2012-04-21","KW60MN05 ",4937797.9372040108,1409941.8829735084,1005857.9208893812,70086.328599894041,333997.63348423323,"Summer",87872.396089000002,45704.522523,59235.198222999999,1136.9967288,35476.465398,27154.441849999999,5584.3280661999997,7467.6597125999997,3053.2304963000001]
[5073,"2011-09-04","KW60MN06 ",5282335.8093011975,1408725.6145898213,992474.97979894816,78789.941770999998,337460.69301987317,"Summer",76228.389269000007,47879.277635999999,58581.568887000001,1124.4505664000001,55084.280463000003,23332.786822999999,5381.0286453999997,39129.246618999998,3053.2304963000001]
[5074,"2012-05-29","KW60MN03 ",4997243.3261007275,1408185.9308052412,1020936.4417730058,78963.754311598357,308285.73472063709,"Summer",75614.996794000006,39832.859822999999,52612.238542999999,1009.8715783,55540.276163000002,27490.992881999999,4515.6974792999999,23916.913466000002,3053.2304963000001]
[5077,"2011-09-24","KW60MN03 ",5211919.1978737134,1406844.2936341802,994318.7105960981,65667.258073999998,346858.32496408204,"Summer",72042.842789999995,47333.495194000003,82232.125883000001,1578.4138644,55768.274012000002,33592.483204999997,5822.2307793999998,30217.333901999998,3053.2304963000001]
[5081,"2011-09-04","KW60MN03 ",5268351.2745236373,1399674.8250538837,992148.01293246937,77046.382083999997,330480.43003741448,"Summer",74889.566793000005,45209.987424999999,56135.530184000003,1077.4997992000001,55449.077022999998,24164.366969999999,5187.3653268999997,40165.535674999999,3053.2304963000001]
[5083,"2011-09-30","KW60MN04 ",5240870.9708769247,1398841.2742999345,990428.23260623938,64535.162763,343877.87893069524,"Summer",86665.494065000006,40590.240415,79262.374131000004,1521.4106276,56041.871432,35527.371712,5890.2658640999998,30217.333901999998,3053.2304963000001]
[5088,"2012-04-21","KW60MN03 ",4792467.6260971101,1390956.5952354297,996768.01501028403,68749.305058959537,325439.27516618598,"Summer",90003.737540000002,45791.797580999999,62656.277826999998,1202.6630292,35613.264108000003,26805.490957999998,5464.7181635999996,7467.6597125999997,3053.2304963000001]
[5092,"2012-04-25","KW60MN02 ",4992291.1382069467,1383726.7307602526,990738.4245984843,70357.497633419262,322630.80852834909,"Summer",91771.664483999994,43858.294150000002,71943.753584999999,1380.9325357,41951.604326000001,31968.652191000001,5985.8024386999996,7467.6597125999997,3053.2304963000001]
[5095,"2012-05-13","KW60MN05 ",4970625.456477101,1379670.4537646419,987352.15273716534,84277.777494673617,308040.523532803,"Summer",75260.898434000002,43571.388401999997,55194.438665000001,1059.4359113,53625.094226000001,23924.216394999999,4980.9526261999999,21356.368259999999,3053.2304963000001]
[5096,"2011-09-24","KW60MN04 ",5165971.162329087,1376922.7981935451,967465.3336196834,65964.521588000003,343492.9429858618,"Summer",75508.587109999993,44037.39473,83364.098354000002,1600.1416383000001,55677.074871999997,33061.828594999999,5787.9796150000002,30217.333901999998,3053.2304963000001]
[5099,"2012-04-21","KW60MN04 ",4826250.509269096,1375262.6181315086,984003.6772635848,65657.14468312313,325601.79618480057,"Summer",90895.162408000004,45180.486539999998,61094.916598999996,1172.6933041,35704.463247,26542.131114,5397.8274947999998,7467.6597125999997,3053.2304963000001]
[5104,"2011-09-24","KW60MN05 ",5169263.5457081385,1369903.7454410926,964837.04856906598,64807.92912999999,340258.76774202666,"Summer",73462.341610999996,43087.866325000003,85732.531675999999,1645.6028002,55722.674442000003,32533.023759,5740.1580004999996,30217.333901999998,3053.2304963000001]
[5107,"2012-04-22","KW60MN06 ",4863810.1852549519,1361849.436063207,975056.14845910994,69829.941802649584,316963.34580144758,"Summer",87381.756299999994,41762.588876000002,57317.360496000001,1100.1845751000001,34199.677439999999,25766.505433999999,5505.8358134,7467.6597125999997,2957.1809536999999]
[5110,"2012-05-28","KW60MN03 ",4849022.5865772888,1357702.6349910502,979334.55472265172,75959.087131406835,302408.99313699175,"Summer",81809.333411,40148.070995000002,52324.704823,1004.3524797,55722.674442000003,26051.510059,4574.1895709,20315.728465,3053.2304963000001]
[5113,"2012-04-25","KW60MN04 ",4947366.9338975912,1347821.0098576322,954600.14165427885,68448.006332660851,324772.86187069252,"Summer",74815.472162000005,41987.717905999998,68695.589221000002,1318.5852765,41404.409486999997,31167.780185,5918.1855059,7467.6597125999997,3053.2304963000001]
[5117,"2012-05-28","KW60MN04 ",4854941.4613131871,1342458.1960578659,973433.40324993641,73979.061909706215,295045.73089822329,"Summer",82194.676366999993,41633.506436000003,53594.643688999997,1028.7284652999999,55631.475301999999,25560.910416999999,4607.7280155999997,19661.651651,3053.2304963000001]
[5120,"2012-04-30","KW60MN04 ",4851892.7156965462,1339468.2930928995,944622.52744043421,69966.62124484824,324879.14440761699,"Summer",89149.280497999993,42009.236198999999,64949.850609000001,1246.6872719999999,54628.284764000004,27899.981518000001,4948.4011526000004,7467.6597125999997,3053.2304963000001]
[5121,"2012-04-24","KW60MN04 ",4962220.4193525445,1337871.4573270488,945603.9600888209,65074.698428221098,327192.79881000682,"Summer",70814.605836000002,42966.490107999998,71335.190675999998,1369.2514059,39306.829271000002,33136.626814000003,5833.4920857999996,7467.6597125999997,3053.2304963000001]
[5125,"2011-09-18","KW60MN05 ",4964252.6146666612,1327432.2805142934,929561.73503869446,70409.375303000008,327461.17017259897,"Summer",76038.505216000005,42445.563286999997,66172.138852999997,1270.1486222999999,54901.882184000002,27940.975858000002,5247.1931330999996,30217.333901999998,3053.2304963000001]
[5128,"2011-09-26","KW60MN02 ",5157046.9891155176,1322963.4198381598,943300.9068293575,64302.664900000011,315359.84810880246,"Summer",67846.390379000004,40917.624718999999,80249.680697999996,1540.3615955,56452.267561000001,30975.916377000001,5537.7998432000004,30217.333901999998,3053.2304963000001]
[5132,"2012-04-22","KW60MN03 ",4743177.0577612147,1302305.2425554544,932582.65970898687,64617.526037001611,305105.05680946581,"Summer",87652.942014999993,44178.19397,56658.341721999997,1087.5349644999999,34062.878729999997,25270.530959,5167.0062667000002,7467.6597125999997,3053.2304963000001]
[5135,"2012-04-23","KW60MN03 ",4798907.695604709,1285087.3020585452,914843.00255800795,61982.134564768639,308262.16493576858,"Summer",68338.015836000006,43348.921842000003,61993.305764999997,1189.9375368000001,36297.257656000002,29245.923912999999,5312.8361203000004,7467.6597125999997,3053.2304963000001]
[2,"2011-12-13","KW60MN09 ",8343372.9327268722,3509840.4893995812,2623509.1396399774,139147.81617000003,747183.53358960385,"Winter",327636.82569999999,79136.950024000005,139125.13970999999,2670.4532690999999,58002.652937999999,35047.423526999999,10569.917600999999,816.33821894000005,0]
[6,"2011-12-14","KW60MN09 ",8352067.2691990854,3423488.261281075,2567037.1376531702,131938.78311999998,724512.34050790477,"Winter",289849.71896000003,78674.147658999995,132917.25425,2551.2953078,56771.464549999997,35719.242376000002,10416.721851,816.33821894000005,0]
[9,"2012-01-12","KW60MN09 ",8290910.4312970089,3359011.0193118881,2480437.1347607877,137559.12185306472,741014.76269803592,"Winter",341189.31774999999,82415.354777,135460.40848000001,2600.1101699999999,42863.595724999999,35194.882846,10937.315178999999,742.46966563000001,0]
[10,"2012-01-13","KW60MN08 ",8353540.7672087075,3350304.4115037159,2434237.3099151151,144866.85534540995,771200.24624319095,"Winter",371962.09740000003,74359.956548000002,126087.16607000001,2420.1944059000002,57501.057669000002,36594.125898999999,9638.1274592999998,742.46966563000001,0]
[14,"2011-12-13","KW60MN18 ",8690561.5791128818,3322853.8181044124,2409757.7539062705,129341.883548,783754.18065014191,"Winter",364640.80379999999,83108.966218000001,128055.16387,2457.9693627000001,57136.261109999999,33785.514009999999,8854.4949371999992,816.33821894000005,3053.2304963000001]
[17,"2011-12-13","KW60MN20 ",8462320.3498597629,3285921.1306761224,2407448.8411860499,123249.02277,755223.26672007237,"Winter",356142.13581000001,79388.515767999997,125689.99451999999,2412.5708515000001,54719.483904000001,33322.532721000003,8412.4395707000003,816.33821894000005,3053.2304963000001]
[21,"2012-01-16","KW60MN09 ",8022348.784030173,3265796.7425754974,2407831.6007020669,141784.28723310109,716180.85464032902,"Winter",346429.59193,69818.163537999993,112232.56266,2154.2606498,57911.453798000002,34830.518627999998,7655.7041670999997,742.46966563000001,0]
[24,"2011-12-12","KW60MN08 ",8025468.7933707554,3248779.4676377061,2318470.8985246955,123843.32186,806465.24725301052,"Winter",399181.88526000001,74160.894665999993,120185.73691000001,2306.9187545999998,58641.046917,34698.434799000002,9549.3913463000008,816.33821894000005,0]
[28,"2012-01-12","KW60MN10 ",8172137.6177219385,3233800.7402299778,2393311.2154497067,130971.32522645364,709518.19955381751,"Winter",283459.21333,88740.751052000007,132666.02226999999,2546.4730070999999,46055.565619000001,36425.002968000001,10945.177100999999,742.46966563000001,0]
[31,"2012-01-16","KW60MN19 ",8387549.5790474704,3225068.2348519177,2386201.840653243,138891.14343751932,699975.2507611555,"Winter",359505.64627999999,70607.615898000004,115180.26416999999,2210.8406405000001,57090.661540000001,33502.734386999997,8430.4387000999996,742.46966563000001,3053.2304963000001]
[35,"2012-03-07","KW60MN08 ",7784734.1468034443,3220060.4825317329,2421164.5235052765,144399.51614756737,654496.4428788888,"Winter",312049.42862000002,66363.002527999997,113187.17088999999,2172.5839857000001,54445.886484000002,34888.684098999998,8806.7748978,1354.3257784,0]
[36,"2011-12-06","KW60MN09 ",8206033.9173410069,3218638.5719325254,2411332.866384292,124465.24059999999,682840.4649482331,"Winter",324868.29797000001,78307.552565000005,138135.50821999999,2651.4576754,59051.443046,35714.908860000003,10886.324418,816.33821894000005,0]
[39,"2011-12-14","KW60MN19 ",8420203.6893587578,3204286.4477002369,2344073.2541548256,129774.29113,730438.90241541155,"Winter",357134.72405999998,78344.431884999998,122382.76589,2349.0898766,56406.667991000002,33878.841133000002,8762.1224306999993,816.33821894000005,3053.2304963000001]
[42,"2011-12-12","KW60MN09 ",7991345.2136160638,3201036.783495774,2298945.2424195758,122808.58875000001,779282.95232619822,"Winter",322622.76749,78174.358319000006,126205.29702,2422.4618836999998,58413.049068,35044.911460000003,9564.4041634000005,816.33821894000005,0]
[46,"2011-12-08","KW60MN08 ",8164675.0362633113,3194139.0953126205,2332245.8512765928,126978.83501999998,734914.40901602781,"Winter",350155.39345999999,70872.611294000002,132476.01527,2542.8258962999998,45736.368629999997,35424.701343000001,10967.137665,816.33821894000005,0]
[49,"2011-12-05","KW60MN09 ",8124300.4243062623,3159356.2883550925,2357857.7593909157,122006.04263999999,679492.48632417666,"Winter",326602.04452,76552.627502999996,132824.63871,2549.5175883000002,57957.053368000001,34646.339187999998,10442.603218,816.33821894000005,0]
[52,"2011-12-12","KW60MN20 ",8197053.3503083773,3153247.1852699481,2275016.9464673526,121017.80679,757212.43201259593,"Winter",374127.56624999997,73181.936075999998,120311.48862,2309.3325101999999,57729.055519000001,32586.965660999998,8483.8672671000004,816.33821894000005,3053.2304963000001]
[57,"2011-12-22","KW60MN07 ",7996803.0456619682,3140180.9659411288,2297518.4491497176,119381.49812,723281.01867141097,"Winter",341235.69711000001,64607.997126000002,110663.89139,2124.1506110999999,56953.862829999998,35878.392548999997,9326.0477482999995,816.33821894000005,2085.9501132]
[60,"2012-02-28","KW60MN09 ",7897720.1412905073,3136387.8988988055,2332109.5569999013,133080.88707541529,671197.45482348895,"Winter",303159.67323999997,75204.536678999997,126354.7231,2425.3300597000002,52849.901536999998,35053.626861999997,9506.3708532000001,747.06969021999998,0]
[61,"2012-02-15","KW60MN08 ",7899599.960314705,3134748.5473424485,2291232.2898636553,151802.07581816573,691714.18166062748,"Winter",323653.31984000001,67562.276169999997,115923.05572,2225.0982371,56771.464549999997,34986.861338000002,9098.1180282999994,747.06969021999998,0]
[64,"2011-12-14","KW60MN17 ",8384688.9835504312,3131267.9747206504,2288127.7806740794,114160.00402000001,728980.19002657081,"Winter",336986.31542,89672.040645999994,126368.52056999999,2425.5948966999999,56361.068421000004,35576.980597000002,9206.1483561000005,816.33821894000005,3053.2304963000001]
[67,"2012-02-28","KW60MN07 ",7835566.2861307468,3125179.7971008467,2278917.0618977626,131096.33135286556,715166.40385021805,"Winter",313238.46145,62693.347909999997,105938.53415000001,2033.4492058999999,53625.094226000001,34296.415133000002,9028.2105744,747.06969021999998,0]
[71,"2011-12-08","KW60MN09 ",8068077.508238106,3117258.5229786457,2300635.7425614833,119109.58358999999,697513.19682716229,"Winter",325193.81198,82865.759057999996,141134.24892000001,2709.0173436999999,43912.385833,35276.553395000003,10968.153417,816.33821894000005,0]
[73,"2012-01-13","KW60MN07 ",8062150.738665361,3115068.31973411,2239288.4868294918,126778.1150974404,749001.71780717804,"Winter",380189.45249,67814.907223999995,111371.3655,2137.7303032,57592.256808999999,36307.389370999997,9213.8071273000005,742.46966563000001,2085.9501132]
[79,"2011-12-14","KW60MN12 ",8000382.6324276496,3099178.0359171294,2296697.5766482647,110036.51126999999,692443.94799886481,"Winter",295513.48035999999,86405.874903999997,136512.22500999999,2620.2993818,56315.468850999998,36181.649806000001,10190.391942,816.33821894000005,0]
[82,"2012-02-28","KW60MN19 ",8051321.6533141145,3093295.9998328337,2292292.3745820816,139889.28116731136,661114.34408344107,"Winter",310548.1618,81759.194678,107612.41929000001,2065.5787839,56589.066271000003,32977.569703000001,7858.0335443000004,747.06969021999998,3053.2304963000001]
[85,"2012-02-03","KW60MN08 ",7861528.3156745229,3089184.4626222108,2255409.5529065481,146113.35792780048,687661.5517878622,"Winter",340228.68419,68042.195796999993,118101.65588999999,2266.9156251999998,58413.049068,35090.170157,9148.1184314000002,747.06969021999998,0]
[86,"2011-12-05","KW60MN19 ",8537869.2283491436,3085033.7336316952,2304864.7467132541,120805.92447100001,659363.06244744081,"Winter",342068.82981999998,69833.132505000001,116974.60149,2245.2822517,57592.256808999999,34578.941621999998,8089.1053241999998,816.33821894000005,3053.2304963000001]
[89,"2012-03-07","KW60MN07 ",7604229.1560167084,3083200.8388306163,2295781.0826296057,128000.77487313078,659418.98132787982,"Winter",328853.57380000001,56718.428898999999,102677.62218999999,1970.8572615,54172.289064999997,34016.191809999997,8538.7280444999997,1354.3257784,0]
[93,"2012-01-18","KW60MN08 ",7986169.7133826232,3075563.0789215253,2304780.5867093033,130688.22846166296,640094.2637505593,"Winter",285662.14815000002,70685.364226999998,118709.56991000001,2278.5842997999998,45371.572070000002,37499.278949,9821.6535710000007,742.46966563000001,0]
[98,"2012-01-18","KW60MN09 ",7962745.2325209565,3065745.3387764315,2308670.3009503353,129630.0603096488,627444.97751644719,"Winter",276326.06562000001,77439.437604999999,123829.67663,2376.8627688000001,46420.362179000003,37125.993312999999,10122.234968000001,742.46966563000001,0]
[100,"2011-12-06","KW60MN19 ",8387542.012923128,3064051.0079193185,2273642.3086602408,125678.16150400002,664730.5377550777,"Winter",304744.52042000002,73377.787567000007,123639.27061000001,2373.2079988,58413.049068,33597.478027999998,8478.1587395000006,816.33821894000005,3053.2304963000001]
[104,"2012-01-24","KW60MN09 ",7900996.6614064649,3058802.2164023216,2244108.5576715884,121598.53381229381,693095.12491843943,"Winter",292541.87335000001,71820.497547000006,120810.30863,2318.9071674000002,56041.871432,36491.127206999998,10370.891111000001,742.46966563000001,0]
[107,"2012-01-16","KW60MN21 ",8044131.0405594287,3056544.5323162647,2251997.072793087,134687.01764639607,669860.44187678141,"Winter",344800.58049000002,69299.177733999997,107195.3063,2057.5724614000001,57501.057669000002,32614.574068999998,7865.0100699000004,742.46966563000001,3053.2304963000001]
[110,"2012-01-11","KW60MN20 ",8123695.312190271,3052797.9584458903,2227050.8808345748,123566.4295402831,702180.64807103237,"Winter",331036.95423999999,75919.425392000005,114049.75023999999,2189.1408627000001,57546.657239,33074.533524999999,8126.3631162000001,742.46966563000001,3053.2304963000001]
[111,"2012-01-27","KW60MN10 ",7846265.8467605365,3052575.9938086965,2292240.0441151853,123638.64902059098,636697.3006729203,"Winter",297543.94458000001,75715.059456999996,121976.13460999999,2341.2847462999998,57592.256808999999,36744.103235000002,9360.4208030000009,742.46966563000001,0]
[114,"2012-01-16","KW60MN13 ",7982533.8506487282,3052061.7300917157,2245810.9979706658,121132.42864160729,685118.30347944295,"Winter",333606.86469000002,72263.862427,111801.1488,2145.9798274999998,57592.256808999999,36896.341755000001,7313.2534636999999,742.46966563000001,0]
[119,"2012-02-16","KW60MN08 ",7819070.9019330442,3044437.4843214611,2254030.3164348267,147408.51341342548,642998.65447320894,"Winter",295193.29742999998,72152.525508999999,113811.45119000001,2184.5668046000001,57136.261109999999,35213.181659000002,9012.7169678999999,747.06969021999998,0]
[122,"2012-01-18","KW60MN19 ",7991649.6070058681,3041475.3073815042,2211854.6002672501,133397.1700290514,696223.53708520241,"Winter",384698.88079000002,73400.019279999993,111151.96686,2133.5190311000001,49840.329922999998,33634.713879000003,8585.6050090000008,742.46966563000001,3053.2304963000001]
[125,"2011-12-07","KW60MN10 ",7932331.3885894204,3036799.6228098804,2263035.1840657275,113004.76932000001,660759.66942415305,"Winter",259927.12513,86443.903086999999,138969.34677,2667.4628839000002,58276.250357999998,36433.516973999998,10950.824683999999,816.33821894000005,0]
[129,"2012-01-18","KW60MN10 ",7929774.5127593121,3034428.4114737567,2275941.9126197174,125391.5169236337,633094.98193040513,"Winter",268977.70327,81918.313068999996,123082.39876,2362.5190590000002,47560.351427000001,37493.872735999998,10245.791068,742.46966563000001,0]
[132,"2011-12-09","KW60MN07 ",7956949.5449959869,3028274.7990075457,2169652.3624583506,114751.16593,743871.27061919507,"Winter",374590.59675999999,67529.462060000005,119520.93277,2294.1580961999998,57592.256808999999,35022.574616999998,8788.3694679,816.33821894000005,1577.0783635]
[133,"2012-01-18","KW60MN11 ",7764261.1799869956,3027854.0425106031,2269124.0210147649,127617.90377211673,631112.11772372143,"Winter",278050.22045999998,81952.121790000005,122693.75994,2355.0592872000002,47013.156587999998,36607.887619000001,10210.747617000001,742.46966563000001,0]
[136,"2012-01-23","KW60MN19 ",8201834.9051170768,3026862.9316796148,2174010.8155929889,128389.15161972275,724462.96446690313,"Winter",313094.99914999999,66689.663771000007,106083.67015999999,2036.2350355000001,57045.061970000002,33617.282440000003,8266.8010180000001,742.46966563000001,3053.2304963000001]
[140,"2011-12-14","KW60MN21 ",7989623.0628547734,3023409.3539979537,2208673.1427564383,114639.34692000001,700096.86432151555,"Winter",362083.15590000001,70932.059754999995,109289.20268,2097.7639927999999,56361.068421000004,33525.365860999998,8335.9940583999996,816.33821894000005,3053.2304963000001]
[144,"2011-12-06","KW60MN20 ",8266588.0700501725,3020459.0235021031,2243990.5079046958,117062.74872999999,659405.76686740702,"Winter",334620.21555000002,78410.052072999999,120174.91164000001,2306.7109678000002,58093.852078000004,33062.041747000003,8346.7610323000008,816.33821894000005,3053.2304963000001]
[147,"2011-12-15","KW60MN08 ",7983761.3823402254,3019289.3920866158,2202728.0921443379,121013.28872,695548.01122227777,"Winter",344819.05381000001,72427.293474000006,115634.53184,2219.5601327999998,42179.602176,36627.685563999999,10072.463109,816.33821894000005,0]
[150,"2011-12-08","KW60MN19 ",8311149.9127441803,3017237.5887625902,2200212.0878054183,117340.40907000001,699685.09188717173,"Winter",334364.93829999998,78145.762063000002,129431.60887,2484.3896923000002,56680.265411,34218.998367,8221.6000435999995,816.33821894000005,3053.2304963000001]
[154,"2011-12-09","KW60MN11 ",7868903.2373711104,3012981.2743004304,2198979.0391491,108075.51492999999,705926.72022133041,"Winter",312498.37362000003,82419.212708999999,136712.67822999999,2624.1470038000002,56406.667991000002,35929.169524999998,9494.2766305000005,816.33821894000005,0]
[157,"2011-12-13","KW60MN22 ",7668727.2613506671,3008925.8456887873,2208681.5317878048,107746.42358,692497.8903209822,"Winter",331637.41645999998,73568.121299999999,117449.18011,2254.3916048999999,54081.089925,32817.669049999997,7941.6181018999996,816.33821894000005,3053.2304963000001]
[161,"2011-12-20","KW60MN10 ",8058256.7530255709,3002494.8503905302,2220266.5631145486,118368.98179000001,663859.30548598163,"Winter",292554.39026999997,78940.939459000001,123712.33869,2374.6105123000002,43365.190993999997,36039.347284000003,9573.7490844999993,816.33821894000005,0]
[162,"2012-01-17","KW60MN07 ",8091611.1676482167,3002038.0030089649,2188662.6613860521,137303.79344096145,676071.5481819514,"Winter",331174.20578000002,65745.312483000002,107670.30611,2066.6898990999998,46465.961748000002,35467.792563000003,9498.2177494000007,742.46966563000001,1984.1757625]
[165,"2011-12-07","KW60MN19 ",8261659.5835745698,2996612.7720152396,2206803.9080300345,118951.55925999999,670857.30472520494,"Winter",309475.60729999997,83566.430785999997,124508.42154,2389.8910148999998,57090.661540000001,33192.543109999999,8688.9679550000001,816.33821894000005,3053.2304963000001]
[169,"2012-01-23","KW60MN18 ",8262039.2815276645,2994411.0285050422,2155342.1867056247,120097.53213453878,718971.30966487841,"Winter",307858.81602000003,69561.690619999994,106220.06961999999,2038.8531703000001,57546.657239,33970.154994999997,8434.2782439000002,742.46966563000001,3053.2304963000001]
[172,"2012-01-24","KW60MN11 ",7799303.0991494562,2992066.6862852913,2202338.9874033146,117050.37791918508,672677.32096279168,"Winter",261479.22271,79867.713940000001,121988.97119,2341.5311396000002,56908.26326,36506.425131999997,10474.700988000001,742.46966563000001,0]
[175,"2011-12-10","KW60MN10 ",7612266.2257796302,2991073.9592709895,2142517.7154774661,122125.324622,726430.91917152342,"Winter",367151.97694999998,65300.376149999996,106756.94123,2049.1582134,57592.256808999999,28536.345546,7524.6721310000003,816.33821894000005,0]
[179,"2011-12-05","KW60MN07 ",8032777.6320827184,2988459.2239367883,2185442.9349045279,112838.80520999999,690177.4838222604,"Winter",347413.79671000002,64917.915493,115222.73905,2211.6559293999999,58413.049068,34238.970207999999,9747.4833440999992,816.33821894000005,1373.5296639999999]
[182,"2012-03-19","KW60MN09 ",7708035.0284679011,2987026.3005601806,2258202.8078637985,133901.36431259674,594922.12838378549,"Winter",211944.32790999999,69651.258585000003,116809.09183,2242.1053578000001,57592.256808999999,35632.828495000002,8889.9599259000006,1354.3257784,0]
[184,"2011-12-21","KW60MN20 ",8217113.6616197163,2985596.826753526,2217940.9020667393,126060.75349800001,641595.17118878639,"Winter",275064.61274000001,66576.935362000004,109363.84918,2099.1968035,56589.066271000003,32593.592137,8889.9853194000007,816.33821894000005,3053.2304963000001]
[187,"2012-01-16","KW60MN17 ",8101174.7380240662,2978505.8477043021,2190275.0813427754,112497.32977892311,675733.43658260349,"Winter",293663.8702,73866.428914999997,112697.44408,2163.183869,57637.856378999997,32628.853511000001,8117.7698524999996,742.46966563000001,3053.2304963000001]
[190,"2011-12-05","KW60MN21 ",8263115.1264760103,2975042.8685612497,2212840.4463755405,111750.79000000001,650451.63218570908,"Winter",331180.19397000002,69054.223979999995,112971.66583,2168.4474492999998,57592.256808999999,32985.615437,7901.9225047999998,816.33821894000005,3053.2304963000001]
[194,"2011-12-15","KW60MN09 ",7916687.8333225828,2973283.2082482618,2190224.0599908167,113037.68344999998,670021.46480744507,"Winter",287512.42601,79090.987452000001,125351.82087,2406.0797389999998,44459.580671999996,36335.433516999998,10146.430186,816.33821894000005,0]
[197,"2012-02-29","KW60MN19 ",7925200.6791078951,2972132.2826341302,2213331.9772681124,138570.30080914107,620230.00455687672,"Winter",260227.65828999999,84092.693797,102259.59632,1962.8334166,57318.659389,31309.825921,7869.2813076000002,747.06969021999998,3053.2304963000001]
[201,"2012-03-02","KW60MN09 ",7548287.1520526893,2968753.0524588106,2230225.4014657056,128827.40752565155,609700.24346745352,"Winter",249550.69717,77259.127103000006,118354.89069,2271.7763693000002,51208.317020000002,34324.226278000002,8917.7813791999997,1354.3257784,0]
[203,"2012-02-29","KW60MN10 ",7704551.483418812,2966079.2086242652,2242007.0650380543,123197.7823184751,600874.36126773595,"Winter",208431.43053000001,68650.397675999993,117090.982,2247.5161306999998,56771.464549999997,35026.099348999996,9304.7304949000008,747.06969021999998,0]
[208,"2012-01-18","KW60MN20 ",7930714.929525095,2961527.354867015,2153803.9255167884,127722.85129735011,680000.57805287663,"Winter",361005.71545999998,72281.770235999997,112952.85245999999,2168.0863340000001,46830.758307999997,32381.322343,8312.9771130999998,742.46966563000001,3053.2304963000001]
[209,"2011-12-14","KW60MN16 ",7910269.9937987588,2957880.9946881295,2166091.3704935648,100298.91924999999,691490.70494456508,"Winter",312280.80609000003,79585.792491999993,130209.03567,2499.3120991999999,55950.672292000003,35782.141473999996,9519.8735866000006,816.33821894000005,2239.4597568999998]
[212,"2011-12-23","KW60MN08 ",7828342.3816053243,2955976.926224343,2139788.540035109,123533.26516999998,692655.12101923395,"Winter",300054.83156999998,70599.766669999997,108874.2798,2089.7997086,55950.672292000003,32141.398432000002,8067.9776779000003,816.33821894000005,0]
[215,"2011-12-08","KW60MN20 ",8205563.6601627795,2953885.0900671887,2149851.7183733946,113839.15131,690194.22038379416,"Winter",349658.58529999998,75472.911179000002,122033.43030000001,2342.3845148999999,57045.061970000002,34053.470143999999,8040.0038624999997,816.33821894000005,3053.2304963000001]
[219,"2011-12-05","KW60MN11 ",7934353.3440226801,2953338.3541712197,2228953.1462399955,106963.03618000001,617422.17175122432,"Winter",240194.05340999999,81660.720209999999,132293.88866999999,2539.3300466000001,57227.460249999996,36113.857742,10401.851239,816.33821894000005,0]
[222,"2012-02-28","KW60MN12 ",7747495.0050173895,2950337.1323412107,2212464.8347306731,123014.82595160934,614857.4716589282,"Winter",236220.53140000001,81322.408045000004,123795.47474000001,2376.2062768000001,53123.498957000003,37130.869129999999,9438.4932110999998,747.06969021999998,0]
[224,"2011-12-06","KW60MN21 ",8069781.5195553908,2948893.7616460007,2186236.4003999177,114338.10754999999,648319.25369608286,"Winter",337318.61251000001,72895.409532999998,116315.81696,2232.6371374,58002.652937999999,33105.522490000003,8072.1422623999997,816.33821894000005,3053.2304963000001]
[230,"2011-12-15","KW60MN19 ",8212433.3353724265,2946370.6121257953,2130812.3768976186,116227.19156999998,699331.04365817714,"Winter",325653.42973999999,79965.491057000007,112336.74881999999,2156.2604627000001,53077.899386999998,33940.424571000003,7853.2070283000003,816.33821894000005,3053.2304963000001]
[233,"2011-12-10","KW60MN11 ",7560922.319601614,2944513.8528022822,2101431.0902565774,113734.56534,729348.19720570475,"Winter",362326.80651999998,72550.946530000001,106867.86008,2051.2872578000001,57227.460249999996,28443.600730999999,7359.3482990000002,816.33821894000005,0]
[234,"2011-12-13","KW60MN14 ",7710587.178759777,2943664.0100996755,2115654.475043484,99872.209950000004,728137.32510619145,"Winter",307162.09756000002,87576.632631,135944.50435999999,2609.4022034,57090.661540000001,36537.681364999997,10203.170104000001,816.33821894000005,0]
[237,"2012-01-12","KW60MN12 ",7788023.1751028392,2943483.4129915321,2166995.8333191043,110580.69740298136,665906.88226944604,"Winter",238843.01076999999,85643.530899999998,132367.70864,2540.7469922999999,56269.869280999999,36433.204455999999,10192.545335999999,742.46966563000001,0]
[240,"2011-12-21","KW60MN21 ",8063912.5976195596,2942500.1917626392,2175065.2931969645,123220.08514,644214.81342567469,"Winter",284424.71162999998,63396.563205999999,108757.89929,2087.5658296000001,56315.468850999998,32528.656953999998,8765.6166174999998,816.33821894000005,3053.2304963000001]
[245,"2012-02-28","KW60MN21 ",7721923.3384726327,2937961.1724687163,2163594.5754472343,130022.97782726398,644343.61919421772,"Winter",313845.60076,76164.803341000006,96224.117878999998,1846.9847411999999,57318.659389,32129.574531999999,7374.6776928999998,747.06969021999998,3053.2304963000001]
[248,"2012-03-23","KW60MN08 ",7302979.3953344552,2936637.9205280663,2202191.7133414317,123485.47669402421,610960.73049261048,"Winter",262885.25073999999,65654.314463999995,115793.72115,2222.6157100999999,56999.462399999997,37003.534607000001,8910.6118611000002,1354.3257784,0]
[252,"2012-01-17","KW60MN13 ",7871823.6226093303,2932338.3493865305,2202339.7107439074,122789.31046977991,607209.32817284297,"Winter",216065.65763,79967.586326999997,132732.87450000001,2547.7562097999999,48882.738954,36848.699897999999,10103.829537,742.46966563000001,0]
[255,"2011-12-12","KW60MN12 ",7756815.418193873,2930832.3963548429,2114962.3574139327,106816.43720000001,709053.60174091009,"Winter",258539.57040999999,81401.877259000001,135180.62792,2594.7398904000001,56862.663690000001,35646.000374000003,9487.5929811000005,816.33821894000005,0]
[258,"2011-12-19","KW60MN10 ",7952959.1685148338,2929188.032483784,2126798.0964382514,115332.92436999999,687057.01167553233,"Winter",302289.39253000001,74079.603338999994,116060.66843999999,2227.7396601999999,55996.271862000001,36884.234539999998,9160.1754101000006,816.33821894000005,0]
[259,"2011-12-01","KW60MN09 ",7614634.1286964528,2928644.9173716516,2166799.1707590343,109936.42571000001,651909.32090261718,"Winter",270395.97265000001,70126.237294999999,139919.4185,2685.6991435999998,57227.460249999996,37087.48702,10457.819186000001,816.33821894000005,0]
[262,"2012-01-17","KW60MN14 ",7802386.6275650244,2924695.9148608814,2191669.4888358931,119786.42378685265,613240.00223813578,"Winter",225533.09888000001,82128.762356000007,131623.83794,2526.4686818,49201.935943999997,37234.980125000002,10118.050069000001,742.46966563000001,0]
[266,"2012-01-27","KW60MN11 ",7691369.6396503858,2923578.7126061576,2205186.8479537885,115395.19263596339,602996.67201640608,"Winter",273745.20685000002,78138.982965000003,120192.88194000001,2307.0559008999999,57729.055519000001,36366.317608999998,9267.3982140999997,742.46966563000001,0]
[270,"2012-03-06","KW60MN07 ",7304264.0369837591,2920885.7822664464,2158893.223450887,118916.04286083199,643076.51595472754,"Winter",273660.19569000002,56427.576845000003,101172.36543000001,1941.96444,56999.462399999997,36178.540090000002,8491.5768265000006,1354.3257784,0]
[273,"2012-01-16","KW60MN15 ",7803175.6617499925,2917871.9831559267,2156419.0475294702,108324.63344024771,653128.30218620854,"Winter",319126.00114000001,71680.945185000004,107364.19327,2060.8141814999999,57181.860679999998,35899.797801000001,7633.1138375,742.46966563000001,0]
[277,"2012-01-10","KW60MN19 ",7916527.9043773673,2914001.6321714511,2159271.3840190284,119193.57877018119,635536.66938224132,"Winter",290181.71928999998,71912.242727999997,111800.14371999999,2145.9605353000002,56725.864979999998,34160.294167,8148.1002132000003,742.46966563000001,3053.2304963000001]
[280,"2012-01-20","KW60MN19 ",7649671.8241936266,2912888.8587481603,2067754.1490108052,122537.39226080864,722597.31747654628,"Winter",341292.69624000002,69659.691082000005,117940.80858,2263.8282233,52120.308419000001,29858.835961000001,7642.3165529999997,742.46966563000001,3053.2304963000001]
[283,"2011-11-29","KW60MN09 ",7718554.770467964,2910063.7523835832,2150728.1420266149,114091.338756,645244.27160096797,"Winter",229588.06033000001,73783.458478999994,129491.04908,2485.5306242000001,56999.462399999997,36735.817793000002,10834.703890000001,4955.8928413000003,0]
[284,"2012-03-01","KW60MN10 ",7644783.6704670908,2909282.8944181586,2197839.8739403975,119032.53695769308,592410.48352006753,"Winter",211937.48123,74536.654959000007,117741.02125000001,2259.9933827,56634.665841000002,34741.581703999997,9573.6898314999999,1354.3257784,0]
[287,"2012-01-11","KW60MN12 ",7682022.1853222232,2908057.035872044,2153499.0423124302,112265.45898441302,642292.53457520052,"Winter",238182.22148000001,77406.445139000003,131399.86652000001,2522.169637,58276.250357999998,35226.733847000003,10114.169895000001,742.46966563000001,0]
[292,"2012-02-07","KW60MN09 ",7809274.4121882627,2903308.5576150166,2140214.0343593373,117054.46591085081,646040.05734482827,"Winter",266279.31690999999,70865.714898999999,119027.30274,2284.6830586000001,56224.269711000001,33294.959041000002,10091.477991,747.06969021999998,0]
[295,"2012-01-15","KW60MN18 ",7588571.5955885816,2899216.1764063514,2144054.8044292312,123388.33610101286,631773.03587610729,"Winter",300203.49776,59646.730775000004,88668.120809999993,1701.9502987000001,55585.875732,26104.553877999999,6989.7566963999998,742.46966563000001,3053.2304963000001]
[298,"2012-02-15","KW60MN10 ",7551253.2663082452,2898094.2807191079,2158050.1883183056,132810.34310914058,607233.74929166166,"Winter",246546.77510999999,75156.618629000004,127179.13658999999,2441.1543578000001,48198.745405000001,35994.520283999998,9521.4361521999999,747.06969021999998,0]
[302,"2012-01-15","KW60MN19 ",7575570.8629512936,2894038.1645179032,2151019.285824128,123458.2644977707,619560.6141960047,"Winter",262103.19256,60070.282180000002,86497.464187000005,1660.2853841000001,55859.473151999999,26642.215048999999,6933.8496949,742.46966563000001,3053.2304963000001]
[305,"2012-03-19","KW60MN10 ",7637733.1393823307,2891919.4665435473,2207045.1300515393,124856.64957700203,560017.68691500602,"Winter",205527.13508000001,69046.140159000002,118792.37078,2280.1736304999999,57318.659389,35919.592784,8715.3402692,1354.3257784,0]
[306,"2012-01-10","KW60MN20 ",7840309.9144350635,2891675.6379945725,2137777.4783591069,117391.92009837284,636506.23953709297,"Winter",279789.92340000003,72336.234396999993,103590.98305,1988.3888701000001,56862.663690000001,33484.977007000001,7835.6345158000004,742.46966563000001,3053.2304963000001]
[312,"2012-02-06","KW60MN07 ",7833328.9535974618,2890189.6609010017,2093599.0559702977,117274.5611454421,679316.04378526169,"Winter",320766.75579000002,64649.335321999999,102646.99535,1970.2693910999999,55175.479603,30978.949401999998,8623.1048888999994,747.06969021999998,966.43226404999996]
[313,"2012-01-09","KW60MN19 ",7929881.3183500348,2889599.0851032571,2118570.7010946949,128613.50222548423,642414.88178307808,"Winter",278870.87864000001,64112.666662000003,110792.92234999999,2126.6273105999999,53533.895085999997,33535.550770000002,7912.2425477999996,742.46966563000001,3053.2304963000001]
[317,"2012-01-03","KW60MN08 ",7677197.4934308371,2886753.5337916007,2079397.8838628496,122028.13208335223,685327.51784539851,"Winter",331419.06464,64181.121248000003,104875.34381999999,2013.0416785,58185.051218000001,33870.118949999996,9576.2478343000002,742.46966563000001,0]
[320,"2012-01-09","KW60MN11 ",7731720.6584676486,2884527.6997872014,2137115.1560720108,123399.85367221975,624012.69004297047,"Winter",219101.61916999999,74399.035579999996,124432.75055,2388.4385394999999,53397.096376000001,36859.107392999998,9249.1959344000006,742.46966563000001,0]
[323,"2011-12-16","KW60MN10 ",7786900.7839293387,2881855.030106158,2093901.151828038,116571.89607,671381.9822081204,"Winter",304498.87727,85686.448581999997,130203.57389,2499.2072624000002,58504.248206999997,36706.850005,9157.5547700000006,816.33821894000005,0]
[327,"2012-01-19","KW60MN10 ",7805136.9396615811,2879643.3216286628,2048583.4893559713,122694.18669094422,708365.64558174729,"Winter",303786.88626,77715.143943000003,126590.50547,2429.8558111000002,47013.156587999998,37173.118449000001,10304.481232,742.46966563000001,0]
[330,"2011-12-08","KW60MN11 ",7760145.1224641595,2878917.2246333295,2149032.5131797744,106378.77824,623505.93321355514,"Winter",266659.19099999999,88756.435045999999,137551.89266000001,2640.2554003999999,42498.799164999997,35651.295292000003,10310.291334,816.33821894000005,0]
[333,"2012-01-18","KW60MN07 ",7759562.685159334,2877962.7854365767,2138291.6550418586,120701.32003906158,618969.8103556569,"Winter",326743.52487999998,60732.283003999997,108044.34138,2073.8693613999999,45234.773361,36994.901193999998,9392.8639292999997,742.46966563000001,1933.2885876]
[335,"2012-01-19","KW60MN08 ",7761721.1344042243,2875522.0464268471,2035460.9975649705,126854.00776469456,713207.04109718173,"Winter",304276.97492000001,68821.938253,124924.6174,2397.8797334999999,52621.903687999999,36582.861833000003,9999.3695788999994,742.46966563000001,0]
[338,"2011-11-08","KW60MN09 ",7613542.2489827704,2874621.0769456299,2110411.7961341725,134723.67444899998,629485.6063624575,"Winter",276367.38945999998,70062.627217000001,138543.92749,2659.2971253999999,57592.256808999999,39085.815193000002,10396.081767,4955.8928413000003,0]
[342,"2011-12-13","KW60MN16 ",7863918.0294667976,2872586.9831171986,2041961.0835734131,95925.26718000001,734700.63236378541,"Winter",309092.08730000001,91607.952674,133488.49770000001,2562.2601049999998,57455.458099000003,34921.897609,9413.7681090000005,816.33821894000005,2239.4597568999998]
[345,"2012-01-23","KW60MN11 ",7735981.8560097069,2870048.7196178101,2107938.341270755,116776.58952273961,645333.78882431576,"Winter",278804.44678,74443.106945000007,118238.30336999999,2269.5385209000001,57592.256808999999,36702.823393999999,9535.6583764000006,742.46966563000001,0]
[348,"2012-03-07","KW60MN10 ",7440146.2130945213,2867935.1970344884,2173880.4601556757,118738.14726884996,575316.58960996266,"Winter",203421.03943,75850.337725000005,120078.30997,2304.8567361,53898.691644999999,36573.166333000001,9474.4152883000006,1354.3257784,0]
[350,"2012-01-20","KW60MN17 ",7567701.594900975,2867179.1216994366,2035329.7676793775,116132.41179737631,715716.94222268288,"Winter",325362.28691000002,83328.220780000003,117924.44173000001,2263.5140679000001,57318.659389,31184.283170999999,7875.1066461999999,742.46966563000001,3053.2304963000001]
[356,"2012-02-13","KW60MN08 ",7568351.2462079525,2865300.1973616625,2125683.1998923821,123240.62424784622,616376.3732214343,"Winter",272826.99937999999,62745.352057999997,111843.49622,2146.7926699,56725.864979999998,36407.120679,8671.7272539999994,747.06969021999998,0]
[357,"2012-03-02","KW60MN10 ",7400341.0945063224,2865277.7195551535,2144956.2896556193,123855.80223165499,596465.62766787945,"Winter",234746.49231999999,81793.472586000004,116559.92985,2237.3227900000002,48882.738954,34732.587817,9255.3446218999998,1354.3257784,0]
[360,"2012-01-17","KW60MN16 ",7724060.0181828439,2862394.46145734,2139609.2528612176,115409.99525219864,607375.21334392403,"Winter",243585.53352,76851.780295999997,123049.96739999999,2361.8965515999998,48882.738954,35464.736938000002,9309.7550816999992,742.46966563000001,916.39320871999996]
[363,"2012-02-03","KW60MN07 ",7657319.1264308719,2860303.4700079467,2067475.543255517,129916.80075197709,662911.1260004529,"Winter",305946.70607999997,67838.578632000004,106855.26865,2051.0455701999999,58002.652937999999,34798.139042000003,8782.6778689999992,747.06969021999998,1169.9809634999999]
[367,"2011-12-13","KW60MN15 ",7676476.9327413579,2858462.5008279956,2039260.0343717532,99683.44690000001,719519.01955624251,"Winter",295538.56718000001,89908.009164000003,135221.34031,2595.5213490000001,56634.665841000002,36656.640929000001,9799.0632415,816.33821894000005,0]
[370,"2011-11-18","KW60MN19 ",7727710.7112308759,2856550.6198607255,2105499.1586706717,121692.24494399999,629359.21624605334,"Winter",273754.27922999999,72245.334392999997,124966.63825,2398.6863075000001,57045.061970000002,36983.271451000001,7078.4318659,4955.8928413000003,3053.2304963000001]
[375,"2011-11-02","KW60MN09 ",7458097.3151477911,2854528.7043123809,2111713.8668137644,116465.792277,626349.0452216164,"Winter",224072.59417999999,72755.076264999996,136990.72466000001,2629.4839975,53442.695946,42308.173121,10570.953669,4955.8928413000003,0]
[378,"2012-01-31","KW60MN10 ",7686845.9362306818,2852655.3877237346,2106613.0344508523,124929.25951788505,621113.09375499736,"Winter",251771.37400000001,72140.193302999993,123198.75585,2364.7524883000001,54628.284764000004,37109.128993999999,9260.6536199999991,742.46966563000001,0]
[381,"2012-02-08","KW60MN08 ",7713900.7075845944,2851330.2761545819,2093804.8934660247,124516.17829176701,633009.20439679048,"Winter",255963.62937000001,68311.613112000006,117684.67564,2258.9118506,50113.927342000003,34698.771342,9308.7342511999996,747.06969021999998,0]
[382,"2012-02-29","KW60MN21 ",7504842.3751794687,2851242.9718797454,2115871.9273997773,121087.32880177585,614283.71567819233,"Winter",268022.59156999999,71288.713564999998,97015.755753000005,1862.1799242,57501.057669000002,30565.711205,7396.0372696000004,747.06969021999998,3053.2304963000001]
[385,"2012-01-24","KW60MN14 ",7562191.1182146315,2847469.030174355,2094146.3793559761,104151.1658214838,649171.48499689531,"Winter",268025.63335999998,83386.687485000002,126826.60258999999,2434.3876039000002,56361.068421000004,37522.157999000003,10249.06179,742.46966563000001,0]
[388,"2011-12-20","KW60MN20 ",8042160.5659416057,2846678.3342696242,2082290.074458343,116854.35657,647533.90324128116,"Winter",317554.75193000003,70926.366855,107098.78834,2055.7198364999999,42772.396585000002,34603.625577999999,7705.5979156000003,816.33821894000005,3053.2304963000001]
[392,"2012-01-24","KW60MN17 ",7714665.6478681546,2843073.7723963661,2067866.2510255189,106351.40882512456,668856.11254572263,"Winter",260149.66339,81417.318627000001,116875.49566,2243.3799536000001,57136.261109999999,34842.032349000001,8652.9087514999992,742.46966563000001,3053.2304963000001]
[396,"2012-01-14","KW60MN10 ",7450170.7967023132,2842116.5840265984,2067132.9636474962,120863.92611555179,654119.69426355069,"Winter",349594.47451999999,62040.671358,88633.057943000007,1701.2772806,55266.678742999997,27062.618866000001,7076.1972109999997,742.46966563000001,0]
[400,"2012-01-19","KW60MN20 ",7770002.1161280237,2840289.3178293789,1997948.8959688295,121804.28809445653,720536.13376609259,"Winter",341855.58650999999,72743.174683000005,106959.70604999999,2053.0502056,53625.094226000001,33171.374931999999,7688.3504436000003,742.46966563000001,3053.2304963000001]
[403,"2012-01-27","KW60MN19 ",7730180.4798428304,2838757.7707777992,2093074.0528283441,122178.44327316286,623505.2746762922,"Winter",266489.21107000002,69543.111168000003,115996.81,2226.5139221999998,54719.483904000001,32275.803662999999,7531.7011363000001,742.46966563000001,3053.2304963000001]
[406,"2012-02-28","KW60MN16 ",7481150.7767727654,2836542.9148148,2107847.7969613676,115870.30179169709,612824.81606173492,"Winter",242065.47542999999,80025.561350000004,112654.90444,2162.3673370000001,56315.468850999998,35593.560321999998,8320.7560830999992,747.06969021999998,0]
[407,"2012-03-19","KW60MN11 ",7626739.892780249,2836379.5350613901,2161135.8026391855,126127.03976280808,549116.69265939668,"Winter",185255.12586,69535.316571999996,117862.12646,2262.3179504,57181.860679999998,34939.393247,8610.3114896999996,1354.3257784,0]
[410,"2012-03-14","KW60MN10 ",7396735.9643826662,2834887.6080133915,2107066.2996055991,109469.34187222757,618351.96653556509,"Winter",211997.29957999999,81629.527361999993,115975.08013,2226.0968256000001,55038.680892999997,36902.259351000001,9083.8907259999996,1354.3257784,0]
[414,"2012-01-11","KW60MN22 ",7537351.5365420105,2833925.8447336876,2062717.2430356226,105548.41791617262,665660.18378189264,"Winter",341970.81420999998,68718.518047999998,106555.53277000001,2045.2922556999999,57364.258958999999,32747.867226999999,7849.9159917999996,742.46966563000001,3053.2304963000001]
[417,"2012-02-14","KW60MN20 ",7613460.2144561354,2831392.8707970148,2078541.0771795327,124643.66780226069,628208.12581522157,"Winter",249320.94128,76543.097561000002,112397.58361,2157.4281630999999,57045.061970000002,32789.896294999999,7619.6331131999996,747.06969021999998,3053.2304963000001]
[421,"2012-01-24","KW60MN15 ",7529801.8728103423,2829606.6131632729,2075647.2250711932,104100.73756030663,649858.65053177322,"Winter",235359.82120000001,84942.195561999994,122701.05988,2355.1994067000001,56908.26326,37034.291011000001,9905.5547043000006,742.46966563000001,0]
[425,"2011-12-09","KW60MN17 ",7971611.3962059803,2827881.7209596913,2014013.1388872843,100440.31595000002,713428.26612240681,"Winter",314606.18622999999,91675.343557,137071.74134000001,2631.0390812999999,57364.258958999999,33517.757610000001,7902.2069160000001,816.33821894000005,3053.2304963000001]
[428,"2012-01-23","KW60MN07 ",7660242.9454076467,2827008.2090502316,2024041.0378749438,110692.93637522621,692274.23480006179,"Winter",304925.87261999998,63114.105087000004,101019.50784000001,1939.0303974999999,57455.458099000003,33108.845829999998,8453.3947007999996,742.46966563000001,1780.6270629999999]
[431,"2012-01-22","KW60MN19 ",7630085.5900540752,2824445.7381621227,2092263.9370021247,124394.23118633084,607787.56997366739,"Winter",302206.09833000001,64115.660133999998,77681.918550999995,1491.0743938000001,55768.274012000002,25646.702389999999,7044.0994406,742.46966563000001,3053.2304963000001]
[432,"2011-12-16","KW60MN11 ",7739203.2845137613,2824361.2750685611,2056952.1811994864,108318.11534999999,659090.97851907474,"Winter",300701.68374000001,84907.085330999995,129493.37469,2485.5752633000002,58139.451648000002,37029.116205999999,9073.1254448,816.33821894000005,0]
[438,"2012-01-30","KW60MN09 ",7635968.957014,2821758.771684601,2079029.3323524448,132222.25728287172,610507.18204928446,"Winter",212226.68452000001,71800.123296999998,113829.61693,2184.915489,52804.301966999999,34501.195757000001,8868.8373589999992,742.46966563000001,0]
[440,"2012-01-27","KW60MN12 ",7577135.8870451758,2821525.6410141736,2126276.5979706394,109367.25713272466,585881.78591080965,"Winter",243955.47675,75392.622495999996,120278.18824,2308.6933223000001,57683.455949000003,36405.423289999999,8757.0842995000003,742.46966563000001,0]
[443,"2012-01-06","KW60MN18 ",7701224.2919855174,2820735.3349639103,2085832.9187902818,114506.65522308028,620395.76095054823,"Winter",259540.27716999999,69419.024275999996,115146.65054,2210.1954399000001,56087.471001999998,33214.709035,7643.2307301999999,742.46966563000001,3053.2304963000001]
[446,"2011-11-01","KW60MN09 ",7386159.4220149107,2819999.6771087809,2134421.0969219645,114032.089135,571546.49105181638,"Winter",187818.93153,67549.351055000006,133107.75649999999,2554.9519249,41450.009057000003,43340.257677000001,10322.825715999999,4955.8928413000003,0]
[450,"2011-11-29","KW60MN19 ",7884220.4032176491,2817685.8753067283,2073126.8979648075,116457.518991,628101.45835092105,"Winter",272488.58691000001,75262.045729999998,119800.46013000001,2299.5235158,56041.871432,36004.504255,8331.8294750999994,4955.8928413000003,3053.2304963000001]
[453,"2012-01-13","KW60MN20 ",7673296.1717574429,2816617.9512061849,2041472.587128981,113879.44432380365,661265.91975339991,"Winter",317446.85845,76262.016470000002,109529.20186,2102.3706843999998,57227.460249999996,32499.864551999999,7829.8040977999999,742.46966563000001,3053.2304963000001]
[456,"2011-12-19","KW60MN21 ",7949067.8999794712,2815215.9689514609,2032220.680477035,104845.55125,678149.73722442624,"Winter",351518.31709000003,68415.118476999996,108926.49976000001,2090.8020505,57820.254658999998,33621.717797999998,8376.1162712000005,816.33821894000005,3053.2304963000001]
[459,"2012-01-20","KW60MN20 ",7410425.0474919025,2811951.3434592281,1998363.9776372486,112772.41367079964,700814.95215117978,"Winter",329722.40250000003,68675.777113999997,115454.9342,2216.1128256000002,52439.505407999997,29908.608109000001,7288.7941504,742.46966563000001,3053.2304963000001]
[461,"2012-02-02","KW60MN10 ",7482179.7037757067,2811431.2011130503,2086488.2943232406,133190.26822587554,591752.63856393413,"Winter",262343.87557999999,76903.231704000005,126412.08471,2426.4310934,54765.083473999999,35342.045245000001,9761.1959987999999,747.06969021999998,0]
[465,"2011-11-18","KW60MN10 ",7563960.5058172317,2808996.8307939116,2080746.9391315477,116391.72336,611858.16830236383,"Winter",242004.90457000001,72347.766415000006,127611.01458,2449.4440889000002,56224.269711000001,40103.516967000003,8946.5424031999992,4955.8928413000003,0]
[468,"2012-02-06","KW60MN11 ",7655009.4984170282,2806439.6266855821,2068432.5751959532,121153.19841096706,616853.85307866207,"Winter",227703.57027,75417.465261999998,121203.73026,2326.4587434,57090.661540000001,34109.542991000002,9723.2441096000002,747.06969021999998,0]
[471,"2011-11-29","KW60MN20 ",7832612.0172710735,2806098.8180699036,2060184.4539907074,115181.927255,630732.43682419602,"Winter",293380.65510999999,71679.047552000004,118126.55547000001,2267.3935630999999,56406.667991000002,35592.715805,7966.5040310000004,4955.8928413000003,3053.2304963000001]
[475,"2012-01-25","KW60MN08 ",7639975.3811880797,2804841.0866418998,2022984.1981600574,117312.02847319466,664544.86000864778,"Winter",280392.6643,68476.475818999999,113449.02983,2177.6102667,54673.884334000002,36840.120907999997,9454.1747329999998,742.46966563000001,0]
[478,"2012-01-19","KW60MN17 ",7862346.1663344819,2803342.0958084324,1977471.1330272546,115693.48466269381,710177.47811848379,"Winter",339575.49407000002,80954.050289000006,118533.58405999999,2275.2063195000001,48198.745405000001,33483.006564000003,8117.3635508999996,742.46966563000001,3053.2304963000001]
[480,"2011-12-21","KW60MN22 ",7654559.0274204314,2803115.3176501514,2073324.4977922831,114151.18028099999,615639.63957686839,"Winter",296822.63741999998,63677.568777,107483.82329,2063.1104335,56178.670141000002,32005.594691999999,8314.7648370000006,816.33821894000005,3053.2304963000001]
[483,"2012-01-20","KW60MN16 ",7362561.5864961538,2800983.1057035513,1985143.3071432197,111832.88927360445,704006.90928672708,"Winter",283041.0148,78565.905440999995,117254.29799000001,2250.6509179,57364.258958999999,31807.596059,8624.8943055,742.46966563000001,712.84450892999996]
[486,"2012-03-23","KW60MN10 ",7232615.1403015442,2800699.2795467312,2128917.660889375,112628.78010038445,559152.83855697175,"Winter",225097.66707,73146.245788999993,115463.24566,2216.2723608000001,56817.064120000003,38236.570550999997,8566.2887883999992,1354.3257784,0]
[490,"2011-12-01","KW60MN07 ",7509783.4982616194,2798404.18929127,2024810.4169497692,105244.73404,668349.03830150107,"Winter",325283.15795999998,61320.247212000002,120707.71135,2316.9378522000002,57409.858528999997,36733.857228000001,10127.212154000001,816.33821894000005,1169.9809634999999]
[493,"2012-02-07","KW60MN07 ",7716378.7947522812,2797430.5493934546,2015706.5322525355,103059.68852383345,678664.3286170857,"Winter",290611.63984999998,64955.715510000002,100942.52505,1937.5527427,56133.070571999997,32714.19283,9443.5025631999997,747.06969021999998,915.54508908000003]
[496,"2011-12-22","KW60MN06 ",7426477.8107181313,2795236.6801539706,2031658.1134864916,98769.604619999998,664808.962047479,"Winter",317879.92679,60039.434795000001,108392.61079000001,2080.5542583000001,56908.26326,33413.926104999999,8778.5979310999992,816.33821894000005,3053.2304963000001]
[500,"2012-01-06","KW60MN07 ",7421993.4797239378,2793301.4094867078,2041697.2712956404,114749.61922855947,636854.51896250818,"Winter",274125.35649999999,60224.843678999998,100682.67307,1932.5649845,43593.188843999997,35028.291363999997,9233.6955558000009,742.46966563000001,2187.724463]
[501,"2011-12-19","KW60MN17 ",8160944.4423709428,2793022.7079004738,1983814.3870823479,95723.989300000001,713484.33151812572,"Winter",301979.56440999999,85733.127787000005,118244.68722000001,2269.6610562999999,58139.451648000002,35714.716581000001,9423.0317701999993,816.33821894000005,3053.2304963000001]
[505,"2012-02-29","KW60MN13 ",7487666.7985062683,2791725.7458751015,2113910.4196324479,113692.83131018274,564122.49493247061,"Winter",200146.58877,78069.792463999998,118182.35737,2268.4646588999999,56634.665841000002,34266.892004000001,9022.456338,747.06969021999998,0]
[508,"2012-01-28","KW60MN11 ",7424440.8992416952,2790890.2407505177,2057886.5374307034,121247.77543750471,611755.92788230977,"Winter",305253.91967999999,74089.26986,82764.499926999997,1588.6325783,54126.689494999999,28077.032242000001,6607.1837802999999,742.46966563000001,0]
[511,"2011-12-16","KW60MN19 ",7930871.4142436972,2789840.1656424869,2015593.4026313215,112894.21489,661352.54812116525,"Winter",285078.28330000001,71684.433552000002,114485.96722000001,2197.5138790999999,57774.655089,32232.111631,7077.4770582000001,816.33821894000005,3053.2304963000001]
[515,"2011-12-10","KW60MN08 ",7371692.4270295873,2788234.2900569881,1997635.1217864659,113954.68130000001,676644.48697052232,"Winter",331489.61933999998,63482.012938,101341.97259999999,1945.2199840000001,57957.053368000001,28836.667912000001,7691.4789604999996,816.33821894000005,0]
[518,"2012-01-03","KW60MN10 ",7542904.22187398,2787627.6454625484,2039896.9312978892,115155.8088223115,632574.90534234722,"Winter",257405.364,70219.682472999993,116784.21728,2241.6279005000001,57409.858528999997,35060.424077999996,9606.8626062000003,742.46966563000001,0]
[521,"2011-11-18","KW60MN20 ",7606540.5048814565,2786682.8358053062,2046297.4002273988,119610.361384,620775.0741939072,"Winter",272589.48534000001,69962.419009000005,123212.34261000001,2365.0132809000002,56999.462399999997,36163.071625999997,6815.7177113999996,4955.8928413000003,3053.2304963000001]
[526,"2012-01-24","KW60MN16 ",7498619.2070935406,2783559.4891987164,2032749.0494169905,104753.45048361369,646056.98929811222,"Winter",244273.70952999999,82782.545994999993,117626.60636000001,2257.7972331000001,56817.064120000003,35139.770575000002,9303.9246648999997,742.46966563000001,407.5214593]
[529,"2012-01-31","KW60MN07 ",7642438.8209735528,2781820.4489100017,2003990.7228232035,122291.26595719311,655538.46012960514,"Winter",269208.98534999997,63855.902912999998,105512.76247,2025.276683,55494.676592999997,34388.157951000001,9273.0051664999992,742.46966563000001,1373.5296639999999]
[530,"2011-12-04","KW60MN19 ",7880059.2393394727,2781617.6846619323,2063428.4105302931,116887.260385,601302.01374663948,"Winter",313575.85645000002,59895.989151000002,93784.575094,1800.1586606000001,56269.869280999999,26156.851707999998,7401.2379203999999,816.33821894000005,3053.2304963000001]
[533,"2012-02-15","KW60MN11 ",7459024.0681115091,2779217.1206483729,2084608.1946655053,123122.18058977686,571486.745393091,"Winter",200220.10047999999,76336.054694000006,125883.98857,2416.2944922000001,47788.349276000001,36280.160277000003,9390.1129328000006,747.06969021999998,0]
[536,"2012-01-14","KW60MN11 ",7341854.6006530095,2776116.3374123694,2030280.3426794608,116542.72932322565,629293.26540968276,"Winter",309600.58568000002,70398.072847000003,87234.569470000002,1674.433835,55449.077022999998,27257.318090000001,6999.4266582,742.46966563000001,0]
[540,"2011-11-15","KW60MN08 ",7483859.5885520959,2775782.1898273653,1960152.356556471,123804.994924,691824.83834689436,"Winter",333893.16396999999,57728.874382000002,128353.11418,2463.6884037999998,55631.475301999999,39417.310860999998,10350.027561000001,4955.8928413000003,0]
[543,"2011-12-21","KW60MN07 ",7555320.2893014718,2772889.9833004605,2032278.8640219613,119500.29345100001,621110.8258274988,"Winter",254437.08496000001,61821.100254999998,109770.50595000001,2107.0024231000002,45873.16734,34474.607802999999,8208.7812508999996,816.33821894000005,2035.0629374]
[548,"2012-01-21","KW60MN18 ",7741107.8132062713,2771325.0345105003,2026257.7770318331,114621.99780536279,630445.25967330427,"Winter",270163.36575,68111.653028000001,85972.118975999998,1650.2015858,56543.466700999998,26258.748955999999,7353.4366212000004,742.46966563000001,3053.2304963000001]
[551,"2011-12-03","KW60MN10 ",7341322.6947844941,2770474.1891879332,2029306.7152596498,104377.58389000001,636789.89003828366,"Winter",340705.63063000003,62254.043418000001,99585.308294000002,1911.5014917999999,56452.267561000001,28758.638771000002,6826.2205893999999,816.33821894000005,0]
[554,"2011-12-23","KW60MN20 ",7872848.2983849533,2769586.4885267927,1998849.2795937117,113728.82950000001,657008.37943308102,"Winter",328303.59259000001,71265.95,98318.940797999996,1887.1940572999999,56725.864979999998,27705.819210000001,7057.5683145000003,816.33821894000005,3053.2304963000001]
[555,"2012-01-27","KW60MN18 ",7723119.5537608936,2769579.6487822146,2033069.9835433962,112431.26444726299,624078.40079155506,"Winter",256547.11267,72261.863566,119251.57076,2288.9877965999999,55038.680892999997,33353.299875999997,7517.1758794999996,742.46966563000001,3053.2304963000001]
[558,"2012-02-15","KW60MN21 ",7507926.1695575332,2767916.5655682012,2028782.4650847511,128536.62240297337,610597.47808047687,"Winter",296396.38397000002,67127.788870999997,98819.748592999997,1896.8068693,49019.537664000003,31110.934842999999,7338.8301044999998,747.06969021999998,3053.2304963000001]
[561,"2012-02-07","KW60MN11 ",7618925.4975618403,2767106.5801618518,2056215.6481015701,113330.61100105415,597560.32105922769,"Winter",206732.19295,79955.218771999993,119266.48906000001,2289.2741476000001,56771.464549999997,34311.146779000002,10266.246625,747.06969021999998,0]
[564,"2012-02-14","KW60MN11 ",7440194.9715736294,2765746.5205054525,2038606.5121175589,113663.24410817452,613476.76427971886,"Winter",241703.87328,78598.333918999997,121292.73791,2328.1672109000001,56589.066271000003,36590.151923999998,9529.9650846999994,747.06969021999998,0]
[569,"2012-01-24","KW60MN21 ",7632100.0222761212,2764460.7896372271,2005512.828751713,113958.4780128618,644989.48287265224,"Winter",310418.15969,71022.649646000005,104619.97964999999,2008.1400619999999,57409.858528999997,33639.623888000002,8029.7041348000002,742.46966563000001,3053.2304963000001]
[573,"2012-01-26","KW60MN20 ",7700424.8341389447,2763669.6748188101,2022317.4266167791,110570.46998611216,630781.77821591857,"Winter",280404.74667999998,70481.380711000005,111830.88102,2146.550526,56087.471001999998,33468.560979000002,7742.8353923000004,742.46966563000001,3053.2304963000001]
[576,"2012-03-01","KW60MN21 ",7500058.7396395365,2762770.731056645,2041088.1471658286,120801.40712551821,600881.17676529801,"Winter",273656.26361999998,67264.322052000003,97561.529615000007,1872.6558425000001,56269.869280999999,30961.307038999999,7153.2047726000001,1354.3257784,3053.2304963000001]
[579,"2012-03-13","KW60MN11 ",7322524.6535838572,2762170.0715102246,2093886.6984096731,120126.24474737677,548157.12835317489,"Winter",179030.21236,77562.096051,119440.94138,2292.6226925000001,57090.661540000001,35916.002429,8843.8701689000009,1354.3257784,0]
[580,"2011-11-10","KW60MN09 ",7553668.0485817641,2762105.3441945538,2028567.292433412,123451.675632,610086.37612914166,"Winter",255301.38806999999,67661.049503999995,132213.75938,2537.7919958000002,56953.862829999998,40935.391749000002,10661.335300999999,4955.8928413000003,0]
[583,"2012-01-22","KW60MN11 ",7060479.6690442562,2760770.232520449,2030262.3027594169,118432.00535625765,612075.92440477409,"Winter",292596.89055000001,52981.070071000002,78818.223585,1512.8853296,55722.674442000003,25084.987442000001,6433.6120414999996,742.46966563000001,0]
[589,"2012-02-17","KW60MN08 ",7501422.3218375361,2759934.0398975862,1994196.7747197496,134354.1028822287,631383.16229560808,"Winter",295958.01634999999,65538.168386999998,107134.64627,2056.4081156000002,57592.256808999999,36022.15969,7933.5648793999999,747.06969021999998,0]
[591,"2011-11-16","KW60MN08 ",7506485.7178979116,2759022.7618087814,1952197.6169510814,111515.228642,695309.91621569998,"Winter",331974.44052,59837.389082000002,131443.07618,2522.9990296999999,51436.314870000002,38978.529596,10687.094777,4955.8928413000003,0]
[594,"2011-12-29","KW60MN18 ",7641996.2401398178,2757488.8799113585,2020058.8219117902,107279.592326,630150.46567356819,"Winter",248600.52439999999,69358.288765999998,110335.5889,2117.8489718000001,54765.083473999999,29924.841254999999,6575.4110515000002,816.33821894000005,3053.2304963000001]
[598,"2012-01-31","KW60MN18 ",7691397.7357519846,2756181.1445110017,2013768.3917133699,127772.6116618482,614640.1411357834,"Winter",249325.78482999999,76785.406518999996,116295.75369,2232.2520307999998,55357.877883000001,34364.888750999999,8399.4379430000008,742.46966563000001,3053.2304963000001]
[601,"2012-01-22","KW60MN12 ",7092975.2638087012,2754402.7054965412,2024826.5878577174,121430.66180551174,608145.45583331236,"Winter",265077.47039999999,54848.432711000001,84199.833163999996,1616.1832449000001,55813.873582,25482.232502999999,6728.1801845999998,742.46966563000001,0]
[604,"2012-01-23","KW60MN17 ",7950219.1892341394,2752565.4991265121,1993935.7325310793,108069.00355704424,650560.76303838857,"Winter",263503.65633999999,66973.799392999994,109530.71633,2102.3997539000002,57592.256808999999,34392.818598999998,8046.1796352000001,742.46966563000001,3053.2304963000001]
[605,"2012-02-24","KW60MN07 ",7453699.8721720818,2752371.9038944016,2014277.2593484509,124964.81070568453,613129.83384026645,"Winter",261178.90151,61772.534663999999,100950.54083,1937.7066024999999,57774.655089,35264.020213000003,8553.0857020999993,747.06969021999998,0]
[610,"2011-11-30","KW60MN20 ",7779378.7733968655,2750474.5605914751,2030563.6669536545,125690.01794500001,594220.87569282076,"Winter",286962.81576000003,70841.508426999993,120824.46666000001,2319.1789253000002,56543.466700999998,35007.577231000003,7723.9830314000001,4955.8928413000003,3053.2304963000001]
[613,"2011-11-19","KW60MN11 ",7376261.641351603,2749581.5212753834,1983853.685207512,122554.45728399999,643173.3787838713,"Winter",314635.71386000002,66072.181003999998,104982.39251000001,2015.0964368,57729.055519000001,32641.087423000001,6525.3547821000002,4955.8928413000003,0]
[616,"2011-12-10","KW60MN13 ",7173147.7389418846,2747893.8197767851,1945632.6623156918,97768.794410000002,704492.36305109318,"Winter",358788.45137000002,72303.572933000003,105747.96507000001,2029.7913060999999,57683.455949000003,27234.951435999999,7239.3270175999996,816.33821894000005,0]
[619,"2012-01-05","KW60MN18 ",7666321.4562660977,2747142.9185695108,2013430.6328738874,115449.556327616,618262.72936800728,"Winter",242166.46924000001,73658.732078999994,116150.34577,2229.4609819000002,56406.667991000002,34923.177989000003,7836.4674320000004,742.46966563000001,3053.2304963000001]
[623,"2012-01-19","KW60MN15 ",7569052.9040462067,2746296.9648844535,1946899.1352579677,113230.56125837904,686167.2683681068,"Winter",271763.44308,81378.059632999997,126332.31345,2424.8999149000001,46192.364329000004,35545.555618999999,9163.3648727,742.46966563000001,0]
[626,"2011-11-21","KW60MN09 ",7640412.4497912508,2745400.4295804799,1950264.6044155592,119165.97998100001,675969.84518392046,"Winter",253210.95712000001,69623.697109999994,127545.97388000001,2448.1956577000001,58458.648636999998,38694.211728000002,9257.6266782999992,4955.8928413000003,0]
[627,"2012-01-10","KW60MN11 ",7491643.5004331023,2745044.0863517793,2057016.6194925813,112296.21661836572,575731.25024083233,"Winter",207524.68012999999,72323.550302000003,122396.6326,2349.3560427000002,56224.269711000001,37504.896823000003,9720.6674855000001,742.46966563000001,0]
[631,"2012-03-12","KW60MN11 ",7251957.7950780438,2744261.9441831643,2033978.3648001102,117755.78981112712,592527.7895719267,"Winter",202519.45053,74755.472471000001,124023.00915,2380.5737118000002,53898.691644999999,35645.954207000002,9114.7662072000003,1354.3257784,0]
[634,"2012-02-08","KW60MN10 ",7524365.1370680584,2743935.2296448359,2036650.2201270589,112441.6910509981,594843.31846677896,"Winter",215301.89259,73091.326902999994,125771.59258,2414.1370946000002,37254.848624999999,35751.688219999996,9921.8118185999992,747.06969021999998,0]
[638,"2011-12-23","KW60MN07 ",7520941.4227278195,2742863.5714861182,1974208.5949333413,101094.59270000001,667560.38385277684,"Winter",293663.40386000002,62270.138754,97931.842048000006,1879.7638463999999,55905.072721999997,31304.028002999999,7977.5147856000003,816.33821894000005,2085.9501132]
[641,"2012-01-09","KW60MN13 ",7502693.8048791299,2741584.4519613814,2038921.3044929265,105493.79356157544,597169.35390687978,"Winter",222480.03124000001,69112.505902000004,123709.58902,2374.5577336000001,53625.094226000001,37710.568458000002,8934.9221978000005,742.46966563000001,0]
[644,"2012-01-19","KW60MN21 ",7532777.9965440575,2740358.3137719962,1928902.6656161735,115732.57463506611,695723.07352075668,"Winter",339491.00224,70396.846856999997,99884.754814,1917.2492519,54400.286914999997,32994.290641,7686.2579943999999,742.46966563000001,3053.2304963000001]
[648,"2012-02-03","KW60MN11 ",7476907.2110363105,2738156.3901576754,2030974.2532090046,113712.66024906003,593469.47669961059,"Winter",223580.01485000001,81816.493237999995,129466.26685,2485.0549388999998,53442.695946,35432.600030000001,9323.0546649000007,747.06969021999998,0]
[652,"2012-02-07","KW60MN18 ",7725714.032611304,2737634.1546293907,1998197.3106195813,121903.73832294124,617533.10568686831,"Winter",230123.05515,73639.686654999998,119305.07002,2290.0146942000001,56589.066271000003,32083.341654,8508.4112270000005,747.06969021999998,3053.2304963000001]
[653,"2012-01-04","KW60MN18 ",7749192.6571681835,2737592.1514808964,1993149.0721042184,123302.26822470315,621140.81115197472,"Winter",269357.23820000002,70623.500742999997,109833.03813,2108.2027041000001,46602.760457999997,35533.837208999998,7923.0907815999999,742.46966563000001,3053.2304963000001]
[656,"2012-02-13","KW60MN19 ",7614447.2894450687,2736502.5851397379,2029511.5252021712,136183.95529924679,570807.10463831993,"Winter",237571.30906999999,64161.121382999998,108685.87132000001,2086.1832806000002,56543.466700999998,34325.046027999997,7772.7255941000003,747.06969021999998,3053.2304963000001]
[659,"2011-12-01","KW60MN21 ",7550591.677571062,2735661.0811317516,2018064.3565218691,101659.04814,615937.67646988248,"Winter",291310.71119,72767.535407999996,120666.44296,2316.1457215,57683.455949000003,32574.310419000001,7142.0179539000001,816.33821894000005,3053.2304963000001]
[663,"2012-02-20","KW60MN19 ",7818252.5773925502,2733677.869387337,2016834.3190727853,128429.32901721635,588414.22129733511,"Winter",246935.24465000001,59097.161100999998,93574.395971000005,1796.1243535999999,55996.271862000001,30134.461877999998,7774.4388302999996,747.06969021999998,3053.2304963000001]
[666,"2012-03-21","KW60MN10 ",7325856.1294399574,2732656.4743321543,2049200.7767331584,107139.52034317311,576316.17725582293,"Winter",216164.68010999999,73379.898904999995,118427.11077,2273.1626058000002,49612.332072999998,37617.347650999996,9070.7807498999991,1354.3257784,0]
[669,"2011-11-01","KW60MN10 ",7369057.312550907,2731888.6549128024,2078599.7688543275,110078.67686000001,543210.20919847465,"Winter",185122.27273999999,69002.587790000005,130656.13545,2507.8940066,41085.212498000001,43914.421846999998,10174.160221,4955.8928413000003,0]
[673,"2011-11-18","KW60MN17 ",7693281.9294221662,2731349.3732275767,2022844.4753807387,111007.77263599999,597497.12521083769,"Winter",232785.20499,76078.932627999995,126534.76673,2428.7859275000001,57501.057669000002,38639.168312000002,7120.0980219000003,4955.8928413000003,3053.2304963000001]
[677,"2011-11-04","KW60MN10 ",7285395.7707852339,2729167.9564229446,2029897.2899451242,117752.54705400001,581518.11942382006,"Winter",178025.49932999999,78604.311222999997,137123.34422,2632.0295786000001,56953.862829999998,42099.420521,8674.4223841000003,4955.8928413000003,0]
[678,"2012-01-25","KW60MN09 ",7436776.8053047629,2727310.6902921805,1986169.926928319,114656.9413968088,626483.82196705288,"Winter",231896.63114000001,70622.265111999994,122495.87198,2351.2609041000001,55038.680892999997,36223.634561999999,9634.3285460000006,742.46966563000001,0]
[681,"2011-12-23","KW60MN21 ",7728189.9825524306,2725499.4307592791,1966788.0364922734,106858.78655999999,651852.60770700593,"Winter",332828.06027000002,70837.356451,97213.222991999995,1865.9702315,56725.864979999998,27361.571419,7001.9457232000004,816.33821894000005,3053.2304963000001]
[684,"2012-01-04","KW60MN19 ",7699373.4548141193,2724658.7570443233,1982488.0319704013,121770.46397749377,620400.26109642803,"Winter",226170.95287000001,69788.980798999997,107495.36061,2063.3318878,47788.349276000001,34680.170632000001,7599.0455081999999,742.46966563000001,3053.2304963000001]
[688,"2012-02-26","KW60MN10 ",7087351.6056369059,2721966.718743131,2001452.3428893613,129360.70912492172,591153.66672884813,"Winter",265492.95569999999,50644.871526000003,78616.243044000003,1509.0083912,55722.674442000003,25255.658230000001,5748.5379562999997,747.06969021999998,0]
[691,"2011-12-06","KW60MN13 ",7607970.3571074829,2721050.7895782823,2062553.577878511,95227.045849999995,563270.16584977123,"Winter",201011.67618000001,78004.331349999993,131936.39916,2532.4681735999998,58777.845627000002,37351.763486999997,10516.163994,816.33821894000005,0]
[694,"2011-11-21","KW60MN17 ",7865873.0783579051,2720442.1771483156,1936842.4691618793,117269.645882,666330.06210443622,"Winter",252517.71499000001,85466.718406,117589.76194,2257.0900187000002,57592.256808999999,37883.924041999999,6923.7328022000002,4955.8928413000003,3053.2304963000001]
[699,"2012-02-20","KW60MN09 ",7499644.7359602116,2719562.7831813842,2015005.2460631304,110330.19102810735,594227.34609014634,"Winter",268093.71860000002,70320.633023999995,99617.096619000004,1912.1116563999999,56269.869280999999,28541.464618999998,6575.3416409000001,747.06969021999998,0]
[702,"2012-01-09","KW60MN21 ",7569706.8150281962,2718980.677368124,1996060.8010125966,113302.54565463253,609617.3307008947,"Winter",279904.25021000003,60089.883558000001,104947.58203999999,2014.4282631000001,53625.094226000001,33112.615509000003,7692.7791229000004,742.46966563000001,3053.2304963000001]
[703,"2012-01-23","KW60MN22 ",7377737.5748620983,2718965.2532957639,1934448.0211259981,103950.01282485155,680567.21934491419,"Winter",328449.89530999999,62682.481108,97499.953492000001,1871.4739125999999,58048.252507999998,33047.863312000001,7666.6539759999996,742.46966563000001,3053.2304963000001]
[706,"2012-01-03","KW60MN11 ",7500494.4774949374,2718647.2479363652,1993882.2617218222,108135.92770451879,616629.05851002433,"Winter",241285.69594000001,71963.392057000005,115746.68072,2221.7127872000001,57455.458099000003,34510.132012000002,9414.8448069999995,742.46966563000001,0]
[709,"2012-02-20","KW60MN11 ",7562662.0829966431,2717996.5549657177,2001347.1958495276,117372.90779596624,599276.45132022386,"Winter",263725.97203,72089.027906999996,100671.8036,1932.3563491,56133.070571999997,30004.927899999999,6523.1065829999998,747.06969021999998,0]
[713,"2012-01-12","KW60MN14 ",7522367.3061300972,2715707.9501817273,1980986.7930304417,96805.101880306524,637916.05527097883,"Winter",231829.40437999999,80406.588740000007,134898.16143000001,2589.3180554,56178.670141000002,36933.948256999996,10082.519055999999,742.46966563000001,0]
[715,"2011-11-20","KW60MN09 ",7138843.7223378029,2715136.0235187532,1942546.4844674442,117689.381003,654900.15804830915,"Winter",337034.68731000001,50503.453666000001,102689.3089,1971.0815832999999,54719.483904000001,28039.212841,6186.8045671999998,4955.8928413000003,0]
[721,"2011-12-07","KW60MN13 ",7506535.278227428,2713577.4928818867,2048360.2021295892,93247.565489999994,571969.7252622972,"Winter",220743.73044000001,81589.564589000001,136651.86812,2622.9797773,58093.852078000004,35608.031669000004,10087.252462,816.33821894000005,0]
[724,"2011-11-15","KW60MN18 ",7756990.7237515496,2712880.4282488097,1965080.9719933982,128959.10366799998,618840.35258741153,"Winter",226102.25291000001,75389.248210999998,125667.06056,2412.130643,55631.475301999999,39183.759533999997,8398.9503815000007,4955.8928413000003,3053.2304963000001]
[727,"2011-11-21","KW60MN20 ",7745648.9100768277,2711620.4457239271,1927453.952106361,117849.28584599998,666317.20777156611,"Winter",310425.16535000002,61688.998634000003,114241.73388,2192.8259145000002,56543.466700999998,36439.252597999999,6464.2674428,4955.8928413000003,3053.2304963000001]
[728,"2012-02-29","KW60MN17 ",7527602.9955743458,2710848.9099519998,2026450.1373082187,114107.95627031164,570290.81637346919,"Winter",201040.34533000001,72773.718382000006,103517.94931,1986.9870155999999,57136.261109999999,31852.156356,7362.3870911000004,747.06969021999998,763.73168391000002]
[731,"2012-03-08","KW60MN10 ",7201571.8209984163,2708655.3093470754,2053468.3192069314,110640.87392525344,544546.11621489062,"Winter",206995.51452,77529.190352000005,125744.29011,2413.6130343,57136.261109999999,36911.405511999998,8830.6857051000006,1354.3257784,0]
[736,"2011-12-02","KW60MN19 ",7748939.0693527022,2707546.482175923,1993934.5931476951,110438.78434700001,603173.10468122782,"Winter",232843.61373000001,74988.714244999996,119670.24116000001,2297.0240130000002,54993.081323999999,33816.418516999998,7149.2704258000003,816.33821894000005,3053.2304963000001]
[739,"2011-11-16","KW60MN09 ",7348957.5229811426,2706940.6597732324,1932694.8678932579,105754.51368600001,668491.27819397475,"Winter",280707.99307999999,75744.007601999998,142630.59344,2737.7390983,49338.734653,39549.609825,11219.430200999999,4955.8928413000003,0]
[742,"2012-01-13","KW60MN06 ",7411654.4959209142,2704164.7401820244,1942514.2743013198,106810.8179525634,654839.64792814106,"Winter",320432.77353000001,62406.593201999996,97568.636876000004,1872.7922636000001,57592.256808999999,34537.042343000001,8850.7163392000002,742.46966563000001,3053.2304963000001]
[746,"2012-03-13","KW60MN21 ",7233688.8757187976,2702989.4207021939,1993717.9743581058,115936.39586681202,593335.05047727586,"Winter",267188.58977000002,61558.203343000001,89346.608045999994,1714.9735989000001,55722.674442000003,34245.699181000004,7017.0025574000001,1354.3257784,3053.2304963000001]
[749,"2012-01-27","KW60MN13 ",7429842.7338974746,2702053.1244235276,2026832.0107015073,102470.86366513668,572750.2500568839,"Winter",192426.31185999999,73437.838579000003,123623.88048000001,2372.9125912999998,57820.254658999998,37372.571060000002,8566.5698131000008,742.46966563000001,0]
[752,"2011-11-08","KW60MN11 ",7464706.9004409993,2701180.2228288394,1990341.9457820568,124266.869872,586571.40717478283,"Winter",225637.12388999999,73627.622785,135411.97047999999,2599.1804213999999,54491.486054000001,40002.453904000002,10604.209396,4955.8928413000003,0]
[753,"2012-02-16","KW60MN13 ",7383298.7993936837,2701084.7362977862,2015632.7157414348,109278.86968231632,576173.15087403497,"Winter",166362.00174000001,82410.111782000007,116041.64298999999,2227.3744740000002,57136.261109999999,38239.476891999999,9216.4243819999992,747.06969021999998,0]
[757,"2012-03-05","KW60MN20 ",7292591.1354271229,2700395.9241125449,1999748.3275618351,113053.36572769331,587594.23082301626,"Winter",248294.98871000001,63667.876548,102829.96146000001,1973.7813547999999,55585.875732,33094.896478000002,7275.1051964999997,1354.3257784,3053.2304963000001]
[761,"2012-01-30","KW60MN11 ",7525264.0769859878,2699582.6619513072,1991673.881741893,121198.20820655227,586710.572002862,"Winter",222085.54172000001,73838.631240000002,117803.60039000001,2261.1945651999999,55266.678742999997,35148.585918999997,8749.2833226999992,742.46966563000001,0]
[764,"2012-02-29","KW60MN16 ",7409292.9552252749,2698785.2962003173,2022440.4937290614,113036.20051948031,563308.60195177549,"Winter",193581.0159,74806.099589000005,106981.55282,2053.4695459999998,57136.261109999999,32841.360484999997,8123.4546781999998,747.06969021999998,0]
[767,"2011-11-15","KW60MN20 ",7623363.6789474385,2698612.8219063496,1934434.4909790086,114890.32910599999,649288.00182134076,"Winter",264422.11816999997,66741.256576999993,124769.53524,2394.9029915000001,57820.254658999998,38781.570701999997,8174.6316617000002,4955.8928413000003,3053.2304963000001]
[771,"2012-02-06","KW60MN21 ",7584757.877450075,2697770.351070297,1955395.976810514,114600.07129683651,627774.30296294671,"Winter",246083.20408,65492.904774000002,95048.404439000005,1824.4173762999999,58230.650787999999,29983.71902,7585.8712020000003,747.06969021999998,3053.2304963000001]
[774,"2012-02-14","KW60MN17 ",7343444.7059880653,2697285.5181209324,1968316.9471357574,102401.53596381505,626567.0350213598,"Winter",236525.2616,75633.578525999998,122704.90455000001,2355.2732034999999,56452.267561000001,34029.013466999997,7806.5247492999997,747.06969021999998,1883.2495328]
[777,"2012-01-23","KW60MN14 ",7578183.4051089184,2697168.7237053094,1984145.2808365114,104115.3975289283,608908.04533986992,"Winter",204727.76942,70255.819451000003,119592.9109,2295.5396887000002,57911.453798000002,37628.234989999997,9299.4553551000008,742.46966563000001,0]
[778,"2012-02-16","KW60MN20 ",7582328.1936670924,2696969.6632132418,1980409.7016574,126634.99821519657,589924.96334064496,"Winter",263160.00818,75401.729850000003,103743.08566,1991.3084208,48335.544114999997,34774.951088000002,7507.5837922000001,747.06969021999998,3053.2304963000001]
[782,"2012-03-13","KW60MN20 ",7345418.9286309564,2696245.5413117614,1990840.4269353892,121327.12339159909,584077.99098477338,"Winter",254872.90891999999,62014.379256,90554.304904000004,1738.1548732000001,55813.873582,34152.377675999996,7238.7920545999996,1354.3257784,3053.2304963000001]
[786,"2012-01-05","KW60MN21 ",7409894.6607638365,2695208.7704398176,1992283.1378928707,110586.56309199461,592339.06945495238,"Winter",282768.52545999998,63074.687018999997,104932.83368,2014.1451741999999,34974.870129000003,33257.860867000003,7343.5431950000002,742.46966563000001,3053.2304963000001]
[789,"2011-12-08","KW60MN13 ",7533798.1505388496,2694555.7016272498,2018938.5883728983,91864.349419999999,583752.76383435156,"Winter",192565.31215000001,84287.989333999998,128019.9492,2457.2934307,49247.535514000003,36757.151493999998,9959.1661062999992,816.33821894000005,0]
[792,"2012-02-02","KW60MN11 ",7441905.4240242913,2693142.7742698588,2000974.6350178407,113347.98737197425,578820.15188004402,"Winter",212816.47396999999,79521.168522000007,127411.63592,2445.6170926,54309.087775,35213.453609999997,9763.0395891000007,747.06969021999998,0]
[796,"2011-11-22","KW60MN18 ",7674237.1247053146,2690526.6119978637,1965800.8265526039,119619.16518700001,605106.6202582597,"Winter",220505.66527,69696.637887999997,111194.71491,2134.3395635000002,56817.064120000003,37696.970200999996,6516.7412032000002,4955.8928413000003,3053.2304963000001]
[799,"2012-03-12","KW60MN12 ",7167618.9627411114,2689366.7488254965,1986288.3905017073,118571.63878410083,584506.71953968832,"Winter",200584.68083,76942.230395000006,120540.79609,2313.7339783000002,53898.691644999999,36263.615448999997,8927.0738194999994,1354.3257784,0]
[803,"2011-12-22","KW60MN16 ",7599792.9011465609,2688771.6060816008,1993271.8896899046,96843.395730000004,598656.32066169626,"Winter",245262.76845999999,77512.972899,117144.36884,2248.5408704000001,57090.661540000001,36707.896866000003,8691.1213499999994,816.33821894000005,2137.6854072000001]
[804,"2012-02-06","KW60MN12 ",7488514.9079263406,2687962.8973025768,1974697.7255108953,115353.36130708341,597911.81048459816,"Winter",199682.57260000001,75494.620681,119312.21092,2290.1517610999999,56999.462399999997,33966.377334999997,9545.5518025000001,747.06969021999998,0]
[807,"2012-01-14","KW60MN08 ",7224013.6389788808,2687391.4519366398,1940436.1064525486,110858.50318906321,636096.84229502827,"Winter",325752.73838,62366.116252,91193.669769,1750.4272346,55403.477453,27576.926643999999,7497.8156418999997,742.46966563000001,0]
[811,"2012-02-06","KW60MN18 ",7726846.231997259,2685641.1061862116,1962996.8355675358,109405.19097800036,613239.07964067534,"Winter",244638.54425000001,70993.489403,106836.89496000001,2050.6928942,52941.100677000002,30383.494358,8187.3658078999997,747.06969021999998,3053.2304963000001]
[814,"2011-11-11","KW60MN09 ",7386192.851321158,2684659.5892465459,1933589.4160748885,116492.560255,634577.6129166577,"Winter",288748.11377,69042.105479000005,124773.57971000001,2394.9806233999998,57045.061970000002,40205.351635999999,7243.3900258000003,4955.8928413000003,0]
[817,"2012-01-11","KW60MN15 ",7402594.4083668729,2684435.1944281654,1960986.8292373286,92681.70045846999,630766.6647323668,"Winter",233936.93083999999,78703.378601000004,125581.36659999999,2410.4857806,57273.059820000002,35493.951163999998,9721.0534707999996,742.46966563000001,0]
[821,"2012-01-30","KW60MN21 ",7473185.2254254678,2683952.7199672908,1953017.2902787311,120744.17315162985,610191.25653692998,"Winter",271948.57896999997,62449.838670999998,97302.327332000001,1867.6805548,55540.276163000002,31562.113558000001,7634.1092746000004,742.46966563000001,3053.2304963000001]
[824,"2011-11-28","KW60MN18 ",7899174.0480481293,2682464.2684911191,1960553.6108194906,115455.92034400001,606454.73732762842,"Winter",256110.04868000001,66405.336941000001,115689.83125,2220.6215836000001,54719.483904000001,34946.249170000003,7822.5922564000002,4955.8928413000003,3053.2304963000001]
[826,"2012-02-09","KW60MN09 ",7463871.7718749037,2681702.5618441128,1949800.4742437187,117619.41077428925,614282.6768261051,"Winter",251605.53810999999,72432.364541000003,128150.95394000001,2459.808016,57820.254658999998,35358.096274000003,9794.6413331999993,747.06969021999998,0]
[829,"2012-02-26","KW60MN20 ",7335119.3735595727,2680670.2427550978,1964060.9434001609,127328.48034783664,589280.8190071003,"Winter",246376.60441,62397.378191999996,81376.485921,1561.9901861000001,55677.074871999997,27257.291903000001,6514.7080058000001,747.06969021999998,3053.2304963000001]
[832,"2011-12-03","KW60MN18 ",7668351.0663195355,2678911.452219815,1992863.790906973,99778.207280000002,586269.45403284219,"Winter",297111.96789999999,70972.059483999998,94730.810320000004,1818.3212799999999,57455.458099000003,27491.257454999999,7285.5234278999997,816.33821894000005,3053.2304963000001]
[836,"2011-12-22","KW60MN15 ",7525876.6229947871,2677858.8203947069,1985596.147080573,95767.883259999988,596494.79005413363,"Winter",234773.23251999999,75315.486357999995,119217.75044,2288.3386286999998,57045.061970000002,37709.011833999997,8620.5672013999992,816.33821894000005,0]
[839,"2012-03-14","KW60MN13 ",7188229.1681583151,2677579.368124079,1995514.4918496588,112586.24987745173,569478.62639696838,"Winter",206493.49186000001,74631.130097000001,116506.63694,2236.2998532000001,55540.276163000002,37438.567913999999,8420.7196440999996,1354.3257784,0]
[841,"2012-02-27","KW60MN12 ",7334465.3172173835,2676797.1624053363,2000866.5020307386,111732.25416600452,564198.40620859293,"Winter",169703.37179,80532.480070999998,122387.44845,2349.1797565000002,50250.726051999998,37478.080306000003,9577.9170544000008,747.06969021999998,0]
[847,"2012-02-02","KW60MN20 ",7614399.7299607471,2674654.3764828043,1949413.8214133629,123610.11857927759,601630.43649016379,"Winter",274647.9192,73559.600428999998,106704.01612,2048.1423362,56771.464549999997,32859.739404,7299.8539993000004,747.06969021999998,3053.2304963000001]
[850,"2011-11-29","KW60MN13 ",7343985.6242953502,2674201.8810603702,1986919.5844028825,102272.031672,585010.26498548791,"Winter",207425.20191,78327.610274999999,125204.50601,2403.2520871000002,50980.319171000003,38406.880472999997,9502.4635937000003,4955.8928413000003,0]
[851,"2011-11-07","KW60MN20 ",7471745.3907038327,2674025.6088708816,1916624.3388552796,123155.32227800001,634245.94773760228,"Winter",298613.42548999999,61638.387583999996,124537.04429999999,2390.4404177000001,57318.659389,36531.472242999997,7772.8610275999999,4955.8928413000003,3053.2304963000001]
[854,"2011-12-11","KW60MN13 ",6993647.1914594881,2672088.3972556777,1888629.8396556189,97878.718435000003,685579.83916505892,"Winter",343494.97395000001,57373.012725000001,91518.155616999997,1756.6556149999999,57409.858528999997,26707.749433000001,6680.4195158000002,816.33821894000005,0]
[857,"2012-03-07","KW60MN20 ",7354242.9060435193,2670469.3099454814,1980395.070571135,119861.20360244028,570213.03577190579,"Winter",250240.31458999999,73296.197373999996,104531.67761,2006.4451385,56269.869280999999,32747.420160000001,7468.6263093999996,1354.3257784,3053.2304963000001]
[861,"2012-01-14","KW60MN18 ",7488713.58596595,2668939.0978656402,1973272.8655335582,105184.61999320882,590481.61233887332,"Winter",280320.51981000003,76559.441951000001,86925.457557999995,1668.5005513999999,55585.875732,26920.619917,7326.6004473000003,742.46966563000001,3053.2304963000001]
[866,"2011-12-02","KW60MN11 ",7362911.5595398983,2667417.3368590586,2001758.3362991824,99955.813360000015,565703.18719987618,"Winter",171897.27661999999,71602.202244999993,137621.43541999999,2641.5902467000001,54947.481754,38553.170211999997,8846.9986857999993,816.33821894000005,0]
[869,"2012-01-21","KW60MN12 ",7385732.8465977609,2666217.3572979099,1938889.4536963147,107871.42859003747,619456.47501155769,"Winter",296748.87134999997,70798.626095,85657.008006000004,1644.1531526000001,56452.267561000001,25969.361959000002,6281.9399194999996,742.46966563000001,0]
[872,"2011-11-11","KW60MN10 ",7338118.8075546492,2665618.1436717594,1929811.0570667309,116300.14958700001,619506.93701802846,"Winter",293631.35378,72729.928207000004,123910.62522,2378.4165456999999,55859.473151999999,40882.934431000001,7158.6153457999999,4955.8928413000003,0]
[875,"2011-12-19","KW60MN15 ",7614539.8692719741,2665030.6494634636,1903787.1400495498,86667.561180000004,674575.94823391375,"Winter",297048.56722999999,79501.515727000005,121560.2257,2333.3015356000001,55813.873582,38286.751328999999,9316.0933764000001,816.33821894000005,0]
[876,"2012-01-15","KW60MN22 ",7054401.6117614917,2664927.0689925901,1962962.8017357332,110561.72802207607,591402.53923478082,"Winter",289464.28061000002,56694.897282999998,78223.887482000006,1501.4772779,56543.466700999998,27098.669730000001,6584.3699852,742.46966563000001,3053.2304963000001]
[879,"2011-12-17","KW60MN18 ",7711403.8652078956,2664341.7398910145,1904035.710850572,99967.31719999999,660338.7118404425,"Winter",345487.44228000002,71440.064673999994,94114.521458000003,1806.4918534999999,57273.059820000002,26319.780914999999,7465.0881055,816.33821894000005,3053.2304963000001]
[882,"2011-12-30","KW60MN20 ",7391885.5863795253,2663900.5147144264,1951096.6758019244,112007.570895,600796.26801750204,"Winter",256616.61812,66863.191961999997,93965.910992999998,1803.6393330999999,56634.665841000002,27780.985510999999,6414.8003099999996,816.33821894000005,3053.2304963000001]
[887,"2012-01-15","KW60MN17 ",7288292.6453434033,2663581.8748378358,1959346.6113693102,108600.89801382995,595634.36545469554,"Winter",310791.97139999998,54167.666045999998,88377.671843999997,1696.3752431,55403.477453,25636.106253999998,6539.9409834999997,742.46966563000001,3053.2304963000001]
[890,"2011-12-02","KW60MN20 ",7640816.5398928868,2662208.2108573671,1955825.439397827,106058.730098,600324.04136154032,"Winter",263824.85673,69811.019696000003,117224.50709,2250.0790932,54993.081323999999,33382.657412,7022.4232881999997,816.33821894000005,3053.2304963000001]
[894,"2012-02-22","KW60MN20 ",7370409.6849852437,2660633.0327002248,1941147.7063168024,115194.09120195941,604291.23518146318,"Winter",263269.72461999999,72627.097697999998,104042.51805,1997.0559099,54126.689494999999,33745.466873999998,7669.6893825999996,747.06969021999998,3053.2304963000001]
[897,"2011-12-16","KW60MN21 ",7634592.6945201121,2658397.1777519118,1931562.5310955283,99789.731199999995,627044.91545638349,"Winter",276883.6778,68181.95865,108226.5448,2077.3666856,57227.460249999996,31888.415837,7117.8430517999996,816.33821894000005,3053.2304963000001]
[900,"2012-01-11","KW60MN16 ",7426322.7796787443,2657226.8198634875,1942717.1441922991,94018.368458393335,620491.30721279501,"Winter",242031.60238,79544.306471000004,119952.24225,2302.4369148999999,56589.066271000003,34948.921224999998,9035.5426133000001,742.46966563000001,1272.6034333]
[901,"2011-11-11","KW60MN08 ",7346260.0076217884,2657147.8249764279,1903268.6464155829,111398.365213,642480.81334784511,"Winter",299925.07322000002,58398.655341999998,120808.64317,2318.8751996000001,56908.26326,39544.431666999997,7428.4600805999999,4955.8928413000003,0]
[904,"2012-02-20","KW60MN20 ",7679731.8229414634,2656655.2889646362,1954129.4176551804,116778.8248833369,585747.04642611893,"Winter",272267.22509999998,60763.776323999999,93620.303509999998,1797.0055311000001,56497.867130999999,29902.902463999999,7724.7550030000002,747.06969021999998,3053.2304963000001]
[908,"2011-12-03","KW60MN11 ",7204293.4801268131,2655260.0136390021,1968697.686592852,99288.454660000003,587273.87238615006,"Winter",284440.03717000003,64559.111782,92686.160443999994,1779.0750161000001,57637.856378999997,28269.095433999999,6349.6905930000003,816.33821894000005,0]
[912,"2012-01-06","KW60MN14 ",7200567.2764641568,2654256.671072633,1985272.6337939966,100199.01279848417,568785.02448015206,"Winter",180117.12792999999,81427.364352999997,129410.44716,2483.9835014999999,54491.486054000001,37616.533822999998,9266.7887632999991,742.46966563000001,0]
[915,"2012-03-12","KW60MN20 ",7184301.2466890048,2653608.6628241222,1968422.9447837316,120933.11223330931,564252.60580708133,"Winter",256874.43903000001,60188.991106000001,93394.856090999994,1792.6781550000001,55221.079172999998,33638.653808000003,6912.2344872000003,1354.3257784,3053.2304963000001]
[919,"2012-02-08","KW60MN13 ",7399397.4733947059,2652842.5959405685,1952826.208830046,102166.36895372519,597850.01815679739,"Winter",207064.41584999999,76087.598110999999,123152.10984999999,2363.8571364999998,47332.353577000002,35333.502338999999,9632.5171214000002,747.06969021999998,0]
[922,"2011-12-20","KW60MN14 ",7582931.9098677952,2652183.4526601238,1960825.3315462111,92076.407990000007,599281.71312391257,"Winter",256859.00751,71434.302681999994,119655.68732,2296.7446577000001,41495.608627000001,36201.274844,8422.3939425000008,816.33821894000005,0]
[925,"2012-01-23","KW60MN16 ",7684783.8934303094,2651828.8951434032,1934571.6941978938,104058.86303277922,613198.33791273029,"Winter",228750.12646999999,67802.497891999999,114504.46918,2197.869017,57364.258958999999,34665.383958999999,8517.7121310000002,742.46966563000001,509.29580915000003]
[929,"2011-12-17","KW60MN11 ",7246143.7092496399,2650905.3721829704,1889706.137986437,100298.19013999999,660901.04405653349,"Winter",337312.59252000001,65940.529286999998,91303.39705,1752.5334072999999,57273.059820000002,26718.423738000001,6782.9089139999996,816.33821894000005,0]
[930,"2011-11-04","KW60MN11 ",7203080.1342543196,2650896.8363250308,1974972.3583052082,114335.91376700001,561588.56425282243,"Winter",167776.67821000001,77891.294433999996,135708.44687000001,2604.8711709999998,56725.864979999998,41538.026857999997,8640.2118491000001,4955.8928413000003,0]
[934,"2012-01-26","KW60MN10 ",7496097.6048801197,2647446.2382244146,1939028.5684167014,107243.26398224247,601174.40582547081,"Winter",235575.69295999999,73880.279548000006,115857.69855,2223.8437315000001,57774.655089,36754.284664999999,9285.3973435000007,742.46966563000001,0]
[937,"2012-02-01","KW60MN21 ",7363206.3129576938,2646238.8185314052,1938943.9940400303,118260.29700408093,589034.52748729393,"Winter",269717.28236000001,64413.048658,102612.40867,1969.6055131999999,47013.156587999998,31580.798486,7558.3663243999999,747.06969021999998,3053.2304963000001]
[940,"2012-02-21","KW60MN10 ",7448494.3982946593,2645177.6465293085,1941550.3717913304,109261.5909172071,594365.68382077129,"Winter",219849.77252,70726.829360000003,112836.17971,2165.8468456999999,57318.659389,37201.114088000002,9545.3469595000006,747.06969021999998,0]
[944,"2012-02-25","KW60MN10 ",7113823.8885005144,2644433.2065780992,1953309.0952165998,118784.80900043933,572339.30236106017,"Winter",253710.76467,62217.586687000003,82264.640608999995,1579.0379719,56224.269711000001,27617.938694,5838.7807697999997,747.06969021999998,0]
[947,"2011-12-24","KW60MN12 ",7196877.5439634761,2643710.3522813255,1899488.4601000142,101753.7619,642468.13028131123,"Winter",331376.95649999997,58738.529318000001,80312.781388000003,1541.5727887999999,55905.072721999997,17519.205341000001,6172.8278166,816.33821894000005,0]
[950,"2012-01-31","KW60MN12 ",7354232.996706049,2642258.2229349809,1957755.1541516227,114820.10280920444,569682.9659741536,"Winter",220404.68205999999,79193.825995000007,122722.48351999999,2355.6106251000001,54537.085623999999,37282.608825000003,9459.5175894999993,742.46966563000001,0]
[952,"2012-01-30","KW60MN07 ",7454998.2271521697,2642082.7781008622,1915279.442824933,116081.97512446126,610721.36015146761,"Winter",244836.47261999999,60178.551713000001,97212.986216999998,1865.9656867000001,51937.910139,33356.151731999998,8316.0446852999994,742.46966563000001,1424.4168388999999]
[955,"2011-12-09","KW60MN16 ",7419148.3935825936,2641549.6637557526,1888959.4290688685,94492.510769999993,658097.72391688416,"Winter",282306.02487999998,79831.045112000007,135949.83064999999,2609.5044392999998,57683.455949000003,33772.470730000001,8331.6060096000001,816.33821894000005,2290.3469318000002]
[959,"2012-01-29","KW60MN18 ",7424573.2501007598,2640737.4934770102,1956177.6892503574,128327.04158024708,556232.76264640561,"Winter",258995.54225999999,62643.088750000003,81259.117777000007,1559.7373499,54263.488205000001,26428.417560000002,6607.5291361,742.46966563000001,3053.2304963000001]
[962,"2011-12-26","KW60MN11 ",7220052.3336595921,2639312.2104523522,1933550.4024047263,108745.81135,597015.99669762584,"Winter",299961.79728,60579.609496999998,84589.749670000005,1623.6675415,55950.672292000003,23144.307153999998,6414.0486536999997,816.33821894000005,0]
[965,"2011-11-22","KW60MN09 ",7495342.34609129,2638667.6894823285,1929683.9502434107,115211.092118,593772.64712091803,"Winter",212277.15492999999,69202.997778000004,124252.20488999999,2384.9730353999998,47423.552716999999,39304.977277999998,8243.6215518000008,4955.8928413000003,0]
[969,"2012-03-22","KW60MN07 ",7116847.7828377848,2638025.9112191284,1937023.5739943094,109806.07814034591,591196.25908447325,"Winter",282996.51137999998,59339.388112000001,111411.05305,2138.4920904000001,55677.074871999997,35107.946306999998,8962.6048320999998,1354.3257784,0]
[971,"2012-02-09","KW60MN10 ",7456559.520122123,2637545.9775297437,1916788.6727180178,107864.7902701946,612892.51454153121,"Winter",246145.83106,77495.352708000006,128687.04518,2470.0980801999999,57592.256808999999,36450.573704000002,9807.7699305999995,747.06969021999998,0]
[976,"2011-12-27","KW60MN08 ",7347237.9812546512,2636706.8687774003,1934104.6503986067,95418.988370000006,607183.23000879388,"Winter",286669.21406000003,62447.966746999999,105132.93691,2017.9860782000001,58048.252507999998,32126.172990999999,7666.1461004000003,816.33821894000005,0]
[977,"2012-02-25","KW60MN19 ",7347632.5758314375,2636586.8104721117,1925902.7380240373,126650.69553233983,584033.37691573449,"Winter",254996.62607,67401.922149000005,81421.646735999995,1562.8570305000001,55585.875732,27368.189605,6820.7626135999999,747.06969021999998,3053.2304963000001]
[980,"2012-01-13","KW60MN14 ",7327167.6661583399,2636388.9935717108,1924205.3732268121,93900.679937361769,618282.94040753704,"Winter",201722.89350000001,79281.001430999997,132162.79574999999,2536.8137685000002,57136.261109999999,37991.528621999998,8889.3555534000006,742.46966563000001,0]
[984,"2011-11-01","KW60MN20 ",7510124.4487016024,2635520.1996811414,1945770.37575982,111828.465977,577921.35794432135,"Winter",256281.81977,66340.508906999996,117739.04356999999,2259.955422,54810.683043999998,40536.596391999999,7543.7479573999999,4955.8928413000003,3053.2304963000001]
[987,"2012-02-23","KW60MN20 ",7503063.8211922478,2634808.1953717498,1919681.8781246906,116406.42444773397,598719.89279932505,"Winter",246484.57208000001,76077.084805999999,103074.06057,1978.4667429000001,57364.258958999999,33513.003540999998,7747.3250172999997,747.06969021999998,3053.2304963000001]
[990,"2012-02-10","KW60MN10 ",7278933.1179475775,2633720.0953501067,1919505.5380032756,107468.24427987788,606746.31306695298,"Winter",196031.87255999999,73214.213514999996,125337.90444,2405.8126185000001,55813.873582,37148.402519000003,9859.4463247999993,747.06969021999998,0]
[992,"2011-11-29","KW60MN14 ",7312541.1253933525,2633128.2149306131,1964586.2903035465,99548.055724999998,568993.86890206649,"Winter",194499.50953000001,76869.247841000004,126415.0282,2426.4875926,47879.548415999998,39331.528887,9465.0839113999991,4955.8928413000003,0]
[998,"2012-02-25","KW60MN20 ",7280241.1279498097,2631452.8395676673,1919377.6728533995,125854.59838876584,586220.56832550175,"Winter",246905.56864000001,73712.371950999994,79591.857969000004,1527.7349425,55996.271862000001,26633.857389000001,6740.0543283999996,747.06969021999998,3053.2304963000001]
[999,"2012-02-14","KW60MN22 ",7077547.2543495828,2631409.9148011641,1916280.6482309268,104258.86670915716,610870.39986108011,"Winter",282904.39918000001,67867.767796999993,96929.963042999996,1860.5331662999999,56680.265411,33712.438041000001,7087.9342274000001,747.06969021999998,3053.2304963000001]
[1002,"2012-02-07","KW60MN13 ",7384641.8877238613,2630305.9690679926,1959369.1626470459,104435.85046401827,566500.95595692855,"Winter",182691.96671000001,75428.481495999993,118886.93093,2281.9886759999999,56543.466700999998,35487.710035999997,9933.4320239999997,747.06969021999998,0]
[1005,"2012-03-05","KW60MN21 ",7053735.8011820456,2630161.9367068224,1938635.6671032989,105352.6694635852,586173.60013993841,"Winter",269886.17064000003,61460.667246999998,101269.41585,1943.8272852,55950.672292000003,33074.014523999998,7052.1238829000004,1354.3257784,3053.2304963000001]
[1009,"2011-12-09","KW60MN15 ",7314478.8456509365,2629779.3035188871,1900322.6885868059,87969.946909999999,641486.66802208126,"Winter",251290.25172999999,75413.658748000002,139624.07741999999,2680.0301856000001,58093.852078000004,36486.629634999998,8957.0249659000001,816.33821894000005,0]
[1012,"2012-01-22","KW60MN16 ",7103514.079818123,2629079.6201989213,1937948.9753816777,116400.48877655593,574730.15604068781,"Winter",314758.14859,49180.774416,77363.573113999999,1484.9638762,55449.077022999998,24772.74136,6627.4175646000003,742.46966563000001,560.18298412000001]
[1017,"2011-11-16","KW60MN07 ",7403515.0367704928,2627904.9386369428,1832900.1430974342,101744.951919,693259.84362050844,"Winter",311423.94316999998,59543.445541000001,118605.27329,2276.5823664999998,57820.254658999998,39331.821533000002,9815.2746470000002,4955.8928413000003,187.30720972]
[1020,"2011-12-19","KW60MN07 ",7532331.9294890519,2627235.3890070813,1868403.4151715864,104082.77097,654749.20286549511,"Winter",305344.11355000001,63112.382595000003,103547.05399,1987.5456687999999,55585.875732,33979.996113000001,8367.4011171999991,816.33821894000005,1984.1757625]
[1023,"2011-11-05","KW60MN10 ",6949719.9429413276,2625983.8795704655,1897870.04925322,121766.01443600001,606347.81588124542,"Winter",272171.11722999997,58024.918013000002,108290.9381,2078.6026901999999,57090.661540000001,30371.829969999999,6175.9969627999999,4955.8928413000003,0]
[1024,"2011-12-07","KW60MN14 ",7399550.8964592302,2625947.550355508,1980098.1135007809,90349.464449999999,555499.97240472725,"Winter",189358.15184000001,82664.691886999994,137835.27835000001,2645.6948791,56406.667991000002,35926.737948000002,10573.188324000001,816.33821894000005,0]
[1027,"2012-01-10","KW60MN12 ",7370333.7654119665,2625097.4700369965,1963000.9821305242,104339.39473389731,557757.09317257488,"Winter",169563.37521999999,71642.552257000003,122583.28502,2352.9387637,56224.269711000001,37019.277601000002,9445.3376886000005,742.46966563000001,0]
[1030,"2012-02-07","KW60MN21 ",7477462.0518536782,2624510.3608304472,1909006.5396691114,109139.69799479694,606364.12316653866,"Winter",268131.08916999999,69721.281409999996,104304.71975,2002.0887700999999,56999.462399999997,31089.143627000001,7770.9378702000004,747.06969021999998,3053.2304963000001]
[1034,"2012-03-01","KW60MN22 ",7119090.3283793721,2622895.2684879196,1925349.4597430942,109336.78718639641,588209.021558429,"Winter",270690.86738000001,66631.638936999996,93596.379503000004,1796.546319,56406.667991000002,31102.617676000002,6896.7222582000004,1354.3257784,3053.2304963000001]
[1038,"2011-12-27","KW60MN20 ",7642041.5620085513,2622274.2675767122,1936234.231380254,100973.53435,585066.50184645783,"Winter",270257.32211000001,63536.032014999997,100105.19127,1921.4804443999999,57501.057669000002,29383.032389,6472.4137755000002,816.33821894000005,3053.2304963000001]
[1042,"2012-02-13","KW60MN13 ",7283768.3312627897,2621606.9529566127,1966570.0717985763,110090.20627827135,544946.67487976514,"Winter",177137.37062,78090.327393,124079.69349999999,2381.6617460000002,55540.276163000002,38205.527114999997,9350.5595413999999,747.06969021999998,0]
[1045,"2011-12-16","KW60MN13 ",7476819.3472836902,2620688.7507062303,1912722.286148777,97037.774210000003,610928.69034745346,"Winter",250994.38193,83638.868635000006,129005.23686,2476.2056465999999,58048.252507999998,36872.125335999997,8635.4784433999994,816.33821894000005,0]
[1048,"2012-01-14","KW60MN20 ",7301668.1308564544,2619846.8942624549,1935201.4626461123,106364.11329356043,578281.31832278229,"Winter",288977.18075,69758.597779999996,82911.403363000005,1591.452333,55768.274012000002,26396.577376000001,7253.9944788000003,742.46966563000001,3053.2304963000001]
[1049,"2012-01-12","KW60MN15 ",7395064.2579818694,2619687.6232428034,1905561.3077315441,91157.212249248609,622969.10326201085,"Winter",234583.50745,79874.991146999993,132144.28219,2536.458408,56497.867130999999,36930.224870999999,9758.8394535000007,742.46966563000001,0]
[1052,"2011-12-11","KW60MN16 ",7198359.5771093164,2618585.2169847265,1853341.4077562443,92851.323439,672392.48578948248,"Winter",351046.75474,52798.434526999998,90582.207116000005,1738.6904454,57273.059820000002,26568.235724999999,7150.1439725,816.33821894000005,2290.3469318000002]
[1055,"2011-12-11","KW60MN14 ",6957699.9798734225,2617764.551219102,1842670.6606940597,94728.656226999999,680365.23429804214,"Winter",352594.40091999999,54709.579308,91724.448053,1760.6153185000001,57273.059820000002,27253.067547999999,6839.4659978,816.33821894000005,0]
[1060,"2012-02-06","KW60MN13 ",7364169.1175625985,2615756.2751251305,1926296.4976456547,104400.10374501839,585059.67373445758,"Winter",196851.82065000001,77463.656931999998,118324.19748,2271.1872248999998,57090.661540000001,34854.709027999997,9431.5844034000002,747.06969021999998,0]
[1063,"2011-11-20","KW60MN12 ",7018771.6460428368,2614674.2147405255,1869560.4201597827,106920.91291300001,638192.88166774274,"Winter",312477.11287999997,47590.233233999999,99113.341312000004,1902.442268,55540.276163000002,27032.307595999999,6166.144166,4955.8928413000003,0]
[1067,"2012-03-14","KW60MN20 ",7208346.5759319887,2613943.475590053,1916519.129538961,116591.98156896917,580832.36448212294,"Winter",279564.09957999998,67365.658234999995,97854.339439000003,1878.2762138000001,56452.267561000001,32707.946687,7053.0922337000002,1354.3257784,3053.2304963000001]
[1070,"2011-11-18","KW60MN16 ",7369745.0855337782,2612569.5875464473,1948112.3947645903,111504.919181,552952.27360085724,"Winter",187986.97192000001,70395.187030999994,125991.04909,2418.3494775999998,57501.057669000002,39013.939530000003,7311.5063702999996,4955.8928413000003,1730.5880082000001]
[1073,"2011-11-28","KW60MN08 ",7447345.3786038812,2612185.10791574,1878449.5160348648,110539.24843200001,623196.34344887512,"Winter",327091.44426999998,62721.216284000002,115099.5659,2209.2916685,57729.055519000001,34360.618714999997,9398.0848953999994,4955.8928413000003,0]
[1074,"2012-01-06","KW60MN15 ",7144675.3548538676,2612125.638237414,1954907.2985529618,96072.793644367979,561145.54604008433,"Winter",195669.29535,77148.932621,125085.76693,2400.9729364999998,54810.683043999998,36826.291510000003,8998.5692314999997,742.46966563000001,0]
[1080,"2011-12-28","KW60MN11 ",7379048.4859088995,2609395.7320255488,1916348.6900500534,100296.70782,592750.33415549563,"Winter",215468.08882999999,73168.874381999995,113850.90208,2185.3240492,56406.667991000002,34147.991194000002,7207.8793283000005,816.33821894000005,0]
[1081,"2012-01-06","KW60MN16 ",7189593.9471244616,2609069.5052130315,1938745.9217303533,94513.454766147013,575810.12871653098,"Winter",260901.27187,73742.795140000002,119739.99473000001,2298.3629059,56087.471001999998,35562.101459999998,8358.1374570000007,742.46966563000001,1577.9264826000001]
[1085,"2012-03-26","KW60MN08 ",7087859.2426271457,2608273.6847606711,1939425.5654166369,128054.49233042538,540793.62701360858,"Winter",214779.03313,70512.735845999996,110381.82541999999,2118.7364639000002,55722.674442000003,34896.355198999998,8698.1706704999997,1354.3257784,0]
[1088,"2011-11-10","KW60MN18 ",7582634.3968537282,2607535.3295036387,1919863.9115473921,110469.980268,577201.43768824672,"Winter",235161.15093,77447.151861000006,125505.73695000001,2409.0340986000001,56589.066271000003,38260.736315000002,8163.6005917000002,4955.8928413000003,3053.2304963000001]
[1092,"2012-01-05","KW60MN11 ",7347401.5550642069,2606848.9080888247,1943742.1591883395,107366.90932026108,555739.83958022401,"Winter",163433.52033,70373.403615999996,115583.57475,2218.5820312000001,48928.338523999999,36947.234989999997,9169.6828509999996,742.46966563000001,0]
[1095,"2012-02-05","KW60MN11 ",6935964.9554140242,2606227.6288155667,1872367.8751888862,106624.34175969596,627235.41186698456,"Winter",282914.91295999999,57495.693665999999,79455.127693000002,1525.1104577000001,56634.665841000002,25050.522465999999,6010.4208863000003,747.06969021999998,0]
[1098,"2011-12-08","KW60MN14 ",7426128.726760692,2605698.2220456032,1947779.5625302265,85951.112089999995,571967.54742537648,"Winter",175472.31344,81621.592973999999,131611.25753,2526.2272057999999,51436.314870000002,36578.462237,9872.1161408999997,816.33821894000005,0]
[1101,"2012-01-21","KW60MN13 ",7292645.9189919,2604374.5736209527,1894340.618034303,108506.33216816632,601527.6234184833,"Winter",289799.43932,65737.747659000001,82646.970335000005,1586.3766432,56725.864979999998,25942.258180000001,6543.0288699000002,742.46966563000001,0]
[1103,"2011-11-01","KW60MN21 ",7310842.6214187769,2603841.5457105562,1922488.3676905986,106427.31003399999,574925.8679859573,"Winter",270057.62378000002,62194.047037999997,113451.43398,2177.6564134,57227.460249999996,40171.739304000002,7238.9207159999996,4955.8928413000003,3053.2304963000001]
[1107,"2011-11-21","KW60MN07 ",7393977.8331387071,2603265.8470156062,1823788.2330859909,108195.995354,671281.61857561546,"Winter",337559.01997000002,57160.757392,110131.27012,2113.9271518,58048.252507999998,35589.968724999999,8116.7541001999998,4955.8928413000003,508.44768959999999]
[1110,"2012-01-09","KW60MN16 ",7359916.0233165408,2602255.7201123945,1914474.0186840678,93958.233778385431,593823.46764994145,"Winter",252052.97811,72210.969719000001,120443.22619,2311.8611618,53807.492506000002,35166.657349000001,8410.0830253999993,742.46966563000001,1374.3777831]
[1113,"2011-11-18","KW60MN22 ",7075985.2816462554,2601818.1822766159,1903843.400408732,113747.969274,584226.81259388383,"Winter",263399.67372999998,65902.407909000001,108024.12274000001,2073.4812726,57592.256808999999,35199.535834000002,6458.2745051000002,4955.8928413000003,3053.2304963000001]
[1117,"2011-11-04","KW60MN07 ",7174346.1938437046,2600972.3200502447,1892821.721382668,114498.955575,593651.64309257653,"Winter",297545.25880000001,65748.563043000002,128242.88453,2461.5725883,57090.661540000001,39838.820164999997,8638.5663296999992,4955.8928413000003,0]
[1118,"2012-03-21","KW60MN21 ",7089191.1356863119,2600868.7325426219,1917496.7095517684,107305.15550031072,576066.86749054259,"Winter",254065.23397999999,65105.273428,90291.423083000001,1733.1089583,48791.539814000003,32825.127993000002,6978.9761793999996,1354.3257784,3053.2304963000001]
[1124,"2012-01-07","KW60MN09 ",7033776.2609986635,2599460.3050059308,1866078.4063442897,118160.93636411749,615220.96229752351,"Winter",301651.46435000002,54233.732924000004,92268.898870000005,1771.0658415,57592.256808999999,27238.087049999998,6573.6436418000003,742.46966563000001,0]
[1125,"2012-02-16","KW60MN21 ",7352499.4316663416,2599394.9166533928,1906867.3433206559,115699.02825735163,576828.54507538537,"Winter",260246.58734999999,72928.745855000001,98266.575693999999,1886.1889292999999,48973.938093999997,34969.325519999999,7159.8342482999997,747.06969021999998,3053.2304963000001]
[1128,"2012-02-14","KW60MN15 ",7200671.1798473205,2599027.0277832872,1910748.0214260714,97927.576142815858,590351.43021440005,"Winter",206536.02394000001,77886.557581999994,127833.84587999999,2453.7212494999999,56725.864979999998,36539.233098999997,9062.9967027999992,747.06969021999998,0]
[1132,"2011-12-03","KW60MN20 ",7460065.6410096735,2598331.2377536343,1930051.4506578557,99457.11301999999,568822.67407577834,"Winter",252681.25098000001,65567.921539999996,91566.504163000005,1757.5836466999999,57592.256808999999,27916.498094999999,7071.3012844000004,816.33821894000005,3053.2304963000001]
[1135,"2011-11-05","KW60MN09 ",7059640.1038633185,2598160.6674766475,1853949.5063723878,121372.34520700001,622838.81589726009,"Winter",312584.09487999999,60193.628337000002,107674.53315,2066.7710354999999,56771.464549999997,30227.799406999999,6343.2100938000003,4955.8928413000003,0]
[1138,"2012-02-23","KW60MN21 ",7339655.1938188151,2597519.6315371552,1897679.7065888634,110909.53468788945,588930.39026040258,"Winter",247073.81041000001,72562.137906000004,98140.698931000006,1883.7727735999999,56634.665841000002,32792.206186000003,7387.0055398000004,747.06969021999998,3053.2304963000001]
[1143,"2012-02-25","KW60MN12 ",7051398.3222358702,2596584.949780473,1914676.0550005995,112831.83714275005,569077.05763712351,"Winter",256297.79182000001,62394.643414999999,80796.754178999996,1550.8624594,56452.267561000001,27265.818751999999,5721.2006779000003,747.06969021999998,0]
[1146,"2011-11-30","KW60MN22 ",7178753.2076578438,2595981.9582276335,1915652.5293826426,107312.91864799999,573016.51019699103,"Winter",287315.98144,64538.454734999999,108819.78234000001,2088.753651,56543.466700999998,34841.593889000003,7326.6613931000002,4955.8928413000003,3053.2304963000001]
[1147,"2012-03-12","KW60MN21 ",7034563.137039586,2595847.4396063378,1927370.6687162824,121244.37458851478,547232.39630154055,"Winter",213053.19312000001,56873.755235999997,89019.389528999993,1708.6927659999999,55585.875732,33911.853560000003,6616.4592908000004,1354.3257784,3053.2304963000001]
[1150,"2012-03-16","KW60MN10 ",7072652.9687269321,2595548.2136288229,1955124.8502254174,109277.68818381046,531145.67521959497,"Winter",168140.12450999999,67968.495001999996,120045.99963999999,2304.2365516999998,50341.925192000002,38186.312394,8372.8049193999996,1354.3257784,0]
[1153,"2012-02-10","KW60MN11 ",7278165.4087127838,2594594.0859827581,1884887.7990891179,104739.18705219249,604967.09984144778,"Winter",210033.51099000001,76039.765222000002,125301.44848000001,2405.1128606000002,54263.488205000001,37203.628307999999,9721.9033166999998,747.06969021999998,0]
[1157,"2012-03-06","KW60MN18 ",7284218.780599243,2593361.7629289404,1929168.8564786019,112239.05331572265,551953.85313461593,"Winter",233237.81709,69519.727379000004,98238.998789000005,1885.6596013000001,56543.466700999998,34028.101767,6958.7153087999995,1354.3257784,3049.4563644999998]
[1160,"2011-12-06","KW60MN16 ",7558441.1128902184,2593165.3569165883,1949566.274644054,89914.776279999991,553684.30599253438,"Winter",224030.52843999999,78295.524044999998,122019.57978,2342.1186595999998,58185.051218000001,34513.703858000001,8609.2720365999994,816.33821894000005,2239.4597568999998]
[1164,"2011-12-11","KW60MN08 ",6973074.1599687319,2592311.6264358917,1848168.2805720964,101568.74853,642574.59733379539,"Winter",285932.63436000003,63505.559013999999,89813.240248000002,1723.9304236,57090.661540000001,26341.176723,7130.6008998999996,816.33821894000005,0]
[1168,"2012-03-05","KW60MN11 ",7152850.9967833664,2590984.5316183036,1953873.6853346145,106937.28022533224,530173.56605835678,"Winter",167632.59059000001,71180.766998000006,118930.97815,2282.8341452999998,56497.867130999999,37492.391618000001,8504.2026265999993,1354.3257784,0]
[1171,"2011-11-05","KW60MN11 ",7110075.105995724,2590756.4152661096,1888223.4972944204,122124.50639100002,580408.41158068948,"Winter",242672.05301999999,61661.621941999998,106450.82311,2043.2823943999999,57181.860679999998,30180.551052999999,6066.2957231999999,4955.8928413000003,0]
[1172,"2011-11-23","KW60MN18 ",7387112.5457883142,2590705.260591154,1908859.8539755133,118209.17898700001,563636.2276286406,"Winter",221596.38573000001,70689.114503000004,110066.85775,2112.6907812999998,55677.074871999997,34760.292006000003,6250.3906551999999,4955.8928413000003,3053.2304963000001]
[1175,"2011-11-22","KW60MN17 ",7560828.61888518,2589715.0174949607,1888599.4496237005,113194.737427,587920.83044426015,"Winter",234990.88484000001,80099.373015000005,117738.58633000001,2259.9466453,56589.066271000003,38490.736662000003,6893.4633862000001,4955.8928413000003,3053.2304963000001]
[1178,"2012-01-27","KW60MN14 ",7253167.5554883135,2588131.8619067045,1935036.1824577251,95002.265383493694,558093.41406548582,"Winter",189585.35347999999,76910.539439,127462.73586,2446.5979361,57592.256808999999,36908.936534,8607.9921883000006,742.46966563000001,0]
[1182,"2011-12-23","KW60MN17 ",7662705.4371466981,2587306.283933348,1847286.8560169442,104011.15097,636008.27694640355,"Winter",302843.78274,80794.880481,97682.421937000006,1874.9763238,56953.862829999998,29321.697372999999,6831.3399804000001,816.33821894000005,3053.2304963000001]
[1185,"2012-01-15","KW60MN14 ",6876708.1682791347,2586241.9166833851,1897924.2285673455,104637.77525272041,583679.91286331939,"Winter",316738.8737,49123.17699,82143.924203000002,1576.7208671999999,55540.276163000002,25374.503827,5985.8481474,742.46966563000001,0]
[1189,"2011-11-09","KW60MN19 ",7522289.9612288745,2585879.2135678045,1891457.3749941976,120170.44383999999,574251.39473360684,"Winter",242160.54464000001,67109.352423999997,128213.44121999999,2461.0074352000001,57136.261109999999,37091.541307,7968.3120700999998,4955.8928413000003,3053.2304963000001]
[1193,"2012-02-02","KW60MN12 ",7308543.468482906,2585093.4207195062,1909082.1242875366,105907.19455551104,570104.10187645862,"Winter",191848.04306,76770.686604999995,129172.19059,2479.4102588999999,54217.888635000003,35299.494673000001,9402.7573553999991,747.06969021999998,0]
[1196,"2011-11-21","KW60MN15 ",7381998.5280725779,2583898.0543911872,1856124.3749541773,111053.114403,616720.56503400987,"Winter",243558.48595999999,74222.817601999996,120494.90302,2312.8530786000001,54263.488205000001,40100.037038000002,7785.9032870000001,4955.8928413000003,0]
[1197,"2011-12-07","KW60MN15 ",7335600.5433132173,2583648.5784893068,1944511.5651304361,86418.256689999995,552718.7566688708,"Winter",199120.21226,79607.670708999998,136268.67741999999,2615.6245798999998,57729.055519000001,35146.687997000001,9358.9581197000007,816.33821894000005,0]
[1200,"2012-02-03","KW60MN20 ",7227316.0581233408,2582817.5214404115,1871809.6912519298,108517.63083110595,602490.19935737574,"Winter",226664.78283000001,70576.410195999997,102092.56692,1959.6273518,58413.049068,31900.633935999998,6886.5545785000004,747.06969021999998,3053.2304963000001]
[1203,"2012-03-20","KW60MN12 ",7201033.8172865668,2581322.5206383411,1945966.6127735849,107572.9551622826,527782.95270247338,"Winter",186275.93812000001,78888.225105000005,113649.07851000001,2181.4501237999998,51481.91444,37929.984877000003,8504.6123136999995,1354.3257784,0]
[1206,"2012-02-01","KW60MN07 ",7370426.3326002043,2580826.1853689002,1868203.7119307781,117229.12986524634,595393.34357287595,"Winter",284623.47729000001,59696.197782000003,102905.72592,1975.2356244,49338.734653,34870.690486,8985.6894941999999,747.06969021999998,1322.6424892]
[1211,"2012-02-20","KW60MN14 ",7316849.3067758074,2578978.5661628107,1906966.5865938077,102982.28372075909,569029.69584824366,"Winter",210134.33523,73117.098400999996,102519.51157,1967.8223892999999,55950.672292000003,31128.424932999998,6834.8223180000005,747.06969021999998,0]
[1215,"2012-03-02","KW60MN19 ",7389856.7514607953,2578014.803665536,1893356.1671225061,113321.90872168982,571336.7278213402,"Winter",227371.66532,70992.335718999995,97973.648975999997,1880.5663142000001,56361.068421000004,30858.180167999999,7483.8964503999996,1354.3257784,3053.2304963000001]
[1218,"2011-11-30","KW60MN11 ",7262293.3876146367,2577551.9394659055,1923683.9211155269,106020.77863099999,547847.23971937853,"Winter",221201.14369999999,76828.859265999999,132933.56885000001,2551.6084602999999,48335.544114999997,38240.584116999999,10458.184857,4955.8928413000003,0]
[1221,"2011-12-26","KW60MN20 ",7567102.6661833702,2577314.5946015213,1892893.7989965735,105401.93015,579018.86545494804,"Winter",308255.40405999997,63580.310658000002,85102.983429999993,1633.5188651000001,53853.092076000001,24156.684692999999,6618.3570546999999,816.33821894000005,3053.2304963000001]
[1222,"2011-12-20","KW60MN16 ",7597917.3037156006,2576814.085333189,1898669.282176052,87924.722049999997,590220.08110713726,"Winter",261330.35514,70306.896473000001,118904.08147999999,2282.3178742,41085.212498000001,34691.586732000003,8024.9504138000002,816.33821894000005,2188.5725819999998]
[1227,"2012-02-25","KW60MN21 ",7140814.0023805397,2575877.1291727526,1886934.3226633226,118463.70349769051,570479.10301173967,"Winter",258391.97467,69816.127720000004,79148.063502999998,1519.2164792999999,55905.072721999997,26402.020667000001,6493.4974057999998,747.06969021999998,3053.2304963000001]
[1229,"2012-02-09","KW60MN18 ",7514387.0963125182,2575803.0084233424,1846976.6442142816,97874.257512489799,630952.10669657111,"Winter",273708.72655999998,89316.342883999998,121116.27059,2324.7799888999998,56041.871432,33546.458065999999,8163.2315350999997,747.06969021999998,3053.2304963000001]
[1233,"2011-11-22","KW60MN20 ",7427721.628483668,2575049.3450882067,1875040.6572449871,116664.425065,583344.26277821953,"Winter",249288.0539,69601.905660999997,109299.84996000001,2097.9683633,56999.462399999997,36432.254481000004,6240.5988041999999,4955.8928413000003,3053.2304963000001]
[1236,"2012-01-26","KW60MN22 ",7143210.919102258,2574464.8310710741,1869153.5352583537,100299.18398770469,605012.11182501609,"Winter",275533.04850999999,67244.537498999998,101768.47413,1953.406516,56224.269711000001,34000.6302,6994.4088423000003,742.46966563000001,3053.2304963000001]
[1240,"2011-12-10","KW60MN07 ",7060788.6238934686,2573520.5907771192,1834516.1793646556,98373.535379999987,640630.87603246339,"Winter",310908.07877000002,63694.141333,96006.931624999997,1842.8159350000001,57501.057669000002,28928.245628000001,7252.6536858999998,816.33821894000005,1627.9655384]
[1243,"2011-11-09","KW60MN10 ",7275848.8233060176,2572639.2408599476,1907503.3468981779,125938.28234000001,539197.61162176984,"Winter",196098.20903999999,75453.778986999998,134573.49278,2583.0861660999999,47469.152286999997,41089.945571999997,10136.089828,4955.8928413000003,0]
[1246,"2012-01-31","KW60MN13 ",7232439.5251969285,2572039.731624824,1909027.7334711952,112957.00440815141,550054.9937454774,"Winter",190590.62823,82327.719794999997,121321.33874000001,2328.7161927000002,54901.882184000002,37648.131782999997,9310.9130397000008,742.46966563000001,0]
[1248,"2011-11-28","KW60MN10 ",7371012.164641276,2571407.8688198556,1889244.4424272573,107219.941647,574943.48474559828,"Winter",218576.79897999999,69637.597554000007,123008.89732,2361.1082273000002,57227.460249999996,35393.451531999999,9772.7958889000001,4955.8928413000003,0]
[1251,"2011-12-17","KW60MN12 ",7120601.9221487725,2570418.870574832,1825914.5383573566,94084.916280000005,650419.41593747563,"Winter",335308.10541000002,69004.061226999998,92990.172972999993,1784.910419,57227.460249999996,25899.964875999998,6732.3447690000003,816.33821894000005,0]
[1254,"2011-12-05","KW60MN16 ",7585828.1583665917,2569503.469325982,1918881.054584905,86097.407430000007,564525.00731107686,"Winter",220433.30880999999,73295.606071000002,123739.09182,2375.1240283000002,57865.854227999997,35285.508102,8456.4622718999999,816.33821894000005,2239.4597568999998]
[1258,"2012-02-08","KW60MN15 ",7338574.2787603494,2569150.5343213174,1875917.5868562926,96865.338398522115,596367.60906650242,"Winter",206368.29091000001,71949.890100000004,128767.27241999999,2471.6380110999999,49794.730352999999,35035.378811000002,9493.0374126999995,747.06969021999998,0]
[1261,"2011-12-31","KW60MN12 ",6888209.7992117954,2568819.0621230048,1889134.1722046072,101258.34067000001,578426.54924839758,"Winter",283166.90466,62216.220906000002,80935.657684999998,1553.5286584999999,56406.667991000002,20468.688328,5659.0197129999997,816.33821894000005,0]
[1265,"2012-02-26","KW60MN12 ",6947896.004914552,2568171.6012154967,1896453.2095648127,120139.562603043,551578.82904764113,"Winter",227814.74931000001,48494.195947,77150.166758000007,1480.8676237,55540.276163000002,26156.597032000001,5659.8594013000002,747.06969021999998,0]
[1268,"2012-02-20","KW60MN16 ",7359799.9837503098,2567728.8302957695,1905301.0778511919,98368.621363741287,564059.13108083606,"Winter",219150.98733,63806.805469999999,98397.165674000003,1888.6955535,54993.081323999999,30405.956456,6823.3883330999997,747.06969021999998,0]
[1269,"2012-01-12","KW60MN05 ",7013411.7656309968,2567357.1476264447,1822528.1873876243,98087.030374119873,646741.92986470065,"Winter",309967.78388,57147.930291999997,91569.548016000001,1757.6420722,57409.858528999997,32332.053306999998,8609.4142410999993,742.46966563000001,3053.2304963000001]
[1273,"2012-02-21","KW60MN11 ",7355867.61246516,2566738.6173013872,1896733.404090117,104354.31618677272,565650.89702449774,"Winter",207540.72636999999,71595.360482000004,113314.62194,2175.0303592999999,55084.280463000003,36944.391050999999,9432.5899981000002,747.06969021999998,0]
[1276,"2012-01-14","KW60MN21 ",7200514.8109019324,2566005.447967764,1894632.6165093016,102083.26848156008,569289.56297690235,"Winter",275306.47220000002,67078.289728000003,78577.985325999995,1508.2740491,55905.072721999997,26293.409662999999,7375.9863201999997,742.46966563000001,3053.2304963000001]
[1280,"2011-12-08","KW60MN15 ",7356538.0946022505,2563467.4661321607,1912327.7033002921,85589.141629999998,565550.62120186852,"Winter",198904.70086000001,85567.357237000004,132997.57370000001,2552.8370086,51755.511858999998,35658.156282000004,9321.5581232000004,816.33821894000005,0]
[1283,"2011-11-08","KW60MN21 ",7327754.4435909605,2562203.4888964402,1876794.1408820979,122835.519225,562573.82878934254,"Winter",268406.95945000002,65091.152851999999,115725.06211,2221.2978263999998,57273.059820000002,36851.189608000001,7638.5379549999998,4955.8928413000003,3053.2304963000001]
[1286,"2012-01-10","KW60MN13 ",7278648.1945480537,2561278.4399729646,1920318.1260678305,99636.860598334344,541323.45330679987,"Winter",154728.75247000001,68472.746432,122443.82034999999,2350.2617933000001,55996.271862000001,37865.231096000003,9354.8951104000007,742.46966563000001,0]
[1290,"2012-02-19","KW60MN09 ",6941127.8941823253,2559489.0206479891,1883609.7641228901,121900.88277207506,553978.37375302415,"Winter",235260.09922,51472.617191999998,76321.689402999997,1464.9653212000001,46283.563469000001,25118.802455000001,6153.8484859,747.06969021999998,0]
[1294,"2012-01-26","KW60MN12 ",7373014.8619169155,2558965.5235795421,1885102.0555816258,106843.78887998046,567019.67911793583,"Winter",182078.29866999999,74372.581191000005,119334.73346,2290.5840724,56953.862829999998,36342.255900999997,8897.4815708999995,742.46966563000001,0]
[1297,"2011-12-28","KW60MN17 ",7576495.4107531467,2558498.440278817,1864933.2745500866,96514.596073000008,597050.56965573027,"Winter",238391.14056999999,81931.938750000001,110752.66468,2125.8545801999999,56452.267561000001,32082.890981,6675.0563441000004,816.33821894000005,3053.2304963000001]
[1298,"2011-12-18","KW60MN11 ",7054806.3088717191,2558464.2120621172,1837720.4311398147,101268.80151,619474.97941230249,"Winter",302011.84766999999,54297.548672999998,89213.765950000001,1712.4237462999999,56999.462399999997,26229.836839,6391.2958031999997,816.33821894000005,0]
[1301,"2012-03-12","KW60MN18 ",6849212.9008059623,2557959.3441832475,1893717.7525141193,110124.36708087404,554117.224588254,"Winter",229127.88084,55190.920954000001,98956.118885000004,1899.4244443,52485.104978000003,33161.756866999996,6809.8686710000002,1354.3257784,2866.5169701999998]
[1305,"2012-02-20","KW60MN15 ",7278223.8578156186,2556191.2365675475,1895403.693613847,101831.90867776259,558955.63427593792,"Winter",205796.38125000001,70321.948994999999,101889.43156,1955.7282471000001,55722.674442000003,30971.753120000001,6788.1925185999999,747.06969021999998,0]
[1308,"2012-02-02","KW60MN18 ",7623853.5399517752,2555371.2141804546,1860271.8143616009,115688.78585954184,579410.61395931174,"Winter",240301.87270000001,76977.494879000005,112228.27224000001,2154.1782968000002,56953.862829999998,32921.341239000001,7605.5547874000004,747.06969021999998,3053.2304963000001]
[1311,"2012-01-04","KW60MN21 ",7307887.0255867569,2554856.4889050545,1851426.6698396211,111174.80911271009,592255.00995272317,"Winter",226324.18705000001,65959.161762999996,94871.555202000003,1821.0228236,54810.683043999998,34421.082756999996,7012.3876565,742.46966563000001,3053.2304963000001]
[1316,"2011-12-04","KW60MN11 ",7085629.2219404504,2553292.4982207716,1890613.6140962744,103737.78550299999,558941.09862149705,"Winter",280161.83795999998,52381.517607000002,89833.369428000005,1724.3167954999999,56953.862829999998,26039.902397000002,6152.1877305999997,816.33821894000005,0]
[1319,"2012-02-19","KW60MN10 ",6967944.9848316545,2552500.3761329083,1882888.9429317599,119043.49466461176,550567.93853653676,"Winter",252688.63819,49787.125259,72751.370192999995,1396.4344243,47742.749706000002,25107.689868000001,6097.8145146999996,747.06969021999998,0]
[1320,"2012-03-20","KW60MN21 ",7129872.1444079224,2552491.8146137479,1883964.3324435346,108510.55641695637,560016.92575325677,"Winter",252482.65489999999,63449.211681000001,91455.757786999995,1755.4579128,51801.111428999997,32534.1482,6914.6926076,1354.3257784,3053.2304963000001]
[1323,"2012-01-24","KW60MN22 ",7125394.9662772054,2552163.1831096308,1847526.9714209414,98688.338124739719,605947.8735639496,"Winter",280414.91071000003,68639.554975999999,97236.948690000005,1866.4256370999999,57546.657239,34046.668962999996,7520.7513273000004,742.46966563000001,3053.2304963000001]
[1326,"2011-11-14","KW60MN19 ",7502401.0958639951,2551560.5490348451,1828374.6575345811,116347.793622,606838.09787826426,"Winter",259494.70331000001,64259.128272000002,112689.31634999999,2163.0278601999999,57181.860679999998,37938.687735,7545.1090655999997,4955.8928413000003,3053.2304963000001]
[1330,"2011-11-15","KW60MN11 ",7204008.4369801832,2551209.7467350727,1857108.144802171,111553.55455500001,582548.04737790185,"Winter",210341.13459999999,75776.816892000003,129851.6642,2492.4524919999999,57501.057669000002,41230.503161000001,10569.206574,4955.8928413000003,0]
[1332,"2011-12-03","KW60MN21 ",7336851.6845993232,2550653.1036436632,1881568.8494050142,97829.025150000001,571255.22908864927,"Winter",261905.40197000001,64242.888324,86792.793904999999,1665.9541237999999,57136.261109999999,27538.998683000002,6885.7030387000004,816.33821894000005,3053.2304963000001]
[1337,"2011-12-16","KW60MN14 ",7430055.0637028888,2548776.9676184393,1857063.1087201273,91766.45319,599947.40570831217,"Winter",245139.78260999999,81066.317546000006,128124.97004,2459.3092651000002,58230.650787999999,37322.813585999997,8537.2552035999997,816.33821894000005,0]
[1341,"2012-03-09","KW60MN07 ",6971263.3311181404,2546801.5557125793,1853604.9668267844,108595.02317028047,584601.56571551447,"Winter",277121.87014999997,56515.693868000002,93829.279813000001,1801.0167504000001,56543.466700999998,33926.37601,8285.3926694999991,1354.3257784,0]
[1344,"2011-12-05","KW60MN15 ",7458722.9837539755,2546158.0565190958,1913380.5714578182,86105.612070000003,546671.87299127749,"Winter",181597.27179,70980.181868,126668.81613000001,2431.3589538000001,57729.055519000001,36889.627339999999,8898.0503922000007,816.33821894000005,0]
[1345,"2011-12-29","KW60MN12 ",7159130.429958907,2545510.7779658674,1885474.9892074913,94873.452940999996,565162.33581737627,"Winter",208798.95728999999,68994.262948999996,105756.2329,2029.9500038000001,39033.231851999997,33588.284332000003,7095.4761877000001,816.33821894000005,0]
[1348,"2012-02-05","KW60MN21 ",7120808.0442652218,2545121.1623590519,1807802.3750381961,105590.50676877364,631728.28055208235,"Winter",286178.16093000001,60587.985756000002,74916.855551000001,1438.0000785,56543.466700999998,25525.740018,6660.2585264999998,747.06969021999998,3053.2304963000001]
[1351,"2012-01-01","KW60MN18 ",7169511.587278408,2544245.3006832548,1858220.9540577077,105892.86331379977,580131.48331174732,"Winter",294447.65594999999,61164.718417999997,78459.156801999998,1505.9931815,55129.880033000001,16920.777053999998,6597.2700389000001,742.46966563000001,3053.2304963000001]
[1357,"2011-11-04","KW60MN19 ",7151833.6919739218,2542058.7480067126,1873999.2151230406,116268.98484,551790.54804367176,"Winter",218809.67084999999,69972.614168,124401.22070000001,2387.8333361999998,56953.862829999998,36668.573256000003,6876.6831592999997,4955.8928413000003,3053.2304963000001]
[1359,"2012-03-02","KW60MN13 ",7183017.059906357,2541915.1695166244,1896074.960839401,96558.345675111588,549281.86300211202,"Winter",185894.54844000001,80008.082557999995,115788.19219,2222.5095839999999,47058.756157000003,36038.851924000002,8955.3049587999994,1354.3257784,0]
[1362,"2012-03-15","KW60MN12 ",6971229.7002879428,2540934.32170064,1904915.8602989062,113360.98094527767,522657.48045645613,"Winter",151162.27929999999,75535.158689000004,116839.53128,2242.6896311999999,46374.762608999998,38539.777984,8396.8647032000008,1354.3257784,0]
[1366,"2012-01-02","KW60MN08 ",6962655.8804335911,2539642.796284026,1848997.320836175,94269.844177858409,596375.63126999268,"Winter",251590.97567000001,54894.170330000001,87759.979328999994,1684.5188740999999,54081.089925,22618.180328999999,8146.5765852000004,742.46966563000001,0]
[1369,"2012-02-06","KW60MN14 ",7256502.5526448414,2537905.0049319416,1865985.9002527755,94312.382104888617,577606.72257427743,"Winter",211983.11869,72553.867696000001,116760.54406,2241.1735021,56953.862829999998,34766.583326,9327.0584211999994,747.06969021999998,0]
[1370,"2011-12-31","KW60MN17 ",7262976.9402677324,2537880.8568874318,1847083.983127435,95980.673739999984,594816.20001999673,"Winter",281539.59960000002,62787.575600999997,79165.184886999996,1519.5451175999999,56269.869280999999,19124.797239,6343.6976542000002,816.33821894000005,3053.2304963000001]
[1373,"2012-02-13","KW60MN15 ",7181733.1497733314,2536862.8232806674,1899817.2720309647,105785.00326843564,531260.54798126698,"Winter",153823.52825999999,71970.879753999994,120651.95194,2315.8675718999998,55677.074871999997,38250.717428000004,9148.5839847999996,747.06969021999998,0]
[1378,"2011-11-19","KW60MN22 ",6952008.9293613695,2536105.7738172277,1816492.6282805805,103292.29292399999,616320.85261264734,"Winter",328448.12534000003,66444.640925,97092.167958999999,1863.6466269,57227.460249999996,28184.843756999999,6606.0258235000001,4955.8928413000003,3053.2304963000001]
[1381,"2011-12-26","KW60MN13 ",6993789.1852629678,2535946.8415620388,1867725.3866692684,101865.1081,566356.34679277043,"Winter",274063.08987999998,60601.834781999998,81729.412062999996,1568.7644668999999,55768.274012000002,23985.915206000001,6027.5752491000003,816.33821894000005,0]
[1384,"2012-03-28","KW60MN09 ",6915445.2744183149,2535442.3062674664,1900071.5118513571,120323.40563553387,515047.38878057536,"Winter",166028.65538000001,67570.607438999999,114856.10535,2204.6185372999998,40538.017658999997,33629.487699999998,8870.7977602999999,1354.3257784,0]
[1388,"2012-02-10","KW60MN18 ",7229094.4340508524,2534874.0704773236,1829417.6606832575,104337.41649050656,601118.99330355972,"Winter",205764.14038999999,77881.987836999993,112925.78941,2167.5668691999999,55403.477453,33894.515747999998,7742.1108222000003,747.06969021999998,3053.2304963000001]
[1391,"2011-12-08","KW60MN06 ",7196785.384573156,2534099.8955007549,1808749.5107555503,92085.270750000011,633265.1139952048,"Winter",305791.72313,61983.165520000002,110790.01974,2126.5715960000002,52257.107128000003,32603.389997999999,9754.5529788000003,816.33821894000005,3053.2304963000001]
[1394,"2011-12-27","KW60MN16 ",7253943.8846939886,2532824.124713337,1868317.3851873863,91088.664770000003,573418.07475595106,"Winter",254845.85076,66055.871962999998,103765.58143999999,1991.7402185999999,57136.261109999999,31615.175714000001,6917.2319877999998,816.33821894000005,1985.0238824999999]
[1395,"2011-11-07","KW60MN17 ",7467076.5611372553,2532627.482538606,1821900.2721079155,107307.937701,603419.27272969089,"Winter",235150.45697,74674.242201999994,133058.17264,2554.0001818000001,56908.26326,37909.093918999999,7895.5638959999997,4955.8928413000003,3053.2304963000001]
[1399,"2011-11-06","KW60MN19 ",7222206.8730050344,2530193.3387057236,1859075.0803614017,113226.63282700001,557891.6255173221,"Winter",258910.77486999999,59183.737201000004,102026.8918,1958.3667430999999,55859.473151999999,28656.384761000001,6741.9944155000003,4955.8928413000003,3053.2304963000001]
[1402,"2012-02-07","KW60MN16 ",7217318.2147073224,2529925.1040179869,1864272.8815278567,99219.710381779092,566432.5121083511,"Winter",195493.48620000001,74653.646213999993,116380.44336999999,2233.8776163000002,56543.466700999998,33728.934213,9223.3704345999995,747.06969021999998,0]
[1406,"2012-01-21","KW60MN14 ",7187189.9542098977,2529596.6679745163,1835920.8321268712,103725.13551989678,589950.70032774808,"Winter",283692.84830000001,62271.883740999998,80844.242551000003,1551.7739804,56315.468850999998,26010.033673999998,6606.3914934000004,742.46966563000001,0]
[1409,"2011-12-29","KW60MN16 ",7155463.832506842,2528755.5110035613,1853761.2070051469,90157.909090000001,584836.39490841446,"Winter",195706.0724,67596.735646000001,111195.59943,2134.3565414999998,49156.336373999999,31818.822197000001,6699.9829037,816.33821894000005,1934.1367077]
[1413,"2012-01-07","KW60MN12 ",6983426.9687856222,2527431.7635398819,1830645.5879275338,106580.75666264659,590205.41894970147,"Winter",287859.53990999999,61433.444807,85510.326302999994,1641.3376539999999,57273.059820000002,26667.211024,5956.4522780999996,742.46966563000001,0]
[1416,"2011-12-18","KW60MN09 ",7023467.837840599,2526873.729781948,1812088.225753072,98155.847910000011,616629.6561188763,"Winter",301505.53259000002,55061.920461000002,90437.989499000003,1735.9222440000001,56999.462399999997,26085.69498,6559.0574403999999,816.33821894000005,0]
[1420,"2012-01-26","KW60MN07 ",7336503.6440974474,2526567.9242609199,1795356.5108888589,93639.228460759041,637572.18491130183,"Winter",266640.95085000002,62170.057483999997,99660.254954000004,1912.9400639,57273.059820000002,34779.761579999999,8522.5674271000007,742.46966563000001,1627.9655384]
[1421,"2012-01-14","KW60MN13 ",6962205.3400148703,2526404.7947081854,1866748.5038154975,102089.52809303856,557566.76279964938,"Winter",292802.97983000003,68323.954958000002,85241.920465000003,1636.1857077,55357.877883000001,26993.277127000001,6578.7427186000004,742.46966563000001,0]
[1424,"2012-03-15","KW60MN20 ",7066194.9559482429,2525775.0599222397,1872073.65178719,106410.39357036306,547291.01456468669,"Winter",246209.82524999999,64496.4931,96484.167820000002,1851.9762992999999,55996.271862000001,33004.388392000001,7009.7771728999996,1354.3257784,3053.2304963000001]
[1427,"2012-01-27","KW60MN17 ",7303120.517198802,2524923.4185588011,1856413.8830383066,94644.004610951786,573865.53090954258,"Winter",241217.10196999999,70799.641594000001,119949.40153,2302.3823883,54947.481754,33835.739494000001,7225.0455405000002,742.46966563000001,3032.5505136000002]
[1431,"2011-11-16","KW60MN21 ",7248611.6331885075,2524186.2559982771,1770841.6275112526,107020.875616,646323.75287102454,"Winter",294316.41381,73798.808258999998,119513.07889999999,2294.0073441999998,57409.858528999997,36213.407894999997,8005.9152179000002,4955.8928413000003,3053.2304963000001]
[1434,"2011-11-22","KW60MN13 ",7193090.1764013413,2523425.5036321217,1858428.822629611,112245.74534199999,552750.93566051091,"Winter",171803.10829,75279.710911000002,122070.72748,2343.1004198999999,57136.261109999999,40385.994009000002,8614.5539473000008,4955.8928413000003,0]
[1438,"2012-02-26","KW60MN13 ",6820958.9770482555,2523014.2037701835,1865342.6165145971,114939.59753735985,542731.98971822648,"Winter",232772.16873999999,45959.120302000003,80179.696891,1539.0182832999999,55175.479603,26165.386104000001,5833.3244867000003,747.06969021999998,0]
[1441,"2011-11-03","KW60MN09 ",7249730.1948755542,2522622.2662403444,1868425.5519020723,109458.87557800001,544737.83876027213,"Winter",206368.01534000001,71696.720767000006,139383.59273999999,2675.4141752,55585.875732,42371.602850000003,10202.154352,4955.8928413000003,0]
[1445,"2012-01-28","KW60MN18 ",7395899.2247046363,2521542.3251637998,1815247.4100343974,108560.76081475533,597734.15431464731,"Winter",283871.36008000001,74701.426078999997,86731.685245000001,1664.7811667000001,54172.289064999997,27318.921951,7257.1433109,742.46966563000001,3053.2304963000001]
[1446,"2012-01-29","KW60MN08 ",6867237.4835519735,2521438.6194931506,1840073.1733530459,106634.40355856401,574731.04258154065,"Winter",270420.73092,58047.250954000003,77160.233013000005,1481.0608416,51481.91444,25375.637389,6268.2882095000004,742.46966563000001,0]
[1449,"2011-12-17","KW60MN21 ",7450022.8562514726,2520858.2617988726,1799086.5673267609,97225.099379999985,624546.59509211162,"Winter",309060.30216999998,67684.526488000003,92008.150318,1766.0608738000001,57090.661540000001,26530.00866,7272.7452646000002,816.33821894000005,3053.2304963000001]
[1453,"2012-01-24","KW60MN06 ",7119701.7402706649,2519570.2469769483,1797231.2526308214,91290.130692401319,631048.86365372525,"Winter",274583.50107,57955.324203999997,92773.303987000007,1780.7477027,57820.254658999998,33796.611431999998,9081.2514621999999,742.46966563000001,3053.2304963000001]
[1456,"2012-02-12","KW60MN18 ",7268470.2095275307,2519150.0179241151,1869184.3390731981,112428.71856660095,537536.96028431575,"Winter",206026.65646999999,59227.083898999997,81692.146800999995,1568.0491746,55266.678742999997,27106.885214000002,6530.1643684000001,747.06969021999998,3053.2304963000001]
[1459,"2011-12-22","KW60MN05 ",6842582.3682490392,2518809.4686379703,1812543.4157675491,95509.180009999996,610756.87286042096,"Winter",302063.98204999999,55486.492185000003,98457.323214999997,1889.8502543,56725.864979999998,32320.008194999999,8070.0294978000002,816.33821894000005,3053.2304963000001]
[1462,"2012-01-07","KW60MN20 ",7294429.7625559475,2517670.2212206223,1856482.1685412074,109893.03034021758,551295.02233919746,"Winter",252849.35496999999,63743.682252999999,84520.179013999994,1622.3321596000001,56224.269711000001,26077.942147999998,6594.8525490000002,742.46966563000001,3053.2304963000001]
[1467,"2012-03-21","KW60MN15 ",6915496.5674599111,2516680.2819960872,1872235.1049080994,96469.148222561518,547976.02886542608,"Winter",206096.00294000001,77533.099700999999,109223.72218,2096.5071200000002,49065.137234000002,36007.321502999999,7991.3493306999999,1354.3257784,0]
[1470,"2011-11-03","KW60MN21 ",7098285.9501244705,2516505.2894337308,1850530.5590671992,107464.041444,558510.68892253155,"Winter",275095.79373999999,68041.760353999998,115807.61622,2222.8824205999999,55905.072721999997,39628.587450999999,6941.0818503999999,4955.8928413000003,3053.2304963000001]
[1471,"2012-03-19","KW60MN15 ",7223814.3305644523,2516410.3396938001,1921334.9490970334,100160.89748632921,494914.49311043724,"Winter",148466.66975999999,74672.195135999995,107516.21975,2063.7322709,57227.460249999996,33822.743182999999,7650.8996590999996,1354.3257784,0]
[1474,"2011-11-08","KW60MN17 ",7493133.5455594473,2515001.1706412374,1854443.518727225,113800.719252,546756.93266201217,"Winter",229339.23761000001,74499.534618999998,128812.17097000001,2472.4998214000002,57729.055519000001,39211.605435999998,7982.4310263999996,4955.8928413000003,3053.2304963000001]
[1478,"2012-02-26","KW60MN22 ",6865592.3825932778,2514009.2686967901,1832665.6095387517,108574.05164406242,572769.60751397605,"Winter",266360.56557999999,56939.234024999998,76814.394495999994,1474.4226048999999,55768.274012000002,27413.578405,6311.2240560999999,747.06969021999998,3053.2304963000001]
[1481,"2012-03-26","KW60MN11 ",7031698.5062939972,2513519.5136129512,1885498.4937015849,120821.55763870671,507199.46227265976,"Winter",151389.05699000001,73191.615451000005,109782.46249999999,2107.2319244999999,56133.070571999997,35960.782136000002,8561.3166813000007,1354.3257784,0]
[1483,"2012-03-27","KW60MN11 ",6961852.6676348541,2513430.7980910866,1866282.5070386324,126142.83608715456,521005.45496529946,"Winter",189422.55937999999,75330.111470000003,119072.13043999999,2285.5435090000001,39808.42454,35384.559818000002,8656.1219148,1354.3257784,0]
[1489,"2012-01-30","KW60MN14 ",7118105.9555008989,2512641.5608620155,1854509.0079070767,94523.05376838916,563609.49918654945,"Winter",174962.58562,72695.881678999998,119734.64904,2298.2602975,55129.880033000001,37020.741069000003,8506.6810621999994,742.46966563000001,0]
[1492,"2012-03-01","KW60MN06 ",7061454.7294654278,2512373.8496831916,1826626.3322391338,95388.939333173796,590358.57811088383,"Winter",257697.13214999999,58572.099978999999,86728.059905000002,1664.7115796999999,55266.678742999997,31262.990275,8014.3104095999997,1354.3257784,2085.9501132]
[1493,"2011-12-30","KW60MN13 ",7020896.5804946702,2512351.57747747,1853835.7088585331,98429.808034999995,560086.06058393698,"Winter",225228.72902999999,69540.725067000007,99388.917335000006,1907.7318432,55950.672292000003,31773.06191,7055.2523997999997,816.33821894000005,0]
[1496,"2012-03-15","KW60MN13 ",6970303.9636272304,2511339.5679940437,1883834.2708733231,105276.62182648771,522228.67529423285,"Winter",140971.86691000001,72650.208331999995,119028.49877999999,2284.7060161999998,47788.349276000001,38536.570016999998,8278.4838607999991,1354.3257784,0]
[1499,"2012-02-19","KW60MN20 ",7213812.5302267922,2510440.7242987752,1833179.9408451035,120484.30269846524,556776.48075520643,"Winter",235122.98546,59334.694643000003,76389.958947000006,1466.2757286999999,54217.888635000003,26407.933564999999,6626.2172844999996,747.06969021999998,3053.2304963000001]
[1504,"2011-11-06","KW60MN09 ",6783955.0055788215,2509343.561073781,1829559.8970206745,113345.771641,566437.89241210627,"Winter",287715.12374000001,48056.769806999997,94803.673316,1819.719857,57045.061970000002,28131.447392999999,6031.6585725000004,4955.8928413000003,0]
[1507,"2011-12-23","KW60MN06 ",7088932.4869664032,2507747.1477775224,1788316.0139359792,92665.815800000011,626765.31804154336,"Winter",280466.45157999999,59355.904430000002,92196.143582000004,1769.6693319000001,56269.869280999999,29925.489644000001,7715.0647270999998,816.33821894000005,3053.2304963000001]
[1510,"2012-01-30","KW60MN22 ",7023779.0136200413,2506319.2427322967,1821667.6091680154,108992.53026279566,575659.1033014853,"Winter",250137.86877,61003.991619,93505.055428000007,1794.7933886999999,55722.674442000003,31963.69526,7317.9665543000001,742.46966563000001,3053.2304963000001]
[1514,"2011-11-02","KW60MN20 ",7246798.1162292389,2504588.9593171091,1812817.4184221195,106466.308309,585305.23258598975,"Winter",291830.75143,63777.124623000003,122206.59804,2345.7084027999999,53351.496806000003,39635.429558999997,7083.7747224000004,4955.8928413000003,3053.2304963000001]
[1517,"2011-11-09","KW60MN11 ",7195122.1083503468,2503805.8610315467,1869077.2174712417,112637.85299900001,522090.79056130472,"Winter",189500.18333999999,78260.551999000003,132638.37142000001,2545.9422596999998,47241.154436999997,41312.594044999998,10510.760192,4955.8928413000003,0]
[1518,"2011-11-07","KW60MN13 ",7194079.9596883766,2502953.0363149354,1807660.159488152,107255.492702,588037.38412478357,"Winter",194513.95538,71599.220021000001,136664.81185,2623.2282270000001,56543.466700999998,41056.185679000002,10181.961198000001,4955.8928413000003,0]
[1521,"2012-01-29","KW60MN21 ",7146105.5125878714,2501962.0307359705,1849882.6045420927,118300.21589190974,533779.21030196827,"Winter",233859.65663000001,55887.384467999997,74143.404431000003,1423.1539832999999,54582.685193999998,26713.788035000001,6385.4653864000002,742.46966563000001,3053.2304963000001]
[1525,"2012-03-05","KW60MN13 ",6953658.1264971141,2501575.0585877197,1881784.8894579152,99145.427619697584,520644.74151010677,"Winter",159075.02632,66517.448338000002,117902.79843,2263.0986332000002,56178.670141000002,37180.952638000002,8375.4678827000007,1354.3257784,0]
[1529,"2012-01-08","KW60MN22 ",6985493.7174192611,2501117.9880236909,1828041.7730528254,103044.99590589404,570031.21906497166,"Winter",300817.07040999999,57639.087892000003,81988.320961000005,1573.7341231,56406.667991000002,25724.684496000002,6385.9732620000004,742.46966563000001,3053.2304963000001]
[1532,"2012-01-25","KW60MN17 ",7342515.976539257,2500278.6737495014,1816358.8915381534,98627.106142877819,585292.67606847023,"Winter",206804.44343000001,77213.035986999996,107294.86122999999,2059.4833797000001,57683.455949000003,35565.237383,7791.5914992999997,742.46966563000001,3052.8205720999999]
[1535,"2011-12-14","KW60MN05 ",6724676.2861083662,2500006.4435428958,1828670.6493159099,90430.068010000003,580905.72621698608,"Winter",279739.60136999999,60651.062376000002,98804.881276999993,1896.5214969000001,56771.464549999997,32113.258394,7882.1153372999997,816.33821894000005,3053.2304963000001]
[1539,"2011-11-14","KW60MN08 ",7202954.7717674291,2498958.3520731791,1785204.9219570875,120448.29775700001,593305.13235909166,"Winter",253909.06399,55055.811399999999,119840.86500999999,2300.2990718999999,56543.466700999998,39344.269587000003,9397.5770186999998,4955.8928413000003,0]
[1542,"2011-11-17","KW60MN09 ",7262545.3522338374,2497850.0723998481,1785500.6838696636,104298.19885500001,608051.1896751842,"Winter",265335.38669999997,66118.027885999996,133704.18601999999,2566.4001589999998,56543.466700999998,39617.022794999997,10427.265359999999,4955.8928413000003,0]
[1543,"2012-01-31","KW60MN22 ",7021564.5894847037,2497598.5078463634,1816042.9244351564,109045.46512199931,572510.11828920769,"Winter",269004.04071999999,67768.640966999999,94842.817504000006,1820.4712145999999,55449.077022999998,33572.075099000002,7326.3363523999997,742.46966563000001,3053.2304963000001]
[1546,"2012-03-27","KW60MN08 ",6925590.3710603928,2496570.9332491485,1819966.9685084373,126468.52502708646,550135.43971362477,"Winter",231232.27012,67187.063796999995,117775.29605,2260.6512742999998,43593.188843999997,35229.475935000002,7409.6872868999999,1354.3257784,0]
[1550,"2011-12-30","KW60MN14 ",6995219.913944806,2495729.5421873573,1855234.5321201086,96641.563997000005,543853.44607024861,"Winter",218886.82847000001,66018.656822000004,102323.87078,1964.0671400000001,56087.471001999998,31439.203726,6649.9875788999998,816.33821894000005,0]
[1554,"2011-11-19","KW60MN07 ",6880958.6157656116,2494520.2948349114,1808682.0163620217,110268.530803,575569.74766988971,"Winter",242861.64030999999,53488.292478000003,94192.858405999999,1807.9955010000001,56999.462399999997,33486.308560999998,6305.0178106000003,4955.8928413000003,357.04420886999998]
[1557,"2012-02-21","KW60MN12 ",7262382.5023251493,2494180.1361992932,1858765.0865749617,99343.081998442591,536071.96762588888,"Winter",204096.79391000001,75977.893702999994,116606.14857999999,2238.2099404999999,48153.145836000003,36941.308599999997,9264.7674162999992,747.06969021999998,0]
[1561,"2012-02-03","KW60MN06 ",7022106.4443860473,2492682.7834096388,1792479.6323616172,96370.897236518314,603832.25381150318,"Winter",269006.16044000001,60473.382209000003,96465.609712000005,1851.6200836,58185.051218000001,33236.610420999998,7530.7310926999999,747.06969021999998,3053.2304963000001]
[1564,"2011-11-22","KW60MN15 ",7141894.0657229591,2492207.360888049,1830671.868316513,108534.19424,553001.29833153589,"Winter",170004.65745,69921.090454999998,123308.18893999999,2366.8530142,56634.665841000002,40399.502838,7537.5721836000002,4955.8928413000003,0]
[1567,"2012-02-27","KW60MN23 ",6754888.288330649,2491621.232844044,1811990.7134968694,98606.812541925188,581023.70680524944,"Winter",287127.14665000001,54240.899260999999,92947.016705000002,1784.0820512,53077.899386999998,34337.570919999998,6983.9482865,747.06969021999998,3053.2304963000001]
[1571,"2012-02-01","KW60MN12 ",7151600.6584903235,2491112.3950599511,1840494.8435846425,99183.994501732275,551433.55697357631,"Winter",207927.93466999999,82339.330547000005,121261.36169999999,2327.5649567,45827.567770000001,35895.551023,9263.619616,747.06969021999998,0]
[1572,"2011-12-03","KW60MN17 ",7424693.7477767086,2490984.1174170384,1848175.8684207988,82991.974969999996,559816.27402623964,"Winter",305092.03706,65080.949658999998,91471.477125000005,1755.7596394,57501.057669000002,27612.384270999999,7030.3867859000002,816.33821894000005,3053.2304963000001]
[1575,"2012-03-29","KW60MN11 ",6973689.3861289322,2490364.1154802721,1853987.4860790686,118340.78272695123,518035.84667425219,"Winter",160686.82566999999,78284.858093000003,112827.10557,2165.6726709999998,50205.126482,37134.652624000002,8994.9328390999999,1354.3257784,0]
[1579,"2012-01-30","KW60MN17 ",7267770.1564942021,2489247.7279499737,1819163.1435044201,95196.454119706847,574888.13032584696,"Winter",225898.47412999999,72460.628188999995,106881.99215999999,2051.5585175000001,55631.475301999999,32483.917771,7651.2348572999999,742.46966563000001,2958.0290737]
[1582,"2011-11-15","KW60MN22 ",6996246.8043553019,2488763.8479554411,1774959.4689839759,101887.473891,611916.90508046525,"Winter",273646.50232999999,62764.916479,113027.38597,2169.5169759,57409.858528999997,38087.834849999999,7558.4154197999997,4955.8928413000003,3053.2304963000001]
[1586,"2012-02-17","KW60MN13 ",7122673.1598009299,2487303.3048214749,1802298.2455576241,100017.89052834679,584987.16873550392,"Winter",188220.90364999999,83037.415324000001,117907.18726000001,2263.1828750999998,55585.875732,37245.364973000003,8178.2037228999998,747.06969021999998,0]
[1589,"2011-11-17","KW60MN10 ",7264266.2792880703,2486514.0680160793,1797979.0218406606,100408.40276699999,588126.64340841863,"Winter",228039.65104999999,75034.795719999995,131346.34257000001,2521.1422655000001,56771.464549999997,40548.048762999999,10531.786263,4955.8928413000003,0]
[1592,"2011-11-06","KW60MN20 ",7102499.3655688334,2485367.1412307527,1821277.330878258,108183.607126,555906.20322649437,"Winter",281580.70087,54624.385058,97777.203704,1876.7956231999999,56178.670141000002,28632.001400000001,6660.6123472999998,4955.8928413000003,3053.2304963000001]
[1594,"2012-03-02","KW60MN21 ",7142244.0249981573,2485311.388364845,1824912.8146777938,108356.11051976173,552042.46316728939,"Winter",256514.11931000001,67273.762014000007,91317.807925999994,1752.8100185000001,56497.867130999999,30528.060637999999,6961.7693367000002,1354.3257784,3053.2304963000001]
[1597,"2011-11-01","KW60MN22 ",6908154.4398991857,2485016.0261657378,1829834.570772747,105303.278512,549878.1768809905,"Winter",223454.29457,52748.408352999999,110248.71107,2116.1813854000002,56087.471001999998,40012.941394000001,6677.0065877999996,4955.8928413000003,3053.2304963000001]
[1601,"2012-02-21","KW60MN18 ",7448652.0653647855,2484084.0091015967,1840685.4016125177,102668.25685063681,540730.35063844209,"Winter",175460.20986999999,69218.300961000001,101834.03776000001,1954.6649844999999,56041.871432,34845.449997999996,7949.0212431,747.06969021999998,3053.2304963000001]
[1604,"2012-02-22","KW60MN13 ",7091843.5693931226,2483241.2171515492,1848727.4034692298,95556.893448904157,538956.92023341532,"Winter",155233.63673999999,74010.258583999996,118101.35642,2266.9098770000001,57045.061970000002,37290.342194999997,8863.7213534999992,747.06969021999998,0]
[1607,"2011-11-28","KW60MN12 ",7272473.9399789842,2482514.6812617849,1844682.7084304553,97493.111265,540338.86156632949,"Winter",182182.98079,76466.229758999994,123150.60182,2363.8281904,57318.659389,36224.742511999997,9523.6928150999993,4955.8928413000003,0]
[1609,"2011-11-15","KW60MN12 ",7152713.938140789,2482417.7345124083,1815476.0810176122,108989.00170800001,557952.65178679605,"Winter",170875.29852000001,79032.559309999997,131435.11231,2522.8461662,57227.460249999996,41573.694157999998,10549.216571000001,4955.8928413000003,0]
[1615,"2012-02-18","KW60MN11 ",6916201.6309063518,2481407.5771948444,1786952.5166934892,109297.83255109729,585157.22795025806,"Winter",280318.66506000003,58830.160416999999,79918.697784000004,1534.0085064,55357.877883000001,28418.420037,6273.0673239999996,747.06969021999998,0]
[1618,"2011-11-04","KW60MN21 ",6953318.4841830991,2480449.267904629,1821918.1580143869,112701.658559,545829.45133124199,"Winter",223127.95387,64375.345049000003,112901.30654000001,2167.0969298999999,56406.667991000002,35723.946541999998,6391.2145434000004,4955.8928413000003,3053.2304963000001]
[1619,"2011-12-17","KW60MN13 ",6966501.1759031219,2480187.2018569517,1750433.8247272396,89532.398820000002,640220.97830971226,"Winter",314487.58818999998,71095.408855000001,94545.955984999993,1814.7730724999999,56862.663690000001,26361.921662000001,6588.2907888999998,816.33821894000005,0]
[1622,"2012-01-13","KW60MN23 ",6839636.5977306617,2479689.633514612,1791635.6577624655,98493.770963224903,589560.2047889214,"Winter",302328.92521000002,64926.103755999997,89945.499249,1726.4690840000001,50478.723900999998,31505.516672000002,7343.9698108000002,742.46966563000001,3053.2304963000001]
[1626,"2011-11-22","KW60MN21 ",7172575.0164615335,2478659.1810827437,1809063.1923934384,108277.906113,561318.08257630526,"Winter",231210.77621000001,64551.571060000002,106922.46708,2052.3354181,56953.862829999998,36112.32993,6173.5185271999999,4955.8928413000003,3053.2304963000001]
[1629,"2011-12-30","KW60MN16 ",7032233.6062816903,2477594.0236447505,1830241.0376676731,91886.450846000007,555466.53513107717,"Winter",226516.00004000001,67461.338474000004,98614.504763999998,1892.8672933,56224.269711000001,28586.228190999998,6509.4074714999997,816.33821894000005,1883.2495328]
[1634,"2012-02-22","KW60MN07 ",7166484.0110931974,2476797.5384078627,1805770.8566722174,108023.85270082677,563002.82903481869,"Winter",200513.07686999999,61542.665567999997,95270.138443999997,1828.6734747999999,56406.667991000002,35509.294494000002,8468.0384613000006,747.06969021999998,10.672171419]
[1637,"2012-02-06","KW60MN15 ",7162041.6641980726,2475732.3754055351,1813791.5413532197,93918.623240609115,568022.21081170603,"Winter",188615.43557,72985.061052000005,115861.71395999999,2223.9208057999999,57181.860679999998,33472.888380999997,9293.5199754999994,747.06969021999998,0]
[1640,"2011-11-05","KW60MN13 ",6932981.4008066235,2475242.1211927235,1832463.6455988463,117186.22237800001,525592.25321587722,"Winter",205890.05145,57303.982903999997,100304.41043,1925.3043792999999,57592.256808999999,30138.798344999999,6044.1523245999997,4955.8928413000003,0]
[1643,"2012-03-07","KW60MN13 ",6991275.9330716748,2475017.8660410549,1866577.8785404859,97632.884058530224,510807.10344203888,"Winter",155681.65966,74346.269807999997,123166.05338,2364.1247770999998,53670.693796,36910.395541999998,9055.8644284999991,1354.3257784,0]
[1644,"2011-11-05","KW60MN20 ",7141473.3039423218,2474899.7437008424,1814623.8194483889,113452.61868200001,546823.30557045341,"Winter",256145.95663999999,64602.685039000004,98870.233164000005,1897.7759011000001,54582.685193999998,28851.605677,6615.1269627000001,4955.8928413000003,3053.2304963000001]
[1647,"2012-01-23","KW60MN23 ",6860503.1034151493,2474357.0913200108,1752818.9311183619,98734.114956814708,622804.04524483439,"Winter",321823.60320000001,59198.657963999998,89981.219618999996,1727.1547227000001,58185.051218000001,33075.529478999997,7388.1550329000002,742.46966563000001,3053.2304963000001]
[1651,"2012-02-18","KW60MN18 ",7117520.4341691677,2473192.8788766372,1799372.6198677807,113108.86087039138,560711.39813846513,"Winter",212929.61374999999,69606.790338999999,79694.309536999994,1529.7014607000001,53123.498957000003,27425.308359999999,6530.4250777999996,747.06969021999998,3053.2304963000001]
[1655,"2012-01-01","KW60MN21 ",6940389.617980645,2472349.194754682,1801723.4918773714,100457.81121436467,570167.89166294609,"Winter",251044.49199000001,53690.739890999997,75114.105878999995,1441.7862223,55677.074871999997,16734.889941000001,6632.8416821000001,742.46966563000001,3053.2304963000001]
[1658,"2011-11-23","KW60MN15 ",6956143.6399222994,2471960.4612525492,1825399.5511806866,114882.68418900001,531678.22588286258,"Winter",152908.78651999999,70188.909001000007,115573.761,2218.3936601,54810.683043999998,37777.454272000003,7262.9737289000004,4955.8928413000003,0]
[1662,"2012-01-07","KW60MN08 ",6783793.537914806,2471506.9862231081,1763284.268315309,110689.21670714127,597533.5012006578,"Winter",269524.89705000003,54828.685114,88603.497619000002,1700.7098816,57592.256808999999,27838.37902,6835.1795241999998,742.46966563000001,0]
[1665,"2012-03-08","KW60MN06 ",6821203.7752181711,2470997.8833517293,1815777.2035184058,95966.994175921282,559253.6856574025,"Winter",232574.22977000001,56856.207351999998,88631.553929999995,1701.2484116000001,57911.453798000002,32105.974515000002,8086.9553157999999,1354.3257784,1424.4168388999999]
[1666,"2012-01-10","KW60MN16 ",7209799.4038734166,2470980.7327019479,1846350.7947137523,87560.344512019554,537069.5934761758,"Winter",180890.17731999999,70405.950997000007,118133.9173,2267.5348706,55677.074871999997,35551.979648,8599.6223900999994,742.46966563000001,1323.4906082]
[1669,"2011-11-23","KW60MN16 ",7010517.8280820204,2470677.9896850195,1822160.889025626,112437.664873,536079.43578639335,"Winter",168433.35526000001,68417.805049999995,112222.89865,2154.0751527000002,55722.674442000003,35692.021510999999,6830.0804472999998,4955.8928413000003,1934.1367077]
[1672,"2011-12-30","KW60MN15 ",6967946.9089749279,2469957.8511632867,1830229.9431223853,90780.709260000003,548947.19878090173,"Winter",191644.15828999999,68191.578573999999,102236.48196999999,1962.3897454999999,56133.070571999997,30366.601128999999,6600.7235964000001,816.33821894000005,0]
[1676,"2011-12-04","KW60MN12 ",7041291.5739312433,2468823.9613691214,1846744.9920525081,95550.976439999999,526527.99287661363,"Winter",232272.25520000001,50659.567337,89643.883059,1720.6796778999999,56725.864979999998,25719.196298999999,6088.9673126999996,816.33821894000005,0]
[1680,"2012-02-13","KW60MN22 ",6960921.241951053,2468006.3668194162,1795859.3559166132,117812.19730438382,554334.81359841919,"Winter",268152.22272999998,59324.947782000003,93464.354292000004,1794.0121461000001,50843.520461,33463.022686999997,7122.2361799,747.06969021999998,3053.2304963000001]
[1683,"2011-11-08","KW60MN14 ",7113854.6361362506,2466926.3324653804,1831408.2180512387,110876.29717400001,524641.81724014168,"Winter",158870.94018000001,72828.621201000002,128783.12048,2471.9422085000001,54445.886484000002,41627.873552999998,9931.1719756000002,4955.8928413000003,0]
[1687,"2012-02-10","KW60MN13 ",7032830.5335939508,2465851.5390877137,1778337.4761371743,100089.91714036898,587424.1458101701,"Winter",214620.54204999999,81000.232992999998,127634.31668,2449.8913637000001,56133.070571999997,37885.694103000002,9434.5453211000004,747.06969021999998,0]
[1690,"2012-03-16","KW60MN12 ",6884636.538915447,2465204.6850984269,1849423.7631849176,106765.95386635854,509014.96804715047,"Winter",154873.14744,72399.870183999999,118034.58779000001,2265.6282789000002,50113.927342000003,38094.658116999999,7953.3043312999998,1354.3257784,0]
[1691,"2011-11-04","KW60MN13 ",7006750.6146290526,2465114.0452728514,1840423.2041869659,105617.53359200001,519073.30749388563,"Winter",146550.64895,77689.777359,132649.23791,2546.1508377999999,50478.723900999998,42192.751619000002,8084.9610550999996,4955.8928413000003,0]
[1697,"2011-11-09","KW60MN21 ",7207976.5782809136,2462606.7164971926,1785131.5383912525,115439.37452900001,562035.8035769402,"Winter",263595.75795,63820.069621000002,118108.28627,2267.0428928000001,56817.064120000003,36372.713087999997,7679.4930839999997,4955.8928413000003,3053.2304963000001]
[1698,"2012-03-06","KW60MN06 ",6602748.2269614441,2461505.6369132083,1796768.8008385852,93853.920957482915,570882.91511713993,"Winter",246082.58936000001,54694.425558000003,90689.310813000004,1740.7462594000001,56862.663690000001,34277.659179000002,7911.3114419000003,1354.3257784,1577.0783635]
[1702,"2012-03-02","KW60MN14 ",7092251.4632235998,2460231.0802428033,1823147.2847083313,97956.329597992153,539127.46593647962,"Winter",177204.80935,73868.035717000006,116276.26376,2231.8779290000002,46055.565619000001,35669.641794000003,8749.8656871999992,1354.3257784,0]
[1705,"2012-01-03","KW60MN14 ",7121950.1004293505,2457833.7301666648,1817163.723080023,91622.307878696418,549047.69920794561,"Winter",171229.96919999999,71115.053616000005,113360.93103000001,2175.9192444,56725.864979999998,36128.309091000003,8968.0763499999994,742.46966563000001,0]
[1708,"2012-03-27","KW60MN12 ",6877880.5387148764,2457011.6352982726,1839046.235126538,119971.09724839528,497994.30292333942,"Winter",183591.91282999999,79236.648874999999,116865.09318,2243.1802822,40811.615078000003,36929.767892999997,8525.6925573000008,1354.3257784,0]
[1712,"2012-01-11","KW60MN24 ",6752826.8793821391,2455631.5712228958,1779433.6566319631,90217.062698215668,585980.85189271707,"Winter",288381.62566999998,61643.593623000001,92356.006127999994,1772.7378315999999,57683.455949000003,32782.738576999996,7394.1886009999998,742.46966563000001,3053.2304963000001]
[1715,"2012-02-14","KW60MN23 ",6690946.059489958,2454865.4190551946,1779020.114122693,98326.638443923235,577518.66648857854,"Winter",253825.71681000001,63448.763383999998,92456.074101999999,1774.6585977,56771.464549999997,33539.665581000001,6647.4092608999999,747.06969021999998,3053.2304963000001]
[1718,"2012-01-09","KW60MN06 ",7121505.9801204009,2453830.8257817999,1769153.7952011572,108908.48293103081,575768.54764961172,"Winter",261325.42679999999,56202.426926,94837.534971000001,1820.3698184,53397.096376000001,29891.669134,8291.4025369999999,742.46966563000001,3053.2304963000001]
[1720,"2012-01-02","KW60MN14 ",6859162.1756551126,2453701.5295319268,1784415.2338018708,96599.473093432971,572686.82263662305,"Winter",283990.45626000001,49260.629262000002,90719.825469999996,1741.3319765000001,55859.473151999999,24837.893491999999,7224.9236500999996,742.46966563000001,0]
[1723,"2012-02-19","KW60MN08 ",6762343.3419497143,2453208.0978846392,1793897.5992013821,116913.64568517245,542396.85299808474,"Winter",243351.54879999999,55638.291592000001,71176.605817999996,1366.2074309,45006.775511,25346.258261999999,6194.5936936999997,747.06969021999998,0]
[1727,"2011-12-24","KW60MN19 ",7198454.9959731093,2452969.2772870194,1760976.1554244778,99295.626120000015,592697.49574254151,"Winter",292797.25660000002,64585.125906000001,83297.227180999995,1598.858072,56406.667991000002,17778.630080999999,6944.2306824999996,816.33821894000005,3053.2304963000001]
[1730,"2011-11-28","KW60MN22 ",7056071.559107027,2452120.6297828173,1773155.5886623515,101637.49067700001,577327.55044346559,"Winter",261665.01571000001,58903.255447000003,104696.63907999999,2009.6115101,55950.672292000003,34172.90668,7199.7939403,4955.8928413000003,3053.2304963000001]
[1734,"2012-01-27","KW60MN16 ",7093136.4083596654,2451773.8705695467,1808317.8175796834,90942.388656294876,552513.6643335683,"Winter",216352.16888000001,71776.945177999994,117968.2818,2264.3555611000002,55357.877883000001,34111.570711,7833.2170248000002,742.46966563000001,224.65274199999999]
[1737,"2011-11-21","KW60MN22 ",7026509.3112724349,2451361.570122405,1731496.0742954267,104060.384573,615805.11125397822,"Winter",282746.48041999998,57015.793320999997,105160.50371,2018.5152123,57090.661540000001,35775.184591999998,6131.9539463000001,4955.8928413000003,3053.2304963000001]
[1739,"2012-02-21","KW60MN13 ",7189463.6635326734,2451240.6350165792,1833139.681827354,97167.039630774016,520933.91355845111,"Winter",184634.36738000001,76719.338033000007,115868.03637,2224.0421621,47560.351427000001,37737.858066000001,9037.5588810000008,747.06969021999998,0]
[1742,"2012-03-02","KW60MN06 ",6966162.8521972401,2450352.8989086328,1798836.1002893371,106403.91698110715,545112.88163818873,"Winter",232843.42296,56419.359660000002,82046.128094999993,1574.8437087,54810.683043999998,31730.727432,7882.2609284999999,1354.3257784,1984.1757625]
[1745,"2012-03-29","KW60MN12 ",6895759.0112360241,2450002.8649386223,1819262.2790192999,112292.46414728709,518448.12177203549,"Winter",151945.33374999999,78380.719901999997,110131.83048,2113.9379076999999,46830.758307999997,37871.169214000001,8717.1652369999993,1354.3257784,0]
[1748,"2012-03-22","KW60MN20 ",6960707.6643702853,2449149.5881866836,1834295.5206187982,102080.36783644889,512773.69973143662,"Winter",225850.50498,72649.980165999994,101885.13585999999,1955.6457926999999,57227.460249999996,33362.890212999999,6995.8105799000004,1354.3257784,3053.2304963000001]
[1752,"2012-02-05","KW60MN19 ",7006034.5009130333,2447619.4449073328,1747313.165710432,103615.98938660364,596690.28981029685,"Winter",222133.41548,59293.541230000003,80775.623586999995,1550.4568658999999,56543.466700999998,25325.954268000001,6710.5382614,747.06969021999998,3053.2304963000001]
[1755,"2012-01-04","KW60MN16 ",7141302.4956432572,2446975.3285390656,1790588.4529275305,94511.130357477814,561875.74525405711,"Winter",210682.85383000001,68698.420167999997,111185.97182000001,2134.1717431000002,47469.152286999997,36360.864729000001,8417.3558114000007,742.46966563000001,1679.7008333000001]
[1759,"2012-02-17","KW60MN17 ",7041459.3849772681,2445380.7004075237,1755851.2894084724,97486.762594918662,592042.64840413234,"Winter",221953.38810000001,76590.850109999999,111763.27668,2145.2528867000001,56087.471001999998,33786.117185000003,7512.7607434000001,747.06969021999998,1679.7008333000001]
[1760,"2012-03-13","KW60MN17 ",6881235.8124284288,2443804.6881988994,1815406.1569121869,104163.54069224049,524234.99059447204,"Winter",191966.81068,62355.398883000002,98764.831214000005,1895.7527514000001,55722.674442000003,34739.066027000001,7039.9822577000004,1354.3257784,20.877877062]
[1766,"2012-03-11","KW60MN21 ",6658224.3617837569,2440986.690467386,1803952.3029458267,106101.22172521292,530933.1657963465,"Winter",252276.63982000001,50859.063054999999,70894.164934999993,1360.7860874,55905.072721999997,26244.793764999999,5969.0052831000003,1354.3257784,3053.2304963000001]
[1767,"2012-02-03","KW60MN22 ",6901451.0123002883,2440291.8281036844,1754711.8441260438,101429.19566157764,584150.788316063,"Winter",239072.02476,67782.114002000002,89578.546673999997,1719.4255711999999,57911.453798000002,30830.131614000002,6383.9062062000003,747.06969021999998,3053.2304963000001]
[1770,"2012-02-01","KW60MN13 ",7081924.5856764549,2438988.6347290142,1800571.1175819328,106982.47467496105,531435.04247212026,"Winter",198299.72365,83041.104542000001,122934.35715,2359.6774575999998,42772.396585000002,36275.904878000001,9208.9315170999998,747.06969021999998,0]
[1774,"2012-03-13","KW60MN16 ",6902512.5783505626,2437851.4721700936,1824524.2935649699,102893.74881262284,510433.4297925008,"Winter",183461.19002000001,69648.650745000006,103049.44702000001,1977.9942954000001,56771.464549999997,35230.725751999998,7400.0410259,1354.3257784,0]
[1777,"2011-12-03","KW60MN13 ",6911190.1060905792,2437070.0777230193,1814669.4640402959,88570.467799999984,533830.1458827235,"Winter",263628.96328000003,65386.654991000003,91081.540867999996,1748.2749636999999,56817.064120000003,27664.236429,6286.7342699000001,816.33821894000005,0]
[1780,"2011-11-10","KW60MN13 ",7086238.7695716042,2436031.4186466932,1825287.0783509417,99908.624275000009,510835.71602075151,"Winter",144591.57672000001,76510.277023000002,130952.08455,2513.5746350999998,56680.265411,42092.140191999999,10329.651571,4955.8928413000003,0]
[1785,"2012-02-24","KW60MN19 ",7125557.4580661366,2435212.3054549368,1790641.9447380854,106001.80963237275,538568.55108447885,"Winter",184102.55213,73331.886054000002,96319.368602000002,1848.813042,55905.072721999997,33239.310969999999,7127.3572635999999,747.06969021999998,3053.2304963000001]
[1788,"2012-02-12","KW60MN08 ",6718979.4338492705,2434507.825499353,1767563.3243262088,106289.94957540793,560654.55159773631,"Winter",247097.85857000001,53278.553397000003,79593.952655999994,1527.7751492,55403.477453,25317.460503999999,6268.7469908000003,747.06969021999998,0]
[1791,"2011-11-25","KW60MN18 ",7097349.0651128292,2433992.8625384499,1785955.1109152506,102104.06733200001,545933.6842911992,"Winter",267928.74118999997,73347.597364000001,88305.209480999998,1694.9843561,51801.111428999997,21002.26888,6513.4501655000004,4955.8928413000003,3053.2304963000001]
[1792,"2012-03-29","KW60MN13 ",6827917.866093942,2433868.3282180023,1813212.0254191046,110922.09858261075,509734.20421628689,"Winter",155684.00195000001,76956.246528999996,112701.07999,2163.2536587,45052.375080999998,37979.608157000002,8672.8632039000004,1354.3257784,0]
[1795,"2012-03-30","KW60MN11 ",6786326.0934584979,2433205.2115470539,1806225.3991974539,110150.84252744437,516828.96982215549,"Winter",158383.92509999999,75364.620756999997,112885.93995,2166.8019742000001,54081.089925,35355.067821999997,8581.0747546000002,1354.3257784,0]
[1799,"2011-12-17","KW60MN22 ",7168020.149018147,2432502.1459412971,1739298.7528523109,91843.581330000001,601359.81175898633,"Winter",299295.57092000003,66231.856954000003,91987.966937999998,1765.6734617,57090.661540000001,26495.988912000001,6998.9594119000003,816.33821894000005,3053.2304963000001]
[1802,"2012-02-25","KW60MN14 ",6810541.851341174,2432009.3081173343,1791413.6815381944,100186.07420781403,540409.55237132602,"Winter",213750.90784999999,63703.316172999999,79640.152430999995,1528.661936,55905.072721999997,27562.186025999999,6043.8848430999997,747.06969021999998,0]
[1806,"2012-01-15","KW60MN07 ",6581855.0160937784,2430905.7973266346,1738338.0662356731,100150.31115323277,592417.4199377289,"Winter",290142.05942000001,59184.945516,81615.551330000002,1566.5789542,55813.873582,24528.747085999999,7400.5268945999997,742.46966563000001,2035.0629374]
[1810,"2011-11-23","KW60MN21 ",6946543.1355807036,2429734.1942748344,1772012.8117216439,107163.63119,550557.75136319059,"Winter",219748.54553,60271.890843000001,102914.31365,1975.4004626000001,56133.070571999997,31940.188996000001,5999.1951320999997,4955.8928413000003,3053.2304963000001]
[1813,"2012-01-08","KW60MN13 ",6809155.9431459904,2428608.9520475855,1804612.2158114973,102494.55515833,521502.18107775855,"Winter",271710.03685999999,44716.585121999997,86451.111575999996,1659.3956636,55494.676592999997,26872.166207999999,5677.2423079,742.46966563000001,0]
[1816,"2012-02-07","KW60MN06 ",7122786.3662503827,2427658.3523495821,1734613.6333266019,87301.562341449069,605743.15668153123,"Winter",254980.63282999999,55960.511635000003,88953.078370999996,1707.4199490000001,56361.068421000004,30956.270809000001,8646.9412073000003,747.06969021999998,3053.2304963000001]
[1817,"2012-03-15","KW60MN18 ",6767409.1222373489,2427252.5854946519,1801467.4204336498,103144.82626500193,522640.33879600005,"Winter",193651.85677000001,63018.863504000001,95874.074257,1840.2657892,56269.869280999999,33229.097432000002,6828.5652842999998,1354.3257784,2697.0061369]
[1820,"2011-12-24","KW60MN20 ",7099759.8607303407,2426584.4308979409,1740965.6799981846,99899.690010000006,585719.06088975654,"Winter",315649.23430000001,63300.854044,80928.351313000006,1553.3884155000001,56817.064120000003,17587.406811000001,6952.3363847000001,816.33821894000005,3053.2304963000001]
[1823,"2012-01-26","KW60MN15 ",7257447.3410684653,2426226.4977860348,1795116.08075319,92974.590503394254,538135.82652945083,"Winter",195233.74694000001,74474.781833999994,122339.02412,2348.2502700999999,55722.674442000003,36407.660206,8677.4290106000008,742.46966563000001,0]
[1828,"2012-01-16","KW60MN24 ",6757920.1867928039,2425387.7016731161,1769498.8897937082,101282.22519194976,554606.5866874581,"Winter",308435.30426,59134.242877999997,92104.820655000003,1767.9164235999999,57820.254658999998,32640.447477999998,7011.0874929000001,742.46966563000001,3053.2304963000001]
[1831,"2012-03-16","KW60MN07 ",6735298.8837021487,2424319.4853308257,1772902.8394216476,95398.934637735263,556017.71127144271,"Winter",229389.19928999999,61868.553938999998,108062.30881,2074.2142392999999,55266.678742999997,36744.240913000001,8410.7940524000005,1354.3257784,0]
[1835,"2012-02-26","KW60MN17 ",6839455.4658632455,2423304.9409850994,1790284.2415223946,108941.88471452992,524078.81474817486,"Winter",213883.77158,46879.854814999999,80670.455424999993,1548.4382037,55494.676592999997,26797.057025999999,5966.6588954999997,747.06969021999998,967.28038360000005]
[1838,"2012-03-17","KW60MN10 ",6610685.546896359,2422946.5251415707,1788749.7974955423,113084.32574144399,521112.40190458443,"Winter",234372.45804,59458.047227000003,81174.182025999995,1558.107041,55996.271862000001,27820.780620000001,5488.1634185000003,1354.3257784,0]
[1839,"2011-12-23","KW60MN16 ",7112571.4032654101,2422522.9924765099,1739413.9539097252,97845.264609999998,585263.77395678463,"Winter",265374.94057999999,72646.536789000005,92805.253072000007,1781.3609530000001,56862.663690000001,29884.488670999999,6410.6357256000001,816.33821894000005,2086.7982323000001]
[1842,"2011-12-21","KW60MN06 ",7024175.0974894837,2421706.7756842435,1763862.9520881837,98385.297640000004,559458.52595605981,"Winter",230533.80288999999,56428.462192999999,100872.20997,1936.2030718999999,46009.966049000002,33971.040411000002,7551.5692495000003,816.33821894000005,3053.2304963000001]
[1848,"2011-11-08","KW60MN16 ",7142937.8140093544,2420180.5568262432,1798545.3346345769,108828.319728,512806.90246366622,"Winter",197479.10785,72332.283270999993,125862.0791,2415.8739483999998,57227.460249999996,39952.107701000001,8199.7613715000007,4955.8928413000003,1170.8290836000001]
[1850,"2012-01-25","KW60MN16 ",7112490.6319370698,2420023.3309048708,1780215.2267256847,92781.077125941505,547027.02705324453,"Winter",179051.44130000001,73672.744999999995,112179.88636999999,2153.2495488,57729.055519000001,35720.903116000001,8257.7608232999992,742.46966563000001,357.04420886999998]
[1853,"2012-03-02","KW60MN18 ",7164857.1168492408,2418895.9948490411,1778413.3688730146,99485.558469259631,540997.06750676688,"Winter",216207.00021,67488.490214999998,96102.583440999995,1844.6519347000001,56725.864979999998,30732.314386999999,7112.3664545000001,1354.3257784,3053.2304963000001]
[1856,"2011-11-03","KW60MN12 ",7060944.7513336204,2418273.9522737004,1789088.0191403418,104589.381892,524596.55124135828,"Winter",184997.93027000001,73186.872172000003,133727.18716,2566.8416569000001,55996.271862000001,44089.812527000002,9435.7896172000001,4955.8928413000003,0]
[1860,"2011-12-23","KW60MN15 ",7027691.2119641639,2417757.9848794844,1746322.4911983616,95980.004149999993,575455.48953112261,"Winter",254649.31080000001,75184.671784999999,96364.205602000002,1849.6736708999999,56817.064120000003,30712.145698,6547.8638506999996,816.33821894000005,0]
[1863,"2011-11-07","KW60MN16 ",7108818.5370670389,2417276.9222823479,1737083.7754050922,102846.77257500001,577346.37430225569,"Winter",241884.35639,73328.600143999996,130296.17449999999,2500.9846954,56133.070571999997,38729.500927000001,8219.3450735000006,4955.8928413000003,1119.9419087000001]
[1864,"2012-02-20","KW60MN22 ",7042348.0484514544,2417224.021930696,1768620.8628780504,92669.289651527492,555933.86940111802,"Winter",245218.15906999999,58864.141065999996,87005.100097000002,1670.0292591,56817.064120000003,29721.235848,7045.2150752999996,747.06969021999998,3053.2304963000001]
[1869,"2011-12-20","KW60MN06 ",7134475.7679626467,2416284.1509266365,1744906.4083878465,91520.680179999996,579857.06235878996,"Winter",271166.51019,58586.644749999999,101880.16405000001,1955.5503607000001,44459.580671999996,35310.375893999997,8174.8144966,816.33821894000005,3053.2304963000001]
[1871,"2012-02-22","KW60MN17 ",7036485.3461360792,2416106.3019827837,1765112.3874959138,97007.732179004088,553986.1823078657,"Winter",180404.69904000001,72783.122994999998,107051.42088000001,2054.8106364,52576.304118,34731.376923000003,7862.5959654999997,747.06969021999998,1272.6034333]
[1875,"2012-01-07","KW60MN13 ",6859380.471429335,2414310.1220136513,1753437.768451293,101219.04793483716,559653.30562752113,"Winter",263391.96857000003,59665.183289000001,84032.661032000004,1612.9744404,57181.860679999998,26426.422102,5972.8262045000001,742.46966563000001,0]
[1878,"2011-11-25","KW60MN20 ",7027197.1842302689,2414195.885070709,1756568.7211623283,104839.87507899999,552787.288829381,"Winter",266078.64351000002,69091.104905999993,86342.698499000006,1657.3147165,52302.706698000002,20673.208769000001,6417.9897714999997,4955.8928413000003,3053.2304963000001]
[1881,"2011-11-08","KW60MN15 ",7052003.5955989147,2413774.8150833035,1793688.4493767293,103595.53855900001,516490.82714757434,"Winter",158412.57305000001,74171.285854999995,130127.95995999999,2497.7558823999998,55129.880033000001,41285.021411000002,8721.5532868999999,4955.8928413000003,0]
[1885,"2012-03-27","KW60MN20 ",6895685.2321427418,2413444.9435329004,1774428.132589408,125207.39921622752,513809.41172726499,"Winter",256831.28164,64223.826831999999,93100.428690000001,1787.0267349000001,40310.019808999998,33033.70622,6823.0717573000002,1354.3257784,3053.2304963000001]
[1886,"2011-12-26","KW60MN15 ",6872424.233249668,2413203.2802934982,1766995.1030766249,92441.810339999996,553766.36687687342,"Winter",249983.36275999999,53958.425072999999,86157.949691000002,1653.7685346000001,55813.873582,23828.676904,6291.3864157999997,816.33821894000005,0]
[1890,"2012-03-03","KW60MN10 ",6909999.0487416554,2411231.7024996509,1768017.5125475752,107881.28085595147,535332.90909612447,"Winter",249345.2862,57009.385394999998,80760.551072999995,1550.1675548000001,54765.083473999999,24491.298871999999,6032.1529049999999,1354.3257784,0]
[1893,"2012-01-01","KW60MN09 ",6542264.7884406941,2409947.7167608477,1765606.7199164007,106581.30724825972,537759.68959618744,"Winter",234475.84713000001,49058.859919000002,74963.893223999999,1438.9029484,55449.077022999998,16380.926269,5988.9969794999997,742.46966563000001,0]
[1896,"2012-02-03","KW60MN14 ",6963465.7876919257,2408853.3032314111,1770867.894294088,91854.7679899465,546130.64094737649,"Winter",177649.01678999999,76947.246830999997,123462.94935,2369.8235804000001,50843.520461,36064.243713999997,8864.6710817999992,747.06969021999998,0]
[1900,"2012-02-02","KW60MN06 ",6892518.4497417556,2407685.7311059171,1738449.4848227687,96202.944316553709,573033.30196659453,"Winter",239004.00310999999,59009.058539999998,94657.630629000007,1816.9166241,56133.070571999997,32172.967720000001,8514.1654632999998,747.06969021999998,3053.2304963000001]
[1903,"2012-03-14","KW60MN22 ",6697716.1759577719,2407116.1784086474,1754153.7646586294,97901.475139251561,555060.93861076643,"Winter",223776.81977,61347.614264000003,86751.862194000001,1665.1684554999999,55905.072721999997,33402.267845000002,6348.1517280999997,1354.3257784,3053.2304963000001]
[1907,"2012-02-10","KW60MN16 ",6919700.9693859965,2404999.2899508481,1736900.5549660507,91996.766325313001,576101.96865948453,"Winter",203692.96703999999,78035.609358000002,116715.40196,2240.3070170000001,55494.676592999997,35935.436560000002,8742.9010120000003,747.06969021999998,0]
[1911,"2011-11-11","KW60MN13 ",6984091.0756932963,2403651.3703805367,1732222.3779683167,105019.77308499999,566409.21932721976,"Winter",236181.78301000001,74648.268247,121162.59209000001,2325.6691120999999,53670.693796,42273.773284000003,6895.9621370000004,4955.8928413000003,0]
[1914,"2012-01-20","KW60MN06 ",6864950.7028348343,2402596.6471690452,1651295.6535774944,92705.572240139314,658595.42135141115,"Winter",278543.53109,61942.502181999997,94805.451193999994,1819.7539827000001,51345.115729999998,31261.513266999998,8466.5385341000001,742.46966563000001,3053.2304963000001]
[1915,"2011-12-24","KW60MN21 ",7090339.72730623,2402103.0948240701,1726900.4467119693,100945.32896999999,574257.31914210087,"Winter",311732.22389000002,57812.792830999999,78896.627246999997,1514.3902576,56817.064120000003,17516.073702000002,6905.6727282000002,816.33821894000005,3053.2304963000001]
[1918,"2012-02-26","KW60MN15 ",6691381.6743633924,2400655.1508451444,1765708.6221381621,106976.41686613485,527970.1118408473,"Winter",205298.28007000001,47139.687554999997,84197.897628000006,1616.1460930000001,54947.481754,26632.762277999998,5881.7606312999997,747.06969021999998,0]
[1921,"2012-02-22","KW60MN16 ",6992939.9394481992,2398934.2667234652,1771072.5137209499,88647.762800646815,539213.9902018687,"Winter",145044.79294000001,72382.937705000004,110520.99395,2121.4077499999999,56634.665841000002,35777.199688000001,8374.9092189999992,747.06969021999998,0]
[1925,"2011-11-27","KW60MN20 ",7213102.5331562879,2398681.4697616175,1760348.8630828264,107865.89820600001,530466.70847279136,"Winter",272622.30911999999,59376.135673999997,86759.629828000005,1665.3175521999999,55722.674442000003,24959.087878999999,6500.2047571000003,4955.8928413000003,3053.2304963000001]
[1928,"2012-03-20","KW60MN16 ",6865708.1075926349,2398191.5364992381,1791464.0735432564,98089.235796424138,508638.22715955769,"Winter",188599.08197,73123.131942000007,106837.15068000001,2050.6978027,48837.139384000002,34066.633377999999,7056.8352807000001,1354.3257784,0]
[1932,"2012-03-23","KW60MN13 ",6773327.1679369295,2397344.8098947322,1800076.5976400813,106296.19454497485,490972.01770967589,"Winter",150813.19406000001,66884.477268000002,110710.12745,2125.0380945000002,56634.665841000002,38848.181707000003,7838.4430702,1354.3257784,0]
[1936,"2011-11-05","KW60MN21 ",6984583.8687558211,2396196.5915578404,1753580.9010004862,108004.38276600001,534611.30779135413,"Winter",227171.37346999999,61917.575861999998,94532.444554999995,1814.5137258,54582.685193999998,28130.878999,6396.5573998,4955.8928413000003,3053.2304963000001]
[1939,"2012-01-26","KW60MN16 ",7284578.7803305434,2395238.4377684011,1770158.5435713583,94281.50417728677,530798.39001975616,"Winter",188533.99613000001,71264.325524,115738.16486999999,2221.5493287999998,56133.070571999997,34647.138341999998,8257.3138923999995,742.46966563000001,309.52124151999999]
[1940,"2012-02-26","KW60MN07 ",6651818.8985026721,2395150.9377319873,1737197.2961904844,108030.39535700274,549923.24618450017,"Winter",210169.71327000001,56365.139733000004,74324.655358000004,1426.6330247000001,55859.473151999999,25335.058105,6317.6114451000003,747.06969021999998,0]
[1943,"2011-12-03","KW60MN07 ",6749835.5224343017,2394592.8011907917,1730748.2111858451,83448.535680000001,580396.05432494648,"Winter",293648.92621000001,57434.667326000003,96195.326327000002,1846.4320984999999,58048.252507999998,28499.526054000002,7021.3059608000003,816.33821894000005,1271.7553132999999]
[1947,"2011-12-24","KW60MN14 ",6852561.3370223194,2393982.6758257286,1704686.5754372498,91057.448070000013,598238.65231847891,"Winter",298715.37318,59751.343226999998,80817.763858999999,1551.2657320999999,55768.274012000002,17420.185323000002,6149.4045697000001,816.33821894000005,0]
[1950,"2011-12-31","KW60MN15 ",6672122.7090219697,2393420.2692757589,1750838.3755400039,93525.264250000007,549056.62948575499,"Winter",275047.63381999999,53868.169396999998,77376.156507000007,1485.2054095999999,55996.271862000001,20737.638654999999,5680.9599613999999,816.33821894000005,0]
[1953,"2011-12-11","KW60MN23 ",6613990.4470032193,2392978.1067605098,1698840.3956393301,91929.521695000003,602208.18942617951,"Winter",314561.62982999999,60258.049850000003,79464.624632000006,1525.2927477999999,57774.655089,25623.2801,6864.6769686999996,816.33821894000005,3053.2304963000001]
[1958,"2011-11-10","KW60MN22 ",6851682.0797660369,2391715.3084229352,1743104.4801318396,104905.92935500001,543704.89893609576,"Winter",275709.41939,66253.177609999999,113922.74793,2186.7031026,56087.471001999998,36698.069194000003,7324.9955595000001,4955.8928413000003,3053.2304963000001]
[1961,"2011-11-17","KW60MN16 ",7115122.4261413878,2391457.1649533887,1744603.7759857299,98069.993719999999,548783.39524765883,"Winter",203192.56597,75662.844817999998,129179.70044,2479.5544074999998,56817.064120000003,38654.897560999998,8201.9757110999999,4955.8928413000003,1679.7008333000001]
[1964,"2012-02-06","KW60MN23 ",6782294.6648213351,2390865.9499822455,1716262.4697540705,89535.420282877603,585068.05994529766,"Winter",264292.34922999999,56549.835197,87844.045144999996,1686.1324849,58002.652937999999,30349.536800999998,6899.1245122,747.06969021999998,3053.2304963000001]
[1965,"2012-03-20","KW60MN22 ",6689139.2591586336,2390753.1417800216,1761168.663992251,99056.293688673657,530528.18409909657,"Winter",236129.40486000001,60823.084992999997,84415.593947000001,1620.3246896999999,51664.312719000001,32467.709116999999,6411.9883688999998,1354.3257784,3053.2304963000001]
[1968,"2011-11-05","KW60MN14 ",6812039.35816376,2390579.0036461498,1768983.1352480317,115342.726113,506253.14228511811,"Winter",200262.96111999999,55498.027416999998,98055.720004999996,1882.1416359,57181.860679999998,30321.786341999999,6029.2207674000001,4955.8928413000003,0]
[1972,"2011-11-29","KW60MN23 ",6634758.8507452235,2387570.6271750536,1737273.0882944805,97614.409052999996,552683.12982757296,"Winter",269644.90470000001,61127.540233,101587.88794,1949.9402339000001,56908.26326,35270.818760000002,6675.1579191999999,4955.8928413000003,3053.2304963000001]
[1974,"2012-01-02","KW60MN15 ",6757896.3209417434,2387074.2876276453,1721421.8490164797,93589.619270874391,572062.81934029108,"Winter",298384.11473999999,49275.108155000002,89811.862544999996,1723.9039792000001,55585.875732,24647.623675999999,7172.5717812000003,742.46966563000001,0]
[1979,"2011-11-17","KW60MN07 ",7095512.6760664443,2386259.370909865,1663637.9618913559,97379.986094000007,625241.42292450904,"Winter",290801.24833999999,61316.038998000004,117188.03494,2249.3790244000002,56315.468850999998,38146.278204000002,9599.9758065000005,4955.8928413000003,265.39075265999998]
[1983,"2011-11-19","KW60MN23 ",6579747.8515153546,2385617.4408077151,1704775.9304328647,98149.385813999994,582692.12456085021,"Winter",306821.78794000001,60203.976142,91856.678346999994,1763.1534279,57227.460249999996,28628.766414000002,6303.9817430000003,4955.8928413000003,3053.2304963000001]
[1986,"2011-12-20","KW60MN23 ",6881693.4106844403,2385116.25848646,1736740.9761940471,92252.645130000004,556122.63716241287,"Winter",258607.68744000001,65029.493432000003,99292.890950999994,1905.8886539,43456.390134000001,33959.170189999997,6048.6216344000004,816.33821894000005,3053.2304963000001]
[1989,"2012-01-29","KW60MN16 ",6771674.4513658239,2384411.5436305227,1775360.1511401881,97422.682132898786,511628.71035743557,"Winter",248374.48861,49746.514945000003,75326.684787000006,1445.8665922,54217.888635000003,26020.479759999998,5952.3689545999996,742.46966563000001,122.79358015]
[1990,"2012-01-22","KW60MN07 ",6482491.9036428407,2383816.901462608,1741850.8146823826,94325.458190714926,547640.62858951057,"Winter",257529.66407999999,57761.228947000003,78553.845214000001,1507.8106889999999,56133.070571999997,25560.899227000002,6976.4503421999998,742.46966563000001,1780.6270629999999]
[1995,"2011-11-09","KW60MN13 ",6994342.7322286339,2383241.1333711338,1777451.2386217434,104154.88831099999,501635.00643839041,"Winter",147385.47743,73505.181257999997,133008.54146000001,2553.0475305999998,50661.122180999999,41093.522387999998,10136.496128999999,4955.8928413000003,0]
[1998,"2012-02-24","KW60MN13 ",7001046.7853860119,2382858.4103513057,1762373.5396700262,93187.070465578465,527297.80021570122,"Winter",176736.96708999999,74360.012786000007,117904.01433999999,2263.1219721000002,56817.064120000003,37969.606243000002,8696.2712138000006,747.06969021999998,0]
[2001,"2011-12-18","KW60MN08 ",6841848.2096767761,2381449.8311010855,1685621.0681796516,96994.526249999995,598834.23667143378,"Winter",287888.59061000001,59431.078662,90786.909876999998,1742.6196356999999,57136.261109999999,26927.299556000002,6910.3248728999997,816.33821894000005,0]
[2004,"2011-12-13","KW60MN03 ",6243598.4235267313,2381006.9174442659,1713611.2836979809,89466.67413900001,577928.95960728487,"Winter",286496.84944999998,57970.83627,98699.722876,1894.5030221,57592.256808999999,30278.342364,7589.6396424000004,816.33821894000005,3053.2304963000001]
[2008,"2012-03-27","KW60MN14 ",6773702.2316999054,2379861.1705631819,1769722.9064949772,118195.22894505924,491943.03512314562,"Winter",135866.94712999999,76313.337727000006,112228.00687,2154.1732031000001,40127.621529999997,36958.522357000002,8295.8955475000002,1354.3257784,0]
[2011,"2012-01-28","KW60MN14 ",6815230.7165768761,2378989.2122474667,1714798.3486231684,97312.716491804269,566878.14713249402,"Winter",283303.28710999998,65695.005118000001,82996.093382999999,1593.0779252,55266.678742999997,27237.195642999999,6556.4774297000004,742.46966563000001,0]
[2012,"2011-11-28","KW60MN16 ",7259660.3893309664,2378459.8311004261,1761351.5646611799,94826.799377000003,522281.46706224617,"Winter",168573.36241999999,66537.187900999998,115687.46717,2220.5762061999999,56041.871432,35332.205949000003,7912.5675884000002,4955.8928413000003,2086.7982323000001]
[2016,"2012-02-09","KW60MN22 ",6808597.5219107261,2376904.3015587991,1702850.6925282551,97194.991361320179,576858.61766922381,"Winter",261220.37372999999,69848.794005000003,93370.307652000003,1792.2069573000001,55813.873582,32347.764500000001,7111.5284590000001,747.06969021999998,3053.2304963000001]
[2019,"2012-02-14","KW60MN06 ",6899873.0897179311,2376369.3488484016,1694209.5341420611,94944.797894913921,587215.0168114265,"Winter",246485.16560000001,56495.110734000002,93655.533106000003,1797.6817496000001,56361.068421000004,33724.412700000001,8063.8452592000003,747.06969021999998,3053.2304963000001]
[2023,"2012-01-01","KW60MN12 ",6504785.5093938522,2375142.9857916012,1745852.5887531436,98955.83879370107,530334.55824475677,"Winter",238163.54678999999,49271.454287,73781.943950999994,1416.2158890999999,55312.278313000003,16333.476192,5755.0489283999996,742.46966563000001,0]
[2026,"2012-03-16","KW60MN21 ",6684468.9487963729,2373751.1222872538,1766223.3275513402,108316.66635435504,499211.12838155893,"Winter",192986.98702,61796.432631000003,88946.983431999994,1707.3029590000001,56634.665841000002,32071.243911000001,5978.2791009000002,1354.3257784,3053.2304963000001]
[2029,"2012-03-16","KW60MN13 ",6805955.2037074538,2373493.083792116,1778716.5585790614,99389.683562446386,495386.84165060834,"Winter",155367.41193999999,71182.042799000003,117017.55991,2246.1068220000002,50022.728201999998,38078.160488000001,7661.0673387999996,1354.3257784,0]
[2033,"2012-02-21","KW60MN15 ",7103050.1477198554,2371868.0915004606,1769523.4432798892,87680.385173275397,514664.26304729591,"Winter",160058.65878,74636.578762999998,118173.47946,2268.2942509999998,50980.319171000003,37216.936458999997,8929.2712293999994,747.06969021999998,0]
[2036,"2012-03-18","KW60MN20 ",6868420.0845213775,2370900.0418401831,1769136.5783246323,103412.21035159878,498351.25316395226,"Winter",253411.07939,55803.234640000002,71733.071861000004,1376.8885815000001,56589.066271000003,25458.073498000002,6130.8874070000002,1354.3257784,3053.2304963000001]
[2037,"2011-12-11","KW60MN07 ",6662044.794883186,2370809.3743113154,1669530.7904896745,90397.359569999986,610881.22425164073,"Winter",277496.97489000001,61564.484332,87774.718840999994,1684.8017934,56680.265411,25339.678685999999,7129.8898729000002,816.33821894000005,1678.8527133]
[2041,"2011-11-26","KW60MN10 ",6781900.4051333927,2369666.0557934521,1715321.382154298,111175.100177,543169.57346215402,"Winter",231703.53572000001,53496.634994,84075.226970000003,1613.7914771000001,55859.473151999999,28265.801821000001,5964.5782955000004,4955.8928413000003,0]
[2044,"2012-01-12","KW60MN02 ",6572882.1939373137,2368982.8625778072,1695245.0351314307,87893.124675388957,585844.70277098776,"Winter",283503.64254999999,55799.874817000004,93489.215062000003,1794.489339,57501.057669000002,32526.507583999999,7374.1985962999997,742.46966563000001,3053.2304963000001]
[2048,"2012-03-13","KW60MN23 ",6345298.4802101236,2368149.0191878867,1756865.5382579949,88808.60975645225,522474.87117343937,"Winter",226118.01298999999,58779.881974999997,79957.709231000001,1534.7573159999999,55540.276163000002,33454.775085000001,6471.2998347000002,1354.3257784,3053.2304963000001]
[2051,"2012-01-10","KW60MN06 ",7043973.100322444,2367530.8578426228,1718951.9479793902,94613.539379835172,553965.37048339751,"Winter",226415.83291999999,54533.634487000003,92226.063431000002,1770.2436318,56133.070571999997,33294.121402999997,8666.6417213999994,742.46966563000001,3053.2304963000001]
[2055,"2012-03-15","KW60MN22 ",6569418.2667576447,2366282.3511080518,1757241.7489500691,96273.205971494084,512767.3961864888,"Winter",174678.76639999999,57575.326774000001,85700.112141999998,1644.9805197999999,56224.269711000001,33901.510613999999,6228.9515124999998,1354.3257784,3053.2304963000001]
[2058,"2012-03-02","KW60MN22 ",6796043.1392979957,2364887.5489425422,1722325.4745008582,101610.96783432709,540951.10660735692,"Winter",240965.84156999999,63358.210448999998,89489.460475999993,1717.7155961000001,56589.066271000003,29688.970813,6662.4559374999999,1354.3257784,3053.2304963000001]
[2062,"2012-02-11","KW60MN19 ",6917058.4295979496,2364021.5248649903,1730114.8631486909,102865.05786618333,531041.60385011625,"Winter",198746.65492,69069.683021999997,83368.779305000004,1600.2314873,55312.278313000003,27013.678521999998,6945.2701355999998,747.06969021999998,3053.2304963000001]
[2063,"2012-03-26","KW60MN07 ",6697632.5190793341,2363956.4579604147,1730980.5232679425,114856.92751575717,518119.00717671483,"Winter",235767.20918999999,57756.996631000002,103430.09359999999,1985.3006593,55859.473151999999,34880.634020999998,8295.1134182999995,1354.3257784,0]
[2066,"2012-01-31","KW60MN06 ",6977787.8322136542,2363197.6074828799,1687159.5981990395,97949.443588525857,578088.56569531455,"Winter",230226.28526,57870.205474000002,95948.094372000007,1841.6865766999999,55768.274012000002,32673.171321999998,8432.8968205000001,742.46966563000001,3053.2304963000001]
[2069,"2012-03-28","KW60MN21 ",6739221.9623796148,2361759.2772141779,1755838.4627289877,107723.95029769836,498196.86418749159,"Winter",216495.99153,66506.978415999998,93126.159281,1787.5206235999999,39626.026259999999,32277.873226,6687.8565142999996,1354.3257784,3053.2304963000001]
[2073,"2011-11-30","KW60MN15 ",7058825.2382309632,2361070.2140040528,1759711.5869011001,102380.524198,498978.10290495283,"Winter",160669.31683,70461.695779999995,127292.91557,2443.3383012999998,52439.505407999997,38387.135197000003,8920.4985161999994,4955.8928413000003,0]
[2076,"2011-12-13","KW60MN01 ",6269026.7794946274,2360248.5695891697,1681221.9273535728,83426.275249999992,595600.36698559695,"Winter",321873.53308999998,57854.129418999997,101805.64212999999,1954.1199414,57683.455949000003,31612.271139,7585.0890728000004,816.33821894000005,3053.2304963000001]
[2080,"2012-02-11","KW60MN11 ",6842315.5390374474,2359260.7209978011,1709294.0423137934,98211.523562313363,551755.15512169455,"Winter",252328.11709000001,63781.162516999997,82496.878593000001,1583.4956903,55038.680892999997,28293.577843999999,6635.0814152000003,747.06969021999998,0]
[2083,"2012-03-28","KW60MN13 ",6718751.8859500261,2358555.03761615,1778851.2170929026,101974.57785499976,477729.24266824737,"Winter",145362.77136000001,74692.897173000005,114375.57968,2195.3950329999998,39717.225400000003,34912.065682,8643.4402482999994,1354.3257784,0]
[2087,"2011-12-09","KW60MN05 ",6721459.7834534794,2358122.5316250599,1665181.6063881263,88764.755449999997,604176.16978693369,"Winter",338967.52807,59900.435172999998,103512.88483,1986.8898048999999,56999.462399999997,31287.840665,7069.7776565000004,816.33821894000005,3053.2304963000001]
[2088,"2011-11-04","KW60MN22 ",6681320.7663155952,2358090.6848224564,1729904.3148016494,104692.79701000001,523493.57301080681,"Winter",213652.52129,58772.554957,103729.32861,1991.0443596,56406.667991000002,34314.695959999997,5952.0032835000002,4955.8928413000003,3053.2304963000001]
[2091,"2011-11-25","KW60MN21 ",6851260.3187968126,2357458.1577097122,1708865.4900984312,105064.466222,543528.20138928108,"Winter",283231.26980000001,66708.170916999996,87023.966631999996,1670.3913949,52576.304118,20315.130687000001,6380.5491456999998,4955.8928413000003,3053.2304963000001]
[2094,"2012-01-29","KW60MN07 ",6605407.0651134653,2355890.1754019368,1709136.7315070119,95977.873678688382,550775.57021623629,"Winter",248568.72868,59769.154627000004,74975.455224999998,1439.1248766000001,51709.912289,25551.378945,6500.4282225999996,742.46966563000001,1475.3040137999999]
[2098,"2011-12-18","KW60MN14 ",6779817.1442415332,2354689.9671973437,1694742.101087864,94969.173540000003,564978.69256947946,"Winter",284229.93104,49034.712898999998,86859.329664999997,1667.231252,56999.462399999997,26037.810659999999,6275.6828858999997,816.33821894000005,0]
[2100,"2012-02-21","KW60MN16 ",7102423.8433346106,2354340.8879473996,1749075.4072895651,88632.973802669556,516632.50685516529,"Winter",156316.50365,70154.844798000006,110282.98185,2116.8391998000002,54400.286914999997,35840.769405999999,8450.1053558999993,747.06969021999998,0]
[2106,"2012-01-29","KW60MN22 ",6799606.345442933,2353309.0428581596,1738496.1334688244,97728.234988503013,517084.67440083221,"Winter",237547.08072999999,56770.135788,71556.001696000007,1373.4897880999999,54901.882184000002,26621.723642000001,6191.9239582,742.46966563000001,3053.2304963000001]
[2109,"2011-12-16","KW60MN06 ",7008859.6362954834,2352634.0212553032,1661937.6981224471,91413.079169999997,599283.24396285589,"Winter",276590.41525999998,59305.642055999997,100546.58928,1929.9529086,58549.847777000003,33735.472871999998,8546.8235901999997,816.33821894000005,3053.2304963000001]
[2112,"2012-03-22","KW60MN19 ",6790284.2935501728,2351655.1127610356,1767186.831405519,96023.297848901988,488444.9835066144,"Winter",238723.70263000001,70120.431920000003,105484.81547,2024.7402513,56771.464549999997,32886.989618,6996.3133772000001,1354.3257784,3053.2304963000001]
[2113,"2011-11-06","KW60MN12 ",6660873.9733503051,2351651.3716350244,1743804.2163499561,107635.748515,500211.40677006816,"Winter",220543.93672,48692.946108999997,96325.319547000006,1848.9272681,56406.667991000002,28870.934593000002,5829.5035654000003,4955.8928413000003,0]
[2116,"2012-03-02","KW60MN17 ",6955989.1773106214,2350900.2091796296,1726223.7921921425,93858.626077532128,530817.79090995528,"Winter",198660.77467000001,71676.986025000006,98832.821037999995,1897.0577897999999,54719.483904000001,31773.126220999999,7131.4541313,1354.3257784,611.07015908999995]
[2120,"2012-02-27","KW60MN24 ",6440701.999731916,2349981.8072272437,1695455.9043310306,90197.076054911871,564328.82684130105,"Winter",279605.60359000001,53800.269158000003,86546.482063999996,1661.2262633,54126.689494999999,33940.669807999999,6772.9782439999999,747.06969021999998,3053.2304963000001]
[2125,"2012-02-04","KW60MN18 ",7104439.2353766756,2349580.5358424275,1682095.711380203,95676.794289834856,571808.03017238982,"Winter",196747.08554,69660.390041000006,82894.169907999996,1591.1215434999999,57136.261109999999,27073.036630999999,7259.7233217000003,747.06969021999998,3053.2304963000001]
[2127,"2012-02-02","KW60MN15 ",7020433.5283434587,2349108.7304746183,1736101.6920385279,92195.228670751429,520811.80976533866,"Winter",161729.31200999999,73390.233854999999,121481.70675,2331.7943948000002,55129.880033000001,35330.087122999998,9009.0297873,747.06969021999998,0]
[2131,"2012-02-29","KW60MN24 ",6453125.8397787698,2345889.7418167074,1720780.055401006,94285.206070716682,530824.4803449848,"Winter",232538.00385000001,63180.780942999998,80321.735765999998,1541.7446646000001,57729.055519000001,30338.463132000001,6421.7649840000004,747.06969021999998,3053.2304963000001]
[2134,"2011-12-27","KW60MN22 ",6945353.8638414247,2345524.8975185039,1723639.2219999223,81941.984060000003,539943.69145858171,"Winter",241230.32899000001,61405.730686000003,95255.314761999995,1828.38894,56908.26326,30091.190274,6103.1268983,816.33821894000005,3053.2304963000001]
[2137,"2011-11-05","KW60MN15 ",6759427.5275867106,2344997.2755493098,1743353.4845353458,114553.72029900001,487090.07071496424,"Winter",193126.20989,55263.262394999998,95890.786968999993,1840.5865833,56953.862829999998,30078.073958000001,5855.1005213999997,4955.8928413000003,0]
[2138,"2011-12-02","KW60MN23 ",6650148.3745563943,2344990.1875183838,1701036.4947456254,91861.985749999993,552091.70702275855,"Winter",264227.39056999999,62365.844703000002,94482.374741000007,1813.5526551,58367.449498000002,32068.49727,6181.7664360999997,816.33821894000005,3053.2304963000001]
[2141,"2011-11-20","KW60MN23 ",6549532.3311159397,2343585.1795373512,1685780.9020995512,96409.342216999998,561394.93522080011,"Winter",276534.21101999999,50688.854517,79785.233896000005,1531.4467187,56771.464549999997,27778.480399,6237.1655620000001,4955.8928413000003,3053.2304963000001]
[2146,"2011-11-02","KW60MN18 ",7040877.951856398,2340202.1545155784,1710194.8227442147,98438.317372000005,531569.01439936354,"Winter",288746.88432999997,75060.878937999994,131985.63831000001,2533.4133001,53260.297666999999,40096.047836999998,7479.5524175999999,4955.8928413000003,3053.2304963000001]
[2149,"2011-12-03","KW60MN14 ",6793975.3597718468,2339717.5980406478,1743890.8874108098,82935.679822000006,512891.03080783808,"Winter",219105.30747999999,60491.862039,89729.946074000007,1722.3316242000001,57181.860679999998,27408.132133999999,6308.8370379999997,816.33821894000005,0]
[2152,"2011-11-18","KW60MN06 ",6796714.8536307868,2338735.821691216,1677508.6001535403,94864.816059000004,566362.40547867573,"Winter",245467.39512999999,54484.324947000001,107671.92576,2066.7209876000002,56634.665841000002,37310.860890999997,7240.4443449999999,4955.8928413000003,3048.6082443999999]
[2156,"2011-11-09","KW60MN14 ",6901470.7748391535,2338217.5480279042,1737678.8280013294,104265.628501,496273.09152557474,"Winter",148333.26551,73320.991936000006,137082.85918999999,2631.2524840999999,53488.295515999998,41476.304797999997,9922.7412316999998,4955.8928413000003,0]
[2159,"2012-01-01","KW60MN13 ",6420119.626797392,2336166.3398342975,1713674.9860610135,95100.992500352382,527390.36127293145,"Winter",235968.15815999999,46902.719607999999,74619.343762999997,1432.2894547000001,55312.278313000003,16494.266962999998,5749.9904820000002,742.46966563000001,0]
[2162,"2012-03-22","KW60MN15 ",6771640.4882529229,2335563.4015969532,1750947.3706251651,99984.143050855855,484631.88792093203,"Winter",130671.01738,72361.933588999993,116812.07092,2242.1625402999998,55266.678742999997,35097.436003000003,7434.9575083999998,1354.3257784,0]
[2163,"2012-03-30","KW60MN14 ",6670339.5523008145,2335384.8827563063,1713964.2505281849,102369.97035941458,519050.66186870681,"Winter",173190.23907000001,73525.219685999997,111921.44965,2148.2889556999999,54081.089925,34830.254717999997,8301.7242716000001,1354.3257784,0]
[2167,"2012-02-26","KW60MN23 ",6515304.9010854419,2333795.6281231265,1693226.0642251994,98167.451941286941,542402.11195664003,"Winter",265010.08467000001,53331.219547000001,72501.708599000005,1391.6422665,55813.873582,27235.852908000001,5980.3834005999997,747.06969021999998,3053.2304963000001]
[2171,"2011-11-04","KW60MN15 ",6802527.3332811603,2332774.0583013492,1739240.5537885881,100082.112429,493451.39208376128,"Winter",160251.00171000001,73837.140127999999,125527.49634,2409.4517617000001,56634.665841000002,39244.648378999998,7257.8340226,4955.8928413000003,0]
[2174,"2012-01-28","KW60MN06 ",6640159.8323991252,2331838.4989710376,1712140.4521463367,101143.52936936602,518554.5174553346,"Winter",252470.99647000001,59246.882913000001,74258.499561999997,1425.3631898000001,52758.702397000001,27871.464467999998,6625.3048000999997,742.46966563000001,3053.2304963000001]
[2177,"2011-11-10","KW60MN15 ",6931312.9785786578,2331398.3929633484,1734026.7533025704,97593.958560999992,499777.6810997781,"Winter",147400.34723000001,71757.136522999994,125671.48005,2412.2154734000001,56543.466700999998,41609.467288,8972.5659749999995,4955.8928413000003,0]
[2181,"2011-11-09","KW60MN22 ",6822612.5768312952,2330112.2505853437,1686140.0641998895,109044.01397400002,534928.17241145414,"Winter",260524.82110999999,61429.847178000004,113623.13950999999,2180.9522347000002,57136.261109999999,36982.295141000002,7346.3060408000001,4955.8928413000003,3053.2304963000001]
[2184,"2011-12-16","KW60MN23 ",6771679.2574559031,2328964.828843263,1678757.2117035768,88339.96994000001,561867.64719968615,"Winter",267489.10174000001,64356.203216000002,93333.897052999993,1791.5080699,57227.460249999996,30301.238162000001,6500.3266474000002,816.33821894000005,3053.2304963000001]
[2188,"2012-01-13","KW60MN04 ",6611010.5506492779,2327508.9001303832,1674143.8258665234,89729.351211297006,563635.7230525628,"Winter",274417.08226,58645.701152000001,94020.440484999999,1804.6860056,57045.061970000002,31850.531101,7171.8201247999996,742.46966563000001,3053.2304963000001]
[2189,"2011-12-22","KW60MN02 ",6471560.6851325566,2327163.7353327158,1685084.8309945483,88649.943235999992,553428.96110216761,"Winter",263769.43677999999,55343.851549999999,93477.296522000004,1794.2605672,56178.670141000002,31390.402223000001,7427.5662186999998,816.33821894000005,3053.2304963000001]
[2192,"2012-03-29","KW60MN19 ",6642415.3451767312,2326227.11184425,1713432.0704270387,112372.2620181815,500422.77939902985,"Winter",194142.49656,64149.605432999997,95241.419806999998,1828.1222316999999,48107.546265999998,32589.100580999999,6891.7129060999996,1354.3257784,3053.2304963000001]
[2196,"2012-03-29","KW60MN18 ",6617681.8657722417,2325020.2344471295,1696196.4475363404,116275.4376615348,512548.34924925433,"Winter",176878.32027,61337.043114,92249.107512999995,1770.685954,48061.946695999999,32761.565084999998,6455.2848072999996,1354.3257784,1730.5880082000001]
[2199,"2011-11-14","KW60MN07 ",6974724.1138154315,2324134.181823371,1642639.3056183171,108606.55809400001,572888.31811105378,"Winter",256801.0863,54697.242281999999,112340.53836000001,2156.3332015000001,56269.869280999999,36567.668192999998,8962.6116031000001,4955.8928413000003,95.625482946999995]
[2202,"2012-01-16","KW60MN04 ",6326575.5907943221,2323003.8526437189,1681116.437568764,96262.539289567023,545624.87578538817,"Winter",279237.32433999999,53878.277789,79761.735096999997,1530.9956683,57592.256808999999,27849.548684000001,6371.3057995999998,742.46966563000001,3053.2304963000001]
[2206,"2012-01-07","KW60MN14 ",6756936.1348284194,2321991.8354013478,1689479.3508083674,92352.976327742304,540159.50826523814,"Winter",271998.81621000002,55139.189962999997,83645.256726000007,1605.5383644999999,56543.466700999998,27146.055710000001,6067.1083252999997,742.46966563000001,0]
[2209,"2011-11-27","KW60MN10 ",6622101.082044797,2321581.0548248566,1657129.288578247,104652.96500899999,559798.8012376097,"Winter",302106.78970000002,45313.113584999999,81820.416802000007,1570.5112677,55768.274012000002,24083.512247999999,5507.3069616000002,4955.8928413000003,0]
[2211,"2012-01-13","KW60MN24 ",6503653.3284693351,2320124.891021532,1675384.7221268511,90488.504370643233,554251.66452403762,"Winter",320289.92595,64261.914467000002,84517.588271000001,1622.2824313000001,53533.895085999997,31139.281321999999,7082.2104639999998,742.46966563000001,3053.2304963000001]
[2214,"2012-01-30","KW60MN23 ",6567284.2814618554,2319577.4822195102,1683635.4379393815,91581.826999114812,544360.21728101408,"Winter",242645.32341000001,60056.055554999999,86463.040221999996,1659.6246294,56133.070571999997,32168.245283,7006.4962928000004,742.46966563000001,3053.2304963000001]
[2217,"2011-11-20","KW60MN06 ",6458890.8256372409,2319124.6363239316,1639538.4364763245,89470.081731999991,590116.11811560718,"Winter",267243.50098999997,53712.746652000002,93401.366592000006,1792.8031215999999,55038.680892999997,28439.493276000001,6551.8455990000002,4955.8928413000003,3053.2304963000001]
[2221,"2011-12-02","KW60MN06 ",6908865.5718721887,2318534.3993058293,1669249.3670653712,83555.243260000017,565729.78898045782,"Winter",246638.94031000001,57812.538955999997,111267.45493000001,2135.73578,57865.854227999997,34512.800088000004,7383.9701332000004,816.33821894000005,3053.2304963000001]
[2224,"2011-11-11","KW60MN16 ",6911774.5225369632,2318243.3694814928,1656537.5577977451,101404.19059299999,560301.62109074753,"Winter",239177.01423999999,73997.939232999997,125423.03873,2407.4467383000001,54126.689494999999,40234.981226999997,6296.1401357000004,4955.8928413000003,1374.3777831]
[2228,"2011-11-10","KW60MN06 ",6856259.4154758519,2317167.0665466413,1665021.5361423444,106869.71755299999,545275.8128512972,"Winter",249915.09734000001,55940.760824999998,105711.17371,2029.08511,57546.657239,36439.102548000003,8877.7556633000004,4955.8928413000003,2787.6983909]
[2230,"2011-11-12","KW60MN17 ",7084480.5851311497,2316718.5473189894,1662964.4953118933,105454.687253,548299.36475409626,"Winter",257092.72727,66174.151872999995,103283.00162,1982.4772856,53716.293365999998,31126.793517999999,6574.0296281000001,4955.8928413000003,3053.2304963000001]
[2235,"2012-03-30","KW60MN08 ",6655451.3731324365,2315533.7308286522,1679861.6945736781,116180.39849186526,519491.637763109,"Winter",178353.97034,67074.782078999997,109302.49123,2098.0190613999998,53533.895085999997,34225.289131999998,8397.4606120000008,1354.3257784,0]
[2236,"2011-12-04","KW60MN14 ",6880331.6418912513,2315362.7181166303,1739375.7317597629,91222.447926000008,484764.5384308676,"Winter",242488.43272000001,47223.795607,86751.712459000002,1665.1655813,56497.867130999999,26254.556069999999,6054.9802431999997,816.33821894000005,0]
[2239,"2011-11-05","KW60MN22 ",6768360.2517813975,2314603.1587638478,1693481.2782321032,104301.62336899999,516820.25716274459,"Winter",219978.39681000001,58247.791093,90397.092925999998,1735.1372501000001,54537.085623999999,27689.670127000001,5980.8100162999999,4955.8928413000003,3053.2304963000001]
[2242,"2011-12-14","KW60MN03 ",6313708.3113798276,2313837.6337920963,1683290.8251701624,86289.342898000003,544257.46572393388,"Winter",273319.09117999999,58085.872046999997,94557.569887999998,1814.9959968999999,54217.888635000003,31336.709739000002,7516.5461124000003,816.33821894000005,3053.2304963000001]
[2246,"2011-11-09","KW60MN16 ",6922912.4862752492,2312298.7858795091,1710560.9594974369,102419.787364,499318.03901807225,"Winter",159771.56461,68961.346002999999,131450.22558,2523.1362597000002,56452.267561000001,39169.594867,7952.4257052000003,4955.8928413000003,1221.7162585000001]
[2249,"2012-02-13","KW60MN23 ",6554338.6650414541,2312047.8502054773,1677354.5055580346,101164.174070938,533529.1705765049,"Winter",237963.72127000001,56873.663649000002,88622.201902999994,1701.0689030999999,55312.278313000003,33544.629803000003,6784.0956520999998,747.06969021999998,3053.2304963000001]
[2251,"2011-12-14","KW60MN24 ",6526688.5452074911,2311826.8839016506,1675956.1368363863,85445.988889999993,550424.75817526423,"Winter",277916.92219000001,66257.242819000006,95191.483882999994,1827.1637309,51573.113579999997,33521.649428999997,7470.2278116999996,816.33821894000005,3053.2304963000001]
[2257,"2011-11-13","KW60MN20 ",6937681.7963495506,2309674.0182747296,1651643.6499637156,117655.36144800001,540375.00686301407,"Winter",244648.78247000001,55820.776097000002,97256.178081000005,1866.7947377999999,56224.269711000001,28260.692723,6475.2172517999998,4955.8928413000003,3053.2304963000001]
[2260,"2011-11-05","KW60MN07 ",6561245.1707730126,2308418.3815832124,1640705.0989094309,102936.39946299999,564776.8832107815,"Winter",253903.03341,56726.919241000003,104482.9491,2005.5098135999999,56862.663690000001,30330.89011,6614.6190870999999,4955.8928413000003,0]
[2261,"2012-01-24","KW60MN23 ",6638080.277274658,2308060.9061396117,1664892.6056275947,92927.293638139803,550241.00687387725,"Winter",245365.73361,62972.068609000002,88315.650305000003,1695.1847637000001,56999.462399999997,34139.052011,7165.5224607,742.46966563000001,3053.2304963000001]
[2264,"2011-12-18","KW60MN15 ",6750899.1524122069,2307042.9136575367,1662151.5465808976,86819.986290000001,558071.38078663929,"Winter",277973.82592999999,49129.396921,87161.990097999995,1673.040702,56908.26326,26377.636001999999,6223.5341672000004,816.33821894000005,0]
[2267,"2011-11-15","KW60MN23 ",6547459.7637444353,2306262.6737507451,1645104.7941062518,91727.175866999998,569430.70377749333,"Winter",273160.46231999999,59847.216283000002,105780.22086,2030.4104434999999,56999.462399999997,37640.809864000003,7062.5455009999996,4955.8928413000003,3053.2304963000001]
[2271,"2012-02-11","KW60MN12 ",6761369.7386874687,2305473.7065694751,1667442.0359409258,97626.162323715951,540405.50830483332,"Winter",235329.37150000001,61486.702259999998,84014.847695999997,1612.6325202999999,54993.081323999999,27987.856190999999,6309.8460193000001,747.06969021999998,0]
[2276,"2011-11-07","KW60MN06 ",6774080.3701961404,2302401.4065438402,1600194.5259321923,100117.363419,602089.51719264768,"Winter",269539.25812000001,55136.974182999998,110894.56759999999,2128.5783517999998,57501.057669000002,33916.305039999999,7997.6673090000004,4955.8928413000003,2543.9346870999998]
[2279,"2012-01-01","KW60MN08 ",6422317.7445019195,2300082.1108331038,1690744.0866898673,96305.895364141354,513032.12877909507,"Winter",216427.80030999999,54787.062514999998,72576.788459000003,1393.0833954,55905.072721999997,16757.464277999999,6412.3828200999997,742.46966563000001,0]
[2282,"2011-11-06","KW60MN17 ",7004342.7397003109,2298531.65160899,1699777.9891996549,105631.97573399999,493121.68667533499,"Winter",235731.51319,52396.105763,100233.79668,1923.9489756,55813.873582,28407.064935999999,6146.6214086999998,4955.8928413000003,3053.2304963000001]
[2285,"2011-11-26","KW60MN12 ",6682414.5723422207,2297170.3222868205,1669381.5830018227,104514.25240899999,523274.4868759978,"Winter",233287.60920000001,58330.837049000002,83369.439564,1600.2441607999999,55585.875732,28616.508155,5503.2845828,4955.8928413000003,0]
[2286,"2011-11-02","KW60MN22 ",6689895.352898295,2296670.7357201735,1650400.8929742204,99544.656495000003,546725.18625095324,"Winter",226490.71184999999,54508.235766999998,111151.36044999999,2133.5073914,55266.678742999997,39123.074896999999,6306.3992329000002,4955.8928413000003,3053.2304963000001]
[2289,"2012-03-27","KW60MN16 ",6635218.6396947624,2296053.5963409329,1693290.4463030309,118585.04699452016,484178.10304338171,"Winter",159684.13696999999,71381.321599000003,107719.52919,2067.6347169999999,40264.420238999999,34418.056658000001,6969.4788961000004,1354.3257784,0]
[2293,"2012-01-25","KW60MN23 ",6611464.8826707406,2294751.1816859255,1640641.212178679,92844.054166424146,561265.91534082242,"Winter",205341.66003,65794.806805,90376.360786000005,1734.7393046,57090.661540000001,33453.297105999998,6691.0036536999996,742.46966563000001,3053.2304963000001]
[2297,"2012-01-27","KW60MN05 ",6553416.5264919093,2293809.3916537715,1664919.4146893355,85967.177446849644,542922.79951758613,"Winter",277641.40165999997,58123.890590000003,83275.665296000006,1598.4441999000001,57045.061970000002,32097.262798,7174.6439152000003,742.46966563000001,3053.2304963000001]
[2300,"2012-02-15","KW60MN24 ",6438685.3416789351,2292927.6482183659,1659245.1235782888,91290.225227059753,542392.29941301711,"Winter",268269.73972000001,58127.722813,84341.699223999996,1618.906309,53716.293365999998,31466.507947999999,6529.3449952999999,747.06969021999998,3053.2304963000001]
[2304,"2011-12-04","KW60MN23 ",6637311.0386075173,2291653.4150527352,1671825.4196137232,90271.435421999995,529556.56001701194,"Winter",267251.41811999999,53358.618734999996,81475.676842000001,1563.8941175,57318.659389,26810.172869999999,6550.7689020999997,816.33821894000005,3053.2304963000001]
[2307,"2012-03-08","KW60MN14 ",6634820.6848019175,2291261.6113951793,1722480.3933662381,89384.79160228312,479396.42642665835,"Winter",118535.44869999999,72248.869357999996,125142.65246,2402.0648322000002,56178.670141000002,36864.685168000004,8715.8803103999999,1354.3257784,0]
[2310,"2012-03-09","KW60MN12 ",6658873.7202793062,2290478.7927429974,1700685.5258894262,92678.301860177002,497114.96499339445,"Winter",142603.55978000001,71870.477123999997,121874.14062999999,2339.3270112999999,55950.672292000003,36937.750839,8814.4658347000004,1354.3257784,0]
[2311,"2012-03-14","KW60MN06 ",6502870.8700066423,2290273.5737423599,1646929.2575526896,83700.418930906715,559643.89725876332,"Winter",287938.54168000002,55975.239582000002,95991.966474999994,1842.5286848000001,54035.490355000002,36519.775126,8497.6662610000003,1354.3257784,813.77073923]
[2314,"2012-03-07","KW60MN15 ",6726919.4070202988,2288259.8444434805,1713334.0523032127,87233.724840405019,487692.0672998628,"Winter",137636.03990999999,77555.403720000002,119667.39389000001,2296.9693607999998,54856.282614000003,36202.858662999999,8595.0599700999992,1354.3257784,0]
[2319,"2012-03-23","KW60MN21 ",6531726.6984403562,2285665.5968512027,1685224.4316320389,101018.62432625618,499422.54089290783,"Winter",228505.69154999999,67528.920566999994,84370.546581999995,1619.4600229,57181.860679999998,31929.807271999998,6243.1788149000004,1354.3257784,3053.2304963000001]
[2322,"2011-11-01","KW60MN06 ",6516617.0266036298,2282947.0641329824,1697197.3306792518,87243.726861000003,498506.00659273064,"Winter",252529.25683,51122.650891999998,112271.0025,2154.9984875,42544.398735000002,41300.332805999999,9275.2195061999992,4955.8928413000003,2085.9501132]
[2325,"2012-03-16","KW60MN17 ",6567569.6056625117,2280121.2556335502,1701939.8352312131,106921.31002150402,471260.1103808331,"Winter",153771.09711,58391.284940999998,98571.581940999997,1892.0434063,56999.462399999997,33786.590061000003,6018.8567083999997,1354.3257784,0]
[2329,"2012-03-27","KW60MN07 ",6688520.7673196606,2277670.2052821605,1624552.4388378258,113548.42565837466,539569.34078596008,"Winter",240342.15788000001,62322.477116000002,106379.75579,2041.9182846000001,48107.546265999998,35583.121050000002,8399.1552245000003,1354.3257784,0]
[2332,"2011-12-12","KW60MN05 ",6511259.9457220174,2276778.4988200059,1563141.6249083171,84520.475390000007,629116.39852168853,"Winter",305003.69795,59854.776286,90421.533657000007,1735.6063804,58048.252507999998,29075.551422,7484.1233025000001,816.33821894000005,3053.2304963000001]
[2333,"2011-11-01","KW60MN16 ",6942896.9762455821,2276256.1945148418,1694567.9202831837,92781.422681000011,488906.85155065806,"Winter",162081.80999000001,74642.443589999995,123448.80636,2369.5521113,44915.576371000003,42690.568979000003,7460.9438362999999,4955.8928413000003,661.95733396000003]
[2339,"2012-03-16","KW60MN16 ",6601106.5347346906,2274866.2184485202,1699904.4915838221,100891.23290636401,474070.49395833426,"Winter",149063.60264999999,67162.879820000002,102549.50066000001,1968.3980183000001,54582.685193999998,34311.782146999998,6241.8193995000001,1354.3257784,0]
[2340,"2012-03-07","KW60MN23 ",6302490.9047862487,2274350.1849868698,1662060.5582378765,95859.051695688875,516430.57505330467,"Winter",208376.56172,62165.020159,85691.376969999998,1644.8128515999999,56315.468850999998,33227.086249,6617.1483097999999,1354.3257784,3053.2304963000001]
[2344,"2011-11-27","KW60MN12 ",6551998.2950660978,2272910.3506794181,1637927.9912712313,105128.64627100001,529853.7131371866,"Winter",256588.48951000001,45376.710808999997,83981.575223000007,1611.9938681000001,46921.957448000001,24242.512870999999,5517.8910993999998,4955.8928413000003,0]
[2347,"2011-11-28","KW60MN23 ",6561101.9548737565,2272302.8716839659,1650375.9227049521,91078.500340999992,530848.44863801391,"Winter",268526.16162000003,54485.048006999998,97517.026303999999,1871.8016186,56133.070571999997,34236.221143000002,6720.0338518999997,4955.8928413000003,3053.2304963000001]
[2350,"2012-03-07","KW60MN17 ",6726170.1367928181,2271440.7666435903,1683301.1618179383,87022.95679488586,501116.64803076599,"Winter",174620.06090000001,74782.486027000006,109533.13391,2102.4461584999999,55859.473151999999,34128.580629999997,7253.5407767999995,1354.3257784,265.39075265999998]
[2354,"2012-01-21","KW60MN07 ",6469541.2421882786,2271098.7986215469,1611518.1591526018,88415.63890709616,571165.0005618491,"Winter",261854.93156,56718.130034000002,86870.474956000005,1667.4451816000001,56543.466700999998,25231.636908,7074.4501165000001,742.46966563000001,1831.5142378999999]
[2357,"2012-01-08","KW60MN16 ",6826188.9117842196,2270688.1205595573,1682649.5825685961,94156.01105799996,493882.52693296148,"Winter",207254.81922999999,44772.344365999998,81245.852650999994,1559.4827310000001,55312.278313000003,26537.347616999999,5766.9535439000001,742.46966563000001,1425.2649578999999]
[2360,"2011-11-25","KW60MN22 ",6607345.3115184326,2269433.8162871022,1643254.7923899626,99153.274037999989,527025.74985913944,"Winter",250506.43418000001,65222.300033,83713.528565999994,1606.8488161,53397.096376000001,20329.869713,6190.6034804999999,4955.8928413000003,3053.2304963000001]
[2362,"2012-01-07","KW60MN15 ",6711385.9079790479,2268286.6753044114,1647767.044075313,92807.251610725565,527712.37961837288,"Winter",252315.37761,57276.495342000002,84492.859897000002,1621.8077797000001,56361.068421000004,27592.270832999999,6455.8570153000001,742.46966563000001,0]
[2365,"2012-03-28","KW60MN19 ",6698892.4148628078,2267369.569811434,1684002.1736981503,111895.30273204985,471472.09338123386,"Winter",188558.09727999999,63263.947409,102394.63094,1965.4253538999999,39078.831421000003,31993.089958,6907.0016707000004,1354.3257784,3053.2304963000001]
[2369,"2011-11-25","KW60MN17 ",6860655.8138725506,2266567.3075983003,1656262.8408136044,97639.563825999998,512664.9029586956,"Winter",235160.77997999999,67036.837448999999,89015.367803999994,1708.6155705000001,50569.923041000002,21397.773603000001,6398.4466989000002,4955.8928413000003,3053.2304963000001]
[2372,"2011-12-25","KW60MN20 ",6806099.6158242114,2265765.3474957407,1629344.946743509,98036.836540000004,538383.56421223178,"Winter",271745.74346000003,53254.935014000002,68631.812080999996,1317.361099,50296.325621999997,16481.961009999999,6639.8503720999997,816.33821894000005,3053.2304963000001]
[2375,"2011-12-23","KW60MN04 ",6538015.0826489935,2265509.9641378028,1604709.2735210015,87336.624563000005,573464.06605380157,"Winter",274308.23489999998,54214.154042000002,87120.113928999999,1672.2369051000001,56133.070571999997,28758.293457,7508.4200950000004,816.33821894000005,3053.2304963000001]
[2377,"2011-11-12","KW60MN20 ",6937025.0682909042,2265340.732370174,1624937.1290187449,113962.375975,526441.22737642913,"Winter",248858.49369999999,69412.915213999993,97436.373397000003,1870.2535172,55950.672292000003,29561.683390999999,6559.4027962999999,4955.8928413000003,3053.2304963000001]
[2383,"2012-03-24","KW60MN11 ",6285746.3257395346,2264370.2094636522,1651300.3040156614,105988.5662331441,507081.33921484696,"Winter",222180.78049999999,59668.147838999997,75657.907231000005,1452.224279,55996.271862000001,29104.257160000001,5390.5090000999999,1354.3257784,0]
[2384,"2012-03-30","KW60MN15 ",6595775.4512605406,2264284.1524807545,1656425.3604543393,99193.291206224487,508665.50082019053,"Winter",165081.25945000001,71278.237215000001,105852.33242999999,2031.7945970999999,54081.089925,32952.796252,7618.1433424999996,1354.3257784,0]
[2387,"2012-01-16","KW60MN01 ",6210134.4989184318,2263454.4308895059,1652596.2512312785,93793.581132339066,517064.59852588817,"Winter",243877.93758,51220.423188000001,78568.643289,1508.0947323,57409.858528999997,28130.812918,6277.6940752999999,742.46966563000001,3053.2304963000001]
[2390,"2011-12-03","KW60MN23 ",6537364.887594712,2262252.5119740427,1650105.2283494871,90243.97912399999,521903.30450055556,"Winter",249312.6214,62785.366247999998,78120.033179000005,1499.4838347,57090.661540000001,26840.711195,6192.1880530999997,816.33821894000005,3053.2304963000001]
[2394,"2012-02-25","KW60MN07 ",6457917.6048517833,2261039.3422213527,1650998.6970992622,94186.316263175773,515854.32885891484,"Winter",216050.95741,55502.054063000003,71458.851723,1371.6250319000001,56361.068421000004,27083.067729999999,6071.4828310000003,747.06969021999998,0]
[2397,"2011-11-25","KW60MN10 ",6507306.2841812661,2259930.2900403058,1646872.5472487335,99793.994976000002,513263.74781557266,"Winter",228490.35542000001,53127.875538,85617.831093000001,1643.4011668999999,51481.91444,22626.361449,6060.1808952000001,4955.8928413000003,0]
[2402,"2012-03-29","KW60MN22 ",6483571.0233002985,2258464.115319679,1649373.2210420046,110841.74787094613,498249.14640672837,"Winter",188644.28489000001,58249.066894000003,82990.502997000003,1592.9706197999999,47697.150135999997,31855.377948000001,6091.1850389000001,1354.3257784,3053.2304963000001]
[2405,"2012-02-05","KW60MN15 ",6572037.5721906722,2258086.3952380545,1601457.3737541398,89247.341788148085,567381.67969576665,"Winter",241585.19044000001,44221.220914999998,74776.560219000006,1435.3071637999999,56680.265411,25486.521954,6160.7572935999997,747.06969021999998,0]
[2408,"2011-11-24","KW60MN18 ",6501443.5033805203,2256623.6263548997,1644601.846817384,103933.91601500001,508087.86352251575,"Winter",218365.82376999999,58568.029949000003,77380.983059999999,1485.2980534000001,55084.280463000003,18261.396892000001,6166.9973986000005,4955.8928413000003,3053.2304963000001]
[2409,"2012-01-18","KW60MN05 ",6585875.9970942102,2256228.5811175182,1660008.5217418747,94522.049058482546,501698.01031716086,"Winter",238530.19386,52025.450279999997,88468.837341999999,1698.1251296,50022.728201999998,33721.916839999998,8043.0714336000001,742.46966563000001,3053.2304963000001]
[2412,"2011-12-31","KW60MN22 ",6663671.6504942542,2254750.1613236452,1647702.6945003613,89459.38300999999,517588.08381328388,"Winter",249119.11262999999,60970.958982999997,74820.338277999996,1436.1474668000001,55996.271862000001,17074.950787999998,6329.3349183,816.33821894000005,3053.2304963000001]
[2415,"2012-03-01","KW60MN05 ",6456564.1691808766,2253990.8017796157,1627254.1784190251,85446.750569014519,541289.87279157597,"Winter",228233.31880000001,55740.159627000001,76752.507763999994,1473.2347130999999,54217.888635000003,30160.959964000001,6986.3691630000003,1354.3257784,3053.2304963000001]
[2419,"2012-02-20","KW60MN06 ",6751754.1407534527,2253137.9786031418,1631037.1437409008,79144.636309699912,542956.1985525412,"Winter",206185.07336000001,57804.214115000002,75994.314375000002,1458.6814841,55722.674442000003,26694.482334,6701.5251540999998,747.06969021999998,2899.5653634999999]
[2423,"2011-11-25","KW60MN09 ",6460008.2227191078,2252525.9448911077,1634283.1133418977,98831.390039999998,519411.44150920992,"Winter",247703.45050000001,55401.996894000004,87003.429927999998,1669.9972008,51846.710999000003,22204.022904000001,6199.3186346000002,4955.8928413000003,0]
[2427,"2012-01-24","KW60MN05 ",6531537.8067414323,2251554.0942771398,1596426.6849505252,84528.425881206917,570598.98344540747,"Winter",280775.81335999997,54601.873762000003,85195.231178999995,1635.2895249000001,57911.453798000002,32459.126316999998,8159.6594739000002,742.46966563000001,3053.2304963000001]
[2430,"2012-02-16","KW60MN05 ",6510703.4202105012,2250745.2918089968,1621794.0125880861,88484.496834242527,540466.78238666826,"Winter",235703.34218000001,51604.113047999999,80568.232478999998,1546.4760736999999,56178.670141000002,31324.109015000002,6944.2086744999997,747.06969021999998,3053.2304963000001]
[2433,"2012-02-03","KW60MN05 ",6500660.8274165178,2248377.0409802375,1595444.6986007325,86739.180486392492,566193.16189311258,"Winter",239492.06745,54767.231363999999,89146.230500000005,1711.1274294,58139.451648000002,32266.010459000001,6699.8677842999996,747.06969021999998,3053.2304963000001]
[2434,"2012-02-20","KW60MN23 ",6609298.419731969,2247484.7369442289,1627413.6325646054,87746.221815713638,532324.88256390986,"Winter",250787.34938999999,53138.600940999997,80279.913797000001,1540.9419081000001,57090.661540000001,29701.697114999999,6743.3504443000002,747.06969021999998,3053.2304963000001]
[2437,"2011-12-19","KW60MN24 ",6521601.8441637754,2245927.5111599946,1608934.8517952508,84790.210849999989,552202.44851474406,"Winter",251924.86254999999,56032.568671000001,95039.579586000007,1824.2479866000001,54537.085623999999,34028.464724999998,6706.4837170000001,816.33821894000005,3053.2304963000001]
[2440,"2012-02-12","KW60MN15 ",6725955.6208569622,2244861.1914299517,1642954.3337067228,98886.300047611672,503020.55767561728,"Winter",212863.69062000001,44512.272212000003,80811.092713999999,1551.1376820999999,55221.079172999998,26686.578201,6006.9013047999997,747.06969021999998,0]
[2444,"2012-02-12","KW60MN07 ",6382865.0873418087,2242788.8796765981,1613007.0999485594,93410.816784964962,536370.96294307371,"Winter",225222.25330000001,59645.117546000001,76799.504904000001,1474.1368050000001,55266.678742999997,25427.741322999998,6638.3030423,747.06969021999998,559.33486457000004]
[2448,"2012-03-06","KW60MN24 ",6161251.1499753939,2241517.4732307843,1641490.6464506756,94423.686619902175,505603.14016020636,"Winter",211960.78750000001,57424.946172999997,84384.231977000003,1619.7227088,54035.490355000002,32361.108650999999,6387.5375204000002,1354.3257784,3053.2304963000001]
[2452,"2012-03-28","KW60MN22 ",6422320.2863645218,2240925.6174438335,1664036.2314622549,97969.296295259381,478920.08968631912,"Winter",198664.13441999999,62630.706733999999,86417.010735000003,1658.7411112,39170.030561,31969.228203999999,6238.9515930999996,1354.3257784,3053.2304963000001]
[2455,"2011-12-24","KW60MN23 ",6483157.1106777471,2239663.7422161065,1606899.9576042132,93658.183690000005,539105.60092189314,"Winter",294637.58240000001,53744.381370000003,67440.019891999997,1294.4851087,57045.061970000002,17133.094046999999,6567.5084985000003,816.33821894000005,3053.2304963000001]
[2458,"2012-03-04","KW60MN21 ",6538745.655814982,2238902.7264992329,1645706.9056921161,96126.214814712337,497069.60599240457,"Winter",184972.37710000001,53598.011347,73139.048477999997,1403.8757591000001,55312.278313000003,27155.731556999999,5973.5490806999996,1354.3257784,3053.2304963000001]
[2459,"2012-02-24","KW60MN16 ",6700922.6029762123,2238625.1100865034,1649009.7406804073,82017.691718596718,507597.67768749944,"Winter",142426.81795999999,76715.051084999999,109756.28558,2106.7294685000002,56862.663690000001,35640.175102000001,7868.033625,747.06969021999998,0]
[2462,"2012-03-22","KW60MN06 ",6489636.1186741274,2236953.51237946,1623232.7724751153,93340.466311201075,520380.27359314403,"Winter",266796.76049000002,58069.988809000002,96442.803897999998,1851.1823348,55266.678742999997,34682.988375000001,8573.5700381999995,1354.3257784,95.625482946999995]
[2465,"2011-11-25","KW60MN11 ",6461631.1098653814,2236058.5998309199,1633590.1606467972,98317.542009000012,504150.89717512252,"Winter",215181.39739999999,55688.354722999997,86632.666796000005,1662.8805459,50296.325621999997,22818.605243999998,5647.1557269000004,4955.8928413000003,0]
[2470,"2012-03-01","KW60MN24 ",6319138.4397710832,2234515.4044812787,1629134.4781430047,94869.978888058176,510510.9474502161,"Winter",246070.90974,61508.676885000001,82118.609173999997,1576.2349549999999,50341.925192000002,31095.794053000001,6358.0586985,1354.3257784,3053.2304963000001]
[2473,"2011-12-07","KW60MN24 ",6389844.0997512862,2230434.2780269333,1603508.9676119708,86868.764937999993,540056.54547696246,"Winter",318128.86609000002,63760.593844000003,104965.14895,2014.7654533,57409.858528999997,32549.803839,7398.5360203999999,816.33821894000005,3053.2304963000001]
[2477,"2012-03-11","KW60MN11 ",6147892.8986765677,2228793.0133848079,1652917.0009640085,96918.496282540553,478957.51613825897,"Winter",205128.63928999999,47193.235839000001,76237.700175999998,1463.3531803999999,53260.297666999999,24972.764034,5500.8450849999999,1354.3257784,0]
[2480,"2011-11-02","KW60MN16 ",6713280.1402776074,2228558.323845177,1635957.6671168797,92891.280938000011,499709.37579029734,"Winter",169866.09169999999,71412.268605999998,123617.28294,2372.7859539999999,52849.901536999998,41060.010421999999,7115.6693415,4955.8928413000003,763.73168391000002]
[2483,"2011-11-12","KW60MN08 ",6554570.4325653194,2227508.0768293901,1551013.5376529258,106386.77263799999,570107.76653846412,"Winter",291411.74739999999,50671.824023000001,96507.756873999999,1852.4290821,55449.077022999998,32622.182815,5870.9259417000003,4955.8928413000003,0]
[2486,"2012-01-08","KW60MN07 ",6479878.8713733368,2225779.3872014652,1610688.764311454,102813.37008503565,512277.25280497555,"Winter",245453.04466000001,54060.389516000003,80491.868845999998,1545.0103033,51618.713149000003,25606.23172,6421.6464802999999,742.46966563000001,2187.724463]
[2488,"2012-03-03","KW60MN12 ",6644050.1602315577,2225512.386449567,1630214.9349827056,95299.646152910966,499997.80531395058,"Winter",232309.91193,58874.974125000001,89790.138292999996,1723.4869905,54901.882184000002,25355.929355,5782.8212862999999,1354.3257784,0]
[2492,"2012-02-19","KW60MN23 ",6521763.9750051275,2222854.3208288504,1601470.8902154921,87891.094123931369,533492.33648942702,"Winter",226820.66665,56727.598918000003,70471.444451999996,1352.6721310999999,55266.678742999997,25899.720259999998,6103.2335528000003,747.06969021999998,3053.2304963000001]
[2495,"2011-11-06","KW60MN16 ",6699379.3751926972,2221999.3340193564,1647279.7359630289,102089.44547000001,472630.15258632757,"Winter",217690.18586999999,44545.489629999996,96311.751506999994,1848.6668348000001,55996.271862000001,28546.439031999998,5785.4605500999996,4955.8928413000003,1018.167559]
[2498,"2012-03-11","KW60MN19 ",6300879.9577368898,2221467.595570765,1640710.2312843166,96797.973721171846,483959.39056527644,"Winter",238508.07464000001,51027.399667999998,75348.019773000007,1446.2761091,55950.672292000003,25643.333392,6240.4599852000001,1354.3257784,3053.2304963000001]
[2502,"2012-03-05","KW60MN23 ",6118594.6748878881,2219859.1933117015,1613849.6003366327,84688.507637767601,521321.08533730148,"Winter",242252.92181,55599.665678999998,84492.272438,1621.7965036999999,53761.892935999997,33298.781453000003,6375.7310933999997,1354.3257784,3053.2304963000001]
[2505,"2012-02-01","KW60MN06 ",6766568.558128478,2217893.3198907315,1586472.856555366,90085.087427544408,541335.37590782112,"Winter",219087.80923000001,57054.435302999998,95624.262927999996,1835.4707573999999,48472.342825,33211.695397000003,8310.5596232000007,747.06969021999998,3053.2304963000001]
[2507,"2012-02-29","KW60MN04 ",6288526.033920235,2216364.5775415292,1599262.3903518713,83760.062385638899,533342.12480401876,"Winter",228104.95947,53230.566254999998,82396.390578000006,1581.5668616999999,56589.066271000003,31621.408901999999,6404.0739665999999,747.06969021999998,3053.2304963000001]
[2510,"2012-01-28","KW60MN05 ",6350959.3572897259,2215429.7373897848,1621904.0495935141,93355.484845577055,500170.20295069373,"Winter",248917.49596,57023.828937999999,71732.713023999997,1376.8816936999999,54856.282614000003,27975.155189000001,6472.7388160999999,742.46966563000001,3053.2304963000001]
[2513,"2012-01-19","KW60MN24 ",6352377.8563726274,2214999.5750539997,1532893.3565662745,88849.556821457023,593256.6616662679,"Winter",273609.76766999997,61826.476615,93025.500518000001,1785.5885175999999,57318.659389,31579.961706999999,7016.7757052999996,742.46966563000001,3053.2304963000001]
[2517,"2011-11-06","KW60MN07 ",6286049.6008064561,2214302.9502869449,1606869.9283795205,99953.112775000001,507479.90913242445,"Winter",241548.42399000001,54308.317459999998,93649.018127000003,1797.5566971000001,56908.26326,28208.448555999999,6393.4085677000003,4955.8928413000003,0]
[2520,"2011-11-13","KW60MN21 ",6705167.7421603082,2213299.7871877383,1582909.7776648339,104594.03821999999,525795.97130290431,"Winter",270675.11790000001,52622.881765999999,93335.606492999999,1791.5408818999999,54081.089925,28515.037677,6364.3377400999998,4955.8928413000003,3053.2304963000001]
[2523,"2012-02-11","KW60MN08 ",6511884.5560768005,2212219.5766542321,1601118.0230909497,94385.321060764298,516716.23250251811,"Winter",201982.30420000001,54194.186312999998,78404.011259999999,1504.9346842,54537.085623999999,27998.862718,6351.4850878999996,747.06969021999998,0]
[2527,"2012-03-22","KW60MN23 ",6161971.815503398,2209927.2112847581,1637927.8781589014,90541.117253395394,481458.21587246121,"Winter",201818.75760000001,56702.809177000003,80590.139192999995,1546.8965645999999,56725.864979999998,32359.693426999998,6235.8975639999999,1354.3257784,3053.2304963000001]
[2528,"2011-11-12","KW60MN21 ",6783064.2833777713,2209652.6338345208,1583871.2238603111,102705.42393,523075.9860442098,"Winter",244730.90022000001,64578.607110999998,95017.502926999994,1823.8242336999999,55813.873582,29400.367450000002,6532.1603218999999,4955.8928413000003,3053.2304963000001]
[2532,"2012-03-11","KW60MN10 ",6084292.3723352225,2208700.3670479748,1626547.3634841749,97325.187477531683,484827.81608626834,"Winter",165785.70426999999,47219.323877000003,71435.193543000001,1371.1709223,53169.098527000002,24824.700315999999,5458.6101076000004,1354.3257784,0]
[2535,"2012-03-31","KW60MN13 ",6127230.0037370482,2208317.9259281768,1610910.1915260903,113097.42655399731,484310.30784808926,"Winter",222512.39929,59019.080163999999,78519.715322000004,1507.1555788999999,49749.130783000001,25312.294867000001,5728.7240167,1354.3257784,0]
[2538,"2012-03-30","KW60MN18 ",6368339.8074122202,2205427.094362617,1612209.4397400231,96814.054583413657,496403.60003918019,"Winter",193812.05421999999,54267.192969999996,94051.244047999993,1805.2772680999999,53716.293365999998,29597.745147000001,6150.0868165000002,1354.3257784,1679.7008333000001]
[2542,"2012-02-18","KW60MN07 ",6506220.9733224288,2204505.033245001,1563143.2539094677,82512.631464838429,558849.14787069464,"Winter",228005.1103,57694.537022999997,73386.150103000007,1408.6187792000001,56634.665841000002,29551.929198999998,6346.8668015000003,747.06969021999998,153.35415584]
[2545,"2012-02-16","KW60MN01 ",6285709.5538592031,2203144.1496544033,1588681.1182755616,86132.975735737884,528330.05564310378,"Winter",225894.28769,52819.212083999999,82218.479644999999,1578.1519301000001,54947.481754,30933.047831,6463.1247218999997,747.06969021999998,3053.2304963000001]
[2548,"2012-01-11","KW60MN01 ",6277104.9162188023,2202494.3577773012,1610917.3277705314,82161.51057396672,509415.51943280315,"Winter",229256.07060000001,57598.617369,86787.651805000001,1665.8554231999999,57729.055519000001,33899.773381999999,7127.3708078999998,742.46966563000001,3053.2304963000001]
[2553,"2011-12-10","KW60MN04 ",6297403.8144455394,2199881.0188826993,1550584.1583437473,82405.790420999998,566891.07011795219,"Winter",294738.54441999999,58452.184344000001,90971.124620999995,1746.1555665000001,57911.453798000002,29930.813383000001,6630.6273412999999,816.33821894000005,3053.2304963000001]
[2556,"2011-11-09","KW60MN06 ",6788463.4289534986,2199353.9098254782,1588972.0183438528,111739.285752,498642.60572962527,"Winter",208600.07504,53952.72896,107398.45062,2061.4717381,57227.460249999996,37786.726468000001,8776.8102072000001,4955.8928413000003,2696.1580168999999]
[2557,"2011-12-11","KW60MN24 ",6252950.821674075,2199305.9670268614,1540701.8022994464,83981.852923999992,574622.31180341507,"Winter",305228.47250999999,58160.244485000003,82033.811446000007,1574.6072954000001,58093.852078000004,26916.132872999999,6801.9237958000003,816.33821894000005,3053.2304963000001]
[2560,"2012-01-25","KW60MN06 ",6765364.5038903141,2198558.5028649233,1548150.3919628598,82605.662743739449,567802.44815832411,"Winter",225755.23439999999,54537.772001999998,92826.871222999995,1781.7759051,54765.083473999999,34506.605127000003,8669.9530742999996,742.46966563000001,3053.2304963000001]
[2563,"2011-12-11","KW60MN06 ",6349604.8141034571,2197515.2850171463,1528812.5294102244,87660.315850999992,581042.43975592195,"Winter",259047.65544999999,60293.126338000002,81665.369097000003,1567.535187,56817.064120000003,25632.420133,7072.784283,816.33821894000005,3053.2304963000001]
[2567,"2012-02-10","KW60MN23 ",6360557.6831454039,2196109.6038378766,1583817.4780470538,85388.183931307038,526903.94185951608,"Winter",209287.27598999999,62543.481485999997,89607.042774000001,1719.9725427999999,55585.875732,31962.363715,6377.5188172999997,747.06969021999998,3053.2304963000001]
[2570,"2011-11-17","KW60MN23 ",6375286.4726318177,2194958.8215334876,1587665.0441043349,90857.166190999997,516436.61123815266,"Winter",233754.93212000001,58583.389369999997,100592.68869,1930.8377691000001,56269.869280999999,36184.930501000003,6130.3287432999996,4955.8928413000003,3053.2304963000001]
[2575,"2012-03-03","KW60MN07 ",6410236.7179882433,2193742.5755200339,1578605.588170253,100925.36506092513,514211.6222888559,"Winter",209591.77301999999,54303.447243000002,73042.873965999999,1402.0297264999999,55038.680892999997,25030.804217000001,6105.3192311000003,1354.3257784,0]
[2578,"2012-03-28","KW60MN16 ",6546620.9280292084,2193319.6564882034,1640827.4344151462,101545.99508802987,450946.22698502732,"Winter",139460.81761,72521.336383000002,102574.94521999999,1968.8864166999999,38577.236151999998,33141.706338999997,7409.5569316000001,1354.3257784,0]
[2581,"2012-02-29","KW60MN02 ",6210346.8633400826,2192380.8883455084,1588236.4592279969,82409.234370121019,521735.19474739034,"Winter",214425.18914,54181.024998000001,80263.313156999997,1540.6232652000001,56680.265411,31790.950046999998,6312.6207154000003,747.06969021999998,3053.2304963000001]
[2582,"2011-11-12","KW60MN16 ",6771140.6084488649,2192363.7931368547,1576905.1607475551,94088.87702,521369.75536929956,"Winter",225494.22331,66961.811042999994,96905.125467999998,1860.0564185999999,49885.929492000003,30919.361046999999,6163.0562797000002,4955.8928413000003,1425.2649578999999]
[2585,"2012-03-02","KW60MN05 ",6381544.3838929152,2191635.362332854,1598929.5181309315,97576.420496162929,495129.42370575963,"Winter",215022.35519,55557.909715000002,77526.429447999995,1488.0898405999999,54582.685193999998,30374.152624999999,6760.3710652999998,1354.3257784,3053.2304963000001]
[2588,"2011-11-25","KW60MN12 ",6450626.5053320406,2189312.1753455987,1610365.3775533177,93821.980150000003,485124.81764228095,"Winter",178439.00270000001,59777.188636999999,86261.578242000003,1655.7576446,48061.946695999999,22570.958310999999,5544.5850676999999,4955.8928413000003,0]
[2591,"2012-01-14","KW60MN02 ",6257158.1641503004,2187523.6283642766,1574218.0309967038,87994.561734415212,525311.03563315759,"Winter",287278.73804999999,61669.880903999998,80031.595916999999,1536.1755424,54993.081323999999,30545.374854999998,7021.0215495000002,742.46966563000001,3053.2304963000001]
[2596,"2012-01-22","KW60MN24 ",6244101.6236618934,2184639.9971892429,1598626.3705068459,89162.057580911802,496851.56910148519,"Winter",227171.60664000001,55122.953228999999,66587.312974,1278.1177290000001,56680.265411,27165.187615999999,6164.9455786999997,742.46966563000001,3053.2304963000001]
[2600,"2012-03-11","KW60MN14 ",6103689.4829986282,2183995.9937447347,1616724.9709483017,101692.07411076069,465578.9486856726,"Winter",183326.75769999999,45835.930005000002,72408.045138999994,1389.8444325999999,52758.702397000001,25578.270123999999,5553.5643177000002,1354.3257784,0]
[2603,"2011-11-27","KW60MN15 ",6406958.8602686338,2183721.6784248347,1608662.0323121846,97470.122130000003,477589.52398265008,"Winter",215202.9019,41647.090340000002,85530.789401999995,1641.7304353,53807.492506000002,23971.033089,5528.5768134999998,4955.8928413000003,0]
[2606,"2012-03-26","KW60MN16 ",6612666.9725847244,2183091.1400406584,1614038.3337475439,104256.89104605741,464795.91524705692,"Winter",127127.10858,60724.761564,104341.98811000001,2002.8041218999999,55950.672292000003,35143.051027000001,6739.2535766999999,1354.3257784,0]
[2607,"2012-01-02","KW60MN23 ",6348843.4885986904,2182965.1147938911,1551888.9797937323,85165.827556929362,545910.30744322937,"Winter",257217.49368000001,49899.337885000001,74831.338426999995,1436.3586104000001,56953.862829999998,24790.006193000001,6047.5652527000002,742.46966563000001,3053.2304963000001]
[2610,"2011-11-25","KW60MN13 ",6435158.7658305801,2182648.08742696,1604452.6389114279,93436.198944999996,484759.24957053212,"Winter",179270.19587,62531.613645999998,87481.393901000003,1679.1715345,48563.541964999997,23377.620986999998,5640.4720774999996,4955.8928413000003,0]
[2616,"2011-12-02","KW60MN24 ",6297452.1519591743,2181349.6113948943,1571214.6776813106,86056.044063000008,524078.88965058397,"Winter",256876.69652999999,58805.709710000003,91122.735992999995,1749.0656882000001,58276.250357999998,31483.992176,6124.9858868000001,816.33821894000005,3053.2304963000001]
[2618,"2012-02-07","KW60MN05 ",6547120.1988837216,2180565.9672105666,1539605.2819299533,77014.18044768722,563946.50483292609,"Winter",223407.55484999999,52687.942786,82841.667583999995,1590.1137816999999,54901.882184000002,29919.789780999999,7488.7382034000002,747.06969021999998,3053.2304963000001]
[2621,"2012-01-05","KW60MN24 ",6233681.6530324388,2179481.8800517451,1603991.7576115236,87909.427055941705,487580.69538427959,"Winter",262026.43768999999,50246.334814000002,88222.915456999996,1693.4047541,31326.904535000001,32935.569328999998,6540.7332703000002,742.46966563000001,3053.2304963000001]
[2625,"2011-11-26","KW60MN22 ",6751023.4721027836,2177660.600398452,1563304.5340122553,100169.6934,514186.37298619683,"Winter",244152.80100000001,62737.086668000004,84006.546801999997,1612.4731879000001,55813.873582,27012.380972999999,6158.9323258000004,4955.8928413000003,3053.2304963000001]
[2628,"2012-03-20","KW60MN23 ",6221908.7259256793,2176387.7804751517,1603483.0466777512,87708.238167086747,485196.49563031376,"Winter",203210.37156999999,56747.799633000002,80171.236615999995,1538.8558915999999,52029.109278999997,32529.491439000001,6310.5164157999998,1354.3257784,3053.2304963000001]
[2631,"2012-03-04","KW60MN12 ",6290878.2249740809,2175196.4300407064,1601479.1310086469,92425.769289177246,481291.5297428823,"Winter",205505.36561000001,54843.369678000003,78540.923997999998,1507.5626712000001,55038.680892999997,24447.968929999999,5628.5928554000002,1354.3257784,0]
[2632,"2012-02-16","KW60MN02 ",6217066.2407823959,2174868.0859803087,1567221.1154238121,85916.108622975109,521730.86193352129,"Winter",238481.09067000001,50762.140757000001,81988.774875000003,1573.7428358,54765.083473999999,31106.823937000001,6410.8337976000003,747.06969021999998,3053.2304963000001]
[2637,"2012-02-05","KW60MN16 ",6490287.0890657185,2173882.6740031471,1535340.9380116793,83413.561658910112,555128.17433255771,"Winter",240132.84664,42292.738740000001,73549.866955000005,1411.7612609,56725.864979999998,25177.810285,5894.0326118000003,747.06969021999998,0]
[2640,"2012-03-25","KW60MN09 ",5996478.2840875192,2173634.0372749763,1569457.9327373859,106399.26283727387,497776.84170031641,"Winter",207544.36168,47774.176716000002,69994.672850000003,1343.5206845,55722.674442000003,24874.120728000002,5417.5483241000002,1354.3257784,0]
[2643,"2012-03-26","KW60MN17 ",6575412.6485948041,2173219.1618371583,1604809.8858191841,105810.25457752237,462599.02144045156,"Winter",142723.94899,51387.392413000001,97984.867526999995,1880.7816499999999,56087.471001999998,34341.724634999999,6410.5730881999998,1354.3257784,0]
[2646,"2012-02-05","KW60MN17 ",6553351.8341053855,2171740.3362755189,1537229.966419471,81782.162339221279,552728.20751682646,"Winter",202107.50515000001,42321.404088000003,75641.697004999995,1451.9131299999999,56406.667991000002,25163.918331000001,6064.3691803000002,747.06969021999998,2595.6699819999999]
[2650,"2011-11-20","KW60MN01 ",6163087.6089554653,2169341.950020575,1539314.5837997454,84828.682235,545198.68398582935,"Winter",252452.33238000001,57767.929312,88215.282170999999,1693.2582361,56680.265411,27671.033323,6183.0259679999999,4955.8928413000003,3053.2304963000001]
[2653,"2011-12-06","KW60MN02 ",6471697.5003913827,2168956.9134688424,1583345.7097280279,79024.08329699999,506587.12044381426,"Winter",263391.42804000003,54757.963329999999,93916.500291000004,1802.6909138000001,58504.248206999997,31023.386321999998,7043.6321944000001,816.33821894000005,3053.2304963000001]
[2656,"2012-02-04","KW60MN17 ",6671346.2427181564,2168130.639319649,1547329.659099885,90448.72394884919,530352.25627091504,"Winter",201441.74512000001,62286.369060999998,78407.734777999998,1505.0061556000001,57501.057669000002,26500.084064999999,6743.6856426000004,747.06969021999998,2646.5571568999999]
[2658,"2012-03-10","KW60MN10 ",6357343.1052999012,2167427.6298997551,1587851.4992971793,92299.143378857829,487276.98722371802,"Winter",203403.25502000001,49410.394458000002,74321.895130000004,1426.5800432000001,52257.107128000003,26810.075712000002,5572.5588841999997,1354.3257784,0]
[2661,"2012-03-08","KW60MN18 ",6661582.7049870035,2167149.7040289179,1591119.5078733922,92687.691792907091,483342.50436261855,"Winter",162711.48186999999,67094.857462999993,110934.63671999999,2129.3474632000002,53761.892935999997,33635.428816,7119.6477043000004,1354.3257784,3019.0088713999999]
[2665,"2011-11-05","KW60MN23 ",6362920.7351526292,2166392.8436798947,1577044.4934124749,97207.808443000002,492140.54182441963,"Winter",200051.33939000001,57925.394303000001,87181.240042000005,1673.4101972000001,54901.882184000002,27177.308506000001,5883.1352826000002,4955.8928413000003,3053.2304963000001]
[2668,"2012-01-23","KW60MN05 ",6355702.2679036148,2165625.5081330137,1518758.2381936661,87814.269805609452,559053.00013373839,"Winter",241572.8749,54593.410735999998,76782.000799000001,1473.8008205000001,57364.258958999999,29552.566510000001,7334.7467810999997,742.46966563000001,3053.2304963000001]
[2671,"2011-12-25","KW60MN07 ",6313756.5098691639,2164818.2962264637,1521753.0976426667,92319.828760000004,550745.36982379726,"Winter",269000.57498999999,53965.499822999998,69560.392317999998,1335.1848376,56224.269711000001,16962.173519,6915.8911949000003,816.33821894000005,2136.8372881]
[2675,"2012-03-28","KW60MN17 ",6468280.7246198859,2164288.2643840974,1613033.7215973611,102286.19178302358,448968.3510037128,"Winter",140442.87088,63698.351154999997,96189.461158000006,1846.3195189,39489.227551000004,31930.474258999999,7006.7976326999997,1354.3257784,0]
[2679,"2011-11-30","KW60MN24 ",6239471.1705246633,2163052.7289082641,1585673.3229090914,88935.416725000003,488443.98927417275,"Winter",220247.65359,57603.339761000003,99683.662693999999,1913.3893665000001,56725.864979999998,34328.791065999998,6746.0777389000004,4955.8928413000003,3053.2304963000001]
[2680,"2012-03-10","KW60MN20 ",6487315.6267635217,2162958.9602355803,1588211.1003961423,91335.043696802182,483412.81614263594,"Winter",187366.36181999999,62208.535571,80485.353866999998,1544.8852508,55129.880033000001,26388.733434000002,6163.4016356000002,1354.3257784,3053.2304963000001]
[2683,"2011-11-19","KW60MN02 ",6162008.1105308663,2160490.8238612069,1566424.833023645,84346.937783999994,509719.05305356166,"Winter",227599.84203,53560.833162000003,93559.732933000007,1795.8429023000001,56133.070571999997,34427.291383000003,5823.4293678000004,4955.8928413000003,3053.2304963000001]
[2686,"2012-01-06","KW60MN24 ",6222331.6061035506,2159704.5879151067,1558174.1694967626,89558.361004983934,511972.05741336022,"Winter",241495.42052000001,58234.740646999999,82162.015421999997,1577.0681211000001,57181.860679999998,29854.162498000002,6497.6247463,742.46966563000001,3053.2304963000001]
[2690,"2011-11-13","KW60MN11 ",6462546.0297254771,2158027.9344657757,1545412.887660627,101306.547252,511308.49955314846,"Winter",218569.37998,47562.875823000002,91483.894591999997,1755.9979879,55905.072721999997,28236.395315000002,5584.6463358999999,4955.8928413000003,0]
[2693,"2012-02-19","KW60MN06 ",6325968.4593950147,2157549.8645529719,1536080.0873173033,94163.967248061264,527305.8099876073,"Winter",201649.12742,58492.993902000002,65042.074130000001,1248.4574668,51846.710999000003,25873.288334000001,6213.4206611,747.06969021999998,2957.1809536999999]
[2696,"2012-01-18","KW60MN04 ",6357987.8241978344,2156737.5154836224,1582239.6453763591,91345.323028713043,483152.54707855056,"Winter",218299.10574,51619.218593999998,89914.734037999995,1725.8785577000001,50433.124331999999,33256.917846999997,7195.3246305000002,742.46966563000001,3053.2304963000001]
[2700,"2012-02-05","KW60MN05 ",6258950.1208829656,2155573.005720295,1476675.9405167971,79333.77895297404,599563.28625052364,"Winter",222982.74281,54134.659119000004,68215.911674000003,1309.3780515000001,56315.468850999998,24923.330488,6362.5280081999999,747.06969021999998,3053.2304963000001]
[2704,"2012-01-29","KW60MN23 ",6350706.0137365591,2153844.4094929141,1590310.250139164,88506.290826429176,475027.86852732091,"Winter",234127.89593999999,53760.553831999998,67989.206663000004,1305.0265363999999,54765.083473999999,26842.738215000001,5811.8091623999999,742.46966563000001,3053.2304963000001]
[2705,"2012-03-07","KW60MN04 ",6005555.7240292886,2153074.3783698911,1561794.4399403597,87956.620492531671,503323.31793699961,"Winter",238416.76792000001,51508.665795000001,82002.328907000003,1574.0030002000001,54491.486054000001,30575.173588000001,6563.1255278999997,1354.3257784,3053.2304963000001]
[2708,"2012-03-09","KW60MN14 ",6462706.6331981607,2150894.674024119,1591713.6205692489,87503.002829046658,471678.05062582321,"Winter",125531.71582,67864.258541999996,118805.73305,2280.4301141000001,55494.676592999997,38205.415708,8525.1525161000009,1354.3257784,0]
[2711,"2012-03-12","KW60MN06 ",6270578.5342207365,2150431.5881987624,1548777.208532009,86046.203269630307,515608.17639712297,"Winter",256193.79861,57117.330353999998,93531.468210000006,1795.3003719000001,56543.466700999998,34077.685642999997,7953.6953959000002,1354.3257784,1017.3194389]
[2715,"2012-03-18","KW60MN23 ",6128132.2680720221,2150116.0733432863,1589731.3716648307,93022.579539037513,467362.12213941803,"Winter",194962.28567000001,50896.634905999999,66845.895875999995,1283.0811279,56634.665841000002,26604.885458000001,5542.5772649,1354.3257784,3053.2304963000001]
[2718,"2012-01-05","KW60MN06 ",6689390.0041484889,2148149.5870378725,1547073.3678194748,89268.881881211142,511807.33733718639,"Winter",184595.89455999999,52577.291971999999,89708.261897000004,1721.9154048,55722.674442000003,34374.334236000002,8106.4340572000001,742.46966563000001,3053.2304963000001]
[2721,"2011-12-21","KW60MN05 ",6427429.4084969517,2147980.7851807713,1549209.2269992165,85861.722747999986,512909.83543355489,"Winter",245767.80111999999,52804.405402999997,93538.956353999994,1795.4441039000001,45462.771209999999,33923.218198000002,6661.0186476999997,816.33821894000005,3053.2304963000001]
[2726,"2012-02-18","KW60MN24 ",6215838.0261349129,2146820.7505803858,1548079.8683817654,90308.708410620457,508432.17378799984,"Winter",234366.36386000001,60978.477208999997,64892.448933,1245.5854690000001,50068.327771999997,25761.592291000001,5751.6850956999997,747.06969021999998,3053.2304963000001]
[2729,"2012-02-15","KW60MN03 ",6156489.7603253033,2145626.1955689662,1506905.12488019,82536.389882010728,556184.68080676557,"Winter",216588.26272,54300.042430000001,86178.257427999997,1654.1583337,56589.066271000003,32380.537919999999,6469.3258892000003,747.06969021999998,3053.2304963000001]
[2730,"2012-02-24","KW60MN23 ",6204454.176189471,2145458.6178056635,1574127.016472073,84518.743313470623,486812.8580201196,"Winter",191373.76746,58901.457435999997,75920.480739999999,1457.2642760000001,55950.672292000003,30402.622971000001,6044.1269310999996,747.06969021999998,3053.2304963000001]
[2733,"2012-03-06","KW60MN05 ",5978072.0422569625,2144887.271421486,1550513.0914360364,80592.394533388142,513781.78545206174,"Winter",231509.88917000001,52113.625147999999,80055.403487000003,1536.6325194999999,56361.068421000004,32840.810744000002,6939.6276319999997,1354.3257784,3053.2304963000001]
[2736,"2012-01-20","KW60MN01 ",6181548.1542718001,2144158.9221929833,1476015.4941177159,82070.025043615882,586073.40303165186,"Winter",272852.27698000002,59077.053581,92993.850904000006,1784.9810155,56862.663690000001,30869.163833999999,7130.8853099999997,742.46966563000001,3053.2304963000001]
[2740,"2012-03-18","KW60MN15 ",6330182.5455210023,2143398.3734532613,1600053.3015378052,94036.840027863334,449308.23188759282,"Winter",196226.51538,40832.023948000002,73351.442397999999,1407.9525782000001,55905.072721999997,24650.750047000001,5674.4591468999997,1354.3257784,0]
[2742,"2011-11-13","KW60MN09 ",6450108.1297428282,2141998.2221738775,1514195.5820346773,103773.022558,524029.61758120044,"Winter",227985.35456000001,44679.914686999997,90735.684896999999,1741.6363919999999,55722.674442000003,27874.632107000001,5629.4206934000003,4955.8928413000003,0]
[2748,"2011-12-27","KW60MN06 ",6641891.6981260451,2139889.9250296447,1526196.8493284604,83411.973119999995,530281.10258118447,"Winter",229792.09348000001,56837.727522000001,88562.921990000003,1699.9310481,57911.453798000002,27850.872287999999,6716.7021848000004,816.33821894000005,3053.2304963000001]
[2751,"2011-11-27","KW60MN08 ",6377558.7174317483,2136112.1532210484,1513946.2061697505,98029.145569,524136.80148229789,"Winter",246280.72971000001,50681.191678000003,81876.277721000006,1571.5834964999999,55768.274012000002,24889.653233000001,5920.0070882,4955.8928413000003,0]
[2754,"2012-02-16","KW60MN24 ",6296816.9953639871,2130974.187698314,1543504.4105516977,80470.762742723513,506999.01440389262,"Winter",217755.43069000001,61633.830693999997,83307.759177999993,1599.0602296,43365.190993999997,33179.926590000003,6400.3309196,747.06969021999998,3053.2304963000001]
[2755,"2011-12-16","KW60MN24 ",6389316.6518398188,2130951.7791769174,1524200.5067291383,84122.360877999992,522628.91156977921,"Winter",272805.16632000002,63727.701000000001,89218.185897999996,1712.5085853999999,55312.278313000003,29906.788744000001,6243.6663764000004,816.33821894000005,3053.2304963000001]
[2758,"2012-02-27","KW60MN04 ",6117292.354803618,2129955.6245620525,1512719.741010763,85815.50865927292,531420.37489201652,"Winter",219277.02557,51589.627727999999,77881.744235000006,1494.9099705000001,56771.464549999997,29302.799906,6036.2311502000002,747.06969021999998,3053.2304963000001]
[2763,"2012-01-21","KW60MN01 ",6112268.1986728879,2128945.7274779356,1498767.3419169718,81725.645159960375,548452.74040100363,"Winter",270627.04277,62089.444226,82965.727199000001,1592.495058,56361.068421000004,27166.628625000001,6703.3348859999996,742.46966563000001,3053.2304963000001]
[2766,"2011-12-25","KW60MN15 ",6215570.3977806251,2128278.3514761142,1529147.1329069317,91401.095079999999,507730.12348918268,"Winter",262855.74430999998,40066.725036000003,62091.883965000001,1191.8297072,56315.468850999998,16441.888148999999,5885.3496234000004,816.33821894000005,0]
[2769,"2012-03-08","KW60MN16 ",6425876.8150592288,2127832.3332049819,1584153.5140062831,82378.461258731448,461300.35793996713,"Winter",116179.48106999999,82170.007356999995,119090.33693999999,2285.8929757999999,53260.297666999999,36230.164338000002,8074.9254233000001,1354.3257784,0]
[2773,"2012-03-31","KW60MN20 ",6220714.1986837611,2126529.043614768,1550179.976869412,108702.06169207257,467647.00505328324,"Winter",195287.43932,60921.946701000001,81292.448927000005,1560.3771285,49840.329922999998,25697.359962999999,6119.9562206000001,1354.3257784,3053.2304963000001]
[2776,"2012-03-15","KW60MN23 ",6071939.7904382292,2126187.1949262456,1564914.2130029604,85665.270742192777,475607.71118109237,"Winter",161303.66268000001,58705.432410000001,79369.462096999996,1523.4661397,55859.473151999999,33516.267460000003,6123.3454468,1354.3257784,3053.2304963000001]
[2779,"2012-01-27","KW60MN02 ",6112648.1106509417,2125296.1477224249,1543108.9343712924,80685.070294957768,501502.14305617474,"Winter",242043.07003999999,58497.509015000003,85715.385603999996,1645.273688,56634.665841000002,32419.759873999999,6161.7764324999998,742.46966563000001,3053.2304963000001]
[2780,"2011-12-04","KW60MN24 ",6340700.4906649478,2124871.6316904179,1547189.6056755625,78890.16471099999,498791.86130385526,"Winter",267088.30606999999,53682.693027000001,81638.866060999993,1567.0264714,57592.256808999999,27445.531943999998,6536.1420701999996,816.33821894000005,3053.2304963000001]
[2784,"2012-01-20","KW60MN02 ",6119581.5229915734,2123165.3440059833,1460496.5891375998,80588.842413197301,582079.91245518613,"Winter",282061.16602,57192.432281000001,92222.572094999996,1770.1766170000001,54217.888635000003,30184.307977,6967.5117227000001,742.46966563000001,3053.2304963000001]
[2788,"2011-12-30","KW60MN24 ",6066786.7721380312,2121605.5279071722,1521272.6313756576,86358.958885,513973.93764651427,"Winter",236989.98788,60721.144653000003,79799.630648999999,1531.7230588,56999.462399999997,26398.433105,5766.2628322,816.33821894000005,3053.2304963000001]
[2791,"2012-02-04","KW60MN05 ",6273407.0750903152,2120645.824416168,1477853.6024724939,82900.805796420565,559891.41614725371,"Winter",240156.84181000001,55145.318306000001,68535.874687999996,1315.5196178000001,57455.458099000003,27733.925164,6249.5848251999996,747.06969021999998,3053.2304963000001]
[2794,"2012-03-24","KW60MN08 ",6048604.2223424641,2120188.7703193217,1510812.0785873011,91638.171189622837,517738.52054239751,"Winter",212059.15286,45631.689401000003,77952.631966000001,1496.2706330999999,56680.265411,28715.719925000001,5640.8462134000001,1354.3257784,0]
[2798,"2012-03-03","KW60MN13 ",6470115.769188405,2119285.1064456324,1538156.4592101059,91731.531141020911,489397.11609450559,"Winter",207231.06783000001,58999.319712999997,89294.833614999996,1713.9798086999999,54673.884334000002,25027.226024,5707.7741272000003,1354.3257784,0]
[2801,"2012-03-17","KW60MN14 ",6218177.3190691825,2118543.429910324,1554999.3175433751,92702.032178767651,470842.08018818113,"Winter",170249.52690999999,56329.388387999999,76822.548181000006,1474.5791118,55859.473151999999,26495.903103000001,5471.0496861000001,1354.3257784,0]
[2804,"2012-02-19","KW60MN16 ",6461512.384883306,2117266.0956935878,1547365.6442645071,84796.463578004783,485103.98785107565,"Winter",167014.77851,48694.030701000003,70778.390025000001,1358.5638326999999,47788.349276000001,25714.594638999999,5901.6863047999996,747.06969021999998,0]
[2805,"2011-11-30","KW60MN05 ",6214868.6939792093,2116828.8482473297,1527517.6168610458,86602.888579999999,502708.34280628397,"Winter",238393.26027999999,51932.117577999998,96850.804388999997,1859.0137465,56953.862829999998,33856.478953999998,7272.0342387999999,4955.8928413000003,3053.2304963000001]
[2809,"2012-03-21","KW60MN06 ",6318861.2915784121,2116339.9668854,1527450.6964036738,83095.449107030014,505793.82137469598,"Winter",250674.2732,57342.912503,94165.43204,1807.4690625000001,51527.514009999999,36010.109135999999,8656.1032923000002,1354.3257784,153.35415584]
[2813,"2011-12-20","KW60MN01 ",6275802.6386471707,2114966.6474403916,1508470.5542702638,82604.035422000001,523892.05774812773,"Winter",261554.50438,53218.939435,90983.936522000004,1746.401486,54354.687344999998,33672.590171000003,6659.3324989000002,816.33821894000005,3053.2304963000001]
[2816,"2012-03-24","KW60MN21 ",6299718.4568043556,2113794.4279715344,1558341.2440112084,96376.963063672301,459076.22089665371,"Winter",176218.09270000001,61378.940476000003,71189.382924999998,1366.4526825,56224.269711000001,26993.680049999999,5779.6555256000001,1354.3257784,3053.2304963000001]
[2819,"2012-02-06","KW60MN04 ",6289965.8638235973,2112797.397625919,1472963.5882279137,78379.246028765076,561454.56336924026,"Winter",243012.23545000001,50933.943243000002,74399.038442999998,1428.0607792999999,55859.473151999999,27330.384816999998,6272.4527939,747.06969021999998,3053.2304963000001]
[2823,"2011-11-26","KW60MN15 ",6397927.3026121315,2111030.6740506524,1540237.7525512201,95142.682281000001,475650.23921843199,"Winter",210044.24734999999,52576.178458000002,83077.642521000002,1594.6432293,55312.278313000003,28695.784886000001,5552.4673055000003,4955.8928413000003,0]
[2826,"2012-03-04","KW60MN22 ",6236098.3847473664,2108002.1481204689,1545433.1848920081,91236.520460665706,471332.44276779535,"Winter",167415.03365999999,51545.749178999999,71954.118048000004,1381.1314775999999,53853.092076000001,27236.435244,5763.1935683000002,1354.3257784,3053.2304963000001]
[2830,"2012-03-04","KW60MN07 ",6054378.8918579686,2106891.5376248346,1507724.5427196617,90538.918809859228,508628.07609531359,"Winter",224044.34898000001,54747.935278999998,74133.879474000001,1422.9711554,55175.479603,23963.234992000002,6015.9330356999999,1354.3257784,0]
[2831,"2012-01-25","KW60MN24 ",6257856.00058599,2106459.1166024134,1502863.8220286446,81558.423458701916,522036.87111506681,"Winter",237604.07986,62915.737343000001,86881.840486999994,1667.6633385,57683.455949000003,33256.811274,6466.4614683,742.46966563000001,3053.2304963000001]
[2834,"2012-02-04","KW60MN16 ",6455737.2155027511,2105491.5241746893,1499483.7114682351,84356.639433280478,521651.17327317374,"Winter",196878.45486999999,62978.556875000002,76983.298918999993,1477.6646599999999,57501.057669000002,26285.442128999999,6591.9525758999998,747.06969021999998,0]
[2838,"2011-12-03","KW60MN24 ",6211805.5148523599,2103627.3188216896,1521546.7411563583,82552.317320999995,499528.26034433139,"Winter",261823.47498999999,61738.402975999998,77539.013070000001,1488.3313783000001,56908.26326,26648.081345999999,6071.3135390999996,816.33821894000005,3053.2304963000001]
[2841,"2011-11-21","KW60MN24 ",6236731.992136688,2102343.5875403178,1493194.5961789549,85766.980920000002,523382.0104413628,"Winter",226562.52778,51289.649039000004,91414.238159,1754.6609596000001,56908.26326,35125.434286000003,5694.0225348000004,4955.8928413000003,3053.2304963000001]
[2844,"2012-02-03","KW60MN02 ",6185004.1088129841,2101939.4264878565,1488862.9252777309,77392.996944452447,535683.50426567311,"Winter",241023.21165000001,54300.792806999998,87760.657042000006,1684.5318824999999,57637.856378999997,32161.088900999999,6003.0092813000001,747.06969021999998,3053.2304963000001]
[2848,"2012-03-07","KW60MN02 ",5883969.7873822441,2100032.5855289232,1523621.4018700153,86023.487680627077,490387.69597828109,"Winter",226416.18267000001,51993.566508000004,82833.083755,1589.9490184000001,54035.490355000002,30918.787113999999,6408.0404790000002,1354.3257784,3053.2304963000001]
[2851,"2012-03-11","KW60MN15 ",6013466.3564347411,2097332.9334376045,1549665.1710209616,93240.276381381831,454427.48603526124,"Winter",171630.05476999999,41731.333362999998,73399.204748999997,1408.8693581,53077.899386999998,25463.007077999999,5488.3868839999996,1354.3257784,0]
[2853,"2012-03-04","KW60MN13 ",6156274.7528921561,2097134.4871688774,1538800.8065088354,90255.753472285985,468077.92718775582,"Winter",173526.69080000001,49417.522232000003,80447.215914,1544.1532076000001,54673.884334000002,26059.743552,5627.3637952999998,1354.3257784,0]
[2856,"2012-03-09","KW60MN15 ",6335397.439329966,2096173.8013970559,1550645.8336833667,81401.583695175825,464126.38401851332,"Winter",123844.14727,70408.035019999996,119620.52938000001,2296.0698146,55631.475301999999,37530.791388999998,8277.2920455999993,1354.3257784,0]
[2859,"2011-11-24","KW60MN22 ",6139230.8413872244,2095644.3035742841,1511702.1810054216,91764.63380299999,492177.48876586242,"Winter",219189.73572,51167.397113999999,73976.182807999998,1419.9442289000001,54993.081323999999,18016.57703,5817.4364290000003,4955.8928413000003,3053.2304963000001]
[2863,"2012-02-05","KW60MN04 ",6171256.2529372107,2094162.8571886071,1437598.1839234626,75612.645310627297,580952.02795451705,"Winter",213393.61932,54041.784355000003,68025.796967999995,1305.7288732,56269.869280999999,24768.595912000001,6228.5976917999997,747.06969021999998,3053.2304963000001]
[2866,"2011-12-08","KW60MN04 ",6212398.0420168713,2093867.1780167012,1467751.32045078,83113.785558999996,543002.07200692128,"Winter",283053.12897000002,56591.080198000003,104947.92962,2014.4349348999999,57501.057669000002,31454.384448000001,7570.8888565999996,816.33821894000005,3053.2304963000001]
[2868,"2012-03-23","KW60MN17 ",6243498.62155437,2093385.8138601827,1538559.1776182519,89659.898387383728,465166.73785454704,"Winter",157268.89152,56626.391279000003,91625.068356000003,1758.7077637,56908.26326,33972.502347000001,6018.9684411999997,1354.3257784,0]
[2874,"2011-12-04","KW60MN06 ",6259978.5441159606,2090170.5930439907,1478484.7697859027,90859.173169000002,520826.65008908795,"Winter",264945.29558999999,56040.048334999999,82590.094912999994,1585.2849415000001,56999.462399999997,25867.055085,6496.6699386,816.33821894000005,3053.2304963000001]
[2877,"2012-03-02","KW60MN04 ",6119955.0985708861,2088805.3203116551,1506669.9157047146,91100.094012075657,491035.31059486495,"Winter",196675.37559000001,52579.584878000001,79884.776649000007,1533.3574033,54765.083473999999,29664.408992000001,6340.1069705,1354.3257784,3053.2304963000001]
[2878,"2012-02-11","KW60MN17 ",6557317.6535785366,2088214.1744528674,1513688.2237310072,83835.693657907235,490690.25706395309,"Winter",179586.95546,61636.772748000003,80716.373988000007,1549.3195926999999,54856.282614000003,26818.456126000001,6277.5366338000003,747.06969021999998,2137.6854072000001]
[2881,"2011-12-24","KW60MN05 ",6205070.1666058954,2087491.1020459367,1485702.4037659161,90011.879400000005,511776.81888002064,"Winter",271372.93861000001,51820.012607999997,76182.468743000005,1462.2930343999999,51983.509708999998,21873.675949,6674.1421669000001,816.33821894000005,3053.2304963000001]
[2884,"2012-02-05","KW60MN01 ",6153420.8067803485,2086024.2358014192,1456607.4528735187,77232.131537215202,552184.65139068512,"Winter",237669.31408000001,61372.021587000003,65345.550987000002,1254.2825878000001,56589.066271000003,24786.206651,6158.7088603000002,747.06969021999998,3053.2304963000001]
[2888,"2012-01-06","KW60MN04 ",6114622.8245444885,2085565.295049147,1526140.8824292428,85205.200326401682,474219.21229350241,"Winter",205629.16755000001,49844.838373999999,89859.189929,1724.81241,36388.456795999999,31460.444018999999,6831.8681711999998,742.46966563000001,3053.2304963000001]
[2893,"2012-03-25","KW60MN22 ",5958396.2935828269,2082747.4316009581,1537804.3818341626,104951.58874728388,439991.46101951168,"Winter",164397.72560999999,48961.402556000001,63852.792534,1225.6296663999999,55494.676592999997,27382.201233,5307.2867269999997,1354.3257784,3053.2304963000001]
[2895,"2012-03-11","KW60MN17 ",5971774.3746373001,2081475.5375757175,1543356.2573333967,89521.515578253631,448597.76466406719,"Winter",203505.55246000001,41276.415575999999,70566.673702,1354.5000198,55357.877883000001,25355.674917,5538.4617748000001,1354.3257784,71.849863939000002]
[2899,"2012-02-23","KW60MN05 ",6255743.0935865352,2079434.4138623413,1483269.3681336935,79861.892315036021,516303.15341361187,"Winter",199119.25839,51413.183191999997,80676.160868999999,1548.5477175000001,57318.659389,31535.748284000001,6871.5823908000002,747.06969021999998,3053.2304963000001]
[2902,"2012-03-10","KW60MN21 ",6330868.0782308681,2078523.4919143803,1523346.8393127273,90401.543224140682,464775.10937751218,"Winter",185914.10279999999,60522.569631999999,75413.178979999997,1447.5268148,54856.282614000003,26210.566685000002,6001.0539582000001,1354.3257784,3053.2304963000001]
[2903,"2012-02-12","KW60MN24 ",6087389.0576210096,2078447.7742436591,1513668.5259274791,80888.224098982406,483891.02421719744,"Winter",215289.92679999999,50321.465663000003,71751.568075999996,1377.2436092,56041.871432,28089.558591000001,5902.4870553999999,747.06969021999998,3053.2304963000001]
[2906,"2011-12-12","KW60MN02 ",6029977.309133972,2077920.0261325019,1429626.9728016732,78618.584499999997,569674.46883082879,"Winter",296233.21892000001,55713.700418,83349.311990999995,1599.8578198,58093.852078000004,27440.857093999999,6820.7558425999996,816.33821894000005,3053.2304963000001]
[2909,"2012-03-23","KW60MN18 ",6184687.4400878679,2076183.9098251925,1532578.6127926693,90803.840801102662,452801.45623142063,"Winter",161336.76203000001,52292.476673999998,90149.223677999995,1730.3794957,56634.665841000002,33262.868174000003,5901.1462623999996,1354.3257784,2137.6854072000001]
[2914,"2011-11-13","KW60MN16 ",6466422.0209933147,2075218.2503178052,1496463.7427231788,94005.975703000004,484748.53189162636,"Winter",212297.35581000001,46515.856312999997,89980.729649000001,1727.1453179,55357.877883000001,28567.458725,5688.2530625999998,4955.8928413000003,1476.1521327999999]
[2917,"2012-02-19","KW60MN05 ",6164285.5637229979,2074350.1945458236,1480478.0275881689,88142.200939921444,505729.96601773321,"Winter",199611.33958,55319.932695000003,65141.057785999998,1250.3574199,47286.754007000003,25858.548907,5966.3609411999996,747.06969021999998,3053.2304963000001]
[2921,"2012-03-11","KW60MN16 ",6007896.2566175126,2073517.7894131425,1532822.3380317714,89054.05993070094,451641.39145066997,"Winter",168123.46354999999,41328.218872999998,71519.87874,1372.7964219,53260.297666999999,25581.219759,5539.8025676999996,1354.3257784,0]
[2924,"2012-01-23","KW60MN01 ",6054698.7938527307,2072980.9649984429,1492504.9315774576,85401.871098553194,495074.16232243209,"Winter",215670.88193999999,53383.054980000001,71226.890129000007,1367.1726188,57181.860679999998,28243.687474999999,6246.5104819999997,742.46966563000001,3053.2304963000001]
[2927,"2012-02-06","KW60MN03 ",6161346.5469900202,2071559.7569052042,1444104.6939908166,75989.594240495018,551465.46867389267,"Winter",224681.09010999999,49853.367278999998,76157.764597999994,1461.8188479,55266.678742999997,27297.187653000001,6237.4432010999999,747.06969021999998,3053.2304963000001]
[2928,"2011-12-17","KW60MN06 ",6408809.5414408157,2071402.3409936256,1464292.129812907,81954.050480000005,525156.16070071864,"Winter",262750.58526000002,55523.107989999997,81361.600003,1561.7044566,50205.126482,27691.399662,6516.9646687000004,816.33821894000005,3053.2304963000001]
[2931,"2011-12-08","KW60MN02 ",6104149.1051224424,2070554.4755405262,1467556.1988388635,78602.232801999984,524396.04389966268,"Winter",290405.40218999999,57619.830370000003,104116.41278,1998.4742905000001,57409.858528999997,31856.172322999999,7336.1891492000004,816.33821894000005,3053.2304963000001]
[2935,"2011-11-25","KW60MN07 ",6116990.0825154698,2069605.4990052294,1487328.0634236329,86721.482424999995,495555.95315659646,"Winter",236286.00938999999,55532.726306999997,86384.267043999993,1658.1126087,52348.306268,21451.270333,6329.2130280000001,4955.8928413000003,762.88356425999996]
[2939,"2011-11-26","KW60MN07 ",6290641.9637083225,2068505.4250661926,1483137.4935889547,97602.51935100001,487765.41212623799,"Winter",224111.38496,52405.475025,80347.883870000005,1542.2465674,55449.077022999998,26158.104262000001,6274.8296544000004,4955.8928413000003,864.65791420000005]
[2942,"2012-02-24","KW60MN01 ",6153873.7401712239,2067977.8891476868,1483075.3119351321,79497.07568774723,505405.50152480742,"Winter",194693.96157000001,56842.723069,84006.348150000005,1612.4693748,57045.061970000002,31884.581935999999,6488.2832117999997,747.06969021999998,3053.2304963000001]
[2946,"2011-11-29","KW60MN04 ",6124549.0790850595,2067284.5827392391,1486454.099698591,75553.683103000003,505276.79993764806,"Winter",215831.7683,51714.349307999997,95526.931641999996,1833.6025208999999,56589.066271000003,32840.521119999998,6759.0590524999998,4955.8928413000003,3053.2304963000001]
[2949,"2012-03-05","KW60MN24 ",5824238.6824314166,2066863.9229335294,1497079.9692594083,80195.526304328261,489588.42736979271,"Winter",216343.76420999999,52740.163851999998,81477.656585999997,1563.9321179000001,54400.286914999997,33543.399451999998,6214.5193660000004,1354.3257784,3053.2304963000001]
[2952,"2011-11-29","KW60MN02 ",6041902.7381976536,2065232.8646028817,1505032.2304706851,74651.183743999994,485549.45038819656,"Winter",210024.96854,50482.402952999997,95706.703817000001,1837.0531784,56543.466700999998,32961.722465999999,6647.6716642000001,4955.8928413000003,3053.2304963000001]
[2956,"2011-11-28","KW60MN06 ",6605885.2387702726,2064556.6511012327,1468377.7373047785,83887.520425999988,512291.3933704542,"Winter",244983.95178,54399.435988999998,96784.667654000004,1857.7442775,57501.057669000002,30444.342099000001,8406.1825370000006,4955.8928413000003,3053.2304963000001]
[2957,"2011-12-03","KW60MN01 ",6100572.6206148714,2064300.5506798413,1483734.0433397896,79741.613825000008,500824.89351505152,"Winter",251321.50692000001,58878.546046000003,92095.299486999997,1767.7336685,58321.849928000003,31479.272111999999,6155.9663297999996,816.33821894000005,3053.2304963000001]
[2961,"2012-01-06","KW60MN02 ",6031494.0338082695,2062086.0389449541,1510436.771651234,83171.534336408979,468477.73295731103,"Winter",221193.27956,48632.247556000002,87366.868889999998,1676.9732712,31646.101524000002,32450.456395000001,6639.7081664999996,742.46966563000001,3053.2304963000001]
[2964,"2011-12-16","KW60MN01 ",6192772.5975836003,2060183.0798589694,1451221.212206515,82215.723118999987,526746.14453345456,"Winter",262060.92545000001,59562.044274,91306.222385000001,1752.5876386,57865.854227999997,33246.364277000001,6462.2562533999999,816.33821894000005,3053.2304963000001]
[2967,"2011-12-08","KW60MN03 ",6120267.5955134658,2059479.0875663655,1453336.0494374859,79132.432642999993,527010.6054858797,"Winter",278660.81491000002,57554.571712999998,104031.59736,1996.8462915,57409.858528999997,31666.713864000001,7366.7226601000002,816.33821894000005,3053.2304963000001]
[2971,"2012-01-29","KW60MN04 ",6075431.7383097056,2058050.7147656325,1480500.3080922486,83821.346561129641,493729.06011225411,"Winter",214314.41284,56233.547467999997,69640.795131000006,1336.7281385000001,54491.486054000001,25270.915779999999,5911.9826458999996,742.46966563000001,3053.2304963000001]
[2974,"2012-02-11","KW60MN15 ",6339877.3974982072,2057480.3860136336,1482559.0180211877,81092.763128643768,493828.60486380209,"Winter",191122.89921999999,53562.954140000002,82954.494523999994,1592.2794511,54810.683043999998,27577.772931,6405.3030268000002,747.06969021999998,0]
[2977,"2012-02-06","KW60MN02 ",6133343.4157407042,2056260.3752996814,1430825.7316854384,75470.625635206059,549964.0179790369,"Winter",214561.02046,49033.637948000003,76252.240923000005,1463.6322843999999,55677.074871999997,26383.246707999999,6262.2851142,747.06969021999998,3053.2304963000001]
[2979,"2012-03-28","KW60MN23 ",5915068.2039515972,2055850.1097675702,1523176.0019297868,86692.801804487724,445981.30603329564,"Winter",143370.30303000001,56604.800681000001,81423.951327999996,1562.9012662,40173.221100000002,32151.61289,5995.8770081000002,1354.3257784,3053.2304963000001]
[2982,"2012-03-27","KW60MN23 ",5911444.0655491613,2053893.11130877,1521091.0755551124,95545.815498462878,437256.2202551947,"Winter",166019.24385,57457.196297000002,81004.555450999993,1554.8511245,40583.617229000003,33580.047831000003,5928.3904306000004,1354.3257784,3053.2304963000001]
[2986,"2012-03-25","KW60MN14 ",5917022.4015309056,2051921.0953276725,1520455.4384536459,106892.0509352308,424573.6059387959,"Winter",160825.26425000001,41413.577016000003,75177.315310999998,1442.9995028999999,54765.083473999999,26556.626316999998,5259.6513341,1354.3257784,0]
[2989,"2012-02-11","KW60MN07 ",6257808.3546280395,2051344.1893262917,1468825.6777690379,80545.991000225404,501972.52055702847,"Winter",188538.47932000001,56751.363519999999,72345.589435999995,1388.6456195000001,54947.481754,28331.463874000001,6519.2331819999999,747.06969021999998,661.10921441000005]
[2992,"2012-03-17","KW60MN07 ",5923885.6479568789,2050119.3377280484,1489985.3262933695,94685.972552729887,465448.03888194897,"Winter",187031.47867000001,47501.203547999998,77934.338879999996,1495.9195044000001,55768.274012000002,28146.365013999999,5643.0808682999996,1354.3257784,0]
[2996,"2012-01-06","KW60MN03 ",6033300.4492059257,2049597.8155189231,1501585.2760810792,84004.144113000119,464008.39532484382,"Winter",204984.91203000001,49616.389690000004,88096.007425999996,1690.9688034999999,31691.701094,31908.362837000001,6731.1868111000003,742.46966563000001,3053.2304963000001]
[2998,"2012-03-17","KW60MN15 ",6140243.3553896211,2049072.8380503186,1504280.1820927111,86788.479433498956,458004.17652410845,"Winter",146647.36093,56560.575062000004,76357.680880999993,1465.6561637,55494.676592999997,26057.102353999999,5540.9571401000003,1354.3257784,0]
[3003,"2011-12-19","KW60MN05 ",6331298.0926395198,2047500.0257901708,1418888.6954064933,88345.620980000007,540265.70940367738,"Winter",272694.87755999999,53721.280377000003,85300.940982999993,1637.3185837000001,55768.274012000002,29596.868745,7041.8038399999996,816.33821894000005,3053.2304963000001]
[3004,"2012-03-17","KW60MN19 ",6292400.0650350386,2045721.1172337183,1511916.0910520768,90857.61174350392,442947.41443813767,"Winter",187472.94107999999,58824.737459999997,84600.856608999995,1623.8807349000001,56133.070571999997,25929.968270000001,6043.3448018999998,1354.3257784,3053.2304963000001]
[3007,"2012-01-21","KW60MN05 ",6002508.041866242,2044208.0553623098,1442217.3185221353,76653.763231814621,525336.97360836004,"Winter",245701.95217999999,54659.161074000003,81169.168189000004,1558.0108024000001,56862.663690000001,25158.564908,6754.2240715999997,742.46966563000001,3053.2304963000001]
[3011,"2012-02-04","KW60MN02 ",6084900.1111998912,2041483.2611027374,1426657.4317794351,78073.641014232504,536752.18830906984,"Winter",236154.77785000001,60703.538923,72755.334963999994,1396.5105265,57911.453798000002,29989.202341,6063.1959864999999,747.06969021999998,3053.2304963000001]
[3014,"2012-02-24","KW60MN03 ",6091319.9367612749,2040346.0053151336,1459454.4912898219,78628.08085873317,502263.43316657847,"Winter",175293.66386999999,52152.366751000001,84508.542948999995,1622.1088098,57273.059820000002,31901.836558999999,6476.7374941999997,747.06969021999998,3053.2304963000001]
[3017,"2011-11-03","KW60MN24 ",5958778.2431729622,2039623.8817284578,1496971.4445522628,84188.521347999995,458463.91582819488,"Winter",192145.46023999999,55743.435896000003,102090.68593000001,1959.5912469,55996.271862000001,37729.722486999999,6082.6290190999998,4955.8928413000003,3053.2304963000001]
[3019,"2012-03-25","KW60MN19 ",6034500.6604247829,2039460.3337137697,1520863.5457215903,96439.559615681792,422157.22837649746,"Winter",182691.35199,54126.041838999998,79450.984135000006,1525.0309236999999,55266.678742999997,26509.233144000002,5711.4985515999997,1354.3257784,3053.2304963000001]
[3025,"2011-11-13","KW60MN15 ",6335538.5849516261,2038152.5897130964,1469422.3760256572,91857.879583000002,476872.33410443924,"Winter",193346.04551,49256.024168000004,90173.545102999997,1730.8463360000001,55038.680892999997,28556.133551999999,5681.1224811000002,4955.8928413000003,0]
[3026,"2012-03-14","KW60MN01 ",5775646.6935952799,2038011.1273275027,1487734.6284363982,75060.75609712211,475215.74279398244,"Winter",197690.95215,50378.028308000001,78977.706279999999,1515.9465382999999,55129.880033000001,32873.156048999997,6384.8000682000002,1354.3257784,3053.2304963000001]
[3029,"2012-03-17","KW60MN23 ",5904653.7468844457,2035946.8715684749,1482044.4225973648,87660.878237122743,466241.57073398761,"Winter",195355.48217,55721.60267,70235.967982999995,1348.1522513,55996.271862000001,24469.956209,5424.3453989999998,1354.3257784,3053.2304963000001]
[3032,"2012-03-23","KW60MN23 ",5849467.8595839404,2034540.0542496683,1485430.6704657446,86945.2512624144,462164.13252150925,"Winter",198327.43891999999,60335.202056000002,71077.455891000005,1364.3042863999999,56908.26326,30921.433664,5667.2710073999997,1354.3257784,3053.2304963000001]
[3036,"2011-12-24","KW60MN04 ",6104137.7027185215,2032565.2049750611,1445657.6843538252,83873.20485699999,503034.31576423603,"Winter",271755.18679000001,51874.989339,76851.684791000007,1475.1383777000001,51664.312719000001,23892.049004,6599.2609130999999,816.33821894000005,3053.2304963000001]
[3039,"2012-02-23","KW60MN01 ",5981640.6407845411,2031698.7758741046,1454008.409701172,75065.883556084023,502624.48261684855,"Winter",188905.18999000001,52693.508748,81982.102123000004,1573.6147549,56315.468850999998,31790.445548,6406.5693308,747.06969021999998,3053.2304963000001]
[3044,"2011-11-16","KW60MN01 ",6045943.4132253779,2030066.4993579481,1437867.8658619621,73822.44372000001,518376.18977598596,"Winter",224151.15080999999,54964.545044999999,97252.895501999999,1866.73173,57090.661540000001,37021.876616000001,6877.5363919000001,4955.8928413000003,3053.2304963000001]
[3047,"2012-01-10","KW60MN01 ",6127163.8926660307,2028645.8069983548,1479301.4342403598,82236.701431596361,467107.67132639862,"Winter",208171.44751,49651.241225999998,84312.671816000002,1618.3491392000001,55403.477453,31782.035500000002,6772.3654066999998,742.46966563000001,3053.2304963000001]
[3050,"2011-11-01","KW60MN05 ",5867246.6902268017,2027775.9397398825,1495235.166530502,81705.370874,450835.40233538044,"Winter",195225.22568999999,46958.424220000001,106322.59961,2040.8211939,43729.987552999999,40210.295781000001,7950.2723113000002,4955.8928413000003,3053.2304963000001]
[3051,"2011-12-05","KW60MN02 ",6164232.1332636951,2027384.7387595843,1473259.6870867319,76333.105272999994,477791.94639985252,"Winter",256399.84549000001,51511.320231999998,87438.752290999997,1678.3530453000001,57729.055519000001,27901.401336999999,6446.6136692,816.33821894000005,3053.2304963000001]
[3054,"2011-11-13","KW60MN08 ",6281973.9999634884,2026434.630601278,1424504.285067606,94874.852863000007,507055.49267067213,"Winter",228971.49888,45049.267053000003,89973.337501000002,1727.0034284999999,56133.070571999997,28196.794962,5869.2194777000004,4955.8928413000003,0]
[3057,"2011-12-03","KW60MN02 ",5978459.0732359532,2025704.7883189432,1456374.2822696979,79321.407836999992,490009.0982122455,"Winter",248042.92282000001,56844.194900000002,90503.214731999993,1737.1742171000001,58185.051218000001,30972.754926000001,6288.9486095000002,816.33821894000005,3053.2304963000001]
[3061,"2011-12-21","KW60MN04 ",6106258.8949665697,2023117.9699541302,1452187.1757953393,82469.691215999992,488461.10294279101,"Winter",224887.09460000001,52516.214214,94540.597320999994,1814.6702150000001,44413.981101999998,33529.786825000003,6216.8708318999998,816.33821894000005,3053.2304963000001]
[3065,"2012-02-14","KW60MN04 ",6089819.6738925148,2021704.9603678421,1423515.9124606517,76940.380565852203,521248.66734133818,"Winter",197692.89168999999,52168.640442000004,86909.944910000006,1668.2027920999999,56406.667991000002,32297.344821999999,6561.2260712999996,747.06969021999998,3053.2304963000001]
[3069,"2011-12-05","KW60MN03 ",6191064.6229403149,2019965.4414464254,1467322.8644405103,75438.759097000002,477203.81790891511,"Winter",264713.55776,51942.987593999998,90061.433080999996,1728.6943891000001,57774.655089,28060.213159999999,6329.1723975000004,816.33821894000005,3053.2304963000001]
[3072,"2011-11-15","KW60MN05 ",6128339.4818777172,2018812.771063216,1400719.3965076734,82915.255238999991,535178.1193165424,"Winter",251330.85487000001,50109.512409000003,99704.559154000002,1913.7904659000001,54765.083473999999,34934.488258999998,7469.8215111999998,4955.8928413000003,3053.2304963000001]
[3075,"2012-03-08","KW60MN23 ",5962012.0069980752,2018166.5362963467,1458047.3406282123,85288.794735482021,474830.40093265235,"Winter",230912.11898999999,56458.107690999997,81083.839267999996,1556.3729467000001,56178.670141000002,32254.353482999999,6531.0023639999999,1354.3257784,3053.2304963000001]
[3076,"2012-03-03","KW60MN14 ",6335434.0118272435,2017599.284887153,1457151.9119671232,83565.01372611009,476882.35919391969,"Winter",187303.63946000001,61303.039968999998,87159.706059999997,1672.9968607999999,54673.884334000002,25433.267939000001,5667.1965185999998,1354.3257784,0]
[3079,"2012-03-02","KW60MN24 ",6062354.1788746426,2016278.4013390164,1446146.6048362181,89086.706712626852,481045.08979017159,"Winter",213458.52499000001,59537.574286000003,74927.482969000004,1438.2040677,56406.667991000002,29837.807087000001,6051.0543613,1354.3257784,3053.2304963000001]
[3082,"2012-02-13","KW60MN01 ",5977830.7755036009,2015586.1324972899,1460544.1969490547,77760.921936844345,477281.01361139101,"Winter",207749.92102000001,49485.289106999997,74700.433244999993,1433.8459359999999,56269.869280999999,28040.798846000002,5851.6486567000002,747.06969021999998,3053.2304963000001]
[3087,"2012-03-10","KW60MN08 ",6077560.4097275026,2014268.5716956463,1463665.2129208809,85144.775627843774,465458.58314692153,"Winter",182435.22685000001,42549.631032999998,69606.521244999996,1336.0702644999999,52530.704548000002,26389.136740000002,5693.6771789000004,1354.3257784,0]
[3090,"2011-11-02","KW60MN01 ",5916794.4083476067,2012777.5375628336,1481670.5691212323,78720.303688,452386.66475360136,"Winter",172351.22414999999,46193.065856000001,104060.39167,1997.3989871000001,53442.695946,39293.614835,6501.2408235000003,4955.8928413000003,3053.2304963000001]
[3094,"2012-03-31","KW60MN17 ",5857087.7990827579,2011238.5804362132,1428653.7741442558,104781.26212841428,477803.54416354303,"Winter",180224.47029,52803.557011999997,72904.956141999995,1399.3824471999999,52120.308419000001,24479.961037000001,5675.7999399,1354.3257784,0]
[3097,"2011-11-22","KW60MN05 ",6267005.1757331295,2010960.7609490699,1413942.7121070542,78433.654727999994,518584.39411401562,"Winter",205524.73980000001,52092.598536999998,96342.997730999996,1849.2665939999999,56725.864979999998,35062.572948000001,6172.0761591,4955.8928413000003,3053.2304963000001]
[3100,"2012-03-16","KW60MN06 ",6106516.9040937657,2009916.7470861606,1443907.6990275427,80681.237978788762,485327.81007982907,"Winter",225149.56828000001,55912.060126999997,94093.223331999994,1806.0830441999999,56041.871432,35410.863303999999,8222.3381568000004,1354.3257784,610.22203944]
[3101,"2012-03-23","KW60MN05 ",5767338.7653043987,2009840.3223671413,1462328.3929083359,78691.163789265207,468820.76566954033,"Winter",194126.88485999999,50866.275989000002,83720.288012999998,1606.9785611,57273.059820000002,33340.254918999999,7128.0090387,1354.3257784,2899.5653634999999]
[3107,"2011-11-25","KW60MN24 ",6020788.4780060984,2008693.9371234579,1448004.451857209,87430.017978999997,473259.46728724882,"Winter",234911.87247,56299.566142000003,73603.621933999995,1412.7930669,55905.072721999997,19539.646777000002,5741.6003686000004,4955.8928413000003,3053.2304963000001]
[3108,"2012-02-11","KW60MN24 ",6014452.0828708019,2008644.7217072072,1436459.8247425344,79961.059089047296,492223.83787562547,"Winter",212569.06086,58558.686394999997,69743.803383000006,1338.7053421000001,55449.077022999998,26211.550868999999,5882.0585856999996,747.06969021999998,3053.2304963000001]
[3112,"2011-11-08","KW60MN03 ",5917823.515568573,2008199.0051148154,1441621.9437000859,90467.50080200001,476109.56061272958,"Winter",228723.21669,51235.898298,100918.16769,1937.0852124999999,56817.064120000003,35115.319931999999,6275.2359549000003,4955.8928413000003,3053.2304963000001]
[3115,"2012-02-21","KW60MN01 ",6138265.401579964,2007689.3420782904,1429191.0041926196,72323.956053093745,506174.38183257706,"Winter",212977.28614000001,49952.543919999996,78686.667444000006,1510.3601603,58139.451648000002,29975.701045999998,6537.8366839,747.06969021999998,3053.2304963000001]
[3119,"2011-11-05","KW60MN01 ",5879056.0906187557,2005835.0009864355,1457574.2139931542,86619.926652999988,461640.86034028122,"Winter",181812.17908,55732.914556000003,95030.482361000002,1824.0733689000001,55950.672292000003,31422.887699999999,5748.0199230999997,4955.8928413000003,3053.2304963000001]
[3122,"2012-01-01","KW60MN02 ",5932438.0024742251,2004782.8029906806,1452412.569510896,86886.000421772667,465484.23305801192,"Winter",222386.37164,55898.108265000003,63613.046655999999,1221.0278370000001,55996.271862000001,16854.101906,5808.7009607999998,742.46966563000001,3053.2304963000001]
[3125,"2011-11-18","KW60MN04 ",5931483.4220470553,2003613.1156302744,1440485.2258558546,78307.703219999996,484820.18655441975,"Winter",215733.41352999999,49677.382288000001,98872.773612000005,1897.824664,56817.064120000003,35403.701028000003,6018.8804092,4955.8928413000003,3053.2304963000001]
[3128,"2012-01-31","KW60MN02 ",6011522.1405900912,2002451.5763626657,1430334.2142854512,82258.796880948459,489858.56519626605,"Winter",206593.80736999999,53518.849031999998,80047.373242000001,1536.4783821000001,56087.471001999998,31630.343924000001,6709.6731796000004,742.46966563000001,3053.2304963000001]
[3130,"2012-03-15","KW60MN06 ",6190182.4079319909,2001785.6012167335,1427988.5430486475,78075.617923080848,495721.44024500507,"Winter",237153.65106,54406.131533,95467.272223000007,1832.4573815000001,53077.899386999998,35450.550835000002,8110.2329705000002,1354.3257784,711.99638938999999]
[3134,"2012-01-07","KW60MN02 ",5839925.314959472,1999311.5722648366,1432601.9525711716,84110.054238879151,482599.56545478594,"Winter",220927.28714999999,54858.481651000002,77590.665783999997,1489.3228322,56817.064120000003,28376.846579000001,6461.2405011000001,742.46966563000001,3053.2304963000001]
[3137,"2012-03-14","KW60MN02 ",5697252.0812617624,1997107.7862901588,1439635.6600689106,75209.672113333494,482262.45410791459,"Winter",195654.60571999999,48149.562623999998,78597.298425999994,1508.6447565999999,54719.483904000001,32572.570838,6462.4915693000003,1354.3257784,3053.2304963000001]
[3140,"2012-02-20","KW60MN04 ",6157217.2320346916,1996337.0981002715,1433995.7979284143,70951.135699535429,491390.16447232163,"Winter",212472.65622999999,53567.178422999998,68059.785277000003,1306.3812656,55722.674442000003,25735.089829,6136.4368003,747.06969021999998,3053.2304963000001]
[3144,"2011-12-31","KW60MN06 ",5914631.1006008955,1994738.8265320861,1427543.0160565688,80379.312980000002,486816.49749551743,"Winter",205687.56568999999,51342.021143999998,73066.624007999999,1402.4855994,56725.864979999998,21440.350581999999,6218.8820212999999,816.33821894000005,3053.2304963000001]
[3145,"2011-12-04","KW60MN05 ",6024358.9470085567,1994566.3505843356,1410935.4873052423,86815.970654000004,496814.89262509329,"Winter",255484.11809,54445.491755000003,78897.593867000003,1514.4088115,57090.661540000001,26031.762021999999,6187.6577987000001,816.33821894000005,3053.2304963000001]
[3149,"2011-12-21","KW60MN02 ",6065257.1714086793,1993750.8749216278,1428612.7432739553,80102.279963000008,485035.85168467258,"Winter",228058.82386999999,54090.067149000002,90463.706770000004,1736.4158769999999,44140.383683,33527.772102000003,6076.9611219999997,816.33821894000005,3053.2304963000001]
[3150,"2011-12-17","KW60MN01 ",6146523.4886311311,1993530.4478274812,1417169.4423113691,78792.690631000005,497568.31488511205,"Winter",245539.75159999999,59889.356272999998,81841.536945999993,1570.9166607,54035.490355000002,29644.387383000001,6207.4852813999996,816.33821894000005,3053.2304963000001]
[3151,"2012-02-25","KW60MN05 ",6003351.8090035897,1993110.0707230517,1431243.6335964478,78390.840439293417,483475.59668731049,"Winter",188414.61379,50817.655766999997,63577.079865,1220.3374683,56133.070571999997,28829.370717999998,5903.9395809999996,747.06969021999998,3053.2304963000001]
[3152,"2012-03-03","KW60MN18 ",6597643.6999971159,1992630.801841618,1440421.7593238715,88462.452348548759,463746.590169198,"Winter",173191.17173999999,56689.842283999998,78448.825524999993,1505.7948766,54856.282614000003,24597.574358999998,5781.9646694000003,1354.3257784,3053.2304963000001]
[3153,"2012-01-19","KW60MN03 ",6025373.2819051221,1992349.6766212471,1377930.0945216308,84682.530165874326,529737.05193374201,"Winter",253871.03631,55472.074351000003,93966.863947999998,1803.6576247,49566.732502999999,32859.567827999999,7643.1900997000002,742.46966563000001,3053.2304963000001]
[3154,"2011-11-16","KW60MN02 ",5985804.2468145173,1989941.4689681476,1395852.8106670179,72160.626598000003,521928.0317031297,"Winter",221305.12630999999,51270.611648999999,97421.196964000002,1869.9622115,57455.458099000003,36791.092242999999,6892.2851141000001,4955.8928413000003,3053.2304963000001]
[3155,"2011-11-16","KW60MN04 ",6051202.0782503495,1989147.7435233991,1380288.5231647531,71961.420474999992,536897.79988364596,"Winter",245132.71335999999,51456.901060999997,98637.541152000005,1893.3094679000001,57774.655089,35604.762403000001,7000.4424104999998,4955.8928413000003,3053.2304963000001]
[3156,"2012-01-07","KW60MN04 ",5867469.3833853882,1988002.8738598861,1411795.6983625572,86109.392643561077,490097.7828537678,"Winter",233747.89467000001,52018.295190999997,81734.835030999995,1568.8685587,56817.064120000003,28146.557564999999,6444.1758640999997,742.46966563000001,3053.2304963000001]
[3157,"2012-01-25","KW60MN01 ",6060792.9184302315,1987843.349773983,1410745.7160968843,76598.275672925476,500499.35800417332,"Winter",208893.04083000001,55855.748142999997,83058.507058999996,1594.2759315000001,56634.665841000002,34497.151986999997,6981.7931987000002,742.46966563000001,3053.2304963000001]
[3158,"2012-02-20","KW60MN03 ",6102523.4418235347,1987611.2553985778,1418728.3147310226,69852.188311371428,499030.75235618366,"Winter",196306.37562999999,53802.570097999997,67256.924029000002,1290.9706544000001,55175.479603,25804.787474000001,6004.9646043000002,747.06969021999998,3053.2304963000001]
[3159,"2012-03-20","KW60MN24 ",5867273.2025783109,1987141.5858735682,1444914.7650036735,82028.609992739861,460198.21087715478,"Winter",196994.21249000001,53528.610353999997,80456.103577999995,1544.3238028000001,51709.912289,31472.567767,6312.3786275000002,1354.3257784,3053.2304963000001]
[3160,"2011-12-04","KW60MN01 ",5999484.7881827485,1987092.230777388,1424918.6088790554,81610.167786999998,480563.45411133266,"Winter",262981.69777000003,60903.463657,78532.577401999995,1507.4024615000001,57136.261109999999,26126.545407000001,6032.3289690000001,816.33821894000005,3053.2304963000001]
[3161,"2012-03-25","KW60MN15 ",5870956.8878671881,1987058.2120622918,1469459.0347306628,102034.79566470045,415564.38166692841,"Winter",137701.11515999999,41703.551756000001,75550.340203999993,1450.1595715000001,54901.882184000002,26524.786002000001,5180.3769521000004,1354.3257784,0]
[3162,"2012-01-02","KW60MN01 ",5868988.8087394144,1986830.5497916681,1427280.1653540758,80506.592795880744,479043.79164171149,"Winter",261344.10149,49184.927999,65260.491566999997,1252.6499051000001,56452.267561000001,16491.483617000002,6171.2432429,742.46966563000001,3053.2304963000001]
[3163,"2012-02-17","KW60MN04 ",6110936.4097996019,1986823.4942669594,1386838.3349781523,75372.480689384101,524612.67859942291,"Winter",211513.04014,55853.087278999999,78046.596848000001,1498.0742527,57911.453798000002,33134.075127999997,6337.1088089000004,747.06969021999998,3053.2304963000001]
[3164,"2012-02-02","KW60MN03 ",5980405.4904475808,1986643.1051229378,1417487.883335996,77543.731685860665,491611.49010108144,"Winter",214949.19323999999,52544.513210999998,85859.298123,1648.0360332,57774.655089,31030.311427000001,6747.5962885999998,747.06969021999998,3053.2304963000001]
[3165,"2012-02-23","KW60MN02 ",5948729.5634381771,1986136.7409408665,1414071.0070995968,73355.583929509012,498710.14991176093,"Winter",184422.19453000001,50689.686841000002,79122.205912999998,1518.7201528999999,56862.663690000001,31711.380866,6390.6846598000002,747.06969021999998,3053.2304963000001]
[3166,"2011-11-14","KW60MN24 ",5995179.2980272779,1985002.4200892569,1398405.803977028,84518.034046999994,502078.58206522884,"Winter",213128.73976,49491.595804999997,93397.920154000007,1792.7369685000001,57729.055519000001,37079.722264999997,6480.6007387,4955.8928413000003,3053.2304963000001]
[3167,"2012-01-31","KW60MN03 ",5997416.6161887804,1984970.3540199355,1420719.4889158669,80514.784280476291,483736.0808235922,"Winter",206041.25070999999,54817.993454000003,79487.226857000001,1525.7265887999999,56133.070571999997,31305.823989,6804.3209715000003,742.46966563000001,3053.2304963000001]
[3168,"2012-02-14","KW60MN03 ",5988603.0624026619,1984216.3825592964,1395961.4631869306,77040.019218998932,511214.90015336691,"Winter",207392.91865000001,51261.809587000003,85199.892265000002,1635.3789927,56133.070571999997,32504.048568999999,6572.4179682000004,747.06969021999998,3053.2304963000001]
[3169,"2012-02-13","KW60MN04 ",5983882.3737486489,1984105.7704038327,1424776.5580843422,77916.109202741281,481413.10311674926,"Winter",192862.86712000001,50488.020333,75866.372092000005,1456.2256814,56634.665841000002,28543.649484000001,5955.0386901000002,747.06969021999998,3053.2304963000001]
[3170,"2011-11-02","KW60MN04 ",5879797.130686475,1984007.7367622058,1446240.4518959348,77797.320275999999,459969.96459027106,"Winter",201115.11827000001,44709.168124000003,102964.86504999999,1976.3707772,53214.698097,38824.198858999996,6893.2196053999996,4955.8928413000003,3053.2304963000001]
[3171,"2012-03-24","KW60MN18 ",5964182.1199211273,1983731.9883345934,1457350.1465309642,90923.537535295662,435458.30426833348,"Winter",167341.69153000001,57090.278235999998,71644.358737999995,1375.1857674,55905.072721999997,27218.452335999998,5253.4874106999996,1354.3257784,2086.7982323000001]
[3172,"2012-02-01","KW60MN01 ",6054705.8153808182,1983608.3976192954,1416262.5358272102,77166.296836927198,490179.56495515798,"Winter",199739.26436999999,59223.786741000004,80193.307188000006,1539.2795277,55449.077022999998,32884.119766999997,6653.0348359,747.06969021999998,3053.2304963000001]
[3173,"2012-02-08","KW60MN01 ",6113806.5498970775,1983467.2399324074,1404535.9402960304,76372.749151350115,502558.55048502679,"Winter",184507.97938,53142.095736000003,83282.047533999998,1598.5667045,51117.117879999998,30782.409081000002,6920.9682636999996,747.06969021999998,3053.2304963000001]
[3174,"2012-01-04","KW60MN01 ",6056565.6818395769,1983271.2941959514,1423999.7897617372,80771.631622845744,478499.87281136832,"Winter",206582.17013000001,47835.158066000004,82060.568136999995,1575.1208796999999,57364.258958999999,31669.973192000001,6556.7008950999998,742.46966563000001,3053.2304963000001]
[3175,"2012-02-17","KW60MN03 ",6055404.9141273974,1983216.8119877628,1398693.0000923255,72699.95446340846,511823.85743202874,"Winter",198104.14816000001,55465.227766999997,78664.662783000007,1509.9377893999999,57729.055519000001,33287.059774000001,6340.4421687000004,747.06969021999998,3053.2304963000001]
[3176,"2011-12-02","KW60MN01 ",5963643.1682437062,1983086.7714103856,1431321.363456415,73973.378459,477792.02949497045,"Winter",237765.34776,57905.150203999998,96126.678654999996,1845.114433,57136.261109999999,32720.654310999998,5696.7447511999999,816.33821894000005,3053.2304963000001]
[3177,"2011-12-16","KW60MN03 ",6070029.6924167117,1982070.4642943211,1385959.577454817,82547.537015999987,513563.34982350428,"Winter",244713.35957999999,55570.568100999997,90414.066642000005,1735.4630540000001,57865.854227999997,32216.337173,6469.2852586999998,816.33821894000005,3053.2304963000001]
[3178,"2012-03-10","KW60MN14 ",6040807.8660664866,1981687.5402218478,1436976.6782105798,85727.208183904164,458983.65382736392,"Winter",164356.80450999999,53725.456456,78442.892032999996,1505.6809856,53761.892935999997,26861.302978,5633.0807876999997,1354.3257784,0]
[3179,"2011-11-02","KW60MN24 ",5964865.1079834197,1981640.3695813078,1429616.906827546,84861.299941999998,467162.16281176184,"Winter",189060.05635,48686.624949999998,103732.31574000001,1991.1016964,55312.278313000003,38986.461294000001,6127.4440071999998,4955.8928413000003,3053.2304963000001]
[3180,"2012-01-08","KW60MN01 ",5981597.4435848752,1980830.5644208128,1448566.6583284677,87705.836028110498,444558.07006423449,"Winter",210416.10892,56407.339174000001,69629.333375000002,1336.5081345999999,54673.884334000002,25105.51872,5802.7892818999999,742.46966563000001,3053.2304963000001]
[3181,"2012-01-29","KW60MN24 ",6059956.7222411623,1980658.7531196335,1449888.8563717792,84805.300388345175,445964.59635950893,"Winter",198322.83914,53158.745417999999,68849.100187000004,1321.5318602,55357.877883000001,27231.101768,5691.2393738000001,742.46966563000001,3053.2304963000001]
[3182,"2012-02-19","KW60MN03 ",5995056.1841724068,1980450.4689513471,1413286.5712015063,81372.093380959122,485791.80436888174,"Winter",205666.24136000001,55823.128455999999,65836.987234,1263.7155166,46009.966049000002,24399.064206999999,5699.6362583,747.06969021999998,3053.2304963000001]
[3183,"2012-01-01","KW60MN05 ",5893732.6161593618,1980222.0867635845,1431271.3907010977,86991.923363681359,461958.77269880532,"Winter",206100.39074999999,52012.178096000003,67466.973282999999,1295.0024685999999,54491.486054000001,16894.455979999999,6036.5951285000001,742.46966563000001,3053.2304963000001]
[3184,"2011-12-26","KW60MN24 ",6159727.6051738523,1980098.8108274126,1418064.0284573098,82645.680420000004,479389.1019501026,"Winter",252666.21161,52151.296621000001,71307.364134999996,1368.7172863000001,57957.053368000001,25822.140931999998,6077.9768744000003,816.33821894000005,3053.2304963000001]
[3185,"2012-03-08","KW60MN01 ",5778577.388300118,1979442.1472358606,1431181.5793309419,80006.392426857085,468254.17547806166,"Winter",184558.34380999999,57687.897717,79252.031140999999,1521.2120978999999,57090.661540000001,32199.131094,6436.0481539000002,1354.3257784,3053.2304963000001]
[3186,"2011-11-16","KW60MN03 ",5973360.4681768408,1979135.9982976613,1380215.644171214,70863.945944999999,528056.4081814473,"Winter",239616.12375999999,51115.704686999998,97868.571068999998,1878.5493844,57409.858528999997,35998.656840000003,6942.5039032000004,4955.8928413000003,3053.2304963000001]
[3187,"2012-01-10","KW60MN04 ",6140605.6991358828,1978954.0295235957,1424923.6167994379,80867.170925927843,473163.24179822998,"Winter",191531.67561999999,49064.588168000002,86631.193211999998,1662.852261,55813.873582,31523.179654,6838.8971764999997,742.46966563000001,3053.2304963000001]
[3188,"2012-01-08","KW60MN05 ",6008117.8475368535,1978250.9833834702,1424047.5905145216,90871.652039719993,463331.7408292286,"Winter",196337.02671000001,50619.943598999998,71673.046256000001,1375.7364132,51801.111428999997,25316.385415000001,6063.6141373999999,742.46966563000001,3053.2304963000001]
[3189,"2012-02-20","KW60MN02 ",6076285.1210974492,1978018.5203601222,1416606.4915743002,73314.295385265403,488097.73340055655,"Winter",206848.36392,52930.049287000002,66595.666115,1278.2780643999999,54765.083473999999,25210.421217999999,6015.6909476999999,747.06969021999998,3053.2304963000001]
[3190,"2011-11-12","KW60MN23 ",6094301.9764406877,1977131.6707111977,1412737.6074128954,83236.923394999991,481157.1399033023,"Winter",225780.35302000001,56796.704258999998,88575.992826000002,1700.1819376999999,55677.074871999997,29179.742144,5964.4360909999996,4955.8928413000003,3053.2304963000001]
[3191,"2011-11-24","KW60MN23 ",5853112.9920860156,1976893.986279255,1429543.4634384266,85424.122366999989,461926.40047382849,"Winter",198435.00385000001,49626.295624999999,69269.180206999998,1329.5951336999999,55266.678742999997,17873.082565000001,5538.9578011000003,4955.8928413000003,3053.2304963000001]
[3192,"2011-11-22","KW60MN24 ",5994516.0755795529,1976055.7765322423,1428259.581585821,83676.784926000008,464119.41002042132,"Winter",162147.56354,56120.780494999999,90715.291842000006,1741.2449552,56361.068421000004,36142.695353000003,5400.4904581999999,4955.8928413000003,3053.2304963000001]
[3193,"2012-01-02","KW60MN04 ",5871747.8771618539,1975902.4187849455,1413037.2593432725,77891.486855282492,484973.67258639046,"Winter",223152.43658000001,49829.658915,69137.856708000007,1327.0744299,56224.269711000001,17930.404533000001,6829.1459560000003,742.46966563000001,3053.2304963000001]
[3194,"2012-01-30","KW60MN05 ",6183327.4797459291,1974643.6775751174,1414142.2369038593,82017.179212465577,478484.26145879237,"Winter",177906.69992000001,51432.631923000001,77420.146653999996,1486.0497834,52713.102828000003,28607.850189000001,6747.3169567000004,742.46966563000001,3053.2304963000001]
[3195,"2012-01-10","KW60MN02 ",6058005.6561227962,1974435.02560356,1426624.6328620811,82881.654516989438,464928.73822448961,"Winter",192912.73340999999,48350.568735000001,84450.728925999996,1620.999092,55905.072721999997,31313.581911000001,6742.2991408999997,742.46966563000001,3053.2304963000001]
[3196,"2012-03-30","KW60MN23 ",5875812.8228081409,1974361.9481537805,1431105.9135954026,88829.101062917442,454426.93349546049,"Winter",170535.59302,56932.927327999998,74061.868268999999,1421.5889282000001,50889.120030999999,28187.985891,5870.6990895999998,1354.3257784,3053.2304963000001]
[3197,"2012-02-09","KW60MN05 ",6229334.0540555203,1973575.1211506806,1374999.3263973466,79483.088951653554,519092.70580168039,"Winter",199075.39089000001,51297.800346000004,84261.201677999998,1617.3611897999999,56680.265411,30654.267459999999,7019.4420552000001,747.06969021999998,3053.2304963000001]
[3198,"2011-12-18","KW60MN06 ",6125983.0488899089,1972821.0995667991,1356400.8102000374,84273.937520000007,532146.35184676189,"Winter",231075.20985000001,56920.052022999997,83600.276419999995,1604.6749850000001,57136.261109999999,25650.756345999998,6948.2733754000001,816.33821894000005,3053.2304963000001]
[3199,"2012-03-24","KW60MN15 ",5922385.7992553758,1972792.1279434252,1441058.1346600961,90843.165597490442,440890.82768583851,"Winter",166355.73798000001,55813.208059999997,73374.431018000003,1408.3938359000001,55540.276163000002,27945.167936000002,5300.2661865999999,1354.3257784,0]
[3200,"2011-11-06","KW60MN24 ",5872220.0321390294,1972667.6971472935,1423142.482990829,84187.088931000006,465338.12522546423,"Winter",225248.72854000001,49011.827216999998,93492.346298999997,1794.5494418999999,56953.862829999998,30431.902988999998,6071.5370045999998,4955.8928413000003,3053.2304963000001]
[3201,"2012-03-04","KW60MN14 ",6040179.5442127688,1972052.4117727871,1447167.1385935971,81998.789958419555,442886.48322077037,"Winter",155775.11788999999,48065.399941000003,77956.417031000004,1496.343286,54081.089925,26030.627624000001,5565.0355465000002,1354.3257784,0]
[3202,"2012-03-18","KW60MN24 ",5830015.6753120106,1970414.2045384515,1441873.8594090873,82437.549047393812,446102.79608197056,"Winter",191630.60271000001,49689.208351000001,68853.394283999995,1321.6142837,57546.657239,26989.792934000001,5528.2754736999996,1354.3257784,3053.2304963000001]
[3203,"2012-03-22","KW60MN05 ",5885038.553566521,1970318.2879657017,1420075.8742485649,79272.684513430271,470969.72920370643,"Winter",217595.37101999999,51990.108670000001,87162.095623999994,1673.0427275,55494.676592999997,33292.585418000002,7934.6449629999997,1354.3257784,2957.1809536999999]
[3204,"2012-03-26","KW60MN06 ",5983120.8946455838,1970104.9590621786,1438695.2605635622,94045.324993288436,437364.37350532803,"Winter",224357.37786000001,56160.698278000003,91145.563968999995,1749.5038623999999,55449.077022999998,33604.651980000002,7501.2336482000001,1354.3257784,0]
[3205,"2011-11-18","KW60MN03 ",5830823.054233727,1970031.2870139461,1421120.7056082408,75898.978279999996,473011.60312570544,"Winter",203822.56641,49023.878233000003,98134.045929,1883.6450718000001,55996.271862000001,35260.294010999998,5956.9601548000001,4955.8928413000003,3053.2304963000001]
[3206,"2012-02-12","KW60MN05 ",5913911.2351962337,1969808.8318087854,1399133.4680173264,78319.022239303071,492356.34155215608,"Winter",194747.79172000001,55394.473847000001,71403.496964999998,1370.5625187000001,55722.674442000003,25239.364925999998,6144.3325801999999,747.06969021999998,3053.2304963000001]
[3207,"2012-03-06","KW60MN01 ",5620964.8773622718,1969744.5895594405,1415650.6096445306,76905.063341158864,477188.91657375114,"Winter",196943.5937,51349.880013000002,79591.766222000006,1527.7331813999999,54400.286914999997,33035.827347999999,6211.5025819000002,1354.3257784,3053.2304963000001]
[3208,"2011-11-05","KW60MN02 ",5801310.1408831738,1969502.1864921006,1427316.1333027685,84701.467822999984,457484.58536633221,"Winter",189615.86676999999,49875.171582000003,92147.143043999997,1768.7287855,55905.072721999997,31177.236112999999,5768.1521312000004,4955.8928413000003,3053.2304963000001]
[3209,"2012-03-22","KW60MN01 ",5727646.6672653109,1968989.5743755128,1439923.2285261247,75714.888739031128,453351.45711035701,"Winter",184684.31846000001,50555.878795999997,82956.479894999997,1592.3175596000001,49019.537664000003,32575.825994999999,6327.9653453000001,1354.3257784,3053.2304963000001]
[3210,"2011-12-31","KW60MN01 ",5785454.7804826759,1968517.6978507675,1399460.440573713,81409.924616999997,487647.33266005467,"Winter",209304.89082,56378.823258999997,76559.639720000006,1469.5326855000001,56589.066271000003,25982.57993,5750.8843440000001,816.33821894000005,3053.2304963000001]
[3211,"2011-11-05","KW60MN04 ",5799330.807764478,1968445.3279894753,1409343.1209436806,85248.850063000005,473853.35698279471,"Winter",210475.74708999999,49749.993670999997,93135.122501000005,1787.6926692,56041.871432,30386.558062,5902.2720546999999,4955.8928413000003,3053.2304963000001]
[3212,"2011-11-04","KW60MN04 ",5800751.250947983,1967968.5356769827,1444300.2303053059,74914.741725,448753.56364667672,"Winter",195804.53315,51074.522351,101379.85724,1945.9471650999999,55996.271862000001,37318.158608999998,6306.0945075,4955.8928413000003,3053.2304963000001]
[3213,"2012-01-07","KW60MN03 ",5812109.6776479855,1966830.87750399,1405724.5994113639,81364.650516619615,479741.62757600629,"Winter",225477.42457,52352.567855000001,78066.805833999999,1498.4621563999999,56680.265411,28472.367791000001,6496.9543499000001,742.46966563000001,3053.2304963000001]
[3214,"2012-01-04","KW60MN04 ",6072009.8958563441,1966714.8865146616,1383234.7174970135,84523.459071782927,498956.70994586527,"Winter",208236.79832,49584.999206,87084.861711000005,1671.5602524000001,56315.468850999998,30671.670891000002,6750.9127197999996,742.46966563000001,3053.2304963000001]
[3215,"2012-02-21","KW60MN02 ",6037157.3453959087,1965104.1790979241,1389919.0509490315,70047.24190567137,505137.88624322129,"Winter",202225.94422,49340.251123000002,79447.691451000006,1524.9677219,57820.254658999998,29312.184937999999,6513.7210324999996,747.06969021999998,3053.2304963000001]
[3216,"2011-11-18","KW60MN02 ",5847578.4224377694,1964589.2079631879,1413978.6381291349,75037.843735999995,475572.72609805322,"Winter",193635.82113,49592.851647000003,96089.399613000001,1844.3988761999999,56406.667991000002,35349.619509999997,5943.9991564000002,4955.8928413000003,3053.2304963000001]
[3217,"2012-03-28","KW60MN06 ",6118477.0888053095,1964213.4150786174,1432987.7416320108,94010.873359069068,437214.80008753756,"Winter",224329.09026999999,56687.364595999999,96840.102562,1858.8083291,40173.221100000002,32835.840679000001,7979.1890841000004,1354.3257784,0]
[3218,"2012-03-25","KW60MN17 ",5881307.2690649461,1964092.704800579,1458350.3816494856,98863.166169220087,406879.15698187338,"Winter",136894.89223,43908.615976000001,78189.478443999993,1500.8168097,55494.676592999997,26593.508705,5213.8409089999996,1354.3257784,0]
[3219,"2012-02-13","KW60MN02 ",5902907.4317736207,1963508.6945987528,1415374.5016860079,75548.878985105359,472585.31392763957,"Winter",182350.19448999999,50424.914791000003,76967.236361999996,1477.3563455000001,56543.466700999998,28201.889029999998,5901.9097702999998,747.06969021999998,3053.2304963000001]
[3220,"2012-01-01","KW60MN03 ",5871333.8434450729,1963494.5519970031,1416243.1596856134,86157.930386501786,461093.46192488808,"Winter",203337.28950000001,53337.637113999997,66363.596468999996,1273.8235772,55585.875732,17012.8387,5937.9046424999997,742.46966563000001,3053.2304963000001]
[3221,"2011-11-22","KW60MN04 ",6021216.7593182577,1963490.7505309463,1387229.6591242133,73698.372262999997,502562.71914373321,"Winter",185330.10018000001,50728.222773000001,92711.309662,1779.5577456000001,56862.663690000001,34496.610265000003,5643.2552384000001,4955.8928413000003,3053.2304963000001]
[3222,"2012-02-13","KW60MN03 ",5909769.9163996438,1963023.7451197463,1408764.2189817154,72524.160635996202,481735.36550203484,"Winter",191635.10709999999,49137.324882000001,76755.819394999999,1473.2982784999999,56406.667991000002,28164.580474999999,5939.1726404000001,747.06969021999998,3053.2304963000001]
[3223,"2012-02-23","KW60MN03 ",5909361.1907513309,1962914.7355960358,1399689.5276734775,73038.604835368154,490186.60308719001,"Winter",185866.17605000001,50461.932294999999,78719.899843000007,1510.9980433999999,56999.462399999997,31284.513920000001,6416.3459458999996,747.06969021999998,3053.2304963000001]
[3224,"2011-12-17","KW60MN05 ",6135709.9487763373,1962096.2033558858,1379455.5009886764,78488.235761999997,504152.46660520928,"Winter",249400.79094000001,53809.527550999999,80101.355924000003,1537.5145588,52074.708849000002,28183.949425999999,6365.2316020999997,816.33821894000005,3053.2304963000001]
[3225,"2011-11-06","KW60MN05 ",5855375.4259060165,1961855.7510767872,1435415.3138850883,80500.140973000001,445940.29621869884,"Winter",178831.73285999999,49828.762320000002,91084.703682000007,1748.3356727,57136.261109999999,27309.762490000001,6054.5942580000001,4955.8928413000003,3053.2304963000001]
[3226,"2012-03-10","KW60MN22 ",6068831.11605372,1961648.4244714789,1422365.3699654795,83446.669334950348,455836.38517104916,"Winter",165731.48196,60055.271435000002,69357.313106000001,1331.2868106999999,55175.479603,26032.615454999999,5788.6127675999996,1354.3257784,3053.2304963000001]
[3227,"2011-11-04","KW60MN01 ",5807681.7529887743,1961640.5000985246,1442427.8995856585,76728.32115199999,442484.27936086612,"Winter",173292.51530999999,51913.724516000002,101885.19086,1955.6468484,56133.070571999997,37824.240058000003,6057.3367883999999,4955.8928413000003,3053.2304963000001]
[3228,"2012-03-06","KW60MN03 ",5620842.5696278773,1960608.3930047252,1408201.6696854064,75045.87713975682,477360.84617956186,"Winter",235858.40992000001,50586.957560000003,80131.477411,1538.0927291,54582.685193999998,32283.28211,6310.1067286999996,1354.3257784,3053.2304963000001]
[3229,"2012-01-25","KW60MN05 ",6218639.3812117632,1960462.6838220397,1367379.1184645945,78579.115983349708,514504.44937409554,"Winter",189601.32553,52072.439597999997,87207.085690000007,1673.9062945000001,54810.683043999998,33398.077640000003,7841.5665087999996,742.46966563000001,3053.2304963000001]
[3230,"2011-11-10","KW60MN04 ",5956741.118920424,1960412.4707422238,1406999.7970692723,87477.398871999991,465935.27480095159,"Winter",206498.12344,48827.342243999999,98319.754467000006,1887.2096753000001,57409.858528999997,35136.951244000003,6739.2925144000001,4955.8928413000003,3053.2304963000001]
[3231,"2011-11-02","KW60MN02 ",5810172.2489431538,1959001.5946249538,1431945.1786017034,75949.707811999993,451106.70821125025,"Winter",188895.61947000001,43998.302843999998,102091.06911,1959.5986018999999,52621.903687999999,38342.246379999997,6466.0551667,4955.8928413000003,3053.2304963000001]
[3232,"2011-12-27","KW60MN24 ",6073788.5472905571,1958616.9048014965,1427077.8251521992,71248.670339999997,460290.40930929728,"Winter",212249.99079000001,57730.228916,84922.968508999998,1630.0635482,57045.061970000002,29550.926608000002,5720.4117777000001,816.33821894000005,3053.2304963000001]
[3233,"2012-01-02","KW60MN02 ",5799678.0652340641,1957979.0948763315,1409494.6325306725,79622.90533403201,468861.55701162713,"Winter",220634.38495000001,49013.104625,67776.488928000006,1300.9435017000001,56406.667991000002,16784.121717000002,6192.5740394000004,742.46966563000001,3053.2304963000001]
[3234,"2012-03-14","KW60MN24 ",5765571.739434924,1957902.8223155704,1405705.0458466166,78118.697292853525,474079.07917610009,"Winter",173753.47909000001,51866.229055000003,78991.542673000004,1516.2121225000001,56361.068421000004,32790.390575999998,6139.5653172000002,1354.3257784,3053.2304963000001]
[3235,"2011-12-04","KW60MN04 ",5927253.5083042495,1957213.4021245285,1383347.4791395357,84231.990980000002,489633.93200499291,"Winter",249519.63274999999,54002.819406000002,78258.477373999995,1502.1412175,57318.659389,26062.462815999999,6174.6764850999998,816.33821894000005,3053.2304963000001]
[3236,"2012-03-14","KW60MN04 ",5701792.7290349128,1956125.4824448742,1395786.4293260388,69835.972778566647,490503.08034026873,"Winter",218338.09789999999,49411.877536,80968.850122999997,1554.1657745,54400.286914999997,33192.266128000003,6889.7575831000004,1354.3257784,3053.2304963000001]
[3237,"2012-03-06","KW60MN02 ",5602161.8614931721,1955981.1376148891,1410902.0336308256,74216.644073766583,470862.45991029672,"Winter",195235.83486,49946.960283,78773.170134,1512.020546,54081.089925,32053.907071000001,6257.6482053,1354.3257784,3053.2304963000001]
[3238,"2012-01-02","KW60MN03 ",5789369.3685999783,1955830.7090990099,1400921.6257958335,78996.766674011451,475912.31662916479,"Winter",221310.82835,49679.726611999999,68991.673471000002,1324.2684992,55996.271862000001,17334.703449000001,6250.2078202000002,742.46966563000001,3053.2304963000001]
[3239,"2012-01-04","KW60MN24 ",5972111.3727968261,1955483.6784248208,1405091.8016776922,85434.811253671141,464957.0654934576,"Winter",178541.54391000001,50151.901452999999,82499.200983000002,1583.5402676000001,56406.667991000002,34328.252977999997,6277.7550209999999,742.46966563000001,3053.2304963000001]
[3240,"2011-11-22","KW60MN02 ",5979357.6098294258,1954590.2672093064,1388411.3483721653,76085.706577999998,490093.21225914091,"Winter",189883.17340999999,49725.525289999998,92478.286257,1775.0849513999999,57045.061970000002,35211.953582000002,5683.9665877999996,4955.8928413000003,3053.2304963000001]
[3241,"2012-03-24","KW60MN07 ",5777748.1024047742,1954559.728184107,1368834.836871708,91680.726916209402,494044.16439618962,"Winter",215976.67199999999,48195.051188999998,73634.295282999999,1413.38183,56589.066271000003,28697.790044000001,5693.4723359999998,1354.3257784,0]
[3242,"2012-01-04","KW60MN02 ",6006165.1174163492,1954058.9173492517,1384393.5680963343,80884.942905934469,488780.40634698281,"Winter",186945.71501000001,48903.509480000001,82546.905920000005,1584.4559455000001,57455.458099000003,31431.947743000001,6568.8492913999999,742.46966563000001,3053.2304963000001]
[3243,"2011-11-23","KW60MN06 ",6285668.9748533182,1953527.6918647285,1390328.9588365855,83482.243857999987,479716.48917014297,"Winter",155460.36144000001,52696.049101999997,98095.408016999994,1882.9034320000001,56452.267561000001,36518.161658999998,6954.0834781000003,4955.8928413000003,3053.2304963000001]
[3244,"2011-11-06","KW60MN01 ",5874543.3995606015,1953485.1227333869,1424513.1528158565,81630.912891,447341.05702653038,"Winter",175604.84860999999,52168.532786000003,85692.437862999999,1644.8332150000001,54993.081323999999,27354.418782000001,5817.2129635000001,4955.8928413000003,3053.2304963000001]
[3245,"2012-03-11","KW60MN24 ",5642073.296159395,1953089.4024978541,1408731.2033014833,79764.042479775962,464594.15671659494,"Winter",168532.11277000001,46707.040044000001,68221.436149000001,1309.4840916000001,56725.864979999998,27426.261892999999,5664.0307579,1354.3257784,3053.2304963000001]
[3246,"2011-11-09","KW60MN05 ",6172108.0742472149,1952728.5552505741,1412823.5718694511,94169.999708999996,445734.98367212317,"Winter",196656.10738,49611.106525000003,101345.75685999999,1945.2926213999999,57546.657239,36082.013195,7097.3858019999998,4955.8928413000003,3053.2304963000001]
[3247,"2011-11-11","KW60MN04 ",5920189.983896709,1952631.1278653515,1370768.2541738492,81283.145458999992,500579.72823250218,"Winter",241861.63305,53120.487461999997,102300.38243,1963.6162902000001,56908.26326,35745.367195999999,6817.0381890999997,4955.8928413000003,3053.2304963000001]
[3248,"2012-03-10","KW60MN17 ",5991807.161095785,1951812.9701480356,1423322.9546411047,83917.431247505141,444572.58425942581,"Winter",164679.58408999999,50493.036768999998,73416.882473000005,1409.2086752,54856.282614000003,26472.276815000001,5502.4279647000003,1354.3257784,95.625482946999995]
[3249,"2012-03-14","KW60MN03 ",5643402.4817753388,1951550.7715023998,1400135.5404370539,71247.094054024623,480168.13701132132,"Winter",204716.07920000001,48890.902511,78650.445277000006,1509.6648898000001,54719.483904000001,32022.190320000002,6520.4063758000002,1354.3257784,3053.2304963000001]
[3250,"2012-01-10","KW60MN03 ",6037543.892194855,1951463.465983521,1410067.5875918965,80424.359649894759,460971.51874172967,"Winter",198157.32120999999,48246.108930000002,85028.395147000003,1632.0871718000001,56087.471001999998,31566.245032999999,6808.6683909000003,742.46966563000001,3053.2304963000001]
[3251,"2011-11-05","KW60MN03 ",5768742.1143522142,1950731.9998847088,1402076.3495269334,83582.803648999994,465072.84670877556,"Winter",185571.77945999999,50103.555994000002,91689.983552999998,1759.9537858000001,55722.674442000003,30368.783289999999,5853.3940585,4955.8928413000003,3053.2304963000001]
[3252,"2012-02-18","KW60MN01 ",6009863.9471813375,1950539.3907189616,1380064.5242309221,73343.670320532299,497131.19616750709,"Winter",209290.70993000001,61380.068450999999,68757.981769000005,1319.7828774,56589.066271000003,29990.807299,6203.3088477000001,747.06969021999998,3053.2304963000001]
[3253,"2011-12-02","KW60MN04 ",6018873.237339789,1950408.2027714797,1382333.0868138401,76771.243996999998,491303.87196063966,"Winter",228269.77789,55418.465007999999,103688.69821,1990.2644746999999,57455.458099000003,32015.199283000002,5890.2455489000004,816.33821894000005,3053.2304963000001]
[3254,"2012-02-18","KW60MN05 ",6052641.024462291,1950260.9640069618,1364278.4007001766,71935.265348417131,514047.29795836809,"Winter",201251.09797,54296.187711999999,67646.658418999999,1298.4514552999999,56680.265411,29975.517154000001,6335.1907297999996,747.06969021999998,3053.2304963000001]
[3255,"2011-11-02","KW60MN03 ",5813838.2784651183,1950092.8173359097,1422520.1590643735,77181.712433000008,450390.94583853614,"Winter",181502.09659,43170.504153000002,101256.57203,1943.580753,53169.098527000002,38046.353921000002,6581.0789486000003,4955.8928413000003,3053.2304963000001]
[3256,"2011-12-01","KW60MN04 ",5882550.7781213671,1949952.4558044679,1384046.109160702,76848.800078,489057.54656576598,"Winter",224040.02476,51385.997709000003,103678.54790000001,1990.0696435,57227.460249999996,32627.534871,6862.3407386999997,816.33821894000005,3053.2304963000001]
[3257,"2011-12-25","KW60MN24 ",5946784.7418071171,1949759.8381464472,1391074.3551045367,81638.374631999992,477047.1084099104,"Winter",252058.72253999999,50350.335075000003,65004.597698999998,1247.7381212,56680.265411,16406.544296,6261.9092854,816.33821894000005,3053.2304963000001]
[3258,"2012-03-03","KW60MN23 ",5970182.7749696337,1949041.6777593256,1395052.3016148026,89737.77094647169,464251.60519805143,"Winter",183220.81435999999,57676.920044999999,65637.921019999994,1259.8945174999999,55722.674442000003,23925.122253000001,5588.4249338999998,1354.3257784,3053.2304963000001]
[3259,"2011-12-04","KW60MN02 ",5938126.8766078753,1948773.1347942958,1388619.758699521,80872.929857999989,479280.44623677479,"Winter",252911.79117000001,59121.052640000002,77675.542742999998,1490.9520126,56908.26326,26354.910126999999,6109.6886585000002,816.33821894000005,3053.2304963000001]
[3260,"2011-11-04","KW60MN02 ",5741030.7334363647,1948476.6614626192,1427993.5051219061,75446.796106000009,445036.36023471318,"Winter",191724.35769999999,49773.295513999998,100187.00129,1923.0507562,56087.471001999998,36341.003687999997,6051.6079467,4955.8928413000003,3053.2304963000001]
[3261,"2011-11-24","KW60MN06 ",5827413.9631439131,1948399.5904822326,1379881.987275379,82298.519723999998,486219.08348285366,"Winter",221315.71429,49876.947097999997,80274.415271999998,1540.8363661000001,55494.676592999997,19850.261373000001,6107.7993594,4955.8928413000003,3053.2304963000001]
[3262,"2012-01-01","KW60MN04 ",5834221.9177717175,1948381.6725707778,1412533.5480165081,82949.594053208028,452898.53050106164,"Winter",208602.95785999999,52826.192031999999,68374.912781999999,1312.4300163,54810.683043999998,16937.472174999999,5908.7525538999998,742.46966563000001,3053.2304963000001]
[3263,"2011-11-10","KW60MN01 ",5899748.2190991817,1947600.8616367106,1411783.717230014,84810.160353999992,451006.98405269644,"Winter",231167.53403000001,53696.635247999999,98010.079440000001,1881.2655829,57227.460249999996,35805.043726999997,6600.1750903000002,4955.8928413000003,3053.2304963000001]
[3264,"2011-11-11","KW60MN02 ",5887467.1616919991,1947087.1455101394,1383274.409809693,78718.086697000006,485094.64900344622,"Winter",227984.72923999999,52022.712290000003,101291.53293,1944.251814,56771.464549999997,35494.096739000001,6660.0841564000002,4955.8928413000003,3053.2304963000001]
[3265,"2012-01-26","KW60MN01 ",6006722.4441918116,1946785.1395337824,1376789.8667522506,78162.070397715142,491833.20238381665,"Winter",228449.28594,57706.758358999999,84736.797101000004,1626.4900600000001,57364.258958999999,32804.155551000003,6505.9742292999999,742.46966563000001,3053.2304963000001]
[3266,"2011-12-25","KW60MN01 ",5897728.9132319093,1946517.264994689,1372510.6830977185,84017.233142000012,489989.34875497053,"Winter",217978.17032,51112.839759000002,67234.697291000004,1290.5440206999999,56953.862829999998,17106.009319000001,6494.9837899000004,816.33821894000005,3053.2304963000001]
[3267,"2012-03-15","KW60MN24 ",5737740.0684269322,1946427.6837928488,1425053.8501390847,80399.96396480281,440973.86968896125,"Winter",155161.72541000001,54537.148563000002,78410.977396999995,1505.0683965000001,55950.672292000003,32730.814032999999,6062.5255900000002,1354.3257784,3053.2304963000001]
[3268,"2011-11-04","KW60MN03 ",5748228.9189990219,1945834.3401994649,1427391.0926136975,75790.908688999989,442652.33889676747,"Winter",179744.08992,50470.629914999998,98575.736522000007,1892.1231519,55813.873582,36466.781512000001,6109.9121240000004,4955.8928413000003,3053.2304963000001]
[3269,"2012-03-24","KW60MN17 ",5873008.1323833521,1945699.4111911193,1426160.6315272572,89475.424643699051,430063.35502016306,"Winter",133803.12919000001,55566.936728000001,69537.402895000007,1334.7435645,56133.070571999997,28023.292704,5305.4990030999998,1354.3257784,0]
[3270,"2012-02-10","KW60MN01 ",5920084.0263801599,1945027.1033635328,1370959.3009131108,75494.543835280012,498573.25861514191,"Winter",173104.64498000001,58362.793126999997,85559.616435999997,1642.2837591,55585.875732,31708.477449000002,6499.6240853999998,747.06969021999998,3053.2304963000001]
[3271,"2011-12-17","KW60MN02 ",6056890.6499608373,1944686.3587933767,1373055.9531736386,77107.275861999995,494523.12975773821,"Winter",247025.49150999999,57883.615843,79144.549889999995,1519.1490369000001,53944.291214999997,29391.591604000001,6229.9334065000003,816.33821894000005,3053.2304963000001]
[3272,"2011-12-29","KW60MN24 ",5916742.1862962348,1943870.4455792445,1381204.4036214498,75184.227023999993,487481.81493379473,"Winter",204609.82849000001,55802.080955999998,75743.118109000003,1453.8598689,55494.676592999997,27865.582997000001,5486.4230961000003,816.33821894000005,3053.2304963000001]
[3273,"2012-03-25","KW60MN16 ",5845784.1873321449,1943600.0529481336,1442059.4105427924,95460.7289601417,406079.91344519949,"Winter",118419.05516,43566.322155000002,76569.176275000005,1469.7157360000001,54947.481754,26302.759998000001,5164.2129481000002,1354.3257784,0]
[3274,"2011-11-22","KW60MN03 ",5932250.2511769468,1943592.0068656469,1374299.8705868863,75746.116704,493546.01957476069,"Winter",181940.28404,50212.982425000002,92158.293273000003,1768.9428098000001,57409.858528999997,34505.862088000002,5630.7411711000004,4955.8928413000003,3053.2304963000001]
[3275,"2012-01-04","KW60MN03 ",6002552.812569431,1943277.2704856889,1377214.6614512515,81793.288186369915,484269.32084806741,"Winter",192222.37409,48528.978390999997,85717.925017999994,1645.3224310999999,57136.261109999999,30989.209568999999,6649.2562378000002,742.46966563000001,3053.2304963000001]
[3276,"2011-12-02","KW60MN02 ",5889163.6210460113,1943215.9145644403,1384367.8128276714,76860.228241000004,481987.8734957687,"Winter",228367.8677,55636.554639000002,101391.35976000001,1946.1679515000001,57592.256808999999,32261.56782,5733.7384460000003,816.33821894000005,3053.2304963000001]
[3277,"2012-02-12","KW60MN01 ",5857970.4033156792,1942329.3599550307,1378368.7068718276,78704.015262655725,485256.63782054745,"Winter",206859.42882999999,60584.977822000001,68913.068744999997,1322.7597119,55403.477453,26230.963600999999,5870.0286931999999,747.06969021999998,3053.2304963000001]
[3278,"2012-03-29","KW60MN06 ",6063786.8715143874,1941881.6336416125,1403795.5504893605,94856.416198735576,443229.66695351637,"Winter",214348.40247,55779.527883000002,90305.023619,1733.3700153,44869.976800999997,34465.500911000003,8020.6605534999999,1354.3257784,0]
[3279,"2012-02-10","KW60MN05 ",6083788.983237694,1941548.5300247273,1364575.9435164165,73767.223291188959,503205.36321712204,"Winter",172436.74403999999,55043.075886999999,87104.220627999995,1671.9318393999999,55859.473151999999,31745.535457000002,7034.9915291999996,747.06969021999998,3053.2304963000001]
[3280,"2011-12-18","KW60MN01 ",6013228.6355893221,1940596.2250269093,1353769.2732366663,80229.992079000003,506596.95971124293,"Winter",249705.60592999999,61440.019841000001,76760.649852000002,1473.3909973,57409.858528999997,25843.135783000002,6472.5762963999996,816.33821894000005,3053.2304963000001]
[3281,"2012-02-09","KW60MN01 ",6009470.1468250277,1940411.8084443919,1360123.7357546,74571.435053222653,505716.63763656945,"Winter",190560.98402,54229.661288000003,85468.710449000006,1640.5388538,55905.072721999997,30729.603133000001,6615.0626315,747.06969021999998,3053.2304963000001]
[3282,"2012-02-08","KW60MN04 ",6113305.6189630544,1939999.196100984,1369716.0391744454,71818.029897421933,498465.12702911673,"Winter",192076.51652,50901.321947999997,84092.847280000002,1614.1296921999999,50068.327771999997,30847.989980999999,6626.2545283999998,747.06969021999998,3053.2304963000001]
[3283,"2012-02-01","KW60MN02 ",5992669.0078072203,1939562.4702841705,1371743.9391093804,74022.17740167398,493796.35377311625,"Winter",204328.44695000001,55994.889164,80347.194445000001,1542.2333341000001,54901.882184000002,32330.559499999999,6558.6917692999996,747.06969021999998,3053.2304963000001]
[3284,"2012-02-08","KW60MN02 ",6032113.0692015644,1938131.6753760516,1367962.3792332737,69877.643239962083,500291.65290281567,"Winter",185504.67989,50614.538316999999,81755.071805,1569.2569957999999,50797.920891000002,31290.741578000001,6596.8129503,747.06969021999998,3053.2304963000001]
[3285,"2012-03-08","KW60MN02 ",5706847.3537124628,1937820.8564097111,1397237.4899595687,80027.954578541772,460555.41187160061,"Winter",200765.65148,52722.177309999999,82720.989646000002,1587.7974153,56862.663690000001,31841.406210000001,6513.6837886000003,1354.3257784,3053.2304963000001]
[3286,"2012-03-24","KW60MN16 ",5921040.0897598853,1937644.2331549195,1411125.1570117269,92026.083150614853,434492.99299257796,"Winter",152547.38574999999,54804.746978000003,72587.459971000004,1393.2882308999999,55449.077022999998,28124.341735999998,5430.3975897,1354.3257784,0]
[3287,"2011-12-01","KW60MN02 ",5837900.7097507212,1937627.7615675596,1392181.9007928132,75638.446175000005,469807.41459974641,"Winter",208176.18507000001,51905.139371999998,98366.799029999995,1888.1126775,57729.055519000001,33665.416168000003,6891.9803875999996,816.33821894000005,3053.2304963000001]
[3288,"2011-11-07","KW60MN04 ",5838643.3874632623,1937194.2173254536,1356016.4836802983,78297.331646000006,502880.40199915518,"Winter",238726.96698999999,50172.794699999999,99632.882098000002,1912.4146525000001,57409.858528999997,31743.993755,6254.3724045999998,4955.8928413000003,3053.2304963000001]
[3289,"2012-03-03","KW60MN15 ",6251300.4985689195,1937166.2100051371,1394963.4000528567,82939.511446550125,459263.2985057304,"Winter",178441.82191999999,55860.954182000001,84292.123399000004,1617.9547203,54537.085623999999,24478.848902999998,5693.1557591000001,1354.3257784,0]
[3290,"2012-02-21","KW60MN04 ",6025407.9873046177,1936294.3583779752,1348921.2981498518,70164.357093940693,517208.70313418255,"Winter",211104.59229,49819.338426000002,80119.585510000004,1537.8644686,57820.254658999998,29816.600640000001,6502.4360253000004,747.06969021999998,3053.2304963000001]
[3291,"2011-12-17","KW60MN04 ",6021487.9733263338,1934382.8131373199,1360756.6984600592,78479.225714,495146.88896326069,"Winter",251930.96733000001,54186.369221000001,79000.407600999999,1516.3822814,54309.087775,29059.687531,6303.8801678999998,816.33821894000005,3053.2304963000001]
[3292,"2012-01-08","KW60MN02 ",5913715.7193665449,1933925.0339871352,1410720.2451760934,85502.267832306185,437702.52097873547,"Winter",192232.34735,52316.175396999999,70496.206011999995,1353.1474197,53397.096376000001,24791.909619999999,5767.6848860999999,742.46966563000001,3053.2304963000001]
[3293,"2011-12-04","KW60MN03 ",5932674.0156988474,1933906.2764701669,1372682.8253144703,78328.491116999998,482894.96003869665,"Winter",254955.09026,54686.325668999998,78135.913620000007,1499.7886536000001,57090.661540000001,26083.603246999999,6034.8683492,816.33821894000005,3053.2304963000001]
[3294,"2012-01-26","KW60MN05 ",6174448.8248186409,1933330.3821116518,1345752.6631580195,75190.089778616573,512387.62917501573,"Winter",209177.87750999999,56467.268068999998,83885.067710999996,1610.1414437000001,57455.458099000003,32117.901013999999,7305.4321717000003,742.46966563000001,3053.2304963000001]
[3295,"2012-02-25","KW60MN01 ",5928531.7461393131,1933017.0726822312,1409945.3652662791,74175.0859830462,448896.62143290607,"Winter",180434.20546999999,58371.326852999999,67906.661854000005,1303.4421207,55403.477453,29757.590865999999,5879.0976678999996,747.06969021999998,3053.2304963000001]
[3296,"2011-12-02","KW60MN03 ",5917876.1314930283,1932268.8388572072,1371907.7231743515,74317.977282999986,486043.13839985564,"Winter",230087.53933,54301.623523000002,103510.5203,1986.8444187,57318.659389,32364.446865999998,5729.2488221000003,816.33821894000005,3053.2304963000001]
[3297,"2012-03-23","KW60MN01 ",5617217.5680167675,1931968.385803401,1414167.2356869716,77189.754925597197,440611.39519083215,"Winter",182511.61077,49907.317262999997,77947.059263000003,1496.1636672,56771.464549999997,32126.164668000001,6230.7392363999998,1354.3257784,3053.2304963000001]
[3298,"2011-11-26","KW60MN06 ",6087741.000271746,1931836.0729361866,1386904.9760539941,87502.940623999995,457428.15625819226,"Winter",206232.01444,52807.845566000004,76031.328280000002,1459.3919516999999,55768.274012000002,22617.746085999999,6009.2307638000002,4955.8928413000003,3053.2304963000001]
[3299,"2011-11-10","KW60MN02 ",5841959.8153914688,1930926.0750887506,1396927.3986551552,83730.055753000008,450268.62068059528,"Winter",212257.57936999999,51395.633699999998,97178.665366999994,1865.3069112000001,57136.261109999999,35239.374180999999,6595.5635749000003,4955.8928413000003,3053.2304963000001]
[3300,"2011-11-11","KW60MN03 ",5863400.0810020193,1930794.7200505838,1359788.2356019302,77069.982418,493936.50203065365,"Winter",239814.24291,51724.165261000002,101561.484,1949.4334205,56953.862829999998,35300.494559999999,6749.2062557999998,4955.8928413000003,3053.2304963000001]
[3301,"2012-03-08","KW60MN03 ",5684687.1675070422,1930616.3767781849,1394525.6377143508,79083.218163253099,457007.52090058103,"Winter",188428.66750000001,50685.110668000001,80291.052656999993,1541.1557141999999,57592.256808999999,31558.154439000002,6517.7247899000004,1354.3257784,3053.2304963000001]
[3302,"2011-11-11","KW60MN24 ",5848966.2363017378,1930442.1535453375,1377007.1669082548,81011.554673999999,472423.43196308269,"Winter",197298.26438000001,57111.722614999999,95315.636622000005,1829.5467947,57364.258958999999,36292.009410999999,5740.4220965000004,4955.8928413000003,3053.2304963000001]
[3303,"2012-02-11","KW60MN06 ",6073453.3928163582,1930377.8964228863,1356942.7076334786,74690.080011407772,498745.10877799988,"Winter",190973.31094,52384.070815999999,68196.653577000005,1309.0083996999999,54765.083473999999,28552.576721000001,6306.7547463999999,747.06969021999998,3053.2304963000001]
[3304,"2012-02-21","KW60MN03 ",5953414.2500766283,1929827.7683241675,1355471.8694709234,71427.847659218984,502928.05119402503,"Winter",190710.30733000001,50481.141614,81005.840947000004,1554.8757991,58002.652937999999,29501.067781999998,6558.9169275000004,747.06969021999998,3053.2304963000001]
[3305,"2011-11-10","KW60MN03 ",5843686.6299103508,1929378.8555696239,1394939.0894232672,82312.497552999994,452127.26859335665,"Winter",235608.0822,49441.792975999997,97086.540254000007,1863.5386053,57637.856378999997,35146.976664000002,6595.0963287000004,4955.8928413000003,3053.2304963000001]
[3306,"2011-11-01","KW60MN04 ",5623181.7539077876,1929080.7812970453,1423548.6187422725,74679.570328000002,430852.5922267728,"Winter",177435.73108,41100.552702000001,96012.740183999995,1842.9274281,52029.109278999997,38330.549561,6897.4248202999997,4955.8928413000003,3053.2304963000001]
[3307,"2012-03-10","KW60MN15 ",5916430.7777250176,1928688.069235438,1403250.0201966595,79337.818840118067,446100.2301986604,"Winter",157897.21737999999,52175.342412999998,76583.040571000005,1469.9818557999999,54993.081323999999,27003.528229,5684.7013155000004,1354.3257784,0]
[3308,"2011-12-01","KW60MN03 ",5807368.8368535042,1928046.4186318438,1374246.227003488,75211.332028000004,478588.85960035573,"Winter",217107.09471,50918.821628999998,102171.05889,1961.1339747,57637.856378999997,32818.568346,6767.5101106000002,816.33821894000005,3053.2304963000001]
[3309,"2012-03-04","KW60MN23 ",5826365.1654295679,1927538.9107725634,1404176.2798543312,83590.642960427169,439771.98795780516,"Winter",171598.48162000001,51947.766222999999,67601.225003,1297.5793785000001,53032.299816999999,27650.824982999999,5487.2695565000004,1354.3257784,3053.2304963000001]
[3310,"2011-11-26","KW60MN24 ",6024492.3619650593,1926352.3411734984,1375585.3116491737,84158.77184500001,466608.25767932448,"Winter",209132.62160000001,56415.055036999998,76386.108659000005,1466.2018238999999,56361.068421000004,26005.037506000001,5730.8130805000001,4955.8928413000003,3053.2304963000001]
[3311,"2011-11-06","KW60MN02 ",5762993.0826667268,1925998.7375497681,1409461.764087498,78114.81551,438422.15795227006,"Winter",173637.60488,50648.727850000003,85239.506557000001,1636.1393737000001,54673.884334000002,27199.677643999999,5826.1109537000002,4955.8928413000003,3053.2304963000001]
[3312,"2011-12-29","KW60MN06 ",6147988.2623803588,1925236.2635808093,1358595.2021216585,69952.349831,496688.71162815089,"Winter",152785.80067,51655.133833,89088.821932999999,1710.0254941000001,55768.274012000002,31317.873696999999,6198.4044574,816.33821894000005,3053.2304963000001]
[3313,"2011-12-17","KW60MN03 ",6000624.0211773003,1924373.7879228294,1356406.1749330726,76357.996185999989,491609.6168037568,"Winter",228010.34599999999,54292.030915000003,79356.712891999996,1523.2214237000001,53989.890785000003,29173.458993,6258.6791935000001,816.33821894000005,3053.2304963000001]
[3314,"2012-03-31","KW60MN23 ",5581946.5737350816,1923583.4122190643,1383853.5703954562,96629.340328212871,443100.50149539544,"Winter",207307.98168,55530.380376000001,68157.014941000001,1308.2475514,50159.526912000001,24945.229706999999,5491.3291792,1354.3257784,3053.2304963000001]
[3315,"2011-12-19","KW60MN04 ",6005718.3514099624,1923193.0639101046,1332916.430929757,81738.662411999991,508537.97056834778,"Winter",258000.62231999999,52520.093033999998,85019.577988000005,1631.9179297999999,55449.077022999998,28553.022778999999,6642.7351081999996,816.33821894000005,3053.2304963000001]
[3316,"2012-01-08","KW60MN04 ",5896054.0695821028,1923073.3848185199,1390411.3667947615,87968.931589629792,444693.08643412881,"Winter",187267.97526000001,49606.382527000002,73572.406025000004,1412.1938895999999,51481.91444,24751.283768000001,5839.4579372999997,742.46966563000001,3053.2304963000001]
[3317,"2012-02-12","KW60MN02 ",5805432.7704770295,1922113.3863957024,1370231.8956437681,72890.030152563631,478991.46059937053,"Winter",190561.00521,56614.349905000003,70377.847708000001,1350.8755778,55631.475301999999,26215.611667000001,5886.3975401999996,747.06969021999998,3053.2304963000001]
[3318,"2012-02-01","KW60MN04 ",6012103.4724048497,1921817.5810900666,1355628.5087647771,72336.480055567823,493852.59226972167,"Winter",211030.31748,55329.502807999997,83583.378375999993,1604.3506335,54765.083473999999,31482.143994999999,6626.9706335999999,747.06969021999998,3053.2304963000001]
[3319,"2011-11-15","KW60MN04 ",5902705.9584362479,1921596.6839892466,1339825.140398344,79388.820042000007,502382.72354890272,"Winter",224392.7665,48298.890768999998,94808.338535999996,1819.8094040999999,55357.877883000001,34582.889582999996,6725.7423795000004,4955.8928413000003,3053.2304963000001]
[3320,"2012-03-16","KW60MN24 ",5634641.1625298467,1921579.0684532772,1399171.0054753015,88534.510508362568,433873.55246961297,"Winter",135659.43763999999,56712.064356000003,70452.449309999996,1352.3075266999999,56406.667991000002,30026.118295,5374.9409035999997,1354.3257784,3053.2304963000001]
[3321,"2012-03-25","KW60MN23 ",5576841.1629130933,1921352.5383766708,1416193.8963140377,95497.125047118563,409661.51701551431,"Winter",128164.39102,49221.277073999998,61552.261307000001,1181.4718588999999,56315.468850999998,27641.845690999999,5213.7664200999998,1354.3257784,3053.2304963000001]
[3322,"2012-03-27","KW60MN06 ",6117451.11655859,1921032.5364536976,1362034.3322979626,97635.395828545952,461362.80832718889,"Winter",208694.70971,57038.060383999997,94168.269547000004,1807.5235273000001,48928.338523999999,35444.590260999998,8154.0322061999996,1354.3257784,0]
[3323,"2011-11-09","KW60MN01 ",5963929.8694271035,1920063.1042401385,1393717.6506051864,88631.354504000003,437714.09913095232,"Winter",195123.19321999999,52547.490615000002,100234.50711999999,1923.9626122,57364.258958999999,36498.335893000003,6535.0044275,4955.8928413000003,3053.2304963000001]
[3324,"2011-11-12","KW60MN06 ",5930385.2155988002,1919928.5120021708,1326519.6881884127,83392.218391999995,510016.60542175802,"Winter",250315.06633,53645.707657999999,89830.249559999997,1724.2569108,57455.458099000003,33644.926610000002,6196.2510623999997,4955.8928413000003,2899.5653634999999]
[3325,"2011-12-27","KW60MN05 ",6165013.7555477452,1919816.9855958952,1360144.4657502458,79054.519960000005,480617.99988564948,"Winter",231578.32415999999,53365.172879999998,82168.909562000001,1577.2004515000001,58048.252507999998,26875.479199000001,6519.4837336999999,816.33821894000005,3053.2304963000001]
[3326,"2012-03-20","KW60MN05 ",6056291.6548106177,1919502.412841822,1388007.5968941844,83295.743059561268,448199.07288807625,"Winter",201466.99093,50547.227773999999,85614.350665000005,1643.3343614,57911.453798000002,31880.761952000001,7762.6137808000003,1354.3257784,3031.7023945999999]
[3327,"2012-03-04","KW60MN17 ",6034551.7932189535,1919131.8899709089,1397544.8654219077,82222.242370991924,439364.78217800905,"Winter",143361.02927999999,46334.684565000003,76416.163316000006,1466.7787114,54445.886484000002,26292.511917,5541.4040710999998,1354.3257784,458.40863426999999]
[3328,"2011-11-26","KW60MN01 ",5860970.8872815296,1917535.1819978992,1382197.3170961763,82674.470041000008,452663.39486072288,"Winter",211109.49943,55319.566343999999,71364.975028000001,1369.8231051,55585.875732,19407.283221000002,5693.0474130000002,4955.8928413000003,3053.2304963000001]
[3329,"2011-11-25","KW60MN06 ",5874861.9288073294,1917435.2430043495,1374966.2131161373,78234.840331999992,464234.18955621216,"Winter",209550.24781,55775.332522999997,82748.254564000003,1588.3207548,53442.695946,19812.919194999999,6281.0257423000003,4955.8928413000003,3053.2304963000001]
[3330,"2012-03-04","KW60MN06 ",5826218.4662199747,1916405.1692951717,1348552.019009135,81092.553711415298,486760.59657462139,"Winter",182734.74255,55027.481872999997,71463.537956,1371.7149824000001,55494.676592999997,23907.143721,5895.5782477000002,1354.3257784,1780.6270629999999]
[3331,"2012-03-03","KW60MN17 ",6376854.5481148949,1916332.6888542313,1384366.5413647948,81456.198431673911,450509.94905776251,"Winter",169504.70152,55215.818351000002,81182.317567999999,1558.2631996,54810.683043999998,25583.254778999999,5526.822948,1354.3257784,509.29580915000003]
[3332,"2011-11-07","KW60MN01 ",5739680.5755502805,1915663.5866797918,1361619.8930999341,77398.341704999999,476645.35187485773,"Winter",207665.81073999999,49422.810216999998,95506.658007999999,1833.2133764,57318.659389,30947.270546,6105.7475396,4955.8928413000003,3053.2304963000001]
[3333,"2011-11-13","KW60MN23 ",5952671.0739353774,1915268.1565291185,1369671.1451634341,84355.533377,461241.47798868461,"Winter",217819.22349999999,47790.694640000002,78561.750411999994,1507.9624262,56178.670141000002,29915.390192999999,5769.5741851000002,4955.8928413000003,3053.2304963000001]
[3334,"2012-02-11","KW60MN01 ",5899909.3445047019,1915098.69168896,1361054.4919780316,72200.047427082434,481844.15228384605,"Winter",182788.48792000001,59393.011916000003,73282.317272999993,1406.6257482000001,55449.077022999998,30602.70451,6147.7776739000001,747.06969021999998,3053.2304963000001]
[3335,"2011-12-19","KW60MN01 ",5960208.1483788388,1914385.7899629129,1332878.8755241772,82796.769061999992,498710.14537673572,"Winter",273525.43482000002,53508.623344,80665.142577000006,1548.3362256,58276.250357999998,27707.884611000001,6420.2244264000001,816.33821894000005,3053.2304963000001]
[3336,"2012-02-12","KW60MN04 ",5793511.1080158567,1913948.7457279931,1357463.6603852739,74207.830681568463,482277.25466115068,"Winter",200685.52626000001,53649.496497,71233.043745999996,1367.2907350999999,55677.074871999997,25482.120606,5959.4335110000002,747.06969021999998,3053.2304963000001]
[3337,"2012-02-22","KW60MN05 ",6071160.0106403045,1913404.9784436882,1362777.1321777264,74630.068714532623,475997.77755142946,"Winter",139904.94026,48466.910841999998,82466.724839000002,1582.9169006,56634.665841000002,33393.764347999997,6537.2593976999997,747.06969021999998,3053.2304963000001]
[3338,"2012-03-03","KW60MN16 ",6280021.2224372122,1913162.3951791106,1378922.2970987882,80737.491489216918,453502.60659110534,"Winter",186525.43916000001,53031.038400999998,83370.110042999993,1600.2570303,54673.884334000002,24693.582304,5671.0326757000003,1354.3257784,0]
[3339,"2012-03-24","KW60MN23 ",5686277.2709408682,1912213.5181628042,1385044.5586009237,92196.836316034096,434972.12324584625,"Winter",185161.81602,59303.352362999998,62797.45205,1205.3728137999999,56224.269711000001,25687.857685999999,5366.6168141999997,1354.3257784,3053.2304963000001]
[3340,"2012-01-08","KW60MN03 ",5907575.5192891574,1910591.9218646227,1384357.4426119281,88312.314402336764,437922.16485035804,"Winter",203099.27731999999,51343.843258000001,72267.946393000006,1387.1552913,52348.306268,24941.002082999999,5894.8976935999999,742.46966563000001,3053.2304963000001]
[3341,"2012-02-25","KW60MN04 ",5842802.789311639,1910175.6784079534,1376210.4390242477,75900.371762319744,458064.86762138602,"Winter",150739.17361999999,51747.923435999997,67116.151243999993,1288.2685752,55950.672292000003,28896.640255999999,5884.9450145000001,747.06969021999998,3053.2304963000001]
[3342,"2011-11-06","KW60MN04 ",5726728.130756177,1907978.8180544495,1396651.1381497758,76065.766704000009,435261.91320067359,"Winter",169535.60696,48290.564320999998,89208.898174999995,1712.3303112000001,56224.269711000001,26915.642982000001,5960.7590681000001,4955.8928413000003,3053.2304963000001]
[3343,"2012-03-04","KW60MN15 ",5943027.4539918629,1907862.9477866925,1390908.8087949806,81734.888074537113,435219.2509171748,"Winter",146855.27316000001,46181.940358,78098.727704000004,1499.0748842999999,53989.890785000003,25765.688602999999,5501.5341028000003,1354.3257784,0]
[3344,"2012-03-20","KW60MN01 ",5896519.9533845503,1907347.8716833019,1406322.5194221551,79601.841769987979,421423.51049115876,"Winter",168128.17991000001,48122.753131999998,78144.671757999997,1499.9567626999999,57820.254658999998,31213.696355,6158.7274828,1354.3257784,3053.2304963000001]
[3345,"2011-12-25","KW60MN05 ",5805201.7101123361,1906023.4247856967,1332264.4656149657,81968.976638000007,491789.98253273108,"Winter",246381.82951000001,49839.086023000003,68508.582326000003,1314.9957515000001,56862.663690000001,16999.517682000002,6689.9472709000001,816.33821894000005,3053.2304963000001]
[3346,"2011-12-31","KW60MN05 ",5718989.7187132332,1905901.832837343,1359782.9494098858,79847.505562000006,466271.37786545715,"Winter",219277.40711999999,49930.988670999999,70597.728623000003,1355.0961070000001,56634.665841000002,22342.487761,5976.5032273999996,816.33821894000005,3053.2304963000001]
[3347,"2012-02-08","KW60MN03 ",6019843.8152188165,1905850.5419938967,1341385.0566805135,73357.326302539906,491108.15901084314,"Winter",177129.82444,50681.291299999997,80937.108647999994,1553.5565091999999,49338.734653,31008.729887000001,6644.7835414000001,747.06969021999998,3053.2304963000001]
[3348,"2012-03-19","KW60MN04 ",5678562.393117738,1905553.0333799869,1372688.1196977727,82088.497976909843,450776.41570530448,"Winter",199079.0368,50786.397040000003,79120.151645999998,1518.6807220000001,57820.254658999998,28415.361914000001,6216.3443337999997,1354.3257784,3053.2304963000001]
[3349,"2012-03-10","KW60MN16 ",5877838.6428233739,1904725.3339325851,1381169.1367461961,80051.713552517162,443504.48363387189,"Winter",159480.99410000001,51665.229370000001,74507.690591999999,1430.1463153,55038.680892999997,26583.354031999999,5543.0241959000004,1354.3257784,0]
[3350,"2012-02-01","KW60MN03 ",5934310.1841114629,1904631.7805564504,1340776.6442434774,72807.208472010068,491047.92784096295,"Winter",196873.96106999999,54384.335264000001,83126.448311,1595.5800376,54628.284764000004,31457.949476000002,6614.4565663000003,747.06969021999998,3053.2304963000001]
[3351,"2012-02-18","KW60MN02 ",5921702.5745333526,1903264.7237133223,1334947.7444339767,67588.242184165021,500728.73709518061,"Winter",191898.32269,59416.207710000002,67438.797665999999,1294.4616484999999,56543.466700999998,29938.546224999998,6091.5761034999996,747.06969021999998,3053.2304963000001]
[3352,"2011-11-15","KW60MN01 ",5845582.1491141301,1902916.2965550784,1341316.7143212412,79390.546896,482209.03533783712,"Winter",180085.69256,48845.992395000001,90041.995393000005,1728.3212902,56041.871432,35531.490095000001,6481.0070391999998,4955.8928413000003,3053.2304963000001]
[3353,"2012-02-22","KW60MN01 ",5930617.951406219,1900745.7428781483,1374129.9129339391,70323.666678315887,456292.16326589335,"Winter",143788.14121,51183.392828999997,79340.926380999997,1522.9184077,54263.488205000001,32882.844655000001,6176.2509011000002,747.06969021999998,3053.2304963000001]
[3354,"2012-03-12","KW60MN05 ",5691752.7617606688,1900470.5841274457,1354309.7671533118,75437.394537632877,470723.42243650107,"Winter",195883.15337000001,49110.576449,84185.381064999994,1615.9058424,56953.862829999998,30573.357491999999,7432.8159648999999,1354.3257784,3053.2304963000001]
[3355,"2011-12-26","KW60MN05 ",5803555.7485774206,1900364.5842097001,1340388.1340364248,79462.18838799998,480514.26178527536,"Winter",218928.56565,50145.462997000002,71278.827615000002,1368.1695388000001,56543.466700999998,17992.511156,6597.8388603000003,816.33821894000005,3053.2304963000001]
[3356,"2012-03-13","KW60MN05 ",5691155.2269455828,1900300.4698001279,1384160.5894104082,80036.631087593545,436103.24930212623,"Winter",158803.25768000001,51058.073518999998,83385.070829000004,1600.5441968,56087.471001999998,33041.864792,7370.6366927999998,1354.3257784,3053.2304963000001]
[3357,"2012-02-10","KW60MN02 ",5860683.8136811107,1900087.0698262304,1331730.4450076113,73216.668572892973,495139.95624572632,"Winter",170664.60946000001,54597.206001999999,87280.100718000002,1675.3077897000001,55722.674442000003,31442.749329999999,6537.1290423999999,747.06969021999998,3053.2304963000001]
[3358,"2011-11-13","KW60MN07 ",5989084.6812228207,1899673.9728908923,1317117.2369938251,84947.969089999999,497608.76680706727,"Winter",194571.81299999999,52661.104372000002,89734.750350000002,1722.4238404,55996.271862000001,28630.757785000002,6147.6981066999997,4955.8928413000003,71.849863939000002]
[3359,"2012-03-11","KW60MN08 ",5749077.5273756683,1899499.9128234107,1381085.70812712,81280.832883555602,437133.37181273499,"Winter",171900.29722000001,46282.314066999999,71097.644207000005,1364.6917933,55494.676592999997,25266.319345,5699.5990143999998,1354.3257784,0]
[3360,"2011-11-01","KW60MN03 ",5544989.3023132375,1897985.8265183168,1397184.6887548284,73831.653605,426969.48415848851,"Winter",165825.43831999999,40770.843354999997,92074.63854,1767.3370895999999,56452.267561000001,37476.762745,6226.1141779,4955.8928413000003,3053.2304963000001]
[3361,"2012-02-18","KW60MN04 ",5933285.7903927434,1897793.2949031757,1323933.0136332787,68493.514000164374,505366.76726973261,"Winter",203157.70726,53672.261667999999,68146.521066999994,1308.0461256000001,56543.466700999998,29701.447543999999,6167.8895677999999,747.06969021999998,3053.2304963000001]
[3362,"2012-03-22","KW60MN02 ",5587282.2799352966,1897427.6907440808,1376709.5659392304,73346.405534496254,447371.7192703542,"Winter",187208.73981999999,49878.415716000003,84150.497787999993,1615.2362714000001,53807.492506000002,31912.583296000001,6415.8245272000004,1354.3257784,3053.2304963000001]
[3363,"2012-01-03","KW60MN01 ",5829332.5646620486,1894580.918876654,1325030.8984144856,74643.674521891313,494906.34594027698,"Winter",215913.51509999999,48758.069795000003,75279.047827999995,1444.9522191999999,57455.458099000003,25639.137037,6020.3024630999998,742.46966563000001,3053.2304963000001]
[3364,"2011-11-24","KW60MN01 ",5660957.5487186154,1894168.2459459237,1369040.2296140308,77764.189838000006,447363.82649389288,"Winter",189248.59437999999,52591.436650000003,77909.696970999998,1495.4465124999999,55221.079172999998,27804.447215,5383.3445602000002,4955.8928413000003,3053.2304963000001]
[3365,"2011-12-25","KW60MN02 ",5722715.4938899158,1894121.8906046343,1325219.9455426701,83012.583083000005,485889.36197896407,"Winter",237200.13641000001,50610.097115999997,68949.240273999996,1323.4540104,56224.269711000001,16989.780438000002,6602.2269102,816.33821894000005,3053.2304963000001]
[3366,"2012-03-03","KW60MN01 ",5851142.598158407,1894100.8700449895,1343408.3942469149,87957.339218890251,462735.13657918444,"Winter",190117.78344,56675.572275999999,69621.284987000006,1336.3536489000001,56589.066271000003,29248.983012000001,6033.7357859000003,1354.3257784,3053.2304963000001]
[3367,"2011-11-15","KW60MN02 ",5778964.6426621154,1894013.2445338252,1337189.5171459988,74581.627441000004,482242.09994682646,"Winter",196935.86734,48175.613705000003,90650.304992999998,1739.9975578000001,55859.473151999999,34874.676085999999,6589.1440215000002,4955.8928413000003,3053.2304963000001]
[3368,"2012-03-23","KW60MN04 ",5553734.6364803575,1893538.2302962502,1375537.420496641,73353.010990437047,444647.79880917212,"Winter",196152.70691000001,49394.806871000001,77698.481182999996,1491.3923070999999,56953.862829999998,32859.492751999998,6675.8638668000003,1354.3257784,3053.2304963000001]
[3369,"2012-02-09","KW60MN02 ",5955748.9290700387,1893316.2481766914,1322608.0104575311,72026.346528970636,498681.89119018964,"Winter",185756.73517999999,51724.385392999997,86035.785652000006,1651.4236430999999,55950.672292000003,30461.122407999999,6567.5017275,747.06969021999998,3053.2304963000001]
[3370,"2011-11-15","KW60MN03 ",5782210.6968340985,1891900.8547510491,1327074.3203633169,74952.540433999995,489873.99395373213,"Winter",208189.27431000001,48004.659611000003,93398.672390000007,1792.7514074000001,55722.674442000003,35004.704946999998,6605.4570021,4955.8928413000003,3053.2304963000001]
[3371,"2011-12-30","KW60MN06 ",6072181.5144238472,1891179.5251666075,1311077.6708983697,75324.866357000006,504776.98791123764,"Winter",192864.31912999999,50257.008800000003,80034.109723999994,1536.223794,55494.676592999997,28239.773892000001,5919.9055130999996,816.33821894000005,3053.2304963000001]
[3372,"2011-11-01","KW60MN01 ",5624186.5744846426,1891106.6633504669,1372620.7411803044,78459.743795999995,440026.17837416241,"Winter",153952.12075,40638.219523,93441.320775,1793.5700267,56589.066271000003,38231.109209000002,6178.6582334000004,4955.8928413000003,3053.2304963000001]
[3373,"2012-01-25","KW60MN02 ",5929547.0394668682,1890652.5973127852,1326828.3152322369,75610.436405229542,488213.84567531868,"Winter",187360.08746000001,52842.150788999999,85409.524808999995,1639.4028083000001,56497.867130999999,33942.012057,6858.6637146000003,742.46966563000001,3053.2304963000001]
[3374,"2012-03-04","KW60MN16 ",5948520.7217890397,1890522.9915184476,1373197.7083762896,79054.286493700536,438270.99664845766,"Winter",138589.26506999999,46071.911376999997,77370.151247999995,1485.0901409000001,54491.486054000001,26005.330698999998,5536.8975162999996,1354.3257784,0]
[3375,"2012-02-25","KW60MN03 ",5803243.8320542919,1890261.9100081467,1362414.0530760365,72185.610495836372,455662.24643627374,"Winter",154028.3351,51464.509269000002,68384.389970999997,1312.6119272000001,55540.276163000002,28508.304917000001,5880.5501936000001,747.06969021999998,3053.2304963000001]
[3376,"2012-03-22","KW60MN04 ",5643962.6632954869,1889780.4060399337,1366332.4414669829,74874.856511754406,448573.10806119628,"Winter",196480.5632,50180.668029,79678.768985999995,1529.4031659,55312.278313000003,32307.766581,6965.3820296000004,1354.3257784,3053.2304963000001]
[3377,"2012-01-05","KW60MN05 ",6110338.3807786014,1888357.9821064924,1347377.2208315916,85672.502427029351,455308.25884787145,"Winter",160387.83989999999,50614.379244000003,83518.425514999995,1603.1038885,56224.269711000001,33184.642217000001,7140.9412568999996,742.46966563000001,3053.2304963000001]
[3378,"2012-03-19","KW60MN01 ",5650534.9106081855,1887986.9764852773,1377007.4355510261,81081.719367175043,429897.82156707597,"Winter",194101.55426999999,47837.423656999999,68852.269547000004,1321.5926947999999,57273.059820000002,27411.565764999999,5580.5291528999996,1354.3257784,3053.2304963000001]
[3379,"2012-02-12","KW60MN03 ",5755907.7178763347,1887637.9786688751,1343723.4388755513,73797.17394285636,470117.36585046741,"Winter",195309.32537999999,55087.826930000003,68805.625157999995,1320.6973737999999,55585.875732,26406.349040000001,5918.9303913000003,747.06969021999998,3053.2304963000001]
[3380,"2011-11-07","KW60MN03 ",5694418.0660532722,1887513.3271790249,1319588.8887209396,77300.118721999999,490624.31973608531,"Winter",214774.38036000001,48226.534867000002,97700.220230000006,1875.3179551999999,57364.258958999999,31440.702717,6134.4323819000001,4955.8928413000003,3053.2304963000001]
[3381,"2011-11-07","KW60MN02 ",5723903.9524113713,1887239.3651513704,1335144.5100719575,77902.252159999989,474192.60291941307,"Winter",216209.81943,47776.055067000001,95354.132148000004,1830.2857015,57409.858528999997,31205.548557999999,6101.4001201999999,4955.8928413000003,3053.2304963000001]
[3382,"2012-03-23","KW60MN02 ",5515389.2342189699,1886951.6787920489,1377875.3041628529,75046.003113337822,434030.37151585816,"Winter",190732.41595,48464.535989000004,78359.792835999993,1504.0859286,56953.862829999998,32111.171289000002,6296.2518683999997,1354.3257784,3053.2304963000001]
[3383,"2011-12-18","KW60MN05 ",5940529.2289810525,1884858.0132264509,1296505.6845439535,81471.280398999996,506881.0482834974,"Winter",254694.51371999999,55483.609582999998,81426.320682999998,1562.9467451,57181.860679999998,25730.035556999999,6653.319246,816.33821894000005,3053.2304963000001]
[3384,"2012-02-25","KW60MN02 ",5818340.597130741,1882828.3960294384,1363937.6106530693,72243.139789647277,446647.64558672183,"Winter",152050.03706,52241.370729000002,68080.033074999999,1306.7699143,55677.074871999997,28893.225525999998,5855.6896580000002,747.06969021999998,3053.2304963000001]
[3385,"2011-11-01","KW60MN02 ",5537401.4309769878,1882582.2910098124,1375646.8382691448,73874.080889000004,433061.37185166759,"Winter",156432.70642,40762.224469000001,94769.470623999994,1819.0633496,56543.466700999998,37808.558012000001,6173.9857733999997,4955.8928413000003,3053.2304963000001]
[3386,"2012-03-09","KW60MN23 ",5772789.8350855112,1882254.3677510172,1374888.4307593675,82662.330325230752,424703.60666641896,"Winter",162289.38305999999,56311.599482999998,75924.179684999996,1457.3352758000001,53670.693796,30353.189912000002,5973.3814816000004,1354.3257784,3053.2304963000001]
[3387,"2012-03-03","KW60MN05 ",5850213.2879101643,1882142.9497506625,1327545.2664136956,87185.145270607856,467412.53806635906,"Winter",212044.30426,52042.583610000001,68593.176923999999,1316.6195121000001,55631.475301999999,26012.365945000001,6097.1627406999996,1354.3257784,3053.2304963000001]
[3388,"2011-12-19","KW60MN02 ",5926543.5981310848,1881885.7887399155,1306496.0258800825,80605.314336999989,494784.44852283288,"Winter",248943.15510999999,53353.735662999999,81621.665330999997,1566.6963100999999,57090.661540000001,28415.847240999999,6513.8564660000002,816.33821894000005,3053.2304963000001]
[3389,"2011-12-19","KW60MN03 ",5907176.7591559868,1880901.415450881,1301427.5210473954,79454.902674000012,500018.99172948563,"Winter",261111.99272000001,51839.739317,82931.333547999995,1591.8348851000001,55768.274012000002,28474.885321999998,6540.4488590999999,816.33821894000005,3053.2304963000001]
[3390,"2012-01-25","KW60MN04 ",5963072.0128176669,1879127.5308761585,1314933.6131751477,75305.744528579424,488888.17317243124,"Winter",189603.27567,51470.282507999997,86821.576499999996,1666.5065946,54810.683043999998,31887.020747999999,6876.7237898000003,742.46966563000001,3053.2304963000001]
[3391,"2012-02-09","KW60MN04 ",6012068.1537571289,1878907.2173068796,1307806.6068860022,74027.423386759154,497073.18703411822,"Winter",177262.27481999999,51277.715321000003,82471.722485000006,1583.0128285000001,55996.271862000001,30011.042207999999,6638.9361949000004,747.06969021999998,3053.2304963000001]
[3392,"2012-02-18","KW60MN03 ",5864594.4012600696,1878760.7126889727,1318484.1570241461,66636.285758917104,493640.26990590931,"Winter",210541.19329,55832.844787000002,67440.927490000002,1294.5025297,56817.064120000003,30247.740503000001,6152.8242687000002,747.06969021999998,3053.2304963000001]
[3393,"2011-11-27","KW60MN06 ",6006643.0187977608,1878214.2361067303,1316277.1963247673,82070.18093100001,479866.85885096301,"Winter",240872.73310000001,52262.196490000002,79183.041052999994,1519.8878599,56133.070571999997,24964.251634,5933.5572230999996,4955.8928413000003,3053.2304963000001]
[3394,"2012-03-19","KW60MN03 ",5627395.2417122461,1877546.5788600957,1355790.2357737762,80189.6395025401,441566.7035837794,"Winter",177288.45329999999,49589.406664000002,74577.076375999997,1431.4781485999999,57637.856378999997,27395.200456999999,5812.8215281000003,1354.3257784,3053.2304963000001]
[3395,"2012-03-17","KW60MN24 ",5599167.7301405594,1877310.4904625595,1346200.1463241652,83600.42951215888,447509.91462623543,"Winter",190669.44982000001,54274.066869000002,62289.694307999998,1195.6266003000001,55996.271862000001,24284.329011999998,5453.8987098999996,1354.3257784,3053.2304963000001]
[3396,"2012-02-10","KW60MN04 ",5888174.3876100834,1876971.973986157,1316797.7346567009,71003.951256166023,489170.28807329014,"Winter",183389.06672,53816.440012999999,87301.817620999995,1675.7246373,55449.077022999998,31334.243255000001,6476.4954072999999,747.06969021999998,3053.2304963000001]
[3397,"2012-01-03","KW60MN04 ",5854237.9313431634,1874765.4578175731,1298277.5139943948,75767.775485014441,500720.16833816387,"Winter",235421.36712000001,49783.910047999998,83083.216830999998,1594.7502261,57865.854227999997,26180.240876,6375.2875491000004,742.46966563000001,3053.2304963000001]
[3398,"2012-03-23","KW60MN03 ",5493998.051661999,1874454.1646539769,1359558.6028822358,73197.937925418402,441697.62384632271,"Winter",182235.86767000001,48954.602570000003,77768.693152000007,1492.7399986999999,57136.261109999999,31959.574625000001,6385.2656217000003,1354.3257784,3053.2304963000001]
[3399,"2011-11-24","KW60MN24 ",5632886.1216755956,1873377.9791328358,1342164.8664507521,80491.690033999999,450721.42264808359,"Winter",194321.68664999999,47858.543462000001,69174.127332999997,1327.7706306,55449.077022999998,17775.622654999999,5499.9529156999997,4955.8928413000003,3053.2304963000001]
[3400,"2012-01-30","KW60MN01 ",5860752.3578346903,1872567.1581870883,1356372.7933534579,74106.808135782267,442087.55669784796,"Winter",181624.26636000001,50157.599173000002,71519.256833000007,1372.7844846999999,55403.477453,27641.222969999999,5689.37039,742.46966563000001,3053.2304963000001]
[3401,"2011-11-17","KW60MN01 ",5847526.6566872885,1872092.5820460599,1303098.516630278,76279.589751000007,492714.47566478176,"Winter",218008.34445999999,56140.315993999997,98043.530012000003,1881.9076537000001,57136.261109999999,36286.146093000003,6579.9006754000002,4955.8928413000003,3053.2304963000001]
[3402,"2012-01-25","KW60MN03 ",5941872.2260820586,1871006.4253963414,1314177.8914420595,73990.435500597552,482838.09845368424,"Winter",184926.36869,50500.657830999997,84435.268410000004,1620.7023334,55905.072721999997,32657.995989999999,6873.2092866000003,742.46966563000001,3053.2304963000001]
[3403,"2011-11-09","KW60MN02 ",5880175.284054447,1870017.3058789787,1354610.5417955089,86003.248864999987,429403.51521846972,"Winter",189151.19349000001,50247.392090000001,98500.356043000007,1890.6762527999999,57637.856378999997,35889.228331999999,6526.3705332999998,4955.8928413000003,3053.2304963000001]
[3404,"2012-03-09","KW60MN05 ",5818643.8861601455,1869493.3789181807,1324739.9194196367,78273.77971625542,466479.67978228861,"Winter",209039.48133000001,55857.742185000003,79990.983426999999,1535.3960013999999,56361.068421000004,32175.442050000001,6776.0881384000004,1354.3257784,3053.2304963000001]
[3405,"2011-11-06","KW60MN03 ",5671056.7519257935,1869207.0077348033,1367179.1055415804,75389.043558999998,426638.85863422306,"Winter",187538.55684999999,49490.797224000002,86073.932446999999,1652.1558560000001,54947.481754,27066.416281999998,5874.4201285999998,4955.8928413000003,3053.2304963000001]
[3406,"2012-02-09","KW60MN03 ",5930817.9686512575,1866522.1389443818,1297743.867828768,72789.683230103125,495988.58788551058,"Winter",184701.33976999999,50945.004467999999,84251.337748999998,1617.1718555,56087.471001999998,30463.198297999999,6577.6321621999996,747.06969021999998,3053.2304963000001]
[3407,"2012-01-26","KW60MN02 ",5909906.1613430297,1866420.7567766353,1306339.8039603303,74537.788863129783,485543.16395317524,"Winter",205495.06378999999,55102.301003,83720.63996,1606.9853166,57409.858528999997,32809.327998000001,6392.0271454000003,742.46966563000001,3053.2304963000001]
[3408,"2011-11-03","KW60MN05 ",5946427.0315077556,1866194.4499563461,1350165.6874506201,77479.098689000006,438549.66381672601,"Winter",195228.1403,47946.445174,111244.59698,2135.2970304999999,55722.674442000003,39703.438749000001,7991.7353169999997,4955.8928413000003,3053.2304963000001]
[3409,"2012-03-22","KW60MN03 ",5568017.9943117751,1865792.0470597369,1348196.1327506131,73027.630474157733,444568.28383496613,"Winter",190811.67209000001,50079.373622999999,79016.342241000006,1516.6881406,55084.280463000003,30008.956103,6548.3768056999997,1354.3257784,3053.2304963000001]
[3410,"2012-03-17","KW60MN06 ",5596491.5934622074,1865176.1390885124,1346674.7295921762,85242.762944244692,433258.64655209135,"Winter",158207.18328,49975.384610000001,72420.153030999994,1390.0768389,55722.674442000003,28542.880814,5845.6709548999997,1354.3257784,508.44768959999999]
[3411,"2012-03-21","KW60MN05 ",5795291.697844686,1864767.1872022701,1339163.618675336,75667.182594821643,449936.38593211252,"Winter",190212.82086000001,53124.589628000002,84957.728805000006,1630.7307587,51801.111428999997,33696.676477000001,7916.4697696000003,1354.3257784,3001.226631]
[3412,"2012-03-21","KW60MN01 ",5667446.2202597866,1864676.4759048822,1350610.4655422918,75598.510006969853,438467.50035562058,"Winter",168881.74913000001,49159.154893999999,81660.041207000002,1567.4329201999999,51664.312719000001,32018.834941000001,6328.4681425999997,1354.3257784,3053.2304963000001]
[3413,"2011-12-27","KW60MN01 ",5940894.3135862481,1864066.6915495077,1332666.5635875096,79946.741267999998,451453.38669399801,"Winter",230770.57504,51611.515585000001,75477.591805999997,1448.7631941,57957.053368000001,25942.985041,6071.47606,816.33821894000005,3053.2304963000001]
[3414,"2012-03-18","KW60MN06 ",5545286.2793908194,1863528.4820064765,1329928.6468728401,79341.235022969762,454258.60011066665,"Winter",187505.05476,51581.423396999999,73053.048274000001,1402.2250184,55540.276163000002,24128.666682999999,6231.0744347,1354.3257784,406.67333975000003]
[3415,"2011-12-28","KW60MN24 ",5881113.8122063568,1862818.757010357,1326647.9392149607,74125.698789000002,462045.11900639627,"Winter",176507.38078000001,57107.342472999997,84558.362322999994,1623.0650734999999,55540.276163000002,30201.565280999999,5582.1069556000002,816.33821894000005,3053.2304963000001]
[3416,"2011-12-31","KW60MN02 ",5607528.1631050594,1862473.3180269001,1323428.1784034544,76304.508774000002,462740.6308494457,"Winter",205076.30353,51669.310646999998,76830.109930000006,1474.7242566,56315.468850999998,25450.974850999999,5725.9984149000002,816.33821894000005,3053.2304963000001]
[3417,"2012-03-13","KW60MN01 ",5509419.0037635798,1860738.2568347042,1367783.6852989127,76825.255644475736,416129.31589131575,"Winter",153017.87765000001,48283.397984000003,76327.756093999997,1465.0817689999999,55403.477453,32933.755693999999,5961.6495433999999,1354.3257784,3053.2304963000001]
[3418,"2011-11-09","KW60MN04 ",5904211.0984225189,1859313.6745641294,1341486.1205155994,90308.014533999987,427519.53951452993,"Winter",188616.66500000001,49359.905525000002,98155.110266999996,1884.0493936,57273.059820000002,35547.923870999999,6487.4265937,4955.8928413000003,3053.2304963000001]
[3419,"2011-12-18","KW60MN02 ",5867160.2095633019,1859170.7887861282,1281761.4214342169,80426.437044999999,496982.93030691112,"Winter",252653.81127999999,58381.409535999999,75020.134682000004,1439.9824814999999,57318.659389,25524.874185000001,6545.8526613000004,816.33821894000005,3053.2304963000001]
[3420,"2011-12-25","KW60MN04 ",5706941.1032828847,1858997.650706674,1290555.8166858037,82701.945189999984,485739.88883087033,"Winter",236495.77637000001,49390.431550000001,69994.269805000004,1343.5129482,56269.869280999999,17119.362633000001,6618.4383146,816.33821894000005,3053.2304963000001]
[3421,"2012-02-22","KW60MN02 ",5861576.0374925099,1858807.8543904095,1335250.4513725215,69594.579479824344,453962.82353806379,"Winter",140048.94308,47925.281984000001,79089.155517000007,1518.0857633000001,54445.886484000002,33251.119733,6085.4680465000001,747.06969021999998,3053.2304963000001]
[3422,"2011-11-12","KW60MN24 ",5836885.1557883322,1857496.6495159022,1318557.6312664698,76355.315316000007,462583.70293343242,"Winter",202014.59805,56261.208565000001,82771.781266000005,1588.7723407999999,55905.072721999997,28528.058105,5871.4541325999999,4955.8928413000003,3053.2304963000001]
[3423,"2011-12-26","KW60MN01 ",5760180.976096306,1856588.9061093964,1317037.4868253467,77809.636181000009,461741.78310304973,"Winter",238747.37984000001,50826.274653,65505.453607000003,1257.3518568,56178.670141000002,16433.108828,6273.4482310000003,816.33821894000005,3053.2304963000001]
[3424,"2011-11-26","KW60MN05 ",5848953.0679412782,1855556.5060109787,1333133.0972258479,81736.832731000002,440686.57605413086,"Winter",204819.77564000001,49913.140313999997,72710.092506999994,1395.6421150000001,55905.072721999997,21222.658181999999,5781.3772255000003,4955.8928413000003,3053.2304963000001]
[3425,"2012-03-28","KW60MN24 ",5558119.1207445487,1855535.7224101853,1361251.9815771515,85044.455159134421,409239.28567389934,"Winter",122480.26976,51386.102150999999,78549.904326999997,1507.7350452000001,41541.208197,31859.469391999999,5871.3694861000004,1354.3257784,3053.2304963000001]
[3426,"2012-03-23","KW60MN24 ",5525875.913331965,1855252.0497417464,1337618.1907813672,80076.401667359212,437557.45729301992,"Winter",186595.11418,58872.724602000002,66920.303650000002,1284.5093563,57273.059820000002,30536.153534000001,5607.1401685999999,1354.3257784,3053.2304963000001]
[3427,"2012-03-19","KW60MN02 ",5569475.1384259146,1855213.7375334953,1346072.4424763322,78535.37405427247,430605.92100289057,"Winter",185874.04019,48132.933829000001,71166.643251999994,1366.0162032999999,57729.055519000001,27285.665922,5661.4050384000002,1354.3257784,3053.2304963000001]
[3428,"2011-11-03","KW60MN01 ",5771056.8224728834,1854686.8154134532,1342548.2583466244,77901.502949999995,434237.05411682883,"Winter",171279.0618,45704.056550000001,103944.17284,1995.1682115000001,54993.081323999999,38625.136798,6091.0394477999998,4955.8928413000003,3053.2304963000001]
[3429,"2012-03-08","KW60MN24 ",5657973.2223194428,1854610.6090843801,1325557.6566998335,82125.204861440478,446927.74752310617,"Winter",183163.51847000001,58584.952788000002,77925.482334999993,1495.7495064,55813.873582,32163.000348000001,6474.3352402,1354.3257784,3053.2304963000001]
[3430,"2012-02-10","KW60MN03 ",5816357.4281146685,1853710.7646893496,1302994.4990186882,68430.195737770642,482286.06993289071,"Winter",187010.23913,53678.279141999999,85865.451050000003,1648.1541362,55768.274012000002,31271.52491,6554.8014384999997,747.06969021999998,3053.2304963000001]
[3431,"2012-03-20","KW60MN02 ",5799267.4809505697,1852637.4903004845,1350210.5134298406,76095.622770062648,426331.35410058132,"Winter",155252.80955999999,47303.468885000002,76187.097448,1462.3818805999999,57637.856378999997,30615.599141999999,6220.1060031999996,1354.3257784,3053.2304963000001]
[3432,"2012-03-26","KW60MN24 ",5588199.5960048269,1852278.4779263309,1352238.5799313991,85152.942346502314,414886.95564842952,"Winter",141268.66938000001,45899.469384000004,75821.225976000002,1455.3591191999999,55677.074871999997,32516.529189000001,5926.2116421000001,1354.3257784,3053.2304963000001]
[3433,"2011-12-25","KW60MN03 ",5675714.7500427542,1851391.6434368636,1293281.4450850612,80019.689350000001,478090.5090018023,"Winter",226522.75133999999,50131.821248,69239.093169,1329.0176246999999,56497.867130999999,17032.648073,6567.2037731,816.33821894000005,3053.2304963000001]
[3434,"2012-03-31","KW60MN07 ",5600079.1484518629,1850309.9405922377,1302750.7665988633,89075.646125729982,458483.52786764444,"Winter",190030.73735000001,51568.083726999997,72553.444218000004,1392.6353117000001,51709.912289,25988.932800999999,5768.7802055000002,1354.3257784,0]
[3435,"2012-03-27","KW60MN24 ",5578144.6820927346,1850008.2495819393,1359831.9524402146,94286.792002772432,395889.50513895223,"Winter",136315.65896,53133.724297000001,77257.803025999994,1482.9336602000001,40674.816369,32990.784936999997,5869.5445183000002,1354.3257784,3053.2304963000001]
[3436,"2012-01-30","KW60MN04 ",5894063.452009636,1849364.371543267,1317800.3411821201,78602.135160233651,452961.89520091325,"Winter",181284.49726999999,51643.884612000002,74432.441590999995,1428.7019398,52758.702397000001,26860.921075999999,5819.3663585000004,742.46966563000001,3053.2304963000001]
[3437,"2012-02-22","KW60MN04 ",5879461.7494437136,1848826.31864104,1319775.9894071165,72176.296971317643,456874.03226260596,"Winter",129454.84161,47939.445943999999,77240.496310000002,1482.6014645,55449.077022999998,32359.847161999998,6107.8145953000003,747.06969021999998,3053.2304963000001]
[3438,"2011-11-27","KW60MN24 ",5850966.1397880353,1847641.2200548751,1347010.5609804981,77999.548209000015,422631.11086537724,"Winter",196791.11202,48194.305632000003,75671.916440000001,1452.4931804,56908.26326,26602.043317,5571.5228166999996,4955.8928413000003,3053.2304963000001]
[3439,"2012-01-26","KW60MN04 ",5946113.08178428,1846947.0178573895,1284722.1449997632,72660.383896185158,489564.48896144115,"Winter",198595.25429000001,56143.317499999997,84795.114872999999,1627.6094470999999,57273.059820000002,31820.666800999999,6520.8448418999997,742.46966563000001,3053.2304963000001]
[3440,"2011-11-23","KW60MN01 ",5780711.0518982513,1846349.1075846094,1331951.3549191859,75538.005028,438859.74763742345,"Winter",145243.80236999999,52883.980666000003,86898.142460000003,1667.9762486,56725.864979999998,35683.392234999999,5383.6289714000004,4955.8928413000003,3053.2304963000001]
[3441,"2011-12-28","KW60MN01 ",5761639.867604306,1845824.1934486965,1317174.9795208105,71643.697967999993,457005.5159598859,"Winter",194630.71987999999,55015.511198,83748.702357000002,1607.5239634,56908.26326,29216.340046000001,5644.555402,816.33821894000005,3053.2304963000001]
[3442,"2012-01-05","KW60MN01 ",5789118.7793269195,1845306.9590950632,1323659.7894793805,81822.077727897078,439825.0918877857,"Winter",172917.62254000001,47935.321282999997,79274.535417999999,1521.6440588,55950.672292000003,34437.906065000003,6258.7198239999998,742.46966563000001,3053.2304963000001]
[3443,"2011-12-28","KW60MN05 ",5935778.4058567677,1844004.5645809178,1296437.3593694908,71905.146198000002,475662.05901342706,"Winter",173310.00294999999,52009.743791000001,80940.009195000006,1553.6121840999999,57546.657239,29395.109791999999,5951.6782429000004,816.33821894000005,3053.2304963000001]
[3444,"2012-01-03","KW60MN03 ",5764003.9138718024,1843881.563951561,1277270.7976730547,76409.248373857728,490201.51790464862,"Winter",223677.02359999999,48374.964810999998,80348.932247000004,1542.2666905999999,57227.460249999996,25560.220023000002,6285.6169424999998,742.46966563000001,3053.2304963000001]
[3445,"2011-12-18","KW60MN04 ",5838842.1550134132,1841445.7466722995,1264012.8253600809,79524.631813,497908.28949921863,"Winter",242367.75735999999,54277.243516000002,79659.575192000004,1529.0347483999999,57409.858528999997,25821.326099999998,6626.3205524000005,816.33821894000005,3053.2304963000001]
[3446,"2012-02-11","KW60MN02 ",5798540.6221569441,1841375.2585157314,1293059.4224090348,70168.209902992632,478147.62620370393,"Winter",171135.76907000001,56400.545615000003,69458.315432999996,1333.2255113000001,55677.074871999997,30509.185977000001,6117.4236112999997,747.06969021999998,3053.2304963000001]
[3447,"2011-11-28","KW60MN05 ",6036857.5527707338,1841032.4070631731,1305853.4407589829,71316.905574000004,463862.06073019019,"Winter",209039.03619000001,48903.207401,89082.219110999999,1709.8987555000001,58048.252507999998,29063.629528000001,6870.3854961999996,4955.8928413000003,3053.2304963000001]
[3448,"2011-12-27","KW60MN02 ",5867266.8919972628,1840897.2182211629,1315402.7057907386,77635.476118000006,447859.0363124244,"Winter",224738.48139,50409.879944,77384.546392999997,1485.3664501999999,57911.453798000002,26014.875612,6058.8604175,816.33821894000005,3053.2304963000001]
[3449,"2011-11-24","KW60MN05 ",5573667.6645554584,1840718.3259983398,1309352.7611991793,74848.464592000004,456517.10020716034,"Winter",202592.32631999999,48585.057388000001,77831.400097999998,1493.9436343,55357.877883000001,22944.928111000001,5865.0955237999997,4955.8928413000003,3053.2304963000001]
[3450,"2011-12-31","KW60MN04 ",5582313.046054936,1840606.8844453059,1302484.2791448792,79392.218979999991,458730.38632042677,"Winter",206341.65669,49935.402556000001,77212.764502999999,1482.0691632,56680.265411,23111.531515999999,5826.1922136000003,816.33821894000005,3053.2304963000001]
[3451,"2012-01-26","KW60MN03 ",5874628.7599003175,1840323.6642298028,1285388.6988484021,71328.668109851904,483606.29727154889,"Winter",217294.11715000001,54324.843418999997,84022.419548999998,1612.7778590999999,57181.860679999998,32197.218185999998,6483.7292556000002,742.46966563000001,3053.2304963000001]
[3452,"2012-03-03","KW60MN02 ",5784706.4698798284,1839914.1227975781,1299224.7302257747,81884.137935900551,458805.25463590282,"Winter",197862.61726,56074.231441000004,68403.303356000004,1312.9749623,56224.269711000001,28273.675213999999,6048.5962409000003,1354.3257784,3053.2304963000001]
[3453,"2011-12-27","KW60MN04 ",5949060.7868453478,1839727.7942964286,1298805.278959356,75837.685561000006,465084.8297760727,"Winter",227016.87805999999,51659.390250999997,82490.994821,1583.3827535,57911.453798000002,25981.581267000001,6137.4593236999999,816.33821894000005,3053.2304963000001]
[3454,"2012-03-03","KW60MN24 ",5730207.8784646485,1839162.1749244325,1307293.3949049392,79811.914645110315,452056.86537438311,"Winter",172280.12891,55557.170586,65084.256544000003,1249.2671419999999,55768.274012000002,23398.441969,5558.7785127999996,1354.3257784,3053.2304963000001]
[3455,"2012-03-10","KW60MN07 ",5759354.8066179063,1838278.1603893444,1322604.8569168341,78013.549910469839,437659.75356204045,"Winter",190241.59599,44365.651528000002,66156.716459000003,1269.8525953999999,52713.102828000003,26364.102527999999,5776.0428339,1354.3257784,0]
[3456,"2011-12-18","KW60MN03 ",5831249.6805669283,1838143.5889347701,1266682.3864378708,76178.168896000003,495283.03360089945,"Winter",249838.32126999999,55627.903617000004,76102.436709000001,1460.7568504999999,57455.458099000003,25078.785759999999,6504.2271358999997,816.33821894000005,3053.2304963000001]
[3457,"2011-11-12","KW60MN01 ",5674534.426567412,1838101.7325159418,1301155.6803785942,76255.357896999994,460690.69424034772,"Winter",187834.94597999999,56490.884845,91856.529070999997,1763.1505626000001,57637.856378999997,35395.974526999998,5683.174301,4955.8928413000003,3053.2304963000001]
[3458,"2012-03-20","KW60MN04 ",5818200.8158666827,1837975.4165121566,1336160.3812202828,75207.485804164156,426607.54948770977,"Winter",176067.90031,49140.503137,78556.901582999999,1507.8693548000001,58367.449498000002,30791.555240999998,6779.1607887999999,1354.3257784,3053.2304963000001]
[3459,"2012-03-20","KW60MN03 ",5762526.6801461512,1837837.0338303554,1333663.6044115818,76513.605035440036,427659.82438333367,"Winter",181660.47109000001,48893.020276000003,78440.754056000005,1505.6399478999999,57273.059820000002,30147.665922,6357.1089701000001,1354.3257784,3053.2304963000001]
[3460,"2011-11-26","KW60MN02 ",5781047.9438246842,1837413.5728705544,1324687.8483583173,78863.286294000005,433862.43821823725,"Winter",196754.73770999999,52604.625281000001,70975.725326,1362.3516075,55905.072721999997,19475.385818999999,5700.6249243000002,4955.8928413000003,3053.2304963000001]
[3461,"2011-11-09","KW60MN03 ",5852363.3185315663,1836009.760209346,1334174.7857330546,86686.454196000006,415148.52028029133,"Winter",195966.47936,48927.495819999996,96150.492197,1845.5715247000001,57364.258958999999,35530.874496999997,6488.4017156,4955.8928413000003,3053.2304963000001]
[3462,"2012-03-12","KW60MN01 ",5420854.0689012026,1834591.8896213381,1317805.347727125,71640.132259842037,445146.409634371,"Winter",183506.74269000001,44938.34951,69343.172879000005,1331.0153945,56680.265411,27606.568750999999,5615.0545708999998,1354.3257784,3053.2304963000001]
[3463,"2012-02-22","KW60MN03 ",5827525.5246325899,1834115.3439563939,1309085.8866158405,68648.737862217575,456380.71947833599,"Winter",125964.63578,47116.530325,78723.531612999999,1511.0677538,54765.083473999999,32790.046139999999,6120.9245702999997,747.06969021999998,3053.2304963000001]
[3464,"2011-11-17","KW60MN05 ",6005898.2622867702,1833005.4934367186,1254620.5662905213,75195.522051000007,503189.40509519726,"Winter",241282.20900999999,52555.987384,98839.028623000006,1897.1769420000001,56862.663690000001,36006.040510999999,7283.0043629000002,4955.8928413000003,3053.2304963000001]
[3465,"2011-11-12","KW60MN05 ",5700814.8546139477,1831292.1773345892,1266419.8826694202,75437.917486000006,489434.37717916881,"Winter",237352.13055999999,50704.107888999999,90422.493845999998,1735.6248109000001,57546.657239,34345.607916000001,5916.8176266999999,4955.8928413000003,3053.2304963000001]
[3466,"2011-12-31","KW60MN03 ",5561015.3825198058,1831048.7791741549,1304692.1981221077,77622.730953000006,448733.85009904712,"Winter",213612.07712999999,50287.213464,80048.293242,1536.4960411,56224.269711000001,24630.744718999998,5894.0647773999999,816.33821894000005,3053.2304963000001]
[3467,"2012-01-03","KW60MN02 ",5719631.6029752633,1829843.660913578,1274660.3108333605,72530.437164910865,482652.91291530657,"Winter",228091.95501999999,48553.425883000004,77348.419762000005,1484.6730135,57181.860679999998,25437.023331,6156.2913704000002,742.46966563000001,3053.2304963000001]
[3468,"2012-01-30","KW60MN02 ",5814431.6911296248,1829450.4822764217,1313188.4053866137,78514.370748901478,437747.70614090661,"Winter",160914.85399,51232.756999999998,73563.106129000007,1412.0153817,55996.271862000001,27360.760775999999,5618.3489940999998,742.46966563000001,3053.2304963000001]
[3469,"2012-03-15","KW60MN01 ",5526463.7584648887,1828755.9500503654,1301843.4342838957,71918.491106693633,454994.02465977607,"Winter",187453.15354,48186.878993999999,80512.626822999999,1545.4087446999999,55540.276163000002,32229.118833,6164.8727836999997,1354.3257784,3053.2304963000001]
[3470,"2011-11-26","KW60MN04 ",5776781.6316634715,1828591.8625278517,1307929.9355281815,80365.841507000005,440296.0854926703,"Winter",192061.03200000001,49735.402302000002,71251.696242000005,1367.6487626000001,56315.468850999998,20330.375005999998,5721.7119401,4955.8928413000003,3053.2304963000001]
[3471,"2012-03-29","KW60MN24 ",5582218.1218251418,1825385.5487970146,1323087.1031088501,93627.784293244258,408670.66139492008,"Winter",129227.63997,51762.428037999998,77462.563316,1486.8639548000001,48426.743255000001,31461.266416999999,5897.9991241999996,1354.3257784,3053.2304963000001]
[3472,"2012-02-11","KW60MN05 ",5849599.224736521,1825247.9310035636,1278559.6306074779,68451.952585238469,478236.3478108471,"Winter",174491.41540999999,51448.773857,66038.552788000001,1267.5844893999999,55038.680892999997,28710.697323,6212.0798682000004,747.06969021999998,3053.2304963000001]
[3473,"2011-11-03","KW60MN02 ",5699844.6235384904,1824829.4161203785,1318262.3326828354,74104.173616999993,432462.90982054319,"Winter",171335.99734,43418.150907000003,103226.97684,1981.4019115999999,56634.665841000002,38067.747743,6072.1667717,4955.8928413000003,3053.2304963000001]
[3474,"2012-03-03","KW60MN04 ",5752488.1923070839,1823667.4850528454,1289969.7108704045,83256.114533421336,450441.65964901971,"Winter",189425.06064000001,51579.537012000001,69276.190094000005,1329.7296858,55813.873582,27056.038877999999,6059.6391600999996,1354.3257784,3053.2304963000001]
[3475,"2011-11-26","KW60MN03 ",5753192.9962644661,1823249.3896965862,1312542.4287117368,77569.256718999997,433137.70426584937,"Winter",185649.75317000001,51941.136557999998,69419.796711999996,1332.4861593000001,56041.871432,20616.490970999999,5699.6498025000001,4955.8928413000003,3053.2304963000001]
[3476,"2011-11-25","KW60MN05 ",5644411.7993856939,1822957.2184037089,1310956.8876436206,71425.728376999992,440574.60238308838,"Winter",210956.82696999999,49555.422801000001,76785.951790000006,1473.8766582000001,54126.689494999999,19230.357779000002,5909.1385403000004,4955.8928413000003,3053.2304963000001]
[3477,"2012-03-05","KW60MN05 ",5826638.7681852989,1821472.8550056904,1321141.4740254842,77031.376877959221,423300.00410224713,"Winter",158900.31943,49860.006585000003,75275.108663999999,1444.8766085,56087.471001999998,29872.523585999999,6028.5029694000004,1354.3257784,3053.2304963000001]
[3478,"2012-03-30","KW60MN24 ",5485331.5205633165,1820393.3656044516,1303258.1008542965,85094.228777952463,432041.03597220266,"Winter",149893.13185000001,56086.476879000002,67839.669309000004,1302.1562246999999,51345.115729999998,27608.972535000001,5853.2501602000002,1354.3257784,3053.2304963000001]
[3479,"2011-11-27","KW60MN01 ",5849394.6194583271,1819183.6601279667,1295190.9848155074,78797.338529000001,445195.33678345918,"Winter",200923.57024,56780.014407000002,72372.231299000006,1389.1569998,55859.473151999999,25540.580577000001,5639.2125444000003,4955.8928413000003,3053.2304963000001]
[3480,"2011-12-27","KW60MN03 ",5853653.8165365532,1816746.3196280631,1286584.530484956,74555.324152000001,455606.46499110712,"Winter",233687.15424,51477.211039000002,79979.257912000001,1535.1709346,57820.254658999998,25729.340468999999,6097.0933300999995,816.33821894000005,3053.2304963000001]
[3481,"2012-03-10","KW60MN23 ",5691611.4307912635,1815758.3009327003,1310879.3360487474,77163.009978898714,427715.95490505412,"Winter",155807.71909999999,54853.826744999998,62247.401429999998,1194.8148048,55038.680892999997,25451.145767999998,5376.8031164000004,1354.3257784,3053.2304963000001]
[3482,"2012-03-03","KW60MN03 ",5733709.4233600181,1815737.8138462177,1278835.6956365658,83553.495349170887,453348.62286048103,"Winter",190404.84581999999,53077.597095999998,68394.802546999999,1312.8117926,55813.873582,27911.589360999998,6063.6987839000003,1354.3257784,3053.2304963000001]
[3483,"2011-11-24","KW60MN02 ",5523387.0513118692,1811610.4250649996,1301261.942179794,75250.239329999997,435098.24355520564,"Winter",180049.29704999999,49908.056391999999,77211.993319999994,1482.0543607,55403.477453,27472.644498000001,5409.4290776999997,4955.8928413000003,3053.2304963000001]
[3484,"2012-03-25","KW60MN07 ",5434246.6406232947,1811586.9905473406,1266452.84741639,89717.915471332177,455416.22765961848,"Winter",173440.71517000001,47720.366522999997,69136.253253999996,1327.0436523000001,56361.068421000004,25345.392784,5593.3225522000002,1354.3257784,0]
[3485,"2011-11-03","KW60MN04 ",5712200.8654526602,1811286.8310877355,1315368.0335999671,74590.147096999994,421328.65039076842,"Winter",172893.37301000001,44183.187911000001,104235.58808,2000.7618144,55403.477453,38780.722580000001,6649.4187576000004,4955.8928413000003,3053.2304963000001]
[3486,"2011-11-24","KW60MN04 ",5508932.8920567436,1810950.0031198813,1294244.2472738426,74275.878102999995,442429.8777430387,"Winter",188347.27045000001,48302.761554999997,78255.145533000003,1502.0772641000001,55585.875732,25093.161093999999,5483.0507985000004,4955.8928413000003,3053.2304963000001]
[3487,"2012-03-13","KW60MN04 ",5462295.0500875218,1809991.0828138273,1308875.3192235108,79250.094476715283,421865.66911360121,"Winter",149510.30074999999,49245.573527,79294.699850000005,1522.0311073,56224.269711000001,32160.181096,6480.9833385000002,1354.3257784,3053.2304963000001]
[3488,"2012-03-30","KW60MN06 ",5875300.7853029808,1808717.4999921867,1281090.0027885174,92081.713111153891,435545.78409251553,"Winter",173275.96033,56774.826043000001,87327.218196999995,1676.2121915,52348.306268,33103.534734000001,7870.6779668999998,1354.3257784,0]
[3489,"2011-11-17","KW60MN02 ",5746783.3339405162,1807955.8929032057,1259771.735741687,71458.067993999997,476726.08916751877,"Winter",207170.07303999999,52737.302136999999,96092.895428000003,1844.4659770000001,56543.466700999998,36748.882436,6531.2055141999999,4955.8928413000003,3053.2304963000001]
[3490,"2011-11-27","KW60MN05 ",5822954.3127617221,1807482.8095227531,1269431.8462274491,77260.71891299999,460790.24438230396,"Winter",226836.17236999999,50463.749588999999,77574.417549999998,1489.0109536,56269.869280999999,24972.643412000001,5729.1472469999999,4955.8928413000003,3053.2304963000001]
[3491,"2012-02-11","KW60MN03 ",5747345.0731323846,1807197.5343310786,1263854.9389274027,66703.256293924045,476639.33910975175,"Winter",177555.99309999999,51627.986913000001,69497.767129999993,1333.9827713,55449.077022999998,30072.682476000002,6100.3098790000004,747.06969021999998,3053.2304963000001]
[3492,"2012-03-17","KW60MN01 ",5407529.3360007275,1806363.0671451292,1310422.789627024,80057.020974942017,415883.25654316333,"Winter",123074.66959,51553.278653000001,69319.935427000004,1330.5693606,56634.665841000002,29296.219051,5373.7677098000004,1354.3257784,3053.2304963000001]
[3493,"2012-03-16","KW60MN01 ",5501271.7696827119,1805928.9243438374,1314287.0927434834,73152.196071854079,418489.63552849996,"Winter",149239.65557,50406.393184,78655.657879999999,1509.7649437,56087.471001999998,32114.491635999999,6130.0680339,1354.3257784,3053.2304963000001]
[3494,"2011-11-03","KW60MN03 ",5660487.0412738323,1805801.7693046601,1308853.2801222205,74488.53117799999,422459.95800443977,"Winter",168800.58525,44443.735678999998,100080.73917,1921.0110958,55722.674442000003,38062.412081000002,6121.6542196999999,4955.8928413000003,3053.2304963000001]
[3495,"2012-01-30","KW60MN03 ",5752815.7085499838,1805330.6827207359,1293925.7361919258,77204.457534360321,434200.48899444978,"Winter",181027.97998,49481.019833999999,74609.741181999998,1432.1051368999999,50341.925192000002,26611.674537999999,5756.3287756,742.46966563000001,3053.2304963000001]
[3496,"2011-11-13","KW60MN06 ",5745245.9968633149,1804047.348846145,1247821.7072312741,74785.354193000006,481440.28742187092,"Winter",187970.53352999999,51158.206207000003,85968.223446999997,1650.1268127000001,56133.070571999997,28575.621952000001,6037.1030041000004,4955.8928413000003,2930.0693977000001]
[3497,"2011-12-26","KW60MN02 ",5595564.3025063686,1800947.4560743882,1270062.2616832748,75998.414227000001,454886.78016411338,"Winter",237998.94034,49999.411120999997,67052.291198000006,1287.0428062999999,56634.665841000002,16643.443394000002,6229.9130912000001,816.33821894000005,3053.2304963000001]
[3498,"2012-03-13","KW60MN02 ",5403480.466986469,1800327.6220275084,1307904.0723729166,76944.509425937562,415479.04022865416,"Winter",144271.08644000001,47727.743350999997,77143.652237999995,1480.7425800000001,55859.473151999999,32501.525592000002,5997.2178010999996,1354.3257784,3053.2304963000001]
[3499,"2012-01-05","KW60MN02 ",5698698.2446301654,1798772.9117377179,1290719.8525024885,78518.265100065168,429534.79413516429,"Winter",149494.74205,47688.415265000003,80840.105079999994,1551.6945631999999,54217.888635000003,33738.906095999999,6221.2588818000004,742.46966563000001,3053.2304963000001]
[3500,"2012-01-05","KW60MN04 ",5821589.0162435062,1798590.3556109457,1283740.5250916912,78786.765483774696,436063.0650354799,"Winter",149176.39267999999,48681.566738000001,82400.307581000001,1581.642047,55722.674442000003,32515.404996000001,6270.8479049999996,742.46966563000001,3053.2304963000001]
[3501,"2012-03-12","KW60MN02 ",5380898.9490244593,1798174.7469464315,1278901.0537522403,71898.850610301553,447374.84258388955,"Winter",184334.73509,44630.376981000001,69577.090792000003,1335.5053584,56543.466700999998,27823.297762999999,5719.3198437000001,1354.3257784,3053.2304963000001]
[3502,"2011-12-28","KW60MN02 ",5718916.8251813035,1797731.4016076927,1275223.7634046632,70466.056901000004,452041.58130202966,"Winter",175986.42907000001,53531.359592000001,86728.123863999994,1664.7128074,56908.26326,27945.190129999999,5643.6412247999997,816.33821894000005,3053.2304963000001]
[3503,"2012-03-21","KW60MN02 ",5558493.8334295535,1796638.9048634665,1289312.0029586477,73693.722133148171,433633.17977167061,"Winter",174800.91497000001,48478.940969000003,83143.269880000007,1595.9029211,51299.516159999999,31208.757427,6434.9308265,1354.3257784,3053.2304963000001]
[3504,"2012-02-11","KW60MN04 ",5758525.4043545974,1795962.9460511934,1257855.1733076789,68037.371298088619,470070.40144542581,"Winter",170919.44158000001,51559.243102,68436.860717000003,1313.6190829,54947.481754,29707.844018,6092.4140991000004,747.06969021999998,3053.2304963000001]
[3505,"2012-03-04","KW60MN05 ",5588947.9761794219,1792852.7816339266,1253901.4836554197,80488.177555330636,458463.12042317644,"Winter",174346.37392000001,51567.230515000003,67159.593202000004,1289.1024268000001,55905.072721999997,23602.81783,5698.8913739999998,1354.3257784,3053.2304963000001]
[3506,"2011-11-25","KW60MN01 ",5482065.9746538755,1792640.2121168666,1292681.1139355265,69704.890781000009,430254.20740034012,"Winter",211161.23107000001,48459.349232,67972.02132,1304.6966703999999,55449.077022999998,17928.237276,5426.7578106999999,4955.8928413000003,3053.2304963000001]
[3507,"2011-11-24","KW60MN03 ",5476552.5073056063,1792047.690651736,1279279.200396514,71808.332009999998,440960.15824522194,"Winter",187111.29652999999,48754.639273000001,75533.791007000007,1449.8419160999999,55859.473151999999,26507.025913000001,5393.2176722000004,4955.8928413000003,3053.2304963000001]
[3508,"2011-12-30","KW60MN01 ",5663951.8806125773,1790928.1113420269,1259897.4398016436,70853.743201999998,460176.92833838327,"Winter",189153.20722000001,53487.985579,73650.203626999995,1413.6871845000001,55084.280463000003,26957.362894999998,5471.7962642000002,816.33821894000005,3053.2304963000001]
[3509,"2012-03-24","KW60MN06 ",5497870.7644181363,1788108.834975441,1244689.3344115722,80447.243541333461,462972.25702253531,"Winter",192013.74116000001,53279.162375,69793.370710999996,1339.6567677999999,56269.869280999999,28419.899964,6060.9613316000004,1354.3257784,20.877877062]
[3510,"2011-12-26","KW60MN04 ",5579052.929651821,1787811.3437297307,1254644.6506737829,78679.685507000002,454487.00754894788,"Winter",236462.16829,49417.482062000003,70913.154794999995,1361.1505904000001,56224.269711000001,17517.065910000001,6351.0720153000002,816.33821894000005,3053.2304963000001]
[3511,"2012-03-04","KW60MN24 ",5576498.6591514479,1785715.7884277562,1297558.8187485461,75637.332213534508,412519.63746567571,"Winter",153289.5085,52276.850524000001,66424.581802999994,1274.9941670999999,53488.295515999998,28730.331407000001,5357.9016601000003,1354.3257784,3053.2304963000001]
[3512,"2012-03-21","KW60MN03 ",5549082.1468178397,1785497.3015029442,1281441.6558154703,73011.050908277102,431044.59477919689,"Winter",179918.76501,49271.722623000001,81199.985071999996,1558.6023204999999,51573.113579999997,31241.196134999998,6513.6651660999996,1354.3257784,3053.2304963000001]
[3513,"2011-11-12","KW60MN02 ",5576407.8001013892,1785359.6193192548,1256063.2474528193,71794.291784000001,457502.08008243545,"Winter",200740.62825000001,53940.918964999997,90256.229082000005,1732.4334229999999,56999.462399999997,35181.822178000002,5691.4831545999996,4955.8928413000003,3053.2304963000001]
[3514,"2011-11-13","KW60MN24 ",5670525.9590634136,1783870.7464351414,1268316.7067471626,77336.941218000007,438217.09846997884,"Winter",172971.57988999999,47529.653585,80144.295740999994,1538.3387720000001,56497.867130999999,30067.798126000002,5634.3166189000003,4955.8928413000003,3053.2304963000001]
[3515,"2011-11-27","KW60MN02 ",5759174.8321255771,1782882.8170867169,1261867.5786070398,74748.693633000003,446266.54484667722,"Winter",196592.52653,53112.133697999998,73167.822117000003,1404.4280579000001,56589.066271000003,24950.389547999999,5687.7858163999999,4955.8928413000003,3053.2304963000001]
[3516,"2012-03-21","KW60MN04 ",5603239.9090951271,1781224.7882016881,1277444.6278196515,72292.476432206007,431487.68394983053,"Winter",164745.50722,50653.864796000002,80440.340375999993,1544.0212343000001,51892.310569000001,32340.288971999998,6933.1471328999996,1354.3257784,3053.2304963000001]
[3517,"2011-11-23","KW60MN05 ",5864740.5089265266,1781219.4873351767,1266596.8074481722,75972.404017000008,438650.27587000444,"Winter",141408.46457000001,48491.972133000003,89576.634103999997,1719.3888602,56452.267561000001,35241.094771999997,6171.9339546000001,4955.8928413000003,3053.2304963000001]
[3518,"2011-11-14","KW60MN05 ",5903512.7602851605,1781190.7425175805,1241010.9416753442,80692.599470000001,459487.20137223619,"Winter",157499.4423,47223.448537999997,95651.816751999999,1835.9996424000001,56315.468850999998,33039.604542000001,6207.5462270999997,4955.8928413000003,3053.2304963000001]
[3519,"2012-03-16","KW60MN05 ",5570273.7874330971,1780979.5582203083,1267000.874544424,73300.179658099572,440678.50401778473,"Winter",192388.05100000001,49312.411671000002,85107.230561999997,1633.6003871,55677.074871999997,33728.000622,7446.6894466000003,1354.3257784,3053.2304963000001]
[3520,"2012-03-15","KW60MN05 ",5596017.8848346472,1779436.9751165919,1256625.7194266024,71338.894631207178,451472.36105878238,"Winter",173375.15239,49606.501430999997,85878.846848999994,1648.4112634000001,53214.698097,33155.348226000002,7501.0474266000001,1354.3257784,3053.2304963000001]
[3521,"2012-03-18","KW60MN01 ",5400684.3223936595,1779185.419817362,1270465.4904506039,78632.887893321924,430087.04147343617,"Winter",195692.25185999999,50224.087033999996,63228.791384999997,1213.6522055999999,55950.672292000003,23969.409623,5446.7664367999996,1354.3257784,3053.2304963000001]
[3522,"2012-03-13","KW60MN03 ",5373011.7186772078,1779077.2754665208,1295054.834562372,76069.577284884363,407952.86361926451,"Winter",150151.59927000001,48278.294780999997,79406.210634000003,1524.1715137000001,55996.271862000001,32419.653333999999,6127.2374702999996,1354.3257784,3053.2304963000001]
[3523,"2012-03-12","KW60MN04 ",5421414.0598176941,1778872.1723496057,1257486.3780565879,69283.228303529104,452102.56598948868,"Winter",209003.90190999999,46891.306492999996,77920.441743000003,1495.6527541999999,56771.464549999997,28771.017236,6219.0817859999997,1354.3257784,3053.2304963000001]
[3524,"2011-11-12","KW60MN04 ",5556690.8821614794,1776357.8899321291,1239491.8257853023,70828.287823999999,466037.77632282668,"Winter",217884.74389000001,51942.987593999998,88635.120593,1701.3168722999999,57181.860679999998,34489.241992000003,5773.5153029000003,4955.8928413000003,3053.2304963000001]
[3525,"2011-11-27","KW60MN04 ",5747848.6312951073,1776095.9894033168,1255646.6948753151,75957.353969000003,444491.9405590017,"Winter",214687.24948,50523.599750000001,75185.409056000004,1443.1548591999999,56224.269711000001,24940.967302000001,5699.4669664000003,4955.8928413000003,3053.2304963000001]
[3526,"2011-12-26","KW60MN03 ",5525456.1523244707,1772374.5326648208,1244056.8082061242,76215.696448000002,452102.02801069658,"Winter",227621.48431,49587.889842999997,68487.408788000001,1314.5893335999999,56269.869280999999,17849.335169999998,6291.8536609000002,816.33821894000005,3053.2304963000001]
[3527,"2012-03-31","KW60MN24 ",5301256.410999299,1771615.1239734469,1270275.5698378501,93132.031715118341,408207.52242047846,"Winter",188419.93427,51865.232837000003,65238.955862000003,1252.2365356,50433.124331999999,24652.067967999999,5437.5298628999999,1354.3257784,3053.2304963000001]
[3528,"2011-11-12","KW60MN03 ",5525971.0039763153,1769719.3197727005,1238560.8235567783,70808.712172,460349.78404392232,"Winter",199630.39582000001,54249.079489999996,87559.844528000001,1680.6773639999999,57181.860679999998,34769.158275000002,5750.4983576000004,4955.8928413000003,3053.2304963000001]
[3529,"2011-11-17","KW60MN03 ",5717603.4644499505,1766771.9604621399,1222142.750639349,71360.274797999999,473268.93502479093,"Winter",217022.64528,51843.738646999998,96160.956214999998,1845.7723774999999,57136.261109999999,36544.478259000003,6479.7068767999999,4955.8928413000003,3053.2304963000001]
[3530,"2012-01-05","KW60MN03 ",5681678.9748685481,1763760.7799980468,1265522.795398308,80909.756445375097,417328.22815436369,"Winter",137765.14113999999,48091.524935000001,80946.967638999995,1553.7457486999999,52074.708849000002,33449.795127999998,6242.7318839,742.46966563000001,3053.2304963000001]
[3531,"2011-11-13","KW60MN01 ",5659355.4653372597,1763726.8310313299,1235888.4190736883,71310.796474000002,456527.61548364157,"Winter",178780.81731000001,55351.176959999997,80786.503052,1550.6656929999999,55677.074871999997,28427.109317999999,5846.3447379999998,4955.8928413000003,3053.2304963000001]
[3532,"2011-11-27","KW60MN03 ",5716962.1394811189,1763492.3159430102,1252736.4415046282,71850.452338000003,438905.42210038181,"Winter",189890.50761999999,50918.924464000003,72629.025760000004,1394.0860702,56543.466700999998,24889.168806999998,5678.2580601999998,4955.8928413000003,3053.2304963000001]
[3533,"2011-11-25","KW60MN04 ",5487004.8566120947,1761869.8507723433,1267308.7815218973,67386.003245,427175.06600544596,"Winter",201177.68165000001,48425.704404999997,73912.383851000006,1418.7196326000001,55540.276163000002,18800.007541999999,5545.7836561000004,4955.8928413000003,3053.2304963000001]
[3534,"2011-12-28","KW60MN03 ",5667242.0747213177,1759763.5890997793,1239675.1195364899,69486.611719000008,450601.85784428939,"Winter",178649.81894,51291.490433999999,85492.892586999995,1641.0030205999999,57227.460249999996,28151.111685,5625.4389450999997,816.33821894000005,3053.2304963000001]
[3535,"2011-11-28","KW60MN01 ",5708107.7150556445,1758332.860574984,1273541.9090913543,69934.364076999991,414856.5874066297,"Winter",171088.36165000001,47153.992914000002,80608.003396999993,1547.2394611,57318.659389,27062.392800000001,5527.9673616999999,4955.8928413000003,3053.2304963000001]
[3536,"2011-12-28","KW60MN04 ",5731134.5986451088,1757463.1208087383,1236440.9247572965,71245.157613999996,449777.03843744186,"Winter",178457.50781000001,50220.510291999999,84089.111476000005,1614.0579849000001,57546.657239,28028.757151999998,5679.8223187000003,816.33821894000005,3053.2304963000001]
[3537,"2012-03-18","KW60MN05 ",5313803.7268568082,1752641.1372737922,1237696.497781164,73498.019944938729,441446.61954768933,"Winter",194556.30729,48977.019065,67311.900085999994,1292.0258985,55996.271862000001,24034.713705999999,6073.0470894,1354.3257784,3053.2304963000001]
[3538,"2011-11-23","KW60MN02 ",5671124.4355678689,1751558.2486782693,1252031.1727119412,71989.244015999997,427537.83195032802,"Winter",136528.40413000001,50259.600572000003,86453.786831999998,1659.4470140999999,56634.665841000002,35538.378406999997,5415.5845362999999,4955.8928413000003,3053.2304963000001]
[3539,"2012-03-15","KW60MN02 ",5382961.6037135515,1751410.6353009478,1235926.6449334512,69732.426574632773,445751.56379286386,"Winter",166254.48980000001,47049.979799000001,79305.390423999997,1522.2363087000001,55038.680892999997,30825.551722,6243.6816122999999,1354.3257784,3053.2304963000001]
[3540,"2012-03-17","KW60MN05 ",5363127.6737956479,1751045.6366785083,1259279.6452527579,78446.141193770076,413319.85023198015,"Winter",146675.51074999999,45691.489751000001,68491.383663999994,1314.6656298,55905.072721999997,28586.019564999999,5705.3346282000002,1354.3257784,3053.2304963000001]
[3541,"2011-11-17","KW60MN04 ",5760486.5606656168,1749859.5240593171,1202994.8185893365,70117.74347300001,476746.96199698036,"Winter",205583.00016,52743.555810999998,96169.470688999994,1845.9358095,56452.267561000001,35520.907208999997,6670.8917597,4955.8928413000003,3053.2304963000001]
[3542,"2012-03-04","KW60MN01 ",5550383.9197113784,1749459.9803977436,1236615.8288791692,76759.171398470236,436084.98012010416,"Winter",196848.19594000001,57740.472279000001,65176.288991000001,1251.0336692000001,56041.871432,23941.975517999999,5510.6775663999997,1354.3257784,3053.2304963000001]
[3543,"2011-11-25","KW60MN02 ",5391401.0953749493,1748983.6572319088,1257366.1321932941,69513.538371999995,422103.98666661477,"Winter",208678.58927999999,47679.773884000002,70184.017521999995,1347.1550823,55403.477453,18459.937257000001,5510.2729576000002,4955.8928413000003,3053.2304963000001]
[3544,"2012-03-25","KW60MN24 ",5294966.4491494773,1748393.725495718,1282090.2137134059,83415.397352680578,382888.11442963156,"Winter",120912.04115,45848.029223999998,63945.809053999998,1227.4150824999999,56452.267561000001,28133.460653999999,5161.6803399,1354.3257784,3053.2304963000001]
[3545,"2012-03-24","KW60MN01 ",5309598.2999489652,1747710.9252780168,1236914.9570255252,77412.577660612704,433383.39059187885,"Winter",167812.66036000001,50418.360645000001,64726.032137000002,1242.391163,56725.864979999998,30306.215124999999,5629.4494734999998,1354.3257784,3053.2304963000001]
[3546,"2012-03-12","KW60MN03 ",5322715.25715499,1747145.7999004249,1233504.9762869424,71594.393779207472,442046.4298342751,"Winter",206065.68041999999,46417.627684999999,72486.259451000005,1391.3457261000001,56634.665841000002,27850.029854,5783.7151482999998,1354.3257784,3053.2304963000001]
[3547,"2012-03-24","KW60MN24 ",5374664.6800358966,1746984.3117004521,1250270.240663586,80916.762379594322,415797.30865727173,"Winter",154124.95170000001,58276.194533000002,58639.265555999998,1125.5580316999999,56224.269711000001,25559.693199000001,5331.7003316,1354.3257784,3053.2304963000001]
[3548,"2012-03-09","KW60MN01 ",5468358.3081599716,1743162.3042003408,1235587.928028706,75101.492822788758,432472.88334884611,"Winter",175441.10063999999,52701.823948999998,77290.573816999997,1483.5626829,56041.871432,31945.379586999999,6366.1034559999998,1354.3257784,3053.2304963000001]
[3549,"2011-11-25","KW60MN03 ",5418950.0132218525,1741928.854484092,1250829.8459792573,66720.866431999995,424378.14207283471,"Winter",216712.57339000001,48017.046448000001,70888.191712999993,1360.6714337000001,55722.674442000003,18674.515905,5474.6606850999997,4955.8928413000003,3053.2304963000001]
[3550,"2011-11-28","KW60MN04 ",5713199.9105299544,1739660.2802359154,1247286.8356867179,67105.446791999988,425267.99775719747,"Winter",197501.51324,48025.771381999999,85336.216740000003,1637.9956883,57455.458099000003,27326.122735000001,5762.1591934999997,4955.8928413000003,3053.2304963000001]
[3551,"2012-03-16","KW60MN02 ",5380311.5863061454,1737726.1824309551,1257131.3756181169,70230.415280800182,410364.39153203805,"Winter",146929.46317999999,47272.912331,75109.299536999999,1441.6939663999999,55859.473151999999,31904.917062,6185.0032990999998,1354.3257784,3053.2304963000001]
[3552,"2011-12-29","KW60MN01 ",5647242.3833574289,1736846.964042489,1235471.4900071311,66529.260695000004,434846.21334035788,"Winter",153203.35269,51922.515329000002,81530.077151999998,1564.9383104000001,55768.274012000002,29490.638454,5609.2478547999999,816.33821894000005,3053.2304963000001]
[3553,"2012-03-04","KW60MN02 ",5496392.6053951541,1736689.9902993799,1219590.165627694,77246.930183047603,439852.89448863827,"Winter",166008.34852,56221.470743999998,65931.764637999993,1265.5347322,55312.278313000003,23762.001909999999,5497.9027886000003,1354.3257784,3053.2304963000001]
[3554,"2012-03-28","KW60MN01 ",5390847.069682003,1736645.5784886281,1269452.1410630662,85801.356567048599,381392.08085851331,"Winter",137990.65760000001,48102.997500999998,76538.725921999998,1469.1312531999999,40173.221100000002,32643.075099999998,5916.63987,1354.3257784,3053.2304963000001]
[3555,"2012-03-29","KW60MN01 ",5304382.399412917,1736397.9945723624,1260144.9954367948,85194.297977340029,391058.70115822775,"Winter",133086.49601,48328.359517999997,76874.293904999999,1475.5723508999999,39215.630130999998,31345.502762,5843.5480328000003,1354.3257784,3053.2304963000001]
[3556,"2012-03-09","KW60MN04 ",5516944.5339720519,1735898.8030771897,1220384.6671190804,74294.129686144093,441220.0062719651,"Winter",193500.66811,51795.692052999999,79791.503603999998,1531.5670633,56406.667991000002,30914.051544000002,6479.8287670999998,1354.3257784,3053.2304963000001]
[3557,"2012-03-09","KW60MN02 ",5452866.41335316,1733825.1563392964,1223707.1976082383,71864.348093438413,438253.61063761963,"Winter",180568.62718000001,50175.439495999999,82004.512585000004,1574.0449151,55996.271862000001,32165.425541000001,6399.9398549999996,1354.3257784,3053.2304963000001]
[3558,"2011-12-29","KW60MN05 ",5695080.9266717676,1732746.8317121975,1214898.7827073266,67610.520764000001,450237.5282408708,"Winter",170483.42684,50213.930438000003,81469.595107999994,1563.7773809,55677.074871999997,30147.063429000002,5857.6602168999998,816.33821894000005,3053.2304963000001]
[3559,"2012-03-17","KW60MN02 ",5292221.6844273936,1732188.6226051003,1252343.4723933777,78024.624143667868,401820.52606805455,"Winter",137476.29819999999,47479.420133,66432.213940999995,1275.1406631,56406.667991000002,29120.07905,5435.4255632000004,1354.3257784,3053.2304963000001]
[3560,"2012-03-04","KW60MN04 ",5482315.2174864421,1731510.9292556394,1210236.168922791,74496.717650155173,446778.04268269334,"Winter",185422.89069,54229.002499000002,66690.905125000005,1280.1061403000001,55266.678742999997,23162.728835000002,5571.5532894999997,1354.3257784,3053.2304963000001]
[3561,"2012-03-09","KW60MN24 ",5469354.7676718906,1730974.5842816839,1248417.2199469744,77331.888438516646,405225.4758961926,"Winter",162852.69727999999,54007.197941999999,71404.519849999997,1370.5821526,52348.306268,29569.873673999999,5751.2195422000004,1354.3257784,3053.2304963000001]
[3562,"2011-11-13","KW60MN05 ",5621786.9984587319,1730844.891423563,1191731.5115959328,73482.567318999994,465630.81250863022,"Winter",177406.39423000001,49527.668510000003,82316.010387000002,1580.023995,55768.274012000002,28492.818588999999,5798.4012331000004,4955.8928413000003,3053.2304963000001]
[3563,"2011-11-13","KW60MN02 ",5589787.2877515331,1729080.4177962833,1205278.2235714695,68817.18033599999,454985.01388881373,"Winter",185107.04259,52690.892874999998,81926.464888999995,1572.5468197,55813.873582,28817.924778000001,5765.6127509999997,4955.8928413000003,3053.2304963000001]
[3564,"2011-11-28","KW60MN02 ",5637998.413684072,1728802.3254680717,1248051.8652757418,66276.18871100001,414474.27148132992,"Winter",185962.61248000001,47034.144764999997,79673.434206000005,1529.3007668,56999.462399999997,26991.798503000002,5592.6504629000001,4955.8928413000003,3053.2304963000001]
[3565,"2011-11-28","KW60MN03 ",5639190.698381816,1726254.5112380115,1239266.5152518197,65010.367147999998,421977.62883819186,"Winter",185637.89337000001,46786.374286999999,82241.016761999999,1578.5845213,57546.657239,27075.163306999999,5653.1892950000001,4955.8928413000003,3053.2304963000001]
[3566,"2012-03-18","KW60MN02 ",5307725.0939850379,1723433.6691006066,1220395.5078270494,73200.028482044989,429838.13279151218,"Winter",187814.57552000001,47832.828202999997,65635.426273999998,1259.8466318000001,55631.475301999999,23717.809410000002,5541.0316278999999,1354.3257784,3053.2304963000001]
[3567,"2011-12-30","KW60MN05 ",5690943.270624144,1723298.9310898441,1184042.3079832306,72330.800908999998,466925.82219761348,"Winter",166786.43223000001,49243.394703999998,77426.335063000006,1486.1685675000001,55129.880033000001,26589.755247000001,5662.5748456000001,816.33821894000005,3053.2304963000001]
[3568,"2012-03-27","KW60MN05 ",5510173.1033933358,1723011.0117785032,1208198.8706208935,90089.536689470711,424722.604468139,"Winter",166646.70063000001,48462.331457,84840.526012000002,1628.4810964000001,50569.923041000002,33242.552018000002,6970.8941778999997,1354.3257784,2543.9346870999998]
[3569,"2012-03-05","KW60MN04 ",5566707.8975711158,1722759.1465012322,1235092.8210816334,74172.286957744567,413494.03846185427,"Winter",155328.05944000001,48432.718094999997,71411.854584000001,1370.7229400000001,56406.667991000002,28961.462220000001,5487.9213305000003,1354.3257784,3053.2304963000001]
[3570,"2012-03-04","KW60MN03 ",5452035.4560448388,1720110.1495815995,1203304.7912816673,74609.576176066796,442195.78212386539,"Winter",167810.96458999999,53247.167733000002,65763.216295000006,1262.2995119,55631.475301999999,23439.160878999999,5507.8283815000004,1354.3257784,3053.2304963000001]
[3571,"2012-03-26","KW60MN05 ",5343843.0089011993,1719909.6480969721,1249789.0173295324,78758.188916247367,391362.44185119245,"Winter",144317.25383,48914.704068999999,80813.712966999999,1551.1879767999999,55859.473151999999,30441.472267000001,6352.2672171000004,1354.3257784,2645.7090367999999]
[3572,"2011-11-23","KW60MN04 ",5669401.2765973955,1716722.5302777947,1220679.1515314993,69183.036368999994,426860.34237729525,"Winter",122771.90012999999,48763.754660999999,83868.775842000003,1609.8287276000001,56315.468850999998,34679.030857999998,5444.6756802,4955.8928413000003,3053.2304963000001]
[3573,"2011-11-23","KW60MN03 ",5655903.4800960179,1715462.0195169188,1220669.1932552776,70326.053694000002,424466.77256764128,"Winter",123129.04028,48130.219941000003,84391.561428999994,1619.8633947999999,56589.066271000003,35270.503261999998,5384.2587374000004,4955.8928413000003,3053.2304963000001]
[3574,"2012-03-28","KW60MN05 ",5515072.3017615564,1714182.0512360437,1245561.4473369231,77359.898419489415,391260.7054796312,"Winter",156992.00377000001,51758.481732,86851.315151000003,1667.0774165,40401.218949000002,32391.096389999999,6918.2680553999999,1354.3257784,2442.1603372999998]
[3575,"2012-03-17","KW60MN04 ",5270382.6765162302,1713860.2642569814,1229802.2267035404,79426.780988345767,404631.25656509522,"Winter",139879.22811,45105.259282999999,69840.253482,1340.5566644999999,56133.070571999997,28495.977060000001,5640.4737702000002,1354.3257784,3053.2304963000001]
[3576,"2012-03-18","KW60MN04 ",5236364.7629033159,1712981.8245223574,1205665.3475630998,72710.591845148258,434605.88511410932,"Winter",195506.59664,47709.708605,63232.735141999998,1213.7279045,55905.072721999997,23946.657574000001,5738.3888991000003,1354.3257784,3053.2304963000001]
[3577,"2012-03-15","KW60MN04 ",5388912.5082936781,1712040.335375804,1202496.9153383924,69392.504368262686,440150.91566914902,"Winter",185931.98259999999,49918.715917000001,78642.511371999994,1509.5126015999999,53214.698097,31621.653126000001,6640.0162784000004,1354.3257784,3053.2304963000001]
[3578,"2011-11-13","KW60MN03 ",5556607.467689883,1710932.8655061342,1186220.4088611316,68086.534228999997,456625.92241600243,"Winter",178770.64267999999,49650.844345999998,79959.423148999995,1534.7902140000001,55813.873582,28851.492891000002,5718.8068887999998,4955.8928413000003,3053.2304963000001]
[3579,"2012-03-11","KW60MN07 ",5489458.6930781305,1709948.8742316584,1226564.3571418384,69024.569786438704,414359.9473033814,"Winter",162824.62164999999,51242.619551000003,68691.520875999995,1318.5071862,55266.678742999997,25164.002496000001,5892.1703989999996,1354.3257784,0]
[3580,"2011-11-13","KW60MN04 ",5540060.3145882944,1707725.9436882946,1186165.0754685372,65856.150549999991,455704.71766975761,"Winter",187906.68771999999,48348.796433000003,80813.285233999995,1551.1797666,56178.670141000002,28381.487647999998,5736.0949911999996,4955.8928413000003,3053.2304963000001]
[3581,"2012-03-09","KW60MN03 ",5440547.4987711925,1705248.6701250889,1195899.3866019095,71750.976823344434,437598.306699835,"Winter",185834.66649,51860.182658999998,80720.039288,1549.3899467000001,56178.670141000002,31071.349963000001,6484.5401648999996,1354.3257784,3053.2304963000001]
[3582,"2012-03-15","KW60MN03 ",5336128.0507165492,1702370.5800216617,1199557.1251747541,68018.75107102521,434794.70377588249,"Winter",170139.68328999999,47913.635883000003,81145.076190000007,1557.5483658000001,53169.098527000002,30601.131662,6318.3004628999997,1354.3257784,3053.2304963000001]
[3583,"2012-03-17","KW60MN03 ",5227245.6854015654,1701990.1236182917,1223100.1212210213,76573.631146367727,402316.37125090288,"Winter",149628.62323999999,45787.756474000002,67046.035959000001,1286.9227394,56133.070571999997,28911.947427999999,5499.5042919999996,1354.3257784,3053.2304963000001]
[3584,"2011-11-14","KW60MN01 ",5495308.1428719405,1699147.8938400941,1202963.3299669544,70813.493912999998,425371.06996013975,"Winter",148402.59078999999,46238.163968000001,84396.846487999996,1619.9648394999999,57090.661540000001,30821.073381999999,5654.0628428999999,4955.8928413000003,3053.2304963000001]
[3585,"2012-03-16","KW60MN03 ",5338661.4975455981,1697483.4981692368,1219017.9381999131,69062.401200401728,409403.15876892197,"Winter",139652.93796000001,47798.227328000001,73640.872958000007,1413.5080859,55677.074871999997,31970.798619000001,6272.0803518000002,1354.3257784,3053.2304963000001]
[3586,"2012-03-24","KW60MN05 ",5260711.4991239896,1697041.3999978476,1165711.7980561447,79208.596270377981,452121.00567132491,"Winter",186677.83605000001,47963.885403,65414.488484000001,1255.6058164000001,56589.066271000003,28909.772782,5855.6896580000002,1354.3257784,2828.3798597]
[3587,"2012-03-31","KW60MN01 ",5309091.4858227996,1696850.5858982422,1202131.4312619367,84874.035136174905,409845.11950013071,"Winter",140245.35586000001,50291.211188000001,68848.595633999998,1321.5221755,51390.715300000003,27100.324301000001,5821.4063280999999,1354.3257784,3053.2304963000001]
[3588,"2012-03-05","KW60MN01 ",5449830.8319739737,1696745.8742287382,1224235.7490659214,72662.636088019615,399847.48907479714,"Winter",147752.66503,49539.115366999999,68442.414359000002,1313.7256829,53442.695946,28391.779897,5322.6127354999999,1354.3257784,3053.2304963000001]
[3589,"2012-03-16","KW60MN04 ",5348311.9900683677,1695859.4703734796,1211507.7886951156,68759.550100717403,415592.13157764671,"Winter",174016.5251,48878.996107999999,75518.380325999999,1449.546114,56133.070571999997,32688.670176,6590.3510735999998,1354.3257784,3053.2304963000001]
[3590,"2012-03-27","KW60MN01 ",5314196.9653060948,1695740.5910724513,1222028.6380091738,80581.867230674412,393130.08583260304,"Winter",133020.24432,44575.265277999999,79092.154011999999,1518.1433182000001,55403.477453,32391.056495000001,5884.5725724000004,1354.3257784,3053.2304963000001]
[3591,"2012-03-18","KW60MN03 ",5217628.0748002771,1695320.6427690201,1197781.380779733,72019.949017983803,425519.31297130318,"Winter",209682.65578999999,47331.861077000001,65061.708977000002,1248.8343500999999,55768.274012000002,23793.341626000001,5593.1921979999997,1354.3257784,3053.2304963000001]
[3592,"2012-03-29","KW60MN05 ",5424863.1226612031,1694734.6187157291,1217196.2816271205,78035.147797823505,399503.18929078517,"Winter",172234.8836,51110.951765999998,81458.200985000003,1563.5586751000001,43091.593573999999,32379.548383000001,6838.1556778000004,1354.3257784,2340.3859876000001]
[3593,"2012-03-30","KW60MN01 ",5336931.0423133941,1694697.2302586511,1217879.4940535682,85243.734774871802,391574.00143021106,"Winter",117786.73363,47746.967129999997,77573.991424000007,1489.0027743000001,47469.152286999997,30664.550082999998,5847.7938770999999,1354.3257784,3053.2304963000001]
[3594,"2011-12-30","KW60MN02 ",5515384.5337085621,1693568.7837722523,1174691.8729960646,70133.49003500001,448743.42074118764,"Winter",175294.85091000001,51587.964688,74376.178430999993,1427.6219902,55403.477453,26045.172473999999,5487.3169580000003,816.33821894000005,3053.2304963000001]
[3595,"2012-03-10","KW60MN24 ",5408937.6193788759,1690429.8873084087,1211879.3281226556,71076.561998037316,407473.99718771572,"Winter",150863.4737,54188.189727999998,59330.370059000001,1138.8235153999999,55357.877883000001,25548.051785,5336.7841715000004,1354.3257784,3053.2304963000001]
[3596,"2012-03-31","KW60MN06 ",5360845.4534024829,1682589.0306614111,1171293.7168506859,80468.46369387905,430826.85011684604,"Winter",177545.06597,52599.602418000002,68652.725420000002,1317.7625224000001,51983.509708999998,26168.786235,6325.6562026000001,1354.3257784,0]
[3597,"2012-03-25","KW60MN06 ",5228412.0417311694,1680945.9386813827,1172422.7450697666,77964.817792824761,430558.37581879133,"Winter",174777.15296000001,53228.869471999998,68955.287100000001,1323.5700769,55722.674442000003,25440.870445,5900.0289350000003,1354.3257784,3.8589440678]
[3598,"2012-03-05","KW60MN03 ",5436312.3223214559,1679357.0446924788,1200684.3608692104,73250.008029748278,405422.67579352023,"Winter",146830.56787999999,48534.767698000003,71187.263206000003,1366.4119952999999,56041.871432,28822.678455000001,5405.0528782000001,1354.3257784,3053.2304963000001]
[3599,"2011-11-14","KW60MN04 ",5589097.3186550913,1674257.8586085101,1173014.7048758178,70464.656671000004,430778.49706169241,"Winter",158513.00513999999,46128.110884000002,90691.891795000003,1740.7958004,56178.670141000002,31814.215413000002,5705.4802192999996,4955.8928413000003,3053.2304963000001]
[3600,"2012-03-10","KW60MN06 ",5564225.0743954154,1674071.0710662233,1190026.6336203965,69221.470676372119,414822.96676945483,"Winter",163682.66101000001,48386.975656000002,63065.603429000003,1210.5198759,52804.301966999999,27152.039037999999,5987.0128763000002,1354.3257784,1220.8681383999999]
[3601,"2012-03-28","KW60MN02 ",5309997.4517325526,1672868.038393029,1218229.519070473,81310.322832777121,373328.1964897787,"Winter",135677.38102999999,47226.384165000003,74956.854630999995,1438.7678453999999,40173.221100000002,32263.972519999999,6052.4323980999998,1354.3257784,3053.2304963000001]
[3602,"2011-12-29","KW60MN02 ",5543014.2452128278,1670172.654379498,1178888.1528873381,68855.574168000006,422428.92732415994,"Winter",154634.46755,49887.365602999998,80721.508048999996,1549.4181390000001,55631.475301999999,29237.093923,5592.6301476999997,816.33821894000005,3053.2304963000001]
[3603,"2012-03-05","KW60MN02 ",5417123.9588165963,1668660.2920133127,1198487.9765045913,73018.88836125315,397153.42714746832,"Winter",142781.35086000001,48061.289741000001,68820.075649999999,1320.9747454000001,54537.085623999999,28770.515169999999,5364.5125145000002,1354.3257784,3053.2304963000001]
[3604,"2012-03-24","KW60MN02 ",5157762.2115937024,1666143.7899796336,1167128.1050913178,72485.319039419221,426530.36584889656,"Winter",175024.33291,48800.352789999997,65241.188456999997,1252.2793893999999,56406.667991000002,29535.758006,5695.8932113000001,1354.3257784,3053.2304963000001]
[3605,"2011-11-14","KW60MN02 ",5459210.8606246961,1665281.3918631058,1176334.9909162337,68422.952808999995,420523.44813787227,"Winter",157467.14843999999,45279.197207999998,84370.943081999998,1619.4676336,56589.066271000003,30816.036329999999,5569.3287922999998,4955.8928413000003,3053.2304963000001]
[3606,"2011-12-30","KW60MN04 ",5508640.8610595474,1664275.4620317267,1145529.4455976039,70396.730718999999,448349.28571512259,"Winter",174459.46071000001,48297.918654000001,77044.596929000007,1478.8412516000001,54947.481754,26020.354370000001,5518.0739356000004,816.33821894000005,3053.2304963000001]
[3607,"2012-03-24","KW60MN03 ",5120144.9525068775,1660663.7208342981,1151755.8648482622,76412.502825167714,432495.35316086817,"Winter",174954.46711,47370.429146000002,65909.221548999994,1265.1020263,57090.661540000001,29517.278378999999,5716.4147923999999,1354.3257784,3053.2304963000001]
[3608,"2012-03-24","KW60MN04 ",5115565.2835842324,1659357.9380102099,1145126.0475749688,77435.542377197475,436796.34805804375,"Winter",168157.01863000001,48883.279842000004,66546.758816999994,1277.3393077000001,57364.258958999999,29691.959371000001,5814.0319669,1354.3257784,3053.2304963000001]
[3609,"2011-12-29","KW60MN04 ",5541270.5079346355,1657927.1397071257,1154508.1474288183,66507.795708000005,436911.19657030754,"Winter",166895.83071000001,49410.649939000003,80090.332810000007,1537.3029744,55585.875732,29278.341832999999,5648.5980949000004,816.33821894000005,3053.2304963000001]
[3610,"2012-03-29","KW60MN02 ",5210245.0149575314,1648653.8039659483,1200454.4863584212,74191.188449215813,374008.12915831129,"Winter",145462.21778000001,48399.044346000002,75443.130061999997,1448.1017142999999,39990.822820000001,30729.722321000001,5956.4539708000002,1354.3257784,3053.2304963000001]
[3611,"2011-12-30","KW60MN03 ",5459619.1778964847,1646642.3331289743,1136983.4382865366,67449.675877000001,442209.21896543785,"Winter",164002.01725,48992.201738000003,76692.079574000003,1472.0748172999999,55084.280463000003,25949.629899,5473.5433575999996,816.33821894000005,3053.2304963000001]
[3612,"2012-03-25","KW60MN01 ",5133973.721851822,1643218.8659367149,1167621.3188517147,77188.168349825297,398409.37873517489,"Winter",145781.86017999999,51703.360389000001,59180.950862999998,1135.9554717000001,56041.871432,25710.800445000001,5255.6475778000004,1354.3257784,3053.2304963000001]
[3613,"2011-11-14","KW60MN03 ",5497710.8324545082,1642539.6847991673,1154534.3197878753,70441.229649000001,417564.135362292,"Winter",152133.58562,45245.966935999997,86350.700840999998,1657.4683184,56589.066271000003,31027.058535,5601.0202611000004,4955.8928413000003,3053.2304963000001]
[3614,"2011-12-29","KW60MN03 ",5489496.2918450944,1640510.2284160147,1151923.3629731461,65236.148823999996,423350.71661886846,"Winter",149175.09964999999,48280.987781000003,84121.380585000006,1614.6773779,55722.674442000003,29218.98676,5562.5029372999998,816.33821894000005,3053.2304963000001]
[3615,"2012-03-27","KW60MN02 ",5264542.1995301796,1638982.5215245888,1160187.5217083003,83865.014743384847,394929.98507290351,"Winter",133055.90852,43955.701701999998,78684.157999999996,1510.3119925000001,55312.278313000003,31854.779069,5961.2026124000004,1354.3257784,3053.2304963000001]
[3616,"2012-03-27","KW60MN04 ",5331786.3319626087,1634282.0294574532,1140926.6387345709,84889.876708250289,408465.51401463198,"Winter",156270.65422,45272.789281999998,77968.876984000002,1496.5824500000001,54856.282614000003,31901.953804000001,6430.4428942000004,1354.3257784,3053.2304963000001]
[3617,"2012-03-26","KW60MN01 ",5161344.6111745508,1633980.4006672269,1187074.4793339539,81242.490468016535,365663.43086525641,"Winter",119629.25334,44831.048878000001,64761.655018999998,1243.0749304000001,56497.867130999999,28045.889074999999,5202.1089708,1354.3257784,3053.2304963000001]
[3618,"2012-03-10","KW60MN01 ",5300110.2311533727,1625576.3509824439,1165350.0752551877,71581.958725907578,388644.31700134848,"Winter",136253.79508000001,52897.313908999997,67475.104691,1295.1585478,52713.102828000003,29061.472097000002,5701.7964253999999,1354.3257784,3053.2304963000001]
[3619,"2012-03-28","KW60MN04 ",5288437.0905632582,1623166.8541560648,1174262.1134262113,72708.854150280124,376195.88657957333,"Winter",134756.05757999999,48016.983782000003,80338.624049999999,1542.0688287,40674.816369,32374.118579999998,6313.9987522000001,1354.3257784,3053.2304963000001]
[3620,"2012-03-28","KW60MN03 ",5211306.0799668226,1621775.7326472173,1174795.1268246963,73650.493012872757,373330.11280964839,"Winter",148209.35758000001,48071.732346999997,77819.867952999994,1493.7222792,40082.021959999998,32208.733107,6184.5936130999999,1354.3257784,3053.2304963000001]
[3621,"2012-03-27","KW60MN03 ",5215692.1279884884,1621129.650358214,1134865.4334560097,86355.624030117717,399908.5928720868,"Winter",162414.08588999999,44816.905806000002,78426.743354999999,1505.3710179,55540.276163000002,31614.296305,6004.2197189999997,1354.3257784,3053.2304963000001]
[3622,"2012-03-30","KW60MN05 ",5384810.5727714794,1620682.4449203503,1139936.1213095644,84249.315693707365,396497.0079170785,"Winter",122415.76684,50668.125163999997,79615.114826000005,1528.1813489000001,52393.905837999999,31490.447539000001,6587.0735790999997,1354.3257784,2238.6116379]
[3623,"2012-03-31","KW60MN02 ",5179620.7652017437,1615205.6133502852,1140068.5119176717,77960.564517868959,397176.53691474465,"Winter",140406.86752999999,50017.984146000003,68440.585957000003,1313.6905875,50934.719600999997,26532.921216999999,5825.7080386999996,1354.3257784,3053.2304963000001]
[3624,"2012-03-29","KW60MN03 ",5192710.3468520725,1613033.7244096394,1163370.3260008693,73524.161888003233,376139.23652076669,"Winter",130284.57218,48429.694093999999,75989.817607999998,1458.5951703999999,42407.600026,30468.697667,6082.0788203000002,1354.3257784,3053.2304963000001]
[3625,"2012-03-31","KW60MN05 ",5170616.8286645599,1611140.1488455185,1123568.9057717088,80410.344708928547,407160.89836488094,"Winter",152496.59737999999,51026.907986999999,65767.374091000005,1262.3793192000001,52257.107128000003,26489.585922999999,6284.5571741000003,1354.3257784,2136.8372881]
[3626,"2012-03-29","KW60MN04 ",5240231.6408520425,1609795.728469698,1157908.2494146482,73915.500527237164,377971.97852781269,"Winter",136651.13561999999,48784.140158000002,77526.849371999997,1488.0979007999999,42635.597874999999,31327.535421,6353.9432083000002,1354.3257784,3053.2304963000001]
[3627,"2012-03-26","KW60MN04 ",5114986.3461271208,1606993.1620519601,1170347.3489477257,70819.30487879875,365826.50822543568,"Winter",148492.4137,47310.940514000002,74293.091864999995,1426.0271757,56087.471001999998,29478.320596000001,5787.9237487,1354.3257784,3053.2304963000001]
[3628,"2012-03-11","KW60MN01 ",5255602.3898866056,1603701.3624672915,1139871.4642819632,68432.852728806611,395397.04545652162,"Winter",164748.71859,52669.446887999999,60775.077254999997,1166.5541115000001,55221.079172999998,25694.751359000002,5306.9142849,1354.3257784,3053.2304963000001]
[3629,"2012-03-30","KW60MN02 ",5220225.1481633121,1602744.5785392798,1143819.9726076589,82291.70290200827,376632.90302961261,"Winter",108872.0822,47794.048036,75453.858643,1448.3076452,47697.150135999997,30730.348932000001,5893.0270171000002,1354.3257784,3053.2304963000001]
[3630,"2012-03-11","KW60MN06 ",5280322.4343065964,1597440.5755540649,1137275.2951459119,66310.181960143527,393855.09844800935,"Winter",146654.69515000001,51119.797210999997,65898.056737999999,1264.8877221,55038.680892999997,24849.514146000001,5988.7074899999998,1354.3257784,1119.0937887]
[3631,"2012-03-25","KW60MN05 ",5066654.2293332098,1594613.5569390343,1109286.1672368404,73751.279194297327,411576.11050789664,"Winter",150496.41328000001,51077.734347999998,65041.598743000002,1248.4483419999999,56178.670141000002,25149.095711000002,5744.1058905,1354.3257784,2743.6244430000002]
[3632,"2012-03-26","KW60MN02 ",5107381.229020495,1594477.8943805336,1156878.6335122276,74859.843037469574,362739.41783083644,"Winter",120765.08132,44364.473742000002,65383.777127000001,1255.0163238,56269.869280999999,28198.682034000001,5297.1935360999996,1354.3257784,3053.2304963000001]
[3633,"2012-03-31","KW60MN03 ",5077227.4283455331,1587167.588765258,1116446.6450232142,79341.998270229495,391378.94547181437,"Winter",146658.22446999999,50359.797531999997,67570.478050000005,1296.9892026,51253.916590000001,26264.563579999998,5933.3625376999998,1354.3257784,3053.2304963000001]
[3634,"2012-03-25","KW60MN02 ",5020849.3002881883,1583031.8271431474,1112875.2717853051,73762.468840593196,396394.08651724894,"Winter",143895.36699000001,50433.562598999997,62024.300285999998,1190.5324645999999,55996.271862000001,26096.558313000001,5406.2819384000004,1354.3257784,3053.2304963000001]
[3635,"2012-03-31","KW60MN04 ",5107035.0232625222,1581020.3929265104,1109925.9996059884,77728.176431687083,393366.21688883496,"Winter",146562.25438,49665.739399999999,65138.54593,1250.3092058,52029.109278999997,26078.051930000001,6129.7142131999999,1354.3257784,3053.2304963000001]
[3636,"2012-03-26","KW60MN03 ",5096297.9027125696,1577085.1839319004,1141132.9291056269,72293.534946948494,363658.71987932501,"Winter",124015.66399,46219.762870999999,69466.878135000006,1333.3898690000001,56133.070571999997,28204.506390999999,5361.8495512,1354.3257784,3053.2304963000001]
[3637,"2012-03-10","KW60MN05 ",5279390.1942106616,1573385.55134572,1109167.6124706347,70247.218189760373,393970.72068532498,"Winter",133366.67991000001,47034.234746000002,62871.230222999999,1206.7889573,53077.899386999998,27675.831952,5763.1935683000002,1354.3257784,3053.2304963000001]
[3638,"2012-03-10","KW60MN02 ",5195908.474302236,1572645.9691138766,1120364.608972714,68721.588138369305,383559.77200279309,"Winter",129571.08676999999,47073.093646000001,64863.727080999997,1245.0341642000001,52667.503257999997,28598.159635,5750.6981224000001,1354.3257784,3053.2304963000001]
[3639,"2012-03-25","KW60MN03 ",4974995.4627688043,1569802.9005773747,1101286.6473902196,71579.246079024189,396937.00710813096,"Winter",163609.84881,48751.276235999998,63842.898290999998,1225.4397501999999,56224.269711000001,25280.632119000002,5401.9243612999999,1354.3257784,3053.2304963000001]
[3640,"2012-03-25","KW60MN04 ",4974001.258381729,1567128.1379718923,1093779.2851756429,72634.732351228115,400714.1204450212,"Winter",155935.96184999999,50421.587103999998,64342.034194,1235.0204709,56224.269711000001,25161.509681,5563.7319974000002,1354.3257784,3053.2304963000001]
[3641,"2012-03-30","KW60MN03 ",5138365.9018331999,1565677.1174298683,1114603.229959005,73585.454192588615,377488.43327827478,"Winter",112353.93635,46973.923432000003,71779.108924999993,1377.7722451,52257.107128000003,30687.864525000001,5989.9924166000001,1354.3257784,3053.2304963000001]
[3642,"2012-03-30","KW60MN04 ",5191219.447827829,1561254.7562627962,1100962.3267187341,79484.907033826792,380807.52251023537,"Winter",138477.92705,48869.845371000003,75845.860535999993,1455.83197,52713.102828000003,31415.554096,6174.6680201999998,1354.3257784,3053.2304963000001]
[3643,"2012-03-11","KW60MN03 ",5191080.2730711494,1554534.7719540065,1098543.2857881065,64011.962241162822,391979.52392473724,"Winter",142981.35655999999,45766.055006000002,62864.989566999997,1206.6691702999999,54993.081323999999,25656.151153999999,5349.1865060999999,1354.3257784,3053.2304963000001]
[3644,"2012-03-10","KW60MN04 ",5192768.5534023531,1534698.2820146927,1083311.8695640152,67400.399270098875,383986.01318057853,"Winter",133894.96583,46118.593796000001,64715.529766,1242.189574,53169.098527000002,27910.971506999998,5695.8187236000003,1354.3257784,3053.2304963000001]
[3645,"2012-03-11","KW60MN05 ",5119774.725197698,1529725.811976287,1080003.2211473174,65218.34735046819,384504.24347850145,"Winter",147924.75407,46960.392551999998,62032.059078999999,1190.6813916000001,55266.678742999997,25080.431873000001,5653.453391,1354.3257784,3053.2304963000001]
[3646,"2012-03-11","KW60MN04 ",5089146.5890143253,1524543.2494283288,1075695.0281307031,64203.297985211335,384644.92331241438,"Winter",129985.20484999999,47578.305942999999,62182.045179000001,1193.5603169000001,55084.280463000003,25863.523347999999,5440.6211358,1354.3257784,3053.2304963000001]
[3647,"2012-03-10","KW60MN03 ",5147246.1491410797,1521735.4224969679,1077329.0856748824,67092.417033636622,377313.91978844884,"Winter",123829.81799,45252.090457999999,65112.001670999998,1249.7996989999999,52849.901536999998,28140.659369000001,5738.7613412000001,1354.3257784,3053.2304963000001]
[3648,"2012-03-11","KW60MN02 ",0,0,0,0,0,"Winter",0,0,0,0,0,0,0,0,0]

{"sheet":"ErrorCheck","index":36,"n_rows":23,"n_cols":10,"rows_kept":23,"cut":false,"hidden":false,"merged":[]}
[]
[]
[]
[]
[null,"\"Functional Study\" Error Checking",null,null,null,null,null,"Individual Sheet Error Checking"]
[null,null,"Function","Generation","Transmission","Distribution",null,"Class Summary",null,{"$f":"'Class Summary'!$O$12","v":0}]
[null,null,"Check","Check","Check","Check",null,"Function Summary",null,{"$f":"'Function Summary'!Q12","v":0}]
[null,null,null,null,null,null,null,"Generation Summary",null,{"$f":"'Generation Summary'!$O$12","v":0}]
[null,"Largest Difference",{"$f":"'Func Study'!AD240","v":0},{"$f":"'Func Study'!AE240","v":0},{"$f":"'Func Study'!AF240","v":0},{"$f":"'Func Study'!AG240","v":0},null,"Transmission Summary",null,{"$f":"'Transmission Summary'!$O$12","v":0}]
[null,"Location (Row)",{"$f":"'Func Study'!AD241","v":0},{"$f":"'Func Study'!AE241","v":0},{"$f":"'Func Study'!AF241","v":0},{"$f":"'Func Study'!AG241","v":0},null,"Distribution Summary",null,{"$f":"'Distribution Summary'!$O$12","v":0}]
[null,"COS to JAM",{"$f":"ROUND(SUM('Func Study'!F10:F79),0)","v":-4},null,null,null,null,"Retail Summary",null,{"$f":"'Retail Summary'!$O$12","v":0}]
[null,"Summary",{"$f":"-'Func Study'!AA5","v":0},{"$f":"'Func Study'!AB5","v":0},{"$f":"'Func Study'!AC5","v":0},{"$f":"'Func Study'!AD5","v":0},null,"Misc Summary",null,{"$f":"'Misc Summary'!$O$12","v":0}]
[null,null,null,null,null,null,null,"Distribution Detail Sheets",null,{"$f":"'Distribution Summary'!O12+'Distribution Summary'!O80+'Distribution Summary'!O148+'Distribution Summary'!O216+'Distribution Summary'!O284+'Distribution Summary'!O352","v":0}]
[null,null,null,null,null,null,null,"G+T+D+R+M",null,{"$f":"'G+T+D+R+M'!$R$12","v":0}]
[null,null,null,null,"'Summary' Page Error Check",null,null,"Generation",null,{"$f":"Generation!$R$12","v":0}]
[null,null,null,null,"Increase",null,null,"Transmission",null,{"$f":"Transmission!$R$12","v":0}]
[null,"Macro_Check_Total",{"$f":"MAX(ABS(SUM(J7:J12)),ABS(E20))","v":0},null,"(Decrease)",null,null,"Distribution",null,{"$f":"Distribution!$R$12","v":0}]
[null,null,null,null,"to = ROR",null,null,"Retail",null,{"$f":"Retail!$R$12","v":0}]
[null,null,null,null,null,null,null,"Misc",null,{"$f":"Misc!$R$12","v":0}]
[null,null,null,null,{"$f":"ROUND('Summary Table'!M23,0)","v":0},null,null,"Hot Sheet",null,{"$f":"'Hot Sheet'!$R$12","v":0}]
[]
[]
[null,{"$f":"IF(OR(MAX(Factorck)>1,MIN(Factorck)>1),\"There is an error in the Factor Table. Allocation factors must total to 1.0000.   See Tab 'Factor Table COS' \",\"\")","v":""}]

{"sheet":"Message","index":37,"n_rows":17,"n_cols":4,"rows_kept":17,"cut":false,"hidden":false,"merged":[]}
[]
[]
[]
[]
[]
[]
[]
[]
[]
[]
[]
[]
[]
[]
[]
[]
[null,null,null,1.0000000000000002]